{"text_format":"1","workbook":"xlsx","n_sheets":12,"sheets":["Explanation","Global Settings","Data Entry","Time Adjustment","Analysis","PlotData","Full SqFt Chart","Full Ac Chart","Conclusions","Used Sales","Not Used Sales","Timeout"],"not_rendered":{"charts":5,"images":3,"macros":1,"external_links":0,"defined_names":40,"comments":0,"pivot_tables":0},"unopened":[{"sheet":"Full SqFt Chart","index":6,"reason":"not_a_worksheet"},{"sheet":"Full Ac Chart","index":7,"reason":"not_a_worksheet"}],"bounds":{"document_bytes":16777216,"sheet_cells":100000,"rows_first":2000,"rows_last":500,"rows_between":2000,"halvings":0,"cell_chars":16384,"cell_head_chars":4096},"cells_cut":0,"cells_raw":0,"read":"whole","date_system":"1900"}

{"sheet":"Explanation","index":0,"n_rows":78,"n_cols":1,"rows_kept":78,"cut":false,"hidden":false,"merged":[]}
["Land Value Grid Explanation"]
["Don't forget to enable macros! ->"]
["This version of the workbook is out of date a no longer supported. Please update to a newer version."]
["Outline of purpose"]
["Verified sales data for a particular property class and from a given neighborhood is entered into the spreadsheet. Calculations are automatically run against the entered data using approved sales analysis techniques to project a regression trend. From said trend, costs per unit are concluded to complete the land value study."]
[]
["Users will have the ability to quickly pair sales to calculate time adjustments as well as the ability to quickly visualize and exclude sales from the regression trend calculation."]
[]
["Breakdown of primary worksheets"]
["·         The Global Settings tab stores user entered information as well as calculated information that drives other parts of the workbook."]
["·         The Data Entry tab provides a layout for users to enter relevant verified sales data for a given neighborhood."]
["·         The Time Adjustment tab serves as an interface to pair sales and calculate a percent per month time adjustment to apply to sales outside of the study period. This is not needed if only sales within the time period are used."]
["·         Calculations are applied against entered data to derive tabulated statistical observations on the Analysis tab. The tab is further utilized to visualize the effect each statistical observation has on the regression trend as observations are added or removed."]
["·         Once the line of best fit is finalized, the Conclusions tab is utilized to determine the indicated cost per unit of any sized parcel as it would fall on said line. Thus price intervals are determined and entered into CAMA software for interpolation."]
[]
["Step by step process (simplified)"]
["1.    Save a new workbook for each neighborhood (land table) for each class."]
["2.    Enter verified sales data into established fields."]
["3.    Pair sales to calculate monthly time adjustment if sales outside the time period are used."]
["4.    Remove sales as warranted."]
["5.    Review conclusions."]
[]
["Step by step process (broken-down)"]
["1.    Enter Global Settings"]
["a.    The dates of the study period should be entered."]
["                                          i.    Note this area will also store information on time adjustments once calculated. Users can manually override the calculated time adjustment if they so choose."]
["b.    Take note of the Land to Building ratio tolerance."]
["                                          i.    Once sales data has been entered, this section will determine a Land Allocation Multiplier. By default, the tolerance will automatically use statistics to establish parameters. In particular: Abstracted sales with an indicated LB Ratio that is plus or minus one standard deviation from the mean indicated LB Ratio. Note the tolerance and concluded Land Allocation Multiplier can be overrode at the user’s discretion."]
[]
["2.    Populate Data Entry tab with verified sales data."]
["a.    Mandatory fields include:"]
["Valuation Method, Parcel Number, Sale Date, Sale Price, Total Acre, and Improvements Value."]
["b.    For each row, be certain to select a Valuation Method."]
["                                          i.    Note that improved sales should be entered twice:"]
["                         Once using Abstraction and once using Allocation."]
["c.     Multi-Parcel Sales should only be entered once under one primary parcel number. Be certain to include the net sale price, net acres of all parcels included in the sale, and net building values (all improvement TCVs) of all parcels included in the sale."]
["d.    Improvement values should be as of the date of sale."]
["e.    The sheet is designed for entry of Total Acres and Rights of Way to be separately listed for later exclusion from the total. If acreages are entered that are not inclusive of rights for way, then enter “0” in the right of way column."]
[]
["3.    Use the Time Adjustment tab to perform paired sales analysis and calculate a monthly time adjustment."]
["a.    An observation or row will populate in the bottom section of the Time Adjustment tab for each row entered on the Data Entry tab."]
["b.    Sales can be added in the Data Entry tab to be used in the Time Adjustment pairing interface, even if said sales won’t ultimately be used in the final land value conclusions."]
["c.     Use the first column of the bottom section of the Time Adjustment tab to designate “pair groups”."]
["                                          i.    For instance, enter “1” to assign a sale to be pared."]
["                                         ii.    Enter “1” on another sale to pair it with the first sale."]
["                                        iii.    Do not enter a third “1” on another sale. Each pair group should only have two sales."]
["                                       iv.    There are 6 total groups available on the Time Adjustment interface."]
[]
["4.    Review the Analysis tab."]
["a.    An observation or row will populate for each row entered on the “Data Entry” tab."]
["b.    Observations can be removed or included in the analysis by entering a 0 (removed) or 1 (included) in the “Use” column."]
["                                          i.    By default, newly entered data is automatically included unless specifically excluded in the “Use” column."]
["                                         ii.    An exclusion comment should be entered in the appropriate column explaining the rationale used to eliminate an observation."]
["c.     You may encounter an error stating “Some trendlines cannot be calculated from data containing negative or zero values.”"]
["                                          i.    Seek out observations with a zero or negative value in the “Adjusted Price Per Sq Ft” column and set their use to 0 in the “Use” column to correct the error. "]
["                                         ii.    Observations with a negative land residual (abstracted sales where the appraised building value exceeds the sale price) will cause this to happen."]
["                                        iii.    It may be worth reviewing these occurrences to determine the cause and if it was in error."]
[]
["d.    Data on the Analysis tab can be filtered and sorted for review using the pre-established arrows next to each column header. "]
["                                          i.    Sorting the “Residual Acre” or “Residual Sq Ft” column from smallest to largest can be very helpful for analysis. With such an array, the “Adjusted Price Per Sq Ft” column can be reviewed for a-typical observations. The principle of economies of scale tells us that we should expect the price per unit to decrease as the size of the parcel increases."]
["e.    The chart is useful for spotting outliers and visualizing the effect on the overall trend as observations are removed or added in the “Use” column."]
["                                          i.    It may be helpful to adjust the maximum values for the Y and/or X axis to a smaller number to zoom in to where the data is most dense. Especially large parcels or extremely high prices per unit can result in undesirably wide or tall charts."]
["                                         ii.    Note that while “not used” observations will not contribute to the calculation of the regression trend, the data points are still visible on the chart."]
[]
["5.    Review the Conclusions tab"]
["a.    After establishing which observations will be used for land value determinations, the conclusions tab indicates the concluded value of a given area of land, based on its size, according to the regression trend of the sales data."]
["                                          i.    The square foot table indicates concluded values for the intervals pre-canned in the square foot table of Assessing.net for interpolation."]
["                                         ii.    The acreage table indicates concluded values for the intervals pre-canned in the square foot table of Assessing.net for interpolation."]
["b.    Note: Other statistics on the Conclusions tab can be useful in conducting the analysis as well. Different acreage ranges may be entered to analyze statistics of sales within custom graduations."]
[]
["6.    A new workbook can be saved for each neighborhood, each year."]
["a.    This is useful to display conclusions."]
["b.    This is useful to justify conclusions."]
["c.     This is useful to monument improvement values as of the date of sale outside of your database."]
[]
["7.    The workbook is designed to analyze sales within an already established neighborhood or land table boundary and assumes the established neighborhood is homogeneous. The workbook is not designed to help establish neighborhoods."]
[]
["8.    Conclusions will require common sense, analysis, and appropriate judgement. This workbook is a tool and cannot conclude anything on its own. It falls to the user to appropriately consider and examine the data to eventually arrive at a reasonable conclusion. Developer/s of this workbook are not responsible for resulting conclusions, errors, or omissions. Users of this workbook voluntarily assume all liabilities."]

{"sheet":"Global Settings","index":1,"n_rows":34,"n_cols":9,"rows_kept":34,"cut":false,"hidden":false,"merged":[[25,2,25,4],[23,1,23,4],[24,2,24,4],[0,0,0,3],[0,5,0,9],[2,1,2,2],[2,6,2,8],[22,6,22,8],[13,1,13,2],[10,6,10,8],[11,6,11,8],[12,6,12,8],[13,6,13,8],[14,6,14,8],[15,6,15,8]]}
["User Defined Section",null,null,null,null,"Informational Section"]
[]
[null,"Dates for sales period",null,null,null,null,"Dates for sales period"]
[null,"Enter the dates for the sales period:",null,null,null,null,"Title","Value","Explanation"]
[null,"Out Year Start:",44652,null,null,null,"Midpoint Study Period:",{"$f":"ROUND(C5+(C8-C5)/2,0)","v":45017},"Sales outside of the study period will be adjusted to the midpoint of the Study Period"]
[null,"Out Year End:",{"$f":"C5+364","v":45016},null,null,null,"Time Adjustment Per Month:",{"$f":"'Time Adjustment'!$S$14","v":1.5676007122824047E-3},"The rate of adjustment is a percent per month which is calculated on the \"Time Adj\" sheet"]
[null,"In Year Start:",{"$f":"C6+1","v":45017}]
[null,"In Year End:",{"$f":"C7+364","v":45381}]
[]
[]
[null,null,null,null,null,null,"Land to Building Ratio"]
[null,null,null,null,null,null,"The LB Ratio of Abstracted Sales is used to calculate a \"global\" or weighted mean LB ratio (the Land Allocation Multiplier)."]
[null,null,null,null,null,null,"The Land Allocation Multiplier is applied to verified improved sales to conclude a price per unit using the Allocation method."]
[null,"Land to Building Ratio",null,null,null,null,"Some Abstracted Sales will have an unusually low or high LB ratio indication and will disproportionally weight the Land Allocation Multiplier calculation."]
[null,"Enter the LB Ratio tolerance (optional):",null,null,null,null,"To the left, set the min & max LB ratio tolerance to prevent outliers from contributing to the calculation."]
[null,"Set Min LB Ratio Abstracted Sales:",{"$f":"AVERAGEIFS(LB_Ratio,Use,1,Valuation_Method_Analysis,\"Abstraction\")-STDEV(IF(Use=1,IF(Valuation_Method_Analysis=\"Abstraction\",LB_Ratio)))","v":0.22388864047398727},null,null,null,"(By default, unless overridden, this automatically excludes Abstracted sales with an LB ratio indication plus or minus one standard deviation from the mean.)"]
[null,"Set Max LB Ratio Abstracted Sales:",{"$f":"AVERAGEIFS(LB_Ratio,Use,1,Valuation_Method_Analysis,\"Abstraction\")+STDEV(IF(Use=1,IF(Valuation_Method_Analysis=\"Abstraction\",LB_Ratio)))","v":0.59423025778508409},null,null,null,"Title","Value","Explanation"]
[null,null,null,null,null,null,"Weighted Land Residual:",{"$f":"SUMIFS(Land_Residual,Valuation_Method_Analysis,\"Abstraction\",LB_Ratio,\">=\"&$C$16,LB_Ratio,\"<=\"&$C$17,Use,1)","v":3454872},"The sum of the indicated Land Residuals of Abstracted Sales within specified tolerance"]
[null,null,null,null,null,null,"Weighted Sale Price:",{"$f":"SUMIFS(Sale_Price_Analysis,Valuation_Method_Analysis,\"Abstraction\",LB_Ratio,\">=\"&$C$16,LB_Ratio,\"<=\"&$C$17,Use,1)","v":8545249},"The sum of the Sale Prices of Abstraced Sales within specifed tolerance"]
[null,null,null,null,null,null,"Land Allocation Multiplier:",{"$f":"ROUND(H18/H19,4)","v":0.40429999999999999},"This is the concluded LB ratio applied to sales using the Allocation method."]
[]
[]
[null,null,null,null,null,null,"Verified Sales"]
[null,"County & Unit Name",null,null,null,null,"Type","Desc","Explanation"]
[null,"Full local unit name if applicable:",null,null,null,null,"Vacant","Vacant Sales","Verified vacant sales should be entered on the DataEntry tab"]
[null,"Full county name:",null,null,null,null,"Abstraction","Improved w/ Land Residual","Improved sales should be entered and assigned the Abstraction valuation method"]
[null,null,null,null,null,null,"Allocation","Improved w/ Land Allocation","Improved sales should be entered and assigned the Allocation valuation method"]
[null,null,null,null,null,null,null,null,"Meaning: Improved sales should be twice entered!"]
[]
["Workbook Version: v1.3.2"]
["To begin a new analysis, please obtain a copy of the latest version of this workbook from Tony: tmeyaard@berriencounty.org or Warren: wparrish@berriencounty.org."]
["Your conclusions using this workbook are still visible on the various tabs."]
["This version is out of date and has intentionally expired to ensure distribution of the latest updates to the workbook."]
[{"$f":"C25&\" \n\"&C26","v":" \n"}]

{"sheet":"Data Entry","index":2,"n_rows":501,"n_cols":18,"rows_kept":501,"cut":false,"hidden":false,"merged":[]}
["Item ID","Valuation\nMethod","Parcel\nNumber","Address","Sale\nDate","Sale\nPrice","Conf.","Liber/\nPage","Total\nAcre","Total\nSq Ft","Total\nFront Ft","ROW\n(Sq Ft)","Imprvmts\nValue","Other Parcels\nin Sale","Comments","Use?\n1=Yes, 0=No","Exclusion\nComment","Pair\nGroup"]
[{"$f":"IF(B2=\"\",\"\",RIGHT(C2,4)&LEFT(B2,3)&E2-40000&\"-\"&LEFT(F2,3))","v":"5-26Vac4848-325"},"Vacant","060-031-000-115-26","2615 S State Rd",44848,325000,"n","672/8795",1.5580000000000001,{"$f":"I2*43560","v":67866.48},202.64,{"$f":"0.233*43560","v":10149.480000000001},0,null,null,1,null,2]
["0-01Abs4861-122","Abstraction","300-110-000-070-01","1320 E Grand River Ave",44861,1225000,"n","672/9977",1,{"$f":"I3*43560","v":43560},144,0,{"$f":"40786+980439","v":1021225},null,null,1,null,3]
["0-01All4861-122","Allocation","300-110-000-070-01","1320 E Grand River Ave",44861,1225000,"n","672/9977",1,43560,144,0,0,null,null,1]
["0-70Vac2138-450","Vacant","34-010-036-000-160-70","M-66",42138,450000,"n","637/8662",1.9710000000000001,85856.760000000009,255,7622.9999999999991,0,null,null,1]
["0-21Vac4006-650","Vacant","34-010-036-000-170-21","2598 S State Rd",44006,650000,"n","660/1614",2.198,{"$f":"I6*43560","v":95744.88},295,{"$f":"0.428*43560","v":18643.68},0,null,null,1]
["5-12Vac-1391-595","Vacant","34-011-001-000-085-12","M-66",38609,595000,"n","591/7047",4.4610000000000003,194321.16,335,0,0,null,null,1]
["5-42Vac-1340-485","Vacant","34-011-001-000-085-42","M-66",38660,485000,"n","592/9829",1.87,81457.200000000012,323.05,0,0,null,null,1]
["5-00Abs1563-200","Abstraction","34-060-006-000-095-00","2260 M-66",41563,200000,"n","631/8714",1.214,52881.84,235,11750,33808,null,null,1,null,3]
["5-00All1563-200","Allocation","34-060-006-000-095-00","2260 M-66",41563,200000,"n","631/8714",1.214,52881.84,235,11750,33808,null,null,1]
["5-11Abs3250-129","Abstraction","34-060-031-000-045-11","2541 S State Rd",43250,1293750,"n","650/5240",{"$f":"1.71+2.05","v":3.76},{"$f":"I11*43560","v":163785.59999999998},{"$f":"192.08+330","v":522.08000000000004},25961.759999999998,{"$f":"195216+7787+594308+6103","v":803414},"34-060-031-000-045-11",null,1]
["5-20Abs4559-182","Abstraction","34-060-031-000-045-20","2331 S State Rd",44559,1825000,"n","669/1978",2.7149999999999999,{"$f":"I12*43560","v":118265.4},222.8,{"$f":"0.26*43560","v":11325.6},{"$f":"1170043+58247","v":1228290},null,null,1]
["5-20All4559-182","Allocation","34-060-031-000-045-20","2331 S State Rd",44559,1825000,"n","669/1978",2.7149999999999999,118265.4,222.8,{"$f":"0.26*43560","v":11325.6},1228290,null,null,1]
["0-01Vac4434-105","Vacant","34-060-031-000-140-01","2983 S State Rd",44434,105000,"n","667/7365",1,{"$f":"I14*43560","v":43560},120,{"$f":"0.182*43560","v":7927.92},0,null,null,1]
["5-10Vac-1032-300","Vacant","34-060-140-000-005-10","M-66",38968,300000,"n","598/8270",1.446,62987.759999999995,300,0,0,null,null,1]
["0-00Vac3038-320","Vacant","34-060-140-000-020-00","2731 State Rd Ionia",43038,320000,"n","648/0772",1.446,62987.759999999995,300,0,0,"34-060-140-000-025-00",null,1,null,2]
["0-00Vac2754-100","Vacant","34-090-000-110-00","Railroad St",42754,10000,"n","644/7303",0.623,27137.88,133,0,0,null,null,0]
["0-02Abs2403-300","Abstraction","34-110-006-000-040-02","3669 S State Rd / M-66",42403,3000000,"n","640/6775",8.39,365468.4,500,25000,1526059,null,null,1]
["0-02All2403-300","Allocation","34-110-006-000-040-02","3669 S State Rd / M-66",42403,3000000,"n","640/6775",8.39,365468.4,500,25000,1526059,null,null,1]
["5-17Abs2585-650","Abstraction","34-201-030-000-045-17","431 Swartz Ct",42585,650418,"n","642/8611",0.99099999999999999,43167.96,198,0,572709,null,null,1]
["5-17All2585-650","Allocation","34-201-030-000-045-17","431 Swartz Ct",42585,650418,"n","642/8611",0.99099999999999999,43167.96,198,0,0,null,null,1]
["6-00Vac-48-150","Vacant","34-201-040-000-076-00","S. Steele St",39952,15000,"n","612/5536",0.85499999999999998,37243.799999999996,108.64,0,0,null,null,0]
["1-10Abs2697-194","Abstraction","34-203-240-000-191-10","1011 E Main St",42697,194500,"n","644/1885",6.08,264844.79999999999,171.43,0,142256,null,null,0]
["1-10All2697-194","Allocation","34-203-240-000-191-10","1011 E Main St",42697,194500,"n","644/1885",6.08,264844.79999999999,171.43,0,0,null,null,0]
["5-00Abs2741-400","Abstraction","34-204-090-000-075-00","302 S Jackson St",42741,40000,"n","644/6475",0.48699999999999999,21213.72,150,0,14364,null,null,0]
["5-00All2741-400","Allocation","34-204-090-000-075-00","302 S Jackson St",42741,40000,"n","644/6475",0.48699999999999999,21213.72,150,0,0,null,null,0]
["5-00Abs2003-248","Abstraction","34-204-190-000-005-00","340 Lovel St",42003,248651,"n","636/3324",0.57199999999999995,24916.32,132,0,140849,null,null,1]
["5-00All2003-248","Allocation","34-204-190-000-005-00","340 Lovel St",42003,248651,"n","636/3324",0.57199999999999995,24916.32,132,0,0,null,null,1]
["5-00Abs2789-718","Abstraction","34-204-600-000-405-00","643 Crawford St",42789,718248,"n","645/1404",3.41,148539.6,183.67,1306.8,520238,null,null,1]
["5-00All2789-718","Allocation","34-204-600-000-405-00","643 Crawford St",42789,718248,"n","645/1404",3.41,148539.6,183.67,1306.8,0,null,null,1]
["5-00Vac333-200","Vacant","34-300-050-000-395-00","Elm St",40333,20000,"n","???",0.60899999999999999,26528.04,333,0,0,null,null,0]
["0-00Abs1829-364","Abstraction","34-300-110-000-070-00","1320 E. Grand River Ave",41829,364600,"n","634/5648",0.64100000000000001,27921.96,275,0,228195,null,null,1]
["0-00All1829-364","Allocation","34-300-110-000-070-00","1320 E. Grand River Ave",41829,364600,"n","634/5648",0.64100000000000001,27921.96,275,0,0,null,null,1,null,1]
["5-10All1677-297","Allocation","34-401-250-000-335-10","1525 W. State Rd",41677,297000,"n","632/9262",0.504,21943.68,249.36,0,0,null,null,1]
["0-00Abs1795-800","Abstraction","34-401-250-000-350-00","1439 W. State Rd",41795,80000,"n","634/1902",1.7070000000000001,74356.92,121.5,4009.5,51893,null,null,1]
["0-00All1795-800","Allocation","34-401-250-000-350-00","1439 W. State Rd",41795,80000,"n","634/1902",1.7070000000000001,74356.92,121.5,4009.5,0,null,null,1]
["0-00Abs3538-535","Abstraction","34-300-110-000-050-00","1328 E Grand River Ave",43538,535000,"n","653/8847",0.63,{"$f":"I37*43560","v":27442.799999999999},225,0,{"$f":"27679+270584","v":298263},null,null,1]
["0-00All3538-535","Allocation","34-300-110-000-050-00","1328 E Grand River Ave",43538,535000,"n","653/8847",0.63,27442.799999999999,225,0,0,null,null,1]
["0-10Abs3088-150","Abstraction","34-401-250-000-350-10","1437 W State St",43088,150000,"n","648/7021",0.27300000000000002,11891.880000000001,125,0,{"$f":"5547+107872","v":113419},null,null,1]
["0-10All3088-150","Allocation","34-401-250-000-350-10","1437 W State St",43088,150000,"n","648/7021",0.27300000000000002,11891.880000000001,125,0,0,null,null,1]
["5-00Abs3808-610","Abstraction","34-401-250-000-365-00","1331 W State St",43808,610000,"n","657/4058",16.46,716997.60000000009,151,0,{"$f":"23380+203499","v":226879},null,null,1]
["5-00All3808-610","Allocation","34-401-250-000-365-00","1331 W State St",43808,610000,"n","657/4058",16.46,716997.60000000009,151,0,0,null,null,1]
["5-00Abs3439-338","Abstraction","34-401-250-000-365-00","1331 W State St",43439,338000,"n","652/9992",16.46,716997.60000000009,151,0,{"$f":"11984+117330","v":129314},null,null,1]
["5-00All3439-338","Allocation","34-401-250-000-365-00","1331 W State St",43439,338000,"n","652/9992",16.46,716997.60000000009,151,0,0,null,null,0]
["5-10Abs4841-330","Abstraction","34-401-250-000-335-10","1525 W State St",44841,330000,"n","672/8330",0.504,21954.240000000002,249.36,0,{"$f":"9322+170435","v":179757},null,null,1]
["5-10All4841-330","Allocation","34-401-250-000-335-10","1525 W State St",44841,330000,"n","672/8330",0.504,21954.240000000002,249.36,0,0,null,null,1,null,1]
["",null,null,null,null,null,null,null,null,0,null,null,null,null,null,1]
["",null,null,null,null,null,null,null,null,0,null,null,null,null,null,1]
["",null,null,null,null,null,null,null,null,0,null,null,null,null,null,1]
["",null,null,null,null,null,null,null,null,0,null,null,null,null,null,1]
["",null,null,null,null,null,null,null,null,0,null,null,null,null,null,1]
["",null,null,null,null,null,null,null,null,0,null,null,null,null,null,1]
["",null,null,null,null,null,null,null,null,0,null,null,null,null,null,1]
["",null,null,null,null,null,null,null,null,0,null,null,null,null,null,1]
["",null,null,null,null,null,null,null,null,0,null,null,null,null,null,1]
["",null,null,null,null,null,null,null,null,0,null,null,null,null,null,1]
["",null,null,null,null,null,null,null,null,0,null,null,null,null,null,1]
["",null,null,null,null,null,null,null,null,0,null,null,null,null,null,1]
["",null,null,null,null,null,null,null,null,0,null,null,null,null,null,1]
["",null,null,null,null,null,null,null,null,0,null,null,null,null,null,1]
["",null,null,null,null,null,null,null,null,0,null,null,null,null,null,1]
["",null,null,null,null,null,null,null,null,0,null,null,null,null,null,1]
["",null,null,null,null,null,null,null,null,0,null,null,null,null,null,1]
["",null,null,null,null,null,null,null,null,0,null,null,null,null,null,1]
["",null,null,null,null,null,null,null,null,0,null,null,null,null,null,1]
[{"$f":"IF(B66=\"\",\"\",RIGHT(C66,4)&LEFT(B66,3)&E66-40000&\"-\"&LEFT(F66,3))","v":""},null,null,null,null,null,null,null,null,0,null,null,null,null,null,1]
["",null,null,null,null,null,null,null,null,0,null,null,null,null,null,1]
["",null,null,null,null,null,null,null,null,0,null,null,null,null,null,1]
["",null,null,null,null,null,null,null,null,0,null,null,null,null,null,1]
["",null,null,null,null,null,null,null,null,0,null,null,null,null,null,1]
["",null,null,null,null,null,null,null,null,0,null,null,null,null,null,1]
["",null,null,null,null,null,null,null,null,0,null,null,null,null,null,1]
["",null,null,null,null,null,null,null,null,0,null,null,null,null,null,1]
["",null,null,null,null,null,null,null,null,0,null,null,null,null,null,1]
["",null,null,null,null,null,null,null,null,0,null,null,null,null,null,1]
["",null,null,null,null,null,null,null,null,0,null,null,null,null,null,1]
["",null,null,null,null,null,null,null,null,0,null,null,null,null,null,1]
["",null,null,null,null,null,null,null,null,0,null,null,null,null,null,1]
["",null,null,null,null,null,null,null,null,0,null,null,null,null,null,1]
["",null,null,null,null,null,null,null,null,0,null,null,null,null,null,1]
["",null,null,null,null,null,null,null,null,0,null,null,null,null,null,1]
["",null,null,null,null,null,null,null,null,0,null,null,null,null,null,1]
["",null,null,null,null,null,null,null,null,0,null,null,null,null,null,1]
["",null,null,null,null,null,null,null,null,0,null,null,null,null,null,1]
["",null,null,null,null,null,null,null,null,0,null,null,null,null,null,1]
["",null,null,null,null,null,null,null,null,0,null,null,null,null,null,1]
["",null,null,null,null,null,null,null,null,0,null,null,null,null,null,1]
["",null,null,null,null,null,null,null,null,0,null,null,null,null,null,1]
["",null,null,null,null,null,null,null,null,0,null,null,null,null,null,1]
["",null,null,null,null,null,null,null,null,0,null,null,null,null,null,1]
["",null,null,null,null,null,null,null,null,0,null,null,null,null,null,1]
["",null,null,null,null,null,null,null,null,0,null,null,null,null,null,1]
["",null,null,null,null,null,null,null,null,0,null,null,null,null,null,1]
["",null,null,null,null,null,null,null,null,0,null,null,null,null,null,1]
["",null,null,null,null,null,null,null,null,0,null,null,null,null,null,1]
["",null,null,null,null,null,null,null,null,0,null,null,null,null,null,1]
["",null,null,null,null,null,null,null,null,0,null,null,null,null,null,1]
["",null,null,null,null,null,null,null,null,0,null,null,null,null,null,1]
["",null,null,null,null,null,null,null,null,0,null,null,null,null,null,1]
["",null,null,null,null,null,null,null,null,0,null,null,null,null,null,1]
["",null,null,null,null,null,null,null,null,{"$f":"I101*43560","v":0},null,null,null,null,null,1]
["",null,null,null,null,null,null,null,null,0,null,null,null,null,null,1]
["",null,null,null,null,null,null,null,null,0,null,null,null,null,null,1]
["",null,null,null,null,null,null,null,null,0,null,null,null,null,null,1]
["",null,null,null,null,null,null,null,null,0,null,null,null,null,null,1]
["",null,null,null,null,null,null,null,null,0,null,null,null,null,null,1]
["",null,null,null,null,null,null,null,null,0,null,null,null,null,null,1]
["",null,null,null,null,null,null,null,null,0,null,null,null,null,null,1]
["",null,null,null,null,null,null,null,null,0,null,null,null,null,null,1]
["",null,null,null,null,null,null,null,null,0,null,null,null,null,null,1]
["",null,null,null,null,null,null,null,null,0,null,null,null,null,null,1]
["",null,null,null,null,null,null,null,null,0,null,null,null,null,null,1]
["",null,null,null,null,null,null,null,null,0,null,null,null,null,null,1]
["",null,null,null,null,null,null,null,null,0,null,null,null,null,null,1]
["",null,null,null,null,null,null,null,null,0,null,null,null,null,null,1]
["",null,null,null,null,null,null,null,null,0,null,null,null,null,null,1]
["",null,null,null,null,null,null,null,null,0,null,null,null,null,null,1]
["",null,null,null,null,null,null,null,null,0,null,null,null,null,null,1]
["",null,null,null,null,null,null,null,null,0,null,null,null,null,null,1]
["",null,null,null,null,null,null,null,null,0,null,null,null,null,null,1]
["",null,null,null,null,null,null,null,null,0,null,null,null,null,null,1]
["",null,null,null,null,null,null,null,null,0,null,null,null,null,null,1]
["",null,null,null,null,null,null,null,null,0,null,null,null,null,null,1]
["",null,null,null,null,null,null,null,null,0,null,null,null,null,null,1]
["",null,null,null,null,null,null,null,null,0,null,null,null,null,null,1]
["",null,null,null,null,null,null,null,null,0,null,null,null,null,null,1]
["",null,null,null,null,null,null,null,null,0,null,null,null,null,null,1]
["",null,null,null,null,null,null,null,null,0,null,null,null,null,null,1]
["",null,null,null,null,null,null,null,null,0,null,null,null,null,null,1]
[{"$f":"IF(B130=\"\",\"\",RIGHT(C130,4)&LEFT(B130,3)&E130-40000&\"-\"&LEFT(F130,3))","v":""},null,null,null,null,null,null,null,null,0,null,null,null,null,null,1]
["",null,null,null,null,null,null,null,null,0,null,null,null,null,null,1]
["",null,null,null,null,null,null,null,null,0,null,null,null,null,null,1]
["",null,null,null,null,null,null,null,null,0,null,null,null,null,null,1]
["",null,null,null,null,null,null,null,null,0,null,null,null,null,null,1]
["",null,null,null,null,null,null,null,null,0,null,null,null,null,null,1]
["",null,null,null,null,null,null,null,null,0,null,null,null,null,null,1]
["",null,null,null,null,null,null,null,null,0,null,null,null,null,null,1]
["",null,null,null,null,null,null,null,null,0,null,null,null,null,null,1]
["",null,null,null,null,null,null,null,null,0,null,null,null,null,null,1]
["",null,null,null,null,null,null,null,null,0,null,null,null,null,null,1]
["",null,null,null,null,null,null,null,null,0,null,null,null,null,null,1]
["",null,null,null,null,null,null,null,null,0,null,null,null,null,null,1]
["",null,null,null,null,null,null,null,null,0,null,null,null,null,null,1]
["",null,null,null,null,null,null,null,null,0,null,null,null,null,null,1]
["",null,null,null,null,null,null,null,null,0,null,null,null,null,null,1]
["",null,null,null,null,null,null,null,null,0,null,null,null,null,null,1]
["",null,null,null,null,null,null,null,null,0,null,null,null,null,null,1]
["",null,null,null,null,null,null,null,null,0,null,null,null,null,null,1]
["",null,null,null,null,null,null,null,null,0,null,null,null,null,null,1]
["",null,null,null,null,null,null,null,null,0,null,null,null,null,null,1]
["",null,null,null,null,null,null,null,null,0,null,null,null,null,null,1]
["",null,null,null,null,null,null,null,null,0,null,null,null,null,null,1]
["",null,null,null,null,null,null,null,null,0,null,null,null,null,null,1]
["",null,null,null,null,null,null,null,null,0,null,null,null,null,null,1]
["",null,null,null,null,null,null,null,null,0,null,null,null,null,null,1]
["",null,null,null,null,null,null,null,null,0,null,null,null,null,null,1]
["",null,null,null,null,null,null,null,null,0,null,null,null,null,null,1]
["",null,null,null,null,null,null,null,null,0,null,null,null,null,null,1]
["",null,null,null,null,null,null,null,null,0,null,null,null,null,null,1]
["",null,null,null,null,null,null,null,null,0,null,null,null,null,null,1]
["",null,null,null,null,null,null,null,null,0,null,null,null,null,null,1]
["",null,null,null,null,null,null,null,null,0,null,null,null,null,null,1]
["",null,null,null,null,null,null,null,null,0,null,null,null,null,null,1]
["",null,null,null,null,null,null,null,null,0,null,null,null,null,null,1]
["",null,null,null,null,null,null,null,null,{"$f":"I165*43560","v":0},null,null,null,null,null,1]
["",null,null,null,null,null,null,null,null,0,null,null,null,null,null,1]
["",null,null,null,null,null,null,null,null,0,null,null,null,null,null,1]
["",null,null,null,null,null,null,null,null,0,null,null,null,null,null,1]
["",null,null,null,null,null,null,null,null,0,null,null,null,null,null,1]
["",null,null,null,null,null,null,null,null,0,null,null,null,null,null,1]
["",null,null,null,null,null,null,null,null,0,null,null,null,null,null,1]
["",null,null,null,null,null,null,null,null,0,null,null,null,null,null,1]
["",null,null,null,null,null,null,null,null,0,null,null,null,null,null,1]
["",null,null,null,null,null,null,null,null,0,null,null,null,null,null,1]
["",null,null,null,null,null,null,null,null,0,null,null,null,null,null,1]
["",null,null,null,null,null,null,null,null,0,null,null,null,null,null,1]
["",null,null,null,null,null,null,null,null,0,null,null,null,null,null,1]
["",null,null,null,null,null,null,null,null,0,null,null,null,null,null,1]
["",null,null,null,null,null,null,null,null,0,null,null,null,null,null,1]
["",null,null,null,null,null,null,null,null,0,null,null,null,null,null,1]
["",null,null,null,null,null,null,null,null,0,null,null,null,null,null,1]
["",null,null,null,null,null,null,null,null,0,null,null,null,null,null,1]
["",null,null,null,null,null,null,null,null,0,null,null,null,null,null,1]
["",null,null,null,null,null,null,null,null,0,null,null,null,null,null,1]
["",null,null,null,null,null,null,null,null,0,null,null,null,null,null,1]
["",null,null,null,null,null,null,null,null,0,null,null,null,null,null,1]
["",null,null,null,null,null,null,null,null,0,null,null,null,null,null,1]
["",null,null,null,null,null,null,null,null,0,null,null,null,null,null,1]
["",null,null,null,null,null,null,null,null,0,null,null,null,null,null,1]
["",null,null,null,null,null,null,null,null,0,null,null,null,null,null,1]
["",null,null,null,null,null,null,null,null,0,null,null,null,null,null,1]
["",null,null,null,null,null,null,null,null,0,null,null,null,null,null,1]
["",null,null,null,null,null,null,null,null,0,null,null,null,null,null,1]
[{"$f":"IF(B194=\"\",\"\",RIGHT(C194,4)&LEFT(B194,3)&E194-40000&\"-\"&LEFT(F194,3))","v":""},null,null,null,null,null,null,null,null,0,null,null,null,null,null,1]
["",null,null,null,null,null,null,null,null,0,null,null,null,null,null,1]
["",null,null,null,null,null,null,null,null,0,null,null,null,null,null,1]
["",null,null,null,null,null,null,null,null,0,null,null,null,null,null,1]
["",null,null,null,null,null,null,null,null,0,null,null,null,null,null,1]
["",null,null,null,null,null,null,null,null,0,null,null,null,null,null,1]
["",null,null,null,null,null,null,null,null,0,null,null,null,null,null,1]
["",null,null,null,null,null,null,null,null,0,null,null,null,null,null,1]
["",null,null,null,null,null,null,null,null,0,null,null,null,null,null,1]
["",null,null,null,null,null,null,null,null,0,null,null,null,null,null,1]
["",null,null,null,null,null,null,null,null,0,null,null,null,null,null,1]
["",null,null,null,null,null,null,null,null,0,null,null,null,null,null,1]
["",null,null,null,null,null,null,null,null,0,null,null,null,null,null,1]
["",null,null,null,null,null,null,null,null,0,null,null,null,null,null,1]
["",null,null,null,null,null,null,null,null,0,null,null,null,null,null,1]
["",null,null,null,null,null,null,null,null,0,null,null,null,null,null,1]
["",null,null,null,null,null,null,null,null,0,null,null,null,null,null,1]
["",null,null,null,null,null,null,null,null,0,null,null,null,null,null,1]
["",null,null,null,null,null,null,null,null,0,null,null,null,null,null,1]
["",null,null,null,null,null,null,null,null,0,null,null,null,null,null,1]
["",null,null,null,null,null,null,null,null,0,null,null,null,null,null,1]
["",null,null,null,null,null,null,null,null,0,null,null,null,null,null,1]
["",null,null,null,null,null,null,null,null,0,null,null,null,null,null,1]
["",null,null,null,null,null,null,null,null,0,null,null,null,null,null,1]
["",null,null,null,null,null,null,null,null,0,null,null,null,null,null,1]
["",null,null,null,null,null,null,null,null,0,null,null,null,null,null,1]
["",null,null,null,null,null,null,null,null,0,null,null,null,null,null,1]
["",null,null,null,null,null,null,null,null,0,null,null,null,null,null,1]
["",null,null,null,null,null,null,null,null,0,null,null,null,null,null,1]
["",null,null,null,null,null,null,null,null,0,null,null,null,null,null,1]
["",null,null,null,null,null,null,null,null,0,null,null,null,null,null,1]
["",null,null,null,null,null,null,null,null,0,null,null,null,null,null,1]
["",null,null,null,null,null,null,null,null,0,null,null,null,null,null,1]
["",null,null,null,null,null,null,null,null,0,null,null,null,null,null,1]
["",null,null,null,null,null,null,null,null,0,null,null,null,null,null,1]
["",null,null,null,null,null,null,null,null,{"$f":"I229*43560","v":0},null,null,null,null,null,1]
["",null,null,null,null,null,null,null,null,0,null,null,null,null,null,1]
["",null,null,null,null,null,null,null,null,0,null,null,null,null,null,1]
["",null,null,null,null,null,null,null,null,0,null,null,null,null,null,1]
["",null,null,null,null,null,null,null,null,0,null,null,null,null,null,1]
["",null,null,null,null,null,null,null,null,0,null,null,null,null,null,1]
["",null,null,null,null,null,null,null,null,0,null,null,null,null,null,1]
["",null,null,null,null,null,null,null,null,0,null,null,null,null,null,1]
["",null,null,null,null,null,null,null,null,0,null,null,null,null,null,1]
["",null,null,null,null,null,null,null,null,0,null,null,null,null,null,1]
["",null,null,null,null,null,null,null,null,0,null,null,null,null,null,1]
["",null,null,null,null,null,null,null,null,0,null,null,null,null,null,1]
["",null,null,null,null,null,null,null,null,0,null,null,null,null,null,1]
["",null,null,null,null,null,null,null,null,0,null,null,null,null,null,1]
["",null,null,null,null,null,null,null,null,0,null,null,null,null,null,1]
["",null,null,null,null,null,null,null,null,0,null,null,null,null,null,1]
["",null,null,null,null,null,null,null,null,0,null,null,null,null,null,1]
["",null,null,null,null,null,null,null,null,0,null,null,null,null,null,1]
["",null,null,null,null,null,null,null,null,0,null,null,null,null,null,1]
["",null,null,null,null,null,null,null,null,0,null,null,null,null,null,1]
["",null,null,null,null,null,null,null,null,0,null,null,null,null,null,1]
["",null,null,null,null,null,null,null,null,0,null,null,null,null,null,1]
["",null,null,null,null,null,null,null,null,0,null,null,null,null,null,1]
["",null,null,null,null,null,null,null,null,0,null,null,null,null,null,1]
["",null,null,null,null,null,null,null,null,0,null,null,null,null,null,1]
["",null,null,null,null,null,null,null,null,0,null,null,null,null,null,1]
["",null,null,null,null,null,null,null,null,0,null,null,null,null,null,1]
["",null,null,null,null,null,null,null,null,0,null,null,null,null,null,1]
["",null,null,null,null,null,null,null,null,0,null,null,null,null,null,1]
[{"$f":"IF(B258=\"\",\"\",RIGHT(C258,4)&LEFT(B258,3)&E258-40000&\"-\"&LEFT(F258,3))","v":""},null,null,null,null,null,null,null,null,0,null,null,null,null,null,1]
["",null,null,null,null,null,null,null,null,0,null,null,null,null,null,1]
["",null,null,null,null,null,null,null,null,0,null,null,null,null,null,1]
["",null,null,null,null,null,null,null,null,0,null,null,null,null,null,1]
["",null,null,null,null,null,null,null,null,0,null,null,null,null,null,1]
["",null,null,null,null,null,null,null,null,0,null,null,null,null,null,1]
["",null,null,null,null,null,null,null,null,0,null,null,null,null,null,1]
["",null,null,null,null,null,null,null,null,0,null,null,null,null,null,1]
["",null,null,null,null,null,null,null,null,0,null,null,null,null,null,1]
["",null,null,null,null,null,null,null,null,0,null,null,null,null,null,1]
["",null,null,null,null,null,null,null,null,0,null,null,null,null,null,1]
["",null,null,null,null,null,null,null,null,0,null,null,null,null,null,1]
["",null,null,null,null,null,null,null,null,0,null,null,null,null,null,1]
["",null,null,null,null,null,null,null,null,0,null,null,null,null,null,1]
["",null,null,null,null,null,null,null,null,0,null,null,null,null,null,1]
["",null,null,null,null,null,null,null,null,0,null,null,null,null,null,1]
["",null,null,null,null,null,null,null,null,0,null,null,null,null,null,1]
["",null,null,null,null,null,null,null,null,0,null,null,null,null,null,1]
["",null,null,null,null,null,null,null,null,0,null,null,null,null,null,1]
["",null,null,null,null,null,null,null,null,0,null,null,null,null,null,1]
["",null,null,null,null,null,null,null,null,0,null,null,null,null,null,1]
["",null,null,null,null,null,null,null,null,0,null,null,null,null,null,1]
["",null,null,null,null,null,null,null,null,0,null,null,null,null,null,1]
["",null,null,null,null,null,null,null,null,0,null,null,null,null,null,1]
["",null,null,null,null,null,null,null,null,0,null,null,null,null,null,1]
["",null,null,null,null,null,null,null,null,0,null,null,null,null,null,1]
["",null,null,null,null,null,null,null,null,0,null,null,null,null,null,1]
["",null,null,null,null,null,null,null,null,0,null,null,null,null,null,1]
["",null,null,null,null,null,null,null,null,0,null,null,null,null,null,1]
["",null,null,null,null,null,null,null,null,0,null,null,null,null,null,1]
["",null,null,null,null,null,null,null,null,0,null,null,null,null,null,1]
["",null,null,null,null,null,null,null,null,0,null,null,null,null,null,1]
["",null,null,null,null,null,null,null,null,0,null,null,null,null,null,1]
["",null,null,null,null,null,null,null,null,0,null,null,null,null,null,1]
["",null,null,null,null,null,null,null,null,0,null,null,null,null,null,1]
["",null,null,null,null,null,null,null,null,{"$f":"I293*43560","v":0},null,null,null,null,null,1]
["",null,null,null,null,null,null,null,null,0,null,null,null,null,null,1]
["",null,null,null,null,null,null,null,null,0,null,null,null,null,null,1]
["",null,null,null,null,null,null,null,null,0,null,null,null,null,null,1]
["",null,null,null,null,null,null,null,null,0,null,null,null,null,null,1]
["",null,null,null,null,null,null,null,null,0,null,null,null,null,null,1]
["",null,null,null,null,null,null,null,null,0,null,null,null,null,null,1]
["",null,null,null,null,null,null,null,null,0,null,null,null,null,null,1]
["",null,null,null,null,null,null,null,null,0,null,null,null,null,null,1]
["",null,null,null,null,null,null,null,null,0,null,null,null,null,null,1]
["",null,null,null,null,null,null,null,null,0,null,null,null,null,null,1]
["",null,null,null,null,null,null,null,null,0,null,null,null,null,null,1]
["",null,null,null,null,null,null,null,null,0,null,null,null,null,null,1]
["",null,null,null,null,null,null,null,null,0,null,null,null,null,null,1]
["",null,null,null,null,null,null,null,null,0,null,null,null,null,null,1]
["",null,null,null,null,null,null,null,null,0,null,null,null,null,null,1]
["",null,null,null,null,null,null,null,null,0,null,null,null,null,null,1]
["",null,null,null,null,null,null,null,null,0,null,null,null,null,null,1]
["",null,null,null,null,null,null,null,null,0,null,null,null,null,null,1]
["",null,null,null,null,null,null,null,null,0,null,null,null,null,null,1]
["",null,null,null,null,null,null,null,null,0,null,null,null,null,null,1]
["",null,null,null,null,null,null,null,null,0,null,null,null,null,null,1]
["",null,null,null,null,null,null,null,null,0,null,null,null,null,null,1]
["",null,null,null,null,null,null,null,null,0,null,null,null,null,null,1]
["",null,null,null,null,null,null,null,null,0,null,null,null,null,null,1]
["",null,null,null,null,null,null,null,null,0,null,null,null,null,null,1]
["",null,null,null,null,null,null,null,null,0,null,null,null,null,null,1]
["",null,null,null,null,null,null,null,null,0,null,null,null,null,null,1]
["",null,null,null,null,null,null,null,null,0,null,null,null,null,null,1]
[{"$f":"IF(B322=\"\",\"\",RIGHT(C322,4)&LEFT(B322,3)&E322-40000&\"-\"&LEFT(F322,3))","v":""},null,null,null,null,null,null,null,null,0,null,null,null,null,null,1]
["",null,null,null,null,null,null,null,null,0,null,null,null,null,null,1]
["",null,null,null,null,null,null,null,null,0,null,null,null,null,null,1]
["",null,null,null,null,null,null,null,null,0,null,null,null,null,null,1]
["",null,null,null,null,null,null,null,null,0,null,null,null,null,null,1]
["",null,null,null,null,null,null,null,null,0,null,null,null,null,null,1]
["",null,null,null,null,null,null,null,null,0,null,null,null,null,null,1]
["",null,null,null,null,null,null,null,null,0,null,null,null,null,null,1]
["",null,null,null,null,null,null,null,null,0,null,null,null,null,null,1]
["",null,null,null,null,null,null,null,null,0,null,null,null,null,null,1]
["",null,null,null,null,null,null,null,null,0,null,null,null,null,null,1]
["",null,null,null,null,null,null,null,null,0,null,null,null,null,null,1]
["",null,null,null,null,null,null,null,null,0,null,null,null,null,null,1]
["",null,null,null,null,null,null,null,null,0,null,null,null,null,null,1]
["",null,null,null,null,null,null,null,null,0,null,null,null,null,null,1]
["",null,null,null,null,null,null,null,null,0,null,null,null,null,null,1]
["",null,null,null,null,null,null,null,null,0,null,null,null,null,null,1]
["",null,null,null,null,null,null,null,null,0,null,null,null,null,null,1]
["",null,null,null,null,null,null,null,null,0,null,null,null,null,null,1]
["",null,null,null,null,null,null,null,null,0,null,null,null,null,null,1]
["",null,null,null,null,null,null,null,null,0,null,null,null,null,null,1]
["",null,null,null,null,null,null,null,null,0,null,null,null,null,null,1]
["",null,null,null,null,null,null,null,null,0,null,null,null,null,null,1]
["",null,null,null,null,null,null,null,null,0,null,null,null,null,null,1]
["",null,null,null,null,null,null,null,null,0,null,null,null,null,null,1]
["",null,null,null,null,null,null,null,null,0,null,null,null,null,null,1]
["",null,null,null,null,null,null,null,null,0,null,null,null,null,null,1]
["",null,null,null,null,null,null,null,null,0,null,null,null,null,null,1]
["",null,null,null,null,null,null,null,null,0,null,null,null,null,null,1]
["",null,null,null,null,null,null,null,null,0,null,null,null,null,null,1]
["",null,null,null,null,null,null,null,null,0,null,null,null,null,null,1]
["",null,null,null,null,null,null,null,null,0,null,null,null,null,null,1]
["",null,null,null,null,null,null,null,null,0,null,null,null,null,null,1]
["",null,null,null,null,null,null,null,null,0,null,null,null,null,null,1]
["",null,null,null,null,null,null,null,null,0,null,null,null,null,null,1]
["",null,null,null,null,null,null,null,null,{"$f":"I357*43560","v":0},null,null,null,null,null,1]
["",null,null,null,null,null,null,null,null,0,null,null,null,null,null,1]
["",null,null,null,null,null,null,null,null,0,null,null,null,null,null,1]
["",null,null,null,null,null,null,null,null,0,null,null,null,null,null,1]
["",null,null,null,null,null,null,null,null,0,null,null,null,null,null,1]
["",null,null,null,null,null,null,null,null,0,null,null,null,null,null,1]
["",null,null,null,null,null,null,null,null,0,null,null,null,null,null,1]
["",null,null,null,null,null,null,null,null,0,null,null,null,null,null,1]
["",null,null,null,null,null,null,null,null,0,null,null,null,null,null,1]
["",null,null,null,null,null,null,null,null,0,null,null,null,null,null,1]
["",null,null,null,null,null,null,null,null,0,null,null,null,null,null,1]
["",null,null,null,null,null,null,null,null,0,null,null,null,null,null,1]
["",null,null,null,null,null,null,null,null,0,null,null,null,null,null,1]
["",null,null,null,null,null,null,null,null,0,null,null,null,null,null,1]
["",null,null,null,null,null,null,null,null,0,null,null,null,null,null,1]
["",null,null,null,null,null,null,null,null,0,null,null,null,null,null,1]
["",null,null,null,null,null,null,null,null,0,null,null,null,null,null,1]
["",null,null,null,null,null,null,null,null,0,null,null,null,null,null,1]
["",null,null,null,null,null,null,null,null,0,null,null,null,null,null,1]
["",null,null,null,null,null,null,null,null,0,null,null,null,null,null,1]
["",null,null,null,null,null,null,null,null,0,null,null,null,null,null,1]
["",null,null,null,null,null,null,null,null,0,null,null,null,null,null,1]
["",null,null,null,null,null,null,null,null,0,null,null,null,null,null,1]
["",null,null,null,null,null,null,null,null,0,null,null,null,null,null,1]
["",null,null,null,null,null,null,null,null,0,null,null,null,null,null,1]
["",null,null,null,null,null,null,null,null,0,null,null,null,null,null,1]
["",null,null,null,null,null,null,null,null,0,null,null,null,null,null,1]
["",null,null,null,null,null,null,null,null,0,null,null,null,null,null,1]
["",null,null,null,null,null,null,null,null,0,null,null,null,null,null,1]
[{"$f":"IF(B386=\"\",\"\",RIGHT(C386,4)&LEFT(B386,3)&E386-40000&\"-\"&LEFT(F386,3))","v":""},null,null,null,null,null,null,null,null,0,null,null,null,null,null,1]
["",null,null,null,null,null,null,null,null,0,null,null,null,null,null,1]
["",null,null,null,null,null,null,null,null,0,null,null,null,null,null,1]
["",null,null,null,null,null,null,null,null,0,null,null,null,null,null,1]
["",null,null,null,null,null,null,null,null,0,null,null,null,null,null,1]
["",null,null,null,null,null,null,null,null,0,null,null,null,null,null,1]
["",null,null,null,null,null,null,null,null,0,null,null,null,null,null,1]
["",null,null,null,null,null,null,null,null,0,null,null,null,null,null,1]
["",null,null,null,null,null,null,null,null,0,null,null,null,null,null,1]
["",null,null,null,null,null,null,null,null,0,null,null,null,null,null,1]
["",null,null,null,null,null,null,null,null,0,null,null,null,null,null,1]
["",null,null,null,null,null,null,null,null,0,null,null,null,null,null,1]
["",null,null,null,null,null,null,null,null,0,null,null,null,null,null,1]
["",null,null,null,null,null,null,null,null,0,null,null,null,null,null,1]
["",null,null,null,null,null,null,null,null,0,null,null,null,null,null,1]
["",null,null,null,null,null,null,null,null,0,null,null,null,null,null,1]
["",null,null,null,null,null,null,null,null,0,null,null,null,null,null,1]
["",null,null,null,null,null,null,null,null,0,null,null,null,null,null,1]
["",null,null,null,null,null,null,null,null,0,null,null,null,null,null,1]
["",null,null,null,null,null,null,null,null,0,null,null,null,null,null,1]
["",null,null,null,null,null,null,null,null,0,null,null,null,null,null,1]
["",null,null,null,null,null,null,null,null,0,null,null,null,null,null,1]
["",null,null,null,null,null,null,null,null,0,null,null,null,null,null,1]
["",null,null,null,null,null,null,null,null,0,null,null,null,null,null,1]
["",null,null,null,null,null,null,null,null,0,null,null,null,null,null,1]
["",null,null,null,null,null,null,null,null,0,null,null,null,null,null,1]
["",null,null,null,null,null,null,null,null,0,null,null,null,null,null,1]
["",null,null,null,null,null,null,null,null,0,null,null,null,null,null,1]
["",null,null,null,null,null,null,null,null,0,null,null,null,null,null,1]
["",null,null,null,null,null,null,null,null,0,null,null,null,null,null,1]
["",null,null,null,null,null,null,null,null,0,null,null,null,null,null,1]
["",null,null,null,null,null,null,null,null,0,null,null,null,null,null,1]
["",null,null,null,null,null,null,null,null,0,null,null,null,null,null,1]
["",null,null,null,null,null,null,null,null,0,null,null,null,null,null,1]
["",null,null,null,null,null,null,null,null,0,null,null,null,null,null,1]
["",null,null,null,null,null,null,null,null,{"$f":"I421*43560","v":0},null,null,null,null,null,1]
["",null,null,null,null,null,null,null,null,0,null,null,null,null,null,1]
["",null,null,null,null,null,null,null,null,0,null,null,null,null,null,1]
["",null,null,null,null,null,null,null,null,0,null,null,null,null,null,1]
["",null,null,null,null,null,null,null,null,0,null,null,null,null,null,1]
["",null,null,null,null,null,null,null,null,0,null,null,null,null,null,1]
["",null,null,null,null,null,null,null,null,0,null,null,null,null,null,1]
["",null,null,null,null,null,null,null,null,0,null,null,null,null,null,1]
["",null,null,null,null,null,null,null,null,0,null,null,null,null,null,1]
["",null,null,null,null,null,null,null,null,0,null,null,null,null,null,1]
["",null,null,null,null,null,null,null,null,0,null,null,null,null,null,1]
["",null,null,null,null,null,null,null,null,0,null,null,null,null,null,1]
["",null,null,null,null,null,null,null,null,0,null,null,null,null,null,1]
["",null,null,null,null,null,null,null,null,0,null,null,null,null,null,1]
["",null,null,null,null,null,null,null,null,0,null,null,null,null,null,1]
["",null,null,null,null,null,null,null,null,0,null,null,null,null,null,1]
["",null,null,null,null,null,null,null,null,0,null,null,null,null,null,1]
["",null,null,null,null,null,null,null,null,0,null,null,null,null,null,1]
["",null,null,null,null,null,null,null,null,0,null,null,null,null,null,1]
["",null,null,null,null,null,null,null,null,0,null,null,null,null,null,1]
["",null,null,null,null,null,null,null,null,0,null,null,null,null,null,1]
["",null,null,null,null,null,null,null,null,0,null,null,null,null,null,1]
["",null,null,null,null,null,null,null,null,0,null,null,null,null,null,1]
["",null,null,null,null,null,null,null,null,0,null,null,null,null,null,1]
["",null,null,null,null,null,null,null,null,0,null,null,null,null,null,1]
["",null,null,null,null,null,null,null,null,0,null,null,null,null,null,1]
["",null,null,null,null,null,null,null,null,0,null,null,null,null,null,1]
["",null,null,null,null,null,null,null,null,0,null,null,null,null,null,1]
["",null,null,null,null,null,null,null,null,0,null,null,null,null,null,1]
[{"$f":"IF(B450=\"\",\"\",RIGHT(C450,4)&LEFT(B450,3)&E450-40000&\"-\"&LEFT(F450,3))","v":""},null,null,null,null,null,null,null,null,0,null,null,null,null,null,1]
["",null,null,null,null,null,null,null,null,0,null,null,null,null,null,1]
["",null,null,null,null,null,null,null,null,0,null,null,null,null,null,1]
["",null,null,null,null,null,null,null,null,0,null,null,null,null,null,1]
["",null,null,null,null,null,null,null,null,0,null,null,null,null,null,1]
["",null,null,null,null,null,null,null,null,0,null,null,null,null,null,1]
["",null,null,null,null,null,null,null,null,0,null,null,null,null,null,1]
["",null,null,null,null,null,null,null,null,0,null,null,null,null,null,1]
["",null,null,null,null,null,null,null,null,0,null,null,null,null,null,1]
["",null,null,null,null,null,null,null,null,0,null,null,null,null,null,1]
["",null,null,null,null,null,null,null,null,0,null,null,null,null,null,1]
["",null,null,null,null,null,null,null,null,0,null,null,null,null,null,1]
["",null,null,null,null,null,null,null,null,0,null,null,null,null,null,1]
["",null,null,null,null,null,null,null,null,0,null,null,null,null,null,1]
["",null,null,null,null,null,null,null,null,0,null,null,null,null,null,1]
["",null,null,null,null,null,null,null,null,0,null,null,null,null,null,1]
["",null,null,null,null,null,null,null,null,0,null,null,null,null,null,1]
["",null,null,null,null,null,null,null,null,0,null,null,null,null,null,1]
["",null,null,null,null,null,null,null,null,0,null,null,null,null,null,1]
["",null,null,null,null,null,null,null,null,0,null,null,null,null,null,1]
["",null,null,null,null,null,null,null,null,0,null,null,null,null,null,1]
["",null,null,null,null,null,null,null,null,0,null,null,null,null,null,1]
["",null,null,null,null,null,null,null,null,0,null,null,null,null,null,1]
["",null,null,null,null,null,null,null,null,0,null,null,null,null,null,1]
["",null,null,null,null,null,null,null,null,0,null,null,null,null,null,1]
["",null,null,null,null,null,null,null,null,0,null,null,null,null,null,1]
["",null,null,null,null,null,null,null,null,0,null,null,null,null,null,1]
["",null,null,null,null,null,null,null,null,0,null,null,null,null,null,1]
["",null,null,null,null,null,null,null,null,0,null,null,null,null,null,1]
["",null,null,null,null,null,null,null,null,0,null,null,null,null,null,1]
["",null,null,null,null,null,null,null,null,0,null,null,null,null,null,1]
["",null,null,null,null,null,null,null,null,0,null,null,null,null,null,1]
["",null,null,null,null,null,null,null,null,0,null,null,null,null,null,1]
["",null,null,null,null,null,null,null,null,0,null,null,null,null,null,1]
["",null,null,null,null,null,null,null,null,0,null,null,null,null,null,1]
["",null,null,null,null,null,null,null,null,{"$f":"I485*43560","v":0},null,null,null,null,null,1]
["",null,null,null,null,null,null,null,null,0,null,null,null,null,null,1]
["",null,null,null,null,null,null,null,null,0,null,null,null,null,null,1]
["",null,null,null,null,null,null,null,null,0,null,null,null,null,null,1]
["",null,null,null,null,null,null,null,null,0,null,null,null,null,null,1]
["",null,null,null,null,null,null,null,null,0,null,null,null,null,null,1]
["",null,null,null,null,null,null,null,null,0,null,null,null,null,null,1]
["",null,null,null,null,null,null,null,null,0,null,null,null,null,null,1]
["",null,null,null,null,null,null,null,null,0,null,null,null,null,null,1]
["",null,null,null,null,null,null,null,null,0,null,null,null,null,null,1]
["",null,null,null,null,null,null,null,null,0,null,null,null,null,null,1]
["",null,null,null,null,null,null,null,null,0,null,null,null,null,null,1]
["",null,null,null,null,null,null,null,null,0,null,null,null,null,null,1]
["",null,null,null,null,null,null,null,null,0,null,null,null,null,null,1]
["",null,null,null,null,null,null,null,null,0,null,null,null,null,null,1]
["",null,null,null,null,null,null,null,null,0,null,null,null,null,null,1]
["",null,null,null,null,null,null,null,null,0,null,null,null,null,null,1]

{"sheet":"Time Adjustment","index":3,"n_rows":516,"n_cols":20,"rows_kept":516,"cut":false,"hidden":false,"merged":[[14,3,14,9],[13,14,13,17],[9,18,10,18],[9,19,10,19],[11,15,12,15],[11,16,12,16],[11,17,12,17],[11,18,12,18],[11,19,12,19],[9,15,10,15],[9,16,10,16],[9,17,10,17],[5,15,6,15],[5,16,6,16],[5,17,6,17],[5,18,6,18],[5,19,6,19],[7,15,8,15],[7,16,8,16],[7,17,8,17],[7,18,8,18],[7,19,8,19],[1,15,2,15],[1,16,2,16],[1,17,2,17],[1,18,2,18],[1,19,2,19],[3,15,4,15],[3,16,4,16],[3,17,4,17],[3,18,4,18],[3,19,4,19],[11,0,12,0],[1,0,2,0],[3,0,4,0],[5,0,6,0],[7,0,8,0],[9,0,10,0]]}
["Pair\nGroup","Item\nID","Helper","Valuation\nMethod","Parcel\nNumber","Address","Sale\nDate","Sale\nPrice","Residual\nAcre","Front\nFt","Imprvmts\nValue","Land\nResidual","Indicated\nLB Ratio","Unadjusted\n$ / acre","Unadjusted\n$ / Sq Ft","# of\nDays","# of\nMonths","%\nChange","% per\nMonth","% per\nYear"]
[1,{"$f":"IFERROR(INDEX(B$17:B$1000,SMALL(IF($A$17:$A$1000=$A2,ROW($A$17:$A$1000)-ROW(INDEX($A$17:$A$1000,1,1))+1),1)),\"\")","v":"0-00All1829-364"},1.01,{"$f":"IFERROR(VLOOKUP($C2,$C$17:$O$516,2,FALSE),\"\")","v":"Allocation"},{"$f":"IFERROR(VLOOKUP($C2,$C$17:$O$516,3,FALSE),\"\")","v":"34-300-110-000-070-00"},{"$f":"IFERROR(VLOOKUP($C2,$C$17:$O$516,4,FALSE),\"\")","v":"1320 E. Grand River Ave"},{"$f":"IFERROR(VLOOKUP($C2,$C$17:$O$516,5,FALSE),\"\")","v":41829},{"$f":"IFERROR(VLOOKUP($C2,$C$17:$O$516,6,FALSE),\"\")","v":364600},{"$f":"IFERROR(VLOOKUP($C2,$C$17:$O$516,7,FALSE),\"\")","v":0.64100000000000001},{"$f":"IFERROR(VLOOKUP($C2,$C$17:$O$516,8,FALSE),\"\")","v":275},{"$f":"IFERROR(VLOOKUP($C2,$C$17:$O$516,9,FALSE),\"\")","v":0},{"$f":"IFERROR(VLOOKUP($C2,$C$17:$O$516,10,FALSE),\"\")","v":147407.78},{"$f":"IFERROR(VLOOKUP($C2,$C$17:$O$516,11,FALSE),\"\")","v":0.40429999999999999},{"$f":"IFERROR(VLOOKUP($C2,$C$17:$O$516,12,FALSE),\"\")","v":229965.33541341653},{"$f":"IFERROR(VLOOKUP($C2,$C$17:$O$516,13,FALSE),\"\")","v":5.28},{"$f":"IFERROR(ABS(DAYS360(G2,G3)),\"\")","v":2968},{"$f":"IFERROR(ROUND(P2/30,0),\"\")","v":99},{"$f":"IFERROR(IF(G2>G3,(N2-N3)/N3,(N3-N2)/N2),\"\")","v":0.15113105033565821},{"$f":"IFERROR(R2/Q2,\"\")","v":1.5265762660167496E-3},{"$f":"IFERROR(S2*12,\"\")","v":1.8318915192200996E-2}]
[null,{"$f":"IFERROR(INDEX(B$17:B$1000,SMALL(IF($A$17:$A$1000=$A2,ROW($A$17:$A$1000)-ROW(INDEX($A$17:$A$1000,1,1))+1),2)),\"\")","v":"5-10All4841-330"},1.02,{"$f":"IFERROR(VLOOKUP($C3,$C$17:$O$516,2,FALSE),\"\")","v":"Allocation"},{"$f":"IFERROR(VLOOKUP($C3,$C$17:$O$516,3,FALSE),\"\")","v":"34-401-250-000-335-10"},{"$f":"IFERROR(VLOOKUP($C3,$C$17:$O$516,4,FALSE),\"\")","v":"1525 W State St"},{"$f":"IFERROR(VLOOKUP($C3,$C$17:$O$516,5,FALSE),\"\")","v":44841},{"$f":"IFERROR(VLOOKUP($C3,$C$17:$O$516,6,FALSE),\"\")","v":330000},{"$f":"IFERROR(VLOOKUP($C3,$C$17:$O$516,7,FALSE),\"\")","v":0.504},{"$f":"IFERROR(VLOOKUP($C3,$C$17:$O$516,8,FALSE),\"\")","v":249.36},{"$f":"IFERROR(VLOOKUP($C3,$C$17:$O$516,9,FALSE),\"\")","v":0},{"$f":"IFERROR(VLOOKUP($C3,$C$17:$O$516,10,FALSE),\"\")","v":133419},{"$f":"IFERROR(VLOOKUP($C3,$C$17:$O$516,11,FALSE),\"\")","v":0.40429999999999999},{"$f":"IFERROR(VLOOKUP($C3,$C$17:$O$516,12,FALSE),\"\")","v":264720.23809523811},{"$f":"IFERROR(VLOOKUP($C3,$C$17:$O$516,13,FALSE),\"\")","v":6.08}]
[2,{"$f":"IFERROR(INDEX(B$17:B$1000,SMALL(IF($A$17:$A$1000=$A4,ROW($A$17:$A$1000)-ROW(INDEX($A$17:$A$1000,1,1))+1),1)),\"\")","v":"5-26Vac4848-325"},2.0099999999999998,"Vacant","060-031-000-115-26","2615 S State Rd",44848,325000,1.325,202.64,0,325000,"N/A",245283.01886792455,5.63,{"$f":"IFERROR(ABS(DAYS360(G4,G5)),\"\")","v":1784},{"$f":"IFERROR(ROUND(P4/30,0),\"\")","v":59},{"$f":"IFERROR(IF(G4>G5,(N4-N5)/N5,(N5-N4)/N4),\"\")","v":0.10837264150943395},{"$f":"IFERROR(R4/Q4,\"\")","v":1.8368244323632872E-3},{"$f":"IFERROR(S4*12,\"\")","v":2.2041893188359446E-2}]
[null,{"$f":"IFERROR(INDEX(B$17:B$1000,SMALL(IF($A$17:$A$1000=$A4,ROW($A$17:$A$1000)-ROW(INDEX($A$17:$A$1000,1,1))+1),2)),\"\")","v":"0-00Vac3038-320"},2.02,"Vacant","34-060-140-000-020-00","2731 State Rd Ionia",43038,320000,1.446,300,0,320000,"N/A",221300.13831258647,5.08]
[3,{"$f":"IFERROR(INDEX(B$17:B$1000,SMALL(IF($A$17:$A$1000=$A6,ROW($A$17:$A$1000)-ROW(INDEX($A$17:$A$1000,1,1))+1),1)),\"\")","v":"0-01Abs4861-122"},3.01,"Abstraction","300-110-000-070-01","1320 E Grand River Ave",44861,1225000,1,144,1021225,203775,0.16634693877551021,203775,4.68,{"$f":"IFERROR(ABS(DAYS360(G6,G7)),\"\")","v":3251},{"$f":"IFERROR(ROUND(P6/30,0),\"\")","v":108},{"$f":"IFERROR(IF(G6>G7,(N6-N7)/N7,(N7-N6)/N6),\"\")","v":0.1574780976220275},{"$f":"IFERROR(R6/Q6,\"\")","v":1.4581305335372916E-3},{"$f":"IFERROR(S6*12,\"\")","v":1.7497566402447498E-2}]
[null,{"$f":"IFERROR(INDEX(B$17:B$1000,SMALL(IF($A$17:$A$1000=$A6,ROW($A$17:$A$1000)-ROW(INDEX($A$17:$A$1000,1,1))+1),2)),\"\")","v":"5-00Abs1563-200"},3.02,"Abstraction","34-060-006-000-095-00","2260 M-66",41563,200000,0.94399999999999995,235,33808,166192,0.83096000000000003,176050.84745762713,4.04]
[4,{"$f":"IFERROR(INDEX(B$17:B$1000,SMALL(IF($A$17:$A$1000=$A8,ROW($A$17:$A$1000)-ROW(INDEX($A$17:$A$1000,1,1))+1),1)),\"\")","v":""},4.01,"","","","","","","","","","","","",{"$f":"IFERROR(ABS(DAYS360(G8,G9)),\"\")","v":""},{"$f":"IFERROR(ROUND(P8/30,0),\"\")","v":""},{"$f":"IFERROR(IF(G8>G9,(N8-N9)/N9,(N9-N8)/N8),\"\")","v":""},{"$f":"IFERROR(R8/Q8,\"\")","v":""},{"$f":"IFERROR(S8*12,\"\")","v":""}]
[null,{"$f":"IFERROR(INDEX(B$17:B$1000,SMALL(IF($A$17:$A$1000=$A8,ROW($A$17:$A$1000)-ROW(INDEX($A$17:$A$1000,1,1))+1),2)),\"\")","v":""},4.0199999999999996,"","","","","","","","","","","",""]
[5,{"$f":"IFERROR(INDEX(B$17:B$1000,SMALL(IF($A$17:$A$1000=$A10,ROW($A$17:$A$1000)-ROW(INDEX($A$17:$A$1000,1,1))+1),1)),\"\")","v":""},5.01,"","","","","","","","","","","","",{"$f":"IFERROR(ABS(DAYS360(G10,G11)),\"\")","v":""},{"$f":"IFERROR(ROUND(P10/30,0),\"\")","v":""},{"$f":"IFERROR(IF(G10>G11,(N10-N11)/N11,(N11-N10)/N10),\"\")","v":""},{"$f":"IFERROR(R10/Q10,\"\")","v":""},{"$f":"IFERROR(S10*12,\"\")","v":""}]
[null,{"$f":"IFERROR(INDEX(B$17:B$1000,SMALL(IF($A$17:$A$1000=$A10,ROW($A$17:$A$1000)-ROW(INDEX($A$17:$A$1000,1,1))+1),2)),\"\")","v":""},5.0199999999999996,"","","","","","","","","","","",""]
[6,{"$f":"IFERROR(INDEX(B$17:B$1000,SMALL(IF($A$17:$A$1000=$A12,ROW($A$17:$A$1000)-ROW(INDEX($A$17:$A$1000,1,1))+1),1)),\"\")","v":""},6.01,"","","","","","","","","","","","",{"$f":"IFERROR(ABS(DAYS360(G12,G13)),\"\")","v":""},{"$f":"IFERROR(ROUND(P12/30,0),\"\")","v":""},{"$f":"IFERROR(IF(G12>G13,(N12-N13)/N13,(N13-N12)/N12),\"\")","v":""},{"$f":"IFERROR(R12/Q12,\"\")","v":""},{"$f":"IFERROR(S12*12,\"\")","v":""}]
[null,{"$f":"IFERROR(INDEX(B$17:B$1000,SMALL(IF($A$17:$A$1000=$A12,ROW($A$17:$A$1000)-ROW(INDEX($A$17:$A$1000,1,1))+1),2)),\"\")","v":""},6.02,"","","","","","","","","","","",""]
[null,null,null,null,null,null,null,null,null,null,null,null,null,null,"Indicated % time adjustment per month:",null,null,null,{"$f":"SUM($R$2:$R$13)/SUM($Q$2:$Q$13)","v":1.5676007122824047E-3}]
[null,"Designate sale pairings here. Assign the same group number to two sales you wish to pair.",null,"Designate sale pairings here. Assign the same group number to two sales you wish to pair.",null,null,null,null,null,null,null,null,null,null,"*If all sales are within the study time period, a time adjustment does not need to be calculated."]
["Pair\nGroup","Item ID","Helper","Valuation\nMethod","Parcel\nNumber","Address","Sale\nDate","Sale\nPrice","Residual\nAcre","Front\nFt","Imprvmts\nValue","Land\nResidual","Indicated\nLB Ratio","Unadjusted\n$ / acre","Unadjusted\n$ / Sq Ft"]
[{"$f":"VLOOKUP($B17,Data_Table[],18,FALSE)","v":0},"1-10Abs2697-194",{"$f":"Table_Data_Table_12[[#This Row],[Pair\nGroup]]+(COUNTIF($A$17:$A17,A17)*0.01)","v":0.01},{"$f":"VLOOKUP($B17,DataTable,2,FALSE)","v":"Abstraction"},{"$f":"VLOOKUP($B17,DataTable,3,FALSE)","v":"34-203-240-000-191-10"},{"$f":"VLOOKUP($B17,DataTable,4,FALSE)","v":"1011 E Main St"},{"$f":"VLOOKUP($B17,DataTable,5,FALSE)","v":42697},{"$f":"VLOOKUP($B17,DataTable,6,FALSE)","v":194500},{"$f":"ROUND((VLOOKUP($B17,DataTable,10,FALSE)-VLOOKUP($B17,DataTable,12,FALSE))/43560,3)","v":6.08},{"$f":"VLOOKUP($B17,DataTable,11,FALSE)","v":171.43},{"$f":"VLOOKUP($B17,DataTable,13,FALSE)","v":142256},{"$f":"VLOOKUP($B17,Analysis_Table,8,FALSE)","v":52244},{"$f":"VLOOKUP($B17,Analysis_Table,9,FALSE)","v":0.26860668380462727},{"$f":"L17/I17","v":8592.7631578947367},{"$f":"ROUND(L17/(VLOOKUP($B17,DataTable,10,FALSE)-VLOOKUP($B17,DataTable,12,FALSE)),2)","v":0.2}]
[{"$f":"VLOOKUP($B18,Data_Table[],18,FALSE)","v":0},"1-10All2697-194",{"$f":"Table_Data_Table_12[[#This Row],[Pair\nGroup]]+(COUNTIF($A$17:$A18,A18)*0.01)","v":0.02},"Allocation","34-203-240-000-191-10","1011 E Main St",42697,194500,6.08,171.43,0,78636.350000000006,0.40429999999999999,12933.610197368422,0.3]
[{"$f":"VLOOKUP($B19,Data_Table[],18,FALSE)","v":3},"0-01Abs4861-122",{"$f":"Table_Data_Table_12[[#This Row],[Pair\nGroup]]+(COUNTIF($A$17:$A19,A19)*0.01)","v":3.01},"Abstraction","300-110-000-070-01","1320 E Grand River Ave",44861,1225000,1,144,1021225,203775,0.16634693877551021,203775,4.68]
[{"$f":"VLOOKUP($B20,Data_Table[],18,FALSE)","v":0},"0-01All4861-122",{"$f":"Table_Data_Table_12[[#This Row],[Pair\nGroup]]+(COUNTIF($A$17:$A20,A20)*0.01)","v":0.03},"Allocation","300-110-000-070-01","1320 E Grand River Ave",44861,1225000,1,144,0,495267.5,0.40429999999999999,495267.5,11.37]
[{"$f":"VLOOKUP($B21,Data_Table[],18,FALSE)","v":0},"0-00Abs1829-364",{"$f":"Table_Data_Table_12[[#This Row],[Pair\nGroup]]+(COUNTIF($A$17:$A21,A21)*0.01)","v":0.04},"Abstraction","34-300-110-000-070-00","1320 E. Grand River Ave",41829,364600,0.64100000000000001,275,228195,136405,0.37412232583653321,212800.31201248048,4.8899999999999997]
[{"$f":"VLOOKUP($B22,Data_Table[],18,FALSE)","v":1},"0-00All1829-364",{"$f":"Table_Data_Table_12[[#This Row],[Pair\nGroup]]+(COUNTIF($A$17:$A22,A22)*0.01)","v":1.01},"Allocation","34-300-110-000-070-00","1320 E. Grand River Ave",41829,364600,0.64100000000000001,275,0,147407.78,0.40429999999999999,229965.33541341653,5.28]
[{"$f":"VLOOKUP($B23,Data_Table[],18,FALSE)","v":0},"0-00Abs3538-535",{"$f":"Table_Data_Table_12[[#This Row],[Pair\nGroup]]+(COUNTIF($A$17:$A23,A23)*0.01)","v":0.05},"Abstraction","34-300-110-000-050-00","1328 E Grand River Ave",43538,535000,0.63,225,298263,236737,0.44249906542056072,375773.01587301586,8.6300000000000008]
[{"$f":"VLOOKUP($B24,Data_Table[],18,FALSE)","v":0},"0-00All3538-535",{"$f":"Table_Data_Table_12[[#This Row],[Pair\nGroup]]+(COUNTIF($A$17:$A24,A24)*0.01)","v":0.06},"Allocation","34-300-110-000-050-00","1328 E Grand River Ave",43538,535000,0.63,225,0,216300.5,0.40429999999999999,343334.12698412698,7.88]
[{"$f":"VLOOKUP($B25,Data_Table[],18,FALSE)","v":0},"5-00Abs3808-610",{"$f":"Table_Data_Table_12[[#This Row],[Pair\nGroup]]+(COUNTIF($A$17:$A25,A25)*0.01)","v":7.0000000000000007E-2},"Abstraction","34-401-250-000-365-00","1331 W State St",43808,610000,16.46,151,226879,383121,0.62806721311475411,23275.88092345079,0.53]
[{"$f":"VLOOKUP($B26,Data_Table[],18,FALSE)","v":0},"5-00All3808-610",{"$f":"Table_Data_Table_12[[#This Row],[Pair\nGroup]]+(COUNTIF($A$17:$A26,A26)*0.01)","v":0.08},"Allocation","34-401-250-000-365-00","1331 W State St",43808,610000,16.46,151,0,246623,0.40429999999999999,14983.171324422843,0.34]
[{"$f":"VLOOKUP($B27,Data_Table[],18,FALSE)","v":0},"5-00Abs3439-338",{"$f":"Table_Data_Table_12[[#This Row],[Pair\nGroup]]+(COUNTIF($A$17:$A27,A27)*0.01)","v":0.09},"Abstraction","34-401-250-000-365-00","1331 W State St",43439,338000,16.46,151,129314,208686,0.61741420118343193,12678.371810449575,0.28999999999999998]
[{"$f":"VLOOKUP($B28,Data_Table[],18,FALSE)","v":0},"5-00All3439-338",{"$f":"Table_Data_Table_12[[#This Row],[Pair\nGroup]]+(COUNTIF($A$17:$A28,A28)*0.01)","v":0.1},"Allocation","34-401-250-000-365-00","1331 W State St",43439,338000,16.46,151,0,136653.4,0.40429999999999999,8302.1506682867548,0.19]
[{"$f":"VLOOKUP($B29,Data_Table[],18,FALSE)","v":0},"0-10Abs3088-150",{"$f":"Table_Data_Table_12[[#This Row],[Pair\nGroup]]+(COUNTIF($A$17:$A29,A29)*0.01)","v":0.11},"Abstraction","34-401-250-000-350-10","1437 W State St",43088,150000,0.27300000000000002,125,113419,36581,0.24387333333333333,133996.33699633699,3.08]
[{"$f":"VLOOKUP($B30,Data_Table[],18,FALSE)","v":0},"0-10All3088-150",{"$f":"Table_Data_Table_12[[#This Row],[Pair\nGroup]]+(COUNTIF($A$17:$A30,A30)*0.01)","v":0.12},"Allocation","34-401-250-000-350-10","1437 W State St",43088,150000,0.27300000000000002,125,0,60645,0.40429999999999999,222142.85714285713,5.0999999999999996]
[{"$f":"VLOOKUP($B31,Data_Table[],18,FALSE)","v":0},"0-00Abs1795-800",{"$f":"Table_Data_Table_12[[#This Row],[Pair\nGroup]]+(COUNTIF($A$17:$A31,A31)*0.01)","v":0.13},"Abstraction","34-401-250-000-350-00","1439 W. State Rd",41795,80000,1.615,121.5,51893,28107,0.35133750000000002,17403.71517027864,0.4]
[{"$f":"VLOOKUP($B32,Data_Table[],18,FALSE)","v":0},"0-00All1795-800",{"$f":"Table_Data_Table_12[[#This Row],[Pair\nGroup]]+(COUNTIF($A$17:$A32,A32)*0.01)","v":0.14000000000000001},"Allocation","34-401-250-000-350-00","1439 W. State Rd",41795,80000,1.615,121.5,0,32344,0.40429999999999999,20027.244582043342,0.46]
[{"$f":"VLOOKUP($B33,Data_Table[],18,FALSE)","v":0},"5-10Abs4841-330",{"$f":"Table_Data_Table_12[[#This Row],[Pair\nGroup]]+(COUNTIF($A$17:$A33,A33)*0.01)","v":0.15},"Abstraction","34-401-250-000-335-10","1525 W State St",44841,330000,0.504,249.36,179757,150243,0.45528181818181818,298101.19047619047,6.84]
[{"$f":"VLOOKUP($B34,Data_Table[],18,FALSE)","v":1},"5-10All4841-330",{"$f":"Table_Data_Table_12[[#This Row],[Pair\nGroup]]+(COUNTIF($A$17:$A34,A34)*0.01)","v":1.02},"Allocation","34-401-250-000-335-10","1525 W State St",44841,330000,0.504,249.36,0,133419,0.40429999999999999,264720.23809523811,6.08]
[{"$f":"VLOOKUP($B35,Data_Table[],18,FALSE)","v":0},"5-10All1677-297",{"$f":"Table_Data_Table_12[[#This Row],[Pair\nGroup]]+(COUNTIF($A$17:$A35,A35)*0.01)","v":0.16},"Allocation","34-401-250-000-335-10","1525 W. State Rd",41677,297000,0.504,249.36,0,120077.09999999999,0.40429999999999999,238248.21428571426,5.47]
[{"$f":"VLOOKUP($B36,Data_Table[],18,FALSE)","v":3},"5-00Abs1563-200",{"$f":"Table_Data_Table_12[[#This Row],[Pair\nGroup]]+(COUNTIF($A$17:$A36,A36)*0.01)","v":3.02},"Abstraction","34-060-006-000-095-00","2260 M-66",41563,200000,0.94399999999999995,235,33808,166192,0.83096000000000003,176050.84745762713,4.04]
[{"$f":"VLOOKUP($B37,Data_Table[],18,FALSE)","v":0},"5-00All1563-200",{"$f":"Table_Data_Table_12[[#This Row],[Pair\nGroup]]+(COUNTIF($A$17:$A37,A37)*0.01)","v":0.17},"Allocation","34-060-006-000-095-00","2260 M-66",41563,200000,0.94399999999999995,235,33808,80860,0.40429999999999999,85656.779661016961,1.97]
[{"$f":"VLOOKUP($B38,Data_Table[],18,FALSE)","v":0},"5-20Abs4559-182",{"$f":"Table_Data_Table_12[[#This Row],[Pair\nGroup]]+(COUNTIF($A$17:$A38,A38)*0.01)","v":0.18},"Abstraction","34-060-031-000-045-20","2331 S State Rd",44559,1825000,2.4550000000000001,222.8,1228290,596710,0.32696438356164381,243059.06313645621,5.58]
[{"$f":"VLOOKUP($B39,Data_Table[],18,FALSE)","v":0},"5-20All4559-182",{"$f":"Table_Data_Table_12[[#This Row],[Pair\nGroup]]+(COUNTIF($A$17:$A39,A39)*0.01)","v":0.19},"Allocation","34-060-031-000-045-20","2331 S State Rd",44559,1825000,2.4550000000000001,222.8,1228290,737847.5,0.40429999999999999,300548.87983706722,6.9]
[{"$f":"VLOOKUP($B40,Data_Table[],18,FALSE)","v":0},"5-11Abs3250-129",{"$f":"Table_Data_Table_12[[#This Row],[Pair\nGroup]]+(COUNTIF($A$17:$A40,A40)*0.01)","v":0.2},"Abstraction","34-060-031-000-045-11","2541 S State Rd",43250,1293750,3.1640000000000001,522.08000000000004,803414,490336,0.37900367149758452,154973.45132743364,3.56]
[{"$f":"VLOOKUP($B41,Data_Table[],18,FALSE)","v":0},"0-21Vac4006-650",{"$f":"Table_Data_Table_12[[#This Row],[Pair\nGroup]]+(COUNTIF($A$17:$A41,A41)*0.01)","v":0.21},"Vacant","34-010-036-000-170-21","2598 S State Rd",44006,650000,1.77,295,0,650000,"N/A",367231.63841807912,8.43]
[{"$f":"VLOOKUP($B42,Data_Table[],18,FALSE)","v":2},"5-26Vac4848-325",{"$f":"Table_Data_Table_12[[#This Row],[Pair\nGroup]]+(COUNTIF($A$17:$A42,A42)*0.01)","v":2.0099999999999998},"Vacant","060-031-000-115-26","2615 S State Rd",44848,325000,1.325,202.64,0,325000,"N/A",245283.01886792455,5.63]
[{"$f":"VLOOKUP($B43,Data_Table[],18,FALSE)","v":2},"0-00Vac3038-320",{"$f":"Table_Data_Table_12[[#This Row],[Pair\nGroup]]+(COUNTIF($A$17:$A43,A43)*0.01)","v":2.02},"Vacant","34-060-140-000-020-00","2731 State Rd Ionia",43038,320000,1.446,300,0,320000,"N/A",221300.13831258647,5.08]
[{"$f":"VLOOKUP($B44,Data_Table[],18,FALSE)","v":0},"0-01Vac4434-105",{"$f":"Table_Data_Table_12[[#This Row],[Pair\nGroup]]+(COUNTIF($A$17:$A44,A44)*0.01)","v":0.22},"Vacant","34-060-031-000-140-01","2983 S State Rd",44434,105000,0.81799999999999995,120,0,105000,"N/A",128361.85819070906,2.95]
[{"$f":"VLOOKUP($B45,Data_Table[],18,FALSE)","v":0},"5-00Abs2741-400",{"$f":"Table_Data_Table_12[[#This Row],[Pair\nGroup]]+(COUNTIF($A$17:$A45,A45)*0.01)","v":0.23},"Abstraction","34-204-090-000-075-00","302 S Jackson St",42741,40000,0.48699999999999999,150,14364,25636,0.64090000000000003,52640.657084188912,1.21]
[{"$f":"VLOOKUP($B46,Data_Table[],18,FALSE)","v":0},"5-00All2741-400",{"$f":"Table_Data_Table_12[[#This Row],[Pair\nGroup]]+(COUNTIF($A$17:$A46,A46)*0.01)","v":0.24},"Allocation","34-204-090-000-075-00","302 S Jackson St",42741,40000,0.48699999999999999,150,0,16172,0.40429999999999999,33207.392197125257,0.76]
[{"$f":"VLOOKUP($B47,Data_Table[],18,FALSE)","v":0},"5-00Abs2003-248",{"$f":"Table_Data_Table_12[[#This Row],[Pair\nGroup]]+(COUNTIF($A$17:$A47,A47)*0.01)","v":0.25},"Abstraction","34-204-190-000-005-00","340 Lovel St",42003,248651,0.57199999999999995,132,140849,107802,0.43354742188851042,188465.03496503498,4.33]
[{"$f":"VLOOKUP($B48,Data_Table[],18,FALSE)","v":0},"5-00All2003-248",{"$f":"Table_Data_Table_12[[#This Row],[Pair\nGroup]]+(COUNTIF($A$17:$A48,A48)*0.01)","v":0.26},"Allocation","34-204-190-000-005-00","340 Lovel St",42003,248651,0.57199999999999995,132,0,100529.5993,0.40429999999999999,175751.04772727276,4.03]
[{"$f":"VLOOKUP($B49,Data_Table[],18,FALSE)","v":0},"0-02Abs2403-300",{"$f":"Table_Data_Table_12[[#This Row],[Pair\nGroup]]+(COUNTIF($A$17:$A49,A49)*0.01)","v":0.27},"Abstraction","34-110-006-000-040-02","3669 S State Rd / M-66",42403,3000000,7.8159999999999998,500,1526059,1473941,0.49131366666666665,188579.96417604914,4.33]
[{"$f":"VLOOKUP($B50,Data_Table[],18,FALSE)","v":0},"0-02All2403-300",{"$f":"Table_Data_Table_12[[#This Row],[Pair\nGroup]]+(COUNTIF($A$17:$A50,A50)*0.01)","v":0.28000000000000003},"Allocation","34-110-006-000-040-02","3669 S State Rd / M-66",42403,3000000,7.8159999999999998,500,1526059,1212900,0.40429999999999999,155181.67860798363,3.56]
[{"$f":"VLOOKUP($B51,Data_Table[],18,FALSE)","v":0},"5-17Abs2585-650",{"$f":"Table_Data_Table_12[[#This Row],[Pair\nGroup]]+(COUNTIF($A$17:$A51,A51)*0.01)","v":0.28999999999999998},"Abstraction","34-201-030-000-045-17","431 Swartz Ct",42585,650418,0.99099999999999999,198,572709,77709,0.11947547577096575,78414.732593340057,1.8]
[{"$f":"VLOOKUP($B52,Data_Table[],18,FALSE)","v":0},"5-17All2585-650",{"$f":"Table_Data_Table_12[[#This Row],[Pair\nGroup]]+(COUNTIF($A$17:$A52,A52)*0.01)","v":0.3},"Allocation","34-201-030-000-045-17","431 Swartz Ct",42585,650418,0.99099999999999999,198,0,262963.99739999999,0.40429999999999999,265352.16690211906,6.09]
[{"$f":"VLOOKUP($B53,Data_Table[],18,FALSE)","v":0},"5-00Abs2789-718",{"$f":"Table_Data_Table_12[[#This Row],[Pair\nGroup]]+(COUNTIF($A$17:$A53,A53)*0.01)","v":0.31},"Abstraction","34-204-600-000-405-00","643 Crawford St",42789,718248,3.38,183.67,520238,198010,0.27568472171172076,58582.840236686396,1.34]
[{"$f":"VLOOKUP($B54,Data_Table[],18,FALSE)","v":0},"5-00All2789-718",{"$f":"Table_Data_Table_12[[#This Row],[Pair\nGroup]]+(COUNTIF($A$17:$A54,A54)*0.01)","v":0.32},"Allocation","34-204-600-000-405-00","643 Crawford St",42789,718248,3.38,183.67,0,290387.66639999999,0.40429999999999999,85913.510769230765,1.97]
[{"$f":"VLOOKUP($B55,Data_Table[],18,FALSE)","v":0},"5-00Vac333-200",{"$f":"Table_Data_Table_12[[#This Row],[Pair\nGroup]]+(COUNTIF($A$17:$A55,A55)*0.01)","v":0.33},"Vacant","34-300-050-000-395-00","Elm St",40333,20000,0.60899999999999999,333,0,20000,"N/A",32840.722495894908,0.75]
[{"$f":"VLOOKUP($B56,Data_Table[],18,FALSE)","v":0},"0-70Vac2138-450",{"$f":"Table_Data_Table_12[[#This Row],[Pair\nGroup]]+(COUNTIF($A$17:$A56,A56)*0.01)","v":0.34},"Vacant","34-010-036-000-160-70","M-66",42138,450000,1.796,255,0,450000,"N/A",250556.79287305122,5.75]
[{"$f":"VLOOKUP($B57,Data_Table[],18,FALSE)","v":0},"5-12Vac-1391-595",{"$f":"Table_Data_Table_12[[#This Row],[Pair\nGroup]]+(COUNTIF($A$17:$A57,A57)*0.01)","v":0.35000000000000003},"Vacant","34-011-001-000-085-12","M-66",38609,595000,4.4610000000000003,335,0,595000,"N/A",133378.16633041919,3.06]
[{"$f":"VLOOKUP($B58,Data_Table[],18,FALSE)","v":0},"5-42Vac-1340-485",{"$f":"Table_Data_Table_12[[#This Row],[Pair\nGroup]]+(COUNTIF($A$17:$A58,A58)*0.01)","v":0.36},"Vacant","34-011-001-000-085-42","M-66",38660,485000,1.87,323.05,0,485000,"N/A",259358.28877005345,5.95]
[{"$f":"VLOOKUP($B59,Data_Table[],18,FALSE)","v":0},"5-10Vac-1032-300",{"$f":"Table_Data_Table_12[[#This Row],[Pair\nGroup]]+(COUNTIF($A$17:$A59,A59)*0.01)","v":0.37},"Vacant","34-060-140-000-005-10","M-66",38968,300000,1.446,300,0,300000,"N/A",207468.87966804981,4.76]
[{"$f":"VLOOKUP($B60,Data_Table[],18,FALSE)","v":0},"0-00Vac2754-100",{"$f":"Table_Data_Table_12[[#This Row],[Pair\nGroup]]+(COUNTIF($A$17:$A60,A60)*0.01)","v":0.38},"Vacant","34-090-000-110-00","Railroad St",42754,10000,0.623,133,0,10000,"N/A",16051.364365971107,0.37]
[{"$f":"VLOOKUP($B61,Data_Table[],18,FALSE)","v":0},"6-00Vac-48-150",{"$f":"Table_Data_Table_12[[#This Row],[Pair\nGroup]]+(COUNTIF($A$17:$A61,A61)*0.01)","v":0.39},"Vacant","34-201-040-000-076-00","S. Steele St",39952,15000,0.85499999999999998,108.64,0,15000,"N/A",17543.859649122809,0.4]
[{"$f":"VLOOKUP($B62,Data_Table[],18,FALSE)","v":0},"",{"$f":"Table_Data_Table_12[[#This Row],[Pair\nGroup]]+(COUNTIF($A$17:$A62,A62)*0.01)","v":0.4},{"$error":"#N/A"},{"$error":"#N/A"},{"$error":"#N/A"},{"$error":"#N/A"},{"$error":"#N/A"},{"$error":"#N/A"},{"$error":"#N/A"},{"$error":"#N/A"},{"$error":"#N/A"},{"$error":"#N/A"},{"$error":"#N/A"},{"$error":"#N/A"}]
[{"$f":"VLOOKUP($B63,Data_Table[],18,FALSE)","v":0},"",{"$f":"Table_Data_Table_12[[#This Row],[Pair\nGroup]]+(COUNTIF($A$17:$A63,A63)*0.01)","v":0.41000000000000003},{"$error":"#N/A"},{"$error":"#N/A"},{"$error":"#N/A"},{"$error":"#N/A"},{"$error":"#N/A"},{"$error":"#N/A"},{"$error":"#N/A"},{"$error":"#N/A"},{"$error":"#N/A"},{"$error":"#N/A"},{"$error":"#N/A"},{"$error":"#N/A"}]
[{"$f":"VLOOKUP($B64,Data_Table[],18,FALSE)","v":0},"",{"$f":"Table_Data_Table_12[[#This Row],[Pair\nGroup]]+(COUNTIF($A$17:$A64,A64)*0.01)","v":0.42},{"$error":"#N/A"},{"$error":"#N/A"},{"$error":"#N/A"},{"$error":"#N/A"},{"$error":"#N/A"},{"$error":"#N/A"},{"$error":"#N/A"},{"$error":"#N/A"},{"$error":"#N/A"},{"$error":"#N/A"},{"$error":"#N/A"},{"$error":"#N/A"}]
[{"$f":"VLOOKUP($B65,Data_Table[],18,FALSE)","v":0},"",{"$f":"Table_Data_Table_12[[#This Row],[Pair\nGroup]]+(COUNTIF($A$17:$A65,A65)*0.01)","v":0.43},{"$error":"#N/A"},{"$error":"#N/A"},{"$error":"#N/A"},{"$error":"#N/A"},{"$error":"#N/A"},{"$error":"#N/A"},{"$error":"#N/A"},{"$error":"#N/A"},{"$error":"#N/A"},{"$error":"#N/A"},{"$error":"#N/A"},{"$error":"#N/A"}]
[{"$f":"VLOOKUP($B66,Data_Table[],18,FALSE)","v":0},"",{"$f":"Table_Data_Table_12[[#This Row],[Pair\nGroup]]+(COUNTIF($A$17:$A66,A66)*0.01)","v":0.44},{"$error":"#N/A"},{"$error":"#N/A"},{"$error":"#N/A"},{"$error":"#N/A"},{"$error":"#N/A"},{"$error":"#N/A"},{"$error":"#N/A"},{"$error":"#N/A"},{"$error":"#N/A"},{"$error":"#N/A"},{"$error":"#N/A"},{"$error":"#N/A"}]
[{"$f":"VLOOKUP($B67,Data_Table[],18,FALSE)","v":0},"",{"$f":"Table_Data_Table_12[[#This Row],[Pair\nGroup]]+(COUNTIF($A$17:$A67,A67)*0.01)","v":0.45},{"$error":"#N/A"},{"$error":"#N/A"},{"$error":"#N/A"},{"$error":"#N/A"},{"$error":"#N/A"},{"$error":"#N/A"},{"$error":"#N/A"},{"$error":"#N/A"},{"$error":"#N/A"},{"$error":"#N/A"},{"$error":"#N/A"},{"$error":"#N/A"}]
[{"$f":"VLOOKUP($B68,Data_Table[],18,FALSE)","v":0},"",{"$f":"Table_Data_Table_12[[#This Row],[Pair\nGroup]]+(COUNTIF($A$17:$A68,A68)*0.01)","v":0.46},{"$error":"#N/A"},{"$error":"#N/A"},{"$error":"#N/A"},{"$error":"#N/A"},{"$error":"#N/A"},{"$error":"#N/A"},{"$error":"#N/A"},{"$error":"#N/A"},{"$error":"#N/A"},{"$error":"#N/A"},{"$error":"#N/A"},{"$error":"#N/A"}]
[{"$f":"VLOOKUP($B69,Data_Table[],18,FALSE)","v":0},"",{"$f":"Table_Data_Table_12[[#This Row],[Pair\nGroup]]+(COUNTIF($A$17:$A69,A69)*0.01)","v":0.47000000000000003},{"$error":"#N/A"},{"$error":"#N/A"},{"$error":"#N/A"},{"$error":"#N/A"},{"$error":"#N/A"},{"$error":"#N/A"},{"$error":"#N/A"},{"$error":"#N/A"},{"$error":"#N/A"},{"$error":"#N/A"},{"$error":"#N/A"},{"$error":"#N/A"}]
[{"$f":"VLOOKUP($B70,Data_Table[],18,FALSE)","v":0},"",{"$f":"Table_Data_Table_12[[#This Row],[Pair\nGroup]]+(COUNTIF($A$17:$A70,A70)*0.01)","v":0.48},{"$error":"#N/A"},{"$error":"#N/A"},{"$error":"#N/A"},{"$error":"#N/A"},{"$error":"#N/A"},{"$error":"#N/A"},{"$error":"#N/A"},{"$error":"#N/A"},{"$error":"#N/A"},{"$error":"#N/A"},{"$error":"#N/A"},{"$error":"#N/A"}]
[{"$f":"VLOOKUP($B71,Data_Table[],18,FALSE)","v":0},"",{"$f":"Table_Data_Table_12[[#This Row],[Pair\nGroup]]+(COUNTIF($A$17:$A71,A71)*0.01)","v":0.49},{"$error":"#N/A"},{"$error":"#N/A"},{"$error":"#N/A"},{"$error":"#N/A"},{"$error":"#N/A"},{"$error":"#N/A"},{"$error":"#N/A"},{"$error":"#N/A"},{"$error":"#N/A"},{"$error":"#N/A"},{"$error":"#N/A"},{"$error":"#N/A"}]
[{"$f":"VLOOKUP($B72,Data_Table[],18,FALSE)","v":0},"",{"$f":"Table_Data_Table_12[[#This Row],[Pair\nGroup]]+(COUNTIF($A$17:$A72,A72)*0.01)","v":0.5},{"$error":"#N/A"},{"$error":"#N/A"},{"$error":"#N/A"},{"$error":"#N/A"},{"$error":"#N/A"},{"$error":"#N/A"},{"$error":"#N/A"},{"$error":"#N/A"},{"$error":"#N/A"},{"$error":"#N/A"},{"$error":"#N/A"},{"$error":"#N/A"}]
[{"$f":"VLOOKUP($B73,Data_Table[],18,FALSE)","v":0},"",{"$f":"Table_Data_Table_12[[#This Row],[Pair\nGroup]]+(COUNTIF($A$17:$A73,A73)*0.01)","v":0.51},{"$error":"#N/A"},{"$error":"#N/A"},{"$error":"#N/A"},{"$error":"#N/A"},{"$error":"#N/A"},{"$error":"#N/A"},{"$error":"#N/A"},{"$error":"#N/A"},{"$error":"#N/A"},{"$error":"#N/A"},{"$error":"#N/A"},{"$error":"#N/A"}]
[{"$f":"VLOOKUP($B74,Data_Table[],18,FALSE)","v":0},"",{"$f":"Table_Data_Table_12[[#This Row],[Pair\nGroup]]+(COUNTIF($A$17:$A74,A74)*0.01)","v":0.52},{"$error":"#N/A"},{"$error":"#N/A"},{"$error":"#N/A"},{"$error":"#N/A"},{"$error":"#N/A"},{"$error":"#N/A"},{"$error":"#N/A"},{"$error":"#N/A"},{"$error":"#N/A"},{"$error":"#N/A"},{"$error":"#N/A"},{"$error":"#N/A"}]
[{"$f":"VLOOKUP($B75,Data_Table[],18,FALSE)","v":0},"",{"$f":"Table_Data_Table_12[[#This Row],[Pair\nGroup]]+(COUNTIF($A$17:$A75,A75)*0.01)","v":0.53},{"$error":"#N/A"},{"$error":"#N/A"},{"$error":"#N/A"},{"$error":"#N/A"},{"$error":"#N/A"},{"$error":"#N/A"},{"$error":"#N/A"},{"$error":"#N/A"},{"$error":"#N/A"},{"$error":"#N/A"},{"$error":"#N/A"},{"$error":"#N/A"}]
[{"$f":"VLOOKUP($B76,Data_Table[],18,FALSE)","v":0},"",{"$f":"Table_Data_Table_12[[#This Row],[Pair\nGroup]]+(COUNTIF($A$17:$A76,A76)*0.01)","v":0.54},{"$error":"#N/A"},{"$error":"#N/A"},{"$error":"#N/A"},{"$error":"#N/A"},{"$error":"#N/A"},{"$error":"#N/A"},{"$error":"#N/A"},{"$error":"#N/A"},{"$error":"#N/A"},{"$error":"#N/A"},{"$error":"#N/A"},{"$error":"#N/A"}]
[{"$f":"VLOOKUP($B77,Data_Table[],18,FALSE)","v":0},"",{"$f":"Table_Data_Table_12[[#This Row],[Pair\nGroup]]+(COUNTIF($A$17:$A77,A77)*0.01)","v":0.55000000000000004},{"$error":"#N/A"},{"$error":"#N/A"},{"$error":"#N/A"},{"$error":"#N/A"},{"$error":"#N/A"},{"$error":"#N/A"},{"$error":"#N/A"},{"$error":"#N/A"},{"$error":"#N/A"},{"$error":"#N/A"},{"$error":"#N/A"},{"$error":"#N/A"}]
[{"$f":"VLOOKUP($B78,Data_Table[],18,FALSE)","v":0},"",{"$f":"Table_Data_Table_12[[#This Row],[Pair\nGroup]]+(COUNTIF($A$17:$A78,A78)*0.01)","v":0.56000000000000005},{"$error":"#N/A"},{"$error":"#N/A"},{"$error":"#N/A"},{"$error":"#N/A"},{"$error":"#N/A"},{"$error":"#N/A"},{"$error":"#N/A"},{"$error":"#N/A"},{"$error":"#N/A"},{"$error":"#N/A"},{"$error":"#N/A"},{"$error":"#N/A"}]
[{"$f":"VLOOKUP($B79,Data_Table[],18,FALSE)","v":0},"",{"$f":"Table_Data_Table_12[[#This Row],[Pair\nGroup]]+(COUNTIF($A$17:$A79,A79)*0.01)","v":0.57000000000000006},{"$error":"#N/A"},{"$error":"#N/A"},{"$error":"#N/A"},{"$error":"#N/A"},{"$error":"#N/A"},{"$error":"#N/A"},{"$error":"#N/A"},{"$error":"#N/A"},{"$error":"#N/A"},{"$error":"#N/A"},{"$error":"#N/A"},{"$error":"#N/A"}]
[{"$f":"VLOOKUP($B80,Data_Table[],18,FALSE)","v":0},"",{"$f":"Table_Data_Table_12[[#This Row],[Pair\nGroup]]+(COUNTIF($A$17:$A80,A80)*0.01)","v":0.57999999999999996},{"$error":"#N/A"},{"$error":"#N/A"},{"$error":"#N/A"},{"$error":"#N/A"},{"$error":"#N/A"},{"$error":"#N/A"},{"$error":"#N/A"},{"$error":"#N/A"},{"$error":"#N/A"},{"$error":"#N/A"},{"$error":"#N/A"},{"$error":"#N/A"}]
[{"$f":"VLOOKUP($B81,Data_Table[],18,FALSE)","v":0},"",{"$f":"Table_Data_Table_12[[#This Row],[Pair\nGroup]]+(COUNTIF($A$17:$A81,A81)*0.01)","v":0.59},{"$f":"VLOOKUP($B81,DataTable,2,FALSE)","v":{"$error":"#N/A"}},{"$f":"VLOOKUP($B81,DataTable,3,FALSE)","v":{"$error":"#N/A"}},{"$f":"VLOOKUP($B81,DataTable,4,FALSE)","v":{"$error":"#N/A"}},{"$f":"VLOOKUP($B81,DataTable,5,FALSE)","v":{"$error":"#N/A"}},{"$f":"VLOOKUP($B81,DataTable,6,FALSE)","v":{"$error":"#N/A"}},{"$f":"ROUND((VLOOKUP($B81,DataTable,10,FALSE)-VLOOKUP($B81,DataTable,12,FALSE))/43560,3)","v":{"$error":"#N/A"}},{"$f":"VLOOKUP($B81,DataTable,11,FALSE)","v":{"$error":"#N/A"}},{"$f":"VLOOKUP($B81,DataTable,13,FALSE)","v":{"$error":"#N/A"}},{"$f":"VLOOKUP($B81,Analysis_Table,8,FALSE)","v":{"$error":"#N/A"}},{"$f":"VLOOKUP($B81,Analysis_Table,9,FALSE)","v":{"$error":"#N/A"}},{"$f":"L81/I81","v":{"$error":"#N/A"}},{"$f":"ROUND(L81/(VLOOKUP($B81,DataTable,10,FALSE)-VLOOKUP($B81,DataTable,12,FALSE)),2)","v":{"$error":"#N/A"}}]
[{"$f":"VLOOKUP($B82,Data_Table[],18,FALSE)","v":0},"",{"$f":"Table_Data_Table_12[[#This Row],[Pair\nGroup]]+(COUNTIF($A$17:$A82,A82)*0.01)","v":0.6},{"$error":"#N/A"},{"$error":"#N/A"},{"$error":"#N/A"},{"$error":"#N/A"},{"$error":"#N/A"},{"$error":"#N/A"},{"$error":"#N/A"},{"$error":"#N/A"},{"$error":"#N/A"},{"$error":"#N/A"},{"$error":"#N/A"},{"$error":"#N/A"}]
[{"$f":"VLOOKUP($B83,Data_Table[],18,FALSE)","v":0},"",{"$f":"Table_Data_Table_12[[#This Row],[Pair\nGroup]]+(COUNTIF($A$17:$A83,A83)*0.01)","v":0.61},{"$error":"#N/A"},{"$error":"#N/A"},{"$error":"#N/A"},{"$error":"#N/A"},{"$error":"#N/A"},{"$error":"#N/A"},{"$error":"#N/A"},{"$error":"#N/A"},{"$error":"#N/A"},{"$error":"#N/A"},{"$error":"#N/A"},{"$error":"#N/A"}]
[{"$f":"VLOOKUP($B84,Data_Table[],18,FALSE)","v":0},"",{"$f":"Table_Data_Table_12[[#This Row],[Pair\nGroup]]+(COUNTIF($A$17:$A84,A84)*0.01)","v":0.62},{"$error":"#N/A"},{"$error":"#N/A"},{"$error":"#N/A"},{"$error":"#N/A"},{"$error":"#N/A"},{"$error":"#N/A"},{"$error":"#N/A"},{"$error":"#N/A"},{"$error":"#N/A"},{"$error":"#N/A"},{"$error":"#N/A"},{"$error":"#N/A"}]
[{"$f":"VLOOKUP($B85,Data_Table[],18,FALSE)","v":0},"",{"$f":"Table_Data_Table_12[[#This Row],[Pair\nGroup]]+(COUNTIF($A$17:$A85,A85)*0.01)","v":0.63},{"$error":"#N/A"},{"$error":"#N/A"},{"$error":"#N/A"},{"$error":"#N/A"},{"$error":"#N/A"},{"$error":"#N/A"},{"$error":"#N/A"},{"$error":"#N/A"},{"$error":"#N/A"},{"$error":"#N/A"},{"$error":"#N/A"},{"$error":"#N/A"}]
[{"$f":"VLOOKUP($B86,Data_Table[],18,FALSE)","v":0},"",{"$f":"Table_Data_Table_12[[#This Row],[Pair\nGroup]]+(COUNTIF($A$17:$A86,A86)*0.01)","v":0.64},{"$error":"#N/A"},{"$error":"#N/A"},{"$error":"#N/A"},{"$error":"#N/A"},{"$error":"#N/A"},{"$error":"#N/A"},{"$error":"#N/A"},{"$error":"#N/A"},{"$error":"#N/A"},{"$error":"#N/A"},{"$error":"#N/A"},{"$error":"#N/A"}]
[{"$f":"VLOOKUP($B87,Data_Table[],18,FALSE)","v":0},"",{"$f":"Table_Data_Table_12[[#This Row],[Pair\nGroup]]+(COUNTIF($A$17:$A87,A87)*0.01)","v":0.65},{"$error":"#N/A"},{"$error":"#N/A"},{"$error":"#N/A"},{"$error":"#N/A"},{"$error":"#N/A"},{"$error":"#N/A"},{"$error":"#N/A"},{"$error":"#N/A"},{"$error":"#N/A"},{"$error":"#N/A"},{"$error":"#N/A"},{"$error":"#N/A"}]
[{"$f":"VLOOKUP($B88,Data_Table[],18,FALSE)","v":0},"",{"$f":"Table_Data_Table_12[[#This Row],[Pair\nGroup]]+(COUNTIF($A$17:$A88,A88)*0.01)","v":0.66},{"$error":"#N/A"},{"$error":"#N/A"},{"$error":"#N/A"},{"$error":"#N/A"},{"$error":"#N/A"},{"$error":"#N/A"},{"$error":"#N/A"},{"$error":"#N/A"},{"$error":"#N/A"},{"$error":"#N/A"},{"$error":"#N/A"},{"$error":"#N/A"}]
[{"$f":"VLOOKUP($B89,Data_Table[],18,FALSE)","v":0},"",{"$f":"Table_Data_Table_12[[#This Row],[Pair\nGroup]]+(COUNTIF($A$17:$A89,A89)*0.01)","v":0.67},{"$error":"#N/A"},{"$error":"#N/A"},{"$error":"#N/A"},{"$error":"#N/A"},{"$error":"#N/A"},{"$error":"#N/A"},{"$error":"#N/A"},{"$error":"#N/A"},{"$error":"#N/A"},{"$error":"#N/A"},{"$error":"#N/A"},{"$error":"#N/A"}]
[{"$f":"VLOOKUP($B90,Data_Table[],18,FALSE)","v":0},"",{"$f":"Table_Data_Table_12[[#This Row],[Pair\nGroup]]+(COUNTIF($A$17:$A90,A90)*0.01)","v":0.68},{"$error":"#N/A"},{"$error":"#N/A"},{"$error":"#N/A"},{"$error":"#N/A"},{"$error":"#N/A"},{"$error":"#N/A"},{"$error":"#N/A"},{"$error":"#N/A"},{"$error":"#N/A"},{"$error":"#N/A"},{"$error":"#N/A"},{"$error":"#N/A"}]
[{"$f":"VLOOKUP($B91,Data_Table[],18,FALSE)","v":0},"",{"$f":"Table_Data_Table_12[[#This Row],[Pair\nGroup]]+(COUNTIF($A$17:$A91,A91)*0.01)","v":0.69000000000000006},{"$error":"#N/A"},{"$error":"#N/A"},{"$error":"#N/A"},{"$error":"#N/A"},{"$error":"#N/A"},{"$error":"#N/A"},{"$error":"#N/A"},{"$error":"#N/A"},{"$error":"#N/A"},{"$error":"#N/A"},{"$error":"#N/A"},{"$error":"#N/A"}]
[{"$f":"VLOOKUP($B92,Data_Table[],18,FALSE)","v":0},"",{"$f":"Table_Data_Table_12[[#This Row],[Pair\nGroup]]+(COUNTIF($A$17:$A92,A92)*0.01)","v":0.70000000000000007},{"$error":"#N/A"},{"$error":"#N/A"},{"$error":"#N/A"},{"$error":"#N/A"},{"$error":"#N/A"},{"$error":"#N/A"},{"$error":"#N/A"},{"$error":"#N/A"},{"$error":"#N/A"},{"$error":"#N/A"},{"$error":"#N/A"},{"$error":"#N/A"}]
[{"$f":"VLOOKUP($B93,Data_Table[],18,FALSE)","v":0},"",{"$f":"Table_Data_Table_12[[#This Row],[Pair\nGroup]]+(COUNTIF($A$17:$A93,A93)*0.01)","v":0.71},{"$error":"#N/A"},{"$error":"#N/A"},{"$error":"#N/A"},{"$error":"#N/A"},{"$error":"#N/A"},{"$error":"#N/A"},{"$error":"#N/A"},{"$error":"#N/A"},{"$error":"#N/A"},{"$error":"#N/A"},{"$error":"#N/A"},{"$error":"#N/A"}]
[{"$f":"VLOOKUP($B94,Data_Table[],18,FALSE)","v":0},"",{"$f":"Table_Data_Table_12[[#This Row],[Pair\nGroup]]+(COUNTIF($A$17:$A94,A94)*0.01)","v":0.72},{"$error":"#N/A"},{"$error":"#N/A"},{"$error":"#N/A"},{"$error":"#N/A"},{"$error":"#N/A"},{"$error":"#N/A"},{"$error":"#N/A"},{"$error":"#N/A"},{"$error":"#N/A"},{"$error":"#N/A"},{"$error":"#N/A"},{"$error":"#N/A"}]
[{"$f":"VLOOKUP($B95,Data_Table[],18,FALSE)","v":0},"",{"$f":"Table_Data_Table_12[[#This Row],[Pair\nGroup]]+(COUNTIF($A$17:$A95,A95)*0.01)","v":0.73},{"$error":"#N/A"},{"$error":"#N/A"},{"$error":"#N/A"},{"$error":"#N/A"},{"$error":"#N/A"},{"$error":"#N/A"},{"$error":"#N/A"},{"$error":"#N/A"},{"$error":"#N/A"},{"$error":"#N/A"},{"$error":"#N/A"},{"$error":"#N/A"}]
[{"$f":"VLOOKUP($B96,Data_Table[],18,FALSE)","v":0},"",{"$f":"Table_Data_Table_12[[#This Row],[Pair\nGroup]]+(COUNTIF($A$17:$A96,A96)*0.01)","v":0.74},{"$error":"#N/A"},{"$error":"#N/A"},{"$error":"#N/A"},{"$error":"#N/A"},{"$error":"#N/A"},{"$error":"#N/A"},{"$error":"#N/A"},{"$error":"#N/A"},{"$error":"#N/A"},{"$error":"#N/A"},{"$error":"#N/A"},{"$error":"#N/A"}]
[{"$f":"VLOOKUP($B97,Data_Table[],18,FALSE)","v":0},"",{"$f":"Table_Data_Table_12[[#This Row],[Pair\nGroup]]+(COUNTIF($A$17:$A97,A97)*0.01)","v":0.75},{"$error":"#N/A"},{"$error":"#N/A"},{"$error":"#N/A"},{"$error":"#N/A"},{"$error":"#N/A"},{"$error":"#N/A"},{"$error":"#N/A"},{"$error":"#N/A"},{"$error":"#N/A"},{"$error":"#N/A"},{"$error":"#N/A"},{"$error":"#N/A"}]
[{"$f":"VLOOKUP($B98,Data_Table[],18,FALSE)","v":0},"",{"$f":"Table_Data_Table_12[[#This Row],[Pair\nGroup]]+(COUNTIF($A$17:$A98,A98)*0.01)","v":0.76},{"$error":"#N/A"},{"$error":"#N/A"},{"$error":"#N/A"},{"$error":"#N/A"},{"$error":"#N/A"},{"$error":"#N/A"},{"$error":"#N/A"},{"$error":"#N/A"},{"$error":"#N/A"},{"$error":"#N/A"},{"$error":"#N/A"},{"$error":"#N/A"}]
[{"$f":"VLOOKUP($B99,Data_Table[],18,FALSE)","v":0},"",{"$f":"Table_Data_Table_12[[#This Row],[Pair\nGroup]]+(COUNTIF($A$17:$A99,A99)*0.01)","v":0.77},{"$error":"#N/A"},{"$error":"#N/A"},{"$error":"#N/A"},{"$error":"#N/A"},{"$error":"#N/A"},{"$error":"#N/A"},{"$error":"#N/A"},{"$error":"#N/A"},{"$error":"#N/A"},{"$error":"#N/A"},{"$error":"#N/A"},{"$error":"#N/A"}]
[{"$f":"VLOOKUP($B100,Data_Table[],18,FALSE)","v":0},"",{"$f":"Table_Data_Table_12[[#This Row],[Pair\nGroup]]+(COUNTIF($A$17:$A100,A100)*0.01)","v":0.78},{"$error":"#N/A"},{"$error":"#N/A"},{"$error":"#N/A"},{"$error":"#N/A"},{"$error":"#N/A"},{"$error":"#N/A"},{"$error":"#N/A"},{"$error":"#N/A"},{"$error":"#N/A"},{"$error":"#N/A"},{"$error":"#N/A"},{"$error":"#N/A"}]
[{"$f":"VLOOKUP($B101,Data_Table[],18,FALSE)","v":0},"",{"$f":"Table_Data_Table_12[[#This Row],[Pair\nGroup]]+(COUNTIF($A$17:$A101,A101)*0.01)","v":0.79},{"$error":"#N/A"},{"$error":"#N/A"},{"$error":"#N/A"},{"$error":"#N/A"},{"$error":"#N/A"},{"$error":"#N/A"},{"$error":"#N/A"},{"$error":"#N/A"},{"$error":"#N/A"},{"$error":"#N/A"},{"$error":"#N/A"},{"$error":"#N/A"}]
[{"$f":"VLOOKUP($B102,Data_Table[],18,FALSE)","v":0},"",{"$f":"Table_Data_Table_12[[#This Row],[Pair\nGroup]]+(COUNTIF($A$17:$A102,A102)*0.01)","v":0.8},{"$error":"#N/A"},{"$error":"#N/A"},{"$error":"#N/A"},{"$error":"#N/A"},{"$error":"#N/A"},{"$error":"#N/A"},{"$error":"#N/A"},{"$error":"#N/A"},{"$error":"#N/A"},{"$error":"#N/A"},{"$error":"#N/A"},{"$error":"#N/A"}]
[{"$f":"VLOOKUP($B103,Data_Table[],18,FALSE)","v":0},"",{"$f":"Table_Data_Table_12[[#This Row],[Pair\nGroup]]+(COUNTIF($A$17:$A103,A103)*0.01)","v":0.81},{"$error":"#N/A"},{"$error":"#N/A"},{"$error":"#N/A"},{"$error":"#N/A"},{"$error":"#N/A"},{"$error":"#N/A"},{"$error":"#N/A"},{"$error":"#N/A"},{"$error":"#N/A"},{"$error":"#N/A"},{"$error":"#N/A"},{"$error":"#N/A"}]
[{"$f":"VLOOKUP($B104,Data_Table[],18,FALSE)","v":0},"",{"$f":"Table_Data_Table_12[[#This Row],[Pair\nGroup]]+(COUNTIF($A$17:$A104,A104)*0.01)","v":0.82000000000000006},{"$error":"#N/A"},{"$error":"#N/A"},{"$error":"#N/A"},{"$error":"#N/A"},{"$error":"#N/A"},{"$error":"#N/A"},{"$error":"#N/A"},{"$error":"#N/A"},{"$error":"#N/A"},{"$error":"#N/A"},{"$error":"#N/A"},{"$error":"#N/A"}]
[{"$f":"VLOOKUP($B105,Data_Table[],18,FALSE)","v":0},"",{"$f":"Table_Data_Table_12[[#This Row],[Pair\nGroup]]+(COUNTIF($A$17:$A105,A105)*0.01)","v":0.83000000000000007},{"$error":"#N/A"},{"$error":"#N/A"},{"$error":"#N/A"},{"$error":"#N/A"},{"$error":"#N/A"},{"$error":"#N/A"},{"$error":"#N/A"},{"$error":"#N/A"},{"$error":"#N/A"},{"$error":"#N/A"},{"$error":"#N/A"},{"$error":"#N/A"}]
[{"$f":"VLOOKUP($B106,Data_Table[],18,FALSE)","v":0},"",{"$f":"Table_Data_Table_12[[#This Row],[Pair\nGroup]]+(COUNTIF($A$17:$A106,A106)*0.01)","v":0.84},{"$error":"#N/A"},{"$error":"#N/A"},{"$error":"#N/A"},{"$error":"#N/A"},{"$error":"#N/A"},{"$error":"#N/A"},{"$error":"#N/A"},{"$error":"#N/A"},{"$error":"#N/A"},{"$error":"#N/A"},{"$error":"#N/A"},{"$error":"#N/A"}]
[{"$f":"VLOOKUP($B107,Data_Table[],18,FALSE)","v":0},"",{"$f":"Table_Data_Table_12[[#This Row],[Pair\nGroup]]+(COUNTIF($A$17:$A107,A107)*0.01)","v":0.85},{"$error":"#N/A"},{"$error":"#N/A"},{"$error":"#N/A"},{"$error":"#N/A"},{"$error":"#N/A"},{"$error":"#N/A"},{"$error":"#N/A"},{"$error":"#N/A"},{"$error":"#N/A"},{"$error":"#N/A"},{"$error":"#N/A"},{"$error":"#N/A"}]
[{"$f":"VLOOKUP($B108,Data_Table[],18,FALSE)","v":0},"",{"$f":"Table_Data_Table_12[[#This Row],[Pair\nGroup]]+(COUNTIF($A$17:$A108,A108)*0.01)","v":0.86},{"$error":"#N/A"},{"$error":"#N/A"},{"$error":"#N/A"},{"$error":"#N/A"},{"$error":"#N/A"},{"$error":"#N/A"},{"$error":"#N/A"},{"$error":"#N/A"},{"$error":"#N/A"},{"$error":"#N/A"},{"$error":"#N/A"},{"$error":"#N/A"}]
[{"$f":"VLOOKUP($B109,Data_Table[],18,FALSE)","v":0},"",{"$f":"Table_Data_Table_12[[#This Row],[Pair\nGroup]]+(COUNTIF($A$17:$A109,A109)*0.01)","v":0.87},{"$error":"#N/A"},{"$error":"#N/A"},{"$error":"#N/A"},{"$error":"#N/A"},{"$error":"#N/A"},{"$error":"#N/A"},{"$error":"#N/A"},{"$error":"#N/A"},{"$error":"#N/A"},{"$error":"#N/A"},{"$error":"#N/A"},{"$error":"#N/A"}]
[{"$f":"VLOOKUP($B110,Data_Table[],18,FALSE)","v":0},"",{"$f":"Table_Data_Table_12[[#This Row],[Pair\nGroup]]+(COUNTIF($A$17:$A110,A110)*0.01)","v":0.88},{"$error":"#N/A"},{"$error":"#N/A"},{"$error":"#N/A"},{"$error":"#N/A"},{"$error":"#N/A"},{"$error":"#N/A"},{"$error":"#N/A"},{"$error":"#N/A"},{"$error":"#N/A"},{"$error":"#N/A"},{"$error":"#N/A"},{"$error":"#N/A"}]
[{"$f":"VLOOKUP($B111,Data_Table[],18,FALSE)","v":0},"",{"$f":"Table_Data_Table_12[[#This Row],[Pair\nGroup]]+(COUNTIF($A$17:$A111,A111)*0.01)","v":0.89},{"$error":"#N/A"},{"$error":"#N/A"},{"$error":"#N/A"},{"$error":"#N/A"},{"$error":"#N/A"},{"$error":"#N/A"},{"$error":"#N/A"},{"$error":"#N/A"},{"$error":"#N/A"},{"$error":"#N/A"},{"$error":"#N/A"},{"$error":"#N/A"}]
[{"$f":"VLOOKUP($B112,Data_Table[],18,FALSE)","v":0},"",{"$f":"Table_Data_Table_12[[#This Row],[Pair\nGroup]]+(COUNTIF($A$17:$A112,A112)*0.01)","v":0.9},{"$error":"#N/A"},{"$error":"#N/A"},{"$error":"#N/A"},{"$error":"#N/A"},{"$error":"#N/A"},{"$error":"#N/A"},{"$error":"#N/A"},{"$error":"#N/A"},{"$error":"#N/A"},{"$error":"#N/A"},{"$error":"#N/A"},{"$error":"#N/A"}]
[{"$f":"VLOOKUP($B113,Data_Table[],18,FALSE)","v":0},"",{"$f":"Table_Data_Table_12[[#This Row],[Pair\nGroup]]+(COUNTIF($A$17:$A113,A113)*0.01)","v":0.91},{"$error":"#N/A"},{"$error":"#N/A"},{"$error":"#N/A"},{"$error":"#N/A"},{"$error":"#N/A"},{"$error":"#N/A"},{"$error":"#N/A"},{"$error":"#N/A"},{"$error":"#N/A"},{"$error":"#N/A"},{"$error":"#N/A"},{"$error":"#N/A"}]
[{"$f":"VLOOKUP($B114,Data_Table[],18,FALSE)","v":0},"",{"$f":"Table_Data_Table_12[[#This Row],[Pair\nGroup]]+(COUNTIF($A$17:$A114,A114)*0.01)","v":0.92},{"$error":"#N/A"},{"$error":"#N/A"},{"$error":"#N/A"},{"$error":"#N/A"},{"$error":"#N/A"},{"$error":"#N/A"},{"$error":"#N/A"},{"$error":"#N/A"},{"$error":"#N/A"},{"$error":"#N/A"},{"$error":"#N/A"},{"$error":"#N/A"}]
[{"$f":"VLOOKUP($B115,Data_Table[],18,FALSE)","v":0},"",{"$f":"Table_Data_Table_12[[#This Row],[Pair\nGroup]]+(COUNTIF($A$17:$A115,A115)*0.01)","v":0.93},{"$error":"#N/A"},{"$error":"#N/A"},{"$error":"#N/A"},{"$error":"#N/A"},{"$error":"#N/A"},{"$error":"#N/A"},{"$error":"#N/A"},{"$error":"#N/A"},{"$error":"#N/A"},{"$error":"#N/A"},{"$error":"#N/A"},{"$error":"#N/A"}]
[{"$f":"VLOOKUP($B116,Data_Table[],18,FALSE)","v":0},"",{"$f":"Table_Data_Table_12[[#This Row],[Pair\nGroup]]+(COUNTIF($A$17:$A116,A116)*0.01)","v":0.94000000000000006},{"$error":"#N/A"},{"$error":"#N/A"},{"$error":"#N/A"},{"$error":"#N/A"},{"$error":"#N/A"},{"$error":"#N/A"},{"$error":"#N/A"},{"$error":"#N/A"},{"$error":"#N/A"},{"$error":"#N/A"},{"$error":"#N/A"},{"$error":"#N/A"}]
[{"$f":"VLOOKUP($B117,Data_Table[],18,FALSE)","v":0},"",{"$f":"Table_Data_Table_12[[#This Row],[Pair\nGroup]]+(COUNTIF($A$17:$A117,A117)*0.01)","v":0.95000000000000007},{"$error":"#N/A"},{"$error":"#N/A"},{"$error":"#N/A"},{"$error":"#N/A"},{"$error":"#N/A"},{"$error":"#N/A"},{"$error":"#N/A"},{"$error":"#N/A"},{"$error":"#N/A"},{"$error":"#N/A"},{"$error":"#N/A"},{"$error":"#N/A"}]
[{"$f":"VLOOKUP($B118,Data_Table[],18,FALSE)","v":0},"",{"$f":"Table_Data_Table_12[[#This Row],[Pair\nGroup]]+(COUNTIF($A$17:$A118,A118)*0.01)","v":0.96},{"$error":"#N/A"},{"$error":"#N/A"},{"$error":"#N/A"},{"$error":"#N/A"},{"$error":"#N/A"},{"$error":"#N/A"},{"$error":"#N/A"},{"$error":"#N/A"},{"$error":"#N/A"},{"$error":"#N/A"},{"$error":"#N/A"},{"$error":"#N/A"}]
[{"$f":"VLOOKUP($B119,Data_Table[],18,FALSE)","v":0},"",{"$f":"Table_Data_Table_12[[#This Row],[Pair\nGroup]]+(COUNTIF($A$17:$A119,A119)*0.01)","v":0.97},{"$error":"#N/A"},{"$error":"#N/A"},{"$error":"#N/A"},{"$error":"#N/A"},{"$error":"#N/A"},{"$error":"#N/A"},{"$error":"#N/A"},{"$error":"#N/A"},{"$error":"#N/A"},{"$error":"#N/A"},{"$error":"#N/A"},{"$error":"#N/A"}]
[{"$f":"VLOOKUP($B120,Data_Table[],18,FALSE)","v":0},"",{"$f":"Table_Data_Table_12[[#This Row],[Pair\nGroup]]+(COUNTIF($A$17:$A120,A120)*0.01)","v":0.98},{"$error":"#N/A"},{"$error":"#N/A"},{"$error":"#N/A"},{"$error":"#N/A"},{"$error":"#N/A"},{"$error":"#N/A"},{"$error":"#N/A"},{"$error":"#N/A"},{"$error":"#N/A"},{"$error":"#N/A"},{"$error":"#N/A"},{"$error":"#N/A"}]
[{"$f":"VLOOKUP($B121,Data_Table[],18,FALSE)","v":0},"",{"$f":"Table_Data_Table_12[[#This Row],[Pair\nGroup]]+(COUNTIF($A$17:$A121,A121)*0.01)","v":0.99},{"$error":"#N/A"},{"$error":"#N/A"},{"$error":"#N/A"},{"$error":"#N/A"},{"$error":"#N/A"},{"$error":"#N/A"},{"$error":"#N/A"},{"$error":"#N/A"},{"$error":"#N/A"},{"$error":"#N/A"},{"$error":"#N/A"},{"$error":"#N/A"}]
[{"$f":"VLOOKUP($B122,Data_Table[],18,FALSE)","v":0},"",{"$f":"Table_Data_Table_12[[#This Row],[Pair\nGroup]]+(COUNTIF($A$17:$A122,A122)*0.01)","v":1},{"$error":"#N/A"},{"$error":"#N/A"},{"$error":"#N/A"},{"$error":"#N/A"},{"$error":"#N/A"},{"$error":"#N/A"},{"$error":"#N/A"},{"$error":"#N/A"},{"$error":"#N/A"},{"$error":"#N/A"},{"$error":"#N/A"},{"$error":"#N/A"}]
[{"$f":"VLOOKUP($B123,Data_Table[],18,FALSE)","v":0},"",{"$f":"Table_Data_Table_12[[#This Row],[Pair\nGroup]]+(COUNTIF($A$17:$A123,A123)*0.01)","v":1.01},{"$error":"#N/A"},{"$error":"#N/A"},{"$error":"#N/A"},{"$error":"#N/A"},{"$error":"#N/A"},{"$error":"#N/A"},{"$error":"#N/A"},{"$error":"#N/A"},{"$error":"#N/A"},{"$error":"#N/A"},{"$error":"#N/A"},{"$error":"#N/A"}]
[{"$f":"VLOOKUP($B124,Data_Table[],18,FALSE)","v":0},"",{"$f":"Table_Data_Table_12[[#This Row],[Pair\nGroup]]+(COUNTIF($A$17:$A124,A124)*0.01)","v":1.02},{"$error":"#N/A"},{"$error":"#N/A"},{"$error":"#N/A"},{"$error":"#N/A"},{"$error":"#N/A"},{"$error":"#N/A"},{"$error":"#N/A"},{"$error":"#N/A"},{"$error":"#N/A"},{"$error":"#N/A"},{"$error":"#N/A"},{"$error":"#N/A"}]
[{"$f":"VLOOKUP($B125,Data_Table[],18,FALSE)","v":0},"",{"$f":"Table_Data_Table_12[[#This Row],[Pair\nGroup]]+(COUNTIF($A$17:$A125,A125)*0.01)","v":1.03},{"$error":"#N/A"},{"$error":"#N/A"},{"$error":"#N/A"},{"$error":"#N/A"},{"$error":"#N/A"},{"$error":"#N/A"},{"$error":"#N/A"},{"$error":"#N/A"},{"$error":"#N/A"},{"$error":"#N/A"},{"$error":"#N/A"},{"$error":"#N/A"}]
[{"$f":"VLOOKUP($B126,Data_Table[],18,FALSE)","v":0},"",{"$f":"Table_Data_Table_12[[#This Row],[Pair\nGroup]]+(COUNTIF($A$17:$A126,A126)*0.01)","v":1.04},{"$error":"#N/A"},{"$error":"#N/A"},{"$error":"#N/A"},{"$error":"#N/A"},{"$error":"#N/A"},{"$error":"#N/A"},{"$error":"#N/A"},{"$error":"#N/A"},{"$error":"#N/A"},{"$error":"#N/A"},{"$error":"#N/A"},{"$error":"#N/A"}]
[{"$f":"VLOOKUP($B127,Data_Table[],18,FALSE)","v":0},"",{"$f":"Table_Data_Table_12[[#This Row],[Pair\nGroup]]+(COUNTIF($A$17:$A127,A127)*0.01)","v":1.05},{"$error":"#N/A"},{"$error":"#N/A"},{"$error":"#N/A"},{"$error":"#N/A"},{"$error":"#N/A"},{"$error":"#N/A"},{"$error":"#N/A"},{"$error":"#N/A"},{"$error":"#N/A"},{"$error":"#N/A"},{"$error":"#N/A"},{"$error":"#N/A"}]
[{"$f":"VLOOKUP($B128,Data_Table[],18,FALSE)","v":0},"",{"$f":"Table_Data_Table_12[[#This Row],[Pair\nGroup]]+(COUNTIF($A$17:$A128,A128)*0.01)","v":1.06},{"$error":"#N/A"},{"$error":"#N/A"},{"$error":"#N/A"},{"$error":"#N/A"},{"$error":"#N/A"},{"$error":"#N/A"},{"$error":"#N/A"},{"$error":"#N/A"},{"$error":"#N/A"},{"$error":"#N/A"},{"$error":"#N/A"},{"$error":"#N/A"}]
[{"$f":"VLOOKUP($B129,Data_Table[],18,FALSE)","v":0},"",{"$f":"Table_Data_Table_12[[#This Row],[Pair\nGroup]]+(COUNTIF($A$17:$A129,A129)*0.01)","v":1.07},{"$error":"#N/A"},{"$error":"#N/A"},{"$error":"#N/A"},{"$error":"#N/A"},{"$error":"#N/A"},{"$error":"#N/A"},{"$error":"#N/A"},{"$error":"#N/A"},{"$error":"#N/A"},{"$error":"#N/A"},{"$error":"#N/A"},{"$error":"#N/A"}]
[{"$f":"VLOOKUP($B130,Data_Table[],18,FALSE)","v":0},"",{"$f":"Table_Data_Table_12[[#This Row],[Pair\nGroup]]+(COUNTIF($A$17:$A130,A130)*0.01)","v":1.08},{"$error":"#N/A"},{"$error":"#N/A"},{"$error":"#N/A"},{"$error":"#N/A"},{"$error":"#N/A"},{"$error":"#N/A"},{"$error":"#N/A"},{"$error":"#N/A"},{"$error":"#N/A"},{"$error":"#N/A"},{"$error":"#N/A"},{"$error":"#N/A"}]
[{"$f":"VLOOKUP($B131,Data_Table[],18,FALSE)","v":0},"",{"$f":"Table_Data_Table_12[[#This Row],[Pair\nGroup]]+(COUNTIF($A$17:$A131,A131)*0.01)","v":1.0900000000000001},{"$error":"#N/A"},{"$error":"#N/A"},{"$error":"#N/A"},{"$error":"#N/A"},{"$error":"#N/A"},{"$error":"#N/A"},{"$error":"#N/A"},{"$error":"#N/A"},{"$error":"#N/A"},{"$error":"#N/A"},{"$error":"#N/A"},{"$error":"#N/A"}]
[{"$f":"VLOOKUP($B132,Data_Table[],18,FALSE)","v":0},"",{"$f":"Table_Data_Table_12[[#This Row],[Pair\nGroup]]+(COUNTIF($A$17:$A132,A132)*0.01)","v":1.1000000000000001},{"$error":"#N/A"},{"$error":"#N/A"},{"$error":"#N/A"},{"$error":"#N/A"},{"$error":"#N/A"},{"$error":"#N/A"},{"$error":"#N/A"},{"$error":"#N/A"},{"$error":"#N/A"},{"$error":"#N/A"},{"$error":"#N/A"},{"$error":"#N/A"}]
[{"$f":"VLOOKUP($B133,Data_Table[],18,FALSE)","v":0},"",{"$f":"Table_Data_Table_12[[#This Row],[Pair\nGroup]]+(COUNTIF($A$17:$A133,A133)*0.01)","v":1.1100000000000001},{"$error":"#N/A"},{"$error":"#N/A"},{"$error":"#N/A"},{"$error":"#N/A"},{"$error":"#N/A"},{"$error":"#N/A"},{"$error":"#N/A"},{"$error":"#N/A"},{"$error":"#N/A"},{"$error":"#N/A"},{"$error":"#N/A"},{"$error":"#N/A"}]
[{"$f":"VLOOKUP($B134,Data_Table[],18,FALSE)","v":0},"",{"$f":"Table_Data_Table_12[[#This Row],[Pair\nGroup]]+(COUNTIF($A$17:$A134,A134)*0.01)","v":1.1200000000000001},{"$error":"#N/A"},{"$error":"#N/A"},{"$error":"#N/A"},{"$error":"#N/A"},{"$error":"#N/A"},{"$error":"#N/A"},{"$error":"#N/A"},{"$error":"#N/A"},{"$error":"#N/A"},{"$error":"#N/A"},{"$error":"#N/A"},{"$error":"#N/A"}]
[{"$f":"VLOOKUP($B135,Data_Table[],18,FALSE)","v":0},"",{"$f":"Table_Data_Table_12[[#This Row],[Pair\nGroup]]+(COUNTIF($A$17:$A135,A135)*0.01)","v":1.1300000000000001},{"$error":"#N/A"},{"$error":"#N/A"},{"$error":"#N/A"},{"$error":"#N/A"},{"$error":"#N/A"},{"$error":"#N/A"},{"$error":"#N/A"},{"$error":"#N/A"},{"$error":"#N/A"},{"$error":"#N/A"},{"$error":"#N/A"},{"$error":"#N/A"}]
[{"$f":"VLOOKUP($B136,Data_Table[],18,FALSE)","v":0},"",{"$f":"Table_Data_Table_12[[#This Row],[Pair\nGroup]]+(COUNTIF($A$17:$A136,A136)*0.01)","v":1.1400000000000001},{"$error":"#N/A"},{"$error":"#N/A"},{"$error":"#N/A"},{"$error":"#N/A"},{"$error":"#N/A"},{"$error":"#N/A"},{"$error":"#N/A"},{"$error":"#N/A"},{"$error":"#N/A"},{"$error":"#N/A"},{"$error":"#N/A"},{"$error":"#N/A"}]
[{"$f":"VLOOKUP($B137,Data_Table[],18,FALSE)","v":0},"",{"$f":"Table_Data_Table_12[[#This Row],[Pair\nGroup]]+(COUNTIF($A$17:$A137,A137)*0.01)","v":1.1500000000000001},{"$error":"#N/A"},{"$error":"#N/A"},{"$error":"#N/A"},{"$error":"#N/A"},{"$error":"#N/A"},{"$error":"#N/A"},{"$error":"#N/A"},{"$error":"#N/A"},{"$error":"#N/A"},{"$error":"#N/A"},{"$error":"#N/A"},{"$error":"#N/A"}]
[{"$f":"VLOOKUP($B138,Data_Table[],18,FALSE)","v":0},"",{"$f":"Table_Data_Table_12[[#This Row],[Pair\nGroup]]+(COUNTIF($A$17:$A138,A138)*0.01)","v":1.1599999999999999},{"$error":"#N/A"},{"$error":"#N/A"},{"$error":"#N/A"},{"$error":"#N/A"},{"$error":"#N/A"},{"$error":"#N/A"},{"$error":"#N/A"},{"$error":"#N/A"},{"$error":"#N/A"},{"$error":"#N/A"},{"$error":"#N/A"},{"$error":"#N/A"}]
[{"$f":"VLOOKUP($B139,Data_Table[],18,FALSE)","v":0},"",{"$f":"Table_Data_Table_12[[#This Row],[Pair\nGroup]]+(COUNTIF($A$17:$A139,A139)*0.01)","v":1.17},{"$error":"#N/A"},{"$error":"#N/A"},{"$error":"#N/A"},{"$error":"#N/A"},{"$error":"#N/A"},{"$error":"#N/A"},{"$error":"#N/A"},{"$error":"#N/A"},{"$error":"#N/A"},{"$error":"#N/A"},{"$error":"#N/A"},{"$error":"#N/A"}]
[{"$f":"VLOOKUP($B140,Data_Table[],18,FALSE)","v":0},"",{"$f":"Table_Data_Table_12[[#This Row],[Pair\nGroup]]+(COUNTIF($A$17:$A140,A140)*0.01)","v":1.18},{"$error":"#N/A"},{"$error":"#N/A"},{"$error":"#N/A"},{"$error":"#N/A"},{"$error":"#N/A"},{"$error":"#N/A"},{"$error":"#N/A"},{"$error":"#N/A"},{"$error":"#N/A"},{"$error":"#N/A"},{"$error":"#N/A"},{"$error":"#N/A"}]
[{"$f":"VLOOKUP($B141,Data_Table[],18,FALSE)","v":0},"",{"$f":"Table_Data_Table_12[[#This Row],[Pair\nGroup]]+(COUNTIF($A$17:$A141,A141)*0.01)","v":1.19},{"$error":"#N/A"},{"$error":"#N/A"},{"$error":"#N/A"},{"$error":"#N/A"},{"$error":"#N/A"},{"$error":"#N/A"},{"$error":"#N/A"},{"$error":"#N/A"},{"$error":"#N/A"},{"$error":"#N/A"},{"$error":"#N/A"},{"$error":"#N/A"}]
[{"$f":"VLOOKUP($B142,Data_Table[],18,FALSE)","v":0},"",{"$f":"Table_Data_Table_12[[#This Row],[Pair\nGroup]]+(COUNTIF($A$17:$A142,A142)*0.01)","v":1.2},{"$error":"#N/A"},{"$error":"#N/A"},{"$error":"#N/A"},{"$error":"#N/A"},{"$error":"#N/A"},{"$error":"#N/A"},{"$error":"#N/A"},{"$error":"#N/A"},{"$error":"#N/A"},{"$error":"#N/A"},{"$error":"#N/A"},{"$error":"#N/A"}]
[{"$f":"VLOOKUP($B143,Data_Table[],18,FALSE)","v":0},"",{"$f":"Table_Data_Table_12[[#This Row],[Pair\nGroup]]+(COUNTIF($A$17:$A143,A143)*0.01)","v":1.21},{"$error":"#N/A"},{"$error":"#N/A"},{"$error":"#N/A"},{"$error":"#N/A"},{"$error":"#N/A"},{"$error":"#N/A"},{"$error":"#N/A"},{"$error":"#N/A"},{"$error":"#N/A"},{"$error":"#N/A"},{"$error":"#N/A"},{"$error":"#N/A"}]
[{"$f":"VLOOKUP($B144,Data_Table[],18,FALSE)","v":0},"",{"$f":"Table_Data_Table_12[[#This Row],[Pair\nGroup]]+(COUNTIF($A$17:$A144,A144)*0.01)","v":1.22},{"$error":"#N/A"},{"$error":"#N/A"},{"$error":"#N/A"},{"$error":"#N/A"},{"$error":"#N/A"},{"$error":"#N/A"},{"$error":"#N/A"},{"$error":"#N/A"},{"$error":"#N/A"},{"$error":"#N/A"},{"$error":"#N/A"},{"$error":"#N/A"}]
[{"$f":"VLOOKUP($B145,Data_Table[],18,FALSE)","v":0},"",{"$f":"Table_Data_Table_12[[#This Row],[Pair\nGroup]]+(COUNTIF($A$17:$A145,A145)*0.01)","v":1.23},{"$f":"VLOOKUP($B145,DataTable,2,FALSE)","v":{"$error":"#N/A"}},{"$f":"VLOOKUP($B145,DataTable,3,FALSE)","v":{"$error":"#N/A"}},{"$f":"VLOOKUP($B145,DataTable,4,FALSE)","v":{"$error":"#N/A"}},{"$f":"VLOOKUP($B145,DataTable,5,FALSE)","v":{"$error":"#N/A"}},{"$f":"VLOOKUP($B145,DataTable,6,FALSE)","v":{"$error":"#N/A"}},{"$f":"ROUND((VLOOKUP($B145,DataTable,10,FALSE)-VLOOKUP($B145,DataTable,12,FALSE))/43560,3)","v":{"$error":"#N/A"}},{"$f":"VLOOKUP($B145,DataTable,11,FALSE)","v":{"$error":"#N/A"}},{"$f":"VLOOKUP($B145,DataTable,13,FALSE)","v":{"$error":"#N/A"}},{"$f":"VLOOKUP($B145,Analysis_Table,8,FALSE)","v":{"$error":"#N/A"}},{"$f":"VLOOKUP($B145,Analysis_Table,9,FALSE)","v":{"$error":"#N/A"}},{"$f":"L145/I145","v":{"$error":"#N/A"}},{"$f":"ROUND(L145/(VLOOKUP($B145,DataTable,10,FALSE)-VLOOKUP($B145,DataTable,12,FALSE)),2)","v":{"$error":"#N/A"}}]
[{"$f":"VLOOKUP($B146,Data_Table[],18,FALSE)","v":0},"",{"$f":"Table_Data_Table_12[[#This Row],[Pair\nGroup]]+(COUNTIF($A$17:$A146,A146)*0.01)","v":1.24},{"$error":"#N/A"},{"$error":"#N/A"},{"$error":"#N/A"},{"$error":"#N/A"},{"$error":"#N/A"},{"$error":"#N/A"},{"$error":"#N/A"},{"$error":"#N/A"},{"$error":"#N/A"},{"$error":"#N/A"},{"$error":"#N/A"},{"$error":"#N/A"}]
[{"$f":"VLOOKUP($B147,Data_Table[],18,FALSE)","v":0},"",{"$f":"Table_Data_Table_12[[#This Row],[Pair\nGroup]]+(COUNTIF($A$17:$A147,A147)*0.01)","v":1.25},{"$error":"#N/A"},{"$error":"#N/A"},{"$error":"#N/A"},{"$error":"#N/A"},{"$error":"#N/A"},{"$error":"#N/A"},{"$error":"#N/A"},{"$error":"#N/A"},{"$error":"#N/A"},{"$error":"#N/A"},{"$error":"#N/A"},{"$error":"#N/A"}]
[{"$f":"VLOOKUP($B148,Data_Table[],18,FALSE)","v":0},"",{"$f":"Table_Data_Table_12[[#This Row],[Pair\nGroup]]+(COUNTIF($A$17:$A148,A148)*0.01)","v":1.26},{"$error":"#N/A"},{"$error":"#N/A"},{"$error":"#N/A"},{"$error":"#N/A"},{"$error":"#N/A"},{"$error":"#N/A"},{"$error":"#N/A"},{"$error":"#N/A"},{"$error":"#N/A"},{"$error":"#N/A"},{"$error":"#N/A"},{"$error":"#N/A"}]
[{"$f":"VLOOKUP($B149,Data_Table[],18,FALSE)","v":0},"",{"$f":"Table_Data_Table_12[[#This Row],[Pair\nGroup]]+(COUNTIF($A$17:$A149,A149)*0.01)","v":1.27},{"$error":"#N/A"},{"$error":"#N/A"},{"$error":"#N/A"},{"$error":"#N/A"},{"$error":"#N/A"},{"$error":"#N/A"},{"$error":"#N/A"},{"$error":"#N/A"},{"$error":"#N/A"},{"$error":"#N/A"},{"$error":"#N/A"},{"$error":"#N/A"}]
[{"$f":"VLOOKUP($B150,Data_Table[],18,FALSE)","v":0},"",{"$f":"Table_Data_Table_12[[#This Row],[Pair\nGroup]]+(COUNTIF($A$17:$A150,A150)*0.01)","v":1.28},{"$error":"#N/A"},{"$error":"#N/A"},{"$error":"#N/A"},{"$error":"#N/A"},{"$error":"#N/A"},{"$error":"#N/A"},{"$error":"#N/A"},{"$error":"#N/A"},{"$error":"#N/A"},{"$error":"#N/A"},{"$error":"#N/A"},{"$error":"#N/A"}]
[{"$f":"VLOOKUP($B151,Data_Table[],18,FALSE)","v":0},"",{"$f":"Table_Data_Table_12[[#This Row],[Pair\nGroup]]+(COUNTIF($A$17:$A151,A151)*0.01)","v":1.29},{"$error":"#N/A"},{"$error":"#N/A"},{"$error":"#N/A"},{"$error":"#N/A"},{"$error":"#N/A"},{"$error":"#N/A"},{"$error":"#N/A"},{"$error":"#N/A"},{"$error":"#N/A"},{"$error":"#N/A"},{"$error":"#N/A"},{"$error":"#N/A"}]
[{"$f":"VLOOKUP($B152,Data_Table[],18,FALSE)","v":0},"",{"$f":"Table_Data_Table_12[[#This Row],[Pair\nGroup]]+(COUNTIF($A$17:$A152,A152)*0.01)","v":1.3},{"$error":"#N/A"},{"$error":"#N/A"},{"$error":"#N/A"},{"$error":"#N/A"},{"$error":"#N/A"},{"$error":"#N/A"},{"$error":"#N/A"},{"$error":"#N/A"},{"$error":"#N/A"},{"$error":"#N/A"},{"$error":"#N/A"},{"$error":"#N/A"}]
[{"$f":"VLOOKUP($B153,Data_Table[],18,FALSE)","v":0},"",{"$f":"Table_Data_Table_12[[#This Row],[Pair\nGroup]]+(COUNTIF($A$17:$A153,A153)*0.01)","v":1.31},{"$error":"#N/A"},{"$error":"#N/A"},{"$error":"#N/A"},{"$error":"#N/A"},{"$error":"#N/A"},{"$error":"#N/A"},{"$error":"#N/A"},{"$error":"#N/A"},{"$error":"#N/A"},{"$error":"#N/A"},{"$error":"#N/A"},{"$error":"#N/A"}]
[{"$f":"VLOOKUP($B154,Data_Table[],18,FALSE)","v":0},"",{"$f":"Table_Data_Table_12[[#This Row],[Pair\nGroup]]+(COUNTIF($A$17:$A154,A154)*0.01)","v":1.32},{"$error":"#N/A"},{"$error":"#N/A"},{"$error":"#N/A"},{"$error":"#N/A"},{"$error":"#N/A"},{"$error":"#N/A"},{"$error":"#N/A"},{"$error":"#N/A"},{"$error":"#N/A"},{"$error":"#N/A"},{"$error":"#N/A"},{"$error":"#N/A"}]
[{"$f":"VLOOKUP($B155,Data_Table[],18,FALSE)","v":0},"",{"$f":"Table_Data_Table_12[[#This Row],[Pair\nGroup]]+(COUNTIF($A$17:$A155,A155)*0.01)","v":1.33},{"$error":"#N/A"},{"$error":"#N/A"},{"$error":"#N/A"},{"$error":"#N/A"},{"$error":"#N/A"},{"$error":"#N/A"},{"$error":"#N/A"},{"$error":"#N/A"},{"$error":"#N/A"},{"$error":"#N/A"},{"$error":"#N/A"},{"$error":"#N/A"}]
[{"$f":"VLOOKUP($B156,Data_Table[],18,FALSE)","v":0},"",{"$f":"Table_Data_Table_12[[#This Row],[Pair\nGroup]]+(COUNTIF($A$17:$A156,A156)*0.01)","v":1.34},{"$error":"#N/A"},{"$error":"#N/A"},{"$error":"#N/A"},{"$error":"#N/A"},{"$error":"#N/A"},{"$error":"#N/A"},{"$error":"#N/A"},{"$error":"#N/A"},{"$error":"#N/A"},{"$error":"#N/A"},{"$error":"#N/A"},{"$error":"#N/A"}]
[{"$f":"VLOOKUP($B157,Data_Table[],18,FALSE)","v":0},"",{"$f":"Table_Data_Table_12[[#This Row],[Pair\nGroup]]+(COUNTIF($A$17:$A157,A157)*0.01)","v":1.35},{"$error":"#N/A"},{"$error":"#N/A"},{"$error":"#N/A"},{"$error":"#N/A"},{"$error":"#N/A"},{"$error":"#N/A"},{"$error":"#N/A"},{"$error":"#N/A"},{"$error":"#N/A"},{"$error":"#N/A"},{"$error":"#N/A"},{"$error":"#N/A"}]
[{"$f":"VLOOKUP($B158,Data_Table[],18,FALSE)","v":0},"",{"$f":"Table_Data_Table_12[[#This Row],[Pair\nGroup]]+(COUNTIF($A$17:$A158,A158)*0.01)","v":1.36},{"$error":"#N/A"},{"$error":"#N/A"},{"$error":"#N/A"},{"$error":"#N/A"},{"$error":"#N/A"},{"$error":"#N/A"},{"$error":"#N/A"},{"$error":"#N/A"},{"$error":"#N/A"},{"$error":"#N/A"},{"$error":"#N/A"},{"$error":"#N/A"}]
[{"$f":"VLOOKUP($B159,Data_Table[],18,FALSE)","v":0},"",{"$f":"Table_Data_Table_12[[#This Row],[Pair\nGroup]]+(COUNTIF($A$17:$A159,A159)*0.01)","v":1.37},{"$error":"#N/A"},{"$error":"#N/A"},{"$error":"#N/A"},{"$error":"#N/A"},{"$error":"#N/A"},{"$error":"#N/A"},{"$error":"#N/A"},{"$error":"#N/A"},{"$error":"#N/A"},{"$error":"#N/A"},{"$error":"#N/A"},{"$error":"#N/A"}]
[{"$f":"VLOOKUP($B160,Data_Table[],18,FALSE)","v":0},"",{"$f":"Table_Data_Table_12[[#This Row],[Pair\nGroup]]+(COUNTIF($A$17:$A160,A160)*0.01)","v":1.3800000000000001},{"$error":"#N/A"},{"$error":"#N/A"},{"$error":"#N/A"},{"$error":"#N/A"},{"$error":"#N/A"},{"$error":"#N/A"},{"$error":"#N/A"},{"$error":"#N/A"},{"$error":"#N/A"},{"$error":"#N/A"},{"$error":"#N/A"},{"$error":"#N/A"}]
[{"$f":"VLOOKUP($B161,Data_Table[],18,FALSE)","v":0},"",{"$f":"Table_Data_Table_12[[#This Row],[Pair\nGroup]]+(COUNTIF($A$17:$A161,A161)*0.01)","v":1.3900000000000001},{"$error":"#N/A"},{"$error":"#N/A"},{"$error":"#N/A"},{"$error":"#N/A"},{"$error":"#N/A"},{"$error":"#N/A"},{"$error":"#N/A"},{"$error":"#N/A"},{"$error":"#N/A"},{"$error":"#N/A"},{"$error":"#N/A"},{"$error":"#N/A"}]
[{"$f":"VLOOKUP($B162,Data_Table[],18,FALSE)","v":0},"",{"$f":"Table_Data_Table_12[[#This Row],[Pair\nGroup]]+(COUNTIF($A$17:$A162,A162)*0.01)","v":1.4000000000000001},{"$error":"#N/A"},{"$error":"#N/A"},{"$error":"#N/A"},{"$error":"#N/A"},{"$error":"#N/A"},{"$error":"#N/A"},{"$error":"#N/A"},{"$error":"#N/A"},{"$error":"#N/A"},{"$error":"#N/A"},{"$error":"#N/A"},{"$error":"#N/A"}]
[{"$f":"VLOOKUP($B163,Data_Table[],18,FALSE)","v":0},"",{"$f":"Table_Data_Table_12[[#This Row],[Pair\nGroup]]+(COUNTIF($A$17:$A163,A163)*0.01)","v":1.41},{"$error":"#N/A"},{"$error":"#N/A"},{"$error":"#N/A"},{"$error":"#N/A"},{"$error":"#N/A"},{"$error":"#N/A"},{"$error":"#N/A"},{"$error":"#N/A"},{"$error":"#N/A"},{"$error":"#N/A"},{"$error":"#N/A"},{"$error":"#N/A"}]
[{"$f":"VLOOKUP($B164,Data_Table[],18,FALSE)","v":0},"",{"$f":"Table_Data_Table_12[[#This Row],[Pair\nGroup]]+(COUNTIF($A$17:$A164,A164)*0.01)","v":1.42},{"$error":"#N/A"},{"$error":"#N/A"},{"$error":"#N/A"},{"$error":"#N/A"},{"$error":"#N/A"},{"$error":"#N/A"},{"$error":"#N/A"},{"$error":"#N/A"},{"$error":"#N/A"},{"$error":"#N/A"},{"$error":"#N/A"},{"$error":"#N/A"}]
[{"$f":"VLOOKUP($B165,Data_Table[],18,FALSE)","v":0},"",{"$f":"Table_Data_Table_12[[#This Row],[Pair\nGroup]]+(COUNTIF($A$17:$A165,A165)*0.01)","v":1.43},{"$error":"#N/A"},{"$error":"#N/A"},{"$error":"#N/A"},{"$error":"#N/A"},{"$error":"#N/A"},{"$error":"#N/A"},{"$error":"#N/A"},{"$error":"#N/A"},{"$error":"#N/A"},{"$error":"#N/A"},{"$error":"#N/A"},{"$error":"#N/A"}]
[{"$f":"VLOOKUP($B166,Data_Table[],18,FALSE)","v":0},"",{"$f":"Table_Data_Table_12[[#This Row],[Pair\nGroup]]+(COUNTIF($A$17:$A166,A166)*0.01)","v":1.44},{"$error":"#N/A"},{"$error":"#N/A"},{"$error":"#N/A"},{"$error":"#N/A"},{"$error":"#N/A"},{"$error":"#N/A"},{"$error":"#N/A"},{"$error":"#N/A"},{"$error":"#N/A"},{"$error":"#N/A"},{"$error":"#N/A"},{"$error":"#N/A"}]
[{"$f":"VLOOKUP($B167,Data_Table[],18,FALSE)","v":0},"",{"$f":"Table_Data_Table_12[[#This Row],[Pair\nGroup]]+(COUNTIF($A$17:$A167,A167)*0.01)","v":1.45},{"$error":"#N/A"},{"$error":"#N/A"},{"$error":"#N/A"},{"$error":"#N/A"},{"$error":"#N/A"},{"$error":"#N/A"},{"$error":"#N/A"},{"$error":"#N/A"},{"$error":"#N/A"},{"$error":"#N/A"},{"$error":"#N/A"},{"$error":"#N/A"}]
[{"$f":"VLOOKUP($B168,Data_Table[],18,FALSE)","v":0},"",{"$f":"Table_Data_Table_12[[#This Row],[Pair\nGroup]]+(COUNTIF($A$17:$A168,A168)*0.01)","v":1.46},{"$error":"#N/A"},{"$error":"#N/A"},{"$error":"#N/A"},{"$error":"#N/A"},{"$error":"#N/A"},{"$error":"#N/A"},{"$error":"#N/A"},{"$error":"#N/A"},{"$error":"#N/A"},{"$error":"#N/A"},{"$error":"#N/A"},{"$error":"#N/A"}]
[{"$f":"VLOOKUP($B169,Data_Table[],18,FALSE)","v":0},"",{"$f":"Table_Data_Table_12[[#This Row],[Pair\nGroup]]+(COUNTIF($A$17:$A169,A169)*0.01)","v":1.47},{"$error":"#N/A"},{"$error":"#N/A"},{"$error":"#N/A"},{"$error":"#N/A"},{"$error":"#N/A"},{"$error":"#N/A"},{"$error":"#N/A"},{"$error":"#N/A"},{"$error":"#N/A"},{"$error":"#N/A"},{"$error":"#N/A"},{"$error":"#N/A"}]
[{"$f":"VLOOKUP($B170,Data_Table[],18,FALSE)","v":0},"",{"$f":"Table_Data_Table_12[[#This Row],[Pair\nGroup]]+(COUNTIF($A$17:$A170,A170)*0.01)","v":1.48},{"$error":"#N/A"},{"$error":"#N/A"},{"$error":"#N/A"},{"$error":"#N/A"},{"$error":"#N/A"},{"$error":"#N/A"},{"$error":"#N/A"},{"$error":"#N/A"},{"$error":"#N/A"},{"$error":"#N/A"},{"$error":"#N/A"},{"$error":"#N/A"}]
[{"$f":"VLOOKUP($B171,Data_Table[],18,FALSE)","v":0},"",{"$f":"Table_Data_Table_12[[#This Row],[Pair\nGroup]]+(COUNTIF($A$17:$A171,A171)*0.01)","v":1.49},{"$error":"#N/A"},{"$error":"#N/A"},{"$error":"#N/A"},{"$error":"#N/A"},{"$error":"#N/A"},{"$error":"#N/A"},{"$error":"#N/A"},{"$error":"#N/A"},{"$error":"#N/A"},{"$error":"#N/A"},{"$error":"#N/A"},{"$error":"#N/A"}]
[{"$f":"VLOOKUP($B172,Data_Table[],18,FALSE)","v":0},"",{"$f":"Table_Data_Table_12[[#This Row],[Pair\nGroup]]+(COUNTIF($A$17:$A172,A172)*0.01)","v":1.5},{"$error":"#N/A"},{"$error":"#N/A"},{"$error":"#N/A"},{"$error":"#N/A"},{"$error":"#N/A"},{"$error":"#N/A"},{"$error":"#N/A"},{"$error":"#N/A"},{"$error":"#N/A"},{"$error":"#N/A"},{"$error":"#N/A"},{"$error":"#N/A"}]
[{"$f":"VLOOKUP($B173,Data_Table[],18,FALSE)","v":0},"",{"$f":"Table_Data_Table_12[[#This Row],[Pair\nGroup]]+(COUNTIF($A$17:$A173,A173)*0.01)","v":1.51},{"$error":"#N/A"},{"$error":"#N/A"},{"$error":"#N/A"},{"$error":"#N/A"},{"$error":"#N/A"},{"$error":"#N/A"},{"$error":"#N/A"},{"$error":"#N/A"},{"$error":"#N/A"},{"$error":"#N/A"},{"$error":"#N/A"},{"$error":"#N/A"}]
[{"$f":"VLOOKUP($B174,Data_Table[],18,FALSE)","v":0},"",{"$f":"Table_Data_Table_12[[#This Row],[Pair\nGroup]]+(COUNTIF($A$17:$A174,A174)*0.01)","v":1.52},{"$error":"#N/A"},{"$error":"#N/A"},{"$error":"#N/A"},{"$error":"#N/A"},{"$error":"#N/A"},{"$error":"#N/A"},{"$error":"#N/A"},{"$error":"#N/A"},{"$error":"#N/A"},{"$error":"#N/A"},{"$error":"#N/A"},{"$error":"#N/A"}]
[{"$f":"VLOOKUP($B175,Data_Table[],18,FALSE)","v":0},"",{"$f":"Table_Data_Table_12[[#This Row],[Pair\nGroup]]+(COUNTIF($A$17:$A175,A175)*0.01)","v":1.53},{"$error":"#N/A"},{"$error":"#N/A"},{"$error":"#N/A"},{"$error":"#N/A"},{"$error":"#N/A"},{"$error":"#N/A"},{"$error":"#N/A"},{"$error":"#N/A"},{"$error":"#N/A"},{"$error":"#N/A"},{"$error":"#N/A"},{"$error":"#N/A"}]
[{"$f":"VLOOKUP($B176,Data_Table[],18,FALSE)","v":0},"",{"$f":"Table_Data_Table_12[[#This Row],[Pair\nGroup]]+(COUNTIF($A$17:$A176,A176)*0.01)","v":1.54},{"$error":"#N/A"},{"$error":"#N/A"},{"$error":"#N/A"},{"$error":"#N/A"},{"$error":"#N/A"},{"$error":"#N/A"},{"$error":"#N/A"},{"$error":"#N/A"},{"$error":"#N/A"},{"$error":"#N/A"},{"$error":"#N/A"},{"$error":"#N/A"}]
[{"$f":"VLOOKUP($B177,Data_Table[],18,FALSE)","v":0},"",{"$f":"Table_Data_Table_12[[#This Row],[Pair\nGroup]]+(COUNTIF($A$17:$A177,A177)*0.01)","v":1.55},{"$error":"#N/A"},{"$error":"#N/A"},{"$error":"#N/A"},{"$error":"#N/A"},{"$error":"#N/A"},{"$error":"#N/A"},{"$error":"#N/A"},{"$error":"#N/A"},{"$error":"#N/A"},{"$error":"#N/A"},{"$error":"#N/A"},{"$error":"#N/A"}]
[{"$f":"VLOOKUP($B178,Data_Table[],18,FALSE)","v":0},"",{"$f":"Table_Data_Table_12[[#This Row],[Pair\nGroup]]+(COUNTIF($A$17:$A178,A178)*0.01)","v":1.56},{"$error":"#N/A"},{"$error":"#N/A"},{"$error":"#N/A"},{"$error":"#N/A"},{"$error":"#N/A"},{"$error":"#N/A"},{"$error":"#N/A"},{"$error":"#N/A"},{"$error":"#N/A"},{"$error":"#N/A"},{"$error":"#N/A"},{"$error":"#N/A"}]
[{"$f":"VLOOKUP($B179,Data_Table[],18,FALSE)","v":0},"",{"$f":"Table_Data_Table_12[[#This Row],[Pair\nGroup]]+(COUNTIF($A$17:$A179,A179)*0.01)","v":1.57},{"$error":"#N/A"},{"$error":"#N/A"},{"$error":"#N/A"},{"$error":"#N/A"},{"$error":"#N/A"},{"$error":"#N/A"},{"$error":"#N/A"},{"$error":"#N/A"},{"$error":"#N/A"},{"$error":"#N/A"},{"$error":"#N/A"},{"$error":"#N/A"}]
[{"$f":"VLOOKUP($B180,Data_Table[],18,FALSE)","v":0},"",{"$f":"Table_Data_Table_12[[#This Row],[Pair\nGroup]]+(COUNTIF($A$17:$A180,A180)*0.01)","v":1.58},{"$error":"#N/A"},{"$error":"#N/A"},{"$error":"#N/A"},{"$error":"#N/A"},{"$error":"#N/A"},{"$error":"#N/A"},{"$error":"#N/A"},{"$error":"#N/A"},{"$error":"#N/A"},{"$error":"#N/A"},{"$error":"#N/A"},{"$error":"#N/A"}]
[{"$f":"VLOOKUP($B181,Data_Table[],18,FALSE)","v":0},"",{"$f":"Table_Data_Table_12[[#This Row],[Pair\nGroup]]+(COUNTIF($A$17:$A181,A181)*0.01)","v":1.59},{"$error":"#N/A"},{"$error":"#N/A"},{"$error":"#N/A"},{"$error":"#N/A"},{"$error":"#N/A"},{"$error":"#N/A"},{"$error":"#N/A"},{"$error":"#N/A"},{"$error":"#N/A"},{"$error":"#N/A"},{"$error":"#N/A"},{"$error":"#N/A"}]
[{"$f":"VLOOKUP($B182,Data_Table[],18,FALSE)","v":0},"",{"$f":"Table_Data_Table_12[[#This Row],[Pair\nGroup]]+(COUNTIF($A$17:$A182,A182)*0.01)","v":1.6},{"$error":"#N/A"},{"$error":"#N/A"},{"$error":"#N/A"},{"$error":"#N/A"},{"$error":"#N/A"},{"$error":"#N/A"},{"$error":"#N/A"},{"$error":"#N/A"},{"$error":"#N/A"},{"$error":"#N/A"},{"$error":"#N/A"},{"$error":"#N/A"}]
[{"$f":"VLOOKUP($B183,Data_Table[],18,FALSE)","v":0},"",{"$f":"Table_Data_Table_12[[#This Row],[Pair\nGroup]]+(COUNTIF($A$17:$A183,A183)*0.01)","v":1.61},{"$error":"#N/A"},{"$error":"#N/A"},{"$error":"#N/A"},{"$error":"#N/A"},{"$error":"#N/A"},{"$error":"#N/A"},{"$error":"#N/A"},{"$error":"#N/A"},{"$error":"#N/A"},{"$error":"#N/A"},{"$error":"#N/A"},{"$error":"#N/A"}]
[{"$f":"VLOOKUP($B184,Data_Table[],18,FALSE)","v":0},"",{"$f":"Table_Data_Table_12[[#This Row],[Pair\nGroup]]+(COUNTIF($A$17:$A184,A184)*0.01)","v":1.62},{"$error":"#N/A"},{"$error":"#N/A"},{"$error":"#N/A"},{"$error":"#N/A"},{"$error":"#N/A"},{"$error":"#N/A"},{"$error":"#N/A"},{"$error":"#N/A"},{"$error":"#N/A"},{"$error":"#N/A"},{"$error":"#N/A"},{"$error":"#N/A"}]
[{"$f":"VLOOKUP($B185,Data_Table[],18,FALSE)","v":0},"",{"$f":"Table_Data_Table_12[[#This Row],[Pair\nGroup]]+(COUNTIF($A$17:$A185,A185)*0.01)","v":1.6300000000000001},{"$error":"#N/A"},{"$error":"#N/A"},{"$error":"#N/A"},{"$error":"#N/A"},{"$error":"#N/A"},{"$error":"#N/A"},{"$error":"#N/A"},{"$error":"#N/A"},{"$error":"#N/A"},{"$error":"#N/A"},{"$error":"#N/A"},{"$error":"#N/A"}]
[{"$f":"VLOOKUP($B186,Data_Table[],18,FALSE)","v":0},"",{"$f":"Table_Data_Table_12[[#This Row],[Pair\nGroup]]+(COUNTIF($A$17:$A186,A186)*0.01)","v":1.6400000000000001},{"$error":"#N/A"},{"$error":"#N/A"},{"$error":"#N/A"},{"$error":"#N/A"},{"$error":"#N/A"},{"$error":"#N/A"},{"$error":"#N/A"},{"$error":"#N/A"},{"$error":"#N/A"},{"$error":"#N/A"},{"$error":"#N/A"},{"$error":"#N/A"}]
[{"$f":"VLOOKUP($B187,Data_Table[],18,FALSE)","v":0},"",{"$f":"Table_Data_Table_12[[#This Row],[Pair\nGroup]]+(COUNTIF($A$17:$A187,A187)*0.01)","v":1.6500000000000001},{"$error":"#N/A"},{"$error":"#N/A"},{"$error":"#N/A"},{"$error":"#N/A"},{"$error":"#N/A"},{"$error":"#N/A"},{"$error":"#N/A"},{"$error":"#N/A"},{"$error":"#N/A"},{"$error":"#N/A"},{"$error":"#N/A"},{"$error":"#N/A"}]
[{"$f":"VLOOKUP($B188,Data_Table[],18,FALSE)","v":0},"",{"$f":"Table_Data_Table_12[[#This Row],[Pair\nGroup]]+(COUNTIF($A$17:$A188,A188)*0.01)","v":1.6600000000000001},{"$error":"#N/A"},{"$error":"#N/A"},{"$error":"#N/A"},{"$error":"#N/A"},{"$error":"#N/A"},{"$error":"#N/A"},{"$error":"#N/A"},{"$error":"#N/A"},{"$error":"#N/A"},{"$error":"#N/A"},{"$error":"#N/A"},{"$error":"#N/A"}]
[{"$f":"VLOOKUP($B189,Data_Table[],18,FALSE)","v":0},"",{"$f":"Table_Data_Table_12[[#This Row],[Pair\nGroup]]+(COUNTIF($A$17:$A189,A189)*0.01)","v":1.67},{"$error":"#N/A"},{"$error":"#N/A"},{"$error":"#N/A"},{"$error":"#N/A"},{"$error":"#N/A"},{"$error":"#N/A"},{"$error":"#N/A"},{"$error":"#N/A"},{"$error":"#N/A"},{"$error":"#N/A"},{"$error":"#N/A"},{"$error":"#N/A"}]
[{"$f":"VLOOKUP($B190,Data_Table[],18,FALSE)","v":0},"",{"$f":"Table_Data_Table_12[[#This Row],[Pair\nGroup]]+(COUNTIF($A$17:$A190,A190)*0.01)","v":1.68},{"$error":"#N/A"},{"$error":"#N/A"},{"$error":"#N/A"},{"$error":"#N/A"},{"$error":"#N/A"},{"$error":"#N/A"},{"$error":"#N/A"},{"$error":"#N/A"},{"$error":"#N/A"},{"$error":"#N/A"},{"$error":"#N/A"},{"$error":"#N/A"}]
[{"$f":"VLOOKUP($B191,Data_Table[],18,FALSE)","v":0},"",{"$f":"Table_Data_Table_12[[#This Row],[Pair\nGroup]]+(COUNTIF($A$17:$A191,A191)*0.01)","v":1.69},{"$error":"#N/A"},{"$error":"#N/A"},{"$error":"#N/A"},{"$error":"#N/A"},{"$error":"#N/A"},{"$error":"#N/A"},{"$error":"#N/A"},{"$error":"#N/A"},{"$error":"#N/A"},{"$error":"#N/A"},{"$error":"#N/A"},{"$error":"#N/A"}]
[{"$f":"VLOOKUP($B192,Data_Table[],18,FALSE)","v":0},"",{"$f":"Table_Data_Table_12[[#This Row],[Pair\nGroup]]+(COUNTIF($A$17:$A192,A192)*0.01)","v":1.7},{"$error":"#N/A"},{"$error":"#N/A"},{"$error":"#N/A"},{"$error":"#N/A"},{"$error":"#N/A"},{"$error":"#N/A"},{"$error":"#N/A"},{"$error":"#N/A"},{"$error":"#N/A"},{"$error":"#N/A"},{"$error":"#N/A"},{"$error":"#N/A"}]
[{"$f":"VLOOKUP($B193,Data_Table[],18,FALSE)","v":0},"",{"$f":"Table_Data_Table_12[[#This Row],[Pair\nGroup]]+(COUNTIF($A$17:$A193,A193)*0.01)","v":1.71},{"$error":"#N/A"},{"$error":"#N/A"},{"$error":"#N/A"},{"$error":"#N/A"},{"$error":"#N/A"},{"$error":"#N/A"},{"$error":"#N/A"},{"$error":"#N/A"},{"$error":"#N/A"},{"$error":"#N/A"},{"$error":"#N/A"},{"$error":"#N/A"}]
[{"$f":"VLOOKUP($B194,Data_Table[],18,FALSE)","v":0},"",{"$f":"Table_Data_Table_12[[#This Row],[Pair\nGroup]]+(COUNTIF($A$17:$A194,A194)*0.01)","v":1.72},{"$error":"#N/A"},{"$error":"#N/A"},{"$error":"#N/A"},{"$error":"#N/A"},{"$error":"#N/A"},{"$error":"#N/A"},{"$error":"#N/A"},{"$error":"#N/A"},{"$error":"#N/A"},{"$error":"#N/A"},{"$error":"#N/A"},{"$error":"#N/A"}]
[{"$f":"VLOOKUP($B195,Data_Table[],18,FALSE)","v":0},"",{"$f":"Table_Data_Table_12[[#This Row],[Pair\nGroup]]+(COUNTIF($A$17:$A195,A195)*0.01)","v":1.73},{"$error":"#N/A"},{"$error":"#N/A"},{"$error":"#N/A"},{"$error":"#N/A"},{"$error":"#N/A"},{"$error":"#N/A"},{"$error":"#N/A"},{"$error":"#N/A"},{"$error":"#N/A"},{"$error":"#N/A"},{"$error":"#N/A"},{"$error":"#N/A"}]
[{"$f":"VLOOKUP($B196,Data_Table[],18,FALSE)","v":0},"",{"$f":"Table_Data_Table_12[[#This Row],[Pair\nGroup]]+(COUNTIF($A$17:$A196,A196)*0.01)","v":1.74},{"$error":"#N/A"},{"$error":"#N/A"},{"$error":"#N/A"},{"$error":"#N/A"},{"$error":"#N/A"},{"$error":"#N/A"},{"$error":"#N/A"},{"$error":"#N/A"},{"$error":"#N/A"},{"$error":"#N/A"},{"$error":"#N/A"},{"$error":"#N/A"}]
[{"$f":"VLOOKUP($B197,Data_Table[],18,FALSE)","v":0},"",{"$f":"Table_Data_Table_12[[#This Row],[Pair\nGroup]]+(COUNTIF($A$17:$A197,A197)*0.01)","v":1.75},{"$error":"#N/A"},{"$error":"#N/A"},{"$error":"#N/A"},{"$error":"#N/A"},{"$error":"#N/A"},{"$error":"#N/A"},{"$error":"#N/A"},{"$error":"#N/A"},{"$error":"#N/A"},{"$error":"#N/A"},{"$error":"#N/A"},{"$error":"#N/A"}]
[{"$f":"VLOOKUP($B198,Data_Table[],18,FALSE)","v":0},"",{"$f":"Table_Data_Table_12[[#This Row],[Pair\nGroup]]+(COUNTIF($A$17:$A198,A198)*0.01)","v":1.76},{"$error":"#N/A"},{"$error":"#N/A"},{"$error":"#N/A"},{"$error":"#N/A"},{"$error":"#N/A"},{"$error":"#N/A"},{"$error":"#N/A"},{"$error":"#N/A"},{"$error":"#N/A"},{"$error":"#N/A"},{"$error":"#N/A"},{"$error":"#N/A"}]
[{"$f":"VLOOKUP($B199,Data_Table[],18,FALSE)","v":0},"",{"$f":"Table_Data_Table_12[[#This Row],[Pair\nGroup]]+(COUNTIF($A$17:$A199,A199)*0.01)","v":1.77},{"$error":"#N/A"},{"$error":"#N/A"},{"$error":"#N/A"},{"$error":"#N/A"},{"$error":"#N/A"},{"$error":"#N/A"},{"$error":"#N/A"},{"$error":"#N/A"},{"$error":"#N/A"},{"$error":"#N/A"},{"$error":"#N/A"},{"$error":"#N/A"}]
[{"$f":"VLOOKUP($B200,Data_Table[],18,FALSE)","v":0},"",{"$f":"Table_Data_Table_12[[#This Row],[Pair\nGroup]]+(COUNTIF($A$17:$A200,A200)*0.01)","v":1.78},{"$error":"#N/A"},{"$error":"#N/A"},{"$error":"#N/A"},{"$error":"#N/A"},{"$error":"#N/A"},{"$error":"#N/A"},{"$error":"#N/A"},{"$error":"#N/A"},{"$error":"#N/A"},{"$error":"#N/A"},{"$error":"#N/A"},{"$error":"#N/A"}]
[{"$f":"VLOOKUP($B201,Data_Table[],18,FALSE)","v":0},"",{"$f":"Table_Data_Table_12[[#This Row],[Pair\nGroup]]+(COUNTIF($A$17:$A201,A201)*0.01)","v":1.79},{"$error":"#N/A"},{"$error":"#N/A"},{"$error":"#N/A"},{"$error":"#N/A"},{"$error":"#N/A"},{"$error":"#N/A"},{"$error":"#N/A"},{"$error":"#N/A"},{"$error":"#N/A"},{"$error":"#N/A"},{"$error":"#N/A"},{"$error":"#N/A"}]
[{"$f":"VLOOKUP($B202,Data_Table[],18,FALSE)","v":0},"",{"$f":"Table_Data_Table_12[[#This Row],[Pair\nGroup]]+(COUNTIF($A$17:$A202,A202)*0.01)","v":1.8},{"$error":"#N/A"},{"$error":"#N/A"},{"$error":"#N/A"},{"$error":"#N/A"},{"$error":"#N/A"},{"$error":"#N/A"},{"$error":"#N/A"},{"$error":"#N/A"},{"$error":"#N/A"},{"$error":"#N/A"},{"$error":"#N/A"},{"$error":"#N/A"}]
[{"$f":"VLOOKUP($B203,Data_Table[],18,FALSE)","v":0},"",{"$f":"Table_Data_Table_12[[#This Row],[Pair\nGroup]]+(COUNTIF($A$17:$A203,A203)*0.01)","v":1.81},{"$error":"#N/A"},{"$error":"#N/A"},{"$error":"#N/A"},{"$error":"#N/A"},{"$error":"#N/A"},{"$error":"#N/A"},{"$error":"#N/A"},{"$error":"#N/A"},{"$error":"#N/A"},{"$error":"#N/A"},{"$error":"#N/A"},{"$error":"#N/A"}]
[{"$f":"VLOOKUP($B204,Data_Table[],18,FALSE)","v":0},"",{"$f":"Table_Data_Table_12[[#This Row],[Pair\nGroup]]+(COUNTIF($A$17:$A204,A204)*0.01)","v":1.82},{"$error":"#N/A"},{"$error":"#N/A"},{"$error":"#N/A"},{"$error":"#N/A"},{"$error":"#N/A"},{"$error":"#N/A"},{"$error":"#N/A"},{"$error":"#N/A"},{"$error":"#N/A"},{"$error":"#N/A"},{"$error":"#N/A"},{"$error":"#N/A"}]
[{"$f":"VLOOKUP($B205,Data_Table[],18,FALSE)","v":0},"",{"$f":"Table_Data_Table_12[[#This Row],[Pair\nGroup]]+(COUNTIF($A$17:$A205,A205)*0.01)","v":1.83},{"$error":"#N/A"},{"$error":"#N/A"},{"$error":"#N/A"},{"$error":"#N/A"},{"$error":"#N/A"},{"$error":"#N/A"},{"$error":"#N/A"},{"$error":"#N/A"},{"$error":"#N/A"},{"$error":"#N/A"},{"$error":"#N/A"},{"$error":"#N/A"}]
[{"$f":"VLOOKUP($B206,Data_Table[],18,FALSE)","v":0},"",{"$f":"Table_Data_Table_12[[#This Row],[Pair\nGroup]]+(COUNTIF($A$17:$A206,A206)*0.01)","v":1.84},{"$error":"#N/A"},{"$error":"#N/A"},{"$error":"#N/A"},{"$error":"#N/A"},{"$error":"#N/A"},{"$error":"#N/A"},{"$error":"#N/A"},{"$error":"#N/A"},{"$error":"#N/A"},{"$error":"#N/A"},{"$error":"#N/A"},{"$error":"#N/A"}]
[{"$f":"VLOOKUP($B207,Data_Table[],18,FALSE)","v":0},"",{"$f":"Table_Data_Table_12[[#This Row],[Pair\nGroup]]+(COUNTIF($A$17:$A207,A207)*0.01)","v":1.85},{"$error":"#N/A"},{"$error":"#N/A"},{"$error":"#N/A"},{"$error":"#N/A"},{"$error":"#N/A"},{"$error":"#N/A"},{"$error":"#N/A"},{"$error":"#N/A"},{"$error":"#N/A"},{"$error":"#N/A"},{"$error":"#N/A"},{"$error":"#N/A"}]
[{"$f":"VLOOKUP($B208,Data_Table[],18,FALSE)","v":0},"",{"$f":"Table_Data_Table_12[[#This Row],[Pair\nGroup]]+(COUNTIF($A$17:$A208,A208)*0.01)","v":1.86},{"$error":"#N/A"},{"$error":"#N/A"},{"$error":"#N/A"},{"$error":"#N/A"},{"$error":"#N/A"},{"$error":"#N/A"},{"$error":"#N/A"},{"$error":"#N/A"},{"$error":"#N/A"},{"$error":"#N/A"},{"$error":"#N/A"},{"$error":"#N/A"}]
[{"$f":"VLOOKUP($B209,Data_Table[],18,FALSE)","v":0},"",{"$f":"Table_Data_Table_12[[#This Row],[Pair\nGroup]]+(COUNTIF($A$17:$A209,A209)*0.01)","v":1.87},{"$f":"VLOOKUP($B209,DataTable,2,FALSE)","v":{"$error":"#N/A"}},{"$f":"VLOOKUP($B209,DataTable,3,FALSE)","v":{"$error":"#N/A"}},{"$f":"VLOOKUP($B209,DataTable,4,FALSE)","v":{"$error":"#N/A"}},{"$f":"VLOOKUP($B209,DataTable,5,FALSE)","v":{"$error":"#N/A"}},{"$f":"VLOOKUP($B209,DataTable,6,FALSE)","v":{"$error":"#N/A"}},{"$f":"ROUND((VLOOKUP($B209,DataTable,10,FALSE)-VLOOKUP($B209,DataTable,12,FALSE))/43560,3)","v":{"$error":"#N/A"}},{"$f":"VLOOKUP($B209,DataTable,11,FALSE)","v":{"$error":"#N/A"}},{"$f":"VLOOKUP($B209,DataTable,13,FALSE)","v":{"$error":"#N/A"}},{"$f":"VLOOKUP($B209,Analysis_Table,8,FALSE)","v":{"$error":"#N/A"}},{"$f":"VLOOKUP($B209,Analysis_Table,9,FALSE)","v":{"$error":"#N/A"}},{"$f":"L209/I209","v":{"$error":"#N/A"}},{"$f":"ROUND(L209/(VLOOKUP($B209,DataTable,10,FALSE)-VLOOKUP($B209,DataTable,12,FALSE)),2)","v":{"$error":"#N/A"}}]
[{"$f":"VLOOKUP($B210,Data_Table[],18,FALSE)","v":0},"",{"$f":"Table_Data_Table_12[[#This Row],[Pair\nGroup]]+(COUNTIF($A$17:$A210,A210)*0.01)","v":1.8800000000000001},{"$error":"#N/A"},{"$error":"#N/A"},{"$error":"#N/A"},{"$error":"#N/A"},{"$error":"#N/A"},{"$error":"#N/A"},{"$error":"#N/A"},{"$error":"#N/A"},{"$error":"#N/A"},{"$error":"#N/A"},{"$error":"#N/A"},{"$error":"#N/A"}]
[{"$f":"VLOOKUP($B211,Data_Table[],18,FALSE)","v":0},"",{"$f":"Table_Data_Table_12[[#This Row],[Pair\nGroup]]+(COUNTIF($A$17:$A211,A211)*0.01)","v":1.8900000000000001},{"$error":"#N/A"},{"$error":"#N/A"},{"$error":"#N/A"},{"$error":"#N/A"},{"$error":"#N/A"},{"$error":"#N/A"},{"$error":"#N/A"},{"$error":"#N/A"},{"$error":"#N/A"},{"$error":"#N/A"},{"$error":"#N/A"},{"$error":"#N/A"}]
[{"$f":"VLOOKUP($B212,Data_Table[],18,FALSE)","v":0},"",{"$f":"Table_Data_Table_12[[#This Row],[Pair\nGroup]]+(COUNTIF($A$17:$A212,A212)*0.01)","v":1.9000000000000001},{"$error":"#N/A"},{"$error":"#N/A"},{"$error":"#N/A"},{"$error":"#N/A"},{"$error":"#N/A"},{"$error":"#N/A"},{"$error":"#N/A"},{"$error":"#N/A"},{"$error":"#N/A"},{"$error":"#N/A"},{"$error":"#N/A"},{"$error":"#N/A"}]
[{"$f":"VLOOKUP($B213,Data_Table[],18,FALSE)","v":0},"",{"$f":"Table_Data_Table_12[[#This Row],[Pair\nGroup]]+(COUNTIF($A$17:$A213,A213)*0.01)","v":1.9100000000000001},{"$error":"#N/A"},{"$error":"#N/A"},{"$error":"#N/A"},{"$error":"#N/A"},{"$error":"#N/A"},{"$error":"#N/A"},{"$error":"#N/A"},{"$error":"#N/A"},{"$error":"#N/A"},{"$error":"#N/A"},{"$error":"#N/A"},{"$error":"#N/A"}]
[{"$f":"VLOOKUP($B214,Data_Table[],18,FALSE)","v":0},"",{"$f":"Table_Data_Table_12[[#This Row],[Pair\nGroup]]+(COUNTIF($A$17:$A214,A214)*0.01)","v":1.92},{"$error":"#N/A"},{"$error":"#N/A"},{"$error":"#N/A"},{"$error":"#N/A"},{"$error":"#N/A"},{"$error":"#N/A"},{"$error":"#N/A"},{"$error":"#N/A"},{"$error":"#N/A"},{"$error":"#N/A"},{"$error":"#N/A"},{"$error":"#N/A"}]
[{"$f":"VLOOKUP($B215,Data_Table[],18,FALSE)","v":0},"",{"$f":"Table_Data_Table_12[[#This Row],[Pair\nGroup]]+(COUNTIF($A$17:$A215,A215)*0.01)","v":1.93},{"$error":"#N/A"},{"$error":"#N/A"},{"$error":"#N/A"},{"$error":"#N/A"},{"$error":"#N/A"},{"$error":"#N/A"},{"$error":"#N/A"},{"$error":"#N/A"},{"$error":"#N/A"},{"$error":"#N/A"},{"$error":"#N/A"},{"$error":"#N/A"}]
[{"$f":"VLOOKUP($B216,Data_Table[],18,FALSE)","v":0},"",{"$f":"Table_Data_Table_12[[#This Row],[Pair\nGroup]]+(COUNTIF($A$17:$A216,A216)*0.01)","v":1.94},{"$error":"#N/A"},{"$error":"#N/A"},{"$error":"#N/A"},{"$error":"#N/A"},{"$error":"#N/A"},{"$error":"#N/A"},{"$error":"#N/A"},{"$error":"#N/A"},{"$error":"#N/A"},{"$error":"#N/A"},{"$error":"#N/A"},{"$error":"#N/A"}]
[{"$f":"VLOOKUP($B217,Data_Table[],18,FALSE)","v":0},"",{"$f":"Table_Data_Table_12[[#This Row],[Pair\nGroup]]+(COUNTIF($A$17:$A217,A217)*0.01)","v":1.95},{"$error":"#N/A"},{"$error":"#N/A"},{"$error":"#N/A"},{"$error":"#N/A"},{"$error":"#N/A"},{"$error":"#N/A"},{"$error":"#N/A"},{"$error":"#N/A"},{"$error":"#N/A"},{"$error":"#N/A"},{"$error":"#N/A"},{"$error":"#N/A"}]
[{"$f":"VLOOKUP($B218,Data_Table[],18,FALSE)","v":0},"",{"$f":"Table_Data_Table_12[[#This Row],[Pair\nGroup]]+(COUNTIF($A$17:$A218,A218)*0.01)","v":1.96},{"$error":"#N/A"},{"$error":"#N/A"},{"$error":"#N/A"},{"$error":"#N/A"},{"$error":"#N/A"},{"$error":"#N/A"},{"$error":"#N/A"},{"$error":"#N/A"},{"$error":"#N/A"},{"$error":"#N/A"},{"$error":"#N/A"},{"$error":"#N/A"}]
[{"$f":"VLOOKUP($B219,Data_Table[],18,FALSE)","v":0},"",{"$f":"Table_Data_Table_12[[#This Row],[Pair\nGroup]]+(COUNTIF($A$17:$A219,A219)*0.01)","v":1.97},{"$error":"#N/A"},{"$error":"#N/A"},{"$error":"#N/A"},{"$error":"#N/A"},{"$error":"#N/A"},{"$error":"#N/A"},{"$error":"#N/A"},{"$error":"#N/A"},{"$error":"#N/A"},{"$error":"#N/A"},{"$error":"#N/A"},{"$error":"#N/A"}]
[{"$f":"VLOOKUP($B220,Data_Table[],18,FALSE)","v":0},"",{"$f":"Table_Data_Table_12[[#This Row],[Pair\nGroup]]+(COUNTIF($A$17:$A220,A220)*0.01)","v":1.98},{"$error":"#N/A"},{"$error":"#N/A"},{"$error":"#N/A"},{"$error":"#N/A"},{"$error":"#N/A"},{"$error":"#N/A"},{"$error":"#N/A"},{"$error":"#N/A"},{"$error":"#N/A"},{"$error":"#N/A"},{"$error":"#N/A"},{"$error":"#N/A"}]
[{"$f":"VLOOKUP($B221,Data_Table[],18,FALSE)","v":0},"",{"$f":"Table_Data_Table_12[[#This Row],[Pair\nGroup]]+(COUNTIF($A$17:$A221,A221)*0.01)","v":1.99},{"$error":"#N/A"},{"$error":"#N/A"},{"$error":"#N/A"},{"$error":"#N/A"},{"$error":"#N/A"},{"$error":"#N/A"},{"$error":"#N/A"},{"$error":"#N/A"},{"$error":"#N/A"},{"$error":"#N/A"},{"$error":"#N/A"},{"$error":"#N/A"}]
[{"$f":"VLOOKUP($B222,Data_Table[],18,FALSE)","v":0},"",{"$f":"Table_Data_Table_12[[#This Row],[Pair\nGroup]]+(COUNTIF($A$17:$A222,A222)*0.01)","v":2},{"$error":"#N/A"},{"$error":"#N/A"},{"$error":"#N/A"},{"$error":"#N/A"},{"$error":"#N/A"},{"$error":"#N/A"},{"$error":"#N/A"},{"$error":"#N/A"},{"$error":"#N/A"},{"$error":"#N/A"},{"$error":"#N/A"},{"$error":"#N/A"}]
[{"$f":"VLOOKUP($B223,Data_Table[],18,FALSE)","v":0},"",{"$f":"Table_Data_Table_12[[#This Row],[Pair\nGroup]]+(COUNTIF($A$17:$A223,A223)*0.01)","v":2.0100000000000002},{"$error":"#N/A"},{"$error":"#N/A"},{"$error":"#N/A"},{"$error":"#N/A"},{"$error":"#N/A"},{"$error":"#N/A"},{"$error":"#N/A"},{"$error":"#N/A"},{"$error":"#N/A"},{"$error":"#N/A"},{"$error":"#N/A"},{"$error":"#N/A"}]
[{"$f":"VLOOKUP($B224,Data_Table[],18,FALSE)","v":0},"",{"$f":"Table_Data_Table_12[[#This Row],[Pair\nGroup]]+(COUNTIF($A$17:$A224,A224)*0.01)","v":2.02},{"$error":"#N/A"},{"$error":"#N/A"},{"$error":"#N/A"},{"$error":"#N/A"},{"$error":"#N/A"},{"$error":"#N/A"},{"$error":"#N/A"},{"$error":"#N/A"},{"$error":"#N/A"},{"$error":"#N/A"},{"$error":"#N/A"},{"$error":"#N/A"}]
[{"$f":"VLOOKUP($B225,Data_Table[],18,FALSE)","v":0},"",{"$f":"Table_Data_Table_12[[#This Row],[Pair\nGroup]]+(COUNTIF($A$17:$A225,A225)*0.01)","v":2.0300000000000002},{"$error":"#N/A"},{"$error":"#N/A"},{"$error":"#N/A"},{"$error":"#N/A"},{"$error":"#N/A"},{"$error":"#N/A"},{"$error":"#N/A"},{"$error":"#N/A"},{"$error":"#N/A"},{"$error":"#N/A"},{"$error":"#N/A"},{"$error":"#N/A"}]
[{"$f":"VLOOKUP($B226,Data_Table[],18,FALSE)","v":0},"",{"$f":"Table_Data_Table_12[[#This Row],[Pair\nGroup]]+(COUNTIF($A$17:$A226,A226)*0.01)","v":2.04},{"$error":"#N/A"},{"$error":"#N/A"},{"$error":"#N/A"},{"$error":"#N/A"},{"$error":"#N/A"},{"$error":"#N/A"},{"$error":"#N/A"},{"$error":"#N/A"},{"$error":"#N/A"},{"$error":"#N/A"},{"$error":"#N/A"},{"$error":"#N/A"}]
[{"$f":"VLOOKUP($B227,Data_Table[],18,FALSE)","v":0},"",{"$f":"Table_Data_Table_12[[#This Row],[Pair\nGroup]]+(COUNTIF($A$17:$A227,A227)*0.01)","v":2.0499999999999998},{"$error":"#N/A"},{"$error":"#N/A"},{"$error":"#N/A"},{"$error":"#N/A"},{"$error":"#N/A"},{"$error":"#N/A"},{"$error":"#N/A"},{"$error":"#N/A"},{"$error":"#N/A"},{"$error":"#N/A"},{"$error":"#N/A"},{"$error":"#N/A"}]
[{"$f":"VLOOKUP($B228,Data_Table[],18,FALSE)","v":0},"",{"$f":"Table_Data_Table_12[[#This Row],[Pair\nGroup]]+(COUNTIF($A$17:$A228,A228)*0.01)","v":2.06},{"$error":"#N/A"},{"$error":"#N/A"},{"$error":"#N/A"},{"$error":"#N/A"},{"$error":"#N/A"},{"$error":"#N/A"},{"$error":"#N/A"},{"$error":"#N/A"},{"$error":"#N/A"},{"$error":"#N/A"},{"$error":"#N/A"},{"$error":"#N/A"}]
[{"$f":"VLOOKUP($B229,Data_Table[],18,FALSE)","v":0},"",{"$f":"Table_Data_Table_12[[#This Row],[Pair\nGroup]]+(COUNTIF($A$17:$A229,A229)*0.01)","v":2.0699999999999998},{"$error":"#N/A"},{"$error":"#N/A"},{"$error":"#N/A"},{"$error":"#N/A"},{"$error":"#N/A"},{"$error":"#N/A"},{"$error":"#N/A"},{"$error":"#N/A"},{"$error":"#N/A"},{"$error":"#N/A"},{"$error":"#N/A"},{"$error":"#N/A"}]
[{"$f":"VLOOKUP($B230,Data_Table[],18,FALSE)","v":0},"",{"$f":"Table_Data_Table_12[[#This Row],[Pair\nGroup]]+(COUNTIF($A$17:$A230,A230)*0.01)","v":2.08},{"$error":"#N/A"},{"$error":"#N/A"},{"$error":"#N/A"},{"$error":"#N/A"},{"$error":"#N/A"},{"$error":"#N/A"},{"$error":"#N/A"},{"$error":"#N/A"},{"$error":"#N/A"},{"$error":"#N/A"},{"$error":"#N/A"},{"$error":"#N/A"}]
[{"$f":"VLOOKUP($B231,Data_Table[],18,FALSE)","v":0},"",{"$f":"Table_Data_Table_12[[#This Row],[Pair\nGroup]]+(COUNTIF($A$17:$A231,A231)*0.01)","v":2.09},{"$error":"#N/A"},{"$error":"#N/A"},{"$error":"#N/A"},{"$error":"#N/A"},{"$error":"#N/A"},{"$error":"#N/A"},{"$error":"#N/A"},{"$error":"#N/A"},{"$error":"#N/A"},{"$error":"#N/A"},{"$error":"#N/A"},{"$error":"#N/A"}]
[{"$f":"VLOOKUP($B232,Data_Table[],18,FALSE)","v":0},"",{"$f":"Table_Data_Table_12[[#This Row],[Pair\nGroup]]+(COUNTIF($A$17:$A232,A232)*0.01)","v":2.1},{"$error":"#N/A"},{"$error":"#N/A"},{"$error":"#N/A"},{"$error":"#N/A"},{"$error":"#N/A"},{"$error":"#N/A"},{"$error":"#N/A"},{"$error":"#N/A"},{"$error":"#N/A"},{"$error":"#N/A"},{"$error":"#N/A"},{"$error":"#N/A"}]
[{"$f":"VLOOKUP($B233,Data_Table[],18,FALSE)","v":0},"",{"$f":"Table_Data_Table_12[[#This Row],[Pair\nGroup]]+(COUNTIF($A$17:$A233,A233)*0.01)","v":2.11},{"$error":"#N/A"},{"$error":"#N/A"},{"$error":"#N/A"},{"$error":"#N/A"},{"$error":"#N/A"},{"$error":"#N/A"},{"$error":"#N/A"},{"$error":"#N/A"},{"$error":"#N/A"},{"$error":"#N/A"},{"$error":"#N/A"},{"$error":"#N/A"}]
[{"$f":"VLOOKUP($B234,Data_Table[],18,FALSE)","v":0},"",{"$f":"Table_Data_Table_12[[#This Row],[Pair\nGroup]]+(COUNTIF($A$17:$A234,A234)*0.01)","v":2.12},{"$error":"#N/A"},{"$error":"#N/A"},{"$error":"#N/A"},{"$error":"#N/A"},{"$error":"#N/A"},{"$error":"#N/A"},{"$error":"#N/A"},{"$error":"#N/A"},{"$error":"#N/A"},{"$error":"#N/A"},{"$error":"#N/A"},{"$error":"#N/A"}]
[{"$f":"VLOOKUP($B235,Data_Table[],18,FALSE)","v":0},"",{"$f":"Table_Data_Table_12[[#This Row],[Pair\nGroup]]+(COUNTIF($A$17:$A235,A235)*0.01)","v":2.13},{"$error":"#N/A"},{"$error":"#N/A"},{"$error":"#N/A"},{"$error":"#N/A"},{"$error":"#N/A"},{"$error":"#N/A"},{"$error":"#N/A"},{"$error":"#N/A"},{"$error":"#N/A"},{"$error":"#N/A"},{"$error":"#N/A"},{"$error":"#N/A"}]
[{"$f":"VLOOKUP($B236,Data_Table[],18,FALSE)","v":0},"",{"$f":"Table_Data_Table_12[[#This Row],[Pair\nGroup]]+(COUNTIF($A$17:$A236,A236)*0.01)","v":2.14},{"$error":"#N/A"},{"$error":"#N/A"},{"$error":"#N/A"},{"$error":"#N/A"},{"$error":"#N/A"},{"$error":"#N/A"},{"$error":"#N/A"},{"$error":"#N/A"},{"$error":"#N/A"},{"$error":"#N/A"},{"$error":"#N/A"},{"$error":"#N/A"}]
[{"$f":"VLOOKUP($B237,Data_Table[],18,FALSE)","v":0},"",{"$f":"Table_Data_Table_12[[#This Row],[Pair\nGroup]]+(COUNTIF($A$17:$A237,A237)*0.01)","v":2.15},{"$error":"#N/A"},{"$error":"#N/A"},{"$error":"#N/A"},{"$error":"#N/A"},{"$error":"#N/A"},{"$error":"#N/A"},{"$error":"#N/A"},{"$error":"#N/A"},{"$error":"#N/A"},{"$error":"#N/A"},{"$error":"#N/A"},{"$error":"#N/A"}]
[{"$f":"VLOOKUP($B238,Data_Table[],18,FALSE)","v":0},"",{"$f":"Table_Data_Table_12[[#This Row],[Pair\nGroup]]+(COUNTIF($A$17:$A238,A238)*0.01)","v":2.16},{"$error":"#N/A"},{"$error":"#N/A"},{"$error":"#N/A"},{"$error":"#N/A"},{"$error":"#N/A"},{"$error":"#N/A"},{"$error":"#N/A"},{"$error":"#N/A"},{"$error":"#N/A"},{"$error":"#N/A"},{"$error":"#N/A"},{"$error":"#N/A"}]
[{"$f":"VLOOKUP($B239,Data_Table[],18,FALSE)","v":0},"",{"$f":"Table_Data_Table_12[[#This Row],[Pair\nGroup]]+(COUNTIF($A$17:$A239,A239)*0.01)","v":2.17},{"$error":"#N/A"},{"$error":"#N/A"},{"$error":"#N/A"},{"$error":"#N/A"},{"$error":"#N/A"},{"$error":"#N/A"},{"$error":"#N/A"},{"$error":"#N/A"},{"$error":"#N/A"},{"$error":"#N/A"},{"$error":"#N/A"},{"$error":"#N/A"}]
[{"$f":"VLOOKUP($B240,Data_Table[],18,FALSE)","v":0},"",{"$f":"Table_Data_Table_12[[#This Row],[Pair\nGroup]]+(COUNTIF($A$17:$A240,A240)*0.01)","v":2.1800000000000002},{"$error":"#N/A"},{"$error":"#N/A"},{"$error":"#N/A"},{"$error":"#N/A"},{"$error":"#N/A"},{"$error":"#N/A"},{"$error":"#N/A"},{"$error":"#N/A"},{"$error":"#N/A"},{"$error":"#N/A"},{"$error":"#N/A"},{"$error":"#N/A"}]
[{"$f":"VLOOKUP($B241,Data_Table[],18,FALSE)","v":0},"",{"$f":"Table_Data_Table_12[[#This Row],[Pair\nGroup]]+(COUNTIF($A$17:$A241,A241)*0.01)","v":2.19},{"$error":"#N/A"},{"$error":"#N/A"},{"$error":"#N/A"},{"$error":"#N/A"},{"$error":"#N/A"},{"$error":"#N/A"},{"$error":"#N/A"},{"$error":"#N/A"},{"$error":"#N/A"},{"$error":"#N/A"},{"$error":"#N/A"},{"$error":"#N/A"}]
[{"$f":"VLOOKUP($B242,Data_Table[],18,FALSE)","v":0},"",{"$f":"Table_Data_Table_12[[#This Row],[Pair\nGroup]]+(COUNTIF($A$17:$A242,A242)*0.01)","v":2.2000000000000002},{"$error":"#N/A"},{"$error":"#N/A"},{"$error":"#N/A"},{"$error":"#N/A"},{"$error":"#N/A"},{"$error":"#N/A"},{"$error":"#N/A"},{"$error":"#N/A"},{"$error":"#N/A"},{"$error":"#N/A"},{"$error":"#N/A"},{"$error":"#N/A"}]
[{"$f":"VLOOKUP($B243,Data_Table[],18,FALSE)","v":0},"",{"$f":"Table_Data_Table_12[[#This Row],[Pair\nGroup]]+(COUNTIF($A$17:$A243,A243)*0.01)","v":2.21},{"$error":"#N/A"},{"$error":"#N/A"},{"$error":"#N/A"},{"$error":"#N/A"},{"$error":"#N/A"},{"$error":"#N/A"},{"$error":"#N/A"},{"$error":"#N/A"},{"$error":"#N/A"},{"$error":"#N/A"},{"$error":"#N/A"},{"$error":"#N/A"}]
[{"$f":"VLOOKUP($B244,Data_Table[],18,FALSE)","v":0},"",{"$f":"Table_Data_Table_12[[#This Row],[Pair\nGroup]]+(COUNTIF($A$17:$A244,A244)*0.01)","v":2.2200000000000002},{"$error":"#N/A"},{"$error":"#N/A"},{"$error":"#N/A"},{"$error":"#N/A"},{"$error":"#N/A"},{"$error":"#N/A"},{"$error":"#N/A"},{"$error":"#N/A"},{"$error":"#N/A"},{"$error":"#N/A"},{"$error":"#N/A"},{"$error":"#N/A"}]
[{"$f":"VLOOKUP($B245,Data_Table[],18,FALSE)","v":0},"",{"$f":"Table_Data_Table_12[[#This Row],[Pair\nGroup]]+(COUNTIF($A$17:$A245,A245)*0.01)","v":2.23},{"$error":"#N/A"},{"$error":"#N/A"},{"$error":"#N/A"},{"$error":"#N/A"},{"$error":"#N/A"},{"$error":"#N/A"},{"$error":"#N/A"},{"$error":"#N/A"},{"$error":"#N/A"},{"$error":"#N/A"},{"$error":"#N/A"},{"$error":"#N/A"}]
[{"$f":"VLOOKUP($B246,Data_Table[],18,FALSE)","v":0},"",{"$f":"Table_Data_Table_12[[#This Row],[Pair\nGroup]]+(COUNTIF($A$17:$A246,A246)*0.01)","v":2.2400000000000002},{"$error":"#N/A"},{"$error":"#N/A"},{"$error":"#N/A"},{"$error":"#N/A"},{"$error":"#N/A"},{"$error":"#N/A"},{"$error":"#N/A"},{"$error":"#N/A"},{"$error":"#N/A"},{"$error":"#N/A"},{"$error":"#N/A"},{"$error":"#N/A"}]
[{"$f":"VLOOKUP($B247,Data_Table[],18,FALSE)","v":0},"",{"$f":"Table_Data_Table_12[[#This Row],[Pair\nGroup]]+(COUNTIF($A$17:$A247,A247)*0.01)","v":2.25},{"$error":"#N/A"},{"$error":"#N/A"},{"$error":"#N/A"},{"$error":"#N/A"},{"$error":"#N/A"},{"$error":"#N/A"},{"$error":"#N/A"},{"$error":"#N/A"},{"$error":"#N/A"},{"$error":"#N/A"},{"$error":"#N/A"},{"$error":"#N/A"}]
[{"$f":"VLOOKUP($B248,Data_Table[],18,FALSE)","v":0},"",{"$f":"Table_Data_Table_12[[#This Row],[Pair\nGroup]]+(COUNTIF($A$17:$A248,A248)*0.01)","v":2.2600000000000002},{"$error":"#N/A"},{"$error":"#N/A"},{"$error":"#N/A"},{"$error":"#N/A"},{"$error":"#N/A"},{"$error":"#N/A"},{"$error":"#N/A"},{"$error":"#N/A"},{"$error":"#N/A"},{"$error":"#N/A"},{"$error":"#N/A"},{"$error":"#N/A"}]
[{"$f":"VLOOKUP($B249,Data_Table[],18,FALSE)","v":0},"",{"$f":"Table_Data_Table_12[[#This Row],[Pair\nGroup]]+(COUNTIF($A$17:$A249,A249)*0.01)","v":2.27},{"$error":"#N/A"},{"$error":"#N/A"},{"$error":"#N/A"},{"$error":"#N/A"},{"$error":"#N/A"},{"$error":"#N/A"},{"$error":"#N/A"},{"$error":"#N/A"},{"$error":"#N/A"},{"$error":"#N/A"},{"$error":"#N/A"},{"$error":"#N/A"}]
[{"$f":"VLOOKUP($B250,Data_Table[],18,FALSE)","v":0},"",{"$f":"Table_Data_Table_12[[#This Row],[Pair\nGroup]]+(COUNTIF($A$17:$A250,A250)*0.01)","v":2.2800000000000002},{"$error":"#N/A"},{"$error":"#N/A"},{"$error":"#N/A"},{"$error":"#N/A"},{"$error":"#N/A"},{"$error":"#N/A"},{"$error":"#N/A"},{"$error":"#N/A"},{"$error":"#N/A"},{"$error":"#N/A"},{"$error":"#N/A"},{"$error":"#N/A"}]
[{"$f":"VLOOKUP($B251,Data_Table[],18,FALSE)","v":0},"",{"$f":"Table_Data_Table_12[[#This Row],[Pair\nGroup]]+(COUNTIF($A$17:$A251,A251)*0.01)","v":2.29},{"$error":"#N/A"},{"$error":"#N/A"},{"$error":"#N/A"},{"$error":"#N/A"},{"$error":"#N/A"},{"$error":"#N/A"},{"$error":"#N/A"},{"$error":"#N/A"},{"$error":"#N/A"},{"$error":"#N/A"},{"$error":"#N/A"},{"$error":"#N/A"}]
[{"$f":"VLOOKUP($B252,Data_Table[],18,FALSE)","v":0},"",{"$f":"Table_Data_Table_12[[#This Row],[Pair\nGroup]]+(COUNTIF($A$17:$A252,A252)*0.01)","v":2.3000000000000003},{"$error":"#N/A"},{"$error":"#N/A"},{"$error":"#N/A"},{"$error":"#N/A"},{"$error":"#N/A"},{"$error":"#N/A"},{"$error":"#N/A"},{"$error":"#N/A"},{"$error":"#N/A"},{"$error":"#N/A"},{"$error":"#N/A"},{"$error":"#N/A"}]
[{"$f":"VLOOKUP($B253,Data_Table[],18,FALSE)","v":0},"",{"$f":"Table_Data_Table_12[[#This Row],[Pair\nGroup]]+(COUNTIF($A$17:$A253,A253)*0.01)","v":2.31},{"$error":"#N/A"},{"$error":"#N/A"},{"$error":"#N/A"},{"$error":"#N/A"},{"$error":"#N/A"},{"$error":"#N/A"},{"$error":"#N/A"},{"$error":"#N/A"},{"$error":"#N/A"},{"$error":"#N/A"},{"$error":"#N/A"},{"$error":"#N/A"}]
[{"$f":"VLOOKUP($B254,Data_Table[],18,FALSE)","v":0},"",{"$f":"Table_Data_Table_12[[#This Row],[Pair\nGroup]]+(COUNTIF($A$17:$A254,A254)*0.01)","v":2.3199999999999998},{"$error":"#N/A"},{"$error":"#N/A"},{"$error":"#N/A"},{"$error":"#N/A"},{"$error":"#N/A"},{"$error":"#N/A"},{"$error":"#N/A"},{"$error":"#N/A"},{"$error":"#N/A"},{"$error":"#N/A"},{"$error":"#N/A"},{"$error":"#N/A"}]
[{"$f":"VLOOKUP($B255,Data_Table[],18,FALSE)","v":0},"",{"$f":"Table_Data_Table_12[[#This Row],[Pair\nGroup]]+(COUNTIF($A$17:$A255,A255)*0.01)","v":2.33},{"$error":"#N/A"},{"$error":"#N/A"},{"$error":"#N/A"},{"$error":"#N/A"},{"$error":"#N/A"},{"$error":"#N/A"},{"$error":"#N/A"},{"$error":"#N/A"},{"$error":"#N/A"},{"$error":"#N/A"},{"$error":"#N/A"},{"$error":"#N/A"}]
[{"$f":"VLOOKUP($B256,Data_Table[],18,FALSE)","v":0},"",{"$f":"Table_Data_Table_12[[#This Row],[Pair\nGroup]]+(COUNTIF($A$17:$A256,A256)*0.01)","v":2.34},{"$error":"#N/A"},{"$error":"#N/A"},{"$error":"#N/A"},{"$error":"#N/A"},{"$error":"#N/A"},{"$error":"#N/A"},{"$error":"#N/A"},{"$error":"#N/A"},{"$error":"#N/A"},{"$error":"#N/A"},{"$error":"#N/A"},{"$error":"#N/A"}]
[{"$f":"VLOOKUP($B257,Data_Table[],18,FALSE)","v":0},"",{"$f":"Table_Data_Table_12[[#This Row],[Pair\nGroup]]+(COUNTIF($A$17:$A257,A257)*0.01)","v":2.35},{"$error":"#N/A"},{"$error":"#N/A"},{"$error":"#N/A"},{"$error":"#N/A"},{"$error":"#N/A"},{"$error":"#N/A"},{"$error":"#N/A"},{"$error":"#N/A"},{"$error":"#N/A"},{"$error":"#N/A"},{"$error":"#N/A"},{"$error":"#N/A"}]
[{"$f":"VLOOKUP($B258,Data_Table[],18,FALSE)","v":0},"",{"$f":"Table_Data_Table_12[[#This Row],[Pair\nGroup]]+(COUNTIF($A$17:$A258,A258)*0.01)","v":2.36},{"$error":"#N/A"},{"$error":"#N/A"},{"$error":"#N/A"},{"$error":"#N/A"},{"$error":"#N/A"},{"$error":"#N/A"},{"$error":"#N/A"},{"$error":"#N/A"},{"$error":"#N/A"},{"$error":"#N/A"},{"$error":"#N/A"},{"$error":"#N/A"}]
[{"$f":"VLOOKUP($B259,Data_Table[],18,FALSE)","v":0},"",{"$f":"Table_Data_Table_12[[#This Row],[Pair\nGroup]]+(COUNTIF($A$17:$A259,A259)*0.01)","v":2.37},{"$error":"#N/A"},{"$error":"#N/A"},{"$error":"#N/A"},{"$error":"#N/A"},{"$error":"#N/A"},{"$error":"#N/A"},{"$error":"#N/A"},{"$error":"#N/A"},{"$error":"#N/A"},{"$error":"#N/A"},{"$error":"#N/A"},{"$error":"#N/A"}]
[{"$f":"VLOOKUP($B260,Data_Table[],18,FALSE)","v":0},"",{"$f":"Table_Data_Table_12[[#This Row],[Pair\nGroup]]+(COUNTIF($A$17:$A260,A260)*0.01)","v":2.38},{"$error":"#N/A"},{"$error":"#N/A"},{"$error":"#N/A"},{"$error":"#N/A"},{"$error":"#N/A"},{"$error":"#N/A"},{"$error":"#N/A"},{"$error":"#N/A"},{"$error":"#N/A"},{"$error":"#N/A"},{"$error":"#N/A"},{"$error":"#N/A"}]
[{"$f":"VLOOKUP($B261,Data_Table[],18,FALSE)","v":0},"",{"$f":"Table_Data_Table_12[[#This Row],[Pair\nGroup]]+(COUNTIF($A$17:$A261,A261)*0.01)","v":2.39},{"$error":"#N/A"},{"$error":"#N/A"},{"$error":"#N/A"},{"$error":"#N/A"},{"$error":"#N/A"},{"$error":"#N/A"},{"$error":"#N/A"},{"$error":"#N/A"},{"$error":"#N/A"},{"$error":"#N/A"},{"$error":"#N/A"},{"$error":"#N/A"}]
[{"$f":"VLOOKUP($B262,Data_Table[],18,FALSE)","v":0},"",{"$f":"Table_Data_Table_12[[#This Row],[Pair\nGroup]]+(COUNTIF($A$17:$A262,A262)*0.01)","v":2.4},{"$error":"#N/A"},{"$error":"#N/A"},{"$error":"#N/A"},{"$error":"#N/A"},{"$error":"#N/A"},{"$error":"#N/A"},{"$error":"#N/A"},{"$error":"#N/A"},{"$error":"#N/A"},{"$error":"#N/A"},{"$error":"#N/A"},{"$error":"#N/A"}]
[{"$f":"VLOOKUP($B263,Data_Table[],18,FALSE)","v":0},"",{"$f":"Table_Data_Table_12[[#This Row],[Pair\nGroup]]+(COUNTIF($A$17:$A263,A263)*0.01)","v":2.41},{"$error":"#N/A"},{"$error":"#N/A"},{"$error":"#N/A"},{"$error":"#N/A"},{"$error":"#N/A"},{"$error":"#N/A"},{"$error":"#N/A"},{"$error":"#N/A"},{"$error":"#N/A"},{"$error":"#N/A"},{"$error":"#N/A"},{"$error":"#N/A"}]
[{"$f":"VLOOKUP($B264,Data_Table[],18,FALSE)","v":0},"",{"$f":"Table_Data_Table_12[[#This Row],[Pair\nGroup]]+(COUNTIF($A$17:$A264,A264)*0.01)","v":2.42},{"$error":"#N/A"},{"$error":"#N/A"},{"$error":"#N/A"},{"$error":"#N/A"},{"$error":"#N/A"},{"$error":"#N/A"},{"$error":"#N/A"},{"$error":"#N/A"},{"$error":"#N/A"},{"$error":"#N/A"},{"$error":"#N/A"},{"$error":"#N/A"}]
[{"$f":"VLOOKUP($B265,Data_Table[],18,FALSE)","v":0},"",{"$f":"Table_Data_Table_12[[#This Row],[Pair\nGroup]]+(COUNTIF($A$17:$A265,A265)*0.01)","v":2.4300000000000002},{"$error":"#N/A"},{"$error":"#N/A"},{"$error":"#N/A"},{"$error":"#N/A"},{"$error":"#N/A"},{"$error":"#N/A"},{"$error":"#N/A"},{"$error":"#N/A"},{"$error":"#N/A"},{"$error":"#N/A"},{"$error":"#N/A"},{"$error":"#N/A"}]
[{"$f":"VLOOKUP($B266,Data_Table[],18,FALSE)","v":0},"",{"$f":"Table_Data_Table_12[[#This Row],[Pair\nGroup]]+(COUNTIF($A$17:$A266,A266)*0.01)","v":2.44},{"$error":"#N/A"},{"$error":"#N/A"},{"$error":"#N/A"},{"$error":"#N/A"},{"$error":"#N/A"},{"$error":"#N/A"},{"$error":"#N/A"},{"$error":"#N/A"},{"$error":"#N/A"},{"$error":"#N/A"},{"$error":"#N/A"},{"$error":"#N/A"}]
[{"$f":"VLOOKUP($B267,Data_Table[],18,FALSE)","v":0},"",{"$f":"Table_Data_Table_12[[#This Row],[Pair\nGroup]]+(COUNTIF($A$17:$A267,A267)*0.01)","v":2.4500000000000002},{"$error":"#N/A"},{"$error":"#N/A"},{"$error":"#N/A"},{"$error":"#N/A"},{"$error":"#N/A"},{"$error":"#N/A"},{"$error":"#N/A"},{"$error":"#N/A"},{"$error":"#N/A"},{"$error":"#N/A"},{"$error":"#N/A"},{"$error":"#N/A"}]
[{"$f":"VLOOKUP($B268,Data_Table[],18,FALSE)","v":0},"",{"$f":"Table_Data_Table_12[[#This Row],[Pair\nGroup]]+(COUNTIF($A$17:$A268,A268)*0.01)","v":2.46},{"$error":"#N/A"},{"$error":"#N/A"},{"$error":"#N/A"},{"$error":"#N/A"},{"$error":"#N/A"},{"$error":"#N/A"},{"$error":"#N/A"},{"$error":"#N/A"},{"$error":"#N/A"},{"$error":"#N/A"},{"$error":"#N/A"},{"$error":"#N/A"}]
[{"$f":"VLOOKUP($B269,Data_Table[],18,FALSE)","v":0},"",{"$f":"Table_Data_Table_12[[#This Row],[Pair\nGroup]]+(COUNTIF($A$17:$A269,A269)*0.01)","v":2.4700000000000002},{"$error":"#N/A"},{"$error":"#N/A"},{"$error":"#N/A"},{"$error":"#N/A"},{"$error":"#N/A"},{"$error":"#N/A"},{"$error":"#N/A"},{"$error":"#N/A"},{"$error":"#N/A"},{"$error":"#N/A"},{"$error":"#N/A"},{"$error":"#N/A"}]
[{"$f":"VLOOKUP($B270,Data_Table[],18,FALSE)","v":0},"",{"$f":"Table_Data_Table_12[[#This Row],[Pair\nGroup]]+(COUNTIF($A$17:$A270,A270)*0.01)","v":2.48},{"$error":"#N/A"},{"$error":"#N/A"},{"$error":"#N/A"},{"$error":"#N/A"},{"$error":"#N/A"},{"$error":"#N/A"},{"$error":"#N/A"},{"$error":"#N/A"},{"$error":"#N/A"},{"$error":"#N/A"},{"$error":"#N/A"},{"$error":"#N/A"}]
[{"$f":"VLOOKUP($B271,Data_Table[],18,FALSE)","v":0},"",{"$f":"Table_Data_Table_12[[#This Row],[Pair\nGroup]]+(COUNTIF($A$17:$A271,A271)*0.01)","v":2.4900000000000002},{"$error":"#N/A"},{"$error":"#N/A"},{"$error":"#N/A"},{"$error":"#N/A"},{"$error":"#N/A"},{"$error":"#N/A"},{"$error":"#N/A"},{"$error":"#N/A"},{"$error":"#N/A"},{"$error":"#N/A"},{"$error":"#N/A"},{"$error":"#N/A"}]
[{"$f":"VLOOKUP($B272,Data_Table[],18,FALSE)","v":0},"",{"$f":"Table_Data_Table_12[[#This Row],[Pair\nGroup]]+(COUNTIF($A$17:$A272,A272)*0.01)","v":2.5},{"$error":"#N/A"},{"$error":"#N/A"},{"$error":"#N/A"},{"$error":"#N/A"},{"$error":"#N/A"},{"$error":"#N/A"},{"$error":"#N/A"},{"$error":"#N/A"},{"$error":"#N/A"},{"$error":"#N/A"},{"$error":"#N/A"},{"$error":"#N/A"}]
[{"$f":"VLOOKUP($B273,Data_Table[],18,FALSE)","v":0},"",{"$f":"Table_Data_Table_12[[#This Row],[Pair\nGroup]]+(COUNTIF($A$17:$A273,A273)*0.01)","v":2.5100000000000002},{"$f":"VLOOKUP($B273,DataTable,2,FALSE)","v":{"$error":"#N/A"}},{"$f":"VLOOKUP($B273,DataTable,3,FALSE)","v":{"$error":"#N/A"}},{"$f":"VLOOKUP($B273,DataTable,4,FALSE)","v":{"$error":"#N/A"}},{"$f":"VLOOKUP($B273,DataTable,5,FALSE)","v":{"$error":"#N/A"}},{"$f":"VLOOKUP($B273,DataTable,6,FALSE)","v":{"$error":"#N/A"}},{"$f":"ROUND((VLOOKUP($B273,DataTable,10,FALSE)-VLOOKUP($B273,DataTable,12,FALSE))/43560,3)","v":{"$error":"#N/A"}},{"$f":"VLOOKUP($B273,DataTable,11,FALSE)","v":{"$error":"#N/A"}},{"$f":"VLOOKUP($B273,DataTable,13,FALSE)","v":{"$error":"#N/A"}},{"$f":"VLOOKUP($B273,Analysis_Table,8,FALSE)","v":{"$error":"#N/A"}},{"$f":"VLOOKUP($B273,Analysis_Table,9,FALSE)","v":{"$error":"#N/A"}},{"$f":"L273/I273","v":{"$error":"#N/A"}},{"$f":"ROUND(L273/(VLOOKUP($B273,DataTable,10,FALSE)-VLOOKUP($B273,DataTable,12,FALSE)),2)","v":{"$error":"#N/A"}}]
[{"$f":"VLOOKUP($B274,Data_Table[],18,FALSE)","v":0},"",{"$f":"Table_Data_Table_12[[#This Row],[Pair\nGroup]]+(COUNTIF($A$17:$A274,A274)*0.01)","v":2.52},{"$error":"#N/A"},{"$error":"#N/A"},{"$error":"#N/A"},{"$error":"#N/A"},{"$error":"#N/A"},{"$error":"#N/A"},{"$error":"#N/A"},{"$error":"#N/A"},{"$error":"#N/A"},{"$error":"#N/A"},{"$error":"#N/A"},{"$error":"#N/A"}]
[{"$f":"VLOOKUP($B275,Data_Table[],18,FALSE)","v":0},"",{"$f":"Table_Data_Table_12[[#This Row],[Pair\nGroup]]+(COUNTIF($A$17:$A275,A275)*0.01)","v":2.5300000000000002},{"$error":"#N/A"},{"$error":"#N/A"},{"$error":"#N/A"},{"$error":"#N/A"},{"$error":"#N/A"},{"$error":"#N/A"},{"$error":"#N/A"},{"$error":"#N/A"},{"$error":"#N/A"},{"$error":"#N/A"},{"$error":"#N/A"},{"$error":"#N/A"}]
[{"$f":"VLOOKUP($B276,Data_Table[],18,FALSE)","v":0},"",{"$f":"Table_Data_Table_12[[#This Row],[Pair\nGroup]]+(COUNTIF($A$17:$A276,A276)*0.01)","v":2.54},{"$error":"#N/A"},{"$error":"#N/A"},{"$error":"#N/A"},{"$error":"#N/A"},{"$error":"#N/A"},{"$error":"#N/A"},{"$error":"#N/A"},{"$error":"#N/A"},{"$error":"#N/A"},{"$error":"#N/A"},{"$error":"#N/A"},{"$error":"#N/A"}]
[{"$f":"VLOOKUP($B277,Data_Table[],18,FALSE)","v":0},"",{"$f":"Table_Data_Table_12[[#This Row],[Pair\nGroup]]+(COUNTIF($A$17:$A277,A277)*0.01)","v":2.5500000000000003},{"$error":"#N/A"},{"$error":"#N/A"},{"$error":"#N/A"},{"$error":"#N/A"},{"$error":"#N/A"},{"$error":"#N/A"},{"$error":"#N/A"},{"$error":"#N/A"},{"$error":"#N/A"},{"$error":"#N/A"},{"$error":"#N/A"},{"$error":"#N/A"}]
[{"$f":"VLOOKUP($B278,Data_Table[],18,FALSE)","v":0},"",{"$f":"Table_Data_Table_12[[#This Row],[Pair\nGroup]]+(COUNTIF($A$17:$A278,A278)*0.01)","v":2.56},{"$error":"#N/A"},{"$error":"#N/A"},{"$error":"#N/A"},{"$error":"#N/A"},{"$error":"#N/A"},{"$error":"#N/A"},{"$error":"#N/A"},{"$error":"#N/A"},{"$error":"#N/A"},{"$error":"#N/A"},{"$error":"#N/A"},{"$error":"#N/A"}]
[{"$f":"VLOOKUP($B279,Data_Table[],18,FALSE)","v":0},"",{"$f":"Table_Data_Table_12[[#This Row],[Pair\nGroup]]+(COUNTIF($A$17:$A279,A279)*0.01)","v":2.57},{"$error":"#N/A"},{"$error":"#N/A"},{"$error":"#N/A"},{"$error":"#N/A"},{"$error":"#N/A"},{"$error":"#N/A"},{"$error":"#N/A"},{"$error":"#N/A"},{"$error":"#N/A"},{"$error":"#N/A"},{"$error":"#N/A"},{"$error":"#N/A"}]
[{"$f":"VLOOKUP($B280,Data_Table[],18,FALSE)","v":0},"",{"$f":"Table_Data_Table_12[[#This Row],[Pair\nGroup]]+(COUNTIF($A$17:$A280,A280)*0.01)","v":2.58},{"$error":"#N/A"},{"$error":"#N/A"},{"$error":"#N/A"},{"$error":"#N/A"},{"$error":"#N/A"},{"$error":"#N/A"},{"$error":"#N/A"},{"$error":"#N/A"},{"$error":"#N/A"},{"$error":"#N/A"},{"$error":"#N/A"},{"$error":"#N/A"}]
[{"$f":"VLOOKUP($B281,Data_Table[],18,FALSE)","v":0},"",{"$f":"Table_Data_Table_12[[#This Row],[Pair\nGroup]]+(COUNTIF($A$17:$A281,A281)*0.01)","v":2.59},{"$error":"#N/A"},{"$error":"#N/A"},{"$error":"#N/A"},{"$error":"#N/A"},{"$error":"#N/A"},{"$error":"#N/A"},{"$error":"#N/A"},{"$error":"#N/A"},{"$error":"#N/A"},{"$error":"#N/A"},{"$error":"#N/A"},{"$error":"#N/A"}]
[{"$f":"VLOOKUP($B282,Data_Table[],18,FALSE)","v":0},"",{"$f":"Table_Data_Table_12[[#This Row],[Pair\nGroup]]+(COUNTIF($A$17:$A282,A282)*0.01)","v":2.6},{"$error":"#N/A"},{"$error":"#N/A"},{"$error":"#N/A"},{"$error":"#N/A"},{"$error":"#N/A"},{"$error":"#N/A"},{"$error":"#N/A"},{"$error":"#N/A"},{"$error":"#N/A"},{"$error":"#N/A"},{"$error":"#N/A"},{"$error":"#N/A"}]
[{"$f":"VLOOKUP($B283,Data_Table[],18,FALSE)","v":0},"",{"$f":"Table_Data_Table_12[[#This Row],[Pair\nGroup]]+(COUNTIF($A$17:$A283,A283)*0.01)","v":2.61},{"$error":"#N/A"},{"$error":"#N/A"},{"$error":"#N/A"},{"$error":"#N/A"},{"$error":"#N/A"},{"$error":"#N/A"},{"$error":"#N/A"},{"$error":"#N/A"},{"$error":"#N/A"},{"$error":"#N/A"},{"$error":"#N/A"},{"$error":"#N/A"}]
[{"$f":"VLOOKUP($B284,Data_Table[],18,FALSE)","v":0},"",{"$f":"Table_Data_Table_12[[#This Row],[Pair\nGroup]]+(COUNTIF($A$17:$A284,A284)*0.01)","v":2.62},{"$error":"#N/A"},{"$error":"#N/A"},{"$error":"#N/A"},{"$error":"#N/A"},{"$error":"#N/A"},{"$error":"#N/A"},{"$error":"#N/A"},{"$error":"#N/A"},{"$error":"#N/A"},{"$error":"#N/A"},{"$error":"#N/A"},{"$error":"#N/A"}]
[{"$f":"VLOOKUP($B285,Data_Table[],18,FALSE)","v":0},"",{"$f":"Table_Data_Table_12[[#This Row],[Pair\nGroup]]+(COUNTIF($A$17:$A285,A285)*0.01)","v":2.63},{"$error":"#N/A"},{"$error":"#N/A"},{"$error":"#N/A"},{"$error":"#N/A"},{"$error":"#N/A"},{"$error":"#N/A"},{"$error":"#N/A"},{"$error":"#N/A"},{"$error":"#N/A"},{"$error":"#N/A"},{"$error":"#N/A"},{"$error":"#N/A"}]
[{"$f":"VLOOKUP($B286,Data_Table[],18,FALSE)","v":0},"",{"$f":"Table_Data_Table_12[[#This Row],[Pair\nGroup]]+(COUNTIF($A$17:$A286,A286)*0.01)","v":2.64},{"$error":"#N/A"},{"$error":"#N/A"},{"$error":"#N/A"},{"$error":"#N/A"},{"$error":"#N/A"},{"$error":"#N/A"},{"$error":"#N/A"},{"$error":"#N/A"},{"$error":"#N/A"},{"$error":"#N/A"},{"$error":"#N/A"},{"$error":"#N/A"}]
[{"$f":"VLOOKUP($B287,Data_Table[],18,FALSE)","v":0},"",{"$f":"Table_Data_Table_12[[#This Row],[Pair\nGroup]]+(COUNTIF($A$17:$A287,A287)*0.01)","v":2.65},{"$error":"#N/A"},{"$error":"#N/A"},{"$error":"#N/A"},{"$error":"#N/A"},{"$error":"#N/A"},{"$error":"#N/A"},{"$error":"#N/A"},{"$error":"#N/A"},{"$error":"#N/A"},{"$error":"#N/A"},{"$error":"#N/A"},{"$error":"#N/A"}]
[{"$f":"VLOOKUP($B288,Data_Table[],18,FALSE)","v":0},"",{"$f":"Table_Data_Table_12[[#This Row],[Pair\nGroup]]+(COUNTIF($A$17:$A288,A288)*0.01)","v":2.66},{"$error":"#N/A"},{"$error":"#N/A"},{"$error":"#N/A"},{"$error":"#N/A"},{"$error":"#N/A"},{"$error":"#N/A"},{"$error":"#N/A"},{"$error":"#N/A"},{"$error":"#N/A"},{"$error":"#N/A"},{"$error":"#N/A"},{"$error":"#N/A"}]
[{"$f":"VLOOKUP($B289,Data_Table[],18,FALSE)","v":0},"",{"$f":"Table_Data_Table_12[[#This Row],[Pair\nGroup]]+(COUNTIF($A$17:$A289,A289)*0.01)","v":2.67},{"$error":"#N/A"},{"$error":"#N/A"},{"$error":"#N/A"},{"$error":"#N/A"},{"$error":"#N/A"},{"$error":"#N/A"},{"$error":"#N/A"},{"$error":"#N/A"},{"$error":"#N/A"},{"$error":"#N/A"},{"$error":"#N/A"},{"$error":"#N/A"}]
[{"$f":"VLOOKUP($B290,Data_Table[],18,FALSE)","v":0},"",{"$f":"Table_Data_Table_12[[#This Row],[Pair\nGroup]]+(COUNTIF($A$17:$A290,A290)*0.01)","v":2.68},{"$error":"#N/A"},{"$error":"#N/A"},{"$error":"#N/A"},{"$error":"#N/A"},{"$error":"#N/A"},{"$error":"#N/A"},{"$error":"#N/A"},{"$error":"#N/A"},{"$error":"#N/A"},{"$error":"#N/A"},{"$error":"#N/A"},{"$error":"#N/A"}]
[{"$f":"VLOOKUP($B291,Data_Table[],18,FALSE)","v":0},"",{"$f":"Table_Data_Table_12[[#This Row],[Pair\nGroup]]+(COUNTIF($A$17:$A291,A291)*0.01)","v":2.69},{"$error":"#N/A"},{"$error":"#N/A"},{"$error":"#N/A"},{"$error":"#N/A"},{"$error":"#N/A"},{"$error":"#N/A"},{"$error":"#N/A"},{"$error":"#N/A"},{"$error":"#N/A"},{"$error":"#N/A"},{"$error":"#N/A"},{"$error":"#N/A"}]
[{"$f":"VLOOKUP($B292,Data_Table[],18,FALSE)","v":0},"",{"$f":"Table_Data_Table_12[[#This Row],[Pair\nGroup]]+(COUNTIF($A$17:$A292,A292)*0.01)","v":2.7},{"$error":"#N/A"},{"$error":"#N/A"},{"$error":"#N/A"},{"$error":"#N/A"},{"$error":"#N/A"},{"$error":"#N/A"},{"$error":"#N/A"},{"$error":"#N/A"},{"$error":"#N/A"},{"$error":"#N/A"},{"$error":"#N/A"},{"$error":"#N/A"}]
[{"$f":"VLOOKUP($B293,Data_Table[],18,FALSE)","v":0},"",{"$f":"Table_Data_Table_12[[#This Row],[Pair\nGroup]]+(COUNTIF($A$17:$A293,A293)*0.01)","v":2.71},{"$error":"#N/A"},{"$error":"#N/A"},{"$error":"#N/A"},{"$error":"#N/A"},{"$error":"#N/A"},{"$error":"#N/A"},{"$error":"#N/A"},{"$error":"#N/A"},{"$error":"#N/A"},{"$error":"#N/A"},{"$error":"#N/A"},{"$error":"#N/A"}]
[{"$f":"VLOOKUP($B294,Data_Table[],18,FALSE)","v":0},"",{"$f":"Table_Data_Table_12[[#This Row],[Pair\nGroup]]+(COUNTIF($A$17:$A294,A294)*0.01)","v":2.72},{"$error":"#N/A"},{"$error":"#N/A"},{"$error":"#N/A"},{"$error":"#N/A"},{"$error":"#N/A"},{"$error":"#N/A"},{"$error":"#N/A"},{"$error":"#N/A"},{"$error":"#N/A"},{"$error":"#N/A"},{"$error":"#N/A"},{"$error":"#N/A"}]
[{"$f":"VLOOKUP($B295,Data_Table[],18,FALSE)","v":0},"",{"$f":"Table_Data_Table_12[[#This Row],[Pair\nGroup]]+(COUNTIF($A$17:$A295,A295)*0.01)","v":2.73},{"$error":"#N/A"},{"$error":"#N/A"},{"$error":"#N/A"},{"$error":"#N/A"},{"$error":"#N/A"},{"$error":"#N/A"},{"$error":"#N/A"},{"$error":"#N/A"},{"$error":"#N/A"},{"$error":"#N/A"},{"$error":"#N/A"},{"$error":"#N/A"}]
[{"$f":"VLOOKUP($B296,Data_Table[],18,FALSE)","v":0},"",{"$f":"Table_Data_Table_12[[#This Row],[Pair\nGroup]]+(COUNTIF($A$17:$A296,A296)*0.01)","v":2.74},{"$error":"#N/A"},{"$error":"#N/A"},{"$error":"#N/A"},{"$error":"#N/A"},{"$error":"#N/A"},{"$error":"#N/A"},{"$error":"#N/A"},{"$error":"#N/A"},{"$error":"#N/A"},{"$error":"#N/A"},{"$error":"#N/A"},{"$error":"#N/A"}]
[{"$f":"VLOOKUP($B297,Data_Table[],18,FALSE)","v":0},"",{"$f":"Table_Data_Table_12[[#This Row],[Pair\nGroup]]+(COUNTIF($A$17:$A297,A297)*0.01)","v":2.75},{"$error":"#N/A"},{"$error":"#N/A"},{"$error":"#N/A"},{"$error":"#N/A"},{"$error":"#N/A"},{"$error":"#N/A"},{"$error":"#N/A"},{"$error":"#N/A"},{"$error":"#N/A"},{"$error":"#N/A"},{"$error":"#N/A"},{"$error":"#N/A"}]
[{"$f":"VLOOKUP($B298,Data_Table[],18,FALSE)","v":0},"",{"$f":"Table_Data_Table_12[[#This Row],[Pair\nGroup]]+(COUNTIF($A$17:$A298,A298)*0.01)","v":2.7600000000000002},{"$error":"#N/A"},{"$error":"#N/A"},{"$error":"#N/A"},{"$error":"#N/A"},{"$error":"#N/A"},{"$error":"#N/A"},{"$error":"#N/A"},{"$error":"#N/A"},{"$error":"#N/A"},{"$error":"#N/A"},{"$error":"#N/A"},{"$error":"#N/A"}]
[{"$f":"VLOOKUP($B299,Data_Table[],18,FALSE)","v":0},"",{"$f":"Table_Data_Table_12[[#This Row],[Pair\nGroup]]+(COUNTIF($A$17:$A299,A299)*0.01)","v":2.77},{"$error":"#N/A"},{"$error":"#N/A"},{"$error":"#N/A"},{"$error":"#N/A"},{"$error":"#N/A"},{"$error":"#N/A"},{"$error":"#N/A"},{"$error":"#N/A"},{"$error":"#N/A"},{"$error":"#N/A"},{"$error":"#N/A"},{"$error":"#N/A"}]
[{"$f":"VLOOKUP($B300,Data_Table[],18,FALSE)","v":0},"",{"$f":"Table_Data_Table_12[[#This Row],[Pair\nGroup]]+(COUNTIF($A$17:$A300,A300)*0.01)","v":2.7800000000000002},{"$error":"#N/A"},{"$error":"#N/A"},{"$error":"#N/A"},{"$error":"#N/A"},{"$error":"#N/A"},{"$error":"#N/A"},{"$error":"#N/A"},{"$error":"#N/A"},{"$error":"#N/A"},{"$error":"#N/A"},{"$error":"#N/A"},{"$error":"#N/A"}]
[{"$f":"VLOOKUP($B301,Data_Table[],18,FALSE)","v":0},"",{"$f":"Table_Data_Table_12[[#This Row],[Pair\nGroup]]+(COUNTIF($A$17:$A301,A301)*0.01)","v":2.79},{"$error":"#N/A"},{"$error":"#N/A"},{"$error":"#N/A"},{"$error":"#N/A"},{"$error":"#N/A"},{"$error":"#N/A"},{"$error":"#N/A"},{"$error":"#N/A"},{"$error":"#N/A"},{"$error":"#N/A"},{"$error":"#N/A"},{"$error":"#N/A"}]
[{"$f":"VLOOKUP($B302,Data_Table[],18,FALSE)","v":0},"",{"$f":"Table_Data_Table_12[[#This Row],[Pair\nGroup]]+(COUNTIF($A$17:$A302,A302)*0.01)","v":2.8000000000000003},{"$error":"#N/A"},{"$error":"#N/A"},{"$error":"#N/A"},{"$error":"#N/A"},{"$error":"#N/A"},{"$error":"#N/A"},{"$error":"#N/A"},{"$error":"#N/A"},{"$error":"#N/A"},{"$error":"#N/A"},{"$error":"#N/A"},{"$error":"#N/A"}]
[{"$f":"VLOOKUP($B303,Data_Table[],18,FALSE)","v":0},"",{"$f":"Table_Data_Table_12[[#This Row],[Pair\nGroup]]+(COUNTIF($A$17:$A303,A303)*0.01)","v":2.81},{"$error":"#N/A"},{"$error":"#N/A"},{"$error":"#N/A"},{"$error":"#N/A"},{"$error":"#N/A"},{"$error":"#N/A"},{"$error":"#N/A"},{"$error":"#N/A"},{"$error":"#N/A"},{"$error":"#N/A"},{"$error":"#N/A"},{"$error":"#N/A"}]
[{"$f":"VLOOKUP($B304,Data_Table[],18,FALSE)","v":0},"",{"$f":"Table_Data_Table_12[[#This Row],[Pair\nGroup]]+(COUNTIF($A$17:$A304,A304)*0.01)","v":2.82},{"$error":"#N/A"},{"$error":"#N/A"},{"$error":"#N/A"},{"$error":"#N/A"},{"$error":"#N/A"},{"$error":"#N/A"},{"$error":"#N/A"},{"$error":"#N/A"},{"$error":"#N/A"},{"$error":"#N/A"},{"$error":"#N/A"},{"$error":"#N/A"}]
[{"$f":"VLOOKUP($B305,Data_Table[],18,FALSE)","v":0},"",{"$f":"Table_Data_Table_12[[#This Row],[Pair\nGroup]]+(COUNTIF($A$17:$A305,A305)*0.01)","v":2.83},{"$error":"#N/A"},{"$error":"#N/A"},{"$error":"#N/A"},{"$error":"#N/A"},{"$error":"#N/A"},{"$error":"#N/A"},{"$error":"#N/A"},{"$error":"#N/A"},{"$error":"#N/A"},{"$error":"#N/A"},{"$error":"#N/A"},{"$error":"#N/A"}]
[{"$f":"VLOOKUP($B306,Data_Table[],18,FALSE)","v":0},"",{"$f":"Table_Data_Table_12[[#This Row],[Pair\nGroup]]+(COUNTIF($A$17:$A306,A306)*0.01)","v":2.84},{"$error":"#N/A"},{"$error":"#N/A"},{"$error":"#N/A"},{"$error":"#N/A"},{"$error":"#N/A"},{"$error":"#N/A"},{"$error":"#N/A"},{"$error":"#N/A"},{"$error":"#N/A"},{"$error":"#N/A"},{"$error":"#N/A"},{"$error":"#N/A"}]
[{"$f":"VLOOKUP($B307,Data_Table[],18,FALSE)","v":0},"",{"$f":"Table_Data_Table_12[[#This Row],[Pair\nGroup]]+(COUNTIF($A$17:$A307,A307)*0.01)","v":2.85},{"$error":"#N/A"},{"$error":"#N/A"},{"$error":"#N/A"},{"$error":"#N/A"},{"$error":"#N/A"},{"$error":"#N/A"},{"$error":"#N/A"},{"$error":"#N/A"},{"$error":"#N/A"},{"$error":"#N/A"},{"$error":"#N/A"},{"$error":"#N/A"}]
[{"$f":"VLOOKUP($B308,Data_Table[],18,FALSE)","v":0},"",{"$f":"Table_Data_Table_12[[#This Row],[Pair\nGroup]]+(COUNTIF($A$17:$A308,A308)*0.01)","v":2.86},{"$error":"#N/A"},{"$error":"#N/A"},{"$error":"#N/A"},{"$error":"#N/A"},{"$error":"#N/A"},{"$error":"#N/A"},{"$error":"#N/A"},{"$error":"#N/A"},{"$error":"#N/A"},{"$error":"#N/A"},{"$error":"#N/A"},{"$error":"#N/A"}]
[{"$f":"VLOOKUP($B309,Data_Table[],18,FALSE)","v":0},"",{"$f":"Table_Data_Table_12[[#This Row],[Pair\nGroup]]+(COUNTIF($A$17:$A309,A309)*0.01)","v":2.87},{"$error":"#N/A"},{"$error":"#N/A"},{"$error":"#N/A"},{"$error":"#N/A"},{"$error":"#N/A"},{"$error":"#N/A"},{"$error":"#N/A"},{"$error":"#N/A"},{"$error":"#N/A"},{"$error":"#N/A"},{"$error":"#N/A"},{"$error":"#N/A"}]
[{"$f":"VLOOKUP($B310,Data_Table[],18,FALSE)","v":0},"",{"$f":"Table_Data_Table_12[[#This Row],[Pair\nGroup]]+(COUNTIF($A$17:$A310,A310)*0.01)","v":2.88},{"$error":"#N/A"},{"$error":"#N/A"},{"$error":"#N/A"},{"$error":"#N/A"},{"$error":"#N/A"},{"$error":"#N/A"},{"$error":"#N/A"},{"$error":"#N/A"},{"$error":"#N/A"},{"$error":"#N/A"},{"$error":"#N/A"},{"$error":"#N/A"}]
[{"$f":"VLOOKUP($B311,Data_Table[],18,FALSE)","v":0},"",{"$f":"Table_Data_Table_12[[#This Row],[Pair\nGroup]]+(COUNTIF($A$17:$A311,A311)*0.01)","v":2.89},{"$error":"#N/A"},{"$error":"#N/A"},{"$error":"#N/A"},{"$error":"#N/A"},{"$error":"#N/A"},{"$error":"#N/A"},{"$error":"#N/A"},{"$error":"#N/A"},{"$error":"#N/A"},{"$error":"#N/A"},{"$error":"#N/A"},{"$error":"#N/A"}]
[{"$f":"VLOOKUP($B312,Data_Table[],18,FALSE)","v":0},"",{"$f":"Table_Data_Table_12[[#This Row],[Pair\nGroup]]+(COUNTIF($A$17:$A312,A312)*0.01)","v":2.9},{"$error":"#N/A"},{"$error":"#N/A"},{"$error":"#N/A"},{"$error":"#N/A"},{"$error":"#N/A"},{"$error":"#N/A"},{"$error":"#N/A"},{"$error":"#N/A"},{"$error":"#N/A"},{"$error":"#N/A"},{"$error":"#N/A"},{"$error":"#N/A"}]
[{"$f":"VLOOKUP($B313,Data_Table[],18,FALSE)","v":0},"",{"$f":"Table_Data_Table_12[[#This Row],[Pair\nGroup]]+(COUNTIF($A$17:$A313,A313)*0.01)","v":2.91},{"$error":"#N/A"},{"$error":"#N/A"},{"$error":"#N/A"},{"$error":"#N/A"},{"$error":"#N/A"},{"$error":"#N/A"},{"$error":"#N/A"},{"$error":"#N/A"},{"$error":"#N/A"},{"$error":"#N/A"},{"$error":"#N/A"},{"$error":"#N/A"}]
[{"$f":"VLOOKUP($B314,Data_Table[],18,FALSE)","v":0},"",{"$f":"Table_Data_Table_12[[#This Row],[Pair\nGroup]]+(COUNTIF($A$17:$A314,A314)*0.01)","v":2.92},{"$error":"#N/A"},{"$error":"#N/A"},{"$error":"#N/A"},{"$error":"#N/A"},{"$error":"#N/A"},{"$error":"#N/A"},{"$error":"#N/A"},{"$error":"#N/A"},{"$error":"#N/A"},{"$error":"#N/A"},{"$error":"#N/A"},{"$error":"#N/A"}]
[{"$f":"VLOOKUP($B315,Data_Table[],18,FALSE)","v":0},"",{"$f":"Table_Data_Table_12[[#This Row],[Pair\nGroup]]+(COUNTIF($A$17:$A315,A315)*0.01)","v":2.93},{"$error":"#N/A"},{"$error":"#N/A"},{"$error":"#N/A"},{"$error":"#N/A"},{"$error":"#N/A"},{"$error":"#N/A"},{"$error":"#N/A"},{"$error":"#N/A"},{"$error":"#N/A"},{"$error":"#N/A"},{"$error":"#N/A"},{"$error":"#N/A"}]
[{"$f":"VLOOKUP($B316,Data_Table[],18,FALSE)","v":0},"",{"$f":"Table_Data_Table_12[[#This Row],[Pair\nGroup]]+(COUNTIF($A$17:$A316,A316)*0.01)","v":2.94},{"$error":"#N/A"},{"$error":"#N/A"},{"$error":"#N/A"},{"$error":"#N/A"},{"$error":"#N/A"},{"$error":"#N/A"},{"$error":"#N/A"},{"$error":"#N/A"},{"$error":"#N/A"},{"$error":"#N/A"},{"$error":"#N/A"},{"$error":"#N/A"}]
[{"$f":"VLOOKUP($B317,Data_Table[],18,FALSE)","v":0},"",{"$f":"Table_Data_Table_12[[#This Row],[Pair\nGroup]]+(COUNTIF($A$17:$A317,A317)*0.01)","v":2.95},{"$error":"#N/A"},{"$error":"#N/A"},{"$error":"#N/A"},{"$error":"#N/A"},{"$error":"#N/A"},{"$error":"#N/A"},{"$error":"#N/A"},{"$error":"#N/A"},{"$error":"#N/A"},{"$error":"#N/A"},{"$error":"#N/A"},{"$error":"#N/A"}]
[{"$f":"VLOOKUP($B318,Data_Table[],18,FALSE)","v":0},"",{"$f":"Table_Data_Table_12[[#This Row],[Pair\nGroup]]+(COUNTIF($A$17:$A318,A318)*0.01)","v":2.96},{"$error":"#N/A"},{"$error":"#N/A"},{"$error":"#N/A"},{"$error":"#N/A"},{"$error":"#N/A"},{"$error":"#N/A"},{"$error":"#N/A"},{"$error":"#N/A"},{"$error":"#N/A"},{"$error":"#N/A"},{"$error":"#N/A"},{"$error":"#N/A"}]
[{"$f":"VLOOKUP($B319,Data_Table[],18,FALSE)","v":0},"",{"$f":"Table_Data_Table_12[[#This Row],[Pair\nGroup]]+(COUNTIF($A$17:$A319,A319)*0.01)","v":2.97},{"$error":"#N/A"},{"$error":"#N/A"},{"$error":"#N/A"},{"$error":"#N/A"},{"$error":"#N/A"},{"$error":"#N/A"},{"$error":"#N/A"},{"$error":"#N/A"},{"$error":"#N/A"},{"$error":"#N/A"},{"$error":"#N/A"},{"$error":"#N/A"}]
[{"$f":"VLOOKUP($B320,Data_Table[],18,FALSE)","v":0},"",{"$f":"Table_Data_Table_12[[#This Row],[Pair\nGroup]]+(COUNTIF($A$17:$A320,A320)*0.01)","v":2.98},{"$error":"#N/A"},{"$error":"#N/A"},{"$error":"#N/A"},{"$error":"#N/A"},{"$error":"#N/A"},{"$error":"#N/A"},{"$error":"#N/A"},{"$error":"#N/A"},{"$error":"#N/A"},{"$error":"#N/A"},{"$error":"#N/A"},{"$error":"#N/A"}]
[{"$f":"VLOOKUP($B321,Data_Table[],18,FALSE)","v":0},"",{"$f":"Table_Data_Table_12[[#This Row],[Pair\nGroup]]+(COUNTIF($A$17:$A321,A321)*0.01)","v":2.99},{"$error":"#N/A"},{"$error":"#N/A"},{"$error":"#N/A"},{"$error":"#N/A"},{"$error":"#N/A"},{"$error":"#N/A"},{"$error":"#N/A"},{"$error":"#N/A"},{"$error":"#N/A"},{"$error":"#N/A"},{"$error":"#N/A"},{"$error":"#N/A"}]
[{"$f":"VLOOKUP($B322,Data_Table[],18,FALSE)","v":0},"",{"$f":"Table_Data_Table_12[[#This Row],[Pair\nGroup]]+(COUNTIF($A$17:$A322,A322)*0.01)","v":3},{"$error":"#N/A"},{"$error":"#N/A"},{"$error":"#N/A"},{"$error":"#N/A"},{"$error":"#N/A"},{"$error":"#N/A"},{"$error":"#N/A"},{"$error":"#N/A"},{"$error":"#N/A"},{"$error":"#N/A"},{"$error":"#N/A"},{"$error":"#N/A"}]
[{"$f":"VLOOKUP($B323,Data_Table[],18,FALSE)","v":0},"",{"$f":"Table_Data_Table_12[[#This Row],[Pair\nGroup]]+(COUNTIF($A$17:$A323,A323)*0.01)","v":3.0100000000000002},{"$error":"#N/A"},{"$error":"#N/A"},{"$error":"#N/A"},{"$error":"#N/A"},{"$error":"#N/A"},{"$error":"#N/A"},{"$error":"#N/A"},{"$error":"#N/A"},{"$error":"#N/A"},{"$error":"#N/A"},{"$error":"#N/A"},{"$error":"#N/A"}]
[{"$f":"VLOOKUP($B324,Data_Table[],18,FALSE)","v":0},"",{"$f":"Table_Data_Table_12[[#This Row],[Pair\nGroup]]+(COUNTIF($A$17:$A324,A324)*0.01)","v":3.02},{"$error":"#N/A"},{"$error":"#N/A"},{"$error":"#N/A"},{"$error":"#N/A"},{"$error":"#N/A"},{"$error":"#N/A"},{"$error":"#N/A"},{"$error":"#N/A"},{"$error":"#N/A"},{"$error":"#N/A"},{"$error":"#N/A"},{"$error":"#N/A"}]
[{"$f":"VLOOKUP($B325,Data_Table[],18,FALSE)","v":0},"",{"$f":"Table_Data_Table_12[[#This Row],[Pair\nGroup]]+(COUNTIF($A$17:$A325,A325)*0.01)","v":3.0300000000000002},{"$error":"#N/A"},{"$error":"#N/A"},{"$error":"#N/A"},{"$error":"#N/A"},{"$error":"#N/A"},{"$error":"#N/A"},{"$error":"#N/A"},{"$error":"#N/A"},{"$error":"#N/A"},{"$error":"#N/A"},{"$error":"#N/A"},{"$error":"#N/A"}]
[{"$f":"VLOOKUP($B326,Data_Table[],18,FALSE)","v":0},"",{"$f":"Table_Data_Table_12[[#This Row],[Pair\nGroup]]+(COUNTIF($A$17:$A326,A326)*0.01)","v":3.04},{"$error":"#N/A"},{"$error":"#N/A"},{"$error":"#N/A"},{"$error":"#N/A"},{"$error":"#N/A"},{"$error":"#N/A"},{"$error":"#N/A"},{"$error":"#N/A"},{"$error":"#N/A"},{"$error":"#N/A"},{"$error":"#N/A"},{"$error":"#N/A"}]
[{"$f":"VLOOKUP($B327,Data_Table[],18,FALSE)","v":0},"",{"$f":"Table_Data_Table_12[[#This Row],[Pair\nGroup]]+(COUNTIF($A$17:$A327,A327)*0.01)","v":3.0500000000000003},{"$error":"#N/A"},{"$error":"#N/A"},{"$error":"#N/A"},{"$error":"#N/A"},{"$error":"#N/A"},{"$error":"#N/A"},{"$error":"#N/A"},{"$error":"#N/A"},{"$error":"#N/A"},{"$error":"#N/A"},{"$error":"#N/A"},{"$error":"#N/A"}]
[{"$f":"VLOOKUP($B328,Data_Table[],18,FALSE)","v":0},"",{"$f":"Table_Data_Table_12[[#This Row],[Pair\nGroup]]+(COUNTIF($A$17:$A328,A328)*0.01)","v":3.06},{"$error":"#N/A"},{"$error":"#N/A"},{"$error":"#N/A"},{"$error":"#N/A"},{"$error":"#N/A"},{"$error":"#N/A"},{"$error":"#N/A"},{"$error":"#N/A"},{"$error":"#N/A"},{"$error":"#N/A"},{"$error":"#N/A"},{"$error":"#N/A"}]
[{"$f":"VLOOKUP($B329,Data_Table[],18,FALSE)","v":0},"",{"$f":"Table_Data_Table_12[[#This Row],[Pair\nGroup]]+(COUNTIF($A$17:$A329,A329)*0.01)","v":3.0700000000000003},{"$error":"#N/A"},{"$error":"#N/A"},{"$error":"#N/A"},{"$error":"#N/A"},{"$error":"#N/A"},{"$error":"#N/A"},{"$error":"#N/A"},{"$error":"#N/A"},{"$error":"#N/A"},{"$error":"#N/A"},{"$error":"#N/A"},{"$error":"#N/A"}]
[{"$f":"VLOOKUP($B330,Data_Table[],18,FALSE)","v":0},"",{"$f":"Table_Data_Table_12[[#This Row],[Pair\nGroup]]+(COUNTIF($A$17:$A330,A330)*0.01)","v":3.08},{"$error":"#N/A"},{"$error":"#N/A"},{"$error":"#N/A"},{"$error":"#N/A"},{"$error":"#N/A"},{"$error":"#N/A"},{"$error":"#N/A"},{"$error":"#N/A"},{"$error":"#N/A"},{"$error":"#N/A"},{"$error":"#N/A"},{"$error":"#N/A"}]
[{"$f":"VLOOKUP($B331,Data_Table[],18,FALSE)","v":0},"",{"$f":"Table_Data_Table_12[[#This Row],[Pair\nGroup]]+(COUNTIF($A$17:$A331,A331)*0.01)","v":3.09},{"$error":"#N/A"},{"$error":"#N/A"},{"$error":"#N/A"},{"$error":"#N/A"},{"$error":"#N/A"},{"$error":"#N/A"},{"$error":"#N/A"},{"$error":"#N/A"},{"$error":"#N/A"},{"$error":"#N/A"},{"$error":"#N/A"},{"$error":"#N/A"}]
[{"$f":"VLOOKUP($B332,Data_Table[],18,FALSE)","v":0},"",{"$f":"Table_Data_Table_12[[#This Row],[Pair\nGroup]]+(COUNTIF($A$17:$A332,A332)*0.01)","v":3.1},{"$error":"#N/A"},{"$error":"#N/A"},{"$error":"#N/A"},{"$error":"#N/A"},{"$error":"#N/A"},{"$error":"#N/A"},{"$error":"#N/A"},{"$error":"#N/A"},{"$error":"#N/A"},{"$error":"#N/A"},{"$error":"#N/A"},{"$error":"#N/A"}]
[{"$f":"VLOOKUP($B333,Data_Table[],18,FALSE)","v":0},"",{"$f":"Table_Data_Table_12[[#This Row],[Pair\nGroup]]+(COUNTIF($A$17:$A333,A333)*0.01)","v":3.11},{"$error":"#N/A"},{"$error":"#N/A"},{"$error":"#N/A"},{"$error":"#N/A"},{"$error":"#N/A"},{"$error":"#N/A"},{"$error":"#N/A"},{"$error":"#N/A"},{"$error":"#N/A"},{"$error":"#N/A"},{"$error":"#N/A"},{"$error":"#N/A"}]
[{"$f":"VLOOKUP($B334,Data_Table[],18,FALSE)","v":0},"",{"$f":"Table_Data_Table_12[[#This Row],[Pair\nGroup]]+(COUNTIF($A$17:$A334,A334)*0.01)","v":3.12},{"$error":"#N/A"},{"$error":"#N/A"},{"$error":"#N/A"},{"$error":"#N/A"},{"$error":"#N/A"},{"$error":"#N/A"},{"$error":"#N/A"},{"$error":"#N/A"},{"$error":"#N/A"},{"$error":"#N/A"},{"$error":"#N/A"},{"$error":"#N/A"}]
[{"$f":"VLOOKUP($B335,Data_Table[],18,FALSE)","v":0},"",{"$f":"Table_Data_Table_12[[#This Row],[Pair\nGroup]]+(COUNTIF($A$17:$A335,A335)*0.01)","v":3.13},{"$error":"#N/A"},{"$error":"#N/A"},{"$error":"#N/A"},{"$error":"#N/A"},{"$error":"#N/A"},{"$error":"#N/A"},{"$error":"#N/A"},{"$error":"#N/A"},{"$error":"#N/A"},{"$error":"#N/A"},{"$error":"#N/A"},{"$error":"#N/A"}]
[{"$f":"VLOOKUP($B336,Data_Table[],18,FALSE)","v":0},"",{"$f":"Table_Data_Table_12[[#This Row],[Pair\nGroup]]+(COUNTIF($A$17:$A336,A336)*0.01)","v":3.14},{"$error":"#N/A"},{"$error":"#N/A"},{"$error":"#N/A"},{"$error":"#N/A"},{"$error":"#N/A"},{"$error":"#N/A"},{"$error":"#N/A"},{"$error":"#N/A"},{"$error":"#N/A"},{"$error":"#N/A"},{"$error":"#N/A"},{"$error":"#N/A"}]
[{"$f":"VLOOKUP($B337,Data_Table[],18,FALSE)","v":0},"",{"$f":"Table_Data_Table_12[[#This Row],[Pair\nGroup]]+(COUNTIF($A$17:$A337,A337)*0.01)","v":3.15},{"$f":"VLOOKUP($B337,DataTable,2,FALSE)","v":{"$error":"#N/A"}},{"$f":"VLOOKUP($B337,DataTable,3,FALSE)","v":{"$error":"#N/A"}},{"$f":"VLOOKUP($B337,DataTable,4,FALSE)","v":{"$error":"#N/A"}},{"$f":"VLOOKUP($B337,DataTable,5,FALSE)","v":{"$error":"#N/A"}},{"$f":"VLOOKUP($B337,DataTable,6,FALSE)","v":{"$error":"#N/A"}},{"$f":"ROUND((VLOOKUP($B337,DataTable,10,FALSE)-VLOOKUP($B337,DataTable,12,FALSE))/43560,3)","v":{"$error":"#N/A"}},{"$f":"VLOOKUP($B337,DataTable,11,FALSE)","v":{"$error":"#N/A"}},{"$f":"VLOOKUP($B337,DataTable,13,FALSE)","v":{"$error":"#N/A"}},{"$f":"VLOOKUP($B337,Analysis_Table,8,FALSE)","v":{"$error":"#N/A"}},{"$f":"VLOOKUP($B337,Analysis_Table,9,FALSE)","v":{"$error":"#N/A"}},{"$f":"L337/I337","v":{"$error":"#N/A"}},{"$f":"ROUND(L337/(VLOOKUP($B337,DataTable,10,FALSE)-VLOOKUP($B337,DataTable,12,FALSE)),2)","v":{"$error":"#N/A"}}]
[{"$f":"VLOOKUP($B338,Data_Table[],18,FALSE)","v":0},"",{"$f":"Table_Data_Table_12[[#This Row],[Pair\nGroup]]+(COUNTIF($A$17:$A338,A338)*0.01)","v":3.16},{"$error":"#N/A"},{"$error":"#N/A"},{"$error":"#N/A"},{"$error":"#N/A"},{"$error":"#N/A"},{"$error":"#N/A"},{"$error":"#N/A"},{"$error":"#N/A"},{"$error":"#N/A"},{"$error":"#N/A"},{"$error":"#N/A"},{"$error":"#N/A"}]
[{"$f":"VLOOKUP($B339,Data_Table[],18,FALSE)","v":0},"",{"$f":"Table_Data_Table_12[[#This Row],[Pair\nGroup]]+(COUNTIF($A$17:$A339,A339)*0.01)","v":3.17},{"$error":"#N/A"},{"$error":"#N/A"},{"$error":"#N/A"},{"$error":"#N/A"},{"$error":"#N/A"},{"$error":"#N/A"},{"$error":"#N/A"},{"$error":"#N/A"},{"$error":"#N/A"},{"$error":"#N/A"},{"$error":"#N/A"},{"$error":"#N/A"}]
[{"$f":"VLOOKUP($B340,Data_Table[],18,FALSE)","v":0},"",{"$f":"Table_Data_Table_12[[#This Row],[Pair\nGroup]]+(COUNTIF($A$17:$A340,A340)*0.01)","v":3.18},{"$error":"#N/A"},{"$error":"#N/A"},{"$error":"#N/A"},{"$error":"#N/A"},{"$error":"#N/A"},{"$error":"#N/A"},{"$error":"#N/A"},{"$error":"#N/A"},{"$error":"#N/A"},{"$error":"#N/A"},{"$error":"#N/A"},{"$error":"#N/A"}]
[{"$f":"VLOOKUP($B341,Data_Table[],18,FALSE)","v":0},"",{"$f":"Table_Data_Table_12[[#This Row],[Pair\nGroup]]+(COUNTIF($A$17:$A341,A341)*0.01)","v":3.19},{"$error":"#N/A"},{"$error":"#N/A"},{"$error":"#N/A"},{"$error":"#N/A"},{"$error":"#N/A"},{"$error":"#N/A"},{"$error":"#N/A"},{"$error":"#N/A"},{"$error":"#N/A"},{"$error":"#N/A"},{"$error":"#N/A"},{"$error":"#N/A"}]
[{"$f":"VLOOKUP($B342,Data_Table[],18,FALSE)","v":0},"",{"$f":"Table_Data_Table_12[[#This Row],[Pair\nGroup]]+(COUNTIF($A$17:$A342,A342)*0.01)","v":3.2},{"$error":"#N/A"},{"$error":"#N/A"},{"$error":"#N/A"},{"$error":"#N/A"},{"$error":"#N/A"},{"$error":"#N/A"},{"$error":"#N/A"},{"$error":"#N/A"},{"$error":"#N/A"},{"$error":"#N/A"},{"$error":"#N/A"},{"$error":"#N/A"}]
[{"$f":"VLOOKUP($B343,Data_Table[],18,FALSE)","v":0},"",{"$f":"Table_Data_Table_12[[#This Row],[Pair\nGroup]]+(COUNTIF($A$17:$A343,A343)*0.01)","v":3.21},{"$error":"#N/A"},{"$error":"#N/A"},{"$error":"#N/A"},{"$error":"#N/A"},{"$error":"#N/A"},{"$error":"#N/A"},{"$error":"#N/A"},{"$error":"#N/A"},{"$error":"#N/A"},{"$error":"#N/A"},{"$error":"#N/A"},{"$error":"#N/A"}]
[{"$f":"VLOOKUP($B344,Data_Table[],18,FALSE)","v":0},"",{"$f":"Table_Data_Table_12[[#This Row],[Pair\nGroup]]+(COUNTIF($A$17:$A344,A344)*0.01)","v":3.22},{"$error":"#N/A"},{"$error":"#N/A"},{"$error":"#N/A"},{"$error":"#N/A"},{"$error":"#N/A"},{"$error":"#N/A"},{"$error":"#N/A"},{"$error":"#N/A"},{"$error":"#N/A"},{"$error":"#N/A"},{"$error":"#N/A"},{"$error":"#N/A"}]
[{"$f":"VLOOKUP($B345,Data_Table[],18,FALSE)","v":0},"",{"$f":"Table_Data_Table_12[[#This Row],[Pair\nGroup]]+(COUNTIF($A$17:$A345,A345)*0.01)","v":3.23},{"$error":"#N/A"},{"$error":"#N/A"},{"$error":"#N/A"},{"$error":"#N/A"},{"$error":"#N/A"},{"$error":"#N/A"},{"$error":"#N/A"},{"$error":"#N/A"},{"$error":"#N/A"},{"$error":"#N/A"},{"$error":"#N/A"},{"$error":"#N/A"}]
[{"$f":"VLOOKUP($B346,Data_Table[],18,FALSE)","v":0},"",{"$f":"Table_Data_Table_12[[#This Row],[Pair\nGroup]]+(COUNTIF($A$17:$A346,A346)*0.01)","v":3.24},{"$error":"#N/A"},{"$error":"#N/A"},{"$error":"#N/A"},{"$error":"#N/A"},{"$error":"#N/A"},{"$error":"#N/A"},{"$error":"#N/A"},{"$error":"#N/A"},{"$error":"#N/A"},{"$error":"#N/A"},{"$error":"#N/A"},{"$error":"#N/A"}]
[{"$f":"VLOOKUP($B347,Data_Table[],18,FALSE)","v":0},"",{"$f":"Table_Data_Table_12[[#This Row],[Pair\nGroup]]+(COUNTIF($A$17:$A347,A347)*0.01)","v":3.25},{"$error":"#N/A"},{"$error":"#N/A"},{"$error":"#N/A"},{"$error":"#N/A"},{"$error":"#N/A"},{"$error":"#N/A"},{"$error":"#N/A"},{"$error":"#N/A"},{"$error":"#N/A"},{"$error":"#N/A"},{"$error":"#N/A"},{"$error":"#N/A"}]
[{"$f":"VLOOKUP($B348,Data_Table[],18,FALSE)","v":0},"",{"$f":"Table_Data_Table_12[[#This Row],[Pair\nGroup]]+(COUNTIF($A$17:$A348,A348)*0.01)","v":3.2600000000000002},{"$error":"#N/A"},{"$error":"#N/A"},{"$error":"#N/A"},{"$error":"#N/A"},{"$error":"#N/A"},{"$error":"#N/A"},{"$error":"#N/A"},{"$error":"#N/A"},{"$error":"#N/A"},{"$error":"#N/A"},{"$error":"#N/A"},{"$error":"#N/A"}]
[{"$f":"VLOOKUP($B349,Data_Table[],18,FALSE)","v":0},"",{"$f":"Table_Data_Table_12[[#This Row],[Pair\nGroup]]+(COUNTIF($A$17:$A349,A349)*0.01)","v":3.27},{"$error":"#N/A"},{"$error":"#N/A"},{"$error":"#N/A"},{"$error":"#N/A"},{"$error":"#N/A"},{"$error":"#N/A"},{"$error":"#N/A"},{"$error":"#N/A"},{"$error":"#N/A"},{"$error":"#N/A"},{"$error":"#N/A"},{"$error":"#N/A"}]
[{"$f":"VLOOKUP($B350,Data_Table[],18,FALSE)","v":0},"",{"$f":"Table_Data_Table_12[[#This Row],[Pair\nGroup]]+(COUNTIF($A$17:$A350,A350)*0.01)","v":3.2800000000000002},{"$error":"#N/A"},{"$error":"#N/A"},{"$error":"#N/A"},{"$error":"#N/A"},{"$error":"#N/A"},{"$error":"#N/A"},{"$error":"#N/A"},{"$error":"#N/A"},{"$error":"#N/A"},{"$error":"#N/A"},{"$error":"#N/A"},{"$error":"#N/A"}]
[{"$f":"VLOOKUP($B351,Data_Table[],18,FALSE)","v":0},"",{"$f":"Table_Data_Table_12[[#This Row],[Pair\nGroup]]+(COUNTIF($A$17:$A351,A351)*0.01)","v":3.29},{"$error":"#N/A"},{"$error":"#N/A"},{"$error":"#N/A"},{"$error":"#N/A"},{"$error":"#N/A"},{"$error":"#N/A"},{"$error":"#N/A"},{"$error":"#N/A"},{"$error":"#N/A"},{"$error":"#N/A"},{"$error":"#N/A"},{"$error":"#N/A"}]
[{"$f":"VLOOKUP($B352,Data_Table[],18,FALSE)","v":0},"",{"$f":"Table_Data_Table_12[[#This Row],[Pair\nGroup]]+(COUNTIF($A$17:$A352,A352)*0.01)","v":3.3000000000000003},{"$error":"#N/A"},{"$error":"#N/A"},{"$error":"#N/A"},{"$error":"#N/A"},{"$error":"#N/A"},{"$error":"#N/A"},{"$error":"#N/A"},{"$error":"#N/A"},{"$error":"#N/A"},{"$error":"#N/A"},{"$error":"#N/A"},{"$error":"#N/A"}]
[{"$f":"VLOOKUP($B353,Data_Table[],18,FALSE)","v":0},"",{"$f":"Table_Data_Table_12[[#This Row],[Pair\nGroup]]+(COUNTIF($A$17:$A353,A353)*0.01)","v":3.31},{"$error":"#N/A"},{"$error":"#N/A"},{"$error":"#N/A"},{"$error":"#N/A"},{"$error":"#N/A"},{"$error":"#N/A"},{"$error":"#N/A"},{"$error":"#N/A"},{"$error":"#N/A"},{"$error":"#N/A"},{"$error":"#N/A"},{"$error":"#N/A"}]
[{"$f":"VLOOKUP($B354,Data_Table[],18,FALSE)","v":0},"",{"$f":"Table_Data_Table_12[[#This Row],[Pair\nGroup]]+(COUNTIF($A$17:$A354,A354)*0.01)","v":3.3200000000000003},{"$error":"#N/A"},{"$error":"#N/A"},{"$error":"#N/A"},{"$error":"#N/A"},{"$error":"#N/A"},{"$error":"#N/A"},{"$error":"#N/A"},{"$error":"#N/A"},{"$error":"#N/A"},{"$error":"#N/A"},{"$error":"#N/A"},{"$error":"#N/A"}]
[{"$f":"VLOOKUP($B355,Data_Table[],18,FALSE)","v":0},"",{"$f":"Table_Data_Table_12[[#This Row],[Pair\nGroup]]+(COUNTIF($A$17:$A355,A355)*0.01)","v":3.33},{"$error":"#N/A"},{"$error":"#N/A"},{"$error":"#N/A"},{"$error":"#N/A"},{"$error":"#N/A"},{"$error":"#N/A"},{"$error":"#N/A"},{"$error":"#N/A"},{"$error":"#N/A"},{"$error":"#N/A"},{"$error":"#N/A"},{"$error":"#N/A"}]
[{"$f":"VLOOKUP($B356,Data_Table[],18,FALSE)","v":0},"",{"$f":"Table_Data_Table_12[[#This Row],[Pair\nGroup]]+(COUNTIF($A$17:$A356,A356)*0.01)","v":3.34},{"$error":"#N/A"},{"$error":"#N/A"},{"$error":"#N/A"},{"$error":"#N/A"},{"$error":"#N/A"},{"$error":"#N/A"},{"$error":"#N/A"},{"$error":"#N/A"},{"$error":"#N/A"},{"$error":"#N/A"},{"$error":"#N/A"},{"$error":"#N/A"}]
[{"$f":"VLOOKUP($B357,Data_Table[],18,FALSE)","v":0},"",{"$f":"Table_Data_Table_12[[#This Row],[Pair\nGroup]]+(COUNTIF($A$17:$A357,A357)*0.01)","v":3.35},{"$error":"#N/A"},{"$error":"#N/A"},{"$error":"#N/A"},{"$error":"#N/A"},{"$error":"#N/A"},{"$error":"#N/A"},{"$error":"#N/A"},{"$error":"#N/A"},{"$error":"#N/A"},{"$error":"#N/A"},{"$error":"#N/A"},{"$error":"#N/A"}]
[{"$f":"VLOOKUP($B358,Data_Table[],18,FALSE)","v":0},"",{"$f":"Table_Data_Table_12[[#This Row],[Pair\nGroup]]+(COUNTIF($A$17:$A358,A358)*0.01)","v":3.36},{"$error":"#N/A"},{"$error":"#N/A"},{"$error":"#N/A"},{"$error":"#N/A"},{"$error":"#N/A"},{"$error":"#N/A"},{"$error":"#N/A"},{"$error":"#N/A"},{"$error":"#N/A"},{"$error":"#N/A"},{"$error":"#N/A"},{"$error":"#N/A"}]
[{"$f":"VLOOKUP($B359,Data_Table[],18,FALSE)","v":0},"",{"$f":"Table_Data_Table_12[[#This Row],[Pair\nGroup]]+(COUNTIF($A$17:$A359,A359)*0.01)","v":3.37},{"$error":"#N/A"},{"$error":"#N/A"},{"$error":"#N/A"},{"$error":"#N/A"},{"$error":"#N/A"},{"$error":"#N/A"},{"$error":"#N/A"},{"$error":"#N/A"},{"$error":"#N/A"},{"$error":"#N/A"},{"$error":"#N/A"},{"$error":"#N/A"}]
[{"$f":"VLOOKUP($B360,Data_Table[],18,FALSE)","v":0},"",{"$f":"Table_Data_Table_12[[#This Row],[Pair\nGroup]]+(COUNTIF($A$17:$A360,A360)*0.01)","v":3.38},{"$error":"#N/A"},{"$error":"#N/A"},{"$error":"#N/A"},{"$error":"#N/A"},{"$error":"#N/A"},{"$error":"#N/A"},{"$error":"#N/A"},{"$error":"#N/A"},{"$error":"#N/A"},{"$error":"#N/A"},{"$error":"#N/A"},{"$error":"#N/A"}]
[{"$f":"VLOOKUP($B361,Data_Table[],18,FALSE)","v":0},"",{"$f":"Table_Data_Table_12[[#This Row],[Pair\nGroup]]+(COUNTIF($A$17:$A361,A361)*0.01)","v":3.39},{"$error":"#N/A"},{"$error":"#N/A"},{"$error":"#N/A"},{"$error":"#N/A"},{"$error":"#N/A"},{"$error":"#N/A"},{"$error":"#N/A"},{"$error":"#N/A"},{"$error":"#N/A"},{"$error":"#N/A"},{"$error":"#N/A"},{"$error":"#N/A"}]
[{"$f":"VLOOKUP($B362,Data_Table[],18,FALSE)","v":0},"",{"$f":"Table_Data_Table_12[[#This Row],[Pair\nGroup]]+(COUNTIF($A$17:$A362,A362)*0.01)","v":3.4},{"$error":"#N/A"},{"$error":"#N/A"},{"$error":"#N/A"},{"$error":"#N/A"},{"$error":"#N/A"},{"$error":"#N/A"},{"$error":"#N/A"},{"$error":"#N/A"},{"$error":"#N/A"},{"$error":"#N/A"},{"$error":"#N/A"},{"$error":"#N/A"}]
[{"$f":"VLOOKUP($B363,Data_Table[],18,FALSE)","v":0},"",{"$f":"Table_Data_Table_12[[#This Row],[Pair\nGroup]]+(COUNTIF($A$17:$A363,A363)*0.01)","v":3.41},{"$error":"#N/A"},{"$error":"#N/A"},{"$error":"#N/A"},{"$error":"#N/A"},{"$error":"#N/A"},{"$error":"#N/A"},{"$error":"#N/A"},{"$error":"#N/A"},{"$error":"#N/A"},{"$error":"#N/A"},{"$error":"#N/A"},{"$error":"#N/A"}]
[{"$f":"VLOOKUP($B364,Data_Table[],18,FALSE)","v":0},"",{"$f":"Table_Data_Table_12[[#This Row],[Pair\nGroup]]+(COUNTIF($A$17:$A364,A364)*0.01)","v":3.42},{"$error":"#N/A"},{"$error":"#N/A"},{"$error":"#N/A"},{"$error":"#N/A"},{"$error":"#N/A"},{"$error":"#N/A"},{"$error":"#N/A"},{"$error":"#N/A"},{"$error":"#N/A"},{"$error":"#N/A"},{"$error":"#N/A"},{"$error":"#N/A"}]
[{"$f":"VLOOKUP($B365,Data_Table[],18,FALSE)","v":0},"",{"$f":"Table_Data_Table_12[[#This Row],[Pair\nGroup]]+(COUNTIF($A$17:$A365,A365)*0.01)","v":3.43},{"$error":"#N/A"},{"$error":"#N/A"},{"$error":"#N/A"},{"$error":"#N/A"},{"$error":"#N/A"},{"$error":"#N/A"},{"$error":"#N/A"},{"$error":"#N/A"},{"$error":"#N/A"},{"$error":"#N/A"},{"$error":"#N/A"},{"$error":"#N/A"}]
[{"$f":"VLOOKUP($B366,Data_Table[],18,FALSE)","v":0},"",{"$f":"Table_Data_Table_12[[#This Row],[Pair\nGroup]]+(COUNTIF($A$17:$A366,A366)*0.01)","v":3.44},{"$error":"#N/A"},{"$error":"#N/A"},{"$error":"#N/A"},{"$error":"#N/A"},{"$error":"#N/A"},{"$error":"#N/A"},{"$error":"#N/A"},{"$error":"#N/A"},{"$error":"#N/A"},{"$error":"#N/A"},{"$error":"#N/A"},{"$error":"#N/A"}]
[{"$f":"VLOOKUP($B367,Data_Table[],18,FALSE)","v":0},"",{"$f":"Table_Data_Table_12[[#This Row],[Pair\nGroup]]+(COUNTIF($A$17:$A367,A367)*0.01)","v":3.45},{"$error":"#N/A"},{"$error":"#N/A"},{"$error":"#N/A"},{"$error":"#N/A"},{"$error":"#N/A"},{"$error":"#N/A"},{"$error":"#N/A"},{"$error":"#N/A"},{"$error":"#N/A"},{"$error":"#N/A"},{"$error":"#N/A"},{"$error":"#N/A"}]
[{"$f":"VLOOKUP($B368,Data_Table[],18,FALSE)","v":0},"",{"$f":"Table_Data_Table_12[[#This Row],[Pair\nGroup]]+(COUNTIF($A$17:$A368,A368)*0.01)","v":3.46},{"$error":"#N/A"},{"$error":"#N/A"},{"$error":"#N/A"},{"$error":"#N/A"},{"$error":"#N/A"},{"$error":"#N/A"},{"$error":"#N/A"},{"$error":"#N/A"},{"$error":"#N/A"},{"$error":"#N/A"},{"$error":"#N/A"},{"$error":"#N/A"}]
[{"$f":"VLOOKUP($B369,Data_Table[],18,FALSE)","v":0},"",{"$f":"Table_Data_Table_12[[#This Row],[Pair\nGroup]]+(COUNTIF($A$17:$A369,A369)*0.01)","v":3.47},{"$error":"#N/A"},{"$error":"#N/A"},{"$error":"#N/A"},{"$error":"#N/A"},{"$error":"#N/A"},{"$error":"#N/A"},{"$error":"#N/A"},{"$error":"#N/A"},{"$error":"#N/A"},{"$error":"#N/A"},{"$error":"#N/A"},{"$error":"#N/A"}]
[{"$f":"VLOOKUP($B370,Data_Table[],18,FALSE)","v":0},"",{"$f":"Table_Data_Table_12[[#This Row],[Pair\nGroup]]+(COUNTIF($A$17:$A370,A370)*0.01)","v":3.48},{"$error":"#N/A"},{"$error":"#N/A"},{"$error":"#N/A"},{"$error":"#N/A"},{"$error":"#N/A"},{"$error":"#N/A"},{"$error":"#N/A"},{"$error":"#N/A"},{"$error":"#N/A"},{"$error":"#N/A"},{"$error":"#N/A"},{"$error":"#N/A"}]
[{"$f":"VLOOKUP($B371,Data_Table[],18,FALSE)","v":0},"",{"$f":"Table_Data_Table_12[[#This Row],[Pair\nGroup]]+(COUNTIF($A$17:$A371,A371)*0.01)","v":3.49},{"$error":"#N/A"},{"$error":"#N/A"},{"$error":"#N/A"},{"$error":"#N/A"},{"$error":"#N/A"},{"$error":"#N/A"},{"$error":"#N/A"},{"$error":"#N/A"},{"$error":"#N/A"},{"$error":"#N/A"},{"$error":"#N/A"},{"$error":"#N/A"}]
[{"$f":"VLOOKUP($B372,Data_Table[],18,FALSE)","v":0},"",{"$f":"Table_Data_Table_12[[#This Row],[Pair\nGroup]]+(COUNTIF($A$17:$A372,A372)*0.01)","v":3.5},{"$error":"#N/A"},{"$error":"#N/A"},{"$error":"#N/A"},{"$error":"#N/A"},{"$error":"#N/A"},{"$error":"#N/A"},{"$error":"#N/A"},{"$error":"#N/A"},{"$error":"#N/A"},{"$error":"#N/A"},{"$error":"#N/A"},{"$error":"#N/A"}]
[{"$f":"VLOOKUP($B373,Data_Table[],18,FALSE)","v":0},"",{"$f":"Table_Data_Table_12[[#This Row],[Pair\nGroup]]+(COUNTIF($A$17:$A373,A373)*0.01)","v":3.5100000000000002},{"$error":"#N/A"},{"$error":"#N/A"},{"$error":"#N/A"},{"$error":"#N/A"},{"$error":"#N/A"},{"$error":"#N/A"},{"$error":"#N/A"},{"$error":"#N/A"},{"$error":"#N/A"},{"$error":"#N/A"},{"$error":"#N/A"},{"$error":"#N/A"}]
[{"$f":"VLOOKUP($B374,Data_Table[],18,FALSE)","v":0},"",{"$f":"Table_Data_Table_12[[#This Row],[Pair\nGroup]]+(COUNTIF($A$17:$A374,A374)*0.01)","v":3.52},{"$error":"#N/A"},{"$error":"#N/A"},{"$error":"#N/A"},{"$error":"#N/A"},{"$error":"#N/A"},{"$error":"#N/A"},{"$error":"#N/A"},{"$error":"#N/A"},{"$error":"#N/A"},{"$error":"#N/A"},{"$error":"#N/A"},{"$error":"#N/A"}]
[{"$f":"VLOOKUP($B375,Data_Table[],18,FALSE)","v":0},"",{"$f":"Table_Data_Table_12[[#This Row],[Pair\nGroup]]+(COUNTIF($A$17:$A375,A375)*0.01)","v":3.5300000000000002},{"$error":"#N/A"},{"$error":"#N/A"},{"$error":"#N/A"},{"$error":"#N/A"},{"$error":"#N/A"},{"$error":"#N/A"},{"$error":"#N/A"},{"$error":"#N/A"},{"$error":"#N/A"},{"$error":"#N/A"},{"$error":"#N/A"},{"$error":"#N/A"}]
[{"$f":"VLOOKUP($B376,Data_Table[],18,FALSE)","v":0},"",{"$f":"Table_Data_Table_12[[#This Row],[Pair\nGroup]]+(COUNTIF($A$17:$A376,A376)*0.01)","v":3.54},{"$error":"#N/A"},{"$error":"#N/A"},{"$error":"#N/A"},{"$error":"#N/A"},{"$error":"#N/A"},{"$error":"#N/A"},{"$error":"#N/A"},{"$error":"#N/A"},{"$error":"#N/A"},{"$error":"#N/A"},{"$error":"#N/A"},{"$error":"#N/A"}]
[{"$f":"VLOOKUP($B377,Data_Table[],18,FALSE)","v":0},"",{"$f":"Table_Data_Table_12[[#This Row],[Pair\nGroup]]+(COUNTIF($A$17:$A377,A377)*0.01)","v":3.5500000000000003},{"$error":"#N/A"},{"$error":"#N/A"},{"$error":"#N/A"},{"$error":"#N/A"},{"$error":"#N/A"},{"$error":"#N/A"},{"$error":"#N/A"},{"$error":"#N/A"},{"$error":"#N/A"},{"$error":"#N/A"},{"$error":"#N/A"},{"$error":"#N/A"}]
[{"$f":"VLOOKUP($B378,Data_Table[],18,FALSE)","v":0},"",{"$f":"Table_Data_Table_12[[#This Row],[Pair\nGroup]]+(COUNTIF($A$17:$A378,A378)*0.01)","v":3.56},{"$error":"#N/A"},{"$error":"#N/A"},{"$error":"#N/A"},{"$error":"#N/A"},{"$error":"#N/A"},{"$error":"#N/A"},{"$error":"#N/A"},{"$error":"#N/A"},{"$error":"#N/A"},{"$error":"#N/A"},{"$error":"#N/A"},{"$error":"#N/A"}]
[{"$f":"VLOOKUP($B379,Data_Table[],18,FALSE)","v":0},"",{"$f":"Table_Data_Table_12[[#This Row],[Pair\nGroup]]+(COUNTIF($A$17:$A379,A379)*0.01)","v":3.5700000000000003},{"$error":"#N/A"},{"$error":"#N/A"},{"$error":"#N/A"},{"$error":"#N/A"},{"$error":"#N/A"},{"$error":"#N/A"},{"$error":"#N/A"},{"$error":"#N/A"},{"$error":"#N/A"},{"$error":"#N/A"},{"$error":"#N/A"},{"$error":"#N/A"}]
[{"$f":"VLOOKUP($B380,Data_Table[],18,FALSE)","v":0},"",{"$f":"Table_Data_Table_12[[#This Row],[Pair\nGroup]]+(COUNTIF($A$17:$A380,A380)*0.01)","v":3.58},{"$error":"#N/A"},{"$error":"#N/A"},{"$error":"#N/A"},{"$error":"#N/A"},{"$error":"#N/A"},{"$error":"#N/A"},{"$error":"#N/A"},{"$error":"#N/A"},{"$error":"#N/A"},{"$error":"#N/A"},{"$error":"#N/A"},{"$error":"#N/A"}]
[{"$f":"VLOOKUP($B381,Data_Table[],18,FALSE)","v":0},"",{"$f":"Table_Data_Table_12[[#This Row],[Pair\nGroup]]+(COUNTIF($A$17:$A381,A381)*0.01)","v":3.59},{"$error":"#N/A"},{"$error":"#N/A"},{"$error":"#N/A"},{"$error":"#N/A"},{"$error":"#N/A"},{"$error":"#N/A"},{"$error":"#N/A"},{"$error":"#N/A"},{"$error":"#N/A"},{"$error":"#N/A"},{"$error":"#N/A"},{"$error":"#N/A"}]
[{"$f":"VLOOKUP($B382,Data_Table[],18,FALSE)","v":0},"",{"$f":"Table_Data_Table_12[[#This Row],[Pair\nGroup]]+(COUNTIF($A$17:$A382,A382)*0.01)","v":3.6},{"$error":"#N/A"},{"$error":"#N/A"},{"$error":"#N/A"},{"$error":"#N/A"},{"$error":"#N/A"},{"$error":"#N/A"},{"$error":"#N/A"},{"$error":"#N/A"},{"$error":"#N/A"},{"$error":"#N/A"},{"$error":"#N/A"},{"$error":"#N/A"}]
[{"$f":"VLOOKUP($B383,Data_Table[],18,FALSE)","v":0},"",{"$f":"Table_Data_Table_12[[#This Row],[Pair\nGroup]]+(COUNTIF($A$17:$A383,A383)*0.01)","v":3.61},{"$error":"#N/A"},{"$error":"#N/A"},{"$error":"#N/A"},{"$error":"#N/A"},{"$error":"#N/A"},{"$error":"#N/A"},{"$error":"#N/A"},{"$error":"#N/A"},{"$error":"#N/A"},{"$error":"#N/A"},{"$error":"#N/A"},{"$error":"#N/A"}]
[{"$f":"VLOOKUP($B384,Data_Table[],18,FALSE)","v":0},"",{"$f":"Table_Data_Table_12[[#This Row],[Pair\nGroup]]+(COUNTIF($A$17:$A384,A384)*0.01)","v":3.62},{"$error":"#N/A"},{"$error":"#N/A"},{"$error":"#N/A"},{"$error":"#N/A"},{"$error":"#N/A"},{"$error":"#N/A"},{"$error":"#N/A"},{"$error":"#N/A"},{"$error":"#N/A"},{"$error":"#N/A"},{"$error":"#N/A"},{"$error":"#N/A"}]
[{"$f":"VLOOKUP($B385,Data_Table[],18,FALSE)","v":0},"",{"$f":"Table_Data_Table_12[[#This Row],[Pair\nGroup]]+(COUNTIF($A$17:$A385,A385)*0.01)","v":3.63},{"$error":"#N/A"},{"$error":"#N/A"},{"$error":"#N/A"},{"$error":"#N/A"},{"$error":"#N/A"},{"$error":"#N/A"},{"$error":"#N/A"},{"$error":"#N/A"},{"$error":"#N/A"},{"$error":"#N/A"},{"$error":"#N/A"},{"$error":"#N/A"}]
[{"$f":"VLOOKUP($B386,Data_Table[],18,FALSE)","v":0},"",{"$f":"Table_Data_Table_12[[#This Row],[Pair\nGroup]]+(COUNTIF($A$17:$A386,A386)*0.01)","v":3.64},{"$error":"#N/A"},{"$error":"#N/A"},{"$error":"#N/A"},{"$error":"#N/A"},{"$error":"#N/A"},{"$error":"#N/A"},{"$error":"#N/A"},{"$error":"#N/A"},{"$error":"#N/A"},{"$error":"#N/A"},{"$error":"#N/A"},{"$error":"#N/A"}]
[{"$f":"VLOOKUP($B387,Data_Table[],18,FALSE)","v":0},"",{"$f":"Table_Data_Table_12[[#This Row],[Pair\nGroup]]+(COUNTIF($A$17:$A387,A387)*0.01)","v":3.65},{"$error":"#N/A"},{"$error":"#N/A"},{"$error":"#N/A"},{"$error":"#N/A"},{"$error":"#N/A"},{"$error":"#N/A"},{"$error":"#N/A"},{"$error":"#N/A"},{"$error":"#N/A"},{"$error":"#N/A"},{"$error":"#N/A"},{"$error":"#N/A"}]
[{"$f":"VLOOKUP($B388,Data_Table[],18,FALSE)","v":0},"",{"$f":"Table_Data_Table_12[[#This Row],[Pair\nGroup]]+(COUNTIF($A$17:$A388,A388)*0.01)","v":3.66},{"$error":"#N/A"},{"$error":"#N/A"},{"$error":"#N/A"},{"$error":"#N/A"},{"$error":"#N/A"},{"$error":"#N/A"},{"$error":"#N/A"},{"$error":"#N/A"},{"$error":"#N/A"},{"$error":"#N/A"},{"$error":"#N/A"},{"$error":"#N/A"}]
[{"$f":"VLOOKUP($B389,Data_Table[],18,FALSE)","v":0},"",{"$f":"Table_Data_Table_12[[#This Row],[Pair\nGroup]]+(COUNTIF($A$17:$A389,A389)*0.01)","v":3.67},{"$error":"#N/A"},{"$error":"#N/A"},{"$error":"#N/A"},{"$error":"#N/A"},{"$error":"#N/A"},{"$error":"#N/A"},{"$error":"#N/A"},{"$error":"#N/A"},{"$error":"#N/A"},{"$error":"#N/A"},{"$error":"#N/A"},{"$error":"#N/A"}]
[{"$f":"VLOOKUP($B390,Data_Table[],18,FALSE)","v":0},"",{"$f":"Table_Data_Table_12[[#This Row],[Pair\nGroup]]+(COUNTIF($A$17:$A390,A390)*0.01)","v":3.68},{"$error":"#N/A"},{"$error":"#N/A"},{"$error":"#N/A"},{"$error":"#N/A"},{"$error":"#N/A"},{"$error":"#N/A"},{"$error":"#N/A"},{"$error":"#N/A"},{"$error":"#N/A"},{"$error":"#N/A"},{"$error":"#N/A"},{"$error":"#N/A"}]
[{"$f":"VLOOKUP($B391,Data_Table[],18,FALSE)","v":0},"",{"$f":"Table_Data_Table_12[[#This Row],[Pair\nGroup]]+(COUNTIF($A$17:$A391,A391)*0.01)","v":3.69},{"$error":"#N/A"},{"$error":"#N/A"},{"$error":"#N/A"},{"$error":"#N/A"},{"$error":"#N/A"},{"$error":"#N/A"},{"$error":"#N/A"},{"$error":"#N/A"},{"$error":"#N/A"},{"$error":"#N/A"},{"$error":"#N/A"},{"$error":"#N/A"}]
[{"$f":"VLOOKUP($B392,Data_Table[],18,FALSE)","v":0},"",{"$f":"Table_Data_Table_12[[#This Row],[Pair\nGroup]]+(COUNTIF($A$17:$A392,A392)*0.01)","v":3.7},{"$error":"#N/A"},{"$error":"#N/A"},{"$error":"#N/A"},{"$error":"#N/A"},{"$error":"#N/A"},{"$error":"#N/A"},{"$error":"#N/A"},{"$error":"#N/A"},{"$error":"#N/A"},{"$error":"#N/A"},{"$error":"#N/A"},{"$error":"#N/A"}]
[{"$f":"VLOOKUP($B393,Data_Table[],18,FALSE)","v":0},"",{"$f":"Table_Data_Table_12[[#This Row],[Pair\nGroup]]+(COUNTIF($A$17:$A393,A393)*0.01)","v":3.71},{"$error":"#N/A"},{"$error":"#N/A"},{"$error":"#N/A"},{"$error":"#N/A"},{"$error":"#N/A"},{"$error":"#N/A"},{"$error":"#N/A"},{"$error":"#N/A"},{"$error":"#N/A"},{"$error":"#N/A"},{"$error":"#N/A"},{"$error":"#N/A"}]
[{"$f":"VLOOKUP($B394,Data_Table[],18,FALSE)","v":0},"",{"$f":"Table_Data_Table_12[[#This Row],[Pair\nGroup]]+(COUNTIF($A$17:$A394,A394)*0.01)","v":3.72},{"$error":"#N/A"},{"$error":"#N/A"},{"$error":"#N/A"},{"$error":"#N/A"},{"$error":"#N/A"},{"$error":"#N/A"},{"$error":"#N/A"},{"$error":"#N/A"},{"$error":"#N/A"},{"$error":"#N/A"},{"$error":"#N/A"},{"$error":"#N/A"}]
[{"$f":"VLOOKUP($B395,Data_Table[],18,FALSE)","v":0},"",{"$f":"Table_Data_Table_12[[#This Row],[Pair\nGroup]]+(COUNTIF($A$17:$A395,A395)*0.01)","v":3.73},{"$error":"#N/A"},{"$error":"#N/A"},{"$error":"#N/A"},{"$error":"#N/A"},{"$error":"#N/A"},{"$error":"#N/A"},{"$error":"#N/A"},{"$error":"#N/A"},{"$error":"#N/A"},{"$error":"#N/A"},{"$error":"#N/A"},{"$error":"#N/A"}]
[{"$f":"VLOOKUP($B396,Data_Table[],18,FALSE)","v":0},"",{"$f":"Table_Data_Table_12[[#This Row],[Pair\nGroup]]+(COUNTIF($A$17:$A396,A396)*0.01)","v":3.74},{"$error":"#N/A"},{"$error":"#N/A"},{"$error":"#N/A"},{"$error":"#N/A"},{"$error":"#N/A"},{"$error":"#N/A"},{"$error":"#N/A"},{"$error":"#N/A"},{"$error":"#N/A"},{"$error":"#N/A"},{"$error":"#N/A"},{"$error":"#N/A"}]
[{"$f":"VLOOKUP($B397,Data_Table[],18,FALSE)","v":0},"",{"$f":"Table_Data_Table_12[[#This Row],[Pair\nGroup]]+(COUNTIF($A$17:$A397,A397)*0.01)","v":3.75},{"$error":"#N/A"},{"$error":"#N/A"},{"$error":"#N/A"},{"$error":"#N/A"},{"$error":"#N/A"},{"$error":"#N/A"},{"$error":"#N/A"},{"$error":"#N/A"},{"$error":"#N/A"},{"$error":"#N/A"},{"$error":"#N/A"},{"$error":"#N/A"}]
[{"$f":"VLOOKUP($B398,Data_Table[],18,FALSE)","v":0},"",{"$f":"Table_Data_Table_12[[#This Row],[Pair\nGroup]]+(COUNTIF($A$17:$A398,A398)*0.01)","v":3.7600000000000002},{"$error":"#N/A"},{"$error":"#N/A"},{"$error":"#N/A"},{"$error":"#N/A"},{"$error":"#N/A"},{"$error":"#N/A"},{"$error":"#N/A"},{"$error":"#N/A"},{"$error":"#N/A"},{"$error":"#N/A"},{"$error":"#N/A"},{"$error":"#N/A"}]
[{"$f":"VLOOKUP($B399,Data_Table[],18,FALSE)","v":0},"",{"$f":"Table_Data_Table_12[[#This Row],[Pair\nGroup]]+(COUNTIF($A$17:$A399,A399)*0.01)","v":3.77},{"$error":"#N/A"},{"$error":"#N/A"},{"$error":"#N/A"},{"$error":"#N/A"},{"$error":"#N/A"},{"$error":"#N/A"},{"$error":"#N/A"},{"$error":"#N/A"},{"$error":"#N/A"},{"$error":"#N/A"},{"$error":"#N/A"},{"$error":"#N/A"}]
[{"$f":"VLOOKUP($B400,Data_Table[],18,FALSE)","v":0},"",{"$f":"Table_Data_Table_12[[#This Row],[Pair\nGroup]]+(COUNTIF($A$17:$A400,A400)*0.01)","v":3.7800000000000002},{"$error":"#N/A"},{"$error":"#N/A"},{"$error":"#N/A"},{"$error":"#N/A"},{"$error":"#N/A"},{"$error":"#N/A"},{"$error":"#N/A"},{"$error":"#N/A"},{"$error":"#N/A"},{"$error":"#N/A"},{"$error":"#N/A"},{"$error":"#N/A"}]
[{"$f":"VLOOKUP($B401,Data_Table[],18,FALSE)","v":0},"",{"$f":"Table_Data_Table_12[[#This Row],[Pair\nGroup]]+(COUNTIF($A$17:$A401,A401)*0.01)","v":3.79},{"$f":"VLOOKUP($B401,DataTable,2,FALSE)","v":{"$error":"#N/A"}},{"$f":"VLOOKUP($B401,DataTable,3,FALSE)","v":{"$error":"#N/A"}},{"$f":"VLOOKUP($B401,DataTable,4,FALSE)","v":{"$error":"#N/A"}},{"$f":"VLOOKUP($B401,DataTable,5,FALSE)","v":{"$error":"#N/A"}},{"$f":"VLOOKUP($B401,DataTable,6,FALSE)","v":{"$error":"#N/A"}},{"$f":"ROUND((VLOOKUP($B401,DataTable,10,FALSE)-VLOOKUP($B401,DataTable,12,FALSE))/43560,3)","v":{"$error":"#N/A"}},{"$f":"VLOOKUP($B401,DataTable,11,FALSE)","v":{"$error":"#N/A"}},{"$f":"VLOOKUP($B401,DataTable,13,FALSE)","v":{"$error":"#N/A"}},{"$f":"VLOOKUP($B401,Analysis_Table,8,FALSE)","v":{"$error":"#N/A"}},{"$f":"VLOOKUP($B401,Analysis_Table,9,FALSE)","v":{"$error":"#N/A"}},{"$f":"L401/I401","v":{"$error":"#N/A"}},{"$f":"ROUND(L401/(VLOOKUP($B401,DataTable,10,FALSE)-VLOOKUP($B401,DataTable,12,FALSE)),2)","v":{"$error":"#N/A"}}]
[{"$f":"VLOOKUP($B402,Data_Table[],18,FALSE)","v":0},"",{"$f":"Table_Data_Table_12[[#This Row],[Pair\nGroup]]+(COUNTIF($A$17:$A402,A402)*0.01)","v":3.8000000000000003},{"$error":"#N/A"},{"$error":"#N/A"},{"$error":"#N/A"},{"$error":"#N/A"},{"$error":"#N/A"},{"$error":"#N/A"},{"$error":"#N/A"},{"$error":"#N/A"},{"$error":"#N/A"},{"$error":"#N/A"},{"$error":"#N/A"},{"$error":"#N/A"}]
[{"$f":"VLOOKUP($B403,Data_Table[],18,FALSE)","v":0},"",{"$f":"Table_Data_Table_12[[#This Row],[Pair\nGroup]]+(COUNTIF($A$17:$A403,A403)*0.01)","v":3.81},{"$error":"#N/A"},{"$error":"#N/A"},{"$error":"#N/A"},{"$error":"#N/A"},{"$error":"#N/A"},{"$error":"#N/A"},{"$error":"#N/A"},{"$error":"#N/A"},{"$error":"#N/A"},{"$error":"#N/A"},{"$error":"#N/A"},{"$error":"#N/A"}]
[{"$f":"VLOOKUP($B404,Data_Table[],18,FALSE)","v":0},"",{"$f":"Table_Data_Table_12[[#This Row],[Pair\nGroup]]+(COUNTIF($A$17:$A404,A404)*0.01)","v":3.8200000000000003},{"$error":"#N/A"},{"$error":"#N/A"},{"$error":"#N/A"},{"$error":"#N/A"},{"$error":"#N/A"},{"$error":"#N/A"},{"$error":"#N/A"},{"$error":"#N/A"},{"$error":"#N/A"},{"$error":"#N/A"},{"$error":"#N/A"},{"$error":"#N/A"}]
[{"$f":"VLOOKUP($B405,Data_Table[],18,FALSE)","v":0},"",{"$f":"Table_Data_Table_12[[#This Row],[Pair\nGroup]]+(COUNTIF($A$17:$A405,A405)*0.01)","v":3.83},{"$error":"#N/A"},{"$error":"#N/A"},{"$error":"#N/A"},{"$error":"#N/A"},{"$error":"#N/A"},{"$error":"#N/A"},{"$error":"#N/A"},{"$error":"#N/A"},{"$error":"#N/A"},{"$error":"#N/A"},{"$error":"#N/A"},{"$error":"#N/A"}]
[{"$f":"VLOOKUP($B406,Data_Table[],18,FALSE)","v":0},"",{"$f":"Table_Data_Table_12[[#This Row],[Pair\nGroup]]+(COUNTIF($A$17:$A406,A406)*0.01)","v":3.84},{"$error":"#N/A"},{"$error":"#N/A"},{"$error":"#N/A"},{"$error":"#N/A"},{"$error":"#N/A"},{"$error":"#N/A"},{"$error":"#N/A"},{"$error":"#N/A"},{"$error":"#N/A"},{"$error":"#N/A"},{"$error":"#N/A"},{"$error":"#N/A"}]
[{"$f":"VLOOKUP($B407,Data_Table[],18,FALSE)","v":0},"",{"$f":"Table_Data_Table_12[[#This Row],[Pair\nGroup]]+(COUNTIF($A$17:$A407,A407)*0.01)","v":3.85},{"$error":"#N/A"},{"$error":"#N/A"},{"$error":"#N/A"},{"$error":"#N/A"},{"$error":"#N/A"},{"$error":"#N/A"},{"$error":"#N/A"},{"$error":"#N/A"},{"$error":"#N/A"},{"$error":"#N/A"},{"$error":"#N/A"},{"$error":"#N/A"}]
[{"$f":"VLOOKUP($B408,Data_Table[],18,FALSE)","v":0},"",{"$f":"Table_Data_Table_12[[#This Row],[Pair\nGroup]]+(COUNTIF($A$17:$A408,A408)*0.01)","v":3.86},{"$error":"#N/A"},{"$error":"#N/A"},{"$error":"#N/A"},{"$error":"#N/A"},{"$error":"#N/A"},{"$error":"#N/A"},{"$error":"#N/A"},{"$error":"#N/A"},{"$error":"#N/A"},{"$error":"#N/A"},{"$error":"#N/A"},{"$error":"#N/A"}]
[{"$f":"VLOOKUP($B409,Data_Table[],18,FALSE)","v":0},"",{"$f":"Table_Data_Table_12[[#This Row],[Pair\nGroup]]+(COUNTIF($A$17:$A409,A409)*0.01)","v":3.87},{"$error":"#N/A"},{"$error":"#N/A"},{"$error":"#N/A"},{"$error":"#N/A"},{"$error":"#N/A"},{"$error":"#N/A"},{"$error":"#N/A"},{"$error":"#N/A"},{"$error":"#N/A"},{"$error":"#N/A"},{"$error":"#N/A"},{"$error":"#N/A"}]
[{"$f":"VLOOKUP($B410,Data_Table[],18,FALSE)","v":0},"",{"$f":"Table_Data_Table_12[[#This Row],[Pair\nGroup]]+(COUNTIF($A$17:$A410,A410)*0.01)","v":3.88},{"$error":"#N/A"},{"$error":"#N/A"},{"$error":"#N/A"},{"$error":"#N/A"},{"$error":"#N/A"},{"$error":"#N/A"},{"$error":"#N/A"},{"$error":"#N/A"},{"$error":"#N/A"},{"$error":"#N/A"},{"$error":"#N/A"},{"$error":"#N/A"}]
[{"$f":"VLOOKUP($B411,Data_Table[],18,FALSE)","v":0},"",{"$f":"Table_Data_Table_12[[#This Row],[Pair\nGroup]]+(COUNTIF($A$17:$A411,A411)*0.01)","v":3.89},{"$error":"#N/A"},{"$error":"#N/A"},{"$error":"#N/A"},{"$error":"#N/A"},{"$error":"#N/A"},{"$error":"#N/A"},{"$error":"#N/A"},{"$error":"#N/A"},{"$error":"#N/A"},{"$error":"#N/A"},{"$error":"#N/A"},{"$error":"#N/A"}]
[{"$f":"VLOOKUP($B412,Data_Table[],18,FALSE)","v":0},"",{"$f":"Table_Data_Table_12[[#This Row],[Pair\nGroup]]+(COUNTIF($A$17:$A412,A412)*0.01)","v":3.9},{"$error":"#N/A"},{"$error":"#N/A"},{"$error":"#N/A"},{"$error":"#N/A"},{"$error":"#N/A"},{"$error":"#N/A"},{"$error":"#N/A"},{"$error":"#N/A"},{"$error":"#N/A"},{"$error":"#N/A"},{"$error":"#N/A"},{"$error":"#N/A"}]
[{"$f":"VLOOKUP($B413,Data_Table[],18,FALSE)","v":0},"",{"$f":"Table_Data_Table_12[[#This Row],[Pair\nGroup]]+(COUNTIF($A$17:$A413,A413)*0.01)","v":3.91},{"$error":"#N/A"},{"$error":"#N/A"},{"$error":"#N/A"},{"$error":"#N/A"},{"$error":"#N/A"},{"$error":"#N/A"},{"$error":"#N/A"},{"$error":"#N/A"},{"$error":"#N/A"},{"$error":"#N/A"},{"$error":"#N/A"},{"$error":"#N/A"}]
[{"$f":"VLOOKUP($B414,Data_Table[],18,FALSE)","v":0},"",{"$f":"Table_Data_Table_12[[#This Row],[Pair\nGroup]]+(COUNTIF($A$17:$A414,A414)*0.01)","v":3.92},{"$error":"#N/A"},{"$error":"#N/A"},{"$error":"#N/A"},{"$error":"#N/A"},{"$error":"#N/A"},{"$error":"#N/A"},{"$error":"#N/A"},{"$error":"#N/A"},{"$error":"#N/A"},{"$error":"#N/A"},{"$error":"#N/A"},{"$error":"#N/A"}]
[{"$f":"VLOOKUP($B415,Data_Table[],18,FALSE)","v":0},"",{"$f":"Table_Data_Table_12[[#This Row],[Pair\nGroup]]+(COUNTIF($A$17:$A415,A415)*0.01)","v":3.93},{"$error":"#N/A"},{"$error":"#N/A"},{"$error":"#N/A"},{"$error":"#N/A"},{"$error":"#N/A"},{"$error":"#N/A"},{"$error":"#N/A"},{"$error":"#N/A"},{"$error":"#N/A"},{"$error":"#N/A"},{"$error":"#N/A"},{"$error":"#N/A"}]
[{"$f":"VLOOKUP($B416,Data_Table[],18,FALSE)","v":0},"",{"$f":"Table_Data_Table_12[[#This Row],[Pair\nGroup]]+(COUNTIF($A$17:$A416,A416)*0.01)","v":3.94},{"$error":"#N/A"},{"$error":"#N/A"},{"$error":"#N/A"},{"$error":"#N/A"},{"$error":"#N/A"},{"$error":"#N/A"},{"$error":"#N/A"},{"$error":"#N/A"},{"$error":"#N/A"},{"$error":"#N/A"},{"$error":"#N/A"},{"$error":"#N/A"}]
[{"$f":"VLOOKUP($B417,Data_Table[],18,FALSE)","v":0},"",{"$f":"Table_Data_Table_12[[#This Row],[Pair\nGroup]]+(COUNTIF($A$17:$A417,A417)*0.01)","v":3.95},{"$error":"#N/A"},{"$error":"#N/A"},{"$error":"#N/A"},{"$error":"#N/A"},{"$error":"#N/A"},{"$error":"#N/A"},{"$error":"#N/A"},{"$error":"#N/A"},{"$error":"#N/A"},{"$error":"#N/A"},{"$error":"#N/A"},{"$error":"#N/A"}]
[{"$f":"VLOOKUP($B418,Data_Table[],18,FALSE)","v":0},"",{"$f":"Table_Data_Table_12[[#This Row],[Pair\nGroup]]+(COUNTIF($A$17:$A418,A418)*0.01)","v":3.96},{"$error":"#N/A"},{"$error":"#N/A"},{"$error":"#N/A"},{"$error":"#N/A"},{"$error":"#N/A"},{"$error":"#N/A"},{"$error":"#N/A"},{"$error":"#N/A"},{"$error":"#N/A"},{"$error":"#N/A"},{"$error":"#N/A"},{"$error":"#N/A"}]
[{"$f":"VLOOKUP($B419,Data_Table[],18,FALSE)","v":0},"",{"$f":"Table_Data_Table_12[[#This Row],[Pair\nGroup]]+(COUNTIF($A$17:$A419,A419)*0.01)","v":3.97},{"$error":"#N/A"},{"$error":"#N/A"},{"$error":"#N/A"},{"$error":"#N/A"},{"$error":"#N/A"},{"$error":"#N/A"},{"$error":"#N/A"},{"$error":"#N/A"},{"$error":"#N/A"},{"$error":"#N/A"},{"$error":"#N/A"},{"$error":"#N/A"}]
[{"$f":"VLOOKUP($B420,Data_Table[],18,FALSE)","v":0},"",{"$f":"Table_Data_Table_12[[#This Row],[Pair\nGroup]]+(COUNTIF($A$17:$A420,A420)*0.01)","v":3.98},{"$error":"#N/A"},{"$error":"#N/A"},{"$error":"#N/A"},{"$error":"#N/A"},{"$error":"#N/A"},{"$error":"#N/A"},{"$error":"#N/A"},{"$error":"#N/A"},{"$error":"#N/A"},{"$error":"#N/A"},{"$error":"#N/A"},{"$error":"#N/A"}]
[{"$f":"VLOOKUP($B421,Data_Table[],18,FALSE)","v":0},"",{"$f":"Table_Data_Table_12[[#This Row],[Pair\nGroup]]+(COUNTIF($A$17:$A421,A421)*0.01)","v":3.99},{"$error":"#N/A"},{"$error":"#N/A"},{"$error":"#N/A"},{"$error":"#N/A"},{"$error":"#N/A"},{"$error":"#N/A"},{"$error":"#N/A"},{"$error":"#N/A"},{"$error":"#N/A"},{"$error":"#N/A"},{"$error":"#N/A"},{"$error":"#N/A"}]
[{"$f":"VLOOKUP($B422,Data_Table[],18,FALSE)","v":0},"",{"$f":"Table_Data_Table_12[[#This Row],[Pair\nGroup]]+(COUNTIF($A$17:$A422,A422)*0.01)","v":4},{"$error":"#N/A"},{"$error":"#N/A"},{"$error":"#N/A"},{"$error":"#N/A"},{"$error":"#N/A"},{"$error":"#N/A"},{"$error":"#N/A"},{"$error":"#N/A"},{"$error":"#N/A"},{"$error":"#N/A"},{"$error":"#N/A"},{"$error":"#N/A"}]
[{"$f":"VLOOKUP($B423,Data_Table[],18,FALSE)","v":0},"",{"$f":"Table_Data_Table_12[[#This Row],[Pair\nGroup]]+(COUNTIF($A$17:$A423,A423)*0.01)","v":4.01},{"$error":"#N/A"},{"$error":"#N/A"},{"$error":"#N/A"},{"$error":"#N/A"},{"$error":"#N/A"},{"$error":"#N/A"},{"$error":"#N/A"},{"$error":"#N/A"},{"$error":"#N/A"},{"$error":"#N/A"},{"$error":"#N/A"},{"$error":"#N/A"}]
[{"$f":"VLOOKUP($B424,Data_Table[],18,FALSE)","v":0},"",{"$f":"Table_Data_Table_12[[#This Row],[Pair\nGroup]]+(COUNTIF($A$17:$A424,A424)*0.01)","v":4.0200000000000005},{"$error":"#N/A"},{"$error":"#N/A"},{"$error":"#N/A"},{"$error":"#N/A"},{"$error":"#N/A"},{"$error":"#N/A"},{"$error":"#N/A"},{"$error":"#N/A"},{"$error":"#N/A"},{"$error":"#N/A"},{"$error":"#N/A"},{"$error":"#N/A"}]
[{"$f":"VLOOKUP($B425,Data_Table[],18,FALSE)","v":0},"",{"$f":"Table_Data_Table_12[[#This Row],[Pair\nGroup]]+(COUNTIF($A$17:$A425,A425)*0.01)","v":4.03},{"$error":"#N/A"},{"$error":"#N/A"},{"$error":"#N/A"},{"$error":"#N/A"},{"$error":"#N/A"},{"$error":"#N/A"},{"$error":"#N/A"},{"$error":"#N/A"},{"$error":"#N/A"},{"$error":"#N/A"},{"$error":"#N/A"},{"$error":"#N/A"}]
[{"$f":"VLOOKUP($B426,Data_Table[],18,FALSE)","v":0},"",{"$f":"Table_Data_Table_12[[#This Row],[Pair\nGroup]]+(COUNTIF($A$17:$A426,A426)*0.01)","v":4.04},{"$error":"#N/A"},{"$error":"#N/A"},{"$error":"#N/A"},{"$error":"#N/A"},{"$error":"#N/A"},{"$error":"#N/A"},{"$error":"#N/A"},{"$error":"#N/A"},{"$error":"#N/A"},{"$error":"#N/A"},{"$error":"#N/A"},{"$error":"#N/A"}]
[{"$f":"VLOOKUP($B427,Data_Table[],18,FALSE)","v":0},"",{"$f":"Table_Data_Table_12[[#This Row],[Pair\nGroup]]+(COUNTIF($A$17:$A427,A427)*0.01)","v":4.05},{"$error":"#N/A"},{"$error":"#N/A"},{"$error":"#N/A"},{"$error":"#N/A"},{"$error":"#N/A"},{"$error":"#N/A"},{"$error":"#N/A"},{"$error":"#N/A"},{"$error":"#N/A"},{"$error":"#N/A"},{"$error":"#N/A"},{"$error":"#N/A"}]
[{"$f":"VLOOKUP($B428,Data_Table[],18,FALSE)","v":0},"",{"$f":"Table_Data_Table_12[[#This Row],[Pair\nGroup]]+(COUNTIF($A$17:$A428,A428)*0.01)","v":4.0600000000000005},{"$error":"#N/A"},{"$error":"#N/A"},{"$error":"#N/A"},{"$error":"#N/A"},{"$error":"#N/A"},{"$error":"#N/A"},{"$error":"#N/A"},{"$error":"#N/A"},{"$error":"#N/A"},{"$error":"#N/A"},{"$error":"#N/A"},{"$error":"#N/A"}]
[{"$f":"VLOOKUP($B429,Data_Table[],18,FALSE)","v":0},"",{"$f":"Table_Data_Table_12[[#This Row],[Pair\nGroup]]+(COUNTIF($A$17:$A429,A429)*0.01)","v":4.07},{"$error":"#N/A"},{"$error":"#N/A"},{"$error":"#N/A"},{"$error":"#N/A"},{"$error":"#N/A"},{"$error":"#N/A"},{"$error":"#N/A"},{"$error":"#N/A"},{"$error":"#N/A"},{"$error":"#N/A"},{"$error":"#N/A"},{"$error":"#N/A"}]
[{"$f":"VLOOKUP($B430,Data_Table[],18,FALSE)","v":0},"",{"$f":"Table_Data_Table_12[[#This Row],[Pair\nGroup]]+(COUNTIF($A$17:$A430,A430)*0.01)","v":4.08},{"$error":"#N/A"},{"$error":"#N/A"},{"$error":"#N/A"},{"$error":"#N/A"},{"$error":"#N/A"},{"$error":"#N/A"},{"$error":"#N/A"},{"$error":"#N/A"},{"$error":"#N/A"},{"$error":"#N/A"},{"$error":"#N/A"},{"$error":"#N/A"}]
[{"$f":"VLOOKUP($B431,Data_Table[],18,FALSE)","v":0},"",{"$f":"Table_Data_Table_12[[#This Row],[Pair\nGroup]]+(COUNTIF($A$17:$A431,A431)*0.01)","v":4.09},{"$error":"#N/A"},{"$error":"#N/A"},{"$error":"#N/A"},{"$error":"#N/A"},{"$error":"#N/A"},{"$error":"#N/A"},{"$error":"#N/A"},{"$error":"#N/A"},{"$error":"#N/A"},{"$error":"#N/A"},{"$error":"#N/A"},{"$error":"#N/A"}]
[{"$f":"VLOOKUP($B432,Data_Table[],18,FALSE)","v":0},"",{"$f":"Table_Data_Table_12[[#This Row],[Pair\nGroup]]+(COUNTIF($A$17:$A432,A432)*0.01)","v":4.0999999999999996},{"$error":"#N/A"},{"$error":"#N/A"},{"$error":"#N/A"},{"$error":"#N/A"},{"$error":"#N/A"},{"$error":"#N/A"},{"$error":"#N/A"},{"$error":"#N/A"},{"$error":"#N/A"},{"$error":"#N/A"},{"$error":"#N/A"},{"$error":"#N/A"}]
[{"$f":"VLOOKUP($B433,Data_Table[],18,FALSE)","v":0},"",{"$f":"Table_Data_Table_12[[#This Row],[Pair\nGroup]]+(COUNTIF($A$17:$A433,A433)*0.01)","v":4.1100000000000003},{"$error":"#N/A"},{"$error":"#N/A"},{"$error":"#N/A"},{"$error":"#N/A"},{"$error":"#N/A"},{"$error":"#N/A"},{"$error":"#N/A"},{"$error":"#N/A"},{"$error":"#N/A"},{"$error":"#N/A"},{"$error":"#N/A"},{"$error":"#N/A"}]
[{"$f":"VLOOKUP($B434,Data_Table[],18,FALSE)","v":0},"",{"$f":"Table_Data_Table_12[[#This Row],[Pair\nGroup]]+(COUNTIF($A$17:$A434,A434)*0.01)","v":4.12},{"$error":"#N/A"},{"$error":"#N/A"},{"$error":"#N/A"},{"$error":"#N/A"},{"$error":"#N/A"},{"$error":"#N/A"},{"$error":"#N/A"},{"$error":"#N/A"},{"$error":"#N/A"},{"$error":"#N/A"},{"$error":"#N/A"},{"$error":"#N/A"}]
[{"$f":"VLOOKUP($B435,Data_Table[],18,FALSE)","v":0},"",{"$f":"Table_Data_Table_12[[#This Row],[Pair\nGroup]]+(COUNTIF($A$17:$A435,A435)*0.01)","v":4.13},{"$error":"#N/A"},{"$error":"#N/A"},{"$error":"#N/A"},{"$error":"#N/A"},{"$error":"#N/A"},{"$error":"#N/A"},{"$error":"#N/A"},{"$error":"#N/A"},{"$error":"#N/A"},{"$error":"#N/A"},{"$error":"#N/A"},{"$error":"#N/A"}]
[{"$f":"VLOOKUP($B436,Data_Table[],18,FALSE)","v":0},"",{"$f":"Table_Data_Table_12[[#This Row],[Pair\nGroup]]+(COUNTIF($A$17:$A436,A436)*0.01)","v":4.1399999999999997},{"$error":"#N/A"},{"$error":"#N/A"},{"$error":"#N/A"},{"$error":"#N/A"},{"$error":"#N/A"},{"$error":"#N/A"},{"$error":"#N/A"},{"$error":"#N/A"},{"$error":"#N/A"},{"$error":"#N/A"},{"$error":"#N/A"},{"$error":"#N/A"}]
[{"$f":"VLOOKUP($B437,Data_Table[],18,FALSE)","v":0},"",{"$f":"Table_Data_Table_12[[#This Row],[Pair\nGroup]]+(COUNTIF($A$17:$A437,A437)*0.01)","v":4.1500000000000004},{"$error":"#N/A"},{"$error":"#N/A"},{"$error":"#N/A"},{"$error":"#N/A"},{"$error":"#N/A"},{"$error":"#N/A"},{"$error":"#N/A"},{"$error":"#N/A"},{"$error":"#N/A"},{"$error":"#N/A"},{"$error":"#N/A"},{"$error":"#N/A"}]
[{"$f":"VLOOKUP($B438,Data_Table[],18,FALSE)","v":0},"",{"$f":"Table_Data_Table_12[[#This Row],[Pair\nGroup]]+(COUNTIF($A$17:$A438,A438)*0.01)","v":4.16},{"$error":"#N/A"},{"$error":"#N/A"},{"$error":"#N/A"},{"$error":"#N/A"},{"$error":"#N/A"},{"$error":"#N/A"},{"$error":"#N/A"},{"$error":"#N/A"},{"$error":"#N/A"},{"$error":"#N/A"},{"$error":"#N/A"},{"$error":"#N/A"}]
[{"$f":"VLOOKUP($B439,Data_Table[],18,FALSE)","v":0},"",{"$f":"Table_Data_Table_12[[#This Row],[Pair\nGroup]]+(COUNTIF($A$17:$A439,A439)*0.01)","v":4.17},{"$error":"#N/A"},{"$error":"#N/A"},{"$error":"#N/A"},{"$error":"#N/A"},{"$error":"#N/A"},{"$error":"#N/A"},{"$error":"#N/A"},{"$error":"#N/A"},{"$error":"#N/A"},{"$error":"#N/A"},{"$error":"#N/A"},{"$error":"#N/A"}]
[{"$f":"VLOOKUP($B440,Data_Table[],18,FALSE)","v":0},"",{"$f":"Table_Data_Table_12[[#This Row],[Pair\nGroup]]+(COUNTIF($A$17:$A440,A440)*0.01)","v":4.18},{"$error":"#N/A"},{"$error":"#N/A"},{"$error":"#N/A"},{"$error":"#N/A"},{"$error":"#N/A"},{"$error":"#N/A"},{"$error":"#N/A"},{"$error":"#N/A"},{"$error":"#N/A"},{"$error":"#N/A"},{"$error":"#N/A"},{"$error":"#N/A"}]
[{"$f":"VLOOKUP($B441,Data_Table[],18,FALSE)","v":0},"",{"$f":"Table_Data_Table_12[[#This Row],[Pair\nGroup]]+(COUNTIF($A$17:$A441,A441)*0.01)","v":4.1900000000000004},{"$error":"#N/A"},{"$error":"#N/A"},{"$error":"#N/A"},{"$error":"#N/A"},{"$error":"#N/A"},{"$error":"#N/A"},{"$error":"#N/A"},{"$error":"#N/A"},{"$error":"#N/A"},{"$error":"#N/A"},{"$error":"#N/A"},{"$error":"#N/A"}]
[{"$f":"VLOOKUP($B442,Data_Table[],18,FALSE)","v":0},"",{"$f":"Table_Data_Table_12[[#This Row],[Pair\nGroup]]+(COUNTIF($A$17:$A442,A442)*0.01)","v":4.2},{"$error":"#N/A"},{"$error":"#N/A"},{"$error":"#N/A"},{"$error":"#N/A"},{"$error":"#N/A"},{"$error":"#N/A"},{"$error":"#N/A"},{"$error":"#N/A"},{"$error":"#N/A"},{"$error":"#N/A"},{"$error":"#N/A"},{"$error":"#N/A"}]
[{"$f":"VLOOKUP($B443,Data_Table[],18,FALSE)","v":0},"",{"$f":"Table_Data_Table_12[[#This Row],[Pair\nGroup]]+(COUNTIF($A$17:$A443,A443)*0.01)","v":4.21},{"$error":"#N/A"},{"$error":"#N/A"},{"$error":"#N/A"},{"$error":"#N/A"},{"$error":"#N/A"},{"$error":"#N/A"},{"$error":"#N/A"},{"$error":"#N/A"},{"$error":"#N/A"},{"$error":"#N/A"},{"$error":"#N/A"},{"$error":"#N/A"}]
[{"$f":"VLOOKUP($B444,Data_Table[],18,FALSE)","v":0},"",{"$f":"Table_Data_Table_12[[#This Row],[Pair\nGroup]]+(COUNTIF($A$17:$A444,A444)*0.01)","v":4.22},{"$error":"#N/A"},{"$error":"#N/A"},{"$error":"#N/A"},{"$error":"#N/A"},{"$error":"#N/A"},{"$error":"#N/A"},{"$error":"#N/A"},{"$error":"#N/A"},{"$error":"#N/A"},{"$error":"#N/A"},{"$error":"#N/A"},{"$error":"#N/A"}]
[{"$f":"VLOOKUP($B445,Data_Table[],18,FALSE)","v":0},"",{"$f":"Table_Data_Table_12[[#This Row],[Pair\nGroup]]+(COUNTIF($A$17:$A445,A445)*0.01)","v":4.2300000000000004},{"$error":"#N/A"},{"$error":"#N/A"},{"$error":"#N/A"},{"$error":"#N/A"},{"$error":"#N/A"},{"$error":"#N/A"},{"$error":"#N/A"},{"$error":"#N/A"},{"$error":"#N/A"},{"$error":"#N/A"},{"$error":"#N/A"},{"$error":"#N/A"}]
[{"$f":"VLOOKUP($B446,Data_Table[],18,FALSE)","v":0},"",{"$f":"Table_Data_Table_12[[#This Row],[Pair\nGroup]]+(COUNTIF($A$17:$A446,A446)*0.01)","v":4.24},{"$error":"#N/A"},{"$error":"#N/A"},{"$error":"#N/A"},{"$error":"#N/A"},{"$error":"#N/A"},{"$error":"#N/A"},{"$error":"#N/A"},{"$error":"#N/A"},{"$error":"#N/A"},{"$error":"#N/A"},{"$error":"#N/A"},{"$error":"#N/A"}]
[{"$f":"VLOOKUP($B447,Data_Table[],18,FALSE)","v":0},"",{"$f":"Table_Data_Table_12[[#This Row],[Pair\nGroup]]+(COUNTIF($A$17:$A447,A447)*0.01)","v":4.25},{"$error":"#N/A"},{"$error":"#N/A"},{"$error":"#N/A"},{"$error":"#N/A"},{"$error":"#N/A"},{"$error":"#N/A"},{"$error":"#N/A"},{"$error":"#N/A"},{"$error":"#N/A"},{"$error":"#N/A"},{"$error":"#N/A"},{"$error":"#N/A"}]
[{"$f":"VLOOKUP($B448,Data_Table[],18,FALSE)","v":0},"",{"$f":"Table_Data_Table_12[[#This Row],[Pair\nGroup]]+(COUNTIF($A$17:$A448,A448)*0.01)","v":4.26},{"$error":"#N/A"},{"$error":"#N/A"},{"$error":"#N/A"},{"$error":"#N/A"},{"$error":"#N/A"},{"$error":"#N/A"},{"$error":"#N/A"},{"$error":"#N/A"},{"$error":"#N/A"},{"$error":"#N/A"},{"$error":"#N/A"},{"$error":"#N/A"}]
[{"$f":"VLOOKUP($B449,Data_Table[],18,FALSE)","v":0},"",{"$f":"Table_Data_Table_12[[#This Row],[Pair\nGroup]]+(COUNTIF($A$17:$A449,A449)*0.01)","v":4.2700000000000005},{"$error":"#N/A"},{"$error":"#N/A"},{"$error":"#N/A"},{"$error":"#N/A"},{"$error":"#N/A"},{"$error":"#N/A"},{"$error":"#N/A"},{"$error":"#N/A"},{"$error":"#N/A"},{"$error":"#N/A"},{"$error":"#N/A"},{"$error":"#N/A"}]
[{"$f":"VLOOKUP($B450,Data_Table[],18,FALSE)","v":0},"",{"$f":"Table_Data_Table_12[[#This Row],[Pair\nGroup]]+(COUNTIF($A$17:$A450,A450)*0.01)","v":4.28},{"$error":"#N/A"},{"$error":"#N/A"},{"$error":"#N/A"},{"$error":"#N/A"},{"$error":"#N/A"},{"$error":"#N/A"},{"$error":"#N/A"},{"$error":"#N/A"},{"$error":"#N/A"},{"$error":"#N/A"},{"$error":"#N/A"},{"$error":"#N/A"}]
[{"$f":"VLOOKUP($B451,Data_Table[],18,FALSE)","v":0},"",{"$f":"Table_Data_Table_12[[#This Row],[Pair\nGroup]]+(COUNTIF($A$17:$A451,A451)*0.01)","v":4.29},{"$error":"#N/A"},{"$error":"#N/A"},{"$error":"#N/A"},{"$error":"#N/A"},{"$error":"#N/A"},{"$error":"#N/A"},{"$error":"#N/A"},{"$error":"#N/A"},{"$error":"#N/A"},{"$error":"#N/A"},{"$error":"#N/A"},{"$error":"#N/A"}]
[{"$f":"VLOOKUP($B452,Data_Table[],18,FALSE)","v":0},"",{"$f":"Table_Data_Table_12[[#This Row],[Pair\nGroup]]+(COUNTIF($A$17:$A452,A452)*0.01)","v":4.3},{"$error":"#N/A"},{"$error":"#N/A"},{"$error":"#N/A"},{"$error":"#N/A"},{"$error":"#N/A"},{"$error":"#N/A"},{"$error":"#N/A"},{"$error":"#N/A"},{"$error":"#N/A"},{"$error":"#N/A"},{"$error":"#N/A"},{"$error":"#N/A"}]
[{"$f":"VLOOKUP($B453,Data_Table[],18,FALSE)","v":0},"",{"$f":"Table_Data_Table_12[[#This Row],[Pair\nGroup]]+(COUNTIF($A$17:$A453,A453)*0.01)","v":4.3100000000000005},{"$error":"#N/A"},{"$error":"#N/A"},{"$error":"#N/A"},{"$error":"#N/A"},{"$error":"#N/A"},{"$error":"#N/A"},{"$error":"#N/A"},{"$error":"#N/A"},{"$error":"#N/A"},{"$error":"#N/A"},{"$error":"#N/A"},{"$error":"#N/A"}]
[{"$f":"VLOOKUP($B454,Data_Table[],18,FALSE)","v":0},"",{"$f":"Table_Data_Table_12[[#This Row],[Pair\nGroup]]+(COUNTIF($A$17:$A454,A454)*0.01)","v":4.32},{"$error":"#N/A"},{"$error":"#N/A"},{"$error":"#N/A"},{"$error":"#N/A"},{"$error":"#N/A"},{"$error":"#N/A"},{"$error":"#N/A"},{"$error":"#N/A"},{"$error":"#N/A"},{"$error":"#N/A"},{"$error":"#N/A"},{"$error":"#N/A"}]
[{"$f":"VLOOKUP($B455,Data_Table[],18,FALSE)","v":0},"",{"$f":"Table_Data_Table_12[[#This Row],[Pair\nGroup]]+(COUNTIF($A$17:$A455,A455)*0.01)","v":4.33},{"$error":"#N/A"},{"$error":"#N/A"},{"$error":"#N/A"},{"$error":"#N/A"},{"$error":"#N/A"},{"$error":"#N/A"},{"$error":"#N/A"},{"$error":"#N/A"},{"$error":"#N/A"},{"$error":"#N/A"},{"$error":"#N/A"},{"$error":"#N/A"}]
[{"$f":"VLOOKUP($B456,Data_Table[],18,FALSE)","v":0},"",{"$f":"Table_Data_Table_12[[#This Row],[Pair\nGroup]]+(COUNTIF($A$17:$A456,A456)*0.01)","v":4.34},{"$error":"#N/A"},{"$error":"#N/A"},{"$error":"#N/A"},{"$error":"#N/A"},{"$error":"#N/A"},{"$error":"#N/A"},{"$error":"#N/A"},{"$error":"#N/A"},{"$error":"#N/A"},{"$error":"#N/A"},{"$error":"#N/A"},{"$error":"#N/A"}]
[{"$f":"VLOOKUP($B457,Data_Table[],18,FALSE)","v":0},"",{"$f":"Table_Data_Table_12[[#This Row],[Pair\nGroup]]+(COUNTIF($A$17:$A457,A457)*0.01)","v":4.3500000000000005},{"$error":"#N/A"},{"$error":"#N/A"},{"$error":"#N/A"},{"$error":"#N/A"},{"$error":"#N/A"},{"$error":"#N/A"},{"$error":"#N/A"},{"$error":"#N/A"},{"$error":"#N/A"},{"$error":"#N/A"},{"$error":"#N/A"},{"$error":"#N/A"}]
[{"$f":"VLOOKUP($B458,Data_Table[],18,FALSE)","v":0},"",{"$f":"Table_Data_Table_12[[#This Row],[Pair\nGroup]]+(COUNTIF($A$17:$A458,A458)*0.01)","v":4.3600000000000003},{"$error":"#N/A"},{"$error":"#N/A"},{"$error":"#N/A"},{"$error":"#N/A"},{"$error":"#N/A"},{"$error":"#N/A"},{"$error":"#N/A"},{"$error":"#N/A"},{"$error":"#N/A"},{"$error":"#N/A"},{"$error":"#N/A"},{"$error":"#N/A"}]
[{"$f":"VLOOKUP($B459,Data_Table[],18,FALSE)","v":0},"",{"$f":"Table_Data_Table_12[[#This Row],[Pair\nGroup]]+(COUNTIF($A$17:$A459,A459)*0.01)","v":4.37},{"$error":"#N/A"},{"$error":"#N/A"},{"$error":"#N/A"},{"$error":"#N/A"},{"$error":"#N/A"},{"$error":"#N/A"},{"$error":"#N/A"},{"$error":"#N/A"},{"$error":"#N/A"},{"$error":"#N/A"},{"$error":"#N/A"},{"$error":"#N/A"}]
[{"$f":"VLOOKUP($B460,Data_Table[],18,FALSE)","v":0},"",{"$f":"Table_Data_Table_12[[#This Row],[Pair\nGroup]]+(COUNTIF($A$17:$A460,A460)*0.01)","v":4.38},{"$error":"#N/A"},{"$error":"#N/A"},{"$error":"#N/A"},{"$error":"#N/A"},{"$error":"#N/A"},{"$error":"#N/A"},{"$error":"#N/A"},{"$error":"#N/A"},{"$error":"#N/A"},{"$error":"#N/A"},{"$error":"#N/A"},{"$error":"#N/A"}]
[{"$f":"VLOOKUP($B461,Data_Table[],18,FALSE)","v":0},"",{"$f":"Table_Data_Table_12[[#This Row],[Pair\nGroup]]+(COUNTIF($A$17:$A461,A461)*0.01)","v":4.3899999999999997},{"$error":"#N/A"},{"$error":"#N/A"},{"$error":"#N/A"},{"$error":"#N/A"},{"$error":"#N/A"},{"$error":"#N/A"},{"$error":"#N/A"},{"$error":"#N/A"},{"$error":"#N/A"},{"$error":"#N/A"},{"$error":"#N/A"},{"$error":"#N/A"}]
[{"$f":"VLOOKUP($B462,Data_Table[],18,FALSE)","v":0},"",{"$f":"Table_Data_Table_12[[#This Row],[Pair\nGroup]]+(COUNTIF($A$17:$A462,A462)*0.01)","v":4.4000000000000004},{"$error":"#N/A"},{"$error":"#N/A"},{"$error":"#N/A"},{"$error":"#N/A"},{"$error":"#N/A"},{"$error":"#N/A"},{"$error":"#N/A"},{"$error":"#N/A"},{"$error":"#N/A"},{"$error":"#N/A"},{"$error":"#N/A"},{"$error":"#N/A"}]
[{"$f":"VLOOKUP($B463,Data_Table[],18,FALSE)","v":0},"",{"$f":"Table_Data_Table_12[[#This Row],[Pair\nGroup]]+(COUNTIF($A$17:$A463,A463)*0.01)","v":4.41},{"$error":"#N/A"},{"$error":"#N/A"},{"$error":"#N/A"},{"$error":"#N/A"},{"$error":"#N/A"},{"$error":"#N/A"},{"$error":"#N/A"},{"$error":"#N/A"},{"$error":"#N/A"},{"$error":"#N/A"},{"$error":"#N/A"},{"$error":"#N/A"}]
[{"$f":"VLOOKUP($B464,Data_Table[],18,FALSE)","v":0},"",{"$f":"Table_Data_Table_12[[#This Row],[Pair\nGroup]]+(COUNTIF($A$17:$A464,A464)*0.01)","v":4.42},{"$error":"#N/A"},{"$error":"#N/A"},{"$error":"#N/A"},{"$error":"#N/A"},{"$error":"#N/A"},{"$error":"#N/A"},{"$error":"#N/A"},{"$error":"#N/A"},{"$error":"#N/A"},{"$error":"#N/A"},{"$error":"#N/A"},{"$error":"#N/A"}]
[{"$f":"VLOOKUP($B465,Data_Table[],18,FALSE)","v":0},"",{"$f":"Table_Data_Table_12[[#This Row],[Pair\nGroup]]+(COUNTIF($A$17:$A465,A465)*0.01)","v":4.43},{"$f":"VLOOKUP($B465,DataTable,2,FALSE)","v":{"$error":"#N/A"}},{"$f":"VLOOKUP($B465,DataTable,3,FALSE)","v":{"$error":"#N/A"}},{"$f":"VLOOKUP($B465,DataTable,4,FALSE)","v":{"$error":"#N/A"}},{"$f":"VLOOKUP($B465,DataTable,5,FALSE)","v":{"$error":"#N/A"}},{"$f":"VLOOKUP($B465,DataTable,6,FALSE)","v":{"$error":"#N/A"}},{"$f":"ROUND((VLOOKUP($B465,DataTable,10,FALSE)-VLOOKUP($B465,DataTable,12,FALSE))/43560,3)","v":{"$error":"#N/A"}},{"$f":"VLOOKUP($B465,DataTable,11,FALSE)","v":{"$error":"#N/A"}},{"$f":"VLOOKUP($B465,DataTable,13,FALSE)","v":{"$error":"#N/A"}},{"$f":"VLOOKUP($B465,Analysis_Table,8,FALSE)","v":{"$error":"#N/A"}},{"$f":"VLOOKUP($B465,Analysis_Table,9,FALSE)","v":{"$error":"#N/A"}},{"$f":"L465/I465","v":{"$error":"#N/A"}},{"$f":"ROUND(L465/(VLOOKUP($B465,DataTable,10,FALSE)-VLOOKUP($B465,DataTable,12,FALSE)),2)","v":{"$error":"#N/A"}}]
[{"$f":"VLOOKUP($B466,Data_Table[],18,FALSE)","v":0},"",{"$f":"Table_Data_Table_12[[#This Row],[Pair\nGroup]]+(COUNTIF($A$17:$A466,A466)*0.01)","v":4.4400000000000004},{"$error":"#N/A"},{"$error":"#N/A"},{"$error":"#N/A"},{"$error":"#N/A"},{"$error":"#N/A"},{"$error":"#N/A"},{"$error":"#N/A"},{"$error":"#N/A"},{"$error":"#N/A"},{"$error":"#N/A"},{"$error":"#N/A"},{"$error":"#N/A"}]
[{"$f":"VLOOKUP($B467,Data_Table[],18,FALSE)","v":0},"",{"$f":"Table_Data_Table_12[[#This Row],[Pair\nGroup]]+(COUNTIF($A$17:$A467,A467)*0.01)","v":4.45},{"$error":"#N/A"},{"$error":"#N/A"},{"$error":"#N/A"},{"$error":"#N/A"},{"$error":"#N/A"},{"$error":"#N/A"},{"$error":"#N/A"},{"$error":"#N/A"},{"$error":"#N/A"},{"$error":"#N/A"},{"$error":"#N/A"},{"$error":"#N/A"}]
[{"$f":"VLOOKUP($B468,Data_Table[],18,FALSE)","v":0},"",{"$f":"Table_Data_Table_12[[#This Row],[Pair\nGroup]]+(COUNTIF($A$17:$A468,A468)*0.01)","v":4.46},{"$error":"#N/A"},{"$error":"#N/A"},{"$error":"#N/A"},{"$error":"#N/A"},{"$error":"#N/A"},{"$error":"#N/A"},{"$error":"#N/A"},{"$error":"#N/A"},{"$error":"#N/A"},{"$error":"#N/A"},{"$error":"#N/A"},{"$error":"#N/A"}]
[{"$f":"VLOOKUP($B469,Data_Table[],18,FALSE)","v":0},"",{"$f":"Table_Data_Table_12[[#This Row],[Pair\nGroup]]+(COUNTIF($A$17:$A469,A469)*0.01)","v":4.47},{"$error":"#N/A"},{"$error":"#N/A"},{"$error":"#N/A"},{"$error":"#N/A"},{"$error":"#N/A"},{"$error":"#N/A"},{"$error":"#N/A"},{"$error":"#N/A"},{"$error":"#N/A"},{"$error":"#N/A"},{"$error":"#N/A"},{"$error":"#N/A"}]
[{"$f":"VLOOKUP($B470,Data_Table[],18,FALSE)","v":0},"",{"$f":"Table_Data_Table_12[[#This Row],[Pair\nGroup]]+(COUNTIF($A$17:$A470,A470)*0.01)","v":4.4800000000000004},{"$error":"#N/A"},{"$error":"#N/A"},{"$error":"#N/A"},{"$error":"#N/A"},{"$error":"#N/A"},{"$error":"#N/A"},{"$error":"#N/A"},{"$error":"#N/A"},{"$error":"#N/A"},{"$error":"#N/A"},{"$error":"#N/A"},{"$error":"#N/A"}]
[{"$f":"VLOOKUP($B471,Data_Table[],18,FALSE)","v":0},"",{"$f":"Table_Data_Table_12[[#This Row],[Pair\nGroup]]+(COUNTIF($A$17:$A471,A471)*0.01)","v":4.49},{"$error":"#N/A"},{"$error":"#N/A"},{"$error":"#N/A"},{"$error":"#N/A"},{"$error":"#N/A"},{"$error":"#N/A"},{"$error":"#N/A"},{"$error":"#N/A"},{"$error":"#N/A"},{"$error":"#N/A"},{"$error":"#N/A"},{"$error":"#N/A"}]
[{"$f":"VLOOKUP($B472,Data_Table[],18,FALSE)","v":0},"",{"$f":"Table_Data_Table_12[[#This Row],[Pair\nGroup]]+(COUNTIF($A$17:$A472,A472)*0.01)","v":4.5},{"$error":"#N/A"},{"$error":"#N/A"},{"$error":"#N/A"},{"$error":"#N/A"},{"$error":"#N/A"},{"$error":"#N/A"},{"$error":"#N/A"},{"$error":"#N/A"},{"$error":"#N/A"},{"$error":"#N/A"},{"$error":"#N/A"},{"$error":"#N/A"}]
[{"$f":"VLOOKUP($B473,Data_Table[],18,FALSE)","v":0},"",{"$f":"Table_Data_Table_12[[#This Row],[Pair\nGroup]]+(COUNTIF($A$17:$A473,A473)*0.01)","v":4.51},{"$error":"#N/A"},{"$error":"#N/A"},{"$error":"#N/A"},{"$error":"#N/A"},{"$error":"#N/A"},{"$error":"#N/A"},{"$error":"#N/A"},{"$error":"#N/A"},{"$error":"#N/A"},{"$error":"#N/A"},{"$error":"#N/A"},{"$error":"#N/A"}]
[{"$f":"VLOOKUP($B474,Data_Table[],18,FALSE)","v":0},"",{"$f":"Table_Data_Table_12[[#This Row],[Pair\nGroup]]+(COUNTIF($A$17:$A474,A474)*0.01)","v":4.5200000000000005},{"$error":"#N/A"},{"$error":"#N/A"},{"$error":"#N/A"},{"$error":"#N/A"},{"$error":"#N/A"},{"$error":"#N/A"},{"$error":"#N/A"},{"$error":"#N/A"},{"$error":"#N/A"},{"$error":"#N/A"},{"$error":"#N/A"},{"$error":"#N/A"}]
[{"$f":"VLOOKUP($B475,Data_Table[],18,FALSE)","v":0},"",{"$f":"Table_Data_Table_12[[#This Row],[Pair\nGroup]]+(COUNTIF($A$17:$A475,A475)*0.01)","v":4.53},{"$error":"#N/A"},{"$error":"#N/A"},{"$error":"#N/A"},{"$error":"#N/A"},{"$error":"#N/A"},{"$error":"#N/A"},{"$error":"#N/A"},{"$error":"#N/A"},{"$error":"#N/A"},{"$error":"#N/A"},{"$error":"#N/A"},{"$error":"#N/A"}]
[{"$f":"VLOOKUP($B476,Data_Table[],18,FALSE)","v":0},"",{"$f":"Table_Data_Table_12[[#This Row],[Pair\nGroup]]+(COUNTIF($A$17:$A476,A476)*0.01)","v":4.54},{"$error":"#N/A"},{"$error":"#N/A"},{"$error":"#N/A"},{"$error":"#N/A"},{"$error":"#N/A"},{"$error":"#N/A"},{"$error":"#N/A"},{"$error":"#N/A"},{"$error":"#N/A"},{"$error":"#N/A"},{"$error":"#N/A"},{"$error":"#N/A"}]
[{"$f":"VLOOKUP($B477,Data_Table[],18,FALSE)","v":0},"",{"$f":"Table_Data_Table_12[[#This Row],[Pair\nGroup]]+(COUNTIF($A$17:$A477,A477)*0.01)","v":4.55},{"$error":"#N/A"},{"$error":"#N/A"},{"$error":"#N/A"},{"$error":"#N/A"},{"$error":"#N/A"},{"$error":"#N/A"},{"$error":"#N/A"},{"$error":"#N/A"},{"$error":"#N/A"},{"$error":"#N/A"},{"$error":"#N/A"},{"$error":"#N/A"}]
[{"$f":"VLOOKUP($B478,Data_Table[],18,FALSE)","v":0},"",{"$f":"Table_Data_Table_12[[#This Row],[Pair\nGroup]]+(COUNTIF($A$17:$A478,A478)*0.01)","v":4.5600000000000005},{"$error":"#N/A"},{"$error":"#N/A"},{"$error":"#N/A"},{"$error":"#N/A"},{"$error":"#N/A"},{"$error":"#N/A"},{"$error":"#N/A"},{"$error":"#N/A"},{"$error":"#N/A"},{"$error":"#N/A"},{"$error":"#N/A"},{"$error":"#N/A"}]
[{"$f":"VLOOKUP($B479,Data_Table[],18,FALSE)","v":0},"",{"$f":"Table_Data_Table_12[[#This Row],[Pair\nGroup]]+(COUNTIF($A$17:$A479,A479)*0.01)","v":4.57},{"$error":"#N/A"},{"$error":"#N/A"},{"$error":"#N/A"},{"$error":"#N/A"},{"$error":"#N/A"},{"$error":"#N/A"},{"$error":"#N/A"},{"$error":"#N/A"},{"$error":"#N/A"},{"$error":"#N/A"},{"$error":"#N/A"},{"$error":"#N/A"}]
[{"$f":"VLOOKUP($B480,Data_Table[],18,FALSE)","v":0},"",{"$f":"Table_Data_Table_12[[#This Row],[Pair\nGroup]]+(COUNTIF($A$17:$A480,A480)*0.01)","v":4.58},{"$error":"#N/A"},{"$error":"#N/A"},{"$error":"#N/A"},{"$error":"#N/A"},{"$error":"#N/A"},{"$error":"#N/A"},{"$error":"#N/A"},{"$error":"#N/A"},{"$error":"#N/A"},{"$error":"#N/A"},{"$error":"#N/A"},{"$error":"#N/A"}]
[{"$f":"VLOOKUP($B481,Data_Table[],18,FALSE)","v":0},"",{"$f":"Table_Data_Table_12[[#This Row],[Pair\nGroup]]+(COUNTIF($A$17:$A481,A481)*0.01)","v":4.59},{"$error":"#N/A"},{"$error":"#N/A"},{"$error":"#N/A"},{"$error":"#N/A"},{"$error":"#N/A"},{"$error":"#N/A"},{"$error":"#N/A"},{"$error":"#N/A"},{"$error":"#N/A"},{"$error":"#N/A"},{"$error":"#N/A"},{"$error":"#N/A"}]
[{"$f":"VLOOKUP($B482,Data_Table[],18,FALSE)","v":0},"",{"$f":"Table_Data_Table_12[[#This Row],[Pair\nGroup]]+(COUNTIF($A$17:$A482,A482)*0.01)","v":4.6000000000000005},{"$error":"#N/A"},{"$error":"#N/A"},{"$error":"#N/A"},{"$error":"#N/A"},{"$error":"#N/A"},{"$error":"#N/A"},{"$error":"#N/A"},{"$error":"#N/A"},{"$error":"#N/A"},{"$error":"#N/A"},{"$error":"#N/A"},{"$error":"#N/A"}]
[{"$f":"VLOOKUP($B483,Data_Table[],18,FALSE)","v":0},"",{"$f":"Table_Data_Table_12[[#This Row],[Pair\nGroup]]+(COUNTIF($A$17:$A483,A483)*0.01)","v":4.6100000000000003},{"$error":"#N/A"},{"$error":"#N/A"},{"$error":"#N/A"},{"$error":"#N/A"},{"$error":"#N/A"},{"$error":"#N/A"},{"$error":"#N/A"},{"$error":"#N/A"},{"$error":"#N/A"},{"$error":"#N/A"},{"$error":"#N/A"},{"$error":"#N/A"}]
[{"$f":"VLOOKUP($B484,Data_Table[],18,FALSE)","v":0},"",{"$f":"Table_Data_Table_12[[#This Row],[Pair\nGroup]]+(COUNTIF($A$17:$A484,A484)*0.01)","v":4.62},{"$error":"#N/A"},{"$error":"#N/A"},{"$error":"#N/A"},{"$error":"#N/A"},{"$error":"#N/A"},{"$error":"#N/A"},{"$error":"#N/A"},{"$error":"#N/A"},{"$error":"#N/A"},{"$error":"#N/A"},{"$error":"#N/A"},{"$error":"#N/A"}]
[{"$f":"VLOOKUP($B485,Data_Table[],18,FALSE)","v":0},"",{"$f":"Table_Data_Table_12[[#This Row],[Pair\nGroup]]+(COUNTIF($A$17:$A485,A485)*0.01)","v":4.63},{"$error":"#N/A"},{"$error":"#N/A"},{"$error":"#N/A"},{"$error":"#N/A"},{"$error":"#N/A"},{"$error":"#N/A"},{"$error":"#N/A"},{"$error":"#N/A"},{"$error":"#N/A"},{"$error":"#N/A"},{"$error":"#N/A"},{"$error":"#N/A"}]
[{"$f":"VLOOKUP($B486,Data_Table[],18,FALSE)","v":0},"",{"$f":"Table_Data_Table_12[[#This Row],[Pair\nGroup]]+(COUNTIF($A$17:$A486,A486)*0.01)","v":4.6399999999999997},{"$error":"#N/A"},{"$error":"#N/A"},{"$error":"#N/A"},{"$error":"#N/A"},{"$error":"#N/A"},{"$error":"#N/A"},{"$error":"#N/A"},{"$error":"#N/A"},{"$error":"#N/A"},{"$error":"#N/A"},{"$error":"#N/A"},{"$error":"#N/A"}]
[{"$f":"VLOOKUP($B487,Data_Table[],18,FALSE)","v":0},"",{"$f":"Table_Data_Table_12[[#This Row],[Pair\nGroup]]+(COUNTIF($A$17:$A487,A487)*0.01)","v":4.6500000000000004},{"$error":"#N/A"},{"$error":"#N/A"},{"$error":"#N/A"},{"$error":"#N/A"},{"$error":"#N/A"},{"$error":"#N/A"},{"$error":"#N/A"},{"$error":"#N/A"},{"$error":"#N/A"},{"$error":"#N/A"},{"$error":"#N/A"},{"$error":"#N/A"}]
[{"$f":"VLOOKUP($B488,Data_Table[],18,FALSE)","v":0},"",{"$f":"Table_Data_Table_12[[#This Row],[Pair\nGroup]]+(COUNTIF($A$17:$A488,A488)*0.01)","v":4.66},{"$error":"#N/A"},{"$error":"#N/A"},{"$error":"#N/A"},{"$error":"#N/A"},{"$error":"#N/A"},{"$error":"#N/A"},{"$error":"#N/A"},{"$error":"#N/A"},{"$error":"#N/A"},{"$error":"#N/A"},{"$error":"#N/A"},{"$error":"#N/A"}]
[{"$f":"VLOOKUP($B489,Data_Table[],18,FALSE)","v":0},"",{"$f":"Table_Data_Table_12[[#This Row],[Pair\nGroup]]+(COUNTIF($A$17:$A489,A489)*0.01)","v":4.67},{"$error":"#N/A"},{"$error":"#N/A"},{"$error":"#N/A"},{"$error":"#N/A"},{"$error":"#N/A"},{"$error":"#N/A"},{"$error":"#N/A"},{"$error":"#N/A"},{"$error":"#N/A"},{"$error":"#N/A"},{"$error":"#N/A"},{"$error":"#N/A"}]
[{"$f":"VLOOKUP($B490,Data_Table[],18,FALSE)","v":0},"",{"$f":"Table_Data_Table_12[[#This Row],[Pair\nGroup]]+(COUNTIF($A$17:$A490,A490)*0.01)","v":4.68},{"$error":"#N/A"},{"$error":"#N/A"},{"$error":"#N/A"},{"$error":"#N/A"},{"$error":"#N/A"},{"$error":"#N/A"},{"$error":"#N/A"},{"$error":"#N/A"},{"$error":"#N/A"},{"$error":"#N/A"},{"$error":"#N/A"},{"$error":"#N/A"}]
[{"$f":"VLOOKUP($B491,Data_Table[],18,FALSE)","v":0},"",{"$f":"Table_Data_Table_12[[#This Row],[Pair\nGroup]]+(COUNTIF($A$17:$A491,A491)*0.01)","v":4.6900000000000004},{"$error":"#N/A"},{"$error":"#N/A"},{"$error":"#N/A"},{"$error":"#N/A"},{"$error":"#N/A"},{"$error":"#N/A"},{"$error":"#N/A"},{"$error":"#N/A"},{"$error":"#N/A"},{"$error":"#N/A"},{"$error":"#N/A"},{"$error":"#N/A"}]
[{"$f":"VLOOKUP($B492,Data_Table[],18,FALSE)","v":0},"",{"$f":"Table_Data_Table_12[[#This Row],[Pair\nGroup]]+(COUNTIF($A$17:$A492,A492)*0.01)","v":4.7},{"$error":"#N/A"},{"$error":"#N/A"},{"$error":"#N/A"},{"$error":"#N/A"},{"$error":"#N/A"},{"$error":"#N/A"},{"$error":"#N/A"},{"$error":"#N/A"},{"$error":"#N/A"},{"$error":"#N/A"},{"$error":"#N/A"},{"$error":"#N/A"}]
[{"$f":"VLOOKUP($B493,Data_Table[],18,FALSE)","v":0},"",{"$f":"Table_Data_Table_12[[#This Row],[Pair\nGroup]]+(COUNTIF($A$17:$A493,A493)*0.01)","v":4.71},{"$error":"#N/A"},{"$error":"#N/A"},{"$error":"#N/A"},{"$error":"#N/A"},{"$error":"#N/A"},{"$error":"#N/A"},{"$error":"#N/A"},{"$error":"#N/A"},{"$error":"#N/A"},{"$error":"#N/A"},{"$error":"#N/A"},{"$error":"#N/A"}]
[{"$f":"VLOOKUP($B494,Data_Table[],18,FALSE)","v":0},"",{"$f":"Table_Data_Table_12[[#This Row],[Pair\nGroup]]+(COUNTIF($A$17:$A494,A494)*0.01)","v":4.72},{"$error":"#N/A"},{"$error":"#N/A"},{"$error":"#N/A"},{"$error":"#N/A"},{"$error":"#N/A"},{"$error":"#N/A"},{"$error":"#N/A"},{"$error":"#N/A"},{"$error":"#N/A"},{"$error":"#N/A"},{"$error":"#N/A"},{"$error":"#N/A"}]
[{"$f":"VLOOKUP($B495,Data_Table[],18,FALSE)","v":0},"",{"$f":"Table_Data_Table_12[[#This Row],[Pair\nGroup]]+(COUNTIF($A$17:$A495,A495)*0.01)","v":4.7300000000000004},{"$error":"#N/A"},{"$error":"#N/A"},{"$error":"#N/A"},{"$error":"#N/A"},{"$error":"#N/A"},{"$error":"#N/A"},{"$error":"#N/A"},{"$error":"#N/A"},{"$error":"#N/A"},{"$error":"#N/A"},{"$error":"#N/A"},{"$error":"#N/A"}]
[{"$f":"VLOOKUP($B496,Data_Table[],18,FALSE)","v":0},"",{"$f":"Table_Data_Table_12[[#This Row],[Pair\nGroup]]+(COUNTIF($A$17:$A496,A496)*0.01)","v":4.74},{"$error":"#N/A"},{"$error":"#N/A"},{"$error":"#N/A"},{"$error":"#N/A"},{"$error":"#N/A"},{"$error":"#N/A"},{"$error":"#N/A"},{"$error":"#N/A"},{"$error":"#N/A"},{"$error":"#N/A"},{"$error":"#N/A"},{"$error":"#N/A"}]
[{"$f":"VLOOKUP($B497,Data_Table[],18,FALSE)","v":0},"",{"$f":"Table_Data_Table_12[[#This Row],[Pair\nGroup]]+(COUNTIF($A$17:$A497,A497)*0.01)","v":4.75},{"$error":"#N/A"},{"$error":"#N/A"},{"$error":"#N/A"},{"$error":"#N/A"},{"$error":"#N/A"},{"$error":"#N/A"},{"$error":"#N/A"},{"$error":"#N/A"},{"$error":"#N/A"},{"$error":"#N/A"},{"$error":"#N/A"},{"$error":"#N/A"}]
[{"$f":"VLOOKUP($B498,Data_Table[],18,FALSE)","v":0},"",{"$f":"Table_Data_Table_12[[#This Row],[Pair\nGroup]]+(COUNTIF($A$17:$A498,A498)*0.01)","v":4.76},{"$error":"#N/A"},{"$error":"#N/A"},{"$error":"#N/A"},{"$error":"#N/A"},{"$error":"#N/A"},{"$error":"#N/A"},{"$error":"#N/A"},{"$error":"#N/A"},{"$error":"#N/A"},{"$error":"#N/A"},{"$error":"#N/A"},{"$error":"#N/A"}]
[{"$f":"VLOOKUP($B499,Data_Table[],18,FALSE)","v":0},"",{"$f":"Table_Data_Table_12[[#This Row],[Pair\nGroup]]+(COUNTIF($A$17:$A499,A499)*0.01)","v":4.7700000000000005},{"$error":"#N/A"},{"$error":"#N/A"},{"$error":"#N/A"},{"$error":"#N/A"},{"$error":"#N/A"},{"$error":"#N/A"},{"$error":"#N/A"},{"$error":"#N/A"},{"$error":"#N/A"},{"$error":"#N/A"},{"$error":"#N/A"},{"$error":"#N/A"}]
[{"$f":"VLOOKUP($B500,Data_Table[],18,FALSE)","v":0},"",{"$f":"Table_Data_Table_12[[#This Row],[Pair\nGroup]]+(COUNTIF($A$17:$A500,A500)*0.01)","v":4.78},{"$error":"#N/A"},{"$error":"#N/A"},{"$error":"#N/A"},{"$error":"#N/A"},{"$error":"#N/A"},{"$error":"#N/A"},{"$error":"#N/A"},{"$error":"#N/A"},{"$error":"#N/A"},{"$error":"#N/A"},{"$error":"#N/A"},{"$error":"#N/A"}]
[{"$f":"VLOOKUP($B501,Data_Table[],18,FALSE)","v":0},"",{"$f":"Table_Data_Table_12[[#This Row],[Pair\nGroup]]+(COUNTIF($A$17:$A501,A501)*0.01)","v":4.79},{"$error":"#N/A"},{"$error":"#N/A"},{"$error":"#N/A"},{"$error":"#N/A"},{"$error":"#N/A"},{"$error":"#N/A"},{"$error":"#N/A"},{"$error":"#N/A"},{"$error":"#N/A"},{"$error":"#N/A"},{"$error":"#N/A"},{"$error":"#N/A"}]
[{"$f":"VLOOKUP($B502,Data_Table[],18,FALSE)","v":0},"",{"$f":"Table_Data_Table_12[[#This Row],[Pair\nGroup]]+(COUNTIF($A$17:$A502,A502)*0.01)","v":4.8},{"$error":"#N/A"},{"$error":"#N/A"},{"$error":"#N/A"},{"$error":"#N/A"},{"$error":"#N/A"},{"$error":"#N/A"},{"$error":"#N/A"},{"$error":"#N/A"},{"$error":"#N/A"},{"$error":"#N/A"},{"$error":"#N/A"},{"$error":"#N/A"}]
[{"$f":"VLOOKUP($B503,Data_Table[],18,FALSE)","v":0},"",{"$f":"Table_Data_Table_12[[#This Row],[Pair\nGroup]]+(COUNTIF($A$17:$A503,A503)*0.01)","v":4.8100000000000005},{"$error":"#N/A"},{"$error":"#N/A"},{"$error":"#N/A"},{"$error":"#N/A"},{"$error":"#N/A"},{"$error":"#N/A"},{"$error":"#N/A"},{"$error":"#N/A"},{"$error":"#N/A"},{"$error":"#N/A"},{"$error":"#N/A"},{"$error":"#N/A"}]
[{"$f":"VLOOKUP($B504,Data_Table[],18,FALSE)","v":0},"",{"$f":"Table_Data_Table_12[[#This Row],[Pair\nGroup]]+(COUNTIF($A$17:$A504,A504)*0.01)","v":4.82},{"$error":"#N/A"},{"$error":"#N/A"},{"$error":"#N/A"},{"$error":"#N/A"},{"$error":"#N/A"},{"$error":"#N/A"},{"$error":"#N/A"},{"$error":"#N/A"},{"$error":"#N/A"},{"$error":"#N/A"},{"$error":"#N/A"},{"$error":"#N/A"}]
[{"$f":"VLOOKUP($B505,Data_Table[],18,FALSE)","v":0},"",{"$f":"Table_Data_Table_12[[#This Row],[Pair\nGroup]]+(COUNTIF($A$17:$A505,A505)*0.01)","v":4.83},{"$error":"#N/A"},{"$error":"#N/A"},{"$error":"#N/A"},{"$error":"#N/A"},{"$error":"#N/A"},{"$error":"#N/A"},{"$error":"#N/A"},{"$error":"#N/A"},{"$error":"#N/A"},{"$error":"#N/A"},{"$error":"#N/A"},{"$error":"#N/A"}]
[{"$f":"VLOOKUP($B506,Data_Table[],18,FALSE)","v":0},"",{"$f":"Table_Data_Table_12[[#This Row],[Pair\nGroup]]+(COUNTIF($A$17:$A506,A506)*0.01)","v":4.84},{"$error":"#N/A"},{"$error":"#N/A"},{"$error":"#N/A"},{"$error":"#N/A"},{"$error":"#N/A"},{"$error":"#N/A"},{"$error":"#N/A"},{"$error":"#N/A"},{"$error":"#N/A"},{"$error":"#N/A"},{"$error":"#N/A"},{"$error":"#N/A"}]
[{"$f":"VLOOKUP($B507,Data_Table[],18,FALSE)","v":0},"",{"$f":"Table_Data_Table_12[[#This Row],[Pair\nGroup]]+(COUNTIF($A$17:$A507,A507)*0.01)","v":4.8500000000000005},{"$error":"#N/A"},{"$error":"#N/A"},{"$error":"#N/A"},{"$error":"#N/A"},{"$error":"#N/A"},{"$error":"#N/A"},{"$error":"#N/A"},{"$error":"#N/A"},{"$error":"#N/A"},{"$error":"#N/A"},{"$error":"#N/A"},{"$error":"#N/A"}]
[{"$f":"VLOOKUP($B508,Data_Table[],18,FALSE)","v":0},"",{"$f":"Table_Data_Table_12[[#This Row],[Pair\nGroup]]+(COUNTIF($A$17:$A508,A508)*0.01)","v":4.8600000000000003},{"$error":"#N/A"},{"$error":"#N/A"},{"$error":"#N/A"},{"$error":"#N/A"},{"$error":"#N/A"},{"$error":"#N/A"},{"$error":"#N/A"},{"$error":"#N/A"},{"$error":"#N/A"},{"$error":"#N/A"},{"$error":"#N/A"},{"$error":"#N/A"}]
[{"$f":"VLOOKUP($B509,Data_Table[],18,FALSE)","v":0},"",{"$f":"Table_Data_Table_12[[#This Row],[Pair\nGroup]]+(COUNTIF($A$17:$A509,A509)*0.01)","v":4.87},{"$error":"#N/A"},{"$error":"#N/A"},{"$error":"#N/A"},{"$error":"#N/A"},{"$error":"#N/A"},{"$error":"#N/A"},{"$error":"#N/A"},{"$error":"#N/A"},{"$error":"#N/A"},{"$error":"#N/A"},{"$error":"#N/A"},{"$error":"#N/A"}]
[{"$f":"VLOOKUP($B510,Data_Table[],18,FALSE)","v":0},"",{"$f":"Table_Data_Table_12[[#This Row],[Pair\nGroup]]+(COUNTIF($A$17:$A510,A510)*0.01)","v":4.88},{"$error":"#N/A"},{"$error":"#N/A"},{"$error":"#N/A"},{"$error":"#N/A"},{"$error":"#N/A"},{"$error":"#N/A"},{"$error":"#N/A"},{"$error":"#N/A"},{"$error":"#N/A"},{"$error":"#N/A"},{"$error":"#N/A"},{"$error":"#N/A"}]
[{"$f":"VLOOKUP($B511,Data_Table[],18,FALSE)","v":0},"",{"$f":"Table_Data_Table_12[[#This Row],[Pair\nGroup]]+(COUNTIF($A$17:$A511,A511)*0.01)","v":4.8899999999999997},{"$error":"#N/A"},{"$error":"#N/A"},{"$error":"#N/A"},{"$error":"#N/A"},{"$error":"#N/A"},{"$error":"#N/A"},{"$error":"#N/A"},{"$error":"#N/A"},{"$error":"#N/A"},{"$error":"#N/A"},{"$error":"#N/A"},{"$error":"#N/A"}]
[{"$f":"VLOOKUP($B512,Data_Table[],18,FALSE)","v":0},"",{"$f":"Table_Data_Table_12[[#This Row],[Pair\nGroup]]+(COUNTIF($A$17:$A512,A512)*0.01)","v":4.9000000000000004},{"$error":"#N/A"},{"$error":"#N/A"},{"$error":"#N/A"},{"$error":"#N/A"},{"$error":"#N/A"},{"$error":"#N/A"},{"$error":"#N/A"},{"$error":"#N/A"},{"$error":"#N/A"},{"$error":"#N/A"},{"$error":"#N/A"},{"$error":"#N/A"}]
[{"$f":"VLOOKUP($B513,Data_Table[],18,FALSE)","v":0},"",{"$f":"Table_Data_Table_12[[#This Row],[Pair\nGroup]]+(COUNTIF($A$17:$A513,A513)*0.01)","v":4.91},{"$error":"#N/A"},{"$error":"#N/A"},{"$error":"#N/A"},{"$error":"#N/A"},{"$error":"#N/A"},{"$error":"#N/A"},{"$error":"#N/A"},{"$error":"#N/A"},{"$error":"#N/A"},{"$error":"#N/A"},{"$error":"#N/A"},{"$error":"#N/A"}]
[{"$f":"VLOOKUP($B514,Data_Table[],18,FALSE)","v":0},"",{"$f":"Table_Data_Table_12[[#This Row],[Pair\nGroup]]+(COUNTIF($A$17:$A514,A514)*0.01)","v":4.92},{"$error":"#N/A"},{"$error":"#N/A"},{"$error":"#N/A"},{"$error":"#N/A"},{"$error":"#N/A"},{"$error":"#N/A"},{"$error":"#N/A"},{"$error":"#N/A"},{"$error":"#N/A"},{"$error":"#N/A"},{"$error":"#N/A"},{"$error":"#N/A"}]
[{"$f":"VLOOKUP($B515,Data_Table[],18,FALSE)","v":0},"",{"$f":"Table_Data_Table_12[[#This Row],[Pair\nGroup]]+(COUNTIF($A$17:$A515,A515)*0.01)","v":4.93},{"$error":"#N/A"},{"$error":"#N/A"},{"$error":"#N/A"},{"$error":"#N/A"},{"$error":"#N/A"},{"$error":"#N/A"},{"$error":"#N/A"},{"$error":"#N/A"},{"$error":"#N/A"},{"$error":"#N/A"},{"$error":"#N/A"},{"$error":"#N/A"}]
[{"$f":"VLOOKUP($B516,Data_Table[],18,FALSE)","v":0},"",{"$f":"Table_Data_Table_12[[#This Row],[Pair\nGroup]]+(COUNTIF($A$17:$A516,A516)*0.01)","v":4.9400000000000004},{"$error":"#N/A"},{"$error":"#N/A"},{"$error":"#N/A"},{"$error":"#N/A"},{"$error":"#N/A"},{"$error":"#N/A"},{"$error":"#N/A"},{"$error":"#N/A"},{"$error":"#N/A"},{"$error":"#N/A"},{"$error":"#N/A"},{"$error":"#N/A"}]

{"sheet":"Analysis","index":4,"n_rows":520,"n_cols":20,"rows_kept":520,"cut":false,"hidden":false,"merged":[[18,1,18,18]]}
["325F0367-7E81-42C4-ACBC-2A4A09AB2438"]
[]
[]
[]
[]
[]
[]
[]
[]
[]
[]
[]
[]
[]
[]
[]
[]
[]
[null,{"$f":"\"You cannot begin a new analysis using this workbook after \"&TEXT(Timeout!B4,\"dd/mm/yyyy\")&\". Please obtain the latest version from Tony or Warren at that time. Your conclusions and completed work will still be visible in this workbook on the other tabs.\"","v":"You cannot begin a new analysis using this workbook after 01/06/2020. Please obtain the latest version from Tony or Warren at that time. Your conclusions and completed work will still be visible in this workbook on the other tabs."}]
["Item ID","Valuation Method","Use?\n1=Yes, 0=No","Parcel Number","Sale Date","Sale Price","Imprvmts Value","Land\nResidual","Indicated\nLB Ratio","Resid\nAcre","Resid\nSq Ft","Unadjust\n$ / acre","Unadjust\n$ / Sq Ft","Months To\nMid-Point","Time\nAdjust","Adjusted\nSale Price","Adjust $\nPer Acre","Adjust $\nPer Sq Ft","Adjust $\nPer Front Ft","Exclusion\nComment"]
["5-00All3439-338","Allocation",{"$f":"IF(Table_Data_Table_1[[#This Row],[Item ID]]=\"\",\"\",IFERROR(VLOOKUP(Table_Data_Table_1[[#This Row],[Item ID]],DataTable,16,FALSE),\"\"))","v":0},"34-401-250-000-365-00",43439,338000,0,{"$f":"IF(Table_Data_Table_1[[#This Row],[Valuation Method]]=\"Vacant\",VLOOKUP(Table_Data_Table_1[[#This Row],[Item ID]],DataTable,6,FALSE)-VLOOKUP(Table_Data_Table_1[[#This Row],[Item ID]],DataTable,13,FALSE),IF(Table_Data_Table_1[[#This Row],[Valuation Method]]=\"Abstraction\",VLOOKUP(Table_Data_Table_1[[#This Row],[Item ID]],DataTable,6,FALSE)-VLOOKUP(Table_Data_Table_1[[#This Row],[Item ID]],DataTable,13,FALSE),IF(Table_Data_Table_1[[#This Row],[Valuation Method]]=\"Allocation\",VLOOKUP(Table_Data_Table_1[[#This Row],[Item ID]],DataTable,6,FALSE)*I21,\"\")))","v":136653.4},{"$f":"IF(Table_Data_Table_1[[#This Row],[Valuation Method]]=\"Vacant\",\"N/A\",IF(Table_Data_Table_1[[#This Row],[Valuation Method]]=\"Abstraction\",Table_Data_Table_1[[#This Row],[Land\nResidual]]/VLOOKUP(Table_Data_Table_1[[#This Row],[Item ID]],DataTable,6,FALSE),IF(Table_Data_Table_1[[#This Row],[Valuation Method]]=\"Allocation\",'Global Settings'!$H$20,\"\")))","v":0.40429999999999999},{"$f":"IFERROR(ROUND(Table_Data_Table_1[[#This Row],[Resid\nSq Ft]]/43560,3),\"\")","v":16.46},{"$f":"IF(Table_Data_Table_1[[#This Row],[Item ID]]=\"\",\"\",IFERROR(VLOOKUP(Table_Data_Table_1[[#This Row],[Item ID]],DataTable,10,FALSE)-VLOOKUP(Table_Data_Table_1[[#This Row],[Item ID]],DataTable,12,FALSE),\"\"))","v":716997.60000000009},{"$f":"IFERROR(Table_Data_Table_1[[#This Row],[Land\nResidual]]/Table_Data_Table_1[[#This Row],[Resid\nAcre]],\"\")","v":8302.1506682867548},{"$f":"IFERROR(ROUND(Table_Data_Table_1[[#This Row],[Land\nResidual]]/Table_Data_Table_1[[#This Row],[Resid\nSq Ft]],2),\"\")","v":0.19},{"$f":"IF(Table_Data_Table_1[[#This Row],[Item ID]]=\"\",\"\",ROUND(DAYS360(Table_Data_Table_1[[#This Row],[Sale Date]],'Global Settings'!$H$5)/30,0))","v":52},{"$f":"IFERROR(IF(AND(Table_Data_Table_1[[#This Row],[Months To\nMid-Point]]<12.01,Table_Data_Table_1[[#This Row],[Months To\nMid-Point]]>-13),0,(Table_Data_Table_1[[#This Row],[Months To\nMid-Point]]*'Global Settings'!$H$6)),\"\")","v":8.1515237038685046E-2},{"$f":"IFERROR(Table_Data_Table_1[[#This Row],[Land\nResidual]]*(Table_Data_Table_1[[#This Row],[Time\nAdjust]]+1),\"\")","v":147792.73429314225},{"$f":"IFERROR(Table_Data_Table_1[[#This Row],[Adjusted\nSale Price]]/Table_Data_Table_1[[#This Row],[Resid\nAcre]],\"\")","v":8978.9024479430282},{"$f":"IFERROR(ROUND(Table_Data_Table_1[[#This Row],[Adjusted\nSale Price]]/Table_Data_Table_1[[#This Row],[Resid\nSq Ft]],2),\"\")","v":0.21},{"$f":"IFERROR(IF(VLOOKUP(Table_Data_Table_1[[#This Row],[Item ID]],DataTable,11,FALSE)=0,\"N/A\",Table_Data_Table_1[[#This Row],[Adjusted\nSale Price]]/VLOOKUP(Table_Data_Table_1[[#This Row],[Item ID]],DataTable,11,FALSE)),\"\")","v":978.75982975590887},{"$f":"IF(IFERROR(VLOOKUP(Table_Data_Table_1[[#This Row],[Item ID]],DataTable,17,FALSE),\"\")=0,\"\",IFERROR(VLOOKUP(Table_Data_Table_1[[#This Row],[Item ID]],DataTable,17,FALSE),\"\"))","v":""}]
["1-10Abs2697-194","Abstraction",{"$f":"IF(Table_Data_Table_1[[#This Row],[Item ID]]=\"\",\"\",IFERROR(VLOOKUP(Table_Data_Table_1[[#This Row],[Item ID]],DataTable,16,FALSE),\"\"))","v":0},"34-203-240-000-191-10",42697,194500,142256,{"$f":"IF(Table_Data_Table_1[[#This Row],[Valuation Method]]=\"Vacant\",VLOOKUP(Table_Data_Table_1[[#This Row],[Item ID]],DataTable,6,FALSE)-VLOOKUP(Table_Data_Table_1[[#This Row],[Item ID]],DataTable,13,FALSE),IF(Table_Data_Table_1[[#This Row],[Valuation Method]]=\"Abstraction\",VLOOKUP(Table_Data_Table_1[[#This Row],[Item ID]],DataTable,6,FALSE)-VLOOKUP(Table_Data_Table_1[[#This Row],[Item ID]],DataTable,13,FALSE),IF(Table_Data_Table_1[[#This Row],[Valuation Method]]=\"Allocation\",VLOOKUP(Table_Data_Table_1[[#This Row],[Item ID]],DataTable,6,FALSE)*I22,\"\")))","v":52244},{"$f":"IF(Table_Data_Table_1[[#This Row],[Valuation Method]]=\"Vacant\",\"N/A\",IF(Table_Data_Table_1[[#This Row],[Valuation Method]]=\"Abstraction\",Table_Data_Table_1[[#This Row],[Land\nResidual]]/VLOOKUP(Table_Data_Table_1[[#This Row],[Item ID]],DataTable,6,FALSE),IF(Table_Data_Table_1[[#This Row],[Valuation Method]]=\"Allocation\",'Global Settings'!$H$20,\"\")))","v":0.26860668380462727},{"$f":"IFERROR(ROUND(Table_Data_Table_1[[#This Row],[Resid\nSq Ft]]/43560,3),\"\")","v":6.08},{"$f":"IF(Table_Data_Table_1[[#This Row],[Item ID]]=\"\",\"\",IFERROR(VLOOKUP(Table_Data_Table_1[[#This Row],[Item ID]],DataTable,10,FALSE)-VLOOKUP(Table_Data_Table_1[[#This Row],[Item ID]],DataTable,12,FALSE),\"\"))","v":264844.79999999999},{"$f":"IFERROR(Table_Data_Table_1[[#This Row],[Land\nResidual]]/Table_Data_Table_1[[#This Row],[Resid\nAcre]],\"\")","v":8592.7631578947367},{"$f":"IFERROR(ROUND(Table_Data_Table_1[[#This Row],[Land\nResidual]]/Table_Data_Table_1[[#This Row],[Resid\nSq Ft]],2),\"\")","v":0.2},{"$f":"IF(Table_Data_Table_1[[#This Row],[Item ID]]=\"\",\"\",ROUND(DAYS360(Table_Data_Table_1[[#This Row],[Sale Date]],'Global Settings'!$H$5)/30,0))","v":76},{"$f":"IFERROR(IF(AND(Table_Data_Table_1[[#This Row],[Months To\nMid-Point]]<12.01,Table_Data_Table_1[[#This Row],[Months To\nMid-Point]]>-13),0,(Table_Data_Table_1[[#This Row],[Months To\nMid-Point]]*'Global Settings'!$H$6)),\"\")","v":0.11913765413346275},{"$f":"IFERROR(Table_Data_Table_1[[#This Row],[Land\nResidual]]*(Table_Data_Table_1[[#This Row],[Time\nAdjust]]+1),\"\")","v":58468.227602548628},{"$f":"IFERROR(Table_Data_Table_1[[#This Row],[Adjusted\nSale Price]]/Table_Data_Table_1[[#This Row],[Resid\nAcre]],\"\")","v":9616.4848030507619},{"$f":"IFERROR(ROUND(Table_Data_Table_1[[#This Row],[Adjusted\nSale Price]]/Table_Data_Table_1[[#This Row],[Resid\nSq Ft]],2),\"\")","v":0.22},{"$f":"IFERROR(IF(VLOOKUP(Table_Data_Table_1[[#This Row],[Item ID]],DataTable,11,FALSE)=0,\"N/A\",Table_Data_Table_1[[#This Row],[Adjusted\nSale Price]]/VLOOKUP(Table_Data_Table_1[[#This Row],[Item ID]],DataTable,11,FALSE)),\"\")","v":341.06181883304339},{"$f":"IF(IFERROR(VLOOKUP(Table_Data_Table_1[[#This Row],[Item ID]],DataTable,17,FALSE),\"\")=0,\"\",IFERROR(VLOOKUP(Table_Data_Table_1[[#This Row],[Item ID]],DataTable,17,FALSE),\"\"))","v":""}]
["5-00Abs3439-338","Abstraction",{"$f":"IF(Table_Data_Table_1[[#This Row],[Item ID]]=\"\",\"\",IFERROR(VLOOKUP(Table_Data_Table_1[[#This Row],[Item ID]],DataTable,16,FALSE),\"\"))","v":1},"34-401-250-000-365-00",43439,338000,129314,{"$f":"IF(Table_Data_Table_1[[#This Row],[Valuation Method]]=\"Vacant\",VLOOKUP(Table_Data_Table_1[[#This Row],[Item ID]],DataTable,6,FALSE)-VLOOKUP(Table_Data_Table_1[[#This Row],[Item ID]],DataTable,13,FALSE),IF(Table_Data_Table_1[[#This Row],[Valuation Method]]=\"Abstraction\",VLOOKUP(Table_Data_Table_1[[#This Row],[Item ID]],DataTable,6,FALSE)-VLOOKUP(Table_Data_Table_1[[#This Row],[Item ID]],DataTable,13,FALSE),IF(Table_Data_Table_1[[#This Row],[Valuation Method]]=\"Allocation\",VLOOKUP(Table_Data_Table_1[[#This Row],[Item ID]],DataTable,6,FALSE)*I23,\"\")))","v":208686},{"$f":"IF(Table_Data_Table_1[[#This Row],[Valuation Method]]=\"Vacant\",\"N/A\",IF(Table_Data_Table_1[[#This Row],[Valuation Method]]=\"Abstraction\",Table_Data_Table_1[[#This Row],[Land\nResidual]]/VLOOKUP(Table_Data_Table_1[[#This Row],[Item ID]],DataTable,6,FALSE),IF(Table_Data_Table_1[[#This Row],[Valuation Method]]=\"Allocation\",'Global Settings'!$H$20,\"\")))","v":0.61741420118343193},{"$f":"IFERROR(ROUND(Table_Data_Table_1[[#This Row],[Resid\nSq Ft]]/43560,3),\"\")","v":16.46},{"$f":"IF(Table_Data_Table_1[[#This Row],[Item ID]]=\"\",\"\",IFERROR(VLOOKUP(Table_Data_Table_1[[#This Row],[Item ID]],DataTable,10,FALSE)-VLOOKUP(Table_Data_Table_1[[#This Row],[Item ID]],DataTable,12,FALSE),\"\"))","v":716997.60000000009},{"$f":"IFERROR(Table_Data_Table_1[[#This Row],[Land\nResidual]]/Table_Data_Table_1[[#This Row],[Resid\nAcre]],\"\")","v":12678.371810449575},{"$f":"IFERROR(ROUND(Table_Data_Table_1[[#This Row],[Land\nResidual]]/Table_Data_Table_1[[#This Row],[Resid\nSq Ft]],2),\"\")","v":0.28999999999999998},{"$f":"IF(Table_Data_Table_1[[#This Row],[Item ID]]=\"\",\"\",ROUND(DAYS360(Table_Data_Table_1[[#This Row],[Sale Date]],'Global Settings'!$H$5)/30,0))","v":52},{"$f":"IFERROR(IF(AND(Table_Data_Table_1[[#This Row],[Months To\nMid-Point]]<12.01,Table_Data_Table_1[[#This Row],[Months To\nMid-Point]]>-13),0,(Table_Data_Table_1[[#This Row],[Months To\nMid-Point]]*'Global Settings'!$H$6)),\"\")","v":8.1515237038685046E-2},{"$f":"IFERROR(Table_Data_Table_1[[#This Row],[Land\nResidual]]*(Table_Data_Table_1[[#This Row],[Time\nAdjust]]+1),\"\")","v":225697.08875665505},{"$f":"IFERROR(Table_Data_Table_1[[#This Row],[Adjusted\nSale Price]]/Table_Data_Table_1[[#This Row],[Resid\nAcre]],\"\")","v":13711.852293842954},{"$f":"IFERROR(ROUND(Table_Data_Table_1[[#This Row],[Adjusted\nSale Price]]/Table_Data_Table_1[[#This Row],[Resid\nSq Ft]],2),\"\")","v":0.31},{"$f":"IFERROR(IF(VLOOKUP(Table_Data_Table_1[[#This Row],[Item ID]],DataTable,11,FALSE)=0,\"N/A\",Table_Data_Table_1[[#This Row],[Adjusted\nSale Price]]/VLOOKUP(Table_Data_Table_1[[#This Row],[Item ID]],DataTable,11,FALSE)),\"\")","v":1494.6827069977155},{"$f":"IF(IFERROR(VLOOKUP(Table_Data_Table_1[[#This Row],[Item ID]],DataTable,17,FALSE),\"\")=0,\"\",IFERROR(VLOOKUP(Table_Data_Table_1[[#This Row],[Item ID]],DataTable,17,FALSE),\"\"))","v":""}]
["1-10All2697-194","Allocation",{"$f":"IF(Table_Data_Table_1[[#This Row],[Item ID]]=\"\",\"\",IFERROR(VLOOKUP(Table_Data_Table_1[[#This Row],[Item ID]],DataTable,16,FALSE),\"\"))","v":0},"34-203-240-000-191-10",42697,194500,0,{"$f":"IF(Table_Data_Table_1[[#This Row],[Valuation Method]]=\"Vacant\",VLOOKUP(Table_Data_Table_1[[#This Row],[Item ID]],DataTable,6,FALSE)-VLOOKUP(Table_Data_Table_1[[#This Row],[Item ID]],DataTable,13,FALSE),IF(Table_Data_Table_1[[#This Row],[Valuation Method]]=\"Abstraction\",VLOOKUP(Table_Data_Table_1[[#This Row],[Item ID]],DataTable,6,FALSE)-VLOOKUP(Table_Data_Table_1[[#This Row],[Item ID]],DataTable,13,FALSE),IF(Table_Data_Table_1[[#This Row],[Valuation Method]]=\"Allocation\",VLOOKUP(Table_Data_Table_1[[#This Row],[Item ID]],DataTable,6,FALSE)*I24,\"\")))","v":78636.350000000006},{"$f":"IF(Table_Data_Table_1[[#This Row],[Valuation Method]]=\"Vacant\",\"N/A\",IF(Table_Data_Table_1[[#This Row],[Valuation Method]]=\"Abstraction\",Table_Data_Table_1[[#This Row],[Land\nResidual]]/VLOOKUP(Table_Data_Table_1[[#This Row],[Item ID]],DataTable,6,FALSE),IF(Table_Data_Table_1[[#This Row],[Valuation Method]]=\"Allocation\",'Global Settings'!$H$20,\"\")))","v":0.40429999999999999},{"$f":"IFERROR(ROUND(Table_Data_Table_1[[#This Row],[Resid\nSq Ft]]/43560,3),\"\")","v":6.08},{"$f":"IF(Table_Data_Table_1[[#This Row],[Item ID]]=\"\",\"\",IFERROR(VLOOKUP(Table_Data_Table_1[[#This Row],[Item ID]],DataTable,10,FALSE)-VLOOKUP(Table_Data_Table_1[[#This Row],[Item ID]],DataTable,12,FALSE),\"\"))","v":264844.79999999999},{"$f":"IFERROR(Table_Data_Table_1[[#This Row],[Land\nResidual]]/Table_Data_Table_1[[#This Row],[Resid\nAcre]],\"\")","v":12933.610197368422},{"$f":"IFERROR(ROUND(Table_Data_Table_1[[#This Row],[Land\nResidual]]/Table_Data_Table_1[[#This Row],[Resid\nSq Ft]],2),\"\")","v":0.3},{"$f":"IF(Table_Data_Table_1[[#This Row],[Item ID]]=\"\",\"\",ROUND(DAYS360(Table_Data_Table_1[[#This Row],[Sale Date]],'Global Settings'!$H$5)/30,0))","v":76},{"$f":"IFERROR(IF(AND(Table_Data_Table_1[[#This Row],[Months To\nMid-Point]]<12.01,Table_Data_Table_1[[#This Row],[Months To\nMid-Point]]>-13),0,(Table_Data_Table_1[[#This Row],[Months To\nMid-Point]]*'Global Settings'!$H$6)),\"\")","v":0.11913765413346275},{"$f":"IFERROR(Table_Data_Table_1[[#This Row],[Land\nResidual]]*(Table_Data_Table_1[[#This Row],[Time\nAdjust]]+1),\"\")","v":88004.90026861793},{"$f":"IFERROR(Table_Data_Table_1[[#This Row],[Adjusted\nSale Price]]/Table_Data_Table_1[[#This Row],[Resid\nAcre]],\"\")","v":14474.490175759527},{"$f":"IFERROR(ROUND(Table_Data_Table_1[[#This Row],[Adjusted\nSale Price]]/Table_Data_Table_1[[#This Row],[Resid\nSq Ft]],2),\"\")","v":0.33},{"$f":"IFERROR(IF(VLOOKUP(Table_Data_Table_1[[#This Row],[Item ID]],DataTable,11,FALSE)=0,\"N/A\",Table_Data_Table_1[[#This Row],[Adjusted\nSale Price]]/VLOOKUP(Table_Data_Table_1[[#This Row],[Item ID]],DataTable,11,FALSE)),\"\")","v":513.3576402532691},{"$f":"IF(IFERROR(VLOOKUP(Table_Data_Table_1[[#This Row],[Item ID]],DataTable,17,FALSE),\"\")=0,\"\",IFERROR(VLOOKUP(Table_Data_Table_1[[#This Row],[Item ID]],DataTable,17,FALSE),\"\"))","v":""}]
["5-00All3808-610","Allocation",{"$f":"IF(Table_Data_Table_1[[#This Row],[Item ID]]=\"\",\"\",IFERROR(VLOOKUP(Table_Data_Table_1[[#This Row],[Item ID]],DataTable,16,FALSE),\"\"))","v":1},"34-401-250-000-365-00",43808,610000,0,{"$f":"IF(Table_Data_Table_1[[#This Row],[Valuation Method]]=\"Vacant\",VLOOKUP(Table_Data_Table_1[[#This Row],[Item ID]],DataTable,6,FALSE)-VLOOKUP(Table_Data_Table_1[[#This Row],[Item ID]],DataTable,13,FALSE),IF(Table_Data_Table_1[[#This Row],[Valuation Method]]=\"Abstraction\",VLOOKUP(Table_Data_Table_1[[#This Row],[Item ID]],DataTable,6,FALSE)-VLOOKUP(Table_Data_Table_1[[#This Row],[Item ID]],DataTable,13,FALSE),IF(Table_Data_Table_1[[#This Row],[Valuation Method]]=\"Allocation\",VLOOKUP(Table_Data_Table_1[[#This Row],[Item ID]],DataTable,6,FALSE)*I25,\"\")))","v":246623},{"$f":"IF(Table_Data_Table_1[[#This Row],[Valuation Method]]=\"Vacant\",\"N/A\",IF(Table_Data_Table_1[[#This Row],[Valuation Method]]=\"Abstraction\",Table_Data_Table_1[[#This Row],[Land\nResidual]]/VLOOKUP(Table_Data_Table_1[[#This Row],[Item ID]],DataTable,6,FALSE),IF(Table_Data_Table_1[[#This Row],[Valuation Method]]=\"Allocation\",'Global Settings'!$H$20,\"\")))","v":0.40429999999999999},{"$f":"IFERROR(ROUND(Table_Data_Table_1[[#This Row],[Resid\nSq Ft]]/43560,3),\"\")","v":16.46},{"$f":"IF(Table_Data_Table_1[[#This Row],[Item ID]]=\"\",\"\",IFERROR(VLOOKUP(Table_Data_Table_1[[#This Row],[Item ID]],DataTable,10,FALSE)-VLOOKUP(Table_Data_Table_1[[#This Row],[Item ID]],DataTable,12,FALSE),\"\"))","v":716997.60000000009},{"$f":"IFERROR(Table_Data_Table_1[[#This Row],[Land\nResidual]]/Table_Data_Table_1[[#This Row],[Resid\nAcre]],\"\")","v":14983.171324422843},{"$f":"IFERROR(ROUND(Table_Data_Table_1[[#This Row],[Land\nResidual]]/Table_Data_Table_1[[#This Row],[Resid\nSq Ft]],2),\"\")","v":0.34},{"$f":"IF(Table_Data_Table_1[[#This Row],[Item ID]]=\"\",\"\",ROUND(DAYS360(Table_Data_Table_1[[#This Row],[Sale Date]],'Global Settings'!$H$5)/30,0))","v":40},{"$f":"IFERROR(IF(AND(Table_Data_Table_1[[#This Row],[Months To\nMid-Point]]<12.01,Table_Data_Table_1[[#This Row],[Months To\nMid-Point]]>-13),0,(Table_Data_Table_1[[#This Row],[Months To\nMid-Point]]*'Global Settings'!$H$6)),\"\")","v":6.2704028491296193E-2},{"$f":"IFERROR(Table_Data_Table_1[[#This Row],[Land\nResidual]]*(Table_Data_Table_1[[#This Row],[Time\nAdjust]]+1),\"\")","v":262087.25561860891},{"$f":"IFERROR(Table_Data_Table_1[[#This Row],[Adjusted\nSale Price]]/Table_Data_Table_1[[#This Row],[Resid\nAcre]],\"\")","v":15922.676526039422},{"$f":"IFERROR(ROUND(Table_Data_Table_1[[#This Row],[Adjusted\nSale Price]]/Table_Data_Table_1[[#This Row],[Resid\nSq Ft]],2),\"\")","v":0.37},{"$f":"IFERROR(IF(VLOOKUP(Table_Data_Table_1[[#This Row],[Item ID]],DataTable,11,FALSE)=0,\"N/A\",Table_Data_Table_1[[#This Row],[Adjusted\nSale Price]]/VLOOKUP(Table_Data_Table_1[[#This Row],[Item ID]],DataTable,11,FALSE)),\"\")","v":1735.6771895272113},{"$f":"IF(IFERROR(VLOOKUP(Table_Data_Table_1[[#This Row],[Item ID]],DataTable,17,FALSE),\"\")=0,\"\",IFERROR(VLOOKUP(Table_Data_Table_1[[#This Row],[Item ID]],DataTable,17,FALSE),\"\"))","v":""}]
["0-00Vac2754-100","Vacant",{"$f":"IF(Table_Data_Table_1[[#This Row],[Item ID]]=\"\",\"\",IFERROR(VLOOKUP(Table_Data_Table_1[[#This Row],[Item ID]],DataTable,16,FALSE),\"\"))","v":0},"34-090-000-110-00",42754,10000,0,{"$f":"IF(Table_Data_Table_1[[#This Row],[Valuation Method]]=\"Vacant\",VLOOKUP(Table_Data_Table_1[[#This Row],[Item ID]],DataTable,6,FALSE)-VLOOKUP(Table_Data_Table_1[[#This Row],[Item ID]],DataTable,13,FALSE),IF(Table_Data_Table_1[[#This Row],[Valuation Method]]=\"Abstraction\",VLOOKUP(Table_Data_Table_1[[#This Row],[Item ID]],DataTable,6,FALSE)-VLOOKUP(Table_Data_Table_1[[#This Row],[Item ID]],DataTable,13,FALSE),IF(Table_Data_Table_1[[#This Row],[Valuation Method]]=\"Allocation\",VLOOKUP(Table_Data_Table_1[[#This Row],[Item ID]],DataTable,6,FALSE)*I26,\"\")))","v":10000},{"$f":"IF(Table_Data_Table_1[[#This Row],[Valuation Method]]=\"Vacant\",\"N/A\",IF(Table_Data_Table_1[[#This Row],[Valuation Method]]=\"Abstraction\",Table_Data_Table_1[[#This Row],[Land\nResidual]]/VLOOKUP(Table_Data_Table_1[[#This Row],[Item ID]],DataTable,6,FALSE),IF(Table_Data_Table_1[[#This Row],[Valuation Method]]=\"Allocation\",'Global Settings'!$H$20,\"\")))","v":"N/A"},{"$f":"IFERROR(ROUND(Table_Data_Table_1[[#This Row],[Resid\nSq Ft]]/43560,3),\"\")","v":0.623},{"$f":"IF(Table_Data_Table_1[[#This Row],[Item ID]]=\"\",\"\",IFERROR(VLOOKUP(Table_Data_Table_1[[#This Row],[Item ID]],DataTable,10,FALSE)-VLOOKUP(Table_Data_Table_1[[#This Row],[Item ID]],DataTable,12,FALSE),\"\"))","v":27137.88},{"$f":"IFERROR(Table_Data_Table_1[[#This Row],[Land\nResidual]]/Table_Data_Table_1[[#This Row],[Resid\nAcre]],\"\")","v":16051.364365971107},{"$f":"IFERROR(ROUND(Table_Data_Table_1[[#This Row],[Land\nResidual]]/Table_Data_Table_1[[#This Row],[Resid\nSq Ft]],2),\"\")","v":0.37},{"$f":"IF(Table_Data_Table_1[[#This Row],[Item ID]]=\"\",\"\",ROUND(DAYS360(Table_Data_Table_1[[#This Row],[Sale Date]],'Global Settings'!$H$5)/30,0))","v":74},{"$f":"IFERROR(IF(AND(Table_Data_Table_1[[#This Row],[Months To\nMid-Point]]<12.01,Table_Data_Table_1[[#This Row],[Months To\nMid-Point]]>-13),0,(Table_Data_Table_1[[#This Row],[Months To\nMid-Point]]*'Global Settings'!$H$6)),\"\")","v":0.11600245270889795},{"$f":"IFERROR(Table_Data_Table_1[[#This Row],[Land\nResidual]]*(Table_Data_Table_1[[#This Row],[Time\nAdjust]]+1),\"\")","v":11160.024527088979},{"$f":"IFERROR(Table_Data_Table_1[[#This Row],[Adjusted\nSale Price]]/Table_Data_Table_1[[#This Row],[Resid\nAcre]],\"\")","v":17913.362001747959},{"$f":"IFERROR(ROUND(Table_Data_Table_1[[#This Row],[Adjusted\nSale Price]]/Table_Data_Table_1[[#This Row],[Resid\nSq Ft]],2),\"\")","v":0.41},{"$f":"IFERROR(IF(VLOOKUP(Table_Data_Table_1[[#This Row],[Item ID]],DataTable,11,FALSE)=0,\"N/A\",Table_Data_Table_1[[#This Row],[Adjusted\nSale Price]]/VLOOKUP(Table_Data_Table_1[[#This Row],[Item ID]],DataTable,11,FALSE)),\"\")","v":83.90995885029308},{"$f":"IF(IFERROR(VLOOKUP(Table_Data_Table_1[[#This Row],[Item ID]],DataTable,17,FALSE),\"\")=0,\"\",IFERROR(VLOOKUP(Table_Data_Table_1[[#This Row],[Item ID]],DataTable,17,FALSE),\"\"))","v":""}]
["0-00Abs1795-800","Abstraction",{"$f":"IF(Table_Data_Table_1[[#This Row],[Item ID]]=\"\",\"\",IFERROR(VLOOKUP(Table_Data_Table_1[[#This Row],[Item ID]],DataTable,16,FALSE),\"\"))","v":1},"34-401-250-000-350-00",41795,80000,51893,{"$f":"IF(Table_Data_Table_1[[#This Row],[Valuation Method]]=\"Vacant\",VLOOKUP(Table_Data_Table_1[[#This Row],[Item ID]],DataTable,6,FALSE)-VLOOKUP(Table_Data_Table_1[[#This Row],[Item ID]],DataTable,13,FALSE),IF(Table_Data_Table_1[[#This Row],[Valuation Method]]=\"Abstraction\",VLOOKUP(Table_Data_Table_1[[#This Row],[Item ID]],DataTable,6,FALSE)-VLOOKUP(Table_Data_Table_1[[#This Row],[Item ID]],DataTable,13,FALSE),IF(Table_Data_Table_1[[#This Row],[Valuation Method]]=\"Allocation\",VLOOKUP(Table_Data_Table_1[[#This Row],[Item ID]],DataTable,6,FALSE)*I27,\"\")))","v":28107},{"$f":"IF(Table_Data_Table_1[[#This Row],[Valuation Method]]=\"Vacant\",\"N/A\",IF(Table_Data_Table_1[[#This Row],[Valuation Method]]=\"Abstraction\",Table_Data_Table_1[[#This Row],[Land\nResidual]]/VLOOKUP(Table_Data_Table_1[[#This Row],[Item ID]],DataTable,6,FALSE),IF(Table_Data_Table_1[[#This Row],[Valuation Method]]=\"Allocation\",'Global Settings'!$H$20,\"\")))","v":0.35133750000000002},{"$f":"IFERROR(ROUND(Table_Data_Table_1[[#This Row],[Resid\nSq Ft]]/43560,3),\"\")","v":1.615},{"$f":"IF(Table_Data_Table_1[[#This Row],[Item ID]]=\"\",\"\",IFERROR(VLOOKUP(Table_Data_Table_1[[#This Row],[Item ID]],DataTable,10,FALSE)-VLOOKUP(Table_Data_Table_1[[#This Row],[Item ID]],DataTable,12,FALSE),\"\"))","v":70347.42},{"$f":"IFERROR(Table_Data_Table_1[[#This Row],[Land\nResidual]]/Table_Data_Table_1[[#This Row],[Resid\nAcre]],\"\")","v":17403.71517027864},{"$f":"IFERROR(ROUND(Table_Data_Table_1[[#This Row],[Land\nResidual]]/Table_Data_Table_1[[#This Row],[Resid\nSq Ft]],2),\"\")","v":0.4},{"$f":"IF(Table_Data_Table_1[[#This Row],[Item ID]]=\"\",\"\",ROUND(DAYS360(Table_Data_Table_1[[#This Row],[Sale Date]],'Global Settings'!$H$5)/30,0))","v":106},{"$f":"IFERROR(IF(AND(Table_Data_Table_1[[#This Row],[Months To\nMid-Point]]<12.01,Table_Data_Table_1[[#This Row],[Months To\nMid-Point]]>-13),0,(Table_Data_Table_1[[#This Row],[Months To\nMid-Point]]*'Global Settings'!$H$6)),\"\")","v":0.1661656755019349},{"$f":"IFERROR(Table_Data_Table_1[[#This Row],[Land\nResidual]]*(Table_Data_Table_1[[#This Row],[Time\nAdjust]]+1),\"\")","v":32777.418641332886},{"$f":"IFERROR(Table_Data_Table_1[[#This Row],[Adjusted\nSale Price]]/Table_Data_Table_1[[#This Row],[Resid\nAcre]],\"\")","v":20295.615257791262},{"$f":"IFERROR(ROUND(Table_Data_Table_1[[#This Row],[Adjusted\nSale Price]]/Table_Data_Table_1[[#This Row],[Resid\nSq Ft]],2),\"\")","v":0.47},{"$f":"IFERROR(IF(VLOOKUP(Table_Data_Table_1[[#This Row],[Item ID]],DataTable,11,FALSE)=0,\"N/A\",Table_Data_Table_1[[#This Row],[Adjusted\nSale Price]]/VLOOKUP(Table_Data_Table_1[[#This Row],[Item ID]],DataTable,11,FALSE)),\"\")","v":269.77299293278094},{"$f":"IF(IFERROR(VLOOKUP(Table_Data_Table_1[[#This Row],[Item ID]],DataTable,17,FALSE),\"\")=0,\"\",IFERROR(VLOOKUP(Table_Data_Table_1[[#This Row],[Item ID]],DataTable,17,FALSE),\"\"))","v":""}]
["6-00Vac-48-150","Vacant",{"$f":"IF(Table_Data_Table_1[[#This Row],[Item ID]]=\"\",\"\",IFERROR(VLOOKUP(Table_Data_Table_1[[#This Row],[Item ID]],DataTable,16,FALSE),\"\"))","v":0},"34-201-040-000-076-00",39952,15000,0,{"$f":"IF(Table_Data_Table_1[[#This Row],[Valuation Method]]=\"Vacant\",VLOOKUP(Table_Data_Table_1[[#This Row],[Item ID]],DataTable,6,FALSE)-VLOOKUP(Table_Data_Table_1[[#This Row],[Item ID]],DataTable,13,FALSE),IF(Table_Data_Table_1[[#This Row],[Valuation Method]]=\"Abstraction\",VLOOKUP(Table_Data_Table_1[[#This Row],[Item ID]],DataTable,6,FALSE)-VLOOKUP(Table_Data_Table_1[[#This Row],[Item ID]],DataTable,13,FALSE),IF(Table_Data_Table_1[[#This Row],[Valuation Method]]=\"Allocation\",VLOOKUP(Table_Data_Table_1[[#This Row],[Item ID]],DataTable,6,FALSE)*I28,\"\")))","v":15000},{"$f":"IF(Table_Data_Table_1[[#This Row],[Valuation Method]]=\"Vacant\",\"N/A\",IF(Table_Data_Table_1[[#This Row],[Valuation Method]]=\"Abstraction\",Table_Data_Table_1[[#This Row],[Land\nResidual]]/VLOOKUP(Table_Data_Table_1[[#This Row],[Item ID]],DataTable,6,FALSE),IF(Table_Data_Table_1[[#This Row],[Valuation Method]]=\"Allocation\",'Global Settings'!$H$20,\"\")))","v":"N/A"},{"$f":"IFERROR(ROUND(Table_Data_Table_1[[#This Row],[Resid\nSq Ft]]/43560,3),\"\")","v":0.85499999999999998},{"$f":"IF(Table_Data_Table_1[[#This Row],[Item ID]]=\"\",\"\",IFERROR(VLOOKUP(Table_Data_Table_1[[#This Row],[Item ID]],DataTable,10,FALSE)-VLOOKUP(Table_Data_Table_1[[#This Row],[Item ID]],DataTable,12,FALSE),\"\"))","v":37243.799999999996},{"$f":"IFERROR(Table_Data_Table_1[[#This Row],[Land\nResidual]]/Table_Data_Table_1[[#This Row],[Resid\nAcre]],\"\")","v":17543.859649122809},{"$f":"IFERROR(ROUND(Table_Data_Table_1[[#This Row],[Land\nResidual]]/Table_Data_Table_1[[#This Row],[Resid\nSq Ft]],2),\"\")","v":0.4},{"$f":"IF(Table_Data_Table_1[[#This Row],[Item ID]]=\"\",\"\",ROUND(DAYS360(Table_Data_Table_1[[#This Row],[Sale Date]],'Global Settings'!$H$5)/30,0))","v":166},{"$f":"IFERROR(IF(AND(Table_Data_Table_1[[#This Row],[Months To\nMid-Point]]<12.01,Table_Data_Table_1[[#This Row],[Months To\nMid-Point]]>-13),0,(Table_Data_Table_1[[#This Row],[Months To\nMid-Point]]*'Global Settings'!$H$6)),\"\")","v":0.26022171823887918},{"$f":"IFERROR(Table_Data_Table_1[[#This Row],[Land\nResidual]]*(Table_Data_Table_1[[#This Row],[Time\nAdjust]]+1),\"\")","v":18903.325773583187},{"$f":"IFERROR(Table_Data_Table_1[[#This Row],[Adjusted\nSale Price]]/Table_Data_Table_1[[#This Row],[Resid\nAcre]],\"\")","v":22109.152951559285},{"$f":"IFERROR(ROUND(Table_Data_Table_1[[#This Row],[Adjusted\nSale Price]]/Table_Data_Table_1[[#This Row],[Resid\nSq Ft]],2),\"\")","v":0.51},{"$f":"IFERROR(IF(VLOOKUP(Table_Data_Table_1[[#This Row],[Item ID]],DataTable,11,FALSE)=0,\"N/A\",Table_Data_Table_1[[#This Row],[Adjusted\nSale Price]]/VLOOKUP(Table_Data_Table_1[[#This Row],[Item ID]],DataTable,11,FALSE)),\"\")","v":173.99968495566262},{"$f":"IF(IFERROR(VLOOKUP(Table_Data_Table_1[[#This Row],[Item ID]],DataTable,17,FALSE),\"\")=0,\"\",IFERROR(VLOOKUP(Table_Data_Table_1[[#This Row],[Item ID]],DataTable,17,FALSE),\"\"))","v":""}]
["0-00All1795-800","Allocation",{"$f":"IF(Table_Data_Table_1[[#This Row],[Item ID]]=\"\",\"\",IFERROR(VLOOKUP(Table_Data_Table_1[[#This Row],[Item ID]],DataTable,16,FALSE),\"\"))","v":1},"34-401-250-000-350-00",41795,80000,0,{"$f":"IF(Table_Data_Table_1[[#This Row],[Valuation Method]]=\"Vacant\",VLOOKUP(Table_Data_Table_1[[#This Row],[Item ID]],DataTable,6,FALSE)-VLOOKUP(Table_Data_Table_1[[#This Row],[Item ID]],DataTable,13,FALSE),IF(Table_Data_Table_1[[#This Row],[Valuation Method]]=\"Abstraction\",VLOOKUP(Table_Data_Table_1[[#This Row],[Item ID]],DataTable,6,FALSE)-VLOOKUP(Table_Data_Table_1[[#This Row],[Item ID]],DataTable,13,FALSE),IF(Table_Data_Table_1[[#This Row],[Valuation Method]]=\"Allocation\",VLOOKUP(Table_Data_Table_1[[#This Row],[Item ID]],DataTable,6,FALSE)*I29,\"\")))","v":32344},{"$f":"IF(Table_Data_Table_1[[#This Row],[Valuation Method]]=\"Vacant\",\"N/A\",IF(Table_Data_Table_1[[#This Row],[Valuation Method]]=\"Abstraction\",Table_Data_Table_1[[#This Row],[Land\nResidual]]/VLOOKUP(Table_Data_Table_1[[#This Row],[Item ID]],DataTable,6,FALSE),IF(Table_Data_Table_1[[#This Row],[Valuation Method]]=\"Allocation\",'Global Settings'!$H$20,\"\")))","v":0.40429999999999999},{"$f":"IFERROR(ROUND(Table_Data_Table_1[[#This Row],[Resid\nSq Ft]]/43560,3),\"\")","v":1.615},{"$f":"IF(Table_Data_Table_1[[#This Row],[Item ID]]=\"\",\"\",IFERROR(VLOOKUP(Table_Data_Table_1[[#This Row],[Item ID]],DataTable,10,FALSE)-VLOOKUP(Table_Data_Table_1[[#This Row],[Item ID]],DataTable,12,FALSE),\"\"))","v":70347.42},{"$f":"IFERROR(Table_Data_Table_1[[#This Row],[Land\nResidual]]/Table_Data_Table_1[[#This Row],[Resid\nAcre]],\"\")","v":20027.244582043342},{"$f":"IFERROR(ROUND(Table_Data_Table_1[[#This Row],[Land\nResidual]]/Table_Data_Table_1[[#This Row],[Resid\nSq Ft]],2),\"\")","v":0.46},{"$f":"IF(Table_Data_Table_1[[#This Row],[Item ID]]=\"\",\"\",ROUND(DAYS360(Table_Data_Table_1[[#This Row],[Sale Date]],'Global Settings'!$H$5)/30,0))","v":106},{"$f":"IFERROR(IF(AND(Table_Data_Table_1[[#This Row],[Months To\nMid-Point]]<12.01,Table_Data_Table_1[[#This Row],[Months To\nMid-Point]]>-13),0,(Table_Data_Table_1[[#This Row],[Months To\nMid-Point]]*'Global Settings'!$H$6)),\"\")","v":0.1661656755019349},{"$f":"IFERROR(Table_Data_Table_1[[#This Row],[Land\nResidual]]*(Table_Data_Table_1[[#This Row],[Time\nAdjust]]+1),\"\")","v":37718.462608434587},{"$f":"IFERROR(Table_Data_Table_1[[#This Row],[Adjusted\nSale Price]]/Table_Data_Table_1[[#This Row],[Resid\nAcre]],\"\")","v":23355.085206461044},{"$f":"IFERROR(ROUND(Table_Data_Table_1[[#This Row],[Adjusted\nSale Price]]/Table_Data_Table_1[[#This Row],[Resid\nSq Ft]],2),\"\")","v":0.54},{"$f":"IFERROR(IF(VLOOKUP(Table_Data_Table_1[[#This Row],[Item ID]],DataTable,11,FALSE)=0,\"N/A\",Table_Data_Table_1[[#This Row],[Adjusted\nSale Price]]/VLOOKUP(Table_Data_Table_1[[#This Row],[Item ID]],DataTable,11,FALSE)),\"\")","v":310.44002146859742},{"$f":"IF(IFERROR(VLOOKUP(Table_Data_Table_1[[#This Row],[Item ID]],DataTable,17,FALSE),\"\")=0,\"\",IFERROR(VLOOKUP(Table_Data_Table_1[[#This Row],[Item ID]],DataTable,17,FALSE),\"\"))","v":""}]
["5-00Abs3808-610","Abstraction",{"$f":"IF(Table_Data_Table_1[[#This Row],[Item ID]]=\"\",\"\",IFERROR(VLOOKUP(Table_Data_Table_1[[#This Row],[Item ID]],DataTable,16,FALSE),\"\"))","v":1},"34-401-250-000-365-00",43808,610000,226879,{"$f":"IF(Table_Data_Table_1[[#This Row],[Valuation Method]]=\"Vacant\",VLOOKUP(Table_Data_Table_1[[#This Row],[Item ID]],DataTable,6,FALSE)-VLOOKUP(Table_Data_Table_1[[#This Row],[Item ID]],DataTable,13,FALSE),IF(Table_Data_Table_1[[#This Row],[Valuation Method]]=\"Abstraction\",VLOOKUP(Table_Data_Table_1[[#This Row],[Item ID]],DataTable,6,FALSE)-VLOOKUP(Table_Data_Table_1[[#This Row],[Item ID]],DataTable,13,FALSE),IF(Table_Data_Table_1[[#This Row],[Valuation Method]]=\"Allocation\",VLOOKUP(Table_Data_Table_1[[#This Row],[Item ID]],DataTable,6,FALSE)*I30,\"\")))","v":383121},{"$f":"IF(Table_Data_Table_1[[#This Row],[Valuation Method]]=\"Vacant\",\"N/A\",IF(Table_Data_Table_1[[#This Row],[Valuation Method]]=\"Abstraction\",Table_Data_Table_1[[#This Row],[Land\nResidual]]/VLOOKUP(Table_Data_Table_1[[#This Row],[Item ID]],DataTable,6,FALSE),IF(Table_Data_Table_1[[#This Row],[Valuation Method]]=\"Allocation\",'Global Settings'!$H$20,\"\")))","v":0.62806721311475411},{"$f":"IFERROR(ROUND(Table_Data_Table_1[[#This Row],[Resid\nSq Ft]]/43560,3),\"\")","v":16.46},{"$f":"IF(Table_Data_Table_1[[#This Row],[Item ID]]=\"\",\"\",IFERROR(VLOOKUP(Table_Data_Table_1[[#This Row],[Item ID]],DataTable,10,FALSE)-VLOOKUP(Table_Data_Table_1[[#This Row],[Item ID]],DataTable,12,FALSE),\"\"))","v":716997.60000000009},{"$f":"IFERROR(Table_Data_Table_1[[#This Row],[Land\nResidual]]/Table_Data_Table_1[[#This Row],[Resid\nAcre]],\"\")","v":23275.88092345079},{"$f":"IFERROR(ROUND(Table_Data_Table_1[[#This Row],[Land\nResidual]]/Table_Data_Table_1[[#This Row],[Resid\nSq Ft]],2),\"\")","v":0.53},{"$f":"IF(Table_Data_Table_1[[#This Row],[Item ID]]=\"\",\"\",ROUND(DAYS360(Table_Data_Table_1[[#This Row],[Sale Date]],'Global Settings'!$H$5)/30,0))","v":40},{"$f":"IFERROR(IF(AND(Table_Data_Table_1[[#This Row],[Months To\nMid-Point]]<12.01,Table_Data_Table_1[[#This Row],[Months To\nMid-Point]]>-13),0,(Table_Data_Table_1[[#This Row],[Months To\nMid-Point]]*'Global Settings'!$H$6)),\"\")","v":6.2704028491296193E-2},{"$f":"IFERROR(Table_Data_Table_1[[#This Row],[Land\nResidual]]*(Table_Data_Table_1[[#This Row],[Time\nAdjust]]+1),\"\")","v":407144.23009961384},{"$f":"IFERROR(Table_Data_Table_1[[#This Row],[Adjusted\nSale Price]]/Table_Data_Table_1[[#This Row],[Resid\nAcre]],\"\")","v":24735.37242403486},{"$f":"IFERROR(ROUND(Table_Data_Table_1[[#This Row],[Adjusted\nSale Price]]/Table_Data_Table_1[[#This Row],[Resid\nSq Ft]],2),\"\")","v":0.56999999999999995},{"$f":"IFERROR(IF(VLOOKUP(Table_Data_Table_1[[#This Row],[Item ID]],DataTable,11,FALSE)=0,\"N/A\",Table_Data_Table_1[[#This Row],[Adjusted\nSale Price]]/VLOOKUP(Table_Data_Table_1[[#This Row],[Item ID]],DataTable,11,FALSE)),\"\")","v":2696.3194046332042},{"$f":"IF(IFERROR(VLOOKUP(Table_Data_Table_1[[#This Row],[Item ID]],DataTable,17,FALSE),\"\")=0,\"\",IFERROR(VLOOKUP(Table_Data_Table_1[[#This Row],[Item ID]],DataTable,17,FALSE),\"\"))","v":""}]
["5-00All2741-400","Allocation",{"$f":"IF(Table_Data_Table_1[[#This Row],[Item ID]]=\"\",\"\",IFERROR(VLOOKUP(Table_Data_Table_1[[#This Row],[Item ID]],DataTable,16,FALSE),\"\"))","v":0},"34-204-090-000-075-00",42741,40000,0,{"$f":"IF(Table_Data_Table_1[[#This Row],[Valuation Method]]=\"Vacant\",VLOOKUP(Table_Data_Table_1[[#This Row],[Item ID]],DataTable,6,FALSE)-VLOOKUP(Table_Data_Table_1[[#This Row],[Item ID]],DataTable,13,FALSE),IF(Table_Data_Table_1[[#This Row],[Valuation Method]]=\"Abstraction\",VLOOKUP(Table_Data_Table_1[[#This Row],[Item ID]],DataTable,6,FALSE)-VLOOKUP(Table_Data_Table_1[[#This Row],[Item ID]],DataTable,13,FALSE),IF(Table_Data_Table_1[[#This Row],[Valuation Method]]=\"Allocation\",VLOOKUP(Table_Data_Table_1[[#This Row],[Item ID]],DataTable,6,FALSE)*I31,\"\")))","v":16172},{"$f":"IF(Table_Data_Table_1[[#This Row],[Valuation Method]]=\"Vacant\",\"N/A\",IF(Table_Data_Table_1[[#This Row],[Valuation Method]]=\"Abstraction\",Table_Data_Table_1[[#This Row],[Land\nResidual]]/VLOOKUP(Table_Data_Table_1[[#This Row],[Item ID]],DataTable,6,FALSE),IF(Table_Data_Table_1[[#This Row],[Valuation Method]]=\"Allocation\",'Global Settings'!$H$20,\"\")))","v":0.40429999999999999},{"$f":"IFERROR(ROUND(Table_Data_Table_1[[#This Row],[Resid\nSq Ft]]/43560,3),\"\")","v":0.48699999999999999},{"$f":"IF(Table_Data_Table_1[[#This Row],[Item ID]]=\"\",\"\",IFERROR(VLOOKUP(Table_Data_Table_1[[#This Row],[Item ID]],DataTable,10,FALSE)-VLOOKUP(Table_Data_Table_1[[#This Row],[Item ID]],DataTable,12,FALSE),\"\"))","v":21213.72},{"$f":"IFERROR(Table_Data_Table_1[[#This Row],[Land\nResidual]]/Table_Data_Table_1[[#This Row],[Resid\nAcre]],\"\")","v":33207.392197125257},{"$f":"IFERROR(ROUND(Table_Data_Table_1[[#This Row],[Land\nResidual]]/Table_Data_Table_1[[#This Row],[Resid\nSq Ft]],2),\"\")","v":0.76},{"$f":"IF(Table_Data_Table_1[[#This Row],[Item ID]]=\"\",\"\",ROUND(DAYS360(Table_Data_Table_1[[#This Row],[Sale Date]],'Global Settings'!$H$5)/30,0))","v":75},{"$f":"IFERROR(IF(AND(Table_Data_Table_1[[#This Row],[Months To\nMid-Point]]<12.01,Table_Data_Table_1[[#This Row],[Months To\nMid-Point]]>-13),0,(Table_Data_Table_1[[#This Row],[Months To\nMid-Point]]*'Global Settings'!$H$6)),\"\")","v":0.11757005342118035},{"$f":"IFERROR(Table_Data_Table_1[[#This Row],[Land\nResidual]]*(Table_Data_Table_1[[#This Row],[Time\nAdjust]]+1),\"\")","v":18073.342903927329},{"$f":"IFERROR(Table_Data_Table_1[[#This Row],[Adjusted\nSale Price]]/Table_Data_Table_1[[#This Row],[Resid\nAcre]],\"\")","v":37111.587071719361},{"$f":"IFERROR(ROUND(Table_Data_Table_1[[#This Row],[Adjusted\nSale Price]]/Table_Data_Table_1[[#This Row],[Resid\nSq Ft]],2),\"\")","v":0.85},{"$f":"IFERROR(IF(VLOOKUP(Table_Data_Table_1[[#This Row],[Item ID]],DataTable,11,FALSE)=0,\"N/A\",Table_Data_Table_1[[#This Row],[Adjusted\nSale Price]]/VLOOKUP(Table_Data_Table_1[[#This Row],[Item ID]],DataTable,11,FALSE)),\"\")","v":120.48895269284886},{"$f":"IF(IFERROR(VLOOKUP(Table_Data_Table_1[[#This Row],[Item ID]],DataTable,17,FALSE),\"\")=0,\"\",IFERROR(VLOOKUP(Table_Data_Table_1[[#This Row],[Item ID]],DataTable,17,FALSE),\"\"))","v":""}]
["5-00Vac333-200","Vacant",{"$f":"IF(Table_Data_Table_1[[#This Row],[Item ID]]=\"\",\"\",IFERROR(VLOOKUP(Table_Data_Table_1[[#This Row],[Item ID]],DataTable,16,FALSE),\"\"))","v":0},"34-300-050-000-395-00",40333,20000,0,{"$f":"IF(Table_Data_Table_1[[#This Row],[Valuation Method]]=\"Vacant\",VLOOKUP(Table_Data_Table_1[[#This Row],[Item ID]],DataTable,6,FALSE)-VLOOKUP(Table_Data_Table_1[[#This Row],[Item ID]],DataTable,13,FALSE),IF(Table_Data_Table_1[[#This Row],[Valuation Method]]=\"Abstraction\",VLOOKUP(Table_Data_Table_1[[#This Row],[Item ID]],DataTable,6,FALSE)-VLOOKUP(Table_Data_Table_1[[#This Row],[Item ID]],DataTable,13,FALSE),IF(Table_Data_Table_1[[#This Row],[Valuation Method]]=\"Allocation\",VLOOKUP(Table_Data_Table_1[[#This Row],[Item ID]],DataTable,6,FALSE)*I32,\"\")))","v":20000},{"$f":"IF(Table_Data_Table_1[[#This Row],[Valuation Method]]=\"Vacant\",\"N/A\",IF(Table_Data_Table_1[[#This Row],[Valuation Method]]=\"Abstraction\",Table_Data_Table_1[[#This Row],[Land\nResidual]]/VLOOKUP(Table_Data_Table_1[[#This Row],[Item ID]],DataTable,6,FALSE),IF(Table_Data_Table_1[[#This Row],[Valuation Method]]=\"Allocation\",'Global Settings'!$H$20,\"\")))","v":"N/A"},{"$f":"IFERROR(ROUND(Table_Data_Table_1[[#This Row],[Resid\nSq Ft]]/43560,3),\"\")","v":0.60899999999999999},{"$f":"IF(Table_Data_Table_1[[#This Row],[Item ID]]=\"\",\"\",IFERROR(VLOOKUP(Table_Data_Table_1[[#This Row],[Item ID]],DataTable,10,FALSE)-VLOOKUP(Table_Data_Table_1[[#This Row],[Item ID]],DataTable,12,FALSE),\"\"))","v":26528.04},{"$f":"IFERROR(Table_Data_Table_1[[#This Row],[Land\nResidual]]/Table_Data_Table_1[[#This Row],[Resid\nAcre]],\"\")","v":32840.722495894908},{"$f":"IFERROR(ROUND(Table_Data_Table_1[[#This Row],[Land\nResidual]]/Table_Data_Table_1[[#This Row],[Resid\nSq Ft]],2),\"\")","v":0.75},{"$f":"IF(Table_Data_Table_1[[#This Row],[Item ID]]=\"\",\"\",ROUND(DAYS360(Table_Data_Table_1[[#This Row],[Sale Date]],'Global Settings'!$H$5)/30,0))","v":154},{"$f":"IFERROR(IF(AND(Table_Data_Table_1[[#This Row],[Months To\nMid-Point]]<12.01,Table_Data_Table_1[[#This Row],[Months To\nMid-Point]]>-13),0,(Table_Data_Table_1[[#This Row],[Months To\nMid-Point]]*'Global Settings'!$H$6)),\"\")","v":0.2414105096914903},{"$f":"IFERROR(Table_Data_Table_1[[#This Row],[Land\nResidual]]*(Table_Data_Table_1[[#This Row],[Time\nAdjust]]+1),\"\")","v":24828.210193829804},{"$f":"IFERROR(Table_Data_Table_1[[#This Row],[Adjusted\nSale Price]]/Table_Data_Table_1[[#This Row],[Resid\nAcre]],\"\")","v":40768.818052265691},{"$f":"IFERROR(ROUND(Table_Data_Table_1[[#This Row],[Adjusted\nSale Price]]/Table_Data_Table_1[[#This Row],[Resid\nSq Ft]],2),\"\")","v":0.94},{"$f":"IFERROR(IF(VLOOKUP(Table_Data_Table_1[[#This Row],[Item ID]],DataTable,11,FALSE)=0,\"N/A\",Table_Data_Table_1[[#This Row],[Adjusted\nSale Price]]/VLOOKUP(Table_Data_Table_1[[#This Row],[Item ID]],DataTable,11,FALSE)),\"\")","v":74.559189771260677},{"$f":"IF(IFERROR(VLOOKUP(Table_Data_Table_1[[#This Row],[Item ID]],DataTable,17,FALSE),\"\")=0,\"\",IFERROR(VLOOKUP(Table_Data_Table_1[[#This Row],[Item ID]],DataTable,17,FALSE),\"\"))","v":""}]
["5-00Abs2741-400","Abstraction",{"$f":"IF(Table_Data_Table_1[[#This Row],[Item ID]]=\"\",\"\",IFERROR(VLOOKUP(Table_Data_Table_1[[#This Row],[Item ID]],DataTable,16,FALSE),\"\"))","v":0},"34-204-090-000-075-00",42741,40000,14364,{"$f":"IF(Table_Data_Table_1[[#This Row],[Valuation Method]]=\"Vacant\",VLOOKUP(Table_Data_Table_1[[#This Row],[Item ID]],DataTable,6,FALSE)-VLOOKUP(Table_Data_Table_1[[#This Row],[Item ID]],DataTable,13,FALSE),IF(Table_Data_Table_1[[#This Row],[Valuation Method]]=\"Abstraction\",VLOOKUP(Table_Data_Table_1[[#This Row],[Item ID]],DataTable,6,FALSE)-VLOOKUP(Table_Data_Table_1[[#This Row],[Item ID]],DataTable,13,FALSE),IF(Table_Data_Table_1[[#This Row],[Valuation Method]]=\"Allocation\",VLOOKUP(Table_Data_Table_1[[#This Row],[Item ID]],DataTable,6,FALSE)*I33,\"\")))","v":25636},{"$f":"IF(Table_Data_Table_1[[#This Row],[Valuation Method]]=\"Vacant\",\"N/A\",IF(Table_Data_Table_1[[#This Row],[Valuation Method]]=\"Abstraction\",Table_Data_Table_1[[#This Row],[Land\nResidual]]/VLOOKUP(Table_Data_Table_1[[#This Row],[Item ID]],DataTable,6,FALSE),IF(Table_Data_Table_1[[#This Row],[Valuation Method]]=\"Allocation\",'Global Settings'!$H$20,\"\")))","v":0.64090000000000003},{"$f":"IFERROR(ROUND(Table_Data_Table_1[[#This Row],[Resid\nSq Ft]]/43560,3),\"\")","v":0.48699999999999999},{"$f":"IF(Table_Data_Table_1[[#This Row],[Item ID]]=\"\",\"\",IFERROR(VLOOKUP(Table_Data_Table_1[[#This Row],[Item ID]],DataTable,10,FALSE)-VLOOKUP(Table_Data_Table_1[[#This Row],[Item ID]],DataTable,12,FALSE),\"\"))","v":21213.72},{"$f":"IFERROR(Table_Data_Table_1[[#This Row],[Land\nResidual]]/Table_Data_Table_1[[#This Row],[Resid\nAcre]],\"\")","v":52640.657084188912},{"$f":"IFERROR(ROUND(Table_Data_Table_1[[#This Row],[Land\nResidual]]/Table_Data_Table_1[[#This Row],[Resid\nSq Ft]],2),\"\")","v":1.21},{"$f":"IF(Table_Data_Table_1[[#This Row],[Item ID]]=\"\",\"\",ROUND(DAYS360(Table_Data_Table_1[[#This Row],[Sale Date]],'Global Settings'!$H$5)/30,0))","v":75},{"$f":"IFERROR(IF(AND(Table_Data_Table_1[[#This Row],[Months To\nMid-Point]]<12.01,Table_Data_Table_1[[#This Row],[Months To\nMid-Point]]>-13),0,(Table_Data_Table_1[[#This Row],[Months To\nMid-Point]]*'Global Settings'!$H$6)),\"\")","v":0.11757005342118035},{"$f":"IFERROR(Table_Data_Table_1[[#This Row],[Land\nResidual]]*(Table_Data_Table_1[[#This Row],[Time\nAdjust]]+1),\"\")","v":28650.025889505378},{"$f":"IFERROR(Table_Data_Table_1[[#This Row],[Adjusted\nSale Price]]/Table_Data_Table_1[[#This Row],[Resid\nAcre]],\"\")","v":58829.621949703032},{"$f":"IFERROR(ROUND(Table_Data_Table_1[[#This Row],[Adjusted\nSale Price]]/Table_Data_Table_1[[#This Row],[Resid\nSq Ft]],2),\"\")","v":1.35},{"$f":"IFERROR(IF(VLOOKUP(Table_Data_Table_1[[#This Row],[Item ID]],DataTable,11,FALSE)=0,\"N/A\",Table_Data_Table_1[[#This Row],[Adjusted\nSale Price]]/VLOOKUP(Table_Data_Table_1[[#This Row],[Item ID]],DataTable,11,FALSE)),\"\")","v":191.00017259670253},{"$f":"IF(IFERROR(VLOOKUP(Table_Data_Table_1[[#This Row],[Item ID]],DataTable,17,FALSE),\"\")=0,\"\",IFERROR(VLOOKUP(Table_Data_Table_1[[#This Row],[Item ID]],DataTable,17,FALSE),\"\"))","v":""}]
["5-00Abs2789-718","Abstraction",{"$f":"IF(Table_Data_Table_1[[#This Row],[Item ID]]=\"\",\"\",IFERROR(VLOOKUP(Table_Data_Table_1[[#This Row],[Item ID]],DataTable,16,FALSE),\"\"))","v":1},"34-204-600-000-405-00",42789,718248,520238,{"$f":"IF(Table_Data_Table_1[[#This Row],[Valuation Method]]=\"Vacant\",VLOOKUP(Table_Data_Table_1[[#This Row],[Item ID]],DataTable,6,FALSE)-VLOOKUP(Table_Data_Table_1[[#This Row],[Item ID]],DataTable,13,FALSE),IF(Table_Data_Table_1[[#This Row],[Valuation Method]]=\"Abstraction\",VLOOKUP(Table_Data_Table_1[[#This Row],[Item ID]],DataTable,6,FALSE)-VLOOKUP(Table_Data_Table_1[[#This Row],[Item ID]],DataTable,13,FALSE),IF(Table_Data_Table_1[[#This Row],[Valuation Method]]=\"Allocation\",VLOOKUP(Table_Data_Table_1[[#This Row],[Item ID]],DataTable,6,FALSE)*I34,\"\")))","v":198010},{"$f":"IF(Table_Data_Table_1[[#This Row],[Valuation Method]]=\"Vacant\",\"N/A\",IF(Table_Data_Table_1[[#This Row],[Valuation Method]]=\"Abstraction\",Table_Data_Table_1[[#This Row],[Land\nResidual]]/VLOOKUP(Table_Data_Table_1[[#This Row],[Item ID]],DataTable,6,FALSE),IF(Table_Data_Table_1[[#This Row],[Valuation Method]]=\"Allocation\",'Global Settings'!$H$20,\"\")))","v":0.27568472171172076},{"$f":"IFERROR(ROUND(Table_Data_Table_1[[#This Row],[Resid\nSq Ft]]/43560,3),\"\")","v":3.38},{"$f":"IF(Table_Data_Table_1[[#This Row],[Item ID]]=\"\",\"\",IFERROR(VLOOKUP(Table_Data_Table_1[[#This Row],[Item ID]],DataTable,10,FALSE)-VLOOKUP(Table_Data_Table_1[[#This Row],[Item ID]],DataTable,12,FALSE),\"\"))","v":147232.80000000002},{"$f":"IFERROR(Table_Data_Table_1[[#This Row],[Land\nResidual]]/Table_Data_Table_1[[#This Row],[Resid\nAcre]],\"\")","v":58582.840236686396},{"$f":"IFERROR(ROUND(Table_Data_Table_1[[#This Row],[Land\nResidual]]/Table_Data_Table_1[[#This Row],[Resid\nSq Ft]],2),\"\")","v":1.34},{"$f":"IF(Table_Data_Table_1[[#This Row],[Item ID]]=\"\",\"\",ROUND(DAYS360(Table_Data_Table_1[[#This Row],[Sale Date]],'Global Settings'!$H$5)/30,0))","v":73},{"$f":"IFERROR(IF(AND(Table_Data_Table_1[[#This Row],[Months To\nMid-Point]]<12.01,Table_Data_Table_1[[#This Row],[Months To\nMid-Point]]>-13),0,(Table_Data_Table_1[[#This Row],[Months To\nMid-Point]]*'Global Settings'!$H$6)),\"\")","v":0.11443485199661554},{"$f":"IFERROR(Table_Data_Table_1[[#This Row],[Land\nResidual]]*(Table_Data_Table_1[[#This Row],[Time\nAdjust]]+1),\"\")","v":220669.24504384986},{"$f":"IFERROR(Table_Data_Table_1[[#This Row],[Adjusted\nSale Price]]/Table_Data_Table_1[[#This Row],[Resid\nAcre]],\"\")","v":65286.758888712982},{"$f":"IFERROR(ROUND(Table_Data_Table_1[[#This Row],[Adjusted\nSale Price]]/Table_Data_Table_1[[#This Row],[Resid\nSq Ft]],2),\"\")","v":1.5},{"$f":"IFERROR(IF(VLOOKUP(Table_Data_Table_1[[#This Row],[Item ID]],DataTable,11,FALSE)=0,\"N/A\",Table_Data_Table_1[[#This Row],[Adjusted\nSale Price]]/VLOOKUP(Table_Data_Table_1[[#This Row],[Item ID]],DataTable,11,FALSE)),\"\")","v":1201.4441391835894},{"$f":"IF(IFERROR(VLOOKUP(Table_Data_Table_1[[#This Row],[Item ID]],DataTable,17,FALSE),\"\")=0,\"\",IFERROR(VLOOKUP(Table_Data_Table_1[[#This Row],[Item ID]],DataTable,17,FALSE),\"\"))","v":""}]
["5-17Abs2585-650","Abstraction",{"$f":"IF(Table_Data_Table_1[[#This Row],[Item ID]]=\"\",\"\",IFERROR(VLOOKUP(Table_Data_Table_1[[#This Row],[Item ID]],DataTable,16,FALSE),\"\"))","v":1},"34-201-030-000-045-17",42585,650418,572709,{"$f":"IF(Table_Data_Table_1[[#This Row],[Valuation Method]]=\"Vacant\",VLOOKUP(Table_Data_Table_1[[#This Row],[Item ID]],DataTable,6,FALSE)-VLOOKUP(Table_Data_Table_1[[#This Row],[Item ID]],DataTable,13,FALSE),IF(Table_Data_Table_1[[#This Row],[Valuation Method]]=\"Abstraction\",VLOOKUP(Table_Data_Table_1[[#This Row],[Item ID]],DataTable,6,FALSE)-VLOOKUP(Table_Data_Table_1[[#This Row],[Item ID]],DataTable,13,FALSE),IF(Table_Data_Table_1[[#This Row],[Valuation Method]]=\"Allocation\",VLOOKUP(Table_Data_Table_1[[#This Row],[Item ID]],DataTable,6,FALSE)*I35,\"\")))","v":77709},{"$f":"IF(Table_Data_Table_1[[#This Row],[Valuation Method]]=\"Vacant\",\"N/A\",IF(Table_Data_Table_1[[#This Row],[Valuation Method]]=\"Abstraction\",Table_Data_Table_1[[#This Row],[Land\nResidual]]/VLOOKUP(Table_Data_Table_1[[#This Row],[Item ID]],DataTable,6,FALSE),IF(Table_Data_Table_1[[#This Row],[Valuation Method]]=\"Allocation\",'Global Settings'!$H$20,\"\")))","v":0.11947547577096575},{"$f":"IFERROR(ROUND(Table_Data_Table_1[[#This Row],[Resid\nSq Ft]]/43560,3),\"\")","v":0.99099999999999999},{"$f":"IF(Table_Data_Table_1[[#This Row],[Item ID]]=\"\",\"\",IFERROR(VLOOKUP(Table_Data_Table_1[[#This Row],[Item ID]],DataTable,10,FALSE)-VLOOKUP(Table_Data_Table_1[[#This Row],[Item ID]],DataTable,12,FALSE),\"\"))","v":43167.96},{"$f":"IFERROR(Table_Data_Table_1[[#This Row],[Land\nResidual]]/Table_Data_Table_1[[#This Row],[Resid\nAcre]],\"\")","v":78414.732593340057},{"$f":"IFERROR(ROUND(Table_Data_Table_1[[#This Row],[Land\nResidual]]/Table_Data_Table_1[[#This Row],[Resid\nSq Ft]],2),\"\")","v":1.8},{"$f":"IF(Table_Data_Table_1[[#This Row],[Item ID]]=\"\",\"\",ROUND(DAYS360(Table_Data_Table_1[[#This Row],[Sale Date]],'Global Settings'!$H$5)/30,0))","v":80},{"$f":"IFERROR(IF(AND(Table_Data_Table_1[[#This Row],[Months To\nMid-Point]]<12.01,Table_Data_Table_1[[#This Row],[Months To\nMid-Point]]>-13),0,(Table_Data_Table_1[[#This Row],[Months To\nMid-Point]]*'Global Settings'!$H$6)),\"\")","v":0.12540805698259239},{"$f":"IFERROR(Table_Data_Table_1[[#This Row],[Land\nResidual]]*(Table_Data_Table_1[[#This Row],[Time\nAdjust]]+1),\"\")","v":87454.334700060266},{"$f":"IFERROR(Table_Data_Table_1[[#This Row],[Adjusted\nSale Price]]/Table_Data_Table_1[[#This Row],[Resid\nAcre]],\"\")","v":88248.571846680396},{"$f":"IFERROR(ROUND(Table_Data_Table_1[[#This Row],[Adjusted\nSale Price]]/Table_Data_Table_1[[#This Row],[Resid\nSq Ft]],2),\"\")","v":2.0299999999999998},{"$f":"IFERROR(IF(VLOOKUP(Table_Data_Table_1[[#This Row],[Item ID]],DataTable,11,FALSE)=0,\"N/A\",Table_Data_Table_1[[#This Row],[Adjusted\nSale Price]]/VLOOKUP(Table_Data_Table_1[[#This Row],[Item ID]],DataTable,11,FALSE)),\"\")","v":441.68855909121345},{"$f":"IF(IFERROR(VLOOKUP(Table_Data_Table_1[[#This Row],[Item ID]],DataTable,17,FALSE),\"\")=0,\"\",IFERROR(VLOOKUP(Table_Data_Table_1[[#This Row],[Item ID]],DataTable,17,FALSE),\"\"))","v":""}]
["5-00All2789-718","Allocation",{"$f":"IF(Table_Data_Table_1[[#This Row],[Item ID]]=\"\",\"\",IFERROR(VLOOKUP(Table_Data_Table_1[[#This Row],[Item ID]],DataTable,16,FALSE),\"\"))","v":1},"34-204-600-000-405-00",42789,718248,0,{"$f":"IF(Table_Data_Table_1[[#This Row],[Valuation Method]]=\"Vacant\",VLOOKUP(Table_Data_Table_1[[#This Row],[Item ID]],DataTable,6,FALSE)-VLOOKUP(Table_Data_Table_1[[#This Row],[Item ID]],DataTable,13,FALSE),IF(Table_Data_Table_1[[#This Row],[Valuation Method]]=\"Abstraction\",VLOOKUP(Table_Data_Table_1[[#This Row],[Item ID]],DataTable,6,FALSE)-VLOOKUP(Table_Data_Table_1[[#This Row],[Item ID]],DataTable,13,FALSE),IF(Table_Data_Table_1[[#This Row],[Valuation Method]]=\"Allocation\",VLOOKUP(Table_Data_Table_1[[#This Row],[Item ID]],DataTable,6,FALSE)*I36,\"\")))","v":290387.66639999999},{"$f":"IF(Table_Data_Table_1[[#This Row],[Valuation Method]]=\"Vacant\",\"N/A\",IF(Table_Data_Table_1[[#This Row],[Valuation Method]]=\"Abstraction\",Table_Data_Table_1[[#This Row],[Land\nResidual]]/VLOOKUP(Table_Data_Table_1[[#This Row],[Item ID]],DataTable,6,FALSE),IF(Table_Data_Table_1[[#This Row],[Valuation Method]]=\"Allocation\",'Global Settings'!$H$20,\"\")))","v":0.40429999999999999},{"$f":"IFERROR(ROUND(Table_Data_Table_1[[#This Row],[Resid\nSq Ft]]/43560,3),\"\")","v":3.38},{"$f":"IF(Table_Data_Table_1[[#This Row],[Item ID]]=\"\",\"\",IFERROR(VLOOKUP(Table_Data_Table_1[[#This Row],[Item ID]],DataTable,10,FALSE)-VLOOKUP(Table_Data_Table_1[[#This Row],[Item ID]],DataTable,12,FALSE),\"\"))","v":147232.80000000002},{"$f":"IFERROR(Table_Data_Table_1[[#This Row],[Land\nResidual]]/Table_Data_Table_1[[#This Row],[Resid\nAcre]],\"\")","v":85913.510769230765},{"$f":"IFERROR(ROUND(Table_Data_Table_1[[#This Row],[Land\nResidual]]/Table_Data_Table_1[[#This Row],[Resid\nSq Ft]],2),\"\")","v":1.97},{"$f":"IF(Table_Data_Table_1[[#This Row],[Item ID]]=\"\",\"\",ROUND(DAYS360(Table_Data_Table_1[[#This Row],[Sale Date]],'Global Settings'!$H$5)/30,0))","v":73},{"$f":"IFERROR(IF(AND(Table_Data_Table_1[[#This Row],[Months To\nMid-Point]]<12.01,Table_Data_Table_1[[#This Row],[Months To\nMid-Point]]>-13),0,(Table_Data_Table_1[[#This Row],[Months To\nMid-Point]]*'Global Settings'!$H$6)),\"\")","v":0.11443485199661554},{"$f":"IFERROR(Table_Data_Table_1[[#This Row],[Land\nResidual]]*(Table_Data_Table_1[[#This Row],[Time\nAdjust]]+1),\"\")","v":323618.13602612657},{"$f":"IFERROR(Table_Data_Table_1[[#This Row],[Adjusted\nSale Price]]/Table_Data_Table_1[[#This Row],[Resid\nAcre]],\"\")","v":95745.010658617335},{"$f":"IFERROR(ROUND(Table_Data_Table_1[[#This Row],[Adjusted\nSale Price]]/Table_Data_Table_1[[#This Row],[Resid\nSq Ft]],2),\"\")","v":2.2000000000000002},{"$f":"IFERROR(IF(VLOOKUP(Table_Data_Table_1[[#This Row],[Item ID]],DataTable,11,FALSE)=0,\"N/A\",Table_Data_Table_1[[#This Row],[Adjusted\nSale Price]]/VLOOKUP(Table_Data_Table_1[[#This Row],[Item ID]],DataTable,11,FALSE)),\"\")","v":1761.9542441668568},{"$f":"IF(IFERROR(VLOOKUP(Table_Data_Table_1[[#This Row],[Item ID]],DataTable,17,FALSE),\"\")=0,\"\",IFERROR(VLOOKUP(Table_Data_Table_1[[#This Row],[Item ID]],DataTable,17,FALSE),\"\"))","v":""}]
["5-00All1563-200","Allocation",{"$f":"IF(Table_Data_Table_1[[#This Row],[Item ID]]=\"\",\"\",IFERROR(VLOOKUP(Table_Data_Table_1[[#This Row],[Item ID]],DataTable,16,FALSE),\"\"))","v":1},"34-060-006-000-095-00",41563,200000,33808,{"$f":"IF(Table_Data_Table_1[[#This Row],[Valuation Method]]=\"Vacant\",VLOOKUP(Table_Data_Table_1[[#This Row],[Item ID]],DataTable,6,FALSE)-VLOOKUP(Table_Data_Table_1[[#This Row],[Item ID]],DataTable,13,FALSE),IF(Table_Data_Table_1[[#This Row],[Valuation Method]]=\"Abstraction\",VLOOKUP(Table_Data_Table_1[[#This Row],[Item ID]],DataTable,6,FALSE)-VLOOKUP(Table_Data_Table_1[[#This Row],[Item ID]],DataTable,13,FALSE),IF(Table_Data_Table_1[[#This Row],[Valuation Method]]=\"Allocation\",VLOOKUP(Table_Data_Table_1[[#This Row],[Item ID]],DataTable,6,FALSE)*I37,\"\")))","v":80860},{"$f":"IF(Table_Data_Table_1[[#This Row],[Valuation Method]]=\"Vacant\",\"N/A\",IF(Table_Data_Table_1[[#This Row],[Valuation Method]]=\"Abstraction\",Table_Data_Table_1[[#This Row],[Land\nResidual]]/VLOOKUP(Table_Data_Table_1[[#This Row],[Item ID]],DataTable,6,FALSE),IF(Table_Data_Table_1[[#This Row],[Valuation Method]]=\"Allocation\",'Global Settings'!$H$20,\"\")))","v":0.40429999999999999},{"$f":"IFERROR(ROUND(Table_Data_Table_1[[#This Row],[Resid\nSq Ft]]/43560,3),\"\")","v":0.94399999999999995},{"$f":"IF(Table_Data_Table_1[[#This Row],[Item ID]]=\"\",\"\",IFERROR(VLOOKUP(Table_Data_Table_1[[#This Row],[Item ID]],DataTable,10,FALSE)-VLOOKUP(Table_Data_Table_1[[#This Row],[Item ID]],DataTable,12,FALSE),\"\"))","v":41131.839999999997},{"$f":"IFERROR(Table_Data_Table_1[[#This Row],[Land\nResidual]]/Table_Data_Table_1[[#This Row],[Resid\nAcre]],\"\")","v":85656.779661016961},{"$f":"IFERROR(ROUND(Table_Data_Table_1[[#This Row],[Land\nResidual]]/Table_Data_Table_1[[#This Row],[Resid\nSq Ft]],2),\"\")","v":1.97},{"$f":"IF(Table_Data_Table_1[[#This Row],[Item ID]]=\"\",\"\",ROUND(DAYS360(Table_Data_Table_1[[#This Row],[Sale Date]],'Global Settings'!$H$5)/30,0))","v":114},{"$f":"IFERROR(IF(AND(Table_Data_Table_1[[#This Row],[Months To\nMid-Point]]<12.01,Table_Data_Table_1[[#This Row],[Months To\nMid-Point]]>-13),0,(Table_Data_Table_1[[#This Row],[Months To\nMid-Point]]*'Global Settings'!$H$6)),\"\")","v":0.17870648120019414},{"$f":"IFERROR(Table_Data_Table_1[[#This Row],[Land\nResidual]]*(Table_Data_Table_1[[#This Row],[Time\nAdjust]]+1),\"\")","v":95310.2060698477},{"$f":"IFERROR(Table_Data_Table_1[[#This Row],[Adjusted\nSale Price]]/Table_Data_Table_1[[#This Row],[Resid\nAcre]],\"\")","v":100964.20134517766},{"$f":"IFERROR(ROUND(Table_Data_Table_1[[#This Row],[Adjusted\nSale Price]]/Table_Data_Table_1[[#This Row],[Resid\nSq Ft]],2),\"\")","v":2.3199999999999998},{"$f":"IFERROR(IF(VLOOKUP(Table_Data_Table_1[[#This Row],[Item ID]],DataTable,11,FALSE)=0,\"N/A\",Table_Data_Table_1[[#This Row],[Adjusted\nSale Price]]/VLOOKUP(Table_Data_Table_1[[#This Row],[Item ID]],DataTable,11,FALSE)),\"\")","v":405.57534497807529},{"$f":"IF(IFERROR(VLOOKUP(Table_Data_Table_1[[#This Row],[Item ID]],DataTable,17,FALSE),\"\")=0,\"\",IFERROR(VLOOKUP(Table_Data_Table_1[[#This Row],[Item ID]],DataTable,17,FALSE),\"\"))","v":""}]
["0-01Vac4434-105","Vacant",{"$f":"IF(Table_Data_Table_1[[#This Row],[Item ID]]=\"\",\"\",IFERROR(VLOOKUP(Table_Data_Table_1[[#This Row],[Item ID]],DataTable,16,FALSE),\"\"))","v":1},"34-060-031-000-140-01",44434,105000,0,{"$f":"IF(Table_Data_Table_1[[#This Row],[Valuation Method]]=\"Vacant\",VLOOKUP(Table_Data_Table_1[[#This Row],[Item ID]],DataTable,6,FALSE)-VLOOKUP(Table_Data_Table_1[[#This Row],[Item ID]],DataTable,13,FALSE),IF(Table_Data_Table_1[[#This Row],[Valuation Method]]=\"Abstraction\",VLOOKUP(Table_Data_Table_1[[#This Row],[Item ID]],DataTable,6,FALSE)-VLOOKUP(Table_Data_Table_1[[#This Row],[Item ID]],DataTable,13,FALSE),IF(Table_Data_Table_1[[#This Row],[Valuation Method]]=\"Allocation\",VLOOKUP(Table_Data_Table_1[[#This Row],[Item ID]],DataTable,6,FALSE)*I38,\"\")))","v":105000},{"$f":"IF(Table_Data_Table_1[[#This Row],[Valuation Method]]=\"Vacant\",\"N/A\",IF(Table_Data_Table_1[[#This Row],[Valuation Method]]=\"Abstraction\",Table_Data_Table_1[[#This Row],[Land\nResidual]]/VLOOKUP(Table_Data_Table_1[[#This Row],[Item ID]],DataTable,6,FALSE),IF(Table_Data_Table_1[[#This Row],[Valuation Method]]=\"Allocation\",'Global Settings'!$H$20,\"\")))","v":"N/A"},{"$f":"IFERROR(ROUND(Table_Data_Table_1[[#This Row],[Resid\nSq Ft]]/43560,3),\"\")","v":0.81799999999999995},{"$f":"IF(Table_Data_Table_1[[#This Row],[Item ID]]=\"\",\"\",IFERROR(VLOOKUP(Table_Data_Table_1[[#This Row],[Item ID]],DataTable,10,FALSE)-VLOOKUP(Table_Data_Table_1[[#This Row],[Item ID]],DataTable,12,FALSE),\"\"))","v":35632.080000000002},{"$f":"IFERROR(Table_Data_Table_1[[#This Row],[Land\nResidual]]/Table_Data_Table_1[[#This Row],[Resid\nAcre]],\"\")","v":128361.85819070906},{"$f":"IFERROR(ROUND(Table_Data_Table_1[[#This Row],[Land\nResidual]]/Table_Data_Table_1[[#This Row],[Resid\nSq Ft]],2),\"\")","v":2.95},{"$f":"IF(Table_Data_Table_1[[#This Row],[Item ID]]=\"\",\"\",ROUND(DAYS360(Table_Data_Table_1[[#This Row],[Sale Date]],'Global Settings'!$H$5)/30,0))","v":19},{"$f":"IFERROR(IF(AND(Table_Data_Table_1[[#This Row],[Months To\nMid-Point]]<12.01,Table_Data_Table_1[[#This Row],[Months To\nMid-Point]]>-13),0,(Table_Data_Table_1[[#This Row],[Months To\nMid-Point]]*'Global Settings'!$H$6)),\"\")","v":2.9784413533365688E-2},{"$f":"IFERROR(Table_Data_Table_1[[#This Row],[Land\nResidual]]*(Table_Data_Table_1[[#This Row],[Time\nAdjust]]+1),\"\")","v":108127.36342100339},{"$f":"IFERROR(Table_Data_Table_1[[#This Row],[Adjusted\nSale Price]]/Table_Data_Table_1[[#This Row],[Resid\nAcre]],\"\")","v":132185.04085697237},{"$f":"IFERROR(ROUND(Table_Data_Table_1[[#This Row],[Adjusted\nSale Price]]/Table_Data_Table_1[[#This Row],[Resid\nSq Ft]],2),\"\")","v":3.03},{"$f":"IFERROR(IF(VLOOKUP(Table_Data_Table_1[[#This Row],[Item ID]],DataTable,11,FALSE)=0,\"N/A\",Table_Data_Table_1[[#This Row],[Adjusted\nSale Price]]/VLOOKUP(Table_Data_Table_1[[#This Row],[Item ID]],DataTable,11,FALSE)),\"\")","v":901.06136184169497},{"$f":"IF(IFERROR(VLOOKUP(Table_Data_Table_1[[#This Row],[Item ID]],DataTable,17,FALSE),\"\")=0,\"\",IFERROR(VLOOKUP(Table_Data_Table_1[[#This Row],[Item ID]],DataTable,17,FALSE),\"\"))","v":""}]
["0-10Abs3088-150","Abstraction",{"$f":"IF(Table_Data_Table_1[[#This Row],[Item ID]]=\"\",\"\",IFERROR(VLOOKUP(Table_Data_Table_1[[#This Row],[Item ID]],DataTable,16,FALSE),\"\"))","v":1},"34-401-250-000-350-10",43088,150000,113419,{"$f":"IF(Table_Data_Table_1[[#This Row],[Valuation Method]]=\"Vacant\",VLOOKUP(Table_Data_Table_1[[#This Row],[Item ID]],DataTable,6,FALSE)-VLOOKUP(Table_Data_Table_1[[#This Row],[Item ID]],DataTable,13,FALSE),IF(Table_Data_Table_1[[#This Row],[Valuation Method]]=\"Abstraction\",VLOOKUP(Table_Data_Table_1[[#This Row],[Item ID]],DataTable,6,FALSE)-VLOOKUP(Table_Data_Table_1[[#This Row],[Item ID]],DataTable,13,FALSE),IF(Table_Data_Table_1[[#This Row],[Valuation Method]]=\"Allocation\",VLOOKUP(Table_Data_Table_1[[#This Row],[Item ID]],DataTable,6,FALSE)*I39,\"\")))","v":36581},{"$f":"IF(Table_Data_Table_1[[#This Row],[Valuation Method]]=\"Vacant\",\"N/A\",IF(Table_Data_Table_1[[#This Row],[Valuation Method]]=\"Abstraction\",Table_Data_Table_1[[#This Row],[Land\nResidual]]/VLOOKUP(Table_Data_Table_1[[#This Row],[Item ID]],DataTable,6,FALSE),IF(Table_Data_Table_1[[#This Row],[Valuation Method]]=\"Allocation\",'Global Settings'!$H$20,\"\")))","v":0.24387333333333333},{"$f":"IFERROR(ROUND(Table_Data_Table_1[[#This Row],[Resid\nSq Ft]]/43560,3),\"\")","v":0.27300000000000002},{"$f":"IF(Table_Data_Table_1[[#This Row],[Item ID]]=\"\",\"\",IFERROR(VLOOKUP(Table_Data_Table_1[[#This Row],[Item ID]],DataTable,10,FALSE)-VLOOKUP(Table_Data_Table_1[[#This Row],[Item ID]],DataTable,12,FALSE),\"\"))","v":11891.880000000001},{"$f":"IFERROR(Table_Data_Table_1[[#This Row],[Land\nResidual]]/Table_Data_Table_1[[#This Row],[Resid\nAcre]],\"\")","v":133996.33699633699},{"$f":"IFERROR(ROUND(Table_Data_Table_1[[#This Row],[Land\nResidual]]/Table_Data_Table_1[[#This Row],[Resid\nSq Ft]],2),\"\")","v":3.08},{"$f":"IF(Table_Data_Table_1[[#This Row],[Item ID]]=\"\",\"\",ROUND(DAYS360(Table_Data_Table_1[[#This Row],[Sale Date]],'Global Settings'!$H$5)/30,0))","v":63},{"$f":"IFERROR(IF(AND(Table_Data_Table_1[[#This Row],[Months To\nMid-Point]]<12.01,Table_Data_Table_1[[#This Row],[Months To\nMid-Point]]>-13),0,(Table_Data_Table_1[[#This Row],[Months To\nMid-Point]]*'Global Settings'!$H$6)),\"\")","v":9.8758844873791496E-2},{"$f":"IFERROR(Table_Data_Table_1[[#This Row],[Land\nResidual]]*(Table_Data_Table_1[[#This Row],[Time\nAdjust]]+1),\"\")","v":40193.697304328169},{"$f":"IFERROR(Table_Data_Table_1[[#This Row],[Adjusted\nSale Price]]/Table_Data_Table_1[[#This Row],[Resid\nAcre]],\"\")","v":147229.66045541453},{"$f":"IFERROR(ROUND(Table_Data_Table_1[[#This Row],[Adjusted\nSale Price]]/Table_Data_Table_1[[#This Row],[Resid\nSq Ft]],2),\"\")","v":3.38},{"$f":"IFERROR(IF(VLOOKUP(Table_Data_Table_1[[#This Row],[Item ID]],DataTable,11,FALSE)=0,\"N/A\",Table_Data_Table_1[[#This Row],[Adjusted\nSale Price]]/VLOOKUP(Table_Data_Table_1[[#This Row],[Item ID]],DataTable,11,FALSE)),\"\")","v":321.54957843462535},{"$f":"IF(IFERROR(VLOOKUP(Table_Data_Table_1[[#This Row],[Item ID]],DataTable,17,FALSE),\"\")=0,\"\",IFERROR(VLOOKUP(Table_Data_Table_1[[#This Row],[Item ID]],DataTable,17,FALSE),\"\"))","v":""}]
["5-11Abs3250-129","Abstraction",{"$f":"IF(Table_Data_Table_1[[#This Row],[Item ID]]=\"\",\"\",IFERROR(VLOOKUP(Table_Data_Table_1[[#This Row],[Item ID]],DataTable,16,FALSE),\"\"))","v":1},"34-060-031-000-045-11",43250,1293750,803414,{"$f":"IF(Table_Data_Table_1[[#This Row],[Valuation Method]]=\"Vacant\",VLOOKUP(Table_Data_Table_1[[#This Row],[Item ID]],DataTable,6,FALSE)-VLOOKUP(Table_Data_Table_1[[#This Row],[Item ID]],DataTable,13,FALSE),IF(Table_Data_Table_1[[#This Row],[Valuation Method]]=\"Abstraction\",VLOOKUP(Table_Data_Table_1[[#This Row],[Item ID]],DataTable,6,FALSE)-VLOOKUP(Table_Data_Table_1[[#This Row],[Item ID]],DataTable,13,FALSE),IF(Table_Data_Table_1[[#This Row],[Valuation Method]]=\"Allocation\",VLOOKUP(Table_Data_Table_1[[#This Row],[Item ID]],DataTable,6,FALSE)*I40,\"\")))","v":490336},{"$f":"IF(Table_Data_Table_1[[#This Row],[Valuation Method]]=\"Vacant\",\"N/A\",IF(Table_Data_Table_1[[#This Row],[Valuation Method]]=\"Abstraction\",Table_Data_Table_1[[#This Row],[Land\nResidual]]/VLOOKUP(Table_Data_Table_1[[#This Row],[Item ID]],DataTable,6,FALSE),IF(Table_Data_Table_1[[#This Row],[Valuation Method]]=\"Allocation\",'Global Settings'!$H$20,\"\")))","v":0.37900367149758452},{"$f":"IFERROR(ROUND(Table_Data_Table_1[[#This Row],[Resid\nSq Ft]]/43560,3),\"\")","v":3.1640000000000001},{"$f":"IF(Table_Data_Table_1[[#This Row],[Item ID]]=\"\",\"\",IFERROR(VLOOKUP(Table_Data_Table_1[[#This Row],[Item ID]],DataTable,10,FALSE)-VLOOKUP(Table_Data_Table_1[[#This Row],[Item ID]],DataTable,12,FALSE),\"\"))","v":137823.83999999997},{"$f":"IFERROR(Table_Data_Table_1[[#This Row],[Land\nResidual]]/Table_Data_Table_1[[#This Row],[Resid\nAcre]],\"\")","v":154973.45132743364},{"$f":"IFERROR(ROUND(Table_Data_Table_1[[#This Row],[Land\nResidual]]/Table_Data_Table_1[[#This Row],[Resid\nSq Ft]],2),\"\")","v":3.56},{"$f":"IF(Table_Data_Table_1[[#This Row],[Item ID]]=\"\",\"\",ROUND(DAYS360(Table_Data_Table_1[[#This Row],[Sale Date]],'Global Settings'!$H$5)/30,0))","v":58},{"$f":"IFERROR(IF(AND(Table_Data_Table_1[[#This Row],[Months To\nMid-Point]]<12.01,Table_Data_Table_1[[#This Row],[Months To\nMid-Point]]>-13),0,(Table_Data_Table_1[[#This Row],[Months To\nMid-Point]]*'Global Settings'!$H$6)),\"\")","v":9.0920841312379472E-2},{"$f":"IFERROR(Table_Data_Table_1[[#This Row],[Land\nResidual]]*(Table_Data_Table_1[[#This Row],[Time\nAdjust]]+1),\"\")","v":534917.76164574688},{"$f":"IFERROR(Table_Data_Table_1[[#This Row],[Adjusted\nSale Price]]/Table_Data_Table_1[[#This Row],[Resid\nAcre]],\"\")","v":169063.76790320696},{"$f":"IFERROR(ROUND(Table_Data_Table_1[[#This Row],[Adjusted\nSale Price]]/Table_Data_Table_1[[#This Row],[Resid\nSq Ft]],2),\"\")","v":3.88},{"$f":"IFERROR(IF(VLOOKUP(Table_Data_Table_1[[#This Row],[Item ID]],DataTable,11,FALSE)=0,\"N/A\",Table_Data_Table_1[[#This Row],[Adjusted\nSale Price]]/VLOOKUP(Table_Data_Table_1[[#This Row],[Item ID]],DataTable,11,FALSE)),\"\")","v":1024.5896445865515},{"$f":"IF(IFERROR(VLOOKUP(Table_Data_Table_1[[#This Row],[Item ID]],DataTable,17,FALSE),\"\")=0,\"\",IFERROR(VLOOKUP(Table_Data_Table_1[[#This Row],[Item ID]],DataTable,17,FALSE),\"\"))","v":""}]
["0-02All2403-300","Allocation",{"$f":"IF(Table_Data_Table_1[[#This Row],[Item ID]]=\"\",\"\",IFERROR(VLOOKUP(Table_Data_Table_1[[#This Row],[Item ID]],DataTable,16,FALSE),\"\"))","v":1},"34-110-006-000-040-02",42403,3000000,1526059,{"$f":"IF(Table_Data_Table_1[[#This Row],[Valuation Method]]=\"Vacant\",VLOOKUP(Table_Data_Table_1[[#This Row],[Item ID]],DataTable,6,FALSE)-VLOOKUP(Table_Data_Table_1[[#This Row],[Item ID]],DataTable,13,FALSE),IF(Table_Data_Table_1[[#This Row],[Valuation Method]]=\"Abstraction\",VLOOKUP(Table_Data_Table_1[[#This Row],[Item ID]],DataTable,6,FALSE)-VLOOKUP(Table_Data_Table_1[[#This Row],[Item ID]],DataTable,13,FALSE),IF(Table_Data_Table_1[[#This Row],[Valuation Method]]=\"Allocation\",VLOOKUP(Table_Data_Table_1[[#This Row],[Item ID]],DataTable,6,FALSE)*I41,\"\")))","v":1212900},{"$f":"IF(Table_Data_Table_1[[#This Row],[Valuation Method]]=\"Vacant\",\"N/A\",IF(Table_Data_Table_1[[#This Row],[Valuation Method]]=\"Abstraction\",Table_Data_Table_1[[#This Row],[Land\nResidual]]/VLOOKUP(Table_Data_Table_1[[#This Row],[Item ID]],DataTable,6,FALSE),IF(Table_Data_Table_1[[#This Row],[Valuation Method]]=\"Allocation\",'Global Settings'!$H$20,\"\")))","v":0.40429999999999999},{"$f":"IFERROR(ROUND(Table_Data_Table_1[[#This Row],[Resid\nSq Ft]]/43560,3),\"\")","v":7.8159999999999998},{"$f":"IF(Table_Data_Table_1[[#This Row],[Item ID]]=\"\",\"\",IFERROR(VLOOKUP(Table_Data_Table_1[[#This Row],[Item ID]],DataTable,10,FALSE)-VLOOKUP(Table_Data_Table_1[[#This Row],[Item ID]],DataTable,12,FALSE),\"\"))","v":340468.4},{"$f":"IFERROR(Table_Data_Table_1[[#This Row],[Land\nResidual]]/Table_Data_Table_1[[#This Row],[Resid\nAcre]],\"\")","v":155181.67860798363},{"$f":"IFERROR(ROUND(Table_Data_Table_1[[#This Row],[Land\nResidual]]/Table_Data_Table_1[[#This Row],[Resid\nSq Ft]],2),\"\")","v":3.56},{"$f":"IF(Table_Data_Table_1[[#This Row],[Item ID]]=\"\",\"\",ROUND(DAYS360(Table_Data_Table_1[[#This Row],[Sale Date]],'Global Settings'!$H$5)/30,0))","v":86},{"$f":"IFERROR(IF(AND(Table_Data_Table_1[[#This Row],[Months To\nMid-Point]]<12.01,Table_Data_Table_1[[#This Row],[Months To\nMid-Point]]>-13),0,(Table_Data_Table_1[[#This Row],[Months To\nMid-Point]]*'Global Settings'!$H$6)),\"\")","v":0.1348136612562868},{"$f":"IFERROR(Table_Data_Table_1[[#This Row],[Land\nResidual]]*(Table_Data_Table_1[[#This Row],[Time\nAdjust]]+1),\"\")","v":1376415.4897377505},{"$f":"IFERROR(Table_Data_Table_1[[#This Row],[Adjusted\nSale Price]]/Table_Data_Table_1[[#This Row],[Resid\nAcre]],\"\")","v":176102.28886102233},{"$f":"IFERROR(ROUND(Table_Data_Table_1[[#This Row],[Adjusted\nSale Price]]/Table_Data_Table_1[[#This Row],[Resid\nSq Ft]],2),\"\")","v":4.04},{"$f":"IFERROR(IF(VLOOKUP(Table_Data_Table_1[[#This Row],[Item ID]],DataTable,11,FALSE)=0,\"N/A\",Table_Data_Table_1[[#This Row],[Adjusted\nSale Price]]/VLOOKUP(Table_Data_Table_1[[#This Row],[Item ID]],DataTable,11,FALSE)),\"\")","v":2752.830979475501},{"$f":"IF(IFERROR(VLOOKUP(Table_Data_Table_1[[#This Row],[Item ID]],DataTable,17,FALSE),\"\")=0,\"\",IFERROR(VLOOKUP(Table_Data_Table_1[[#This Row],[Item ID]],DataTable,17,FALSE),\"\"))","v":""}]
["5-12Vac-1391-595","Vacant",{"$f":"IF(Table_Data_Table_1[[#This Row],[Item ID]]=\"\",\"\",IFERROR(VLOOKUP(Table_Data_Table_1[[#This Row],[Item ID]],DataTable,16,FALSE),\"\"))","v":1},"34-011-001-000-085-12",38609,595000,0,{"$f":"IF(Table_Data_Table_1[[#This Row],[Valuation Method]]=\"Vacant\",VLOOKUP(Table_Data_Table_1[[#This Row],[Item ID]],DataTable,6,FALSE)-VLOOKUP(Table_Data_Table_1[[#This Row],[Item ID]],DataTable,13,FALSE),IF(Table_Data_Table_1[[#This Row],[Valuation Method]]=\"Abstraction\",VLOOKUP(Table_Data_Table_1[[#This Row],[Item ID]],DataTable,6,FALSE)-VLOOKUP(Table_Data_Table_1[[#This Row],[Item ID]],DataTable,13,FALSE),IF(Table_Data_Table_1[[#This Row],[Valuation Method]]=\"Allocation\",VLOOKUP(Table_Data_Table_1[[#This Row],[Item ID]],DataTable,6,FALSE)*I42,\"\")))","v":595000},{"$f":"IF(Table_Data_Table_1[[#This Row],[Valuation Method]]=\"Vacant\",\"N/A\",IF(Table_Data_Table_1[[#This Row],[Valuation Method]]=\"Abstraction\",Table_Data_Table_1[[#This Row],[Land\nResidual]]/VLOOKUP(Table_Data_Table_1[[#This Row],[Item ID]],DataTable,6,FALSE),IF(Table_Data_Table_1[[#This Row],[Valuation Method]]=\"Allocation\",'Global Settings'!$H$20,\"\")))","v":"N/A"},{"$f":"IFERROR(ROUND(Table_Data_Table_1[[#This Row],[Resid\nSq Ft]]/43560,3),\"\")","v":4.4610000000000003},{"$f":"IF(Table_Data_Table_1[[#This Row],[Item ID]]=\"\",\"\",IFERROR(VLOOKUP(Table_Data_Table_1[[#This Row],[Item ID]],DataTable,10,FALSE)-VLOOKUP(Table_Data_Table_1[[#This Row],[Item ID]],DataTable,12,FALSE),\"\"))","v":194321.16},{"$f":"IFERROR(Table_Data_Table_1[[#This Row],[Land\nResidual]]/Table_Data_Table_1[[#This Row],[Resid\nAcre]],\"\")","v":133378.16633041919},{"$f":"IFERROR(ROUND(Table_Data_Table_1[[#This Row],[Land\nResidual]]/Table_Data_Table_1[[#This Row],[Resid\nSq Ft]],2),\"\")","v":3.06},{"$f":"IF(Table_Data_Table_1[[#This Row],[Item ID]]=\"\",\"\",ROUND(DAYS360(Table_Data_Table_1[[#This Row],[Sale Date]],'Global Settings'!$H$5)/30,0))","v":211},{"$f":"IFERROR(IF(AND(Table_Data_Table_1[[#This Row],[Months To\nMid-Point]]<12.01,Table_Data_Table_1[[#This Row],[Months To\nMid-Point]]>-13),0,(Table_Data_Table_1[[#This Row],[Months To\nMid-Point]]*'Global Settings'!$H$6)),\"\")","v":0.33076375029158739},{"$f":"IFERROR(Table_Data_Table_1[[#This Row],[Land\nResidual]]*(Table_Data_Table_1[[#This Row],[Time\nAdjust]]+1),\"\")","v":791804.43142349448},{"$f":"IFERROR(Table_Data_Table_1[[#This Row],[Adjusted\nSale Price]]/Table_Data_Table_1[[#This Row],[Resid\nAcre]],\"\")","v":177494.82883288377},{"$f":"IFERROR(ROUND(Table_Data_Table_1[[#This Row],[Adjusted\nSale Price]]/Table_Data_Table_1[[#This Row],[Resid\nSq Ft]],2),\"\")","v":4.07},{"$f":"IFERROR(IF(VLOOKUP(Table_Data_Table_1[[#This Row],[Item ID]],DataTable,11,FALSE)=0,\"N/A\",Table_Data_Table_1[[#This Row],[Adjusted\nSale Price]]/VLOOKUP(Table_Data_Table_1[[#This Row],[Item ID]],DataTable,11,FALSE)),\"\")","v":2363.5953176820731},{"$f":"IF(IFERROR(VLOOKUP(Table_Data_Table_1[[#This Row],[Item ID]],DataTable,17,FALSE),\"\")=0,\"\",IFERROR(VLOOKUP(Table_Data_Table_1[[#This Row],[Item ID]],DataTable,17,FALSE),\"\"))","v":""}]
["5-00All2003-248","Allocation",{"$f":"IF(Table_Data_Table_1[[#This Row],[Item ID]]=\"\",\"\",IFERROR(VLOOKUP(Table_Data_Table_1[[#This Row],[Item ID]],DataTable,16,FALSE),\"\"))","v":1},"34-204-190-000-005-00",42003,248651,0,{"$f":"IF(Table_Data_Table_1[[#This Row],[Valuation Method]]=\"Vacant\",VLOOKUP(Table_Data_Table_1[[#This Row],[Item ID]],DataTable,6,FALSE)-VLOOKUP(Table_Data_Table_1[[#This Row],[Item ID]],DataTable,13,FALSE),IF(Table_Data_Table_1[[#This Row],[Valuation Method]]=\"Abstraction\",VLOOKUP(Table_Data_Table_1[[#This Row],[Item ID]],DataTable,6,FALSE)-VLOOKUP(Table_Data_Table_1[[#This Row],[Item ID]],DataTable,13,FALSE),IF(Table_Data_Table_1[[#This Row],[Valuation Method]]=\"Allocation\",VLOOKUP(Table_Data_Table_1[[#This Row],[Item ID]],DataTable,6,FALSE)*I43,\"\")))","v":100529.5993},{"$f":"IF(Table_Data_Table_1[[#This Row],[Valuation Method]]=\"Vacant\",\"N/A\",IF(Table_Data_Table_1[[#This Row],[Valuation Method]]=\"Abstraction\",Table_Data_Table_1[[#This Row],[Land\nResidual]]/VLOOKUP(Table_Data_Table_1[[#This Row],[Item ID]],DataTable,6,FALSE),IF(Table_Data_Table_1[[#This Row],[Valuation Method]]=\"Allocation\",'Global Settings'!$H$20,\"\")))","v":0.40429999999999999},{"$f":"IFERROR(ROUND(Table_Data_Table_1[[#This Row],[Resid\nSq Ft]]/43560,3),\"\")","v":0.57199999999999995},{"$f":"IF(Table_Data_Table_1[[#This Row],[Item ID]]=\"\",\"\",IFERROR(VLOOKUP(Table_Data_Table_1[[#This Row],[Item ID]],DataTable,10,FALSE)-VLOOKUP(Table_Data_Table_1[[#This Row],[Item ID]],DataTable,12,FALSE),\"\"))","v":24916.32},{"$f":"IFERROR(Table_Data_Table_1[[#This Row],[Land\nResidual]]/Table_Data_Table_1[[#This Row],[Resid\nAcre]],\"\")","v":175751.04772727276},{"$f":"IFERROR(ROUND(Table_Data_Table_1[[#This Row],[Land\nResidual]]/Table_Data_Table_1[[#This Row],[Resid\nSq Ft]],2),\"\")","v":4.03},{"$f":"IF(Table_Data_Table_1[[#This Row],[Item ID]]=\"\",\"\",ROUND(DAYS360(Table_Data_Table_1[[#This Row],[Sale Date]],'Global Settings'!$H$5)/30,0))","v":99},{"$f":"IFERROR(IF(AND(Table_Data_Table_1[[#This Row],[Months To\nMid-Point]]<12.01,Table_Data_Table_1[[#This Row],[Months To\nMid-Point]]>-13),0,(Table_Data_Table_1[[#This Row],[Months To\nMid-Point]]*'Global Settings'!$H$6)),\"\")","v":0.15519247051595805},{"$f":"IFERROR(Table_Data_Table_1[[#This Row],[Land\nResidual]]*(Table_Data_Table_1[[#This Row],[Time\nAdjust]]+1),\"\")","v":116131.03617534632},{"$f":"IFERROR(Table_Data_Table_1[[#This Row],[Adjusted\nSale Price]]/Table_Data_Table_1[[#This Row],[Resid\nAcre]],\"\")","v":203026.28701983625},{"$f":"IFERROR(ROUND(Table_Data_Table_1[[#This Row],[Adjusted\nSale Price]]/Table_Data_Table_1[[#This Row],[Resid\nSq Ft]],2),\"\")","v":4.66},{"$f":"IFERROR(IF(VLOOKUP(Table_Data_Table_1[[#This Row],[Item ID]],DataTable,11,FALSE)=0,\"N/A\",Table_Data_Table_1[[#This Row],[Adjusted\nSale Price]]/VLOOKUP(Table_Data_Table_1[[#This Row],[Item ID]],DataTable,11,FALSE)),\"\")","v":879.78057708595702},{"$f":"IF(IFERROR(VLOOKUP(Table_Data_Table_1[[#This Row],[Item ID]],DataTable,17,FALSE),\"\")=0,\"\",IFERROR(VLOOKUP(Table_Data_Table_1[[#This Row],[Item ID]],DataTable,17,FALSE),\"\"))","v":""}]
["0-01Abs4861-122","Abstraction",{"$f":"IF(Table_Data_Table_1[[#This Row],[Item ID]]=\"\",\"\",IFERROR(VLOOKUP(Table_Data_Table_1[[#This Row],[Item ID]],DataTable,16,FALSE),\"\"))","v":1},"300-110-000-070-01",44861,1225000,1021225,{"$f":"IF(Table_Data_Table_1[[#This Row],[Valuation Method]]=\"Vacant\",VLOOKUP(Table_Data_Table_1[[#This Row],[Item ID]],DataTable,6,FALSE)-VLOOKUP(Table_Data_Table_1[[#This Row],[Item ID]],DataTable,13,FALSE),IF(Table_Data_Table_1[[#This Row],[Valuation Method]]=\"Abstraction\",VLOOKUP(Table_Data_Table_1[[#This Row],[Item ID]],DataTable,6,FALSE)-VLOOKUP(Table_Data_Table_1[[#This Row],[Item ID]],DataTable,13,FALSE),IF(Table_Data_Table_1[[#This Row],[Valuation Method]]=\"Allocation\",VLOOKUP(Table_Data_Table_1[[#This Row],[Item ID]],DataTable,6,FALSE)*I44,\"\")))","v":203775},{"$f":"IF(Table_Data_Table_1[[#This Row],[Valuation Method]]=\"Vacant\",\"N/A\",IF(Table_Data_Table_1[[#This Row],[Valuation Method]]=\"Abstraction\",Table_Data_Table_1[[#This Row],[Land\nResidual]]/VLOOKUP(Table_Data_Table_1[[#This Row],[Item ID]],DataTable,6,FALSE),IF(Table_Data_Table_1[[#This Row],[Valuation Method]]=\"Allocation\",'Global Settings'!$H$20,\"\")))","v":0.16634693877551021},{"$f":"IFERROR(ROUND(Table_Data_Table_1[[#This Row],[Resid\nSq Ft]]/43560,3),\"\")","v":1},{"$f":"IF(Table_Data_Table_1[[#This Row],[Item ID]]=\"\",\"\",IFERROR(VLOOKUP(Table_Data_Table_1[[#This Row],[Item ID]],DataTable,10,FALSE)-VLOOKUP(Table_Data_Table_1[[#This Row],[Item ID]],DataTable,12,FALSE),\"\"))","v":43560},{"$f":"IFERROR(Table_Data_Table_1[[#This Row],[Land\nResidual]]/Table_Data_Table_1[[#This Row],[Resid\nAcre]],\"\")","v":203775},{"$f":"IFERROR(ROUND(Table_Data_Table_1[[#This Row],[Land\nResidual]]/Table_Data_Table_1[[#This Row],[Resid\nSq Ft]],2),\"\")","v":4.68},{"$f":"IF(Table_Data_Table_1[[#This Row],[Item ID]]=\"\",\"\",ROUND(DAYS360(Table_Data_Table_1[[#This Row],[Sale Date]],'Global Settings'!$H$5)/30,0))","v":5},{"$f":"IFERROR(IF(AND(Table_Data_Table_1[[#This Row],[Months To\nMid-Point]]<12.01,Table_Data_Table_1[[#This Row],[Months To\nMid-Point]]>-13),0,(Table_Data_Table_1[[#This Row],[Months To\nMid-Point]]*'Global Settings'!$H$6)),\"\")","v":0},{"$f":"IFERROR(Table_Data_Table_1[[#This Row],[Land\nResidual]]*(Table_Data_Table_1[[#This Row],[Time\nAdjust]]+1),\"\")","v":203775},{"$f":"IFERROR(Table_Data_Table_1[[#This Row],[Adjusted\nSale Price]]/Table_Data_Table_1[[#This Row],[Resid\nAcre]],\"\")","v":203775},{"$f":"IFERROR(ROUND(Table_Data_Table_1[[#This Row],[Adjusted\nSale Price]]/Table_Data_Table_1[[#This Row],[Resid\nSq Ft]],2),\"\")","v":4.68},{"$f":"IFERROR(IF(VLOOKUP(Table_Data_Table_1[[#This Row],[Item ID]],DataTable,11,FALSE)=0,\"N/A\",Table_Data_Table_1[[#This Row],[Adjusted\nSale Price]]/VLOOKUP(Table_Data_Table_1[[#This Row],[Item ID]],DataTable,11,FALSE)),\"\")","v":1415.1041666666667},{"$f":"IF(IFERROR(VLOOKUP(Table_Data_Table_1[[#This Row],[Item ID]],DataTable,17,FALSE),\"\")=0,\"\",IFERROR(VLOOKUP(Table_Data_Table_1[[#This Row],[Item ID]],DataTable,17,FALSE),\"\"))","v":""}]
["5-00Abs1563-200","Abstraction",{"$f":"IF(Table_Data_Table_1[[#This Row],[Item ID]]=\"\",\"\",IFERROR(VLOOKUP(Table_Data_Table_1[[#This Row],[Item ID]],DataTable,16,FALSE),\"\"))","v":1},"34-060-006-000-095-00",41563,200000,33808,{"$f":"IF(Table_Data_Table_1[[#This Row],[Valuation Method]]=\"Vacant\",VLOOKUP(Table_Data_Table_1[[#This Row],[Item ID]],DataTable,6,FALSE)-VLOOKUP(Table_Data_Table_1[[#This Row],[Item ID]],DataTable,13,FALSE),IF(Table_Data_Table_1[[#This Row],[Valuation Method]]=\"Abstraction\",VLOOKUP(Table_Data_Table_1[[#This Row],[Item ID]],DataTable,6,FALSE)-VLOOKUP(Table_Data_Table_1[[#This Row],[Item ID]],DataTable,13,FALSE),IF(Table_Data_Table_1[[#This Row],[Valuation Method]]=\"Allocation\",VLOOKUP(Table_Data_Table_1[[#This Row],[Item ID]],DataTable,6,FALSE)*I45,\"\")))","v":166192},{"$f":"IF(Table_Data_Table_1[[#This Row],[Valuation Method]]=\"Vacant\",\"N/A\",IF(Table_Data_Table_1[[#This Row],[Valuation Method]]=\"Abstraction\",Table_Data_Table_1[[#This Row],[Land\nResidual]]/VLOOKUP(Table_Data_Table_1[[#This Row],[Item ID]],DataTable,6,FALSE),IF(Table_Data_Table_1[[#This Row],[Valuation Method]]=\"Allocation\",'Global Settings'!$H$20,\"\")))","v":0.83096000000000003},{"$f":"IFERROR(ROUND(Table_Data_Table_1[[#This Row],[Resid\nSq Ft]]/43560,3),\"\")","v":0.94399999999999995},{"$f":"IF(Table_Data_Table_1[[#This Row],[Item ID]]=\"\",\"\",IFERROR(VLOOKUP(Table_Data_Table_1[[#This Row],[Item ID]],DataTable,10,FALSE)-VLOOKUP(Table_Data_Table_1[[#This Row],[Item ID]],DataTable,12,FALSE),\"\"))","v":41131.839999999997},{"$f":"IFERROR(Table_Data_Table_1[[#This Row],[Land\nResidual]]/Table_Data_Table_1[[#This Row],[Resid\nAcre]],\"\")","v":176050.84745762713},{"$f":"IFERROR(ROUND(Table_Data_Table_1[[#This Row],[Land\nResidual]]/Table_Data_Table_1[[#This Row],[Resid\nSq Ft]],2),\"\")","v":4.04},{"$f":"IF(Table_Data_Table_1[[#This Row],[Item ID]]=\"\",\"\",ROUND(DAYS360(Table_Data_Table_1[[#This Row],[Sale Date]],'Global Settings'!$H$5)/30,0))","v":114},{"$f":"IFERROR(IF(AND(Table_Data_Table_1[[#This Row],[Months To\nMid-Point]]<12.01,Table_Data_Table_1[[#This Row],[Months To\nMid-Point]]>-13),0,(Table_Data_Table_1[[#This Row],[Months To\nMid-Point]]*'Global Settings'!$H$6)),\"\")","v":0.17870648120019414},{"$f":"IFERROR(Table_Data_Table_1[[#This Row],[Land\nResidual]]*(Table_Data_Table_1[[#This Row],[Time\nAdjust]]+1),\"\")","v":195891.58752362267},{"$f":"IFERROR(Table_Data_Table_1[[#This Row],[Adjusted\nSale Price]]/Table_Data_Table_1[[#This Row],[Resid\nAcre]],\"\")","v":207512.27491909181},{"$f":"IFERROR(ROUND(Table_Data_Table_1[[#This Row],[Adjusted\nSale Price]]/Table_Data_Table_1[[#This Row],[Resid\nSq Ft]],2),\"\")","v":4.76},{"$f":"IFERROR(IF(VLOOKUP(Table_Data_Table_1[[#This Row],[Item ID]],DataTable,11,FALSE)=0,\"N/A\",Table_Data_Table_1[[#This Row],[Adjusted\nSale Price]]/VLOOKUP(Table_Data_Table_1[[#This Row],[Item ID]],DataTable,11,FALSE)),\"\")","v":833.58122350477731},{"$f":"IF(IFERROR(VLOOKUP(Table_Data_Table_1[[#This Row],[Item ID]],DataTable,17,FALSE),\"\")=0,\"\",IFERROR(VLOOKUP(Table_Data_Table_1[[#This Row],[Item ID]],DataTable,17,FALSE),\"\"))","v":""}]
["0-02Abs2403-300","Abstraction",{"$f":"IF(Table_Data_Table_1[[#This Row],[Item ID]]=\"\",\"\",IFERROR(VLOOKUP(Table_Data_Table_1[[#This Row],[Item ID]],DataTable,16,FALSE),\"\"))","v":1},"34-110-006-000-040-02",42403,3000000,1526059,{"$f":"IF(Table_Data_Table_1[[#This Row],[Valuation Method]]=\"Vacant\",VLOOKUP(Table_Data_Table_1[[#This Row],[Item ID]],DataTable,6,FALSE)-VLOOKUP(Table_Data_Table_1[[#This Row],[Item ID]],DataTable,13,FALSE),IF(Table_Data_Table_1[[#This Row],[Valuation Method]]=\"Abstraction\",VLOOKUP(Table_Data_Table_1[[#This Row],[Item ID]],DataTable,6,FALSE)-VLOOKUP(Table_Data_Table_1[[#This Row],[Item ID]],DataTable,13,FALSE),IF(Table_Data_Table_1[[#This Row],[Valuation Method]]=\"Allocation\",VLOOKUP(Table_Data_Table_1[[#This Row],[Item ID]],DataTable,6,FALSE)*I46,\"\")))","v":1473941},{"$f":"IF(Table_Data_Table_1[[#This Row],[Valuation Method]]=\"Vacant\",\"N/A\",IF(Table_Data_Table_1[[#This Row],[Valuation Method]]=\"Abstraction\",Table_Data_Table_1[[#This Row],[Land\nResidual]]/VLOOKUP(Table_Data_Table_1[[#This Row],[Item ID]],DataTable,6,FALSE),IF(Table_Data_Table_1[[#This Row],[Valuation Method]]=\"Allocation\",'Global Settings'!$H$20,\"\")))","v":0.49131366666666665},{"$f":"IFERROR(ROUND(Table_Data_Table_1[[#This Row],[Resid\nSq Ft]]/43560,3),\"\")","v":7.8159999999999998},{"$f":"IF(Table_Data_Table_1[[#This Row],[Item ID]]=\"\",\"\",IFERROR(VLOOKUP(Table_Data_Table_1[[#This Row],[Item ID]],DataTable,10,FALSE)-VLOOKUP(Table_Data_Table_1[[#This Row],[Item ID]],DataTable,12,FALSE),\"\"))","v":340468.4},{"$f":"IFERROR(Table_Data_Table_1[[#This Row],[Land\nResidual]]/Table_Data_Table_1[[#This Row],[Resid\nAcre]],\"\")","v":188579.96417604914},{"$f":"IFERROR(ROUND(Table_Data_Table_1[[#This Row],[Land\nResidual]]/Table_Data_Table_1[[#This Row],[Resid\nSq Ft]],2),\"\")","v":4.33},{"$f":"IF(Table_Data_Table_1[[#This Row],[Item ID]]=\"\",\"\",ROUND(DAYS360(Table_Data_Table_1[[#This Row],[Sale Date]],'Global Settings'!$H$5)/30,0))","v":86},{"$f":"IFERROR(IF(AND(Table_Data_Table_1[[#This Row],[Months To\nMid-Point]]<12.01,Table_Data_Table_1[[#This Row],[Months To\nMid-Point]]>-13),0,(Table_Data_Table_1[[#This Row],[Months To\nMid-Point]]*'Global Settings'!$H$6)),\"\")","v":0.1348136612562868},{"$f":"IFERROR(Table_Data_Table_1[[#This Row],[Land\nResidual]]*(Table_Data_Table_1[[#This Row],[Time\nAdjust]]+1),\"\")","v":1672648.3826857528},{"$f":"IFERROR(Table_Data_Table_1[[#This Row],[Adjusted\nSale Price]]/Table_Data_Table_1[[#This Row],[Resid\nAcre]],\"\")","v":214003.11958620173},{"$f":"IFERROR(ROUND(Table_Data_Table_1[[#This Row],[Adjusted\nSale Price]]/Table_Data_Table_1[[#This Row],[Resid\nSq Ft]],2),\"\")","v":4.91},{"$f":"IFERROR(IF(VLOOKUP(Table_Data_Table_1[[#This Row],[Item ID]],DataTable,11,FALSE)=0,\"N/A\",Table_Data_Table_1[[#This Row],[Adjusted\nSale Price]]/VLOOKUP(Table_Data_Table_1[[#This Row],[Item ID]],DataTable,11,FALSE)),\"\")","v":3345.2967653715054},{"$f":"IF(IFERROR(VLOOKUP(Table_Data_Table_1[[#This Row],[Item ID]],DataTable,17,FALSE),\"\")=0,\"\",IFERROR(VLOOKUP(Table_Data_Table_1[[#This Row],[Item ID]],DataTable,17,FALSE),\"\"))","v":""}]
["5-00Abs2003-248","Abstraction",{"$f":"IF(Table_Data_Table_1[[#This Row],[Item ID]]=\"\",\"\",IFERROR(VLOOKUP(Table_Data_Table_1[[#This Row],[Item ID]],DataTable,16,FALSE),\"\"))","v":1},"34-204-190-000-005-00",42003,248651,140849,{"$f":"IF(Table_Data_Table_1[[#This Row],[Valuation Method]]=\"Vacant\",VLOOKUP(Table_Data_Table_1[[#This Row],[Item ID]],DataTable,6,FALSE)-VLOOKUP(Table_Data_Table_1[[#This Row],[Item ID]],DataTable,13,FALSE),IF(Table_Data_Table_1[[#This Row],[Valuation Method]]=\"Abstraction\",VLOOKUP(Table_Data_Table_1[[#This Row],[Item ID]],DataTable,6,FALSE)-VLOOKUP(Table_Data_Table_1[[#This Row],[Item ID]],DataTable,13,FALSE),IF(Table_Data_Table_1[[#This Row],[Valuation Method]]=\"Allocation\",VLOOKUP(Table_Data_Table_1[[#This Row],[Item ID]],DataTable,6,FALSE)*I47,\"\")))","v":107802},{"$f":"IF(Table_Data_Table_1[[#This Row],[Valuation Method]]=\"Vacant\",\"N/A\",IF(Table_Data_Table_1[[#This Row],[Valuation Method]]=\"Abstraction\",Table_Data_Table_1[[#This Row],[Land\nResidual]]/VLOOKUP(Table_Data_Table_1[[#This Row],[Item ID]],DataTable,6,FALSE),IF(Table_Data_Table_1[[#This Row],[Valuation Method]]=\"Allocation\",'Global Settings'!$H$20,\"\")))","v":0.43354742188851042},{"$f":"IFERROR(ROUND(Table_Data_Table_1[[#This Row],[Resid\nSq Ft]]/43560,3),\"\")","v":0.57199999999999995},{"$f":"IF(Table_Data_Table_1[[#This Row],[Item ID]]=\"\",\"\",IFERROR(VLOOKUP(Table_Data_Table_1[[#This Row],[Item ID]],DataTable,10,FALSE)-VLOOKUP(Table_Data_Table_1[[#This Row],[Item ID]],DataTable,12,FALSE),\"\"))","v":24916.32},{"$f":"IFERROR(Table_Data_Table_1[[#This Row],[Land\nResidual]]/Table_Data_Table_1[[#This Row],[Resid\nAcre]],\"\")","v":188465.03496503498},{"$f":"IFERROR(ROUND(Table_Data_Table_1[[#This Row],[Land\nResidual]]/Table_Data_Table_1[[#This Row],[Resid\nSq Ft]],2),\"\")","v":4.33},{"$f":"IF(Table_Data_Table_1[[#This Row],[Item ID]]=\"\",\"\",ROUND(DAYS360(Table_Data_Table_1[[#This Row],[Sale Date]],'Global Settings'!$H$5)/30,0))","v":99},{"$f":"IFERROR(IF(AND(Table_Data_Table_1[[#This Row],[Months To\nMid-Point]]<12.01,Table_Data_Table_1[[#This Row],[Months To\nMid-Point]]>-13),0,(Table_Data_Table_1[[#This Row],[Months To\nMid-Point]]*'Global Settings'!$H$6)),\"\")","v":0.15519247051595805},{"$f":"IFERROR(Table_Data_Table_1[[#This Row],[Land\nResidual]]*(Table_Data_Table_1[[#This Row],[Time\nAdjust]]+1),\"\")","v":124532.05870656131},{"$f":"IFERROR(Table_Data_Table_1[[#This Row],[Adjusted\nSale Price]]/Table_Data_Table_1[[#This Row],[Resid\nAcre]],\"\")","v":217713.38934713518},{"$f":"IFERROR(ROUND(Table_Data_Table_1[[#This Row],[Adjusted\nSale Price]]/Table_Data_Table_1[[#This Row],[Resid\nSq Ft]],2),\"\")","v":5},{"$f":"IFERROR(IF(VLOOKUP(Table_Data_Table_1[[#This Row],[Item ID]],DataTable,11,FALSE)=0,\"N/A\",Table_Data_Table_1[[#This Row],[Adjusted\nSale Price]]/VLOOKUP(Table_Data_Table_1[[#This Row],[Item ID]],DataTable,11,FALSE)),\"\")","v":943.42468717091901},{"$f":"IF(IFERROR(VLOOKUP(Table_Data_Table_1[[#This Row],[Item ID]],DataTable,17,FALSE),\"\")=0,\"\",IFERROR(VLOOKUP(Table_Data_Table_1[[#This Row],[Item ID]],DataTable,17,FALSE),\"\"))","v":""}]
["0-00Vac3038-320","Vacant",{"$f":"IF(Table_Data_Table_1[[#This Row],[Item ID]]=\"\",\"\",IFERROR(VLOOKUP(Table_Data_Table_1[[#This Row],[Item ID]],DataTable,16,FALSE),\"\"))","v":1},"34-060-140-000-020-00",43038,320000,0,{"$f":"IF(Table_Data_Table_1[[#This Row],[Valuation Method]]=\"Vacant\",VLOOKUP(Table_Data_Table_1[[#This Row],[Item ID]],DataTable,6,FALSE)-VLOOKUP(Table_Data_Table_1[[#This Row],[Item ID]],DataTable,13,FALSE),IF(Table_Data_Table_1[[#This Row],[Valuation Method]]=\"Abstraction\",VLOOKUP(Table_Data_Table_1[[#This Row],[Item ID]],DataTable,6,FALSE)-VLOOKUP(Table_Data_Table_1[[#This Row],[Item ID]],DataTable,13,FALSE),IF(Table_Data_Table_1[[#This Row],[Valuation Method]]=\"Allocation\",VLOOKUP(Table_Data_Table_1[[#This Row],[Item ID]],DataTable,6,FALSE)*I48,\"\")))","v":320000},{"$f":"IF(Table_Data_Table_1[[#This Row],[Valuation Method]]=\"Vacant\",\"N/A\",IF(Table_Data_Table_1[[#This Row],[Valuation Method]]=\"Abstraction\",Table_Data_Table_1[[#This Row],[Land\nResidual]]/VLOOKUP(Table_Data_Table_1[[#This Row],[Item ID]],DataTable,6,FALSE),IF(Table_Data_Table_1[[#This Row],[Valuation Method]]=\"Allocation\",'Global Settings'!$H$20,\"\")))","v":"N/A"},{"$f":"IFERROR(ROUND(Table_Data_Table_1[[#This Row],[Resid\nSq Ft]]/43560,3),\"\")","v":1.446},{"$f":"IF(Table_Data_Table_1[[#This Row],[Item ID]]=\"\",\"\",IFERROR(VLOOKUP(Table_Data_Table_1[[#This Row],[Item ID]],DataTable,10,FALSE)-VLOOKUP(Table_Data_Table_1[[#This Row],[Item ID]],DataTable,12,FALSE),\"\"))","v":62987.759999999995},{"$f":"IFERROR(Table_Data_Table_1[[#This Row],[Land\nResidual]]/Table_Data_Table_1[[#This Row],[Resid\nAcre]],\"\")","v":221300.13831258647},{"$f":"IFERROR(ROUND(Table_Data_Table_1[[#This Row],[Land\nResidual]]/Table_Data_Table_1[[#This Row],[Resid\nSq Ft]],2),\"\")","v":5.08},{"$f":"IF(Table_Data_Table_1[[#This Row],[Item ID]]=\"\",\"\",ROUND(DAYS360(Table_Data_Table_1[[#This Row],[Sale Date]],'Global Settings'!$H$5)/30,0))","v":65},{"$f":"IFERROR(IF(AND(Table_Data_Table_1[[#This Row],[Months To\nMid-Point]]<12.01,Table_Data_Table_1[[#This Row],[Months To\nMid-Point]]>-13),0,(Table_Data_Table_1[[#This Row],[Months To\nMid-Point]]*'Global Settings'!$H$6)),\"\")","v":0.1018940462983563},{"$f":"IFERROR(Table_Data_Table_1[[#This Row],[Land\nResidual]]*(Table_Data_Table_1[[#This Row],[Time\nAdjust]]+1),\"\")","v":352606.09481547406},{"$f":"IFERROR(Table_Data_Table_1[[#This Row],[Adjusted\nSale Price]]/Table_Data_Table_1[[#This Row],[Resid\nAcre]],\"\")","v":243849.30485164182},{"$f":"IFERROR(ROUND(Table_Data_Table_1[[#This Row],[Adjusted\nSale Price]]/Table_Data_Table_1[[#This Row],[Resid\nSq Ft]],2),\"\")","v":5.6},{"$f":"IFERROR(IF(VLOOKUP(Table_Data_Table_1[[#This Row],[Item ID]],DataTable,11,FALSE)=0,\"N/A\",Table_Data_Table_1[[#This Row],[Adjusted\nSale Price]]/VLOOKUP(Table_Data_Table_1[[#This Row],[Item ID]],DataTable,11,FALSE)),\"\")","v":1175.3536493849135},{"$f":"IF(IFERROR(VLOOKUP(Table_Data_Table_1[[#This Row],[Item ID]],DataTable,17,FALSE),\"\")=0,\"\",IFERROR(VLOOKUP(Table_Data_Table_1[[#This Row],[Item ID]],DataTable,17,FALSE),\"\"))","v":""}]
["0-10All3088-150","Allocation",{"$f":"IF(Table_Data_Table_1[[#This Row],[Item ID]]=\"\",\"\",IFERROR(VLOOKUP(Table_Data_Table_1[[#This Row],[Item ID]],DataTable,16,FALSE),\"\"))","v":1},"34-401-250-000-350-10",43088,150000,0,{"$f":"IF(Table_Data_Table_1[[#This Row],[Valuation Method]]=\"Vacant\",VLOOKUP(Table_Data_Table_1[[#This Row],[Item ID]],DataTable,6,FALSE)-VLOOKUP(Table_Data_Table_1[[#This Row],[Item ID]],DataTable,13,FALSE),IF(Table_Data_Table_1[[#This Row],[Valuation Method]]=\"Abstraction\",VLOOKUP(Table_Data_Table_1[[#This Row],[Item ID]],DataTable,6,FALSE)-VLOOKUP(Table_Data_Table_1[[#This Row],[Item ID]],DataTable,13,FALSE),IF(Table_Data_Table_1[[#This Row],[Valuation Method]]=\"Allocation\",VLOOKUP(Table_Data_Table_1[[#This Row],[Item ID]],DataTable,6,FALSE)*I49,\"\")))","v":60645},{"$f":"IF(Table_Data_Table_1[[#This Row],[Valuation Method]]=\"Vacant\",\"N/A\",IF(Table_Data_Table_1[[#This Row],[Valuation Method]]=\"Abstraction\",Table_Data_Table_1[[#This Row],[Land\nResidual]]/VLOOKUP(Table_Data_Table_1[[#This Row],[Item ID]],DataTable,6,FALSE),IF(Table_Data_Table_1[[#This Row],[Valuation Method]]=\"Allocation\",'Global Settings'!$H$20,\"\")))","v":0.40429999999999999},{"$f":"IFERROR(ROUND(Table_Data_Table_1[[#This Row],[Resid\nSq Ft]]/43560,3),\"\")","v":0.27300000000000002},{"$f":"IF(Table_Data_Table_1[[#This Row],[Item ID]]=\"\",\"\",IFERROR(VLOOKUP(Table_Data_Table_1[[#This Row],[Item ID]],DataTable,10,FALSE)-VLOOKUP(Table_Data_Table_1[[#This Row],[Item ID]],DataTable,12,FALSE),\"\"))","v":11891.880000000001},{"$f":"IFERROR(Table_Data_Table_1[[#This Row],[Land\nResidual]]/Table_Data_Table_1[[#This Row],[Resid\nAcre]],\"\")","v":222142.85714285713},{"$f":"IFERROR(ROUND(Table_Data_Table_1[[#This Row],[Land\nResidual]]/Table_Data_Table_1[[#This Row],[Resid\nSq Ft]],2),\"\")","v":5.0999999999999996},{"$f":"IF(Table_Data_Table_1[[#This Row],[Item ID]]=\"\",\"\",ROUND(DAYS360(Table_Data_Table_1[[#This Row],[Sale Date]],'Global Settings'!$H$5)/30,0))","v":63},{"$f":"IFERROR(IF(AND(Table_Data_Table_1[[#This Row],[Months To\nMid-Point]]<12.01,Table_Data_Table_1[[#This Row],[Months To\nMid-Point]]>-13),0,(Table_Data_Table_1[[#This Row],[Months To\nMid-Point]]*'Global Settings'!$H$6)),\"\")","v":9.8758844873791496E-2},{"$f":"IFERROR(Table_Data_Table_1[[#This Row],[Land\nResidual]]*(Table_Data_Table_1[[#This Row],[Time\nAdjust]]+1),\"\")","v":66634.230147371083},{"$f":"IFERROR(Table_Data_Table_1[[#This Row],[Adjusted\nSale Price]]/Table_Data_Table_1[[#This Row],[Resid\nAcre]],\"\")","v":244081.42911124937},{"$f":"IFERROR(ROUND(Table_Data_Table_1[[#This Row],[Adjusted\nSale Price]]/Table_Data_Table_1[[#This Row],[Resid\nSq Ft]],2),\"\")","v":5.6},{"$f":"IFERROR(IF(VLOOKUP(Table_Data_Table_1[[#This Row],[Item ID]],DataTable,11,FALSE)=0,\"N/A\",Table_Data_Table_1[[#This Row],[Adjusted\nSale Price]]/VLOOKUP(Table_Data_Table_1[[#This Row],[Item ID]],DataTable,11,FALSE)),\"\")","v":533.07384117896868},{"$f":"IF(IFERROR(VLOOKUP(Table_Data_Table_1[[#This Row],[Item ID]],DataTable,17,FALSE),\"\")=0,\"\",IFERROR(VLOOKUP(Table_Data_Table_1[[#This Row],[Item ID]],DataTable,17,FALSE),\"\"))","v":""}]
["5-26Vac4848-325","Vacant",{"$f":"IF(Table_Data_Table_1[[#This Row],[Item ID]]=\"\",\"\",IFERROR(VLOOKUP(Table_Data_Table_1[[#This Row],[Item ID]],DataTable,16,FALSE),\"\"))","v":1},"060-031-000-115-26",44848,325000,0,{"$f":"IF(Table_Data_Table_1[[#This Row],[Valuation Method]]=\"Vacant\",VLOOKUP(Table_Data_Table_1[[#This Row],[Item ID]],DataTable,6,FALSE)-VLOOKUP(Table_Data_Table_1[[#This Row],[Item ID]],DataTable,13,FALSE),IF(Table_Data_Table_1[[#This Row],[Valuation Method]]=\"Abstraction\",VLOOKUP(Table_Data_Table_1[[#This Row],[Item ID]],DataTable,6,FALSE)-VLOOKUP(Table_Data_Table_1[[#This Row],[Item ID]],DataTable,13,FALSE),IF(Table_Data_Table_1[[#This Row],[Valuation Method]]=\"Allocation\",VLOOKUP(Table_Data_Table_1[[#This Row],[Item ID]],DataTable,6,FALSE)*I50,\"\")))","v":325000},{"$f":"IF(Table_Data_Table_1[[#This Row],[Valuation Method]]=\"Vacant\",\"N/A\",IF(Table_Data_Table_1[[#This Row],[Valuation Method]]=\"Abstraction\",Table_Data_Table_1[[#This Row],[Land\nResidual]]/VLOOKUP(Table_Data_Table_1[[#This Row],[Item ID]],DataTable,6,FALSE),IF(Table_Data_Table_1[[#This Row],[Valuation Method]]=\"Allocation\",'Global Settings'!$H$20,\"\")))","v":"N/A"},{"$f":"IFERROR(ROUND(Table_Data_Table_1[[#This Row],[Resid\nSq Ft]]/43560,3),\"\")","v":1.325},{"$f":"IF(Table_Data_Table_1[[#This Row],[Item ID]]=\"\",\"\",IFERROR(VLOOKUP(Table_Data_Table_1[[#This Row],[Item ID]],DataTable,10,FALSE)-VLOOKUP(Table_Data_Table_1[[#This Row],[Item ID]],DataTable,12,FALSE),\"\"))","v":57716.999999999993},{"$f":"IFERROR(Table_Data_Table_1[[#This Row],[Land\nResidual]]/Table_Data_Table_1[[#This Row],[Resid\nAcre]],\"\")","v":245283.01886792455},{"$f":"IFERROR(ROUND(Table_Data_Table_1[[#This Row],[Land\nResidual]]/Table_Data_Table_1[[#This Row],[Resid\nSq Ft]],2),\"\")","v":5.63},{"$f":"IF(Table_Data_Table_1[[#This Row],[Item ID]]=\"\",\"\",ROUND(DAYS360(Table_Data_Table_1[[#This Row],[Sale Date]],'Global Settings'!$H$5)/30,0))","v":6},{"$f":"IFERROR(IF(AND(Table_Data_Table_1[[#This Row],[Months To\nMid-Point]]<12.01,Table_Data_Table_1[[#This Row],[Months To\nMid-Point]]>-13),0,(Table_Data_Table_1[[#This Row],[Months To\nMid-Point]]*'Global Settings'!$H$6)),\"\")","v":0},{"$f":"IFERROR(Table_Data_Table_1[[#This Row],[Land\nResidual]]*(Table_Data_Table_1[[#This Row],[Time\nAdjust]]+1),\"\")","v":325000},{"$f":"IFERROR(Table_Data_Table_1[[#This Row],[Adjusted\nSale Price]]/Table_Data_Table_1[[#This Row],[Resid\nAcre]],\"\")","v":245283.01886792455},{"$f":"IFERROR(ROUND(Table_Data_Table_1[[#This Row],[Adjusted\nSale Price]]/Table_Data_Table_1[[#This Row],[Resid\nSq Ft]],2),\"\")","v":5.63},{"$f":"IFERROR(IF(VLOOKUP(Table_Data_Table_1[[#This Row],[Item ID]],DataTable,11,FALSE)=0,\"N/A\",Table_Data_Table_1[[#This Row],[Adjusted\nSale Price]]/VLOOKUP(Table_Data_Table_1[[#This Row],[Item ID]],DataTable,11,FALSE)),\"\")","v":1603.8294512435848},{"$f":"IF(IFERROR(VLOOKUP(Table_Data_Table_1[[#This Row],[Item ID]],DataTable,17,FALSE),\"\")=0,\"\",IFERROR(VLOOKUP(Table_Data_Table_1[[#This Row],[Item ID]],DataTable,17,FALSE),\"\"))","v":""}]
["0-00Abs1829-364","Abstraction",{"$f":"IF(Table_Data_Table_1[[#This Row],[Item ID]]=\"\",\"\",IFERROR(VLOOKUP(Table_Data_Table_1[[#This Row],[Item ID]],DataTable,16,FALSE),\"\"))","v":1},"34-300-110-000-070-00",41829,364600,228195,{"$f":"IF(Table_Data_Table_1[[#This Row],[Valuation Method]]=\"Vacant\",VLOOKUP(Table_Data_Table_1[[#This Row],[Item ID]],DataTable,6,FALSE)-VLOOKUP(Table_Data_Table_1[[#This Row],[Item ID]],DataTable,13,FALSE),IF(Table_Data_Table_1[[#This Row],[Valuation Method]]=\"Abstraction\",VLOOKUP(Table_Data_Table_1[[#This Row],[Item ID]],DataTable,6,FALSE)-VLOOKUP(Table_Data_Table_1[[#This Row],[Item ID]],DataTable,13,FALSE),IF(Table_Data_Table_1[[#This Row],[Valuation Method]]=\"Allocation\",VLOOKUP(Table_Data_Table_1[[#This Row],[Item ID]],DataTable,6,FALSE)*I51,\"\")))","v":136405},{"$f":"IF(Table_Data_Table_1[[#This Row],[Valuation Method]]=\"Vacant\",\"N/A\",IF(Table_Data_Table_1[[#This Row],[Valuation Method]]=\"Abstraction\",Table_Data_Table_1[[#This Row],[Land\nResidual]]/VLOOKUP(Table_Data_Table_1[[#This Row],[Item ID]],DataTable,6,FALSE),IF(Table_Data_Table_1[[#This Row],[Valuation Method]]=\"Allocation\",'Global Settings'!$H$20,\"\")))","v":0.37412232583653321},{"$f":"IFERROR(ROUND(Table_Data_Table_1[[#This Row],[Resid\nSq Ft]]/43560,3),\"\")","v":0.64100000000000001},{"$f":"IF(Table_Data_Table_1[[#This Row],[Item ID]]=\"\",\"\",IFERROR(VLOOKUP(Table_Data_Table_1[[#This Row],[Item ID]],DataTable,10,FALSE)-VLOOKUP(Table_Data_Table_1[[#This Row],[Item ID]],DataTable,12,FALSE),\"\"))","v":27921.96},{"$f":"IFERROR(Table_Data_Table_1[[#This Row],[Land\nResidual]]/Table_Data_Table_1[[#This Row],[Resid\nAcre]],\"\")","v":212800.31201248048},{"$f":"IFERROR(ROUND(Table_Data_Table_1[[#This Row],[Land\nResidual]]/Table_Data_Table_1[[#This Row],[Resid\nSq Ft]],2),\"\")","v":4.8899999999999997},{"$f":"IF(Table_Data_Table_1[[#This Row],[Item ID]]=\"\",\"\",ROUND(DAYS360(Table_Data_Table_1[[#This Row],[Sale Date]],'Global Settings'!$H$5)/30,0))","v":105},{"$f":"IFERROR(IF(AND(Table_Data_Table_1[[#This Row],[Months To\nMid-Point]]<12.01,Table_Data_Table_1[[#This Row],[Months To\nMid-Point]]>-13),0,(Table_Data_Table_1[[#This Row],[Months To\nMid-Point]]*'Global Settings'!$H$6)),\"\")","v":0.16459807478965249},{"$f":"IFERROR(Table_Data_Table_1[[#This Row],[Land\nResidual]]*(Table_Data_Table_1[[#This Row],[Time\nAdjust]]+1),\"\")","v":158857.00039168255},{"$f":"IFERROR(Table_Data_Table_1[[#This Row],[Adjusted\nSale Price]]/Table_Data_Table_1[[#This Row],[Resid\nAcre]],\"\")","v":247826.83368437216},{"$f":"IFERROR(ROUND(Table_Data_Table_1[[#This Row],[Adjusted\nSale Price]]/Table_Data_Table_1[[#This Row],[Resid\nSq Ft]],2),\"\")","v":5.69},{"$f":"IFERROR(IF(VLOOKUP(Table_Data_Table_1[[#This Row],[Item ID]],DataTable,11,FALSE)=0,\"N/A\",Table_Data_Table_1[[#This Row],[Adjusted\nSale Price]]/VLOOKUP(Table_Data_Table_1[[#This Row],[Item ID]],DataTable,11,FALSE)),\"\")","v":577.66181960611834},{"$f":"IF(IFERROR(VLOOKUP(Table_Data_Table_1[[#This Row],[Item ID]],DataTable,17,FALSE),\"\")=0,\"\",IFERROR(VLOOKUP(Table_Data_Table_1[[#This Row],[Item ID]],DataTable,17,FALSE),\"\"))","v":""}]
["5-20Abs4559-182","Abstraction",{"$f":"IF(Table_Data_Table_1[[#This Row],[Item ID]]=\"\",\"\",IFERROR(VLOOKUP(Table_Data_Table_1[[#This Row],[Item ID]],DataTable,16,FALSE),\"\"))","v":1},"34-060-031-000-045-20",44559,1825000,1228290,{"$f":"IF(Table_Data_Table_1[[#This Row],[Valuation Method]]=\"Vacant\",VLOOKUP(Table_Data_Table_1[[#This Row],[Item ID]],DataTable,6,FALSE)-VLOOKUP(Table_Data_Table_1[[#This Row],[Item ID]],DataTable,13,FALSE),IF(Table_Data_Table_1[[#This Row],[Valuation Method]]=\"Abstraction\",VLOOKUP(Table_Data_Table_1[[#This Row],[Item ID]],DataTable,6,FALSE)-VLOOKUP(Table_Data_Table_1[[#This Row],[Item ID]],DataTable,13,FALSE),IF(Table_Data_Table_1[[#This Row],[Valuation Method]]=\"Allocation\",VLOOKUP(Table_Data_Table_1[[#This Row],[Item ID]],DataTable,6,FALSE)*I52,\"\")))","v":596710},{"$f":"IF(Table_Data_Table_1[[#This Row],[Valuation Method]]=\"Vacant\",\"N/A\",IF(Table_Data_Table_1[[#This Row],[Valuation Method]]=\"Abstraction\",Table_Data_Table_1[[#This Row],[Land\nResidual]]/VLOOKUP(Table_Data_Table_1[[#This Row],[Item ID]],DataTable,6,FALSE),IF(Table_Data_Table_1[[#This Row],[Valuation Method]]=\"Allocation\",'Global Settings'!$H$20,\"\")))","v":0.32696438356164381},{"$f":"IFERROR(ROUND(Table_Data_Table_1[[#This Row],[Resid\nSq Ft]]/43560,3),\"\")","v":2.4550000000000001},{"$f":"IF(Table_Data_Table_1[[#This Row],[Item ID]]=\"\",\"\",IFERROR(VLOOKUP(Table_Data_Table_1[[#This Row],[Item ID]],DataTable,10,FALSE)-VLOOKUP(Table_Data_Table_1[[#This Row],[Item ID]],DataTable,12,FALSE),\"\"))","v":106939.79999999999},{"$f":"IFERROR(Table_Data_Table_1[[#This Row],[Land\nResidual]]/Table_Data_Table_1[[#This Row],[Resid\nAcre]],\"\")","v":243059.06313645621},{"$f":"IFERROR(ROUND(Table_Data_Table_1[[#This Row],[Land\nResidual]]/Table_Data_Table_1[[#This Row],[Resid\nSq Ft]],2),\"\")","v":5.58},{"$f":"IF(Table_Data_Table_1[[#This Row],[Item ID]]=\"\",\"\",ROUND(DAYS360(Table_Data_Table_1[[#This Row],[Sale Date]],'Global Settings'!$H$5)/30,0))","v":15},{"$f":"IFERROR(IF(AND(Table_Data_Table_1[[#This Row],[Months To\nMid-Point]]<12.01,Table_Data_Table_1[[#This Row],[Months To\nMid-Point]]>-13),0,(Table_Data_Table_1[[#This Row],[Months To\nMid-Point]]*'Global Settings'!$H$6)),\"\")","v":2.3514010684236069E-2},{"$f":"IFERROR(Table_Data_Table_1[[#This Row],[Land\nResidual]]*(Table_Data_Table_1[[#This Row],[Time\nAdjust]]+1),\"\")","v":610741.04531539045},{"$f":"IFERROR(Table_Data_Table_1[[#This Row],[Adjusted\nSale Price]]/Table_Data_Table_1[[#This Row],[Resid\nAcre]],\"\")","v":248774.35654394721},{"$f":"IFERROR(ROUND(Table_Data_Table_1[[#This Row],[Adjusted\nSale Price]]/Table_Data_Table_1[[#This Row],[Resid\nSq Ft]],2),\"\")","v":5.71},{"$f":"IFERROR(IF(VLOOKUP(Table_Data_Table_1[[#This Row],[Item ID]],DataTable,11,FALSE)=0,\"N/A\",Table_Data_Table_1[[#This Row],[Adjusted\nSale Price]]/VLOOKUP(Table_Data_Table_1[[#This Row],[Item ID]],DataTable,11,FALSE)),\"\")","v":2741.2075642522013},{"$f":"IF(IFERROR(VLOOKUP(Table_Data_Table_1[[#This Row],[Item ID]],DataTable,17,FALSE),\"\")=0,\"\",IFERROR(VLOOKUP(Table_Data_Table_1[[#This Row],[Item ID]],DataTable,17,FALSE),\"\"))","v":""}]
["5-10All4841-330","Allocation",{"$f":"IF(Table_Data_Table_1[[#This Row],[Item ID]]=\"\",\"\",IFERROR(VLOOKUP(Table_Data_Table_1[[#This Row],[Item ID]],DataTable,16,FALSE),\"\"))","v":1},"34-401-250-000-335-10",44841,330000,0,{"$f":"IF(Table_Data_Table_1[[#This Row],[Valuation Method]]=\"Vacant\",VLOOKUP(Table_Data_Table_1[[#This Row],[Item ID]],DataTable,6,FALSE)-VLOOKUP(Table_Data_Table_1[[#This Row],[Item ID]],DataTable,13,FALSE),IF(Table_Data_Table_1[[#This Row],[Valuation Method]]=\"Abstraction\",VLOOKUP(Table_Data_Table_1[[#This Row],[Item ID]],DataTable,6,FALSE)-VLOOKUP(Table_Data_Table_1[[#This Row],[Item ID]],DataTable,13,FALSE),IF(Table_Data_Table_1[[#This Row],[Valuation Method]]=\"Allocation\",VLOOKUP(Table_Data_Table_1[[#This Row],[Item ID]],DataTable,6,FALSE)*I53,\"\")))","v":133419},{"$f":"IF(Table_Data_Table_1[[#This Row],[Valuation Method]]=\"Vacant\",\"N/A\",IF(Table_Data_Table_1[[#This Row],[Valuation Method]]=\"Abstraction\",Table_Data_Table_1[[#This Row],[Land\nResidual]]/VLOOKUP(Table_Data_Table_1[[#This Row],[Item ID]],DataTable,6,FALSE),IF(Table_Data_Table_1[[#This Row],[Valuation Method]]=\"Allocation\",'Global Settings'!$H$20,\"\")))","v":0.40429999999999999},{"$f":"IFERROR(ROUND(Table_Data_Table_1[[#This Row],[Resid\nSq Ft]]/43560,3),\"\")","v":0.504},{"$f":"IF(Table_Data_Table_1[[#This Row],[Item ID]]=\"\",\"\",IFERROR(VLOOKUP(Table_Data_Table_1[[#This Row],[Item ID]],DataTable,10,FALSE)-VLOOKUP(Table_Data_Table_1[[#This Row],[Item ID]],DataTable,12,FALSE),\"\"))","v":21954.240000000002},{"$f":"IFERROR(Table_Data_Table_1[[#This Row],[Land\nResidual]]/Table_Data_Table_1[[#This Row],[Resid\nAcre]],\"\")","v":264720.23809523811},{"$f":"IFERROR(ROUND(Table_Data_Table_1[[#This Row],[Land\nResidual]]/Table_Data_Table_1[[#This Row],[Resid\nSq Ft]],2),\"\")","v":6.08},{"$f":"IF(Table_Data_Table_1[[#This Row],[Item ID]]=\"\",\"\",ROUND(DAYS360(Table_Data_Table_1[[#This Row],[Sale Date]],'Global Settings'!$H$5)/30,0))","v":6},{"$f":"IFERROR(IF(AND(Table_Data_Table_1[[#This Row],[Months To\nMid-Point]]<12.01,Table_Data_Table_1[[#This Row],[Months To\nMid-Point]]>-13),0,(Table_Data_Table_1[[#This Row],[Months To\nMid-Point]]*'Global Settings'!$H$6)),\"\")","v":0},{"$f":"IFERROR(Table_Data_Table_1[[#This Row],[Land\nResidual]]*(Table_Data_Table_1[[#This Row],[Time\nAdjust]]+1),\"\")","v":133419},{"$f":"IFERROR(Table_Data_Table_1[[#This Row],[Adjusted\nSale Price]]/Table_Data_Table_1[[#This Row],[Resid\nAcre]],\"\")","v":264720.23809523811},{"$f":"IFERROR(ROUND(Table_Data_Table_1[[#This Row],[Adjusted\nSale Price]]/Table_Data_Table_1[[#This Row],[Resid\nSq Ft]],2),\"\")","v":6.08},{"$f":"IFERROR(IF(VLOOKUP(Table_Data_Table_1[[#This Row],[Item ID]],DataTable,11,FALSE)=0,\"N/A\",Table_Data_Table_1[[#This Row],[Adjusted\nSale Price]]/VLOOKUP(Table_Data_Table_1[[#This Row],[Item ID]],DataTable,11,FALSE)),\"\")","v":535.04571703561112},{"$f":"IF(IFERROR(VLOOKUP(Table_Data_Table_1[[#This Row],[Item ID]],DataTable,17,FALSE),\"\")=0,\"\",IFERROR(VLOOKUP(Table_Data_Table_1[[#This Row],[Item ID]],DataTable,17,FALSE),\"\"))","v":""}]
["0-00All1829-364","Allocation",{"$f":"IF(Table_Data_Table_1[[#This Row],[Item ID]]=\"\",\"\",IFERROR(VLOOKUP(Table_Data_Table_1[[#This Row],[Item ID]],DataTable,16,FALSE),\"\"))","v":1},"34-300-110-000-070-00",41829,364600,0,{"$f":"IF(Table_Data_Table_1[[#This Row],[Valuation Method]]=\"Vacant\",VLOOKUP(Table_Data_Table_1[[#This Row],[Item ID]],DataTable,6,FALSE)-VLOOKUP(Table_Data_Table_1[[#This Row],[Item ID]],DataTable,13,FALSE),IF(Table_Data_Table_1[[#This Row],[Valuation Method]]=\"Abstraction\",VLOOKUP(Table_Data_Table_1[[#This Row],[Item ID]],DataTable,6,FALSE)-VLOOKUP(Table_Data_Table_1[[#This Row],[Item ID]],DataTable,13,FALSE),IF(Table_Data_Table_1[[#This Row],[Valuation Method]]=\"Allocation\",VLOOKUP(Table_Data_Table_1[[#This Row],[Item ID]],DataTable,6,FALSE)*I54,\"\")))","v":147407.78},{"$f":"IF(Table_Data_Table_1[[#This Row],[Valuation Method]]=\"Vacant\",\"N/A\",IF(Table_Data_Table_1[[#This Row],[Valuation Method]]=\"Abstraction\",Table_Data_Table_1[[#This Row],[Land\nResidual]]/VLOOKUP(Table_Data_Table_1[[#This Row],[Item ID]],DataTable,6,FALSE),IF(Table_Data_Table_1[[#This Row],[Valuation Method]]=\"Allocation\",'Global Settings'!$H$20,\"\")))","v":0.40429999999999999},{"$f":"IFERROR(ROUND(Table_Data_Table_1[[#This Row],[Resid\nSq Ft]]/43560,3),\"\")","v":0.64100000000000001},{"$f":"IF(Table_Data_Table_1[[#This Row],[Item ID]]=\"\",\"\",IFERROR(VLOOKUP(Table_Data_Table_1[[#This Row],[Item ID]],DataTable,10,FALSE)-VLOOKUP(Table_Data_Table_1[[#This Row],[Item ID]],DataTable,12,FALSE),\"\"))","v":27921.96},{"$f":"IFERROR(Table_Data_Table_1[[#This Row],[Land\nResidual]]/Table_Data_Table_1[[#This Row],[Resid\nAcre]],\"\")","v":229965.33541341653},{"$f":"IFERROR(ROUND(Table_Data_Table_1[[#This Row],[Land\nResidual]]/Table_Data_Table_1[[#This Row],[Resid\nSq Ft]],2),\"\")","v":5.28},{"$f":"IF(Table_Data_Table_1[[#This Row],[Item ID]]=\"\",\"\",ROUND(DAYS360(Table_Data_Table_1[[#This Row],[Sale Date]],'Global Settings'!$H$5)/30,0))","v":105},{"$f":"IFERROR(IF(AND(Table_Data_Table_1[[#This Row],[Months To\nMid-Point]]<12.01,Table_Data_Table_1[[#This Row],[Months To\nMid-Point]]>-13),0,(Table_Data_Table_1[[#This Row],[Months To\nMid-Point]]*'Global Settings'!$H$6)),\"\")","v":0.16459807478965249},{"$f":"IFERROR(Table_Data_Table_1[[#This Row],[Land\nResidual]]*(Table_Data_Table_1[[#This Row],[Time\nAdjust]]+1),\"\")","v":171670.81679701665},{"$f":"IFERROR(Table_Data_Table_1[[#This Row],[Adjusted\nSale Price]]/Table_Data_Table_1[[#This Row],[Resid\nAcre]],\"\")","v":267817.18689082161},{"$f":"IFERROR(ROUND(Table_Data_Table_1[[#This Row],[Adjusted\nSale Price]]/Table_Data_Table_1[[#This Row],[Resid\nSq Ft]],2),\"\")","v":6.15},{"$f":"IFERROR(IF(VLOOKUP(Table_Data_Table_1[[#This Row],[Item ID]],DataTable,11,FALSE)=0,\"N/A\",Table_Data_Table_1[[#This Row],[Adjusted\nSale Price]]/VLOOKUP(Table_Data_Table_1[[#This Row],[Item ID]],DataTable,11,FALSE)),\"\")","v":624.25751562551511},{"$f":"IF(IFERROR(VLOOKUP(Table_Data_Table_1[[#This Row],[Item ID]],DataTable,17,FALSE),\"\")=0,\"\",IFERROR(VLOOKUP(Table_Data_Table_1[[#This Row],[Item ID]],DataTable,17,FALSE),\"\"))","v":""}]
["5-10Vac-1032-300","Vacant",{"$f":"IF(Table_Data_Table_1[[#This Row],[Item ID]]=\"\",\"\",IFERROR(VLOOKUP(Table_Data_Table_1[[#This Row],[Item ID]],DataTable,16,FALSE),\"\"))","v":1},"34-060-140-000-005-10",38968,300000,0,{"$f":"IF(Table_Data_Table_1[[#This Row],[Valuation Method]]=\"Vacant\",VLOOKUP(Table_Data_Table_1[[#This Row],[Item ID]],DataTable,6,FALSE)-VLOOKUP(Table_Data_Table_1[[#This Row],[Item ID]],DataTable,13,FALSE),IF(Table_Data_Table_1[[#This Row],[Valuation Method]]=\"Abstraction\",VLOOKUP(Table_Data_Table_1[[#This Row],[Item ID]],DataTable,6,FALSE)-VLOOKUP(Table_Data_Table_1[[#This Row],[Item ID]],DataTable,13,FALSE),IF(Table_Data_Table_1[[#This Row],[Valuation Method]]=\"Allocation\",VLOOKUP(Table_Data_Table_1[[#This Row],[Item ID]],DataTable,6,FALSE)*I55,\"\")))","v":300000},{"$f":"IF(Table_Data_Table_1[[#This Row],[Valuation Method]]=\"Vacant\",\"N/A\",IF(Table_Data_Table_1[[#This Row],[Valuation Method]]=\"Abstraction\",Table_Data_Table_1[[#This Row],[Land\nResidual]]/VLOOKUP(Table_Data_Table_1[[#This Row],[Item ID]],DataTable,6,FALSE),IF(Table_Data_Table_1[[#This Row],[Valuation Method]]=\"Allocation\",'Global Settings'!$H$20,\"\")))","v":"N/A"},{"$f":"IFERROR(ROUND(Table_Data_Table_1[[#This Row],[Resid\nSq Ft]]/43560,3),\"\")","v":1.446},{"$f":"IF(Table_Data_Table_1[[#This Row],[Item ID]]=\"\",\"\",IFERROR(VLOOKUP(Table_Data_Table_1[[#This Row],[Item ID]],DataTable,10,FALSE)-VLOOKUP(Table_Data_Table_1[[#This Row],[Item ID]],DataTable,12,FALSE),\"\"))","v":62987.759999999995},{"$f":"IFERROR(Table_Data_Table_1[[#This Row],[Land\nResidual]]/Table_Data_Table_1[[#This Row],[Resid\nAcre]],\"\")","v":207468.87966804981},{"$f":"IFERROR(ROUND(Table_Data_Table_1[[#This Row],[Land\nResidual]]/Table_Data_Table_1[[#This Row],[Resid\nSq Ft]],2),\"\")","v":4.76},{"$f":"IF(Table_Data_Table_1[[#This Row],[Item ID]]=\"\",\"\",ROUND(DAYS360(Table_Data_Table_1[[#This Row],[Sale Date]],'Global Settings'!$H$5)/30,0))","v":199},{"$f":"IFERROR(IF(AND(Table_Data_Table_1[[#This Row],[Months To\nMid-Point]]<12.01,Table_Data_Table_1[[#This Row],[Months To\nMid-Point]]>-13),0,(Table_Data_Table_1[[#This Row],[Months To\nMid-Point]]*'Global Settings'!$H$6)),\"\")","v":0.31195254174419851},{"$f":"IFERROR(Table_Data_Table_1[[#This Row],[Land\nResidual]]*(Table_Data_Table_1[[#This Row],[Time\nAdjust]]+1),\"\")","v":393585.76252325956},{"$f":"IFERROR(Table_Data_Table_1[[#This Row],[Adjusted\nSale Price]]/Table_Data_Table_1[[#This Row],[Resid\nAcre]],\"\")","v":272189.32401331922},{"$f":"IFERROR(ROUND(Table_Data_Table_1[[#This Row],[Adjusted\nSale Price]]/Table_Data_Table_1[[#This Row],[Resid\nSq Ft]],2),\"\")","v":6.25},{"$f":"IFERROR(IF(VLOOKUP(Table_Data_Table_1[[#This Row],[Item ID]],DataTable,11,FALSE)=0,\"N/A\",Table_Data_Table_1[[#This Row],[Adjusted\nSale Price]]/VLOOKUP(Table_Data_Table_1[[#This Row],[Item ID]],DataTable,11,FALSE)),\"\")","v":1311.9525417441985},{"$f":"IF(IFERROR(VLOOKUP(Table_Data_Table_1[[#This Row],[Item ID]],DataTable,17,FALSE),\"\")=0,\"\",IFERROR(VLOOKUP(Table_Data_Table_1[[#This Row],[Item ID]],DataTable,17,FALSE),\"\"))","v":""}]
["5-10All1677-297","Allocation",{"$f":"IF(Table_Data_Table_1[[#This Row],[Item ID]]=\"\",\"\",IFERROR(VLOOKUP(Table_Data_Table_1[[#This Row],[Item ID]],DataTable,16,FALSE),\"\"))","v":1},"34-401-250-000-335-10",41677,297000,0,{"$f":"IF(Table_Data_Table_1[[#This Row],[Valuation Method]]=\"Vacant\",VLOOKUP(Table_Data_Table_1[[#This Row],[Item ID]],DataTable,6,FALSE)-VLOOKUP(Table_Data_Table_1[[#This Row],[Item ID]],DataTable,13,FALSE),IF(Table_Data_Table_1[[#This Row],[Valuation Method]]=\"Abstraction\",VLOOKUP(Table_Data_Table_1[[#This Row],[Item ID]],DataTable,6,FALSE)-VLOOKUP(Table_Data_Table_1[[#This Row],[Item ID]],DataTable,13,FALSE),IF(Table_Data_Table_1[[#This Row],[Valuation Method]]=\"Allocation\",VLOOKUP(Table_Data_Table_1[[#This Row],[Item ID]],DataTable,6,FALSE)*I56,\"\")))","v":120077.09999999999},{"$f":"IF(Table_Data_Table_1[[#This Row],[Valuation Method]]=\"Vacant\",\"N/A\",IF(Table_Data_Table_1[[#This Row],[Valuation Method]]=\"Abstraction\",Table_Data_Table_1[[#This Row],[Land\nResidual]]/VLOOKUP(Table_Data_Table_1[[#This Row],[Item ID]],DataTable,6,FALSE),IF(Table_Data_Table_1[[#This Row],[Valuation Method]]=\"Allocation\",'Global Settings'!$H$20,\"\")))","v":0.40429999999999999},{"$f":"IFERROR(ROUND(Table_Data_Table_1[[#This Row],[Resid\nSq Ft]]/43560,3),\"\")","v":0.504},{"$f":"IF(Table_Data_Table_1[[#This Row],[Item ID]]=\"\",\"\",IFERROR(VLOOKUP(Table_Data_Table_1[[#This Row],[Item ID]],DataTable,10,FALSE)-VLOOKUP(Table_Data_Table_1[[#This Row],[Item ID]],DataTable,12,FALSE),\"\"))","v":21943.68},{"$f":"IFERROR(Table_Data_Table_1[[#This Row],[Land\nResidual]]/Table_Data_Table_1[[#This Row],[Resid\nAcre]],\"\")","v":238248.21428571426},{"$f":"IFERROR(ROUND(Table_Data_Table_1[[#This Row],[Land\nResidual]]/Table_Data_Table_1[[#This Row],[Resid\nSq Ft]],2),\"\")","v":5.47},{"$f":"IF(Table_Data_Table_1[[#This Row],[Item ID]]=\"\",\"\",ROUND(DAYS360(Table_Data_Table_1[[#This Row],[Sale Date]],'Global Settings'!$H$5)/30,0))","v":110},{"$f":"IFERROR(IF(AND(Table_Data_Table_1[[#This Row],[Months To\nMid-Point]]<12.01,Table_Data_Table_1[[#This Row],[Months To\nMid-Point]]>-13),0,(Table_Data_Table_1[[#This Row],[Months To\nMid-Point]]*'Global Settings'!$H$6)),\"\")","v":0.1724360783510645},{"$f":"IFERROR(Table_Data_Table_1[[#This Row],[Land\nResidual]]*(Table_Data_Table_1[[#This Row],[Time\nAdjust]]+1),\"\")","v":140782.7242237686},{"$f":"IFERROR(Table_Data_Table_1[[#This Row],[Adjusted\nSale Price]]/Table_Data_Table_1[[#This Row],[Resid\nAcre]],\"\")","v":279330.80203128688},{"$f":"IFERROR(ROUND(Table_Data_Table_1[[#This Row],[Adjusted\nSale Price]]/Table_Data_Table_1[[#This Row],[Resid\nSq Ft]],2),\"\")","v":6.42},{"$f":"IFERROR(IF(VLOOKUP(Table_Data_Table_1[[#This Row],[Item ID]],DataTable,11,FALSE)=0,\"N/A\",Table_Data_Table_1[[#This Row],[Adjusted\nSale Price]]/VLOOKUP(Table_Data_Table_1[[#This Row],[Item ID]],DataTable,11,FALSE)),\"\")","v":564.57621199778873},{"$f":"IF(IFERROR(VLOOKUP(Table_Data_Table_1[[#This Row],[Item ID]],DataTable,17,FALSE),\"\")=0,\"\",IFERROR(VLOOKUP(Table_Data_Table_1[[#This Row],[Item ID]],DataTable,17,FALSE),\"\"))","v":""}]
["0-70Vac2138-450","Vacant",{"$f":"IF(Table_Data_Table_1[[#This Row],[Item ID]]=\"\",\"\",IFERROR(VLOOKUP(Table_Data_Table_1[[#This Row],[Item ID]],DataTable,16,FALSE),\"\"))","v":1},"34-010-036-000-160-70",42138,450000,0,{"$f":"IF(Table_Data_Table_1[[#This Row],[Valuation Method]]=\"Vacant\",VLOOKUP(Table_Data_Table_1[[#This Row],[Item ID]],DataTable,6,FALSE)-VLOOKUP(Table_Data_Table_1[[#This Row],[Item ID]],DataTable,13,FALSE),IF(Table_Data_Table_1[[#This Row],[Valuation Method]]=\"Abstraction\",VLOOKUP(Table_Data_Table_1[[#This Row],[Item ID]],DataTable,6,FALSE)-VLOOKUP(Table_Data_Table_1[[#This Row],[Item ID]],DataTable,13,FALSE),IF(Table_Data_Table_1[[#This Row],[Valuation Method]]=\"Allocation\",VLOOKUP(Table_Data_Table_1[[#This Row],[Item ID]],DataTable,6,FALSE)*I57,\"\")))","v":450000},{"$f":"IF(Table_Data_Table_1[[#This Row],[Valuation Method]]=\"Vacant\",\"N/A\",IF(Table_Data_Table_1[[#This Row],[Valuation Method]]=\"Abstraction\",Table_Data_Table_1[[#This Row],[Land\nResidual]]/VLOOKUP(Table_Data_Table_1[[#This Row],[Item ID]],DataTable,6,FALSE),IF(Table_Data_Table_1[[#This Row],[Valuation Method]]=\"Allocation\",'Global Settings'!$H$20,\"\")))","v":"N/A"},{"$f":"IFERROR(ROUND(Table_Data_Table_1[[#This Row],[Resid\nSq Ft]]/43560,3),\"\")","v":1.796},{"$f":"IF(Table_Data_Table_1[[#This Row],[Item ID]]=\"\",\"\",IFERROR(VLOOKUP(Table_Data_Table_1[[#This Row],[Item ID]],DataTable,10,FALSE)-VLOOKUP(Table_Data_Table_1[[#This Row],[Item ID]],DataTable,12,FALSE),\"\"))","v":78233.760000000009},{"$f":"IFERROR(Table_Data_Table_1[[#This Row],[Land\nResidual]]/Table_Data_Table_1[[#This Row],[Resid\nAcre]],\"\")","v":250556.79287305122},{"$f":"IFERROR(ROUND(Table_Data_Table_1[[#This Row],[Land\nResidual]]/Table_Data_Table_1[[#This Row],[Resid\nSq Ft]],2),\"\")","v":5.75},{"$f":"IF(Table_Data_Table_1[[#This Row],[Item ID]]=\"\",\"\",ROUND(DAYS360(Table_Data_Table_1[[#This Row],[Sale Date]],'Global Settings'!$H$5)/30,0))","v":95},{"$f":"IFERROR(IF(AND(Table_Data_Table_1[[#This Row],[Months To\nMid-Point]]<12.01,Table_Data_Table_1[[#This Row],[Months To\nMid-Point]]>-13),0,(Table_Data_Table_1[[#This Row],[Months To\nMid-Point]]*'Global Settings'!$H$6)),\"\")","v":0.14892206766682844},{"$f":"IFERROR(Table_Data_Table_1[[#This Row],[Land\nResidual]]*(Table_Data_Table_1[[#This Row],[Time\nAdjust]]+1),\"\")","v":517014.93045007274},{"$f":"IFERROR(Table_Data_Table_1[[#This Row],[Adjusted\nSale Price]]/Table_Data_Table_1[[#This Row],[Resid\nAcre]],\"\")","v":287870.22853567527},{"$f":"IFERROR(ROUND(Table_Data_Table_1[[#This Row],[Adjusted\nSale Price]]/Table_Data_Table_1[[#This Row],[Resid\nSq Ft]],2),\"\")","v":6.61},{"$f":"IFERROR(IF(VLOOKUP(Table_Data_Table_1[[#This Row],[Item ID]],DataTable,11,FALSE)=0,\"N/A\",Table_Data_Table_1[[#This Row],[Adjusted\nSale Price]]/VLOOKUP(Table_Data_Table_1[[#This Row],[Item ID]],DataTable,11,FALSE)),\"\")","v":2027.5095311767559},{"$f":"IF(IFERROR(VLOOKUP(Table_Data_Table_1[[#This Row],[Item ID]],DataTable,17,FALSE),\"\")=0,\"\",IFERROR(VLOOKUP(Table_Data_Table_1[[#This Row],[Item ID]],DataTable,17,FALSE),\"\"))","v":""}]
["5-10Abs4841-330","Abstraction",{"$f":"IF(Table_Data_Table_1[[#This Row],[Item ID]]=\"\",\"\",IFERROR(VLOOKUP(Table_Data_Table_1[[#This Row],[Item ID]],DataTable,16,FALSE),\"\"))","v":1},"34-401-250-000-335-10",44841,330000,179757,{"$f":"IF(Table_Data_Table_1[[#This Row],[Valuation Method]]=\"Vacant\",VLOOKUP(Table_Data_Table_1[[#This Row],[Item ID]],DataTable,6,FALSE)-VLOOKUP(Table_Data_Table_1[[#This Row],[Item ID]],DataTable,13,FALSE),IF(Table_Data_Table_1[[#This Row],[Valuation Method]]=\"Abstraction\",VLOOKUP(Table_Data_Table_1[[#This Row],[Item ID]],DataTable,6,FALSE)-VLOOKUP(Table_Data_Table_1[[#This Row],[Item ID]],DataTable,13,FALSE),IF(Table_Data_Table_1[[#This Row],[Valuation Method]]=\"Allocation\",VLOOKUP(Table_Data_Table_1[[#This Row],[Item ID]],DataTable,6,FALSE)*I58,\"\")))","v":150243},{"$f":"IF(Table_Data_Table_1[[#This Row],[Valuation Method]]=\"Vacant\",\"N/A\",IF(Table_Data_Table_1[[#This Row],[Valuation Method]]=\"Abstraction\",Table_Data_Table_1[[#This Row],[Land\nResidual]]/VLOOKUP(Table_Data_Table_1[[#This Row],[Item ID]],DataTable,6,FALSE),IF(Table_Data_Table_1[[#This Row],[Valuation Method]]=\"Allocation\",'Global Settings'!$H$20,\"\")))","v":0.45528181818181818},{"$f":"IFERROR(ROUND(Table_Data_Table_1[[#This Row],[Resid\nSq Ft]]/43560,3),\"\")","v":0.504},{"$f":"IF(Table_Data_Table_1[[#This Row],[Item ID]]=\"\",\"\",IFERROR(VLOOKUP(Table_Data_Table_1[[#This Row],[Item ID]],DataTable,10,FALSE)-VLOOKUP(Table_Data_Table_1[[#This Row],[Item ID]],DataTable,12,FALSE),\"\"))","v":21954.240000000002},{"$f":"IFERROR(Table_Data_Table_1[[#This Row],[Land\nResidual]]/Table_Data_Table_1[[#This Row],[Resid\nAcre]],\"\")","v":298101.19047619047},{"$f":"IFERROR(ROUND(Table_Data_Table_1[[#This Row],[Land\nResidual]]/Table_Data_Table_1[[#This Row],[Resid\nSq Ft]],2),\"\")","v":6.84},{"$f":"IF(Table_Data_Table_1[[#This Row],[Item ID]]=\"\",\"\",ROUND(DAYS360(Table_Data_Table_1[[#This Row],[Sale Date]],'Global Settings'!$H$5)/30,0))","v":6},{"$f":"IFERROR(IF(AND(Table_Data_Table_1[[#This Row],[Months To\nMid-Point]]<12.01,Table_Data_Table_1[[#This Row],[Months To\nMid-Point]]>-13),0,(Table_Data_Table_1[[#This Row],[Months To\nMid-Point]]*'Global Settings'!$H$6)),\"\")","v":0},{"$f":"IFERROR(Table_Data_Table_1[[#This Row],[Land\nResidual]]*(Table_Data_Table_1[[#This Row],[Time\nAdjust]]+1),\"\")","v":150243},{"$f":"IFERROR(Table_Data_Table_1[[#This Row],[Adjusted\nSale Price]]/Table_Data_Table_1[[#This Row],[Resid\nAcre]],\"\")","v":298101.19047619047},{"$f":"IFERROR(ROUND(Table_Data_Table_1[[#This Row],[Adjusted\nSale Price]]/Table_Data_Table_1[[#This Row],[Resid\nSq Ft]],2),\"\")","v":6.84},{"$f":"IFERROR(IF(VLOOKUP(Table_Data_Table_1[[#This Row],[Item ID]],DataTable,11,FALSE)=0,\"N/A\",Table_Data_Table_1[[#This Row],[Adjusted\nSale Price]]/VLOOKUP(Table_Data_Table_1[[#This Row],[Item ID]],DataTable,11,FALSE)),\"\")","v":602.51443695861406},{"$f":"IF(IFERROR(VLOOKUP(Table_Data_Table_1[[#This Row],[Item ID]],DataTable,17,FALSE),\"\")=0,\"\",IFERROR(VLOOKUP(Table_Data_Table_1[[#This Row],[Item ID]],DataTable,17,FALSE),\"\"))","v":""}]
["5-17All2585-650","Allocation",{"$f":"IF(Table_Data_Table_1[[#This Row],[Item ID]]=\"\",\"\",IFERROR(VLOOKUP(Table_Data_Table_1[[#This Row],[Item ID]],DataTable,16,FALSE),\"\"))","v":1},"34-201-030-000-045-17",42585,650418,0,{"$f":"IF(Table_Data_Table_1[[#This Row],[Valuation Method]]=\"Vacant\",VLOOKUP(Table_Data_Table_1[[#This Row],[Item ID]],DataTable,6,FALSE)-VLOOKUP(Table_Data_Table_1[[#This Row],[Item ID]],DataTable,13,FALSE),IF(Table_Data_Table_1[[#This Row],[Valuation Method]]=\"Abstraction\",VLOOKUP(Table_Data_Table_1[[#This Row],[Item ID]],DataTable,6,FALSE)-VLOOKUP(Table_Data_Table_1[[#This Row],[Item ID]],DataTable,13,FALSE),IF(Table_Data_Table_1[[#This Row],[Valuation Method]]=\"Allocation\",VLOOKUP(Table_Data_Table_1[[#This Row],[Item ID]],DataTable,6,FALSE)*I59,\"\")))","v":262963.99739999999},{"$f":"IF(Table_Data_Table_1[[#This Row],[Valuation Method]]=\"Vacant\",\"N/A\",IF(Table_Data_Table_1[[#This Row],[Valuation Method]]=\"Abstraction\",Table_Data_Table_1[[#This Row],[Land\nResidual]]/VLOOKUP(Table_Data_Table_1[[#This Row],[Item ID]],DataTable,6,FALSE),IF(Table_Data_Table_1[[#This Row],[Valuation Method]]=\"Allocation\",'Global Settings'!$H$20,\"\")))","v":0.40429999999999999},{"$f":"IFERROR(ROUND(Table_Data_Table_1[[#This Row],[Resid\nSq Ft]]/43560,3),\"\")","v":0.99099999999999999},{"$f":"IF(Table_Data_Table_1[[#This Row],[Item ID]]=\"\",\"\",IFERROR(VLOOKUP(Table_Data_Table_1[[#This Row],[Item ID]],DataTable,10,FALSE)-VLOOKUP(Table_Data_Table_1[[#This Row],[Item ID]],DataTable,12,FALSE),\"\"))","v":43167.96},{"$f":"IFERROR(Table_Data_Table_1[[#This Row],[Land\nResidual]]/Table_Data_Table_1[[#This Row],[Resid\nAcre]],\"\")","v":265352.16690211906},{"$f":"IFERROR(ROUND(Table_Data_Table_1[[#This Row],[Land\nResidual]]/Table_Data_Table_1[[#This Row],[Resid\nSq Ft]],2),\"\")","v":6.09},{"$f":"IF(Table_Data_Table_1[[#This Row],[Item ID]]=\"\",\"\",ROUND(DAYS360(Table_Data_Table_1[[#This Row],[Sale Date]],'Global Settings'!$H$5)/30,0))","v":80},{"$f":"IFERROR(IF(AND(Table_Data_Table_1[[#This Row],[Months To\nMid-Point]]<12.01,Table_Data_Table_1[[#This Row],[Months To\nMid-Point]]>-13),0,(Table_Data_Table_1[[#This Row],[Months To\nMid-Point]]*'Global Settings'!$H$6)),\"\")","v":0.12540805698259239},{"$f":"IFERROR(Table_Data_Table_1[[#This Row],[Land\nResidual]]*(Table_Data_Table_1[[#This Row],[Time\nAdjust]]+1),\"\")","v":295941.80137030949},{"$f":"IFERROR(Table_Data_Table_1[[#This Row],[Adjusted\nSale Price]]/Table_Data_Table_1[[#This Row],[Resid\nAcre]],\"\")","v":298629.46656943439},{"$f":"IFERROR(ROUND(Table_Data_Table_1[[#This Row],[Adjusted\nSale Price]]/Table_Data_Table_1[[#This Row],[Resid\nSq Ft]],2),\"\")","v":6.86},{"$f":"IFERROR(IF(VLOOKUP(Table_Data_Table_1[[#This Row],[Item ID]],DataTable,11,FALSE)=0,\"N/A\",Table_Data_Table_1[[#This Row],[Adjusted\nSale Price]]/VLOOKUP(Table_Data_Table_1[[#This Row],[Item ID]],DataTable,11,FALSE)),\"\")","v":1494.6555624763105},{"$f":"IF(IFERROR(VLOOKUP(Table_Data_Table_1[[#This Row],[Item ID]],DataTable,17,FALSE),\"\")=0,\"\",IFERROR(VLOOKUP(Table_Data_Table_1[[#This Row],[Item ID]],DataTable,17,FALSE),\"\"))","v":""}]
["5-20All4559-182","Allocation",{"$f":"IF(Table_Data_Table_1[[#This Row],[Item ID]]=\"\",\"\",IFERROR(VLOOKUP(Table_Data_Table_1[[#This Row],[Item ID]],DataTable,16,FALSE),\"\"))","v":1},"34-060-031-000-045-20",44559,1825000,1228290,{"$f":"IF(Table_Data_Table_1[[#This Row],[Valuation Method]]=\"Vacant\",VLOOKUP(Table_Data_Table_1[[#This Row],[Item ID]],DataTable,6,FALSE)-VLOOKUP(Table_Data_Table_1[[#This Row],[Item ID]],DataTable,13,FALSE),IF(Table_Data_Table_1[[#This Row],[Valuation Method]]=\"Abstraction\",VLOOKUP(Table_Data_Table_1[[#This Row],[Item ID]],DataTable,6,FALSE)-VLOOKUP(Table_Data_Table_1[[#This Row],[Item ID]],DataTable,13,FALSE),IF(Table_Data_Table_1[[#This Row],[Valuation Method]]=\"Allocation\",VLOOKUP(Table_Data_Table_1[[#This Row],[Item ID]],DataTable,6,FALSE)*I60,\"\")))","v":737847.5},{"$f":"IF(Table_Data_Table_1[[#This Row],[Valuation Method]]=\"Vacant\",\"N/A\",IF(Table_Data_Table_1[[#This Row],[Valuation Method]]=\"Abstraction\",Table_Data_Table_1[[#This Row],[Land\nResidual]]/VLOOKUP(Table_Data_Table_1[[#This Row],[Item ID]],DataTable,6,FALSE),IF(Table_Data_Table_1[[#This Row],[Valuation Method]]=\"Allocation\",'Global Settings'!$H$20,\"\")))","v":0.40429999999999999},{"$f":"IFERROR(ROUND(Table_Data_Table_1[[#This Row],[Resid\nSq Ft]]/43560,3),\"\")","v":2.4550000000000001},{"$f":"IF(Table_Data_Table_1[[#This Row],[Item ID]]=\"\",\"\",IFERROR(VLOOKUP(Table_Data_Table_1[[#This Row],[Item ID]],DataTable,10,FALSE)-VLOOKUP(Table_Data_Table_1[[#This Row],[Item ID]],DataTable,12,FALSE),\"\"))","v":106939.79999999999},{"$f":"IFERROR(Table_Data_Table_1[[#This Row],[Land\nResidual]]/Table_Data_Table_1[[#This Row],[Resid\nAcre]],\"\")","v":300548.87983706722},{"$f":"IFERROR(ROUND(Table_Data_Table_1[[#This Row],[Land\nResidual]]/Table_Data_Table_1[[#This Row],[Resid\nSq Ft]],2),\"\")","v":6.9},{"$f":"IF(Table_Data_Table_1[[#This Row],[Item ID]]=\"\",\"\",ROUND(DAYS360(Table_Data_Table_1[[#This Row],[Sale Date]],'Global Settings'!$H$5)/30,0))","v":15},{"$f":"IFERROR(IF(AND(Table_Data_Table_1[[#This Row],[Months To\nMid-Point]]<12.01,Table_Data_Table_1[[#This Row],[Months To\nMid-Point]]>-13),0,(Table_Data_Table_1[[#This Row],[Months To\nMid-Point]]*'Global Settings'!$H$6)),\"\")","v":2.3514010684236069E-2},{"$f":"IFERROR(Table_Data_Table_1[[#This Row],[Land\nResidual]]*(Table_Data_Table_1[[#This Row],[Time\nAdjust]]+1),\"\")","v":755197.25399833685},{"$f":"IFERROR(Table_Data_Table_1[[#This Row],[Adjusted\nSale Price]]/Table_Data_Table_1[[#This Row],[Resid\nAcre]],\"\")","v":307615.98940869118},{"$f":"IFERROR(ROUND(Table_Data_Table_1[[#This Row],[Adjusted\nSale Price]]/Table_Data_Table_1[[#This Row],[Resid\nSq Ft]],2),\"\")","v":7.06},{"$f":"IFERROR(IF(VLOOKUP(Table_Data_Table_1[[#This Row],[Item ID]],DataTable,11,FALSE)=0,\"N/A\",Table_Data_Table_1[[#This Row],[Adjusted\nSale Price]]/VLOOKUP(Table_Data_Table_1[[#This Row],[Item ID]],DataTable,11,FALSE)),\"\")","v":3389.5747486460359},{"$f":"IF(IFERROR(VLOOKUP(Table_Data_Table_1[[#This Row],[Item ID]],DataTable,17,FALSE),\"\")=0,\"\",IFERROR(VLOOKUP(Table_Data_Table_1[[#This Row],[Item ID]],DataTable,17,FALSE),\"\"))","v":""}]
["5-42Vac-1340-485","Vacant",{"$f":"IF(Table_Data_Table_1[[#This Row],[Item ID]]=\"\",\"\",IFERROR(VLOOKUP(Table_Data_Table_1[[#This Row],[Item ID]],DataTable,16,FALSE),\"\"))","v":1},"34-011-001-000-085-42",38660,485000,0,{"$f":"IF(Table_Data_Table_1[[#This Row],[Valuation Method]]=\"Vacant\",VLOOKUP(Table_Data_Table_1[[#This Row],[Item ID]],DataTable,6,FALSE)-VLOOKUP(Table_Data_Table_1[[#This Row],[Item ID]],DataTable,13,FALSE),IF(Table_Data_Table_1[[#This Row],[Valuation Method]]=\"Abstraction\",VLOOKUP(Table_Data_Table_1[[#This Row],[Item ID]],DataTable,6,FALSE)-VLOOKUP(Table_Data_Table_1[[#This Row],[Item ID]],DataTable,13,FALSE),IF(Table_Data_Table_1[[#This Row],[Valuation Method]]=\"Allocation\",VLOOKUP(Table_Data_Table_1[[#This Row],[Item ID]],DataTable,6,FALSE)*I61,\"\")))","v":485000},{"$f":"IF(Table_Data_Table_1[[#This Row],[Valuation Method]]=\"Vacant\",\"N/A\",IF(Table_Data_Table_1[[#This Row],[Valuation Method]]=\"Abstraction\",Table_Data_Table_1[[#This Row],[Land\nResidual]]/VLOOKUP(Table_Data_Table_1[[#This Row],[Item ID]],DataTable,6,FALSE),IF(Table_Data_Table_1[[#This Row],[Valuation Method]]=\"Allocation\",'Global Settings'!$H$20,\"\")))","v":"N/A"},{"$f":"IFERROR(ROUND(Table_Data_Table_1[[#This Row],[Resid\nSq Ft]]/43560,3),\"\")","v":1.87},{"$f":"IF(Table_Data_Table_1[[#This Row],[Item ID]]=\"\",\"\",IFERROR(VLOOKUP(Table_Data_Table_1[[#This Row],[Item ID]],DataTable,10,FALSE)-VLOOKUP(Table_Data_Table_1[[#This Row],[Item ID]],DataTable,12,FALSE),\"\"))","v":81457.200000000012},{"$f":"IFERROR(Table_Data_Table_1[[#This Row],[Land\nResidual]]/Table_Data_Table_1[[#This Row],[Resid\nAcre]],\"\")","v":259358.28877005345},{"$f":"IFERROR(ROUND(Table_Data_Table_1[[#This Row],[Land\nResidual]]/Table_Data_Table_1[[#This Row],[Resid\nSq Ft]],2),\"\")","v":5.95},{"$f":"IF(Table_Data_Table_1[[#This Row],[Item ID]]=\"\",\"\",ROUND(DAYS360(Table_Data_Table_1[[#This Row],[Sale Date]],'Global Settings'!$H$5)/30,0))","v":209},{"$f":"IFERROR(IF(AND(Table_Data_Table_1[[#This Row],[Months To\nMid-Point]]<12.01,Table_Data_Table_1[[#This Row],[Months To\nMid-Point]]>-13),0,(Table_Data_Table_1[[#This Row],[Months To\nMid-Point]]*'Global Settings'!$H$6)),\"\")","v":0.32762854886702258},{"$f":"IFERROR(Table_Data_Table_1[[#This Row],[Land\nResidual]]*(Table_Data_Table_1[[#This Row],[Time\nAdjust]]+1),\"\")","v":643899.84620050597},{"$f":"IFERROR(Table_Data_Table_1[[#This Row],[Adjusted\nSale Price]]/Table_Data_Table_1[[#This Row],[Resid\nAcre]],\"\")","v":344331.4685564203},{"$f":"IFERROR(ROUND(Table_Data_Table_1[[#This Row],[Adjusted\nSale Price]]/Table_Data_Table_1[[#This Row],[Resid\nSq Ft]],2),\"\")","v":7.9},{"$f":"IFERROR(IF(VLOOKUP(Table_Data_Table_1[[#This Row],[Item ID]],DataTable,11,FALSE)=0,\"N/A\",Table_Data_Table_1[[#This Row],[Adjusted\nSale Price]]/VLOOKUP(Table_Data_Table_1[[#This Row],[Item ID]],DataTable,11,FALSE)),\"\")","v":1993.1894325971396},{"$f":"IF(IFERROR(VLOOKUP(Table_Data_Table_1[[#This Row],[Item ID]],DataTable,17,FALSE),\"\")=0,\"\",IFERROR(VLOOKUP(Table_Data_Table_1[[#This Row],[Item ID]],DataTable,17,FALSE),\"\"))","v":""}]
["0-00All3538-535","Allocation",{"$f":"IF(Table_Data_Table_1[[#This Row],[Item ID]]=\"\",\"\",IFERROR(VLOOKUP(Table_Data_Table_1[[#This Row],[Item ID]],DataTable,16,FALSE),\"\"))","v":1},"34-300-110-000-050-00",43538,535000,0,{"$f":"IF(Table_Data_Table_1[[#This Row],[Valuation Method]]=\"Vacant\",VLOOKUP(Table_Data_Table_1[[#This Row],[Item ID]],DataTable,6,FALSE)-VLOOKUP(Table_Data_Table_1[[#This Row],[Item ID]],DataTable,13,FALSE),IF(Table_Data_Table_1[[#This Row],[Valuation Method]]=\"Abstraction\",VLOOKUP(Table_Data_Table_1[[#This Row],[Item ID]],DataTable,6,FALSE)-VLOOKUP(Table_Data_Table_1[[#This Row],[Item ID]],DataTable,13,FALSE),IF(Table_Data_Table_1[[#This Row],[Valuation Method]]=\"Allocation\",VLOOKUP(Table_Data_Table_1[[#This Row],[Item ID]],DataTable,6,FALSE)*I62,\"\")))","v":216300.5},{"$f":"IF(Table_Data_Table_1[[#This Row],[Valuation Method]]=\"Vacant\",\"N/A\",IF(Table_Data_Table_1[[#This Row],[Valuation Method]]=\"Abstraction\",Table_Data_Table_1[[#This Row],[Land\nResidual]]/VLOOKUP(Table_Data_Table_1[[#This Row],[Item ID]],DataTable,6,FALSE),IF(Table_Data_Table_1[[#This Row],[Valuation Method]]=\"Allocation\",'Global Settings'!$H$20,\"\")))","v":0.40429999999999999},{"$f":"IFERROR(ROUND(Table_Data_Table_1[[#This Row],[Resid\nSq Ft]]/43560,3),\"\")","v":0.63},{"$f":"IF(Table_Data_Table_1[[#This Row],[Item ID]]=\"\",\"\",IFERROR(VLOOKUP(Table_Data_Table_1[[#This Row],[Item ID]],DataTable,10,FALSE)-VLOOKUP(Table_Data_Table_1[[#This Row],[Item ID]],DataTable,12,FALSE),\"\"))","v":27442.799999999999},{"$f":"IFERROR(Table_Data_Table_1[[#This Row],[Land\nResidual]]/Table_Data_Table_1[[#This Row],[Resid\nAcre]],\"\")","v":343334.12698412698},{"$f":"IFERROR(ROUND(Table_Data_Table_1[[#This Row],[Land\nResidual]]/Table_Data_Table_1[[#This Row],[Resid\nSq Ft]],2),\"\")","v":7.88},{"$f":"IF(Table_Data_Table_1[[#This Row],[Item ID]]=\"\",\"\",ROUND(DAYS360(Table_Data_Table_1[[#This Row],[Sale Date]],'Global Settings'!$H$5)/30,0))","v":49},{"$f":"IFERROR(IF(AND(Table_Data_Table_1[[#This Row],[Months To\nMid-Point]]<12.01,Table_Data_Table_1[[#This Row],[Months To\nMid-Point]]>-13),0,(Table_Data_Table_1[[#This Row],[Months To\nMid-Point]]*'Global Settings'!$H$6)),\"\")","v":7.6812434901837826E-2},{"$f":"IFERROR(Table_Data_Table_1[[#This Row],[Land\nResidual]]*(Table_Data_Table_1[[#This Row],[Time\nAdjust]]+1),\"\")","v":232915.06807548495},{"$f":"IFERROR(Table_Data_Table_1[[#This Row],[Adjusted\nSale Price]]/Table_Data_Table_1[[#This Row],[Resid\nAcre]],\"\")","v":369706.45726267452},{"$f":"IFERROR(ROUND(Table_Data_Table_1[[#This Row],[Adjusted\nSale Price]]/Table_Data_Table_1[[#This Row],[Resid\nSq Ft]],2),\"\")","v":8.49},{"$f":"IFERROR(IF(VLOOKUP(Table_Data_Table_1[[#This Row],[Item ID]],DataTable,11,FALSE)=0,\"N/A\",Table_Data_Table_1[[#This Row],[Adjusted\nSale Price]]/VLOOKUP(Table_Data_Table_1[[#This Row],[Item ID]],DataTable,11,FALSE)),\"\")","v":1035.1780803354886},{"$f":"IF(IFERROR(VLOOKUP(Table_Data_Table_1[[#This Row],[Item ID]],DataTable,17,FALSE),\"\")=0,\"\",IFERROR(VLOOKUP(Table_Data_Table_1[[#This Row],[Item ID]],DataTable,17,FALSE),\"\"))","v":""}]
["0-21Vac4006-650","Vacant",{"$f":"IF(Table_Data_Table_1[[#This Row],[Item ID]]=\"\",\"\",IFERROR(VLOOKUP(Table_Data_Table_1[[#This Row],[Item ID]],DataTable,16,FALSE),\"\"))","v":1},"34-010-036-000-170-21",44006,650000,0,{"$f":"IF(Table_Data_Table_1[[#This Row],[Valuation Method]]=\"Vacant\",VLOOKUP(Table_Data_Table_1[[#This Row],[Item ID]],DataTable,6,FALSE)-VLOOKUP(Table_Data_Table_1[[#This Row],[Item ID]],DataTable,13,FALSE),IF(Table_Data_Table_1[[#This Row],[Valuation Method]]=\"Abstraction\",VLOOKUP(Table_Data_Table_1[[#This Row],[Item ID]],DataTable,6,FALSE)-VLOOKUP(Table_Data_Table_1[[#This Row],[Item ID]],DataTable,13,FALSE),IF(Table_Data_Table_1[[#This Row],[Valuation Method]]=\"Allocation\",VLOOKUP(Table_Data_Table_1[[#This Row],[Item ID]],DataTable,6,FALSE)*I63,\"\")))","v":650000},{"$f":"IF(Table_Data_Table_1[[#This Row],[Valuation Method]]=\"Vacant\",\"N/A\",IF(Table_Data_Table_1[[#This Row],[Valuation Method]]=\"Abstraction\",Table_Data_Table_1[[#This Row],[Land\nResidual]]/VLOOKUP(Table_Data_Table_1[[#This Row],[Item ID]],DataTable,6,FALSE),IF(Table_Data_Table_1[[#This Row],[Valuation Method]]=\"Allocation\",'Global Settings'!$H$20,\"\")))","v":"N/A"},{"$f":"IFERROR(ROUND(Table_Data_Table_1[[#This Row],[Resid\nSq Ft]]/43560,3),\"\")","v":1.77},{"$f":"IF(Table_Data_Table_1[[#This Row],[Item ID]]=\"\",\"\",IFERROR(VLOOKUP(Table_Data_Table_1[[#This Row],[Item ID]],DataTable,10,FALSE)-VLOOKUP(Table_Data_Table_1[[#This Row],[Item ID]],DataTable,12,FALSE),\"\"))","v":77101.200000000012},{"$f":"IFERROR(Table_Data_Table_1[[#This Row],[Land\nResidual]]/Table_Data_Table_1[[#This Row],[Resid\nAcre]],\"\")","v":367231.63841807912},{"$f":"IFERROR(ROUND(Table_Data_Table_1[[#This Row],[Land\nResidual]]/Table_Data_Table_1[[#This Row],[Resid\nSq Ft]],2),\"\")","v":8.43},{"$f":"IF(Table_Data_Table_1[[#This Row],[Item ID]]=\"\",\"\",ROUND(DAYS360(Table_Data_Table_1[[#This Row],[Sale Date]],'Global Settings'!$H$5)/30,0))","v":33},{"$f":"IFERROR(IF(AND(Table_Data_Table_1[[#This Row],[Months To\nMid-Point]]<12.01,Table_Data_Table_1[[#This Row],[Months To\nMid-Point]]>-13),0,(Table_Data_Table_1[[#This Row],[Months To\nMid-Point]]*'Global Settings'!$H$6)),\"\")","v":5.1730823505319351E-2},{"$f":"IFERROR(Table_Data_Table_1[[#This Row],[Land\nResidual]]*(Table_Data_Table_1[[#This Row],[Time\nAdjust]]+1),\"\")","v":683625.03527845757},{"$f":"IFERROR(Table_Data_Table_1[[#This Row],[Adjusted\nSale Price]]/Table_Data_Table_1[[#This Row],[Resid\nAcre]],\"\")","v":386228.83349065401},{"$f":"IFERROR(ROUND(Table_Data_Table_1[[#This Row],[Adjusted\nSale Price]]/Table_Data_Table_1[[#This Row],[Resid\nSq Ft]],2),\"\")","v":8.8699999999999992},{"$f":"IFERROR(IF(VLOOKUP(Table_Data_Table_1[[#This Row],[Item ID]],DataTable,11,FALSE)=0,\"N/A\",Table_Data_Table_1[[#This Row],[Adjusted\nSale Price]]/VLOOKUP(Table_Data_Table_1[[#This Row],[Item ID]],DataTable,11,FALSE)),\"\")","v":2317.3730009439241},{"$f":"IF(IFERROR(VLOOKUP(Table_Data_Table_1[[#This Row],[Item ID]],DataTable,17,FALSE),\"\")=0,\"\",IFERROR(VLOOKUP(Table_Data_Table_1[[#This Row],[Item ID]],DataTable,17,FALSE),\"\"))","v":""}]
["0-00Abs3538-535","Abstraction",{"$f":"IF(Table_Data_Table_1[[#This Row],[Item ID]]=\"\",\"\",IFERROR(VLOOKUP(Table_Data_Table_1[[#This Row],[Item ID]],DataTable,16,FALSE),\"\"))","v":1},"34-300-110-000-050-00",43538,535000,298263,{"$f":"IF(Table_Data_Table_1[[#This Row],[Valuation Method]]=\"Vacant\",VLOOKUP(Table_Data_Table_1[[#This Row],[Item ID]],DataTable,6,FALSE)-VLOOKUP(Table_Data_Table_1[[#This Row],[Item ID]],DataTable,13,FALSE),IF(Table_Data_Table_1[[#This Row],[Valuation Method]]=\"Abstraction\",VLOOKUP(Table_Data_Table_1[[#This Row],[Item ID]],DataTable,6,FALSE)-VLOOKUP(Table_Data_Table_1[[#This Row],[Item ID]],DataTable,13,FALSE),IF(Table_Data_Table_1[[#This Row],[Valuation Method]]=\"Allocation\",VLOOKUP(Table_Data_Table_1[[#This Row],[Item ID]],DataTable,6,FALSE)*I64,\"\")))","v":236737},{"$f":"IF(Table_Data_Table_1[[#This Row],[Valuation Method]]=\"Vacant\",\"N/A\",IF(Table_Data_Table_1[[#This Row],[Valuation Method]]=\"Abstraction\",Table_Data_Table_1[[#This Row],[Land\nResidual]]/VLOOKUP(Table_Data_Table_1[[#This Row],[Item ID]],DataTable,6,FALSE),IF(Table_Data_Table_1[[#This Row],[Valuation Method]]=\"Allocation\",'Global Settings'!$H$20,\"\")))","v":0.44249906542056072},{"$f":"IFERROR(ROUND(Table_Data_Table_1[[#This Row],[Resid\nSq Ft]]/43560,3),\"\")","v":0.63},{"$f":"IF(Table_Data_Table_1[[#This Row],[Item ID]]=\"\",\"\",IFERROR(VLOOKUP(Table_Data_Table_1[[#This Row],[Item ID]],DataTable,10,FALSE)-VLOOKUP(Table_Data_Table_1[[#This Row],[Item ID]],DataTable,12,FALSE),\"\"))","v":27442.799999999999},{"$f":"IFERROR(Table_Data_Table_1[[#This Row],[Land\nResidual]]/Table_Data_Table_1[[#This Row],[Resid\nAcre]],\"\")","v":375773.01587301586},{"$f":"IFERROR(ROUND(Table_Data_Table_1[[#This Row],[Land\nResidual]]/Table_Data_Table_1[[#This Row],[Resid\nSq Ft]],2),\"\")","v":8.6300000000000008},{"$f":"IF(Table_Data_Table_1[[#This Row],[Item ID]]=\"\",\"\",ROUND(DAYS360(Table_Data_Table_1[[#This Row],[Sale Date]],'Global Settings'!$H$5)/30,0))","v":49},{"$f":"IFERROR(IF(AND(Table_Data_Table_1[[#This Row],[Months To\nMid-Point]]<12.01,Table_Data_Table_1[[#This Row],[Months To\nMid-Point]]>-13),0,(Table_Data_Table_1[[#This Row],[Months To\nMid-Point]]*'Global Settings'!$H$6)),\"\")","v":7.6812434901837826E-2},{"$f":"IFERROR(Table_Data_Table_1[[#This Row],[Land\nResidual]]*(Table_Data_Table_1[[#This Row],[Time\nAdjust]]+1),\"\")","v":254921.34540135638},{"$f":"IFERROR(Table_Data_Table_1[[#This Row],[Adjusted\nSale Price]]/Table_Data_Table_1[[#This Row],[Resid\nAcre]],\"\")","v":404637.05619262916},{"$f":"IFERROR(ROUND(Table_Data_Table_1[[#This Row],[Adjusted\nSale Price]]/Table_Data_Table_1[[#This Row],[Resid\nSq Ft]],2),\"\")","v":9.2899999999999991},{"$f":"IFERROR(IF(VLOOKUP(Table_Data_Table_1[[#This Row],[Item ID]],DataTable,11,FALSE)=0,\"N/A\",Table_Data_Table_1[[#This Row],[Adjusted\nSale Price]]/VLOOKUP(Table_Data_Table_1[[#This Row],[Item ID]],DataTable,11,FALSE)),\"\")","v":1132.9837573393618},{"$f":"IF(IFERROR(VLOOKUP(Table_Data_Table_1[[#This Row],[Item ID]],DataTable,17,FALSE),\"\")=0,\"\",IFERROR(VLOOKUP(Table_Data_Table_1[[#This Row],[Item ID]],DataTable,17,FALSE),\"\"))","v":""}]
["0-01All4861-122","Allocation",{"$f":"IF(Table_Data_Table_1[[#This Row],[Item ID]]=\"\",\"\",IFERROR(VLOOKUP(Table_Data_Table_1[[#This Row],[Item ID]],DataTable,16,FALSE),\"\"))","v":1},"300-110-000-070-01",44861,1225000,0,{"$f":"IF(Table_Data_Table_1[[#This Row],[Valuation Method]]=\"Vacant\",VLOOKUP(Table_Data_Table_1[[#This Row],[Item ID]],DataTable,6,FALSE)-VLOOKUP(Table_Data_Table_1[[#This Row],[Item ID]],DataTable,13,FALSE),IF(Table_Data_Table_1[[#This Row],[Valuation Method]]=\"Abstraction\",VLOOKUP(Table_Data_Table_1[[#This Row],[Item ID]],DataTable,6,FALSE)-VLOOKUP(Table_Data_Table_1[[#This Row],[Item ID]],DataTable,13,FALSE),IF(Table_Data_Table_1[[#This Row],[Valuation Method]]=\"Allocation\",VLOOKUP(Table_Data_Table_1[[#This Row],[Item ID]],DataTable,6,FALSE)*I65,\"\")))","v":495267.5},{"$f":"IF(Table_Data_Table_1[[#This Row],[Valuation Method]]=\"Vacant\",\"N/A\",IF(Table_Data_Table_1[[#This Row],[Valuation Method]]=\"Abstraction\",Table_Data_Table_1[[#This Row],[Land\nResidual]]/VLOOKUP(Table_Data_Table_1[[#This Row],[Item ID]],DataTable,6,FALSE),IF(Table_Data_Table_1[[#This Row],[Valuation Method]]=\"Allocation\",'Global Settings'!$H$20,\"\")))","v":0.40429999999999999},{"$f":"IFERROR(ROUND(Table_Data_Table_1[[#This Row],[Resid\nSq Ft]]/43560,3),\"\")","v":1},{"$f":"IF(Table_Data_Table_1[[#This Row],[Item ID]]=\"\",\"\",IFERROR(VLOOKUP(Table_Data_Table_1[[#This Row],[Item ID]],DataTable,10,FALSE)-VLOOKUP(Table_Data_Table_1[[#This Row],[Item ID]],DataTable,12,FALSE),\"\"))","v":43560},{"$f":"IFERROR(Table_Data_Table_1[[#This Row],[Land\nResidual]]/Table_Data_Table_1[[#This Row],[Resid\nAcre]],\"\")","v":495267.5},{"$f":"IFERROR(ROUND(Table_Data_Table_1[[#This Row],[Land\nResidual]]/Table_Data_Table_1[[#This Row],[Resid\nSq Ft]],2),\"\")","v":11.37},{"$f":"IF(Table_Data_Table_1[[#This Row],[Item ID]]=\"\",\"\",ROUND(DAYS360(Table_Data_Table_1[[#This Row],[Sale Date]],'Global Settings'!$H$5)/30,0))","v":5},{"$f":"IFERROR(IF(AND(Table_Data_Table_1[[#This Row],[Months To\nMid-Point]]<12.01,Table_Data_Table_1[[#This Row],[Months To\nMid-Point]]>-13),0,(Table_Data_Table_1[[#This Row],[Months To\nMid-Point]]*'Global Settings'!$H$6)),\"\")","v":0},{"$f":"IFERROR(Table_Data_Table_1[[#This Row],[Land\nResidual]]*(Table_Data_Table_1[[#This Row],[Time\nAdjust]]+1),\"\")","v":495267.5},{"$f":"IFERROR(Table_Data_Table_1[[#This Row],[Adjusted\nSale Price]]/Table_Data_Table_1[[#This Row],[Resid\nAcre]],\"\")","v":495267.5},{"$f":"IFERROR(ROUND(Table_Data_Table_1[[#This Row],[Adjusted\nSale Price]]/Table_Data_Table_1[[#This Row],[Resid\nSq Ft]],2),\"\")","v":11.37},{"$f":"IFERROR(IF(VLOOKUP(Table_Data_Table_1[[#This Row],[Item ID]],DataTable,11,FALSE)=0,\"N/A\",Table_Data_Table_1[[#This Row],[Adjusted\nSale Price]]/VLOOKUP(Table_Data_Table_1[[#This Row],[Item ID]],DataTable,11,FALSE)),\"\")","v":3439.3576388888887},{"$f":"IF(IFERROR(VLOOKUP(Table_Data_Table_1[[#This Row],[Item ID]],DataTable,17,FALSE),\"\")=0,\"\",IFERROR(VLOOKUP(Table_Data_Table_1[[#This Row],[Item ID]],DataTable,17,FALSE),\"\"))","v":""}]
["",null,{"$f":"IF(Table_Data_Table_1[[#This Row],[Item ID]]=\"\",\"\",IFERROR(VLOOKUP(Table_Data_Table_1[[#This Row],[Item ID]],DataTable,16,FALSE),\"\"))","v":""},null,null,null,null,{"$f":"IF(Table_Data_Table_1[[#This Row],[Valuation Method]]=\"Vacant\",VLOOKUP(Table_Data_Table_1[[#This Row],[Item ID]],DataTable,6,FALSE)-VLOOKUP(Table_Data_Table_1[[#This Row],[Item ID]],DataTable,13,FALSE),IF(Table_Data_Table_1[[#This Row],[Valuation Method]]=\"Abstraction\",VLOOKUP(Table_Data_Table_1[[#This Row],[Item ID]],DataTable,6,FALSE)-VLOOKUP(Table_Data_Table_1[[#This Row],[Item ID]],DataTable,13,FALSE),IF(Table_Data_Table_1[[#This Row],[Valuation Method]]=\"Allocation\",VLOOKUP(Table_Data_Table_1[[#This Row],[Item ID]],DataTable,6,FALSE)*I66,\"\")))","v":""},{"$f":"IF(Table_Data_Table_1[[#This Row],[Valuation Method]]=\"Vacant\",\"N/A\",IF(Table_Data_Table_1[[#This Row],[Valuation Method]]=\"Abstraction\",Table_Data_Table_1[[#This Row],[Land\nResidual]]/VLOOKUP(Table_Data_Table_1[[#This Row],[Item ID]],DataTable,6,FALSE),IF(Table_Data_Table_1[[#This Row],[Valuation Method]]=\"Allocation\",'Global Settings'!$H$20,\"\")))","v":""},{"$f":"IFERROR(ROUND(Table_Data_Table_1[[#This Row],[Resid\nSq Ft]]/43560,3),\"\")","v":""},{"$f":"IF(Table_Data_Table_1[[#This Row],[Item ID]]=\"\",\"\",IFERROR(VLOOKUP(Table_Data_Table_1[[#This Row],[Item ID]],DataTable,10,FALSE)-VLOOKUP(Table_Data_Table_1[[#This Row],[Item ID]],DataTable,12,FALSE),\"\"))","v":""},{"$f":"IFERROR(Table_Data_Table_1[[#This Row],[Land\nResidual]]/Table_Data_Table_1[[#This Row],[Resid\nAcre]],\"\")","v":""},{"$f":"IFERROR(ROUND(Table_Data_Table_1[[#This Row],[Land\nResidual]]/Table_Data_Table_1[[#This Row],[Resid\nSq Ft]],2),\"\")","v":""},{"$f":"IF(Table_Data_Table_1[[#This Row],[Item ID]]=\"\",\"\",ROUND(DAYS360(Table_Data_Table_1[[#This Row],[Sale Date]],'Global Settings'!$H$5)/30,0))","v":""},{"$f":"IFERROR(IF(AND(Table_Data_Table_1[[#This Row],[Months To\nMid-Point]]<12.01,Table_Data_Table_1[[#This Row],[Months To\nMid-Point]]>-13),0,(Table_Data_Table_1[[#This Row],[Months To\nMid-Point]]*'Global Settings'!$H$6)),\"\")","v":""},{"$f":"IFERROR(Table_Data_Table_1[[#This Row],[Land\nResidual]]*(Table_Data_Table_1[[#This Row],[Time\nAdjust]]+1),\"\")","v":""},{"$f":"IFERROR(Table_Data_Table_1[[#This Row],[Adjusted\nSale Price]]/Table_Data_Table_1[[#This Row],[Resid\nAcre]],\"\")","v":""},{"$f":"IFERROR(ROUND(Table_Data_Table_1[[#This Row],[Adjusted\nSale Price]]/Table_Data_Table_1[[#This Row],[Resid\nSq Ft]],2),\"\")","v":""},{"$f":"IFERROR(IF(VLOOKUP(Table_Data_Table_1[[#This Row],[Item ID]],DataTable,11,FALSE)=0,\"N/A\",Table_Data_Table_1[[#This Row],[Adjusted\nSale Price]]/VLOOKUP(Table_Data_Table_1[[#This Row],[Item ID]],DataTable,11,FALSE)),\"\")","v":""},{"$f":"IF(IFERROR(VLOOKUP(Table_Data_Table_1[[#This Row],[Item ID]],DataTable,17,FALSE),\"\")=0,\"\",IFERROR(VLOOKUP(Table_Data_Table_1[[#This Row],[Item ID]],DataTable,17,FALSE),\"\"))","v":""}]
["",null,{"$f":"IF(Table_Data_Table_1[[#This Row],[Item ID]]=\"\",\"\",IFERROR(VLOOKUP(Table_Data_Table_1[[#This Row],[Item ID]],DataTable,16,FALSE),\"\"))","v":""},null,null,null,null,{"$f":"IF(Table_Data_Table_1[[#This Row],[Valuation Method]]=\"Vacant\",VLOOKUP(Table_Data_Table_1[[#This Row],[Item ID]],DataTable,6,FALSE)-VLOOKUP(Table_Data_Table_1[[#This Row],[Item ID]],DataTable,13,FALSE),IF(Table_Data_Table_1[[#This Row],[Valuation Method]]=\"Abstraction\",VLOOKUP(Table_Data_Table_1[[#This Row],[Item ID]],DataTable,6,FALSE)-VLOOKUP(Table_Data_Table_1[[#This Row],[Item ID]],DataTable,13,FALSE),IF(Table_Data_Table_1[[#This Row],[Valuation Method]]=\"Allocation\",VLOOKUP(Table_Data_Table_1[[#This Row],[Item ID]],DataTable,6,FALSE)*I67,\"\")))","v":""},{"$f":"IF(Table_Data_Table_1[[#This Row],[Valuation Method]]=\"Vacant\",\"N/A\",IF(Table_Data_Table_1[[#This Row],[Valuation Method]]=\"Abstraction\",Table_Data_Table_1[[#This Row],[Land\nResidual]]/VLOOKUP(Table_Data_Table_1[[#This Row],[Item ID]],DataTable,6,FALSE),IF(Table_Data_Table_1[[#This Row],[Valuation Method]]=\"Allocation\",'Global Settings'!$H$20,\"\")))","v":""},{"$f":"IFERROR(ROUND(Table_Data_Table_1[[#This Row],[Resid\nSq Ft]]/43560,3),\"\")","v":""},{"$f":"IF(Table_Data_Table_1[[#This Row],[Item ID]]=\"\",\"\",IFERROR(VLOOKUP(Table_Data_Table_1[[#This Row],[Item ID]],DataTable,10,FALSE)-VLOOKUP(Table_Data_Table_1[[#This Row],[Item ID]],DataTable,12,FALSE),\"\"))","v":""},{"$f":"IFERROR(Table_Data_Table_1[[#This Row],[Land\nResidual]]/Table_Data_Table_1[[#This Row],[Resid\nAcre]],\"\")","v":""},{"$f":"IFERROR(ROUND(Table_Data_Table_1[[#This Row],[Land\nResidual]]/Table_Data_Table_1[[#This Row],[Resid\nSq Ft]],2),\"\")","v":""},{"$f":"IF(Table_Data_Table_1[[#This Row],[Item ID]]=\"\",\"\",ROUND(DAYS360(Table_Data_Table_1[[#This Row],[Sale Date]],'Global Settings'!$H$5)/30,0))","v":""},{"$f":"IFERROR(IF(AND(Table_Data_Table_1[[#This Row],[Months To\nMid-Point]]<12.01,Table_Data_Table_1[[#This Row],[Months To\nMid-Point]]>-13),0,(Table_Data_Table_1[[#This Row],[Months To\nMid-Point]]*'Global Settings'!$H$6)),\"\")","v":""},{"$f":"IFERROR(Table_Data_Table_1[[#This Row],[Land\nResidual]]*(Table_Data_Table_1[[#This Row],[Time\nAdjust]]+1),\"\")","v":""},{"$f":"IFERROR(Table_Data_Table_1[[#This Row],[Adjusted\nSale Price]]/Table_Data_Table_1[[#This Row],[Resid\nAcre]],\"\")","v":""},{"$f":"IFERROR(ROUND(Table_Data_Table_1[[#This Row],[Adjusted\nSale Price]]/Table_Data_Table_1[[#This Row],[Resid\nSq Ft]],2),\"\")","v":""},{"$f":"IFERROR(IF(VLOOKUP(Table_Data_Table_1[[#This Row],[Item ID]],DataTable,11,FALSE)=0,\"N/A\",Table_Data_Table_1[[#This Row],[Adjusted\nSale Price]]/VLOOKUP(Table_Data_Table_1[[#This Row],[Item ID]],DataTable,11,FALSE)),\"\")","v":""},{"$f":"IF(IFERROR(VLOOKUP(Table_Data_Table_1[[#This Row],[Item ID]],DataTable,17,FALSE),\"\")=0,\"\",IFERROR(VLOOKUP(Table_Data_Table_1[[#This Row],[Item ID]],DataTable,17,FALSE),\"\"))","v":""}]
["",null,{"$f":"IF(Table_Data_Table_1[[#This Row],[Item ID]]=\"\",\"\",IFERROR(VLOOKUP(Table_Data_Table_1[[#This Row],[Item ID]],DataTable,16,FALSE),\"\"))","v":""},null,null,null,null,{"$f":"IF(Table_Data_Table_1[[#This Row],[Valuation Method]]=\"Vacant\",VLOOKUP(Table_Data_Table_1[[#This Row],[Item ID]],DataTable,6,FALSE)-VLOOKUP(Table_Data_Table_1[[#This Row],[Item ID]],DataTable,13,FALSE),IF(Table_Data_Table_1[[#This Row],[Valuation Method]]=\"Abstraction\",VLOOKUP(Table_Data_Table_1[[#This Row],[Item ID]],DataTable,6,FALSE)-VLOOKUP(Table_Data_Table_1[[#This Row],[Item ID]],DataTable,13,FALSE),IF(Table_Data_Table_1[[#This Row],[Valuation Method]]=\"Allocation\",VLOOKUP(Table_Data_Table_1[[#This Row],[Item ID]],DataTable,6,FALSE)*I68,\"\")))","v":""},{"$f":"IF(Table_Data_Table_1[[#This Row],[Valuation Method]]=\"Vacant\",\"N/A\",IF(Table_Data_Table_1[[#This Row],[Valuation Method]]=\"Abstraction\",Table_Data_Table_1[[#This Row],[Land\nResidual]]/VLOOKUP(Table_Data_Table_1[[#This Row],[Item ID]],DataTable,6,FALSE),IF(Table_Data_Table_1[[#This Row],[Valuation Method]]=\"Allocation\",'Global Settings'!$H$20,\"\")))","v":""},{"$f":"IFERROR(ROUND(Table_Data_Table_1[[#This Row],[Resid\nSq Ft]]/43560,3),\"\")","v":""},{"$f":"IF(Table_Data_Table_1[[#This Row],[Item ID]]=\"\",\"\",IFERROR(VLOOKUP(Table_Data_Table_1[[#This Row],[Item ID]],DataTable,10,FALSE)-VLOOKUP(Table_Data_Table_1[[#This Row],[Item ID]],DataTable,12,FALSE),\"\"))","v":""},{"$f":"IFERROR(Table_Data_Table_1[[#This Row],[Land\nResidual]]/Table_Data_Table_1[[#This Row],[Resid\nAcre]],\"\")","v":""},{"$f":"IFERROR(ROUND(Table_Data_Table_1[[#This Row],[Land\nResidual]]/Table_Data_Table_1[[#This Row],[Resid\nSq Ft]],2),\"\")","v":""},{"$f":"IF(Table_Data_Table_1[[#This Row],[Item ID]]=\"\",\"\",ROUND(DAYS360(Table_Data_Table_1[[#This Row],[Sale Date]],'Global Settings'!$H$5)/30,0))","v":""},{"$f":"IFERROR(IF(AND(Table_Data_Table_1[[#This Row],[Months To\nMid-Point]]<12.01,Table_Data_Table_1[[#This Row],[Months To\nMid-Point]]>-13),0,(Table_Data_Table_1[[#This Row],[Months To\nMid-Point]]*'Global Settings'!$H$6)),\"\")","v":""},{"$f":"IFERROR(Table_Data_Table_1[[#This Row],[Land\nResidual]]*(Table_Data_Table_1[[#This Row],[Time\nAdjust]]+1),\"\")","v":""},{"$f":"IFERROR(Table_Data_Table_1[[#This Row],[Adjusted\nSale Price]]/Table_Data_Table_1[[#This Row],[Resid\nAcre]],\"\")","v":""},{"$f":"IFERROR(ROUND(Table_Data_Table_1[[#This Row],[Adjusted\nSale Price]]/Table_Data_Table_1[[#This Row],[Resid\nSq Ft]],2),\"\")","v":""},{"$f":"IFERROR(IF(VLOOKUP(Table_Data_Table_1[[#This Row],[Item ID]],DataTable,11,FALSE)=0,\"N/A\",Table_Data_Table_1[[#This Row],[Adjusted\nSale Price]]/VLOOKUP(Table_Data_Table_1[[#This Row],[Item ID]],DataTable,11,FALSE)),\"\")","v":""},{"$f":"IF(IFERROR(VLOOKUP(Table_Data_Table_1[[#This Row],[Item ID]],DataTable,17,FALSE),\"\")=0,\"\",IFERROR(VLOOKUP(Table_Data_Table_1[[#This Row],[Item ID]],DataTable,17,FALSE),\"\"))","v":""}]
["",null,{"$f":"IF(Table_Data_Table_1[[#This Row],[Item ID]]=\"\",\"\",IFERROR(VLOOKUP(Table_Data_Table_1[[#This Row],[Item ID]],DataTable,16,FALSE),\"\"))","v":""},null,null,null,null,{"$f":"IF(Table_Data_Table_1[[#This Row],[Valuation Method]]=\"Vacant\",VLOOKUP(Table_Data_Table_1[[#This Row],[Item ID]],DataTable,6,FALSE)-VLOOKUP(Table_Data_Table_1[[#This Row],[Item ID]],DataTable,13,FALSE),IF(Table_Data_Table_1[[#This Row],[Valuation Method]]=\"Abstraction\",VLOOKUP(Table_Data_Table_1[[#This Row],[Item ID]],DataTable,6,FALSE)-VLOOKUP(Table_Data_Table_1[[#This Row],[Item ID]],DataTable,13,FALSE),IF(Table_Data_Table_1[[#This Row],[Valuation Method]]=\"Allocation\",VLOOKUP(Table_Data_Table_1[[#This Row],[Item ID]],DataTable,6,FALSE)*I69,\"\")))","v":""},{"$f":"IF(Table_Data_Table_1[[#This Row],[Valuation Method]]=\"Vacant\",\"N/A\",IF(Table_Data_Table_1[[#This Row],[Valuation Method]]=\"Abstraction\",Table_Data_Table_1[[#This Row],[Land\nResidual]]/VLOOKUP(Table_Data_Table_1[[#This Row],[Item ID]],DataTable,6,FALSE),IF(Table_Data_Table_1[[#This Row],[Valuation Method]]=\"Allocation\",'Global Settings'!$H$20,\"\")))","v":""},{"$f":"IFERROR(ROUND(Table_Data_Table_1[[#This Row],[Resid\nSq Ft]]/43560,3),\"\")","v":""},{"$f":"IF(Table_Data_Table_1[[#This Row],[Item ID]]=\"\",\"\",IFERROR(VLOOKUP(Table_Data_Table_1[[#This Row],[Item ID]],DataTable,10,FALSE)-VLOOKUP(Table_Data_Table_1[[#This Row],[Item ID]],DataTable,12,FALSE),\"\"))","v":""},{"$f":"IFERROR(Table_Data_Table_1[[#This Row],[Land\nResidual]]/Table_Data_Table_1[[#This Row],[Resid\nAcre]],\"\")","v":""},{"$f":"IFERROR(ROUND(Table_Data_Table_1[[#This Row],[Land\nResidual]]/Table_Data_Table_1[[#This Row],[Resid\nSq Ft]],2),\"\")","v":""},{"$f":"IF(Table_Data_Table_1[[#This Row],[Item ID]]=\"\",\"\",ROUND(DAYS360(Table_Data_Table_1[[#This Row],[Sale Date]],'Global Settings'!$H$5)/30,0))","v":""},{"$f":"IFERROR(IF(AND(Table_Data_Table_1[[#This Row],[Months To\nMid-Point]]<12.01,Table_Data_Table_1[[#This Row],[Months To\nMid-Point]]>-13),0,(Table_Data_Table_1[[#This Row],[Months To\nMid-Point]]*'Global Settings'!$H$6)),\"\")","v":""},{"$f":"IFERROR(Table_Data_Table_1[[#This Row],[Land\nResidual]]*(Table_Data_Table_1[[#This Row],[Time\nAdjust]]+1),\"\")","v":""},{"$f":"IFERROR(Table_Data_Table_1[[#This Row],[Adjusted\nSale Price]]/Table_Data_Table_1[[#This Row],[Resid\nAcre]],\"\")","v":""},{"$f":"IFERROR(ROUND(Table_Data_Table_1[[#This Row],[Adjusted\nSale Price]]/Table_Data_Table_1[[#This Row],[Resid\nSq Ft]],2),\"\")","v":""},{"$f":"IFERROR(IF(VLOOKUP(Table_Data_Table_1[[#This Row],[Item ID]],DataTable,11,FALSE)=0,\"N/A\",Table_Data_Table_1[[#This Row],[Adjusted\nSale Price]]/VLOOKUP(Table_Data_Table_1[[#This Row],[Item ID]],DataTable,11,FALSE)),\"\")","v":""},{"$f":"IF(IFERROR(VLOOKUP(Table_Data_Table_1[[#This Row],[Item ID]],DataTable,17,FALSE),\"\")=0,\"\",IFERROR(VLOOKUP(Table_Data_Table_1[[#This Row],[Item ID]],DataTable,17,FALSE),\"\"))","v":""}]
["",null,{"$f":"IF(Table_Data_Table_1[[#This Row],[Item ID]]=\"\",\"\",IFERROR(VLOOKUP(Table_Data_Table_1[[#This Row],[Item ID]],DataTable,16,FALSE),\"\"))","v":""},null,null,null,null,{"$f":"IF(Table_Data_Table_1[[#This Row],[Valuation Method]]=\"Vacant\",VLOOKUP(Table_Data_Table_1[[#This Row],[Item ID]],DataTable,6,FALSE)-VLOOKUP(Table_Data_Table_1[[#This Row],[Item ID]],DataTable,13,FALSE),IF(Table_Data_Table_1[[#This Row],[Valuation Method]]=\"Abstraction\",VLOOKUP(Table_Data_Table_1[[#This Row],[Item ID]],DataTable,6,FALSE)-VLOOKUP(Table_Data_Table_1[[#This Row],[Item ID]],DataTable,13,FALSE),IF(Table_Data_Table_1[[#This Row],[Valuation Method]]=\"Allocation\",VLOOKUP(Table_Data_Table_1[[#This Row],[Item ID]],DataTable,6,FALSE)*I70,\"\")))","v":""},{"$f":"IF(Table_Data_Table_1[[#This Row],[Valuation Method]]=\"Vacant\",\"N/A\",IF(Table_Data_Table_1[[#This Row],[Valuation Method]]=\"Abstraction\",Table_Data_Table_1[[#This Row],[Land\nResidual]]/VLOOKUP(Table_Data_Table_1[[#This Row],[Item ID]],DataTable,6,FALSE),IF(Table_Data_Table_1[[#This Row],[Valuation Method]]=\"Allocation\",'Global Settings'!$H$20,\"\")))","v":""},{"$f":"IFERROR(ROUND(Table_Data_Table_1[[#This Row],[Resid\nSq Ft]]/43560,3),\"\")","v":""},{"$f":"IF(Table_Data_Table_1[[#This Row],[Item ID]]=\"\",\"\",IFERROR(VLOOKUP(Table_Data_Table_1[[#This Row],[Item ID]],DataTable,10,FALSE)-VLOOKUP(Table_Data_Table_1[[#This Row],[Item ID]],DataTable,12,FALSE),\"\"))","v":""},{"$f":"IFERROR(Table_Data_Table_1[[#This Row],[Land\nResidual]]/Table_Data_Table_1[[#This Row],[Resid\nAcre]],\"\")","v":""},{"$f":"IFERROR(ROUND(Table_Data_Table_1[[#This Row],[Land\nResidual]]/Table_Data_Table_1[[#This Row],[Resid\nSq Ft]],2),\"\")","v":""},{"$f":"IF(Table_Data_Table_1[[#This Row],[Item ID]]=\"\",\"\",ROUND(DAYS360(Table_Data_Table_1[[#This Row],[Sale Date]],'Global Settings'!$H$5)/30,0))","v":""},{"$f":"IFERROR(IF(AND(Table_Data_Table_1[[#This Row],[Months To\nMid-Point]]<12.01,Table_Data_Table_1[[#This Row],[Months To\nMid-Point]]>-13),0,(Table_Data_Table_1[[#This Row],[Months To\nMid-Point]]*'Global Settings'!$H$6)),\"\")","v":""},{"$f":"IFERROR(Table_Data_Table_1[[#This Row],[Land\nResidual]]*(Table_Data_Table_1[[#This Row],[Time\nAdjust]]+1),\"\")","v":""},{"$f":"IFERROR(Table_Data_Table_1[[#This Row],[Adjusted\nSale Price]]/Table_Data_Table_1[[#This Row],[Resid\nAcre]],\"\")","v":""},{"$f":"IFERROR(ROUND(Table_Data_Table_1[[#This Row],[Adjusted\nSale Price]]/Table_Data_Table_1[[#This Row],[Resid\nSq Ft]],2),\"\")","v":""},{"$f":"IFERROR(IF(VLOOKUP(Table_Data_Table_1[[#This Row],[Item ID]],DataTable,11,FALSE)=0,\"N/A\",Table_Data_Table_1[[#This Row],[Adjusted\nSale Price]]/VLOOKUP(Table_Data_Table_1[[#This Row],[Item ID]],DataTable,11,FALSE)),\"\")","v":""},{"$f":"IF(IFERROR(VLOOKUP(Table_Data_Table_1[[#This Row],[Item ID]],DataTable,17,FALSE),\"\")=0,\"\",IFERROR(VLOOKUP(Table_Data_Table_1[[#This Row],[Item ID]],DataTable,17,FALSE),\"\"))","v":""}]
["",null,{"$f":"IF(Table_Data_Table_1[[#This Row],[Item ID]]=\"\",\"\",IFERROR(VLOOKUP(Table_Data_Table_1[[#This Row],[Item ID]],DataTable,16,FALSE),\"\"))","v":""},null,null,null,null,{"$f":"IF(Table_Data_Table_1[[#This Row],[Valuation Method]]=\"Vacant\",VLOOKUP(Table_Data_Table_1[[#This Row],[Item ID]],DataTable,6,FALSE)-VLOOKUP(Table_Data_Table_1[[#This Row],[Item ID]],DataTable,13,FALSE),IF(Table_Data_Table_1[[#This Row],[Valuation Method]]=\"Abstraction\",VLOOKUP(Table_Data_Table_1[[#This Row],[Item ID]],DataTable,6,FALSE)-VLOOKUP(Table_Data_Table_1[[#This Row],[Item ID]],DataTable,13,FALSE),IF(Table_Data_Table_1[[#This Row],[Valuation Method]]=\"Allocation\",VLOOKUP(Table_Data_Table_1[[#This Row],[Item ID]],DataTable,6,FALSE)*I71,\"\")))","v":""},{"$f":"IF(Table_Data_Table_1[[#This Row],[Valuation Method]]=\"Vacant\",\"N/A\",IF(Table_Data_Table_1[[#This Row],[Valuation Method]]=\"Abstraction\",Table_Data_Table_1[[#This Row],[Land\nResidual]]/VLOOKUP(Table_Data_Table_1[[#This Row],[Item ID]],DataTable,6,FALSE),IF(Table_Data_Table_1[[#This Row],[Valuation Method]]=\"Allocation\",'Global Settings'!$H$20,\"\")))","v":""},{"$f":"IFERROR(ROUND(Table_Data_Table_1[[#This Row],[Resid\nSq Ft]]/43560,3),\"\")","v":""},{"$f":"IF(Table_Data_Table_1[[#This Row],[Item ID]]=\"\",\"\",IFERROR(VLOOKUP(Table_Data_Table_1[[#This Row],[Item ID]],DataTable,10,FALSE)-VLOOKUP(Table_Data_Table_1[[#This Row],[Item ID]],DataTable,12,FALSE),\"\"))","v":""},{"$f":"IFERROR(Table_Data_Table_1[[#This Row],[Land\nResidual]]/Table_Data_Table_1[[#This Row],[Resid\nAcre]],\"\")","v":""},{"$f":"IFERROR(ROUND(Table_Data_Table_1[[#This Row],[Land\nResidual]]/Table_Data_Table_1[[#This Row],[Resid\nSq Ft]],2),\"\")","v":""},{"$f":"IF(Table_Data_Table_1[[#This Row],[Item ID]]=\"\",\"\",ROUND(DAYS360(Table_Data_Table_1[[#This Row],[Sale Date]],'Global Settings'!$H$5)/30,0))","v":""},{"$f":"IFERROR(IF(AND(Table_Data_Table_1[[#This Row],[Months To\nMid-Point]]<12.01,Table_Data_Table_1[[#This Row],[Months To\nMid-Point]]>-13),0,(Table_Data_Table_1[[#This Row],[Months To\nMid-Point]]*'Global Settings'!$H$6)),\"\")","v":""},{"$f":"IFERROR(Table_Data_Table_1[[#This Row],[Land\nResidual]]*(Table_Data_Table_1[[#This Row],[Time\nAdjust]]+1),\"\")","v":""},{"$f":"IFERROR(Table_Data_Table_1[[#This Row],[Adjusted\nSale Price]]/Table_Data_Table_1[[#This Row],[Resid\nAcre]],\"\")","v":""},{"$f":"IFERROR(ROUND(Table_Data_Table_1[[#This Row],[Adjusted\nSale Price]]/Table_Data_Table_1[[#This Row],[Resid\nSq Ft]],2),\"\")","v":""},{"$f":"IFERROR(IF(VLOOKUP(Table_Data_Table_1[[#This Row],[Item ID]],DataTable,11,FALSE)=0,\"N/A\",Table_Data_Table_1[[#This Row],[Adjusted\nSale Price]]/VLOOKUP(Table_Data_Table_1[[#This Row],[Item ID]],DataTable,11,FALSE)),\"\")","v":""},{"$f":"IF(IFERROR(VLOOKUP(Table_Data_Table_1[[#This Row],[Item ID]],DataTable,17,FALSE),\"\")=0,\"\",IFERROR(VLOOKUP(Table_Data_Table_1[[#This Row],[Item ID]],DataTable,17,FALSE),\"\"))","v":""}]
["",null,{"$f":"IF(Table_Data_Table_1[[#This Row],[Item ID]]=\"\",\"\",IFERROR(VLOOKUP(Table_Data_Table_1[[#This Row],[Item ID]],DataTable,16,FALSE),\"\"))","v":""},null,null,null,null,{"$f":"IF(Table_Data_Table_1[[#This Row],[Valuation Method]]=\"Vacant\",VLOOKUP(Table_Data_Table_1[[#This Row],[Item ID]],DataTable,6,FALSE)-VLOOKUP(Table_Data_Table_1[[#This Row],[Item ID]],DataTable,13,FALSE),IF(Table_Data_Table_1[[#This Row],[Valuation Method]]=\"Abstraction\",VLOOKUP(Table_Data_Table_1[[#This Row],[Item ID]],DataTable,6,FALSE)-VLOOKUP(Table_Data_Table_1[[#This Row],[Item ID]],DataTable,13,FALSE),IF(Table_Data_Table_1[[#This Row],[Valuation Method]]=\"Allocation\",VLOOKUP(Table_Data_Table_1[[#This Row],[Item ID]],DataTable,6,FALSE)*I72,\"\")))","v":""},{"$f":"IF(Table_Data_Table_1[[#This Row],[Valuation Method]]=\"Vacant\",\"N/A\",IF(Table_Data_Table_1[[#This Row],[Valuation Method]]=\"Abstraction\",Table_Data_Table_1[[#This Row],[Land\nResidual]]/VLOOKUP(Table_Data_Table_1[[#This Row],[Item ID]],DataTable,6,FALSE),IF(Table_Data_Table_1[[#This Row],[Valuation Method]]=\"Allocation\",'Global Settings'!$H$20,\"\")))","v":""},{"$f":"IFERROR(ROUND(Table_Data_Table_1[[#This Row],[Resid\nSq Ft]]/43560,3),\"\")","v":""},{"$f":"IF(Table_Data_Table_1[[#This Row],[Item ID]]=\"\",\"\",IFERROR(VLOOKUP(Table_Data_Table_1[[#This Row],[Item ID]],DataTable,10,FALSE)-VLOOKUP(Table_Data_Table_1[[#This Row],[Item ID]],DataTable,12,FALSE),\"\"))","v":""},{"$f":"IFERROR(Table_Data_Table_1[[#This Row],[Land\nResidual]]/Table_Data_Table_1[[#This Row],[Resid\nAcre]],\"\")","v":""},{"$f":"IFERROR(ROUND(Table_Data_Table_1[[#This Row],[Land\nResidual]]/Table_Data_Table_1[[#This Row],[Resid\nSq Ft]],2),\"\")","v":""},{"$f":"IF(Table_Data_Table_1[[#This Row],[Item ID]]=\"\",\"\",ROUND(DAYS360(Table_Data_Table_1[[#This Row],[Sale Date]],'Global Settings'!$H$5)/30,0))","v":""},{"$f":"IFERROR(IF(AND(Table_Data_Table_1[[#This Row],[Months To\nMid-Point]]<12.01,Table_Data_Table_1[[#This Row],[Months To\nMid-Point]]>-13),0,(Table_Data_Table_1[[#This Row],[Months To\nMid-Point]]*'Global Settings'!$H$6)),\"\")","v":""},{"$f":"IFERROR(Table_Data_Table_1[[#This Row],[Land\nResidual]]*(Table_Data_Table_1[[#This Row],[Time\nAdjust]]+1),\"\")","v":""},{"$f":"IFERROR(Table_Data_Table_1[[#This Row],[Adjusted\nSale Price]]/Table_Data_Table_1[[#This Row],[Resid\nAcre]],\"\")","v":""},{"$f":"IFERROR(ROUND(Table_Data_Table_1[[#This Row],[Adjusted\nSale Price]]/Table_Data_Table_1[[#This Row],[Resid\nSq Ft]],2),\"\")","v":""},{"$f":"IFERROR(IF(VLOOKUP(Table_Data_Table_1[[#This Row],[Item ID]],DataTable,11,FALSE)=0,\"N/A\",Table_Data_Table_1[[#This Row],[Adjusted\nSale Price]]/VLOOKUP(Table_Data_Table_1[[#This Row],[Item ID]],DataTable,11,FALSE)),\"\")","v":""},{"$f":"IF(IFERROR(VLOOKUP(Table_Data_Table_1[[#This Row],[Item ID]],DataTable,17,FALSE),\"\")=0,\"\",IFERROR(VLOOKUP(Table_Data_Table_1[[#This Row],[Item ID]],DataTable,17,FALSE),\"\"))","v":""}]
["",null,{"$f":"IF(Table_Data_Table_1[[#This Row],[Item ID]]=\"\",\"\",IFERROR(VLOOKUP(Table_Data_Table_1[[#This Row],[Item ID]],DataTable,16,FALSE),\"\"))","v":""},null,null,null,null,{"$f":"IF(Table_Data_Table_1[[#This Row],[Valuation Method]]=\"Vacant\",VLOOKUP(Table_Data_Table_1[[#This Row],[Item ID]],DataTable,6,FALSE)-VLOOKUP(Table_Data_Table_1[[#This Row],[Item ID]],DataTable,13,FALSE),IF(Table_Data_Table_1[[#This Row],[Valuation Method]]=\"Abstraction\",VLOOKUP(Table_Data_Table_1[[#This Row],[Item ID]],DataTable,6,FALSE)-VLOOKUP(Table_Data_Table_1[[#This Row],[Item ID]],DataTable,13,FALSE),IF(Table_Data_Table_1[[#This Row],[Valuation Method]]=\"Allocation\",VLOOKUP(Table_Data_Table_1[[#This Row],[Item ID]],DataTable,6,FALSE)*I73,\"\")))","v":""},{"$f":"IF(Table_Data_Table_1[[#This Row],[Valuation Method]]=\"Vacant\",\"N/A\",IF(Table_Data_Table_1[[#This Row],[Valuation Method]]=\"Abstraction\",Table_Data_Table_1[[#This Row],[Land\nResidual]]/VLOOKUP(Table_Data_Table_1[[#This Row],[Item ID]],DataTable,6,FALSE),IF(Table_Data_Table_1[[#This Row],[Valuation Method]]=\"Allocation\",'Global Settings'!$H$20,\"\")))","v":""},{"$f":"IFERROR(ROUND(Table_Data_Table_1[[#This Row],[Resid\nSq Ft]]/43560,3),\"\")","v":""},{"$f":"IF(Table_Data_Table_1[[#This Row],[Item ID]]=\"\",\"\",IFERROR(VLOOKUP(Table_Data_Table_1[[#This Row],[Item ID]],DataTable,10,FALSE)-VLOOKUP(Table_Data_Table_1[[#This Row],[Item ID]],DataTable,12,FALSE),\"\"))","v":""},{"$f":"IFERROR(Table_Data_Table_1[[#This Row],[Land\nResidual]]/Table_Data_Table_1[[#This Row],[Resid\nAcre]],\"\")","v":""},{"$f":"IFERROR(ROUND(Table_Data_Table_1[[#This Row],[Land\nResidual]]/Table_Data_Table_1[[#This Row],[Resid\nSq Ft]],2),\"\")","v":""},{"$f":"IF(Table_Data_Table_1[[#This Row],[Item ID]]=\"\",\"\",ROUND(DAYS360(Table_Data_Table_1[[#This Row],[Sale Date]],'Global Settings'!$H$5)/30,0))","v":""},{"$f":"IFERROR(IF(AND(Table_Data_Table_1[[#This Row],[Months To\nMid-Point]]<12.01,Table_Data_Table_1[[#This Row],[Months To\nMid-Point]]>-13),0,(Table_Data_Table_1[[#This Row],[Months To\nMid-Point]]*'Global Settings'!$H$6)),\"\")","v":""},{"$f":"IFERROR(Table_Data_Table_1[[#This Row],[Land\nResidual]]*(Table_Data_Table_1[[#This Row],[Time\nAdjust]]+1),\"\")","v":""},{"$f":"IFERROR(Table_Data_Table_1[[#This Row],[Adjusted\nSale Price]]/Table_Data_Table_1[[#This Row],[Resid\nAcre]],\"\")","v":""},{"$f":"IFERROR(ROUND(Table_Data_Table_1[[#This Row],[Adjusted\nSale Price]]/Table_Data_Table_1[[#This Row],[Resid\nSq Ft]],2),\"\")","v":""},{"$f":"IFERROR(IF(VLOOKUP(Table_Data_Table_1[[#This Row],[Item ID]],DataTable,11,FALSE)=0,\"N/A\",Table_Data_Table_1[[#This Row],[Adjusted\nSale Price]]/VLOOKUP(Table_Data_Table_1[[#This Row],[Item ID]],DataTable,11,FALSE)),\"\")","v":""},{"$f":"IF(IFERROR(VLOOKUP(Table_Data_Table_1[[#This Row],[Item ID]],DataTable,17,FALSE),\"\")=0,\"\",IFERROR(VLOOKUP(Table_Data_Table_1[[#This Row],[Item ID]],DataTable,17,FALSE),\"\"))","v":""}]
["",null,{"$f":"IF(Table_Data_Table_1[[#This Row],[Item ID]]=\"\",\"\",IFERROR(VLOOKUP(Table_Data_Table_1[[#This Row],[Item ID]],DataTable,16,FALSE),\"\"))","v":""},null,null,null,null,{"$f":"IF(Table_Data_Table_1[[#This Row],[Valuation Method]]=\"Vacant\",VLOOKUP(Table_Data_Table_1[[#This Row],[Item ID]],DataTable,6,FALSE)-VLOOKUP(Table_Data_Table_1[[#This Row],[Item ID]],DataTable,13,FALSE),IF(Table_Data_Table_1[[#This Row],[Valuation Method]]=\"Abstraction\",VLOOKUP(Table_Data_Table_1[[#This Row],[Item ID]],DataTable,6,FALSE)-VLOOKUP(Table_Data_Table_1[[#This Row],[Item ID]],DataTable,13,FALSE),IF(Table_Data_Table_1[[#This Row],[Valuation Method]]=\"Allocation\",VLOOKUP(Table_Data_Table_1[[#This Row],[Item ID]],DataTable,6,FALSE)*I74,\"\")))","v":""},{"$f":"IF(Table_Data_Table_1[[#This Row],[Valuation Method]]=\"Vacant\",\"N/A\",IF(Table_Data_Table_1[[#This Row],[Valuation Method]]=\"Abstraction\",Table_Data_Table_1[[#This Row],[Land\nResidual]]/VLOOKUP(Table_Data_Table_1[[#This Row],[Item ID]],DataTable,6,FALSE),IF(Table_Data_Table_1[[#This Row],[Valuation Method]]=\"Allocation\",'Global Settings'!$H$20,\"\")))","v":""},{"$f":"IFERROR(ROUND(Table_Data_Table_1[[#This Row],[Resid\nSq Ft]]/43560,3),\"\")","v":""},{"$f":"IF(Table_Data_Table_1[[#This Row],[Item ID]]=\"\",\"\",IFERROR(VLOOKUP(Table_Data_Table_1[[#This Row],[Item ID]],DataTable,10,FALSE)-VLOOKUP(Table_Data_Table_1[[#This Row],[Item ID]],DataTable,12,FALSE),\"\"))","v":""},{"$f":"IFERROR(Table_Data_Table_1[[#This Row],[Land\nResidual]]/Table_Data_Table_1[[#This Row],[Resid\nAcre]],\"\")","v":""},{"$f":"IFERROR(ROUND(Table_Data_Table_1[[#This Row],[Land\nResidual]]/Table_Data_Table_1[[#This Row],[Resid\nSq Ft]],2),\"\")","v":""},{"$f":"IF(Table_Data_Table_1[[#This Row],[Item ID]]=\"\",\"\",ROUND(DAYS360(Table_Data_Table_1[[#This Row],[Sale Date]],'Global Settings'!$H$5)/30,0))","v":""},{"$f":"IFERROR(IF(AND(Table_Data_Table_1[[#This Row],[Months To\nMid-Point]]<12.01,Table_Data_Table_1[[#This Row],[Months To\nMid-Point]]>-13),0,(Table_Data_Table_1[[#This Row],[Months To\nMid-Point]]*'Global Settings'!$H$6)),\"\")","v":""},{"$f":"IFERROR(Table_Data_Table_1[[#This Row],[Land\nResidual]]*(Table_Data_Table_1[[#This Row],[Time\nAdjust]]+1),\"\")","v":""},{"$f":"IFERROR(Table_Data_Table_1[[#This Row],[Adjusted\nSale Price]]/Table_Data_Table_1[[#This Row],[Resid\nAcre]],\"\")","v":""},{"$f":"IFERROR(ROUND(Table_Data_Table_1[[#This Row],[Adjusted\nSale Price]]/Table_Data_Table_1[[#This Row],[Resid\nSq Ft]],2),\"\")","v":""},{"$f":"IFERROR(IF(VLOOKUP(Table_Data_Table_1[[#This Row],[Item ID]],DataTable,11,FALSE)=0,\"N/A\",Table_Data_Table_1[[#This Row],[Adjusted\nSale Price]]/VLOOKUP(Table_Data_Table_1[[#This Row],[Item ID]],DataTable,11,FALSE)),\"\")","v":""},{"$f":"IF(IFERROR(VLOOKUP(Table_Data_Table_1[[#This Row],[Item ID]],DataTable,17,FALSE),\"\")=0,\"\",IFERROR(VLOOKUP(Table_Data_Table_1[[#This Row],[Item ID]],DataTable,17,FALSE),\"\"))","v":""}]
["",null,{"$f":"IF(Table_Data_Table_1[[#This Row],[Item ID]]=\"\",\"\",IFERROR(VLOOKUP(Table_Data_Table_1[[#This Row],[Item ID]],DataTable,16,FALSE),\"\"))","v":""},null,null,null,null,{"$f":"IF(Table_Data_Table_1[[#This Row],[Valuation Method]]=\"Vacant\",VLOOKUP(Table_Data_Table_1[[#This Row],[Item ID]],DataTable,6,FALSE)-VLOOKUP(Table_Data_Table_1[[#This Row],[Item ID]],DataTable,13,FALSE),IF(Table_Data_Table_1[[#This Row],[Valuation Method]]=\"Abstraction\",VLOOKUP(Table_Data_Table_1[[#This Row],[Item ID]],DataTable,6,FALSE)-VLOOKUP(Table_Data_Table_1[[#This Row],[Item ID]],DataTable,13,FALSE),IF(Table_Data_Table_1[[#This Row],[Valuation Method]]=\"Allocation\",VLOOKUP(Table_Data_Table_1[[#This Row],[Item ID]],DataTable,6,FALSE)*I75,\"\")))","v":""},{"$f":"IF(Table_Data_Table_1[[#This Row],[Valuation Method]]=\"Vacant\",\"N/A\",IF(Table_Data_Table_1[[#This Row],[Valuation Method]]=\"Abstraction\",Table_Data_Table_1[[#This Row],[Land\nResidual]]/VLOOKUP(Table_Data_Table_1[[#This Row],[Item ID]],DataTable,6,FALSE),IF(Table_Data_Table_1[[#This Row],[Valuation Method]]=\"Allocation\",'Global Settings'!$H$20,\"\")))","v":""},{"$f":"IFERROR(ROUND(Table_Data_Table_1[[#This Row],[Resid\nSq Ft]]/43560,3),\"\")","v":""},{"$f":"IF(Table_Data_Table_1[[#This Row],[Item ID]]=\"\",\"\",IFERROR(VLOOKUP(Table_Data_Table_1[[#This Row],[Item ID]],DataTable,10,FALSE)-VLOOKUP(Table_Data_Table_1[[#This Row],[Item ID]],DataTable,12,FALSE),\"\"))","v":""},{"$f":"IFERROR(Table_Data_Table_1[[#This Row],[Land\nResidual]]/Table_Data_Table_1[[#This Row],[Resid\nAcre]],\"\")","v":""},{"$f":"IFERROR(ROUND(Table_Data_Table_1[[#This Row],[Land\nResidual]]/Table_Data_Table_1[[#This Row],[Resid\nSq Ft]],2),\"\")","v":""},{"$f":"IF(Table_Data_Table_1[[#This Row],[Item ID]]=\"\",\"\",ROUND(DAYS360(Table_Data_Table_1[[#This Row],[Sale Date]],'Global Settings'!$H$5)/30,0))","v":""},{"$f":"IFERROR(IF(AND(Table_Data_Table_1[[#This Row],[Months To\nMid-Point]]<12.01,Table_Data_Table_1[[#This Row],[Months To\nMid-Point]]>-13),0,(Table_Data_Table_1[[#This Row],[Months To\nMid-Point]]*'Global Settings'!$H$6)),\"\")","v":""},{"$f":"IFERROR(Table_Data_Table_1[[#This Row],[Land\nResidual]]*(Table_Data_Table_1[[#This Row],[Time\nAdjust]]+1),\"\")","v":""},{"$f":"IFERROR(Table_Data_Table_1[[#This Row],[Adjusted\nSale Price]]/Table_Data_Table_1[[#This Row],[Resid\nAcre]],\"\")","v":""},{"$f":"IFERROR(ROUND(Table_Data_Table_1[[#This Row],[Adjusted\nSale Price]]/Table_Data_Table_1[[#This Row],[Resid\nSq Ft]],2),\"\")","v":""},{"$f":"IFERROR(IF(VLOOKUP(Table_Data_Table_1[[#This Row],[Item ID]],DataTable,11,FALSE)=0,\"N/A\",Table_Data_Table_1[[#This Row],[Adjusted\nSale Price]]/VLOOKUP(Table_Data_Table_1[[#This Row],[Item ID]],DataTable,11,FALSE)),\"\")","v":""},{"$f":"IF(IFERROR(VLOOKUP(Table_Data_Table_1[[#This Row],[Item ID]],DataTable,17,FALSE),\"\")=0,\"\",IFERROR(VLOOKUP(Table_Data_Table_1[[#This Row],[Item ID]],DataTable,17,FALSE),\"\"))","v":""}]
["",null,{"$f":"IF(Table_Data_Table_1[[#This Row],[Item ID]]=\"\",\"\",IFERROR(VLOOKUP(Table_Data_Table_1[[#This Row],[Item ID]],DataTable,16,FALSE),\"\"))","v":""},null,null,null,null,{"$f":"IF(Table_Data_Table_1[[#This Row],[Valuation Method]]=\"Vacant\",VLOOKUP(Table_Data_Table_1[[#This Row],[Item ID]],DataTable,6,FALSE)-VLOOKUP(Table_Data_Table_1[[#This Row],[Item ID]],DataTable,13,FALSE),IF(Table_Data_Table_1[[#This Row],[Valuation Method]]=\"Abstraction\",VLOOKUP(Table_Data_Table_1[[#This Row],[Item ID]],DataTable,6,FALSE)-VLOOKUP(Table_Data_Table_1[[#This Row],[Item ID]],DataTable,13,FALSE),IF(Table_Data_Table_1[[#This Row],[Valuation Method]]=\"Allocation\",VLOOKUP(Table_Data_Table_1[[#This Row],[Item ID]],DataTable,6,FALSE)*I76,\"\")))","v":""},{"$f":"IF(Table_Data_Table_1[[#This Row],[Valuation Method]]=\"Vacant\",\"N/A\",IF(Table_Data_Table_1[[#This Row],[Valuation Method]]=\"Abstraction\",Table_Data_Table_1[[#This Row],[Land\nResidual]]/VLOOKUP(Table_Data_Table_1[[#This Row],[Item ID]],DataTable,6,FALSE),IF(Table_Data_Table_1[[#This Row],[Valuation Method]]=\"Allocation\",'Global Settings'!$H$20,\"\")))","v":""},{"$f":"IFERROR(ROUND(Table_Data_Table_1[[#This Row],[Resid\nSq Ft]]/43560,3),\"\")","v":""},{"$f":"IF(Table_Data_Table_1[[#This Row],[Item ID]]=\"\",\"\",IFERROR(VLOOKUP(Table_Data_Table_1[[#This Row],[Item ID]],DataTable,10,FALSE)-VLOOKUP(Table_Data_Table_1[[#This Row],[Item ID]],DataTable,12,FALSE),\"\"))","v":""},{"$f":"IFERROR(Table_Data_Table_1[[#This Row],[Land\nResidual]]/Table_Data_Table_1[[#This Row],[Resid\nAcre]],\"\")","v":""},{"$f":"IFERROR(ROUND(Table_Data_Table_1[[#This Row],[Land\nResidual]]/Table_Data_Table_1[[#This Row],[Resid\nSq Ft]],2),\"\")","v":""},{"$f":"IF(Table_Data_Table_1[[#This Row],[Item ID]]=\"\",\"\",ROUND(DAYS360(Table_Data_Table_1[[#This Row],[Sale Date]],'Global Settings'!$H$5)/30,0))","v":""},{"$f":"IFERROR(IF(AND(Table_Data_Table_1[[#This Row],[Months To\nMid-Point]]<12.01,Table_Data_Table_1[[#This Row],[Months To\nMid-Point]]>-13),0,(Table_Data_Table_1[[#This Row],[Months To\nMid-Point]]*'Global Settings'!$H$6)),\"\")","v":""},{"$f":"IFERROR(Table_Data_Table_1[[#This Row],[Land\nResidual]]*(Table_Data_Table_1[[#This Row],[Time\nAdjust]]+1),\"\")","v":""},{"$f":"IFERROR(Table_Data_Table_1[[#This Row],[Adjusted\nSale Price]]/Table_Data_Table_1[[#This Row],[Resid\nAcre]],\"\")","v":""},{"$f":"IFERROR(ROUND(Table_Data_Table_1[[#This Row],[Adjusted\nSale Price]]/Table_Data_Table_1[[#This Row],[Resid\nSq Ft]],2),\"\")","v":""},{"$f":"IFERROR(IF(VLOOKUP(Table_Data_Table_1[[#This Row],[Item ID]],DataTable,11,FALSE)=0,\"N/A\",Table_Data_Table_1[[#This Row],[Adjusted\nSale Price]]/VLOOKUP(Table_Data_Table_1[[#This Row],[Item ID]],DataTable,11,FALSE)),\"\")","v":""},{"$f":"IF(IFERROR(VLOOKUP(Table_Data_Table_1[[#This Row],[Item ID]],DataTable,17,FALSE),\"\")=0,\"\",IFERROR(VLOOKUP(Table_Data_Table_1[[#This Row],[Item ID]],DataTable,17,FALSE),\"\"))","v":""}]
["",null,{"$f":"IF(Table_Data_Table_1[[#This Row],[Item ID]]=\"\",\"\",IFERROR(VLOOKUP(Table_Data_Table_1[[#This Row],[Item ID]],DataTable,16,FALSE),\"\"))","v":""},null,null,null,null,{"$f":"IF(Table_Data_Table_1[[#This Row],[Valuation Method]]=\"Vacant\",VLOOKUP(Table_Data_Table_1[[#This Row],[Item ID]],DataTable,6,FALSE)-VLOOKUP(Table_Data_Table_1[[#This Row],[Item ID]],DataTable,13,FALSE),IF(Table_Data_Table_1[[#This Row],[Valuation Method]]=\"Abstraction\",VLOOKUP(Table_Data_Table_1[[#This Row],[Item ID]],DataTable,6,FALSE)-VLOOKUP(Table_Data_Table_1[[#This Row],[Item ID]],DataTable,13,FALSE),IF(Table_Data_Table_1[[#This Row],[Valuation Method]]=\"Allocation\",VLOOKUP(Table_Data_Table_1[[#This Row],[Item ID]],DataTable,6,FALSE)*I77,\"\")))","v":""},{"$f":"IF(Table_Data_Table_1[[#This Row],[Valuation Method]]=\"Vacant\",\"N/A\",IF(Table_Data_Table_1[[#This Row],[Valuation Method]]=\"Abstraction\",Table_Data_Table_1[[#This Row],[Land\nResidual]]/VLOOKUP(Table_Data_Table_1[[#This Row],[Item ID]],DataTable,6,FALSE),IF(Table_Data_Table_1[[#This Row],[Valuation Method]]=\"Allocation\",'Global Settings'!$H$20,\"\")))","v":""},{"$f":"IFERROR(ROUND(Table_Data_Table_1[[#This Row],[Resid\nSq Ft]]/43560,3),\"\")","v":""},{"$f":"IF(Table_Data_Table_1[[#This Row],[Item ID]]=\"\",\"\",IFERROR(VLOOKUP(Table_Data_Table_1[[#This Row],[Item ID]],DataTable,10,FALSE)-VLOOKUP(Table_Data_Table_1[[#This Row],[Item ID]],DataTable,12,FALSE),\"\"))","v":""},{"$f":"IFERROR(Table_Data_Table_1[[#This Row],[Land\nResidual]]/Table_Data_Table_1[[#This Row],[Resid\nAcre]],\"\")","v":""},{"$f":"IFERROR(ROUND(Table_Data_Table_1[[#This Row],[Land\nResidual]]/Table_Data_Table_1[[#This Row],[Resid\nSq Ft]],2),\"\")","v":""},{"$f":"IF(Table_Data_Table_1[[#This Row],[Item ID]]=\"\",\"\",ROUND(DAYS360(Table_Data_Table_1[[#This Row],[Sale Date]],'Global Settings'!$H$5)/30,0))","v":""},{"$f":"IFERROR(IF(AND(Table_Data_Table_1[[#This Row],[Months To\nMid-Point]]<12.01,Table_Data_Table_1[[#This Row],[Months To\nMid-Point]]>-13),0,(Table_Data_Table_1[[#This Row],[Months To\nMid-Point]]*'Global Settings'!$H$6)),\"\")","v":""},{"$f":"IFERROR(Table_Data_Table_1[[#This Row],[Land\nResidual]]*(Table_Data_Table_1[[#This Row],[Time\nAdjust]]+1),\"\")","v":""},{"$f":"IFERROR(Table_Data_Table_1[[#This Row],[Adjusted\nSale Price]]/Table_Data_Table_1[[#This Row],[Resid\nAcre]],\"\")","v":""},{"$f":"IFERROR(ROUND(Table_Data_Table_1[[#This Row],[Adjusted\nSale Price]]/Table_Data_Table_1[[#This Row],[Resid\nSq Ft]],2),\"\")","v":""},{"$f":"IFERROR(IF(VLOOKUP(Table_Data_Table_1[[#This Row],[Item ID]],DataTable,11,FALSE)=0,\"N/A\",Table_Data_Table_1[[#This Row],[Adjusted\nSale Price]]/VLOOKUP(Table_Data_Table_1[[#This Row],[Item ID]],DataTable,11,FALSE)),\"\")","v":""},{"$f":"IF(IFERROR(VLOOKUP(Table_Data_Table_1[[#This Row],[Item ID]],DataTable,17,FALSE),\"\")=0,\"\",IFERROR(VLOOKUP(Table_Data_Table_1[[#This Row],[Item ID]],DataTable,17,FALSE),\"\"))","v":""}]
["",null,{"$f":"IF(Table_Data_Table_1[[#This Row],[Item ID]]=\"\",\"\",IFERROR(VLOOKUP(Table_Data_Table_1[[#This Row],[Item ID]],DataTable,16,FALSE),\"\"))","v":""},null,null,null,null,{"$f":"IF(Table_Data_Table_1[[#This Row],[Valuation Method]]=\"Vacant\",VLOOKUP(Table_Data_Table_1[[#This Row],[Item ID]],DataTable,6,FALSE)-VLOOKUP(Table_Data_Table_1[[#This Row],[Item ID]],DataTable,13,FALSE),IF(Table_Data_Table_1[[#This Row],[Valuation Method]]=\"Abstraction\",VLOOKUP(Table_Data_Table_1[[#This Row],[Item ID]],DataTable,6,FALSE)-VLOOKUP(Table_Data_Table_1[[#This Row],[Item ID]],DataTable,13,FALSE),IF(Table_Data_Table_1[[#This Row],[Valuation Method]]=\"Allocation\",VLOOKUP(Table_Data_Table_1[[#This Row],[Item ID]],DataTable,6,FALSE)*I78,\"\")))","v":""},{"$f":"IF(Table_Data_Table_1[[#This Row],[Valuation Method]]=\"Vacant\",\"N/A\",IF(Table_Data_Table_1[[#This Row],[Valuation Method]]=\"Abstraction\",Table_Data_Table_1[[#This Row],[Land\nResidual]]/VLOOKUP(Table_Data_Table_1[[#This Row],[Item ID]],DataTable,6,FALSE),IF(Table_Data_Table_1[[#This Row],[Valuation Method]]=\"Allocation\",'Global Settings'!$H$20,\"\")))","v":""},{"$f":"IFERROR(ROUND(Table_Data_Table_1[[#This Row],[Resid\nSq Ft]]/43560,3),\"\")","v":""},{"$f":"IF(Table_Data_Table_1[[#This Row],[Item ID]]=\"\",\"\",IFERROR(VLOOKUP(Table_Data_Table_1[[#This Row],[Item ID]],DataTable,10,FALSE)-VLOOKUP(Table_Data_Table_1[[#This Row],[Item ID]],DataTable,12,FALSE),\"\"))","v":""},{"$f":"IFERROR(Table_Data_Table_1[[#This Row],[Land\nResidual]]/Table_Data_Table_1[[#This Row],[Resid\nAcre]],\"\")","v":""},{"$f":"IFERROR(ROUND(Table_Data_Table_1[[#This Row],[Land\nResidual]]/Table_Data_Table_1[[#This Row],[Resid\nSq Ft]],2),\"\")","v":""},{"$f":"IF(Table_Data_Table_1[[#This Row],[Item ID]]=\"\",\"\",ROUND(DAYS360(Table_Data_Table_1[[#This Row],[Sale Date]],'Global Settings'!$H$5)/30,0))","v":""},{"$f":"IFERROR(IF(AND(Table_Data_Table_1[[#This Row],[Months To\nMid-Point]]<12.01,Table_Data_Table_1[[#This Row],[Months To\nMid-Point]]>-13),0,(Table_Data_Table_1[[#This Row],[Months To\nMid-Point]]*'Global Settings'!$H$6)),\"\")","v":""},{"$f":"IFERROR(Table_Data_Table_1[[#This Row],[Land\nResidual]]*(Table_Data_Table_1[[#This Row],[Time\nAdjust]]+1),\"\")","v":""},{"$f":"IFERROR(Table_Data_Table_1[[#This Row],[Adjusted\nSale Price]]/Table_Data_Table_1[[#This Row],[Resid\nAcre]],\"\")","v":""},{"$f":"IFERROR(ROUND(Table_Data_Table_1[[#This Row],[Adjusted\nSale Price]]/Table_Data_Table_1[[#This Row],[Resid\nSq Ft]],2),\"\")","v":""},{"$f":"IFERROR(IF(VLOOKUP(Table_Data_Table_1[[#This Row],[Item ID]],DataTable,11,FALSE)=0,\"N/A\",Table_Data_Table_1[[#This Row],[Adjusted\nSale Price]]/VLOOKUP(Table_Data_Table_1[[#This Row],[Item ID]],DataTable,11,FALSE)),\"\")","v":""},{"$f":"IF(IFERROR(VLOOKUP(Table_Data_Table_1[[#This Row],[Item ID]],DataTable,17,FALSE),\"\")=0,\"\",IFERROR(VLOOKUP(Table_Data_Table_1[[#This Row],[Item ID]],DataTable,17,FALSE),\"\"))","v":""}]
["",null,{"$f":"IF(Table_Data_Table_1[[#This Row],[Item ID]]=\"\",\"\",IFERROR(VLOOKUP(Table_Data_Table_1[[#This Row],[Item ID]],DataTable,16,FALSE),\"\"))","v":""},null,null,null,null,{"$f":"IF(Table_Data_Table_1[[#This Row],[Valuation Method]]=\"Vacant\",VLOOKUP(Table_Data_Table_1[[#This Row],[Item ID]],DataTable,6,FALSE)-VLOOKUP(Table_Data_Table_1[[#This Row],[Item ID]],DataTable,13,FALSE),IF(Table_Data_Table_1[[#This Row],[Valuation Method]]=\"Abstraction\",VLOOKUP(Table_Data_Table_1[[#This Row],[Item ID]],DataTable,6,FALSE)-VLOOKUP(Table_Data_Table_1[[#This Row],[Item ID]],DataTable,13,FALSE),IF(Table_Data_Table_1[[#This Row],[Valuation Method]]=\"Allocation\",VLOOKUP(Table_Data_Table_1[[#This Row],[Item ID]],DataTable,6,FALSE)*I79,\"\")))","v":""},{"$f":"IF(Table_Data_Table_1[[#This Row],[Valuation Method]]=\"Vacant\",\"N/A\",IF(Table_Data_Table_1[[#This Row],[Valuation Method]]=\"Abstraction\",Table_Data_Table_1[[#This Row],[Land\nResidual]]/VLOOKUP(Table_Data_Table_1[[#This Row],[Item ID]],DataTable,6,FALSE),IF(Table_Data_Table_1[[#This Row],[Valuation Method]]=\"Allocation\",'Global Settings'!$H$20,\"\")))","v":""},{"$f":"IFERROR(ROUND(Table_Data_Table_1[[#This Row],[Resid\nSq Ft]]/43560,3),\"\")","v":""},{"$f":"IF(Table_Data_Table_1[[#This Row],[Item ID]]=\"\",\"\",IFERROR(VLOOKUP(Table_Data_Table_1[[#This Row],[Item ID]],DataTable,10,FALSE)-VLOOKUP(Table_Data_Table_1[[#This Row],[Item ID]],DataTable,12,FALSE),\"\"))","v":""},{"$f":"IFERROR(Table_Data_Table_1[[#This Row],[Land\nResidual]]/Table_Data_Table_1[[#This Row],[Resid\nAcre]],\"\")","v":""},{"$f":"IFERROR(ROUND(Table_Data_Table_1[[#This Row],[Land\nResidual]]/Table_Data_Table_1[[#This Row],[Resid\nSq Ft]],2),\"\")","v":""},{"$f":"IF(Table_Data_Table_1[[#This Row],[Item ID]]=\"\",\"\",ROUND(DAYS360(Table_Data_Table_1[[#This Row],[Sale Date]],'Global Settings'!$H$5)/30,0))","v":""},{"$f":"IFERROR(IF(AND(Table_Data_Table_1[[#This Row],[Months To\nMid-Point]]<12.01,Table_Data_Table_1[[#This Row],[Months To\nMid-Point]]>-13),0,(Table_Data_Table_1[[#This Row],[Months To\nMid-Point]]*'Global Settings'!$H$6)),\"\")","v":""},{"$f":"IFERROR(Table_Data_Table_1[[#This Row],[Land\nResidual]]*(Table_Data_Table_1[[#This Row],[Time\nAdjust]]+1),\"\")","v":""},{"$f":"IFERROR(Table_Data_Table_1[[#This Row],[Adjusted\nSale Price]]/Table_Data_Table_1[[#This Row],[Resid\nAcre]],\"\")","v":""},{"$f":"IFERROR(ROUND(Table_Data_Table_1[[#This Row],[Adjusted\nSale Price]]/Table_Data_Table_1[[#This Row],[Resid\nSq Ft]],2),\"\")","v":""},{"$f":"IFERROR(IF(VLOOKUP(Table_Data_Table_1[[#This Row],[Item ID]],DataTable,11,FALSE)=0,\"N/A\",Table_Data_Table_1[[#This Row],[Adjusted\nSale Price]]/VLOOKUP(Table_Data_Table_1[[#This Row],[Item ID]],DataTable,11,FALSE)),\"\")","v":""},{"$f":"IF(IFERROR(VLOOKUP(Table_Data_Table_1[[#This Row],[Item ID]],DataTable,17,FALSE),\"\")=0,\"\",IFERROR(VLOOKUP(Table_Data_Table_1[[#This Row],[Item ID]],DataTable,17,FALSE),\"\"))","v":""}]
["",null,{"$f":"IF(Table_Data_Table_1[[#This Row],[Item ID]]=\"\",\"\",IFERROR(VLOOKUP(Table_Data_Table_1[[#This Row],[Item ID]],DataTable,16,FALSE),\"\"))","v":""},null,null,null,null,{"$f":"IF(Table_Data_Table_1[[#This Row],[Valuation Method]]=\"Vacant\",VLOOKUP(Table_Data_Table_1[[#This Row],[Item ID]],DataTable,6,FALSE)-VLOOKUP(Table_Data_Table_1[[#This Row],[Item ID]],DataTable,13,FALSE),IF(Table_Data_Table_1[[#This Row],[Valuation Method]]=\"Abstraction\",VLOOKUP(Table_Data_Table_1[[#This Row],[Item ID]],DataTable,6,FALSE)-VLOOKUP(Table_Data_Table_1[[#This Row],[Item ID]],DataTable,13,FALSE),IF(Table_Data_Table_1[[#This Row],[Valuation Method]]=\"Allocation\",VLOOKUP(Table_Data_Table_1[[#This Row],[Item ID]],DataTable,6,FALSE)*I80,\"\")))","v":""},{"$f":"IF(Table_Data_Table_1[[#This Row],[Valuation Method]]=\"Vacant\",\"N/A\",IF(Table_Data_Table_1[[#This Row],[Valuation Method]]=\"Abstraction\",Table_Data_Table_1[[#This Row],[Land\nResidual]]/VLOOKUP(Table_Data_Table_1[[#This Row],[Item ID]],DataTable,6,FALSE),IF(Table_Data_Table_1[[#This Row],[Valuation Method]]=\"Allocation\",'Global Settings'!$H$20,\"\")))","v":""},{"$f":"IFERROR(ROUND(Table_Data_Table_1[[#This Row],[Resid\nSq Ft]]/43560,3),\"\")","v":""},{"$f":"IF(Table_Data_Table_1[[#This Row],[Item ID]]=\"\",\"\",IFERROR(VLOOKUP(Table_Data_Table_1[[#This Row],[Item ID]],DataTable,10,FALSE)-VLOOKUP(Table_Data_Table_1[[#This Row],[Item ID]],DataTable,12,FALSE),\"\"))","v":""},{"$f":"IFERROR(Table_Data_Table_1[[#This Row],[Land\nResidual]]/Table_Data_Table_1[[#This Row],[Resid\nAcre]],\"\")","v":""},{"$f":"IFERROR(ROUND(Table_Data_Table_1[[#This Row],[Land\nResidual]]/Table_Data_Table_1[[#This Row],[Resid\nSq Ft]],2),\"\")","v":""},{"$f":"IF(Table_Data_Table_1[[#This Row],[Item ID]]=\"\",\"\",ROUND(DAYS360(Table_Data_Table_1[[#This Row],[Sale Date]],'Global Settings'!$H$5)/30,0))","v":""},{"$f":"IFERROR(IF(AND(Table_Data_Table_1[[#This Row],[Months To\nMid-Point]]<12.01,Table_Data_Table_1[[#This Row],[Months To\nMid-Point]]>-13),0,(Table_Data_Table_1[[#This Row],[Months To\nMid-Point]]*'Global Settings'!$H$6)),\"\")","v":""},{"$f":"IFERROR(Table_Data_Table_1[[#This Row],[Land\nResidual]]*(Table_Data_Table_1[[#This Row],[Time\nAdjust]]+1),\"\")","v":""},{"$f":"IFERROR(Table_Data_Table_1[[#This Row],[Adjusted\nSale Price]]/Table_Data_Table_1[[#This Row],[Resid\nAcre]],\"\")","v":""},{"$f":"IFERROR(ROUND(Table_Data_Table_1[[#This Row],[Adjusted\nSale Price]]/Table_Data_Table_1[[#This Row],[Resid\nSq Ft]],2),\"\")","v":""},{"$f":"IFERROR(IF(VLOOKUP(Table_Data_Table_1[[#This Row],[Item ID]],DataTable,11,FALSE)=0,\"N/A\",Table_Data_Table_1[[#This Row],[Adjusted\nSale Price]]/VLOOKUP(Table_Data_Table_1[[#This Row],[Item ID]],DataTable,11,FALSE)),\"\")","v":""},{"$f":"IF(IFERROR(VLOOKUP(Table_Data_Table_1[[#This Row],[Item ID]],DataTable,17,FALSE),\"\")=0,\"\",IFERROR(VLOOKUP(Table_Data_Table_1[[#This Row],[Item ID]],DataTable,17,FALSE),\"\"))","v":""}]
["",null,{"$f":"IF(Table_Data_Table_1[[#This Row],[Item ID]]=\"\",\"\",IFERROR(VLOOKUP(Table_Data_Table_1[[#This Row],[Item ID]],DataTable,16,FALSE),\"\"))","v":""},null,null,null,null,{"$f":"IF(Table_Data_Table_1[[#This Row],[Valuation Method]]=\"Vacant\",VLOOKUP(Table_Data_Table_1[[#This Row],[Item ID]],DataTable,6,FALSE)-VLOOKUP(Table_Data_Table_1[[#This Row],[Item ID]],DataTable,13,FALSE),IF(Table_Data_Table_1[[#This Row],[Valuation Method]]=\"Abstraction\",VLOOKUP(Table_Data_Table_1[[#This Row],[Item ID]],DataTable,6,FALSE)-VLOOKUP(Table_Data_Table_1[[#This Row],[Item ID]],DataTable,13,FALSE),IF(Table_Data_Table_1[[#This Row],[Valuation Method]]=\"Allocation\",VLOOKUP(Table_Data_Table_1[[#This Row],[Item ID]],DataTable,6,FALSE)*I81,\"\")))","v":""},{"$f":"IF(Table_Data_Table_1[[#This Row],[Valuation Method]]=\"Vacant\",\"N/A\",IF(Table_Data_Table_1[[#This Row],[Valuation Method]]=\"Abstraction\",Table_Data_Table_1[[#This Row],[Land\nResidual]]/VLOOKUP(Table_Data_Table_1[[#This Row],[Item ID]],DataTable,6,FALSE),IF(Table_Data_Table_1[[#This Row],[Valuation Method]]=\"Allocation\",'Global Settings'!$H$20,\"\")))","v":""},{"$f":"IFERROR(ROUND(Table_Data_Table_1[[#This Row],[Resid\nSq Ft]]/43560,3),\"\")","v":""},{"$f":"IF(Table_Data_Table_1[[#This Row],[Item ID]]=\"\",\"\",IFERROR(VLOOKUP(Table_Data_Table_1[[#This Row],[Item ID]],DataTable,10,FALSE)-VLOOKUP(Table_Data_Table_1[[#This Row],[Item ID]],DataTable,12,FALSE),\"\"))","v":""},{"$f":"IFERROR(Table_Data_Table_1[[#This Row],[Land\nResidual]]/Table_Data_Table_1[[#This Row],[Resid\nAcre]],\"\")","v":""},{"$f":"IFERROR(ROUND(Table_Data_Table_1[[#This Row],[Land\nResidual]]/Table_Data_Table_1[[#This Row],[Resid\nSq Ft]],2),\"\")","v":""},{"$f":"IF(Table_Data_Table_1[[#This Row],[Item ID]]=\"\",\"\",ROUND(DAYS360(Table_Data_Table_1[[#This Row],[Sale Date]],'Global Settings'!$H$5)/30,0))","v":""},{"$f":"IFERROR(IF(AND(Table_Data_Table_1[[#This Row],[Months To\nMid-Point]]<12.01,Table_Data_Table_1[[#This Row],[Months To\nMid-Point]]>-13),0,(Table_Data_Table_1[[#This Row],[Months To\nMid-Point]]*'Global Settings'!$H$6)),\"\")","v":""},{"$f":"IFERROR(Table_Data_Table_1[[#This Row],[Land\nResidual]]*(Table_Data_Table_1[[#This Row],[Time\nAdjust]]+1),\"\")","v":""},{"$f":"IFERROR(Table_Data_Table_1[[#This Row],[Adjusted\nSale Price]]/Table_Data_Table_1[[#This Row],[Resid\nAcre]],\"\")","v":""},{"$f":"IFERROR(ROUND(Table_Data_Table_1[[#This Row],[Adjusted\nSale Price]]/Table_Data_Table_1[[#This Row],[Resid\nSq Ft]],2),\"\")","v":""},{"$f":"IFERROR(IF(VLOOKUP(Table_Data_Table_1[[#This Row],[Item ID]],DataTable,11,FALSE)=0,\"N/A\",Table_Data_Table_1[[#This Row],[Adjusted\nSale Price]]/VLOOKUP(Table_Data_Table_1[[#This Row],[Item ID]],DataTable,11,FALSE)),\"\")","v":""},{"$f":"IF(IFERROR(VLOOKUP(Table_Data_Table_1[[#This Row],[Item ID]],DataTable,17,FALSE),\"\")=0,\"\",IFERROR(VLOOKUP(Table_Data_Table_1[[#This Row],[Item ID]],DataTable,17,FALSE),\"\"))","v":""}]
["",null,{"$f":"IF(Table_Data_Table_1[[#This Row],[Item ID]]=\"\",\"\",IFERROR(VLOOKUP(Table_Data_Table_1[[#This Row],[Item ID]],DataTable,16,FALSE),\"\"))","v":""},null,null,null,null,{"$f":"IF(Table_Data_Table_1[[#This Row],[Valuation Method]]=\"Vacant\",VLOOKUP(Table_Data_Table_1[[#This Row],[Item ID]],DataTable,6,FALSE)-VLOOKUP(Table_Data_Table_1[[#This Row],[Item ID]],DataTable,13,FALSE),IF(Table_Data_Table_1[[#This Row],[Valuation Method]]=\"Abstraction\",VLOOKUP(Table_Data_Table_1[[#This Row],[Item ID]],DataTable,6,FALSE)-VLOOKUP(Table_Data_Table_1[[#This Row],[Item ID]],DataTable,13,FALSE),IF(Table_Data_Table_1[[#This Row],[Valuation Method]]=\"Allocation\",VLOOKUP(Table_Data_Table_1[[#This Row],[Item ID]],DataTable,6,FALSE)*I82,\"\")))","v":""},{"$f":"IF(Table_Data_Table_1[[#This Row],[Valuation Method]]=\"Vacant\",\"N/A\",IF(Table_Data_Table_1[[#This Row],[Valuation Method]]=\"Abstraction\",Table_Data_Table_1[[#This Row],[Land\nResidual]]/VLOOKUP(Table_Data_Table_1[[#This Row],[Item ID]],DataTable,6,FALSE),IF(Table_Data_Table_1[[#This Row],[Valuation Method]]=\"Allocation\",'Global Settings'!$H$20,\"\")))","v":""},{"$f":"IFERROR(ROUND(Table_Data_Table_1[[#This Row],[Resid\nSq Ft]]/43560,3),\"\")","v":""},{"$f":"IF(Table_Data_Table_1[[#This Row],[Item ID]]=\"\",\"\",IFERROR(VLOOKUP(Table_Data_Table_1[[#This Row],[Item ID]],DataTable,10,FALSE)-VLOOKUP(Table_Data_Table_1[[#This Row],[Item ID]],DataTable,12,FALSE),\"\"))","v":""},{"$f":"IFERROR(Table_Data_Table_1[[#This Row],[Land\nResidual]]/Table_Data_Table_1[[#This Row],[Resid\nAcre]],\"\")","v":""},{"$f":"IFERROR(ROUND(Table_Data_Table_1[[#This Row],[Land\nResidual]]/Table_Data_Table_1[[#This Row],[Resid\nSq Ft]],2),\"\")","v":""},{"$f":"IF(Table_Data_Table_1[[#This Row],[Item ID]]=\"\",\"\",ROUND(DAYS360(Table_Data_Table_1[[#This Row],[Sale Date]],'Global Settings'!$H$5)/30,0))","v":""},{"$f":"IFERROR(IF(AND(Table_Data_Table_1[[#This Row],[Months To\nMid-Point]]<12.01,Table_Data_Table_1[[#This Row],[Months To\nMid-Point]]>-13),0,(Table_Data_Table_1[[#This Row],[Months To\nMid-Point]]*'Global Settings'!$H$6)),\"\")","v":""},{"$f":"IFERROR(Table_Data_Table_1[[#This Row],[Land\nResidual]]*(Table_Data_Table_1[[#This Row],[Time\nAdjust]]+1),\"\")","v":""},{"$f":"IFERROR(Table_Data_Table_1[[#This Row],[Adjusted\nSale Price]]/Table_Data_Table_1[[#This Row],[Resid\nAcre]],\"\")","v":""},{"$f":"IFERROR(ROUND(Table_Data_Table_1[[#This Row],[Adjusted\nSale Price]]/Table_Data_Table_1[[#This Row],[Resid\nSq Ft]],2),\"\")","v":""},{"$f":"IFERROR(IF(VLOOKUP(Table_Data_Table_1[[#This Row],[Item ID]],DataTable,11,FALSE)=0,\"N/A\",Table_Data_Table_1[[#This Row],[Adjusted\nSale Price]]/VLOOKUP(Table_Data_Table_1[[#This Row],[Item ID]],DataTable,11,FALSE)),\"\")","v":""},{"$f":"IF(IFERROR(VLOOKUP(Table_Data_Table_1[[#This Row],[Item ID]],DataTable,17,FALSE),\"\")=0,\"\",IFERROR(VLOOKUP(Table_Data_Table_1[[#This Row],[Item ID]],DataTable,17,FALSE),\"\"))","v":""}]
["",null,{"$f":"IF(Table_Data_Table_1[[#This Row],[Item ID]]=\"\",\"\",IFERROR(VLOOKUP(Table_Data_Table_1[[#This Row],[Item ID]],DataTable,16,FALSE),\"\"))","v":""},null,null,null,null,{"$f":"IF(Table_Data_Table_1[[#This Row],[Valuation Method]]=\"Vacant\",VLOOKUP(Table_Data_Table_1[[#This Row],[Item ID]],DataTable,6,FALSE)-VLOOKUP(Table_Data_Table_1[[#This Row],[Item ID]],DataTable,13,FALSE),IF(Table_Data_Table_1[[#This Row],[Valuation Method]]=\"Abstraction\",VLOOKUP(Table_Data_Table_1[[#This Row],[Item ID]],DataTable,6,FALSE)-VLOOKUP(Table_Data_Table_1[[#This Row],[Item ID]],DataTable,13,FALSE),IF(Table_Data_Table_1[[#This Row],[Valuation Method]]=\"Allocation\",VLOOKUP(Table_Data_Table_1[[#This Row],[Item ID]],DataTable,6,FALSE)*I83,\"\")))","v":""},{"$f":"IF(Table_Data_Table_1[[#This Row],[Valuation Method]]=\"Vacant\",\"N/A\",IF(Table_Data_Table_1[[#This Row],[Valuation Method]]=\"Abstraction\",Table_Data_Table_1[[#This Row],[Land\nResidual]]/VLOOKUP(Table_Data_Table_1[[#This Row],[Item ID]],DataTable,6,FALSE),IF(Table_Data_Table_1[[#This Row],[Valuation Method]]=\"Allocation\",'Global Settings'!$H$20,\"\")))","v":""},{"$f":"IFERROR(ROUND(Table_Data_Table_1[[#This Row],[Resid\nSq Ft]]/43560,3),\"\")","v":""},{"$f":"IF(Table_Data_Table_1[[#This Row],[Item ID]]=\"\",\"\",IFERROR(VLOOKUP(Table_Data_Table_1[[#This Row],[Item ID]],DataTable,10,FALSE)-VLOOKUP(Table_Data_Table_1[[#This Row],[Item ID]],DataTable,12,FALSE),\"\"))","v":""},{"$f":"IFERROR(Table_Data_Table_1[[#This Row],[Land\nResidual]]/Table_Data_Table_1[[#This Row],[Resid\nAcre]],\"\")","v":""},{"$f":"IFERROR(ROUND(Table_Data_Table_1[[#This Row],[Land\nResidual]]/Table_Data_Table_1[[#This Row],[Resid\nSq Ft]],2),\"\")","v":""},{"$f":"IF(Table_Data_Table_1[[#This Row],[Item ID]]=\"\",\"\",ROUND(DAYS360(Table_Data_Table_1[[#This Row],[Sale Date]],'Global Settings'!$H$5)/30,0))","v":""},{"$f":"IFERROR(IF(AND(Table_Data_Table_1[[#This Row],[Months To\nMid-Point]]<12.01,Table_Data_Table_1[[#This Row],[Months To\nMid-Point]]>-13),0,(Table_Data_Table_1[[#This Row],[Months To\nMid-Point]]*'Global Settings'!$H$6)),\"\")","v":""},{"$f":"IFERROR(Table_Data_Table_1[[#This Row],[Land\nResidual]]*(Table_Data_Table_1[[#This Row],[Time\nAdjust]]+1),\"\")","v":""},{"$f":"IFERROR(Table_Data_Table_1[[#This Row],[Adjusted\nSale Price]]/Table_Data_Table_1[[#This Row],[Resid\nAcre]],\"\")","v":""},{"$f":"IFERROR(ROUND(Table_Data_Table_1[[#This Row],[Adjusted\nSale Price]]/Table_Data_Table_1[[#This Row],[Resid\nSq Ft]],2),\"\")","v":""},{"$f":"IFERROR(IF(VLOOKUP(Table_Data_Table_1[[#This Row],[Item ID]],DataTable,11,FALSE)=0,\"N/A\",Table_Data_Table_1[[#This Row],[Adjusted\nSale Price]]/VLOOKUP(Table_Data_Table_1[[#This Row],[Item ID]],DataTable,11,FALSE)),\"\")","v":""},{"$f":"IF(IFERROR(VLOOKUP(Table_Data_Table_1[[#This Row],[Item ID]],DataTable,17,FALSE),\"\")=0,\"\",IFERROR(VLOOKUP(Table_Data_Table_1[[#This Row],[Item ID]],DataTable,17,FALSE),\"\"))","v":""}]
["",null,{"$f":"IF(Table_Data_Table_1[[#This Row],[Item ID]]=\"\",\"\",IFERROR(VLOOKUP(Table_Data_Table_1[[#This Row],[Item ID]],DataTable,16,FALSE),\"\"))","v":""},null,null,null,null,{"$f":"IF(Table_Data_Table_1[[#This Row],[Valuation Method]]=\"Vacant\",VLOOKUP(Table_Data_Table_1[[#This Row],[Item ID]],DataTable,6,FALSE)-VLOOKUP(Table_Data_Table_1[[#This Row],[Item ID]],DataTable,13,FALSE),IF(Table_Data_Table_1[[#This Row],[Valuation Method]]=\"Abstraction\",VLOOKUP(Table_Data_Table_1[[#This Row],[Item ID]],DataTable,6,FALSE)-VLOOKUP(Table_Data_Table_1[[#This Row],[Item ID]],DataTable,13,FALSE),IF(Table_Data_Table_1[[#This Row],[Valuation Method]]=\"Allocation\",VLOOKUP(Table_Data_Table_1[[#This Row],[Item ID]],DataTable,6,FALSE)*I84,\"\")))","v":""},{"$f":"IF(Table_Data_Table_1[[#This Row],[Valuation Method]]=\"Vacant\",\"N/A\",IF(Table_Data_Table_1[[#This Row],[Valuation Method]]=\"Abstraction\",Table_Data_Table_1[[#This Row],[Land\nResidual]]/VLOOKUP(Table_Data_Table_1[[#This Row],[Item ID]],DataTable,6,FALSE),IF(Table_Data_Table_1[[#This Row],[Valuation Method]]=\"Allocation\",'Global Settings'!$H$20,\"\")))","v":""},{"$f":"IFERROR(ROUND(Table_Data_Table_1[[#This Row],[Resid\nSq Ft]]/43560,3),\"\")","v":""},{"$f":"IF(Table_Data_Table_1[[#This Row],[Item ID]]=\"\",\"\",IFERROR(VLOOKUP(Table_Data_Table_1[[#This Row],[Item ID]],DataTable,10,FALSE)-VLOOKUP(Table_Data_Table_1[[#This Row],[Item ID]],DataTable,12,FALSE),\"\"))","v":""},{"$f":"IFERROR(Table_Data_Table_1[[#This Row],[Land\nResidual]]/Table_Data_Table_1[[#This Row],[Resid\nAcre]],\"\")","v":""},{"$f":"IFERROR(ROUND(Table_Data_Table_1[[#This Row],[Land\nResidual]]/Table_Data_Table_1[[#This Row],[Resid\nSq Ft]],2),\"\")","v":""},{"$f":"IF(Table_Data_Table_1[[#This Row],[Item ID]]=\"\",\"\",ROUND(DAYS360(Table_Data_Table_1[[#This Row],[Sale Date]],'Global Settings'!$H$5)/30,0))","v":""},{"$f":"IFERROR(IF(AND(Table_Data_Table_1[[#This Row],[Months To\nMid-Point]]<12.01,Table_Data_Table_1[[#This Row],[Months To\nMid-Point]]>-13),0,(Table_Data_Table_1[[#This Row],[Months To\nMid-Point]]*'Global Settings'!$H$6)),\"\")","v":""},{"$f":"IFERROR(Table_Data_Table_1[[#This Row],[Land\nResidual]]*(Table_Data_Table_1[[#This Row],[Time\nAdjust]]+1),\"\")","v":""},{"$f":"IFERROR(Table_Data_Table_1[[#This Row],[Adjusted\nSale Price]]/Table_Data_Table_1[[#This Row],[Resid\nAcre]],\"\")","v":""},{"$f":"IFERROR(ROUND(Table_Data_Table_1[[#This Row],[Adjusted\nSale Price]]/Table_Data_Table_1[[#This Row],[Resid\nSq Ft]],2),\"\")","v":""},{"$f":"IFERROR(IF(VLOOKUP(Table_Data_Table_1[[#This Row],[Item ID]],DataTable,11,FALSE)=0,\"N/A\",Table_Data_Table_1[[#This Row],[Adjusted\nSale Price]]/VLOOKUP(Table_Data_Table_1[[#This Row],[Item ID]],DataTable,11,FALSE)),\"\")","v":""},{"$f":"IF(IFERROR(VLOOKUP(Table_Data_Table_1[[#This Row],[Item ID]],DataTable,17,FALSE),\"\")=0,\"\",IFERROR(VLOOKUP(Table_Data_Table_1[[#This Row],[Item ID]],DataTable,17,FALSE),\"\"))","v":""}]
["",null,{"$f":"IF(Table_Data_Table_1[[#This Row],[Item ID]]=\"\",\"\",IFERROR(VLOOKUP(Table_Data_Table_1[[#This Row],[Item ID]],DataTable,16,FALSE),\"\"))","v":""},null,null,null,null,{"$f":"IF(Table_Data_Table_1[[#This Row],[Valuation Method]]=\"Vacant\",VLOOKUP(Table_Data_Table_1[[#This Row],[Item ID]],DataTable,6,FALSE)-VLOOKUP(Table_Data_Table_1[[#This Row],[Item ID]],DataTable,13,FALSE),IF(Table_Data_Table_1[[#This Row],[Valuation Method]]=\"Abstraction\",VLOOKUP(Table_Data_Table_1[[#This Row],[Item ID]],DataTable,6,FALSE)-VLOOKUP(Table_Data_Table_1[[#This Row],[Item ID]],DataTable,13,FALSE),IF(Table_Data_Table_1[[#This Row],[Valuation Method]]=\"Allocation\",VLOOKUP(Table_Data_Table_1[[#This Row],[Item ID]],DataTable,6,FALSE)*I85,\"\")))","v":""},{"$f":"IF(Table_Data_Table_1[[#This Row],[Valuation Method]]=\"Vacant\",\"N/A\",IF(Table_Data_Table_1[[#This Row],[Valuation Method]]=\"Abstraction\",Table_Data_Table_1[[#This Row],[Land\nResidual]]/VLOOKUP(Table_Data_Table_1[[#This Row],[Item ID]],DataTable,6,FALSE),IF(Table_Data_Table_1[[#This Row],[Valuation Method]]=\"Allocation\",'Global Settings'!$H$20,\"\")))","v":""},{"$f":"IFERROR(ROUND(Table_Data_Table_1[[#This Row],[Resid\nSq Ft]]/43560,3),\"\")","v":""},{"$f":"IF(Table_Data_Table_1[[#This Row],[Item ID]]=\"\",\"\",IFERROR(VLOOKUP(Table_Data_Table_1[[#This Row],[Item ID]],DataTable,10,FALSE)-VLOOKUP(Table_Data_Table_1[[#This Row],[Item ID]],DataTable,12,FALSE),\"\"))","v":""},{"$f":"IFERROR(Table_Data_Table_1[[#This Row],[Land\nResidual]]/Table_Data_Table_1[[#This Row],[Resid\nAcre]],\"\")","v":""},{"$f":"IFERROR(ROUND(Table_Data_Table_1[[#This Row],[Land\nResidual]]/Table_Data_Table_1[[#This Row],[Resid\nSq Ft]],2),\"\")","v":""},{"$f":"IF(Table_Data_Table_1[[#This Row],[Item ID]]=\"\",\"\",ROUND(DAYS360(Table_Data_Table_1[[#This Row],[Sale Date]],'Global Settings'!$H$5)/30,0))","v":""},{"$f":"IFERROR(IF(AND(Table_Data_Table_1[[#This Row],[Months To\nMid-Point]]<12.01,Table_Data_Table_1[[#This Row],[Months To\nMid-Point]]>-13),0,(Table_Data_Table_1[[#This Row],[Months To\nMid-Point]]*'Global Settings'!$H$6)),\"\")","v":""},{"$f":"IFERROR(Table_Data_Table_1[[#This Row],[Land\nResidual]]*(Table_Data_Table_1[[#This Row],[Time\nAdjust]]+1),\"\")","v":""},{"$f":"IFERROR(Table_Data_Table_1[[#This Row],[Adjusted\nSale Price]]/Table_Data_Table_1[[#This Row],[Resid\nAcre]],\"\")","v":""},{"$f":"IFERROR(ROUND(Table_Data_Table_1[[#This Row],[Adjusted\nSale Price]]/Table_Data_Table_1[[#This Row],[Resid\nSq Ft]],2),\"\")","v":""},{"$f":"IFERROR(IF(VLOOKUP(Table_Data_Table_1[[#This Row],[Item ID]],DataTable,11,FALSE)=0,\"N/A\",Table_Data_Table_1[[#This Row],[Adjusted\nSale Price]]/VLOOKUP(Table_Data_Table_1[[#This Row],[Item ID]],DataTable,11,FALSE)),\"\")","v":""},{"$f":"IF(IFERROR(VLOOKUP(Table_Data_Table_1[[#This Row],[Item ID]],DataTable,17,FALSE),\"\")=0,\"\",IFERROR(VLOOKUP(Table_Data_Table_1[[#This Row],[Item ID]],DataTable,17,FALSE),\"\"))","v":""}]
["",null,{"$f":"IF(Table_Data_Table_1[[#This Row],[Item ID]]=\"\",\"\",IFERROR(VLOOKUP(Table_Data_Table_1[[#This Row],[Item ID]],DataTable,16,FALSE),\"\"))","v":""},null,null,null,null,{"$f":"IF(Table_Data_Table_1[[#This Row],[Valuation Method]]=\"Vacant\",VLOOKUP(Table_Data_Table_1[[#This Row],[Item ID]],DataTable,6,FALSE)-VLOOKUP(Table_Data_Table_1[[#This Row],[Item ID]],DataTable,13,FALSE),IF(Table_Data_Table_1[[#This Row],[Valuation Method]]=\"Abstraction\",VLOOKUP(Table_Data_Table_1[[#This Row],[Item ID]],DataTable,6,FALSE)-VLOOKUP(Table_Data_Table_1[[#This Row],[Item ID]],DataTable,13,FALSE),IF(Table_Data_Table_1[[#This Row],[Valuation Method]]=\"Allocation\",VLOOKUP(Table_Data_Table_1[[#This Row],[Item ID]],DataTable,6,FALSE)*I86,\"\")))","v":""},{"$f":"IF(Table_Data_Table_1[[#This Row],[Valuation Method]]=\"Vacant\",\"N/A\",IF(Table_Data_Table_1[[#This Row],[Valuation Method]]=\"Abstraction\",Table_Data_Table_1[[#This Row],[Land\nResidual]]/VLOOKUP(Table_Data_Table_1[[#This Row],[Item ID]],DataTable,6,FALSE),IF(Table_Data_Table_1[[#This Row],[Valuation Method]]=\"Allocation\",'Global Settings'!$H$20,\"\")))","v":""},{"$f":"IFERROR(ROUND(Table_Data_Table_1[[#This Row],[Resid\nSq Ft]]/43560,3),\"\")","v":""},{"$f":"IF(Table_Data_Table_1[[#This Row],[Item ID]]=\"\",\"\",IFERROR(VLOOKUP(Table_Data_Table_1[[#This Row],[Item ID]],DataTable,10,FALSE)-VLOOKUP(Table_Data_Table_1[[#This Row],[Item ID]],DataTable,12,FALSE),\"\"))","v":""},{"$f":"IFERROR(Table_Data_Table_1[[#This Row],[Land\nResidual]]/Table_Data_Table_1[[#This Row],[Resid\nAcre]],\"\")","v":""},{"$f":"IFERROR(ROUND(Table_Data_Table_1[[#This Row],[Land\nResidual]]/Table_Data_Table_1[[#This Row],[Resid\nSq Ft]],2),\"\")","v":""},{"$f":"IF(Table_Data_Table_1[[#This Row],[Item ID]]=\"\",\"\",ROUND(DAYS360(Table_Data_Table_1[[#This Row],[Sale Date]],'Global Settings'!$H$5)/30,0))","v":""},{"$f":"IFERROR(IF(AND(Table_Data_Table_1[[#This Row],[Months To\nMid-Point]]<12.01,Table_Data_Table_1[[#This Row],[Months To\nMid-Point]]>-13),0,(Table_Data_Table_1[[#This Row],[Months To\nMid-Point]]*'Global Settings'!$H$6)),\"\")","v":""},{"$f":"IFERROR(Table_Data_Table_1[[#This Row],[Land\nResidual]]*(Table_Data_Table_1[[#This Row],[Time\nAdjust]]+1),\"\")","v":""},{"$f":"IFERROR(Table_Data_Table_1[[#This Row],[Adjusted\nSale Price]]/Table_Data_Table_1[[#This Row],[Resid\nAcre]],\"\")","v":""},{"$f":"IFERROR(ROUND(Table_Data_Table_1[[#This Row],[Adjusted\nSale Price]]/Table_Data_Table_1[[#This Row],[Resid\nSq Ft]],2),\"\")","v":""},{"$f":"IFERROR(IF(VLOOKUP(Table_Data_Table_1[[#This Row],[Item ID]],DataTable,11,FALSE)=0,\"N/A\",Table_Data_Table_1[[#This Row],[Adjusted\nSale Price]]/VLOOKUP(Table_Data_Table_1[[#This Row],[Item ID]],DataTable,11,FALSE)),\"\")","v":""},{"$f":"IF(IFERROR(VLOOKUP(Table_Data_Table_1[[#This Row],[Item ID]],DataTable,17,FALSE),\"\")=0,\"\",IFERROR(VLOOKUP(Table_Data_Table_1[[#This Row],[Item ID]],DataTable,17,FALSE),\"\"))","v":""}]
["",null,{"$f":"IF(Table_Data_Table_1[[#This Row],[Item ID]]=\"\",\"\",IFERROR(VLOOKUP(Table_Data_Table_1[[#This Row],[Item ID]],DataTable,16,FALSE),\"\"))","v":""},null,null,null,null,{"$f":"IF(Table_Data_Table_1[[#This Row],[Valuation Method]]=\"Vacant\",VLOOKUP(Table_Data_Table_1[[#This Row],[Item ID]],DataTable,6,FALSE)-VLOOKUP(Table_Data_Table_1[[#This Row],[Item ID]],DataTable,13,FALSE),IF(Table_Data_Table_1[[#This Row],[Valuation Method]]=\"Abstraction\",VLOOKUP(Table_Data_Table_1[[#This Row],[Item ID]],DataTable,6,FALSE)-VLOOKUP(Table_Data_Table_1[[#This Row],[Item ID]],DataTable,13,FALSE),IF(Table_Data_Table_1[[#This Row],[Valuation Method]]=\"Allocation\",VLOOKUP(Table_Data_Table_1[[#This Row],[Item ID]],DataTable,6,FALSE)*I87,\"\")))","v":""},{"$f":"IF(Table_Data_Table_1[[#This Row],[Valuation Method]]=\"Vacant\",\"N/A\",IF(Table_Data_Table_1[[#This Row],[Valuation Method]]=\"Abstraction\",Table_Data_Table_1[[#This Row],[Land\nResidual]]/VLOOKUP(Table_Data_Table_1[[#This Row],[Item ID]],DataTable,6,FALSE),IF(Table_Data_Table_1[[#This Row],[Valuation Method]]=\"Allocation\",'Global Settings'!$H$20,\"\")))","v":""},{"$f":"IFERROR(ROUND(Table_Data_Table_1[[#This Row],[Resid\nSq Ft]]/43560,3),\"\")","v":""},{"$f":"IF(Table_Data_Table_1[[#This Row],[Item ID]]=\"\",\"\",IFERROR(VLOOKUP(Table_Data_Table_1[[#This Row],[Item ID]],DataTable,10,FALSE)-VLOOKUP(Table_Data_Table_1[[#This Row],[Item ID]],DataTable,12,FALSE),\"\"))","v":""},{"$f":"IFERROR(Table_Data_Table_1[[#This Row],[Land\nResidual]]/Table_Data_Table_1[[#This Row],[Resid\nAcre]],\"\")","v":""},{"$f":"IFERROR(ROUND(Table_Data_Table_1[[#This Row],[Land\nResidual]]/Table_Data_Table_1[[#This Row],[Resid\nSq Ft]],2),\"\")","v":""},{"$f":"IF(Table_Data_Table_1[[#This Row],[Item ID]]=\"\",\"\",ROUND(DAYS360(Table_Data_Table_1[[#This Row],[Sale Date]],'Global Settings'!$H$5)/30,0))","v":""},{"$f":"IFERROR(IF(AND(Table_Data_Table_1[[#This Row],[Months To\nMid-Point]]<12.01,Table_Data_Table_1[[#This Row],[Months To\nMid-Point]]>-13),0,(Table_Data_Table_1[[#This Row],[Months To\nMid-Point]]*'Global Settings'!$H$6)),\"\")","v":""},{"$f":"IFERROR(Table_Data_Table_1[[#This Row],[Land\nResidual]]*(Table_Data_Table_1[[#This Row],[Time\nAdjust]]+1),\"\")","v":""},{"$f":"IFERROR(Table_Data_Table_1[[#This Row],[Adjusted\nSale Price]]/Table_Data_Table_1[[#This Row],[Resid\nAcre]],\"\")","v":""},{"$f":"IFERROR(ROUND(Table_Data_Table_1[[#This Row],[Adjusted\nSale Price]]/Table_Data_Table_1[[#This Row],[Resid\nSq Ft]],2),\"\")","v":""},{"$f":"IFERROR(IF(VLOOKUP(Table_Data_Table_1[[#This Row],[Item ID]],DataTable,11,FALSE)=0,\"N/A\",Table_Data_Table_1[[#This Row],[Adjusted\nSale Price]]/VLOOKUP(Table_Data_Table_1[[#This Row],[Item ID]],DataTable,11,FALSE)),\"\")","v":""},{"$f":"IF(IFERROR(VLOOKUP(Table_Data_Table_1[[#This Row],[Item ID]],DataTable,17,FALSE),\"\")=0,\"\",IFERROR(VLOOKUP(Table_Data_Table_1[[#This Row],[Item ID]],DataTable,17,FALSE),\"\"))","v":""}]
["",null,{"$f":"IF(Table_Data_Table_1[[#This Row],[Item ID]]=\"\",\"\",IFERROR(VLOOKUP(Table_Data_Table_1[[#This Row],[Item ID]],DataTable,16,FALSE),\"\"))","v":""},null,null,null,null,{"$f":"IF(Table_Data_Table_1[[#This Row],[Valuation Method]]=\"Vacant\",VLOOKUP(Table_Data_Table_1[[#This Row],[Item ID]],DataTable,6,FALSE)-VLOOKUP(Table_Data_Table_1[[#This Row],[Item ID]],DataTable,13,FALSE),IF(Table_Data_Table_1[[#This Row],[Valuation Method]]=\"Abstraction\",VLOOKUP(Table_Data_Table_1[[#This Row],[Item ID]],DataTable,6,FALSE)-VLOOKUP(Table_Data_Table_1[[#This Row],[Item ID]],DataTable,13,FALSE),IF(Table_Data_Table_1[[#This Row],[Valuation Method]]=\"Allocation\",VLOOKUP(Table_Data_Table_1[[#This Row],[Item ID]],DataTable,6,FALSE)*I88,\"\")))","v":""},{"$f":"IF(Table_Data_Table_1[[#This Row],[Valuation Method]]=\"Vacant\",\"N/A\",IF(Table_Data_Table_1[[#This Row],[Valuation Method]]=\"Abstraction\",Table_Data_Table_1[[#This Row],[Land\nResidual]]/VLOOKUP(Table_Data_Table_1[[#This Row],[Item ID]],DataTable,6,FALSE),IF(Table_Data_Table_1[[#This Row],[Valuation Method]]=\"Allocation\",'Global Settings'!$H$20,\"\")))","v":""},{"$f":"IFERROR(ROUND(Table_Data_Table_1[[#This Row],[Resid\nSq Ft]]/43560,3),\"\")","v":""},{"$f":"IF(Table_Data_Table_1[[#This Row],[Item ID]]=\"\",\"\",IFERROR(VLOOKUP(Table_Data_Table_1[[#This Row],[Item ID]],DataTable,10,FALSE)-VLOOKUP(Table_Data_Table_1[[#This Row],[Item ID]],DataTable,12,FALSE),\"\"))","v":""},{"$f":"IFERROR(Table_Data_Table_1[[#This Row],[Land\nResidual]]/Table_Data_Table_1[[#This Row],[Resid\nAcre]],\"\")","v":""},{"$f":"IFERROR(ROUND(Table_Data_Table_1[[#This Row],[Land\nResidual]]/Table_Data_Table_1[[#This Row],[Resid\nSq Ft]],2),\"\")","v":""},{"$f":"IF(Table_Data_Table_1[[#This Row],[Item ID]]=\"\",\"\",ROUND(DAYS360(Table_Data_Table_1[[#This Row],[Sale Date]],'Global Settings'!$H$5)/30,0))","v":""},{"$f":"IFERROR(IF(AND(Table_Data_Table_1[[#This Row],[Months To\nMid-Point]]<12.01,Table_Data_Table_1[[#This Row],[Months To\nMid-Point]]>-13),0,(Table_Data_Table_1[[#This Row],[Months To\nMid-Point]]*'Global Settings'!$H$6)),\"\")","v":""},{"$f":"IFERROR(Table_Data_Table_1[[#This Row],[Land\nResidual]]*(Table_Data_Table_1[[#This Row],[Time\nAdjust]]+1),\"\")","v":""},{"$f":"IFERROR(Table_Data_Table_1[[#This Row],[Adjusted\nSale Price]]/Table_Data_Table_1[[#This Row],[Resid\nAcre]],\"\")","v":""},{"$f":"IFERROR(ROUND(Table_Data_Table_1[[#This Row],[Adjusted\nSale Price]]/Table_Data_Table_1[[#This Row],[Resid\nSq Ft]],2),\"\")","v":""},{"$f":"IFERROR(IF(VLOOKUP(Table_Data_Table_1[[#This Row],[Item ID]],DataTable,11,FALSE)=0,\"N/A\",Table_Data_Table_1[[#This Row],[Adjusted\nSale Price]]/VLOOKUP(Table_Data_Table_1[[#This Row],[Item ID]],DataTable,11,FALSE)),\"\")","v":""},{"$f":"IF(IFERROR(VLOOKUP(Table_Data_Table_1[[#This Row],[Item ID]],DataTable,17,FALSE),\"\")=0,\"\",IFERROR(VLOOKUP(Table_Data_Table_1[[#This Row],[Item ID]],DataTable,17,FALSE),\"\"))","v":""}]
["",null,{"$f":"IF(Table_Data_Table_1[[#This Row],[Item ID]]=\"\",\"\",IFERROR(VLOOKUP(Table_Data_Table_1[[#This Row],[Item ID]],DataTable,16,FALSE),\"\"))","v":""},null,null,null,null,{"$f":"IF(Table_Data_Table_1[[#This Row],[Valuation Method]]=\"Vacant\",VLOOKUP(Table_Data_Table_1[[#This Row],[Item ID]],DataTable,6,FALSE)-VLOOKUP(Table_Data_Table_1[[#This Row],[Item ID]],DataTable,13,FALSE),IF(Table_Data_Table_1[[#This Row],[Valuation Method]]=\"Abstraction\",VLOOKUP(Table_Data_Table_1[[#This Row],[Item ID]],DataTable,6,FALSE)-VLOOKUP(Table_Data_Table_1[[#This Row],[Item ID]],DataTable,13,FALSE),IF(Table_Data_Table_1[[#This Row],[Valuation Method]]=\"Allocation\",VLOOKUP(Table_Data_Table_1[[#This Row],[Item ID]],DataTable,6,FALSE)*I89,\"\")))","v":""},{"$f":"IF(Table_Data_Table_1[[#This Row],[Valuation Method]]=\"Vacant\",\"N/A\",IF(Table_Data_Table_1[[#This Row],[Valuation Method]]=\"Abstraction\",Table_Data_Table_1[[#This Row],[Land\nResidual]]/VLOOKUP(Table_Data_Table_1[[#This Row],[Item ID]],DataTable,6,FALSE),IF(Table_Data_Table_1[[#This Row],[Valuation Method]]=\"Allocation\",'Global Settings'!$H$20,\"\")))","v":""},{"$f":"IFERROR(ROUND(Table_Data_Table_1[[#This Row],[Resid\nSq Ft]]/43560,3),\"\")","v":""},{"$f":"IF(Table_Data_Table_1[[#This Row],[Item ID]]=\"\",\"\",IFERROR(VLOOKUP(Table_Data_Table_1[[#This Row],[Item ID]],DataTable,10,FALSE)-VLOOKUP(Table_Data_Table_1[[#This Row],[Item ID]],DataTable,12,FALSE),\"\"))","v":""},{"$f":"IFERROR(Table_Data_Table_1[[#This Row],[Land\nResidual]]/Table_Data_Table_1[[#This Row],[Resid\nAcre]],\"\")","v":""},{"$f":"IFERROR(ROUND(Table_Data_Table_1[[#This Row],[Land\nResidual]]/Table_Data_Table_1[[#This Row],[Resid\nSq Ft]],2),\"\")","v":""},{"$f":"IF(Table_Data_Table_1[[#This Row],[Item ID]]=\"\",\"\",ROUND(DAYS360(Table_Data_Table_1[[#This Row],[Sale Date]],'Global Settings'!$H$5)/30,0))","v":""},{"$f":"IFERROR(IF(AND(Table_Data_Table_1[[#This Row],[Months To\nMid-Point]]<12.01,Table_Data_Table_1[[#This Row],[Months To\nMid-Point]]>-13),0,(Table_Data_Table_1[[#This Row],[Months To\nMid-Point]]*'Global Settings'!$H$6)),\"\")","v":""},{"$f":"IFERROR(Table_Data_Table_1[[#This Row],[Land\nResidual]]*(Table_Data_Table_1[[#This Row],[Time\nAdjust]]+1),\"\")","v":""},{"$f":"IFERROR(Table_Data_Table_1[[#This Row],[Adjusted\nSale Price]]/Table_Data_Table_1[[#This Row],[Resid\nAcre]],\"\")","v":""},{"$f":"IFERROR(ROUND(Table_Data_Table_1[[#This Row],[Adjusted\nSale Price]]/Table_Data_Table_1[[#This Row],[Resid\nSq Ft]],2),\"\")","v":""},{"$f":"IFERROR(IF(VLOOKUP(Table_Data_Table_1[[#This Row],[Item ID]],DataTable,11,FALSE)=0,\"N/A\",Table_Data_Table_1[[#This Row],[Adjusted\nSale Price]]/VLOOKUP(Table_Data_Table_1[[#This Row],[Item ID]],DataTable,11,FALSE)),\"\")","v":""},{"$f":"IF(IFERROR(VLOOKUP(Table_Data_Table_1[[#This Row],[Item ID]],DataTable,17,FALSE),\"\")=0,\"\",IFERROR(VLOOKUP(Table_Data_Table_1[[#This Row],[Item ID]],DataTable,17,FALSE),\"\"))","v":""}]
["",null,{"$f":"IF(Table_Data_Table_1[[#This Row],[Item ID]]=\"\",\"\",IFERROR(VLOOKUP(Table_Data_Table_1[[#This Row],[Item ID]],DataTable,16,FALSE),\"\"))","v":""},null,null,null,null,{"$f":"IF(Table_Data_Table_1[[#This Row],[Valuation Method]]=\"Vacant\",VLOOKUP(Table_Data_Table_1[[#This Row],[Item ID]],DataTable,6,FALSE)-VLOOKUP(Table_Data_Table_1[[#This Row],[Item ID]],DataTable,13,FALSE),IF(Table_Data_Table_1[[#This Row],[Valuation Method]]=\"Abstraction\",VLOOKUP(Table_Data_Table_1[[#This Row],[Item ID]],DataTable,6,FALSE)-VLOOKUP(Table_Data_Table_1[[#This Row],[Item ID]],DataTable,13,FALSE),IF(Table_Data_Table_1[[#This Row],[Valuation Method]]=\"Allocation\",VLOOKUP(Table_Data_Table_1[[#This Row],[Item ID]],DataTable,6,FALSE)*I90,\"\")))","v":""},{"$f":"IF(Table_Data_Table_1[[#This Row],[Valuation Method]]=\"Vacant\",\"N/A\",IF(Table_Data_Table_1[[#This Row],[Valuation Method]]=\"Abstraction\",Table_Data_Table_1[[#This Row],[Land\nResidual]]/VLOOKUP(Table_Data_Table_1[[#This Row],[Item ID]],DataTable,6,FALSE),IF(Table_Data_Table_1[[#This Row],[Valuation Method]]=\"Allocation\",'Global Settings'!$H$20,\"\")))","v":""},{"$f":"IFERROR(ROUND(Table_Data_Table_1[[#This Row],[Resid\nSq Ft]]/43560,3),\"\")","v":""},{"$f":"IF(Table_Data_Table_1[[#This Row],[Item ID]]=\"\",\"\",IFERROR(VLOOKUP(Table_Data_Table_1[[#This Row],[Item ID]],DataTable,10,FALSE)-VLOOKUP(Table_Data_Table_1[[#This Row],[Item ID]],DataTable,12,FALSE),\"\"))","v":""},{"$f":"IFERROR(Table_Data_Table_1[[#This Row],[Land\nResidual]]/Table_Data_Table_1[[#This Row],[Resid\nAcre]],\"\")","v":""},{"$f":"IFERROR(ROUND(Table_Data_Table_1[[#This Row],[Land\nResidual]]/Table_Data_Table_1[[#This Row],[Resid\nSq Ft]],2),\"\")","v":""},{"$f":"IF(Table_Data_Table_1[[#This Row],[Item ID]]=\"\",\"\",ROUND(DAYS360(Table_Data_Table_1[[#This Row],[Sale Date]],'Global Settings'!$H$5)/30,0))","v":""},{"$f":"IFERROR(IF(AND(Table_Data_Table_1[[#This Row],[Months To\nMid-Point]]<12.01,Table_Data_Table_1[[#This Row],[Months To\nMid-Point]]>-13),0,(Table_Data_Table_1[[#This Row],[Months To\nMid-Point]]*'Global Settings'!$H$6)),\"\")","v":""},{"$f":"IFERROR(Table_Data_Table_1[[#This Row],[Land\nResidual]]*(Table_Data_Table_1[[#This Row],[Time\nAdjust]]+1),\"\")","v":""},{"$f":"IFERROR(Table_Data_Table_1[[#This Row],[Adjusted\nSale Price]]/Table_Data_Table_1[[#This Row],[Resid\nAcre]],\"\")","v":""},{"$f":"IFERROR(ROUND(Table_Data_Table_1[[#This Row],[Adjusted\nSale Price]]/Table_Data_Table_1[[#This Row],[Resid\nSq Ft]],2),\"\")","v":""},{"$f":"IFERROR(IF(VLOOKUP(Table_Data_Table_1[[#This Row],[Item ID]],DataTable,11,FALSE)=0,\"N/A\",Table_Data_Table_1[[#This Row],[Adjusted\nSale Price]]/VLOOKUP(Table_Data_Table_1[[#This Row],[Item ID]],DataTable,11,FALSE)),\"\")","v":""},{"$f":"IF(IFERROR(VLOOKUP(Table_Data_Table_1[[#This Row],[Item ID]],DataTable,17,FALSE),\"\")=0,\"\",IFERROR(VLOOKUP(Table_Data_Table_1[[#This Row],[Item ID]],DataTable,17,FALSE),\"\"))","v":""}]
["",null,{"$f":"IF(Table_Data_Table_1[[#This Row],[Item ID]]=\"\",\"\",IFERROR(VLOOKUP(Table_Data_Table_1[[#This Row],[Item ID]],DataTable,16,FALSE),\"\"))","v":""},null,null,null,null,{"$f":"IF(Table_Data_Table_1[[#This Row],[Valuation Method]]=\"Vacant\",VLOOKUP(Table_Data_Table_1[[#This Row],[Item ID]],DataTable,6,FALSE)-VLOOKUP(Table_Data_Table_1[[#This Row],[Item ID]],DataTable,13,FALSE),IF(Table_Data_Table_1[[#This Row],[Valuation Method]]=\"Abstraction\",VLOOKUP(Table_Data_Table_1[[#This Row],[Item ID]],DataTable,6,FALSE)-VLOOKUP(Table_Data_Table_1[[#This Row],[Item ID]],DataTable,13,FALSE),IF(Table_Data_Table_1[[#This Row],[Valuation Method]]=\"Allocation\",VLOOKUP(Table_Data_Table_1[[#This Row],[Item ID]],DataTable,6,FALSE)*I91,\"\")))","v":""},{"$f":"IF(Table_Data_Table_1[[#This Row],[Valuation Method]]=\"Vacant\",\"N/A\",IF(Table_Data_Table_1[[#This Row],[Valuation Method]]=\"Abstraction\",Table_Data_Table_1[[#This Row],[Land\nResidual]]/VLOOKUP(Table_Data_Table_1[[#This Row],[Item ID]],DataTable,6,FALSE),IF(Table_Data_Table_1[[#This Row],[Valuation Method]]=\"Allocation\",'Global Settings'!$H$20,\"\")))","v":""},{"$f":"IFERROR(ROUND(Table_Data_Table_1[[#This Row],[Resid\nSq Ft]]/43560,3),\"\")","v":""},{"$f":"IF(Table_Data_Table_1[[#This Row],[Item ID]]=\"\",\"\",IFERROR(VLOOKUP(Table_Data_Table_1[[#This Row],[Item ID]],DataTable,10,FALSE)-VLOOKUP(Table_Data_Table_1[[#This Row],[Item ID]],DataTable,12,FALSE),\"\"))","v":""},{"$f":"IFERROR(Table_Data_Table_1[[#This Row],[Land\nResidual]]/Table_Data_Table_1[[#This Row],[Resid\nAcre]],\"\")","v":""},{"$f":"IFERROR(ROUND(Table_Data_Table_1[[#This Row],[Land\nResidual]]/Table_Data_Table_1[[#This Row],[Resid\nSq Ft]],2),\"\")","v":""},{"$f":"IF(Table_Data_Table_1[[#This Row],[Item ID]]=\"\",\"\",ROUND(DAYS360(Table_Data_Table_1[[#This Row],[Sale Date]],'Global Settings'!$H$5)/30,0))","v":""},{"$f":"IFERROR(IF(AND(Table_Data_Table_1[[#This Row],[Months To\nMid-Point]]<12.01,Table_Data_Table_1[[#This Row],[Months To\nMid-Point]]>-13),0,(Table_Data_Table_1[[#This Row],[Months To\nMid-Point]]*'Global Settings'!$H$6)),\"\")","v":""},{"$f":"IFERROR(Table_Data_Table_1[[#This Row],[Land\nResidual]]*(Table_Data_Table_1[[#This Row],[Time\nAdjust]]+1),\"\")","v":""},{"$f":"IFERROR(Table_Data_Table_1[[#This Row],[Adjusted\nSale Price]]/Table_Data_Table_1[[#This Row],[Resid\nAcre]],\"\")","v":""},{"$f":"IFERROR(ROUND(Table_Data_Table_1[[#This Row],[Adjusted\nSale Price]]/Table_Data_Table_1[[#This Row],[Resid\nSq Ft]],2),\"\")","v":""},{"$f":"IFERROR(IF(VLOOKUP(Table_Data_Table_1[[#This Row],[Item ID]],DataTable,11,FALSE)=0,\"N/A\",Table_Data_Table_1[[#This Row],[Adjusted\nSale Price]]/VLOOKUP(Table_Data_Table_1[[#This Row],[Item ID]],DataTable,11,FALSE)),\"\")","v":""},{"$f":"IF(IFERROR(VLOOKUP(Table_Data_Table_1[[#This Row],[Item ID]],DataTable,17,FALSE),\"\")=0,\"\",IFERROR(VLOOKUP(Table_Data_Table_1[[#This Row],[Item ID]],DataTable,17,FALSE),\"\"))","v":""}]
["",null,{"$f":"IF(Table_Data_Table_1[[#This Row],[Item ID]]=\"\",\"\",IFERROR(VLOOKUP(Table_Data_Table_1[[#This Row],[Item ID]],DataTable,16,FALSE),\"\"))","v":""},null,null,null,null,{"$f":"IF(Table_Data_Table_1[[#This Row],[Valuation Method]]=\"Vacant\",VLOOKUP(Table_Data_Table_1[[#This Row],[Item ID]],DataTable,6,FALSE)-VLOOKUP(Table_Data_Table_1[[#This Row],[Item ID]],DataTable,13,FALSE),IF(Table_Data_Table_1[[#This Row],[Valuation Method]]=\"Abstraction\",VLOOKUP(Table_Data_Table_1[[#This Row],[Item ID]],DataTable,6,FALSE)-VLOOKUP(Table_Data_Table_1[[#This Row],[Item ID]],DataTable,13,FALSE),IF(Table_Data_Table_1[[#This Row],[Valuation Method]]=\"Allocation\",VLOOKUP(Table_Data_Table_1[[#This Row],[Item ID]],DataTable,6,FALSE)*I92,\"\")))","v":""},{"$f":"IF(Table_Data_Table_1[[#This Row],[Valuation Method]]=\"Vacant\",\"N/A\",IF(Table_Data_Table_1[[#This Row],[Valuation Method]]=\"Abstraction\",Table_Data_Table_1[[#This Row],[Land\nResidual]]/VLOOKUP(Table_Data_Table_1[[#This Row],[Item ID]],DataTable,6,FALSE),IF(Table_Data_Table_1[[#This Row],[Valuation Method]]=\"Allocation\",'Global Settings'!$H$20,\"\")))","v":""},{"$f":"IFERROR(ROUND(Table_Data_Table_1[[#This Row],[Resid\nSq Ft]]/43560,3),\"\")","v":""},{"$f":"IF(Table_Data_Table_1[[#This Row],[Item ID]]=\"\",\"\",IFERROR(VLOOKUP(Table_Data_Table_1[[#This Row],[Item ID]],DataTable,10,FALSE)-VLOOKUP(Table_Data_Table_1[[#This Row],[Item ID]],DataTable,12,FALSE),\"\"))","v":""},{"$f":"IFERROR(Table_Data_Table_1[[#This Row],[Land\nResidual]]/Table_Data_Table_1[[#This Row],[Resid\nAcre]],\"\")","v":""},{"$f":"IFERROR(ROUND(Table_Data_Table_1[[#This Row],[Land\nResidual]]/Table_Data_Table_1[[#This Row],[Resid\nSq Ft]],2),\"\")","v":""},{"$f":"IF(Table_Data_Table_1[[#This Row],[Item ID]]=\"\",\"\",ROUND(DAYS360(Table_Data_Table_1[[#This Row],[Sale Date]],'Global Settings'!$H$5)/30,0))","v":""},{"$f":"IFERROR(IF(AND(Table_Data_Table_1[[#This Row],[Months To\nMid-Point]]<12.01,Table_Data_Table_1[[#This Row],[Months To\nMid-Point]]>-13),0,(Table_Data_Table_1[[#This Row],[Months To\nMid-Point]]*'Global Settings'!$H$6)),\"\")","v":""},{"$f":"IFERROR(Table_Data_Table_1[[#This Row],[Land\nResidual]]*(Table_Data_Table_1[[#This Row],[Time\nAdjust]]+1),\"\")","v":""},{"$f":"IFERROR(Table_Data_Table_1[[#This Row],[Adjusted\nSale Price]]/Table_Data_Table_1[[#This Row],[Resid\nAcre]],\"\")","v":""},{"$f":"IFERROR(ROUND(Table_Data_Table_1[[#This Row],[Adjusted\nSale Price]]/Table_Data_Table_1[[#This Row],[Resid\nSq Ft]],2),\"\")","v":""},{"$f":"IFERROR(IF(VLOOKUP(Table_Data_Table_1[[#This Row],[Item ID]],DataTable,11,FALSE)=0,\"N/A\",Table_Data_Table_1[[#This Row],[Adjusted\nSale Price]]/VLOOKUP(Table_Data_Table_1[[#This Row],[Item ID]],DataTable,11,FALSE)),\"\")","v":""},{"$f":"IF(IFERROR(VLOOKUP(Table_Data_Table_1[[#This Row],[Item ID]],DataTable,17,FALSE),\"\")=0,\"\",IFERROR(VLOOKUP(Table_Data_Table_1[[#This Row],[Item ID]],DataTable,17,FALSE),\"\"))","v":""}]
["",null,{"$f":"IF(Table_Data_Table_1[[#This Row],[Item ID]]=\"\",\"\",IFERROR(VLOOKUP(Table_Data_Table_1[[#This Row],[Item ID]],DataTable,16,FALSE),\"\"))","v":""},null,null,null,null,{"$f":"IF(Table_Data_Table_1[[#This Row],[Valuation Method]]=\"Vacant\",VLOOKUP(Table_Data_Table_1[[#This Row],[Item ID]],DataTable,6,FALSE)-VLOOKUP(Table_Data_Table_1[[#This Row],[Item ID]],DataTable,13,FALSE),IF(Table_Data_Table_1[[#This Row],[Valuation Method]]=\"Abstraction\",VLOOKUP(Table_Data_Table_1[[#This Row],[Item ID]],DataTable,6,FALSE)-VLOOKUP(Table_Data_Table_1[[#This Row],[Item ID]],DataTable,13,FALSE),IF(Table_Data_Table_1[[#This Row],[Valuation Method]]=\"Allocation\",VLOOKUP(Table_Data_Table_1[[#This Row],[Item ID]],DataTable,6,FALSE)*I93,\"\")))","v":""},{"$f":"IF(Table_Data_Table_1[[#This Row],[Valuation Method]]=\"Vacant\",\"N/A\",IF(Table_Data_Table_1[[#This Row],[Valuation Method]]=\"Abstraction\",Table_Data_Table_1[[#This Row],[Land\nResidual]]/VLOOKUP(Table_Data_Table_1[[#This Row],[Item ID]],DataTable,6,FALSE),IF(Table_Data_Table_1[[#This Row],[Valuation Method]]=\"Allocation\",'Global Settings'!$H$20,\"\")))","v":""},{"$f":"IFERROR(ROUND(Table_Data_Table_1[[#This Row],[Resid\nSq Ft]]/43560,3),\"\")","v":""},{"$f":"IF(Table_Data_Table_1[[#This Row],[Item ID]]=\"\",\"\",IFERROR(VLOOKUP(Table_Data_Table_1[[#This Row],[Item ID]],DataTable,10,FALSE)-VLOOKUP(Table_Data_Table_1[[#This Row],[Item ID]],DataTable,12,FALSE),\"\"))","v":""},{"$f":"IFERROR(Table_Data_Table_1[[#This Row],[Land\nResidual]]/Table_Data_Table_1[[#This Row],[Resid\nAcre]],\"\")","v":""},{"$f":"IFERROR(ROUND(Table_Data_Table_1[[#This Row],[Land\nResidual]]/Table_Data_Table_1[[#This Row],[Resid\nSq Ft]],2),\"\")","v":""},{"$f":"IF(Table_Data_Table_1[[#This Row],[Item ID]]=\"\",\"\",ROUND(DAYS360(Table_Data_Table_1[[#This Row],[Sale Date]],'Global Settings'!$H$5)/30,0))","v":""},{"$f":"IFERROR(IF(AND(Table_Data_Table_1[[#This Row],[Months To\nMid-Point]]<12.01,Table_Data_Table_1[[#This Row],[Months To\nMid-Point]]>-13),0,(Table_Data_Table_1[[#This Row],[Months To\nMid-Point]]*'Global Settings'!$H$6)),\"\")","v":""},{"$f":"IFERROR(Table_Data_Table_1[[#This Row],[Land\nResidual]]*(Table_Data_Table_1[[#This Row],[Time\nAdjust]]+1),\"\")","v":""},{"$f":"IFERROR(Table_Data_Table_1[[#This Row],[Adjusted\nSale Price]]/Table_Data_Table_1[[#This Row],[Resid\nAcre]],\"\")","v":""},{"$f":"IFERROR(ROUND(Table_Data_Table_1[[#This Row],[Adjusted\nSale Price]]/Table_Data_Table_1[[#This Row],[Resid\nSq Ft]],2),\"\")","v":""},{"$f":"IFERROR(IF(VLOOKUP(Table_Data_Table_1[[#This Row],[Item ID]],DataTable,11,FALSE)=0,\"N/A\",Table_Data_Table_1[[#This Row],[Adjusted\nSale Price]]/VLOOKUP(Table_Data_Table_1[[#This Row],[Item ID]],DataTable,11,FALSE)),\"\")","v":""},{"$f":"IF(IFERROR(VLOOKUP(Table_Data_Table_1[[#This Row],[Item ID]],DataTable,17,FALSE),\"\")=0,\"\",IFERROR(VLOOKUP(Table_Data_Table_1[[#This Row],[Item ID]],DataTable,17,FALSE),\"\"))","v":""}]
["",null,{"$f":"IF(Table_Data_Table_1[[#This Row],[Item ID]]=\"\",\"\",IFERROR(VLOOKUP(Table_Data_Table_1[[#This Row],[Item ID]],DataTable,16,FALSE),\"\"))","v":""},null,null,null,null,{"$f":"IF(Table_Data_Table_1[[#This Row],[Valuation Method]]=\"Vacant\",VLOOKUP(Table_Data_Table_1[[#This Row],[Item ID]],DataTable,6,FALSE)-VLOOKUP(Table_Data_Table_1[[#This Row],[Item ID]],DataTable,13,FALSE),IF(Table_Data_Table_1[[#This Row],[Valuation Method]]=\"Abstraction\",VLOOKUP(Table_Data_Table_1[[#This Row],[Item ID]],DataTable,6,FALSE)-VLOOKUP(Table_Data_Table_1[[#This Row],[Item ID]],DataTable,13,FALSE),IF(Table_Data_Table_1[[#This Row],[Valuation Method]]=\"Allocation\",VLOOKUP(Table_Data_Table_1[[#This Row],[Item ID]],DataTable,6,FALSE)*I94,\"\")))","v":""},{"$f":"IF(Table_Data_Table_1[[#This Row],[Valuation Method]]=\"Vacant\",\"N/A\",IF(Table_Data_Table_1[[#This Row],[Valuation Method]]=\"Abstraction\",Table_Data_Table_1[[#This Row],[Land\nResidual]]/VLOOKUP(Table_Data_Table_1[[#This Row],[Item ID]],DataTable,6,FALSE),IF(Table_Data_Table_1[[#This Row],[Valuation Method]]=\"Allocation\",'Global Settings'!$H$20,\"\")))","v":""},{"$f":"IFERROR(ROUND(Table_Data_Table_1[[#This Row],[Resid\nSq Ft]]/43560,3),\"\")","v":""},{"$f":"IF(Table_Data_Table_1[[#This Row],[Item ID]]=\"\",\"\",IFERROR(VLOOKUP(Table_Data_Table_1[[#This Row],[Item ID]],DataTable,10,FALSE)-VLOOKUP(Table_Data_Table_1[[#This Row],[Item ID]],DataTable,12,FALSE),\"\"))","v":""},{"$f":"IFERROR(Table_Data_Table_1[[#This Row],[Land\nResidual]]/Table_Data_Table_1[[#This Row],[Resid\nAcre]],\"\")","v":""},{"$f":"IFERROR(ROUND(Table_Data_Table_1[[#This Row],[Land\nResidual]]/Table_Data_Table_1[[#This Row],[Resid\nSq Ft]],2),\"\")","v":""},{"$f":"IF(Table_Data_Table_1[[#This Row],[Item ID]]=\"\",\"\",ROUND(DAYS360(Table_Data_Table_1[[#This Row],[Sale Date]],'Global Settings'!$H$5)/30,0))","v":""},{"$f":"IFERROR(IF(AND(Table_Data_Table_1[[#This Row],[Months To\nMid-Point]]<12.01,Table_Data_Table_1[[#This Row],[Months To\nMid-Point]]>-13),0,(Table_Data_Table_1[[#This Row],[Months To\nMid-Point]]*'Global Settings'!$H$6)),\"\")","v":""},{"$f":"IFERROR(Table_Data_Table_1[[#This Row],[Land\nResidual]]*(Table_Data_Table_1[[#This Row],[Time\nAdjust]]+1),\"\")","v":""},{"$f":"IFERROR(Table_Data_Table_1[[#This Row],[Adjusted\nSale Price]]/Table_Data_Table_1[[#This Row],[Resid\nAcre]],\"\")","v":""},{"$f":"IFERROR(ROUND(Table_Data_Table_1[[#This Row],[Adjusted\nSale Price]]/Table_Data_Table_1[[#This Row],[Resid\nSq Ft]],2),\"\")","v":""},{"$f":"IFERROR(IF(VLOOKUP(Table_Data_Table_1[[#This Row],[Item ID]],DataTable,11,FALSE)=0,\"N/A\",Table_Data_Table_1[[#This Row],[Adjusted\nSale Price]]/VLOOKUP(Table_Data_Table_1[[#This Row],[Item ID]],DataTable,11,FALSE)),\"\")","v":""},{"$f":"IF(IFERROR(VLOOKUP(Table_Data_Table_1[[#This Row],[Item ID]],DataTable,17,FALSE),\"\")=0,\"\",IFERROR(VLOOKUP(Table_Data_Table_1[[#This Row],[Item ID]],DataTable,17,FALSE),\"\"))","v":""}]
["",null,{"$f":"IF(Table_Data_Table_1[[#This Row],[Item ID]]=\"\",\"\",IFERROR(VLOOKUP(Table_Data_Table_1[[#This Row],[Item ID]],DataTable,16,FALSE),\"\"))","v":""},null,null,null,null,{"$f":"IF(Table_Data_Table_1[[#This Row],[Valuation Method]]=\"Vacant\",VLOOKUP(Table_Data_Table_1[[#This Row],[Item ID]],DataTable,6,FALSE)-VLOOKUP(Table_Data_Table_1[[#This Row],[Item ID]],DataTable,13,FALSE),IF(Table_Data_Table_1[[#This Row],[Valuation Method]]=\"Abstraction\",VLOOKUP(Table_Data_Table_1[[#This Row],[Item ID]],DataTable,6,FALSE)-VLOOKUP(Table_Data_Table_1[[#This Row],[Item ID]],DataTable,13,FALSE),IF(Table_Data_Table_1[[#This Row],[Valuation Method]]=\"Allocation\",VLOOKUP(Table_Data_Table_1[[#This Row],[Item ID]],DataTable,6,FALSE)*I95,\"\")))","v":""},{"$f":"IF(Table_Data_Table_1[[#This Row],[Valuation Method]]=\"Vacant\",\"N/A\",IF(Table_Data_Table_1[[#This Row],[Valuation Method]]=\"Abstraction\",Table_Data_Table_1[[#This Row],[Land\nResidual]]/VLOOKUP(Table_Data_Table_1[[#This Row],[Item ID]],DataTable,6,FALSE),IF(Table_Data_Table_1[[#This Row],[Valuation Method]]=\"Allocation\",'Global Settings'!$H$20,\"\")))","v":""},{"$f":"IFERROR(ROUND(Table_Data_Table_1[[#This Row],[Resid\nSq Ft]]/43560,3),\"\")","v":""},{"$f":"IF(Table_Data_Table_1[[#This Row],[Item ID]]=\"\",\"\",IFERROR(VLOOKUP(Table_Data_Table_1[[#This Row],[Item ID]],DataTable,10,FALSE)-VLOOKUP(Table_Data_Table_1[[#This Row],[Item ID]],DataTable,12,FALSE),\"\"))","v":""},{"$f":"IFERROR(Table_Data_Table_1[[#This Row],[Land\nResidual]]/Table_Data_Table_1[[#This Row],[Resid\nAcre]],\"\")","v":""},{"$f":"IFERROR(ROUND(Table_Data_Table_1[[#This Row],[Land\nResidual]]/Table_Data_Table_1[[#This Row],[Resid\nSq Ft]],2),\"\")","v":""},{"$f":"IF(Table_Data_Table_1[[#This Row],[Item ID]]=\"\",\"\",ROUND(DAYS360(Table_Data_Table_1[[#This Row],[Sale Date]],'Global Settings'!$H$5)/30,0))","v":""},{"$f":"IFERROR(IF(AND(Table_Data_Table_1[[#This Row],[Months To\nMid-Point]]<12.01,Table_Data_Table_1[[#This Row],[Months To\nMid-Point]]>-13),0,(Table_Data_Table_1[[#This Row],[Months To\nMid-Point]]*'Global Settings'!$H$6)),\"\")","v":""},{"$f":"IFERROR(Table_Data_Table_1[[#This Row],[Land\nResidual]]*(Table_Data_Table_1[[#This Row],[Time\nAdjust]]+1),\"\")","v":""},{"$f":"IFERROR(Table_Data_Table_1[[#This Row],[Adjusted\nSale Price]]/Table_Data_Table_1[[#This Row],[Resid\nAcre]],\"\")","v":""},{"$f":"IFERROR(ROUND(Table_Data_Table_1[[#This Row],[Adjusted\nSale Price]]/Table_Data_Table_1[[#This Row],[Resid\nSq Ft]],2),\"\")","v":""},{"$f":"IFERROR(IF(VLOOKUP(Table_Data_Table_1[[#This Row],[Item ID]],DataTable,11,FALSE)=0,\"N/A\",Table_Data_Table_1[[#This Row],[Adjusted\nSale Price]]/VLOOKUP(Table_Data_Table_1[[#This Row],[Item ID]],DataTable,11,FALSE)),\"\")","v":""},{"$f":"IF(IFERROR(VLOOKUP(Table_Data_Table_1[[#This Row],[Item ID]],DataTable,17,FALSE),\"\")=0,\"\",IFERROR(VLOOKUP(Table_Data_Table_1[[#This Row],[Item ID]],DataTable,17,FALSE),\"\"))","v":""}]
["",null,{"$f":"IF(Table_Data_Table_1[[#This Row],[Item ID]]=\"\",\"\",IFERROR(VLOOKUP(Table_Data_Table_1[[#This Row],[Item ID]],DataTable,16,FALSE),\"\"))","v":""},null,null,null,null,{"$f":"IF(Table_Data_Table_1[[#This Row],[Valuation Method]]=\"Vacant\",VLOOKUP(Table_Data_Table_1[[#This Row],[Item ID]],DataTable,6,FALSE)-VLOOKUP(Table_Data_Table_1[[#This Row],[Item ID]],DataTable,13,FALSE),IF(Table_Data_Table_1[[#This Row],[Valuation Method]]=\"Abstraction\",VLOOKUP(Table_Data_Table_1[[#This Row],[Item ID]],DataTable,6,FALSE)-VLOOKUP(Table_Data_Table_1[[#This Row],[Item ID]],DataTable,13,FALSE),IF(Table_Data_Table_1[[#This Row],[Valuation Method]]=\"Allocation\",VLOOKUP(Table_Data_Table_1[[#This Row],[Item ID]],DataTable,6,FALSE)*I96,\"\")))","v":""},{"$f":"IF(Table_Data_Table_1[[#This Row],[Valuation Method]]=\"Vacant\",\"N/A\",IF(Table_Data_Table_1[[#This Row],[Valuation Method]]=\"Abstraction\",Table_Data_Table_1[[#This Row],[Land\nResidual]]/VLOOKUP(Table_Data_Table_1[[#This Row],[Item ID]],DataTable,6,FALSE),IF(Table_Data_Table_1[[#This Row],[Valuation Method]]=\"Allocation\",'Global Settings'!$H$20,\"\")))","v":""},{"$f":"IFERROR(ROUND(Table_Data_Table_1[[#This Row],[Resid\nSq Ft]]/43560,3),\"\")","v":""},{"$f":"IF(Table_Data_Table_1[[#This Row],[Item ID]]=\"\",\"\",IFERROR(VLOOKUP(Table_Data_Table_1[[#This Row],[Item ID]],DataTable,10,FALSE)-VLOOKUP(Table_Data_Table_1[[#This Row],[Item ID]],DataTable,12,FALSE),\"\"))","v":""},{"$f":"IFERROR(Table_Data_Table_1[[#This Row],[Land\nResidual]]/Table_Data_Table_1[[#This Row],[Resid\nAcre]],\"\")","v":""},{"$f":"IFERROR(ROUND(Table_Data_Table_1[[#This Row],[Land\nResidual]]/Table_Data_Table_1[[#This Row],[Resid\nSq Ft]],2),\"\")","v":""},{"$f":"IF(Table_Data_Table_1[[#This Row],[Item ID]]=\"\",\"\",ROUND(DAYS360(Table_Data_Table_1[[#This Row],[Sale Date]],'Global Settings'!$H$5)/30,0))","v":""},{"$f":"IFERROR(IF(AND(Table_Data_Table_1[[#This Row],[Months To\nMid-Point]]<12.01,Table_Data_Table_1[[#This Row],[Months To\nMid-Point]]>-13),0,(Table_Data_Table_1[[#This Row],[Months To\nMid-Point]]*'Global Settings'!$H$6)),\"\")","v":""},{"$f":"IFERROR(Table_Data_Table_1[[#This Row],[Land\nResidual]]*(Table_Data_Table_1[[#This Row],[Time\nAdjust]]+1),\"\")","v":""},{"$f":"IFERROR(Table_Data_Table_1[[#This Row],[Adjusted\nSale Price]]/Table_Data_Table_1[[#This Row],[Resid\nAcre]],\"\")","v":""},{"$f":"IFERROR(ROUND(Table_Data_Table_1[[#This Row],[Adjusted\nSale Price]]/Table_Data_Table_1[[#This Row],[Resid\nSq Ft]],2),\"\")","v":""},{"$f":"IFERROR(IF(VLOOKUP(Table_Data_Table_1[[#This Row],[Item ID]],DataTable,11,FALSE)=0,\"N/A\",Table_Data_Table_1[[#This Row],[Adjusted\nSale Price]]/VLOOKUP(Table_Data_Table_1[[#This Row],[Item ID]],DataTable,11,FALSE)),\"\")","v":""},{"$f":"IF(IFERROR(VLOOKUP(Table_Data_Table_1[[#This Row],[Item ID]],DataTable,17,FALSE),\"\")=0,\"\",IFERROR(VLOOKUP(Table_Data_Table_1[[#This Row],[Item ID]],DataTable,17,FALSE),\"\"))","v":""}]
["",null,{"$f":"IF(Table_Data_Table_1[[#This Row],[Item ID]]=\"\",\"\",IFERROR(VLOOKUP(Table_Data_Table_1[[#This Row],[Item ID]],DataTable,16,FALSE),\"\"))","v":""},null,null,null,null,{"$f":"IF(Table_Data_Table_1[[#This Row],[Valuation Method]]=\"Vacant\",VLOOKUP(Table_Data_Table_1[[#This Row],[Item ID]],DataTable,6,FALSE)-VLOOKUP(Table_Data_Table_1[[#This Row],[Item ID]],DataTable,13,FALSE),IF(Table_Data_Table_1[[#This Row],[Valuation Method]]=\"Abstraction\",VLOOKUP(Table_Data_Table_1[[#This Row],[Item ID]],DataTable,6,FALSE)-VLOOKUP(Table_Data_Table_1[[#This Row],[Item ID]],DataTable,13,FALSE),IF(Table_Data_Table_1[[#This Row],[Valuation Method]]=\"Allocation\",VLOOKUP(Table_Data_Table_1[[#This Row],[Item ID]],DataTable,6,FALSE)*I97,\"\")))","v":""},{"$f":"IF(Table_Data_Table_1[[#This Row],[Valuation Method]]=\"Vacant\",\"N/A\",IF(Table_Data_Table_1[[#This Row],[Valuation Method]]=\"Abstraction\",Table_Data_Table_1[[#This Row],[Land\nResidual]]/VLOOKUP(Table_Data_Table_1[[#This Row],[Item ID]],DataTable,6,FALSE),IF(Table_Data_Table_1[[#This Row],[Valuation Method]]=\"Allocation\",'Global Settings'!$H$20,\"\")))","v":""},{"$f":"IFERROR(ROUND(Table_Data_Table_1[[#This Row],[Resid\nSq Ft]]/43560,3),\"\")","v":""},{"$f":"IF(Table_Data_Table_1[[#This Row],[Item ID]]=\"\",\"\",IFERROR(VLOOKUP(Table_Data_Table_1[[#This Row],[Item ID]],DataTable,10,FALSE)-VLOOKUP(Table_Data_Table_1[[#This Row],[Item ID]],DataTable,12,FALSE),\"\"))","v":""},{"$f":"IFERROR(Table_Data_Table_1[[#This Row],[Land\nResidual]]/Table_Data_Table_1[[#This Row],[Resid\nAcre]],\"\")","v":""},{"$f":"IFERROR(ROUND(Table_Data_Table_1[[#This Row],[Land\nResidual]]/Table_Data_Table_1[[#This Row],[Resid\nSq Ft]],2),\"\")","v":""},{"$f":"IF(Table_Data_Table_1[[#This Row],[Item ID]]=\"\",\"\",ROUND(DAYS360(Table_Data_Table_1[[#This Row],[Sale Date]],'Global Settings'!$H$5)/30,0))","v":""},{"$f":"IFERROR(IF(AND(Table_Data_Table_1[[#This Row],[Months To\nMid-Point]]<12.01,Table_Data_Table_1[[#This Row],[Months To\nMid-Point]]>-13),0,(Table_Data_Table_1[[#This Row],[Months To\nMid-Point]]*'Global Settings'!$H$6)),\"\")","v":""},{"$f":"IFERROR(Table_Data_Table_1[[#This Row],[Land\nResidual]]*(Table_Data_Table_1[[#This Row],[Time\nAdjust]]+1),\"\")","v":""},{"$f":"IFERROR(Table_Data_Table_1[[#This Row],[Adjusted\nSale Price]]/Table_Data_Table_1[[#This Row],[Resid\nAcre]],\"\")","v":""},{"$f":"IFERROR(ROUND(Table_Data_Table_1[[#This Row],[Adjusted\nSale Price]]/Table_Data_Table_1[[#This Row],[Resid\nSq Ft]],2),\"\")","v":""},{"$f":"IFERROR(IF(VLOOKUP(Table_Data_Table_1[[#This Row],[Item ID]],DataTable,11,FALSE)=0,\"N/A\",Table_Data_Table_1[[#This Row],[Adjusted\nSale Price]]/VLOOKUP(Table_Data_Table_1[[#This Row],[Item ID]],DataTable,11,FALSE)),\"\")","v":""},{"$f":"IF(IFERROR(VLOOKUP(Table_Data_Table_1[[#This Row],[Item ID]],DataTable,17,FALSE),\"\")=0,\"\",IFERROR(VLOOKUP(Table_Data_Table_1[[#This Row],[Item ID]],DataTable,17,FALSE),\"\"))","v":""}]
["",null,{"$f":"IF(Table_Data_Table_1[[#This Row],[Item ID]]=\"\",\"\",IFERROR(VLOOKUP(Table_Data_Table_1[[#This Row],[Item ID]],DataTable,16,FALSE),\"\"))","v":""},null,null,null,null,{"$f":"IF(Table_Data_Table_1[[#This Row],[Valuation Method]]=\"Vacant\",VLOOKUP(Table_Data_Table_1[[#This Row],[Item ID]],DataTable,6,FALSE)-VLOOKUP(Table_Data_Table_1[[#This Row],[Item ID]],DataTable,13,FALSE),IF(Table_Data_Table_1[[#This Row],[Valuation Method]]=\"Abstraction\",VLOOKUP(Table_Data_Table_1[[#This Row],[Item ID]],DataTable,6,FALSE)-VLOOKUP(Table_Data_Table_1[[#This Row],[Item ID]],DataTable,13,FALSE),IF(Table_Data_Table_1[[#This Row],[Valuation Method]]=\"Allocation\",VLOOKUP(Table_Data_Table_1[[#This Row],[Item ID]],DataTable,6,FALSE)*I98,\"\")))","v":""},{"$f":"IF(Table_Data_Table_1[[#This Row],[Valuation Method]]=\"Vacant\",\"N/A\",IF(Table_Data_Table_1[[#This Row],[Valuation Method]]=\"Abstraction\",Table_Data_Table_1[[#This Row],[Land\nResidual]]/VLOOKUP(Table_Data_Table_1[[#This Row],[Item ID]],DataTable,6,FALSE),IF(Table_Data_Table_1[[#This Row],[Valuation Method]]=\"Allocation\",'Global Settings'!$H$20,\"\")))","v":""},{"$f":"IFERROR(ROUND(Table_Data_Table_1[[#This Row],[Resid\nSq Ft]]/43560,3),\"\")","v":""},{"$f":"IF(Table_Data_Table_1[[#This Row],[Item ID]]=\"\",\"\",IFERROR(VLOOKUP(Table_Data_Table_1[[#This Row],[Item ID]],DataTable,10,FALSE)-VLOOKUP(Table_Data_Table_1[[#This Row],[Item ID]],DataTable,12,FALSE),\"\"))","v":""},{"$f":"IFERROR(Table_Data_Table_1[[#This Row],[Land\nResidual]]/Table_Data_Table_1[[#This Row],[Resid\nAcre]],\"\")","v":""},{"$f":"IFERROR(ROUND(Table_Data_Table_1[[#This Row],[Land\nResidual]]/Table_Data_Table_1[[#This Row],[Resid\nSq Ft]],2),\"\")","v":""},{"$f":"IF(Table_Data_Table_1[[#This Row],[Item ID]]=\"\",\"\",ROUND(DAYS360(Table_Data_Table_1[[#This Row],[Sale Date]],'Global Settings'!$H$5)/30,0))","v":""},{"$f":"IFERROR(IF(AND(Table_Data_Table_1[[#This Row],[Months To\nMid-Point]]<12.01,Table_Data_Table_1[[#This Row],[Months To\nMid-Point]]>-13),0,(Table_Data_Table_1[[#This Row],[Months To\nMid-Point]]*'Global Settings'!$H$6)),\"\")","v":""},{"$f":"IFERROR(Table_Data_Table_1[[#This Row],[Land\nResidual]]*(Table_Data_Table_1[[#This Row],[Time\nAdjust]]+1),\"\")","v":""},{"$f":"IFERROR(Table_Data_Table_1[[#This Row],[Adjusted\nSale Price]]/Table_Data_Table_1[[#This Row],[Resid\nAcre]],\"\")","v":""},{"$f":"IFERROR(ROUND(Table_Data_Table_1[[#This Row],[Adjusted\nSale Price]]/Table_Data_Table_1[[#This Row],[Resid\nSq Ft]],2),\"\")","v":""},{"$f":"IFERROR(IF(VLOOKUP(Table_Data_Table_1[[#This Row],[Item ID]],DataTable,11,FALSE)=0,\"N/A\",Table_Data_Table_1[[#This Row],[Adjusted\nSale Price]]/VLOOKUP(Table_Data_Table_1[[#This Row],[Item ID]],DataTable,11,FALSE)),\"\")","v":""},{"$f":"IF(IFERROR(VLOOKUP(Table_Data_Table_1[[#This Row],[Item ID]],DataTable,17,FALSE),\"\")=0,\"\",IFERROR(VLOOKUP(Table_Data_Table_1[[#This Row],[Item ID]],DataTable,17,FALSE),\"\"))","v":""}]
["",null,{"$f":"IF(Table_Data_Table_1[[#This Row],[Item ID]]=\"\",\"\",IFERROR(VLOOKUP(Table_Data_Table_1[[#This Row],[Item ID]],DataTable,16,FALSE),\"\"))","v":""},null,null,null,null,{"$f":"IF(Table_Data_Table_1[[#This Row],[Valuation Method]]=\"Vacant\",VLOOKUP(Table_Data_Table_1[[#This Row],[Item ID]],DataTable,6,FALSE)-VLOOKUP(Table_Data_Table_1[[#This Row],[Item ID]],DataTable,13,FALSE),IF(Table_Data_Table_1[[#This Row],[Valuation Method]]=\"Abstraction\",VLOOKUP(Table_Data_Table_1[[#This Row],[Item ID]],DataTable,6,FALSE)-VLOOKUP(Table_Data_Table_1[[#This Row],[Item ID]],DataTable,13,FALSE),IF(Table_Data_Table_1[[#This Row],[Valuation Method]]=\"Allocation\",VLOOKUP(Table_Data_Table_1[[#This Row],[Item ID]],DataTable,6,FALSE)*I99,\"\")))","v":""},{"$f":"IF(Table_Data_Table_1[[#This Row],[Valuation Method]]=\"Vacant\",\"N/A\",IF(Table_Data_Table_1[[#This Row],[Valuation Method]]=\"Abstraction\",Table_Data_Table_1[[#This Row],[Land\nResidual]]/VLOOKUP(Table_Data_Table_1[[#This Row],[Item ID]],DataTable,6,FALSE),IF(Table_Data_Table_1[[#This Row],[Valuation Method]]=\"Allocation\",'Global Settings'!$H$20,\"\")))","v":""},{"$f":"IFERROR(ROUND(Table_Data_Table_1[[#This Row],[Resid\nSq Ft]]/43560,3),\"\")","v":""},{"$f":"IF(Table_Data_Table_1[[#This Row],[Item ID]]=\"\",\"\",IFERROR(VLOOKUP(Table_Data_Table_1[[#This Row],[Item ID]],DataTable,10,FALSE)-VLOOKUP(Table_Data_Table_1[[#This Row],[Item ID]],DataTable,12,FALSE),\"\"))","v":""},{"$f":"IFERROR(Table_Data_Table_1[[#This Row],[Land\nResidual]]/Table_Data_Table_1[[#This Row],[Resid\nAcre]],\"\")","v":""},{"$f":"IFERROR(ROUND(Table_Data_Table_1[[#This Row],[Land\nResidual]]/Table_Data_Table_1[[#This Row],[Resid\nSq Ft]],2),\"\")","v":""},{"$f":"IF(Table_Data_Table_1[[#This Row],[Item ID]]=\"\",\"\",ROUND(DAYS360(Table_Data_Table_1[[#This Row],[Sale Date]],'Global Settings'!$H$5)/30,0))","v":""},{"$f":"IFERROR(IF(AND(Table_Data_Table_1[[#This Row],[Months To\nMid-Point]]<12.01,Table_Data_Table_1[[#This Row],[Months To\nMid-Point]]>-13),0,(Table_Data_Table_1[[#This Row],[Months To\nMid-Point]]*'Global Settings'!$H$6)),\"\")","v":""},{"$f":"IFERROR(Table_Data_Table_1[[#This Row],[Land\nResidual]]*(Table_Data_Table_1[[#This Row],[Time\nAdjust]]+1),\"\")","v":""},{"$f":"IFERROR(Table_Data_Table_1[[#This Row],[Adjusted\nSale Price]]/Table_Data_Table_1[[#This Row],[Resid\nAcre]],\"\")","v":""},{"$f":"IFERROR(ROUND(Table_Data_Table_1[[#This Row],[Adjusted\nSale Price]]/Table_Data_Table_1[[#This Row],[Resid\nSq Ft]],2),\"\")","v":""},{"$f":"IFERROR(IF(VLOOKUP(Table_Data_Table_1[[#This Row],[Item ID]],DataTable,11,FALSE)=0,\"N/A\",Table_Data_Table_1[[#This Row],[Adjusted\nSale Price]]/VLOOKUP(Table_Data_Table_1[[#This Row],[Item ID]],DataTable,11,FALSE)),\"\")","v":""},{"$f":"IF(IFERROR(VLOOKUP(Table_Data_Table_1[[#This Row],[Item ID]],DataTable,17,FALSE),\"\")=0,\"\",IFERROR(VLOOKUP(Table_Data_Table_1[[#This Row],[Item ID]],DataTable,17,FALSE),\"\"))","v":""}]
["",null,{"$f":"IF(Table_Data_Table_1[[#This Row],[Item ID]]=\"\",\"\",IFERROR(VLOOKUP(Table_Data_Table_1[[#This Row],[Item ID]],DataTable,16,FALSE),\"\"))","v":""},null,null,null,null,{"$f":"IF(Table_Data_Table_1[[#This Row],[Valuation Method]]=\"Vacant\",VLOOKUP(Table_Data_Table_1[[#This Row],[Item ID]],DataTable,6,FALSE)-VLOOKUP(Table_Data_Table_1[[#This Row],[Item ID]],DataTable,13,FALSE),IF(Table_Data_Table_1[[#This Row],[Valuation Method]]=\"Abstraction\",VLOOKUP(Table_Data_Table_1[[#This Row],[Item ID]],DataTable,6,FALSE)-VLOOKUP(Table_Data_Table_1[[#This Row],[Item ID]],DataTable,13,FALSE),IF(Table_Data_Table_1[[#This Row],[Valuation Method]]=\"Allocation\",VLOOKUP(Table_Data_Table_1[[#This Row],[Item ID]],DataTable,6,FALSE)*I100,\"\")))","v":""},{"$f":"IF(Table_Data_Table_1[[#This Row],[Valuation Method]]=\"Vacant\",\"N/A\",IF(Table_Data_Table_1[[#This Row],[Valuation Method]]=\"Abstraction\",Table_Data_Table_1[[#This Row],[Land\nResidual]]/VLOOKUP(Table_Data_Table_1[[#This Row],[Item ID]],DataTable,6,FALSE),IF(Table_Data_Table_1[[#This Row],[Valuation Method]]=\"Allocation\",'Global Settings'!$H$20,\"\")))","v":""},{"$f":"IFERROR(ROUND(Table_Data_Table_1[[#This Row],[Resid\nSq Ft]]/43560,3),\"\")","v":""},{"$f":"IF(Table_Data_Table_1[[#This Row],[Item ID]]=\"\",\"\",IFERROR(VLOOKUP(Table_Data_Table_1[[#This Row],[Item ID]],DataTable,10,FALSE)-VLOOKUP(Table_Data_Table_1[[#This Row],[Item ID]],DataTable,12,FALSE),\"\"))","v":""},{"$f":"IFERROR(Table_Data_Table_1[[#This Row],[Land\nResidual]]/Table_Data_Table_1[[#This Row],[Resid\nAcre]],\"\")","v":""},{"$f":"IFERROR(ROUND(Table_Data_Table_1[[#This Row],[Land\nResidual]]/Table_Data_Table_1[[#This Row],[Resid\nSq Ft]],2),\"\")","v":""},{"$f":"IF(Table_Data_Table_1[[#This Row],[Item ID]]=\"\",\"\",ROUND(DAYS360(Table_Data_Table_1[[#This Row],[Sale Date]],'Global Settings'!$H$5)/30,0))","v":""},{"$f":"IFERROR(IF(AND(Table_Data_Table_1[[#This Row],[Months To\nMid-Point]]<12.01,Table_Data_Table_1[[#This Row],[Months To\nMid-Point]]>-13),0,(Table_Data_Table_1[[#This Row],[Months To\nMid-Point]]*'Global Settings'!$H$6)),\"\")","v":""},{"$f":"IFERROR(Table_Data_Table_1[[#This Row],[Land\nResidual]]*(Table_Data_Table_1[[#This Row],[Time\nAdjust]]+1),\"\")","v":""},{"$f":"IFERROR(Table_Data_Table_1[[#This Row],[Adjusted\nSale Price]]/Table_Data_Table_1[[#This Row],[Resid\nAcre]],\"\")","v":""},{"$f":"IFERROR(ROUND(Table_Data_Table_1[[#This Row],[Adjusted\nSale Price]]/Table_Data_Table_1[[#This Row],[Resid\nSq Ft]],2),\"\")","v":""},{"$f":"IFERROR(IF(VLOOKUP(Table_Data_Table_1[[#This Row],[Item ID]],DataTable,11,FALSE)=0,\"N/A\",Table_Data_Table_1[[#This Row],[Adjusted\nSale Price]]/VLOOKUP(Table_Data_Table_1[[#This Row],[Item ID]],DataTable,11,FALSE)),\"\")","v":""},{"$f":"IF(IFERROR(VLOOKUP(Table_Data_Table_1[[#This Row],[Item ID]],DataTable,17,FALSE),\"\")=0,\"\",IFERROR(VLOOKUP(Table_Data_Table_1[[#This Row],[Item ID]],DataTable,17,FALSE),\"\"))","v":""}]
["",null,{"$f":"IF(Table_Data_Table_1[[#This Row],[Item ID]]=\"\",\"\",IFERROR(VLOOKUP(Table_Data_Table_1[[#This Row],[Item ID]],DataTable,16,FALSE),\"\"))","v":""},null,null,null,null,{"$f":"IF(Table_Data_Table_1[[#This Row],[Valuation Method]]=\"Vacant\",VLOOKUP(Table_Data_Table_1[[#This Row],[Item ID]],DataTable,6,FALSE)-VLOOKUP(Table_Data_Table_1[[#This Row],[Item ID]],DataTable,13,FALSE),IF(Table_Data_Table_1[[#This Row],[Valuation Method]]=\"Abstraction\",VLOOKUP(Table_Data_Table_1[[#This Row],[Item ID]],DataTable,6,FALSE)-VLOOKUP(Table_Data_Table_1[[#This Row],[Item ID]],DataTable,13,FALSE),IF(Table_Data_Table_1[[#This Row],[Valuation Method]]=\"Allocation\",VLOOKUP(Table_Data_Table_1[[#This Row],[Item ID]],DataTable,6,FALSE)*I101,\"\")))","v":""},{"$f":"IF(Table_Data_Table_1[[#This Row],[Valuation Method]]=\"Vacant\",\"N/A\",IF(Table_Data_Table_1[[#This Row],[Valuation Method]]=\"Abstraction\",Table_Data_Table_1[[#This Row],[Land\nResidual]]/VLOOKUP(Table_Data_Table_1[[#This Row],[Item ID]],DataTable,6,FALSE),IF(Table_Data_Table_1[[#This Row],[Valuation Method]]=\"Allocation\",'Global Settings'!$H$20,\"\")))","v":""},{"$f":"IFERROR(ROUND(Table_Data_Table_1[[#This Row],[Resid\nSq Ft]]/43560,3),\"\")","v":""},{"$f":"IF(Table_Data_Table_1[[#This Row],[Item ID]]=\"\",\"\",IFERROR(VLOOKUP(Table_Data_Table_1[[#This Row],[Item ID]],DataTable,10,FALSE)-VLOOKUP(Table_Data_Table_1[[#This Row],[Item ID]],DataTable,12,FALSE),\"\"))","v":""},{"$f":"IFERROR(Table_Data_Table_1[[#This Row],[Land\nResidual]]/Table_Data_Table_1[[#This Row],[Resid\nAcre]],\"\")","v":""},{"$f":"IFERROR(ROUND(Table_Data_Table_1[[#This Row],[Land\nResidual]]/Table_Data_Table_1[[#This Row],[Resid\nSq Ft]],2),\"\")","v":""},{"$f":"IF(Table_Data_Table_1[[#This Row],[Item ID]]=\"\",\"\",ROUND(DAYS360(Table_Data_Table_1[[#This Row],[Sale Date]],'Global Settings'!$H$5)/30,0))","v":""},{"$f":"IFERROR(IF(AND(Table_Data_Table_1[[#This Row],[Months To\nMid-Point]]<12.01,Table_Data_Table_1[[#This Row],[Months To\nMid-Point]]>-13),0,(Table_Data_Table_1[[#This Row],[Months To\nMid-Point]]*'Global Settings'!$H$6)),\"\")","v":""},{"$f":"IFERROR(Table_Data_Table_1[[#This Row],[Land\nResidual]]*(Table_Data_Table_1[[#This Row],[Time\nAdjust]]+1),\"\")","v":""},{"$f":"IFERROR(Table_Data_Table_1[[#This Row],[Adjusted\nSale Price]]/Table_Data_Table_1[[#This Row],[Resid\nAcre]],\"\")","v":""},{"$f":"IFERROR(ROUND(Table_Data_Table_1[[#This Row],[Adjusted\nSale Price]]/Table_Data_Table_1[[#This Row],[Resid\nSq Ft]],2),\"\")","v":""},{"$f":"IFERROR(IF(VLOOKUP(Table_Data_Table_1[[#This Row],[Item ID]],DataTable,11,FALSE)=0,\"N/A\",Table_Data_Table_1[[#This Row],[Adjusted\nSale Price]]/VLOOKUP(Table_Data_Table_1[[#This Row],[Item ID]],DataTable,11,FALSE)),\"\")","v":""},{"$f":"IF(IFERROR(VLOOKUP(Table_Data_Table_1[[#This Row],[Item ID]],DataTable,17,FALSE),\"\")=0,\"\",IFERROR(VLOOKUP(Table_Data_Table_1[[#This Row],[Item ID]],DataTable,17,FALSE),\"\"))","v":""}]
["",null,{"$f":"IF(Table_Data_Table_1[[#This Row],[Item ID]]=\"\",\"\",IFERROR(VLOOKUP(Table_Data_Table_1[[#This Row],[Item ID]],DataTable,16,FALSE),\"\"))","v":""},null,null,null,null,{"$f":"IF(Table_Data_Table_1[[#This Row],[Valuation Method]]=\"Vacant\",VLOOKUP(Table_Data_Table_1[[#This Row],[Item ID]],DataTable,6,FALSE)-VLOOKUP(Table_Data_Table_1[[#This Row],[Item ID]],DataTable,13,FALSE),IF(Table_Data_Table_1[[#This Row],[Valuation Method]]=\"Abstraction\",VLOOKUP(Table_Data_Table_1[[#This Row],[Item ID]],DataTable,6,FALSE)-VLOOKUP(Table_Data_Table_1[[#This Row],[Item ID]],DataTable,13,FALSE),IF(Table_Data_Table_1[[#This Row],[Valuation Method]]=\"Allocation\",VLOOKUP(Table_Data_Table_1[[#This Row],[Item ID]],DataTable,6,FALSE)*I102,\"\")))","v":""},{"$f":"IF(Table_Data_Table_1[[#This Row],[Valuation Method]]=\"Vacant\",\"N/A\",IF(Table_Data_Table_1[[#This Row],[Valuation Method]]=\"Abstraction\",Table_Data_Table_1[[#This Row],[Land\nResidual]]/VLOOKUP(Table_Data_Table_1[[#This Row],[Item ID]],DataTable,6,FALSE),IF(Table_Data_Table_1[[#This Row],[Valuation Method]]=\"Allocation\",'Global Settings'!$H$20,\"\")))","v":""},{"$f":"IFERROR(ROUND(Table_Data_Table_1[[#This Row],[Resid\nSq Ft]]/43560,3),\"\")","v":""},{"$f":"IF(Table_Data_Table_1[[#This Row],[Item ID]]=\"\",\"\",IFERROR(VLOOKUP(Table_Data_Table_1[[#This Row],[Item ID]],DataTable,10,FALSE)-VLOOKUP(Table_Data_Table_1[[#This Row],[Item ID]],DataTable,12,FALSE),\"\"))","v":""},{"$f":"IFERROR(Table_Data_Table_1[[#This Row],[Land\nResidual]]/Table_Data_Table_1[[#This Row],[Resid\nAcre]],\"\")","v":""},{"$f":"IFERROR(ROUND(Table_Data_Table_1[[#This Row],[Land\nResidual]]/Table_Data_Table_1[[#This Row],[Resid\nSq Ft]],2),\"\")","v":""},{"$f":"IF(Table_Data_Table_1[[#This Row],[Item ID]]=\"\",\"\",ROUND(DAYS360(Table_Data_Table_1[[#This Row],[Sale Date]],'Global Settings'!$H$5)/30,0))","v":""},{"$f":"IFERROR(IF(AND(Table_Data_Table_1[[#This Row],[Months To\nMid-Point]]<12.01,Table_Data_Table_1[[#This Row],[Months To\nMid-Point]]>-13),0,(Table_Data_Table_1[[#This Row],[Months To\nMid-Point]]*'Global Settings'!$H$6)),\"\")","v":""},{"$f":"IFERROR(Table_Data_Table_1[[#This Row],[Land\nResidual]]*(Table_Data_Table_1[[#This Row],[Time\nAdjust]]+1),\"\")","v":""},{"$f":"IFERROR(Table_Data_Table_1[[#This Row],[Adjusted\nSale Price]]/Table_Data_Table_1[[#This Row],[Resid\nAcre]],\"\")","v":""},{"$f":"IFERROR(ROUND(Table_Data_Table_1[[#This Row],[Adjusted\nSale Price]]/Table_Data_Table_1[[#This Row],[Resid\nSq Ft]],2),\"\")","v":""},{"$f":"IFERROR(IF(VLOOKUP(Table_Data_Table_1[[#This Row],[Item ID]],DataTable,11,FALSE)=0,\"N/A\",Table_Data_Table_1[[#This Row],[Adjusted\nSale Price]]/VLOOKUP(Table_Data_Table_1[[#This Row],[Item ID]],DataTable,11,FALSE)),\"\")","v":""},{"$f":"IF(IFERROR(VLOOKUP(Table_Data_Table_1[[#This Row],[Item ID]],DataTable,17,FALSE),\"\")=0,\"\",IFERROR(VLOOKUP(Table_Data_Table_1[[#This Row],[Item ID]],DataTable,17,FALSE),\"\"))","v":""}]
["",null,{"$f":"IF(Table_Data_Table_1[[#This Row],[Item ID]]=\"\",\"\",IFERROR(VLOOKUP(Table_Data_Table_1[[#This Row],[Item ID]],DataTable,16,FALSE),\"\"))","v":""},null,null,null,null,{"$f":"IF(Table_Data_Table_1[[#This Row],[Valuation Method]]=\"Vacant\",VLOOKUP(Table_Data_Table_1[[#This Row],[Item ID]],DataTable,6,FALSE)-VLOOKUP(Table_Data_Table_1[[#This Row],[Item ID]],DataTable,13,FALSE),IF(Table_Data_Table_1[[#This Row],[Valuation Method]]=\"Abstraction\",VLOOKUP(Table_Data_Table_1[[#This Row],[Item ID]],DataTable,6,FALSE)-VLOOKUP(Table_Data_Table_1[[#This Row],[Item ID]],DataTable,13,FALSE),IF(Table_Data_Table_1[[#This Row],[Valuation Method]]=\"Allocation\",VLOOKUP(Table_Data_Table_1[[#This Row],[Item ID]],DataTable,6,FALSE)*I103,\"\")))","v":""},{"$f":"IF(Table_Data_Table_1[[#This Row],[Valuation Method]]=\"Vacant\",\"N/A\",IF(Table_Data_Table_1[[#This Row],[Valuation Method]]=\"Abstraction\",Table_Data_Table_1[[#This Row],[Land\nResidual]]/VLOOKUP(Table_Data_Table_1[[#This Row],[Item ID]],DataTable,6,FALSE),IF(Table_Data_Table_1[[#This Row],[Valuation Method]]=\"Allocation\",'Global Settings'!$H$20,\"\")))","v":""},{"$f":"IFERROR(ROUND(Table_Data_Table_1[[#This Row],[Resid\nSq Ft]]/43560,3),\"\")","v":""},{"$f":"IF(Table_Data_Table_1[[#This Row],[Item ID]]=\"\",\"\",IFERROR(VLOOKUP(Table_Data_Table_1[[#This Row],[Item ID]],DataTable,10,FALSE)-VLOOKUP(Table_Data_Table_1[[#This Row],[Item ID]],DataTable,12,FALSE),\"\"))","v":""},{"$f":"IFERROR(Table_Data_Table_1[[#This Row],[Land\nResidual]]/Table_Data_Table_1[[#This Row],[Resid\nAcre]],\"\")","v":""},{"$f":"IFERROR(ROUND(Table_Data_Table_1[[#This Row],[Land\nResidual]]/Table_Data_Table_1[[#This Row],[Resid\nSq Ft]],2),\"\")","v":""},{"$f":"IF(Table_Data_Table_1[[#This Row],[Item ID]]=\"\",\"\",ROUND(DAYS360(Table_Data_Table_1[[#This Row],[Sale Date]],'Global Settings'!$H$5)/30,0))","v":""},{"$f":"IFERROR(IF(AND(Table_Data_Table_1[[#This Row],[Months To\nMid-Point]]<12.01,Table_Data_Table_1[[#This Row],[Months To\nMid-Point]]>-13),0,(Table_Data_Table_1[[#This Row],[Months To\nMid-Point]]*'Global Settings'!$H$6)),\"\")","v":""},{"$f":"IFERROR(Table_Data_Table_1[[#This Row],[Land\nResidual]]*(Table_Data_Table_1[[#This Row],[Time\nAdjust]]+1),\"\")","v":""},{"$f":"IFERROR(Table_Data_Table_1[[#This Row],[Adjusted\nSale Price]]/Table_Data_Table_1[[#This Row],[Resid\nAcre]],\"\")","v":""},{"$f":"IFERROR(ROUND(Table_Data_Table_1[[#This Row],[Adjusted\nSale Price]]/Table_Data_Table_1[[#This Row],[Resid\nSq Ft]],2),\"\")","v":""},{"$f":"IFERROR(IF(VLOOKUP(Table_Data_Table_1[[#This Row],[Item ID]],DataTable,11,FALSE)=0,\"N/A\",Table_Data_Table_1[[#This Row],[Adjusted\nSale Price]]/VLOOKUP(Table_Data_Table_1[[#This Row],[Item ID]],DataTable,11,FALSE)),\"\")","v":""},{"$f":"IF(IFERROR(VLOOKUP(Table_Data_Table_1[[#This Row],[Item ID]],DataTable,17,FALSE),\"\")=0,\"\",IFERROR(VLOOKUP(Table_Data_Table_1[[#This Row],[Item ID]],DataTable,17,FALSE),\"\"))","v":""}]
["",null,{"$f":"IF(Table_Data_Table_1[[#This Row],[Item ID]]=\"\",\"\",IFERROR(VLOOKUP(Table_Data_Table_1[[#This Row],[Item ID]],DataTable,16,FALSE),\"\"))","v":""},null,null,null,null,{"$f":"IF(Table_Data_Table_1[[#This Row],[Valuation Method]]=\"Vacant\",VLOOKUP(Table_Data_Table_1[[#This Row],[Item ID]],DataTable,6,FALSE)-VLOOKUP(Table_Data_Table_1[[#This Row],[Item ID]],DataTable,13,FALSE),IF(Table_Data_Table_1[[#This Row],[Valuation Method]]=\"Abstraction\",VLOOKUP(Table_Data_Table_1[[#This Row],[Item ID]],DataTable,6,FALSE)-VLOOKUP(Table_Data_Table_1[[#This Row],[Item ID]],DataTable,13,FALSE),IF(Table_Data_Table_1[[#This Row],[Valuation Method]]=\"Allocation\",VLOOKUP(Table_Data_Table_1[[#This Row],[Item ID]],DataTable,6,FALSE)*I104,\"\")))","v":""},{"$f":"IF(Table_Data_Table_1[[#This Row],[Valuation Method]]=\"Vacant\",\"N/A\",IF(Table_Data_Table_1[[#This Row],[Valuation Method]]=\"Abstraction\",Table_Data_Table_1[[#This Row],[Land\nResidual]]/VLOOKUP(Table_Data_Table_1[[#This Row],[Item ID]],DataTable,6,FALSE),IF(Table_Data_Table_1[[#This Row],[Valuation Method]]=\"Allocation\",'Global Settings'!$H$20,\"\")))","v":""},{"$f":"IFERROR(ROUND(Table_Data_Table_1[[#This Row],[Resid\nSq Ft]]/43560,3),\"\")","v":""},{"$f":"IF(Table_Data_Table_1[[#This Row],[Item ID]]=\"\",\"\",IFERROR(VLOOKUP(Table_Data_Table_1[[#This Row],[Item ID]],DataTable,10,FALSE)-VLOOKUP(Table_Data_Table_1[[#This Row],[Item ID]],DataTable,12,FALSE),\"\"))","v":""},{"$f":"IFERROR(Table_Data_Table_1[[#This Row],[Land\nResidual]]/Table_Data_Table_1[[#This Row],[Resid\nAcre]],\"\")","v":""},{"$f":"IFERROR(ROUND(Table_Data_Table_1[[#This Row],[Land\nResidual]]/Table_Data_Table_1[[#This Row],[Resid\nSq Ft]],2),\"\")","v":""},{"$f":"IF(Table_Data_Table_1[[#This Row],[Item ID]]=\"\",\"\",ROUND(DAYS360(Table_Data_Table_1[[#This Row],[Sale Date]],'Global Settings'!$H$5)/30,0))","v":""},{"$f":"IFERROR(IF(AND(Table_Data_Table_1[[#This Row],[Months To\nMid-Point]]<12.01,Table_Data_Table_1[[#This Row],[Months To\nMid-Point]]>-13),0,(Table_Data_Table_1[[#This Row],[Months To\nMid-Point]]*'Global Settings'!$H$6)),\"\")","v":""},{"$f":"IFERROR(Table_Data_Table_1[[#This Row],[Land\nResidual]]*(Table_Data_Table_1[[#This Row],[Time\nAdjust]]+1),\"\")","v":""},{"$f":"IFERROR(Table_Data_Table_1[[#This Row],[Adjusted\nSale Price]]/Table_Data_Table_1[[#This Row],[Resid\nAcre]],\"\")","v":""},{"$f":"IFERROR(ROUND(Table_Data_Table_1[[#This Row],[Adjusted\nSale Price]]/Table_Data_Table_1[[#This Row],[Resid\nSq Ft]],2),\"\")","v":""},{"$f":"IFERROR(IF(VLOOKUP(Table_Data_Table_1[[#This Row],[Item ID]],DataTable,11,FALSE)=0,\"N/A\",Table_Data_Table_1[[#This Row],[Adjusted\nSale Price]]/VLOOKUP(Table_Data_Table_1[[#This Row],[Item ID]],DataTable,11,FALSE)),\"\")","v":""},{"$f":"IF(IFERROR(VLOOKUP(Table_Data_Table_1[[#This Row],[Item ID]],DataTable,17,FALSE),\"\")=0,\"\",IFERROR(VLOOKUP(Table_Data_Table_1[[#This Row],[Item ID]],DataTable,17,FALSE),\"\"))","v":""}]
["",null,{"$f":"IF(Table_Data_Table_1[[#This Row],[Item ID]]=\"\",\"\",IFERROR(VLOOKUP(Table_Data_Table_1[[#This Row],[Item ID]],DataTable,16,FALSE),\"\"))","v":""},null,null,null,null,{"$f":"IF(Table_Data_Table_1[[#This Row],[Valuation Method]]=\"Vacant\",VLOOKUP(Table_Data_Table_1[[#This Row],[Item ID]],DataTable,6,FALSE)-VLOOKUP(Table_Data_Table_1[[#This Row],[Item ID]],DataTable,13,FALSE),IF(Table_Data_Table_1[[#This Row],[Valuation Method]]=\"Abstraction\",VLOOKUP(Table_Data_Table_1[[#This Row],[Item ID]],DataTable,6,FALSE)-VLOOKUP(Table_Data_Table_1[[#This Row],[Item ID]],DataTable,13,FALSE),IF(Table_Data_Table_1[[#This Row],[Valuation Method]]=\"Allocation\",VLOOKUP(Table_Data_Table_1[[#This Row],[Item ID]],DataTable,6,FALSE)*I105,\"\")))","v":""},{"$f":"IF(Table_Data_Table_1[[#This Row],[Valuation Method]]=\"Vacant\",\"N/A\",IF(Table_Data_Table_1[[#This Row],[Valuation Method]]=\"Abstraction\",Table_Data_Table_1[[#This Row],[Land\nResidual]]/VLOOKUP(Table_Data_Table_1[[#This Row],[Item ID]],DataTable,6,FALSE),IF(Table_Data_Table_1[[#This Row],[Valuation Method]]=\"Allocation\",'Global Settings'!$H$20,\"\")))","v":""},{"$f":"IFERROR(ROUND(Table_Data_Table_1[[#This Row],[Resid\nSq Ft]]/43560,3),\"\")","v":""},{"$f":"IF(Table_Data_Table_1[[#This Row],[Item ID]]=\"\",\"\",IFERROR(VLOOKUP(Table_Data_Table_1[[#This Row],[Item ID]],DataTable,10,FALSE)-VLOOKUP(Table_Data_Table_1[[#This Row],[Item ID]],DataTable,12,FALSE),\"\"))","v":""},{"$f":"IFERROR(Table_Data_Table_1[[#This Row],[Land\nResidual]]/Table_Data_Table_1[[#This Row],[Resid\nAcre]],\"\")","v":""},{"$f":"IFERROR(ROUND(Table_Data_Table_1[[#This Row],[Land\nResidual]]/Table_Data_Table_1[[#This Row],[Resid\nSq Ft]],2),\"\")","v":""},{"$f":"IF(Table_Data_Table_1[[#This Row],[Item ID]]=\"\",\"\",ROUND(DAYS360(Table_Data_Table_1[[#This Row],[Sale Date]],'Global Settings'!$H$5)/30,0))","v":""},{"$f":"IFERROR(IF(AND(Table_Data_Table_1[[#This Row],[Months To\nMid-Point]]<12.01,Table_Data_Table_1[[#This Row],[Months To\nMid-Point]]>-13),0,(Table_Data_Table_1[[#This Row],[Months To\nMid-Point]]*'Global Settings'!$H$6)),\"\")","v":""},{"$f":"IFERROR(Table_Data_Table_1[[#This Row],[Land\nResidual]]*(Table_Data_Table_1[[#This Row],[Time\nAdjust]]+1),\"\")","v":""},{"$f":"IFERROR(Table_Data_Table_1[[#This Row],[Adjusted\nSale Price]]/Table_Data_Table_1[[#This Row],[Resid\nAcre]],\"\")","v":""},{"$f":"IFERROR(ROUND(Table_Data_Table_1[[#This Row],[Adjusted\nSale Price]]/Table_Data_Table_1[[#This Row],[Resid\nSq Ft]],2),\"\")","v":""},{"$f":"IFERROR(IF(VLOOKUP(Table_Data_Table_1[[#This Row],[Item ID]],DataTable,11,FALSE)=0,\"N/A\",Table_Data_Table_1[[#This Row],[Adjusted\nSale Price]]/VLOOKUP(Table_Data_Table_1[[#This Row],[Item ID]],DataTable,11,FALSE)),\"\")","v":""},{"$f":"IF(IFERROR(VLOOKUP(Table_Data_Table_1[[#This Row],[Item ID]],DataTable,17,FALSE),\"\")=0,\"\",IFERROR(VLOOKUP(Table_Data_Table_1[[#This Row],[Item ID]],DataTable,17,FALSE),\"\"))","v":""}]
["",null,{"$f":"IF(Table_Data_Table_1[[#This Row],[Item ID]]=\"\",\"\",IFERROR(VLOOKUP(Table_Data_Table_1[[#This Row],[Item ID]],DataTable,16,FALSE),\"\"))","v":""},null,null,null,null,{"$f":"IF(Table_Data_Table_1[[#This Row],[Valuation Method]]=\"Vacant\",VLOOKUP(Table_Data_Table_1[[#This Row],[Item ID]],DataTable,6,FALSE)-VLOOKUP(Table_Data_Table_1[[#This Row],[Item ID]],DataTable,13,FALSE),IF(Table_Data_Table_1[[#This Row],[Valuation Method]]=\"Abstraction\",VLOOKUP(Table_Data_Table_1[[#This Row],[Item ID]],DataTable,6,FALSE)-VLOOKUP(Table_Data_Table_1[[#This Row],[Item ID]],DataTable,13,FALSE),IF(Table_Data_Table_1[[#This Row],[Valuation Method]]=\"Allocation\",VLOOKUP(Table_Data_Table_1[[#This Row],[Item ID]],DataTable,6,FALSE)*I106,\"\")))","v":""},{"$f":"IF(Table_Data_Table_1[[#This Row],[Valuation Method]]=\"Vacant\",\"N/A\",IF(Table_Data_Table_1[[#This Row],[Valuation Method]]=\"Abstraction\",Table_Data_Table_1[[#This Row],[Land\nResidual]]/VLOOKUP(Table_Data_Table_1[[#This Row],[Item ID]],DataTable,6,FALSE),IF(Table_Data_Table_1[[#This Row],[Valuation Method]]=\"Allocation\",'Global Settings'!$H$20,\"\")))","v":""},{"$f":"IFERROR(ROUND(Table_Data_Table_1[[#This Row],[Resid\nSq Ft]]/43560,3),\"\")","v":""},{"$f":"IF(Table_Data_Table_1[[#This Row],[Item ID]]=\"\",\"\",IFERROR(VLOOKUP(Table_Data_Table_1[[#This Row],[Item ID]],DataTable,10,FALSE)-VLOOKUP(Table_Data_Table_1[[#This Row],[Item ID]],DataTable,12,FALSE),\"\"))","v":""},{"$f":"IFERROR(Table_Data_Table_1[[#This Row],[Land\nResidual]]/Table_Data_Table_1[[#This Row],[Resid\nAcre]],\"\")","v":""},{"$f":"IFERROR(ROUND(Table_Data_Table_1[[#This Row],[Land\nResidual]]/Table_Data_Table_1[[#This Row],[Resid\nSq Ft]],2),\"\")","v":""},{"$f":"IF(Table_Data_Table_1[[#This Row],[Item ID]]=\"\",\"\",ROUND(DAYS360(Table_Data_Table_1[[#This Row],[Sale Date]],'Global Settings'!$H$5)/30,0))","v":""},{"$f":"IFERROR(IF(AND(Table_Data_Table_1[[#This Row],[Months To\nMid-Point]]<12.01,Table_Data_Table_1[[#This Row],[Months To\nMid-Point]]>-13),0,(Table_Data_Table_1[[#This Row],[Months To\nMid-Point]]*'Global Settings'!$H$6)),\"\")","v":""},{"$f":"IFERROR(Table_Data_Table_1[[#This Row],[Land\nResidual]]*(Table_Data_Table_1[[#This Row],[Time\nAdjust]]+1),\"\")","v":""},{"$f":"IFERROR(Table_Data_Table_1[[#This Row],[Adjusted\nSale Price]]/Table_Data_Table_1[[#This Row],[Resid\nAcre]],\"\")","v":""},{"$f":"IFERROR(ROUND(Table_Data_Table_1[[#This Row],[Adjusted\nSale Price]]/Table_Data_Table_1[[#This Row],[Resid\nSq Ft]],2),\"\")","v":""},{"$f":"IFERROR(IF(VLOOKUP(Table_Data_Table_1[[#This Row],[Item ID]],DataTable,11,FALSE)=0,\"N/A\",Table_Data_Table_1[[#This Row],[Adjusted\nSale Price]]/VLOOKUP(Table_Data_Table_1[[#This Row],[Item ID]],DataTable,11,FALSE)),\"\")","v":""},{"$f":"IF(IFERROR(VLOOKUP(Table_Data_Table_1[[#This Row],[Item ID]],DataTable,17,FALSE),\"\")=0,\"\",IFERROR(VLOOKUP(Table_Data_Table_1[[#This Row],[Item ID]],DataTable,17,FALSE),\"\"))","v":""}]
["",null,{"$f":"IF(Table_Data_Table_1[[#This Row],[Item ID]]=\"\",\"\",IFERROR(VLOOKUP(Table_Data_Table_1[[#This Row],[Item ID]],DataTable,16,FALSE),\"\"))","v":""},null,null,null,null,{"$f":"IF(Table_Data_Table_1[[#This Row],[Valuation Method]]=\"Vacant\",VLOOKUP(Table_Data_Table_1[[#This Row],[Item ID]],DataTable,6,FALSE)-VLOOKUP(Table_Data_Table_1[[#This Row],[Item ID]],DataTable,13,FALSE),IF(Table_Data_Table_1[[#This Row],[Valuation Method]]=\"Abstraction\",VLOOKUP(Table_Data_Table_1[[#This Row],[Item ID]],DataTable,6,FALSE)-VLOOKUP(Table_Data_Table_1[[#This Row],[Item ID]],DataTable,13,FALSE),IF(Table_Data_Table_1[[#This Row],[Valuation Method]]=\"Allocation\",VLOOKUP(Table_Data_Table_1[[#This Row],[Item ID]],DataTable,6,FALSE)*I107,\"\")))","v":""},{"$f":"IF(Table_Data_Table_1[[#This Row],[Valuation Method]]=\"Vacant\",\"N/A\",IF(Table_Data_Table_1[[#This Row],[Valuation Method]]=\"Abstraction\",Table_Data_Table_1[[#This Row],[Land\nResidual]]/VLOOKUP(Table_Data_Table_1[[#This Row],[Item ID]],DataTable,6,FALSE),IF(Table_Data_Table_1[[#This Row],[Valuation Method]]=\"Allocation\",'Global Settings'!$H$20,\"\")))","v":""},{"$f":"IFERROR(ROUND(Table_Data_Table_1[[#This Row],[Resid\nSq Ft]]/43560,3),\"\")","v":""},{"$f":"IF(Table_Data_Table_1[[#This Row],[Item ID]]=\"\",\"\",IFERROR(VLOOKUP(Table_Data_Table_1[[#This Row],[Item ID]],DataTable,10,FALSE)-VLOOKUP(Table_Data_Table_1[[#This Row],[Item ID]],DataTable,12,FALSE),\"\"))","v":""},{"$f":"IFERROR(Table_Data_Table_1[[#This Row],[Land\nResidual]]/Table_Data_Table_1[[#This Row],[Resid\nAcre]],\"\")","v":""},{"$f":"IFERROR(ROUND(Table_Data_Table_1[[#This Row],[Land\nResidual]]/Table_Data_Table_1[[#This Row],[Resid\nSq Ft]],2),\"\")","v":""},{"$f":"IF(Table_Data_Table_1[[#This Row],[Item ID]]=\"\",\"\",ROUND(DAYS360(Table_Data_Table_1[[#This Row],[Sale Date]],'Global Settings'!$H$5)/30,0))","v":""},{"$f":"IFERROR(IF(AND(Table_Data_Table_1[[#This Row],[Months To\nMid-Point]]<12.01,Table_Data_Table_1[[#This Row],[Months To\nMid-Point]]>-13),0,(Table_Data_Table_1[[#This Row],[Months To\nMid-Point]]*'Global Settings'!$H$6)),\"\")","v":""},{"$f":"IFERROR(Table_Data_Table_1[[#This Row],[Land\nResidual]]*(Table_Data_Table_1[[#This Row],[Time\nAdjust]]+1),\"\")","v":""},{"$f":"IFERROR(Table_Data_Table_1[[#This Row],[Adjusted\nSale Price]]/Table_Data_Table_1[[#This Row],[Resid\nAcre]],\"\")","v":""},{"$f":"IFERROR(ROUND(Table_Data_Table_1[[#This Row],[Adjusted\nSale Price]]/Table_Data_Table_1[[#This Row],[Resid\nSq Ft]],2),\"\")","v":""},{"$f":"IFERROR(IF(VLOOKUP(Table_Data_Table_1[[#This Row],[Item ID]],DataTable,11,FALSE)=0,\"N/A\",Table_Data_Table_1[[#This Row],[Adjusted\nSale Price]]/VLOOKUP(Table_Data_Table_1[[#This Row],[Item ID]],DataTable,11,FALSE)),\"\")","v":""},{"$f":"IF(IFERROR(VLOOKUP(Table_Data_Table_1[[#This Row],[Item ID]],DataTable,17,FALSE),\"\")=0,\"\",IFERROR(VLOOKUP(Table_Data_Table_1[[#This Row],[Item ID]],DataTable,17,FALSE),\"\"))","v":""}]
["",null,{"$f":"IF(Table_Data_Table_1[[#This Row],[Item ID]]=\"\",\"\",IFERROR(VLOOKUP(Table_Data_Table_1[[#This Row],[Item ID]],DataTable,16,FALSE),\"\"))","v":""},null,null,null,null,{"$f":"IF(Table_Data_Table_1[[#This Row],[Valuation Method]]=\"Vacant\",VLOOKUP(Table_Data_Table_1[[#This Row],[Item ID]],DataTable,6,FALSE)-VLOOKUP(Table_Data_Table_1[[#This Row],[Item ID]],DataTable,13,FALSE),IF(Table_Data_Table_1[[#This Row],[Valuation Method]]=\"Abstraction\",VLOOKUP(Table_Data_Table_1[[#This Row],[Item ID]],DataTable,6,FALSE)-VLOOKUP(Table_Data_Table_1[[#This Row],[Item ID]],DataTable,13,FALSE),IF(Table_Data_Table_1[[#This Row],[Valuation Method]]=\"Allocation\",VLOOKUP(Table_Data_Table_1[[#This Row],[Item ID]],DataTable,6,FALSE)*I108,\"\")))","v":""},{"$f":"IF(Table_Data_Table_1[[#This Row],[Valuation Method]]=\"Vacant\",\"N/A\",IF(Table_Data_Table_1[[#This Row],[Valuation Method]]=\"Abstraction\",Table_Data_Table_1[[#This Row],[Land\nResidual]]/VLOOKUP(Table_Data_Table_1[[#This Row],[Item ID]],DataTable,6,FALSE),IF(Table_Data_Table_1[[#This Row],[Valuation Method]]=\"Allocation\",'Global Settings'!$H$20,\"\")))","v":""},{"$f":"IFERROR(ROUND(Table_Data_Table_1[[#This Row],[Resid\nSq Ft]]/43560,3),\"\")","v":""},{"$f":"IF(Table_Data_Table_1[[#This Row],[Item ID]]=\"\",\"\",IFERROR(VLOOKUP(Table_Data_Table_1[[#This Row],[Item ID]],DataTable,10,FALSE)-VLOOKUP(Table_Data_Table_1[[#This Row],[Item ID]],DataTable,12,FALSE),\"\"))","v":""},{"$f":"IFERROR(Table_Data_Table_1[[#This Row],[Land\nResidual]]/Table_Data_Table_1[[#This Row],[Resid\nAcre]],\"\")","v":""},{"$f":"IFERROR(ROUND(Table_Data_Table_1[[#This Row],[Land\nResidual]]/Table_Data_Table_1[[#This Row],[Resid\nSq Ft]],2),\"\")","v":""},{"$f":"IF(Table_Data_Table_1[[#This Row],[Item ID]]=\"\",\"\",ROUND(DAYS360(Table_Data_Table_1[[#This Row],[Sale Date]],'Global Settings'!$H$5)/30,0))","v":""},{"$f":"IFERROR(IF(AND(Table_Data_Table_1[[#This Row],[Months To\nMid-Point]]<12.01,Table_Data_Table_1[[#This Row],[Months To\nMid-Point]]>-13),0,(Table_Data_Table_1[[#This Row],[Months To\nMid-Point]]*'Global Settings'!$H$6)),\"\")","v":""},{"$f":"IFERROR(Table_Data_Table_1[[#This Row],[Land\nResidual]]*(Table_Data_Table_1[[#This Row],[Time\nAdjust]]+1),\"\")","v":""},{"$f":"IFERROR(Table_Data_Table_1[[#This Row],[Adjusted\nSale Price]]/Table_Data_Table_1[[#This Row],[Resid\nAcre]],\"\")","v":""},{"$f":"IFERROR(ROUND(Table_Data_Table_1[[#This Row],[Adjusted\nSale Price]]/Table_Data_Table_1[[#This Row],[Resid\nSq Ft]],2),\"\")","v":""},{"$f":"IFERROR(IF(VLOOKUP(Table_Data_Table_1[[#This Row],[Item ID]],DataTable,11,FALSE)=0,\"N/A\",Table_Data_Table_1[[#This Row],[Adjusted\nSale Price]]/VLOOKUP(Table_Data_Table_1[[#This Row],[Item ID]],DataTable,11,FALSE)),\"\")","v":""},{"$f":"IF(IFERROR(VLOOKUP(Table_Data_Table_1[[#This Row],[Item ID]],DataTable,17,FALSE),\"\")=0,\"\",IFERROR(VLOOKUP(Table_Data_Table_1[[#This Row],[Item ID]],DataTable,17,FALSE),\"\"))","v":""}]
["",null,{"$f":"IF(Table_Data_Table_1[[#This Row],[Item ID]]=\"\",\"\",IFERROR(VLOOKUP(Table_Data_Table_1[[#This Row],[Item ID]],DataTable,16,FALSE),\"\"))","v":""},null,null,null,null,{"$f":"IF(Table_Data_Table_1[[#This Row],[Valuation Method]]=\"Vacant\",VLOOKUP(Table_Data_Table_1[[#This Row],[Item ID]],DataTable,6,FALSE)-VLOOKUP(Table_Data_Table_1[[#This Row],[Item ID]],DataTable,13,FALSE),IF(Table_Data_Table_1[[#This Row],[Valuation Method]]=\"Abstraction\",VLOOKUP(Table_Data_Table_1[[#This Row],[Item ID]],DataTable,6,FALSE)-VLOOKUP(Table_Data_Table_1[[#This Row],[Item ID]],DataTable,13,FALSE),IF(Table_Data_Table_1[[#This Row],[Valuation Method]]=\"Allocation\",VLOOKUP(Table_Data_Table_1[[#This Row],[Item ID]],DataTable,6,FALSE)*I109,\"\")))","v":""},{"$f":"IF(Table_Data_Table_1[[#This Row],[Valuation Method]]=\"Vacant\",\"N/A\",IF(Table_Data_Table_1[[#This Row],[Valuation Method]]=\"Abstraction\",Table_Data_Table_1[[#This Row],[Land\nResidual]]/VLOOKUP(Table_Data_Table_1[[#This Row],[Item ID]],DataTable,6,FALSE),IF(Table_Data_Table_1[[#This Row],[Valuation Method]]=\"Allocation\",'Global Settings'!$H$20,\"\")))","v":""},{"$f":"IFERROR(ROUND(Table_Data_Table_1[[#This Row],[Resid\nSq Ft]]/43560,3),\"\")","v":""},{"$f":"IF(Table_Data_Table_1[[#This Row],[Item ID]]=\"\",\"\",IFERROR(VLOOKUP(Table_Data_Table_1[[#This Row],[Item ID]],DataTable,10,FALSE)-VLOOKUP(Table_Data_Table_1[[#This Row],[Item ID]],DataTable,12,FALSE),\"\"))","v":""},{"$f":"IFERROR(Table_Data_Table_1[[#This Row],[Land\nResidual]]/Table_Data_Table_1[[#This Row],[Resid\nAcre]],\"\")","v":""},{"$f":"IFERROR(ROUND(Table_Data_Table_1[[#This Row],[Land\nResidual]]/Table_Data_Table_1[[#This Row],[Resid\nSq Ft]],2),\"\")","v":""},{"$f":"IF(Table_Data_Table_1[[#This Row],[Item ID]]=\"\",\"\",ROUND(DAYS360(Table_Data_Table_1[[#This Row],[Sale Date]],'Global Settings'!$H$5)/30,0))","v":""},{"$f":"IFERROR(IF(AND(Table_Data_Table_1[[#This Row],[Months To\nMid-Point]]<12.01,Table_Data_Table_1[[#This Row],[Months To\nMid-Point]]>-13),0,(Table_Data_Table_1[[#This Row],[Months To\nMid-Point]]*'Global Settings'!$H$6)),\"\")","v":""},{"$f":"IFERROR(Table_Data_Table_1[[#This Row],[Land\nResidual]]*(Table_Data_Table_1[[#This Row],[Time\nAdjust]]+1),\"\")","v":""},{"$f":"IFERROR(Table_Data_Table_1[[#This Row],[Adjusted\nSale Price]]/Table_Data_Table_1[[#This Row],[Resid\nAcre]],\"\")","v":""},{"$f":"IFERROR(ROUND(Table_Data_Table_1[[#This Row],[Adjusted\nSale Price]]/Table_Data_Table_1[[#This Row],[Resid\nSq Ft]],2),\"\")","v":""},{"$f":"IFERROR(IF(VLOOKUP(Table_Data_Table_1[[#This Row],[Item ID]],DataTable,11,FALSE)=0,\"N/A\",Table_Data_Table_1[[#This Row],[Adjusted\nSale Price]]/VLOOKUP(Table_Data_Table_1[[#This Row],[Item ID]],DataTable,11,FALSE)),\"\")","v":""},{"$f":"IF(IFERROR(VLOOKUP(Table_Data_Table_1[[#This Row],[Item ID]],DataTable,17,FALSE),\"\")=0,\"\",IFERROR(VLOOKUP(Table_Data_Table_1[[#This Row],[Item ID]],DataTable,17,FALSE),\"\"))","v":""}]
["",null,{"$f":"IF(Table_Data_Table_1[[#This Row],[Item ID]]=\"\",\"\",IFERROR(VLOOKUP(Table_Data_Table_1[[#This Row],[Item ID]],DataTable,16,FALSE),\"\"))","v":""},null,null,null,null,{"$f":"IF(Table_Data_Table_1[[#This Row],[Valuation Method]]=\"Vacant\",VLOOKUP(Table_Data_Table_1[[#This Row],[Item ID]],DataTable,6,FALSE)-VLOOKUP(Table_Data_Table_1[[#This Row],[Item ID]],DataTable,13,FALSE),IF(Table_Data_Table_1[[#This Row],[Valuation Method]]=\"Abstraction\",VLOOKUP(Table_Data_Table_1[[#This Row],[Item ID]],DataTable,6,FALSE)-VLOOKUP(Table_Data_Table_1[[#This Row],[Item ID]],DataTable,13,FALSE),IF(Table_Data_Table_1[[#This Row],[Valuation Method]]=\"Allocation\",VLOOKUP(Table_Data_Table_1[[#This Row],[Item ID]],DataTable,6,FALSE)*I110,\"\")))","v":""},{"$f":"IF(Table_Data_Table_1[[#This Row],[Valuation Method]]=\"Vacant\",\"N/A\",IF(Table_Data_Table_1[[#This Row],[Valuation Method]]=\"Abstraction\",Table_Data_Table_1[[#This Row],[Land\nResidual]]/VLOOKUP(Table_Data_Table_1[[#This Row],[Item ID]],DataTable,6,FALSE),IF(Table_Data_Table_1[[#This Row],[Valuation Method]]=\"Allocation\",'Global Settings'!$H$20,\"\")))","v":""},{"$f":"IFERROR(ROUND(Table_Data_Table_1[[#This Row],[Resid\nSq Ft]]/43560,3),\"\")","v":""},{"$f":"IF(Table_Data_Table_1[[#This Row],[Item ID]]=\"\",\"\",IFERROR(VLOOKUP(Table_Data_Table_1[[#This Row],[Item ID]],DataTable,10,FALSE)-VLOOKUP(Table_Data_Table_1[[#This Row],[Item ID]],DataTable,12,FALSE),\"\"))","v":""},{"$f":"IFERROR(Table_Data_Table_1[[#This Row],[Land\nResidual]]/Table_Data_Table_1[[#This Row],[Resid\nAcre]],\"\")","v":""},{"$f":"IFERROR(ROUND(Table_Data_Table_1[[#This Row],[Land\nResidual]]/Table_Data_Table_1[[#This Row],[Resid\nSq Ft]],2),\"\")","v":""},{"$f":"IF(Table_Data_Table_1[[#This Row],[Item ID]]=\"\",\"\",ROUND(DAYS360(Table_Data_Table_1[[#This Row],[Sale Date]],'Global Settings'!$H$5)/30,0))","v":""},{"$f":"IFERROR(IF(AND(Table_Data_Table_1[[#This Row],[Months To\nMid-Point]]<12.01,Table_Data_Table_1[[#This Row],[Months To\nMid-Point]]>-13),0,(Table_Data_Table_1[[#This Row],[Months To\nMid-Point]]*'Global Settings'!$H$6)),\"\")","v":""},{"$f":"IFERROR(Table_Data_Table_1[[#This Row],[Land\nResidual]]*(Table_Data_Table_1[[#This Row],[Time\nAdjust]]+1),\"\")","v":""},{"$f":"IFERROR(Table_Data_Table_1[[#This Row],[Adjusted\nSale Price]]/Table_Data_Table_1[[#This Row],[Resid\nAcre]],\"\")","v":""},{"$f":"IFERROR(ROUND(Table_Data_Table_1[[#This Row],[Adjusted\nSale Price]]/Table_Data_Table_1[[#This Row],[Resid\nSq Ft]],2),\"\")","v":""},{"$f":"IFERROR(IF(VLOOKUP(Table_Data_Table_1[[#This Row],[Item ID]],DataTable,11,FALSE)=0,\"N/A\",Table_Data_Table_1[[#This Row],[Adjusted\nSale Price]]/VLOOKUP(Table_Data_Table_1[[#This Row],[Item ID]],DataTable,11,FALSE)),\"\")","v":""},{"$f":"IF(IFERROR(VLOOKUP(Table_Data_Table_1[[#This Row],[Item ID]],DataTable,17,FALSE),\"\")=0,\"\",IFERROR(VLOOKUP(Table_Data_Table_1[[#This Row],[Item ID]],DataTable,17,FALSE),\"\"))","v":""}]
["",null,{"$f":"IF(Table_Data_Table_1[[#This Row],[Item ID]]=\"\",\"\",IFERROR(VLOOKUP(Table_Data_Table_1[[#This Row],[Item ID]],DataTable,16,FALSE),\"\"))","v":""},null,null,null,null,{"$f":"IF(Table_Data_Table_1[[#This Row],[Valuation Method]]=\"Vacant\",VLOOKUP(Table_Data_Table_1[[#This Row],[Item ID]],DataTable,6,FALSE)-VLOOKUP(Table_Data_Table_1[[#This Row],[Item ID]],DataTable,13,FALSE),IF(Table_Data_Table_1[[#This Row],[Valuation Method]]=\"Abstraction\",VLOOKUP(Table_Data_Table_1[[#This Row],[Item ID]],DataTable,6,FALSE)-VLOOKUP(Table_Data_Table_1[[#This Row],[Item ID]],DataTable,13,FALSE),IF(Table_Data_Table_1[[#This Row],[Valuation Method]]=\"Allocation\",VLOOKUP(Table_Data_Table_1[[#This Row],[Item ID]],DataTable,6,FALSE)*I111,\"\")))","v":""},{"$f":"IF(Table_Data_Table_1[[#This Row],[Valuation Method]]=\"Vacant\",\"N/A\",IF(Table_Data_Table_1[[#This Row],[Valuation Method]]=\"Abstraction\",Table_Data_Table_1[[#This Row],[Land\nResidual]]/VLOOKUP(Table_Data_Table_1[[#This Row],[Item ID]],DataTable,6,FALSE),IF(Table_Data_Table_1[[#This Row],[Valuation Method]]=\"Allocation\",'Global Settings'!$H$20,\"\")))","v":""},{"$f":"IFERROR(ROUND(Table_Data_Table_1[[#This Row],[Resid\nSq Ft]]/43560,3),\"\")","v":""},{"$f":"IF(Table_Data_Table_1[[#This Row],[Item ID]]=\"\",\"\",IFERROR(VLOOKUP(Table_Data_Table_1[[#This Row],[Item ID]],DataTable,10,FALSE)-VLOOKUP(Table_Data_Table_1[[#This Row],[Item ID]],DataTable,12,FALSE),\"\"))","v":""},{"$f":"IFERROR(Table_Data_Table_1[[#This Row],[Land\nResidual]]/Table_Data_Table_1[[#This Row],[Resid\nAcre]],\"\")","v":""},{"$f":"IFERROR(ROUND(Table_Data_Table_1[[#This Row],[Land\nResidual]]/Table_Data_Table_1[[#This Row],[Resid\nSq Ft]],2),\"\")","v":""},{"$f":"IF(Table_Data_Table_1[[#This Row],[Item ID]]=\"\",\"\",ROUND(DAYS360(Table_Data_Table_1[[#This Row],[Sale Date]],'Global Settings'!$H$5)/30,0))","v":""},{"$f":"IFERROR(IF(AND(Table_Data_Table_1[[#This Row],[Months To\nMid-Point]]<12.01,Table_Data_Table_1[[#This Row],[Months To\nMid-Point]]>-13),0,(Table_Data_Table_1[[#This Row],[Months To\nMid-Point]]*'Global Settings'!$H$6)),\"\")","v":""},{"$f":"IFERROR(Table_Data_Table_1[[#This Row],[Land\nResidual]]*(Table_Data_Table_1[[#This Row],[Time\nAdjust]]+1),\"\")","v":""},{"$f":"IFERROR(Table_Data_Table_1[[#This Row],[Adjusted\nSale Price]]/Table_Data_Table_1[[#This Row],[Resid\nAcre]],\"\")","v":""},{"$f":"IFERROR(ROUND(Table_Data_Table_1[[#This Row],[Adjusted\nSale Price]]/Table_Data_Table_1[[#This Row],[Resid\nSq Ft]],2),\"\")","v":""},{"$f":"IFERROR(IF(VLOOKUP(Table_Data_Table_1[[#This Row],[Item ID]],DataTable,11,FALSE)=0,\"N/A\",Table_Data_Table_1[[#This Row],[Adjusted\nSale Price]]/VLOOKUP(Table_Data_Table_1[[#This Row],[Item ID]],DataTable,11,FALSE)),\"\")","v":""},{"$f":"IF(IFERROR(VLOOKUP(Table_Data_Table_1[[#This Row],[Item ID]],DataTable,17,FALSE),\"\")=0,\"\",IFERROR(VLOOKUP(Table_Data_Table_1[[#This Row],[Item ID]],DataTable,17,FALSE),\"\"))","v":""}]
["",null,{"$f":"IF(Table_Data_Table_1[[#This Row],[Item ID]]=\"\",\"\",IFERROR(VLOOKUP(Table_Data_Table_1[[#This Row],[Item ID]],DataTable,16,FALSE),\"\"))","v":""},null,null,null,null,{"$f":"IF(Table_Data_Table_1[[#This Row],[Valuation Method]]=\"Vacant\",VLOOKUP(Table_Data_Table_1[[#This Row],[Item ID]],DataTable,6,FALSE)-VLOOKUP(Table_Data_Table_1[[#This Row],[Item ID]],DataTable,13,FALSE),IF(Table_Data_Table_1[[#This Row],[Valuation Method]]=\"Abstraction\",VLOOKUP(Table_Data_Table_1[[#This Row],[Item ID]],DataTable,6,FALSE)-VLOOKUP(Table_Data_Table_1[[#This Row],[Item ID]],DataTable,13,FALSE),IF(Table_Data_Table_1[[#This Row],[Valuation Method]]=\"Allocation\",VLOOKUP(Table_Data_Table_1[[#This Row],[Item ID]],DataTable,6,FALSE)*I112,\"\")))","v":""},{"$f":"IF(Table_Data_Table_1[[#This Row],[Valuation Method]]=\"Vacant\",\"N/A\",IF(Table_Data_Table_1[[#This Row],[Valuation Method]]=\"Abstraction\",Table_Data_Table_1[[#This Row],[Land\nResidual]]/VLOOKUP(Table_Data_Table_1[[#This Row],[Item ID]],DataTable,6,FALSE),IF(Table_Data_Table_1[[#This Row],[Valuation Method]]=\"Allocation\",'Global Settings'!$H$20,\"\")))","v":""},{"$f":"IFERROR(ROUND(Table_Data_Table_1[[#This Row],[Resid\nSq Ft]]/43560,3),\"\")","v":""},{"$f":"IF(Table_Data_Table_1[[#This Row],[Item ID]]=\"\",\"\",IFERROR(VLOOKUP(Table_Data_Table_1[[#This Row],[Item ID]],DataTable,10,FALSE)-VLOOKUP(Table_Data_Table_1[[#This Row],[Item ID]],DataTable,12,FALSE),\"\"))","v":""},{"$f":"IFERROR(Table_Data_Table_1[[#This Row],[Land\nResidual]]/Table_Data_Table_1[[#This Row],[Resid\nAcre]],\"\")","v":""},{"$f":"IFERROR(ROUND(Table_Data_Table_1[[#This Row],[Land\nResidual]]/Table_Data_Table_1[[#This Row],[Resid\nSq Ft]],2),\"\")","v":""},{"$f":"IF(Table_Data_Table_1[[#This Row],[Item ID]]=\"\",\"\",ROUND(DAYS360(Table_Data_Table_1[[#This Row],[Sale Date]],'Global Settings'!$H$5)/30,0))","v":""},{"$f":"IFERROR(IF(AND(Table_Data_Table_1[[#This Row],[Months To\nMid-Point]]<12.01,Table_Data_Table_1[[#This Row],[Months To\nMid-Point]]>-13),0,(Table_Data_Table_1[[#This Row],[Months To\nMid-Point]]*'Global Settings'!$H$6)),\"\")","v":""},{"$f":"IFERROR(Table_Data_Table_1[[#This Row],[Land\nResidual]]*(Table_Data_Table_1[[#This Row],[Time\nAdjust]]+1),\"\")","v":""},{"$f":"IFERROR(Table_Data_Table_1[[#This Row],[Adjusted\nSale Price]]/Table_Data_Table_1[[#This Row],[Resid\nAcre]],\"\")","v":""},{"$f":"IFERROR(ROUND(Table_Data_Table_1[[#This Row],[Adjusted\nSale Price]]/Table_Data_Table_1[[#This Row],[Resid\nSq Ft]],2),\"\")","v":""},{"$f":"IFERROR(IF(VLOOKUP(Table_Data_Table_1[[#This Row],[Item ID]],DataTable,11,FALSE)=0,\"N/A\",Table_Data_Table_1[[#This Row],[Adjusted\nSale Price]]/VLOOKUP(Table_Data_Table_1[[#This Row],[Item ID]],DataTable,11,FALSE)),\"\")","v":""},{"$f":"IF(IFERROR(VLOOKUP(Table_Data_Table_1[[#This Row],[Item ID]],DataTable,17,FALSE),\"\")=0,\"\",IFERROR(VLOOKUP(Table_Data_Table_1[[#This Row],[Item ID]],DataTable,17,FALSE),\"\"))","v":""}]
["",null,{"$f":"IF(Table_Data_Table_1[[#This Row],[Item ID]]=\"\",\"\",IFERROR(VLOOKUP(Table_Data_Table_1[[#This Row],[Item ID]],DataTable,16,FALSE),\"\"))","v":""},null,null,null,null,{"$f":"IF(Table_Data_Table_1[[#This Row],[Valuation Method]]=\"Vacant\",VLOOKUP(Table_Data_Table_1[[#This Row],[Item ID]],DataTable,6,FALSE)-VLOOKUP(Table_Data_Table_1[[#This Row],[Item ID]],DataTable,13,FALSE),IF(Table_Data_Table_1[[#This Row],[Valuation Method]]=\"Abstraction\",VLOOKUP(Table_Data_Table_1[[#This Row],[Item ID]],DataTable,6,FALSE)-VLOOKUP(Table_Data_Table_1[[#This Row],[Item ID]],DataTable,13,FALSE),IF(Table_Data_Table_1[[#This Row],[Valuation Method]]=\"Allocation\",VLOOKUP(Table_Data_Table_1[[#This Row],[Item ID]],DataTable,6,FALSE)*I113,\"\")))","v":""},{"$f":"IF(Table_Data_Table_1[[#This Row],[Valuation Method]]=\"Vacant\",\"N/A\",IF(Table_Data_Table_1[[#This Row],[Valuation Method]]=\"Abstraction\",Table_Data_Table_1[[#This Row],[Land\nResidual]]/VLOOKUP(Table_Data_Table_1[[#This Row],[Item ID]],DataTable,6,FALSE),IF(Table_Data_Table_1[[#This Row],[Valuation Method]]=\"Allocation\",'Global Settings'!$H$20,\"\")))","v":""},{"$f":"IFERROR(ROUND(Table_Data_Table_1[[#This Row],[Resid\nSq Ft]]/43560,3),\"\")","v":""},{"$f":"IF(Table_Data_Table_1[[#This Row],[Item ID]]=\"\",\"\",IFERROR(VLOOKUP(Table_Data_Table_1[[#This Row],[Item ID]],DataTable,10,FALSE)-VLOOKUP(Table_Data_Table_1[[#This Row],[Item ID]],DataTable,12,FALSE),\"\"))","v":""},{"$f":"IFERROR(Table_Data_Table_1[[#This Row],[Land\nResidual]]/Table_Data_Table_1[[#This Row],[Resid\nAcre]],\"\")","v":""},{"$f":"IFERROR(ROUND(Table_Data_Table_1[[#This Row],[Land\nResidual]]/Table_Data_Table_1[[#This Row],[Resid\nSq Ft]],2),\"\")","v":""},{"$f":"IF(Table_Data_Table_1[[#This Row],[Item ID]]=\"\",\"\",ROUND(DAYS360(Table_Data_Table_1[[#This Row],[Sale Date]],'Global Settings'!$H$5)/30,0))","v":""},{"$f":"IFERROR(IF(AND(Table_Data_Table_1[[#This Row],[Months To\nMid-Point]]<12.01,Table_Data_Table_1[[#This Row],[Months To\nMid-Point]]>-13),0,(Table_Data_Table_1[[#This Row],[Months To\nMid-Point]]*'Global Settings'!$H$6)),\"\")","v":""},{"$f":"IFERROR(Table_Data_Table_1[[#This Row],[Land\nResidual]]*(Table_Data_Table_1[[#This Row],[Time\nAdjust]]+1),\"\")","v":""},{"$f":"IFERROR(Table_Data_Table_1[[#This Row],[Adjusted\nSale Price]]/Table_Data_Table_1[[#This Row],[Resid\nAcre]],\"\")","v":""},{"$f":"IFERROR(ROUND(Table_Data_Table_1[[#This Row],[Adjusted\nSale Price]]/Table_Data_Table_1[[#This Row],[Resid\nSq Ft]],2),\"\")","v":""},{"$f":"IFERROR(IF(VLOOKUP(Table_Data_Table_1[[#This Row],[Item ID]],DataTable,11,FALSE)=0,\"N/A\",Table_Data_Table_1[[#This Row],[Adjusted\nSale Price]]/VLOOKUP(Table_Data_Table_1[[#This Row],[Item ID]],DataTable,11,FALSE)),\"\")","v":""},{"$f":"IF(IFERROR(VLOOKUP(Table_Data_Table_1[[#This Row],[Item ID]],DataTable,17,FALSE),\"\")=0,\"\",IFERROR(VLOOKUP(Table_Data_Table_1[[#This Row],[Item ID]],DataTable,17,FALSE),\"\"))","v":""}]
["",null,{"$f":"IF(Table_Data_Table_1[[#This Row],[Item ID]]=\"\",\"\",IFERROR(VLOOKUP(Table_Data_Table_1[[#This Row],[Item ID]],DataTable,16,FALSE),\"\"))","v":""},null,null,null,null,{"$f":"IF(Table_Data_Table_1[[#This Row],[Valuation Method]]=\"Vacant\",VLOOKUP(Table_Data_Table_1[[#This Row],[Item ID]],DataTable,6,FALSE)-VLOOKUP(Table_Data_Table_1[[#This Row],[Item ID]],DataTable,13,FALSE),IF(Table_Data_Table_1[[#This Row],[Valuation Method]]=\"Abstraction\",VLOOKUP(Table_Data_Table_1[[#This Row],[Item ID]],DataTable,6,FALSE)-VLOOKUP(Table_Data_Table_1[[#This Row],[Item ID]],DataTable,13,FALSE),IF(Table_Data_Table_1[[#This Row],[Valuation Method]]=\"Allocation\",VLOOKUP(Table_Data_Table_1[[#This Row],[Item ID]],DataTable,6,FALSE)*I114,\"\")))","v":""},{"$f":"IF(Table_Data_Table_1[[#This Row],[Valuation Method]]=\"Vacant\",\"N/A\",IF(Table_Data_Table_1[[#This Row],[Valuation Method]]=\"Abstraction\",Table_Data_Table_1[[#This Row],[Land\nResidual]]/VLOOKUP(Table_Data_Table_1[[#This Row],[Item ID]],DataTable,6,FALSE),IF(Table_Data_Table_1[[#This Row],[Valuation Method]]=\"Allocation\",'Global Settings'!$H$20,\"\")))","v":""},{"$f":"IFERROR(ROUND(Table_Data_Table_1[[#This Row],[Resid\nSq Ft]]/43560,3),\"\")","v":""},{"$f":"IF(Table_Data_Table_1[[#This Row],[Item ID]]=\"\",\"\",IFERROR(VLOOKUP(Table_Data_Table_1[[#This Row],[Item ID]],DataTable,10,FALSE)-VLOOKUP(Table_Data_Table_1[[#This Row],[Item ID]],DataTable,12,FALSE),\"\"))","v":""},{"$f":"IFERROR(Table_Data_Table_1[[#This Row],[Land\nResidual]]/Table_Data_Table_1[[#This Row],[Resid\nAcre]],\"\")","v":""},{"$f":"IFERROR(ROUND(Table_Data_Table_1[[#This Row],[Land\nResidual]]/Table_Data_Table_1[[#This Row],[Resid\nSq Ft]],2),\"\")","v":""},{"$f":"IF(Table_Data_Table_1[[#This Row],[Item ID]]=\"\",\"\",ROUND(DAYS360(Table_Data_Table_1[[#This Row],[Sale Date]],'Global Settings'!$H$5)/30,0))","v":""},{"$f":"IFERROR(IF(AND(Table_Data_Table_1[[#This Row],[Months To\nMid-Point]]<12.01,Table_Data_Table_1[[#This Row],[Months To\nMid-Point]]>-13),0,(Table_Data_Table_1[[#This Row],[Months To\nMid-Point]]*'Global Settings'!$H$6)),\"\")","v":""},{"$f":"IFERROR(Table_Data_Table_1[[#This Row],[Land\nResidual]]*(Table_Data_Table_1[[#This Row],[Time\nAdjust]]+1),\"\")","v":""},{"$f":"IFERROR(Table_Data_Table_1[[#This Row],[Adjusted\nSale Price]]/Table_Data_Table_1[[#This Row],[Resid\nAcre]],\"\")","v":""},{"$f":"IFERROR(ROUND(Table_Data_Table_1[[#This Row],[Adjusted\nSale Price]]/Table_Data_Table_1[[#This Row],[Resid\nSq Ft]],2),\"\")","v":""},{"$f":"IFERROR(IF(VLOOKUP(Table_Data_Table_1[[#This Row],[Item ID]],DataTable,11,FALSE)=0,\"N/A\",Table_Data_Table_1[[#This Row],[Adjusted\nSale Price]]/VLOOKUP(Table_Data_Table_1[[#This Row],[Item ID]],DataTable,11,FALSE)),\"\")","v":""},{"$f":"IF(IFERROR(VLOOKUP(Table_Data_Table_1[[#This Row],[Item ID]],DataTable,17,FALSE),\"\")=0,\"\",IFERROR(VLOOKUP(Table_Data_Table_1[[#This Row],[Item ID]],DataTable,17,FALSE),\"\"))","v":""}]
["",null,{"$f":"IF(Table_Data_Table_1[[#This Row],[Item ID]]=\"\",\"\",IFERROR(VLOOKUP(Table_Data_Table_1[[#This Row],[Item ID]],DataTable,16,FALSE),\"\"))","v":""},null,null,null,null,{"$f":"IF(Table_Data_Table_1[[#This Row],[Valuation Method]]=\"Vacant\",VLOOKUP(Table_Data_Table_1[[#This Row],[Item ID]],DataTable,6,FALSE)-VLOOKUP(Table_Data_Table_1[[#This Row],[Item ID]],DataTable,13,FALSE),IF(Table_Data_Table_1[[#This Row],[Valuation Method]]=\"Abstraction\",VLOOKUP(Table_Data_Table_1[[#This Row],[Item ID]],DataTable,6,FALSE)-VLOOKUP(Table_Data_Table_1[[#This Row],[Item ID]],DataTable,13,FALSE),IF(Table_Data_Table_1[[#This Row],[Valuation Method]]=\"Allocation\",VLOOKUP(Table_Data_Table_1[[#This Row],[Item ID]],DataTable,6,FALSE)*I115,\"\")))","v":""},{"$f":"IF(Table_Data_Table_1[[#This Row],[Valuation Method]]=\"Vacant\",\"N/A\",IF(Table_Data_Table_1[[#This Row],[Valuation Method]]=\"Abstraction\",Table_Data_Table_1[[#This Row],[Land\nResidual]]/VLOOKUP(Table_Data_Table_1[[#This Row],[Item ID]],DataTable,6,FALSE),IF(Table_Data_Table_1[[#This Row],[Valuation Method]]=\"Allocation\",'Global Settings'!$H$20,\"\")))","v":""},{"$f":"IFERROR(ROUND(Table_Data_Table_1[[#This Row],[Resid\nSq Ft]]/43560,3),\"\")","v":""},{"$f":"IF(Table_Data_Table_1[[#This Row],[Item ID]]=\"\",\"\",IFERROR(VLOOKUP(Table_Data_Table_1[[#This Row],[Item ID]],DataTable,10,FALSE)-VLOOKUP(Table_Data_Table_1[[#This Row],[Item ID]],DataTable,12,FALSE),\"\"))","v":""},{"$f":"IFERROR(Table_Data_Table_1[[#This Row],[Land\nResidual]]/Table_Data_Table_1[[#This Row],[Resid\nAcre]],\"\")","v":""},{"$f":"IFERROR(ROUND(Table_Data_Table_1[[#This Row],[Land\nResidual]]/Table_Data_Table_1[[#This Row],[Resid\nSq Ft]],2),\"\")","v":""},{"$f":"IF(Table_Data_Table_1[[#This Row],[Item ID]]=\"\",\"\",ROUND(DAYS360(Table_Data_Table_1[[#This Row],[Sale Date]],'Global Settings'!$H$5)/30,0))","v":""},{"$f":"IFERROR(IF(AND(Table_Data_Table_1[[#This Row],[Months To\nMid-Point]]<12.01,Table_Data_Table_1[[#This Row],[Months To\nMid-Point]]>-13),0,(Table_Data_Table_1[[#This Row],[Months To\nMid-Point]]*'Global Settings'!$H$6)),\"\")","v":""},{"$f":"IFERROR(Table_Data_Table_1[[#This Row],[Land\nResidual]]*(Table_Data_Table_1[[#This Row],[Time\nAdjust]]+1),\"\")","v":""},{"$f":"IFERROR(Table_Data_Table_1[[#This Row],[Adjusted\nSale Price]]/Table_Data_Table_1[[#This Row],[Resid\nAcre]],\"\")","v":""},{"$f":"IFERROR(ROUND(Table_Data_Table_1[[#This Row],[Adjusted\nSale Price]]/Table_Data_Table_1[[#This Row],[Resid\nSq Ft]],2),\"\")","v":""},{"$f":"IFERROR(IF(VLOOKUP(Table_Data_Table_1[[#This Row],[Item ID]],DataTable,11,FALSE)=0,\"N/A\",Table_Data_Table_1[[#This Row],[Adjusted\nSale Price]]/VLOOKUP(Table_Data_Table_1[[#This Row],[Item ID]],DataTable,11,FALSE)),\"\")","v":""},{"$f":"IF(IFERROR(VLOOKUP(Table_Data_Table_1[[#This Row],[Item ID]],DataTable,17,FALSE),\"\")=0,\"\",IFERROR(VLOOKUP(Table_Data_Table_1[[#This Row],[Item ID]],DataTable,17,FALSE),\"\"))","v":""}]
["",null,{"$f":"IF(Table_Data_Table_1[[#This Row],[Item ID]]=\"\",\"\",IFERROR(VLOOKUP(Table_Data_Table_1[[#This Row],[Item ID]],DataTable,16,FALSE),\"\"))","v":""},null,null,null,null,{"$f":"IF(Table_Data_Table_1[[#This Row],[Valuation Method]]=\"Vacant\",VLOOKUP(Table_Data_Table_1[[#This Row],[Item ID]],DataTable,6,FALSE)-VLOOKUP(Table_Data_Table_1[[#This Row],[Item ID]],DataTable,13,FALSE),IF(Table_Data_Table_1[[#This Row],[Valuation Method]]=\"Abstraction\",VLOOKUP(Table_Data_Table_1[[#This Row],[Item ID]],DataTable,6,FALSE)-VLOOKUP(Table_Data_Table_1[[#This Row],[Item ID]],DataTable,13,FALSE),IF(Table_Data_Table_1[[#This Row],[Valuation Method]]=\"Allocation\",VLOOKUP(Table_Data_Table_1[[#This Row],[Item ID]],DataTable,6,FALSE)*I116,\"\")))","v":""},{"$f":"IF(Table_Data_Table_1[[#This Row],[Valuation Method]]=\"Vacant\",\"N/A\",IF(Table_Data_Table_1[[#This Row],[Valuation Method]]=\"Abstraction\",Table_Data_Table_1[[#This Row],[Land\nResidual]]/VLOOKUP(Table_Data_Table_1[[#This Row],[Item ID]],DataTable,6,FALSE),IF(Table_Data_Table_1[[#This Row],[Valuation Method]]=\"Allocation\",'Global Settings'!$H$20,\"\")))","v":""},{"$f":"IFERROR(ROUND(Table_Data_Table_1[[#This Row],[Resid\nSq Ft]]/43560,3),\"\")","v":""},{"$f":"IF(Table_Data_Table_1[[#This Row],[Item ID]]=\"\",\"\",IFERROR(VLOOKUP(Table_Data_Table_1[[#This Row],[Item ID]],DataTable,10,FALSE)-VLOOKUP(Table_Data_Table_1[[#This Row],[Item ID]],DataTable,12,FALSE),\"\"))","v":""},{"$f":"IFERROR(Table_Data_Table_1[[#This Row],[Land\nResidual]]/Table_Data_Table_1[[#This Row],[Resid\nAcre]],\"\")","v":""},{"$f":"IFERROR(ROUND(Table_Data_Table_1[[#This Row],[Land\nResidual]]/Table_Data_Table_1[[#This Row],[Resid\nSq Ft]],2),\"\")","v":""},{"$f":"IF(Table_Data_Table_1[[#This Row],[Item ID]]=\"\",\"\",ROUND(DAYS360(Table_Data_Table_1[[#This Row],[Sale Date]],'Global Settings'!$H$5)/30,0))","v":""},{"$f":"IFERROR(IF(AND(Table_Data_Table_1[[#This Row],[Months To\nMid-Point]]<12.01,Table_Data_Table_1[[#This Row],[Months To\nMid-Point]]>-13),0,(Table_Data_Table_1[[#This Row],[Months To\nMid-Point]]*'Global Settings'!$H$6)),\"\")","v":""},{"$f":"IFERROR(Table_Data_Table_1[[#This Row],[Land\nResidual]]*(Table_Data_Table_1[[#This Row],[Time\nAdjust]]+1),\"\")","v":""},{"$f":"IFERROR(Table_Data_Table_1[[#This Row],[Adjusted\nSale Price]]/Table_Data_Table_1[[#This Row],[Resid\nAcre]],\"\")","v":""},{"$f":"IFERROR(ROUND(Table_Data_Table_1[[#This Row],[Adjusted\nSale Price]]/Table_Data_Table_1[[#This Row],[Resid\nSq Ft]],2),\"\")","v":""},{"$f":"IFERROR(IF(VLOOKUP(Table_Data_Table_1[[#This Row],[Item ID]],DataTable,11,FALSE)=0,\"N/A\",Table_Data_Table_1[[#This Row],[Adjusted\nSale Price]]/VLOOKUP(Table_Data_Table_1[[#This Row],[Item ID]],DataTable,11,FALSE)),\"\")","v":""},{"$f":"IF(IFERROR(VLOOKUP(Table_Data_Table_1[[#This Row],[Item ID]],DataTable,17,FALSE),\"\")=0,\"\",IFERROR(VLOOKUP(Table_Data_Table_1[[#This Row],[Item ID]],DataTable,17,FALSE),\"\"))","v":""}]
["",null,{"$f":"IF(Table_Data_Table_1[[#This Row],[Item ID]]=\"\",\"\",IFERROR(VLOOKUP(Table_Data_Table_1[[#This Row],[Item ID]],DataTable,16,FALSE),\"\"))","v":""},null,null,null,null,{"$f":"IF(Table_Data_Table_1[[#This Row],[Valuation Method]]=\"Vacant\",VLOOKUP(Table_Data_Table_1[[#This Row],[Item ID]],DataTable,6,FALSE)-VLOOKUP(Table_Data_Table_1[[#This Row],[Item ID]],DataTable,13,FALSE),IF(Table_Data_Table_1[[#This Row],[Valuation Method]]=\"Abstraction\",VLOOKUP(Table_Data_Table_1[[#This Row],[Item ID]],DataTable,6,FALSE)-VLOOKUP(Table_Data_Table_1[[#This Row],[Item ID]],DataTable,13,FALSE),IF(Table_Data_Table_1[[#This Row],[Valuation Method]]=\"Allocation\",VLOOKUP(Table_Data_Table_1[[#This Row],[Item ID]],DataTable,6,FALSE)*I117,\"\")))","v":""},{"$f":"IF(Table_Data_Table_1[[#This Row],[Valuation Method]]=\"Vacant\",\"N/A\",IF(Table_Data_Table_1[[#This Row],[Valuation Method]]=\"Abstraction\",Table_Data_Table_1[[#This Row],[Land\nResidual]]/VLOOKUP(Table_Data_Table_1[[#This Row],[Item ID]],DataTable,6,FALSE),IF(Table_Data_Table_1[[#This Row],[Valuation Method]]=\"Allocation\",'Global Settings'!$H$20,\"\")))","v":""},{"$f":"IFERROR(ROUND(Table_Data_Table_1[[#This Row],[Resid\nSq Ft]]/43560,3),\"\")","v":""},{"$f":"IF(Table_Data_Table_1[[#This Row],[Item ID]]=\"\",\"\",IFERROR(VLOOKUP(Table_Data_Table_1[[#This Row],[Item ID]],DataTable,10,FALSE)-VLOOKUP(Table_Data_Table_1[[#This Row],[Item ID]],DataTable,12,FALSE),\"\"))","v":""},{"$f":"IFERROR(Table_Data_Table_1[[#This Row],[Land\nResidual]]/Table_Data_Table_1[[#This Row],[Resid\nAcre]],\"\")","v":""},{"$f":"IFERROR(ROUND(Table_Data_Table_1[[#This Row],[Land\nResidual]]/Table_Data_Table_1[[#This Row],[Resid\nSq Ft]],2),\"\")","v":""},{"$f":"IF(Table_Data_Table_1[[#This Row],[Item ID]]=\"\",\"\",ROUND(DAYS360(Table_Data_Table_1[[#This Row],[Sale Date]],'Global Settings'!$H$5)/30,0))","v":""},{"$f":"IFERROR(IF(AND(Table_Data_Table_1[[#This Row],[Months To\nMid-Point]]<12.01,Table_Data_Table_1[[#This Row],[Months To\nMid-Point]]>-13),0,(Table_Data_Table_1[[#This Row],[Months To\nMid-Point]]*'Global Settings'!$H$6)),\"\")","v":""},{"$f":"IFERROR(Table_Data_Table_1[[#This Row],[Land\nResidual]]*(Table_Data_Table_1[[#This Row],[Time\nAdjust]]+1),\"\")","v":""},{"$f":"IFERROR(Table_Data_Table_1[[#This Row],[Adjusted\nSale Price]]/Table_Data_Table_1[[#This Row],[Resid\nAcre]],\"\")","v":""},{"$f":"IFERROR(ROUND(Table_Data_Table_1[[#This Row],[Adjusted\nSale Price]]/Table_Data_Table_1[[#This Row],[Resid\nSq Ft]],2),\"\")","v":""},{"$f":"IFERROR(IF(VLOOKUP(Table_Data_Table_1[[#This Row],[Item ID]],DataTable,11,FALSE)=0,\"N/A\",Table_Data_Table_1[[#This Row],[Adjusted\nSale Price]]/VLOOKUP(Table_Data_Table_1[[#This Row],[Item ID]],DataTable,11,FALSE)),\"\")","v":""},{"$f":"IF(IFERROR(VLOOKUP(Table_Data_Table_1[[#This Row],[Item ID]],DataTable,17,FALSE),\"\")=0,\"\",IFERROR(VLOOKUP(Table_Data_Table_1[[#This Row],[Item ID]],DataTable,17,FALSE),\"\"))","v":""}]
["",null,{"$f":"IF(Table_Data_Table_1[[#This Row],[Item ID]]=\"\",\"\",IFERROR(VLOOKUP(Table_Data_Table_1[[#This Row],[Item ID]],DataTable,16,FALSE),\"\"))","v":""},null,null,null,null,{"$f":"IF(Table_Data_Table_1[[#This Row],[Valuation Method]]=\"Vacant\",VLOOKUP(Table_Data_Table_1[[#This Row],[Item ID]],DataTable,6,FALSE)-VLOOKUP(Table_Data_Table_1[[#This Row],[Item ID]],DataTable,13,FALSE),IF(Table_Data_Table_1[[#This Row],[Valuation Method]]=\"Abstraction\",VLOOKUP(Table_Data_Table_1[[#This Row],[Item ID]],DataTable,6,FALSE)-VLOOKUP(Table_Data_Table_1[[#This Row],[Item ID]],DataTable,13,FALSE),IF(Table_Data_Table_1[[#This Row],[Valuation Method]]=\"Allocation\",VLOOKUP(Table_Data_Table_1[[#This Row],[Item ID]],DataTable,6,FALSE)*I118,\"\")))","v":""},{"$f":"IF(Table_Data_Table_1[[#This Row],[Valuation Method]]=\"Vacant\",\"N/A\",IF(Table_Data_Table_1[[#This Row],[Valuation Method]]=\"Abstraction\",Table_Data_Table_1[[#This Row],[Land\nResidual]]/VLOOKUP(Table_Data_Table_1[[#This Row],[Item ID]],DataTable,6,FALSE),IF(Table_Data_Table_1[[#This Row],[Valuation Method]]=\"Allocation\",'Global Settings'!$H$20,\"\")))","v":""},{"$f":"IFERROR(ROUND(Table_Data_Table_1[[#This Row],[Resid\nSq Ft]]/43560,3),\"\")","v":""},{"$f":"IF(Table_Data_Table_1[[#This Row],[Item ID]]=\"\",\"\",IFERROR(VLOOKUP(Table_Data_Table_1[[#This Row],[Item ID]],DataTable,10,FALSE)-VLOOKUP(Table_Data_Table_1[[#This Row],[Item ID]],DataTable,12,FALSE),\"\"))","v":""},{"$f":"IFERROR(Table_Data_Table_1[[#This Row],[Land\nResidual]]/Table_Data_Table_1[[#This Row],[Resid\nAcre]],\"\")","v":""},{"$f":"IFERROR(ROUND(Table_Data_Table_1[[#This Row],[Land\nResidual]]/Table_Data_Table_1[[#This Row],[Resid\nSq Ft]],2),\"\")","v":""},{"$f":"IF(Table_Data_Table_1[[#This Row],[Item ID]]=\"\",\"\",ROUND(DAYS360(Table_Data_Table_1[[#This Row],[Sale Date]],'Global Settings'!$H$5)/30,0))","v":""},{"$f":"IFERROR(IF(AND(Table_Data_Table_1[[#This Row],[Months To\nMid-Point]]<12.01,Table_Data_Table_1[[#This Row],[Months To\nMid-Point]]>-13),0,(Table_Data_Table_1[[#This Row],[Months To\nMid-Point]]*'Global Settings'!$H$6)),\"\")","v":""},{"$f":"IFERROR(Table_Data_Table_1[[#This Row],[Land\nResidual]]*(Table_Data_Table_1[[#This Row],[Time\nAdjust]]+1),\"\")","v":""},{"$f":"IFERROR(Table_Data_Table_1[[#This Row],[Adjusted\nSale Price]]/Table_Data_Table_1[[#This Row],[Resid\nAcre]],\"\")","v":""},{"$f":"IFERROR(ROUND(Table_Data_Table_1[[#This Row],[Adjusted\nSale Price]]/Table_Data_Table_1[[#This Row],[Resid\nSq Ft]],2),\"\")","v":""},{"$f":"IFERROR(IF(VLOOKUP(Table_Data_Table_1[[#This Row],[Item ID]],DataTable,11,FALSE)=0,\"N/A\",Table_Data_Table_1[[#This Row],[Adjusted\nSale Price]]/VLOOKUP(Table_Data_Table_1[[#This Row],[Item ID]],DataTable,11,FALSE)),\"\")","v":""},{"$f":"IF(IFERROR(VLOOKUP(Table_Data_Table_1[[#This Row],[Item ID]],DataTable,17,FALSE),\"\")=0,\"\",IFERROR(VLOOKUP(Table_Data_Table_1[[#This Row],[Item ID]],DataTable,17,FALSE),\"\"))","v":""}]
["",null,{"$f":"IF(Table_Data_Table_1[[#This Row],[Item ID]]=\"\",\"\",IFERROR(VLOOKUP(Table_Data_Table_1[[#This Row],[Item ID]],DataTable,16,FALSE),\"\"))","v":""},null,null,null,null,{"$f":"IF(Table_Data_Table_1[[#This Row],[Valuation Method]]=\"Vacant\",VLOOKUP(Table_Data_Table_1[[#This Row],[Item ID]],DataTable,6,FALSE)-VLOOKUP(Table_Data_Table_1[[#This Row],[Item ID]],DataTable,13,FALSE),IF(Table_Data_Table_1[[#This Row],[Valuation Method]]=\"Abstraction\",VLOOKUP(Table_Data_Table_1[[#This Row],[Item ID]],DataTable,6,FALSE)-VLOOKUP(Table_Data_Table_1[[#This Row],[Item ID]],DataTable,13,FALSE),IF(Table_Data_Table_1[[#This Row],[Valuation Method]]=\"Allocation\",VLOOKUP(Table_Data_Table_1[[#This Row],[Item ID]],DataTable,6,FALSE)*I119,\"\")))","v":""},{"$f":"IF(Table_Data_Table_1[[#This Row],[Valuation Method]]=\"Vacant\",\"N/A\",IF(Table_Data_Table_1[[#This Row],[Valuation Method]]=\"Abstraction\",Table_Data_Table_1[[#This Row],[Land\nResidual]]/VLOOKUP(Table_Data_Table_1[[#This Row],[Item ID]],DataTable,6,FALSE),IF(Table_Data_Table_1[[#This Row],[Valuation Method]]=\"Allocation\",'Global Settings'!$H$20,\"\")))","v":""},{"$f":"IFERROR(ROUND(Table_Data_Table_1[[#This Row],[Resid\nSq Ft]]/43560,3),\"\")","v":""},{"$f":"IF(Table_Data_Table_1[[#This Row],[Item ID]]=\"\",\"\",IFERROR(VLOOKUP(Table_Data_Table_1[[#This Row],[Item ID]],DataTable,10,FALSE)-VLOOKUP(Table_Data_Table_1[[#This Row],[Item ID]],DataTable,12,FALSE),\"\"))","v":""},{"$f":"IFERROR(Table_Data_Table_1[[#This Row],[Land\nResidual]]/Table_Data_Table_1[[#This Row],[Resid\nAcre]],\"\")","v":""},{"$f":"IFERROR(ROUND(Table_Data_Table_1[[#This Row],[Land\nResidual]]/Table_Data_Table_1[[#This Row],[Resid\nSq Ft]],2),\"\")","v":""},{"$f":"IF(Table_Data_Table_1[[#This Row],[Item ID]]=\"\",\"\",ROUND(DAYS360(Table_Data_Table_1[[#This Row],[Sale Date]],'Global Settings'!$H$5)/30,0))","v":""},{"$f":"IFERROR(IF(AND(Table_Data_Table_1[[#This Row],[Months To\nMid-Point]]<12.01,Table_Data_Table_1[[#This Row],[Months To\nMid-Point]]>-13),0,(Table_Data_Table_1[[#This Row],[Months To\nMid-Point]]*'Global Settings'!$H$6)),\"\")","v":""},{"$f":"IFERROR(Table_Data_Table_1[[#This Row],[Land\nResidual]]*(Table_Data_Table_1[[#This Row],[Time\nAdjust]]+1),\"\")","v":""},{"$f":"IFERROR(Table_Data_Table_1[[#This Row],[Adjusted\nSale Price]]/Table_Data_Table_1[[#This Row],[Resid\nAcre]],\"\")","v":""},{"$f":"IFERROR(ROUND(Table_Data_Table_1[[#This Row],[Adjusted\nSale Price]]/Table_Data_Table_1[[#This Row],[Resid\nSq Ft]],2),\"\")","v":""},{"$f":"IFERROR(IF(VLOOKUP(Table_Data_Table_1[[#This Row],[Item ID]],DataTable,11,FALSE)=0,\"N/A\",Table_Data_Table_1[[#This Row],[Adjusted\nSale Price]]/VLOOKUP(Table_Data_Table_1[[#This Row],[Item ID]],DataTable,11,FALSE)),\"\")","v":""},{"$f":"IF(IFERROR(VLOOKUP(Table_Data_Table_1[[#This Row],[Item ID]],DataTable,17,FALSE),\"\")=0,\"\",IFERROR(VLOOKUP(Table_Data_Table_1[[#This Row],[Item ID]],DataTable,17,FALSE),\"\"))","v":""}]
["",null,{"$f":"IF(Table_Data_Table_1[[#This Row],[Item ID]]=\"\",\"\",IFERROR(VLOOKUP(Table_Data_Table_1[[#This Row],[Item ID]],DataTable,16,FALSE),\"\"))","v":""},null,null,null,null,{"$f":"IF(Table_Data_Table_1[[#This Row],[Valuation Method]]=\"Vacant\",VLOOKUP(Table_Data_Table_1[[#This Row],[Item ID]],DataTable,6,FALSE)-VLOOKUP(Table_Data_Table_1[[#This Row],[Item ID]],DataTable,13,FALSE),IF(Table_Data_Table_1[[#This Row],[Valuation Method]]=\"Abstraction\",VLOOKUP(Table_Data_Table_1[[#This Row],[Item ID]],DataTable,6,FALSE)-VLOOKUP(Table_Data_Table_1[[#This Row],[Item ID]],DataTable,13,FALSE),IF(Table_Data_Table_1[[#This Row],[Valuation Method]]=\"Allocation\",VLOOKUP(Table_Data_Table_1[[#This Row],[Item ID]],DataTable,6,FALSE)*I120,\"\")))","v":""},{"$f":"IF(Table_Data_Table_1[[#This Row],[Valuation Method]]=\"Vacant\",\"N/A\",IF(Table_Data_Table_1[[#This Row],[Valuation Method]]=\"Abstraction\",Table_Data_Table_1[[#This Row],[Land\nResidual]]/VLOOKUP(Table_Data_Table_1[[#This Row],[Item ID]],DataTable,6,FALSE),IF(Table_Data_Table_1[[#This Row],[Valuation Method]]=\"Allocation\",'Global Settings'!$H$20,\"\")))","v":""},{"$f":"IFERROR(ROUND(Table_Data_Table_1[[#This Row],[Resid\nSq Ft]]/43560,3),\"\")","v":""},{"$f":"IF(Table_Data_Table_1[[#This Row],[Item ID]]=\"\",\"\",IFERROR(VLOOKUP(Table_Data_Table_1[[#This Row],[Item ID]],DataTable,10,FALSE)-VLOOKUP(Table_Data_Table_1[[#This Row],[Item ID]],DataTable,12,FALSE),\"\"))","v":""},{"$f":"IFERROR(Table_Data_Table_1[[#This Row],[Land\nResidual]]/Table_Data_Table_1[[#This Row],[Resid\nAcre]],\"\")","v":""},{"$f":"IFERROR(ROUND(Table_Data_Table_1[[#This Row],[Land\nResidual]]/Table_Data_Table_1[[#This Row],[Resid\nSq Ft]],2),\"\")","v":""},{"$f":"IF(Table_Data_Table_1[[#This Row],[Item ID]]=\"\",\"\",ROUND(DAYS360(Table_Data_Table_1[[#This Row],[Sale Date]],'Global Settings'!$H$5)/30,0))","v":""},{"$f":"IFERROR(IF(AND(Table_Data_Table_1[[#This Row],[Months To\nMid-Point]]<12.01,Table_Data_Table_1[[#This Row],[Months To\nMid-Point]]>-13),0,(Table_Data_Table_1[[#This Row],[Months To\nMid-Point]]*'Global Settings'!$H$6)),\"\")","v":""},{"$f":"IFERROR(Table_Data_Table_1[[#This Row],[Land\nResidual]]*(Table_Data_Table_1[[#This Row],[Time\nAdjust]]+1),\"\")","v":""},{"$f":"IFERROR(Table_Data_Table_1[[#This Row],[Adjusted\nSale Price]]/Table_Data_Table_1[[#This Row],[Resid\nAcre]],\"\")","v":""},{"$f":"IFERROR(ROUND(Table_Data_Table_1[[#This Row],[Adjusted\nSale Price]]/Table_Data_Table_1[[#This Row],[Resid\nSq Ft]],2),\"\")","v":""},{"$f":"IFERROR(IF(VLOOKUP(Table_Data_Table_1[[#This Row],[Item ID]],DataTable,11,FALSE)=0,\"N/A\",Table_Data_Table_1[[#This Row],[Adjusted\nSale Price]]/VLOOKUP(Table_Data_Table_1[[#This Row],[Item ID]],DataTable,11,FALSE)),\"\")","v":""},{"$f":"IF(IFERROR(VLOOKUP(Table_Data_Table_1[[#This Row],[Item ID]],DataTable,17,FALSE),\"\")=0,\"\",IFERROR(VLOOKUP(Table_Data_Table_1[[#This Row],[Item ID]],DataTable,17,FALSE),\"\"))","v":""}]
["",null,{"$f":"IF(Table_Data_Table_1[[#This Row],[Item ID]]=\"\",\"\",IFERROR(VLOOKUP(Table_Data_Table_1[[#This Row],[Item ID]],DataTable,16,FALSE),\"\"))","v":""},null,null,null,null,{"$f":"IF(Table_Data_Table_1[[#This Row],[Valuation Method]]=\"Vacant\",VLOOKUP(Table_Data_Table_1[[#This Row],[Item ID]],DataTable,6,FALSE)-VLOOKUP(Table_Data_Table_1[[#This Row],[Item ID]],DataTable,13,FALSE),IF(Table_Data_Table_1[[#This Row],[Valuation Method]]=\"Abstraction\",VLOOKUP(Table_Data_Table_1[[#This Row],[Item ID]],DataTable,6,FALSE)-VLOOKUP(Table_Data_Table_1[[#This Row],[Item ID]],DataTable,13,FALSE),IF(Table_Data_Table_1[[#This Row],[Valuation Method]]=\"Allocation\",VLOOKUP(Table_Data_Table_1[[#This Row],[Item ID]],DataTable,6,FALSE)*I121,\"\")))","v":""},{"$f":"IF(Table_Data_Table_1[[#This Row],[Valuation Method]]=\"Vacant\",\"N/A\",IF(Table_Data_Table_1[[#This Row],[Valuation Method]]=\"Abstraction\",Table_Data_Table_1[[#This Row],[Land\nResidual]]/VLOOKUP(Table_Data_Table_1[[#This Row],[Item ID]],DataTable,6,FALSE),IF(Table_Data_Table_1[[#This Row],[Valuation Method]]=\"Allocation\",'Global Settings'!$H$20,\"\")))","v":""},{"$f":"IFERROR(ROUND(Table_Data_Table_1[[#This Row],[Resid\nSq Ft]]/43560,3),\"\")","v":""},{"$f":"IF(Table_Data_Table_1[[#This Row],[Item ID]]=\"\",\"\",IFERROR(VLOOKUP(Table_Data_Table_1[[#This Row],[Item ID]],DataTable,10,FALSE)-VLOOKUP(Table_Data_Table_1[[#This Row],[Item ID]],DataTable,12,FALSE),\"\"))","v":""},{"$f":"IFERROR(Table_Data_Table_1[[#This Row],[Land\nResidual]]/Table_Data_Table_1[[#This Row],[Resid\nAcre]],\"\")","v":""},{"$f":"IFERROR(ROUND(Table_Data_Table_1[[#This Row],[Land\nResidual]]/Table_Data_Table_1[[#This Row],[Resid\nSq Ft]],2),\"\")","v":""},{"$f":"IF(Table_Data_Table_1[[#This Row],[Item ID]]=\"\",\"\",ROUND(DAYS360(Table_Data_Table_1[[#This Row],[Sale Date]],'Global Settings'!$H$5)/30,0))","v":""},{"$f":"IFERROR(IF(AND(Table_Data_Table_1[[#This Row],[Months To\nMid-Point]]<12.01,Table_Data_Table_1[[#This Row],[Months To\nMid-Point]]>-13),0,(Table_Data_Table_1[[#This Row],[Months To\nMid-Point]]*'Global Settings'!$H$6)),\"\")","v":""},{"$f":"IFERROR(Table_Data_Table_1[[#This Row],[Land\nResidual]]*(Table_Data_Table_1[[#This Row],[Time\nAdjust]]+1),\"\")","v":""},{"$f":"IFERROR(Table_Data_Table_1[[#This Row],[Adjusted\nSale Price]]/Table_Data_Table_1[[#This Row],[Resid\nAcre]],\"\")","v":""},{"$f":"IFERROR(ROUND(Table_Data_Table_1[[#This Row],[Adjusted\nSale Price]]/Table_Data_Table_1[[#This Row],[Resid\nSq Ft]],2),\"\")","v":""},{"$f":"IFERROR(IF(VLOOKUP(Table_Data_Table_1[[#This Row],[Item ID]],DataTable,11,FALSE)=0,\"N/A\",Table_Data_Table_1[[#This Row],[Adjusted\nSale Price]]/VLOOKUP(Table_Data_Table_1[[#This Row],[Item ID]],DataTable,11,FALSE)),\"\")","v":""},{"$f":"IF(IFERROR(VLOOKUP(Table_Data_Table_1[[#This Row],[Item ID]],DataTable,17,FALSE),\"\")=0,\"\",IFERROR(VLOOKUP(Table_Data_Table_1[[#This Row],[Item ID]],DataTable,17,FALSE),\"\"))","v":""}]
["",null,{"$f":"IF(Table_Data_Table_1[[#This Row],[Item ID]]=\"\",\"\",IFERROR(VLOOKUP(Table_Data_Table_1[[#This Row],[Item ID]],DataTable,16,FALSE),\"\"))","v":""},null,null,null,null,{"$f":"IF(Table_Data_Table_1[[#This Row],[Valuation Method]]=\"Vacant\",VLOOKUP(Table_Data_Table_1[[#This Row],[Item ID]],DataTable,6,FALSE)-VLOOKUP(Table_Data_Table_1[[#This Row],[Item ID]],DataTable,13,FALSE),IF(Table_Data_Table_1[[#This Row],[Valuation Method]]=\"Abstraction\",VLOOKUP(Table_Data_Table_1[[#This Row],[Item ID]],DataTable,6,FALSE)-VLOOKUP(Table_Data_Table_1[[#This Row],[Item ID]],DataTable,13,FALSE),IF(Table_Data_Table_1[[#This Row],[Valuation Method]]=\"Allocation\",VLOOKUP(Table_Data_Table_1[[#This Row],[Item ID]],DataTable,6,FALSE)*I122,\"\")))","v":""},{"$f":"IF(Table_Data_Table_1[[#This Row],[Valuation Method]]=\"Vacant\",\"N/A\",IF(Table_Data_Table_1[[#This Row],[Valuation Method]]=\"Abstraction\",Table_Data_Table_1[[#This Row],[Land\nResidual]]/VLOOKUP(Table_Data_Table_1[[#This Row],[Item ID]],DataTable,6,FALSE),IF(Table_Data_Table_1[[#This Row],[Valuation Method]]=\"Allocation\",'Global Settings'!$H$20,\"\")))","v":""},{"$f":"IFERROR(ROUND(Table_Data_Table_1[[#This Row],[Resid\nSq Ft]]/43560,3),\"\")","v":""},{"$f":"IF(Table_Data_Table_1[[#This Row],[Item ID]]=\"\",\"\",IFERROR(VLOOKUP(Table_Data_Table_1[[#This Row],[Item ID]],DataTable,10,FALSE)-VLOOKUP(Table_Data_Table_1[[#This Row],[Item ID]],DataTable,12,FALSE),\"\"))","v":""},{"$f":"IFERROR(Table_Data_Table_1[[#This Row],[Land\nResidual]]/Table_Data_Table_1[[#This Row],[Resid\nAcre]],\"\")","v":""},{"$f":"IFERROR(ROUND(Table_Data_Table_1[[#This Row],[Land\nResidual]]/Table_Data_Table_1[[#This Row],[Resid\nSq Ft]],2),\"\")","v":""},{"$f":"IF(Table_Data_Table_1[[#This Row],[Item ID]]=\"\",\"\",ROUND(DAYS360(Table_Data_Table_1[[#This Row],[Sale Date]],'Global Settings'!$H$5)/30,0))","v":""},{"$f":"IFERROR(IF(AND(Table_Data_Table_1[[#This Row],[Months To\nMid-Point]]<12.01,Table_Data_Table_1[[#This Row],[Months To\nMid-Point]]>-13),0,(Table_Data_Table_1[[#This Row],[Months To\nMid-Point]]*'Global Settings'!$H$6)),\"\")","v":""},{"$f":"IFERROR(Table_Data_Table_1[[#This Row],[Land\nResidual]]*(Table_Data_Table_1[[#This Row],[Time\nAdjust]]+1),\"\")","v":""},{"$f":"IFERROR(Table_Data_Table_1[[#This Row],[Adjusted\nSale Price]]/Table_Data_Table_1[[#This Row],[Resid\nAcre]],\"\")","v":""},{"$f":"IFERROR(ROUND(Table_Data_Table_1[[#This Row],[Adjusted\nSale Price]]/Table_Data_Table_1[[#This Row],[Resid\nSq Ft]],2),\"\")","v":""},{"$f":"IFERROR(IF(VLOOKUP(Table_Data_Table_1[[#This Row],[Item ID]],DataTable,11,FALSE)=0,\"N/A\",Table_Data_Table_1[[#This Row],[Adjusted\nSale Price]]/VLOOKUP(Table_Data_Table_1[[#This Row],[Item ID]],DataTable,11,FALSE)),\"\")","v":""},{"$f":"IF(IFERROR(VLOOKUP(Table_Data_Table_1[[#This Row],[Item ID]],DataTable,17,FALSE),\"\")=0,\"\",IFERROR(VLOOKUP(Table_Data_Table_1[[#This Row],[Item ID]],DataTable,17,FALSE),\"\"))","v":""}]
["",null,{"$f":"IF(Table_Data_Table_1[[#This Row],[Item ID]]=\"\",\"\",IFERROR(VLOOKUP(Table_Data_Table_1[[#This Row],[Item ID]],DataTable,16,FALSE),\"\"))","v":""},null,null,null,null,{"$f":"IF(Table_Data_Table_1[[#This Row],[Valuation Method]]=\"Vacant\",VLOOKUP(Table_Data_Table_1[[#This Row],[Item ID]],DataTable,6,FALSE)-VLOOKUP(Table_Data_Table_1[[#This Row],[Item ID]],DataTable,13,FALSE),IF(Table_Data_Table_1[[#This Row],[Valuation Method]]=\"Abstraction\",VLOOKUP(Table_Data_Table_1[[#This Row],[Item ID]],DataTable,6,FALSE)-VLOOKUP(Table_Data_Table_1[[#This Row],[Item ID]],DataTable,13,FALSE),IF(Table_Data_Table_1[[#This Row],[Valuation Method]]=\"Allocation\",VLOOKUP(Table_Data_Table_1[[#This Row],[Item ID]],DataTable,6,FALSE)*I123,\"\")))","v":""},{"$f":"IF(Table_Data_Table_1[[#This Row],[Valuation Method]]=\"Vacant\",\"N/A\",IF(Table_Data_Table_1[[#This Row],[Valuation Method]]=\"Abstraction\",Table_Data_Table_1[[#This Row],[Land\nResidual]]/VLOOKUP(Table_Data_Table_1[[#This Row],[Item ID]],DataTable,6,FALSE),IF(Table_Data_Table_1[[#This Row],[Valuation Method]]=\"Allocation\",'Global Settings'!$H$20,\"\")))","v":""},{"$f":"IFERROR(ROUND(Table_Data_Table_1[[#This Row],[Resid\nSq Ft]]/43560,3),\"\")","v":""},{"$f":"IF(Table_Data_Table_1[[#This Row],[Item ID]]=\"\",\"\",IFERROR(VLOOKUP(Table_Data_Table_1[[#This Row],[Item ID]],DataTable,10,FALSE)-VLOOKUP(Table_Data_Table_1[[#This Row],[Item ID]],DataTable,12,FALSE),\"\"))","v":""},{"$f":"IFERROR(Table_Data_Table_1[[#This Row],[Land\nResidual]]/Table_Data_Table_1[[#This Row],[Resid\nAcre]],\"\")","v":""},{"$f":"IFERROR(ROUND(Table_Data_Table_1[[#This Row],[Land\nResidual]]/Table_Data_Table_1[[#This Row],[Resid\nSq Ft]],2),\"\")","v":""},{"$f":"IF(Table_Data_Table_1[[#This Row],[Item ID]]=\"\",\"\",ROUND(DAYS360(Table_Data_Table_1[[#This Row],[Sale Date]],'Global Settings'!$H$5)/30,0))","v":""},{"$f":"IFERROR(IF(AND(Table_Data_Table_1[[#This Row],[Months To\nMid-Point]]<12.01,Table_Data_Table_1[[#This Row],[Months To\nMid-Point]]>-13),0,(Table_Data_Table_1[[#This Row],[Months To\nMid-Point]]*'Global Settings'!$H$6)),\"\")","v":""},{"$f":"IFERROR(Table_Data_Table_1[[#This Row],[Land\nResidual]]*(Table_Data_Table_1[[#This Row],[Time\nAdjust]]+1),\"\")","v":""},{"$f":"IFERROR(Table_Data_Table_1[[#This Row],[Adjusted\nSale Price]]/Table_Data_Table_1[[#This Row],[Resid\nAcre]],\"\")","v":""},{"$f":"IFERROR(ROUND(Table_Data_Table_1[[#This Row],[Adjusted\nSale Price]]/Table_Data_Table_1[[#This Row],[Resid\nSq Ft]],2),\"\")","v":""},{"$f":"IFERROR(IF(VLOOKUP(Table_Data_Table_1[[#This Row],[Item ID]],DataTable,11,FALSE)=0,\"N/A\",Table_Data_Table_1[[#This Row],[Adjusted\nSale Price]]/VLOOKUP(Table_Data_Table_1[[#This Row],[Item ID]],DataTable,11,FALSE)),\"\")","v":""},{"$f":"IF(IFERROR(VLOOKUP(Table_Data_Table_1[[#This Row],[Item ID]],DataTable,17,FALSE),\"\")=0,\"\",IFERROR(VLOOKUP(Table_Data_Table_1[[#This Row],[Item ID]],DataTable,17,FALSE),\"\"))","v":""}]
["",null,{"$f":"IF(Table_Data_Table_1[[#This Row],[Item ID]]=\"\",\"\",IFERROR(VLOOKUP(Table_Data_Table_1[[#This Row],[Item ID]],DataTable,16,FALSE),\"\"))","v":""},null,null,null,null,{"$f":"IF(Table_Data_Table_1[[#This Row],[Valuation Method]]=\"Vacant\",VLOOKUP(Table_Data_Table_1[[#This Row],[Item ID]],DataTable,6,FALSE)-VLOOKUP(Table_Data_Table_1[[#This Row],[Item ID]],DataTable,13,FALSE),IF(Table_Data_Table_1[[#This Row],[Valuation Method]]=\"Abstraction\",VLOOKUP(Table_Data_Table_1[[#This Row],[Item ID]],DataTable,6,FALSE)-VLOOKUP(Table_Data_Table_1[[#This Row],[Item ID]],DataTable,13,FALSE),IF(Table_Data_Table_1[[#This Row],[Valuation Method]]=\"Allocation\",VLOOKUP(Table_Data_Table_1[[#This Row],[Item ID]],DataTable,6,FALSE)*I124,\"\")))","v":""},{"$f":"IF(Table_Data_Table_1[[#This Row],[Valuation Method]]=\"Vacant\",\"N/A\",IF(Table_Data_Table_1[[#This Row],[Valuation Method]]=\"Abstraction\",Table_Data_Table_1[[#This Row],[Land\nResidual]]/VLOOKUP(Table_Data_Table_1[[#This Row],[Item ID]],DataTable,6,FALSE),IF(Table_Data_Table_1[[#This Row],[Valuation Method]]=\"Allocation\",'Global Settings'!$H$20,\"\")))","v":""},{"$f":"IFERROR(ROUND(Table_Data_Table_1[[#This Row],[Resid\nSq Ft]]/43560,3),\"\")","v":""},{"$f":"IF(Table_Data_Table_1[[#This Row],[Item ID]]=\"\",\"\",IFERROR(VLOOKUP(Table_Data_Table_1[[#This Row],[Item ID]],DataTable,10,FALSE)-VLOOKUP(Table_Data_Table_1[[#This Row],[Item ID]],DataTable,12,FALSE),\"\"))","v":""},{"$f":"IFERROR(Table_Data_Table_1[[#This Row],[Land\nResidual]]/Table_Data_Table_1[[#This Row],[Resid\nAcre]],\"\")","v":""},{"$f":"IFERROR(ROUND(Table_Data_Table_1[[#This Row],[Land\nResidual]]/Table_Data_Table_1[[#This Row],[Resid\nSq Ft]],2),\"\")","v":""},{"$f":"IF(Table_Data_Table_1[[#This Row],[Item ID]]=\"\",\"\",ROUND(DAYS360(Table_Data_Table_1[[#This Row],[Sale Date]],'Global Settings'!$H$5)/30,0))","v":""},{"$f":"IFERROR(IF(AND(Table_Data_Table_1[[#This Row],[Months To\nMid-Point]]<12.01,Table_Data_Table_1[[#This Row],[Months To\nMid-Point]]>-13),0,(Table_Data_Table_1[[#This Row],[Months To\nMid-Point]]*'Global Settings'!$H$6)),\"\")","v":""},{"$f":"IFERROR(Table_Data_Table_1[[#This Row],[Land\nResidual]]*(Table_Data_Table_1[[#This Row],[Time\nAdjust]]+1),\"\")","v":""},{"$f":"IFERROR(Table_Data_Table_1[[#This Row],[Adjusted\nSale Price]]/Table_Data_Table_1[[#This Row],[Resid\nAcre]],\"\")","v":""},{"$f":"IFERROR(ROUND(Table_Data_Table_1[[#This Row],[Adjusted\nSale Price]]/Table_Data_Table_1[[#This Row],[Resid\nSq Ft]],2),\"\")","v":""},{"$f":"IFERROR(IF(VLOOKUP(Table_Data_Table_1[[#This Row],[Item ID]],DataTable,11,FALSE)=0,\"N/A\",Table_Data_Table_1[[#This Row],[Adjusted\nSale Price]]/VLOOKUP(Table_Data_Table_1[[#This Row],[Item ID]],DataTable,11,FALSE)),\"\")","v":""},{"$f":"IF(IFERROR(VLOOKUP(Table_Data_Table_1[[#This Row],[Item ID]],DataTable,17,FALSE),\"\")=0,\"\",IFERROR(VLOOKUP(Table_Data_Table_1[[#This Row],[Item ID]],DataTable,17,FALSE),\"\"))","v":""}]
["",null,{"$f":"IF(Table_Data_Table_1[[#This Row],[Item ID]]=\"\",\"\",IFERROR(VLOOKUP(Table_Data_Table_1[[#This Row],[Item ID]],DataTable,16,FALSE),\"\"))","v":""},null,null,null,null,{"$f":"IF(Table_Data_Table_1[[#This Row],[Valuation Method]]=\"Vacant\",VLOOKUP(Table_Data_Table_1[[#This Row],[Item ID]],DataTable,6,FALSE)-VLOOKUP(Table_Data_Table_1[[#This Row],[Item ID]],DataTable,13,FALSE),IF(Table_Data_Table_1[[#This Row],[Valuation Method]]=\"Abstraction\",VLOOKUP(Table_Data_Table_1[[#This Row],[Item ID]],DataTable,6,FALSE)-VLOOKUP(Table_Data_Table_1[[#This Row],[Item ID]],DataTable,13,FALSE),IF(Table_Data_Table_1[[#This Row],[Valuation Method]]=\"Allocation\",VLOOKUP(Table_Data_Table_1[[#This Row],[Item ID]],DataTable,6,FALSE)*I125,\"\")))","v":""},{"$f":"IF(Table_Data_Table_1[[#This Row],[Valuation Method]]=\"Vacant\",\"N/A\",IF(Table_Data_Table_1[[#This Row],[Valuation Method]]=\"Abstraction\",Table_Data_Table_1[[#This Row],[Land\nResidual]]/VLOOKUP(Table_Data_Table_1[[#This Row],[Item ID]],DataTable,6,FALSE),IF(Table_Data_Table_1[[#This Row],[Valuation Method]]=\"Allocation\",'Global Settings'!$H$20,\"\")))","v":""},{"$f":"IFERROR(ROUND(Table_Data_Table_1[[#This Row],[Resid\nSq Ft]]/43560,3),\"\")","v":""},{"$f":"IF(Table_Data_Table_1[[#This Row],[Item ID]]=\"\",\"\",IFERROR(VLOOKUP(Table_Data_Table_1[[#This Row],[Item ID]],DataTable,10,FALSE)-VLOOKUP(Table_Data_Table_1[[#This Row],[Item ID]],DataTable,12,FALSE),\"\"))","v":""},{"$f":"IFERROR(Table_Data_Table_1[[#This Row],[Land\nResidual]]/Table_Data_Table_1[[#This Row],[Resid\nAcre]],\"\")","v":""},{"$f":"IFERROR(ROUND(Table_Data_Table_1[[#This Row],[Land\nResidual]]/Table_Data_Table_1[[#This Row],[Resid\nSq Ft]],2),\"\")","v":""},{"$f":"IF(Table_Data_Table_1[[#This Row],[Item ID]]=\"\",\"\",ROUND(DAYS360(Table_Data_Table_1[[#This Row],[Sale Date]],'Global Settings'!$H$5)/30,0))","v":""},{"$f":"IFERROR(IF(AND(Table_Data_Table_1[[#This Row],[Months To\nMid-Point]]<12.01,Table_Data_Table_1[[#This Row],[Months To\nMid-Point]]>-13),0,(Table_Data_Table_1[[#This Row],[Months To\nMid-Point]]*'Global Settings'!$H$6)),\"\")","v":""},{"$f":"IFERROR(Table_Data_Table_1[[#This Row],[Land\nResidual]]*(Table_Data_Table_1[[#This Row],[Time\nAdjust]]+1),\"\")","v":""},{"$f":"IFERROR(Table_Data_Table_1[[#This Row],[Adjusted\nSale Price]]/Table_Data_Table_1[[#This Row],[Resid\nAcre]],\"\")","v":""},{"$f":"IFERROR(ROUND(Table_Data_Table_1[[#This Row],[Adjusted\nSale Price]]/Table_Data_Table_1[[#This Row],[Resid\nSq Ft]],2),\"\")","v":""},{"$f":"IFERROR(IF(VLOOKUP(Table_Data_Table_1[[#This Row],[Item ID]],DataTable,11,FALSE)=0,\"N/A\",Table_Data_Table_1[[#This Row],[Adjusted\nSale Price]]/VLOOKUP(Table_Data_Table_1[[#This Row],[Item ID]],DataTable,11,FALSE)),\"\")","v":""},{"$f":"IF(IFERROR(VLOOKUP(Table_Data_Table_1[[#This Row],[Item ID]],DataTable,17,FALSE),\"\")=0,\"\",IFERROR(VLOOKUP(Table_Data_Table_1[[#This Row],[Item ID]],DataTable,17,FALSE),\"\"))","v":""}]
["",null,{"$f":"IF(Table_Data_Table_1[[#This Row],[Item ID]]=\"\",\"\",IFERROR(VLOOKUP(Table_Data_Table_1[[#This Row],[Item ID]],DataTable,16,FALSE),\"\"))","v":""},null,null,null,null,{"$f":"IF(Table_Data_Table_1[[#This Row],[Valuation Method]]=\"Vacant\",VLOOKUP(Table_Data_Table_1[[#This Row],[Item ID]],DataTable,6,FALSE)-VLOOKUP(Table_Data_Table_1[[#This Row],[Item ID]],DataTable,13,FALSE),IF(Table_Data_Table_1[[#This Row],[Valuation Method]]=\"Abstraction\",VLOOKUP(Table_Data_Table_1[[#This Row],[Item ID]],DataTable,6,FALSE)-VLOOKUP(Table_Data_Table_1[[#This Row],[Item ID]],DataTable,13,FALSE),IF(Table_Data_Table_1[[#This Row],[Valuation Method]]=\"Allocation\",VLOOKUP(Table_Data_Table_1[[#This Row],[Item ID]],DataTable,6,FALSE)*I126,\"\")))","v":""},{"$f":"IF(Table_Data_Table_1[[#This Row],[Valuation Method]]=\"Vacant\",\"N/A\",IF(Table_Data_Table_1[[#This Row],[Valuation Method]]=\"Abstraction\",Table_Data_Table_1[[#This Row],[Land\nResidual]]/VLOOKUP(Table_Data_Table_1[[#This Row],[Item ID]],DataTable,6,FALSE),IF(Table_Data_Table_1[[#This Row],[Valuation Method]]=\"Allocation\",'Global Settings'!$H$20,\"\")))","v":""},{"$f":"IFERROR(ROUND(Table_Data_Table_1[[#This Row],[Resid\nSq Ft]]/43560,3),\"\")","v":""},{"$f":"IF(Table_Data_Table_1[[#This Row],[Item ID]]=\"\",\"\",IFERROR(VLOOKUP(Table_Data_Table_1[[#This Row],[Item ID]],DataTable,10,FALSE)-VLOOKUP(Table_Data_Table_1[[#This Row],[Item ID]],DataTable,12,FALSE),\"\"))","v":""},{"$f":"IFERROR(Table_Data_Table_1[[#This Row],[Land\nResidual]]/Table_Data_Table_1[[#This Row],[Resid\nAcre]],\"\")","v":""},{"$f":"IFERROR(ROUND(Table_Data_Table_1[[#This Row],[Land\nResidual]]/Table_Data_Table_1[[#This Row],[Resid\nSq Ft]],2),\"\")","v":""},{"$f":"IF(Table_Data_Table_1[[#This Row],[Item ID]]=\"\",\"\",ROUND(DAYS360(Table_Data_Table_1[[#This Row],[Sale Date]],'Global Settings'!$H$5)/30,0))","v":""},{"$f":"IFERROR(IF(AND(Table_Data_Table_1[[#This Row],[Months To\nMid-Point]]<12.01,Table_Data_Table_1[[#This Row],[Months To\nMid-Point]]>-13),0,(Table_Data_Table_1[[#This Row],[Months To\nMid-Point]]*'Global Settings'!$H$6)),\"\")","v":""},{"$f":"IFERROR(Table_Data_Table_1[[#This Row],[Land\nResidual]]*(Table_Data_Table_1[[#This Row],[Time\nAdjust]]+1),\"\")","v":""},{"$f":"IFERROR(Table_Data_Table_1[[#This Row],[Adjusted\nSale Price]]/Table_Data_Table_1[[#This Row],[Resid\nAcre]],\"\")","v":""},{"$f":"IFERROR(ROUND(Table_Data_Table_1[[#This Row],[Adjusted\nSale Price]]/Table_Data_Table_1[[#This Row],[Resid\nSq Ft]],2),\"\")","v":""},{"$f":"IFERROR(IF(VLOOKUP(Table_Data_Table_1[[#This Row],[Item ID]],DataTable,11,FALSE)=0,\"N/A\",Table_Data_Table_1[[#This Row],[Adjusted\nSale Price]]/VLOOKUP(Table_Data_Table_1[[#This Row],[Item ID]],DataTable,11,FALSE)),\"\")","v":""},{"$f":"IF(IFERROR(VLOOKUP(Table_Data_Table_1[[#This Row],[Item ID]],DataTable,17,FALSE),\"\")=0,\"\",IFERROR(VLOOKUP(Table_Data_Table_1[[#This Row],[Item ID]],DataTable,17,FALSE),\"\"))","v":""}]
["",null,{"$f":"IF(Table_Data_Table_1[[#This Row],[Item ID]]=\"\",\"\",IFERROR(VLOOKUP(Table_Data_Table_1[[#This Row],[Item ID]],DataTable,16,FALSE),\"\"))","v":""},null,null,null,null,{"$f":"IF(Table_Data_Table_1[[#This Row],[Valuation Method]]=\"Vacant\",VLOOKUP(Table_Data_Table_1[[#This Row],[Item ID]],DataTable,6,FALSE)-VLOOKUP(Table_Data_Table_1[[#This Row],[Item ID]],DataTable,13,FALSE),IF(Table_Data_Table_1[[#This Row],[Valuation Method]]=\"Abstraction\",VLOOKUP(Table_Data_Table_1[[#This Row],[Item ID]],DataTable,6,FALSE)-VLOOKUP(Table_Data_Table_1[[#This Row],[Item ID]],DataTable,13,FALSE),IF(Table_Data_Table_1[[#This Row],[Valuation Method]]=\"Allocation\",VLOOKUP(Table_Data_Table_1[[#This Row],[Item ID]],DataTable,6,FALSE)*I127,\"\")))","v":""},{"$f":"IF(Table_Data_Table_1[[#This Row],[Valuation Method]]=\"Vacant\",\"N/A\",IF(Table_Data_Table_1[[#This Row],[Valuation Method]]=\"Abstraction\",Table_Data_Table_1[[#This Row],[Land\nResidual]]/VLOOKUP(Table_Data_Table_1[[#This Row],[Item ID]],DataTable,6,FALSE),IF(Table_Data_Table_1[[#This Row],[Valuation Method]]=\"Allocation\",'Global Settings'!$H$20,\"\")))","v":""},{"$f":"IFERROR(ROUND(Table_Data_Table_1[[#This Row],[Resid\nSq Ft]]/43560,3),\"\")","v":""},{"$f":"IF(Table_Data_Table_1[[#This Row],[Item ID]]=\"\",\"\",IFERROR(VLOOKUP(Table_Data_Table_1[[#This Row],[Item ID]],DataTable,10,FALSE)-VLOOKUP(Table_Data_Table_1[[#This Row],[Item ID]],DataTable,12,FALSE),\"\"))","v":""},{"$f":"IFERROR(Table_Data_Table_1[[#This Row],[Land\nResidual]]/Table_Data_Table_1[[#This Row],[Resid\nAcre]],\"\")","v":""},{"$f":"IFERROR(ROUND(Table_Data_Table_1[[#This Row],[Land\nResidual]]/Table_Data_Table_1[[#This Row],[Resid\nSq Ft]],2),\"\")","v":""},{"$f":"IF(Table_Data_Table_1[[#This Row],[Item ID]]=\"\",\"\",ROUND(DAYS360(Table_Data_Table_1[[#This Row],[Sale Date]],'Global Settings'!$H$5)/30,0))","v":""},{"$f":"IFERROR(IF(AND(Table_Data_Table_1[[#This Row],[Months To\nMid-Point]]<12.01,Table_Data_Table_1[[#This Row],[Months To\nMid-Point]]>-13),0,(Table_Data_Table_1[[#This Row],[Months To\nMid-Point]]*'Global Settings'!$H$6)),\"\")","v":""},{"$f":"IFERROR(Table_Data_Table_1[[#This Row],[Land\nResidual]]*(Table_Data_Table_1[[#This Row],[Time\nAdjust]]+1),\"\")","v":""},{"$f":"IFERROR(Table_Data_Table_1[[#This Row],[Adjusted\nSale Price]]/Table_Data_Table_1[[#This Row],[Resid\nAcre]],\"\")","v":""},{"$f":"IFERROR(ROUND(Table_Data_Table_1[[#This Row],[Adjusted\nSale Price]]/Table_Data_Table_1[[#This Row],[Resid\nSq Ft]],2),\"\")","v":""},{"$f":"IFERROR(IF(VLOOKUP(Table_Data_Table_1[[#This Row],[Item ID]],DataTable,11,FALSE)=0,\"N/A\",Table_Data_Table_1[[#This Row],[Adjusted\nSale Price]]/VLOOKUP(Table_Data_Table_1[[#This Row],[Item ID]],DataTable,11,FALSE)),\"\")","v":""},{"$f":"IF(IFERROR(VLOOKUP(Table_Data_Table_1[[#This Row],[Item ID]],DataTable,17,FALSE),\"\")=0,\"\",IFERROR(VLOOKUP(Table_Data_Table_1[[#This Row],[Item ID]],DataTable,17,FALSE),\"\"))","v":""}]
["",null,{"$f":"IF(Table_Data_Table_1[[#This Row],[Item ID]]=\"\",\"\",IFERROR(VLOOKUP(Table_Data_Table_1[[#This Row],[Item ID]],DataTable,16,FALSE),\"\"))","v":""},null,null,null,null,{"$f":"IF(Table_Data_Table_1[[#This Row],[Valuation Method]]=\"Vacant\",VLOOKUP(Table_Data_Table_1[[#This Row],[Item ID]],DataTable,6,FALSE)-VLOOKUP(Table_Data_Table_1[[#This Row],[Item ID]],DataTable,13,FALSE),IF(Table_Data_Table_1[[#This Row],[Valuation Method]]=\"Abstraction\",VLOOKUP(Table_Data_Table_1[[#This Row],[Item ID]],DataTable,6,FALSE)-VLOOKUP(Table_Data_Table_1[[#This Row],[Item ID]],DataTable,13,FALSE),IF(Table_Data_Table_1[[#This Row],[Valuation Method]]=\"Allocation\",VLOOKUP(Table_Data_Table_1[[#This Row],[Item ID]],DataTable,6,FALSE)*I128,\"\")))","v":""},{"$f":"IF(Table_Data_Table_1[[#This Row],[Valuation Method]]=\"Vacant\",\"N/A\",IF(Table_Data_Table_1[[#This Row],[Valuation Method]]=\"Abstraction\",Table_Data_Table_1[[#This Row],[Land\nResidual]]/VLOOKUP(Table_Data_Table_1[[#This Row],[Item ID]],DataTable,6,FALSE),IF(Table_Data_Table_1[[#This Row],[Valuation Method]]=\"Allocation\",'Global Settings'!$H$20,\"\")))","v":""},{"$f":"IFERROR(ROUND(Table_Data_Table_1[[#This Row],[Resid\nSq Ft]]/43560,3),\"\")","v":""},{"$f":"IF(Table_Data_Table_1[[#This Row],[Item ID]]=\"\",\"\",IFERROR(VLOOKUP(Table_Data_Table_1[[#This Row],[Item ID]],DataTable,10,FALSE)-VLOOKUP(Table_Data_Table_1[[#This Row],[Item ID]],DataTable,12,FALSE),\"\"))","v":""},{"$f":"IFERROR(Table_Data_Table_1[[#This Row],[Land\nResidual]]/Table_Data_Table_1[[#This Row],[Resid\nAcre]],\"\")","v":""},{"$f":"IFERROR(ROUND(Table_Data_Table_1[[#This Row],[Land\nResidual]]/Table_Data_Table_1[[#This Row],[Resid\nSq Ft]],2),\"\")","v":""},{"$f":"IF(Table_Data_Table_1[[#This Row],[Item ID]]=\"\",\"\",ROUND(DAYS360(Table_Data_Table_1[[#This Row],[Sale Date]],'Global Settings'!$H$5)/30,0))","v":""},{"$f":"IFERROR(IF(AND(Table_Data_Table_1[[#This Row],[Months To\nMid-Point]]<12.01,Table_Data_Table_1[[#This Row],[Months To\nMid-Point]]>-13),0,(Table_Data_Table_1[[#This Row],[Months To\nMid-Point]]*'Global Settings'!$H$6)),\"\")","v":""},{"$f":"IFERROR(Table_Data_Table_1[[#This Row],[Land\nResidual]]*(Table_Data_Table_1[[#This Row],[Time\nAdjust]]+1),\"\")","v":""},{"$f":"IFERROR(Table_Data_Table_1[[#This Row],[Adjusted\nSale Price]]/Table_Data_Table_1[[#This Row],[Resid\nAcre]],\"\")","v":""},{"$f":"IFERROR(ROUND(Table_Data_Table_1[[#This Row],[Adjusted\nSale Price]]/Table_Data_Table_1[[#This Row],[Resid\nSq Ft]],2),\"\")","v":""},{"$f":"IFERROR(IF(VLOOKUP(Table_Data_Table_1[[#This Row],[Item ID]],DataTable,11,FALSE)=0,\"N/A\",Table_Data_Table_1[[#This Row],[Adjusted\nSale Price]]/VLOOKUP(Table_Data_Table_1[[#This Row],[Item ID]],DataTable,11,FALSE)),\"\")","v":""},{"$f":"IF(IFERROR(VLOOKUP(Table_Data_Table_1[[#This Row],[Item ID]],DataTable,17,FALSE),\"\")=0,\"\",IFERROR(VLOOKUP(Table_Data_Table_1[[#This Row],[Item ID]],DataTable,17,FALSE),\"\"))","v":""}]
["",null,{"$f":"IF(Table_Data_Table_1[[#This Row],[Item ID]]=\"\",\"\",IFERROR(VLOOKUP(Table_Data_Table_1[[#This Row],[Item ID]],DataTable,16,FALSE),\"\"))","v":""},null,null,null,null,{"$f":"IF(Table_Data_Table_1[[#This Row],[Valuation Method]]=\"Vacant\",VLOOKUP(Table_Data_Table_1[[#This Row],[Item ID]],DataTable,6,FALSE)-VLOOKUP(Table_Data_Table_1[[#This Row],[Item ID]],DataTable,13,FALSE),IF(Table_Data_Table_1[[#This Row],[Valuation Method]]=\"Abstraction\",VLOOKUP(Table_Data_Table_1[[#This Row],[Item ID]],DataTable,6,FALSE)-VLOOKUP(Table_Data_Table_1[[#This Row],[Item ID]],DataTable,13,FALSE),IF(Table_Data_Table_1[[#This Row],[Valuation Method]]=\"Allocation\",VLOOKUP(Table_Data_Table_1[[#This Row],[Item ID]],DataTable,6,FALSE)*I129,\"\")))","v":""},{"$f":"IF(Table_Data_Table_1[[#This Row],[Valuation Method]]=\"Vacant\",\"N/A\",IF(Table_Data_Table_1[[#This Row],[Valuation Method]]=\"Abstraction\",Table_Data_Table_1[[#This Row],[Land\nResidual]]/VLOOKUP(Table_Data_Table_1[[#This Row],[Item ID]],DataTable,6,FALSE),IF(Table_Data_Table_1[[#This Row],[Valuation Method]]=\"Allocation\",'Global Settings'!$H$20,\"\")))","v":""},{"$f":"IFERROR(ROUND(Table_Data_Table_1[[#This Row],[Resid\nSq Ft]]/43560,3),\"\")","v":""},{"$f":"IF(Table_Data_Table_1[[#This Row],[Item ID]]=\"\",\"\",IFERROR(VLOOKUP(Table_Data_Table_1[[#This Row],[Item ID]],DataTable,10,FALSE)-VLOOKUP(Table_Data_Table_1[[#This Row],[Item ID]],DataTable,12,FALSE),\"\"))","v":""},{"$f":"IFERROR(Table_Data_Table_1[[#This Row],[Land\nResidual]]/Table_Data_Table_1[[#This Row],[Resid\nAcre]],\"\")","v":""},{"$f":"IFERROR(ROUND(Table_Data_Table_1[[#This Row],[Land\nResidual]]/Table_Data_Table_1[[#This Row],[Resid\nSq Ft]],2),\"\")","v":""},{"$f":"IF(Table_Data_Table_1[[#This Row],[Item ID]]=\"\",\"\",ROUND(DAYS360(Table_Data_Table_1[[#This Row],[Sale Date]],'Global Settings'!$H$5)/30,0))","v":""},{"$f":"IFERROR(IF(AND(Table_Data_Table_1[[#This Row],[Months To\nMid-Point]]<12.01,Table_Data_Table_1[[#This Row],[Months To\nMid-Point]]>-13),0,(Table_Data_Table_1[[#This Row],[Months To\nMid-Point]]*'Global Settings'!$H$6)),\"\")","v":""},{"$f":"IFERROR(Table_Data_Table_1[[#This Row],[Land\nResidual]]*(Table_Data_Table_1[[#This Row],[Time\nAdjust]]+1),\"\")","v":""},{"$f":"IFERROR(Table_Data_Table_1[[#This Row],[Adjusted\nSale Price]]/Table_Data_Table_1[[#This Row],[Resid\nAcre]],\"\")","v":""},{"$f":"IFERROR(ROUND(Table_Data_Table_1[[#This Row],[Adjusted\nSale Price]]/Table_Data_Table_1[[#This Row],[Resid\nSq Ft]],2),\"\")","v":""},{"$f":"IFERROR(IF(VLOOKUP(Table_Data_Table_1[[#This Row],[Item ID]],DataTable,11,FALSE)=0,\"N/A\",Table_Data_Table_1[[#This Row],[Adjusted\nSale Price]]/VLOOKUP(Table_Data_Table_1[[#This Row],[Item ID]],DataTable,11,FALSE)),\"\")","v":""},{"$f":"IF(IFERROR(VLOOKUP(Table_Data_Table_1[[#This Row],[Item ID]],DataTable,17,FALSE),\"\")=0,\"\",IFERROR(VLOOKUP(Table_Data_Table_1[[#This Row],[Item ID]],DataTable,17,FALSE),\"\"))","v":""}]
["",null,{"$f":"IF(Table_Data_Table_1[[#This Row],[Item ID]]=\"\",\"\",IFERROR(VLOOKUP(Table_Data_Table_1[[#This Row],[Item ID]],DataTable,16,FALSE),\"\"))","v":""},null,null,null,null,{"$f":"IF(Table_Data_Table_1[[#This Row],[Valuation Method]]=\"Vacant\",VLOOKUP(Table_Data_Table_1[[#This Row],[Item ID]],DataTable,6,FALSE)-VLOOKUP(Table_Data_Table_1[[#This Row],[Item ID]],DataTable,13,FALSE),IF(Table_Data_Table_1[[#This Row],[Valuation Method]]=\"Abstraction\",VLOOKUP(Table_Data_Table_1[[#This Row],[Item ID]],DataTable,6,FALSE)-VLOOKUP(Table_Data_Table_1[[#This Row],[Item ID]],DataTable,13,FALSE),IF(Table_Data_Table_1[[#This Row],[Valuation Method]]=\"Allocation\",VLOOKUP(Table_Data_Table_1[[#This Row],[Item ID]],DataTable,6,FALSE)*I130,\"\")))","v":""},{"$f":"IF(Table_Data_Table_1[[#This Row],[Valuation Method]]=\"Vacant\",\"N/A\",IF(Table_Data_Table_1[[#This Row],[Valuation Method]]=\"Abstraction\",Table_Data_Table_1[[#This Row],[Land\nResidual]]/VLOOKUP(Table_Data_Table_1[[#This Row],[Item ID]],DataTable,6,FALSE),IF(Table_Data_Table_1[[#This Row],[Valuation Method]]=\"Allocation\",'Global Settings'!$H$20,\"\")))","v":""},{"$f":"IFERROR(ROUND(Table_Data_Table_1[[#This Row],[Resid\nSq Ft]]/43560,3),\"\")","v":""},{"$f":"IF(Table_Data_Table_1[[#This Row],[Item ID]]=\"\",\"\",IFERROR(VLOOKUP(Table_Data_Table_1[[#This Row],[Item ID]],DataTable,10,FALSE)-VLOOKUP(Table_Data_Table_1[[#This Row],[Item ID]],DataTable,12,FALSE),\"\"))","v":""},{"$f":"IFERROR(Table_Data_Table_1[[#This Row],[Land\nResidual]]/Table_Data_Table_1[[#This Row],[Resid\nAcre]],\"\")","v":""},{"$f":"IFERROR(ROUND(Table_Data_Table_1[[#This Row],[Land\nResidual]]/Table_Data_Table_1[[#This Row],[Resid\nSq Ft]],2),\"\")","v":""},{"$f":"IF(Table_Data_Table_1[[#This Row],[Item ID]]=\"\",\"\",ROUND(DAYS360(Table_Data_Table_1[[#This Row],[Sale Date]],'Global Settings'!$H$5)/30,0))","v":""},{"$f":"IFERROR(IF(AND(Table_Data_Table_1[[#This Row],[Months To\nMid-Point]]<12.01,Table_Data_Table_1[[#This Row],[Months To\nMid-Point]]>-13),0,(Table_Data_Table_1[[#This Row],[Months To\nMid-Point]]*'Global Settings'!$H$6)),\"\")","v":""},{"$f":"IFERROR(Table_Data_Table_1[[#This Row],[Land\nResidual]]*(Table_Data_Table_1[[#This Row],[Time\nAdjust]]+1),\"\")","v":""},{"$f":"IFERROR(Table_Data_Table_1[[#This Row],[Adjusted\nSale Price]]/Table_Data_Table_1[[#This Row],[Resid\nAcre]],\"\")","v":""},{"$f":"IFERROR(ROUND(Table_Data_Table_1[[#This Row],[Adjusted\nSale Price]]/Table_Data_Table_1[[#This Row],[Resid\nSq Ft]],2),\"\")","v":""},{"$f":"IFERROR(IF(VLOOKUP(Table_Data_Table_1[[#This Row],[Item ID]],DataTable,11,FALSE)=0,\"N/A\",Table_Data_Table_1[[#This Row],[Adjusted\nSale Price]]/VLOOKUP(Table_Data_Table_1[[#This Row],[Item ID]],DataTable,11,FALSE)),\"\")","v":""},{"$f":"IF(IFERROR(VLOOKUP(Table_Data_Table_1[[#This Row],[Item ID]],DataTable,17,FALSE),\"\")=0,\"\",IFERROR(VLOOKUP(Table_Data_Table_1[[#This Row],[Item ID]],DataTable,17,FALSE),\"\"))","v":""}]
["",null,{"$f":"IF(Table_Data_Table_1[[#This Row],[Item ID]]=\"\",\"\",IFERROR(VLOOKUP(Table_Data_Table_1[[#This Row],[Item ID]],DataTable,16,FALSE),\"\"))","v":""},null,null,null,null,{"$f":"IF(Table_Data_Table_1[[#This Row],[Valuation Method]]=\"Vacant\",VLOOKUP(Table_Data_Table_1[[#This Row],[Item ID]],DataTable,6,FALSE)-VLOOKUP(Table_Data_Table_1[[#This Row],[Item ID]],DataTable,13,FALSE),IF(Table_Data_Table_1[[#This Row],[Valuation Method]]=\"Abstraction\",VLOOKUP(Table_Data_Table_1[[#This Row],[Item ID]],DataTable,6,FALSE)-VLOOKUP(Table_Data_Table_1[[#This Row],[Item ID]],DataTable,13,FALSE),IF(Table_Data_Table_1[[#This Row],[Valuation Method]]=\"Allocation\",VLOOKUP(Table_Data_Table_1[[#This Row],[Item ID]],DataTable,6,FALSE)*I131,\"\")))","v":""},{"$f":"IF(Table_Data_Table_1[[#This Row],[Valuation Method]]=\"Vacant\",\"N/A\",IF(Table_Data_Table_1[[#This Row],[Valuation Method]]=\"Abstraction\",Table_Data_Table_1[[#This Row],[Land\nResidual]]/VLOOKUP(Table_Data_Table_1[[#This Row],[Item ID]],DataTable,6,FALSE),IF(Table_Data_Table_1[[#This Row],[Valuation Method]]=\"Allocation\",'Global Settings'!$H$20,\"\")))","v":""},{"$f":"IFERROR(ROUND(Table_Data_Table_1[[#This Row],[Resid\nSq Ft]]/43560,3),\"\")","v":""},{"$f":"IF(Table_Data_Table_1[[#This Row],[Item ID]]=\"\",\"\",IFERROR(VLOOKUP(Table_Data_Table_1[[#This Row],[Item ID]],DataTable,10,FALSE)-VLOOKUP(Table_Data_Table_1[[#This Row],[Item ID]],DataTable,12,FALSE),\"\"))","v":""},{"$f":"IFERROR(Table_Data_Table_1[[#This Row],[Land\nResidual]]/Table_Data_Table_1[[#This Row],[Resid\nAcre]],\"\")","v":""},{"$f":"IFERROR(ROUND(Table_Data_Table_1[[#This Row],[Land\nResidual]]/Table_Data_Table_1[[#This Row],[Resid\nSq Ft]],2),\"\")","v":""},{"$f":"IF(Table_Data_Table_1[[#This Row],[Item ID]]=\"\",\"\",ROUND(DAYS360(Table_Data_Table_1[[#This Row],[Sale Date]],'Global Settings'!$H$5)/30,0))","v":""},{"$f":"IFERROR(IF(AND(Table_Data_Table_1[[#This Row],[Months To\nMid-Point]]<12.01,Table_Data_Table_1[[#This Row],[Months To\nMid-Point]]>-13),0,(Table_Data_Table_1[[#This Row],[Months To\nMid-Point]]*'Global Settings'!$H$6)),\"\")","v":""},{"$f":"IFERROR(Table_Data_Table_1[[#This Row],[Land\nResidual]]*(Table_Data_Table_1[[#This Row],[Time\nAdjust]]+1),\"\")","v":""},{"$f":"IFERROR(Table_Data_Table_1[[#This Row],[Adjusted\nSale Price]]/Table_Data_Table_1[[#This Row],[Resid\nAcre]],\"\")","v":""},{"$f":"IFERROR(ROUND(Table_Data_Table_1[[#This Row],[Adjusted\nSale Price]]/Table_Data_Table_1[[#This Row],[Resid\nSq Ft]],2),\"\")","v":""},{"$f":"IFERROR(IF(VLOOKUP(Table_Data_Table_1[[#This Row],[Item ID]],DataTable,11,FALSE)=0,\"N/A\",Table_Data_Table_1[[#This Row],[Adjusted\nSale Price]]/VLOOKUP(Table_Data_Table_1[[#This Row],[Item ID]],DataTable,11,FALSE)),\"\")","v":""},{"$f":"IF(IFERROR(VLOOKUP(Table_Data_Table_1[[#This Row],[Item ID]],DataTable,17,FALSE),\"\")=0,\"\",IFERROR(VLOOKUP(Table_Data_Table_1[[#This Row],[Item ID]],DataTable,17,FALSE),\"\"))","v":""}]
["",null,{"$f":"IF(Table_Data_Table_1[[#This Row],[Item ID]]=\"\",\"\",IFERROR(VLOOKUP(Table_Data_Table_1[[#This Row],[Item ID]],DataTable,16,FALSE),\"\"))","v":""},null,null,null,null,{"$f":"IF(Table_Data_Table_1[[#This Row],[Valuation Method]]=\"Vacant\",VLOOKUP(Table_Data_Table_1[[#This Row],[Item ID]],DataTable,6,FALSE)-VLOOKUP(Table_Data_Table_1[[#This Row],[Item ID]],DataTable,13,FALSE),IF(Table_Data_Table_1[[#This Row],[Valuation Method]]=\"Abstraction\",VLOOKUP(Table_Data_Table_1[[#This Row],[Item ID]],DataTable,6,FALSE)-VLOOKUP(Table_Data_Table_1[[#This Row],[Item ID]],DataTable,13,FALSE),IF(Table_Data_Table_1[[#This Row],[Valuation Method]]=\"Allocation\",VLOOKUP(Table_Data_Table_1[[#This Row],[Item ID]],DataTable,6,FALSE)*I132,\"\")))","v":""},{"$f":"IF(Table_Data_Table_1[[#This Row],[Valuation Method]]=\"Vacant\",\"N/A\",IF(Table_Data_Table_1[[#This Row],[Valuation Method]]=\"Abstraction\",Table_Data_Table_1[[#This Row],[Land\nResidual]]/VLOOKUP(Table_Data_Table_1[[#This Row],[Item ID]],DataTable,6,FALSE),IF(Table_Data_Table_1[[#This Row],[Valuation Method]]=\"Allocation\",'Global Settings'!$H$20,\"\")))","v":""},{"$f":"IFERROR(ROUND(Table_Data_Table_1[[#This Row],[Resid\nSq Ft]]/43560,3),\"\")","v":""},{"$f":"IF(Table_Data_Table_1[[#This Row],[Item ID]]=\"\",\"\",IFERROR(VLOOKUP(Table_Data_Table_1[[#This Row],[Item ID]],DataTable,10,FALSE)-VLOOKUP(Table_Data_Table_1[[#This Row],[Item ID]],DataTable,12,FALSE),\"\"))","v":""},{"$f":"IFERROR(Table_Data_Table_1[[#This Row],[Land\nResidual]]/Table_Data_Table_1[[#This Row],[Resid\nAcre]],\"\")","v":""},{"$f":"IFERROR(ROUND(Table_Data_Table_1[[#This Row],[Land\nResidual]]/Table_Data_Table_1[[#This Row],[Resid\nSq Ft]],2),\"\")","v":""},{"$f":"IF(Table_Data_Table_1[[#This Row],[Item ID]]=\"\",\"\",ROUND(DAYS360(Table_Data_Table_1[[#This Row],[Sale Date]],'Global Settings'!$H$5)/30,0))","v":""},{"$f":"IFERROR(IF(AND(Table_Data_Table_1[[#This Row],[Months To\nMid-Point]]<12.01,Table_Data_Table_1[[#This Row],[Months To\nMid-Point]]>-13),0,(Table_Data_Table_1[[#This Row],[Months To\nMid-Point]]*'Global Settings'!$H$6)),\"\")","v":""},{"$f":"IFERROR(Table_Data_Table_1[[#This Row],[Land\nResidual]]*(Table_Data_Table_1[[#This Row],[Time\nAdjust]]+1),\"\")","v":""},{"$f":"IFERROR(Table_Data_Table_1[[#This Row],[Adjusted\nSale Price]]/Table_Data_Table_1[[#This Row],[Resid\nAcre]],\"\")","v":""},{"$f":"IFERROR(ROUND(Table_Data_Table_1[[#This Row],[Adjusted\nSale Price]]/Table_Data_Table_1[[#This Row],[Resid\nSq Ft]],2),\"\")","v":""},{"$f":"IFERROR(IF(VLOOKUP(Table_Data_Table_1[[#This Row],[Item ID]],DataTable,11,FALSE)=0,\"N/A\",Table_Data_Table_1[[#This Row],[Adjusted\nSale Price]]/VLOOKUP(Table_Data_Table_1[[#This Row],[Item ID]],DataTable,11,FALSE)),\"\")","v":""},{"$f":"IF(IFERROR(VLOOKUP(Table_Data_Table_1[[#This Row],[Item ID]],DataTable,17,FALSE),\"\")=0,\"\",IFERROR(VLOOKUP(Table_Data_Table_1[[#This Row],[Item ID]],DataTable,17,FALSE),\"\"))","v":""}]
["",null,{"$f":"IF(Table_Data_Table_1[[#This Row],[Item ID]]=\"\",\"\",IFERROR(VLOOKUP(Table_Data_Table_1[[#This Row],[Item ID]],DataTable,16,FALSE),\"\"))","v":""},null,null,null,null,{"$f":"IF(Table_Data_Table_1[[#This Row],[Valuation Method]]=\"Vacant\",VLOOKUP(Table_Data_Table_1[[#This Row],[Item ID]],DataTable,6,FALSE)-VLOOKUP(Table_Data_Table_1[[#This Row],[Item ID]],DataTable,13,FALSE),IF(Table_Data_Table_1[[#This Row],[Valuation Method]]=\"Abstraction\",VLOOKUP(Table_Data_Table_1[[#This Row],[Item ID]],DataTable,6,FALSE)-VLOOKUP(Table_Data_Table_1[[#This Row],[Item ID]],DataTable,13,FALSE),IF(Table_Data_Table_1[[#This Row],[Valuation Method]]=\"Allocation\",VLOOKUP(Table_Data_Table_1[[#This Row],[Item ID]],DataTable,6,FALSE)*I133,\"\")))","v":""},{"$f":"IF(Table_Data_Table_1[[#This Row],[Valuation Method]]=\"Vacant\",\"N/A\",IF(Table_Data_Table_1[[#This Row],[Valuation Method]]=\"Abstraction\",Table_Data_Table_1[[#This Row],[Land\nResidual]]/VLOOKUP(Table_Data_Table_1[[#This Row],[Item ID]],DataTable,6,FALSE),IF(Table_Data_Table_1[[#This Row],[Valuation Method]]=\"Allocation\",'Global Settings'!$H$20,\"\")))","v":""},{"$f":"IFERROR(ROUND(Table_Data_Table_1[[#This Row],[Resid\nSq Ft]]/43560,3),\"\")","v":""},{"$f":"IF(Table_Data_Table_1[[#This Row],[Item ID]]=\"\",\"\",IFERROR(VLOOKUP(Table_Data_Table_1[[#This Row],[Item ID]],DataTable,10,FALSE)-VLOOKUP(Table_Data_Table_1[[#This Row],[Item ID]],DataTable,12,FALSE),\"\"))","v":""},{"$f":"IFERROR(Table_Data_Table_1[[#This Row],[Land\nResidual]]/Table_Data_Table_1[[#This Row],[Resid\nAcre]],\"\")","v":""},{"$f":"IFERROR(ROUND(Table_Data_Table_1[[#This Row],[Land\nResidual]]/Table_Data_Table_1[[#This Row],[Resid\nSq Ft]],2),\"\")","v":""},{"$f":"IF(Table_Data_Table_1[[#This Row],[Item ID]]=\"\",\"\",ROUND(DAYS360(Table_Data_Table_1[[#This Row],[Sale Date]],'Global Settings'!$H$5)/30,0))","v":""},{"$f":"IFERROR(IF(AND(Table_Data_Table_1[[#This Row],[Months To\nMid-Point]]<12.01,Table_Data_Table_1[[#This Row],[Months To\nMid-Point]]>-13),0,(Table_Data_Table_1[[#This Row],[Months To\nMid-Point]]*'Global Settings'!$H$6)),\"\")","v":""},{"$f":"IFERROR(Table_Data_Table_1[[#This Row],[Land\nResidual]]*(Table_Data_Table_1[[#This Row],[Time\nAdjust]]+1),\"\")","v":""},{"$f":"IFERROR(Table_Data_Table_1[[#This Row],[Adjusted\nSale Price]]/Table_Data_Table_1[[#This Row],[Resid\nAcre]],\"\")","v":""},{"$f":"IFERROR(ROUND(Table_Data_Table_1[[#This Row],[Adjusted\nSale Price]]/Table_Data_Table_1[[#This Row],[Resid\nSq Ft]],2),\"\")","v":""},{"$f":"IFERROR(IF(VLOOKUP(Table_Data_Table_1[[#This Row],[Item ID]],DataTable,11,FALSE)=0,\"N/A\",Table_Data_Table_1[[#This Row],[Adjusted\nSale Price]]/VLOOKUP(Table_Data_Table_1[[#This Row],[Item ID]],DataTable,11,FALSE)),\"\")","v":""},{"$f":"IF(IFERROR(VLOOKUP(Table_Data_Table_1[[#This Row],[Item ID]],DataTable,17,FALSE),\"\")=0,\"\",IFERROR(VLOOKUP(Table_Data_Table_1[[#This Row],[Item ID]],DataTable,17,FALSE),\"\"))","v":""}]
["",null,{"$f":"IF(Table_Data_Table_1[[#This Row],[Item ID]]=\"\",\"\",IFERROR(VLOOKUP(Table_Data_Table_1[[#This Row],[Item ID]],DataTable,16,FALSE),\"\"))","v":""},null,null,null,null,{"$f":"IF(Table_Data_Table_1[[#This Row],[Valuation Method]]=\"Vacant\",VLOOKUP(Table_Data_Table_1[[#This Row],[Item ID]],DataTable,6,FALSE)-VLOOKUP(Table_Data_Table_1[[#This Row],[Item ID]],DataTable,13,FALSE),IF(Table_Data_Table_1[[#This Row],[Valuation Method]]=\"Abstraction\",VLOOKUP(Table_Data_Table_1[[#This Row],[Item ID]],DataTable,6,FALSE)-VLOOKUP(Table_Data_Table_1[[#This Row],[Item ID]],DataTable,13,FALSE),IF(Table_Data_Table_1[[#This Row],[Valuation Method]]=\"Allocation\",VLOOKUP(Table_Data_Table_1[[#This Row],[Item ID]],DataTable,6,FALSE)*I134,\"\")))","v":""},{"$f":"IF(Table_Data_Table_1[[#This Row],[Valuation Method]]=\"Vacant\",\"N/A\",IF(Table_Data_Table_1[[#This Row],[Valuation Method]]=\"Abstraction\",Table_Data_Table_1[[#This Row],[Land\nResidual]]/VLOOKUP(Table_Data_Table_1[[#This Row],[Item ID]],DataTable,6,FALSE),IF(Table_Data_Table_1[[#This Row],[Valuation Method]]=\"Allocation\",'Global Settings'!$H$20,\"\")))","v":""},{"$f":"IFERROR(ROUND(Table_Data_Table_1[[#This Row],[Resid\nSq Ft]]/43560,3),\"\")","v":""},{"$f":"IF(Table_Data_Table_1[[#This Row],[Item ID]]=\"\",\"\",IFERROR(VLOOKUP(Table_Data_Table_1[[#This Row],[Item ID]],DataTable,10,FALSE)-VLOOKUP(Table_Data_Table_1[[#This Row],[Item ID]],DataTable,12,FALSE),\"\"))","v":""},{"$f":"IFERROR(Table_Data_Table_1[[#This Row],[Land\nResidual]]/Table_Data_Table_1[[#This Row],[Resid\nAcre]],\"\")","v":""},{"$f":"IFERROR(ROUND(Table_Data_Table_1[[#This Row],[Land\nResidual]]/Table_Data_Table_1[[#This Row],[Resid\nSq Ft]],2),\"\")","v":""},{"$f":"IF(Table_Data_Table_1[[#This Row],[Item ID]]=\"\",\"\",ROUND(DAYS360(Table_Data_Table_1[[#This Row],[Sale Date]],'Global Settings'!$H$5)/30,0))","v":""},{"$f":"IFERROR(IF(AND(Table_Data_Table_1[[#This Row],[Months To\nMid-Point]]<12.01,Table_Data_Table_1[[#This Row],[Months To\nMid-Point]]>-13),0,(Table_Data_Table_1[[#This Row],[Months To\nMid-Point]]*'Global Settings'!$H$6)),\"\")","v":""},{"$f":"IFERROR(Table_Data_Table_1[[#This Row],[Land\nResidual]]*(Table_Data_Table_1[[#This Row],[Time\nAdjust]]+1),\"\")","v":""},{"$f":"IFERROR(Table_Data_Table_1[[#This Row],[Adjusted\nSale Price]]/Table_Data_Table_1[[#This Row],[Resid\nAcre]],\"\")","v":""},{"$f":"IFERROR(ROUND(Table_Data_Table_1[[#This Row],[Adjusted\nSale Price]]/Table_Data_Table_1[[#This Row],[Resid\nSq Ft]],2),\"\")","v":""},{"$f":"IFERROR(IF(VLOOKUP(Table_Data_Table_1[[#This Row],[Item ID]],DataTable,11,FALSE)=0,\"N/A\",Table_Data_Table_1[[#This Row],[Adjusted\nSale Price]]/VLOOKUP(Table_Data_Table_1[[#This Row],[Item ID]],DataTable,11,FALSE)),\"\")","v":""},{"$f":"IF(IFERROR(VLOOKUP(Table_Data_Table_1[[#This Row],[Item ID]],DataTable,17,FALSE),\"\")=0,\"\",IFERROR(VLOOKUP(Table_Data_Table_1[[#This Row],[Item ID]],DataTable,17,FALSE),\"\"))","v":""}]
["",null,{"$f":"IF(Table_Data_Table_1[[#This Row],[Item ID]]=\"\",\"\",IFERROR(VLOOKUP(Table_Data_Table_1[[#This Row],[Item ID]],DataTable,16,FALSE),\"\"))","v":""},null,null,null,null,{"$f":"IF(Table_Data_Table_1[[#This Row],[Valuation Method]]=\"Vacant\",VLOOKUP(Table_Data_Table_1[[#This Row],[Item ID]],DataTable,6,FALSE)-VLOOKUP(Table_Data_Table_1[[#This Row],[Item ID]],DataTable,13,FALSE),IF(Table_Data_Table_1[[#This Row],[Valuation Method]]=\"Abstraction\",VLOOKUP(Table_Data_Table_1[[#This Row],[Item ID]],DataTable,6,FALSE)-VLOOKUP(Table_Data_Table_1[[#This Row],[Item ID]],DataTable,13,FALSE),IF(Table_Data_Table_1[[#This Row],[Valuation Method]]=\"Allocation\",VLOOKUP(Table_Data_Table_1[[#This Row],[Item ID]],DataTable,6,FALSE)*I135,\"\")))","v":""},{"$f":"IF(Table_Data_Table_1[[#This Row],[Valuation Method]]=\"Vacant\",\"N/A\",IF(Table_Data_Table_1[[#This Row],[Valuation Method]]=\"Abstraction\",Table_Data_Table_1[[#This Row],[Land\nResidual]]/VLOOKUP(Table_Data_Table_1[[#This Row],[Item ID]],DataTable,6,FALSE),IF(Table_Data_Table_1[[#This Row],[Valuation Method]]=\"Allocation\",'Global Settings'!$H$20,\"\")))","v":""},{"$f":"IFERROR(ROUND(Table_Data_Table_1[[#This Row],[Resid\nSq Ft]]/43560,3),\"\")","v":""},{"$f":"IF(Table_Data_Table_1[[#This Row],[Item ID]]=\"\",\"\",IFERROR(VLOOKUP(Table_Data_Table_1[[#This Row],[Item ID]],DataTable,10,FALSE)-VLOOKUP(Table_Data_Table_1[[#This Row],[Item ID]],DataTable,12,FALSE),\"\"))","v":""},{"$f":"IFERROR(Table_Data_Table_1[[#This Row],[Land\nResidual]]/Table_Data_Table_1[[#This Row],[Resid\nAcre]],\"\")","v":""},{"$f":"IFERROR(ROUND(Table_Data_Table_1[[#This Row],[Land\nResidual]]/Table_Data_Table_1[[#This Row],[Resid\nSq Ft]],2),\"\")","v":""},{"$f":"IF(Table_Data_Table_1[[#This Row],[Item ID]]=\"\",\"\",ROUND(DAYS360(Table_Data_Table_1[[#This Row],[Sale Date]],'Global Settings'!$H$5)/30,0))","v":""},{"$f":"IFERROR(IF(AND(Table_Data_Table_1[[#This Row],[Months To\nMid-Point]]<12.01,Table_Data_Table_1[[#This Row],[Months To\nMid-Point]]>-13),0,(Table_Data_Table_1[[#This Row],[Months To\nMid-Point]]*'Global Settings'!$H$6)),\"\")","v":""},{"$f":"IFERROR(Table_Data_Table_1[[#This Row],[Land\nResidual]]*(Table_Data_Table_1[[#This Row],[Time\nAdjust]]+1),\"\")","v":""},{"$f":"IFERROR(Table_Data_Table_1[[#This Row],[Adjusted\nSale Price]]/Table_Data_Table_1[[#This Row],[Resid\nAcre]],\"\")","v":""},{"$f":"IFERROR(ROUND(Table_Data_Table_1[[#This Row],[Adjusted\nSale Price]]/Table_Data_Table_1[[#This Row],[Resid\nSq Ft]],2),\"\")","v":""},{"$f":"IFERROR(IF(VLOOKUP(Table_Data_Table_1[[#This Row],[Item ID]],DataTable,11,FALSE)=0,\"N/A\",Table_Data_Table_1[[#This Row],[Adjusted\nSale Price]]/VLOOKUP(Table_Data_Table_1[[#This Row],[Item ID]],DataTable,11,FALSE)),\"\")","v":""},{"$f":"IF(IFERROR(VLOOKUP(Table_Data_Table_1[[#This Row],[Item ID]],DataTable,17,FALSE),\"\")=0,\"\",IFERROR(VLOOKUP(Table_Data_Table_1[[#This Row],[Item ID]],DataTable,17,FALSE),\"\"))","v":""}]
["",null,{"$f":"IF(Table_Data_Table_1[[#This Row],[Item ID]]=\"\",\"\",IFERROR(VLOOKUP(Table_Data_Table_1[[#This Row],[Item ID]],DataTable,16,FALSE),\"\"))","v":""},null,null,null,null,{"$f":"IF(Table_Data_Table_1[[#This Row],[Valuation Method]]=\"Vacant\",VLOOKUP(Table_Data_Table_1[[#This Row],[Item ID]],DataTable,6,FALSE)-VLOOKUP(Table_Data_Table_1[[#This Row],[Item ID]],DataTable,13,FALSE),IF(Table_Data_Table_1[[#This Row],[Valuation Method]]=\"Abstraction\",VLOOKUP(Table_Data_Table_1[[#This Row],[Item ID]],DataTable,6,FALSE)-VLOOKUP(Table_Data_Table_1[[#This Row],[Item ID]],DataTable,13,FALSE),IF(Table_Data_Table_1[[#This Row],[Valuation Method]]=\"Allocation\",VLOOKUP(Table_Data_Table_1[[#This Row],[Item ID]],DataTable,6,FALSE)*I136,\"\")))","v":""},{"$f":"IF(Table_Data_Table_1[[#This Row],[Valuation Method]]=\"Vacant\",\"N/A\",IF(Table_Data_Table_1[[#This Row],[Valuation Method]]=\"Abstraction\",Table_Data_Table_1[[#This Row],[Land\nResidual]]/VLOOKUP(Table_Data_Table_1[[#This Row],[Item ID]],DataTable,6,FALSE),IF(Table_Data_Table_1[[#This Row],[Valuation Method]]=\"Allocation\",'Global Settings'!$H$20,\"\")))","v":""},{"$f":"IFERROR(ROUND(Table_Data_Table_1[[#This Row],[Resid\nSq Ft]]/43560,3),\"\")","v":""},{"$f":"IF(Table_Data_Table_1[[#This Row],[Item ID]]=\"\",\"\",IFERROR(VLOOKUP(Table_Data_Table_1[[#This Row],[Item ID]],DataTable,10,FALSE)-VLOOKUP(Table_Data_Table_1[[#This Row],[Item ID]],DataTable,12,FALSE),\"\"))","v":""},{"$f":"IFERROR(Table_Data_Table_1[[#This Row],[Land\nResidual]]/Table_Data_Table_1[[#This Row],[Resid\nAcre]],\"\")","v":""},{"$f":"IFERROR(ROUND(Table_Data_Table_1[[#This Row],[Land\nResidual]]/Table_Data_Table_1[[#This Row],[Resid\nSq Ft]],2),\"\")","v":""},{"$f":"IF(Table_Data_Table_1[[#This Row],[Item ID]]=\"\",\"\",ROUND(DAYS360(Table_Data_Table_1[[#This Row],[Sale Date]],'Global Settings'!$H$5)/30,0))","v":""},{"$f":"IFERROR(IF(AND(Table_Data_Table_1[[#This Row],[Months To\nMid-Point]]<12.01,Table_Data_Table_1[[#This Row],[Months To\nMid-Point]]>-13),0,(Table_Data_Table_1[[#This Row],[Months To\nMid-Point]]*'Global Settings'!$H$6)),\"\")","v":""},{"$f":"IFERROR(Table_Data_Table_1[[#This Row],[Land\nResidual]]*(Table_Data_Table_1[[#This Row],[Time\nAdjust]]+1),\"\")","v":""},{"$f":"IFERROR(Table_Data_Table_1[[#This Row],[Adjusted\nSale Price]]/Table_Data_Table_1[[#This Row],[Resid\nAcre]],\"\")","v":""},{"$f":"IFERROR(ROUND(Table_Data_Table_1[[#This Row],[Adjusted\nSale Price]]/Table_Data_Table_1[[#This Row],[Resid\nSq Ft]],2),\"\")","v":""},{"$f":"IFERROR(IF(VLOOKUP(Table_Data_Table_1[[#This Row],[Item ID]],DataTable,11,FALSE)=0,\"N/A\",Table_Data_Table_1[[#This Row],[Adjusted\nSale Price]]/VLOOKUP(Table_Data_Table_1[[#This Row],[Item ID]],DataTable,11,FALSE)),\"\")","v":""},{"$f":"IF(IFERROR(VLOOKUP(Table_Data_Table_1[[#This Row],[Item ID]],DataTable,17,FALSE),\"\")=0,\"\",IFERROR(VLOOKUP(Table_Data_Table_1[[#This Row],[Item ID]],DataTable,17,FALSE),\"\"))","v":""}]
["",null,{"$f":"IF(Table_Data_Table_1[[#This Row],[Item ID]]=\"\",\"\",IFERROR(VLOOKUP(Table_Data_Table_1[[#This Row],[Item ID]],DataTable,16,FALSE),\"\"))","v":""},null,null,null,null,{"$f":"IF(Table_Data_Table_1[[#This Row],[Valuation Method]]=\"Vacant\",VLOOKUP(Table_Data_Table_1[[#This Row],[Item ID]],DataTable,6,FALSE)-VLOOKUP(Table_Data_Table_1[[#This Row],[Item ID]],DataTable,13,FALSE),IF(Table_Data_Table_1[[#This Row],[Valuation Method]]=\"Abstraction\",VLOOKUP(Table_Data_Table_1[[#This Row],[Item ID]],DataTable,6,FALSE)-VLOOKUP(Table_Data_Table_1[[#This Row],[Item ID]],DataTable,13,FALSE),IF(Table_Data_Table_1[[#This Row],[Valuation Method]]=\"Allocation\",VLOOKUP(Table_Data_Table_1[[#This Row],[Item ID]],DataTable,6,FALSE)*I137,\"\")))","v":""},{"$f":"IF(Table_Data_Table_1[[#This Row],[Valuation Method]]=\"Vacant\",\"N/A\",IF(Table_Data_Table_1[[#This Row],[Valuation Method]]=\"Abstraction\",Table_Data_Table_1[[#This Row],[Land\nResidual]]/VLOOKUP(Table_Data_Table_1[[#This Row],[Item ID]],DataTable,6,FALSE),IF(Table_Data_Table_1[[#This Row],[Valuation Method]]=\"Allocation\",'Global Settings'!$H$20,\"\")))","v":""},{"$f":"IFERROR(ROUND(Table_Data_Table_1[[#This Row],[Resid\nSq Ft]]/43560,3),\"\")","v":""},{"$f":"IF(Table_Data_Table_1[[#This Row],[Item ID]]=\"\",\"\",IFERROR(VLOOKUP(Table_Data_Table_1[[#This Row],[Item ID]],DataTable,10,FALSE)-VLOOKUP(Table_Data_Table_1[[#This Row],[Item ID]],DataTable,12,FALSE),\"\"))","v":""},{"$f":"IFERROR(Table_Data_Table_1[[#This Row],[Land\nResidual]]/Table_Data_Table_1[[#This Row],[Resid\nAcre]],\"\")","v":""},{"$f":"IFERROR(ROUND(Table_Data_Table_1[[#This Row],[Land\nResidual]]/Table_Data_Table_1[[#This Row],[Resid\nSq Ft]],2),\"\")","v":""},{"$f":"IF(Table_Data_Table_1[[#This Row],[Item ID]]=\"\",\"\",ROUND(DAYS360(Table_Data_Table_1[[#This Row],[Sale Date]],'Global Settings'!$H$5)/30,0))","v":""},{"$f":"IFERROR(IF(AND(Table_Data_Table_1[[#This Row],[Months To\nMid-Point]]<12.01,Table_Data_Table_1[[#This Row],[Months To\nMid-Point]]>-13),0,(Table_Data_Table_1[[#This Row],[Months To\nMid-Point]]*'Global Settings'!$H$6)),\"\")","v":""},{"$f":"IFERROR(Table_Data_Table_1[[#This Row],[Land\nResidual]]*(Table_Data_Table_1[[#This Row],[Time\nAdjust]]+1),\"\")","v":""},{"$f":"IFERROR(Table_Data_Table_1[[#This Row],[Adjusted\nSale Price]]/Table_Data_Table_1[[#This Row],[Resid\nAcre]],\"\")","v":""},{"$f":"IFERROR(ROUND(Table_Data_Table_1[[#This Row],[Adjusted\nSale Price]]/Table_Data_Table_1[[#This Row],[Resid\nSq Ft]],2),\"\")","v":""},{"$f":"IFERROR(IF(VLOOKUP(Table_Data_Table_1[[#This Row],[Item ID]],DataTable,11,FALSE)=0,\"N/A\",Table_Data_Table_1[[#This Row],[Adjusted\nSale Price]]/VLOOKUP(Table_Data_Table_1[[#This Row],[Item ID]],DataTable,11,FALSE)),\"\")","v":""},{"$f":"IF(IFERROR(VLOOKUP(Table_Data_Table_1[[#This Row],[Item ID]],DataTable,17,FALSE),\"\")=0,\"\",IFERROR(VLOOKUP(Table_Data_Table_1[[#This Row],[Item ID]],DataTable,17,FALSE),\"\"))","v":""}]
["",null,{"$f":"IF(Table_Data_Table_1[[#This Row],[Item ID]]=\"\",\"\",IFERROR(VLOOKUP(Table_Data_Table_1[[#This Row],[Item ID]],DataTable,16,FALSE),\"\"))","v":""},null,null,null,null,{"$f":"IF(Table_Data_Table_1[[#This Row],[Valuation Method]]=\"Vacant\",VLOOKUP(Table_Data_Table_1[[#This Row],[Item ID]],DataTable,6,FALSE)-VLOOKUP(Table_Data_Table_1[[#This Row],[Item ID]],DataTable,13,FALSE),IF(Table_Data_Table_1[[#This Row],[Valuation Method]]=\"Abstraction\",VLOOKUP(Table_Data_Table_1[[#This Row],[Item ID]],DataTable,6,FALSE)-VLOOKUP(Table_Data_Table_1[[#This Row],[Item ID]],DataTable,13,FALSE),IF(Table_Data_Table_1[[#This Row],[Valuation Method]]=\"Allocation\",VLOOKUP(Table_Data_Table_1[[#This Row],[Item ID]],DataTable,6,FALSE)*I138,\"\")))","v":""},{"$f":"IF(Table_Data_Table_1[[#This Row],[Valuation Method]]=\"Vacant\",\"N/A\",IF(Table_Data_Table_1[[#This Row],[Valuation Method]]=\"Abstraction\",Table_Data_Table_1[[#This Row],[Land\nResidual]]/VLOOKUP(Table_Data_Table_1[[#This Row],[Item ID]],DataTable,6,FALSE),IF(Table_Data_Table_1[[#This Row],[Valuation Method]]=\"Allocation\",'Global Settings'!$H$20,\"\")))","v":""},{"$f":"IFERROR(ROUND(Table_Data_Table_1[[#This Row],[Resid\nSq Ft]]/43560,3),\"\")","v":""},{"$f":"IF(Table_Data_Table_1[[#This Row],[Item ID]]=\"\",\"\",IFERROR(VLOOKUP(Table_Data_Table_1[[#This Row],[Item ID]],DataTable,10,FALSE)-VLOOKUP(Table_Data_Table_1[[#This Row],[Item ID]],DataTable,12,FALSE),\"\"))","v":""},{"$f":"IFERROR(Table_Data_Table_1[[#This Row],[Land\nResidual]]/Table_Data_Table_1[[#This Row],[Resid\nAcre]],\"\")","v":""},{"$f":"IFERROR(ROUND(Table_Data_Table_1[[#This Row],[Land\nResidual]]/Table_Data_Table_1[[#This Row],[Resid\nSq Ft]],2),\"\")","v":""},{"$f":"IF(Table_Data_Table_1[[#This Row],[Item ID]]=\"\",\"\",ROUND(DAYS360(Table_Data_Table_1[[#This Row],[Sale Date]],'Global Settings'!$H$5)/30,0))","v":""},{"$f":"IFERROR(IF(AND(Table_Data_Table_1[[#This Row],[Months To\nMid-Point]]<12.01,Table_Data_Table_1[[#This Row],[Months To\nMid-Point]]>-13),0,(Table_Data_Table_1[[#This Row],[Months To\nMid-Point]]*'Global Settings'!$H$6)),\"\")","v":""},{"$f":"IFERROR(Table_Data_Table_1[[#This Row],[Land\nResidual]]*(Table_Data_Table_1[[#This Row],[Time\nAdjust]]+1),\"\")","v":""},{"$f":"IFERROR(Table_Data_Table_1[[#This Row],[Adjusted\nSale Price]]/Table_Data_Table_1[[#This Row],[Resid\nAcre]],\"\")","v":""},{"$f":"IFERROR(ROUND(Table_Data_Table_1[[#This Row],[Adjusted\nSale Price]]/Table_Data_Table_1[[#This Row],[Resid\nSq Ft]],2),\"\")","v":""},{"$f":"IFERROR(IF(VLOOKUP(Table_Data_Table_1[[#This Row],[Item ID]],DataTable,11,FALSE)=0,\"N/A\",Table_Data_Table_1[[#This Row],[Adjusted\nSale Price]]/VLOOKUP(Table_Data_Table_1[[#This Row],[Item ID]],DataTable,11,FALSE)),\"\")","v":""},{"$f":"IF(IFERROR(VLOOKUP(Table_Data_Table_1[[#This Row],[Item ID]],DataTable,17,FALSE),\"\")=0,\"\",IFERROR(VLOOKUP(Table_Data_Table_1[[#This Row],[Item ID]],DataTable,17,FALSE),\"\"))","v":""}]
["",null,{"$f":"IF(Table_Data_Table_1[[#This Row],[Item ID]]=\"\",\"\",IFERROR(VLOOKUP(Table_Data_Table_1[[#This Row],[Item ID]],DataTable,16,FALSE),\"\"))","v":""},null,null,null,null,{"$f":"IF(Table_Data_Table_1[[#This Row],[Valuation Method]]=\"Vacant\",VLOOKUP(Table_Data_Table_1[[#This Row],[Item ID]],DataTable,6,FALSE)-VLOOKUP(Table_Data_Table_1[[#This Row],[Item ID]],DataTable,13,FALSE),IF(Table_Data_Table_1[[#This Row],[Valuation Method]]=\"Abstraction\",VLOOKUP(Table_Data_Table_1[[#This Row],[Item ID]],DataTable,6,FALSE)-VLOOKUP(Table_Data_Table_1[[#This Row],[Item ID]],DataTable,13,FALSE),IF(Table_Data_Table_1[[#This Row],[Valuation Method]]=\"Allocation\",VLOOKUP(Table_Data_Table_1[[#This Row],[Item ID]],DataTable,6,FALSE)*I139,\"\")))","v":""},{"$f":"IF(Table_Data_Table_1[[#This Row],[Valuation Method]]=\"Vacant\",\"N/A\",IF(Table_Data_Table_1[[#This Row],[Valuation Method]]=\"Abstraction\",Table_Data_Table_1[[#This Row],[Land\nResidual]]/VLOOKUP(Table_Data_Table_1[[#This Row],[Item ID]],DataTable,6,FALSE),IF(Table_Data_Table_1[[#This Row],[Valuation Method]]=\"Allocation\",'Global Settings'!$H$20,\"\")))","v":""},{"$f":"IFERROR(ROUND(Table_Data_Table_1[[#This Row],[Resid\nSq Ft]]/43560,3),\"\")","v":""},{"$f":"IF(Table_Data_Table_1[[#This Row],[Item ID]]=\"\",\"\",IFERROR(VLOOKUP(Table_Data_Table_1[[#This Row],[Item ID]],DataTable,10,FALSE)-VLOOKUP(Table_Data_Table_1[[#This Row],[Item ID]],DataTable,12,FALSE),\"\"))","v":""},{"$f":"IFERROR(Table_Data_Table_1[[#This Row],[Land\nResidual]]/Table_Data_Table_1[[#This Row],[Resid\nAcre]],\"\")","v":""},{"$f":"IFERROR(ROUND(Table_Data_Table_1[[#This Row],[Land\nResidual]]/Table_Data_Table_1[[#This Row],[Resid\nSq Ft]],2),\"\")","v":""},{"$f":"IF(Table_Data_Table_1[[#This Row],[Item ID]]=\"\",\"\",ROUND(DAYS360(Table_Data_Table_1[[#This Row],[Sale Date]],'Global Settings'!$H$5)/30,0))","v":""},{"$f":"IFERROR(IF(AND(Table_Data_Table_1[[#This Row],[Months To\nMid-Point]]<12.01,Table_Data_Table_1[[#This Row],[Months To\nMid-Point]]>-13),0,(Table_Data_Table_1[[#This Row],[Months To\nMid-Point]]*'Global Settings'!$H$6)),\"\")","v":""},{"$f":"IFERROR(Table_Data_Table_1[[#This Row],[Land\nResidual]]*(Table_Data_Table_1[[#This Row],[Time\nAdjust]]+1),\"\")","v":""},{"$f":"IFERROR(Table_Data_Table_1[[#This Row],[Adjusted\nSale Price]]/Table_Data_Table_1[[#This Row],[Resid\nAcre]],\"\")","v":""},{"$f":"IFERROR(ROUND(Table_Data_Table_1[[#This Row],[Adjusted\nSale Price]]/Table_Data_Table_1[[#This Row],[Resid\nSq Ft]],2),\"\")","v":""},{"$f":"IFERROR(IF(VLOOKUP(Table_Data_Table_1[[#This Row],[Item ID]],DataTable,11,FALSE)=0,\"N/A\",Table_Data_Table_1[[#This Row],[Adjusted\nSale Price]]/VLOOKUP(Table_Data_Table_1[[#This Row],[Item ID]],DataTable,11,FALSE)),\"\")","v":""},{"$f":"IF(IFERROR(VLOOKUP(Table_Data_Table_1[[#This Row],[Item ID]],DataTable,17,FALSE),\"\")=0,\"\",IFERROR(VLOOKUP(Table_Data_Table_1[[#This Row],[Item ID]],DataTable,17,FALSE),\"\"))","v":""}]
["",null,{"$f":"IF(Table_Data_Table_1[[#This Row],[Item ID]]=\"\",\"\",IFERROR(VLOOKUP(Table_Data_Table_1[[#This Row],[Item ID]],DataTable,16,FALSE),\"\"))","v":""},null,null,null,null,{"$f":"IF(Table_Data_Table_1[[#This Row],[Valuation Method]]=\"Vacant\",VLOOKUP(Table_Data_Table_1[[#This Row],[Item ID]],DataTable,6,FALSE)-VLOOKUP(Table_Data_Table_1[[#This Row],[Item ID]],DataTable,13,FALSE),IF(Table_Data_Table_1[[#This Row],[Valuation Method]]=\"Abstraction\",VLOOKUP(Table_Data_Table_1[[#This Row],[Item ID]],DataTable,6,FALSE)-VLOOKUP(Table_Data_Table_1[[#This Row],[Item ID]],DataTable,13,FALSE),IF(Table_Data_Table_1[[#This Row],[Valuation Method]]=\"Allocation\",VLOOKUP(Table_Data_Table_1[[#This Row],[Item ID]],DataTable,6,FALSE)*I140,\"\")))","v":""},{"$f":"IF(Table_Data_Table_1[[#This Row],[Valuation Method]]=\"Vacant\",\"N/A\",IF(Table_Data_Table_1[[#This Row],[Valuation Method]]=\"Abstraction\",Table_Data_Table_1[[#This Row],[Land\nResidual]]/VLOOKUP(Table_Data_Table_1[[#This Row],[Item ID]],DataTable,6,FALSE),IF(Table_Data_Table_1[[#This Row],[Valuation Method]]=\"Allocation\",'Global Settings'!$H$20,\"\")))","v":""},{"$f":"IFERROR(ROUND(Table_Data_Table_1[[#This Row],[Resid\nSq Ft]]/43560,3),\"\")","v":""},{"$f":"IF(Table_Data_Table_1[[#This Row],[Item ID]]=\"\",\"\",IFERROR(VLOOKUP(Table_Data_Table_1[[#This Row],[Item ID]],DataTable,10,FALSE)-VLOOKUP(Table_Data_Table_1[[#This Row],[Item ID]],DataTable,12,FALSE),\"\"))","v":""},{"$f":"IFERROR(Table_Data_Table_1[[#This Row],[Land\nResidual]]/Table_Data_Table_1[[#This Row],[Resid\nAcre]],\"\")","v":""},{"$f":"IFERROR(ROUND(Table_Data_Table_1[[#This Row],[Land\nResidual]]/Table_Data_Table_1[[#This Row],[Resid\nSq Ft]],2),\"\")","v":""},{"$f":"IF(Table_Data_Table_1[[#This Row],[Item ID]]=\"\",\"\",ROUND(DAYS360(Table_Data_Table_1[[#This Row],[Sale Date]],'Global Settings'!$H$5)/30,0))","v":""},{"$f":"IFERROR(IF(AND(Table_Data_Table_1[[#This Row],[Months To\nMid-Point]]<12.01,Table_Data_Table_1[[#This Row],[Months To\nMid-Point]]>-13),0,(Table_Data_Table_1[[#This Row],[Months To\nMid-Point]]*'Global Settings'!$H$6)),\"\")","v":""},{"$f":"IFERROR(Table_Data_Table_1[[#This Row],[Land\nResidual]]*(Table_Data_Table_1[[#This Row],[Time\nAdjust]]+1),\"\")","v":""},{"$f":"IFERROR(Table_Data_Table_1[[#This Row],[Adjusted\nSale Price]]/Table_Data_Table_1[[#This Row],[Resid\nAcre]],\"\")","v":""},{"$f":"IFERROR(ROUND(Table_Data_Table_1[[#This Row],[Adjusted\nSale Price]]/Table_Data_Table_1[[#This Row],[Resid\nSq Ft]],2),\"\")","v":""},{"$f":"IFERROR(IF(VLOOKUP(Table_Data_Table_1[[#This Row],[Item ID]],DataTable,11,FALSE)=0,\"N/A\",Table_Data_Table_1[[#This Row],[Adjusted\nSale Price]]/VLOOKUP(Table_Data_Table_1[[#This Row],[Item ID]],DataTable,11,FALSE)),\"\")","v":""},{"$f":"IF(IFERROR(VLOOKUP(Table_Data_Table_1[[#This Row],[Item ID]],DataTable,17,FALSE),\"\")=0,\"\",IFERROR(VLOOKUP(Table_Data_Table_1[[#This Row],[Item ID]],DataTable,17,FALSE),\"\"))","v":""}]
["",null,{"$f":"IF(Table_Data_Table_1[[#This Row],[Item ID]]=\"\",\"\",IFERROR(VLOOKUP(Table_Data_Table_1[[#This Row],[Item ID]],DataTable,16,FALSE),\"\"))","v":""},null,null,null,null,{"$f":"IF(Table_Data_Table_1[[#This Row],[Valuation Method]]=\"Vacant\",VLOOKUP(Table_Data_Table_1[[#This Row],[Item ID]],DataTable,6,FALSE)-VLOOKUP(Table_Data_Table_1[[#This Row],[Item ID]],DataTable,13,FALSE),IF(Table_Data_Table_1[[#This Row],[Valuation Method]]=\"Abstraction\",VLOOKUP(Table_Data_Table_1[[#This Row],[Item ID]],DataTable,6,FALSE)-VLOOKUP(Table_Data_Table_1[[#This Row],[Item ID]],DataTable,13,FALSE),IF(Table_Data_Table_1[[#This Row],[Valuation Method]]=\"Allocation\",VLOOKUP(Table_Data_Table_1[[#This Row],[Item ID]],DataTable,6,FALSE)*I141,\"\")))","v":""},{"$f":"IF(Table_Data_Table_1[[#This Row],[Valuation Method]]=\"Vacant\",\"N/A\",IF(Table_Data_Table_1[[#This Row],[Valuation Method]]=\"Abstraction\",Table_Data_Table_1[[#This Row],[Land\nResidual]]/VLOOKUP(Table_Data_Table_1[[#This Row],[Item ID]],DataTable,6,FALSE),IF(Table_Data_Table_1[[#This Row],[Valuation Method]]=\"Allocation\",'Global Settings'!$H$20,\"\")))","v":""},{"$f":"IFERROR(ROUND(Table_Data_Table_1[[#This Row],[Resid\nSq Ft]]/43560,3),\"\")","v":""},{"$f":"IF(Table_Data_Table_1[[#This Row],[Item ID]]=\"\",\"\",IFERROR(VLOOKUP(Table_Data_Table_1[[#This Row],[Item ID]],DataTable,10,FALSE)-VLOOKUP(Table_Data_Table_1[[#This Row],[Item ID]],DataTable,12,FALSE),\"\"))","v":""},{"$f":"IFERROR(Table_Data_Table_1[[#This Row],[Land\nResidual]]/Table_Data_Table_1[[#This Row],[Resid\nAcre]],\"\")","v":""},{"$f":"IFERROR(ROUND(Table_Data_Table_1[[#This Row],[Land\nResidual]]/Table_Data_Table_1[[#This Row],[Resid\nSq Ft]],2),\"\")","v":""},{"$f":"IF(Table_Data_Table_1[[#This Row],[Item ID]]=\"\",\"\",ROUND(DAYS360(Table_Data_Table_1[[#This Row],[Sale Date]],'Global Settings'!$H$5)/30,0))","v":""},{"$f":"IFERROR(IF(AND(Table_Data_Table_1[[#This Row],[Months To\nMid-Point]]<12.01,Table_Data_Table_1[[#This Row],[Months To\nMid-Point]]>-13),0,(Table_Data_Table_1[[#This Row],[Months To\nMid-Point]]*'Global Settings'!$H$6)),\"\")","v":""},{"$f":"IFERROR(Table_Data_Table_1[[#This Row],[Land\nResidual]]*(Table_Data_Table_1[[#This Row],[Time\nAdjust]]+1),\"\")","v":""},{"$f":"IFERROR(Table_Data_Table_1[[#This Row],[Adjusted\nSale Price]]/Table_Data_Table_1[[#This Row],[Resid\nAcre]],\"\")","v":""},{"$f":"IFERROR(ROUND(Table_Data_Table_1[[#This Row],[Adjusted\nSale Price]]/Table_Data_Table_1[[#This Row],[Resid\nSq Ft]],2),\"\")","v":""},{"$f":"IFERROR(IF(VLOOKUP(Table_Data_Table_1[[#This Row],[Item ID]],DataTable,11,FALSE)=0,\"N/A\",Table_Data_Table_1[[#This Row],[Adjusted\nSale Price]]/VLOOKUP(Table_Data_Table_1[[#This Row],[Item ID]],DataTable,11,FALSE)),\"\")","v":""},{"$f":"IF(IFERROR(VLOOKUP(Table_Data_Table_1[[#This Row],[Item ID]],DataTable,17,FALSE),\"\")=0,\"\",IFERROR(VLOOKUP(Table_Data_Table_1[[#This Row],[Item ID]],DataTable,17,FALSE),\"\"))","v":""}]
["",null,{"$f":"IF(Table_Data_Table_1[[#This Row],[Item ID]]=\"\",\"\",IFERROR(VLOOKUP(Table_Data_Table_1[[#This Row],[Item ID]],DataTable,16,FALSE),\"\"))","v":""},null,null,null,null,{"$f":"IF(Table_Data_Table_1[[#This Row],[Valuation Method]]=\"Vacant\",VLOOKUP(Table_Data_Table_1[[#This Row],[Item ID]],DataTable,6,FALSE)-VLOOKUP(Table_Data_Table_1[[#This Row],[Item ID]],DataTable,13,FALSE),IF(Table_Data_Table_1[[#This Row],[Valuation Method]]=\"Abstraction\",VLOOKUP(Table_Data_Table_1[[#This Row],[Item ID]],DataTable,6,FALSE)-VLOOKUP(Table_Data_Table_1[[#This Row],[Item ID]],DataTable,13,FALSE),IF(Table_Data_Table_1[[#This Row],[Valuation Method]]=\"Allocation\",VLOOKUP(Table_Data_Table_1[[#This Row],[Item ID]],DataTable,6,FALSE)*I142,\"\")))","v":""},{"$f":"IF(Table_Data_Table_1[[#This Row],[Valuation Method]]=\"Vacant\",\"N/A\",IF(Table_Data_Table_1[[#This Row],[Valuation Method]]=\"Abstraction\",Table_Data_Table_1[[#This Row],[Land\nResidual]]/VLOOKUP(Table_Data_Table_1[[#This Row],[Item ID]],DataTable,6,FALSE),IF(Table_Data_Table_1[[#This Row],[Valuation Method]]=\"Allocation\",'Global Settings'!$H$20,\"\")))","v":""},{"$f":"IFERROR(ROUND(Table_Data_Table_1[[#This Row],[Resid\nSq Ft]]/43560,3),\"\")","v":""},{"$f":"IF(Table_Data_Table_1[[#This Row],[Item ID]]=\"\",\"\",IFERROR(VLOOKUP(Table_Data_Table_1[[#This Row],[Item ID]],DataTable,10,FALSE)-VLOOKUP(Table_Data_Table_1[[#This Row],[Item ID]],DataTable,12,FALSE),\"\"))","v":""},{"$f":"IFERROR(Table_Data_Table_1[[#This Row],[Land\nResidual]]/Table_Data_Table_1[[#This Row],[Resid\nAcre]],\"\")","v":""},{"$f":"IFERROR(ROUND(Table_Data_Table_1[[#This Row],[Land\nResidual]]/Table_Data_Table_1[[#This Row],[Resid\nSq Ft]],2),\"\")","v":""},{"$f":"IF(Table_Data_Table_1[[#This Row],[Item ID]]=\"\",\"\",ROUND(DAYS360(Table_Data_Table_1[[#This Row],[Sale Date]],'Global Settings'!$H$5)/30,0))","v":""},{"$f":"IFERROR(IF(AND(Table_Data_Table_1[[#This Row],[Months To\nMid-Point]]<12.01,Table_Data_Table_1[[#This Row],[Months To\nMid-Point]]>-13),0,(Table_Data_Table_1[[#This Row],[Months To\nMid-Point]]*'Global Settings'!$H$6)),\"\")","v":""},{"$f":"IFERROR(Table_Data_Table_1[[#This Row],[Land\nResidual]]*(Table_Data_Table_1[[#This Row],[Time\nAdjust]]+1),\"\")","v":""},{"$f":"IFERROR(Table_Data_Table_1[[#This Row],[Adjusted\nSale Price]]/Table_Data_Table_1[[#This Row],[Resid\nAcre]],\"\")","v":""},{"$f":"IFERROR(ROUND(Table_Data_Table_1[[#This Row],[Adjusted\nSale Price]]/Table_Data_Table_1[[#This Row],[Resid\nSq Ft]],2),\"\")","v":""},{"$f":"IFERROR(IF(VLOOKUP(Table_Data_Table_1[[#This Row],[Item ID]],DataTable,11,FALSE)=0,\"N/A\",Table_Data_Table_1[[#This Row],[Adjusted\nSale Price]]/VLOOKUP(Table_Data_Table_1[[#This Row],[Item ID]],DataTable,11,FALSE)),\"\")","v":""},{"$f":"IF(IFERROR(VLOOKUP(Table_Data_Table_1[[#This Row],[Item ID]],DataTable,17,FALSE),\"\")=0,\"\",IFERROR(VLOOKUP(Table_Data_Table_1[[#This Row],[Item ID]],DataTable,17,FALSE),\"\"))","v":""}]
["",null,{"$f":"IF(Table_Data_Table_1[[#This Row],[Item ID]]=\"\",\"\",IFERROR(VLOOKUP(Table_Data_Table_1[[#This Row],[Item ID]],DataTable,16,FALSE),\"\"))","v":""},null,null,null,null,{"$f":"IF(Table_Data_Table_1[[#This Row],[Valuation Method]]=\"Vacant\",VLOOKUP(Table_Data_Table_1[[#This Row],[Item ID]],DataTable,6,FALSE)-VLOOKUP(Table_Data_Table_1[[#This Row],[Item ID]],DataTable,13,FALSE),IF(Table_Data_Table_1[[#This Row],[Valuation Method]]=\"Abstraction\",VLOOKUP(Table_Data_Table_1[[#This Row],[Item ID]],DataTable,6,FALSE)-VLOOKUP(Table_Data_Table_1[[#This Row],[Item ID]],DataTable,13,FALSE),IF(Table_Data_Table_1[[#This Row],[Valuation Method]]=\"Allocation\",VLOOKUP(Table_Data_Table_1[[#This Row],[Item ID]],DataTable,6,FALSE)*I143,\"\")))","v":""},{"$f":"IF(Table_Data_Table_1[[#This Row],[Valuation Method]]=\"Vacant\",\"N/A\",IF(Table_Data_Table_1[[#This Row],[Valuation Method]]=\"Abstraction\",Table_Data_Table_1[[#This Row],[Land\nResidual]]/VLOOKUP(Table_Data_Table_1[[#This Row],[Item ID]],DataTable,6,FALSE),IF(Table_Data_Table_1[[#This Row],[Valuation Method]]=\"Allocation\",'Global Settings'!$H$20,\"\")))","v":""},{"$f":"IFERROR(ROUND(Table_Data_Table_1[[#This Row],[Resid\nSq Ft]]/43560,3),\"\")","v":""},{"$f":"IF(Table_Data_Table_1[[#This Row],[Item ID]]=\"\",\"\",IFERROR(VLOOKUP(Table_Data_Table_1[[#This Row],[Item ID]],DataTable,10,FALSE)-VLOOKUP(Table_Data_Table_1[[#This Row],[Item ID]],DataTable,12,FALSE),\"\"))","v":""},{"$f":"IFERROR(Table_Data_Table_1[[#This Row],[Land\nResidual]]/Table_Data_Table_1[[#This Row],[Resid\nAcre]],\"\")","v":""},{"$f":"IFERROR(ROUND(Table_Data_Table_1[[#This Row],[Land\nResidual]]/Table_Data_Table_1[[#This Row],[Resid\nSq Ft]],2),\"\")","v":""},{"$f":"IF(Table_Data_Table_1[[#This Row],[Item ID]]=\"\",\"\",ROUND(DAYS360(Table_Data_Table_1[[#This Row],[Sale Date]],'Global Settings'!$H$5)/30,0))","v":""},{"$f":"IFERROR(IF(AND(Table_Data_Table_1[[#This Row],[Months To\nMid-Point]]<12.01,Table_Data_Table_1[[#This Row],[Months To\nMid-Point]]>-13),0,(Table_Data_Table_1[[#This Row],[Months To\nMid-Point]]*'Global Settings'!$H$6)),\"\")","v":""},{"$f":"IFERROR(Table_Data_Table_1[[#This Row],[Land\nResidual]]*(Table_Data_Table_1[[#This Row],[Time\nAdjust]]+1),\"\")","v":""},{"$f":"IFERROR(Table_Data_Table_1[[#This Row],[Adjusted\nSale Price]]/Table_Data_Table_1[[#This Row],[Resid\nAcre]],\"\")","v":""},{"$f":"IFERROR(ROUND(Table_Data_Table_1[[#This Row],[Adjusted\nSale Price]]/Table_Data_Table_1[[#This Row],[Resid\nSq Ft]],2),\"\")","v":""},{"$f":"IFERROR(IF(VLOOKUP(Table_Data_Table_1[[#This Row],[Item ID]],DataTable,11,FALSE)=0,\"N/A\",Table_Data_Table_1[[#This Row],[Adjusted\nSale Price]]/VLOOKUP(Table_Data_Table_1[[#This Row],[Item ID]],DataTable,11,FALSE)),\"\")","v":""},{"$f":"IF(IFERROR(VLOOKUP(Table_Data_Table_1[[#This Row],[Item ID]],DataTable,17,FALSE),\"\")=0,\"\",IFERROR(VLOOKUP(Table_Data_Table_1[[#This Row],[Item ID]],DataTable,17,FALSE),\"\"))","v":""}]
["",null,{"$f":"IF(Table_Data_Table_1[[#This Row],[Item ID]]=\"\",\"\",IFERROR(VLOOKUP(Table_Data_Table_1[[#This Row],[Item ID]],DataTable,16,FALSE),\"\"))","v":""},null,null,null,null,{"$f":"IF(Table_Data_Table_1[[#This Row],[Valuation Method]]=\"Vacant\",VLOOKUP(Table_Data_Table_1[[#This Row],[Item ID]],DataTable,6,FALSE)-VLOOKUP(Table_Data_Table_1[[#This Row],[Item ID]],DataTable,13,FALSE),IF(Table_Data_Table_1[[#This Row],[Valuation Method]]=\"Abstraction\",VLOOKUP(Table_Data_Table_1[[#This Row],[Item ID]],DataTable,6,FALSE)-VLOOKUP(Table_Data_Table_1[[#This Row],[Item ID]],DataTable,13,FALSE),IF(Table_Data_Table_1[[#This Row],[Valuation Method]]=\"Allocation\",VLOOKUP(Table_Data_Table_1[[#This Row],[Item ID]],DataTable,6,FALSE)*I144,\"\")))","v":""},{"$f":"IF(Table_Data_Table_1[[#This Row],[Valuation Method]]=\"Vacant\",\"N/A\",IF(Table_Data_Table_1[[#This Row],[Valuation Method]]=\"Abstraction\",Table_Data_Table_1[[#This Row],[Land\nResidual]]/VLOOKUP(Table_Data_Table_1[[#This Row],[Item ID]],DataTable,6,FALSE),IF(Table_Data_Table_1[[#This Row],[Valuation Method]]=\"Allocation\",'Global Settings'!$H$20,\"\")))","v":""},{"$f":"IFERROR(ROUND(Table_Data_Table_1[[#This Row],[Resid\nSq Ft]]/43560,3),\"\")","v":""},{"$f":"IF(Table_Data_Table_1[[#This Row],[Item ID]]=\"\",\"\",IFERROR(VLOOKUP(Table_Data_Table_1[[#This Row],[Item ID]],DataTable,10,FALSE)-VLOOKUP(Table_Data_Table_1[[#This Row],[Item ID]],DataTable,12,FALSE),\"\"))","v":""},{"$f":"IFERROR(Table_Data_Table_1[[#This Row],[Land\nResidual]]/Table_Data_Table_1[[#This Row],[Resid\nAcre]],\"\")","v":""},{"$f":"IFERROR(ROUND(Table_Data_Table_1[[#This Row],[Land\nResidual]]/Table_Data_Table_1[[#This Row],[Resid\nSq Ft]],2),\"\")","v":""},{"$f":"IF(Table_Data_Table_1[[#This Row],[Item ID]]=\"\",\"\",ROUND(DAYS360(Table_Data_Table_1[[#This Row],[Sale Date]],'Global Settings'!$H$5)/30,0))","v":""},{"$f":"IFERROR(IF(AND(Table_Data_Table_1[[#This Row],[Months To\nMid-Point]]<12.01,Table_Data_Table_1[[#This Row],[Months To\nMid-Point]]>-13),0,(Table_Data_Table_1[[#This Row],[Months To\nMid-Point]]*'Global Settings'!$H$6)),\"\")","v":""},{"$f":"IFERROR(Table_Data_Table_1[[#This Row],[Land\nResidual]]*(Table_Data_Table_1[[#This Row],[Time\nAdjust]]+1),\"\")","v":""},{"$f":"IFERROR(Table_Data_Table_1[[#This Row],[Adjusted\nSale Price]]/Table_Data_Table_1[[#This Row],[Resid\nAcre]],\"\")","v":""},{"$f":"IFERROR(ROUND(Table_Data_Table_1[[#This Row],[Adjusted\nSale Price]]/Table_Data_Table_1[[#This Row],[Resid\nSq Ft]],2),\"\")","v":""},{"$f":"IFERROR(IF(VLOOKUP(Table_Data_Table_1[[#This Row],[Item ID]],DataTable,11,FALSE)=0,\"N/A\",Table_Data_Table_1[[#This Row],[Adjusted\nSale Price]]/VLOOKUP(Table_Data_Table_1[[#This Row],[Item ID]],DataTable,11,FALSE)),\"\")","v":""},{"$f":"IF(IFERROR(VLOOKUP(Table_Data_Table_1[[#This Row],[Item ID]],DataTable,17,FALSE),\"\")=0,\"\",IFERROR(VLOOKUP(Table_Data_Table_1[[#This Row],[Item ID]],DataTable,17,FALSE),\"\"))","v":""}]
["",null,{"$f":"IF(Table_Data_Table_1[[#This Row],[Item ID]]=\"\",\"\",IFERROR(VLOOKUP(Table_Data_Table_1[[#This Row],[Item ID]],DataTable,16,FALSE),\"\"))","v":""},null,null,null,null,{"$f":"IF(Table_Data_Table_1[[#This Row],[Valuation Method]]=\"Vacant\",VLOOKUP(Table_Data_Table_1[[#This Row],[Item ID]],DataTable,6,FALSE)-VLOOKUP(Table_Data_Table_1[[#This Row],[Item ID]],DataTable,13,FALSE),IF(Table_Data_Table_1[[#This Row],[Valuation Method]]=\"Abstraction\",VLOOKUP(Table_Data_Table_1[[#This Row],[Item ID]],DataTable,6,FALSE)-VLOOKUP(Table_Data_Table_1[[#This Row],[Item ID]],DataTable,13,FALSE),IF(Table_Data_Table_1[[#This Row],[Valuation Method]]=\"Allocation\",VLOOKUP(Table_Data_Table_1[[#This Row],[Item ID]],DataTable,6,FALSE)*I145,\"\")))","v":""},{"$f":"IF(Table_Data_Table_1[[#This Row],[Valuation Method]]=\"Vacant\",\"N/A\",IF(Table_Data_Table_1[[#This Row],[Valuation Method]]=\"Abstraction\",Table_Data_Table_1[[#This Row],[Land\nResidual]]/VLOOKUP(Table_Data_Table_1[[#This Row],[Item ID]],DataTable,6,FALSE),IF(Table_Data_Table_1[[#This Row],[Valuation Method]]=\"Allocation\",'Global Settings'!$H$20,\"\")))","v":""},{"$f":"IFERROR(ROUND(Table_Data_Table_1[[#This Row],[Resid\nSq Ft]]/43560,3),\"\")","v":""},{"$f":"IF(Table_Data_Table_1[[#This Row],[Item ID]]=\"\",\"\",IFERROR(VLOOKUP(Table_Data_Table_1[[#This Row],[Item ID]],DataTable,10,FALSE)-VLOOKUP(Table_Data_Table_1[[#This Row],[Item ID]],DataTable,12,FALSE),\"\"))","v":""},{"$f":"IFERROR(Table_Data_Table_1[[#This Row],[Land\nResidual]]/Table_Data_Table_1[[#This Row],[Resid\nAcre]],\"\")","v":""},{"$f":"IFERROR(ROUND(Table_Data_Table_1[[#This Row],[Land\nResidual]]/Table_Data_Table_1[[#This Row],[Resid\nSq Ft]],2),\"\")","v":""},{"$f":"IF(Table_Data_Table_1[[#This Row],[Item ID]]=\"\",\"\",ROUND(DAYS360(Table_Data_Table_1[[#This Row],[Sale Date]],'Global Settings'!$H$5)/30,0))","v":""},{"$f":"IFERROR(IF(AND(Table_Data_Table_1[[#This Row],[Months To\nMid-Point]]<12.01,Table_Data_Table_1[[#This Row],[Months To\nMid-Point]]>-13),0,(Table_Data_Table_1[[#This Row],[Months To\nMid-Point]]*'Global Settings'!$H$6)),\"\")","v":""},{"$f":"IFERROR(Table_Data_Table_1[[#This Row],[Land\nResidual]]*(Table_Data_Table_1[[#This Row],[Time\nAdjust]]+1),\"\")","v":""},{"$f":"IFERROR(Table_Data_Table_1[[#This Row],[Adjusted\nSale Price]]/Table_Data_Table_1[[#This Row],[Resid\nAcre]],\"\")","v":""},{"$f":"IFERROR(ROUND(Table_Data_Table_1[[#This Row],[Adjusted\nSale Price]]/Table_Data_Table_1[[#This Row],[Resid\nSq Ft]],2),\"\")","v":""},{"$f":"IFERROR(IF(VLOOKUP(Table_Data_Table_1[[#This Row],[Item ID]],DataTable,11,FALSE)=0,\"N/A\",Table_Data_Table_1[[#This Row],[Adjusted\nSale Price]]/VLOOKUP(Table_Data_Table_1[[#This Row],[Item ID]],DataTable,11,FALSE)),\"\")","v":""},{"$f":"IF(IFERROR(VLOOKUP(Table_Data_Table_1[[#This Row],[Item ID]],DataTable,17,FALSE),\"\")=0,\"\",IFERROR(VLOOKUP(Table_Data_Table_1[[#This Row],[Item ID]],DataTable,17,FALSE),\"\"))","v":""}]
["",null,{"$f":"IF(Table_Data_Table_1[[#This Row],[Item ID]]=\"\",\"\",IFERROR(VLOOKUP(Table_Data_Table_1[[#This Row],[Item ID]],DataTable,16,FALSE),\"\"))","v":""},null,null,null,null,{"$f":"IF(Table_Data_Table_1[[#This Row],[Valuation Method]]=\"Vacant\",VLOOKUP(Table_Data_Table_1[[#This Row],[Item ID]],DataTable,6,FALSE)-VLOOKUP(Table_Data_Table_1[[#This Row],[Item ID]],DataTable,13,FALSE),IF(Table_Data_Table_1[[#This Row],[Valuation Method]]=\"Abstraction\",VLOOKUP(Table_Data_Table_1[[#This Row],[Item ID]],DataTable,6,FALSE)-VLOOKUP(Table_Data_Table_1[[#This Row],[Item ID]],DataTable,13,FALSE),IF(Table_Data_Table_1[[#This Row],[Valuation Method]]=\"Allocation\",VLOOKUP(Table_Data_Table_1[[#This Row],[Item ID]],DataTable,6,FALSE)*I146,\"\")))","v":""},{"$f":"IF(Table_Data_Table_1[[#This Row],[Valuation Method]]=\"Vacant\",\"N/A\",IF(Table_Data_Table_1[[#This Row],[Valuation Method]]=\"Abstraction\",Table_Data_Table_1[[#This Row],[Land\nResidual]]/VLOOKUP(Table_Data_Table_1[[#This Row],[Item ID]],DataTable,6,FALSE),IF(Table_Data_Table_1[[#This Row],[Valuation Method]]=\"Allocation\",'Global Settings'!$H$20,\"\")))","v":""},{"$f":"IFERROR(ROUND(Table_Data_Table_1[[#This Row],[Resid\nSq Ft]]/43560,3),\"\")","v":""},{"$f":"IF(Table_Data_Table_1[[#This Row],[Item ID]]=\"\",\"\",IFERROR(VLOOKUP(Table_Data_Table_1[[#This Row],[Item ID]],DataTable,10,FALSE)-VLOOKUP(Table_Data_Table_1[[#This Row],[Item ID]],DataTable,12,FALSE),\"\"))","v":""},{"$f":"IFERROR(Table_Data_Table_1[[#This Row],[Land\nResidual]]/Table_Data_Table_1[[#This Row],[Resid\nAcre]],\"\")","v":""},{"$f":"IFERROR(ROUND(Table_Data_Table_1[[#This Row],[Land\nResidual]]/Table_Data_Table_1[[#This Row],[Resid\nSq Ft]],2),\"\")","v":""},{"$f":"IF(Table_Data_Table_1[[#This Row],[Item ID]]=\"\",\"\",ROUND(DAYS360(Table_Data_Table_1[[#This Row],[Sale Date]],'Global Settings'!$H$5)/30,0))","v":""},{"$f":"IFERROR(IF(AND(Table_Data_Table_1[[#This Row],[Months To\nMid-Point]]<12.01,Table_Data_Table_1[[#This Row],[Months To\nMid-Point]]>-13),0,(Table_Data_Table_1[[#This Row],[Months To\nMid-Point]]*'Global Settings'!$H$6)),\"\")","v":""},{"$f":"IFERROR(Table_Data_Table_1[[#This Row],[Land\nResidual]]*(Table_Data_Table_1[[#This Row],[Time\nAdjust]]+1),\"\")","v":""},{"$f":"IFERROR(Table_Data_Table_1[[#This Row],[Adjusted\nSale Price]]/Table_Data_Table_1[[#This Row],[Resid\nAcre]],\"\")","v":""},{"$f":"IFERROR(ROUND(Table_Data_Table_1[[#This Row],[Adjusted\nSale Price]]/Table_Data_Table_1[[#This Row],[Resid\nSq Ft]],2),\"\")","v":""},{"$f":"IFERROR(IF(VLOOKUP(Table_Data_Table_1[[#This Row],[Item ID]],DataTable,11,FALSE)=0,\"N/A\",Table_Data_Table_1[[#This Row],[Adjusted\nSale Price]]/VLOOKUP(Table_Data_Table_1[[#This Row],[Item ID]],DataTable,11,FALSE)),\"\")","v":""},{"$f":"IF(IFERROR(VLOOKUP(Table_Data_Table_1[[#This Row],[Item ID]],DataTable,17,FALSE),\"\")=0,\"\",IFERROR(VLOOKUP(Table_Data_Table_1[[#This Row],[Item ID]],DataTable,17,FALSE),\"\"))","v":""}]
["",null,{"$f":"IF(Table_Data_Table_1[[#This Row],[Item ID]]=\"\",\"\",IFERROR(VLOOKUP(Table_Data_Table_1[[#This Row],[Item ID]],DataTable,16,FALSE),\"\"))","v":""},null,null,null,null,{"$f":"IF(Table_Data_Table_1[[#This Row],[Valuation Method]]=\"Vacant\",VLOOKUP(Table_Data_Table_1[[#This Row],[Item ID]],DataTable,6,FALSE)-VLOOKUP(Table_Data_Table_1[[#This Row],[Item ID]],DataTable,13,FALSE),IF(Table_Data_Table_1[[#This Row],[Valuation Method]]=\"Abstraction\",VLOOKUP(Table_Data_Table_1[[#This Row],[Item ID]],DataTable,6,FALSE)-VLOOKUP(Table_Data_Table_1[[#This Row],[Item ID]],DataTable,13,FALSE),IF(Table_Data_Table_1[[#This Row],[Valuation Method]]=\"Allocation\",VLOOKUP(Table_Data_Table_1[[#This Row],[Item ID]],DataTable,6,FALSE)*I147,\"\")))","v":""},{"$f":"IF(Table_Data_Table_1[[#This Row],[Valuation Method]]=\"Vacant\",\"N/A\",IF(Table_Data_Table_1[[#This Row],[Valuation Method]]=\"Abstraction\",Table_Data_Table_1[[#This Row],[Land\nResidual]]/VLOOKUP(Table_Data_Table_1[[#This Row],[Item ID]],DataTable,6,FALSE),IF(Table_Data_Table_1[[#This Row],[Valuation Method]]=\"Allocation\",'Global Settings'!$H$20,\"\")))","v":""},{"$f":"IFERROR(ROUND(Table_Data_Table_1[[#This Row],[Resid\nSq Ft]]/43560,3),\"\")","v":""},{"$f":"IF(Table_Data_Table_1[[#This Row],[Item ID]]=\"\",\"\",IFERROR(VLOOKUP(Table_Data_Table_1[[#This Row],[Item ID]],DataTable,10,FALSE)-VLOOKUP(Table_Data_Table_1[[#This Row],[Item ID]],DataTable,12,FALSE),\"\"))","v":""},{"$f":"IFERROR(Table_Data_Table_1[[#This Row],[Land\nResidual]]/Table_Data_Table_1[[#This Row],[Resid\nAcre]],\"\")","v":""},{"$f":"IFERROR(ROUND(Table_Data_Table_1[[#This Row],[Land\nResidual]]/Table_Data_Table_1[[#This Row],[Resid\nSq Ft]],2),\"\")","v":""},{"$f":"IF(Table_Data_Table_1[[#This Row],[Item ID]]=\"\",\"\",ROUND(DAYS360(Table_Data_Table_1[[#This Row],[Sale Date]],'Global Settings'!$H$5)/30,0))","v":""},{"$f":"IFERROR(IF(AND(Table_Data_Table_1[[#This Row],[Months To\nMid-Point]]<12.01,Table_Data_Table_1[[#This Row],[Months To\nMid-Point]]>-13),0,(Table_Data_Table_1[[#This Row],[Months To\nMid-Point]]*'Global Settings'!$H$6)),\"\")","v":""},{"$f":"IFERROR(Table_Data_Table_1[[#This Row],[Land\nResidual]]*(Table_Data_Table_1[[#This Row],[Time\nAdjust]]+1),\"\")","v":""},{"$f":"IFERROR(Table_Data_Table_1[[#This Row],[Adjusted\nSale Price]]/Table_Data_Table_1[[#This Row],[Resid\nAcre]],\"\")","v":""},{"$f":"IFERROR(ROUND(Table_Data_Table_1[[#This Row],[Adjusted\nSale Price]]/Table_Data_Table_1[[#This Row],[Resid\nSq Ft]],2),\"\")","v":""},{"$f":"IFERROR(IF(VLOOKUP(Table_Data_Table_1[[#This Row],[Item ID]],DataTable,11,FALSE)=0,\"N/A\",Table_Data_Table_1[[#This Row],[Adjusted\nSale Price]]/VLOOKUP(Table_Data_Table_1[[#This Row],[Item ID]],DataTable,11,FALSE)),\"\")","v":""},{"$f":"IF(IFERROR(VLOOKUP(Table_Data_Table_1[[#This Row],[Item ID]],DataTable,17,FALSE),\"\")=0,\"\",IFERROR(VLOOKUP(Table_Data_Table_1[[#This Row],[Item ID]],DataTable,17,FALSE),\"\"))","v":""}]
["",null,{"$f":"IF(Table_Data_Table_1[[#This Row],[Item ID]]=\"\",\"\",IFERROR(VLOOKUP(Table_Data_Table_1[[#This Row],[Item ID]],DataTable,16,FALSE),\"\"))","v":""},null,null,null,null,{"$f":"IF(Table_Data_Table_1[[#This Row],[Valuation Method]]=\"Vacant\",VLOOKUP(Table_Data_Table_1[[#This Row],[Item ID]],DataTable,6,FALSE)-VLOOKUP(Table_Data_Table_1[[#This Row],[Item ID]],DataTable,13,FALSE),IF(Table_Data_Table_1[[#This Row],[Valuation Method]]=\"Abstraction\",VLOOKUP(Table_Data_Table_1[[#This Row],[Item ID]],DataTable,6,FALSE)-VLOOKUP(Table_Data_Table_1[[#This Row],[Item ID]],DataTable,13,FALSE),IF(Table_Data_Table_1[[#This Row],[Valuation Method]]=\"Allocation\",VLOOKUP(Table_Data_Table_1[[#This Row],[Item ID]],DataTable,6,FALSE)*I148,\"\")))","v":""},{"$f":"IF(Table_Data_Table_1[[#This Row],[Valuation Method]]=\"Vacant\",\"N/A\",IF(Table_Data_Table_1[[#This Row],[Valuation Method]]=\"Abstraction\",Table_Data_Table_1[[#This Row],[Land\nResidual]]/VLOOKUP(Table_Data_Table_1[[#This Row],[Item ID]],DataTable,6,FALSE),IF(Table_Data_Table_1[[#This Row],[Valuation Method]]=\"Allocation\",'Global Settings'!$H$20,\"\")))","v":""},{"$f":"IFERROR(ROUND(Table_Data_Table_1[[#This Row],[Resid\nSq Ft]]/43560,3),\"\")","v":""},{"$f":"IF(Table_Data_Table_1[[#This Row],[Item ID]]=\"\",\"\",IFERROR(VLOOKUP(Table_Data_Table_1[[#This Row],[Item ID]],DataTable,10,FALSE)-VLOOKUP(Table_Data_Table_1[[#This Row],[Item ID]],DataTable,12,FALSE),\"\"))","v":""},{"$f":"IFERROR(Table_Data_Table_1[[#This Row],[Land\nResidual]]/Table_Data_Table_1[[#This Row],[Resid\nAcre]],\"\")","v":""},{"$f":"IFERROR(ROUND(Table_Data_Table_1[[#This Row],[Land\nResidual]]/Table_Data_Table_1[[#This Row],[Resid\nSq Ft]],2),\"\")","v":""},{"$f":"IF(Table_Data_Table_1[[#This Row],[Item ID]]=\"\",\"\",ROUND(DAYS360(Table_Data_Table_1[[#This Row],[Sale Date]],'Global Settings'!$H$5)/30,0))","v":""},{"$f":"IFERROR(IF(AND(Table_Data_Table_1[[#This Row],[Months To\nMid-Point]]<12.01,Table_Data_Table_1[[#This Row],[Months To\nMid-Point]]>-13),0,(Table_Data_Table_1[[#This Row],[Months To\nMid-Point]]*'Global Settings'!$H$6)),\"\")","v":""},{"$f":"IFERROR(Table_Data_Table_1[[#This Row],[Land\nResidual]]*(Table_Data_Table_1[[#This Row],[Time\nAdjust]]+1),\"\")","v":""},{"$f":"IFERROR(Table_Data_Table_1[[#This Row],[Adjusted\nSale Price]]/Table_Data_Table_1[[#This Row],[Resid\nAcre]],\"\")","v":""},{"$f":"IFERROR(ROUND(Table_Data_Table_1[[#This Row],[Adjusted\nSale Price]]/Table_Data_Table_1[[#This Row],[Resid\nSq Ft]],2),\"\")","v":""},{"$f":"IFERROR(IF(VLOOKUP(Table_Data_Table_1[[#This Row],[Item ID]],DataTable,11,FALSE)=0,\"N/A\",Table_Data_Table_1[[#This Row],[Adjusted\nSale Price]]/VLOOKUP(Table_Data_Table_1[[#This Row],[Item ID]],DataTable,11,FALSE)),\"\")","v":""},{"$f":"IF(IFERROR(VLOOKUP(Table_Data_Table_1[[#This Row],[Item ID]],DataTable,17,FALSE),\"\")=0,\"\",IFERROR(VLOOKUP(Table_Data_Table_1[[#This Row],[Item ID]],DataTable,17,FALSE),\"\"))","v":""}]
["",null,{"$f":"IF(Table_Data_Table_1[[#This Row],[Item ID]]=\"\",\"\",IFERROR(VLOOKUP(Table_Data_Table_1[[#This Row],[Item ID]],DataTable,16,FALSE),\"\"))","v":""},null,null,null,null,{"$f":"IF(Table_Data_Table_1[[#This Row],[Valuation Method]]=\"Vacant\",VLOOKUP(Table_Data_Table_1[[#This Row],[Item ID]],DataTable,6,FALSE)-VLOOKUP(Table_Data_Table_1[[#This Row],[Item ID]],DataTable,13,FALSE),IF(Table_Data_Table_1[[#This Row],[Valuation Method]]=\"Abstraction\",VLOOKUP(Table_Data_Table_1[[#This Row],[Item ID]],DataTable,6,FALSE)-VLOOKUP(Table_Data_Table_1[[#This Row],[Item ID]],DataTable,13,FALSE),IF(Table_Data_Table_1[[#This Row],[Valuation Method]]=\"Allocation\",VLOOKUP(Table_Data_Table_1[[#This Row],[Item ID]],DataTable,6,FALSE)*I149,\"\")))","v":""},{"$f":"IF(Table_Data_Table_1[[#This Row],[Valuation Method]]=\"Vacant\",\"N/A\",IF(Table_Data_Table_1[[#This Row],[Valuation Method]]=\"Abstraction\",Table_Data_Table_1[[#This Row],[Land\nResidual]]/VLOOKUP(Table_Data_Table_1[[#This Row],[Item ID]],DataTable,6,FALSE),IF(Table_Data_Table_1[[#This Row],[Valuation Method]]=\"Allocation\",'Global Settings'!$H$20,\"\")))","v":""},{"$f":"IFERROR(ROUND(Table_Data_Table_1[[#This Row],[Resid\nSq Ft]]/43560,3),\"\")","v":""},{"$f":"IF(Table_Data_Table_1[[#This Row],[Item ID]]=\"\",\"\",IFERROR(VLOOKUP(Table_Data_Table_1[[#This Row],[Item ID]],DataTable,10,FALSE)-VLOOKUP(Table_Data_Table_1[[#This Row],[Item ID]],DataTable,12,FALSE),\"\"))","v":""},{"$f":"IFERROR(Table_Data_Table_1[[#This Row],[Land\nResidual]]/Table_Data_Table_1[[#This Row],[Resid\nAcre]],\"\")","v":""},{"$f":"IFERROR(ROUND(Table_Data_Table_1[[#This Row],[Land\nResidual]]/Table_Data_Table_1[[#This Row],[Resid\nSq Ft]],2),\"\")","v":""},{"$f":"IF(Table_Data_Table_1[[#This Row],[Item ID]]=\"\",\"\",ROUND(DAYS360(Table_Data_Table_1[[#This Row],[Sale Date]],'Global Settings'!$H$5)/30,0))","v":""},{"$f":"IFERROR(IF(AND(Table_Data_Table_1[[#This Row],[Months To\nMid-Point]]<12.01,Table_Data_Table_1[[#This Row],[Months To\nMid-Point]]>-13),0,(Table_Data_Table_1[[#This Row],[Months To\nMid-Point]]*'Global Settings'!$H$6)),\"\")","v":""},{"$f":"IFERROR(Table_Data_Table_1[[#This Row],[Land\nResidual]]*(Table_Data_Table_1[[#This Row],[Time\nAdjust]]+1),\"\")","v":""},{"$f":"IFERROR(Table_Data_Table_1[[#This Row],[Adjusted\nSale Price]]/Table_Data_Table_1[[#This Row],[Resid\nAcre]],\"\")","v":""},{"$f":"IFERROR(ROUND(Table_Data_Table_1[[#This Row],[Adjusted\nSale Price]]/Table_Data_Table_1[[#This Row],[Resid\nSq Ft]],2),\"\")","v":""},{"$f":"IFERROR(IF(VLOOKUP(Table_Data_Table_1[[#This Row],[Item ID]],DataTable,11,FALSE)=0,\"N/A\",Table_Data_Table_1[[#This Row],[Adjusted\nSale Price]]/VLOOKUP(Table_Data_Table_1[[#This Row],[Item ID]],DataTable,11,FALSE)),\"\")","v":""},{"$f":"IF(IFERROR(VLOOKUP(Table_Data_Table_1[[#This Row],[Item ID]],DataTable,17,FALSE),\"\")=0,\"\",IFERROR(VLOOKUP(Table_Data_Table_1[[#This Row],[Item ID]],DataTable,17,FALSE),\"\"))","v":""}]
["",null,{"$f":"IF(Table_Data_Table_1[[#This Row],[Item ID]]=\"\",\"\",IFERROR(VLOOKUP(Table_Data_Table_1[[#This Row],[Item ID]],DataTable,16,FALSE),\"\"))","v":""},null,null,null,null,{"$f":"IF(Table_Data_Table_1[[#This Row],[Valuation Method]]=\"Vacant\",VLOOKUP(Table_Data_Table_1[[#This Row],[Item ID]],DataTable,6,FALSE)-VLOOKUP(Table_Data_Table_1[[#This Row],[Item ID]],DataTable,13,FALSE),IF(Table_Data_Table_1[[#This Row],[Valuation Method]]=\"Abstraction\",VLOOKUP(Table_Data_Table_1[[#This Row],[Item ID]],DataTable,6,FALSE)-VLOOKUP(Table_Data_Table_1[[#This Row],[Item ID]],DataTable,13,FALSE),IF(Table_Data_Table_1[[#This Row],[Valuation Method]]=\"Allocation\",VLOOKUP(Table_Data_Table_1[[#This Row],[Item ID]],DataTable,6,FALSE)*I150,\"\")))","v":""},{"$f":"IF(Table_Data_Table_1[[#This Row],[Valuation Method]]=\"Vacant\",\"N/A\",IF(Table_Data_Table_1[[#This Row],[Valuation Method]]=\"Abstraction\",Table_Data_Table_1[[#This Row],[Land\nResidual]]/VLOOKUP(Table_Data_Table_1[[#This Row],[Item ID]],DataTable,6,FALSE),IF(Table_Data_Table_1[[#This Row],[Valuation Method]]=\"Allocation\",'Global Settings'!$H$20,\"\")))","v":""},{"$f":"IFERROR(ROUND(Table_Data_Table_1[[#This Row],[Resid\nSq Ft]]/43560,3),\"\")","v":""},{"$f":"IF(Table_Data_Table_1[[#This Row],[Item ID]]=\"\",\"\",IFERROR(VLOOKUP(Table_Data_Table_1[[#This Row],[Item ID]],DataTable,10,FALSE)-VLOOKUP(Table_Data_Table_1[[#This Row],[Item ID]],DataTable,12,FALSE),\"\"))","v":""},{"$f":"IFERROR(Table_Data_Table_1[[#This Row],[Land\nResidual]]/Table_Data_Table_1[[#This Row],[Resid\nAcre]],\"\")","v":""},{"$f":"IFERROR(ROUND(Table_Data_Table_1[[#This Row],[Land\nResidual]]/Table_Data_Table_1[[#This Row],[Resid\nSq Ft]],2),\"\")","v":""},{"$f":"IF(Table_Data_Table_1[[#This Row],[Item ID]]=\"\",\"\",ROUND(DAYS360(Table_Data_Table_1[[#This Row],[Sale Date]],'Global Settings'!$H$5)/30,0))","v":""},{"$f":"IFERROR(IF(AND(Table_Data_Table_1[[#This Row],[Months To\nMid-Point]]<12.01,Table_Data_Table_1[[#This Row],[Months To\nMid-Point]]>-13),0,(Table_Data_Table_1[[#This Row],[Months To\nMid-Point]]*'Global Settings'!$H$6)),\"\")","v":""},{"$f":"IFERROR(Table_Data_Table_1[[#This Row],[Land\nResidual]]*(Table_Data_Table_1[[#This Row],[Time\nAdjust]]+1),\"\")","v":""},{"$f":"IFERROR(Table_Data_Table_1[[#This Row],[Adjusted\nSale Price]]/Table_Data_Table_1[[#This Row],[Resid\nAcre]],\"\")","v":""},{"$f":"IFERROR(ROUND(Table_Data_Table_1[[#This Row],[Adjusted\nSale Price]]/Table_Data_Table_1[[#This Row],[Resid\nSq Ft]],2),\"\")","v":""},{"$f":"IFERROR(IF(VLOOKUP(Table_Data_Table_1[[#This Row],[Item ID]],DataTable,11,FALSE)=0,\"N/A\",Table_Data_Table_1[[#This Row],[Adjusted\nSale Price]]/VLOOKUP(Table_Data_Table_1[[#This Row],[Item ID]],DataTable,11,FALSE)),\"\")","v":""},{"$f":"IF(IFERROR(VLOOKUP(Table_Data_Table_1[[#This Row],[Item ID]],DataTable,17,FALSE),\"\")=0,\"\",IFERROR(VLOOKUP(Table_Data_Table_1[[#This Row],[Item ID]],DataTable,17,FALSE),\"\"))","v":""}]
["",null,{"$f":"IF(Table_Data_Table_1[[#This Row],[Item ID]]=\"\",\"\",IFERROR(VLOOKUP(Table_Data_Table_1[[#This Row],[Item ID]],DataTable,16,FALSE),\"\"))","v":""},null,null,null,null,{"$f":"IF(Table_Data_Table_1[[#This Row],[Valuation Method]]=\"Vacant\",VLOOKUP(Table_Data_Table_1[[#This Row],[Item ID]],DataTable,6,FALSE)-VLOOKUP(Table_Data_Table_1[[#This Row],[Item ID]],DataTable,13,FALSE),IF(Table_Data_Table_1[[#This Row],[Valuation Method]]=\"Abstraction\",VLOOKUP(Table_Data_Table_1[[#This Row],[Item ID]],DataTable,6,FALSE)-VLOOKUP(Table_Data_Table_1[[#This Row],[Item ID]],DataTable,13,FALSE),IF(Table_Data_Table_1[[#This Row],[Valuation Method]]=\"Allocation\",VLOOKUP(Table_Data_Table_1[[#This Row],[Item ID]],DataTable,6,FALSE)*I151,\"\")))","v":""},{"$f":"IF(Table_Data_Table_1[[#This Row],[Valuation Method]]=\"Vacant\",\"N/A\",IF(Table_Data_Table_1[[#This Row],[Valuation Method]]=\"Abstraction\",Table_Data_Table_1[[#This Row],[Land\nResidual]]/VLOOKUP(Table_Data_Table_1[[#This Row],[Item ID]],DataTable,6,FALSE),IF(Table_Data_Table_1[[#This Row],[Valuation Method]]=\"Allocation\",'Global Settings'!$H$20,\"\")))","v":""},{"$f":"IFERROR(ROUND(Table_Data_Table_1[[#This Row],[Resid\nSq Ft]]/43560,3),\"\")","v":""},{"$f":"IF(Table_Data_Table_1[[#This Row],[Item ID]]=\"\",\"\",IFERROR(VLOOKUP(Table_Data_Table_1[[#This Row],[Item ID]],DataTable,10,FALSE)-VLOOKUP(Table_Data_Table_1[[#This Row],[Item ID]],DataTable,12,FALSE),\"\"))","v":""},{"$f":"IFERROR(Table_Data_Table_1[[#This Row],[Land\nResidual]]/Table_Data_Table_1[[#This Row],[Resid\nAcre]],\"\")","v":""},{"$f":"IFERROR(ROUND(Table_Data_Table_1[[#This Row],[Land\nResidual]]/Table_Data_Table_1[[#This Row],[Resid\nSq Ft]],2),\"\")","v":""},{"$f":"IF(Table_Data_Table_1[[#This Row],[Item ID]]=\"\",\"\",ROUND(DAYS360(Table_Data_Table_1[[#This Row],[Sale Date]],'Global Settings'!$H$5)/30,0))","v":""},{"$f":"IFERROR(IF(AND(Table_Data_Table_1[[#This Row],[Months To\nMid-Point]]<12.01,Table_Data_Table_1[[#This Row],[Months To\nMid-Point]]>-13),0,(Table_Data_Table_1[[#This Row],[Months To\nMid-Point]]*'Global Settings'!$H$6)),\"\")","v":""},{"$f":"IFERROR(Table_Data_Table_1[[#This Row],[Land\nResidual]]*(Table_Data_Table_1[[#This Row],[Time\nAdjust]]+1),\"\")","v":""},{"$f":"IFERROR(Table_Data_Table_1[[#This Row],[Adjusted\nSale Price]]/Table_Data_Table_1[[#This Row],[Resid\nAcre]],\"\")","v":""},{"$f":"IFERROR(ROUND(Table_Data_Table_1[[#This Row],[Adjusted\nSale Price]]/Table_Data_Table_1[[#This Row],[Resid\nSq Ft]],2),\"\")","v":""},{"$f":"IFERROR(IF(VLOOKUP(Table_Data_Table_1[[#This Row],[Item ID]],DataTable,11,FALSE)=0,\"N/A\",Table_Data_Table_1[[#This Row],[Adjusted\nSale Price]]/VLOOKUP(Table_Data_Table_1[[#This Row],[Item ID]],DataTable,11,FALSE)),\"\")","v":""},{"$f":"IF(IFERROR(VLOOKUP(Table_Data_Table_1[[#This Row],[Item ID]],DataTable,17,FALSE),\"\")=0,\"\",IFERROR(VLOOKUP(Table_Data_Table_1[[#This Row],[Item ID]],DataTable,17,FALSE),\"\"))","v":""}]
["",null,{"$f":"IF(Table_Data_Table_1[[#This Row],[Item ID]]=\"\",\"\",IFERROR(VLOOKUP(Table_Data_Table_1[[#This Row],[Item ID]],DataTable,16,FALSE),\"\"))","v":""},null,null,null,null,{"$f":"IF(Table_Data_Table_1[[#This Row],[Valuation Method]]=\"Vacant\",VLOOKUP(Table_Data_Table_1[[#This Row],[Item ID]],DataTable,6,FALSE)-VLOOKUP(Table_Data_Table_1[[#This Row],[Item ID]],DataTable,13,FALSE),IF(Table_Data_Table_1[[#This Row],[Valuation Method]]=\"Abstraction\",VLOOKUP(Table_Data_Table_1[[#This Row],[Item ID]],DataTable,6,FALSE)-VLOOKUP(Table_Data_Table_1[[#This Row],[Item ID]],DataTable,13,FALSE),IF(Table_Data_Table_1[[#This Row],[Valuation Method]]=\"Allocation\",VLOOKUP(Table_Data_Table_1[[#This Row],[Item ID]],DataTable,6,FALSE)*I152,\"\")))","v":""},{"$f":"IF(Table_Data_Table_1[[#This Row],[Valuation Method]]=\"Vacant\",\"N/A\",IF(Table_Data_Table_1[[#This Row],[Valuation Method]]=\"Abstraction\",Table_Data_Table_1[[#This Row],[Land\nResidual]]/VLOOKUP(Table_Data_Table_1[[#This Row],[Item ID]],DataTable,6,FALSE),IF(Table_Data_Table_1[[#This Row],[Valuation Method]]=\"Allocation\",'Global Settings'!$H$20,\"\")))","v":""},{"$f":"IFERROR(ROUND(Table_Data_Table_1[[#This Row],[Resid\nSq Ft]]/43560,3),\"\")","v":""},{"$f":"IF(Table_Data_Table_1[[#This Row],[Item ID]]=\"\",\"\",IFERROR(VLOOKUP(Table_Data_Table_1[[#This Row],[Item ID]],DataTable,10,FALSE)-VLOOKUP(Table_Data_Table_1[[#This Row],[Item ID]],DataTable,12,FALSE),\"\"))","v":""},{"$f":"IFERROR(Table_Data_Table_1[[#This Row],[Land\nResidual]]/Table_Data_Table_1[[#This Row],[Resid\nAcre]],\"\")","v":""},{"$f":"IFERROR(ROUND(Table_Data_Table_1[[#This Row],[Land\nResidual]]/Table_Data_Table_1[[#This Row],[Resid\nSq Ft]],2),\"\")","v":""},{"$f":"IF(Table_Data_Table_1[[#This Row],[Item ID]]=\"\",\"\",ROUND(DAYS360(Table_Data_Table_1[[#This Row],[Sale Date]],'Global Settings'!$H$5)/30,0))","v":""},{"$f":"IFERROR(IF(AND(Table_Data_Table_1[[#This Row],[Months To\nMid-Point]]<12.01,Table_Data_Table_1[[#This Row],[Months To\nMid-Point]]>-13),0,(Table_Data_Table_1[[#This Row],[Months To\nMid-Point]]*'Global Settings'!$H$6)),\"\")","v":""},{"$f":"IFERROR(Table_Data_Table_1[[#This Row],[Land\nResidual]]*(Table_Data_Table_1[[#This Row],[Time\nAdjust]]+1),\"\")","v":""},{"$f":"IFERROR(Table_Data_Table_1[[#This Row],[Adjusted\nSale Price]]/Table_Data_Table_1[[#This Row],[Resid\nAcre]],\"\")","v":""},{"$f":"IFERROR(ROUND(Table_Data_Table_1[[#This Row],[Adjusted\nSale Price]]/Table_Data_Table_1[[#This Row],[Resid\nSq Ft]],2),\"\")","v":""},{"$f":"IFERROR(IF(VLOOKUP(Table_Data_Table_1[[#This Row],[Item ID]],DataTable,11,FALSE)=0,\"N/A\",Table_Data_Table_1[[#This Row],[Adjusted\nSale Price]]/VLOOKUP(Table_Data_Table_1[[#This Row],[Item ID]],DataTable,11,FALSE)),\"\")","v":""},{"$f":"IF(IFERROR(VLOOKUP(Table_Data_Table_1[[#This Row],[Item ID]],DataTable,17,FALSE),\"\")=0,\"\",IFERROR(VLOOKUP(Table_Data_Table_1[[#This Row],[Item ID]],DataTable,17,FALSE),\"\"))","v":""}]
["",null,{"$f":"IF(Table_Data_Table_1[[#This Row],[Item ID]]=\"\",\"\",IFERROR(VLOOKUP(Table_Data_Table_1[[#This Row],[Item ID]],DataTable,16,FALSE),\"\"))","v":""},null,null,null,null,{"$f":"IF(Table_Data_Table_1[[#This Row],[Valuation Method]]=\"Vacant\",VLOOKUP(Table_Data_Table_1[[#This Row],[Item ID]],DataTable,6,FALSE)-VLOOKUP(Table_Data_Table_1[[#This Row],[Item ID]],DataTable,13,FALSE),IF(Table_Data_Table_1[[#This Row],[Valuation Method]]=\"Abstraction\",VLOOKUP(Table_Data_Table_1[[#This Row],[Item ID]],DataTable,6,FALSE)-VLOOKUP(Table_Data_Table_1[[#This Row],[Item ID]],DataTable,13,FALSE),IF(Table_Data_Table_1[[#This Row],[Valuation Method]]=\"Allocation\",VLOOKUP(Table_Data_Table_1[[#This Row],[Item ID]],DataTable,6,FALSE)*I153,\"\")))","v":""},{"$f":"IF(Table_Data_Table_1[[#This Row],[Valuation Method]]=\"Vacant\",\"N/A\",IF(Table_Data_Table_1[[#This Row],[Valuation Method]]=\"Abstraction\",Table_Data_Table_1[[#This Row],[Land\nResidual]]/VLOOKUP(Table_Data_Table_1[[#This Row],[Item ID]],DataTable,6,FALSE),IF(Table_Data_Table_1[[#This Row],[Valuation Method]]=\"Allocation\",'Global Settings'!$H$20,\"\")))","v":""},{"$f":"IFERROR(ROUND(Table_Data_Table_1[[#This Row],[Resid\nSq Ft]]/43560,3),\"\")","v":""},{"$f":"IF(Table_Data_Table_1[[#This Row],[Item ID]]=\"\",\"\",IFERROR(VLOOKUP(Table_Data_Table_1[[#This Row],[Item ID]],DataTable,10,FALSE)-VLOOKUP(Table_Data_Table_1[[#This Row],[Item ID]],DataTable,12,FALSE),\"\"))","v":""},{"$f":"IFERROR(Table_Data_Table_1[[#This Row],[Land\nResidual]]/Table_Data_Table_1[[#This Row],[Resid\nAcre]],\"\")","v":""},{"$f":"IFERROR(ROUND(Table_Data_Table_1[[#This Row],[Land\nResidual]]/Table_Data_Table_1[[#This Row],[Resid\nSq Ft]],2),\"\")","v":""},{"$f":"IF(Table_Data_Table_1[[#This Row],[Item ID]]=\"\",\"\",ROUND(DAYS360(Table_Data_Table_1[[#This Row],[Sale Date]],'Global Settings'!$H$5)/30,0))","v":""},{"$f":"IFERROR(IF(AND(Table_Data_Table_1[[#This Row],[Months To\nMid-Point]]<12.01,Table_Data_Table_1[[#This Row],[Months To\nMid-Point]]>-13),0,(Table_Data_Table_1[[#This Row],[Months To\nMid-Point]]*'Global Settings'!$H$6)),\"\")","v":""},{"$f":"IFERROR(Table_Data_Table_1[[#This Row],[Land\nResidual]]*(Table_Data_Table_1[[#This Row],[Time\nAdjust]]+1),\"\")","v":""},{"$f":"IFERROR(Table_Data_Table_1[[#This Row],[Adjusted\nSale Price]]/Table_Data_Table_1[[#This Row],[Resid\nAcre]],\"\")","v":""},{"$f":"IFERROR(ROUND(Table_Data_Table_1[[#This Row],[Adjusted\nSale Price]]/Table_Data_Table_1[[#This Row],[Resid\nSq Ft]],2),\"\")","v":""},{"$f":"IFERROR(IF(VLOOKUP(Table_Data_Table_1[[#This Row],[Item ID]],DataTable,11,FALSE)=0,\"N/A\",Table_Data_Table_1[[#This Row],[Adjusted\nSale Price]]/VLOOKUP(Table_Data_Table_1[[#This Row],[Item ID]],DataTable,11,FALSE)),\"\")","v":""},{"$f":"IF(IFERROR(VLOOKUP(Table_Data_Table_1[[#This Row],[Item ID]],DataTable,17,FALSE),\"\")=0,\"\",IFERROR(VLOOKUP(Table_Data_Table_1[[#This Row],[Item ID]],DataTable,17,FALSE),\"\"))","v":""}]
["",null,{"$f":"IF(Table_Data_Table_1[[#This Row],[Item ID]]=\"\",\"\",IFERROR(VLOOKUP(Table_Data_Table_1[[#This Row],[Item ID]],DataTable,16,FALSE),\"\"))","v":""},null,null,null,null,{"$f":"IF(Table_Data_Table_1[[#This Row],[Valuation Method]]=\"Vacant\",VLOOKUP(Table_Data_Table_1[[#This Row],[Item ID]],DataTable,6,FALSE)-VLOOKUP(Table_Data_Table_1[[#This Row],[Item ID]],DataTable,13,FALSE),IF(Table_Data_Table_1[[#This Row],[Valuation Method]]=\"Abstraction\",VLOOKUP(Table_Data_Table_1[[#This Row],[Item ID]],DataTable,6,FALSE)-VLOOKUP(Table_Data_Table_1[[#This Row],[Item ID]],DataTable,13,FALSE),IF(Table_Data_Table_1[[#This Row],[Valuation Method]]=\"Allocation\",VLOOKUP(Table_Data_Table_1[[#This Row],[Item ID]],DataTable,6,FALSE)*I154,\"\")))","v":""},{"$f":"IF(Table_Data_Table_1[[#This Row],[Valuation Method]]=\"Vacant\",\"N/A\",IF(Table_Data_Table_1[[#This Row],[Valuation Method]]=\"Abstraction\",Table_Data_Table_1[[#This Row],[Land\nResidual]]/VLOOKUP(Table_Data_Table_1[[#This Row],[Item ID]],DataTable,6,FALSE),IF(Table_Data_Table_1[[#This Row],[Valuation Method]]=\"Allocation\",'Global Settings'!$H$20,\"\")))","v":""},{"$f":"IFERROR(ROUND(Table_Data_Table_1[[#This Row],[Resid\nSq Ft]]/43560,3),\"\")","v":""},{"$f":"IF(Table_Data_Table_1[[#This Row],[Item ID]]=\"\",\"\",IFERROR(VLOOKUP(Table_Data_Table_1[[#This Row],[Item ID]],DataTable,10,FALSE)-VLOOKUP(Table_Data_Table_1[[#This Row],[Item ID]],DataTable,12,FALSE),\"\"))","v":""},{"$f":"IFERROR(Table_Data_Table_1[[#This Row],[Land\nResidual]]/Table_Data_Table_1[[#This Row],[Resid\nAcre]],\"\")","v":""},{"$f":"IFERROR(ROUND(Table_Data_Table_1[[#This Row],[Land\nResidual]]/Table_Data_Table_1[[#This Row],[Resid\nSq Ft]],2),\"\")","v":""},{"$f":"IF(Table_Data_Table_1[[#This Row],[Item ID]]=\"\",\"\",ROUND(DAYS360(Table_Data_Table_1[[#This Row],[Sale Date]],'Global Settings'!$H$5)/30,0))","v":""},{"$f":"IFERROR(IF(AND(Table_Data_Table_1[[#This Row],[Months To\nMid-Point]]<12.01,Table_Data_Table_1[[#This Row],[Months To\nMid-Point]]>-13),0,(Table_Data_Table_1[[#This Row],[Months To\nMid-Point]]*'Global Settings'!$H$6)),\"\")","v":""},{"$f":"IFERROR(Table_Data_Table_1[[#This Row],[Land\nResidual]]*(Table_Data_Table_1[[#This Row],[Time\nAdjust]]+1),\"\")","v":""},{"$f":"IFERROR(Table_Data_Table_1[[#This Row],[Adjusted\nSale Price]]/Table_Data_Table_1[[#This Row],[Resid\nAcre]],\"\")","v":""},{"$f":"IFERROR(ROUND(Table_Data_Table_1[[#This Row],[Adjusted\nSale Price]]/Table_Data_Table_1[[#This Row],[Resid\nSq Ft]],2),\"\")","v":""},{"$f":"IFERROR(IF(VLOOKUP(Table_Data_Table_1[[#This Row],[Item ID]],DataTable,11,FALSE)=0,\"N/A\",Table_Data_Table_1[[#This Row],[Adjusted\nSale Price]]/VLOOKUP(Table_Data_Table_1[[#This Row],[Item ID]],DataTable,11,FALSE)),\"\")","v":""},{"$f":"IF(IFERROR(VLOOKUP(Table_Data_Table_1[[#This Row],[Item ID]],DataTable,17,FALSE),\"\")=0,\"\",IFERROR(VLOOKUP(Table_Data_Table_1[[#This Row],[Item ID]],DataTable,17,FALSE),\"\"))","v":""}]
["",null,{"$f":"IF(Table_Data_Table_1[[#This Row],[Item ID]]=\"\",\"\",IFERROR(VLOOKUP(Table_Data_Table_1[[#This Row],[Item ID]],DataTable,16,FALSE),\"\"))","v":""},null,null,null,null,{"$f":"IF(Table_Data_Table_1[[#This Row],[Valuation Method]]=\"Vacant\",VLOOKUP(Table_Data_Table_1[[#This Row],[Item ID]],DataTable,6,FALSE)-VLOOKUP(Table_Data_Table_1[[#This Row],[Item ID]],DataTable,13,FALSE),IF(Table_Data_Table_1[[#This Row],[Valuation Method]]=\"Abstraction\",VLOOKUP(Table_Data_Table_1[[#This Row],[Item ID]],DataTable,6,FALSE)-VLOOKUP(Table_Data_Table_1[[#This Row],[Item ID]],DataTable,13,FALSE),IF(Table_Data_Table_1[[#This Row],[Valuation Method]]=\"Allocation\",VLOOKUP(Table_Data_Table_1[[#This Row],[Item ID]],DataTable,6,FALSE)*I155,\"\")))","v":""},{"$f":"IF(Table_Data_Table_1[[#This Row],[Valuation Method]]=\"Vacant\",\"N/A\",IF(Table_Data_Table_1[[#This Row],[Valuation Method]]=\"Abstraction\",Table_Data_Table_1[[#This Row],[Land\nResidual]]/VLOOKUP(Table_Data_Table_1[[#This Row],[Item ID]],DataTable,6,FALSE),IF(Table_Data_Table_1[[#This Row],[Valuation Method]]=\"Allocation\",'Global Settings'!$H$20,\"\")))","v":""},{"$f":"IFERROR(ROUND(Table_Data_Table_1[[#This Row],[Resid\nSq Ft]]/43560,3),\"\")","v":""},{"$f":"IF(Table_Data_Table_1[[#This Row],[Item ID]]=\"\",\"\",IFERROR(VLOOKUP(Table_Data_Table_1[[#This Row],[Item ID]],DataTable,10,FALSE)-VLOOKUP(Table_Data_Table_1[[#This Row],[Item ID]],DataTable,12,FALSE),\"\"))","v":""},{"$f":"IFERROR(Table_Data_Table_1[[#This Row],[Land\nResidual]]/Table_Data_Table_1[[#This Row],[Resid\nAcre]],\"\")","v":""},{"$f":"IFERROR(ROUND(Table_Data_Table_1[[#This Row],[Land\nResidual]]/Table_Data_Table_1[[#This Row],[Resid\nSq Ft]],2),\"\")","v":""},{"$f":"IF(Table_Data_Table_1[[#This Row],[Item ID]]=\"\",\"\",ROUND(DAYS360(Table_Data_Table_1[[#This Row],[Sale Date]],'Global Settings'!$H$5)/30,0))","v":""},{"$f":"IFERROR(IF(AND(Table_Data_Table_1[[#This Row],[Months To\nMid-Point]]<12.01,Table_Data_Table_1[[#This Row],[Months To\nMid-Point]]>-13),0,(Table_Data_Table_1[[#This Row],[Months To\nMid-Point]]*'Global Settings'!$H$6)),\"\")","v":""},{"$f":"IFERROR(Table_Data_Table_1[[#This Row],[Land\nResidual]]*(Table_Data_Table_1[[#This Row],[Time\nAdjust]]+1),\"\")","v":""},{"$f":"IFERROR(Table_Data_Table_1[[#This Row],[Adjusted\nSale Price]]/Table_Data_Table_1[[#This Row],[Resid\nAcre]],\"\")","v":""},{"$f":"IFERROR(ROUND(Table_Data_Table_1[[#This Row],[Adjusted\nSale Price]]/Table_Data_Table_1[[#This Row],[Resid\nSq Ft]],2),\"\")","v":""},{"$f":"IFERROR(IF(VLOOKUP(Table_Data_Table_1[[#This Row],[Item ID]],DataTable,11,FALSE)=0,\"N/A\",Table_Data_Table_1[[#This Row],[Adjusted\nSale Price]]/VLOOKUP(Table_Data_Table_1[[#This Row],[Item ID]],DataTable,11,FALSE)),\"\")","v":""},{"$f":"IF(IFERROR(VLOOKUP(Table_Data_Table_1[[#This Row],[Item ID]],DataTable,17,FALSE),\"\")=0,\"\",IFERROR(VLOOKUP(Table_Data_Table_1[[#This Row],[Item ID]],DataTable,17,FALSE),\"\"))","v":""}]
["",null,{"$f":"IF(Table_Data_Table_1[[#This Row],[Item ID]]=\"\",\"\",IFERROR(VLOOKUP(Table_Data_Table_1[[#This Row],[Item ID]],DataTable,16,FALSE),\"\"))","v":""},null,null,null,null,{"$f":"IF(Table_Data_Table_1[[#This Row],[Valuation Method]]=\"Vacant\",VLOOKUP(Table_Data_Table_1[[#This Row],[Item ID]],DataTable,6,FALSE)-VLOOKUP(Table_Data_Table_1[[#This Row],[Item ID]],DataTable,13,FALSE),IF(Table_Data_Table_1[[#This Row],[Valuation Method]]=\"Abstraction\",VLOOKUP(Table_Data_Table_1[[#This Row],[Item ID]],DataTable,6,FALSE)-VLOOKUP(Table_Data_Table_1[[#This Row],[Item ID]],DataTable,13,FALSE),IF(Table_Data_Table_1[[#This Row],[Valuation Method]]=\"Allocation\",VLOOKUP(Table_Data_Table_1[[#This Row],[Item ID]],DataTable,6,FALSE)*I156,\"\")))","v":""},{"$f":"IF(Table_Data_Table_1[[#This Row],[Valuation Method]]=\"Vacant\",\"N/A\",IF(Table_Data_Table_1[[#This Row],[Valuation Method]]=\"Abstraction\",Table_Data_Table_1[[#This Row],[Land\nResidual]]/VLOOKUP(Table_Data_Table_1[[#This Row],[Item ID]],DataTable,6,FALSE),IF(Table_Data_Table_1[[#This Row],[Valuation Method]]=\"Allocation\",'Global Settings'!$H$20,\"\")))","v":""},{"$f":"IFERROR(ROUND(Table_Data_Table_1[[#This Row],[Resid\nSq Ft]]/43560,3),\"\")","v":""},{"$f":"IF(Table_Data_Table_1[[#This Row],[Item ID]]=\"\",\"\",IFERROR(VLOOKUP(Table_Data_Table_1[[#This Row],[Item ID]],DataTable,10,FALSE)-VLOOKUP(Table_Data_Table_1[[#This Row],[Item ID]],DataTable,12,FALSE),\"\"))","v":""},{"$f":"IFERROR(Table_Data_Table_1[[#This Row],[Land\nResidual]]/Table_Data_Table_1[[#This Row],[Resid\nAcre]],\"\")","v":""},{"$f":"IFERROR(ROUND(Table_Data_Table_1[[#This Row],[Land\nResidual]]/Table_Data_Table_1[[#This Row],[Resid\nSq Ft]],2),\"\")","v":""},{"$f":"IF(Table_Data_Table_1[[#This Row],[Item ID]]=\"\",\"\",ROUND(DAYS360(Table_Data_Table_1[[#This Row],[Sale Date]],'Global Settings'!$H$5)/30,0))","v":""},{"$f":"IFERROR(IF(AND(Table_Data_Table_1[[#This Row],[Months To\nMid-Point]]<12.01,Table_Data_Table_1[[#This Row],[Months To\nMid-Point]]>-13),0,(Table_Data_Table_1[[#This Row],[Months To\nMid-Point]]*'Global Settings'!$H$6)),\"\")","v":""},{"$f":"IFERROR(Table_Data_Table_1[[#This Row],[Land\nResidual]]*(Table_Data_Table_1[[#This Row],[Time\nAdjust]]+1),\"\")","v":""},{"$f":"IFERROR(Table_Data_Table_1[[#This Row],[Adjusted\nSale Price]]/Table_Data_Table_1[[#This Row],[Resid\nAcre]],\"\")","v":""},{"$f":"IFERROR(ROUND(Table_Data_Table_1[[#This Row],[Adjusted\nSale Price]]/Table_Data_Table_1[[#This Row],[Resid\nSq Ft]],2),\"\")","v":""},{"$f":"IFERROR(IF(VLOOKUP(Table_Data_Table_1[[#This Row],[Item ID]],DataTable,11,FALSE)=0,\"N/A\",Table_Data_Table_1[[#This Row],[Adjusted\nSale Price]]/VLOOKUP(Table_Data_Table_1[[#This Row],[Item ID]],DataTable,11,FALSE)),\"\")","v":""},{"$f":"IF(IFERROR(VLOOKUP(Table_Data_Table_1[[#This Row],[Item ID]],DataTable,17,FALSE),\"\")=0,\"\",IFERROR(VLOOKUP(Table_Data_Table_1[[#This Row],[Item ID]],DataTable,17,FALSE),\"\"))","v":""}]
["",null,{"$f":"IF(Table_Data_Table_1[[#This Row],[Item ID]]=\"\",\"\",IFERROR(VLOOKUP(Table_Data_Table_1[[#This Row],[Item ID]],DataTable,16,FALSE),\"\"))","v":""},null,null,null,null,{"$f":"IF(Table_Data_Table_1[[#This Row],[Valuation Method]]=\"Vacant\",VLOOKUP(Table_Data_Table_1[[#This Row],[Item ID]],DataTable,6,FALSE)-VLOOKUP(Table_Data_Table_1[[#This Row],[Item ID]],DataTable,13,FALSE),IF(Table_Data_Table_1[[#This Row],[Valuation Method]]=\"Abstraction\",VLOOKUP(Table_Data_Table_1[[#This Row],[Item ID]],DataTable,6,FALSE)-VLOOKUP(Table_Data_Table_1[[#This Row],[Item ID]],DataTable,13,FALSE),IF(Table_Data_Table_1[[#This Row],[Valuation Method]]=\"Allocation\",VLOOKUP(Table_Data_Table_1[[#This Row],[Item ID]],DataTable,6,FALSE)*I157,\"\")))","v":""},{"$f":"IF(Table_Data_Table_1[[#This Row],[Valuation Method]]=\"Vacant\",\"N/A\",IF(Table_Data_Table_1[[#This Row],[Valuation Method]]=\"Abstraction\",Table_Data_Table_1[[#This Row],[Land\nResidual]]/VLOOKUP(Table_Data_Table_1[[#This Row],[Item ID]],DataTable,6,FALSE),IF(Table_Data_Table_1[[#This Row],[Valuation Method]]=\"Allocation\",'Global Settings'!$H$20,\"\")))","v":""},{"$f":"IFERROR(ROUND(Table_Data_Table_1[[#This Row],[Resid\nSq Ft]]/43560,3),\"\")","v":""},{"$f":"IF(Table_Data_Table_1[[#This Row],[Item ID]]=\"\",\"\",IFERROR(VLOOKUP(Table_Data_Table_1[[#This Row],[Item ID]],DataTable,10,FALSE)-VLOOKUP(Table_Data_Table_1[[#This Row],[Item ID]],DataTable,12,FALSE),\"\"))","v":""},{"$f":"IFERROR(Table_Data_Table_1[[#This Row],[Land\nResidual]]/Table_Data_Table_1[[#This Row],[Resid\nAcre]],\"\")","v":""},{"$f":"IFERROR(ROUND(Table_Data_Table_1[[#This Row],[Land\nResidual]]/Table_Data_Table_1[[#This Row],[Resid\nSq Ft]],2),\"\")","v":""},{"$f":"IF(Table_Data_Table_1[[#This Row],[Item ID]]=\"\",\"\",ROUND(DAYS360(Table_Data_Table_1[[#This Row],[Sale Date]],'Global Settings'!$H$5)/30,0))","v":""},{"$f":"IFERROR(IF(AND(Table_Data_Table_1[[#This Row],[Months To\nMid-Point]]<12.01,Table_Data_Table_1[[#This Row],[Months To\nMid-Point]]>-13),0,(Table_Data_Table_1[[#This Row],[Months To\nMid-Point]]*'Global Settings'!$H$6)),\"\")","v":""},{"$f":"IFERROR(Table_Data_Table_1[[#This Row],[Land\nResidual]]*(Table_Data_Table_1[[#This Row],[Time\nAdjust]]+1),\"\")","v":""},{"$f":"IFERROR(Table_Data_Table_1[[#This Row],[Adjusted\nSale Price]]/Table_Data_Table_1[[#This Row],[Resid\nAcre]],\"\")","v":""},{"$f":"IFERROR(ROUND(Table_Data_Table_1[[#This Row],[Adjusted\nSale Price]]/Table_Data_Table_1[[#This Row],[Resid\nSq Ft]],2),\"\")","v":""},{"$f":"IFERROR(IF(VLOOKUP(Table_Data_Table_1[[#This Row],[Item ID]],DataTable,11,FALSE)=0,\"N/A\",Table_Data_Table_1[[#This Row],[Adjusted\nSale Price]]/VLOOKUP(Table_Data_Table_1[[#This Row],[Item ID]],DataTable,11,FALSE)),\"\")","v":""},{"$f":"IF(IFERROR(VLOOKUP(Table_Data_Table_1[[#This Row],[Item ID]],DataTable,17,FALSE),\"\")=0,\"\",IFERROR(VLOOKUP(Table_Data_Table_1[[#This Row],[Item ID]],DataTable,17,FALSE),\"\"))","v":""}]
["",null,{"$f":"IF(Table_Data_Table_1[[#This Row],[Item ID]]=\"\",\"\",IFERROR(VLOOKUP(Table_Data_Table_1[[#This Row],[Item ID]],DataTable,16,FALSE),\"\"))","v":""},null,null,null,null,{"$f":"IF(Table_Data_Table_1[[#This Row],[Valuation Method]]=\"Vacant\",VLOOKUP(Table_Data_Table_1[[#This Row],[Item ID]],DataTable,6,FALSE)-VLOOKUP(Table_Data_Table_1[[#This Row],[Item ID]],DataTable,13,FALSE),IF(Table_Data_Table_1[[#This Row],[Valuation Method]]=\"Abstraction\",VLOOKUP(Table_Data_Table_1[[#This Row],[Item ID]],DataTable,6,FALSE)-VLOOKUP(Table_Data_Table_1[[#This Row],[Item ID]],DataTable,13,FALSE),IF(Table_Data_Table_1[[#This Row],[Valuation Method]]=\"Allocation\",VLOOKUP(Table_Data_Table_1[[#This Row],[Item ID]],DataTable,6,FALSE)*I158,\"\")))","v":""},{"$f":"IF(Table_Data_Table_1[[#This Row],[Valuation Method]]=\"Vacant\",\"N/A\",IF(Table_Data_Table_1[[#This Row],[Valuation Method]]=\"Abstraction\",Table_Data_Table_1[[#This Row],[Land\nResidual]]/VLOOKUP(Table_Data_Table_1[[#This Row],[Item ID]],DataTable,6,FALSE),IF(Table_Data_Table_1[[#This Row],[Valuation Method]]=\"Allocation\",'Global Settings'!$H$20,\"\")))","v":""},{"$f":"IFERROR(ROUND(Table_Data_Table_1[[#This Row],[Resid\nSq Ft]]/43560,3),\"\")","v":""},{"$f":"IF(Table_Data_Table_1[[#This Row],[Item ID]]=\"\",\"\",IFERROR(VLOOKUP(Table_Data_Table_1[[#This Row],[Item ID]],DataTable,10,FALSE)-VLOOKUP(Table_Data_Table_1[[#This Row],[Item ID]],DataTable,12,FALSE),\"\"))","v":""},{"$f":"IFERROR(Table_Data_Table_1[[#This Row],[Land\nResidual]]/Table_Data_Table_1[[#This Row],[Resid\nAcre]],\"\")","v":""},{"$f":"IFERROR(ROUND(Table_Data_Table_1[[#This Row],[Land\nResidual]]/Table_Data_Table_1[[#This Row],[Resid\nSq Ft]],2),\"\")","v":""},{"$f":"IF(Table_Data_Table_1[[#This Row],[Item ID]]=\"\",\"\",ROUND(DAYS360(Table_Data_Table_1[[#This Row],[Sale Date]],'Global Settings'!$H$5)/30,0))","v":""},{"$f":"IFERROR(IF(AND(Table_Data_Table_1[[#This Row],[Months To\nMid-Point]]<12.01,Table_Data_Table_1[[#This Row],[Months To\nMid-Point]]>-13),0,(Table_Data_Table_1[[#This Row],[Months To\nMid-Point]]*'Global Settings'!$H$6)),\"\")","v":""},{"$f":"IFERROR(Table_Data_Table_1[[#This Row],[Land\nResidual]]*(Table_Data_Table_1[[#This Row],[Time\nAdjust]]+1),\"\")","v":""},{"$f":"IFERROR(Table_Data_Table_1[[#This Row],[Adjusted\nSale Price]]/Table_Data_Table_1[[#This Row],[Resid\nAcre]],\"\")","v":""},{"$f":"IFERROR(ROUND(Table_Data_Table_1[[#This Row],[Adjusted\nSale Price]]/Table_Data_Table_1[[#This Row],[Resid\nSq Ft]],2),\"\")","v":""},{"$f":"IFERROR(IF(VLOOKUP(Table_Data_Table_1[[#This Row],[Item ID]],DataTable,11,FALSE)=0,\"N/A\",Table_Data_Table_1[[#This Row],[Adjusted\nSale Price]]/VLOOKUP(Table_Data_Table_1[[#This Row],[Item ID]],DataTable,11,FALSE)),\"\")","v":""},{"$f":"IF(IFERROR(VLOOKUP(Table_Data_Table_1[[#This Row],[Item ID]],DataTable,17,FALSE),\"\")=0,\"\",IFERROR(VLOOKUP(Table_Data_Table_1[[#This Row],[Item ID]],DataTable,17,FALSE),\"\"))","v":""}]
["",null,{"$f":"IF(Table_Data_Table_1[[#This Row],[Item ID]]=\"\",\"\",IFERROR(VLOOKUP(Table_Data_Table_1[[#This Row],[Item ID]],DataTable,16,FALSE),\"\"))","v":""},null,null,null,null,{"$f":"IF(Table_Data_Table_1[[#This Row],[Valuation Method]]=\"Vacant\",VLOOKUP(Table_Data_Table_1[[#This Row],[Item ID]],DataTable,6,FALSE)-VLOOKUP(Table_Data_Table_1[[#This Row],[Item ID]],DataTable,13,FALSE),IF(Table_Data_Table_1[[#This Row],[Valuation Method]]=\"Abstraction\",VLOOKUP(Table_Data_Table_1[[#This Row],[Item ID]],DataTable,6,FALSE)-VLOOKUP(Table_Data_Table_1[[#This Row],[Item ID]],DataTable,13,FALSE),IF(Table_Data_Table_1[[#This Row],[Valuation Method]]=\"Allocation\",VLOOKUP(Table_Data_Table_1[[#This Row],[Item ID]],DataTable,6,FALSE)*I159,\"\")))","v":""},{"$f":"IF(Table_Data_Table_1[[#This Row],[Valuation Method]]=\"Vacant\",\"N/A\",IF(Table_Data_Table_1[[#This Row],[Valuation Method]]=\"Abstraction\",Table_Data_Table_1[[#This Row],[Land\nResidual]]/VLOOKUP(Table_Data_Table_1[[#This Row],[Item ID]],DataTable,6,FALSE),IF(Table_Data_Table_1[[#This Row],[Valuation Method]]=\"Allocation\",'Global Settings'!$H$20,\"\")))","v":""},{"$f":"IFERROR(ROUND(Table_Data_Table_1[[#This Row],[Resid\nSq Ft]]/43560,3),\"\")","v":""},{"$f":"IF(Table_Data_Table_1[[#This Row],[Item ID]]=\"\",\"\",IFERROR(VLOOKUP(Table_Data_Table_1[[#This Row],[Item ID]],DataTable,10,FALSE)-VLOOKUP(Table_Data_Table_1[[#This Row],[Item ID]],DataTable,12,FALSE),\"\"))","v":""},{"$f":"IFERROR(Table_Data_Table_1[[#This Row],[Land\nResidual]]/Table_Data_Table_1[[#This Row],[Resid\nAcre]],\"\")","v":""},{"$f":"IFERROR(ROUND(Table_Data_Table_1[[#This Row],[Land\nResidual]]/Table_Data_Table_1[[#This Row],[Resid\nSq Ft]],2),\"\")","v":""},{"$f":"IF(Table_Data_Table_1[[#This Row],[Item ID]]=\"\",\"\",ROUND(DAYS360(Table_Data_Table_1[[#This Row],[Sale Date]],'Global Settings'!$H$5)/30,0))","v":""},{"$f":"IFERROR(IF(AND(Table_Data_Table_1[[#This Row],[Months To\nMid-Point]]<12.01,Table_Data_Table_1[[#This Row],[Months To\nMid-Point]]>-13),0,(Table_Data_Table_1[[#This Row],[Months To\nMid-Point]]*'Global Settings'!$H$6)),\"\")","v":""},{"$f":"IFERROR(Table_Data_Table_1[[#This Row],[Land\nResidual]]*(Table_Data_Table_1[[#This Row],[Time\nAdjust]]+1),\"\")","v":""},{"$f":"IFERROR(Table_Data_Table_1[[#This Row],[Adjusted\nSale Price]]/Table_Data_Table_1[[#This Row],[Resid\nAcre]],\"\")","v":""},{"$f":"IFERROR(ROUND(Table_Data_Table_1[[#This Row],[Adjusted\nSale Price]]/Table_Data_Table_1[[#This Row],[Resid\nSq Ft]],2),\"\")","v":""},{"$f":"IFERROR(IF(VLOOKUP(Table_Data_Table_1[[#This Row],[Item ID]],DataTable,11,FALSE)=0,\"N/A\",Table_Data_Table_1[[#This Row],[Adjusted\nSale Price]]/VLOOKUP(Table_Data_Table_1[[#This Row],[Item ID]],DataTable,11,FALSE)),\"\")","v":""},{"$f":"IF(IFERROR(VLOOKUP(Table_Data_Table_1[[#This Row],[Item ID]],DataTable,17,FALSE),\"\")=0,\"\",IFERROR(VLOOKUP(Table_Data_Table_1[[#This Row],[Item ID]],DataTable,17,FALSE),\"\"))","v":""}]
["",null,{"$f":"IF(Table_Data_Table_1[[#This Row],[Item ID]]=\"\",\"\",IFERROR(VLOOKUP(Table_Data_Table_1[[#This Row],[Item ID]],DataTable,16,FALSE),\"\"))","v":""},null,null,null,null,{"$f":"IF(Table_Data_Table_1[[#This Row],[Valuation Method]]=\"Vacant\",VLOOKUP(Table_Data_Table_1[[#This Row],[Item ID]],DataTable,6,FALSE)-VLOOKUP(Table_Data_Table_1[[#This Row],[Item ID]],DataTable,13,FALSE),IF(Table_Data_Table_1[[#This Row],[Valuation Method]]=\"Abstraction\",VLOOKUP(Table_Data_Table_1[[#This Row],[Item ID]],DataTable,6,FALSE)-VLOOKUP(Table_Data_Table_1[[#This Row],[Item ID]],DataTable,13,FALSE),IF(Table_Data_Table_1[[#This Row],[Valuation Method]]=\"Allocation\",VLOOKUP(Table_Data_Table_1[[#This Row],[Item ID]],DataTable,6,FALSE)*I160,\"\")))","v":""},{"$f":"IF(Table_Data_Table_1[[#This Row],[Valuation Method]]=\"Vacant\",\"N/A\",IF(Table_Data_Table_1[[#This Row],[Valuation Method]]=\"Abstraction\",Table_Data_Table_1[[#This Row],[Land\nResidual]]/VLOOKUP(Table_Data_Table_1[[#This Row],[Item ID]],DataTable,6,FALSE),IF(Table_Data_Table_1[[#This Row],[Valuation Method]]=\"Allocation\",'Global Settings'!$H$20,\"\")))","v":""},{"$f":"IFERROR(ROUND(Table_Data_Table_1[[#This Row],[Resid\nSq Ft]]/43560,3),\"\")","v":""},{"$f":"IF(Table_Data_Table_1[[#This Row],[Item ID]]=\"\",\"\",IFERROR(VLOOKUP(Table_Data_Table_1[[#This Row],[Item ID]],DataTable,10,FALSE)-VLOOKUP(Table_Data_Table_1[[#This Row],[Item ID]],DataTable,12,FALSE),\"\"))","v":""},{"$f":"IFERROR(Table_Data_Table_1[[#This Row],[Land\nResidual]]/Table_Data_Table_1[[#This Row],[Resid\nAcre]],\"\")","v":""},{"$f":"IFERROR(ROUND(Table_Data_Table_1[[#This Row],[Land\nResidual]]/Table_Data_Table_1[[#This Row],[Resid\nSq Ft]],2),\"\")","v":""},{"$f":"IF(Table_Data_Table_1[[#This Row],[Item ID]]=\"\",\"\",ROUND(DAYS360(Table_Data_Table_1[[#This Row],[Sale Date]],'Global Settings'!$H$5)/30,0))","v":""},{"$f":"IFERROR(IF(AND(Table_Data_Table_1[[#This Row],[Months To\nMid-Point]]<12.01,Table_Data_Table_1[[#This Row],[Months To\nMid-Point]]>-13),0,(Table_Data_Table_1[[#This Row],[Months To\nMid-Point]]*'Global Settings'!$H$6)),\"\")","v":""},{"$f":"IFERROR(Table_Data_Table_1[[#This Row],[Land\nResidual]]*(Table_Data_Table_1[[#This Row],[Time\nAdjust]]+1),\"\")","v":""},{"$f":"IFERROR(Table_Data_Table_1[[#This Row],[Adjusted\nSale Price]]/Table_Data_Table_1[[#This Row],[Resid\nAcre]],\"\")","v":""},{"$f":"IFERROR(ROUND(Table_Data_Table_1[[#This Row],[Adjusted\nSale Price]]/Table_Data_Table_1[[#This Row],[Resid\nSq Ft]],2),\"\")","v":""},{"$f":"IFERROR(IF(VLOOKUP(Table_Data_Table_1[[#This Row],[Item ID]],DataTable,11,FALSE)=0,\"N/A\",Table_Data_Table_1[[#This Row],[Adjusted\nSale Price]]/VLOOKUP(Table_Data_Table_1[[#This Row],[Item ID]],DataTable,11,FALSE)),\"\")","v":""},{"$f":"IF(IFERROR(VLOOKUP(Table_Data_Table_1[[#This Row],[Item ID]],DataTable,17,FALSE),\"\")=0,\"\",IFERROR(VLOOKUP(Table_Data_Table_1[[#This Row],[Item ID]],DataTable,17,FALSE),\"\"))","v":""}]
["",null,{"$f":"IF(Table_Data_Table_1[[#This Row],[Item ID]]=\"\",\"\",IFERROR(VLOOKUP(Table_Data_Table_1[[#This Row],[Item ID]],DataTable,16,FALSE),\"\"))","v":""},null,null,null,null,{"$f":"IF(Table_Data_Table_1[[#This Row],[Valuation Method]]=\"Vacant\",VLOOKUP(Table_Data_Table_1[[#This Row],[Item ID]],DataTable,6,FALSE)-VLOOKUP(Table_Data_Table_1[[#This Row],[Item ID]],DataTable,13,FALSE),IF(Table_Data_Table_1[[#This Row],[Valuation Method]]=\"Abstraction\",VLOOKUP(Table_Data_Table_1[[#This Row],[Item ID]],DataTable,6,FALSE)-VLOOKUP(Table_Data_Table_1[[#This Row],[Item ID]],DataTable,13,FALSE),IF(Table_Data_Table_1[[#This Row],[Valuation Method]]=\"Allocation\",VLOOKUP(Table_Data_Table_1[[#This Row],[Item ID]],DataTable,6,FALSE)*I161,\"\")))","v":""},{"$f":"IF(Table_Data_Table_1[[#This Row],[Valuation Method]]=\"Vacant\",\"N/A\",IF(Table_Data_Table_1[[#This Row],[Valuation Method]]=\"Abstraction\",Table_Data_Table_1[[#This Row],[Land\nResidual]]/VLOOKUP(Table_Data_Table_1[[#This Row],[Item ID]],DataTable,6,FALSE),IF(Table_Data_Table_1[[#This Row],[Valuation Method]]=\"Allocation\",'Global Settings'!$H$20,\"\")))","v":""},{"$f":"IFERROR(ROUND(Table_Data_Table_1[[#This Row],[Resid\nSq Ft]]/43560,3),\"\")","v":""},{"$f":"IF(Table_Data_Table_1[[#This Row],[Item ID]]=\"\",\"\",IFERROR(VLOOKUP(Table_Data_Table_1[[#This Row],[Item ID]],DataTable,10,FALSE)-VLOOKUP(Table_Data_Table_1[[#This Row],[Item ID]],DataTable,12,FALSE),\"\"))","v":""},{"$f":"IFERROR(Table_Data_Table_1[[#This Row],[Land\nResidual]]/Table_Data_Table_1[[#This Row],[Resid\nAcre]],\"\")","v":""},{"$f":"IFERROR(ROUND(Table_Data_Table_1[[#This Row],[Land\nResidual]]/Table_Data_Table_1[[#This Row],[Resid\nSq Ft]],2),\"\")","v":""},{"$f":"IF(Table_Data_Table_1[[#This Row],[Item ID]]=\"\",\"\",ROUND(DAYS360(Table_Data_Table_1[[#This Row],[Sale Date]],'Global Settings'!$H$5)/30,0))","v":""},{"$f":"IFERROR(IF(AND(Table_Data_Table_1[[#This Row],[Months To\nMid-Point]]<12.01,Table_Data_Table_1[[#This Row],[Months To\nMid-Point]]>-13),0,(Table_Data_Table_1[[#This Row],[Months To\nMid-Point]]*'Global Settings'!$H$6)),\"\")","v":""},{"$f":"IFERROR(Table_Data_Table_1[[#This Row],[Land\nResidual]]*(Table_Data_Table_1[[#This Row],[Time\nAdjust]]+1),\"\")","v":""},{"$f":"IFERROR(Table_Data_Table_1[[#This Row],[Adjusted\nSale Price]]/Table_Data_Table_1[[#This Row],[Resid\nAcre]],\"\")","v":""},{"$f":"IFERROR(ROUND(Table_Data_Table_1[[#This Row],[Adjusted\nSale Price]]/Table_Data_Table_1[[#This Row],[Resid\nSq Ft]],2),\"\")","v":""},{"$f":"IFERROR(IF(VLOOKUP(Table_Data_Table_1[[#This Row],[Item ID]],DataTable,11,FALSE)=0,\"N/A\",Table_Data_Table_1[[#This Row],[Adjusted\nSale Price]]/VLOOKUP(Table_Data_Table_1[[#This Row],[Item ID]],DataTable,11,FALSE)),\"\")","v":""},{"$f":"IF(IFERROR(VLOOKUP(Table_Data_Table_1[[#This Row],[Item ID]],DataTable,17,FALSE),\"\")=0,\"\",IFERROR(VLOOKUP(Table_Data_Table_1[[#This Row],[Item ID]],DataTable,17,FALSE),\"\"))","v":""}]
["",null,{"$f":"IF(Table_Data_Table_1[[#This Row],[Item ID]]=\"\",\"\",IFERROR(VLOOKUP(Table_Data_Table_1[[#This Row],[Item ID]],DataTable,16,FALSE),\"\"))","v":""},null,null,null,null,{"$f":"IF(Table_Data_Table_1[[#This Row],[Valuation Method]]=\"Vacant\",VLOOKUP(Table_Data_Table_1[[#This Row],[Item ID]],DataTable,6,FALSE)-VLOOKUP(Table_Data_Table_1[[#This Row],[Item ID]],DataTable,13,FALSE),IF(Table_Data_Table_1[[#This Row],[Valuation Method]]=\"Abstraction\",VLOOKUP(Table_Data_Table_1[[#This Row],[Item ID]],DataTable,6,FALSE)-VLOOKUP(Table_Data_Table_1[[#This Row],[Item ID]],DataTable,13,FALSE),IF(Table_Data_Table_1[[#This Row],[Valuation Method]]=\"Allocation\",VLOOKUP(Table_Data_Table_1[[#This Row],[Item ID]],DataTable,6,FALSE)*I162,\"\")))","v":""},{"$f":"IF(Table_Data_Table_1[[#This Row],[Valuation Method]]=\"Vacant\",\"N/A\",IF(Table_Data_Table_1[[#This Row],[Valuation Method]]=\"Abstraction\",Table_Data_Table_1[[#This Row],[Land\nResidual]]/VLOOKUP(Table_Data_Table_1[[#This Row],[Item ID]],DataTable,6,FALSE),IF(Table_Data_Table_1[[#This Row],[Valuation Method]]=\"Allocation\",'Global Settings'!$H$20,\"\")))","v":""},{"$f":"IFERROR(ROUND(Table_Data_Table_1[[#This Row],[Resid\nSq Ft]]/43560,3),\"\")","v":""},{"$f":"IF(Table_Data_Table_1[[#This Row],[Item ID]]=\"\",\"\",IFERROR(VLOOKUP(Table_Data_Table_1[[#This Row],[Item ID]],DataTable,10,FALSE)-VLOOKUP(Table_Data_Table_1[[#This Row],[Item ID]],DataTable,12,FALSE),\"\"))","v":""},{"$f":"IFERROR(Table_Data_Table_1[[#This Row],[Land\nResidual]]/Table_Data_Table_1[[#This Row],[Resid\nAcre]],\"\")","v":""},{"$f":"IFERROR(ROUND(Table_Data_Table_1[[#This Row],[Land\nResidual]]/Table_Data_Table_1[[#This Row],[Resid\nSq Ft]],2),\"\")","v":""},{"$f":"IF(Table_Data_Table_1[[#This Row],[Item ID]]=\"\",\"\",ROUND(DAYS360(Table_Data_Table_1[[#This Row],[Sale Date]],'Global Settings'!$H$5)/30,0))","v":""},{"$f":"IFERROR(IF(AND(Table_Data_Table_1[[#This Row],[Months To\nMid-Point]]<12.01,Table_Data_Table_1[[#This Row],[Months To\nMid-Point]]>-13),0,(Table_Data_Table_1[[#This Row],[Months To\nMid-Point]]*'Global Settings'!$H$6)),\"\")","v":""},{"$f":"IFERROR(Table_Data_Table_1[[#This Row],[Land\nResidual]]*(Table_Data_Table_1[[#This Row],[Time\nAdjust]]+1),\"\")","v":""},{"$f":"IFERROR(Table_Data_Table_1[[#This Row],[Adjusted\nSale Price]]/Table_Data_Table_1[[#This Row],[Resid\nAcre]],\"\")","v":""},{"$f":"IFERROR(ROUND(Table_Data_Table_1[[#This Row],[Adjusted\nSale Price]]/Table_Data_Table_1[[#This Row],[Resid\nSq Ft]],2),\"\")","v":""},{"$f":"IFERROR(IF(VLOOKUP(Table_Data_Table_1[[#This Row],[Item ID]],DataTable,11,FALSE)=0,\"N/A\",Table_Data_Table_1[[#This Row],[Adjusted\nSale Price]]/VLOOKUP(Table_Data_Table_1[[#This Row],[Item ID]],DataTable,11,FALSE)),\"\")","v":""},{"$f":"IF(IFERROR(VLOOKUP(Table_Data_Table_1[[#This Row],[Item ID]],DataTable,17,FALSE),\"\")=0,\"\",IFERROR(VLOOKUP(Table_Data_Table_1[[#This Row],[Item ID]],DataTable,17,FALSE),\"\"))","v":""}]
["",null,{"$f":"IF(Table_Data_Table_1[[#This Row],[Item ID]]=\"\",\"\",IFERROR(VLOOKUP(Table_Data_Table_1[[#This Row],[Item ID]],DataTable,16,FALSE),\"\"))","v":""},null,null,null,null,{"$f":"IF(Table_Data_Table_1[[#This Row],[Valuation Method]]=\"Vacant\",VLOOKUP(Table_Data_Table_1[[#This Row],[Item ID]],DataTable,6,FALSE)-VLOOKUP(Table_Data_Table_1[[#This Row],[Item ID]],DataTable,13,FALSE),IF(Table_Data_Table_1[[#This Row],[Valuation Method]]=\"Abstraction\",VLOOKUP(Table_Data_Table_1[[#This Row],[Item ID]],DataTable,6,FALSE)-VLOOKUP(Table_Data_Table_1[[#This Row],[Item ID]],DataTable,13,FALSE),IF(Table_Data_Table_1[[#This Row],[Valuation Method]]=\"Allocation\",VLOOKUP(Table_Data_Table_1[[#This Row],[Item ID]],DataTable,6,FALSE)*I163,\"\")))","v":""},{"$f":"IF(Table_Data_Table_1[[#This Row],[Valuation Method]]=\"Vacant\",\"N/A\",IF(Table_Data_Table_1[[#This Row],[Valuation Method]]=\"Abstraction\",Table_Data_Table_1[[#This Row],[Land\nResidual]]/VLOOKUP(Table_Data_Table_1[[#This Row],[Item ID]],DataTable,6,FALSE),IF(Table_Data_Table_1[[#This Row],[Valuation Method]]=\"Allocation\",'Global Settings'!$H$20,\"\")))","v":""},{"$f":"IFERROR(ROUND(Table_Data_Table_1[[#This Row],[Resid\nSq Ft]]/43560,3),\"\")","v":""},{"$f":"IF(Table_Data_Table_1[[#This Row],[Item ID]]=\"\",\"\",IFERROR(VLOOKUP(Table_Data_Table_1[[#This Row],[Item ID]],DataTable,10,FALSE)-VLOOKUP(Table_Data_Table_1[[#This Row],[Item ID]],DataTable,12,FALSE),\"\"))","v":""},{"$f":"IFERROR(Table_Data_Table_1[[#This Row],[Land\nResidual]]/Table_Data_Table_1[[#This Row],[Resid\nAcre]],\"\")","v":""},{"$f":"IFERROR(ROUND(Table_Data_Table_1[[#This Row],[Land\nResidual]]/Table_Data_Table_1[[#This Row],[Resid\nSq Ft]],2),\"\")","v":""},{"$f":"IF(Table_Data_Table_1[[#This Row],[Item ID]]=\"\",\"\",ROUND(DAYS360(Table_Data_Table_1[[#This Row],[Sale Date]],'Global Settings'!$H$5)/30,0))","v":""},{"$f":"IFERROR(IF(AND(Table_Data_Table_1[[#This Row],[Months To\nMid-Point]]<12.01,Table_Data_Table_1[[#This Row],[Months To\nMid-Point]]>-13),0,(Table_Data_Table_1[[#This Row],[Months To\nMid-Point]]*'Global Settings'!$H$6)),\"\")","v":""},{"$f":"IFERROR(Table_Data_Table_1[[#This Row],[Land\nResidual]]*(Table_Data_Table_1[[#This Row],[Time\nAdjust]]+1),\"\")","v":""},{"$f":"IFERROR(Table_Data_Table_1[[#This Row],[Adjusted\nSale Price]]/Table_Data_Table_1[[#This Row],[Resid\nAcre]],\"\")","v":""},{"$f":"IFERROR(ROUND(Table_Data_Table_1[[#This Row],[Adjusted\nSale Price]]/Table_Data_Table_1[[#This Row],[Resid\nSq Ft]],2),\"\")","v":""},{"$f":"IFERROR(IF(VLOOKUP(Table_Data_Table_1[[#This Row],[Item ID]],DataTable,11,FALSE)=0,\"N/A\",Table_Data_Table_1[[#This Row],[Adjusted\nSale Price]]/VLOOKUP(Table_Data_Table_1[[#This Row],[Item ID]],DataTable,11,FALSE)),\"\")","v":""},{"$f":"IF(IFERROR(VLOOKUP(Table_Data_Table_1[[#This Row],[Item ID]],DataTable,17,FALSE),\"\")=0,\"\",IFERROR(VLOOKUP(Table_Data_Table_1[[#This Row],[Item ID]],DataTable,17,FALSE),\"\"))","v":""}]
["",null,{"$f":"IF(Table_Data_Table_1[[#This Row],[Item ID]]=\"\",\"\",IFERROR(VLOOKUP(Table_Data_Table_1[[#This Row],[Item ID]],DataTable,16,FALSE),\"\"))","v":""},null,null,null,null,{"$f":"IF(Table_Data_Table_1[[#This Row],[Valuation Method]]=\"Vacant\",VLOOKUP(Table_Data_Table_1[[#This Row],[Item ID]],DataTable,6,FALSE)-VLOOKUP(Table_Data_Table_1[[#This Row],[Item ID]],DataTable,13,FALSE),IF(Table_Data_Table_1[[#This Row],[Valuation Method]]=\"Abstraction\",VLOOKUP(Table_Data_Table_1[[#This Row],[Item ID]],DataTable,6,FALSE)-VLOOKUP(Table_Data_Table_1[[#This Row],[Item ID]],DataTable,13,FALSE),IF(Table_Data_Table_1[[#This Row],[Valuation Method]]=\"Allocation\",VLOOKUP(Table_Data_Table_1[[#This Row],[Item ID]],DataTable,6,FALSE)*I164,\"\")))","v":""},{"$f":"IF(Table_Data_Table_1[[#This Row],[Valuation Method]]=\"Vacant\",\"N/A\",IF(Table_Data_Table_1[[#This Row],[Valuation Method]]=\"Abstraction\",Table_Data_Table_1[[#This Row],[Land\nResidual]]/VLOOKUP(Table_Data_Table_1[[#This Row],[Item ID]],DataTable,6,FALSE),IF(Table_Data_Table_1[[#This Row],[Valuation Method]]=\"Allocation\",'Global Settings'!$H$20,\"\")))","v":""},{"$f":"IFERROR(ROUND(Table_Data_Table_1[[#This Row],[Resid\nSq Ft]]/43560,3),\"\")","v":""},{"$f":"IF(Table_Data_Table_1[[#This Row],[Item ID]]=\"\",\"\",IFERROR(VLOOKUP(Table_Data_Table_1[[#This Row],[Item ID]],DataTable,10,FALSE)-VLOOKUP(Table_Data_Table_1[[#This Row],[Item ID]],DataTable,12,FALSE),\"\"))","v":""},{"$f":"IFERROR(Table_Data_Table_1[[#This Row],[Land\nResidual]]/Table_Data_Table_1[[#This Row],[Resid\nAcre]],\"\")","v":""},{"$f":"IFERROR(ROUND(Table_Data_Table_1[[#This Row],[Land\nResidual]]/Table_Data_Table_1[[#This Row],[Resid\nSq Ft]],2),\"\")","v":""},{"$f":"IF(Table_Data_Table_1[[#This Row],[Item ID]]=\"\",\"\",ROUND(DAYS360(Table_Data_Table_1[[#This Row],[Sale Date]],'Global Settings'!$H$5)/30,0))","v":""},{"$f":"IFERROR(IF(AND(Table_Data_Table_1[[#This Row],[Months To\nMid-Point]]<12.01,Table_Data_Table_1[[#This Row],[Months To\nMid-Point]]>-13),0,(Table_Data_Table_1[[#This Row],[Months To\nMid-Point]]*'Global Settings'!$H$6)),\"\")","v":""},{"$f":"IFERROR(Table_Data_Table_1[[#This Row],[Land\nResidual]]*(Table_Data_Table_1[[#This Row],[Time\nAdjust]]+1),\"\")","v":""},{"$f":"IFERROR(Table_Data_Table_1[[#This Row],[Adjusted\nSale Price]]/Table_Data_Table_1[[#This Row],[Resid\nAcre]],\"\")","v":""},{"$f":"IFERROR(ROUND(Table_Data_Table_1[[#This Row],[Adjusted\nSale Price]]/Table_Data_Table_1[[#This Row],[Resid\nSq Ft]],2),\"\")","v":""},{"$f":"IFERROR(IF(VLOOKUP(Table_Data_Table_1[[#This Row],[Item ID]],DataTable,11,FALSE)=0,\"N/A\",Table_Data_Table_1[[#This Row],[Adjusted\nSale Price]]/VLOOKUP(Table_Data_Table_1[[#This Row],[Item ID]],DataTable,11,FALSE)),\"\")","v":""},{"$f":"IF(IFERROR(VLOOKUP(Table_Data_Table_1[[#This Row],[Item ID]],DataTable,17,FALSE),\"\")=0,\"\",IFERROR(VLOOKUP(Table_Data_Table_1[[#This Row],[Item ID]],DataTable,17,FALSE),\"\"))","v":""}]
["",null,{"$f":"IF(Table_Data_Table_1[[#This Row],[Item ID]]=\"\",\"\",IFERROR(VLOOKUP(Table_Data_Table_1[[#This Row],[Item ID]],DataTable,16,FALSE),\"\"))","v":""},null,null,null,null,{"$f":"IF(Table_Data_Table_1[[#This Row],[Valuation Method]]=\"Vacant\",VLOOKUP(Table_Data_Table_1[[#This Row],[Item ID]],DataTable,6,FALSE)-VLOOKUP(Table_Data_Table_1[[#This Row],[Item ID]],DataTable,13,FALSE),IF(Table_Data_Table_1[[#This Row],[Valuation Method]]=\"Abstraction\",VLOOKUP(Table_Data_Table_1[[#This Row],[Item ID]],DataTable,6,FALSE)-VLOOKUP(Table_Data_Table_1[[#This Row],[Item ID]],DataTable,13,FALSE),IF(Table_Data_Table_1[[#This Row],[Valuation Method]]=\"Allocation\",VLOOKUP(Table_Data_Table_1[[#This Row],[Item ID]],DataTable,6,FALSE)*I165,\"\")))","v":""},{"$f":"IF(Table_Data_Table_1[[#This Row],[Valuation Method]]=\"Vacant\",\"N/A\",IF(Table_Data_Table_1[[#This Row],[Valuation Method]]=\"Abstraction\",Table_Data_Table_1[[#This Row],[Land\nResidual]]/VLOOKUP(Table_Data_Table_1[[#This Row],[Item ID]],DataTable,6,FALSE),IF(Table_Data_Table_1[[#This Row],[Valuation Method]]=\"Allocation\",'Global Settings'!$H$20,\"\")))","v":""},{"$f":"IFERROR(ROUND(Table_Data_Table_1[[#This Row],[Resid\nSq Ft]]/43560,3),\"\")","v":""},{"$f":"IF(Table_Data_Table_1[[#This Row],[Item ID]]=\"\",\"\",IFERROR(VLOOKUP(Table_Data_Table_1[[#This Row],[Item ID]],DataTable,10,FALSE)-VLOOKUP(Table_Data_Table_1[[#This Row],[Item ID]],DataTable,12,FALSE),\"\"))","v":""},{"$f":"IFERROR(Table_Data_Table_1[[#This Row],[Land\nResidual]]/Table_Data_Table_1[[#This Row],[Resid\nAcre]],\"\")","v":""},{"$f":"IFERROR(ROUND(Table_Data_Table_1[[#This Row],[Land\nResidual]]/Table_Data_Table_1[[#This Row],[Resid\nSq Ft]],2),\"\")","v":""},{"$f":"IF(Table_Data_Table_1[[#This Row],[Item ID]]=\"\",\"\",ROUND(DAYS360(Table_Data_Table_1[[#This Row],[Sale Date]],'Global Settings'!$H$5)/30,0))","v":""},{"$f":"IFERROR(IF(AND(Table_Data_Table_1[[#This Row],[Months To\nMid-Point]]<12.01,Table_Data_Table_1[[#This Row],[Months To\nMid-Point]]>-13),0,(Table_Data_Table_1[[#This Row],[Months To\nMid-Point]]*'Global Settings'!$H$6)),\"\")","v":""},{"$f":"IFERROR(Table_Data_Table_1[[#This Row],[Land\nResidual]]*(Table_Data_Table_1[[#This Row],[Time\nAdjust]]+1),\"\")","v":""},{"$f":"IFERROR(Table_Data_Table_1[[#This Row],[Adjusted\nSale Price]]/Table_Data_Table_1[[#This Row],[Resid\nAcre]],\"\")","v":""},{"$f":"IFERROR(ROUND(Table_Data_Table_1[[#This Row],[Adjusted\nSale Price]]/Table_Data_Table_1[[#This Row],[Resid\nSq Ft]],2),\"\")","v":""},{"$f":"IFERROR(IF(VLOOKUP(Table_Data_Table_1[[#This Row],[Item ID]],DataTable,11,FALSE)=0,\"N/A\",Table_Data_Table_1[[#This Row],[Adjusted\nSale Price]]/VLOOKUP(Table_Data_Table_1[[#This Row],[Item ID]],DataTable,11,FALSE)),\"\")","v":""},{"$f":"IF(IFERROR(VLOOKUP(Table_Data_Table_1[[#This Row],[Item ID]],DataTable,17,FALSE),\"\")=0,\"\",IFERROR(VLOOKUP(Table_Data_Table_1[[#This Row],[Item ID]],DataTable,17,FALSE),\"\"))","v":""}]
["",null,{"$f":"IF(Table_Data_Table_1[[#This Row],[Item ID]]=\"\",\"\",IFERROR(VLOOKUP(Table_Data_Table_1[[#This Row],[Item ID]],DataTable,16,FALSE),\"\"))","v":""},null,null,null,null,{"$f":"IF(Table_Data_Table_1[[#This Row],[Valuation Method]]=\"Vacant\",VLOOKUP(Table_Data_Table_1[[#This Row],[Item ID]],DataTable,6,FALSE)-VLOOKUP(Table_Data_Table_1[[#This Row],[Item ID]],DataTable,13,FALSE),IF(Table_Data_Table_1[[#This Row],[Valuation Method]]=\"Abstraction\",VLOOKUP(Table_Data_Table_1[[#This Row],[Item ID]],DataTable,6,FALSE)-VLOOKUP(Table_Data_Table_1[[#This Row],[Item ID]],DataTable,13,FALSE),IF(Table_Data_Table_1[[#This Row],[Valuation Method]]=\"Allocation\",VLOOKUP(Table_Data_Table_1[[#This Row],[Item ID]],DataTable,6,FALSE)*I166,\"\")))","v":""},{"$f":"IF(Table_Data_Table_1[[#This Row],[Valuation Method]]=\"Vacant\",\"N/A\",IF(Table_Data_Table_1[[#This Row],[Valuation Method]]=\"Abstraction\",Table_Data_Table_1[[#This Row],[Land\nResidual]]/VLOOKUP(Table_Data_Table_1[[#This Row],[Item ID]],DataTable,6,FALSE),IF(Table_Data_Table_1[[#This Row],[Valuation Method]]=\"Allocation\",'Global Settings'!$H$20,\"\")))","v":""},{"$f":"IFERROR(ROUND(Table_Data_Table_1[[#This Row],[Resid\nSq Ft]]/43560,3),\"\")","v":""},{"$f":"IF(Table_Data_Table_1[[#This Row],[Item ID]]=\"\",\"\",IFERROR(VLOOKUP(Table_Data_Table_1[[#This Row],[Item ID]],DataTable,10,FALSE)-VLOOKUP(Table_Data_Table_1[[#This Row],[Item ID]],DataTable,12,FALSE),\"\"))","v":""},{"$f":"IFERROR(Table_Data_Table_1[[#This Row],[Land\nResidual]]/Table_Data_Table_1[[#This Row],[Resid\nAcre]],\"\")","v":""},{"$f":"IFERROR(ROUND(Table_Data_Table_1[[#This Row],[Land\nResidual]]/Table_Data_Table_1[[#This Row],[Resid\nSq Ft]],2),\"\")","v":""},{"$f":"IF(Table_Data_Table_1[[#This Row],[Item ID]]=\"\",\"\",ROUND(DAYS360(Table_Data_Table_1[[#This Row],[Sale Date]],'Global Settings'!$H$5)/30,0))","v":""},{"$f":"IFERROR(IF(AND(Table_Data_Table_1[[#This Row],[Months To\nMid-Point]]<12.01,Table_Data_Table_1[[#This Row],[Months To\nMid-Point]]>-13),0,(Table_Data_Table_1[[#This Row],[Months To\nMid-Point]]*'Global Settings'!$H$6)),\"\")","v":""},{"$f":"IFERROR(Table_Data_Table_1[[#This Row],[Land\nResidual]]*(Table_Data_Table_1[[#This Row],[Time\nAdjust]]+1),\"\")","v":""},{"$f":"IFERROR(Table_Data_Table_1[[#This Row],[Adjusted\nSale Price]]/Table_Data_Table_1[[#This Row],[Resid\nAcre]],\"\")","v":""},{"$f":"IFERROR(ROUND(Table_Data_Table_1[[#This Row],[Adjusted\nSale Price]]/Table_Data_Table_1[[#This Row],[Resid\nSq Ft]],2),\"\")","v":""},{"$f":"IFERROR(IF(VLOOKUP(Table_Data_Table_1[[#This Row],[Item ID]],DataTable,11,FALSE)=0,\"N/A\",Table_Data_Table_1[[#This Row],[Adjusted\nSale Price]]/VLOOKUP(Table_Data_Table_1[[#This Row],[Item ID]],DataTable,11,FALSE)),\"\")","v":""},{"$f":"IF(IFERROR(VLOOKUP(Table_Data_Table_1[[#This Row],[Item ID]],DataTable,17,FALSE),\"\")=0,\"\",IFERROR(VLOOKUP(Table_Data_Table_1[[#This Row],[Item ID]],DataTable,17,FALSE),\"\"))","v":""}]
["",null,{"$f":"IF(Table_Data_Table_1[[#This Row],[Item ID]]=\"\",\"\",IFERROR(VLOOKUP(Table_Data_Table_1[[#This Row],[Item ID]],DataTable,16,FALSE),\"\"))","v":""},null,null,null,null,{"$f":"IF(Table_Data_Table_1[[#This Row],[Valuation Method]]=\"Vacant\",VLOOKUP(Table_Data_Table_1[[#This Row],[Item ID]],DataTable,6,FALSE)-VLOOKUP(Table_Data_Table_1[[#This Row],[Item ID]],DataTable,13,FALSE),IF(Table_Data_Table_1[[#This Row],[Valuation Method]]=\"Abstraction\",VLOOKUP(Table_Data_Table_1[[#This Row],[Item ID]],DataTable,6,FALSE)-VLOOKUP(Table_Data_Table_1[[#This Row],[Item ID]],DataTable,13,FALSE),IF(Table_Data_Table_1[[#This Row],[Valuation Method]]=\"Allocation\",VLOOKUP(Table_Data_Table_1[[#This Row],[Item ID]],DataTable,6,FALSE)*I167,\"\")))","v":""},{"$f":"IF(Table_Data_Table_1[[#This Row],[Valuation Method]]=\"Vacant\",\"N/A\",IF(Table_Data_Table_1[[#This Row],[Valuation Method]]=\"Abstraction\",Table_Data_Table_1[[#This Row],[Land\nResidual]]/VLOOKUP(Table_Data_Table_1[[#This Row],[Item ID]],DataTable,6,FALSE),IF(Table_Data_Table_1[[#This Row],[Valuation Method]]=\"Allocation\",'Global Settings'!$H$20,\"\")))","v":""},{"$f":"IFERROR(ROUND(Table_Data_Table_1[[#This Row],[Resid\nSq Ft]]/43560,3),\"\")","v":""},{"$f":"IF(Table_Data_Table_1[[#This Row],[Item ID]]=\"\",\"\",IFERROR(VLOOKUP(Table_Data_Table_1[[#This Row],[Item ID]],DataTable,10,FALSE)-VLOOKUP(Table_Data_Table_1[[#This Row],[Item ID]],DataTable,12,FALSE),\"\"))","v":""},{"$f":"IFERROR(Table_Data_Table_1[[#This Row],[Land\nResidual]]/Table_Data_Table_1[[#This Row],[Resid\nAcre]],\"\")","v":""},{"$f":"IFERROR(ROUND(Table_Data_Table_1[[#This Row],[Land\nResidual]]/Table_Data_Table_1[[#This Row],[Resid\nSq Ft]],2),\"\")","v":""},{"$f":"IF(Table_Data_Table_1[[#This Row],[Item ID]]=\"\",\"\",ROUND(DAYS360(Table_Data_Table_1[[#This Row],[Sale Date]],'Global Settings'!$H$5)/30,0))","v":""},{"$f":"IFERROR(IF(AND(Table_Data_Table_1[[#This Row],[Months To\nMid-Point]]<12.01,Table_Data_Table_1[[#This Row],[Months To\nMid-Point]]>-13),0,(Table_Data_Table_1[[#This Row],[Months To\nMid-Point]]*'Global Settings'!$H$6)),\"\")","v":""},{"$f":"IFERROR(Table_Data_Table_1[[#This Row],[Land\nResidual]]*(Table_Data_Table_1[[#This Row],[Time\nAdjust]]+1),\"\")","v":""},{"$f":"IFERROR(Table_Data_Table_1[[#This Row],[Adjusted\nSale Price]]/Table_Data_Table_1[[#This Row],[Resid\nAcre]],\"\")","v":""},{"$f":"IFERROR(ROUND(Table_Data_Table_1[[#This Row],[Adjusted\nSale Price]]/Table_Data_Table_1[[#This Row],[Resid\nSq Ft]],2),\"\")","v":""},{"$f":"IFERROR(IF(VLOOKUP(Table_Data_Table_1[[#This Row],[Item ID]],DataTable,11,FALSE)=0,\"N/A\",Table_Data_Table_1[[#This Row],[Adjusted\nSale Price]]/VLOOKUP(Table_Data_Table_1[[#This Row],[Item ID]],DataTable,11,FALSE)),\"\")","v":""},{"$f":"IF(IFERROR(VLOOKUP(Table_Data_Table_1[[#This Row],[Item ID]],DataTable,17,FALSE),\"\")=0,\"\",IFERROR(VLOOKUP(Table_Data_Table_1[[#This Row],[Item ID]],DataTable,17,FALSE),\"\"))","v":""}]
["",null,{"$f":"IF(Table_Data_Table_1[[#This Row],[Item ID]]=\"\",\"\",IFERROR(VLOOKUP(Table_Data_Table_1[[#This Row],[Item ID]],DataTable,16,FALSE),\"\"))","v":""},null,null,null,null,{"$f":"IF(Table_Data_Table_1[[#This Row],[Valuation Method]]=\"Vacant\",VLOOKUP(Table_Data_Table_1[[#This Row],[Item ID]],DataTable,6,FALSE)-VLOOKUP(Table_Data_Table_1[[#This Row],[Item ID]],DataTable,13,FALSE),IF(Table_Data_Table_1[[#This Row],[Valuation Method]]=\"Abstraction\",VLOOKUP(Table_Data_Table_1[[#This Row],[Item ID]],DataTable,6,FALSE)-VLOOKUP(Table_Data_Table_1[[#This Row],[Item ID]],DataTable,13,FALSE),IF(Table_Data_Table_1[[#This Row],[Valuation Method]]=\"Allocation\",VLOOKUP(Table_Data_Table_1[[#This Row],[Item ID]],DataTable,6,FALSE)*I168,\"\")))","v":""},{"$f":"IF(Table_Data_Table_1[[#This Row],[Valuation Method]]=\"Vacant\",\"N/A\",IF(Table_Data_Table_1[[#This Row],[Valuation Method]]=\"Abstraction\",Table_Data_Table_1[[#This Row],[Land\nResidual]]/VLOOKUP(Table_Data_Table_1[[#This Row],[Item ID]],DataTable,6,FALSE),IF(Table_Data_Table_1[[#This Row],[Valuation Method]]=\"Allocation\",'Global Settings'!$H$20,\"\")))","v":""},{"$f":"IFERROR(ROUND(Table_Data_Table_1[[#This Row],[Resid\nSq Ft]]/43560,3),\"\")","v":""},{"$f":"IF(Table_Data_Table_1[[#This Row],[Item ID]]=\"\",\"\",IFERROR(VLOOKUP(Table_Data_Table_1[[#This Row],[Item ID]],DataTable,10,FALSE)-VLOOKUP(Table_Data_Table_1[[#This Row],[Item ID]],DataTable,12,FALSE),\"\"))","v":""},{"$f":"IFERROR(Table_Data_Table_1[[#This Row],[Land\nResidual]]/Table_Data_Table_1[[#This Row],[Resid\nAcre]],\"\")","v":""},{"$f":"IFERROR(ROUND(Table_Data_Table_1[[#This Row],[Land\nResidual]]/Table_Data_Table_1[[#This Row],[Resid\nSq Ft]],2),\"\")","v":""},{"$f":"IF(Table_Data_Table_1[[#This Row],[Item ID]]=\"\",\"\",ROUND(DAYS360(Table_Data_Table_1[[#This Row],[Sale Date]],'Global Settings'!$H$5)/30,0))","v":""},{"$f":"IFERROR(IF(AND(Table_Data_Table_1[[#This Row],[Months To\nMid-Point]]<12.01,Table_Data_Table_1[[#This Row],[Months To\nMid-Point]]>-13),0,(Table_Data_Table_1[[#This Row],[Months To\nMid-Point]]*'Global Settings'!$H$6)),\"\")","v":""},{"$f":"IFERROR(Table_Data_Table_1[[#This Row],[Land\nResidual]]*(Table_Data_Table_1[[#This Row],[Time\nAdjust]]+1),\"\")","v":""},{"$f":"IFERROR(Table_Data_Table_1[[#This Row],[Adjusted\nSale Price]]/Table_Data_Table_1[[#This Row],[Resid\nAcre]],\"\")","v":""},{"$f":"IFERROR(ROUND(Table_Data_Table_1[[#This Row],[Adjusted\nSale Price]]/Table_Data_Table_1[[#This Row],[Resid\nSq Ft]],2),\"\")","v":""},{"$f":"IFERROR(IF(VLOOKUP(Table_Data_Table_1[[#This Row],[Item ID]],DataTable,11,FALSE)=0,\"N/A\",Table_Data_Table_1[[#This Row],[Adjusted\nSale Price]]/VLOOKUP(Table_Data_Table_1[[#This Row],[Item ID]],DataTable,11,FALSE)),\"\")","v":""},{"$f":"IF(IFERROR(VLOOKUP(Table_Data_Table_1[[#This Row],[Item ID]],DataTable,17,FALSE),\"\")=0,\"\",IFERROR(VLOOKUP(Table_Data_Table_1[[#This Row],[Item ID]],DataTable,17,FALSE),\"\"))","v":""}]
["",null,{"$f":"IF(Table_Data_Table_1[[#This Row],[Item ID]]=\"\",\"\",IFERROR(VLOOKUP(Table_Data_Table_1[[#This Row],[Item ID]],DataTable,16,FALSE),\"\"))","v":""},null,null,null,null,{"$f":"IF(Table_Data_Table_1[[#This Row],[Valuation Method]]=\"Vacant\",VLOOKUP(Table_Data_Table_1[[#This Row],[Item ID]],DataTable,6,FALSE)-VLOOKUP(Table_Data_Table_1[[#This Row],[Item ID]],DataTable,13,FALSE),IF(Table_Data_Table_1[[#This Row],[Valuation Method]]=\"Abstraction\",VLOOKUP(Table_Data_Table_1[[#This Row],[Item ID]],DataTable,6,FALSE)-VLOOKUP(Table_Data_Table_1[[#This Row],[Item ID]],DataTable,13,FALSE),IF(Table_Data_Table_1[[#This Row],[Valuation Method]]=\"Allocation\",VLOOKUP(Table_Data_Table_1[[#This Row],[Item ID]],DataTable,6,FALSE)*I169,\"\")))","v":""},{"$f":"IF(Table_Data_Table_1[[#This Row],[Valuation Method]]=\"Vacant\",\"N/A\",IF(Table_Data_Table_1[[#This Row],[Valuation Method]]=\"Abstraction\",Table_Data_Table_1[[#This Row],[Land\nResidual]]/VLOOKUP(Table_Data_Table_1[[#This Row],[Item ID]],DataTable,6,FALSE),IF(Table_Data_Table_1[[#This Row],[Valuation Method]]=\"Allocation\",'Global Settings'!$H$20,\"\")))","v":""},{"$f":"IFERROR(ROUND(Table_Data_Table_1[[#This Row],[Resid\nSq Ft]]/43560,3),\"\")","v":""},{"$f":"IF(Table_Data_Table_1[[#This Row],[Item ID]]=\"\",\"\",IFERROR(VLOOKUP(Table_Data_Table_1[[#This Row],[Item ID]],DataTable,10,FALSE)-VLOOKUP(Table_Data_Table_1[[#This Row],[Item ID]],DataTable,12,FALSE),\"\"))","v":""},{"$f":"IFERROR(Table_Data_Table_1[[#This Row],[Land\nResidual]]/Table_Data_Table_1[[#This Row],[Resid\nAcre]],\"\")","v":""},{"$f":"IFERROR(ROUND(Table_Data_Table_1[[#This Row],[Land\nResidual]]/Table_Data_Table_1[[#This Row],[Resid\nSq Ft]],2),\"\")","v":""},{"$f":"IF(Table_Data_Table_1[[#This Row],[Item ID]]=\"\",\"\",ROUND(DAYS360(Table_Data_Table_1[[#This Row],[Sale Date]],'Global Settings'!$H$5)/30,0))","v":""},{"$f":"IFERROR(IF(AND(Table_Data_Table_1[[#This Row],[Months To\nMid-Point]]<12.01,Table_Data_Table_1[[#This Row],[Months To\nMid-Point]]>-13),0,(Table_Data_Table_1[[#This Row],[Months To\nMid-Point]]*'Global Settings'!$H$6)),\"\")","v":""},{"$f":"IFERROR(Table_Data_Table_1[[#This Row],[Land\nResidual]]*(Table_Data_Table_1[[#This Row],[Time\nAdjust]]+1),\"\")","v":""},{"$f":"IFERROR(Table_Data_Table_1[[#This Row],[Adjusted\nSale Price]]/Table_Data_Table_1[[#This Row],[Resid\nAcre]],\"\")","v":""},{"$f":"IFERROR(ROUND(Table_Data_Table_1[[#This Row],[Adjusted\nSale Price]]/Table_Data_Table_1[[#This Row],[Resid\nSq Ft]],2),\"\")","v":""},{"$f":"IFERROR(IF(VLOOKUP(Table_Data_Table_1[[#This Row],[Item ID]],DataTable,11,FALSE)=0,\"N/A\",Table_Data_Table_1[[#This Row],[Adjusted\nSale Price]]/VLOOKUP(Table_Data_Table_1[[#This Row],[Item ID]],DataTable,11,FALSE)),\"\")","v":""},{"$f":"IF(IFERROR(VLOOKUP(Table_Data_Table_1[[#This Row],[Item ID]],DataTable,17,FALSE),\"\")=0,\"\",IFERROR(VLOOKUP(Table_Data_Table_1[[#This Row],[Item ID]],DataTable,17,FALSE),\"\"))","v":""}]
["",null,{"$f":"IF(Table_Data_Table_1[[#This Row],[Item ID]]=\"\",\"\",IFERROR(VLOOKUP(Table_Data_Table_1[[#This Row],[Item ID]],DataTable,16,FALSE),\"\"))","v":""},null,null,null,null,{"$f":"IF(Table_Data_Table_1[[#This Row],[Valuation Method]]=\"Vacant\",VLOOKUP(Table_Data_Table_1[[#This Row],[Item ID]],DataTable,6,FALSE)-VLOOKUP(Table_Data_Table_1[[#This Row],[Item ID]],DataTable,13,FALSE),IF(Table_Data_Table_1[[#This Row],[Valuation Method]]=\"Abstraction\",VLOOKUP(Table_Data_Table_1[[#This Row],[Item ID]],DataTable,6,FALSE)-VLOOKUP(Table_Data_Table_1[[#This Row],[Item ID]],DataTable,13,FALSE),IF(Table_Data_Table_1[[#This Row],[Valuation Method]]=\"Allocation\",VLOOKUP(Table_Data_Table_1[[#This Row],[Item ID]],DataTable,6,FALSE)*I170,\"\")))","v":""},{"$f":"IF(Table_Data_Table_1[[#This Row],[Valuation Method]]=\"Vacant\",\"N/A\",IF(Table_Data_Table_1[[#This Row],[Valuation Method]]=\"Abstraction\",Table_Data_Table_1[[#This Row],[Land\nResidual]]/VLOOKUP(Table_Data_Table_1[[#This Row],[Item ID]],DataTable,6,FALSE),IF(Table_Data_Table_1[[#This Row],[Valuation Method]]=\"Allocation\",'Global Settings'!$H$20,\"\")))","v":""},{"$f":"IFERROR(ROUND(Table_Data_Table_1[[#This Row],[Resid\nSq Ft]]/43560,3),\"\")","v":""},{"$f":"IF(Table_Data_Table_1[[#This Row],[Item ID]]=\"\",\"\",IFERROR(VLOOKUP(Table_Data_Table_1[[#This Row],[Item ID]],DataTable,10,FALSE)-VLOOKUP(Table_Data_Table_1[[#This Row],[Item ID]],DataTable,12,FALSE),\"\"))","v":""},{"$f":"IFERROR(Table_Data_Table_1[[#This Row],[Land\nResidual]]/Table_Data_Table_1[[#This Row],[Resid\nAcre]],\"\")","v":""},{"$f":"IFERROR(ROUND(Table_Data_Table_1[[#This Row],[Land\nResidual]]/Table_Data_Table_1[[#This Row],[Resid\nSq Ft]],2),\"\")","v":""},{"$f":"IF(Table_Data_Table_1[[#This Row],[Item ID]]=\"\",\"\",ROUND(DAYS360(Table_Data_Table_1[[#This Row],[Sale Date]],'Global Settings'!$H$5)/30,0))","v":""},{"$f":"IFERROR(IF(AND(Table_Data_Table_1[[#This Row],[Months To\nMid-Point]]<12.01,Table_Data_Table_1[[#This Row],[Months To\nMid-Point]]>-13),0,(Table_Data_Table_1[[#This Row],[Months To\nMid-Point]]*'Global Settings'!$H$6)),\"\")","v":""},{"$f":"IFERROR(Table_Data_Table_1[[#This Row],[Land\nResidual]]*(Table_Data_Table_1[[#This Row],[Time\nAdjust]]+1),\"\")","v":""},{"$f":"IFERROR(Table_Data_Table_1[[#This Row],[Adjusted\nSale Price]]/Table_Data_Table_1[[#This Row],[Resid\nAcre]],\"\")","v":""},{"$f":"IFERROR(ROUND(Table_Data_Table_1[[#This Row],[Adjusted\nSale Price]]/Table_Data_Table_1[[#This Row],[Resid\nSq Ft]],2),\"\")","v":""},{"$f":"IFERROR(IF(VLOOKUP(Table_Data_Table_1[[#This Row],[Item ID]],DataTable,11,FALSE)=0,\"N/A\",Table_Data_Table_1[[#This Row],[Adjusted\nSale Price]]/VLOOKUP(Table_Data_Table_1[[#This Row],[Item ID]],DataTable,11,FALSE)),\"\")","v":""},{"$f":"IF(IFERROR(VLOOKUP(Table_Data_Table_1[[#This Row],[Item ID]],DataTable,17,FALSE),\"\")=0,\"\",IFERROR(VLOOKUP(Table_Data_Table_1[[#This Row],[Item ID]],DataTable,17,FALSE),\"\"))","v":""}]
["",null,{"$f":"IF(Table_Data_Table_1[[#This Row],[Item ID]]=\"\",\"\",IFERROR(VLOOKUP(Table_Data_Table_1[[#This Row],[Item ID]],DataTable,16,FALSE),\"\"))","v":""},null,null,null,null,{"$f":"IF(Table_Data_Table_1[[#This Row],[Valuation Method]]=\"Vacant\",VLOOKUP(Table_Data_Table_1[[#This Row],[Item ID]],DataTable,6,FALSE)-VLOOKUP(Table_Data_Table_1[[#This Row],[Item ID]],DataTable,13,FALSE),IF(Table_Data_Table_1[[#This Row],[Valuation Method]]=\"Abstraction\",VLOOKUP(Table_Data_Table_1[[#This Row],[Item ID]],DataTable,6,FALSE)-VLOOKUP(Table_Data_Table_1[[#This Row],[Item ID]],DataTable,13,FALSE),IF(Table_Data_Table_1[[#This Row],[Valuation Method]]=\"Allocation\",VLOOKUP(Table_Data_Table_1[[#This Row],[Item ID]],DataTable,6,FALSE)*I171,\"\")))","v":""},{"$f":"IF(Table_Data_Table_1[[#This Row],[Valuation Method]]=\"Vacant\",\"N/A\",IF(Table_Data_Table_1[[#This Row],[Valuation Method]]=\"Abstraction\",Table_Data_Table_1[[#This Row],[Land\nResidual]]/VLOOKUP(Table_Data_Table_1[[#This Row],[Item ID]],DataTable,6,FALSE),IF(Table_Data_Table_1[[#This Row],[Valuation Method]]=\"Allocation\",'Global Settings'!$H$20,\"\")))","v":""},{"$f":"IFERROR(ROUND(Table_Data_Table_1[[#This Row],[Resid\nSq Ft]]/43560,3),\"\")","v":""},{"$f":"IF(Table_Data_Table_1[[#This Row],[Item ID]]=\"\",\"\",IFERROR(VLOOKUP(Table_Data_Table_1[[#This Row],[Item ID]],DataTable,10,FALSE)-VLOOKUP(Table_Data_Table_1[[#This Row],[Item ID]],DataTable,12,FALSE),\"\"))","v":""},{"$f":"IFERROR(Table_Data_Table_1[[#This Row],[Land\nResidual]]/Table_Data_Table_1[[#This Row],[Resid\nAcre]],\"\")","v":""},{"$f":"IFERROR(ROUND(Table_Data_Table_1[[#This Row],[Land\nResidual]]/Table_Data_Table_1[[#This Row],[Resid\nSq Ft]],2),\"\")","v":""},{"$f":"IF(Table_Data_Table_1[[#This Row],[Item ID]]=\"\",\"\",ROUND(DAYS360(Table_Data_Table_1[[#This Row],[Sale Date]],'Global Settings'!$H$5)/30,0))","v":""},{"$f":"IFERROR(IF(AND(Table_Data_Table_1[[#This Row],[Months To\nMid-Point]]<12.01,Table_Data_Table_1[[#This Row],[Months To\nMid-Point]]>-13),0,(Table_Data_Table_1[[#This Row],[Months To\nMid-Point]]*'Global Settings'!$H$6)),\"\")","v":""},{"$f":"IFERROR(Table_Data_Table_1[[#This Row],[Land\nResidual]]*(Table_Data_Table_1[[#This Row],[Time\nAdjust]]+1),\"\")","v":""},{"$f":"IFERROR(Table_Data_Table_1[[#This Row],[Adjusted\nSale Price]]/Table_Data_Table_1[[#This Row],[Resid\nAcre]],\"\")","v":""},{"$f":"IFERROR(ROUND(Table_Data_Table_1[[#This Row],[Adjusted\nSale Price]]/Table_Data_Table_1[[#This Row],[Resid\nSq Ft]],2),\"\")","v":""},{"$f":"IFERROR(IF(VLOOKUP(Table_Data_Table_1[[#This Row],[Item ID]],DataTable,11,FALSE)=0,\"N/A\",Table_Data_Table_1[[#This Row],[Adjusted\nSale Price]]/VLOOKUP(Table_Data_Table_1[[#This Row],[Item ID]],DataTable,11,FALSE)),\"\")","v":""},{"$f":"IF(IFERROR(VLOOKUP(Table_Data_Table_1[[#This Row],[Item ID]],DataTable,17,FALSE),\"\")=0,\"\",IFERROR(VLOOKUP(Table_Data_Table_1[[#This Row],[Item ID]],DataTable,17,FALSE),\"\"))","v":""}]
["",null,{"$f":"IF(Table_Data_Table_1[[#This Row],[Item ID]]=\"\",\"\",IFERROR(VLOOKUP(Table_Data_Table_1[[#This Row],[Item ID]],DataTable,16,FALSE),\"\"))","v":""},null,null,null,null,{"$f":"IF(Table_Data_Table_1[[#This Row],[Valuation Method]]=\"Vacant\",VLOOKUP(Table_Data_Table_1[[#This Row],[Item ID]],DataTable,6,FALSE)-VLOOKUP(Table_Data_Table_1[[#This Row],[Item ID]],DataTable,13,FALSE),IF(Table_Data_Table_1[[#This Row],[Valuation Method]]=\"Abstraction\",VLOOKUP(Table_Data_Table_1[[#This Row],[Item ID]],DataTable,6,FALSE)-VLOOKUP(Table_Data_Table_1[[#This Row],[Item ID]],DataTable,13,FALSE),IF(Table_Data_Table_1[[#This Row],[Valuation Method]]=\"Allocation\",VLOOKUP(Table_Data_Table_1[[#This Row],[Item ID]],DataTable,6,FALSE)*I172,\"\")))","v":""},{"$f":"IF(Table_Data_Table_1[[#This Row],[Valuation Method]]=\"Vacant\",\"N/A\",IF(Table_Data_Table_1[[#This Row],[Valuation Method]]=\"Abstraction\",Table_Data_Table_1[[#This Row],[Land\nResidual]]/VLOOKUP(Table_Data_Table_1[[#This Row],[Item ID]],DataTable,6,FALSE),IF(Table_Data_Table_1[[#This Row],[Valuation Method]]=\"Allocation\",'Global Settings'!$H$20,\"\")))","v":""},{"$f":"IFERROR(ROUND(Table_Data_Table_1[[#This Row],[Resid\nSq Ft]]/43560,3),\"\")","v":""},{"$f":"IF(Table_Data_Table_1[[#This Row],[Item ID]]=\"\",\"\",IFERROR(VLOOKUP(Table_Data_Table_1[[#This Row],[Item ID]],DataTable,10,FALSE)-VLOOKUP(Table_Data_Table_1[[#This Row],[Item ID]],DataTable,12,FALSE),\"\"))","v":""},{"$f":"IFERROR(Table_Data_Table_1[[#This Row],[Land\nResidual]]/Table_Data_Table_1[[#This Row],[Resid\nAcre]],\"\")","v":""},{"$f":"IFERROR(ROUND(Table_Data_Table_1[[#This Row],[Land\nResidual]]/Table_Data_Table_1[[#This Row],[Resid\nSq Ft]],2),\"\")","v":""},{"$f":"IF(Table_Data_Table_1[[#This Row],[Item ID]]=\"\",\"\",ROUND(DAYS360(Table_Data_Table_1[[#This Row],[Sale Date]],'Global Settings'!$H$5)/30,0))","v":""},{"$f":"IFERROR(IF(AND(Table_Data_Table_1[[#This Row],[Months To\nMid-Point]]<12.01,Table_Data_Table_1[[#This Row],[Months To\nMid-Point]]>-13),0,(Table_Data_Table_1[[#This Row],[Months To\nMid-Point]]*'Global Settings'!$H$6)),\"\")","v":""},{"$f":"IFERROR(Table_Data_Table_1[[#This Row],[Land\nResidual]]*(Table_Data_Table_1[[#This Row],[Time\nAdjust]]+1),\"\")","v":""},{"$f":"IFERROR(Table_Data_Table_1[[#This Row],[Adjusted\nSale Price]]/Table_Data_Table_1[[#This Row],[Resid\nAcre]],\"\")","v":""},{"$f":"IFERROR(ROUND(Table_Data_Table_1[[#This Row],[Adjusted\nSale Price]]/Table_Data_Table_1[[#This Row],[Resid\nSq Ft]],2),\"\")","v":""},{"$f":"IFERROR(IF(VLOOKUP(Table_Data_Table_1[[#This Row],[Item ID]],DataTable,11,FALSE)=0,\"N/A\",Table_Data_Table_1[[#This Row],[Adjusted\nSale Price]]/VLOOKUP(Table_Data_Table_1[[#This Row],[Item ID]],DataTable,11,FALSE)),\"\")","v":""},{"$f":"IF(IFERROR(VLOOKUP(Table_Data_Table_1[[#This Row],[Item ID]],DataTable,17,FALSE),\"\")=0,\"\",IFERROR(VLOOKUP(Table_Data_Table_1[[#This Row],[Item ID]],DataTable,17,FALSE),\"\"))","v":""}]
["",null,{"$f":"IF(Table_Data_Table_1[[#This Row],[Item ID]]=\"\",\"\",IFERROR(VLOOKUP(Table_Data_Table_1[[#This Row],[Item ID]],DataTable,16,FALSE),\"\"))","v":""},null,null,null,null,{"$f":"IF(Table_Data_Table_1[[#This Row],[Valuation Method]]=\"Vacant\",VLOOKUP(Table_Data_Table_1[[#This Row],[Item ID]],DataTable,6,FALSE)-VLOOKUP(Table_Data_Table_1[[#This Row],[Item ID]],DataTable,13,FALSE),IF(Table_Data_Table_1[[#This Row],[Valuation Method]]=\"Abstraction\",VLOOKUP(Table_Data_Table_1[[#This Row],[Item ID]],DataTable,6,FALSE)-VLOOKUP(Table_Data_Table_1[[#This Row],[Item ID]],DataTable,13,FALSE),IF(Table_Data_Table_1[[#This Row],[Valuation Method]]=\"Allocation\",VLOOKUP(Table_Data_Table_1[[#This Row],[Item ID]],DataTable,6,FALSE)*I173,\"\")))","v":""},{"$f":"IF(Table_Data_Table_1[[#This Row],[Valuation Method]]=\"Vacant\",\"N/A\",IF(Table_Data_Table_1[[#This Row],[Valuation Method]]=\"Abstraction\",Table_Data_Table_1[[#This Row],[Land\nResidual]]/VLOOKUP(Table_Data_Table_1[[#This Row],[Item ID]],DataTable,6,FALSE),IF(Table_Data_Table_1[[#This Row],[Valuation Method]]=\"Allocation\",'Global Settings'!$H$20,\"\")))","v":""},{"$f":"IFERROR(ROUND(Table_Data_Table_1[[#This Row],[Resid\nSq Ft]]/43560,3),\"\")","v":""},{"$f":"IF(Table_Data_Table_1[[#This Row],[Item ID]]=\"\",\"\",IFERROR(VLOOKUP(Table_Data_Table_1[[#This Row],[Item ID]],DataTable,10,FALSE)-VLOOKUP(Table_Data_Table_1[[#This Row],[Item ID]],DataTable,12,FALSE),\"\"))","v":""},{"$f":"IFERROR(Table_Data_Table_1[[#This Row],[Land\nResidual]]/Table_Data_Table_1[[#This Row],[Resid\nAcre]],\"\")","v":""},{"$f":"IFERROR(ROUND(Table_Data_Table_1[[#This Row],[Land\nResidual]]/Table_Data_Table_1[[#This Row],[Resid\nSq Ft]],2),\"\")","v":""},{"$f":"IF(Table_Data_Table_1[[#This Row],[Item ID]]=\"\",\"\",ROUND(DAYS360(Table_Data_Table_1[[#This Row],[Sale Date]],'Global Settings'!$H$5)/30,0))","v":""},{"$f":"IFERROR(IF(AND(Table_Data_Table_1[[#This Row],[Months To\nMid-Point]]<12.01,Table_Data_Table_1[[#This Row],[Months To\nMid-Point]]>-13),0,(Table_Data_Table_1[[#This Row],[Months To\nMid-Point]]*'Global Settings'!$H$6)),\"\")","v":""},{"$f":"IFERROR(Table_Data_Table_1[[#This Row],[Land\nResidual]]*(Table_Data_Table_1[[#This Row],[Time\nAdjust]]+1),\"\")","v":""},{"$f":"IFERROR(Table_Data_Table_1[[#This Row],[Adjusted\nSale Price]]/Table_Data_Table_1[[#This Row],[Resid\nAcre]],\"\")","v":""},{"$f":"IFERROR(ROUND(Table_Data_Table_1[[#This Row],[Adjusted\nSale Price]]/Table_Data_Table_1[[#This Row],[Resid\nSq Ft]],2),\"\")","v":""},{"$f":"IFERROR(IF(VLOOKUP(Table_Data_Table_1[[#This Row],[Item ID]],DataTable,11,FALSE)=0,\"N/A\",Table_Data_Table_1[[#This Row],[Adjusted\nSale Price]]/VLOOKUP(Table_Data_Table_1[[#This Row],[Item ID]],DataTable,11,FALSE)),\"\")","v":""},{"$f":"IF(IFERROR(VLOOKUP(Table_Data_Table_1[[#This Row],[Item ID]],DataTable,17,FALSE),\"\")=0,\"\",IFERROR(VLOOKUP(Table_Data_Table_1[[#This Row],[Item ID]],DataTable,17,FALSE),\"\"))","v":""}]
["",null,{"$f":"IF(Table_Data_Table_1[[#This Row],[Item ID]]=\"\",\"\",IFERROR(VLOOKUP(Table_Data_Table_1[[#This Row],[Item ID]],DataTable,16,FALSE),\"\"))","v":""},null,null,null,null,{"$f":"IF(Table_Data_Table_1[[#This Row],[Valuation Method]]=\"Vacant\",VLOOKUP(Table_Data_Table_1[[#This Row],[Item ID]],DataTable,6,FALSE)-VLOOKUP(Table_Data_Table_1[[#This Row],[Item ID]],DataTable,13,FALSE),IF(Table_Data_Table_1[[#This Row],[Valuation Method]]=\"Abstraction\",VLOOKUP(Table_Data_Table_1[[#This Row],[Item ID]],DataTable,6,FALSE)-VLOOKUP(Table_Data_Table_1[[#This Row],[Item ID]],DataTable,13,FALSE),IF(Table_Data_Table_1[[#This Row],[Valuation Method]]=\"Allocation\",VLOOKUP(Table_Data_Table_1[[#This Row],[Item ID]],DataTable,6,FALSE)*I174,\"\")))","v":""},{"$f":"IF(Table_Data_Table_1[[#This Row],[Valuation Method]]=\"Vacant\",\"N/A\",IF(Table_Data_Table_1[[#This Row],[Valuation Method]]=\"Abstraction\",Table_Data_Table_1[[#This Row],[Land\nResidual]]/VLOOKUP(Table_Data_Table_1[[#This Row],[Item ID]],DataTable,6,FALSE),IF(Table_Data_Table_1[[#This Row],[Valuation Method]]=\"Allocation\",'Global Settings'!$H$20,\"\")))","v":""},{"$f":"IFERROR(ROUND(Table_Data_Table_1[[#This Row],[Resid\nSq Ft]]/43560,3),\"\")","v":""},{"$f":"IF(Table_Data_Table_1[[#This Row],[Item ID]]=\"\",\"\",IFERROR(VLOOKUP(Table_Data_Table_1[[#This Row],[Item ID]],DataTable,10,FALSE)-VLOOKUP(Table_Data_Table_1[[#This Row],[Item ID]],DataTable,12,FALSE),\"\"))","v":""},{"$f":"IFERROR(Table_Data_Table_1[[#This Row],[Land\nResidual]]/Table_Data_Table_1[[#This Row],[Resid\nAcre]],\"\")","v":""},{"$f":"IFERROR(ROUND(Table_Data_Table_1[[#This Row],[Land\nResidual]]/Table_Data_Table_1[[#This Row],[Resid\nSq Ft]],2),\"\")","v":""},{"$f":"IF(Table_Data_Table_1[[#This Row],[Item ID]]=\"\",\"\",ROUND(DAYS360(Table_Data_Table_1[[#This Row],[Sale Date]],'Global Settings'!$H$5)/30,0))","v":""},{"$f":"IFERROR(IF(AND(Table_Data_Table_1[[#This Row],[Months To\nMid-Point]]<12.01,Table_Data_Table_1[[#This Row],[Months To\nMid-Point]]>-13),0,(Table_Data_Table_1[[#This Row],[Months To\nMid-Point]]*'Global Settings'!$H$6)),\"\")","v":""},{"$f":"IFERROR(Table_Data_Table_1[[#This Row],[Land\nResidual]]*(Table_Data_Table_1[[#This Row],[Time\nAdjust]]+1),\"\")","v":""},{"$f":"IFERROR(Table_Data_Table_1[[#This Row],[Adjusted\nSale Price]]/Table_Data_Table_1[[#This Row],[Resid\nAcre]],\"\")","v":""},{"$f":"IFERROR(ROUND(Table_Data_Table_1[[#This Row],[Adjusted\nSale Price]]/Table_Data_Table_1[[#This Row],[Resid\nSq Ft]],2),\"\")","v":""},{"$f":"IFERROR(IF(VLOOKUP(Table_Data_Table_1[[#This Row],[Item ID]],DataTable,11,FALSE)=0,\"N/A\",Table_Data_Table_1[[#This Row],[Adjusted\nSale Price]]/VLOOKUP(Table_Data_Table_1[[#This Row],[Item ID]],DataTable,11,FALSE)),\"\")","v":""},{"$f":"IF(IFERROR(VLOOKUP(Table_Data_Table_1[[#This Row],[Item ID]],DataTable,17,FALSE),\"\")=0,\"\",IFERROR(VLOOKUP(Table_Data_Table_1[[#This Row],[Item ID]],DataTable,17,FALSE),\"\"))","v":""}]
["",null,{"$f":"IF(Table_Data_Table_1[[#This Row],[Item ID]]=\"\",\"\",IFERROR(VLOOKUP(Table_Data_Table_1[[#This Row],[Item ID]],DataTable,16,FALSE),\"\"))","v":""},null,null,null,null,{"$f":"IF(Table_Data_Table_1[[#This Row],[Valuation Method]]=\"Vacant\",VLOOKUP(Table_Data_Table_1[[#This Row],[Item ID]],DataTable,6,FALSE)-VLOOKUP(Table_Data_Table_1[[#This Row],[Item ID]],DataTable,13,FALSE),IF(Table_Data_Table_1[[#This Row],[Valuation Method]]=\"Abstraction\",VLOOKUP(Table_Data_Table_1[[#This Row],[Item ID]],DataTable,6,FALSE)-VLOOKUP(Table_Data_Table_1[[#This Row],[Item ID]],DataTable,13,FALSE),IF(Table_Data_Table_1[[#This Row],[Valuation Method]]=\"Allocation\",VLOOKUP(Table_Data_Table_1[[#This Row],[Item ID]],DataTable,6,FALSE)*I175,\"\")))","v":""},{"$f":"IF(Table_Data_Table_1[[#This Row],[Valuation Method]]=\"Vacant\",\"N/A\",IF(Table_Data_Table_1[[#This Row],[Valuation Method]]=\"Abstraction\",Table_Data_Table_1[[#This Row],[Land\nResidual]]/VLOOKUP(Table_Data_Table_1[[#This Row],[Item ID]],DataTable,6,FALSE),IF(Table_Data_Table_1[[#This Row],[Valuation Method]]=\"Allocation\",'Global Settings'!$H$20,\"\")))","v":""},{"$f":"IFERROR(ROUND(Table_Data_Table_1[[#This Row],[Resid\nSq Ft]]/43560,3),\"\")","v":""},{"$f":"IF(Table_Data_Table_1[[#This Row],[Item ID]]=\"\",\"\",IFERROR(VLOOKUP(Table_Data_Table_1[[#This Row],[Item ID]],DataTable,10,FALSE)-VLOOKUP(Table_Data_Table_1[[#This Row],[Item ID]],DataTable,12,FALSE),\"\"))","v":""},{"$f":"IFERROR(Table_Data_Table_1[[#This Row],[Land\nResidual]]/Table_Data_Table_1[[#This Row],[Resid\nAcre]],\"\")","v":""},{"$f":"IFERROR(ROUND(Table_Data_Table_1[[#This Row],[Land\nResidual]]/Table_Data_Table_1[[#This Row],[Resid\nSq Ft]],2),\"\")","v":""},{"$f":"IF(Table_Data_Table_1[[#This Row],[Item ID]]=\"\",\"\",ROUND(DAYS360(Table_Data_Table_1[[#This Row],[Sale Date]],'Global Settings'!$H$5)/30,0))","v":""},{"$f":"IFERROR(IF(AND(Table_Data_Table_1[[#This Row],[Months To\nMid-Point]]<12.01,Table_Data_Table_1[[#This Row],[Months To\nMid-Point]]>-13),0,(Table_Data_Table_1[[#This Row],[Months To\nMid-Point]]*'Global Settings'!$H$6)),\"\")","v":""},{"$f":"IFERROR(Table_Data_Table_1[[#This Row],[Land\nResidual]]*(Table_Data_Table_1[[#This Row],[Time\nAdjust]]+1),\"\")","v":""},{"$f":"IFERROR(Table_Data_Table_1[[#This Row],[Adjusted\nSale Price]]/Table_Data_Table_1[[#This Row],[Resid\nAcre]],\"\")","v":""},{"$f":"IFERROR(ROUND(Table_Data_Table_1[[#This Row],[Adjusted\nSale Price]]/Table_Data_Table_1[[#This Row],[Resid\nSq Ft]],2),\"\")","v":""},{"$f":"IFERROR(IF(VLOOKUP(Table_Data_Table_1[[#This Row],[Item ID]],DataTable,11,FALSE)=0,\"N/A\",Table_Data_Table_1[[#This Row],[Adjusted\nSale Price]]/VLOOKUP(Table_Data_Table_1[[#This Row],[Item ID]],DataTable,11,FALSE)),\"\")","v":""},{"$f":"IF(IFERROR(VLOOKUP(Table_Data_Table_1[[#This Row],[Item ID]],DataTable,17,FALSE),\"\")=0,\"\",IFERROR(VLOOKUP(Table_Data_Table_1[[#This Row],[Item ID]],DataTable,17,FALSE),\"\"))","v":""}]
["",null,{"$f":"IF(Table_Data_Table_1[[#This Row],[Item ID]]=\"\",\"\",IFERROR(VLOOKUP(Table_Data_Table_1[[#This Row],[Item ID]],DataTable,16,FALSE),\"\"))","v":""},null,null,null,null,{"$f":"IF(Table_Data_Table_1[[#This Row],[Valuation Method]]=\"Vacant\",VLOOKUP(Table_Data_Table_1[[#This Row],[Item ID]],DataTable,6,FALSE)-VLOOKUP(Table_Data_Table_1[[#This Row],[Item ID]],DataTable,13,FALSE),IF(Table_Data_Table_1[[#This Row],[Valuation Method]]=\"Abstraction\",VLOOKUP(Table_Data_Table_1[[#This Row],[Item ID]],DataTable,6,FALSE)-VLOOKUP(Table_Data_Table_1[[#This Row],[Item ID]],DataTable,13,FALSE),IF(Table_Data_Table_1[[#This Row],[Valuation Method]]=\"Allocation\",VLOOKUP(Table_Data_Table_1[[#This Row],[Item ID]],DataTable,6,FALSE)*I176,\"\")))","v":""},{"$f":"IF(Table_Data_Table_1[[#This Row],[Valuation Method]]=\"Vacant\",\"N/A\",IF(Table_Data_Table_1[[#This Row],[Valuation Method]]=\"Abstraction\",Table_Data_Table_1[[#This Row],[Land\nResidual]]/VLOOKUP(Table_Data_Table_1[[#This Row],[Item ID]],DataTable,6,FALSE),IF(Table_Data_Table_1[[#This Row],[Valuation Method]]=\"Allocation\",'Global Settings'!$H$20,\"\")))","v":""},{"$f":"IFERROR(ROUND(Table_Data_Table_1[[#This Row],[Resid\nSq Ft]]/43560,3),\"\")","v":""},{"$f":"IF(Table_Data_Table_1[[#This Row],[Item ID]]=\"\",\"\",IFERROR(VLOOKUP(Table_Data_Table_1[[#This Row],[Item ID]],DataTable,10,FALSE)-VLOOKUP(Table_Data_Table_1[[#This Row],[Item ID]],DataTable,12,FALSE),\"\"))","v":""},{"$f":"IFERROR(Table_Data_Table_1[[#This Row],[Land\nResidual]]/Table_Data_Table_1[[#This Row],[Resid\nAcre]],\"\")","v":""},{"$f":"IFERROR(ROUND(Table_Data_Table_1[[#This Row],[Land\nResidual]]/Table_Data_Table_1[[#This Row],[Resid\nSq Ft]],2),\"\")","v":""},{"$f":"IF(Table_Data_Table_1[[#This Row],[Item ID]]=\"\",\"\",ROUND(DAYS360(Table_Data_Table_1[[#This Row],[Sale Date]],'Global Settings'!$H$5)/30,0))","v":""},{"$f":"IFERROR(IF(AND(Table_Data_Table_1[[#This Row],[Months To\nMid-Point]]<12.01,Table_Data_Table_1[[#This Row],[Months To\nMid-Point]]>-13),0,(Table_Data_Table_1[[#This Row],[Months To\nMid-Point]]*'Global Settings'!$H$6)),\"\")","v":""},{"$f":"IFERROR(Table_Data_Table_1[[#This Row],[Land\nResidual]]*(Table_Data_Table_1[[#This Row],[Time\nAdjust]]+1),\"\")","v":""},{"$f":"IFERROR(Table_Data_Table_1[[#This Row],[Adjusted\nSale Price]]/Table_Data_Table_1[[#This Row],[Resid\nAcre]],\"\")","v":""},{"$f":"IFERROR(ROUND(Table_Data_Table_1[[#This Row],[Adjusted\nSale Price]]/Table_Data_Table_1[[#This Row],[Resid\nSq Ft]],2),\"\")","v":""},{"$f":"IFERROR(IF(VLOOKUP(Table_Data_Table_1[[#This Row],[Item ID]],DataTable,11,FALSE)=0,\"N/A\",Table_Data_Table_1[[#This Row],[Adjusted\nSale Price]]/VLOOKUP(Table_Data_Table_1[[#This Row],[Item ID]],DataTable,11,FALSE)),\"\")","v":""},{"$f":"IF(IFERROR(VLOOKUP(Table_Data_Table_1[[#This Row],[Item ID]],DataTable,17,FALSE),\"\")=0,\"\",IFERROR(VLOOKUP(Table_Data_Table_1[[#This Row],[Item ID]],DataTable,17,FALSE),\"\"))","v":""}]
["",null,{"$f":"IF(Table_Data_Table_1[[#This Row],[Item ID]]=\"\",\"\",IFERROR(VLOOKUP(Table_Data_Table_1[[#This Row],[Item ID]],DataTable,16,FALSE),\"\"))","v":""},null,null,null,null,{"$f":"IF(Table_Data_Table_1[[#This Row],[Valuation Method]]=\"Vacant\",VLOOKUP(Table_Data_Table_1[[#This Row],[Item ID]],DataTable,6,FALSE)-VLOOKUP(Table_Data_Table_1[[#This Row],[Item ID]],DataTable,13,FALSE),IF(Table_Data_Table_1[[#This Row],[Valuation Method]]=\"Abstraction\",VLOOKUP(Table_Data_Table_1[[#This Row],[Item ID]],DataTable,6,FALSE)-VLOOKUP(Table_Data_Table_1[[#This Row],[Item ID]],DataTable,13,FALSE),IF(Table_Data_Table_1[[#This Row],[Valuation Method]]=\"Allocation\",VLOOKUP(Table_Data_Table_1[[#This Row],[Item ID]],DataTable,6,FALSE)*I177,\"\")))","v":""},{"$f":"IF(Table_Data_Table_1[[#This Row],[Valuation Method]]=\"Vacant\",\"N/A\",IF(Table_Data_Table_1[[#This Row],[Valuation Method]]=\"Abstraction\",Table_Data_Table_1[[#This Row],[Land\nResidual]]/VLOOKUP(Table_Data_Table_1[[#This Row],[Item ID]],DataTable,6,FALSE),IF(Table_Data_Table_1[[#This Row],[Valuation Method]]=\"Allocation\",'Global Settings'!$H$20,\"\")))","v":""},{"$f":"IFERROR(ROUND(Table_Data_Table_1[[#This Row],[Resid\nSq Ft]]/43560,3),\"\")","v":""},{"$f":"IF(Table_Data_Table_1[[#This Row],[Item ID]]=\"\",\"\",IFERROR(VLOOKUP(Table_Data_Table_1[[#This Row],[Item ID]],DataTable,10,FALSE)-VLOOKUP(Table_Data_Table_1[[#This Row],[Item ID]],DataTable,12,FALSE),\"\"))","v":""},{"$f":"IFERROR(Table_Data_Table_1[[#This Row],[Land\nResidual]]/Table_Data_Table_1[[#This Row],[Resid\nAcre]],\"\")","v":""},{"$f":"IFERROR(ROUND(Table_Data_Table_1[[#This Row],[Land\nResidual]]/Table_Data_Table_1[[#This Row],[Resid\nSq Ft]],2),\"\")","v":""},{"$f":"IF(Table_Data_Table_1[[#This Row],[Item ID]]=\"\",\"\",ROUND(DAYS360(Table_Data_Table_1[[#This Row],[Sale Date]],'Global Settings'!$H$5)/30,0))","v":""},{"$f":"IFERROR(IF(AND(Table_Data_Table_1[[#This Row],[Months To\nMid-Point]]<12.01,Table_Data_Table_1[[#This Row],[Months To\nMid-Point]]>-13),0,(Table_Data_Table_1[[#This Row],[Months To\nMid-Point]]*'Global Settings'!$H$6)),\"\")","v":""},{"$f":"IFERROR(Table_Data_Table_1[[#This Row],[Land\nResidual]]*(Table_Data_Table_1[[#This Row],[Time\nAdjust]]+1),\"\")","v":""},{"$f":"IFERROR(Table_Data_Table_1[[#This Row],[Adjusted\nSale Price]]/Table_Data_Table_1[[#This Row],[Resid\nAcre]],\"\")","v":""},{"$f":"IFERROR(ROUND(Table_Data_Table_1[[#This Row],[Adjusted\nSale Price]]/Table_Data_Table_1[[#This Row],[Resid\nSq Ft]],2),\"\")","v":""},{"$f":"IFERROR(IF(VLOOKUP(Table_Data_Table_1[[#This Row],[Item ID]],DataTable,11,FALSE)=0,\"N/A\",Table_Data_Table_1[[#This Row],[Adjusted\nSale Price]]/VLOOKUP(Table_Data_Table_1[[#This Row],[Item ID]],DataTable,11,FALSE)),\"\")","v":""},{"$f":"IF(IFERROR(VLOOKUP(Table_Data_Table_1[[#This Row],[Item ID]],DataTable,17,FALSE),\"\")=0,\"\",IFERROR(VLOOKUP(Table_Data_Table_1[[#This Row],[Item ID]],DataTable,17,FALSE),\"\"))","v":""}]
["",null,{"$f":"IF(Table_Data_Table_1[[#This Row],[Item ID]]=\"\",\"\",IFERROR(VLOOKUP(Table_Data_Table_1[[#This Row],[Item ID]],DataTable,16,FALSE),\"\"))","v":""},null,null,null,null,{"$f":"IF(Table_Data_Table_1[[#This Row],[Valuation Method]]=\"Vacant\",VLOOKUP(Table_Data_Table_1[[#This Row],[Item ID]],DataTable,6,FALSE)-VLOOKUP(Table_Data_Table_1[[#This Row],[Item ID]],DataTable,13,FALSE),IF(Table_Data_Table_1[[#This Row],[Valuation Method]]=\"Abstraction\",VLOOKUP(Table_Data_Table_1[[#This Row],[Item ID]],DataTable,6,FALSE)-VLOOKUP(Table_Data_Table_1[[#This Row],[Item ID]],DataTable,13,FALSE),IF(Table_Data_Table_1[[#This Row],[Valuation Method]]=\"Allocation\",VLOOKUP(Table_Data_Table_1[[#This Row],[Item ID]],DataTable,6,FALSE)*I178,\"\")))","v":""},{"$f":"IF(Table_Data_Table_1[[#This Row],[Valuation Method]]=\"Vacant\",\"N/A\",IF(Table_Data_Table_1[[#This Row],[Valuation Method]]=\"Abstraction\",Table_Data_Table_1[[#This Row],[Land\nResidual]]/VLOOKUP(Table_Data_Table_1[[#This Row],[Item ID]],DataTable,6,FALSE),IF(Table_Data_Table_1[[#This Row],[Valuation Method]]=\"Allocation\",'Global Settings'!$H$20,\"\")))","v":""},{"$f":"IFERROR(ROUND(Table_Data_Table_1[[#This Row],[Resid\nSq Ft]]/43560,3),\"\")","v":""},{"$f":"IF(Table_Data_Table_1[[#This Row],[Item ID]]=\"\",\"\",IFERROR(VLOOKUP(Table_Data_Table_1[[#This Row],[Item ID]],DataTable,10,FALSE)-VLOOKUP(Table_Data_Table_1[[#This Row],[Item ID]],DataTable,12,FALSE),\"\"))","v":""},{"$f":"IFERROR(Table_Data_Table_1[[#This Row],[Land\nResidual]]/Table_Data_Table_1[[#This Row],[Resid\nAcre]],\"\")","v":""},{"$f":"IFERROR(ROUND(Table_Data_Table_1[[#This Row],[Land\nResidual]]/Table_Data_Table_1[[#This Row],[Resid\nSq Ft]],2),\"\")","v":""},{"$f":"IF(Table_Data_Table_1[[#This Row],[Item ID]]=\"\",\"\",ROUND(DAYS360(Table_Data_Table_1[[#This Row],[Sale Date]],'Global Settings'!$H$5)/30,0))","v":""},{"$f":"IFERROR(IF(AND(Table_Data_Table_1[[#This Row],[Months To\nMid-Point]]<12.01,Table_Data_Table_1[[#This Row],[Months To\nMid-Point]]>-13),0,(Table_Data_Table_1[[#This Row],[Months To\nMid-Point]]*'Global Settings'!$H$6)),\"\")","v":""},{"$f":"IFERROR(Table_Data_Table_1[[#This Row],[Land\nResidual]]*(Table_Data_Table_1[[#This Row],[Time\nAdjust]]+1),\"\")","v":""},{"$f":"IFERROR(Table_Data_Table_1[[#This Row],[Adjusted\nSale Price]]/Table_Data_Table_1[[#This Row],[Resid\nAcre]],\"\")","v":""},{"$f":"IFERROR(ROUND(Table_Data_Table_1[[#This Row],[Adjusted\nSale Price]]/Table_Data_Table_1[[#This Row],[Resid\nSq Ft]],2),\"\")","v":""},{"$f":"IFERROR(IF(VLOOKUP(Table_Data_Table_1[[#This Row],[Item ID]],DataTable,11,FALSE)=0,\"N/A\",Table_Data_Table_1[[#This Row],[Adjusted\nSale Price]]/VLOOKUP(Table_Data_Table_1[[#This Row],[Item ID]],DataTable,11,FALSE)),\"\")","v":""},{"$f":"IF(IFERROR(VLOOKUP(Table_Data_Table_1[[#This Row],[Item ID]],DataTable,17,FALSE),\"\")=0,\"\",IFERROR(VLOOKUP(Table_Data_Table_1[[#This Row],[Item ID]],DataTable,17,FALSE),\"\"))","v":""}]
["",null,{"$f":"IF(Table_Data_Table_1[[#This Row],[Item ID]]=\"\",\"\",IFERROR(VLOOKUP(Table_Data_Table_1[[#This Row],[Item ID]],DataTable,16,FALSE),\"\"))","v":""},null,null,null,null,{"$f":"IF(Table_Data_Table_1[[#This Row],[Valuation Method]]=\"Vacant\",VLOOKUP(Table_Data_Table_1[[#This Row],[Item ID]],DataTable,6,FALSE)-VLOOKUP(Table_Data_Table_1[[#This Row],[Item ID]],DataTable,13,FALSE),IF(Table_Data_Table_1[[#This Row],[Valuation Method]]=\"Abstraction\",VLOOKUP(Table_Data_Table_1[[#This Row],[Item ID]],DataTable,6,FALSE)-VLOOKUP(Table_Data_Table_1[[#This Row],[Item ID]],DataTable,13,FALSE),IF(Table_Data_Table_1[[#This Row],[Valuation Method]]=\"Allocation\",VLOOKUP(Table_Data_Table_1[[#This Row],[Item ID]],DataTable,6,FALSE)*I179,\"\")))","v":""},{"$f":"IF(Table_Data_Table_1[[#This Row],[Valuation Method]]=\"Vacant\",\"N/A\",IF(Table_Data_Table_1[[#This Row],[Valuation Method]]=\"Abstraction\",Table_Data_Table_1[[#This Row],[Land\nResidual]]/VLOOKUP(Table_Data_Table_1[[#This Row],[Item ID]],DataTable,6,FALSE),IF(Table_Data_Table_1[[#This Row],[Valuation Method]]=\"Allocation\",'Global Settings'!$H$20,\"\")))","v":""},{"$f":"IFERROR(ROUND(Table_Data_Table_1[[#This Row],[Resid\nSq Ft]]/43560,3),\"\")","v":""},{"$f":"IF(Table_Data_Table_1[[#This Row],[Item ID]]=\"\",\"\",IFERROR(VLOOKUP(Table_Data_Table_1[[#This Row],[Item ID]],DataTable,10,FALSE)-VLOOKUP(Table_Data_Table_1[[#This Row],[Item ID]],DataTable,12,FALSE),\"\"))","v":""},{"$f":"IFERROR(Table_Data_Table_1[[#This Row],[Land\nResidual]]/Table_Data_Table_1[[#This Row],[Resid\nAcre]],\"\")","v":""},{"$f":"IFERROR(ROUND(Table_Data_Table_1[[#This Row],[Land\nResidual]]/Table_Data_Table_1[[#This Row],[Resid\nSq Ft]],2),\"\")","v":""},{"$f":"IF(Table_Data_Table_1[[#This Row],[Item ID]]=\"\",\"\",ROUND(DAYS360(Table_Data_Table_1[[#This Row],[Sale Date]],'Global Settings'!$H$5)/30,0))","v":""},{"$f":"IFERROR(IF(AND(Table_Data_Table_1[[#This Row],[Months To\nMid-Point]]<12.01,Table_Data_Table_1[[#This Row],[Months To\nMid-Point]]>-13),0,(Table_Data_Table_1[[#This Row],[Months To\nMid-Point]]*'Global Settings'!$H$6)),\"\")","v":""},{"$f":"IFERROR(Table_Data_Table_1[[#This Row],[Land\nResidual]]*(Table_Data_Table_1[[#This Row],[Time\nAdjust]]+1),\"\")","v":""},{"$f":"IFERROR(Table_Data_Table_1[[#This Row],[Adjusted\nSale Price]]/Table_Data_Table_1[[#This Row],[Resid\nAcre]],\"\")","v":""},{"$f":"IFERROR(ROUND(Table_Data_Table_1[[#This Row],[Adjusted\nSale Price]]/Table_Data_Table_1[[#This Row],[Resid\nSq Ft]],2),\"\")","v":""},{"$f":"IFERROR(IF(VLOOKUP(Table_Data_Table_1[[#This Row],[Item ID]],DataTable,11,FALSE)=0,\"N/A\",Table_Data_Table_1[[#This Row],[Adjusted\nSale Price]]/VLOOKUP(Table_Data_Table_1[[#This Row],[Item ID]],DataTable,11,FALSE)),\"\")","v":""},{"$f":"IF(IFERROR(VLOOKUP(Table_Data_Table_1[[#This Row],[Item ID]],DataTable,17,FALSE),\"\")=0,\"\",IFERROR(VLOOKUP(Table_Data_Table_1[[#This Row],[Item ID]],DataTable,17,FALSE),\"\"))","v":""}]
["",null,{"$f":"IF(Table_Data_Table_1[[#This Row],[Item ID]]=\"\",\"\",IFERROR(VLOOKUP(Table_Data_Table_1[[#This Row],[Item ID]],DataTable,16,FALSE),\"\"))","v":""},null,null,null,null,{"$f":"IF(Table_Data_Table_1[[#This Row],[Valuation Method]]=\"Vacant\",VLOOKUP(Table_Data_Table_1[[#This Row],[Item ID]],DataTable,6,FALSE)-VLOOKUP(Table_Data_Table_1[[#This Row],[Item ID]],DataTable,13,FALSE),IF(Table_Data_Table_1[[#This Row],[Valuation Method]]=\"Abstraction\",VLOOKUP(Table_Data_Table_1[[#This Row],[Item ID]],DataTable,6,FALSE)-VLOOKUP(Table_Data_Table_1[[#This Row],[Item ID]],DataTable,13,FALSE),IF(Table_Data_Table_1[[#This Row],[Valuation Method]]=\"Allocation\",VLOOKUP(Table_Data_Table_1[[#This Row],[Item ID]],DataTable,6,FALSE)*I180,\"\")))","v":""},{"$f":"IF(Table_Data_Table_1[[#This Row],[Valuation Method]]=\"Vacant\",\"N/A\",IF(Table_Data_Table_1[[#This Row],[Valuation Method]]=\"Abstraction\",Table_Data_Table_1[[#This Row],[Land\nResidual]]/VLOOKUP(Table_Data_Table_1[[#This Row],[Item ID]],DataTable,6,FALSE),IF(Table_Data_Table_1[[#This Row],[Valuation Method]]=\"Allocation\",'Global Settings'!$H$20,\"\")))","v":""},{"$f":"IFERROR(ROUND(Table_Data_Table_1[[#This Row],[Resid\nSq Ft]]/43560,3),\"\")","v":""},{"$f":"IF(Table_Data_Table_1[[#This Row],[Item ID]]=\"\",\"\",IFERROR(VLOOKUP(Table_Data_Table_1[[#This Row],[Item ID]],DataTable,10,FALSE)-VLOOKUP(Table_Data_Table_1[[#This Row],[Item ID]],DataTable,12,FALSE),\"\"))","v":""},{"$f":"IFERROR(Table_Data_Table_1[[#This Row],[Land\nResidual]]/Table_Data_Table_1[[#This Row],[Resid\nAcre]],\"\")","v":""},{"$f":"IFERROR(ROUND(Table_Data_Table_1[[#This Row],[Land\nResidual]]/Table_Data_Table_1[[#This Row],[Resid\nSq Ft]],2),\"\")","v":""},{"$f":"IF(Table_Data_Table_1[[#This Row],[Item ID]]=\"\",\"\",ROUND(DAYS360(Table_Data_Table_1[[#This Row],[Sale Date]],'Global Settings'!$H$5)/30,0))","v":""},{"$f":"IFERROR(IF(AND(Table_Data_Table_1[[#This Row],[Months To\nMid-Point]]<12.01,Table_Data_Table_1[[#This Row],[Months To\nMid-Point]]>-13),0,(Table_Data_Table_1[[#This Row],[Months To\nMid-Point]]*'Global Settings'!$H$6)),\"\")","v":""},{"$f":"IFERROR(Table_Data_Table_1[[#This Row],[Land\nResidual]]*(Table_Data_Table_1[[#This Row],[Time\nAdjust]]+1),\"\")","v":""},{"$f":"IFERROR(Table_Data_Table_1[[#This Row],[Adjusted\nSale Price]]/Table_Data_Table_1[[#This Row],[Resid\nAcre]],\"\")","v":""},{"$f":"IFERROR(ROUND(Table_Data_Table_1[[#This Row],[Adjusted\nSale Price]]/Table_Data_Table_1[[#This Row],[Resid\nSq Ft]],2),\"\")","v":""},{"$f":"IFERROR(IF(VLOOKUP(Table_Data_Table_1[[#This Row],[Item ID]],DataTable,11,FALSE)=0,\"N/A\",Table_Data_Table_1[[#This Row],[Adjusted\nSale Price]]/VLOOKUP(Table_Data_Table_1[[#This Row],[Item ID]],DataTable,11,FALSE)),\"\")","v":""},{"$f":"IF(IFERROR(VLOOKUP(Table_Data_Table_1[[#This Row],[Item ID]],DataTable,17,FALSE),\"\")=0,\"\",IFERROR(VLOOKUP(Table_Data_Table_1[[#This Row],[Item ID]],DataTable,17,FALSE),\"\"))","v":""}]
["",null,{"$f":"IF(Table_Data_Table_1[[#This Row],[Item ID]]=\"\",\"\",IFERROR(VLOOKUP(Table_Data_Table_1[[#This Row],[Item ID]],DataTable,16,FALSE),\"\"))","v":""},null,null,null,null,{"$f":"IF(Table_Data_Table_1[[#This Row],[Valuation Method]]=\"Vacant\",VLOOKUP(Table_Data_Table_1[[#This Row],[Item ID]],DataTable,6,FALSE)-VLOOKUP(Table_Data_Table_1[[#This Row],[Item ID]],DataTable,13,FALSE),IF(Table_Data_Table_1[[#This Row],[Valuation Method]]=\"Abstraction\",VLOOKUP(Table_Data_Table_1[[#This Row],[Item ID]],DataTable,6,FALSE)-VLOOKUP(Table_Data_Table_1[[#This Row],[Item ID]],DataTable,13,FALSE),IF(Table_Data_Table_1[[#This Row],[Valuation Method]]=\"Allocation\",VLOOKUP(Table_Data_Table_1[[#This Row],[Item ID]],DataTable,6,FALSE)*I181,\"\")))","v":""},{"$f":"IF(Table_Data_Table_1[[#This Row],[Valuation Method]]=\"Vacant\",\"N/A\",IF(Table_Data_Table_1[[#This Row],[Valuation Method]]=\"Abstraction\",Table_Data_Table_1[[#This Row],[Land\nResidual]]/VLOOKUP(Table_Data_Table_1[[#This Row],[Item ID]],DataTable,6,FALSE),IF(Table_Data_Table_1[[#This Row],[Valuation Method]]=\"Allocation\",'Global Settings'!$H$20,\"\")))","v":""},{"$f":"IFERROR(ROUND(Table_Data_Table_1[[#This Row],[Resid\nSq Ft]]/43560,3),\"\")","v":""},{"$f":"IF(Table_Data_Table_1[[#This Row],[Item ID]]=\"\",\"\",IFERROR(VLOOKUP(Table_Data_Table_1[[#This Row],[Item ID]],DataTable,10,FALSE)-VLOOKUP(Table_Data_Table_1[[#This Row],[Item ID]],DataTable,12,FALSE),\"\"))","v":""},{"$f":"IFERROR(Table_Data_Table_1[[#This Row],[Land\nResidual]]/Table_Data_Table_1[[#This Row],[Resid\nAcre]],\"\")","v":""},{"$f":"IFERROR(ROUND(Table_Data_Table_1[[#This Row],[Land\nResidual]]/Table_Data_Table_1[[#This Row],[Resid\nSq Ft]],2),\"\")","v":""},{"$f":"IF(Table_Data_Table_1[[#This Row],[Item ID]]=\"\",\"\",ROUND(DAYS360(Table_Data_Table_1[[#This Row],[Sale Date]],'Global Settings'!$H$5)/30,0))","v":""},{"$f":"IFERROR(IF(AND(Table_Data_Table_1[[#This Row],[Months To\nMid-Point]]<12.01,Table_Data_Table_1[[#This Row],[Months To\nMid-Point]]>-13),0,(Table_Data_Table_1[[#This Row],[Months To\nMid-Point]]*'Global Settings'!$H$6)),\"\")","v":""},{"$f":"IFERROR(Table_Data_Table_1[[#This Row],[Land\nResidual]]*(Table_Data_Table_1[[#This Row],[Time\nAdjust]]+1),\"\")","v":""},{"$f":"IFERROR(Table_Data_Table_1[[#This Row],[Adjusted\nSale Price]]/Table_Data_Table_1[[#This Row],[Resid\nAcre]],\"\")","v":""},{"$f":"IFERROR(ROUND(Table_Data_Table_1[[#This Row],[Adjusted\nSale Price]]/Table_Data_Table_1[[#This Row],[Resid\nSq Ft]],2),\"\")","v":""},{"$f":"IFERROR(IF(VLOOKUP(Table_Data_Table_1[[#This Row],[Item ID]],DataTable,11,FALSE)=0,\"N/A\",Table_Data_Table_1[[#This Row],[Adjusted\nSale Price]]/VLOOKUP(Table_Data_Table_1[[#This Row],[Item ID]],DataTable,11,FALSE)),\"\")","v":""},{"$f":"IF(IFERROR(VLOOKUP(Table_Data_Table_1[[#This Row],[Item ID]],DataTable,17,FALSE),\"\")=0,\"\",IFERROR(VLOOKUP(Table_Data_Table_1[[#This Row],[Item ID]],DataTable,17,FALSE),\"\"))","v":""}]
["",null,{"$f":"IF(Table_Data_Table_1[[#This Row],[Item ID]]=\"\",\"\",IFERROR(VLOOKUP(Table_Data_Table_1[[#This Row],[Item ID]],DataTable,16,FALSE),\"\"))","v":""},null,null,null,null,{"$f":"IF(Table_Data_Table_1[[#This Row],[Valuation Method]]=\"Vacant\",VLOOKUP(Table_Data_Table_1[[#This Row],[Item ID]],DataTable,6,FALSE)-VLOOKUP(Table_Data_Table_1[[#This Row],[Item ID]],DataTable,13,FALSE),IF(Table_Data_Table_1[[#This Row],[Valuation Method]]=\"Abstraction\",VLOOKUP(Table_Data_Table_1[[#This Row],[Item ID]],DataTable,6,FALSE)-VLOOKUP(Table_Data_Table_1[[#This Row],[Item ID]],DataTable,13,FALSE),IF(Table_Data_Table_1[[#This Row],[Valuation Method]]=\"Allocation\",VLOOKUP(Table_Data_Table_1[[#This Row],[Item ID]],DataTable,6,FALSE)*I182,\"\")))","v":""},{"$f":"IF(Table_Data_Table_1[[#This Row],[Valuation Method]]=\"Vacant\",\"N/A\",IF(Table_Data_Table_1[[#This Row],[Valuation Method]]=\"Abstraction\",Table_Data_Table_1[[#This Row],[Land\nResidual]]/VLOOKUP(Table_Data_Table_1[[#This Row],[Item ID]],DataTable,6,FALSE),IF(Table_Data_Table_1[[#This Row],[Valuation Method]]=\"Allocation\",'Global Settings'!$H$20,\"\")))","v":""},{"$f":"IFERROR(ROUND(Table_Data_Table_1[[#This Row],[Resid\nSq Ft]]/43560,3),\"\")","v":""},{"$f":"IF(Table_Data_Table_1[[#This Row],[Item ID]]=\"\",\"\",IFERROR(VLOOKUP(Table_Data_Table_1[[#This Row],[Item ID]],DataTable,10,FALSE)-VLOOKUP(Table_Data_Table_1[[#This Row],[Item ID]],DataTable,12,FALSE),\"\"))","v":""},{"$f":"IFERROR(Table_Data_Table_1[[#This Row],[Land\nResidual]]/Table_Data_Table_1[[#This Row],[Resid\nAcre]],\"\")","v":""},{"$f":"IFERROR(ROUND(Table_Data_Table_1[[#This Row],[Land\nResidual]]/Table_Data_Table_1[[#This Row],[Resid\nSq Ft]],2),\"\")","v":""},{"$f":"IF(Table_Data_Table_1[[#This Row],[Item ID]]=\"\",\"\",ROUND(DAYS360(Table_Data_Table_1[[#This Row],[Sale Date]],'Global Settings'!$H$5)/30,0))","v":""},{"$f":"IFERROR(IF(AND(Table_Data_Table_1[[#This Row],[Months To\nMid-Point]]<12.01,Table_Data_Table_1[[#This Row],[Months To\nMid-Point]]>-13),0,(Table_Data_Table_1[[#This Row],[Months To\nMid-Point]]*'Global Settings'!$H$6)),\"\")","v":""},{"$f":"IFERROR(Table_Data_Table_1[[#This Row],[Land\nResidual]]*(Table_Data_Table_1[[#This Row],[Time\nAdjust]]+1),\"\")","v":""},{"$f":"IFERROR(Table_Data_Table_1[[#This Row],[Adjusted\nSale Price]]/Table_Data_Table_1[[#This Row],[Resid\nAcre]],\"\")","v":""},{"$f":"IFERROR(ROUND(Table_Data_Table_1[[#This Row],[Adjusted\nSale Price]]/Table_Data_Table_1[[#This Row],[Resid\nSq Ft]],2),\"\")","v":""},{"$f":"IFERROR(IF(VLOOKUP(Table_Data_Table_1[[#This Row],[Item ID]],DataTable,11,FALSE)=0,\"N/A\",Table_Data_Table_1[[#This Row],[Adjusted\nSale Price]]/VLOOKUP(Table_Data_Table_1[[#This Row],[Item ID]],DataTable,11,FALSE)),\"\")","v":""},{"$f":"IF(IFERROR(VLOOKUP(Table_Data_Table_1[[#This Row],[Item ID]],DataTable,17,FALSE),\"\")=0,\"\",IFERROR(VLOOKUP(Table_Data_Table_1[[#This Row],[Item ID]],DataTable,17,FALSE),\"\"))","v":""}]
["",null,{"$f":"IF(Table_Data_Table_1[[#This Row],[Item ID]]=\"\",\"\",IFERROR(VLOOKUP(Table_Data_Table_1[[#This Row],[Item ID]],DataTable,16,FALSE),\"\"))","v":""},null,null,null,null,{"$f":"IF(Table_Data_Table_1[[#This Row],[Valuation Method]]=\"Vacant\",VLOOKUP(Table_Data_Table_1[[#This Row],[Item ID]],DataTable,6,FALSE)-VLOOKUP(Table_Data_Table_1[[#This Row],[Item ID]],DataTable,13,FALSE),IF(Table_Data_Table_1[[#This Row],[Valuation Method]]=\"Abstraction\",VLOOKUP(Table_Data_Table_1[[#This Row],[Item ID]],DataTable,6,FALSE)-VLOOKUP(Table_Data_Table_1[[#This Row],[Item ID]],DataTable,13,FALSE),IF(Table_Data_Table_1[[#This Row],[Valuation Method]]=\"Allocation\",VLOOKUP(Table_Data_Table_1[[#This Row],[Item ID]],DataTable,6,FALSE)*I183,\"\")))","v":""},{"$f":"IF(Table_Data_Table_1[[#This Row],[Valuation Method]]=\"Vacant\",\"N/A\",IF(Table_Data_Table_1[[#This Row],[Valuation Method]]=\"Abstraction\",Table_Data_Table_1[[#This Row],[Land\nResidual]]/VLOOKUP(Table_Data_Table_1[[#This Row],[Item ID]],DataTable,6,FALSE),IF(Table_Data_Table_1[[#This Row],[Valuation Method]]=\"Allocation\",'Global Settings'!$H$20,\"\")))","v":""},{"$f":"IFERROR(ROUND(Table_Data_Table_1[[#This Row],[Resid\nSq Ft]]/43560,3),\"\")","v":""},{"$f":"IF(Table_Data_Table_1[[#This Row],[Item ID]]=\"\",\"\",IFERROR(VLOOKUP(Table_Data_Table_1[[#This Row],[Item ID]],DataTable,10,FALSE)-VLOOKUP(Table_Data_Table_1[[#This Row],[Item ID]],DataTable,12,FALSE),\"\"))","v":""},{"$f":"IFERROR(Table_Data_Table_1[[#This Row],[Land\nResidual]]/Table_Data_Table_1[[#This Row],[Resid\nAcre]],\"\")","v":""},{"$f":"IFERROR(ROUND(Table_Data_Table_1[[#This Row],[Land\nResidual]]/Table_Data_Table_1[[#This Row],[Resid\nSq Ft]],2),\"\")","v":""},{"$f":"IF(Table_Data_Table_1[[#This Row],[Item ID]]=\"\",\"\",ROUND(DAYS360(Table_Data_Table_1[[#This Row],[Sale Date]],'Global Settings'!$H$5)/30,0))","v":""},{"$f":"IFERROR(IF(AND(Table_Data_Table_1[[#This Row],[Months To\nMid-Point]]<12.01,Table_Data_Table_1[[#This Row],[Months To\nMid-Point]]>-13),0,(Table_Data_Table_1[[#This Row],[Months To\nMid-Point]]*'Global Settings'!$H$6)),\"\")","v":""},{"$f":"IFERROR(Table_Data_Table_1[[#This Row],[Land\nResidual]]*(Table_Data_Table_1[[#This Row],[Time\nAdjust]]+1),\"\")","v":""},{"$f":"IFERROR(Table_Data_Table_1[[#This Row],[Adjusted\nSale Price]]/Table_Data_Table_1[[#This Row],[Resid\nAcre]],\"\")","v":""},{"$f":"IFERROR(ROUND(Table_Data_Table_1[[#This Row],[Adjusted\nSale Price]]/Table_Data_Table_1[[#This Row],[Resid\nSq Ft]],2),\"\")","v":""},{"$f":"IFERROR(IF(VLOOKUP(Table_Data_Table_1[[#This Row],[Item ID]],DataTable,11,FALSE)=0,\"N/A\",Table_Data_Table_1[[#This Row],[Adjusted\nSale Price]]/VLOOKUP(Table_Data_Table_1[[#This Row],[Item ID]],DataTable,11,FALSE)),\"\")","v":""},{"$f":"IF(IFERROR(VLOOKUP(Table_Data_Table_1[[#This Row],[Item ID]],DataTable,17,FALSE),\"\")=0,\"\",IFERROR(VLOOKUP(Table_Data_Table_1[[#This Row],[Item ID]],DataTable,17,FALSE),\"\"))","v":""}]
["",null,{"$f":"IF(Table_Data_Table_1[[#This Row],[Item ID]]=\"\",\"\",IFERROR(VLOOKUP(Table_Data_Table_1[[#This Row],[Item ID]],DataTable,16,FALSE),\"\"))","v":""},null,null,null,null,{"$f":"IF(Table_Data_Table_1[[#This Row],[Valuation Method]]=\"Vacant\",VLOOKUP(Table_Data_Table_1[[#This Row],[Item ID]],DataTable,6,FALSE)-VLOOKUP(Table_Data_Table_1[[#This Row],[Item ID]],DataTable,13,FALSE),IF(Table_Data_Table_1[[#This Row],[Valuation Method]]=\"Abstraction\",VLOOKUP(Table_Data_Table_1[[#This Row],[Item ID]],DataTable,6,FALSE)-VLOOKUP(Table_Data_Table_1[[#This Row],[Item ID]],DataTable,13,FALSE),IF(Table_Data_Table_1[[#This Row],[Valuation Method]]=\"Allocation\",VLOOKUP(Table_Data_Table_1[[#This Row],[Item ID]],DataTable,6,FALSE)*I184,\"\")))","v":""},{"$f":"IF(Table_Data_Table_1[[#This Row],[Valuation Method]]=\"Vacant\",\"N/A\",IF(Table_Data_Table_1[[#This Row],[Valuation Method]]=\"Abstraction\",Table_Data_Table_1[[#This Row],[Land\nResidual]]/VLOOKUP(Table_Data_Table_1[[#This Row],[Item ID]],DataTable,6,FALSE),IF(Table_Data_Table_1[[#This Row],[Valuation Method]]=\"Allocation\",'Global Settings'!$H$20,\"\")))","v":""},{"$f":"IFERROR(ROUND(Table_Data_Table_1[[#This Row],[Resid\nSq Ft]]/43560,3),\"\")","v":""},{"$f":"IF(Table_Data_Table_1[[#This Row],[Item ID]]=\"\",\"\",IFERROR(VLOOKUP(Table_Data_Table_1[[#This Row],[Item ID]],DataTable,10,FALSE)-VLOOKUP(Table_Data_Table_1[[#This Row],[Item ID]],DataTable,12,FALSE),\"\"))","v":""},{"$f":"IFERROR(Table_Data_Table_1[[#This Row],[Land\nResidual]]/Table_Data_Table_1[[#This Row],[Resid\nAcre]],\"\")","v":""},{"$f":"IFERROR(ROUND(Table_Data_Table_1[[#This Row],[Land\nResidual]]/Table_Data_Table_1[[#This Row],[Resid\nSq Ft]],2),\"\")","v":""},{"$f":"IF(Table_Data_Table_1[[#This Row],[Item ID]]=\"\",\"\",ROUND(DAYS360(Table_Data_Table_1[[#This Row],[Sale Date]],'Global Settings'!$H$5)/30,0))","v":""},{"$f":"IFERROR(IF(AND(Table_Data_Table_1[[#This Row],[Months To\nMid-Point]]<12.01,Table_Data_Table_1[[#This Row],[Months To\nMid-Point]]>-13),0,(Table_Data_Table_1[[#This Row],[Months To\nMid-Point]]*'Global Settings'!$H$6)),\"\")","v":""},{"$f":"IFERROR(Table_Data_Table_1[[#This Row],[Land\nResidual]]*(Table_Data_Table_1[[#This Row],[Time\nAdjust]]+1),\"\")","v":""},{"$f":"IFERROR(Table_Data_Table_1[[#This Row],[Adjusted\nSale Price]]/Table_Data_Table_1[[#This Row],[Resid\nAcre]],\"\")","v":""},{"$f":"IFERROR(ROUND(Table_Data_Table_1[[#This Row],[Adjusted\nSale Price]]/Table_Data_Table_1[[#This Row],[Resid\nSq Ft]],2),\"\")","v":""},{"$f":"IFERROR(IF(VLOOKUP(Table_Data_Table_1[[#This Row],[Item ID]],DataTable,11,FALSE)=0,\"N/A\",Table_Data_Table_1[[#This Row],[Adjusted\nSale Price]]/VLOOKUP(Table_Data_Table_1[[#This Row],[Item ID]],DataTable,11,FALSE)),\"\")","v":""},{"$f":"IF(IFERROR(VLOOKUP(Table_Data_Table_1[[#This Row],[Item ID]],DataTable,17,FALSE),\"\")=0,\"\",IFERROR(VLOOKUP(Table_Data_Table_1[[#This Row],[Item ID]],DataTable,17,FALSE),\"\"))","v":""}]
["",null,{"$f":"IF(Table_Data_Table_1[[#This Row],[Item ID]]=\"\",\"\",IFERROR(VLOOKUP(Table_Data_Table_1[[#This Row],[Item ID]],DataTable,16,FALSE),\"\"))","v":""},null,null,null,null,{"$f":"IF(Table_Data_Table_1[[#This Row],[Valuation Method]]=\"Vacant\",VLOOKUP(Table_Data_Table_1[[#This Row],[Item ID]],DataTable,6,FALSE)-VLOOKUP(Table_Data_Table_1[[#This Row],[Item ID]],DataTable,13,FALSE),IF(Table_Data_Table_1[[#This Row],[Valuation Method]]=\"Abstraction\",VLOOKUP(Table_Data_Table_1[[#This Row],[Item ID]],DataTable,6,FALSE)-VLOOKUP(Table_Data_Table_1[[#This Row],[Item ID]],DataTable,13,FALSE),IF(Table_Data_Table_1[[#This Row],[Valuation Method]]=\"Allocation\",VLOOKUP(Table_Data_Table_1[[#This Row],[Item ID]],DataTable,6,FALSE)*I185,\"\")))","v":""},{"$f":"IF(Table_Data_Table_1[[#This Row],[Valuation Method]]=\"Vacant\",\"N/A\",IF(Table_Data_Table_1[[#This Row],[Valuation Method]]=\"Abstraction\",Table_Data_Table_1[[#This Row],[Land\nResidual]]/VLOOKUP(Table_Data_Table_1[[#This Row],[Item ID]],DataTable,6,FALSE),IF(Table_Data_Table_1[[#This Row],[Valuation Method]]=\"Allocation\",'Global Settings'!$H$20,\"\")))","v":""},{"$f":"IFERROR(ROUND(Table_Data_Table_1[[#This Row],[Resid\nSq Ft]]/43560,3),\"\")","v":""},{"$f":"IF(Table_Data_Table_1[[#This Row],[Item ID]]=\"\",\"\",IFERROR(VLOOKUP(Table_Data_Table_1[[#This Row],[Item ID]],DataTable,10,FALSE)-VLOOKUP(Table_Data_Table_1[[#This Row],[Item ID]],DataTable,12,FALSE),\"\"))","v":""},{"$f":"IFERROR(Table_Data_Table_1[[#This Row],[Land\nResidual]]/Table_Data_Table_1[[#This Row],[Resid\nAcre]],\"\")","v":""},{"$f":"IFERROR(ROUND(Table_Data_Table_1[[#This Row],[Land\nResidual]]/Table_Data_Table_1[[#This Row],[Resid\nSq Ft]],2),\"\")","v":""},{"$f":"IF(Table_Data_Table_1[[#This Row],[Item ID]]=\"\",\"\",ROUND(DAYS360(Table_Data_Table_1[[#This Row],[Sale Date]],'Global Settings'!$H$5)/30,0))","v":""},{"$f":"IFERROR(IF(AND(Table_Data_Table_1[[#This Row],[Months To\nMid-Point]]<12.01,Table_Data_Table_1[[#This Row],[Months To\nMid-Point]]>-13),0,(Table_Data_Table_1[[#This Row],[Months To\nMid-Point]]*'Global Settings'!$H$6)),\"\")","v":""},{"$f":"IFERROR(Table_Data_Table_1[[#This Row],[Land\nResidual]]*(Table_Data_Table_1[[#This Row],[Time\nAdjust]]+1),\"\")","v":""},{"$f":"IFERROR(Table_Data_Table_1[[#This Row],[Adjusted\nSale Price]]/Table_Data_Table_1[[#This Row],[Resid\nAcre]],\"\")","v":""},{"$f":"IFERROR(ROUND(Table_Data_Table_1[[#This Row],[Adjusted\nSale Price]]/Table_Data_Table_1[[#This Row],[Resid\nSq Ft]],2),\"\")","v":""},{"$f":"IFERROR(IF(VLOOKUP(Table_Data_Table_1[[#This Row],[Item ID]],DataTable,11,FALSE)=0,\"N/A\",Table_Data_Table_1[[#This Row],[Adjusted\nSale Price]]/VLOOKUP(Table_Data_Table_1[[#This Row],[Item ID]],DataTable,11,FALSE)),\"\")","v":""},{"$f":"IF(IFERROR(VLOOKUP(Table_Data_Table_1[[#This Row],[Item ID]],DataTable,17,FALSE),\"\")=0,\"\",IFERROR(VLOOKUP(Table_Data_Table_1[[#This Row],[Item ID]],DataTable,17,FALSE),\"\"))","v":""}]
["",null,{"$f":"IF(Table_Data_Table_1[[#This Row],[Item ID]]=\"\",\"\",IFERROR(VLOOKUP(Table_Data_Table_1[[#This Row],[Item ID]],DataTable,16,FALSE),\"\"))","v":""},null,null,null,null,{"$f":"IF(Table_Data_Table_1[[#This Row],[Valuation Method]]=\"Vacant\",VLOOKUP(Table_Data_Table_1[[#This Row],[Item ID]],DataTable,6,FALSE)-VLOOKUP(Table_Data_Table_1[[#This Row],[Item ID]],DataTable,13,FALSE),IF(Table_Data_Table_1[[#This Row],[Valuation Method]]=\"Abstraction\",VLOOKUP(Table_Data_Table_1[[#This Row],[Item ID]],DataTable,6,FALSE)-VLOOKUP(Table_Data_Table_1[[#This Row],[Item ID]],DataTable,13,FALSE),IF(Table_Data_Table_1[[#This Row],[Valuation Method]]=\"Allocation\",VLOOKUP(Table_Data_Table_1[[#This Row],[Item ID]],DataTable,6,FALSE)*I186,\"\")))","v":""},{"$f":"IF(Table_Data_Table_1[[#This Row],[Valuation Method]]=\"Vacant\",\"N/A\",IF(Table_Data_Table_1[[#This Row],[Valuation Method]]=\"Abstraction\",Table_Data_Table_1[[#This Row],[Land\nResidual]]/VLOOKUP(Table_Data_Table_1[[#This Row],[Item ID]],DataTable,6,FALSE),IF(Table_Data_Table_1[[#This Row],[Valuation Method]]=\"Allocation\",'Global Settings'!$H$20,\"\")))","v":""},{"$f":"IFERROR(ROUND(Table_Data_Table_1[[#This Row],[Resid\nSq Ft]]/43560,3),\"\")","v":""},{"$f":"IF(Table_Data_Table_1[[#This Row],[Item ID]]=\"\",\"\",IFERROR(VLOOKUP(Table_Data_Table_1[[#This Row],[Item ID]],DataTable,10,FALSE)-VLOOKUP(Table_Data_Table_1[[#This Row],[Item ID]],DataTable,12,FALSE),\"\"))","v":""},{"$f":"IFERROR(Table_Data_Table_1[[#This Row],[Land\nResidual]]/Table_Data_Table_1[[#This Row],[Resid\nAcre]],\"\")","v":""},{"$f":"IFERROR(ROUND(Table_Data_Table_1[[#This Row],[Land\nResidual]]/Table_Data_Table_1[[#This Row],[Resid\nSq Ft]],2),\"\")","v":""},{"$f":"IF(Table_Data_Table_1[[#This Row],[Item ID]]=\"\",\"\",ROUND(DAYS360(Table_Data_Table_1[[#This Row],[Sale Date]],'Global Settings'!$H$5)/30,0))","v":""},{"$f":"IFERROR(IF(AND(Table_Data_Table_1[[#This Row],[Months To\nMid-Point]]<12.01,Table_Data_Table_1[[#This Row],[Months To\nMid-Point]]>-13),0,(Table_Data_Table_1[[#This Row],[Months To\nMid-Point]]*'Global Settings'!$H$6)),\"\")","v":""},{"$f":"IFERROR(Table_Data_Table_1[[#This Row],[Land\nResidual]]*(Table_Data_Table_1[[#This Row],[Time\nAdjust]]+1),\"\")","v":""},{"$f":"IFERROR(Table_Data_Table_1[[#This Row],[Adjusted\nSale Price]]/Table_Data_Table_1[[#This Row],[Resid\nAcre]],\"\")","v":""},{"$f":"IFERROR(ROUND(Table_Data_Table_1[[#This Row],[Adjusted\nSale Price]]/Table_Data_Table_1[[#This Row],[Resid\nSq Ft]],2),\"\")","v":""},{"$f":"IFERROR(IF(VLOOKUP(Table_Data_Table_1[[#This Row],[Item ID]],DataTable,11,FALSE)=0,\"N/A\",Table_Data_Table_1[[#This Row],[Adjusted\nSale Price]]/VLOOKUP(Table_Data_Table_1[[#This Row],[Item ID]],DataTable,11,FALSE)),\"\")","v":""},{"$f":"IF(IFERROR(VLOOKUP(Table_Data_Table_1[[#This Row],[Item ID]],DataTable,17,FALSE),\"\")=0,\"\",IFERROR(VLOOKUP(Table_Data_Table_1[[#This Row],[Item ID]],DataTable,17,FALSE),\"\"))","v":""}]
["",null,{"$f":"IF(Table_Data_Table_1[[#This Row],[Item ID]]=\"\",\"\",IFERROR(VLOOKUP(Table_Data_Table_1[[#This Row],[Item ID]],DataTable,16,FALSE),\"\"))","v":""},null,null,null,null,{"$f":"IF(Table_Data_Table_1[[#This Row],[Valuation Method]]=\"Vacant\",VLOOKUP(Table_Data_Table_1[[#This Row],[Item ID]],DataTable,6,FALSE)-VLOOKUP(Table_Data_Table_1[[#This Row],[Item ID]],DataTable,13,FALSE),IF(Table_Data_Table_1[[#This Row],[Valuation Method]]=\"Abstraction\",VLOOKUP(Table_Data_Table_1[[#This Row],[Item ID]],DataTable,6,FALSE)-VLOOKUP(Table_Data_Table_1[[#This Row],[Item ID]],DataTable,13,FALSE),IF(Table_Data_Table_1[[#This Row],[Valuation Method]]=\"Allocation\",VLOOKUP(Table_Data_Table_1[[#This Row],[Item ID]],DataTable,6,FALSE)*I187,\"\")))","v":""},{"$f":"IF(Table_Data_Table_1[[#This Row],[Valuation Method]]=\"Vacant\",\"N/A\",IF(Table_Data_Table_1[[#This Row],[Valuation Method]]=\"Abstraction\",Table_Data_Table_1[[#This Row],[Land\nResidual]]/VLOOKUP(Table_Data_Table_1[[#This Row],[Item ID]],DataTable,6,FALSE),IF(Table_Data_Table_1[[#This Row],[Valuation Method]]=\"Allocation\",'Global Settings'!$H$20,\"\")))","v":""},{"$f":"IFERROR(ROUND(Table_Data_Table_1[[#This Row],[Resid\nSq Ft]]/43560,3),\"\")","v":""},{"$f":"IF(Table_Data_Table_1[[#This Row],[Item ID]]=\"\",\"\",IFERROR(VLOOKUP(Table_Data_Table_1[[#This Row],[Item ID]],DataTable,10,FALSE)-VLOOKUP(Table_Data_Table_1[[#This Row],[Item ID]],DataTable,12,FALSE),\"\"))","v":""},{"$f":"IFERROR(Table_Data_Table_1[[#This Row],[Land\nResidual]]/Table_Data_Table_1[[#This Row],[Resid\nAcre]],\"\")","v":""},{"$f":"IFERROR(ROUND(Table_Data_Table_1[[#This Row],[Land\nResidual]]/Table_Data_Table_1[[#This Row],[Resid\nSq Ft]],2),\"\")","v":""},{"$f":"IF(Table_Data_Table_1[[#This Row],[Item ID]]=\"\",\"\",ROUND(DAYS360(Table_Data_Table_1[[#This Row],[Sale Date]],'Global Settings'!$H$5)/30,0))","v":""},{"$f":"IFERROR(IF(AND(Table_Data_Table_1[[#This Row],[Months To\nMid-Point]]<12.01,Table_Data_Table_1[[#This Row],[Months To\nMid-Point]]>-13),0,(Table_Data_Table_1[[#This Row],[Months To\nMid-Point]]*'Global Settings'!$H$6)),\"\")","v":""},{"$f":"IFERROR(Table_Data_Table_1[[#This Row],[Land\nResidual]]*(Table_Data_Table_1[[#This Row],[Time\nAdjust]]+1),\"\")","v":""},{"$f":"IFERROR(Table_Data_Table_1[[#This Row],[Adjusted\nSale Price]]/Table_Data_Table_1[[#This Row],[Resid\nAcre]],\"\")","v":""},{"$f":"IFERROR(ROUND(Table_Data_Table_1[[#This Row],[Adjusted\nSale Price]]/Table_Data_Table_1[[#This Row],[Resid\nSq Ft]],2),\"\")","v":""},{"$f":"IFERROR(IF(VLOOKUP(Table_Data_Table_1[[#This Row],[Item ID]],DataTable,11,FALSE)=0,\"N/A\",Table_Data_Table_1[[#This Row],[Adjusted\nSale Price]]/VLOOKUP(Table_Data_Table_1[[#This Row],[Item ID]],DataTable,11,FALSE)),\"\")","v":""},{"$f":"IF(IFERROR(VLOOKUP(Table_Data_Table_1[[#This Row],[Item ID]],DataTable,17,FALSE),\"\")=0,\"\",IFERROR(VLOOKUP(Table_Data_Table_1[[#This Row],[Item ID]],DataTable,17,FALSE),\"\"))","v":""}]
["",null,{"$f":"IF(Table_Data_Table_1[[#This Row],[Item ID]]=\"\",\"\",IFERROR(VLOOKUP(Table_Data_Table_1[[#This Row],[Item ID]],DataTable,16,FALSE),\"\"))","v":""},null,null,null,null,{"$f":"IF(Table_Data_Table_1[[#This Row],[Valuation Method]]=\"Vacant\",VLOOKUP(Table_Data_Table_1[[#This Row],[Item ID]],DataTable,6,FALSE)-VLOOKUP(Table_Data_Table_1[[#This Row],[Item ID]],DataTable,13,FALSE),IF(Table_Data_Table_1[[#This Row],[Valuation Method]]=\"Abstraction\",VLOOKUP(Table_Data_Table_1[[#This Row],[Item ID]],DataTable,6,FALSE)-VLOOKUP(Table_Data_Table_1[[#This Row],[Item ID]],DataTable,13,FALSE),IF(Table_Data_Table_1[[#This Row],[Valuation Method]]=\"Allocation\",VLOOKUP(Table_Data_Table_1[[#This Row],[Item ID]],DataTable,6,FALSE)*I188,\"\")))","v":""},{"$f":"IF(Table_Data_Table_1[[#This Row],[Valuation Method]]=\"Vacant\",\"N/A\",IF(Table_Data_Table_1[[#This Row],[Valuation Method]]=\"Abstraction\",Table_Data_Table_1[[#This Row],[Land\nResidual]]/VLOOKUP(Table_Data_Table_1[[#This Row],[Item ID]],DataTable,6,FALSE),IF(Table_Data_Table_1[[#This Row],[Valuation Method]]=\"Allocation\",'Global Settings'!$H$20,\"\")))","v":""},{"$f":"IFERROR(ROUND(Table_Data_Table_1[[#This Row],[Resid\nSq Ft]]/43560,3),\"\")","v":""},{"$f":"IF(Table_Data_Table_1[[#This Row],[Item ID]]=\"\",\"\",IFERROR(VLOOKUP(Table_Data_Table_1[[#This Row],[Item ID]],DataTable,10,FALSE)-VLOOKUP(Table_Data_Table_1[[#This Row],[Item ID]],DataTable,12,FALSE),\"\"))","v":""},{"$f":"IFERROR(Table_Data_Table_1[[#This Row],[Land\nResidual]]/Table_Data_Table_1[[#This Row],[Resid\nAcre]],\"\")","v":""},{"$f":"IFERROR(ROUND(Table_Data_Table_1[[#This Row],[Land\nResidual]]/Table_Data_Table_1[[#This Row],[Resid\nSq Ft]],2),\"\")","v":""},{"$f":"IF(Table_Data_Table_1[[#This Row],[Item ID]]=\"\",\"\",ROUND(DAYS360(Table_Data_Table_1[[#This Row],[Sale Date]],'Global Settings'!$H$5)/30,0))","v":""},{"$f":"IFERROR(IF(AND(Table_Data_Table_1[[#This Row],[Months To\nMid-Point]]<12.01,Table_Data_Table_1[[#This Row],[Months To\nMid-Point]]>-13),0,(Table_Data_Table_1[[#This Row],[Months To\nMid-Point]]*'Global Settings'!$H$6)),\"\")","v":""},{"$f":"IFERROR(Table_Data_Table_1[[#This Row],[Land\nResidual]]*(Table_Data_Table_1[[#This Row],[Time\nAdjust]]+1),\"\")","v":""},{"$f":"IFERROR(Table_Data_Table_1[[#This Row],[Adjusted\nSale Price]]/Table_Data_Table_1[[#This Row],[Resid\nAcre]],\"\")","v":""},{"$f":"IFERROR(ROUND(Table_Data_Table_1[[#This Row],[Adjusted\nSale Price]]/Table_Data_Table_1[[#This Row],[Resid\nSq Ft]],2),\"\")","v":""},{"$f":"IFERROR(IF(VLOOKUP(Table_Data_Table_1[[#This Row],[Item ID]],DataTable,11,FALSE)=0,\"N/A\",Table_Data_Table_1[[#This Row],[Adjusted\nSale Price]]/VLOOKUP(Table_Data_Table_1[[#This Row],[Item ID]],DataTable,11,FALSE)),\"\")","v":""},{"$f":"IF(IFERROR(VLOOKUP(Table_Data_Table_1[[#This Row],[Item ID]],DataTable,17,FALSE),\"\")=0,\"\",IFERROR(VLOOKUP(Table_Data_Table_1[[#This Row],[Item ID]],DataTable,17,FALSE),\"\"))","v":""}]
["",null,{"$f":"IF(Table_Data_Table_1[[#This Row],[Item ID]]=\"\",\"\",IFERROR(VLOOKUP(Table_Data_Table_1[[#This Row],[Item ID]],DataTable,16,FALSE),\"\"))","v":""},null,null,null,null,{"$f":"IF(Table_Data_Table_1[[#This Row],[Valuation Method]]=\"Vacant\",VLOOKUP(Table_Data_Table_1[[#This Row],[Item ID]],DataTable,6,FALSE)-VLOOKUP(Table_Data_Table_1[[#This Row],[Item ID]],DataTable,13,FALSE),IF(Table_Data_Table_1[[#This Row],[Valuation Method]]=\"Abstraction\",VLOOKUP(Table_Data_Table_1[[#This Row],[Item ID]],DataTable,6,FALSE)-VLOOKUP(Table_Data_Table_1[[#This Row],[Item ID]],DataTable,13,FALSE),IF(Table_Data_Table_1[[#This Row],[Valuation Method]]=\"Allocation\",VLOOKUP(Table_Data_Table_1[[#This Row],[Item ID]],DataTable,6,FALSE)*I189,\"\")))","v":""},{"$f":"IF(Table_Data_Table_1[[#This Row],[Valuation Method]]=\"Vacant\",\"N/A\",IF(Table_Data_Table_1[[#This Row],[Valuation Method]]=\"Abstraction\",Table_Data_Table_1[[#This Row],[Land\nResidual]]/VLOOKUP(Table_Data_Table_1[[#This Row],[Item ID]],DataTable,6,FALSE),IF(Table_Data_Table_1[[#This Row],[Valuation Method]]=\"Allocation\",'Global Settings'!$H$20,\"\")))","v":""},{"$f":"IFERROR(ROUND(Table_Data_Table_1[[#This Row],[Resid\nSq Ft]]/43560,3),\"\")","v":""},{"$f":"IF(Table_Data_Table_1[[#This Row],[Item ID]]=\"\",\"\",IFERROR(VLOOKUP(Table_Data_Table_1[[#This Row],[Item ID]],DataTable,10,FALSE)-VLOOKUP(Table_Data_Table_1[[#This Row],[Item ID]],DataTable,12,FALSE),\"\"))","v":""},{"$f":"IFERROR(Table_Data_Table_1[[#This Row],[Land\nResidual]]/Table_Data_Table_1[[#This Row],[Resid\nAcre]],\"\")","v":""},{"$f":"IFERROR(ROUND(Table_Data_Table_1[[#This Row],[Land\nResidual]]/Table_Data_Table_1[[#This Row],[Resid\nSq Ft]],2),\"\")","v":""},{"$f":"IF(Table_Data_Table_1[[#This Row],[Item ID]]=\"\",\"\",ROUND(DAYS360(Table_Data_Table_1[[#This Row],[Sale Date]],'Global Settings'!$H$5)/30,0))","v":""},{"$f":"IFERROR(IF(AND(Table_Data_Table_1[[#This Row],[Months To\nMid-Point]]<12.01,Table_Data_Table_1[[#This Row],[Months To\nMid-Point]]>-13),0,(Table_Data_Table_1[[#This Row],[Months To\nMid-Point]]*'Global Settings'!$H$6)),\"\")","v":""},{"$f":"IFERROR(Table_Data_Table_1[[#This Row],[Land\nResidual]]*(Table_Data_Table_1[[#This Row],[Time\nAdjust]]+1),\"\")","v":""},{"$f":"IFERROR(Table_Data_Table_1[[#This Row],[Adjusted\nSale Price]]/Table_Data_Table_1[[#This Row],[Resid\nAcre]],\"\")","v":""},{"$f":"IFERROR(ROUND(Table_Data_Table_1[[#This Row],[Adjusted\nSale Price]]/Table_Data_Table_1[[#This Row],[Resid\nSq Ft]],2),\"\")","v":""},{"$f":"IFERROR(IF(VLOOKUP(Table_Data_Table_1[[#This Row],[Item ID]],DataTable,11,FALSE)=0,\"N/A\",Table_Data_Table_1[[#This Row],[Adjusted\nSale Price]]/VLOOKUP(Table_Data_Table_1[[#This Row],[Item ID]],DataTable,11,FALSE)),\"\")","v":""},{"$f":"IF(IFERROR(VLOOKUP(Table_Data_Table_1[[#This Row],[Item ID]],DataTable,17,FALSE),\"\")=0,\"\",IFERROR(VLOOKUP(Table_Data_Table_1[[#This Row],[Item ID]],DataTable,17,FALSE),\"\"))","v":""}]
["",null,{"$f":"IF(Table_Data_Table_1[[#This Row],[Item ID]]=\"\",\"\",IFERROR(VLOOKUP(Table_Data_Table_1[[#This Row],[Item ID]],DataTable,16,FALSE),\"\"))","v":""},null,null,null,null,{"$f":"IF(Table_Data_Table_1[[#This Row],[Valuation Method]]=\"Vacant\",VLOOKUP(Table_Data_Table_1[[#This Row],[Item ID]],DataTable,6,FALSE)-VLOOKUP(Table_Data_Table_1[[#This Row],[Item ID]],DataTable,13,FALSE),IF(Table_Data_Table_1[[#This Row],[Valuation Method]]=\"Abstraction\",VLOOKUP(Table_Data_Table_1[[#This Row],[Item ID]],DataTable,6,FALSE)-VLOOKUP(Table_Data_Table_1[[#This Row],[Item ID]],DataTable,13,FALSE),IF(Table_Data_Table_1[[#This Row],[Valuation Method]]=\"Allocation\",VLOOKUP(Table_Data_Table_1[[#This Row],[Item ID]],DataTable,6,FALSE)*I190,\"\")))","v":""},{"$f":"IF(Table_Data_Table_1[[#This Row],[Valuation Method]]=\"Vacant\",\"N/A\",IF(Table_Data_Table_1[[#This Row],[Valuation Method]]=\"Abstraction\",Table_Data_Table_1[[#This Row],[Land\nResidual]]/VLOOKUP(Table_Data_Table_1[[#This Row],[Item ID]],DataTable,6,FALSE),IF(Table_Data_Table_1[[#This Row],[Valuation Method]]=\"Allocation\",'Global Settings'!$H$20,\"\")))","v":""},{"$f":"IFERROR(ROUND(Table_Data_Table_1[[#This Row],[Resid\nSq Ft]]/43560,3),\"\")","v":""},{"$f":"IF(Table_Data_Table_1[[#This Row],[Item ID]]=\"\",\"\",IFERROR(VLOOKUP(Table_Data_Table_1[[#This Row],[Item ID]],DataTable,10,FALSE)-VLOOKUP(Table_Data_Table_1[[#This Row],[Item ID]],DataTable,12,FALSE),\"\"))","v":""},{"$f":"IFERROR(Table_Data_Table_1[[#This Row],[Land\nResidual]]/Table_Data_Table_1[[#This Row],[Resid\nAcre]],\"\")","v":""},{"$f":"IFERROR(ROUND(Table_Data_Table_1[[#This Row],[Land\nResidual]]/Table_Data_Table_1[[#This Row],[Resid\nSq Ft]],2),\"\")","v":""},{"$f":"IF(Table_Data_Table_1[[#This Row],[Item ID]]=\"\",\"\",ROUND(DAYS360(Table_Data_Table_1[[#This Row],[Sale Date]],'Global Settings'!$H$5)/30,0))","v":""},{"$f":"IFERROR(IF(AND(Table_Data_Table_1[[#This Row],[Months To\nMid-Point]]<12.01,Table_Data_Table_1[[#This Row],[Months To\nMid-Point]]>-13),0,(Table_Data_Table_1[[#This Row],[Months To\nMid-Point]]*'Global Settings'!$H$6)),\"\")","v":""},{"$f":"IFERROR(Table_Data_Table_1[[#This Row],[Land\nResidual]]*(Table_Data_Table_1[[#This Row],[Time\nAdjust]]+1),\"\")","v":""},{"$f":"IFERROR(Table_Data_Table_1[[#This Row],[Adjusted\nSale Price]]/Table_Data_Table_1[[#This Row],[Resid\nAcre]],\"\")","v":""},{"$f":"IFERROR(ROUND(Table_Data_Table_1[[#This Row],[Adjusted\nSale Price]]/Table_Data_Table_1[[#This Row],[Resid\nSq Ft]],2),\"\")","v":""},{"$f":"IFERROR(IF(VLOOKUP(Table_Data_Table_1[[#This Row],[Item ID]],DataTable,11,FALSE)=0,\"N/A\",Table_Data_Table_1[[#This Row],[Adjusted\nSale Price]]/VLOOKUP(Table_Data_Table_1[[#This Row],[Item ID]],DataTable,11,FALSE)),\"\")","v":""},{"$f":"IF(IFERROR(VLOOKUP(Table_Data_Table_1[[#This Row],[Item ID]],DataTable,17,FALSE),\"\")=0,\"\",IFERROR(VLOOKUP(Table_Data_Table_1[[#This Row],[Item ID]],DataTable,17,FALSE),\"\"))","v":""}]
["",null,{"$f":"IF(Table_Data_Table_1[[#This Row],[Item ID]]=\"\",\"\",IFERROR(VLOOKUP(Table_Data_Table_1[[#This Row],[Item ID]],DataTable,16,FALSE),\"\"))","v":""},null,null,null,null,{"$f":"IF(Table_Data_Table_1[[#This Row],[Valuation Method]]=\"Vacant\",VLOOKUP(Table_Data_Table_1[[#This Row],[Item ID]],DataTable,6,FALSE)-VLOOKUP(Table_Data_Table_1[[#This Row],[Item ID]],DataTable,13,FALSE),IF(Table_Data_Table_1[[#This Row],[Valuation Method]]=\"Abstraction\",VLOOKUP(Table_Data_Table_1[[#This Row],[Item ID]],DataTable,6,FALSE)-VLOOKUP(Table_Data_Table_1[[#This Row],[Item ID]],DataTable,13,FALSE),IF(Table_Data_Table_1[[#This Row],[Valuation Method]]=\"Allocation\",VLOOKUP(Table_Data_Table_1[[#This Row],[Item ID]],DataTable,6,FALSE)*I191,\"\")))","v":""},{"$f":"IF(Table_Data_Table_1[[#This Row],[Valuation Method]]=\"Vacant\",\"N/A\",IF(Table_Data_Table_1[[#This Row],[Valuation Method]]=\"Abstraction\",Table_Data_Table_1[[#This Row],[Land\nResidual]]/VLOOKUP(Table_Data_Table_1[[#This Row],[Item ID]],DataTable,6,FALSE),IF(Table_Data_Table_1[[#This Row],[Valuation Method]]=\"Allocation\",'Global Settings'!$H$20,\"\")))","v":""},{"$f":"IFERROR(ROUND(Table_Data_Table_1[[#This Row],[Resid\nSq Ft]]/43560,3),\"\")","v":""},{"$f":"IF(Table_Data_Table_1[[#This Row],[Item ID]]=\"\",\"\",IFERROR(VLOOKUP(Table_Data_Table_1[[#This Row],[Item ID]],DataTable,10,FALSE)-VLOOKUP(Table_Data_Table_1[[#This Row],[Item ID]],DataTable,12,FALSE),\"\"))","v":""},{"$f":"IFERROR(Table_Data_Table_1[[#This Row],[Land\nResidual]]/Table_Data_Table_1[[#This Row],[Resid\nAcre]],\"\")","v":""},{"$f":"IFERROR(ROUND(Table_Data_Table_1[[#This Row],[Land\nResidual]]/Table_Data_Table_1[[#This Row],[Resid\nSq Ft]],2),\"\")","v":""},{"$f":"IF(Table_Data_Table_1[[#This Row],[Item ID]]=\"\",\"\",ROUND(DAYS360(Table_Data_Table_1[[#This Row],[Sale Date]],'Global Settings'!$H$5)/30,0))","v":""},{"$f":"IFERROR(IF(AND(Table_Data_Table_1[[#This Row],[Months To\nMid-Point]]<12.01,Table_Data_Table_1[[#This Row],[Months To\nMid-Point]]>-13),0,(Table_Data_Table_1[[#This Row],[Months To\nMid-Point]]*'Global Settings'!$H$6)),\"\")","v":""},{"$f":"IFERROR(Table_Data_Table_1[[#This Row],[Land\nResidual]]*(Table_Data_Table_1[[#This Row],[Time\nAdjust]]+1),\"\")","v":""},{"$f":"IFERROR(Table_Data_Table_1[[#This Row],[Adjusted\nSale Price]]/Table_Data_Table_1[[#This Row],[Resid\nAcre]],\"\")","v":""},{"$f":"IFERROR(ROUND(Table_Data_Table_1[[#This Row],[Adjusted\nSale Price]]/Table_Data_Table_1[[#This Row],[Resid\nSq Ft]],2),\"\")","v":""},{"$f":"IFERROR(IF(VLOOKUP(Table_Data_Table_1[[#This Row],[Item ID]],DataTable,11,FALSE)=0,\"N/A\",Table_Data_Table_1[[#This Row],[Adjusted\nSale Price]]/VLOOKUP(Table_Data_Table_1[[#This Row],[Item ID]],DataTable,11,FALSE)),\"\")","v":""},{"$f":"IF(IFERROR(VLOOKUP(Table_Data_Table_1[[#This Row],[Item ID]],DataTable,17,FALSE),\"\")=0,\"\",IFERROR(VLOOKUP(Table_Data_Table_1[[#This Row],[Item ID]],DataTable,17,FALSE),\"\"))","v":""}]
["",null,{"$f":"IF(Table_Data_Table_1[[#This Row],[Item ID]]=\"\",\"\",IFERROR(VLOOKUP(Table_Data_Table_1[[#This Row],[Item ID]],DataTable,16,FALSE),\"\"))","v":""},null,null,null,null,{"$f":"IF(Table_Data_Table_1[[#This Row],[Valuation Method]]=\"Vacant\",VLOOKUP(Table_Data_Table_1[[#This Row],[Item ID]],DataTable,6,FALSE)-VLOOKUP(Table_Data_Table_1[[#This Row],[Item ID]],DataTable,13,FALSE),IF(Table_Data_Table_1[[#This Row],[Valuation Method]]=\"Abstraction\",VLOOKUP(Table_Data_Table_1[[#This Row],[Item ID]],DataTable,6,FALSE)-VLOOKUP(Table_Data_Table_1[[#This Row],[Item ID]],DataTable,13,FALSE),IF(Table_Data_Table_1[[#This Row],[Valuation Method]]=\"Allocation\",VLOOKUP(Table_Data_Table_1[[#This Row],[Item ID]],DataTable,6,FALSE)*I192,\"\")))","v":""},{"$f":"IF(Table_Data_Table_1[[#This Row],[Valuation Method]]=\"Vacant\",\"N/A\",IF(Table_Data_Table_1[[#This Row],[Valuation Method]]=\"Abstraction\",Table_Data_Table_1[[#This Row],[Land\nResidual]]/VLOOKUP(Table_Data_Table_1[[#This Row],[Item ID]],DataTable,6,FALSE),IF(Table_Data_Table_1[[#This Row],[Valuation Method]]=\"Allocation\",'Global Settings'!$H$20,\"\")))","v":""},{"$f":"IFERROR(ROUND(Table_Data_Table_1[[#This Row],[Resid\nSq Ft]]/43560,3),\"\")","v":""},{"$f":"IF(Table_Data_Table_1[[#This Row],[Item ID]]=\"\",\"\",IFERROR(VLOOKUP(Table_Data_Table_1[[#This Row],[Item ID]],DataTable,10,FALSE)-VLOOKUP(Table_Data_Table_1[[#This Row],[Item ID]],DataTable,12,FALSE),\"\"))","v":""},{"$f":"IFERROR(Table_Data_Table_1[[#This Row],[Land\nResidual]]/Table_Data_Table_1[[#This Row],[Resid\nAcre]],\"\")","v":""},{"$f":"IFERROR(ROUND(Table_Data_Table_1[[#This Row],[Land\nResidual]]/Table_Data_Table_1[[#This Row],[Resid\nSq Ft]],2),\"\")","v":""},{"$f":"IF(Table_Data_Table_1[[#This Row],[Item ID]]=\"\",\"\",ROUND(DAYS360(Table_Data_Table_1[[#This Row],[Sale Date]],'Global Settings'!$H$5)/30,0))","v":""},{"$f":"IFERROR(IF(AND(Table_Data_Table_1[[#This Row],[Months To\nMid-Point]]<12.01,Table_Data_Table_1[[#This Row],[Months To\nMid-Point]]>-13),0,(Table_Data_Table_1[[#This Row],[Months To\nMid-Point]]*'Global Settings'!$H$6)),\"\")","v":""},{"$f":"IFERROR(Table_Data_Table_1[[#This Row],[Land\nResidual]]*(Table_Data_Table_1[[#This Row],[Time\nAdjust]]+1),\"\")","v":""},{"$f":"IFERROR(Table_Data_Table_1[[#This Row],[Adjusted\nSale Price]]/Table_Data_Table_1[[#This Row],[Resid\nAcre]],\"\")","v":""},{"$f":"IFERROR(ROUND(Table_Data_Table_1[[#This Row],[Adjusted\nSale Price]]/Table_Data_Table_1[[#This Row],[Resid\nSq Ft]],2),\"\")","v":""},{"$f":"IFERROR(IF(VLOOKUP(Table_Data_Table_1[[#This Row],[Item ID]],DataTable,11,FALSE)=0,\"N/A\",Table_Data_Table_1[[#This Row],[Adjusted\nSale Price]]/VLOOKUP(Table_Data_Table_1[[#This Row],[Item ID]],DataTable,11,FALSE)),\"\")","v":""},{"$f":"IF(IFERROR(VLOOKUP(Table_Data_Table_1[[#This Row],[Item ID]],DataTable,17,FALSE),\"\")=0,\"\",IFERROR(VLOOKUP(Table_Data_Table_1[[#This Row],[Item ID]],DataTable,17,FALSE),\"\"))","v":""}]
["",null,{"$f":"IF(Table_Data_Table_1[[#This Row],[Item ID]]=\"\",\"\",IFERROR(VLOOKUP(Table_Data_Table_1[[#This Row],[Item ID]],DataTable,16,FALSE),\"\"))","v":""},null,null,null,null,{"$f":"IF(Table_Data_Table_1[[#This Row],[Valuation Method]]=\"Vacant\",VLOOKUP(Table_Data_Table_1[[#This Row],[Item ID]],DataTable,6,FALSE)-VLOOKUP(Table_Data_Table_1[[#This Row],[Item ID]],DataTable,13,FALSE),IF(Table_Data_Table_1[[#This Row],[Valuation Method]]=\"Abstraction\",VLOOKUP(Table_Data_Table_1[[#This Row],[Item ID]],DataTable,6,FALSE)-VLOOKUP(Table_Data_Table_1[[#This Row],[Item ID]],DataTable,13,FALSE),IF(Table_Data_Table_1[[#This Row],[Valuation Method]]=\"Allocation\",VLOOKUP(Table_Data_Table_1[[#This Row],[Item ID]],DataTable,6,FALSE)*I193,\"\")))","v":""},{"$f":"IF(Table_Data_Table_1[[#This Row],[Valuation Method]]=\"Vacant\",\"N/A\",IF(Table_Data_Table_1[[#This Row],[Valuation Method]]=\"Abstraction\",Table_Data_Table_1[[#This Row],[Land\nResidual]]/VLOOKUP(Table_Data_Table_1[[#This Row],[Item ID]],DataTable,6,FALSE),IF(Table_Data_Table_1[[#This Row],[Valuation Method]]=\"Allocation\",'Global Settings'!$H$20,\"\")))","v":""},{"$f":"IFERROR(ROUND(Table_Data_Table_1[[#This Row],[Resid\nSq Ft]]/43560,3),\"\")","v":""},{"$f":"IF(Table_Data_Table_1[[#This Row],[Item ID]]=\"\",\"\",IFERROR(VLOOKUP(Table_Data_Table_1[[#This Row],[Item ID]],DataTable,10,FALSE)-VLOOKUP(Table_Data_Table_1[[#This Row],[Item ID]],DataTable,12,FALSE),\"\"))","v":""},{"$f":"IFERROR(Table_Data_Table_1[[#This Row],[Land\nResidual]]/Table_Data_Table_1[[#This Row],[Resid\nAcre]],\"\")","v":""},{"$f":"IFERROR(ROUND(Table_Data_Table_1[[#This Row],[Land\nResidual]]/Table_Data_Table_1[[#This Row],[Resid\nSq Ft]],2),\"\")","v":""},{"$f":"IF(Table_Data_Table_1[[#This Row],[Item ID]]=\"\",\"\",ROUND(DAYS360(Table_Data_Table_1[[#This Row],[Sale Date]],'Global Settings'!$H$5)/30,0))","v":""},{"$f":"IFERROR(IF(AND(Table_Data_Table_1[[#This Row],[Months To\nMid-Point]]<12.01,Table_Data_Table_1[[#This Row],[Months To\nMid-Point]]>-13),0,(Table_Data_Table_1[[#This Row],[Months To\nMid-Point]]*'Global Settings'!$H$6)),\"\")","v":""},{"$f":"IFERROR(Table_Data_Table_1[[#This Row],[Land\nResidual]]*(Table_Data_Table_1[[#This Row],[Time\nAdjust]]+1),\"\")","v":""},{"$f":"IFERROR(Table_Data_Table_1[[#This Row],[Adjusted\nSale Price]]/Table_Data_Table_1[[#This Row],[Resid\nAcre]],\"\")","v":""},{"$f":"IFERROR(ROUND(Table_Data_Table_1[[#This Row],[Adjusted\nSale Price]]/Table_Data_Table_1[[#This Row],[Resid\nSq Ft]],2),\"\")","v":""},{"$f":"IFERROR(IF(VLOOKUP(Table_Data_Table_1[[#This Row],[Item ID]],DataTable,11,FALSE)=0,\"N/A\",Table_Data_Table_1[[#This Row],[Adjusted\nSale Price]]/VLOOKUP(Table_Data_Table_1[[#This Row],[Item ID]],DataTable,11,FALSE)),\"\")","v":""},{"$f":"IF(IFERROR(VLOOKUP(Table_Data_Table_1[[#This Row],[Item ID]],DataTable,17,FALSE),\"\")=0,\"\",IFERROR(VLOOKUP(Table_Data_Table_1[[#This Row],[Item ID]],DataTable,17,FALSE),\"\"))","v":""}]
["",null,{"$f":"IF(Table_Data_Table_1[[#This Row],[Item ID]]=\"\",\"\",IFERROR(VLOOKUP(Table_Data_Table_1[[#This Row],[Item ID]],DataTable,16,FALSE),\"\"))","v":""},null,null,null,null,{"$f":"IF(Table_Data_Table_1[[#This Row],[Valuation Method]]=\"Vacant\",VLOOKUP(Table_Data_Table_1[[#This Row],[Item ID]],DataTable,6,FALSE)-VLOOKUP(Table_Data_Table_1[[#This Row],[Item ID]],DataTable,13,FALSE),IF(Table_Data_Table_1[[#This Row],[Valuation Method]]=\"Abstraction\",VLOOKUP(Table_Data_Table_1[[#This Row],[Item ID]],DataTable,6,FALSE)-VLOOKUP(Table_Data_Table_1[[#This Row],[Item ID]],DataTable,13,FALSE),IF(Table_Data_Table_1[[#This Row],[Valuation Method]]=\"Allocation\",VLOOKUP(Table_Data_Table_1[[#This Row],[Item ID]],DataTable,6,FALSE)*I194,\"\")))","v":""},{"$f":"IF(Table_Data_Table_1[[#This Row],[Valuation Method]]=\"Vacant\",\"N/A\",IF(Table_Data_Table_1[[#This Row],[Valuation Method]]=\"Abstraction\",Table_Data_Table_1[[#This Row],[Land\nResidual]]/VLOOKUP(Table_Data_Table_1[[#This Row],[Item ID]],DataTable,6,FALSE),IF(Table_Data_Table_1[[#This Row],[Valuation Method]]=\"Allocation\",'Global Settings'!$H$20,\"\")))","v":""},{"$f":"IFERROR(ROUND(Table_Data_Table_1[[#This Row],[Resid\nSq Ft]]/43560,3),\"\")","v":""},{"$f":"IF(Table_Data_Table_1[[#This Row],[Item ID]]=\"\",\"\",IFERROR(VLOOKUP(Table_Data_Table_1[[#This Row],[Item ID]],DataTable,10,FALSE)-VLOOKUP(Table_Data_Table_1[[#This Row],[Item ID]],DataTable,12,FALSE),\"\"))","v":""},{"$f":"IFERROR(Table_Data_Table_1[[#This Row],[Land\nResidual]]/Table_Data_Table_1[[#This Row],[Resid\nAcre]],\"\")","v":""},{"$f":"IFERROR(ROUND(Table_Data_Table_1[[#This Row],[Land\nResidual]]/Table_Data_Table_1[[#This Row],[Resid\nSq Ft]],2),\"\")","v":""},{"$f":"IF(Table_Data_Table_1[[#This Row],[Item ID]]=\"\",\"\",ROUND(DAYS360(Table_Data_Table_1[[#This Row],[Sale Date]],'Global Settings'!$H$5)/30,0))","v":""},{"$f":"IFERROR(IF(AND(Table_Data_Table_1[[#This Row],[Months To\nMid-Point]]<12.01,Table_Data_Table_1[[#This Row],[Months To\nMid-Point]]>-13),0,(Table_Data_Table_1[[#This Row],[Months To\nMid-Point]]*'Global Settings'!$H$6)),\"\")","v":""},{"$f":"IFERROR(Table_Data_Table_1[[#This Row],[Land\nResidual]]*(Table_Data_Table_1[[#This Row],[Time\nAdjust]]+1),\"\")","v":""},{"$f":"IFERROR(Table_Data_Table_1[[#This Row],[Adjusted\nSale Price]]/Table_Data_Table_1[[#This Row],[Resid\nAcre]],\"\")","v":""},{"$f":"IFERROR(ROUND(Table_Data_Table_1[[#This Row],[Adjusted\nSale Price]]/Table_Data_Table_1[[#This Row],[Resid\nSq Ft]],2),\"\")","v":""},{"$f":"IFERROR(IF(VLOOKUP(Table_Data_Table_1[[#This Row],[Item ID]],DataTable,11,FALSE)=0,\"N/A\",Table_Data_Table_1[[#This Row],[Adjusted\nSale Price]]/VLOOKUP(Table_Data_Table_1[[#This Row],[Item ID]],DataTable,11,FALSE)),\"\")","v":""},{"$f":"IF(IFERROR(VLOOKUP(Table_Data_Table_1[[#This Row],[Item ID]],DataTable,17,FALSE),\"\")=0,\"\",IFERROR(VLOOKUP(Table_Data_Table_1[[#This Row],[Item ID]],DataTable,17,FALSE),\"\"))","v":""}]
["",null,{"$f":"IF(Table_Data_Table_1[[#This Row],[Item ID]]=\"\",\"\",IFERROR(VLOOKUP(Table_Data_Table_1[[#This Row],[Item ID]],DataTable,16,FALSE),\"\"))","v":""},null,null,null,null,{"$f":"IF(Table_Data_Table_1[[#This Row],[Valuation Method]]=\"Vacant\",VLOOKUP(Table_Data_Table_1[[#This Row],[Item ID]],DataTable,6,FALSE)-VLOOKUP(Table_Data_Table_1[[#This Row],[Item ID]],DataTable,13,FALSE),IF(Table_Data_Table_1[[#This Row],[Valuation Method]]=\"Abstraction\",VLOOKUP(Table_Data_Table_1[[#This Row],[Item ID]],DataTable,6,FALSE)-VLOOKUP(Table_Data_Table_1[[#This Row],[Item ID]],DataTable,13,FALSE),IF(Table_Data_Table_1[[#This Row],[Valuation Method]]=\"Allocation\",VLOOKUP(Table_Data_Table_1[[#This Row],[Item ID]],DataTable,6,FALSE)*I195,\"\")))","v":""},{"$f":"IF(Table_Data_Table_1[[#This Row],[Valuation Method]]=\"Vacant\",\"N/A\",IF(Table_Data_Table_1[[#This Row],[Valuation Method]]=\"Abstraction\",Table_Data_Table_1[[#This Row],[Land\nResidual]]/VLOOKUP(Table_Data_Table_1[[#This Row],[Item ID]],DataTable,6,FALSE),IF(Table_Data_Table_1[[#This Row],[Valuation Method]]=\"Allocation\",'Global Settings'!$H$20,\"\")))","v":""},{"$f":"IFERROR(ROUND(Table_Data_Table_1[[#This Row],[Resid\nSq Ft]]/43560,3),\"\")","v":""},{"$f":"IF(Table_Data_Table_1[[#This Row],[Item ID]]=\"\",\"\",IFERROR(VLOOKUP(Table_Data_Table_1[[#This Row],[Item ID]],DataTable,10,FALSE)-VLOOKUP(Table_Data_Table_1[[#This Row],[Item ID]],DataTable,12,FALSE),\"\"))","v":""},{"$f":"IFERROR(Table_Data_Table_1[[#This Row],[Land\nResidual]]/Table_Data_Table_1[[#This Row],[Resid\nAcre]],\"\")","v":""},{"$f":"IFERROR(ROUND(Table_Data_Table_1[[#This Row],[Land\nResidual]]/Table_Data_Table_1[[#This Row],[Resid\nSq Ft]],2),\"\")","v":""},{"$f":"IF(Table_Data_Table_1[[#This Row],[Item ID]]=\"\",\"\",ROUND(DAYS360(Table_Data_Table_1[[#This Row],[Sale Date]],'Global Settings'!$H$5)/30,0))","v":""},{"$f":"IFERROR(IF(AND(Table_Data_Table_1[[#This Row],[Months To\nMid-Point]]<12.01,Table_Data_Table_1[[#This Row],[Months To\nMid-Point]]>-13),0,(Table_Data_Table_1[[#This Row],[Months To\nMid-Point]]*'Global Settings'!$H$6)),\"\")","v":""},{"$f":"IFERROR(Table_Data_Table_1[[#This Row],[Land\nResidual]]*(Table_Data_Table_1[[#This Row],[Time\nAdjust]]+1),\"\")","v":""},{"$f":"IFERROR(Table_Data_Table_1[[#This Row],[Adjusted\nSale Price]]/Table_Data_Table_1[[#This Row],[Resid\nAcre]],\"\")","v":""},{"$f":"IFERROR(ROUND(Table_Data_Table_1[[#This Row],[Adjusted\nSale Price]]/Table_Data_Table_1[[#This Row],[Resid\nSq Ft]],2),\"\")","v":""},{"$f":"IFERROR(IF(VLOOKUP(Table_Data_Table_1[[#This Row],[Item ID]],DataTable,11,FALSE)=0,\"N/A\",Table_Data_Table_1[[#This Row],[Adjusted\nSale Price]]/VLOOKUP(Table_Data_Table_1[[#This Row],[Item ID]],DataTable,11,FALSE)),\"\")","v":""},{"$f":"IF(IFERROR(VLOOKUP(Table_Data_Table_1[[#This Row],[Item ID]],DataTable,17,FALSE),\"\")=0,\"\",IFERROR(VLOOKUP(Table_Data_Table_1[[#This Row],[Item ID]],DataTable,17,FALSE),\"\"))","v":""}]
["",null,{"$f":"IF(Table_Data_Table_1[[#This Row],[Item ID]]=\"\",\"\",IFERROR(VLOOKUP(Table_Data_Table_1[[#This Row],[Item ID]],DataTable,16,FALSE),\"\"))","v":""},null,null,null,null,{"$f":"IF(Table_Data_Table_1[[#This Row],[Valuation Method]]=\"Vacant\",VLOOKUP(Table_Data_Table_1[[#This Row],[Item ID]],DataTable,6,FALSE)-VLOOKUP(Table_Data_Table_1[[#This Row],[Item ID]],DataTable,13,FALSE),IF(Table_Data_Table_1[[#This Row],[Valuation Method]]=\"Abstraction\",VLOOKUP(Table_Data_Table_1[[#This Row],[Item ID]],DataTable,6,FALSE)-VLOOKUP(Table_Data_Table_1[[#This Row],[Item ID]],DataTable,13,FALSE),IF(Table_Data_Table_1[[#This Row],[Valuation Method]]=\"Allocation\",VLOOKUP(Table_Data_Table_1[[#This Row],[Item ID]],DataTable,6,FALSE)*I196,\"\")))","v":""},{"$f":"IF(Table_Data_Table_1[[#This Row],[Valuation Method]]=\"Vacant\",\"N/A\",IF(Table_Data_Table_1[[#This Row],[Valuation Method]]=\"Abstraction\",Table_Data_Table_1[[#This Row],[Land\nResidual]]/VLOOKUP(Table_Data_Table_1[[#This Row],[Item ID]],DataTable,6,FALSE),IF(Table_Data_Table_1[[#This Row],[Valuation Method]]=\"Allocation\",'Global Settings'!$H$20,\"\")))","v":""},{"$f":"IFERROR(ROUND(Table_Data_Table_1[[#This Row],[Resid\nSq Ft]]/43560,3),\"\")","v":""},{"$f":"IF(Table_Data_Table_1[[#This Row],[Item ID]]=\"\",\"\",IFERROR(VLOOKUP(Table_Data_Table_1[[#This Row],[Item ID]],DataTable,10,FALSE)-VLOOKUP(Table_Data_Table_1[[#This Row],[Item ID]],DataTable,12,FALSE),\"\"))","v":""},{"$f":"IFERROR(Table_Data_Table_1[[#This Row],[Land\nResidual]]/Table_Data_Table_1[[#This Row],[Resid\nAcre]],\"\")","v":""},{"$f":"IFERROR(ROUND(Table_Data_Table_1[[#This Row],[Land\nResidual]]/Table_Data_Table_1[[#This Row],[Resid\nSq Ft]],2),\"\")","v":""},{"$f":"IF(Table_Data_Table_1[[#This Row],[Item ID]]=\"\",\"\",ROUND(DAYS360(Table_Data_Table_1[[#This Row],[Sale Date]],'Global Settings'!$H$5)/30,0))","v":""},{"$f":"IFERROR(IF(AND(Table_Data_Table_1[[#This Row],[Months To\nMid-Point]]<12.01,Table_Data_Table_1[[#This Row],[Months To\nMid-Point]]>-13),0,(Table_Data_Table_1[[#This Row],[Months To\nMid-Point]]*'Global Settings'!$H$6)),\"\")","v":""},{"$f":"IFERROR(Table_Data_Table_1[[#This Row],[Land\nResidual]]*(Table_Data_Table_1[[#This Row],[Time\nAdjust]]+1),\"\")","v":""},{"$f":"IFERROR(Table_Data_Table_1[[#This Row],[Adjusted\nSale Price]]/Table_Data_Table_1[[#This Row],[Resid\nAcre]],\"\")","v":""},{"$f":"IFERROR(ROUND(Table_Data_Table_1[[#This Row],[Adjusted\nSale Price]]/Table_Data_Table_1[[#This Row],[Resid\nSq Ft]],2),\"\")","v":""},{"$f":"IFERROR(IF(VLOOKUP(Table_Data_Table_1[[#This Row],[Item ID]],DataTable,11,FALSE)=0,\"N/A\",Table_Data_Table_1[[#This Row],[Adjusted\nSale Price]]/VLOOKUP(Table_Data_Table_1[[#This Row],[Item ID]],DataTable,11,FALSE)),\"\")","v":""},{"$f":"IF(IFERROR(VLOOKUP(Table_Data_Table_1[[#This Row],[Item ID]],DataTable,17,FALSE),\"\")=0,\"\",IFERROR(VLOOKUP(Table_Data_Table_1[[#This Row],[Item ID]],DataTable,17,FALSE),\"\"))","v":""}]
["",null,{"$f":"IF(Table_Data_Table_1[[#This Row],[Item ID]]=\"\",\"\",IFERROR(VLOOKUP(Table_Data_Table_1[[#This Row],[Item ID]],DataTable,16,FALSE),\"\"))","v":""},null,null,null,null,{"$f":"IF(Table_Data_Table_1[[#This Row],[Valuation Method]]=\"Vacant\",VLOOKUP(Table_Data_Table_1[[#This Row],[Item ID]],DataTable,6,FALSE)-VLOOKUP(Table_Data_Table_1[[#This Row],[Item ID]],DataTable,13,FALSE),IF(Table_Data_Table_1[[#This Row],[Valuation Method]]=\"Abstraction\",VLOOKUP(Table_Data_Table_1[[#This Row],[Item ID]],DataTable,6,FALSE)-VLOOKUP(Table_Data_Table_1[[#This Row],[Item ID]],DataTable,13,FALSE),IF(Table_Data_Table_1[[#This Row],[Valuation Method]]=\"Allocation\",VLOOKUP(Table_Data_Table_1[[#This Row],[Item ID]],DataTable,6,FALSE)*I197,\"\")))","v":""},{"$f":"IF(Table_Data_Table_1[[#This Row],[Valuation Method]]=\"Vacant\",\"N/A\",IF(Table_Data_Table_1[[#This Row],[Valuation Method]]=\"Abstraction\",Table_Data_Table_1[[#This Row],[Land\nResidual]]/VLOOKUP(Table_Data_Table_1[[#This Row],[Item ID]],DataTable,6,FALSE),IF(Table_Data_Table_1[[#This Row],[Valuation Method]]=\"Allocation\",'Global Settings'!$H$20,\"\")))","v":""},{"$f":"IFERROR(ROUND(Table_Data_Table_1[[#This Row],[Resid\nSq Ft]]/43560,3),\"\")","v":""},{"$f":"IF(Table_Data_Table_1[[#This Row],[Item ID]]=\"\",\"\",IFERROR(VLOOKUP(Table_Data_Table_1[[#This Row],[Item ID]],DataTable,10,FALSE)-VLOOKUP(Table_Data_Table_1[[#This Row],[Item ID]],DataTable,12,FALSE),\"\"))","v":""},{"$f":"IFERROR(Table_Data_Table_1[[#This Row],[Land\nResidual]]/Table_Data_Table_1[[#This Row],[Resid\nAcre]],\"\")","v":""},{"$f":"IFERROR(ROUND(Table_Data_Table_1[[#This Row],[Land\nResidual]]/Table_Data_Table_1[[#This Row],[Resid\nSq Ft]],2),\"\")","v":""},{"$f":"IF(Table_Data_Table_1[[#This Row],[Item ID]]=\"\",\"\",ROUND(DAYS360(Table_Data_Table_1[[#This Row],[Sale Date]],'Global Settings'!$H$5)/30,0))","v":""},{"$f":"IFERROR(IF(AND(Table_Data_Table_1[[#This Row],[Months To\nMid-Point]]<12.01,Table_Data_Table_1[[#This Row],[Months To\nMid-Point]]>-13),0,(Table_Data_Table_1[[#This Row],[Months To\nMid-Point]]*'Global Settings'!$H$6)),\"\")","v":""},{"$f":"IFERROR(Table_Data_Table_1[[#This Row],[Land\nResidual]]*(Table_Data_Table_1[[#This Row],[Time\nAdjust]]+1),\"\")","v":""},{"$f":"IFERROR(Table_Data_Table_1[[#This Row],[Adjusted\nSale Price]]/Table_Data_Table_1[[#This Row],[Resid\nAcre]],\"\")","v":""},{"$f":"IFERROR(ROUND(Table_Data_Table_1[[#This Row],[Adjusted\nSale Price]]/Table_Data_Table_1[[#This Row],[Resid\nSq Ft]],2),\"\")","v":""},{"$f":"IFERROR(IF(VLOOKUP(Table_Data_Table_1[[#This Row],[Item ID]],DataTable,11,FALSE)=0,\"N/A\",Table_Data_Table_1[[#This Row],[Adjusted\nSale Price]]/VLOOKUP(Table_Data_Table_1[[#This Row],[Item ID]],DataTable,11,FALSE)),\"\")","v":""},{"$f":"IF(IFERROR(VLOOKUP(Table_Data_Table_1[[#This Row],[Item ID]],DataTable,17,FALSE),\"\")=0,\"\",IFERROR(VLOOKUP(Table_Data_Table_1[[#This Row],[Item ID]],DataTable,17,FALSE),\"\"))","v":""}]
["",null,{"$f":"IF(Table_Data_Table_1[[#This Row],[Item ID]]=\"\",\"\",IFERROR(VLOOKUP(Table_Data_Table_1[[#This Row],[Item ID]],DataTable,16,FALSE),\"\"))","v":""},null,null,null,null,{"$f":"IF(Table_Data_Table_1[[#This Row],[Valuation Method]]=\"Vacant\",VLOOKUP(Table_Data_Table_1[[#This Row],[Item ID]],DataTable,6,FALSE)-VLOOKUP(Table_Data_Table_1[[#This Row],[Item ID]],DataTable,13,FALSE),IF(Table_Data_Table_1[[#This Row],[Valuation Method]]=\"Abstraction\",VLOOKUP(Table_Data_Table_1[[#This Row],[Item ID]],DataTable,6,FALSE)-VLOOKUP(Table_Data_Table_1[[#This Row],[Item ID]],DataTable,13,FALSE),IF(Table_Data_Table_1[[#This Row],[Valuation Method]]=\"Allocation\",VLOOKUP(Table_Data_Table_1[[#This Row],[Item ID]],DataTable,6,FALSE)*I198,\"\")))","v":""},{"$f":"IF(Table_Data_Table_1[[#This Row],[Valuation Method]]=\"Vacant\",\"N/A\",IF(Table_Data_Table_1[[#This Row],[Valuation Method]]=\"Abstraction\",Table_Data_Table_1[[#This Row],[Land\nResidual]]/VLOOKUP(Table_Data_Table_1[[#This Row],[Item ID]],DataTable,6,FALSE),IF(Table_Data_Table_1[[#This Row],[Valuation Method]]=\"Allocation\",'Global Settings'!$H$20,\"\")))","v":""},{"$f":"IFERROR(ROUND(Table_Data_Table_1[[#This Row],[Resid\nSq Ft]]/43560,3),\"\")","v":""},{"$f":"IF(Table_Data_Table_1[[#This Row],[Item ID]]=\"\",\"\",IFERROR(VLOOKUP(Table_Data_Table_1[[#This Row],[Item ID]],DataTable,10,FALSE)-VLOOKUP(Table_Data_Table_1[[#This Row],[Item ID]],DataTable,12,FALSE),\"\"))","v":""},{"$f":"IFERROR(Table_Data_Table_1[[#This Row],[Land\nResidual]]/Table_Data_Table_1[[#This Row],[Resid\nAcre]],\"\")","v":""},{"$f":"IFERROR(ROUND(Table_Data_Table_1[[#This Row],[Land\nResidual]]/Table_Data_Table_1[[#This Row],[Resid\nSq Ft]],2),\"\")","v":""},{"$f":"IF(Table_Data_Table_1[[#This Row],[Item ID]]=\"\",\"\",ROUND(DAYS360(Table_Data_Table_1[[#This Row],[Sale Date]],'Global Settings'!$H$5)/30,0))","v":""},{"$f":"IFERROR(IF(AND(Table_Data_Table_1[[#This Row],[Months To\nMid-Point]]<12.01,Table_Data_Table_1[[#This Row],[Months To\nMid-Point]]>-13),0,(Table_Data_Table_1[[#This Row],[Months To\nMid-Point]]*'Global Settings'!$H$6)),\"\")","v":""},{"$f":"IFERROR(Table_Data_Table_1[[#This Row],[Land\nResidual]]*(Table_Data_Table_1[[#This Row],[Time\nAdjust]]+1),\"\")","v":""},{"$f":"IFERROR(Table_Data_Table_1[[#This Row],[Adjusted\nSale Price]]/Table_Data_Table_1[[#This Row],[Resid\nAcre]],\"\")","v":""},{"$f":"IFERROR(ROUND(Table_Data_Table_1[[#This Row],[Adjusted\nSale Price]]/Table_Data_Table_1[[#This Row],[Resid\nSq Ft]],2),\"\")","v":""},{"$f":"IFERROR(IF(VLOOKUP(Table_Data_Table_1[[#This Row],[Item ID]],DataTable,11,FALSE)=0,\"N/A\",Table_Data_Table_1[[#This Row],[Adjusted\nSale Price]]/VLOOKUP(Table_Data_Table_1[[#This Row],[Item ID]],DataTable,11,FALSE)),\"\")","v":""},{"$f":"IF(IFERROR(VLOOKUP(Table_Data_Table_1[[#This Row],[Item ID]],DataTable,17,FALSE),\"\")=0,\"\",IFERROR(VLOOKUP(Table_Data_Table_1[[#This Row],[Item ID]],DataTable,17,FALSE),\"\"))","v":""}]
["",null,{"$f":"IF(Table_Data_Table_1[[#This Row],[Item ID]]=\"\",\"\",IFERROR(VLOOKUP(Table_Data_Table_1[[#This Row],[Item ID]],DataTable,16,FALSE),\"\"))","v":""},null,null,null,null,{"$f":"IF(Table_Data_Table_1[[#This Row],[Valuation Method]]=\"Vacant\",VLOOKUP(Table_Data_Table_1[[#This Row],[Item ID]],DataTable,6,FALSE)-VLOOKUP(Table_Data_Table_1[[#This Row],[Item ID]],DataTable,13,FALSE),IF(Table_Data_Table_1[[#This Row],[Valuation Method]]=\"Abstraction\",VLOOKUP(Table_Data_Table_1[[#This Row],[Item ID]],DataTable,6,FALSE)-VLOOKUP(Table_Data_Table_1[[#This Row],[Item ID]],DataTable,13,FALSE),IF(Table_Data_Table_1[[#This Row],[Valuation Method]]=\"Allocation\",VLOOKUP(Table_Data_Table_1[[#This Row],[Item ID]],DataTable,6,FALSE)*I199,\"\")))","v":""},{"$f":"IF(Table_Data_Table_1[[#This Row],[Valuation Method]]=\"Vacant\",\"N/A\",IF(Table_Data_Table_1[[#This Row],[Valuation Method]]=\"Abstraction\",Table_Data_Table_1[[#This Row],[Land\nResidual]]/VLOOKUP(Table_Data_Table_1[[#This Row],[Item ID]],DataTable,6,FALSE),IF(Table_Data_Table_1[[#This Row],[Valuation Method]]=\"Allocation\",'Global Settings'!$H$20,\"\")))","v":""},{"$f":"IFERROR(ROUND(Table_Data_Table_1[[#This Row],[Resid\nSq Ft]]/43560,3),\"\")","v":""},{"$f":"IF(Table_Data_Table_1[[#This Row],[Item ID]]=\"\",\"\",IFERROR(VLOOKUP(Table_Data_Table_1[[#This Row],[Item ID]],DataTable,10,FALSE)-VLOOKUP(Table_Data_Table_1[[#This Row],[Item ID]],DataTable,12,FALSE),\"\"))","v":""},{"$f":"IFERROR(Table_Data_Table_1[[#This Row],[Land\nResidual]]/Table_Data_Table_1[[#This Row],[Resid\nAcre]],\"\")","v":""},{"$f":"IFERROR(ROUND(Table_Data_Table_1[[#This Row],[Land\nResidual]]/Table_Data_Table_1[[#This Row],[Resid\nSq Ft]],2),\"\")","v":""},{"$f":"IF(Table_Data_Table_1[[#This Row],[Item ID]]=\"\",\"\",ROUND(DAYS360(Table_Data_Table_1[[#This Row],[Sale Date]],'Global Settings'!$H$5)/30,0))","v":""},{"$f":"IFERROR(IF(AND(Table_Data_Table_1[[#This Row],[Months To\nMid-Point]]<12.01,Table_Data_Table_1[[#This Row],[Months To\nMid-Point]]>-13),0,(Table_Data_Table_1[[#This Row],[Months To\nMid-Point]]*'Global Settings'!$H$6)),\"\")","v":""},{"$f":"IFERROR(Table_Data_Table_1[[#This Row],[Land\nResidual]]*(Table_Data_Table_1[[#This Row],[Time\nAdjust]]+1),\"\")","v":""},{"$f":"IFERROR(Table_Data_Table_1[[#This Row],[Adjusted\nSale Price]]/Table_Data_Table_1[[#This Row],[Resid\nAcre]],\"\")","v":""},{"$f":"IFERROR(ROUND(Table_Data_Table_1[[#This Row],[Adjusted\nSale Price]]/Table_Data_Table_1[[#This Row],[Resid\nSq Ft]],2),\"\")","v":""},{"$f":"IFERROR(IF(VLOOKUP(Table_Data_Table_1[[#This Row],[Item ID]],DataTable,11,FALSE)=0,\"N/A\",Table_Data_Table_1[[#This Row],[Adjusted\nSale Price]]/VLOOKUP(Table_Data_Table_1[[#This Row],[Item ID]],DataTable,11,FALSE)),\"\")","v":""},{"$f":"IF(IFERROR(VLOOKUP(Table_Data_Table_1[[#This Row],[Item ID]],DataTable,17,FALSE),\"\")=0,\"\",IFERROR(VLOOKUP(Table_Data_Table_1[[#This Row],[Item ID]],DataTable,17,FALSE),\"\"))","v":""}]
["",null,{"$f":"IF(Table_Data_Table_1[[#This Row],[Item ID]]=\"\",\"\",IFERROR(VLOOKUP(Table_Data_Table_1[[#This Row],[Item ID]],DataTable,16,FALSE),\"\"))","v":""},null,null,null,null,{"$f":"IF(Table_Data_Table_1[[#This Row],[Valuation Method]]=\"Vacant\",VLOOKUP(Table_Data_Table_1[[#This Row],[Item ID]],DataTable,6,FALSE)-VLOOKUP(Table_Data_Table_1[[#This Row],[Item ID]],DataTable,13,FALSE),IF(Table_Data_Table_1[[#This Row],[Valuation Method]]=\"Abstraction\",VLOOKUP(Table_Data_Table_1[[#This Row],[Item ID]],DataTable,6,FALSE)-VLOOKUP(Table_Data_Table_1[[#This Row],[Item ID]],DataTable,13,FALSE),IF(Table_Data_Table_1[[#This Row],[Valuation Method]]=\"Allocation\",VLOOKUP(Table_Data_Table_1[[#This Row],[Item ID]],DataTable,6,FALSE)*I200,\"\")))","v":""},{"$f":"IF(Table_Data_Table_1[[#This Row],[Valuation Method]]=\"Vacant\",\"N/A\",IF(Table_Data_Table_1[[#This Row],[Valuation Method]]=\"Abstraction\",Table_Data_Table_1[[#This Row],[Land\nResidual]]/VLOOKUP(Table_Data_Table_1[[#This Row],[Item ID]],DataTable,6,FALSE),IF(Table_Data_Table_1[[#This Row],[Valuation Method]]=\"Allocation\",'Global Settings'!$H$20,\"\")))","v":""},{"$f":"IFERROR(ROUND(Table_Data_Table_1[[#This Row],[Resid\nSq Ft]]/43560,3),\"\")","v":""},{"$f":"IF(Table_Data_Table_1[[#This Row],[Item ID]]=\"\",\"\",IFERROR(VLOOKUP(Table_Data_Table_1[[#This Row],[Item ID]],DataTable,10,FALSE)-VLOOKUP(Table_Data_Table_1[[#This Row],[Item ID]],DataTable,12,FALSE),\"\"))","v":""},{"$f":"IFERROR(Table_Data_Table_1[[#This Row],[Land\nResidual]]/Table_Data_Table_1[[#This Row],[Resid\nAcre]],\"\")","v":""},{"$f":"IFERROR(ROUND(Table_Data_Table_1[[#This Row],[Land\nResidual]]/Table_Data_Table_1[[#This Row],[Resid\nSq Ft]],2),\"\")","v":""},{"$f":"IF(Table_Data_Table_1[[#This Row],[Item ID]]=\"\",\"\",ROUND(DAYS360(Table_Data_Table_1[[#This Row],[Sale Date]],'Global Settings'!$H$5)/30,0))","v":""},{"$f":"IFERROR(IF(AND(Table_Data_Table_1[[#This Row],[Months To\nMid-Point]]<12.01,Table_Data_Table_1[[#This Row],[Months To\nMid-Point]]>-13),0,(Table_Data_Table_1[[#This Row],[Months To\nMid-Point]]*'Global Settings'!$H$6)),\"\")","v":""},{"$f":"IFERROR(Table_Data_Table_1[[#This Row],[Land\nResidual]]*(Table_Data_Table_1[[#This Row],[Time\nAdjust]]+1),\"\")","v":""},{"$f":"IFERROR(Table_Data_Table_1[[#This Row],[Adjusted\nSale Price]]/Table_Data_Table_1[[#This Row],[Resid\nAcre]],\"\")","v":""},{"$f":"IFERROR(ROUND(Table_Data_Table_1[[#This Row],[Adjusted\nSale Price]]/Table_Data_Table_1[[#This Row],[Resid\nSq Ft]],2),\"\")","v":""},{"$f":"IFERROR(IF(VLOOKUP(Table_Data_Table_1[[#This Row],[Item ID]],DataTable,11,FALSE)=0,\"N/A\",Table_Data_Table_1[[#This Row],[Adjusted\nSale Price]]/VLOOKUP(Table_Data_Table_1[[#This Row],[Item ID]],DataTable,11,FALSE)),\"\")","v":""},{"$f":"IF(IFERROR(VLOOKUP(Table_Data_Table_1[[#This Row],[Item ID]],DataTable,17,FALSE),\"\")=0,\"\",IFERROR(VLOOKUP(Table_Data_Table_1[[#This Row],[Item ID]],DataTable,17,FALSE),\"\"))","v":""}]
["",null,{"$f":"IF(Table_Data_Table_1[[#This Row],[Item ID]]=\"\",\"\",IFERROR(VLOOKUP(Table_Data_Table_1[[#This Row],[Item ID]],DataTable,16,FALSE),\"\"))","v":""},null,null,null,null,{"$f":"IF(Table_Data_Table_1[[#This Row],[Valuation Method]]=\"Vacant\",VLOOKUP(Table_Data_Table_1[[#This Row],[Item ID]],DataTable,6,FALSE)-VLOOKUP(Table_Data_Table_1[[#This Row],[Item ID]],DataTable,13,FALSE),IF(Table_Data_Table_1[[#This Row],[Valuation Method]]=\"Abstraction\",VLOOKUP(Table_Data_Table_1[[#This Row],[Item ID]],DataTable,6,FALSE)-VLOOKUP(Table_Data_Table_1[[#This Row],[Item ID]],DataTable,13,FALSE),IF(Table_Data_Table_1[[#This Row],[Valuation Method]]=\"Allocation\",VLOOKUP(Table_Data_Table_1[[#This Row],[Item ID]],DataTable,6,FALSE)*I201,\"\")))","v":""},{"$f":"IF(Table_Data_Table_1[[#This Row],[Valuation Method]]=\"Vacant\",\"N/A\",IF(Table_Data_Table_1[[#This Row],[Valuation Method]]=\"Abstraction\",Table_Data_Table_1[[#This Row],[Land\nResidual]]/VLOOKUP(Table_Data_Table_1[[#This Row],[Item ID]],DataTable,6,FALSE),IF(Table_Data_Table_1[[#This Row],[Valuation Method]]=\"Allocation\",'Global Settings'!$H$20,\"\")))","v":""},{"$f":"IFERROR(ROUND(Table_Data_Table_1[[#This Row],[Resid\nSq Ft]]/43560,3),\"\")","v":""},{"$f":"IF(Table_Data_Table_1[[#This Row],[Item ID]]=\"\",\"\",IFERROR(VLOOKUP(Table_Data_Table_1[[#This Row],[Item ID]],DataTable,10,FALSE)-VLOOKUP(Table_Data_Table_1[[#This Row],[Item ID]],DataTable,12,FALSE),\"\"))","v":""},{"$f":"IFERROR(Table_Data_Table_1[[#This Row],[Land\nResidual]]/Table_Data_Table_1[[#This Row],[Resid\nAcre]],\"\")","v":""},{"$f":"IFERROR(ROUND(Table_Data_Table_1[[#This Row],[Land\nResidual]]/Table_Data_Table_1[[#This Row],[Resid\nSq Ft]],2),\"\")","v":""},{"$f":"IF(Table_Data_Table_1[[#This Row],[Item ID]]=\"\",\"\",ROUND(DAYS360(Table_Data_Table_1[[#This Row],[Sale Date]],'Global Settings'!$H$5)/30,0))","v":""},{"$f":"IFERROR(IF(AND(Table_Data_Table_1[[#This Row],[Months To\nMid-Point]]<12.01,Table_Data_Table_1[[#This Row],[Months To\nMid-Point]]>-13),0,(Table_Data_Table_1[[#This Row],[Months To\nMid-Point]]*'Global Settings'!$H$6)),\"\")","v":""},{"$f":"IFERROR(Table_Data_Table_1[[#This Row],[Land\nResidual]]*(Table_Data_Table_1[[#This Row],[Time\nAdjust]]+1),\"\")","v":""},{"$f":"IFERROR(Table_Data_Table_1[[#This Row],[Adjusted\nSale Price]]/Table_Data_Table_1[[#This Row],[Resid\nAcre]],\"\")","v":""},{"$f":"IFERROR(ROUND(Table_Data_Table_1[[#This Row],[Adjusted\nSale Price]]/Table_Data_Table_1[[#This Row],[Resid\nSq Ft]],2),\"\")","v":""},{"$f":"IFERROR(IF(VLOOKUP(Table_Data_Table_1[[#This Row],[Item ID]],DataTable,11,FALSE)=0,\"N/A\",Table_Data_Table_1[[#This Row],[Adjusted\nSale Price]]/VLOOKUP(Table_Data_Table_1[[#This Row],[Item ID]],DataTable,11,FALSE)),\"\")","v":""},{"$f":"IF(IFERROR(VLOOKUP(Table_Data_Table_1[[#This Row],[Item ID]],DataTable,17,FALSE),\"\")=0,\"\",IFERROR(VLOOKUP(Table_Data_Table_1[[#This Row],[Item ID]],DataTable,17,FALSE),\"\"))","v":""}]
["",null,{"$f":"IF(Table_Data_Table_1[[#This Row],[Item ID]]=\"\",\"\",IFERROR(VLOOKUP(Table_Data_Table_1[[#This Row],[Item ID]],DataTable,16,FALSE),\"\"))","v":""},null,null,null,null,{"$f":"IF(Table_Data_Table_1[[#This Row],[Valuation Method]]=\"Vacant\",VLOOKUP(Table_Data_Table_1[[#This Row],[Item ID]],DataTable,6,FALSE)-VLOOKUP(Table_Data_Table_1[[#This Row],[Item ID]],DataTable,13,FALSE),IF(Table_Data_Table_1[[#This Row],[Valuation Method]]=\"Abstraction\",VLOOKUP(Table_Data_Table_1[[#This Row],[Item ID]],DataTable,6,FALSE)-VLOOKUP(Table_Data_Table_1[[#This Row],[Item ID]],DataTable,13,FALSE),IF(Table_Data_Table_1[[#This Row],[Valuation Method]]=\"Allocation\",VLOOKUP(Table_Data_Table_1[[#This Row],[Item ID]],DataTable,6,FALSE)*I202,\"\")))","v":""},{"$f":"IF(Table_Data_Table_1[[#This Row],[Valuation Method]]=\"Vacant\",\"N/A\",IF(Table_Data_Table_1[[#This Row],[Valuation Method]]=\"Abstraction\",Table_Data_Table_1[[#This Row],[Land\nResidual]]/VLOOKUP(Table_Data_Table_1[[#This Row],[Item ID]],DataTable,6,FALSE),IF(Table_Data_Table_1[[#This Row],[Valuation Method]]=\"Allocation\",'Global Settings'!$H$20,\"\")))","v":""},{"$f":"IFERROR(ROUND(Table_Data_Table_1[[#This Row],[Resid\nSq Ft]]/43560,3),\"\")","v":""},{"$f":"IF(Table_Data_Table_1[[#This Row],[Item ID]]=\"\",\"\",IFERROR(VLOOKUP(Table_Data_Table_1[[#This Row],[Item ID]],DataTable,10,FALSE)-VLOOKUP(Table_Data_Table_1[[#This Row],[Item ID]],DataTable,12,FALSE),\"\"))","v":""},{"$f":"IFERROR(Table_Data_Table_1[[#This Row],[Land\nResidual]]/Table_Data_Table_1[[#This Row],[Resid\nAcre]],\"\")","v":""},{"$f":"IFERROR(ROUND(Table_Data_Table_1[[#This Row],[Land\nResidual]]/Table_Data_Table_1[[#This Row],[Resid\nSq Ft]],2),\"\")","v":""},{"$f":"IF(Table_Data_Table_1[[#This Row],[Item ID]]=\"\",\"\",ROUND(DAYS360(Table_Data_Table_1[[#This Row],[Sale Date]],'Global Settings'!$H$5)/30,0))","v":""},{"$f":"IFERROR(IF(AND(Table_Data_Table_1[[#This Row],[Months To\nMid-Point]]<12.01,Table_Data_Table_1[[#This Row],[Months To\nMid-Point]]>-13),0,(Table_Data_Table_1[[#This Row],[Months To\nMid-Point]]*'Global Settings'!$H$6)),\"\")","v":""},{"$f":"IFERROR(Table_Data_Table_1[[#This Row],[Land\nResidual]]*(Table_Data_Table_1[[#This Row],[Time\nAdjust]]+1),\"\")","v":""},{"$f":"IFERROR(Table_Data_Table_1[[#This Row],[Adjusted\nSale Price]]/Table_Data_Table_1[[#This Row],[Resid\nAcre]],\"\")","v":""},{"$f":"IFERROR(ROUND(Table_Data_Table_1[[#This Row],[Adjusted\nSale Price]]/Table_Data_Table_1[[#This Row],[Resid\nSq Ft]],2),\"\")","v":""},{"$f":"IFERROR(IF(VLOOKUP(Table_Data_Table_1[[#This Row],[Item ID]],DataTable,11,FALSE)=0,\"N/A\",Table_Data_Table_1[[#This Row],[Adjusted\nSale Price]]/VLOOKUP(Table_Data_Table_1[[#This Row],[Item ID]],DataTable,11,FALSE)),\"\")","v":""},{"$f":"IF(IFERROR(VLOOKUP(Table_Data_Table_1[[#This Row],[Item ID]],DataTable,17,FALSE),\"\")=0,\"\",IFERROR(VLOOKUP(Table_Data_Table_1[[#This Row],[Item ID]],DataTable,17,FALSE),\"\"))","v":""}]
["",null,{"$f":"IF(Table_Data_Table_1[[#This Row],[Item ID]]=\"\",\"\",IFERROR(VLOOKUP(Table_Data_Table_1[[#This Row],[Item ID]],DataTable,16,FALSE),\"\"))","v":""},null,null,null,null,{"$f":"IF(Table_Data_Table_1[[#This Row],[Valuation Method]]=\"Vacant\",VLOOKUP(Table_Data_Table_1[[#This Row],[Item ID]],DataTable,6,FALSE)-VLOOKUP(Table_Data_Table_1[[#This Row],[Item ID]],DataTable,13,FALSE),IF(Table_Data_Table_1[[#This Row],[Valuation Method]]=\"Abstraction\",VLOOKUP(Table_Data_Table_1[[#This Row],[Item ID]],DataTable,6,FALSE)-VLOOKUP(Table_Data_Table_1[[#This Row],[Item ID]],DataTable,13,FALSE),IF(Table_Data_Table_1[[#This Row],[Valuation Method]]=\"Allocation\",VLOOKUP(Table_Data_Table_1[[#This Row],[Item ID]],DataTable,6,FALSE)*I203,\"\")))","v":""},{"$f":"IF(Table_Data_Table_1[[#This Row],[Valuation Method]]=\"Vacant\",\"N/A\",IF(Table_Data_Table_1[[#This Row],[Valuation Method]]=\"Abstraction\",Table_Data_Table_1[[#This Row],[Land\nResidual]]/VLOOKUP(Table_Data_Table_1[[#This Row],[Item ID]],DataTable,6,FALSE),IF(Table_Data_Table_1[[#This Row],[Valuation Method]]=\"Allocation\",'Global Settings'!$H$20,\"\")))","v":""},{"$f":"IFERROR(ROUND(Table_Data_Table_1[[#This Row],[Resid\nSq Ft]]/43560,3),\"\")","v":""},{"$f":"IF(Table_Data_Table_1[[#This Row],[Item ID]]=\"\",\"\",IFERROR(VLOOKUP(Table_Data_Table_1[[#This Row],[Item ID]],DataTable,10,FALSE)-VLOOKUP(Table_Data_Table_1[[#This Row],[Item ID]],DataTable,12,FALSE),\"\"))","v":""},{"$f":"IFERROR(Table_Data_Table_1[[#This Row],[Land\nResidual]]/Table_Data_Table_1[[#This Row],[Resid\nAcre]],\"\")","v":""},{"$f":"IFERROR(ROUND(Table_Data_Table_1[[#This Row],[Land\nResidual]]/Table_Data_Table_1[[#This Row],[Resid\nSq Ft]],2),\"\")","v":""},{"$f":"IF(Table_Data_Table_1[[#This Row],[Item ID]]=\"\",\"\",ROUND(DAYS360(Table_Data_Table_1[[#This Row],[Sale Date]],'Global Settings'!$H$5)/30,0))","v":""},{"$f":"IFERROR(IF(AND(Table_Data_Table_1[[#This Row],[Months To\nMid-Point]]<12.01,Table_Data_Table_1[[#This Row],[Months To\nMid-Point]]>-13),0,(Table_Data_Table_1[[#This Row],[Months To\nMid-Point]]*'Global Settings'!$H$6)),\"\")","v":""},{"$f":"IFERROR(Table_Data_Table_1[[#This Row],[Land\nResidual]]*(Table_Data_Table_1[[#This Row],[Time\nAdjust]]+1),\"\")","v":""},{"$f":"IFERROR(Table_Data_Table_1[[#This Row],[Adjusted\nSale Price]]/Table_Data_Table_1[[#This Row],[Resid\nAcre]],\"\")","v":""},{"$f":"IFERROR(ROUND(Table_Data_Table_1[[#This Row],[Adjusted\nSale Price]]/Table_Data_Table_1[[#This Row],[Resid\nSq Ft]],2),\"\")","v":""},{"$f":"IFERROR(IF(VLOOKUP(Table_Data_Table_1[[#This Row],[Item ID]],DataTable,11,FALSE)=0,\"N/A\",Table_Data_Table_1[[#This Row],[Adjusted\nSale Price]]/VLOOKUP(Table_Data_Table_1[[#This Row],[Item ID]],DataTable,11,FALSE)),\"\")","v":""},{"$f":"IF(IFERROR(VLOOKUP(Table_Data_Table_1[[#This Row],[Item ID]],DataTable,17,FALSE),\"\")=0,\"\",IFERROR(VLOOKUP(Table_Data_Table_1[[#This Row],[Item ID]],DataTable,17,FALSE),\"\"))","v":""}]
["",null,{"$f":"IF(Table_Data_Table_1[[#This Row],[Item ID]]=\"\",\"\",IFERROR(VLOOKUP(Table_Data_Table_1[[#This Row],[Item ID]],DataTable,16,FALSE),\"\"))","v":""},null,null,null,null,{"$f":"IF(Table_Data_Table_1[[#This Row],[Valuation Method]]=\"Vacant\",VLOOKUP(Table_Data_Table_1[[#This Row],[Item ID]],DataTable,6,FALSE)-VLOOKUP(Table_Data_Table_1[[#This Row],[Item ID]],DataTable,13,FALSE),IF(Table_Data_Table_1[[#This Row],[Valuation Method]]=\"Abstraction\",VLOOKUP(Table_Data_Table_1[[#This Row],[Item ID]],DataTable,6,FALSE)-VLOOKUP(Table_Data_Table_1[[#This Row],[Item ID]],DataTable,13,FALSE),IF(Table_Data_Table_1[[#This Row],[Valuation Method]]=\"Allocation\",VLOOKUP(Table_Data_Table_1[[#This Row],[Item ID]],DataTable,6,FALSE)*I204,\"\")))","v":""},{"$f":"IF(Table_Data_Table_1[[#This Row],[Valuation Method]]=\"Vacant\",\"N/A\",IF(Table_Data_Table_1[[#This Row],[Valuation Method]]=\"Abstraction\",Table_Data_Table_1[[#This Row],[Land\nResidual]]/VLOOKUP(Table_Data_Table_1[[#This Row],[Item ID]],DataTable,6,FALSE),IF(Table_Data_Table_1[[#This Row],[Valuation Method]]=\"Allocation\",'Global Settings'!$H$20,\"\")))","v":""},{"$f":"IFERROR(ROUND(Table_Data_Table_1[[#This Row],[Resid\nSq Ft]]/43560,3),\"\")","v":""},{"$f":"IF(Table_Data_Table_1[[#This Row],[Item ID]]=\"\",\"\",IFERROR(VLOOKUP(Table_Data_Table_1[[#This Row],[Item ID]],DataTable,10,FALSE)-VLOOKUP(Table_Data_Table_1[[#This Row],[Item ID]],DataTable,12,FALSE),\"\"))","v":""},{"$f":"IFERROR(Table_Data_Table_1[[#This Row],[Land\nResidual]]/Table_Data_Table_1[[#This Row],[Resid\nAcre]],\"\")","v":""},{"$f":"IFERROR(ROUND(Table_Data_Table_1[[#This Row],[Land\nResidual]]/Table_Data_Table_1[[#This Row],[Resid\nSq Ft]],2),\"\")","v":""},{"$f":"IF(Table_Data_Table_1[[#This Row],[Item ID]]=\"\",\"\",ROUND(DAYS360(Table_Data_Table_1[[#This Row],[Sale Date]],'Global Settings'!$H$5)/30,0))","v":""},{"$f":"IFERROR(IF(AND(Table_Data_Table_1[[#This Row],[Months To\nMid-Point]]<12.01,Table_Data_Table_1[[#This Row],[Months To\nMid-Point]]>-13),0,(Table_Data_Table_1[[#This Row],[Months To\nMid-Point]]*'Global Settings'!$H$6)),\"\")","v":""},{"$f":"IFERROR(Table_Data_Table_1[[#This Row],[Land\nResidual]]*(Table_Data_Table_1[[#This Row],[Time\nAdjust]]+1),\"\")","v":""},{"$f":"IFERROR(Table_Data_Table_1[[#This Row],[Adjusted\nSale Price]]/Table_Data_Table_1[[#This Row],[Resid\nAcre]],\"\")","v":""},{"$f":"IFERROR(ROUND(Table_Data_Table_1[[#This Row],[Adjusted\nSale Price]]/Table_Data_Table_1[[#This Row],[Resid\nSq Ft]],2),\"\")","v":""},{"$f":"IFERROR(IF(VLOOKUP(Table_Data_Table_1[[#This Row],[Item ID]],DataTable,11,FALSE)=0,\"N/A\",Table_Data_Table_1[[#This Row],[Adjusted\nSale Price]]/VLOOKUP(Table_Data_Table_1[[#This Row],[Item ID]],DataTable,11,FALSE)),\"\")","v":""},{"$f":"IF(IFERROR(VLOOKUP(Table_Data_Table_1[[#This Row],[Item ID]],DataTable,17,FALSE),\"\")=0,\"\",IFERROR(VLOOKUP(Table_Data_Table_1[[#This Row],[Item ID]],DataTable,17,FALSE),\"\"))","v":""}]
["",null,{"$f":"IF(Table_Data_Table_1[[#This Row],[Item ID]]=\"\",\"\",IFERROR(VLOOKUP(Table_Data_Table_1[[#This Row],[Item ID]],DataTable,16,FALSE),\"\"))","v":""},null,null,null,null,{"$f":"IF(Table_Data_Table_1[[#This Row],[Valuation Method]]=\"Vacant\",VLOOKUP(Table_Data_Table_1[[#This Row],[Item ID]],DataTable,6,FALSE)-VLOOKUP(Table_Data_Table_1[[#This Row],[Item ID]],DataTable,13,FALSE),IF(Table_Data_Table_1[[#This Row],[Valuation Method]]=\"Abstraction\",VLOOKUP(Table_Data_Table_1[[#This Row],[Item ID]],DataTable,6,FALSE)-VLOOKUP(Table_Data_Table_1[[#This Row],[Item ID]],DataTable,13,FALSE),IF(Table_Data_Table_1[[#This Row],[Valuation Method]]=\"Allocation\",VLOOKUP(Table_Data_Table_1[[#This Row],[Item ID]],DataTable,6,FALSE)*I205,\"\")))","v":""},{"$f":"IF(Table_Data_Table_1[[#This Row],[Valuation Method]]=\"Vacant\",\"N/A\",IF(Table_Data_Table_1[[#This Row],[Valuation Method]]=\"Abstraction\",Table_Data_Table_1[[#This Row],[Land\nResidual]]/VLOOKUP(Table_Data_Table_1[[#This Row],[Item ID]],DataTable,6,FALSE),IF(Table_Data_Table_1[[#This Row],[Valuation Method]]=\"Allocation\",'Global Settings'!$H$20,\"\")))","v":""},{"$f":"IFERROR(ROUND(Table_Data_Table_1[[#This Row],[Resid\nSq Ft]]/43560,3),\"\")","v":""},{"$f":"IF(Table_Data_Table_1[[#This Row],[Item ID]]=\"\",\"\",IFERROR(VLOOKUP(Table_Data_Table_1[[#This Row],[Item ID]],DataTable,10,FALSE)-VLOOKUP(Table_Data_Table_1[[#This Row],[Item ID]],DataTable,12,FALSE),\"\"))","v":""},{"$f":"IFERROR(Table_Data_Table_1[[#This Row],[Land\nResidual]]/Table_Data_Table_1[[#This Row],[Resid\nAcre]],\"\")","v":""},{"$f":"IFERROR(ROUND(Table_Data_Table_1[[#This Row],[Land\nResidual]]/Table_Data_Table_1[[#This Row],[Resid\nSq Ft]],2),\"\")","v":""},{"$f":"IF(Table_Data_Table_1[[#This Row],[Item ID]]=\"\",\"\",ROUND(DAYS360(Table_Data_Table_1[[#This Row],[Sale Date]],'Global Settings'!$H$5)/30,0))","v":""},{"$f":"IFERROR(IF(AND(Table_Data_Table_1[[#This Row],[Months To\nMid-Point]]<12.01,Table_Data_Table_1[[#This Row],[Months To\nMid-Point]]>-13),0,(Table_Data_Table_1[[#This Row],[Months To\nMid-Point]]*'Global Settings'!$H$6)),\"\")","v":""},{"$f":"IFERROR(Table_Data_Table_1[[#This Row],[Land\nResidual]]*(Table_Data_Table_1[[#This Row],[Time\nAdjust]]+1),\"\")","v":""},{"$f":"IFERROR(Table_Data_Table_1[[#This Row],[Adjusted\nSale Price]]/Table_Data_Table_1[[#This Row],[Resid\nAcre]],\"\")","v":""},{"$f":"IFERROR(ROUND(Table_Data_Table_1[[#This Row],[Adjusted\nSale Price]]/Table_Data_Table_1[[#This Row],[Resid\nSq Ft]],2),\"\")","v":""},{"$f":"IFERROR(IF(VLOOKUP(Table_Data_Table_1[[#This Row],[Item ID]],DataTable,11,FALSE)=0,\"N/A\",Table_Data_Table_1[[#This Row],[Adjusted\nSale Price]]/VLOOKUP(Table_Data_Table_1[[#This Row],[Item ID]],DataTable,11,FALSE)),\"\")","v":""},{"$f":"IF(IFERROR(VLOOKUP(Table_Data_Table_1[[#This Row],[Item ID]],DataTable,17,FALSE),\"\")=0,\"\",IFERROR(VLOOKUP(Table_Data_Table_1[[#This Row],[Item ID]],DataTable,17,FALSE),\"\"))","v":""}]
["",null,{"$f":"IF(Table_Data_Table_1[[#This Row],[Item ID]]=\"\",\"\",IFERROR(VLOOKUP(Table_Data_Table_1[[#This Row],[Item ID]],DataTable,16,FALSE),\"\"))","v":""},null,null,null,null,{"$f":"IF(Table_Data_Table_1[[#This Row],[Valuation Method]]=\"Vacant\",VLOOKUP(Table_Data_Table_1[[#This Row],[Item ID]],DataTable,6,FALSE)-VLOOKUP(Table_Data_Table_1[[#This Row],[Item ID]],DataTable,13,FALSE),IF(Table_Data_Table_1[[#This Row],[Valuation Method]]=\"Abstraction\",VLOOKUP(Table_Data_Table_1[[#This Row],[Item ID]],DataTable,6,FALSE)-VLOOKUP(Table_Data_Table_1[[#This Row],[Item ID]],DataTable,13,FALSE),IF(Table_Data_Table_1[[#This Row],[Valuation Method]]=\"Allocation\",VLOOKUP(Table_Data_Table_1[[#This Row],[Item ID]],DataTable,6,FALSE)*I206,\"\")))","v":""},{"$f":"IF(Table_Data_Table_1[[#This Row],[Valuation Method]]=\"Vacant\",\"N/A\",IF(Table_Data_Table_1[[#This Row],[Valuation Method]]=\"Abstraction\",Table_Data_Table_1[[#This Row],[Land\nResidual]]/VLOOKUP(Table_Data_Table_1[[#This Row],[Item ID]],DataTable,6,FALSE),IF(Table_Data_Table_1[[#This Row],[Valuation Method]]=\"Allocation\",'Global Settings'!$H$20,\"\")))","v":""},{"$f":"IFERROR(ROUND(Table_Data_Table_1[[#This Row],[Resid\nSq Ft]]/43560,3),\"\")","v":""},{"$f":"IF(Table_Data_Table_1[[#This Row],[Item ID]]=\"\",\"\",IFERROR(VLOOKUP(Table_Data_Table_1[[#This Row],[Item ID]],DataTable,10,FALSE)-VLOOKUP(Table_Data_Table_1[[#This Row],[Item ID]],DataTable,12,FALSE),\"\"))","v":""},{"$f":"IFERROR(Table_Data_Table_1[[#This Row],[Land\nResidual]]/Table_Data_Table_1[[#This Row],[Resid\nAcre]],\"\")","v":""},{"$f":"IFERROR(ROUND(Table_Data_Table_1[[#This Row],[Land\nResidual]]/Table_Data_Table_1[[#This Row],[Resid\nSq Ft]],2),\"\")","v":""},{"$f":"IF(Table_Data_Table_1[[#This Row],[Item ID]]=\"\",\"\",ROUND(DAYS360(Table_Data_Table_1[[#This Row],[Sale Date]],'Global Settings'!$H$5)/30,0))","v":""},{"$f":"IFERROR(IF(AND(Table_Data_Table_1[[#This Row],[Months To\nMid-Point]]<12.01,Table_Data_Table_1[[#This Row],[Months To\nMid-Point]]>-13),0,(Table_Data_Table_1[[#This Row],[Months To\nMid-Point]]*'Global Settings'!$H$6)),\"\")","v":""},{"$f":"IFERROR(Table_Data_Table_1[[#This Row],[Land\nResidual]]*(Table_Data_Table_1[[#This Row],[Time\nAdjust]]+1),\"\")","v":""},{"$f":"IFERROR(Table_Data_Table_1[[#This Row],[Adjusted\nSale Price]]/Table_Data_Table_1[[#This Row],[Resid\nAcre]],\"\")","v":""},{"$f":"IFERROR(ROUND(Table_Data_Table_1[[#This Row],[Adjusted\nSale Price]]/Table_Data_Table_1[[#This Row],[Resid\nSq Ft]],2),\"\")","v":""},{"$f":"IFERROR(IF(VLOOKUP(Table_Data_Table_1[[#This Row],[Item ID]],DataTable,11,FALSE)=0,\"N/A\",Table_Data_Table_1[[#This Row],[Adjusted\nSale Price]]/VLOOKUP(Table_Data_Table_1[[#This Row],[Item ID]],DataTable,11,FALSE)),\"\")","v":""},{"$f":"IF(IFERROR(VLOOKUP(Table_Data_Table_1[[#This Row],[Item ID]],DataTable,17,FALSE),\"\")=0,\"\",IFERROR(VLOOKUP(Table_Data_Table_1[[#This Row],[Item ID]],DataTable,17,FALSE),\"\"))","v":""}]
["",null,{"$f":"IF(Table_Data_Table_1[[#This Row],[Item ID]]=\"\",\"\",IFERROR(VLOOKUP(Table_Data_Table_1[[#This Row],[Item ID]],DataTable,16,FALSE),\"\"))","v":""},null,null,null,null,{"$f":"IF(Table_Data_Table_1[[#This Row],[Valuation Method]]=\"Vacant\",VLOOKUP(Table_Data_Table_1[[#This Row],[Item ID]],DataTable,6,FALSE)-VLOOKUP(Table_Data_Table_1[[#This Row],[Item ID]],DataTable,13,FALSE),IF(Table_Data_Table_1[[#This Row],[Valuation Method]]=\"Abstraction\",VLOOKUP(Table_Data_Table_1[[#This Row],[Item ID]],DataTable,6,FALSE)-VLOOKUP(Table_Data_Table_1[[#This Row],[Item ID]],DataTable,13,FALSE),IF(Table_Data_Table_1[[#This Row],[Valuation Method]]=\"Allocation\",VLOOKUP(Table_Data_Table_1[[#This Row],[Item ID]],DataTable,6,FALSE)*I207,\"\")))","v":""},{"$f":"IF(Table_Data_Table_1[[#This Row],[Valuation Method]]=\"Vacant\",\"N/A\",IF(Table_Data_Table_1[[#This Row],[Valuation Method]]=\"Abstraction\",Table_Data_Table_1[[#This Row],[Land\nResidual]]/VLOOKUP(Table_Data_Table_1[[#This Row],[Item ID]],DataTable,6,FALSE),IF(Table_Data_Table_1[[#This Row],[Valuation Method]]=\"Allocation\",'Global Settings'!$H$20,\"\")))","v":""},{"$f":"IFERROR(ROUND(Table_Data_Table_1[[#This Row],[Resid\nSq Ft]]/43560,3),\"\")","v":""},{"$f":"IF(Table_Data_Table_1[[#This Row],[Item ID]]=\"\",\"\",IFERROR(VLOOKUP(Table_Data_Table_1[[#This Row],[Item ID]],DataTable,10,FALSE)-VLOOKUP(Table_Data_Table_1[[#This Row],[Item ID]],DataTable,12,FALSE),\"\"))","v":""},{"$f":"IFERROR(Table_Data_Table_1[[#This Row],[Land\nResidual]]/Table_Data_Table_1[[#This Row],[Resid\nAcre]],\"\")","v":""},{"$f":"IFERROR(ROUND(Table_Data_Table_1[[#This Row],[Land\nResidual]]/Table_Data_Table_1[[#This Row],[Resid\nSq Ft]],2),\"\")","v":""},{"$f":"IF(Table_Data_Table_1[[#This Row],[Item ID]]=\"\",\"\",ROUND(DAYS360(Table_Data_Table_1[[#This Row],[Sale Date]],'Global Settings'!$H$5)/30,0))","v":""},{"$f":"IFERROR(IF(AND(Table_Data_Table_1[[#This Row],[Months To\nMid-Point]]<12.01,Table_Data_Table_1[[#This Row],[Months To\nMid-Point]]>-13),0,(Table_Data_Table_1[[#This Row],[Months To\nMid-Point]]*'Global Settings'!$H$6)),\"\")","v":""},{"$f":"IFERROR(Table_Data_Table_1[[#This Row],[Land\nResidual]]*(Table_Data_Table_1[[#This Row],[Time\nAdjust]]+1),\"\")","v":""},{"$f":"IFERROR(Table_Data_Table_1[[#This Row],[Adjusted\nSale Price]]/Table_Data_Table_1[[#This Row],[Resid\nAcre]],\"\")","v":""},{"$f":"IFERROR(ROUND(Table_Data_Table_1[[#This Row],[Adjusted\nSale Price]]/Table_Data_Table_1[[#This Row],[Resid\nSq Ft]],2),\"\")","v":""},{"$f":"IFERROR(IF(VLOOKUP(Table_Data_Table_1[[#This Row],[Item ID]],DataTable,11,FALSE)=0,\"N/A\",Table_Data_Table_1[[#This Row],[Adjusted\nSale Price]]/VLOOKUP(Table_Data_Table_1[[#This Row],[Item ID]],DataTable,11,FALSE)),\"\")","v":""},{"$f":"IF(IFERROR(VLOOKUP(Table_Data_Table_1[[#This Row],[Item ID]],DataTable,17,FALSE),\"\")=0,\"\",IFERROR(VLOOKUP(Table_Data_Table_1[[#This Row],[Item ID]],DataTable,17,FALSE),\"\"))","v":""}]
["",null,{"$f":"IF(Table_Data_Table_1[[#This Row],[Item ID]]=\"\",\"\",IFERROR(VLOOKUP(Table_Data_Table_1[[#This Row],[Item ID]],DataTable,16,FALSE),\"\"))","v":""},null,null,null,null,{"$f":"IF(Table_Data_Table_1[[#This Row],[Valuation Method]]=\"Vacant\",VLOOKUP(Table_Data_Table_1[[#This Row],[Item ID]],DataTable,6,FALSE)-VLOOKUP(Table_Data_Table_1[[#This Row],[Item ID]],DataTable,13,FALSE),IF(Table_Data_Table_1[[#This Row],[Valuation Method]]=\"Abstraction\",VLOOKUP(Table_Data_Table_1[[#This Row],[Item ID]],DataTable,6,FALSE)-VLOOKUP(Table_Data_Table_1[[#This Row],[Item ID]],DataTable,13,FALSE),IF(Table_Data_Table_1[[#This Row],[Valuation Method]]=\"Allocation\",VLOOKUP(Table_Data_Table_1[[#This Row],[Item ID]],DataTable,6,FALSE)*I208,\"\")))","v":""},{"$f":"IF(Table_Data_Table_1[[#This Row],[Valuation Method]]=\"Vacant\",\"N/A\",IF(Table_Data_Table_1[[#This Row],[Valuation Method]]=\"Abstraction\",Table_Data_Table_1[[#This Row],[Land\nResidual]]/VLOOKUP(Table_Data_Table_1[[#This Row],[Item ID]],DataTable,6,FALSE),IF(Table_Data_Table_1[[#This Row],[Valuation Method]]=\"Allocation\",'Global Settings'!$H$20,\"\")))","v":""},{"$f":"IFERROR(ROUND(Table_Data_Table_1[[#This Row],[Resid\nSq Ft]]/43560,3),\"\")","v":""},{"$f":"IF(Table_Data_Table_1[[#This Row],[Item ID]]=\"\",\"\",IFERROR(VLOOKUP(Table_Data_Table_1[[#This Row],[Item ID]],DataTable,10,FALSE)-VLOOKUP(Table_Data_Table_1[[#This Row],[Item ID]],DataTable,12,FALSE),\"\"))","v":""},{"$f":"IFERROR(Table_Data_Table_1[[#This Row],[Land\nResidual]]/Table_Data_Table_1[[#This Row],[Resid\nAcre]],\"\")","v":""},{"$f":"IFERROR(ROUND(Table_Data_Table_1[[#This Row],[Land\nResidual]]/Table_Data_Table_1[[#This Row],[Resid\nSq Ft]],2),\"\")","v":""},{"$f":"IF(Table_Data_Table_1[[#This Row],[Item ID]]=\"\",\"\",ROUND(DAYS360(Table_Data_Table_1[[#This Row],[Sale Date]],'Global Settings'!$H$5)/30,0))","v":""},{"$f":"IFERROR(IF(AND(Table_Data_Table_1[[#This Row],[Months To\nMid-Point]]<12.01,Table_Data_Table_1[[#This Row],[Months To\nMid-Point]]>-13),0,(Table_Data_Table_1[[#This Row],[Months To\nMid-Point]]*'Global Settings'!$H$6)),\"\")","v":""},{"$f":"IFERROR(Table_Data_Table_1[[#This Row],[Land\nResidual]]*(Table_Data_Table_1[[#This Row],[Time\nAdjust]]+1),\"\")","v":""},{"$f":"IFERROR(Table_Data_Table_1[[#This Row],[Adjusted\nSale Price]]/Table_Data_Table_1[[#This Row],[Resid\nAcre]],\"\")","v":""},{"$f":"IFERROR(ROUND(Table_Data_Table_1[[#This Row],[Adjusted\nSale Price]]/Table_Data_Table_1[[#This Row],[Resid\nSq Ft]],2),\"\")","v":""},{"$f":"IFERROR(IF(VLOOKUP(Table_Data_Table_1[[#This Row],[Item ID]],DataTable,11,FALSE)=0,\"N/A\",Table_Data_Table_1[[#This Row],[Adjusted\nSale Price]]/VLOOKUP(Table_Data_Table_1[[#This Row],[Item ID]],DataTable,11,FALSE)),\"\")","v":""},{"$f":"IF(IFERROR(VLOOKUP(Table_Data_Table_1[[#This Row],[Item ID]],DataTable,17,FALSE),\"\")=0,\"\",IFERROR(VLOOKUP(Table_Data_Table_1[[#This Row],[Item ID]],DataTable,17,FALSE),\"\"))","v":""}]
["",null,{"$f":"IF(Table_Data_Table_1[[#This Row],[Item ID]]=\"\",\"\",IFERROR(VLOOKUP(Table_Data_Table_1[[#This Row],[Item ID]],DataTable,16,FALSE),\"\"))","v":""},null,null,null,null,{"$f":"IF(Table_Data_Table_1[[#This Row],[Valuation Method]]=\"Vacant\",VLOOKUP(Table_Data_Table_1[[#This Row],[Item ID]],DataTable,6,FALSE)-VLOOKUP(Table_Data_Table_1[[#This Row],[Item ID]],DataTable,13,FALSE),IF(Table_Data_Table_1[[#This Row],[Valuation Method]]=\"Abstraction\",VLOOKUP(Table_Data_Table_1[[#This Row],[Item ID]],DataTable,6,FALSE)-VLOOKUP(Table_Data_Table_1[[#This Row],[Item ID]],DataTable,13,FALSE),IF(Table_Data_Table_1[[#This Row],[Valuation Method]]=\"Allocation\",VLOOKUP(Table_Data_Table_1[[#This Row],[Item ID]],DataTable,6,FALSE)*I209,\"\")))","v":""},{"$f":"IF(Table_Data_Table_1[[#This Row],[Valuation Method]]=\"Vacant\",\"N/A\",IF(Table_Data_Table_1[[#This Row],[Valuation Method]]=\"Abstraction\",Table_Data_Table_1[[#This Row],[Land\nResidual]]/VLOOKUP(Table_Data_Table_1[[#This Row],[Item ID]],DataTable,6,FALSE),IF(Table_Data_Table_1[[#This Row],[Valuation Method]]=\"Allocation\",'Global Settings'!$H$20,\"\")))","v":""},{"$f":"IFERROR(ROUND(Table_Data_Table_1[[#This Row],[Resid\nSq Ft]]/43560,3),\"\")","v":""},{"$f":"IF(Table_Data_Table_1[[#This Row],[Item ID]]=\"\",\"\",IFERROR(VLOOKUP(Table_Data_Table_1[[#This Row],[Item ID]],DataTable,10,FALSE)-VLOOKUP(Table_Data_Table_1[[#This Row],[Item ID]],DataTable,12,FALSE),\"\"))","v":""},{"$f":"IFERROR(Table_Data_Table_1[[#This Row],[Land\nResidual]]/Table_Data_Table_1[[#This Row],[Resid\nAcre]],\"\")","v":""},{"$f":"IFERROR(ROUND(Table_Data_Table_1[[#This Row],[Land\nResidual]]/Table_Data_Table_1[[#This Row],[Resid\nSq Ft]],2),\"\")","v":""},{"$f":"IF(Table_Data_Table_1[[#This Row],[Item ID]]=\"\",\"\",ROUND(DAYS360(Table_Data_Table_1[[#This Row],[Sale Date]],'Global Settings'!$H$5)/30,0))","v":""},{"$f":"IFERROR(IF(AND(Table_Data_Table_1[[#This Row],[Months To\nMid-Point]]<12.01,Table_Data_Table_1[[#This Row],[Months To\nMid-Point]]>-13),0,(Table_Data_Table_1[[#This Row],[Months To\nMid-Point]]*'Global Settings'!$H$6)),\"\")","v":""},{"$f":"IFERROR(Table_Data_Table_1[[#This Row],[Land\nResidual]]*(Table_Data_Table_1[[#This Row],[Time\nAdjust]]+1),\"\")","v":""},{"$f":"IFERROR(Table_Data_Table_1[[#This Row],[Adjusted\nSale Price]]/Table_Data_Table_1[[#This Row],[Resid\nAcre]],\"\")","v":""},{"$f":"IFERROR(ROUND(Table_Data_Table_1[[#This Row],[Adjusted\nSale Price]]/Table_Data_Table_1[[#This Row],[Resid\nSq Ft]],2),\"\")","v":""},{"$f":"IFERROR(IF(VLOOKUP(Table_Data_Table_1[[#This Row],[Item ID]],DataTable,11,FALSE)=0,\"N/A\",Table_Data_Table_1[[#This Row],[Adjusted\nSale Price]]/VLOOKUP(Table_Data_Table_1[[#This Row],[Item ID]],DataTable,11,FALSE)),\"\")","v":""},{"$f":"IF(IFERROR(VLOOKUP(Table_Data_Table_1[[#This Row],[Item ID]],DataTable,17,FALSE),\"\")=0,\"\",IFERROR(VLOOKUP(Table_Data_Table_1[[#This Row],[Item ID]],DataTable,17,FALSE),\"\"))","v":""}]
["",null,{"$f":"IF(Table_Data_Table_1[[#This Row],[Item ID]]=\"\",\"\",IFERROR(VLOOKUP(Table_Data_Table_1[[#This Row],[Item ID]],DataTable,16,FALSE),\"\"))","v":""},null,null,null,null,{"$f":"IF(Table_Data_Table_1[[#This Row],[Valuation Method]]=\"Vacant\",VLOOKUP(Table_Data_Table_1[[#This Row],[Item ID]],DataTable,6,FALSE)-VLOOKUP(Table_Data_Table_1[[#This Row],[Item ID]],DataTable,13,FALSE),IF(Table_Data_Table_1[[#This Row],[Valuation Method]]=\"Abstraction\",VLOOKUP(Table_Data_Table_1[[#This Row],[Item ID]],DataTable,6,FALSE)-VLOOKUP(Table_Data_Table_1[[#This Row],[Item ID]],DataTable,13,FALSE),IF(Table_Data_Table_1[[#This Row],[Valuation Method]]=\"Allocation\",VLOOKUP(Table_Data_Table_1[[#This Row],[Item ID]],DataTable,6,FALSE)*I210,\"\")))","v":""},{"$f":"IF(Table_Data_Table_1[[#This Row],[Valuation Method]]=\"Vacant\",\"N/A\",IF(Table_Data_Table_1[[#This Row],[Valuation Method]]=\"Abstraction\",Table_Data_Table_1[[#This Row],[Land\nResidual]]/VLOOKUP(Table_Data_Table_1[[#This Row],[Item ID]],DataTable,6,FALSE),IF(Table_Data_Table_1[[#This Row],[Valuation Method]]=\"Allocation\",'Global Settings'!$H$20,\"\")))","v":""},{"$f":"IFERROR(ROUND(Table_Data_Table_1[[#This Row],[Resid\nSq Ft]]/43560,3),\"\")","v":""},{"$f":"IF(Table_Data_Table_1[[#This Row],[Item ID]]=\"\",\"\",IFERROR(VLOOKUP(Table_Data_Table_1[[#This Row],[Item ID]],DataTable,10,FALSE)-VLOOKUP(Table_Data_Table_1[[#This Row],[Item ID]],DataTable,12,FALSE),\"\"))","v":""},{"$f":"IFERROR(Table_Data_Table_1[[#This Row],[Land\nResidual]]/Table_Data_Table_1[[#This Row],[Resid\nAcre]],\"\")","v":""},{"$f":"IFERROR(ROUND(Table_Data_Table_1[[#This Row],[Land\nResidual]]/Table_Data_Table_1[[#This Row],[Resid\nSq Ft]],2),\"\")","v":""},{"$f":"IF(Table_Data_Table_1[[#This Row],[Item ID]]=\"\",\"\",ROUND(DAYS360(Table_Data_Table_1[[#This Row],[Sale Date]],'Global Settings'!$H$5)/30,0))","v":""},{"$f":"IFERROR(IF(AND(Table_Data_Table_1[[#This Row],[Months To\nMid-Point]]<12.01,Table_Data_Table_1[[#This Row],[Months To\nMid-Point]]>-13),0,(Table_Data_Table_1[[#This Row],[Months To\nMid-Point]]*'Global Settings'!$H$6)),\"\")","v":""},{"$f":"IFERROR(Table_Data_Table_1[[#This Row],[Land\nResidual]]*(Table_Data_Table_1[[#This Row],[Time\nAdjust]]+1),\"\")","v":""},{"$f":"IFERROR(Table_Data_Table_1[[#This Row],[Adjusted\nSale Price]]/Table_Data_Table_1[[#This Row],[Resid\nAcre]],\"\")","v":""},{"$f":"IFERROR(ROUND(Table_Data_Table_1[[#This Row],[Adjusted\nSale Price]]/Table_Data_Table_1[[#This Row],[Resid\nSq Ft]],2),\"\")","v":""},{"$f":"IFERROR(IF(VLOOKUP(Table_Data_Table_1[[#This Row],[Item ID]],DataTable,11,FALSE)=0,\"N/A\",Table_Data_Table_1[[#This Row],[Adjusted\nSale Price]]/VLOOKUP(Table_Data_Table_1[[#This Row],[Item ID]],DataTable,11,FALSE)),\"\")","v":""},{"$f":"IF(IFERROR(VLOOKUP(Table_Data_Table_1[[#This Row],[Item ID]],DataTable,17,FALSE),\"\")=0,\"\",IFERROR(VLOOKUP(Table_Data_Table_1[[#This Row],[Item ID]],DataTable,17,FALSE),\"\"))","v":""}]
["",null,{"$f":"IF(Table_Data_Table_1[[#This Row],[Item ID]]=\"\",\"\",IFERROR(VLOOKUP(Table_Data_Table_1[[#This Row],[Item ID]],DataTable,16,FALSE),\"\"))","v":""},null,null,null,null,{"$f":"IF(Table_Data_Table_1[[#This Row],[Valuation Method]]=\"Vacant\",VLOOKUP(Table_Data_Table_1[[#This Row],[Item ID]],DataTable,6,FALSE)-VLOOKUP(Table_Data_Table_1[[#This Row],[Item ID]],DataTable,13,FALSE),IF(Table_Data_Table_1[[#This Row],[Valuation Method]]=\"Abstraction\",VLOOKUP(Table_Data_Table_1[[#This Row],[Item ID]],DataTable,6,FALSE)-VLOOKUP(Table_Data_Table_1[[#This Row],[Item ID]],DataTable,13,FALSE),IF(Table_Data_Table_1[[#This Row],[Valuation Method]]=\"Allocation\",VLOOKUP(Table_Data_Table_1[[#This Row],[Item ID]],DataTable,6,FALSE)*I211,\"\")))","v":""},{"$f":"IF(Table_Data_Table_1[[#This Row],[Valuation Method]]=\"Vacant\",\"N/A\",IF(Table_Data_Table_1[[#This Row],[Valuation Method]]=\"Abstraction\",Table_Data_Table_1[[#This Row],[Land\nResidual]]/VLOOKUP(Table_Data_Table_1[[#This Row],[Item ID]],DataTable,6,FALSE),IF(Table_Data_Table_1[[#This Row],[Valuation Method]]=\"Allocation\",'Global Settings'!$H$20,\"\")))","v":""},{"$f":"IFERROR(ROUND(Table_Data_Table_1[[#This Row],[Resid\nSq Ft]]/43560,3),\"\")","v":""},{"$f":"IF(Table_Data_Table_1[[#This Row],[Item ID]]=\"\",\"\",IFERROR(VLOOKUP(Table_Data_Table_1[[#This Row],[Item ID]],DataTable,10,FALSE)-VLOOKUP(Table_Data_Table_1[[#This Row],[Item ID]],DataTable,12,FALSE),\"\"))","v":""},{"$f":"IFERROR(Table_Data_Table_1[[#This Row],[Land\nResidual]]/Table_Data_Table_1[[#This Row],[Resid\nAcre]],\"\")","v":""},{"$f":"IFERROR(ROUND(Table_Data_Table_1[[#This Row],[Land\nResidual]]/Table_Data_Table_1[[#This Row],[Resid\nSq Ft]],2),\"\")","v":""},{"$f":"IF(Table_Data_Table_1[[#This Row],[Item ID]]=\"\",\"\",ROUND(DAYS360(Table_Data_Table_1[[#This Row],[Sale Date]],'Global Settings'!$H$5)/30,0))","v":""},{"$f":"IFERROR(IF(AND(Table_Data_Table_1[[#This Row],[Months To\nMid-Point]]<12.01,Table_Data_Table_1[[#This Row],[Months To\nMid-Point]]>-13),0,(Table_Data_Table_1[[#This Row],[Months To\nMid-Point]]*'Global Settings'!$H$6)),\"\")","v":""},{"$f":"IFERROR(Table_Data_Table_1[[#This Row],[Land\nResidual]]*(Table_Data_Table_1[[#This Row],[Time\nAdjust]]+1),\"\")","v":""},{"$f":"IFERROR(Table_Data_Table_1[[#This Row],[Adjusted\nSale Price]]/Table_Data_Table_1[[#This Row],[Resid\nAcre]],\"\")","v":""},{"$f":"IFERROR(ROUND(Table_Data_Table_1[[#This Row],[Adjusted\nSale Price]]/Table_Data_Table_1[[#This Row],[Resid\nSq Ft]],2),\"\")","v":""},{"$f":"IFERROR(IF(VLOOKUP(Table_Data_Table_1[[#This Row],[Item ID]],DataTable,11,FALSE)=0,\"N/A\",Table_Data_Table_1[[#This Row],[Adjusted\nSale Price]]/VLOOKUP(Table_Data_Table_1[[#This Row],[Item ID]],DataTable,11,FALSE)),\"\")","v":""},{"$f":"IF(IFERROR(VLOOKUP(Table_Data_Table_1[[#This Row],[Item ID]],DataTable,17,FALSE),\"\")=0,\"\",IFERROR(VLOOKUP(Table_Data_Table_1[[#This Row],[Item ID]],DataTable,17,FALSE),\"\"))","v":""}]
["",null,{"$f":"IF(Table_Data_Table_1[[#This Row],[Item ID]]=\"\",\"\",IFERROR(VLOOKUP(Table_Data_Table_1[[#This Row],[Item ID]],DataTable,16,FALSE),\"\"))","v":""},null,null,null,null,{"$f":"IF(Table_Data_Table_1[[#This Row],[Valuation Method]]=\"Vacant\",VLOOKUP(Table_Data_Table_1[[#This Row],[Item ID]],DataTable,6,FALSE)-VLOOKUP(Table_Data_Table_1[[#This Row],[Item ID]],DataTable,13,FALSE),IF(Table_Data_Table_1[[#This Row],[Valuation Method]]=\"Abstraction\",VLOOKUP(Table_Data_Table_1[[#This Row],[Item ID]],DataTable,6,FALSE)-VLOOKUP(Table_Data_Table_1[[#This Row],[Item ID]],DataTable,13,FALSE),IF(Table_Data_Table_1[[#This Row],[Valuation Method]]=\"Allocation\",VLOOKUP(Table_Data_Table_1[[#This Row],[Item ID]],DataTable,6,FALSE)*I212,\"\")))","v":""},{"$f":"IF(Table_Data_Table_1[[#This Row],[Valuation Method]]=\"Vacant\",\"N/A\",IF(Table_Data_Table_1[[#This Row],[Valuation Method]]=\"Abstraction\",Table_Data_Table_1[[#This Row],[Land\nResidual]]/VLOOKUP(Table_Data_Table_1[[#This Row],[Item ID]],DataTable,6,FALSE),IF(Table_Data_Table_1[[#This Row],[Valuation Method]]=\"Allocation\",'Global Settings'!$H$20,\"\")))","v":""},{"$f":"IFERROR(ROUND(Table_Data_Table_1[[#This Row],[Resid\nSq Ft]]/43560,3),\"\")","v":""},{"$f":"IF(Table_Data_Table_1[[#This Row],[Item ID]]=\"\",\"\",IFERROR(VLOOKUP(Table_Data_Table_1[[#This Row],[Item ID]],DataTable,10,FALSE)-VLOOKUP(Table_Data_Table_1[[#This Row],[Item ID]],DataTable,12,FALSE),\"\"))","v":""},{"$f":"IFERROR(Table_Data_Table_1[[#This Row],[Land\nResidual]]/Table_Data_Table_1[[#This Row],[Resid\nAcre]],\"\")","v":""},{"$f":"IFERROR(ROUND(Table_Data_Table_1[[#This Row],[Land\nResidual]]/Table_Data_Table_1[[#This Row],[Resid\nSq Ft]],2),\"\")","v":""},{"$f":"IF(Table_Data_Table_1[[#This Row],[Item ID]]=\"\",\"\",ROUND(DAYS360(Table_Data_Table_1[[#This Row],[Sale Date]],'Global Settings'!$H$5)/30,0))","v":""},{"$f":"IFERROR(IF(AND(Table_Data_Table_1[[#This Row],[Months To\nMid-Point]]<12.01,Table_Data_Table_1[[#This Row],[Months To\nMid-Point]]>-13),0,(Table_Data_Table_1[[#This Row],[Months To\nMid-Point]]*'Global Settings'!$H$6)),\"\")","v":""},{"$f":"IFERROR(Table_Data_Table_1[[#This Row],[Land\nResidual]]*(Table_Data_Table_1[[#This Row],[Time\nAdjust]]+1),\"\")","v":""},{"$f":"IFERROR(Table_Data_Table_1[[#This Row],[Adjusted\nSale Price]]/Table_Data_Table_1[[#This Row],[Resid\nAcre]],\"\")","v":""},{"$f":"IFERROR(ROUND(Table_Data_Table_1[[#This Row],[Adjusted\nSale Price]]/Table_Data_Table_1[[#This Row],[Resid\nSq Ft]],2),\"\")","v":""},{"$f":"IFERROR(IF(VLOOKUP(Table_Data_Table_1[[#This Row],[Item ID]],DataTable,11,FALSE)=0,\"N/A\",Table_Data_Table_1[[#This Row],[Adjusted\nSale Price]]/VLOOKUP(Table_Data_Table_1[[#This Row],[Item ID]],DataTable,11,FALSE)),\"\")","v":""},{"$f":"IF(IFERROR(VLOOKUP(Table_Data_Table_1[[#This Row],[Item ID]],DataTable,17,FALSE),\"\")=0,\"\",IFERROR(VLOOKUP(Table_Data_Table_1[[#This Row],[Item ID]],DataTable,17,FALSE),\"\"))","v":""}]
["",null,{"$f":"IF(Table_Data_Table_1[[#This Row],[Item ID]]=\"\",\"\",IFERROR(VLOOKUP(Table_Data_Table_1[[#This Row],[Item ID]],DataTable,16,FALSE),\"\"))","v":""},null,null,null,null,{"$f":"IF(Table_Data_Table_1[[#This Row],[Valuation Method]]=\"Vacant\",VLOOKUP(Table_Data_Table_1[[#This Row],[Item ID]],DataTable,6,FALSE)-VLOOKUP(Table_Data_Table_1[[#This Row],[Item ID]],DataTable,13,FALSE),IF(Table_Data_Table_1[[#This Row],[Valuation Method]]=\"Abstraction\",VLOOKUP(Table_Data_Table_1[[#This Row],[Item ID]],DataTable,6,FALSE)-VLOOKUP(Table_Data_Table_1[[#This Row],[Item ID]],DataTable,13,FALSE),IF(Table_Data_Table_1[[#This Row],[Valuation Method]]=\"Allocation\",VLOOKUP(Table_Data_Table_1[[#This Row],[Item ID]],DataTable,6,FALSE)*I213,\"\")))","v":""},{"$f":"IF(Table_Data_Table_1[[#This Row],[Valuation Method]]=\"Vacant\",\"N/A\",IF(Table_Data_Table_1[[#This Row],[Valuation Method]]=\"Abstraction\",Table_Data_Table_1[[#This Row],[Land\nResidual]]/VLOOKUP(Table_Data_Table_1[[#This Row],[Item ID]],DataTable,6,FALSE),IF(Table_Data_Table_1[[#This Row],[Valuation Method]]=\"Allocation\",'Global Settings'!$H$20,\"\")))","v":""},{"$f":"IFERROR(ROUND(Table_Data_Table_1[[#This Row],[Resid\nSq Ft]]/43560,3),\"\")","v":""},{"$f":"IF(Table_Data_Table_1[[#This Row],[Item ID]]=\"\",\"\",IFERROR(VLOOKUP(Table_Data_Table_1[[#This Row],[Item ID]],DataTable,10,FALSE)-VLOOKUP(Table_Data_Table_1[[#This Row],[Item ID]],DataTable,12,FALSE),\"\"))","v":""},{"$f":"IFERROR(Table_Data_Table_1[[#This Row],[Land\nResidual]]/Table_Data_Table_1[[#This Row],[Resid\nAcre]],\"\")","v":""},{"$f":"IFERROR(ROUND(Table_Data_Table_1[[#This Row],[Land\nResidual]]/Table_Data_Table_1[[#This Row],[Resid\nSq Ft]],2),\"\")","v":""},{"$f":"IF(Table_Data_Table_1[[#This Row],[Item ID]]=\"\",\"\",ROUND(DAYS360(Table_Data_Table_1[[#This Row],[Sale Date]],'Global Settings'!$H$5)/30,0))","v":""},{"$f":"IFERROR(IF(AND(Table_Data_Table_1[[#This Row],[Months To\nMid-Point]]<12.01,Table_Data_Table_1[[#This Row],[Months To\nMid-Point]]>-13),0,(Table_Data_Table_1[[#This Row],[Months To\nMid-Point]]*'Global Settings'!$H$6)),\"\")","v":""},{"$f":"IFERROR(Table_Data_Table_1[[#This Row],[Land\nResidual]]*(Table_Data_Table_1[[#This Row],[Time\nAdjust]]+1),\"\")","v":""},{"$f":"IFERROR(Table_Data_Table_1[[#This Row],[Adjusted\nSale Price]]/Table_Data_Table_1[[#This Row],[Resid\nAcre]],\"\")","v":""},{"$f":"IFERROR(ROUND(Table_Data_Table_1[[#This Row],[Adjusted\nSale Price]]/Table_Data_Table_1[[#This Row],[Resid\nSq Ft]],2),\"\")","v":""},{"$f":"IFERROR(IF(VLOOKUP(Table_Data_Table_1[[#This Row],[Item ID]],DataTable,11,FALSE)=0,\"N/A\",Table_Data_Table_1[[#This Row],[Adjusted\nSale Price]]/VLOOKUP(Table_Data_Table_1[[#This Row],[Item ID]],DataTable,11,FALSE)),\"\")","v":""},{"$f":"IF(IFERROR(VLOOKUP(Table_Data_Table_1[[#This Row],[Item ID]],DataTable,17,FALSE),\"\")=0,\"\",IFERROR(VLOOKUP(Table_Data_Table_1[[#This Row],[Item ID]],DataTable,17,FALSE),\"\"))","v":""}]
["",null,{"$f":"IF(Table_Data_Table_1[[#This Row],[Item ID]]=\"\",\"\",IFERROR(VLOOKUP(Table_Data_Table_1[[#This Row],[Item ID]],DataTable,16,FALSE),\"\"))","v":""},null,null,null,null,{"$f":"IF(Table_Data_Table_1[[#This Row],[Valuation Method]]=\"Vacant\",VLOOKUP(Table_Data_Table_1[[#This Row],[Item ID]],DataTable,6,FALSE)-VLOOKUP(Table_Data_Table_1[[#This Row],[Item ID]],DataTable,13,FALSE),IF(Table_Data_Table_1[[#This Row],[Valuation Method]]=\"Abstraction\",VLOOKUP(Table_Data_Table_1[[#This Row],[Item ID]],DataTable,6,FALSE)-VLOOKUP(Table_Data_Table_1[[#This Row],[Item ID]],DataTable,13,FALSE),IF(Table_Data_Table_1[[#This Row],[Valuation Method]]=\"Allocation\",VLOOKUP(Table_Data_Table_1[[#This Row],[Item ID]],DataTable,6,FALSE)*I214,\"\")))","v":""},{"$f":"IF(Table_Data_Table_1[[#This Row],[Valuation Method]]=\"Vacant\",\"N/A\",IF(Table_Data_Table_1[[#This Row],[Valuation Method]]=\"Abstraction\",Table_Data_Table_1[[#This Row],[Land\nResidual]]/VLOOKUP(Table_Data_Table_1[[#This Row],[Item ID]],DataTable,6,FALSE),IF(Table_Data_Table_1[[#This Row],[Valuation Method]]=\"Allocation\",'Global Settings'!$H$20,\"\")))","v":""},{"$f":"IFERROR(ROUND(Table_Data_Table_1[[#This Row],[Resid\nSq Ft]]/43560,3),\"\")","v":""},{"$f":"IF(Table_Data_Table_1[[#This Row],[Item ID]]=\"\",\"\",IFERROR(VLOOKUP(Table_Data_Table_1[[#This Row],[Item ID]],DataTable,10,FALSE)-VLOOKUP(Table_Data_Table_1[[#This Row],[Item ID]],DataTable,12,FALSE),\"\"))","v":""},{"$f":"IFERROR(Table_Data_Table_1[[#This Row],[Land\nResidual]]/Table_Data_Table_1[[#This Row],[Resid\nAcre]],\"\")","v":""},{"$f":"IFERROR(ROUND(Table_Data_Table_1[[#This Row],[Land\nResidual]]/Table_Data_Table_1[[#This Row],[Resid\nSq Ft]],2),\"\")","v":""},{"$f":"IF(Table_Data_Table_1[[#This Row],[Item ID]]=\"\",\"\",ROUND(DAYS360(Table_Data_Table_1[[#This Row],[Sale Date]],'Global Settings'!$H$5)/30,0))","v":""},{"$f":"IFERROR(IF(AND(Table_Data_Table_1[[#This Row],[Months To\nMid-Point]]<12.01,Table_Data_Table_1[[#This Row],[Months To\nMid-Point]]>-13),0,(Table_Data_Table_1[[#This Row],[Months To\nMid-Point]]*'Global Settings'!$H$6)),\"\")","v":""},{"$f":"IFERROR(Table_Data_Table_1[[#This Row],[Land\nResidual]]*(Table_Data_Table_1[[#This Row],[Time\nAdjust]]+1),\"\")","v":""},{"$f":"IFERROR(Table_Data_Table_1[[#This Row],[Adjusted\nSale Price]]/Table_Data_Table_1[[#This Row],[Resid\nAcre]],\"\")","v":""},{"$f":"IFERROR(ROUND(Table_Data_Table_1[[#This Row],[Adjusted\nSale Price]]/Table_Data_Table_1[[#This Row],[Resid\nSq Ft]],2),\"\")","v":""},{"$f":"IFERROR(IF(VLOOKUP(Table_Data_Table_1[[#This Row],[Item ID]],DataTable,11,FALSE)=0,\"N/A\",Table_Data_Table_1[[#This Row],[Adjusted\nSale Price]]/VLOOKUP(Table_Data_Table_1[[#This Row],[Item ID]],DataTable,11,FALSE)),\"\")","v":""},{"$f":"IF(IFERROR(VLOOKUP(Table_Data_Table_1[[#This Row],[Item ID]],DataTable,17,FALSE),\"\")=0,\"\",IFERROR(VLOOKUP(Table_Data_Table_1[[#This Row],[Item ID]],DataTable,17,FALSE),\"\"))","v":""}]
["",null,{"$f":"IF(Table_Data_Table_1[[#This Row],[Item ID]]=\"\",\"\",IFERROR(VLOOKUP(Table_Data_Table_1[[#This Row],[Item ID]],DataTable,16,FALSE),\"\"))","v":""},null,null,null,null,{"$f":"IF(Table_Data_Table_1[[#This Row],[Valuation Method]]=\"Vacant\",VLOOKUP(Table_Data_Table_1[[#This Row],[Item ID]],DataTable,6,FALSE)-VLOOKUP(Table_Data_Table_1[[#This Row],[Item ID]],DataTable,13,FALSE),IF(Table_Data_Table_1[[#This Row],[Valuation Method]]=\"Abstraction\",VLOOKUP(Table_Data_Table_1[[#This Row],[Item ID]],DataTable,6,FALSE)-VLOOKUP(Table_Data_Table_1[[#This Row],[Item ID]],DataTable,13,FALSE),IF(Table_Data_Table_1[[#This Row],[Valuation Method]]=\"Allocation\",VLOOKUP(Table_Data_Table_1[[#This Row],[Item ID]],DataTable,6,FALSE)*I215,\"\")))","v":""},{"$f":"IF(Table_Data_Table_1[[#This Row],[Valuation Method]]=\"Vacant\",\"N/A\",IF(Table_Data_Table_1[[#This Row],[Valuation Method]]=\"Abstraction\",Table_Data_Table_1[[#This Row],[Land\nResidual]]/VLOOKUP(Table_Data_Table_1[[#This Row],[Item ID]],DataTable,6,FALSE),IF(Table_Data_Table_1[[#This Row],[Valuation Method]]=\"Allocation\",'Global Settings'!$H$20,\"\")))","v":""},{"$f":"IFERROR(ROUND(Table_Data_Table_1[[#This Row],[Resid\nSq Ft]]/43560,3),\"\")","v":""},{"$f":"IF(Table_Data_Table_1[[#This Row],[Item ID]]=\"\",\"\",IFERROR(VLOOKUP(Table_Data_Table_1[[#This Row],[Item ID]],DataTable,10,FALSE)-VLOOKUP(Table_Data_Table_1[[#This Row],[Item ID]],DataTable,12,FALSE),\"\"))","v":""},{"$f":"IFERROR(Table_Data_Table_1[[#This Row],[Land\nResidual]]/Table_Data_Table_1[[#This Row],[Resid\nAcre]],\"\")","v":""},{"$f":"IFERROR(ROUND(Table_Data_Table_1[[#This Row],[Land\nResidual]]/Table_Data_Table_1[[#This Row],[Resid\nSq Ft]],2),\"\")","v":""},{"$f":"IF(Table_Data_Table_1[[#This Row],[Item ID]]=\"\",\"\",ROUND(DAYS360(Table_Data_Table_1[[#This Row],[Sale Date]],'Global Settings'!$H$5)/30,0))","v":""},{"$f":"IFERROR(IF(AND(Table_Data_Table_1[[#This Row],[Months To\nMid-Point]]<12.01,Table_Data_Table_1[[#This Row],[Months To\nMid-Point]]>-13),0,(Table_Data_Table_1[[#This Row],[Months To\nMid-Point]]*'Global Settings'!$H$6)),\"\")","v":""},{"$f":"IFERROR(Table_Data_Table_1[[#This Row],[Land\nResidual]]*(Table_Data_Table_1[[#This Row],[Time\nAdjust]]+1),\"\")","v":""},{"$f":"IFERROR(Table_Data_Table_1[[#This Row],[Adjusted\nSale Price]]/Table_Data_Table_1[[#This Row],[Resid\nAcre]],\"\")","v":""},{"$f":"IFERROR(ROUND(Table_Data_Table_1[[#This Row],[Adjusted\nSale Price]]/Table_Data_Table_1[[#This Row],[Resid\nSq Ft]],2),\"\")","v":""},{"$f":"IFERROR(IF(VLOOKUP(Table_Data_Table_1[[#This Row],[Item ID]],DataTable,11,FALSE)=0,\"N/A\",Table_Data_Table_1[[#This Row],[Adjusted\nSale Price]]/VLOOKUP(Table_Data_Table_1[[#This Row],[Item ID]],DataTable,11,FALSE)),\"\")","v":""},{"$f":"IF(IFERROR(VLOOKUP(Table_Data_Table_1[[#This Row],[Item ID]],DataTable,17,FALSE),\"\")=0,\"\",IFERROR(VLOOKUP(Table_Data_Table_1[[#This Row],[Item ID]],DataTable,17,FALSE),\"\"))","v":""}]
["",null,{"$f":"IF(Table_Data_Table_1[[#This Row],[Item ID]]=\"\",\"\",IFERROR(VLOOKUP(Table_Data_Table_1[[#This Row],[Item ID]],DataTable,16,FALSE),\"\"))","v":""},null,null,null,null,{"$f":"IF(Table_Data_Table_1[[#This Row],[Valuation Method]]=\"Vacant\",VLOOKUP(Table_Data_Table_1[[#This Row],[Item ID]],DataTable,6,FALSE)-VLOOKUP(Table_Data_Table_1[[#This Row],[Item ID]],DataTable,13,FALSE),IF(Table_Data_Table_1[[#This Row],[Valuation Method]]=\"Abstraction\",VLOOKUP(Table_Data_Table_1[[#This Row],[Item ID]],DataTable,6,FALSE)-VLOOKUP(Table_Data_Table_1[[#This Row],[Item ID]],DataTable,13,FALSE),IF(Table_Data_Table_1[[#This Row],[Valuation Method]]=\"Allocation\",VLOOKUP(Table_Data_Table_1[[#This Row],[Item ID]],DataTable,6,FALSE)*I216,\"\")))","v":""},{"$f":"IF(Table_Data_Table_1[[#This Row],[Valuation Method]]=\"Vacant\",\"N/A\",IF(Table_Data_Table_1[[#This Row],[Valuation Method]]=\"Abstraction\",Table_Data_Table_1[[#This Row],[Land\nResidual]]/VLOOKUP(Table_Data_Table_1[[#This Row],[Item ID]],DataTable,6,FALSE),IF(Table_Data_Table_1[[#This Row],[Valuation Method]]=\"Allocation\",'Global Settings'!$H$20,\"\")))","v":""},{"$f":"IFERROR(ROUND(Table_Data_Table_1[[#This Row],[Resid\nSq Ft]]/43560,3),\"\")","v":""},{"$f":"IF(Table_Data_Table_1[[#This Row],[Item ID]]=\"\",\"\",IFERROR(VLOOKUP(Table_Data_Table_1[[#This Row],[Item ID]],DataTable,10,FALSE)-VLOOKUP(Table_Data_Table_1[[#This Row],[Item ID]],DataTable,12,FALSE),\"\"))","v":""},{"$f":"IFERROR(Table_Data_Table_1[[#This Row],[Land\nResidual]]/Table_Data_Table_1[[#This Row],[Resid\nAcre]],\"\")","v":""},{"$f":"IFERROR(ROUND(Table_Data_Table_1[[#This Row],[Land\nResidual]]/Table_Data_Table_1[[#This Row],[Resid\nSq Ft]],2),\"\")","v":""},{"$f":"IF(Table_Data_Table_1[[#This Row],[Item ID]]=\"\",\"\",ROUND(DAYS360(Table_Data_Table_1[[#This Row],[Sale Date]],'Global Settings'!$H$5)/30,0))","v":""},{"$f":"IFERROR(IF(AND(Table_Data_Table_1[[#This Row],[Months To\nMid-Point]]<12.01,Table_Data_Table_1[[#This Row],[Months To\nMid-Point]]>-13),0,(Table_Data_Table_1[[#This Row],[Months To\nMid-Point]]*'Global Settings'!$H$6)),\"\")","v":""},{"$f":"IFERROR(Table_Data_Table_1[[#This Row],[Land\nResidual]]*(Table_Data_Table_1[[#This Row],[Time\nAdjust]]+1),\"\")","v":""},{"$f":"IFERROR(Table_Data_Table_1[[#This Row],[Adjusted\nSale Price]]/Table_Data_Table_1[[#This Row],[Resid\nAcre]],\"\")","v":""},{"$f":"IFERROR(ROUND(Table_Data_Table_1[[#This Row],[Adjusted\nSale Price]]/Table_Data_Table_1[[#This Row],[Resid\nSq Ft]],2),\"\")","v":""},{"$f":"IFERROR(IF(VLOOKUP(Table_Data_Table_1[[#This Row],[Item ID]],DataTable,11,FALSE)=0,\"N/A\",Table_Data_Table_1[[#This Row],[Adjusted\nSale Price]]/VLOOKUP(Table_Data_Table_1[[#This Row],[Item ID]],DataTable,11,FALSE)),\"\")","v":""},{"$f":"IF(IFERROR(VLOOKUP(Table_Data_Table_1[[#This Row],[Item ID]],DataTable,17,FALSE),\"\")=0,\"\",IFERROR(VLOOKUP(Table_Data_Table_1[[#This Row],[Item ID]],DataTable,17,FALSE),\"\"))","v":""}]
["",null,{"$f":"IF(Table_Data_Table_1[[#This Row],[Item ID]]=\"\",\"\",IFERROR(VLOOKUP(Table_Data_Table_1[[#This Row],[Item ID]],DataTable,16,FALSE),\"\"))","v":""},null,null,null,null,{"$f":"IF(Table_Data_Table_1[[#This Row],[Valuation Method]]=\"Vacant\",VLOOKUP(Table_Data_Table_1[[#This Row],[Item ID]],DataTable,6,FALSE)-VLOOKUP(Table_Data_Table_1[[#This Row],[Item ID]],DataTable,13,FALSE),IF(Table_Data_Table_1[[#This Row],[Valuation Method]]=\"Abstraction\",VLOOKUP(Table_Data_Table_1[[#This Row],[Item ID]],DataTable,6,FALSE)-VLOOKUP(Table_Data_Table_1[[#This Row],[Item ID]],DataTable,13,FALSE),IF(Table_Data_Table_1[[#This Row],[Valuation Method]]=\"Allocation\",VLOOKUP(Table_Data_Table_1[[#This Row],[Item ID]],DataTable,6,FALSE)*I217,\"\")))","v":""},{"$f":"IF(Table_Data_Table_1[[#This Row],[Valuation Method]]=\"Vacant\",\"N/A\",IF(Table_Data_Table_1[[#This Row],[Valuation Method]]=\"Abstraction\",Table_Data_Table_1[[#This Row],[Land\nResidual]]/VLOOKUP(Table_Data_Table_1[[#This Row],[Item ID]],DataTable,6,FALSE),IF(Table_Data_Table_1[[#This Row],[Valuation Method]]=\"Allocation\",'Global Settings'!$H$20,\"\")))","v":""},{"$f":"IFERROR(ROUND(Table_Data_Table_1[[#This Row],[Resid\nSq Ft]]/43560,3),\"\")","v":""},{"$f":"IF(Table_Data_Table_1[[#This Row],[Item ID]]=\"\",\"\",IFERROR(VLOOKUP(Table_Data_Table_1[[#This Row],[Item ID]],DataTable,10,FALSE)-VLOOKUP(Table_Data_Table_1[[#This Row],[Item ID]],DataTable,12,FALSE),\"\"))","v":""},{"$f":"IFERROR(Table_Data_Table_1[[#This Row],[Land\nResidual]]/Table_Data_Table_1[[#This Row],[Resid\nAcre]],\"\")","v":""},{"$f":"IFERROR(ROUND(Table_Data_Table_1[[#This Row],[Land\nResidual]]/Table_Data_Table_1[[#This Row],[Resid\nSq Ft]],2),\"\")","v":""},{"$f":"IF(Table_Data_Table_1[[#This Row],[Item ID]]=\"\",\"\",ROUND(DAYS360(Table_Data_Table_1[[#This Row],[Sale Date]],'Global Settings'!$H$5)/30,0))","v":""},{"$f":"IFERROR(IF(AND(Table_Data_Table_1[[#This Row],[Months To\nMid-Point]]<12.01,Table_Data_Table_1[[#This Row],[Months To\nMid-Point]]>-13),0,(Table_Data_Table_1[[#This Row],[Months To\nMid-Point]]*'Global Settings'!$H$6)),\"\")","v":""},{"$f":"IFERROR(Table_Data_Table_1[[#This Row],[Land\nResidual]]*(Table_Data_Table_1[[#This Row],[Time\nAdjust]]+1),\"\")","v":""},{"$f":"IFERROR(Table_Data_Table_1[[#This Row],[Adjusted\nSale Price]]/Table_Data_Table_1[[#This Row],[Resid\nAcre]],\"\")","v":""},{"$f":"IFERROR(ROUND(Table_Data_Table_1[[#This Row],[Adjusted\nSale Price]]/Table_Data_Table_1[[#This Row],[Resid\nSq Ft]],2),\"\")","v":""},{"$f":"IFERROR(IF(VLOOKUP(Table_Data_Table_1[[#This Row],[Item ID]],DataTable,11,FALSE)=0,\"N/A\",Table_Data_Table_1[[#This Row],[Adjusted\nSale Price]]/VLOOKUP(Table_Data_Table_1[[#This Row],[Item ID]],DataTable,11,FALSE)),\"\")","v":""},{"$f":"IF(IFERROR(VLOOKUP(Table_Data_Table_1[[#This Row],[Item ID]],DataTable,17,FALSE),\"\")=0,\"\",IFERROR(VLOOKUP(Table_Data_Table_1[[#This Row],[Item ID]],DataTable,17,FALSE),\"\"))","v":""}]
["",null,{"$f":"IF(Table_Data_Table_1[[#This Row],[Item ID]]=\"\",\"\",IFERROR(VLOOKUP(Table_Data_Table_1[[#This Row],[Item ID]],DataTable,16,FALSE),\"\"))","v":""},null,null,null,null,{"$f":"IF(Table_Data_Table_1[[#This Row],[Valuation Method]]=\"Vacant\",VLOOKUP(Table_Data_Table_1[[#This Row],[Item ID]],DataTable,6,FALSE)-VLOOKUP(Table_Data_Table_1[[#This Row],[Item ID]],DataTable,13,FALSE),IF(Table_Data_Table_1[[#This Row],[Valuation Method]]=\"Abstraction\",VLOOKUP(Table_Data_Table_1[[#This Row],[Item ID]],DataTable,6,FALSE)-VLOOKUP(Table_Data_Table_1[[#This Row],[Item ID]],DataTable,13,FALSE),IF(Table_Data_Table_1[[#This Row],[Valuation Method]]=\"Allocation\",VLOOKUP(Table_Data_Table_1[[#This Row],[Item ID]],DataTable,6,FALSE)*I218,\"\")))","v":""},{"$f":"IF(Table_Data_Table_1[[#This Row],[Valuation Method]]=\"Vacant\",\"N/A\",IF(Table_Data_Table_1[[#This Row],[Valuation Method]]=\"Abstraction\",Table_Data_Table_1[[#This Row],[Land\nResidual]]/VLOOKUP(Table_Data_Table_1[[#This Row],[Item ID]],DataTable,6,FALSE),IF(Table_Data_Table_1[[#This Row],[Valuation Method]]=\"Allocation\",'Global Settings'!$H$20,\"\")))","v":""},{"$f":"IFERROR(ROUND(Table_Data_Table_1[[#This Row],[Resid\nSq Ft]]/43560,3),\"\")","v":""},{"$f":"IF(Table_Data_Table_1[[#This Row],[Item ID]]=\"\",\"\",IFERROR(VLOOKUP(Table_Data_Table_1[[#This Row],[Item ID]],DataTable,10,FALSE)-VLOOKUP(Table_Data_Table_1[[#This Row],[Item ID]],DataTable,12,FALSE),\"\"))","v":""},{"$f":"IFERROR(Table_Data_Table_1[[#This Row],[Land\nResidual]]/Table_Data_Table_1[[#This Row],[Resid\nAcre]],\"\")","v":""},{"$f":"IFERROR(ROUND(Table_Data_Table_1[[#This Row],[Land\nResidual]]/Table_Data_Table_1[[#This Row],[Resid\nSq Ft]],2),\"\")","v":""},{"$f":"IF(Table_Data_Table_1[[#This Row],[Item ID]]=\"\",\"\",ROUND(DAYS360(Table_Data_Table_1[[#This Row],[Sale Date]],'Global Settings'!$H$5)/30,0))","v":""},{"$f":"IFERROR(IF(AND(Table_Data_Table_1[[#This Row],[Months To\nMid-Point]]<12.01,Table_Data_Table_1[[#This Row],[Months To\nMid-Point]]>-13),0,(Table_Data_Table_1[[#This Row],[Months To\nMid-Point]]*'Global Settings'!$H$6)),\"\")","v":""},{"$f":"IFERROR(Table_Data_Table_1[[#This Row],[Land\nResidual]]*(Table_Data_Table_1[[#This Row],[Time\nAdjust]]+1),\"\")","v":""},{"$f":"IFERROR(Table_Data_Table_1[[#This Row],[Adjusted\nSale Price]]/Table_Data_Table_1[[#This Row],[Resid\nAcre]],\"\")","v":""},{"$f":"IFERROR(ROUND(Table_Data_Table_1[[#This Row],[Adjusted\nSale Price]]/Table_Data_Table_1[[#This Row],[Resid\nSq Ft]],2),\"\")","v":""},{"$f":"IFERROR(IF(VLOOKUP(Table_Data_Table_1[[#This Row],[Item ID]],DataTable,11,FALSE)=0,\"N/A\",Table_Data_Table_1[[#This Row],[Adjusted\nSale Price]]/VLOOKUP(Table_Data_Table_1[[#This Row],[Item ID]],DataTable,11,FALSE)),\"\")","v":""},{"$f":"IF(IFERROR(VLOOKUP(Table_Data_Table_1[[#This Row],[Item ID]],DataTable,17,FALSE),\"\")=0,\"\",IFERROR(VLOOKUP(Table_Data_Table_1[[#This Row],[Item ID]],DataTable,17,FALSE),\"\"))","v":""}]
["",null,{"$f":"IF(Table_Data_Table_1[[#This Row],[Item ID]]=\"\",\"\",IFERROR(VLOOKUP(Table_Data_Table_1[[#This Row],[Item ID]],DataTable,16,FALSE),\"\"))","v":""},null,null,null,null,{"$f":"IF(Table_Data_Table_1[[#This Row],[Valuation Method]]=\"Vacant\",VLOOKUP(Table_Data_Table_1[[#This Row],[Item ID]],DataTable,6,FALSE)-VLOOKUP(Table_Data_Table_1[[#This Row],[Item ID]],DataTable,13,FALSE),IF(Table_Data_Table_1[[#This Row],[Valuation Method]]=\"Abstraction\",VLOOKUP(Table_Data_Table_1[[#This Row],[Item ID]],DataTable,6,FALSE)-VLOOKUP(Table_Data_Table_1[[#This Row],[Item ID]],DataTable,13,FALSE),IF(Table_Data_Table_1[[#This Row],[Valuation Method]]=\"Allocation\",VLOOKUP(Table_Data_Table_1[[#This Row],[Item ID]],DataTable,6,FALSE)*I219,\"\")))","v":""},{"$f":"IF(Table_Data_Table_1[[#This Row],[Valuation Method]]=\"Vacant\",\"N/A\",IF(Table_Data_Table_1[[#This Row],[Valuation Method]]=\"Abstraction\",Table_Data_Table_1[[#This Row],[Land\nResidual]]/VLOOKUP(Table_Data_Table_1[[#This Row],[Item ID]],DataTable,6,FALSE),IF(Table_Data_Table_1[[#This Row],[Valuation Method]]=\"Allocation\",'Global Settings'!$H$20,\"\")))","v":""},{"$f":"IFERROR(ROUND(Table_Data_Table_1[[#This Row],[Resid\nSq Ft]]/43560,3),\"\")","v":""},{"$f":"IF(Table_Data_Table_1[[#This Row],[Item ID]]=\"\",\"\",IFERROR(VLOOKUP(Table_Data_Table_1[[#This Row],[Item ID]],DataTable,10,FALSE)-VLOOKUP(Table_Data_Table_1[[#This Row],[Item ID]],DataTable,12,FALSE),\"\"))","v":""},{"$f":"IFERROR(Table_Data_Table_1[[#This Row],[Land\nResidual]]/Table_Data_Table_1[[#This Row],[Resid\nAcre]],\"\")","v":""},{"$f":"IFERROR(ROUND(Table_Data_Table_1[[#This Row],[Land\nResidual]]/Table_Data_Table_1[[#This Row],[Resid\nSq Ft]],2),\"\")","v":""},{"$f":"IF(Table_Data_Table_1[[#This Row],[Item ID]]=\"\",\"\",ROUND(DAYS360(Table_Data_Table_1[[#This Row],[Sale Date]],'Global Settings'!$H$5)/30,0))","v":""},{"$f":"IFERROR(IF(AND(Table_Data_Table_1[[#This Row],[Months To\nMid-Point]]<12.01,Table_Data_Table_1[[#This Row],[Months To\nMid-Point]]>-13),0,(Table_Data_Table_1[[#This Row],[Months To\nMid-Point]]*'Global Settings'!$H$6)),\"\")","v":""},{"$f":"IFERROR(Table_Data_Table_1[[#This Row],[Land\nResidual]]*(Table_Data_Table_1[[#This Row],[Time\nAdjust]]+1),\"\")","v":""},{"$f":"IFERROR(Table_Data_Table_1[[#This Row],[Adjusted\nSale Price]]/Table_Data_Table_1[[#This Row],[Resid\nAcre]],\"\")","v":""},{"$f":"IFERROR(ROUND(Table_Data_Table_1[[#This Row],[Adjusted\nSale Price]]/Table_Data_Table_1[[#This Row],[Resid\nSq Ft]],2),\"\")","v":""},{"$f":"IFERROR(IF(VLOOKUP(Table_Data_Table_1[[#This Row],[Item ID]],DataTable,11,FALSE)=0,\"N/A\",Table_Data_Table_1[[#This Row],[Adjusted\nSale Price]]/VLOOKUP(Table_Data_Table_1[[#This Row],[Item ID]],DataTable,11,FALSE)),\"\")","v":""},{"$f":"IF(IFERROR(VLOOKUP(Table_Data_Table_1[[#This Row],[Item ID]],DataTable,17,FALSE),\"\")=0,\"\",IFERROR(VLOOKUP(Table_Data_Table_1[[#This Row],[Item ID]],DataTable,17,FALSE),\"\"))","v":""}]
["",null,{"$f":"IF(Table_Data_Table_1[[#This Row],[Item ID]]=\"\",\"\",IFERROR(VLOOKUP(Table_Data_Table_1[[#This Row],[Item ID]],DataTable,16,FALSE),\"\"))","v":""},null,null,null,null,{"$f":"IF(Table_Data_Table_1[[#This Row],[Valuation Method]]=\"Vacant\",VLOOKUP(Table_Data_Table_1[[#This Row],[Item ID]],DataTable,6,FALSE)-VLOOKUP(Table_Data_Table_1[[#This Row],[Item ID]],DataTable,13,FALSE),IF(Table_Data_Table_1[[#This Row],[Valuation Method]]=\"Abstraction\",VLOOKUP(Table_Data_Table_1[[#This Row],[Item ID]],DataTable,6,FALSE)-VLOOKUP(Table_Data_Table_1[[#This Row],[Item ID]],DataTable,13,FALSE),IF(Table_Data_Table_1[[#This Row],[Valuation Method]]=\"Allocation\",VLOOKUP(Table_Data_Table_1[[#This Row],[Item ID]],DataTable,6,FALSE)*I220,\"\")))","v":""},{"$f":"IF(Table_Data_Table_1[[#This Row],[Valuation Method]]=\"Vacant\",\"N/A\",IF(Table_Data_Table_1[[#This Row],[Valuation Method]]=\"Abstraction\",Table_Data_Table_1[[#This Row],[Land\nResidual]]/VLOOKUP(Table_Data_Table_1[[#This Row],[Item ID]],DataTable,6,FALSE),IF(Table_Data_Table_1[[#This Row],[Valuation Method]]=\"Allocation\",'Global Settings'!$H$20,\"\")))","v":""},{"$f":"IFERROR(ROUND(Table_Data_Table_1[[#This Row],[Resid\nSq Ft]]/43560,3),\"\")","v":""},{"$f":"IF(Table_Data_Table_1[[#This Row],[Item ID]]=\"\",\"\",IFERROR(VLOOKUP(Table_Data_Table_1[[#This Row],[Item ID]],DataTable,10,FALSE)-VLOOKUP(Table_Data_Table_1[[#This Row],[Item ID]],DataTable,12,FALSE),\"\"))","v":""},{"$f":"IFERROR(Table_Data_Table_1[[#This Row],[Land\nResidual]]/Table_Data_Table_1[[#This Row],[Resid\nAcre]],\"\")","v":""},{"$f":"IFERROR(ROUND(Table_Data_Table_1[[#This Row],[Land\nResidual]]/Table_Data_Table_1[[#This Row],[Resid\nSq Ft]],2),\"\")","v":""},{"$f":"IF(Table_Data_Table_1[[#This Row],[Item ID]]=\"\",\"\",ROUND(DAYS360(Table_Data_Table_1[[#This Row],[Sale Date]],'Global Settings'!$H$5)/30,0))","v":""},{"$f":"IFERROR(IF(AND(Table_Data_Table_1[[#This Row],[Months To\nMid-Point]]<12.01,Table_Data_Table_1[[#This Row],[Months To\nMid-Point]]>-13),0,(Table_Data_Table_1[[#This Row],[Months To\nMid-Point]]*'Global Settings'!$H$6)),\"\")","v":""},{"$f":"IFERROR(Table_Data_Table_1[[#This Row],[Land\nResidual]]*(Table_Data_Table_1[[#This Row],[Time\nAdjust]]+1),\"\")","v":""},{"$f":"IFERROR(Table_Data_Table_1[[#This Row],[Adjusted\nSale Price]]/Table_Data_Table_1[[#This Row],[Resid\nAcre]],\"\")","v":""},{"$f":"IFERROR(ROUND(Table_Data_Table_1[[#This Row],[Adjusted\nSale Price]]/Table_Data_Table_1[[#This Row],[Resid\nSq Ft]],2),\"\")","v":""},{"$f":"IFERROR(IF(VLOOKUP(Table_Data_Table_1[[#This Row],[Item ID]],DataTable,11,FALSE)=0,\"N/A\",Table_Data_Table_1[[#This Row],[Adjusted\nSale Price]]/VLOOKUP(Table_Data_Table_1[[#This Row],[Item ID]],DataTable,11,FALSE)),\"\")","v":""},{"$f":"IF(IFERROR(VLOOKUP(Table_Data_Table_1[[#This Row],[Item ID]],DataTable,17,FALSE),\"\")=0,\"\",IFERROR(VLOOKUP(Table_Data_Table_1[[#This Row],[Item ID]],DataTable,17,FALSE),\"\"))","v":""}]
["",null,{"$f":"IF(Table_Data_Table_1[[#This Row],[Item ID]]=\"\",\"\",IFERROR(VLOOKUP(Table_Data_Table_1[[#This Row],[Item ID]],DataTable,16,FALSE),\"\"))","v":""},null,null,null,null,{"$f":"IF(Table_Data_Table_1[[#This Row],[Valuation Method]]=\"Vacant\",VLOOKUP(Table_Data_Table_1[[#This Row],[Item ID]],DataTable,6,FALSE)-VLOOKUP(Table_Data_Table_1[[#This Row],[Item ID]],DataTable,13,FALSE),IF(Table_Data_Table_1[[#This Row],[Valuation Method]]=\"Abstraction\",VLOOKUP(Table_Data_Table_1[[#This Row],[Item ID]],DataTable,6,FALSE)-VLOOKUP(Table_Data_Table_1[[#This Row],[Item ID]],DataTable,13,FALSE),IF(Table_Data_Table_1[[#This Row],[Valuation Method]]=\"Allocation\",VLOOKUP(Table_Data_Table_1[[#This Row],[Item ID]],DataTable,6,FALSE)*I221,\"\")))","v":""},{"$f":"IF(Table_Data_Table_1[[#This Row],[Valuation Method]]=\"Vacant\",\"N/A\",IF(Table_Data_Table_1[[#This Row],[Valuation Method]]=\"Abstraction\",Table_Data_Table_1[[#This Row],[Land\nResidual]]/VLOOKUP(Table_Data_Table_1[[#This Row],[Item ID]],DataTable,6,FALSE),IF(Table_Data_Table_1[[#This Row],[Valuation Method]]=\"Allocation\",'Global Settings'!$H$20,\"\")))","v":""},{"$f":"IFERROR(ROUND(Table_Data_Table_1[[#This Row],[Resid\nSq Ft]]/43560,3),\"\")","v":""},{"$f":"IF(Table_Data_Table_1[[#This Row],[Item ID]]=\"\",\"\",IFERROR(VLOOKUP(Table_Data_Table_1[[#This Row],[Item ID]],DataTable,10,FALSE)-VLOOKUP(Table_Data_Table_1[[#This Row],[Item ID]],DataTable,12,FALSE),\"\"))","v":""},{"$f":"IFERROR(Table_Data_Table_1[[#This Row],[Land\nResidual]]/Table_Data_Table_1[[#This Row],[Resid\nAcre]],\"\")","v":""},{"$f":"IFERROR(ROUND(Table_Data_Table_1[[#This Row],[Land\nResidual]]/Table_Data_Table_1[[#This Row],[Resid\nSq Ft]],2),\"\")","v":""},{"$f":"IF(Table_Data_Table_1[[#This Row],[Item ID]]=\"\",\"\",ROUND(DAYS360(Table_Data_Table_1[[#This Row],[Sale Date]],'Global Settings'!$H$5)/30,0))","v":""},{"$f":"IFERROR(IF(AND(Table_Data_Table_1[[#This Row],[Months To\nMid-Point]]<12.01,Table_Data_Table_1[[#This Row],[Months To\nMid-Point]]>-13),0,(Table_Data_Table_1[[#This Row],[Months To\nMid-Point]]*'Global Settings'!$H$6)),\"\")","v":""},{"$f":"IFERROR(Table_Data_Table_1[[#This Row],[Land\nResidual]]*(Table_Data_Table_1[[#This Row],[Time\nAdjust]]+1),\"\")","v":""},{"$f":"IFERROR(Table_Data_Table_1[[#This Row],[Adjusted\nSale Price]]/Table_Data_Table_1[[#This Row],[Resid\nAcre]],\"\")","v":""},{"$f":"IFERROR(ROUND(Table_Data_Table_1[[#This Row],[Adjusted\nSale Price]]/Table_Data_Table_1[[#This Row],[Resid\nSq Ft]],2),\"\")","v":""},{"$f":"IFERROR(IF(VLOOKUP(Table_Data_Table_1[[#This Row],[Item ID]],DataTable,11,FALSE)=0,\"N/A\",Table_Data_Table_1[[#This Row],[Adjusted\nSale Price]]/VLOOKUP(Table_Data_Table_1[[#This Row],[Item ID]],DataTable,11,FALSE)),\"\")","v":""},{"$f":"IF(IFERROR(VLOOKUP(Table_Data_Table_1[[#This Row],[Item ID]],DataTable,17,FALSE),\"\")=0,\"\",IFERROR(VLOOKUP(Table_Data_Table_1[[#This Row],[Item ID]],DataTable,17,FALSE),\"\"))","v":""}]
["",null,{"$f":"IF(Table_Data_Table_1[[#This Row],[Item ID]]=\"\",\"\",IFERROR(VLOOKUP(Table_Data_Table_1[[#This Row],[Item ID]],DataTable,16,FALSE),\"\"))","v":""},null,null,null,null,{"$f":"IF(Table_Data_Table_1[[#This Row],[Valuation Method]]=\"Vacant\",VLOOKUP(Table_Data_Table_1[[#This Row],[Item ID]],DataTable,6,FALSE)-VLOOKUP(Table_Data_Table_1[[#This Row],[Item ID]],DataTable,13,FALSE),IF(Table_Data_Table_1[[#This Row],[Valuation Method]]=\"Abstraction\",VLOOKUP(Table_Data_Table_1[[#This Row],[Item ID]],DataTable,6,FALSE)-VLOOKUP(Table_Data_Table_1[[#This Row],[Item ID]],DataTable,13,FALSE),IF(Table_Data_Table_1[[#This Row],[Valuation Method]]=\"Allocation\",VLOOKUP(Table_Data_Table_1[[#This Row],[Item ID]],DataTable,6,FALSE)*I222,\"\")))","v":""},{"$f":"IF(Table_Data_Table_1[[#This Row],[Valuation Method]]=\"Vacant\",\"N/A\",IF(Table_Data_Table_1[[#This Row],[Valuation Method]]=\"Abstraction\",Table_Data_Table_1[[#This Row],[Land\nResidual]]/VLOOKUP(Table_Data_Table_1[[#This Row],[Item ID]],DataTable,6,FALSE),IF(Table_Data_Table_1[[#This Row],[Valuation Method]]=\"Allocation\",'Global Settings'!$H$20,\"\")))","v":""},{"$f":"IFERROR(ROUND(Table_Data_Table_1[[#This Row],[Resid\nSq Ft]]/43560,3),\"\")","v":""},{"$f":"IF(Table_Data_Table_1[[#This Row],[Item ID]]=\"\",\"\",IFERROR(VLOOKUP(Table_Data_Table_1[[#This Row],[Item ID]],DataTable,10,FALSE)-VLOOKUP(Table_Data_Table_1[[#This Row],[Item ID]],DataTable,12,FALSE),\"\"))","v":""},{"$f":"IFERROR(Table_Data_Table_1[[#This Row],[Land\nResidual]]/Table_Data_Table_1[[#This Row],[Resid\nAcre]],\"\")","v":""},{"$f":"IFERROR(ROUND(Table_Data_Table_1[[#This Row],[Land\nResidual]]/Table_Data_Table_1[[#This Row],[Resid\nSq Ft]],2),\"\")","v":""},{"$f":"IF(Table_Data_Table_1[[#This Row],[Item ID]]=\"\",\"\",ROUND(DAYS360(Table_Data_Table_1[[#This Row],[Sale Date]],'Global Settings'!$H$5)/30,0))","v":""},{"$f":"IFERROR(IF(AND(Table_Data_Table_1[[#This Row],[Months To\nMid-Point]]<12.01,Table_Data_Table_1[[#This Row],[Months To\nMid-Point]]>-13),0,(Table_Data_Table_1[[#This Row],[Months To\nMid-Point]]*'Global Settings'!$H$6)),\"\")","v":""},{"$f":"IFERROR(Table_Data_Table_1[[#This Row],[Land\nResidual]]*(Table_Data_Table_1[[#This Row],[Time\nAdjust]]+1),\"\")","v":""},{"$f":"IFERROR(Table_Data_Table_1[[#This Row],[Adjusted\nSale Price]]/Table_Data_Table_1[[#This Row],[Resid\nAcre]],\"\")","v":""},{"$f":"IFERROR(ROUND(Table_Data_Table_1[[#This Row],[Adjusted\nSale Price]]/Table_Data_Table_1[[#This Row],[Resid\nSq Ft]],2),\"\")","v":""},{"$f":"IFERROR(IF(VLOOKUP(Table_Data_Table_1[[#This Row],[Item ID]],DataTable,11,FALSE)=0,\"N/A\",Table_Data_Table_1[[#This Row],[Adjusted\nSale Price]]/VLOOKUP(Table_Data_Table_1[[#This Row],[Item ID]],DataTable,11,FALSE)),\"\")","v":""},{"$f":"IF(IFERROR(VLOOKUP(Table_Data_Table_1[[#This Row],[Item ID]],DataTable,17,FALSE),\"\")=0,\"\",IFERROR(VLOOKUP(Table_Data_Table_1[[#This Row],[Item ID]],DataTable,17,FALSE),\"\"))","v":""}]
["",null,{"$f":"IF(Table_Data_Table_1[[#This Row],[Item ID]]=\"\",\"\",IFERROR(VLOOKUP(Table_Data_Table_1[[#This Row],[Item ID]],DataTable,16,FALSE),\"\"))","v":""},null,null,null,null,{"$f":"IF(Table_Data_Table_1[[#This Row],[Valuation Method]]=\"Vacant\",VLOOKUP(Table_Data_Table_1[[#This Row],[Item ID]],DataTable,6,FALSE)-VLOOKUP(Table_Data_Table_1[[#This Row],[Item ID]],DataTable,13,FALSE),IF(Table_Data_Table_1[[#This Row],[Valuation Method]]=\"Abstraction\",VLOOKUP(Table_Data_Table_1[[#This Row],[Item ID]],DataTable,6,FALSE)-VLOOKUP(Table_Data_Table_1[[#This Row],[Item ID]],DataTable,13,FALSE),IF(Table_Data_Table_1[[#This Row],[Valuation Method]]=\"Allocation\",VLOOKUP(Table_Data_Table_1[[#This Row],[Item ID]],DataTable,6,FALSE)*I223,\"\")))","v":""},{"$f":"IF(Table_Data_Table_1[[#This Row],[Valuation Method]]=\"Vacant\",\"N/A\",IF(Table_Data_Table_1[[#This Row],[Valuation Method]]=\"Abstraction\",Table_Data_Table_1[[#This Row],[Land\nResidual]]/VLOOKUP(Table_Data_Table_1[[#This Row],[Item ID]],DataTable,6,FALSE),IF(Table_Data_Table_1[[#This Row],[Valuation Method]]=\"Allocation\",'Global Settings'!$H$20,\"\")))","v":""},{"$f":"IFERROR(ROUND(Table_Data_Table_1[[#This Row],[Resid\nSq Ft]]/43560,3),\"\")","v":""},{"$f":"IF(Table_Data_Table_1[[#This Row],[Item ID]]=\"\",\"\",IFERROR(VLOOKUP(Table_Data_Table_1[[#This Row],[Item ID]],DataTable,10,FALSE)-VLOOKUP(Table_Data_Table_1[[#This Row],[Item ID]],DataTable,12,FALSE),\"\"))","v":""},{"$f":"IFERROR(Table_Data_Table_1[[#This Row],[Land\nResidual]]/Table_Data_Table_1[[#This Row],[Resid\nAcre]],\"\")","v":""},{"$f":"IFERROR(ROUND(Table_Data_Table_1[[#This Row],[Land\nResidual]]/Table_Data_Table_1[[#This Row],[Resid\nSq Ft]],2),\"\")","v":""},{"$f":"IF(Table_Data_Table_1[[#This Row],[Item ID]]=\"\",\"\",ROUND(DAYS360(Table_Data_Table_1[[#This Row],[Sale Date]],'Global Settings'!$H$5)/30,0))","v":""},{"$f":"IFERROR(IF(AND(Table_Data_Table_1[[#This Row],[Months To\nMid-Point]]<12.01,Table_Data_Table_1[[#This Row],[Months To\nMid-Point]]>-13),0,(Table_Data_Table_1[[#This Row],[Months To\nMid-Point]]*'Global Settings'!$H$6)),\"\")","v":""},{"$f":"IFERROR(Table_Data_Table_1[[#This Row],[Land\nResidual]]*(Table_Data_Table_1[[#This Row],[Time\nAdjust]]+1),\"\")","v":""},{"$f":"IFERROR(Table_Data_Table_1[[#This Row],[Adjusted\nSale Price]]/Table_Data_Table_1[[#This Row],[Resid\nAcre]],\"\")","v":""},{"$f":"IFERROR(ROUND(Table_Data_Table_1[[#This Row],[Adjusted\nSale Price]]/Table_Data_Table_1[[#This Row],[Resid\nSq Ft]],2),\"\")","v":""},{"$f":"IFERROR(IF(VLOOKUP(Table_Data_Table_1[[#This Row],[Item ID]],DataTable,11,FALSE)=0,\"N/A\",Table_Data_Table_1[[#This Row],[Adjusted\nSale Price]]/VLOOKUP(Table_Data_Table_1[[#This Row],[Item ID]],DataTable,11,FALSE)),\"\")","v":""},{"$f":"IF(IFERROR(VLOOKUP(Table_Data_Table_1[[#This Row],[Item ID]],DataTable,17,FALSE),\"\")=0,\"\",IFERROR(VLOOKUP(Table_Data_Table_1[[#This Row],[Item ID]],DataTable,17,FALSE),\"\"))","v":""}]
["",null,{"$f":"IF(Table_Data_Table_1[[#This Row],[Item ID]]=\"\",\"\",IFERROR(VLOOKUP(Table_Data_Table_1[[#This Row],[Item ID]],DataTable,16,FALSE),\"\"))","v":""},null,null,null,null,{"$f":"IF(Table_Data_Table_1[[#This Row],[Valuation Method]]=\"Vacant\",VLOOKUP(Table_Data_Table_1[[#This Row],[Item ID]],DataTable,6,FALSE)-VLOOKUP(Table_Data_Table_1[[#This Row],[Item ID]],DataTable,13,FALSE),IF(Table_Data_Table_1[[#This Row],[Valuation Method]]=\"Abstraction\",VLOOKUP(Table_Data_Table_1[[#This Row],[Item ID]],DataTable,6,FALSE)-VLOOKUP(Table_Data_Table_1[[#This Row],[Item ID]],DataTable,13,FALSE),IF(Table_Data_Table_1[[#This Row],[Valuation Method]]=\"Allocation\",VLOOKUP(Table_Data_Table_1[[#This Row],[Item ID]],DataTable,6,FALSE)*I224,\"\")))","v":""},{"$f":"IF(Table_Data_Table_1[[#This Row],[Valuation Method]]=\"Vacant\",\"N/A\",IF(Table_Data_Table_1[[#This Row],[Valuation Method]]=\"Abstraction\",Table_Data_Table_1[[#This Row],[Land\nResidual]]/VLOOKUP(Table_Data_Table_1[[#This Row],[Item ID]],DataTable,6,FALSE),IF(Table_Data_Table_1[[#This Row],[Valuation Method]]=\"Allocation\",'Global Settings'!$H$20,\"\")))","v":""},{"$f":"IFERROR(ROUND(Table_Data_Table_1[[#This Row],[Resid\nSq Ft]]/43560,3),\"\")","v":""},{"$f":"IF(Table_Data_Table_1[[#This Row],[Item ID]]=\"\",\"\",IFERROR(VLOOKUP(Table_Data_Table_1[[#This Row],[Item ID]],DataTable,10,FALSE)-VLOOKUP(Table_Data_Table_1[[#This Row],[Item ID]],DataTable,12,FALSE),\"\"))","v":""},{"$f":"IFERROR(Table_Data_Table_1[[#This Row],[Land\nResidual]]/Table_Data_Table_1[[#This Row],[Resid\nAcre]],\"\")","v":""},{"$f":"IFERROR(ROUND(Table_Data_Table_1[[#This Row],[Land\nResidual]]/Table_Data_Table_1[[#This Row],[Resid\nSq Ft]],2),\"\")","v":""},{"$f":"IF(Table_Data_Table_1[[#This Row],[Item ID]]=\"\",\"\",ROUND(DAYS360(Table_Data_Table_1[[#This Row],[Sale Date]],'Global Settings'!$H$5)/30,0))","v":""},{"$f":"IFERROR(IF(AND(Table_Data_Table_1[[#This Row],[Months To\nMid-Point]]<12.01,Table_Data_Table_1[[#This Row],[Months To\nMid-Point]]>-13),0,(Table_Data_Table_1[[#This Row],[Months To\nMid-Point]]*'Global Settings'!$H$6)),\"\")","v":""},{"$f":"IFERROR(Table_Data_Table_1[[#This Row],[Land\nResidual]]*(Table_Data_Table_1[[#This Row],[Time\nAdjust]]+1),\"\")","v":""},{"$f":"IFERROR(Table_Data_Table_1[[#This Row],[Adjusted\nSale Price]]/Table_Data_Table_1[[#This Row],[Resid\nAcre]],\"\")","v":""},{"$f":"IFERROR(ROUND(Table_Data_Table_1[[#This Row],[Adjusted\nSale Price]]/Table_Data_Table_1[[#This Row],[Resid\nSq Ft]],2),\"\")","v":""},{"$f":"IFERROR(IF(VLOOKUP(Table_Data_Table_1[[#This Row],[Item ID]],DataTable,11,FALSE)=0,\"N/A\",Table_Data_Table_1[[#This Row],[Adjusted\nSale Price]]/VLOOKUP(Table_Data_Table_1[[#This Row],[Item ID]],DataTable,11,FALSE)),\"\")","v":""},{"$f":"IF(IFERROR(VLOOKUP(Table_Data_Table_1[[#This Row],[Item ID]],DataTable,17,FALSE),\"\")=0,\"\",IFERROR(VLOOKUP(Table_Data_Table_1[[#This Row],[Item ID]],DataTable,17,FALSE),\"\"))","v":""}]
["",null,{"$f":"IF(Table_Data_Table_1[[#This Row],[Item ID]]=\"\",\"\",IFERROR(VLOOKUP(Table_Data_Table_1[[#This Row],[Item ID]],DataTable,16,FALSE),\"\"))","v":""},null,null,null,null,{"$f":"IF(Table_Data_Table_1[[#This Row],[Valuation Method]]=\"Vacant\",VLOOKUP(Table_Data_Table_1[[#This Row],[Item ID]],DataTable,6,FALSE)-VLOOKUP(Table_Data_Table_1[[#This Row],[Item ID]],DataTable,13,FALSE),IF(Table_Data_Table_1[[#This Row],[Valuation Method]]=\"Abstraction\",VLOOKUP(Table_Data_Table_1[[#This Row],[Item ID]],DataTable,6,FALSE)-VLOOKUP(Table_Data_Table_1[[#This Row],[Item ID]],DataTable,13,FALSE),IF(Table_Data_Table_1[[#This Row],[Valuation Method]]=\"Allocation\",VLOOKUP(Table_Data_Table_1[[#This Row],[Item ID]],DataTable,6,FALSE)*I225,\"\")))","v":""},{"$f":"IF(Table_Data_Table_1[[#This Row],[Valuation Method]]=\"Vacant\",\"N/A\",IF(Table_Data_Table_1[[#This Row],[Valuation Method]]=\"Abstraction\",Table_Data_Table_1[[#This Row],[Land\nResidual]]/VLOOKUP(Table_Data_Table_1[[#This Row],[Item ID]],DataTable,6,FALSE),IF(Table_Data_Table_1[[#This Row],[Valuation Method]]=\"Allocation\",'Global Settings'!$H$20,\"\")))","v":""},{"$f":"IFERROR(ROUND(Table_Data_Table_1[[#This Row],[Resid\nSq Ft]]/43560,3),\"\")","v":""},{"$f":"IF(Table_Data_Table_1[[#This Row],[Item ID]]=\"\",\"\",IFERROR(VLOOKUP(Table_Data_Table_1[[#This Row],[Item ID]],DataTable,10,FALSE)-VLOOKUP(Table_Data_Table_1[[#This Row],[Item ID]],DataTable,12,FALSE),\"\"))","v":""},{"$f":"IFERROR(Table_Data_Table_1[[#This Row],[Land\nResidual]]/Table_Data_Table_1[[#This Row],[Resid\nAcre]],\"\")","v":""},{"$f":"IFERROR(ROUND(Table_Data_Table_1[[#This Row],[Land\nResidual]]/Table_Data_Table_1[[#This Row],[Resid\nSq Ft]],2),\"\")","v":""},{"$f":"IF(Table_Data_Table_1[[#This Row],[Item ID]]=\"\",\"\",ROUND(DAYS360(Table_Data_Table_1[[#This Row],[Sale Date]],'Global Settings'!$H$5)/30,0))","v":""},{"$f":"IFERROR(IF(AND(Table_Data_Table_1[[#This Row],[Months To\nMid-Point]]<12.01,Table_Data_Table_1[[#This Row],[Months To\nMid-Point]]>-13),0,(Table_Data_Table_1[[#This Row],[Months To\nMid-Point]]*'Global Settings'!$H$6)),\"\")","v":""},{"$f":"IFERROR(Table_Data_Table_1[[#This Row],[Land\nResidual]]*(Table_Data_Table_1[[#This Row],[Time\nAdjust]]+1),\"\")","v":""},{"$f":"IFERROR(Table_Data_Table_1[[#This Row],[Adjusted\nSale Price]]/Table_Data_Table_1[[#This Row],[Resid\nAcre]],\"\")","v":""},{"$f":"IFERROR(ROUND(Table_Data_Table_1[[#This Row],[Adjusted\nSale Price]]/Table_Data_Table_1[[#This Row],[Resid\nSq Ft]],2),\"\")","v":""},{"$f":"IFERROR(IF(VLOOKUP(Table_Data_Table_1[[#This Row],[Item ID]],DataTable,11,FALSE)=0,\"N/A\",Table_Data_Table_1[[#This Row],[Adjusted\nSale Price]]/VLOOKUP(Table_Data_Table_1[[#This Row],[Item ID]],DataTable,11,FALSE)),\"\")","v":""},{"$f":"IF(IFERROR(VLOOKUP(Table_Data_Table_1[[#This Row],[Item ID]],DataTable,17,FALSE),\"\")=0,\"\",IFERROR(VLOOKUP(Table_Data_Table_1[[#This Row],[Item ID]],DataTable,17,FALSE),\"\"))","v":""}]
["",null,{"$f":"IF(Table_Data_Table_1[[#This Row],[Item ID]]=\"\",\"\",IFERROR(VLOOKUP(Table_Data_Table_1[[#This Row],[Item ID]],DataTable,16,FALSE),\"\"))","v":""},null,null,null,null,{"$f":"IF(Table_Data_Table_1[[#This Row],[Valuation Method]]=\"Vacant\",VLOOKUP(Table_Data_Table_1[[#This Row],[Item ID]],DataTable,6,FALSE)-VLOOKUP(Table_Data_Table_1[[#This Row],[Item ID]],DataTable,13,FALSE),IF(Table_Data_Table_1[[#This Row],[Valuation Method]]=\"Abstraction\",VLOOKUP(Table_Data_Table_1[[#This Row],[Item ID]],DataTable,6,FALSE)-VLOOKUP(Table_Data_Table_1[[#This Row],[Item ID]],DataTable,13,FALSE),IF(Table_Data_Table_1[[#This Row],[Valuation Method]]=\"Allocation\",VLOOKUP(Table_Data_Table_1[[#This Row],[Item ID]],DataTable,6,FALSE)*I226,\"\")))","v":""},{"$f":"IF(Table_Data_Table_1[[#This Row],[Valuation Method]]=\"Vacant\",\"N/A\",IF(Table_Data_Table_1[[#This Row],[Valuation Method]]=\"Abstraction\",Table_Data_Table_1[[#This Row],[Land\nResidual]]/VLOOKUP(Table_Data_Table_1[[#This Row],[Item ID]],DataTable,6,FALSE),IF(Table_Data_Table_1[[#This Row],[Valuation Method]]=\"Allocation\",'Global Settings'!$H$20,\"\")))","v":""},{"$f":"IFERROR(ROUND(Table_Data_Table_1[[#This Row],[Resid\nSq Ft]]/43560,3),\"\")","v":""},{"$f":"IF(Table_Data_Table_1[[#This Row],[Item ID]]=\"\",\"\",IFERROR(VLOOKUP(Table_Data_Table_1[[#This Row],[Item ID]],DataTable,10,FALSE)-VLOOKUP(Table_Data_Table_1[[#This Row],[Item ID]],DataTable,12,FALSE),\"\"))","v":""},{"$f":"IFERROR(Table_Data_Table_1[[#This Row],[Land\nResidual]]/Table_Data_Table_1[[#This Row],[Resid\nAcre]],\"\")","v":""},{"$f":"IFERROR(ROUND(Table_Data_Table_1[[#This Row],[Land\nResidual]]/Table_Data_Table_1[[#This Row],[Resid\nSq Ft]],2),\"\")","v":""},{"$f":"IF(Table_Data_Table_1[[#This Row],[Item ID]]=\"\",\"\",ROUND(DAYS360(Table_Data_Table_1[[#This Row],[Sale Date]],'Global Settings'!$H$5)/30,0))","v":""},{"$f":"IFERROR(IF(AND(Table_Data_Table_1[[#This Row],[Months To\nMid-Point]]<12.01,Table_Data_Table_1[[#This Row],[Months To\nMid-Point]]>-13),0,(Table_Data_Table_1[[#This Row],[Months To\nMid-Point]]*'Global Settings'!$H$6)),\"\")","v":""},{"$f":"IFERROR(Table_Data_Table_1[[#This Row],[Land\nResidual]]*(Table_Data_Table_1[[#This Row],[Time\nAdjust]]+1),\"\")","v":""},{"$f":"IFERROR(Table_Data_Table_1[[#This Row],[Adjusted\nSale Price]]/Table_Data_Table_1[[#This Row],[Resid\nAcre]],\"\")","v":""},{"$f":"IFERROR(ROUND(Table_Data_Table_1[[#This Row],[Adjusted\nSale Price]]/Table_Data_Table_1[[#This Row],[Resid\nSq Ft]],2),\"\")","v":""},{"$f":"IFERROR(IF(VLOOKUP(Table_Data_Table_1[[#This Row],[Item ID]],DataTable,11,FALSE)=0,\"N/A\",Table_Data_Table_1[[#This Row],[Adjusted\nSale Price]]/VLOOKUP(Table_Data_Table_1[[#This Row],[Item ID]],DataTable,11,FALSE)),\"\")","v":""},{"$f":"IF(IFERROR(VLOOKUP(Table_Data_Table_1[[#This Row],[Item ID]],DataTable,17,FALSE),\"\")=0,\"\",IFERROR(VLOOKUP(Table_Data_Table_1[[#This Row],[Item ID]],DataTable,17,FALSE),\"\"))","v":""}]
["",null,{"$f":"IF(Table_Data_Table_1[[#This Row],[Item ID]]=\"\",\"\",IFERROR(VLOOKUP(Table_Data_Table_1[[#This Row],[Item ID]],DataTable,16,FALSE),\"\"))","v":""},null,null,null,null,{"$f":"IF(Table_Data_Table_1[[#This Row],[Valuation Method]]=\"Vacant\",VLOOKUP(Table_Data_Table_1[[#This Row],[Item ID]],DataTable,6,FALSE)-VLOOKUP(Table_Data_Table_1[[#This Row],[Item ID]],DataTable,13,FALSE),IF(Table_Data_Table_1[[#This Row],[Valuation Method]]=\"Abstraction\",VLOOKUP(Table_Data_Table_1[[#This Row],[Item ID]],DataTable,6,FALSE)-VLOOKUP(Table_Data_Table_1[[#This Row],[Item ID]],DataTable,13,FALSE),IF(Table_Data_Table_1[[#This Row],[Valuation Method]]=\"Allocation\",VLOOKUP(Table_Data_Table_1[[#This Row],[Item ID]],DataTable,6,FALSE)*I227,\"\")))","v":""},{"$f":"IF(Table_Data_Table_1[[#This Row],[Valuation Method]]=\"Vacant\",\"N/A\",IF(Table_Data_Table_1[[#This Row],[Valuation Method]]=\"Abstraction\",Table_Data_Table_1[[#This Row],[Land\nResidual]]/VLOOKUP(Table_Data_Table_1[[#This Row],[Item ID]],DataTable,6,FALSE),IF(Table_Data_Table_1[[#This Row],[Valuation Method]]=\"Allocation\",'Global Settings'!$H$20,\"\")))","v":""},{"$f":"IFERROR(ROUND(Table_Data_Table_1[[#This Row],[Resid\nSq Ft]]/43560,3),\"\")","v":""},{"$f":"IF(Table_Data_Table_1[[#This Row],[Item ID]]=\"\",\"\",IFERROR(VLOOKUP(Table_Data_Table_1[[#This Row],[Item ID]],DataTable,10,FALSE)-VLOOKUP(Table_Data_Table_1[[#This Row],[Item ID]],DataTable,12,FALSE),\"\"))","v":""},{"$f":"IFERROR(Table_Data_Table_1[[#This Row],[Land\nResidual]]/Table_Data_Table_1[[#This Row],[Resid\nAcre]],\"\")","v":""},{"$f":"IFERROR(ROUND(Table_Data_Table_1[[#This Row],[Land\nResidual]]/Table_Data_Table_1[[#This Row],[Resid\nSq Ft]],2),\"\")","v":""},{"$f":"IF(Table_Data_Table_1[[#This Row],[Item ID]]=\"\",\"\",ROUND(DAYS360(Table_Data_Table_1[[#This Row],[Sale Date]],'Global Settings'!$H$5)/30,0))","v":""},{"$f":"IFERROR(IF(AND(Table_Data_Table_1[[#This Row],[Months To\nMid-Point]]<12.01,Table_Data_Table_1[[#This Row],[Months To\nMid-Point]]>-13),0,(Table_Data_Table_1[[#This Row],[Months To\nMid-Point]]*'Global Settings'!$H$6)),\"\")","v":""},{"$f":"IFERROR(Table_Data_Table_1[[#This Row],[Land\nResidual]]*(Table_Data_Table_1[[#This Row],[Time\nAdjust]]+1),\"\")","v":""},{"$f":"IFERROR(Table_Data_Table_1[[#This Row],[Adjusted\nSale Price]]/Table_Data_Table_1[[#This Row],[Resid\nAcre]],\"\")","v":""},{"$f":"IFERROR(ROUND(Table_Data_Table_1[[#This Row],[Adjusted\nSale Price]]/Table_Data_Table_1[[#This Row],[Resid\nSq Ft]],2),\"\")","v":""},{"$f":"IFERROR(IF(VLOOKUP(Table_Data_Table_1[[#This Row],[Item ID]],DataTable,11,FALSE)=0,\"N/A\",Table_Data_Table_1[[#This Row],[Adjusted\nSale Price]]/VLOOKUP(Table_Data_Table_1[[#This Row],[Item ID]],DataTable,11,FALSE)),\"\")","v":""},{"$f":"IF(IFERROR(VLOOKUP(Table_Data_Table_1[[#This Row],[Item ID]],DataTable,17,FALSE),\"\")=0,\"\",IFERROR(VLOOKUP(Table_Data_Table_1[[#This Row],[Item ID]],DataTable,17,FALSE),\"\"))","v":""}]
["",null,{"$f":"IF(Table_Data_Table_1[[#This Row],[Item ID]]=\"\",\"\",IFERROR(VLOOKUP(Table_Data_Table_1[[#This Row],[Item ID]],DataTable,16,FALSE),\"\"))","v":""},null,null,null,null,{"$f":"IF(Table_Data_Table_1[[#This Row],[Valuation Method]]=\"Vacant\",VLOOKUP(Table_Data_Table_1[[#This Row],[Item ID]],DataTable,6,FALSE)-VLOOKUP(Table_Data_Table_1[[#This Row],[Item ID]],DataTable,13,FALSE),IF(Table_Data_Table_1[[#This Row],[Valuation Method]]=\"Abstraction\",VLOOKUP(Table_Data_Table_1[[#This Row],[Item ID]],DataTable,6,FALSE)-VLOOKUP(Table_Data_Table_1[[#This Row],[Item ID]],DataTable,13,FALSE),IF(Table_Data_Table_1[[#This Row],[Valuation Method]]=\"Allocation\",VLOOKUP(Table_Data_Table_1[[#This Row],[Item ID]],DataTable,6,FALSE)*I228,\"\")))","v":""},{"$f":"IF(Table_Data_Table_1[[#This Row],[Valuation Method]]=\"Vacant\",\"N/A\",IF(Table_Data_Table_1[[#This Row],[Valuation Method]]=\"Abstraction\",Table_Data_Table_1[[#This Row],[Land\nResidual]]/VLOOKUP(Table_Data_Table_1[[#This Row],[Item ID]],DataTable,6,FALSE),IF(Table_Data_Table_1[[#This Row],[Valuation Method]]=\"Allocation\",'Global Settings'!$H$20,\"\")))","v":""},{"$f":"IFERROR(ROUND(Table_Data_Table_1[[#This Row],[Resid\nSq Ft]]/43560,3),\"\")","v":""},{"$f":"IF(Table_Data_Table_1[[#This Row],[Item ID]]=\"\",\"\",IFERROR(VLOOKUP(Table_Data_Table_1[[#This Row],[Item ID]],DataTable,10,FALSE)-VLOOKUP(Table_Data_Table_1[[#This Row],[Item ID]],DataTable,12,FALSE),\"\"))","v":""},{"$f":"IFERROR(Table_Data_Table_1[[#This Row],[Land\nResidual]]/Table_Data_Table_1[[#This Row],[Resid\nAcre]],\"\")","v":""},{"$f":"IFERROR(ROUND(Table_Data_Table_1[[#This Row],[Land\nResidual]]/Table_Data_Table_1[[#This Row],[Resid\nSq Ft]],2),\"\")","v":""},{"$f":"IF(Table_Data_Table_1[[#This Row],[Item ID]]=\"\",\"\",ROUND(DAYS360(Table_Data_Table_1[[#This Row],[Sale Date]],'Global Settings'!$H$5)/30,0))","v":""},{"$f":"IFERROR(IF(AND(Table_Data_Table_1[[#This Row],[Months To\nMid-Point]]<12.01,Table_Data_Table_1[[#This Row],[Months To\nMid-Point]]>-13),0,(Table_Data_Table_1[[#This Row],[Months To\nMid-Point]]*'Global Settings'!$H$6)),\"\")","v":""},{"$f":"IFERROR(Table_Data_Table_1[[#This Row],[Land\nResidual]]*(Table_Data_Table_1[[#This Row],[Time\nAdjust]]+1),\"\")","v":""},{"$f":"IFERROR(Table_Data_Table_1[[#This Row],[Adjusted\nSale Price]]/Table_Data_Table_1[[#This Row],[Resid\nAcre]],\"\")","v":""},{"$f":"IFERROR(ROUND(Table_Data_Table_1[[#This Row],[Adjusted\nSale Price]]/Table_Data_Table_1[[#This Row],[Resid\nSq Ft]],2),\"\")","v":""},{"$f":"IFERROR(IF(VLOOKUP(Table_Data_Table_1[[#This Row],[Item ID]],DataTable,11,FALSE)=0,\"N/A\",Table_Data_Table_1[[#This Row],[Adjusted\nSale Price]]/VLOOKUP(Table_Data_Table_1[[#This Row],[Item ID]],DataTable,11,FALSE)),\"\")","v":""},{"$f":"IF(IFERROR(VLOOKUP(Table_Data_Table_1[[#This Row],[Item ID]],DataTable,17,FALSE),\"\")=0,\"\",IFERROR(VLOOKUP(Table_Data_Table_1[[#This Row],[Item ID]],DataTable,17,FALSE),\"\"))","v":""}]
["",null,{"$f":"IF(Table_Data_Table_1[[#This Row],[Item ID]]=\"\",\"\",IFERROR(VLOOKUP(Table_Data_Table_1[[#This Row],[Item ID]],DataTable,16,FALSE),\"\"))","v":""},null,null,null,null,{"$f":"IF(Table_Data_Table_1[[#This Row],[Valuation Method]]=\"Vacant\",VLOOKUP(Table_Data_Table_1[[#This Row],[Item ID]],DataTable,6,FALSE)-VLOOKUP(Table_Data_Table_1[[#This Row],[Item ID]],DataTable,13,FALSE),IF(Table_Data_Table_1[[#This Row],[Valuation Method]]=\"Abstraction\",VLOOKUP(Table_Data_Table_1[[#This Row],[Item ID]],DataTable,6,FALSE)-VLOOKUP(Table_Data_Table_1[[#This Row],[Item ID]],DataTable,13,FALSE),IF(Table_Data_Table_1[[#This Row],[Valuation Method]]=\"Allocation\",VLOOKUP(Table_Data_Table_1[[#This Row],[Item ID]],DataTable,6,FALSE)*I229,\"\")))","v":""},{"$f":"IF(Table_Data_Table_1[[#This Row],[Valuation Method]]=\"Vacant\",\"N/A\",IF(Table_Data_Table_1[[#This Row],[Valuation Method]]=\"Abstraction\",Table_Data_Table_1[[#This Row],[Land\nResidual]]/VLOOKUP(Table_Data_Table_1[[#This Row],[Item ID]],DataTable,6,FALSE),IF(Table_Data_Table_1[[#This Row],[Valuation Method]]=\"Allocation\",'Global Settings'!$H$20,\"\")))","v":""},{"$f":"IFERROR(ROUND(Table_Data_Table_1[[#This Row],[Resid\nSq Ft]]/43560,3),\"\")","v":""},{"$f":"IF(Table_Data_Table_1[[#This Row],[Item ID]]=\"\",\"\",IFERROR(VLOOKUP(Table_Data_Table_1[[#This Row],[Item ID]],DataTable,10,FALSE)-VLOOKUP(Table_Data_Table_1[[#This Row],[Item ID]],DataTable,12,FALSE),\"\"))","v":""},{"$f":"IFERROR(Table_Data_Table_1[[#This Row],[Land\nResidual]]/Table_Data_Table_1[[#This Row],[Resid\nAcre]],\"\")","v":""},{"$f":"IFERROR(ROUND(Table_Data_Table_1[[#This Row],[Land\nResidual]]/Table_Data_Table_1[[#This Row],[Resid\nSq Ft]],2),\"\")","v":""},{"$f":"IF(Table_Data_Table_1[[#This Row],[Item ID]]=\"\",\"\",ROUND(DAYS360(Table_Data_Table_1[[#This Row],[Sale Date]],'Global Settings'!$H$5)/30,0))","v":""},{"$f":"IFERROR(IF(AND(Table_Data_Table_1[[#This Row],[Months To\nMid-Point]]<12.01,Table_Data_Table_1[[#This Row],[Months To\nMid-Point]]>-13),0,(Table_Data_Table_1[[#This Row],[Months To\nMid-Point]]*'Global Settings'!$H$6)),\"\")","v":""},{"$f":"IFERROR(Table_Data_Table_1[[#This Row],[Land\nResidual]]*(Table_Data_Table_1[[#This Row],[Time\nAdjust]]+1),\"\")","v":""},{"$f":"IFERROR(Table_Data_Table_1[[#This Row],[Adjusted\nSale Price]]/Table_Data_Table_1[[#This Row],[Resid\nAcre]],\"\")","v":""},{"$f":"IFERROR(ROUND(Table_Data_Table_1[[#This Row],[Adjusted\nSale Price]]/Table_Data_Table_1[[#This Row],[Resid\nSq Ft]],2),\"\")","v":""},{"$f":"IFERROR(IF(VLOOKUP(Table_Data_Table_1[[#This Row],[Item ID]],DataTable,11,FALSE)=0,\"N/A\",Table_Data_Table_1[[#This Row],[Adjusted\nSale Price]]/VLOOKUP(Table_Data_Table_1[[#This Row],[Item ID]],DataTable,11,FALSE)),\"\")","v":""},{"$f":"IF(IFERROR(VLOOKUP(Table_Data_Table_1[[#This Row],[Item ID]],DataTable,17,FALSE),\"\")=0,\"\",IFERROR(VLOOKUP(Table_Data_Table_1[[#This Row],[Item ID]],DataTable,17,FALSE),\"\"))","v":""}]
["",null,{"$f":"IF(Table_Data_Table_1[[#This Row],[Item ID]]=\"\",\"\",IFERROR(VLOOKUP(Table_Data_Table_1[[#This Row],[Item ID]],DataTable,16,FALSE),\"\"))","v":""},null,null,null,null,{"$f":"IF(Table_Data_Table_1[[#This Row],[Valuation Method]]=\"Vacant\",VLOOKUP(Table_Data_Table_1[[#This Row],[Item ID]],DataTable,6,FALSE)-VLOOKUP(Table_Data_Table_1[[#This Row],[Item ID]],DataTable,13,FALSE),IF(Table_Data_Table_1[[#This Row],[Valuation Method]]=\"Abstraction\",VLOOKUP(Table_Data_Table_1[[#This Row],[Item ID]],DataTable,6,FALSE)-VLOOKUP(Table_Data_Table_1[[#This Row],[Item ID]],DataTable,13,FALSE),IF(Table_Data_Table_1[[#This Row],[Valuation Method]]=\"Allocation\",VLOOKUP(Table_Data_Table_1[[#This Row],[Item ID]],DataTable,6,FALSE)*I230,\"\")))","v":""},{"$f":"IF(Table_Data_Table_1[[#This Row],[Valuation Method]]=\"Vacant\",\"N/A\",IF(Table_Data_Table_1[[#This Row],[Valuation Method]]=\"Abstraction\",Table_Data_Table_1[[#This Row],[Land\nResidual]]/VLOOKUP(Table_Data_Table_1[[#This Row],[Item ID]],DataTable,6,FALSE),IF(Table_Data_Table_1[[#This Row],[Valuation Method]]=\"Allocation\",'Global Settings'!$H$20,\"\")))","v":""},{"$f":"IFERROR(ROUND(Table_Data_Table_1[[#This Row],[Resid\nSq Ft]]/43560,3),\"\")","v":""},{"$f":"IF(Table_Data_Table_1[[#This Row],[Item ID]]=\"\",\"\",IFERROR(VLOOKUP(Table_Data_Table_1[[#This Row],[Item ID]],DataTable,10,FALSE)-VLOOKUP(Table_Data_Table_1[[#This Row],[Item ID]],DataTable,12,FALSE),\"\"))","v":""},{"$f":"IFERROR(Table_Data_Table_1[[#This Row],[Land\nResidual]]/Table_Data_Table_1[[#This Row],[Resid\nAcre]],\"\")","v":""},{"$f":"IFERROR(ROUND(Table_Data_Table_1[[#This Row],[Land\nResidual]]/Table_Data_Table_1[[#This Row],[Resid\nSq Ft]],2),\"\")","v":""},{"$f":"IF(Table_Data_Table_1[[#This Row],[Item ID]]=\"\",\"\",ROUND(DAYS360(Table_Data_Table_1[[#This Row],[Sale Date]],'Global Settings'!$H$5)/30,0))","v":""},{"$f":"IFERROR(IF(AND(Table_Data_Table_1[[#This Row],[Months To\nMid-Point]]<12.01,Table_Data_Table_1[[#This Row],[Months To\nMid-Point]]>-13),0,(Table_Data_Table_1[[#This Row],[Months To\nMid-Point]]*'Global Settings'!$H$6)),\"\")","v":""},{"$f":"IFERROR(Table_Data_Table_1[[#This Row],[Land\nResidual]]*(Table_Data_Table_1[[#This Row],[Time\nAdjust]]+1),\"\")","v":""},{"$f":"IFERROR(Table_Data_Table_1[[#This Row],[Adjusted\nSale Price]]/Table_Data_Table_1[[#This Row],[Resid\nAcre]],\"\")","v":""},{"$f":"IFERROR(ROUND(Table_Data_Table_1[[#This Row],[Adjusted\nSale Price]]/Table_Data_Table_1[[#This Row],[Resid\nSq Ft]],2),\"\")","v":""},{"$f":"IFERROR(IF(VLOOKUP(Table_Data_Table_1[[#This Row],[Item ID]],DataTable,11,FALSE)=0,\"N/A\",Table_Data_Table_1[[#This Row],[Adjusted\nSale Price]]/VLOOKUP(Table_Data_Table_1[[#This Row],[Item ID]],DataTable,11,FALSE)),\"\")","v":""},{"$f":"IF(IFERROR(VLOOKUP(Table_Data_Table_1[[#This Row],[Item ID]],DataTable,17,FALSE),\"\")=0,\"\",IFERROR(VLOOKUP(Table_Data_Table_1[[#This Row],[Item ID]],DataTable,17,FALSE),\"\"))","v":""}]
["",null,{"$f":"IF(Table_Data_Table_1[[#This Row],[Item ID]]=\"\",\"\",IFERROR(VLOOKUP(Table_Data_Table_1[[#This Row],[Item ID]],DataTable,16,FALSE),\"\"))","v":""},null,null,null,null,{"$f":"IF(Table_Data_Table_1[[#This Row],[Valuation Method]]=\"Vacant\",VLOOKUP(Table_Data_Table_1[[#This Row],[Item ID]],DataTable,6,FALSE)-VLOOKUP(Table_Data_Table_1[[#This Row],[Item ID]],DataTable,13,FALSE),IF(Table_Data_Table_1[[#This Row],[Valuation Method]]=\"Abstraction\",VLOOKUP(Table_Data_Table_1[[#This Row],[Item ID]],DataTable,6,FALSE)-VLOOKUP(Table_Data_Table_1[[#This Row],[Item ID]],DataTable,13,FALSE),IF(Table_Data_Table_1[[#This Row],[Valuation Method]]=\"Allocation\",VLOOKUP(Table_Data_Table_1[[#This Row],[Item ID]],DataTable,6,FALSE)*I231,\"\")))","v":""},{"$f":"IF(Table_Data_Table_1[[#This Row],[Valuation Method]]=\"Vacant\",\"N/A\",IF(Table_Data_Table_1[[#This Row],[Valuation Method]]=\"Abstraction\",Table_Data_Table_1[[#This Row],[Land\nResidual]]/VLOOKUP(Table_Data_Table_1[[#This Row],[Item ID]],DataTable,6,FALSE),IF(Table_Data_Table_1[[#This Row],[Valuation Method]]=\"Allocation\",'Global Settings'!$H$20,\"\")))","v":""},{"$f":"IFERROR(ROUND(Table_Data_Table_1[[#This Row],[Resid\nSq Ft]]/43560,3),\"\")","v":""},{"$f":"IF(Table_Data_Table_1[[#This Row],[Item ID]]=\"\",\"\",IFERROR(VLOOKUP(Table_Data_Table_1[[#This Row],[Item ID]],DataTable,10,FALSE)-VLOOKUP(Table_Data_Table_1[[#This Row],[Item ID]],DataTable,12,FALSE),\"\"))","v":""},{"$f":"IFERROR(Table_Data_Table_1[[#This Row],[Land\nResidual]]/Table_Data_Table_1[[#This Row],[Resid\nAcre]],\"\")","v":""},{"$f":"IFERROR(ROUND(Table_Data_Table_1[[#This Row],[Land\nResidual]]/Table_Data_Table_1[[#This Row],[Resid\nSq Ft]],2),\"\")","v":""},{"$f":"IF(Table_Data_Table_1[[#This Row],[Item ID]]=\"\",\"\",ROUND(DAYS360(Table_Data_Table_1[[#This Row],[Sale Date]],'Global Settings'!$H$5)/30,0))","v":""},{"$f":"IFERROR(IF(AND(Table_Data_Table_1[[#This Row],[Months To\nMid-Point]]<12.01,Table_Data_Table_1[[#This Row],[Months To\nMid-Point]]>-13),0,(Table_Data_Table_1[[#This Row],[Months To\nMid-Point]]*'Global Settings'!$H$6)),\"\")","v":""},{"$f":"IFERROR(Table_Data_Table_1[[#This Row],[Land\nResidual]]*(Table_Data_Table_1[[#This Row],[Time\nAdjust]]+1),\"\")","v":""},{"$f":"IFERROR(Table_Data_Table_1[[#This Row],[Adjusted\nSale Price]]/Table_Data_Table_1[[#This Row],[Resid\nAcre]],\"\")","v":""},{"$f":"IFERROR(ROUND(Table_Data_Table_1[[#This Row],[Adjusted\nSale Price]]/Table_Data_Table_1[[#This Row],[Resid\nSq Ft]],2),\"\")","v":""},{"$f":"IFERROR(IF(VLOOKUP(Table_Data_Table_1[[#This Row],[Item ID]],DataTable,11,FALSE)=0,\"N/A\",Table_Data_Table_1[[#This Row],[Adjusted\nSale Price]]/VLOOKUP(Table_Data_Table_1[[#This Row],[Item ID]],DataTable,11,FALSE)),\"\")","v":""},{"$f":"IF(IFERROR(VLOOKUP(Table_Data_Table_1[[#This Row],[Item ID]],DataTable,17,FALSE),\"\")=0,\"\",IFERROR(VLOOKUP(Table_Data_Table_1[[#This Row],[Item ID]],DataTable,17,FALSE),\"\"))","v":""}]
["",null,{"$f":"IF(Table_Data_Table_1[[#This Row],[Item ID]]=\"\",\"\",IFERROR(VLOOKUP(Table_Data_Table_1[[#This Row],[Item ID]],DataTable,16,FALSE),\"\"))","v":""},null,null,null,null,{"$f":"IF(Table_Data_Table_1[[#This Row],[Valuation Method]]=\"Vacant\",VLOOKUP(Table_Data_Table_1[[#This Row],[Item ID]],DataTable,6,FALSE)-VLOOKUP(Table_Data_Table_1[[#This Row],[Item ID]],DataTable,13,FALSE),IF(Table_Data_Table_1[[#This Row],[Valuation Method]]=\"Abstraction\",VLOOKUP(Table_Data_Table_1[[#This Row],[Item ID]],DataTable,6,FALSE)-VLOOKUP(Table_Data_Table_1[[#This Row],[Item ID]],DataTable,13,FALSE),IF(Table_Data_Table_1[[#This Row],[Valuation Method]]=\"Allocation\",VLOOKUP(Table_Data_Table_1[[#This Row],[Item ID]],DataTable,6,FALSE)*I232,\"\")))","v":""},{"$f":"IF(Table_Data_Table_1[[#This Row],[Valuation Method]]=\"Vacant\",\"N/A\",IF(Table_Data_Table_1[[#This Row],[Valuation Method]]=\"Abstraction\",Table_Data_Table_1[[#This Row],[Land\nResidual]]/VLOOKUP(Table_Data_Table_1[[#This Row],[Item ID]],DataTable,6,FALSE),IF(Table_Data_Table_1[[#This Row],[Valuation Method]]=\"Allocation\",'Global Settings'!$H$20,\"\")))","v":""},{"$f":"IFERROR(ROUND(Table_Data_Table_1[[#This Row],[Resid\nSq Ft]]/43560,3),\"\")","v":""},{"$f":"IF(Table_Data_Table_1[[#This Row],[Item ID]]=\"\",\"\",IFERROR(VLOOKUP(Table_Data_Table_1[[#This Row],[Item ID]],DataTable,10,FALSE)-VLOOKUP(Table_Data_Table_1[[#This Row],[Item ID]],DataTable,12,FALSE),\"\"))","v":""},{"$f":"IFERROR(Table_Data_Table_1[[#This Row],[Land\nResidual]]/Table_Data_Table_1[[#This Row],[Resid\nAcre]],\"\")","v":""},{"$f":"IFERROR(ROUND(Table_Data_Table_1[[#This Row],[Land\nResidual]]/Table_Data_Table_1[[#This Row],[Resid\nSq Ft]],2),\"\")","v":""},{"$f":"IF(Table_Data_Table_1[[#This Row],[Item ID]]=\"\",\"\",ROUND(DAYS360(Table_Data_Table_1[[#This Row],[Sale Date]],'Global Settings'!$H$5)/30,0))","v":""},{"$f":"IFERROR(IF(AND(Table_Data_Table_1[[#This Row],[Months To\nMid-Point]]<12.01,Table_Data_Table_1[[#This Row],[Months To\nMid-Point]]>-13),0,(Table_Data_Table_1[[#This Row],[Months To\nMid-Point]]*'Global Settings'!$H$6)),\"\")","v":""},{"$f":"IFERROR(Table_Data_Table_1[[#This Row],[Land\nResidual]]*(Table_Data_Table_1[[#This Row],[Time\nAdjust]]+1),\"\")","v":""},{"$f":"IFERROR(Table_Data_Table_1[[#This Row],[Adjusted\nSale Price]]/Table_Data_Table_1[[#This Row],[Resid\nAcre]],\"\")","v":""},{"$f":"IFERROR(ROUND(Table_Data_Table_1[[#This Row],[Adjusted\nSale Price]]/Table_Data_Table_1[[#This Row],[Resid\nSq Ft]],2),\"\")","v":""},{"$f":"IFERROR(IF(VLOOKUP(Table_Data_Table_1[[#This Row],[Item ID]],DataTable,11,FALSE)=0,\"N/A\",Table_Data_Table_1[[#This Row],[Adjusted\nSale Price]]/VLOOKUP(Table_Data_Table_1[[#This Row],[Item ID]],DataTable,11,FALSE)),\"\")","v":""},{"$f":"IF(IFERROR(VLOOKUP(Table_Data_Table_1[[#This Row],[Item ID]],DataTable,17,FALSE),\"\")=0,\"\",IFERROR(VLOOKUP(Table_Data_Table_1[[#This Row],[Item ID]],DataTable,17,FALSE),\"\"))","v":""}]
["",null,{"$f":"IF(Table_Data_Table_1[[#This Row],[Item ID]]=\"\",\"\",IFERROR(VLOOKUP(Table_Data_Table_1[[#This Row],[Item ID]],DataTable,16,FALSE),\"\"))","v":""},null,null,null,null,{"$f":"IF(Table_Data_Table_1[[#This Row],[Valuation Method]]=\"Vacant\",VLOOKUP(Table_Data_Table_1[[#This Row],[Item ID]],DataTable,6,FALSE)-VLOOKUP(Table_Data_Table_1[[#This Row],[Item ID]],DataTable,13,FALSE),IF(Table_Data_Table_1[[#This Row],[Valuation Method]]=\"Abstraction\",VLOOKUP(Table_Data_Table_1[[#This Row],[Item ID]],DataTable,6,FALSE)-VLOOKUP(Table_Data_Table_1[[#This Row],[Item ID]],DataTable,13,FALSE),IF(Table_Data_Table_1[[#This Row],[Valuation Method]]=\"Allocation\",VLOOKUP(Table_Data_Table_1[[#This Row],[Item ID]],DataTable,6,FALSE)*I233,\"\")))","v":""},{"$f":"IF(Table_Data_Table_1[[#This Row],[Valuation Method]]=\"Vacant\",\"N/A\",IF(Table_Data_Table_1[[#This Row],[Valuation Method]]=\"Abstraction\",Table_Data_Table_1[[#This Row],[Land\nResidual]]/VLOOKUP(Table_Data_Table_1[[#This Row],[Item ID]],DataTable,6,FALSE),IF(Table_Data_Table_1[[#This Row],[Valuation Method]]=\"Allocation\",'Global Settings'!$H$20,\"\")))","v":""},{"$f":"IFERROR(ROUND(Table_Data_Table_1[[#This Row],[Resid\nSq Ft]]/43560,3),\"\")","v":""},{"$f":"IF(Table_Data_Table_1[[#This Row],[Item ID]]=\"\",\"\",IFERROR(VLOOKUP(Table_Data_Table_1[[#This Row],[Item ID]],DataTable,10,FALSE)-VLOOKUP(Table_Data_Table_1[[#This Row],[Item ID]],DataTable,12,FALSE),\"\"))","v":""},{"$f":"IFERROR(Table_Data_Table_1[[#This Row],[Land\nResidual]]/Table_Data_Table_1[[#This Row],[Resid\nAcre]],\"\")","v":""},{"$f":"IFERROR(ROUND(Table_Data_Table_1[[#This Row],[Land\nResidual]]/Table_Data_Table_1[[#This Row],[Resid\nSq Ft]],2),\"\")","v":""},{"$f":"IF(Table_Data_Table_1[[#This Row],[Item ID]]=\"\",\"\",ROUND(DAYS360(Table_Data_Table_1[[#This Row],[Sale Date]],'Global Settings'!$H$5)/30,0))","v":""},{"$f":"IFERROR(IF(AND(Table_Data_Table_1[[#This Row],[Months To\nMid-Point]]<12.01,Table_Data_Table_1[[#This Row],[Months To\nMid-Point]]>-13),0,(Table_Data_Table_1[[#This Row],[Months To\nMid-Point]]*'Global Settings'!$H$6)),\"\")","v":""},{"$f":"IFERROR(Table_Data_Table_1[[#This Row],[Land\nResidual]]*(Table_Data_Table_1[[#This Row],[Time\nAdjust]]+1),\"\")","v":""},{"$f":"IFERROR(Table_Data_Table_1[[#This Row],[Adjusted\nSale Price]]/Table_Data_Table_1[[#This Row],[Resid\nAcre]],\"\")","v":""},{"$f":"IFERROR(ROUND(Table_Data_Table_1[[#This Row],[Adjusted\nSale Price]]/Table_Data_Table_1[[#This Row],[Resid\nSq Ft]],2),\"\")","v":""},{"$f":"IFERROR(IF(VLOOKUP(Table_Data_Table_1[[#This Row],[Item ID]],DataTable,11,FALSE)=0,\"N/A\",Table_Data_Table_1[[#This Row],[Adjusted\nSale Price]]/VLOOKUP(Table_Data_Table_1[[#This Row],[Item ID]],DataTable,11,FALSE)),\"\")","v":""},{"$f":"IF(IFERROR(VLOOKUP(Table_Data_Table_1[[#This Row],[Item ID]],DataTable,17,FALSE),\"\")=0,\"\",IFERROR(VLOOKUP(Table_Data_Table_1[[#This Row],[Item ID]],DataTable,17,FALSE),\"\"))","v":""}]
["",null,{"$f":"IF(Table_Data_Table_1[[#This Row],[Item ID]]=\"\",\"\",IFERROR(VLOOKUP(Table_Data_Table_1[[#This Row],[Item ID]],DataTable,16,FALSE),\"\"))","v":""},null,null,null,null,{"$f":"IF(Table_Data_Table_1[[#This Row],[Valuation Method]]=\"Vacant\",VLOOKUP(Table_Data_Table_1[[#This Row],[Item ID]],DataTable,6,FALSE)-VLOOKUP(Table_Data_Table_1[[#This Row],[Item ID]],DataTable,13,FALSE),IF(Table_Data_Table_1[[#This Row],[Valuation Method]]=\"Abstraction\",VLOOKUP(Table_Data_Table_1[[#This Row],[Item ID]],DataTable,6,FALSE)-VLOOKUP(Table_Data_Table_1[[#This Row],[Item ID]],DataTable,13,FALSE),IF(Table_Data_Table_1[[#This Row],[Valuation Method]]=\"Allocation\",VLOOKUP(Table_Data_Table_1[[#This Row],[Item ID]],DataTable,6,FALSE)*I234,\"\")))","v":""},{"$f":"IF(Table_Data_Table_1[[#This Row],[Valuation Method]]=\"Vacant\",\"N/A\",IF(Table_Data_Table_1[[#This Row],[Valuation Method]]=\"Abstraction\",Table_Data_Table_1[[#This Row],[Land\nResidual]]/VLOOKUP(Table_Data_Table_1[[#This Row],[Item ID]],DataTable,6,FALSE),IF(Table_Data_Table_1[[#This Row],[Valuation Method]]=\"Allocation\",'Global Settings'!$H$20,\"\")))","v":""},{"$f":"IFERROR(ROUND(Table_Data_Table_1[[#This Row],[Resid\nSq Ft]]/43560,3),\"\")","v":""},{"$f":"IF(Table_Data_Table_1[[#This Row],[Item ID]]=\"\",\"\",IFERROR(VLOOKUP(Table_Data_Table_1[[#This Row],[Item ID]],DataTable,10,FALSE)-VLOOKUP(Table_Data_Table_1[[#This Row],[Item ID]],DataTable,12,FALSE),\"\"))","v":""},{"$f":"IFERROR(Table_Data_Table_1[[#This Row],[Land\nResidual]]/Table_Data_Table_1[[#This Row],[Resid\nAcre]],\"\")","v":""},{"$f":"IFERROR(ROUND(Table_Data_Table_1[[#This Row],[Land\nResidual]]/Table_Data_Table_1[[#This Row],[Resid\nSq Ft]],2),\"\")","v":""},{"$f":"IF(Table_Data_Table_1[[#This Row],[Item ID]]=\"\",\"\",ROUND(DAYS360(Table_Data_Table_1[[#This Row],[Sale Date]],'Global Settings'!$H$5)/30,0))","v":""},{"$f":"IFERROR(IF(AND(Table_Data_Table_1[[#This Row],[Months To\nMid-Point]]<12.01,Table_Data_Table_1[[#This Row],[Months To\nMid-Point]]>-13),0,(Table_Data_Table_1[[#This Row],[Months To\nMid-Point]]*'Global Settings'!$H$6)),\"\")","v":""},{"$f":"IFERROR(Table_Data_Table_1[[#This Row],[Land\nResidual]]*(Table_Data_Table_1[[#This Row],[Time\nAdjust]]+1),\"\")","v":""},{"$f":"IFERROR(Table_Data_Table_1[[#This Row],[Adjusted\nSale Price]]/Table_Data_Table_1[[#This Row],[Resid\nAcre]],\"\")","v":""},{"$f":"IFERROR(ROUND(Table_Data_Table_1[[#This Row],[Adjusted\nSale Price]]/Table_Data_Table_1[[#This Row],[Resid\nSq Ft]],2),\"\")","v":""},{"$f":"IFERROR(IF(VLOOKUP(Table_Data_Table_1[[#This Row],[Item ID]],DataTable,11,FALSE)=0,\"N/A\",Table_Data_Table_1[[#This Row],[Adjusted\nSale Price]]/VLOOKUP(Table_Data_Table_1[[#This Row],[Item ID]],DataTable,11,FALSE)),\"\")","v":""},{"$f":"IF(IFERROR(VLOOKUP(Table_Data_Table_1[[#This Row],[Item ID]],DataTable,17,FALSE),\"\")=0,\"\",IFERROR(VLOOKUP(Table_Data_Table_1[[#This Row],[Item ID]],DataTable,17,FALSE),\"\"))","v":""}]
["",null,{"$f":"IF(Table_Data_Table_1[[#This Row],[Item ID]]=\"\",\"\",IFERROR(VLOOKUP(Table_Data_Table_1[[#This Row],[Item ID]],DataTable,16,FALSE),\"\"))","v":""},null,null,null,null,{"$f":"IF(Table_Data_Table_1[[#This Row],[Valuation Method]]=\"Vacant\",VLOOKUP(Table_Data_Table_1[[#This Row],[Item ID]],DataTable,6,FALSE)-VLOOKUP(Table_Data_Table_1[[#This Row],[Item ID]],DataTable,13,FALSE),IF(Table_Data_Table_1[[#This Row],[Valuation Method]]=\"Abstraction\",VLOOKUP(Table_Data_Table_1[[#This Row],[Item ID]],DataTable,6,FALSE)-VLOOKUP(Table_Data_Table_1[[#This Row],[Item ID]],DataTable,13,FALSE),IF(Table_Data_Table_1[[#This Row],[Valuation Method]]=\"Allocation\",VLOOKUP(Table_Data_Table_1[[#This Row],[Item ID]],DataTable,6,FALSE)*I235,\"\")))","v":""},{"$f":"IF(Table_Data_Table_1[[#This Row],[Valuation Method]]=\"Vacant\",\"N/A\",IF(Table_Data_Table_1[[#This Row],[Valuation Method]]=\"Abstraction\",Table_Data_Table_1[[#This Row],[Land\nResidual]]/VLOOKUP(Table_Data_Table_1[[#This Row],[Item ID]],DataTable,6,FALSE),IF(Table_Data_Table_1[[#This Row],[Valuation Method]]=\"Allocation\",'Global Settings'!$H$20,\"\")))","v":""},{"$f":"IFERROR(ROUND(Table_Data_Table_1[[#This Row],[Resid\nSq Ft]]/43560,3),\"\")","v":""},{"$f":"IF(Table_Data_Table_1[[#This Row],[Item ID]]=\"\",\"\",IFERROR(VLOOKUP(Table_Data_Table_1[[#This Row],[Item ID]],DataTable,10,FALSE)-VLOOKUP(Table_Data_Table_1[[#This Row],[Item ID]],DataTable,12,FALSE),\"\"))","v":""},{"$f":"IFERROR(Table_Data_Table_1[[#This Row],[Land\nResidual]]/Table_Data_Table_1[[#This Row],[Resid\nAcre]],\"\")","v":""},{"$f":"IFERROR(ROUND(Table_Data_Table_1[[#This Row],[Land\nResidual]]/Table_Data_Table_1[[#This Row],[Resid\nSq Ft]],2),\"\")","v":""},{"$f":"IF(Table_Data_Table_1[[#This Row],[Item ID]]=\"\",\"\",ROUND(DAYS360(Table_Data_Table_1[[#This Row],[Sale Date]],'Global Settings'!$H$5)/30,0))","v":""},{"$f":"IFERROR(IF(AND(Table_Data_Table_1[[#This Row],[Months To\nMid-Point]]<12.01,Table_Data_Table_1[[#This Row],[Months To\nMid-Point]]>-13),0,(Table_Data_Table_1[[#This Row],[Months To\nMid-Point]]*'Global Settings'!$H$6)),\"\")","v":""},{"$f":"IFERROR(Table_Data_Table_1[[#This Row],[Land\nResidual]]*(Table_Data_Table_1[[#This Row],[Time\nAdjust]]+1),\"\")","v":""},{"$f":"IFERROR(Table_Data_Table_1[[#This Row],[Adjusted\nSale Price]]/Table_Data_Table_1[[#This Row],[Resid\nAcre]],\"\")","v":""},{"$f":"IFERROR(ROUND(Table_Data_Table_1[[#This Row],[Adjusted\nSale Price]]/Table_Data_Table_1[[#This Row],[Resid\nSq Ft]],2),\"\")","v":""},{"$f":"IFERROR(IF(VLOOKUP(Table_Data_Table_1[[#This Row],[Item ID]],DataTable,11,FALSE)=0,\"N/A\",Table_Data_Table_1[[#This Row],[Adjusted\nSale Price]]/VLOOKUP(Table_Data_Table_1[[#This Row],[Item ID]],DataTable,11,FALSE)),\"\")","v":""},{"$f":"IF(IFERROR(VLOOKUP(Table_Data_Table_1[[#This Row],[Item ID]],DataTable,17,FALSE),\"\")=0,\"\",IFERROR(VLOOKUP(Table_Data_Table_1[[#This Row],[Item ID]],DataTable,17,FALSE),\"\"))","v":""}]
["",null,{"$f":"IF(Table_Data_Table_1[[#This Row],[Item ID]]=\"\",\"\",IFERROR(VLOOKUP(Table_Data_Table_1[[#This Row],[Item ID]],DataTable,16,FALSE),\"\"))","v":""},null,null,null,null,{"$f":"IF(Table_Data_Table_1[[#This Row],[Valuation Method]]=\"Vacant\",VLOOKUP(Table_Data_Table_1[[#This Row],[Item ID]],DataTable,6,FALSE)-VLOOKUP(Table_Data_Table_1[[#This Row],[Item ID]],DataTable,13,FALSE),IF(Table_Data_Table_1[[#This Row],[Valuation Method]]=\"Abstraction\",VLOOKUP(Table_Data_Table_1[[#This Row],[Item ID]],DataTable,6,FALSE)-VLOOKUP(Table_Data_Table_1[[#This Row],[Item ID]],DataTable,13,FALSE),IF(Table_Data_Table_1[[#This Row],[Valuation Method]]=\"Allocation\",VLOOKUP(Table_Data_Table_1[[#This Row],[Item ID]],DataTable,6,FALSE)*I236,\"\")))","v":""},{"$f":"IF(Table_Data_Table_1[[#This Row],[Valuation Method]]=\"Vacant\",\"N/A\",IF(Table_Data_Table_1[[#This Row],[Valuation Method]]=\"Abstraction\",Table_Data_Table_1[[#This Row],[Land\nResidual]]/VLOOKUP(Table_Data_Table_1[[#This Row],[Item ID]],DataTable,6,FALSE),IF(Table_Data_Table_1[[#This Row],[Valuation Method]]=\"Allocation\",'Global Settings'!$H$20,\"\")))","v":""},{"$f":"IFERROR(ROUND(Table_Data_Table_1[[#This Row],[Resid\nSq Ft]]/43560,3),\"\")","v":""},{"$f":"IF(Table_Data_Table_1[[#This Row],[Item ID]]=\"\",\"\",IFERROR(VLOOKUP(Table_Data_Table_1[[#This Row],[Item ID]],DataTable,10,FALSE)-VLOOKUP(Table_Data_Table_1[[#This Row],[Item ID]],DataTable,12,FALSE),\"\"))","v":""},{"$f":"IFERROR(Table_Data_Table_1[[#This Row],[Land\nResidual]]/Table_Data_Table_1[[#This Row],[Resid\nAcre]],\"\")","v":""},{"$f":"IFERROR(ROUND(Table_Data_Table_1[[#This Row],[Land\nResidual]]/Table_Data_Table_1[[#This Row],[Resid\nSq Ft]],2),\"\")","v":""},{"$f":"IF(Table_Data_Table_1[[#This Row],[Item ID]]=\"\",\"\",ROUND(DAYS360(Table_Data_Table_1[[#This Row],[Sale Date]],'Global Settings'!$H$5)/30,0))","v":""},{"$f":"IFERROR(IF(AND(Table_Data_Table_1[[#This Row],[Months To\nMid-Point]]<12.01,Table_Data_Table_1[[#This Row],[Months To\nMid-Point]]>-13),0,(Table_Data_Table_1[[#This Row],[Months To\nMid-Point]]*'Global Settings'!$H$6)),\"\")","v":""},{"$f":"IFERROR(Table_Data_Table_1[[#This Row],[Land\nResidual]]*(Table_Data_Table_1[[#This Row],[Time\nAdjust]]+1),\"\")","v":""},{"$f":"IFERROR(Table_Data_Table_1[[#This Row],[Adjusted\nSale Price]]/Table_Data_Table_1[[#This Row],[Resid\nAcre]],\"\")","v":""},{"$f":"IFERROR(ROUND(Table_Data_Table_1[[#This Row],[Adjusted\nSale Price]]/Table_Data_Table_1[[#This Row],[Resid\nSq Ft]],2),\"\")","v":""},{"$f":"IFERROR(IF(VLOOKUP(Table_Data_Table_1[[#This Row],[Item ID]],DataTable,11,FALSE)=0,\"N/A\",Table_Data_Table_1[[#This Row],[Adjusted\nSale Price]]/VLOOKUP(Table_Data_Table_1[[#This Row],[Item ID]],DataTable,11,FALSE)),\"\")","v":""},{"$f":"IF(IFERROR(VLOOKUP(Table_Data_Table_1[[#This Row],[Item ID]],DataTable,17,FALSE),\"\")=0,\"\",IFERROR(VLOOKUP(Table_Data_Table_1[[#This Row],[Item ID]],DataTable,17,FALSE),\"\"))","v":""}]
["",null,{"$f":"IF(Table_Data_Table_1[[#This Row],[Item ID]]=\"\",\"\",IFERROR(VLOOKUP(Table_Data_Table_1[[#This Row],[Item ID]],DataTable,16,FALSE),\"\"))","v":""},null,null,null,null,{"$f":"IF(Table_Data_Table_1[[#This Row],[Valuation Method]]=\"Vacant\",VLOOKUP(Table_Data_Table_1[[#This Row],[Item ID]],DataTable,6,FALSE)-VLOOKUP(Table_Data_Table_1[[#This Row],[Item ID]],DataTable,13,FALSE),IF(Table_Data_Table_1[[#This Row],[Valuation Method]]=\"Abstraction\",VLOOKUP(Table_Data_Table_1[[#This Row],[Item ID]],DataTable,6,FALSE)-VLOOKUP(Table_Data_Table_1[[#This Row],[Item ID]],DataTable,13,FALSE),IF(Table_Data_Table_1[[#This Row],[Valuation Method]]=\"Allocation\",VLOOKUP(Table_Data_Table_1[[#This Row],[Item ID]],DataTable,6,FALSE)*I237,\"\")))","v":""},{"$f":"IF(Table_Data_Table_1[[#This Row],[Valuation Method]]=\"Vacant\",\"N/A\",IF(Table_Data_Table_1[[#This Row],[Valuation Method]]=\"Abstraction\",Table_Data_Table_1[[#This Row],[Land\nResidual]]/VLOOKUP(Table_Data_Table_1[[#This Row],[Item ID]],DataTable,6,FALSE),IF(Table_Data_Table_1[[#This Row],[Valuation Method]]=\"Allocation\",'Global Settings'!$H$20,\"\")))","v":""},{"$f":"IFERROR(ROUND(Table_Data_Table_1[[#This Row],[Resid\nSq Ft]]/43560,3),\"\")","v":""},{"$f":"IF(Table_Data_Table_1[[#This Row],[Item ID]]=\"\",\"\",IFERROR(VLOOKUP(Table_Data_Table_1[[#This Row],[Item ID]],DataTable,10,FALSE)-VLOOKUP(Table_Data_Table_1[[#This Row],[Item ID]],DataTable,12,FALSE),\"\"))","v":""},{"$f":"IFERROR(Table_Data_Table_1[[#This Row],[Land\nResidual]]/Table_Data_Table_1[[#This Row],[Resid\nAcre]],\"\")","v":""},{"$f":"IFERROR(ROUND(Table_Data_Table_1[[#This Row],[Land\nResidual]]/Table_Data_Table_1[[#This Row],[Resid\nSq Ft]],2),\"\")","v":""},{"$f":"IF(Table_Data_Table_1[[#This Row],[Item ID]]=\"\",\"\",ROUND(DAYS360(Table_Data_Table_1[[#This Row],[Sale Date]],'Global Settings'!$H$5)/30,0))","v":""},{"$f":"IFERROR(IF(AND(Table_Data_Table_1[[#This Row],[Months To\nMid-Point]]<12.01,Table_Data_Table_1[[#This Row],[Months To\nMid-Point]]>-13),0,(Table_Data_Table_1[[#This Row],[Months To\nMid-Point]]*'Global Settings'!$H$6)),\"\")","v":""},{"$f":"IFERROR(Table_Data_Table_1[[#This Row],[Land\nResidual]]*(Table_Data_Table_1[[#This Row],[Time\nAdjust]]+1),\"\")","v":""},{"$f":"IFERROR(Table_Data_Table_1[[#This Row],[Adjusted\nSale Price]]/Table_Data_Table_1[[#This Row],[Resid\nAcre]],\"\")","v":""},{"$f":"IFERROR(ROUND(Table_Data_Table_1[[#This Row],[Adjusted\nSale Price]]/Table_Data_Table_1[[#This Row],[Resid\nSq Ft]],2),\"\")","v":""},{"$f":"IFERROR(IF(VLOOKUP(Table_Data_Table_1[[#This Row],[Item ID]],DataTable,11,FALSE)=0,\"N/A\",Table_Data_Table_1[[#This Row],[Adjusted\nSale Price]]/VLOOKUP(Table_Data_Table_1[[#This Row],[Item ID]],DataTable,11,FALSE)),\"\")","v":""},{"$f":"IF(IFERROR(VLOOKUP(Table_Data_Table_1[[#This Row],[Item ID]],DataTable,17,FALSE),\"\")=0,\"\",IFERROR(VLOOKUP(Table_Data_Table_1[[#This Row],[Item ID]],DataTable,17,FALSE),\"\"))","v":""}]
["",null,{"$f":"IF(Table_Data_Table_1[[#This Row],[Item ID]]=\"\",\"\",IFERROR(VLOOKUP(Table_Data_Table_1[[#This Row],[Item ID]],DataTable,16,FALSE),\"\"))","v":""},null,null,null,null,{"$f":"IF(Table_Data_Table_1[[#This Row],[Valuation Method]]=\"Vacant\",VLOOKUP(Table_Data_Table_1[[#This Row],[Item ID]],DataTable,6,FALSE)-VLOOKUP(Table_Data_Table_1[[#This Row],[Item ID]],DataTable,13,FALSE),IF(Table_Data_Table_1[[#This Row],[Valuation Method]]=\"Abstraction\",VLOOKUP(Table_Data_Table_1[[#This Row],[Item ID]],DataTable,6,FALSE)-VLOOKUP(Table_Data_Table_1[[#This Row],[Item ID]],DataTable,13,FALSE),IF(Table_Data_Table_1[[#This Row],[Valuation Method]]=\"Allocation\",VLOOKUP(Table_Data_Table_1[[#This Row],[Item ID]],DataTable,6,FALSE)*I238,\"\")))","v":""},{"$f":"IF(Table_Data_Table_1[[#This Row],[Valuation Method]]=\"Vacant\",\"N/A\",IF(Table_Data_Table_1[[#This Row],[Valuation Method]]=\"Abstraction\",Table_Data_Table_1[[#This Row],[Land\nResidual]]/VLOOKUP(Table_Data_Table_1[[#This Row],[Item ID]],DataTable,6,FALSE),IF(Table_Data_Table_1[[#This Row],[Valuation Method]]=\"Allocation\",'Global Settings'!$H$20,\"\")))","v":""},{"$f":"IFERROR(ROUND(Table_Data_Table_1[[#This Row],[Resid\nSq Ft]]/43560,3),\"\")","v":""},{"$f":"IF(Table_Data_Table_1[[#This Row],[Item ID]]=\"\",\"\",IFERROR(VLOOKUP(Table_Data_Table_1[[#This Row],[Item ID]],DataTable,10,FALSE)-VLOOKUP(Table_Data_Table_1[[#This Row],[Item ID]],DataTable,12,FALSE),\"\"))","v":""},{"$f":"IFERROR(Table_Data_Table_1[[#This Row],[Land\nResidual]]/Table_Data_Table_1[[#This Row],[Resid\nAcre]],\"\")","v":""},{"$f":"IFERROR(ROUND(Table_Data_Table_1[[#This Row],[Land\nResidual]]/Table_Data_Table_1[[#This Row],[Resid\nSq Ft]],2),\"\")","v":""},{"$f":"IF(Table_Data_Table_1[[#This Row],[Item ID]]=\"\",\"\",ROUND(DAYS360(Table_Data_Table_1[[#This Row],[Sale Date]],'Global Settings'!$H$5)/30,0))","v":""},{"$f":"IFERROR(IF(AND(Table_Data_Table_1[[#This Row],[Months To\nMid-Point]]<12.01,Table_Data_Table_1[[#This Row],[Months To\nMid-Point]]>-13),0,(Table_Data_Table_1[[#This Row],[Months To\nMid-Point]]*'Global Settings'!$H$6)),\"\")","v":""},{"$f":"IFERROR(Table_Data_Table_1[[#This Row],[Land\nResidual]]*(Table_Data_Table_1[[#This Row],[Time\nAdjust]]+1),\"\")","v":""},{"$f":"IFERROR(Table_Data_Table_1[[#This Row],[Adjusted\nSale Price]]/Table_Data_Table_1[[#This Row],[Resid\nAcre]],\"\")","v":""},{"$f":"IFERROR(ROUND(Table_Data_Table_1[[#This Row],[Adjusted\nSale Price]]/Table_Data_Table_1[[#This Row],[Resid\nSq Ft]],2),\"\")","v":""},{"$f":"IFERROR(IF(VLOOKUP(Table_Data_Table_1[[#This Row],[Item ID]],DataTable,11,FALSE)=0,\"N/A\",Table_Data_Table_1[[#This Row],[Adjusted\nSale Price]]/VLOOKUP(Table_Data_Table_1[[#This Row],[Item ID]],DataTable,11,FALSE)),\"\")","v":""},{"$f":"IF(IFERROR(VLOOKUP(Table_Data_Table_1[[#This Row],[Item ID]],DataTable,17,FALSE),\"\")=0,\"\",IFERROR(VLOOKUP(Table_Data_Table_1[[#This Row],[Item ID]],DataTable,17,FALSE),\"\"))","v":""}]
["",null,{"$f":"IF(Table_Data_Table_1[[#This Row],[Item ID]]=\"\",\"\",IFERROR(VLOOKUP(Table_Data_Table_1[[#This Row],[Item ID]],DataTable,16,FALSE),\"\"))","v":""},null,null,null,null,{"$f":"IF(Table_Data_Table_1[[#This Row],[Valuation Method]]=\"Vacant\",VLOOKUP(Table_Data_Table_1[[#This Row],[Item ID]],DataTable,6,FALSE)-VLOOKUP(Table_Data_Table_1[[#This Row],[Item ID]],DataTable,13,FALSE),IF(Table_Data_Table_1[[#This Row],[Valuation Method]]=\"Abstraction\",VLOOKUP(Table_Data_Table_1[[#This Row],[Item ID]],DataTable,6,FALSE)-VLOOKUP(Table_Data_Table_1[[#This Row],[Item ID]],DataTable,13,FALSE),IF(Table_Data_Table_1[[#This Row],[Valuation Method]]=\"Allocation\",VLOOKUP(Table_Data_Table_1[[#This Row],[Item ID]],DataTable,6,FALSE)*I239,\"\")))","v":""},{"$f":"IF(Table_Data_Table_1[[#This Row],[Valuation Method]]=\"Vacant\",\"N/A\",IF(Table_Data_Table_1[[#This Row],[Valuation Method]]=\"Abstraction\",Table_Data_Table_1[[#This Row],[Land\nResidual]]/VLOOKUP(Table_Data_Table_1[[#This Row],[Item ID]],DataTable,6,FALSE),IF(Table_Data_Table_1[[#This Row],[Valuation Method]]=\"Allocation\",'Global Settings'!$H$20,\"\")))","v":""},{"$f":"IFERROR(ROUND(Table_Data_Table_1[[#This Row],[Resid\nSq Ft]]/43560,3),\"\")","v":""},{"$f":"IF(Table_Data_Table_1[[#This Row],[Item ID]]=\"\",\"\",IFERROR(VLOOKUP(Table_Data_Table_1[[#This Row],[Item ID]],DataTable,10,FALSE)-VLOOKUP(Table_Data_Table_1[[#This Row],[Item ID]],DataTable,12,FALSE),\"\"))","v":""},{"$f":"IFERROR(Table_Data_Table_1[[#This Row],[Land\nResidual]]/Table_Data_Table_1[[#This Row],[Resid\nAcre]],\"\")","v":""},{"$f":"IFERROR(ROUND(Table_Data_Table_1[[#This Row],[Land\nResidual]]/Table_Data_Table_1[[#This Row],[Resid\nSq Ft]],2),\"\")","v":""},{"$f":"IF(Table_Data_Table_1[[#This Row],[Item ID]]=\"\",\"\",ROUND(DAYS360(Table_Data_Table_1[[#This Row],[Sale Date]],'Global Settings'!$H$5)/30,0))","v":""},{"$f":"IFERROR(IF(AND(Table_Data_Table_1[[#This Row],[Months To\nMid-Point]]<12.01,Table_Data_Table_1[[#This Row],[Months To\nMid-Point]]>-13),0,(Table_Data_Table_1[[#This Row],[Months To\nMid-Point]]*'Global Settings'!$H$6)),\"\")","v":""},{"$f":"IFERROR(Table_Data_Table_1[[#This Row],[Land\nResidual]]*(Table_Data_Table_1[[#This Row],[Time\nAdjust]]+1),\"\")","v":""},{"$f":"IFERROR(Table_Data_Table_1[[#This Row],[Adjusted\nSale Price]]/Table_Data_Table_1[[#This Row],[Resid\nAcre]],\"\")","v":""},{"$f":"IFERROR(ROUND(Table_Data_Table_1[[#This Row],[Adjusted\nSale Price]]/Table_Data_Table_1[[#This Row],[Resid\nSq Ft]],2),\"\")","v":""},{"$f":"IFERROR(IF(VLOOKUP(Table_Data_Table_1[[#This Row],[Item ID]],DataTable,11,FALSE)=0,\"N/A\",Table_Data_Table_1[[#This Row],[Adjusted\nSale Price]]/VLOOKUP(Table_Data_Table_1[[#This Row],[Item ID]],DataTable,11,FALSE)),\"\")","v":""},{"$f":"IF(IFERROR(VLOOKUP(Table_Data_Table_1[[#This Row],[Item ID]],DataTable,17,FALSE),\"\")=0,\"\",IFERROR(VLOOKUP(Table_Data_Table_1[[#This Row],[Item ID]],DataTable,17,FALSE),\"\"))","v":""}]
["",null,{"$f":"IF(Table_Data_Table_1[[#This Row],[Item ID]]=\"\",\"\",IFERROR(VLOOKUP(Table_Data_Table_1[[#This Row],[Item ID]],DataTable,16,FALSE),\"\"))","v":""},null,null,null,null,{"$f":"IF(Table_Data_Table_1[[#This Row],[Valuation Method]]=\"Vacant\",VLOOKUP(Table_Data_Table_1[[#This Row],[Item ID]],DataTable,6,FALSE)-VLOOKUP(Table_Data_Table_1[[#This Row],[Item ID]],DataTable,13,FALSE),IF(Table_Data_Table_1[[#This Row],[Valuation Method]]=\"Abstraction\",VLOOKUP(Table_Data_Table_1[[#This Row],[Item ID]],DataTable,6,FALSE)-VLOOKUP(Table_Data_Table_1[[#This Row],[Item ID]],DataTable,13,FALSE),IF(Table_Data_Table_1[[#This Row],[Valuation Method]]=\"Allocation\",VLOOKUP(Table_Data_Table_1[[#This Row],[Item ID]],DataTable,6,FALSE)*I240,\"\")))","v":""},{"$f":"IF(Table_Data_Table_1[[#This Row],[Valuation Method]]=\"Vacant\",\"N/A\",IF(Table_Data_Table_1[[#This Row],[Valuation Method]]=\"Abstraction\",Table_Data_Table_1[[#This Row],[Land\nResidual]]/VLOOKUP(Table_Data_Table_1[[#This Row],[Item ID]],DataTable,6,FALSE),IF(Table_Data_Table_1[[#This Row],[Valuation Method]]=\"Allocation\",'Global Settings'!$H$20,\"\")))","v":""},{"$f":"IFERROR(ROUND(Table_Data_Table_1[[#This Row],[Resid\nSq Ft]]/43560,3),\"\")","v":""},{"$f":"IF(Table_Data_Table_1[[#This Row],[Item ID]]=\"\",\"\",IFERROR(VLOOKUP(Table_Data_Table_1[[#This Row],[Item ID]],DataTable,10,FALSE)-VLOOKUP(Table_Data_Table_1[[#This Row],[Item ID]],DataTable,12,FALSE),\"\"))","v":""},{"$f":"IFERROR(Table_Data_Table_1[[#This Row],[Land\nResidual]]/Table_Data_Table_1[[#This Row],[Resid\nAcre]],\"\")","v":""},{"$f":"IFERROR(ROUND(Table_Data_Table_1[[#This Row],[Land\nResidual]]/Table_Data_Table_1[[#This Row],[Resid\nSq Ft]],2),\"\")","v":""},{"$f":"IF(Table_Data_Table_1[[#This Row],[Item ID]]=\"\",\"\",ROUND(DAYS360(Table_Data_Table_1[[#This Row],[Sale Date]],'Global Settings'!$H$5)/30,0))","v":""},{"$f":"IFERROR(IF(AND(Table_Data_Table_1[[#This Row],[Months To\nMid-Point]]<12.01,Table_Data_Table_1[[#This Row],[Months To\nMid-Point]]>-13),0,(Table_Data_Table_1[[#This Row],[Months To\nMid-Point]]*'Global Settings'!$H$6)),\"\")","v":""},{"$f":"IFERROR(Table_Data_Table_1[[#This Row],[Land\nResidual]]*(Table_Data_Table_1[[#This Row],[Time\nAdjust]]+1),\"\")","v":""},{"$f":"IFERROR(Table_Data_Table_1[[#This Row],[Adjusted\nSale Price]]/Table_Data_Table_1[[#This Row],[Resid\nAcre]],\"\")","v":""},{"$f":"IFERROR(ROUND(Table_Data_Table_1[[#This Row],[Adjusted\nSale Price]]/Table_Data_Table_1[[#This Row],[Resid\nSq Ft]],2),\"\")","v":""},{"$f":"IFERROR(IF(VLOOKUP(Table_Data_Table_1[[#This Row],[Item ID]],DataTable,11,FALSE)=0,\"N/A\",Table_Data_Table_1[[#This Row],[Adjusted\nSale Price]]/VLOOKUP(Table_Data_Table_1[[#This Row],[Item ID]],DataTable,11,FALSE)),\"\")","v":""},{"$f":"IF(IFERROR(VLOOKUP(Table_Data_Table_1[[#This Row],[Item ID]],DataTable,17,FALSE),\"\")=0,\"\",IFERROR(VLOOKUP(Table_Data_Table_1[[#This Row],[Item ID]],DataTable,17,FALSE),\"\"))","v":""}]
["",null,{"$f":"IF(Table_Data_Table_1[[#This Row],[Item ID]]=\"\",\"\",IFERROR(VLOOKUP(Table_Data_Table_1[[#This Row],[Item ID]],DataTable,16,FALSE),\"\"))","v":""},null,null,null,null,{"$f":"IF(Table_Data_Table_1[[#This Row],[Valuation Method]]=\"Vacant\",VLOOKUP(Table_Data_Table_1[[#This Row],[Item ID]],DataTable,6,FALSE)-VLOOKUP(Table_Data_Table_1[[#This Row],[Item ID]],DataTable,13,FALSE),IF(Table_Data_Table_1[[#This Row],[Valuation Method]]=\"Abstraction\",VLOOKUP(Table_Data_Table_1[[#This Row],[Item ID]],DataTable,6,FALSE)-VLOOKUP(Table_Data_Table_1[[#This Row],[Item ID]],DataTable,13,FALSE),IF(Table_Data_Table_1[[#This Row],[Valuation Method]]=\"Allocation\",VLOOKUP(Table_Data_Table_1[[#This Row],[Item ID]],DataTable,6,FALSE)*I241,\"\")))","v":""},{"$f":"IF(Table_Data_Table_1[[#This Row],[Valuation Method]]=\"Vacant\",\"N/A\",IF(Table_Data_Table_1[[#This Row],[Valuation Method]]=\"Abstraction\",Table_Data_Table_1[[#This Row],[Land\nResidual]]/VLOOKUP(Table_Data_Table_1[[#This Row],[Item ID]],DataTable,6,FALSE),IF(Table_Data_Table_1[[#This Row],[Valuation Method]]=\"Allocation\",'Global Settings'!$H$20,\"\")))","v":""},{"$f":"IFERROR(ROUND(Table_Data_Table_1[[#This Row],[Resid\nSq Ft]]/43560,3),\"\")","v":""},{"$f":"IF(Table_Data_Table_1[[#This Row],[Item ID]]=\"\",\"\",IFERROR(VLOOKUP(Table_Data_Table_1[[#This Row],[Item ID]],DataTable,10,FALSE)-VLOOKUP(Table_Data_Table_1[[#This Row],[Item ID]],DataTable,12,FALSE),\"\"))","v":""},{"$f":"IFERROR(Table_Data_Table_1[[#This Row],[Land\nResidual]]/Table_Data_Table_1[[#This Row],[Resid\nAcre]],\"\")","v":""},{"$f":"IFERROR(ROUND(Table_Data_Table_1[[#This Row],[Land\nResidual]]/Table_Data_Table_1[[#This Row],[Resid\nSq Ft]],2),\"\")","v":""},{"$f":"IF(Table_Data_Table_1[[#This Row],[Item ID]]=\"\",\"\",ROUND(DAYS360(Table_Data_Table_1[[#This Row],[Sale Date]],'Global Settings'!$H$5)/30,0))","v":""},{"$f":"IFERROR(IF(AND(Table_Data_Table_1[[#This Row],[Months To\nMid-Point]]<12.01,Table_Data_Table_1[[#This Row],[Months To\nMid-Point]]>-13),0,(Table_Data_Table_1[[#This Row],[Months To\nMid-Point]]*'Global Settings'!$H$6)),\"\")","v":""},{"$f":"IFERROR(Table_Data_Table_1[[#This Row],[Land\nResidual]]*(Table_Data_Table_1[[#This Row],[Time\nAdjust]]+1),\"\")","v":""},{"$f":"IFERROR(Table_Data_Table_1[[#This Row],[Adjusted\nSale Price]]/Table_Data_Table_1[[#This Row],[Resid\nAcre]],\"\")","v":""},{"$f":"IFERROR(ROUND(Table_Data_Table_1[[#This Row],[Adjusted\nSale Price]]/Table_Data_Table_1[[#This Row],[Resid\nSq Ft]],2),\"\")","v":""},{"$f":"IFERROR(IF(VLOOKUP(Table_Data_Table_1[[#This Row],[Item ID]],DataTable,11,FALSE)=0,\"N/A\",Table_Data_Table_1[[#This Row],[Adjusted\nSale Price]]/VLOOKUP(Table_Data_Table_1[[#This Row],[Item ID]],DataTable,11,FALSE)),\"\")","v":""},{"$f":"IF(IFERROR(VLOOKUP(Table_Data_Table_1[[#This Row],[Item ID]],DataTable,17,FALSE),\"\")=0,\"\",IFERROR(VLOOKUP(Table_Data_Table_1[[#This Row],[Item ID]],DataTable,17,FALSE),\"\"))","v":""}]
["",null,{"$f":"IF(Table_Data_Table_1[[#This Row],[Item ID]]=\"\",\"\",IFERROR(VLOOKUP(Table_Data_Table_1[[#This Row],[Item ID]],DataTable,16,FALSE),\"\"))","v":""},null,null,null,null,{"$f":"IF(Table_Data_Table_1[[#This Row],[Valuation Method]]=\"Vacant\",VLOOKUP(Table_Data_Table_1[[#This Row],[Item ID]],DataTable,6,FALSE)-VLOOKUP(Table_Data_Table_1[[#This Row],[Item ID]],DataTable,13,FALSE),IF(Table_Data_Table_1[[#This Row],[Valuation Method]]=\"Abstraction\",VLOOKUP(Table_Data_Table_1[[#This Row],[Item ID]],DataTable,6,FALSE)-VLOOKUP(Table_Data_Table_1[[#This Row],[Item ID]],DataTable,13,FALSE),IF(Table_Data_Table_1[[#This Row],[Valuation Method]]=\"Allocation\",VLOOKUP(Table_Data_Table_1[[#This Row],[Item ID]],DataTable,6,FALSE)*I242,\"\")))","v":""},{"$f":"IF(Table_Data_Table_1[[#This Row],[Valuation Method]]=\"Vacant\",\"N/A\",IF(Table_Data_Table_1[[#This Row],[Valuation Method]]=\"Abstraction\",Table_Data_Table_1[[#This Row],[Land\nResidual]]/VLOOKUP(Table_Data_Table_1[[#This Row],[Item ID]],DataTable,6,FALSE),IF(Table_Data_Table_1[[#This Row],[Valuation Method]]=\"Allocation\",'Global Settings'!$H$20,\"\")))","v":""},{"$f":"IFERROR(ROUND(Table_Data_Table_1[[#This Row],[Resid\nSq Ft]]/43560,3),\"\")","v":""},{"$f":"IF(Table_Data_Table_1[[#This Row],[Item ID]]=\"\",\"\",IFERROR(VLOOKUP(Table_Data_Table_1[[#This Row],[Item ID]],DataTable,10,FALSE)-VLOOKUP(Table_Data_Table_1[[#This Row],[Item ID]],DataTable,12,FALSE),\"\"))","v":""},{"$f":"IFERROR(Table_Data_Table_1[[#This Row],[Land\nResidual]]/Table_Data_Table_1[[#This Row],[Resid\nAcre]],\"\")","v":""},{"$f":"IFERROR(ROUND(Table_Data_Table_1[[#This Row],[Land\nResidual]]/Table_Data_Table_1[[#This Row],[Resid\nSq Ft]],2),\"\")","v":""},{"$f":"IF(Table_Data_Table_1[[#This Row],[Item ID]]=\"\",\"\",ROUND(DAYS360(Table_Data_Table_1[[#This Row],[Sale Date]],'Global Settings'!$H$5)/30,0))","v":""},{"$f":"IFERROR(IF(AND(Table_Data_Table_1[[#This Row],[Months To\nMid-Point]]<12.01,Table_Data_Table_1[[#This Row],[Months To\nMid-Point]]>-13),0,(Table_Data_Table_1[[#This Row],[Months To\nMid-Point]]*'Global Settings'!$H$6)),\"\")","v":""},{"$f":"IFERROR(Table_Data_Table_1[[#This Row],[Land\nResidual]]*(Table_Data_Table_1[[#This Row],[Time\nAdjust]]+1),\"\")","v":""},{"$f":"IFERROR(Table_Data_Table_1[[#This Row],[Adjusted\nSale Price]]/Table_Data_Table_1[[#This Row],[Resid\nAcre]],\"\")","v":""},{"$f":"IFERROR(ROUND(Table_Data_Table_1[[#This Row],[Adjusted\nSale Price]]/Table_Data_Table_1[[#This Row],[Resid\nSq Ft]],2),\"\")","v":""},{"$f":"IFERROR(IF(VLOOKUP(Table_Data_Table_1[[#This Row],[Item ID]],DataTable,11,FALSE)=0,\"N/A\",Table_Data_Table_1[[#This Row],[Adjusted\nSale Price]]/VLOOKUP(Table_Data_Table_1[[#This Row],[Item ID]],DataTable,11,FALSE)),\"\")","v":""},{"$f":"IF(IFERROR(VLOOKUP(Table_Data_Table_1[[#This Row],[Item ID]],DataTable,17,FALSE),\"\")=0,\"\",IFERROR(VLOOKUP(Table_Data_Table_1[[#This Row],[Item ID]],DataTable,17,FALSE),\"\"))","v":""}]
["",null,{"$f":"IF(Table_Data_Table_1[[#This Row],[Item ID]]=\"\",\"\",IFERROR(VLOOKUP(Table_Data_Table_1[[#This Row],[Item ID]],DataTable,16,FALSE),\"\"))","v":""},null,null,null,null,{"$f":"IF(Table_Data_Table_1[[#This Row],[Valuation Method]]=\"Vacant\",VLOOKUP(Table_Data_Table_1[[#This Row],[Item ID]],DataTable,6,FALSE)-VLOOKUP(Table_Data_Table_1[[#This Row],[Item ID]],DataTable,13,FALSE),IF(Table_Data_Table_1[[#This Row],[Valuation Method]]=\"Abstraction\",VLOOKUP(Table_Data_Table_1[[#This Row],[Item ID]],DataTable,6,FALSE)-VLOOKUP(Table_Data_Table_1[[#This Row],[Item ID]],DataTable,13,FALSE),IF(Table_Data_Table_1[[#This Row],[Valuation Method]]=\"Allocation\",VLOOKUP(Table_Data_Table_1[[#This Row],[Item ID]],DataTable,6,FALSE)*I243,\"\")))","v":""},{"$f":"IF(Table_Data_Table_1[[#This Row],[Valuation Method]]=\"Vacant\",\"N/A\",IF(Table_Data_Table_1[[#This Row],[Valuation Method]]=\"Abstraction\",Table_Data_Table_1[[#This Row],[Land\nResidual]]/VLOOKUP(Table_Data_Table_1[[#This Row],[Item ID]],DataTable,6,FALSE),IF(Table_Data_Table_1[[#This Row],[Valuation Method]]=\"Allocation\",'Global Settings'!$H$20,\"\")))","v":""},{"$f":"IFERROR(ROUND(Table_Data_Table_1[[#This Row],[Resid\nSq Ft]]/43560,3),\"\")","v":""},{"$f":"IF(Table_Data_Table_1[[#This Row],[Item ID]]=\"\",\"\",IFERROR(VLOOKUP(Table_Data_Table_1[[#This Row],[Item ID]],DataTable,10,FALSE)-VLOOKUP(Table_Data_Table_1[[#This Row],[Item ID]],DataTable,12,FALSE),\"\"))","v":""},{"$f":"IFERROR(Table_Data_Table_1[[#This Row],[Land\nResidual]]/Table_Data_Table_1[[#This Row],[Resid\nAcre]],\"\")","v":""},{"$f":"IFERROR(ROUND(Table_Data_Table_1[[#This Row],[Land\nResidual]]/Table_Data_Table_1[[#This Row],[Resid\nSq Ft]],2),\"\")","v":""},{"$f":"IF(Table_Data_Table_1[[#This Row],[Item ID]]=\"\",\"\",ROUND(DAYS360(Table_Data_Table_1[[#This Row],[Sale Date]],'Global Settings'!$H$5)/30,0))","v":""},{"$f":"IFERROR(IF(AND(Table_Data_Table_1[[#This Row],[Months To\nMid-Point]]<12.01,Table_Data_Table_1[[#This Row],[Months To\nMid-Point]]>-13),0,(Table_Data_Table_1[[#This Row],[Months To\nMid-Point]]*'Global Settings'!$H$6)),\"\")","v":""},{"$f":"IFERROR(Table_Data_Table_1[[#This Row],[Land\nResidual]]*(Table_Data_Table_1[[#This Row],[Time\nAdjust]]+1),\"\")","v":""},{"$f":"IFERROR(Table_Data_Table_1[[#This Row],[Adjusted\nSale Price]]/Table_Data_Table_1[[#This Row],[Resid\nAcre]],\"\")","v":""},{"$f":"IFERROR(ROUND(Table_Data_Table_1[[#This Row],[Adjusted\nSale Price]]/Table_Data_Table_1[[#This Row],[Resid\nSq Ft]],2),\"\")","v":""},{"$f":"IFERROR(IF(VLOOKUP(Table_Data_Table_1[[#This Row],[Item ID]],DataTable,11,FALSE)=0,\"N/A\",Table_Data_Table_1[[#This Row],[Adjusted\nSale Price]]/VLOOKUP(Table_Data_Table_1[[#This Row],[Item ID]],DataTable,11,FALSE)),\"\")","v":""},{"$f":"IF(IFERROR(VLOOKUP(Table_Data_Table_1[[#This Row],[Item ID]],DataTable,17,FALSE),\"\")=0,\"\",IFERROR(VLOOKUP(Table_Data_Table_1[[#This Row],[Item ID]],DataTable,17,FALSE),\"\"))","v":""}]
["",null,{"$f":"IF(Table_Data_Table_1[[#This Row],[Item ID]]=\"\",\"\",IFERROR(VLOOKUP(Table_Data_Table_1[[#This Row],[Item ID]],DataTable,16,FALSE),\"\"))","v":""},null,null,null,null,{"$f":"IF(Table_Data_Table_1[[#This Row],[Valuation Method]]=\"Vacant\",VLOOKUP(Table_Data_Table_1[[#This Row],[Item ID]],DataTable,6,FALSE)-VLOOKUP(Table_Data_Table_1[[#This Row],[Item ID]],DataTable,13,FALSE),IF(Table_Data_Table_1[[#This Row],[Valuation Method]]=\"Abstraction\",VLOOKUP(Table_Data_Table_1[[#This Row],[Item ID]],DataTable,6,FALSE)-VLOOKUP(Table_Data_Table_1[[#This Row],[Item ID]],DataTable,13,FALSE),IF(Table_Data_Table_1[[#This Row],[Valuation Method]]=\"Allocation\",VLOOKUP(Table_Data_Table_1[[#This Row],[Item ID]],DataTable,6,FALSE)*I244,\"\")))","v":""},{"$f":"IF(Table_Data_Table_1[[#This Row],[Valuation Method]]=\"Vacant\",\"N/A\",IF(Table_Data_Table_1[[#This Row],[Valuation Method]]=\"Abstraction\",Table_Data_Table_1[[#This Row],[Land\nResidual]]/VLOOKUP(Table_Data_Table_1[[#This Row],[Item ID]],DataTable,6,FALSE),IF(Table_Data_Table_1[[#This Row],[Valuation Method]]=\"Allocation\",'Global Settings'!$H$20,\"\")))","v":""},{"$f":"IFERROR(ROUND(Table_Data_Table_1[[#This Row],[Resid\nSq Ft]]/43560,3),\"\")","v":""},{"$f":"IF(Table_Data_Table_1[[#This Row],[Item ID]]=\"\",\"\",IFERROR(VLOOKUP(Table_Data_Table_1[[#This Row],[Item ID]],DataTable,10,FALSE)-VLOOKUP(Table_Data_Table_1[[#This Row],[Item ID]],DataTable,12,FALSE),\"\"))","v":""},{"$f":"IFERROR(Table_Data_Table_1[[#This Row],[Land\nResidual]]/Table_Data_Table_1[[#This Row],[Resid\nAcre]],\"\")","v":""},{"$f":"IFERROR(ROUND(Table_Data_Table_1[[#This Row],[Land\nResidual]]/Table_Data_Table_1[[#This Row],[Resid\nSq Ft]],2),\"\")","v":""},{"$f":"IF(Table_Data_Table_1[[#This Row],[Item ID]]=\"\",\"\",ROUND(DAYS360(Table_Data_Table_1[[#This Row],[Sale Date]],'Global Settings'!$H$5)/30,0))","v":""},{"$f":"IFERROR(IF(AND(Table_Data_Table_1[[#This Row],[Months To\nMid-Point]]<12.01,Table_Data_Table_1[[#This Row],[Months To\nMid-Point]]>-13),0,(Table_Data_Table_1[[#This Row],[Months To\nMid-Point]]*'Global Settings'!$H$6)),\"\")","v":""},{"$f":"IFERROR(Table_Data_Table_1[[#This Row],[Land\nResidual]]*(Table_Data_Table_1[[#This Row],[Time\nAdjust]]+1),\"\")","v":""},{"$f":"IFERROR(Table_Data_Table_1[[#This Row],[Adjusted\nSale Price]]/Table_Data_Table_1[[#This Row],[Resid\nAcre]],\"\")","v":""},{"$f":"IFERROR(ROUND(Table_Data_Table_1[[#This Row],[Adjusted\nSale Price]]/Table_Data_Table_1[[#This Row],[Resid\nSq Ft]],2),\"\")","v":""},{"$f":"IFERROR(IF(VLOOKUP(Table_Data_Table_1[[#This Row],[Item ID]],DataTable,11,FALSE)=0,\"N/A\",Table_Data_Table_1[[#This Row],[Adjusted\nSale Price]]/VLOOKUP(Table_Data_Table_1[[#This Row],[Item ID]],DataTable,11,FALSE)),\"\")","v":""},{"$f":"IF(IFERROR(VLOOKUP(Table_Data_Table_1[[#This Row],[Item ID]],DataTable,17,FALSE),\"\")=0,\"\",IFERROR(VLOOKUP(Table_Data_Table_1[[#This Row],[Item ID]],DataTable,17,FALSE),\"\"))","v":""}]
["",null,{"$f":"IF(Table_Data_Table_1[[#This Row],[Item ID]]=\"\",\"\",IFERROR(VLOOKUP(Table_Data_Table_1[[#This Row],[Item ID]],DataTable,16,FALSE),\"\"))","v":""},null,null,null,null,{"$f":"IF(Table_Data_Table_1[[#This Row],[Valuation Method]]=\"Vacant\",VLOOKUP(Table_Data_Table_1[[#This Row],[Item ID]],DataTable,6,FALSE)-VLOOKUP(Table_Data_Table_1[[#This Row],[Item ID]],DataTable,13,FALSE),IF(Table_Data_Table_1[[#This Row],[Valuation Method]]=\"Abstraction\",VLOOKUP(Table_Data_Table_1[[#This Row],[Item ID]],DataTable,6,FALSE)-VLOOKUP(Table_Data_Table_1[[#This Row],[Item ID]],DataTable,13,FALSE),IF(Table_Data_Table_1[[#This Row],[Valuation Method]]=\"Allocation\",VLOOKUP(Table_Data_Table_1[[#This Row],[Item ID]],DataTable,6,FALSE)*I245,\"\")))","v":""},{"$f":"IF(Table_Data_Table_1[[#This Row],[Valuation Method]]=\"Vacant\",\"N/A\",IF(Table_Data_Table_1[[#This Row],[Valuation Method]]=\"Abstraction\",Table_Data_Table_1[[#This Row],[Land\nResidual]]/VLOOKUP(Table_Data_Table_1[[#This Row],[Item ID]],DataTable,6,FALSE),IF(Table_Data_Table_1[[#This Row],[Valuation Method]]=\"Allocation\",'Global Settings'!$H$20,\"\")))","v":""},{"$f":"IFERROR(ROUND(Table_Data_Table_1[[#This Row],[Resid\nSq Ft]]/43560,3),\"\")","v":""},{"$f":"IF(Table_Data_Table_1[[#This Row],[Item ID]]=\"\",\"\",IFERROR(VLOOKUP(Table_Data_Table_1[[#This Row],[Item ID]],DataTable,10,FALSE)-VLOOKUP(Table_Data_Table_1[[#This Row],[Item ID]],DataTable,12,FALSE),\"\"))","v":""},{"$f":"IFERROR(Table_Data_Table_1[[#This Row],[Land\nResidual]]/Table_Data_Table_1[[#This Row],[Resid\nAcre]],\"\")","v":""},{"$f":"IFERROR(ROUND(Table_Data_Table_1[[#This Row],[Land\nResidual]]/Table_Data_Table_1[[#This Row],[Resid\nSq Ft]],2),\"\")","v":""},{"$f":"IF(Table_Data_Table_1[[#This Row],[Item ID]]=\"\",\"\",ROUND(DAYS360(Table_Data_Table_1[[#This Row],[Sale Date]],'Global Settings'!$H$5)/30,0))","v":""},{"$f":"IFERROR(IF(AND(Table_Data_Table_1[[#This Row],[Months To\nMid-Point]]<12.01,Table_Data_Table_1[[#This Row],[Months To\nMid-Point]]>-13),0,(Table_Data_Table_1[[#This Row],[Months To\nMid-Point]]*'Global Settings'!$H$6)),\"\")","v":""},{"$f":"IFERROR(Table_Data_Table_1[[#This Row],[Land\nResidual]]*(Table_Data_Table_1[[#This Row],[Time\nAdjust]]+1),\"\")","v":""},{"$f":"IFERROR(Table_Data_Table_1[[#This Row],[Adjusted\nSale Price]]/Table_Data_Table_1[[#This Row],[Resid\nAcre]],\"\")","v":""},{"$f":"IFERROR(ROUND(Table_Data_Table_1[[#This Row],[Adjusted\nSale Price]]/Table_Data_Table_1[[#This Row],[Resid\nSq Ft]],2),\"\")","v":""},{"$f":"IFERROR(IF(VLOOKUP(Table_Data_Table_1[[#This Row],[Item ID]],DataTable,11,FALSE)=0,\"N/A\",Table_Data_Table_1[[#This Row],[Adjusted\nSale Price]]/VLOOKUP(Table_Data_Table_1[[#This Row],[Item ID]],DataTable,11,FALSE)),\"\")","v":""},{"$f":"IF(IFERROR(VLOOKUP(Table_Data_Table_1[[#This Row],[Item ID]],DataTable,17,FALSE),\"\")=0,\"\",IFERROR(VLOOKUP(Table_Data_Table_1[[#This Row],[Item ID]],DataTable,17,FALSE),\"\"))","v":""}]
["",null,{"$f":"IF(Table_Data_Table_1[[#This Row],[Item ID]]=\"\",\"\",IFERROR(VLOOKUP(Table_Data_Table_1[[#This Row],[Item ID]],DataTable,16,FALSE),\"\"))","v":""},null,null,null,null,{"$f":"IF(Table_Data_Table_1[[#This Row],[Valuation Method]]=\"Vacant\",VLOOKUP(Table_Data_Table_1[[#This Row],[Item ID]],DataTable,6,FALSE)-VLOOKUP(Table_Data_Table_1[[#This Row],[Item ID]],DataTable,13,FALSE),IF(Table_Data_Table_1[[#This Row],[Valuation Method]]=\"Abstraction\",VLOOKUP(Table_Data_Table_1[[#This Row],[Item ID]],DataTable,6,FALSE)-VLOOKUP(Table_Data_Table_1[[#This Row],[Item ID]],DataTable,13,FALSE),IF(Table_Data_Table_1[[#This Row],[Valuation Method]]=\"Allocation\",VLOOKUP(Table_Data_Table_1[[#This Row],[Item ID]],DataTable,6,FALSE)*I246,\"\")))","v":""},{"$f":"IF(Table_Data_Table_1[[#This Row],[Valuation Method]]=\"Vacant\",\"N/A\",IF(Table_Data_Table_1[[#This Row],[Valuation Method]]=\"Abstraction\",Table_Data_Table_1[[#This Row],[Land\nResidual]]/VLOOKUP(Table_Data_Table_1[[#This Row],[Item ID]],DataTable,6,FALSE),IF(Table_Data_Table_1[[#This Row],[Valuation Method]]=\"Allocation\",'Global Settings'!$H$20,\"\")))","v":""},{"$f":"IFERROR(ROUND(Table_Data_Table_1[[#This Row],[Resid\nSq Ft]]/43560,3),\"\")","v":""},{"$f":"IF(Table_Data_Table_1[[#This Row],[Item ID]]=\"\",\"\",IFERROR(VLOOKUP(Table_Data_Table_1[[#This Row],[Item ID]],DataTable,10,FALSE)-VLOOKUP(Table_Data_Table_1[[#This Row],[Item ID]],DataTable,12,FALSE),\"\"))","v":""},{"$f":"IFERROR(Table_Data_Table_1[[#This Row],[Land\nResidual]]/Table_Data_Table_1[[#This Row],[Resid\nAcre]],\"\")","v":""},{"$f":"IFERROR(ROUND(Table_Data_Table_1[[#This Row],[Land\nResidual]]/Table_Data_Table_1[[#This Row],[Resid\nSq Ft]],2),\"\")","v":""},{"$f":"IF(Table_Data_Table_1[[#This Row],[Item ID]]=\"\",\"\",ROUND(DAYS360(Table_Data_Table_1[[#This Row],[Sale Date]],'Global Settings'!$H$5)/30,0))","v":""},{"$f":"IFERROR(IF(AND(Table_Data_Table_1[[#This Row],[Months To\nMid-Point]]<12.01,Table_Data_Table_1[[#This Row],[Months To\nMid-Point]]>-13),0,(Table_Data_Table_1[[#This Row],[Months To\nMid-Point]]*'Global Settings'!$H$6)),\"\")","v":""},{"$f":"IFERROR(Table_Data_Table_1[[#This Row],[Land\nResidual]]*(Table_Data_Table_1[[#This Row],[Time\nAdjust]]+1),\"\")","v":""},{"$f":"IFERROR(Table_Data_Table_1[[#This Row],[Adjusted\nSale Price]]/Table_Data_Table_1[[#This Row],[Resid\nAcre]],\"\")","v":""},{"$f":"IFERROR(ROUND(Table_Data_Table_1[[#This Row],[Adjusted\nSale Price]]/Table_Data_Table_1[[#This Row],[Resid\nSq Ft]],2),\"\")","v":""},{"$f":"IFERROR(IF(VLOOKUP(Table_Data_Table_1[[#This Row],[Item ID]],DataTable,11,FALSE)=0,\"N/A\",Table_Data_Table_1[[#This Row],[Adjusted\nSale Price]]/VLOOKUP(Table_Data_Table_1[[#This Row],[Item ID]],DataTable,11,FALSE)),\"\")","v":""},{"$f":"IF(IFERROR(VLOOKUP(Table_Data_Table_1[[#This Row],[Item ID]],DataTable,17,FALSE),\"\")=0,\"\",IFERROR(VLOOKUP(Table_Data_Table_1[[#This Row],[Item ID]],DataTable,17,FALSE),\"\"))","v":""}]
["",null,{"$f":"IF(Table_Data_Table_1[[#This Row],[Item ID]]=\"\",\"\",IFERROR(VLOOKUP(Table_Data_Table_1[[#This Row],[Item ID]],DataTable,16,FALSE),\"\"))","v":""},null,null,null,null,{"$f":"IF(Table_Data_Table_1[[#This Row],[Valuation Method]]=\"Vacant\",VLOOKUP(Table_Data_Table_1[[#This Row],[Item ID]],DataTable,6,FALSE)-VLOOKUP(Table_Data_Table_1[[#This Row],[Item ID]],DataTable,13,FALSE),IF(Table_Data_Table_1[[#This Row],[Valuation Method]]=\"Abstraction\",VLOOKUP(Table_Data_Table_1[[#This Row],[Item ID]],DataTable,6,FALSE)-VLOOKUP(Table_Data_Table_1[[#This Row],[Item ID]],DataTable,13,FALSE),IF(Table_Data_Table_1[[#This Row],[Valuation Method]]=\"Allocation\",VLOOKUP(Table_Data_Table_1[[#This Row],[Item ID]],DataTable,6,FALSE)*I247,\"\")))","v":""},{"$f":"IF(Table_Data_Table_1[[#This Row],[Valuation Method]]=\"Vacant\",\"N/A\",IF(Table_Data_Table_1[[#This Row],[Valuation Method]]=\"Abstraction\",Table_Data_Table_1[[#This Row],[Land\nResidual]]/VLOOKUP(Table_Data_Table_1[[#This Row],[Item ID]],DataTable,6,FALSE),IF(Table_Data_Table_1[[#This Row],[Valuation Method]]=\"Allocation\",'Global Settings'!$H$20,\"\")))","v":""},{"$f":"IFERROR(ROUND(Table_Data_Table_1[[#This Row],[Resid\nSq Ft]]/43560,3),\"\")","v":""},{"$f":"IF(Table_Data_Table_1[[#This Row],[Item ID]]=\"\",\"\",IFERROR(VLOOKUP(Table_Data_Table_1[[#This Row],[Item ID]],DataTable,10,FALSE)-VLOOKUP(Table_Data_Table_1[[#This Row],[Item ID]],DataTable,12,FALSE),\"\"))","v":""},{"$f":"IFERROR(Table_Data_Table_1[[#This Row],[Land\nResidual]]/Table_Data_Table_1[[#This Row],[Resid\nAcre]],\"\")","v":""},{"$f":"IFERROR(ROUND(Table_Data_Table_1[[#This Row],[Land\nResidual]]/Table_Data_Table_1[[#This Row],[Resid\nSq Ft]],2),\"\")","v":""},{"$f":"IF(Table_Data_Table_1[[#This Row],[Item ID]]=\"\",\"\",ROUND(DAYS360(Table_Data_Table_1[[#This Row],[Sale Date]],'Global Settings'!$H$5)/30,0))","v":""},{"$f":"IFERROR(IF(AND(Table_Data_Table_1[[#This Row],[Months To\nMid-Point]]<12.01,Table_Data_Table_1[[#This Row],[Months To\nMid-Point]]>-13),0,(Table_Data_Table_1[[#This Row],[Months To\nMid-Point]]*'Global Settings'!$H$6)),\"\")","v":""},{"$f":"IFERROR(Table_Data_Table_1[[#This Row],[Land\nResidual]]*(Table_Data_Table_1[[#This Row],[Time\nAdjust]]+1),\"\")","v":""},{"$f":"IFERROR(Table_Data_Table_1[[#This Row],[Adjusted\nSale Price]]/Table_Data_Table_1[[#This Row],[Resid\nAcre]],\"\")","v":""},{"$f":"IFERROR(ROUND(Table_Data_Table_1[[#This Row],[Adjusted\nSale Price]]/Table_Data_Table_1[[#This Row],[Resid\nSq Ft]],2),\"\")","v":""},{"$f":"IFERROR(IF(VLOOKUP(Table_Data_Table_1[[#This Row],[Item ID]],DataTable,11,FALSE)=0,\"N/A\",Table_Data_Table_1[[#This Row],[Adjusted\nSale Price]]/VLOOKUP(Table_Data_Table_1[[#This Row],[Item ID]],DataTable,11,FALSE)),\"\")","v":""},{"$f":"IF(IFERROR(VLOOKUP(Table_Data_Table_1[[#This Row],[Item ID]],DataTable,17,FALSE),\"\")=0,\"\",IFERROR(VLOOKUP(Table_Data_Table_1[[#This Row],[Item ID]],DataTable,17,FALSE),\"\"))","v":""}]
["",null,{"$f":"IF(Table_Data_Table_1[[#This Row],[Item ID]]=\"\",\"\",IFERROR(VLOOKUP(Table_Data_Table_1[[#This Row],[Item ID]],DataTable,16,FALSE),\"\"))","v":""},null,null,null,null,{"$f":"IF(Table_Data_Table_1[[#This Row],[Valuation Method]]=\"Vacant\",VLOOKUP(Table_Data_Table_1[[#This Row],[Item ID]],DataTable,6,FALSE)-VLOOKUP(Table_Data_Table_1[[#This Row],[Item ID]],DataTable,13,FALSE),IF(Table_Data_Table_1[[#This Row],[Valuation Method]]=\"Abstraction\",VLOOKUP(Table_Data_Table_1[[#This Row],[Item ID]],DataTable,6,FALSE)-VLOOKUP(Table_Data_Table_1[[#This Row],[Item ID]],DataTable,13,FALSE),IF(Table_Data_Table_1[[#This Row],[Valuation Method]]=\"Allocation\",VLOOKUP(Table_Data_Table_1[[#This Row],[Item ID]],DataTable,6,FALSE)*I248,\"\")))","v":""},{"$f":"IF(Table_Data_Table_1[[#This Row],[Valuation Method]]=\"Vacant\",\"N/A\",IF(Table_Data_Table_1[[#This Row],[Valuation Method]]=\"Abstraction\",Table_Data_Table_1[[#This Row],[Land\nResidual]]/VLOOKUP(Table_Data_Table_1[[#This Row],[Item ID]],DataTable,6,FALSE),IF(Table_Data_Table_1[[#This Row],[Valuation Method]]=\"Allocation\",'Global Settings'!$H$20,\"\")))","v":""},{"$f":"IFERROR(ROUND(Table_Data_Table_1[[#This Row],[Resid\nSq Ft]]/43560,3),\"\")","v":""},{"$f":"IF(Table_Data_Table_1[[#This Row],[Item ID]]=\"\",\"\",IFERROR(VLOOKUP(Table_Data_Table_1[[#This Row],[Item ID]],DataTable,10,FALSE)-VLOOKUP(Table_Data_Table_1[[#This Row],[Item ID]],DataTable,12,FALSE),\"\"))","v":""},{"$f":"IFERROR(Table_Data_Table_1[[#This Row],[Land\nResidual]]/Table_Data_Table_1[[#This Row],[Resid\nAcre]],\"\")","v":""},{"$f":"IFERROR(ROUND(Table_Data_Table_1[[#This Row],[Land\nResidual]]/Table_Data_Table_1[[#This Row],[Resid\nSq Ft]],2),\"\")","v":""},{"$f":"IF(Table_Data_Table_1[[#This Row],[Item ID]]=\"\",\"\",ROUND(DAYS360(Table_Data_Table_1[[#This Row],[Sale Date]],'Global Settings'!$H$5)/30,0))","v":""},{"$f":"IFERROR(IF(AND(Table_Data_Table_1[[#This Row],[Months To\nMid-Point]]<12.01,Table_Data_Table_1[[#This Row],[Months To\nMid-Point]]>-13),0,(Table_Data_Table_1[[#This Row],[Months To\nMid-Point]]*'Global Settings'!$H$6)),\"\")","v":""},{"$f":"IFERROR(Table_Data_Table_1[[#This Row],[Land\nResidual]]*(Table_Data_Table_1[[#This Row],[Time\nAdjust]]+1),\"\")","v":""},{"$f":"IFERROR(Table_Data_Table_1[[#This Row],[Adjusted\nSale Price]]/Table_Data_Table_1[[#This Row],[Resid\nAcre]],\"\")","v":""},{"$f":"IFERROR(ROUND(Table_Data_Table_1[[#This Row],[Adjusted\nSale Price]]/Table_Data_Table_1[[#This Row],[Resid\nSq Ft]],2),\"\")","v":""},{"$f":"IFERROR(IF(VLOOKUP(Table_Data_Table_1[[#This Row],[Item ID]],DataTable,11,FALSE)=0,\"N/A\",Table_Data_Table_1[[#This Row],[Adjusted\nSale Price]]/VLOOKUP(Table_Data_Table_1[[#This Row],[Item ID]],DataTable,11,FALSE)),\"\")","v":""},{"$f":"IF(IFERROR(VLOOKUP(Table_Data_Table_1[[#This Row],[Item ID]],DataTable,17,FALSE),\"\")=0,\"\",IFERROR(VLOOKUP(Table_Data_Table_1[[#This Row],[Item ID]],DataTable,17,FALSE),\"\"))","v":""}]
["",null,{"$f":"IF(Table_Data_Table_1[[#This Row],[Item ID]]=\"\",\"\",IFERROR(VLOOKUP(Table_Data_Table_1[[#This Row],[Item ID]],DataTable,16,FALSE),\"\"))","v":""},null,null,null,null,{"$f":"IF(Table_Data_Table_1[[#This Row],[Valuation Method]]=\"Vacant\",VLOOKUP(Table_Data_Table_1[[#This Row],[Item ID]],DataTable,6,FALSE)-VLOOKUP(Table_Data_Table_1[[#This Row],[Item ID]],DataTable,13,FALSE),IF(Table_Data_Table_1[[#This Row],[Valuation Method]]=\"Abstraction\",VLOOKUP(Table_Data_Table_1[[#This Row],[Item ID]],DataTable,6,FALSE)-VLOOKUP(Table_Data_Table_1[[#This Row],[Item ID]],DataTable,13,FALSE),IF(Table_Data_Table_1[[#This Row],[Valuation Method]]=\"Allocation\",VLOOKUP(Table_Data_Table_1[[#This Row],[Item ID]],DataTable,6,FALSE)*I249,\"\")))","v":""},{"$f":"IF(Table_Data_Table_1[[#This Row],[Valuation Method]]=\"Vacant\",\"N/A\",IF(Table_Data_Table_1[[#This Row],[Valuation Method]]=\"Abstraction\",Table_Data_Table_1[[#This Row],[Land\nResidual]]/VLOOKUP(Table_Data_Table_1[[#This Row],[Item ID]],DataTable,6,FALSE),IF(Table_Data_Table_1[[#This Row],[Valuation Method]]=\"Allocation\",'Global Settings'!$H$20,\"\")))","v":""},{"$f":"IFERROR(ROUND(Table_Data_Table_1[[#This Row],[Resid\nSq Ft]]/43560,3),\"\")","v":""},{"$f":"IF(Table_Data_Table_1[[#This Row],[Item ID]]=\"\",\"\",IFERROR(VLOOKUP(Table_Data_Table_1[[#This Row],[Item ID]],DataTable,10,FALSE)-VLOOKUP(Table_Data_Table_1[[#This Row],[Item ID]],DataTable,12,FALSE),\"\"))","v":""},{"$f":"IFERROR(Table_Data_Table_1[[#This Row],[Land\nResidual]]/Table_Data_Table_1[[#This Row],[Resid\nAcre]],\"\")","v":""},{"$f":"IFERROR(ROUND(Table_Data_Table_1[[#This Row],[Land\nResidual]]/Table_Data_Table_1[[#This Row],[Resid\nSq Ft]],2),\"\")","v":""},{"$f":"IF(Table_Data_Table_1[[#This Row],[Item ID]]=\"\",\"\",ROUND(DAYS360(Table_Data_Table_1[[#This Row],[Sale Date]],'Global Settings'!$H$5)/30,0))","v":""},{"$f":"IFERROR(IF(AND(Table_Data_Table_1[[#This Row],[Months To\nMid-Point]]<12.01,Table_Data_Table_1[[#This Row],[Months To\nMid-Point]]>-13),0,(Table_Data_Table_1[[#This Row],[Months To\nMid-Point]]*'Global Settings'!$H$6)),\"\")","v":""},{"$f":"IFERROR(Table_Data_Table_1[[#This Row],[Land\nResidual]]*(Table_Data_Table_1[[#This Row],[Time\nAdjust]]+1),\"\")","v":""},{"$f":"IFERROR(Table_Data_Table_1[[#This Row],[Adjusted\nSale Price]]/Table_Data_Table_1[[#This Row],[Resid\nAcre]],\"\")","v":""},{"$f":"IFERROR(ROUND(Table_Data_Table_1[[#This Row],[Adjusted\nSale Price]]/Table_Data_Table_1[[#This Row],[Resid\nSq Ft]],2),\"\")","v":""},{"$f":"IFERROR(IF(VLOOKUP(Table_Data_Table_1[[#This Row],[Item ID]],DataTable,11,FALSE)=0,\"N/A\",Table_Data_Table_1[[#This Row],[Adjusted\nSale Price]]/VLOOKUP(Table_Data_Table_1[[#This Row],[Item ID]],DataTable,11,FALSE)),\"\")","v":""},{"$f":"IF(IFERROR(VLOOKUP(Table_Data_Table_1[[#This Row],[Item ID]],DataTable,17,FALSE),\"\")=0,\"\",IFERROR(VLOOKUP(Table_Data_Table_1[[#This Row],[Item ID]],DataTable,17,FALSE),\"\"))","v":""}]
["",null,{"$f":"IF(Table_Data_Table_1[[#This Row],[Item ID]]=\"\",\"\",IFERROR(VLOOKUP(Table_Data_Table_1[[#This Row],[Item ID]],DataTable,16,FALSE),\"\"))","v":""},null,null,null,null,{"$f":"IF(Table_Data_Table_1[[#This Row],[Valuation Method]]=\"Vacant\",VLOOKUP(Table_Data_Table_1[[#This Row],[Item ID]],DataTable,6,FALSE)-VLOOKUP(Table_Data_Table_1[[#This Row],[Item ID]],DataTable,13,FALSE),IF(Table_Data_Table_1[[#This Row],[Valuation Method]]=\"Abstraction\",VLOOKUP(Table_Data_Table_1[[#This Row],[Item ID]],DataTable,6,FALSE)-VLOOKUP(Table_Data_Table_1[[#This Row],[Item ID]],DataTable,13,FALSE),IF(Table_Data_Table_1[[#This Row],[Valuation Method]]=\"Allocation\",VLOOKUP(Table_Data_Table_1[[#This Row],[Item ID]],DataTable,6,FALSE)*I250,\"\")))","v":""},{"$f":"IF(Table_Data_Table_1[[#This Row],[Valuation Method]]=\"Vacant\",\"N/A\",IF(Table_Data_Table_1[[#This Row],[Valuation Method]]=\"Abstraction\",Table_Data_Table_1[[#This Row],[Land\nResidual]]/VLOOKUP(Table_Data_Table_1[[#This Row],[Item ID]],DataTable,6,FALSE),IF(Table_Data_Table_1[[#This Row],[Valuation Method]]=\"Allocation\",'Global Settings'!$H$20,\"\")))","v":""},{"$f":"IFERROR(ROUND(Table_Data_Table_1[[#This Row],[Resid\nSq Ft]]/43560,3),\"\")","v":""},{"$f":"IF(Table_Data_Table_1[[#This Row],[Item ID]]=\"\",\"\",IFERROR(VLOOKUP(Table_Data_Table_1[[#This Row],[Item ID]],DataTable,10,FALSE)-VLOOKUP(Table_Data_Table_1[[#This Row],[Item ID]],DataTable,12,FALSE),\"\"))","v":""},{"$f":"IFERROR(Table_Data_Table_1[[#This Row],[Land\nResidual]]/Table_Data_Table_1[[#This Row],[Resid\nAcre]],\"\")","v":""},{"$f":"IFERROR(ROUND(Table_Data_Table_1[[#This Row],[Land\nResidual]]/Table_Data_Table_1[[#This Row],[Resid\nSq Ft]],2),\"\")","v":""},{"$f":"IF(Table_Data_Table_1[[#This Row],[Item ID]]=\"\",\"\",ROUND(DAYS360(Table_Data_Table_1[[#This Row],[Sale Date]],'Global Settings'!$H$5)/30,0))","v":""},{"$f":"IFERROR(IF(AND(Table_Data_Table_1[[#This Row],[Months To\nMid-Point]]<12.01,Table_Data_Table_1[[#This Row],[Months To\nMid-Point]]>-13),0,(Table_Data_Table_1[[#This Row],[Months To\nMid-Point]]*'Global Settings'!$H$6)),\"\")","v":""},{"$f":"IFERROR(Table_Data_Table_1[[#This Row],[Land\nResidual]]*(Table_Data_Table_1[[#This Row],[Time\nAdjust]]+1),\"\")","v":""},{"$f":"IFERROR(Table_Data_Table_1[[#This Row],[Adjusted\nSale Price]]/Table_Data_Table_1[[#This Row],[Resid\nAcre]],\"\")","v":""},{"$f":"IFERROR(ROUND(Table_Data_Table_1[[#This Row],[Adjusted\nSale Price]]/Table_Data_Table_1[[#This Row],[Resid\nSq Ft]],2),\"\")","v":""},{"$f":"IFERROR(IF(VLOOKUP(Table_Data_Table_1[[#This Row],[Item ID]],DataTable,11,FALSE)=0,\"N/A\",Table_Data_Table_1[[#This Row],[Adjusted\nSale Price]]/VLOOKUP(Table_Data_Table_1[[#This Row],[Item ID]],DataTable,11,FALSE)),\"\")","v":""},{"$f":"IF(IFERROR(VLOOKUP(Table_Data_Table_1[[#This Row],[Item ID]],DataTable,17,FALSE),\"\")=0,\"\",IFERROR(VLOOKUP(Table_Data_Table_1[[#This Row],[Item ID]],DataTable,17,FALSE),\"\"))","v":""}]
["",null,{"$f":"IF(Table_Data_Table_1[[#This Row],[Item ID]]=\"\",\"\",IFERROR(VLOOKUP(Table_Data_Table_1[[#This Row],[Item ID]],DataTable,16,FALSE),\"\"))","v":""},null,null,null,null,{"$f":"IF(Table_Data_Table_1[[#This Row],[Valuation Method]]=\"Vacant\",VLOOKUP(Table_Data_Table_1[[#This Row],[Item ID]],DataTable,6,FALSE)-VLOOKUP(Table_Data_Table_1[[#This Row],[Item ID]],DataTable,13,FALSE),IF(Table_Data_Table_1[[#This Row],[Valuation Method]]=\"Abstraction\",VLOOKUP(Table_Data_Table_1[[#This Row],[Item ID]],DataTable,6,FALSE)-VLOOKUP(Table_Data_Table_1[[#This Row],[Item ID]],DataTable,13,FALSE),IF(Table_Data_Table_1[[#This Row],[Valuation Method]]=\"Allocation\",VLOOKUP(Table_Data_Table_1[[#This Row],[Item ID]],DataTable,6,FALSE)*I251,\"\")))","v":""},{"$f":"IF(Table_Data_Table_1[[#This Row],[Valuation Method]]=\"Vacant\",\"N/A\",IF(Table_Data_Table_1[[#This Row],[Valuation Method]]=\"Abstraction\",Table_Data_Table_1[[#This Row],[Land\nResidual]]/VLOOKUP(Table_Data_Table_1[[#This Row],[Item ID]],DataTable,6,FALSE),IF(Table_Data_Table_1[[#This Row],[Valuation Method]]=\"Allocation\",'Global Settings'!$H$20,\"\")))","v":""},{"$f":"IFERROR(ROUND(Table_Data_Table_1[[#This Row],[Resid\nSq Ft]]/43560,3),\"\")","v":""},{"$f":"IF(Table_Data_Table_1[[#This Row],[Item ID]]=\"\",\"\",IFERROR(VLOOKUP(Table_Data_Table_1[[#This Row],[Item ID]],DataTable,10,FALSE)-VLOOKUP(Table_Data_Table_1[[#This Row],[Item ID]],DataTable,12,FALSE),\"\"))","v":""},{"$f":"IFERROR(Table_Data_Table_1[[#This Row],[Land\nResidual]]/Table_Data_Table_1[[#This Row],[Resid\nAcre]],\"\")","v":""},{"$f":"IFERROR(ROUND(Table_Data_Table_1[[#This Row],[Land\nResidual]]/Table_Data_Table_1[[#This Row],[Resid\nSq Ft]],2),\"\")","v":""},{"$f":"IF(Table_Data_Table_1[[#This Row],[Item ID]]=\"\",\"\",ROUND(DAYS360(Table_Data_Table_1[[#This Row],[Sale Date]],'Global Settings'!$H$5)/30,0))","v":""},{"$f":"IFERROR(IF(AND(Table_Data_Table_1[[#This Row],[Months To\nMid-Point]]<12.01,Table_Data_Table_1[[#This Row],[Months To\nMid-Point]]>-13),0,(Table_Data_Table_1[[#This Row],[Months To\nMid-Point]]*'Global Settings'!$H$6)),\"\")","v":""},{"$f":"IFERROR(Table_Data_Table_1[[#This Row],[Land\nResidual]]*(Table_Data_Table_1[[#This Row],[Time\nAdjust]]+1),\"\")","v":""},{"$f":"IFERROR(Table_Data_Table_1[[#This Row],[Adjusted\nSale Price]]/Table_Data_Table_1[[#This Row],[Resid\nAcre]],\"\")","v":""},{"$f":"IFERROR(ROUND(Table_Data_Table_1[[#This Row],[Adjusted\nSale Price]]/Table_Data_Table_1[[#This Row],[Resid\nSq Ft]],2),\"\")","v":""},{"$f":"IFERROR(IF(VLOOKUP(Table_Data_Table_1[[#This Row],[Item ID]],DataTable,11,FALSE)=0,\"N/A\",Table_Data_Table_1[[#This Row],[Adjusted\nSale Price]]/VLOOKUP(Table_Data_Table_1[[#This Row],[Item ID]],DataTable,11,FALSE)),\"\")","v":""},{"$f":"IF(IFERROR(VLOOKUP(Table_Data_Table_1[[#This Row],[Item ID]],DataTable,17,FALSE),\"\")=0,\"\",IFERROR(VLOOKUP(Table_Data_Table_1[[#This Row],[Item ID]],DataTable,17,FALSE),\"\"))","v":""}]
["",null,{"$f":"IF(Table_Data_Table_1[[#This Row],[Item ID]]=\"\",\"\",IFERROR(VLOOKUP(Table_Data_Table_1[[#This Row],[Item ID]],DataTable,16,FALSE),\"\"))","v":""},null,null,null,null,{"$f":"IF(Table_Data_Table_1[[#This Row],[Valuation Method]]=\"Vacant\",VLOOKUP(Table_Data_Table_1[[#This Row],[Item ID]],DataTable,6,FALSE)-VLOOKUP(Table_Data_Table_1[[#This Row],[Item ID]],DataTable,13,FALSE),IF(Table_Data_Table_1[[#This Row],[Valuation Method]]=\"Abstraction\",VLOOKUP(Table_Data_Table_1[[#This Row],[Item ID]],DataTable,6,FALSE)-VLOOKUP(Table_Data_Table_1[[#This Row],[Item ID]],DataTable,13,FALSE),IF(Table_Data_Table_1[[#This Row],[Valuation Method]]=\"Allocation\",VLOOKUP(Table_Data_Table_1[[#This Row],[Item ID]],DataTable,6,FALSE)*I252,\"\")))","v":""},{"$f":"IF(Table_Data_Table_1[[#This Row],[Valuation Method]]=\"Vacant\",\"N/A\",IF(Table_Data_Table_1[[#This Row],[Valuation Method]]=\"Abstraction\",Table_Data_Table_1[[#This Row],[Land\nResidual]]/VLOOKUP(Table_Data_Table_1[[#This Row],[Item ID]],DataTable,6,FALSE),IF(Table_Data_Table_1[[#This Row],[Valuation Method]]=\"Allocation\",'Global Settings'!$H$20,\"\")))","v":""},{"$f":"IFERROR(ROUND(Table_Data_Table_1[[#This Row],[Resid\nSq Ft]]/43560,3),\"\")","v":""},{"$f":"IF(Table_Data_Table_1[[#This Row],[Item ID]]=\"\",\"\",IFERROR(VLOOKUP(Table_Data_Table_1[[#This Row],[Item ID]],DataTable,10,FALSE)-VLOOKUP(Table_Data_Table_1[[#This Row],[Item ID]],DataTable,12,FALSE),\"\"))","v":""},{"$f":"IFERROR(Table_Data_Table_1[[#This Row],[Land\nResidual]]/Table_Data_Table_1[[#This Row],[Resid\nAcre]],\"\")","v":""},{"$f":"IFERROR(ROUND(Table_Data_Table_1[[#This Row],[Land\nResidual]]/Table_Data_Table_1[[#This Row],[Resid\nSq Ft]],2),\"\")","v":""},{"$f":"IF(Table_Data_Table_1[[#This Row],[Item ID]]=\"\",\"\",ROUND(DAYS360(Table_Data_Table_1[[#This Row],[Sale Date]],'Global Settings'!$H$5)/30,0))","v":""},{"$f":"IFERROR(IF(AND(Table_Data_Table_1[[#This Row],[Months To\nMid-Point]]<12.01,Table_Data_Table_1[[#This Row],[Months To\nMid-Point]]>-13),0,(Table_Data_Table_1[[#This Row],[Months To\nMid-Point]]*'Global Settings'!$H$6)),\"\")","v":""},{"$f":"IFERROR(Table_Data_Table_1[[#This Row],[Land\nResidual]]*(Table_Data_Table_1[[#This Row],[Time\nAdjust]]+1),\"\")","v":""},{"$f":"IFERROR(Table_Data_Table_1[[#This Row],[Adjusted\nSale Price]]/Table_Data_Table_1[[#This Row],[Resid\nAcre]],\"\")","v":""},{"$f":"IFERROR(ROUND(Table_Data_Table_1[[#This Row],[Adjusted\nSale Price]]/Table_Data_Table_1[[#This Row],[Resid\nSq Ft]],2),\"\")","v":""},{"$f":"IFERROR(IF(VLOOKUP(Table_Data_Table_1[[#This Row],[Item ID]],DataTable,11,FALSE)=0,\"N/A\",Table_Data_Table_1[[#This Row],[Adjusted\nSale Price]]/VLOOKUP(Table_Data_Table_1[[#This Row],[Item ID]],DataTable,11,FALSE)),\"\")","v":""},{"$f":"IF(IFERROR(VLOOKUP(Table_Data_Table_1[[#This Row],[Item ID]],DataTable,17,FALSE),\"\")=0,\"\",IFERROR(VLOOKUP(Table_Data_Table_1[[#This Row],[Item ID]],DataTable,17,FALSE),\"\"))","v":""}]
["",null,{"$f":"IF(Table_Data_Table_1[[#This Row],[Item ID]]=\"\",\"\",IFERROR(VLOOKUP(Table_Data_Table_1[[#This Row],[Item ID]],DataTable,16,FALSE),\"\"))","v":""},null,null,null,null,{"$f":"IF(Table_Data_Table_1[[#This Row],[Valuation Method]]=\"Vacant\",VLOOKUP(Table_Data_Table_1[[#This Row],[Item ID]],DataTable,6,FALSE)-VLOOKUP(Table_Data_Table_1[[#This Row],[Item ID]],DataTable,13,FALSE),IF(Table_Data_Table_1[[#This Row],[Valuation Method]]=\"Abstraction\",VLOOKUP(Table_Data_Table_1[[#This Row],[Item ID]],DataTable,6,FALSE)-VLOOKUP(Table_Data_Table_1[[#This Row],[Item ID]],DataTable,13,FALSE),IF(Table_Data_Table_1[[#This Row],[Valuation Method]]=\"Allocation\",VLOOKUP(Table_Data_Table_1[[#This Row],[Item ID]],DataTable,6,FALSE)*I253,\"\")))","v":""},{"$f":"IF(Table_Data_Table_1[[#This Row],[Valuation Method]]=\"Vacant\",\"N/A\",IF(Table_Data_Table_1[[#This Row],[Valuation Method]]=\"Abstraction\",Table_Data_Table_1[[#This Row],[Land\nResidual]]/VLOOKUP(Table_Data_Table_1[[#This Row],[Item ID]],DataTable,6,FALSE),IF(Table_Data_Table_1[[#This Row],[Valuation Method]]=\"Allocation\",'Global Settings'!$H$20,\"\")))","v":""},{"$f":"IFERROR(ROUND(Table_Data_Table_1[[#This Row],[Resid\nSq Ft]]/43560,3),\"\")","v":""},{"$f":"IF(Table_Data_Table_1[[#This Row],[Item ID]]=\"\",\"\",IFERROR(VLOOKUP(Table_Data_Table_1[[#This Row],[Item ID]],DataTable,10,FALSE)-VLOOKUP(Table_Data_Table_1[[#This Row],[Item ID]],DataTable,12,FALSE),\"\"))","v":""},{"$f":"IFERROR(Table_Data_Table_1[[#This Row],[Land\nResidual]]/Table_Data_Table_1[[#This Row],[Resid\nAcre]],\"\")","v":""},{"$f":"IFERROR(ROUND(Table_Data_Table_1[[#This Row],[Land\nResidual]]/Table_Data_Table_1[[#This Row],[Resid\nSq Ft]],2),\"\")","v":""},{"$f":"IF(Table_Data_Table_1[[#This Row],[Item ID]]=\"\",\"\",ROUND(DAYS360(Table_Data_Table_1[[#This Row],[Sale Date]],'Global Settings'!$H$5)/30,0))","v":""},{"$f":"IFERROR(IF(AND(Table_Data_Table_1[[#This Row],[Months To\nMid-Point]]<12.01,Table_Data_Table_1[[#This Row],[Months To\nMid-Point]]>-13),0,(Table_Data_Table_1[[#This Row],[Months To\nMid-Point]]*'Global Settings'!$H$6)),\"\")","v":""},{"$f":"IFERROR(Table_Data_Table_1[[#This Row],[Land\nResidual]]*(Table_Data_Table_1[[#This Row],[Time\nAdjust]]+1),\"\")","v":""},{"$f":"IFERROR(Table_Data_Table_1[[#This Row],[Adjusted\nSale Price]]/Table_Data_Table_1[[#This Row],[Resid\nAcre]],\"\")","v":""},{"$f":"IFERROR(ROUND(Table_Data_Table_1[[#This Row],[Adjusted\nSale Price]]/Table_Data_Table_1[[#This Row],[Resid\nSq Ft]],2),\"\")","v":""},{"$f":"IFERROR(IF(VLOOKUP(Table_Data_Table_1[[#This Row],[Item ID]],DataTable,11,FALSE)=0,\"N/A\",Table_Data_Table_1[[#This Row],[Adjusted\nSale Price]]/VLOOKUP(Table_Data_Table_1[[#This Row],[Item ID]],DataTable,11,FALSE)),\"\")","v":""},{"$f":"IF(IFERROR(VLOOKUP(Table_Data_Table_1[[#This Row],[Item ID]],DataTable,17,FALSE),\"\")=0,\"\",IFERROR(VLOOKUP(Table_Data_Table_1[[#This Row],[Item ID]],DataTable,17,FALSE),\"\"))","v":""}]
["",null,{"$f":"IF(Table_Data_Table_1[[#This Row],[Item ID]]=\"\",\"\",IFERROR(VLOOKUP(Table_Data_Table_1[[#This Row],[Item ID]],DataTable,16,FALSE),\"\"))","v":""},null,null,null,null,{"$f":"IF(Table_Data_Table_1[[#This Row],[Valuation Method]]=\"Vacant\",VLOOKUP(Table_Data_Table_1[[#This Row],[Item ID]],DataTable,6,FALSE)-VLOOKUP(Table_Data_Table_1[[#This Row],[Item ID]],DataTable,13,FALSE),IF(Table_Data_Table_1[[#This Row],[Valuation Method]]=\"Abstraction\",VLOOKUP(Table_Data_Table_1[[#This Row],[Item ID]],DataTable,6,FALSE)-VLOOKUP(Table_Data_Table_1[[#This Row],[Item ID]],DataTable,13,FALSE),IF(Table_Data_Table_1[[#This Row],[Valuation Method]]=\"Allocation\",VLOOKUP(Table_Data_Table_1[[#This Row],[Item ID]],DataTable,6,FALSE)*I254,\"\")))","v":""},{"$f":"IF(Table_Data_Table_1[[#This Row],[Valuation Method]]=\"Vacant\",\"N/A\",IF(Table_Data_Table_1[[#This Row],[Valuation Method]]=\"Abstraction\",Table_Data_Table_1[[#This Row],[Land\nResidual]]/VLOOKUP(Table_Data_Table_1[[#This Row],[Item ID]],DataTable,6,FALSE),IF(Table_Data_Table_1[[#This Row],[Valuation Method]]=\"Allocation\",'Global Settings'!$H$20,\"\")))","v":""},{"$f":"IFERROR(ROUND(Table_Data_Table_1[[#This Row],[Resid\nSq Ft]]/43560,3),\"\")","v":""},{"$f":"IF(Table_Data_Table_1[[#This Row],[Item ID]]=\"\",\"\",IFERROR(VLOOKUP(Table_Data_Table_1[[#This Row],[Item ID]],DataTable,10,FALSE)-VLOOKUP(Table_Data_Table_1[[#This Row],[Item ID]],DataTable,12,FALSE),\"\"))","v":""},{"$f":"IFERROR(Table_Data_Table_1[[#This Row],[Land\nResidual]]/Table_Data_Table_1[[#This Row],[Resid\nAcre]],\"\")","v":""},{"$f":"IFERROR(ROUND(Table_Data_Table_1[[#This Row],[Land\nResidual]]/Table_Data_Table_1[[#This Row],[Resid\nSq Ft]],2),\"\")","v":""},{"$f":"IF(Table_Data_Table_1[[#This Row],[Item ID]]=\"\",\"\",ROUND(DAYS360(Table_Data_Table_1[[#This Row],[Sale Date]],'Global Settings'!$H$5)/30,0))","v":""},{"$f":"IFERROR(IF(AND(Table_Data_Table_1[[#This Row],[Months To\nMid-Point]]<12.01,Table_Data_Table_1[[#This Row],[Months To\nMid-Point]]>-13),0,(Table_Data_Table_1[[#This Row],[Months To\nMid-Point]]*'Global Settings'!$H$6)),\"\")","v":""},{"$f":"IFERROR(Table_Data_Table_1[[#This Row],[Land\nResidual]]*(Table_Data_Table_1[[#This Row],[Time\nAdjust]]+1),\"\")","v":""},{"$f":"IFERROR(Table_Data_Table_1[[#This Row],[Adjusted\nSale Price]]/Table_Data_Table_1[[#This Row],[Resid\nAcre]],\"\")","v":""},{"$f":"IFERROR(ROUND(Table_Data_Table_1[[#This Row],[Adjusted\nSale Price]]/Table_Data_Table_1[[#This Row],[Resid\nSq Ft]],2),\"\")","v":""},{"$f":"IFERROR(IF(VLOOKUP(Table_Data_Table_1[[#This Row],[Item ID]],DataTable,11,FALSE)=0,\"N/A\",Table_Data_Table_1[[#This Row],[Adjusted\nSale Price]]/VLOOKUP(Table_Data_Table_1[[#This Row],[Item ID]],DataTable,11,FALSE)),\"\")","v":""},{"$f":"IF(IFERROR(VLOOKUP(Table_Data_Table_1[[#This Row],[Item ID]],DataTable,17,FALSE),\"\")=0,\"\",IFERROR(VLOOKUP(Table_Data_Table_1[[#This Row],[Item ID]],DataTable,17,FALSE),\"\"))","v":""}]
["",null,{"$f":"IF(Table_Data_Table_1[[#This Row],[Item ID]]=\"\",\"\",IFERROR(VLOOKUP(Table_Data_Table_1[[#This Row],[Item ID]],DataTable,16,FALSE),\"\"))","v":""},null,null,null,null,{"$f":"IF(Table_Data_Table_1[[#This Row],[Valuation Method]]=\"Vacant\",VLOOKUP(Table_Data_Table_1[[#This Row],[Item ID]],DataTable,6,FALSE)-VLOOKUP(Table_Data_Table_1[[#This Row],[Item ID]],DataTable,13,FALSE),IF(Table_Data_Table_1[[#This Row],[Valuation Method]]=\"Abstraction\",VLOOKUP(Table_Data_Table_1[[#This Row],[Item ID]],DataTable,6,FALSE)-VLOOKUP(Table_Data_Table_1[[#This Row],[Item ID]],DataTable,13,FALSE),IF(Table_Data_Table_1[[#This Row],[Valuation Method]]=\"Allocation\",VLOOKUP(Table_Data_Table_1[[#This Row],[Item ID]],DataTable,6,FALSE)*I255,\"\")))","v":""},{"$f":"IF(Table_Data_Table_1[[#This Row],[Valuation Method]]=\"Vacant\",\"N/A\",IF(Table_Data_Table_1[[#This Row],[Valuation Method]]=\"Abstraction\",Table_Data_Table_1[[#This Row],[Land\nResidual]]/VLOOKUP(Table_Data_Table_1[[#This Row],[Item ID]],DataTable,6,FALSE),IF(Table_Data_Table_1[[#This Row],[Valuation Method]]=\"Allocation\",'Global Settings'!$H$20,\"\")))","v":""},{"$f":"IFERROR(ROUND(Table_Data_Table_1[[#This Row],[Resid\nSq Ft]]/43560,3),\"\")","v":""},{"$f":"IF(Table_Data_Table_1[[#This Row],[Item ID]]=\"\",\"\",IFERROR(VLOOKUP(Table_Data_Table_1[[#This Row],[Item ID]],DataTable,10,FALSE)-VLOOKUP(Table_Data_Table_1[[#This Row],[Item ID]],DataTable,12,FALSE),\"\"))","v":""},{"$f":"IFERROR(Table_Data_Table_1[[#This Row],[Land\nResidual]]/Table_Data_Table_1[[#This Row],[Resid\nAcre]],\"\")","v":""},{"$f":"IFERROR(ROUND(Table_Data_Table_1[[#This Row],[Land\nResidual]]/Table_Data_Table_1[[#This Row],[Resid\nSq Ft]],2),\"\")","v":""},{"$f":"IF(Table_Data_Table_1[[#This Row],[Item ID]]=\"\",\"\",ROUND(DAYS360(Table_Data_Table_1[[#This Row],[Sale Date]],'Global Settings'!$H$5)/30,0))","v":""},{"$f":"IFERROR(IF(AND(Table_Data_Table_1[[#This Row],[Months To\nMid-Point]]<12.01,Table_Data_Table_1[[#This Row],[Months To\nMid-Point]]>-13),0,(Table_Data_Table_1[[#This Row],[Months To\nMid-Point]]*'Global Settings'!$H$6)),\"\")","v":""},{"$f":"IFERROR(Table_Data_Table_1[[#This Row],[Land\nResidual]]*(Table_Data_Table_1[[#This Row],[Time\nAdjust]]+1),\"\")","v":""},{"$f":"IFERROR(Table_Data_Table_1[[#This Row],[Adjusted\nSale Price]]/Table_Data_Table_1[[#This Row],[Resid\nAcre]],\"\")","v":""},{"$f":"IFERROR(ROUND(Table_Data_Table_1[[#This Row],[Adjusted\nSale Price]]/Table_Data_Table_1[[#This Row],[Resid\nSq Ft]],2),\"\")","v":""},{"$f":"IFERROR(IF(VLOOKUP(Table_Data_Table_1[[#This Row],[Item ID]],DataTable,11,FALSE)=0,\"N/A\",Table_Data_Table_1[[#This Row],[Adjusted\nSale Price]]/VLOOKUP(Table_Data_Table_1[[#This Row],[Item ID]],DataTable,11,FALSE)),\"\")","v":""},{"$f":"IF(IFERROR(VLOOKUP(Table_Data_Table_1[[#This Row],[Item ID]],DataTable,17,FALSE),\"\")=0,\"\",IFERROR(VLOOKUP(Table_Data_Table_1[[#This Row],[Item ID]],DataTable,17,FALSE),\"\"))","v":""}]
["",null,{"$f":"IF(Table_Data_Table_1[[#This Row],[Item ID]]=\"\",\"\",IFERROR(VLOOKUP(Table_Data_Table_1[[#This Row],[Item ID]],DataTable,16,FALSE),\"\"))","v":""},null,null,null,null,{"$f":"IF(Table_Data_Table_1[[#This Row],[Valuation Method]]=\"Vacant\",VLOOKUP(Table_Data_Table_1[[#This Row],[Item ID]],DataTable,6,FALSE)-VLOOKUP(Table_Data_Table_1[[#This Row],[Item ID]],DataTable,13,FALSE),IF(Table_Data_Table_1[[#This Row],[Valuation Method]]=\"Abstraction\",VLOOKUP(Table_Data_Table_1[[#This Row],[Item ID]],DataTable,6,FALSE)-VLOOKUP(Table_Data_Table_1[[#This Row],[Item ID]],DataTable,13,FALSE),IF(Table_Data_Table_1[[#This Row],[Valuation Method]]=\"Allocation\",VLOOKUP(Table_Data_Table_1[[#This Row],[Item ID]],DataTable,6,FALSE)*I256,\"\")))","v":""},{"$f":"IF(Table_Data_Table_1[[#This Row],[Valuation Method]]=\"Vacant\",\"N/A\",IF(Table_Data_Table_1[[#This Row],[Valuation Method]]=\"Abstraction\",Table_Data_Table_1[[#This Row],[Land\nResidual]]/VLOOKUP(Table_Data_Table_1[[#This Row],[Item ID]],DataTable,6,FALSE),IF(Table_Data_Table_1[[#This Row],[Valuation Method]]=\"Allocation\",'Global Settings'!$H$20,\"\")))","v":""},{"$f":"IFERROR(ROUND(Table_Data_Table_1[[#This Row],[Resid\nSq Ft]]/43560,3),\"\")","v":""},{"$f":"IF(Table_Data_Table_1[[#This Row],[Item ID]]=\"\",\"\",IFERROR(VLOOKUP(Table_Data_Table_1[[#This Row],[Item ID]],DataTable,10,FALSE)-VLOOKUP(Table_Data_Table_1[[#This Row],[Item ID]],DataTable,12,FALSE),\"\"))","v":""},{"$f":"IFERROR(Table_Data_Table_1[[#This Row],[Land\nResidual]]/Table_Data_Table_1[[#This Row],[Resid\nAcre]],\"\")","v":""},{"$f":"IFERROR(ROUND(Table_Data_Table_1[[#This Row],[Land\nResidual]]/Table_Data_Table_1[[#This Row],[Resid\nSq Ft]],2),\"\")","v":""},{"$f":"IF(Table_Data_Table_1[[#This Row],[Item ID]]=\"\",\"\",ROUND(DAYS360(Table_Data_Table_1[[#This Row],[Sale Date]],'Global Settings'!$H$5)/30,0))","v":""},{"$f":"IFERROR(IF(AND(Table_Data_Table_1[[#This Row],[Months To\nMid-Point]]<12.01,Table_Data_Table_1[[#This Row],[Months To\nMid-Point]]>-13),0,(Table_Data_Table_1[[#This Row],[Months To\nMid-Point]]*'Global Settings'!$H$6)),\"\")","v":""},{"$f":"IFERROR(Table_Data_Table_1[[#This Row],[Land\nResidual]]*(Table_Data_Table_1[[#This Row],[Time\nAdjust]]+1),\"\")","v":""},{"$f":"IFERROR(Table_Data_Table_1[[#This Row],[Adjusted\nSale Price]]/Table_Data_Table_1[[#This Row],[Resid\nAcre]],\"\")","v":""},{"$f":"IFERROR(ROUND(Table_Data_Table_1[[#This Row],[Adjusted\nSale Price]]/Table_Data_Table_1[[#This Row],[Resid\nSq Ft]],2),\"\")","v":""},{"$f":"IFERROR(IF(VLOOKUP(Table_Data_Table_1[[#This Row],[Item ID]],DataTable,11,FALSE)=0,\"N/A\",Table_Data_Table_1[[#This Row],[Adjusted\nSale Price]]/VLOOKUP(Table_Data_Table_1[[#This Row],[Item ID]],DataTable,11,FALSE)),\"\")","v":""},{"$f":"IF(IFERROR(VLOOKUP(Table_Data_Table_1[[#This Row],[Item ID]],DataTable,17,FALSE),\"\")=0,\"\",IFERROR(VLOOKUP(Table_Data_Table_1[[#This Row],[Item ID]],DataTable,17,FALSE),\"\"))","v":""}]
["",null,{"$f":"IF(Table_Data_Table_1[[#This Row],[Item ID]]=\"\",\"\",IFERROR(VLOOKUP(Table_Data_Table_1[[#This Row],[Item ID]],DataTable,16,FALSE),\"\"))","v":""},null,null,null,null,{"$f":"IF(Table_Data_Table_1[[#This Row],[Valuation Method]]=\"Vacant\",VLOOKUP(Table_Data_Table_1[[#This Row],[Item ID]],DataTable,6,FALSE)-VLOOKUP(Table_Data_Table_1[[#This Row],[Item ID]],DataTable,13,FALSE),IF(Table_Data_Table_1[[#This Row],[Valuation Method]]=\"Abstraction\",VLOOKUP(Table_Data_Table_1[[#This Row],[Item ID]],DataTable,6,FALSE)-VLOOKUP(Table_Data_Table_1[[#This Row],[Item ID]],DataTable,13,FALSE),IF(Table_Data_Table_1[[#This Row],[Valuation Method]]=\"Allocation\",VLOOKUP(Table_Data_Table_1[[#This Row],[Item ID]],DataTable,6,FALSE)*I257,\"\")))","v":""},{"$f":"IF(Table_Data_Table_1[[#This Row],[Valuation Method]]=\"Vacant\",\"N/A\",IF(Table_Data_Table_1[[#This Row],[Valuation Method]]=\"Abstraction\",Table_Data_Table_1[[#This Row],[Land\nResidual]]/VLOOKUP(Table_Data_Table_1[[#This Row],[Item ID]],DataTable,6,FALSE),IF(Table_Data_Table_1[[#This Row],[Valuation Method]]=\"Allocation\",'Global Settings'!$H$20,\"\")))","v":""},{"$f":"IFERROR(ROUND(Table_Data_Table_1[[#This Row],[Resid\nSq Ft]]/43560,3),\"\")","v":""},{"$f":"IF(Table_Data_Table_1[[#This Row],[Item ID]]=\"\",\"\",IFERROR(VLOOKUP(Table_Data_Table_1[[#This Row],[Item ID]],DataTable,10,FALSE)-VLOOKUP(Table_Data_Table_1[[#This Row],[Item ID]],DataTable,12,FALSE),\"\"))","v":""},{"$f":"IFERROR(Table_Data_Table_1[[#This Row],[Land\nResidual]]/Table_Data_Table_1[[#This Row],[Resid\nAcre]],\"\")","v":""},{"$f":"IFERROR(ROUND(Table_Data_Table_1[[#This Row],[Land\nResidual]]/Table_Data_Table_1[[#This Row],[Resid\nSq Ft]],2),\"\")","v":""},{"$f":"IF(Table_Data_Table_1[[#This Row],[Item ID]]=\"\",\"\",ROUND(DAYS360(Table_Data_Table_1[[#This Row],[Sale Date]],'Global Settings'!$H$5)/30,0))","v":""},{"$f":"IFERROR(IF(AND(Table_Data_Table_1[[#This Row],[Months To\nMid-Point]]<12.01,Table_Data_Table_1[[#This Row],[Months To\nMid-Point]]>-13),0,(Table_Data_Table_1[[#This Row],[Months To\nMid-Point]]*'Global Settings'!$H$6)),\"\")","v":""},{"$f":"IFERROR(Table_Data_Table_1[[#This Row],[Land\nResidual]]*(Table_Data_Table_1[[#This Row],[Time\nAdjust]]+1),\"\")","v":""},{"$f":"IFERROR(Table_Data_Table_1[[#This Row],[Adjusted\nSale Price]]/Table_Data_Table_1[[#This Row],[Resid\nAcre]],\"\")","v":""},{"$f":"IFERROR(ROUND(Table_Data_Table_1[[#This Row],[Adjusted\nSale Price]]/Table_Data_Table_1[[#This Row],[Resid\nSq Ft]],2),\"\")","v":""},{"$f":"IFERROR(IF(VLOOKUP(Table_Data_Table_1[[#This Row],[Item ID]],DataTable,11,FALSE)=0,\"N/A\",Table_Data_Table_1[[#This Row],[Adjusted\nSale Price]]/VLOOKUP(Table_Data_Table_1[[#This Row],[Item ID]],DataTable,11,FALSE)),\"\")","v":""},{"$f":"IF(IFERROR(VLOOKUP(Table_Data_Table_1[[#This Row],[Item ID]],DataTable,17,FALSE),\"\")=0,\"\",IFERROR(VLOOKUP(Table_Data_Table_1[[#This Row],[Item ID]],DataTable,17,FALSE),\"\"))","v":""}]
["",null,{"$f":"IF(Table_Data_Table_1[[#This Row],[Item ID]]=\"\",\"\",IFERROR(VLOOKUP(Table_Data_Table_1[[#This Row],[Item ID]],DataTable,16,FALSE),\"\"))","v":""},null,null,null,null,{"$f":"IF(Table_Data_Table_1[[#This Row],[Valuation Method]]=\"Vacant\",VLOOKUP(Table_Data_Table_1[[#This Row],[Item ID]],DataTable,6,FALSE)-VLOOKUP(Table_Data_Table_1[[#This Row],[Item ID]],DataTable,13,FALSE),IF(Table_Data_Table_1[[#This Row],[Valuation Method]]=\"Abstraction\",VLOOKUP(Table_Data_Table_1[[#This Row],[Item ID]],DataTable,6,FALSE)-VLOOKUP(Table_Data_Table_1[[#This Row],[Item ID]],DataTable,13,FALSE),IF(Table_Data_Table_1[[#This Row],[Valuation Method]]=\"Allocation\",VLOOKUP(Table_Data_Table_1[[#This Row],[Item ID]],DataTable,6,FALSE)*I258,\"\")))","v":""},{"$f":"IF(Table_Data_Table_1[[#This Row],[Valuation Method]]=\"Vacant\",\"N/A\",IF(Table_Data_Table_1[[#This Row],[Valuation Method]]=\"Abstraction\",Table_Data_Table_1[[#This Row],[Land\nResidual]]/VLOOKUP(Table_Data_Table_1[[#This Row],[Item ID]],DataTable,6,FALSE),IF(Table_Data_Table_1[[#This Row],[Valuation Method]]=\"Allocation\",'Global Settings'!$H$20,\"\")))","v":""},{"$f":"IFERROR(ROUND(Table_Data_Table_1[[#This Row],[Resid\nSq Ft]]/43560,3),\"\")","v":""},{"$f":"IF(Table_Data_Table_1[[#This Row],[Item ID]]=\"\",\"\",IFERROR(VLOOKUP(Table_Data_Table_1[[#This Row],[Item ID]],DataTable,10,FALSE)-VLOOKUP(Table_Data_Table_1[[#This Row],[Item ID]],DataTable,12,FALSE),\"\"))","v":""},{"$f":"IFERROR(Table_Data_Table_1[[#This Row],[Land\nResidual]]/Table_Data_Table_1[[#This Row],[Resid\nAcre]],\"\")","v":""},{"$f":"IFERROR(ROUND(Table_Data_Table_1[[#This Row],[Land\nResidual]]/Table_Data_Table_1[[#This Row],[Resid\nSq Ft]],2),\"\")","v":""},{"$f":"IF(Table_Data_Table_1[[#This Row],[Item ID]]=\"\",\"\",ROUND(DAYS360(Table_Data_Table_1[[#This Row],[Sale Date]],'Global Settings'!$H$5)/30,0))","v":""},{"$f":"IFERROR(IF(AND(Table_Data_Table_1[[#This Row],[Months To\nMid-Point]]<12.01,Table_Data_Table_1[[#This Row],[Months To\nMid-Point]]>-13),0,(Table_Data_Table_1[[#This Row],[Months To\nMid-Point]]*'Global Settings'!$H$6)),\"\")","v":""},{"$f":"IFERROR(Table_Data_Table_1[[#This Row],[Land\nResidual]]*(Table_Data_Table_1[[#This Row],[Time\nAdjust]]+1),\"\")","v":""},{"$f":"IFERROR(Table_Data_Table_1[[#This Row],[Adjusted\nSale Price]]/Table_Data_Table_1[[#This Row],[Resid\nAcre]],\"\")","v":""},{"$f":"IFERROR(ROUND(Table_Data_Table_1[[#This Row],[Adjusted\nSale Price]]/Table_Data_Table_1[[#This Row],[Resid\nSq Ft]],2),\"\")","v":""},{"$f":"IFERROR(IF(VLOOKUP(Table_Data_Table_1[[#This Row],[Item ID]],DataTable,11,FALSE)=0,\"N/A\",Table_Data_Table_1[[#This Row],[Adjusted\nSale Price]]/VLOOKUP(Table_Data_Table_1[[#This Row],[Item ID]],DataTable,11,FALSE)),\"\")","v":""},{"$f":"IF(IFERROR(VLOOKUP(Table_Data_Table_1[[#This Row],[Item ID]],DataTable,17,FALSE),\"\")=0,\"\",IFERROR(VLOOKUP(Table_Data_Table_1[[#This Row],[Item ID]],DataTable,17,FALSE),\"\"))","v":""}]
["",null,{"$f":"IF(Table_Data_Table_1[[#This Row],[Item ID]]=\"\",\"\",IFERROR(VLOOKUP(Table_Data_Table_1[[#This Row],[Item ID]],DataTable,16,FALSE),\"\"))","v":""},null,null,null,null,{"$f":"IF(Table_Data_Table_1[[#This Row],[Valuation Method]]=\"Vacant\",VLOOKUP(Table_Data_Table_1[[#This Row],[Item ID]],DataTable,6,FALSE)-VLOOKUP(Table_Data_Table_1[[#This Row],[Item ID]],DataTable,13,FALSE),IF(Table_Data_Table_1[[#This Row],[Valuation Method]]=\"Abstraction\",VLOOKUP(Table_Data_Table_1[[#This Row],[Item ID]],DataTable,6,FALSE)-VLOOKUP(Table_Data_Table_1[[#This Row],[Item ID]],DataTable,13,FALSE),IF(Table_Data_Table_1[[#This Row],[Valuation Method]]=\"Allocation\",VLOOKUP(Table_Data_Table_1[[#This Row],[Item ID]],DataTable,6,FALSE)*I259,\"\")))","v":""},{"$f":"IF(Table_Data_Table_1[[#This Row],[Valuation Method]]=\"Vacant\",\"N/A\",IF(Table_Data_Table_1[[#This Row],[Valuation Method]]=\"Abstraction\",Table_Data_Table_1[[#This Row],[Land\nResidual]]/VLOOKUP(Table_Data_Table_1[[#This Row],[Item ID]],DataTable,6,FALSE),IF(Table_Data_Table_1[[#This Row],[Valuation Method]]=\"Allocation\",'Global Settings'!$H$20,\"\")))","v":""},{"$f":"IFERROR(ROUND(Table_Data_Table_1[[#This Row],[Resid\nSq Ft]]/43560,3),\"\")","v":""},{"$f":"IF(Table_Data_Table_1[[#This Row],[Item ID]]=\"\",\"\",IFERROR(VLOOKUP(Table_Data_Table_1[[#This Row],[Item ID]],DataTable,10,FALSE)-VLOOKUP(Table_Data_Table_1[[#This Row],[Item ID]],DataTable,12,FALSE),\"\"))","v":""},{"$f":"IFERROR(Table_Data_Table_1[[#This Row],[Land\nResidual]]/Table_Data_Table_1[[#This Row],[Resid\nAcre]],\"\")","v":""},{"$f":"IFERROR(ROUND(Table_Data_Table_1[[#This Row],[Land\nResidual]]/Table_Data_Table_1[[#This Row],[Resid\nSq Ft]],2),\"\")","v":""},{"$f":"IF(Table_Data_Table_1[[#This Row],[Item ID]]=\"\",\"\",ROUND(DAYS360(Table_Data_Table_1[[#This Row],[Sale Date]],'Global Settings'!$H$5)/30,0))","v":""},{"$f":"IFERROR(IF(AND(Table_Data_Table_1[[#This Row],[Months To\nMid-Point]]<12.01,Table_Data_Table_1[[#This Row],[Months To\nMid-Point]]>-13),0,(Table_Data_Table_1[[#This Row],[Months To\nMid-Point]]*'Global Settings'!$H$6)),\"\")","v":""},{"$f":"IFERROR(Table_Data_Table_1[[#This Row],[Land\nResidual]]*(Table_Data_Table_1[[#This Row],[Time\nAdjust]]+1),\"\")","v":""},{"$f":"IFERROR(Table_Data_Table_1[[#This Row],[Adjusted\nSale Price]]/Table_Data_Table_1[[#This Row],[Resid\nAcre]],\"\")","v":""},{"$f":"IFERROR(ROUND(Table_Data_Table_1[[#This Row],[Adjusted\nSale Price]]/Table_Data_Table_1[[#This Row],[Resid\nSq Ft]],2),\"\")","v":""},{"$f":"IFERROR(IF(VLOOKUP(Table_Data_Table_1[[#This Row],[Item ID]],DataTable,11,FALSE)=0,\"N/A\",Table_Data_Table_1[[#This Row],[Adjusted\nSale Price]]/VLOOKUP(Table_Data_Table_1[[#This Row],[Item ID]],DataTable,11,FALSE)),\"\")","v":""},{"$f":"IF(IFERROR(VLOOKUP(Table_Data_Table_1[[#This Row],[Item ID]],DataTable,17,FALSE),\"\")=0,\"\",IFERROR(VLOOKUP(Table_Data_Table_1[[#This Row],[Item ID]],DataTable,17,FALSE),\"\"))","v":""}]
["",null,{"$f":"IF(Table_Data_Table_1[[#This Row],[Item ID]]=\"\",\"\",IFERROR(VLOOKUP(Table_Data_Table_1[[#This Row],[Item ID]],DataTable,16,FALSE),\"\"))","v":""},null,null,null,null,{"$f":"IF(Table_Data_Table_1[[#This Row],[Valuation Method]]=\"Vacant\",VLOOKUP(Table_Data_Table_1[[#This Row],[Item ID]],DataTable,6,FALSE)-VLOOKUP(Table_Data_Table_1[[#This Row],[Item ID]],DataTable,13,FALSE),IF(Table_Data_Table_1[[#This Row],[Valuation Method]]=\"Abstraction\",VLOOKUP(Table_Data_Table_1[[#This Row],[Item ID]],DataTable,6,FALSE)-VLOOKUP(Table_Data_Table_1[[#This Row],[Item ID]],DataTable,13,FALSE),IF(Table_Data_Table_1[[#This Row],[Valuation Method]]=\"Allocation\",VLOOKUP(Table_Data_Table_1[[#This Row],[Item ID]],DataTable,6,FALSE)*I260,\"\")))","v":""},{"$f":"IF(Table_Data_Table_1[[#This Row],[Valuation Method]]=\"Vacant\",\"N/A\",IF(Table_Data_Table_1[[#This Row],[Valuation Method]]=\"Abstraction\",Table_Data_Table_1[[#This Row],[Land\nResidual]]/VLOOKUP(Table_Data_Table_1[[#This Row],[Item ID]],DataTable,6,FALSE),IF(Table_Data_Table_1[[#This Row],[Valuation Method]]=\"Allocation\",'Global Settings'!$H$20,\"\")))","v":""},{"$f":"IFERROR(ROUND(Table_Data_Table_1[[#This Row],[Resid\nSq Ft]]/43560,3),\"\")","v":""},{"$f":"IF(Table_Data_Table_1[[#This Row],[Item ID]]=\"\",\"\",IFERROR(VLOOKUP(Table_Data_Table_1[[#This Row],[Item ID]],DataTable,10,FALSE)-VLOOKUP(Table_Data_Table_1[[#This Row],[Item ID]],DataTable,12,FALSE),\"\"))","v":""},{"$f":"IFERROR(Table_Data_Table_1[[#This Row],[Land\nResidual]]/Table_Data_Table_1[[#This Row],[Resid\nAcre]],\"\")","v":""},{"$f":"IFERROR(ROUND(Table_Data_Table_1[[#This Row],[Land\nResidual]]/Table_Data_Table_1[[#This Row],[Resid\nSq Ft]],2),\"\")","v":""},{"$f":"IF(Table_Data_Table_1[[#This Row],[Item ID]]=\"\",\"\",ROUND(DAYS360(Table_Data_Table_1[[#This Row],[Sale Date]],'Global Settings'!$H$5)/30,0))","v":""},{"$f":"IFERROR(IF(AND(Table_Data_Table_1[[#This Row],[Months To\nMid-Point]]<12.01,Table_Data_Table_1[[#This Row],[Months To\nMid-Point]]>-13),0,(Table_Data_Table_1[[#This Row],[Months To\nMid-Point]]*'Global Settings'!$H$6)),\"\")","v":""},{"$f":"IFERROR(Table_Data_Table_1[[#This Row],[Land\nResidual]]*(Table_Data_Table_1[[#This Row],[Time\nAdjust]]+1),\"\")","v":""},{"$f":"IFERROR(Table_Data_Table_1[[#This Row],[Adjusted\nSale Price]]/Table_Data_Table_1[[#This Row],[Resid\nAcre]],\"\")","v":""},{"$f":"IFERROR(ROUND(Table_Data_Table_1[[#This Row],[Adjusted\nSale Price]]/Table_Data_Table_1[[#This Row],[Resid\nSq Ft]],2),\"\")","v":""},{"$f":"IFERROR(IF(VLOOKUP(Table_Data_Table_1[[#This Row],[Item ID]],DataTable,11,FALSE)=0,\"N/A\",Table_Data_Table_1[[#This Row],[Adjusted\nSale Price]]/VLOOKUP(Table_Data_Table_1[[#This Row],[Item ID]],DataTable,11,FALSE)),\"\")","v":""},{"$f":"IF(IFERROR(VLOOKUP(Table_Data_Table_1[[#This Row],[Item ID]],DataTable,17,FALSE),\"\")=0,\"\",IFERROR(VLOOKUP(Table_Data_Table_1[[#This Row],[Item ID]],DataTable,17,FALSE),\"\"))","v":""}]
["",null,{"$f":"IF(Table_Data_Table_1[[#This Row],[Item ID]]=\"\",\"\",IFERROR(VLOOKUP(Table_Data_Table_1[[#This Row],[Item ID]],DataTable,16,FALSE),\"\"))","v":""},null,null,null,null,{"$f":"IF(Table_Data_Table_1[[#This Row],[Valuation Method]]=\"Vacant\",VLOOKUP(Table_Data_Table_1[[#This Row],[Item ID]],DataTable,6,FALSE)-VLOOKUP(Table_Data_Table_1[[#This Row],[Item ID]],DataTable,13,FALSE),IF(Table_Data_Table_1[[#This Row],[Valuation Method]]=\"Abstraction\",VLOOKUP(Table_Data_Table_1[[#This Row],[Item ID]],DataTable,6,FALSE)-VLOOKUP(Table_Data_Table_1[[#This Row],[Item ID]],DataTable,13,FALSE),IF(Table_Data_Table_1[[#This Row],[Valuation Method]]=\"Allocation\",VLOOKUP(Table_Data_Table_1[[#This Row],[Item ID]],DataTable,6,FALSE)*I261,\"\")))","v":""},{"$f":"IF(Table_Data_Table_1[[#This Row],[Valuation Method]]=\"Vacant\",\"N/A\",IF(Table_Data_Table_1[[#This Row],[Valuation Method]]=\"Abstraction\",Table_Data_Table_1[[#This Row],[Land\nResidual]]/VLOOKUP(Table_Data_Table_1[[#This Row],[Item ID]],DataTable,6,FALSE),IF(Table_Data_Table_1[[#This Row],[Valuation Method]]=\"Allocation\",'Global Settings'!$H$20,\"\")))","v":""},{"$f":"IFERROR(ROUND(Table_Data_Table_1[[#This Row],[Resid\nSq Ft]]/43560,3),\"\")","v":""},{"$f":"IF(Table_Data_Table_1[[#This Row],[Item ID]]=\"\",\"\",IFERROR(VLOOKUP(Table_Data_Table_1[[#This Row],[Item ID]],DataTable,10,FALSE)-VLOOKUP(Table_Data_Table_1[[#This Row],[Item ID]],DataTable,12,FALSE),\"\"))","v":""},{"$f":"IFERROR(Table_Data_Table_1[[#This Row],[Land\nResidual]]/Table_Data_Table_1[[#This Row],[Resid\nAcre]],\"\")","v":""},{"$f":"IFERROR(ROUND(Table_Data_Table_1[[#This Row],[Land\nResidual]]/Table_Data_Table_1[[#This Row],[Resid\nSq Ft]],2),\"\")","v":""},{"$f":"IF(Table_Data_Table_1[[#This Row],[Item ID]]=\"\",\"\",ROUND(DAYS360(Table_Data_Table_1[[#This Row],[Sale Date]],'Global Settings'!$H$5)/30,0))","v":""},{"$f":"IFERROR(IF(AND(Table_Data_Table_1[[#This Row],[Months To\nMid-Point]]<12.01,Table_Data_Table_1[[#This Row],[Months To\nMid-Point]]>-13),0,(Table_Data_Table_1[[#This Row],[Months To\nMid-Point]]*'Global Settings'!$H$6)),\"\")","v":""},{"$f":"IFERROR(Table_Data_Table_1[[#This Row],[Land\nResidual]]*(Table_Data_Table_1[[#This Row],[Time\nAdjust]]+1),\"\")","v":""},{"$f":"IFERROR(Table_Data_Table_1[[#This Row],[Adjusted\nSale Price]]/Table_Data_Table_1[[#This Row],[Resid\nAcre]],\"\")","v":""},{"$f":"IFERROR(ROUND(Table_Data_Table_1[[#This Row],[Adjusted\nSale Price]]/Table_Data_Table_1[[#This Row],[Resid\nSq Ft]],2),\"\")","v":""},{"$f":"IFERROR(IF(VLOOKUP(Table_Data_Table_1[[#This Row],[Item ID]],DataTable,11,FALSE)=0,\"N/A\",Table_Data_Table_1[[#This Row],[Adjusted\nSale Price]]/VLOOKUP(Table_Data_Table_1[[#This Row],[Item ID]],DataTable,11,FALSE)),\"\")","v":""},{"$f":"IF(IFERROR(VLOOKUP(Table_Data_Table_1[[#This Row],[Item ID]],DataTable,17,FALSE),\"\")=0,\"\",IFERROR(VLOOKUP(Table_Data_Table_1[[#This Row],[Item ID]],DataTable,17,FALSE),\"\"))","v":""}]
["",null,{"$f":"IF(Table_Data_Table_1[[#This Row],[Item ID]]=\"\",\"\",IFERROR(VLOOKUP(Table_Data_Table_1[[#This Row],[Item ID]],DataTable,16,FALSE),\"\"))","v":""},null,null,null,null,{"$f":"IF(Table_Data_Table_1[[#This Row],[Valuation Method]]=\"Vacant\",VLOOKUP(Table_Data_Table_1[[#This Row],[Item ID]],DataTable,6,FALSE)-VLOOKUP(Table_Data_Table_1[[#This Row],[Item ID]],DataTable,13,FALSE),IF(Table_Data_Table_1[[#This Row],[Valuation Method]]=\"Abstraction\",VLOOKUP(Table_Data_Table_1[[#This Row],[Item ID]],DataTable,6,FALSE)-VLOOKUP(Table_Data_Table_1[[#This Row],[Item ID]],DataTable,13,FALSE),IF(Table_Data_Table_1[[#This Row],[Valuation Method]]=\"Allocation\",VLOOKUP(Table_Data_Table_1[[#This Row],[Item ID]],DataTable,6,FALSE)*I262,\"\")))","v":""},{"$f":"IF(Table_Data_Table_1[[#This Row],[Valuation Method]]=\"Vacant\",\"N/A\",IF(Table_Data_Table_1[[#This Row],[Valuation Method]]=\"Abstraction\",Table_Data_Table_1[[#This Row],[Land\nResidual]]/VLOOKUP(Table_Data_Table_1[[#This Row],[Item ID]],DataTable,6,FALSE),IF(Table_Data_Table_1[[#This Row],[Valuation Method]]=\"Allocation\",'Global Settings'!$H$20,\"\")))","v":""},{"$f":"IFERROR(ROUND(Table_Data_Table_1[[#This Row],[Resid\nSq Ft]]/43560,3),\"\")","v":""},{"$f":"IF(Table_Data_Table_1[[#This Row],[Item ID]]=\"\",\"\",IFERROR(VLOOKUP(Table_Data_Table_1[[#This Row],[Item ID]],DataTable,10,FALSE)-VLOOKUP(Table_Data_Table_1[[#This Row],[Item ID]],DataTable,12,FALSE),\"\"))","v":""},{"$f":"IFERROR(Table_Data_Table_1[[#This Row],[Land\nResidual]]/Table_Data_Table_1[[#This Row],[Resid\nAcre]],\"\")","v":""},{"$f":"IFERROR(ROUND(Table_Data_Table_1[[#This Row],[Land\nResidual]]/Table_Data_Table_1[[#This Row],[Resid\nSq Ft]],2),\"\")","v":""},{"$f":"IF(Table_Data_Table_1[[#This Row],[Item ID]]=\"\",\"\",ROUND(DAYS360(Table_Data_Table_1[[#This Row],[Sale Date]],'Global Settings'!$H$5)/30,0))","v":""},{"$f":"IFERROR(IF(AND(Table_Data_Table_1[[#This Row],[Months To\nMid-Point]]<12.01,Table_Data_Table_1[[#This Row],[Months To\nMid-Point]]>-13),0,(Table_Data_Table_1[[#This Row],[Months To\nMid-Point]]*'Global Settings'!$H$6)),\"\")","v":""},{"$f":"IFERROR(Table_Data_Table_1[[#This Row],[Land\nResidual]]*(Table_Data_Table_1[[#This Row],[Time\nAdjust]]+1),\"\")","v":""},{"$f":"IFERROR(Table_Data_Table_1[[#This Row],[Adjusted\nSale Price]]/Table_Data_Table_1[[#This Row],[Resid\nAcre]],\"\")","v":""},{"$f":"IFERROR(ROUND(Table_Data_Table_1[[#This Row],[Adjusted\nSale Price]]/Table_Data_Table_1[[#This Row],[Resid\nSq Ft]],2),\"\")","v":""},{"$f":"IFERROR(IF(VLOOKUP(Table_Data_Table_1[[#This Row],[Item ID]],DataTable,11,FALSE)=0,\"N/A\",Table_Data_Table_1[[#This Row],[Adjusted\nSale Price]]/VLOOKUP(Table_Data_Table_1[[#This Row],[Item ID]],DataTable,11,FALSE)),\"\")","v":""},{"$f":"IF(IFERROR(VLOOKUP(Table_Data_Table_1[[#This Row],[Item ID]],DataTable,17,FALSE),\"\")=0,\"\",IFERROR(VLOOKUP(Table_Data_Table_1[[#This Row],[Item ID]],DataTable,17,FALSE),\"\"))","v":""}]
["",null,{"$f":"IF(Table_Data_Table_1[[#This Row],[Item ID]]=\"\",\"\",IFERROR(VLOOKUP(Table_Data_Table_1[[#This Row],[Item ID]],DataTable,16,FALSE),\"\"))","v":""},null,null,null,null,{"$f":"IF(Table_Data_Table_1[[#This Row],[Valuation Method]]=\"Vacant\",VLOOKUP(Table_Data_Table_1[[#This Row],[Item ID]],DataTable,6,FALSE)-VLOOKUP(Table_Data_Table_1[[#This Row],[Item ID]],DataTable,13,FALSE),IF(Table_Data_Table_1[[#This Row],[Valuation Method]]=\"Abstraction\",VLOOKUP(Table_Data_Table_1[[#This Row],[Item ID]],DataTable,6,FALSE)-VLOOKUP(Table_Data_Table_1[[#This Row],[Item ID]],DataTable,13,FALSE),IF(Table_Data_Table_1[[#This Row],[Valuation Method]]=\"Allocation\",VLOOKUP(Table_Data_Table_1[[#This Row],[Item ID]],DataTable,6,FALSE)*I263,\"\")))","v":""},{"$f":"IF(Table_Data_Table_1[[#This Row],[Valuation Method]]=\"Vacant\",\"N/A\",IF(Table_Data_Table_1[[#This Row],[Valuation Method]]=\"Abstraction\",Table_Data_Table_1[[#This Row],[Land\nResidual]]/VLOOKUP(Table_Data_Table_1[[#This Row],[Item ID]],DataTable,6,FALSE),IF(Table_Data_Table_1[[#This Row],[Valuation Method]]=\"Allocation\",'Global Settings'!$H$20,\"\")))","v":""},{"$f":"IFERROR(ROUND(Table_Data_Table_1[[#This Row],[Resid\nSq Ft]]/43560,3),\"\")","v":""},{"$f":"IF(Table_Data_Table_1[[#This Row],[Item ID]]=\"\",\"\",IFERROR(VLOOKUP(Table_Data_Table_1[[#This Row],[Item ID]],DataTable,10,FALSE)-VLOOKUP(Table_Data_Table_1[[#This Row],[Item ID]],DataTable,12,FALSE),\"\"))","v":""},{"$f":"IFERROR(Table_Data_Table_1[[#This Row],[Land\nResidual]]/Table_Data_Table_1[[#This Row],[Resid\nAcre]],\"\")","v":""},{"$f":"IFERROR(ROUND(Table_Data_Table_1[[#This Row],[Land\nResidual]]/Table_Data_Table_1[[#This Row],[Resid\nSq Ft]],2),\"\")","v":""},{"$f":"IF(Table_Data_Table_1[[#This Row],[Item ID]]=\"\",\"\",ROUND(DAYS360(Table_Data_Table_1[[#This Row],[Sale Date]],'Global Settings'!$H$5)/30,0))","v":""},{"$f":"IFERROR(IF(AND(Table_Data_Table_1[[#This Row],[Months To\nMid-Point]]<12.01,Table_Data_Table_1[[#This Row],[Months To\nMid-Point]]>-13),0,(Table_Data_Table_1[[#This Row],[Months To\nMid-Point]]*'Global Settings'!$H$6)),\"\")","v":""},{"$f":"IFERROR(Table_Data_Table_1[[#This Row],[Land\nResidual]]*(Table_Data_Table_1[[#This Row],[Time\nAdjust]]+1),\"\")","v":""},{"$f":"IFERROR(Table_Data_Table_1[[#This Row],[Adjusted\nSale Price]]/Table_Data_Table_1[[#This Row],[Resid\nAcre]],\"\")","v":""},{"$f":"IFERROR(ROUND(Table_Data_Table_1[[#This Row],[Adjusted\nSale Price]]/Table_Data_Table_1[[#This Row],[Resid\nSq Ft]],2),\"\")","v":""},{"$f":"IFERROR(IF(VLOOKUP(Table_Data_Table_1[[#This Row],[Item ID]],DataTable,11,FALSE)=0,\"N/A\",Table_Data_Table_1[[#This Row],[Adjusted\nSale Price]]/VLOOKUP(Table_Data_Table_1[[#This Row],[Item ID]],DataTable,11,FALSE)),\"\")","v":""},{"$f":"IF(IFERROR(VLOOKUP(Table_Data_Table_1[[#This Row],[Item ID]],DataTable,17,FALSE),\"\")=0,\"\",IFERROR(VLOOKUP(Table_Data_Table_1[[#This Row],[Item ID]],DataTable,17,FALSE),\"\"))","v":""}]
["",null,{"$f":"IF(Table_Data_Table_1[[#This Row],[Item ID]]=\"\",\"\",IFERROR(VLOOKUP(Table_Data_Table_1[[#This Row],[Item ID]],DataTable,16,FALSE),\"\"))","v":""},null,null,null,null,{"$f":"IF(Table_Data_Table_1[[#This Row],[Valuation Method]]=\"Vacant\",VLOOKUP(Table_Data_Table_1[[#This Row],[Item ID]],DataTable,6,FALSE)-VLOOKUP(Table_Data_Table_1[[#This Row],[Item ID]],DataTable,13,FALSE),IF(Table_Data_Table_1[[#This Row],[Valuation Method]]=\"Abstraction\",VLOOKUP(Table_Data_Table_1[[#This Row],[Item ID]],DataTable,6,FALSE)-VLOOKUP(Table_Data_Table_1[[#This Row],[Item ID]],DataTable,13,FALSE),IF(Table_Data_Table_1[[#This Row],[Valuation Method]]=\"Allocation\",VLOOKUP(Table_Data_Table_1[[#This Row],[Item ID]],DataTable,6,FALSE)*I264,\"\")))","v":""},{"$f":"IF(Table_Data_Table_1[[#This Row],[Valuation Method]]=\"Vacant\",\"N/A\",IF(Table_Data_Table_1[[#This Row],[Valuation Method]]=\"Abstraction\",Table_Data_Table_1[[#This Row],[Land\nResidual]]/VLOOKUP(Table_Data_Table_1[[#This Row],[Item ID]],DataTable,6,FALSE),IF(Table_Data_Table_1[[#This Row],[Valuation Method]]=\"Allocation\",'Global Settings'!$H$20,\"\")))","v":""},{"$f":"IFERROR(ROUND(Table_Data_Table_1[[#This Row],[Resid\nSq Ft]]/43560,3),\"\")","v":""},{"$f":"IF(Table_Data_Table_1[[#This Row],[Item ID]]=\"\",\"\",IFERROR(VLOOKUP(Table_Data_Table_1[[#This Row],[Item ID]],DataTable,10,FALSE)-VLOOKUP(Table_Data_Table_1[[#This Row],[Item ID]],DataTable,12,FALSE),\"\"))","v":""},{"$f":"IFERROR(Table_Data_Table_1[[#This Row],[Land\nResidual]]/Table_Data_Table_1[[#This Row],[Resid\nAcre]],\"\")","v":""},{"$f":"IFERROR(ROUND(Table_Data_Table_1[[#This Row],[Land\nResidual]]/Table_Data_Table_1[[#This Row],[Resid\nSq Ft]],2),\"\")","v":""},{"$f":"IF(Table_Data_Table_1[[#This Row],[Item ID]]=\"\",\"\",ROUND(DAYS360(Table_Data_Table_1[[#This Row],[Sale Date]],'Global Settings'!$H$5)/30,0))","v":""},{"$f":"IFERROR(IF(AND(Table_Data_Table_1[[#This Row],[Months To\nMid-Point]]<12.01,Table_Data_Table_1[[#This Row],[Months To\nMid-Point]]>-13),0,(Table_Data_Table_1[[#This Row],[Months To\nMid-Point]]*'Global Settings'!$H$6)),\"\")","v":""},{"$f":"IFERROR(Table_Data_Table_1[[#This Row],[Land\nResidual]]*(Table_Data_Table_1[[#This Row],[Time\nAdjust]]+1),\"\")","v":""},{"$f":"IFERROR(Table_Data_Table_1[[#This Row],[Adjusted\nSale Price]]/Table_Data_Table_1[[#This Row],[Resid\nAcre]],\"\")","v":""},{"$f":"IFERROR(ROUND(Table_Data_Table_1[[#This Row],[Adjusted\nSale Price]]/Table_Data_Table_1[[#This Row],[Resid\nSq Ft]],2),\"\")","v":""},{"$f":"IFERROR(IF(VLOOKUP(Table_Data_Table_1[[#This Row],[Item ID]],DataTable,11,FALSE)=0,\"N/A\",Table_Data_Table_1[[#This Row],[Adjusted\nSale Price]]/VLOOKUP(Table_Data_Table_1[[#This Row],[Item ID]],DataTable,11,FALSE)),\"\")","v":""},{"$f":"IF(IFERROR(VLOOKUP(Table_Data_Table_1[[#This Row],[Item ID]],DataTable,17,FALSE),\"\")=0,\"\",IFERROR(VLOOKUP(Table_Data_Table_1[[#This Row],[Item ID]],DataTable,17,FALSE),\"\"))","v":""}]
["",null,{"$f":"IF(Table_Data_Table_1[[#This Row],[Item ID]]=\"\",\"\",IFERROR(VLOOKUP(Table_Data_Table_1[[#This Row],[Item ID]],DataTable,16,FALSE),\"\"))","v":""},null,null,null,null,{"$f":"IF(Table_Data_Table_1[[#This Row],[Valuation Method]]=\"Vacant\",VLOOKUP(Table_Data_Table_1[[#This Row],[Item ID]],DataTable,6,FALSE)-VLOOKUP(Table_Data_Table_1[[#This Row],[Item ID]],DataTable,13,FALSE),IF(Table_Data_Table_1[[#This Row],[Valuation Method]]=\"Abstraction\",VLOOKUP(Table_Data_Table_1[[#This Row],[Item ID]],DataTable,6,FALSE)-VLOOKUP(Table_Data_Table_1[[#This Row],[Item ID]],DataTable,13,FALSE),IF(Table_Data_Table_1[[#This Row],[Valuation Method]]=\"Allocation\",VLOOKUP(Table_Data_Table_1[[#This Row],[Item ID]],DataTable,6,FALSE)*I265,\"\")))","v":""},{"$f":"IF(Table_Data_Table_1[[#This Row],[Valuation Method]]=\"Vacant\",\"N/A\",IF(Table_Data_Table_1[[#This Row],[Valuation Method]]=\"Abstraction\",Table_Data_Table_1[[#This Row],[Land\nResidual]]/VLOOKUP(Table_Data_Table_1[[#This Row],[Item ID]],DataTable,6,FALSE),IF(Table_Data_Table_1[[#This Row],[Valuation Method]]=\"Allocation\",'Global Settings'!$H$20,\"\")))","v":""},{"$f":"IFERROR(ROUND(Table_Data_Table_1[[#This Row],[Resid\nSq Ft]]/43560,3),\"\")","v":""},{"$f":"IF(Table_Data_Table_1[[#This Row],[Item ID]]=\"\",\"\",IFERROR(VLOOKUP(Table_Data_Table_1[[#This Row],[Item ID]],DataTable,10,FALSE)-VLOOKUP(Table_Data_Table_1[[#This Row],[Item ID]],DataTable,12,FALSE),\"\"))","v":""},{"$f":"IFERROR(Table_Data_Table_1[[#This Row],[Land\nResidual]]/Table_Data_Table_1[[#This Row],[Resid\nAcre]],\"\")","v":""},{"$f":"IFERROR(ROUND(Table_Data_Table_1[[#This Row],[Land\nResidual]]/Table_Data_Table_1[[#This Row],[Resid\nSq Ft]],2),\"\")","v":""},{"$f":"IF(Table_Data_Table_1[[#This Row],[Item ID]]=\"\",\"\",ROUND(DAYS360(Table_Data_Table_1[[#This Row],[Sale Date]],'Global Settings'!$H$5)/30,0))","v":""},{"$f":"IFERROR(IF(AND(Table_Data_Table_1[[#This Row],[Months To\nMid-Point]]<12.01,Table_Data_Table_1[[#This Row],[Months To\nMid-Point]]>-13),0,(Table_Data_Table_1[[#This Row],[Months To\nMid-Point]]*'Global Settings'!$H$6)),\"\")","v":""},{"$f":"IFERROR(Table_Data_Table_1[[#This Row],[Land\nResidual]]*(Table_Data_Table_1[[#This Row],[Time\nAdjust]]+1),\"\")","v":""},{"$f":"IFERROR(Table_Data_Table_1[[#This Row],[Adjusted\nSale Price]]/Table_Data_Table_1[[#This Row],[Resid\nAcre]],\"\")","v":""},{"$f":"IFERROR(ROUND(Table_Data_Table_1[[#This Row],[Adjusted\nSale Price]]/Table_Data_Table_1[[#This Row],[Resid\nSq Ft]],2),\"\")","v":""},{"$f":"IFERROR(IF(VLOOKUP(Table_Data_Table_1[[#This Row],[Item ID]],DataTable,11,FALSE)=0,\"N/A\",Table_Data_Table_1[[#This Row],[Adjusted\nSale Price]]/VLOOKUP(Table_Data_Table_1[[#This Row],[Item ID]],DataTable,11,FALSE)),\"\")","v":""},{"$f":"IF(IFERROR(VLOOKUP(Table_Data_Table_1[[#This Row],[Item ID]],DataTable,17,FALSE),\"\")=0,\"\",IFERROR(VLOOKUP(Table_Data_Table_1[[#This Row],[Item ID]],DataTable,17,FALSE),\"\"))","v":""}]
["",null,{"$f":"IF(Table_Data_Table_1[[#This Row],[Item ID]]=\"\",\"\",IFERROR(VLOOKUP(Table_Data_Table_1[[#This Row],[Item ID]],DataTable,16,FALSE),\"\"))","v":""},null,null,null,null,{"$f":"IF(Table_Data_Table_1[[#This Row],[Valuation Method]]=\"Vacant\",VLOOKUP(Table_Data_Table_1[[#This Row],[Item ID]],DataTable,6,FALSE)-VLOOKUP(Table_Data_Table_1[[#This Row],[Item ID]],DataTable,13,FALSE),IF(Table_Data_Table_1[[#This Row],[Valuation Method]]=\"Abstraction\",VLOOKUP(Table_Data_Table_1[[#This Row],[Item ID]],DataTable,6,FALSE)-VLOOKUP(Table_Data_Table_1[[#This Row],[Item ID]],DataTable,13,FALSE),IF(Table_Data_Table_1[[#This Row],[Valuation Method]]=\"Allocation\",VLOOKUP(Table_Data_Table_1[[#This Row],[Item ID]],DataTable,6,FALSE)*I266,\"\")))","v":""},{"$f":"IF(Table_Data_Table_1[[#This Row],[Valuation Method]]=\"Vacant\",\"N/A\",IF(Table_Data_Table_1[[#This Row],[Valuation Method]]=\"Abstraction\",Table_Data_Table_1[[#This Row],[Land\nResidual]]/VLOOKUP(Table_Data_Table_1[[#This Row],[Item ID]],DataTable,6,FALSE),IF(Table_Data_Table_1[[#This Row],[Valuation Method]]=\"Allocation\",'Global Settings'!$H$20,\"\")))","v":""},{"$f":"IFERROR(ROUND(Table_Data_Table_1[[#This Row],[Resid\nSq Ft]]/43560,3),\"\")","v":""},{"$f":"IF(Table_Data_Table_1[[#This Row],[Item ID]]=\"\",\"\",IFERROR(VLOOKUP(Table_Data_Table_1[[#This Row],[Item ID]],DataTable,10,FALSE)-VLOOKUP(Table_Data_Table_1[[#This Row],[Item ID]],DataTable,12,FALSE),\"\"))","v":""},{"$f":"IFERROR(Table_Data_Table_1[[#This Row],[Land\nResidual]]/Table_Data_Table_1[[#This Row],[Resid\nAcre]],\"\")","v":""},{"$f":"IFERROR(ROUND(Table_Data_Table_1[[#This Row],[Land\nResidual]]/Table_Data_Table_1[[#This Row],[Resid\nSq Ft]],2),\"\")","v":""},{"$f":"IF(Table_Data_Table_1[[#This Row],[Item ID]]=\"\",\"\",ROUND(DAYS360(Table_Data_Table_1[[#This Row],[Sale Date]],'Global Settings'!$H$5)/30,0))","v":""},{"$f":"IFERROR(IF(AND(Table_Data_Table_1[[#This Row],[Months To\nMid-Point]]<12.01,Table_Data_Table_1[[#This Row],[Months To\nMid-Point]]>-13),0,(Table_Data_Table_1[[#This Row],[Months To\nMid-Point]]*'Global Settings'!$H$6)),\"\")","v":""},{"$f":"IFERROR(Table_Data_Table_1[[#This Row],[Land\nResidual]]*(Table_Data_Table_1[[#This Row],[Time\nAdjust]]+1),\"\")","v":""},{"$f":"IFERROR(Table_Data_Table_1[[#This Row],[Adjusted\nSale Price]]/Table_Data_Table_1[[#This Row],[Resid\nAcre]],\"\")","v":""},{"$f":"IFERROR(ROUND(Table_Data_Table_1[[#This Row],[Adjusted\nSale Price]]/Table_Data_Table_1[[#This Row],[Resid\nSq Ft]],2),\"\")","v":""},{"$f":"IFERROR(IF(VLOOKUP(Table_Data_Table_1[[#This Row],[Item ID]],DataTable,11,FALSE)=0,\"N/A\",Table_Data_Table_1[[#This Row],[Adjusted\nSale Price]]/VLOOKUP(Table_Data_Table_1[[#This Row],[Item ID]],DataTable,11,FALSE)),\"\")","v":""},{"$f":"IF(IFERROR(VLOOKUP(Table_Data_Table_1[[#This Row],[Item ID]],DataTable,17,FALSE),\"\")=0,\"\",IFERROR(VLOOKUP(Table_Data_Table_1[[#This Row],[Item ID]],DataTable,17,FALSE),\"\"))","v":""}]
["",null,{"$f":"IF(Table_Data_Table_1[[#This Row],[Item ID]]=\"\",\"\",IFERROR(VLOOKUP(Table_Data_Table_1[[#This Row],[Item ID]],DataTable,16,FALSE),\"\"))","v":""},null,null,null,null,{"$f":"IF(Table_Data_Table_1[[#This Row],[Valuation Method]]=\"Vacant\",VLOOKUP(Table_Data_Table_1[[#This Row],[Item ID]],DataTable,6,FALSE)-VLOOKUP(Table_Data_Table_1[[#This Row],[Item ID]],DataTable,13,FALSE),IF(Table_Data_Table_1[[#This Row],[Valuation Method]]=\"Abstraction\",VLOOKUP(Table_Data_Table_1[[#This Row],[Item ID]],DataTable,6,FALSE)-VLOOKUP(Table_Data_Table_1[[#This Row],[Item ID]],DataTable,13,FALSE),IF(Table_Data_Table_1[[#This Row],[Valuation Method]]=\"Allocation\",VLOOKUP(Table_Data_Table_1[[#This Row],[Item ID]],DataTable,6,FALSE)*I267,\"\")))","v":""},{"$f":"IF(Table_Data_Table_1[[#This Row],[Valuation Method]]=\"Vacant\",\"N/A\",IF(Table_Data_Table_1[[#This Row],[Valuation Method]]=\"Abstraction\",Table_Data_Table_1[[#This Row],[Land\nResidual]]/VLOOKUP(Table_Data_Table_1[[#This Row],[Item ID]],DataTable,6,FALSE),IF(Table_Data_Table_1[[#This Row],[Valuation Method]]=\"Allocation\",'Global Settings'!$H$20,\"\")))","v":""},{"$f":"IFERROR(ROUND(Table_Data_Table_1[[#This Row],[Resid\nSq Ft]]/43560,3),\"\")","v":""},{"$f":"IF(Table_Data_Table_1[[#This Row],[Item ID]]=\"\",\"\",IFERROR(VLOOKUP(Table_Data_Table_1[[#This Row],[Item ID]],DataTable,10,FALSE)-VLOOKUP(Table_Data_Table_1[[#This Row],[Item ID]],DataTable,12,FALSE),\"\"))","v":""},{"$f":"IFERROR(Table_Data_Table_1[[#This Row],[Land\nResidual]]/Table_Data_Table_1[[#This Row],[Resid\nAcre]],\"\")","v":""},{"$f":"IFERROR(ROUND(Table_Data_Table_1[[#This Row],[Land\nResidual]]/Table_Data_Table_1[[#This Row],[Resid\nSq Ft]],2),\"\")","v":""},{"$f":"IF(Table_Data_Table_1[[#This Row],[Item ID]]=\"\",\"\",ROUND(DAYS360(Table_Data_Table_1[[#This Row],[Sale Date]],'Global Settings'!$H$5)/30,0))","v":""},{"$f":"IFERROR(IF(AND(Table_Data_Table_1[[#This Row],[Months To\nMid-Point]]<12.01,Table_Data_Table_1[[#This Row],[Months To\nMid-Point]]>-13),0,(Table_Data_Table_1[[#This Row],[Months To\nMid-Point]]*'Global Settings'!$H$6)),\"\")","v":""},{"$f":"IFERROR(Table_Data_Table_1[[#This Row],[Land\nResidual]]*(Table_Data_Table_1[[#This Row],[Time\nAdjust]]+1),\"\")","v":""},{"$f":"IFERROR(Table_Data_Table_1[[#This Row],[Adjusted\nSale Price]]/Table_Data_Table_1[[#This Row],[Resid\nAcre]],\"\")","v":""},{"$f":"IFERROR(ROUND(Table_Data_Table_1[[#This Row],[Adjusted\nSale Price]]/Table_Data_Table_1[[#This Row],[Resid\nSq Ft]],2),\"\")","v":""},{"$f":"IFERROR(IF(VLOOKUP(Table_Data_Table_1[[#This Row],[Item ID]],DataTable,11,FALSE)=0,\"N/A\",Table_Data_Table_1[[#This Row],[Adjusted\nSale Price]]/VLOOKUP(Table_Data_Table_1[[#This Row],[Item ID]],DataTable,11,FALSE)),\"\")","v":""},{"$f":"IF(IFERROR(VLOOKUP(Table_Data_Table_1[[#This Row],[Item ID]],DataTable,17,FALSE),\"\")=0,\"\",IFERROR(VLOOKUP(Table_Data_Table_1[[#This Row],[Item ID]],DataTable,17,FALSE),\"\"))","v":""}]
["",null,{"$f":"IF(Table_Data_Table_1[[#This Row],[Item ID]]=\"\",\"\",IFERROR(VLOOKUP(Table_Data_Table_1[[#This Row],[Item ID]],DataTable,16,FALSE),\"\"))","v":""},null,null,null,null,{"$f":"IF(Table_Data_Table_1[[#This Row],[Valuation Method]]=\"Vacant\",VLOOKUP(Table_Data_Table_1[[#This Row],[Item ID]],DataTable,6,FALSE)-VLOOKUP(Table_Data_Table_1[[#This Row],[Item ID]],DataTable,13,FALSE),IF(Table_Data_Table_1[[#This Row],[Valuation Method]]=\"Abstraction\",VLOOKUP(Table_Data_Table_1[[#This Row],[Item ID]],DataTable,6,FALSE)-VLOOKUP(Table_Data_Table_1[[#This Row],[Item ID]],DataTable,13,FALSE),IF(Table_Data_Table_1[[#This Row],[Valuation Method]]=\"Allocation\",VLOOKUP(Table_Data_Table_1[[#This Row],[Item ID]],DataTable,6,FALSE)*I268,\"\")))","v":""},{"$f":"IF(Table_Data_Table_1[[#This Row],[Valuation Method]]=\"Vacant\",\"N/A\",IF(Table_Data_Table_1[[#This Row],[Valuation Method]]=\"Abstraction\",Table_Data_Table_1[[#This Row],[Land\nResidual]]/VLOOKUP(Table_Data_Table_1[[#This Row],[Item ID]],DataTable,6,FALSE),IF(Table_Data_Table_1[[#This Row],[Valuation Method]]=\"Allocation\",'Global Settings'!$H$20,\"\")))","v":""},{"$f":"IFERROR(ROUND(Table_Data_Table_1[[#This Row],[Resid\nSq Ft]]/43560,3),\"\")","v":""},{"$f":"IF(Table_Data_Table_1[[#This Row],[Item ID]]=\"\",\"\",IFERROR(VLOOKUP(Table_Data_Table_1[[#This Row],[Item ID]],DataTable,10,FALSE)-VLOOKUP(Table_Data_Table_1[[#This Row],[Item ID]],DataTable,12,FALSE),\"\"))","v":""},{"$f":"IFERROR(Table_Data_Table_1[[#This Row],[Land\nResidual]]/Table_Data_Table_1[[#This Row],[Resid\nAcre]],\"\")","v":""},{"$f":"IFERROR(ROUND(Table_Data_Table_1[[#This Row],[Land\nResidual]]/Table_Data_Table_1[[#This Row],[Resid\nSq Ft]],2),\"\")","v":""},{"$f":"IF(Table_Data_Table_1[[#This Row],[Item ID]]=\"\",\"\",ROUND(DAYS360(Table_Data_Table_1[[#This Row],[Sale Date]],'Global Settings'!$H$5)/30,0))","v":""},{"$f":"IFERROR(IF(AND(Table_Data_Table_1[[#This Row],[Months To\nMid-Point]]<12.01,Table_Data_Table_1[[#This Row],[Months To\nMid-Point]]>-13),0,(Table_Data_Table_1[[#This Row],[Months To\nMid-Point]]*'Global Settings'!$H$6)),\"\")","v":""},{"$f":"IFERROR(Table_Data_Table_1[[#This Row],[Land\nResidual]]*(Table_Data_Table_1[[#This Row],[Time\nAdjust]]+1),\"\")","v":""},{"$f":"IFERROR(Table_Data_Table_1[[#This Row],[Adjusted\nSale Price]]/Table_Data_Table_1[[#This Row],[Resid\nAcre]],\"\")","v":""},{"$f":"IFERROR(ROUND(Table_Data_Table_1[[#This Row],[Adjusted\nSale Price]]/Table_Data_Table_1[[#This Row],[Resid\nSq Ft]],2),\"\")","v":""},{"$f":"IFERROR(IF(VLOOKUP(Table_Data_Table_1[[#This Row],[Item ID]],DataTable,11,FALSE)=0,\"N/A\",Table_Data_Table_1[[#This Row],[Adjusted\nSale Price]]/VLOOKUP(Table_Data_Table_1[[#This Row],[Item ID]],DataTable,11,FALSE)),\"\")","v":""},{"$f":"IF(IFERROR(VLOOKUP(Table_Data_Table_1[[#This Row],[Item ID]],DataTable,17,FALSE),\"\")=0,\"\",IFERROR(VLOOKUP(Table_Data_Table_1[[#This Row],[Item ID]],DataTable,17,FALSE),\"\"))","v":""}]
["",null,{"$f":"IF(Table_Data_Table_1[[#This Row],[Item ID]]=\"\",\"\",IFERROR(VLOOKUP(Table_Data_Table_1[[#This Row],[Item ID]],DataTable,16,FALSE),\"\"))","v":""},null,null,null,null,{"$f":"IF(Table_Data_Table_1[[#This Row],[Valuation Method]]=\"Vacant\",VLOOKUP(Table_Data_Table_1[[#This Row],[Item ID]],DataTable,6,FALSE)-VLOOKUP(Table_Data_Table_1[[#This Row],[Item ID]],DataTable,13,FALSE),IF(Table_Data_Table_1[[#This Row],[Valuation Method]]=\"Abstraction\",VLOOKUP(Table_Data_Table_1[[#This Row],[Item ID]],DataTable,6,FALSE)-VLOOKUP(Table_Data_Table_1[[#This Row],[Item ID]],DataTable,13,FALSE),IF(Table_Data_Table_1[[#This Row],[Valuation Method]]=\"Allocation\",VLOOKUP(Table_Data_Table_1[[#This Row],[Item ID]],DataTable,6,FALSE)*I269,\"\")))","v":""},{"$f":"IF(Table_Data_Table_1[[#This Row],[Valuation Method]]=\"Vacant\",\"N/A\",IF(Table_Data_Table_1[[#This Row],[Valuation Method]]=\"Abstraction\",Table_Data_Table_1[[#This Row],[Land\nResidual]]/VLOOKUP(Table_Data_Table_1[[#This Row],[Item ID]],DataTable,6,FALSE),IF(Table_Data_Table_1[[#This Row],[Valuation Method]]=\"Allocation\",'Global Settings'!$H$20,\"\")))","v":""},{"$f":"IFERROR(ROUND(Table_Data_Table_1[[#This Row],[Resid\nSq Ft]]/43560,3),\"\")","v":""},{"$f":"IF(Table_Data_Table_1[[#This Row],[Item ID]]=\"\",\"\",IFERROR(VLOOKUP(Table_Data_Table_1[[#This Row],[Item ID]],DataTable,10,FALSE)-VLOOKUP(Table_Data_Table_1[[#This Row],[Item ID]],DataTable,12,FALSE),\"\"))","v":""},{"$f":"IFERROR(Table_Data_Table_1[[#This Row],[Land\nResidual]]/Table_Data_Table_1[[#This Row],[Resid\nAcre]],\"\")","v":""},{"$f":"IFERROR(ROUND(Table_Data_Table_1[[#This Row],[Land\nResidual]]/Table_Data_Table_1[[#This Row],[Resid\nSq Ft]],2),\"\")","v":""},{"$f":"IF(Table_Data_Table_1[[#This Row],[Item ID]]=\"\",\"\",ROUND(DAYS360(Table_Data_Table_1[[#This Row],[Sale Date]],'Global Settings'!$H$5)/30,0))","v":""},{"$f":"IFERROR(IF(AND(Table_Data_Table_1[[#This Row],[Months To\nMid-Point]]<12.01,Table_Data_Table_1[[#This Row],[Months To\nMid-Point]]>-13),0,(Table_Data_Table_1[[#This Row],[Months To\nMid-Point]]*'Global Settings'!$H$6)),\"\")","v":""},{"$f":"IFERROR(Table_Data_Table_1[[#This Row],[Land\nResidual]]*(Table_Data_Table_1[[#This Row],[Time\nAdjust]]+1),\"\")","v":""},{"$f":"IFERROR(Table_Data_Table_1[[#This Row],[Adjusted\nSale Price]]/Table_Data_Table_1[[#This Row],[Resid\nAcre]],\"\")","v":""},{"$f":"IFERROR(ROUND(Table_Data_Table_1[[#This Row],[Adjusted\nSale Price]]/Table_Data_Table_1[[#This Row],[Resid\nSq Ft]],2),\"\")","v":""},{"$f":"IFERROR(IF(VLOOKUP(Table_Data_Table_1[[#This Row],[Item ID]],DataTable,11,FALSE)=0,\"N/A\",Table_Data_Table_1[[#This Row],[Adjusted\nSale Price]]/VLOOKUP(Table_Data_Table_1[[#This Row],[Item ID]],DataTable,11,FALSE)),\"\")","v":""},{"$f":"IF(IFERROR(VLOOKUP(Table_Data_Table_1[[#This Row],[Item ID]],DataTable,17,FALSE),\"\")=0,\"\",IFERROR(VLOOKUP(Table_Data_Table_1[[#This Row],[Item ID]],DataTable,17,FALSE),\"\"))","v":""}]
["",null,{"$f":"IF(Table_Data_Table_1[[#This Row],[Item ID]]=\"\",\"\",IFERROR(VLOOKUP(Table_Data_Table_1[[#This Row],[Item ID]],DataTable,16,FALSE),\"\"))","v":""},null,null,null,null,{"$f":"IF(Table_Data_Table_1[[#This Row],[Valuation Method]]=\"Vacant\",VLOOKUP(Table_Data_Table_1[[#This Row],[Item ID]],DataTable,6,FALSE)-VLOOKUP(Table_Data_Table_1[[#This Row],[Item ID]],DataTable,13,FALSE),IF(Table_Data_Table_1[[#This Row],[Valuation Method]]=\"Abstraction\",VLOOKUP(Table_Data_Table_1[[#This Row],[Item ID]],DataTable,6,FALSE)-VLOOKUP(Table_Data_Table_1[[#This Row],[Item ID]],DataTable,13,FALSE),IF(Table_Data_Table_1[[#This Row],[Valuation Method]]=\"Allocation\",VLOOKUP(Table_Data_Table_1[[#This Row],[Item ID]],DataTable,6,FALSE)*I270,\"\")))","v":""},{"$f":"IF(Table_Data_Table_1[[#This Row],[Valuation Method]]=\"Vacant\",\"N/A\",IF(Table_Data_Table_1[[#This Row],[Valuation Method]]=\"Abstraction\",Table_Data_Table_1[[#This Row],[Land\nResidual]]/VLOOKUP(Table_Data_Table_1[[#This Row],[Item ID]],DataTable,6,FALSE),IF(Table_Data_Table_1[[#This Row],[Valuation Method]]=\"Allocation\",'Global Settings'!$H$20,\"\")))","v":""},{"$f":"IFERROR(ROUND(Table_Data_Table_1[[#This Row],[Resid\nSq Ft]]/43560,3),\"\")","v":""},{"$f":"IF(Table_Data_Table_1[[#This Row],[Item ID]]=\"\",\"\",IFERROR(VLOOKUP(Table_Data_Table_1[[#This Row],[Item ID]],DataTable,10,FALSE)-VLOOKUP(Table_Data_Table_1[[#This Row],[Item ID]],DataTable,12,FALSE),\"\"))","v":""},{"$f":"IFERROR(Table_Data_Table_1[[#This Row],[Land\nResidual]]/Table_Data_Table_1[[#This Row],[Resid\nAcre]],\"\")","v":""},{"$f":"IFERROR(ROUND(Table_Data_Table_1[[#This Row],[Land\nResidual]]/Table_Data_Table_1[[#This Row],[Resid\nSq Ft]],2),\"\")","v":""},{"$f":"IF(Table_Data_Table_1[[#This Row],[Item ID]]=\"\",\"\",ROUND(DAYS360(Table_Data_Table_1[[#This Row],[Sale Date]],'Global Settings'!$H$5)/30,0))","v":""},{"$f":"IFERROR(IF(AND(Table_Data_Table_1[[#This Row],[Months To\nMid-Point]]<12.01,Table_Data_Table_1[[#This Row],[Months To\nMid-Point]]>-13),0,(Table_Data_Table_1[[#This Row],[Months To\nMid-Point]]*'Global Settings'!$H$6)),\"\")","v":""},{"$f":"IFERROR(Table_Data_Table_1[[#This Row],[Land\nResidual]]*(Table_Data_Table_1[[#This Row],[Time\nAdjust]]+1),\"\")","v":""},{"$f":"IFERROR(Table_Data_Table_1[[#This Row],[Adjusted\nSale Price]]/Table_Data_Table_1[[#This Row],[Resid\nAcre]],\"\")","v":""},{"$f":"IFERROR(ROUND(Table_Data_Table_1[[#This Row],[Adjusted\nSale Price]]/Table_Data_Table_1[[#This Row],[Resid\nSq Ft]],2),\"\")","v":""},{"$f":"IFERROR(IF(VLOOKUP(Table_Data_Table_1[[#This Row],[Item ID]],DataTable,11,FALSE)=0,\"N/A\",Table_Data_Table_1[[#This Row],[Adjusted\nSale Price]]/VLOOKUP(Table_Data_Table_1[[#This Row],[Item ID]],DataTable,11,FALSE)),\"\")","v":""},{"$f":"IF(IFERROR(VLOOKUP(Table_Data_Table_1[[#This Row],[Item ID]],DataTable,17,FALSE),\"\")=0,\"\",IFERROR(VLOOKUP(Table_Data_Table_1[[#This Row],[Item ID]],DataTable,17,FALSE),\"\"))","v":""}]
["",null,{"$f":"IF(Table_Data_Table_1[[#This Row],[Item ID]]=\"\",\"\",IFERROR(VLOOKUP(Table_Data_Table_1[[#This Row],[Item ID]],DataTable,16,FALSE),\"\"))","v":""},null,null,null,null,{"$f":"IF(Table_Data_Table_1[[#This Row],[Valuation Method]]=\"Vacant\",VLOOKUP(Table_Data_Table_1[[#This Row],[Item ID]],DataTable,6,FALSE)-VLOOKUP(Table_Data_Table_1[[#This Row],[Item ID]],DataTable,13,FALSE),IF(Table_Data_Table_1[[#This Row],[Valuation Method]]=\"Abstraction\",VLOOKUP(Table_Data_Table_1[[#This Row],[Item ID]],DataTable,6,FALSE)-VLOOKUP(Table_Data_Table_1[[#This Row],[Item ID]],DataTable,13,FALSE),IF(Table_Data_Table_1[[#This Row],[Valuation Method]]=\"Allocation\",VLOOKUP(Table_Data_Table_1[[#This Row],[Item ID]],DataTable,6,FALSE)*I271,\"\")))","v":""},{"$f":"IF(Table_Data_Table_1[[#This Row],[Valuation Method]]=\"Vacant\",\"N/A\",IF(Table_Data_Table_1[[#This Row],[Valuation Method]]=\"Abstraction\",Table_Data_Table_1[[#This Row],[Land\nResidual]]/VLOOKUP(Table_Data_Table_1[[#This Row],[Item ID]],DataTable,6,FALSE),IF(Table_Data_Table_1[[#This Row],[Valuation Method]]=\"Allocation\",'Global Settings'!$H$20,\"\")))","v":""},{"$f":"IFERROR(ROUND(Table_Data_Table_1[[#This Row],[Resid\nSq Ft]]/43560,3),\"\")","v":""},{"$f":"IF(Table_Data_Table_1[[#This Row],[Item ID]]=\"\",\"\",IFERROR(VLOOKUP(Table_Data_Table_1[[#This Row],[Item ID]],DataTable,10,FALSE)-VLOOKUP(Table_Data_Table_1[[#This Row],[Item ID]],DataTable,12,FALSE),\"\"))","v":""},{"$f":"IFERROR(Table_Data_Table_1[[#This Row],[Land\nResidual]]/Table_Data_Table_1[[#This Row],[Resid\nAcre]],\"\")","v":""},{"$f":"IFERROR(ROUND(Table_Data_Table_1[[#This Row],[Land\nResidual]]/Table_Data_Table_1[[#This Row],[Resid\nSq Ft]],2),\"\")","v":""},{"$f":"IF(Table_Data_Table_1[[#This Row],[Item ID]]=\"\",\"\",ROUND(DAYS360(Table_Data_Table_1[[#This Row],[Sale Date]],'Global Settings'!$H$5)/30,0))","v":""},{"$f":"IFERROR(IF(AND(Table_Data_Table_1[[#This Row],[Months To\nMid-Point]]<12.01,Table_Data_Table_1[[#This Row],[Months To\nMid-Point]]>-13),0,(Table_Data_Table_1[[#This Row],[Months To\nMid-Point]]*'Global Settings'!$H$6)),\"\")","v":""},{"$f":"IFERROR(Table_Data_Table_1[[#This Row],[Land\nResidual]]*(Table_Data_Table_1[[#This Row],[Time\nAdjust]]+1),\"\")","v":""},{"$f":"IFERROR(Table_Data_Table_1[[#This Row],[Adjusted\nSale Price]]/Table_Data_Table_1[[#This Row],[Resid\nAcre]],\"\")","v":""},{"$f":"IFERROR(ROUND(Table_Data_Table_1[[#This Row],[Adjusted\nSale Price]]/Table_Data_Table_1[[#This Row],[Resid\nSq Ft]],2),\"\")","v":""},{"$f":"IFERROR(IF(VLOOKUP(Table_Data_Table_1[[#This Row],[Item ID]],DataTable,11,FALSE)=0,\"N/A\",Table_Data_Table_1[[#This Row],[Adjusted\nSale Price]]/VLOOKUP(Table_Data_Table_1[[#This Row],[Item ID]],DataTable,11,FALSE)),\"\")","v":""},{"$f":"IF(IFERROR(VLOOKUP(Table_Data_Table_1[[#This Row],[Item ID]],DataTable,17,FALSE),\"\")=0,\"\",IFERROR(VLOOKUP(Table_Data_Table_1[[#This Row],[Item ID]],DataTable,17,FALSE),\"\"))","v":""}]
["",null,{"$f":"IF(Table_Data_Table_1[[#This Row],[Item ID]]=\"\",\"\",IFERROR(VLOOKUP(Table_Data_Table_1[[#This Row],[Item ID]],DataTable,16,FALSE),\"\"))","v":""},null,null,null,null,{"$f":"IF(Table_Data_Table_1[[#This Row],[Valuation Method]]=\"Vacant\",VLOOKUP(Table_Data_Table_1[[#This Row],[Item ID]],DataTable,6,FALSE)-VLOOKUP(Table_Data_Table_1[[#This Row],[Item ID]],DataTable,13,FALSE),IF(Table_Data_Table_1[[#This Row],[Valuation Method]]=\"Abstraction\",VLOOKUP(Table_Data_Table_1[[#This Row],[Item ID]],DataTable,6,FALSE)-VLOOKUP(Table_Data_Table_1[[#This Row],[Item ID]],DataTable,13,FALSE),IF(Table_Data_Table_1[[#This Row],[Valuation Method]]=\"Allocation\",VLOOKUP(Table_Data_Table_1[[#This Row],[Item ID]],DataTable,6,FALSE)*I272,\"\")))","v":""},{"$f":"IF(Table_Data_Table_1[[#This Row],[Valuation Method]]=\"Vacant\",\"N/A\",IF(Table_Data_Table_1[[#This Row],[Valuation Method]]=\"Abstraction\",Table_Data_Table_1[[#This Row],[Land\nResidual]]/VLOOKUP(Table_Data_Table_1[[#This Row],[Item ID]],DataTable,6,FALSE),IF(Table_Data_Table_1[[#This Row],[Valuation Method]]=\"Allocation\",'Global Settings'!$H$20,\"\")))","v":""},{"$f":"IFERROR(ROUND(Table_Data_Table_1[[#This Row],[Resid\nSq Ft]]/43560,3),\"\")","v":""},{"$f":"IF(Table_Data_Table_1[[#This Row],[Item ID]]=\"\",\"\",IFERROR(VLOOKUP(Table_Data_Table_1[[#This Row],[Item ID]],DataTable,10,FALSE)-VLOOKUP(Table_Data_Table_1[[#This Row],[Item ID]],DataTable,12,FALSE),\"\"))","v":""},{"$f":"IFERROR(Table_Data_Table_1[[#This Row],[Land\nResidual]]/Table_Data_Table_1[[#This Row],[Resid\nAcre]],\"\")","v":""},{"$f":"IFERROR(ROUND(Table_Data_Table_1[[#This Row],[Land\nResidual]]/Table_Data_Table_1[[#This Row],[Resid\nSq Ft]],2),\"\")","v":""},{"$f":"IF(Table_Data_Table_1[[#This Row],[Item ID]]=\"\",\"\",ROUND(DAYS360(Table_Data_Table_1[[#This Row],[Sale Date]],'Global Settings'!$H$5)/30,0))","v":""},{"$f":"IFERROR(IF(AND(Table_Data_Table_1[[#This Row],[Months To\nMid-Point]]<12.01,Table_Data_Table_1[[#This Row],[Months To\nMid-Point]]>-13),0,(Table_Data_Table_1[[#This Row],[Months To\nMid-Point]]*'Global Settings'!$H$6)),\"\")","v":""},{"$f":"IFERROR(Table_Data_Table_1[[#This Row],[Land\nResidual]]*(Table_Data_Table_1[[#This Row],[Time\nAdjust]]+1),\"\")","v":""},{"$f":"IFERROR(Table_Data_Table_1[[#This Row],[Adjusted\nSale Price]]/Table_Data_Table_1[[#This Row],[Resid\nAcre]],\"\")","v":""},{"$f":"IFERROR(ROUND(Table_Data_Table_1[[#This Row],[Adjusted\nSale Price]]/Table_Data_Table_1[[#This Row],[Resid\nSq Ft]],2),\"\")","v":""},{"$f":"IFERROR(IF(VLOOKUP(Table_Data_Table_1[[#This Row],[Item ID]],DataTable,11,FALSE)=0,\"N/A\",Table_Data_Table_1[[#This Row],[Adjusted\nSale Price]]/VLOOKUP(Table_Data_Table_1[[#This Row],[Item ID]],DataTable,11,FALSE)),\"\")","v":""},{"$f":"IF(IFERROR(VLOOKUP(Table_Data_Table_1[[#This Row],[Item ID]],DataTable,17,FALSE),\"\")=0,\"\",IFERROR(VLOOKUP(Table_Data_Table_1[[#This Row],[Item ID]],DataTable,17,FALSE),\"\"))","v":""}]
["",null,{"$f":"IF(Table_Data_Table_1[[#This Row],[Item ID]]=\"\",\"\",IFERROR(VLOOKUP(Table_Data_Table_1[[#This Row],[Item ID]],DataTable,16,FALSE),\"\"))","v":""},null,null,null,null,{"$f":"IF(Table_Data_Table_1[[#This Row],[Valuation Method]]=\"Vacant\",VLOOKUP(Table_Data_Table_1[[#This Row],[Item ID]],DataTable,6,FALSE)-VLOOKUP(Table_Data_Table_1[[#This Row],[Item ID]],DataTable,13,FALSE),IF(Table_Data_Table_1[[#This Row],[Valuation Method]]=\"Abstraction\",VLOOKUP(Table_Data_Table_1[[#This Row],[Item ID]],DataTable,6,FALSE)-VLOOKUP(Table_Data_Table_1[[#This Row],[Item ID]],DataTable,13,FALSE),IF(Table_Data_Table_1[[#This Row],[Valuation Method]]=\"Allocation\",VLOOKUP(Table_Data_Table_1[[#This Row],[Item ID]],DataTable,6,FALSE)*I273,\"\")))","v":""},{"$f":"IF(Table_Data_Table_1[[#This Row],[Valuation Method]]=\"Vacant\",\"N/A\",IF(Table_Data_Table_1[[#This Row],[Valuation Method]]=\"Abstraction\",Table_Data_Table_1[[#This Row],[Land\nResidual]]/VLOOKUP(Table_Data_Table_1[[#This Row],[Item ID]],DataTable,6,FALSE),IF(Table_Data_Table_1[[#This Row],[Valuation Method]]=\"Allocation\",'Global Settings'!$H$20,\"\")))","v":""},{"$f":"IFERROR(ROUND(Table_Data_Table_1[[#This Row],[Resid\nSq Ft]]/43560,3),\"\")","v":""},{"$f":"IF(Table_Data_Table_1[[#This Row],[Item ID]]=\"\",\"\",IFERROR(VLOOKUP(Table_Data_Table_1[[#This Row],[Item ID]],DataTable,10,FALSE)-VLOOKUP(Table_Data_Table_1[[#This Row],[Item ID]],DataTable,12,FALSE),\"\"))","v":""},{"$f":"IFERROR(Table_Data_Table_1[[#This Row],[Land\nResidual]]/Table_Data_Table_1[[#This Row],[Resid\nAcre]],\"\")","v":""},{"$f":"IFERROR(ROUND(Table_Data_Table_1[[#This Row],[Land\nResidual]]/Table_Data_Table_1[[#This Row],[Resid\nSq Ft]],2),\"\")","v":""},{"$f":"IF(Table_Data_Table_1[[#This Row],[Item ID]]=\"\",\"\",ROUND(DAYS360(Table_Data_Table_1[[#This Row],[Sale Date]],'Global Settings'!$H$5)/30,0))","v":""},{"$f":"IFERROR(IF(AND(Table_Data_Table_1[[#This Row],[Months To\nMid-Point]]<12.01,Table_Data_Table_1[[#This Row],[Months To\nMid-Point]]>-13),0,(Table_Data_Table_1[[#This Row],[Months To\nMid-Point]]*'Global Settings'!$H$6)),\"\")","v":""},{"$f":"IFERROR(Table_Data_Table_1[[#This Row],[Land\nResidual]]*(Table_Data_Table_1[[#This Row],[Time\nAdjust]]+1),\"\")","v":""},{"$f":"IFERROR(Table_Data_Table_1[[#This Row],[Adjusted\nSale Price]]/Table_Data_Table_1[[#This Row],[Resid\nAcre]],\"\")","v":""},{"$f":"IFERROR(ROUND(Table_Data_Table_1[[#This Row],[Adjusted\nSale Price]]/Table_Data_Table_1[[#This Row],[Resid\nSq Ft]],2),\"\")","v":""},{"$f":"IFERROR(IF(VLOOKUP(Table_Data_Table_1[[#This Row],[Item ID]],DataTable,11,FALSE)=0,\"N/A\",Table_Data_Table_1[[#This Row],[Adjusted\nSale Price]]/VLOOKUP(Table_Data_Table_1[[#This Row],[Item ID]],DataTable,11,FALSE)),\"\")","v":""},{"$f":"IF(IFERROR(VLOOKUP(Table_Data_Table_1[[#This Row],[Item ID]],DataTable,17,FALSE),\"\")=0,\"\",IFERROR(VLOOKUP(Table_Data_Table_1[[#This Row],[Item ID]],DataTable,17,FALSE),\"\"))","v":""}]
["",null,{"$f":"IF(Table_Data_Table_1[[#This Row],[Item ID]]=\"\",\"\",IFERROR(VLOOKUP(Table_Data_Table_1[[#This Row],[Item ID]],DataTable,16,FALSE),\"\"))","v":""},null,null,null,null,{"$f":"IF(Table_Data_Table_1[[#This Row],[Valuation Method]]=\"Vacant\",VLOOKUP(Table_Data_Table_1[[#This Row],[Item ID]],DataTable,6,FALSE)-VLOOKUP(Table_Data_Table_1[[#This Row],[Item ID]],DataTable,13,FALSE),IF(Table_Data_Table_1[[#This Row],[Valuation Method]]=\"Abstraction\",VLOOKUP(Table_Data_Table_1[[#This Row],[Item ID]],DataTable,6,FALSE)-VLOOKUP(Table_Data_Table_1[[#This Row],[Item ID]],DataTable,13,FALSE),IF(Table_Data_Table_1[[#This Row],[Valuation Method]]=\"Allocation\",VLOOKUP(Table_Data_Table_1[[#This Row],[Item ID]],DataTable,6,FALSE)*I274,\"\")))","v":""},{"$f":"IF(Table_Data_Table_1[[#This Row],[Valuation Method]]=\"Vacant\",\"N/A\",IF(Table_Data_Table_1[[#This Row],[Valuation Method]]=\"Abstraction\",Table_Data_Table_1[[#This Row],[Land\nResidual]]/VLOOKUP(Table_Data_Table_1[[#This Row],[Item ID]],DataTable,6,FALSE),IF(Table_Data_Table_1[[#This Row],[Valuation Method]]=\"Allocation\",'Global Settings'!$H$20,\"\")))","v":""},{"$f":"IFERROR(ROUND(Table_Data_Table_1[[#This Row],[Resid\nSq Ft]]/43560,3),\"\")","v":""},{"$f":"IF(Table_Data_Table_1[[#This Row],[Item ID]]=\"\",\"\",IFERROR(VLOOKUP(Table_Data_Table_1[[#This Row],[Item ID]],DataTable,10,FALSE)-VLOOKUP(Table_Data_Table_1[[#This Row],[Item ID]],DataTable,12,FALSE),\"\"))","v":""},{"$f":"IFERROR(Table_Data_Table_1[[#This Row],[Land\nResidual]]/Table_Data_Table_1[[#This Row],[Resid\nAcre]],\"\")","v":""},{"$f":"IFERROR(ROUND(Table_Data_Table_1[[#This Row],[Land\nResidual]]/Table_Data_Table_1[[#This Row],[Resid\nSq Ft]],2),\"\")","v":""},{"$f":"IF(Table_Data_Table_1[[#This Row],[Item ID]]=\"\",\"\",ROUND(DAYS360(Table_Data_Table_1[[#This Row],[Sale Date]],'Global Settings'!$H$5)/30,0))","v":""},{"$f":"IFERROR(IF(AND(Table_Data_Table_1[[#This Row],[Months To\nMid-Point]]<12.01,Table_Data_Table_1[[#This Row],[Months To\nMid-Point]]>-13),0,(Table_Data_Table_1[[#This Row],[Months To\nMid-Point]]*'Global Settings'!$H$6)),\"\")","v":""},{"$f":"IFERROR(Table_Data_Table_1[[#This Row],[Land\nResidual]]*(Table_Data_Table_1[[#This Row],[Time\nAdjust]]+1),\"\")","v":""},{"$f":"IFERROR(Table_Data_Table_1[[#This Row],[Adjusted\nSale Price]]/Table_Data_Table_1[[#This Row],[Resid\nAcre]],\"\")","v":""},{"$f":"IFERROR(ROUND(Table_Data_Table_1[[#This Row],[Adjusted\nSale Price]]/Table_Data_Table_1[[#This Row],[Resid\nSq Ft]],2),\"\")","v":""},{"$f":"IFERROR(IF(VLOOKUP(Table_Data_Table_1[[#This Row],[Item ID]],DataTable,11,FALSE)=0,\"N/A\",Table_Data_Table_1[[#This Row],[Adjusted\nSale Price]]/VLOOKUP(Table_Data_Table_1[[#This Row],[Item ID]],DataTable,11,FALSE)),\"\")","v":""},{"$f":"IF(IFERROR(VLOOKUP(Table_Data_Table_1[[#This Row],[Item ID]],DataTable,17,FALSE),\"\")=0,\"\",IFERROR(VLOOKUP(Table_Data_Table_1[[#This Row],[Item ID]],DataTable,17,FALSE),\"\"))","v":""}]
["",null,{"$f":"IF(Table_Data_Table_1[[#This Row],[Item ID]]=\"\",\"\",IFERROR(VLOOKUP(Table_Data_Table_1[[#This Row],[Item ID]],DataTable,16,FALSE),\"\"))","v":""},null,null,null,null,{"$f":"IF(Table_Data_Table_1[[#This Row],[Valuation Method]]=\"Vacant\",VLOOKUP(Table_Data_Table_1[[#This Row],[Item ID]],DataTable,6,FALSE)-VLOOKUP(Table_Data_Table_1[[#This Row],[Item ID]],DataTable,13,FALSE),IF(Table_Data_Table_1[[#This Row],[Valuation Method]]=\"Abstraction\",VLOOKUP(Table_Data_Table_1[[#This Row],[Item ID]],DataTable,6,FALSE)-VLOOKUP(Table_Data_Table_1[[#This Row],[Item ID]],DataTable,13,FALSE),IF(Table_Data_Table_1[[#This Row],[Valuation Method]]=\"Allocation\",VLOOKUP(Table_Data_Table_1[[#This Row],[Item ID]],DataTable,6,FALSE)*I275,\"\")))","v":""},{"$f":"IF(Table_Data_Table_1[[#This Row],[Valuation Method]]=\"Vacant\",\"N/A\",IF(Table_Data_Table_1[[#This Row],[Valuation Method]]=\"Abstraction\",Table_Data_Table_1[[#This Row],[Land\nResidual]]/VLOOKUP(Table_Data_Table_1[[#This Row],[Item ID]],DataTable,6,FALSE),IF(Table_Data_Table_1[[#This Row],[Valuation Method]]=\"Allocation\",'Global Settings'!$H$20,\"\")))","v":""},{"$f":"IFERROR(ROUND(Table_Data_Table_1[[#This Row],[Resid\nSq Ft]]/43560,3),\"\")","v":""},{"$f":"IF(Table_Data_Table_1[[#This Row],[Item ID]]=\"\",\"\",IFERROR(VLOOKUP(Table_Data_Table_1[[#This Row],[Item ID]],DataTable,10,FALSE)-VLOOKUP(Table_Data_Table_1[[#This Row],[Item ID]],DataTable,12,FALSE),\"\"))","v":""},{"$f":"IFERROR(Table_Data_Table_1[[#This Row],[Land\nResidual]]/Table_Data_Table_1[[#This Row],[Resid\nAcre]],\"\")","v":""},{"$f":"IFERROR(ROUND(Table_Data_Table_1[[#This Row],[Land\nResidual]]/Table_Data_Table_1[[#This Row],[Resid\nSq Ft]],2),\"\")","v":""},{"$f":"IF(Table_Data_Table_1[[#This Row],[Item ID]]=\"\",\"\",ROUND(DAYS360(Table_Data_Table_1[[#This Row],[Sale Date]],'Global Settings'!$H$5)/30,0))","v":""},{"$f":"IFERROR(IF(AND(Table_Data_Table_1[[#This Row],[Months To\nMid-Point]]<12.01,Table_Data_Table_1[[#This Row],[Months To\nMid-Point]]>-13),0,(Table_Data_Table_1[[#This Row],[Months To\nMid-Point]]*'Global Settings'!$H$6)),\"\")","v":""},{"$f":"IFERROR(Table_Data_Table_1[[#This Row],[Land\nResidual]]*(Table_Data_Table_1[[#This Row],[Time\nAdjust]]+1),\"\")","v":""},{"$f":"IFERROR(Table_Data_Table_1[[#This Row],[Adjusted\nSale Price]]/Table_Data_Table_1[[#This Row],[Resid\nAcre]],\"\")","v":""},{"$f":"IFERROR(ROUND(Table_Data_Table_1[[#This Row],[Adjusted\nSale Price]]/Table_Data_Table_1[[#This Row],[Resid\nSq Ft]],2),\"\")","v":""},{"$f":"IFERROR(IF(VLOOKUP(Table_Data_Table_1[[#This Row],[Item ID]],DataTable,11,FALSE)=0,\"N/A\",Table_Data_Table_1[[#This Row],[Adjusted\nSale Price]]/VLOOKUP(Table_Data_Table_1[[#This Row],[Item ID]],DataTable,11,FALSE)),\"\")","v":""},{"$f":"IF(IFERROR(VLOOKUP(Table_Data_Table_1[[#This Row],[Item ID]],DataTable,17,FALSE),\"\")=0,\"\",IFERROR(VLOOKUP(Table_Data_Table_1[[#This Row],[Item ID]],DataTable,17,FALSE),\"\"))","v":""}]
["",null,{"$f":"IF(Table_Data_Table_1[[#This Row],[Item ID]]=\"\",\"\",IFERROR(VLOOKUP(Table_Data_Table_1[[#This Row],[Item ID]],DataTable,16,FALSE),\"\"))","v":""},null,null,null,null,{"$f":"IF(Table_Data_Table_1[[#This Row],[Valuation Method]]=\"Vacant\",VLOOKUP(Table_Data_Table_1[[#This Row],[Item ID]],DataTable,6,FALSE)-VLOOKUP(Table_Data_Table_1[[#This Row],[Item ID]],DataTable,13,FALSE),IF(Table_Data_Table_1[[#This Row],[Valuation Method]]=\"Abstraction\",VLOOKUP(Table_Data_Table_1[[#This Row],[Item ID]],DataTable,6,FALSE)-VLOOKUP(Table_Data_Table_1[[#This Row],[Item ID]],DataTable,13,FALSE),IF(Table_Data_Table_1[[#This Row],[Valuation Method]]=\"Allocation\",VLOOKUP(Table_Data_Table_1[[#This Row],[Item ID]],DataTable,6,FALSE)*I276,\"\")))","v":""},{"$f":"IF(Table_Data_Table_1[[#This Row],[Valuation Method]]=\"Vacant\",\"N/A\",IF(Table_Data_Table_1[[#This Row],[Valuation Method]]=\"Abstraction\",Table_Data_Table_1[[#This Row],[Land\nResidual]]/VLOOKUP(Table_Data_Table_1[[#This Row],[Item ID]],DataTable,6,FALSE),IF(Table_Data_Table_1[[#This Row],[Valuation Method]]=\"Allocation\",'Global Settings'!$H$20,\"\")))","v":""},{"$f":"IFERROR(ROUND(Table_Data_Table_1[[#This Row],[Resid\nSq Ft]]/43560,3),\"\")","v":""},{"$f":"IF(Table_Data_Table_1[[#This Row],[Item ID]]=\"\",\"\",IFERROR(VLOOKUP(Table_Data_Table_1[[#This Row],[Item ID]],DataTable,10,FALSE)-VLOOKUP(Table_Data_Table_1[[#This Row],[Item ID]],DataTable,12,FALSE),\"\"))","v":""},{"$f":"IFERROR(Table_Data_Table_1[[#This Row],[Land\nResidual]]/Table_Data_Table_1[[#This Row],[Resid\nAcre]],\"\")","v":""},{"$f":"IFERROR(ROUND(Table_Data_Table_1[[#This Row],[Land\nResidual]]/Table_Data_Table_1[[#This Row],[Resid\nSq Ft]],2),\"\")","v":""},{"$f":"IF(Table_Data_Table_1[[#This Row],[Item ID]]=\"\",\"\",ROUND(DAYS360(Table_Data_Table_1[[#This Row],[Sale Date]],'Global Settings'!$H$5)/30,0))","v":""},{"$f":"IFERROR(IF(AND(Table_Data_Table_1[[#This Row],[Months To\nMid-Point]]<12.01,Table_Data_Table_1[[#This Row],[Months To\nMid-Point]]>-13),0,(Table_Data_Table_1[[#This Row],[Months To\nMid-Point]]*'Global Settings'!$H$6)),\"\")","v":""},{"$f":"IFERROR(Table_Data_Table_1[[#This Row],[Land\nResidual]]*(Table_Data_Table_1[[#This Row],[Time\nAdjust]]+1),\"\")","v":""},{"$f":"IFERROR(Table_Data_Table_1[[#This Row],[Adjusted\nSale Price]]/Table_Data_Table_1[[#This Row],[Resid\nAcre]],\"\")","v":""},{"$f":"IFERROR(ROUND(Table_Data_Table_1[[#This Row],[Adjusted\nSale Price]]/Table_Data_Table_1[[#This Row],[Resid\nSq Ft]],2),\"\")","v":""},{"$f":"IFERROR(IF(VLOOKUP(Table_Data_Table_1[[#This Row],[Item ID]],DataTable,11,FALSE)=0,\"N/A\",Table_Data_Table_1[[#This Row],[Adjusted\nSale Price]]/VLOOKUP(Table_Data_Table_1[[#This Row],[Item ID]],DataTable,11,FALSE)),\"\")","v":""},{"$f":"IF(IFERROR(VLOOKUP(Table_Data_Table_1[[#This Row],[Item ID]],DataTable,17,FALSE),\"\")=0,\"\",IFERROR(VLOOKUP(Table_Data_Table_1[[#This Row],[Item ID]],DataTable,17,FALSE),\"\"))","v":""}]
["",null,{"$f":"IF(Table_Data_Table_1[[#This Row],[Item ID]]=\"\",\"\",IFERROR(VLOOKUP(Table_Data_Table_1[[#This Row],[Item ID]],DataTable,16,FALSE),\"\"))","v":""},null,null,null,null,{"$f":"IF(Table_Data_Table_1[[#This Row],[Valuation Method]]=\"Vacant\",VLOOKUP(Table_Data_Table_1[[#This Row],[Item ID]],DataTable,6,FALSE)-VLOOKUP(Table_Data_Table_1[[#This Row],[Item ID]],DataTable,13,FALSE),IF(Table_Data_Table_1[[#This Row],[Valuation Method]]=\"Abstraction\",VLOOKUP(Table_Data_Table_1[[#This Row],[Item ID]],DataTable,6,FALSE)-VLOOKUP(Table_Data_Table_1[[#This Row],[Item ID]],DataTable,13,FALSE),IF(Table_Data_Table_1[[#This Row],[Valuation Method]]=\"Allocation\",VLOOKUP(Table_Data_Table_1[[#This Row],[Item ID]],DataTable,6,FALSE)*I277,\"\")))","v":""},{"$f":"IF(Table_Data_Table_1[[#This Row],[Valuation Method]]=\"Vacant\",\"N/A\",IF(Table_Data_Table_1[[#This Row],[Valuation Method]]=\"Abstraction\",Table_Data_Table_1[[#This Row],[Land\nResidual]]/VLOOKUP(Table_Data_Table_1[[#This Row],[Item ID]],DataTable,6,FALSE),IF(Table_Data_Table_1[[#This Row],[Valuation Method]]=\"Allocation\",'Global Settings'!$H$20,\"\")))","v":""},{"$f":"IFERROR(ROUND(Table_Data_Table_1[[#This Row],[Resid\nSq Ft]]/43560,3),\"\")","v":""},{"$f":"IF(Table_Data_Table_1[[#This Row],[Item ID]]=\"\",\"\",IFERROR(VLOOKUP(Table_Data_Table_1[[#This Row],[Item ID]],DataTable,10,FALSE)-VLOOKUP(Table_Data_Table_1[[#This Row],[Item ID]],DataTable,12,FALSE),\"\"))","v":""},{"$f":"IFERROR(Table_Data_Table_1[[#This Row],[Land\nResidual]]/Table_Data_Table_1[[#This Row],[Resid\nAcre]],\"\")","v":""},{"$f":"IFERROR(ROUND(Table_Data_Table_1[[#This Row],[Land\nResidual]]/Table_Data_Table_1[[#This Row],[Resid\nSq Ft]],2),\"\")","v":""},{"$f":"IF(Table_Data_Table_1[[#This Row],[Item ID]]=\"\",\"\",ROUND(DAYS360(Table_Data_Table_1[[#This Row],[Sale Date]],'Global Settings'!$H$5)/30,0))","v":""},{"$f":"IFERROR(IF(AND(Table_Data_Table_1[[#This Row],[Months To\nMid-Point]]<12.01,Table_Data_Table_1[[#This Row],[Months To\nMid-Point]]>-13),0,(Table_Data_Table_1[[#This Row],[Months To\nMid-Point]]*'Global Settings'!$H$6)),\"\")","v":""},{"$f":"IFERROR(Table_Data_Table_1[[#This Row],[Land\nResidual]]*(Table_Data_Table_1[[#This Row],[Time\nAdjust]]+1),\"\")","v":""},{"$f":"IFERROR(Table_Data_Table_1[[#This Row],[Adjusted\nSale Price]]/Table_Data_Table_1[[#This Row],[Resid\nAcre]],\"\")","v":""},{"$f":"IFERROR(ROUND(Table_Data_Table_1[[#This Row],[Adjusted\nSale Price]]/Table_Data_Table_1[[#This Row],[Resid\nSq Ft]],2),\"\")","v":""},{"$f":"IFERROR(IF(VLOOKUP(Table_Data_Table_1[[#This Row],[Item ID]],DataTable,11,FALSE)=0,\"N/A\",Table_Data_Table_1[[#This Row],[Adjusted\nSale Price]]/VLOOKUP(Table_Data_Table_1[[#This Row],[Item ID]],DataTable,11,FALSE)),\"\")","v":""},{"$f":"IF(IFERROR(VLOOKUP(Table_Data_Table_1[[#This Row],[Item ID]],DataTable,17,FALSE),\"\")=0,\"\",IFERROR(VLOOKUP(Table_Data_Table_1[[#This Row],[Item ID]],DataTable,17,FALSE),\"\"))","v":""}]
["",null,{"$f":"IF(Table_Data_Table_1[[#This Row],[Item ID]]=\"\",\"\",IFERROR(VLOOKUP(Table_Data_Table_1[[#This Row],[Item ID]],DataTable,16,FALSE),\"\"))","v":""},null,null,null,null,{"$f":"IF(Table_Data_Table_1[[#This Row],[Valuation Method]]=\"Vacant\",VLOOKUP(Table_Data_Table_1[[#This Row],[Item ID]],DataTable,6,FALSE)-VLOOKUP(Table_Data_Table_1[[#This Row],[Item ID]],DataTable,13,FALSE),IF(Table_Data_Table_1[[#This Row],[Valuation Method]]=\"Abstraction\",VLOOKUP(Table_Data_Table_1[[#This Row],[Item ID]],DataTable,6,FALSE)-VLOOKUP(Table_Data_Table_1[[#This Row],[Item ID]],DataTable,13,FALSE),IF(Table_Data_Table_1[[#This Row],[Valuation Method]]=\"Allocation\",VLOOKUP(Table_Data_Table_1[[#This Row],[Item ID]],DataTable,6,FALSE)*I278,\"\")))","v":""},{"$f":"IF(Table_Data_Table_1[[#This Row],[Valuation Method]]=\"Vacant\",\"N/A\",IF(Table_Data_Table_1[[#This Row],[Valuation Method]]=\"Abstraction\",Table_Data_Table_1[[#This Row],[Land\nResidual]]/VLOOKUP(Table_Data_Table_1[[#This Row],[Item ID]],DataTable,6,FALSE),IF(Table_Data_Table_1[[#This Row],[Valuation Method]]=\"Allocation\",'Global Settings'!$H$20,\"\")))","v":""},{"$f":"IFERROR(ROUND(Table_Data_Table_1[[#This Row],[Resid\nSq Ft]]/43560,3),\"\")","v":""},{"$f":"IF(Table_Data_Table_1[[#This Row],[Item ID]]=\"\",\"\",IFERROR(VLOOKUP(Table_Data_Table_1[[#This Row],[Item ID]],DataTable,10,FALSE)-VLOOKUP(Table_Data_Table_1[[#This Row],[Item ID]],DataTable,12,FALSE),\"\"))","v":""},{"$f":"IFERROR(Table_Data_Table_1[[#This Row],[Land\nResidual]]/Table_Data_Table_1[[#This Row],[Resid\nAcre]],\"\")","v":""},{"$f":"IFERROR(ROUND(Table_Data_Table_1[[#This Row],[Land\nResidual]]/Table_Data_Table_1[[#This Row],[Resid\nSq Ft]],2),\"\")","v":""},{"$f":"IF(Table_Data_Table_1[[#This Row],[Item ID]]=\"\",\"\",ROUND(DAYS360(Table_Data_Table_1[[#This Row],[Sale Date]],'Global Settings'!$H$5)/30,0))","v":""},{"$f":"IFERROR(IF(AND(Table_Data_Table_1[[#This Row],[Months To\nMid-Point]]<12.01,Table_Data_Table_1[[#This Row],[Months To\nMid-Point]]>-13),0,(Table_Data_Table_1[[#This Row],[Months To\nMid-Point]]*'Global Settings'!$H$6)),\"\")","v":""},{"$f":"IFERROR(Table_Data_Table_1[[#This Row],[Land\nResidual]]*(Table_Data_Table_1[[#This Row],[Time\nAdjust]]+1),\"\")","v":""},{"$f":"IFERROR(Table_Data_Table_1[[#This Row],[Adjusted\nSale Price]]/Table_Data_Table_1[[#This Row],[Resid\nAcre]],\"\")","v":""},{"$f":"IFERROR(ROUND(Table_Data_Table_1[[#This Row],[Adjusted\nSale Price]]/Table_Data_Table_1[[#This Row],[Resid\nSq Ft]],2),\"\")","v":""},{"$f":"IFERROR(IF(VLOOKUP(Table_Data_Table_1[[#This Row],[Item ID]],DataTable,11,FALSE)=0,\"N/A\",Table_Data_Table_1[[#This Row],[Adjusted\nSale Price]]/VLOOKUP(Table_Data_Table_1[[#This Row],[Item ID]],DataTable,11,FALSE)),\"\")","v":""},{"$f":"IF(IFERROR(VLOOKUP(Table_Data_Table_1[[#This Row],[Item ID]],DataTable,17,FALSE),\"\")=0,\"\",IFERROR(VLOOKUP(Table_Data_Table_1[[#This Row],[Item ID]],DataTable,17,FALSE),\"\"))","v":""}]
["",null,{"$f":"IF(Table_Data_Table_1[[#This Row],[Item ID]]=\"\",\"\",IFERROR(VLOOKUP(Table_Data_Table_1[[#This Row],[Item ID]],DataTable,16,FALSE),\"\"))","v":""},null,null,null,null,{"$f":"IF(Table_Data_Table_1[[#This Row],[Valuation Method]]=\"Vacant\",VLOOKUP(Table_Data_Table_1[[#This Row],[Item ID]],DataTable,6,FALSE)-VLOOKUP(Table_Data_Table_1[[#This Row],[Item ID]],DataTable,13,FALSE),IF(Table_Data_Table_1[[#This Row],[Valuation Method]]=\"Abstraction\",VLOOKUP(Table_Data_Table_1[[#This Row],[Item ID]],DataTable,6,FALSE)-VLOOKUP(Table_Data_Table_1[[#This Row],[Item ID]],DataTable,13,FALSE),IF(Table_Data_Table_1[[#This Row],[Valuation Method]]=\"Allocation\",VLOOKUP(Table_Data_Table_1[[#This Row],[Item ID]],DataTable,6,FALSE)*I279,\"\")))","v":""},{"$f":"IF(Table_Data_Table_1[[#This Row],[Valuation Method]]=\"Vacant\",\"N/A\",IF(Table_Data_Table_1[[#This Row],[Valuation Method]]=\"Abstraction\",Table_Data_Table_1[[#This Row],[Land\nResidual]]/VLOOKUP(Table_Data_Table_1[[#This Row],[Item ID]],DataTable,6,FALSE),IF(Table_Data_Table_1[[#This Row],[Valuation Method]]=\"Allocation\",'Global Settings'!$H$20,\"\")))","v":""},{"$f":"IFERROR(ROUND(Table_Data_Table_1[[#This Row],[Resid\nSq Ft]]/43560,3),\"\")","v":""},{"$f":"IF(Table_Data_Table_1[[#This Row],[Item ID]]=\"\",\"\",IFERROR(VLOOKUP(Table_Data_Table_1[[#This Row],[Item ID]],DataTable,10,FALSE)-VLOOKUP(Table_Data_Table_1[[#This Row],[Item ID]],DataTable,12,FALSE),\"\"))","v":""},{"$f":"IFERROR(Table_Data_Table_1[[#This Row],[Land\nResidual]]/Table_Data_Table_1[[#This Row],[Resid\nAcre]],\"\")","v":""},{"$f":"IFERROR(ROUND(Table_Data_Table_1[[#This Row],[Land\nResidual]]/Table_Data_Table_1[[#This Row],[Resid\nSq Ft]],2),\"\")","v":""},{"$f":"IF(Table_Data_Table_1[[#This Row],[Item ID]]=\"\",\"\",ROUND(DAYS360(Table_Data_Table_1[[#This Row],[Sale Date]],'Global Settings'!$H$5)/30,0))","v":""},{"$f":"IFERROR(IF(AND(Table_Data_Table_1[[#This Row],[Months To\nMid-Point]]<12.01,Table_Data_Table_1[[#This Row],[Months To\nMid-Point]]>-13),0,(Table_Data_Table_1[[#This Row],[Months To\nMid-Point]]*'Global Settings'!$H$6)),\"\")","v":""},{"$f":"IFERROR(Table_Data_Table_1[[#This Row],[Land\nResidual]]*(Table_Data_Table_1[[#This Row],[Time\nAdjust]]+1),\"\")","v":""},{"$f":"IFERROR(Table_Data_Table_1[[#This Row],[Adjusted\nSale Price]]/Table_Data_Table_1[[#This Row],[Resid\nAcre]],\"\")","v":""},{"$f":"IFERROR(ROUND(Table_Data_Table_1[[#This Row],[Adjusted\nSale Price]]/Table_Data_Table_1[[#This Row],[Resid\nSq Ft]],2),\"\")","v":""},{"$f":"IFERROR(IF(VLOOKUP(Table_Data_Table_1[[#This Row],[Item ID]],DataTable,11,FALSE)=0,\"N/A\",Table_Data_Table_1[[#This Row],[Adjusted\nSale Price]]/VLOOKUP(Table_Data_Table_1[[#This Row],[Item ID]],DataTable,11,FALSE)),\"\")","v":""},{"$f":"IF(IFERROR(VLOOKUP(Table_Data_Table_1[[#This Row],[Item ID]],DataTable,17,FALSE),\"\")=0,\"\",IFERROR(VLOOKUP(Table_Data_Table_1[[#This Row],[Item ID]],DataTable,17,FALSE),\"\"))","v":""}]
["",null,{"$f":"IF(Table_Data_Table_1[[#This Row],[Item ID]]=\"\",\"\",IFERROR(VLOOKUP(Table_Data_Table_1[[#This Row],[Item ID]],DataTable,16,FALSE),\"\"))","v":""},null,null,null,null,{"$f":"IF(Table_Data_Table_1[[#This Row],[Valuation Method]]=\"Vacant\",VLOOKUP(Table_Data_Table_1[[#This Row],[Item ID]],DataTable,6,FALSE)-VLOOKUP(Table_Data_Table_1[[#This Row],[Item ID]],DataTable,13,FALSE),IF(Table_Data_Table_1[[#This Row],[Valuation Method]]=\"Abstraction\",VLOOKUP(Table_Data_Table_1[[#This Row],[Item ID]],DataTable,6,FALSE)-VLOOKUP(Table_Data_Table_1[[#This Row],[Item ID]],DataTable,13,FALSE),IF(Table_Data_Table_1[[#This Row],[Valuation Method]]=\"Allocation\",VLOOKUP(Table_Data_Table_1[[#This Row],[Item ID]],DataTable,6,FALSE)*I280,\"\")))","v":""},{"$f":"IF(Table_Data_Table_1[[#This Row],[Valuation Method]]=\"Vacant\",\"N/A\",IF(Table_Data_Table_1[[#This Row],[Valuation Method]]=\"Abstraction\",Table_Data_Table_1[[#This Row],[Land\nResidual]]/VLOOKUP(Table_Data_Table_1[[#This Row],[Item ID]],DataTable,6,FALSE),IF(Table_Data_Table_1[[#This Row],[Valuation Method]]=\"Allocation\",'Global Settings'!$H$20,\"\")))","v":""},{"$f":"IFERROR(ROUND(Table_Data_Table_1[[#This Row],[Resid\nSq Ft]]/43560,3),\"\")","v":""},{"$f":"IF(Table_Data_Table_1[[#This Row],[Item ID]]=\"\",\"\",IFERROR(VLOOKUP(Table_Data_Table_1[[#This Row],[Item ID]],DataTable,10,FALSE)-VLOOKUP(Table_Data_Table_1[[#This Row],[Item ID]],DataTable,12,FALSE),\"\"))","v":""},{"$f":"IFERROR(Table_Data_Table_1[[#This Row],[Land\nResidual]]/Table_Data_Table_1[[#This Row],[Resid\nAcre]],\"\")","v":""},{"$f":"IFERROR(ROUND(Table_Data_Table_1[[#This Row],[Land\nResidual]]/Table_Data_Table_1[[#This Row],[Resid\nSq Ft]],2),\"\")","v":""},{"$f":"IF(Table_Data_Table_1[[#This Row],[Item ID]]=\"\",\"\",ROUND(DAYS360(Table_Data_Table_1[[#This Row],[Sale Date]],'Global Settings'!$H$5)/30,0))","v":""},{"$f":"IFERROR(IF(AND(Table_Data_Table_1[[#This Row],[Months To\nMid-Point]]<12.01,Table_Data_Table_1[[#This Row],[Months To\nMid-Point]]>-13),0,(Table_Data_Table_1[[#This Row],[Months To\nMid-Point]]*'Global Settings'!$H$6)),\"\")","v":""},{"$f":"IFERROR(Table_Data_Table_1[[#This Row],[Land\nResidual]]*(Table_Data_Table_1[[#This Row],[Time\nAdjust]]+1),\"\")","v":""},{"$f":"IFERROR(Table_Data_Table_1[[#This Row],[Adjusted\nSale Price]]/Table_Data_Table_1[[#This Row],[Resid\nAcre]],\"\")","v":""},{"$f":"IFERROR(ROUND(Table_Data_Table_1[[#This Row],[Adjusted\nSale Price]]/Table_Data_Table_1[[#This Row],[Resid\nSq Ft]],2),\"\")","v":""},{"$f":"IFERROR(IF(VLOOKUP(Table_Data_Table_1[[#This Row],[Item ID]],DataTable,11,FALSE)=0,\"N/A\",Table_Data_Table_1[[#This Row],[Adjusted\nSale Price]]/VLOOKUP(Table_Data_Table_1[[#This Row],[Item ID]],DataTable,11,FALSE)),\"\")","v":""},{"$f":"IF(IFERROR(VLOOKUP(Table_Data_Table_1[[#This Row],[Item ID]],DataTable,17,FALSE),\"\")=0,\"\",IFERROR(VLOOKUP(Table_Data_Table_1[[#This Row],[Item ID]],DataTable,17,FALSE),\"\"))","v":""}]
["",null,{"$f":"IF(Table_Data_Table_1[[#This Row],[Item ID]]=\"\",\"\",IFERROR(VLOOKUP(Table_Data_Table_1[[#This Row],[Item ID]],DataTable,16,FALSE),\"\"))","v":""},null,null,null,null,{"$f":"IF(Table_Data_Table_1[[#This Row],[Valuation Method]]=\"Vacant\",VLOOKUP(Table_Data_Table_1[[#This Row],[Item ID]],DataTable,6,FALSE)-VLOOKUP(Table_Data_Table_1[[#This Row],[Item ID]],DataTable,13,FALSE),IF(Table_Data_Table_1[[#This Row],[Valuation Method]]=\"Abstraction\",VLOOKUP(Table_Data_Table_1[[#This Row],[Item ID]],DataTable,6,FALSE)-VLOOKUP(Table_Data_Table_1[[#This Row],[Item ID]],DataTable,13,FALSE),IF(Table_Data_Table_1[[#This Row],[Valuation Method]]=\"Allocation\",VLOOKUP(Table_Data_Table_1[[#This Row],[Item ID]],DataTable,6,FALSE)*I281,\"\")))","v":""},{"$f":"IF(Table_Data_Table_1[[#This Row],[Valuation Method]]=\"Vacant\",\"N/A\",IF(Table_Data_Table_1[[#This Row],[Valuation Method]]=\"Abstraction\",Table_Data_Table_1[[#This Row],[Land\nResidual]]/VLOOKUP(Table_Data_Table_1[[#This Row],[Item ID]],DataTable,6,FALSE),IF(Table_Data_Table_1[[#This Row],[Valuation Method]]=\"Allocation\",'Global Settings'!$H$20,\"\")))","v":""},{"$f":"IFERROR(ROUND(Table_Data_Table_1[[#This Row],[Resid\nSq Ft]]/43560,3),\"\")","v":""},{"$f":"IF(Table_Data_Table_1[[#This Row],[Item ID]]=\"\",\"\",IFERROR(VLOOKUP(Table_Data_Table_1[[#This Row],[Item ID]],DataTable,10,FALSE)-VLOOKUP(Table_Data_Table_1[[#This Row],[Item ID]],DataTable,12,FALSE),\"\"))","v":""},{"$f":"IFERROR(Table_Data_Table_1[[#This Row],[Land\nResidual]]/Table_Data_Table_1[[#This Row],[Resid\nAcre]],\"\")","v":""},{"$f":"IFERROR(ROUND(Table_Data_Table_1[[#This Row],[Land\nResidual]]/Table_Data_Table_1[[#This Row],[Resid\nSq Ft]],2),\"\")","v":""},{"$f":"IF(Table_Data_Table_1[[#This Row],[Item ID]]=\"\",\"\",ROUND(DAYS360(Table_Data_Table_1[[#This Row],[Sale Date]],'Global Settings'!$H$5)/30,0))","v":""},{"$f":"IFERROR(IF(AND(Table_Data_Table_1[[#This Row],[Months To\nMid-Point]]<12.01,Table_Data_Table_1[[#This Row],[Months To\nMid-Point]]>-13),0,(Table_Data_Table_1[[#This Row],[Months To\nMid-Point]]*'Global Settings'!$H$6)),\"\")","v":""},{"$f":"IFERROR(Table_Data_Table_1[[#This Row],[Land\nResidual]]*(Table_Data_Table_1[[#This Row],[Time\nAdjust]]+1),\"\")","v":""},{"$f":"IFERROR(Table_Data_Table_1[[#This Row],[Adjusted\nSale Price]]/Table_Data_Table_1[[#This Row],[Resid\nAcre]],\"\")","v":""},{"$f":"IFERROR(ROUND(Table_Data_Table_1[[#This Row],[Adjusted\nSale Price]]/Table_Data_Table_1[[#This Row],[Resid\nSq Ft]],2),\"\")","v":""},{"$f":"IFERROR(IF(VLOOKUP(Table_Data_Table_1[[#This Row],[Item ID]],DataTable,11,FALSE)=0,\"N/A\",Table_Data_Table_1[[#This Row],[Adjusted\nSale Price]]/VLOOKUP(Table_Data_Table_1[[#This Row],[Item ID]],DataTable,11,FALSE)),\"\")","v":""},{"$f":"IF(IFERROR(VLOOKUP(Table_Data_Table_1[[#This Row],[Item ID]],DataTable,17,FALSE),\"\")=0,\"\",IFERROR(VLOOKUP(Table_Data_Table_1[[#This Row],[Item ID]],DataTable,17,FALSE),\"\"))","v":""}]
["",null,{"$f":"IF(Table_Data_Table_1[[#This Row],[Item ID]]=\"\",\"\",IFERROR(VLOOKUP(Table_Data_Table_1[[#This Row],[Item ID]],DataTable,16,FALSE),\"\"))","v":""},null,null,null,null,{"$f":"IF(Table_Data_Table_1[[#This Row],[Valuation Method]]=\"Vacant\",VLOOKUP(Table_Data_Table_1[[#This Row],[Item ID]],DataTable,6,FALSE)-VLOOKUP(Table_Data_Table_1[[#This Row],[Item ID]],DataTable,13,FALSE),IF(Table_Data_Table_1[[#This Row],[Valuation Method]]=\"Abstraction\",VLOOKUP(Table_Data_Table_1[[#This Row],[Item ID]],DataTable,6,FALSE)-VLOOKUP(Table_Data_Table_1[[#This Row],[Item ID]],DataTable,13,FALSE),IF(Table_Data_Table_1[[#This Row],[Valuation Method]]=\"Allocation\",VLOOKUP(Table_Data_Table_1[[#This Row],[Item ID]],DataTable,6,FALSE)*I282,\"\")))","v":""},{"$f":"IF(Table_Data_Table_1[[#This Row],[Valuation Method]]=\"Vacant\",\"N/A\",IF(Table_Data_Table_1[[#This Row],[Valuation Method]]=\"Abstraction\",Table_Data_Table_1[[#This Row],[Land\nResidual]]/VLOOKUP(Table_Data_Table_1[[#This Row],[Item ID]],DataTable,6,FALSE),IF(Table_Data_Table_1[[#This Row],[Valuation Method]]=\"Allocation\",'Global Settings'!$H$20,\"\")))","v":""},{"$f":"IFERROR(ROUND(Table_Data_Table_1[[#This Row],[Resid\nSq Ft]]/43560,3),\"\")","v":""},{"$f":"IF(Table_Data_Table_1[[#This Row],[Item ID]]=\"\",\"\",IFERROR(VLOOKUP(Table_Data_Table_1[[#This Row],[Item ID]],DataTable,10,FALSE)-VLOOKUP(Table_Data_Table_1[[#This Row],[Item ID]],DataTable,12,FALSE),\"\"))","v":""},{"$f":"IFERROR(Table_Data_Table_1[[#This Row],[Land\nResidual]]/Table_Data_Table_1[[#This Row],[Resid\nAcre]],\"\")","v":""},{"$f":"IFERROR(ROUND(Table_Data_Table_1[[#This Row],[Land\nResidual]]/Table_Data_Table_1[[#This Row],[Resid\nSq Ft]],2),\"\")","v":""},{"$f":"IF(Table_Data_Table_1[[#This Row],[Item ID]]=\"\",\"\",ROUND(DAYS360(Table_Data_Table_1[[#This Row],[Sale Date]],'Global Settings'!$H$5)/30,0))","v":""},{"$f":"IFERROR(IF(AND(Table_Data_Table_1[[#This Row],[Months To\nMid-Point]]<12.01,Table_Data_Table_1[[#This Row],[Months To\nMid-Point]]>-13),0,(Table_Data_Table_1[[#This Row],[Months To\nMid-Point]]*'Global Settings'!$H$6)),\"\")","v":""},{"$f":"IFERROR(Table_Data_Table_1[[#This Row],[Land\nResidual]]*(Table_Data_Table_1[[#This Row],[Time\nAdjust]]+1),\"\")","v":""},{"$f":"IFERROR(Table_Data_Table_1[[#This Row],[Adjusted\nSale Price]]/Table_Data_Table_1[[#This Row],[Resid\nAcre]],\"\")","v":""},{"$f":"IFERROR(ROUND(Table_Data_Table_1[[#This Row],[Adjusted\nSale Price]]/Table_Data_Table_1[[#This Row],[Resid\nSq Ft]],2),\"\")","v":""},{"$f":"IFERROR(IF(VLOOKUP(Table_Data_Table_1[[#This Row],[Item ID]],DataTable,11,FALSE)=0,\"N/A\",Table_Data_Table_1[[#This Row],[Adjusted\nSale Price]]/VLOOKUP(Table_Data_Table_1[[#This Row],[Item ID]],DataTable,11,FALSE)),\"\")","v":""},{"$f":"IF(IFERROR(VLOOKUP(Table_Data_Table_1[[#This Row],[Item ID]],DataTable,17,FALSE),\"\")=0,\"\",IFERROR(VLOOKUP(Table_Data_Table_1[[#This Row],[Item ID]],DataTable,17,FALSE),\"\"))","v":""}]
["",null,{"$f":"IF(Table_Data_Table_1[[#This Row],[Item ID]]=\"\",\"\",IFERROR(VLOOKUP(Table_Data_Table_1[[#This Row],[Item ID]],DataTable,16,FALSE),\"\"))","v":""},null,null,null,null,{"$f":"IF(Table_Data_Table_1[[#This Row],[Valuation Method]]=\"Vacant\",VLOOKUP(Table_Data_Table_1[[#This Row],[Item ID]],DataTable,6,FALSE)-VLOOKUP(Table_Data_Table_1[[#This Row],[Item ID]],DataTable,13,FALSE),IF(Table_Data_Table_1[[#This Row],[Valuation Method]]=\"Abstraction\",VLOOKUP(Table_Data_Table_1[[#This Row],[Item ID]],DataTable,6,FALSE)-VLOOKUP(Table_Data_Table_1[[#This Row],[Item ID]],DataTable,13,FALSE),IF(Table_Data_Table_1[[#This Row],[Valuation Method]]=\"Allocation\",VLOOKUP(Table_Data_Table_1[[#This Row],[Item ID]],DataTable,6,FALSE)*I283,\"\")))","v":""},{"$f":"IF(Table_Data_Table_1[[#This Row],[Valuation Method]]=\"Vacant\",\"N/A\",IF(Table_Data_Table_1[[#This Row],[Valuation Method]]=\"Abstraction\",Table_Data_Table_1[[#This Row],[Land\nResidual]]/VLOOKUP(Table_Data_Table_1[[#This Row],[Item ID]],DataTable,6,FALSE),IF(Table_Data_Table_1[[#This Row],[Valuation Method]]=\"Allocation\",'Global Settings'!$H$20,\"\")))","v":""},{"$f":"IFERROR(ROUND(Table_Data_Table_1[[#This Row],[Resid\nSq Ft]]/43560,3),\"\")","v":""},{"$f":"IF(Table_Data_Table_1[[#This Row],[Item ID]]=\"\",\"\",IFERROR(VLOOKUP(Table_Data_Table_1[[#This Row],[Item ID]],DataTable,10,FALSE)-VLOOKUP(Table_Data_Table_1[[#This Row],[Item ID]],DataTable,12,FALSE),\"\"))","v":""},{"$f":"IFERROR(Table_Data_Table_1[[#This Row],[Land\nResidual]]/Table_Data_Table_1[[#This Row],[Resid\nAcre]],\"\")","v":""},{"$f":"IFERROR(ROUND(Table_Data_Table_1[[#This Row],[Land\nResidual]]/Table_Data_Table_1[[#This Row],[Resid\nSq Ft]],2),\"\")","v":""},{"$f":"IF(Table_Data_Table_1[[#This Row],[Item ID]]=\"\",\"\",ROUND(DAYS360(Table_Data_Table_1[[#This Row],[Sale Date]],'Global Settings'!$H$5)/30,0))","v":""},{"$f":"IFERROR(IF(AND(Table_Data_Table_1[[#This Row],[Months To\nMid-Point]]<12.01,Table_Data_Table_1[[#This Row],[Months To\nMid-Point]]>-13),0,(Table_Data_Table_1[[#This Row],[Months To\nMid-Point]]*'Global Settings'!$H$6)),\"\")","v":""},{"$f":"IFERROR(Table_Data_Table_1[[#This Row],[Land\nResidual]]*(Table_Data_Table_1[[#This Row],[Time\nAdjust]]+1),\"\")","v":""},{"$f":"IFERROR(Table_Data_Table_1[[#This Row],[Adjusted\nSale Price]]/Table_Data_Table_1[[#This Row],[Resid\nAcre]],\"\")","v":""},{"$f":"IFERROR(ROUND(Table_Data_Table_1[[#This Row],[Adjusted\nSale Price]]/Table_Data_Table_1[[#This Row],[Resid\nSq Ft]],2),\"\")","v":""},{"$f":"IFERROR(IF(VLOOKUP(Table_Data_Table_1[[#This Row],[Item ID]],DataTable,11,FALSE)=0,\"N/A\",Table_Data_Table_1[[#This Row],[Adjusted\nSale Price]]/VLOOKUP(Table_Data_Table_1[[#This Row],[Item ID]],DataTable,11,FALSE)),\"\")","v":""},{"$f":"IF(IFERROR(VLOOKUP(Table_Data_Table_1[[#This Row],[Item ID]],DataTable,17,FALSE),\"\")=0,\"\",IFERROR(VLOOKUP(Table_Data_Table_1[[#This Row],[Item ID]],DataTable,17,FALSE),\"\"))","v":""}]
["",null,{"$f":"IF(Table_Data_Table_1[[#This Row],[Item ID]]=\"\",\"\",IFERROR(VLOOKUP(Table_Data_Table_1[[#This Row],[Item ID]],DataTable,16,FALSE),\"\"))","v":""},null,null,null,null,{"$f":"IF(Table_Data_Table_1[[#This Row],[Valuation Method]]=\"Vacant\",VLOOKUP(Table_Data_Table_1[[#This Row],[Item ID]],DataTable,6,FALSE)-VLOOKUP(Table_Data_Table_1[[#This Row],[Item ID]],DataTable,13,FALSE),IF(Table_Data_Table_1[[#This Row],[Valuation Method]]=\"Abstraction\",VLOOKUP(Table_Data_Table_1[[#This Row],[Item ID]],DataTable,6,FALSE)-VLOOKUP(Table_Data_Table_1[[#This Row],[Item ID]],DataTable,13,FALSE),IF(Table_Data_Table_1[[#This Row],[Valuation Method]]=\"Allocation\",VLOOKUP(Table_Data_Table_1[[#This Row],[Item ID]],DataTable,6,FALSE)*I284,\"\")))","v":""},{"$f":"IF(Table_Data_Table_1[[#This Row],[Valuation Method]]=\"Vacant\",\"N/A\",IF(Table_Data_Table_1[[#This Row],[Valuation Method]]=\"Abstraction\",Table_Data_Table_1[[#This Row],[Land\nResidual]]/VLOOKUP(Table_Data_Table_1[[#This Row],[Item ID]],DataTable,6,FALSE),IF(Table_Data_Table_1[[#This Row],[Valuation Method]]=\"Allocation\",'Global Settings'!$H$20,\"\")))","v":""},{"$f":"IFERROR(ROUND(Table_Data_Table_1[[#This Row],[Resid\nSq Ft]]/43560,3),\"\")","v":""},{"$f":"IF(Table_Data_Table_1[[#This Row],[Item ID]]=\"\",\"\",IFERROR(VLOOKUP(Table_Data_Table_1[[#This Row],[Item ID]],DataTable,10,FALSE)-VLOOKUP(Table_Data_Table_1[[#This Row],[Item ID]],DataTable,12,FALSE),\"\"))","v":""},{"$f":"IFERROR(Table_Data_Table_1[[#This Row],[Land\nResidual]]/Table_Data_Table_1[[#This Row],[Resid\nAcre]],\"\")","v":""},{"$f":"IFERROR(ROUND(Table_Data_Table_1[[#This Row],[Land\nResidual]]/Table_Data_Table_1[[#This Row],[Resid\nSq Ft]],2),\"\")","v":""},{"$f":"IF(Table_Data_Table_1[[#This Row],[Item ID]]=\"\",\"\",ROUND(DAYS360(Table_Data_Table_1[[#This Row],[Sale Date]],'Global Settings'!$H$5)/30,0))","v":""},{"$f":"IFERROR(IF(AND(Table_Data_Table_1[[#This Row],[Months To\nMid-Point]]<12.01,Table_Data_Table_1[[#This Row],[Months To\nMid-Point]]>-13),0,(Table_Data_Table_1[[#This Row],[Months To\nMid-Point]]*'Global Settings'!$H$6)),\"\")","v":""},{"$f":"IFERROR(Table_Data_Table_1[[#This Row],[Land\nResidual]]*(Table_Data_Table_1[[#This Row],[Time\nAdjust]]+1),\"\")","v":""},{"$f":"IFERROR(Table_Data_Table_1[[#This Row],[Adjusted\nSale Price]]/Table_Data_Table_1[[#This Row],[Resid\nAcre]],\"\")","v":""},{"$f":"IFERROR(ROUND(Table_Data_Table_1[[#This Row],[Adjusted\nSale Price]]/Table_Data_Table_1[[#This Row],[Resid\nSq Ft]],2),\"\")","v":""},{"$f":"IFERROR(IF(VLOOKUP(Table_Data_Table_1[[#This Row],[Item ID]],DataTable,11,FALSE)=0,\"N/A\",Table_Data_Table_1[[#This Row],[Adjusted\nSale Price]]/VLOOKUP(Table_Data_Table_1[[#This Row],[Item ID]],DataTable,11,FALSE)),\"\")","v":""},{"$f":"IF(IFERROR(VLOOKUP(Table_Data_Table_1[[#This Row],[Item ID]],DataTable,17,FALSE),\"\")=0,\"\",IFERROR(VLOOKUP(Table_Data_Table_1[[#This Row],[Item ID]],DataTable,17,FALSE),\"\"))","v":""}]
["",null,{"$f":"IF(Table_Data_Table_1[[#This Row],[Item ID]]=\"\",\"\",IFERROR(VLOOKUP(Table_Data_Table_1[[#This Row],[Item ID]],DataTable,16,FALSE),\"\"))","v":""},null,null,null,null,{"$f":"IF(Table_Data_Table_1[[#This Row],[Valuation Method]]=\"Vacant\",VLOOKUP(Table_Data_Table_1[[#This Row],[Item ID]],DataTable,6,FALSE)-VLOOKUP(Table_Data_Table_1[[#This Row],[Item ID]],DataTable,13,FALSE),IF(Table_Data_Table_1[[#This Row],[Valuation Method]]=\"Abstraction\",VLOOKUP(Table_Data_Table_1[[#This Row],[Item ID]],DataTable,6,FALSE)-VLOOKUP(Table_Data_Table_1[[#This Row],[Item ID]],DataTable,13,FALSE),IF(Table_Data_Table_1[[#This Row],[Valuation Method]]=\"Allocation\",VLOOKUP(Table_Data_Table_1[[#This Row],[Item ID]],DataTable,6,FALSE)*I285,\"\")))","v":""},{"$f":"IF(Table_Data_Table_1[[#This Row],[Valuation Method]]=\"Vacant\",\"N/A\",IF(Table_Data_Table_1[[#This Row],[Valuation Method]]=\"Abstraction\",Table_Data_Table_1[[#This Row],[Land\nResidual]]/VLOOKUP(Table_Data_Table_1[[#This Row],[Item ID]],DataTable,6,FALSE),IF(Table_Data_Table_1[[#This Row],[Valuation Method]]=\"Allocation\",'Global Settings'!$H$20,\"\")))","v":""},{"$f":"IFERROR(ROUND(Table_Data_Table_1[[#This Row],[Resid\nSq Ft]]/43560,3),\"\")","v":""},{"$f":"IF(Table_Data_Table_1[[#This Row],[Item ID]]=\"\",\"\",IFERROR(VLOOKUP(Table_Data_Table_1[[#This Row],[Item ID]],DataTable,10,FALSE)-VLOOKUP(Table_Data_Table_1[[#This Row],[Item ID]],DataTable,12,FALSE),\"\"))","v":""},{"$f":"IFERROR(Table_Data_Table_1[[#This Row],[Land\nResidual]]/Table_Data_Table_1[[#This Row],[Resid\nAcre]],\"\")","v":""},{"$f":"IFERROR(ROUND(Table_Data_Table_1[[#This Row],[Land\nResidual]]/Table_Data_Table_1[[#This Row],[Resid\nSq Ft]],2),\"\")","v":""},{"$f":"IF(Table_Data_Table_1[[#This Row],[Item ID]]=\"\",\"\",ROUND(DAYS360(Table_Data_Table_1[[#This Row],[Sale Date]],'Global Settings'!$H$5)/30,0))","v":""},{"$f":"IFERROR(IF(AND(Table_Data_Table_1[[#This Row],[Months To\nMid-Point]]<12.01,Table_Data_Table_1[[#This Row],[Months To\nMid-Point]]>-13),0,(Table_Data_Table_1[[#This Row],[Months To\nMid-Point]]*'Global Settings'!$H$6)),\"\")","v":""},{"$f":"IFERROR(Table_Data_Table_1[[#This Row],[Land\nResidual]]*(Table_Data_Table_1[[#This Row],[Time\nAdjust]]+1),\"\")","v":""},{"$f":"IFERROR(Table_Data_Table_1[[#This Row],[Adjusted\nSale Price]]/Table_Data_Table_1[[#This Row],[Resid\nAcre]],\"\")","v":""},{"$f":"IFERROR(ROUND(Table_Data_Table_1[[#This Row],[Adjusted\nSale Price]]/Table_Data_Table_1[[#This Row],[Resid\nSq Ft]],2),\"\")","v":""},{"$f":"IFERROR(IF(VLOOKUP(Table_Data_Table_1[[#This Row],[Item ID]],DataTable,11,FALSE)=0,\"N/A\",Table_Data_Table_1[[#This Row],[Adjusted\nSale Price]]/VLOOKUP(Table_Data_Table_1[[#This Row],[Item ID]],DataTable,11,FALSE)),\"\")","v":""},{"$f":"IF(IFERROR(VLOOKUP(Table_Data_Table_1[[#This Row],[Item ID]],DataTable,17,FALSE),\"\")=0,\"\",IFERROR(VLOOKUP(Table_Data_Table_1[[#This Row],[Item ID]],DataTable,17,FALSE),\"\"))","v":""}]
["",null,{"$f":"IF(Table_Data_Table_1[[#This Row],[Item ID]]=\"\",\"\",IFERROR(VLOOKUP(Table_Data_Table_1[[#This Row],[Item ID]],DataTable,16,FALSE),\"\"))","v":""},null,null,null,null,{"$f":"IF(Table_Data_Table_1[[#This Row],[Valuation Method]]=\"Vacant\",VLOOKUP(Table_Data_Table_1[[#This Row],[Item ID]],DataTable,6,FALSE)-VLOOKUP(Table_Data_Table_1[[#This Row],[Item ID]],DataTable,13,FALSE),IF(Table_Data_Table_1[[#This Row],[Valuation Method]]=\"Abstraction\",VLOOKUP(Table_Data_Table_1[[#This Row],[Item ID]],DataTable,6,FALSE)-VLOOKUP(Table_Data_Table_1[[#This Row],[Item ID]],DataTable,13,FALSE),IF(Table_Data_Table_1[[#This Row],[Valuation Method]]=\"Allocation\",VLOOKUP(Table_Data_Table_1[[#This Row],[Item ID]],DataTable,6,FALSE)*I286,\"\")))","v":""},{"$f":"IF(Table_Data_Table_1[[#This Row],[Valuation Method]]=\"Vacant\",\"N/A\",IF(Table_Data_Table_1[[#This Row],[Valuation Method]]=\"Abstraction\",Table_Data_Table_1[[#This Row],[Land\nResidual]]/VLOOKUP(Table_Data_Table_1[[#This Row],[Item ID]],DataTable,6,FALSE),IF(Table_Data_Table_1[[#This Row],[Valuation Method]]=\"Allocation\",'Global Settings'!$H$20,\"\")))","v":""},{"$f":"IFERROR(ROUND(Table_Data_Table_1[[#This Row],[Resid\nSq Ft]]/43560,3),\"\")","v":""},{"$f":"IF(Table_Data_Table_1[[#This Row],[Item ID]]=\"\",\"\",IFERROR(VLOOKUP(Table_Data_Table_1[[#This Row],[Item ID]],DataTable,10,FALSE)-VLOOKUP(Table_Data_Table_1[[#This Row],[Item ID]],DataTable,12,FALSE),\"\"))","v":""},{"$f":"IFERROR(Table_Data_Table_1[[#This Row],[Land\nResidual]]/Table_Data_Table_1[[#This Row],[Resid\nAcre]],\"\")","v":""},{"$f":"IFERROR(ROUND(Table_Data_Table_1[[#This Row],[Land\nResidual]]/Table_Data_Table_1[[#This Row],[Resid\nSq Ft]],2),\"\")","v":""},{"$f":"IF(Table_Data_Table_1[[#This Row],[Item ID]]=\"\",\"\",ROUND(DAYS360(Table_Data_Table_1[[#This Row],[Sale Date]],'Global Settings'!$H$5)/30,0))","v":""},{"$f":"IFERROR(IF(AND(Table_Data_Table_1[[#This Row],[Months To\nMid-Point]]<12.01,Table_Data_Table_1[[#This Row],[Months To\nMid-Point]]>-13),0,(Table_Data_Table_1[[#This Row],[Months To\nMid-Point]]*'Global Settings'!$H$6)),\"\")","v":""},{"$f":"IFERROR(Table_Data_Table_1[[#This Row],[Land\nResidual]]*(Table_Data_Table_1[[#This Row],[Time\nAdjust]]+1),\"\")","v":""},{"$f":"IFERROR(Table_Data_Table_1[[#This Row],[Adjusted\nSale Price]]/Table_Data_Table_1[[#This Row],[Resid\nAcre]],\"\")","v":""},{"$f":"IFERROR(ROUND(Table_Data_Table_1[[#This Row],[Adjusted\nSale Price]]/Table_Data_Table_1[[#This Row],[Resid\nSq Ft]],2),\"\")","v":""},{"$f":"IFERROR(IF(VLOOKUP(Table_Data_Table_1[[#This Row],[Item ID]],DataTable,11,FALSE)=0,\"N/A\",Table_Data_Table_1[[#This Row],[Adjusted\nSale Price]]/VLOOKUP(Table_Data_Table_1[[#This Row],[Item ID]],DataTable,11,FALSE)),\"\")","v":""},{"$f":"IF(IFERROR(VLOOKUP(Table_Data_Table_1[[#This Row],[Item ID]],DataTable,17,FALSE),\"\")=0,\"\",IFERROR(VLOOKUP(Table_Data_Table_1[[#This Row],[Item ID]],DataTable,17,FALSE),\"\"))","v":""}]
["",null,{"$f":"IF(Table_Data_Table_1[[#This Row],[Item ID]]=\"\",\"\",IFERROR(VLOOKUP(Table_Data_Table_1[[#This Row],[Item ID]],DataTable,16,FALSE),\"\"))","v":""},null,null,null,null,{"$f":"IF(Table_Data_Table_1[[#This Row],[Valuation Method]]=\"Vacant\",VLOOKUP(Table_Data_Table_1[[#This Row],[Item ID]],DataTable,6,FALSE)-VLOOKUP(Table_Data_Table_1[[#This Row],[Item ID]],DataTable,13,FALSE),IF(Table_Data_Table_1[[#This Row],[Valuation Method]]=\"Abstraction\",VLOOKUP(Table_Data_Table_1[[#This Row],[Item ID]],DataTable,6,FALSE)-VLOOKUP(Table_Data_Table_1[[#This Row],[Item ID]],DataTable,13,FALSE),IF(Table_Data_Table_1[[#This Row],[Valuation Method]]=\"Allocation\",VLOOKUP(Table_Data_Table_1[[#This Row],[Item ID]],DataTable,6,FALSE)*I287,\"\")))","v":""},{"$f":"IF(Table_Data_Table_1[[#This Row],[Valuation Method]]=\"Vacant\",\"N/A\",IF(Table_Data_Table_1[[#This Row],[Valuation Method]]=\"Abstraction\",Table_Data_Table_1[[#This Row],[Land\nResidual]]/VLOOKUP(Table_Data_Table_1[[#This Row],[Item ID]],DataTable,6,FALSE),IF(Table_Data_Table_1[[#This Row],[Valuation Method]]=\"Allocation\",'Global Settings'!$H$20,\"\")))","v":""},{"$f":"IFERROR(ROUND(Table_Data_Table_1[[#This Row],[Resid\nSq Ft]]/43560,3),\"\")","v":""},{"$f":"IF(Table_Data_Table_1[[#This Row],[Item ID]]=\"\",\"\",IFERROR(VLOOKUP(Table_Data_Table_1[[#This Row],[Item ID]],DataTable,10,FALSE)-VLOOKUP(Table_Data_Table_1[[#This Row],[Item ID]],DataTable,12,FALSE),\"\"))","v":""},{"$f":"IFERROR(Table_Data_Table_1[[#This Row],[Land\nResidual]]/Table_Data_Table_1[[#This Row],[Resid\nAcre]],\"\")","v":""},{"$f":"IFERROR(ROUND(Table_Data_Table_1[[#This Row],[Land\nResidual]]/Table_Data_Table_1[[#This Row],[Resid\nSq Ft]],2),\"\")","v":""},{"$f":"IF(Table_Data_Table_1[[#This Row],[Item ID]]=\"\",\"\",ROUND(DAYS360(Table_Data_Table_1[[#This Row],[Sale Date]],'Global Settings'!$H$5)/30,0))","v":""},{"$f":"IFERROR(IF(AND(Table_Data_Table_1[[#This Row],[Months To\nMid-Point]]<12.01,Table_Data_Table_1[[#This Row],[Months To\nMid-Point]]>-13),0,(Table_Data_Table_1[[#This Row],[Months To\nMid-Point]]*'Global Settings'!$H$6)),\"\")","v":""},{"$f":"IFERROR(Table_Data_Table_1[[#This Row],[Land\nResidual]]*(Table_Data_Table_1[[#This Row],[Time\nAdjust]]+1),\"\")","v":""},{"$f":"IFERROR(Table_Data_Table_1[[#This Row],[Adjusted\nSale Price]]/Table_Data_Table_1[[#This Row],[Resid\nAcre]],\"\")","v":""},{"$f":"IFERROR(ROUND(Table_Data_Table_1[[#This Row],[Adjusted\nSale Price]]/Table_Data_Table_1[[#This Row],[Resid\nSq Ft]],2),\"\")","v":""},{"$f":"IFERROR(IF(VLOOKUP(Table_Data_Table_1[[#This Row],[Item ID]],DataTable,11,FALSE)=0,\"N/A\",Table_Data_Table_1[[#This Row],[Adjusted\nSale Price]]/VLOOKUP(Table_Data_Table_1[[#This Row],[Item ID]],DataTable,11,FALSE)),\"\")","v":""},{"$f":"IF(IFERROR(VLOOKUP(Table_Data_Table_1[[#This Row],[Item ID]],DataTable,17,FALSE),\"\")=0,\"\",IFERROR(VLOOKUP(Table_Data_Table_1[[#This Row],[Item ID]],DataTable,17,FALSE),\"\"))","v":""}]
["",null,{"$f":"IF(Table_Data_Table_1[[#This Row],[Item ID]]=\"\",\"\",IFERROR(VLOOKUP(Table_Data_Table_1[[#This Row],[Item ID]],DataTable,16,FALSE),\"\"))","v":""},null,null,null,null,{"$f":"IF(Table_Data_Table_1[[#This Row],[Valuation Method]]=\"Vacant\",VLOOKUP(Table_Data_Table_1[[#This Row],[Item ID]],DataTable,6,FALSE)-VLOOKUP(Table_Data_Table_1[[#This Row],[Item ID]],DataTable,13,FALSE),IF(Table_Data_Table_1[[#This Row],[Valuation Method]]=\"Abstraction\",VLOOKUP(Table_Data_Table_1[[#This Row],[Item ID]],DataTable,6,FALSE)-VLOOKUP(Table_Data_Table_1[[#This Row],[Item ID]],DataTable,13,FALSE),IF(Table_Data_Table_1[[#This Row],[Valuation Method]]=\"Allocation\",VLOOKUP(Table_Data_Table_1[[#This Row],[Item ID]],DataTable,6,FALSE)*I288,\"\")))","v":""},{"$f":"IF(Table_Data_Table_1[[#This Row],[Valuation Method]]=\"Vacant\",\"N/A\",IF(Table_Data_Table_1[[#This Row],[Valuation Method]]=\"Abstraction\",Table_Data_Table_1[[#This Row],[Land\nResidual]]/VLOOKUP(Table_Data_Table_1[[#This Row],[Item ID]],DataTable,6,FALSE),IF(Table_Data_Table_1[[#This Row],[Valuation Method]]=\"Allocation\",'Global Settings'!$H$20,\"\")))","v":""},{"$f":"IFERROR(ROUND(Table_Data_Table_1[[#This Row],[Resid\nSq Ft]]/43560,3),\"\")","v":""},{"$f":"IF(Table_Data_Table_1[[#This Row],[Item ID]]=\"\",\"\",IFERROR(VLOOKUP(Table_Data_Table_1[[#This Row],[Item ID]],DataTable,10,FALSE)-VLOOKUP(Table_Data_Table_1[[#This Row],[Item ID]],DataTable,12,FALSE),\"\"))","v":""},{"$f":"IFERROR(Table_Data_Table_1[[#This Row],[Land\nResidual]]/Table_Data_Table_1[[#This Row],[Resid\nAcre]],\"\")","v":""},{"$f":"IFERROR(ROUND(Table_Data_Table_1[[#This Row],[Land\nResidual]]/Table_Data_Table_1[[#This Row],[Resid\nSq Ft]],2),\"\")","v":""},{"$f":"IF(Table_Data_Table_1[[#This Row],[Item ID]]=\"\",\"\",ROUND(DAYS360(Table_Data_Table_1[[#This Row],[Sale Date]],'Global Settings'!$H$5)/30,0))","v":""},{"$f":"IFERROR(IF(AND(Table_Data_Table_1[[#This Row],[Months To\nMid-Point]]<12.01,Table_Data_Table_1[[#This Row],[Months To\nMid-Point]]>-13),0,(Table_Data_Table_1[[#This Row],[Months To\nMid-Point]]*'Global Settings'!$H$6)),\"\")","v":""},{"$f":"IFERROR(Table_Data_Table_1[[#This Row],[Land\nResidual]]*(Table_Data_Table_1[[#This Row],[Time\nAdjust]]+1),\"\")","v":""},{"$f":"IFERROR(Table_Data_Table_1[[#This Row],[Adjusted\nSale Price]]/Table_Data_Table_1[[#This Row],[Resid\nAcre]],\"\")","v":""},{"$f":"IFERROR(ROUND(Table_Data_Table_1[[#This Row],[Adjusted\nSale Price]]/Table_Data_Table_1[[#This Row],[Resid\nSq Ft]],2),\"\")","v":""},{"$f":"IFERROR(IF(VLOOKUP(Table_Data_Table_1[[#This Row],[Item ID]],DataTable,11,FALSE)=0,\"N/A\",Table_Data_Table_1[[#This Row],[Adjusted\nSale Price]]/VLOOKUP(Table_Data_Table_1[[#This Row],[Item ID]],DataTable,11,FALSE)),\"\")","v":""},{"$f":"IF(IFERROR(VLOOKUP(Table_Data_Table_1[[#This Row],[Item ID]],DataTable,17,FALSE),\"\")=0,\"\",IFERROR(VLOOKUP(Table_Data_Table_1[[#This Row],[Item ID]],DataTable,17,FALSE),\"\"))","v":""}]
["",null,{"$f":"IF(Table_Data_Table_1[[#This Row],[Item ID]]=\"\",\"\",IFERROR(VLOOKUP(Table_Data_Table_1[[#This Row],[Item ID]],DataTable,16,FALSE),\"\"))","v":""},null,null,null,null,{"$f":"IF(Table_Data_Table_1[[#This Row],[Valuation Method]]=\"Vacant\",VLOOKUP(Table_Data_Table_1[[#This Row],[Item ID]],DataTable,6,FALSE)-VLOOKUP(Table_Data_Table_1[[#This Row],[Item ID]],DataTable,13,FALSE),IF(Table_Data_Table_1[[#This Row],[Valuation Method]]=\"Abstraction\",VLOOKUP(Table_Data_Table_1[[#This Row],[Item ID]],DataTable,6,FALSE)-VLOOKUP(Table_Data_Table_1[[#This Row],[Item ID]],DataTable,13,FALSE),IF(Table_Data_Table_1[[#This Row],[Valuation Method]]=\"Allocation\",VLOOKUP(Table_Data_Table_1[[#This Row],[Item ID]],DataTable,6,FALSE)*I289,\"\")))","v":""},{"$f":"IF(Table_Data_Table_1[[#This Row],[Valuation Method]]=\"Vacant\",\"N/A\",IF(Table_Data_Table_1[[#This Row],[Valuation Method]]=\"Abstraction\",Table_Data_Table_1[[#This Row],[Land\nResidual]]/VLOOKUP(Table_Data_Table_1[[#This Row],[Item ID]],DataTable,6,FALSE),IF(Table_Data_Table_1[[#This Row],[Valuation Method]]=\"Allocation\",'Global Settings'!$H$20,\"\")))","v":""},{"$f":"IFERROR(ROUND(Table_Data_Table_1[[#This Row],[Resid\nSq Ft]]/43560,3),\"\")","v":""},{"$f":"IF(Table_Data_Table_1[[#This Row],[Item ID]]=\"\",\"\",IFERROR(VLOOKUP(Table_Data_Table_1[[#This Row],[Item ID]],DataTable,10,FALSE)-VLOOKUP(Table_Data_Table_1[[#This Row],[Item ID]],DataTable,12,FALSE),\"\"))","v":""},{"$f":"IFERROR(Table_Data_Table_1[[#This Row],[Land\nResidual]]/Table_Data_Table_1[[#This Row],[Resid\nAcre]],\"\")","v":""},{"$f":"IFERROR(ROUND(Table_Data_Table_1[[#This Row],[Land\nResidual]]/Table_Data_Table_1[[#This Row],[Resid\nSq Ft]],2),\"\")","v":""},{"$f":"IF(Table_Data_Table_1[[#This Row],[Item ID]]=\"\",\"\",ROUND(DAYS360(Table_Data_Table_1[[#This Row],[Sale Date]],'Global Settings'!$H$5)/30,0))","v":""},{"$f":"IFERROR(IF(AND(Table_Data_Table_1[[#This Row],[Months To\nMid-Point]]<12.01,Table_Data_Table_1[[#This Row],[Months To\nMid-Point]]>-13),0,(Table_Data_Table_1[[#This Row],[Months To\nMid-Point]]*'Global Settings'!$H$6)),\"\")","v":""},{"$f":"IFERROR(Table_Data_Table_1[[#This Row],[Land\nResidual]]*(Table_Data_Table_1[[#This Row],[Time\nAdjust]]+1),\"\")","v":""},{"$f":"IFERROR(Table_Data_Table_1[[#This Row],[Adjusted\nSale Price]]/Table_Data_Table_1[[#This Row],[Resid\nAcre]],\"\")","v":""},{"$f":"IFERROR(ROUND(Table_Data_Table_1[[#This Row],[Adjusted\nSale Price]]/Table_Data_Table_1[[#This Row],[Resid\nSq Ft]],2),\"\")","v":""},{"$f":"IFERROR(IF(VLOOKUP(Table_Data_Table_1[[#This Row],[Item ID]],DataTable,11,FALSE)=0,\"N/A\",Table_Data_Table_1[[#This Row],[Adjusted\nSale Price]]/VLOOKUP(Table_Data_Table_1[[#This Row],[Item ID]],DataTable,11,FALSE)),\"\")","v":""},{"$f":"IF(IFERROR(VLOOKUP(Table_Data_Table_1[[#This Row],[Item ID]],DataTable,17,FALSE),\"\")=0,\"\",IFERROR(VLOOKUP(Table_Data_Table_1[[#This Row],[Item ID]],DataTable,17,FALSE),\"\"))","v":""}]
["",null,{"$f":"IF(Table_Data_Table_1[[#This Row],[Item ID]]=\"\",\"\",IFERROR(VLOOKUP(Table_Data_Table_1[[#This Row],[Item ID]],DataTable,16,FALSE),\"\"))","v":""},null,null,null,null,{"$f":"IF(Table_Data_Table_1[[#This Row],[Valuation Method]]=\"Vacant\",VLOOKUP(Table_Data_Table_1[[#This Row],[Item ID]],DataTable,6,FALSE)-VLOOKUP(Table_Data_Table_1[[#This Row],[Item ID]],DataTable,13,FALSE),IF(Table_Data_Table_1[[#This Row],[Valuation Method]]=\"Abstraction\",VLOOKUP(Table_Data_Table_1[[#This Row],[Item ID]],DataTable,6,FALSE)-VLOOKUP(Table_Data_Table_1[[#This Row],[Item ID]],DataTable,13,FALSE),IF(Table_Data_Table_1[[#This Row],[Valuation Method]]=\"Allocation\",VLOOKUP(Table_Data_Table_1[[#This Row],[Item ID]],DataTable,6,FALSE)*I290,\"\")))","v":""},{"$f":"IF(Table_Data_Table_1[[#This Row],[Valuation Method]]=\"Vacant\",\"N/A\",IF(Table_Data_Table_1[[#This Row],[Valuation Method]]=\"Abstraction\",Table_Data_Table_1[[#This Row],[Land\nResidual]]/VLOOKUP(Table_Data_Table_1[[#This Row],[Item ID]],DataTable,6,FALSE),IF(Table_Data_Table_1[[#This Row],[Valuation Method]]=\"Allocation\",'Global Settings'!$H$20,\"\")))","v":""},{"$f":"IFERROR(ROUND(Table_Data_Table_1[[#This Row],[Resid\nSq Ft]]/43560,3),\"\")","v":""},{"$f":"IF(Table_Data_Table_1[[#This Row],[Item ID]]=\"\",\"\",IFERROR(VLOOKUP(Table_Data_Table_1[[#This Row],[Item ID]],DataTable,10,FALSE)-VLOOKUP(Table_Data_Table_1[[#This Row],[Item ID]],DataTable,12,FALSE),\"\"))","v":""},{"$f":"IFERROR(Table_Data_Table_1[[#This Row],[Land\nResidual]]/Table_Data_Table_1[[#This Row],[Resid\nAcre]],\"\")","v":""},{"$f":"IFERROR(ROUND(Table_Data_Table_1[[#This Row],[Land\nResidual]]/Table_Data_Table_1[[#This Row],[Resid\nSq Ft]],2),\"\")","v":""},{"$f":"IF(Table_Data_Table_1[[#This Row],[Item ID]]=\"\",\"\",ROUND(DAYS360(Table_Data_Table_1[[#This Row],[Sale Date]],'Global Settings'!$H$5)/30,0))","v":""},{"$f":"IFERROR(IF(AND(Table_Data_Table_1[[#This Row],[Months To\nMid-Point]]<12.01,Table_Data_Table_1[[#This Row],[Months To\nMid-Point]]>-13),0,(Table_Data_Table_1[[#This Row],[Months To\nMid-Point]]*'Global Settings'!$H$6)),\"\")","v":""},{"$f":"IFERROR(Table_Data_Table_1[[#This Row],[Land\nResidual]]*(Table_Data_Table_1[[#This Row],[Time\nAdjust]]+1),\"\")","v":""},{"$f":"IFERROR(Table_Data_Table_1[[#This Row],[Adjusted\nSale Price]]/Table_Data_Table_1[[#This Row],[Resid\nAcre]],\"\")","v":""},{"$f":"IFERROR(ROUND(Table_Data_Table_1[[#This Row],[Adjusted\nSale Price]]/Table_Data_Table_1[[#This Row],[Resid\nSq Ft]],2),\"\")","v":""},{"$f":"IFERROR(IF(VLOOKUP(Table_Data_Table_1[[#This Row],[Item ID]],DataTable,11,FALSE)=0,\"N/A\",Table_Data_Table_1[[#This Row],[Adjusted\nSale Price]]/VLOOKUP(Table_Data_Table_1[[#This Row],[Item ID]],DataTable,11,FALSE)),\"\")","v":""},{"$f":"IF(IFERROR(VLOOKUP(Table_Data_Table_1[[#This Row],[Item ID]],DataTable,17,FALSE),\"\")=0,\"\",IFERROR(VLOOKUP(Table_Data_Table_1[[#This Row],[Item ID]],DataTable,17,FALSE),\"\"))","v":""}]
["",null,{"$f":"IF(Table_Data_Table_1[[#This Row],[Item ID]]=\"\",\"\",IFERROR(VLOOKUP(Table_Data_Table_1[[#This Row],[Item ID]],DataTable,16,FALSE),\"\"))","v":""},null,null,null,null,{"$f":"IF(Table_Data_Table_1[[#This Row],[Valuation Method]]=\"Vacant\",VLOOKUP(Table_Data_Table_1[[#This Row],[Item ID]],DataTable,6,FALSE)-VLOOKUP(Table_Data_Table_1[[#This Row],[Item ID]],DataTable,13,FALSE),IF(Table_Data_Table_1[[#This Row],[Valuation Method]]=\"Abstraction\",VLOOKUP(Table_Data_Table_1[[#This Row],[Item ID]],DataTable,6,FALSE)-VLOOKUP(Table_Data_Table_1[[#This Row],[Item ID]],DataTable,13,FALSE),IF(Table_Data_Table_1[[#This Row],[Valuation Method]]=\"Allocation\",VLOOKUP(Table_Data_Table_1[[#This Row],[Item ID]],DataTable,6,FALSE)*I291,\"\")))","v":""},{"$f":"IF(Table_Data_Table_1[[#This Row],[Valuation Method]]=\"Vacant\",\"N/A\",IF(Table_Data_Table_1[[#This Row],[Valuation Method]]=\"Abstraction\",Table_Data_Table_1[[#This Row],[Land\nResidual]]/VLOOKUP(Table_Data_Table_1[[#This Row],[Item ID]],DataTable,6,FALSE),IF(Table_Data_Table_1[[#This Row],[Valuation Method]]=\"Allocation\",'Global Settings'!$H$20,\"\")))","v":""},{"$f":"IFERROR(ROUND(Table_Data_Table_1[[#This Row],[Resid\nSq Ft]]/43560,3),\"\")","v":""},{"$f":"IF(Table_Data_Table_1[[#This Row],[Item ID]]=\"\",\"\",IFERROR(VLOOKUP(Table_Data_Table_1[[#This Row],[Item ID]],DataTable,10,FALSE)-VLOOKUP(Table_Data_Table_1[[#This Row],[Item ID]],DataTable,12,FALSE),\"\"))","v":""},{"$f":"IFERROR(Table_Data_Table_1[[#This Row],[Land\nResidual]]/Table_Data_Table_1[[#This Row],[Resid\nAcre]],\"\")","v":""},{"$f":"IFERROR(ROUND(Table_Data_Table_1[[#This Row],[Land\nResidual]]/Table_Data_Table_1[[#This Row],[Resid\nSq Ft]],2),\"\")","v":""},{"$f":"IF(Table_Data_Table_1[[#This Row],[Item ID]]=\"\",\"\",ROUND(DAYS360(Table_Data_Table_1[[#This Row],[Sale Date]],'Global Settings'!$H$5)/30,0))","v":""},{"$f":"IFERROR(IF(AND(Table_Data_Table_1[[#This Row],[Months To\nMid-Point]]<12.01,Table_Data_Table_1[[#This Row],[Months To\nMid-Point]]>-13),0,(Table_Data_Table_1[[#This Row],[Months To\nMid-Point]]*'Global Settings'!$H$6)),\"\")","v":""},{"$f":"IFERROR(Table_Data_Table_1[[#This Row],[Land\nResidual]]*(Table_Data_Table_1[[#This Row],[Time\nAdjust]]+1),\"\")","v":""},{"$f":"IFERROR(Table_Data_Table_1[[#This Row],[Adjusted\nSale Price]]/Table_Data_Table_1[[#This Row],[Resid\nAcre]],\"\")","v":""},{"$f":"IFERROR(ROUND(Table_Data_Table_1[[#This Row],[Adjusted\nSale Price]]/Table_Data_Table_1[[#This Row],[Resid\nSq Ft]],2),\"\")","v":""},{"$f":"IFERROR(IF(VLOOKUP(Table_Data_Table_1[[#This Row],[Item ID]],DataTable,11,FALSE)=0,\"N/A\",Table_Data_Table_1[[#This Row],[Adjusted\nSale Price]]/VLOOKUP(Table_Data_Table_1[[#This Row],[Item ID]],DataTable,11,FALSE)),\"\")","v":""},{"$f":"IF(IFERROR(VLOOKUP(Table_Data_Table_1[[#This Row],[Item ID]],DataTable,17,FALSE),\"\")=0,\"\",IFERROR(VLOOKUP(Table_Data_Table_1[[#This Row],[Item ID]],DataTable,17,FALSE),\"\"))","v":""}]
["",null,{"$f":"IF(Table_Data_Table_1[[#This Row],[Item ID]]=\"\",\"\",IFERROR(VLOOKUP(Table_Data_Table_1[[#This Row],[Item ID]],DataTable,16,FALSE),\"\"))","v":""},null,null,null,null,{"$f":"IF(Table_Data_Table_1[[#This Row],[Valuation Method]]=\"Vacant\",VLOOKUP(Table_Data_Table_1[[#This Row],[Item ID]],DataTable,6,FALSE)-VLOOKUP(Table_Data_Table_1[[#This Row],[Item ID]],DataTable,13,FALSE),IF(Table_Data_Table_1[[#This Row],[Valuation Method]]=\"Abstraction\",VLOOKUP(Table_Data_Table_1[[#This Row],[Item ID]],DataTable,6,FALSE)-VLOOKUP(Table_Data_Table_1[[#This Row],[Item ID]],DataTable,13,FALSE),IF(Table_Data_Table_1[[#This Row],[Valuation Method]]=\"Allocation\",VLOOKUP(Table_Data_Table_1[[#This Row],[Item ID]],DataTable,6,FALSE)*I292,\"\")))","v":""},{"$f":"IF(Table_Data_Table_1[[#This Row],[Valuation Method]]=\"Vacant\",\"N/A\",IF(Table_Data_Table_1[[#This Row],[Valuation Method]]=\"Abstraction\",Table_Data_Table_1[[#This Row],[Land\nResidual]]/VLOOKUP(Table_Data_Table_1[[#This Row],[Item ID]],DataTable,6,FALSE),IF(Table_Data_Table_1[[#This Row],[Valuation Method]]=\"Allocation\",'Global Settings'!$H$20,\"\")))","v":""},{"$f":"IFERROR(ROUND(Table_Data_Table_1[[#This Row],[Resid\nSq Ft]]/43560,3),\"\")","v":""},{"$f":"IF(Table_Data_Table_1[[#This Row],[Item ID]]=\"\",\"\",IFERROR(VLOOKUP(Table_Data_Table_1[[#This Row],[Item ID]],DataTable,10,FALSE)-VLOOKUP(Table_Data_Table_1[[#This Row],[Item ID]],DataTable,12,FALSE),\"\"))","v":""},{"$f":"IFERROR(Table_Data_Table_1[[#This Row],[Land\nResidual]]/Table_Data_Table_1[[#This Row],[Resid\nAcre]],\"\")","v":""},{"$f":"IFERROR(ROUND(Table_Data_Table_1[[#This Row],[Land\nResidual]]/Table_Data_Table_1[[#This Row],[Resid\nSq Ft]],2),\"\")","v":""},{"$f":"IF(Table_Data_Table_1[[#This Row],[Item ID]]=\"\",\"\",ROUND(DAYS360(Table_Data_Table_1[[#This Row],[Sale Date]],'Global Settings'!$H$5)/30,0))","v":""},{"$f":"IFERROR(IF(AND(Table_Data_Table_1[[#This Row],[Months To\nMid-Point]]<12.01,Table_Data_Table_1[[#This Row],[Months To\nMid-Point]]>-13),0,(Table_Data_Table_1[[#This Row],[Months To\nMid-Point]]*'Global Settings'!$H$6)),\"\")","v":""},{"$f":"IFERROR(Table_Data_Table_1[[#This Row],[Land\nResidual]]*(Table_Data_Table_1[[#This Row],[Time\nAdjust]]+1),\"\")","v":""},{"$f":"IFERROR(Table_Data_Table_1[[#This Row],[Adjusted\nSale Price]]/Table_Data_Table_1[[#This Row],[Resid\nAcre]],\"\")","v":""},{"$f":"IFERROR(ROUND(Table_Data_Table_1[[#This Row],[Adjusted\nSale Price]]/Table_Data_Table_1[[#This Row],[Resid\nSq Ft]],2),\"\")","v":""},{"$f":"IFERROR(IF(VLOOKUP(Table_Data_Table_1[[#This Row],[Item ID]],DataTable,11,FALSE)=0,\"N/A\",Table_Data_Table_1[[#This Row],[Adjusted\nSale Price]]/VLOOKUP(Table_Data_Table_1[[#This Row],[Item ID]],DataTable,11,FALSE)),\"\")","v":""},{"$f":"IF(IFERROR(VLOOKUP(Table_Data_Table_1[[#This Row],[Item ID]],DataTable,17,FALSE),\"\")=0,\"\",IFERROR(VLOOKUP(Table_Data_Table_1[[#This Row],[Item ID]],DataTable,17,FALSE),\"\"))","v":""}]
["",null,{"$f":"IF(Table_Data_Table_1[[#This Row],[Item ID]]=\"\",\"\",IFERROR(VLOOKUP(Table_Data_Table_1[[#This Row],[Item ID]],DataTable,16,FALSE),\"\"))","v":""},null,null,null,null,{"$f":"IF(Table_Data_Table_1[[#This Row],[Valuation Method]]=\"Vacant\",VLOOKUP(Table_Data_Table_1[[#This Row],[Item ID]],DataTable,6,FALSE)-VLOOKUP(Table_Data_Table_1[[#This Row],[Item ID]],DataTable,13,FALSE),IF(Table_Data_Table_1[[#This Row],[Valuation Method]]=\"Abstraction\",VLOOKUP(Table_Data_Table_1[[#This Row],[Item ID]],DataTable,6,FALSE)-VLOOKUP(Table_Data_Table_1[[#This Row],[Item ID]],DataTable,13,FALSE),IF(Table_Data_Table_1[[#This Row],[Valuation Method]]=\"Allocation\",VLOOKUP(Table_Data_Table_1[[#This Row],[Item ID]],DataTable,6,FALSE)*I293,\"\")))","v":""},{"$f":"IF(Table_Data_Table_1[[#This Row],[Valuation Method]]=\"Vacant\",\"N/A\",IF(Table_Data_Table_1[[#This Row],[Valuation Method]]=\"Abstraction\",Table_Data_Table_1[[#This Row],[Land\nResidual]]/VLOOKUP(Table_Data_Table_1[[#This Row],[Item ID]],DataTable,6,FALSE),IF(Table_Data_Table_1[[#This Row],[Valuation Method]]=\"Allocation\",'Global Settings'!$H$20,\"\")))","v":""},{"$f":"IFERROR(ROUND(Table_Data_Table_1[[#This Row],[Resid\nSq Ft]]/43560,3),\"\")","v":""},{"$f":"IF(Table_Data_Table_1[[#This Row],[Item ID]]=\"\",\"\",IFERROR(VLOOKUP(Table_Data_Table_1[[#This Row],[Item ID]],DataTable,10,FALSE)-VLOOKUP(Table_Data_Table_1[[#This Row],[Item ID]],DataTable,12,FALSE),\"\"))","v":""},{"$f":"IFERROR(Table_Data_Table_1[[#This Row],[Land\nResidual]]/Table_Data_Table_1[[#This Row],[Resid\nAcre]],\"\")","v":""},{"$f":"IFERROR(ROUND(Table_Data_Table_1[[#This Row],[Land\nResidual]]/Table_Data_Table_1[[#This Row],[Resid\nSq Ft]],2),\"\")","v":""},{"$f":"IF(Table_Data_Table_1[[#This Row],[Item ID]]=\"\",\"\",ROUND(DAYS360(Table_Data_Table_1[[#This Row],[Sale Date]],'Global Settings'!$H$5)/30,0))","v":""},{"$f":"IFERROR(IF(AND(Table_Data_Table_1[[#This Row],[Months To\nMid-Point]]<12.01,Table_Data_Table_1[[#This Row],[Months To\nMid-Point]]>-13),0,(Table_Data_Table_1[[#This Row],[Months To\nMid-Point]]*'Global Settings'!$H$6)),\"\")","v":""},{"$f":"IFERROR(Table_Data_Table_1[[#This Row],[Land\nResidual]]*(Table_Data_Table_1[[#This Row],[Time\nAdjust]]+1),\"\")","v":""},{"$f":"IFERROR(Table_Data_Table_1[[#This Row],[Adjusted\nSale Price]]/Table_Data_Table_1[[#This Row],[Resid\nAcre]],\"\")","v":""},{"$f":"IFERROR(ROUND(Table_Data_Table_1[[#This Row],[Adjusted\nSale Price]]/Table_Data_Table_1[[#This Row],[Resid\nSq Ft]],2),\"\")","v":""},{"$f":"IFERROR(IF(VLOOKUP(Table_Data_Table_1[[#This Row],[Item ID]],DataTable,11,FALSE)=0,\"N/A\",Table_Data_Table_1[[#This Row],[Adjusted\nSale Price]]/VLOOKUP(Table_Data_Table_1[[#This Row],[Item ID]],DataTable,11,FALSE)),\"\")","v":""},{"$f":"IF(IFERROR(VLOOKUP(Table_Data_Table_1[[#This Row],[Item ID]],DataTable,17,FALSE),\"\")=0,\"\",IFERROR(VLOOKUP(Table_Data_Table_1[[#This Row],[Item ID]],DataTable,17,FALSE),\"\"))","v":""}]
["",null,{"$f":"IF(Table_Data_Table_1[[#This Row],[Item ID]]=\"\",\"\",IFERROR(VLOOKUP(Table_Data_Table_1[[#This Row],[Item ID]],DataTable,16,FALSE),\"\"))","v":""},null,null,null,null,{"$f":"IF(Table_Data_Table_1[[#This Row],[Valuation Method]]=\"Vacant\",VLOOKUP(Table_Data_Table_1[[#This Row],[Item ID]],DataTable,6,FALSE)-VLOOKUP(Table_Data_Table_1[[#This Row],[Item ID]],DataTable,13,FALSE),IF(Table_Data_Table_1[[#This Row],[Valuation Method]]=\"Abstraction\",VLOOKUP(Table_Data_Table_1[[#This Row],[Item ID]],DataTable,6,FALSE)-VLOOKUP(Table_Data_Table_1[[#This Row],[Item ID]],DataTable,13,FALSE),IF(Table_Data_Table_1[[#This Row],[Valuation Method]]=\"Allocation\",VLOOKUP(Table_Data_Table_1[[#This Row],[Item ID]],DataTable,6,FALSE)*I294,\"\")))","v":""},{"$f":"IF(Table_Data_Table_1[[#This Row],[Valuation Method]]=\"Vacant\",\"N/A\",IF(Table_Data_Table_1[[#This Row],[Valuation Method]]=\"Abstraction\",Table_Data_Table_1[[#This Row],[Land\nResidual]]/VLOOKUP(Table_Data_Table_1[[#This Row],[Item ID]],DataTable,6,FALSE),IF(Table_Data_Table_1[[#This Row],[Valuation Method]]=\"Allocation\",'Global Settings'!$H$20,\"\")))","v":""},{"$f":"IFERROR(ROUND(Table_Data_Table_1[[#This Row],[Resid\nSq Ft]]/43560,3),\"\")","v":""},{"$f":"IF(Table_Data_Table_1[[#This Row],[Item ID]]=\"\",\"\",IFERROR(VLOOKUP(Table_Data_Table_1[[#This Row],[Item ID]],DataTable,10,FALSE)-VLOOKUP(Table_Data_Table_1[[#This Row],[Item ID]],DataTable,12,FALSE),\"\"))","v":""},{"$f":"IFERROR(Table_Data_Table_1[[#This Row],[Land\nResidual]]/Table_Data_Table_1[[#This Row],[Resid\nAcre]],\"\")","v":""},{"$f":"IFERROR(ROUND(Table_Data_Table_1[[#This Row],[Land\nResidual]]/Table_Data_Table_1[[#This Row],[Resid\nSq Ft]],2),\"\")","v":""},{"$f":"IF(Table_Data_Table_1[[#This Row],[Item ID]]=\"\",\"\",ROUND(DAYS360(Table_Data_Table_1[[#This Row],[Sale Date]],'Global Settings'!$H$5)/30,0))","v":""},{"$f":"IFERROR(IF(AND(Table_Data_Table_1[[#This Row],[Months To\nMid-Point]]<12.01,Table_Data_Table_1[[#This Row],[Months To\nMid-Point]]>-13),0,(Table_Data_Table_1[[#This Row],[Months To\nMid-Point]]*'Global Settings'!$H$6)),\"\")","v":""},{"$f":"IFERROR(Table_Data_Table_1[[#This Row],[Land\nResidual]]*(Table_Data_Table_1[[#This Row],[Time\nAdjust]]+1),\"\")","v":""},{"$f":"IFERROR(Table_Data_Table_1[[#This Row],[Adjusted\nSale Price]]/Table_Data_Table_1[[#This Row],[Resid\nAcre]],\"\")","v":""},{"$f":"IFERROR(ROUND(Table_Data_Table_1[[#This Row],[Adjusted\nSale Price]]/Table_Data_Table_1[[#This Row],[Resid\nSq Ft]],2),\"\")","v":""},{"$f":"IFERROR(IF(VLOOKUP(Table_Data_Table_1[[#This Row],[Item ID]],DataTable,11,FALSE)=0,\"N/A\",Table_Data_Table_1[[#This Row],[Adjusted\nSale Price]]/VLOOKUP(Table_Data_Table_1[[#This Row],[Item ID]],DataTable,11,FALSE)),\"\")","v":""},{"$f":"IF(IFERROR(VLOOKUP(Table_Data_Table_1[[#This Row],[Item ID]],DataTable,17,FALSE),\"\")=0,\"\",IFERROR(VLOOKUP(Table_Data_Table_1[[#This Row],[Item ID]],DataTable,17,FALSE),\"\"))","v":""}]
["",null,{"$f":"IF(Table_Data_Table_1[[#This Row],[Item ID]]=\"\",\"\",IFERROR(VLOOKUP(Table_Data_Table_1[[#This Row],[Item ID]],DataTable,16,FALSE),\"\"))","v":""},null,null,null,null,{"$f":"IF(Table_Data_Table_1[[#This Row],[Valuation Method]]=\"Vacant\",VLOOKUP(Table_Data_Table_1[[#This Row],[Item ID]],DataTable,6,FALSE)-VLOOKUP(Table_Data_Table_1[[#This Row],[Item ID]],DataTable,13,FALSE),IF(Table_Data_Table_1[[#This Row],[Valuation Method]]=\"Abstraction\",VLOOKUP(Table_Data_Table_1[[#This Row],[Item ID]],DataTable,6,FALSE)-VLOOKUP(Table_Data_Table_1[[#This Row],[Item ID]],DataTable,13,FALSE),IF(Table_Data_Table_1[[#This Row],[Valuation Method]]=\"Allocation\",VLOOKUP(Table_Data_Table_1[[#This Row],[Item ID]],DataTable,6,FALSE)*I295,\"\")))","v":""},{"$f":"IF(Table_Data_Table_1[[#This Row],[Valuation Method]]=\"Vacant\",\"N/A\",IF(Table_Data_Table_1[[#This Row],[Valuation Method]]=\"Abstraction\",Table_Data_Table_1[[#This Row],[Land\nResidual]]/VLOOKUP(Table_Data_Table_1[[#This Row],[Item ID]],DataTable,6,FALSE),IF(Table_Data_Table_1[[#This Row],[Valuation Method]]=\"Allocation\",'Global Settings'!$H$20,\"\")))","v":""},{"$f":"IFERROR(ROUND(Table_Data_Table_1[[#This Row],[Resid\nSq Ft]]/43560,3),\"\")","v":""},{"$f":"IF(Table_Data_Table_1[[#This Row],[Item ID]]=\"\",\"\",IFERROR(VLOOKUP(Table_Data_Table_1[[#This Row],[Item ID]],DataTable,10,FALSE)-VLOOKUP(Table_Data_Table_1[[#This Row],[Item ID]],DataTable,12,FALSE),\"\"))","v":""},{"$f":"IFERROR(Table_Data_Table_1[[#This Row],[Land\nResidual]]/Table_Data_Table_1[[#This Row],[Resid\nAcre]],\"\")","v":""},{"$f":"IFERROR(ROUND(Table_Data_Table_1[[#This Row],[Land\nResidual]]/Table_Data_Table_1[[#This Row],[Resid\nSq Ft]],2),\"\")","v":""},{"$f":"IF(Table_Data_Table_1[[#This Row],[Item ID]]=\"\",\"\",ROUND(DAYS360(Table_Data_Table_1[[#This Row],[Sale Date]],'Global Settings'!$H$5)/30,0))","v":""},{"$f":"IFERROR(IF(AND(Table_Data_Table_1[[#This Row],[Months To\nMid-Point]]<12.01,Table_Data_Table_1[[#This Row],[Months To\nMid-Point]]>-13),0,(Table_Data_Table_1[[#This Row],[Months To\nMid-Point]]*'Global Settings'!$H$6)),\"\")","v":""},{"$f":"IFERROR(Table_Data_Table_1[[#This Row],[Land\nResidual]]*(Table_Data_Table_1[[#This Row],[Time\nAdjust]]+1),\"\")","v":""},{"$f":"IFERROR(Table_Data_Table_1[[#This Row],[Adjusted\nSale Price]]/Table_Data_Table_1[[#This Row],[Resid\nAcre]],\"\")","v":""},{"$f":"IFERROR(ROUND(Table_Data_Table_1[[#This Row],[Adjusted\nSale Price]]/Table_Data_Table_1[[#This Row],[Resid\nSq Ft]],2),\"\")","v":""},{"$f":"IFERROR(IF(VLOOKUP(Table_Data_Table_1[[#This Row],[Item ID]],DataTable,11,FALSE)=0,\"N/A\",Table_Data_Table_1[[#This Row],[Adjusted\nSale Price]]/VLOOKUP(Table_Data_Table_1[[#This Row],[Item ID]],DataTable,11,FALSE)),\"\")","v":""},{"$f":"IF(IFERROR(VLOOKUP(Table_Data_Table_1[[#This Row],[Item ID]],DataTable,17,FALSE),\"\")=0,\"\",IFERROR(VLOOKUP(Table_Data_Table_1[[#This Row],[Item ID]],DataTable,17,FALSE),\"\"))","v":""}]
["",null,{"$f":"IF(Table_Data_Table_1[[#This Row],[Item ID]]=\"\",\"\",IFERROR(VLOOKUP(Table_Data_Table_1[[#This Row],[Item ID]],DataTable,16,FALSE),\"\"))","v":""},null,null,null,null,{"$f":"IF(Table_Data_Table_1[[#This Row],[Valuation Method]]=\"Vacant\",VLOOKUP(Table_Data_Table_1[[#This Row],[Item ID]],DataTable,6,FALSE)-VLOOKUP(Table_Data_Table_1[[#This Row],[Item ID]],DataTable,13,FALSE),IF(Table_Data_Table_1[[#This Row],[Valuation Method]]=\"Abstraction\",VLOOKUP(Table_Data_Table_1[[#This Row],[Item ID]],DataTable,6,FALSE)-VLOOKUP(Table_Data_Table_1[[#This Row],[Item ID]],DataTable,13,FALSE),IF(Table_Data_Table_1[[#This Row],[Valuation Method]]=\"Allocation\",VLOOKUP(Table_Data_Table_1[[#This Row],[Item ID]],DataTable,6,FALSE)*I296,\"\")))","v":""},{"$f":"IF(Table_Data_Table_1[[#This Row],[Valuation Method]]=\"Vacant\",\"N/A\",IF(Table_Data_Table_1[[#This Row],[Valuation Method]]=\"Abstraction\",Table_Data_Table_1[[#This Row],[Land\nResidual]]/VLOOKUP(Table_Data_Table_1[[#This Row],[Item ID]],DataTable,6,FALSE),IF(Table_Data_Table_1[[#This Row],[Valuation Method]]=\"Allocation\",'Global Settings'!$H$20,\"\")))","v":""},{"$f":"IFERROR(ROUND(Table_Data_Table_1[[#This Row],[Resid\nSq Ft]]/43560,3),\"\")","v":""},{"$f":"IF(Table_Data_Table_1[[#This Row],[Item ID]]=\"\",\"\",IFERROR(VLOOKUP(Table_Data_Table_1[[#This Row],[Item ID]],DataTable,10,FALSE)-VLOOKUP(Table_Data_Table_1[[#This Row],[Item ID]],DataTable,12,FALSE),\"\"))","v":""},{"$f":"IFERROR(Table_Data_Table_1[[#This Row],[Land\nResidual]]/Table_Data_Table_1[[#This Row],[Resid\nAcre]],\"\")","v":""},{"$f":"IFERROR(ROUND(Table_Data_Table_1[[#This Row],[Land\nResidual]]/Table_Data_Table_1[[#This Row],[Resid\nSq Ft]],2),\"\")","v":""},{"$f":"IF(Table_Data_Table_1[[#This Row],[Item ID]]=\"\",\"\",ROUND(DAYS360(Table_Data_Table_1[[#This Row],[Sale Date]],'Global Settings'!$H$5)/30,0))","v":""},{"$f":"IFERROR(IF(AND(Table_Data_Table_1[[#This Row],[Months To\nMid-Point]]<12.01,Table_Data_Table_1[[#This Row],[Months To\nMid-Point]]>-13),0,(Table_Data_Table_1[[#This Row],[Months To\nMid-Point]]*'Global Settings'!$H$6)),\"\")","v":""},{"$f":"IFERROR(Table_Data_Table_1[[#This Row],[Land\nResidual]]*(Table_Data_Table_1[[#This Row],[Time\nAdjust]]+1),\"\")","v":""},{"$f":"IFERROR(Table_Data_Table_1[[#This Row],[Adjusted\nSale Price]]/Table_Data_Table_1[[#This Row],[Resid\nAcre]],\"\")","v":""},{"$f":"IFERROR(ROUND(Table_Data_Table_1[[#This Row],[Adjusted\nSale Price]]/Table_Data_Table_1[[#This Row],[Resid\nSq Ft]],2),\"\")","v":""},{"$f":"IFERROR(IF(VLOOKUP(Table_Data_Table_1[[#This Row],[Item ID]],DataTable,11,FALSE)=0,\"N/A\",Table_Data_Table_1[[#This Row],[Adjusted\nSale Price]]/VLOOKUP(Table_Data_Table_1[[#This Row],[Item ID]],DataTable,11,FALSE)),\"\")","v":""},{"$f":"IF(IFERROR(VLOOKUP(Table_Data_Table_1[[#This Row],[Item ID]],DataTable,17,FALSE),\"\")=0,\"\",IFERROR(VLOOKUP(Table_Data_Table_1[[#This Row],[Item ID]],DataTable,17,FALSE),\"\"))","v":""}]
["",null,{"$f":"IF(Table_Data_Table_1[[#This Row],[Item ID]]=\"\",\"\",IFERROR(VLOOKUP(Table_Data_Table_1[[#This Row],[Item ID]],DataTable,16,FALSE),\"\"))","v":""},null,null,null,null,{"$f":"IF(Table_Data_Table_1[[#This Row],[Valuation Method]]=\"Vacant\",VLOOKUP(Table_Data_Table_1[[#This Row],[Item ID]],DataTable,6,FALSE)-VLOOKUP(Table_Data_Table_1[[#This Row],[Item ID]],DataTable,13,FALSE),IF(Table_Data_Table_1[[#This Row],[Valuation Method]]=\"Abstraction\",VLOOKUP(Table_Data_Table_1[[#This Row],[Item ID]],DataTable,6,FALSE)-VLOOKUP(Table_Data_Table_1[[#This Row],[Item ID]],DataTable,13,FALSE),IF(Table_Data_Table_1[[#This Row],[Valuation Method]]=\"Allocation\",VLOOKUP(Table_Data_Table_1[[#This Row],[Item ID]],DataTable,6,FALSE)*I297,\"\")))","v":""},{"$f":"IF(Table_Data_Table_1[[#This Row],[Valuation Method]]=\"Vacant\",\"N/A\",IF(Table_Data_Table_1[[#This Row],[Valuation Method]]=\"Abstraction\",Table_Data_Table_1[[#This Row],[Land\nResidual]]/VLOOKUP(Table_Data_Table_1[[#This Row],[Item ID]],DataTable,6,FALSE),IF(Table_Data_Table_1[[#This Row],[Valuation Method]]=\"Allocation\",'Global Settings'!$H$20,\"\")))","v":""},{"$f":"IFERROR(ROUND(Table_Data_Table_1[[#This Row],[Resid\nSq Ft]]/43560,3),\"\")","v":""},{"$f":"IF(Table_Data_Table_1[[#This Row],[Item ID]]=\"\",\"\",IFERROR(VLOOKUP(Table_Data_Table_1[[#This Row],[Item ID]],DataTable,10,FALSE)-VLOOKUP(Table_Data_Table_1[[#This Row],[Item ID]],DataTable,12,FALSE),\"\"))","v":""},{"$f":"IFERROR(Table_Data_Table_1[[#This Row],[Land\nResidual]]/Table_Data_Table_1[[#This Row],[Resid\nAcre]],\"\")","v":""},{"$f":"IFERROR(ROUND(Table_Data_Table_1[[#This Row],[Land\nResidual]]/Table_Data_Table_1[[#This Row],[Resid\nSq Ft]],2),\"\")","v":""},{"$f":"IF(Table_Data_Table_1[[#This Row],[Item ID]]=\"\",\"\",ROUND(DAYS360(Table_Data_Table_1[[#This Row],[Sale Date]],'Global Settings'!$H$5)/30,0))","v":""},{"$f":"IFERROR(IF(AND(Table_Data_Table_1[[#This Row],[Months To\nMid-Point]]<12.01,Table_Data_Table_1[[#This Row],[Months To\nMid-Point]]>-13),0,(Table_Data_Table_1[[#This Row],[Months To\nMid-Point]]*'Global Settings'!$H$6)),\"\")","v":""},{"$f":"IFERROR(Table_Data_Table_1[[#This Row],[Land\nResidual]]*(Table_Data_Table_1[[#This Row],[Time\nAdjust]]+1),\"\")","v":""},{"$f":"IFERROR(Table_Data_Table_1[[#This Row],[Adjusted\nSale Price]]/Table_Data_Table_1[[#This Row],[Resid\nAcre]],\"\")","v":""},{"$f":"IFERROR(ROUND(Table_Data_Table_1[[#This Row],[Adjusted\nSale Price]]/Table_Data_Table_1[[#This Row],[Resid\nSq Ft]],2),\"\")","v":""},{"$f":"IFERROR(IF(VLOOKUP(Table_Data_Table_1[[#This Row],[Item ID]],DataTable,11,FALSE)=0,\"N/A\",Table_Data_Table_1[[#This Row],[Adjusted\nSale Price]]/VLOOKUP(Table_Data_Table_1[[#This Row],[Item ID]],DataTable,11,FALSE)),\"\")","v":""},{"$f":"IF(IFERROR(VLOOKUP(Table_Data_Table_1[[#This Row],[Item ID]],DataTable,17,FALSE),\"\")=0,\"\",IFERROR(VLOOKUP(Table_Data_Table_1[[#This Row],[Item ID]],DataTable,17,FALSE),\"\"))","v":""}]
["",null,{"$f":"IF(Table_Data_Table_1[[#This Row],[Item ID]]=\"\",\"\",IFERROR(VLOOKUP(Table_Data_Table_1[[#This Row],[Item ID]],DataTable,16,FALSE),\"\"))","v":""},null,null,null,null,{"$f":"IF(Table_Data_Table_1[[#This Row],[Valuation Method]]=\"Vacant\",VLOOKUP(Table_Data_Table_1[[#This Row],[Item ID]],DataTable,6,FALSE)-VLOOKUP(Table_Data_Table_1[[#This Row],[Item ID]],DataTable,13,FALSE),IF(Table_Data_Table_1[[#This Row],[Valuation Method]]=\"Abstraction\",VLOOKUP(Table_Data_Table_1[[#This Row],[Item ID]],DataTable,6,FALSE)-VLOOKUP(Table_Data_Table_1[[#This Row],[Item ID]],DataTable,13,FALSE),IF(Table_Data_Table_1[[#This Row],[Valuation Method]]=\"Allocation\",VLOOKUP(Table_Data_Table_1[[#This Row],[Item ID]],DataTable,6,FALSE)*I298,\"\")))","v":""},{"$f":"IF(Table_Data_Table_1[[#This Row],[Valuation Method]]=\"Vacant\",\"N/A\",IF(Table_Data_Table_1[[#This Row],[Valuation Method]]=\"Abstraction\",Table_Data_Table_1[[#This Row],[Land\nResidual]]/VLOOKUP(Table_Data_Table_1[[#This Row],[Item ID]],DataTable,6,FALSE),IF(Table_Data_Table_1[[#This Row],[Valuation Method]]=\"Allocation\",'Global Settings'!$H$20,\"\")))","v":""},{"$f":"IFERROR(ROUND(Table_Data_Table_1[[#This Row],[Resid\nSq Ft]]/43560,3),\"\")","v":""},{"$f":"IF(Table_Data_Table_1[[#This Row],[Item ID]]=\"\",\"\",IFERROR(VLOOKUP(Table_Data_Table_1[[#This Row],[Item ID]],DataTable,10,FALSE)-VLOOKUP(Table_Data_Table_1[[#This Row],[Item ID]],DataTable,12,FALSE),\"\"))","v":""},{"$f":"IFERROR(Table_Data_Table_1[[#This Row],[Land\nResidual]]/Table_Data_Table_1[[#This Row],[Resid\nAcre]],\"\")","v":""},{"$f":"IFERROR(ROUND(Table_Data_Table_1[[#This Row],[Land\nResidual]]/Table_Data_Table_1[[#This Row],[Resid\nSq Ft]],2),\"\")","v":""},{"$f":"IF(Table_Data_Table_1[[#This Row],[Item ID]]=\"\",\"\",ROUND(DAYS360(Table_Data_Table_1[[#This Row],[Sale Date]],'Global Settings'!$H$5)/30,0))","v":""},{"$f":"IFERROR(IF(AND(Table_Data_Table_1[[#This Row],[Months To\nMid-Point]]<12.01,Table_Data_Table_1[[#This Row],[Months To\nMid-Point]]>-13),0,(Table_Data_Table_1[[#This Row],[Months To\nMid-Point]]*'Global Settings'!$H$6)),\"\")","v":""},{"$f":"IFERROR(Table_Data_Table_1[[#This Row],[Land\nResidual]]*(Table_Data_Table_1[[#This Row],[Time\nAdjust]]+1),\"\")","v":""},{"$f":"IFERROR(Table_Data_Table_1[[#This Row],[Adjusted\nSale Price]]/Table_Data_Table_1[[#This Row],[Resid\nAcre]],\"\")","v":""},{"$f":"IFERROR(ROUND(Table_Data_Table_1[[#This Row],[Adjusted\nSale Price]]/Table_Data_Table_1[[#This Row],[Resid\nSq Ft]],2),\"\")","v":""},{"$f":"IFERROR(IF(VLOOKUP(Table_Data_Table_1[[#This Row],[Item ID]],DataTable,11,FALSE)=0,\"N/A\",Table_Data_Table_1[[#This Row],[Adjusted\nSale Price]]/VLOOKUP(Table_Data_Table_1[[#This Row],[Item ID]],DataTable,11,FALSE)),\"\")","v":""},{"$f":"IF(IFERROR(VLOOKUP(Table_Data_Table_1[[#This Row],[Item ID]],DataTable,17,FALSE),\"\")=0,\"\",IFERROR(VLOOKUP(Table_Data_Table_1[[#This Row],[Item ID]],DataTable,17,FALSE),\"\"))","v":""}]
["",null,{"$f":"IF(Table_Data_Table_1[[#This Row],[Item ID]]=\"\",\"\",IFERROR(VLOOKUP(Table_Data_Table_1[[#This Row],[Item ID]],DataTable,16,FALSE),\"\"))","v":""},null,null,null,null,{"$f":"IF(Table_Data_Table_1[[#This Row],[Valuation Method]]=\"Vacant\",VLOOKUP(Table_Data_Table_1[[#This Row],[Item ID]],DataTable,6,FALSE)-VLOOKUP(Table_Data_Table_1[[#This Row],[Item ID]],DataTable,13,FALSE),IF(Table_Data_Table_1[[#This Row],[Valuation Method]]=\"Abstraction\",VLOOKUP(Table_Data_Table_1[[#This Row],[Item ID]],DataTable,6,FALSE)-VLOOKUP(Table_Data_Table_1[[#This Row],[Item ID]],DataTable,13,FALSE),IF(Table_Data_Table_1[[#This Row],[Valuation Method]]=\"Allocation\",VLOOKUP(Table_Data_Table_1[[#This Row],[Item ID]],DataTable,6,FALSE)*I299,\"\")))","v":""},{"$f":"IF(Table_Data_Table_1[[#This Row],[Valuation Method]]=\"Vacant\",\"N/A\",IF(Table_Data_Table_1[[#This Row],[Valuation Method]]=\"Abstraction\",Table_Data_Table_1[[#This Row],[Land\nResidual]]/VLOOKUP(Table_Data_Table_1[[#This Row],[Item ID]],DataTable,6,FALSE),IF(Table_Data_Table_1[[#This Row],[Valuation Method]]=\"Allocation\",'Global Settings'!$H$20,\"\")))","v":""},{"$f":"IFERROR(ROUND(Table_Data_Table_1[[#This Row],[Resid\nSq Ft]]/43560,3),\"\")","v":""},{"$f":"IF(Table_Data_Table_1[[#This Row],[Item ID]]=\"\",\"\",IFERROR(VLOOKUP(Table_Data_Table_1[[#This Row],[Item ID]],DataTable,10,FALSE)-VLOOKUP(Table_Data_Table_1[[#This Row],[Item ID]],DataTable,12,FALSE),\"\"))","v":""},{"$f":"IFERROR(Table_Data_Table_1[[#This Row],[Land\nResidual]]/Table_Data_Table_1[[#This Row],[Resid\nAcre]],\"\")","v":""},{"$f":"IFERROR(ROUND(Table_Data_Table_1[[#This Row],[Land\nResidual]]/Table_Data_Table_1[[#This Row],[Resid\nSq Ft]],2),\"\")","v":""},{"$f":"IF(Table_Data_Table_1[[#This Row],[Item ID]]=\"\",\"\",ROUND(DAYS360(Table_Data_Table_1[[#This Row],[Sale Date]],'Global Settings'!$H$5)/30,0))","v":""},{"$f":"IFERROR(IF(AND(Table_Data_Table_1[[#This Row],[Months To\nMid-Point]]<12.01,Table_Data_Table_1[[#This Row],[Months To\nMid-Point]]>-13),0,(Table_Data_Table_1[[#This Row],[Months To\nMid-Point]]*'Global Settings'!$H$6)),\"\")","v":""},{"$f":"IFERROR(Table_Data_Table_1[[#This Row],[Land\nResidual]]*(Table_Data_Table_1[[#This Row],[Time\nAdjust]]+1),\"\")","v":""},{"$f":"IFERROR(Table_Data_Table_1[[#This Row],[Adjusted\nSale Price]]/Table_Data_Table_1[[#This Row],[Resid\nAcre]],\"\")","v":""},{"$f":"IFERROR(ROUND(Table_Data_Table_1[[#This Row],[Adjusted\nSale Price]]/Table_Data_Table_1[[#This Row],[Resid\nSq Ft]],2),\"\")","v":""},{"$f":"IFERROR(IF(VLOOKUP(Table_Data_Table_1[[#This Row],[Item ID]],DataTable,11,FALSE)=0,\"N/A\",Table_Data_Table_1[[#This Row],[Adjusted\nSale Price]]/VLOOKUP(Table_Data_Table_1[[#This Row],[Item ID]],DataTable,11,FALSE)),\"\")","v":""},{"$f":"IF(IFERROR(VLOOKUP(Table_Data_Table_1[[#This Row],[Item ID]],DataTable,17,FALSE),\"\")=0,\"\",IFERROR(VLOOKUP(Table_Data_Table_1[[#This Row],[Item ID]],DataTable,17,FALSE),\"\"))","v":""}]
["",null,{"$f":"IF(Table_Data_Table_1[[#This Row],[Item ID]]=\"\",\"\",IFERROR(VLOOKUP(Table_Data_Table_1[[#This Row],[Item ID]],DataTable,16,FALSE),\"\"))","v":""},null,null,null,null,{"$f":"IF(Table_Data_Table_1[[#This Row],[Valuation Method]]=\"Vacant\",VLOOKUP(Table_Data_Table_1[[#This Row],[Item ID]],DataTable,6,FALSE)-VLOOKUP(Table_Data_Table_1[[#This Row],[Item ID]],DataTable,13,FALSE),IF(Table_Data_Table_1[[#This Row],[Valuation Method]]=\"Abstraction\",VLOOKUP(Table_Data_Table_1[[#This Row],[Item ID]],DataTable,6,FALSE)-VLOOKUP(Table_Data_Table_1[[#This Row],[Item ID]],DataTable,13,FALSE),IF(Table_Data_Table_1[[#This Row],[Valuation Method]]=\"Allocation\",VLOOKUP(Table_Data_Table_1[[#This Row],[Item ID]],DataTable,6,FALSE)*I300,\"\")))","v":""},{"$f":"IF(Table_Data_Table_1[[#This Row],[Valuation Method]]=\"Vacant\",\"N/A\",IF(Table_Data_Table_1[[#This Row],[Valuation Method]]=\"Abstraction\",Table_Data_Table_1[[#This Row],[Land\nResidual]]/VLOOKUP(Table_Data_Table_1[[#This Row],[Item ID]],DataTable,6,FALSE),IF(Table_Data_Table_1[[#This Row],[Valuation Method]]=\"Allocation\",'Global Settings'!$H$20,\"\")))","v":""},{"$f":"IFERROR(ROUND(Table_Data_Table_1[[#This Row],[Resid\nSq Ft]]/43560,3),\"\")","v":""},{"$f":"IF(Table_Data_Table_1[[#This Row],[Item ID]]=\"\",\"\",IFERROR(VLOOKUP(Table_Data_Table_1[[#This Row],[Item ID]],DataTable,10,FALSE)-VLOOKUP(Table_Data_Table_1[[#This Row],[Item ID]],DataTable,12,FALSE),\"\"))","v":""},{"$f":"IFERROR(Table_Data_Table_1[[#This Row],[Land\nResidual]]/Table_Data_Table_1[[#This Row],[Resid\nAcre]],\"\")","v":""},{"$f":"IFERROR(ROUND(Table_Data_Table_1[[#This Row],[Land\nResidual]]/Table_Data_Table_1[[#This Row],[Resid\nSq Ft]],2),\"\")","v":""},{"$f":"IF(Table_Data_Table_1[[#This Row],[Item ID]]=\"\",\"\",ROUND(DAYS360(Table_Data_Table_1[[#This Row],[Sale Date]],'Global Settings'!$H$5)/30,0))","v":""},{"$f":"IFERROR(IF(AND(Table_Data_Table_1[[#This Row],[Months To\nMid-Point]]<12.01,Table_Data_Table_1[[#This Row],[Months To\nMid-Point]]>-13),0,(Table_Data_Table_1[[#This Row],[Months To\nMid-Point]]*'Global Settings'!$H$6)),\"\")","v":""},{"$f":"IFERROR(Table_Data_Table_1[[#This Row],[Land\nResidual]]*(Table_Data_Table_1[[#This Row],[Time\nAdjust]]+1),\"\")","v":""},{"$f":"IFERROR(Table_Data_Table_1[[#This Row],[Adjusted\nSale Price]]/Table_Data_Table_1[[#This Row],[Resid\nAcre]],\"\")","v":""},{"$f":"IFERROR(ROUND(Table_Data_Table_1[[#This Row],[Adjusted\nSale Price]]/Table_Data_Table_1[[#This Row],[Resid\nSq Ft]],2),\"\")","v":""},{"$f":"IFERROR(IF(VLOOKUP(Table_Data_Table_1[[#This Row],[Item ID]],DataTable,11,FALSE)=0,\"N/A\",Table_Data_Table_1[[#This Row],[Adjusted\nSale Price]]/VLOOKUP(Table_Data_Table_1[[#This Row],[Item ID]],DataTable,11,FALSE)),\"\")","v":""},{"$f":"IF(IFERROR(VLOOKUP(Table_Data_Table_1[[#This Row],[Item ID]],DataTable,17,FALSE),\"\")=0,\"\",IFERROR(VLOOKUP(Table_Data_Table_1[[#This Row],[Item ID]],DataTable,17,FALSE),\"\"))","v":""}]
["",null,{"$f":"IF(Table_Data_Table_1[[#This Row],[Item ID]]=\"\",\"\",IFERROR(VLOOKUP(Table_Data_Table_1[[#This Row],[Item ID]],DataTable,16,FALSE),\"\"))","v":""},null,null,null,null,{"$f":"IF(Table_Data_Table_1[[#This Row],[Valuation Method]]=\"Vacant\",VLOOKUP(Table_Data_Table_1[[#This Row],[Item ID]],DataTable,6,FALSE)-VLOOKUP(Table_Data_Table_1[[#This Row],[Item ID]],DataTable,13,FALSE),IF(Table_Data_Table_1[[#This Row],[Valuation Method]]=\"Abstraction\",VLOOKUP(Table_Data_Table_1[[#This Row],[Item ID]],DataTable,6,FALSE)-VLOOKUP(Table_Data_Table_1[[#This Row],[Item ID]],DataTable,13,FALSE),IF(Table_Data_Table_1[[#This Row],[Valuation Method]]=\"Allocation\",VLOOKUP(Table_Data_Table_1[[#This Row],[Item ID]],DataTable,6,FALSE)*I301,\"\")))","v":""},{"$f":"IF(Table_Data_Table_1[[#This Row],[Valuation Method]]=\"Vacant\",\"N/A\",IF(Table_Data_Table_1[[#This Row],[Valuation Method]]=\"Abstraction\",Table_Data_Table_1[[#This Row],[Land\nResidual]]/VLOOKUP(Table_Data_Table_1[[#This Row],[Item ID]],DataTable,6,FALSE),IF(Table_Data_Table_1[[#This Row],[Valuation Method]]=\"Allocation\",'Global Settings'!$H$20,\"\")))","v":""},{"$f":"IFERROR(ROUND(Table_Data_Table_1[[#This Row],[Resid\nSq Ft]]/43560,3),\"\")","v":""},{"$f":"IF(Table_Data_Table_1[[#This Row],[Item ID]]=\"\",\"\",IFERROR(VLOOKUP(Table_Data_Table_1[[#This Row],[Item ID]],DataTable,10,FALSE)-VLOOKUP(Table_Data_Table_1[[#This Row],[Item ID]],DataTable,12,FALSE),\"\"))","v":""},{"$f":"IFERROR(Table_Data_Table_1[[#This Row],[Land\nResidual]]/Table_Data_Table_1[[#This Row],[Resid\nAcre]],\"\")","v":""},{"$f":"IFERROR(ROUND(Table_Data_Table_1[[#This Row],[Land\nResidual]]/Table_Data_Table_1[[#This Row],[Resid\nSq Ft]],2),\"\")","v":""},{"$f":"IF(Table_Data_Table_1[[#This Row],[Item ID]]=\"\",\"\",ROUND(DAYS360(Table_Data_Table_1[[#This Row],[Sale Date]],'Global Settings'!$H$5)/30,0))","v":""},{"$f":"IFERROR(IF(AND(Table_Data_Table_1[[#This Row],[Months To\nMid-Point]]<12.01,Table_Data_Table_1[[#This Row],[Months To\nMid-Point]]>-13),0,(Table_Data_Table_1[[#This Row],[Months To\nMid-Point]]*'Global Settings'!$H$6)),\"\")","v":""},{"$f":"IFERROR(Table_Data_Table_1[[#This Row],[Land\nResidual]]*(Table_Data_Table_1[[#This Row],[Time\nAdjust]]+1),\"\")","v":""},{"$f":"IFERROR(Table_Data_Table_1[[#This Row],[Adjusted\nSale Price]]/Table_Data_Table_1[[#This Row],[Resid\nAcre]],\"\")","v":""},{"$f":"IFERROR(ROUND(Table_Data_Table_1[[#This Row],[Adjusted\nSale Price]]/Table_Data_Table_1[[#This Row],[Resid\nSq Ft]],2),\"\")","v":""},{"$f":"IFERROR(IF(VLOOKUP(Table_Data_Table_1[[#This Row],[Item ID]],DataTable,11,FALSE)=0,\"N/A\",Table_Data_Table_1[[#This Row],[Adjusted\nSale Price]]/VLOOKUP(Table_Data_Table_1[[#This Row],[Item ID]],DataTable,11,FALSE)),\"\")","v":""},{"$f":"IF(IFERROR(VLOOKUP(Table_Data_Table_1[[#This Row],[Item ID]],DataTable,17,FALSE),\"\")=0,\"\",IFERROR(VLOOKUP(Table_Data_Table_1[[#This Row],[Item ID]],DataTable,17,FALSE),\"\"))","v":""}]
["",null,{"$f":"IF(Table_Data_Table_1[[#This Row],[Item ID]]=\"\",\"\",IFERROR(VLOOKUP(Table_Data_Table_1[[#This Row],[Item ID]],DataTable,16,FALSE),\"\"))","v":""},null,null,null,null,{"$f":"IF(Table_Data_Table_1[[#This Row],[Valuation Method]]=\"Vacant\",VLOOKUP(Table_Data_Table_1[[#This Row],[Item ID]],DataTable,6,FALSE)-VLOOKUP(Table_Data_Table_1[[#This Row],[Item ID]],DataTable,13,FALSE),IF(Table_Data_Table_1[[#This Row],[Valuation Method]]=\"Abstraction\",VLOOKUP(Table_Data_Table_1[[#This Row],[Item ID]],DataTable,6,FALSE)-VLOOKUP(Table_Data_Table_1[[#This Row],[Item ID]],DataTable,13,FALSE),IF(Table_Data_Table_1[[#This Row],[Valuation Method]]=\"Allocation\",VLOOKUP(Table_Data_Table_1[[#This Row],[Item ID]],DataTable,6,FALSE)*I302,\"\")))","v":""},{"$f":"IF(Table_Data_Table_1[[#This Row],[Valuation Method]]=\"Vacant\",\"N/A\",IF(Table_Data_Table_1[[#This Row],[Valuation Method]]=\"Abstraction\",Table_Data_Table_1[[#This Row],[Land\nResidual]]/VLOOKUP(Table_Data_Table_1[[#This Row],[Item ID]],DataTable,6,FALSE),IF(Table_Data_Table_1[[#This Row],[Valuation Method]]=\"Allocation\",'Global Settings'!$H$20,\"\")))","v":""},{"$f":"IFERROR(ROUND(Table_Data_Table_1[[#This Row],[Resid\nSq Ft]]/43560,3),\"\")","v":""},{"$f":"IF(Table_Data_Table_1[[#This Row],[Item ID]]=\"\",\"\",IFERROR(VLOOKUP(Table_Data_Table_1[[#This Row],[Item ID]],DataTable,10,FALSE)-VLOOKUP(Table_Data_Table_1[[#This Row],[Item ID]],DataTable,12,FALSE),\"\"))","v":""},{"$f":"IFERROR(Table_Data_Table_1[[#This Row],[Land\nResidual]]/Table_Data_Table_1[[#This Row],[Resid\nAcre]],\"\")","v":""},{"$f":"IFERROR(ROUND(Table_Data_Table_1[[#This Row],[Land\nResidual]]/Table_Data_Table_1[[#This Row],[Resid\nSq Ft]],2),\"\")","v":""},{"$f":"IF(Table_Data_Table_1[[#This Row],[Item ID]]=\"\",\"\",ROUND(DAYS360(Table_Data_Table_1[[#This Row],[Sale Date]],'Global Settings'!$H$5)/30,0))","v":""},{"$f":"IFERROR(IF(AND(Table_Data_Table_1[[#This Row],[Months To\nMid-Point]]<12.01,Table_Data_Table_1[[#This Row],[Months To\nMid-Point]]>-13),0,(Table_Data_Table_1[[#This Row],[Months To\nMid-Point]]*'Global Settings'!$H$6)),\"\")","v":""},{"$f":"IFERROR(Table_Data_Table_1[[#This Row],[Land\nResidual]]*(Table_Data_Table_1[[#This Row],[Time\nAdjust]]+1),\"\")","v":""},{"$f":"IFERROR(Table_Data_Table_1[[#This Row],[Adjusted\nSale Price]]/Table_Data_Table_1[[#This Row],[Resid\nAcre]],\"\")","v":""},{"$f":"IFERROR(ROUND(Table_Data_Table_1[[#This Row],[Adjusted\nSale Price]]/Table_Data_Table_1[[#This Row],[Resid\nSq Ft]],2),\"\")","v":""},{"$f":"IFERROR(IF(VLOOKUP(Table_Data_Table_1[[#This Row],[Item ID]],DataTable,11,FALSE)=0,\"N/A\",Table_Data_Table_1[[#This Row],[Adjusted\nSale Price]]/VLOOKUP(Table_Data_Table_1[[#This Row],[Item ID]],DataTable,11,FALSE)),\"\")","v":""},{"$f":"IF(IFERROR(VLOOKUP(Table_Data_Table_1[[#This Row],[Item ID]],DataTable,17,FALSE),\"\")=0,\"\",IFERROR(VLOOKUP(Table_Data_Table_1[[#This Row],[Item ID]],DataTable,17,FALSE),\"\"))","v":""}]
["",null,{"$f":"IF(Table_Data_Table_1[[#This Row],[Item ID]]=\"\",\"\",IFERROR(VLOOKUP(Table_Data_Table_1[[#This Row],[Item ID]],DataTable,16,FALSE),\"\"))","v":""},null,null,null,null,{"$f":"IF(Table_Data_Table_1[[#This Row],[Valuation Method]]=\"Vacant\",VLOOKUP(Table_Data_Table_1[[#This Row],[Item ID]],DataTable,6,FALSE)-VLOOKUP(Table_Data_Table_1[[#This Row],[Item ID]],DataTable,13,FALSE),IF(Table_Data_Table_1[[#This Row],[Valuation Method]]=\"Abstraction\",VLOOKUP(Table_Data_Table_1[[#This Row],[Item ID]],DataTable,6,FALSE)-VLOOKUP(Table_Data_Table_1[[#This Row],[Item ID]],DataTable,13,FALSE),IF(Table_Data_Table_1[[#This Row],[Valuation Method]]=\"Allocation\",VLOOKUP(Table_Data_Table_1[[#This Row],[Item ID]],DataTable,6,FALSE)*I303,\"\")))","v":""},{"$f":"IF(Table_Data_Table_1[[#This Row],[Valuation Method]]=\"Vacant\",\"N/A\",IF(Table_Data_Table_1[[#This Row],[Valuation Method]]=\"Abstraction\",Table_Data_Table_1[[#This Row],[Land\nResidual]]/VLOOKUP(Table_Data_Table_1[[#This Row],[Item ID]],DataTable,6,FALSE),IF(Table_Data_Table_1[[#This Row],[Valuation Method]]=\"Allocation\",'Global Settings'!$H$20,\"\")))","v":""},{"$f":"IFERROR(ROUND(Table_Data_Table_1[[#This Row],[Resid\nSq Ft]]/43560,3),\"\")","v":""},{"$f":"IF(Table_Data_Table_1[[#This Row],[Item ID]]=\"\",\"\",IFERROR(VLOOKUP(Table_Data_Table_1[[#This Row],[Item ID]],DataTable,10,FALSE)-VLOOKUP(Table_Data_Table_1[[#This Row],[Item ID]],DataTable,12,FALSE),\"\"))","v":""},{"$f":"IFERROR(Table_Data_Table_1[[#This Row],[Land\nResidual]]/Table_Data_Table_1[[#This Row],[Resid\nAcre]],\"\")","v":""},{"$f":"IFERROR(ROUND(Table_Data_Table_1[[#This Row],[Land\nResidual]]/Table_Data_Table_1[[#This Row],[Resid\nSq Ft]],2),\"\")","v":""},{"$f":"IF(Table_Data_Table_1[[#This Row],[Item ID]]=\"\",\"\",ROUND(DAYS360(Table_Data_Table_1[[#This Row],[Sale Date]],'Global Settings'!$H$5)/30,0))","v":""},{"$f":"IFERROR(IF(AND(Table_Data_Table_1[[#This Row],[Months To\nMid-Point]]<12.01,Table_Data_Table_1[[#This Row],[Months To\nMid-Point]]>-13),0,(Table_Data_Table_1[[#This Row],[Months To\nMid-Point]]*'Global Settings'!$H$6)),\"\")","v":""},{"$f":"IFERROR(Table_Data_Table_1[[#This Row],[Land\nResidual]]*(Table_Data_Table_1[[#This Row],[Time\nAdjust]]+1),\"\")","v":""},{"$f":"IFERROR(Table_Data_Table_1[[#This Row],[Adjusted\nSale Price]]/Table_Data_Table_1[[#This Row],[Resid\nAcre]],\"\")","v":""},{"$f":"IFERROR(ROUND(Table_Data_Table_1[[#This Row],[Adjusted\nSale Price]]/Table_Data_Table_1[[#This Row],[Resid\nSq Ft]],2),\"\")","v":""},{"$f":"IFERROR(IF(VLOOKUP(Table_Data_Table_1[[#This Row],[Item ID]],DataTable,11,FALSE)=0,\"N/A\",Table_Data_Table_1[[#This Row],[Adjusted\nSale Price]]/VLOOKUP(Table_Data_Table_1[[#This Row],[Item ID]],DataTable,11,FALSE)),\"\")","v":""},{"$f":"IF(IFERROR(VLOOKUP(Table_Data_Table_1[[#This Row],[Item ID]],DataTable,17,FALSE),\"\")=0,\"\",IFERROR(VLOOKUP(Table_Data_Table_1[[#This Row],[Item ID]],DataTable,17,FALSE),\"\"))","v":""}]
["",null,{"$f":"IF(Table_Data_Table_1[[#This Row],[Item ID]]=\"\",\"\",IFERROR(VLOOKUP(Table_Data_Table_1[[#This Row],[Item ID]],DataTable,16,FALSE),\"\"))","v":""},null,null,null,null,{"$f":"IF(Table_Data_Table_1[[#This Row],[Valuation Method]]=\"Vacant\",VLOOKUP(Table_Data_Table_1[[#This Row],[Item ID]],DataTable,6,FALSE)-VLOOKUP(Table_Data_Table_1[[#This Row],[Item ID]],DataTable,13,FALSE),IF(Table_Data_Table_1[[#This Row],[Valuation Method]]=\"Abstraction\",VLOOKUP(Table_Data_Table_1[[#This Row],[Item ID]],DataTable,6,FALSE)-VLOOKUP(Table_Data_Table_1[[#This Row],[Item ID]],DataTable,13,FALSE),IF(Table_Data_Table_1[[#This Row],[Valuation Method]]=\"Allocation\",VLOOKUP(Table_Data_Table_1[[#This Row],[Item ID]],DataTable,6,FALSE)*I304,\"\")))","v":""},{"$f":"IF(Table_Data_Table_1[[#This Row],[Valuation Method]]=\"Vacant\",\"N/A\",IF(Table_Data_Table_1[[#This Row],[Valuation Method]]=\"Abstraction\",Table_Data_Table_1[[#This Row],[Land\nResidual]]/VLOOKUP(Table_Data_Table_1[[#This Row],[Item ID]],DataTable,6,FALSE),IF(Table_Data_Table_1[[#This Row],[Valuation Method]]=\"Allocation\",'Global Settings'!$H$20,\"\")))","v":""},{"$f":"IFERROR(ROUND(Table_Data_Table_1[[#This Row],[Resid\nSq Ft]]/43560,3),\"\")","v":""},{"$f":"IF(Table_Data_Table_1[[#This Row],[Item ID]]=\"\",\"\",IFERROR(VLOOKUP(Table_Data_Table_1[[#This Row],[Item ID]],DataTable,10,FALSE)-VLOOKUP(Table_Data_Table_1[[#This Row],[Item ID]],DataTable,12,FALSE),\"\"))","v":""},{"$f":"IFERROR(Table_Data_Table_1[[#This Row],[Land\nResidual]]/Table_Data_Table_1[[#This Row],[Resid\nAcre]],\"\")","v":""},{"$f":"IFERROR(ROUND(Table_Data_Table_1[[#This Row],[Land\nResidual]]/Table_Data_Table_1[[#This Row],[Resid\nSq Ft]],2),\"\")","v":""},{"$f":"IF(Table_Data_Table_1[[#This Row],[Item ID]]=\"\",\"\",ROUND(DAYS360(Table_Data_Table_1[[#This Row],[Sale Date]],'Global Settings'!$H$5)/30,0))","v":""},{"$f":"IFERROR(IF(AND(Table_Data_Table_1[[#This Row],[Months To\nMid-Point]]<12.01,Table_Data_Table_1[[#This Row],[Months To\nMid-Point]]>-13),0,(Table_Data_Table_1[[#This Row],[Months To\nMid-Point]]*'Global Settings'!$H$6)),\"\")","v":""},{"$f":"IFERROR(Table_Data_Table_1[[#This Row],[Land\nResidual]]*(Table_Data_Table_1[[#This Row],[Time\nAdjust]]+1),\"\")","v":""},{"$f":"IFERROR(Table_Data_Table_1[[#This Row],[Adjusted\nSale Price]]/Table_Data_Table_1[[#This Row],[Resid\nAcre]],\"\")","v":""},{"$f":"IFERROR(ROUND(Table_Data_Table_1[[#This Row],[Adjusted\nSale Price]]/Table_Data_Table_1[[#This Row],[Resid\nSq Ft]],2),\"\")","v":""},{"$f":"IFERROR(IF(VLOOKUP(Table_Data_Table_1[[#This Row],[Item ID]],DataTable,11,FALSE)=0,\"N/A\",Table_Data_Table_1[[#This Row],[Adjusted\nSale Price]]/VLOOKUP(Table_Data_Table_1[[#This Row],[Item ID]],DataTable,11,FALSE)),\"\")","v":""},{"$f":"IF(IFERROR(VLOOKUP(Table_Data_Table_1[[#This Row],[Item ID]],DataTable,17,FALSE),\"\")=0,\"\",IFERROR(VLOOKUP(Table_Data_Table_1[[#This Row],[Item ID]],DataTable,17,FALSE),\"\"))","v":""}]
["",null,{"$f":"IF(Table_Data_Table_1[[#This Row],[Item ID]]=\"\",\"\",IFERROR(VLOOKUP(Table_Data_Table_1[[#This Row],[Item ID]],DataTable,16,FALSE),\"\"))","v":""},null,null,null,null,{"$f":"IF(Table_Data_Table_1[[#This Row],[Valuation Method]]=\"Vacant\",VLOOKUP(Table_Data_Table_1[[#This Row],[Item ID]],DataTable,6,FALSE)-VLOOKUP(Table_Data_Table_1[[#This Row],[Item ID]],DataTable,13,FALSE),IF(Table_Data_Table_1[[#This Row],[Valuation Method]]=\"Abstraction\",VLOOKUP(Table_Data_Table_1[[#This Row],[Item ID]],DataTable,6,FALSE)-VLOOKUP(Table_Data_Table_1[[#This Row],[Item ID]],DataTable,13,FALSE),IF(Table_Data_Table_1[[#This Row],[Valuation Method]]=\"Allocation\",VLOOKUP(Table_Data_Table_1[[#This Row],[Item ID]],DataTable,6,FALSE)*I305,\"\")))","v":""},{"$f":"IF(Table_Data_Table_1[[#This Row],[Valuation Method]]=\"Vacant\",\"N/A\",IF(Table_Data_Table_1[[#This Row],[Valuation Method]]=\"Abstraction\",Table_Data_Table_1[[#This Row],[Land\nResidual]]/VLOOKUP(Table_Data_Table_1[[#This Row],[Item ID]],DataTable,6,FALSE),IF(Table_Data_Table_1[[#This Row],[Valuation Method]]=\"Allocation\",'Global Settings'!$H$20,\"\")))","v":""},{"$f":"IFERROR(ROUND(Table_Data_Table_1[[#This Row],[Resid\nSq Ft]]/43560,3),\"\")","v":""},{"$f":"IF(Table_Data_Table_1[[#This Row],[Item ID]]=\"\",\"\",IFERROR(VLOOKUP(Table_Data_Table_1[[#This Row],[Item ID]],DataTable,10,FALSE)-VLOOKUP(Table_Data_Table_1[[#This Row],[Item ID]],DataTable,12,FALSE),\"\"))","v":""},{"$f":"IFERROR(Table_Data_Table_1[[#This Row],[Land\nResidual]]/Table_Data_Table_1[[#This Row],[Resid\nAcre]],\"\")","v":""},{"$f":"IFERROR(ROUND(Table_Data_Table_1[[#This Row],[Land\nResidual]]/Table_Data_Table_1[[#This Row],[Resid\nSq Ft]],2),\"\")","v":""},{"$f":"IF(Table_Data_Table_1[[#This Row],[Item ID]]=\"\",\"\",ROUND(DAYS360(Table_Data_Table_1[[#This Row],[Sale Date]],'Global Settings'!$H$5)/30,0))","v":""},{"$f":"IFERROR(IF(AND(Table_Data_Table_1[[#This Row],[Months To\nMid-Point]]<12.01,Table_Data_Table_1[[#This Row],[Months To\nMid-Point]]>-13),0,(Table_Data_Table_1[[#This Row],[Months To\nMid-Point]]*'Global Settings'!$H$6)),\"\")","v":""},{"$f":"IFERROR(Table_Data_Table_1[[#This Row],[Land\nResidual]]*(Table_Data_Table_1[[#This Row],[Time\nAdjust]]+1),\"\")","v":""},{"$f":"IFERROR(Table_Data_Table_1[[#This Row],[Adjusted\nSale Price]]/Table_Data_Table_1[[#This Row],[Resid\nAcre]],\"\")","v":""},{"$f":"IFERROR(ROUND(Table_Data_Table_1[[#This Row],[Adjusted\nSale Price]]/Table_Data_Table_1[[#This Row],[Resid\nSq Ft]],2),\"\")","v":""},{"$f":"IFERROR(IF(VLOOKUP(Table_Data_Table_1[[#This Row],[Item ID]],DataTable,11,FALSE)=0,\"N/A\",Table_Data_Table_1[[#This Row],[Adjusted\nSale Price]]/VLOOKUP(Table_Data_Table_1[[#This Row],[Item ID]],DataTable,11,FALSE)),\"\")","v":""},{"$f":"IF(IFERROR(VLOOKUP(Table_Data_Table_1[[#This Row],[Item ID]],DataTable,17,FALSE),\"\")=0,\"\",IFERROR(VLOOKUP(Table_Data_Table_1[[#This Row],[Item ID]],DataTable,17,FALSE),\"\"))","v":""}]
["",null,{"$f":"IF(Table_Data_Table_1[[#This Row],[Item ID]]=\"\",\"\",IFERROR(VLOOKUP(Table_Data_Table_1[[#This Row],[Item ID]],DataTable,16,FALSE),\"\"))","v":""},null,null,null,null,{"$f":"IF(Table_Data_Table_1[[#This Row],[Valuation Method]]=\"Vacant\",VLOOKUP(Table_Data_Table_1[[#This Row],[Item ID]],DataTable,6,FALSE)-VLOOKUP(Table_Data_Table_1[[#This Row],[Item ID]],DataTable,13,FALSE),IF(Table_Data_Table_1[[#This Row],[Valuation Method]]=\"Abstraction\",VLOOKUP(Table_Data_Table_1[[#This Row],[Item ID]],DataTable,6,FALSE)-VLOOKUP(Table_Data_Table_1[[#This Row],[Item ID]],DataTable,13,FALSE),IF(Table_Data_Table_1[[#This Row],[Valuation Method]]=\"Allocation\",VLOOKUP(Table_Data_Table_1[[#This Row],[Item ID]],DataTable,6,FALSE)*I306,\"\")))","v":""},{"$f":"IF(Table_Data_Table_1[[#This Row],[Valuation Method]]=\"Vacant\",\"N/A\",IF(Table_Data_Table_1[[#This Row],[Valuation Method]]=\"Abstraction\",Table_Data_Table_1[[#This Row],[Land\nResidual]]/VLOOKUP(Table_Data_Table_1[[#This Row],[Item ID]],DataTable,6,FALSE),IF(Table_Data_Table_1[[#This Row],[Valuation Method]]=\"Allocation\",'Global Settings'!$H$20,\"\")))","v":""},{"$f":"IFERROR(ROUND(Table_Data_Table_1[[#This Row],[Resid\nSq Ft]]/43560,3),\"\")","v":""},{"$f":"IF(Table_Data_Table_1[[#This Row],[Item ID]]=\"\",\"\",IFERROR(VLOOKUP(Table_Data_Table_1[[#This Row],[Item ID]],DataTable,10,FALSE)-VLOOKUP(Table_Data_Table_1[[#This Row],[Item ID]],DataTable,12,FALSE),\"\"))","v":""},{"$f":"IFERROR(Table_Data_Table_1[[#This Row],[Land\nResidual]]/Table_Data_Table_1[[#This Row],[Resid\nAcre]],\"\")","v":""},{"$f":"IFERROR(ROUND(Table_Data_Table_1[[#This Row],[Land\nResidual]]/Table_Data_Table_1[[#This Row],[Resid\nSq Ft]],2),\"\")","v":""},{"$f":"IF(Table_Data_Table_1[[#This Row],[Item ID]]=\"\",\"\",ROUND(DAYS360(Table_Data_Table_1[[#This Row],[Sale Date]],'Global Settings'!$H$5)/30,0))","v":""},{"$f":"IFERROR(IF(AND(Table_Data_Table_1[[#This Row],[Months To\nMid-Point]]<12.01,Table_Data_Table_1[[#This Row],[Months To\nMid-Point]]>-13),0,(Table_Data_Table_1[[#This Row],[Months To\nMid-Point]]*'Global Settings'!$H$6)),\"\")","v":""},{"$f":"IFERROR(Table_Data_Table_1[[#This Row],[Land\nResidual]]*(Table_Data_Table_1[[#This Row],[Time\nAdjust]]+1),\"\")","v":""},{"$f":"IFERROR(Table_Data_Table_1[[#This Row],[Adjusted\nSale Price]]/Table_Data_Table_1[[#This Row],[Resid\nAcre]],\"\")","v":""},{"$f":"IFERROR(ROUND(Table_Data_Table_1[[#This Row],[Adjusted\nSale Price]]/Table_Data_Table_1[[#This Row],[Resid\nSq Ft]],2),\"\")","v":""},{"$f":"IFERROR(IF(VLOOKUP(Table_Data_Table_1[[#This Row],[Item ID]],DataTable,11,FALSE)=0,\"N/A\",Table_Data_Table_1[[#This Row],[Adjusted\nSale Price]]/VLOOKUP(Table_Data_Table_1[[#This Row],[Item ID]],DataTable,11,FALSE)),\"\")","v":""},{"$f":"IF(IFERROR(VLOOKUP(Table_Data_Table_1[[#This Row],[Item ID]],DataTable,17,FALSE),\"\")=0,\"\",IFERROR(VLOOKUP(Table_Data_Table_1[[#This Row],[Item ID]],DataTable,17,FALSE),\"\"))","v":""}]
["",null,{"$f":"IF(Table_Data_Table_1[[#This Row],[Item ID]]=\"\",\"\",IFERROR(VLOOKUP(Table_Data_Table_1[[#This Row],[Item ID]],DataTable,16,FALSE),\"\"))","v":""},null,null,null,null,{"$f":"IF(Table_Data_Table_1[[#This Row],[Valuation Method]]=\"Vacant\",VLOOKUP(Table_Data_Table_1[[#This Row],[Item ID]],DataTable,6,FALSE)-VLOOKUP(Table_Data_Table_1[[#This Row],[Item ID]],DataTable,13,FALSE),IF(Table_Data_Table_1[[#This Row],[Valuation Method]]=\"Abstraction\",VLOOKUP(Table_Data_Table_1[[#This Row],[Item ID]],DataTable,6,FALSE)-VLOOKUP(Table_Data_Table_1[[#This Row],[Item ID]],DataTable,13,FALSE),IF(Table_Data_Table_1[[#This Row],[Valuation Method]]=\"Allocation\",VLOOKUP(Table_Data_Table_1[[#This Row],[Item ID]],DataTable,6,FALSE)*I307,\"\")))","v":""},{"$f":"IF(Table_Data_Table_1[[#This Row],[Valuation Method]]=\"Vacant\",\"N/A\",IF(Table_Data_Table_1[[#This Row],[Valuation Method]]=\"Abstraction\",Table_Data_Table_1[[#This Row],[Land\nResidual]]/VLOOKUP(Table_Data_Table_1[[#This Row],[Item ID]],DataTable,6,FALSE),IF(Table_Data_Table_1[[#This Row],[Valuation Method]]=\"Allocation\",'Global Settings'!$H$20,\"\")))","v":""},{"$f":"IFERROR(ROUND(Table_Data_Table_1[[#This Row],[Resid\nSq Ft]]/43560,3),\"\")","v":""},{"$f":"IF(Table_Data_Table_1[[#This Row],[Item ID]]=\"\",\"\",IFERROR(VLOOKUP(Table_Data_Table_1[[#This Row],[Item ID]],DataTable,10,FALSE)-VLOOKUP(Table_Data_Table_1[[#This Row],[Item ID]],DataTable,12,FALSE),\"\"))","v":""},{"$f":"IFERROR(Table_Data_Table_1[[#This Row],[Land\nResidual]]/Table_Data_Table_1[[#This Row],[Resid\nAcre]],\"\")","v":""},{"$f":"IFERROR(ROUND(Table_Data_Table_1[[#This Row],[Land\nResidual]]/Table_Data_Table_1[[#This Row],[Resid\nSq Ft]],2),\"\")","v":""},{"$f":"IF(Table_Data_Table_1[[#This Row],[Item ID]]=\"\",\"\",ROUND(DAYS360(Table_Data_Table_1[[#This Row],[Sale Date]],'Global Settings'!$H$5)/30,0))","v":""},{"$f":"IFERROR(IF(AND(Table_Data_Table_1[[#This Row],[Months To\nMid-Point]]<12.01,Table_Data_Table_1[[#This Row],[Months To\nMid-Point]]>-13),0,(Table_Data_Table_1[[#This Row],[Months To\nMid-Point]]*'Global Settings'!$H$6)),\"\")","v":""},{"$f":"IFERROR(Table_Data_Table_1[[#This Row],[Land\nResidual]]*(Table_Data_Table_1[[#This Row],[Time\nAdjust]]+1),\"\")","v":""},{"$f":"IFERROR(Table_Data_Table_1[[#This Row],[Adjusted\nSale Price]]/Table_Data_Table_1[[#This Row],[Resid\nAcre]],\"\")","v":""},{"$f":"IFERROR(ROUND(Table_Data_Table_1[[#This Row],[Adjusted\nSale Price]]/Table_Data_Table_1[[#This Row],[Resid\nSq Ft]],2),\"\")","v":""},{"$f":"IFERROR(IF(VLOOKUP(Table_Data_Table_1[[#This Row],[Item ID]],DataTable,11,FALSE)=0,\"N/A\",Table_Data_Table_1[[#This Row],[Adjusted\nSale Price]]/VLOOKUP(Table_Data_Table_1[[#This Row],[Item ID]],DataTable,11,FALSE)),\"\")","v":""},{"$f":"IF(IFERROR(VLOOKUP(Table_Data_Table_1[[#This Row],[Item ID]],DataTable,17,FALSE),\"\")=0,\"\",IFERROR(VLOOKUP(Table_Data_Table_1[[#This Row],[Item ID]],DataTable,17,FALSE),\"\"))","v":""}]
["",null,{"$f":"IF(Table_Data_Table_1[[#This Row],[Item ID]]=\"\",\"\",IFERROR(VLOOKUP(Table_Data_Table_1[[#This Row],[Item ID]],DataTable,16,FALSE),\"\"))","v":""},null,null,null,null,{"$f":"IF(Table_Data_Table_1[[#This Row],[Valuation Method]]=\"Vacant\",VLOOKUP(Table_Data_Table_1[[#This Row],[Item ID]],DataTable,6,FALSE)-VLOOKUP(Table_Data_Table_1[[#This Row],[Item ID]],DataTable,13,FALSE),IF(Table_Data_Table_1[[#This Row],[Valuation Method]]=\"Abstraction\",VLOOKUP(Table_Data_Table_1[[#This Row],[Item ID]],DataTable,6,FALSE)-VLOOKUP(Table_Data_Table_1[[#This Row],[Item ID]],DataTable,13,FALSE),IF(Table_Data_Table_1[[#This Row],[Valuation Method]]=\"Allocation\",VLOOKUP(Table_Data_Table_1[[#This Row],[Item ID]],DataTable,6,FALSE)*I308,\"\")))","v":""},{"$f":"IF(Table_Data_Table_1[[#This Row],[Valuation Method]]=\"Vacant\",\"N/A\",IF(Table_Data_Table_1[[#This Row],[Valuation Method]]=\"Abstraction\",Table_Data_Table_1[[#This Row],[Land\nResidual]]/VLOOKUP(Table_Data_Table_1[[#This Row],[Item ID]],DataTable,6,FALSE),IF(Table_Data_Table_1[[#This Row],[Valuation Method]]=\"Allocation\",'Global Settings'!$H$20,\"\")))","v":""},{"$f":"IFERROR(ROUND(Table_Data_Table_1[[#This Row],[Resid\nSq Ft]]/43560,3),\"\")","v":""},{"$f":"IF(Table_Data_Table_1[[#This Row],[Item ID]]=\"\",\"\",IFERROR(VLOOKUP(Table_Data_Table_1[[#This Row],[Item ID]],DataTable,10,FALSE)-VLOOKUP(Table_Data_Table_1[[#This Row],[Item ID]],DataTable,12,FALSE),\"\"))","v":""},{"$f":"IFERROR(Table_Data_Table_1[[#This Row],[Land\nResidual]]/Table_Data_Table_1[[#This Row],[Resid\nAcre]],\"\")","v":""},{"$f":"IFERROR(ROUND(Table_Data_Table_1[[#This Row],[Land\nResidual]]/Table_Data_Table_1[[#This Row],[Resid\nSq Ft]],2),\"\")","v":""},{"$f":"IF(Table_Data_Table_1[[#This Row],[Item ID]]=\"\",\"\",ROUND(DAYS360(Table_Data_Table_1[[#This Row],[Sale Date]],'Global Settings'!$H$5)/30,0))","v":""},{"$f":"IFERROR(IF(AND(Table_Data_Table_1[[#This Row],[Months To\nMid-Point]]<12.01,Table_Data_Table_1[[#This Row],[Months To\nMid-Point]]>-13),0,(Table_Data_Table_1[[#This Row],[Months To\nMid-Point]]*'Global Settings'!$H$6)),\"\")","v":""},{"$f":"IFERROR(Table_Data_Table_1[[#This Row],[Land\nResidual]]*(Table_Data_Table_1[[#This Row],[Time\nAdjust]]+1),\"\")","v":""},{"$f":"IFERROR(Table_Data_Table_1[[#This Row],[Adjusted\nSale Price]]/Table_Data_Table_1[[#This Row],[Resid\nAcre]],\"\")","v":""},{"$f":"IFERROR(ROUND(Table_Data_Table_1[[#This Row],[Adjusted\nSale Price]]/Table_Data_Table_1[[#This Row],[Resid\nSq Ft]],2),\"\")","v":""},{"$f":"IFERROR(IF(VLOOKUP(Table_Data_Table_1[[#This Row],[Item ID]],DataTable,11,FALSE)=0,\"N/A\",Table_Data_Table_1[[#This Row],[Adjusted\nSale Price]]/VLOOKUP(Table_Data_Table_1[[#This Row],[Item ID]],DataTable,11,FALSE)),\"\")","v":""},{"$f":"IF(IFERROR(VLOOKUP(Table_Data_Table_1[[#This Row],[Item ID]],DataTable,17,FALSE),\"\")=0,\"\",IFERROR(VLOOKUP(Table_Data_Table_1[[#This Row],[Item ID]],DataTable,17,FALSE),\"\"))","v":""}]
["",null,{"$f":"IF(Table_Data_Table_1[[#This Row],[Item ID]]=\"\",\"\",IFERROR(VLOOKUP(Table_Data_Table_1[[#This Row],[Item ID]],DataTable,16,FALSE),\"\"))","v":""},null,null,null,null,{"$f":"IF(Table_Data_Table_1[[#This Row],[Valuation Method]]=\"Vacant\",VLOOKUP(Table_Data_Table_1[[#This Row],[Item ID]],DataTable,6,FALSE)-VLOOKUP(Table_Data_Table_1[[#This Row],[Item ID]],DataTable,13,FALSE),IF(Table_Data_Table_1[[#This Row],[Valuation Method]]=\"Abstraction\",VLOOKUP(Table_Data_Table_1[[#This Row],[Item ID]],DataTable,6,FALSE)-VLOOKUP(Table_Data_Table_1[[#This Row],[Item ID]],DataTable,13,FALSE),IF(Table_Data_Table_1[[#This Row],[Valuation Method]]=\"Allocation\",VLOOKUP(Table_Data_Table_1[[#This Row],[Item ID]],DataTable,6,FALSE)*I309,\"\")))","v":""},{"$f":"IF(Table_Data_Table_1[[#This Row],[Valuation Method]]=\"Vacant\",\"N/A\",IF(Table_Data_Table_1[[#This Row],[Valuation Method]]=\"Abstraction\",Table_Data_Table_1[[#This Row],[Land\nResidual]]/VLOOKUP(Table_Data_Table_1[[#This Row],[Item ID]],DataTable,6,FALSE),IF(Table_Data_Table_1[[#This Row],[Valuation Method]]=\"Allocation\",'Global Settings'!$H$20,\"\")))","v":""},{"$f":"IFERROR(ROUND(Table_Data_Table_1[[#This Row],[Resid\nSq Ft]]/43560,3),\"\")","v":""},{"$f":"IF(Table_Data_Table_1[[#This Row],[Item ID]]=\"\",\"\",IFERROR(VLOOKUP(Table_Data_Table_1[[#This Row],[Item ID]],DataTable,10,FALSE)-VLOOKUP(Table_Data_Table_1[[#This Row],[Item ID]],DataTable,12,FALSE),\"\"))","v":""},{"$f":"IFERROR(Table_Data_Table_1[[#This Row],[Land\nResidual]]/Table_Data_Table_1[[#This Row],[Resid\nAcre]],\"\")","v":""},{"$f":"IFERROR(ROUND(Table_Data_Table_1[[#This Row],[Land\nResidual]]/Table_Data_Table_1[[#This Row],[Resid\nSq Ft]],2),\"\")","v":""},{"$f":"IF(Table_Data_Table_1[[#This Row],[Item ID]]=\"\",\"\",ROUND(DAYS360(Table_Data_Table_1[[#This Row],[Sale Date]],'Global Settings'!$H$5)/30,0))","v":""},{"$f":"IFERROR(IF(AND(Table_Data_Table_1[[#This Row],[Months To\nMid-Point]]<12.01,Table_Data_Table_1[[#This Row],[Months To\nMid-Point]]>-13),0,(Table_Data_Table_1[[#This Row],[Months To\nMid-Point]]*'Global Settings'!$H$6)),\"\")","v":""},{"$f":"IFERROR(Table_Data_Table_1[[#This Row],[Land\nResidual]]*(Table_Data_Table_1[[#This Row],[Time\nAdjust]]+1),\"\")","v":""},{"$f":"IFERROR(Table_Data_Table_1[[#This Row],[Adjusted\nSale Price]]/Table_Data_Table_1[[#This Row],[Resid\nAcre]],\"\")","v":""},{"$f":"IFERROR(ROUND(Table_Data_Table_1[[#This Row],[Adjusted\nSale Price]]/Table_Data_Table_1[[#This Row],[Resid\nSq Ft]],2),\"\")","v":""},{"$f":"IFERROR(IF(VLOOKUP(Table_Data_Table_1[[#This Row],[Item ID]],DataTable,11,FALSE)=0,\"N/A\",Table_Data_Table_1[[#This Row],[Adjusted\nSale Price]]/VLOOKUP(Table_Data_Table_1[[#This Row],[Item ID]],DataTable,11,FALSE)),\"\")","v":""},{"$f":"IF(IFERROR(VLOOKUP(Table_Data_Table_1[[#This Row],[Item ID]],DataTable,17,FALSE),\"\")=0,\"\",IFERROR(VLOOKUP(Table_Data_Table_1[[#This Row],[Item ID]],DataTable,17,FALSE),\"\"))","v":""}]
["",null,{"$f":"IF(Table_Data_Table_1[[#This Row],[Item ID]]=\"\",\"\",IFERROR(VLOOKUP(Table_Data_Table_1[[#This Row],[Item ID]],DataTable,16,FALSE),\"\"))","v":""},null,null,null,null,{"$f":"IF(Table_Data_Table_1[[#This Row],[Valuation Method]]=\"Vacant\",VLOOKUP(Table_Data_Table_1[[#This Row],[Item ID]],DataTable,6,FALSE)-VLOOKUP(Table_Data_Table_1[[#This Row],[Item ID]],DataTable,13,FALSE),IF(Table_Data_Table_1[[#This Row],[Valuation Method]]=\"Abstraction\",VLOOKUP(Table_Data_Table_1[[#This Row],[Item ID]],DataTable,6,FALSE)-VLOOKUP(Table_Data_Table_1[[#This Row],[Item ID]],DataTable,13,FALSE),IF(Table_Data_Table_1[[#This Row],[Valuation Method]]=\"Allocation\",VLOOKUP(Table_Data_Table_1[[#This Row],[Item ID]],DataTable,6,FALSE)*I310,\"\")))","v":""},{"$f":"IF(Table_Data_Table_1[[#This Row],[Valuation Method]]=\"Vacant\",\"N/A\",IF(Table_Data_Table_1[[#This Row],[Valuation Method]]=\"Abstraction\",Table_Data_Table_1[[#This Row],[Land\nResidual]]/VLOOKUP(Table_Data_Table_1[[#This Row],[Item ID]],DataTable,6,FALSE),IF(Table_Data_Table_1[[#This Row],[Valuation Method]]=\"Allocation\",'Global Settings'!$H$20,\"\")))","v":""},{"$f":"IFERROR(ROUND(Table_Data_Table_1[[#This Row],[Resid\nSq Ft]]/43560,3),\"\")","v":""},{"$f":"IF(Table_Data_Table_1[[#This Row],[Item ID]]=\"\",\"\",IFERROR(VLOOKUP(Table_Data_Table_1[[#This Row],[Item ID]],DataTable,10,FALSE)-VLOOKUP(Table_Data_Table_1[[#This Row],[Item ID]],DataTable,12,FALSE),\"\"))","v":""},{"$f":"IFERROR(Table_Data_Table_1[[#This Row],[Land\nResidual]]/Table_Data_Table_1[[#This Row],[Resid\nAcre]],\"\")","v":""},{"$f":"IFERROR(ROUND(Table_Data_Table_1[[#This Row],[Land\nResidual]]/Table_Data_Table_1[[#This Row],[Resid\nSq Ft]],2),\"\")","v":""},{"$f":"IF(Table_Data_Table_1[[#This Row],[Item ID]]=\"\",\"\",ROUND(DAYS360(Table_Data_Table_1[[#This Row],[Sale Date]],'Global Settings'!$H$5)/30,0))","v":""},{"$f":"IFERROR(IF(AND(Table_Data_Table_1[[#This Row],[Months To\nMid-Point]]<12.01,Table_Data_Table_1[[#This Row],[Months To\nMid-Point]]>-13),0,(Table_Data_Table_1[[#This Row],[Months To\nMid-Point]]*'Global Settings'!$H$6)),\"\")","v":""},{"$f":"IFERROR(Table_Data_Table_1[[#This Row],[Land\nResidual]]*(Table_Data_Table_1[[#This Row],[Time\nAdjust]]+1),\"\")","v":""},{"$f":"IFERROR(Table_Data_Table_1[[#This Row],[Adjusted\nSale Price]]/Table_Data_Table_1[[#This Row],[Resid\nAcre]],\"\")","v":""},{"$f":"IFERROR(ROUND(Table_Data_Table_1[[#This Row],[Adjusted\nSale Price]]/Table_Data_Table_1[[#This Row],[Resid\nSq Ft]],2),\"\")","v":""},{"$f":"IFERROR(IF(VLOOKUP(Table_Data_Table_1[[#This Row],[Item ID]],DataTable,11,FALSE)=0,\"N/A\",Table_Data_Table_1[[#This Row],[Adjusted\nSale Price]]/VLOOKUP(Table_Data_Table_1[[#This Row],[Item ID]],DataTable,11,FALSE)),\"\")","v":""},{"$f":"IF(IFERROR(VLOOKUP(Table_Data_Table_1[[#This Row],[Item ID]],DataTable,17,FALSE),\"\")=0,\"\",IFERROR(VLOOKUP(Table_Data_Table_1[[#This Row],[Item ID]],DataTable,17,FALSE),\"\"))","v":""}]
["",null,{"$f":"IF(Table_Data_Table_1[[#This Row],[Item ID]]=\"\",\"\",IFERROR(VLOOKUP(Table_Data_Table_1[[#This Row],[Item ID]],DataTable,16,FALSE),\"\"))","v":""},null,null,null,null,{"$f":"IF(Table_Data_Table_1[[#This Row],[Valuation Method]]=\"Vacant\",VLOOKUP(Table_Data_Table_1[[#This Row],[Item ID]],DataTable,6,FALSE)-VLOOKUP(Table_Data_Table_1[[#This Row],[Item ID]],DataTable,13,FALSE),IF(Table_Data_Table_1[[#This Row],[Valuation Method]]=\"Abstraction\",VLOOKUP(Table_Data_Table_1[[#This Row],[Item ID]],DataTable,6,FALSE)-VLOOKUP(Table_Data_Table_1[[#This Row],[Item ID]],DataTable,13,FALSE),IF(Table_Data_Table_1[[#This Row],[Valuation Method]]=\"Allocation\",VLOOKUP(Table_Data_Table_1[[#This Row],[Item ID]],DataTable,6,FALSE)*I311,\"\")))","v":""},{"$f":"IF(Table_Data_Table_1[[#This Row],[Valuation Method]]=\"Vacant\",\"N/A\",IF(Table_Data_Table_1[[#This Row],[Valuation Method]]=\"Abstraction\",Table_Data_Table_1[[#This Row],[Land\nResidual]]/VLOOKUP(Table_Data_Table_1[[#This Row],[Item ID]],DataTable,6,FALSE),IF(Table_Data_Table_1[[#This Row],[Valuation Method]]=\"Allocation\",'Global Settings'!$H$20,\"\")))","v":""},{"$f":"IFERROR(ROUND(Table_Data_Table_1[[#This Row],[Resid\nSq Ft]]/43560,3),\"\")","v":""},{"$f":"IF(Table_Data_Table_1[[#This Row],[Item ID]]=\"\",\"\",IFERROR(VLOOKUP(Table_Data_Table_1[[#This Row],[Item ID]],DataTable,10,FALSE)-VLOOKUP(Table_Data_Table_1[[#This Row],[Item ID]],DataTable,12,FALSE),\"\"))","v":""},{"$f":"IFERROR(Table_Data_Table_1[[#This Row],[Land\nResidual]]/Table_Data_Table_1[[#This Row],[Resid\nAcre]],\"\")","v":""},{"$f":"IFERROR(ROUND(Table_Data_Table_1[[#This Row],[Land\nResidual]]/Table_Data_Table_1[[#This Row],[Resid\nSq Ft]],2),\"\")","v":""},{"$f":"IF(Table_Data_Table_1[[#This Row],[Item ID]]=\"\",\"\",ROUND(DAYS360(Table_Data_Table_1[[#This Row],[Sale Date]],'Global Settings'!$H$5)/30,0))","v":""},{"$f":"IFERROR(IF(AND(Table_Data_Table_1[[#This Row],[Months To\nMid-Point]]<12.01,Table_Data_Table_1[[#This Row],[Months To\nMid-Point]]>-13),0,(Table_Data_Table_1[[#This Row],[Months To\nMid-Point]]*'Global Settings'!$H$6)),\"\")","v":""},{"$f":"IFERROR(Table_Data_Table_1[[#This Row],[Land\nResidual]]*(Table_Data_Table_1[[#This Row],[Time\nAdjust]]+1),\"\")","v":""},{"$f":"IFERROR(Table_Data_Table_1[[#This Row],[Adjusted\nSale Price]]/Table_Data_Table_1[[#This Row],[Resid\nAcre]],\"\")","v":""},{"$f":"IFERROR(ROUND(Table_Data_Table_1[[#This Row],[Adjusted\nSale Price]]/Table_Data_Table_1[[#This Row],[Resid\nSq Ft]],2),\"\")","v":""},{"$f":"IFERROR(IF(VLOOKUP(Table_Data_Table_1[[#This Row],[Item ID]],DataTable,11,FALSE)=0,\"N/A\",Table_Data_Table_1[[#This Row],[Adjusted\nSale Price]]/VLOOKUP(Table_Data_Table_1[[#This Row],[Item ID]],DataTable,11,FALSE)),\"\")","v":""},{"$f":"IF(IFERROR(VLOOKUP(Table_Data_Table_1[[#This Row],[Item ID]],DataTable,17,FALSE),\"\")=0,\"\",IFERROR(VLOOKUP(Table_Data_Table_1[[#This Row],[Item ID]],DataTable,17,FALSE),\"\"))","v":""}]
["",null,{"$f":"IF(Table_Data_Table_1[[#This Row],[Item ID]]=\"\",\"\",IFERROR(VLOOKUP(Table_Data_Table_1[[#This Row],[Item ID]],DataTable,16,FALSE),\"\"))","v":""},null,null,null,null,{"$f":"IF(Table_Data_Table_1[[#This Row],[Valuation Method]]=\"Vacant\",VLOOKUP(Table_Data_Table_1[[#This Row],[Item ID]],DataTable,6,FALSE)-VLOOKUP(Table_Data_Table_1[[#This Row],[Item ID]],DataTable,13,FALSE),IF(Table_Data_Table_1[[#This Row],[Valuation Method]]=\"Abstraction\",VLOOKUP(Table_Data_Table_1[[#This Row],[Item ID]],DataTable,6,FALSE)-VLOOKUP(Table_Data_Table_1[[#This Row],[Item ID]],DataTable,13,FALSE),IF(Table_Data_Table_1[[#This Row],[Valuation Method]]=\"Allocation\",VLOOKUP(Table_Data_Table_1[[#This Row],[Item ID]],DataTable,6,FALSE)*I312,\"\")))","v":""},{"$f":"IF(Table_Data_Table_1[[#This Row],[Valuation Method]]=\"Vacant\",\"N/A\",IF(Table_Data_Table_1[[#This Row],[Valuation Method]]=\"Abstraction\",Table_Data_Table_1[[#This Row],[Land\nResidual]]/VLOOKUP(Table_Data_Table_1[[#This Row],[Item ID]],DataTable,6,FALSE),IF(Table_Data_Table_1[[#This Row],[Valuation Method]]=\"Allocation\",'Global Settings'!$H$20,\"\")))","v":""},{"$f":"IFERROR(ROUND(Table_Data_Table_1[[#This Row],[Resid\nSq Ft]]/43560,3),\"\")","v":""},{"$f":"IF(Table_Data_Table_1[[#This Row],[Item ID]]=\"\",\"\",IFERROR(VLOOKUP(Table_Data_Table_1[[#This Row],[Item ID]],DataTable,10,FALSE)-VLOOKUP(Table_Data_Table_1[[#This Row],[Item ID]],DataTable,12,FALSE),\"\"))","v":""},{"$f":"IFERROR(Table_Data_Table_1[[#This Row],[Land\nResidual]]/Table_Data_Table_1[[#This Row],[Resid\nAcre]],\"\")","v":""},{"$f":"IFERROR(ROUND(Table_Data_Table_1[[#This Row],[Land\nResidual]]/Table_Data_Table_1[[#This Row],[Resid\nSq Ft]],2),\"\")","v":""},{"$f":"IF(Table_Data_Table_1[[#This Row],[Item ID]]=\"\",\"\",ROUND(DAYS360(Table_Data_Table_1[[#This Row],[Sale Date]],'Global Settings'!$H$5)/30,0))","v":""},{"$f":"IFERROR(IF(AND(Table_Data_Table_1[[#This Row],[Months To\nMid-Point]]<12.01,Table_Data_Table_1[[#This Row],[Months To\nMid-Point]]>-13),0,(Table_Data_Table_1[[#This Row],[Months To\nMid-Point]]*'Global Settings'!$H$6)),\"\")","v":""},{"$f":"IFERROR(Table_Data_Table_1[[#This Row],[Land\nResidual]]*(Table_Data_Table_1[[#This Row],[Time\nAdjust]]+1),\"\")","v":""},{"$f":"IFERROR(Table_Data_Table_1[[#This Row],[Adjusted\nSale Price]]/Table_Data_Table_1[[#This Row],[Resid\nAcre]],\"\")","v":""},{"$f":"IFERROR(ROUND(Table_Data_Table_1[[#This Row],[Adjusted\nSale Price]]/Table_Data_Table_1[[#This Row],[Resid\nSq Ft]],2),\"\")","v":""},{"$f":"IFERROR(IF(VLOOKUP(Table_Data_Table_1[[#This Row],[Item ID]],DataTable,11,FALSE)=0,\"N/A\",Table_Data_Table_1[[#This Row],[Adjusted\nSale Price]]/VLOOKUP(Table_Data_Table_1[[#This Row],[Item ID]],DataTable,11,FALSE)),\"\")","v":""},{"$f":"IF(IFERROR(VLOOKUP(Table_Data_Table_1[[#This Row],[Item ID]],DataTable,17,FALSE),\"\")=0,\"\",IFERROR(VLOOKUP(Table_Data_Table_1[[#This Row],[Item ID]],DataTable,17,FALSE),\"\"))","v":""}]
["",null,{"$f":"IF(Table_Data_Table_1[[#This Row],[Item ID]]=\"\",\"\",IFERROR(VLOOKUP(Table_Data_Table_1[[#This Row],[Item ID]],DataTable,16,FALSE),\"\"))","v":""},null,null,null,null,{"$f":"IF(Table_Data_Table_1[[#This Row],[Valuation Method]]=\"Vacant\",VLOOKUP(Table_Data_Table_1[[#This Row],[Item ID]],DataTable,6,FALSE)-VLOOKUP(Table_Data_Table_1[[#This Row],[Item ID]],DataTable,13,FALSE),IF(Table_Data_Table_1[[#This Row],[Valuation Method]]=\"Abstraction\",VLOOKUP(Table_Data_Table_1[[#This Row],[Item ID]],DataTable,6,FALSE)-VLOOKUP(Table_Data_Table_1[[#This Row],[Item ID]],DataTable,13,FALSE),IF(Table_Data_Table_1[[#This Row],[Valuation Method]]=\"Allocation\",VLOOKUP(Table_Data_Table_1[[#This Row],[Item ID]],DataTable,6,FALSE)*I313,\"\")))","v":""},{"$f":"IF(Table_Data_Table_1[[#This Row],[Valuation Method]]=\"Vacant\",\"N/A\",IF(Table_Data_Table_1[[#This Row],[Valuation Method]]=\"Abstraction\",Table_Data_Table_1[[#This Row],[Land\nResidual]]/VLOOKUP(Table_Data_Table_1[[#This Row],[Item ID]],DataTable,6,FALSE),IF(Table_Data_Table_1[[#This Row],[Valuation Method]]=\"Allocation\",'Global Settings'!$H$20,\"\")))","v":""},{"$f":"IFERROR(ROUND(Table_Data_Table_1[[#This Row],[Resid\nSq Ft]]/43560,3),\"\")","v":""},{"$f":"IF(Table_Data_Table_1[[#This Row],[Item ID]]=\"\",\"\",IFERROR(VLOOKUP(Table_Data_Table_1[[#This Row],[Item ID]],DataTable,10,FALSE)-VLOOKUP(Table_Data_Table_1[[#This Row],[Item ID]],DataTable,12,FALSE),\"\"))","v":""},{"$f":"IFERROR(Table_Data_Table_1[[#This Row],[Land\nResidual]]/Table_Data_Table_1[[#This Row],[Resid\nAcre]],\"\")","v":""},{"$f":"IFERROR(ROUND(Table_Data_Table_1[[#This Row],[Land\nResidual]]/Table_Data_Table_1[[#This Row],[Resid\nSq Ft]],2),\"\")","v":""},{"$f":"IF(Table_Data_Table_1[[#This Row],[Item ID]]=\"\",\"\",ROUND(DAYS360(Table_Data_Table_1[[#This Row],[Sale Date]],'Global Settings'!$H$5)/30,0))","v":""},{"$f":"IFERROR(IF(AND(Table_Data_Table_1[[#This Row],[Months To\nMid-Point]]<12.01,Table_Data_Table_1[[#This Row],[Months To\nMid-Point]]>-13),0,(Table_Data_Table_1[[#This Row],[Months To\nMid-Point]]*'Global Settings'!$H$6)),\"\")","v":""},{"$f":"IFERROR(Table_Data_Table_1[[#This Row],[Land\nResidual]]*(Table_Data_Table_1[[#This Row],[Time\nAdjust]]+1),\"\")","v":""},{"$f":"IFERROR(Table_Data_Table_1[[#This Row],[Adjusted\nSale Price]]/Table_Data_Table_1[[#This Row],[Resid\nAcre]],\"\")","v":""},{"$f":"IFERROR(ROUND(Table_Data_Table_1[[#This Row],[Adjusted\nSale Price]]/Table_Data_Table_1[[#This Row],[Resid\nSq Ft]],2),\"\")","v":""},{"$f":"IFERROR(IF(VLOOKUP(Table_Data_Table_1[[#This Row],[Item ID]],DataTable,11,FALSE)=0,\"N/A\",Table_Data_Table_1[[#This Row],[Adjusted\nSale Price]]/VLOOKUP(Table_Data_Table_1[[#This Row],[Item ID]],DataTable,11,FALSE)),\"\")","v":""},{"$f":"IF(IFERROR(VLOOKUP(Table_Data_Table_1[[#This Row],[Item ID]],DataTable,17,FALSE),\"\")=0,\"\",IFERROR(VLOOKUP(Table_Data_Table_1[[#This Row],[Item ID]],DataTable,17,FALSE),\"\"))","v":""}]
["",null,{"$f":"IF(Table_Data_Table_1[[#This Row],[Item ID]]=\"\",\"\",IFERROR(VLOOKUP(Table_Data_Table_1[[#This Row],[Item ID]],DataTable,16,FALSE),\"\"))","v":""},null,null,null,null,{"$f":"IF(Table_Data_Table_1[[#This Row],[Valuation Method]]=\"Vacant\",VLOOKUP(Table_Data_Table_1[[#This Row],[Item ID]],DataTable,6,FALSE)-VLOOKUP(Table_Data_Table_1[[#This Row],[Item ID]],DataTable,13,FALSE),IF(Table_Data_Table_1[[#This Row],[Valuation Method]]=\"Abstraction\",VLOOKUP(Table_Data_Table_1[[#This Row],[Item ID]],DataTable,6,FALSE)-VLOOKUP(Table_Data_Table_1[[#This Row],[Item ID]],DataTable,13,FALSE),IF(Table_Data_Table_1[[#This Row],[Valuation Method]]=\"Allocation\",VLOOKUP(Table_Data_Table_1[[#This Row],[Item ID]],DataTable,6,FALSE)*I314,\"\")))","v":""},{"$f":"IF(Table_Data_Table_1[[#This Row],[Valuation Method]]=\"Vacant\",\"N/A\",IF(Table_Data_Table_1[[#This Row],[Valuation Method]]=\"Abstraction\",Table_Data_Table_1[[#This Row],[Land\nResidual]]/VLOOKUP(Table_Data_Table_1[[#This Row],[Item ID]],DataTable,6,FALSE),IF(Table_Data_Table_1[[#This Row],[Valuation Method]]=\"Allocation\",'Global Settings'!$H$20,\"\")))","v":""},{"$f":"IFERROR(ROUND(Table_Data_Table_1[[#This Row],[Resid\nSq Ft]]/43560,3),\"\")","v":""},{"$f":"IF(Table_Data_Table_1[[#This Row],[Item ID]]=\"\",\"\",IFERROR(VLOOKUP(Table_Data_Table_1[[#This Row],[Item ID]],DataTable,10,FALSE)-VLOOKUP(Table_Data_Table_1[[#This Row],[Item ID]],DataTable,12,FALSE),\"\"))","v":""},{"$f":"IFERROR(Table_Data_Table_1[[#This Row],[Land\nResidual]]/Table_Data_Table_1[[#This Row],[Resid\nAcre]],\"\")","v":""},{"$f":"IFERROR(ROUND(Table_Data_Table_1[[#This Row],[Land\nResidual]]/Table_Data_Table_1[[#This Row],[Resid\nSq Ft]],2),\"\")","v":""},{"$f":"IF(Table_Data_Table_1[[#This Row],[Item ID]]=\"\",\"\",ROUND(DAYS360(Table_Data_Table_1[[#This Row],[Sale Date]],'Global Settings'!$H$5)/30,0))","v":""},{"$f":"IFERROR(IF(AND(Table_Data_Table_1[[#This Row],[Months To\nMid-Point]]<12.01,Table_Data_Table_1[[#This Row],[Months To\nMid-Point]]>-13),0,(Table_Data_Table_1[[#This Row],[Months To\nMid-Point]]*'Global Settings'!$H$6)),\"\")","v":""},{"$f":"IFERROR(Table_Data_Table_1[[#This Row],[Land\nResidual]]*(Table_Data_Table_1[[#This Row],[Time\nAdjust]]+1),\"\")","v":""},{"$f":"IFERROR(Table_Data_Table_1[[#This Row],[Adjusted\nSale Price]]/Table_Data_Table_1[[#This Row],[Resid\nAcre]],\"\")","v":""},{"$f":"IFERROR(ROUND(Table_Data_Table_1[[#This Row],[Adjusted\nSale Price]]/Table_Data_Table_1[[#This Row],[Resid\nSq Ft]],2),\"\")","v":""},{"$f":"IFERROR(IF(VLOOKUP(Table_Data_Table_1[[#This Row],[Item ID]],DataTable,11,FALSE)=0,\"N/A\",Table_Data_Table_1[[#This Row],[Adjusted\nSale Price]]/VLOOKUP(Table_Data_Table_1[[#This Row],[Item ID]],DataTable,11,FALSE)),\"\")","v":""},{"$f":"IF(IFERROR(VLOOKUP(Table_Data_Table_1[[#This Row],[Item ID]],DataTable,17,FALSE),\"\")=0,\"\",IFERROR(VLOOKUP(Table_Data_Table_1[[#This Row],[Item ID]],DataTable,17,FALSE),\"\"))","v":""}]
["",null,{"$f":"IF(Table_Data_Table_1[[#This Row],[Item ID]]=\"\",\"\",IFERROR(VLOOKUP(Table_Data_Table_1[[#This Row],[Item ID]],DataTable,16,FALSE),\"\"))","v":""},null,null,null,null,{"$f":"IF(Table_Data_Table_1[[#This Row],[Valuation Method]]=\"Vacant\",VLOOKUP(Table_Data_Table_1[[#This Row],[Item ID]],DataTable,6,FALSE)-VLOOKUP(Table_Data_Table_1[[#This Row],[Item ID]],DataTable,13,FALSE),IF(Table_Data_Table_1[[#This Row],[Valuation Method]]=\"Abstraction\",VLOOKUP(Table_Data_Table_1[[#This Row],[Item ID]],DataTable,6,FALSE)-VLOOKUP(Table_Data_Table_1[[#This Row],[Item ID]],DataTable,13,FALSE),IF(Table_Data_Table_1[[#This Row],[Valuation Method]]=\"Allocation\",VLOOKUP(Table_Data_Table_1[[#This Row],[Item ID]],DataTable,6,FALSE)*I315,\"\")))","v":""},{"$f":"IF(Table_Data_Table_1[[#This Row],[Valuation Method]]=\"Vacant\",\"N/A\",IF(Table_Data_Table_1[[#This Row],[Valuation Method]]=\"Abstraction\",Table_Data_Table_1[[#This Row],[Land\nResidual]]/VLOOKUP(Table_Data_Table_1[[#This Row],[Item ID]],DataTable,6,FALSE),IF(Table_Data_Table_1[[#This Row],[Valuation Method]]=\"Allocation\",'Global Settings'!$H$20,\"\")))","v":""},{"$f":"IFERROR(ROUND(Table_Data_Table_1[[#This Row],[Resid\nSq Ft]]/43560,3),\"\")","v":""},{"$f":"IF(Table_Data_Table_1[[#This Row],[Item ID]]=\"\",\"\",IFERROR(VLOOKUP(Table_Data_Table_1[[#This Row],[Item ID]],DataTable,10,FALSE)-VLOOKUP(Table_Data_Table_1[[#This Row],[Item ID]],DataTable,12,FALSE),\"\"))","v":""},{"$f":"IFERROR(Table_Data_Table_1[[#This Row],[Land\nResidual]]/Table_Data_Table_1[[#This Row],[Resid\nAcre]],\"\")","v":""},{"$f":"IFERROR(ROUND(Table_Data_Table_1[[#This Row],[Land\nResidual]]/Table_Data_Table_1[[#This Row],[Resid\nSq Ft]],2),\"\")","v":""},{"$f":"IF(Table_Data_Table_1[[#This Row],[Item ID]]=\"\",\"\",ROUND(DAYS360(Table_Data_Table_1[[#This Row],[Sale Date]],'Global Settings'!$H$5)/30,0))","v":""},{"$f":"IFERROR(IF(AND(Table_Data_Table_1[[#This Row],[Months To\nMid-Point]]<12.01,Table_Data_Table_1[[#This Row],[Months To\nMid-Point]]>-13),0,(Table_Data_Table_1[[#This Row],[Months To\nMid-Point]]*'Global Settings'!$H$6)),\"\")","v":""},{"$f":"IFERROR(Table_Data_Table_1[[#This Row],[Land\nResidual]]*(Table_Data_Table_1[[#This Row],[Time\nAdjust]]+1),\"\")","v":""},{"$f":"IFERROR(Table_Data_Table_1[[#This Row],[Adjusted\nSale Price]]/Table_Data_Table_1[[#This Row],[Resid\nAcre]],\"\")","v":""},{"$f":"IFERROR(ROUND(Table_Data_Table_1[[#This Row],[Adjusted\nSale Price]]/Table_Data_Table_1[[#This Row],[Resid\nSq Ft]],2),\"\")","v":""},{"$f":"IFERROR(IF(VLOOKUP(Table_Data_Table_1[[#This Row],[Item ID]],DataTable,11,FALSE)=0,\"N/A\",Table_Data_Table_1[[#This Row],[Adjusted\nSale Price]]/VLOOKUP(Table_Data_Table_1[[#This Row],[Item ID]],DataTable,11,FALSE)),\"\")","v":""},{"$f":"IF(IFERROR(VLOOKUP(Table_Data_Table_1[[#This Row],[Item ID]],DataTable,17,FALSE),\"\")=0,\"\",IFERROR(VLOOKUP(Table_Data_Table_1[[#This Row],[Item ID]],DataTable,17,FALSE),\"\"))","v":""}]
["",null,{"$f":"IF(Table_Data_Table_1[[#This Row],[Item ID]]=\"\",\"\",IFERROR(VLOOKUP(Table_Data_Table_1[[#This Row],[Item ID]],DataTable,16,FALSE),\"\"))","v":""},null,null,null,null,{"$f":"IF(Table_Data_Table_1[[#This Row],[Valuation Method]]=\"Vacant\",VLOOKUP(Table_Data_Table_1[[#This Row],[Item ID]],DataTable,6,FALSE)-VLOOKUP(Table_Data_Table_1[[#This Row],[Item ID]],DataTable,13,FALSE),IF(Table_Data_Table_1[[#This Row],[Valuation Method]]=\"Abstraction\",VLOOKUP(Table_Data_Table_1[[#This Row],[Item ID]],DataTable,6,FALSE)-VLOOKUP(Table_Data_Table_1[[#This Row],[Item ID]],DataTable,13,FALSE),IF(Table_Data_Table_1[[#This Row],[Valuation Method]]=\"Allocation\",VLOOKUP(Table_Data_Table_1[[#This Row],[Item ID]],DataTable,6,FALSE)*I316,\"\")))","v":""},{"$f":"IF(Table_Data_Table_1[[#This Row],[Valuation Method]]=\"Vacant\",\"N/A\",IF(Table_Data_Table_1[[#This Row],[Valuation Method]]=\"Abstraction\",Table_Data_Table_1[[#This Row],[Land\nResidual]]/VLOOKUP(Table_Data_Table_1[[#This Row],[Item ID]],DataTable,6,FALSE),IF(Table_Data_Table_1[[#This Row],[Valuation Method]]=\"Allocation\",'Global Settings'!$H$20,\"\")))","v":""},{"$f":"IFERROR(ROUND(Table_Data_Table_1[[#This Row],[Resid\nSq Ft]]/43560,3),\"\")","v":""},{"$f":"IF(Table_Data_Table_1[[#This Row],[Item ID]]=\"\",\"\",IFERROR(VLOOKUP(Table_Data_Table_1[[#This Row],[Item ID]],DataTable,10,FALSE)-VLOOKUP(Table_Data_Table_1[[#This Row],[Item ID]],DataTable,12,FALSE),\"\"))","v":""},{"$f":"IFERROR(Table_Data_Table_1[[#This Row],[Land\nResidual]]/Table_Data_Table_1[[#This Row],[Resid\nAcre]],\"\")","v":""},{"$f":"IFERROR(ROUND(Table_Data_Table_1[[#This Row],[Land\nResidual]]/Table_Data_Table_1[[#This Row],[Resid\nSq Ft]],2),\"\")","v":""},{"$f":"IF(Table_Data_Table_1[[#This Row],[Item ID]]=\"\",\"\",ROUND(DAYS360(Table_Data_Table_1[[#This Row],[Sale Date]],'Global Settings'!$H$5)/30,0))","v":""},{"$f":"IFERROR(IF(AND(Table_Data_Table_1[[#This Row],[Months To\nMid-Point]]<12.01,Table_Data_Table_1[[#This Row],[Months To\nMid-Point]]>-13),0,(Table_Data_Table_1[[#This Row],[Months To\nMid-Point]]*'Global Settings'!$H$6)),\"\")","v":""},{"$f":"IFERROR(Table_Data_Table_1[[#This Row],[Land\nResidual]]*(Table_Data_Table_1[[#This Row],[Time\nAdjust]]+1),\"\")","v":""},{"$f":"IFERROR(Table_Data_Table_1[[#This Row],[Adjusted\nSale Price]]/Table_Data_Table_1[[#This Row],[Resid\nAcre]],\"\")","v":""},{"$f":"IFERROR(ROUND(Table_Data_Table_1[[#This Row],[Adjusted\nSale Price]]/Table_Data_Table_1[[#This Row],[Resid\nSq Ft]],2),\"\")","v":""},{"$f":"IFERROR(IF(VLOOKUP(Table_Data_Table_1[[#This Row],[Item ID]],DataTable,11,FALSE)=0,\"N/A\",Table_Data_Table_1[[#This Row],[Adjusted\nSale Price]]/VLOOKUP(Table_Data_Table_1[[#This Row],[Item ID]],DataTable,11,FALSE)),\"\")","v":""},{"$f":"IF(IFERROR(VLOOKUP(Table_Data_Table_1[[#This Row],[Item ID]],DataTable,17,FALSE),\"\")=0,\"\",IFERROR(VLOOKUP(Table_Data_Table_1[[#This Row],[Item ID]],DataTable,17,FALSE),\"\"))","v":""}]
["",null,{"$f":"IF(Table_Data_Table_1[[#This Row],[Item ID]]=\"\",\"\",IFERROR(VLOOKUP(Table_Data_Table_1[[#This Row],[Item ID]],DataTable,16,FALSE),\"\"))","v":""},null,null,null,null,{"$f":"IF(Table_Data_Table_1[[#This Row],[Valuation Method]]=\"Vacant\",VLOOKUP(Table_Data_Table_1[[#This Row],[Item ID]],DataTable,6,FALSE)-VLOOKUP(Table_Data_Table_1[[#This Row],[Item ID]],DataTable,13,FALSE),IF(Table_Data_Table_1[[#This Row],[Valuation Method]]=\"Abstraction\",VLOOKUP(Table_Data_Table_1[[#This Row],[Item ID]],DataTable,6,FALSE)-VLOOKUP(Table_Data_Table_1[[#This Row],[Item ID]],DataTable,13,FALSE),IF(Table_Data_Table_1[[#This Row],[Valuation Method]]=\"Allocation\",VLOOKUP(Table_Data_Table_1[[#This Row],[Item ID]],DataTable,6,FALSE)*I317,\"\")))","v":""},{"$f":"IF(Table_Data_Table_1[[#This Row],[Valuation Method]]=\"Vacant\",\"N/A\",IF(Table_Data_Table_1[[#This Row],[Valuation Method]]=\"Abstraction\",Table_Data_Table_1[[#This Row],[Land\nResidual]]/VLOOKUP(Table_Data_Table_1[[#This Row],[Item ID]],DataTable,6,FALSE),IF(Table_Data_Table_1[[#This Row],[Valuation Method]]=\"Allocation\",'Global Settings'!$H$20,\"\")))","v":""},{"$f":"IFERROR(ROUND(Table_Data_Table_1[[#This Row],[Resid\nSq Ft]]/43560,3),\"\")","v":""},{"$f":"IF(Table_Data_Table_1[[#This Row],[Item ID]]=\"\",\"\",IFERROR(VLOOKUP(Table_Data_Table_1[[#This Row],[Item ID]],DataTable,10,FALSE)-VLOOKUP(Table_Data_Table_1[[#This Row],[Item ID]],DataTable,12,FALSE),\"\"))","v":""},{"$f":"IFERROR(Table_Data_Table_1[[#This Row],[Land\nResidual]]/Table_Data_Table_1[[#This Row],[Resid\nAcre]],\"\")","v":""},{"$f":"IFERROR(ROUND(Table_Data_Table_1[[#This Row],[Land\nResidual]]/Table_Data_Table_1[[#This Row],[Resid\nSq Ft]],2),\"\")","v":""},{"$f":"IF(Table_Data_Table_1[[#This Row],[Item ID]]=\"\",\"\",ROUND(DAYS360(Table_Data_Table_1[[#This Row],[Sale Date]],'Global Settings'!$H$5)/30,0))","v":""},{"$f":"IFERROR(IF(AND(Table_Data_Table_1[[#This Row],[Months To\nMid-Point]]<12.01,Table_Data_Table_1[[#This Row],[Months To\nMid-Point]]>-13),0,(Table_Data_Table_1[[#This Row],[Months To\nMid-Point]]*'Global Settings'!$H$6)),\"\")","v":""},{"$f":"IFERROR(Table_Data_Table_1[[#This Row],[Land\nResidual]]*(Table_Data_Table_1[[#This Row],[Time\nAdjust]]+1),\"\")","v":""},{"$f":"IFERROR(Table_Data_Table_1[[#This Row],[Adjusted\nSale Price]]/Table_Data_Table_1[[#This Row],[Resid\nAcre]],\"\")","v":""},{"$f":"IFERROR(ROUND(Table_Data_Table_1[[#This Row],[Adjusted\nSale Price]]/Table_Data_Table_1[[#This Row],[Resid\nSq Ft]],2),\"\")","v":""},{"$f":"IFERROR(IF(VLOOKUP(Table_Data_Table_1[[#This Row],[Item ID]],DataTable,11,FALSE)=0,\"N/A\",Table_Data_Table_1[[#This Row],[Adjusted\nSale Price]]/VLOOKUP(Table_Data_Table_1[[#This Row],[Item ID]],DataTable,11,FALSE)),\"\")","v":""},{"$f":"IF(IFERROR(VLOOKUP(Table_Data_Table_1[[#This Row],[Item ID]],DataTable,17,FALSE),\"\")=0,\"\",IFERROR(VLOOKUP(Table_Data_Table_1[[#This Row],[Item ID]],DataTable,17,FALSE),\"\"))","v":""}]
["",null,{"$f":"IF(Table_Data_Table_1[[#This Row],[Item ID]]=\"\",\"\",IFERROR(VLOOKUP(Table_Data_Table_1[[#This Row],[Item ID]],DataTable,16,FALSE),\"\"))","v":""},null,null,null,null,{"$f":"IF(Table_Data_Table_1[[#This Row],[Valuation Method]]=\"Vacant\",VLOOKUP(Table_Data_Table_1[[#This Row],[Item ID]],DataTable,6,FALSE)-VLOOKUP(Table_Data_Table_1[[#This Row],[Item ID]],DataTable,13,FALSE),IF(Table_Data_Table_1[[#This Row],[Valuation Method]]=\"Abstraction\",VLOOKUP(Table_Data_Table_1[[#This Row],[Item ID]],DataTable,6,FALSE)-VLOOKUP(Table_Data_Table_1[[#This Row],[Item ID]],DataTable,13,FALSE),IF(Table_Data_Table_1[[#This Row],[Valuation Method]]=\"Allocation\",VLOOKUP(Table_Data_Table_1[[#This Row],[Item ID]],DataTable,6,FALSE)*I318,\"\")))","v":""},{"$f":"IF(Table_Data_Table_1[[#This Row],[Valuation Method]]=\"Vacant\",\"N/A\",IF(Table_Data_Table_1[[#This Row],[Valuation Method]]=\"Abstraction\",Table_Data_Table_1[[#This Row],[Land\nResidual]]/VLOOKUP(Table_Data_Table_1[[#This Row],[Item ID]],DataTable,6,FALSE),IF(Table_Data_Table_1[[#This Row],[Valuation Method]]=\"Allocation\",'Global Settings'!$H$20,\"\")))","v":""},{"$f":"IFERROR(ROUND(Table_Data_Table_1[[#This Row],[Resid\nSq Ft]]/43560,3),\"\")","v":""},{"$f":"IF(Table_Data_Table_1[[#This Row],[Item ID]]=\"\",\"\",IFERROR(VLOOKUP(Table_Data_Table_1[[#This Row],[Item ID]],DataTable,10,FALSE)-VLOOKUP(Table_Data_Table_1[[#This Row],[Item ID]],DataTable,12,FALSE),\"\"))","v":""},{"$f":"IFERROR(Table_Data_Table_1[[#This Row],[Land\nResidual]]/Table_Data_Table_1[[#This Row],[Resid\nAcre]],\"\")","v":""},{"$f":"IFERROR(ROUND(Table_Data_Table_1[[#This Row],[Land\nResidual]]/Table_Data_Table_1[[#This Row],[Resid\nSq Ft]],2),\"\")","v":""},{"$f":"IF(Table_Data_Table_1[[#This Row],[Item ID]]=\"\",\"\",ROUND(DAYS360(Table_Data_Table_1[[#This Row],[Sale Date]],'Global Settings'!$H$5)/30,0))","v":""},{"$f":"IFERROR(IF(AND(Table_Data_Table_1[[#This Row],[Months To\nMid-Point]]<12.01,Table_Data_Table_1[[#This Row],[Months To\nMid-Point]]>-13),0,(Table_Data_Table_1[[#This Row],[Months To\nMid-Point]]*'Global Settings'!$H$6)),\"\")","v":""},{"$f":"IFERROR(Table_Data_Table_1[[#This Row],[Land\nResidual]]*(Table_Data_Table_1[[#This Row],[Time\nAdjust]]+1),\"\")","v":""},{"$f":"IFERROR(Table_Data_Table_1[[#This Row],[Adjusted\nSale Price]]/Table_Data_Table_1[[#This Row],[Resid\nAcre]],\"\")","v":""},{"$f":"IFERROR(ROUND(Table_Data_Table_1[[#This Row],[Adjusted\nSale Price]]/Table_Data_Table_1[[#This Row],[Resid\nSq Ft]],2),\"\")","v":""},{"$f":"IFERROR(IF(VLOOKUP(Table_Data_Table_1[[#This Row],[Item ID]],DataTable,11,FALSE)=0,\"N/A\",Table_Data_Table_1[[#This Row],[Adjusted\nSale Price]]/VLOOKUP(Table_Data_Table_1[[#This Row],[Item ID]],DataTable,11,FALSE)),\"\")","v":""},{"$f":"IF(IFERROR(VLOOKUP(Table_Data_Table_1[[#This Row],[Item ID]],DataTable,17,FALSE),\"\")=0,\"\",IFERROR(VLOOKUP(Table_Data_Table_1[[#This Row],[Item ID]],DataTable,17,FALSE),\"\"))","v":""}]
["",null,{"$f":"IF(Table_Data_Table_1[[#This Row],[Item ID]]=\"\",\"\",IFERROR(VLOOKUP(Table_Data_Table_1[[#This Row],[Item ID]],DataTable,16,FALSE),\"\"))","v":""},null,null,null,null,{"$f":"IF(Table_Data_Table_1[[#This Row],[Valuation Method]]=\"Vacant\",VLOOKUP(Table_Data_Table_1[[#This Row],[Item ID]],DataTable,6,FALSE)-VLOOKUP(Table_Data_Table_1[[#This Row],[Item ID]],DataTable,13,FALSE),IF(Table_Data_Table_1[[#This Row],[Valuation Method]]=\"Abstraction\",VLOOKUP(Table_Data_Table_1[[#This Row],[Item ID]],DataTable,6,FALSE)-VLOOKUP(Table_Data_Table_1[[#This Row],[Item ID]],DataTable,13,FALSE),IF(Table_Data_Table_1[[#This Row],[Valuation Method]]=\"Allocation\",VLOOKUP(Table_Data_Table_1[[#This Row],[Item ID]],DataTable,6,FALSE)*I319,\"\")))","v":""},{"$f":"IF(Table_Data_Table_1[[#This Row],[Valuation Method]]=\"Vacant\",\"N/A\",IF(Table_Data_Table_1[[#This Row],[Valuation Method]]=\"Abstraction\",Table_Data_Table_1[[#This Row],[Land\nResidual]]/VLOOKUP(Table_Data_Table_1[[#This Row],[Item ID]],DataTable,6,FALSE),IF(Table_Data_Table_1[[#This Row],[Valuation Method]]=\"Allocation\",'Global Settings'!$H$20,\"\")))","v":""},{"$f":"IFERROR(ROUND(Table_Data_Table_1[[#This Row],[Resid\nSq Ft]]/43560,3),\"\")","v":""},{"$f":"IF(Table_Data_Table_1[[#This Row],[Item ID]]=\"\",\"\",IFERROR(VLOOKUP(Table_Data_Table_1[[#This Row],[Item ID]],DataTable,10,FALSE)-VLOOKUP(Table_Data_Table_1[[#This Row],[Item ID]],DataTable,12,FALSE),\"\"))","v":""},{"$f":"IFERROR(Table_Data_Table_1[[#This Row],[Land\nResidual]]/Table_Data_Table_1[[#This Row],[Resid\nAcre]],\"\")","v":""},{"$f":"IFERROR(ROUND(Table_Data_Table_1[[#This Row],[Land\nResidual]]/Table_Data_Table_1[[#This Row],[Resid\nSq Ft]],2),\"\")","v":""},{"$f":"IF(Table_Data_Table_1[[#This Row],[Item ID]]=\"\",\"\",ROUND(DAYS360(Table_Data_Table_1[[#This Row],[Sale Date]],'Global Settings'!$H$5)/30,0))","v":""},{"$f":"IFERROR(IF(AND(Table_Data_Table_1[[#This Row],[Months To\nMid-Point]]<12.01,Table_Data_Table_1[[#This Row],[Months To\nMid-Point]]>-13),0,(Table_Data_Table_1[[#This Row],[Months To\nMid-Point]]*'Global Settings'!$H$6)),\"\")","v":""},{"$f":"IFERROR(Table_Data_Table_1[[#This Row],[Land\nResidual]]*(Table_Data_Table_1[[#This Row],[Time\nAdjust]]+1),\"\")","v":""},{"$f":"IFERROR(Table_Data_Table_1[[#This Row],[Adjusted\nSale Price]]/Table_Data_Table_1[[#This Row],[Resid\nAcre]],\"\")","v":""},{"$f":"IFERROR(ROUND(Table_Data_Table_1[[#This Row],[Adjusted\nSale Price]]/Table_Data_Table_1[[#This Row],[Resid\nSq Ft]],2),\"\")","v":""},{"$f":"IFERROR(IF(VLOOKUP(Table_Data_Table_1[[#This Row],[Item ID]],DataTable,11,FALSE)=0,\"N/A\",Table_Data_Table_1[[#This Row],[Adjusted\nSale Price]]/VLOOKUP(Table_Data_Table_1[[#This Row],[Item ID]],DataTable,11,FALSE)),\"\")","v":""},{"$f":"IF(IFERROR(VLOOKUP(Table_Data_Table_1[[#This Row],[Item ID]],DataTable,17,FALSE),\"\")=0,\"\",IFERROR(VLOOKUP(Table_Data_Table_1[[#This Row],[Item ID]],DataTable,17,FALSE),\"\"))","v":""}]
["",null,{"$f":"IF(Table_Data_Table_1[[#This Row],[Item ID]]=\"\",\"\",IFERROR(VLOOKUP(Table_Data_Table_1[[#This Row],[Item ID]],DataTable,16,FALSE),\"\"))","v":""},null,null,null,null,{"$f":"IF(Table_Data_Table_1[[#This Row],[Valuation Method]]=\"Vacant\",VLOOKUP(Table_Data_Table_1[[#This Row],[Item ID]],DataTable,6,FALSE)-VLOOKUP(Table_Data_Table_1[[#This Row],[Item ID]],DataTable,13,FALSE),IF(Table_Data_Table_1[[#This Row],[Valuation Method]]=\"Abstraction\",VLOOKUP(Table_Data_Table_1[[#This Row],[Item ID]],DataTable,6,FALSE)-VLOOKUP(Table_Data_Table_1[[#This Row],[Item ID]],DataTable,13,FALSE),IF(Table_Data_Table_1[[#This Row],[Valuation Method]]=\"Allocation\",VLOOKUP(Table_Data_Table_1[[#This Row],[Item ID]],DataTable,6,FALSE)*I320,\"\")))","v":""},{"$f":"IF(Table_Data_Table_1[[#This Row],[Valuation Method]]=\"Vacant\",\"N/A\",IF(Table_Data_Table_1[[#This Row],[Valuation Method]]=\"Abstraction\",Table_Data_Table_1[[#This Row],[Land\nResidual]]/VLOOKUP(Table_Data_Table_1[[#This Row],[Item ID]],DataTable,6,FALSE),IF(Table_Data_Table_1[[#This Row],[Valuation Method]]=\"Allocation\",'Global Settings'!$H$20,\"\")))","v":""},{"$f":"IFERROR(ROUND(Table_Data_Table_1[[#This Row],[Resid\nSq Ft]]/43560,3),\"\")","v":""},{"$f":"IF(Table_Data_Table_1[[#This Row],[Item ID]]=\"\",\"\",IFERROR(VLOOKUP(Table_Data_Table_1[[#This Row],[Item ID]],DataTable,10,FALSE)-VLOOKUP(Table_Data_Table_1[[#This Row],[Item ID]],DataTable,12,FALSE),\"\"))","v":""},{"$f":"IFERROR(Table_Data_Table_1[[#This Row],[Land\nResidual]]/Table_Data_Table_1[[#This Row],[Resid\nAcre]],\"\")","v":""},{"$f":"IFERROR(ROUND(Table_Data_Table_1[[#This Row],[Land\nResidual]]/Table_Data_Table_1[[#This Row],[Resid\nSq Ft]],2),\"\")","v":""},{"$f":"IF(Table_Data_Table_1[[#This Row],[Item ID]]=\"\",\"\",ROUND(DAYS360(Table_Data_Table_1[[#This Row],[Sale Date]],'Global Settings'!$H$5)/30,0))","v":""},{"$f":"IFERROR(IF(AND(Table_Data_Table_1[[#This Row],[Months To\nMid-Point]]<12.01,Table_Data_Table_1[[#This Row],[Months To\nMid-Point]]>-13),0,(Table_Data_Table_1[[#This Row],[Months To\nMid-Point]]*'Global Settings'!$H$6)),\"\")","v":""},{"$f":"IFERROR(Table_Data_Table_1[[#This Row],[Land\nResidual]]*(Table_Data_Table_1[[#This Row],[Time\nAdjust]]+1),\"\")","v":""},{"$f":"IFERROR(Table_Data_Table_1[[#This Row],[Adjusted\nSale Price]]/Table_Data_Table_1[[#This Row],[Resid\nAcre]],\"\")","v":""},{"$f":"IFERROR(ROUND(Table_Data_Table_1[[#This Row],[Adjusted\nSale Price]]/Table_Data_Table_1[[#This Row],[Resid\nSq Ft]],2),\"\")","v":""},{"$f":"IFERROR(IF(VLOOKUP(Table_Data_Table_1[[#This Row],[Item ID]],DataTable,11,FALSE)=0,\"N/A\",Table_Data_Table_1[[#This Row],[Adjusted\nSale Price]]/VLOOKUP(Table_Data_Table_1[[#This Row],[Item ID]],DataTable,11,FALSE)),\"\")","v":""},{"$f":"IF(IFERROR(VLOOKUP(Table_Data_Table_1[[#This Row],[Item ID]],DataTable,17,FALSE),\"\")=0,\"\",IFERROR(VLOOKUP(Table_Data_Table_1[[#This Row],[Item ID]],DataTable,17,FALSE),\"\"))","v":""}]
["",null,{"$f":"IF(Table_Data_Table_1[[#This Row],[Item ID]]=\"\",\"\",IFERROR(VLOOKUP(Table_Data_Table_1[[#This Row],[Item ID]],DataTable,16,FALSE),\"\"))","v":""},null,null,null,null,{"$f":"IF(Table_Data_Table_1[[#This Row],[Valuation Method]]=\"Vacant\",VLOOKUP(Table_Data_Table_1[[#This Row],[Item ID]],DataTable,6,FALSE)-VLOOKUP(Table_Data_Table_1[[#This Row],[Item ID]],DataTable,13,FALSE),IF(Table_Data_Table_1[[#This Row],[Valuation Method]]=\"Abstraction\",VLOOKUP(Table_Data_Table_1[[#This Row],[Item ID]],DataTable,6,FALSE)-VLOOKUP(Table_Data_Table_1[[#This Row],[Item ID]],DataTable,13,FALSE),IF(Table_Data_Table_1[[#This Row],[Valuation Method]]=\"Allocation\",VLOOKUP(Table_Data_Table_1[[#This Row],[Item ID]],DataTable,6,FALSE)*I321,\"\")))","v":""},{"$f":"IF(Table_Data_Table_1[[#This Row],[Valuation Method]]=\"Vacant\",\"N/A\",IF(Table_Data_Table_1[[#This Row],[Valuation Method]]=\"Abstraction\",Table_Data_Table_1[[#This Row],[Land\nResidual]]/VLOOKUP(Table_Data_Table_1[[#This Row],[Item ID]],DataTable,6,FALSE),IF(Table_Data_Table_1[[#This Row],[Valuation Method]]=\"Allocation\",'Global Settings'!$H$20,\"\")))","v":""},{"$f":"IFERROR(ROUND(Table_Data_Table_1[[#This Row],[Resid\nSq Ft]]/43560,3),\"\")","v":""},{"$f":"IF(Table_Data_Table_1[[#This Row],[Item ID]]=\"\",\"\",IFERROR(VLOOKUP(Table_Data_Table_1[[#This Row],[Item ID]],DataTable,10,FALSE)-VLOOKUP(Table_Data_Table_1[[#This Row],[Item ID]],DataTable,12,FALSE),\"\"))","v":""},{"$f":"IFERROR(Table_Data_Table_1[[#This Row],[Land\nResidual]]/Table_Data_Table_1[[#This Row],[Resid\nAcre]],\"\")","v":""},{"$f":"IFERROR(ROUND(Table_Data_Table_1[[#This Row],[Land\nResidual]]/Table_Data_Table_1[[#This Row],[Resid\nSq Ft]],2),\"\")","v":""},{"$f":"IF(Table_Data_Table_1[[#This Row],[Item ID]]=\"\",\"\",ROUND(DAYS360(Table_Data_Table_1[[#This Row],[Sale Date]],'Global Settings'!$H$5)/30,0))","v":""},{"$f":"IFERROR(IF(AND(Table_Data_Table_1[[#This Row],[Months To\nMid-Point]]<12.01,Table_Data_Table_1[[#This Row],[Months To\nMid-Point]]>-13),0,(Table_Data_Table_1[[#This Row],[Months To\nMid-Point]]*'Global Settings'!$H$6)),\"\")","v":""},{"$f":"IFERROR(Table_Data_Table_1[[#This Row],[Land\nResidual]]*(Table_Data_Table_1[[#This Row],[Time\nAdjust]]+1),\"\")","v":""},{"$f":"IFERROR(Table_Data_Table_1[[#This Row],[Adjusted\nSale Price]]/Table_Data_Table_1[[#This Row],[Resid\nAcre]],\"\")","v":""},{"$f":"IFERROR(ROUND(Table_Data_Table_1[[#This Row],[Adjusted\nSale Price]]/Table_Data_Table_1[[#This Row],[Resid\nSq Ft]],2),\"\")","v":""},{"$f":"IFERROR(IF(VLOOKUP(Table_Data_Table_1[[#This Row],[Item ID]],DataTable,11,FALSE)=0,\"N/A\",Table_Data_Table_1[[#This Row],[Adjusted\nSale Price]]/VLOOKUP(Table_Data_Table_1[[#This Row],[Item ID]],DataTable,11,FALSE)),\"\")","v":""},{"$f":"IF(IFERROR(VLOOKUP(Table_Data_Table_1[[#This Row],[Item ID]],DataTable,17,FALSE),\"\")=0,\"\",IFERROR(VLOOKUP(Table_Data_Table_1[[#This Row],[Item ID]],DataTable,17,FALSE),\"\"))","v":""}]
["",null,{"$f":"IF(Table_Data_Table_1[[#This Row],[Item ID]]=\"\",\"\",IFERROR(VLOOKUP(Table_Data_Table_1[[#This Row],[Item ID]],DataTable,16,FALSE),\"\"))","v":""},null,null,null,null,{"$f":"IF(Table_Data_Table_1[[#This Row],[Valuation Method]]=\"Vacant\",VLOOKUP(Table_Data_Table_1[[#This Row],[Item ID]],DataTable,6,FALSE)-VLOOKUP(Table_Data_Table_1[[#This Row],[Item ID]],DataTable,13,FALSE),IF(Table_Data_Table_1[[#This Row],[Valuation Method]]=\"Abstraction\",VLOOKUP(Table_Data_Table_1[[#This Row],[Item ID]],DataTable,6,FALSE)-VLOOKUP(Table_Data_Table_1[[#This Row],[Item ID]],DataTable,13,FALSE),IF(Table_Data_Table_1[[#This Row],[Valuation Method]]=\"Allocation\",VLOOKUP(Table_Data_Table_1[[#This Row],[Item ID]],DataTable,6,FALSE)*I322,\"\")))","v":""},{"$f":"IF(Table_Data_Table_1[[#This Row],[Valuation Method]]=\"Vacant\",\"N/A\",IF(Table_Data_Table_1[[#This Row],[Valuation Method]]=\"Abstraction\",Table_Data_Table_1[[#This Row],[Land\nResidual]]/VLOOKUP(Table_Data_Table_1[[#This Row],[Item ID]],DataTable,6,FALSE),IF(Table_Data_Table_1[[#This Row],[Valuation Method]]=\"Allocation\",'Global Settings'!$H$20,\"\")))","v":""},{"$f":"IFERROR(ROUND(Table_Data_Table_1[[#This Row],[Resid\nSq Ft]]/43560,3),\"\")","v":""},{"$f":"IF(Table_Data_Table_1[[#This Row],[Item ID]]=\"\",\"\",IFERROR(VLOOKUP(Table_Data_Table_1[[#This Row],[Item ID]],DataTable,10,FALSE)-VLOOKUP(Table_Data_Table_1[[#This Row],[Item ID]],DataTable,12,FALSE),\"\"))","v":""},{"$f":"IFERROR(Table_Data_Table_1[[#This Row],[Land\nResidual]]/Table_Data_Table_1[[#This Row],[Resid\nAcre]],\"\")","v":""},{"$f":"IFERROR(ROUND(Table_Data_Table_1[[#This Row],[Land\nResidual]]/Table_Data_Table_1[[#This Row],[Resid\nSq Ft]],2),\"\")","v":""},{"$f":"IF(Table_Data_Table_1[[#This Row],[Item ID]]=\"\",\"\",ROUND(DAYS360(Table_Data_Table_1[[#This Row],[Sale Date]],'Global Settings'!$H$5)/30,0))","v":""},{"$f":"IFERROR(IF(AND(Table_Data_Table_1[[#This Row],[Months To\nMid-Point]]<12.01,Table_Data_Table_1[[#This Row],[Months To\nMid-Point]]>-13),0,(Table_Data_Table_1[[#This Row],[Months To\nMid-Point]]*'Global Settings'!$H$6)),\"\")","v":""},{"$f":"IFERROR(Table_Data_Table_1[[#This Row],[Land\nResidual]]*(Table_Data_Table_1[[#This Row],[Time\nAdjust]]+1),\"\")","v":""},{"$f":"IFERROR(Table_Data_Table_1[[#This Row],[Adjusted\nSale Price]]/Table_Data_Table_1[[#This Row],[Resid\nAcre]],\"\")","v":""},{"$f":"IFERROR(ROUND(Table_Data_Table_1[[#This Row],[Adjusted\nSale Price]]/Table_Data_Table_1[[#This Row],[Resid\nSq Ft]],2),\"\")","v":""},{"$f":"IFERROR(IF(VLOOKUP(Table_Data_Table_1[[#This Row],[Item ID]],DataTable,11,FALSE)=0,\"N/A\",Table_Data_Table_1[[#This Row],[Adjusted\nSale Price]]/VLOOKUP(Table_Data_Table_1[[#This Row],[Item ID]],DataTable,11,FALSE)),\"\")","v":""},{"$f":"IF(IFERROR(VLOOKUP(Table_Data_Table_1[[#This Row],[Item ID]],DataTable,17,FALSE),\"\")=0,\"\",IFERROR(VLOOKUP(Table_Data_Table_1[[#This Row],[Item ID]],DataTable,17,FALSE),\"\"))","v":""}]
["",null,{"$f":"IF(Table_Data_Table_1[[#This Row],[Item ID]]=\"\",\"\",IFERROR(VLOOKUP(Table_Data_Table_1[[#This Row],[Item ID]],DataTable,16,FALSE),\"\"))","v":""},null,null,null,null,{"$f":"IF(Table_Data_Table_1[[#This Row],[Valuation Method]]=\"Vacant\",VLOOKUP(Table_Data_Table_1[[#This Row],[Item ID]],DataTable,6,FALSE)-VLOOKUP(Table_Data_Table_1[[#This Row],[Item ID]],DataTable,13,FALSE),IF(Table_Data_Table_1[[#This Row],[Valuation Method]]=\"Abstraction\",VLOOKUP(Table_Data_Table_1[[#This Row],[Item ID]],DataTable,6,FALSE)-VLOOKUP(Table_Data_Table_1[[#This Row],[Item ID]],DataTable,13,FALSE),IF(Table_Data_Table_1[[#This Row],[Valuation Method]]=\"Allocation\",VLOOKUP(Table_Data_Table_1[[#This Row],[Item ID]],DataTable,6,FALSE)*I323,\"\")))","v":""},{"$f":"IF(Table_Data_Table_1[[#This Row],[Valuation Method]]=\"Vacant\",\"N/A\",IF(Table_Data_Table_1[[#This Row],[Valuation Method]]=\"Abstraction\",Table_Data_Table_1[[#This Row],[Land\nResidual]]/VLOOKUP(Table_Data_Table_1[[#This Row],[Item ID]],DataTable,6,FALSE),IF(Table_Data_Table_1[[#This Row],[Valuation Method]]=\"Allocation\",'Global Settings'!$H$20,\"\")))","v":""},{"$f":"IFERROR(ROUND(Table_Data_Table_1[[#This Row],[Resid\nSq Ft]]/43560,3),\"\")","v":""},{"$f":"IF(Table_Data_Table_1[[#This Row],[Item ID]]=\"\",\"\",IFERROR(VLOOKUP(Table_Data_Table_1[[#This Row],[Item ID]],DataTable,10,FALSE)-VLOOKUP(Table_Data_Table_1[[#This Row],[Item ID]],DataTable,12,FALSE),\"\"))","v":""},{"$f":"IFERROR(Table_Data_Table_1[[#This Row],[Land\nResidual]]/Table_Data_Table_1[[#This Row],[Resid\nAcre]],\"\")","v":""},{"$f":"IFERROR(ROUND(Table_Data_Table_1[[#This Row],[Land\nResidual]]/Table_Data_Table_1[[#This Row],[Resid\nSq Ft]],2),\"\")","v":""},{"$f":"IF(Table_Data_Table_1[[#This Row],[Item ID]]=\"\",\"\",ROUND(DAYS360(Table_Data_Table_1[[#This Row],[Sale Date]],'Global Settings'!$H$5)/30,0))","v":""},{"$f":"IFERROR(IF(AND(Table_Data_Table_1[[#This Row],[Months To\nMid-Point]]<12.01,Table_Data_Table_1[[#This Row],[Months To\nMid-Point]]>-13),0,(Table_Data_Table_1[[#This Row],[Months To\nMid-Point]]*'Global Settings'!$H$6)),\"\")","v":""},{"$f":"IFERROR(Table_Data_Table_1[[#This Row],[Land\nResidual]]*(Table_Data_Table_1[[#This Row],[Time\nAdjust]]+1),\"\")","v":""},{"$f":"IFERROR(Table_Data_Table_1[[#This Row],[Adjusted\nSale Price]]/Table_Data_Table_1[[#This Row],[Resid\nAcre]],\"\")","v":""},{"$f":"IFERROR(ROUND(Table_Data_Table_1[[#This Row],[Adjusted\nSale Price]]/Table_Data_Table_1[[#This Row],[Resid\nSq Ft]],2),\"\")","v":""},{"$f":"IFERROR(IF(VLOOKUP(Table_Data_Table_1[[#This Row],[Item ID]],DataTable,11,FALSE)=0,\"N/A\",Table_Data_Table_1[[#This Row],[Adjusted\nSale Price]]/VLOOKUP(Table_Data_Table_1[[#This Row],[Item ID]],DataTable,11,FALSE)),\"\")","v":""},{"$f":"IF(IFERROR(VLOOKUP(Table_Data_Table_1[[#This Row],[Item ID]],DataTable,17,FALSE),\"\")=0,\"\",IFERROR(VLOOKUP(Table_Data_Table_1[[#This Row],[Item ID]],DataTable,17,FALSE),\"\"))","v":""}]
["",null,{"$f":"IF(Table_Data_Table_1[[#This Row],[Item ID]]=\"\",\"\",IFERROR(VLOOKUP(Table_Data_Table_1[[#This Row],[Item ID]],DataTable,16,FALSE),\"\"))","v":""},null,null,null,null,{"$f":"IF(Table_Data_Table_1[[#This Row],[Valuation Method]]=\"Vacant\",VLOOKUP(Table_Data_Table_1[[#This Row],[Item ID]],DataTable,6,FALSE)-VLOOKUP(Table_Data_Table_1[[#This Row],[Item ID]],DataTable,13,FALSE),IF(Table_Data_Table_1[[#This Row],[Valuation Method]]=\"Abstraction\",VLOOKUP(Table_Data_Table_1[[#This Row],[Item ID]],DataTable,6,FALSE)-VLOOKUP(Table_Data_Table_1[[#This Row],[Item ID]],DataTable,13,FALSE),IF(Table_Data_Table_1[[#This Row],[Valuation Method]]=\"Allocation\",VLOOKUP(Table_Data_Table_1[[#This Row],[Item ID]],DataTable,6,FALSE)*I324,\"\")))","v":""},{"$f":"IF(Table_Data_Table_1[[#This Row],[Valuation Method]]=\"Vacant\",\"N/A\",IF(Table_Data_Table_1[[#This Row],[Valuation Method]]=\"Abstraction\",Table_Data_Table_1[[#This Row],[Land\nResidual]]/VLOOKUP(Table_Data_Table_1[[#This Row],[Item ID]],DataTable,6,FALSE),IF(Table_Data_Table_1[[#This Row],[Valuation Method]]=\"Allocation\",'Global Settings'!$H$20,\"\")))","v":""},{"$f":"IFERROR(ROUND(Table_Data_Table_1[[#This Row],[Resid\nSq Ft]]/43560,3),\"\")","v":""},{"$f":"IF(Table_Data_Table_1[[#This Row],[Item ID]]=\"\",\"\",IFERROR(VLOOKUP(Table_Data_Table_1[[#This Row],[Item ID]],DataTable,10,FALSE)-VLOOKUP(Table_Data_Table_1[[#This Row],[Item ID]],DataTable,12,FALSE),\"\"))","v":""},{"$f":"IFERROR(Table_Data_Table_1[[#This Row],[Land\nResidual]]/Table_Data_Table_1[[#This Row],[Resid\nAcre]],\"\")","v":""},{"$f":"IFERROR(ROUND(Table_Data_Table_1[[#This Row],[Land\nResidual]]/Table_Data_Table_1[[#This Row],[Resid\nSq Ft]],2),\"\")","v":""},{"$f":"IF(Table_Data_Table_1[[#This Row],[Item ID]]=\"\",\"\",ROUND(DAYS360(Table_Data_Table_1[[#This Row],[Sale Date]],'Global Settings'!$H$5)/30,0))","v":""},{"$f":"IFERROR(IF(AND(Table_Data_Table_1[[#This Row],[Months To\nMid-Point]]<12.01,Table_Data_Table_1[[#This Row],[Months To\nMid-Point]]>-13),0,(Table_Data_Table_1[[#This Row],[Months To\nMid-Point]]*'Global Settings'!$H$6)),\"\")","v":""},{"$f":"IFERROR(Table_Data_Table_1[[#This Row],[Land\nResidual]]*(Table_Data_Table_1[[#This Row],[Time\nAdjust]]+1),\"\")","v":""},{"$f":"IFERROR(Table_Data_Table_1[[#This Row],[Adjusted\nSale Price]]/Table_Data_Table_1[[#This Row],[Resid\nAcre]],\"\")","v":""},{"$f":"IFERROR(ROUND(Table_Data_Table_1[[#This Row],[Adjusted\nSale Price]]/Table_Data_Table_1[[#This Row],[Resid\nSq Ft]],2),\"\")","v":""},{"$f":"IFERROR(IF(VLOOKUP(Table_Data_Table_1[[#This Row],[Item ID]],DataTable,11,FALSE)=0,\"N/A\",Table_Data_Table_1[[#This Row],[Adjusted\nSale Price]]/VLOOKUP(Table_Data_Table_1[[#This Row],[Item ID]],DataTable,11,FALSE)),\"\")","v":""},{"$f":"IF(IFERROR(VLOOKUP(Table_Data_Table_1[[#This Row],[Item ID]],DataTable,17,FALSE),\"\")=0,\"\",IFERROR(VLOOKUP(Table_Data_Table_1[[#This Row],[Item ID]],DataTable,17,FALSE),\"\"))","v":""}]
["",null,{"$f":"IF(Table_Data_Table_1[[#This Row],[Item ID]]=\"\",\"\",IFERROR(VLOOKUP(Table_Data_Table_1[[#This Row],[Item ID]],DataTable,16,FALSE),\"\"))","v":""},null,null,null,null,{"$f":"IF(Table_Data_Table_1[[#This Row],[Valuation Method]]=\"Vacant\",VLOOKUP(Table_Data_Table_1[[#This Row],[Item ID]],DataTable,6,FALSE)-VLOOKUP(Table_Data_Table_1[[#This Row],[Item ID]],DataTable,13,FALSE),IF(Table_Data_Table_1[[#This Row],[Valuation Method]]=\"Abstraction\",VLOOKUP(Table_Data_Table_1[[#This Row],[Item ID]],DataTable,6,FALSE)-VLOOKUP(Table_Data_Table_1[[#This Row],[Item ID]],DataTable,13,FALSE),IF(Table_Data_Table_1[[#This Row],[Valuation Method]]=\"Allocation\",VLOOKUP(Table_Data_Table_1[[#This Row],[Item ID]],DataTable,6,FALSE)*I325,\"\")))","v":""},{"$f":"IF(Table_Data_Table_1[[#This Row],[Valuation Method]]=\"Vacant\",\"N/A\",IF(Table_Data_Table_1[[#This Row],[Valuation Method]]=\"Abstraction\",Table_Data_Table_1[[#This Row],[Land\nResidual]]/VLOOKUP(Table_Data_Table_1[[#This Row],[Item ID]],DataTable,6,FALSE),IF(Table_Data_Table_1[[#This Row],[Valuation Method]]=\"Allocation\",'Global Settings'!$H$20,\"\")))","v":""},{"$f":"IFERROR(ROUND(Table_Data_Table_1[[#This Row],[Resid\nSq Ft]]/43560,3),\"\")","v":""},{"$f":"IF(Table_Data_Table_1[[#This Row],[Item ID]]=\"\",\"\",IFERROR(VLOOKUP(Table_Data_Table_1[[#This Row],[Item ID]],DataTable,10,FALSE)-VLOOKUP(Table_Data_Table_1[[#This Row],[Item ID]],DataTable,12,FALSE),\"\"))","v":""},{"$f":"IFERROR(Table_Data_Table_1[[#This Row],[Land\nResidual]]/Table_Data_Table_1[[#This Row],[Resid\nAcre]],\"\")","v":""},{"$f":"IFERROR(ROUND(Table_Data_Table_1[[#This Row],[Land\nResidual]]/Table_Data_Table_1[[#This Row],[Resid\nSq Ft]],2),\"\")","v":""},{"$f":"IF(Table_Data_Table_1[[#This Row],[Item ID]]=\"\",\"\",ROUND(DAYS360(Table_Data_Table_1[[#This Row],[Sale Date]],'Global Settings'!$H$5)/30,0))","v":""},{"$f":"IFERROR(IF(AND(Table_Data_Table_1[[#This Row],[Months To\nMid-Point]]<12.01,Table_Data_Table_1[[#This Row],[Months To\nMid-Point]]>-13),0,(Table_Data_Table_1[[#This Row],[Months To\nMid-Point]]*'Global Settings'!$H$6)),\"\")","v":""},{"$f":"IFERROR(Table_Data_Table_1[[#This Row],[Land\nResidual]]*(Table_Data_Table_1[[#This Row],[Time\nAdjust]]+1),\"\")","v":""},{"$f":"IFERROR(Table_Data_Table_1[[#This Row],[Adjusted\nSale Price]]/Table_Data_Table_1[[#This Row],[Resid\nAcre]],\"\")","v":""},{"$f":"IFERROR(ROUND(Table_Data_Table_1[[#This Row],[Adjusted\nSale Price]]/Table_Data_Table_1[[#This Row],[Resid\nSq Ft]],2),\"\")","v":""},{"$f":"IFERROR(IF(VLOOKUP(Table_Data_Table_1[[#This Row],[Item ID]],DataTable,11,FALSE)=0,\"N/A\",Table_Data_Table_1[[#This Row],[Adjusted\nSale Price]]/VLOOKUP(Table_Data_Table_1[[#This Row],[Item ID]],DataTable,11,FALSE)),\"\")","v":""},{"$f":"IF(IFERROR(VLOOKUP(Table_Data_Table_1[[#This Row],[Item ID]],DataTable,17,FALSE),\"\")=0,\"\",IFERROR(VLOOKUP(Table_Data_Table_1[[#This Row],[Item ID]],DataTable,17,FALSE),\"\"))","v":""}]
["",null,{"$f":"IF(Table_Data_Table_1[[#This Row],[Item ID]]=\"\",\"\",IFERROR(VLOOKUP(Table_Data_Table_1[[#This Row],[Item ID]],DataTable,16,FALSE),\"\"))","v":""},null,null,null,null,{"$f":"IF(Table_Data_Table_1[[#This Row],[Valuation Method]]=\"Vacant\",VLOOKUP(Table_Data_Table_1[[#This Row],[Item ID]],DataTable,6,FALSE)-VLOOKUP(Table_Data_Table_1[[#This Row],[Item ID]],DataTable,13,FALSE),IF(Table_Data_Table_1[[#This Row],[Valuation Method]]=\"Abstraction\",VLOOKUP(Table_Data_Table_1[[#This Row],[Item ID]],DataTable,6,FALSE)-VLOOKUP(Table_Data_Table_1[[#This Row],[Item ID]],DataTable,13,FALSE),IF(Table_Data_Table_1[[#This Row],[Valuation Method]]=\"Allocation\",VLOOKUP(Table_Data_Table_1[[#This Row],[Item ID]],DataTable,6,FALSE)*I326,\"\")))","v":""},{"$f":"IF(Table_Data_Table_1[[#This Row],[Valuation Method]]=\"Vacant\",\"N/A\",IF(Table_Data_Table_1[[#This Row],[Valuation Method]]=\"Abstraction\",Table_Data_Table_1[[#This Row],[Land\nResidual]]/VLOOKUP(Table_Data_Table_1[[#This Row],[Item ID]],DataTable,6,FALSE),IF(Table_Data_Table_1[[#This Row],[Valuation Method]]=\"Allocation\",'Global Settings'!$H$20,\"\")))","v":""},{"$f":"IFERROR(ROUND(Table_Data_Table_1[[#This Row],[Resid\nSq Ft]]/43560,3),\"\")","v":""},{"$f":"IF(Table_Data_Table_1[[#This Row],[Item ID]]=\"\",\"\",IFERROR(VLOOKUP(Table_Data_Table_1[[#This Row],[Item ID]],DataTable,10,FALSE)-VLOOKUP(Table_Data_Table_1[[#This Row],[Item ID]],DataTable,12,FALSE),\"\"))","v":""},{"$f":"IFERROR(Table_Data_Table_1[[#This Row],[Land\nResidual]]/Table_Data_Table_1[[#This Row],[Resid\nAcre]],\"\")","v":""},{"$f":"IFERROR(ROUND(Table_Data_Table_1[[#This Row],[Land\nResidual]]/Table_Data_Table_1[[#This Row],[Resid\nSq Ft]],2),\"\")","v":""},{"$f":"IF(Table_Data_Table_1[[#This Row],[Item ID]]=\"\",\"\",ROUND(DAYS360(Table_Data_Table_1[[#This Row],[Sale Date]],'Global Settings'!$H$5)/30,0))","v":""},{"$f":"IFERROR(IF(AND(Table_Data_Table_1[[#This Row],[Months To\nMid-Point]]<12.01,Table_Data_Table_1[[#This Row],[Months To\nMid-Point]]>-13),0,(Table_Data_Table_1[[#This Row],[Months To\nMid-Point]]*'Global Settings'!$H$6)),\"\")","v":""},{"$f":"IFERROR(Table_Data_Table_1[[#This Row],[Land\nResidual]]*(Table_Data_Table_1[[#This Row],[Time\nAdjust]]+1),\"\")","v":""},{"$f":"IFERROR(Table_Data_Table_1[[#This Row],[Adjusted\nSale Price]]/Table_Data_Table_1[[#This Row],[Resid\nAcre]],\"\")","v":""},{"$f":"IFERROR(ROUND(Table_Data_Table_1[[#This Row],[Adjusted\nSale Price]]/Table_Data_Table_1[[#This Row],[Resid\nSq Ft]],2),\"\")","v":""},{"$f":"IFERROR(IF(VLOOKUP(Table_Data_Table_1[[#This Row],[Item ID]],DataTable,11,FALSE)=0,\"N/A\",Table_Data_Table_1[[#This Row],[Adjusted\nSale Price]]/VLOOKUP(Table_Data_Table_1[[#This Row],[Item ID]],DataTable,11,FALSE)),\"\")","v":""},{"$f":"IF(IFERROR(VLOOKUP(Table_Data_Table_1[[#This Row],[Item ID]],DataTable,17,FALSE),\"\")=0,\"\",IFERROR(VLOOKUP(Table_Data_Table_1[[#This Row],[Item ID]],DataTable,17,FALSE),\"\"))","v":""}]
["",null,{"$f":"IF(Table_Data_Table_1[[#This Row],[Item ID]]=\"\",\"\",IFERROR(VLOOKUP(Table_Data_Table_1[[#This Row],[Item ID]],DataTable,16,FALSE),\"\"))","v":""},null,null,null,null,{"$f":"IF(Table_Data_Table_1[[#This Row],[Valuation Method]]=\"Vacant\",VLOOKUP(Table_Data_Table_1[[#This Row],[Item ID]],DataTable,6,FALSE)-VLOOKUP(Table_Data_Table_1[[#This Row],[Item ID]],DataTable,13,FALSE),IF(Table_Data_Table_1[[#This Row],[Valuation Method]]=\"Abstraction\",VLOOKUP(Table_Data_Table_1[[#This Row],[Item ID]],DataTable,6,FALSE)-VLOOKUP(Table_Data_Table_1[[#This Row],[Item ID]],DataTable,13,FALSE),IF(Table_Data_Table_1[[#This Row],[Valuation Method]]=\"Allocation\",VLOOKUP(Table_Data_Table_1[[#This Row],[Item ID]],DataTable,6,FALSE)*I327,\"\")))","v":""},{"$f":"IF(Table_Data_Table_1[[#This Row],[Valuation Method]]=\"Vacant\",\"N/A\",IF(Table_Data_Table_1[[#This Row],[Valuation Method]]=\"Abstraction\",Table_Data_Table_1[[#This Row],[Land\nResidual]]/VLOOKUP(Table_Data_Table_1[[#This Row],[Item ID]],DataTable,6,FALSE),IF(Table_Data_Table_1[[#This Row],[Valuation Method]]=\"Allocation\",'Global Settings'!$H$20,\"\")))","v":""},{"$f":"IFERROR(ROUND(Table_Data_Table_1[[#This Row],[Resid\nSq Ft]]/43560,3),\"\")","v":""},{"$f":"IF(Table_Data_Table_1[[#This Row],[Item ID]]=\"\",\"\",IFERROR(VLOOKUP(Table_Data_Table_1[[#This Row],[Item ID]],DataTable,10,FALSE)-VLOOKUP(Table_Data_Table_1[[#This Row],[Item ID]],DataTable,12,FALSE),\"\"))","v":""},{"$f":"IFERROR(Table_Data_Table_1[[#This Row],[Land\nResidual]]/Table_Data_Table_1[[#This Row],[Resid\nAcre]],\"\")","v":""},{"$f":"IFERROR(ROUND(Table_Data_Table_1[[#This Row],[Land\nResidual]]/Table_Data_Table_1[[#This Row],[Resid\nSq Ft]],2),\"\")","v":""},{"$f":"IF(Table_Data_Table_1[[#This Row],[Item ID]]=\"\",\"\",ROUND(DAYS360(Table_Data_Table_1[[#This Row],[Sale Date]],'Global Settings'!$H$5)/30,0))","v":""},{"$f":"IFERROR(IF(AND(Table_Data_Table_1[[#This Row],[Months To\nMid-Point]]<12.01,Table_Data_Table_1[[#This Row],[Months To\nMid-Point]]>-13),0,(Table_Data_Table_1[[#This Row],[Months To\nMid-Point]]*'Global Settings'!$H$6)),\"\")","v":""},{"$f":"IFERROR(Table_Data_Table_1[[#This Row],[Land\nResidual]]*(Table_Data_Table_1[[#This Row],[Time\nAdjust]]+1),\"\")","v":""},{"$f":"IFERROR(Table_Data_Table_1[[#This Row],[Adjusted\nSale Price]]/Table_Data_Table_1[[#This Row],[Resid\nAcre]],\"\")","v":""},{"$f":"IFERROR(ROUND(Table_Data_Table_1[[#This Row],[Adjusted\nSale Price]]/Table_Data_Table_1[[#This Row],[Resid\nSq Ft]],2),\"\")","v":""},{"$f":"IFERROR(IF(VLOOKUP(Table_Data_Table_1[[#This Row],[Item ID]],DataTable,11,FALSE)=0,\"N/A\",Table_Data_Table_1[[#This Row],[Adjusted\nSale Price]]/VLOOKUP(Table_Data_Table_1[[#This Row],[Item ID]],DataTable,11,FALSE)),\"\")","v":""},{"$f":"IF(IFERROR(VLOOKUP(Table_Data_Table_1[[#This Row],[Item ID]],DataTable,17,FALSE),\"\")=0,\"\",IFERROR(VLOOKUP(Table_Data_Table_1[[#This Row],[Item ID]],DataTable,17,FALSE),\"\"))","v":""}]
["",null,{"$f":"IF(Table_Data_Table_1[[#This Row],[Item ID]]=\"\",\"\",IFERROR(VLOOKUP(Table_Data_Table_1[[#This Row],[Item ID]],DataTable,16,FALSE),\"\"))","v":""},null,null,null,null,{"$f":"IF(Table_Data_Table_1[[#This Row],[Valuation Method]]=\"Vacant\",VLOOKUP(Table_Data_Table_1[[#This Row],[Item ID]],DataTable,6,FALSE)-VLOOKUP(Table_Data_Table_1[[#This Row],[Item ID]],DataTable,13,FALSE),IF(Table_Data_Table_1[[#This Row],[Valuation Method]]=\"Abstraction\",VLOOKUP(Table_Data_Table_1[[#This Row],[Item ID]],DataTable,6,FALSE)-VLOOKUP(Table_Data_Table_1[[#This Row],[Item ID]],DataTable,13,FALSE),IF(Table_Data_Table_1[[#This Row],[Valuation Method]]=\"Allocation\",VLOOKUP(Table_Data_Table_1[[#This Row],[Item ID]],DataTable,6,FALSE)*I328,\"\")))","v":""},{"$f":"IF(Table_Data_Table_1[[#This Row],[Valuation Method]]=\"Vacant\",\"N/A\",IF(Table_Data_Table_1[[#This Row],[Valuation Method]]=\"Abstraction\",Table_Data_Table_1[[#This Row],[Land\nResidual]]/VLOOKUP(Table_Data_Table_1[[#This Row],[Item ID]],DataTable,6,FALSE),IF(Table_Data_Table_1[[#This Row],[Valuation Method]]=\"Allocation\",'Global Settings'!$H$20,\"\")))","v":""},{"$f":"IFERROR(ROUND(Table_Data_Table_1[[#This Row],[Resid\nSq Ft]]/43560,3),\"\")","v":""},{"$f":"IF(Table_Data_Table_1[[#This Row],[Item ID]]=\"\",\"\",IFERROR(VLOOKUP(Table_Data_Table_1[[#This Row],[Item ID]],DataTable,10,FALSE)-VLOOKUP(Table_Data_Table_1[[#This Row],[Item ID]],DataTable,12,FALSE),\"\"))","v":""},{"$f":"IFERROR(Table_Data_Table_1[[#This Row],[Land\nResidual]]/Table_Data_Table_1[[#This Row],[Resid\nAcre]],\"\")","v":""},{"$f":"IFERROR(ROUND(Table_Data_Table_1[[#This Row],[Land\nResidual]]/Table_Data_Table_1[[#This Row],[Resid\nSq Ft]],2),\"\")","v":""},{"$f":"IF(Table_Data_Table_1[[#This Row],[Item ID]]=\"\",\"\",ROUND(DAYS360(Table_Data_Table_1[[#This Row],[Sale Date]],'Global Settings'!$H$5)/30,0))","v":""},{"$f":"IFERROR(IF(AND(Table_Data_Table_1[[#This Row],[Months To\nMid-Point]]<12.01,Table_Data_Table_1[[#This Row],[Months To\nMid-Point]]>-13),0,(Table_Data_Table_1[[#This Row],[Months To\nMid-Point]]*'Global Settings'!$H$6)),\"\")","v":""},{"$f":"IFERROR(Table_Data_Table_1[[#This Row],[Land\nResidual]]*(Table_Data_Table_1[[#This Row],[Time\nAdjust]]+1),\"\")","v":""},{"$f":"IFERROR(Table_Data_Table_1[[#This Row],[Adjusted\nSale Price]]/Table_Data_Table_1[[#This Row],[Resid\nAcre]],\"\")","v":""},{"$f":"IFERROR(ROUND(Table_Data_Table_1[[#This Row],[Adjusted\nSale Price]]/Table_Data_Table_1[[#This Row],[Resid\nSq Ft]],2),\"\")","v":""},{"$f":"IFERROR(IF(VLOOKUP(Table_Data_Table_1[[#This Row],[Item ID]],DataTable,11,FALSE)=0,\"N/A\",Table_Data_Table_1[[#This Row],[Adjusted\nSale Price]]/VLOOKUP(Table_Data_Table_1[[#This Row],[Item ID]],DataTable,11,FALSE)),\"\")","v":""},{"$f":"IF(IFERROR(VLOOKUP(Table_Data_Table_1[[#This Row],[Item ID]],DataTable,17,FALSE),\"\")=0,\"\",IFERROR(VLOOKUP(Table_Data_Table_1[[#This Row],[Item ID]],DataTable,17,FALSE),\"\"))","v":""}]
["",null,{"$f":"IF(Table_Data_Table_1[[#This Row],[Item ID]]=\"\",\"\",IFERROR(VLOOKUP(Table_Data_Table_1[[#This Row],[Item ID]],DataTable,16,FALSE),\"\"))","v":""},null,null,null,null,{"$f":"IF(Table_Data_Table_1[[#This Row],[Valuation Method]]=\"Vacant\",VLOOKUP(Table_Data_Table_1[[#This Row],[Item ID]],DataTable,6,FALSE)-VLOOKUP(Table_Data_Table_1[[#This Row],[Item ID]],DataTable,13,FALSE),IF(Table_Data_Table_1[[#This Row],[Valuation Method]]=\"Abstraction\",VLOOKUP(Table_Data_Table_1[[#This Row],[Item ID]],DataTable,6,FALSE)-VLOOKUP(Table_Data_Table_1[[#This Row],[Item ID]],DataTable,13,FALSE),IF(Table_Data_Table_1[[#This Row],[Valuation Method]]=\"Allocation\",VLOOKUP(Table_Data_Table_1[[#This Row],[Item ID]],DataTable,6,FALSE)*I329,\"\")))","v":""},{"$f":"IF(Table_Data_Table_1[[#This Row],[Valuation Method]]=\"Vacant\",\"N/A\",IF(Table_Data_Table_1[[#This Row],[Valuation Method]]=\"Abstraction\",Table_Data_Table_1[[#This Row],[Land\nResidual]]/VLOOKUP(Table_Data_Table_1[[#This Row],[Item ID]],DataTable,6,FALSE),IF(Table_Data_Table_1[[#This Row],[Valuation Method]]=\"Allocation\",'Global Settings'!$H$20,\"\")))","v":""},{"$f":"IFERROR(ROUND(Table_Data_Table_1[[#This Row],[Resid\nSq Ft]]/43560,3),\"\")","v":""},{"$f":"IF(Table_Data_Table_1[[#This Row],[Item ID]]=\"\",\"\",IFERROR(VLOOKUP(Table_Data_Table_1[[#This Row],[Item ID]],DataTable,10,FALSE)-VLOOKUP(Table_Data_Table_1[[#This Row],[Item ID]],DataTable,12,FALSE),\"\"))","v":""},{"$f":"IFERROR(Table_Data_Table_1[[#This Row],[Land\nResidual]]/Table_Data_Table_1[[#This Row],[Resid\nAcre]],\"\")","v":""},{"$f":"IFERROR(ROUND(Table_Data_Table_1[[#This Row],[Land\nResidual]]/Table_Data_Table_1[[#This Row],[Resid\nSq Ft]],2),\"\")","v":""},{"$f":"IF(Table_Data_Table_1[[#This Row],[Item ID]]=\"\",\"\",ROUND(DAYS360(Table_Data_Table_1[[#This Row],[Sale Date]],'Global Settings'!$H$5)/30,0))","v":""},{"$f":"IFERROR(IF(AND(Table_Data_Table_1[[#This Row],[Months To\nMid-Point]]<12.01,Table_Data_Table_1[[#This Row],[Months To\nMid-Point]]>-13),0,(Table_Data_Table_1[[#This Row],[Months To\nMid-Point]]*'Global Settings'!$H$6)),\"\")","v":""},{"$f":"IFERROR(Table_Data_Table_1[[#This Row],[Land\nResidual]]*(Table_Data_Table_1[[#This Row],[Time\nAdjust]]+1),\"\")","v":""},{"$f":"IFERROR(Table_Data_Table_1[[#This Row],[Adjusted\nSale Price]]/Table_Data_Table_1[[#This Row],[Resid\nAcre]],\"\")","v":""},{"$f":"IFERROR(ROUND(Table_Data_Table_1[[#This Row],[Adjusted\nSale Price]]/Table_Data_Table_1[[#This Row],[Resid\nSq Ft]],2),\"\")","v":""},{"$f":"IFERROR(IF(VLOOKUP(Table_Data_Table_1[[#This Row],[Item ID]],DataTable,11,FALSE)=0,\"N/A\",Table_Data_Table_1[[#This Row],[Adjusted\nSale Price]]/VLOOKUP(Table_Data_Table_1[[#This Row],[Item ID]],DataTable,11,FALSE)),\"\")","v":""},{"$f":"IF(IFERROR(VLOOKUP(Table_Data_Table_1[[#This Row],[Item ID]],DataTable,17,FALSE),\"\")=0,\"\",IFERROR(VLOOKUP(Table_Data_Table_1[[#This Row],[Item ID]],DataTable,17,FALSE),\"\"))","v":""}]
["",null,{"$f":"IF(Table_Data_Table_1[[#This Row],[Item ID]]=\"\",\"\",IFERROR(VLOOKUP(Table_Data_Table_1[[#This Row],[Item ID]],DataTable,16,FALSE),\"\"))","v":""},null,null,null,null,{"$f":"IF(Table_Data_Table_1[[#This Row],[Valuation Method]]=\"Vacant\",VLOOKUP(Table_Data_Table_1[[#This Row],[Item ID]],DataTable,6,FALSE)-VLOOKUP(Table_Data_Table_1[[#This Row],[Item ID]],DataTable,13,FALSE),IF(Table_Data_Table_1[[#This Row],[Valuation Method]]=\"Abstraction\",VLOOKUP(Table_Data_Table_1[[#This Row],[Item ID]],DataTable,6,FALSE)-VLOOKUP(Table_Data_Table_1[[#This Row],[Item ID]],DataTable,13,FALSE),IF(Table_Data_Table_1[[#This Row],[Valuation Method]]=\"Allocation\",VLOOKUP(Table_Data_Table_1[[#This Row],[Item ID]],DataTable,6,FALSE)*I330,\"\")))","v":""},{"$f":"IF(Table_Data_Table_1[[#This Row],[Valuation Method]]=\"Vacant\",\"N/A\",IF(Table_Data_Table_1[[#This Row],[Valuation Method]]=\"Abstraction\",Table_Data_Table_1[[#This Row],[Land\nResidual]]/VLOOKUP(Table_Data_Table_1[[#This Row],[Item ID]],DataTable,6,FALSE),IF(Table_Data_Table_1[[#This Row],[Valuation Method]]=\"Allocation\",'Global Settings'!$H$20,\"\")))","v":""},{"$f":"IFERROR(ROUND(Table_Data_Table_1[[#This Row],[Resid\nSq Ft]]/43560,3),\"\")","v":""},{"$f":"IF(Table_Data_Table_1[[#This Row],[Item ID]]=\"\",\"\",IFERROR(VLOOKUP(Table_Data_Table_1[[#This Row],[Item ID]],DataTable,10,FALSE)-VLOOKUP(Table_Data_Table_1[[#This Row],[Item ID]],DataTable,12,FALSE),\"\"))","v":""},{"$f":"IFERROR(Table_Data_Table_1[[#This Row],[Land\nResidual]]/Table_Data_Table_1[[#This Row],[Resid\nAcre]],\"\")","v":""},{"$f":"IFERROR(ROUND(Table_Data_Table_1[[#This Row],[Land\nResidual]]/Table_Data_Table_1[[#This Row],[Resid\nSq Ft]],2),\"\")","v":""},{"$f":"IF(Table_Data_Table_1[[#This Row],[Item ID]]=\"\",\"\",ROUND(DAYS360(Table_Data_Table_1[[#This Row],[Sale Date]],'Global Settings'!$H$5)/30,0))","v":""},{"$f":"IFERROR(IF(AND(Table_Data_Table_1[[#This Row],[Months To\nMid-Point]]<12.01,Table_Data_Table_1[[#This Row],[Months To\nMid-Point]]>-13),0,(Table_Data_Table_1[[#This Row],[Months To\nMid-Point]]*'Global Settings'!$H$6)),\"\")","v":""},{"$f":"IFERROR(Table_Data_Table_1[[#This Row],[Land\nResidual]]*(Table_Data_Table_1[[#This Row],[Time\nAdjust]]+1),\"\")","v":""},{"$f":"IFERROR(Table_Data_Table_1[[#This Row],[Adjusted\nSale Price]]/Table_Data_Table_1[[#This Row],[Resid\nAcre]],\"\")","v":""},{"$f":"IFERROR(ROUND(Table_Data_Table_1[[#This Row],[Adjusted\nSale Price]]/Table_Data_Table_1[[#This Row],[Resid\nSq Ft]],2),\"\")","v":""},{"$f":"IFERROR(IF(VLOOKUP(Table_Data_Table_1[[#This Row],[Item ID]],DataTable,11,FALSE)=0,\"N/A\",Table_Data_Table_1[[#This Row],[Adjusted\nSale Price]]/VLOOKUP(Table_Data_Table_1[[#This Row],[Item ID]],DataTable,11,FALSE)),\"\")","v":""},{"$f":"IF(IFERROR(VLOOKUP(Table_Data_Table_1[[#This Row],[Item ID]],DataTable,17,FALSE),\"\")=0,\"\",IFERROR(VLOOKUP(Table_Data_Table_1[[#This Row],[Item ID]],DataTable,17,FALSE),\"\"))","v":""}]
["",null,{"$f":"IF(Table_Data_Table_1[[#This Row],[Item ID]]=\"\",\"\",IFERROR(VLOOKUP(Table_Data_Table_1[[#This Row],[Item ID]],DataTable,16,FALSE),\"\"))","v":""},null,null,null,null,{"$f":"IF(Table_Data_Table_1[[#This Row],[Valuation Method]]=\"Vacant\",VLOOKUP(Table_Data_Table_1[[#This Row],[Item ID]],DataTable,6,FALSE)-VLOOKUP(Table_Data_Table_1[[#This Row],[Item ID]],DataTable,13,FALSE),IF(Table_Data_Table_1[[#This Row],[Valuation Method]]=\"Abstraction\",VLOOKUP(Table_Data_Table_1[[#This Row],[Item ID]],DataTable,6,FALSE)-VLOOKUP(Table_Data_Table_1[[#This Row],[Item ID]],DataTable,13,FALSE),IF(Table_Data_Table_1[[#This Row],[Valuation Method]]=\"Allocation\",VLOOKUP(Table_Data_Table_1[[#This Row],[Item ID]],DataTable,6,FALSE)*I331,\"\")))","v":""},{"$f":"IF(Table_Data_Table_1[[#This Row],[Valuation Method]]=\"Vacant\",\"N/A\",IF(Table_Data_Table_1[[#This Row],[Valuation Method]]=\"Abstraction\",Table_Data_Table_1[[#This Row],[Land\nResidual]]/VLOOKUP(Table_Data_Table_1[[#This Row],[Item ID]],DataTable,6,FALSE),IF(Table_Data_Table_1[[#This Row],[Valuation Method]]=\"Allocation\",'Global Settings'!$H$20,\"\")))","v":""},{"$f":"IFERROR(ROUND(Table_Data_Table_1[[#This Row],[Resid\nSq Ft]]/43560,3),\"\")","v":""},{"$f":"IF(Table_Data_Table_1[[#This Row],[Item ID]]=\"\",\"\",IFERROR(VLOOKUP(Table_Data_Table_1[[#This Row],[Item ID]],DataTable,10,FALSE)-VLOOKUP(Table_Data_Table_1[[#This Row],[Item ID]],DataTable,12,FALSE),\"\"))","v":""},{"$f":"IFERROR(Table_Data_Table_1[[#This Row],[Land\nResidual]]/Table_Data_Table_1[[#This Row],[Resid\nAcre]],\"\")","v":""},{"$f":"IFERROR(ROUND(Table_Data_Table_1[[#This Row],[Land\nResidual]]/Table_Data_Table_1[[#This Row],[Resid\nSq Ft]],2),\"\")","v":""},{"$f":"IF(Table_Data_Table_1[[#This Row],[Item ID]]=\"\",\"\",ROUND(DAYS360(Table_Data_Table_1[[#This Row],[Sale Date]],'Global Settings'!$H$5)/30,0))","v":""},{"$f":"IFERROR(IF(AND(Table_Data_Table_1[[#This Row],[Months To\nMid-Point]]<12.01,Table_Data_Table_1[[#This Row],[Months To\nMid-Point]]>-13),0,(Table_Data_Table_1[[#This Row],[Months To\nMid-Point]]*'Global Settings'!$H$6)),\"\")","v":""},{"$f":"IFERROR(Table_Data_Table_1[[#This Row],[Land\nResidual]]*(Table_Data_Table_1[[#This Row],[Time\nAdjust]]+1),\"\")","v":""},{"$f":"IFERROR(Table_Data_Table_1[[#This Row],[Adjusted\nSale Price]]/Table_Data_Table_1[[#This Row],[Resid\nAcre]],\"\")","v":""},{"$f":"IFERROR(ROUND(Table_Data_Table_1[[#This Row],[Adjusted\nSale Price]]/Table_Data_Table_1[[#This Row],[Resid\nSq Ft]],2),\"\")","v":""},{"$f":"IFERROR(IF(VLOOKUP(Table_Data_Table_1[[#This Row],[Item ID]],DataTable,11,FALSE)=0,\"N/A\",Table_Data_Table_1[[#This Row],[Adjusted\nSale Price]]/VLOOKUP(Table_Data_Table_1[[#This Row],[Item ID]],DataTable,11,FALSE)),\"\")","v":""},{"$f":"IF(IFERROR(VLOOKUP(Table_Data_Table_1[[#This Row],[Item ID]],DataTable,17,FALSE),\"\")=0,\"\",IFERROR(VLOOKUP(Table_Data_Table_1[[#This Row],[Item ID]],DataTable,17,FALSE),\"\"))","v":""}]
["",null,{"$f":"IF(Table_Data_Table_1[[#This Row],[Item ID]]=\"\",\"\",IFERROR(VLOOKUP(Table_Data_Table_1[[#This Row],[Item ID]],DataTable,16,FALSE),\"\"))","v":""},null,null,null,null,{"$f":"IF(Table_Data_Table_1[[#This Row],[Valuation Method]]=\"Vacant\",VLOOKUP(Table_Data_Table_1[[#This Row],[Item ID]],DataTable,6,FALSE)-VLOOKUP(Table_Data_Table_1[[#This Row],[Item ID]],DataTable,13,FALSE),IF(Table_Data_Table_1[[#This Row],[Valuation Method]]=\"Abstraction\",VLOOKUP(Table_Data_Table_1[[#This Row],[Item ID]],DataTable,6,FALSE)-VLOOKUP(Table_Data_Table_1[[#This Row],[Item ID]],DataTable,13,FALSE),IF(Table_Data_Table_1[[#This Row],[Valuation Method]]=\"Allocation\",VLOOKUP(Table_Data_Table_1[[#This Row],[Item ID]],DataTable,6,FALSE)*I332,\"\")))","v":""},{"$f":"IF(Table_Data_Table_1[[#This Row],[Valuation Method]]=\"Vacant\",\"N/A\",IF(Table_Data_Table_1[[#This Row],[Valuation Method]]=\"Abstraction\",Table_Data_Table_1[[#This Row],[Land\nResidual]]/VLOOKUP(Table_Data_Table_1[[#This Row],[Item ID]],DataTable,6,FALSE),IF(Table_Data_Table_1[[#This Row],[Valuation Method]]=\"Allocation\",'Global Settings'!$H$20,\"\")))","v":""},{"$f":"IFERROR(ROUND(Table_Data_Table_1[[#This Row],[Resid\nSq Ft]]/43560,3),\"\")","v":""},{"$f":"IF(Table_Data_Table_1[[#This Row],[Item ID]]=\"\",\"\",IFERROR(VLOOKUP(Table_Data_Table_1[[#This Row],[Item ID]],DataTable,10,FALSE)-VLOOKUP(Table_Data_Table_1[[#This Row],[Item ID]],DataTable,12,FALSE),\"\"))","v":""},{"$f":"IFERROR(Table_Data_Table_1[[#This Row],[Land\nResidual]]/Table_Data_Table_1[[#This Row],[Resid\nAcre]],\"\")","v":""},{"$f":"IFERROR(ROUND(Table_Data_Table_1[[#This Row],[Land\nResidual]]/Table_Data_Table_1[[#This Row],[Resid\nSq Ft]],2),\"\")","v":""},{"$f":"IF(Table_Data_Table_1[[#This Row],[Item ID]]=\"\",\"\",ROUND(DAYS360(Table_Data_Table_1[[#This Row],[Sale Date]],'Global Settings'!$H$5)/30,0))","v":""},{"$f":"IFERROR(IF(AND(Table_Data_Table_1[[#This Row],[Months To\nMid-Point]]<12.01,Table_Data_Table_1[[#This Row],[Months To\nMid-Point]]>-13),0,(Table_Data_Table_1[[#This Row],[Months To\nMid-Point]]*'Global Settings'!$H$6)),\"\")","v":""},{"$f":"IFERROR(Table_Data_Table_1[[#This Row],[Land\nResidual]]*(Table_Data_Table_1[[#This Row],[Time\nAdjust]]+1),\"\")","v":""},{"$f":"IFERROR(Table_Data_Table_1[[#This Row],[Adjusted\nSale Price]]/Table_Data_Table_1[[#This Row],[Resid\nAcre]],\"\")","v":""},{"$f":"IFERROR(ROUND(Table_Data_Table_1[[#This Row],[Adjusted\nSale Price]]/Table_Data_Table_1[[#This Row],[Resid\nSq Ft]],2),\"\")","v":""},{"$f":"IFERROR(IF(VLOOKUP(Table_Data_Table_1[[#This Row],[Item ID]],DataTable,11,FALSE)=0,\"N/A\",Table_Data_Table_1[[#This Row],[Adjusted\nSale Price]]/VLOOKUP(Table_Data_Table_1[[#This Row],[Item ID]],DataTable,11,FALSE)),\"\")","v":""},{"$f":"IF(IFERROR(VLOOKUP(Table_Data_Table_1[[#This Row],[Item ID]],DataTable,17,FALSE),\"\")=0,\"\",IFERROR(VLOOKUP(Table_Data_Table_1[[#This Row],[Item ID]],DataTable,17,FALSE),\"\"))","v":""}]
["",null,{"$f":"IF(Table_Data_Table_1[[#This Row],[Item ID]]=\"\",\"\",IFERROR(VLOOKUP(Table_Data_Table_1[[#This Row],[Item ID]],DataTable,16,FALSE),\"\"))","v":""},null,null,null,null,{"$f":"IF(Table_Data_Table_1[[#This Row],[Valuation Method]]=\"Vacant\",VLOOKUP(Table_Data_Table_1[[#This Row],[Item ID]],DataTable,6,FALSE)-VLOOKUP(Table_Data_Table_1[[#This Row],[Item ID]],DataTable,13,FALSE),IF(Table_Data_Table_1[[#This Row],[Valuation Method]]=\"Abstraction\",VLOOKUP(Table_Data_Table_1[[#This Row],[Item ID]],DataTable,6,FALSE)-VLOOKUP(Table_Data_Table_1[[#This Row],[Item ID]],DataTable,13,FALSE),IF(Table_Data_Table_1[[#This Row],[Valuation Method]]=\"Allocation\",VLOOKUP(Table_Data_Table_1[[#This Row],[Item ID]],DataTable,6,FALSE)*I333,\"\")))","v":""},{"$f":"IF(Table_Data_Table_1[[#This Row],[Valuation Method]]=\"Vacant\",\"N/A\",IF(Table_Data_Table_1[[#This Row],[Valuation Method]]=\"Abstraction\",Table_Data_Table_1[[#This Row],[Land\nResidual]]/VLOOKUP(Table_Data_Table_1[[#This Row],[Item ID]],DataTable,6,FALSE),IF(Table_Data_Table_1[[#This Row],[Valuation Method]]=\"Allocation\",'Global Settings'!$H$20,\"\")))","v":""},{"$f":"IFERROR(ROUND(Table_Data_Table_1[[#This Row],[Resid\nSq Ft]]/43560,3),\"\")","v":""},{"$f":"IF(Table_Data_Table_1[[#This Row],[Item ID]]=\"\",\"\",IFERROR(VLOOKUP(Table_Data_Table_1[[#This Row],[Item ID]],DataTable,10,FALSE)-VLOOKUP(Table_Data_Table_1[[#This Row],[Item ID]],DataTable,12,FALSE),\"\"))","v":""},{"$f":"IFERROR(Table_Data_Table_1[[#This Row],[Land\nResidual]]/Table_Data_Table_1[[#This Row],[Resid\nAcre]],\"\")","v":""},{"$f":"IFERROR(ROUND(Table_Data_Table_1[[#This Row],[Land\nResidual]]/Table_Data_Table_1[[#This Row],[Resid\nSq Ft]],2),\"\")","v":""},{"$f":"IF(Table_Data_Table_1[[#This Row],[Item ID]]=\"\",\"\",ROUND(DAYS360(Table_Data_Table_1[[#This Row],[Sale Date]],'Global Settings'!$H$5)/30,0))","v":""},{"$f":"IFERROR(IF(AND(Table_Data_Table_1[[#This Row],[Months To\nMid-Point]]<12.01,Table_Data_Table_1[[#This Row],[Months To\nMid-Point]]>-13),0,(Table_Data_Table_1[[#This Row],[Months To\nMid-Point]]*'Global Settings'!$H$6)),\"\")","v":""},{"$f":"IFERROR(Table_Data_Table_1[[#This Row],[Land\nResidual]]*(Table_Data_Table_1[[#This Row],[Time\nAdjust]]+1),\"\")","v":""},{"$f":"IFERROR(Table_Data_Table_1[[#This Row],[Adjusted\nSale Price]]/Table_Data_Table_1[[#This Row],[Resid\nAcre]],\"\")","v":""},{"$f":"IFERROR(ROUND(Table_Data_Table_1[[#This Row],[Adjusted\nSale Price]]/Table_Data_Table_1[[#This Row],[Resid\nSq Ft]],2),\"\")","v":""},{"$f":"IFERROR(IF(VLOOKUP(Table_Data_Table_1[[#This Row],[Item ID]],DataTable,11,FALSE)=0,\"N/A\",Table_Data_Table_1[[#This Row],[Adjusted\nSale Price]]/VLOOKUP(Table_Data_Table_1[[#This Row],[Item ID]],DataTable,11,FALSE)),\"\")","v":""},{"$f":"IF(IFERROR(VLOOKUP(Table_Data_Table_1[[#This Row],[Item ID]],DataTable,17,FALSE),\"\")=0,\"\",IFERROR(VLOOKUP(Table_Data_Table_1[[#This Row],[Item ID]],DataTable,17,FALSE),\"\"))","v":""}]
["",null,{"$f":"IF(Table_Data_Table_1[[#This Row],[Item ID]]=\"\",\"\",IFERROR(VLOOKUP(Table_Data_Table_1[[#This Row],[Item ID]],DataTable,16,FALSE),\"\"))","v":""},null,null,null,null,{"$f":"IF(Table_Data_Table_1[[#This Row],[Valuation Method]]=\"Vacant\",VLOOKUP(Table_Data_Table_1[[#This Row],[Item ID]],DataTable,6,FALSE)-VLOOKUP(Table_Data_Table_1[[#This Row],[Item ID]],DataTable,13,FALSE),IF(Table_Data_Table_1[[#This Row],[Valuation Method]]=\"Abstraction\",VLOOKUP(Table_Data_Table_1[[#This Row],[Item ID]],DataTable,6,FALSE)-VLOOKUP(Table_Data_Table_1[[#This Row],[Item ID]],DataTable,13,FALSE),IF(Table_Data_Table_1[[#This Row],[Valuation Method]]=\"Allocation\",VLOOKUP(Table_Data_Table_1[[#This Row],[Item ID]],DataTable,6,FALSE)*I334,\"\")))","v":""},{"$f":"IF(Table_Data_Table_1[[#This Row],[Valuation Method]]=\"Vacant\",\"N/A\",IF(Table_Data_Table_1[[#This Row],[Valuation Method]]=\"Abstraction\",Table_Data_Table_1[[#This Row],[Land\nResidual]]/VLOOKUP(Table_Data_Table_1[[#This Row],[Item ID]],DataTable,6,FALSE),IF(Table_Data_Table_1[[#This Row],[Valuation Method]]=\"Allocation\",'Global Settings'!$H$20,\"\")))","v":""},{"$f":"IFERROR(ROUND(Table_Data_Table_1[[#This Row],[Resid\nSq Ft]]/43560,3),\"\")","v":""},{"$f":"IF(Table_Data_Table_1[[#This Row],[Item ID]]=\"\",\"\",IFERROR(VLOOKUP(Table_Data_Table_1[[#This Row],[Item ID]],DataTable,10,FALSE)-VLOOKUP(Table_Data_Table_1[[#This Row],[Item ID]],DataTable,12,FALSE),\"\"))","v":""},{"$f":"IFERROR(Table_Data_Table_1[[#This Row],[Land\nResidual]]/Table_Data_Table_1[[#This Row],[Resid\nAcre]],\"\")","v":""},{"$f":"IFERROR(ROUND(Table_Data_Table_1[[#This Row],[Land\nResidual]]/Table_Data_Table_1[[#This Row],[Resid\nSq Ft]],2),\"\")","v":""},{"$f":"IF(Table_Data_Table_1[[#This Row],[Item ID]]=\"\",\"\",ROUND(DAYS360(Table_Data_Table_1[[#This Row],[Sale Date]],'Global Settings'!$H$5)/30,0))","v":""},{"$f":"IFERROR(IF(AND(Table_Data_Table_1[[#This Row],[Months To\nMid-Point]]<12.01,Table_Data_Table_1[[#This Row],[Months To\nMid-Point]]>-13),0,(Table_Data_Table_1[[#This Row],[Months To\nMid-Point]]*'Global Settings'!$H$6)),\"\")","v":""},{"$f":"IFERROR(Table_Data_Table_1[[#This Row],[Land\nResidual]]*(Table_Data_Table_1[[#This Row],[Time\nAdjust]]+1),\"\")","v":""},{"$f":"IFERROR(Table_Data_Table_1[[#This Row],[Adjusted\nSale Price]]/Table_Data_Table_1[[#This Row],[Resid\nAcre]],\"\")","v":""},{"$f":"IFERROR(ROUND(Table_Data_Table_1[[#This Row],[Adjusted\nSale Price]]/Table_Data_Table_1[[#This Row],[Resid\nSq Ft]],2),\"\")","v":""},{"$f":"IFERROR(IF(VLOOKUP(Table_Data_Table_1[[#This Row],[Item ID]],DataTable,11,FALSE)=0,\"N/A\",Table_Data_Table_1[[#This Row],[Adjusted\nSale Price]]/VLOOKUP(Table_Data_Table_1[[#This Row],[Item ID]],DataTable,11,FALSE)),\"\")","v":""},{"$f":"IF(IFERROR(VLOOKUP(Table_Data_Table_1[[#This Row],[Item ID]],DataTable,17,FALSE),\"\")=0,\"\",IFERROR(VLOOKUP(Table_Data_Table_1[[#This Row],[Item ID]],DataTable,17,FALSE),\"\"))","v":""}]
["",null,{"$f":"IF(Table_Data_Table_1[[#This Row],[Item ID]]=\"\",\"\",IFERROR(VLOOKUP(Table_Data_Table_1[[#This Row],[Item ID]],DataTable,16,FALSE),\"\"))","v":""},null,null,null,null,{"$f":"IF(Table_Data_Table_1[[#This Row],[Valuation Method]]=\"Vacant\",VLOOKUP(Table_Data_Table_1[[#This Row],[Item ID]],DataTable,6,FALSE)-VLOOKUP(Table_Data_Table_1[[#This Row],[Item ID]],DataTable,13,FALSE),IF(Table_Data_Table_1[[#This Row],[Valuation Method]]=\"Abstraction\",VLOOKUP(Table_Data_Table_1[[#This Row],[Item ID]],DataTable,6,FALSE)-VLOOKUP(Table_Data_Table_1[[#This Row],[Item ID]],DataTable,13,FALSE),IF(Table_Data_Table_1[[#This Row],[Valuation Method]]=\"Allocation\",VLOOKUP(Table_Data_Table_1[[#This Row],[Item ID]],DataTable,6,FALSE)*I335,\"\")))","v":""},{"$f":"IF(Table_Data_Table_1[[#This Row],[Valuation Method]]=\"Vacant\",\"N/A\",IF(Table_Data_Table_1[[#This Row],[Valuation Method]]=\"Abstraction\",Table_Data_Table_1[[#This Row],[Land\nResidual]]/VLOOKUP(Table_Data_Table_1[[#This Row],[Item ID]],DataTable,6,FALSE),IF(Table_Data_Table_1[[#This Row],[Valuation Method]]=\"Allocation\",'Global Settings'!$H$20,\"\")))","v":""},{"$f":"IFERROR(ROUND(Table_Data_Table_1[[#This Row],[Resid\nSq Ft]]/43560,3),\"\")","v":""},{"$f":"IF(Table_Data_Table_1[[#This Row],[Item ID]]=\"\",\"\",IFERROR(VLOOKUP(Table_Data_Table_1[[#This Row],[Item ID]],DataTable,10,FALSE)-VLOOKUP(Table_Data_Table_1[[#This Row],[Item ID]],DataTable,12,FALSE),\"\"))","v":""},{"$f":"IFERROR(Table_Data_Table_1[[#This Row],[Land\nResidual]]/Table_Data_Table_1[[#This Row],[Resid\nAcre]],\"\")","v":""},{"$f":"IFERROR(ROUND(Table_Data_Table_1[[#This Row],[Land\nResidual]]/Table_Data_Table_1[[#This Row],[Resid\nSq Ft]],2),\"\")","v":""},{"$f":"IF(Table_Data_Table_1[[#This Row],[Item ID]]=\"\",\"\",ROUND(DAYS360(Table_Data_Table_1[[#This Row],[Sale Date]],'Global Settings'!$H$5)/30,0))","v":""},{"$f":"IFERROR(IF(AND(Table_Data_Table_1[[#This Row],[Months To\nMid-Point]]<12.01,Table_Data_Table_1[[#This Row],[Months To\nMid-Point]]>-13),0,(Table_Data_Table_1[[#This Row],[Months To\nMid-Point]]*'Global Settings'!$H$6)),\"\")","v":""},{"$f":"IFERROR(Table_Data_Table_1[[#This Row],[Land\nResidual]]*(Table_Data_Table_1[[#This Row],[Time\nAdjust]]+1),\"\")","v":""},{"$f":"IFERROR(Table_Data_Table_1[[#This Row],[Adjusted\nSale Price]]/Table_Data_Table_1[[#This Row],[Resid\nAcre]],\"\")","v":""},{"$f":"IFERROR(ROUND(Table_Data_Table_1[[#This Row],[Adjusted\nSale Price]]/Table_Data_Table_1[[#This Row],[Resid\nSq Ft]],2),\"\")","v":""},{"$f":"IFERROR(IF(VLOOKUP(Table_Data_Table_1[[#This Row],[Item ID]],DataTable,11,FALSE)=0,\"N/A\",Table_Data_Table_1[[#This Row],[Adjusted\nSale Price]]/VLOOKUP(Table_Data_Table_1[[#This Row],[Item ID]],DataTable,11,FALSE)),\"\")","v":""},{"$f":"IF(IFERROR(VLOOKUP(Table_Data_Table_1[[#This Row],[Item ID]],DataTable,17,FALSE),\"\")=0,\"\",IFERROR(VLOOKUP(Table_Data_Table_1[[#This Row],[Item ID]],DataTable,17,FALSE),\"\"))","v":""}]
["",null,{"$f":"IF(Table_Data_Table_1[[#This Row],[Item ID]]=\"\",\"\",IFERROR(VLOOKUP(Table_Data_Table_1[[#This Row],[Item ID]],DataTable,16,FALSE),\"\"))","v":""},null,null,null,null,{"$f":"IF(Table_Data_Table_1[[#This Row],[Valuation Method]]=\"Vacant\",VLOOKUP(Table_Data_Table_1[[#This Row],[Item ID]],DataTable,6,FALSE)-VLOOKUP(Table_Data_Table_1[[#This Row],[Item ID]],DataTable,13,FALSE),IF(Table_Data_Table_1[[#This Row],[Valuation Method]]=\"Abstraction\",VLOOKUP(Table_Data_Table_1[[#This Row],[Item ID]],DataTable,6,FALSE)-VLOOKUP(Table_Data_Table_1[[#This Row],[Item ID]],DataTable,13,FALSE),IF(Table_Data_Table_1[[#This Row],[Valuation Method]]=\"Allocation\",VLOOKUP(Table_Data_Table_1[[#This Row],[Item ID]],DataTable,6,FALSE)*I336,\"\")))","v":""},{"$f":"IF(Table_Data_Table_1[[#This Row],[Valuation Method]]=\"Vacant\",\"N/A\",IF(Table_Data_Table_1[[#This Row],[Valuation Method]]=\"Abstraction\",Table_Data_Table_1[[#This Row],[Land\nResidual]]/VLOOKUP(Table_Data_Table_1[[#This Row],[Item ID]],DataTable,6,FALSE),IF(Table_Data_Table_1[[#This Row],[Valuation Method]]=\"Allocation\",'Global Settings'!$H$20,\"\")))","v":""},{"$f":"IFERROR(ROUND(Table_Data_Table_1[[#This Row],[Resid\nSq Ft]]/43560,3),\"\")","v":""},{"$f":"IF(Table_Data_Table_1[[#This Row],[Item ID]]=\"\",\"\",IFERROR(VLOOKUP(Table_Data_Table_1[[#This Row],[Item ID]],DataTable,10,FALSE)-VLOOKUP(Table_Data_Table_1[[#This Row],[Item ID]],DataTable,12,FALSE),\"\"))","v":""},{"$f":"IFERROR(Table_Data_Table_1[[#This Row],[Land\nResidual]]/Table_Data_Table_1[[#This Row],[Resid\nAcre]],\"\")","v":""},{"$f":"IFERROR(ROUND(Table_Data_Table_1[[#This Row],[Land\nResidual]]/Table_Data_Table_1[[#This Row],[Resid\nSq Ft]],2),\"\")","v":""},{"$f":"IF(Table_Data_Table_1[[#This Row],[Item ID]]=\"\",\"\",ROUND(DAYS360(Table_Data_Table_1[[#This Row],[Sale Date]],'Global Settings'!$H$5)/30,0))","v":""},{"$f":"IFERROR(IF(AND(Table_Data_Table_1[[#This Row],[Months To\nMid-Point]]<12.01,Table_Data_Table_1[[#This Row],[Months To\nMid-Point]]>-13),0,(Table_Data_Table_1[[#This Row],[Months To\nMid-Point]]*'Global Settings'!$H$6)),\"\")","v":""},{"$f":"IFERROR(Table_Data_Table_1[[#This Row],[Land\nResidual]]*(Table_Data_Table_1[[#This Row],[Time\nAdjust]]+1),\"\")","v":""},{"$f":"IFERROR(Table_Data_Table_1[[#This Row],[Adjusted\nSale Price]]/Table_Data_Table_1[[#This Row],[Resid\nAcre]],\"\")","v":""},{"$f":"IFERROR(ROUND(Table_Data_Table_1[[#This Row],[Adjusted\nSale Price]]/Table_Data_Table_1[[#This Row],[Resid\nSq Ft]],2),\"\")","v":""},{"$f":"IFERROR(IF(VLOOKUP(Table_Data_Table_1[[#This Row],[Item ID]],DataTable,11,FALSE)=0,\"N/A\",Table_Data_Table_1[[#This Row],[Adjusted\nSale Price]]/VLOOKUP(Table_Data_Table_1[[#This Row],[Item ID]],DataTable,11,FALSE)),\"\")","v":""},{"$f":"IF(IFERROR(VLOOKUP(Table_Data_Table_1[[#This Row],[Item ID]],DataTable,17,FALSE),\"\")=0,\"\",IFERROR(VLOOKUP(Table_Data_Table_1[[#This Row],[Item ID]],DataTable,17,FALSE),\"\"))","v":""}]
["",null,{"$f":"IF(Table_Data_Table_1[[#This Row],[Item ID]]=\"\",\"\",IFERROR(VLOOKUP(Table_Data_Table_1[[#This Row],[Item ID]],DataTable,16,FALSE),\"\"))","v":""},null,null,null,null,{"$f":"IF(Table_Data_Table_1[[#This Row],[Valuation Method]]=\"Vacant\",VLOOKUP(Table_Data_Table_1[[#This Row],[Item ID]],DataTable,6,FALSE)-VLOOKUP(Table_Data_Table_1[[#This Row],[Item ID]],DataTable,13,FALSE),IF(Table_Data_Table_1[[#This Row],[Valuation Method]]=\"Abstraction\",VLOOKUP(Table_Data_Table_1[[#This Row],[Item ID]],DataTable,6,FALSE)-VLOOKUP(Table_Data_Table_1[[#This Row],[Item ID]],DataTable,13,FALSE),IF(Table_Data_Table_1[[#This Row],[Valuation Method]]=\"Allocation\",VLOOKUP(Table_Data_Table_1[[#This Row],[Item ID]],DataTable,6,FALSE)*I337,\"\")))","v":""},{"$f":"IF(Table_Data_Table_1[[#This Row],[Valuation Method]]=\"Vacant\",\"N/A\",IF(Table_Data_Table_1[[#This Row],[Valuation Method]]=\"Abstraction\",Table_Data_Table_1[[#This Row],[Land\nResidual]]/VLOOKUP(Table_Data_Table_1[[#This Row],[Item ID]],DataTable,6,FALSE),IF(Table_Data_Table_1[[#This Row],[Valuation Method]]=\"Allocation\",'Global Settings'!$H$20,\"\")))","v":""},{"$f":"IFERROR(ROUND(Table_Data_Table_1[[#This Row],[Resid\nSq Ft]]/43560,3),\"\")","v":""},{"$f":"IF(Table_Data_Table_1[[#This Row],[Item ID]]=\"\",\"\",IFERROR(VLOOKUP(Table_Data_Table_1[[#This Row],[Item ID]],DataTable,10,FALSE)-VLOOKUP(Table_Data_Table_1[[#This Row],[Item ID]],DataTable,12,FALSE),\"\"))","v":""},{"$f":"IFERROR(Table_Data_Table_1[[#This Row],[Land\nResidual]]/Table_Data_Table_1[[#This Row],[Resid\nAcre]],\"\")","v":""},{"$f":"IFERROR(ROUND(Table_Data_Table_1[[#This Row],[Land\nResidual]]/Table_Data_Table_1[[#This Row],[Resid\nSq Ft]],2),\"\")","v":""},{"$f":"IF(Table_Data_Table_1[[#This Row],[Item ID]]=\"\",\"\",ROUND(DAYS360(Table_Data_Table_1[[#This Row],[Sale Date]],'Global Settings'!$H$5)/30,0))","v":""},{"$f":"IFERROR(IF(AND(Table_Data_Table_1[[#This Row],[Months To\nMid-Point]]<12.01,Table_Data_Table_1[[#This Row],[Months To\nMid-Point]]>-13),0,(Table_Data_Table_1[[#This Row],[Months To\nMid-Point]]*'Global Settings'!$H$6)),\"\")","v":""},{"$f":"IFERROR(Table_Data_Table_1[[#This Row],[Land\nResidual]]*(Table_Data_Table_1[[#This Row],[Time\nAdjust]]+1),\"\")","v":""},{"$f":"IFERROR(Table_Data_Table_1[[#This Row],[Adjusted\nSale Price]]/Table_Data_Table_1[[#This Row],[Resid\nAcre]],\"\")","v":""},{"$f":"IFERROR(ROUND(Table_Data_Table_1[[#This Row],[Adjusted\nSale Price]]/Table_Data_Table_1[[#This Row],[Resid\nSq Ft]],2),\"\")","v":""},{"$f":"IFERROR(IF(VLOOKUP(Table_Data_Table_1[[#This Row],[Item ID]],DataTable,11,FALSE)=0,\"N/A\",Table_Data_Table_1[[#This Row],[Adjusted\nSale Price]]/VLOOKUP(Table_Data_Table_1[[#This Row],[Item ID]],DataTable,11,FALSE)),\"\")","v":""},{"$f":"IF(IFERROR(VLOOKUP(Table_Data_Table_1[[#This Row],[Item ID]],DataTable,17,FALSE),\"\")=0,\"\",IFERROR(VLOOKUP(Table_Data_Table_1[[#This Row],[Item ID]],DataTable,17,FALSE),\"\"))","v":""}]
["",null,{"$f":"IF(Table_Data_Table_1[[#This Row],[Item ID]]=\"\",\"\",IFERROR(VLOOKUP(Table_Data_Table_1[[#This Row],[Item ID]],DataTable,16,FALSE),\"\"))","v":""},null,null,null,null,{"$f":"IF(Table_Data_Table_1[[#This Row],[Valuation Method]]=\"Vacant\",VLOOKUP(Table_Data_Table_1[[#This Row],[Item ID]],DataTable,6,FALSE)-VLOOKUP(Table_Data_Table_1[[#This Row],[Item ID]],DataTable,13,FALSE),IF(Table_Data_Table_1[[#This Row],[Valuation Method]]=\"Abstraction\",VLOOKUP(Table_Data_Table_1[[#This Row],[Item ID]],DataTable,6,FALSE)-VLOOKUP(Table_Data_Table_1[[#This Row],[Item ID]],DataTable,13,FALSE),IF(Table_Data_Table_1[[#This Row],[Valuation Method]]=\"Allocation\",VLOOKUP(Table_Data_Table_1[[#This Row],[Item ID]],DataTable,6,FALSE)*I338,\"\")))","v":""},{"$f":"IF(Table_Data_Table_1[[#This Row],[Valuation Method]]=\"Vacant\",\"N/A\",IF(Table_Data_Table_1[[#This Row],[Valuation Method]]=\"Abstraction\",Table_Data_Table_1[[#This Row],[Land\nResidual]]/VLOOKUP(Table_Data_Table_1[[#This Row],[Item ID]],DataTable,6,FALSE),IF(Table_Data_Table_1[[#This Row],[Valuation Method]]=\"Allocation\",'Global Settings'!$H$20,\"\")))","v":""},{"$f":"IFERROR(ROUND(Table_Data_Table_1[[#This Row],[Resid\nSq Ft]]/43560,3),\"\")","v":""},{"$f":"IF(Table_Data_Table_1[[#This Row],[Item ID]]=\"\",\"\",IFERROR(VLOOKUP(Table_Data_Table_1[[#This Row],[Item ID]],DataTable,10,FALSE)-VLOOKUP(Table_Data_Table_1[[#This Row],[Item ID]],DataTable,12,FALSE),\"\"))","v":""},{"$f":"IFERROR(Table_Data_Table_1[[#This Row],[Land\nResidual]]/Table_Data_Table_1[[#This Row],[Resid\nAcre]],\"\")","v":""},{"$f":"IFERROR(ROUND(Table_Data_Table_1[[#This Row],[Land\nResidual]]/Table_Data_Table_1[[#This Row],[Resid\nSq Ft]],2),\"\")","v":""},{"$f":"IF(Table_Data_Table_1[[#This Row],[Item ID]]=\"\",\"\",ROUND(DAYS360(Table_Data_Table_1[[#This Row],[Sale Date]],'Global Settings'!$H$5)/30,0))","v":""},{"$f":"IFERROR(IF(AND(Table_Data_Table_1[[#This Row],[Months To\nMid-Point]]<12.01,Table_Data_Table_1[[#This Row],[Months To\nMid-Point]]>-13),0,(Table_Data_Table_1[[#This Row],[Months To\nMid-Point]]*'Global Settings'!$H$6)),\"\")","v":""},{"$f":"IFERROR(Table_Data_Table_1[[#This Row],[Land\nResidual]]*(Table_Data_Table_1[[#This Row],[Time\nAdjust]]+1),\"\")","v":""},{"$f":"IFERROR(Table_Data_Table_1[[#This Row],[Adjusted\nSale Price]]/Table_Data_Table_1[[#This Row],[Resid\nAcre]],\"\")","v":""},{"$f":"IFERROR(ROUND(Table_Data_Table_1[[#This Row],[Adjusted\nSale Price]]/Table_Data_Table_1[[#This Row],[Resid\nSq Ft]],2),\"\")","v":""},{"$f":"IFERROR(IF(VLOOKUP(Table_Data_Table_1[[#This Row],[Item ID]],DataTable,11,FALSE)=0,\"N/A\",Table_Data_Table_1[[#This Row],[Adjusted\nSale Price]]/VLOOKUP(Table_Data_Table_1[[#This Row],[Item ID]],DataTable,11,FALSE)),\"\")","v":""},{"$f":"IF(IFERROR(VLOOKUP(Table_Data_Table_1[[#This Row],[Item ID]],DataTable,17,FALSE),\"\")=0,\"\",IFERROR(VLOOKUP(Table_Data_Table_1[[#This Row],[Item ID]],DataTable,17,FALSE),\"\"))","v":""}]
["",null,{"$f":"IF(Table_Data_Table_1[[#This Row],[Item ID]]=\"\",\"\",IFERROR(VLOOKUP(Table_Data_Table_1[[#This Row],[Item ID]],DataTable,16,FALSE),\"\"))","v":""},null,null,null,null,{"$f":"IF(Table_Data_Table_1[[#This Row],[Valuation Method]]=\"Vacant\",VLOOKUP(Table_Data_Table_1[[#This Row],[Item ID]],DataTable,6,FALSE)-VLOOKUP(Table_Data_Table_1[[#This Row],[Item ID]],DataTable,13,FALSE),IF(Table_Data_Table_1[[#This Row],[Valuation Method]]=\"Abstraction\",VLOOKUP(Table_Data_Table_1[[#This Row],[Item ID]],DataTable,6,FALSE)-VLOOKUP(Table_Data_Table_1[[#This Row],[Item ID]],DataTable,13,FALSE),IF(Table_Data_Table_1[[#This Row],[Valuation Method]]=\"Allocation\",VLOOKUP(Table_Data_Table_1[[#This Row],[Item ID]],DataTable,6,FALSE)*I339,\"\")))","v":""},{"$f":"IF(Table_Data_Table_1[[#This Row],[Valuation Method]]=\"Vacant\",\"N/A\",IF(Table_Data_Table_1[[#This Row],[Valuation Method]]=\"Abstraction\",Table_Data_Table_1[[#This Row],[Land\nResidual]]/VLOOKUP(Table_Data_Table_1[[#This Row],[Item ID]],DataTable,6,FALSE),IF(Table_Data_Table_1[[#This Row],[Valuation Method]]=\"Allocation\",'Global Settings'!$H$20,\"\")))","v":""},{"$f":"IFERROR(ROUND(Table_Data_Table_1[[#This Row],[Resid\nSq Ft]]/43560,3),\"\")","v":""},{"$f":"IF(Table_Data_Table_1[[#This Row],[Item ID]]=\"\",\"\",IFERROR(VLOOKUP(Table_Data_Table_1[[#This Row],[Item ID]],DataTable,10,FALSE)-VLOOKUP(Table_Data_Table_1[[#This Row],[Item ID]],DataTable,12,FALSE),\"\"))","v":""},{"$f":"IFERROR(Table_Data_Table_1[[#This Row],[Land\nResidual]]/Table_Data_Table_1[[#This Row],[Resid\nAcre]],\"\")","v":""},{"$f":"IFERROR(ROUND(Table_Data_Table_1[[#This Row],[Land\nResidual]]/Table_Data_Table_1[[#This Row],[Resid\nSq Ft]],2),\"\")","v":""},{"$f":"IF(Table_Data_Table_1[[#This Row],[Item ID]]=\"\",\"\",ROUND(DAYS360(Table_Data_Table_1[[#This Row],[Sale Date]],'Global Settings'!$H$5)/30,0))","v":""},{"$f":"IFERROR(IF(AND(Table_Data_Table_1[[#This Row],[Months To\nMid-Point]]<12.01,Table_Data_Table_1[[#This Row],[Months To\nMid-Point]]>-13),0,(Table_Data_Table_1[[#This Row],[Months To\nMid-Point]]*'Global Settings'!$H$6)),\"\")","v":""},{"$f":"IFERROR(Table_Data_Table_1[[#This Row],[Land\nResidual]]*(Table_Data_Table_1[[#This Row],[Time\nAdjust]]+1),\"\")","v":""},{"$f":"IFERROR(Table_Data_Table_1[[#This Row],[Adjusted\nSale Price]]/Table_Data_Table_1[[#This Row],[Resid\nAcre]],\"\")","v":""},{"$f":"IFERROR(ROUND(Table_Data_Table_1[[#This Row],[Adjusted\nSale Price]]/Table_Data_Table_1[[#This Row],[Resid\nSq Ft]],2),\"\")","v":""},{"$f":"IFERROR(IF(VLOOKUP(Table_Data_Table_1[[#This Row],[Item ID]],DataTable,11,FALSE)=0,\"N/A\",Table_Data_Table_1[[#This Row],[Adjusted\nSale Price]]/VLOOKUP(Table_Data_Table_1[[#This Row],[Item ID]],DataTable,11,FALSE)),\"\")","v":""},{"$f":"IF(IFERROR(VLOOKUP(Table_Data_Table_1[[#This Row],[Item ID]],DataTable,17,FALSE),\"\")=0,\"\",IFERROR(VLOOKUP(Table_Data_Table_1[[#This Row],[Item ID]],DataTable,17,FALSE),\"\"))","v":""}]
["",null,{"$f":"IF(Table_Data_Table_1[[#This Row],[Item ID]]=\"\",\"\",IFERROR(VLOOKUP(Table_Data_Table_1[[#This Row],[Item ID]],DataTable,16,FALSE),\"\"))","v":""},null,null,null,null,{"$f":"IF(Table_Data_Table_1[[#This Row],[Valuation Method]]=\"Vacant\",VLOOKUP(Table_Data_Table_1[[#This Row],[Item ID]],DataTable,6,FALSE)-VLOOKUP(Table_Data_Table_1[[#This Row],[Item ID]],DataTable,13,FALSE),IF(Table_Data_Table_1[[#This Row],[Valuation Method]]=\"Abstraction\",VLOOKUP(Table_Data_Table_1[[#This Row],[Item ID]],DataTable,6,FALSE)-VLOOKUP(Table_Data_Table_1[[#This Row],[Item ID]],DataTable,13,FALSE),IF(Table_Data_Table_1[[#This Row],[Valuation Method]]=\"Allocation\",VLOOKUP(Table_Data_Table_1[[#This Row],[Item ID]],DataTable,6,FALSE)*I340,\"\")))","v":""},{"$f":"IF(Table_Data_Table_1[[#This Row],[Valuation Method]]=\"Vacant\",\"N/A\",IF(Table_Data_Table_1[[#This Row],[Valuation Method]]=\"Abstraction\",Table_Data_Table_1[[#This Row],[Land\nResidual]]/VLOOKUP(Table_Data_Table_1[[#This Row],[Item ID]],DataTable,6,FALSE),IF(Table_Data_Table_1[[#This Row],[Valuation Method]]=\"Allocation\",'Global Settings'!$H$20,\"\")))","v":""},{"$f":"IFERROR(ROUND(Table_Data_Table_1[[#This Row],[Resid\nSq Ft]]/43560,3),\"\")","v":""},{"$f":"IF(Table_Data_Table_1[[#This Row],[Item ID]]=\"\",\"\",IFERROR(VLOOKUP(Table_Data_Table_1[[#This Row],[Item ID]],DataTable,10,FALSE)-VLOOKUP(Table_Data_Table_1[[#This Row],[Item ID]],DataTable,12,FALSE),\"\"))","v":""},{"$f":"IFERROR(Table_Data_Table_1[[#This Row],[Land\nResidual]]/Table_Data_Table_1[[#This Row],[Resid\nAcre]],\"\")","v":""},{"$f":"IFERROR(ROUND(Table_Data_Table_1[[#This Row],[Land\nResidual]]/Table_Data_Table_1[[#This Row],[Resid\nSq Ft]],2),\"\")","v":""},{"$f":"IF(Table_Data_Table_1[[#This Row],[Item ID]]=\"\",\"\",ROUND(DAYS360(Table_Data_Table_1[[#This Row],[Sale Date]],'Global Settings'!$H$5)/30,0))","v":""},{"$f":"IFERROR(IF(AND(Table_Data_Table_1[[#This Row],[Months To\nMid-Point]]<12.01,Table_Data_Table_1[[#This Row],[Months To\nMid-Point]]>-13),0,(Table_Data_Table_1[[#This Row],[Months To\nMid-Point]]*'Global Settings'!$H$6)),\"\")","v":""},{"$f":"IFERROR(Table_Data_Table_1[[#This Row],[Land\nResidual]]*(Table_Data_Table_1[[#This Row],[Time\nAdjust]]+1),\"\")","v":""},{"$f":"IFERROR(Table_Data_Table_1[[#This Row],[Adjusted\nSale Price]]/Table_Data_Table_1[[#This Row],[Resid\nAcre]],\"\")","v":""},{"$f":"IFERROR(ROUND(Table_Data_Table_1[[#This Row],[Adjusted\nSale Price]]/Table_Data_Table_1[[#This Row],[Resid\nSq Ft]],2),\"\")","v":""},{"$f":"IFERROR(IF(VLOOKUP(Table_Data_Table_1[[#This Row],[Item ID]],DataTable,11,FALSE)=0,\"N/A\",Table_Data_Table_1[[#This Row],[Adjusted\nSale Price]]/VLOOKUP(Table_Data_Table_1[[#This Row],[Item ID]],DataTable,11,FALSE)),\"\")","v":""},{"$f":"IF(IFERROR(VLOOKUP(Table_Data_Table_1[[#This Row],[Item ID]],DataTable,17,FALSE),\"\")=0,\"\",IFERROR(VLOOKUP(Table_Data_Table_1[[#This Row],[Item ID]],DataTable,17,FALSE),\"\"))","v":""}]
["",null,{"$f":"IF(Table_Data_Table_1[[#This Row],[Item ID]]=\"\",\"\",IFERROR(VLOOKUP(Table_Data_Table_1[[#This Row],[Item ID]],DataTable,16,FALSE),\"\"))","v":""},null,null,null,null,{"$f":"IF(Table_Data_Table_1[[#This Row],[Valuation Method]]=\"Vacant\",VLOOKUP(Table_Data_Table_1[[#This Row],[Item ID]],DataTable,6,FALSE)-VLOOKUP(Table_Data_Table_1[[#This Row],[Item ID]],DataTable,13,FALSE),IF(Table_Data_Table_1[[#This Row],[Valuation Method]]=\"Abstraction\",VLOOKUP(Table_Data_Table_1[[#This Row],[Item ID]],DataTable,6,FALSE)-VLOOKUP(Table_Data_Table_1[[#This Row],[Item ID]],DataTable,13,FALSE),IF(Table_Data_Table_1[[#This Row],[Valuation Method]]=\"Allocation\",VLOOKUP(Table_Data_Table_1[[#This Row],[Item ID]],DataTable,6,FALSE)*I341,\"\")))","v":""},{"$f":"IF(Table_Data_Table_1[[#This Row],[Valuation Method]]=\"Vacant\",\"N/A\",IF(Table_Data_Table_1[[#This Row],[Valuation Method]]=\"Abstraction\",Table_Data_Table_1[[#This Row],[Land\nResidual]]/VLOOKUP(Table_Data_Table_1[[#This Row],[Item ID]],DataTable,6,FALSE),IF(Table_Data_Table_1[[#This Row],[Valuation Method]]=\"Allocation\",'Global Settings'!$H$20,\"\")))","v":""},{"$f":"IFERROR(ROUND(Table_Data_Table_1[[#This Row],[Resid\nSq Ft]]/43560,3),\"\")","v":""},{"$f":"IF(Table_Data_Table_1[[#This Row],[Item ID]]=\"\",\"\",IFERROR(VLOOKUP(Table_Data_Table_1[[#This Row],[Item ID]],DataTable,10,FALSE)-VLOOKUP(Table_Data_Table_1[[#This Row],[Item ID]],DataTable,12,FALSE),\"\"))","v":""},{"$f":"IFERROR(Table_Data_Table_1[[#This Row],[Land\nResidual]]/Table_Data_Table_1[[#This Row],[Resid\nAcre]],\"\")","v":""},{"$f":"IFERROR(ROUND(Table_Data_Table_1[[#This Row],[Land\nResidual]]/Table_Data_Table_1[[#This Row],[Resid\nSq Ft]],2),\"\")","v":""},{"$f":"IF(Table_Data_Table_1[[#This Row],[Item ID]]=\"\",\"\",ROUND(DAYS360(Table_Data_Table_1[[#This Row],[Sale Date]],'Global Settings'!$H$5)/30,0))","v":""},{"$f":"IFERROR(IF(AND(Table_Data_Table_1[[#This Row],[Months To\nMid-Point]]<12.01,Table_Data_Table_1[[#This Row],[Months To\nMid-Point]]>-13),0,(Table_Data_Table_1[[#This Row],[Months To\nMid-Point]]*'Global Settings'!$H$6)),\"\")","v":""},{"$f":"IFERROR(Table_Data_Table_1[[#This Row],[Land\nResidual]]*(Table_Data_Table_1[[#This Row],[Time\nAdjust]]+1),\"\")","v":""},{"$f":"IFERROR(Table_Data_Table_1[[#This Row],[Adjusted\nSale Price]]/Table_Data_Table_1[[#This Row],[Resid\nAcre]],\"\")","v":""},{"$f":"IFERROR(ROUND(Table_Data_Table_1[[#This Row],[Adjusted\nSale Price]]/Table_Data_Table_1[[#This Row],[Resid\nSq Ft]],2),\"\")","v":""},{"$f":"IFERROR(IF(VLOOKUP(Table_Data_Table_1[[#This Row],[Item ID]],DataTable,11,FALSE)=0,\"N/A\",Table_Data_Table_1[[#This Row],[Adjusted\nSale Price]]/VLOOKUP(Table_Data_Table_1[[#This Row],[Item ID]],DataTable,11,FALSE)),\"\")","v":""},{"$f":"IF(IFERROR(VLOOKUP(Table_Data_Table_1[[#This Row],[Item ID]],DataTable,17,FALSE),\"\")=0,\"\",IFERROR(VLOOKUP(Table_Data_Table_1[[#This Row],[Item ID]],DataTable,17,FALSE),\"\"))","v":""}]
["",null,{"$f":"IF(Table_Data_Table_1[[#This Row],[Item ID]]=\"\",\"\",IFERROR(VLOOKUP(Table_Data_Table_1[[#This Row],[Item ID]],DataTable,16,FALSE),\"\"))","v":""},null,null,null,null,{"$f":"IF(Table_Data_Table_1[[#This Row],[Valuation Method]]=\"Vacant\",VLOOKUP(Table_Data_Table_1[[#This Row],[Item ID]],DataTable,6,FALSE)-VLOOKUP(Table_Data_Table_1[[#This Row],[Item ID]],DataTable,13,FALSE),IF(Table_Data_Table_1[[#This Row],[Valuation Method]]=\"Abstraction\",VLOOKUP(Table_Data_Table_1[[#This Row],[Item ID]],DataTable,6,FALSE)-VLOOKUP(Table_Data_Table_1[[#This Row],[Item ID]],DataTable,13,FALSE),IF(Table_Data_Table_1[[#This Row],[Valuation Method]]=\"Allocation\",VLOOKUP(Table_Data_Table_1[[#This Row],[Item ID]],DataTable,6,FALSE)*I342,\"\")))","v":""},{"$f":"IF(Table_Data_Table_1[[#This Row],[Valuation Method]]=\"Vacant\",\"N/A\",IF(Table_Data_Table_1[[#This Row],[Valuation Method]]=\"Abstraction\",Table_Data_Table_1[[#This Row],[Land\nResidual]]/VLOOKUP(Table_Data_Table_1[[#This Row],[Item ID]],DataTable,6,FALSE),IF(Table_Data_Table_1[[#This Row],[Valuation Method]]=\"Allocation\",'Global Settings'!$H$20,\"\")))","v":""},{"$f":"IFERROR(ROUND(Table_Data_Table_1[[#This Row],[Resid\nSq Ft]]/43560,3),\"\")","v":""},{"$f":"IF(Table_Data_Table_1[[#This Row],[Item ID]]=\"\",\"\",IFERROR(VLOOKUP(Table_Data_Table_1[[#This Row],[Item ID]],DataTable,10,FALSE)-VLOOKUP(Table_Data_Table_1[[#This Row],[Item ID]],DataTable,12,FALSE),\"\"))","v":""},{"$f":"IFERROR(Table_Data_Table_1[[#This Row],[Land\nResidual]]/Table_Data_Table_1[[#This Row],[Resid\nAcre]],\"\")","v":""},{"$f":"IFERROR(ROUND(Table_Data_Table_1[[#This Row],[Land\nResidual]]/Table_Data_Table_1[[#This Row],[Resid\nSq Ft]],2),\"\")","v":""},{"$f":"IF(Table_Data_Table_1[[#This Row],[Item ID]]=\"\",\"\",ROUND(DAYS360(Table_Data_Table_1[[#This Row],[Sale Date]],'Global Settings'!$H$5)/30,0))","v":""},{"$f":"IFERROR(IF(AND(Table_Data_Table_1[[#This Row],[Months To\nMid-Point]]<12.01,Table_Data_Table_1[[#This Row],[Months To\nMid-Point]]>-13),0,(Table_Data_Table_1[[#This Row],[Months To\nMid-Point]]*'Global Settings'!$H$6)),\"\")","v":""},{"$f":"IFERROR(Table_Data_Table_1[[#This Row],[Land\nResidual]]*(Table_Data_Table_1[[#This Row],[Time\nAdjust]]+1),\"\")","v":""},{"$f":"IFERROR(Table_Data_Table_1[[#This Row],[Adjusted\nSale Price]]/Table_Data_Table_1[[#This Row],[Resid\nAcre]],\"\")","v":""},{"$f":"IFERROR(ROUND(Table_Data_Table_1[[#This Row],[Adjusted\nSale Price]]/Table_Data_Table_1[[#This Row],[Resid\nSq Ft]],2),\"\")","v":""},{"$f":"IFERROR(IF(VLOOKUP(Table_Data_Table_1[[#This Row],[Item ID]],DataTable,11,FALSE)=0,\"N/A\",Table_Data_Table_1[[#This Row],[Adjusted\nSale Price]]/VLOOKUP(Table_Data_Table_1[[#This Row],[Item ID]],DataTable,11,FALSE)),\"\")","v":""},{"$f":"IF(IFERROR(VLOOKUP(Table_Data_Table_1[[#This Row],[Item ID]],DataTable,17,FALSE),\"\")=0,\"\",IFERROR(VLOOKUP(Table_Data_Table_1[[#This Row],[Item ID]],DataTable,17,FALSE),\"\"))","v":""}]
["",null,{"$f":"IF(Table_Data_Table_1[[#This Row],[Item ID]]=\"\",\"\",IFERROR(VLOOKUP(Table_Data_Table_1[[#This Row],[Item ID]],DataTable,16,FALSE),\"\"))","v":""},null,null,null,null,{"$f":"IF(Table_Data_Table_1[[#This Row],[Valuation Method]]=\"Vacant\",VLOOKUP(Table_Data_Table_1[[#This Row],[Item ID]],DataTable,6,FALSE)-VLOOKUP(Table_Data_Table_1[[#This Row],[Item ID]],DataTable,13,FALSE),IF(Table_Data_Table_1[[#This Row],[Valuation Method]]=\"Abstraction\",VLOOKUP(Table_Data_Table_1[[#This Row],[Item ID]],DataTable,6,FALSE)-VLOOKUP(Table_Data_Table_1[[#This Row],[Item ID]],DataTable,13,FALSE),IF(Table_Data_Table_1[[#This Row],[Valuation Method]]=\"Allocation\",VLOOKUP(Table_Data_Table_1[[#This Row],[Item ID]],DataTable,6,FALSE)*I343,\"\")))","v":""},{"$f":"IF(Table_Data_Table_1[[#This Row],[Valuation Method]]=\"Vacant\",\"N/A\",IF(Table_Data_Table_1[[#This Row],[Valuation Method]]=\"Abstraction\",Table_Data_Table_1[[#This Row],[Land\nResidual]]/VLOOKUP(Table_Data_Table_1[[#This Row],[Item ID]],DataTable,6,FALSE),IF(Table_Data_Table_1[[#This Row],[Valuation Method]]=\"Allocation\",'Global Settings'!$H$20,\"\")))","v":""},{"$f":"IFERROR(ROUND(Table_Data_Table_1[[#This Row],[Resid\nSq Ft]]/43560,3),\"\")","v":""},{"$f":"IF(Table_Data_Table_1[[#This Row],[Item ID]]=\"\",\"\",IFERROR(VLOOKUP(Table_Data_Table_1[[#This Row],[Item ID]],DataTable,10,FALSE)-VLOOKUP(Table_Data_Table_1[[#This Row],[Item ID]],DataTable,12,FALSE),\"\"))","v":""},{"$f":"IFERROR(Table_Data_Table_1[[#This Row],[Land\nResidual]]/Table_Data_Table_1[[#This Row],[Resid\nAcre]],\"\")","v":""},{"$f":"IFERROR(ROUND(Table_Data_Table_1[[#This Row],[Land\nResidual]]/Table_Data_Table_1[[#This Row],[Resid\nSq Ft]],2),\"\")","v":""},{"$f":"IF(Table_Data_Table_1[[#This Row],[Item ID]]=\"\",\"\",ROUND(DAYS360(Table_Data_Table_1[[#This Row],[Sale Date]],'Global Settings'!$H$5)/30,0))","v":""},{"$f":"IFERROR(IF(AND(Table_Data_Table_1[[#This Row],[Months To\nMid-Point]]<12.01,Table_Data_Table_1[[#This Row],[Months To\nMid-Point]]>-13),0,(Table_Data_Table_1[[#This Row],[Months To\nMid-Point]]*'Global Settings'!$H$6)),\"\")","v":""},{"$f":"IFERROR(Table_Data_Table_1[[#This Row],[Land\nResidual]]*(Table_Data_Table_1[[#This Row],[Time\nAdjust]]+1),\"\")","v":""},{"$f":"IFERROR(Table_Data_Table_1[[#This Row],[Adjusted\nSale Price]]/Table_Data_Table_1[[#This Row],[Resid\nAcre]],\"\")","v":""},{"$f":"IFERROR(ROUND(Table_Data_Table_1[[#This Row],[Adjusted\nSale Price]]/Table_Data_Table_1[[#This Row],[Resid\nSq Ft]],2),\"\")","v":""},{"$f":"IFERROR(IF(VLOOKUP(Table_Data_Table_1[[#This Row],[Item ID]],DataTable,11,FALSE)=0,\"N/A\",Table_Data_Table_1[[#This Row],[Adjusted\nSale Price]]/VLOOKUP(Table_Data_Table_1[[#This Row],[Item ID]],DataTable,11,FALSE)),\"\")","v":""},{"$f":"IF(IFERROR(VLOOKUP(Table_Data_Table_1[[#This Row],[Item ID]],DataTable,17,FALSE),\"\")=0,\"\",IFERROR(VLOOKUP(Table_Data_Table_1[[#This Row],[Item ID]],DataTable,17,FALSE),\"\"))","v":""}]
["",null,{"$f":"IF(Table_Data_Table_1[[#This Row],[Item ID]]=\"\",\"\",IFERROR(VLOOKUP(Table_Data_Table_1[[#This Row],[Item ID]],DataTable,16,FALSE),\"\"))","v":""},null,null,null,null,{"$f":"IF(Table_Data_Table_1[[#This Row],[Valuation Method]]=\"Vacant\",VLOOKUP(Table_Data_Table_1[[#This Row],[Item ID]],DataTable,6,FALSE)-VLOOKUP(Table_Data_Table_1[[#This Row],[Item ID]],DataTable,13,FALSE),IF(Table_Data_Table_1[[#This Row],[Valuation Method]]=\"Abstraction\",VLOOKUP(Table_Data_Table_1[[#This Row],[Item ID]],DataTable,6,FALSE)-VLOOKUP(Table_Data_Table_1[[#This Row],[Item ID]],DataTable,13,FALSE),IF(Table_Data_Table_1[[#This Row],[Valuation Method]]=\"Allocation\",VLOOKUP(Table_Data_Table_1[[#This Row],[Item ID]],DataTable,6,FALSE)*I344,\"\")))","v":""},{"$f":"IF(Table_Data_Table_1[[#This Row],[Valuation Method]]=\"Vacant\",\"N/A\",IF(Table_Data_Table_1[[#This Row],[Valuation Method]]=\"Abstraction\",Table_Data_Table_1[[#This Row],[Land\nResidual]]/VLOOKUP(Table_Data_Table_1[[#This Row],[Item ID]],DataTable,6,FALSE),IF(Table_Data_Table_1[[#This Row],[Valuation Method]]=\"Allocation\",'Global Settings'!$H$20,\"\")))","v":""},{"$f":"IFERROR(ROUND(Table_Data_Table_1[[#This Row],[Resid\nSq Ft]]/43560,3),\"\")","v":""},{"$f":"IF(Table_Data_Table_1[[#This Row],[Item ID]]=\"\",\"\",IFERROR(VLOOKUP(Table_Data_Table_1[[#This Row],[Item ID]],DataTable,10,FALSE)-VLOOKUP(Table_Data_Table_1[[#This Row],[Item ID]],DataTable,12,FALSE),\"\"))","v":""},{"$f":"IFERROR(Table_Data_Table_1[[#This Row],[Land\nResidual]]/Table_Data_Table_1[[#This Row],[Resid\nAcre]],\"\")","v":""},{"$f":"IFERROR(ROUND(Table_Data_Table_1[[#This Row],[Land\nResidual]]/Table_Data_Table_1[[#This Row],[Resid\nSq Ft]],2),\"\")","v":""},{"$f":"IF(Table_Data_Table_1[[#This Row],[Item ID]]=\"\",\"\",ROUND(DAYS360(Table_Data_Table_1[[#This Row],[Sale Date]],'Global Settings'!$H$5)/30,0))","v":""},{"$f":"IFERROR(IF(AND(Table_Data_Table_1[[#This Row],[Months To\nMid-Point]]<12.01,Table_Data_Table_1[[#This Row],[Months To\nMid-Point]]>-13),0,(Table_Data_Table_1[[#This Row],[Months To\nMid-Point]]*'Global Settings'!$H$6)),\"\")","v":""},{"$f":"IFERROR(Table_Data_Table_1[[#This Row],[Land\nResidual]]*(Table_Data_Table_1[[#This Row],[Time\nAdjust]]+1),\"\")","v":""},{"$f":"IFERROR(Table_Data_Table_1[[#This Row],[Adjusted\nSale Price]]/Table_Data_Table_1[[#This Row],[Resid\nAcre]],\"\")","v":""},{"$f":"IFERROR(ROUND(Table_Data_Table_1[[#This Row],[Adjusted\nSale Price]]/Table_Data_Table_1[[#This Row],[Resid\nSq Ft]],2),\"\")","v":""},{"$f":"IFERROR(IF(VLOOKUP(Table_Data_Table_1[[#This Row],[Item ID]],DataTable,11,FALSE)=0,\"N/A\",Table_Data_Table_1[[#This Row],[Adjusted\nSale Price]]/VLOOKUP(Table_Data_Table_1[[#This Row],[Item ID]],DataTable,11,FALSE)),\"\")","v":""},{"$f":"IF(IFERROR(VLOOKUP(Table_Data_Table_1[[#This Row],[Item ID]],DataTable,17,FALSE),\"\")=0,\"\",IFERROR(VLOOKUP(Table_Data_Table_1[[#This Row],[Item ID]],DataTable,17,FALSE),\"\"))","v":""}]
["",null,{"$f":"IF(Table_Data_Table_1[[#This Row],[Item ID]]=\"\",\"\",IFERROR(VLOOKUP(Table_Data_Table_1[[#This Row],[Item ID]],DataTable,16,FALSE),\"\"))","v":""},null,null,null,null,{"$f":"IF(Table_Data_Table_1[[#This Row],[Valuation Method]]=\"Vacant\",VLOOKUP(Table_Data_Table_1[[#This Row],[Item ID]],DataTable,6,FALSE)-VLOOKUP(Table_Data_Table_1[[#This Row],[Item ID]],DataTable,13,FALSE),IF(Table_Data_Table_1[[#This Row],[Valuation Method]]=\"Abstraction\",VLOOKUP(Table_Data_Table_1[[#This Row],[Item ID]],DataTable,6,FALSE)-VLOOKUP(Table_Data_Table_1[[#This Row],[Item ID]],DataTable,13,FALSE),IF(Table_Data_Table_1[[#This Row],[Valuation Method]]=\"Allocation\",VLOOKUP(Table_Data_Table_1[[#This Row],[Item ID]],DataTable,6,FALSE)*I345,\"\")))","v":""},{"$f":"IF(Table_Data_Table_1[[#This Row],[Valuation Method]]=\"Vacant\",\"N/A\",IF(Table_Data_Table_1[[#This Row],[Valuation Method]]=\"Abstraction\",Table_Data_Table_1[[#This Row],[Land\nResidual]]/VLOOKUP(Table_Data_Table_1[[#This Row],[Item ID]],DataTable,6,FALSE),IF(Table_Data_Table_1[[#This Row],[Valuation Method]]=\"Allocation\",'Global Settings'!$H$20,\"\")))","v":""},{"$f":"IFERROR(ROUND(Table_Data_Table_1[[#This Row],[Resid\nSq Ft]]/43560,3),\"\")","v":""},{"$f":"IF(Table_Data_Table_1[[#This Row],[Item ID]]=\"\",\"\",IFERROR(VLOOKUP(Table_Data_Table_1[[#This Row],[Item ID]],DataTable,10,FALSE)-VLOOKUP(Table_Data_Table_1[[#This Row],[Item ID]],DataTable,12,FALSE),\"\"))","v":""},{"$f":"IFERROR(Table_Data_Table_1[[#This Row],[Land\nResidual]]/Table_Data_Table_1[[#This Row],[Resid\nAcre]],\"\")","v":""},{"$f":"IFERROR(ROUND(Table_Data_Table_1[[#This Row],[Land\nResidual]]/Table_Data_Table_1[[#This Row],[Resid\nSq Ft]],2),\"\")","v":""},{"$f":"IF(Table_Data_Table_1[[#This Row],[Item ID]]=\"\",\"\",ROUND(DAYS360(Table_Data_Table_1[[#This Row],[Sale Date]],'Global Settings'!$H$5)/30,0))","v":""},{"$f":"IFERROR(IF(AND(Table_Data_Table_1[[#This Row],[Months To\nMid-Point]]<12.01,Table_Data_Table_1[[#This Row],[Months To\nMid-Point]]>-13),0,(Table_Data_Table_1[[#This Row],[Months To\nMid-Point]]*'Global Settings'!$H$6)),\"\")","v":""},{"$f":"IFERROR(Table_Data_Table_1[[#This Row],[Land\nResidual]]*(Table_Data_Table_1[[#This Row],[Time\nAdjust]]+1),\"\")","v":""},{"$f":"IFERROR(Table_Data_Table_1[[#This Row],[Adjusted\nSale Price]]/Table_Data_Table_1[[#This Row],[Resid\nAcre]],\"\")","v":""},{"$f":"IFERROR(ROUND(Table_Data_Table_1[[#This Row],[Adjusted\nSale Price]]/Table_Data_Table_1[[#This Row],[Resid\nSq Ft]],2),\"\")","v":""},{"$f":"IFERROR(IF(VLOOKUP(Table_Data_Table_1[[#This Row],[Item ID]],DataTable,11,FALSE)=0,\"N/A\",Table_Data_Table_1[[#This Row],[Adjusted\nSale Price]]/VLOOKUP(Table_Data_Table_1[[#This Row],[Item ID]],DataTable,11,FALSE)),\"\")","v":""},{"$f":"IF(IFERROR(VLOOKUP(Table_Data_Table_1[[#This Row],[Item ID]],DataTable,17,FALSE),\"\")=0,\"\",IFERROR(VLOOKUP(Table_Data_Table_1[[#This Row],[Item ID]],DataTable,17,FALSE),\"\"))","v":""}]
["",null,{"$f":"IF(Table_Data_Table_1[[#This Row],[Item ID]]=\"\",\"\",IFERROR(VLOOKUP(Table_Data_Table_1[[#This Row],[Item ID]],DataTable,16,FALSE),\"\"))","v":""},null,null,null,null,{"$f":"IF(Table_Data_Table_1[[#This Row],[Valuation Method]]=\"Vacant\",VLOOKUP(Table_Data_Table_1[[#This Row],[Item ID]],DataTable,6,FALSE)-VLOOKUP(Table_Data_Table_1[[#This Row],[Item ID]],DataTable,13,FALSE),IF(Table_Data_Table_1[[#This Row],[Valuation Method]]=\"Abstraction\",VLOOKUP(Table_Data_Table_1[[#This Row],[Item ID]],DataTable,6,FALSE)-VLOOKUP(Table_Data_Table_1[[#This Row],[Item ID]],DataTable,13,FALSE),IF(Table_Data_Table_1[[#This Row],[Valuation Method]]=\"Allocation\",VLOOKUP(Table_Data_Table_1[[#This Row],[Item ID]],DataTable,6,FALSE)*I346,\"\")))","v":""},{"$f":"IF(Table_Data_Table_1[[#This Row],[Valuation Method]]=\"Vacant\",\"N/A\",IF(Table_Data_Table_1[[#This Row],[Valuation Method]]=\"Abstraction\",Table_Data_Table_1[[#This Row],[Land\nResidual]]/VLOOKUP(Table_Data_Table_1[[#This Row],[Item ID]],DataTable,6,FALSE),IF(Table_Data_Table_1[[#This Row],[Valuation Method]]=\"Allocation\",'Global Settings'!$H$20,\"\")))","v":""},{"$f":"IFERROR(ROUND(Table_Data_Table_1[[#This Row],[Resid\nSq Ft]]/43560,3),\"\")","v":""},{"$f":"IF(Table_Data_Table_1[[#This Row],[Item ID]]=\"\",\"\",IFERROR(VLOOKUP(Table_Data_Table_1[[#This Row],[Item ID]],DataTable,10,FALSE)-VLOOKUP(Table_Data_Table_1[[#This Row],[Item ID]],DataTable,12,FALSE),\"\"))","v":""},{"$f":"IFERROR(Table_Data_Table_1[[#This Row],[Land\nResidual]]/Table_Data_Table_1[[#This Row],[Resid\nAcre]],\"\")","v":""},{"$f":"IFERROR(ROUND(Table_Data_Table_1[[#This Row],[Land\nResidual]]/Table_Data_Table_1[[#This Row],[Resid\nSq Ft]],2),\"\")","v":""},{"$f":"IF(Table_Data_Table_1[[#This Row],[Item ID]]=\"\",\"\",ROUND(DAYS360(Table_Data_Table_1[[#This Row],[Sale Date]],'Global Settings'!$H$5)/30,0))","v":""},{"$f":"IFERROR(IF(AND(Table_Data_Table_1[[#This Row],[Months To\nMid-Point]]<12.01,Table_Data_Table_1[[#This Row],[Months To\nMid-Point]]>-13),0,(Table_Data_Table_1[[#This Row],[Months To\nMid-Point]]*'Global Settings'!$H$6)),\"\")","v":""},{"$f":"IFERROR(Table_Data_Table_1[[#This Row],[Land\nResidual]]*(Table_Data_Table_1[[#This Row],[Time\nAdjust]]+1),\"\")","v":""},{"$f":"IFERROR(Table_Data_Table_1[[#This Row],[Adjusted\nSale Price]]/Table_Data_Table_1[[#This Row],[Resid\nAcre]],\"\")","v":""},{"$f":"IFERROR(ROUND(Table_Data_Table_1[[#This Row],[Adjusted\nSale Price]]/Table_Data_Table_1[[#This Row],[Resid\nSq Ft]],2),\"\")","v":""},{"$f":"IFERROR(IF(VLOOKUP(Table_Data_Table_1[[#This Row],[Item ID]],DataTable,11,FALSE)=0,\"N/A\",Table_Data_Table_1[[#This Row],[Adjusted\nSale Price]]/VLOOKUP(Table_Data_Table_1[[#This Row],[Item ID]],DataTable,11,FALSE)),\"\")","v":""},{"$f":"IF(IFERROR(VLOOKUP(Table_Data_Table_1[[#This Row],[Item ID]],DataTable,17,FALSE),\"\")=0,\"\",IFERROR(VLOOKUP(Table_Data_Table_1[[#This Row],[Item ID]],DataTable,17,FALSE),\"\"))","v":""}]
["",null,{"$f":"IF(Table_Data_Table_1[[#This Row],[Item ID]]=\"\",\"\",IFERROR(VLOOKUP(Table_Data_Table_1[[#This Row],[Item ID]],DataTable,16,FALSE),\"\"))","v":""},null,null,null,null,{"$f":"IF(Table_Data_Table_1[[#This Row],[Valuation Method]]=\"Vacant\",VLOOKUP(Table_Data_Table_1[[#This Row],[Item ID]],DataTable,6,FALSE)-VLOOKUP(Table_Data_Table_1[[#This Row],[Item ID]],DataTable,13,FALSE),IF(Table_Data_Table_1[[#This Row],[Valuation Method]]=\"Abstraction\",VLOOKUP(Table_Data_Table_1[[#This Row],[Item ID]],DataTable,6,FALSE)-VLOOKUP(Table_Data_Table_1[[#This Row],[Item ID]],DataTable,13,FALSE),IF(Table_Data_Table_1[[#This Row],[Valuation Method]]=\"Allocation\",VLOOKUP(Table_Data_Table_1[[#This Row],[Item ID]],DataTable,6,FALSE)*I347,\"\")))","v":""},{"$f":"IF(Table_Data_Table_1[[#This Row],[Valuation Method]]=\"Vacant\",\"N/A\",IF(Table_Data_Table_1[[#This Row],[Valuation Method]]=\"Abstraction\",Table_Data_Table_1[[#This Row],[Land\nResidual]]/VLOOKUP(Table_Data_Table_1[[#This Row],[Item ID]],DataTable,6,FALSE),IF(Table_Data_Table_1[[#This Row],[Valuation Method]]=\"Allocation\",'Global Settings'!$H$20,\"\")))","v":""},{"$f":"IFERROR(ROUND(Table_Data_Table_1[[#This Row],[Resid\nSq Ft]]/43560,3),\"\")","v":""},{"$f":"IF(Table_Data_Table_1[[#This Row],[Item ID]]=\"\",\"\",IFERROR(VLOOKUP(Table_Data_Table_1[[#This Row],[Item ID]],DataTable,10,FALSE)-VLOOKUP(Table_Data_Table_1[[#This Row],[Item ID]],DataTable,12,FALSE),\"\"))","v":""},{"$f":"IFERROR(Table_Data_Table_1[[#This Row],[Land\nResidual]]/Table_Data_Table_1[[#This Row],[Resid\nAcre]],\"\")","v":""},{"$f":"IFERROR(ROUND(Table_Data_Table_1[[#This Row],[Land\nResidual]]/Table_Data_Table_1[[#This Row],[Resid\nSq Ft]],2),\"\")","v":""},{"$f":"IF(Table_Data_Table_1[[#This Row],[Item ID]]=\"\",\"\",ROUND(DAYS360(Table_Data_Table_1[[#This Row],[Sale Date]],'Global Settings'!$H$5)/30,0))","v":""},{"$f":"IFERROR(IF(AND(Table_Data_Table_1[[#This Row],[Months To\nMid-Point]]<12.01,Table_Data_Table_1[[#This Row],[Months To\nMid-Point]]>-13),0,(Table_Data_Table_1[[#This Row],[Months To\nMid-Point]]*'Global Settings'!$H$6)),\"\")","v":""},{"$f":"IFERROR(Table_Data_Table_1[[#This Row],[Land\nResidual]]*(Table_Data_Table_1[[#This Row],[Time\nAdjust]]+1),\"\")","v":""},{"$f":"IFERROR(Table_Data_Table_1[[#This Row],[Adjusted\nSale Price]]/Table_Data_Table_1[[#This Row],[Resid\nAcre]],\"\")","v":""},{"$f":"IFERROR(ROUND(Table_Data_Table_1[[#This Row],[Adjusted\nSale Price]]/Table_Data_Table_1[[#This Row],[Resid\nSq Ft]],2),\"\")","v":""},{"$f":"IFERROR(IF(VLOOKUP(Table_Data_Table_1[[#This Row],[Item ID]],DataTable,11,FALSE)=0,\"N/A\",Table_Data_Table_1[[#This Row],[Adjusted\nSale Price]]/VLOOKUP(Table_Data_Table_1[[#This Row],[Item ID]],DataTable,11,FALSE)),\"\")","v":""},{"$f":"IF(IFERROR(VLOOKUP(Table_Data_Table_1[[#This Row],[Item ID]],DataTable,17,FALSE),\"\")=0,\"\",IFERROR(VLOOKUP(Table_Data_Table_1[[#This Row],[Item ID]],DataTable,17,FALSE),\"\"))","v":""}]
["",null,{"$f":"IF(Table_Data_Table_1[[#This Row],[Item ID]]=\"\",\"\",IFERROR(VLOOKUP(Table_Data_Table_1[[#This Row],[Item ID]],DataTable,16,FALSE),\"\"))","v":""},null,null,null,null,{"$f":"IF(Table_Data_Table_1[[#This Row],[Valuation Method]]=\"Vacant\",VLOOKUP(Table_Data_Table_1[[#This Row],[Item ID]],DataTable,6,FALSE)-VLOOKUP(Table_Data_Table_1[[#This Row],[Item ID]],DataTable,13,FALSE),IF(Table_Data_Table_1[[#This Row],[Valuation Method]]=\"Abstraction\",VLOOKUP(Table_Data_Table_1[[#This Row],[Item ID]],DataTable,6,FALSE)-VLOOKUP(Table_Data_Table_1[[#This Row],[Item ID]],DataTable,13,FALSE),IF(Table_Data_Table_1[[#This Row],[Valuation Method]]=\"Allocation\",VLOOKUP(Table_Data_Table_1[[#This Row],[Item ID]],DataTable,6,FALSE)*I348,\"\")))","v":""},{"$f":"IF(Table_Data_Table_1[[#This Row],[Valuation Method]]=\"Vacant\",\"N/A\",IF(Table_Data_Table_1[[#This Row],[Valuation Method]]=\"Abstraction\",Table_Data_Table_1[[#This Row],[Land\nResidual]]/VLOOKUP(Table_Data_Table_1[[#This Row],[Item ID]],DataTable,6,FALSE),IF(Table_Data_Table_1[[#This Row],[Valuation Method]]=\"Allocation\",'Global Settings'!$H$20,\"\")))","v":""},{"$f":"IFERROR(ROUND(Table_Data_Table_1[[#This Row],[Resid\nSq Ft]]/43560,3),\"\")","v":""},{"$f":"IF(Table_Data_Table_1[[#This Row],[Item ID]]=\"\",\"\",IFERROR(VLOOKUP(Table_Data_Table_1[[#This Row],[Item ID]],DataTable,10,FALSE)-VLOOKUP(Table_Data_Table_1[[#This Row],[Item ID]],DataTable,12,FALSE),\"\"))","v":""},{"$f":"IFERROR(Table_Data_Table_1[[#This Row],[Land\nResidual]]/Table_Data_Table_1[[#This Row],[Resid\nAcre]],\"\")","v":""},{"$f":"IFERROR(ROUND(Table_Data_Table_1[[#This Row],[Land\nResidual]]/Table_Data_Table_1[[#This Row],[Resid\nSq Ft]],2),\"\")","v":""},{"$f":"IF(Table_Data_Table_1[[#This Row],[Item ID]]=\"\",\"\",ROUND(DAYS360(Table_Data_Table_1[[#This Row],[Sale Date]],'Global Settings'!$H$5)/30,0))","v":""},{"$f":"IFERROR(IF(AND(Table_Data_Table_1[[#This Row],[Months To\nMid-Point]]<12.01,Table_Data_Table_1[[#This Row],[Months To\nMid-Point]]>-13),0,(Table_Data_Table_1[[#This Row],[Months To\nMid-Point]]*'Global Settings'!$H$6)),\"\")","v":""},{"$f":"IFERROR(Table_Data_Table_1[[#This Row],[Land\nResidual]]*(Table_Data_Table_1[[#This Row],[Time\nAdjust]]+1),\"\")","v":""},{"$f":"IFERROR(Table_Data_Table_1[[#This Row],[Adjusted\nSale Price]]/Table_Data_Table_1[[#This Row],[Resid\nAcre]],\"\")","v":""},{"$f":"IFERROR(ROUND(Table_Data_Table_1[[#This Row],[Adjusted\nSale Price]]/Table_Data_Table_1[[#This Row],[Resid\nSq Ft]],2),\"\")","v":""},{"$f":"IFERROR(IF(VLOOKUP(Table_Data_Table_1[[#This Row],[Item ID]],DataTable,11,FALSE)=0,\"N/A\",Table_Data_Table_1[[#This Row],[Adjusted\nSale Price]]/VLOOKUP(Table_Data_Table_1[[#This Row],[Item ID]],DataTable,11,FALSE)),\"\")","v":""},{"$f":"IF(IFERROR(VLOOKUP(Table_Data_Table_1[[#This Row],[Item ID]],DataTable,17,FALSE),\"\")=0,\"\",IFERROR(VLOOKUP(Table_Data_Table_1[[#This Row],[Item ID]],DataTable,17,FALSE),\"\"))","v":""}]
["",null,{"$f":"IF(Table_Data_Table_1[[#This Row],[Item ID]]=\"\",\"\",IFERROR(VLOOKUP(Table_Data_Table_1[[#This Row],[Item ID]],DataTable,16,FALSE),\"\"))","v":""},null,null,null,null,{"$f":"IF(Table_Data_Table_1[[#This Row],[Valuation Method]]=\"Vacant\",VLOOKUP(Table_Data_Table_1[[#This Row],[Item ID]],DataTable,6,FALSE)-VLOOKUP(Table_Data_Table_1[[#This Row],[Item ID]],DataTable,13,FALSE),IF(Table_Data_Table_1[[#This Row],[Valuation Method]]=\"Abstraction\",VLOOKUP(Table_Data_Table_1[[#This Row],[Item ID]],DataTable,6,FALSE)-VLOOKUP(Table_Data_Table_1[[#This Row],[Item ID]],DataTable,13,FALSE),IF(Table_Data_Table_1[[#This Row],[Valuation Method]]=\"Allocation\",VLOOKUP(Table_Data_Table_1[[#This Row],[Item ID]],DataTable,6,FALSE)*I349,\"\")))","v":""},{"$f":"IF(Table_Data_Table_1[[#This Row],[Valuation Method]]=\"Vacant\",\"N/A\",IF(Table_Data_Table_1[[#This Row],[Valuation Method]]=\"Abstraction\",Table_Data_Table_1[[#This Row],[Land\nResidual]]/VLOOKUP(Table_Data_Table_1[[#This Row],[Item ID]],DataTable,6,FALSE),IF(Table_Data_Table_1[[#This Row],[Valuation Method]]=\"Allocation\",'Global Settings'!$H$20,\"\")))","v":""},{"$f":"IFERROR(ROUND(Table_Data_Table_1[[#This Row],[Resid\nSq Ft]]/43560,3),\"\")","v":""},{"$f":"IF(Table_Data_Table_1[[#This Row],[Item ID]]=\"\",\"\",IFERROR(VLOOKUP(Table_Data_Table_1[[#This Row],[Item ID]],DataTable,10,FALSE)-VLOOKUP(Table_Data_Table_1[[#This Row],[Item ID]],DataTable,12,FALSE),\"\"))","v":""},{"$f":"IFERROR(Table_Data_Table_1[[#This Row],[Land\nResidual]]/Table_Data_Table_1[[#This Row],[Resid\nAcre]],\"\")","v":""},{"$f":"IFERROR(ROUND(Table_Data_Table_1[[#This Row],[Land\nResidual]]/Table_Data_Table_1[[#This Row],[Resid\nSq Ft]],2),\"\")","v":""},{"$f":"IF(Table_Data_Table_1[[#This Row],[Item ID]]=\"\",\"\",ROUND(DAYS360(Table_Data_Table_1[[#This Row],[Sale Date]],'Global Settings'!$H$5)/30,0))","v":""},{"$f":"IFERROR(IF(AND(Table_Data_Table_1[[#This Row],[Months To\nMid-Point]]<12.01,Table_Data_Table_1[[#This Row],[Months To\nMid-Point]]>-13),0,(Table_Data_Table_1[[#This Row],[Months To\nMid-Point]]*'Global Settings'!$H$6)),\"\")","v":""},{"$f":"IFERROR(Table_Data_Table_1[[#This Row],[Land\nResidual]]*(Table_Data_Table_1[[#This Row],[Time\nAdjust]]+1),\"\")","v":""},{"$f":"IFERROR(Table_Data_Table_1[[#This Row],[Adjusted\nSale Price]]/Table_Data_Table_1[[#This Row],[Resid\nAcre]],\"\")","v":""},{"$f":"IFERROR(ROUND(Table_Data_Table_1[[#This Row],[Adjusted\nSale Price]]/Table_Data_Table_1[[#This Row],[Resid\nSq Ft]],2),\"\")","v":""},{"$f":"IFERROR(IF(VLOOKUP(Table_Data_Table_1[[#This Row],[Item ID]],DataTable,11,FALSE)=0,\"N/A\",Table_Data_Table_1[[#This Row],[Adjusted\nSale Price]]/VLOOKUP(Table_Data_Table_1[[#This Row],[Item ID]],DataTable,11,FALSE)),\"\")","v":""},{"$f":"IF(IFERROR(VLOOKUP(Table_Data_Table_1[[#This Row],[Item ID]],DataTable,17,FALSE),\"\")=0,\"\",IFERROR(VLOOKUP(Table_Data_Table_1[[#This Row],[Item ID]],DataTable,17,FALSE),\"\"))","v":""}]
["",null,{"$f":"IF(Table_Data_Table_1[[#This Row],[Item ID]]=\"\",\"\",IFERROR(VLOOKUP(Table_Data_Table_1[[#This Row],[Item ID]],DataTable,16,FALSE),\"\"))","v":""},null,null,null,null,{"$f":"IF(Table_Data_Table_1[[#This Row],[Valuation Method]]=\"Vacant\",VLOOKUP(Table_Data_Table_1[[#This Row],[Item ID]],DataTable,6,FALSE)-VLOOKUP(Table_Data_Table_1[[#This Row],[Item ID]],DataTable,13,FALSE),IF(Table_Data_Table_1[[#This Row],[Valuation Method]]=\"Abstraction\",VLOOKUP(Table_Data_Table_1[[#This Row],[Item ID]],DataTable,6,FALSE)-VLOOKUP(Table_Data_Table_1[[#This Row],[Item ID]],DataTable,13,FALSE),IF(Table_Data_Table_1[[#This Row],[Valuation Method]]=\"Allocation\",VLOOKUP(Table_Data_Table_1[[#This Row],[Item ID]],DataTable,6,FALSE)*I350,\"\")))","v":""},{"$f":"IF(Table_Data_Table_1[[#This Row],[Valuation Method]]=\"Vacant\",\"N/A\",IF(Table_Data_Table_1[[#This Row],[Valuation Method]]=\"Abstraction\",Table_Data_Table_1[[#This Row],[Land\nResidual]]/VLOOKUP(Table_Data_Table_1[[#This Row],[Item ID]],DataTable,6,FALSE),IF(Table_Data_Table_1[[#This Row],[Valuation Method]]=\"Allocation\",'Global Settings'!$H$20,\"\")))","v":""},{"$f":"IFERROR(ROUND(Table_Data_Table_1[[#This Row],[Resid\nSq Ft]]/43560,3),\"\")","v":""},{"$f":"IF(Table_Data_Table_1[[#This Row],[Item ID]]=\"\",\"\",IFERROR(VLOOKUP(Table_Data_Table_1[[#This Row],[Item ID]],DataTable,10,FALSE)-VLOOKUP(Table_Data_Table_1[[#This Row],[Item ID]],DataTable,12,FALSE),\"\"))","v":""},{"$f":"IFERROR(Table_Data_Table_1[[#This Row],[Land\nResidual]]/Table_Data_Table_1[[#This Row],[Resid\nAcre]],\"\")","v":""},{"$f":"IFERROR(ROUND(Table_Data_Table_1[[#This Row],[Land\nResidual]]/Table_Data_Table_1[[#This Row],[Resid\nSq Ft]],2),\"\")","v":""},{"$f":"IF(Table_Data_Table_1[[#This Row],[Item ID]]=\"\",\"\",ROUND(DAYS360(Table_Data_Table_1[[#This Row],[Sale Date]],'Global Settings'!$H$5)/30,0))","v":""},{"$f":"IFERROR(IF(AND(Table_Data_Table_1[[#This Row],[Months To\nMid-Point]]<12.01,Table_Data_Table_1[[#This Row],[Months To\nMid-Point]]>-13),0,(Table_Data_Table_1[[#This Row],[Months To\nMid-Point]]*'Global Settings'!$H$6)),\"\")","v":""},{"$f":"IFERROR(Table_Data_Table_1[[#This Row],[Land\nResidual]]*(Table_Data_Table_1[[#This Row],[Time\nAdjust]]+1),\"\")","v":""},{"$f":"IFERROR(Table_Data_Table_1[[#This Row],[Adjusted\nSale Price]]/Table_Data_Table_1[[#This Row],[Resid\nAcre]],\"\")","v":""},{"$f":"IFERROR(ROUND(Table_Data_Table_1[[#This Row],[Adjusted\nSale Price]]/Table_Data_Table_1[[#This Row],[Resid\nSq Ft]],2),\"\")","v":""},{"$f":"IFERROR(IF(VLOOKUP(Table_Data_Table_1[[#This Row],[Item ID]],DataTable,11,FALSE)=0,\"N/A\",Table_Data_Table_1[[#This Row],[Adjusted\nSale Price]]/VLOOKUP(Table_Data_Table_1[[#This Row],[Item ID]],DataTable,11,FALSE)),\"\")","v":""},{"$f":"IF(IFERROR(VLOOKUP(Table_Data_Table_1[[#This Row],[Item ID]],DataTable,17,FALSE),\"\")=0,\"\",IFERROR(VLOOKUP(Table_Data_Table_1[[#This Row],[Item ID]],DataTable,17,FALSE),\"\"))","v":""}]
["",null,{"$f":"IF(Table_Data_Table_1[[#This Row],[Item ID]]=\"\",\"\",IFERROR(VLOOKUP(Table_Data_Table_1[[#This Row],[Item ID]],DataTable,16,FALSE),\"\"))","v":""},null,null,null,null,{"$f":"IF(Table_Data_Table_1[[#This Row],[Valuation Method]]=\"Vacant\",VLOOKUP(Table_Data_Table_1[[#This Row],[Item ID]],DataTable,6,FALSE)-VLOOKUP(Table_Data_Table_1[[#This Row],[Item ID]],DataTable,13,FALSE),IF(Table_Data_Table_1[[#This Row],[Valuation Method]]=\"Abstraction\",VLOOKUP(Table_Data_Table_1[[#This Row],[Item ID]],DataTable,6,FALSE)-VLOOKUP(Table_Data_Table_1[[#This Row],[Item ID]],DataTable,13,FALSE),IF(Table_Data_Table_1[[#This Row],[Valuation Method]]=\"Allocation\",VLOOKUP(Table_Data_Table_1[[#This Row],[Item ID]],DataTable,6,FALSE)*I351,\"\")))","v":""},{"$f":"IF(Table_Data_Table_1[[#This Row],[Valuation Method]]=\"Vacant\",\"N/A\",IF(Table_Data_Table_1[[#This Row],[Valuation Method]]=\"Abstraction\",Table_Data_Table_1[[#This Row],[Land\nResidual]]/VLOOKUP(Table_Data_Table_1[[#This Row],[Item ID]],DataTable,6,FALSE),IF(Table_Data_Table_1[[#This Row],[Valuation Method]]=\"Allocation\",'Global Settings'!$H$20,\"\")))","v":""},{"$f":"IFERROR(ROUND(Table_Data_Table_1[[#This Row],[Resid\nSq Ft]]/43560,3),\"\")","v":""},{"$f":"IF(Table_Data_Table_1[[#This Row],[Item ID]]=\"\",\"\",IFERROR(VLOOKUP(Table_Data_Table_1[[#This Row],[Item ID]],DataTable,10,FALSE)-VLOOKUP(Table_Data_Table_1[[#This Row],[Item ID]],DataTable,12,FALSE),\"\"))","v":""},{"$f":"IFERROR(Table_Data_Table_1[[#This Row],[Land\nResidual]]/Table_Data_Table_1[[#This Row],[Resid\nAcre]],\"\")","v":""},{"$f":"IFERROR(ROUND(Table_Data_Table_1[[#This Row],[Land\nResidual]]/Table_Data_Table_1[[#This Row],[Resid\nSq Ft]],2),\"\")","v":""},{"$f":"IF(Table_Data_Table_1[[#This Row],[Item ID]]=\"\",\"\",ROUND(DAYS360(Table_Data_Table_1[[#This Row],[Sale Date]],'Global Settings'!$H$5)/30,0))","v":""},{"$f":"IFERROR(IF(AND(Table_Data_Table_1[[#This Row],[Months To\nMid-Point]]<12.01,Table_Data_Table_1[[#This Row],[Months To\nMid-Point]]>-13),0,(Table_Data_Table_1[[#This Row],[Months To\nMid-Point]]*'Global Settings'!$H$6)),\"\")","v":""},{"$f":"IFERROR(Table_Data_Table_1[[#This Row],[Land\nResidual]]*(Table_Data_Table_1[[#This Row],[Time\nAdjust]]+1),\"\")","v":""},{"$f":"IFERROR(Table_Data_Table_1[[#This Row],[Adjusted\nSale Price]]/Table_Data_Table_1[[#This Row],[Resid\nAcre]],\"\")","v":""},{"$f":"IFERROR(ROUND(Table_Data_Table_1[[#This Row],[Adjusted\nSale Price]]/Table_Data_Table_1[[#This Row],[Resid\nSq Ft]],2),\"\")","v":""},{"$f":"IFERROR(IF(VLOOKUP(Table_Data_Table_1[[#This Row],[Item ID]],DataTable,11,FALSE)=0,\"N/A\",Table_Data_Table_1[[#This Row],[Adjusted\nSale Price]]/VLOOKUP(Table_Data_Table_1[[#This Row],[Item ID]],DataTable,11,FALSE)),\"\")","v":""},{"$f":"IF(IFERROR(VLOOKUP(Table_Data_Table_1[[#This Row],[Item ID]],DataTable,17,FALSE),\"\")=0,\"\",IFERROR(VLOOKUP(Table_Data_Table_1[[#This Row],[Item ID]],DataTable,17,FALSE),\"\"))","v":""}]
["",null,{"$f":"IF(Table_Data_Table_1[[#This Row],[Item ID]]=\"\",\"\",IFERROR(VLOOKUP(Table_Data_Table_1[[#This Row],[Item ID]],DataTable,16,FALSE),\"\"))","v":""},null,null,null,null,{"$f":"IF(Table_Data_Table_1[[#This Row],[Valuation Method]]=\"Vacant\",VLOOKUP(Table_Data_Table_1[[#This Row],[Item ID]],DataTable,6,FALSE)-VLOOKUP(Table_Data_Table_1[[#This Row],[Item ID]],DataTable,13,FALSE),IF(Table_Data_Table_1[[#This Row],[Valuation Method]]=\"Abstraction\",VLOOKUP(Table_Data_Table_1[[#This Row],[Item ID]],DataTable,6,FALSE)-VLOOKUP(Table_Data_Table_1[[#This Row],[Item ID]],DataTable,13,FALSE),IF(Table_Data_Table_1[[#This Row],[Valuation Method]]=\"Allocation\",VLOOKUP(Table_Data_Table_1[[#This Row],[Item ID]],DataTable,6,FALSE)*I352,\"\")))","v":""},{"$f":"IF(Table_Data_Table_1[[#This Row],[Valuation Method]]=\"Vacant\",\"N/A\",IF(Table_Data_Table_1[[#This Row],[Valuation Method]]=\"Abstraction\",Table_Data_Table_1[[#This Row],[Land\nResidual]]/VLOOKUP(Table_Data_Table_1[[#This Row],[Item ID]],DataTable,6,FALSE),IF(Table_Data_Table_1[[#This Row],[Valuation Method]]=\"Allocation\",'Global Settings'!$H$20,\"\")))","v":""},{"$f":"IFERROR(ROUND(Table_Data_Table_1[[#This Row],[Resid\nSq Ft]]/43560,3),\"\")","v":""},{"$f":"IF(Table_Data_Table_1[[#This Row],[Item ID]]=\"\",\"\",IFERROR(VLOOKUP(Table_Data_Table_1[[#This Row],[Item ID]],DataTable,10,FALSE)-VLOOKUP(Table_Data_Table_1[[#This Row],[Item ID]],DataTable,12,FALSE),\"\"))","v":""},{"$f":"IFERROR(Table_Data_Table_1[[#This Row],[Land\nResidual]]/Table_Data_Table_1[[#This Row],[Resid\nAcre]],\"\")","v":""},{"$f":"IFERROR(ROUND(Table_Data_Table_1[[#This Row],[Land\nResidual]]/Table_Data_Table_1[[#This Row],[Resid\nSq Ft]],2),\"\")","v":""},{"$f":"IF(Table_Data_Table_1[[#This Row],[Item ID]]=\"\",\"\",ROUND(DAYS360(Table_Data_Table_1[[#This Row],[Sale Date]],'Global Settings'!$H$5)/30,0))","v":""},{"$f":"IFERROR(IF(AND(Table_Data_Table_1[[#This Row],[Months To\nMid-Point]]<12.01,Table_Data_Table_1[[#This Row],[Months To\nMid-Point]]>-13),0,(Table_Data_Table_1[[#This Row],[Months To\nMid-Point]]*'Global Settings'!$H$6)),\"\")","v":""},{"$f":"IFERROR(Table_Data_Table_1[[#This Row],[Land\nResidual]]*(Table_Data_Table_1[[#This Row],[Time\nAdjust]]+1),\"\")","v":""},{"$f":"IFERROR(Table_Data_Table_1[[#This Row],[Adjusted\nSale Price]]/Table_Data_Table_1[[#This Row],[Resid\nAcre]],\"\")","v":""},{"$f":"IFERROR(ROUND(Table_Data_Table_1[[#This Row],[Adjusted\nSale Price]]/Table_Data_Table_1[[#This Row],[Resid\nSq Ft]],2),\"\")","v":""},{"$f":"IFERROR(IF(VLOOKUP(Table_Data_Table_1[[#This Row],[Item ID]],DataTable,11,FALSE)=0,\"N/A\",Table_Data_Table_1[[#This Row],[Adjusted\nSale Price]]/VLOOKUP(Table_Data_Table_1[[#This Row],[Item ID]],DataTable,11,FALSE)),\"\")","v":""},{"$f":"IF(IFERROR(VLOOKUP(Table_Data_Table_1[[#This Row],[Item ID]],DataTable,17,FALSE),\"\")=0,\"\",IFERROR(VLOOKUP(Table_Data_Table_1[[#This Row],[Item ID]],DataTable,17,FALSE),\"\"))","v":""}]
["",null,{"$f":"IF(Table_Data_Table_1[[#This Row],[Item ID]]=\"\",\"\",IFERROR(VLOOKUP(Table_Data_Table_1[[#This Row],[Item ID]],DataTable,16,FALSE),\"\"))","v":""},null,null,null,null,{"$f":"IF(Table_Data_Table_1[[#This Row],[Valuation Method]]=\"Vacant\",VLOOKUP(Table_Data_Table_1[[#This Row],[Item ID]],DataTable,6,FALSE)-VLOOKUP(Table_Data_Table_1[[#This Row],[Item ID]],DataTable,13,FALSE),IF(Table_Data_Table_1[[#This Row],[Valuation Method]]=\"Abstraction\",VLOOKUP(Table_Data_Table_1[[#This Row],[Item ID]],DataTable,6,FALSE)-VLOOKUP(Table_Data_Table_1[[#This Row],[Item ID]],DataTable,13,FALSE),IF(Table_Data_Table_1[[#This Row],[Valuation Method]]=\"Allocation\",VLOOKUP(Table_Data_Table_1[[#This Row],[Item ID]],DataTable,6,FALSE)*I353,\"\")))","v":""},{"$f":"IF(Table_Data_Table_1[[#This Row],[Valuation Method]]=\"Vacant\",\"N/A\",IF(Table_Data_Table_1[[#This Row],[Valuation Method]]=\"Abstraction\",Table_Data_Table_1[[#This Row],[Land\nResidual]]/VLOOKUP(Table_Data_Table_1[[#This Row],[Item ID]],DataTable,6,FALSE),IF(Table_Data_Table_1[[#This Row],[Valuation Method]]=\"Allocation\",'Global Settings'!$H$20,\"\")))","v":""},{"$f":"IFERROR(ROUND(Table_Data_Table_1[[#This Row],[Resid\nSq Ft]]/43560,3),\"\")","v":""},{"$f":"IF(Table_Data_Table_1[[#This Row],[Item ID]]=\"\",\"\",IFERROR(VLOOKUP(Table_Data_Table_1[[#This Row],[Item ID]],DataTable,10,FALSE)-VLOOKUP(Table_Data_Table_1[[#This Row],[Item ID]],DataTable,12,FALSE),\"\"))","v":""},{"$f":"IFERROR(Table_Data_Table_1[[#This Row],[Land\nResidual]]/Table_Data_Table_1[[#This Row],[Resid\nAcre]],\"\")","v":""},{"$f":"IFERROR(ROUND(Table_Data_Table_1[[#This Row],[Land\nResidual]]/Table_Data_Table_1[[#This Row],[Resid\nSq Ft]],2),\"\")","v":""},{"$f":"IF(Table_Data_Table_1[[#This Row],[Item ID]]=\"\",\"\",ROUND(DAYS360(Table_Data_Table_1[[#This Row],[Sale Date]],'Global Settings'!$H$5)/30,0))","v":""},{"$f":"IFERROR(IF(AND(Table_Data_Table_1[[#This Row],[Months To\nMid-Point]]<12.01,Table_Data_Table_1[[#This Row],[Months To\nMid-Point]]>-13),0,(Table_Data_Table_1[[#This Row],[Months To\nMid-Point]]*'Global Settings'!$H$6)),\"\")","v":""},{"$f":"IFERROR(Table_Data_Table_1[[#This Row],[Land\nResidual]]*(Table_Data_Table_1[[#This Row],[Time\nAdjust]]+1),\"\")","v":""},{"$f":"IFERROR(Table_Data_Table_1[[#This Row],[Adjusted\nSale Price]]/Table_Data_Table_1[[#This Row],[Resid\nAcre]],\"\")","v":""},{"$f":"IFERROR(ROUND(Table_Data_Table_1[[#This Row],[Adjusted\nSale Price]]/Table_Data_Table_1[[#This Row],[Resid\nSq Ft]],2),\"\")","v":""},{"$f":"IFERROR(IF(VLOOKUP(Table_Data_Table_1[[#This Row],[Item ID]],DataTable,11,FALSE)=0,\"N/A\",Table_Data_Table_1[[#This Row],[Adjusted\nSale Price]]/VLOOKUP(Table_Data_Table_1[[#This Row],[Item ID]],DataTable,11,FALSE)),\"\")","v":""},{"$f":"IF(IFERROR(VLOOKUP(Table_Data_Table_1[[#This Row],[Item ID]],DataTable,17,FALSE),\"\")=0,\"\",IFERROR(VLOOKUP(Table_Data_Table_1[[#This Row],[Item ID]],DataTable,17,FALSE),\"\"))","v":""}]
["",null,{"$f":"IF(Table_Data_Table_1[[#This Row],[Item ID]]=\"\",\"\",IFERROR(VLOOKUP(Table_Data_Table_1[[#This Row],[Item ID]],DataTable,16,FALSE),\"\"))","v":""},null,null,null,null,{"$f":"IF(Table_Data_Table_1[[#This Row],[Valuation Method]]=\"Vacant\",VLOOKUP(Table_Data_Table_1[[#This Row],[Item ID]],DataTable,6,FALSE)-VLOOKUP(Table_Data_Table_1[[#This Row],[Item ID]],DataTable,13,FALSE),IF(Table_Data_Table_1[[#This Row],[Valuation Method]]=\"Abstraction\",VLOOKUP(Table_Data_Table_1[[#This Row],[Item ID]],DataTable,6,FALSE)-VLOOKUP(Table_Data_Table_1[[#This Row],[Item ID]],DataTable,13,FALSE),IF(Table_Data_Table_1[[#This Row],[Valuation Method]]=\"Allocation\",VLOOKUP(Table_Data_Table_1[[#This Row],[Item ID]],DataTable,6,FALSE)*I354,\"\")))","v":""},{"$f":"IF(Table_Data_Table_1[[#This Row],[Valuation Method]]=\"Vacant\",\"N/A\",IF(Table_Data_Table_1[[#This Row],[Valuation Method]]=\"Abstraction\",Table_Data_Table_1[[#This Row],[Land\nResidual]]/VLOOKUP(Table_Data_Table_1[[#This Row],[Item ID]],DataTable,6,FALSE),IF(Table_Data_Table_1[[#This Row],[Valuation Method]]=\"Allocation\",'Global Settings'!$H$20,\"\")))","v":""},{"$f":"IFERROR(ROUND(Table_Data_Table_1[[#This Row],[Resid\nSq Ft]]/43560,3),\"\")","v":""},{"$f":"IF(Table_Data_Table_1[[#This Row],[Item ID]]=\"\",\"\",IFERROR(VLOOKUP(Table_Data_Table_1[[#This Row],[Item ID]],DataTable,10,FALSE)-VLOOKUP(Table_Data_Table_1[[#This Row],[Item ID]],DataTable,12,FALSE),\"\"))","v":""},{"$f":"IFERROR(Table_Data_Table_1[[#This Row],[Land\nResidual]]/Table_Data_Table_1[[#This Row],[Resid\nAcre]],\"\")","v":""},{"$f":"IFERROR(ROUND(Table_Data_Table_1[[#This Row],[Land\nResidual]]/Table_Data_Table_1[[#This Row],[Resid\nSq Ft]],2),\"\")","v":""},{"$f":"IF(Table_Data_Table_1[[#This Row],[Item ID]]=\"\",\"\",ROUND(DAYS360(Table_Data_Table_1[[#This Row],[Sale Date]],'Global Settings'!$H$5)/30,0))","v":""},{"$f":"IFERROR(IF(AND(Table_Data_Table_1[[#This Row],[Months To\nMid-Point]]<12.01,Table_Data_Table_1[[#This Row],[Months To\nMid-Point]]>-13),0,(Table_Data_Table_1[[#This Row],[Months To\nMid-Point]]*'Global Settings'!$H$6)),\"\")","v":""},{"$f":"IFERROR(Table_Data_Table_1[[#This Row],[Land\nResidual]]*(Table_Data_Table_1[[#This Row],[Time\nAdjust]]+1),\"\")","v":""},{"$f":"IFERROR(Table_Data_Table_1[[#This Row],[Adjusted\nSale Price]]/Table_Data_Table_1[[#This Row],[Resid\nAcre]],\"\")","v":""},{"$f":"IFERROR(ROUND(Table_Data_Table_1[[#This Row],[Adjusted\nSale Price]]/Table_Data_Table_1[[#This Row],[Resid\nSq Ft]],2),\"\")","v":""},{"$f":"IFERROR(IF(VLOOKUP(Table_Data_Table_1[[#This Row],[Item ID]],DataTable,11,FALSE)=0,\"N/A\",Table_Data_Table_1[[#This Row],[Adjusted\nSale Price]]/VLOOKUP(Table_Data_Table_1[[#This Row],[Item ID]],DataTable,11,FALSE)),\"\")","v":""},{"$f":"IF(IFERROR(VLOOKUP(Table_Data_Table_1[[#This Row],[Item ID]],DataTable,17,FALSE),\"\")=0,\"\",IFERROR(VLOOKUP(Table_Data_Table_1[[#This Row],[Item ID]],DataTable,17,FALSE),\"\"))","v":""}]
["",null,{"$f":"IF(Table_Data_Table_1[[#This Row],[Item ID]]=\"\",\"\",IFERROR(VLOOKUP(Table_Data_Table_1[[#This Row],[Item ID]],DataTable,16,FALSE),\"\"))","v":""},null,null,null,null,{"$f":"IF(Table_Data_Table_1[[#This Row],[Valuation Method]]=\"Vacant\",VLOOKUP(Table_Data_Table_1[[#This Row],[Item ID]],DataTable,6,FALSE)-VLOOKUP(Table_Data_Table_1[[#This Row],[Item ID]],DataTable,13,FALSE),IF(Table_Data_Table_1[[#This Row],[Valuation Method]]=\"Abstraction\",VLOOKUP(Table_Data_Table_1[[#This Row],[Item ID]],DataTable,6,FALSE)-VLOOKUP(Table_Data_Table_1[[#This Row],[Item ID]],DataTable,13,FALSE),IF(Table_Data_Table_1[[#This Row],[Valuation Method]]=\"Allocation\",VLOOKUP(Table_Data_Table_1[[#This Row],[Item ID]],DataTable,6,FALSE)*I355,\"\")))","v":""},{"$f":"IF(Table_Data_Table_1[[#This Row],[Valuation Method]]=\"Vacant\",\"N/A\",IF(Table_Data_Table_1[[#This Row],[Valuation Method]]=\"Abstraction\",Table_Data_Table_1[[#This Row],[Land\nResidual]]/VLOOKUP(Table_Data_Table_1[[#This Row],[Item ID]],DataTable,6,FALSE),IF(Table_Data_Table_1[[#This Row],[Valuation Method]]=\"Allocation\",'Global Settings'!$H$20,\"\")))","v":""},{"$f":"IFERROR(ROUND(Table_Data_Table_1[[#This Row],[Resid\nSq Ft]]/43560,3),\"\")","v":""},{"$f":"IF(Table_Data_Table_1[[#This Row],[Item ID]]=\"\",\"\",IFERROR(VLOOKUP(Table_Data_Table_1[[#This Row],[Item ID]],DataTable,10,FALSE)-VLOOKUP(Table_Data_Table_1[[#This Row],[Item ID]],DataTable,12,FALSE),\"\"))","v":""},{"$f":"IFERROR(Table_Data_Table_1[[#This Row],[Land\nResidual]]/Table_Data_Table_1[[#This Row],[Resid\nAcre]],\"\")","v":""},{"$f":"IFERROR(ROUND(Table_Data_Table_1[[#This Row],[Land\nResidual]]/Table_Data_Table_1[[#This Row],[Resid\nSq Ft]],2),\"\")","v":""},{"$f":"IF(Table_Data_Table_1[[#This Row],[Item ID]]=\"\",\"\",ROUND(DAYS360(Table_Data_Table_1[[#This Row],[Sale Date]],'Global Settings'!$H$5)/30,0))","v":""},{"$f":"IFERROR(IF(AND(Table_Data_Table_1[[#This Row],[Months To\nMid-Point]]<12.01,Table_Data_Table_1[[#This Row],[Months To\nMid-Point]]>-13),0,(Table_Data_Table_1[[#This Row],[Months To\nMid-Point]]*'Global Settings'!$H$6)),\"\")","v":""},{"$f":"IFERROR(Table_Data_Table_1[[#This Row],[Land\nResidual]]*(Table_Data_Table_1[[#This Row],[Time\nAdjust]]+1),\"\")","v":""},{"$f":"IFERROR(Table_Data_Table_1[[#This Row],[Adjusted\nSale Price]]/Table_Data_Table_1[[#This Row],[Resid\nAcre]],\"\")","v":""},{"$f":"IFERROR(ROUND(Table_Data_Table_1[[#This Row],[Adjusted\nSale Price]]/Table_Data_Table_1[[#This Row],[Resid\nSq Ft]],2),\"\")","v":""},{"$f":"IFERROR(IF(VLOOKUP(Table_Data_Table_1[[#This Row],[Item ID]],DataTable,11,FALSE)=0,\"N/A\",Table_Data_Table_1[[#This Row],[Adjusted\nSale Price]]/VLOOKUP(Table_Data_Table_1[[#This Row],[Item ID]],DataTable,11,FALSE)),\"\")","v":""},{"$f":"IF(IFERROR(VLOOKUP(Table_Data_Table_1[[#This Row],[Item ID]],DataTable,17,FALSE),\"\")=0,\"\",IFERROR(VLOOKUP(Table_Data_Table_1[[#This Row],[Item ID]],DataTable,17,FALSE),\"\"))","v":""}]
["",null,{"$f":"IF(Table_Data_Table_1[[#This Row],[Item ID]]=\"\",\"\",IFERROR(VLOOKUP(Table_Data_Table_1[[#This Row],[Item ID]],DataTable,16,FALSE),\"\"))","v":""},null,null,null,null,{"$f":"IF(Table_Data_Table_1[[#This Row],[Valuation Method]]=\"Vacant\",VLOOKUP(Table_Data_Table_1[[#This Row],[Item ID]],DataTable,6,FALSE)-VLOOKUP(Table_Data_Table_1[[#This Row],[Item ID]],DataTable,13,FALSE),IF(Table_Data_Table_1[[#This Row],[Valuation Method]]=\"Abstraction\",VLOOKUP(Table_Data_Table_1[[#This Row],[Item ID]],DataTable,6,FALSE)-VLOOKUP(Table_Data_Table_1[[#This Row],[Item ID]],DataTable,13,FALSE),IF(Table_Data_Table_1[[#This Row],[Valuation Method]]=\"Allocation\",VLOOKUP(Table_Data_Table_1[[#This Row],[Item ID]],DataTable,6,FALSE)*I356,\"\")))","v":""},{"$f":"IF(Table_Data_Table_1[[#This Row],[Valuation Method]]=\"Vacant\",\"N/A\",IF(Table_Data_Table_1[[#This Row],[Valuation Method]]=\"Abstraction\",Table_Data_Table_1[[#This Row],[Land\nResidual]]/VLOOKUP(Table_Data_Table_1[[#This Row],[Item ID]],DataTable,6,FALSE),IF(Table_Data_Table_1[[#This Row],[Valuation Method]]=\"Allocation\",'Global Settings'!$H$20,\"\")))","v":""},{"$f":"IFERROR(ROUND(Table_Data_Table_1[[#This Row],[Resid\nSq Ft]]/43560,3),\"\")","v":""},{"$f":"IF(Table_Data_Table_1[[#This Row],[Item ID]]=\"\",\"\",IFERROR(VLOOKUP(Table_Data_Table_1[[#This Row],[Item ID]],DataTable,10,FALSE)-VLOOKUP(Table_Data_Table_1[[#This Row],[Item ID]],DataTable,12,FALSE),\"\"))","v":""},{"$f":"IFERROR(Table_Data_Table_1[[#This Row],[Land\nResidual]]/Table_Data_Table_1[[#This Row],[Resid\nAcre]],\"\")","v":""},{"$f":"IFERROR(ROUND(Table_Data_Table_1[[#This Row],[Land\nResidual]]/Table_Data_Table_1[[#This Row],[Resid\nSq Ft]],2),\"\")","v":""},{"$f":"IF(Table_Data_Table_1[[#This Row],[Item ID]]=\"\",\"\",ROUND(DAYS360(Table_Data_Table_1[[#This Row],[Sale Date]],'Global Settings'!$H$5)/30,0))","v":""},{"$f":"IFERROR(IF(AND(Table_Data_Table_1[[#This Row],[Months To\nMid-Point]]<12.01,Table_Data_Table_1[[#This Row],[Months To\nMid-Point]]>-13),0,(Table_Data_Table_1[[#This Row],[Months To\nMid-Point]]*'Global Settings'!$H$6)),\"\")","v":""},{"$f":"IFERROR(Table_Data_Table_1[[#This Row],[Land\nResidual]]*(Table_Data_Table_1[[#This Row],[Time\nAdjust]]+1),\"\")","v":""},{"$f":"IFERROR(Table_Data_Table_1[[#This Row],[Adjusted\nSale Price]]/Table_Data_Table_1[[#This Row],[Resid\nAcre]],\"\")","v":""},{"$f":"IFERROR(ROUND(Table_Data_Table_1[[#This Row],[Adjusted\nSale Price]]/Table_Data_Table_1[[#This Row],[Resid\nSq Ft]],2),\"\")","v":""},{"$f":"IFERROR(IF(VLOOKUP(Table_Data_Table_1[[#This Row],[Item ID]],DataTable,11,FALSE)=0,\"N/A\",Table_Data_Table_1[[#This Row],[Adjusted\nSale Price]]/VLOOKUP(Table_Data_Table_1[[#This Row],[Item ID]],DataTable,11,FALSE)),\"\")","v":""},{"$f":"IF(IFERROR(VLOOKUP(Table_Data_Table_1[[#This Row],[Item ID]],DataTable,17,FALSE),\"\")=0,\"\",IFERROR(VLOOKUP(Table_Data_Table_1[[#This Row],[Item ID]],DataTable,17,FALSE),\"\"))","v":""}]
["",null,{"$f":"IF(Table_Data_Table_1[[#This Row],[Item ID]]=\"\",\"\",IFERROR(VLOOKUP(Table_Data_Table_1[[#This Row],[Item ID]],DataTable,16,FALSE),\"\"))","v":""},null,null,null,null,{"$f":"IF(Table_Data_Table_1[[#This Row],[Valuation Method]]=\"Vacant\",VLOOKUP(Table_Data_Table_1[[#This Row],[Item ID]],DataTable,6,FALSE)-VLOOKUP(Table_Data_Table_1[[#This Row],[Item ID]],DataTable,13,FALSE),IF(Table_Data_Table_1[[#This Row],[Valuation Method]]=\"Abstraction\",VLOOKUP(Table_Data_Table_1[[#This Row],[Item ID]],DataTable,6,FALSE)-VLOOKUP(Table_Data_Table_1[[#This Row],[Item ID]],DataTable,13,FALSE),IF(Table_Data_Table_1[[#This Row],[Valuation Method]]=\"Allocation\",VLOOKUP(Table_Data_Table_1[[#This Row],[Item ID]],DataTable,6,FALSE)*I357,\"\")))","v":""},{"$f":"IF(Table_Data_Table_1[[#This Row],[Valuation Method]]=\"Vacant\",\"N/A\",IF(Table_Data_Table_1[[#This Row],[Valuation Method]]=\"Abstraction\",Table_Data_Table_1[[#This Row],[Land\nResidual]]/VLOOKUP(Table_Data_Table_1[[#This Row],[Item ID]],DataTable,6,FALSE),IF(Table_Data_Table_1[[#This Row],[Valuation Method]]=\"Allocation\",'Global Settings'!$H$20,\"\")))","v":""},{"$f":"IFERROR(ROUND(Table_Data_Table_1[[#This Row],[Resid\nSq Ft]]/43560,3),\"\")","v":""},{"$f":"IF(Table_Data_Table_1[[#This Row],[Item ID]]=\"\",\"\",IFERROR(VLOOKUP(Table_Data_Table_1[[#This Row],[Item ID]],DataTable,10,FALSE)-VLOOKUP(Table_Data_Table_1[[#This Row],[Item ID]],DataTable,12,FALSE),\"\"))","v":""},{"$f":"IFERROR(Table_Data_Table_1[[#This Row],[Land\nResidual]]/Table_Data_Table_1[[#This Row],[Resid\nAcre]],\"\")","v":""},{"$f":"IFERROR(ROUND(Table_Data_Table_1[[#This Row],[Land\nResidual]]/Table_Data_Table_1[[#This Row],[Resid\nSq Ft]],2),\"\")","v":""},{"$f":"IF(Table_Data_Table_1[[#This Row],[Item ID]]=\"\",\"\",ROUND(DAYS360(Table_Data_Table_1[[#This Row],[Sale Date]],'Global Settings'!$H$5)/30,0))","v":""},{"$f":"IFERROR(IF(AND(Table_Data_Table_1[[#This Row],[Months To\nMid-Point]]<12.01,Table_Data_Table_1[[#This Row],[Months To\nMid-Point]]>-13),0,(Table_Data_Table_1[[#This Row],[Months To\nMid-Point]]*'Global Settings'!$H$6)),\"\")","v":""},{"$f":"IFERROR(Table_Data_Table_1[[#This Row],[Land\nResidual]]*(Table_Data_Table_1[[#This Row],[Time\nAdjust]]+1),\"\")","v":""},{"$f":"IFERROR(Table_Data_Table_1[[#This Row],[Adjusted\nSale Price]]/Table_Data_Table_1[[#This Row],[Resid\nAcre]],\"\")","v":""},{"$f":"IFERROR(ROUND(Table_Data_Table_1[[#This Row],[Adjusted\nSale Price]]/Table_Data_Table_1[[#This Row],[Resid\nSq Ft]],2),\"\")","v":""},{"$f":"IFERROR(IF(VLOOKUP(Table_Data_Table_1[[#This Row],[Item ID]],DataTable,11,FALSE)=0,\"N/A\",Table_Data_Table_1[[#This Row],[Adjusted\nSale Price]]/VLOOKUP(Table_Data_Table_1[[#This Row],[Item ID]],DataTable,11,FALSE)),\"\")","v":""},{"$f":"IF(IFERROR(VLOOKUP(Table_Data_Table_1[[#This Row],[Item ID]],DataTable,17,FALSE),\"\")=0,\"\",IFERROR(VLOOKUP(Table_Data_Table_1[[#This Row],[Item ID]],DataTable,17,FALSE),\"\"))","v":""}]
["",null,{"$f":"IF(Table_Data_Table_1[[#This Row],[Item ID]]=\"\",\"\",IFERROR(VLOOKUP(Table_Data_Table_1[[#This Row],[Item ID]],DataTable,16,FALSE),\"\"))","v":""},null,null,null,null,{"$f":"IF(Table_Data_Table_1[[#This Row],[Valuation Method]]=\"Vacant\",VLOOKUP(Table_Data_Table_1[[#This Row],[Item ID]],DataTable,6,FALSE)-VLOOKUP(Table_Data_Table_1[[#This Row],[Item ID]],DataTable,13,FALSE),IF(Table_Data_Table_1[[#This Row],[Valuation Method]]=\"Abstraction\",VLOOKUP(Table_Data_Table_1[[#This Row],[Item ID]],DataTable,6,FALSE)-VLOOKUP(Table_Data_Table_1[[#This Row],[Item ID]],DataTable,13,FALSE),IF(Table_Data_Table_1[[#This Row],[Valuation Method]]=\"Allocation\",VLOOKUP(Table_Data_Table_1[[#This Row],[Item ID]],DataTable,6,FALSE)*I358,\"\")))","v":""},{"$f":"IF(Table_Data_Table_1[[#This Row],[Valuation Method]]=\"Vacant\",\"N/A\",IF(Table_Data_Table_1[[#This Row],[Valuation Method]]=\"Abstraction\",Table_Data_Table_1[[#This Row],[Land\nResidual]]/VLOOKUP(Table_Data_Table_1[[#This Row],[Item ID]],DataTable,6,FALSE),IF(Table_Data_Table_1[[#This Row],[Valuation Method]]=\"Allocation\",'Global Settings'!$H$20,\"\")))","v":""},{"$f":"IFERROR(ROUND(Table_Data_Table_1[[#This Row],[Resid\nSq Ft]]/43560,3),\"\")","v":""},{"$f":"IF(Table_Data_Table_1[[#This Row],[Item ID]]=\"\",\"\",IFERROR(VLOOKUP(Table_Data_Table_1[[#This Row],[Item ID]],DataTable,10,FALSE)-VLOOKUP(Table_Data_Table_1[[#This Row],[Item ID]],DataTable,12,FALSE),\"\"))","v":""},{"$f":"IFERROR(Table_Data_Table_1[[#This Row],[Land\nResidual]]/Table_Data_Table_1[[#This Row],[Resid\nAcre]],\"\")","v":""},{"$f":"IFERROR(ROUND(Table_Data_Table_1[[#This Row],[Land\nResidual]]/Table_Data_Table_1[[#This Row],[Resid\nSq Ft]],2),\"\")","v":""},{"$f":"IF(Table_Data_Table_1[[#This Row],[Item ID]]=\"\",\"\",ROUND(DAYS360(Table_Data_Table_1[[#This Row],[Sale Date]],'Global Settings'!$H$5)/30,0))","v":""},{"$f":"IFERROR(IF(AND(Table_Data_Table_1[[#This Row],[Months To\nMid-Point]]<12.01,Table_Data_Table_1[[#This Row],[Months To\nMid-Point]]>-13),0,(Table_Data_Table_1[[#This Row],[Months To\nMid-Point]]*'Global Settings'!$H$6)),\"\")","v":""},{"$f":"IFERROR(Table_Data_Table_1[[#This Row],[Land\nResidual]]*(Table_Data_Table_1[[#This Row],[Time\nAdjust]]+1),\"\")","v":""},{"$f":"IFERROR(Table_Data_Table_1[[#This Row],[Adjusted\nSale Price]]/Table_Data_Table_1[[#This Row],[Resid\nAcre]],\"\")","v":""},{"$f":"IFERROR(ROUND(Table_Data_Table_1[[#This Row],[Adjusted\nSale Price]]/Table_Data_Table_1[[#This Row],[Resid\nSq Ft]],2),\"\")","v":""},{"$f":"IFERROR(IF(VLOOKUP(Table_Data_Table_1[[#This Row],[Item ID]],DataTable,11,FALSE)=0,\"N/A\",Table_Data_Table_1[[#This Row],[Adjusted\nSale Price]]/VLOOKUP(Table_Data_Table_1[[#This Row],[Item ID]],DataTable,11,FALSE)),\"\")","v":""},{"$f":"IF(IFERROR(VLOOKUP(Table_Data_Table_1[[#This Row],[Item ID]],DataTable,17,FALSE),\"\")=0,\"\",IFERROR(VLOOKUP(Table_Data_Table_1[[#This Row],[Item ID]],DataTable,17,FALSE),\"\"))","v":""}]
["",null,{"$f":"IF(Table_Data_Table_1[[#This Row],[Item ID]]=\"\",\"\",IFERROR(VLOOKUP(Table_Data_Table_1[[#This Row],[Item ID]],DataTable,16,FALSE),\"\"))","v":""},null,null,null,null,{"$f":"IF(Table_Data_Table_1[[#This Row],[Valuation Method]]=\"Vacant\",VLOOKUP(Table_Data_Table_1[[#This Row],[Item ID]],DataTable,6,FALSE)-VLOOKUP(Table_Data_Table_1[[#This Row],[Item ID]],DataTable,13,FALSE),IF(Table_Data_Table_1[[#This Row],[Valuation Method]]=\"Abstraction\",VLOOKUP(Table_Data_Table_1[[#This Row],[Item ID]],DataTable,6,FALSE)-VLOOKUP(Table_Data_Table_1[[#This Row],[Item ID]],DataTable,13,FALSE),IF(Table_Data_Table_1[[#This Row],[Valuation Method]]=\"Allocation\",VLOOKUP(Table_Data_Table_1[[#This Row],[Item ID]],DataTable,6,FALSE)*I359,\"\")))","v":""},{"$f":"IF(Table_Data_Table_1[[#This Row],[Valuation Method]]=\"Vacant\",\"N/A\",IF(Table_Data_Table_1[[#This Row],[Valuation Method]]=\"Abstraction\",Table_Data_Table_1[[#This Row],[Land\nResidual]]/VLOOKUP(Table_Data_Table_1[[#This Row],[Item ID]],DataTable,6,FALSE),IF(Table_Data_Table_1[[#This Row],[Valuation Method]]=\"Allocation\",'Global Settings'!$H$20,\"\")))","v":""},{"$f":"IFERROR(ROUND(Table_Data_Table_1[[#This Row],[Resid\nSq Ft]]/43560,3),\"\")","v":""},{"$f":"IF(Table_Data_Table_1[[#This Row],[Item ID]]=\"\",\"\",IFERROR(VLOOKUP(Table_Data_Table_1[[#This Row],[Item ID]],DataTable,10,FALSE)-VLOOKUP(Table_Data_Table_1[[#This Row],[Item ID]],DataTable,12,FALSE),\"\"))","v":""},{"$f":"IFERROR(Table_Data_Table_1[[#This Row],[Land\nResidual]]/Table_Data_Table_1[[#This Row],[Resid\nAcre]],\"\")","v":""},{"$f":"IFERROR(ROUND(Table_Data_Table_1[[#This Row],[Land\nResidual]]/Table_Data_Table_1[[#This Row],[Resid\nSq Ft]],2),\"\")","v":""},{"$f":"IF(Table_Data_Table_1[[#This Row],[Item ID]]=\"\",\"\",ROUND(DAYS360(Table_Data_Table_1[[#This Row],[Sale Date]],'Global Settings'!$H$5)/30,0))","v":""},{"$f":"IFERROR(IF(AND(Table_Data_Table_1[[#This Row],[Months To\nMid-Point]]<12.01,Table_Data_Table_1[[#This Row],[Months To\nMid-Point]]>-13),0,(Table_Data_Table_1[[#This Row],[Months To\nMid-Point]]*'Global Settings'!$H$6)),\"\")","v":""},{"$f":"IFERROR(Table_Data_Table_1[[#This Row],[Land\nResidual]]*(Table_Data_Table_1[[#This Row],[Time\nAdjust]]+1),\"\")","v":""},{"$f":"IFERROR(Table_Data_Table_1[[#This Row],[Adjusted\nSale Price]]/Table_Data_Table_1[[#This Row],[Resid\nAcre]],\"\")","v":""},{"$f":"IFERROR(ROUND(Table_Data_Table_1[[#This Row],[Adjusted\nSale Price]]/Table_Data_Table_1[[#This Row],[Resid\nSq Ft]],2),\"\")","v":""},{"$f":"IFERROR(IF(VLOOKUP(Table_Data_Table_1[[#This Row],[Item ID]],DataTable,11,FALSE)=0,\"N/A\",Table_Data_Table_1[[#This Row],[Adjusted\nSale Price]]/VLOOKUP(Table_Data_Table_1[[#This Row],[Item ID]],DataTable,11,FALSE)),\"\")","v":""},{"$f":"IF(IFERROR(VLOOKUP(Table_Data_Table_1[[#This Row],[Item ID]],DataTable,17,FALSE),\"\")=0,\"\",IFERROR(VLOOKUP(Table_Data_Table_1[[#This Row],[Item ID]],DataTable,17,FALSE),\"\"))","v":""}]
["",null,{"$f":"IF(Table_Data_Table_1[[#This Row],[Item ID]]=\"\",\"\",IFERROR(VLOOKUP(Table_Data_Table_1[[#This Row],[Item ID]],DataTable,16,FALSE),\"\"))","v":""},null,null,null,null,{"$f":"IF(Table_Data_Table_1[[#This Row],[Valuation Method]]=\"Vacant\",VLOOKUP(Table_Data_Table_1[[#This Row],[Item ID]],DataTable,6,FALSE)-VLOOKUP(Table_Data_Table_1[[#This Row],[Item ID]],DataTable,13,FALSE),IF(Table_Data_Table_1[[#This Row],[Valuation Method]]=\"Abstraction\",VLOOKUP(Table_Data_Table_1[[#This Row],[Item ID]],DataTable,6,FALSE)-VLOOKUP(Table_Data_Table_1[[#This Row],[Item ID]],DataTable,13,FALSE),IF(Table_Data_Table_1[[#This Row],[Valuation Method]]=\"Allocation\",VLOOKUP(Table_Data_Table_1[[#This Row],[Item ID]],DataTable,6,FALSE)*I360,\"\")))","v":""},{"$f":"IF(Table_Data_Table_1[[#This Row],[Valuation Method]]=\"Vacant\",\"N/A\",IF(Table_Data_Table_1[[#This Row],[Valuation Method]]=\"Abstraction\",Table_Data_Table_1[[#This Row],[Land\nResidual]]/VLOOKUP(Table_Data_Table_1[[#This Row],[Item ID]],DataTable,6,FALSE),IF(Table_Data_Table_1[[#This Row],[Valuation Method]]=\"Allocation\",'Global Settings'!$H$20,\"\")))","v":""},{"$f":"IFERROR(ROUND(Table_Data_Table_1[[#This Row],[Resid\nSq Ft]]/43560,3),\"\")","v":""},{"$f":"IF(Table_Data_Table_1[[#This Row],[Item ID]]=\"\",\"\",IFERROR(VLOOKUP(Table_Data_Table_1[[#This Row],[Item ID]],DataTable,10,FALSE)-VLOOKUP(Table_Data_Table_1[[#This Row],[Item ID]],DataTable,12,FALSE),\"\"))","v":""},{"$f":"IFERROR(Table_Data_Table_1[[#This Row],[Land\nResidual]]/Table_Data_Table_1[[#This Row],[Resid\nAcre]],\"\")","v":""},{"$f":"IFERROR(ROUND(Table_Data_Table_1[[#This Row],[Land\nResidual]]/Table_Data_Table_1[[#This Row],[Resid\nSq Ft]],2),\"\")","v":""},{"$f":"IF(Table_Data_Table_1[[#This Row],[Item ID]]=\"\",\"\",ROUND(DAYS360(Table_Data_Table_1[[#This Row],[Sale Date]],'Global Settings'!$H$5)/30,0))","v":""},{"$f":"IFERROR(IF(AND(Table_Data_Table_1[[#This Row],[Months To\nMid-Point]]<12.01,Table_Data_Table_1[[#This Row],[Months To\nMid-Point]]>-13),0,(Table_Data_Table_1[[#This Row],[Months To\nMid-Point]]*'Global Settings'!$H$6)),\"\")","v":""},{"$f":"IFERROR(Table_Data_Table_1[[#This Row],[Land\nResidual]]*(Table_Data_Table_1[[#This Row],[Time\nAdjust]]+1),\"\")","v":""},{"$f":"IFERROR(Table_Data_Table_1[[#This Row],[Adjusted\nSale Price]]/Table_Data_Table_1[[#This Row],[Resid\nAcre]],\"\")","v":""},{"$f":"IFERROR(ROUND(Table_Data_Table_1[[#This Row],[Adjusted\nSale Price]]/Table_Data_Table_1[[#This Row],[Resid\nSq Ft]],2),\"\")","v":""},{"$f":"IFERROR(IF(VLOOKUP(Table_Data_Table_1[[#This Row],[Item ID]],DataTable,11,FALSE)=0,\"N/A\",Table_Data_Table_1[[#This Row],[Adjusted\nSale Price]]/VLOOKUP(Table_Data_Table_1[[#This Row],[Item ID]],DataTable,11,FALSE)),\"\")","v":""},{"$f":"IF(IFERROR(VLOOKUP(Table_Data_Table_1[[#This Row],[Item ID]],DataTable,17,FALSE),\"\")=0,\"\",IFERROR(VLOOKUP(Table_Data_Table_1[[#This Row],[Item ID]],DataTable,17,FALSE),\"\"))","v":""}]
["",null,{"$f":"IF(Table_Data_Table_1[[#This Row],[Item ID]]=\"\",\"\",IFERROR(VLOOKUP(Table_Data_Table_1[[#This Row],[Item ID]],DataTable,16,FALSE),\"\"))","v":""},null,null,null,null,{"$f":"IF(Table_Data_Table_1[[#This Row],[Valuation Method]]=\"Vacant\",VLOOKUP(Table_Data_Table_1[[#This Row],[Item ID]],DataTable,6,FALSE)-VLOOKUP(Table_Data_Table_1[[#This Row],[Item ID]],DataTable,13,FALSE),IF(Table_Data_Table_1[[#This Row],[Valuation Method]]=\"Abstraction\",VLOOKUP(Table_Data_Table_1[[#This Row],[Item ID]],DataTable,6,FALSE)-VLOOKUP(Table_Data_Table_1[[#This Row],[Item ID]],DataTable,13,FALSE),IF(Table_Data_Table_1[[#This Row],[Valuation Method]]=\"Allocation\",VLOOKUP(Table_Data_Table_1[[#This Row],[Item ID]],DataTable,6,FALSE)*I361,\"\")))","v":""},{"$f":"IF(Table_Data_Table_1[[#This Row],[Valuation Method]]=\"Vacant\",\"N/A\",IF(Table_Data_Table_1[[#This Row],[Valuation Method]]=\"Abstraction\",Table_Data_Table_1[[#This Row],[Land\nResidual]]/VLOOKUP(Table_Data_Table_1[[#This Row],[Item ID]],DataTable,6,FALSE),IF(Table_Data_Table_1[[#This Row],[Valuation Method]]=\"Allocation\",'Global Settings'!$H$20,\"\")))","v":""},{"$f":"IFERROR(ROUND(Table_Data_Table_1[[#This Row],[Resid\nSq Ft]]/43560,3),\"\")","v":""},{"$f":"IF(Table_Data_Table_1[[#This Row],[Item ID]]=\"\",\"\",IFERROR(VLOOKUP(Table_Data_Table_1[[#This Row],[Item ID]],DataTable,10,FALSE)-VLOOKUP(Table_Data_Table_1[[#This Row],[Item ID]],DataTable,12,FALSE),\"\"))","v":""},{"$f":"IFERROR(Table_Data_Table_1[[#This Row],[Land\nResidual]]/Table_Data_Table_1[[#This Row],[Resid\nAcre]],\"\")","v":""},{"$f":"IFERROR(ROUND(Table_Data_Table_1[[#This Row],[Land\nResidual]]/Table_Data_Table_1[[#This Row],[Resid\nSq Ft]],2),\"\")","v":""},{"$f":"IF(Table_Data_Table_1[[#This Row],[Item ID]]=\"\",\"\",ROUND(DAYS360(Table_Data_Table_1[[#This Row],[Sale Date]],'Global Settings'!$H$5)/30,0))","v":""},{"$f":"IFERROR(IF(AND(Table_Data_Table_1[[#This Row],[Months To\nMid-Point]]<12.01,Table_Data_Table_1[[#This Row],[Months To\nMid-Point]]>-13),0,(Table_Data_Table_1[[#This Row],[Months To\nMid-Point]]*'Global Settings'!$H$6)),\"\")","v":""},{"$f":"IFERROR(Table_Data_Table_1[[#This Row],[Land\nResidual]]*(Table_Data_Table_1[[#This Row],[Time\nAdjust]]+1),\"\")","v":""},{"$f":"IFERROR(Table_Data_Table_1[[#This Row],[Adjusted\nSale Price]]/Table_Data_Table_1[[#This Row],[Resid\nAcre]],\"\")","v":""},{"$f":"IFERROR(ROUND(Table_Data_Table_1[[#This Row],[Adjusted\nSale Price]]/Table_Data_Table_1[[#This Row],[Resid\nSq Ft]],2),\"\")","v":""},{"$f":"IFERROR(IF(VLOOKUP(Table_Data_Table_1[[#This Row],[Item ID]],DataTable,11,FALSE)=0,\"N/A\",Table_Data_Table_1[[#This Row],[Adjusted\nSale Price]]/VLOOKUP(Table_Data_Table_1[[#This Row],[Item ID]],DataTable,11,FALSE)),\"\")","v":""},{"$f":"IF(IFERROR(VLOOKUP(Table_Data_Table_1[[#This Row],[Item ID]],DataTable,17,FALSE),\"\")=0,\"\",IFERROR(VLOOKUP(Table_Data_Table_1[[#This Row],[Item ID]],DataTable,17,FALSE),\"\"))","v":""}]
["",null,{"$f":"IF(Table_Data_Table_1[[#This Row],[Item ID]]=\"\",\"\",IFERROR(VLOOKUP(Table_Data_Table_1[[#This Row],[Item ID]],DataTable,16,FALSE),\"\"))","v":""},null,null,null,null,{"$f":"IF(Table_Data_Table_1[[#This Row],[Valuation Method]]=\"Vacant\",VLOOKUP(Table_Data_Table_1[[#This Row],[Item ID]],DataTable,6,FALSE)-VLOOKUP(Table_Data_Table_1[[#This Row],[Item ID]],DataTable,13,FALSE),IF(Table_Data_Table_1[[#This Row],[Valuation Method]]=\"Abstraction\",VLOOKUP(Table_Data_Table_1[[#This Row],[Item ID]],DataTable,6,FALSE)-VLOOKUP(Table_Data_Table_1[[#This Row],[Item ID]],DataTable,13,FALSE),IF(Table_Data_Table_1[[#This Row],[Valuation Method]]=\"Allocation\",VLOOKUP(Table_Data_Table_1[[#This Row],[Item ID]],DataTable,6,FALSE)*I362,\"\")))","v":""},{"$f":"IF(Table_Data_Table_1[[#This Row],[Valuation Method]]=\"Vacant\",\"N/A\",IF(Table_Data_Table_1[[#This Row],[Valuation Method]]=\"Abstraction\",Table_Data_Table_1[[#This Row],[Land\nResidual]]/VLOOKUP(Table_Data_Table_1[[#This Row],[Item ID]],DataTable,6,FALSE),IF(Table_Data_Table_1[[#This Row],[Valuation Method]]=\"Allocation\",'Global Settings'!$H$20,\"\")))","v":""},{"$f":"IFERROR(ROUND(Table_Data_Table_1[[#This Row],[Resid\nSq Ft]]/43560,3),\"\")","v":""},{"$f":"IF(Table_Data_Table_1[[#This Row],[Item ID]]=\"\",\"\",IFERROR(VLOOKUP(Table_Data_Table_1[[#This Row],[Item ID]],DataTable,10,FALSE)-VLOOKUP(Table_Data_Table_1[[#This Row],[Item ID]],DataTable,12,FALSE),\"\"))","v":""},{"$f":"IFERROR(Table_Data_Table_1[[#This Row],[Land\nResidual]]/Table_Data_Table_1[[#This Row],[Resid\nAcre]],\"\")","v":""},{"$f":"IFERROR(ROUND(Table_Data_Table_1[[#This Row],[Land\nResidual]]/Table_Data_Table_1[[#This Row],[Resid\nSq Ft]],2),\"\")","v":""},{"$f":"IF(Table_Data_Table_1[[#This Row],[Item ID]]=\"\",\"\",ROUND(DAYS360(Table_Data_Table_1[[#This Row],[Sale Date]],'Global Settings'!$H$5)/30,0))","v":""},{"$f":"IFERROR(IF(AND(Table_Data_Table_1[[#This Row],[Months To\nMid-Point]]<12.01,Table_Data_Table_1[[#This Row],[Months To\nMid-Point]]>-13),0,(Table_Data_Table_1[[#This Row],[Months To\nMid-Point]]*'Global Settings'!$H$6)),\"\")","v":""},{"$f":"IFERROR(Table_Data_Table_1[[#This Row],[Land\nResidual]]*(Table_Data_Table_1[[#This Row],[Time\nAdjust]]+1),\"\")","v":""},{"$f":"IFERROR(Table_Data_Table_1[[#This Row],[Adjusted\nSale Price]]/Table_Data_Table_1[[#This Row],[Resid\nAcre]],\"\")","v":""},{"$f":"IFERROR(ROUND(Table_Data_Table_1[[#This Row],[Adjusted\nSale Price]]/Table_Data_Table_1[[#This Row],[Resid\nSq Ft]],2),\"\")","v":""},{"$f":"IFERROR(IF(VLOOKUP(Table_Data_Table_1[[#This Row],[Item ID]],DataTable,11,FALSE)=0,\"N/A\",Table_Data_Table_1[[#This Row],[Adjusted\nSale Price]]/VLOOKUP(Table_Data_Table_1[[#This Row],[Item ID]],DataTable,11,FALSE)),\"\")","v":""},{"$f":"IF(IFERROR(VLOOKUP(Table_Data_Table_1[[#This Row],[Item ID]],DataTable,17,FALSE),\"\")=0,\"\",IFERROR(VLOOKUP(Table_Data_Table_1[[#This Row],[Item ID]],DataTable,17,FALSE),\"\"))","v":""}]
["",null,{"$f":"IF(Table_Data_Table_1[[#This Row],[Item ID]]=\"\",\"\",IFERROR(VLOOKUP(Table_Data_Table_1[[#This Row],[Item ID]],DataTable,16,FALSE),\"\"))","v":""},null,null,null,null,{"$f":"IF(Table_Data_Table_1[[#This Row],[Valuation Method]]=\"Vacant\",VLOOKUP(Table_Data_Table_1[[#This Row],[Item ID]],DataTable,6,FALSE)-VLOOKUP(Table_Data_Table_1[[#This Row],[Item ID]],DataTable,13,FALSE),IF(Table_Data_Table_1[[#This Row],[Valuation Method]]=\"Abstraction\",VLOOKUP(Table_Data_Table_1[[#This Row],[Item ID]],DataTable,6,FALSE)-VLOOKUP(Table_Data_Table_1[[#This Row],[Item ID]],DataTable,13,FALSE),IF(Table_Data_Table_1[[#This Row],[Valuation Method]]=\"Allocation\",VLOOKUP(Table_Data_Table_1[[#This Row],[Item ID]],DataTable,6,FALSE)*I363,\"\")))","v":""},{"$f":"IF(Table_Data_Table_1[[#This Row],[Valuation Method]]=\"Vacant\",\"N/A\",IF(Table_Data_Table_1[[#This Row],[Valuation Method]]=\"Abstraction\",Table_Data_Table_1[[#This Row],[Land\nResidual]]/VLOOKUP(Table_Data_Table_1[[#This Row],[Item ID]],DataTable,6,FALSE),IF(Table_Data_Table_1[[#This Row],[Valuation Method]]=\"Allocation\",'Global Settings'!$H$20,\"\")))","v":""},{"$f":"IFERROR(ROUND(Table_Data_Table_1[[#This Row],[Resid\nSq Ft]]/43560,3),\"\")","v":""},{"$f":"IF(Table_Data_Table_1[[#This Row],[Item ID]]=\"\",\"\",IFERROR(VLOOKUP(Table_Data_Table_1[[#This Row],[Item ID]],DataTable,10,FALSE)-VLOOKUP(Table_Data_Table_1[[#This Row],[Item ID]],DataTable,12,FALSE),\"\"))","v":""},{"$f":"IFERROR(Table_Data_Table_1[[#This Row],[Land\nResidual]]/Table_Data_Table_1[[#This Row],[Resid\nAcre]],\"\")","v":""},{"$f":"IFERROR(ROUND(Table_Data_Table_1[[#This Row],[Land\nResidual]]/Table_Data_Table_1[[#This Row],[Resid\nSq Ft]],2),\"\")","v":""},{"$f":"IF(Table_Data_Table_1[[#This Row],[Item ID]]=\"\",\"\",ROUND(DAYS360(Table_Data_Table_1[[#This Row],[Sale Date]],'Global Settings'!$H$5)/30,0))","v":""},{"$f":"IFERROR(IF(AND(Table_Data_Table_1[[#This Row],[Months To\nMid-Point]]<12.01,Table_Data_Table_1[[#This Row],[Months To\nMid-Point]]>-13),0,(Table_Data_Table_1[[#This Row],[Months To\nMid-Point]]*'Global Settings'!$H$6)),\"\")","v":""},{"$f":"IFERROR(Table_Data_Table_1[[#This Row],[Land\nResidual]]*(Table_Data_Table_1[[#This Row],[Time\nAdjust]]+1),\"\")","v":""},{"$f":"IFERROR(Table_Data_Table_1[[#This Row],[Adjusted\nSale Price]]/Table_Data_Table_1[[#This Row],[Resid\nAcre]],\"\")","v":""},{"$f":"IFERROR(ROUND(Table_Data_Table_1[[#This Row],[Adjusted\nSale Price]]/Table_Data_Table_1[[#This Row],[Resid\nSq Ft]],2),\"\")","v":""},{"$f":"IFERROR(IF(VLOOKUP(Table_Data_Table_1[[#This Row],[Item ID]],DataTable,11,FALSE)=0,\"N/A\",Table_Data_Table_1[[#This Row],[Adjusted\nSale Price]]/VLOOKUP(Table_Data_Table_1[[#This Row],[Item ID]],DataTable,11,FALSE)),\"\")","v":""},{"$f":"IF(IFERROR(VLOOKUP(Table_Data_Table_1[[#This Row],[Item ID]],DataTable,17,FALSE),\"\")=0,\"\",IFERROR(VLOOKUP(Table_Data_Table_1[[#This Row],[Item ID]],DataTable,17,FALSE),\"\"))","v":""}]
["",null,{"$f":"IF(Table_Data_Table_1[[#This Row],[Item ID]]=\"\",\"\",IFERROR(VLOOKUP(Table_Data_Table_1[[#This Row],[Item ID]],DataTable,16,FALSE),\"\"))","v":""},null,null,null,null,{"$f":"IF(Table_Data_Table_1[[#This Row],[Valuation Method]]=\"Vacant\",VLOOKUP(Table_Data_Table_1[[#This Row],[Item ID]],DataTable,6,FALSE)-VLOOKUP(Table_Data_Table_1[[#This Row],[Item ID]],DataTable,13,FALSE),IF(Table_Data_Table_1[[#This Row],[Valuation Method]]=\"Abstraction\",VLOOKUP(Table_Data_Table_1[[#This Row],[Item ID]],DataTable,6,FALSE)-VLOOKUP(Table_Data_Table_1[[#This Row],[Item ID]],DataTable,13,FALSE),IF(Table_Data_Table_1[[#This Row],[Valuation Method]]=\"Allocation\",VLOOKUP(Table_Data_Table_1[[#This Row],[Item ID]],DataTable,6,FALSE)*I364,\"\")))","v":""},{"$f":"IF(Table_Data_Table_1[[#This Row],[Valuation Method]]=\"Vacant\",\"N/A\",IF(Table_Data_Table_1[[#This Row],[Valuation Method]]=\"Abstraction\",Table_Data_Table_1[[#This Row],[Land\nResidual]]/VLOOKUP(Table_Data_Table_1[[#This Row],[Item ID]],DataTable,6,FALSE),IF(Table_Data_Table_1[[#This Row],[Valuation Method]]=\"Allocation\",'Global Settings'!$H$20,\"\")))","v":""},{"$f":"IFERROR(ROUND(Table_Data_Table_1[[#This Row],[Resid\nSq Ft]]/43560,3),\"\")","v":""},{"$f":"IF(Table_Data_Table_1[[#This Row],[Item ID]]=\"\",\"\",IFERROR(VLOOKUP(Table_Data_Table_1[[#This Row],[Item ID]],DataTable,10,FALSE)-VLOOKUP(Table_Data_Table_1[[#This Row],[Item ID]],DataTable,12,FALSE),\"\"))","v":""},{"$f":"IFERROR(Table_Data_Table_1[[#This Row],[Land\nResidual]]/Table_Data_Table_1[[#This Row],[Resid\nAcre]],\"\")","v":""},{"$f":"IFERROR(ROUND(Table_Data_Table_1[[#This Row],[Land\nResidual]]/Table_Data_Table_1[[#This Row],[Resid\nSq Ft]],2),\"\")","v":""},{"$f":"IF(Table_Data_Table_1[[#This Row],[Item ID]]=\"\",\"\",ROUND(DAYS360(Table_Data_Table_1[[#This Row],[Sale Date]],'Global Settings'!$H$5)/30,0))","v":""},{"$f":"IFERROR(IF(AND(Table_Data_Table_1[[#This Row],[Months To\nMid-Point]]<12.01,Table_Data_Table_1[[#This Row],[Months To\nMid-Point]]>-13),0,(Table_Data_Table_1[[#This Row],[Months To\nMid-Point]]*'Global Settings'!$H$6)),\"\")","v":""},{"$f":"IFERROR(Table_Data_Table_1[[#This Row],[Land\nResidual]]*(Table_Data_Table_1[[#This Row],[Time\nAdjust]]+1),\"\")","v":""},{"$f":"IFERROR(Table_Data_Table_1[[#This Row],[Adjusted\nSale Price]]/Table_Data_Table_1[[#This Row],[Resid\nAcre]],\"\")","v":""},{"$f":"IFERROR(ROUND(Table_Data_Table_1[[#This Row],[Adjusted\nSale Price]]/Table_Data_Table_1[[#This Row],[Resid\nSq Ft]],2),\"\")","v":""},{"$f":"IFERROR(IF(VLOOKUP(Table_Data_Table_1[[#This Row],[Item ID]],DataTable,11,FALSE)=0,\"N/A\",Table_Data_Table_1[[#This Row],[Adjusted\nSale Price]]/VLOOKUP(Table_Data_Table_1[[#This Row],[Item ID]],DataTable,11,FALSE)),\"\")","v":""},{"$f":"IF(IFERROR(VLOOKUP(Table_Data_Table_1[[#This Row],[Item ID]],DataTable,17,FALSE),\"\")=0,\"\",IFERROR(VLOOKUP(Table_Data_Table_1[[#This Row],[Item ID]],DataTable,17,FALSE),\"\"))","v":""}]
["",null,{"$f":"IF(Table_Data_Table_1[[#This Row],[Item ID]]=\"\",\"\",IFERROR(VLOOKUP(Table_Data_Table_1[[#This Row],[Item ID]],DataTable,16,FALSE),\"\"))","v":""},null,null,null,null,{"$f":"IF(Table_Data_Table_1[[#This Row],[Valuation Method]]=\"Vacant\",VLOOKUP(Table_Data_Table_1[[#This Row],[Item ID]],DataTable,6,FALSE)-VLOOKUP(Table_Data_Table_1[[#This Row],[Item ID]],DataTable,13,FALSE),IF(Table_Data_Table_1[[#This Row],[Valuation Method]]=\"Abstraction\",VLOOKUP(Table_Data_Table_1[[#This Row],[Item ID]],DataTable,6,FALSE)-VLOOKUP(Table_Data_Table_1[[#This Row],[Item ID]],DataTable,13,FALSE),IF(Table_Data_Table_1[[#This Row],[Valuation Method]]=\"Allocation\",VLOOKUP(Table_Data_Table_1[[#This Row],[Item ID]],DataTable,6,FALSE)*I365,\"\")))","v":""},{"$f":"IF(Table_Data_Table_1[[#This Row],[Valuation Method]]=\"Vacant\",\"N/A\",IF(Table_Data_Table_1[[#This Row],[Valuation Method]]=\"Abstraction\",Table_Data_Table_1[[#This Row],[Land\nResidual]]/VLOOKUP(Table_Data_Table_1[[#This Row],[Item ID]],DataTable,6,FALSE),IF(Table_Data_Table_1[[#This Row],[Valuation Method]]=\"Allocation\",'Global Settings'!$H$20,\"\")))","v":""},{"$f":"IFERROR(ROUND(Table_Data_Table_1[[#This Row],[Resid\nSq Ft]]/43560,3),\"\")","v":""},{"$f":"IF(Table_Data_Table_1[[#This Row],[Item ID]]=\"\",\"\",IFERROR(VLOOKUP(Table_Data_Table_1[[#This Row],[Item ID]],DataTable,10,FALSE)-VLOOKUP(Table_Data_Table_1[[#This Row],[Item ID]],DataTable,12,FALSE),\"\"))","v":""},{"$f":"IFERROR(Table_Data_Table_1[[#This Row],[Land\nResidual]]/Table_Data_Table_1[[#This Row],[Resid\nAcre]],\"\")","v":""},{"$f":"IFERROR(ROUND(Table_Data_Table_1[[#This Row],[Land\nResidual]]/Table_Data_Table_1[[#This Row],[Resid\nSq Ft]],2),\"\")","v":""},{"$f":"IF(Table_Data_Table_1[[#This Row],[Item ID]]=\"\",\"\",ROUND(DAYS360(Table_Data_Table_1[[#This Row],[Sale Date]],'Global Settings'!$H$5)/30,0))","v":""},{"$f":"IFERROR(IF(AND(Table_Data_Table_1[[#This Row],[Months To\nMid-Point]]<12.01,Table_Data_Table_1[[#This Row],[Months To\nMid-Point]]>-13),0,(Table_Data_Table_1[[#This Row],[Months To\nMid-Point]]*'Global Settings'!$H$6)),\"\")","v":""},{"$f":"IFERROR(Table_Data_Table_1[[#This Row],[Land\nResidual]]*(Table_Data_Table_1[[#This Row],[Time\nAdjust]]+1),\"\")","v":""},{"$f":"IFERROR(Table_Data_Table_1[[#This Row],[Adjusted\nSale Price]]/Table_Data_Table_1[[#This Row],[Resid\nAcre]],\"\")","v":""},{"$f":"IFERROR(ROUND(Table_Data_Table_1[[#This Row],[Adjusted\nSale Price]]/Table_Data_Table_1[[#This Row],[Resid\nSq Ft]],2),\"\")","v":""},{"$f":"IFERROR(IF(VLOOKUP(Table_Data_Table_1[[#This Row],[Item ID]],DataTable,11,FALSE)=0,\"N/A\",Table_Data_Table_1[[#This Row],[Adjusted\nSale Price]]/VLOOKUP(Table_Data_Table_1[[#This Row],[Item ID]],DataTable,11,FALSE)),\"\")","v":""},{"$f":"IF(IFERROR(VLOOKUP(Table_Data_Table_1[[#This Row],[Item ID]],DataTable,17,FALSE),\"\")=0,\"\",IFERROR(VLOOKUP(Table_Data_Table_1[[#This Row],[Item ID]],DataTable,17,FALSE),\"\"))","v":""}]
["",null,{"$f":"IF(Table_Data_Table_1[[#This Row],[Item ID]]=\"\",\"\",IFERROR(VLOOKUP(Table_Data_Table_1[[#This Row],[Item ID]],DataTable,16,FALSE),\"\"))","v":""},null,null,null,null,{"$f":"IF(Table_Data_Table_1[[#This Row],[Valuation Method]]=\"Vacant\",VLOOKUP(Table_Data_Table_1[[#This Row],[Item ID]],DataTable,6,FALSE)-VLOOKUP(Table_Data_Table_1[[#This Row],[Item ID]],DataTable,13,FALSE),IF(Table_Data_Table_1[[#This Row],[Valuation Method]]=\"Abstraction\",VLOOKUP(Table_Data_Table_1[[#This Row],[Item ID]],DataTable,6,FALSE)-VLOOKUP(Table_Data_Table_1[[#This Row],[Item ID]],DataTable,13,FALSE),IF(Table_Data_Table_1[[#This Row],[Valuation Method]]=\"Allocation\",VLOOKUP(Table_Data_Table_1[[#This Row],[Item ID]],DataTable,6,FALSE)*I366,\"\")))","v":""},{"$f":"IF(Table_Data_Table_1[[#This Row],[Valuation Method]]=\"Vacant\",\"N/A\",IF(Table_Data_Table_1[[#This Row],[Valuation Method]]=\"Abstraction\",Table_Data_Table_1[[#This Row],[Land\nResidual]]/VLOOKUP(Table_Data_Table_1[[#This Row],[Item ID]],DataTable,6,FALSE),IF(Table_Data_Table_1[[#This Row],[Valuation Method]]=\"Allocation\",'Global Settings'!$H$20,\"\")))","v":""},{"$f":"IFERROR(ROUND(Table_Data_Table_1[[#This Row],[Resid\nSq Ft]]/43560,3),\"\")","v":""},{"$f":"IF(Table_Data_Table_1[[#This Row],[Item ID]]=\"\",\"\",IFERROR(VLOOKUP(Table_Data_Table_1[[#This Row],[Item ID]],DataTable,10,FALSE)-VLOOKUP(Table_Data_Table_1[[#This Row],[Item ID]],DataTable,12,FALSE),\"\"))","v":""},{"$f":"IFERROR(Table_Data_Table_1[[#This Row],[Land\nResidual]]/Table_Data_Table_1[[#This Row],[Resid\nAcre]],\"\")","v":""},{"$f":"IFERROR(ROUND(Table_Data_Table_1[[#This Row],[Land\nResidual]]/Table_Data_Table_1[[#This Row],[Resid\nSq Ft]],2),\"\")","v":""},{"$f":"IF(Table_Data_Table_1[[#This Row],[Item ID]]=\"\",\"\",ROUND(DAYS360(Table_Data_Table_1[[#This Row],[Sale Date]],'Global Settings'!$H$5)/30,0))","v":""},{"$f":"IFERROR(IF(AND(Table_Data_Table_1[[#This Row],[Months To\nMid-Point]]<12.01,Table_Data_Table_1[[#This Row],[Months To\nMid-Point]]>-13),0,(Table_Data_Table_1[[#This Row],[Months To\nMid-Point]]*'Global Settings'!$H$6)),\"\")","v":""},{"$f":"IFERROR(Table_Data_Table_1[[#This Row],[Land\nResidual]]*(Table_Data_Table_1[[#This Row],[Time\nAdjust]]+1),\"\")","v":""},{"$f":"IFERROR(Table_Data_Table_1[[#This Row],[Adjusted\nSale Price]]/Table_Data_Table_1[[#This Row],[Resid\nAcre]],\"\")","v":""},{"$f":"IFERROR(ROUND(Table_Data_Table_1[[#This Row],[Adjusted\nSale Price]]/Table_Data_Table_1[[#This Row],[Resid\nSq Ft]],2),\"\")","v":""},{"$f":"IFERROR(IF(VLOOKUP(Table_Data_Table_1[[#This Row],[Item ID]],DataTable,11,FALSE)=0,\"N/A\",Table_Data_Table_1[[#This Row],[Adjusted\nSale Price]]/VLOOKUP(Table_Data_Table_1[[#This Row],[Item ID]],DataTable,11,FALSE)),\"\")","v":""},{"$f":"IF(IFERROR(VLOOKUP(Table_Data_Table_1[[#This Row],[Item ID]],DataTable,17,FALSE),\"\")=0,\"\",IFERROR(VLOOKUP(Table_Data_Table_1[[#This Row],[Item ID]],DataTable,17,FALSE),\"\"))","v":""}]
["",null,{"$f":"IF(Table_Data_Table_1[[#This Row],[Item ID]]=\"\",\"\",IFERROR(VLOOKUP(Table_Data_Table_1[[#This Row],[Item ID]],DataTable,16,FALSE),\"\"))","v":""},null,null,null,null,{"$f":"IF(Table_Data_Table_1[[#This Row],[Valuation Method]]=\"Vacant\",VLOOKUP(Table_Data_Table_1[[#This Row],[Item ID]],DataTable,6,FALSE)-VLOOKUP(Table_Data_Table_1[[#This Row],[Item ID]],DataTable,13,FALSE),IF(Table_Data_Table_1[[#This Row],[Valuation Method]]=\"Abstraction\",VLOOKUP(Table_Data_Table_1[[#This Row],[Item ID]],DataTable,6,FALSE)-VLOOKUP(Table_Data_Table_1[[#This Row],[Item ID]],DataTable,13,FALSE),IF(Table_Data_Table_1[[#This Row],[Valuation Method]]=\"Allocation\",VLOOKUP(Table_Data_Table_1[[#This Row],[Item ID]],DataTable,6,FALSE)*I367,\"\")))","v":""},{"$f":"IF(Table_Data_Table_1[[#This Row],[Valuation Method]]=\"Vacant\",\"N/A\",IF(Table_Data_Table_1[[#This Row],[Valuation Method]]=\"Abstraction\",Table_Data_Table_1[[#This Row],[Land\nResidual]]/VLOOKUP(Table_Data_Table_1[[#This Row],[Item ID]],DataTable,6,FALSE),IF(Table_Data_Table_1[[#This Row],[Valuation Method]]=\"Allocation\",'Global Settings'!$H$20,\"\")))","v":""},{"$f":"IFERROR(ROUND(Table_Data_Table_1[[#This Row],[Resid\nSq Ft]]/43560,3),\"\")","v":""},{"$f":"IF(Table_Data_Table_1[[#This Row],[Item ID]]=\"\",\"\",IFERROR(VLOOKUP(Table_Data_Table_1[[#This Row],[Item ID]],DataTable,10,FALSE)-VLOOKUP(Table_Data_Table_1[[#This Row],[Item ID]],DataTable,12,FALSE),\"\"))","v":""},{"$f":"IFERROR(Table_Data_Table_1[[#This Row],[Land\nResidual]]/Table_Data_Table_1[[#This Row],[Resid\nAcre]],\"\")","v":""},{"$f":"IFERROR(ROUND(Table_Data_Table_1[[#This Row],[Land\nResidual]]/Table_Data_Table_1[[#This Row],[Resid\nSq Ft]],2),\"\")","v":""},{"$f":"IF(Table_Data_Table_1[[#This Row],[Item ID]]=\"\",\"\",ROUND(DAYS360(Table_Data_Table_1[[#This Row],[Sale Date]],'Global Settings'!$H$5)/30,0))","v":""},{"$f":"IFERROR(IF(AND(Table_Data_Table_1[[#This Row],[Months To\nMid-Point]]<12.01,Table_Data_Table_1[[#This Row],[Months To\nMid-Point]]>-13),0,(Table_Data_Table_1[[#This Row],[Months To\nMid-Point]]*'Global Settings'!$H$6)),\"\")","v":""},{"$f":"IFERROR(Table_Data_Table_1[[#This Row],[Land\nResidual]]*(Table_Data_Table_1[[#This Row],[Time\nAdjust]]+1),\"\")","v":""},{"$f":"IFERROR(Table_Data_Table_1[[#This Row],[Adjusted\nSale Price]]/Table_Data_Table_1[[#This Row],[Resid\nAcre]],\"\")","v":""},{"$f":"IFERROR(ROUND(Table_Data_Table_1[[#This Row],[Adjusted\nSale Price]]/Table_Data_Table_1[[#This Row],[Resid\nSq Ft]],2),\"\")","v":""},{"$f":"IFERROR(IF(VLOOKUP(Table_Data_Table_1[[#This Row],[Item ID]],DataTable,11,FALSE)=0,\"N/A\",Table_Data_Table_1[[#This Row],[Adjusted\nSale Price]]/VLOOKUP(Table_Data_Table_1[[#This Row],[Item ID]],DataTable,11,FALSE)),\"\")","v":""},{"$f":"IF(IFERROR(VLOOKUP(Table_Data_Table_1[[#This Row],[Item ID]],DataTable,17,FALSE),\"\")=0,\"\",IFERROR(VLOOKUP(Table_Data_Table_1[[#This Row],[Item ID]],DataTable,17,FALSE),\"\"))","v":""}]
["",null,{"$f":"IF(Table_Data_Table_1[[#This Row],[Item ID]]=\"\",\"\",IFERROR(VLOOKUP(Table_Data_Table_1[[#This Row],[Item ID]],DataTable,16,FALSE),\"\"))","v":""},null,null,null,null,{"$f":"IF(Table_Data_Table_1[[#This Row],[Valuation Method]]=\"Vacant\",VLOOKUP(Table_Data_Table_1[[#This Row],[Item ID]],DataTable,6,FALSE)-VLOOKUP(Table_Data_Table_1[[#This Row],[Item ID]],DataTable,13,FALSE),IF(Table_Data_Table_1[[#This Row],[Valuation Method]]=\"Abstraction\",VLOOKUP(Table_Data_Table_1[[#This Row],[Item ID]],DataTable,6,FALSE)-VLOOKUP(Table_Data_Table_1[[#This Row],[Item ID]],DataTable,13,FALSE),IF(Table_Data_Table_1[[#This Row],[Valuation Method]]=\"Allocation\",VLOOKUP(Table_Data_Table_1[[#This Row],[Item ID]],DataTable,6,FALSE)*I368,\"\")))","v":""},{"$f":"IF(Table_Data_Table_1[[#This Row],[Valuation Method]]=\"Vacant\",\"N/A\",IF(Table_Data_Table_1[[#This Row],[Valuation Method]]=\"Abstraction\",Table_Data_Table_1[[#This Row],[Land\nResidual]]/VLOOKUP(Table_Data_Table_1[[#This Row],[Item ID]],DataTable,6,FALSE),IF(Table_Data_Table_1[[#This Row],[Valuation Method]]=\"Allocation\",'Global Settings'!$H$20,\"\")))","v":""},{"$f":"IFERROR(ROUND(Table_Data_Table_1[[#This Row],[Resid\nSq Ft]]/43560,3),\"\")","v":""},{"$f":"IF(Table_Data_Table_1[[#This Row],[Item ID]]=\"\",\"\",IFERROR(VLOOKUP(Table_Data_Table_1[[#This Row],[Item ID]],DataTable,10,FALSE)-VLOOKUP(Table_Data_Table_1[[#This Row],[Item ID]],DataTable,12,FALSE),\"\"))","v":""},{"$f":"IFERROR(Table_Data_Table_1[[#This Row],[Land\nResidual]]/Table_Data_Table_1[[#This Row],[Resid\nAcre]],\"\")","v":""},{"$f":"IFERROR(ROUND(Table_Data_Table_1[[#This Row],[Land\nResidual]]/Table_Data_Table_1[[#This Row],[Resid\nSq Ft]],2),\"\")","v":""},{"$f":"IF(Table_Data_Table_1[[#This Row],[Item ID]]=\"\",\"\",ROUND(DAYS360(Table_Data_Table_1[[#This Row],[Sale Date]],'Global Settings'!$H$5)/30,0))","v":""},{"$f":"IFERROR(IF(AND(Table_Data_Table_1[[#This Row],[Months To\nMid-Point]]<12.01,Table_Data_Table_1[[#This Row],[Months To\nMid-Point]]>-13),0,(Table_Data_Table_1[[#This Row],[Months To\nMid-Point]]*'Global Settings'!$H$6)),\"\")","v":""},{"$f":"IFERROR(Table_Data_Table_1[[#This Row],[Land\nResidual]]*(Table_Data_Table_1[[#This Row],[Time\nAdjust]]+1),\"\")","v":""},{"$f":"IFERROR(Table_Data_Table_1[[#This Row],[Adjusted\nSale Price]]/Table_Data_Table_1[[#This Row],[Resid\nAcre]],\"\")","v":""},{"$f":"IFERROR(ROUND(Table_Data_Table_1[[#This Row],[Adjusted\nSale Price]]/Table_Data_Table_1[[#This Row],[Resid\nSq Ft]],2),\"\")","v":""},{"$f":"IFERROR(IF(VLOOKUP(Table_Data_Table_1[[#This Row],[Item ID]],DataTable,11,FALSE)=0,\"N/A\",Table_Data_Table_1[[#This Row],[Adjusted\nSale Price]]/VLOOKUP(Table_Data_Table_1[[#This Row],[Item ID]],DataTable,11,FALSE)),\"\")","v":""},{"$f":"IF(IFERROR(VLOOKUP(Table_Data_Table_1[[#This Row],[Item ID]],DataTable,17,FALSE),\"\")=0,\"\",IFERROR(VLOOKUP(Table_Data_Table_1[[#This Row],[Item ID]],DataTable,17,FALSE),\"\"))","v":""}]
["",null,{"$f":"IF(Table_Data_Table_1[[#This Row],[Item ID]]=\"\",\"\",IFERROR(VLOOKUP(Table_Data_Table_1[[#This Row],[Item ID]],DataTable,16,FALSE),\"\"))","v":""},null,null,null,null,{"$f":"IF(Table_Data_Table_1[[#This Row],[Valuation Method]]=\"Vacant\",VLOOKUP(Table_Data_Table_1[[#This Row],[Item ID]],DataTable,6,FALSE)-VLOOKUP(Table_Data_Table_1[[#This Row],[Item ID]],DataTable,13,FALSE),IF(Table_Data_Table_1[[#This Row],[Valuation Method]]=\"Abstraction\",VLOOKUP(Table_Data_Table_1[[#This Row],[Item ID]],DataTable,6,FALSE)-VLOOKUP(Table_Data_Table_1[[#This Row],[Item ID]],DataTable,13,FALSE),IF(Table_Data_Table_1[[#This Row],[Valuation Method]]=\"Allocation\",VLOOKUP(Table_Data_Table_1[[#This Row],[Item ID]],DataTable,6,FALSE)*I369,\"\")))","v":""},{"$f":"IF(Table_Data_Table_1[[#This Row],[Valuation Method]]=\"Vacant\",\"N/A\",IF(Table_Data_Table_1[[#This Row],[Valuation Method]]=\"Abstraction\",Table_Data_Table_1[[#This Row],[Land\nResidual]]/VLOOKUP(Table_Data_Table_1[[#This Row],[Item ID]],DataTable,6,FALSE),IF(Table_Data_Table_1[[#This Row],[Valuation Method]]=\"Allocation\",'Global Settings'!$H$20,\"\")))","v":""},{"$f":"IFERROR(ROUND(Table_Data_Table_1[[#This Row],[Resid\nSq Ft]]/43560,3),\"\")","v":""},{"$f":"IF(Table_Data_Table_1[[#This Row],[Item ID]]=\"\",\"\",IFERROR(VLOOKUP(Table_Data_Table_1[[#This Row],[Item ID]],DataTable,10,FALSE)-VLOOKUP(Table_Data_Table_1[[#This Row],[Item ID]],DataTable,12,FALSE),\"\"))","v":""},{"$f":"IFERROR(Table_Data_Table_1[[#This Row],[Land\nResidual]]/Table_Data_Table_1[[#This Row],[Resid\nAcre]],\"\")","v":""},{"$f":"IFERROR(ROUND(Table_Data_Table_1[[#This Row],[Land\nResidual]]/Table_Data_Table_1[[#This Row],[Resid\nSq Ft]],2),\"\")","v":""},{"$f":"IF(Table_Data_Table_1[[#This Row],[Item ID]]=\"\",\"\",ROUND(DAYS360(Table_Data_Table_1[[#This Row],[Sale Date]],'Global Settings'!$H$5)/30,0))","v":""},{"$f":"IFERROR(IF(AND(Table_Data_Table_1[[#This Row],[Months To\nMid-Point]]<12.01,Table_Data_Table_1[[#This Row],[Months To\nMid-Point]]>-13),0,(Table_Data_Table_1[[#This Row],[Months To\nMid-Point]]*'Global Settings'!$H$6)),\"\")","v":""},{"$f":"IFERROR(Table_Data_Table_1[[#This Row],[Land\nResidual]]*(Table_Data_Table_1[[#This Row],[Time\nAdjust]]+1),\"\")","v":""},{"$f":"IFERROR(Table_Data_Table_1[[#This Row],[Adjusted\nSale Price]]/Table_Data_Table_1[[#This Row],[Resid\nAcre]],\"\")","v":""},{"$f":"IFERROR(ROUND(Table_Data_Table_1[[#This Row],[Adjusted\nSale Price]]/Table_Data_Table_1[[#This Row],[Resid\nSq Ft]],2),\"\")","v":""},{"$f":"IFERROR(IF(VLOOKUP(Table_Data_Table_1[[#This Row],[Item ID]],DataTable,11,FALSE)=0,\"N/A\",Table_Data_Table_1[[#This Row],[Adjusted\nSale Price]]/VLOOKUP(Table_Data_Table_1[[#This Row],[Item ID]],DataTable,11,FALSE)),\"\")","v":""},{"$f":"IF(IFERROR(VLOOKUP(Table_Data_Table_1[[#This Row],[Item ID]],DataTable,17,FALSE),\"\")=0,\"\",IFERROR(VLOOKUP(Table_Data_Table_1[[#This Row],[Item ID]],DataTable,17,FALSE),\"\"))","v":""}]
["",null,{"$f":"IF(Table_Data_Table_1[[#This Row],[Item ID]]=\"\",\"\",IFERROR(VLOOKUP(Table_Data_Table_1[[#This Row],[Item ID]],DataTable,16,FALSE),\"\"))","v":""},null,null,null,null,{"$f":"IF(Table_Data_Table_1[[#This Row],[Valuation Method]]=\"Vacant\",VLOOKUP(Table_Data_Table_1[[#This Row],[Item ID]],DataTable,6,FALSE)-VLOOKUP(Table_Data_Table_1[[#This Row],[Item ID]],DataTable,13,FALSE),IF(Table_Data_Table_1[[#This Row],[Valuation Method]]=\"Abstraction\",VLOOKUP(Table_Data_Table_1[[#This Row],[Item ID]],DataTable,6,FALSE)-VLOOKUP(Table_Data_Table_1[[#This Row],[Item ID]],DataTable,13,FALSE),IF(Table_Data_Table_1[[#This Row],[Valuation Method]]=\"Allocation\",VLOOKUP(Table_Data_Table_1[[#This Row],[Item ID]],DataTable,6,FALSE)*I370,\"\")))","v":""},{"$f":"IF(Table_Data_Table_1[[#This Row],[Valuation Method]]=\"Vacant\",\"N/A\",IF(Table_Data_Table_1[[#This Row],[Valuation Method]]=\"Abstraction\",Table_Data_Table_1[[#This Row],[Land\nResidual]]/VLOOKUP(Table_Data_Table_1[[#This Row],[Item ID]],DataTable,6,FALSE),IF(Table_Data_Table_1[[#This Row],[Valuation Method]]=\"Allocation\",'Global Settings'!$H$20,\"\")))","v":""},{"$f":"IFERROR(ROUND(Table_Data_Table_1[[#This Row],[Resid\nSq Ft]]/43560,3),\"\")","v":""},{"$f":"IF(Table_Data_Table_1[[#This Row],[Item ID]]=\"\",\"\",IFERROR(VLOOKUP(Table_Data_Table_1[[#This Row],[Item ID]],DataTable,10,FALSE)-VLOOKUP(Table_Data_Table_1[[#This Row],[Item ID]],DataTable,12,FALSE),\"\"))","v":""},{"$f":"IFERROR(Table_Data_Table_1[[#This Row],[Land\nResidual]]/Table_Data_Table_1[[#This Row],[Resid\nAcre]],\"\")","v":""},{"$f":"IFERROR(ROUND(Table_Data_Table_1[[#This Row],[Land\nResidual]]/Table_Data_Table_1[[#This Row],[Resid\nSq Ft]],2),\"\")","v":""},{"$f":"IF(Table_Data_Table_1[[#This Row],[Item ID]]=\"\",\"\",ROUND(DAYS360(Table_Data_Table_1[[#This Row],[Sale Date]],'Global Settings'!$H$5)/30,0))","v":""},{"$f":"IFERROR(IF(AND(Table_Data_Table_1[[#This Row],[Months To\nMid-Point]]<12.01,Table_Data_Table_1[[#This Row],[Months To\nMid-Point]]>-13),0,(Table_Data_Table_1[[#This Row],[Months To\nMid-Point]]*'Global Settings'!$H$6)),\"\")","v":""},{"$f":"IFERROR(Table_Data_Table_1[[#This Row],[Land\nResidual]]*(Table_Data_Table_1[[#This Row],[Time\nAdjust]]+1),\"\")","v":""},{"$f":"IFERROR(Table_Data_Table_1[[#This Row],[Adjusted\nSale Price]]/Table_Data_Table_1[[#This Row],[Resid\nAcre]],\"\")","v":""},{"$f":"IFERROR(ROUND(Table_Data_Table_1[[#This Row],[Adjusted\nSale Price]]/Table_Data_Table_1[[#This Row],[Resid\nSq Ft]],2),\"\")","v":""},{"$f":"IFERROR(IF(VLOOKUP(Table_Data_Table_1[[#This Row],[Item ID]],DataTable,11,FALSE)=0,\"N/A\",Table_Data_Table_1[[#This Row],[Adjusted\nSale Price]]/VLOOKUP(Table_Data_Table_1[[#This Row],[Item ID]],DataTable,11,FALSE)),\"\")","v":""},{"$f":"IF(IFERROR(VLOOKUP(Table_Data_Table_1[[#This Row],[Item ID]],DataTable,17,FALSE),\"\")=0,\"\",IFERROR(VLOOKUP(Table_Data_Table_1[[#This Row],[Item ID]],DataTable,17,FALSE),\"\"))","v":""}]
["",null,{"$f":"IF(Table_Data_Table_1[[#This Row],[Item ID]]=\"\",\"\",IFERROR(VLOOKUP(Table_Data_Table_1[[#This Row],[Item ID]],DataTable,16,FALSE),\"\"))","v":""},null,null,null,null,{"$f":"IF(Table_Data_Table_1[[#This Row],[Valuation Method]]=\"Vacant\",VLOOKUP(Table_Data_Table_1[[#This Row],[Item ID]],DataTable,6,FALSE)-VLOOKUP(Table_Data_Table_1[[#This Row],[Item ID]],DataTable,13,FALSE),IF(Table_Data_Table_1[[#This Row],[Valuation Method]]=\"Abstraction\",VLOOKUP(Table_Data_Table_1[[#This Row],[Item ID]],DataTable,6,FALSE)-VLOOKUP(Table_Data_Table_1[[#This Row],[Item ID]],DataTable,13,FALSE),IF(Table_Data_Table_1[[#This Row],[Valuation Method]]=\"Allocation\",VLOOKUP(Table_Data_Table_1[[#This Row],[Item ID]],DataTable,6,FALSE)*I371,\"\")))","v":""},{"$f":"IF(Table_Data_Table_1[[#This Row],[Valuation Method]]=\"Vacant\",\"N/A\",IF(Table_Data_Table_1[[#This Row],[Valuation Method]]=\"Abstraction\",Table_Data_Table_1[[#This Row],[Land\nResidual]]/VLOOKUP(Table_Data_Table_1[[#This Row],[Item ID]],DataTable,6,FALSE),IF(Table_Data_Table_1[[#This Row],[Valuation Method]]=\"Allocation\",'Global Settings'!$H$20,\"\")))","v":""},{"$f":"IFERROR(ROUND(Table_Data_Table_1[[#This Row],[Resid\nSq Ft]]/43560,3),\"\")","v":""},{"$f":"IF(Table_Data_Table_1[[#This Row],[Item ID]]=\"\",\"\",IFERROR(VLOOKUP(Table_Data_Table_1[[#This Row],[Item ID]],DataTable,10,FALSE)-VLOOKUP(Table_Data_Table_1[[#This Row],[Item ID]],DataTable,12,FALSE),\"\"))","v":""},{"$f":"IFERROR(Table_Data_Table_1[[#This Row],[Land\nResidual]]/Table_Data_Table_1[[#This Row],[Resid\nAcre]],\"\")","v":""},{"$f":"IFERROR(ROUND(Table_Data_Table_1[[#This Row],[Land\nResidual]]/Table_Data_Table_1[[#This Row],[Resid\nSq Ft]],2),\"\")","v":""},{"$f":"IF(Table_Data_Table_1[[#This Row],[Item ID]]=\"\",\"\",ROUND(DAYS360(Table_Data_Table_1[[#This Row],[Sale Date]],'Global Settings'!$H$5)/30,0))","v":""},{"$f":"IFERROR(IF(AND(Table_Data_Table_1[[#This Row],[Months To\nMid-Point]]<12.01,Table_Data_Table_1[[#This Row],[Months To\nMid-Point]]>-13),0,(Table_Data_Table_1[[#This Row],[Months To\nMid-Point]]*'Global Settings'!$H$6)),\"\")","v":""},{"$f":"IFERROR(Table_Data_Table_1[[#This Row],[Land\nResidual]]*(Table_Data_Table_1[[#This Row],[Time\nAdjust]]+1),\"\")","v":""},{"$f":"IFERROR(Table_Data_Table_1[[#This Row],[Adjusted\nSale Price]]/Table_Data_Table_1[[#This Row],[Resid\nAcre]],\"\")","v":""},{"$f":"IFERROR(ROUND(Table_Data_Table_1[[#This Row],[Adjusted\nSale Price]]/Table_Data_Table_1[[#This Row],[Resid\nSq Ft]],2),\"\")","v":""},{"$f":"IFERROR(IF(VLOOKUP(Table_Data_Table_1[[#This Row],[Item ID]],DataTable,11,FALSE)=0,\"N/A\",Table_Data_Table_1[[#This Row],[Adjusted\nSale Price]]/VLOOKUP(Table_Data_Table_1[[#This Row],[Item ID]],DataTable,11,FALSE)),\"\")","v":""},{"$f":"IF(IFERROR(VLOOKUP(Table_Data_Table_1[[#This Row],[Item ID]],DataTable,17,FALSE),\"\")=0,\"\",IFERROR(VLOOKUP(Table_Data_Table_1[[#This Row],[Item ID]],DataTable,17,FALSE),\"\"))","v":""}]
["",null,{"$f":"IF(Table_Data_Table_1[[#This Row],[Item ID]]=\"\",\"\",IFERROR(VLOOKUP(Table_Data_Table_1[[#This Row],[Item ID]],DataTable,16,FALSE),\"\"))","v":""},null,null,null,null,{"$f":"IF(Table_Data_Table_1[[#This Row],[Valuation Method]]=\"Vacant\",VLOOKUP(Table_Data_Table_1[[#This Row],[Item ID]],DataTable,6,FALSE)-VLOOKUP(Table_Data_Table_1[[#This Row],[Item ID]],DataTable,13,FALSE),IF(Table_Data_Table_1[[#This Row],[Valuation Method]]=\"Abstraction\",VLOOKUP(Table_Data_Table_1[[#This Row],[Item ID]],DataTable,6,FALSE)-VLOOKUP(Table_Data_Table_1[[#This Row],[Item ID]],DataTable,13,FALSE),IF(Table_Data_Table_1[[#This Row],[Valuation Method]]=\"Allocation\",VLOOKUP(Table_Data_Table_1[[#This Row],[Item ID]],DataTable,6,FALSE)*I372,\"\")))","v":""},{"$f":"IF(Table_Data_Table_1[[#This Row],[Valuation Method]]=\"Vacant\",\"N/A\",IF(Table_Data_Table_1[[#This Row],[Valuation Method]]=\"Abstraction\",Table_Data_Table_1[[#This Row],[Land\nResidual]]/VLOOKUP(Table_Data_Table_1[[#This Row],[Item ID]],DataTable,6,FALSE),IF(Table_Data_Table_1[[#This Row],[Valuation Method]]=\"Allocation\",'Global Settings'!$H$20,\"\")))","v":""},{"$f":"IFERROR(ROUND(Table_Data_Table_1[[#This Row],[Resid\nSq Ft]]/43560,3),\"\")","v":""},{"$f":"IF(Table_Data_Table_1[[#This Row],[Item ID]]=\"\",\"\",IFERROR(VLOOKUP(Table_Data_Table_1[[#This Row],[Item ID]],DataTable,10,FALSE)-VLOOKUP(Table_Data_Table_1[[#This Row],[Item ID]],DataTable,12,FALSE),\"\"))","v":""},{"$f":"IFERROR(Table_Data_Table_1[[#This Row],[Land\nResidual]]/Table_Data_Table_1[[#This Row],[Resid\nAcre]],\"\")","v":""},{"$f":"IFERROR(ROUND(Table_Data_Table_1[[#This Row],[Land\nResidual]]/Table_Data_Table_1[[#This Row],[Resid\nSq Ft]],2),\"\")","v":""},{"$f":"IF(Table_Data_Table_1[[#This Row],[Item ID]]=\"\",\"\",ROUND(DAYS360(Table_Data_Table_1[[#This Row],[Sale Date]],'Global Settings'!$H$5)/30,0))","v":""},{"$f":"IFERROR(IF(AND(Table_Data_Table_1[[#This Row],[Months To\nMid-Point]]<12.01,Table_Data_Table_1[[#This Row],[Months To\nMid-Point]]>-13),0,(Table_Data_Table_1[[#This Row],[Months To\nMid-Point]]*'Global Settings'!$H$6)),\"\")","v":""},{"$f":"IFERROR(Table_Data_Table_1[[#This Row],[Land\nResidual]]*(Table_Data_Table_1[[#This Row],[Time\nAdjust]]+1),\"\")","v":""},{"$f":"IFERROR(Table_Data_Table_1[[#This Row],[Adjusted\nSale Price]]/Table_Data_Table_1[[#This Row],[Resid\nAcre]],\"\")","v":""},{"$f":"IFERROR(ROUND(Table_Data_Table_1[[#This Row],[Adjusted\nSale Price]]/Table_Data_Table_1[[#This Row],[Resid\nSq Ft]],2),\"\")","v":""},{"$f":"IFERROR(IF(VLOOKUP(Table_Data_Table_1[[#This Row],[Item ID]],DataTable,11,FALSE)=0,\"N/A\",Table_Data_Table_1[[#This Row],[Adjusted\nSale Price]]/VLOOKUP(Table_Data_Table_1[[#This Row],[Item ID]],DataTable,11,FALSE)),\"\")","v":""},{"$f":"IF(IFERROR(VLOOKUP(Table_Data_Table_1[[#This Row],[Item ID]],DataTable,17,FALSE),\"\")=0,\"\",IFERROR(VLOOKUP(Table_Data_Table_1[[#This Row],[Item ID]],DataTable,17,FALSE),\"\"))","v":""}]
["",null,{"$f":"IF(Table_Data_Table_1[[#This Row],[Item ID]]=\"\",\"\",IFERROR(VLOOKUP(Table_Data_Table_1[[#This Row],[Item ID]],DataTable,16,FALSE),\"\"))","v":""},null,null,null,null,{"$f":"IF(Table_Data_Table_1[[#This Row],[Valuation Method]]=\"Vacant\",VLOOKUP(Table_Data_Table_1[[#This Row],[Item ID]],DataTable,6,FALSE)-VLOOKUP(Table_Data_Table_1[[#This Row],[Item ID]],DataTable,13,FALSE),IF(Table_Data_Table_1[[#This Row],[Valuation Method]]=\"Abstraction\",VLOOKUP(Table_Data_Table_1[[#This Row],[Item ID]],DataTable,6,FALSE)-VLOOKUP(Table_Data_Table_1[[#This Row],[Item ID]],DataTable,13,FALSE),IF(Table_Data_Table_1[[#This Row],[Valuation Method]]=\"Allocation\",VLOOKUP(Table_Data_Table_1[[#This Row],[Item ID]],DataTable,6,FALSE)*I373,\"\")))","v":""},{"$f":"IF(Table_Data_Table_1[[#This Row],[Valuation Method]]=\"Vacant\",\"N/A\",IF(Table_Data_Table_1[[#This Row],[Valuation Method]]=\"Abstraction\",Table_Data_Table_1[[#This Row],[Land\nResidual]]/VLOOKUP(Table_Data_Table_1[[#This Row],[Item ID]],DataTable,6,FALSE),IF(Table_Data_Table_1[[#This Row],[Valuation Method]]=\"Allocation\",'Global Settings'!$H$20,\"\")))","v":""},{"$f":"IFERROR(ROUND(Table_Data_Table_1[[#This Row],[Resid\nSq Ft]]/43560,3),\"\")","v":""},{"$f":"IF(Table_Data_Table_1[[#This Row],[Item ID]]=\"\",\"\",IFERROR(VLOOKUP(Table_Data_Table_1[[#This Row],[Item ID]],DataTable,10,FALSE)-VLOOKUP(Table_Data_Table_1[[#This Row],[Item ID]],DataTable,12,FALSE),\"\"))","v":""},{"$f":"IFERROR(Table_Data_Table_1[[#This Row],[Land\nResidual]]/Table_Data_Table_1[[#This Row],[Resid\nAcre]],\"\")","v":""},{"$f":"IFERROR(ROUND(Table_Data_Table_1[[#This Row],[Land\nResidual]]/Table_Data_Table_1[[#This Row],[Resid\nSq Ft]],2),\"\")","v":""},{"$f":"IF(Table_Data_Table_1[[#This Row],[Item ID]]=\"\",\"\",ROUND(DAYS360(Table_Data_Table_1[[#This Row],[Sale Date]],'Global Settings'!$H$5)/30,0))","v":""},{"$f":"IFERROR(IF(AND(Table_Data_Table_1[[#This Row],[Months To\nMid-Point]]<12.01,Table_Data_Table_1[[#This Row],[Months To\nMid-Point]]>-13),0,(Table_Data_Table_1[[#This Row],[Months To\nMid-Point]]*'Global Settings'!$H$6)),\"\")","v":""},{"$f":"IFERROR(Table_Data_Table_1[[#This Row],[Land\nResidual]]*(Table_Data_Table_1[[#This Row],[Time\nAdjust]]+1),\"\")","v":""},{"$f":"IFERROR(Table_Data_Table_1[[#This Row],[Adjusted\nSale Price]]/Table_Data_Table_1[[#This Row],[Resid\nAcre]],\"\")","v":""},{"$f":"IFERROR(ROUND(Table_Data_Table_1[[#This Row],[Adjusted\nSale Price]]/Table_Data_Table_1[[#This Row],[Resid\nSq Ft]],2),\"\")","v":""},{"$f":"IFERROR(IF(VLOOKUP(Table_Data_Table_1[[#This Row],[Item ID]],DataTable,11,FALSE)=0,\"N/A\",Table_Data_Table_1[[#This Row],[Adjusted\nSale Price]]/VLOOKUP(Table_Data_Table_1[[#This Row],[Item ID]],DataTable,11,FALSE)),\"\")","v":""},{"$f":"IF(IFERROR(VLOOKUP(Table_Data_Table_1[[#This Row],[Item ID]],DataTable,17,FALSE),\"\")=0,\"\",IFERROR(VLOOKUP(Table_Data_Table_1[[#This Row],[Item ID]],DataTable,17,FALSE),\"\"))","v":""}]
["",null,{"$f":"IF(Table_Data_Table_1[[#This Row],[Item ID]]=\"\",\"\",IFERROR(VLOOKUP(Table_Data_Table_1[[#This Row],[Item ID]],DataTable,16,FALSE),\"\"))","v":""},null,null,null,null,{"$f":"IF(Table_Data_Table_1[[#This Row],[Valuation Method]]=\"Vacant\",VLOOKUP(Table_Data_Table_1[[#This Row],[Item ID]],DataTable,6,FALSE)-VLOOKUP(Table_Data_Table_1[[#This Row],[Item ID]],DataTable,13,FALSE),IF(Table_Data_Table_1[[#This Row],[Valuation Method]]=\"Abstraction\",VLOOKUP(Table_Data_Table_1[[#This Row],[Item ID]],DataTable,6,FALSE)-VLOOKUP(Table_Data_Table_1[[#This Row],[Item ID]],DataTable,13,FALSE),IF(Table_Data_Table_1[[#This Row],[Valuation Method]]=\"Allocation\",VLOOKUP(Table_Data_Table_1[[#This Row],[Item ID]],DataTable,6,FALSE)*I374,\"\")))","v":""},{"$f":"IF(Table_Data_Table_1[[#This Row],[Valuation Method]]=\"Vacant\",\"N/A\",IF(Table_Data_Table_1[[#This Row],[Valuation Method]]=\"Abstraction\",Table_Data_Table_1[[#This Row],[Land\nResidual]]/VLOOKUP(Table_Data_Table_1[[#This Row],[Item ID]],DataTable,6,FALSE),IF(Table_Data_Table_1[[#This Row],[Valuation Method]]=\"Allocation\",'Global Settings'!$H$20,\"\")))","v":""},{"$f":"IFERROR(ROUND(Table_Data_Table_1[[#This Row],[Resid\nSq Ft]]/43560,3),\"\")","v":""},{"$f":"IF(Table_Data_Table_1[[#This Row],[Item ID]]=\"\",\"\",IFERROR(VLOOKUP(Table_Data_Table_1[[#This Row],[Item ID]],DataTable,10,FALSE)-VLOOKUP(Table_Data_Table_1[[#This Row],[Item ID]],DataTable,12,FALSE),\"\"))","v":""},{"$f":"IFERROR(Table_Data_Table_1[[#This Row],[Land\nResidual]]/Table_Data_Table_1[[#This Row],[Resid\nAcre]],\"\")","v":""},{"$f":"IFERROR(ROUND(Table_Data_Table_1[[#This Row],[Land\nResidual]]/Table_Data_Table_1[[#This Row],[Resid\nSq Ft]],2),\"\")","v":""},{"$f":"IF(Table_Data_Table_1[[#This Row],[Item ID]]=\"\",\"\",ROUND(DAYS360(Table_Data_Table_1[[#This Row],[Sale Date]],'Global Settings'!$H$5)/30,0))","v":""},{"$f":"IFERROR(IF(AND(Table_Data_Table_1[[#This Row],[Months To\nMid-Point]]<12.01,Table_Data_Table_1[[#This Row],[Months To\nMid-Point]]>-13),0,(Table_Data_Table_1[[#This Row],[Months To\nMid-Point]]*'Global Settings'!$H$6)),\"\")","v":""},{"$f":"IFERROR(Table_Data_Table_1[[#This Row],[Land\nResidual]]*(Table_Data_Table_1[[#This Row],[Time\nAdjust]]+1),\"\")","v":""},{"$f":"IFERROR(Table_Data_Table_1[[#This Row],[Adjusted\nSale Price]]/Table_Data_Table_1[[#This Row],[Resid\nAcre]],\"\")","v":""},{"$f":"IFERROR(ROUND(Table_Data_Table_1[[#This Row],[Adjusted\nSale Price]]/Table_Data_Table_1[[#This Row],[Resid\nSq Ft]],2),\"\")","v":""},{"$f":"IFERROR(IF(VLOOKUP(Table_Data_Table_1[[#This Row],[Item ID]],DataTable,11,FALSE)=0,\"N/A\",Table_Data_Table_1[[#This Row],[Adjusted\nSale Price]]/VLOOKUP(Table_Data_Table_1[[#This Row],[Item ID]],DataTable,11,FALSE)),\"\")","v":""},{"$f":"IF(IFERROR(VLOOKUP(Table_Data_Table_1[[#This Row],[Item ID]],DataTable,17,FALSE),\"\")=0,\"\",IFERROR(VLOOKUP(Table_Data_Table_1[[#This Row],[Item ID]],DataTable,17,FALSE),\"\"))","v":""}]
["",null,{"$f":"IF(Table_Data_Table_1[[#This Row],[Item ID]]=\"\",\"\",IFERROR(VLOOKUP(Table_Data_Table_1[[#This Row],[Item ID]],DataTable,16,FALSE),\"\"))","v":""},null,null,null,null,{"$f":"IF(Table_Data_Table_1[[#This Row],[Valuation Method]]=\"Vacant\",VLOOKUP(Table_Data_Table_1[[#This Row],[Item ID]],DataTable,6,FALSE)-VLOOKUP(Table_Data_Table_1[[#This Row],[Item ID]],DataTable,13,FALSE),IF(Table_Data_Table_1[[#This Row],[Valuation Method]]=\"Abstraction\",VLOOKUP(Table_Data_Table_1[[#This Row],[Item ID]],DataTable,6,FALSE)-VLOOKUP(Table_Data_Table_1[[#This Row],[Item ID]],DataTable,13,FALSE),IF(Table_Data_Table_1[[#This Row],[Valuation Method]]=\"Allocation\",VLOOKUP(Table_Data_Table_1[[#This Row],[Item ID]],DataTable,6,FALSE)*I375,\"\")))","v":""},{"$f":"IF(Table_Data_Table_1[[#This Row],[Valuation Method]]=\"Vacant\",\"N/A\",IF(Table_Data_Table_1[[#This Row],[Valuation Method]]=\"Abstraction\",Table_Data_Table_1[[#This Row],[Land\nResidual]]/VLOOKUP(Table_Data_Table_1[[#This Row],[Item ID]],DataTable,6,FALSE),IF(Table_Data_Table_1[[#This Row],[Valuation Method]]=\"Allocation\",'Global Settings'!$H$20,\"\")))","v":""},{"$f":"IFERROR(ROUND(Table_Data_Table_1[[#This Row],[Resid\nSq Ft]]/43560,3),\"\")","v":""},{"$f":"IF(Table_Data_Table_1[[#This Row],[Item ID]]=\"\",\"\",IFERROR(VLOOKUP(Table_Data_Table_1[[#This Row],[Item ID]],DataTable,10,FALSE)-VLOOKUP(Table_Data_Table_1[[#This Row],[Item ID]],DataTable,12,FALSE),\"\"))","v":""},{"$f":"IFERROR(Table_Data_Table_1[[#This Row],[Land\nResidual]]/Table_Data_Table_1[[#This Row],[Resid\nAcre]],\"\")","v":""},{"$f":"IFERROR(ROUND(Table_Data_Table_1[[#This Row],[Land\nResidual]]/Table_Data_Table_1[[#This Row],[Resid\nSq Ft]],2),\"\")","v":""},{"$f":"IF(Table_Data_Table_1[[#This Row],[Item ID]]=\"\",\"\",ROUND(DAYS360(Table_Data_Table_1[[#This Row],[Sale Date]],'Global Settings'!$H$5)/30,0))","v":""},{"$f":"IFERROR(IF(AND(Table_Data_Table_1[[#This Row],[Months To\nMid-Point]]<12.01,Table_Data_Table_1[[#This Row],[Months To\nMid-Point]]>-13),0,(Table_Data_Table_1[[#This Row],[Months To\nMid-Point]]*'Global Settings'!$H$6)),\"\")","v":""},{"$f":"IFERROR(Table_Data_Table_1[[#This Row],[Land\nResidual]]*(Table_Data_Table_1[[#This Row],[Time\nAdjust]]+1),\"\")","v":""},{"$f":"IFERROR(Table_Data_Table_1[[#This Row],[Adjusted\nSale Price]]/Table_Data_Table_1[[#This Row],[Resid\nAcre]],\"\")","v":""},{"$f":"IFERROR(ROUND(Table_Data_Table_1[[#This Row],[Adjusted\nSale Price]]/Table_Data_Table_1[[#This Row],[Resid\nSq Ft]],2),\"\")","v":""},{"$f":"IFERROR(IF(VLOOKUP(Table_Data_Table_1[[#This Row],[Item ID]],DataTable,11,FALSE)=0,\"N/A\",Table_Data_Table_1[[#This Row],[Adjusted\nSale Price]]/VLOOKUP(Table_Data_Table_1[[#This Row],[Item ID]],DataTable,11,FALSE)),\"\")","v":""},{"$f":"IF(IFERROR(VLOOKUP(Table_Data_Table_1[[#This Row],[Item ID]],DataTable,17,FALSE),\"\")=0,\"\",IFERROR(VLOOKUP(Table_Data_Table_1[[#This Row],[Item ID]],DataTable,17,FALSE),\"\"))","v":""}]
["",null,{"$f":"IF(Table_Data_Table_1[[#This Row],[Item ID]]=\"\",\"\",IFERROR(VLOOKUP(Table_Data_Table_1[[#This Row],[Item ID]],DataTable,16,FALSE),\"\"))","v":""},null,null,null,null,{"$f":"IF(Table_Data_Table_1[[#This Row],[Valuation Method]]=\"Vacant\",VLOOKUP(Table_Data_Table_1[[#This Row],[Item ID]],DataTable,6,FALSE)-VLOOKUP(Table_Data_Table_1[[#This Row],[Item ID]],DataTable,13,FALSE),IF(Table_Data_Table_1[[#This Row],[Valuation Method]]=\"Abstraction\",VLOOKUP(Table_Data_Table_1[[#This Row],[Item ID]],DataTable,6,FALSE)-VLOOKUP(Table_Data_Table_1[[#This Row],[Item ID]],DataTable,13,FALSE),IF(Table_Data_Table_1[[#This Row],[Valuation Method]]=\"Allocation\",VLOOKUP(Table_Data_Table_1[[#This Row],[Item ID]],DataTable,6,FALSE)*I376,\"\")))","v":""},{"$f":"IF(Table_Data_Table_1[[#This Row],[Valuation Method]]=\"Vacant\",\"N/A\",IF(Table_Data_Table_1[[#This Row],[Valuation Method]]=\"Abstraction\",Table_Data_Table_1[[#This Row],[Land\nResidual]]/VLOOKUP(Table_Data_Table_1[[#This Row],[Item ID]],DataTable,6,FALSE),IF(Table_Data_Table_1[[#This Row],[Valuation Method]]=\"Allocation\",'Global Settings'!$H$20,\"\")))","v":""},{"$f":"IFERROR(ROUND(Table_Data_Table_1[[#This Row],[Resid\nSq Ft]]/43560,3),\"\")","v":""},{"$f":"IF(Table_Data_Table_1[[#This Row],[Item ID]]=\"\",\"\",IFERROR(VLOOKUP(Table_Data_Table_1[[#This Row],[Item ID]],DataTable,10,FALSE)-VLOOKUP(Table_Data_Table_1[[#This Row],[Item ID]],DataTable,12,FALSE),\"\"))","v":""},{"$f":"IFERROR(Table_Data_Table_1[[#This Row],[Land\nResidual]]/Table_Data_Table_1[[#This Row],[Resid\nAcre]],\"\")","v":""},{"$f":"IFERROR(ROUND(Table_Data_Table_1[[#This Row],[Land\nResidual]]/Table_Data_Table_1[[#This Row],[Resid\nSq Ft]],2),\"\")","v":""},{"$f":"IF(Table_Data_Table_1[[#This Row],[Item ID]]=\"\",\"\",ROUND(DAYS360(Table_Data_Table_1[[#This Row],[Sale Date]],'Global Settings'!$H$5)/30,0))","v":""},{"$f":"IFERROR(IF(AND(Table_Data_Table_1[[#This Row],[Months To\nMid-Point]]<12.01,Table_Data_Table_1[[#This Row],[Months To\nMid-Point]]>-13),0,(Table_Data_Table_1[[#This Row],[Months To\nMid-Point]]*'Global Settings'!$H$6)),\"\")","v":""},{"$f":"IFERROR(Table_Data_Table_1[[#This Row],[Land\nResidual]]*(Table_Data_Table_1[[#This Row],[Time\nAdjust]]+1),\"\")","v":""},{"$f":"IFERROR(Table_Data_Table_1[[#This Row],[Adjusted\nSale Price]]/Table_Data_Table_1[[#This Row],[Resid\nAcre]],\"\")","v":""},{"$f":"IFERROR(ROUND(Table_Data_Table_1[[#This Row],[Adjusted\nSale Price]]/Table_Data_Table_1[[#This Row],[Resid\nSq Ft]],2),\"\")","v":""},{"$f":"IFERROR(IF(VLOOKUP(Table_Data_Table_1[[#This Row],[Item ID]],DataTable,11,FALSE)=0,\"N/A\",Table_Data_Table_1[[#This Row],[Adjusted\nSale Price]]/VLOOKUP(Table_Data_Table_1[[#This Row],[Item ID]],DataTable,11,FALSE)),\"\")","v":""},{"$f":"IF(IFERROR(VLOOKUP(Table_Data_Table_1[[#This Row],[Item ID]],DataTable,17,FALSE),\"\")=0,\"\",IFERROR(VLOOKUP(Table_Data_Table_1[[#This Row],[Item ID]],DataTable,17,FALSE),\"\"))","v":""}]
["",null,{"$f":"IF(Table_Data_Table_1[[#This Row],[Item ID]]=\"\",\"\",IFERROR(VLOOKUP(Table_Data_Table_1[[#This Row],[Item ID]],DataTable,16,FALSE),\"\"))","v":""},null,null,null,null,{"$f":"IF(Table_Data_Table_1[[#This Row],[Valuation Method]]=\"Vacant\",VLOOKUP(Table_Data_Table_1[[#This Row],[Item ID]],DataTable,6,FALSE)-VLOOKUP(Table_Data_Table_1[[#This Row],[Item ID]],DataTable,13,FALSE),IF(Table_Data_Table_1[[#This Row],[Valuation Method]]=\"Abstraction\",VLOOKUP(Table_Data_Table_1[[#This Row],[Item ID]],DataTable,6,FALSE)-VLOOKUP(Table_Data_Table_1[[#This Row],[Item ID]],DataTable,13,FALSE),IF(Table_Data_Table_1[[#This Row],[Valuation Method]]=\"Allocation\",VLOOKUP(Table_Data_Table_1[[#This Row],[Item ID]],DataTable,6,FALSE)*I377,\"\")))","v":""},{"$f":"IF(Table_Data_Table_1[[#This Row],[Valuation Method]]=\"Vacant\",\"N/A\",IF(Table_Data_Table_1[[#This Row],[Valuation Method]]=\"Abstraction\",Table_Data_Table_1[[#This Row],[Land\nResidual]]/VLOOKUP(Table_Data_Table_1[[#This Row],[Item ID]],DataTable,6,FALSE),IF(Table_Data_Table_1[[#This Row],[Valuation Method]]=\"Allocation\",'Global Settings'!$H$20,\"\")))","v":""},{"$f":"IFERROR(ROUND(Table_Data_Table_1[[#This Row],[Resid\nSq Ft]]/43560,3),\"\")","v":""},{"$f":"IF(Table_Data_Table_1[[#This Row],[Item ID]]=\"\",\"\",IFERROR(VLOOKUP(Table_Data_Table_1[[#This Row],[Item ID]],DataTable,10,FALSE)-VLOOKUP(Table_Data_Table_1[[#This Row],[Item ID]],DataTable,12,FALSE),\"\"))","v":""},{"$f":"IFERROR(Table_Data_Table_1[[#This Row],[Land\nResidual]]/Table_Data_Table_1[[#This Row],[Resid\nAcre]],\"\")","v":""},{"$f":"IFERROR(ROUND(Table_Data_Table_1[[#This Row],[Land\nResidual]]/Table_Data_Table_1[[#This Row],[Resid\nSq Ft]],2),\"\")","v":""},{"$f":"IF(Table_Data_Table_1[[#This Row],[Item ID]]=\"\",\"\",ROUND(DAYS360(Table_Data_Table_1[[#This Row],[Sale Date]],'Global Settings'!$H$5)/30,0))","v":""},{"$f":"IFERROR(IF(AND(Table_Data_Table_1[[#This Row],[Months To\nMid-Point]]<12.01,Table_Data_Table_1[[#This Row],[Months To\nMid-Point]]>-13),0,(Table_Data_Table_1[[#This Row],[Months To\nMid-Point]]*'Global Settings'!$H$6)),\"\")","v":""},{"$f":"IFERROR(Table_Data_Table_1[[#This Row],[Land\nResidual]]*(Table_Data_Table_1[[#This Row],[Time\nAdjust]]+1),\"\")","v":""},{"$f":"IFERROR(Table_Data_Table_1[[#This Row],[Adjusted\nSale Price]]/Table_Data_Table_1[[#This Row],[Resid\nAcre]],\"\")","v":""},{"$f":"IFERROR(ROUND(Table_Data_Table_1[[#This Row],[Adjusted\nSale Price]]/Table_Data_Table_1[[#This Row],[Resid\nSq Ft]],2),\"\")","v":""},{"$f":"IFERROR(IF(VLOOKUP(Table_Data_Table_1[[#This Row],[Item ID]],DataTable,11,FALSE)=0,\"N/A\",Table_Data_Table_1[[#This Row],[Adjusted\nSale Price]]/VLOOKUP(Table_Data_Table_1[[#This Row],[Item ID]],DataTable,11,FALSE)),\"\")","v":""},{"$f":"IF(IFERROR(VLOOKUP(Table_Data_Table_1[[#This Row],[Item ID]],DataTable,17,FALSE),\"\")=0,\"\",IFERROR(VLOOKUP(Table_Data_Table_1[[#This Row],[Item ID]],DataTable,17,FALSE),\"\"))","v":""}]
["",null,{"$f":"IF(Table_Data_Table_1[[#This Row],[Item ID]]=\"\",\"\",IFERROR(VLOOKUP(Table_Data_Table_1[[#This Row],[Item ID]],DataTable,16,FALSE),\"\"))","v":""},null,null,null,null,{"$f":"IF(Table_Data_Table_1[[#This Row],[Valuation Method]]=\"Vacant\",VLOOKUP(Table_Data_Table_1[[#This Row],[Item ID]],DataTable,6,FALSE)-VLOOKUP(Table_Data_Table_1[[#This Row],[Item ID]],DataTable,13,FALSE),IF(Table_Data_Table_1[[#This Row],[Valuation Method]]=\"Abstraction\",VLOOKUP(Table_Data_Table_1[[#This Row],[Item ID]],DataTable,6,FALSE)-VLOOKUP(Table_Data_Table_1[[#This Row],[Item ID]],DataTable,13,FALSE),IF(Table_Data_Table_1[[#This Row],[Valuation Method]]=\"Allocation\",VLOOKUP(Table_Data_Table_1[[#This Row],[Item ID]],DataTable,6,FALSE)*I378,\"\")))","v":""},{"$f":"IF(Table_Data_Table_1[[#This Row],[Valuation Method]]=\"Vacant\",\"N/A\",IF(Table_Data_Table_1[[#This Row],[Valuation Method]]=\"Abstraction\",Table_Data_Table_1[[#This Row],[Land\nResidual]]/VLOOKUP(Table_Data_Table_1[[#This Row],[Item ID]],DataTable,6,FALSE),IF(Table_Data_Table_1[[#This Row],[Valuation Method]]=\"Allocation\",'Global Settings'!$H$20,\"\")))","v":""},{"$f":"IFERROR(ROUND(Table_Data_Table_1[[#This Row],[Resid\nSq Ft]]/43560,3),\"\")","v":""},{"$f":"IF(Table_Data_Table_1[[#This Row],[Item ID]]=\"\",\"\",IFERROR(VLOOKUP(Table_Data_Table_1[[#This Row],[Item ID]],DataTable,10,FALSE)-VLOOKUP(Table_Data_Table_1[[#This Row],[Item ID]],DataTable,12,FALSE),\"\"))","v":""},{"$f":"IFERROR(Table_Data_Table_1[[#This Row],[Land\nResidual]]/Table_Data_Table_1[[#This Row],[Resid\nAcre]],\"\")","v":""},{"$f":"IFERROR(ROUND(Table_Data_Table_1[[#This Row],[Land\nResidual]]/Table_Data_Table_1[[#This Row],[Resid\nSq Ft]],2),\"\")","v":""},{"$f":"IF(Table_Data_Table_1[[#This Row],[Item ID]]=\"\",\"\",ROUND(DAYS360(Table_Data_Table_1[[#This Row],[Sale Date]],'Global Settings'!$H$5)/30,0))","v":""},{"$f":"IFERROR(IF(AND(Table_Data_Table_1[[#This Row],[Months To\nMid-Point]]<12.01,Table_Data_Table_1[[#This Row],[Months To\nMid-Point]]>-13),0,(Table_Data_Table_1[[#This Row],[Months To\nMid-Point]]*'Global Settings'!$H$6)),\"\")","v":""},{"$f":"IFERROR(Table_Data_Table_1[[#This Row],[Land\nResidual]]*(Table_Data_Table_1[[#This Row],[Time\nAdjust]]+1),\"\")","v":""},{"$f":"IFERROR(Table_Data_Table_1[[#This Row],[Adjusted\nSale Price]]/Table_Data_Table_1[[#This Row],[Resid\nAcre]],\"\")","v":""},{"$f":"IFERROR(ROUND(Table_Data_Table_1[[#This Row],[Adjusted\nSale Price]]/Table_Data_Table_1[[#This Row],[Resid\nSq Ft]],2),\"\")","v":""},{"$f":"IFERROR(IF(VLOOKUP(Table_Data_Table_1[[#This Row],[Item ID]],DataTable,11,FALSE)=0,\"N/A\",Table_Data_Table_1[[#This Row],[Adjusted\nSale Price]]/VLOOKUP(Table_Data_Table_1[[#This Row],[Item ID]],DataTable,11,FALSE)),\"\")","v":""},{"$f":"IF(IFERROR(VLOOKUP(Table_Data_Table_1[[#This Row],[Item ID]],DataTable,17,FALSE),\"\")=0,\"\",IFERROR(VLOOKUP(Table_Data_Table_1[[#This Row],[Item ID]],DataTable,17,FALSE),\"\"))","v":""}]
["",null,{"$f":"IF(Table_Data_Table_1[[#This Row],[Item ID]]=\"\",\"\",IFERROR(VLOOKUP(Table_Data_Table_1[[#This Row],[Item ID]],DataTable,16,FALSE),\"\"))","v":""},null,null,null,null,{"$f":"IF(Table_Data_Table_1[[#This Row],[Valuation Method]]=\"Vacant\",VLOOKUP(Table_Data_Table_1[[#This Row],[Item ID]],DataTable,6,FALSE)-VLOOKUP(Table_Data_Table_1[[#This Row],[Item ID]],DataTable,13,FALSE),IF(Table_Data_Table_1[[#This Row],[Valuation Method]]=\"Abstraction\",VLOOKUP(Table_Data_Table_1[[#This Row],[Item ID]],DataTable,6,FALSE)-VLOOKUP(Table_Data_Table_1[[#This Row],[Item ID]],DataTable,13,FALSE),IF(Table_Data_Table_1[[#This Row],[Valuation Method]]=\"Allocation\",VLOOKUP(Table_Data_Table_1[[#This Row],[Item ID]],DataTable,6,FALSE)*I379,\"\")))","v":""},{"$f":"IF(Table_Data_Table_1[[#This Row],[Valuation Method]]=\"Vacant\",\"N/A\",IF(Table_Data_Table_1[[#This Row],[Valuation Method]]=\"Abstraction\",Table_Data_Table_1[[#This Row],[Land\nResidual]]/VLOOKUP(Table_Data_Table_1[[#This Row],[Item ID]],DataTable,6,FALSE),IF(Table_Data_Table_1[[#This Row],[Valuation Method]]=\"Allocation\",'Global Settings'!$H$20,\"\")))","v":""},{"$f":"IFERROR(ROUND(Table_Data_Table_1[[#This Row],[Resid\nSq Ft]]/43560,3),\"\")","v":""},{"$f":"IF(Table_Data_Table_1[[#This Row],[Item ID]]=\"\",\"\",IFERROR(VLOOKUP(Table_Data_Table_1[[#This Row],[Item ID]],DataTable,10,FALSE)-VLOOKUP(Table_Data_Table_1[[#This Row],[Item ID]],DataTable,12,FALSE),\"\"))","v":""},{"$f":"IFERROR(Table_Data_Table_1[[#This Row],[Land\nResidual]]/Table_Data_Table_1[[#This Row],[Resid\nAcre]],\"\")","v":""},{"$f":"IFERROR(ROUND(Table_Data_Table_1[[#This Row],[Land\nResidual]]/Table_Data_Table_1[[#This Row],[Resid\nSq Ft]],2),\"\")","v":""},{"$f":"IF(Table_Data_Table_1[[#This Row],[Item ID]]=\"\",\"\",ROUND(DAYS360(Table_Data_Table_1[[#This Row],[Sale Date]],'Global Settings'!$H$5)/30,0))","v":""},{"$f":"IFERROR(IF(AND(Table_Data_Table_1[[#This Row],[Months To\nMid-Point]]<12.01,Table_Data_Table_1[[#This Row],[Months To\nMid-Point]]>-13),0,(Table_Data_Table_1[[#This Row],[Months To\nMid-Point]]*'Global Settings'!$H$6)),\"\")","v":""},{"$f":"IFERROR(Table_Data_Table_1[[#This Row],[Land\nResidual]]*(Table_Data_Table_1[[#This Row],[Time\nAdjust]]+1),\"\")","v":""},{"$f":"IFERROR(Table_Data_Table_1[[#This Row],[Adjusted\nSale Price]]/Table_Data_Table_1[[#This Row],[Resid\nAcre]],\"\")","v":""},{"$f":"IFERROR(ROUND(Table_Data_Table_1[[#This Row],[Adjusted\nSale Price]]/Table_Data_Table_1[[#This Row],[Resid\nSq Ft]],2),\"\")","v":""},{"$f":"IFERROR(IF(VLOOKUP(Table_Data_Table_1[[#This Row],[Item ID]],DataTable,11,FALSE)=0,\"N/A\",Table_Data_Table_1[[#This Row],[Adjusted\nSale Price]]/VLOOKUP(Table_Data_Table_1[[#This Row],[Item ID]],DataTable,11,FALSE)),\"\")","v":""},{"$f":"IF(IFERROR(VLOOKUP(Table_Data_Table_1[[#This Row],[Item ID]],DataTable,17,FALSE),\"\")=0,\"\",IFERROR(VLOOKUP(Table_Data_Table_1[[#This Row],[Item ID]],DataTable,17,FALSE),\"\"))","v":""}]
["",null,{"$f":"IF(Table_Data_Table_1[[#This Row],[Item ID]]=\"\",\"\",IFERROR(VLOOKUP(Table_Data_Table_1[[#This Row],[Item ID]],DataTable,16,FALSE),\"\"))","v":""},null,null,null,null,{"$f":"IF(Table_Data_Table_1[[#This Row],[Valuation Method]]=\"Vacant\",VLOOKUP(Table_Data_Table_1[[#This Row],[Item ID]],DataTable,6,FALSE)-VLOOKUP(Table_Data_Table_1[[#This Row],[Item ID]],DataTable,13,FALSE),IF(Table_Data_Table_1[[#This Row],[Valuation Method]]=\"Abstraction\",VLOOKUP(Table_Data_Table_1[[#This Row],[Item ID]],DataTable,6,FALSE)-VLOOKUP(Table_Data_Table_1[[#This Row],[Item ID]],DataTable,13,FALSE),IF(Table_Data_Table_1[[#This Row],[Valuation Method]]=\"Allocation\",VLOOKUP(Table_Data_Table_1[[#This Row],[Item ID]],DataTable,6,FALSE)*I380,\"\")))","v":""},{"$f":"IF(Table_Data_Table_1[[#This Row],[Valuation Method]]=\"Vacant\",\"N/A\",IF(Table_Data_Table_1[[#This Row],[Valuation Method]]=\"Abstraction\",Table_Data_Table_1[[#This Row],[Land\nResidual]]/VLOOKUP(Table_Data_Table_1[[#This Row],[Item ID]],DataTable,6,FALSE),IF(Table_Data_Table_1[[#This Row],[Valuation Method]]=\"Allocation\",'Global Settings'!$H$20,\"\")))","v":""},{"$f":"IFERROR(ROUND(Table_Data_Table_1[[#This Row],[Resid\nSq Ft]]/43560,3),\"\")","v":""},{"$f":"IF(Table_Data_Table_1[[#This Row],[Item ID]]=\"\",\"\",IFERROR(VLOOKUP(Table_Data_Table_1[[#This Row],[Item ID]],DataTable,10,FALSE)-VLOOKUP(Table_Data_Table_1[[#This Row],[Item ID]],DataTable,12,FALSE),\"\"))","v":""},{"$f":"IFERROR(Table_Data_Table_1[[#This Row],[Land\nResidual]]/Table_Data_Table_1[[#This Row],[Resid\nAcre]],\"\")","v":""},{"$f":"IFERROR(ROUND(Table_Data_Table_1[[#This Row],[Land\nResidual]]/Table_Data_Table_1[[#This Row],[Resid\nSq Ft]],2),\"\")","v":""},{"$f":"IF(Table_Data_Table_1[[#This Row],[Item ID]]=\"\",\"\",ROUND(DAYS360(Table_Data_Table_1[[#This Row],[Sale Date]],'Global Settings'!$H$5)/30,0))","v":""},{"$f":"IFERROR(IF(AND(Table_Data_Table_1[[#This Row],[Months To\nMid-Point]]<12.01,Table_Data_Table_1[[#This Row],[Months To\nMid-Point]]>-13),0,(Table_Data_Table_1[[#This Row],[Months To\nMid-Point]]*'Global Settings'!$H$6)),\"\")","v":""},{"$f":"IFERROR(Table_Data_Table_1[[#This Row],[Land\nResidual]]*(Table_Data_Table_1[[#This Row],[Time\nAdjust]]+1),\"\")","v":""},{"$f":"IFERROR(Table_Data_Table_1[[#This Row],[Adjusted\nSale Price]]/Table_Data_Table_1[[#This Row],[Resid\nAcre]],\"\")","v":""},{"$f":"IFERROR(ROUND(Table_Data_Table_1[[#This Row],[Adjusted\nSale Price]]/Table_Data_Table_1[[#This Row],[Resid\nSq Ft]],2),\"\")","v":""},{"$f":"IFERROR(IF(VLOOKUP(Table_Data_Table_1[[#This Row],[Item ID]],DataTable,11,FALSE)=0,\"N/A\",Table_Data_Table_1[[#This Row],[Adjusted\nSale Price]]/VLOOKUP(Table_Data_Table_1[[#This Row],[Item ID]],DataTable,11,FALSE)),\"\")","v":""},{"$f":"IF(IFERROR(VLOOKUP(Table_Data_Table_1[[#This Row],[Item ID]],DataTable,17,FALSE),\"\")=0,\"\",IFERROR(VLOOKUP(Table_Data_Table_1[[#This Row],[Item ID]],DataTable,17,FALSE),\"\"))","v":""}]
["",null,{"$f":"IF(Table_Data_Table_1[[#This Row],[Item ID]]=\"\",\"\",IFERROR(VLOOKUP(Table_Data_Table_1[[#This Row],[Item ID]],DataTable,16,FALSE),\"\"))","v":""},null,null,null,null,{"$f":"IF(Table_Data_Table_1[[#This Row],[Valuation Method]]=\"Vacant\",VLOOKUP(Table_Data_Table_1[[#This Row],[Item ID]],DataTable,6,FALSE)-VLOOKUP(Table_Data_Table_1[[#This Row],[Item ID]],DataTable,13,FALSE),IF(Table_Data_Table_1[[#This Row],[Valuation Method]]=\"Abstraction\",VLOOKUP(Table_Data_Table_1[[#This Row],[Item ID]],DataTable,6,FALSE)-VLOOKUP(Table_Data_Table_1[[#This Row],[Item ID]],DataTable,13,FALSE),IF(Table_Data_Table_1[[#This Row],[Valuation Method]]=\"Allocation\",VLOOKUP(Table_Data_Table_1[[#This Row],[Item ID]],DataTable,6,FALSE)*I381,\"\")))","v":""},{"$f":"IF(Table_Data_Table_1[[#This Row],[Valuation Method]]=\"Vacant\",\"N/A\",IF(Table_Data_Table_1[[#This Row],[Valuation Method]]=\"Abstraction\",Table_Data_Table_1[[#This Row],[Land\nResidual]]/VLOOKUP(Table_Data_Table_1[[#This Row],[Item ID]],DataTable,6,FALSE),IF(Table_Data_Table_1[[#This Row],[Valuation Method]]=\"Allocation\",'Global Settings'!$H$20,\"\")))","v":""},{"$f":"IFERROR(ROUND(Table_Data_Table_1[[#This Row],[Resid\nSq Ft]]/43560,3),\"\")","v":""},{"$f":"IF(Table_Data_Table_1[[#This Row],[Item ID]]=\"\",\"\",IFERROR(VLOOKUP(Table_Data_Table_1[[#This Row],[Item ID]],DataTable,10,FALSE)-VLOOKUP(Table_Data_Table_1[[#This Row],[Item ID]],DataTable,12,FALSE),\"\"))","v":""},{"$f":"IFERROR(Table_Data_Table_1[[#This Row],[Land\nResidual]]/Table_Data_Table_1[[#This Row],[Resid\nAcre]],\"\")","v":""},{"$f":"IFERROR(ROUND(Table_Data_Table_1[[#This Row],[Land\nResidual]]/Table_Data_Table_1[[#This Row],[Resid\nSq Ft]],2),\"\")","v":""},{"$f":"IF(Table_Data_Table_1[[#This Row],[Item ID]]=\"\",\"\",ROUND(DAYS360(Table_Data_Table_1[[#This Row],[Sale Date]],'Global Settings'!$H$5)/30,0))","v":""},{"$f":"IFERROR(IF(AND(Table_Data_Table_1[[#This Row],[Months To\nMid-Point]]<12.01,Table_Data_Table_1[[#This Row],[Months To\nMid-Point]]>-13),0,(Table_Data_Table_1[[#This Row],[Months To\nMid-Point]]*'Global Settings'!$H$6)),\"\")","v":""},{"$f":"IFERROR(Table_Data_Table_1[[#This Row],[Land\nResidual]]*(Table_Data_Table_1[[#This Row],[Time\nAdjust]]+1),\"\")","v":""},{"$f":"IFERROR(Table_Data_Table_1[[#This Row],[Adjusted\nSale Price]]/Table_Data_Table_1[[#This Row],[Resid\nAcre]],\"\")","v":""},{"$f":"IFERROR(ROUND(Table_Data_Table_1[[#This Row],[Adjusted\nSale Price]]/Table_Data_Table_1[[#This Row],[Resid\nSq Ft]],2),\"\")","v":""},{"$f":"IFERROR(IF(VLOOKUP(Table_Data_Table_1[[#This Row],[Item ID]],DataTable,11,FALSE)=0,\"N/A\",Table_Data_Table_1[[#This Row],[Adjusted\nSale Price]]/VLOOKUP(Table_Data_Table_1[[#This Row],[Item ID]],DataTable,11,FALSE)),\"\")","v":""},{"$f":"IF(IFERROR(VLOOKUP(Table_Data_Table_1[[#This Row],[Item ID]],DataTable,17,FALSE),\"\")=0,\"\",IFERROR(VLOOKUP(Table_Data_Table_1[[#This Row],[Item ID]],DataTable,17,FALSE),\"\"))","v":""}]
["",null,{"$f":"IF(Table_Data_Table_1[[#This Row],[Item ID]]=\"\",\"\",IFERROR(VLOOKUP(Table_Data_Table_1[[#This Row],[Item ID]],DataTable,16,FALSE),\"\"))","v":""},null,null,null,null,{"$f":"IF(Table_Data_Table_1[[#This Row],[Valuation Method]]=\"Vacant\",VLOOKUP(Table_Data_Table_1[[#This Row],[Item ID]],DataTable,6,FALSE)-VLOOKUP(Table_Data_Table_1[[#This Row],[Item ID]],DataTable,13,FALSE),IF(Table_Data_Table_1[[#This Row],[Valuation Method]]=\"Abstraction\",VLOOKUP(Table_Data_Table_1[[#This Row],[Item ID]],DataTable,6,FALSE)-VLOOKUP(Table_Data_Table_1[[#This Row],[Item ID]],DataTable,13,FALSE),IF(Table_Data_Table_1[[#This Row],[Valuation Method]]=\"Allocation\",VLOOKUP(Table_Data_Table_1[[#This Row],[Item ID]],DataTable,6,FALSE)*I382,\"\")))","v":""},{"$f":"IF(Table_Data_Table_1[[#This Row],[Valuation Method]]=\"Vacant\",\"N/A\",IF(Table_Data_Table_1[[#This Row],[Valuation Method]]=\"Abstraction\",Table_Data_Table_1[[#This Row],[Land\nResidual]]/VLOOKUP(Table_Data_Table_1[[#This Row],[Item ID]],DataTable,6,FALSE),IF(Table_Data_Table_1[[#This Row],[Valuation Method]]=\"Allocation\",'Global Settings'!$H$20,\"\")))","v":""},{"$f":"IFERROR(ROUND(Table_Data_Table_1[[#This Row],[Resid\nSq Ft]]/43560,3),\"\")","v":""},{"$f":"IF(Table_Data_Table_1[[#This Row],[Item ID]]=\"\",\"\",IFERROR(VLOOKUP(Table_Data_Table_1[[#This Row],[Item ID]],DataTable,10,FALSE)-VLOOKUP(Table_Data_Table_1[[#This Row],[Item ID]],DataTable,12,FALSE),\"\"))","v":""},{"$f":"IFERROR(Table_Data_Table_1[[#This Row],[Land\nResidual]]/Table_Data_Table_1[[#This Row],[Resid\nAcre]],\"\")","v":""},{"$f":"IFERROR(ROUND(Table_Data_Table_1[[#This Row],[Land\nResidual]]/Table_Data_Table_1[[#This Row],[Resid\nSq Ft]],2),\"\")","v":""},{"$f":"IF(Table_Data_Table_1[[#This Row],[Item ID]]=\"\",\"\",ROUND(DAYS360(Table_Data_Table_1[[#This Row],[Sale Date]],'Global Settings'!$H$5)/30,0))","v":""},{"$f":"IFERROR(IF(AND(Table_Data_Table_1[[#This Row],[Months To\nMid-Point]]<12.01,Table_Data_Table_1[[#This Row],[Months To\nMid-Point]]>-13),0,(Table_Data_Table_1[[#This Row],[Months To\nMid-Point]]*'Global Settings'!$H$6)),\"\")","v":""},{"$f":"IFERROR(Table_Data_Table_1[[#This Row],[Land\nResidual]]*(Table_Data_Table_1[[#This Row],[Time\nAdjust]]+1),\"\")","v":""},{"$f":"IFERROR(Table_Data_Table_1[[#This Row],[Adjusted\nSale Price]]/Table_Data_Table_1[[#This Row],[Resid\nAcre]],\"\")","v":""},{"$f":"IFERROR(ROUND(Table_Data_Table_1[[#This Row],[Adjusted\nSale Price]]/Table_Data_Table_1[[#This Row],[Resid\nSq Ft]],2),\"\")","v":""},{"$f":"IFERROR(IF(VLOOKUP(Table_Data_Table_1[[#This Row],[Item ID]],DataTable,11,FALSE)=0,\"N/A\",Table_Data_Table_1[[#This Row],[Adjusted\nSale Price]]/VLOOKUP(Table_Data_Table_1[[#This Row],[Item ID]],DataTable,11,FALSE)),\"\")","v":""},{"$f":"IF(IFERROR(VLOOKUP(Table_Data_Table_1[[#This Row],[Item ID]],DataTable,17,FALSE),\"\")=0,\"\",IFERROR(VLOOKUP(Table_Data_Table_1[[#This Row],[Item ID]],DataTable,17,FALSE),\"\"))","v":""}]
["",null,{"$f":"IF(Table_Data_Table_1[[#This Row],[Item ID]]=\"\",\"\",IFERROR(VLOOKUP(Table_Data_Table_1[[#This Row],[Item ID]],DataTable,16,FALSE),\"\"))","v":""},null,null,null,null,{"$f":"IF(Table_Data_Table_1[[#This Row],[Valuation Method]]=\"Vacant\",VLOOKUP(Table_Data_Table_1[[#This Row],[Item ID]],DataTable,6,FALSE)-VLOOKUP(Table_Data_Table_1[[#This Row],[Item ID]],DataTable,13,FALSE),IF(Table_Data_Table_1[[#This Row],[Valuation Method]]=\"Abstraction\",VLOOKUP(Table_Data_Table_1[[#This Row],[Item ID]],DataTable,6,FALSE)-VLOOKUP(Table_Data_Table_1[[#This Row],[Item ID]],DataTable,13,FALSE),IF(Table_Data_Table_1[[#This Row],[Valuation Method]]=\"Allocation\",VLOOKUP(Table_Data_Table_1[[#This Row],[Item ID]],DataTable,6,FALSE)*I383,\"\")))","v":""},{"$f":"IF(Table_Data_Table_1[[#This Row],[Valuation Method]]=\"Vacant\",\"N/A\",IF(Table_Data_Table_1[[#This Row],[Valuation Method]]=\"Abstraction\",Table_Data_Table_1[[#This Row],[Land\nResidual]]/VLOOKUP(Table_Data_Table_1[[#This Row],[Item ID]],DataTable,6,FALSE),IF(Table_Data_Table_1[[#This Row],[Valuation Method]]=\"Allocation\",'Global Settings'!$H$20,\"\")))","v":""},{"$f":"IFERROR(ROUND(Table_Data_Table_1[[#This Row],[Resid\nSq Ft]]/43560,3),\"\")","v":""},{"$f":"IF(Table_Data_Table_1[[#This Row],[Item ID]]=\"\",\"\",IFERROR(VLOOKUP(Table_Data_Table_1[[#This Row],[Item ID]],DataTable,10,FALSE)-VLOOKUP(Table_Data_Table_1[[#This Row],[Item ID]],DataTable,12,FALSE),\"\"))","v":""},{"$f":"IFERROR(Table_Data_Table_1[[#This Row],[Land\nResidual]]/Table_Data_Table_1[[#This Row],[Resid\nAcre]],\"\")","v":""},{"$f":"IFERROR(ROUND(Table_Data_Table_1[[#This Row],[Land\nResidual]]/Table_Data_Table_1[[#This Row],[Resid\nSq Ft]],2),\"\")","v":""},{"$f":"IF(Table_Data_Table_1[[#This Row],[Item ID]]=\"\",\"\",ROUND(DAYS360(Table_Data_Table_1[[#This Row],[Sale Date]],'Global Settings'!$H$5)/30,0))","v":""},{"$f":"IFERROR(IF(AND(Table_Data_Table_1[[#This Row],[Months To\nMid-Point]]<12.01,Table_Data_Table_1[[#This Row],[Months To\nMid-Point]]>-13),0,(Table_Data_Table_1[[#This Row],[Months To\nMid-Point]]*'Global Settings'!$H$6)),\"\")","v":""},{"$f":"IFERROR(Table_Data_Table_1[[#This Row],[Land\nResidual]]*(Table_Data_Table_1[[#This Row],[Time\nAdjust]]+1),\"\")","v":""},{"$f":"IFERROR(Table_Data_Table_1[[#This Row],[Adjusted\nSale Price]]/Table_Data_Table_1[[#This Row],[Resid\nAcre]],\"\")","v":""},{"$f":"IFERROR(ROUND(Table_Data_Table_1[[#This Row],[Adjusted\nSale Price]]/Table_Data_Table_1[[#This Row],[Resid\nSq Ft]],2),\"\")","v":""},{"$f":"IFERROR(IF(VLOOKUP(Table_Data_Table_1[[#This Row],[Item ID]],DataTable,11,FALSE)=0,\"N/A\",Table_Data_Table_1[[#This Row],[Adjusted\nSale Price]]/VLOOKUP(Table_Data_Table_1[[#This Row],[Item ID]],DataTable,11,FALSE)),\"\")","v":""},{"$f":"IF(IFERROR(VLOOKUP(Table_Data_Table_1[[#This Row],[Item ID]],DataTable,17,FALSE),\"\")=0,\"\",IFERROR(VLOOKUP(Table_Data_Table_1[[#This Row],[Item ID]],DataTable,17,FALSE),\"\"))","v":""}]
["",null,{"$f":"IF(Table_Data_Table_1[[#This Row],[Item ID]]=\"\",\"\",IFERROR(VLOOKUP(Table_Data_Table_1[[#This Row],[Item ID]],DataTable,16,FALSE),\"\"))","v":""},null,null,null,null,{"$f":"IF(Table_Data_Table_1[[#This Row],[Valuation Method]]=\"Vacant\",VLOOKUP(Table_Data_Table_1[[#This Row],[Item ID]],DataTable,6,FALSE)-VLOOKUP(Table_Data_Table_1[[#This Row],[Item ID]],DataTable,13,FALSE),IF(Table_Data_Table_1[[#This Row],[Valuation Method]]=\"Abstraction\",VLOOKUP(Table_Data_Table_1[[#This Row],[Item ID]],DataTable,6,FALSE)-VLOOKUP(Table_Data_Table_1[[#This Row],[Item ID]],DataTable,13,FALSE),IF(Table_Data_Table_1[[#This Row],[Valuation Method]]=\"Allocation\",VLOOKUP(Table_Data_Table_1[[#This Row],[Item ID]],DataTable,6,FALSE)*I384,\"\")))","v":""},{"$f":"IF(Table_Data_Table_1[[#This Row],[Valuation Method]]=\"Vacant\",\"N/A\",IF(Table_Data_Table_1[[#This Row],[Valuation Method]]=\"Abstraction\",Table_Data_Table_1[[#This Row],[Land\nResidual]]/VLOOKUP(Table_Data_Table_1[[#This Row],[Item ID]],DataTable,6,FALSE),IF(Table_Data_Table_1[[#This Row],[Valuation Method]]=\"Allocation\",'Global Settings'!$H$20,\"\")))","v":""},{"$f":"IFERROR(ROUND(Table_Data_Table_1[[#This Row],[Resid\nSq Ft]]/43560,3),\"\")","v":""},{"$f":"IF(Table_Data_Table_1[[#This Row],[Item ID]]=\"\",\"\",IFERROR(VLOOKUP(Table_Data_Table_1[[#This Row],[Item ID]],DataTable,10,FALSE)-VLOOKUP(Table_Data_Table_1[[#This Row],[Item ID]],DataTable,12,FALSE),\"\"))","v":""},{"$f":"IFERROR(Table_Data_Table_1[[#This Row],[Land\nResidual]]/Table_Data_Table_1[[#This Row],[Resid\nAcre]],\"\")","v":""},{"$f":"IFERROR(ROUND(Table_Data_Table_1[[#This Row],[Land\nResidual]]/Table_Data_Table_1[[#This Row],[Resid\nSq Ft]],2),\"\")","v":""},{"$f":"IF(Table_Data_Table_1[[#This Row],[Item ID]]=\"\",\"\",ROUND(DAYS360(Table_Data_Table_1[[#This Row],[Sale Date]],'Global Settings'!$H$5)/30,0))","v":""},{"$f":"IFERROR(IF(AND(Table_Data_Table_1[[#This Row],[Months To\nMid-Point]]<12.01,Table_Data_Table_1[[#This Row],[Months To\nMid-Point]]>-13),0,(Table_Data_Table_1[[#This Row],[Months To\nMid-Point]]*'Global Settings'!$H$6)),\"\")","v":""},{"$f":"IFERROR(Table_Data_Table_1[[#This Row],[Land\nResidual]]*(Table_Data_Table_1[[#This Row],[Time\nAdjust]]+1),\"\")","v":""},{"$f":"IFERROR(Table_Data_Table_1[[#This Row],[Adjusted\nSale Price]]/Table_Data_Table_1[[#This Row],[Resid\nAcre]],\"\")","v":""},{"$f":"IFERROR(ROUND(Table_Data_Table_1[[#This Row],[Adjusted\nSale Price]]/Table_Data_Table_1[[#This Row],[Resid\nSq Ft]],2),\"\")","v":""},{"$f":"IFERROR(IF(VLOOKUP(Table_Data_Table_1[[#This Row],[Item ID]],DataTable,11,FALSE)=0,\"N/A\",Table_Data_Table_1[[#This Row],[Adjusted\nSale Price]]/VLOOKUP(Table_Data_Table_1[[#This Row],[Item ID]],DataTable,11,FALSE)),\"\")","v":""},{"$f":"IF(IFERROR(VLOOKUP(Table_Data_Table_1[[#This Row],[Item ID]],DataTable,17,FALSE),\"\")=0,\"\",IFERROR(VLOOKUP(Table_Data_Table_1[[#This Row],[Item ID]],DataTable,17,FALSE),\"\"))","v":""}]
["",null,{"$f":"IF(Table_Data_Table_1[[#This Row],[Item ID]]=\"\",\"\",IFERROR(VLOOKUP(Table_Data_Table_1[[#This Row],[Item ID]],DataTable,16,FALSE),\"\"))","v":""},null,null,null,null,{"$f":"IF(Table_Data_Table_1[[#This Row],[Valuation Method]]=\"Vacant\",VLOOKUP(Table_Data_Table_1[[#This Row],[Item ID]],DataTable,6,FALSE)-VLOOKUP(Table_Data_Table_1[[#This Row],[Item ID]],DataTable,13,FALSE),IF(Table_Data_Table_1[[#This Row],[Valuation Method]]=\"Abstraction\",VLOOKUP(Table_Data_Table_1[[#This Row],[Item ID]],DataTable,6,FALSE)-VLOOKUP(Table_Data_Table_1[[#This Row],[Item ID]],DataTable,13,FALSE),IF(Table_Data_Table_1[[#This Row],[Valuation Method]]=\"Allocation\",VLOOKUP(Table_Data_Table_1[[#This Row],[Item ID]],DataTable,6,FALSE)*I385,\"\")))","v":""},{"$f":"IF(Table_Data_Table_1[[#This Row],[Valuation Method]]=\"Vacant\",\"N/A\",IF(Table_Data_Table_1[[#This Row],[Valuation Method]]=\"Abstraction\",Table_Data_Table_1[[#This Row],[Land\nResidual]]/VLOOKUP(Table_Data_Table_1[[#This Row],[Item ID]],DataTable,6,FALSE),IF(Table_Data_Table_1[[#This Row],[Valuation Method]]=\"Allocation\",'Global Settings'!$H$20,\"\")))","v":""},{"$f":"IFERROR(ROUND(Table_Data_Table_1[[#This Row],[Resid\nSq Ft]]/43560,3),\"\")","v":""},{"$f":"IF(Table_Data_Table_1[[#This Row],[Item ID]]=\"\",\"\",IFERROR(VLOOKUP(Table_Data_Table_1[[#This Row],[Item ID]],DataTable,10,FALSE)-VLOOKUP(Table_Data_Table_1[[#This Row],[Item ID]],DataTable,12,FALSE),\"\"))","v":""},{"$f":"IFERROR(Table_Data_Table_1[[#This Row],[Land\nResidual]]/Table_Data_Table_1[[#This Row],[Resid\nAcre]],\"\")","v":""},{"$f":"IFERROR(ROUND(Table_Data_Table_1[[#This Row],[Land\nResidual]]/Table_Data_Table_1[[#This Row],[Resid\nSq Ft]],2),\"\")","v":""},{"$f":"IF(Table_Data_Table_1[[#This Row],[Item ID]]=\"\",\"\",ROUND(DAYS360(Table_Data_Table_1[[#This Row],[Sale Date]],'Global Settings'!$H$5)/30,0))","v":""},{"$f":"IFERROR(IF(AND(Table_Data_Table_1[[#This Row],[Months To\nMid-Point]]<12.01,Table_Data_Table_1[[#This Row],[Months To\nMid-Point]]>-13),0,(Table_Data_Table_1[[#This Row],[Months To\nMid-Point]]*'Global Settings'!$H$6)),\"\")","v":""},{"$f":"IFERROR(Table_Data_Table_1[[#This Row],[Land\nResidual]]*(Table_Data_Table_1[[#This Row],[Time\nAdjust]]+1),\"\")","v":""},{"$f":"IFERROR(Table_Data_Table_1[[#This Row],[Adjusted\nSale Price]]/Table_Data_Table_1[[#This Row],[Resid\nAcre]],\"\")","v":""},{"$f":"IFERROR(ROUND(Table_Data_Table_1[[#This Row],[Adjusted\nSale Price]]/Table_Data_Table_1[[#This Row],[Resid\nSq Ft]],2),\"\")","v":""},{"$f":"IFERROR(IF(VLOOKUP(Table_Data_Table_1[[#This Row],[Item ID]],DataTable,11,FALSE)=0,\"N/A\",Table_Data_Table_1[[#This Row],[Adjusted\nSale Price]]/VLOOKUP(Table_Data_Table_1[[#This Row],[Item ID]],DataTable,11,FALSE)),\"\")","v":""},{"$f":"IF(IFERROR(VLOOKUP(Table_Data_Table_1[[#This Row],[Item ID]],DataTable,17,FALSE),\"\")=0,\"\",IFERROR(VLOOKUP(Table_Data_Table_1[[#This Row],[Item ID]],DataTable,17,FALSE),\"\"))","v":""}]
["",null,{"$f":"IF(Table_Data_Table_1[[#This Row],[Item ID]]=\"\",\"\",IFERROR(VLOOKUP(Table_Data_Table_1[[#This Row],[Item ID]],DataTable,16,FALSE),\"\"))","v":""},null,null,null,null,{"$f":"IF(Table_Data_Table_1[[#This Row],[Valuation Method]]=\"Vacant\",VLOOKUP(Table_Data_Table_1[[#This Row],[Item ID]],DataTable,6,FALSE)-VLOOKUP(Table_Data_Table_1[[#This Row],[Item ID]],DataTable,13,FALSE),IF(Table_Data_Table_1[[#This Row],[Valuation Method]]=\"Abstraction\",VLOOKUP(Table_Data_Table_1[[#This Row],[Item ID]],DataTable,6,FALSE)-VLOOKUP(Table_Data_Table_1[[#This Row],[Item ID]],DataTable,13,FALSE),IF(Table_Data_Table_1[[#This Row],[Valuation Method]]=\"Allocation\",VLOOKUP(Table_Data_Table_1[[#This Row],[Item ID]],DataTable,6,FALSE)*I386,\"\")))","v":""},{"$f":"IF(Table_Data_Table_1[[#This Row],[Valuation Method]]=\"Vacant\",\"N/A\",IF(Table_Data_Table_1[[#This Row],[Valuation Method]]=\"Abstraction\",Table_Data_Table_1[[#This Row],[Land\nResidual]]/VLOOKUP(Table_Data_Table_1[[#This Row],[Item ID]],DataTable,6,FALSE),IF(Table_Data_Table_1[[#This Row],[Valuation Method]]=\"Allocation\",'Global Settings'!$H$20,\"\")))","v":""},{"$f":"IFERROR(ROUND(Table_Data_Table_1[[#This Row],[Resid\nSq Ft]]/43560,3),\"\")","v":""},{"$f":"IF(Table_Data_Table_1[[#This Row],[Item ID]]=\"\",\"\",IFERROR(VLOOKUP(Table_Data_Table_1[[#This Row],[Item ID]],DataTable,10,FALSE)-VLOOKUP(Table_Data_Table_1[[#This Row],[Item ID]],DataTable,12,FALSE),\"\"))","v":""},{"$f":"IFERROR(Table_Data_Table_1[[#This Row],[Land\nResidual]]/Table_Data_Table_1[[#This Row],[Resid\nAcre]],\"\")","v":""},{"$f":"IFERROR(ROUND(Table_Data_Table_1[[#This Row],[Land\nResidual]]/Table_Data_Table_1[[#This Row],[Resid\nSq Ft]],2),\"\")","v":""},{"$f":"IF(Table_Data_Table_1[[#This Row],[Item ID]]=\"\",\"\",ROUND(DAYS360(Table_Data_Table_1[[#This Row],[Sale Date]],'Global Settings'!$H$5)/30,0))","v":""},{"$f":"IFERROR(IF(AND(Table_Data_Table_1[[#This Row],[Months To\nMid-Point]]<12.01,Table_Data_Table_1[[#This Row],[Months To\nMid-Point]]>-13),0,(Table_Data_Table_1[[#This Row],[Months To\nMid-Point]]*'Global Settings'!$H$6)),\"\")","v":""},{"$f":"IFERROR(Table_Data_Table_1[[#This Row],[Land\nResidual]]*(Table_Data_Table_1[[#This Row],[Time\nAdjust]]+1),\"\")","v":""},{"$f":"IFERROR(Table_Data_Table_1[[#This Row],[Adjusted\nSale Price]]/Table_Data_Table_1[[#This Row],[Resid\nAcre]],\"\")","v":""},{"$f":"IFERROR(ROUND(Table_Data_Table_1[[#This Row],[Adjusted\nSale Price]]/Table_Data_Table_1[[#This Row],[Resid\nSq Ft]],2),\"\")","v":""},{"$f":"IFERROR(IF(VLOOKUP(Table_Data_Table_1[[#This Row],[Item ID]],DataTable,11,FALSE)=0,\"N/A\",Table_Data_Table_1[[#This Row],[Adjusted\nSale Price]]/VLOOKUP(Table_Data_Table_1[[#This Row],[Item ID]],DataTable,11,FALSE)),\"\")","v":""},{"$f":"IF(IFERROR(VLOOKUP(Table_Data_Table_1[[#This Row],[Item ID]],DataTable,17,FALSE),\"\")=0,\"\",IFERROR(VLOOKUP(Table_Data_Table_1[[#This Row],[Item ID]],DataTable,17,FALSE),\"\"))","v":""}]
["",null,{"$f":"IF(Table_Data_Table_1[[#This Row],[Item ID]]=\"\",\"\",IFERROR(VLOOKUP(Table_Data_Table_1[[#This Row],[Item ID]],DataTable,16,FALSE),\"\"))","v":""},null,null,null,null,{"$f":"IF(Table_Data_Table_1[[#This Row],[Valuation Method]]=\"Vacant\",VLOOKUP(Table_Data_Table_1[[#This Row],[Item ID]],DataTable,6,FALSE)-VLOOKUP(Table_Data_Table_1[[#This Row],[Item ID]],DataTable,13,FALSE),IF(Table_Data_Table_1[[#This Row],[Valuation Method]]=\"Abstraction\",VLOOKUP(Table_Data_Table_1[[#This Row],[Item ID]],DataTable,6,FALSE)-VLOOKUP(Table_Data_Table_1[[#This Row],[Item ID]],DataTable,13,FALSE),IF(Table_Data_Table_1[[#This Row],[Valuation Method]]=\"Allocation\",VLOOKUP(Table_Data_Table_1[[#This Row],[Item ID]],DataTable,6,FALSE)*I387,\"\")))","v":""},{"$f":"IF(Table_Data_Table_1[[#This Row],[Valuation Method]]=\"Vacant\",\"N/A\",IF(Table_Data_Table_1[[#This Row],[Valuation Method]]=\"Abstraction\",Table_Data_Table_1[[#This Row],[Land\nResidual]]/VLOOKUP(Table_Data_Table_1[[#This Row],[Item ID]],DataTable,6,FALSE),IF(Table_Data_Table_1[[#This Row],[Valuation Method]]=\"Allocation\",'Global Settings'!$H$20,\"\")))","v":""},{"$f":"IFERROR(ROUND(Table_Data_Table_1[[#This Row],[Resid\nSq Ft]]/43560,3),\"\")","v":""},{"$f":"IF(Table_Data_Table_1[[#This Row],[Item ID]]=\"\",\"\",IFERROR(VLOOKUP(Table_Data_Table_1[[#This Row],[Item ID]],DataTable,10,FALSE)-VLOOKUP(Table_Data_Table_1[[#This Row],[Item ID]],DataTable,12,FALSE),\"\"))","v":""},{"$f":"IFERROR(Table_Data_Table_1[[#This Row],[Land\nResidual]]/Table_Data_Table_1[[#This Row],[Resid\nAcre]],\"\")","v":""},{"$f":"IFERROR(ROUND(Table_Data_Table_1[[#This Row],[Land\nResidual]]/Table_Data_Table_1[[#This Row],[Resid\nSq Ft]],2),\"\")","v":""},{"$f":"IF(Table_Data_Table_1[[#This Row],[Item ID]]=\"\",\"\",ROUND(DAYS360(Table_Data_Table_1[[#This Row],[Sale Date]],'Global Settings'!$H$5)/30,0))","v":""},{"$f":"IFERROR(IF(AND(Table_Data_Table_1[[#This Row],[Months To\nMid-Point]]<12.01,Table_Data_Table_1[[#This Row],[Months To\nMid-Point]]>-13),0,(Table_Data_Table_1[[#This Row],[Months To\nMid-Point]]*'Global Settings'!$H$6)),\"\")","v":""},{"$f":"IFERROR(Table_Data_Table_1[[#This Row],[Land\nResidual]]*(Table_Data_Table_1[[#This Row],[Time\nAdjust]]+1),\"\")","v":""},{"$f":"IFERROR(Table_Data_Table_1[[#This Row],[Adjusted\nSale Price]]/Table_Data_Table_1[[#This Row],[Resid\nAcre]],\"\")","v":""},{"$f":"IFERROR(ROUND(Table_Data_Table_1[[#This Row],[Adjusted\nSale Price]]/Table_Data_Table_1[[#This Row],[Resid\nSq Ft]],2),\"\")","v":""},{"$f":"IFERROR(IF(VLOOKUP(Table_Data_Table_1[[#This Row],[Item ID]],DataTable,11,FALSE)=0,\"N/A\",Table_Data_Table_1[[#This Row],[Adjusted\nSale Price]]/VLOOKUP(Table_Data_Table_1[[#This Row],[Item ID]],DataTable,11,FALSE)),\"\")","v":""},{"$f":"IF(IFERROR(VLOOKUP(Table_Data_Table_1[[#This Row],[Item ID]],DataTable,17,FALSE),\"\")=0,\"\",IFERROR(VLOOKUP(Table_Data_Table_1[[#This Row],[Item ID]],DataTable,17,FALSE),\"\"))","v":""}]
["",null,{"$f":"IF(Table_Data_Table_1[[#This Row],[Item ID]]=\"\",\"\",IFERROR(VLOOKUP(Table_Data_Table_1[[#This Row],[Item ID]],DataTable,16,FALSE),\"\"))","v":""},null,null,null,null,{"$f":"IF(Table_Data_Table_1[[#This Row],[Valuation Method]]=\"Vacant\",VLOOKUP(Table_Data_Table_1[[#This Row],[Item ID]],DataTable,6,FALSE)-VLOOKUP(Table_Data_Table_1[[#This Row],[Item ID]],DataTable,13,FALSE),IF(Table_Data_Table_1[[#This Row],[Valuation Method]]=\"Abstraction\",VLOOKUP(Table_Data_Table_1[[#This Row],[Item ID]],DataTable,6,FALSE)-VLOOKUP(Table_Data_Table_1[[#This Row],[Item ID]],DataTable,13,FALSE),IF(Table_Data_Table_1[[#This Row],[Valuation Method]]=\"Allocation\",VLOOKUP(Table_Data_Table_1[[#This Row],[Item ID]],DataTable,6,FALSE)*I388,\"\")))","v":""},{"$f":"IF(Table_Data_Table_1[[#This Row],[Valuation Method]]=\"Vacant\",\"N/A\",IF(Table_Data_Table_1[[#This Row],[Valuation Method]]=\"Abstraction\",Table_Data_Table_1[[#This Row],[Land\nResidual]]/VLOOKUP(Table_Data_Table_1[[#This Row],[Item ID]],DataTable,6,FALSE),IF(Table_Data_Table_1[[#This Row],[Valuation Method]]=\"Allocation\",'Global Settings'!$H$20,\"\")))","v":""},{"$f":"IFERROR(ROUND(Table_Data_Table_1[[#This Row],[Resid\nSq Ft]]/43560,3),\"\")","v":""},{"$f":"IF(Table_Data_Table_1[[#This Row],[Item ID]]=\"\",\"\",IFERROR(VLOOKUP(Table_Data_Table_1[[#This Row],[Item ID]],DataTable,10,FALSE)-VLOOKUP(Table_Data_Table_1[[#This Row],[Item ID]],DataTable,12,FALSE),\"\"))","v":""},{"$f":"IFERROR(Table_Data_Table_1[[#This Row],[Land\nResidual]]/Table_Data_Table_1[[#This Row],[Resid\nAcre]],\"\")","v":""},{"$f":"IFERROR(ROUND(Table_Data_Table_1[[#This Row],[Land\nResidual]]/Table_Data_Table_1[[#This Row],[Resid\nSq Ft]],2),\"\")","v":""},{"$f":"IF(Table_Data_Table_1[[#This Row],[Item ID]]=\"\",\"\",ROUND(DAYS360(Table_Data_Table_1[[#This Row],[Sale Date]],'Global Settings'!$H$5)/30,0))","v":""},{"$f":"IFERROR(IF(AND(Table_Data_Table_1[[#This Row],[Months To\nMid-Point]]<12.01,Table_Data_Table_1[[#This Row],[Months To\nMid-Point]]>-13),0,(Table_Data_Table_1[[#This Row],[Months To\nMid-Point]]*'Global Settings'!$H$6)),\"\")","v":""},{"$f":"IFERROR(Table_Data_Table_1[[#This Row],[Land\nResidual]]*(Table_Data_Table_1[[#This Row],[Time\nAdjust]]+1),\"\")","v":""},{"$f":"IFERROR(Table_Data_Table_1[[#This Row],[Adjusted\nSale Price]]/Table_Data_Table_1[[#This Row],[Resid\nAcre]],\"\")","v":""},{"$f":"IFERROR(ROUND(Table_Data_Table_1[[#This Row],[Adjusted\nSale Price]]/Table_Data_Table_1[[#This Row],[Resid\nSq Ft]],2),\"\")","v":""},{"$f":"IFERROR(IF(VLOOKUP(Table_Data_Table_1[[#This Row],[Item ID]],DataTable,11,FALSE)=0,\"N/A\",Table_Data_Table_1[[#This Row],[Adjusted\nSale Price]]/VLOOKUP(Table_Data_Table_1[[#This Row],[Item ID]],DataTable,11,FALSE)),\"\")","v":""},{"$f":"IF(IFERROR(VLOOKUP(Table_Data_Table_1[[#This Row],[Item ID]],DataTable,17,FALSE),\"\")=0,\"\",IFERROR(VLOOKUP(Table_Data_Table_1[[#This Row],[Item ID]],DataTable,17,FALSE),\"\"))","v":""}]
["",null,{"$f":"IF(Table_Data_Table_1[[#This Row],[Item ID]]=\"\",\"\",IFERROR(VLOOKUP(Table_Data_Table_1[[#This Row],[Item ID]],DataTable,16,FALSE),\"\"))","v":""},null,null,null,null,{"$f":"IF(Table_Data_Table_1[[#This Row],[Valuation Method]]=\"Vacant\",VLOOKUP(Table_Data_Table_1[[#This Row],[Item ID]],DataTable,6,FALSE)-VLOOKUP(Table_Data_Table_1[[#This Row],[Item ID]],DataTable,13,FALSE),IF(Table_Data_Table_1[[#This Row],[Valuation Method]]=\"Abstraction\",VLOOKUP(Table_Data_Table_1[[#This Row],[Item ID]],DataTable,6,FALSE)-VLOOKUP(Table_Data_Table_1[[#This Row],[Item ID]],DataTable,13,FALSE),IF(Table_Data_Table_1[[#This Row],[Valuation Method]]=\"Allocation\",VLOOKUP(Table_Data_Table_1[[#This Row],[Item ID]],DataTable,6,FALSE)*I389,\"\")))","v":""},{"$f":"IF(Table_Data_Table_1[[#This Row],[Valuation Method]]=\"Vacant\",\"N/A\",IF(Table_Data_Table_1[[#This Row],[Valuation Method]]=\"Abstraction\",Table_Data_Table_1[[#This Row],[Land\nResidual]]/VLOOKUP(Table_Data_Table_1[[#This Row],[Item ID]],DataTable,6,FALSE),IF(Table_Data_Table_1[[#This Row],[Valuation Method]]=\"Allocation\",'Global Settings'!$H$20,\"\")))","v":""},{"$f":"IFERROR(ROUND(Table_Data_Table_1[[#This Row],[Resid\nSq Ft]]/43560,3),\"\")","v":""},{"$f":"IF(Table_Data_Table_1[[#This Row],[Item ID]]=\"\",\"\",IFERROR(VLOOKUP(Table_Data_Table_1[[#This Row],[Item ID]],DataTable,10,FALSE)-VLOOKUP(Table_Data_Table_1[[#This Row],[Item ID]],DataTable,12,FALSE),\"\"))","v":""},{"$f":"IFERROR(Table_Data_Table_1[[#This Row],[Land\nResidual]]/Table_Data_Table_1[[#This Row],[Resid\nAcre]],\"\")","v":""},{"$f":"IFERROR(ROUND(Table_Data_Table_1[[#This Row],[Land\nResidual]]/Table_Data_Table_1[[#This Row],[Resid\nSq Ft]],2),\"\")","v":""},{"$f":"IF(Table_Data_Table_1[[#This Row],[Item ID]]=\"\",\"\",ROUND(DAYS360(Table_Data_Table_1[[#This Row],[Sale Date]],'Global Settings'!$H$5)/30,0))","v":""},{"$f":"IFERROR(IF(AND(Table_Data_Table_1[[#This Row],[Months To\nMid-Point]]<12.01,Table_Data_Table_1[[#This Row],[Months To\nMid-Point]]>-13),0,(Table_Data_Table_1[[#This Row],[Months To\nMid-Point]]*'Global Settings'!$H$6)),\"\")","v":""},{"$f":"IFERROR(Table_Data_Table_1[[#This Row],[Land\nResidual]]*(Table_Data_Table_1[[#This Row],[Time\nAdjust]]+1),\"\")","v":""},{"$f":"IFERROR(Table_Data_Table_1[[#This Row],[Adjusted\nSale Price]]/Table_Data_Table_1[[#This Row],[Resid\nAcre]],\"\")","v":""},{"$f":"IFERROR(ROUND(Table_Data_Table_1[[#This Row],[Adjusted\nSale Price]]/Table_Data_Table_1[[#This Row],[Resid\nSq Ft]],2),\"\")","v":""},{"$f":"IFERROR(IF(VLOOKUP(Table_Data_Table_1[[#This Row],[Item ID]],DataTable,11,FALSE)=0,\"N/A\",Table_Data_Table_1[[#This Row],[Adjusted\nSale Price]]/VLOOKUP(Table_Data_Table_1[[#This Row],[Item ID]],DataTable,11,FALSE)),\"\")","v":""},{"$f":"IF(IFERROR(VLOOKUP(Table_Data_Table_1[[#This Row],[Item ID]],DataTable,17,FALSE),\"\")=0,\"\",IFERROR(VLOOKUP(Table_Data_Table_1[[#This Row],[Item ID]],DataTable,17,FALSE),\"\"))","v":""}]
["",null,{"$f":"IF(Table_Data_Table_1[[#This Row],[Item ID]]=\"\",\"\",IFERROR(VLOOKUP(Table_Data_Table_1[[#This Row],[Item ID]],DataTable,16,FALSE),\"\"))","v":""},null,null,null,null,{"$f":"IF(Table_Data_Table_1[[#This Row],[Valuation Method]]=\"Vacant\",VLOOKUP(Table_Data_Table_1[[#This Row],[Item ID]],DataTable,6,FALSE)-VLOOKUP(Table_Data_Table_1[[#This Row],[Item ID]],DataTable,13,FALSE),IF(Table_Data_Table_1[[#This Row],[Valuation Method]]=\"Abstraction\",VLOOKUP(Table_Data_Table_1[[#This Row],[Item ID]],DataTable,6,FALSE)-VLOOKUP(Table_Data_Table_1[[#This Row],[Item ID]],DataTable,13,FALSE),IF(Table_Data_Table_1[[#This Row],[Valuation Method]]=\"Allocation\",VLOOKUP(Table_Data_Table_1[[#This Row],[Item ID]],DataTable,6,FALSE)*I390,\"\")))","v":""},{"$f":"IF(Table_Data_Table_1[[#This Row],[Valuation Method]]=\"Vacant\",\"N/A\",IF(Table_Data_Table_1[[#This Row],[Valuation Method]]=\"Abstraction\",Table_Data_Table_1[[#This Row],[Land\nResidual]]/VLOOKUP(Table_Data_Table_1[[#This Row],[Item ID]],DataTable,6,FALSE),IF(Table_Data_Table_1[[#This Row],[Valuation Method]]=\"Allocation\",'Global Settings'!$H$20,\"\")))","v":""},{"$f":"IFERROR(ROUND(Table_Data_Table_1[[#This Row],[Resid\nSq Ft]]/43560,3),\"\")","v":""},{"$f":"IF(Table_Data_Table_1[[#This Row],[Item ID]]=\"\",\"\",IFERROR(VLOOKUP(Table_Data_Table_1[[#This Row],[Item ID]],DataTable,10,FALSE)-VLOOKUP(Table_Data_Table_1[[#This Row],[Item ID]],DataTable,12,FALSE),\"\"))","v":""},{"$f":"IFERROR(Table_Data_Table_1[[#This Row],[Land\nResidual]]/Table_Data_Table_1[[#This Row],[Resid\nAcre]],\"\")","v":""},{"$f":"IFERROR(ROUND(Table_Data_Table_1[[#This Row],[Land\nResidual]]/Table_Data_Table_1[[#This Row],[Resid\nSq Ft]],2),\"\")","v":""},{"$f":"IF(Table_Data_Table_1[[#This Row],[Item ID]]=\"\",\"\",ROUND(DAYS360(Table_Data_Table_1[[#This Row],[Sale Date]],'Global Settings'!$H$5)/30,0))","v":""},{"$f":"IFERROR(IF(AND(Table_Data_Table_1[[#This Row],[Months To\nMid-Point]]<12.01,Table_Data_Table_1[[#This Row],[Months To\nMid-Point]]>-13),0,(Table_Data_Table_1[[#This Row],[Months To\nMid-Point]]*'Global Settings'!$H$6)),\"\")","v":""},{"$f":"IFERROR(Table_Data_Table_1[[#This Row],[Land\nResidual]]*(Table_Data_Table_1[[#This Row],[Time\nAdjust]]+1),\"\")","v":""},{"$f":"IFERROR(Table_Data_Table_1[[#This Row],[Adjusted\nSale Price]]/Table_Data_Table_1[[#This Row],[Resid\nAcre]],\"\")","v":""},{"$f":"IFERROR(ROUND(Table_Data_Table_1[[#This Row],[Adjusted\nSale Price]]/Table_Data_Table_1[[#This Row],[Resid\nSq Ft]],2),\"\")","v":""},{"$f":"IFERROR(IF(VLOOKUP(Table_Data_Table_1[[#This Row],[Item ID]],DataTable,11,FALSE)=0,\"N/A\",Table_Data_Table_1[[#This Row],[Adjusted\nSale Price]]/VLOOKUP(Table_Data_Table_1[[#This Row],[Item ID]],DataTable,11,FALSE)),\"\")","v":""},{"$f":"IF(IFERROR(VLOOKUP(Table_Data_Table_1[[#This Row],[Item ID]],DataTable,17,FALSE),\"\")=0,\"\",IFERROR(VLOOKUP(Table_Data_Table_1[[#This Row],[Item ID]],DataTable,17,FALSE),\"\"))","v":""}]
["",null,{"$f":"IF(Table_Data_Table_1[[#This Row],[Item ID]]=\"\",\"\",IFERROR(VLOOKUP(Table_Data_Table_1[[#This Row],[Item ID]],DataTable,16,FALSE),\"\"))","v":""},null,null,null,null,{"$f":"IF(Table_Data_Table_1[[#This Row],[Valuation Method]]=\"Vacant\",VLOOKUP(Table_Data_Table_1[[#This Row],[Item ID]],DataTable,6,FALSE)-VLOOKUP(Table_Data_Table_1[[#This Row],[Item ID]],DataTable,13,FALSE),IF(Table_Data_Table_1[[#This Row],[Valuation Method]]=\"Abstraction\",VLOOKUP(Table_Data_Table_1[[#This Row],[Item ID]],DataTable,6,FALSE)-VLOOKUP(Table_Data_Table_1[[#This Row],[Item ID]],DataTable,13,FALSE),IF(Table_Data_Table_1[[#This Row],[Valuation Method]]=\"Allocation\",VLOOKUP(Table_Data_Table_1[[#This Row],[Item ID]],DataTable,6,FALSE)*I391,\"\")))","v":""},{"$f":"IF(Table_Data_Table_1[[#This Row],[Valuation Method]]=\"Vacant\",\"N/A\",IF(Table_Data_Table_1[[#This Row],[Valuation Method]]=\"Abstraction\",Table_Data_Table_1[[#This Row],[Land\nResidual]]/VLOOKUP(Table_Data_Table_1[[#This Row],[Item ID]],DataTable,6,FALSE),IF(Table_Data_Table_1[[#This Row],[Valuation Method]]=\"Allocation\",'Global Settings'!$H$20,\"\")))","v":""},{"$f":"IFERROR(ROUND(Table_Data_Table_1[[#This Row],[Resid\nSq Ft]]/43560,3),\"\")","v":""},{"$f":"IF(Table_Data_Table_1[[#This Row],[Item ID]]=\"\",\"\",IFERROR(VLOOKUP(Table_Data_Table_1[[#This Row],[Item ID]],DataTable,10,FALSE)-VLOOKUP(Table_Data_Table_1[[#This Row],[Item ID]],DataTable,12,FALSE),\"\"))","v":""},{"$f":"IFERROR(Table_Data_Table_1[[#This Row],[Land\nResidual]]/Table_Data_Table_1[[#This Row],[Resid\nAcre]],\"\")","v":""},{"$f":"IFERROR(ROUND(Table_Data_Table_1[[#This Row],[Land\nResidual]]/Table_Data_Table_1[[#This Row],[Resid\nSq Ft]],2),\"\")","v":""},{"$f":"IF(Table_Data_Table_1[[#This Row],[Item ID]]=\"\",\"\",ROUND(DAYS360(Table_Data_Table_1[[#This Row],[Sale Date]],'Global Settings'!$H$5)/30,0))","v":""},{"$f":"IFERROR(IF(AND(Table_Data_Table_1[[#This Row],[Months To\nMid-Point]]<12.01,Table_Data_Table_1[[#This Row],[Months To\nMid-Point]]>-13),0,(Table_Data_Table_1[[#This Row],[Months To\nMid-Point]]*'Global Settings'!$H$6)),\"\")","v":""},{"$f":"IFERROR(Table_Data_Table_1[[#This Row],[Land\nResidual]]*(Table_Data_Table_1[[#This Row],[Time\nAdjust]]+1),\"\")","v":""},{"$f":"IFERROR(Table_Data_Table_1[[#This Row],[Adjusted\nSale Price]]/Table_Data_Table_1[[#This Row],[Resid\nAcre]],\"\")","v":""},{"$f":"IFERROR(ROUND(Table_Data_Table_1[[#This Row],[Adjusted\nSale Price]]/Table_Data_Table_1[[#This Row],[Resid\nSq Ft]],2),\"\")","v":""},{"$f":"IFERROR(IF(VLOOKUP(Table_Data_Table_1[[#This Row],[Item ID]],DataTable,11,FALSE)=0,\"N/A\",Table_Data_Table_1[[#This Row],[Adjusted\nSale Price]]/VLOOKUP(Table_Data_Table_1[[#This Row],[Item ID]],DataTable,11,FALSE)),\"\")","v":""},{"$f":"IF(IFERROR(VLOOKUP(Table_Data_Table_1[[#This Row],[Item ID]],DataTable,17,FALSE),\"\")=0,\"\",IFERROR(VLOOKUP(Table_Data_Table_1[[#This Row],[Item ID]],DataTable,17,FALSE),\"\"))","v":""}]
["",null,{"$f":"IF(Table_Data_Table_1[[#This Row],[Item ID]]=\"\",\"\",IFERROR(VLOOKUP(Table_Data_Table_1[[#This Row],[Item ID]],DataTable,16,FALSE),\"\"))","v":""},null,null,null,null,{"$f":"IF(Table_Data_Table_1[[#This Row],[Valuation Method]]=\"Vacant\",VLOOKUP(Table_Data_Table_1[[#This Row],[Item ID]],DataTable,6,FALSE)-VLOOKUP(Table_Data_Table_1[[#This Row],[Item ID]],DataTable,13,FALSE),IF(Table_Data_Table_1[[#This Row],[Valuation Method]]=\"Abstraction\",VLOOKUP(Table_Data_Table_1[[#This Row],[Item ID]],DataTable,6,FALSE)-VLOOKUP(Table_Data_Table_1[[#This Row],[Item ID]],DataTable,13,FALSE),IF(Table_Data_Table_1[[#This Row],[Valuation Method]]=\"Allocation\",VLOOKUP(Table_Data_Table_1[[#This Row],[Item ID]],DataTable,6,FALSE)*I392,\"\")))","v":""},{"$f":"IF(Table_Data_Table_1[[#This Row],[Valuation Method]]=\"Vacant\",\"N/A\",IF(Table_Data_Table_1[[#This Row],[Valuation Method]]=\"Abstraction\",Table_Data_Table_1[[#This Row],[Land\nResidual]]/VLOOKUP(Table_Data_Table_1[[#This Row],[Item ID]],DataTable,6,FALSE),IF(Table_Data_Table_1[[#This Row],[Valuation Method]]=\"Allocation\",'Global Settings'!$H$20,\"\")))","v":""},{"$f":"IFERROR(ROUND(Table_Data_Table_1[[#This Row],[Resid\nSq Ft]]/43560,3),\"\")","v":""},{"$f":"IF(Table_Data_Table_1[[#This Row],[Item ID]]=\"\",\"\",IFERROR(VLOOKUP(Table_Data_Table_1[[#This Row],[Item ID]],DataTable,10,FALSE)-VLOOKUP(Table_Data_Table_1[[#This Row],[Item ID]],DataTable,12,FALSE),\"\"))","v":""},{"$f":"IFERROR(Table_Data_Table_1[[#This Row],[Land\nResidual]]/Table_Data_Table_1[[#This Row],[Resid\nAcre]],\"\")","v":""},{"$f":"IFERROR(ROUND(Table_Data_Table_1[[#This Row],[Land\nResidual]]/Table_Data_Table_1[[#This Row],[Resid\nSq Ft]],2),\"\")","v":""},{"$f":"IF(Table_Data_Table_1[[#This Row],[Item ID]]=\"\",\"\",ROUND(DAYS360(Table_Data_Table_1[[#This Row],[Sale Date]],'Global Settings'!$H$5)/30,0))","v":""},{"$f":"IFERROR(IF(AND(Table_Data_Table_1[[#This Row],[Months To\nMid-Point]]<12.01,Table_Data_Table_1[[#This Row],[Months To\nMid-Point]]>-13),0,(Table_Data_Table_1[[#This Row],[Months To\nMid-Point]]*'Global Settings'!$H$6)),\"\")","v":""},{"$f":"IFERROR(Table_Data_Table_1[[#This Row],[Land\nResidual]]*(Table_Data_Table_1[[#This Row],[Time\nAdjust]]+1),\"\")","v":""},{"$f":"IFERROR(Table_Data_Table_1[[#This Row],[Adjusted\nSale Price]]/Table_Data_Table_1[[#This Row],[Resid\nAcre]],\"\")","v":""},{"$f":"IFERROR(ROUND(Table_Data_Table_1[[#This Row],[Adjusted\nSale Price]]/Table_Data_Table_1[[#This Row],[Resid\nSq Ft]],2),\"\")","v":""},{"$f":"IFERROR(IF(VLOOKUP(Table_Data_Table_1[[#This Row],[Item ID]],DataTable,11,FALSE)=0,\"N/A\",Table_Data_Table_1[[#This Row],[Adjusted\nSale Price]]/VLOOKUP(Table_Data_Table_1[[#This Row],[Item ID]],DataTable,11,FALSE)),\"\")","v":""},{"$f":"IF(IFERROR(VLOOKUP(Table_Data_Table_1[[#This Row],[Item ID]],DataTable,17,FALSE),\"\")=0,\"\",IFERROR(VLOOKUP(Table_Data_Table_1[[#This Row],[Item ID]],DataTable,17,FALSE),\"\"))","v":""}]
["",null,{"$f":"IF(Table_Data_Table_1[[#This Row],[Item ID]]=\"\",\"\",IFERROR(VLOOKUP(Table_Data_Table_1[[#This Row],[Item ID]],DataTable,16,FALSE),\"\"))","v":""},null,null,null,null,{"$f":"IF(Table_Data_Table_1[[#This Row],[Valuation Method]]=\"Vacant\",VLOOKUP(Table_Data_Table_1[[#This Row],[Item ID]],DataTable,6,FALSE)-VLOOKUP(Table_Data_Table_1[[#This Row],[Item ID]],DataTable,13,FALSE),IF(Table_Data_Table_1[[#This Row],[Valuation Method]]=\"Abstraction\",VLOOKUP(Table_Data_Table_1[[#This Row],[Item ID]],DataTable,6,FALSE)-VLOOKUP(Table_Data_Table_1[[#This Row],[Item ID]],DataTable,13,FALSE),IF(Table_Data_Table_1[[#This Row],[Valuation Method]]=\"Allocation\",VLOOKUP(Table_Data_Table_1[[#This Row],[Item ID]],DataTable,6,FALSE)*I393,\"\")))","v":""},{"$f":"IF(Table_Data_Table_1[[#This Row],[Valuation Method]]=\"Vacant\",\"N/A\",IF(Table_Data_Table_1[[#This Row],[Valuation Method]]=\"Abstraction\",Table_Data_Table_1[[#This Row],[Land\nResidual]]/VLOOKUP(Table_Data_Table_1[[#This Row],[Item ID]],DataTable,6,FALSE),IF(Table_Data_Table_1[[#This Row],[Valuation Method]]=\"Allocation\",'Global Settings'!$H$20,\"\")))","v":""},{"$f":"IFERROR(ROUND(Table_Data_Table_1[[#This Row],[Resid\nSq Ft]]/43560,3),\"\")","v":""},{"$f":"IF(Table_Data_Table_1[[#This Row],[Item ID]]=\"\",\"\",IFERROR(VLOOKUP(Table_Data_Table_1[[#This Row],[Item ID]],DataTable,10,FALSE)-VLOOKUP(Table_Data_Table_1[[#This Row],[Item ID]],DataTable,12,FALSE),\"\"))","v":""},{"$f":"IFERROR(Table_Data_Table_1[[#This Row],[Land\nResidual]]/Table_Data_Table_1[[#This Row],[Resid\nAcre]],\"\")","v":""},{"$f":"IFERROR(ROUND(Table_Data_Table_1[[#This Row],[Land\nResidual]]/Table_Data_Table_1[[#This Row],[Resid\nSq Ft]],2),\"\")","v":""},{"$f":"IF(Table_Data_Table_1[[#This Row],[Item ID]]=\"\",\"\",ROUND(DAYS360(Table_Data_Table_1[[#This Row],[Sale Date]],'Global Settings'!$H$5)/30,0))","v":""},{"$f":"IFERROR(IF(AND(Table_Data_Table_1[[#This Row],[Months To\nMid-Point]]<12.01,Table_Data_Table_1[[#This Row],[Months To\nMid-Point]]>-13),0,(Table_Data_Table_1[[#This Row],[Months To\nMid-Point]]*'Global Settings'!$H$6)),\"\")","v":""},{"$f":"IFERROR(Table_Data_Table_1[[#This Row],[Land\nResidual]]*(Table_Data_Table_1[[#This Row],[Time\nAdjust]]+1),\"\")","v":""},{"$f":"IFERROR(Table_Data_Table_1[[#This Row],[Adjusted\nSale Price]]/Table_Data_Table_1[[#This Row],[Resid\nAcre]],\"\")","v":""},{"$f":"IFERROR(ROUND(Table_Data_Table_1[[#This Row],[Adjusted\nSale Price]]/Table_Data_Table_1[[#This Row],[Resid\nSq Ft]],2),\"\")","v":""},{"$f":"IFERROR(IF(VLOOKUP(Table_Data_Table_1[[#This Row],[Item ID]],DataTable,11,FALSE)=0,\"N/A\",Table_Data_Table_1[[#This Row],[Adjusted\nSale Price]]/VLOOKUP(Table_Data_Table_1[[#This Row],[Item ID]],DataTable,11,FALSE)),\"\")","v":""},{"$f":"IF(IFERROR(VLOOKUP(Table_Data_Table_1[[#This Row],[Item ID]],DataTable,17,FALSE),\"\")=0,\"\",IFERROR(VLOOKUP(Table_Data_Table_1[[#This Row],[Item ID]],DataTable,17,FALSE),\"\"))","v":""}]
["",null,{"$f":"IF(Table_Data_Table_1[[#This Row],[Item ID]]=\"\",\"\",IFERROR(VLOOKUP(Table_Data_Table_1[[#This Row],[Item ID]],DataTable,16,FALSE),\"\"))","v":""},null,null,null,null,{"$f":"IF(Table_Data_Table_1[[#This Row],[Valuation Method]]=\"Vacant\",VLOOKUP(Table_Data_Table_1[[#This Row],[Item ID]],DataTable,6,FALSE)-VLOOKUP(Table_Data_Table_1[[#This Row],[Item ID]],DataTable,13,FALSE),IF(Table_Data_Table_1[[#This Row],[Valuation Method]]=\"Abstraction\",VLOOKUP(Table_Data_Table_1[[#This Row],[Item ID]],DataTable,6,FALSE)-VLOOKUP(Table_Data_Table_1[[#This Row],[Item ID]],DataTable,13,FALSE),IF(Table_Data_Table_1[[#This Row],[Valuation Method]]=\"Allocation\",VLOOKUP(Table_Data_Table_1[[#This Row],[Item ID]],DataTable,6,FALSE)*I394,\"\")))","v":""},{"$f":"IF(Table_Data_Table_1[[#This Row],[Valuation Method]]=\"Vacant\",\"N/A\",IF(Table_Data_Table_1[[#This Row],[Valuation Method]]=\"Abstraction\",Table_Data_Table_1[[#This Row],[Land\nResidual]]/VLOOKUP(Table_Data_Table_1[[#This Row],[Item ID]],DataTable,6,FALSE),IF(Table_Data_Table_1[[#This Row],[Valuation Method]]=\"Allocation\",'Global Settings'!$H$20,\"\")))","v":""},{"$f":"IFERROR(ROUND(Table_Data_Table_1[[#This Row],[Resid\nSq Ft]]/43560,3),\"\")","v":""},{"$f":"IF(Table_Data_Table_1[[#This Row],[Item ID]]=\"\",\"\",IFERROR(VLOOKUP(Table_Data_Table_1[[#This Row],[Item ID]],DataTable,10,FALSE)-VLOOKUP(Table_Data_Table_1[[#This Row],[Item ID]],DataTable,12,FALSE),\"\"))","v":""},{"$f":"IFERROR(Table_Data_Table_1[[#This Row],[Land\nResidual]]/Table_Data_Table_1[[#This Row],[Resid\nAcre]],\"\")","v":""},{"$f":"IFERROR(ROUND(Table_Data_Table_1[[#This Row],[Land\nResidual]]/Table_Data_Table_1[[#This Row],[Resid\nSq Ft]],2),\"\")","v":""},{"$f":"IF(Table_Data_Table_1[[#This Row],[Item ID]]=\"\",\"\",ROUND(DAYS360(Table_Data_Table_1[[#This Row],[Sale Date]],'Global Settings'!$H$5)/30,0))","v":""},{"$f":"IFERROR(IF(AND(Table_Data_Table_1[[#This Row],[Months To\nMid-Point]]<12.01,Table_Data_Table_1[[#This Row],[Months To\nMid-Point]]>-13),0,(Table_Data_Table_1[[#This Row],[Months To\nMid-Point]]*'Global Settings'!$H$6)),\"\")","v":""},{"$f":"IFERROR(Table_Data_Table_1[[#This Row],[Land\nResidual]]*(Table_Data_Table_1[[#This Row],[Time\nAdjust]]+1),\"\")","v":""},{"$f":"IFERROR(Table_Data_Table_1[[#This Row],[Adjusted\nSale Price]]/Table_Data_Table_1[[#This Row],[Resid\nAcre]],\"\")","v":""},{"$f":"IFERROR(ROUND(Table_Data_Table_1[[#This Row],[Adjusted\nSale Price]]/Table_Data_Table_1[[#This Row],[Resid\nSq Ft]],2),\"\")","v":""},{"$f":"IFERROR(IF(VLOOKUP(Table_Data_Table_1[[#This Row],[Item ID]],DataTable,11,FALSE)=0,\"N/A\",Table_Data_Table_1[[#This Row],[Adjusted\nSale Price]]/VLOOKUP(Table_Data_Table_1[[#This Row],[Item ID]],DataTable,11,FALSE)),\"\")","v":""},{"$f":"IF(IFERROR(VLOOKUP(Table_Data_Table_1[[#This Row],[Item ID]],DataTable,17,FALSE),\"\")=0,\"\",IFERROR(VLOOKUP(Table_Data_Table_1[[#This Row],[Item ID]],DataTable,17,FALSE),\"\"))","v":""}]
["",null,{"$f":"IF(Table_Data_Table_1[[#This Row],[Item ID]]=\"\",\"\",IFERROR(VLOOKUP(Table_Data_Table_1[[#This Row],[Item ID]],DataTable,16,FALSE),\"\"))","v":""},null,null,null,null,{"$f":"IF(Table_Data_Table_1[[#This Row],[Valuation Method]]=\"Vacant\",VLOOKUP(Table_Data_Table_1[[#This Row],[Item ID]],DataTable,6,FALSE)-VLOOKUP(Table_Data_Table_1[[#This Row],[Item ID]],DataTable,13,FALSE),IF(Table_Data_Table_1[[#This Row],[Valuation Method]]=\"Abstraction\",VLOOKUP(Table_Data_Table_1[[#This Row],[Item ID]],DataTable,6,FALSE)-VLOOKUP(Table_Data_Table_1[[#This Row],[Item ID]],DataTable,13,FALSE),IF(Table_Data_Table_1[[#This Row],[Valuation Method]]=\"Allocation\",VLOOKUP(Table_Data_Table_1[[#This Row],[Item ID]],DataTable,6,FALSE)*I395,\"\")))","v":""},{"$f":"IF(Table_Data_Table_1[[#This Row],[Valuation Method]]=\"Vacant\",\"N/A\",IF(Table_Data_Table_1[[#This Row],[Valuation Method]]=\"Abstraction\",Table_Data_Table_1[[#This Row],[Land\nResidual]]/VLOOKUP(Table_Data_Table_1[[#This Row],[Item ID]],DataTable,6,FALSE),IF(Table_Data_Table_1[[#This Row],[Valuation Method]]=\"Allocation\",'Global Settings'!$H$20,\"\")))","v":""},{"$f":"IFERROR(ROUND(Table_Data_Table_1[[#This Row],[Resid\nSq Ft]]/43560,3),\"\")","v":""},{"$f":"IF(Table_Data_Table_1[[#This Row],[Item ID]]=\"\",\"\",IFERROR(VLOOKUP(Table_Data_Table_1[[#This Row],[Item ID]],DataTable,10,FALSE)-VLOOKUP(Table_Data_Table_1[[#This Row],[Item ID]],DataTable,12,FALSE),\"\"))","v":""},{"$f":"IFERROR(Table_Data_Table_1[[#This Row],[Land\nResidual]]/Table_Data_Table_1[[#This Row],[Resid\nAcre]],\"\")","v":""},{"$f":"IFERROR(ROUND(Table_Data_Table_1[[#This Row],[Land\nResidual]]/Table_Data_Table_1[[#This Row],[Resid\nSq Ft]],2),\"\")","v":""},{"$f":"IF(Table_Data_Table_1[[#This Row],[Item ID]]=\"\",\"\",ROUND(DAYS360(Table_Data_Table_1[[#This Row],[Sale Date]],'Global Settings'!$H$5)/30,0))","v":""},{"$f":"IFERROR(IF(AND(Table_Data_Table_1[[#This Row],[Months To\nMid-Point]]<12.01,Table_Data_Table_1[[#This Row],[Months To\nMid-Point]]>-13),0,(Table_Data_Table_1[[#This Row],[Months To\nMid-Point]]*'Global Settings'!$H$6)),\"\")","v":""},{"$f":"IFERROR(Table_Data_Table_1[[#This Row],[Land\nResidual]]*(Table_Data_Table_1[[#This Row],[Time\nAdjust]]+1),\"\")","v":""},{"$f":"IFERROR(Table_Data_Table_1[[#This Row],[Adjusted\nSale Price]]/Table_Data_Table_1[[#This Row],[Resid\nAcre]],\"\")","v":""},{"$f":"IFERROR(ROUND(Table_Data_Table_1[[#This Row],[Adjusted\nSale Price]]/Table_Data_Table_1[[#This Row],[Resid\nSq Ft]],2),\"\")","v":""},{"$f":"IFERROR(IF(VLOOKUP(Table_Data_Table_1[[#This Row],[Item ID]],DataTable,11,FALSE)=0,\"N/A\",Table_Data_Table_1[[#This Row],[Adjusted\nSale Price]]/VLOOKUP(Table_Data_Table_1[[#This Row],[Item ID]],DataTable,11,FALSE)),\"\")","v":""},{"$f":"IF(IFERROR(VLOOKUP(Table_Data_Table_1[[#This Row],[Item ID]],DataTable,17,FALSE),\"\")=0,\"\",IFERROR(VLOOKUP(Table_Data_Table_1[[#This Row],[Item ID]],DataTable,17,FALSE),\"\"))","v":""}]
["",null,{"$f":"IF(Table_Data_Table_1[[#This Row],[Item ID]]=\"\",\"\",IFERROR(VLOOKUP(Table_Data_Table_1[[#This Row],[Item ID]],DataTable,16,FALSE),\"\"))","v":""},null,null,null,null,{"$f":"IF(Table_Data_Table_1[[#This Row],[Valuation Method]]=\"Vacant\",VLOOKUP(Table_Data_Table_1[[#This Row],[Item ID]],DataTable,6,FALSE)-VLOOKUP(Table_Data_Table_1[[#This Row],[Item ID]],DataTable,13,FALSE),IF(Table_Data_Table_1[[#This Row],[Valuation Method]]=\"Abstraction\",VLOOKUP(Table_Data_Table_1[[#This Row],[Item ID]],DataTable,6,FALSE)-VLOOKUP(Table_Data_Table_1[[#This Row],[Item ID]],DataTable,13,FALSE),IF(Table_Data_Table_1[[#This Row],[Valuation Method]]=\"Allocation\",VLOOKUP(Table_Data_Table_1[[#This Row],[Item ID]],DataTable,6,FALSE)*I396,\"\")))","v":""},{"$f":"IF(Table_Data_Table_1[[#This Row],[Valuation Method]]=\"Vacant\",\"N/A\",IF(Table_Data_Table_1[[#This Row],[Valuation Method]]=\"Abstraction\",Table_Data_Table_1[[#This Row],[Land\nResidual]]/VLOOKUP(Table_Data_Table_1[[#This Row],[Item ID]],DataTable,6,FALSE),IF(Table_Data_Table_1[[#This Row],[Valuation Method]]=\"Allocation\",'Global Settings'!$H$20,\"\")))","v":""},{"$f":"IFERROR(ROUND(Table_Data_Table_1[[#This Row],[Resid\nSq Ft]]/43560,3),\"\")","v":""},{"$f":"IF(Table_Data_Table_1[[#This Row],[Item ID]]=\"\",\"\",IFERROR(VLOOKUP(Table_Data_Table_1[[#This Row],[Item ID]],DataTable,10,FALSE)-VLOOKUP(Table_Data_Table_1[[#This Row],[Item ID]],DataTable,12,FALSE),\"\"))","v":""},{"$f":"IFERROR(Table_Data_Table_1[[#This Row],[Land\nResidual]]/Table_Data_Table_1[[#This Row],[Resid\nAcre]],\"\")","v":""},{"$f":"IFERROR(ROUND(Table_Data_Table_1[[#This Row],[Land\nResidual]]/Table_Data_Table_1[[#This Row],[Resid\nSq Ft]],2),\"\")","v":""},{"$f":"IF(Table_Data_Table_1[[#This Row],[Item ID]]=\"\",\"\",ROUND(DAYS360(Table_Data_Table_1[[#This Row],[Sale Date]],'Global Settings'!$H$5)/30,0))","v":""},{"$f":"IFERROR(IF(AND(Table_Data_Table_1[[#This Row],[Months To\nMid-Point]]<12.01,Table_Data_Table_1[[#This Row],[Months To\nMid-Point]]>-13),0,(Table_Data_Table_1[[#This Row],[Months To\nMid-Point]]*'Global Settings'!$H$6)),\"\")","v":""},{"$f":"IFERROR(Table_Data_Table_1[[#This Row],[Land\nResidual]]*(Table_Data_Table_1[[#This Row],[Time\nAdjust]]+1),\"\")","v":""},{"$f":"IFERROR(Table_Data_Table_1[[#This Row],[Adjusted\nSale Price]]/Table_Data_Table_1[[#This Row],[Resid\nAcre]],\"\")","v":""},{"$f":"IFERROR(ROUND(Table_Data_Table_1[[#This Row],[Adjusted\nSale Price]]/Table_Data_Table_1[[#This Row],[Resid\nSq Ft]],2),\"\")","v":""},{"$f":"IFERROR(IF(VLOOKUP(Table_Data_Table_1[[#This Row],[Item ID]],DataTable,11,FALSE)=0,\"N/A\",Table_Data_Table_1[[#This Row],[Adjusted\nSale Price]]/VLOOKUP(Table_Data_Table_1[[#This Row],[Item ID]],DataTable,11,FALSE)),\"\")","v":""},{"$f":"IF(IFERROR(VLOOKUP(Table_Data_Table_1[[#This Row],[Item ID]],DataTable,17,FALSE),\"\")=0,\"\",IFERROR(VLOOKUP(Table_Data_Table_1[[#This Row],[Item ID]],DataTable,17,FALSE),\"\"))","v":""}]
["",null,{"$f":"IF(Table_Data_Table_1[[#This Row],[Item ID]]=\"\",\"\",IFERROR(VLOOKUP(Table_Data_Table_1[[#This Row],[Item ID]],DataTable,16,FALSE),\"\"))","v":""},null,null,null,null,{"$f":"IF(Table_Data_Table_1[[#This Row],[Valuation Method]]=\"Vacant\",VLOOKUP(Table_Data_Table_1[[#This Row],[Item ID]],DataTable,6,FALSE)-VLOOKUP(Table_Data_Table_1[[#This Row],[Item ID]],DataTable,13,FALSE),IF(Table_Data_Table_1[[#This Row],[Valuation Method]]=\"Abstraction\",VLOOKUP(Table_Data_Table_1[[#This Row],[Item ID]],DataTable,6,FALSE)-VLOOKUP(Table_Data_Table_1[[#This Row],[Item ID]],DataTable,13,FALSE),IF(Table_Data_Table_1[[#This Row],[Valuation Method]]=\"Allocation\",VLOOKUP(Table_Data_Table_1[[#This Row],[Item ID]],DataTable,6,FALSE)*I397,\"\")))","v":""},{"$f":"IF(Table_Data_Table_1[[#This Row],[Valuation Method]]=\"Vacant\",\"N/A\",IF(Table_Data_Table_1[[#This Row],[Valuation Method]]=\"Abstraction\",Table_Data_Table_1[[#This Row],[Land\nResidual]]/VLOOKUP(Table_Data_Table_1[[#This Row],[Item ID]],DataTable,6,FALSE),IF(Table_Data_Table_1[[#This Row],[Valuation Method]]=\"Allocation\",'Global Settings'!$H$20,\"\")))","v":""},{"$f":"IFERROR(ROUND(Table_Data_Table_1[[#This Row],[Resid\nSq Ft]]/43560,3),\"\")","v":""},{"$f":"IF(Table_Data_Table_1[[#This Row],[Item ID]]=\"\",\"\",IFERROR(VLOOKUP(Table_Data_Table_1[[#This Row],[Item ID]],DataTable,10,FALSE)-VLOOKUP(Table_Data_Table_1[[#This Row],[Item ID]],DataTable,12,FALSE),\"\"))","v":""},{"$f":"IFERROR(Table_Data_Table_1[[#This Row],[Land\nResidual]]/Table_Data_Table_1[[#This Row],[Resid\nAcre]],\"\")","v":""},{"$f":"IFERROR(ROUND(Table_Data_Table_1[[#This Row],[Land\nResidual]]/Table_Data_Table_1[[#This Row],[Resid\nSq Ft]],2),\"\")","v":""},{"$f":"IF(Table_Data_Table_1[[#This Row],[Item ID]]=\"\",\"\",ROUND(DAYS360(Table_Data_Table_1[[#This Row],[Sale Date]],'Global Settings'!$H$5)/30,0))","v":""},{"$f":"IFERROR(IF(AND(Table_Data_Table_1[[#This Row],[Months To\nMid-Point]]<12.01,Table_Data_Table_1[[#This Row],[Months To\nMid-Point]]>-13),0,(Table_Data_Table_1[[#This Row],[Months To\nMid-Point]]*'Global Settings'!$H$6)),\"\")","v":""},{"$f":"IFERROR(Table_Data_Table_1[[#This Row],[Land\nResidual]]*(Table_Data_Table_1[[#This Row],[Time\nAdjust]]+1),\"\")","v":""},{"$f":"IFERROR(Table_Data_Table_1[[#This Row],[Adjusted\nSale Price]]/Table_Data_Table_1[[#This Row],[Resid\nAcre]],\"\")","v":""},{"$f":"IFERROR(ROUND(Table_Data_Table_1[[#This Row],[Adjusted\nSale Price]]/Table_Data_Table_1[[#This Row],[Resid\nSq Ft]],2),\"\")","v":""},{"$f":"IFERROR(IF(VLOOKUP(Table_Data_Table_1[[#This Row],[Item ID]],DataTable,11,FALSE)=0,\"N/A\",Table_Data_Table_1[[#This Row],[Adjusted\nSale Price]]/VLOOKUP(Table_Data_Table_1[[#This Row],[Item ID]],DataTable,11,FALSE)),\"\")","v":""},{"$f":"IF(IFERROR(VLOOKUP(Table_Data_Table_1[[#This Row],[Item ID]],DataTable,17,FALSE),\"\")=0,\"\",IFERROR(VLOOKUP(Table_Data_Table_1[[#This Row],[Item ID]],DataTable,17,FALSE),\"\"))","v":""}]
["",null,{"$f":"IF(Table_Data_Table_1[[#This Row],[Item ID]]=\"\",\"\",IFERROR(VLOOKUP(Table_Data_Table_1[[#This Row],[Item ID]],DataTable,16,FALSE),\"\"))","v":""},null,null,null,null,{"$f":"IF(Table_Data_Table_1[[#This Row],[Valuation Method]]=\"Vacant\",VLOOKUP(Table_Data_Table_1[[#This Row],[Item ID]],DataTable,6,FALSE)-VLOOKUP(Table_Data_Table_1[[#This Row],[Item ID]],DataTable,13,FALSE),IF(Table_Data_Table_1[[#This Row],[Valuation Method]]=\"Abstraction\",VLOOKUP(Table_Data_Table_1[[#This Row],[Item ID]],DataTable,6,FALSE)-VLOOKUP(Table_Data_Table_1[[#This Row],[Item ID]],DataTable,13,FALSE),IF(Table_Data_Table_1[[#This Row],[Valuation Method]]=\"Allocation\",VLOOKUP(Table_Data_Table_1[[#This Row],[Item ID]],DataTable,6,FALSE)*I398,\"\")))","v":""},{"$f":"IF(Table_Data_Table_1[[#This Row],[Valuation Method]]=\"Vacant\",\"N/A\",IF(Table_Data_Table_1[[#This Row],[Valuation Method]]=\"Abstraction\",Table_Data_Table_1[[#This Row],[Land\nResidual]]/VLOOKUP(Table_Data_Table_1[[#This Row],[Item ID]],DataTable,6,FALSE),IF(Table_Data_Table_1[[#This Row],[Valuation Method]]=\"Allocation\",'Global Settings'!$H$20,\"\")))","v":""},{"$f":"IFERROR(ROUND(Table_Data_Table_1[[#This Row],[Resid\nSq Ft]]/43560,3),\"\")","v":""},{"$f":"IF(Table_Data_Table_1[[#This Row],[Item ID]]=\"\",\"\",IFERROR(VLOOKUP(Table_Data_Table_1[[#This Row],[Item ID]],DataTable,10,FALSE)-VLOOKUP(Table_Data_Table_1[[#This Row],[Item ID]],DataTable,12,FALSE),\"\"))","v":""},{"$f":"IFERROR(Table_Data_Table_1[[#This Row],[Land\nResidual]]/Table_Data_Table_1[[#This Row],[Resid\nAcre]],\"\")","v":""},{"$f":"IFERROR(ROUND(Table_Data_Table_1[[#This Row],[Land\nResidual]]/Table_Data_Table_1[[#This Row],[Resid\nSq Ft]],2),\"\")","v":""},{"$f":"IF(Table_Data_Table_1[[#This Row],[Item ID]]=\"\",\"\",ROUND(DAYS360(Table_Data_Table_1[[#This Row],[Sale Date]],'Global Settings'!$H$5)/30,0))","v":""},{"$f":"IFERROR(IF(AND(Table_Data_Table_1[[#This Row],[Months To\nMid-Point]]<12.01,Table_Data_Table_1[[#This Row],[Months To\nMid-Point]]>-13),0,(Table_Data_Table_1[[#This Row],[Months To\nMid-Point]]*'Global Settings'!$H$6)),\"\")","v":""},{"$f":"IFERROR(Table_Data_Table_1[[#This Row],[Land\nResidual]]*(Table_Data_Table_1[[#This Row],[Time\nAdjust]]+1),\"\")","v":""},{"$f":"IFERROR(Table_Data_Table_1[[#This Row],[Adjusted\nSale Price]]/Table_Data_Table_1[[#This Row],[Resid\nAcre]],\"\")","v":""},{"$f":"IFERROR(ROUND(Table_Data_Table_1[[#This Row],[Adjusted\nSale Price]]/Table_Data_Table_1[[#This Row],[Resid\nSq Ft]],2),\"\")","v":""},{"$f":"IFERROR(IF(VLOOKUP(Table_Data_Table_1[[#This Row],[Item ID]],DataTable,11,FALSE)=0,\"N/A\",Table_Data_Table_1[[#This Row],[Adjusted\nSale Price]]/VLOOKUP(Table_Data_Table_1[[#This Row],[Item ID]],DataTable,11,FALSE)),\"\")","v":""},{"$f":"IF(IFERROR(VLOOKUP(Table_Data_Table_1[[#This Row],[Item ID]],DataTable,17,FALSE),\"\")=0,\"\",IFERROR(VLOOKUP(Table_Data_Table_1[[#This Row],[Item ID]],DataTable,17,FALSE),\"\"))","v":""}]
["",null,{"$f":"IF(Table_Data_Table_1[[#This Row],[Item ID]]=\"\",\"\",IFERROR(VLOOKUP(Table_Data_Table_1[[#This Row],[Item ID]],DataTable,16,FALSE),\"\"))","v":""},null,null,null,null,{"$f":"IF(Table_Data_Table_1[[#This Row],[Valuation Method]]=\"Vacant\",VLOOKUP(Table_Data_Table_1[[#This Row],[Item ID]],DataTable,6,FALSE)-VLOOKUP(Table_Data_Table_1[[#This Row],[Item ID]],DataTable,13,FALSE),IF(Table_Data_Table_1[[#This Row],[Valuation Method]]=\"Abstraction\",VLOOKUP(Table_Data_Table_1[[#This Row],[Item ID]],DataTable,6,FALSE)-VLOOKUP(Table_Data_Table_1[[#This Row],[Item ID]],DataTable,13,FALSE),IF(Table_Data_Table_1[[#This Row],[Valuation Method]]=\"Allocation\",VLOOKUP(Table_Data_Table_1[[#This Row],[Item ID]],DataTable,6,FALSE)*I399,\"\")))","v":""},{"$f":"IF(Table_Data_Table_1[[#This Row],[Valuation Method]]=\"Vacant\",\"N/A\",IF(Table_Data_Table_1[[#This Row],[Valuation Method]]=\"Abstraction\",Table_Data_Table_1[[#This Row],[Land\nResidual]]/VLOOKUP(Table_Data_Table_1[[#This Row],[Item ID]],DataTable,6,FALSE),IF(Table_Data_Table_1[[#This Row],[Valuation Method]]=\"Allocation\",'Global Settings'!$H$20,\"\")))","v":""},{"$f":"IFERROR(ROUND(Table_Data_Table_1[[#This Row],[Resid\nSq Ft]]/43560,3),\"\")","v":""},{"$f":"IF(Table_Data_Table_1[[#This Row],[Item ID]]=\"\",\"\",IFERROR(VLOOKUP(Table_Data_Table_1[[#This Row],[Item ID]],DataTable,10,FALSE)-VLOOKUP(Table_Data_Table_1[[#This Row],[Item ID]],DataTable,12,FALSE),\"\"))","v":""},{"$f":"IFERROR(Table_Data_Table_1[[#This Row],[Land\nResidual]]/Table_Data_Table_1[[#This Row],[Resid\nAcre]],\"\")","v":""},{"$f":"IFERROR(ROUND(Table_Data_Table_1[[#This Row],[Land\nResidual]]/Table_Data_Table_1[[#This Row],[Resid\nSq Ft]],2),\"\")","v":""},{"$f":"IF(Table_Data_Table_1[[#This Row],[Item ID]]=\"\",\"\",ROUND(DAYS360(Table_Data_Table_1[[#This Row],[Sale Date]],'Global Settings'!$H$5)/30,0))","v":""},{"$f":"IFERROR(IF(AND(Table_Data_Table_1[[#This Row],[Months To\nMid-Point]]<12.01,Table_Data_Table_1[[#This Row],[Months To\nMid-Point]]>-13),0,(Table_Data_Table_1[[#This Row],[Months To\nMid-Point]]*'Global Settings'!$H$6)),\"\")","v":""},{"$f":"IFERROR(Table_Data_Table_1[[#This Row],[Land\nResidual]]*(Table_Data_Table_1[[#This Row],[Time\nAdjust]]+1),\"\")","v":""},{"$f":"IFERROR(Table_Data_Table_1[[#This Row],[Adjusted\nSale Price]]/Table_Data_Table_1[[#This Row],[Resid\nAcre]],\"\")","v":""},{"$f":"IFERROR(ROUND(Table_Data_Table_1[[#This Row],[Adjusted\nSale Price]]/Table_Data_Table_1[[#This Row],[Resid\nSq Ft]],2),\"\")","v":""},{"$f":"IFERROR(IF(VLOOKUP(Table_Data_Table_1[[#This Row],[Item ID]],DataTable,11,FALSE)=0,\"N/A\",Table_Data_Table_1[[#This Row],[Adjusted\nSale Price]]/VLOOKUP(Table_Data_Table_1[[#This Row],[Item ID]],DataTable,11,FALSE)),\"\")","v":""},{"$f":"IF(IFERROR(VLOOKUP(Table_Data_Table_1[[#This Row],[Item ID]],DataTable,17,FALSE),\"\")=0,\"\",IFERROR(VLOOKUP(Table_Data_Table_1[[#This Row],[Item ID]],DataTable,17,FALSE),\"\"))","v":""}]
["",null,{"$f":"IF(Table_Data_Table_1[[#This Row],[Item ID]]=\"\",\"\",IFERROR(VLOOKUP(Table_Data_Table_1[[#This Row],[Item ID]],DataTable,16,FALSE),\"\"))","v":""},null,null,null,null,{"$f":"IF(Table_Data_Table_1[[#This Row],[Valuation Method]]=\"Vacant\",VLOOKUP(Table_Data_Table_1[[#This Row],[Item ID]],DataTable,6,FALSE)-VLOOKUP(Table_Data_Table_1[[#This Row],[Item ID]],DataTable,13,FALSE),IF(Table_Data_Table_1[[#This Row],[Valuation Method]]=\"Abstraction\",VLOOKUP(Table_Data_Table_1[[#This Row],[Item ID]],DataTable,6,FALSE)-VLOOKUP(Table_Data_Table_1[[#This Row],[Item ID]],DataTable,13,FALSE),IF(Table_Data_Table_1[[#This Row],[Valuation Method]]=\"Allocation\",VLOOKUP(Table_Data_Table_1[[#This Row],[Item ID]],DataTable,6,FALSE)*I400,\"\")))","v":""},{"$f":"IF(Table_Data_Table_1[[#This Row],[Valuation Method]]=\"Vacant\",\"N/A\",IF(Table_Data_Table_1[[#This Row],[Valuation Method]]=\"Abstraction\",Table_Data_Table_1[[#This Row],[Land\nResidual]]/VLOOKUP(Table_Data_Table_1[[#This Row],[Item ID]],DataTable,6,FALSE),IF(Table_Data_Table_1[[#This Row],[Valuation Method]]=\"Allocation\",'Global Settings'!$H$20,\"\")))","v":""},{"$f":"IFERROR(ROUND(Table_Data_Table_1[[#This Row],[Resid\nSq Ft]]/43560,3),\"\")","v":""},{"$f":"IF(Table_Data_Table_1[[#This Row],[Item ID]]=\"\",\"\",IFERROR(VLOOKUP(Table_Data_Table_1[[#This Row],[Item ID]],DataTable,10,FALSE)-VLOOKUP(Table_Data_Table_1[[#This Row],[Item ID]],DataTable,12,FALSE),\"\"))","v":""},{"$f":"IFERROR(Table_Data_Table_1[[#This Row],[Land\nResidual]]/Table_Data_Table_1[[#This Row],[Resid\nAcre]],\"\")","v":""},{"$f":"IFERROR(ROUND(Table_Data_Table_1[[#This Row],[Land\nResidual]]/Table_Data_Table_1[[#This Row],[Resid\nSq Ft]],2),\"\")","v":""},{"$f":"IF(Table_Data_Table_1[[#This Row],[Item ID]]=\"\",\"\",ROUND(DAYS360(Table_Data_Table_1[[#This Row],[Sale Date]],'Global Settings'!$H$5)/30,0))","v":""},{"$f":"IFERROR(IF(AND(Table_Data_Table_1[[#This Row],[Months To\nMid-Point]]<12.01,Table_Data_Table_1[[#This Row],[Months To\nMid-Point]]>-13),0,(Table_Data_Table_1[[#This Row],[Months To\nMid-Point]]*'Global Settings'!$H$6)),\"\")","v":""},{"$f":"IFERROR(Table_Data_Table_1[[#This Row],[Land\nResidual]]*(Table_Data_Table_1[[#This Row],[Time\nAdjust]]+1),\"\")","v":""},{"$f":"IFERROR(Table_Data_Table_1[[#This Row],[Adjusted\nSale Price]]/Table_Data_Table_1[[#This Row],[Resid\nAcre]],\"\")","v":""},{"$f":"IFERROR(ROUND(Table_Data_Table_1[[#This Row],[Adjusted\nSale Price]]/Table_Data_Table_1[[#This Row],[Resid\nSq Ft]],2),\"\")","v":""},{"$f":"IFERROR(IF(VLOOKUP(Table_Data_Table_1[[#This Row],[Item ID]],DataTable,11,FALSE)=0,\"N/A\",Table_Data_Table_1[[#This Row],[Adjusted\nSale Price]]/VLOOKUP(Table_Data_Table_1[[#This Row],[Item ID]],DataTable,11,FALSE)),\"\")","v":""},{"$f":"IF(IFERROR(VLOOKUP(Table_Data_Table_1[[#This Row],[Item ID]],DataTable,17,FALSE),\"\")=0,\"\",IFERROR(VLOOKUP(Table_Data_Table_1[[#This Row],[Item ID]],DataTable,17,FALSE),\"\"))","v":""}]
["",null,{"$f":"IF(Table_Data_Table_1[[#This Row],[Item ID]]=\"\",\"\",IFERROR(VLOOKUP(Table_Data_Table_1[[#This Row],[Item ID]],DataTable,16,FALSE),\"\"))","v":""},null,null,null,null,{"$f":"IF(Table_Data_Table_1[[#This Row],[Valuation Method]]=\"Vacant\",VLOOKUP(Table_Data_Table_1[[#This Row],[Item ID]],DataTable,6,FALSE)-VLOOKUP(Table_Data_Table_1[[#This Row],[Item ID]],DataTable,13,FALSE),IF(Table_Data_Table_1[[#This Row],[Valuation Method]]=\"Abstraction\",VLOOKUP(Table_Data_Table_1[[#This Row],[Item ID]],DataTable,6,FALSE)-VLOOKUP(Table_Data_Table_1[[#This Row],[Item ID]],DataTable,13,FALSE),IF(Table_Data_Table_1[[#This Row],[Valuation Method]]=\"Allocation\",VLOOKUP(Table_Data_Table_1[[#This Row],[Item ID]],DataTable,6,FALSE)*I401,\"\")))","v":""},{"$f":"IF(Table_Data_Table_1[[#This Row],[Valuation Method]]=\"Vacant\",\"N/A\",IF(Table_Data_Table_1[[#This Row],[Valuation Method]]=\"Abstraction\",Table_Data_Table_1[[#This Row],[Land\nResidual]]/VLOOKUP(Table_Data_Table_1[[#This Row],[Item ID]],DataTable,6,FALSE),IF(Table_Data_Table_1[[#This Row],[Valuation Method]]=\"Allocation\",'Global Settings'!$H$20,\"\")))","v":""},{"$f":"IFERROR(ROUND(Table_Data_Table_1[[#This Row],[Resid\nSq Ft]]/43560,3),\"\")","v":""},{"$f":"IF(Table_Data_Table_1[[#This Row],[Item ID]]=\"\",\"\",IFERROR(VLOOKUP(Table_Data_Table_1[[#This Row],[Item ID]],DataTable,10,FALSE)-VLOOKUP(Table_Data_Table_1[[#This Row],[Item ID]],DataTable,12,FALSE),\"\"))","v":""},{"$f":"IFERROR(Table_Data_Table_1[[#This Row],[Land\nResidual]]/Table_Data_Table_1[[#This Row],[Resid\nAcre]],\"\")","v":""},{"$f":"IFERROR(ROUND(Table_Data_Table_1[[#This Row],[Land\nResidual]]/Table_Data_Table_1[[#This Row],[Resid\nSq Ft]],2),\"\")","v":""},{"$f":"IF(Table_Data_Table_1[[#This Row],[Item ID]]=\"\",\"\",ROUND(DAYS360(Table_Data_Table_1[[#This Row],[Sale Date]],'Global Settings'!$H$5)/30,0))","v":""},{"$f":"IFERROR(IF(AND(Table_Data_Table_1[[#This Row],[Months To\nMid-Point]]<12.01,Table_Data_Table_1[[#This Row],[Months To\nMid-Point]]>-13),0,(Table_Data_Table_1[[#This Row],[Months To\nMid-Point]]*'Global Settings'!$H$6)),\"\")","v":""},{"$f":"IFERROR(Table_Data_Table_1[[#This Row],[Land\nResidual]]*(Table_Data_Table_1[[#This Row],[Time\nAdjust]]+1),\"\")","v":""},{"$f":"IFERROR(Table_Data_Table_1[[#This Row],[Adjusted\nSale Price]]/Table_Data_Table_1[[#This Row],[Resid\nAcre]],\"\")","v":""},{"$f":"IFERROR(ROUND(Table_Data_Table_1[[#This Row],[Adjusted\nSale Price]]/Table_Data_Table_1[[#This Row],[Resid\nSq Ft]],2),\"\")","v":""},{"$f":"IFERROR(IF(VLOOKUP(Table_Data_Table_1[[#This Row],[Item ID]],DataTable,11,FALSE)=0,\"N/A\",Table_Data_Table_1[[#This Row],[Adjusted\nSale Price]]/VLOOKUP(Table_Data_Table_1[[#This Row],[Item ID]],DataTable,11,FALSE)),\"\")","v":""},{"$f":"IF(IFERROR(VLOOKUP(Table_Data_Table_1[[#This Row],[Item ID]],DataTable,17,FALSE),\"\")=0,\"\",IFERROR(VLOOKUP(Table_Data_Table_1[[#This Row],[Item ID]],DataTable,17,FALSE),\"\"))","v":""}]
["",null,{"$f":"IF(Table_Data_Table_1[[#This Row],[Item ID]]=\"\",\"\",IFERROR(VLOOKUP(Table_Data_Table_1[[#This Row],[Item ID]],DataTable,16,FALSE),\"\"))","v":""},null,null,null,null,{"$f":"IF(Table_Data_Table_1[[#This Row],[Valuation Method]]=\"Vacant\",VLOOKUP(Table_Data_Table_1[[#This Row],[Item ID]],DataTable,6,FALSE)-VLOOKUP(Table_Data_Table_1[[#This Row],[Item ID]],DataTable,13,FALSE),IF(Table_Data_Table_1[[#This Row],[Valuation Method]]=\"Abstraction\",VLOOKUP(Table_Data_Table_1[[#This Row],[Item ID]],DataTable,6,FALSE)-VLOOKUP(Table_Data_Table_1[[#This Row],[Item ID]],DataTable,13,FALSE),IF(Table_Data_Table_1[[#This Row],[Valuation Method]]=\"Allocation\",VLOOKUP(Table_Data_Table_1[[#This Row],[Item ID]],DataTable,6,FALSE)*I402,\"\")))","v":""},{"$f":"IF(Table_Data_Table_1[[#This Row],[Valuation Method]]=\"Vacant\",\"N/A\",IF(Table_Data_Table_1[[#This Row],[Valuation Method]]=\"Abstraction\",Table_Data_Table_1[[#This Row],[Land\nResidual]]/VLOOKUP(Table_Data_Table_1[[#This Row],[Item ID]],DataTable,6,FALSE),IF(Table_Data_Table_1[[#This Row],[Valuation Method]]=\"Allocation\",'Global Settings'!$H$20,\"\")))","v":""},{"$f":"IFERROR(ROUND(Table_Data_Table_1[[#This Row],[Resid\nSq Ft]]/43560,3),\"\")","v":""},{"$f":"IF(Table_Data_Table_1[[#This Row],[Item ID]]=\"\",\"\",IFERROR(VLOOKUP(Table_Data_Table_1[[#This Row],[Item ID]],DataTable,10,FALSE)-VLOOKUP(Table_Data_Table_1[[#This Row],[Item ID]],DataTable,12,FALSE),\"\"))","v":""},{"$f":"IFERROR(Table_Data_Table_1[[#This Row],[Land\nResidual]]/Table_Data_Table_1[[#This Row],[Resid\nAcre]],\"\")","v":""},{"$f":"IFERROR(ROUND(Table_Data_Table_1[[#This Row],[Land\nResidual]]/Table_Data_Table_1[[#This Row],[Resid\nSq Ft]],2),\"\")","v":""},{"$f":"IF(Table_Data_Table_1[[#This Row],[Item ID]]=\"\",\"\",ROUND(DAYS360(Table_Data_Table_1[[#This Row],[Sale Date]],'Global Settings'!$H$5)/30,0))","v":""},{"$f":"IFERROR(IF(AND(Table_Data_Table_1[[#This Row],[Months To\nMid-Point]]<12.01,Table_Data_Table_1[[#This Row],[Months To\nMid-Point]]>-13),0,(Table_Data_Table_1[[#This Row],[Months To\nMid-Point]]*'Global Settings'!$H$6)),\"\")","v":""},{"$f":"IFERROR(Table_Data_Table_1[[#This Row],[Land\nResidual]]*(Table_Data_Table_1[[#This Row],[Time\nAdjust]]+1),\"\")","v":""},{"$f":"IFERROR(Table_Data_Table_1[[#This Row],[Adjusted\nSale Price]]/Table_Data_Table_1[[#This Row],[Resid\nAcre]],\"\")","v":""},{"$f":"IFERROR(ROUND(Table_Data_Table_1[[#This Row],[Adjusted\nSale Price]]/Table_Data_Table_1[[#This Row],[Resid\nSq Ft]],2),\"\")","v":""},{"$f":"IFERROR(IF(VLOOKUP(Table_Data_Table_1[[#This Row],[Item ID]],DataTable,11,FALSE)=0,\"N/A\",Table_Data_Table_1[[#This Row],[Adjusted\nSale Price]]/VLOOKUP(Table_Data_Table_1[[#This Row],[Item ID]],DataTable,11,FALSE)),\"\")","v":""},{"$f":"IF(IFERROR(VLOOKUP(Table_Data_Table_1[[#This Row],[Item ID]],DataTable,17,FALSE),\"\")=0,\"\",IFERROR(VLOOKUP(Table_Data_Table_1[[#This Row],[Item ID]],DataTable,17,FALSE),\"\"))","v":""}]
["",null,{"$f":"IF(Table_Data_Table_1[[#This Row],[Item ID]]=\"\",\"\",IFERROR(VLOOKUP(Table_Data_Table_1[[#This Row],[Item ID]],DataTable,16,FALSE),\"\"))","v":""},null,null,null,null,{"$f":"IF(Table_Data_Table_1[[#This Row],[Valuation Method]]=\"Vacant\",VLOOKUP(Table_Data_Table_1[[#This Row],[Item ID]],DataTable,6,FALSE)-VLOOKUP(Table_Data_Table_1[[#This Row],[Item ID]],DataTable,13,FALSE),IF(Table_Data_Table_1[[#This Row],[Valuation Method]]=\"Abstraction\",VLOOKUP(Table_Data_Table_1[[#This Row],[Item ID]],DataTable,6,FALSE)-VLOOKUP(Table_Data_Table_1[[#This Row],[Item ID]],DataTable,13,FALSE),IF(Table_Data_Table_1[[#This Row],[Valuation Method]]=\"Allocation\",VLOOKUP(Table_Data_Table_1[[#This Row],[Item ID]],DataTable,6,FALSE)*I403,\"\")))","v":""},{"$f":"IF(Table_Data_Table_1[[#This Row],[Valuation Method]]=\"Vacant\",\"N/A\",IF(Table_Data_Table_1[[#This Row],[Valuation Method]]=\"Abstraction\",Table_Data_Table_1[[#This Row],[Land\nResidual]]/VLOOKUP(Table_Data_Table_1[[#This Row],[Item ID]],DataTable,6,FALSE),IF(Table_Data_Table_1[[#This Row],[Valuation Method]]=\"Allocation\",'Global Settings'!$H$20,\"\")))","v":""},{"$f":"IFERROR(ROUND(Table_Data_Table_1[[#This Row],[Resid\nSq Ft]]/43560,3),\"\")","v":""},{"$f":"IF(Table_Data_Table_1[[#This Row],[Item ID]]=\"\",\"\",IFERROR(VLOOKUP(Table_Data_Table_1[[#This Row],[Item ID]],DataTable,10,FALSE)-VLOOKUP(Table_Data_Table_1[[#This Row],[Item ID]],DataTable,12,FALSE),\"\"))","v":""},{"$f":"IFERROR(Table_Data_Table_1[[#This Row],[Land\nResidual]]/Table_Data_Table_1[[#This Row],[Resid\nAcre]],\"\")","v":""},{"$f":"IFERROR(ROUND(Table_Data_Table_1[[#This Row],[Land\nResidual]]/Table_Data_Table_1[[#This Row],[Resid\nSq Ft]],2),\"\")","v":""},{"$f":"IF(Table_Data_Table_1[[#This Row],[Item ID]]=\"\",\"\",ROUND(DAYS360(Table_Data_Table_1[[#This Row],[Sale Date]],'Global Settings'!$H$5)/30,0))","v":""},{"$f":"IFERROR(IF(AND(Table_Data_Table_1[[#This Row],[Months To\nMid-Point]]<12.01,Table_Data_Table_1[[#This Row],[Months To\nMid-Point]]>-13),0,(Table_Data_Table_1[[#This Row],[Months To\nMid-Point]]*'Global Settings'!$H$6)),\"\")","v":""},{"$f":"IFERROR(Table_Data_Table_1[[#This Row],[Land\nResidual]]*(Table_Data_Table_1[[#This Row],[Time\nAdjust]]+1),\"\")","v":""},{"$f":"IFERROR(Table_Data_Table_1[[#This Row],[Adjusted\nSale Price]]/Table_Data_Table_1[[#This Row],[Resid\nAcre]],\"\")","v":""},{"$f":"IFERROR(ROUND(Table_Data_Table_1[[#This Row],[Adjusted\nSale Price]]/Table_Data_Table_1[[#This Row],[Resid\nSq Ft]],2),\"\")","v":""},{"$f":"IFERROR(IF(VLOOKUP(Table_Data_Table_1[[#This Row],[Item ID]],DataTable,11,FALSE)=0,\"N/A\",Table_Data_Table_1[[#This Row],[Adjusted\nSale Price]]/VLOOKUP(Table_Data_Table_1[[#This Row],[Item ID]],DataTable,11,FALSE)),\"\")","v":""},{"$f":"IF(IFERROR(VLOOKUP(Table_Data_Table_1[[#This Row],[Item ID]],DataTable,17,FALSE),\"\")=0,\"\",IFERROR(VLOOKUP(Table_Data_Table_1[[#This Row],[Item ID]],DataTable,17,FALSE),\"\"))","v":""}]
["",null,{"$f":"IF(Table_Data_Table_1[[#This Row],[Item ID]]=\"\",\"\",IFERROR(VLOOKUP(Table_Data_Table_1[[#This Row],[Item ID]],DataTable,16,FALSE),\"\"))","v":""},null,null,null,null,{"$f":"IF(Table_Data_Table_1[[#This Row],[Valuation Method]]=\"Vacant\",VLOOKUP(Table_Data_Table_1[[#This Row],[Item ID]],DataTable,6,FALSE)-VLOOKUP(Table_Data_Table_1[[#This Row],[Item ID]],DataTable,13,FALSE),IF(Table_Data_Table_1[[#This Row],[Valuation Method]]=\"Abstraction\",VLOOKUP(Table_Data_Table_1[[#This Row],[Item ID]],DataTable,6,FALSE)-VLOOKUP(Table_Data_Table_1[[#This Row],[Item ID]],DataTable,13,FALSE),IF(Table_Data_Table_1[[#This Row],[Valuation Method]]=\"Allocation\",VLOOKUP(Table_Data_Table_1[[#This Row],[Item ID]],DataTable,6,FALSE)*I404,\"\")))","v":""},{"$f":"IF(Table_Data_Table_1[[#This Row],[Valuation Method]]=\"Vacant\",\"N/A\",IF(Table_Data_Table_1[[#This Row],[Valuation Method]]=\"Abstraction\",Table_Data_Table_1[[#This Row],[Land\nResidual]]/VLOOKUP(Table_Data_Table_1[[#This Row],[Item ID]],DataTable,6,FALSE),IF(Table_Data_Table_1[[#This Row],[Valuation Method]]=\"Allocation\",'Global Settings'!$H$20,\"\")))","v":""},{"$f":"IFERROR(ROUND(Table_Data_Table_1[[#This Row],[Resid\nSq Ft]]/43560,3),\"\")","v":""},{"$f":"IF(Table_Data_Table_1[[#This Row],[Item ID]]=\"\",\"\",IFERROR(VLOOKUP(Table_Data_Table_1[[#This Row],[Item ID]],DataTable,10,FALSE)-VLOOKUP(Table_Data_Table_1[[#This Row],[Item ID]],DataTable,12,FALSE),\"\"))","v":""},{"$f":"IFERROR(Table_Data_Table_1[[#This Row],[Land\nResidual]]/Table_Data_Table_1[[#This Row],[Resid\nAcre]],\"\")","v":""},{"$f":"IFERROR(ROUND(Table_Data_Table_1[[#This Row],[Land\nResidual]]/Table_Data_Table_1[[#This Row],[Resid\nSq Ft]],2),\"\")","v":""},{"$f":"IF(Table_Data_Table_1[[#This Row],[Item ID]]=\"\",\"\",ROUND(DAYS360(Table_Data_Table_1[[#This Row],[Sale Date]],'Global Settings'!$H$5)/30,0))","v":""},{"$f":"IFERROR(IF(AND(Table_Data_Table_1[[#This Row],[Months To\nMid-Point]]<12.01,Table_Data_Table_1[[#This Row],[Months To\nMid-Point]]>-13),0,(Table_Data_Table_1[[#This Row],[Months To\nMid-Point]]*'Global Settings'!$H$6)),\"\")","v":""},{"$f":"IFERROR(Table_Data_Table_1[[#This Row],[Land\nResidual]]*(Table_Data_Table_1[[#This Row],[Time\nAdjust]]+1),\"\")","v":""},{"$f":"IFERROR(Table_Data_Table_1[[#This Row],[Adjusted\nSale Price]]/Table_Data_Table_1[[#This Row],[Resid\nAcre]],\"\")","v":""},{"$f":"IFERROR(ROUND(Table_Data_Table_1[[#This Row],[Adjusted\nSale Price]]/Table_Data_Table_1[[#This Row],[Resid\nSq Ft]],2),\"\")","v":""},{"$f":"IFERROR(IF(VLOOKUP(Table_Data_Table_1[[#This Row],[Item ID]],DataTable,11,FALSE)=0,\"N/A\",Table_Data_Table_1[[#This Row],[Adjusted\nSale Price]]/VLOOKUP(Table_Data_Table_1[[#This Row],[Item ID]],DataTable,11,FALSE)),\"\")","v":""},{"$f":"IF(IFERROR(VLOOKUP(Table_Data_Table_1[[#This Row],[Item ID]],DataTable,17,FALSE),\"\")=0,\"\",IFERROR(VLOOKUP(Table_Data_Table_1[[#This Row],[Item ID]],DataTable,17,FALSE),\"\"))","v":""}]
["",null,{"$f":"IF(Table_Data_Table_1[[#This Row],[Item ID]]=\"\",\"\",IFERROR(VLOOKUP(Table_Data_Table_1[[#This Row],[Item ID]],DataTable,16,FALSE),\"\"))","v":""},null,null,null,null,{"$f":"IF(Table_Data_Table_1[[#This Row],[Valuation Method]]=\"Vacant\",VLOOKUP(Table_Data_Table_1[[#This Row],[Item ID]],DataTable,6,FALSE)-VLOOKUP(Table_Data_Table_1[[#This Row],[Item ID]],DataTable,13,FALSE),IF(Table_Data_Table_1[[#This Row],[Valuation Method]]=\"Abstraction\",VLOOKUP(Table_Data_Table_1[[#This Row],[Item ID]],DataTable,6,FALSE)-VLOOKUP(Table_Data_Table_1[[#This Row],[Item ID]],DataTable,13,FALSE),IF(Table_Data_Table_1[[#This Row],[Valuation Method]]=\"Allocation\",VLOOKUP(Table_Data_Table_1[[#This Row],[Item ID]],DataTable,6,FALSE)*I405,\"\")))","v":""},{"$f":"IF(Table_Data_Table_1[[#This Row],[Valuation Method]]=\"Vacant\",\"N/A\",IF(Table_Data_Table_1[[#This Row],[Valuation Method]]=\"Abstraction\",Table_Data_Table_1[[#This Row],[Land\nResidual]]/VLOOKUP(Table_Data_Table_1[[#This Row],[Item ID]],DataTable,6,FALSE),IF(Table_Data_Table_1[[#This Row],[Valuation Method]]=\"Allocation\",'Global Settings'!$H$20,\"\")))","v":""},{"$f":"IFERROR(ROUND(Table_Data_Table_1[[#This Row],[Resid\nSq Ft]]/43560,3),\"\")","v":""},{"$f":"IF(Table_Data_Table_1[[#This Row],[Item ID]]=\"\",\"\",IFERROR(VLOOKUP(Table_Data_Table_1[[#This Row],[Item ID]],DataTable,10,FALSE)-VLOOKUP(Table_Data_Table_1[[#This Row],[Item ID]],DataTable,12,FALSE),\"\"))","v":""},{"$f":"IFERROR(Table_Data_Table_1[[#This Row],[Land\nResidual]]/Table_Data_Table_1[[#This Row],[Resid\nAcre]],\"\")","v":""},{"$f":"IFERROR(ROUND(Table_Data_Table_1[[#This Row],[Land\nResidual]]/Table_Data_Table_1[[#This Row],[Resid\nSq Ft]],2),\"\")","v":""},{"$f":"IF(Table_Data_Table_1[[#This Row],[Item ID]]=\"\",\"\",ROUND(DAYS360(Table_Data_Table_1[[#This Row],[Sale Date]],'Global Settings'!$H$5)/30,0))","v":""},{"$f":"IFERROR(IF(AND(Table_Data_Table_1[[#This Row],[Months To\nMid-Point]]<12.01,Table_Data_Table_1[[#This Row],[Months To\nMid-Point]]>-13),0,(Table_Data_Table_1[[#This Row],[Months To\nMid-Point]]*'Global Settings'!$H$6)),\"\")","v":""},{"$f":"IFERROR(Table_Data_Table_1[[#This Row],[Land\nResidual]]*(Table_Data_Table_1[[#This Row],[Time\nAdjust]]+1),\"\")","v":""},{"$f":"IFERROR(Table_Data_Table_1[[#This Row],[Adjusted\nSale Price]]/Table_Data_Table_1[[#This Row],[Resid\nAcre]],\"\")","v":""},{"$f":"IFERROR(ROUND(Table_Data_Table_1[[#This Row],[Adjusted\nSale Price]]/Table_Data_Table_1[[#This Row],[Resid\nSq Ft]],2),\"\")","v":""},{"$f":"IFERROR(IF(VLOOKUP(Table_Data_Table_1[[#This Row],[Item ID]],DataTable,11,FALSE)=0,\"N/A\",Table_Data_Table_1[[#This Row],[Adjusted\nSale Price]]/VLOOKUP(Table_Data_Table_1[[#This Row],[Item ID]],DataTable,11,FALSE)),\"\")","v":""},{"$f":"IF(IFERROR(VLOOKUP(Table_Data_Table_1[[#This Row],[Item ID]],DataTable,17,FALSE),\"\")=0,\"\",IFERROR(VLOOKUP(Table_Data_Table_1[[#This Row],[Item ID]],DataTable,17,FALSE),\"\"))","v":""}]
["",null,{"$f":"IF(Table_Data_Table_1[[#This Row],[Item ID]]=\"\",\"\",IFERROR(VLOOKUP(Table_Data_Table_1[[#This Row],[Item ID]],DataTable,16,FALSE),\"\"))","v":""},null,null,null,null,{"$f":"IF(Table_Data_Table_1[[#This Row],[Valuation Method]]=\"Vacant\",VLOOKUP(Table_Data_Table_1[[#This Row],[Item ID]],DataTable,6,FALSE)-VLOOKUP(Table_Data_Table_1[[#This Row],[Item ID]],DataTable,13,FALSE),IF(Table_Data_Table_1[[#This Row],[Valuation Method]]=\"Abstraction\",VLOOKUP(Table_Data_Table_1[[#This Row],[Item ID]],DataTable,6,FALSE)-VLOOKUP(Table_Data_Table_1[[#This Row],[Item ID]],DataTable,13,FALSE),IF(Table_Data_Table_1[[#This Row],[Valuation Method]]=\"Allocation\",VLOOKUP(Table_Data_Table_1[[#This Row],[Item ID]],DataTable,6,FALSE)*I406,\"\")))","v":""},{"$f":"IF(Table_Data_Table_1[[#This Row],[Valuation Method]]=\"Vacant\",\"N/A\",IF(Table_Data_Table_1[[#This Row],[Valuation Method]]=\"Abstraction\",Table_Data_Table_1[[#This Row],[Land\nResidual]]/VLOOKUP(Table_Data_Table_1[[#This Row],[Item ID]],DataTable,6,FALSE),IF(Table_Data_Table_1[[#This Row],[Valuation Method]]=\"Allocation\",'Global Settings'!$H$20,\"\")))","v":""},{"$f":"IFERROR(ROUND(Table_Data_Table_1[[#This Row],[Resid\nSq Ft]]/43560,3),\"\")","v":""},{"$f":"IF(Table_Data_Table_1[[#This Row],[Item ID]]=\"\",\"\",IFERROR(VLOOKUP(Table_Data_Table_1[[#This Row],[Item ID]],DataTable,10,FALSE)-VLOOKUP(Table_Data_Table_1[[#This Row],[Item ID]],DataTable,12,FALSE),\"\"))","v":""},{"$f":"IFERROR(Table_Data_Table_1[[#This Row],[Land\nResidual]]/Table_Data_Table_1[[#This Row],[Resid\nAcre]],\"\")","v":""},{"$f":"IFERROR(ROUND(Table_Data_Table_1[[#This Row],[Land\nResidual]]/Table_Data_Table_1[[#This Row],[Resid\nSq Ft]],2),\"\")","v":""},{"$f":"IF(Table_Data_Table_1[[#This Row],[Item ID]]=\"\",\"\",ROUND(DAYS360(Table_Data_Table_1[[#This Row],[Sale Date]],'Global Settings'!$H$5)/30,0))","v":""},{"$f":"IFERROR(IF(AND(Table_Data_Table_1[[#This Row],[Months To\nMid-Point]]<12.01,Table_Data_Table_1[[#This Row],[Months To\nMid-Point]]>-13),0,(Table_Data_Table_1[[#This Row],[Months To\nMid-Point]]*'Global Settings'!$H$6)),\"\")","v":""},{"$f":"IFERROR(Table_Data_Table_1[[#This Row],[Land\nResidual]]*(Table_Data_Table_1[[#This Row],[Time\nAdjust]]+1),\"\")","v":""},{"$f":"IFERROR(Table_Data_Table_1[[#This Row],[Adjusted\nSale Price]]/Table_Data_Table_1[[#This Row],[Resid\nAcre]],\"\")","v":""},{"$f":"IFERROR(ROUND(Table_Data_Table_1[[#This Row],[Adjusted\nSale Price]]/Table_Data_Table_1[[#This Row],[Resid\nSq Ft]],2),\"\")","v":""},{"$f":"IFERROR(IF(VLOOKUP(Table_Data_Table_1[[#This Row],[Item ID]],DataTable,11,FALSE)=0,\"N/A\",Table_Data_Table_1[[#This Row],[Adjusted\nSale Price]]/VLOOKUP(Table_Data_Table_1[[#This Row],[Item ID]],DataTable,11,FALSE)),\"\")","v":""},{"$f":"IF(IFERROR(VLOOKUP(Table_Data_Table_1[[#This Row],[Item ID]],DataTable,17,FALSE),\"\")=0,\"\",IFERROR(VLOOKUP(Table_Data_Table_1[[#This Row],[Item ID]],DataTable,17,FALSE),\"\"))","v":""}]
["",null,{"$f":"IF(Table_Data_Table_1[[#This Row],[Item ID]]=\"\",\"\",IFERROR(VLOOKUP(Table_Data_Table_1[[#This Row],[Item ID]],DataTable,16,FALSE),\"\"))","v":""},null,null,null,null,{"$f":"IF(Table_Data_Table_1[[#This Row],[Valuation Method]]=\"Vacant\",VLOOKUP(Table_Data_Table_1[[#This Row],[Item ID]],DataTable,6,FALSE)-VLOOKUP(Table_Data_Table_1[[#This Row],[Item ID]],DataTable,13,FALSE),IF(Table_Data_Table_1[[#This Row],[Valuation Method]]=\"Abstraction\",VLOOKUP(Table_Data_Table_1[[#This Row],[Item ID]],DataTable,6,FALSE)-VLOOKUP(Table_Data_Table_1[[#This Row],[Item ID]],DataTable,13,FALSE),IF(Table_Data_Table_1[[#This Row],[Valuation Method]]=\"Allocation\",VLOOKUP(Table_Data_Table_1[[#This Row],[Item ID]],DataTable,6,FALSE)*I407,\"\")))","v":""},{"$f":"IF(Table_Data_Table_1[[#This Row],[Valuation Method]]=\"Vacant\",\"N/A\",IF(Table_Data_Table_1[[#This Row],[Valuation Method]]=\"Abstraction\",Table_Data_Table_1[[#This Row],[Land\nResidual]]/VLOOKUP(Table_Data_Table_1[[#This Row],[Item ID]],DataTable,6,FALSE),IF(Table_Data_Table_1[[#This Row],[Valuation Method]]=\"Allocation\",'Global Settings'!$H$20,\"\")))","v":""},{"$f":"IFERROR(ROUND(Table_Data_Table_1[[#This Row],[Resid\nSq Ft]]/43560,3),\"\")","v":""},{"$f":"IF(Table_Data_Table_1[[#This Row],[Item ID]]=\"\",\"\",IFERROR(VLOOKUP(Table_Data_Table_1[[#This Row],[Item ID]],DataTable,10,FALSE)-VLOOKUP(Table_Data_Table_1[[#This Row],[Item ID]],DataTable,12,FALSE),\"\"))","v":""},{"$f":"IFERROR(Table_Data_Table_1[[#This Row],[Land\nResidual]]/Table_Data_Table_1[[#This Row],[Resid\nAcre]],\"\")","v":""},{"$f":"IFERROR(ROUND(Table_Data_Table_1[[#This Row],[Land\nResidual]]/Table_Data_Table_1[[#This Row],[Resid\nSq Ft]],2),\"\")","v":""},{"$f":"IF(Table_Data_Table_1[[#This Row],[Item ID]]=\"\",\"\",ROUND(DAYS360(Table_Data_Table_1[[#This Row],[Sale Date]],'Global Settings'!$H$5)/30,0))","v":""},{"$f":"IFERROR(IF(AND(Table_Data_Table_1[[#This Row],[Months To\nMid-Point]]<12.01,Table_Data_Table_1[[#This Row],[Months To\nMid-Point]]>-13),0,(Table_Data_Table_1[[#This Row],[Months To\nMid-Point]]*'Global Settings'!$H$6)),\"\")","v":""},{"$f":"IFERROR(Table_Data_Table_1[[#This Row],[Land\nResidual]]*(Table_Data_Table_1[[#This Row],[Time\nAdjust]]+1),\"\")","v":""},{"$f":"IFERROR(Table_Data_Table_1[[#This Row],[Adjusted\nSale Price]]/Table_Data_Table_1[[#This Row],[Resid\nAcre]],\"\")","v":""},{"$f":"IFERROR(ROUND(Table_Data_Table_1[[#This Row],[Adjusted\nSale Price]]/Table_Data_Table_1[[#This Row],[Resid\nSq Ft]],2),\"\")","v":""},{"$f":"IFERROR(IF(VLOOKUP(Table_Data_Table_1[[#This Row],[Item ID]],DataTable,11,FALSE)=0,\"N/A\",Table_Data_Table_1[[#This Row],[Adjusted\nSale Price]]/VLOOKUP(Table_Data_Table_1[[#This Row],[Item ID]],DataTable,11,FALSE)),\"\")","v":""},{"$f":"IF(IFERROR(VLOOKUP(Table_Data_Table_1[[#This Row],[Item ID]],DataTable,17,FALSE),\"\")=0,\"\",IFERROR(VLOOKUP(Table_Data_Table_1[[#This Row],[Item ID]],DataTable,17,FALSE),\"\"))","v":""}]
["",null,{"$f":"IF(Table_Data_Table_1[[#This Row],[Item ID]]=\"\",\"\",IFERROR(VLOOKUP(Table_Data_Table_1[[#This Row],[Item ID]],DataTable,16,FALSE),\"\"))","v":""},null,null,null,null,{"$f":"IF(Table_Data_Table_1[[#This Row],[Valuation Method]]=\"Vacant\",VLOOKUP(Table_Data_Table_1[[#This Row],[Item ID]],DataTable,6,FALSE)-VLOOKUP(Table_Data_Table_1[[#This Row],[Item ID]],DataTable,13,FALSE),IF(Table_Data_Table_1[[#This Row],[Valuation Method]]=\"Abstraction\",VLOOKUP(Table_Data_Table_1[[#This Row],[Item ID]],DataTable,6,FALSE)-VLOOKUP(Table_Data_Table_1[[#This Row],[Item ID]],DataTable,13,FALSE),IF(Table_Data_Table_1[[#This Row],[Valuation Method]]=\"Allocation\",VLOOKUP(Table_Data_Table_1[[#This Row],[Item ID]],DataTable,6,FALSE)*I408,\"\")))","v":""},{"$f":"IF(Table_Data_Table_1[[#This Row],[Valuation Method]]=\"Vacant\",\"N/A\",IF(Table_Data_Table_1[[#This Row],[Valuation Method]]=\"Abstraction\",Table_Data_Table_1[[#This Row],[Land\nResidual]]/VLOOKUP(Table_Data_Table_1[[#This Row],[Item ID]],DataTable,6,FALSE),IF(Table_Data_Table_1[[#This Row],[Valuation Method]]=\"Allocation\",'Global Settings'!$H$20,\"\")))","v":""},{"$f":"IFERROR(ROUND(Table_Data_Table_1[[#This Row],[Resid\nSq Ft]]/43560,3),\"\")","v":""},{"$f":"IF(Table_Data_Table_1[[#This Row],[Item ID]]=\"\",\"\",IFERROR(VLOOKUP(Table_Data_Table_1[[#This Row],[Item ID]],DataTable,10,FALSE)-VLOOKUP(Table_Data_Table_1[[#This Row],[Item ID]],DataTable,12,FALSE),\"\"))","v":""},{"$f":"IFERROR(Table_Data_Table_1[[#This Row],[Land\nResidual]]/Table_Data_Table_1[[#This Row],[Resid\nAcre]],\"\")","v":""},{"$f":"IFERROR(ROUND(Table_Data_Table_1[[#This Row],[Land\nResidual]]/Table_Data_Table_1[[#This Row],[Resid\nSq Ft]],2),\"\")","v":""},{"$f":"IF(Table_Data_Table_1[[#This Row],[Item ID]]=\"\",\"\",ROUND(DAYS360(Table_Data_Table_1[[#This Row],[Sale Date]],'Global Settings'!$H$5)/30,0))","v":""},{"$f":"IFERROR(IF(AND(Table_Data_Table_1[[#This Row],[Months To\nMid-Point]]<12.01,Table_Data_Table_1[[#This Row],[Months To\nMid-Point]]>-13),0,(Table_Data_Table_1[[#This Row],[Months To\nMid-Point]]*'Global Settings'!$H$6)),\"\")","v":""},{"$f":"IFERROR(Table_Data_Table_1[[#This Row],[Land\nResidual]]*(Table_Data_Table_1[[#This Row],[Time\nAdjust]]+1),\"\")","v":""},{"$f":"IFERROR(Table_Data_Table_1[[#This Row],[Adjusted\nSale Price]]/Table_Data_Table_1[[#This Row],[Resid\nAcre]],\"\")","v":""},{"$f":"IFERROR(ROUND(Table_Data_Table_1[[#This Row],[Adjusted\nSale Price]]/Table_Data_Table_1[[#This Row],[Resid\nSq Ft]],2),\"\")","v":""},{"$f":"IFERROR(IF(VLOOKUP(Table_Data_Table_1[[#This Row],[Item ID]],DataTable,11,FALSE)=0,\"N/A\",Table_Data_Table_1[[#This Row],[Adjusted\nSale Price]]/VLOOKUP(Table_Data_Table_1[[#This Row],[Item ID]],DataTable,11,FALSE)),\"\")","v":""},{"$f":"IF(IFERROR(VLOOKUP(Table_Data_Table_1[[#This Row],[Item ID]],DataTable,17,FALSE),\"\")=0,\"\",IFERROR(VLOOKUP(Table_Data_Table_1[[#This Row],[Item ID]],DataTable,17,FALSE),\"\"))","v":""}]
["",null,{"$f":"IF(Table_Data_Table_1[[#This Row],[Item ID]]=\"\",\"\",IFERROR(VLOOKUP(Table_Data_Table_1[[#This Row],[Item ID]],DataTable,16,FALSE),\"\"))","v":""},null,null,null,null,{"$f":"IF(Table_Data_Table_1[[#This Row],[Valuation Method]]=\"Vacant\",VLOOKUP(Table_Data_Table_1[[#This Row],[Item ID]],DataTable,6,FALSE)-VLOOKUP(Table_Data_Table_1[[#This Row],[Item ID]],DataTable,13,FALSE),IF(Table_Data_Table_1[[#This Row],[Valuation Method]]=\"Abstraction\",VLOOKUP(Table_Data_Table_1[[#This Row],[Item ID]],DataTable,6,FALSE)-VLOOKUP(Table_Data_Table_1[[#This Row],[Item ID]],DataTable,13,FALSE),IF(Table_Data_Table_1[[#This Row],[Valuation Method]]=\"Allocation\",VLOOKUP(Table_Data_Table_1[[#This Row],[Item ID]],DataTable,6,FALSE)*I409,\"\")))","v":""},{"$f":"IF(Table_Data_Table_1[[#This Row],[Valuation Method]]=\"Vacant\",\"N/A\",IF(Table_Data_Table_1[[#This Row],[Valuation Method]]=\"Abstraction\",Table_Data_Table_1[[#This Row],[Land\nResidual]]/VLOOKUP(Table_Data_Table_1[[#This Row],[Item ID]],DataTable,6,FALSE),IF(Table_Data_Table_1[[#This Row],[Valuation Method]]=\"Allocation\",'Global Settings'!$H$20,\"\")))","v":""},{"$f":"IFERROR(ROUND(Table_Data_Table_1[[#This Row],[Resid\nSq Ft]]/43560,3),\"\")","v":""},{"$f":"IF(Table_Data_Table_1[[#This Row],[Item ID]]=\"\",\"\",IFERROR(VLOOKUP(Table_Data_Table_1[[#This Row],[Item ID]],DataTable,10,FALSE)-VLOOKUP(Table_Data_Table_1[[#This Row],[Item ID]],DataTable,12,FALSE),\"\"))","v":""},{"$f":"IFERROR(Table_Data_Table_1[[#This Row],[Land\nResidual]]/Table_Data_Table_1[[#This Row],[Resid\nAcre]],\"\")","v":""},{"$f":"IFERROR(ROUND(Table_Data_Table_1[[#This Row],[Land\nResidual]]/Table_Data_Table_1[[#This Row],[Resid\nSq Ft]],2),\"\")","v":""},{"$f":"IF(Table_Data_Table_1[[#This Row],[Item ID]]=\"\",\"\",ROUND(DAYS360(Table_Data_Table_1[[#This Row],[Sale Date]],'Global Settings'!$H$5)/30,0))","v":""},{"$f":"IFERROR(IF(AND(Table_Data_Table_1[[#This Row],[Months To\nMid-Point]]<12.01,Table_Data_Table_1[[#This Row],[Months To\nMid-Point]]>-13),0,(Table_Data_Table_1[[#This Row],[Months To\nMid-Point]]*'Global Settings'!$H$6)),\"\")","v":""},{"$f":"IFERROR(Table_Data_Table_1[[#This Row],[Land\nResidual]]*(Table_Data_Table_1[[#This Row],[Time\nAdjust]]+1),\"\")","v":""},{"$f":"IFERROR(Table_Data_Table_1[[#This Row],[Adjusted\nSale Price]]/Table_Data_Table_1[[#This Row],[Resid\nAcre]],\"\")","v":""},{"$f":"IFERROR(ROUND(Table_Data_Table_1[[#This Row],[Adjusted\nSale Price]]/Table_Data_Table_1[[#This Row],[Resid\nSq Ft]],2),\"\")","v":""},{"$f":"IFERROR(IF(VLOOKUP(Table_Data_Table_1[[#This Row],[Item ID]],DataTable,11,FALSE)=0,\"N/A\",Table_Data_Table_1[[#This Row],[Adjusted\nSale Price]]/VLOOKUP(Table_Data_Table_1[[#This Row],[Item ID]],DataTable,11,FALSE)),\"\")","v":""},{"$f":"IF(IFERROR(VLOOKUP(Table_Data_Table_1[[#This Row],[Item ID]],DataTable,17,FALSE),\"\")=0,\"\",IFERROR(VLOOKUP(Table_Data_Table_1[[#This Row],[Item ID]],DataTable,17,FALSE),\"\"))","v":""}]
["",null,{"$f":"IF(Table_Data_Table_1[[#This Row],[Item ID]]=\"\",\"\",IFERROR(VLOOKUP(Table_Data_Table_1[[#This Row],[Item ID]],DataTable,16,FALSE),\"\"))","v":""},null,null,null,null,{"$f":"IF(Table_Data_Table_1[[#This Row],[Valuation Method]]=\"Vacant\",VLOOKUP(Table_Data_Table_1[[#This Row],[Item ID]],DataTable,6,FALSE)-VLOOKUP(Table_Data_Table_1[[#This Row],[Item ID]],DataTable,13,FALSE),IF(Table_Data_Table_1[[#This Row],[Valuation Method]]=\"Abstraction\",VLOOKUP(Table_Data_Table_1[[#This Row],[Item ID]],DataTable,6,FALSE)-VLOOKUP(Table_Data_Table_1[[#This Row],[Item ID]],DataTable,13,FALSE),IF(Table_Data_Table_1[[#This Row],[Valuation Method]]=\"Allocation\",VLOOKUP(Table_Data_Table_1[[#This Row],[Item ID]],DataTable,6,FALSE)*I410,\"\")))","v":""},{"$f":"IF(Table_Data_Table_1[[#This Row],[Valuation Method]]=\"Vacant\",\"N/A\",IF(Table_Data_Table_1[[#This Row],[Valuation Method]]=\"Abstraction\",Table_Data_Table_1[[#This Row],[Land\nResidual]]/VLOOKUP(Table_Data_Table_1[[#This Row],[Item ID]],DataTable,6,FALSE),IF(Table_Data_Table_1[[#This Row],[Valuation Method]]=\"Allocation\",'Global Settings'!$H$20,\"\")))","v":""},{"$f":"IFERROR(ROUND(Table_Data_Table_1[[#This Row],[Resid\nSq Ft]]/43560,3),\"\")","v":""},{"$f":"IF(Table_Data_Table_1[[#This Row],[Item ID]]=\"\",\"\",IFERROR(VLOOKUP(Table_Data_Table_1[[#This Row],[Item ID]],DataTable,10,FALSE)-VLOOKUP(Table_Data_Table_1[[#This Row],[Item ID]],DataTable,12,FALSE),\"\"))","v":""},{"$f":"IFERROR(Table_Data_Table_1[[#This Row],[Land\nResidual]]/Table_Data_Table_1[[#This Row],[Resid\nAcre]],\"\")","v":""},{"$f":"IFERROR(ROUND(Table_Data_Table_1[[#This Row],[Land\nResidual]]/Table_Data_Table_1[[#This Row],[Resid\nSq Ft]],2),\"\")","v":""},{"$f":"IF(Table_Data_Table_1[[#This Row],[Item ID]]=\"\",\"\",ROUND(DAYS360(Table_Data_Table_1[[#This Row],[Sale Date]],'Global Settings'!$H$5)/30,0))","v":""},{"$f":"IFERROR(IF(AND(Table_Data_Table_1[[#This Row],[Months To\nMid-Point]]<12.01,Table_Data_Table_1[[#This Row],[Months To\nMid-Point]]>-13),0,(Table_Data_Table_1[[#This Row],[Months To\nMid-Point]]*'Global Settings'!$H$6)),\"\")","v":""},{"$f":"IFERROR(Table_Data_Table_1[[#This Row],[Land\nResidual]]*(Table_Data_Table_1[[#This Row],[Time\nAdjust]]+1),\"\")","v":""},{"$f":"IFERROR(Table_Data_Table_1[[#This Row],[Adjusted\nSale Price]]/Table_Data_Table_1[[#This Row],[Resid\nAcre]],\"\")","v":""},{"$f":"IFERROR(ROUND(Table_Data_Table_1[[#This Row],[Adjusted\nSale Price]]/Table_Data_Table_1[[#This Row],[Resid\nSq Ft]],2),\"\")","v":""},{"$f":"IFERROR(IF(VLOOKUP(Table_Data_Table_1[[#This Row],[Item ID]],DataTable,11,FALSE)=0,\"N/A\",Table_Data_Table_1[[#This Row],[Adjusted\nSale Price]]/VLOOKUP(Table_Data_Table_1[[#This Row],[Item ID]],DataTable,11,FALSE)),\"\")","v":""},{"$f":"IF(IFERROR(VLOOKUP(Table_Data_Table_1[[#This Row],[Item ID]],DataTable,17,FALSE),\"\")=0,\"\",IFERROR(VLOOKUP(Table_Data_Table_1[[#This Row],[Item ID]],DataTable,17,FALSE),\"\"))","v":""}]
["",null,{"$f":"IF(Table_Data_Table_1[[#This Row],[Item ID]]=\"\",\"\",IFERROR(VLOOKUP(Table_Data_Table_1[[#This Row],[Item ID]],DataTable,16,FALSE),\"\"))","v":""},null,null,null,null,{"$f":"IF(Table_Data_Table_1[[#This Row],[Valuation Method]]=\"Vacant\",VLOOKUP(Table_Data_Table_1[[#This Row],[Item ID]],DataTable,6,FALSE)-VLOOKUP(Table_Data_Table_1[[#This Row],[Item ID]],DataTable,13,FALSE),IF(Table_Data_Table_1[[#This Row],[Valuation Method]]=\"Abstraction\",VLOOKUP(Table_Data_Table_1[[#This Row],[Item ID]],DataTable,6,FALSE)-VLOOKUP(Table_Data_Table_1[[#This Row],[Item ID]],DataTable,13,FALSE),IF(Table_Data_Table_1[[#This Row],[Valuation Method]]=\"Allocation\",VLOOKUP(Table_Data_Table_1[[#This Row],[Item ID]],DataTable,6,FALSE)*I411,\"\")))","v":""},{"$f":"IF(Table_Data_Table_1[[#This Row],[Valuation Method]]=\"Vacant\",\"N/A\",IF(Table_Data_Table_1[[#This Row],[Valuation Method]]=\"Abstraction\",Table_Data_Table_1[[#This Row],[Land\nResidual]]/VLOOKUP(Table_Data_Table_1[[#This Row],[Item ID]],DataTable,6,FALSE),IF(Table_Data_Table_1[[#This Row],[Valuation Method]]=\"Allocation\",'Global Settings'!$H$20,\"\")))","v":""},{"$f":"IFERROR(ROUND(Table_Data_Table_1[[#This Row],[Resid\nSq Ft]]/43560,3),\"\")","v":""},{"$f":"IF(Table_Data_Table_1[[#This Row],[Item ID]]=\"\",\"\",IFERROR(VLOOKUP(Table_Data_Table_1[[#This Row],[Item ID]],DataTable,10,FALSE)-VLOOKUP(Table_Data_Table_1[[#This Row],[Item ID]],DataTable,12,FALSE),\"\"))","v":""},{"$f":"IFERROR(Table_Data_Table_1[[#This Row],[Land\nResidual]]/Table_Data_Table_1[[#This Row],[Resid\nAcre]],\"\")","v":""},{"$f":"IFERROR(ROUND(Table_Data_Table_1[[#This Row],[Land\nResidual]]/Table_Data_Table_1[[#This Row],[Resid\nSq Ft]],2),\"\")","v":""},{"$f":"IF(Table_Data_Table_1[[#This Row],[Item ID]]=\"\",\"\",ROUND(DAYS360(Table_Data_Table_1[[#This Row],[Sale Date]],'Global Settings'!$H$5)/30,0))","v":""},{"$f":"IFERROR(IF(AND(Table_Data_Table_1[[#This Row],[Months To\nMid-Point]]<12.01,Table_Data_Table_1[[#This Row],[Months To\nMid-Point]]>-13),0,(Table_Data_Table_1[[#This Row],[Months To\nMid-Point]]*'Global Settings'!$H$6)),\"\")","v":""},{"$f":"IFERROR(Table_Data_Table_1[[#This Row],[Land\nResidual]]*(Table_Data_Table_1[[#This Row],[Time\nAdjust]]+1),\"\")","v":""},{"$f":"IFERROR(Table_Data_Table_1[[#This Row],[Adjusted\nSale Price]]/Table_Data_Table_1[[#This Row],[Resid\nAcre]],\"\")","v":""},{"$f":"IFERROR(ROUND(Table_Data_Table_1[[#This Row],[Adjusted\nSale Price]]/Table_Data_Table_1[[#This Row],[Resid\nSq Ft]],2),\"\")","v":""},{"$f":"IFERROR(IF(VLOOKUP(Table_Data_Table_1[[#This Row],[Item ID]],DataTable,11,FALSE)=0,\"N/A\",Table_Data_Table_1[[#This Row],[Adjusted\nSale Price]]/VLOOKUP(Table_Data_Table_1[[#This Row],[Item ID]],DataTable,11,FALSE)),\"\")","v":""},{"$f":"IF(IFERROR(VLOOKUP(Table_Data_Table_1[[#This Row],[Item ID]],DataTable,17,FALSE),\"\")=0,\"\",IFERROR(VLOOKUP(Table_Data_Table_1[[#This Row],[Item ID]],DataTable,17,FALSE),\"\"))","v":""}]
["",null,{"$f":"IF(Table_Data_Table_1[[#This Row],[Item ID]]=\"\",\"\",IFERROR(VLOOKUP(Table_Data_Table_1[[#This Row],[Item ID]],DataTable,16,FALSE),\"\"))","v":""},null,null,null,null,{"$f":"IF(Table_Data_Table_1[[#This Row],[Valuation Method]]=\"Vacant\",VLOOKUP(Table_Data_Table_1[[#This Row],[Item ID]],DataTable,6,FALSE)-VLOOKUP(Table_Data_Table_1[[#This Row],[Item ID]],DataTable,13,FALSE),IF(Table_Data_Table_1[[#This Row],[Valuation Method]]=\"Abstraction\",VLOOKUP(Table_Data_Table_1[[#This Row],[Item ID]],DataTable,6,FALSE)-VLOOKUP(Table_Data_Table_1[[#This Row],[Item ID]],DataTable,13,FALSE),IF(Table_Data_Table_1[[#This Row],[Valuation Method]]=\"Allocation\",VLOOKUP(Table_Data_Table_1[[#This Row],[Item ID]],DataTable,6,FALSE)*I412,\"\")))","v":""},{"$f":"IF(Table_Data_Table_1[[#This Row],[Valuation Method]]=\"Vacant\",\"N/A\",IF(Table_Data_Table_1[[#This Row],[Valuation Method]]=\"Abstraction\",Table_Data_Table_1[[#This Row],[Land\nResidual]]/VLOOKUP(Table_Data_Table_1[[#This Row],[Item ID]],DataTable,6,FALSE),IF(Table_Data_Table_1[[#This Row],[Valuation Method]]=\"Allocation\",'Global Settings'!$H$20,\"\")))","v":""},{"$f":"IFERROR(ROUND(Table_Data_Table_1[[#This Row],[Resid\nSq Ft]]/43560,3),\"\")","v":""},{"$f":"IF(Table_Data_Table_1[[#This Row],[Item ID]]=\"\",\"\",IFERROR(VLOOKUP(Table_Data_Table_1[[#This Row],[Item ID]],DataTable,10,FALSE)-VLOOKUP(Table_Data_Table_1[[#This Row],[Item ID]],DataTable,12,FALSE),\"\"))","v":""},{"$f":"IFERROR(Table_Data_Table_1[[#This Row],[Land\nResidual]]/Table_Data_Table_1[[#This Row],[Resid\nAcre]],\"\")","v":""},{"$f":"IFERROR(ROUND(Table_Data_Table_1[[#This Row],[Land\nResidual]]/Table_Data_Table_1[[#This Row],[Resid\nSq Ft]],2),\"\")","v":""},{"$f":"IF(Table_Data_Table_1[[#This Row],[Item ID]]=\"\",\"\",ROUND(DAYS360(Table_Data_Table_1[[#This Row],[Sale Date]],'Global Settings'!$H$5)/30,0))","v":""},{"$f":"IFERROR(IF(AND(Table_Data_Table_1[[#This Row],[Months To\nMid-Point]]<12.01,Table_Data_Table_1[[#This Row],[Months To\nMid-Point]]>-13),0,(Table_Data_Table_1[[#This Row],[Months To\nMid-Point]]*'Global Settings'!$H$6)),\"\")","v":""},{"$f":"IFERROR(Table_Data_Table_1[[#This Row],[Land\nResidual]]*(Table_Data_Table_1[[#This Row],[Time\nAdjust]]+1),\"\")","v":""},{"$f":"IFERROR(Table_Data_Table_1[[#This Row],[Adjusted\nSale Price]]/Table_Data_Table_1[[#This Row],[Resid\nAcre]],\"\")","v":""},{"$f":"IFERROR(ROUND(Table_Data_Table_1[[#This Row],[Adjusted\nSale Price]]/Table_Data_Table_1[[#This Row],[Resid\nSq Ft]],2),\"\")","v":""},{"$f":"IFERROR(IF(VLOOKUP(Table_Data_Table_1[[#This Row],[Item ID]],DataTable,11,FALSE)=0,\"N/A\",Table_Data_Table_1[[#This Row],[Adjusted\nSale Price]]/VLOOKUP(Table_Data_Table_1[[#This Row],[Item ID]],DataTable,11,FALSE)),\"\")","v":""},{"$f":"IF(IFERROR(VLOOKUP(Table_Data_Table_1[[#This Row],[Item ID]],DataTable,17,FALSE),\"\")=0,\"\",IFERROR(VLOOKUP(Table_Data_Table_1[[#This Row],[Item ID]],DataTable,17,FALSE),\"\"))","v":""}]
["",null,{"$f":"IF(Table_Data_Table_1[[#This Row],[Item ID]]=\"\",\"\",IFERROR(VLOOKUP(Table_Data_Table_1[[#This Row],[Item ID]],DataTable,16,FALSE),\"\"))","v":""},null,null,null,null,{"$f":"IF(Table_Data_Table_1[[#This Row],[Valuation Method]]=\"Vacant\",VLOOKUP(Table_Data_Table_1[[#This Row],[Item ID]],DataTable,6,FALSE)-VLOOKUP(Table_Data_Table_1[[#This Row],[Item ID]],DataTable,13,FALSE),IF(Table_Data_Table_1[[#This Row],[Valuation Method]]=\"Abstraction\",VLOOKUP(Table_Data_Table_1[[#This Row],[Item ID]],DataTable,6,FALSE)-VLOOKUP(Table_Data_Table_1[[#This Row],[Item ID]],DataTable,13,FALSE),IF(Table_Data_Table_1[[#This Row],[Valuation Method]]=\"Allocation\",VLOOKUP(Table_Data_Table_1[[#This Row],[Item ID]],DataTable,6,FALSE)*I413,\"\")))","v":""},{"$f":"IF(Table_Data_Table_1[[#This Row],[Valuation Method]]=\"Vacant\",\"N/A\",IF(Table_Data_Table_1[[#This Row],[Valuation Method]]=\"Abstraction\",Table_Data_Table_1[[#This Row],[Land\nResidual]]/VLOOKUP(Table_Data_Table_1[[#This Row],[Item ID]],DataTable,6,FALSE),IF(Table_Data_Table_1[[#This Row],[Valuation Method]]=\"Allocation\",'Global Settings'!$H$20,\"\")))","v":""},{"$f":"IFERROR(ROUND(Table_Data_Table_1[[#This Row],[Resid\nSq Ft]]/43560,3),\"\")","v":""},{"$f":"IF(Table_Data_Table_1[[#This Row],[Item ID]]=\"\",\"\",IFERROR(VLOOKUP(Table_Data_Table_1[[#This Row],[Item ID]],DataTable,10,FALSE)-VLOOKUP(Table_Data_Table_1[[#This Row],[Item ID]],DataTable,12,FALSE),\"\"))","v":""},{"$f":"IFERROR(Table_Data_Table_1[[#This Row],[Land\nResidual]]/Table_Data_Table_1[[#This Row],[Resid\nAcre]],\"\")","v":""},{"$f":"IFERROR(ROUND(Table_Data_Table_1[[#This Row],[Land\nResidual]]/Table_Data_Table_1[[#This Row],[Resid\nSq Ft]],2),\"\")","v":""},{"$f":"IF(Table_Data_Table_1[[#This Row],[Item ID]]=\"\",\"\",ROUND(DAYS360(Table_Data_Table_1[[#This Row],[Sale Date]],'Global Settings'!$H$5)/30,0))","v":""},{"$f":"IFERROR(IF(AND(Table_Data_Table_1[[#This Row],[Months To\nMid-Point]]<12.01,Table_Data_Table_1[[#This Row],[Months To\nMid-Point]]>-13),0,(Table_Data_Table_1[[#This Row],[Months To\nMid-Point]]*'Global Settings'!$H$6)),\"\")","v":""},{"$f":"IFERROR(Table_Data_Table_1[[#This Row],[Land\nResidual]]*(Table_Data_Table_1[[#This Row],[Time\nAdjust]]+1),\"\")","v":""},{"$f":"IFERROR(Table_Data_Table_1[[#This Row],[Adjusted\nSale Price]]/Table_Data_Table_1[[#This Row],[Resid\nAcre]],\"\")","v":""},{"$f":"IFERROR(ROUND(Table_Data_Table_1[[#This Row],[Adjusted\nSale Price]]/Table_Data_Table_1[[#This Row],[Resid\nSq Ft]],2),\"\")","v":""},{"$f":"IFERROR(IF(VLOOKUP(Table_Data_Table_1[[#This Row],[Item ID]],DataTable,11,FALSE)=0,\"N/A\",Table_Data_Table_1[[#This Row],[Adjusted\nSale Price]]/VLOOKUP(Table_Data_Table_1[[#This Row],[Item ID]],DataTable,11,FALSE)),\"\")","v":""},{"$f":"IF(IFERROR(VLOOKUP(Table_Data_Table_1[[#This Row],[Item ID]],DataTable,17,FALSE),\"\")=0,\"\",IFERROR(VLOOKUP(Table_Data_Table_1[[#This Row],[Item ID]],DataTable,17,FALSE),\"\"))","v":""}]
["",null,{"$f":"IF(Table_Data_Table_1[[#This Row],[Item ID]]=\"\",\"\",IFERROR(VLOOKUP(Table_Data_Table_1[[#This Row],[Item ID]],DataTable,16,FALSE),\"\"))","v":""},null,null,null,null,{"$f":"IF(Table_Data_Table_1[[#This Row],[Valuation Method]]=\"Vacant\",VLOOKUP(Table_Data_Table_1[[#This Row],[Item ID]],DataTable,6,FALSE)-VLOOKUP(Table_Data_Table_1[[#This Row],[Item ID]],DataTable,13,FALSE),IF(Table_Data_Table_1[[#This Row],[Valuation Method]]=\"Abstraction\",VLOOKUP(Table_Data_Table_1[[#This Row],[Item ID]],DataTable,6,FALSE)-VLOOKUP(Table_Data_Table_1[[#This Row],[Item ID]],DataTable,13,FALSE),IF(Table_Data_Table_1[[#This Row],[Valuation Method]]=\"Allocation\",VLOOKUP(Table_Data_Table_1[[#This Row],[Item ID]],DataTable,6,FALSE)*I414,\"\")))","v":""},{"$f":"IF(Table_Data_Table_1[[#This Row],[Valuation Method]]=\"Vacant\",\"N/A\",IF(Table_Data_Table_1[[#This Row],[Valuation Method]]=\"Abstraction\",Table_Data_Table_1[[#This Row],[Land\nResidual]]/VLOOKUP(Table_Data_Table_1[[#This Row],[Item ID]],DataTable,6,FALSE),IF(Table_Data_Table_1[[#This Row],[Valuation Method]]=\"Allocation\",'Global Settings'!$H$20,\"\")))","v":""},{"$f":"IFERROR(ROUND(Table_Data_Table_1[[#This Row],[Resid\nSq Ft]]/43560,3),\"\")","v":""},{"$f":"IF(Table_Data_Table_1[[#This Row],[Item ID]]=\"\",\"\",IFERROR(VLOOKUP(Table_Data_Table_1[[#This Row],[Item ID]],DataTable,10,FALSE)-VLOOKUP(Table_Data_Table_1[[#This Row],[Item ID]],DataTable,12,FALSE),\"\"))","v":""},{"$f":"IFERROR(Table_Data_Table_1[[#This Row],[Land\nResidual]]/Table_Data_Table_1[[#This Row],[Resid\nAcre]],\"\")","v":""},{"$f":"IFERROR(ROUND(Table_Data_Table_1[[#This Row],[Land\nResidual]]/Table_Data_Table_1[[#This Row],[Resid\nSq Ft]],2),\"\")","v":""},{"$f":"IF(Table_Data_Table_1[[#This Row],[Item ID]]=\"\",\"\",ROUND(DAYS360(Table_Data_Table_1[[#This Row],[Sale Date]],'Global Settings'!$H$5)/30,0))","v":""},{"$f":"IFERROR(IF(AND(Table_Data_Table_1[[#This Row],[Months To\nMid-Point]]<12.01,Table_Data_Table_1[[#This Row],[Months To\nMid-Point]]>-13),0,(Table_Data_Table_1[[#This Row],[Months To\nMid-Point]]*'Global Settings'!$H$6)),\"\")","v":""},{"$f":"IFERROR(Table_Data_Table_1[[#This Row],[Land\nResidual]]*(Table_Data_Table_1[[#This Row],[Time\nAdjust]]+1),\"\")","v":""},{"$f":"IFERROR(Table_Data_Table_1[[#This Row],[Adjusted\nSale Price]]/Table_Data_Table_1[[#This Row],[Resid\nAcre]],\"\")","v":""},{"$f":"IFERROR(ROUND(Table_Data_Table_1[[#This Row],[Adjusted\nSale Price]]/Table_Data_Table_1[[#This Row],[Resid\nSq Ft]],2),\"\")","v":""},{"$f":"IFERROR(IF(VLOOKUP(Table_Data_Table_1[[#This Row],[Item ID]],DataTable,11,FALSE)=0,\"N/A\",Table_Data_Table_1[[#This Row],[Adjusted\nSale Price]]/VLOOKUP(Table_Data_Table_1[[#This Row],[Item ID]],DataTable,11,FALSE)),\"\")","v":""},{"$f":"IF(IFERROR(VLOOKUP(Table_Data_Table_1[[#This Row],[Item ID]],DataTable,17,FALSE),\"\")=0,\"\",IFERROR(VLOOKUP(Table_Data_Table_1[[#This Row],[Item ID]],DataTable,17,FALSE),\"\"))","v":""}]
["",null,{"$f":"IF(Table_Data_Table_1[[#This Row],[Item ID]]=\"\",\"\",IFERROR(VLOOKUP(Table_Data_Table_1[[#This Row],[Item ID]],DataTable,16,FALSE),\"\"))","v":""},null,null,null,null,{"$f":"IF(Table_Data_Table_1[[#This Row],[Valuation Method]]=\"Vacant\",VLOOKUP(Table_Data_Table_1[[#This Row],[Item ID]],DataTable,6,FALSE)-VLOOKUP(Table_Data_Table_1[[#This Row],[Item ID]],DataTable,13,FALSE),IF(Table_Data_Table_1[[#This Row],[Valuation Method]]=\"Abstraction\",VLOOKUP(Table_Data_Table_1[[#This Row],[Item ID]],DataTable,6,FALSE)-VLOOKUP(Table_Data_Table_1[[#This Row],[Item ID]],DataTable,13,FALSE),IF(Table_Data_Table_1[[#This Row],[Valuation Method]]=\"Allocation\",VLOOKUP(Table_Data_Table_1[[#This Row],[Item ID]],DataTable,6,FALSE)*I415,\"\")))","v":""},{"$f":"IF(Table_Data_Table_1[[#This Row],[Valuation Method]]=\"Vacant\",\"N/A\",IF(Table_Data_Table_1[[#This Row],[Valuation Method]]=\"Abstraction\",Table_Data_Table_1[[#This Row],[Land\nResidual]]/VLOOKUP(Table_Data_Table_1[[#This Row],[Item ID]],DataTable,6,FALSE),IF(Table_Data_Table_1[[#This Row],[Valuation Method]]=\"Allocation\",'Global Settings'!$H$20,\"\")))","v":""},{"$f":"IFERROR(ROUND(Table_Data_Table_1[[#This Row],[Resid\nSq Ft]]/43560,3),\"\")","v":""},{"$f":"IF(Table_Data_Table_1[[#This Row],[Item ID]]=\"\",\"\",IFERROR(VLOOKUP(Table_Data_Table_1[[#This Row],[Item ID]],DataTable,10,FALSE)-VLOOKUP(Table_Data_Table_1[[#This Row],[Item ID]],DataTable,12,FALSE),\"\"))","v":""},{"$f":"IFERROR(Table_Data_Table_1[[#This Row],[Land\nResidual]]/Table_Data_Table_1[[#This Row],[Resid\nAcre]],\"\")","v":""},{"$f":"IFERROR(ROUND(Table_Data_Table_1[[#This Row],[Land\nResidual]]/Table_Data_Table_1[[#This Row],[Resid\nSq Ft]],2),\"\")","v":""},{"$f":"IF(Table_Data_Table_1[[#This Row],[Item ID]]=\"\",\"\",ROUND(DAYS360(Table_Data_Table_1[[#This Row],[Sale Date]],'Global Settings'!$H$5)/30,0))","v":""},{"$f":"IFERROR(IF(AND(Table_Data_Table_1[[#This Row],[Months To\nMid-Point]]<12.01,Table_Data_Table_1[[#This Row],[Months To\nMid-Point]]>-13),0,(Table_Data_Table_1[[#This Row],[Months To\nMid-Point]]*'Global Settings'!$H$6)),\"\")","v":""},{"$f":"IFERROR(Table_Data_Table_1[[#This Row],[Land\nResidual]]*(Table_Data_Table_1[[#This Row],[Time\nAdjust]]+1),\"\")","v":""},{"$f":"IFERROR(Table_Data_Table_1[[#This Row],[Adjusted\nSale Price]]/Table_Data_Table_1[[#This Row],[Resid\nAcre]],\"\")","v":""},{"$f":"IFERROR(ROUND(Table_Data_Table_1[[#This Row],[Adjusted\nSale Price]]/Table_Data_Table_1[[#This Row],[Resid\nSq Ft]],2),\"\")","v":""},{"$f":"IFERROR(IF(VLOOKUP(Table_Data_Table_1[[#This Row],[Item ID]],DataTable,11,FALSE)=0,\"N/A\",Table_Data_Table_1[[#This Row],[Adjusted\nSale Price]]/VLOOKUP(Table_Data_Table_1[[#This Row],[Item ID]],DataTable,11,FALSE)),\"\")","v":""},{"$f":"IF(IFERROR(VLOOKUP(Table_Data_Table_1[[#This Row],[Item ID]],DataTable,17,FALSE),\"\")=0,\"\",IFERROR(VLOOKUP(Table_Data_Table_1[[#This Row],[Item ID]],DataTable,17,FALSE),\"\"))","v":""}]
["",null,{"$f":"IF(Table_Data_Table_1[[#This Row],[Item ID]]=\"\",\"\",IFERROR(VLOOKUP(Table_Data_Table_1[[#This Row],[Item ID]],DataTable,16,FALSE),\"\"))","v":""},null,null,null,null,{"$f":"IF(Table_Data_Table_1[[#This Row],[Valuation Method]]=\"Vacant\",VLOOKUP(Table_Data_Table_1[[#This Row],[Item ID]],DataTable,6,FALSE)-VLOOKUP(Table_Data_Table_1[[#This Row],[Item ID]],DataTable,13,FALSE),IF(Table_Data_Table_1[[#This Row],[Valuation Method]]=\"Abstraction\",VLOOKUP(Table_Data_Table_1[[#This Row],[Item ID]],DataTable,6,FALSE)-VLOOKUP(Table_Data_Table_1[[#This Row],[Item ID]],DataTable,13,FALSE),IF(Table_Data_Table_1[[#This Row],[Valuation Method]]=\"Allocation\",VLOOKUP(Table_Data_Table_1[[#This Row],[Item ID]],DataTable,6,FALSE)*I416,\"\")))","v":""},{"$f":"IF(Table_Data_Table_1[[#This Row],[Valuation Method]]=\"Vacant\",\"N/A\",IF(Table_Data_Table_1[[#This Row],[Valuation Method]]=\"Abstraction\",Table_Data_Table_1[[#This Row],[Land\nResidual]]/VLOOKUP(Table_Data_Table_1[[#This Row],[Item ID]],DataTable,6,FALSE),IF(Table_Data_Table_1[[#This Row],[Valuation Method]]=\"Allocation\",'Global Settings'!$H$20,\"\")))","v":""},{"$f":"IFERROR(ROUND(Table_Data_Table_1[[#This Row],[Resid\nSq Ft]]/43560,3),\"\")","v":""},{"$f":"IF(Table_Data_Table_1[[#This Row],[Item ID]]=\"\",\"\",IFERROR(VLOOKUP(Table_Data_Table_1[[#This Row],[Item ID]],DataTable,10,FALSE)-VLOOKUP(Table_Data_Table_1[[#This Row],[Item ID]],DataTable,12,FALSE),\"\"))","v":""},{"$f":"IFERROR(Table_Data_Table_1[[#This Row],[Land\nResidual]]/Table_Data_Table_1[[#This Row],[Resid\nAcre]],\"\")","v":""},{"$f":"IFERROR(ROUND(Table_Data_Table_1[[#This Row],[Land\nResidual]]/Table_Data_Table_1[[#This Row],[Resid\nSq Ft]],2),\"\")","v":""},{"$f":"IF(Table_Data_Table_1[[#This Row],[Item ID]]=\"\",\"\",ROUND(DAYS360(Table_Data_Table_1[[#This Row],[Sale Date]],'Global Settings'!$H$5)/30,0))","v":""},{"$f":"IFERROR(IF(AND(Table_Data_Table_1[[#This Row],[Months To\nMid-Point]]<12.01,Table_Data_Table_1[[#This Row],[Months To\nMid-Point]]>-13),0,(Table_Data_Table_1[[#This Row],[Months To\nMid-Point]]*'Global Settings'!$H$6)),\"\")","v":""},{"$f":"IFERROR(Table_Data_Table_1[[#This Row],[Land\nResidual]]*(Table_Data_Table_1[[#This Row],[Time\nAdjust]]+1),\"\")","v":""},{"$f":"IFERROR(Table_Data_Table_1[[#This Row],[Adjusted\nSale Price]]/Table_Data_Table_1[[#This Row],[Resid\nAcre]],\"\")","v":""},{"$f":"IFERROR(ROUND(Table_Data_Table_1[[#This Row],[Adjusted\nSale Price]]/Table_Data_Table_1[[#This Row],[Resid\nSq Ft]],2),\"\")","v":""},{"$f":"IFERROR(IF(VLOOKUP(Table_Data_Table_1[[#This Row],[Item ID]],DataTable,11,FALSE)=0,\"N/A\",Table_Data_Table_1[[#This Row],[Adjusted\nSale Price]]/VLOOKUP(Table_Data_Table_1[[#This Row],[Item ID]],DataTable,11,FALSE)),\"\")","v":""},{"$f":"IF(IFERROR(VLOOKUP(Table_Data_Table_1[[#This Row],[Item ID]],DataTable,17,FALSE),\"\")=0,\"\",IFERROR(VLOOKUP(Table_Data_Table_1[[#This Row],[Item ID]],DataTable,17,FALSE),\"\"))","v":""}]
["",null,{"$f":"IF(Table_Data_Table_1[[#This Row],[Item ID]]=\"\",\"\",IFERROR(VLOOKUP(Table_Data_Table_1[[#This Row],[Item ID]],DataTable,16,FALSE),\"\"))","v":""},null,null,null,null,{"$f":"IF(Table_Data_Table_1[[#This Row],[Valuation Method]]=\"Vacant\",VLOOKUP(Table_Data_Table_1[[#This Row],[Item ID]],DataTable,6,FALSE)-VLOOKUP(Table_Data_Table_1[[#This Row],[Item ID]],DataTable,13,FALSE),IF(Table_Data_Table_1[[#This Row],[Valuation Method]]=\"Abstraction\",VLOOKUP(Table_Data_Table_1[[#This Row],[Item ID]],DataTable,6,FALSE)-VLOOKUP(Table_Data_Table_1[[#This Row],[Item ID]],DataTable,13,FALSE),IF(Table_Data_Table_1[[#This Row],[Valuation Method]]=\"Allocation\",VLOOKUP(Table_Data_Table_1[[#This Row],[Item ID]],DataTable,6,FALSE)*I417,\"\")))","v":""},{"$f":"IF(Table_Data_Table_1[[#This Row],[Valuation Method]]=\"Vacant\",\"N/A\",IF(Table_Data_Table_1[[#This Row],[Valuation Method]]=\"Abstraction\",Table_Data_Table_1[[#This Row],[Land\nResidual]]/VLOOKUP(Table_Data_Table_1[[#This Row],[Item ID]],DataTable,6,FALSE),IF(Table_Data_Table_1[[#This Row],[Valuation Method]]=\"Allocation\",'Global Settings'!$H$20,\"\")))","v":""},{"$f":"IFERROR(ROUND(Table_Data_Table_1[[#This Row],[Resid\nSq Ft]]/43560,3),\"\")","v":""},{"$f":"IF(Table_Data_Table_1[[#This Row],[Item ID]]=\"\",\"\",IFERROR(VLOOKUP(Table_Data_Table_1[[#This Row],[Item ID]],DataTable,10,FALSE)-VLOOKUP(Table_Data_Table_1[[#This Row],[Item ID]],DataTable,12,FALSE),\"\"))","v":""},{"$f":"IFERROR(Table_Data_Table_1[[#This Row],[Land\nResidual]]/Table_Data_Table_1[[#This Row],[Resid\nAcre]],\"\")","v":""},{"$f":"IFERROR(ROUND(Table_Data_Table_1[[#This Row],[Land\nResidual]]/Table_Data_Table_1[[#This Row],[Resid\nSq Ft]],2),\"\")","v":""},{"$f":"IF(Table_Data_Table_1[[#This Row],[Item ID]]=\"\",\"\",ROUND(DAYS360(Table_Data_Table_1[[#This Row],[Sale Date]],'Global Settings'!$H$5)/30,0))","v":""},{"$f":"IFERROR(IF(AND(Table_Data_Table_1[[#This Row],[Months To\nMid-Point]]<12.01,Table_Data_Table_1[[#This Row],[Months To\nMid-Point]]>-13),0,(Table_Data_Table_1[[#This Row],[Months To\nMid-Point]]*'Global Settings'!$H$6)),\"\")","v":""},{"$f":"IFERROR(Table_Data_Table_1[[#This Row],[Land\nResidual]]*(Table_Data_Table_1[[#This Row],[Time\nAdjust]]+1),\"\")","v":""},{"$f":"IFERROR(Table_Data_Table_1[[#This Row],[Adjusted\nSale Price]]/Table_Data_Table_1[[#This Row],[Resid\nAcre]],\"\")","v":""},{"$f":"IFERROR(ROUND(Table_Data_Table_1[[#This Row],[Adjusted\nSale Price]]/Table_Data_Table_1[[#This Row],[Resid\nSq Ft]],2),\"\")","v":""},{"$f":"IFERROR(IF(VLOOKUP(Table_Data_Table_1[[#This Row],[Item ID]],DataTable,11,FALSE)=0,\"N/A\",Table_Data_Table_1[[#This Row],[Adjusted\nSale Price]]/VLOOKUP(Table_Data_Table_1[[#This Row],[Item ID]],DataTable,11,FALSE)),\"\")","v":""},{"$f":"IF(IFERROR(VLOOKUP(Table_Data_Table_1[[#This Row],[Item ID]],DataTable,17,FALSE),\"\")=0,\"\",IFERROR(VLOOKUP(Table_Data_Table_1[[#This Row],[Item ID]],DataTable,17,FALSE),\"\"))","v":""}]
["",null,{"$f":"IF(Table_Data_Table_1[[#This Row],[Item ID]]=\"\",\"\",IFERROR(VLOOKUP(Table_Data_Table_1[[#This Row],[Item ID]],DataTable,16,FALSE),\"\"))","v":""},null,null,null,null,{"$f":"IF(Table_Data_Table_1[[#This Row],[Valuation Method]]=\"Vacant\",VLOOKUP(Table_Data_Table_1[[#This Row],[Item ID]],DataTable,6,FALSE)-VLOOKUP(Table_Data_Table_1[[#This Row],[Item ID]],DataTable,13,FALSE),IF(Table_Data_Table_1[[#This Row],[Valuation Method]]=\"Abstraction\",VLOOKUP(Table_Data_Table_1[[#This Row],[Item ID]],DataTable,6,FALSE)-VLOOKUP(Table_Data_Table_1[[#This Row],[Item ID]],DataTable,13,FALSE),IF(Table_Data_Table_1[[#This Row],[Valuation Method]]=\"Allocation\",VLOOKUP(Table_Data_Table_1[[#This Row],[Item ID]],DataTable,6,FALSE)*I418,\"\")))","v":""},{"$f":"IF(Table_Data_Table_1[[#This Row],[Valuation Method]]=\"Vacant\",\"N/A\",IF(Table_Data_Table_1[[#This Row],[Valuation Method]]=\"Abstraction\",Table_Data_Table_1[[#This Row],[Land\nResidual]]/VLOOKUP(Table_Data_Table_1[[#This Row],[Item ID]],DataTable,6,FALSE),IF(Table_Data_Table_1[[#This Row],[Valuation Method]]=\"Allocation\",'Global Settings'!$H$20,\"\")))","v":""},{"$f":"IFERROR(ROUND(Table_Data_Table_1[[#This Row],[Resid\nSq Ft]]/43560,3),\"\")","v":""},{"$f":"IF(Table_Data_Table_1[[#This Row],[Item ID]]=\"\",\"\",IFERROR(VLOOKUP(Table_Data_Table_1[[#This Row],[Item ID]],DataTable,10,FALSE)-VLOOKUP(Table_Data_Table_1[[#This Row],[Item ID]],DataTable,12,FALSE),\"\"))","v":""},{"$f":"IFERROR(Table_Data_Table_1[[#This Row],[Land\nResidual]]/Table_Data_Table_1[[#This Row],[Resid\nAcre]],\"\")","v":""},{"$f":"IFERROR(ROUND(Table_Data_Table_1[[#This Row],[Land\nResidual]]/Table_Data_Table_1[[#This Row],[Resid\nSq Ft]],2),\"\")","v":""},{"$f":"IF(Table_Data_Table_1[[#This Row],[Item ID]]=\"\",\"\",ROUND(DAYS360(Table_Data_Table_1[[#This Row],[Sale Date]],'Global Settings'!$H$5)/30,0))","v":""},{"$f":"IFERROR(IF(AND(Table_Data_Table_1[[#This Row],[Months To\nMid-Point]]<12.01,Table_Data_Table_1[[#This Row],[Months To\nMid-Point]]>-13),0,(Table_Data_Table_1[[#This Row],[Months To\nMid-Point]]*'Global Settings'!$H$6)),\"\")","v":""},{"$f":"IFERROR(Table_Data_Table_1[[#This Row],[Land\nResidual]]*(Table_Data_Table_1[[#This Row],[Time\nAdjust]]+1),\"\")","v":""},{"$f":"IFERROR(Table_Data_Table_1[[#This Row],[Adjusted\nSale Price]]/Table_Data_Table_1[[#This Row],[Resid\nAcre]],\"\")","v":""},{"$f":"IFERROR(ROUND(Table_Data_Table_1[[#This Row],[Adjusted\nSale Price]]/Table_Data_Table_1[[#This Row],[Resid\nSq Ft]],2),\"\")","v":""},{"$f":"IFERROR(IF(VLOOKUP(Table_Data_Table_1[[#This Row],[Item ID]],DataTable,11,FALSE)=0,\"N/A\",Table_Data_Table_1[[#This Row],[Adjusted\nSale Price]]/VLOOKUP(Table_Data_Table_1[[#This Row],[Item ID]],DataTable,11,FALSE)),\"\")","v":""},{"$f":"IF(IFERROR(VLOOKUP(Table_Data_Table_1[[#This Row],[Item ID]],DataTable,17,FALSE),\"\")=0,\"\",IFERROR(VLOOKUP(Table_Data_Table_1[[#This Row],[Item ID]],DataTable,17,FALSE),\"\"))","v":""}]
["",null,{"$f":"IF(Table_Data_Table_1[[#This Row],[Item ID]]=\"\",\"\",IFERROR(VLOOKUP(Table_Data_Table_1[[#This Row],[Item ID]],DataTable,16,FALSE),\"\"))","v":""},null,null,null,null,{"$f":"IF(Table_Data_Table_1[[#This Row],[Valuation Method]]=\"Vacant\",VLOOKUP(Table_Data_Table_1[[#This Row],[Item ID]],DataTable,6,FALSE)-VLOOKUP(Table_Data_Table_1[[#This Row],[Item ID]],DataTable,13,FALSE),IF(Table_Data_Table_1[[#This Row],[Valuation Method]]=\"Abstraction\",VLOOKUP(Table_Data_Table_1[[#This Row],[Item ID]],DataTable,6,FALSE)-VLOOKUP(Table_Data_Table_1[[#This Row],[Item ID]],DataTable,13,FALSE),IF(Table_Data_Table_1[[#This Row],[Valuation Method]]=\"Allocation\",VLOOKUP(Table_Data_Table_1[[#This Row],[Item ID]],DataTable,6,FALSE)*I419,\"\")))","v":""},{"$f":"IF(Table_Data_Table_1[[#This Row],[Valuation Method]]=\"Vacant\",\"N/A\",IF(Table_Data_Table_1[[#This Row],[Valuation Method]]=\"Abstraction\",Table_Data_Table_1[[#This Row],[Land\nResidual]]/VLOOKUP(Table_Data_Table_1[[#This Row],[Item ID]],DataTable,6,FALSE),IF(Table_Data_Table_1[[#This Row],[Valuation Method]]=\"Allocation\",'Global Settings'!$H$20,\"\")))","v":""},{"$f":"IFERROR(ROUND(Table_Data_Table_1[[#This Row],[Resid\nSq Ft]]/43560,3),\"\")","v":""},{"$f":"IF(Table_Data_Table_1[[#This Row],[Item ID]]=\"\",\"\",IFERROR(VLOOKUP(Table_Data_Table_1[[#This Row],[Item ID]],DataTable,10,FALSE)-VLOOKUP(Table_Data_Table_1[[#This Row],[Item ID]],DataTable,12,FALSE),\"\"))","v":""},{"$f":"IFERROR(Table_Data_Table_1[[#This Row],[Land\nResidual]]/Table_Data_Table_1[[#This Row],[Resid\nAcre]],\"\")","v":""},{"$f":"IFERROR(ROUND(Table_Data_Table_1[[#This Row],[Land\nResidual]]/Table_Data_Table_1[[#This Row],[Resid\nSq Ft]],2),\"\")","v":""},{"$f":"IF(Table_Data_Table_1[[#This Row],[Item ID]]=\"\",\"\",ROUND(DAYS360(Table_Data_Table_1[[#This Row],[Sale Date]],'Global Settings'!$H$5)/30,0))","v":""},{"$f":"IFERROR(IF(AND(Table_Data_Table_1[[#This Row],[Months To\nMid-Point]]<12.01,Table_Data_Table_1[[#This Row],[Months To\nMid-Point]]>-13),0,(Table_Data_Table_1[[#This Row],[Months To\nMid-Point]]*'Global Settings'!$H$6)),\"\")","v":""},{"$f":"IFERROR(Table_Data_Table_1[[#This Row],[Land\nResidual]]*(Table_Data_Table_1[[#This Row],[Time\nAdjust]]+1),\"\")","v":""},{"$f":"IFERROR(Table_Data_Table_1[[#This Row],[Adjusted\nSale Price]]/Table_Data_Table_1[[#This Row],[Resid\nAcre]],\"\")","v":""},{"$f":"IFERROR(ROUND(Table_Data_Table_1[[#This Row],[Adjusted\nSale Price]]/Table_Data_Table_1[[#This Row],[Resid\nSq Ft]],2),\"\")","v":""},{"$f":"IFERROR(IF(VLOOKUP(Table_Data_Table_1[[#This Row],[Item ID]],DataTable,11,FALSE)=0,\"N/A\",Table_Data_Table_1[[#This Row],[Adjusted\nSale Price]]/VLOOKUP(Table_Data_Table_1[[#This Row],[Item ID]],DataTable,11,FALSE)),\"\")","v":""},{"$f":"IF(IFERROR(VLOOKUP(Table_Data_Table_1[[#This Row],[Item ID]],DataTable,17,FALSE),\"\")=0,\"\",IFERROR(VLOOKUP(Table_Data_Table_1[[#This Row],[Item ID]],DataTable,17,FALSE),\"\"))","v":""}]
["",null,{"$f":"IF(Table_Data_Table_1[[#This Row],[Item ID]]=\"\",\"\",IFERROR(VLOOKUP(Table_Data_Table_1[[#This Row],[Item ID]],DataTable,16,FALSE),\"\"))","v":""},null,null,null,null,{"$f":"IF(Table_Data_Table_1[[#This Row],[Valuation Method]]=\"Vacant\",VLOOKUP(Table_Data_Table_1[[#This Row],[Item ID]],DataTable,6,FALSE)-VLOOKUP(Table_Data_Table_1[[#This Row],[Item ID]],DataTable,13,FALSE),IF(Table_Data_Table_1[[#This Row],[Valuation Method]]=\"Abstraction\",VLOOKUP(Table_Data_Table_1[[#This Row],[Item ID]],DataTable,6,FALSE)-VLOOKUP(Table_Data_Table_1[[#This Row],[Item ID]],DataTable,13,FALSE),IF(Table_Data_Table_1[[#This Row],[Valuation Method]]=\"Allocation\",VLOOKUP(Table_Data_Table_1[[#This Row],[Item ID]],DataTable,6,FALSE)*I420,\"\")))","v":""},{"$f":"IF(Table_Data_Table_1[[#This Row],[Valuation Method]]=\"Vacant\",\"N/A\",IF(Table_Data_Table_1[[#This Row],[Valuation Method]]=\"Abstraction\",Table_Data_Table_1[[#This Row],[Land\nResidual]]/VLOOKUP(Table_Data_Table_1[[#This Row],[Item ID]],DataTable,6,FALSE),IF(Table_Data_Table_1[[#This Row],[Valuation Method]]=\"Allocation\",'Global Settings'!$H$20,\"\")))","v":""},{"$f":"IFERROR(ROUND(Table_Data_Table_1[[#This Row],[Resid\nSq Ft]]/43560,3),\"\")","v":""},{"$f":"IF(Table_Data_Table_1[[#This Row],[Item ID]]=\"\",\"\",IFERROR(VLOOKUP(Table_Data_Table_1[[#This Row],[Item ID]],DataTable,10,FALSE)-VLOOKUP(Table_Data_Table_1[[#This Row],[Item ID]],DataTable,12,FALSE),\"\"))","v":""},{"$f":"IFERROR(Table_Data_Table_1[[#This Row],[Land\nResidual]]/Table_Data_Table_1[[#This Row],[Resid\nAcre]],\"\")","v":""},{"$f":"IFERROR(ROUND(Table_Data_Table_1[[#This Row],[Land\nResidual]]/Table_Data_Table_1[[#This Row],[Resid\nSq Ft]],2),\"\")","v":""},{"$f":"IF(Table_Data_Table_1[[#This Row],[Item ID]]=\"\",\"\",ROUND(DAYS360(Table_Data_Table_1[[#This Row],[Sale Date]],'Global Settings'!$H$5)/30,0))","v":""},{"$f":"IFERROR(IF(AND(Table_Data_Table_1[[#This Row],[Months To\nMid-Point]]<12.01,Table_Data_Table_1[[#This Row],[Months To\nMid-Point]]>-13),0,(Table_Data_Table_1[[#This Row],[Months To\nMid-Point]]*'Global Settings'!$H$6)),\"\")","v":""},{"$f":"IFERROR(Table_Data_Table_1[[#This Row],[Land\nResidual]]*(Table_Data_Table_1[[#This Row],[Time\nAdjust]]+1),\"\")","v":""},{"$f":"IFERROR(Table_Data_Table_1[[#This Row],[Adjusted\nSale Price]]/Table_Data_Table_1[[#This Row],[Resid\nAcre]],\"\")","v":""},{"$f":"IFERROR(ROUND(Table_Data_Table_1[[#This Row],[Adjusted\nSale Price]]/Table_Data_Table_1[[#This Row],[Resid\nSq Ft]],2),\"\")","v":""},{"$f":"IFERROR(IF(VLOOKUP(Table_Data_Table_1[[#This Row],[Item ID]],DataTable,11,FALSE)=0,\"N/A\",Table_Data_Table_1[[#This Row],[Adjusted\nSale Price]]/VLOOKUP(Table_Data_Table_1[[#This Row],[Item ID]],DataTable,11,FALSE)),\"\")","v":""},{"$f":"IF(IFERROR(VLOOKUP(Table_Data_Table_1[[#This Row],[Item ID]],DataTable,17,FALSE),\"\")=0,\"\",IFERROR(VLOOKUP(Table_Data_Table_1[[#This Row],[Item ID]],DataTable,17,FALSE),\"\"))","v":""}]
["",null,{"$f":"IF(Table_Data_Table_1[[#This Row],[Item ID]]=\"\",\"\",IFERROR(VLOOKUP(Table_Data_Table_1[[#This Row],[Item ID]],DataTable,16,FALSE),\"\"))","v":""},null,null,null,null,{"$f":"IF(Table_Data_Table_1[[#This Row],[Valuation Method]]=\"Vacant\",VLOOKUP(Table_Data_Table_1[[#This Row],[Item ID]],DataTable,6,FALSE)-VLOOKUP(Table_Data_Table_1[[#This Row],[Item ID]],DataTable,13,FALSE),IF(Table_Data_Table_1[[#This Row],[Valuation Method]]=\"Abstraction\",VLOOKUP(Table_Data_Table_1[[#This Row],[Item ID]],DataTable,6,FALSE)-VLOOKUP(Table_Data_Table_1[[#This Row],[Item ID]],DataTable,13,FALSE),IF(Table_Data_Table_1[[#This Row],[Valuation Method]]=\"Allocation\",VLOOKUP(Table_Data_Table_1[[#This Row],[Item ID]],DataTable,6,FALSE)*I421,\"\")))","v":""},{"$f":"IF(Table_Data_Table_1[[#This Row],[Valuation Method]]=\"Vacant\",\"N/A\",IF(Table_Data_Table_1[[#This Row],[Valuation Method]]=\"Abstraction\",Table_Data_Table_1[[#This Row],[Land\nResidual]]/VLOOKUP(Table_Data_Table_1[[#This Row],[Item ID]],DataTable,6,FALSE),IF(Table_Data_Table_1[[#This Row],[Valuation Method]]=\"Allocation\",'Global Settings'!$H$20,\"\")))","v":""},{"$f":"IFERROR(ROUND(Table_Data_Table_1[[#This Row],[Resid\nSq Ft]]/43560,3),\"\")","v":""},{"$f":"IF(Table_Data_Table_1[[#This Row],[Item ID]]=\"\",\"\",IFERROR(VLOOKUP(Table_Data_Table_1[[#This Row],[Item ID]],DataTable,10,FALSE)-VLOOKUP(Table_Data_Table_1[[#This Row],[Item ID]],DataTable,12,FALSE),\"\"))","v":""},{"$f":"IFERROR(Table_Data_Table_1[[#This Row],[Land\nResidual]]/Table_Data_Table_1[[#This Row],[Resid\nAcre]],\"\")","v":""},{"$f":"IFERROR(ROUND(Table_Data_Table_1[[#This Row],[Land\nResidual]]/Table_Data_Table_1[[#This Row],[Resid\nSq Ft]],2),\"\")","v":""},{"$f":"IF(Table_Data_Table_1[[#This Row],[Item ID]]=\"\",\"\",ROUND(DAYS360(Table_Data_Table_1[[#This Row],[Sale Date]],'Global Settings'!$H$5)/30,0))","v":""},{"$f":"IFERROR(IF(AND(Table_Data_Table_1[[#This Row],[Months To\nMid-Point]]<12.01,Table_Data_Table_1[[#This Row],[Months To\nMid-Point]]>-13),0,(Table_Data_Table_1[[#This Row],[Months To\nMid-Point]]*'Global Settings'!$H$6)),\"\")","v":""},{"$f":"IFERROR(Table_Data_Table_1[[#This Row],[Land\nResidual]]*(Table_Data_Table_1[[#This Row],[Time\nAdjust]]+1),\"\")","v":""},{"$f":"IFERROR(Table_Data_Table_1[[#This Row],[Adjusted\nSale Price]]/Table_Data_Table_1[[#This Row],[Resid\nAcre]],\"\")","v":""},{"$f":"IFERROR(ROUND(Table_Data_Table_1[[#This Row],[Adjusted\nSale Price]]/Table_Data_Table_1[[#This Row],[Resid\nSq Ft]],2),\"\")","v":""},{"$f":"IFERROR(IF(VLOOKUP(Table_Data_Table_1[[#This Row],[Item ID]],DataTable,11,FALSE)=0,\"N/A\",Table_Data_Table_1[[#This Row],[Adjusted\nSale Price]]/VLOOKUP(Table_Data_Table_1[[#This Row],[Item ID]],DataTable,11,FALSE)),\"\")","v":""},{"$f":"IF(IFERROR(VLOOKUP(Table_Data_Table_1[[#This Row],[Item ID]],DataTable,17,FALSE),\"\")=0,\"\",IFERROR(VLOOKUP(Table_Data_Table_1[[#This Row],[Item ID]],DataTable,17,FALSE),\"\"))","v":""}]
["",null,{"$f":"IF(Table_Data_Table_1[[#This Row],[Item ID]]=\"\",\"\",IFERROR(VLOOKUP(Table_Data_Table_1[[#This Row],[Item ID]],DataTable,16,FALSE),\"\"))","v":""},null,null,null,null,{"$f":"IF(Table_Data_Table_1[[#This Row],[Valuation Method]]=\"Vacant\",VLOOKUP(Table_Data_Table_1[[#This Row],[Item ID]],DataTable,6,FALSE)-VLOOKUP(Table_Data_Table_1[[#This Row],[Item ID]],DataTable,13,FALSE),IF(Table_Data_Table_1[[#This Row],[Valuation Method]]=\"Abstraction\",VLOOKUP(Table_Data_Table_1[[#This Row],[Item ID]],DataTable,6,FALSE)-VLOOKUP(Table_Data_Table_1[[#This Row],[Item ID]],DataTable,13,FALSE),IF(Table_Data_Table_1[[#This Row],[Valuation Method]]=\"Allocation\",VLOOKUP(Table_Data_Table_1[[#This Row],[Item ID]],DataTable,6,FALSE)*I422,\"\")))","v":""},{"$f":"IF(Table_Data_Table_1[[#This Row],[Valuation Method]]=\"Vacant\",\"N/A\",IF(Table_Data_Table_1[[#This Row],[Valuation Method]]=\"Abstraction\",Table_Data_Table_1[[#This Row],[Land\nResidual]]/VLOOKUP(Table_Data_Table_1[[#This Row],[Item ID]],DataTable,6,FALSE),IF(Table_Data_Table_1[[#This Row],[Valuation Method]]=\"Allocation\",'Global Settings'!$H$20,\"\")))","v":""},{"$f":"IFERROR(ROUND(Table_Data_Table_1[[#This Row],[Resid\nSq Ft]]/43560,3),\"\")","v":""},{"$f":"IF(Table_Data_Table_1[[#This Row],[Item ID]]=\"\",\"\",IFERROR(VLOOKUP(Table_Data_Table_1[[#This Row],[Item ID]],DataTable,10,FALSE)-VLOOKUP(Table_Data_Table_1[[#This Row],[Item ID]],DataTable,12,FALSE),\"\"))","v":""},{"$f":"IFERROR(Table_Data_Table_1[[#This Row],[Land\nResidual]]/Table_Data_Table_1[[#This Row],[Resid\nAcre]],\"\")","v":""},{"$f":"IFERROR(ROUND(Table_Data_Table_1[[#This Row],[Land\nResidual]]/Table_Data_Table_1[[#This Row],[Resid\nSq Ft]],2),\"\")","v":""},{"$f":"IF(Table_Data_Table_1[[#This Row],[Item ID]]=\"\",\"\",ROUND(DAYS360(Table_Data_Table_1[[#This Row],[Sale Date]],'Global Settings'!$H$5)/30,0))","v":""},{"$f":"IFERROR(IF(AND(Table_Data_Table_1[[#This Row],[Months To\nMid-Point]]<12.01,Table_Data_Table_1[[#This Row],[Months To\nMid-Point]]>-13),0,(Table_Data_Table_1[[#This Row],[Months To\nMid-Point]]*'Global Settings'!$H$6)),\"\")","v":""},{"$f":"IFERROR(Table_Data_Table_1[[#This Row],[Land\nResidual]]*(Table_Data_Table_1[[#This Row],[Time\nAdjust]]+1),\"\")","v":""},{"$f":"IFERROR(Table_Data_Table_1[[#This Row],[Adjusted\nSale Price]]/Table_Data_Table_1[[#This Row],[Resid\nAcre]],\"\")","v":""},{"$f":"IFERROR(ROUND(Table_Data_Table_1[[#This Row],[Adjusted\nSale Price]]/Table_Data_Table_1[[#This Row],[Resid\nSq Ft]],2),\"\")","v":""},{"$f":"IFERROR(IF(VLOOKUP(Table_Data_Table_1[[#This Row],[Item ID]],DataTable,11,FALSE)=0,\"N/A\",Table_Data_Table_1[[#This Row],[Adjusted\nSale Price]]/VLOOKUP(Table_Data_Table_1[[#This Row],[Item ID]],DataTable,11,FALSE)),\"\")","v":""},{"$f":"IF(IFERROR(VLOOKUP(Table_Data_Table_1[[#This Row],[Item ID]],DataTable,17,FALSE),\"\")=0,\"\",IFERROR(VLOOKUP(Table_Data_Table_1[[#This Row],[Item ID]],DataTable,17,FALSE),\"\"))","v":""}]
["",null,{"$f":"IF(Table_Data_Table_1[[#This Row],[Item ID]]=\"\",\"\",IFERROR(VLOOKUP(Table_Data_Table_1[[#This Row],[Item ID]],DataTable,16,FALSE),\"\"))","v":""},null,null,null,null,{"$f":"IF(Table_Data_Table_1[[#This Row],[Valuation Method]]=\"Vacant\",VLOOKUP(Table_Data_Table_1[[#This Row],[Item ID]],DataTable,6,FALSE)-VLOOKUP(Table_Data_Table_1[[#This Row],[Item ID]],DataTable,13,FALSE),IF(Table_Data_Table_1[[#This Row],[Valuation Method]]=\"Abstraction\",VLOOKUP(Table_Data_Table_1[[#This Row],[Item ID]],DataTable,6,FALSE)-VLOOKUP(Table_Data_Table_1[[#This Row],[Item ID]],DataTable,13,FALSE),IF(Table_Data_Table_1[[#This Row],[Valuation Method]]=\"Allocation\",VLOOKUP(Table_Data_Table_1[[#This Row],[Item ID]],DataTable,6,FALSE)*I423,\"\")))","v":""},{"$f":"IF(Table_Data_Table_1[[#This Row],[Valuation Method]]=\"Vacant\",\"N/A\",IF(Table_Data_Table_1[[#This Row],[Valuation Method]]=\"Abstraction\",Table_Data_Table_1[[#This Row],[Land\nResidual]]/VLOOKUP(Table_Data_Table_1[[#This Row],[Item ID]],DataTable,6,FALSE),IF(Table_Data_Table_1[[#This Row],[Valuation Method]]=\"Allocation\",'Global Settings'!$H$20,\"\")))","v":""},{"$f":"IFERROR(ROUND(Table_Data_Table_1[[#This Row],[Resid\nSq Ft]]/43560,3),\"\")","v":""},{"$f":"IF(Table_Data_Table_1[[#This Row],[Item ID]]=\"\",\"\",IFERROR(VLOOKUP(Table_Data_Table_1[[#This Row],[Item ID]],DataTable,10,FALSE)-VLOOKUP(Table_Data_Table_1[[#This Row],[Item ID]],DataTable,12,FALSE),\"\"))","v":""},{"$f":"IFERROR(Table_Data_Table_1[[#This Row],[Land\nResidual]]/Table_Data_Table_1[[#This Row],[Resid\nAcre]],\"\")","v":""},{"$f":"IFERROR(ROUND(Table_Data_Table_1[[#This Row],[Land\nResidual]]/Table_Data_Table_1[[#This Row],[Resid\nSq Ft]],2),\"\")","v":""},{"$f":"IF(Table_Data_Table_1[[#This Row],[Item ID]]=\"\",\"\",ROUND(DAYS360(Table_Data_Table_1[[#This Row],[Sale Date]],'Global Settings'!$H$5)/30,0))","v":""},{"$f":"IFERROR(IF(AND(Table_Data_Table_1[[#This Row],[Months To\nMid-Point]]<12.01,Table_Data_Table_1[[#This Row],[Months To\nMid-Point]]>-13),0,(Table_Data_Table_1[[#This Row],[Months To\nMid-Point]]*'Global Settings'!$H$6)),\"\")","v":""},{"$f":"IFERROR(Table_Data_Table_1[[#This Row],[Land\nResidual]]*(Table_Data_Table_1[[#This Row],[Time\nAdjust]]+1),\"\")","v":""},{"$f":"IFERROR(Table_Data_Table_1[[#This Row],[Adjusted\nSale Price]]/Table_Data_Table_1[[#This Row],[Resid\nAcre]],\"\")","v":""},{"$f":"IFERROR(ROUND(Table_Data_Table_1[[#This Row],[Adjusted\nSale Price]]/Table_Data_Table_1[[#This Row],[Resid\nSq Ft]],2),\"\")","v":""},{"$f":"IFERROR(IF(VLOOKUP(Table_Data_Table_1[[#This Row],[Item ID]],DataTable,11,FALSE)=0,\"N/A\",Table_Data_Table_1[[#This Row],[Adjusted\nSale Price]]/VLOOKUP(Table_Data_Table_1[[#This Row],[Item ID]],DataTable,11,FALSE)),\"\")","v":""},{"$f":"IF(IFERROR(VLOOKUP(Table_Data_Table_1[[#This Row],[Item ID]],DataTable,17,FALSE),\"\")=0,\"\",IFERROR(VLOOKUP(Table_Data_Table_1[[#This Row],[Item ID]],DataTable,17,FALSE),\"\"))","v":""}]
["",null,{"$f":"IF(Table_Data_Table_1[[#This Row],[Item ID]]=\"\",\"\",IFERROR(VLOOKUP(Table_Data_Table_1[[#This Row],[Item ID]],DataTable,16,FALSE),\"\"))","v":""},null,null,null,null,{"$f":"IF(Table_Data_Table_1[[#This Row],[Valuation Method]]=\"Vacant\",VLOOKUP(Table_Data_Table_1[[#This Row],[Item ID]],DataTable,6,FALSE)-VLOOKUP(Table_Data_Table_1[[#This Row],[Item ID]],DataTable,13,FALSE),IF(Table_Data_Table_1[[#This Row],[Valuation Method]]=\"Abstraction\",VLOOKUP(Table_Data_Table_1[[#This Row],[Item ID]],DataTable,6,FALSE)-VLOOKUP(Table_Data_Table_1[[#This Row],[Item ID]],DataTable,13,FALSE),IF(Table_Data_Table_1[[#This Row],[Valuation Method]]=\"Allocation\",VLOOKUP(Table_Data_Table_1[[#This Row],[Item ID]],DataTable,6,FALSE)*I424,\"\")))","v":""},{"$f":"IF(Table_Data_Table_1[[#This Row],[Valuation Method]]=\"Vacant\",\"N/A\",IF(Table_Data_Table_1[[#This Row],[Valuation Method]]=\"Abstraction\",Table_Data_Table_1[[#This Row],[Land\nResidual]]/VLOOKUP(Table_Data_Table_1[[#This Row],[Item ID]],DataTable,6,FALSE),IF(Table_Data_Table_1[[#This Row],[Valuation Method]]=\"Allocation\",'Global Settings'!$H$20,\"\")))","v":""},{"$f":"IFERROR(ROUND(Table_Data_Table_1[[#This Row],[Resid\nSq Ft]]/43560,3),\"\")","v":""},{"$f":"IF(Table_Data_Table_1[[#This Row],[Item ID]]=\"\",\"\",IFERROR(VLOOKUP(Table_Data_Table_1[[#This Row],[Item ID]],DataTable,10,FALSE)-VLOOKUP(Table_Data_Table_1[[#This Row],[Item ID]],DataTable,12,FALSE),\"\"))","v":""},{"$f":"IFERROR(Table_Data_Table_1[[#This Row],[Land\nResidual]]/Table_Data_Table_1[[#This Row],[Resid\nAcre]],\"\")","v":""},{"$f":"IFERROR(ROUND(Table_Data_Table_1[[#This Row],[Land\nResidual]]/Table_Data_Table_1[[#This Row],[Resid\nSq Ft]],2),\"\")","v":""},{"$f":"IF(Table_Data_Table_1[[#This Row],[Item ID]]=\"\",\"\",ROUND(DAYS360(Table_Data_Table_1[[#This Row],[Sale Date]],'Global Settings'!$H$5)/30,0))","v":""},{"$f":"IFERROR(IF(AND(Table_Data_Table_1[[#This Row],[Months To\nMid-Point]]<12.01,Table_Data_Table_1[[#This Row],[Months To\nMid-Point]]>-13),0,(Table_Data_Table_1[[#This Row],[Months To\nMid-Point]]*'Global Settings'!$H$6)),\"\")","v":""},{"$f":"IFERROR(Table_Data_Table_1[[#This Row],[Land\nResidual]]*(Table_Data_Table_1[[#This Row],[Time\nAdjust]]+1),\"\")","v":""},{"$f":"IFERROR(Table_Data_Table_1[[#This Row],[Adjusted\nSale Price]]/Table_Data_Table_1[[#This Row],[Resid\nAcre]],\"\")","v":""},{"$f":"IFERROR(ROUND(Table_Data_Table_1[[#This Row],[Adjusted\nSale Price]]/Table_Data_Table_1[[#This Row],[Resid\nSq Ft]],2),\"\")","v":""},{"$f":"IFERROR(IF(VLOOKUP(Table_Data_Table_1[[#This Row],[Item ID]],DataTable,11,FALSE)=0,\"N/A\",Table_Data_Table_1[[#This Row],[Adjusted\nSale Price]]/VLOOKUP(Table_Data_Table_1[[#This Row],[Item ID]],DataTable,11,FALSE)),\"\")","v":""},{"$f":"IF(IFERROR(VLOOKUP(Table_Data_Table_1[[#This Row],[Item ID]],DataTable,17,FALSE),\"\")=0,\"\",IFERROR(VLOOKUP(Table_Data_Table_1[[#This Row],[Item ID]],DataTable,17,FALSE),\"\"))","v":""}]
["",null,{"$f":"IF(Table_Data_Table_1[[#This Row],[Item ID]]=\"\",\"\",IFERROR(VLOOKUP(Table_Data_Table_1[[#This Row],[Item ID]],DataTable,16,FALSE),\"\"))","v":""},null,null,null,null,{"$f":"IF(Table_Data_Table_1[[#This Row],[Valuation Method]]=\"Vacant\",VLOOKUP(Table_Data_Table_1[[#This Row],[Item ID]],DataTable,6,FALSE)-VLOOKUP(Table_Data_Table_1[[#This Row],[Item ID]],DataTable,13,FALSE),IF(Table_Data_Table_1[[#This Row],[Valuation Method]]=\"Abstraction\",VLOOKUP(Table_Data_Table_1[[#This Row],[Item ID]],DataTable,6,FALSE)-VLOOKUP(Table_Data_Table_1[[#This Row],[Item ID]],DataTable,13,FALSE),IF(Table_Data_Table_1[[#This Row],[Valuation Method]]=\"Allocation\",VLOOKUP(Table_Data_Table_1[[#This Row],[Item ID]],DataTable,6,FALSE)*I425,\"\")))","v":""},{"$f":"IF(Table_Data_Table_1[[#This Row],[Valuation Method]]=\"Vacant\",\"N/A\",IF(Table_Data_Table_1[[#This Row],[Valuation Method]]=\"Abstraction\",Table_Data_Table_1[[#This Row],[Land\nResidual]]/VLOOKUP(Table_Data_Table_1[[#This Row],[Item ID]],DataTable,6,FALSE),IF(Table_Data_Table_1[[#This Row],[Valuation Method]]=\"Allocation\",'Global Settings'!$H$20,\"\")))","v":""},{"$f":"IFERROR(ROUND(Table_Data_Table_1[[#This Row],[Resid\nSq Ft]]/43560,3),\"\")","v":""},{"$f":"IF(Table_Data_Table_1[[#This Row],[Item ID]]=\"\",\"\",IFERROR(VLOOKUP(Table_Data_Table_1[[#This Row],[Item ID]],DataTable,10,FALSE)-VLOOKUP(Table_Data_Table_1[[#This Row],[Item ID]],DataTable,12,FALSE),\"\"))","v":""},{"$f":"IFERROR(Table_Data_Table_1[[#This Row],[Land\nResidual]]/Table_Data_Table_1[[#This Row],[Resid\nAcre]],\"\")","v":""},{"$f":"IFERROR(ROUND(Table_Data_Table_1[[#This Row],[Land\nResidual]]/Table_Data_Table_1[[#This Row],[Resid\nSq Ft]],2),\"\")","v":""},{"$f":"IF(Table_Data_Table_1[[#This Row],[Item ID]]=\"\",\"\",ROUND(DAYS360(Table_Data_Table_1[[#This Row],[Sale Date]],'Global Settings'!$H$5)/30,0))","v":""},{"$f":"IFERROR(IF(AND(Table_Data_Table_1[[#This Row],[Months To\nMid-Point]]<12.01,Table_Data_Table_1[[#This Row],[Months To\nMid-Point]]>-13),0,(Table_Data_Table_1[[#This Row],[Months To\nMid-Point]]*'Global Settings'!$H$6)),\"\")","v":""},{"$f":"IFERROR(Table_Data_Table_1[[#This Row],[Land\nResidual]]*(Table_Data_Table_1[[#This Row],[Time\nAdjust]]+1),\"\")","v":""},{"$f":"IFERROR(Table_Data_Table_1[[#This Row],[Adjusted\nSale Price]]/Table_Data_Table_1[[#This Row],[Resid\nAcre]],\"\")","v":""},{"$f":"IFERROR(ROUND(Table_Data_Table_1[[#This Row],[Adjusted\nSale Price]]/Table_Data_Table_1[[#This Row],[Resid\nSq Ft]],2),\"\")","v":""},{"$f":"IFERROR(IF(VLOOKUP(Table_Data_Table_1[[#This Row],[Item ID]],DataTable,11,FALSE)=0,\"N/A\",Table_Data_Table_1[[#This Row],[Adjusted\nSale Price]]/VLOOKUP(Table_Data_Table_1[[#This Row],[Item ID]],DataTable,11,FALSE)),\"\")","v":""},{"$f":"IF(IFERROR(VLOOKUP(Table_Data_Table_1[[#This Row],[Item ID]],DataTable,17,FALSE),\"\")=0,\"\",IFERROR(VLOOKUP(Table_Data_Table_1[[#This Row],[Item ID]],DataTable,17,FALSE),\"\"))","v":""}]
["",null,{"$f":"IF(Table_Data_Table_1[[#This Row],[Item ID]]=\"\",\"\",IFERROR(VLOOKUP(Table_Data_Table_1[[#This Row],[Item ID]],DataTable,16,FALSE),\"\"))","v":""},null,null,null,null,{"$f":"IF(Table_Data_Table_1[[#This Row],[Valuation Method]]=\"Vacant\",VLOOKUP(Table_Data_Table_1[[#This Row],[Item ID]],DataTable,6,FALSE)-VLOOKUP(Table_Data_Table_1[[#This Row],[Item ID]],DataTable,13,FALSE),IF(Table_Data_Table_1[[#This Row],[Valuation Method]]=\"Abstraction\",VLOOKUP(Table_Data_Table_1[[#This Row],[Item ID]],DataTable,6,FALSE)-VLOOKUP(Table_Data_Table_1[[#This Row],[Item ID]],DataTable,13,FALSE),IF(Table_Data_Table_1[[#This Row],[Valuation Method]]=\"Allocation\",VLOOKUP(Table_Data_Table_1[[#This Row],[Item ID]],DataTable,6,FALSE)*I426,\"\")))","v":""},{"$f":"IF(Table_Data_Table_1[[#This Row],[Valuation Method]]=\"Vacant\",\"N/A\",IF(Table_Data_Table_1[[#This Row],[Valuation Method]]=\"Abstraction\",Table_Data_Table_1[[#This Row],[Land\nResidual]]/VLOOKUP(Table_Data_Table_1[[#This Row],[Item ID]],DataTable,6,FALSE),IF(Table_Data_Table_1[[#This Row],[Valuation Method]]=\"Allocation\",'Global Settings'!$H$20,\"\")))","v":""},{"$f":"IFERROR(ROUND(Table_Data_Table_1[[#This Row],[Resid\nSq Ft]]/43560,3),\"\")","v":""},{"$f":"IF(Table_Data_Table_1[[#This Row],[Item ID]]=\"\",\"\",IFERROR(VLOOKUP(Table_Data_Table_1[[#This Row],[Item ID]],DataTable,10,FALSE)-VLOOKUP(Table_Data_Table_1[[#This Row],[Item ID]],DataTable,12,FALSE),\"\"))","v":""},{"$f":"IFERROR(Table_Data_Table_1[[#This Row],[Land\nResidual]]/Table_Data_Table_1[[#This Row],[Resid\nAcre]],\"\")","v":""},{"$f":"IFERROR(ROUND(Table_Data_Table_1[[#This Row],[Land\nResidual]]/Table_Data_Table_1[[#This Row],[Resid\nSq Ft]],2),\"\")","v":""},{"$f":"IF(Table_Data_Table_1[[#This Row],[Item ID]]=\"\",\"\",ROUND(DAYS360(Table_Data_Table_1[[#This Row],[Sale Date]],'Global Settings'!$H$5)/30,0))","v":""},{"$f":"IFERROR(IF(AND(Table_Data_Table_1[[#This Row],[Months To\nMid-Point]]<12.01,Table_Data_Table_1[[#This Row],[Months To\nMid-Point]]>-13),0,(Table_Data_Table_1[[#This Row],[Months To\nMid-Point]]*'Global Settings'!$H$6)),\"\")","v":""},{"$f":"IFERROR(Table_Data_Table_1[[#This Row],[Land\nResidual]]*(Table_Data_Table_1[[#This Row],[Time\nAdjust]]+1),\"\")","v":""},{"$f":"IFERROR(Table_Data_Table_1[[#This Row],[Adjusted\nSale Price]]/Table_Data_Table_1[[#This Row],[Resid\nAcre]],\"\")","v":""},{"$f":"IFERROR(ROUND(Table_Data_Table_1[[#This Row],[Adjusted\nSale Price]]/Table_Data_Table_1[[#This Row],[Resid\nSq Ft]],2),\"\")","v":""},{"$f":"IFERROR(IF(VLOOKUP(Table_Data_Table_1[[#This Row],[Item ID]],DataTable,11,FALSE)=0,\"N/A\",Table_Data_Table_1[[#This Row],[Adjusted\nSale Price]]/VLOOKUP(Table_Data_Table_1[[#This Row],[Item ID]],DataTable,11,FALSE)),\"\")","v":""},{"$f":"IF(IFERROR(VLOOKUP(Table_Data_Table_1[[#This Row],[Item ID]],DataTable,17,FALSE),\"\")=0,\"\",IFERROR(VLOOKUP(Table_Data_Table_1[[#This Row],[Item ID]],DataTable,17,FALSE),\"\"))","v":""}]
["",null,{"$f":"IF(Table_Data_Table_1[[#This Row],[Item ID]]=\"\",\"\",IFERROR(VLOOKUP(Table_Data_Table_1[[#This Row],[Item ID]],DataTable,16,FALSE),\"\"))","v":""},null,null,null,null,{"$f":"IF(Table_Data_Table_1[[#This Row],[Valuation Method]]=\"Vacant\",VLOOKUP(Table_Data_Table_1[[#This Row],[Item ID]],DataTable,6,FALSE)-VLOOKUP(Table_Data_Table_1[[#This Row],[Item ID]],DataTable,13,FALSE),IF(Table_Data_Table_1[[#This Row],[Valuation Method]]=\"Abstraction\",VLOOKUP(Table_Data_Table_1[[#This Row],[Item ID]],DataTable,6,FALSE)-VLOOKUP(Table_Data_Table_1[[#This Row],[Item ID]],DataTable,13,FALSE),IF(Table_Data_Table_1[[#This Row],[Valuation Method]]=\"Allocation\",VLOOKUP(Table_Data_Table_1[[#This Row],[Item ID]],DataTable,6,FALSE)*I427,\"\")))","v":""},{"$f":"IF(Table_Data_Table_1[[#This Row],[Valuation Method]]=\"Vacant\",\"N/A\",IF(Table_Data_Table_1[[#This Row],[Valuation Method]]=\"Abstraction\",Table_Data_Table_1[[#This Row],[Land\nResidual]]/VLOOKUP(Table_Data_Table_1[[#This Row],[Item ID]],DataTable,6,FALSE),IF(Table_Data_Table_1[[#This Row],[Valuation Method]]=\"Allocation\",'Global Settings'!$H$20,\"\")))","v":""},{"$f":"IFERROR(ROUND(Table_Data_Table_1[[#This Row],[Resid\nSq Ft]]/43560,3),\"\")","v":""},{"$f":"IF(Table_Data_Table_1[[#This Row],[Item ID]]=\"\",\"\",IFERROR(VLOOKUP(Table_Data_Table_1[[#This Row],[Item ID]],DataTable,10,FALSE)-VLOOKUP(Table_Data_Table_1[[#This Row],[Item ID]],DataTable,12,FALSE),\"\"))","v":""},{"$f":"IFERROR(Table_Data_Table_1[[#This Row],[Land\nResidual]]/Table_Data_Table_1[[#This Row],[Resid\nAcre]],\"\")","v":""},{"$f":"IFERROR(ROUND(Table_Data_Table_1[[#This Row],[Land\nResidual]]/Table_Data_Table_1[[#This Row],[Resid\nSq Ft]],2),\"\")","v":""},{"$f":"IF(Table_Data_Table_1[[#This Row],[Item ID]]=\"\",\"\",ROUND(DAYS360(Table_Data_Table_1[[#This Row],[Sale Date]],'Global Settings'!$H$5)/30,0))","v":""},{"$f":"IFERROR(IF(AND(Table_Data_Table_1[[#This Row],[Months To\nMid-Point]]<12.01,Table_Data_Table_1[[#This Row],[Months To\nMid-Point]]>-13),0,(Table_Data_Table_1[[#This Row],[Months To\nMid-Point]]*'Global Settings'!$H$6)),\"\")","v":""},{"$f":"IFERROR(Table_Data_Table_1[[#This Row],[Land\nResidual]]*(Table_Data_Table_1[[#This Row],[Time\nAdjust]]+1),\"\")","v":""},{"$f":"IFERROR(Table_Data_Table_1[[#This Row],[Adjusted\nSale Price]]/Table_Data_Table_1[[#This Row],[Resid\nAcre]],\"\")","v":""},{"$f":"IFERROR(ROUND(Table_Data_Table_1[[#This Row],[Adjusted\nSale Price]]/Table_Data_Table_1[[#This Row],[Resid\nSq Ft]],2),\"\")","v":""},{"$f":"IFERROR(IF(VLOOKUP(Table_Data_Table_1[[#This Row],[Item ID]],DataTable,11,FALSE)=0,\"N/A\",Table_Data_Table_1[[#This Row],[Adjusted\nSale Price]]/VLOOKUP(Table_Data_Table_1[[#This Row],[Item ID]],DataTable,11,FALSE)),\"\")","v":""},{"$f":"IF(IFERROR(VLOOKUP(Table_Data_Table_1[[#This Row],[Item ID]],DataTable,17,FALSE),\"\")=0,\"\",IFERROR(VLOOKUP(Table_Data_Table_1[[#This Row],[Item ID]],DataTable,17,FALSE),\"\"))","v":""}]
["",null,{"$f":"IF(Table_Data_Table_1[[#This Row],[Item ID]]=\"\",\"\",IFERROR(VLOOKUP(Table_Data_Table_1[[#This Row],[Item ID]],DataTable,16,FALSE),\"\"))","v":""},null,null,null,null,{"$f":"IF(Table_Data_Table_1[[#This Row],[Valuation Method]]=\"Vacant\",VLOOKUP(Table_Data_Table_1[[#This Row],[Item ID]],DataTable,6,FALSE)-VLOOKUP(Table_Data_Table_1[[#This Row],[Item ID]],DataTable,13,FALSE),IF(Table_Data_Table_1[[#This Row],[Valuation Method]]=\"Abstraction\",VLOOKUP(Table_Data_Table_1[[#This Row],[Item ID]],DataTable,6,FALSE)-VLOOKUP(Table_Data_Table_1[[#This Row],[Item ID]],DataTable,13,FALSE),IF(Table_Data_Table_1[[#This Row],[Valuation Method]]=\"Allocation\",VLOOKUP(Table_Data_Table_1[[#This Row],[Item ID]],DataTable,6,FALSE)*I428,\"\")))","v":""},{"$f":"IF(Table_Data_Table_1[[#This Row],[Valuation Method]]=\"Vacant\",\"N/A\",IF(Table_Data_Table_1[[#This Row],[Valuation Method]]=\"Abstraction\",Table_Data_Table_1[[#This Row],[Land\nResidual]]/VLOOKUP(Table_Data_Table_1[[#This Row],[Item ID]],DataTable,6,FALSE),IF(Table_Data_Table_1[[#This Row],[Valuation Method]]=\"Allocation\",'Global Settings'!$H$20,\"\")))","v":""},{"$f":"IFERROR(ROUND(Table_Data_Table_1[[#This Row],[Resid\nSq Ft]]/43560,3),\"\")","v":""},{"$f":"IF(Table_Data_Table_1[[#This Row],[Item ID]]=\"\",\"\",IFERROR(VLOOKUP(Table_Data_Table_1[[#This Row],[Item ID]],DataTable,10,FALSE)-VLOOKUP(Table_Data_Table_1[[#This Row],[Item ID]],DataTable,12,FALSE),\"\"))","v":""},{"$f":"IFERROR(Table_Data_Table_1[[#This Row],[Land\nResidual]]/Table_Data_Table_1[[#This Row],[Resid\nAcre]],\"\")","v":""},{"$f":"IFERROR(ROUND(Table_Data_Table_1[[#This Row],[Land\nResidual]]/Table_Data_Table_1[[#This Row],[Resid\nSq Ft]],2),\"\")","v":""},{"$f":"IF(Table_Data_Table_1[[#This Row],[Item ID]]=\"\",\"\",ROUND(DAYS360(Table_Data_Table_1[[#This Row],[Sale Date]],'Global Settings'!$H$5)/30,0))","v":""},{"$f":"IFERROR(IF(AND(Table_Data_Table_1[[#This Row],[Months To\nMid-Point]]<12.01,Table_Data_Table_1[[#This Row],[Months To\nMid-Point]]>-13),0,(Table_Data_Table_1[[#This Row],[Months To\nMid-Point]]*'Global Settings'!$H$6)),\"\")","v":""},{"$f":"IFERROR(Table_Data_Table_1[[#This Row],[Land\nResidual]]*(Table_Data_Table_1[[#This Row],[Time\nAdjust]]+1),\"\")","v":""},{"$f":"IFERROR(Table_Data_Table_1[[#This Row],[Adjusted\nSale Price]]/Table_Data_Table_1[[#This Row],[Resid\nAcre]],\"\")","v":""},{"$f":"IFERROR(ROUND(Table_Data_Table_1[[#This Row],[Adjusted\nSale Price]]/Table_Data_Table_1[[#This Row],[Resid\nSq Ft]],2),\"\")","v":""},{"$f":"IFERROR(IF(VLOOKUP(Table_Data_Table_1[[#This Row],[Item ID]],DataTable,11,FALSE)=0,\"N/A\",Table_Data_Table_1[[#This Row],[Adjusted\nSale Price]]/VLOOKUP(Table_Data_Table_1[[#This Row],[Item ID]],DataTable,11,FALSE)),\"\")","v":""},{"$f":"IF(IFERROR(VLOOKUP(Table_Data_Table_1[[#This Row],[Item ID]],DataTable,17,FALSE),\"\")=0,\"\",IFERROR(VLOOKUP(Table_Data_Table_1[[#This Row],[Item ID]],DataTable,17,FALSE),\"\"))","v":""}]
["",null,{"$f":"IF(Table_Data_Table_1[[#This Row],[Item ID]]=\"\",\"\",IFERROR(VLOOKUP(Table_Data_Table_1[[#This Row],[Item ID]],DataTable,16,FALSE),\"\"))","v":""},null,null,null,null,{"$f":"IF(Table_Data_Table_1[[#This Row],[Valuation Method]]=\"Vacant\",VLOOKUP(Table_Data_Table_1[[#This Row],[Item ID]],DataTable,6,FALSE)-VLOOKUP(Table_Data_Table_1[[#This Row],[Item ID]],DataTable,13,FALSE),IF(Table_Data_Table_1[[#This Row],[Valuation Method]]=\"Abstraction\",VLOOKUP(Table_Data_Table_1[[#This Row],[Item ID]],DataTable,6,FALSE)-VLOOKUP(Table_Data_Table_1[[#This Row],[Item ID]],DataTable,13,FALSE),IF(Table_Data_Table_1[[#This Row],[Valuation Method]]=\"Allocation\",VLOOKUP(Table_Data_Table_1[[#This Row],[Item ID]],DataTable,6,FALSE)*I429,\"\")))","v":""},{"$f":"IF(Table_Data_Table_1[[#This Row],[Valuation Method]]=\"Vacant\",\"N/A\",IF(Table_Data_Table_1[[#This Row],[Valuation Method]]=\"Abstraction\",Table_Data_Table_1[[#This Row],[Land\nResidual]]/VLOOKUP(Table_Data_Table_1[[#This Row],[Item ID]],DataTable,6,FALSE),IF(Table_Data_Table_1[[#This Row],[Valuation Method]]=\"Allocation\",'Global Settings'!$H$20,\"\")))","v":""},{"$f":"IFERROR(ROUND(Table_Data_Table_1[[#This Row],[Resid\nSq Ft]]/43560,3),\"\")","v":""},{"$f":"IF(Table_Data_Table_1[[#This Row],[Item ID]]=\"\",\"\",IFERROR(VLOOKUP(Table_Data_Table_1[[#This Row],[Item ID]],DataTable,10,FALSE)-VLOOKUP(Table_Data_Table_1[[#This Row],[Item ID]],DataTable,12,FALSE),\"\"))","v":""},{"$f":"IFERROR(Table_Data_Table_1[[#This Row],[Land\nResidual]]/Table_Data_Table_1[[#This Row],[Resid\nAcre]],\"\")","v":""},{"$f":"IFERROR(ROUND(Table_Data_Table_1[[#This Row],[Land\nResidual]]/Table_Data_Table_1[[#This Row],[Resid\nSq Ft]],2),\"\")","v":""},{"$f":"IF(Table_Data_Table_1[[#This Row],[Item ID]]=\"\",\"\",ROUND(DAYS360(Table_Data_Table_1[[#This Row],[Sale Date]],'Global Settings'!$H$5)/30,0))","v":""},{"$f":"IFERROR(IF(AND(Table_Data_Table_1[[#This Row],[Months To\nMid-Point]]<12.01,Table_Data_Table_1[[#This Row],[Months To\nMid-Point]]>-13),0,(Table_Data_Table_1[[#This Row],[Months To\nMid-Point]]*'Global Settings'!$H$6)),\"\")","v":""},{"$f":"IFERROR(Table_Data_Table_1[[#This Row],[Land\nResidual]]*(Table_Data_Table_1[[#This Row],[Time\nAdjust]]+1),\"\")","v":""},{"$f":"IFERROR(Table_Data_Table_1[[#This Row],[Adjusted\nSale Price]]/Table_Data_Table_1[[#This Row],[Resid\nAcre]],\"\")","v":""},{"$f":"IFERROR(ROUND(Table_Data_Table_1[[#This Row],[Adjusted\nSale Price]]/Table_Data_Table_1[[#This Row],[Resid\nSq Ft]],2),\"\")","v":""},{"$f":"IFERROR(IF(VLOOKUP(Table_Data_Table_1[[#This Row],[Item ID]],DataTable,11,FALSE)=0,\"N/A\",Table_Data_Table_1[[#This Row],[Adjusted\nSale Price]]/VLOOKUP(Table_Data_Table_1[[#This Row],[Item ID]],DataTable,11,FALSE)),\"\")","v":""},{"$f":"IF(IFERROR(VLOOKUP(Table_Data_Table_1[[#This Row],[Item ID]],DataTable,17,FALSE),\"\")=0,\"\",IFERROR(VLOOKUP(Table_Data_Table_1[[#This Row],[Item ID]],DataTable,17,FALSE),\"\"))","v":""}]
["",null,{"$f":"IF(Table_Data_Table_1[[#This Row],[Item ID]]=\"\",\"\",IFERROR(VLOOKUP(Table_Data_Table_1[[#This Row],[Item ID]],DataTable,16,FALSE),\"\"))","v":""},null,null,null,null,{"$f":"IF(Table_Data_Table_1[[#This Row],[Valuation Method]]=\"Vacant\",VLOOKUP(Table_Data_Table_1[[#This Row],[Item ID]],DataTable,6,FALSE)-VLOOKUP(Table_Data_Table_1[[#This Row],[Item ID]],DataTable,13,FALSE),IF(Table_Data_Table_1[[#This Row],[Valuation Method]]=\"Abstraction\",VLOOKUP(Table_Data_Table_1[[#This Row],[Item ID]],DataTable,6,FALSE)-VLOOKUP(Table_Data_Table_1[[#This Row],[Item ID]],DataTable,13,FALSE),IF(Table_Data_Table_1[[#This Row],[Valuation Method]]=\"Allocation\",VLOOKUP(Table_Data_Table_1[[#This Row],[Item ID]],DataTable,6,FALSE)*I430,\"\")))","v":""},{"$f":"IF(Table_Data_Table_1[[#This Row],[Valuation Method]]=\"Vacant\",\"N/A\",IF(Table_Data_Table_1[[#This Row],[Valuation Method]]=\"Abstraction\",Table_Data_Table_1[[#This Row],[Land\nResidual]]/VLOOKUP(Table_Data_Table_1[[#This Row],[Item ID]],DataTable,6,FALSE),IF(Table_Data_Table_1[[#This Row],[Valuation Method]]=\"Allocation\",'Global Settings'!$H$20,\"\")))","v":""},{"$f":"IFERROR(ROUND(Table_Data_Table_1[[#This Row],[Resid\nSq Ft]]/43560,3),\"\")","v":""},{"$f":"IF(Table_Data_Table_1[[#This Row],[Item ID]]=\"\",\"\",IFERROR(VLOOKUP(Table_Data_Table_1[[#This Row],[Item ID]],DataTable,10,FALSE)-VLOOKUP(Table_Data_Table_1[[#This Row],[Item ID]],DataTable,12,FALSE),\"\"))","v":""},{"$f":"IFERROR(Table_Data_Table_1[[#This Row],[Land\nResidual]]/Table_Data_Table_1[[#This Row],[Resid\nAcre]],\"\")","v":""},{"$f":"IFERROR(ROUND(Table_Data_Table_1[[#This Row],[Land\nResidual]]/Table_Data_Table_1[[#This Row],[Resid\nSq Ft]],2),\"\")","v":""},{"$f":"IF(Table_Data_Table_1[[#This Row],[Item ID]]=\"\",\"\",ROUND(DAYS360(Table_Data_Table_1[[#This Row],[Sale Date]],'Global Settings'!$H$5)/30,0))","v":""},{"$f":"IFERROR(IF(AND(Table_Data_Table_1[[#This Row],[Months To\nMid-Point]]<12.01,Table_Data_Table_1[[#This Row],[Months To\nMid-Point]]>-13),0,(Table_Data_Table_1[[#This Row],[Months To\nMid-Point]]*'Global Settings'!$H$6)),\"\")","v":""},{"$f":"IFERROR(Table_Data_Table_1[[#This Row],[Land\nResidual]]*(Table_Data_Table_1[[#This Row],[Time\nAdjust]]+1),\"\")","v":""},{"$f":"IFERROR(Table_Data_Table_1[[#This Row],[Adjusted\nSale Price]]/Table_Data_Table_1[[#This Row],[Resid\nAcre]],\"\")","v":""},{"$f":"IFERROR(ROUND(Table_Data_Table_1[[#This Row],[Adjusted\nSale Price]]/Table_Data_Table_1[[#This Row],[Resid\nSq Ft]],2),\"\")","v":""},{"$f":"IFERROR(IF(VLOOKUP(Table_Data_Table_1[[#This Row],[Item ID]],DataTable,11,FALSE)=0,\"N/A\",Table_Data_Table_1[[#This Row],[Adjusted\nSale Price]]/VLOOKUP(Table_Data_Table_1[[#This Row],[Item ID]],DataTable,11,FALSE)),\"\")","v":""},{"$f":"IF(IFERROR(VLOOKUP(Table_Data_Table_1[[#This Row],[Item ID]],DataTable,17,FALSE),\"\")=0,\"\",IFERROR(VLOOKUP(Table_Data_Table_1[[#This Row],[Item ID]],DataTable,17,FALSE),\"\"))","v":""}]
["",null,{"$f":"IF(Table_Data_Table_1[[#This Row],[Item ID]]=\"\",\"\",IFERROR(VLOOKUP(Table_Data_Table_1[[#This Row],[Item ID]],DataTable,16,FALSE),\"\"))","v":""},null,null,null,null,{"$f":"IF(Table_Data_Table_1[[#This Row],[Valuation Method]]=\"Vacant\",VLOOKUP(Table_Data_Table_1[[#This Row],[Item ID]],DataTable,6,FALSE)-VLOOKUP(Table_Data_Table_1[[#This Row],[Item ID]],DataTable,13,FALSE),IF(Table_Data_Table_1[[#This Row],[Valuation Method]]=\"Abstraction\",VLOOKUP(Table_Data_Table_1[[#This Row],[Item ID]],DataTable,6,FALSE)-VLOOKUP(Table_Data_Table_1[[#This Row],[Item ID]],DataTable,13,FALSE),IF(Table_Data_Table_1[[#This Row],[Valuation Method]]=\"Allocation\",VLOOKUP(Table_Data_Table_1[[#This Row],[Item ID]],DataTable,6,FALSE)*I431,\"\")))","v":""},{"$f":"IF(Table_Data_Table_1[[#This Row],[Valuation Method]]=\"Vacant\",\"N/A\",IF(Table_Data_Table_1[[#This Row],[Valuation Method]]=\"Abstraction\",Table_Data_Table_1[[#This Row],[Land\nResidual]]/VLOOKUP(Table_Data_Table_1[[#This Row],[Item ID]],DataTable,6,FALSE),IF(Table_Data_Table_1[[#This Row],[Valuation Method]]=\"Allocation\",'Global Settings'!$H$20,\"\")))","v":""},{"$f":"IFERROR(ROUND(Table_Data_Table_1[[#This Row],[Resid\nSq Ft]]/43560,3),\"\")","v":""},{"$f":"IF(Table_Data_Table_1[[#This Row],[Item ID]]=\"\",\"\",IFERROR(VLOOKUP(Table_Data_Table_1[[#This Row],[Item ID]],DataTable,10,FALSE)-VLOOKUP(Table_Data_Table_1[[#This Row],[Item ID]],DataTable,12,FALSE),\"\"))","v":""},{"$f":"IFERROR(Table_Data_Table_1[[#This Row],[Land\nResidual]]/Table_Data_Table_1[[#This Row],[Resid\nAcre]],\"\")","v":""},{"$f":"IFERROR(ROUND(Table_Data_Table_1[[#This Row],[Land\nResidual]]/Table_Data_Table_1[[#This Row],[Resid\nSq Ft]],2),\"\")","v":""},{"$f":"IF(Table_Data_Table_1[[#This Row],[Item ID]]=\"\",\"\",ROUND(DAYS360(Table_Data_Table_1[[#This Row],[Sale Date]],'Global Settings'!$H$5)/30,0))","v":""},{"$f":"IFERROR(IF(AND(Table_Data_Table_1[[#This Row],[Months To\nMid-Point]]<12.01,Table_Data_Table_1[[#This Row],[Months To\nMid-Point]]>-13),0,(Table_Data_Table_1[[#This Row],[Months To\nMid-Point]]*'Global Settings'!$H$6)),\"\")","v":""},{"$f":"IFERROR(Table_Data_Table_1[[#This Row],[Land\nResidual]]*(Table_Data_Table_1[[#This Row],[Time\nAdjust]]+1),\"\")","v":""},{"$f":"IFERROR(Table_Data_Table_1[[#This Row],[Adjusted\nSale Price]]/Table_Data_Table_1[[#This Row],[Resid\nAcre]],\"\")","v":""},{"$f":"IFERROR(ROUND(Table_Data_Table_1[[#This Row],[Adjusted\nSale Price]]/Table_Data_Table_1[[#This Row],[Resid\nSq Ft]],2),\"\")","v":""},{"$f":"IFERROR(IF(VLOOKUP(Table_Data_Table_1[[#This Row],[Item ID]],DataTable,11,FALSE)=0,\"N/A\",Table_Data_Table_1[[#This Row],[Adjusted\nSale Price]]/VLOOKUP(Table_Data_Table_1[[#This Row],[Item ID]],DataTable,11,FALSE)),\"\")","v":""},{"$f":"IF(IFERROR(VLOOKUP(Table_Data_Table_1[[#This Row],[Item ID]],DataTable,17,FALSE),\"\")=0,\"\",IFERROR(VLOOKUP(Table_Data_Table_1[[#This Row],[Item ID]],DataTable,17,FALSE),\"\"))","v":""}]
["",null,{"$f":"IF(Table_Data_Table_1[[#This Row],[Item ID]]=\"\",\"\",IFERROR(VLOOKUP(Table_Data_Table_1[[#This Row],[Item ID]],DataTable,16,FALSE),\"\"))","v":""},null,null,null,null,{"$f":"IF(Table_Data_Table_1[[#This Row],[Valuation Method]]=\"Vacant\",VLOOKUP(Table_Data_Table_1[[#This Row],[Item ID]],DataTable,6,FALSE)-VLOOKUP(Table_Data_Table_1[[#This Row],[Item ID]],DataTable,13,FALSE),IF(Table_Data_Table_1[[#This Row],[Valuation Method]]=\"Abstraction\",VLOOKUP(Table_Data_Table_1[[#This Row],[Item ID]],DataTable,6,FALSE)-VLOOKUP(Table_Data_Table_1[[#This Row],[Item ID]],DataTable,13,FALSE),IF(Table_Data_Table_1[[#This Row],[Valuation Method]]=\"Allocation\",VLOOKUP(Table_Data_Table_1[[#This Row],[Item ID]],DataTable,6,FALSE)*I432,\"\")))","v":""},{"$f":"IF(Table_Data_Table_1[[#This Row],[Valuation Method]]=\"Vacant\",\"N/A\",IF(Table_Data_Table_1[[#This Row],[Valuation Method]]=\"Abstraction\",Table_Data_Table_1[[#This Row],[Land\nResidual]]/VLOOKUP(Table_Data_Table_1[[#This Row],[Item ID]],DataTable,6,FALSE),IF(Table_Data_Table_1[[#This Row],[Valuation Method]]=\"Allocation\",'Global Settings'!$H$20,\"\")))","v":""},{"$f":"IFERROR(ROUND(Table_Data_Table_1[[#This Row],[Resid\nSq Ft]]/43560,3),\"\")","v":""},{"$f":"IF(Table_Data_Table_1[[#This Row],[Item ID]]=\"\",\"\",IFERROR(VLOOKUP(Table_Data_Table_1[[#This Row],[Item ID]],DataTable,10,FALSE)-VLOOKUP(Table_Data_Table_1[[#This Row],[Item ID]],DataTable,12,FALSE),\"\"))","v":""},{"$f":"IFERROR(Table_Data_Table_1[[#This Row],[Land\nResidual]]/Table_Data_Table_1[[#This Row],[Resid\nAcre]],\"\")","v":""},{"$f":"IFERROR(ROUND(Table_Data_Table_1[[#This Row],[Land\nResidual]]/Table_Data_Table_1[[#This Row],[Resid\nSq Ft]],2),\"\")","v":""},{"$f":"IF(Table_Data_Table_1[[#This Row],[Item ID]]=\"\",\"\",ROUND(DAYS360(Table_Data_Table_1[[#This Row],[Sale Date]],'Global Settings'!$H$5)/30,0))","v":""},{"$f":"IFERROR(IF(AND(Table_Data_Table_1[[#This Row],[Months To\nMid-Point]]<12.01,Table_Data_Table_1[[#This Row],[Months To\nMid-Point]]>-13),0,(Table_Data_Table_1[[#This Row],[Months To\nMid-Point]]*'Global Settings'!$H$6)),\"\")","v":""},{"$f":"IFERROR(Table_Data_Table_1[[#This Row],[Land\nResidual]]*(Table_Data_Table_1[[#This Row],[Time\nAdjust]]+1),\"\")","v":""},{"$f":"IFERROR(Table_Data_Table_1[[#This Row],[Adjusted\nSale Price]]/Table_Data_Table_1[[#This Row],[Resid\nAcre]],\"\")","v":""},{"$f":"IFERROR(ROUND(Table_Data_Table_1[[#This Row],[Adjusted\nSale Price]]/Table_Data_Table_1[[#This Row],[Resid\nSq Ft]],2),\"\")","v":""},{"$f":"IFERROR(IF(VLOOKUP(Table_Data_Table_1[[#This Row],[Item ID]],DataTable,11,FALSE)=0,\"N/A\",Table_Data_Table_1[[#This Row],[Adjusted\nSale Price]]/VLOOKUP(Table_Data_Table_1[[#This Row],[Item ID]],DataTable,11,FALSE)),\"\")","v":""},{"$f":"IF(IFERROR(VLOOKUP(Table_Data_Table_1[[#This Row],[Item ID]],DataTable,17,FALSE),\"\")=0,\"\",IFERROR(VLOOKUP(Table_Data_Table_1[[#This Row],[Item ID]],DataTable,17,FALSE),\"\"))","v":""}]
["",null,{"$f":"IF(Table_Data_Table_1[[#This Row],[Item ID]]=\"\",\"\",IFERROR(VLOOKUP(Table_Data_Table_1[[#This Row],[Item ID]],DataTable,16,FALSE),\"\"))","v":""},null,null,null,null,{"$f":"IF(Table_Data_Table_1[[#This Row],[Valuation Method]]=\"Vacant\",VLOOKUP(Table_Data_Table_1[[#This Row],[Item ID]],DataTable,6,FALSE)-VLOOKUP(Table_Data_Table_1[[#This Row],[Item ID]],DataTable,13,FALSE),IF(Table_Data_Table_1[[#This Row],[Valuation Method]]=\"Abstraction\",VLOOKUP(Table_Data_Table_1[[#This Row],[Item ID]],DataTable,6,FALSE)-VLOOKUP(Table_Data_Table_1[[#This Row],[Item ID]],DataTable,13,FALSE),IF(Table_Data_Table_1[[#This Row],[Valuation Method]]=\"Allocation\",VLOOKUP(Table_Data_Table_1[[#This Row],[Item ID]],DataTable,6,FALSE)*I433,\"\")))","v":""},{"$f":"IF(Table_Data_Table_1[[#This Row],[Valuation Method]]=\"Vacant\",\"N/A\",IF(Table_Data_Table_1[[#This Row],[Valuation Method]]=\"Abstraction\",Table_Data_Table_1[[#This Row],[Land\nResidual]]/VLOOKUP(Table_Data_Table_1[[#This Row],[Item ID]],DataTable,6,FALSE),IF(Table_Data_Table_1[[#This Row],[Valuation Method]]=\"Allocation\",'Global Settings'!$H$20,\"\")))","v":""},{"$f":"IFERROR(ROUND(Table_Data_Table_1[[#This Row],[Resid\nSq Ft]]/43560,3),\"\")","v":""},{"$f":"IF(Table_Data_Table_1[[#This Row],[Item ID]]=\"\",\"\",IFERROR(VLOOKUP(Table_Data_Table_1[[#This Row],[Item ID]],DataTable,10,FALSE)-VLOOKUP(Table_Data_Table_1[[#This Row],[Item ID]],DataTable,12,FALSE),\"\"))","v":""},{"$f":"IFERROR(Table_Data_Table_1[[#This Row],[Land\nResidual]]/Table_Data_Table_1[[#This Row],[Resid\nAcre]],\"\")","v":""},{"$f":"IFERROR(ROUND(Table_Data_Table_1[[#This Row],[Land\nResidual]]/Table_Data_Table_1[[#This Row],[Resid\nSq Ft]],2),\"\")","v":""},{"$f":"IF(Table_Data_Table_1[[#This Row],[Item ID]]=\"\",\"\",ROUND(DAYS360(Table_Data_Table_1[[#This Row],[Sale Date]],'Global Settings'!$H$5)/30,0))","v":""},{"$f":"IFERROR(IF(AND(Table_Data_Table_1[[#This Row],[Months To\nMid-Point]]<12.01,Table_Data_Table_1[[#This Row],[Months To\nMid-Point]]>-13),0,(Table_Data_Table_1[[#This Row],[Months To\nMid-Point]]*'Global Settings'!$H$6)),\"\")","v":""},{"$f":"IFERROR(Table_Data_Table_1[[#This Row],[Land\nResidual]]*(Table_Data_Table_1[[#This Row],[Time\nAdjust]]+1),\"\")","v":""},{"$f":"IFERROR(Table_Data_Table_1[[#This Row],[Adjusted\nSale Price]]/Table_Data_Table_1[[#This Row],[Resid\nAcre]],\"\")","v":""},{"$f":"IFERROR(ROUND(Table_Data_Table_1[[#This Row],[Adjusted\nSale Price]]/Table_Data_Table_1[[#This Row],[Resid\nSq Ft]],2),\"\")","v":""},{"$f":"IFERROR(IF(VLOOKUP(Table_Data_Table_1[[#This Row],[Item ID]],DataTable,11,FALSE)=0,\"N/A\",Table_Data_Table_1[[#This Row],[Adjusted\nSale Price]]/VLOOKUP(Table_Data_Table_1[[#This Row],[Item ID]],DataTable,11,FALSE)),\"\")","v":""},{"$f":"IF(IFERROR(VLOOKUP(Table_Data_Table_1[[#This Row],[Item ID]],DataTable,17,FALSE),\"\")=0,\"\",IFERROR(VLOOKUP(Table_Data_Table_1[[#This Row],[Item ID]],DataTable,17,FALSE),\"\"))","v":""}]
["",null,{"$f":"IF(Table_Data_Table_1[[#This Row],[Item ID]]=\"\",\"\",IFERROR(VLOOKUP(Table_Data_Table_1[[#This Row],[Item ID]],DataTable,16,FALSE),\"\"))","v":""},null,null,null,null,{"$f":"IF(Table_Data_Table_1[[#This Row],[Valuation Method]]=\"Vacant\",VLOOKUP(Table_Data_Table_1[[#This Row],[Item ID]],DataTable,6,FALSE)-VLOOKUP(Table_Data_Table_1[[#This Row],[Item ID]],DataTable,13,FALSE),IF(Table_Data_Table_1[[#This Row],[Valuation Method]]=\"Abstraction\",VLOOKUP(Table_Data_Table_1[[#This Row],[Item ID]],DataTable,6,FALSE)-VLOOKUP(Table_Data_Table_1[[#This Row],[Item ID]],DataTable,13,FALSE),IF(Table_Data_Table_1[[#This Row],[Valuation Method]]=\"Allocation\",VLOOKUP(Table_Data_Table_1[[#This Row],[Item ID]],DataTable,6,FALSE)*I434,\"\")))","v":""},{"$f":"IF(Table_Data_Table_1[[#This Row],[Valuation Method]]=\"Vacant\",\"N/A\",IF(Table_Data_Table_1[[#This Row],[Valuation Method]]=\"Abstraction\",Table_Data_Table_1[[#This Row],[Land\nResidual]]/VLOOKUP(Table_Data_Table_1[[#This Row],[Item ID]],DataTable,6,FALSE),IF(Table_Data_Table_1[[#This Row],[Valuation Method]]=\"Allocation\",'Global Settings'!$H$20,\"\")))","v":""},{"$f":"IFERROR(ROUND(Table_Data_Table_1[[#This Row],[Resid\nSq Ft]]/43560,3),\"\")","v":""},{"$f":"IF(Table_Data_Table_1[[#This Row],[Item ID]]=\"\",\"\",IFERROR(VLOOKUP(Table_Data_Table_1[[#This Row],[Item ID]],DataTable,10,FALSE)-VLOOKUP(Table_Data_Table_1[[#This Row],[Item ID]],DataTable,12,FALSE),\"\"))","v":""},{"$f":"IFERROR(Table_Data_Table_1[[#This Row],[Land\nResidual]]/Table_Data_Table_1[[#This Row],[Resid\nAcre]],\"\")","v":""},{"$f":"IFERROR(ROUND(Table_Data_Table_1[[#This Row],[Land\nResidual]]/Table_Data_Table_1[[#This Row],[Resid\nSq Ft]],2),\"\")","v":""},{"$f":"IF(Table_Data_Table_1[[#This Row],[Item ID]]=\"\",\"\",ROUND(DAYS360(Table_Data_Table_1[[#This Row],[Sale Date]],'Global Settings'!$H$5)/30,0))","v":""},{"$f":"IFERROR(IF(AND(Table_Data_Table_1[[#This Row],[Months To\nMid-Point]]<12.01,Table_Data_Table_1[[#This Row],[Months To\nMid-Point]]>-13),0,(Table_Data_Table_1[[#This Row],[Months To\nMid-Point]]*'Global Settings'!$H$6)),\"\")","v":""},{"$f":"IFERROR(Table_Data_Table_1[[#This Row],[Land\nResidual]]*(Table_Data_Table_1[[#This Row],[Time\nAdjust]]+1),\"\")","v":""},{"$f":"IFERROR(Table_Data_Table_1[[#This Row],[Adjusted\nSale Price]]/Table_Data_Table_1[[#This Row],[Resid\nAcre]],\"\")","v":""},{"$f":"IFERROR(ROUND(Table_Data_Table_1[[#This Row],[Adjusted\nSale Price]]/Table_Data_Table_1[[#This Row],[Resid\nSq Ft]],2),\"\")","v":""},{"$f":"IFERROR(IF(VLOOKUP(Table_Data_Table_1[[#This Row],[Item ID]],DataTable,11,FALSE)=0,\"N/A\",Table_Data_Table_1[[#This Row],[Adjusted\nSale Price]]/VLOOKUP(Table_Data_Table_1[[#This Row],[Item ID]],DataTable,11,FALSE)),\"\")","v":""},{"$f":"IF(IFERROR(VLOOKUP(Table_Data_Table_1[[#This Row],[Item ID]],DataTable,17,FALSE),\"\")=0,\"\",IFERROR(VLOOKUP(Table_Data_Table_1[[#This Row],[Item ID]],DataTable,17,FALSE),\"\"))","v":""}]
["",null,{"$f":"IF(Table_Data_Table_1[[#This Row],[Item ID]]=\"\",\"\",IFERROR(VLOOKUP(Table_Data_Table_1[[#This Row],[Item ID]],DataTable,16,FALSE),\"\"))","v":""},null,null,null,null,{"$f":"IF(Table_Data_Table_1[[#This Row],[Valuation Method]]=\"Vacant\",VLOOKUP(Table_Data_Table_1[[#This Row],[Item ID]],DataTable,6,FALSE)-VLOOKUP(Table_Data_Table_1[[#This Row],[Item ID]],DataTable,13,FALSE),IF(Table_Data_Table_1[[#This Row],[Valuation Method]]=\"Abstraction\",VLOOKUP(Table_Data_Table_1[[#This Row],[Item ID]],DataTable,6,FALSE)-VLOOKUP(Table_Data_Table_1[[#This Row],[Item ID]],DataTable,13,FALSE),IF(Table_Data_Table_1[[#This Row],[Valuation Method]]=\"Allocation\",VLOOKUP(Table_Data_Table_1[[#This Row],[Item ID]],DataTable,6,FALSE)*I435,\"\")))","v":""},{"$f":"IF(Table_Data_Table_1[[#This Row],[Valuation Method]]=\"Vacant\",\"N/A\",IF(Table_Data_Table_1[[#This Row],[Valuation Method]]=\"Abstraction\",Table_Data_Table_1[[#This Row],[Land\nResidual]]/VLOOKUP(Table_Data_Table_1[[#This Row],[Item ID]],DataTable,6,FALSE),IF(Table_Data_Table_1[[#This Row],[Valuation Method]]=\"Allocation\",'Global Settings'!$H$20,\"\")))","v":""},{"$f":"IFERROR(ROUND(Table_Data_Table_1[[#This Row],[Resid\nSq Ft]]/43560,3),\"\")","v":""},{"$f":"IF(Table_Data_Table_1[[#This Row],[Item ID]]=\"\",\"\",IFERROR(VLOOKUP(Table_Data_Table_1[[#This Row],[Item ID]],DataTable,10,FALSE)-VLOOKUP(Table_Data_Table_1[[#This Row],[Item ID]],DataTable,12,FALSE),\"\"))","v":""},{"$f":"IFERROR(Table_Data_Table_1[[#This Row],[Land\nResidual]]/Table_Data_Table_1[[#This Row],[Resid\nAcre]],\"\")","v":""},{"$f":"IFERROR(ROUND(Table_Data_Table_1[[#This Row],[Land\nResidual]]/Table_Data_Table_1[[#This Row],[Resid\nSq Ft]],2),\"\")","v":""},{"$f":"IF(Table_Data_Table_1[[#This Row],[Item ID]]=\"\",\"\",ROUND(DAYS360(Table_Data_Table_1[[#This Row],[Sale Date]],'Global Settings'!$H$5)/30,0))","v":""},{"$f":"IFERROR(IF(AND(Table_Data_Table_1[[#This Row],[Months To\nMid-Point]]<12.01,Table_Data_Table_1[[#This Row],[Months To\nMid-Point]]>-13),0,(Table_Data_Table_1[[#This Row],[Months To\nMid-Point]]*'Global Settings'!$H$6)),\"\")","v":""},{"$f":"IFERROR(Table_Data_Table_1[[#This Row],[Land\nResidual]]*(Table_Data_Table_1[[#This Row],[Time\nAdjust]]+1),\"\")","v":""},{"$f":"IFERROR(Table_Data_Table_1[[#This Row],[Adjusted\nSale Price]]/Table_Data_Table_1[[#This Row],[Resid\nAcre]],\"\")","v":""},{"$f":"IFERROR(ROUND(Table_Data_Table_1[[#This Row],[Adjusted\nSale Price]]/Table_Data_Table_1[[#This Row],[Resid\nSq Ft]],2),\"\")","v":""},{"$f":"IFERROR(IF(VLOOKUP(Table_Data_Table_1[[#This Row],[Item ID]],DataTable,11,FALSE)=0,\"N/A\",Table_Data_Table_1[[#This Row],[Adjusted\nSale Price]]/VLOOKUP(Table_Data_Table_1[[#This Row],[Item ID]],DataTable,11,FALSE)),\"\")","v":""},{"$f":"IF(IFERROR(VLOOKUP(Table_Data_Table_1[[#This Row],[Item ID]],DataTable,17,FALSE),\"\")=0,\"\",IFERROR(VLOOKUP(Table_Data_Table_1[[#This Row],[Item ID]],DataTable,17,FALSE),\"\"))","v":""}]
["",null,{"$f":"IF(Table_Data_Table_1[[#This Row],[Item ID]]=\"\",\"\",IFERROR(VLOOKUP(Table_Data_Table_1[[#This Row],[Item ID]],DataTable,16,FALSE),\"\"))","v":""},null,null,null,null,{"$f":"IF(Table_Data_Table_1[[#This Row],[Valuation Method]]=\"Vacant\",VLOOKUP(Table_Data_Table_1[[#This Row],[Item ID]],DataTable,6,FALSE)-VLOOKUP(Table_Data_Table_1[[#This Row],[Item ID]],DataTable,13,FALSE),IF(Table_Data_Table_1[[#This Row],[Valuation Method]]=\"Abstraction\",VLOOKUP(Table_Data_Table_1[[#This Row],[Item ID]],DataTable,6,FALSE)-VLOOKUP(Table_Data_Table_1[[#This Row],[Item ID]],DataTable,13,FALSE),IF(Table_Data_Table_1[[#This Row],[Valuation Method]]=\"Allocation\",VLOOKUP(Table_Data_Table_1[[#This Row],[Item ID]],DataTable,6,FALSE)*I436,\"\")))","v":""},{"$f":"IF(Table_Data_Table_1[[#This Row],[Valuation Method]]=\"Vacant\",\"N/A\",IF(Table_Data_Table_1[[#This Row],[Valuation Method]]=\"Abstraction\",Table_Data_Table_1[[#This Row],[Land\nResidual]]/VLOOKUP(Table_Data_Table_1[[#This Row],[Item ID]],DataTable,6,FALSE),IF(Table_Data_Table_1[[#This Row],[Valuation Method]]=\"Allocation\",'Global Settings'!$H$20,\"\")))","v":""},{"$f":"IFERROR(ROUND(Table_Data_Table_1[[#This Row],[Resid\nSq Ft]]/43560,3),\"\")","v":""},{"$f":"IF(Table_Data_Table_1[[#This Row],[Item ID]]=\"\",\"\",IFERROR(VLOOKUP(Table_Data_Table_1[[#This Row],[Item ID]],DataTable,10,FALSE)-VLOOKUP(Table_Data_Table_1[[#This Row],[Item ID]],DataTable,12,FALSE),\"\"))","v":""},{"$f":"IFERROR(Table_Data_Table_1[[#This Row],[Land\nResidual]]/Table_Data_Table_1[[#This Row],[Resid\nAcre]],\"\")","v":""},{"$f":"IFERROR(ROUND(Table_Data_Table_1[[#This Row],[Land\nResidual]]/Table_Data_Table_1[[#This Row],[Resid\nSq Ft]],2),\"\")","v":""},{"$f":"IF(Table_Data_Table_1[[#This Row],[Item ID]]=\"\",\"\",ROUND(DAYS360(Table_Data_Table_1[[#This Row],[Sale Date]],'Global Settings'!$H$5)/30,0))","v":""},{"$f":"IFERROR(IF(AND(Table_Data_Table_1[[#This Row],[Months To\nMid-Point]]<12.01,Table_Data_Table_1[[#This Row],[Months To\nMid-Point]]>-13),0,(Table_Data_Table_1[[#This Row],[Months To\nMid-Point]]*'Global Settings'!$H$6)),\"\")","v":""},{"$f":"IFERROR(Table_Data_Table_1[[#This Row],[Land\nResidual]]*(Table_Data_Table_1[[#This Row],[Time\nAdjust]]+1),\"\")","v":""},{"$f":"IFERROR(Table_Data_Table_1[[#This Row],[Adjusted\nSale Price]]/Table_Data_Table_1[[#This Row],[Resid\nAcre]],\"\")","v":""},{"$f":"IFERROR(ROUND(Table_Data_Table_1[[#This Row],[Adjusted\nSale Price]]/Table_Data_Table_1[[#This Row],[Resid\nSq Ft]],2),\"\")","v":""},{"$f":"IFERROR(IF(VLOOKUP(Table_Data_Table_1[[#This Row],[Item ID]],DataTable,11,FALSE)=0,\"N/A\",Table_Data_Table_1[[#This Row],[Adjusted\nSale Price]]/VLOOKUP(Table_Data_Table_1[[#This Row],[Item ID]],DataTable,11,FALSE)),\"\")","v":""},{"$f":"IF(IFERROR(VLOOKUP(Table_Data_Table_1[[#This Row],[Item ID]],DataTable,17,FALSE),\"\")=0,\"\",IFERROR(VLOOKUP(Table_Data_Table_1[[#This Row],[Item ID]],DataTable,17,FALSE),\"\"))","v":""}]
["",null,{"$f":"IF(Table_Data_Table_1[[#This Row],[Item ID]]=\"\",\"\",IFERROR(VLOOKUP(Table_Data_Table_1[[#This Row],[Item ID]],DataTable,16,FALSE),\"\"))","v":""},null,null,null,null,{"$f":"IF(Table_Data_Table_1[[#This Row],[Valuation Method]]=\"Vacant\",VLOOKUP(Table_Data_Table_1[[#This Row],[Item ID]],DataTable,6,FALSE)-VLOOKUP(Table_Data_Table_1[[#This Row],[Item ID]],DataTable,13,FALSE),IF(Table_Data_Table_1[[#This Row],[Valuation Method]]=\"Abstraction\",VLOOKUP(Table_Data_Table_1[[#This Row],[Item ID]],DataTable,6,FALSE)-VLOOKUP(Table_Data_Table_1[[#This Row],[Item ID]],DataTable,13,FALSE),IF(Table_Data_Table_1[[#This Row],[Valuation Method]]=\"Allocation\",VLOOKUP(Table_Data_Table_1[[#This Row],[Item ID]],DataTable,6,FALSE)*I437,\"\")))","v":""},{"$f":"IF(Table_Data_Table_1[[#This Row],[Valuation Method]]=\"Vacant\",\"N/A\",IF(Table_Data_Table_1[[#This Row],[Valuation Method]]=\"Abstraction\",Table_Data_Table_1[[#This Row],[Land\nResidual]]/VLOOKUP(Table_Data_Table_1[[#This Row],[Item ID]],DataTable,6,FALSE),IF(Table_Data_Table_1[[#This Row],[Valuation Method]]=\"Allocation\",'Global Settings'!$H$20,\"\")))","v":""},{"$f":"IFERROR(ROUND(Table_Data_Table_1[[#This Row],[Resid\nSq Ft]]/43560,3),\"\")","v":""},{"$f":"IF(Table_Data_Table_1[[#This Row],[Item ID]]=\"\",\"\",IFERROR(VLOOKUP(Table_Data_Table_1[[#This Row],[Item ID]],DataTable,10,FALSE)-VLOOKUP(Table_Data_Table_1[[#This Row],[Item ID]],DataTable,12,FALSE),\"\"))","v":""},{"$f":"IFERROR(Table_Data_Table_1[[#This Row],[Land\nResidual]]/Table_Data_Table_1[[#This Row],[Resid\nAcre]],\"\")","v":""},{"$f":"IFERROR(ROUND(Table_Data_Table_1[[#This Row],[Land\nResidual]]/Table_Data_Table_1[[#This Row],[Resid\nSq Ft]],2),\"\")","v":""},{"$f":"IF(Table_Data_Table_1[[#This Row],[Item ID]]=\"\",\"\",ROUND(DAYS360(Table_Data_Table_1[[#This Row],[Sale Date]],'Global Settings'!$H$5)/30,0))","v":""},{"$f":"IFERROR(IF(AND(Table_Data_Table_1[[#This Row],[Months To\nMid-Point]]<12.01,Table_Data_Table_1[[#This Row],[Months To\nMid-Point]]>-13),0,(Table_Data_Table_1[[#This Row],[Months To\nMid-Point]]*'Global Settings'!$H$6)),\"\")","v":""},{"$f":"IFERROR(Table_Data_Table_1[[#This Row],[Land\nResidual]]*(Table_Data_Table_1[[#This Row],[Time\nAdjust]]+1),\"\")","v":""},{"$f":"IFERROR(Table_Data_Table_1[[#This Row],[Adjusted\nSale Price]]/Table_Data_Table_1[[#This Row],[Resid\nAcre]],\"\")","v":""},{"$f":"IFERROR(ROUND(Table_Data_Table_1[[#This Row],[Adjusted\nSale Price]]/Table_Data_Table_1[[#This Row],[Resid\nSq Ft]],2),\"\")","v":""},{"$f":"IFERROR(IF(VLOOKUP(Table_Data_Table_1[[#This Row],[Item ID]],DataTable,11,FALSE)=0,\"N/A\",Table_Data_Table_1[[#This Row],[Adjusted\nSale Price]]/VLOOKUP(Table_Data_Table_1[[#This Row],[Item ID]],DataTable,11,FALSE)),\"\")","v":""},{"$f":"IF(IFERROR(VLOOKUP(Table_Data_Table_1[[#This Row],[Item ID]],DataTable,17,FALSE),\"\")=0,\"\",IFERROR(VLOOKUP(Table_Data_Table_1[[#This Row],[Item ID]],DataTable,17,FALSE),\"\"))","v":""}]
["",null,{"$f":"IF(Table_Data_Table_1[[#This Row],[Item ID]]=\"\",\"\",IFERROR(VLOOKUP(Table_Data_Table_1[[#This Row],[Item ID]],DataTable,16,FALSE),\"\"))","v":""},null,null,null,null,{"$f":"IF(Table_Data_Table_1[[#This Row],[Valuation Method]]=\"Vacant\",VLOOKUP(Table_Data_Table_1[[#This Row],[Item ID]],DataTable,6,FALSE)-VLOOKUP(Table_Data_Table_1[[#This Row],[Item ID]],DataTable,13,FALSE),IF(Table_Data_Table_1[[#This Row],[Valuation Method]]=\"Abstraction\",VLOOKUP(Table_Data_Table_1[[#This Row],[Item ID]],DataTable,6,FALSE)-VLOOKUP(Table_Data_Table_1[[#This Row],[Item ID]],DataTable,13,FALSE),IF(Table_Data_Table_1[[#This Row],[Valuation Method]]=\"Allocation\",VLOOKUP(Table_Data_Table_1[[#This Row],[Item ID]],DataTable,6,FALSE)*I438,\"\")))","v":""},{"$f":"IF(Table_Data_Table_1[[#This Row],[Valuation Method]]=\"Vacant\",\"N/A\",IF(Table_Data_Table_1[[#This Row],[Valuation Method]]=\"Abstraction\",Table_Data_Table_1[[#This Row],[Land\nResidual]]/VLOOKUP(Table_Data_Table_1[[#This Row],[Item ID]],DataTable,6,FALSE),IF(Table_Data_Table_1[[#This Row],[Valuation Method]]=\"Allocation\",'Global Settings'!$H$20,\"\")))","v":""},{"$f":"IFERROR(ROUND(Table_Data_Table_1[[#This Row],[Resid\nSq Ft]]/43560,3),\"\")","v":""},{"$f":"IF(Table_Data_Table_1[[#This Row],[Item ID]]=\"\",\"\",IFERROR(VLOOKUP(Table_Data_Table_1[[#This Row],[Item ID]],DataTable,10,FALSE)-VLOOKUP(Table_Data_Table_1[[#This Row],[Item ID]],DataTable,12,FALSE),\"\"))","v":""},{"$f":"IFERROR(Table_Data_Table_1[[#This Row],[Land\nResidual]]/Table_Data_Table_1[[#This Row],[Resid\nAcre]],\"\")","v":""},{"$f":"IFERROR(ROUND(Table_Data_Table_1[[#This Row],[Land\nResidual]]/Table_Data_Table_1[[#This Row],[Resid\nSq Ft]],2),\"\")","v":""},{"$f":"IF(Table_Data_Table_1[[#This Row],[Item ID]]=\"\",\"\",ROUND(DAYS360(Table_Data_Table_1[[#This Row],[Sale Date]],'Global Settings'!$H$5)/30,0))","v":""},{"$f":"IFERROR(IF(AND(Table_Data_Table_1[[#This Row],[Months To\nMid-Point]]<12.01,Table_Data_Table_1[[#This Row],[Months To\nMid-Point]]>-13),0,(Table_Data_Table_1[[#This Row],[Months To\nMid-Point]]*'Global Settings'!$H$6)),\"\")","v":""},{"$f":"IFERROR(Table_Data_Table_1[[#This Row],[Land\nResidual]]*(Table_Data_Table_1[[#This Row],[Time\nAdjust]]+1),\"\")","v":""},{"$f":"IFERROR(Table_Data_Table_1[[#This Row],[Adjusted\nSale Price]]/Table_Data_Table_1[[#This Row],[Resid\nAcre]],\"\")","v":""},{"$f":"IFERROR(ROUND(Table_Data_Table_1[[#This Row],[Adjusted\nSale Price]]/Table_Data_Table_1[[#This Row],[Resid\nSq Ft]],2),\"\")","v":""},{"$f":"IFERROR(IF(VLOOKUP(Table_Data_Table_1[[#This Row],[Item ID]],DataTable,11,FALSE)=0,\"N/A\",Table_Data_Table_1[[#This Row],[Adjusted\nSale Price]]/VLOOKUP(Table_Data_Table_1[[#This Row],[Item ID]],DataTable,11,FALSE)),\"\")","v":""},{"$f":"IF(IFERROR(VLOOKUP(Table_Data_Table_1[[#This Row],[Item ID]],DataTable,17,FALSE),\"\")=0,\"\",IFERROR(VLOOKUP(Table_Data_Table_1[[#This Row],[Item ID]],DataTable,17,FALSE),\"\"))","v":""}]
["",null,{"$f":"IF(Table_Data_Table_1[[#This Row],[Item ID]]=\"\",\"\",IFERROR(VLOOKUP(Table_Data_Table_1[[#This Row],[Item ID]],DataTable,16,FALSE),\"\"))","v":""},null,null,null,null,{"$f":"IF(Table_Data_Table_1[[#This Row],[Valuation Method]]=\"Vacant\",VLOOKUP(Table_Data_Table_1[[#This Row],[Item ID]],DataTable,6,FALSE)-VLOOKUP(Table_Data_Table_1[[#This Row],[Item ID]],DataTable,13,FALSE),IF(Table_Data_Table_1[[#This Row],[Valuation Method]]=\"Abstraction\",VLOOKUP(Table_Data_Table_1[[#This Row],[Item ID]],DataTable,6,FALSE)-VLOOKUP(Table_Data_Table_1[[#This Row],[Item ID]],DataTable,13,FALSE),IF(Table_Data_Table_1[[#This Row],[Valuation Method]]=\"Allocation\",VLOOKUP(Table_Data_Table_1[[#This Row],[Item ID]],DataTable,6,FALSE)*I439,\"\")))","v":""},{"$f":"IF(Table_Data_Table_1[[#This Row],[Valuation Method]]=\"Vacant\",\"N/A\",IF(Table_Data_Table_1[[#This Row],[Valuation Method]]=\"Abstraction\",Table_Data_Table_1[[#This Row],[Land\nResidual]]/VLOOKUP(Table_Data_Table_1[[#This Row],[Item ID]],DataTable,6,FALSE),IF(Table_Data_Table_1[[#This Row],[Valuation Method]]=\"Allocation\",'Global Settings'!$H$20,\"\")))","v":""},{"$f":"IFERROR(ROUND(Table_Data_Table_1[[#This Row],[Resid\nSq Ft]]/43560,3),\"\")","v":""},{"$f":"IF(Table_Data_Table_1[[#This Row],[Item ID]]=\"\",\"\",IFERROR(VLOOKUP(Table_Data_Table_1[[#This Row],[Item ID]],DataTable,10,FALSE)-VLOOKUP(Table_Data_Table_1[[#This Row],[Item ID]],DataTable,12,FALSE),\"\"))","v":""},{"$f":"IFERROR(Table_Data_Table_1[[#This Row],[Land\nResidual]]/Table_Data_Table_1[[#This Row],[Resid\nAcre]],\"\")","v":""},{"$f":"IFERROR(ROUND(Table_Data_Table_1[[#This Row],[Land\nResidual]]/Table_Data_Table_1[[#This Row],[Resid\nSq Ft]],2),\"\")","v":""},{"$f":"IF(Table_Data_Table_1[[#This Row],[Item ID]]=\"\",\"\",ROUND(DAYS360(Table_Data_Table_1[[#This Row],[Sale Date]],'Global Settings'!$H$5)/30,0))","v":""},{"$f":"IFERROR(IF(AND(Table_Data_Table_1[[#This Row],[Months To\nMid-Point]]<12.01,Table_Data_Table_1[[#This Row],[Months To\nMid-Point]]>-13),0,(Table_Data_Table_1[[#This Row],[Months To\nMid-Point]]*'Global Settings'!$H$6)),\"\")","v":""},{"$f":"IFERROR(Table_Data_Table_1[[#This Row],[Land\nResidual]]*(Table_Data_Table_1[[#This Row],[Time\nAdjust]]+1),\"\")","v":""},{"$f":"IFERROR(Table_Data_Table_1[[#This Row],[Adjusted\nSale Price]]/Table_Data_Table_1[[#This Row],[Resid\nAcre]],\"\")","v":""},{"$f":"IFERROR(ROUND(Table_Data_Table_1[[#This Row],[Adjusted\nSale Price]]/Table_Data_Table_1[[#This Row],[Resid\nSq Ft]],2),\"\")","v":""},{"$f":"IFERROR(IF(VLOOKUP(Table_Data_Table_1[[#This Row],[Item ID]],DataTable,11,FALSE)=0,\"N/A\",Table_Data_Table_1[[#This Row],[Adjusted\nSale Price]]/VLOOKUP(Table_Data_Table_1[[#This Row],[Item ID]],DataTable,11,FALSE)),\"\")","v":""},{"$f":"IF(IFERROR(VLOOKUP(Table_Data_Table_1[[#This Row],[Item ID]],DataTable,17,FALSE),\"\")=0,\"\",IFERROR(VLOOKUP(Table_Data_Table_1[[#This Row],[Item ID]],DataTable,17,FALSE),\"\"))","v":""}]
["",null,{"$f":"IF(Table_Data_Table_1[[#This Row],[Item ID]]=\"\",\"\",IFERROR(VLOOKUP(Table_Data_Table_1[[#This Row],[Item ID]],DataTable,16,FALSE),\"\"))","v":""},null,null,null,null,{"$f":"IF(Table_Data_Table_1[[#This Row],[Valuation Method]]=\"Vacant\",VLOOKUP(Table_Data_Table_1[[#This Row],[Item ID]],DataTable,6,FALSE)-VLOOKUP(Table_Data_Table_1[[#This Row],[Item ID]],DataTable,13,FALSE),IF(Table_Data_Table_1[[#This Row],[Valuation Method]]=\"Abstraction\",VLOOKUP(Table_Data_Table_1[[#This Row],[Item ID]],DataTable,6,FALSE)-VLOOKUP(Table_Data_Table_1[[#This Row],[Item ID]],DataTable,13,FALSE),IF(Table_Data_Table_1[[#This Row],[Valuation Method]]=\"Allocation\",VLOOKUP(Table_Data_Table_1[[#This Row],[Item ID]],DataTable,6,FALSE)*I440,\"\")))","v":""},{"$f":"IF(Table_Data_Table_1[[#This Row],[Valuation Method]]=\"Vacant\",\"N/A\",IF(Table_Data_Table_1[[#This Row],[Valuation Method]]=\"Abstraction\",Table_Data_Table_1[[#This Row],[Land\nResidual]]/VLOOKUP(Table_Data_Table_1[[#This Row],[Item ID]],DataTable,6,FALSE),IF(Table_Data_Table_1[[#This Row],[Valuation Method]]=\"Allocation\",'Global Settings'!$H$20,\"\")))","v":""},{"$f":"IFERROR(ROUND(Table_Data_Table_1[[#This Row],[Resid\nSq Ft]]/43560,3),\"\")","v":""},{"$f":"IF(Table_Data_Table_1[[#This Row],[Item ID]]=\"\",\"\",IFERROR(VLOOKUP(Table_Data_Table_1[[#This Row],[Item ID]],DataTable,10,FALSE)-VLOOKUP(Table_Data_Table_1[[#This Row],[Item ID]],DataTable,12,FALSE),\"\"))","v":""},{"$f":"IFERROR(Table_Data_Table_1[[#This Row],[Land\nResidual]]/Table_Data_Table_1[[#This Row],[Resid\nAcre]],\"\")","v":""},{"$f":"IFERROR(ROUND(Table_Data_Table_1[[#This Row],[Land\nResidual]]/Table_Data_Table_1[[#This Row],[Resid\nSq Ft]],2),\"\")","v":""},{"$f":"IF(Table_Data_Table_1[[#This Row],[Item ID]]=\"\",\"\",ROUND(DAYS360(Table_Data_Table_1[[#This Row],[Sale Date]],'Global Settings'!$H$5)/30,0))","v":""},{"$f":"IFERROR(IF(AND(Table_Data_Table_1[[#This Row],[Months To\nMid-Point]]<12.01,Table_Data_Table_1[[#This Row],[Months To\nMid-Point]]>-13),0,(Table_Data_Table_1[[#This Row],[Months To\nMid-Point]]*'Global Settings'!$H$6)),\"\")","v":""},{"$f":"IFERROR(Table_Data_Table_1[[#This Row],[Land\nResidual]]*(Table_Data_Table_1[[#This Row],[Time\nAdjust]]+1),\"\")","v":""},{"$f":"IFERROR(Table_Data_Table_1[[#This Row],[Adjusted\nSale Price]]/Table_Data_Table_1[[#This Row],[Resid\nAcre]],\"\")","v":""},{"$f":"IFERROR(ROUND(Table_Data_Table_1[[#This Row],[Adjusted\nSale Price]]/Table_Data_Table_1[[#This Row],[Resid\nSq Ft]],2),\"\")","v":""},{"$f":"IFERROR(IF(VLOOKUP(Table_Data_Table_1[[#This Row],[Item ID]],DataTable,11,FALSE)=0,\"N/A\",Table_Data_Table_1[[#This Row],[Adjusted\nSale Price]]/VLOOKUP(Table_Data_Table_1[[#This Row],[Item ID]],DataTable,11,FALSE)),\"\")","v":""},{"$f":"IF(IFERROR(VLOOKUP(Table_Data_Table_1[[#This Row],[Item ID]],DataTable,17,FALSE),\"\")=0,\"\",IFERROR(VLOOKUP(Table_Data_Table_1[[#This Row],[Item ID]],DataTable,17,FALSE),\"\"))","v":""}]
["",null,{"$f":"IF(Table_Data_Table_1[[#This Row],[Item ID]]=\"\",\"\",IFERROR(VLOOKUP(Table_Data_Table_1[[#This Row],[Item ID]],DataTable,16,FALSE),\"\"))","v":""},null,null,null,null,{"$f":"IF(Table_Data_Table_1[[#This Row],[Valuation Method]]=\"Vacant\",VLOOKUP(Table_Data_Table_1[[#This Row],[Item ID]],DataTable,6,FALSE)-VLOOKUP(Table_Data_Table_1[[#This Row],[Item ID]],DataTable,13,FALSE),IF(Table_Data_Table_1[[#This Row],[Valuation Method]]=\"Abstraction\",VLOOKUP(Table_Data_Table_1[[#This Row],[Item ID]],DataTable,6,FALSE)-VLOOKUP(Table_Data_Table_1[[#This Row],[Item ID]],DataTable,13,FALSE),IF(Table_Data_Table_1[[#This Row],[Valuation Method]]=\"Allocation\",VLOOKUP(Table_Data_Table_1[[#This Row],[Item ID]],DataTable,6,FALSE)*I441,\"\")))","v":""},{"$f":"IF(Table_Data_Table_1[[#This Row],[Valuation Method]]=\"Vacant\",\"N/A\",IF(Table_Data_Table_1[[#This Row],[Valuation Method]]=\"Abstraction\",Table_Data_Table_1[[#This Row],[Land\nResidual]]/VLOOKUP(Table_Data_Table_1[[#This Row],[Item ID]],DataTable,6,FALSE),IF(Table_Data_Table_1[[#This Row],[Valuation Method]]=\"Allocation\",'Global Settings'!$H$20,\"\")))","v":""},{"$f":"IFERROR(ROUND(Table_Data_Table_1[[#This Row],[Resid\nSq Ft]]/43560,3),\"\")","v":""},{"$f":"IF(Table_Data_Table_1[[#This Row],[Item ID]]=\"\",\"\",IFERROR(VLOOKUP(Table_Data_Table_1[[#This Row],[Item ID]],DataTable,10,FALSE)-VLOOKUP(Table_Data_Table_1[[#This Row],[Item ID]],DataTable,12,FALSE),\"\"))","v":""},{"$f":"IFERROR(Table_Data_Table_1[[#This Row],[Land\nResidual]]/Table_Data_Table_1[[#This Row],[Resid\nAcre]],\"\")","v":""},{"$f":"IFERROR(ROUND(Table_Data_Table_1[[#This Row],[Land\nResidual]]/Table_Data_Table_1[[#This Row],[Resid\nSq Ft]],2),\"\")","v":""},{"$f":"IF(Table_Data_Table_1[[#This Row],[Item ID]]=\"\",\"\",ROUND(DAYS360(Table_Data_Table_1[[#This Row],[Sale Date]],'Global Settings'!$H$5)/30,0))","v":""},{"$f":"IFERROR(IF(AND(Table_Data_Table_1[[#This Row],[Months To\nMid-Point]]<12.01,Table_Data_Table_1[[#This Row],[Months To\nMid-Point]]>-13),0,(Table_Data_Table_1[[#This Row],[Months To\nMid-Point]]*'Global Settings'!$H$6)),\"\")","v":""},{"$f":"IFERROR(Table_Data_Table_1[[#This Row],[Land\nResidual]]*(Table_Data_Table_1[[#This Row],[Time\nAdjust]]+1),\"\")","v":""},{"$f":"IFERROR(Table_Data_Table_1[[#This Row],[Adjusted\nSale Price]]/Table_Data_Table_1[[#This Row],[Resid\nAcre]],\"\")","v":""},{"$f":"IFERROR(ROUND(Table_Data_Table_1[[#This Row],[Adjusted\nSale Price]]/Table_Data_Table_1[[#This Row],[Resid\nSq Ft]],2),\"\")","v":""},{"$f":"IFERROR(IF(VLOOKUP(Table_Data_Table_1[[#This Row],[Item ID]],DataTable,11,FALSE)=0,\"N/A\",Table_Data_Table_1[[#This Row],[Adjusted\nSale Price]]/VLOOKUP(Table_Data_Table_1[[#This Row],[Item ID]],DataTable,11,FALSE)),\"\")","v":""},{"$f":"IF(IFERROR(VLOOKUP(Table_Data_Table_1[[#This Row],[Item ID]],DataTable,17,FALSE),\"\")=0,\"\",IFERROR(VLOOKUP(Table_Data_Table_1[[#This Row],[Item ID]],DataTable,17,FALSE),\"\"))","v":""}]
["",null,{"$f":"IF(Table_Data_Table_1[[#This Row],[Item ID]]=\"\",\"\",IFERROR(VLOOKUP(Table_Data_Table_1[[#This Row],[Item ID]],DataTable,16,FALSE),\"\"))","v":""},null,null,null,null,{"$f":"IF(Table_Data_Table_1[[#This Row],[Valuation Method]]=\"Vacant\",VLOOKUP(Table_Data_Table_1[[#This Row],[Item ID]],DataTable,6,FALSE)-VLOOKUP(Table_Data_Table_1[[#This Row],[Item ID]],DataTable,13,FALSE),IF(Table_Data_Table_1[[#This Row],[Valuation Method]]=\"Abstraction\",VLOOKUP(Table_Data_Table_1[[#This Row],[Item ID]],DataTable,6,FALSE)-VLOOKUP(Table_Data_Table_1[[#This Row],[Item ID]],DataTable,13,FALSE),IF(Table_Data_Table_1[[#This Row],[Valuation Method]]=\"Allocation\",VLOOKUP(Table_Data_Table_1[[#This Row],[Item ID]],DataTable,6,FALSE)*I442,\"\")))","v":""},{"$f":"IF(Table_Data_Table_1[[#This Row],[Valuation Method]]=\"Vacant\",\"N/A\",IF(Table_Data_Table_1[[#This Row],[Valuation Method]]=\"Abstraction\",Table_Data_Table_1[[#This Row],[Land\nResidual]]/VLOOKUP(Table_Data_Table_1[[#This Row],[Item ID]],DataTable,6,FALSE),IF(Table_Data_Table_1[[#This Row],[Valuation Method]]=\"Allocation\",'Global Settings'!$H$20,\"\")))","v":""},{"$f":"IFERROR(ROUND(Table_Data_Table_1[[#This Row],[Resid\nSq Ft]]/43560,3),\"\")","v":""},{"$f":"IF(Table_Data_Table_1[[#This Row],[Item ID]]=\"\",\"\",IFERROR(VLOOKUP(Table_Data_Table_1[[#This Row],[Item ID]],DataTable,10,FALSE)-VLOOKUP(Table_Data_Table_1[[#This Row],[Item ID]],DataTable,12,FALSE),\"\"))","v":""},{"$f":"IFERROR(Table_Data_Table_1[[#This Row],[Land\nResidual]]/Table_Data_Table_1[[#This Row],[Resid\nAcre]],\"\")","v":""},{"$f":"IFERROR(ROUND(Table_Data_Table_1[[#This Row],[Land\nResidual]]/Table_Data_Table_1[[#This Row],[Resid\nSq Ft]],2),\"\")","v":""},{"$f":"IF(Table_Data_Table_1[[#This Row],[Item ID]]=\"\",\"\",ROUND(DAYS360(Table_Data_Table_1[[#This Row],[Sale Date]],'Global Settings'!$H$5)/30,0))","v":""},{"$f":"IFERROR(IF(AND(Table_Data_Table_1[[#This Row],[Months To\nMid-Point]]<12.01,Table_Data_Table_1[[#This Row],[Months To\nMid-Point]]>-13),0,(Table_Data_Table_1[[#This Row],[Months To\nMid-Point]]*'Global Settings'!$H$6)),\"\")","v":""},{"$f":"IFERROR(Table_Data_Table_1[[#This Row],[Land\nResidual]]*(Table_Data_Table_1[[#This Row],[Time\nAdjust]]+1),\"\")","v":""},{"$f":"IFERROR(Table_Data_Table_1[[#This Row],[Adjusted\nSale Price]]/Table_Data_Table_1[[#This Row],[Resid\nAcre]],\"\")","v":""},{"$f":"IFERROR(ROUND(Table_Data_Table_1[[#This Row],[Adjusted\nSale Price]]/Table_Data_Table_1[[#This Row],[Resid\nSq Ft]],2),\"\")","v":""},{"$f":"IFERROR(IF(VLOOKUP(Table_Data_Table_1[[#This Row],[Item ID]],DataTable,11,FALSE)=0,\"N/A\",Table_Data_Table_1[[#This Row],[Adjusted\nSale Price]]/VLOOKUP(Table_Data_Table_1[[#This Row],[Item ID]],DataTable,11,FALSE)),\"\")","v":""},{"$f":"IF(IFERROR(VLOOKUP(Table_Data_Table_1[[#This Row],[Item ID]],DataTable,17,FALSE),\"\")=0,\"\",IFERROR(VLOOKUP(Table_Data_Table_1[[#This Row],[Item ID]],DataTable,17,FALSE),\"\"))","v":""}]
["",null,{"$f":"IF(Table_Data_Table_1[[#This Row],[Item ID]]=\"\",\"\",IFERROR(VLOOKUP(Table_Data_Table_1[[#This Row],[Item ID]],DataTable,16,FALSE),\"\"))","v":""},null,null,null,null,{"$f":"IF(Table_Data_Table_1[[#This Row],[Valuation Method]]=\"Vacant\",VLOOKUP(Table_Data_Table_1[[#This Row],[Item ID]],DataTable,6,FALSE)-VLOOKUP(Table_Data_Table_1[[#This Row],[Item ID]],DataTable,13,FALSE),IF(Table_Data_Table_1[[#This Row],[Valuation Method]]=\"Abstraction\",VLOOKUP(Table_Data_Table_1[[#This Row],[Item ID]],DataTable,6,FALSE)-VLOOKUP(Table_Data_Table_1[[#This Row],[Item ID]],DataTable,13,FALSE),IF(Table_Data_Table_1[[#This Row],[Valuation Method]]=\"Allocation\",VLOOKUP(Table_Data_Table_1[[#This Row],[Item ID]],DataTable,6,FALSE)*I443,\"\")))","v":""},{"$f":"IF(Table_Data_Table_1[[#This Row],[Valuation Method]]=\"Vacant\",\"N/A\",IF(Table_Data_Table_1[[#This Row],[Valuation Method]]=\"Abstraction\",Table_Data_Table_1[[#This Row],[Land\nResidual]]/VLOOKUP(Table_Data_Table_1[[#This Row],[Item ID]],DataTable,6,FALSE),IF(Table_Data_Table_1[[#This Row],[Valuation Method]]=\"Allocation\",'Global Settings'!$H$20,\"\")))","v":""},{"$f":"IFERROR(ROUND(Table_Data_Table_1[[#This Row],[Resid\nSq Ft]]/43560,3),\"\")","v":""},{"$f":"IF(Table_Data_Table_1[[#This Row],[Item ID]]=\"\",\"\",IFERROR(VLOOKUP(Table_Data_Table_1[[#This Row],[Item ID]],DataTable,10,FALSE)-VLOOKUP(Table_Data_Table_1[[#This Row],[Item ID]],DataTable,12,FALSE),\"\"))","v":""},{"$f":"IFERROR(Table_Data_Table_1[[#This Row],[Land\nResidual]]/Table_Data_Table_1[[#This Row],[Resid\nAcre]],\"\")","v":""},{"$f":"IFERROR(ROUND(Table_Data_Table_1[[#This Row],[Land\nResidual]]/Table_Data_Table_1[[#This Row],[Resid\nSq Ft]],2),\"\")","v":""},{"$f":"IF(Table_Data_Table_1[[#This Row],[Item ID]]=\"\",\"\",ROUND(DAYS360(Table_Data_Table_1[[#This Row],[Sale Date]],'Global Settings'!$H$5)/30,0))","v":""},{"$f":"IFERROR(IF(AND(Table_Data_Table_1[[#This Row],[Months To\nMid-Point]]<12.01,Table_Data_Table_1[[#This Row],[Months To\nMid-Point]]>-13),0,(Table_Data_Table_1[[#This Row],[Months To\nMid-Point]]*'Global Settings'!$H$6)),\"\")","v":""},{"$f":"IFERROR(Table_Data_Table_1[[#This Row],[Land\nResidual]]*(Table_Data_Table_1[[#This Row],[Time\nAdjust]]+1),\"\")","v":""},{"$f":"IFERROR(Table_Data_Table_1[[#This Row],[Adjusted\nSale Price]]/Table_Data_Table_1[[#This Row],[Resid\nAcre]],\"\")","v":""},{"$f":"IFERROR(ROUND(Table_Data_Table_1[[#This Row],[Adjusted\nSale Price]]/Table_Data_Table_1[[#This Row],[Resid\nSq Ft]],2),\"\")","v":""},{"$f":"IFERROR(IF(VLOOKUP(Table_Data_Table_1[[#This Row],[Item ID]],DataTable,11,FALSE)=0,\"N/A\",Table_Data_Table_1[[#This Row],[Adjusted\nSale Price]]/VLOOKUP(Table_Data_Table_1[[#This Row],[Item ID]],DataTable,11,FALSE)),\"\")","v":""},{"$f":"IF(IFERROR(VLOOKUP(Table_Data_Table_1[[#This Row],[Item ID]],DataTable,17,FALSE),\"\")=0,\"\",IFERROR(VLOOKUP(Table_Data_Table_1[[#This Row],[Item ID]],DataTable,17,FALSE),\"\"))","v":""}]
["",null,{"$f":"IF(Table_Data_Table_1[[#This Row],[Item ID]]=\"\",\"\",IFERROR(VLOOKUP(Table_Data_Table_1[[#This Row],[Item ID]],DataTable,16,FALSE),\"\"))","v":""},null,null,null,null,{"$f":"IF(Table_Data_Table_1[[#This Row],[Valuation Method]]=\"Vacant\",VLOOKUP(Table_Data_Table_1[[#This Row],[Item ID]],DataTable,6,FALSE)-VLOOKUP(Table_Data_Table_1[[#This Row],[Item ID]],DataTable,13,FALSE),IF(Table_Data_Table_1[[#This Row],[Valuation Method]]=\"Abstraction\",VLOOKUP(Table_Data_Table_1[[#This Row],[Item ID]],DataTable,6,FALSE)-VLOOKUP(Table_Data_Table_1[[#This Row],[Item ID]],DataTable,13,FALSE),IF(Table_Data_Table_1[[#This Row],[Valuation Method]]=\"Allocation\",VLOOKUP(Table_Data_Table_1[[#This Row],[Item ID]],DataTable,6,FALSE)*I444,\"\")))","v":""},{"$f":"IF(Table_Data_Table_1[[#This Row],[Valuation Method]]=\"Vacant\",\"N/A\",IF(Table_Data_Table_1[[#This Row],[Valuation Method]]=\"Abstraction\",Table_Data_Table_1[[#This Row],[Land\nResidual]]/VLOOKUP(Table_Data_Table_1[[#This Row],[Item ID]],DataTable,6,FALSE),IF(Table_Data_Table_1[[#This Row],[Valuation Method]]=\"Allocation\",'Global Settings'!$H$20,\"\")))","v":""},{"$f":"IFERROR(ROUND(Table_Data_Table_1[[#This Row],[Resid\nSq Ft]]/43560,3),\"\")","v":""},{"$f":"IF(Table_Data_Table_1[[#This Row],[Item ID]]=\"\",\"\",IFERROR(VLOOKUP(Table_Data_Table_1[[#This Row],[Item ID]],DataTable,10,FALSE)-VLOOKUP(Table_Data_Table_1[[#This Row],[Item ID]],DataTable,12,FALSE),\"\"))","v":""},{"$f":"IFERROR(Table_Data_Table_1[[#This Row],[Land\nResidual]]/Table_Data_Table_1[[#This Row],[Resid\nAcre]],\"\")","v":""},{"$f":"IFERROR(ROUND(Table_Data_Table_1[[#This Row],[Land\nResidual]]/Table_Data_Table_1[[#This Row],[Resid\nSq Ft]],2),\"\")","v":""},{"$f":"IF(Table_Data_Table_1[[#This Row],[Item ID]]=\"\",\"\",ROUND(DAYS360(Table_Data_Table_1[[#This Row],[Sale Date]],'Global Settings'!$H$5)/30,0))","v":""},{"$f":"IFERROR(IF(AND(Table_Data_Table_1[[#This Row],[Months To\nMid-Point]]<12.01,Table_Data_Table_1[[#This Row],[Months To\nMid-Point]]>-13),0,(Table_Data_Table_1[[#This Row],[Months To\nMid-Point]]*'Global Settings'!$H$6)),\"\")","v":""},{"$f":"IFERROR(Table_Data_Table_1[[#This Row],[Land\nResidual]]*(Table_Data_Table_1[[#This Row],[Time\nAdjust]]+1),\"\")","v":""},{"$f":"IFERROR(Table_Data_Table_1[[#This Row],[Adjusted\nSale Price]]/Table_Data_Table_1[[#This Row],[Resid\nAcre]],\"\")","v":""},{"$f":"IFERROR(ROUND(Table_Data_Table_1[[#This Row],[Adjusted\nSale Price]]/Table_Data_Table_1[[#This Row],[Resid\nSq Ft]],2),\"\")","v":""},{"$f":"IFERROR(IF(VLOOKUP(Table_Data_Table_1[[#This Row],[Item ID]],DataTable,11,FALSE)=0,\"N/A\",Table_Data_Table_1[[#This Row],[Adjusted\nSale Price]]/VLOOKUP(Table_Data_Table_1[[#This Row],[Item ID]],DataTable,11,FALSE)),\"\")","v":""},{"$f":"IF(IFERROR(VLOOKUP(Table_Data_Table_1[[#This Row],[Item ID]],DataTable,17,FALSE),\"\")=0,\"\",IFERROR(VLOOKUP(Table_Data_Table_1[[#This Row],[Item ID]],DataTable,17,FALSE),\"\"))","v":""}]
["",null,{"$f":"IF(Table_Data_Table_1[[#This Row],[Item ID]]=\"\",\"\",IFERROR(VLOOKUP(Table_Data_Table_1[[#This Row],[Item ID]],DataTable,16,FALSE),\"\"))","v":""},null,null,null,null,{"$f":"IF(Table_Data_Table_1[[#This Row],[Valuation Method]]=\"Vacant\",VLOOKUP(Table_Data_Table_1[[#This Row],[Item ID]],DataTable,6,FALSE)-VLOOKUP(Table_Data_Table_1[[#This Row],[Item ID]],DataTable,13,FALSE),IF(Table_Data_Table_1[[#This Row],[Valuation Method]]=\"Abstraction\",VLOOKUP(Table_Data_Table_1[[#This Row],[Item ID]],DataTable,6,FALSE)-VLOOKUP(Table_Data_Table_1[[#This Row],[Item ID]],DataTable,13,FALSE),IF(Table_Data_Table_1[[#This Row],[Valuation Method]]=\"Allocation\",VLOOKUP(Table_Data_Table_1[[#This Row],[Item ID]],DataTable,6,FALSE)*I445,\"\")))","v":""},{"$f":"IF(Table_Data_Table_1[[#This Row],[Valuation Method]]=\"Vacant\",\"N/A\",IF(Table_Data_Table_1[[#This Row],[Valuation Method]]=\"Abstraction\",Table_Data_Table_1[[#This Row],[Land\nResidual]]/VLOOKUP(Table_Data_Table_1[[#This Row],[Item ID]],DataTable,6,FALSE),IF(Table_Data_Table_1[[#This Row],[Valuation Method]]=\"Allocation\",'Global Settings'!$H$20,\"\")))","v":""},{"$f":"IFERROR(ROUND(Table_Data_Table_1[[#This Row],[Resid\nSq Ft]]/43560,3),\"\")","v":""},{"$f":"IF(Table_Data_Table_1[[#This Row],[Item ID]]=\"\",\"\",IFERROR(VLOOKUP(Table_Data_Table_1[[#This Row],[Item ID]],DataTable,10,FALSE)-VLOOKUP(Table_Data_Table_1[[#This Row],[Item ID]],DataTable,12,FALSE),\"\"))","v":""},{"$f":"IFERROR(Table_Data_Table_1[[#This Row],[Land\nResidual]]/Table_Data_Table_1[[#This Row],[Resid\nAcre]],\"\")","v":""},{"$f":"IFERROR(ROUND(Table_Data_Table_1[[#This Row],[Land\nResidual]]/Table_Data_Table_1[[#This Row],[Resid\nSq Ft]],2),\"\")","v":""},{"$f":"IF(Table_Data_Table_1[[#This Row],[Item ID]]=\"\",\"\",ROUND(DAYS360(Table_Data_Table_1[[#This Row],[Sale Date]],'Global Settings'!$H$5)/30,0))","v":""},{"$f":"IFERROR(IF(AND(Table_Data_Table_1[[#This Row],[Months To\nMid-Point]]<12.01,Table_Data_Table_1[[#This Row],[Months To\nMid-Point]]>-13),0,(Table_Data_Table_1[[#This Row],[Months To\nMid-Point]]*'Global Settings'!$H$6)),\"\")","v":""},{"$f":"IFERROR(Table_Data_Table_1[[#This Row],[Land\nResidual]]*(Table_Data_Table_1[[#This Row],[Time\nAdjust]]+1),\"\")","v":""},{"$f":"IFERROR(Table_Data_Table_1[[#This Row],[Adjusted\nSale Price]]/Table_Data_Table_1[[#This Row],[Resid\nAcre]],\"\")","v":""},{"$f":"IFERROR(ROUND(Table_Data_Table_1[[#This Row],[Adjusted\nSale Price]]/Table_Data_Table_1[[#This Row],[Resid\nSq Ft]],2),\"\")","v":""},{"$f":"IFERROR(IF(VLOOKUP(Table_Data_Table_1[[#This Row],[Item ID]],DataTable,11,FALSE)=0,\"N/A\",Table_Data_Table_1[[#This Row],[Adjusted\nSale Price]]/VLOOKUP(Table_Data_Table_1[[#This Row],[Item ID]],DataTable,11,FALSE)),\"\")","v":""},{"$f":"IF(IFERROR(VLOOKUP(Table_Data_Table_1[[#This Row],[Item ID]],DataTable,17,FALSE),\"\")=0,\"\",IFERROR(VLOOKUP(Table_Data_Table_1[[#This Row],[Item ID]],DataTable,17,FALSE),\"\"))","v":""}]
["",null,{"$f":"IF(Table_Data_Table_1[[#This Row],[Item ID]]=\"\",\"\",IFERROR(VLOOKUP(Table_Data_Table_1[[#This Row],[Item ID]],DataTable,16,FALSE),\"\"))","v":""},null,null,null,null,{"$f":"IF(Table_Data_Table_1[[#This Row],[Valuation Method]]=\"Vacant\",VLOOKUP(Table_Data_Table_1[[#This Row],[Item ID]],DataTable,6,FALSE)-VLOOKUP(Table_Data_Table_1[[#This Row],[Item ID]],DataTable,13,FALSE),IF(Table_Data_Table_1[[#This Row],[Valuation Method]]=\"Abstraction\",VLOOKUP(Table_Data_Table_1[[#This Row],[Item ID]],DataTable,6,FALSE)-VLOOKUP(Table_Data_Table_1[[#This Row],[Item ID]],DataTable,13,FALSE),IF(Table_Data_Table_1[[#This Row],[Valuation Method]]=\"Allocation\",VLOOKUP(Table_Data_Table_1[[#This Row],[Item ID]],DataTable,6,FALSE)*I446,\"\")))","v":""},{"$f":"IF(Table_Data_Table_1[[#This Row],[Valuation Method]]=\"Vacant\",\"N/A\",IF(Table_Data_Table_1[[#This Row],[Valuation Method]]=\"Abstraction\",Table_Data_Table_1[[#This Row],[Land\nResidual]]/VLOOKUP(Table_Data_Table_1[[#This Row],[Item ID]],DataTable,6,FALSE),IF(Table_Data_Table_1[[#This Row],[Valuation Method]]=\"Allocation\",'Global Settings'!$H$20,\"\")))","v":""},{"$f":"IFERROR(ROUND(Table_Data_Table_1[[#This Row],[Resid\nSq Ft]]/43560,3),\"\")","v":""},{"$f":"IF(Table_Data_Table_1[[#This Row],[Item ID]]=\"\",\"\",IFERROR(VLOOKUP(Table_Data_Table_1[[#This Row],[Item ID]],DataTable,10,FALSE)-VLOOKUP(Table_Data_Table_1[[#This Row],[Item ID]],DataTable,12,FALSE),\"\"))","v":""},{"$f":"IFERROR(Table_Data_Table_1[[#This Row],[Land\nResidual]]/Table_Data_Table_1[[#This Row],[Resid\nAcre]],\"\")","v":""},{"$f":"IFERROR(ROUND(Table_Data_Table_1[[#This Row],[Land\nResidual]]/Table_Data_Table_1[[#This Row],[Resid\nSq Ft]],2),\"\")","v":""},{"$f":"IF(Table_Data_Table_1[[#This Row],[Item ID]]=\"\",\"\",ROUND(DAYS360(Table_Data_Table_1[[#This Row],[Sale Date]],'Global Settings'!$H$5)/30,0))","v":""},{"$f":"IFERROR(IF(AND(Table_Data_Table_1[[#This Row],[Months To\nMid-Point]]<12.01,Table_Data_Table_1[[#This Row],[Months To\nMid-Point]]>-13),0,(Table_Data_Table_1[[#This Row],[Months To\nMid-Point]]*'Global Settings'!$H$6)),\"\")","v":""},{"$f":"IFERROR(Table_Data_Table_1[[#This Row],[Land\nResidual]]*(Table_Data_Table_1[[#This Row],[Time\nAdjust]]+1),\"\")","v":""},{"$f":"IFERROR(Table_Data_Table_1[[#This Row],[Adjusted\nSale Price]]/Table_Data_Table_1[[#This Row],[Resid\nAcre]],\"\")","v":""},{"$f":"IFERROR(ROUND(Table_Data_Table_1[[#This Row],[Adjusted\nSale Price]]/Table_Data_Table_1[[#This Row],[Resid\nSq Ft]],2),\"\")","v":""},{"$f":"IFERROR(IF(VLOOKUP(Table_Data_Table_1[[#This Row],[Item ID]],DataTable,11,FALSE)=0,\"N/A\",Table_Data_Table_1[[#This Row],[Adjusted\nSale Price]]/VLOOKUP(Table_Data_Table_1[[#This Row],[Item ID]],DataTable,11,FALSE)),\"\")","v":""},{"$f":"IF(IFERROR(VLOOKUP(Table_Data_Table_1[[#This Row],[Item ID]],DataTable,17,FALSE),\"\")=0,\"\",IFERROR(VLOOKUP(Table_Data_Table_1[[#This Row],[Item ID]],DataTable,17,FALSE),\"\"))","v":""}]
["",null,{"$f":"IF(Table_Data_Table_1[[#This Row],[Item ID]]=\"\",\"\",IFERROR(VLOOKUP(Table_Data_Table_1[[#This Row],[Item ID]],DataTable,16,FALSE),\"\"))","v":""},null,null,null,null,{"$f":"IF(Table_Data_Table_1[[#This Row],[Valuation Method]]=\"Vacant\",VLOOKUP(Table_Data_Table_1[[#This Row],[Item ID]],DataTable,6,FALSE)-VLOOKUP(Table_Data_Table_1[[#This Row],[Item ID]],DataTable,13,FALSE),IF(Table_Data_Table_1[[#This Row],[Valuation Method]]=\"Abstraction\",VLOOKUP(Table_Data_Table_1[[#This Row],[Item ID]],DataTable,6,FALSE)-VLOOKUP(Table_Data_Table_1[[#This Row],[Item ID]],DataTable,13,FALSE),IF(Table_Data_Table_1[[#This Row],[Valuation Method]]=\"Allocation\",VLOOKUP(Table_Data_Table_1[[#This Row],[Item ID]],DataTable,6,FALSE)*I447,\"\")))","v":""},{"$f":"IF(Table_Data_Table_1[[#This Row],[Valuation Method]]=\"Vacant\",\"N/A\",IF(Table_Data_Table_1[[#This Row],[Valuation Method]]=\"Abstraction\",Table_Data_Table_1[[#This Row],[Land\nResidual]]/VLOOKUP(Table_Data_Table_1[[#This Row],[Item ID]],DataTable,6,FALSE),IF(Table_Data_Table_1[[#This Row],[Valuation Method]]=\"Allocation\",'Global Settings'!$H$20,\"\")))","v":""},{"$f":"IFERROR(ROUND(Table_Data_Table_1[[#This Row],[Resid\nSq Ft]]/43560,3),\"\")","v":""},{"$f":"IF(Table_Data_Table_1[[#This Row],[Item ID]]=\"\",\"\",IFERROR(VLOOKUP(Table_Data_Table_1[[#This Row],[Item ID]],DataTable,10,FALSE)-VLOOKUP(Table_Data_Table_1[[#This Row],[Item ID]],DataTable,12,FALSE),\"\"))","v":""},{"$f":"IFERROR(Table_Data_Table_1[[#This Row],[Land\nResidual]]/Table_Data_Table_1[[#This Row],[Resid\nAcre]],\"\")","v":""},{"$f":"IFERROR(ROUND(Table_Data_Table_1[[#This Row],[Land\nResidual]]/Table_Data_Table_1[[#This Row],[Resid\nSq Ft]],2),\"\")","v":""},{"$f":"IF(Table_Data_Table_1[[#This Row],[Item ID]]=\"\",\"\",ROUND(DAYS360(Table_Data_Table_1[[#This Row],[Sale Date]],'Global Settings'!$H$5)/30,0))","v":""},{"$f":"IFERROR(IF(AND(Table_Data_Table_1[[#This Row],[Months To\nMid-Point]]<12.01,Table_Data_Table_1[[#This Row],[Months To\nMid-Point]]>-13),0,(Table_Data_Table_1[[#This Row],[Months To\nMid-Point]]*'Global Settings'!$H$6)),\"\")","v":""},{"$f":"IFERROR(Table_Data_Table_1[[#This Row],[Land\nResidual]]*(Table_Data_Table_1[[#This Row],[Time\nAdjust]]+1),\"\")","v":""},{"$f":"IFERROR(Table_Data_Table_1[[#This Row],[Adjusted\nSale Price]]/Table_Data_Table_1[[#This Row],[Resid\nAcre]],\"\")","v":""},{"$f":"IFERROR(ROUND(Table_Data_Table_1[[#This Row],[Adjusted\nSale Price]]/Table_Data_Table_1[[#This Row],[Resid\nSq Ft]],2),\"\")","v":""},{"$f":"IFERROR(IF(VLOOKUP(Table_Data_Table_1[[#This Row],[Item ID]],DataTable,11,FALSE)=0,\"N/A\",Table_Data_Table_1[[#This Row],[Adjusted\nSale Price]]/VLOOKUP(Table_Data_Table_1[[#This Row],[Item ID]],DataTable,11,FALSE)),\"\")","v":""},{"$f":"IF(IFERROR(VLOOKUP(Table_Data_Table_1[[#This Row],[Item ID]],DataTable,17,FALSE),\"\")=0,\"\",IFERROR(VLOOKUP(Table_Data_Table_1[[#This Row],[Item ID]],DataTable,17,FALSE),\"\"))","v":""}]
["",null,{"$f":"IF(Table_Data_Table_1[[#This Row],[Item ID]]=\"\",\"\",IFERROR(VLOOKUP(Table_Data_Table_1[[#This Row],[Item ID]],DataTable,16,FALSE),\"\"))","v":""},null,null,null,null,{"$f":"IF(Table_Data_Table_1[[#This Row],[Valuation Method]]=\"Vacant\",VLOOKUP(Table_Data_Table_1[[#This Row],[Item ID]],DataTable,6,FALSE)-VLOOKUP(Table_Data_Table_1[[#This Row],[Item ID]],DataTable,13,FALSE),IF(Table_Data_Table_1[[#This Row],[Valuation Method]]=\"Abstraction\",VLOOKUP(Table_Data_Table_1[[#This Row],[Item ID]],DataTable,6,FALSE)-VLOOKUP(Table_Data_Table_1[[#This Row],[Item ID]],DataTable,13,FALSE),IF(Table_Data_Table_1[[#This Row],[Valuation Method]]=\"Allocation\",VLOOKUP(Table_Data_Table_1[[#This Row],[Item ID]],DataTable,6,FALSE)*I448,\"\")))","v":""},{"$f":"IF(Table_Data_Table_1[[#This Row],[Valuation Method]]=\"Vacant\",\"N/A\",IF(Table_Data_Table_1[[#This Row],[Valuation Method]]=\"Abstraction\",Table_Data_Table_1[[#This Row],[Land\nResidual]]/VLOOKUP(Table_Data_Table_1[[#This Row],[Item ID]],DataTable,6,FALSE),IF(Table_Data_Table_1[[#This Row],[Valuation Method]]=\"Allocation\",'Global Settings'!$H$20,\"\")))","v":""},{"$f":"IFERROR(ROUND(Table_Data_Table_1[[#This Row],[Resid\nSq Ft]]/43560,3),\"\")","v":""},{"$f":"IF(Table_Data_Table_1[[#This Row],[Item ID]]=\"\",\"\",IFERROR(VLOOKUP(Table_Data_Table_1[[#This Row],[Item ID]],DataTable,10,FALSE)-VLOOKUP(Table_Data_Table_1[[#This Row],[Item ID]],DataTable,12,FALSE),\"\"))","v":""},{"$f":"IFERROR(Table_Data_Table_1[[#This Row],[Land\nResidual]]/Table_Data_Table_1[[#This Row],[Resid\nAcre]],\"\")","v":""},{"$f":"IFERROR(ROUND(Table_Data_Table_1[[#This Row],[Land\nResidual]]/Table_Data_Table_1[[#This Row],[Resid\nSq Ft]],2),\"\")","v":""},{"$f":"IF(Table_Data_Table_1[[#This Row],[Item ID]]=\"\",\"\",ROUND(DAYS360(Table_Data_Table_1[[#This Row],[Sale Date]],'Global Settings'!$H$5)/30,0))","v":""},{"$f":"IFERROR(IF(AND(Table_Data_Table_1[[#This Row],[Months To\nMid-Point]]<12.01,Table_Data_Table_1[[#This Row],[Months To\nMid-Point]]>-13),0,(Table_Data_Table_1[[#This Row],[Months To\nMid-Point]]*'Global Settings'!$H$6)),\"\")","v":""},{"$f":"IFERROR(Table_Data_Table_1[[#This Row],[Land\nResidual]]*(Table_Data_Table_1[[#This Row],[Time\nAdjust]]+1),\"\")","v":""},{"$f":"IFERROR(Table_Data_Table_1[[#This Row],[Adjusted\nSale Price]]/Table_Data_Table_1[[#This Row],[Resid\nAcre]],\"\")","v":""},{"$f":"IFERROR(ROUND(Table_Data_Table_1[[#This Row],[Adjusted\nSale Price]]/Table_Data_Table_1[[#This Row],[Resid\nSq Ft]],2),\"\")","v":""},{"$f":"IFERROR(IF(VLOOKUP(Table_Data_Table_1[[#This Row],[Item ID]],DataTable,11,FALSE)=0,\"N/A\",Table_Data_Table_1[[#This Row],[Adjusted\nSale Price]]/VLOOKUP(Table_Data_Table_1[[#This Row],[Item ID]],DataTable,11,FALSE)),\"\")","v":""},{"$f":"IF(IFERROR(VLOOKUP(Table_Data_Table_1[[#This Row],[Item ID]],DataTable,17,FALSE),\"\")=0,\"\",IFERROR(VLOOKUP(Table_Data_Table_1[[#This Row],[Item ID]],DataTable,17,FALSE),\"\"))","v":""}]
["",null,{"$f":"IF(Table_Data_Table_1[[#This Row],[Item ID]]=\"\",\"\",IFERROR(VLOOKUP(Table_Data_Table_1[[#This Row],[Item ID]],DataTable,16,FALSE),\"\"))","v":""},null,null,null,null,{"$f":"IF(Table_Data_Table_1[[#This Row],[Valuation Method]]=\"Vacant\",VLOOKUP(Table_Data_Table_1[[#This Row],[Item ID]],DataTable,6,FALSE)-VLOOKUP(Table_Data_Table_1[[#This Row],[Item ID]],DataTable,13,FALSE),IF(Table_Data_Table_1[[#This Row],[Valuation Method]]=\"Abstraction\",VLOOKUP(Table_Data_Table_1[[#This Row],[Item ID]],DataTable,6,FALSE)-VLOOKUP(Table_Data_Table_1[[#This Row],[Item ID]],DataTable,13,FALSE),IF(Table_Data_Table_1[[#This Row],[Valuation Method]]=\"Allocation\",VLOOKUP(Table_Data_Table_1[[#This Row],[Item ID]],DataTable,6,FALSE)*I449,\"\")))","v":""},{"$f":"IF(Table_Data_Table_1[[#This Row],[Valuation Method]]=\"Vacant\",\"N/A\",IF(Table_Data_Table_1[[#This Row],[Valuation Method]]=\"Abstraction\",Table_Data_Table_1[[#This Row],[Land\nResidual]]/VLOOKUP(Table_Data_Table_1[[#This Row],[Item ID]],DataTable,6,FALSE),IF(Table_Data_Table_1[[#This Row],[Valuation Method]]=\"Allocation\",'Global Settings'!$H$20,\"\")))","v":""},{"$f":"IFERROR(ROUND(Table_Data_Table_1[[#This Row],[Resid\nSq Ft]]/43560,3),\"\")","v":""},{"$f":"IF(Table_Data_Table_1[[#This Row],[Item ID]]=\"\",\"\",IFERROR(VLOOKUP(Table_Data_Table_1[[#This Row],[Item ID]],DataTable,10,FALSE)-VLOOKUP(Table_Data_Table_1[[#This Row],[Item ID]],DataTable,12,FALSE),\"\"))","v":""},{"$f":"IFERROR(Table_Data_Table_1[[#This Row],[Land\nResidual]]/Table_Data_Table_1[[#This Row],[Resid\nAcre]],\"\")","v":""},{"$f":"IFERROR(ROUND(Table_Data_Table_1[[#This Row],[Land\nResidual]]/Table_Data_Table_1[[#This Row],[Resid\nSq Ft]],2),\"\")","v":""},{"$f":"IF(Table_Data_Table_1[[#This Row],[Item ID]]=\"\",\"\",ROUND(DAYS360(Table_Data_Table_1[[#This Row],[Sale Date]],'Global Settings'!$H$5)/30,0))","v":""},{"$f":"IFERROR(IF(AND(Table_Data_Table_1[[#This Row],[Months To\nMid-Point]]<12.01,Table_Data_Table_1[[#This Row],[Months To\nMid-Point]]>-13),0,(Table_Data_Table_1[[#This Row],[Months To\nMid-Point]]*'Global Settings'!$H$6)),\"\")","v":""},{"$f":"IFERROR(Table_Data_Table_1[[#This Row],[Land\nResidual]]*(Table_Data_Table_1[[#This Row],[Time\nAdjust]]+1),\"\")","v":""},{"$f":"IFERROR(Table_Data_Table_1[[#This Row],[Adjusted\nSale Price]]/Table_Data_Table_1[[#This Row],[Resid\nAcre]],\"\")","v":""},{"$f":"IFERROR(ROUND(Table_Data_Table_1[[#This Row],[Adjusted\nSale Price]]/Table_Data_Table_1[[#This Row],[Resid\nSq Ft]],2),\"\")","v":""},{"$f":"IFERROR(IF(VLOOKUP(Table_Data_Table_1[[#This Row],[Item ID]],DataTable,11,FALSE)=0,\"N/A\",Table_Data_Table_1[[#This Row],[Adjusted\nSale Price]]/VLOOKUP(Table_Data_Table_1[[#This Row],[Item ID]],DataTable,11,FALSE)),\"\")","v":""},{"$f":"IF(IFERROR(VLOOKUP(Table_Data_Table_1[[#This Row],[Item ID]],DataTable,17,FALSE),\"\")=0,\"\",IFERROR(VLOOKUP(Table_Data_Table_1[[#This Row],[Item ID]],DataTable,17,FALSE),\"\"))","v":""}]
["",null,{"$f":"IF(Table_Data_Table_1[[#This Row],[Item ID]]=\"\",\"\",IFERROR(VLOOKUP(Table_Data_Table_1[[#This Row],[Item ID]],DataTable,16,FALSE),\"\"))","v":""},null,null,null,null,{"$f":"IF(Table_Data_Table_1[[#This Row],[Valuation Method]]=\"Vacant\",VLOOKUP(Table_Data_Table_1[[#This Row],[Item ID]],DataTable,6,FALSE)-VLOOKUP(Table_Data_Table_1[[#This Row],[Item ID]],DataTable,13,FALSE),IF(Table_Data_Table_1[[#This Row],[Valuation Method]]=\"Abstraction\",VLOOKUP(Table_Data_Table_1[[#This Row],[Item ID]],DataTable,6,FALSE)-VLOOKUP(Table_Data_Table_1[[#This Row],[Item ID]],DataTable,13,FALSE),IF(Table_Data_Table_1[[#This Row],[Valuation Method]]=\"Allocation\",VLOOKUP(Table_Data_Table_1[[#This Row],[Item ID]],DataTable,6,FALSE)*I450,\"\")))","v":""},{"$f":"IF(Table_Data_Table_1[[#This Row],[Valuation Method]]=\"Vacant\",\"N/A\",IF(Table_Data_Table_1[[#This Row],[Valuation Method]]=\"Abstraction\",Table_Data_Table_1[[#This Row],[Land\nResidual]]/VLOOKUP(Table_Data_Table_1[[#This Row],[Item ID]],DataTable,6,FALSE),IF(Table_Data_Table_1[[#This Row],[Valuation Method]]=\"Allocation\",'Global Settings'!$H$20,\"\")))","v":""},{"$f":"IFERROR(ROUND(Table_Data_Table_1[[#This Row],[Resid\nSq Ft]]/43560,3),\"\")","v":""},{"$f":"IF(Table_Data_Table_1[[#This Row],[Item ID]]=\"\",\"\",IFERROR(VLOOKUP(Table_Data_Table_1[[#This Row],[Item ID]],DataTable,10,FALSE)-VLOOKUP(Table_Data_Table_1[[#This Row],[Item ID]],DataTable,12,FALSE),\"\"))","v":""},{"$f":"IFERROR(Table_Data_Table_1[[#This Row],[Land\nResidual]]/Table_Data_Table_1[[#This Row],[Resid\nAcre]],\"\")","v":""},{"$f":"IFERROR(ROUND(Table_Data_Table_1[[#This Row],[Land\nResidual]]/Table_Data_Table_1[[#This Row],[Resid\nSq Ft]],2),\"\")","v":""},{"$f":"IF(Table_Data_Table_1[[#This Row],[Item ID]]=\"\",\"\",ROUND(DAYS360(Table_Data_Table_1[[#This Row],[Sale Date]],'Global Settings'!$H$5)/30,0))","v":""},{"$f":"IFERROR(IF(AND(Table_Data_Table_1[[#This Row],[Months To\nMid-Point]]<12.01,Table_Data_Table_1[[#This Row],[Months To\nMid-Point]]>-13),0,(Table_Data_Table_1[[#This Row],[Months To\nMid-Point]]*'Global Settings'!$H$6)),\"\")","v":""},{"$f":"IFERROR(Table_Data_Table_1[[#This Row],[Land\nResidual]]*(Table_Data_Table_1[[#This Row],[Time\nAdjust]]+1),\"\")","v":""},{"$f":"IFERROR(Table_Data_Table_1[[#This Row],[Adjusted\nSale Price]]/Table_Data_Table_1[[#This Row],[Resid\nAcre]],\"\")","v":""},{"$f":"IFERROR(ROUND(Table_Data_Table_1[[#This Row],[Adjusted\nSale Price]]/Table_Data_Table_1[[#This Row],[Resid\nSq Ft]],2),\"\")","v":""},{"$f":"IFERROR(IF(VLOOKUP(Table_Data_Table_1[[#This Row],[Item ID]],DataTable,11,FALSE)=0,\"N/A\",Table_Data_Table_1[[#This Row],[Adjusted\nSale Price]]/VLOOKUP(Table_Data_Table_1[[#This Row],[Item ID]],DataTable,11,FALSE)),\"\")","v":""},{"$f":"IF(IFERROR(VLOOKUP(Table_Data_Table_1[[#This Row],[Item ID]],DataTable,17,FALSE),\"\")=0,\"\",IFERROR(VLOOKUP(Table_Data_Table_1[[#This Row],[Item ID]],DataTable,17,FALSE),\"\"))","v":""}]
["",null,{"$f":"IF(Table_Data_Table_1[[#This Row],[Item ID]]=\"\",\"\",IFERROR(VLOOKUP(Table_Data_Table_1[[#This Row],[Item ID]],DataTable,16,FALSE),\"\"))","v":""},null,null,null,null,{"$f":"IF(Table_Data_Table_1[[#This Row],[Valuation Method]]=\"Vacant\",VLOOKUP(Table_Data_Table_1[[#This Row],[Item ID]],DataTable,6,FALSE)-VLOOKUP(Table_Data_Table_1[[#This Row],[Item ID]],DataTable,13,FALSE),IF(Table_Data_Table_1[[#This Row],[Valuation Method]]=\"Abstraction\",VLOOKUP(Table_Data_Table_1[[#This Row],[Item ID]],DataTable,6,FALSE)-VLOOKUP(Table_Data_Table_1[[#This Row],[Item ID]],DataTable,13,FALSE),IF(Table_Data_Table_1[[#This Row],[Valuation Method]]=\"Allocation\",VLOOKUP(Table_Data_Table_1[[#This Row],[Item ID]],DataTable,6,FALSE)*I451,\"\")))","v":""},{"$f":"IF(Table_Data_Table_1[[#This Row],[Valuation Method]]=\"Vacant\",\"N/A\",IF(Table_Data_Table_1[[#This Row],[Valuation Method]]=\"Abstraction\",Table_Data_Table_1[[#This Row],[Land\nResidual]]/VLOOKUP(Table_Data_Table_1[[#This Row],[Item ID]],DataTable,6,FALSE),IF(Table_Data_Table_1[[#This Row],[Valuation Method]]=\"Allocation\",'Global Settings'!$H$20,\"\")))","v":""},{"$f":"IFERROR(ROUND(Table_Data_Table_1[[#This Row],[Resid\nSq Ft]]/43560,3),\"\")","v":""},{"$f":"IF(Table_Data_Table_1[[#This Row],[Item ID]]=\"\",\"\",IFERROR(VLOOKUP(Table_Data_Table_1[[#This Row],[Item ID]],DataTable,10,FALSE)-VLOOKUP(Table_Data_Table_1[[#This Row],[Item ID]],DataTable,12,FALSE),\"\"))","v":""},{"$f":"IFERROR(Table_Data_Table_1[[#This Row],[Land\nResidual]]/Table_Data_Table_1[[#This Row],[Resid\nAcre]],\"\")","v":""},{"$f":"IFERROR(ROUND(Table_Data_Table_1[[#This Row],[Land\nResidual]]/Table_Data_Table_1[[#This Row],[Resid\nSq Ft]],2),\"\")","v":""},{"$f":"IF(Table_Data_Table_1[[#This Row],[Item ID]]=\"\",\"\",ROUND(DAYS360(Table_Data_Table_1[[#This Row],[Sale Date]],'Global Settings'!$H$5)/30,0))","v":""},{"$f":"IFERROR(IF(AND(Table_Data_Table_1[[#This Row],[Months To\nMid-Point]]<12.01,Table_Data_Table_1[[#This Row],[Months To\nMid-Point]]>-13),0,(Table_Data_Table_1[[#This Row],[Months To\nMid-Point]]*'Global Settings'!$H$6)),\"\")","v":""},{"$f":"IFERROR(Table_Data_Table_1[[#This Row],[Land\nResidual]]*(Table_Data_Table_1[[#This Row],[Time\nAdjust]]+1),\"\")","v":""},{"$f":"IFERROR(Table_Data_Table_1[[#This Row],[Adjusted\nSale Price]]/Table_Data_Table_1[[#This Row],[Resid\nAcre]],\"\")","v":""},{"$f":"IFERROR(ROUND(Table_Data_Table_1[[#This Row],[Adjusted\nSale Price]]/Table_Data_Table_1[[#This Row],[Resid\nSq Ft]],2),\"\")","v":""},{"$f":"IFERROR(IF(VLOOKUP(Table_Data_Table_1[[#This Row],[Item ID]],DataTable,11,FALSE)=0,\"N/A\",Table_Data_Table_1[[#This Row],[Adjusted\nSale Price]]/VLOOKUP(Table_Data_Table_1[[#This Row],[Item ID]],DataTable,11,FALSE)),\"\")","v":""},{"$f":"IF(IFERROR(VLOOKUP(Table_Data_Table_1[[#This Row],[Item ID]],DataTable,17,FALSE),\"\")=0,\"\",IFERROR(VLOOKUP(Table_Data_Table_1[[#This Row],[Item ID]],DataTable,17,FALSE),\"\"))","v":""}]
["",null,{"$f":"IF(Table_Data_Table_1[[#This Row],[Item ID]]=\"\",\"\",IFERROR(VLOOKUP(Table_Data_Table_1[[#This Row],[Item ID]],DataTable,16,FALSE),\"\"))","v":""},null,null,null,null,{"$f":"IF(Table_Data_Table_1[[#This Row],[Valuation Method]]=\"Vacant\",VLOOKUP(Table_Data_Table_1[[#This Row],[Item ID]],DataTable,6,FALSE)-VLOOKUP(Table_Data_Table_1[[#This Row],[Item ID]],DataTable,13,FALSE),IF(Table_Data_Table_1[[#This Row],[Valuation Method]]=\"Abstraction\",VLOOKUP(Table_Data_Table_1[[#This Row],[Item ID]],DataTable,6,FALSE)-VLOOKUP(Table_Data_Table_1[[#This Row],[Item ID]],DataTable,13,FALSE),IF(Table_Data_Table_1[[#This Row],[Valuation Method]]=\"Allocation\",VLOOKUP(Table_Data_Table_1[[#This Row],[Item ID]],DataTable,6,FALSE)*I452,\"\")))","v":""},{"$f":"IF(Table_Data_Table_1[[#This Row],[Valuation Method]]=\"Vacant\",\"N/A\",IF(Table_Data_Table_1[[#This Row],[Valuation Method]]=\"Abstraction\",Table_Data_Table_1[[#This Row],[Land\nResidual]]/VLOOKUP(Table_Data_Table_1[[#This Row],[Item ID]],DataTable,6,FALSE),IF(Table_Data_Table_1[[#This Row],[Valuation Method]]=\"Allocation\",'Global Settings'!$H$20,\"\")))","v":""},{"$f":"IFERROR(ROUND(Table_Data_Table_1[[#This Row],[Resid\nSq Ft]]/43560,3),\"\")","v":""},{"$f":"IF(Table_Data_Table_1[[#This Row],[Item ID]]=\"\",\"\",IFERROR(VLOOKUP(Table_Data_Table_1[[#This Row],[Item ID]],DataTable,10,FALSE)-VLOOKUP(Table_Data_Table_1[[#This Row],[Item ID]],DataTable,12,FALSE),\"\"))","v":""},{"$f":"IFERROR(Table_Data_Table_1[[#This Row],[Land\nResidual]]/Table_Data_Table_1[[#This Row],[Resid\nAcre]],\"\")","v":""},{"$f":"IFERROR(ROUND(Table_Data_Table_1[[#This Row],[Land\nResidual]]/Table_Data_Table_1[[#This Row],[Resid\nSq Ft]],2),\"\")","v":""},{"$f":"IF(Table_Data_Table_1[[#This Row],[Item ID]]=\"\",\"\",ROUND(DAYS360(Table_Data_Table_1[[#This Row],[Sale Date]],'Global Settings'!$H$5)/30,0))","v":""},{"$f":"IFERROR(IF(AND(Table_Data_Table_1[[#This Row],[Months To\nMid-Point]]<12.01,Table_Data_Table_1[[#This Row],[Months To\nMid-Point]]>-13),0,(Table_Data_Table_1[[#This Row],[Months To\nMid-Point]]*'Global Settings'!$H$6)),\"\")","v":""},{"$f":"IFERROR(Table_Data_Table_1[[#This Row],[Land\nResidual]]*(Table_Data_Table_1[[#This Row],[Time\nAdjust]]+1),\"\")","v":""},{"$f":"IFERROR(Table_Data_Table_1[[#This Row],[Adjusted\nSale Price]]/Table_Data_Table_1[[#This Row],[Resid\nAcre]],\"\")","v":""},{"$f":"IFERROR(ROUND(Table_Data_Table_1[[#This Row],[Adjusted\nSale Price]]/Table_Data_Table_1[[#This Row],[Resid\nSq Ft]],2),\"\")","v":""},{"$f":"IFERROR(IF(VLOOKUP(Table_Data_Table_1[[#This Row],[Item ID]],DataTable,11,FALSE)=0,\"N/A\",Table_Data_Table_1[[#This Row],[Adjusted\nSale Price]]/VLOOKUP(Table_Data_Table_1[[#This Row],[Item ID]],DataTable,11,FALSE)),\"\")","v":""},{"$f":"IF(IFERROR(VLOOKUP(Table_Data_Table_1[[#This Row],[Item ID]],DataTable,17,FALSE),\"\")=0,\"\",IFERROR(VLOOKUP(Table_Data_Table_1[[#This Row],[Item ID]],DataTable,17,FALSE),\"\"))","v":""}]
["",null,{"$f":"IF(Table_Data_Table_1[[#This Row],[Item ID]]=\"\",\"\",IFERROR(VLOOKUP(Table_Data_Table_1[[#This Row],[Item ID]],DataTable,16,FALSE),\"\"))","v":""},null,null,null,null,{"$f":"IF(Table_Data_Table_1[[#This Row],[Valuation Method]]=\"Vacant\",VLOOKUP(Table_Data_Table_1[[#This Row],[Item ID]],DataTable,6,FALSE)-VLOOKUP(Table_Data_Table_1[[#This Row],[Item ID]],DataTable,13,FALSE),IF(Table_Data_Table_1[[#This Row],[Valuation Method]]=\"Abstraction\",VLOOKUP(Table_Data_Table_1[[#This Row],[Item ID]],DataTable,6,FALSE)-VLOOKUP(Table_Data_Table_1[[#This Row],[Item ID]],DataTable,13,FALSE),IF(Table_Data_Table_1[[#This Row],[Valuation Method]]=\"Allocation\",VLOOKUP(Table_Data_Table_1[[#This Row],[Item ID]],DataTable,6,FALSE)*I453,\"\")))","v":""},{"$f":"IF(Table_Data_Table_1[[#This Row],[Valuation Method]]=\"Vacant\",\"N/A\",IF(Table_Data_Table_1[[#This Row],[Valuation Method]]=\"Abstraction\",Table_Data_Table_1[[#This Row],[Land\nResidual]]/VLOOKUP(Table_Data_Table_1[[#This Row],[Item ID]],DataTable,6,FALSE),IF(Table_Data_Table_1[[#This Row],[Valuation Method]]=\"Allocation\",'Global Settings'!$H$20,\"\")))","v":""},{"$f":"IFERROR(ROUND(Table_Data_Table_1[[#This Row],[Resid\nSq Ft]]/43560,3),\"\")","v":""},{"$f":"IF(Table_Data_Table_1[[#This Row],[Item ID]]=\"\",\"\",IFERROR(VLOOKUP(Table_Data_Table_1[[#This Row],[Item ID]],DataTable,10,FALSE)-VLOOKUP(Table_Data_Table_1[[#This Row],[Item ID]],DataTable,12,FALSE),\"\"))","v":""},{"$f":"IFERROR(Table_Data_Table_1[[#This Row],[Land\nResidual]]/Table_Data_Table_1[[#This Row],[Resid\nAcre]],\"\")","v":""},{"$f":"IFERROR(ROUND(Table_Data_Table_1[[#This Row],[Land\nResidual]]/Table_Data_Table_1[[#This Row],[Resid\nSq Ft]],2),\"\")","v":""},{"$f":"IF(Table_Data_Table_1[[#This Row],[Item ID]]=\"\",\"\",ROUND(DAYS360(Table_Data_Table_1[[#This Row],[Sale Date]],'Global Settings'!$H$5)/30,0))","v":""},{"$f":"IFERROR(IF(AND(Table_Data_Table_1[[#This Row],[Months To\nMid-Point]]<12.01,Table_Data_Table_1[[#This Row],[Months To\nMid-Point]]>-13),0,(Table_Data_Table_1[[#This Row],[Months To\nMid-Point]]*'Global Settings'!$H$6)),\"\")","v":""},{"$f":"IFERROR(Table_Data_Table_1[[#This Row],[Land\nResidual]]*(Table_Data_Table_1[[#This Row],[Time\nAdjust]]+1),\"\")","v":""},{"$f":"IFERROR(Table_Data_Table_1[[#This Row],[Adjusted\nSale Price]]/Table_Data_Table_1[[#This Row],[Resid\nAcre]],\"\")","v":""},{"$f":"IFERROR(ROUND(Table_Data_Table_1[[#This Row],[Adjusted\nSale Price]]/Table_Data_Table_1[[#This Row],[Resid\nSq Ft]],2),\"\")","v":""},{"$f":"IFERROR(IF(VLOOKUP(Table_Data_Table_1[[#This Row],[Item ID]],DataTable,11,FALSE)=0,\"N/A\",Table_Data_Table_1[[#This Row],[Adjusted\nSale Price]]/VLOOKUP(Table_Data_Table_1[[#This Row],[Item ID]],DataTable,11,FALSE)),\"\")","v":""},{"$f":"IF(IFERROR(VLOOKUP(Table_Data_Table_1[[#This Row],[Item ID]],DataTable,17,FALSE),\"\")=0,\"\",IFERROR(VLOOKUP(Table_Data_Table_1[[#This Row],[Item ID]],DataTable,17,FALSE),\"\"))","v":""}]
["",null,{"$f":"IF(Table_Data_Table_1[[#This Row],[Item ID]]=\"\",\"\",IFERROR(VLOOKUP(Table_Data_Table_1[[#This Row],[Item ID]],DataTable,16,FALSE),\"\"))","v":""},null,null,null,null,{"$f":"IF(Table_Data_Table_1[[#This Row],[Valuation Method]]=\"Vacant\",VLOOKUP(Table_Data_Table_1[[#This Row],[Item ID]],DataTable,6,FALSE)-VLOOKUP(Table_Data_Table_1[[#This Row],[Item ID]],DataTable,13,FALSE),IF(Table_Data_Table_1[[#This Row],[Valuation Method]]=\"Abstraction\",VLOOKUP(Table_Data_Table_1[[#This Row],[Item ID]],DataTable,6,FALSE)-VLOOKUP(Table_Data_Table_1[[#This Row],[Item ID]],DataTable,13,FALSE),IF(Table_Data_Table_1[[#This Row],[Valuation Method]]=\"Allocation\",VLOOKUP(Table_Data_Table_1[[#This Row],[Item ID]],DataTable,6,FALSE)*I454,\"\")))","v":""},{"$f":"IF(Table_Data_Table_1[[#This Row],[Valuation Method]]=\"Vacant\",\"N/A\",IF(Table_Data_Table_1[[#This Row],[Valuation Method]]=\"Abstraction\",Table_Data_Table_1[[#This Row],[Land\nResidual]]/VLOOKUP(Table_Data_Table_1[[#This Row],[Item ID]],DataTable,6,FALSE),IF(Table_Data_Table_1[[#This Row],[Valuation Method]]=\"Allocation\",'Global Settings'!$H$20,\"\")))","v":""},{"$f":"IFERROR(ROUND(Table_Data_Table_1[[#This Row],[Resid\nSq Ft]]/43560,3),\"\")","v":""},{"$f":"IF(Table_Data_Table_1[[#This Row],[Item ID]]=\"\",\"\",IFERROR(VLOOKUP(Table_Data_Table_1[[#This Row],[Item ID]],DataTable,10,FALSE)-VLOOKUP(Table_Data_Table_1[[#This Row],[Item ID]],DataTable,12,FALSE),\"\"))","v":""},{"$f":"IFERROR(Table_Data_Table_1[[#This Row],[Land\nResidual]]/Table_Data_Table_1[[#This Row],[Resid\nAcre]],\"\")","v":""},{"$f":"IFERROR(ROUND(Table_Data_Table_1[[#This Row],[Land\nResidual]]/Table_Data_Table_1[[#This Row],[Resid\nSq Ft]],2),\"\")","v":""},{"$f":"IF(Table_Data_Table_1[[#This Row],[Item ID]]=\"\",\"\",ROUND(DAYS360(Table_Data_Table_1[[#This Row],[Sale Date]],'Global Settings'!$H$5)/30,0))","v":""},{"$f":"IFERROR(IF(AND(Table_Data_Table_1[[#This Row],[Months To\nMid-Point]]<12.01,Table_Data_Table_1[[#This Row],[Months To\nMid-Point]]>-13),0,(Table_Data_Table_1[[#This Row],[Months To\nMid-Point]]*'Global Settings'!$H$6)),\"\")","v":""},{"$f":"IFERROR(Table_Data_Table_1[[#This Row],[Land\nResidual]]*(Table_Data_Table_1[[#This Row],[Time\nAdjust]]+1),\"\")","v":""},{"$f":"IFERROR(Table_Data_Table_1[[#This Row],[Adjusted\nSale Price]]/Table_Data_Table_1[[#This Row],[Resid\nAcre]],\"\")","v":""},{"$f":"IFERROR(ROUND(Table_Data_Table_1[[#This Row],[Adjusted\nSale Price]]/Table_Data_Table_1[[#This Row],[Resid\nSq Ft]],2),\"\")","v":""},{"$f":"IFERROR(IF(VLOOKUP(Table_Data_Table_1[[#This Row],[Item ID]],DataTable,11,FALSE)=0,\"N/A\",Table_Data_Table_1[[#This Row],[Adjusted\nSale Price]]/VLOOKUP(Table_Data_Table_1[[#This Row],[Item ID]],DataTable,11,FALSE)),\"\")","v":""},{"$f":"IF(IFERROR(VLOOKUP(Table_Data_Table_1[[#This Row],[Item ID]],DataTable,17,FALSE),\"\")=0,\"\",IFERROR(VLOOKUP(Table_Data_Table_1[[#This Row],[Item ID]],DataTable,17,FALSE),\"\"))","v":""}]
["",null,{"$f":"IF(Table_Data_Table_1[[#This Row],[Item ID]]=\"\",\"\",IFERROR(VLOOKUP(Table_Data_Table_1[[#This Row],[Item ID]],DataTable,16,FALSE),\"\"))","v":""},null,null,null,null,{"$f":"IF(Table_Data_Table_1[[#This Row],[Valuation Method]]=\"Vacant\",VLOOKUP(Table_Data_Table_1[[#This Row],[Item ID]],DataTable,6,FALSE)-VLOOKUP(Table_Data_Table_1[[#This Row],[Item ID]],DataTable,13,FALSE),IF(Table_Data_Table_1[[#This Row],[Valuation Method]]=\"Abstraction\",VLOOKUP(Table_Data_Table_1[[#This Row],[Item ID]],DataTable,6,FALSE)-VLOOKUP(Table_Data_Table_1[[#This Row],[Item ID]],DataTable,13,FALSE),IF(Table_Data_Table_1[[#This Row],[Valuation Method]]=\"Allocation\",VLOOKUP(Table_Data_Table_1[[#This Row],[Item ID]],DataTable,6,FALSE)*I455,\"\")))","v":""},{"$f":"IF(Table_Data_Table_1[[#This Row],[Valuation Method]]=\"Vacant\",\"N/A\",IF(Table_Data_Table_1[[#This Row],[Valuation Method]]=\"Abstraction\",Table_Data_Table_1[[#This Row],[Land\nResidual]]/VLOOKUP(Table_Data_Table_1[[#This Row],[Item ID]],DataTable,6,FALSE),IF(Table_Data_Table_1[[#This Row],[Valuation Method]]=\"Allocation\",'Global Settings'!$H$20,\"\")))","v":""},{"$f":"IFERROR(ROUND(Table_Data_Table_1[[#This Row],[Resid\nSq Ft]]/43560,3),\"\")","v":""},{"$f":"IF(Table_Data_Table_1[[#This Row],[Item ID]]=\"\",\"\",IFERROR(VLOOKUP(Table_Data_Table_1[[#This Row],[Item ID]],DataTable,10,FALSE)-VLOOKUP(Table_Data_Table_1[[#This Row],[Item ID]],DataTable,12,FALSE),\"\"))","v":""},{"$f":"IFERROR(Table_Data_Table_1[[#This Row],[Land\nResidual]]/Table_Data_Table_1[[#This Row],[Resid\nAcre]],\"\")","v":""},{"$f":"IFERROR(ROUND(Table_Data_Table_1[[#This Row],[Land\nResidual]]/Table_Data_Table_1[[#This Row],[Resid\nSq Ft]],2),\"\")","v":""},{"$f":"IF(Table_Data_Table_1[[#This Row],[Item ID]]=\"\",\"\",ROUND(DAYS360(Table_Data_Table_1[[#This Row],[Sale Date]],'Global Settings'!$H$5)/30,0))","v":""},{"$f":"IFERROR(IF(AND(Table_Data_Table_1[[#This Row],[Months To\nMid-Point]]<12.01,Table_Data_Table_1[[#This Row],[Months To\nMid-Point]]>-13),0,(Table_Data_Table_1[[#This Row],[Months To\nMid-Point]]*'Global Settings'!$H$6)),\"\")","v":""},{"$f":"IFERROR(Table_Data_Table_1[[#This Row],[Land\nResidual]]*(Table_Data_Table_1[[#This Row],[Time\nAdjust]]+1),\"\")","v":""},{"$f":"IFERROR(Table_Data_Table_1[[#This Row],[Adjusted\nSale Price]]/Table_Data_Table_1[[#This Row],[Resid\nAcre]],\"\")","v":""},{"$f":"IFERROR(ROUND(Table_Data_Table_1[[#This Row],[Adjusted\nSale Price]]/Table_Data_Table_1[[#This Row],[Resid\nSq Ft]],2),\"\")","v":""},{"$f":"IFERROR(IF(VLOOKUP(Table_Data_Table_1[[#This Row],[Item ID]],DataTable,11,FALSE)=0,\"N/A\",Table_Data_Table_1[[#This Row],[Adjusted\nSale Price]]/VLOOKUP(Table_Data_Table_1[[#This Row],[Item ID]],DataTable,11,FALSE)),\"\")","v":""},{"$f":"IF(IFERROR(VLOOKUP(Table_Data_Table_1[[#This Row],[Item ID]],DataTable,17,FALSE),\"\")=0,\"\",IFERROR(VLOOKUP(Table_Data_Table_1[[#This Row],[Item ID]],DataTable,17,FALSE),\"\"))","v":""}]
["",null,{"$f":"IF(Table_Data_Table_1[[#This Row],[Item ID]]=\"\",\"\",IFERROR(VLOOKUP(Table_Data_Table_1[[#This Row],[Item ID]],DataTable,16,FALSE),\"\"))","v":""},null,null,null,null,{"$f":"IF(Table_Data_Table_1[[#This Row],[Valuation Method]]=\"Vacant\",VLOOKUP(Table_Data_Table_1[[#This Row],[Item ID]],DataTable,6,FALSE)-VLOOKUP(Table_Data_Table_1[[#This Row],[Item ID]],DataTable,13,FALSE),IF(Table_Data_Table_1[[#This Row],[Valuation Method]]=\"Abstraction\",VLOOKUP(Table_Data_Table_1[[#This Row],[Item ID]],DataTable,6,FALSE)-VLOOKUP(Table_Data_Table_1[[#This Row],[Item ID]],DataTable,13,FALSE),IF(Table_Data_Table_1[[#This Row],[Valuation Method]]=\"Allocation\",VLOOKUP(Table_Data_Table_1[[#This Row],[Item ID]],DataTable,6,FALSE)*I456,\"\")))","v":""},{"$f":"IF(Table_Data_Table_1[[#This Row],[Valuation Method]]=\"Vacant\",\"N/A\",IF(Table_Data_Table_1[[#This Row],[Valuation Method]]=\"Abstraction\",Table_Data_Table_1[[#This Row],[Land\nResidual]]/VLOOKUP(Table_Data_Table_1[[#This Row],[Item ID]],DataTable,6,FALSE),IF(Table_Data_Table_1[[#This Row],[Valuation Method]]=\"Allocation\",'Global Settings'!$H$20,\"\")))","v":""},{"$f":"IFERROR(ROUND(Table_Data_Table_1[[#This Row],[Resid\nSq Ft]]/43560,3),\"\")","v":""},{"$f":"IF(Table_Data_Table_1[[#This Row],[Item ID]]=\"\",\"\",IFERROR(VLOOKUP(Table_Data_Table_1[[#This Row],[Item ID]],DataTable,10,FALSE)-VLOOKUP(Table_Data_Table_1[[#This Row],[Item ID]],DataTable,12,FALSE),\"\"))","v":""},{"$f":"IFERROR(Table_Data_Table_1[[#This Row],[Land\nResidual]]/Table_Data_Table_1[[#This Row],[Resid\nAcre]],\"\")","v":""},{"$f":"IFERROR(ROUND(Table_Data_Table_1[[#This Row],[Land\nResidual]]/Table_Data_Table_1[[#This Row],[Resid\nSq Ft]],2),\"\")","v":""},{"$f":"IF(Table_Data_Table_1[[#This Row],[Item ID]]=\"\",\"\",ROUND(DAYS360(Table_Data_Table_1[[#This Row],[Sale Date]],'Global Settings'!$H$5)/30,0))","v":""},{"$f":"IFERROR(IF(AND(Table_Data_Table_1[[#This Row],[Months To\nMid-Point]]<12.01,Table_Data_Table_1[[#This Row],[Months To\nMid-Point]]>-13),0,(Table_Data_Table_1[[#This Row],[Months To\nMid-Point]]*'Global Settings'!$H$6)),\"\")","v":""},{"$f":"IFERROR(Table_Data_Table_1[[#This Row],[Land\nResidual]]*(Table_Data_Table_1[[#This Row],[Time\nAdjust]]+1),\"\")","v":""},{"$f":"IFERROR(Table_Data_Table_1[[#This Row],[Adjusted\nSale Price]]/Table_Data_Table_1[[#This Row],[Resid\nAcre]],\"\")","v":""},{"$f":"IFERROR(ROUND(Table_Data_Table_1[[#This Row],[Adjusted\nSale Price]]/Table_Data_Table_1[[#This Row],[Resid\nSq Ft]],2),\"\")","v":""},{"$f":"IFERROR(IF(VLOOKUP(Table_Data_Table_1[[#This Row],[Item ID]],DataTable,11,FALSE)=0,\"N/A\",Table_Data_Table_1[[#This Row],[Adjusted\nSale Price]]/VLOOKUP(Table_Data_Table_1[[#This Row],[Item ID]],DataTable,11,FALSE)),\"\")","v":""},{"$f":"IF(IFERROR(VLOOKUP(Table_Data_Table_1[[#This Row],[Item ID]],DataTable,17,FALSE),\"\")=0,\"\",IFERROR(VLOOKUP(Table_Data_Table_1[[#This Row],[Item ID]],DataTable,17,FALSE),\"\"))","v":""}]
["",null,{"$f":"IF(Table_Data_Table_1[[#This Row],[Item ID]]=\"\",\"\",IFERROR(VLOOKUP(Table_Data_Table_1[[#This Row],[Item ID]],DataTable,16,FALSE),\"\"))","v":""},null,null,null,null,{"$f":"IF(Table_Data_Table_1[[#This Row],[Valuation Method]]=\"Vacant\",VLOOKUP(Table_Data_Table_1[[#This Row],[Item ID]],DataTable,6,FALSE)-VLOOKUP(Table_Data_Table_1[[#This Row],[Item ID]],DataTable,13,FALSE),IF(Table_Data_Table_1[[#This Row],[Valuation Method]]=\"Abstraction\",VLOOKUP(Table_Data_Table_1[[#This Row],[Item ID]],DataTable,6,FALSE)-VLOOKUP(Table_Data_Table_1[[#This Row],[Item ID]],DataTable,13,FALSE),IF(Table_Data_Table_1[[#This Row],[Valuation Method]]=\"Allocation\",VLOOKUP(Table_Data_Table_1[[#This Row],[Item ID]],DataTable,6,FALSE)*I457,\"\")))","v":""},{"$f":"IF(Table_Data_Table_1[[#This Row],[Valuation Method]]=\"Vacant\",\"N/A\",IF(Table_Data_Table_1[[#This Row],[Valuation Method]]=\"Abstraction\",Table_Data_Table_1[[#This Row],[Land\nResidual]]/VLOOKUP(Table_Data_Table_1[[#This Row],[Item ID]],DataTable,6,FALSE),IF(Table_Data_Table_1[[#This Row],[Valuation Method]]=\"Allocation\",'Global Settings'!$H$20,\"\")))","v":""},{"$f":"IFERROR(ROUND(Table_Data_Table_1[[#This Row],[Resid\nSq Ft]]/43560,3),\"\")","v":""},{"$f":"IF(Table_Data_Table_1[[#This Row],[Item ID]]=\"\",\"\",IFERROR(VLOOKUP(Table_Data_Table_1[[#This Row],[Item ID]],DataTable,10,FALSE)-VLOOKUP(Table_Data_Table_1[[#This Row],[Item ID]],DataTable,12,FALSE),\"\"))","v":""},{"$f":"IFERROR(Table_Data_Table_1[[#This Row],[Land\nResidual]]/Table_Data_Table_1[[#This Row],[Resid\nAcre]],\"\")","v":""},{"$f":"IFERROR(ROUND(Table_Data_Table_1[[#This Row],[Land\nResidual]]/Table_Data_Table_1[[#This Row],[Resid\nSq Ft]],2),\"\")","v":""},{"$f":"IF(Table_Data_Table_1[[#This Row],[Item ID]]=\"\",\"\",ROUND(DAYS360(Table_Data_Table_1[[#This Row],[Sale Date]],'Global Settings'!$H$5)/30,0))","v":""},{"$f":"IFERROR(IF(AND(Table_Data_Table_1[[#This Row],[Months To\nMid-Point]]<12.01,Table_Data_Table_1[[#This Row],[Months To\nMid-Point]]>-13),0,(Table_Data_Table_1[[#This Row],[Months To\nMid-Point]]*'Global Settings'!$H$6)),\"\")","v":""},{"$f":"IFERROR(Table_Data_Table_1[[#This Row],[Land\nResidual]]*(Table_Data_Table_1[[#This Row],[Time\nAdjust]]+1),\"\")","v":""},{"$f":"IFERROR(Table_Data_Table_1[[#This Row],[Adjusted\nSale Price]]/Table_Data_Table_1[[#This Row],[Resid\nAcre]],\"\")","v":""},{"$f":"IFERROR(ROUND(Table_Data_Table_1[[#This Row],[Adjusted\nSale Price]]/Table_Data_Table_1[[#This Row],[Resid\nSq Ft]],2),\"\")","v":""},{"$f":"IFERROR(IF(VLOOKUP(Table_Data_Table_1[[#This Row],[Item ID]],DataTable,11,FALSE)=0,\"N/A\",Table_Data_Table_1[[#This Row],[Adjusted\nSale Price]]/VLOOKUP(Table_Data_Table_1[[#This Row],[Item ID]],DataTable,11,FALSE)),\"\")","v":""},{"$f":"IF(IFERROR(VLOOKUP(Table_Data_Table_1[[#This Row],[Item ID]],DataTable,17,FALSE),\"\")=0,\"\",IFERROR(VLOOKUP(Table_Data_Table_1[[#This Row],[Item ID]],DataTable,17,FALSE),\"\"))","v":""}]
["",null,{"$f":"IF(Table_Data_Table_1[[#This Row],[Item ID]]=\"\",\"\",IFERROR(VLOOKUP(Table_Data_Table_1[[#This Row],[Item ID]],DataTable,16,FALSE),\"\"))","v":""},null,null,null,null,{"$f":"IF(Table_Data_Table_1[[#This Row],[Valuation Method]]=\"Vacant\",VLOOKUP(Table_Data_Table_1[[#This Row],[Item ID]],DataTable,6,FALSE)-VLOOKUP(Table_Data_Table_1[[#This Row],[Item ID]],DataTable,13,FALSE),IF(Table_Data_Table_1[[#This Row],[Valuation Method]]=\"Abstraction\",VLOOKUP(Table_Data_Table_1[[#This Row],[Item ID]],DataTable,6,FALSE)-VLOOKUP(Table_Data_Table_1[[#This Row],[Item ID]],DataTable,13,FALSE),IF(Table_Data_Table_1[[#This Row],[Valuation Method]]=\"Allocation\",VLOOKUP(Table_Data_Table_1[[#This Row],[Item ID]],DataTable,6,FALSE)*I458,\"\")))","v":""},{"$f":"IF(Table_Data_Table_1[[#This Row],[Valuation Method]]=\"Vacant\",\"N/A\",IF(Table_Data_Table_1[[#This Row],[Valuation Method]]=\"Abstraction\",Table_Data_Table_1[[#This Row],[Land\nResidual]]/VLOOKUP(Table_Data_Table_1[[#This Row],[Item ID]],DataTable,6,FALSE),IF(Table_Data_Table_1[[#This Row],[Valuation Method]]=\"Allocation\",'Global Settings'!$H$20,\"\")))","v":""},{"$f":"IFERROR(ROUND(Table_Data_Table_1[[#This Row],[Resid\nSq Ft]]/43560,3),\"\")","v":""},{"$f":"IF(Table_Data_Table_1[[#This Row],[Item ID]]=\"\",\"\",IFERROR(VLOOKUP(Table_Data_Table_1[[#This Row],[Item ID]],DataTable,10,FALSE)-VLOOKUP(Table_Data_Table_1[[#This Row],[Item ID]],DataTable,12,FALSE),\"\"))","v":""},{"$f":"IFERROR(Table_Data_Table_1[[#This Row],[Land\nResidual]]/Table_Data_Table_1[[#This Row],[Resid\nAcre]],\"\")","v":""},{"$f":"IFERROR(ROUND(Table_Data_Table_1[[#This Row],[Land\nResidual]]/Table_Data_Table_1[[#This Row],[Resid\nSq Ft]],2),\"\")","v":""},{"$f":"IF(Table_Data_Table_1[[#This Row],[Item ID]]=\"\",\"\",ROUND(DAYS360(Table_Data_Table_1[[#This Row],[Sale Date]],'Global Settings'!$H$5)/30,0))","v":""},{"$f":"IFERROR(IF(AND(Table_Data_Table_1[[#This Row],[Months To\nMid-Point]]<12.01,Table_Data_Table_1[[#This Row],[Months To\nMid-Point]]>-13),0,(Table_Data_Table_1[[#This Row],[Months To\nMid-Point]]*'Global Settings'!$H$6)),\"\")","v":""},{"$f":"IFERROR(Table_Data_Table_1[[#This Row],[Land\nResidual]]*(Table_Data_Table_1[[#This Row],[Time\nAdjust]]+1),\"\")","v":""},{"$f":"IFERROR(Table_Data_Table_1[[#This Row],[Adjusted\nSale Price]]/Table_Data_Table_1[[#This Row],[Resid\nAcre]],\"\")","v":""},{"$f":"IFERROR(ROUND(Table_Data_Table_1[[#This Row],[Adjusted\nSale Price]]/Table_Data_Table_1[[#This Row],[Resid\nSq Ft]],2),\"\")","v":""},{"$f":"IFERROR(IF(VLOOKUP(Table_Data_Table_1[[#This Row],[Item ID]],DataTable,11,FALSE)=0,\"N/A\",Table_Data_Table_1[[#This Row],[Adjusted\nSale Price]]/VLOOKUP(Table_Data_Table_1[[#This Row],[Item ID]],DataTable,11,FALSE)),\"\")","v":""},{"$f":"IF(IFERROR(VLOOKUP(Table_Data_Table_1[[#This Row],[Item ID]],DataTable,17,FALSE),\"\")=0,\"\",IFERROR(VLOOKUP(Table_Data_Table_1[[#This Row],[Item ID]],DataTable,17,FALSE),\"\"))","v":""}]
["",null,{"$f":"IF(Table_Data_Table_1[[#This Row],[Item ID]]=\"\",\"\",IFERROR(VLOOKUP(Table_Data_Table_1[[#This Row],[Item ID]],DataTable,16,FALSE),\"\"))","v":""},null,null,null,null,{"$f":"IF(Table_Data_Table_1[[#This Row],[Valuation Method]]=\"Vacant\",VLOOKUP(Table_Data_Table_1[[#This Row],[Item ID]],DataTable,6,FALSE)-VLOOKUP(Table_Data_Table_1[[#This Row],[Item ID]],DataTable,13,FALSE),IF(Table_Data_Table_1[[#This Row],[Valuation Method]]=\"Abstraction\",VLOOKUP(Table_Data_Table_1[[#This Row],[Item ID]],DataTable,6,FALSE)-VLOOKUP(Table_Data_Table_1[[#This Row],[Item ID]],DataTable,13,FALSE),IF(Table_Data_Table_1[[#This Row],[Valuation Method]]=\"Allocation\",VLOOKUP(Table_Data_Table_1[[#This Row],[Item ID]],DataTable,6,FALSE)*I459,\"\")))","v":""},{"$f":"IF(Table_Data_Table_1[[#This Row],[Valuation Method]]=\"Vacant\",\"N/A\",IF(Table_Data_Table_1[[#This Row],[Valuation Method]]=\"Abstraction\",Table_Data_Table_1[[#This Row],[Land\nResidual]]/VLOOKUP(Table_Data_Table_1[[#This Row],[Item ID]],DataTable,6,FALSE),IF(Table_Data_Table_1[[#This Row],[Valuation Method]]=\"Allocation\",'Global Settings'!$H$20,\"\")))","v":""},{"$f":"IFERROR(ROUND(Table_Data_Table_1[[#This Row],[Resid\nSq Ft]]/43560,3),\"\")","v":""},{"$f":"IF(Table_Data_Table_1[[#This Row],[Item ID]]=\"\",\"\",IFERROR(VLOOKUP(Table_Data_Table_1[[#This Row],[Item ID]],DataTable,10,FALSE)-VLOOKUP(Table_Data_Table_1[[#This Row],[Item ID]],DataTable,12,FALSE),\"\"))","v":""},{"$f":"IFERROR(Table_Data_Table_1[[#This Row],[Land\nResidual]]/Table_Data_Table_1[[#This Row],[Resid\nAcre]],\"\")","v":""},{"$f":"IFERROR(ROUND(Table_Data_Table_1[[#This Row],[Land\nResidual]]/Table_Data_Table_1[[#This Row],[Resid\nSq Ft]],2),\"\")","v":""},{"$f":"IF(Table_Data_Table_1[[#This Row],[Item ID]]=\"\",\"\",ROUND(DAYS360(Table_Data_Table_1[[#This Row],[Sale Date]],'Global Settings'!$H$5)/30,0))","v":""},{"$f":"IFERROR(IF(AND(Table_Data_Table_1[[#This Row],[Months To\nMid-Point]]<12.01,Table_Data_Table_1[[#This Row],[Months To\nMid-Point]]>-13),0,(Table_Data_Table_1[[#This Row],[Months To\nMid-Point]]*'Global Settings'!$H$6)),\"\")","v":""},{"$f":"IFERROR(Table_Data_Table_1[[#This Row],[Land\nResidual]]*(Table_Data_Table_1[[#This Row],[Time\nAdjust]]+1),\"\")","v":""},{"$f":"IFERROR(Table_Data_Table_1[[#This Row],[Adjusted\nSale Price]]/Table_Data_Table_1[[#This Row],[Resid\nAcre]],\"\")","v":""},{"$f":"IFERROR(ROUND(Table_Data_Table_1[[#This Row],[Adjusted\nSale Price]]/Table_Data_Table_1[[#This Row],[Resid\nSq Ft]],2),\"\")","v":""},{"$f":"IFERROR(IF(VLOOKUP(Table_Data_Table_1[[#This Row],[Item ID]],DataTable,11,FALSE)=0,\"N/A\",Table_Data_Table_1[[#This Row],[Adjusted\nSale Price]]/VLOOKUP(Table_Data_Table_1[[#This Row],[Item ID]],DataTable,11,FALSE)),\"\")","v":""},{"$f":"IF(IFERROR(VLOOKUP(Table_Data_Table_1[[#This Row],[Item ID]],DataTable,17,FALSE),\"\")=0,\"\",IFERROR(VLOOKUP(Table_Data_Table_1[[#This Row],[Item ID]],DataTable,17,FALSE),\"\"))","v":""}]
["",null,{"$f":"IF(Table_Data_Table_1[[#This Row],[Item ID]]=\"\",\"\",IFERROR(VLOOKUP(Table_Data_Table_1[[#This Row],[Item ID]],DataTable,16,FALSE),\"\"))","v":""},null,null,null,null,{"$f":"IF(Table_Data_Table_1[[#This Row],[Valuation Method]]=\"Vacant\",VLOOKUP(Table_Data_Table_1[[#This Row],[Item ID]],DataTable,6,FALSE)-VLOOKUP(Table_Data_Table_1[[#This Row],[Item ID]],DataTable,13,FALSE),IF(Table_Data_Table_1[[#This Row],[Valuation Method]]=\"Abstraction\",VLOOKUP(Table_Data_Table_1[[#This Row],[Item ID]],DataTable,6,FALSE)-VLOOKUP(Table_Data_Table_1[[#This Row],[Item ID]],DataTable,13,FALSE),IF(Table_Data_Table_1[[#This Row],[Valuation Method]]=\"Allocation\",VLOOKUP(Table_Data_Table_1[[#This Row],[Item ID]],DataTable,6,FALSE)*I460,\"\")))","v":""},{"$f":"IF(Table_Data_Table_1[[#This Row],[Valuation Method]]=\"Vacant\",\"N/A\",IF(Table_Data_Table_1[[#This Row],[Valuation Method]]=\"Abstraction\",Table_Data_Table_1[[#This Row],[Land\nResidual]]/VLOOKUP(Table_Data_Table_1[[#This Row],[Item ID]],DataTable,6,FALSE),IF(Table_Data_Table_1[[#This Row],[Valuation Method]]=\"Allocation\",'Global Settings'!$H$20,\"\")))","v":""},{"$f":"IFERROR(ROUND(Table_Data_Table_1[[#This Row],[Resid\nSq Ft]]/43560,3),\"\")","v":""},{"$f":"IF(Table_Data_Table_1[[#This Row],[Item ID]]=\"\",\"\",IFERROR(VLOOKUP(Table_Data_Table_1[[#This Row],[Item ID]],DataTable,10,FALSE)-VLOOKUP(Table_Data_Table_1[[#This Row],[Item ID]],DataTable,12,FALSE),\"\"))","v":""},{"$f":"IFERROR(Table_Data_Table_1[[#This Row],[Land\nResidual]]/Table_Data_Table_1[[#This Row],[Resid\nAcre]],\"\")","v":""},{"$f":"IFERROR(ROUND(Table_Data_Table_1[[#This Row],[Land\nResidual]]/Table_Data_Table_1[[#This Row],[Resid\nSq Ft]],2),\"\")","v":""},{"$f":"IF(Table_Data_Table_1[[#This Row],[Item ID]]=\"\",\"\",ROUND(DAYS360(Table_Data_Table_1[[#This Row],[Sale Date]],'Global Settings'!$H$5)/30,0))","v":""},{"$f":"IFERROR(IF(AND(Table_Data_Table_1[[#This Row],[Months To\nMid-Point]]<12.01,Table_Data_Table_1[[#This Row],[Months To\nMid-Point]]>-13),0,(Table_Data_Table_1[[#This Row],[Months To\nMid-Point]]*'Global Settings'!$H$6)),\"\")","v":""},{"$f":"IFERROR(Table_Data_Table_1[[#This Row],[Land\nResidual]]*(Table_Data_Table_1[[#This Row],[Time\nAdjust]]+1),\"\")","v":""},{"$f":"IFERROR(Table_Data_Table_1[[#This Row],[Adjusted\nSale Price]]/Table_Data_Table_1[[#This Row],[Resid\nAcre]],\"\")","v":""},{"$f":"IFERROR(ROUND(Table_Data_Table_1[[#This Row],[Adjusted\nSale Price]]/Table_Data_Table_1[[#This Row],[Resid\nSq Ft]],2),\"\")","v":""},{"$f":"IFERROR(IF(VLOOKUP(Table_Data_Table_1[[#This Row],[Item ID]],DataTable,11,FALSE)=0,\"N/A\",Table_Data_Table_1[[#This Row],[Adjusted\nSale Price]]/VLOOKUP(Table_Data_Table_1[[#This Row],[Item ID]],DataTable,11,FALSE)),\"\")","v":""},{"$f":"IF(IFERROR(VLOOKUP(Table_Data_Table_1[[#This Row],[Item ID]],DataTable,17,FALSE),\"\")=0,\"\",IFERROR(VLOOKUP(Table_Data_Table_1[[#This Row],[Item ID]],DataTable,17,FALSE),\"\"))","v":""}]
["",null,{"$f":"IF(Table_Data_Table_1[[#This Row],[Item ID]]=\"\",\"\",IFERROR(VLOOKUP(Table_Data_Table_1[[#This Row],[Item ID]],DataTable,16,FALSE),\"\"))","v":""},null,null,null,null,{"$f":"IF(Table_Data_Table_1[[#This Row],[Valuation Method]]=\"Vacant\",VLOOKUP(Table_Data_Table_1[[#This Row],[Item ID]],DataTable,6,FALSE)-VLOOKUP(Table_Data_Table_1[[#This Row],[Item ID]],DataTable,13,FALSE),IF(Table_Data_Table_1[[#This Row],[Valuation Method]]=\"Abstraction\",VLOOKUP(Table_Data_Table_1[[#This Row],[Item ID]],DataTable,6,FALSE)-VLOOKUP(Table_Data_Table_1[[#This Row],[Item ID]],DataTable,13,FALSE),IF(Table_Data_Table_1[[#This Row],[Valuation Method]]=\"Allocation\",VLOOKUP(Table_Data_Table_1[[#This Row],[Item ID]],DataTable,6,FALSE)*I461,\"\")))","v":""},{"$f":"IF(Table_Data_Table_1[[#This Row],[Valuation Method]]=\"Vacant\",\"N/A\",IF(Table_Data_Table_1[[#This Row],[Valuation Method]]=\"Abstraction\",Table_Data_Table_1[[#This Row],[Land\nResidual]]/VLOOKUP(Table_Data_Table_1[[#This Row],[Item ID]],DataTable,6,FALSE),IF(Table_Data_Table_1[[#This Row],[Valuation Method]]=\"Allocation\",'Global Settings'!$H$20,\"\")))","v":""},{"$f":"IFERROR(ROUND(Table_Data_Table_1[[#This Row],[Resid\nSq Ft]]/43560,3),\"\")","v":""},{"$f":"IF(Table_Data_Table_1[[#This Row],[Item ID]]=\"\",\"\",IFERROR(VLOOKUP(Table_Data_Table_1[[#This Row],[Item ID]],DataTable,10,FALSE)-VLOOKUP(Table_Data_Table_1[[#This Row],[Item ID]],DataTable,12,FALSE),\"\"))","v":""},{"$f":"IFERROR(Table_Data_Table_1[[#This Row],[Land\nResidual]]/Table_Data_Table_1[[#This Row],[Resid\nAcre]],\"\")","v":""},{"$f":"IFERROR(ROUND(Table_Data_Table_1[[#This Row],[Land\nResidual]]/Table_Data_Table_1[[#This Row],[Resid\nSq Ft]],2),\"\")","v":""},{"$f":"IF(Table_Data_Table_1[[#This Row],[Item ID]]=\"\",\"\",ROUND(DAYS360(Table_Data_Table_1[[#This Row],[Sale Date]],'Global Settings'!$H$5)/30,0))","v":""},{"$f":"IFERROR(IF(AND(Table_Data_Table_1[[#This Row],[Months To\nMid-Point]]<12.01,Table_Data_Table_1[[#This Row],[Months To\nMid-Point]]>-13),0,(Table_Data_Table_1[[#This Row],[Months To\nMid-Point]]*'Global Settings'!$H$6)),\"\")","v":""},{"$f":"IFERROR(Table_Data_Table_1[[#This Row],[Land\nResidual]]*(Table_Data_Table_1[[#This Row],[Time\nAdjust]]+1),\"\")","v":""},{"$f":"IFERROR(Table_Data_Table_1[[#This Row],[Adjusted\nSale Price]]/Table_Data_Table_1[[#This Row],[Resid\nAcre]],\"\")","v":""},{"$f":"IFERROR(ROUND(Table_Data_Table_1[[#This Row],[Adjusted\nSale Price]]/Table_Data_Table_1[[#This Row],[Resid\nSq Ft]],2),\"\")","v":""},{"$f":"IFERROR(IF(VLOOKUP(Table_Data_Table_1[[#This Row],[Item ID]],DataTable,11,FALSE)=0,\"N/A\",Table_Data_Table_1[[#This Row],[Adjusted\nSale Price]]/VLOOKUP(Table_Data_Table_1[[#This Row],[Item ID]],DataTable,11,FALSE)),\"\")","v":""},{"$f":"IF(IFERROR(VLOOKUP(Table_Data_Table_1[[#This Row],[Item ID]],DataTable,17,FALSE),\"\")=0,\"\",IFERROR(VLOOKUP(Table_Data_Table_1[[#This Row],[Item ID]],DataTable,17,FALSE),\"\"))","v":""}]
["",null,{"$f":"IF(Table_Data_Table_1[[#This Row],[Item ID]]=\"\",\"\",IFERROR(VLOOKUP(Table_Data_Table_1[[#This Row],[Item ID]],DataTable,16,FALSE),\"\"))","v":""},null,null,null,null,{"$f":"IF(Table_Data_Table_1[[#This Row],[Valuation Method]]=\"Vacant\",VLOOKUP(Table_Data_Table_1[[#This Row],[Item ID]],DataTable,6,FALSE)-VLOOKUP(Table_Data_Table_1[[#This Row],[Item ID]],DataTable,13,FALSE),IF(Table_Data_Table_1[[#This Row],[Valuation Method]]=\"Abstraction\",VLOOKUP(Table_Data_Table_1[[#This Row],[Item ID]],DataTable,6,FALSE)-VLOOKUP(Table_Data_Table_1[[#This Row],[Item ID]],DataTable,13,FALSE),IF(Table_Data_Table_1[[#This Row],[Valuation Method]]=\"Allocation\",VLOOKUP(Table_Data_Table_1[[#This Row],[Item ID]],DataTable,6,FALSE)*I462,\"\")))","v":""},{"$f":"IF(Table_Data_Table_1[[#This Row],[Valuation Method]]=\"Vacant\",\"N/A\",IF(Table_Data_Table_1[[#This Row],[Valuation Method]]=\"Abstraction\",Table_Data_Table_1[[#This Row],[Land\nResidual]]/VLOOKUP(Table_Data_Table_1[[#This Row],[Item ID]],DataTable,6,FALSE),IF(Table_Data_Table_1[[#This Row],[Valuation Method]]=\"Allocation\",'Global Settings'!$H$20,\"\")))","v":""},{"$f":"IFERROR(ROUND(Table_Data_Table_1[[#This Row],[Resid\nSq Ft]]/43560,3),\"\")","v":""},{"$f":"IF(Table_Data_Table_1[[#This Row],[Item ID]]=\"\",\"\",IFERROR(VLOOKUP(Table_Data_Table_1[[#This Row],[Item ID]],DataTable,10,FALSE)-VLOOKUP(Table_Data_Table_1[[#This Row],[Item ID]],DataTable,12,FALSE),\"\"))","v":""},{"$f":"IFERROR(Table_Data_Table_1[[#This Row],[Land\nResidual]]/Table_Data_Table_1[[#This Row],[Resid\nAcre]],\"\")","v":""},{"$f":"IFERROR(ROUND(Table_Data_Table_1[[#This Row],[Land\nResidual]]/Table_Data_Table_1[[#This Row],[Resid\nSq Ft]],2),\"\")","v":""},{"$f":"IF(Table_Data_Table_1[[#This Row],[Item ID]]=\"\",\"\",ROUND(DAYS360(Table_Data_Table_1[[#This Row],[Sale Date]],'Global Settings'!$H$5)/30,0))","v":""},{"$f":"IFERROR(IF(AND(Table_Data_Table_1[[#This Row],[Months To\nMid-Point]]<12.01,Table_Data_Table_1[[#This Row],[Months To\nMid-Point]]>-13),0,(Table_Data_Table_1[[#This Row],[Months To\nMid-Point]]*'Global Settings'!$H$6)),\"\")","v":""},{"$f":"IFERROR(Table_Data_Table_1[[#This Row],[Land\nResidual]]*(Table_Data_Table_1[[#This Row],[Time\nAdjust]]+1),\"\")","v":""},{"$f":"IFERROR(Table_Data_Table_1[[#This Row],[Adjusted\nSale Price]]/Table_Data_Table_1[[#This Row],[Resid\nAcre]],\"\")","v":""},{"$f":"IFERROR(ROUND(Table_Data_Table_1[[#This Row],[Adjusted\nSale Price]]/Table_Data_Table_1[[#This Row],[Resid\nSq Ft]],2),\"\")","v":""},{"$f":"IFERROR(IF(VLOOKUP(Table_Data_Table_1[[#This Row],[Item ID]],DataTable,11,FALSE)=0,\"N/A\",Table_Data_Table_1[[#This Row],[Adjusted\nSale Price]]/VLOOKUP(Table_Data_Table_1[[#This Row],[Item ID]],DataTable,11,FALSE)),\"\")","v":""},{"$f":"IF(IFERROR(VLOOKUP(Table_Data_Table_1[[#This Row],[Item ID]],DataTable,17,FALSE),\"\")=0,\"\",IFERROR(VLOOKUP(Table_Data_Table_1[[#This Row],[Item ID]],DataTable,17,FALSE),\"\"))","v":""}]
["",null,{"$f":"IF(Table_Data_Table_1[[#This Row],[Item ID]]=\"\",\"\",IFERROR(VLOOKUP(Table_Data_Table_1[[#This Row],[Item ID]],DataTable,16,FALSE),\"\"))","v":""},null,null,null,null,{"$f":"IF(Table_Data_Table_1[[#This Row],[Valuation Method]]=\"Vacant\",VLOOKUP(Table_Data_Table_1[[#This Row],[Item ID]],DataTable,6,FALSE)-VLOOKUP(Table_Data_Table_1[[#This Row],[Item ID]],DataTable,13,FALSE),IF(Table_Data_Table_1[[#This Row],[Valuation Method]]=\"Abstraction\",VLOOKUP(Table_Data_Table_1[[#This Row],[Item ID]],DataTable,6,FALSE)-VLOOKUP(Table_Data_Table_1[[#This Row],[Item ID]],DataTable,13,FALSE),IF(Table_Data_Table_1[[#This Row],[Valuation Method]]=\"Allocation\",VLOOKUP(Table_Data_Table_1[[#This Row],[Item ID]],DataTable,6,FALSE)*I463,\"\")))","v":""},{"$f":"IF(Table_Data_Table_1[[#This Row],[Valuation Method]]=\"Vacant\",\"N/A\",IF(Table_Data_Table_1[[#This Row],[Valuation Method]]=\"Abstraction\",Table_Data_Table_1[[#This Row],[Land\nResidual]]/VLOOKUP(Table_Data_Table_1[[#This Row],[Item ID]],DataTable,6,FALSE),IF(Table_Data_Table_1[[#This Row],[Valuation Method]]=\"Allocation\",'Global Settings'!$H$20,\"\")))","v":""},{"$f":"IFERROR(ROUND(Table_Data_Table_1[[#This Row],[Resid\nSq Ft]]/43560,3),\"\")","v":""},{"$f":"IF(Table_Data_Table_1[[#This Row],[Item ID]]=\"\",\"\",IFERROR(VLOOKUP(Table_Data_Table_1[[#This Row],[Item ID]],DataTable,10,FALSE)-VLOOKUP(Table_Data_Table_1[[#This Row],[Item ID]],DataTable,12,FALSE),\"\"))","v":""},{"$f":"IFERROR(Table_Data_Table_1[[#This Row],[Land\nResidual]]/Table_Data_Table_1[[#This Row],[Resid\nAcre]],\"\")","v":""},{"$f":"IFERROR(ROUND(Table_Data_Table_1[[#This Row],[Land\nResidual]]/Table_Data_Table_1[[#This Row],[Resid\nSq Ft]],2),\"\")","v":""},{"$f":"IF(Table_Data_Table_1[[#This Row],[Item ID]]=\"\",\"\",ROUND(DAYS360(Table_Data_Table_1[[#This Row],[Sale Date]],'Global Settings'!$H$5)/30,0))","v":""},{"$f":"IFERROR(IF(AND(Table_Data_Table_1[[#This Row],[Months To\nMid-Point]]<12.01,Table_Data_Table_1[[#This Row],[Months To\nMid-Point]]>-13),0,(Table_Data_Table_1[[#This Row],[Months To\nMid-Point]]*'Global Settings'!$H$6)),\"\")","v":""},{"$f":"IFERROR(Table_Data_Table_1[[#This Row],[Land\nResidual]]*(Table_Data_Table_1[[#This Row],[Time\nAdjust]]+1),\"\")","v":""},{"$f":"IFERROR(Table_Data_Table_1[[#This Row],[Adjusted\nSale Price]]/Table_Data_Table_1[[#This Row],[Resid\nAcre]],\"\")","v":""},{"$f":"IFERROR(ROUND(Table_Data_Table_1[[#This Row],[Adjusted\nSale Price]]/Table_Data_Table_1[[#This Row],[Resid\nSq Ft]],2),\"\")","v":""},{"$f":"IFERROR(IF(VLOOKUP(Table_Data_Table_1[[#This Row],[Item ID]],DataTable,11,FALSE)=0,\"N/A\",Table_Data_Table_1[[#This Row],[Adjusted\nSale Price]]/VLOOKUP(Table_Data_Table_1[[#This Row],[Item ID]],DataTable,11,FALSE)),\"\")","v":""},{"$f":"IF(IFERROR(VLOOKUP(Table_Data_Table_1[[#This Row],[Item ID]],DataTable,17,FALSE),\"\")=0,\"\",IFERROR(VLOOKUP(Table_Data_Table_1[[#This Row],[Item ID]],DataTable,17,FALSE),\"\"))","v":""}]
["",null,{"$f":"IF(Table_Data_Table_1[[#This Row],[Item ID]]=\"\",\"\",IFERROR(VLOOKUP(Table_Data_Table_1[[#This Row],[Item ID]],DataTable,16,FALSE),\"\"))","v":""},null,null,null,null,{"$f":"IF(Table_Data_Table_1[[#This Row],[Valuation Method]]=\"Vacant\",VLOOKUP(Table_Data_Table_1[[#This Row],[Item ID]],DataTable,6,FALSE)-VLOOKUP(Table_Data_Table_1[[#This Row],[Item ID]],DataTable,13,FALSE),IF(Table_Data_Table_1[[#This Row],[Valuation Method]]=\"Abstraction\",VLOOKUP(Table_Data_Table_1[[#This Row],[Item ID]],DataTable,6,FALSE)-VLOOKUP(Table_Data_Table_1[[#This Row],[Item ID]],DataTable,13,FALSE),IF(Table_Data_Table_1[[#This Row],[Valuation Method]]=\"Allocation\",VLOOKUP(Table_Data_Table_1[[#This Row],[Item ID]],DataTable,6,FALSE)*I464,\"\")))","v":""},{"$f":"IF(Table_Data_Table_1[[#This Row],[Valuation Method]]=\"Vacant\",\"N/A\",IF(Table_Data_Table_1[[#This Row],[Valuation Method]]=\"Abstraction\",Table_Data_Table_1[[#This Row],[Land\nResidual]]/VLOOKUP(Table_Data_Table_1[[#This Row],[Item ID]],DataTable,6,FALSE),IF(Table_Data_Table_1[[#This Row],[Valuation Method]]=\"Allocation\",'Global Settings'!$H$20,\"\")))","v":""},{"$f":"IFERROR(ROUND(Table_Data_Table_1[[#This Row],[Resid\nSq Ft]]/43560,3),\"\")","v":""},{"$f":"IF(Table_Data_Table_1[[#This Row],[Item ID]]=\"\",\"\",IFERROR(VLOOKUP(Table_Data_Table_1[[#This Row],[Item ID]],DataTable,10,FALSE)-VLOOKUP(Table_Data_Table_1[[#This Row],[Item ID]],DataTable,12,FALSE),\"\"))","v":""},{"$f":"IFERROR(Table_Data_Table_1[[#This Row],[Land\nResidual]]/Table_Data_Table_1[[#This Row],[Resid\nAcre]],\"\")","v":""},{"$f":"IFERROR(ROUND(Table_Data_Table_1[[#This Row],[Land\nResidual]]/Table_Data_Table_1[[#This Row],[Resid\nSq Ft]],2),\"\")","v":""},{"$f":"IF(Table_Data_Table_1[[#This Row],[Item ID]]=\"\",\"\",ROUND(DAYS360(Table_Data_Table_1[[#This Row],[Sale Date]],'Global Settings'!$H$5)/30,0))","v":""},{"$f":"IFERROR(IF(AND(Table_Data_Table_1[[#This Row],[Months To\nMid-Point]]<12.01,Table_Data_Table_1[[#This Row],[Months To\nMid-Point]]>-13),0,(Table_Data_Table_1[[#This Row],[Months To\nMid-Point]]*'Global Settings'!$H$6)),\"\")","v":""},{"$f":"IFERROR(Table_Data_Table_1[[#This Row],[Land\nResidual]]*(Table_Data_Table_1[[#This Row],[Time\nAdjust]]+1),\"\")","v":""},{"$f":"IFERROR(Table_Data_Table_1[[#This Row],[Adjusted\nSale Price]]/Table_Data_Table_1[[#This Row],[Resid\nAcre]],\"\")","v":""},{"$f":"IFERROR(ROUND(Table_Data_Table_1[[#This Row],[Adjusted\nSale Price]]/Table_Data_Table_1[[#This Row],[Resid\nSq Ft]],2),\"\")","v":""},{"$f":"IFERROR(IF(VLOOKUP(Table_Data_Table_1[[#This Row],[Item ID]],DataTable,11,FALSE)=0,\"N/A\",Table_Data_Table_1[[#This Row],[Adjusted\nSale Price]]/VLOOKUP(Table_Data_Table_1[[#This Row],[Item ID]],DataTable,11,FALSE)),\"\")","v":""},{"$f":"IF(IFERROR(VLOOKUP(Table_Data_Table_1[[#This Row],[Item ID]],DataTable,17,FALSE),\"\")=0,\"\",IFERROR(VLOOKUP(Table_Data_Table_1[[#This Row],[Item ID]],DataTable,17,FALSE),\"\"))","v":""}]
["",null,{"$f":"IF(Table_Data_Table_1[[#This Row],[Item ID]]=\"\",\"\",IFERROR(VLOOKUP(Table_Data_Table_1[[#This Row],[Item ID]],DataTable,16,FALSE),\"\"))","v":""},null,null,null,null,{"$f":"IF(Table_Data_Table_1[[#This Row],[Valuation Method]]=\"Vacant\",VLOOKUP(Table_Data_Table_1[[#This Row],[Item ID]],DataTable,6,FALSE)-VLOOKUP(Table_Data_Table_1[[#This Row],[Item ID]],DataTable,13,FALSE),IF(Table_Data_Table_1[[#This Row],[Valuation Method]]=\"Abstraction\",VLOOKUP(Table_Data_Table_1[[#This Row],[Item ID]],DataTable,6,FALSE)-VLOOKUP(Table_Data_Table_1[[#This Row],[Item ID]],DataTable,13,FALSE),IF(Table_Data_Table_1[[#This Row],[Valuation Method]]=\"Allocation\",VLOOKUP(Table_Data_Table_1[[#This Row],[Item ID]],DataTable,6,FALSE)*I465,\"\")))","v":""},{"$f":"IF(Table_Data_Table_1[[#This Row],[Valuation Method]]=\"Vacant\",\"N/A\",IF(Table_Data_Table_1[[#This Row],[Valuation Method]]=\"Abstraction\",Table_Data_Table_1[[#This Row],[Land\nResidual]]/VLOOKUP(Table_Data_Table_1[[#This Row],[Item ID]],DataTable,6,FALSE),IF(Table_Data_Table_1[[#This Row],[Valuation Method]]=\"Allocation\",'Global Settings'!$H$20,\"\")))","v":""},{"$f":"IFERROR(ROUND(Table_Data_Table_1[[#This Row],[Resid\nSq Ft]]/43560,3),\"\")","v":""},{"$f":"IF(Table_Data_Table_1[[#This Row],[Item ID]]=\"\",\"\",IFERROR(VLOOKUP(Table_Data_Table_1[[#This Row],[Item ID]],DataTable,10,FALSE)-VLOOKUP(Table_Data_Table_1[[#This Row],[Item ID]],DataTable,12,FALSE),\"\"))","v":""},{"$f":"IFERROR(Table_Data_Table_1[[#This Row],[Land\nResidual]]/Table_Data_Table_1[[#This Row],[Resid\nAcre]],\"\")","v":""},{"$f":"IFERROR(ROUND(Table_Data_Table_1[[#This Row],[Land\nResidual]]/Table_Data_Table_1[[#This Row],[Resid\nSq Ft]],2),\"\")","v":""},{"$f":"IF(Table_Data_Table_1[[#This Row],[Item ID]]=\"\",\"\",ROUND(DAYS360(Table_Data_Table_1[[#This Row],[Sale Date]],'Global Settings'!$H$5)/30,0))","v":""},{"$f":"IFERROR(IF(AND(Table_Data_Table_1[[#This Row],[Months To\nMid-Point]]<12.01,Table_Data_Table_1[[#This Row],[Months To\nMid-Point]]>-13),0,(Table_Data_Table_1[[#This Row],[Months To\nMid-Point]]*'Global Settings'!$H$6)),\"\")","v":""},{"$f":"IFERROR(Table_Data_Table_1[[#This Row],[Land\nResidual]]*(Table_Data_Table_1[[#This Row],[Time\nAdjust]]+1),\"\")","v":""},{"$f":"IFERROR(Table_Data_Table_1[[#This Row],[Adjusted\nSale Price]]/Table_Data_Table_1[[#This Row],[Resid\nAcre]],\"\")","v":""},{"$f":"IFERROR(ROUND(Table_Data_Table_1[[#This Row],[Adjusted\nSale Price]]/Table_Data_Table_1[[#This Row],[Resid\nSq Ft]],2),\"\")","v":""},{"$f":"IFERROR(IF(VLOOKUP(Table_Data_Table_1[[#This Row],[Item ID]],DataTable,11,FALSE)=0,\"N/A\",Table_Data_Table_1[[#This Row],[Adjusted\nSale Price]]/VLOOKUP(Table_Data_Table_1[[#This Row],[Item ID]],DataTable,11,FALSE)),\"\")","v":""},{"$f":"IF(IFERROR(VLOOKUP(Table_Data_Table_1[[#This Row],[Item ID]],DataTable,17,FALSE),\"\")=0,\"\",IFERROR(VLOOKUP(Table_Data_Table_1[[#This Row],[Item ID]],DataTable,17,FALSE),\"\"))","v":""}]
["",null,{"$f":"IF(Table_Data_Table_1[[#This Row],[Item ID]]=\"\",\"\",IFERROR(VLOOKUP(Table_Data_Table_1[[#This Row],[Item ID]],DataTable,16,FALSE),\"\"))","v":""},null,null,null,null,{"$f":"IF(Table_Data_Table_1[[#This Row],[Valuation Method]]=\"Vacant\",VLOOKUP(Table_Data_Table_1[[#This Row],[Item ID]],DataTable,6,FALSE)-VLOOKUP(Table_Data_Table_1[[#This Row],[Item ID]],DataTable,13,FALSE),IF(Table_Data_Table_1[[#This Row],[Valuation Method]]=\"Abstraction\",VLOOKUP(Table_Data_Table_1[[#This Row],[Item ID]],DataTable,6,FALSE)-VLOOKUP(Table_Data_Table_1[[#This Row],[Item ID]],DataTable,13,FALSE),IF(Table_Data_Table_1[[#This Row],[Valuation Method]]=\"Allocation\",VLOOKUP(Table_Data_Table_1[[#This Row],[Item ID]],DataTable,6,FALSE)*I466,\"\")))","v":""},{"$f":"IF(Table_Data_Table_1[[#This Row],[Valuation Method]]=\"Vacant\",\"N/A\",IF(Table_Data_Table_1[[#This Row],[Valuation Method]]=\"Abstraction\",Table_Data_Table_1[[#This Row],[Land\nResidual]]/VLOOKUP(Table_Data_Table_1[[#This Row],[Item ID]],DataTable,6,FALSE),IF(Table_Data_Table_1[[#This Row],[Valuation Method]]=\"Allocation\",'Global Settings'!$H$20,\"\")))","v":""},{"$f":"IFERROR(ROUND(Table_Data_Table_1[[#This Row],[Resid\nSq Ft]]/43560,3),\"\")","v":""},{"$f":"IF(Table_Data_Table_1[[#This Row],[Item ID]]=\"\",\"\",IFERROR(VLOOKUP(Table_Data_Table_1[[#This Row],[Item ID]],DataTable,10,FALSE)-VLOOKUP(Table_Data_Table_1[[#This Row],[Item ID]],DataTable,12,FALSE),\"\"))","v":""},{"$f":"IFERROR(Table_Data_Table_1[[#This Row],[Land\nResidual]]/Table_Data_Table_1[[#This Row],[Resid\nAcre]],\"\")","v":""},{"$f":"IFERROR(ROUND(Table_Data_Table_1[[#This Row],[Land\nResidual]]/Table_Data_Table_1[[#This Row],[Resid\nSq Ft]],2),\"\")","v":""},{"$f":"IF(Table_Data_Table_1[[#This Row],[Item ID]]=\"\",\"\",ROUND(DAYS360(Table_Data_Table_1[[#This Row],[Sale Date]],'Global Settings'!$H$5)/30,0))","v":""},{"$f":"IFERROR(IF(AND(Table_Data_Table_1[[#This Row],[Months To\nMid-Point]]<12.01,Table_Data_Table_1[[#This Row],[Months To\nMid-Point]]>-13),0,(Table_Data_Table_1[[#This Row],[Months To\nMid-Point]]*'Global Settings'!$H$6)),\"\")","v":""},{"$f":"IFERROR(Table_Data_Table_1[[#This Row],[Land\nResidual]]*(Table_Data_Table_1[[#This Row],[Time\nAdjust]]+1),\"\")","v":""},{"$f":"IFERROR(Table_Data_Table_1[[#This Row],[Adjusted\nSale Price]]/Table_Data_Table_1[[#This Row],[Resid\nAcre]],\"\")","v":""},{"$f":"IFERROR(ROUND(Table_Data_Table_1[[#This Row],[Adjusted\nSale Price]]/Table_Data_Table_1[[#This Row],[Resid\nSq Ft]],2),\"\")","v":""},{"$f":"IFERROR(IF(VLOOKUP(Table_Data_Table_1[[#This Row],[Item ID]],DataTable,11,FALSE)=0,\"N/A\",Table_Data_Table_1[[#This Row],[Adjusted\nSale Price]]/VLOOKUP(Table_Data_Table_1[[#This Row],[Item ID]],DataTable,11,FALSE)),\"\")","v":""},{"$f":"IF(IFERROR(VLOOKUP(Table_Data_Table_1[[#This Row],[Item ID]],DataTable,17,FALSE),\"\")=0,\"\",IFERROR(VLOOKUP(Table_Data_Table_1[[#This Row],[Item ID]],DataTable,17,FALSE),\"\"))","v":""}]
["",null,{"$f":"IF(Table_Data_Table_1[[#This Row],[Item ID]]=\"\",\"\",IFERROR(VLOOKUP(Table_Data_Table_1[[#This Row],[Item ID]],DataTable,16,FALSE),\"\"))","v":""},null,null,null,null,{"$f":"IF(Table_Data_Table_1[[#This Row],[Valuation Method]]=\"Vacant\",VLOOKUP(Table_Data_Table_1[[#This Row],[Item ID]],DataTable,6,FALSE)-VLOOKUP(Table_Data_Table_1[[#This Row],[Item ID]],DataTable,13,FALSE),IF(Table_Data_Table_1[[#This Row],[Valuation Method]]=\"Abstraction\",VLOOKUP(Table_Data_Table_1[[#This Row],[Item ID]],DataTable,6,FALSE)-VLOOKUP(Table_Data_Table_1[[#This Row],[Item ID]],DataTable,13,FALSE),IF(Table_Data_Table_1[[#This Row],[Valuation Method]]=\"Allocation\",VLOOKUP(Table_Data_Table_1[[#This Row],[Item ID]],DataTable,6,FALSE)*I467,\"\")))","v":""},{"$f":"IF(Table_Data_Table_1[[#This Row],[Valuation Method]]=\"Vacant\",\"N/A\",IF(Table_Data_Table_1[[#This Row],[Valuation Method]]=\"Abstraction\",Table_Data_Table_1[[#This Row],[Land\nResidual]]/VLOOKUP(Table_Data_Table_1[[#This Row],[Item ID]],DataTable,6,FALSE),IF(Table_Data_Table_1[[#This Row],[Valuation Method]]=\"Allocation\",'Global Settings'!$H$20,\"\")))","v":""},{"$f":"IFERROR(ROUND(Table_Data_Table_1[[#This Row],[Resid\nSq Ft]]/43560,3),\"\")","v":""},{"$f":"IF(Table_Data_Table_1[[#This Row],[Item ID]]=\"\",\"\",IFERROR(VLOOKUP(Table_Data_Table_1[[#This Row],[Item ID]],DataTable,10,FALSE)-VLOOKUP(Table_Data_Table_1[[#This Row],[Item ID]],DataTable,12,FALSE),\"\"))","v":""},{"$f":"IFERROR(Table_Data_Table_1[[#This Row],[Land\nResidual]]/Table_Data_Table_1[[#This Row],[Resid\nAcre]],\"\")","v":""},{"$f":"IFERROR(ROUND(Table_Data_Table_1[[#This Row],[Land\nResidual]]/Table_Data_Table_1[[#This Row],[Resid\nSq Ft]],2),\"\")","v":""},{"$f":"IF(Table_Data_Table_1[[#This Row],[Item ID]]=\"\",\"\",ROUND(DAYS360(Table_Data_Table_1[[#This Row],[Sale Date]],'Global Settings'!$H$5)/30,0))","v":""},{"$f":"IFERROR(IF(AND(Table_Data_Table_1[[#This Row],[Months To\nMid-Point]]<12.01,Table_Data_Table_1[[#This Row],[Months To\nMid-Point]]>-13),0,(Table_Data_Table_1[[#This Row],[Months To\nMid-Point]]*'Global Settings'!$H$6)),\"\")","v":""},{"$f":"IFERROR(Table_Data_Table_1[[#This Row],[Land\nResidual]]*(Table_Data_Table_1[[#This Row],[Time\nAdjust]]+1),\"\")","v":""},{"$f":"IFERROR(Table_Data_Table_1[[#This Row],[Adjusted\nSale Price]]/Table_Data_Table_1[[#This Row],[Resid\nAcre]],\"\")","v":""},{"$f":"IFERROR(ROUND(Table_Data_Table_1[[#This Row],[Adjusted\nSale Price]]/Table_Data_Table_1[[#This Row],[Resid\nSq Ft]],2),\"\")","v":""},{"$f":"IFERROR(IF(VLOOKUP(Table_Data_Table_1[[#This Row],[Item ID]],DataTable,11,FALSE)=0,\"N/A\",Table_Data_Table_1[[#This Row],[Adjusted\nSale Price]]/VLOOKUP(Table_Data_Table_1[[#This Row],[Item ID]],DataTable,11,FALSE)),\"\")","v":""},{"$f":"IF(IFERROR(VLOOKUP(Table_Data_Table_1[[#This Row],[Item ID]],DataTable,17,FALSE),\"\")=0,\"\",IFERROR(VLOOKUP(Table_Data_Table_1[[#This Row],[Item ID]],DataTable,17,FALSE),\"\"))","v":""}]
["",null,{"$f":"IF(Table_Data_Table_1[[#This Row],[Item ID]]=\"\",\"\",IFERROR(VLOOKUP(Table_Data_Table_1[[#This Row],[Item ID]],DataTable,16,FALSE),\"\"))","v":""},null,null,null,null,{"$f":"IF(Table_Data_Table_1[[#This Row],[Valuation Method]]=\"Vacant\",VLOOKUP(Table_Data_Table_1[[#This Row],[Item ID]],DataTable,6,FALSE)-VLOOKUP(Table_Data_Table_1[[#This Row],[Item ID]],DataTable,13,FALSE),IF(Table_Data_Table_1[[#This Row],[Valuation Method]]=\"Abstraction\",VLOOKUP(Table_Data_Table_1[[#This Row],[Item ID]],DataTable,6,FALSE)-VLOOKUP(Table_Data_Table_1[[#This Row],[Item ID]],DataTable,13,FALSE),IF(Table_Data_Table_1[[#This Row],[Valuation Method]]=\"Allocation\",VLOOKUP(Table_Data_Table_1[[#This Row],[Item ID]],DataTable,6,FALSE)*I468,\"\")))","v":""},{"$f":"IF(Table_Data_Table_1[[#This Row],[Valuation Method]]=\"Vacant\",\"N/A\",IF(Table_Data_Table_1[[#This Row],[Valuation Method]]=\"Abstraction\",Table_Data_Table_1[[#This Row],[Land\nResidual]]/VLOOKUP(Table_Data_Table_1[[#This Row],[Item ID]],DataTable,6,FALSE),IF(Table_Data_Table_1[[#This Row],[Valuation Method]]=\"Allocation\",'Global Settings'!$H$20,\"\")))","v":""},{"$f":"IFERROR(ROUND(Table_Data_Table_1[[#This Row],[Resid\nSq Ft]]/43560,3),\"\")","v":""},{"$f":"IF(Table_Data_Table_1[[#This Row],[Item ID]]=\"\",\"\",IFERROR(VLOOKUP(Table_Data_Table_1[[#This Row],[Item ID]],DataTable,10,FALSE)-VLOOKUP(Table_Data_Table_1[[#This Row],[Item ID]],DataTable,12,FALSE),\"\"))","v":""},{"$f":"IFERROR(Table_Data_Table_1[[#This Row],[Land\nResidual]]/Table_Data_Table_1[[#This Row],[Resid\nAcre]],\"\")","v":""},{"$f":"IFERROR(ROUND(Table_Data_Table_1[[#This Row],[Land\nResidual]]/Table_Data_Table_1[[#This Row],[Resid\nSq Ft]],2),\"\")","v":""},{"$f":"IF(Table_Data_Table_1[[#This Row],[Item ID]]=\"\",\"\",ROUND(DAYS360(Table_Data_Table_1[[#This Row],[Sale Date]],'Global Settings'!$H$5)/30,0))","v":""},{"$f":"IFERROR(IF(AND(Table_Data_Table_1[[#This Row],[Months To\nMid-Point]]<12.01,Table_Data_Table_1[[#This Row],[Months To\nMid-Point]]>-13),0,(Table_Data_Table_1[[#This Row],[Months To\nMid-Point]]*'Global Settings'!$H$6)),\"\")","v":""},{"$f":"IFERROR(Table_Data_Table_1[[#This Row],[Land\nResidual]]*(Table_Data_Table_1[[#This Row],[Time\nAdjust]]+1),\"\")","v":""},{"$f":"IFERROR(Table_Data_Table_1[[#This Row],[Adjusted\nSale Price]]/Table_Data_Table_1[[#This Row],[Resid\nAcre]],\"\")","v":""},{"$f":"IFERROR(ROUND(Table_Data_Table_1[[#This Row],[Adjusted\nSale Price]]/Table_Data_Table_1[[#This Row],[Resid\nSq Ft]],2),\"\")","v":""},{"$f":"IFERROR(IF(VLOOKUP(Table_Data_Table_1[[#This Row],[Item ID]],DataTable,11,FALSE)=0,\"N/A\",Table_Data_Table_1[[#This Row],[Adjusted\nSale Price]]/VLOOKUP(Table_Data_Table_1[[#This Row],[Item ID]],DataTable,11,FALSE)),\"\")","v":""},{"$f":"IF(IFERROR(VLOOKUP(Table_Data_Table_1[[#This Row],[Item ID]],DataTable,17,FALSE),\"\")=0,\"\",IFERROR(VLOOKUP(Table_Data_Table_1[[#This Row],[Item ID]],DataTable,17,FALSE),\"\"))","v":""}]
["",null,{"$f":"IF(Table_Data_Table_1[[#This Row],[Item ID]]=\"\",\"\",IFERROR(VLOOKUP(Table_Data_Table_1[[#This Row],[Item ID]],DataTable,16,FALSE),\"\"))","v":""},null,null,null,null,{"$f":"IF(Table_Data_Table_1[[#This Row],[Valuation Method]]=\"Vacant\",VLOOKUP(Table_Data_Table_1[[#This Row],[Item ID]],DataTable,6,FALSE)-VLOOKUP(Table_Data_Table_1[[#This Row],[Item ID]],DataTable,13,FALSE),IF(Table_Data_Table_1[[#This Row],[Valuation Method]]=\"Abstraction\",VLOOKUP(Table_Data_Table_1[[#This Row],[Item ID]],DataTable,6,FALSE)-VLOOKUP(Table_Data_Table_1[[#This Row],[Item ID]],DataTable,13,FALSE),IF(Table_Data_Table_1[[#This Row],[Valuation Method]]=\"Allocation\",VLOOKUP(Table_Data_Table_1[[#This Row],[Item ID]],DataTable,6,FALSE)*I469,\"\")))","v":""},{"$f":"IF(Table_Data_Table_1[[#This Row],[Valuation Method]]=\"Vacant\",\"N/A\",IF(Table_Data_Table_1[[#This Row],[Valuation Method]]=\"Abstraction\",Table_Data_Table_1[[#This Row],[Land\nResidual]]/VLOOKUP(Table_Data_Table_1[[#This Row],[Item ID]],DataTable,6,FALSE),IF(Table_Data_Table_1[[#This Row],[Valuation Method]]=\"Allocation\",'Global Settings'!$H$20,\"\")))","v":""},{"$f":"IFERROR(ROUND(Table_Data_Table_1[[#This Row],[Resid\nSq Ft]]/43560,3),\"\")","v":""},{"$f":"IF(Table_Data_Table_1[[#This Row],[Item ID]]=\"\",\"\",IFERROR(VLOOKUP(Table_Data_Table_1[[#This Row],[Item ID]],DataTable,10,FALSE)-VLOOKUP(Table_Data_Table_1[[#This Row],[Item ID]],DataTable,12,FALSE),\"\"))","v":""},{"$f":"IFERROR(Table_Data_Table_1[[#This Row],[Land\nResidual]]/Table_Data_Table_1[[#This Row],[Resid\nAcre]],\"\")","v":""},{"$f":"IFERROR(ROUND(Table_Data_Table_1[[#This Row],[Land\nResidual]]/Table_Data_Table_1[[#This Row],[Resid\nSq Ft]],2),\"\")","v":""},{"$f":"IF(Table_Data_Table_1[[#This Row],[Item ID]]=\"\",\"\",ROUND(DAYS360(Table_Data_Table_1[[#This Row],[Sale Date]],'Global Settings'!$H$5)/30,0))","v":""},{"$f":"IFERROR(IF(AND(Table_Data_Table_1[[#This Row],[Months To\nMid-Point]]<12.01,Table_Data_Table_1[[#This Row],[Months To\nMid-Point]]>-13),0,(Table_Data_Table_1[[#This Row],[Months To\nMid-Point]]*'Global Settings'!$H$6)),\"\")","v":""},{"$f":"IFERROR(Table_Data_Table_1[[#This Row],[Land\nResidual]]*(Table_Data_Table_1[[#This Row],[Time\nAdjust]]+1),\"\")","v":""},{"$f":"IFERROR(Table_Data_Table_1[[#This Row],[Adjusted\nSale Price]]/Table_Data_Table_1[[#This Row],[Resid\nAcre]],\"\")","v":""},{"$f":"IFERROR(ROUND(Table_Data_Table_1[[#This Row],[Adjusted\nSale Price]]/Table_Data_Table_1[[#This Row],[Resid\nSq Ft]],2),\"\")","v":""},{"$f":"IFERROR(IF(VLOOKUP(Table_Data_Table_1[[#This Row],[Item ID]],DataTable,11,FALSE)=0,\"N/A\",Table_Data_Table_1[[#This Row],[Adjusted\nSale Price]]/VLOOKUP(Table_Data_Table_1[[#This Row],[Item ID]],DataTable,11,FALSE)),\"\")","v":""},{"$f":"IF(IFERROR(VLOOKUP(Table_Data_Table_1[[#This Row],[Item ID]],DataTable,17,FALSE),\"\")=0,\"\",IFERROR(VLOOKUP(Table_Data_Table_1[[#This Row],[Item ID]],DataTable,17,FALSE),\"\"))","v":""}]
["",null,{"$f":"IF(Table_Data_Table_1[[#This Row],[Item ID]]=\"\",\"\",IFERROR(VLOOKUP(Table_Data_Table_1[[#This Row],[Item ID]],DataTable,16,FALSE),\"\"))","v":""},null,null,null,null,{"$f":"IF(Table_Data_Table_1[[#This Row],[Valuation Method]]=\"Vacant\",VLOOKUP(Table_Data_Table_1[[#This Row],[Item ID]],DataTable,6,FALSE)-VLOOKUP(Table_Data_Table_1[[#This Row],[Item ID]],DataTable,13,FALSE),IF(Table_Data_Table_1[[#This Row],[Valuation Method]]=\"Abstraction\",VLOOKUP(Table_Data_Table_1[[#This Row],[Item ID]],DataTable,6,FALSE)-VLOOKUP(Table_Data_Table_1[[#This Row],[Item ID]],DataTable,13,FALSE),IF(Table_Data_Table_1[[#This Row],[Valuation Method]]=\"Allocation\",VLOOKUP(Table_Data_Table_1[[#This Row],[Item ID]],DataTable,6,FALSE)*I470,\"\")))","v":""},{"$f":"IF(Table_Data_Table_1[[#This Row],[Valuation Method]]=\"Vacant\",\"N/A\",IF(Table_Data_Table_1[[#This Row],[Valuation Method]]=\"Abstraction\",Table_Data_Table_1[[#This Row],[Land\nResidual]]/VLOOKUP(Table_Data_Table_1[[#This Row],[Item ID]],DataTable,6,FALSE),IF(Table_Data_Table_1[[#This Row],[Valuation Method]]=\"Allocation\",'Global Settings'!$H$20,\"\")))","v":""},{"$f":"IFERROR(ROUND(Table_Data_Table_1[[#This Row],[Resid\nSq Ft]]/43560,3),\"\")","v":""},{"$f":"IF(Table_Data_Table_1[[#This Row],[Item ID]]=\"\",\"\",IFERROR(VLOOKUP(Table_Data_Table_1[[#This Row],[Item ID]],DataTable,10,FALSE)-VLOOKUP(Table_Data_Table_1[[#This Row],[Item ID]],DataTable,12,FALSE),\"\"))","v":""},{"$f":"IFERROR(Table_Data_Table_1[[#This Row],[Land\nResidual]]/Table_Data_Table_1[[#This Row],[Resid\nAcre]],\"\")","v":""},{"$f":"IFERROR(ROUND(Table_Data_Table_1[[#This Row],[Land\nResidual]]/Table_Data_Table_1[[#This Row],[Resid\nSq Ft]],2),\"\")","v":""},{"$f":"IF(Table_Data_Table_1[[#This Row],[Item ID]]=\"\",\"\",ROUND(DAYS360(Table_Data_Table_1[[#This Row],[Sale Date]],'Global Settings'!$H$5)/30,0))","v":""},{"$f":"IFERROR(IF(AND(Table_Data_Table_1[[#This Row],[Months To\nMid-Point]]<12.01,Table_Data_Table_1[[#This Row],[Months To\nMid-Point]]>-13),0,(Table_Data_Table_1[[#This Row],[Months To\nMid-Point]]*'Global Settings'!$H$6)),\"\")","v":""},{"$f":"IFERROR(Table_Data_Table_1[[#This Row],[Land\nResidual]]*(Table_Data_Table_1[[#This Row],[Time\nAdjust]]+1),\"\")","v":""},{"$f":"IFERROR(Table_Data_Table_1[[#This Row],[Adjusted\nSale Price]]/Table_Data_Table_1[[#This Row],[Resid\nAcre]],\"\")","v":""},{"$f":"IFERROR(ROUND(Table_Data_Table_1[[#This Row],[Adjusted\nSale Price]]/Table_Data_Table_1[[#This Row],[Resid\nSq Ft]],2),\"\")","v":""},{"$f":"IFERROR(IF(VLOOKUP(Table_Data_Table_1[[#This Row],[Item ID]],DataTable,11,FALSE)=0,\"N/A\",Table_Data_Table_1[[#This Row],[Adjusted\nSale Price]]/VLOOKUP(Table_Data_Table_1[[#This Row],[Item ID]],DataTable,11,FALSE)),\"\")","v":""},{"$f":"IF(IFERROR(VLOOKUP(Table_Data_Table_1[[#This Row],[Item ID]],DataTable,17,FALSE),\"\")=0,\"\",IFERROR(VLOOKUP(Table_Data_Table_1[[#This Row],[Item ID]],DataTable,17,FALSE),\"\"))","v":""}]
["",null,{"$f":"IF(Table_Data_Table_1[[#This Row],[Item ID]]=\"\",\"\",IFERROR(VLOOKUP(Table_Data_Table_1[[#This Row],[Item ID]],DataTable,16,FALSE),\"\"))","v":""},null,null,null,null,{"$f":"IF(Table_Data_Table_1[[#This Row],[Valuation Method]]=\"Vacant\",VLOOKUP(Table_Data_Table_1[[#This Row],[Item ID]],DataTable,6,FALSE)-VLOOKUP(Table_Data_Table_1[[#This Row],[Item ID]],DataTable,13,FALSE),IF(Table_Data_Table_1[[#This Row],[Valuation Method]]=\"Abstraction\",VLOOKUP(Table_Data_Table_1[[#This Row],[Item ID]],DataTable,6,FALSE)-VLOOKUP(Table_Data_Table_1[[#This Row],[Item ID]],DataTable,13,FALSE),IF(Table_Data_Table_1[[#This Row],[Valuation Method]]=\"Allocation\",VLOOKUP(Table_Data_Table_1[[#This Row],[Item ID]],DataTable,6,FALSE)*I471,\"\")))","v":""},{"$f":"IF(Table_Data_Table_1[[#This Row],[Valuation Method]]=\"Vacant\",\"N/A\",IF(Table_Data_Table_1[[#This Row],[Valuation Method]]=\"Abstraction\",Table_Data_Table_1[[#This Row],[Land\nResidual]]/VLOOKUP(Table_Data_Table_1[[#This Row],[Item ID]],DataTable,6,FALSE),IF(Table_Data_Table_1[[#This Row],[Valuation Method]]=\"Allocation\",'Global Settings'!$H$20,\"\")))","v":""},{"$f":"IFERROR(ROUND(Table_Data_Table_1[[#This Row],[Resid\nSq Ft]]/43560,3),\"\")","v":""},{"$f":"IF(Table_Data_Table_1[[#This Row],[Item ID]]=\"\",\"\",IFERROR(VLOOKUP(Table_Data_Table_1[[#This Row],[Item ID]],DataTable,10,FALSE)-VLOOKUP(Table_Data_Table_1[[#This Row],[Item ID]],DataTable,12,FALSE),\"\"))","v":""},{"$f":"IFERROR(Table_Data_Table_1[[#This Row],[Land\nResidual]]/Table_Data_Table_1[[#This Row],[Resid\nAcre]],\"\")","v":""},{"$f":"IFERROR(ROUND(Table_Data_Table_1[[#This Row],[Land\nResidual]]/Table_Data_Table_1[[#This Row],[Resid\nSq Ft]],2),\"\")","v":""},{"$f":"IF(Table_Data_Table_1[[#This Row],[Item ID]]=\"\",\"\",ROUND(DAYS360(Table_Data_Table_1[[#This Row],[Sale Date]],'Global Settings'!$H$5)/30,0))","v":""},{"$f":"IFERROR(IF(AND(Table_Data_Table_1[[#This Row],[Months To\nMid-Point]]<12.01,Table_Data_Table_1[[#This Row],[Months To\nMid-Point]]>-13),0,(Table_Data_Table_1[[#This Row],[Months To\nMid-Point]]*'Global Settings'!$H$6)),\"\")","v":""},{"$f":"IFERROR(Table_Data_Table_1[[#This Row],[Land\nResidual]]*(Table_Data_Table_1[[#This Row],[Time\nAdjust]]+1),\"\")","v":""},{"$f":"IFERROR(Table_Data_Table_1[[#This Row],[Adjusted\nSale Price]]/Table_Data_Table_1[[#This Row],[Resid\nAcre]],\"\")","v":""},{"$f":"IFERROR(ROUND(Table_Data_Table_1[[#This Row],[Adjusted\nSale Price]]/Table_Data_Table_1[[#This Row],[Resid\nSq Ft]],2),\"\")","v":""},{"$f":"IFERROR(IF(VLOOKUP(Table_Data_Table_1[[#This Row],[Item ID]],DataTable,11,FALSE)=0,\"N/A\",Table_Data_Table_1[[#This Row],[Adjusted\nSale Price]]/VLOOKUP(Table_Data_Table_1[[#This Row],[Item ID]],DataTable,11,FALSE)),\"\")","v":""},{"$f":"IF(IFERROR(VLOOKUP(Table_Data_Table_1[[#This Row],[Item ID]],DataTable,17,FALSE),\"\")=0,\"\",IFERROR(VLOOKUP(Table_Data_Table_1[[#This Row],[Item ID]],DataTable,17,FALSE),\"\"))","v":""}]
["",null,{"$f":"IF(Table_Data_Table_1[[#This Row],[Item ID]]=\"\",\"\",IFERROR(VLOOKUP(Table_Data_Table_1[[#This Row],[Item ID]],DataTable,16,FALSE),\"\"))","v":""},null,null,null,null,{"$f":"IF(Table_Data_Table_1[[#This Row],[Valuation Method]]=\"Vacant\",VLOOKUP(Table_Data_Table_1[[#This Row],[Item ID]],DataTable,6,FALSE)-VLOOKUP(Table_Data_Table_1[[#This Row],[Item ID]],DataTable,13,FALSE),IF(Table_Data_Table_1[[#This Row],[Valuation Method]]=\"Abstraction\",VLOOKUP(Table_Data_Table_1[[#This Row],[Item ID]],DataTable,6,FALSE)-VLOOKUP(Table_Data_Table_1[[#This Row],[Item ID]],DataTable,13,FALSE),IF(Table_Data_Table_1[[#This Row],[Valuation Method]]=\"Allocation\",VLOOKUP(Table_Data_Table_1[[#This Row],[Item ID]],DataTable,6,FALSE)*I472,\"\")))","v":""},{"$f":"IF(Table_Data_Table_1[[#This Row],[Valuation Method]]=\"Vacant\",\"N/A\",IF(Table_Data_Table_1[[#This Row],[Valuation Method]]=\"Abstraction\",Table_Data_Table_1[[#This Row],[Land\nResidual]]/VLOOKUP(Table_Data_Table_1[[#This Row],[Item ID]],DataTable,6,FALSE),IF(Table_Data_Table_1[[#This Row],[Valuation Method]]=\"Allocation\",'Global Settings'!$H$20,\"\")))","v":""},{"$f":"IFERROR(ROUND(Table_Data_Table_1[[#This Row],[Resid\nSq Ft]]/43560,3),\"\")","v":""},{"$f":"IF(Table_Data_Table_1[[#This Row],[Item ID]]=\"\",\"\",IFERROR(VLOOKUP(Table_Data_Table_1[[#This Row],[Item ID]],DataTable,10,FALSE)-VLOOKUP(Table_Data_Table_1[[#This Row],[Item ID]],DataTable,12,FALSE),\"\"))","v":""},{"$f":"IFERROR(Table_Data_Table_1[[#This Row],[Land\nResidual]]/Table_Data_Table_1[[#This Row],[Resid\nAcre]],\"\")","v":""},{"$f":"IFERROR(ROUND(Table_Data_Table_1[[#This Row],[Land\nResidual]]/Table_Data_Table_1[[#This Row],[Resid\nSq Ft]],2),\"\")","v":""},{"$f":"IF(Table_Data_Table_1[[#This Row],[Item ID]]=\"\",\"\",ROUND(DAYS360(Table_Data_Table_1[[#This Row],[Sale Date]],'Global Settings'!$H$5)/30,0))","v":""},{"$f":"IFERROR(IF(AND(Table_Data_Table_1[[#This Row],[Months To\nMid-Point]]<12.01,Table_Data_Table_1[[#This Row],[Months To\nMid-Point]]>-13),0,(Table_Data_Table_1[[#This Row],[Months To\nMid-Point]]*'Global Settings'!$H$6)),\"\")","v":""},{"$f":"IFERROR(Table_Data_Table_1[[#This Row],[Land\nResidual]]*(Table_Data_Table_1[[#This Row],[Time\nAdjust]]+1),\"\")","v":""},{"$f":"IFERROR(Table_Data_Table_1[[#This Row],[Adjusted\nSale Price]]/Table_Data_Table_1[[#This Row],[Resid\nAcre]],\"\")","v":""},{"$f":"IFERROR(ROUND(Table_Data_Table_1[[#This Row],[Adjusted\nSale Price]]/Table_Data_Table_1[[#This Row],[Resid\nSq Ft]],2),\"\")","v":""},{"$f":"IFERROR(IF(VLOOKUP(Table_Data_Table_1[[#This Row],[Item ID]],DataTable,11,FALSE)=0,\"N/A\",Table_Data_Table_1[[#This Row],[Adjusted\nSale Price]]/VLOOKUP(Table_Data_Table_1[[#This Row],[Item ID]],DataTable,11,FALSE)),\"\")","v":""},{"$f":"IF(IFERROR(VLOOKUP(Table_Data_Table_1[[#This Row],[Item ID]],DataTable,17,FALSE),\"\")=0,\"\",IFERROR(VLOOKUP(Table_Data_Table_1[[#This Row],[Item ID]],DataTable,17,FALSE),\"\"))","v":""}]
["",null,{"$f":"IF(Table_Data_Table_1[[#This Row],[Item ID]]=\"\",\"\",IFERROR(VLOOKUP(Table_Data_Table_1[[#This Row],[Item ID]],DataTable,16,FALSE),\"\"))","v":""},null,null,null,null,{"$f":"IF(Table_Data_Table_1[[#This Row],[Valuation Method]]=\"Vacant\",VLOOKUP(Table_Data_Table_1[[#This Row],[Item ID]],DataTable,6,FALSE)-VLOOKUP(Table_Data_Table_1[[#This Row],[Item ID]],DataTable,13,FALSE),IF(Table_Data_Table_1[[#This Row],[Valuation Method]]=\"Abstraction\",VLOOKUP(Table_Data_Table_1[[#This Row],[Item ID]],DataTable,6,FALSE)-VLOOKUP(Table_Data_Table_1[[#This Row],[Item ID]],DataTable,13,FALSE),IF(Table_Data_Table_1[[#This Row],[Valuation Method]]=\"Allocation\",VLOOKUP(Table_Data_Table_1[[#This Row],[Item ID]],DataTable,6,FALSE)*I473,\"\")))","v":""},{"$f":"IF(Table_Data_Table_1[[#This Row],[Valuation Method]]=\"Vacant\",\"N/A\",IF(Table_Data_Table_1[[#This Row],[Valuation Method]]=\"Abstraction\",Table_Data_Table_1[[#This Row],[Land\nResidual]]/VLOOKUP(Table_Data_Table_1[[#This Row],[Item ID]],DataTable,6,FALSE),IF(Table_Data_Table_1[[#This Row],[Valuation Method]]=\"Allocation\",'Global Settings'!$H$20,\"\")))","v":""},{"$f":"IFERROR(ROUND(Table_Data_Table_1[[#This Row],[Resid\nSq Ft]]/43560,3),\"\")","v":""},{"$f":"IF(Table_Data_Table_1[[#This Row],[Item ID]]=\"\",\"\",IFERROR(VLOOKUP(Table_Data_Table_1[[#This Row],[Item ID]],DataTable,10,FALSE)-VLOOKUP(Table_Data_Table_1[[#This Row],[Item ID]],DataTable,12,FALSE),\"\"))","v":""},{"$f":"IFERROR(Table_Data_Table_1[[#This Row],[Land\nResidual]]/Table_Data_Table_1[[#This Row],[Resid\nAcre]],\"\")","v":""},{"$f":"IFERROR(ROUND(Table_Data_Table_1[[#This Row],[Land\nResidual]]/Table_Data_Table_1[[#This Row],[Resid\nSq Ft]],2),\"\")","v":""},{"$f":"IF(Table_Data_Table_1[[#This Row],[Item ID]]=\"\",\"\",ROUND(DAYS360(Table_Data_Table_1[[#This Row],[Sale Date]],'Global Settings'!$H$5)/30,0))","v":""},{"$f":"IFERROR(IF(AND(Table_Data_Table_1[[#This Row],[Months To\nMid-Point]]<12.01,Table_Data_Table_1[[#This Row],[Months To\nMid-Point]]>-13),0,(Table_Data_Table_1[[#This Row],[Months To\nMid-Point]]*'Global Settings'!$H$6)),\"\")","v":""},{"$f":"IFERROR(Table_Data_Table_1[[#This Row],[Land\nResidual]]*(Table_Data_Table_1[[#This Row],[Time\nAdjust]]+1),\"\")","v":""},{"$f":"IFERROR(Table_Data_Table_1[[#This Row],[Adjusted\nSale Price]]/Table_Data_Table_1[[#This Row],[Resid\nAcre]],\"\")","v":""},{"$f":"IFERROR(ROUND(Table_Data_Table_1[[#This Row],[Adjusted\nSale Price]]/Table_Data_Table_1[[#This Row],[Resid\nSq Ft]],2),\"\")","v":""},{"$f":"IFERROR(IF(VLOOKUP(Table_Data_Table_1[[#This Row],[Item ID]],DataTable,11,FALSE)=0,\"N/A\",Table_Data_Table_1[[#This Row],[Adjusted\nSale Price]]/VLOOKUP(Table_Data_Table_1[[#This Row],[Item ID]],DataTable,11,FALSE)),\"\")","v":""},{"$f":"IF(IFERROR(VLOOKUP(Table_Data_Table_1[[#This Row],[Item ID]],DataTable,17,FALSE),\"\")=0,\"\",IFERROR(VLOOKUP(Table_Data_Table_1[[#This Row],[Item ID]],DataTable,17,FALSE),\"\"))","v":""}]
["",null,{"$f":"IF(Table_Data_Table_1[[#This Row],[Item ID]]=\"\",\"\",IFERROR(VLOOKUP(Table_Data_Table_1[[#This Row],[Item ID]],DataTable,16,FALSE),\"\"))","v":""},null,null,null,null,{"$f":"IF(Table_Data_Table_1[[#This Row],[Valuation Method]]=\"Vacant\",VLOOKUP(Table_Data_Table_1[[#This Row],[Item ID]],DataTable,6,FALSE)-VLOOKUP(Table_Data_Table_1[[#This Row],[Item ID]],DataTable,13,FALSE),IF(Table_Data_Table_1[[#This Row],[Valuation Method]]=\"Abstraction\",VLOOKUP(Table_Data_Table_1[[#This Row],[Item ID]],DataTable,6,FALSE)-VLOOKUP(Table_Data_Table_1[[#This Row],[Item ID]],DataTable,13,FALSE),IF(Table_Data_Table_1[[#This Row],[Valuation Method]]=\"Allocation\",VLOOKUP(Table_Data_Table_1[[#This Row],[Item ID]],DataTable,6,FALSE)*I474,\"\")))","v":""},{"$f":"IF(Table_Data_Table_1[[#This Row],[Valuation Method]]=\"Vacant\",\"N/A\",IF(Table_Data_Table_1[[#This Row],[Valuation Method]]=\"Abstraction\",Table_Data_Table_1[[#This Row],[Land\nResidual]]/VLOOKUP(Table_Data_Table_1[[#This Row],[Item ID]],DataTable,6,FALSE),IF(Table_Data_Table_1[[#This Row],[Valuation Method]]=\"Allocation\",'Global Settings'!$H$20,\"\")))","v":""},{"$f":"IFERROR(ROUND(Table_Data_Table_1[[#This Row],[Resid\nSq Ft]]/43560,3),\"\")","v":""},{"$f":"IF(Table_Data_Table_1[[#This Row],[Item ID]]=\"\",\"\",IFERROR(VLOOKUP(Table_Data_Table_1[[#This Row],[Item ID]],DataTable,10,FALSE)-VLOOKUP(Table_Data_Table_1[[#This Row],[Item ID]],DataTable,12,FALSE),\"\"))","v":""},{"$f":"IFERROR(Table_Data_Table_1[[#This Row],[Land\nResidual]]/Table_Data_Table_1[[#This Row],[Resid\nAcre]],\"\")","v":""},{"$f":"IFERROR(ROUND(Table_Data_Table_1[[#This Row],[Land\nResidual]]/Table_Data_Table_1[[#This Row],[Resid\nSq Ft]],2),\"\")","v":""},{"$f":"IF(Table_Data_Table_1[[#This Row],[Item ID]]=\"\",\"\",ROUND(DAYS360(Table_Data_Table_1[[#This Row],[Sale Date]],'Global Settings'!$H$5)/30,0))","v":""},{"$f":"IFERROR(IF(AND(Table_Data_Table_1[[#This Row],[Months To\nMid-Point]]<12.01,Table_Data_Table_1[[#This Row],[Months To\nMid-Point]]>-13),0,(Table_Data_Table_1[[#This Row],[Months To\nMid-Point]]*'Global Settings'!$H$6)),\"\")","v":""},{"$f":"IFERROR(Table_Data_Table_1[[#This Row],[Land\nResidual]]*(Table_Data_Table_1[[#This Row],[Time\nAdjust]]+1),\"\")","v":""},{"$f":"IFERROR(Table_Data_Table_1[[#This Row],[Adjusted\nSale Price]]/Table_Data_Table_1[[#This Row],[Resid\nAcre]],\"\")","v":""},{"$f":"IFERROR(ROUND(Table_Data_Table_1[[#This Row],[Adjusted\nSale Price]]/Table_Data_Table_1[[#This Row],[Resid\nSq Ft]],2),\"\")","v":""},{"$f":"IFERROR(IF(VLOOKUP(Table_Data_Table_1[[#This Row],[Item ID]],DataTable,11,FALSE)=0,\"N/A\",Table_Data_Table_1[[#This Row],[Adjusted\nSale Price]]/VLOOKUP(Table_Data_Table_1[[#This Row],[Item ID]],DataTable,11,FALSE)),\"\")","v":""},{"$f":"IF(IFERROR(VLOOKUP(Table_Data_Table_1[[#This Row],[Item ID]],DataTable,17,FALSE),\"\")=0,\"\",IFERROR(VLOOKUP(Table_Data_Table_1[[#This Row],[Item ID]],DataTable,17,FALSE),\"\"))","v":""}]
["",null,{"$f":"IF(Table_Data_Table_1[[#This Row],[Item ID]]=\"\",\"\",IFERROR(VLOOKUP(Table_Data_Table_1[[#This Row],[Item ID]],DataTable,16,FALSE),\"\"))","v":""},null,null,null,null,{"$f":"IF(Table_Data_Table_1[[#This Row],[Valuation Method]]=\"Vacant\",VLOOKUP(Table_Data_Table_1[[#This Row],[Item ID]],DataTable,6,FALSE)-VLOOKUP(Table_Data_Table_1[[#This Row],[Item ID]],DataTable,13,FALSE),IF(Table_Data_Table_1[[#This Row],[Valuation Method]]=\"Abstraction\",VLOOKUP(Table_Data_Table_1[[#This Row],[Item ID]],DataTable,6,FALSE)-VLOOKUP(Table_Data_Table_1[[#This Row],[Item ID]],DataTable,13,FALSE),IF(Table_Data_Table_1[[#This Row],[Valuation Method]]=\"Allocation\",VLOOKUP(Table_Data_Table_1[[#This Row],[Item ID]],DataTable,6,FALSE)*I475,\"\")))","v":""},{"$f":"IF(Table_Data_Table_1[[#This Row],[Valuation Method]]=\"Vacant\",\"N/A\",IF(Table_Data_Table_1[[#This Row],[Valuation Method]]=\"Abstraction\",Table_Data_Table_1[[#This Row],[Land\nResidual]]/VLOOKUP(Table_Data_Table_1[[#This Row],[Item ID]],DataTable,6,FALSE),IF(Table_Data_Table_1[[#This Row],[Valuation Method]]=\"Allocation\",'Global Settings'!$H$20,\"\")))","v":""},{"$f":"IFERROR(ROUND(Table_Data_Table_1[[#This Row],[Resid\nSq Ft]]/43560,3),\"\")","v":""},{"$f":"IF(Table_Data_Table_1[[#This Row],[Item ID]]=\"\",\"\",IFERROR(VLOOKUP(Table_Data_Table_1[[#This Row],[Item ID]],DataTable,10,FALSE)-VLOOKUP(Table_Data_Table_1[[#This Row],[Item ID]],DataTable,12,FALSE),\"\"))","v":""},{"$f":"IFERROR(Table_Data_Table_1[[#This Row],[Land\nResidual]]/Table_Data_Table_1[[#This Row],[Resid\nAcre]],\"\")","v":""},{"$f":"IFERROR(ROUND(Table_Data_Table_1[[#This Row],[Land\nResidual]]/Table_Data_Table_1[[#This Row],[Resid\nSq Ft]],2),\"\")","v":""},{"$f":"IF(Table_Data_Table_1[[#This Row],[Item ID]]=\"\",\"\",ROUND(DAYS360(Table_Data_Table_1[[#This Row],[Sale Date]],'Global Settings'!$H$5)/30,0))","v":""},{"$f":"IFERROR(IF(AND(Table_Data_Table_1[[#This Row],[Months To\nMid-Point]]<12.01,Table_Data_Table_1[[#This Row],[Months To\nMid-Point]]>-13),0,(Table_Data_Table_1[[#This Row],[Months To\nMid-Point]]*'Global Settings'!$H$6)),\"\")","v":""},{"$f":"IFERROR(Table_Data_Table_1[[#This Row],[Land\nResidual]]*(Table_Data_Table_1[[#This Row],[Time\nAdjust]]+1),\"\")","v":""},{"$f":"IFERROR(Table_Data_Table_1[[#This Row],[Adjusted\nSale Price]]/Table_Data_Table_1[[#This Row],[Resid\nAcre]],\"\")","v":""},{"$f":"IFERROR(ROUND(Table_Data_Table_1[[#This Row],[Adjusted\nSale Price]]/Table_Data_Table_1[[#This Row],[Resid\nSq Ft]],2),\"\")","v":""},{"$f":"IFERROR(IF(VLOOKUP(Table_Data_Table_1[[#This Row],[Item ID]],DataTable,11,FALSE)=0,\"N/A\",Table_Data_Table_1[[#This Row],[Adjusted\nSale Price]]/VLOOKUP(Table_Data_Table_1[[#This Row],[Item ID]],DataTable,11,FALSE)),\"\")","v":""},{"$f":"IF(IFERROR(VLOOKUP(Table_Data_Table_1[[#This Row],[Item ID]],DataTable,17,FALSE),\"\")=0,\"\",IFERROR(VLOOKUP(Table_Data_Table_1[[#This Row],[Item ID]],DataTable,17,FALSE),\"\"))","v":""}]
["",null,{"$f":"IF(Table_Data_Table_1[[#This Row],[Item ID]]=\"\",\"\",IFERROR(VLOOKUP(Table_Data_Table_1[[#This Row],[Item ID]],DataTable,16,FALSE),\"\"))","v":""},null,null,null,null,{"$f":"IF(Table_Data_Table_1[[#This Row],[Valuation Method]]=\"Vacant\",VLOOKUP(Table_Data_Table_1[[#This Row],[Item ID]],DataTable,6,FALSE)-VLOOKUP(Table_Data_Table_1[[#This Row],[Item ID]],DataTable,13,FALSE),IF(Table_Data_Table_1[[#This Row],[Valuation Method]]=\"Abstraction\",VLOOKUP(Table_Data_Table_1[[#This Row],[Item ID]],DataTable,6,FALSE)-VLOOKUP(Table_Data_Table_1[[#This Row],[Item ID]],DataTable,13,FALSE),IF(Table_Data_Table_1[[#This Row],[Valuation Method]]=\"Allocation\",VLOOKUP(Table_Data_Table_1[[#This Row],[Item ID]],DataTable,6,FALSE)*I476,\"\")))","v":""},{"$f":"IF(Table_Data_Table_1[[#This Row],[Valuation Method]]=\"Vacant\",\"N/A\",IF(Table_Data_Table_1[[#This Row],[Valuation Method]]=\"Abstraction\",Table_Data_Table_1[[#This Row],[Land\nResidual]]/VLOOKUP(Table_Data_Table_1[[#This Row],[Item ID]],DataTable,6,FALSE),IF(Table_Data_Table_1[[#This Row],[Valuation Method]]=\"Allocation\",'Global Settings'!$H$20,\"\")))","v":""},{"$f":"IFERROR(ROUND(Table_Data_Table_1[[#This Row],[Resid\nSq Ft]]/43560,3),\"\")","v":""},{"$f":"IF(Table_Data_Table_1[[#This Row],[Item ID]]=\"\",\"\",IFERROR(VLOOKUP(Table_Data_Table_1[[#This Row],[Item ID]],DataTable,10,FALSE)-VLOOKUP(Table_Data_Table_1[[#This Row],[Item ID]],DataTable,12,FALSE),\"\"))","v":""},{"$f":"IFERROR(Table_Data_Table_1[[#This Row],[Land\nResidual]]/Table_Data_Table_1[[#This Row],[Resid\nAcre]],\"\")","v":""},{"$f":"IFERROR(ROUND(Table_Data_Table_1[[#This Row],[Land\nResidual]]/Table_Data_Table_1[[#This Row],[Resid\nSq Ft]],2),\"\")","v":""},{"$f":"IF(Table_Data_Table_1[[#This Row],[Item ID]]=\"\",\"\",ROUND(DAYS360(Table_Data_Table_1[[#This Row],[Sale Date]],'Global Settings'!$H$5)/30,0))","v":""},{"$f":"IFERROR(IF(AND(Table_Data_Table_1[[#This Row],[Months To\nMid-Point]]<12.01,Table_Data_Table_1[[#This Row],[Months To\nMid-Point]]>-13),0,(Table_Data_Table_1[[#This Row],[Months To\nMid-Point]]*'Global Settings'!$H$6)),\"\")","v":""},{"$f":"IFERROR(Table_Data_Table_1[[#This Row],[Land\nResidual]]*(Table_Data_Table_1[[#This Row],[Time\nAdjust]]+1),\"\")","v":""},{"$f":"IFERROR(Table_Data_Table_1[[#This Row],[Adjusted\nSale Price]]/Table_Data_Table_1[[#This Row],[Resid\nAcre]],\"\")","v":""},{"$f":"IFERROR(ROUND(Table_Data_Table_1[[#This Row],[Adjusted\nSale Price]]/Table_Data_Table_1[[#This Row],[Resid\nSq Ft]],2),\"\")","v":""},{"$f":"IFERROR(IF(VLOOKUP(Table_Data_Table_1[[#This Row],[Item ID]],DataTable,11,FALSE)=0,\"N/A\",Table_Data_Table_1[[#This Row],[Adjusted\nSale Price]]/VLOOKUP(Table_Data_Table_1[[#This Row],[Item ID]],DataTable,11,FALSE)),\"\")","v":""},{"$f":"IF(IFERROR(VLOOKUP(Table_Data_Table_1[[#This Row],[Item ID]],DataTable,17,FALSE),\"\")=0,\"\",IFERROR(VLOOKUP(Table_Data_Table_1[[#This Row],[Item ID]],DataTable,17,FALSE),\"\"))","v":""}]
["",null,{"$f":"IF(Table_Data_Table_1[[#This Row],[Item ID]]=\"\",\"\",IFERROR(VLOOKUP(Table_Data_Table_1[[#This Row],[Item ID]],DataTable,16,FALSE),\"\"))","v":""},null,null,null,null,{"$f":"IF(Table_Data_Table_1[[#This Row],[Valuation Method]]=\"Vacant\",VLOOKUP(Table_Data_Table_1[[#This Row],[Item ID]],DataTable,6,FALSE)-VLOOKUP(Table_Data_Table_1[[#This Row],[Item ID]],DataTable,13,FALSE),IF(Table_Data_Table_1[[#This Row],[Valuation Method]]=\"Abstraction\",VLOOKUP(Table_Data_Table_1[[#This Row],[Item ID]],DataTable,6,FALSE)-VLOOKUP(Table_Data_Table_1[[#This Row],[Item ID]],DataTable,13,FALSE),IF(Table_Data_Table_1[[#This Row],[Valuation Method]]=\"Allocation\",VLOOKUP(Table_Data_Table_1[[#This Row],[Item ID]],DataTable,6,FALSE)*I477,\"\")))","v":""},{"$f":"IF(Table_Data_Table_1[[#This Row],[Valuation Method]]=\"Vacant\",\"N/A\",IF(Table_Data_Table_1[[#This Row],[Valuation Method]]=\"Abstraction\",Table_Data_Table_1[[#This Row],[Land\nResidual]]/VLOOKUP(Table_Data_Table_1[[#This Row],[Item ID]],DataTable,6,FALSE),IF(Table_Data_Table_1[[#This Row],[Valuation Method]]=\"Allocation\",'Global Settings'!$H$20,\"\")))","v":""},{"$f":"IFERROR(ROUND(Table_Data_Table_1[[#This Row],[Resid\nSq Ft]]/43560,3),\"\")","v":""},{"$f":"IF(Table_Data_Table_1[[#This Row],[Item ID]]=\"\",\"\",IFERROR(VLOOKUP(Table_Data_Table_1[[#This Row],[Item ID]],DataTable,10,FALSE)-VLOOKUP(Table_Data_Table_1[[#This Row],[Item ID]],DataTable,12,FALSE),\"\"))","v":""},{"$f":"IFERROR(Table_Data_Table_1[[#This Row],[Land\nResidual]]/Table_Data_Table_1[[#This Row],[Resid\nAcre]],\"\")","v":""},{"$f":"IFERROR(ROUND(Table_Data_Table_1[[#This Row],[Land\nResidual]]/Table_Data_Table_1[[#This Row],[Resid\nSq Ft]],2),\"\")","v":""},{"$f":"IF(Table_Data_Table_1[[#This Row],[Item ID]]=\"\",\"\",ROUND(DAYS360(Table_Data_Table_1[[#This Row],[Sale Date]],'Global Settings'!$H$5)/30,0))","v":""},{"$f":"IFERROR(IF(AND(Table_Data_Table_1[[#This Row],[Months To\nMid-Point]]<12.01,Table_Data_Table_1[[#This Row],[Months To\nMid-Point]]>-13),0,(Table_Data_Table_1[[#This Row],[Months To\nMid-Point]]*'Global Settings'!$H$6)),\"\")","v":""},{"$f":"IFERROR(Table_Data_Table_1[[#This Row],[Land\nResidual]]*(Table_Data_Table_1[[#This Row],[Time\nAdjust]]+1),\"\")","v":""},{"$f":"IFERROR(Table_Data_Table_1[[#This Row],[Adjusted\nSale Price]]/Table_Data_Table_1[[#This Row],[Resid\nAcre]],\"\")","v":""},{"$f":"IFERROR(ROUND(Table_Data_Table_1[[#This Row],[Adjusted\nSale Price]]/Table_Data_Table_1[[#This Row],[Resid\nSq Ft]],2),\"\")","v":""},{"$f":"IFERROR(IF(VLOOKUP(Table_Data_Table_1[[#This Row],[Item ID]],DataTable,11,FALSE)=0,\"N/A\",Table_Data_Table_1[[#This Row],[Adjusted\nSale Price]]/VLOOKUP(Table_Data_Table_1[[#This Row],[Item ID]],DataTable,11,FALSE)),\"\")","v":""},{"$f":"IF(IFERROR(VLOOKUP(Table_Data_Table_1[[#This Row],[Item ID]],DataTable,17,FALSE),\"\")=0,\"\",IFERROR(VLOOKUP(Table_Data_Table_1[[#This Row],[Item ID]],DataTable,17,FALSE),\"\"))","v":""}]
["",null,{"$f":"IF(Table_Data_Table_1[[#This Row],[Item ID]]=\"\",\"\",IFERROR(VLOOKUP(Table_Data_Table_1[[#This Row],[Item ID]],DataTable,16,FALSE),\"\"))","v":""},null,null,null,null,{"$f":"IF(Table_Data_Table_1[[#This Row],[Valuation Method]]=\"Vacant\",VLOOKUP(Table_Data_Table_1[[#This Row],[Item ID]],DataTable,6,FALSE)-VLOOKUP(Table_Data_Table_1[[#This Row],[Item ID]],DataTable,13,FALSE),IF(Table_Data_Table_1[[#This Row],[Valuation Method]]=\"Abstraction\",VLOOKUP(Table_Data_Table_1[[#This Row],[Item ID]],DataTable,6,FALSE)-VLOOKUP(Table_Data_Table_1[[#This Row],[Item ID]],DataTable,13,FALSE),IF(Table_Data_Table_1[[#This Row],[Valuation Method]]=\"Allocation\",VLOOKUP(Table_Data_Table_1[[#This Row],[Item ID]],DataTable,6,FALSE)*I478,\"\")))","v":""},{"$f":"IF(Table_Data_Table_1[[#This Row],[Valuation Method]]=\"Vacant\",\"N/A\",IF(Table_Data_Table_1[[#This Row],[Valuation Method]]=\"Abstraction\",Table_Data_Table_1[[#This Row],[Land\nResidual]]/VLOOKUP(Table_Data_Table_1[[#This Row],[Item ID]],DataTable,6,FALSE),IF(Table_Data_Table_1[[#This Row],[Valuation Method]]=\"Allocation\",'Global Settings'!$H$20,\"\")))","v":""},{"$f":"IFERROR(ROUND(Table_Data_Table_1[[#This Row],[Resid\nSq Ft]]/43560,3),\"\")","v":""},{"$f":"IF(Table_Data_Table_1[[#This Row],[Item ID]]=\"\",\"\",IFERROR(VLOOKUP(Table_Data_Table_1[[#This Row],[Item ID]],DataTable,10,FALSE)-VLOOKUP(Table_Data_Table_1[[#This Row],[Item ID]],DataTable,12,FALSE),\"\"))","v":""},{"$f":"IFERROR(Table_Data_Table_1[[#This Row],[Land\nResidual]]/Table_Data_Table_1[[#This Row],[Resid\nAcre]],\"\")","v":""},{"$f":"IFERROR(ROUND(Table_Data_Table_1[[#This Row],[Land\nResidual]]/Table_Data_Table_1[[#This Row],[Resid\nSq Ft]],2),\"\")","v":""},{"$f":"IF(Table_Data_Table_1[[#This Row],[Item ID]]=\"\",\"\",ROUND(DAYS360(Table_Data_Table_1[[#This Row],[Sale Date]],'Global Settings'!$H$5)/30,0))","v":""},{"$f":"IFERROR(IF(AND(Table_Data_Table_1[[#This Row],[Months To\nMid-Point]]<12.01,Table_Data_Table_1[[#This Row],[Months To\nMid-Point]]>-13),0,(Table_Data_Table_1[[#This Row],[Months To\nMid-Point]]*'Global Settings'!$H$6)),\"\")","v":""},{"$f":"IFERROR(Table_Data_Table_1[[#This Row],[Land\nResidual]]*(Table_Data_Table_1[[#This Row],[Time\nAdjust]]+1),\"\")","v":""},{"$f":"IFERROR(Table_Data_Table_1[[#This Row],[Adjusted\nSale Price]]/Table_Data_Table_1[[#This Row],[Resid\nAcre]],\"\")","v":""},{"$f":"IFERROR(ROUND(Table_Data_Table_1[[#This Row],[Adjusted\nSale Price]]/Table_Data_Table_1[[#This Row],[Resid\nSq Ft]],2),\"\")","v":""},{"$f":"IFERROR(IF(VLOOKUP(Table_Data_Table_1[[#This Row],[Item ID]],DataTable,11,FALSE)=0,\"N/A\",Table_Data_Table_1[[#This Row],[Adjusted\nSale Price]]/VLOOKUP(Table_Data_Table_1[[#This Row],[Item ID]],DataTable,11,FALSE)),\"\")","v":""},{"$f":"IF(IFERROR(VLOOKUP(Table_Data_Table_1[[#This Row],[Item ID]],DataTable,17,FALSE),\"\")=0,\"\",IFERROR(VLOOKUP(Table_Data_Table_1[[#This Row],[Item ID]],DataTable,17,FALSE),\"\"))","v":""}]
["",null,{"$f":"IF(Table_Data_Table_1[[#This Row],[Item ID]]=\"\",\"\",IFERROR(VLOOKUP(Table_Data_Table_1[[#This Row],[Item ID]],DataTable,16,FALSE),\"\"))","v":""},null,null,null,null,{"$f":"IF(Table_Data_Table_1[[#This Row],[Valuation Method]]=\"Vacant\",VLOOKUP(Table_Data_Table_1[[#This Row],[Item ID]],DataTable,6,FALSE)-VLOOKUP(Table_Data_Table_1[[#This Row],[Item ID]],DataTable,13,FALSE),IF(Table_Data_Table_1[[#This Row],[Valuation Method]]=\"Abstraction\",VLOOKUP(Table_Data_Table_1[[#This Row],[Item ID]],DataTable,6,FALSE)-VLOOKUP(Table_Data_Table_1[[#This Row],[Item ID]],DataTable,13,FALSE),IF(Table_Data_Table_1[[#This Row],[Valuation Method]]=\"Allocation\",VLOOKUP(Table_Data_Table_1[[#This Row],[Item ID]],DataTable,6,FALSE)*I479,\"\")))","v":""},{"$f":"IF(Table_Data_Table_1[[#This Row],[Valuation Method]]=\"Vacant\",\"N/A\",IF(Table_Data_Table_1[[#This Row],[Valuation Method]]=\"Abstraction\",Table_Data_Table_1[[#This Row],[Land\nResidual]]/VLOOKUP(Table_Data_Table_1[[#This Row],[Item ID]],DataTable,6,FALSE),IF(Table_Data_Table_1[[#This Row],[Valuation Method]]=\"Allocation\",'Global Settings'!$H$20,\"\")))","v":""},{"$f":"IFERROR(ROUND(Table_Data_Table_1[[#This Row],[Resid\nSq Ft]]/43560,3),\"\")","v":""},{"$f":"IF(Table_Data_Table_1[[#This Row],[Item ID]]=\"\",\"\",IFERROR(VLOOKUP(Table_Data_Table_1[[#This Row],[Item ID]],DataTable,10,FALSE)-VLOOKUP(Table_Data_Table_1[[#This Row],[Item ID]],DataTable,12,FALSE),\"\"))","v":""},{"$f":"IFERROR(Table_Data_Table_1[[#This Row],[Land\nResidual]]/Table_Data_Table_1[[#This Row],[Resid\nAcre]],\"\")","v":""},{"$f":"IFERROR(ROUND(Table_Data_Table_1[[#This Row],[Land\nResidual]]/Table_Data_Table_1[[#This Row],[Resid\nSq Ft]],2),\"\")","v":""},{"$f":"IF(Table_Data_Table_1[[#This Row],[Item ID]]=\"\",\"\",ROUND(DAYS360(Table_Data_Table_1[[#This Row],[Sale Date]],'Global Settings'!$H$5)/30,0))","v":""},{"$f":"IFERROR(IF(AND(Table_Data_Table_1[[#This Row],[Months To\nMid-Point]]<12.01,Table_Data_Table_1[[#This Row],[Months To\nMid-Point]]>-13),0,(Table_Data_Table_1[[#This Row],[Months To\nMid-Point]]*'Global Settings'!$H$6)),\"\")","v":""},{"$f":"IFERROR(Table_Data_Table_1[[#This Row],[Land\nResidual]]*(Table_Data_Table_1[[#This Row],[Time\nAdjust]]+1),\"\")","v":""},{"$f":"IFERROR(Table_Data_Table_1[[#This Row],[Adjusted\nSale Price]]/Table_Data_Table_1[[#This Row],[Resid\nAcre]],\"\")","v":""},{"$f":"IFERROR(ROUND(Table_Data_Table_1[[#This Row],[Adjusted\nSale Price]]/Table_Data_Table_1[[#This Row],[Resid\nSq Ft]],2),\"\")","v":""},{"$f":"IFERROR(IF(VLOOKUP(Table_Data_Table_1[[#This Row],[Item ID]],DataTable,11,FALSE)=0,\"N/A\",Table_Data_Table_1[[#This Row],[Adjusted\nSale Price]]/VLOOKUP(Table_Data_Table_1[[#This Row],[Item ID]],DataTable,11,FALSE)),\"\")","v":""},{"$f":"IF(IFERROR(VLOOKUP(Table_Data_Table_1[[#This Row],[Item ID]],DataTable,17,FALSE),\"\")=0,\"\",IFERROR(VLOOKUP(Table_Data_Table_1[[#This Row],[Item ID]],DataTable,17,FALSE),\"\"))","v":""}]
["",null,{"$f":"IF(Table_Data_Table_1[[#This Row],[Item ID]]=\"\",\"\",IFERROR(VLOOKUP(Table_Data_Table_1[[#This Row],[Item ID]],DataTable,16,FALSE),\"\"))","v":""},null,null,null,null,{"$f":"IF(Table_Data_Table_1[[#This Row],[Valuation Method]]=\"Vacant\",VLOOKUP(Table_Data_Table_1[[#This Row],[Item ID]],DataTable,6,FALSE)-VLOOKUP(Table_Data_Table_1[[#This Row],[Item ID]],DataTable,13,FALSE),IF(Table_Data_Table_1[[#This Row],[Valuation Method]]=\"Abstraction\",VLOOKUP(Table_Data_Table_1[[#This Row],[Item ID]],DataTable,6,FALSE)-VLOOKUP(Table_Data_Table_1[[#This Row],[Item ID]],DataTable,13,FALSE),IF(Table_Data_Table_1[[#This Row],[Valuation Method]]=\"Allocation\",VLOOKUP(Table_Data_Table_1[[#This Row],[Item ID]],DataTable,6,FALSE)*I480,\"\")))","v":""},{"$f":"IF(Table_Data_Table_1[[#This Row],[Valuation Method]]=\"Vacant\",\"N/A\",IF(Table_Data_Table_1[[#This Row],[Valuation Method]]=\"Abstraction\",Table_Data_Table_1[[#This Row],[Land\nResidual]]/VLOOKUP(Table_Data_Table_1[[#This Row],[Item ID]],DataTable,6,FALSE),IF(Table_Data_Table_1[[#This Row],[Valuation Method]]=\"Allocation\",'Global Settings'!$H$20,\"\")))","v":""},{"$f":"IFERROR(ROUND(Table_Data_Table_1[[#This Row],[Resid\nSq Ft]]/43560,3),\"\")","v":""},{"$f":"IF(Table_Data_Table_1[[#This Row],[Item ID]]=\"\",\"\",IFERROR(VLOOKUP(Table_Data_Table_1[[#This Row],[Item ID]],DataTable,10,FALSE)-VLOOKUP(Table_Data_Table_1[[#This Row],[Item ID]],DataTable,12,FALSE),\"\"))","v":""},{"$f":"IFERROR(Table_Data_Table_1[[#This Row],[Land\nResidual]]/Table_Data_Table_1[[#This Row],[Resid\nAcre]],\"\")","v":""},{"$f":"IFERROR(ROUND(Table_Data_Table_1[[#This Row],[Land\nResidual]]/Table_Data_Table_1[[#This Row],[Resid\nSq Ft]],2),\"\")","v":""},{"$f":"IF(Table_Data_Table_1[[#This Row],[Item ID]]=\"\",\"\",ROUND(DAYS360(Table_Data_Table_1[[#This Row],[Sale Date]],'Global Settings'!$H$5)/30,0))","v":""},{"$f":"IFERROR(IF(AND(Table_Data_Table_1[[#This Row],[Months To\nMid-Point]]<12.01,Table_Data_Table_1[[#This Row],[Months To\nMid-Point]]>-13),0,(Table_Data_Table_1[[#This Row],[Months To\nMid-Point]]*'Global Settings'!$H$6)),\"\")","v":""},{"$f":"IFERROR(Table_Data_Table_1[[#This Row],[Land\nResidual]]*(Table_Data_Table_1[[#This Row],[Time\nAdjust]]+1),\"\")","v":""},{"$f":"IFERROR(Table_Data_Table_1[[#This Row],[Adjusted\nSale Price]]/Table_Data_Table_1[[#This Row],[Resid\nAcre]],\"\")","v":""},{"$f":"IFERROR(ROUND(Table_Data_Table_1[[#This Row],[Adjusted\nSale Price]]/Table_Data_Table_1[[#This Row],[Resid\nSq Ft]],2),\"\")","v":""},{"$f":"IFERROR(IF(VLOOKUP(Table_Data_Table_1[[#This Row],[Item ID]],DataTable,11,FALSE)=0,\"N/A\",Table_Data_Table_1[[#This Row],[Adjusted\nSale Price]]/VLOOKUP(Table_Data_Table_1[[#This Row],[Item ID]],DataTable,11,FALSE)),\"\")","v":""},{"$f":"IF(IFERROR(VLOOKUP(Table_Data_Table_1[[#This Row],[Item ID]],DataTable,17,FALSE),\"\")=0,\"\",IFERROR(VLOOKUP(Table_Data_Table_1[[#This Row],[Item ID]],DataTable,17,FALSE),\"\"))","v":""}]
["",null,{"$f":"IF(Table_Data_Table_1[[#This Row],[Item ID]]=\"\",\"\",IFERROR(VLOOKUP(Table_Data_Table_1[[#This Row],[Item ID]],DataTable,16,FALSE),\"\"))","v":""},null,null,null,null,{"$f":"IF(Table_Data_Table_1[[#This Row],[Valuation Method]]=\"Vacant\",VLOOKUP(Table_Data_Table_1[[#This Row],[Item ID]],DataTable,6,FALSE)-VLOOKUP(Table_Data_Table_1[[#This Row],[Item ID]],DataTable,13,FALSE),IF(Table_Data_Table_1[[#This Row],[Valuation Method]]=\"Abstraction\",VLOOKUP(Table_Data_Table_1[[#This Row],[Item ID]],DataTable,6,FALSE)-VLOOKUP(Table_Data_Table_1[[#This Row],[Item ID]],DataTable,13,FALSE),IF(Table_Data_Table_1[[#This Row],[Valuation Method]]=\"Allocation\",VLOOKUP(Table_Data_Table_1[[#This Row],[Item ID]],DataTable,6,FALSE)*I481,\"\")))","v":""},{"$f":"IF(Table_Data_Table_1[[#This Row],[Valuation Method]]=\"Vacant\",\"N/A\",IF(Table_Data_Table_1[[#This Row],[Valuation Method]]=\"Abstraction\",Table_Data_Table_1[[#This Row],[Land\nResidual]]/VLOOKUP(Table_Data_Table_1[[#This Row],[Item ID]],DataTable,6,FALSE),IF(Table_Data_Table_1[[#This Row],[Valuation Method]]=\"Allocation\",'Global Settings'!$H$20,\"\")))","v":""},{"$f":"IFERROR(ROUND(Table_Data_Table_1[[#This Row],[Resid\nSq Ft]]/43560,3),\"\")","v":""},{"$f":"IF(Table_Data_Table_1[[#This Row],[Item ID]]=\"\",\"\",IFERROR(VLOOKUP(Table_Data_Table_1[[#This Row],[Item ID]],DataTable,10,FALSE)-VLOOKUP(Table_Data_Table_1[[#This Row],[Item ID]],DataTable,12,FALSE),\"\"))","v":""},{"$f":"IFERROR(Table_Data_Table_1[[#This Row],[Land\nResidual]]/Table_Data_Table_1[[#This Row],[Resid\nAcre]],\"\")","v":""},{"$f":"IFERROR(ROUND(Table_Data_Table_1[[#This Row],[Land\nResidual]]/Table_Data_Table_1[[#This Row],[Resid\nSq Ft]],2),\"\")","v":""},{"$f":"IF(Table_Data_Table_1[[#This Row],[Item ID]]=\"\",\"\",ROUND(DAYS360(Table_Data_Table_1[[#This Row],[Sale Date]],'Global Settings'!$H$5)/30,0))","v":""},{"$f":"IFERROR(IF(AND(Table_Data_Table_1[[#This Row],[Months To\nMid-Point]]<12.01,Table_Data_Table_1[[#This Row],[Months To\nMid-Point]]>-13),0,(Table_Data_Table_1[[#This Row],[Months To\nMid-Point]]*'Global Settings'!$H$6)),\"\")","v":""},{"$f":"IFERROR(Table_Data_Table_1[[#This Row],[Land\nResidual]]*(Table_Data_Table_1[[#This Row],[Time\nAdjust]]+1),\"\")","v":""},{"$f":"IFERROR(Table_Data_Table_1[[#This Row],[Adjusted\nSale Price]]/Table_Data_Table_1[[#This Row],[Resid\nAcre]],\"\")","v":""},{"$f":"IFERROR(ROUND(Table_Data_Table_1[[#This Row],[Adjusted\nSale Price]]/Table_Data_Table_1[[#This Row],[Resid\nSq Ft]],2),\"\")","v":""},{"$f":"IFERROR(IF(VLOOKUP(Table_Data_Table_1[[#This Row],[Item ID]],DataTable,11,FALSE)=0,\"N/A\",Table_Data_Table_1[[#This Row],[Adjusted\nSale Price]]/VLOOKUP(Table_Data_Table_1[[#This Row],[Item ID]],DataTable,11,FALSE)),\"\")","v":""},{"$f":"IF(IFERROR(VLOOKUP(Table_Data_Table_1[[#This Row],[Item ID]],DataTable,17,FALSE),\"\")=0,\"\",IFERROR(VLOOKUP(Table_Data_Table_1[[#This Row],[Item ID]],DataTable,17,FALSE),\"\"))","v":""}]
["",null,{"$f":"IF(Table_Data_Table_1[[#This Row],[Item ID]]=\"\",\"\",IFERROR(VLOOKUP(Table_Data_Table_1[[#This Row],[Item ID]],DataTable,16,FALSE),\"\"))","v":""},null,null,null,null,{"$f":"IF(Table_Data_Table_1[[#This Row],[Valuation Method]]=\"Vacant\",VLOOKUP(Table_Data_Table_1[[#This Row],[Item ID]],DataTable,6,FALSE)-VLOOKUP(Table_Data_Table_1[[#This Row],[Item ID]],DataTable,13,FALSE),IF(Table_Data_Table_1[[#This Row],[Valuation Method]]=\"Abstraction\",VLOOKUP(Table_Data_Table_1[[#This Row],[Item ID]],DataTable,6,FALSE)-VLOOKUP(Table_Data_Table_1[[#This Row],[Item ID]],DataTable,13,FALSE),IF(Table_Data_Table_1[[#This Row],[Valuation Method]]=\"Allocation\",VLOOKUP(Table_Data_Table_1[[#This Row],[Item ID]],DataTable,6,FALSE)*I482,\"\")))","v":""},{"$f":"IF(Table_Data_Table_1[[#This Row],[Valuation Method]]=\"Vacant\",\"N/A\",IF(Table_Data_Table_1[[#This Row],[Valuation Method]]=\"Abstraction\",Table_Data_Table_1[[#This Row],[Land\nResidual]]/VLOOKUP(Table_Data_Table_1[[#This Row],[Item ID]],DataTable,6,FALSE),IF(Table_Data_Table_1[[#This Row],[Valuation Method]]=\"Allocation\",'Global Settings'!$H$20,\"\")))","v":""},{"$f":"IFERROR(ROUND(Table_Data_Table_1[[#This Row],[Resid\nSq Ft]]/43560,3),\"\")","v":""},{"$f":"IF(Table_Data_Table_1[[#This Row],[Item ID]]=\"\",\"\",IFERROR(VLOOKUP(Table_Data_Table_1[[#This Row],[Item ID]],DataTable,10,FALSE)-VLOOKUP(Table_Data_Table_1[[#This Row],[Item ID]],DataTable,12,FALSE),\"\"))","v":""},{"$f":"IFERROR(Table_Data_Table_1[[#This Row],[Land\nResidual]]/Table_Data_Table_1[[#This Row],[Resid\nAcre]],\"\")","v":""},{"$f":"IFERROR(ROUND(Table_Data_Table_1[[#This Row],[Land\nResidual]]/Table_Data_Table_1[[#This Row],[Resid\nSq Ft]],2),\"\")","v":""},{"$f":"IF(Table_Data_Table_1[[#This Row],[Item ID]]=\"\",\"\",ROUND(DAYS360(Table_Data_Table_1[[#This Row],[Sale Date]],'Global Settings'!$H$5)/30,0))","v":""},{"$f":"IFERROR(IF(AND(Table_Data_Table_1[[#This Row],[Months To\nMid-Point]]<12.01,Table_Data_Table_1[[#This Row],[Months To\nMid-Point]]>-13),0,(Table_Data_Table_1[[#This Row],[Months To\nMid-Point]]*'Global Settings'!$H$6)),\"\")","v":""},{"$f":"IFERROR(Table_Data_Table_1[[#This Row],[Land\nResidual]]*(Table_Data_Table_1[[#This Row],[Time\nAdjust]]+1),\"\")","v":""},{"$f":"IFERROR(Table_Data_Table_1[[#This Row],[Adjusted\nSale Price]]/Table_Data_Table_1[[#This Row],[Resid\nAcre]],\"\")","v":""},{"$f":"IFERROR(ROUND(Table_Data_Table_1[[#This Row],[Adjusted\nSale Price]]/Table_Data_Table_1[[#This Row],[Resid\nSq Ft]],2),\"\")","v":""},{"$f":"IFERROR(IF(VLOOKUP(Table_Data_Table_1[[#This Row],[Item ID]],DataTable,11,FALSE)=0,\"N/A\",Table_Data_Table_1[[#This Row],[Adjusted\nSale Price]]/VLOOKUP(Table_Data_Table_1[[#This Row],[Item ID]],DataTable,11,FALSE)),\"\")","v":""},{"$f":"IF(IFERROR(VLOOKUP(Table_Data_Table_1[[#This Row],[Item ID]],DataTable,17,FALSE),\"\")=0,\"\",IFERROR(VLOOKUP(Table_Data_Table_1[[#This Row],[Item ID]],DataTable,17,FALSE),\"\"))","v":""}]
["",null,{"$f":"IF(Table_Data_Table_1[[#This Row],[Item ID]]=\"\",\"\",IFERROR(VLOOKUP(Table_Data_Table_1[[#This Row],[Item ID]],DataTable,16,FALSE),\"\"))","v":""},null,null,null,null,{"$f":"IF(Table_Data_Table_1[[#This Row],[Valuation Method]]=\"Vacant\",VLOOKUP(Table_Data_Table_1[[#This Row],[Item ID]],DataTable,6,FALSE)-VLOOKUP(Table_Data_Table_1[[#This Row],[Item ID]],DataTable,13,FALSE),IF(Table_Data_Table_1[[#This Row],[Valuation Method]]=\"Abstraction\",VLOOKUP(Table_Data_Table_1[[#This Row],[Item ID]],DataTable,6,FALSE)-VLOOKUP(Table_Data_Table_1[[#This Row],[Item ID]],DataTable,13,FALSE),IF(Table_Data_Table_1[[#This Row],[Valuation Method]]=\"Allocation\",VLOOKUP(Table_Data_Table_1[[#This Row],[Item ID]],DataTable,6,FALSE)*I483,\"\")))","v":""},{"$f":"IF(Table_Data_Table_1[[#This Row],[Valuation Method]]=\"Vacant\",\"N/A\",IF(Table_Data_Table_1[[#This Row],[Valuation Method]]=\"Abstraction\",Table_Data_Table_1[[#This Row],[Land\nResidual]]/VLOOKUP(Table_Data_Table_1[[#This Row],[Item ID]],DataTable,6,FALSE),IF(Table_Data_Table_1[[#This Row],[Valuation Method]]=\"Allocation\",'Global Settings'!$H$20,\"\")))","v":""},{"$f":"IFERROR(ROUND(Table_Data_Table_1[[#This Row],[Resid\nSq Ft]]/43560,3),\"\")","v":""},{"$f":"IF(Table_Data_Table_1[[#This Row],[Item ID]]=\"\",\"\",IFERROR(VLOOKUP(Table_Data_Table_1[[#This Row],[Item ID]],DataTable,10,FALSE)-VLOOKUP(Table_Data_Table_1[[#This Row],[Item ID]],DataTable,12,FALSE),\"\"))","v":""},{"$f":"IFERROR(Table_Data_Table_1[[#This Row],[Land\nResidual]]/Table_Data_Table_1[[#This Row],[Resid\nAcre]],\"\")","v":""},{"$f":"IFERROR(ROUND(Table_Data_Table_1[[#This Row],[Land\nResidual]]/Table_Data_Table_1[[#This Row],[Resid\nSq Ft]],2),\"\")","v":""},{"$f":"IF(Table_Data_Table_1[[#This Row],[Item ID]]=\"\",\"\",ROUND(DAYS360(Table_Data_Table_1[[#This Row],[Sale Date]],'Global Settings'!$H$5)/30,0))","v":""},{"$f":"IFERROR(IF(AND(Table_Data_Table_1[[#This Row],[Months To\nMid-Point]]<12.01,Table_Data_Table_1[[#This Row],[Months To\nMid-Point]]>-13),0,(Table_Data_Table_1[[#This Row],[Months To\nMid-Point]]*'Global Settings'!$H$6)),\"\")","v":""},{"$f":"IFERROR(Table_Data_Table_1[[#This Row],[Land\nResidual]]*(Table_Data_Table_1[[#This Row],[Time\nAdjust]]+1),\"\")","v":""},{"$f":"IFERROR(Table_Data_Table_1[[#This Row],[Adjusted\nSale Price]]/Table_Data_Table_1[[#This Row],[Resid\nAcre]],\"\")","v":""},{"$f":"IFERROR(ROUND(Table_Data_Table_1[[#This Row],[Adjusted\nSale Price]]/Table_Data_Table_1[[#This Row],[Resid\nSq Ft]],2),\"\")","v":""},{"$f":"IFERROR(IF(VLOOKUP(Table_Data_Table_1[[#This Row],[Item ID]],DataTable,11,FALSE)=0,\"N/A\",Table_Data_Table_1[[#This Row],[Adjusted\nSale Price]]/VLOOKUP(Table_Data_Table_1[[#This Row],[Item ID]],DataTable,11,FALSE)),\"\")","v":""},{"$f":"IF(IFERROR(VLOOKUP(Table_Data_Table_1[[#This Row],[Item ID]],DataTable,17,FALSE),\"\")=0,\"\",IFERROR(VLOOKUP(Table_Data_Table_1[[#This Row],[Item ID]],DataTable,17,FALSE),\"\"))","v":""}]
["",null,{"$f":"IF(Table_Data_Table_1[[#This Row],[Item ID]]=\"\",\"\",IFERROR(VLOOKUP(Table_Data_Table_1[[#This Row],[Item ID]],DataTable,16,FALSE),\"\"))","v":""},null,null,null,null,{"$f":"IF(Table_Data_Table_1[[#This Row],[Valuation Method]]=\"Vacant\",VLOOKUP(Table_Data_Table_1[[#This Row],[Item ID]],DataTable,6,FALSE)-VLOOKUP(Table_Data_Table_1[[#This Row],[Item ID]],DataTable,13,FALSE),IF(Table_Data_Table_1[[#This Row],[Valuation Method]]=\"Abstraction\",VLOOKUP(Table_Data_Table_1[[#This Row],[Item ID]],DataTable,6,FALSE)-VLOOKUP(Table_Data_Table_1[[#This Row],[Item ID]],DataTable,13,FALSE),IF(Table_Data_Table_1[[#This Row],[Valuation Method]]=\"Allocation\",VLOOKUP(Table_Data_Table_1[[#This Row],[Item ID]],DataTable,6,FALSE)*I484,\"\")))","v":""},{"$f":"IF(Table_Data_Table_1[[#This Row],[Valuation Method]]=\"Vacant\",\"N/A\",IF(Table_Data_Table_1[[#This Row],[Valuation Method]]=\"Abstraction\",Table_Data_Table_1[[#This Row],[Land\nResidual]]/VLOOKUP(Table_Data_Table_1[[#This Row],[Item ID]],DataTable,6,FALSE),IF(Table_Data_Table_1[[#This Row],[Valuation Method]]=\"Allocation\",'Global Settings'!$H$20,\"\")))","v":""},{"$f":"IFERROR(ROUND(Table_Data_Table_1[[#This Row],[Resid\nSq Ft]]/43560,3),\"\")","v":""},{"$f":"IF(Table_Data_Table_1[[#This Row],[Item ID]]=\"\",\"\",IFERROR(VLOOKUP(Table_Data_Table_1[[#This Row],[Item ID]],DataTable,10,FALSE)-VLOOKUP(Table_Data_Table_1[[#This Row],[Item ID]],DataTable,12,FALSE),\"\"))","v":""},{"$f":"IFERROR(Table_Data_Table_1[[#This Row],[Land\nResidual]]/Table_Data_Table_1[[#This Row],[Resid\nAcre]],\"\")","v":""},{"$f":"IFERROR(ROUND(Table_Data_Table_1[[#This Row],[Land\nResidual]]/Table_Data_Table_1[[#This Row],[Resid\nSq Ft]],2),\"\")","v":""},{"$f":"IF(Table_Data_Table_1[[#This Row],[Item ID]]=\"\",\"\",ROUND(DAYS360(Table_Data_Table_1[[#This Row],[Sale Date]],'Global Settings'!$H$5)/30,0))","v":""},{"$f":"IFERROR(IF(AND(Table_Data_Table_1[[#This Row],[Months To\nMid-Point]]<12.01,Table_Data_Table_1[[#This Row],[Months To\nMid-Point]]>-13),0,(Table_Data_Table_1[[#This Row],[Months To\nMid-Point]]*'Global Settings'!$H$6)),\"\")","v":""},{"$f":"IFERROR(Table_Data_Table_1[[#This Row],[Land\nResidual]]*(Table_Data_Table_1[[#This Row],[Time\nAdjust]]+1),\"\")","v":""},{"$f":"IFERROR(Table_Data_Table_1[[#This Row],[Adjusted\nSale Price]]/Table_Data_Table_1[[#This Row],[Resid\nAcre]],\"\")","v":""},{"$f":"IFERROR(ROUND(Table_Data_Table_1[[#This Row],[Adjusted\nSale Price]]/Table_Data_Table_1[[#This Row],[Resid\nSq Ft]],2),\"\")","v":""},{"$f":"IFERROR(IF(VLOOKUP(Table_Data_Table_1[[#This Row],[Item ID]],DataTable,11,FALSE)=0,\"N/A\",Table_Data_Table_1[[#This Row],[Adjusted\nSale Price]]/VLOOKUP(Table_Data_Table_1[[#This Row],[Item ID]],DataTable,11,FALSE)),\"\")","v":""},{"$f":"IF(IFERROR(VLOOKUP(Table_Data_Table_1[[#This Row],[Item ID]],DataTable,17,FALSE),\"\")=0,\"\",IFERROR(VLOOKUP(Table_Data_Table_1[[#This Row],[Item ID]],DataTable,17,FALSE),\"\"))","v":""}]
["",null,{"$f":"IF(Table_Data_Table_1[[#This Row],[Item ID]]=\"\",\"\",IFERROR(VLOOKUP(Table_Data_Table_1[[#This Row],[Item ID]],DataTable,16,FALSE),\"\"))","v":""},null,null,null,null,{"$f":"IF(Table_Data_Table_1[[#This Row],[Valuation Method]]=\"Vacant\",VLOOKUP(Table_Data_Table_1[[#This Row],[Item ID]],DataTable,6,FALSE)-VLOOKUP(Table_Data_Table_1[[#This Row],[Item ID]],DataTable,13,FALSE),IF(Table_Data_Table_1[[#This Row],[Valuation Method]]=\"Abstraction\",VLOOKUP(Table_Data_Table_1[[#This Row],[Item ID]],DataTable,6,FALSE)-VLOOKUP(Table_Data_Table_1[[#This Row],[Item ID]],DataTable,13,FALSE),IF(Table_Data_Table_1[[#This Row],[Valuation Method]]=\"Allocation\",VLOOKUP(Table_Data_Table_1[[#This Row],[Item ID]],DataTable,6,FALSE)*I485,\"\")))","v":""},{"$f":"IF(Table_Data_Table_1[[#This Row],[Valuation Method]]=\"Vacant\",\"N/A\",IF(Table_Data_Table_1[[#This Row],[Valuation Method]]=\"Abstraction\",Table_Data_Table_1[[#This Row],[Land\nResidual]]/VLOOKUP(Table_Data_Table_1[[#This Row],[Item ID]],DataTable,6,FALSE),IF(Table_Data_Table_1[[#This Row],[Valuation Method]]=\"Allocation\",'Global Settings'!$H$20,\"\")))","v":""},{"$f":"IFERROR(ROUND(Table_Data_Table_1[[#This Row],[Resid\nSq Ft]]/43560,3),\"\")","v":""},{"$f":"IF(Table_Data_Table_1[[#This Row],[Item ID]]=\"\",\"\",IFERROR(VLOOKUP(Table_Data_Table_1[[#This Row],[Item ID]],DataTable,10,FALSE)-VLOOKUP(Table_Data_Table_1[[#This Row],[Item ID]],DataTable,12,FALSE),\"\"))","v":""},{"$f":"IFERROR(Table_Data_Table_1[[#This Row],[Land\nResidual]]/Table_Data_Table_1[[#This Row],[Resid\nAcre]],\"\")","v":""},{"$f":"IFERROR(ROUND(Table_Data_Table_1[[#This Row],[Land\nResidual]]/Table_Data_Table_1[[#This Row],[Resid\nSq Ft]],2),\"\")","v":""},{"$f":"IF(Table_Data_Table_1[[#This Row],[Item ID]]=\"\",\"\",ROUND(DAYS360(Table_Data_Table_1[[#This Row],[Sale Date]],'Global Settings'!$H$5)/30,0))","v":""},{"$f":"IFERROR(IF(AND(Table_Data_Table_1[[#This Row],[Months To\nMid-Point]]<12.01,Table_Data_Table_1[[#This Row],[Months To\nMid-Point]]>-13),0,(Table_Data_Table_1[[#This Row],[Months To\nMid-Point]]*'Global Settings'!$H$6)),\"\")","v":""},{"$f":"IFERROR(Table_Data_Table_1[[#This Row],[Land\nResidual]]*(Table_Data_Table_1[[#This Row],[Time\nAdjust]]+1),\"\")","v":""},{"$f":"IFERROR(Table_Data_Table_1[[#This Row],[Adjusted\nSale Price]]/Table_Data_Table_1[[#This Row],[Resid\nAcre]],\"\")","v":""},{"$f":"IFERROR(ROUND(Table_Data_Table_1[[#This Row],[Adjusted\nSale Price]]/Table_Data_Table_1[[#This Row],[Resid\nSq Ft]],2),\"\")","v":""},{"$f":"IFERROR(IF(VLOOKUP(Table_Data_Table_1[[#This Row],[Item ID]],DataTable,11,FALSE)=0,\"N/A\",Table_Data_Table_1[[#This Row],[Adjusted\nSale Price]]/VLOOKUP(Table_Data_Table_1[[#This Row],[Item ID]],DataTable,11,FALSE)),\"\")","v":""},{"$f":"IF(IFERROR(VLOOKUP(Table_Data_Table_1[[#This Row],[Item ID]],DataTable,17,FALSE),\"\")=0,\"\",IFERROR(VLOOKUP(Table_Data_Table_1[[#This Row],[Item ID]],DataTable,17,FALSE),\"\"))","v":""}]
["",null,{"$f":"IF(Table_Data_Table_1[[#This Row],[Item ID]]=\"\",\"\",IFERROR(VLOOKUP(Table_Data_Table_1[[#This Row],[Item ID]],DataTable,16,FALSE),\"\"))","v":""},null,null,null,null,{"$f":"IF(Table_Data_Table_1[[#This Row],[Valuation Method]]=\"Vacant\",VLOOKUP(Table_Data_Table_1[[#This Row],[Item ID]],DataTable,6,FALSE)-VLOOKUP(Table_Data_Table_1[[#This Row],[Item ID]],DataTable,13,FALSE),IF(Table_Data_Table_1[[#This Row],[Valuation Method]]=\"Abstraction\",VLOOKUP(Table_Data_Table_1[[#This Row],[Item ID]],DataTable,6,FALSE)-VLOOKUP(Table_Data_Table_1[[#This Row],[Item ID]],DataTable,13,FALSE),IF(Table_Data_Table_1[[#This Row],[Valuation Method]]=\"Allocation\",VLOOKUP(Table_Data_Table_1[[#This Row],[Item ID]],DataTable,6,FALSE)*I486,\"\")))","v":""},{"$f":"IF(Table_Data_Table_1[[#This Row],[Valuation Method]]=\"Vacant\",\"N/A\",IF(Table_Data_Table_1[[#This Row],[Valuation Method]]=\"Abstraction\",Table_Data_Table_1[[#This Row],[Land\nResidual]]/VLOOKUP(Table_Data_Table_1[[#This Row],[Item ID]],DataTable,6,FALSE),IF(Table_Data_Table_1[[#This Row],[Valuation Method]]=\"Allocation\",'Global Settings'!$H$20,\"\")))","v":""},{"$f":"IFERROR(ROUND(Table_Data_Table_1[[#This Row],[Resid\nSq Ft]]/43560,3),\"\")","v":""},{"$f":"IF(Table_Data_Table_1[[#This Row],[Item ID]]=\"\",\"\",IFERROR(VLOOKUP(Table_Data_Table_1[[#This Row],[Item ID]],DataTable,10,FALSE)-VLOOKUP(Table_Data_Table_1[[#This Row],[Item ID]],DataTable,12,FALSE),\"\"))","v":""},{"$f":"IFERROR(Table_Data_Table_1[[#This Row],[Land\nResidual]]/Table_Data_Table_1[[#This Row],[Resid\nAcre]],\"\")","v":""},{"$f":"IFERROR(ROUND(Table_Data_Table_1[[#This Row],[Land\nResidual]]/Table_Data_Table_1[[#This Row],[Resid\nSq Ft]],2),\"\")","v":""},{"$f":"IF(Table_Data_Table_1[[#This Row],[Item ID]]=\"\",\"\",ROUND(DAYS360(Table_Data_Table_1[[#This Row],[Sale Date]],'Global Settings'!$H$5)/30,0))","v":""},{"$f":"IFERROR(IF(AND(Table_Data_Table_1[[#This Row],[Months To\nMid-Point]]<12.01,Table_Data_Table_1[[#This Row],[Months To\nMid-Point]]>-13),0,(Table_Data_Table_1[[#This Row],[Months To\nMid-Point]]*'Global Settings'!$H$6)),\"\")","v":""},{"$f":"IFERROR(Table_Data_Table_1[[#This Row],[Land\nResidual]]*(Table_Data_Table_1[[#This Row],[Time\nAdjust]]+1),\"\")","v":""},{"$f":"IFERROR(Table_Data_Table_1[[#This Row],[Adjusted\nSale Price]]/Table_Data_Table_1[[#This Row],[Resid\nAcre]],\"\")","v":""},{"$f":"IFERROR(ROUND(Table_Data_Table_1[[#This Row],[Adjusted\nSale Price]]/Table_Data_Table_1[[#This Row],[Resid\nSq Ft]],2),\"\")","v":""},{"$f":"IFERROR(IF(VLOOKUP(Table_Data_Table_1[[#This Row],[Item ID]],DataTable,11,FALSE)=0,\"N/A\",Table_Data_Table_1[[#This Row],[Adjusted\nSale Price]]/VLOOKUP(Table_Data_Table_1[[#This Row],[Item ID]],DataTable,11,FALSE)),\"\")","v":""},{"$f":"IF(IFERROR(VLOOKUP(Table_Data_Table_1[[#This Row],[Item ID]],DataTable,17,FALSE),\"\")=0,\"\",IFERROR(VLOOKUP(Table_Data_Table_1[[#This Row],[Item ID]],DataTable,17,FALSE),\"\"))","v":""}]
["",null,{"$f":"IF(Table_Data_Table_1[[#This Row],[Item ID]]=\"\",\"\",IFERROR(VLOOKUP(Table_Data_Table_1[[#This Row],[Item ID]],DataTable,16,FALSE),\"\"))","v":""},null,null,null,null,{"$f":"IF(Table_Data_Table_1[[#This Row],[Valuation Method]]=\"Vacant\",VLOOKUP(Table_Data_Table_1[[#This Row],[Item ID]],DataTable,6,FALSE)-VLOOKUP(Table_Data_Table_1[[#This Row],[Item ID]],DataTable,13,FALSE),IF(Table_Data_Table_1[[#This Row],[Valuation Method]]=\"Abstraction\",VLOOKUP(Table_Data_Table_1[[#This Row],[Item ID]],DataTable,6,FALSE)-VLOOKUP(Table_Data_Table_1[[#This Row],[Item ID]],DataTable,13,FALSE),IF(Table_Data_Table_1[[#This Row],[Valuation Method]]=\"Allocation\",VLOOKUP(Table_Data_Table_1[[#This Row],[Item ID]],DataTable,6,FALSE)*I487,\"\")))","v":""},{"$f":"IF(Table_Data_Table_1[[#This Row],[Valuation Method]]=\"Vacant\",\"N/A\",IF(Table_Data_Table_1[[#This Row],[Valuation Method]]=\"Abstraction\",Table_Data_Table_1[[#This Row],[Land\nResidual]]/VLOOKUP(Table_Data_Table_1[[#This Row],[Item ID]],DataTable,6,FALSE),IF(Table_Data_Table_1[[#This Row],[Valuation Method]]=\"Allocation\",'Global Settings'!$H$20,\"\")))","v":""},{"$f":"IFERROR(ROUND(Table_Data_Table_1[[#This Row],[Resid\nSq Ft]]/43560,3),\"\")","v":""},{"$f":"IF(Table_Data_Table_1[[#This Row],[Item ID]]=\"\",\"\",IFERROR(VLOOKUP(Table_Data_Table_1[[#This Row],[Item ID]],DataTable,10,FALSE)-VLOOKUP(Table_Data_Table_1[[#This Row],[Item ID]],DataTable,12,FALSE),\"\"))","v":""},{"$f":"IFERROR(Table_Data_Table_1[[#This Row],[Land\nResidual]]/Table_Data_Table_1[[#This Row],[Resid\nAcre]],\"\")","v":""},{"$f":"IFERROR(ROUND(Table_Data_Table_1[[#This Row],[Land\nResidual]]/Table_Data_Table_1[[#This Row],[Resid\nSq Ft]],2),\"\")","v":""},{"$f":"IF(Table_Data_Table_1[[#This Row],[Item ID]]=\"\",\"\",ROUND(DAYS360(Table_Data_Table_1[[#This Row],[Sale Date]],'Global Settings'!$H$5)/30,0))","v":""},{"$f":"IFERROR(IF(AND(Table_Data_Table_1[[#This Row],[Months To\nMid-Point]]<12.01,Table_Data_Table_1[[#This Row],[Months To\nMid-Point]]>-13),0,(Table_Data_Table_1[[#This Row],[Months To\nMid-Point]]*'Global Settings'!$H$6)),\"\")","v":""},{"$f":"IFERROR(Table_Data_Table_1[[#This Row],[Land\nResidual]]*(Table_Data_Table_1[[#This Row],[Time\nAdjust]]+1),\"\")","v":""},{"$f":"IFERROR(Table_Data_Table_1[[#This Row],[Adjusted\nSale Price]]/Table_Data_Table_1[[#This Row],[Resid\nAcre]],\"\")","v":""},{"$f":"IFERROR(ROUND(Table_Data_Table_1[[#This Row],[Adjusted\nSale Price]]/Table_Data_Table_1[[#This Row],[Resid\nSq Ft]],2),\"\")","v":""},{"$f":"IFERROR(IF(VLOOKUP(Table_Data_Table_1[[#This Row],[Item ID]],DataTable,11,FALSE)=0,\"N/A\",Table_Data_Table_1[[#This Row],[Adjusted\nSale Price]]/VLOOKUP(Table_Data_Table_1[[#This Row],[Item ID]],DataTable,11,FALSE)),\"\")","v":""},{"$f":"IF(IFERROR(VLOOKUP(Table_Data_Table_1[[#This Row],[Item ID]],DataTable,17,FALSE),\"\")=0,\"\",IFERROR(VLOOKUP(Table_Data_Table_1[[#This Row],[Item ID]],DataTable,17,FALSE),\"\"))","v":""}]
["",null,{"$f":"IF(Table_Data_Table_1[[#This Row],[Item ID]]=\"\",\"\",IFERROR(VLOOKUP(Table_Data_Table_1[[#This Row],[Item ID]],DataTable,16,FALSE),\"\"))","v":""},null,null,null,null,{"$f":"IF(Table_Data_Table_1[[#This Row],[Valuation Method]]=\"Vacant\",VLOOKUP(Table_Data_Table_1[[#This Row],[Item ID]],DataTable,6,FALSE)-VLOOKUP(Table_Data_Table_1[[#This Row],[Item ID]],DataTable,13,FALSE),IF(Table_Data_Table_1[[#This Row],[Valuation Method]]=\"Abstraction\",VLOOKUP(Table_Data_Table_1[[#This Row],[Item ID]],DataTable,6,FALSE)-VLOOKUP(Table_Data_Table_1[[#This Row],[Item ID]],DataTable,13,FALSE),IF(Table_Data_Table_1[[#This Row],[Valuation Method]]=\"Allocation\",VLOOKUP(Table_Data_Table_1[[#This Row],[Item ID]],DataTable,6,FALSE)*I488,\"\")))","v":""},{"$f":"IF(Table_Data_Table_1[[#This Row],[Valuation Method]]=\"Vacant\",\"N/A\",IF(Table_Data_Table_1[[#This Row],[Valuation Method]]=\"Abstraction\",Table_Data_Table_1[[#This Row],[Land\nResidual]]/VLOOKUP(Table_Data_Table_1[[#This Row],[Item ID]],DataTable,6,FALSE),IF(Table_Data_Table_1[[#This Row],[Valuation Method]]=\"Allocation\",'Global Settings'!$H$20,\"\")))","v":""},{"$f":"IFERROR(ROUND(Table_Data_Table_1[[#This Row],[Resid\nSq Ft]]/43560,3),\"\")","v":""},{"$f":"IF(Table_Data_Table_1[[#This Row],[Item ID]]=\"\",\"\",IFERROR(VLOOKUP(Table_Data_Table_1[[#This Row],[Item ID]],DataTable,10,FALSE)-VLOOKUP(Table_Data_Table_1[[#This Row],[Item ID]],DataTable,12,FALSE),\"\"))","v":""},{"$f":"IFERROR(Table_Data_Table_1[[#This Row],[Land\nResidual]]/Table_Data_Table_1[[#This Row],[Resid\nAcre]],\"\")","v":""},{"$f":"IFERROR(ROUND(Table_Data_Table_1[[#This Row],[Land\nResidual]]/Table_Data_Table_1[[#This Row],[Resid\nSq Ft]],2),\"\")","v":""},{"$f":"IF(Table_Data_Table_1[[#This Row],[Item ID]]=\"\",\"\",ROUND(DAYS360(Table_Data_Table_1[[#This Row],[Sale Date]],'Global Settings'!$H$5)/30,0))","v":""},{"$f":"IFERROR(IF(AND(Table_Data_Table_1[[#This Row],[Months To\nMid-Point]]<12.01,Table_Data_Table_1[[#This Row],[Months To\nMid-Point]]>-13),0,(Table_Data_Table_1[[#This Row],[Months To\nMid-Point]]*'Global Settings'!$H$6)),\"\")","v":""},{"$f":"IFERROR(Table_Data_Table_1[[#This Row],[Land\nResidual]]*(Table_Data_Table_1[[#This Row],[Time\nAdjust]]+1),\"\")","v":""},{"$f":"IFERROR(Table_Data_Table_1[[#This Row],[Adjusted\nSale Price]]/Table_Data_Table_1[[#This Row],[Resid\nAcre]],\"\")","v":""},{"$f":"IFERROR(ROUND(Table_Data_Table_1[[#This Row],[Adjusted\nSale Price]]/Table_Data_Table_1[[#This Row],[Resid\nSq Ft]],2),\"\")","v":""},{"$f":"IFERROR(IF(VLOOKUP(Table_Data_Table_1[[#This Row],[Item ID]],DataTable,11,FALSE)=0,\"N/A\",Table_Data_Table_1[[#This Row],[Adjusted\nSale Price]]/VLOOKUP(Table_Data_Table_1[[#This Row],[Item ID]],DataTable,11,FALSE)),\"\")","v":""},{"$f":"IF(IFERROR(VLOOKUP(Table_Data_Table_1[[#This Row],[Item ID]],DataTable,17,FALSE),\"\")=0,\"\",IFERROR(VLOOKUP(Table_Data_Table_1[[#This Row],[Item ID]],DataTable,17,FALSE),\"\"))","v":""}]
["",null,{"$f":"IF(Table_Data_Table_1[[#This Row],[Item ID]]=\"\",\"\",IFERROR(VLOOKUP(Table_Data_Table_1[[#This Row],[Item ID]],DataTable,16,FALSE),\"\"))","v":""},null,null,null,null,{"$f":"IF(Table_Data_Table_1[[#This Row],[Valuation Method]]=\"Vacant\",VLOOKUP(Table_Data_Table_1[[#This Row],[Item ID]],DataTable,6,FALSE)-VLOOKUP(Table_Data_Table_1[[#This Row],[Item ID]],DataTable,13,FALSE),IF(Table_Data_Table_1[[#This Row],[Valuation Method]]=\"Abstraction\",VLOOKUP(Table_Data_Table_1[[#This Row],[Item ID]],DataTable,6,FALSE)-VLOOKUP(Table_Data_Table_1[[#This Row],[Item ID]],DataTable,13,FALSE),IF(Table_Data_Table_1[[#This Row],[Valuation Method]]=\"Allocation\",VLOOKUP(Table_Data_Table_1[[#This Row],[Item ID]],DataTable,6,FALSE)*I489,\"\")))","v":""},{"$f":"IF(Table_Data_Table_1[[#This Row],[Valuation Method]]=\"Vacant\",\"N/A\",IF(Table_Data_Table_1[[#This Row],[Valuation Method]]=\"Abstraction\",Table_Data_Table_1[[#This Row],[Land\nResidual]]/VLOOKUP(Table_Data_Table_1[[#This Row],[Item ID]],DataTable,6,FALSE),IF(Table_Data_Table_1[[#This Row],[Valuation Method]]=\"Allocation\",'Global Settings'!$H$20,\"\")))","v":""},{"$f":"IFERROR(ROUND(Table_Data_Table_1[[#This Row],[Resid\nSq Ft]]/43560,3),\"\")","v":""},{"$f":"IF(Table_Data_Table_1[[#This Row],[Item ID]]=\"\",\"\",IFERROR(VLOOKUP(Table_Data_Table_1[[#This Row],[Item ID]],DataTable,10,FALSE)-VLOOKUP(Table_Data_Table_1[[#This Row],[Item ID]],DataTable,12,FALSE),\"\"))","v":""},{"$f":"IFERROR(Table_Data_Table_1[[#This Row],[Land\nResidual]]/Table_Data_Table_1[[#This Row],[Resid\nAcre]],\"\")","v":""},{"$f":"IFERROR(ROUND(Table_Data_Table_1[[#This Row],[Land\nResidual]]/Table_Data_Table_1[[#This Row],[Resid\nSq Ft]],2),\"\")","v":""},{"$f":"IF(Table_Data_Table_1[[#This Row],[Item ID]]=\"\",\"\",ROUND(DAYS360(Table_Data_Table_1[[#This Row],[Sale Date]],'Global Settings'!$H$5)/30,0))","v":""},{"$f":"IFERROR(IF(AND(Table_Data_Table_1[[#This Row],[Months To\nMid-Point]]<12.01,Table_Data_Table_1[[#This Row],[Months To\nMid-Point]]>-13),0,(Table_Data_Table_1[[#This Row],[Months To\nMid-Point]]*'Global Settings'!$H$6)),\"\")","v":""},{"$f":"IFERROR(Table_Data_Table_1[[#This Row],[Land\nResidual]]*(Table_Data_Table_1[[#This Row],[Time\nAdjust]]+1),\"\")","v":""},{"$f":"IFERROR(Table_Data_Table_1[[#This Row],[Adjusted\nSale Price]]/Table_Data_Table_1[[#This Row],[Resid\nAcre]],\"\")","v":""},{"$f":"IFERROR(ROUND(Table_Data_Table_1[[#This Row],[Adjusted\nSale Price]]/Table_Data_Table_1[[#This Row],[Resid\nSq Ft]],2),\"\")","v":""},{"$f":"IFERROR(IF(VLOOKUP(Table_Data_Table_1[[#This Row],[Item ID]],DataTable,11,FALSE)=0,\"N/A\",Table_Data_Table_1[[#This Row],[Adjusted\nSale Price]]/VLOOKUP(Table_Data_Table_1[[#This Row],[Item ID]],DataTable,11,FALSE)),\"\")","v":""},{"$f":"IF(IFERROR(VLOOKUP(Table_Data_Table_1[[#This Row],[Item ID]],DataTable,17,FALSE),\"\")=0,\"\",IFERROR(VLOOKUP(Table_Data_Table_1[[#This Row],[Item ID]],DataTable,17,FALSE),\"\"))","v":""}]
["",null,{"$f":"IF(Table_Data_Table_1[[#This Row],[Item ID]]=\"\",\"\",IFERROR(VLOOKUP(Table_Data_Table_1[[#This Row],[Item ID]],DataTable,16,FALSE),\"\"))","v":""},null,null,null,null,{"$f":"IF(Table_Data_Table_1[[#This Row],[Valuation Method]]=\"Vacant\",VLOOKUP(Table_Data_Table_1[[#This Row],[Item ID]],DataTable,6,FALSE)-VLOOKUP(Table_Data_Table_1[[#This Row],[Item ID]],DataTable,13,FALSE),IF(Table_Data_Table_1[[#This Row],[Valuation Method]]=\"Abstraction\",VLOOKUP(Table_Data_Table_1[[#This Row],[Item ID]],DataTable,6,FALSE)-VLOOKUP(Table_Data_Table_1[[#This Row],[Item ID]],DataTable,13,FALSE),IF(Table_Data_Table_1[[#This Row],[Valuation Method]]=\"Allocation\",VLOOKUP(Table_Data_Table_1[[#This Row],[Item ID]],DataTable,6,FALSE)*I490,\"\")))","v":""},{"$f":"IF(Table_Data_Table_1[[#This Row],[Valuation Method]]=\"Vacant\",\"N/A\",IF(Table_Data_Table_1[[#This Row],[Valuation Method]]=\"Abstraction\",Table_Data_Table_1[[#This Row],[Land\nResidual]]/VLOOKUP(Table_Data_Table_1[[#This Row],[Item ID]],DataTable,6,FALSE),IF(Table_Data_Table_1[[#This Row],[Valuation Method]]=\"Allocation\",'Global Settings'!$H$20,\"\")))","v":""},{"$f":"IFERROR(ROUND(Table_Data_Table_1[[#This Row],[Resid\nSq Ft]]/43560,3),\"\")","v":""},{"$f":"IF(Table_Data_Table_1[[#This Row],[Item ID]]=\"\",\"\",IFERROR(VLOOKUP(Table_Data_Table_1[[#This Row],[Item ID]],DataTable,10,FALSE)-VLOOKUP(Table_Data_Table_1[[#This Row],[Item ID]],DataTable,12,FALSE),\"\"))","v":""},{"$f":"IFERROR(Table_Data_Table_1[[#This Row],[Land\nResidual]]/Table_Data_Table_1[[#This Row],[Resid\nAcre]],\"\")","v":""},{"$f":"IFERROR(ROUND(Table_Data_Table_1[[#This Row],[Land\nResidual]]/Table_Data_Table_1[[#This Row],[Resid\nSq Ft]],2),\"\")","v":""},{"$f":"IF(Table_Data_Table_1[[#This Row],[Item ID]]=\"\",\"\",ROUND(DAYS360(Table_Data_Table_1[[#This Row],[Sale Date]],'Global Settings'!$H$5)/30,0))","v":""},{"$f":"IFERROR(IF(AND(Table_Data_Table_1[[#This Row],[Months To\nMid-Point]]<12.01,Table_Data_Table_1[[#This Row],[Months To\nMid-Point]]>-13),0,(Table_Data_Table_1[[#This Row],[Months To\nMid-Point]]*'Global Settings'!$H$6)),\"\")","v":""},{"$f":"IFERROR(Table_Data_Table_1[[#This Row],[Land\nResidual]]*(Table_Data_Table_1[[#This Row],[Time\nAdjust]]+1),\"\")","v":""},{"$f":"IFERROR(Table_Data_Table_1[[#This Row],[Adjusted\nSale Price]]/Table_Data_Table_1[[#This Row],[Resid\nAcre]],\"\")","v":""},{"$f":"IFERROR(ROUND(Table_Data_Table_1[[#This Row],[Adjusted\nSale Price]]/Table_Data_Table_1[[#This Row],[Resid\nSq Ft]],2),\"\")","v":""},{"$f":"IFERROR(IF(VLOOKUP(Table_Data_Table_1[[#This Row],[Item ID]],DataTable,11,FALSE)=0,\"N/A\",Table_Data_Table_1[[#This Row],[Adjusted\nSale Price]]/VLOOKUP(Table_Data_Table_1[[#This Row],[Item ID]],DataTable,11,FALSE)),\"\")","v":""},{"$f":"IF(IFERROR(VLOOKUP(Table_Data_Table_1[[#This Row],[Item ID]],DataTable,17,FALSE),\"\")=0,\"\",IFERROR(VLOOKUP(Table_Data_Table_1[[#This Row],[Item ID]],DataTable,17,FALSE),\"\"))","v":""}]
["",null,{"$f":"IF(Table_Data_Table_1[[#This Row],[Item ID]]=\"\",\"\",IFERROR(VLOOKUP(Table_Data_Table_1[[#This Row],[Item ID]],DataTable,16,FALSE),\"\"))","v":""},null,null,null,null,{"$f":"IF(Table_Data_Table_1[[#This Row],[Valuation Method]]=\"Vacant\",VLOOKUP(Table_Data_Table_1[[#This Row],[Item ID]],DataTable,6,FALSE)-VLOOKUP(Table_Data_Table_1[[#This Row],[Item ID]],DataTable,13,FALSE),IF(Table_Data_Table_1[[#This Row],[Valuation Method]]=\"Abstraction\",VLOOKUP(Table_Data_Table_1[[#This Row],[Item ID]],DataTable,6,FALSE)-VLOOKUP(Table_Data_Table_1[[#This Row],[Item ID]],DataTable,13,FALSE),IF(Table_Data_Table_1[[#This Row],[Valuation Method]]=\"Allocation\",VLOOKUP(Table_Data_Table_1[[#This Row],[Item ID]],DataTable,6,FALSE)*I491,\"\")))","v":""},{"$f":"IF(Table_Data_Table_1[[#This Row],[Valuation Method]]=\"Vacant\",\"N/A\",IF(Table_Data_Table_1[[#This Row],[Valuation Method]]=\"Abstraction\",Table_Data_Table_1[[#This Row],[Land\nResidual]]/VLOOKUP(Table_Data_Table_1[[#This Row],[Item ID]],DataTable,6,FALSE),IF(Table_Data_Table_1[[#This Row],[Valuation Method]]=\"Allocation\",'Global Settings'!$H$20,\"\")))","v":""},{"$f":"IFERROR(ROUND(Table_Data_Table_1[[#This Row],[Resid\nSq Ft]]/43560,3),\"\")","v":""},{"$f":"IF(Table_Data_Table_1[[#This Row],[Item ID]]=\"\",\"\",IFERROR(VLOOKUP(Table_Data_Table_1[[#This Row],[Item ID]],DataTable,10,FALSE)-VLOOKUP(Table_Data_Table_1[[#This Row],[Item ID]],DataTable,12,FALSE),\"\"))","v":""},{"$f":"IFERROR(Table_Data_Table_1[[#This Row],[Land\nResidual]]/Table_Data_Table_1[[#This Row],[Resid\nAcre]],\"\")","v":""},{"$f":"IFERROR(ROUND(Table_Data_Table_1[[#This Row],[Land\nResidual]]/Table_Data_Table_1[[#This Row],[Resid\nSq Ft]],2),\"\")","v":""},{"$f":"IF(Table_Data_Table_1[[#This Row],[Item ID]]=\"\",\"\",ROUND(DAYS360(Table_Data_Table_1[[#This Row],[Sale Date]],'Global Settings'!$H$5)/30,0))","v":""},{"$f":"IFERROR(IF(AND(Table_Data_Table_1[[#This Row],[Months To\nMid-Point]]<12.01,Table_Data_Table_1[[#This Row],[Months To\nMid-Point]]>-13),0,(Table_Data_Table_1[[#This Row],[Months To\nMid-Point]]*'Global Settings'!$H$6)),\"\")","v":""},{"$f":"IFERROR(Table_Data_Table_1[[#This Row],[Land\nResidual]]*(Table_Data_Table_1[[#This Row],[Time\nAdjust]]+1),\"\")","v":""},{"$f":"IFERROR(Table_Data_Table_1[[#This Row],[Adjusted\nSale Price]]/Table_Data_Table_1[[#This Row],[Resid\nAcre]],\"\")","v":""},{"$f":"IFERROR(ROUND(Table_Data_Table_1[[#This Row],[Adjusted\nSale Price]]/Table_Data_Table_1[[#This Row],[Resid\nSq Ft]],2),\"\")","v":""},{"$f":"IFERROR(IF(VLOOKUP(Table_Data_Table_1[[#This Row],[Item ID]],DataTable,11,FALSE)=0,\"N/A\",Table_Data_Table_1[[#This Row],[Adjusted\nSale Price]]/VLOOKUP(Table_Data_Table_1[[#This Row],[Item ID]],DataTable,11,FALSE)),\"\")","v":""},{"$f":"IF(IFERROR(VLOOKUP(Table_Data_Table_1[[#This Row],[Item ID]],DataTable,17,FALSE),\"\")=0,\"\",IFERROR(VLOOKUP(Table_Data_Table_1[[#This Row],[Item ID]],DataTable,17,FALSE),\"\"))","v":""}]
["",null,{"$f":"IF(Table_Data_Table_1[[#This Row],[Item ID]]=\"\",\"\",IFERROR(VLOOKUP(Table_Data_Table_1[[#This Row],[Item ID]],DataTable,16,FALSE),\"\"))","v":""},null,null,null,null,{"$f":"IF(Table_Data_Table_1[[#This Row],[Valuation Method]]=\"Vacant\",VLOOKUP(Table_Data_Table_1[[#This Row],[Item ID]],DataTable,6,FALSE)-VLOOKUP(Table_Data_Table_1[[#This Row],[Item ID]],DataTable,13,FALSE),IF(Table_Data_Table_1[[#This Row],[Valuation Method]]=\"Abstraction\",VLOOKUP(Table_Data_Table_1[[#This Row],[Item ID]],DataTable,6,FALSE)-VLOOKUP(Table_Data_Table_1[[#This Row],[Item ID]],DataTable,13,FALSE),IF(Table_Data_Table_1[[#This Row],[Valuation Method]]=\"Allocation\",VLOOKUP(Table_Data_Table_1[[#This Row],[Item ID]],DataTable,6,FALSE)*I492,\"\")))","v":""},{"$f":"IF(Table_Data_Table_1[[#This Row],[Valuation Method]]=\"Vacant\",\"N/A\",IF(Table_Data_Table_1[[#This Row],[Valuation Method]]=\"Abstraction\",Table_Data_Table_1[[#This Row],[Land\nResidual]]/VLOOKUP(Table_Data_Table_1[[#This Row],[Item ID]],DataTable,6,FALSE),IF(Table_Data_Table_1[[#This Row],[Valuation Method]]=\"Allocation\",'Global Settings'!$H$20,\"\")))","v":""},{"$f":"IFERROR(ROUND(Table_Data_Table_1[[#This Row],[Resid\nSq Ft]]/43560,3),\"\")","v":""},{"$f":"IF(Table_Data_Table_1[[#This Row],[Item ID]]=\"\",\"\",IFERROR(VLOOKUP(Table_Data_Table_1[[#This Row],[Item ID]],DataTable,10,FALSE)-VLOOKUP(Table_Data_Table_1[[#This Row],[Item ID]],DataTable,12,FALSE),\"\"))","v":""},{"$f":"IFERROR(Table_Data_Table_1[[#This Row],[Land\nResidual]]/Table_Data_Table_1[[#This Row],[Resid\nAcre]],\"\")","v":""},{"$f":"IFERROR(ROUND(Table_Data_Table_1[[#This Row],[Land\nResidual]]/Table_Data_Table_1[[#This Row],[Resid\nSq Ft]],2),\"\")","v":""},{"$f":"IF(Table_Data_Table_1[[#This Row],[Item ID]]=\"\",\"\",ROUND(DAYS360(Table_Data_Table_1[[#This Row],[Sale Date]],'Global Settings'!$H$5)/30,0))","v":""},{"$f":"IFERROR(IF(AND(Table_Data_Table_1[[#This Row],[Months To\nMid-Point]]<12.01,Table_Data_Table_1[[#This Row],[Months To\nMid-Point]]>-13),0,(Table_Data_Table_1[[#This Row],[Months To\nMid-Point]]*'Global Settings'!$H$6)),\"\")","v":""},{"$f":"IFERROR(Table_Data_Table_1[[#This Row],[Land\nResidual]]*(Table_Data_Table_1[[#This Row],[Time\nAdjust]]+1),\"\")","v":""},{"$f":"IFERROR(Table_Data_Table_1[[#This Row],[Adjusted\nSale Price]]/Table_Data_Table_1[[#This Row],[Resid\nAcre]],\"\")","v":""},{"$f":"IFERROR(ROUND(Table_Data_Table_1[[#This Row],[Adjusted\nSale Price]]/Table_Data_Table_1[[#This Row],[Resid\nSq Ft]],2),\"\")","v":""},{"$f":"IFERROR(IF(VLOOKUP(Table_Data_Table_1[[#This Row],[Item ID]],DataTable,11,FALSE)=0,\"N/A\",Table_Data_Table_1[[#This Row],[Adjusted\nSale Price]]/VLOOKUP(Table_Data_Table_1[[#This Row],[Item ID]],DataTable,11,FALSE)),\"\")","v":""},{"$f":"IF(IFERROR(VLOOKUP(Table_Data_Table_1[[#This Row],[Item ID]],DataTable,17,FALSE),\"\")=0,\"\",IFERROR(VLOOKUP(Table_Data_Table_1[[#This Row],[Item ID]],DataTable,17,FALSE),\"\"))","v":""}]
["",null,{"$f":"IF(Table_Data_Table_1[[#This Row],[Item ID]]=\"\",\"\",IFERROR(VLOOKUP(Table_Data_Table_1[[#This Row],[Item ID]],DataTable,16,FALSE),\"\"))","v":""},null,null,null,null,{"$f":"IF(Table_Data_Table_1[[#This Row],[Valuation Method]]=\"Vacant\",VLOOKUP(Table_Data_Table_1[[#This Row],[Item ID]],DataTable,6,FALSE)-VLOOKUP(Table_Data_Table_1[[#This Row],[Item ID]],DataTable,13,FALSE),IF(Table_Data_Table_1[[#This Row],[Valuation Method]]=\"Abstraction\",VLOOKUP(Table_Data_Table_1[[#This Row],[Item ID]],DataTable,6,FALSE)-VLOOKUP(Table_Data_Table_1[[#This Row],[Item ID]],DataTable,13,FALSE),IF(Table_Data_Table_1[[#This Row],[Valuation Method]]=\"Allocation\",VLOOKUP(Table_Data_Table_1[[#This Row],[Item ID]],DataTable,6,FALSE)*I493,\"\")))","v":""},{"$f":"IF(Table_Data_Table_1[[#This Row],[Valuation Method]]=\"Vacant\",\"N/A\",IF(Table_Data_Table_1[[#This Row],[Valuation Method]]=\"Abstraction\",Table_Data_Table_1[[#This Row],[Land\nResidual]]/VLOOKUP(Table_Data_Table_1[[#This Row],[Item ID]],DataTable,6,FALSE),IF(Table_Data_Table_1[[#This Row],[Valuation Method]]=\"Allocation\",'Global Settings'!$H$20,\"\")))","v":""},{"$f":"IFERROR(ROUND(Table_Data_Table_1[[#This Row],[Resid\nSq Ft]]/43560,3),\"\")","v":""},{"$f":"IF(Table_Data_Table_1[[#This Row],[Item ID]]=\"\",\"\",IFERROR(VLOOKUP(Table_Data_Table_1[[#This Row],[Item ID]],DataTable,10,FALSE)-VLOOKUP(Table_Data_Table_1[[#This Row],[Item ID]],DataTable,12,FALSE),\"\"))","v":""},{"$f":"IFERROR(Table_Data_Table_1[[#This Row],[Land\nResidual]]/Table_Data_Table_1[[#This Row],[Resid\nAcre]],\"\")","v":""},{"$f":"IFERROR(ROUND(Table_Data_Table_1[[#This Row],[Land\nResidual]]/Table_Data_Table_1[[#This Row],[Resid\nSq Ft]],2),\"\")","v":""},{"$f":"IF(Table_Data_Table_1[[#This Row],[Item ID]]=\"\",\"\",ROUND(DAYS360(Table_Data_Table_1[[#This Row],[Sale Date]],'Global Settings'!$H$5)/30,0))","v":""},{"$f":"IFERROR(IF(AND(Table_Data_Table_1[[#This Row],[Months To\nMid-Point]]<12.01,Table_Data_Table_1[[#This Row],[Months To\nMid-Point]]>-13),0,(Table_Data_Table_1[[#This Row],[Months To\nMid-Point]]*'Global Settings'!$H$6)),\"\")","v":""},{"$f":"IFERROR(Table_Data_Table_1[[#This Row],[Land\nResidual]]*(Table_Data_Table_1[[#This Row],[Time\nAdjust]]+1),\"\")","v":""},{"$f":"IFERROR(Table_Data_Table_1[[#This Row],[Adjusted\nSale Price]]/Table_Data_Table_1[[#This Row],[Resid\nAcre]],\"\")","v":""},{"$f":"IFERROR(ROUND(Table_Data_Table_1[[#This Row],[Adjusted\nSale Price]]/Table_Data_Table_1[[#This Row],[Resid\nSq Ft]],2),\"\")","v":""},{"$f":"IFERROR(IF(VLOOKUP(Table_Data_Table_1[[#This Row],[Item ID]],DataTable,11,FALSE)=0,\"N/A\",Table_Data_Table_1[[#This Row],[Adjusted\nSale Price]]/VLOOKUP(Table_Data_Table_1[[#This Row],[Item ID]],DataTable,11,FALSE)),\"\")","v":""},{"$f":"IF(IFERROR(VLOOKUP(Table_Data_Table_1[[#This Row],[Item ID]],DataTable,17,FALSE),\"\")=0,\"\",IFERROR(VLOOKUP(Table_Data_Table_1[[#This Row],[Item ID]],DataTable,17,FALSE),\"\"))","v":""}]
["",null,{"$f":"IF(Table_Data_Table_1[[#This Row],[Item ID]]=\"\",\"\",IFERROR(VLOOKUP(Table_Data_Table_1[[#This Row],[Item ID]],DataTable,16,FALSE),\"\"))","v":""},null,null,null,null,{"$f":"IF(Table_Data_Table_1[[#This Row],[Valuation Method]]=\"Vacant\",VLOOKUP(Table_Data_Table_1[[#This Row],[Item ID]],DataTable,6,FALSE)-VLOOKUP(Table_Data_Table_1[[#This Row],[Item ID]],DataTable,13,FALSE),IF(Table_Data_Table_1[[#This Row],[Valuation Method]]=\"Abstraction\",VLOOKUP(Table_Data_Table_1[[#This Row],[Item ID]],DataTable,6,FALSE)-VLOOKUP(Table_Data_Table_1[[#This Row],[Item ID]],DataTable,13,FALSE),IF(Table_Data_Table_1[[#This Row],[Valuation Method]]=\"Allocation\",VLOOKUP(Table_Data_Table_1[[#This Row],[Item ID]],DataTable,6,FALSE)*I494,\"\")))","v":""},{"$f":"IF(Table_Data_Table_1[[#This Row],[Valuation Method]]=\"Vacant\",\"N/A\",IF(Table_Data_Table_1[[#This Row],[Valuation Method]]=\"Abstraction\",Table_Data_Table_1[[#This Row],[Land\nResidual]]/VLOOKUP(Table_Data_Table_1[[#This Row],[Item ID]],DataTable,6,FALSE),IF(Table_Data_Table_1[[#This Row],[Valuation Method]]=\"Allocation\",'Global Settings'!$H$20,\"\")))","v":""},{"$f":"IFERROR(ROUND(Table_Data_Table_1[[#This Row],[Resid\nSq Ft]]/43560,3),\"\")","v":""},{"$f":"IF(Table_Data_Table_1[[#This Row],[Item ID]]=\"\",\"\",IFERROR(VLOOKUP(Table_Data_Table_1[[#This Row],[Item ID]],DataTable,10,FALSE)-VLOOKUP(Table_Data_Table_1[[#This Row],[Item ID]],DataTable,12,FALSE),\"\"))","v":""},{"$f":"IFERROR(Table_Data_Table_1[[#This Row],[Land\nResidual]]/Table_Data_Table_1[[#This Row],[Resid\nAcre]],\"\")","v":""},{"$f":"IFERROR(ROUND(Table_Data_Table_1[[#This Row],[Land\nResidual]]/Table_Data_Table_1[[#This Row],[Resid\nSq Ft]],2),\"\")","v":""},{"$f":"IF(Table_Data_Table_1[[#This Row],[Item ID]]=\"\",\"\",ROUND(DAYS360(Table_Data_Table_1[[#This Row],[Sale Date]],'Global Settings'!$H$5)/30,0))","v":""},{"$f":"IFERROR(IF(AND(Table_Data_Table_1[[#This Row],[Months To\nMid-Point]]<12.01,Table_Data_Table_1[[#This Row],[Months To\nMid-Point]]>-13),0,(Table_Data_Table_1[[#This Row],[Months To\nMid-Point]]*'Global Settings'!$H$6)),\"\")","v":""},{"$f":"IFERROR(Table_Data_Table_1[[#This Row],[Land\nResidual]]*(Table_Data_Table_1[[#This Row],[Time\nAdjust]]+1),\"\")","v":""},{"$f":"IFERROR(Table_Data_Table_1[[#This Row],[Adjusted\nSale Price]]/Table_Data_Table_1[[#This Row],[Resid\nAcre]],\"\")","v":""},{"$f":"IFERROR(ROUND(Table_Data_Table_1[[#This Row],[Adjusted\nSale Price]]/Table_Data_Table_1[[#This Row],[Resid\nSq Ft]],2),\"\")","v":""},{"$f":"IFERROR(IF(VLOOKUP(Table_Data_Table_1[[#This Row],[Item ID]],DataTable,11,FALSE)=0,\"N/A\",Table_Data_Table_1[[#This Row],[Adjusted\nSale Price]]/VLOOKUP(Table_Data_Table_1[[#This Row],[Item ID]],DataTable,11,FALSE)),\"\")","v":""},{"$f":"IF(IFERROR(VLOOKUP(Table_Data_Table_1[[#This Row],[Item ID]],DataTable,17,FALSE),\"\")=0,\"\",IFERROR(VLOOKUP(Table_Data_Table_1[[#This Row],[Item ID]],DataTable,17,FALSE),\"\"))","v":""}]
["",null,{"$f":"IF(Table_Data_Table_1[[#This Row],[Item ID]]=\"\",\"\",IFERROR(VLOOKUP(Table_Data_Table_1[[#This Row],[Item ID]],DataTable,16,FALSE),\"\"))","v":""},null,null,null,null,{"$f":"IF(Table_Data_Table_1[[#This Row],[Valuation Method]]=\"Vacant\",VLOOKUP(Table_Data_Table_1[[#This Row],[Item ID]],DataTable,6,FALSE)-VLOOKUP(Table_Data_Table_1[[#This Row],[Item ID]],DataTable,13,FALSE),IF(Table_Data_Table_1[[#This Row],[Valuation Method]]=\"Abstraction\",VLOOKUP(Table_Data_Table_1[[#This Row],[Item ID]],DataTable,6,FALSE)-VLOOKUP(Table_Data_Table_1[[#This Row],[Item ID]],DataTable,13,FALSE),IF(Table_Data_Table_1[[#This Row],[Valuation Method]]=\"Allocation\",VLOOKUP(Table_Data_Table_1[[#This Row],[Item ID]],DataTable,6,FALSE)*I495,\"\")))","v":""},{"$f":"IF(Table_Data_Table_1[[#This Row],[Valuation Method]]=\"Vacant\",\"N/A\",IF(Table_Data_Table_1[[#This Row],[Valuation Method]]=\"Abstraction\",Table_Data_Table_1[[#This Row],[Land\nResidual]]/VLOOKUP(Table_Data_Table_1[[#This Row],[Item ID]],DataTable,6,FALSE),IF(Table_Data_Table_1[[#This Row],[Valuation Method]]=\"Allocation\",'Global Settings'!$H$20,\"\")))","v":""},{"$f":"IFERROR(ROUND(Table_Data_Table_1[[#This Row],[Resid\nSq Ft]]/43560,3),\"\")","v":""},{"$f":"IF(Table_Data_Table_1[[#This Row],[Item ID]]=\"\",\"\",IFERROR(VLOOKUP(Table_Data_Table_1[[#This Row],[Item ID]],DataTable,10,FALSE)-VLOOKUP(Table_Data_Table_1[[#This Row],[Item ID]],DataTable,12,FALSE),\"\"))","v":""},{"$f":"IFERROR(Table_Data_Table_1[[#This Row],[Land\nResidual]]/Table_Data_Table_1[[#This Row],[Resid\nAcre]],\"\")","v":""},{"$f":"IFERROR(ROUND(Table_Data_Table_1[[#This Row],[Land\nResidual]]/Table_Data_Table_1[[#This Row],[Resid\nSq Ft]],2),\"\")","v":""},{"$f":"IF(Table_Data_Table_1[[#This Row],[Item ID]]=\"\",\"\",ROUND(DAYS360(Table_Data_Table_1[[#This Row],[Sale Date]],'Global Settings'!$H$5)/30,0))","v":""},{"$f":"IFERROR(IF(AND(Table_Data_Table_1[[#This Row],[Months To\nMid-Point]]<12.01,Table_Data_Table_1[[#This Row],[Months To\nMid-Point]]>-13),0,(Table_Data_Table_1[[#This Row],[Months To\nMid-Point]]*'Global Settings'!$H$6)),\"\")","v":""},{"$f":"IFERROR(Table_Data_Table_1[[#This Row],[Land\nResidual]]*(Table_Data_Table_1[[#This Row],[Time\nAdjust]]+1),\"\")","v":""},{"$f":"IFERROR(Table_Data_Table_1[[#This Row],[Adjusted\nSale Price]]/Table_Data_Table_1[[#This Row],[Resid\nAcre]],\"\")","v":""},{"$f":"IFERROR(ROUND(Table_Data_Table_1[[#This Row],[Adjusted\nSale Price]]/Table_Data_Table_1[[#This Row],[Resid\nSq Ft]],2),\"\")","v":""},{"$f":"IFERROR(IF(VLOOKUP(Table_Data_Table_1[[#This Row],[Item ID]],DataTable,11,FALSE)=0,\"N/A\",Table_Data_Table_1[[#This Row],[Adjusted\nSale Price]]/VLOOKUP(Table_Data_Table_1[[#This Row],[Item ID]],DataTable,11,FALSE)),\"\")","v":""},{"$f":"IF(IFERROR(VLOOKUP(Table_Data_Table_1[[#This Row],[Item ID]],DataTable,17,FALSE),\"\")=0,\"\",IFERROR(VLOOKUP(Table_Data_Table_1[[#This Row],[Item ID]],DataTable,17,FALSE),\"\"))","v":""}]
["",null,{"$f":"IF(Table_Data_Table_1[[#This Row],[Item ID]]=\"\",\"\",IFERROR(VLOOKUP(Table_Data_Table_1[[#This Row],[Item ID]],DataTable,16,FALSE),\"\"))","v":""},null,null,null,null,{"$f":"IF(Table_Data_Table_1[[#This Row],[Valuation Method]]=\"Vacant\",VLOOKUP(Table_Data_Table_1[[#This Row],[Item ID]],DataTable,6,FALSE)-VLOOKUP(Table_Data_Table_1[[#This Row],[Item ID]],DataTable,13,FALSE),IF(Table_Data_Table_1[[#This Row],[Valuation Method]]=\"Abstraction\",VLOOKUP(Table_Data_Table_1[[#This Row],[Item ID]],DataTable,6,FALSE)-VLOOKUP(Table_Data_Table_1[[#This Row],[Item ID]],DataTable,13,FALSE),IF(Table_Data_Table_1[[#This Row],[Valuation Method]]=\"Allocation\",VLOOKUP(Table_Data_Table_1[[#This Row],[Item ID]],DataTable,6,FALSE)*I496,\"\")))","v":""},{"$f":"IF(Table_Data_Table_1[[#This Row],[Valuation Method]]=\"Vacant\",\"N/A\",IF(Table_Data_Table_1[[#This Row],[Valuation Method]]=\"Abstraction\",Table_Data_Table_1[[#This Row],[Land\nResidual]]/VLOOKUP(Table_Data_Table_1[[#This Row],[Item ID]],DataTable,6,FALSE),IF(Table_Data_Table_1[[#This Row],[Valuation Method]]=\"Allocation\",'Global Settings'!$H$20,\"\")))","v":""},{"$f":"IFERROR(ROUND(Table_Data_Table_1[[#This Row],[Resid\nSq Ft]]/43560,3),\"\")","v":""},{"$f":"IF(Table_Data_Table_1[[#This Row],[Item ID]]=\"\",\"\",IFERROR(VLOOKUP(Table_Data_Table_1[[#This Row],[Item ID]],DataTable,10,FALSE)-VLOOKUP(Table_Data_Table_1[[#This Row],[Item ID]],DataTable,12,FALSE),\"\"))","v":""},{"$f":"IFERROR(Table_Data_Table_1[[#This Row],[Land\nResidual]]/Table_Data_Table_1[[#This Row],[Resid\nAcre]],\"\")","v":""},{"$f":"IFERROR(ROUND(Table_Data_Table_1[[#This Row],[Land\nResidual]]/Table_Data_Table_1[[#This Row],[Resid\nSq Ft]],2),\"\")","v":""},{"$f":"IF(Table_Data_Table_1[[#This Row],[Item ID]]=\"\",\"\",ROUND(DAYS360(Table_Data_Table_1[[#This Row],[Sale Date]],'Global Settings'!$H$5)/30,0))","v":""},{"$f":"IFERROR(IF(AND(Table_Data_Table_1[[#This Row],[Months To\nMid-Point]]<12.01,Table_Data_Table_1[[#This Row],[Months To\nMid-Point]]>-13),0,(Table_Data_Table_1[[#This Row],[Months To\nMid-Point]]*'Global Settings'!$H$6)),\"\")","v":""},{"$f":"IFERROR(Table_Data_Table_1[[#This Row],[Land\nResidual]]*(Table_Data_Table_1[[#This Row],[Time\nAdjust]]+1),\"\")","v":""},{"$f":"IFERROR(Table_Data_Table_1[[#This Row],[Adjusted\nSale Price]]/Table_Data_Table_1[[#This Row],[Resid\nAcre]],\"\")","v":""},{"$f":"IFERROR(ROUND(Table_Data_Table_1[[#This Row],[Adjusted\nSale Price]]/Table_Data_Table_1[[#This Row],[Resid\nSq Ft]],2),\"\")","v":""},{"$f":"IFERROR(IF(VLOOKUP(Table_Data_Table_1[[#This Row],[Item ID]],DataTable,11,FALSE)=0,\"N/A\",Table_Data_Table_1[[#This Row],[Adjusted\nSale Price]]/VLOOKUP(Table_Data_Table_1[[#This Row],[Item ID]],DataTable,11,FALSE)),\"\")","v":""},{"$f":"IF(IFERROR(VLOOKUP(Table_Data_Table_1[[#This Row],[Item ID]],DataTable,17,FALSE),\"\")=0,\"\",IFERROR(VLOOKUP(Table_Data_Table_1[[#This Row],[Item ID]],DataTable,17,FALSE),\"\"))","v":""}]
["",null,{"$f":"IF(Table_Data_Table_1[[#This Row],[Item ID]]=\"\",\"\",IFERROR(VLOOKUP(Table_Data_Table_1[[#This Row],[Item ID]],DataTable,16,FALSE),\"\"))","v":""},null,null,null,null,{"$f":"IF(Table_Data_Table_1[[#This Row],[Valuation Method]]=\"Vacant\",VLOOKUP(Table_Data_Table_1[[#This Row],[Item ID]],DataTable,6,FALSE)-VLOOKUP(Table_Data_Table_1[[#This Row],[Item ID]],DataTable,13,FALSE),IF(Table_Data_Table_1[[#This Row],[Valuation Method]]=\"Abstraction\",VLOOKUP(Table_Data_Table_1[[#This Row],[Item ID]],DataTable,6,FALSE)-VLOOKUP(Table_Data_Table_1[[#This Row],[Item ID]],DataTable,13,FALSE),IF(Table_Data_Table_1[[#This Row],[Valuation Method]]=\"Allocation\",VLOOKUP(Table_Data_Table_1[[#This Row],[Item ID]],DataTable,6,FALSE)*I497,\"\")))","v":""},{"$f":"IF(Table_Data_Table_1[[#This Row],[Valuation Method]]=\"Vacant\",\"N/A\",IF(Table_Data_Table_1[[#This Row],[Valuation Method]]=\"Abstraction\",Table_Data_Table_1[[#This Row],[Land\nResidual]]/VLOOKUP(Table_Data_Table_1[[#This Row],[Item ID]],DataTable,6,FALSE),IF(Table_Data_Table_1[[#This Row],[Valuation Method]]=\"Allocation\",'Global Settings'!$H$20,\"\")))","v":""},{"$f":"IFERROR(ROUND(Table_Data_Table_1[[#This Row],[Resid\nSq Ft]]/43560,3),\"\")","v":""},{"$f":"IF(Table_Data_Table_1[[#This Row],[Item ID]]=\"\",\"\",IFERROR(VLOOKUP(Table_Data_Table_1[[#This Row],[Item ID]],DataTable,10,FALSE)-VLOOKUP(Table_Data_Table_1[[#This Row],[Item ID]],DataTable,12,FALSE),\"\"))","v":""},{"$f":"IFERROR(Table_Data_Table_1[[#This Row],[Land\nResidual]]/Table_Data_Table_1[[#This Row],[Resid\nAcre]],\"\")","v":""},{"$f":"IFERROR(ROUND(Table_Data_Table_1[[#This Row],[Land\nResidual]]/Table_Data_Table_1[[#This Row],[Resid\nSq Ft]],2),\"\")","v":""},{"$f":"IF(Table_Data_Table_1[[#This Row],[Item ID]]=\"\",\"\",ROUND(DAYS360(Table_Data_Table_1[[#This Row],[Sale Date]],'Global Settings'!$H$5)/30,0))","v":""},{"$f":"IFERROR(IF(AND(Table_Data_Table_1[[#This Row],[Months To\nMid-Point]]<12.01,Table_Data_Table_1[[#This Row],[Months To\nMid-Point]]>-13),0,(Table_Data_Table_1[[#This Row],[Months To\nMid-Point]]*'Global Settings'!$H$6)),\"\")","v":""},{"$f":"IFERROR(Table_Data_Table_1[[#This Row],[Land\nResidual]]*(Table_Data_Table_1[[#This Row],[Time\nAdjust]]+1),\"\")","v":""},{"$f":"IFERROR(Table_Data_Table_1[[#This Row],[Adjusted\nSale Price]]/Table_Data_Table_1[[#This Row],[Resid\nAcre]],\"\")","v":""},{"$f":"IFERROR(ROUND(Table_Data_Table_1[[#This Row],[Adjusted\nSale Price]]/Table_Data_Table_1[[#This Row],[Resid\nSq Ft]],2),\"\")","v":""},{"$f":"IFERROR(IF(VLOOKUP(Table_Data_Table_1[[#This Row],[Item ID]],DataTable,11,FALSE)=0,\"N/A\",Table_Data_Table_1[[#This Row],[Adjusted\nSale Price]]/VLOOKUP(Table_Data_Table_1[[#This Row],[Item ID]],DataTable,11,FALSE)),\"\")","v":""},{"$f":"IF(IFERROR(VLOOKUP(Table_Data_Table_1[[#This Row],[Item ID]],DataTable,17,FALSE),\"\")=0,\"\",IFERROR(VLOOKUP(Table_Data_Table_1[[#This Row],[Item ID]],DataTable,17,FALSE),\"\"))","v":""}]
["",null,{"$f":"IF(Table_Data_Table_1[[#This Row],[Item ID]]=\"\",\"\",IFERROR(VLOOKUP(Table_Data_Table_1[[#This Row],[Item ID]],DataTable,16,FALSE),\"\"))","v":""},null,null,null,null,{"$f":"IF(Table_Data_Table_1[[#This Row],[Valuation Method]]=\"Vacant\",VLOOKUP(Table_Data_Table_1[[#This Row],[Item ID]],DataTable,6,FALSE)-VLOOKUP(Table_Data_Table_1[[#This Row],[Item ID]],DataTable,13,FALSE),IF(Table_Data_Table_1[[#This Row],[Valuation Method]]=\"Abstraction\",VLOOKUP(Table_Data_Table_1[[#This Row],[Item ID]],DataTable,6,FALSE)-VLOOKUP(Table_Data_Table_1[[#This Row],[Item ID]],DataTable,13,FALSE),IF(Table_Data_Table_1[[#This Row],[Valuation Method]]=\"Allocation\",VLOOKUP(Table_Data_Table_1[[#This Row],[Item ID]],DataTable,6,FALSE)*I498,\"\")))","v":""},{"$f":"IF(Table_Data_Table_1[[#This Row],[Valuation Method]]=\"Vacant\",\"N/A\",IF(Table_Data_Table_1[[#This Row],[Valuation Method]]=\"Abstraction\",Table_Data_Table_1[[#This Row],[Land\nResidual]]/VLOOKUP(Table_Data_Table_1[[#This Row],[Item ID]],DataTable,6,FALSE),IF(Table_Data_Table_1[[#This Row],[Valuation Method]]=\"Allocation\",'Global Settings'!$H$20,\"\")))","v":""},{"$f":"IFERROR(ROUND(Table_Data_Table_1[[#This Row],[Resid\nSq Ft]]/43560,3),\"\")","v":""},{"$f":"IF(Table_Data_Table_1[[#This Row],[Item ID]]=\"\",\"\",IFERROR(VLOOKUP(Table_Data_Table_1[[#This Row],[Item ID]],DataTable,10,FALSE)-VLOOKUP(Table_Data_Table_1[[#This Row],[Item ID]],DataTable,12,FALSE),\"\"))","v":""},{"$f":"IFERROR(Table_Data_Table_1[[#This Row],[Land\nResidual]]/Table_Data_Table_1[[#This Row],[Resid\nAcre]],\"\")","v":""},{"$f":"IFERROR(ROUND(Table_Data_Table_1[[#This Row],[Land\nResidual]]/Table_Data_Table_1[[#This Row],[Resid\nSq Ft]],2),\"\")","v":""},{"$f":"IF(Table_Data_Table_1[[#This Row],[Item ID]]=\"\",\"\",ROUND(DAYS360(Table_Data_Table_1[[#This Row],[Sale Date]],'Global Settings'!$H$5)/30,0))","v":""},{"$f":"IFERROR(IF(AND(Table_Data_Table_1[[#This Row],[Months To\nMid-Point]]<12.01,Table_Data_Table_1[[#This Row],[Months To\nMid-Point]]>-13),0,(Table_Data_Table_1[[#This Row],[Months To\nMid-Point]]*'Global Settings'!$H$6)),\"\")","v":""},{"$f":"IFERROR(Table_Data_Table_1[[#This Row],[Land\nResidual]]*(Table_Data_Table_1[[#This Row],[Time\nAdjust]]+1),\"\")","v":""},{"$f":"IFERROR(Table_Data_Table_1[[#This Row],[Adjusted\nSale Price]]/Table_Data_Table_1[[#This Row],[Resid\nAcre]],\"\")","v":""},{"$f":"IFERROR(ROUND(Table_Data_Table_1[[#This Row],[Adjusted\nSale Price]]/Table_Data_Table_1[[#This Row],[Resid\nSq Ft]],2),\"\")","v":""},{"$f":"IFERROR(IF(VLOOKUP(Table_Data_Table_1[[#This Row],[Item ID]],DataTable,11,FALSE)=0,\"N/A\",Table_Data_Table_1[[#This Row],[Adjusted\nSale Price]]/VLOOKUP(Table_Data_Table_1[[#This Row],[Item ID]],DataTable,11,FALSE)),\"\")","v":""},{"$f":"IF(IFERROR(VLOOKUP(Table_Data_Table_1[[#This Row],[Item ID]],DataTable,17,FALSE),\"\")=0,\"\",IFERROR(VLOOKUP(Table_Data_Table_1[[#This Row],[Item ID]],DataTable,17,FALSE),\"\"))","v":""}]
["",null,{"$f":"IF(Table_Data_Table_1[[#This Row],[Item ID]]=\"\",\"\",IFERROR(VLOOKUP(Table_Data_Table_1[[#This Row],[Item ID]],DataTable,16,FALSE),\"\"))","v":""},null,null,null,null,{"$f":"IF(Table_Data_Table_1[[#This Row],[Valuation Method]]=\"Vacant\",VLOOKUP(Table_Data_Table_1[[#This Row],[Item ID]],DataTable,6,FALSE)-VLOOKUP(Table_Data_Table_1[[#This Row],[Item ID]],DataTable,13,FALSE),IF(Table_Data_Table_1[[#This Row],[Valuation Method]]=\"Abstraction\",VLOOKUP(Table_Data_Table_1[[#This Row],[Item ID]],DataTable,6,FALSE)-VLOOKUP(Table_Data_Table_1[[#This Row],[Item ID]],DataTable,13,FALSE),IF(Table_Data_Table_1[[#This Row],[Valuation Method]]=\"Allocation\",VLOOKUP(Table_Data_Table_1[[#This Row],[Item ID]],DataTable,6,FALSE)*I499,\"\")))","v":""},{"$f":"IF(Table_Data_Table_1[[#This Row],[Valuation Method]]=\"Vacant\",\"N/A\",IF(Table_Data_Table_1[[#This Row],[Valuation Method]]=\"Abstraction\",Table_Data_Table_1[[#This Row],[Land\nResidual]]/VLOOKUP(Table_Data_Table_1[[#This Row],[Item ID]],DataTable,6,FALSE),IF(Table_Data_Table_1[[#This Row],[Valuation Method]]=\"Allocation\",'Global Settings'!$H$20,\"\")))","v":""},{"$f":"IFERROR(ROUND(Table_Data_Table_1[[#This Row],[Resid\nSq Ft]]/43560,3),\"\")","v":""},{"$f":"IF(Table_Data_Table_1[[#This Row],[Item ID]]=\"\",\"\",IFERROR(VLOOKUP(Table_Data_Table_1[[#This Row],[Item ID]],DataTable,10,FALSE)-VLOOKUP(Table_Data_Table_1[[#This Row],[Item ID]],DataTable,12,FALSE),\"\"))","v":""},{"$f":"IFERROR(Table_Data_Table_1[[#This Row],[Land\nResidual]]/Table_Data_Table_1[[#This Row],[Resid\nAcre]],\"\")","v":""},{"$f":"IFERROR(ROUND(Table_Data_Table_1[[#This Row],[Land\nResidual]]/Table_Data_Table_1[[#This Row],[Resid\nSq Ft]],2),\"\")","v":""},{"$f":"IF(Table_Data_Table_1[[#This Row],[Item ID]]=\"\",\"\",ROUND(DAYS360(Table_Data_Table_1[[#This Row],[Sale Date]],'Global Settings'!$H$5)/30,0))","v":""},{"$f":"IFERROR(IF(AND(Table_Data_Table_1[[#This Row],[Months To\nMid-Point]]<12.01,Table_Data_Table_1[[#This Row],[Months To\nMid-Point]]>-13),0,(Table_Data_Table_1[[#This Row],[Months To\nMid-Point]]*'Global Settings'!$H$6)),\"\")","v":""},{"$f":"IFERROR(Table_Data_Table_1[[#This Row],[Land\nResidual]]*(Table_Data_Table_1[[#This Row],[Time\nAdjust]]+1),\"\")","v":""},{"$f":"IFERROR(Table_Data_Table_1[[#This Row],[Adjusted\nSale Price]]/Table_Data_Table_1[[#This Row],[Resid\nAcre]],\"\")","v":""},{"$f":"IFERROR(ROUND(Table_Data_Table_1[[#This Row],[Adjusted\nSale Price]]/Table_Data_Table_1[[#This Row],[Resid\nSq Ft]],2),\"\")","v":""},{"$f":"IFERROR(IF(VLOOKUP(Table_Data_Table_1[[#This Row],[Item ID]],DataTable,11,FALSE)=0,\"N/A\",Table_Data_Table_1[[#This Row],[Adjusted\nSale Price]]/VLOOKUP(Table_Data_Table_1[[#This Row],[Item ID]],DataTable,11,FALSE)),\"\")","v":""},{"$f":"IF(IFERROR(VLOOKUP(Table_Data_Table_1[[#This Row],[Item ID]],DataTable,17,FALSE),\"\")=0,\"\",IFERROR(VLOOKUP(Table_Data_Table_1[[#This Row],[Item ID]],DataTable,17,FALSE),\"\"))","v":""}]
["",null,{"$f":"IF(Table_Data_Table_1[[#This Row],[Item ID]]=\"\",\"\",IFERROR(VLOOKUP(Table_Data_Table_1[[#This Row],[Item ID]],DataTable,16,FALSE),\"\"))","v":""},null,null,null,null,{"$f":"IF(Table_Data_Table_1[[#This Row],[Valuation Method]]=\"Vacant\",VLOOKUP(Table_Data_Table_1[[#This Row],[Item ID]],DataTable,6,FALSE)-VLOOKUP(Table_Data_Table_1[[#This Row],[Item ID]],DataTable,13,FALSE),IF(Table_Data_Table_1[[#This Row],[Valuation Method]]=\"Abstraction\",VLOOKUP(Table_Data_Table_1[[#This Row],[Item ID]],DataTable,6,FALSE)-VLOOKUP(Table_Data_Table_1[[#This Row],[Item ID]],DataTable,13,FALSE),IF(Table_Data_Table_1[[#This Row],[Valuation Method]]=\"Allocation\",VLOOKUP(Table_Data_Table_1[[#This Row],[Item ID]],DataTable,6,FALSE)*I500,\"\")))","v":""},{"$f":"IF(Table_Data_Table_1[[#This Row],[Valuation Method]]=\"Vacant\",\"N/A\",IF(Table_Data_Table_1[[#This Row],[Valuation Method]]=\"Abstraction\",Table_Data_Table_1[[#This Row],[Land\nResidual]]/VLOOKUP(Table_Data_Table_1[[#This Row],[Item ID]],DataTable,6,FALSE),IF(Table_Data_Table_1[[#This Row],[Valuation Method]]=\"Allocation\",'Global Settings'!$H$20,\"\")))","v":""},{"$f":"IFERROR(ROUND(Table_Data_Table_1[[#This Row],[Resid\nSq Ft]]/43560,3),\"\")","v":""},{"$f":"IF(Table_Data_Table_1[[#This Row],[Item ID]]=\"\",\"\",IFERROR(VLOOKUP(Table_Data_Table_1[[#This Row],[Item ID]],DataTable,10,FALSE)-VLOOKUP(Table_Data_Table_1[[#This Row],[Item ID]],DataTable,12,FALSE),\"\"))","v":""},{"$f":"IFERROR(Table_Data_Table_1[[#This Row],[Land\nResidual]]/Table_Data_Table_1[[#This Row],[Resid\nAcre]],\"\")","v":""},{"$f":"IFERROR(ROUND(Table_Data_Table_1[[#This Row],[Land\nResidual]]/Table_Data_Table_1[[#This Row],[Resid\nSq Ft]],2),\"\")","v":""},{"$f":"IF(Table_Data_Table_1[[#This Row],[Item ID]]=\"\",\"\",ROUND(DAYS360(Table_Data_Table_1[[#This Row],[Sale Date]],'Global Settings'!$H$5)/30,0))","v":""},{"$f":"IFERROR(IF(AND(Table_Data_Table_1[[#This Row],[Months To\nMid-Point]]<12.01,Table_Data_Table_1[[#This Row],[Months To\nMid-Point]]>-13),0,(Table_Data_Table_1[[#This Row],[Months To\nMid-Point]]*'Global Settings'!$H$6)),\"\")","v":""},{"$f":"IFERROR(Table_Data_Table_1[[#This Row],[Land\nResidual]]*(Table_Data_Table_1[[#This Row],[Time\nAdjust]]+1),\"\")","v":""},{"$f":"IFERROR(Table_Data_Table_1[[#This Row],[Adjusted\nSale Price]]/Table_Data_Table_1[[#This Row],[Resid\nAcre]],\"\")","v":""},{"$f":"IFERROR(ROUND(Table_Data_Table_1[[#This Row],[Adjusted\nSale Price]]/Table_Data_Table_1[[#This Row],[Resid\nSq Ft]],2),\"\")","v":""},{"$f":"IFERROR(IF(VLOOKUP(Table_Data_Table_1[[#This Row],[Item ID]],DataTable,11,FALSE)=0,\"N/A\",Table_Data_Table_1[[#This Row],[Adjusted\nSale Price]]/VLOOKUP(Table_Data_Table_1[[#This Row],[Item ID]],DataTable,11,FALSE)),\"\")","v":""},{"$f":"IF(IFERROR(VLOOKUP(Table_Data_Table_1[[#This Row],[Item ID]],DataTable,17,FALSE),\"\")=0,\"\",IFERROR(VLOOKUP(Table_Data_Table_1[[#This Row],[Item ID]],DataTable,17,FALSE),\"\"))","v":""}]
["",null,{"$f":"IF(Table_Data_Table_1[[#This Row],[Item ID]]=\"\",\"\",IFERROR(VLOOKUP(Table_Data_Table_1[[#This Row],[Item ID]],DataTable,16,FALSE),\"\"))","v":""},null,null,null,null,{"$f":"IF(Table_Data_Table_1[[#This Row],[Valuation Method]]=\"Vacant\",VLOOKUP(Table_Data_Table_1[[#This Row],[Item ID]],DataTable,6,FALSE)-VLOOKUP(Table_Data_Table_1[[#This Row],[Item ID]],DataTable,13,FALSE),IF(Table_Data_Table_1[[#This Row],[Valuation Method]]=\"Abstraction\",VLOOKUP(Table_Data_Table_1[[#This Row],[Item ID]],DataTable,6,FALSE)-VLOOKUP(Table_Data_Table_1[[#This Row],[Item ID]],DataTable,13,FALSE),IF(Table_Data_Table_1[[#This Row],[Valuation Method]]=\"Allocation\",VLOOKUP(Table_Data_Table_1[[#This Row],[Item ID]],DataTable,6,FALSE)*I501,\"\")))","v":""},{"$f":"IF(Table_Data_Table_1[[#This Row],[Valuation Method]]=\"Vacant\",\"N/A\",IF(Table_Data_Table_1[[#This Row],[Valuation Method]]=\"Abstraction\",Table_Data_Table_1[[#This Row],[Land\nResidual]]/VLOOKUP(Table_Data_Table_1[[#This Row],[Item ID]],DataTable,6,FALSE),IF(Table_Data_Table_1[[#This Row],[Valuation Method]]=\"Allocation\",'Global Settings'!$H$20,\"\")))","v":""},{"$f":"IFERROR(ROUND(Table_Data_Table_1[[#This Row],[Resid\nSq Ft]]/43560,3),\"\")","v":""},{"$f":"IF(Table_Data_Table_1[[#This Row],[Item ID]]=\"\",\"\",IFERROR(VLOOKUP(Table_Data_Table_1[[#This Row],[Item ID]],DataTable,10,FALSE)-VLOOKUP(Table_Data_Table_1[[#This Row],[Item ID]],DataTable,12,FALSE),\"\"))","v":""},{"$f":"IFERROR(Table_Data_Table_1[[#This Row],[Land\nResidual]]/Table_Data_Table_1[[#This Row],[Resid\nAcre]],\"\")","v":""},{"$f":"IFERROR(ROUND(Table_Data_Table_1[[#This Row],[Land\nResidual]]/Table_Data_Table_1[[#This Row],[Resid\nSq Ft]],2),\"\")","v":""},{"$f":"IF(Table_Data_Table_1[[#This Row],[Item ID]]=\"\",\"\",ROUND(DAYS360(Table_Data_Table_1[[#This Row],[Sale Date]],'Global Settings'!$H$5)/30,0))","v":""},{"$f":"IFERROR(IF(AND(Table_Data_Table_1[[#This Row],[Months To\nMid-Point]]<12.01,Table_Data_Table_1[[#This Row],[Months To\nMid-Point]]>-13),0,(Table_Data_Table_1[[#This Row],[Months To\nMid-Point]]*'Global Settings'!$H$6)),\"\")","v":""},{"$f":"IFERROR(Table_Data_Table_1[[#This Row],[Land\nResidual]]*(Table_Data_Table_1[[#This Row],[Time\nAdjust]]+1),\"\")","v":""},{"$f":"IFERROR(Table_Data_Table_1[[#This Row],[Adjusted\nSale Price]]/Table_Data_Table_1[[#This Row],[Resid\nAcre]],\"\")","v":""},{"$f":"IFERROR(ROUND(Table_Data_Table_1[[#This Row],[Adjusted\nSale Price]]/Table_Data_Table_1[[#This Row],[Resid\nSq Ft]],2),\"\")","v":""},{"$f":"IFERROR(IF(VLOOKUP(Table_Data_Table_1[[#This Row],[Item ID]],DataTable,11,FALSE)=0,\"N/A\",Table_Data_Table_1[[#This Row],[Adjusted\nSale Price]]/VLOOKUP(Table_Data_Table_1[[#This Row],[Item ID]],DataTable,11,FALSE)),\"\")","v":""},{"$f":"IF(IFERROR(VLOOKUP(Table_Data_Table_1[[#This Row],[Item ID]],DataTable,17,FALSE),\"\")=0,\"\",IFERROR(VLOOKUP(Table_Data_Table_1[[#This Row],[Item ID]],DataTable,17,FALSE),\"\"))","v":""}]
["",null,{"$f":"IF(Table_Data_Table_1[[#This Row],[Item ID]]=\"\",\"\",IFERROR(VLOOKUP(Table_Data_Table_1[[#This Row],[Item ID]],DataTable,16,FALSE),\"\"))","v":""},null,null,null,null,{"$f":"IF(Table_Data_Table_1[[#This Row],[Valuation Method]]=\"Vacant\",VLOOKUP(Table_Data_Table_1[[#This Row],[Item ID]],DataTable,6,FALSE)-VLOOKUP(Table_Data_Table_1[[#This Row],[Item ID]],DataTable,13,FALSE),IF(Table_Data_Table_1[[#This Row],[Valuation Method]]=\"Abstraction\",VLOOKUP(Table_Data_Table_1[[#This Row],[Item ID]],DataTable,6,FALSE)-VLOOKUP(Table_Data_Table_1[[#This Row],[Item ID]],DataTable,13,FALSE),IF(Table_Data_Table_1[[#This Row],[Valuation Method]]=\"Allocation\",VLOOKUP(Table_Data_Table_1[[#This Row],[Item ID]],DataTable,6,FALSE)*I502,\"\")))","v":""},{"$f":"IF(Table_Data_Table_1[[#This Row],[Valuation Method]]=\"Vacant\",\"N/A\",IF(Table_Data_Table_1[[#This Row],[Valuation Method]]=\"Abstraction\",Table_Data_Table_1[[#This Row],[Land\nResidual]]/VLOOKUP(Table_Data_Table_1[[#This Row],[Item ID]],DataTable,6,FALSE),IF(Table_Data_Table_1[[#This Row],[Valuation Method]]=\"Allocation\",'Global Settings'!$H$20,\"\")))","v":""},{"$f":"IFERROR(ROUND(Table_Data_Table_1[[#This Row],[Resid\nSq Ft]]/43560,3),\"\")","v":""},{"$f":"IF(Table_Data_Table_1[[#This Row],[Item ID]]=\"\",\"\",IFERROR(VLOOKUP(Table_Data_Table_1[[#This Row],[Item ID]],DataTable,10,FALSE)-VLOOKUP(Table_Data_Table_1[[#This Row],[Item ID]],DataTable,12,FALSE),\"\"))","v":""},{"$f":"IFERROR(Table_Data_Table_1[[#This Row],[Land\nResidual]]/Table_Data_Table_1[[#This Row],[Resid\nAcre]],\"\")","v":""},{"$f":"IFERROR(ROUND(Table_Data_Table_1[[#This Row],[Land\nResidual]]/Table_Data_Table_1[[#This Row],[Resid\nSq Ft]],2),\"\")","v":""},{"$f":"IF(Table_Data_Table_1[[#This Row],[Item ID]]=\"\",\"\",ROUND(DAYS360(Table_Data_Table_1[[#This Row],[Sale Date]],'Global Settings'!$H$5)/30,0))","v":""},{"$f":"IFERROR(IF(AND(Table_Data_Table_1[[#This Row],[Months To\nMid-Point]]<12.01,Table_Data_Table_1[[#This Row],[Months To\nMid-Point]]>-13),0,(Table_Data_Table_1[[#This Row],[Months To\nMid-Point]]*'Global Settings'!$H$6)),\"\")","v":""},{"$f":"IFERROR(Table_Data_Table_1[[#This Row],[Land\nResidual]]*(Table_Data_Table_1[[#This Row],[Time\nAdjust]]+1),\"\")","v":""},{"$f":"IFERROR(Table_Data_Table_1[[#This Row],[Adjusted\nSale Price]]/Table_Data_Table_1[[#This Row],[Resid\nAcre]],\"\")","v":""},{"$f":"IFERROR(ROUND(Table_Data_Table_1[[#This Row],[Adjusted\nSale Price]]/Table_Data_Table_1[[#This Row],[Resid\nSq Ft]],2),\"\")","v":""},{"$f":"IFERROR(IF(VLOOKUP(Table_Data_Table_1[[#This Row],[Item ID]],DataTable,11,FALSE)=0,\"N/A\",Table_Data_Table_1[[#This Row],[Adjusted\nSale Price]]/VLOOKUP(Table_Data_Table_1[[#This Row],[Item ID]],DataTable,11,FALSE)),\"\")","v":""},{"$f":"IF(IFERROR(VLOOKUP(Table_Data_Table_1[[#This Row],[Item ID]],DataTable,17,FALSE),\"\")=0,\"\",IFERROR(VLOOKUP(Table_Data_Table_1[[#This Row],[Item ID]],DataTable,17,FALSE),\"\"))","v":""}]
["",null,{"$f":"IF(Table_Data_Table_1[[#This Row],[Item ID]]=\"\",\"\",IFERROR(VLOOKUP(Table_Data_Table_1[[#This Row],[Item ID]],DataTable,16,FALSE),\"\"))","v":""},null,null,null,null,{"$f":"IF(Table_Data_Table_1[[#This Row],[Valuation Method]]=\"Vacant\",VLOOKUP(Table_Data_Table_1[[#This Row],[Item ID]],DataTable,6,FALSE)-VLOOKUP(Table_Data_Table_1[[#This Row],[Item ID]],DataTable,13,FALSE),IF(Table_Data_Table_1[[#This Row],[Valuation Method]]=\"Abstraction\",VLOOKUP(Table_Data_Table_1[[#This Row],[Item ID]],DataTable,6,FALSE)-VLOOKUP(Table_Data_Table_1[[#This Row],[Item ID]],DataTable,13,FALSE),IF(Table_Data_Table_1[[#This Row],[Valuation Method]]=\"Allocation\",VLOOKUP(Table_Data_Table_1[[#This Row],[Item ID]],DataTable,6,FALSE)*I503,\"\")))","v":""},{"$f":"IF(Table_Data_Table_1[[#This Row],[Valuation Method]]=\"Vacant\",\"N/A\",IF(Table_Data_Table_1[[#This Row],[Valuation Method]]=\"Abstraction\",Table_Data_Table_1[[#This Row],[Land\nResidual]]/VLOOKUP(Table_Data_Table_1[[#This Row],[Item ID]],DataTable,6,FALSE),IF(Table_Data_Table_1[[#This Row],[Valuation Method]]=\"Allocation\",'Global Settings'!$H$20,\"\")))","v":""},{"$f":"IFERROR(ROUND(Table_Data_Table_1[[#This Row],[Resid\nSq Ft]]/43560,3),\"\")","v":""},{"$f":"IF(Table_Data_Table_1[[#This Row],[Item ID]]=\"\",\"\",IFERROR(VLOOKUP(Table_Data_Table_1[[#This Row],[Item ID]],DataTable,10,FALSE)-VLOOKUP(Table_Data_Table_1[[#This Row],[Item ID]],DataTable,12,FALSE),\"\"))","v":""},{"$f":"IFERROR(Table_Data_Table_1[[#This Row],[Land\nResidual]]/Table_Data_Table_1[[#This Row],[Resid\nAcre]],\"\")","v":""},{"$f":"IFERROR(ROUND(Table_Data_Table_1[[#This Row],[Land\nResidual]]/Table_Data_Table_1[[#This Row],[Resid\nSq Ft]],2),\"\")","v":""},{"$f":"IF(Table_Data_Table_1[[#This Row],[Item ID]]=\"\",\"\",ROUND(DAYS360(Table_Data_Table_1[[#This Row],[Sale Date]],'Global Settings'!$H$5)/30,0))","v":""},{"$f":"IFERROR(IF(AND(Table_Data_Table_1[[#This Row],[Months To\nMid-Point]]<12.01,Table_Data_Table_1[[#This Row],[Months To\nMid-Point]]>-13),0,(Table_Data_Table_1[[#This Row],[Months To\nMid-Point]]*'Global Settings'!$H$6)),\"\")","v":""},{"$f":"IFERROR(Table_Data_Table_1[[#This Row],[Land\nResidual]]*(Table_Data_Table_1[[#This Row],[Time\nAdjust]]+1),\"\")","v":""},{"$f":"IFERROR(Table_Data_Table_1[[#This Row],[Adjusted\nSale Price]]/Table_Data_Table_1[[#This Row],[Resid\nAcre]],\"\")","v":""},{"$f":"IFERROR(ROUND(Table_Data_Table_1[[#This Row],[Adjusted\nSale Price]]/Table_Data_Table_1[[#This Row],[Resid\nSq Ft]],2),\"\")","v":""},{"$f":"IFERROR(IF(VLOOKUP(Table_Data_Table_1[[#This Row],[Item ID]],DataTable,11,FALSE)=0,\"N/A\",Table_Data_Table_1[[#This Row],[Adjusted\nSale Price]]/VLOOKUP(Table_Data_Table_1[[#This Row],[Item ID]],DataTable,11,FALSE)),\"\")","v":""},{"$f":"IF(IFERROR(VLOOKUP(Table_Data_Table_1[[#This Row],[Item ID]],DataTable,17,FALSE),\"\")=0,\"\",IFERROR(VLOOKUP(Table_Data_Table_1[[#This Row],[Item ID]],DataTable,17,FALSE),\"\"))","v":""}]
["",null,{"$f":"IF(Table_Data_Table_1[[#This Row],[Item ID]]=\"\",\"\",IFERROR(VLOOKUP(Table_Data_Table_1[[#This Row],[Item ID]],DataTable,16,FALSE),\"\"))","v":""},null,null,null,null,{"$f":"IF(Table_Data_Table_1[[#This Row],[Valuation Method]]=\"Vacant\",VLOOKUP(Table_Data_Table_1[[#This Row],[Item ID]],DataTable,6,FALSE)-VLOOKUP(Table_Data_Table_1[[#This Row],[Item ID]],DataTable,13,FALSE),IF(Table_Data_Table_1[[#This Row],[Valuation Method]]=\"Abstraction\",VLOOKUP(Table_Data_Table_1[[#This Row],[Item ID]],DataTable,6,FALSE)-VLOOKUP(Table_Data_Table_1[[#This Row],[Item ID]],DataTable,13,FALSE),IF(Table_Data_Table_1[[#This Row],[Valuation Method]]=\"Allocation\",VLOOKUP(Table_Data_Table_1[[#This Row],[Item ID]],DataTable,6,FALSE)*I504,\"\")))","v":""},{"$f":"IF(Table_Data_Table_1[[#This Row],[Valuation Method]]=\"Vacant\",\"N/A\",IF(Table_Data_Table_1[[#This Row],[Valuation Method]]=\"Abstraction\",Table_Data_Table_1[[#This Row],[Land\nResidual]]/VLOOKUP(Table_Data_Table_1[[#This Row],[Item ID]],DataTable,6,FALSE),IF(Table_Data_Table_1[[#This Row],[Valuation Method]]=\"Allocation\",'Global Settings'!$H$20,\"\")))","v":""},{"$f":"IFERROR(ROUND(Table_Data_Table_1[[#This Row],[Resid\nSq Ft]]/43560,3),\"\")","v":""},{"$f":"IF(Table_Data_Table_1[[#This Row],[Item ID]]=\"\",\"\",IFERROR(VLOOKUP(Table_Data_Table_1[[#This Row],[Item ID]],DataTable,10,FALSE)-VLOOKUP(Table_Data_Table_1[[#This Row],[Item ID]],DataTable,12,FALSE),\"\"))","v":""},{"$f":"IFERROR(Table_Data_Table_1[[#This Row],[Land\nResidual]]/Table_Data_Table_1[[#This Row],[Resid\nAcre]],\"\")","v":""},{"$f":"IFERROR(ROUND(Table_Data_Table_1[[#This Row],[Land\nResidual]]/Table_Data_Table_1[[#This Row],[Resid\nSq Ft]],2),\"\")","v":""},{"$f":"IF(Table_Data_Table_1[[#This Row],[Item ID]]=\"\",\"\",ROUND(DAYS360(Table_Data_Table_1[[#This Row],[Sale Date]],'Global Settings'!$H$5)/30,0))","v":""},{"$f":"IFERROR(IF(AND(Table_Data_Table_1[[#This Row],[Months To\nMid-Point]]<12.01,Table_Data_Table_1[[#This Row],[Months To\nMid-Point]]>-13),0,(Table_Data_Table_1[[#This Row],[Months To\nMid-Point]]*'Global Settings'!$H$6)),\"\")","v":""},{"$f":"IFERROR(Table_Data_Table_1[[#This Row],[Land\nResidual]]*(Table_Data_Table_1[[#This Row],[Time\nAdjust]]+1),\"\")","v":""},{"$f":"IFERROR(Table_Data_Table_1[[#This Row],[Adjusted\nSale Price]]/Table_Data_Table_1[[#This Row],[Resid\nAcre]],\"\")","v":""},{"$f":"IFERROR(ROUND(Table_Data_Table_1[[#This Row],[Adjusted\nSale Price]]/Table_Data_Table_1[[#This Row],[Resid\nSq Ft]],2),\"\")","v":""},{"$f":"IFERROR(IF(VLOOKUP(Table_Data_Table_1[[#This Row],[Item ID]],DataTable,11,FALSE)=0,\"N/A\",Table_Data_Table_1[[#This Row],[Adjusted\nSale Price]]/VLOOKUP(Table_Data_Table_1[[#This Row],[Item ID]],DataTable,11,FALSE)),\"\")","v":""},{"$f":"IF(IFERROR(VLOOKUP(Table_Data_Table_1[[#This Row],[Item ID]],DataTable,17,FALSE),\"\")=0,\"\",IFERROR(VLOOKUP(Table_Data_Table_1[[#This Row],[Item ID]],DataTable,17,FALSE),\"\"))","v":""}]
["",null,{"$f":"IF(Table_Data_Table_1[[#This Row],[Item ID]]=\"\",\"\",IFERROR(VLOOKUP(Table_Data_Table_1[[#This Row],[Item ID]],DataTable,16,FALSE),\"\"))","v":""},null,null,null,null,{"$f":"IF(Table_Data_Table_1[[#This Row],[Valuation Method]]=\"Vacant\",VLOOKUP(Table_Data_Table_1[[#This Row],[Item ID]],DataTable,6,FALSE)-VLOOKUP(Table_Data_Table_1[[#This Row],[Item ID]],DataTable,13,FALSE),IF(Table_Data_Table_1[[#This Row],[Valuation Method]]=\"Abstraction\",VLOOKUP(Table_Data_Table_1[[#This Row],[Item ID]],DataTable,6,FALSE)-VLOOKUP(Table_Data_Table_1[[#This Row],[Item ID]],DataTable,13,FALSE),IF(Table_Data_Table_1[[#This Row],[Valuation Method]]=\"Allocation\",VLOOKUP(Table_Data_Table_1[[#This Row],[Item ID]],DataTable,6,FALSE)*I505,\"\")))","v":""},{"$f":"IF(Table_Data_Table_1[[#This Row],[Valuation Method]]=\"Vacant\",\"N/A\",IF(Table_Data_Table_1[[#This Row],[Valuation Method]]=\"Abstraction\",Table_Data_Table_1[[#This Row],[Land\nResidual]]/VLOOKUP(Table_Data_Table_1[[#This Row],[Item ID]],DataTable,6,FALSE),IF(Table_Data_Table_1[[#This Row],[Valuation Method]]=\"Allocation\",'Global Settings'!$H$20,\"\")))","v":""},{"$f":"IFERROR(ROUND(Table_Data_Table_1[[#This Row],[Resid\nSq Ft]]/43560,3),\"\")","v":""},{"$f":"IF(Table_Data_Table_1[[#This Row],[Item ID]]=\"\",\"\",IFERROR(VLOOKUP(Table_Data_Table_1[[#This Row],[Item ID]],DataTable,10,FALSE)-VLOOKUP(Table_Data_Table_1[[#This Row],[Item ID]],DataTable,12,FALSE),\"\"))","v":""},{"$f":"IFERROR(Table_Data_Table_1[[#This Row],[Land\nResidual]]/Table_Data_Table_1[[#This Row],[Resid\nAcre]],\"\")","v":""},{"$f":"IFERROR(ROUND(Table_Data_Table_1[[#This Row],[Land\nResidual]]/Table_Data_Table_1[[#This Row],[Resid\nSq Ft]],2),\"\")","v":""},{"$f":"IF(Table_Data_Table_1[[#This Row],[Item ID]]=\"\",\"\",ROUND(DAYS360(Table_Data_Table_1[[#This Row],[Sale Date]],'Global Settings'!$H$5)/30,0))","v":""},{"$f":"IFERROR(IF(AND(Table_Data_Table_1[[#This Row],[Months To\nMid-Point]]<12.01,Table_Data_Table_1[[#This Row],[Months To\nMid-Point]]>-13),0,(Table_Data_Table_1[[#This Row],[Months To\nMid-Point]]*'Global Settings'!$H$6)),\"\")","v":""},{"$f":"IFERROR(Table_Data_Table_1[[#This Row],[Land\nResidual]]*(Table_Data_Table_1[[#This Row],[Time\nAdjust]]+1),\"\")","v":""},{"$f":"IFERROR(Table_Data_Table_1[[#This Row],[Adjusted\nSale Price]]/Table_Data_Table_1[[#This Row],[Resid\nAcre]],\"\")","v":""},{"$f":"IFERROR(ROUND(Table_Data_Table_1[[#This Row],[Adjusted\nSale Price]]/Table_Data_Table_1[[#This Row],[Resid\nSq Ft]],2),\"\")","v":""},{"$f":"IFERROR(IF(VLOOKUP(Table_Data_Table_1[[#This Row],[Item ID]],DataTable,11,FALSE)=0,\"N/A\",Table_Data_Table_1[[#This Row],[Adjusted\nSale Price]]/VLOOKUP(Table_Data_Table_1[[#This Row],[Item ID]],DataTable,11,FALSE)),\"\")","v":""},{"$f":"IF(IFERROR(VLOOKUP(Table_Data_Table_1[[#This Row],[Item ID]],DataTable,17,FALSE),\"\")=0,\"\",IFERROR(VLOOKUP(Table_Data_Table_1[[#This Row],[Item ID]],DataTable,17,FALSE),\"\"))","v":""}]
["",null,{"$f":"IF(Table_Data_Table_1[[#This Row],[Item ID]]=\"\",\"\",IFERROR(VLOOKUP(Table_Data_Table_1[[#This Row],[Item ID]],DataTable,16,FALSE),\"\"))","v":""},null,null,null,null,{"$f":"IF(Table_Data_Table_1[[#This Row],[Valuation Method]]=\"Vacant\",VLOOKUP(Table_Data_Table_1[[#This Row],[Item ID]],DataTable,6,FALSE)-VLOOKUP(Table_Data_Table_1[[#This Row],[Item ID]],DataTable,13,FALSE),IF(Table_Data_Table_1[[#This Row],[Valuation Method]]=\"Abstraction\",VLOOKUP(Table_Data_Table_1[[#This Row],[Item ID]],DataTable,6,FALSE)-VLOOKUP(Table_Data_Table_1[[#This Row],[Item ID]],DataTable,13,FALSE),IF(Table_Data_Table_1[[#This Row],[Valuation Method]]=\"Allocation\",VLOOKUP(Table_Data_Table_1[[#This Row],[Item ID]],DataTable,6,FALSE)*I506,\"\")))","v":""},{"$f":"IF(Table_Data_Table_1[[#This Row],[Valuation Method]]=\"Vacant\",\"N/A\",IF(Table_Data_Table_1[[#This Row],[Valuation Method]]=\"Abstraction\",Table_Data_Table_1[[#This Row],[Land\nResidual]]/VLOOKUP(Table_Data_Table_1[[#This Row],[Item ID]],DataTable,6,FALSE),IF(Table_Data_Table_1[[#This Row],[Valuation Method]]=\"Allocation\",'Global Settings'!$H$20,\"\")))","v":""},{"$f":"IFERROR(ROUND(Table_Data_Table_1[[#This Row],[Resid\nSq Ft]]/43560,3),\"\")","v":""},{"$f":"IF(Table_Data_Table_1[[#This Row],[Item ID]]=\"\",\"\",IFERROR(VLOOKUP(Table_Data_Table_1[[#This Row],[Item ID]],DataTable,10,FALSE)-VLOOKUP(Table_Data_Table_1[[#This Row],[Item ID]],DataTable,12,FALSE),\"\"))","v":""},{"$f":"IFERROR(Table_Data_Table_1[[#This Row],[Land\nResidual]]/Table_Data_Table_1[[#This Row],[Resid\nAcre]],\"\")","v":""},{"$f":"IFERROR(ROUND(Table_Data_Table_1[[#This Row],[Land\nResidual]]/Table_Data_Table_1[[#This Row],[Resid\nSq Ft]],2),\"\")","v":""},{"$f":"IF(Table_Data_Table_1[[#This Row],[Item ID]]=\"\",\"\",ROUND(DAYS360(Table_Data_Table_1[[#This Row],[Sale Date]],'Global Settings'!$H$5)/30,0))","v":""},{"$f":"IFERROR(IF(AND(Table_Data_Table_1[[#This Row],[Months To\nMid-Point]]<12.01,Table_Data_Table_1[[#This Row],[Months To\nMid-Point]]>-13),0,(Table_Data_Table_1[[#This Row],[Months To\nMid-Point]]*'Global Settings'!$H$6)),\"\")","v":""},{"$f":"IFERROR(Table_Data_Table_1[[#This Row],[Land\nResidual]]*(Table_Data_Table_1[[#This Row],[Time\nAdjust]]+1),\"\")","v":""},{"$f":"IFERROR(Table_Data_Table_1[[#This Row],[Adjusted\nSale Price]]/Table_Data_Table_1[[#This Row],[Resid\nAcre]],\"\")","v":""},{"$f":"IFERROR(ROUND(Table_Data_Table_1[[#This Row],[Adjusted\nSale Price]]/Table_Data_Table_1[[#This Row],[Resid\nSq Ft]],2),\"\")","v":""},{"$f":"IFERROR(IF(VLOOKUP(Table_Data_Table_1[[#This Row],[Item ID]],DataTable,11,FALSE)=0,\"N/A\",Table_Data_Table_1[[#This Row],[Adjusted\nSale Price]]/VLOOKUP(Table_Data_Table_1[[#This Row],[Item ID]],DataTable,11,FALSE)),\"\")","v":""},{"$f":"IF(IFERROR(VLOOKUP(Table_Data_Table_1[[#This Row],[Item ID]],DataTable,17,FALSE),\"\")=0,\"\",IFERROR(VLOOKUP(Table_Data_Table_1[[#This Row],[Item ID]],DataTable,17,FALSE),\"\"))","v":""}]
["",null,{"$f":"IF(Table_Data_Table_1[[#This Row],[Item ID]]=\"\",\"\",IFERROR(VLOOKUP(Table_Data_Table_1[[#This Row],[Item ID]],DataTable,16,FALSE),\"\"))","v":""},null,null,null,null,{"$f":"IF(Table_Data_Table_1[[#This Row],[Valuation Method]]=\"Vacant\",VLOOKUP(Table_Data_Table_1[[#This Row],[Item ID]],DataTable,6,FALSE)-VLOOKUP(Table_Data_Table_1[[#This Row],[Item ID]],DataTable,13,FALSE),IF(Table_Data_Table_1[[#This Row],[Valuation Method]]=\"Abstraction\",VLOOKUP(Table_Data_Table_1[[#This Row],[Item ID]],DataTable,6,FALSE)-VLOOKUP(Table_Data_Table_1[[#This Row],[Item ID]],DataTable,13,FALSE),IF(Table_Data_Table_1[[#This Row],[Valuation Method]]=\"Allocation\",VLOOKUP(Table_Data_Table_1[[#This Row],[Item ID]],DataTable,6,FALSE)*I507,\"\")))","v":""},{"$f":"IF(Table_Data_Table_1[[#This Row],[Valuation Method]]=\"Vacant\",\"N/A\",IF(Table_Data_Table_1[[#This Row],[Valuation Method]]=\"Abstraction\",Table_Data_Table_1[[#This Row],[Land\nResidual]]/VLOOKUP(Table_Data_Table_1[[#This Row],[Item ID]],DataTable,6,FALSE),IF(Table_Data_Table_1[[#This Row],[Valuation Method]]=\"Allocation\",'Global Settings'!$H$20,\"\")))","v":""},{"$f":"IFERROR(ROUND(Table_Data_Table_1[[#This Row],[Resid\nSq Ft]]/43560,3),\"\")","v":""},{"$f":"IF(Table_Data_Table_1[[#This Row],[Item ID]]=\"\",\"\",IFERROR(VLOOKUP(Table_Data_Table_1[[#This Row],[Item ID]],DataTable,10,FALSE)-VLOOKUP(Table_Data_Table_1[[#This Row],[Item ID]],DataTable,12,FALSE),\"\"))","v":""},{"$f":"IFERROR(Table_Data_Table_1[[#This Row],[Land\nResidual]]/Table_Data_Table_1[[#This Row],[Resid\nAcre]],\"\")","v":""},{"$f":"IFERROR(ROUND(Table_Data_Table_1[[#This Row],[Land\nResidual]]/Table_Data_Table_1[[#This Row],[Resid\nSq Ft]],2),\"\")","v":""},{"$f":"IF(Table_Data_Table_1[[#This Row],[Item ID]]=\"\",\"\",ROUND(DAYS360(Table_Data_Table_1[[#This Row],[Sale Date]],'Global Settings'!$H$5)/30,0))","v":""},{"$f":"IFERROR(IF(AND(Table_Data_Table_1[[#This Row],[Months To\nMid-Point]]<12.01,Table_Data_Table_1[[#This Row],[Months To\nMid-Point]]>-13),0,(Table_Data_Table_1[[#This Row],[Months To\nMid-Point]]*'Global Settings'!$H$6)),\"\")","v":""},{"$f":"IFERROR(Table_Data_Table_1[[#This Row],[Land\nResidual]]*(Table_Data_Table_1[[#This Row],[Time\nAdjust]]+1),\"\")","v":""},{"$f":"IFERROR(Table_Data_Table_1[[#This Row],[Adjusted\nSale Price]]/Table_Data_Table_1[[#This Row],[Resid\nAcre]],\"\")","v":""},{"$f":"IFERROR(ROUND(Table_Data_Table_1[[#This Row],[Adjusted\nSale Price]]/Table_Data_Table_1[[#This Row],[Resid\nSq Ft]],2),\"\")","v":""},{"$f":"IFERROR(IF(VLOOKUP(Table_Data_Table_1[[#This Row],[Item ID]],DataTable,11,FALSE)=0,\"N/A\",Table_Data_Table_1[[#This Row],[Adjusted\nSale Price]]/VLOOKUP(Table_Data_Table_1[[#This Row],[Item ID]],DataTable,11,FALSE)),\"\")","v":""},{"$f":"IF(IFERROR(VLOOKUP(Table_Data_Table_1[[#This Row],[Item ID]],DataTable,17,FALSE),\"\")=0,\"\",IFERROR(VLOOKUP(Table_Data_Table_1[[#This Row],[Item ID]],DataTable,17,FALSE),\"\"))","v":""}]
["",null,{"$f":"IF(Table_Data_Table_1[[#This Row],[Item ID]]=\"\",\"\",IFERROR(VLOOKUP(Table_Data_Table_1[[#This Row],[Item ID]],DataTable,16,FALSE),\"\"))","v":""},null,null,null,null,{"$f":"IF(Table_Data_Table_1[[#This Row],[Valuation Method]]=\"Vacant\",VLOOKUP(Table_Data_Table_1[[#This Row],[Item ID]],DataTable,6,FALSE)-VLOOKUP(Table_Data_Table_1[[#This Row],[Item ID]],DataTable,13,FALSE),IF(Table_Data_Table_1[[#This Row],[Valuation Method]]=\"Abstraction\",VLOOKUP(Table_Data_Table_1[[#This Row],[Item ID]],DataTable,6,FALSE)-VLOOKUP(Table_Data_Table_1[[#This Row],[Item ID]],DataTable,13,FALSE),IF(Table_Data_Table_1[[#This Row],[Valuation Method]]=\"Allocation\",VLOOKUP(Table_Data_Table_1[[#This Row],[Item ID]],DataTable,6,FALSE)*I508,\"\")))","v":""},{"$f":"IF(Table_Data_Table_1[[#This Row],[Valuation Method]]=\"Vacant\",\"N/A\",IF(Table_Data_Table_1[[#This Row],[Valuation Method]]=\"Abstraction\",Table_Data_Table_1[[#This Row],[Land\nResidual]]/VLOOKUP(Table_Data_Table_1[[#This Row],[Item ID]],DataTable,6,FALSE),IF(Table_Data_Table_1[[#This Row],[Valuation Method]]=\"Allocation\",'Global Settings'!$H$20,\"\")))","v":""},{"$f":"IFERROR(ROUND(Table_Data_Table_1[[#This Row],[Resid\nSq Ft]]/43560,3),\"\")","v":""},{"$f":"IF(Table_Data_Table_1[[#This Row],[Item ID]]=\"\",\"\",IFERROR(VLOOKUP(Table_Data_Table_1[[#This Row],[Item ID]],DataTable,10,FALSE)-VLOOKUP(Table_Data_Table_1[[#This Row],[Item ID]],DataTable,12,FALSE),\"\"))","v":""},{"$f":"IFERROR(Table_Data_Table_1[[#This Row],[Land\nResidual]]/Table_Data_Table_1[[#This Row],[Resid\nAcre]],\"\")","v":""},{"$f":"IFERROR(ROUND(Table_Data_Table_1[[#This Row],[Land\nResidual]]/Table_Data_Table_1[[#This Row],[Resid\nSq Ft]],2),\"\")","v":""},{"$f":"IF(Table_Data_Table_1[[#This Row],[Item ID]]=\"\",\"\",ROUND(DAYS360(Table_Data_Table_1[[#This Row],[Sale Date]],'Global Settings'!$H$5)/30,0))","v":""},{"$f":"IFERROR(IF(AND(Table_Data_Table_1[[#This Row],[Months To\nMid-Point]]<12.01,Table_Data_Table_1[[#This Row],[Months To\nMid-Point]]>-13),0,(Table_Data_Table_1[[#This Row],[Months To\nMid-Point]]*'Global Settings'!$H$6)),\"\")","v":""},{"$f":"IFERROR(Table_Data_Table_1[[#This Row],[Land\nResidual]]*(Table_Data_Table_1[[#This Row],[Time\nAdjust]]+1),\"\")","v":""},{"$f":"IFERROR(Table_Data_Table_1[[#This Row],[Adjusted\nSale Price]]/Table_Data_Table_1[[#This Row],[Resid\nAcre]],\"\")","v":""},{"$f":"IFERROR(ROUND(Table_Data_Table_1[[#This Row],[Adjusted\nSale Price]]/Table_Data_Table_1[[#This Row],[Resid\nSq Ft]],2),\"\")","v":""},{"$f":"IFERROR(IF(VLOOKUP(Table_Data_Table_1[[#This Row],[Item ID]],DataTable,11,FALSE)=0,\"N/A\",Table_Data_Table_1[[#This Row],[Adjusted\nSale Price]]/VLOOKUP(Table_Data_Table_1[[#This Row],[Item ID]],DataTable,11,FALSE)),\"\")","v":""},{"$f":"IF(IFERROR(VLOOKUP(Table_Data_Table_1[[#This Row],[Item ID]],DataTable,17,FALSE),\"\")=0,\"\",IFERROR(VLOOKUP(Table_Data_Table_1[[#This Row],[Item ID]],DataTable,17,FALSE),\"\"))","v":""}]
["",null,{"$f":"IF(Table_Data_Table_1[[#This Row],[Item ID]]=\"\",\"\",IFERROR(VLOOKUP(Table_Data_Table_1[[#This Row],[Item ID]],DataTable,16,FALSE),\"\"))","v":""},null,null,null,null,{"$f":"IF(Table_Data_Table_1[[#This Row],[Valuation Method]]=\"Vacant\",VLOOKUP(Table_Data_Table_1[[#This Row],[Item ID]],DataTable,6,FALSE)-VLOOKUP(Table_Data_Table_1[[#This Row],[Item ID]],DataTable,13,FALSE),IF(Table_Data_Table_1[[#This Row],[Valuation Method]]=\"Abstraction\",VLOOKUP(Table_Data_Table_1[[#This Row],[Item ID]],DataTable,6,FALSE)-VLOOKUP(Table_Data_Table_1[[#This Row],[Item ID]],DataTable,13,FALSE),IF(Table_Data_Table_1[[#This Row],[Valuation Method]]=\"Allocation\",VLOOKUP(Table_Data_Table_1[[#This Row],[Item ID]],DataTable,6,FALSE)*I509,\"\")))","v":""},{"$f":"IF(Table_Data_Table_1[[#This Row],[Valuation Method]]=\"Vacant\",\"N/A\",IF(Table_Data_Table_1[[#This Row],[Valuation Method]]=\"Abstraction\",Table_Data_Table_1[[#This Row],[Land\nResidual]]/VLOOKUP(Table_Data_Table_1[[#This Row],[Item ID]],DataTable,6,FALSE),IF(Table_Data_Table_1[[#This Row],[Valuation Method]]=\"Allocation\",'Global Settings'!$H$20,\"\")))","v":""},{"$f":"IFERROR(ROUND(Table_Data_Table_1[[#This Row],[Resid\nSq Ft]]/43560,3),\"\")","v":""},{"$f":"IF(Table_Data_Table_1[[#This Row],[Item ID]]=\"\",\"\",IFERROR(VLOOKUP(Table_Data_Table_1[[#This Row],[Item ID]],DataTable,10,FALSE)-VLOOKUP(Table_Data_Table_1[[#This Row],[Item ID]],DataTable,12,FALSE),\"\"))","v":""},{"$f":"IFERROR(Table_Data_Table_1[[#This Row],[Land\nResidual]]/Table_Data_Table_1[[#This Row],[Resid\nAcre]],\"\")","v":""},{"$f":"IFERROR(ROUND(Table_Data_Table_1[[#This Row],[Land\nResidual]]/Table_Data_Table_1[[#This Row],[Resid\nSq Ft]],2),\"\")","v":""},{"$f":"IF(Table_Data_Table_1[[#This Row],[Item ID]]=\"\",\"\",ROUND(DAYS360(Table_Data_Table_1[[#This Row],[Sale Date]],'Global Settings'!$H$5)/30,0))","v":""},{"$f":"IFERROR(IF(AND(Table_Data_Table_1[[#This Row],[Months To\nMid-Point]]<12.01,Table_Data_Table_1[[#This Row],[Months To\nMid-Point]]>-13),0,(Table_Data_Table_1[[#This Row],[Months To\nMid-Point]]*'Global Settings'!$H$6)),\"\")","v":""},{"$f":"IFERROR(Table_Data_Table_1[[#This Row],[Land\nResidual]]*(Table_Data_Table_1[[#This Row],[Time\nAdjust]]+1),\"\")","v":""},{"$f":"IFERROR(Table_Data_Table_1[[#This Row],[Adjusted\nSale Price]]/Table_Data_Table_1[[#This Row],[Resid\nAcre]],\"\")","v":""},{"$f":"IFERROR(ROUND(Table_Data_Table_1[[#This Row],[Adjusted\nSale Price]]/Table_Data_Table_1[[#This Row],[Resid\nSq Ft]],2),\"\")","v":""},{"$f":"IFERROR(IF(VLOOKUP(Table_Data_Table_1[[#This Row],[Item ID]],DataTable,11,FALSE)=0,\"N/A\",Table_Data_Table_1[[#This Row],[Adjusted\nSale Price]]/VLOOKUP(Table_Data_Table_1[[#This Row],[Item ID]],DataTable,11,FALSE)),\"\")","v":""},{"$f":"IF(IFERROR(VLOOKUP(Table_Data_Table_1[[#This Row],[Item ID]],DataTable,17,FALSE),\"\")=0,\"\",IFERROR(VLOOKUP(Table_Data_Table_1[[#This Row],[Item ID]],DataTable,17,FALSE),\"\"))","v":""}]
["",null,{"$f":"IF(Table_Data_Table_1[[#This Row],[Item ID]]=\"\",\"\",IFERROR(VLOOKUP(Table_Data_Table_1[[#This Row],[Item ID]],DataTable,16,FALSE),\"\"))","v":""},null,null,null,null,{"$f":"IF(Table_Data_Table_1[[#This Row],[Valuation Method]]=\"Vacant\",VLOOKUP(Table_Data_Table_1[[#This Row],[Item ID]],DataTable,6,FALSE)-VLOOKUP(Table_Data_Table_1[[#This Row],[Item ID]],DataTable,13,FALSE),IF(Table_Data_Table_1[[#This Row],[Valuation Method]]=\"Abstraction\",VLOOKUP(Table_Data_Table_1[[#This Row],[Item ID]],DataTable,6,FALSE)-VLOOKUP(Table_Data_Table_1[[#This Row],[Item ID]],DataTable,13,FALSE),IF(Table_Data_Table_1[[#This Row],[Valuation Method]]=\"Allocation\",VLOOKUP(Table_Data_Table_1[[#This Row],[Item ID]],DataTable,6,FALSE)*I510,\"\")))","v":""},{"$f":"IF(Table_Data_Table_1[[#This Row],[Valuation Method]]=\"Vacant\",\"N/A\",IF(Table_Data_Table_1[[#This Row],[Valuation Method]]=\"Abstraction\",Table_Data_Table_1[[#This Row],[Land\nResidual]]/VLOOKUP(Table_Data_Table_1[[#This Row],[Item ID]],DataTable,6,FALSE),IF(Table_Data_Table_1[[#This Row],[Valuation Method]]=\"Allocation\",'Global Settings'!$H$20,\"\")))","v":""},{"$f":"IFERROR(ROUND(Table_Data_Table_1[[#This Row],[Resid\nSq Ft]]/43560,3),\"\")","v":""},{"$f":"IF(Table_Data_Table_1[[#This Row],[Item ID]]=\"\",\"\",IFERROR(VLOOKUP(Table_Data_Table_1[[#This Row],[Item ID]],DataTable,10,FALSE)-VLOOKUP(Table_Data_Table_1[[#This Row],[Item ID]],DataTable,12,FALSE),\"\"))","v":""},{"$f":"IFERROR(Table_Data_Table_1[[#This Row],[Land\nResidual]]/Table_Data_Table_1[[#This Row],[Resid\nAcre]],\"\")","v":""},{"$f":"IFERROR(ROUND(Table_Data_Table_1[[#This Row],[Land\nResidual]]/Table_Data_Table_1[[#This Row],[Resid\nSq Ft]],2),\"\")","v":""},{"$f":"IF(Table_Data_Table_1[[#This Row],[Item ID]]=\"\",\"\",ROUND(DAYS360(Table_Data_Table_1[[#This Row],[Sale Date]],'Global Settings'!$H$5)/30,0))","v":""},{"$f":"IFERROR(IF(AND(Table_Data_Table_1[[#This Row],[Months To\nMid-Point]]<12.01,Table_Data_Table_1[[#This Row],[Months To\nMid-Point]]>-13),0,(Table_Data_Table_1[[#This Row],[Months To\nMid-Point]]*'Global Settings'!$H$6)),\"\")","v":""},{"$f":"IFERROR(Table_Data_Table_1[[#This Row],[Land\nResidual]]*(Table_Data_Table_1[[#This Row],[Time\nAdjust]]+1),\"\")","v":""},{"$f":"IFERROR(Table_Data_Table_1[[#This Row],[Adjusted\nSale Price]]/Table_Data_Table_1[[#This Row],[Resid\nAcre]],\"\")","v":""},{"$f":"IFERROR(ROUND(Table_Data_Table_1[[#This Row],[Adjusted\nSale Price]]/Table_Data_Table_1[[#This Row],[Resid\nSq Ft]],2),\"\")","v":""},{"$f":"IFERROR(IF(VLOOKUP(Table_Data_Table_1[[#This Row],[Item ID]],DataTable,11,FALSE)=0,\"N/A\",Table_Data_Table_1[[#This Row],[Adjusted\nSale Price]]/VLOOKUP(Table_Data_Table_1[[#This Row],[Item ID]],DataTable,11,FALSE)),\"\")","v":""},{"$f":"IF(IFERROR(VLOOKUP(Table_Data_Table_1[[#This Row],[Item ID]],DataTable,17,FALSE),\"\")=0,\"\",IFERROR(VLOOKUP(Table_Data_Table_1[[#This Row],[Item ID]],DataTable,17,FALSE),\"\"))","v":""}]
["",null,{"$f":"IF(Table_Data_Table_1[[#This Row],[Item ID]]=\"\",\"\",IFERROR(VLOOKUP(Table_Data_Table_1[[#This Row],[Item ID]],DataTable,16,FALSE),\"\"))","v":""},null,null,null,null,{"$f":"IF(Table_Data_Table_1[[#This Row],[Valuation Method]]=\"Vacant\",VLOOKUP(Table_Data_Table_1[[#This Row],[Item ID]],DataTable,6,FALSE)-VLOOKUP(Table_Data_Table_1[[#This Row],[Item ID]],DataTable,13,FALSE),IF(Table_Data_Table_1[[#This Row],[Valuation Method]]=\"Abstraction\",VLOOKUP(Table_Data_Table_1[[#This Row],[Item ID]],DataTable,6,FALSE)-VLOOKUP(Table_Data_Table_1[[#This Row],[Item ID]],DataTable,13,FALSE),IF(Table_Data_Table_1[[#This Row],[Valuation Method]]=\"Allocation\",VLOOKUP(Table_Data_Table_1[[#This Row],[Item ID]],DataTable,6,FALSE)*I511,\"\")))","v":""},{"$f":"IF(Table_Data_Table_1[[#This Row],[Valuation Method]]=\"Vacant\",\"N/A\",IF(Table_Data_Table_1[[#This Row],[Valuation Method]]=\"Abstraction\",Table_Data_Table_1[[#This Row],[Land\nResidual]]/VLOOKUP(Table_Data_Table_1[[#This Row],[Item ID]],DataTable,6,FALSE),IF(Table_Data_Table_1[[#This Row],[Valuation Method]]=\"Allocation\",'Global Settings'!$H$20,\"\")))","v":""},{"$f":"IFERROR(ROUND(Table_Data_Table_1[[#This Row],[Resid\nSq Ft]]/43560,3),\"\")","v":""},{"$f":"IF(Table_Data_Table_1[[#This Row],[Item ID]]=\"\",\"\",IFERROR(VLOOKUP(Table_Data_Table_1[[#This Row],[Item ID]],DataTable,10,FALSE)-VLOOKUP(Table_Data_Table_1[[#This Row],[Item ID]],DataTable,12,FALSE),\"\"))","v":""},{"$f":"IFERROR(Table_Data_Table_1[[#This Row],[Land\nResidual]]/Table_Data_Table_1[[#This Row],[Resid\nAcre]],\"\")","v":""},{"$f":"IFERROR(ROUND(Table_Data_Table_1[[#This Row],[Land\nResidual]]/Table_Data_Table_1[[#This Row],[Resid\nSq Ft]],2),\"\")","v":""},{"$f":"IF(Table_Data_Table_1[[#This Row],[Item ID]]=\"\",\"\",ROUND(DAYS360(Table_Data_Table_1[[#This Row],[Sale Date]],'Global Settings'!$H$5)/30,0))","v":""},{"$f":"IFERROR(IF(AND(Table_Data_Table_1[[#This Row],[Months To\nMid-Point]]<12.01,Table_Data_Table_1[[#This Row],[Months To\nMid-Point]]>-13),0,(Table_Data_Table_1[[#This Row],[Months To\nMid-Point]]*'Global Settings'!$H$6)),\"\")","v":""},{"$f":"IFERROR(Table_Data_Table_1[[#This Row],[Land\nResidual]]*(Table_Data_Table_1[[#This Row],[Time\nAdjust]]+1),\"\")","v":""},{"$f":"IFERROR(Table_Data_Table_1[[#This Row],[Adjusted\nSale Price]]/Table_Data_Table_1[[#This Row],[Resid\nAcre]],\"\")","v":""},{"$f":"IFERROR(ROUND(Table_Data_Table_1[[#This Row],[Adjusted\nSale Price]]/Table_Data_Table_1[[#This Row],[Resid\nSq Ft]],2),\"\")","v":""},{"$f":"IFERROR(IF(VLOOKUP(Table_Data_Table_1[[#This Row],[Item ID]],DataTable,11,FALSE)=0,\"N/A\",Table_Data_Table_1[[#This Row],[Adjusted\nSale Price]]/VLOOKUP(Table_Data_Table_1[[#This Row],[Item ID]],DataTable,11,FALSE)),\"\")","v":""},{"$f":"IF(IFERROR(VLOOKUP(Table_Data_Table_1[[#This Row],[Item ID]],DataTable,17,FALSE),\"\")=0,\"\",IFERROR(VLOOKUP(Table_Data_Table_1[[#This Row],[Item ID]],DataTable,17,FALSE),\"\"))","v":""}]
["",null,{"$f":"IF(Table_Data_Table_1[[#This Row],[Item ID]]=\"\",\"\",IFERROR(VLOOKUP(Table_Data_Table_1[[#This Row],[Item ID]],DataTable,16,FALSE),\"\"))","v":""},null,null,null,null,{"$f":"IF(Table_Data_Table_1[[#This Row],[Valuation Method]]=\"Vacant\",VLOOKUP(Table_Data_Table_1[[#This Row],[Item ID]],DataTable,6,FALSE)-VLOOKUP(Table_Data_Table_1[[#This Row],[Item ID]],DataTable,13,FALSE),IF(Table_Data_Table_1[[#This Row],[Valuation Method]]=\"Abstraction\",VLOOKUP(Table_Data_Table_1[[#This Row],[Item ID]],DataTable,6,FALSE)-VLOOKUP(Table_Data_Table_1[[#This Row],[Item ID]],DataTable,13,FALSE),IF(Table_Data_Table_1[[#This Row],[Valuation Method]]=\"Allocation\",VLOOKUP(Table_Data_Table_1[[#This Row],[Item ID]],DataTable,6,FALSE)*I512,\"\")))","v":""},{"$f":"IF(Table_Data_Table_1[[#This Row],[Valuation Method]]=\"Vacant\",\"N/A\",IF(Table_Data_Table_1[[#This Row],[Valuation Method]]=\"Abstraction\",Table_Data_Table_1[[#This Row],[Land\nResidual]]/VLOOKUP(Table_Data_Table_1[[#This Row],[Item ID]],DataTable,6,FALSE),IF(Table_Data_Table_1[[#This Row],[Valuation Method]]=\"Allocation\",'Global Settings'!$H$20,\"\")))","v":""},{"$f":"IFERROR(ROUND(Table_Data_Table_1[[#This Row],[Resid\nSq Ft]]/43560,3),\"\")","v":""},{"$f":"IF(Table_Data_Table_1[[#This Row],[Item ID]]=\"\",\"\",IFERROR(VLOOKUP(Table_Data_Table_1[[#This Row],[Item ID]],DataTable,10,FALSE)-VLOOKUP(Table_Data_Table_1[[#This Row],[Item ID]],DataTable,12,FALSE),\"\"))","v":""},{"$f":"IFERROR(Table_Data_Table_1[[#This Row],[Land\nResidual]]/Table_Data_Table_1[[#This Row],[Resid\nAcre]],\"\")","v":""},{"$f":"IFERROR(ROUND(Table_Data_Table_1[[#This Row],[Land\nResidual]]/Table_Data_Table_1[[#This Row],[Resid\nSq Ft]],2),\"\")","v":""},{"$f":"IF(Table_Data_Table_1[[#This Row],[Item ID]]=\"\",\"\",ROUND(DAYS360(Table_Data_Table_1[[#This Row],[Sale Date]],'Global Settings'!$H$5)/30,0))","v":""},{"$f":"IFERROR(IF(AND(Table_Data_Table_1[[#This Row],[Months To\nMid-Point]]<12.01,Table_Data_Table_1[[#This Row],[Months To\nMid-Point]]>-13),0,(Table_Data_Table_1[[#This Row],[Months To\nMid-Point]]*'Global Settings'!$H$6)),\"\")","v":""},{"$f":"IFERROR(Table_Data_Table_1[[#This Row],[Land\nResidual]]*(Table_Data_Table_1[[#This Row],[Time\nAdjust]]+1),\"\")","v":""},{"$f":"IFERROR(Table_Data_Table_1[[#This Row],[Adjusted\nSale Price]]/Table_Data_Table_1[[#This Row],[Resid\nAcre]],\"\")","v":""},{"$f":"IFERROR(ROUND(Table_Data_Table_1[[#This Row],[Adjusted\nSale Price]]/Table_Data_Table_1[[#This Row],[Resid\nSq Ft]],2),\"\")","v":""},{"$f":"IFERROR(IF(VLOOKUP(Table_Data_Table_1[[#This Row],[Item ID]],DataTable,11,FALSE)=0,\"N/A\",Table_Data_Table_1[[#This Row],[Adjusted\nSale Price]]/VLOOKUP(Table_Data_Table_1[[#This Row],[Item ID]],DataTable,11,FALSE)),\"\")","v":""},{"$f":"IF(IFERROR(VLOOKUP(Table_Data_Table_1[[#This Row],[Item ID]],DataTable,17,FALSE),\"\")=0,\"\",IFERROR(VLOOKUP(Table_Data_Table_1[[#This Row],[Item ID]],DataTable,17,FALSE),\"\"))","v":""}]
["",null,{"$f":"IF(Table_Data_Table_1[[#This Row],[Item ID]]=\"\",\"\",IFERROR(VLOOKUP(Table_Data_Table_1[[#This Row],[Item ID]],DataTable,16,FALSE),\"\"))","v":""},null,null,null,null,{"$f":"IF(Table_Data_Table_1[[#This Row],[Valuation Method]]=\"Vacant\",VLOOKUP(Table_Data_Table_1[[#This Row],[Item ID]],DataTable,6,FALSE)-VLOOKUP(Table_Data_Table_1[[#This Row],[Item ID]],DataTable,13,FALSE),IF(Table_Data_Table_1[[#This Row],[Valuation Method]]=\"Abstraction\",VLOOKUP(Table_Data_Table_1[[#This Row],[Item ID]],DataTable,6,FALSE)-VLOOKUP(Table_Data_Table_1[[#This Row],[Item ID]],DataTable,13,FALSE),IF(Table_Data_Table_1[[#This Row],[Valuation Method]]=\"Allocation\",VLOOKUP(Table_Data_Table_1[[#This Row],[Item ID]],DataTable,6,FALSE)*I513,\"\")))","v":""},{"$f":"IF(Table_Data_Table_1[[#This Row],[Valuation Method]]=\"Vacant\",\"N/A\",IF(Table_Data_Table_1[[#This Row],[Valuation Method]]=\"Abstraction\",Table_Data_Table_1[[#This Row],[Land\nResidual]]/VLOOKUP(Table_Data_Table_1[[#This Row],[Item ID]],DataTable,6,FALSE),IF(Table_Data_Table_1[[#This Row],[Valuation Method]]=\"Allocation\",'Global Settings'!$H$20,\"\")))","v":""},{"$f":"IFERROR(ROUND(Table_Data_Table_1[[#This Row],[Resid\nSq Ft]]/43560,3),\"\")","v":""},{"$f":"IF(Table_Data_Table_1[[#This Row],[Item ID]]=\"\",\"\",IFERROR(VLOOKUP(Table_Data_Table_1[[#This Row],[Item ID]],DataTable,10,FALSE)-VLOOKUP(Table_Data_Table_1[[#This Row],[Item ID]],DataTable,12,FALSE),\"\"))","v":""},{"$f":"IFERROR(Table_Data_Table_1[[#This Row],[Land\nResidual]]/Table_Data_Table_1[[#This Row],[Resid\nAcre]],\"\")","v":""},{"$f":"IFERROR(ROUND(Table_Data_Table_1[[#This Row],[Land\nResidual]]/Table_Data_Table_1[[#This Row],[Resid\nSq Ft]],2),\"\")","v":""},{"$f":"IF(Table_Data_Table_1[[#This Row],[Item ID]]=\"\",\"\",ROUND(DAYS360(Table_Data_Table_1[[#This Row],[Sale Date]],'Global Settings'!$H$5)/30,0))","v":""},{"$f":"IFERROR(IF(AND(Table_Data_Table_1[[#This Row],[Months To\nMid-Point]]<12.01,Table_Data_Table_1[[#This Row],[Months To\nMid-Point]]>-13),0,(Table_Data_Table_1[[#This Row],[Months To\nMid-Point]]*'Global Settings'!$H$6)),\"\")","v":""},{"$f":"IFERROR(Table_Data_Table_1[[#This Row],[Land\nResidual]]*(Table_Data_Table_1[[#This Row],[Time\nAdjust]]+1),\"\")","v":""},{"$f":"IFERROR(Table_Data_Table_1[[#This Row],[Adjusted\nSale Price]]/Table_Data_Table_1[[#This Row],[Resid\nAcre]],\"\")","v":""},{"$f":"IFERROR(ROUND(Table_Data_Table_1[[#This Row],[Adjusted\nSale Price]]/Table_Data_Table_1[[#This Row],[Resid\nSq Ft]],2),\"\")","v":""},{"$f":"IFERROR(IF(VLOOKUP(Table_Data_Table_1[[#This Row],[Item ID]],DataTable,11,FALSE)=0,\"N/A\",Table_Data_Table_1[[#This Row],[Adjusted\nSale Price]]/VLOOKUP(Table_Data_Table_1[[#This Row],[Item ID]],DataTable,11,FALSE)),\"\")","v":""},{"$f":"IF(IFERROR(VLOOKUP(Table_Data_Table_1[[#This Row],[Item ID]],DataTable,17,FALSE),\"\")=0,\"\",IFERROR(VLOOKUP(Table_Data_Table_1[[#This Row],[Item ID]],DataTable,17,FALSE),\"\"))","v":""}]
["",null,{"$f":"IF(Table_Data_Table_1[[#This Row],[Item ID]]=\"\",\"\",IFERROR(VLOOKUP(Table_Data_Table_1[[#This Row],[Item ID]],DataTable,16,FALSE),\"\"))","v":""},null,null,null,null,{"$f":"IF(Table_Data_Table_1[[#This Row],[Valuation Method]]=\"Vacant\",VLOOKUP(Table_Data_Table_1[[#This Row],[Item ID]],DataTable,6,FALSE)-VLOOKUP(Table_Data_Table_1[[#This Row],[Item ID]],DataTable,13,FALSE),IF(Table_Data_Table_1[[#This Row],[Valuation Method]]=\"Abstraction\",VLOOKUP(Table_Data_Table_1[[#This Row],[Item ID]],DataTable,6,FALSE)-VLOOKUP(Table_Data_Table_1[[#This Row],[Item ID]],DataTable,13,FALSE),IF(Table_Data_Table_1[[#This Row],[Valuation Method]]=\"Allocation\",VLOOKUP(Table_Data_Table_1[[#This Row],[Item ID]],DataTable,6,FALSE)*I514,\"\")))","v":""},{"$f":"IF(Table_Data_Table_1[[#This Row],[Valuation Method]]=\"Vacant\",\"N/A\",IF(Table_Data_Table_1[[#This Row],[Valuation Method]]=\"Abstraction\",Table_Data_Table_1[[#This Row],[Land\nResidual]]/VLOOKUP(Table_Data_Table_1[[#This Row],[Item ID]],DataTable,6,FALSE),IF(Table_Data_Table_1[[#This Row],[Valuation Method]]=\"Allocation\",'Global Settings'!$H$20,\"\")))","v":""},{"$f":"IFERROR(ROUND(Table_Data_Table_1[[#This Row],[Resid\nSq Ft]]/43560,3),\"\")","v":""},{"$f":"IF(Table_Data_Table_1[[#This Row],[Item ID]]=\"\",\"\",IFERROR(VLOOKUP(Table_Data_Table_1[[#This Row],[Item ID]],DataTable,10,FALSE)-VLOOKUP(Table_Data_Table_1[[#This Row],[Item ID]],DataTable,12,FALSE),\"\"))","v":""},{"$f":"IFERROR(Table_Data_Table_1[[#This Row],[Land\nResidual]]/Table_Data_Table_1[[#This Row],[Resid\nAcre]],\"\")","v":""},{"$f":"IFERROR(ROUND(Table_Data_Table_1[[#This Row],[Land\nResidual]]/Table_Data_Table_1[[#This Row],[Resid\nSq Ft]],2),\"\")","v":""},{"$f":"IF(Table_Data_Table_1[[#This Row],[Item ID]]=\"\",\"\",ROUND(DAYS360(Table_Data_Table_1[[#This Row],[Sale Date]],'Global Settings'!$H$5)/30,0))","v":""},{"$f":"IFERROR(IF(AND(Table_Data_Table_1[[#This Row],[Months To\nMid-Point]]<12.01,Table_Data_Table_1[[#This Row],[Months To\nMid-Point]]>-13),0,(Table_Data_Table_1[[#This Row],[Months To\nMid-Point]]*'Global Settings'!$H$6)),\"\")","v":""},{"$f":"IFERROR(Table_Data_Table_1[[#This Row],[Land\nResidual]]*(Table_Data_Table_1[[#This Row],[Time\nAdjust]]+1),\"\")","v":""},{"$f":"IFERROR(Table_Data_Table_1[[#This Row],[Adjusted\nSale Price]]/Table_Data_Table_1[[#This Row],[Resid\nAcre]],\"\")","v":""},{"$f":"IFERROR(ROUND(Table_Data_Table_1[[#This Row],[Adjusted\nSale Price]]/Table_Data_Table_1[[#This Row],[Resid\nSq Ft]],2),\"\")","v":""},{"$f":"IFERROR(IF(VLOOKUP(Table_Data_Table_1[[#This Row],[Item ID]],DataTable,11,FALSE)=0,\"N/A\",Table_Data_Table_1[[#This Row],[Adjusted\nSale Price]]/VLOOKUP(Table_Data_Table_1[[#This Row],[Item ID]],DataTable,11,FALSE)),\"\")","v":""},{"$f":"IF(IFERROR(VLOOKUP(Table_Data_Table_1[[#This Row],[Item ID]],DataTable,17,FALSE),\"\")=0,\"\",IFERROR(VLOOKUP(Table_Data_Table_1[[#This Row],[Item ID]],DataTable,17,FALSE),\"\"))","v":""}]
["",null,{"$f":"IF(Table_Data_Table_1[[#This Row],[Item ID]]=\"\",\"\",IFERROR(VLOOKUP(Table_Data_Table_1[[#This Row],[Item ID]],DataTable,16,FALSE),\"\"))","v":""},null,null,null,null,{"$f":"IF(Table_Data_Table_1[[#This Row],[Valuation Method]]=\"Vacant\",VLOOKUP(Table_Data_Table_1[[#This Row],[Item ID]],DataTable,6,FALSE)-VLOOKUP(Table_Data_Table_1[[#This Row],[Item ID]],DataTable,13,FALSE),IF(Table_Data_Table_1[[#This Row],[Valuation Method]]=\"Abstraction\",VLOOKUP(Table_Data_Table_1[[#This Row],[Item ID]],DataTable,6,FALSE)-VLOOKUP(Table_Data_Table_1[[#This Row],[Item ID]],DataTable,13,FALSE),IF(Table_Data_Table_1[[#This Row],[Valuation Method]]=\"Allocation\",VLOOKUP(Table_Data_Table_1[[#This Row],[Item ID]],DataTable,6,FALSE)*I515,\"\")))","v":""},{"$f":"IF(Table_Data_Table_1[[#This Row],[Valuation Method]]=\"Vacant\",\"N/A\",IF(Table_Data_Table_1[[#This Row],[Valuation Method]]=\"Abstraction\",Table_Data_Table_1[[#This Row],[Land\nResidual]]/VLOOKUP(Table_Data_Table_1[[#This Row],[Item ID]],DataTable,6,FALSE),IF(Table_Data_Table_1[[#This Row],[Valuation Method]]=\"Allocation\",'Global Settings'!$H$20,\"\")))","v":""},{"$f":"IFERROR(ROUND(Table_Data_Table_1[[#This Row],[Resid\nSq Ft]]/43560,3),\"\")","v":""},{"$f":"IF(Table_Data_Table_1[[#This Row],[Item ID]]=\"\",\"\",IFERROR(VLOOKUP(Table_Data_Table_1[[#This Row],[Item ID]],DataTable,10,FALSE)-VLOOKUP(Table_Data_Table_1[[#This Row],[Item ID]],DataTable,12,FALSE),\"\"))","v":""},{"$f":"IFERROR(Table_Data_Table_1[[#This Row],[Land\nResidual]]/Table_Data_Table_1[[#This Row],[Resid\nAcre]],\"\")","v":""},{"$f":"IFERROR(ROUND(Table_Data_Table_1[[#This Row],[Land\nResidual]]/Table_Data_Table_1[[#This Row],[Resid\nSq Ft]],2),\"\")","v":""},{"$f":"IF(Table_Data_Table_1[[#This Row],[Item ID]]=\"\",\"\",ROUND(DAYS360(Table_Data_Table_1[[#This Row],[Sale Date]],'Global Settings'!$H$5)/30,0))","v":""},{"$f":"IFERROR(IF(AND(Table_Data_Table_1[[#This Row],[Months To\nMid-Point]]<12.01,Table_Data_Table_1[[#This Row],[Months To\nMid-Point]]>-13),0,(Table_Data_Table_1[[#This Row],[Months To\nMid-Point]]*'Global Settings'!$H$6)),\"\")","v":""},{"$f":"IFERROR(Table_Data_Table_1[[#This Row],[Land\nResidual]]*(Table_Data_Table_1[[#This Row],[Time\nAdjust]]+1),\"\")","v":""},{"$f":"IFERROR(Table_Data_Table_1[[#This Row],[Adjusted\nSale Price]]/Table_Data_Table_1[[#This Row],[Resid\nAcre]],\"\")","v":""},{"$f":"IFERROR(ROUND(Table_Data_Table_1[[#This Row],[Adjusted\nSale Price]]/Table_Data_Table_1[[#This Row],[Resid\nSq Ft]],2),\"\")","v":""},{"$f":"IFERROR(IF(VLOOKUP(Table_Data_Table_1[[#This Row],[Item ID]],DataTable,11,FALSE)=0,\"N/A\",Table_Data_Table_1[[#This Row],[Adjusted\nSale Price]]/VLOOKUP(Table_Data_Table_1[[#This Row],[Item ID]],DataTable,11,FALSE)),\"\")","v":""},{"$f":"IF(IFERROR(VLOOKUP(Table_Data_Table_1[[#This Row],[Item ID]],DataTable,17,FALSE),\"\")=0,\"\",IFERROR(VLOOKUP(Table_Data_Table_1[[#This Row],[Item ID]],DataTable,17,FALSE),\"\"))","v":""}]
["",null,{"$f":"IF(Table_Data_Table_1[[#This Row],[Item ID]]=\"\",\"\",IFERROR(VLOOKUP(Table_Data_Table_1[[#This Row],[Item ID]],DataTable,16,FALSE),\"\"))","v":""},null,null,null,null,{"$f":"IF(Table_Data_Table_1[[#This Row],[Valuation Method]]=\"Vacant\",VLOOKUP(Table_Data_Table_1[[#This Row],[Item ID]],DataTable,6,FALSE)-VLOOKUP(Table_Data_Table_1[[#This Row],[Item ID]],DataTable,13,FALSE),IF(Table_Data_Table_1[[#This Row],[Valuation Method]]=\"Abstraction\",VLOOKUP(Table_Data_Table_1[[#This Row],[Item ID]],DataTable,6,FALSE)-VLOOKUP(Table_Data_Table_1[[#This Row],[Item ID]],DataTable,13,FALSE),IF(Table_Data_Table_1[[#This Row],[Valuation Method]]=\"Allocation\",VLOOKUP(Table_Data_Table_1[[#This Row],[Item ID]],DataTable,6,FALSE)*I516,\"\")))","v":""},{"$f":"IF(Table_Data_Table_1[[#This Row],[Valuation Method]]=\"Vacant\",\"N/A\",IF(Table_Data_Table_1[[#This Row],[Valuation Method]]=\"Abstraction\",Table_Data_Table_1[[#This Row],[Land\nResidual]]/VLOOKUP(Table_Data_Table_1[[#This Row],[Item ID]],DataTable,6,FALSE),IF(Table_Data_Table_1[[#This Row],[Valuation Method]]=\"Allocation\",'Global Settings'!$H$20,\"\")))","v":""},{"$f":"IFERROR(ROUND(Table_Data_Table_1[[#This Row],[Resid\nSq Ft]]/43560,3),\"\")","v":""},{"$f":"IF(Table_Data_Table_1[[#This Row],[Item ID]]=\"\",\"\",IFERROR(VLOOKUP(Table_Data_Table_1[[#This Row],[Item ID]],DataTable,10,FALSE)-VLOOKUP(Table_Data_Table_1[[#This Row],[Item ID]],DataTable,12,FALSE),\"\"))","v":""},{"$f":"IFERROR(Table_Data_Table_1[[#This Row],[Land\nResidual]]/Table_Data_Table_1[[#This Row],[Resid\nAcre]],\"\")","v":""},{"$f":"IFERROR(ROUND(Table_Data_Table_1[[#This Row],[Land\nResidual]]/Table_Data_Table_1[[#This Row],[Resid\nSq Ft]],2),\"\")","v":""},{"$f":"IF(Table_Data_Table_1[[#This Row],[Item ID]]=\"\",\"\",ROUND(DAYS360(Table_Data_Table_1[[#This Row],[Sale Date]],'Global Settings'!$H$5)/30,0))","v":""},{"$f":"IFERROR(IF(AND(Table_Data_Table_1[[#This Row],[Months To\nMid-Point]]<12.01,Table_Data_Table_1[[#This Row],[Months To\nMid-Point]]>-13),0,(Table_Data_Table_1[[#This Row],[Months To\nMid-Point]]*'Global Settings'!$H$6)),\"\")","v":""},{"$f":"IFERROR(Table_Data_Table_1[[#This Row],[Land\nResidual]]*(Table_Data_Table_1[[#This Row],[Time\nAdjust]]+1),\"\")","v":""},{"$f":"IFERROR(Table_Data_Table_1[[#This Row],[Adjusted\nSale Price]]/Table_Data_Table_1[[#This Row],[Resid\nAcre]],\"\")","v":""},{"$f":"IFERROR(ROUND(Table_Data_Table_1[[#This Row],[Adjusted\nSale Price]]/Table_Data_Table_1[[#This Row],[Resid\nSq Ft]],2),\"\")","v":""},{"$f":"IFERROR(IF(VLOOKUP(Table_Data_Table_1[[#This Row],[Item ID]],DataTable,11,FALSE)=0,\"N/A\",Table_Data_Table_1[[#This Row],[Adjusted\nSale Price]]/VLOOKUP(Table_Data_Table_1[[#This Row],[Item ID]],DataTable,11,FALSE)),\"\")","v":""},{"$f":"IF(IFERROR(VLOOKUP(Table_Data_Table_1[[#This Row],[Item ID]],DataTable,17,FALSE),\"\")=0,\"\",IFERROR(VLOOKUP(Table_Data_Table_1[[#This Row],[Item ID]],DataTable,17,FALSE),\"\"))","v":""}]
["",null,{"$f":"IF(Table_Data_Table_1[[#This Row],[Item ID]]=\"\",\"\",IFERROR(VLOOKUP(Table_Data_Table_1[[#This Row],[Item ID]],DataTable,16,FALSE),\"\"))","v":""},null,null,null,null,{"$f":"IF(Table_Data_Table_1[[#This Row],[Valuation Method]]=\"Vacant\",VLOOKUP(Table_Data_Table_1[[#This Row],[Item ID]],DataTable,6,FALSE)-VLOOKUP(Table_Data_Table_1[[#This Row],[Item ID]],DataTable,13,FALSE),IF(Table_Data_Table_1[[#This Row],[Valuation Method]]=\"Abstraction\",VLOOKUP(Table_Data_Table_1[[#This Row],[Item ID]],DataTable,6,FALSE)-VLOOKUP(Table_Data_Table_1[[#This Row],[Item ID]],DataTable,13,FALSE),IF(Table_Data_Table_1[[#This Row],[Valuation Method]]=\"Allocation\",VLOOKUP(Table_Data_Table_1[[#This Row],[Item ID]],DataTable,6,FALSE)*I517,\"\")))","v":""},{"$f":"IF(Table_Data_Table_1[[#This Row],[Valuation Method]]=\"Vacant\",\"N/A\",IF(Table_Data_Table_1[[#This Row],[Valuation Method]]=\"Abstraction\",Table_Data_Table_1[[#This Row],[Land\nResidual]]/VLOOKUP(Table_Data_Table_1[[#This Row],[Item ID]],DataTable,6,FALSE),IF(Table_Data_Table_1[[#This Row],[Valuation Method]]=\"Allocation\",'Global Settings'!$H$20,\"\")))","v":""},{"$f":"IFERROR(ROUND(Table_Data_Table_1[[#This Row],[Resid\nSq Ft]]/43560,3),\"\")","v":""},{"$f":"IF(Table_Data_Table_1[[#This Row],[Item ID]]=\"\",\"\",IFERROR(VLOOKUP(Table_Data_Table_1[[#This Row],[Item ID]],DataTable,10,FALSE)-VLOOKUP(Table_Data_Table_1[[#This Row],[Item ID]],DataTable,12,FALSE),\"\"))","v":""},{"$f":"IFERROR(Table_Data_Table_1[[#This Row],[Land\nResidual]]/Table_Data_Table_1[[#This Row],[Resid\nAcre]],\"\")","v":""},{"$f":"IFERROR(ROUND(Table_Data_Table_1[[#This Row],[Land\nResidual]]/Table_Data_Table_1[[#This Row],[Resid\nSq Ft]],2),\"\")","v":""},{"$f":"IF(Table_Data_Table_1[[#This Row],[Item ID]]=\"\",\"\",ROUND(DAYS360(Table_Data_Table_1[[#This Row],[Sale Date]],'Global Settings'!$H$5)/30,0))","v":""},{"$f":"IFERROR(IF(AND(Table_Data_Table_1[[#This Row],[Months To\nMid-Point]]<12.01,Table_Data_Table_1[[#This Row],[Months To\nMid-Point]]>-13),0,(Table_Data_Table_1[[#This Row],[Months To\nMid-Point]]*'Global Settings'!$H$6)),\"\")","v":""},{"$f":"IFERROR(Table_Data_Table_1[[#This Row],[Land\nResidual]]*(Table_Data_Table_1[[#This Row],[Time\nAdjust]]+1),\"\")","v":""},{"$f":"IFERROR(Table_Data_Table_1[[#This Row],[Adjusted\nSale Price]]/Table_Data_Table_1[[#This Row],[Resid\nAcre]],\"\")","v":""},{"$f":"IFERROR(ROUND(Table_Data_Table_1[[#This Row],[Adjusted\nSale Price]]/Table_Data_Table_1[[#This Row],[Resid\nSq Ft]],2),\"\")","v":""},{"$f":"IFERROR(IF(VLOOKUP(Table_Data_Table_1[[#This Row],[Item ID]],DataTable,11,FALSE)=0,\"N/A\",Table_Data_Table_1[[#This Row],[Adjusted\nSale Price]]/VLOOKUP(Table_Data_Table_1[[#This Row],[Item ID]],DataTable,11,FALSE)),\"\")","v":""},{"$f":"IF(IFERROR(VLOOKUP(Table_Data_Table_1[[#This Row],[Item ID]],DataTable,17,FALSE),\"\")=0,\"\",IFERROR(VLOOKUP(Table_Data_Table_1[[#This Row],[Item ID]],DataTable,17,FALSE),\"\"))","v":""}]
["",null,{"$f":"IF(Table_Data_Table_1[[#This Row],[Item ID]]=\"\",\"\",IFERROR(VLOOKUP(Table_Data_Table_1[[#This Row],[Item ID]],DataTable,16,FALSE),\"\"))","v":""},null,null,null,null,{"$f":"IF(Table_Data_Table_1[[#This Row],[Valuation Method]]=\"Vacant\",VLOOKUP(Table_Data_Table_1[[#This Row],[Item ID]],DataTable,6,FALSE)-VLOOKUP(Table_Data_Table_1[[#This Row],[Item ID]],DataTable,13,FALSE),IF(Table_Data_Table_1[[#This Row],[Valuation Method]]=\"Abstraction\",VLOOKUP(Table_Data_Table_1[[#This Row],[Item ID]],DataTable,6,FALSE)-VLOOKUP(Table_Data_Table_1[[#This Row],[Item ID]],DataTable,13,FALSE),IF(Table_Data_Table_1[[#This Row],[Valuation Method]]=\"Allocation\",VLOOKUP(Table_Data_Table_1[[#This Row],[Item ID]],DataTable,6,FALSE)*I518,\"\")))","v":""},{"$f":"IF(Table_Data_Table_1[[#This Row],[Valuation Method]]=\"Vacant\",\"N/A\",IF(Table_Data_Table_1[[#This Row],[Valuation Method]]=\"Abstraction\",Table_Data_Table_1[[#This Row],[Land\nResidual]]/VLOOKUP(Table_Data_Table_1[[#This Row],[Item ID]],DataTable,6,FALSE),IF(Table_Data_Table_1[[#This Row],[Valuation Method]]=\"Allocation\",'Global Settings'!$H$20,\"\")))","v":""},{"$f":"IFERROR(ROUND(Table_Data_Table_1[[#This Row],[Resid\nSq Ft]]/43560,3),\"\")","v":""},{"$f":"IF(Table_Data_Table_1[[#This Row],[Item ID]]=\"\",\"\",IFERROR(VLOOKUP(Table_Data_Table_1[[#This Row],[Item ID]],DataTable,10,FALSE)-VLOOKUP(Table_Data_Table_1[[#This Row],[Item ID]],DataTable,12,FALSE),\"\"))","v":""},{"$f":"IFERROR(Table_Data_Table_1[[#This Row],[Land\nResidual]]/Table_Data_Table_1[[#This Row],[Resid\nAcre]],\"\")","v":""},{"$f":"IFERROR(ROUND(Table_Data_Table_1[[#This Row],[Land\nResidual]]/Table_Data_Table_1[[#This Row],[Resid\nSq Ft]],2),\"\")","v":""},{"$f":"IF(Table_Data_Table_1[[#This Row],[Item ID]]=\"\",\"\",ROUND(DAYS360(Table_Data_Table_1[[#This Row],[Sale Date]],'Global Settings'!$H$5)/30,0))","v":""},{"$f":"IFERROR(IF(AND(Table_Data_Table_1[[#This Row],[Months To\nMid-Point]]<12.01,Table_Data_Table_1[[#This Row],[Months To\nMid-Point]]>-13),0,(Table_Data_Table_1[[#This Row],[Months To\nMid-Point]]*'Global Settings'!$H$6)),\"\")","v":""},{"$f":"IFERROR(Table_Data_Table_1[[#This Row],[Land\nResidual]]*(Table_Data_Table_1[[#This Row],[Time\nAdjust]]+1),\"\")","v":""},{"$f":"IFERROR(Table_Data_Table_1[[#This Row],[Adjusted\nSale Price]]/Table_Data_Table_1[[#This Row],[Resid\nAcre]],\"\")","v":""},{"$f":"IFERROR(ROUND(Table_Data_Table_1[[#This Row],[Adjusted\nSale Price]]/Table_Data_Table_1[[#This Row],[Resid\nSq Ft]],2),\"\")","v":""},{"$f":"IFERROR(IF(VLOOKUP(Table_Data_Table_1[[#This Row],[Item ID]],DataTable,11,FALSE)=0,\"N/A\",Table_Data_Table_1[[#This Row],[Adjusted\nSale Price]]/VLOOKUP(Table_Data_Table_1[[#This Row],[Item ID]],DataTable,11,FALSE)),\"\")","v":""},{"$f":"IF(IFERROR(VLOOKUP(Table_Data_Table_1[[#This Row],[Item ID]],DataTable,17,FALSE),\"\")=0,\"\",IFERROR(VLOOKUP(Table_Data_Table_1[[#This Row],[Item ID]],DataTable,17,FALSE),\"\"))","v":""}]
["",null,{"$f":"IF(Table_Data_Table_1[[#This Row],[Item ID]]=\"\",\"\",IFERROR(VLOOKUP(Table_Data_Table_1[[#This Row],[Item ID]],DataTable,16,FALSE),\"\"))","v":""},null,null,null,null,{"$f":"IF(Table_Data_Table_1[[#This Row],[Valuation Method]]=\"Vacant\",VLOOKUP(Table_Data_Table_1[[#This Row],[Item ID]],DataTable,6,FALSE)-VLOOKUP(Table_Data_Table_1[[#This Row],[Item ID]],DataTable,13,FALSE),IF(Table_Data_Table_1[[#This Row],[Valuation Method]]=\"Abstraction\",VLOOKUP(Table_Data_Table_1[[#This Row],[Item ID]],DataTable,6,FALSE)-VLOOKUP(Table_Data_Table_1[[#This Row],[Item ID]],DataTable,13,FALSE),IF(Table_Data_Table_1[[#This Row],[Valuation Method]]=\"Allocation\",VLOOKUP(Table_Data_Table_1[[#This Row],[Item ID]],DataTable,6,FALSE)*I519,\"\")))","v":""},{"$f":"IF(Table_Data_Table_1[[#This Row],[Valuation Method]]=\"Vacant\",\"N/A\",IF(Table_Data_Table_1[[#This Row],[Valuation Method]]=\"Abstraction\",Table_Data_Table_1[[#This Row],[Land\nResidual]]/VLOOKUP(Table_Data_Table_1[[#This Row],[Item ID]],DataTable,6,FALSE),IF(Table_Data_Table_1[[#This Row],[Valuation Method]]=\"Allocation\",'Global Settings'!$H$20,\"\")))","v":""},{"$f":"IFERROR(ROUND(Table_Data_Table_1[[#This Row],[Resid\nSq Ft]]/43560,3),\"\")","v":""},{"$f":"IF(Table_Data_Table_1[[#This Row],[Item ID]]=\"\",\"\",IFERROR(VLOOKUP(Table_Data_Table_1[[#This Row],[Item ID]],DataTable,10,FALSE)-VLOOKUP(Table_Data_Table_1[[#This Row],[Item ID]],DataTable,12,FALSE),\"\"))","v":""},{"$f":"IFERROR(Table_Data_Table_1[[#This Row],[Land\nResidual]]/Table_Data_Table_1[[#This Row],[Resid\nAcre]],\"\")","v":""},{"$f":"IFERROR(ROUND(Table_Data_Table_1[[#This Row],[Land\nResidual]]/Table_Data_Table_1[[#This Row],[Resid\nSq Ft]],2),\"\")","v":""},{"$f":"IF(Table_Data_Table_1[[#This Row],[Item ID]]=\"\",\"\",ROUND(DAYS360(Table_Data_Table_1[[#This Row],[Sale Date]],'Global Settings'!$H$5)/30,0))","v":""},{"$f":"IFERROR(IF(AND(Table_Data_Table_1[[#This Row],[Months To\nMid-Point]]<12.01,Table_Data_Table_1[[#This Row],[Months To\nMid-Point]]>-13),0,(Table_Data_Table_1[[#This Row],[Months To\nMid-Point]]*'Global Settings'!$H$6)),\"\")","v":""},{"$f":"IFERROR(Table_Data_Table_1[[#This Row],[Land\nResidual]]*(Table_Data_Table_1[[#This Row],[Time\nAdjust]]+1),\"\")","v":""},{"$f":"IFERROR(Table_Data_Table_1[[#This Row],[Adjusted\nSale Price]]/Table_Data_Table_1[[#This Row],[Resid\nAcre]],\"\")","v":""},{"$f":"IFERROR(ROUND(Table_Data_Table_1[[#This Row],[Adjusted\nSale Price]]/Table_Data_Table_1[[#This Row],[Resid\nSq Ft]],2),\"\")","v":""},{"$f":"IFERROR(IF(VLOOKUP(Table_Data_Table_1[[#This Row],[Item ID]],DataTable,11,FALSE)=0,\"N/A\",Table_Data_Table_1[[#This Row],[Adjusted\nSale Price]]/VLOOKUP(Table_Data_Table_1[[#This Row],[Item ID]],DataTable,11,FALSE)),\"\")","v":""},{"$f":"IF(IFERROR(VLOOKUP(Table_Data_Table_1[[#This Row],[Item ID]],DataTable,17,FALSE),\"\")=0,\"\",IFERROR(VLOOKUP(Table_Data_Table_1[[#This Row],[Item ID]],DataTable,17,FALSE),\"\"))","v":""}]
["",null,{"$f":"IF(Table_Data_Table_1[[#This Row],[Item ID]]=\"\",\"\",IFERROR(VLOOKUP(Table_Data_Table_1[[#This Row],[Item ID]],DataTable,16,FALSE),\"\"))","v":""},null,null,null,null,{"$f":"IF(Table_Data_Table_1[[#This Row],[Valuation Method]]=\"Vacant\",VLOOKUP(Table_Data_Table_1[[#This Row],[Item ID]],DataTable,6,FALSE)-VLOOKUP(Table_Data_Table_1[[#This Row],[Item ID]],DataTable,13,FALSE),IF(Table_Data_Table_1[[#This Row],[Valuation Method]]=\"Abstraction\",VLOOKUP(Table_Data_Table_1[[#This Row],[Item ID]],DataTable,6,FALSE)-VLOOKUP(Table_Data_Table_1[[#This Row],[Item ID]],DataTable,13,FALSE),IF(Table_Data_Table_1[[#This Row],[Valuation Method]]=\"Allocation\",VLOOKUP(Table_Data_Table_1[[#This Row],[Item ID]],DataTable,6,FALSE)*I520,\"\")))","v":""},{"$f":"IF(Table_Data_Table_1[[#This Row],[Valuation Method]]=\"Vacant\",\"N/A\",IF(Table_Data_Table_1[[#This Row],[Valuation Method]]=\"Abstraction\",Table_Data_Table_1[[#This Row],[Land\nResidual]]/VLOOKUP(Table_Data_Table_1[[#This Row],[Item ID]],DataTable,6,FALSE),IF(Table_Data_Table_1[[#This Row],[Valuation Method]]=\"Allocation\",'Global Settings'!$H$20,\"\")))","v":""},{"$f":"IFERROR(ROUND(Table_Data_Table_1[[#This Row],[Resid\nSq Ft]]/43560,3),\"\")","v":""},{"$f":"IF(Table_Data_Table_1[[#This Row],[Item ID]]=\"\",\"\",IFERROR(VLOOKUP(Table_Data_Table_1[[#This Row],[Item ID]],DataTable,10,FALSE)-VLOOKUP(Table_Data_Table_1[[#This Row],[Item ID]],DataTable,12,FALSE),\"\"))","v":""},{"$f":"IFERROR(Table_Data_Table_1[[#This Row],[Land\nResidual]]/Table_Data_Table_1[[#This Row],[Resid\nAcre]],\"\")","v":""},{"$f":"IFERROR(ROUND(Table_Data_Table_1[[#This Row],[Land\nResidual]]/Table_Data_Table_1[[#This Row],[Resid\nSq Ft]],2),\"\")","v":""},{"$f":"IF(Table_Data_Table_1[[#This Row],[Item ID]]=\"\",\"\",ROUND(DAYS360(Table_Data_Table_1[[#This Row],[Sale Date]],'Global Settings'!$H$5)/30,0))","v":""},{"$f":"IFERROR(IF(AND(Table_Data_Table_1[[#This Row],[Months To\nMid-Point]]<12.01,Table_Data_Table_1[[#This Row],[Months To\nMid-Point]]>-13),0,(Table_Data_Table_1[[#This Row],[Months To\nMid-Point]]*'Global Settings'!$H$6)),\"\")","v":""},{"$f":"IFERROR(Table_Data_Table_1[[#This Row],[Land\nResidual]]*(Table_Data_Table_1[[#This Row],[Time\nAdjust]]+1),\"\")","v":""},{"$f":"IFERROR(Table_Data_Table_1[[#This Row],[Adjusted\nSale Price]]/Table_Data_Table_1[[#This Row],[Resid\nAcre]],\"\")","v":""},{"$f":"IFERROR(ROUND(Table_Data_Table_1[[#This Row],[Adjusted\nSale Price]]/Table_Data_Table_1[[#This Row],[Resid\nSq Ft]],2),\"\")","v":""},{"$f":"IFERROR(IF(VLOOKUP(Table_Data_Table_1[[#This Row],[Item ID]],DataTable,11,FALSE)=0,\"N/A\",Table_Data_Table_1[[#This Row],[Adjusted\nSale Price]]/VLOOKUP(Table_Data_Table_1[[#This Row],[Item ID]],DataTable,11,FALSE)),\"\")","v":""},{"$f":"IF(IFERROR(VLOOKUP(Table_Data_Table_1[[#This Row],[Item ID]],DataTable,17,FALSE),\"\")=0,\"\",IFERROR(VLOOKUP(Table_Data_Table_1[[#This Row],[Item ID]],DataTable,17,FALSE),\"\"))","v":""}]

{"sheet":"PlotData","index":5,"n_rows":501,"n_cols":15,"rows_kept":501,"cut":false,"hidden":true,"merged":[]}
["Item ID","Valuation\nMethod","Plot\nResidual SF","Plot\nUsedPPSF","Plot\nNotUsedPPSF","Plot\nVacantPPSF","Plot\nAbstractedPPSF","Plot\nAllocatedPPSF",null,"Plot\nResidual Ac","Plot\nUsedPPAC","Plot\nNotUsedPPAC","Plot\nVacantPPAC","Plot\nAbstractedPPAC","Plot\nAllocatedPPAC"]
[{"$f":"Item_ID","v":"5-26Vac4848-325"},{"$f":"Valuation_Method","v":"Vacant"},{"$f":"VLOOKUP($A2,Analysis!$A:$U,11,FALSE)","v":57716.999999999993},{"$f":"IF(VLOOKUP($A2,Analysis!$A:$U,3,FALSE)=1,VLOOKUP($A2,Analysis!$A:$U,18,FALSE),#N/A)","v":5.63},{"$f":"IF(ISERROR($D2),VLOOKUP($A2,Analysis!$A:$U,18,FALSE),#N/A)","v":{"$error":"#N/A"}},{"$f":"IF($B2=\"Vacant\",$D2,#N/A)","v":5.63},{"$f":"IF($B2=\"Abstraction\",$D2,#N/A)","v":{"$error":"#N/A"}},{"$f":"IF($B2=\"Allocation\",$D2,#N/A)","v":{"$error":"#N/A"}},null,{"$f":"VLOOKUP($A2,Analysis!$A:$U,10,FALSE)","v":1.325},{"$f":"IF(VLOOKUP($A2,Analysis!$A:$U,3,FALSE)=1,ROUND(VLOOKUP($A2,Analysis!$A:$U,17,FALSE),0),#N/A)","v":245283},{"$f":"IF(ISERROR($K2),ROUND(VLOOKUP($A2,Analysis!$A:$U,17,FALSE),0),#N/A)","v":{"$error":"#N/A"}},{"$f":"IF($B2=\"Vacant\",$K2,#N/A)","v":245283},{"$f":"IF($B2=\"Abstraction\",$K2,#N/A)","v":{"$error":"#N/A"}},{"$f":"IF($B2=\"Allocation\",$K2,#N/A)","v":{"$error":"#N/A"}}]
["0-01Abs4861-122","Abstraction",{"$f":"VLOOKUP($A3,Analysis!$A:$U,11,FALSE)","v":43560},{"$f":"IF(VLOOKUP($A3,Analysis!$A:$U,3,FALSE)=1,VLOOKUP($A3,Analysis!$A:$U,18,FALSE),#N/A)","v":4.68},{"$f":"IF(ISERROR($D3),VLOOKUP($A3,Analysis!$A:$U,18,FALSE),#N/A)","v":{"$error":"#N/A"}},{"$f":"IF($B3=\"Vacant\",$D3,#N/A)","v":{"$error":"#N/A"}},{"$f":"IF($B3=\"Abstraction\",$D3,#N/A)","v":4.68},{"$f":"IF($B3=\"Allocation\",$D3,#N/A)","v":{"$error":"#N/A"}},null,{"$f":"VLOOKUP($A3,Analysis!$A:$U,10,FALSE)","v":1},{"$f":"IF(VLOOKUP($A3,Analysis!$A:$U,3,FALSE)=1,ROUND(VLOOKUP($A3,Analysis!$A:$U,17,FALSE),0),#N/A)","v":203775},{"$f":"IF(ISERROR($K3),ROUND(VLOOKUP($A3,Analysis!$A:$U,17,FALSE),0),#N/A)","v":{"$error":"#N/A"}},{"$f":"IF($B3=\"Vacant\",$K3,#N/A)","v":{"$error":"#N/A"}},{"$f":"IF($B3=\"Abstraction\",$K3,#N/A)","v":203775},{"$f":"IF($B3=\"Allocation\",$K3,#N/A)","v":{"$error":"#N/A"}}]
["0-01All4861-122","Allocation",{"$f":"VLOOKUP($A4,Analysis!$A:$U,11,FALSE)","v":43560},{"$f":"IF(VLOOKUP($A4,Analysis!$A:$U,3,FALSE)=1,VLOOKUP($A4,Analysis!$A:$U,18,FALSE),#N/A)","v":11.37},{"$f":"IF(ISERROR($D4),VLOOKUP($A4,Analysis!$A:$U,18,FALSE),#N/A)","v":{"$error":"#N/A"}},{"$error":"#N/A"},{"$error":"#N/A"},11.37,null,{"$f":"VLOOKUP($A4,Analysis!$A:$U,10,FALSE)","v":1},{"$f":"IF(VLOOKUP($A4,Analysis!$A:$U,3,FALSE)=1,ROUND(VLOOKUP($A4,Analysis!$A:$U,17,FALSE),0),#N/A)","v":495268},{"$f":"IF(ISERROR($K4),ROUND(VLOOKUP($A4,Analysis!$A:$U,17,FALSE),0),#N/A)","v":{"$error":"#N/A"}},{"$error":"#N/A"},{"$error":"#N/A"},495268]
["0-70Vac2138-450","Vacant",{"$f":"VLOOKUP($A5,Analysis!$A:$U,11,FALSE)","v":78233.760000000009},{"$f":"IF(VLOOKUP($A5,Analysis!$A:$U,3,FALSE)=1,VLOOKUP($A5,Analysis!$A:$U,18,FALSE),#N/A)","v":6.61},{"$f":"IF(ISERROR($D5),VLOOKUP($A5,Analysis!$A:$U,18,FALSE),#N/A)","v":{"$error":"#N/A"}},6.61,{"$error":"#N/A"},{"$error":"#N/A"},null,{"$f":"VLOOKUP($A5,Analysis!$A:$U,10,FALSE)","v":1.796},{"$f":"IF(VLOOKUP($A5,Analysis!$A:$U,3,FALSE)=1,ROUND(VLOOKUP($A5,Analysis!$A:$U,17,FALSE),0),#N/A)","v":287870},{"$f":"IF(ISERROR($K5),ROUND(VLOOKUP($A5,Analysis!$A:$U,17,FALSE),0),#N/A)","v":{"$error":"#N/A"}},287870,{"$error":"#N/A"},{"$error":"#N/A"}]
["0-21Vac4006-650","Vacant",{"$f":"VLOOKUP($A6,Analysis!$A:$U,11,FALSE)","v":77101.200000000012},{"$f":"IF(VLOOKUP($A6,Analysis!$A:$U,3,FALSE)=1,VLOOKUP($A6,Analysis!$A:$U,18,FALSE),#N/A)","v":8.8699999999999992},{"$f":"IF(ISERROR($D6),VLOOKUP($A6,Analysis!$A:$U,18,FALSE),#N/A)","v":{"$error":"#N/A"}},8.8699999999999992,{"$error":"#N/A"},{"$error":"#N/A"},null,{"$f":"VLOOKUP($A6,Analysis!$A:$U,10,FALSE)","v":1.77},{"$f":"IF(VLOOKUP($A6,Analysis!$A:$U,3,FALSE)=1,ROUND(VLOOKUP($A6,Analysis!$A:$U,17,FALSE),0),#N/A)","v":386229},{"$f":"IF(ISERROR($K6),ROUND(VLOOKUP($A6,Analysis!$A:$U,17,FALSE),0),#N/A)","v":{"$error":"#N/A"}},386229,{"$error":"#N/A"},{"$error":"#N/A"}]
["5-12Vac-1391-595","Vacant",{"$f":"VLOOKUP($A7,Analysis!$A:$U,11,FALSE)","v":194321.16},{"$f":"IF(VLOOKUP($A7,Analysis!$A:$U,3,FALSE)=1,VLOOKUP($A7,Analysis!$A:$U,18,FALSE),#N/A)","v":4.07},{"$f":"IF(ISERROR($D7),VLOOKUP($A7,Analysis!$A:$U,18,FALSE),#N/A)","v":{"$error":"#N/A"}},4.07,{"$error":"#N/A"},{"$error":"#N/A"},null,{"$f":"VLOOKUP($A7,Analysis!$A:$U,10,FALSE)","v":4.4610000000000003},{"$f":"IF(VLOOKUP($A7,Analysis!$A:$U,3,FALSE)=1,ROUND(VLOOKUP($A7,Analysis!$A:$U,17,FALSE),0),#N/A)","v":177495},{"$f":"IF(ISERROR($K7),ROUND(VLOOKUP($A7,Analysis!$A:$U,17,FALSE),0),#N/A)","v":{"$error":"#N/A"}},177495,{"$error":"#N/A"},{"$error":"#N/A"}]
["5-42Vac-1340-485","Vacant",{"$f":"VLOOKUP($A8,Analysis!$A:$U,11,FALSE)","v":81457.200000000012},{"$f":"IF(VLOOKUP($A8,Analysis!$A:$U,3,FALSE)=1,VLOOKUP($A8,Analysis!$A:$U,18,FALSE),#N/A)","v":7.9},{"$f":"IF(ISERROR($D8),VLOOKUP($A8,Analysis!$A:$U,18,FALSE),#N/A)","v":{"$error":"#N/A"}},7.9,{"$error":"#N/A"},{"$error":"#N/A"},null,{"$f":"VLOOKUP($A8,Analysis!$A:$U,10,FALSE)","v":1.87},{"$f":"IF(VLOOKUP($A8,Analysis!$A:$U,3,FALSE)=1,ROUND(VLOOKUP($A8,Analysis!$A:$U,17,FALSE),0),#N/A)","v":344331},{"$f":"IF(ISERROR($K8),ROUND(VLOOKUP($A8,Analysis!$A:$U,17,FALSE),0),#N/A)","v":{"$error":"#N/A"}},344331,{"$error":"#N/A"},{"$error":"#N/A"}]
["5-00Abs1563-200","Abstraction",{"$f":"VLOOKUP($A9,Analysis!$A:$U,11,FALSE)","v":41131.839999999997},{"$f":"IF(VLOOKUP($A9,Analysis!$A:$U,3,FALSE)=1,VLOOKUP($A9,Analysis!$A:$U,18,FALSE),#N/A)","v":4.76},{"$f":"IF(ISERROR($D9),VLOOKUP($A9,Analysis!$A:$U,18,FALSE),#N/A)","v":{"$error":"#N/A"}},{"$error":"#N/A"},4.76,{"$error":"#N/A"},null,{"$f":"VLOOKUP($A9,Analysis!$A:$U,10,FALSE)","v":0.94399999999999995},{"$f":"IF(VLOOKUP($A9,Analysis!$A:$U,3,FALSE)=1,ROUND(VLOOKUP($A9,Analysis!$A:$U,17,FALSE),0),#N/A)","v":207512},{"$f":"IF(ISERROR($K9),ROUND(VLOOKUP($A9,Analysis!$A:$U,17,FALSE),0),#N/A)","v":{"$error":"#N/A"}},{"$error":"#N/A"},207512,{"$error":"#N/A"}]
["5-00All1563-200","Allocation",{"$f":"VLOOKUP($A10,Analysis!$A:$U,11,FALSE)","v":41131.839999999997},{"$f":"IF(VLOOKUP($A10,Analysis!$A:$U,3,FALSE)=1,VLOOKUP($A10,Analysis!$A:$U,18,FALSE),#N/A)","v":2.3199999999999998},{"$f":"IF(ISERROR($D10),VLOOKUP($A10,Analysis!$A:$U,18,FALSE),#N/A)","v":{"$error":"#N/A"}},{"$error":"#N/A"},{"$error":"#N/A"},2.3199999999999998,null,{"$f":"VLOOKUP($A10,Analysis!$A:$U,10,FALSE)","v":0.94399999999999995},{"$f":"IF(VLOOKUP($A10,Analysis!$A:$U,3,FALSE)=1,ROUND(VLOOKUP($A10,Analysis!$A:$U,17,FALSE),0),#N/A)","v":100964},{"$f":"IF(ISERROR($K10),ROUND(VLOOKUP($A10,Analysis!$A:$U,17,FALSE),0),#N/A)","v":{"$error":"#N/A"}},{"$error":"#N/A"},{"$error":"#N/A"},100964]
["5-11Abs3250-129","Abstraction",{"$f":"VLOOKUP($A11,Analysis!$A:$U,11,FALSE)","v":137823.83999999997},{"$f":"IF(VLOOKUP($A11,Analysis!$A:$U,3,FALSE)=1,VLOOKUP($A11,Analysis!$A:$U,18,FALSE),#N/A)","v":3.88},{"$f":"IF(ISERROR($D11),VLOOKUP($A11,Analysis!$A:$U,18,FALSE),#N/A)","v":{"$error":"#N/A"}},{"$error":"#N/A"},3.88,{"$error":"#N/A"},null,{"$f":"VLOOKUP($A11,Analysis!$A:$U,10,FALSE)","v":3.1640000000000001},{"$f":"IF(VLOOKUP($A11,Analysis!$A:$U,3,FALSE)=1,ROUND(VLOOKUP($A11,Analysis!$A:$U,17,FALSE),0),#N/A)","v":169064},{"$f":"IF(ISERROR($K11),ROUND(VLOOKUP($A11,Analysis!$A:$U,17,FALSE),0),#N/A)","v":{"$error":"#N/A"}},{"$error":"#N/A"},169064,{"$error":"#N/A"}]
["5-20Abs4559-182","Abstraction",{"$f":"VLOOKUP($A12,Analysis!$A:$U,11,FALSE)","v":106939.79999999999},{"$f":"IF(VLOOKUP($A12,Analysis!$A:$U,3,FALSE)=1,VLOOKUP($A12,Analysis!$A:$U,18,FALSE),#N/A)","v":5.71},{"$f":"IF(ISERROR($D12),VLOOKUP($A12,Analysis!$A:$U,18,FALSE),#N/A)","v":{"$error":"#N/A"}},{"$error":"#N/A"},5.71,{"$error":"#N/A"},null,{"$f":"VLOOKUP($A12,Analysis!$A:$U,10,FALSE)","v":2.4550000000000001},{"$f":"IF(VLOOKUP($A12,Analysis!$A:$U,3,FALSE)=1,ROUND(VLOOKUP($A12,Analysis!$A:$U,17,FALSE),0),#N/A)","v":248774},{"$f":"IF(ISERROR($K12),ROUND(VLOOKUP($A12,Analysis!$A:$U,17,FALSE),0),#N/A)","v":{"$error":"#N/A"}},{"$error":"#N/A"},248774,{"$error":"#N/A"}]
["5-20All4559-182","Allocation",{"$f":"VLOOKUP($A13,Analysis!$A:$U,11,FALSE)","v":106939.79999999999},{"$f":"IF(VLOOKUP($A13,Analysis!$A:$U,3,FALSE)=1,VLOOKUP($A13,Analysis!$A:$U,18,FALSE),#N/A)","v":7.06},{"$f":"IF(ISERROR($D13),VLOOKUP($A13,Analysis!$A:$U,18,FALSE),#N/A)","v":{"$error":"#N/A"}},{"$error":"#N/A"},{"$error":"#N/A"},7.06,null,{"$f":"VLOOKUP($A13,Analysis!$A:$U,10,FALSE)","v":2.4550000000000001},{"$f":"IF(VLOOKUP($A13,Analysis!$A:$U,3,FALSE)=1,ROUND(VLOOKUP($A13,Analysis!$A:$U,17,FALSE),0),#N/A)","v":307616},{"$f":"IF(ISERROR($K13),ROUND(VLOOKUP($A13,Analysis!$A:$U,17,FALSE),0),#N/A)","v":{"$error":"#N/A"}},{"$error":"#N/A"},{"$error":"#N/A"},307616]
["0-01Vac4434-105","Vacant",{"$f":"VLOOKUP($A14,Analysis!$A:$U,11,FALSE)","v":35632.080000000002},{"$f":"IF(VLOOKUP($A14,Analysis!$A:$U,3,FALSE)=1,VLOOKUP($A14,Analysis!$A:$U,18,FALSE),#N/A)","v":3.03},{"$f":"IF(ISERROR($D14),VLOOKUP($A14,Analysis!$A:$U,18,FALSE),#N/A)","v":{"$error":"#N/A"}},3.03,{"$error":"#N/A"},{"$error":"#N/A"},null,{"$f":"VLOOKUP($A14,Analysis!$A:$U,10,FALSE)","v":0.81799999999999995},{"$f":"IF(VLOOKUP($A14,Analysis!$A:$U,3,FALSE)=1,ROUND(VLOOKUP($A14,Analysis!$A:$U,17,FALSE),0),#N/A)","v":132185},{"$f":"IF(ISERROR($K14),ROUND(VLOOKUP($A14,Analysis!$A:$U,17,FALSE),0),#N/A)","v":{"$error":"#N/A"}},132185,{"$error":"#N/A"},{"$error":"#N/A"}]
["5-10Vac-1032-300","Vacant",{"$f":"VLOOKUP($A15,Analysis!$A:$U,11,FALSE)","v":62987.759999999995},{"$f":"IF(VLOOKUP($A15,Analysis!$A:$U,3,FALSE)=1,VLOOKUP($A15,Analysis!$A:$U,18,FALSE),#N/A)","v":6.25},{"$f":"IF(ISERROR($D15),VLOOKUP($A15,Analysis!$A:$U,18,FALSE),#N/A)","v":{"$error":"#N/A"}},6.25,{"$error":"#N/A"},{"$error":"#N/A"},null,{"$f":"VLOOKUP($A15,Analysis!$A:$U,10,FALSE)","v":1.446},{"$f":"IF(VLOOKUP($A15,Analysis!$A:$U,3,FALSE)=1,ROUND(VLOOKUP($A15,Analysis!$A:$U,17,FALSE),0),#N/A)","v":272189},{"$f":"IF(ISERROR($K15),ROUND(VLOOKUP($A15,Analysis!$A:$U,17,FALSE),0),#N/A)","v":{"$error":"#N/A"}},272189,{"$error":"#N/A"},{"$error":"#N/A"}]
["0-00Vac3038-320","Vacant",{"$f":"VLOOKUP($A16,Analysis!$A:$U,11,FALSE)","v":62987.759999999995},{"$f":"IF(VLOOKUP($A16,Analysis!$A:$U,3,FALSE)=1,VLOOKUP($A16,Analysis!$A:$U,18,FALSE),#N/A)","v":5.6},{"$f":"IF(ISERROR($D16),VLOOKUP($A16,Analysis!$A:$U,18,FALSE),#N/A)","v":{"$error":"#N/A"}},5.6,{"$error":"#N/A"},{"$error":"#N/A"},null,{"$f":"VLOOKUP($A16,Analysis!$A:$U,10,FALSE)","v":1.446},{"$f":"IF(VLOOKUP($A16,Analysis!$A:$U,3,FALSE)=1,ROUND(VLOOKUP($A16,Analysis!$A:$U,17,FALSE),0),#N/A)","v":243849},{"$f":"IF(ISERROR($K16),ROUND(VLOOKUP($A16,Analysis!$A:$U,17,FALSE),0),#N/A)","v":{"$error":"#N/A"}},243849,{"$error":"#N/A"},{"$error":"#N/A"}]
["0-00Vac2754-100","Vacant",{"$f":"VLOOKUP($A17,Analysis!$A:$U,11,FALSE)","v":27137.88},{"$f":"IF(VLOOKUP($A17,Analysis!$A:$U,3,FALSE)=1,VLOOKUP($A17,Analysis!$A:$U,18,FALSE),#N/A)","v":{"$error":"#N/A"}},{"$f":"IF(ISERROR($D17),VLOOKUP($A17,Analysis!$A:$U,18,FALSE),#N/A)","v":0.41},{"$error":"#N/A"},{"$error":"#N/A"},{"$error":"#N/A"},null,{"$f":"VLOOKUP($A17,Analysis!$A:$U,10,FALSE)","v":0.623},{"$f":"IF(VLOOKUP($A17,Analysis!$A:$U,3,FALSE)=1,ROUND(VLOOKUP($A17,Analysis!$A:$U,17,FALSE),0),#N/A)","v":{"$error":"#N/A"}},{"$f":"IF(ISERROR($K17),ROUND(VLOOKUP($A17,Analysis!$A:$U,17,FALSE),0),#N/A)","v":17913},{"$error":"#N/A"},{"$error":"#N/A"},{"$error":"#N/A"}]
["0-02Abs2403-300","Abstraction",{"$f":"VLOOKUP($A18,Analysis!$A:$U,11,FALSE)","v":340468.4},{"$f":"IF(VLOOKUP($A18,Analysis!$A:$U,3,FALSE)=1,VLOOKUP($A18,Analysis!$A:$U,18,FALSE),#N/A)","v":4.91},{"$f":"IF(ISERROR($D18),VLOOKUP($A18,Analysis!$A:$U,18,FALSE),#N/A)","v":{"$error":"#N/A"}},{"$error":"#N/A"},4.91,{"$error":"#N/A"},null,{"$f":"VLOOKUP($A18,Analysis!$A:$U,10,FALSE)","v":7.8159999999999998},{"$f":"IF(VLOOKUP($A18,Analysis!$A:$U,3,FALSE)=1,ROUND(VLOOKUP($A18,Analysis!$A:$U,17,FALSE),0),#N/A)","v":214003},{"$f":"IF(ISERROR($K18),ROUND(VLOOKUP($A18,Analysis!$A:$U,17,FALSE),0),#N/A)","v":{"$error":"#N/A"}},{"$error":"#N/A"},214003,{"$error":"#N/A"}]
["0-02All2403-300","Allocation",{"$f":"VLOOKUP($A19,Analysis!$A:$U,11,FALSE)","v":340468.4},{"$f":"IF(VLOOKUP($A19,Analysis!$A:$U,3,FALSE)=1,VLOOKUP($A19,Analysis!$A:$U,18,FALSE),#N/A)","v":4.04},{"$f":"IF(ISERROR($D19),VLOOKUP($A19,Analysis!$A:$U,18,FALSE),#N/A)","v":{"$error":"#N/A"}},{"$error":"#N/A"},{"$error":"#N/A"},4.04,null,{"$f":"VLOOKUP($A19,Analysis!$A:$U,10,FALSE)","v":7.8159999999999998},{"$f":"IF(VLOOKUP($A19,Analysis!$A:$U,3,FALSE)=1,ROUND(VLOOKUP($A19,Analysis!$A:$U,17,FALSE),0),#N/A)","v":176102},{"$f":"IF(ISERROR($K19),ROUND(VLOOKUP($A19,Analysis!$A:$U,17,FALSE),0),#N/A)","v":{"$error":"#N/A"}},{"$error":"#N/A"},{"$error":"#N/A"},176102]
["5-17Abs2585-650","Abstraction",{"$f":"VLOOKUP($A20,Analysis!$A:$U,11,FALSE)","v":43167.96},{"$f":"IF(VLOOKUP($A20,Analysis!$A:$U,3,FALSE)=1,VLOOKUP($A20,Analysis!$A:$U,18,FALSE),#N/A)","v":2.0299999999999998},{"$f":"IF(ISERROR($D20),VLOOKUP($A20,Analysis!$A:$U,18,FALSE),#N/A)","v":{"$error":"#N/A"}},{"$error":"#N/A"},2.0299999999999998,{"$error":"#N/A"},null,{"$f":"VLOOKUP($A20,Analysis!$A:$U,10,FALSE)","v":0.99099999999999999},{"$f":"IF(VLOOKUP($A20,Analysis!$A:$U,3,FALSE)=1,ROUND(VLOOKUP($A20,Analysis!$A:$U,17,FALSE),0),#N/A)","v":88249},{"$f":"IF(ISERROR($K20),ROUND(VLOOKUP($A20,Analysis!$A:$U,17,FALSE),0),#N/A)","v":{"$error":"#N/A"}},{"$error":"#N/A"},88249,{"$error":"#N/A"}]
["5-17All2585-650","Allocation",{"$f":"VLOOKUP($A21,Analysis!$A:$U,11,FALSE)","v":43167.96},{"$f":"IF(VLOOKUP($A21,Analysis!$A:$U,3,FALSE)=1,VLOOKUP($A21,Analysis!$A:$U,18,FALSE),#N/A)","v":6.86},{"$f":"IF(ISERROR($D21),VLOOKUP($A21,Analysis!$A:$U,18,FALSE),#N/A)","v":{"$error":"#N/A"}},{"$error":"#N/A"},{"$error":"#N/A"},6.86,null,{"$f":"VLOOKUP($A21,Analysis!$A:$U,10,FALSE)","v":0.99099999999999999},{"$f":"IF(VLOOKUP($A21,Analysis!$A:$U,3,FALSE)=1,ROUND(VLOOKUP($A21,Analysis!$A:$U,17,FALSE),0),#N/A)","v":298629},{"$f":"IF(ISERROR($K21),ROUND(VLOOKUP($A21,Analysis!$A:$U,17,FALSE),0),#N/A)","v":{"$error":"#N/A"}},{"$error":"#N/A"},{"$error":"#N/A"},298629]
["6-00Vac-48-150","Vacant",{"$f":"VLOOKUP($A22,Analysis!$A:$U,11,FALSE)","v":37243.799999999996},{"$f":"IF(VLOOKUP($A22,Analysis!$A:$U,3,FALSE)=1,VLOOKUP($A22,Analysis!$A:$U,18,FALSE),#N/A)","v":{"$error":"#N/A"}},{"$f":"IF(ISERROR($D22),VLOOKUP($A22,Analysis!$A:$U,18,FALSE),#N/A)","v":0.51},{"$error":"#N/A"},{"$error":"#N/A"},{"$error":"#N/A"},null,{"$f":"VLOOKUP($A22,Analysis!$A:$U,10,FALSE)","v":0.85499999999999998},{"$f":"IF(VLOOKUP($A22,Analysis!$A:$U,3,FALSE)=1,ROUND(VLOOKUP($A22,Analysis!$A:$U,17,FALSE),0),#N/A)","v":{"$error":"#N/A"}},{"$f":"IF(ISERROR($K22),ROUND(VLOOKUP($A22,Analysis!$A:$U,17,FALSE),0),#N/A)","v":22109},{"$error":"#N/A"},{"$error":"#N/A"},{"$error":"#N/A"}]
["1-10Abs2697-194","Abstraction",{"$f":"VLOOKUP($A23,Analysis!$A:$U,11,FALSE)","v":264844.79999999999},{"$f":"IF(VLOOKUP($A23,Analysis!$A:$U,3,FALSE)=1,VLOOKUP($A23,Analysis!$A:$U,18,FALSE),#N/A)","v":{"$error":"#N/A"}},{"$f":"IF(ISERROR($D23),VLOOKUP($A23,Analysis!$A:$U,18,FALSE),#N/A)","v":0.22},{"$error":"#N/A"},{"$error":"#N/A"},{"$error":"#N/A"},null,{"$f":"VLOOKUP($A23,Analysis!$A:$U,10,FALSE)","v":6.08},{"$f":"IF(VLOOKUP($A23,Analysis!$A:$U,3,FALSE)=1,ROUND(VLOOKUP($A23,Analysis!$A:$U,17,FALSE),0),#N/A)","v":{"$error":"#N/A"}},{"$f":"IF(ISERROR($K23),ROUND(VLOOKUP($A23,Analysis!$A:$U,17,FALSE),0),#N/A)","v":9616},{"$error":"#N/A"},{"$error":"#N/A"},{"$error":"#N/A"}]
["1-10All2697-194","Allocation",{"$f":"VLOOKUP($A24,Analysis!$A:$U,11,FALSE)","v":264844.79999999999},{"$f":"IF(VLOOKUP($A24,Analysis!$A:$U,3,FALSE)=1,VLOOKUP($A24,Analysis!$A:$U,18,FALSE),#N/A)","v":{"$error":"#N/A"}},{"$f":"IF(ISERROR($D24),VLOOKUP($A24,Analysis!$A:$U,18,FALSE),#N/A)","v":0.33},{"$error":"#N/A"},{"$error":"#N/A"},{"$error":"#N/A"},null,{"$f":"VLOOKUP($A24,Analysis!$A:$U,10,FALSE)","v":6.08},{"$f":"IF(VLOOKUP($A24,Analysis!$A:$U,3,FALSE)=1,ROUND(VLOOKUP($A24,Analysis!$A:$U,17,FALSE),0),#N/A)","v":{"$error":"#N/A"}},{"$f":"IF(ISERROR($K24),ROUND(VLOOKUP($A24,Analysis!$A:$U,17,FALSE),0),#N/A)","v":14474},{"$error":"#N/A"},{"$error":"#N/A"},{"$error":"#N/A"}]
["5-00Abs2741-400","Abstraction",{"$f":"VLOOKUP($A25,Analysis!$A:$U,11,FALSE)","v":21213.72},{"$f":"IF(VLOOKUP($A25,Analysis!$A:$U,3,FALSE)=1,VLOOKUP($A25,Analysis!$A:$U,18,FALSE),#N/A)","v":{"$error":"#N/A"}},{"$f":"IF(ISERROR($D25),VLOOKUP($A25,Analysis!$A:$U,18,FALSE),#N/A)","v":1.35},{"$error":"#N/A"},{"$error":"#N/A"},{"$error":"#N/A"},null,{"$f":"VLOOKUP($A25,Analysis!$A:$U,10,FALSE)","v":0.48699999999999999},{"$f":"IF(VLOOKUP($A25,Analysis!$A:$U,3,FALSE)=1,ROUND(VLOOKUP($A25,Analysis!$A:$U,17,FALSE),0),#N/A)","v":{"$error":"#N/A"}},{"$f":"IF(ISERROR($K25),ROUND(VLOOKUP($A25,Analysis!$A:$U,17,FALSE),0),#N/A)","v":58830},{"$error":"#N/A"},{"$error":"#N/A"},{"$error":"#N/A"}]
["5-00All2741-400","Allocation",{"$f":"VLOOKUP($A26,Analysis!$A:$U,11,FALSE)","v":21213.72},{"$f":"IF(VLOOKUP($A26,Analysis!$A:$U,3,FALSE)=1,VLOOKUP($A26,Analysis!$A:$U,18,FALSE),#N/A)","v":{"$error":"#N/A"}},{"$f":"IF(ISERROR($D26),VLOOKUP($A26,Analysis!$A:$U,18,FALSE),#N/A)","v":0.85},{"$error":"#N/A"},{"$error":"#N/A"},{"$error":"#N/A"},null,{"$f":"VLOOKUP($A26,Analysis!$A:$U,10,FALSE)","v":0.48699999999999999},{"$f":"IF(VLOOKUP($A26,Analysis!$A:$U,3,FALSE)=1,ROUND(VLOOKUP($A26,Analysis!$A:$U,17,FALSE),0),#N/A)","v":{"$error":"#N/A"}},{"$f":"IF(ISERROR($K26),ROUND(VLOOKUP($A26,Analysis!$A:$U,17,FALSE),0),#N/A)","v":37112},{"$error":"#N/A"},{"$error":"#N/A"},{"$error":"#N/A"}]
["5-00Abs2003-248","Abstraction",{"$f":"VLOOKUP($A27,Analysis!$A:$U,11,FALSE)","v":24916.32},{"$f":"IF(VLOOKUP($A27,Analysis!$A:$U,3,FALSE)=1,VLOOKUP($A27,Analysis!$A:$U,18,FALSE),#N/A)","v":5},{"$f":"IF(ISERROR($D27),VLOOKUP($A27,Analysis!$A:$U,18,FALSE),#N/A)","v":{"$error":"#N/A"}},{"$error":"#N/A"},5,{"$error":"#N/A"},null,{"$f":"VLOOKUP($A27,Analysis!$A:$U,10,FALSE)","v":0.57199999999999995},{"$f":"IF(VLOOKUP($A27,Analysis!$A:$U,3,FALSE)=1,ROUND(VLOOKUP($A27,Analysis!$A:$U,17,FALSE),0),#N/A)","v":217713},{"$f":"IF(ISERROR($K27),ROUND(VLOOKUP($A27,Analysis!$A:$U,17,FALSE),0),#N/A)","v":{"$error":"#N/A"}},{"$error":"#N/A"},217713,{"$error":"#N/A"}]
["5-00All2003-248","Allocation",{"$f":"VLOOKUP($A28,Analysis!$A:$U,11,FALSE)","v":24916.32},{"$f":"IF(VLOOKUP($A28,Analysis!$A:$U,3,FALSE)=1,VLOOKUP($A28,Analysis!$A:$U,18,FALSE),#N/A)","v":4.66},{"$f":"IF(ISERROR($D28),VLOOKUP($A28,Analysis!$A:$U,18,FALSE),#N/A)","v":{"$error":"#N/A"}},{"$error":"#N/A"},{"$error":"#N/A"},4.66,null,{"$f":"VLOOKUP($A28,Analysis!$A:$U,10,FALSE)","v":0.57199999999999995},{"$f":"IF(VLOOKUP($A28,Analysis!$A:$U,3,FALSE)=1,ROUND(VLOOKUP($A28,Analysis!$A:$U,17,FALSE),0),#N/A)","v":203026},{"$f":"IF(ISERROR($K28),ROUND(VLOOKUP($A28,Analysis!$A:$U,17,FALSE),0),#N/A)","v":{"$error":"#N/A"}},{"$error":"#N/A"},{"$error":"#N/A"},203026]
["5-00Abs2789-718","Abstraction",{"$f":"VLOOKUP($A29,Analysis!$A:$U,11,FALSE)","v":147232.80000000002},{"$f":"IF(VLOOKUP($A29,Analysis!$A:$U,3,FALSE)=1,VLOOKUP($A29,Analysis!$A:$U,18,FALSE),#N/A)","v":1.5},{"$f":"IF(ISERROR($D29),VLOOKUP($A29,Analysis!$A:$U,18,FALSE),#N/A)","v":{"$error":"#N/A"}},{"$error":"#N/A"},1.5,{"$error":"#N/A"},null,{"$f":"VLOOKUP($A29,Analysis!$A:$U,10,FALSE)","v":3.38},{"$f":"IF(VLOOKUP($A29,Analysis!$A:$U,3,FALSE)=1,ROUND(VLOOKUP($A29,Analysis!$A:$U,17,FALSE),0),#N/A)","v":65287},{"$f":"IF(ISERROR($K29),ROUND(VLOOKUP($A29,Analysis!$A:$U,17,FALSE),0),#N/A)","v":{"$error":"#N/A"}},{"$error":"#N/A"},65287,{"$error":"#N/A"}]
["5-00All2789-718","Allocation",{"$f":"VLOOKUP($A30,Analysis!$A:$U,11,FALSE)","v":147232.80000000002},{"$f":"IF(VLOOKUP($A30,Analysis!$A:$U,3,FALSE)=1,VLOOKUP($A30,Analysis!$A:$U,18,FALSE),#N/A)","v":2.2000000000000002},{"$f":"IF(ISERROR($D30),VLOOKUP($A30,Analysis!$A:$U,18,FALSE),#N/A)","v":{"$error":"#N/A"}},{"$error":"#N/A"},{"$error":"#N/A"},2.2000000000000002,null,{"$f":"VLOOKUP($A30,Analysis!$A:$U,10,FALSE)","v":3.38},{"$f":"IF(VLOOKUP($A30,Analysis!$A:$U,3,FALSE)=1,ROUND(VLOOKUP($A30,Analysis!$A:$U,17,FALSE),0),#N/A)","v":95745},{"$f":"IF(ISERROR($K30),ROUND(VLOOKUP($A30,Analysis!$A:$U,17,FALSE),0),#N/A)","v":{"$error":"#N/A"}},{"$error":"#N/A"},{"$error":"#N/A"},95745]
["5-00Vac333-200","Vacant",{"$f":"VLOOKUP($A31,Analysis!$A:$U,11,FALSE)","v":26528.04},{"$f":"IF(VLOOKUP($A31,Analysis!$A:$U,3,FALSE)=1,VLOOKUP($A31,Analysis!$A:$U,18,FALSE),#N/A)","v":{"$error":"#N/A"}},{"$f":"IF(ISERROR($D31),VLOOKUP($A31,Analysis!$A:$U,18,FALSE),#N/A)","v":0.94},{"$error":"#N/A"},{"$error":"#N/A"},{"$error":"#N/A"},null,{"$f":"VLOOKUP($A31,Analysis!$A:$U,10,FALSE)","v":0.60899999999999999},{"$f":"IF(VLOOKUP($A31,Analysis!$A:$U,3,FALSE)=1,ROUND(VLOOKUP($A31,Analysis!$A:$U,17,FALSE),0),#N/A)","v":{"$error":"#N/A"}},{"$f":"IF(ISERROR($K31),ROUND(VLOOKUP($A31,Analysis!$A:$U,17,FALSE),0),#N/A)","v":40769},{"$error":"#N/A"},{"$error":"#N/A"},{"$error":"#N/A"}]
["0-00Abs1829-364","Abstraction",{"$f":"VLOOKUP($A32,Analysis!$A:$U,11,FALSE)","v":27921.96},{"$f":"IF(VLOOKUP($A32,Analysis!$A:$U,3,FALSE)=1,VLOOKUP($A32,Analysis!$A:$U,18,FALSE),#N/A)","v":5.69},{"$f":"IF(ISERROR($D32),VLOOKUP($A32,Analysis!$A:$U,18,FALSE),#N/A)","v":{"$error":"#N/A"}},{"$error":"#N/A"},5.69,{"$error":"#N/A"},null,{"$f":"VLOOKUP($A32,Analysis!$A:$U,10,FALSE)","v":0.64100000000000001},{"$f":"IF(VLOOKUP($A32,Analysis!$A:$U,3,FALSE)=1,ROUND(VLOOKUP($A32,Analysis!$A:$U,17,FALSE),0),#N/A)","v":247827},{"$f":"IF(ISERROR($K32),ROUND(VLOOKUP($A32,Analysis!$A:$U,17,FALSE),0),#N/A)","v":{"$error":"#N/A"}},{"$error":"#N/A"},247827,{"$error":"#N/A"}]
["0-00All1829-364","Allocation",{"$f":"VLOOKUP($A33,Analysis!$A:$U,11,FALSE)","v":27921.96},{"$f":"IF(VLOOKUP($A33,Analysis!$A:$U,3,FALSE)=1,VLOOKUP($A33,Analysis!$A:$U,18,FALSE),#N/A)","v":6.15},{"$f":"IF(ISERROR($D33),VLOOKUP($A33,Analysis!$A:$U,18,FALSE),#N/A)","v":{"$error":"#N/A"}},{"$error":"#N/A"},{"$error":"#N/A"},6.15,null,{"$f":"VLOOKUP($A33,Analysis!$A:$U,10,FALSE)","v":0.64100000000000001},{"$f":"IF(VLOOKUP($A33,Analysis!$A:$U,3,FALSE)=1,ROUND(VLOOKUP($A33,Analysis!$A:$U,17,FALSE),0),#N/A)","v":267817},{"$f":"IF(ISERROR($K33),ROUND(VLOOKUP($A33,Analysis!$A:$U,17,FALSE),0),#N/A)","v":{"$error":"#N/A"}},{"$error":"#N/A"},{"$error":"#N/A"},267817]
["5-10All1677-297","Allocation",{"$f":"VLOOKUP($A34,Analysis!$A:$U,11,FALSE)","v":21943.68},{"$f":"IF(VLOOKUP($A34,Analysis!$A:$U,3,FALSE)=1,VLOOKUP($A34,Analysis!$A:$U,18,FALSE),#N/A)","v":6.42},{"$f":"IF(ISERROR($D34),VLOOKUP($A34,Analysis!$A:$U,18,FALSE),#N/A)","v":{"$error":"#N/A"}},{"$error":"#N/A"},{"$error":"#N/A"},6.42,null,{"$f":"VLOOKUP($A34,Analysis!$A:$U,10,FALSE)","v":0.504},{"$f":"IF(VLOOKUP($A34,Analysis!$A:$U,3,FALSE)=1,ROUND(VLOOKUP($A34,Analysis!$A:$U,17,FALSE),0),#N/A)","v":279331},{"$f":"IF(ISERROR($K34),ROUND(VLOOKUP($A34,Analysis!$A:$U,17,FALSE),0),#N/A)","v":{"$error":"#N/A"}},{"$error":"#N/A"},{"$error":"#N/A"},279331]
["0-00Abs1795-800","Abstraction",{"$f":"VLOOKUP($A35,Analysis!$A:$U,11,FALSE)","v":70347.42},{"$f":"IF(VLOOKUP($A35,Analysis!$A:$U,3,FALSE)=1,VLOOKUP($A35,Analysis!$A:$U,18,FALSE),#N/A)","v":0.47},{"$f":"IF(ISERROR($D35),VLOOKUP($A35,Analysis!$A:$U,18,FALSE),#N/A)","v":{"$error":"#N/A"}},{"$error":"#N/A"},0.47,{"$error":"#N/A"},null,{"$f":"VLOOKUP($A35,Analysis!$A:$U,10,FALSE)","v":1.615},{"$f":"IF(VLOOKUP($A35,Analysis!$A:$U,3,FALSE)=1,ROUND(VLOOKUP($A35,Analysis!$A:$U,17,FALSE),0),#N/A)","v":20296},{"$f":"IF(ISERROR($K35),ROUND(VLOOKUP($A35,Analysis!$A:$U,17,FALSE),0),#N/A)","v":{"$error":"#N/A"}},{"$error":"#N/A"},20296,{"$error":"#N/A"}]
["0-00All1795-800","Allocation",{"$f":"VLOOKUP($A36,Analysis!$A:$U,11,FALSE)","v":70347.42},{"$f":"IF(VLOOKUP($A36,Analysis!$A:$U,3,FALSE)=1,VLOOKUP($A36,Analysis!$A:$U,18,FALSE),#N/A)","v":0.54},{"$f":"IF(ISERROR($D36),VLOOKUP($A36,Analysis!$A:$U,18,FALSE),#N/A)","v":{"$error":"#N/A"}},{"$error":"#N/A"},{"$error":"#N/A"},0.54,null,{"$f":"VLOOKUP($A36,Analysis!$A:$U,10,FALSE)","v":1.615},{"$f":"IF(VLOOKUP($A36,Analysis!$A:$U,3,FALSE)=1,ROUND(VLOOKUP($A36,Analysis!$A:$U,17,FALSE),0),#N/A)","v":23355},{"$f":"IF(ISERROR($K36),ROUND(VLOOKUP($A36,Analysis!$A:$U,17,FALSE),0),#N/A)","v":{"$error":"#N/A"}},{"$error":"#N/A"},{"$error":"#N/A"},23355]
["0-00Abs3538-535","Abstraction",{"$f":"VLOOKUP($A37,Analysis!$A:$U,11,FALSE)","v":27442.799999999999},{"$f":"IF(VLOOKUP($A37,Analysis!$A:$U,3,FALSE)=1,VLOOKUP($A37,Analysis!$A:$U,18,FALSE),#N/A)","v":9.2899999999999991},{"$f":"IF(ISERROR($D37),VLOOKUP($A37,Analysis!$A:$U,18,FALSE),#N/A)","v":{"$error":"#N/A"}},{"$error":"#N/A"},9.2899999999999991,{"$error":"#N/A"},null,{"$f":"VLOOKUP($A37,Analysis!$A:$U,10,FALSE)","v":0.63},{"$f":"IF(VLOOKUP($A37,Analysis!$A:$U,3,FALSE)=1,ROUND(VLOOKUP($A37,Analysis!$A:$U,17,FALSE),0),#N/A)","v":404637},{"$f":"IF(ISERROR($K37),ROUND(VLOOKUP($A37,Analysis!$A:$U,17,FALSE),0),#N/A)","v":{"$error":"#N/A"}},{"$error":"#N/A"},404637,{"$error":"#N/A"}]
["0-00All3538-535","Allocation",{"$f":"VLOOKUP($A38,Analysis!$A:$U,11,FALSE)","v":27442.799999999999},{"$f":"IF(VLOOKUP($A38,Analysis!$A:$U,3,FALSE)=1,VLOOKUP($A38,Analysis!$A:$U,18,FALSE),#N/A)","v":8.49},{"$f":"IF(ISERROR($D38),VLOOKUP($A38,Analysis!$A:$U,18,FALSE),#N/A)","v":{"$error":"#N/A"}},{"$error":"#N/A"},{"$error":"#N/A"},8.49,null,{"$f":"VLOOKUP($A38,Analysis!$A:$U,10,FALSE)","v":0.63},{"$f":"IF(VLOOKUP($A38,Analysis!$A:$U,3,FALSE)=1,ROUND(VLOOKUP($A38,Analysis!$A:$U,17,FALSE),0),#N/A)","v":369706},{"$f":"IF(ISERROR($K38),ROUND(VLOOKUP($A38,Analysis!$A:$U,17,FALSE),0),#N/A)","v":{"$error":"#N/A"}},{"$error":"#N/A"},{"$error":"#N/A"},369706]
["0-10Abs3088-150","Abstraction",{"$f":"VLOOKUP($A39,Analysis!$A:$U,11,FALSE)","v":11891.880000000001},{"$f":"IF(VLOOKUP($A39,Analysis!$A:$U,3,FALSE)=1,VLOOKUP($A39,Analysis!$A:$U,18,FALSE),#N/A)","v":3.38},{"$f":"IF(ISERROR($D39),VLOOKUP($A39,Analysis!$A:$U,18,FALSE),#N/A)","v":{"$error":"#N/A"}},{"$error":"#N/A"},3.38,{"$error":"#N/A"},null,{"$f":"VLOOKUP($A39,Analysis!$A:$U,10,FALSE)","v":0.27300000000000002},{"$f":"IF(VLOOKUP($A39,Analysis!$A:$U,3,FALSE)=1,ROUND(VLOOKUP($A39,Analysis!$A:$U,17,FALSE),0),#N/A)","v":147230},{"$f":"IF(ISERROR($K39),ROUND(VLOOKUP($A39,Analysis!$A:$U,17,FALSE),0),#N/A)","v":{"$error":"#N/A"}},{"$error":"#N/A"},147230,{"$error":"#N/A"}]
["0-10All3088-150","Allocation",{"$f":"VLOOKUP($A40,Analysis!$A:$U,11,FALSE)","v":11891.880000000001},{"$f":"IF(VLOOKUP($A40,Analysis!$A:$U,3,FALSE)=1,VLOOKUP($A40,Analysis!$A:$U,18,FALSE),#N/A)","v":5.6},{"$f":"IF(ISERROR($D40),VLOOKUP($A40,Analysis!$A:$U,18,FALSE),#N/A)","v":{"$error":"#N/A"}},{"$error":"#N/A"},{"$error":"#N/A"},5.6,null,{"$f":"VLOOKUP($A40,Analysis!$A:$U,10,FALSE)","v":0.27300000000000002},{"$f":"IF(VLOOKUP($A40,Analysis!$A:$U,3,FALSE)=1,ROUND(VLOOKUP($A40,Analysis!$A:$U,17,FALSE),0),#N/A)","v":244081},{"$f":"IF(ISERROR($K40),ROUND(VLOOKUP($A40,Analysis!$A:$U,17,FALSE),0),#N/A)","v":{"$error":"#N/A"}},{"$error":"#N/A"},{"$error":"#N/A"},244081]
["5-00Abs3808-610","Abstraction",{"$f":"VLOOKUP($A41,Analysis!$A:$U,11,FALSE)","v":716997.60000000009},{"$f":"IF(VLOOKUP($A41,Analysis!$A:$U,3,FALSE)=1,VLOOKUP($A41,Analysis!$A:$U,18,FALSE),#N/A)","v":0.56999999999999995},{"$f":"IF(ISERROR($D41),VLOOKUP($A41,Analysis!$A:$U,18,FALSE),#N/A)","v":{"$error":"#N/A"}},{"$error":"#N/A"},0.56999999999999995,{"$error":"#N/A"},null,{"$f":"VLOOKUP($A41,Analysis!$A:$U,10,FALSE)","v":16.46},{"$f":"IF(VLOOKUP($A41,Analysis!$A:$U,3,FALSE)=1,ROUND(VLOOKUP($A41,Analysis!$A:$U,17,FALSE),0),#N/A)","v":24735},{"$f":"IF(ISERROR($K41),ROUND(VLOOKUP($A41,Analysis!$A:$U,17,FALSE),0),#N/A)","v":{"$error":"#N/A"}},{"$error":"#N/A"},24735,{"$error":"#N/A"}]
["5-00All3808-610","Allocation",{"$f":"VLOOKUP($A42,Analysis!$A:$U,11,FALSE)","v":716997.60000000009},{"$f":"IF(VLOOKUP($A42,Analysis!$A:$U,3,FALSE)=1,VLOOKUP($A42,Analysis!$A:$U,18,FALSE),#N/A)","v":0.37},{"$f":"IF(ISERROR($D42),VLOOKUP($A42,Analysis!$A:$U,18,FALSE),#N/A)","v":{"$error":"#N/A"}},{"$error":"#N/A"},{"$error":"#N/A"},0.37,null,{"$f":"VLOOKUP($A42,Analysis!$A:$U,10,FALSE)","v":16.46},{"$f":"IF(VLOOKUP($A42,Analysis!$A:$U,3,FALSE)=1,ROUND(VLOOKUP($A42,Analysis!$A:$U,17,FALSE),0),#N/A)","v":15923},{"$f":"IF(ISERROR($K42),ROUND(VLOOKUP($A42,Analysis!$A:$U,17,FALSE),0),#N/A)","v":{"$error":"#N/A"}},{"$error":"#N/A"},{"$error":"#N/A"},15923]
["5-00Abs3439-338","Abstraction",{"$f":"VLOOKUP($A43,Analysis!$A:$U,11,FALSE)","v":716997.60000000009},{"$f":"IF(VLOOKUP($A43,Analysis!$A:$U,3,FALSE)=1,VLOOKUP($A43,Analysis!$A:$U,18,FALSE),#N/A)","v":0.31},{"$f":"IF(ISERROR($D43),VLOOKUP($A43,Analysis!$A:$U,18,FALSE),#N/A)","v":{"$error":"#N/A"}},{"$error":"#N/A"},0.31,{"$error":"#N/A"},null,{"$f":"VLOOKUP($A43,Analysis!$A:$U,10,FALSE)","v":16.46},{"$f":"IF(VLOOKUP($A43,Analysis!$A:$U,3,FALSE)=1,ROUND(VLOOKUP($A43,Analysis!$A:$U,17,FALSE),0),#N/A)","v":13712},{"$f":"IF(ISERROR($K43),ROUND(VLOOKUP($A43,Analysis!$A:$U,17,FALSE),0),#N/A)","v":{"$error":"#N/A"}},{"$error":"#N/A"},13712,{"$error":"#N/A"}]
["5-00All3439-338","Allocation",{"$f":"VLOOKUP($A44,Analysis!$A:$U,11,FALSE)","v":716997.60000000009},{"$f":"IF(VLOOKUP($A44,Analysis!$A:$U,3,FALSE)=1,VLOOKUP($A44,Analysis!$A:$U,18,FALSE),#N/A)","v":{"$error":"#N/A"}},{"$f":"IF(ISERROR($D44),VLOOKUP($A44,Analysis!$A:$U,18,FALSE),#N/A)","v":0.21},{"$error":"#N/A"},{"$error":"#N/A"},{"$error":"#N/A"},null,{"$f":"VLOOKUP($A44,Analysis!$A:$U,10,FALSE)","v":16.46},{"$f":"IF(VLOOKUP($A44,Analysis!$A:$U,3,FALSE)=1,ROUND(VLOOKUP($A44,Analysis!$A:$U,17,FALSE),0),#N/A)","v":{"$error":"#N/A"}},{"$f":"IF(ISERROR($K44),ROUND(VLOOKUP($A44,Analysis!$A:$U,17,FALSE),0),#N/A)","v":8979},{"$error":"#N/A"},{"$error":"#N/A"},{"$error":"#N/A"}]
["5-10Abs4841-330","Abstraction",{"$f":"VLOOKUP($A45,Analysis!$A:$U,11,FALSE)","v":21954.240000000002},{"$f":"IF(VLOOKUP($A45,Analysis!$A:$U,3,FALSE)=1,VLOOKUP($A45,Analysis!$A:$U,18,FALSE),#N/A)","v":6.84},{"$f":"IF(ISERROR($D45),VLOOKUP($A45,Analysis!$A:$U,18,FALSE),#N/A)","v":{"$error":"#N/A"}},{"$error":"#N/A"},6.84,{"$error":"#N/A"},null,{"$f":"VLOOKUP($A45,Analysis!$A:$U,10,FALSE)","v":0.504},{"$f":"IF(VLOOKUP($A45,Analysis!$A:$U,3,FALSE)=1,ROUND(VLOOKUP($A45,Analysis!$A:$U,17,FALSE),0),#N/A)","v":298101},{"$f":"IF(ISERROR($K45),ROUND(VLOOKUP($A45,Analysis!$A:$U,17,FALSE),0),#N/A)","v":{"$error":"#N/A"}},{"$error":"#N/A"},298101,{"$error":"#N/A"}]
["5-10All4841-330","Allocation",{"$f":"VLOOKUP($A46,Analysis!$A:$U,11,FALSE)","v":21954.240000000002},{"$f":"IF(VLOOKUP($A46,Analysis!$A:$U,3,FALSE)=1,VLOOKUP($A46,Analysis!$A:$U,18,FALSE),#N/A)","v":6.08},{"$f":"IF(ISERROR($D46),VLOOKUP($A46,Analysis!$A:$U,18,FALSE),#N/A)","v":{"$error":"#N/A"}},{"$error":"#N/A"},{"$error":"#N/A"},6.08,null,{"$f":"VLOOKUP($A46,Analysis!$A:$U,10,FALSE)","v":0.504},{"$f":"IF(VLOOKUP($A46,Analysis!$A:$U,3,FALSE)=1,ROUND(VLOOKUP($A46,Analysis!$A:$U,17,FALSE),0),#N/A)","v":264720},{"$f":"IF(ISERROR($K46),ROUND(VLOOKUP($A46,Analysis!$A:$U,17,FALSE),0),#N/A)","v":{"$error":"#N/A"}},{"$error":"#N/A"},{"$error":"#N/A"},264720]
[{"$error":"#VALUE!"},{"$error":"#VALUE!"},{"$f":"VLOOKUP($A47,Analysis!$A:$U,11,FALSE)","v":{"$error":"#VALUE!"}},{"$f":"IF(VLOOKUP($A47,Analysis!$A:$U,3,FALSE)=1,VLOOKUP($A47,Analysis!$A:$U,18,FALSE),#N/A)","v":{"$error":"#VALUE!"}},{"$f":"IF(ISERROR($D47),VLOOKUP($A47,Analysis!$A:$U,18,FALSE),#N/A)","v":{"$error":"#VALUE!"}},{"$error":"#VALUE!"},{"$error":"#VALUE!"},{"$error":"#VALUE!"},null,{"$f":"VLOOKUP($A47,Analysis!$A:$U,10,FALSE)","v":{"$error":"#VALUE!"}},{"$f":"IF(VLOOKUP($A47,Analysis!$A:$U,3,FALSE)=1,ROUND(VLOOKUP($A47,Analysis!$A:$U,17,FALSE),0),#N/A)","v":{"$error":"#VALUE!"}},{"$f":"IF(ISERROR($K47),ROUND(VLOOKUP($A47,Analysis!$A:$U,17,FALSE),0),#N/A)","v":{"$error":"#VALUE!"}},{"$error":"#VALUE!"},{"$error":"#VALUE!"},{"$error":"#VALUE!"}]
[{"$error":"#VALUE!"},{"$error":"#VALUE!"},{"$f":"VLOOKUP($A48,Analysis!$A:$U,11,FALSE)","v":{"$error":"#VALUE!"}},{"$f":"IF(VLOOKUP($A48,Analysis!$A:$U,3,FALSE)=1,VLOOKUP($A48,Analysis!$A:$U,18,FALSE),#N/A)","v":{"$error":"#VALUE!"}},{"$f":"IF(ISERROR($D48),VLOOKUP($A48,Analysis!$A:$U,18,FALSE),#N/A)","v":{"$error":"#VALUE!"}},{"$error":"#VALUE!"},{"$error":"#VALUE!"},{"$error":"#VALUE!"},null,{"$f":"VLOOKUP($A48,Analysis!$A:$U,10,FALSE)","v":{"$error":"#VALUE!"}},{"$f":"IF(VLOOKUP($A48,Analysis!$A:$U,3,FALSE)=1,ROUND(VLOOKUP($A48,Analysis!$A:$U,17,FALSE),0),#N/A)","v":{"$error":"#VALUE!"}},{"$f":"IF(ISERROR($K48),ROUND(VLOOKUP($A48,Analysis!$A:$U,17,FALSE),0),#N/A)","v":{"$error":"#VALUE!"}},{"$error":"#VALUE!"},{"$error":"#VALUE!"},{"$error":"#VALUE!"}]
[{"$error":"#VALUE!"},{"$error":"#VALUE!"},{"$f":"VLOOKUP($A49,Analysis!$A:$U,11,FALSE)","v":{"$error":"#VALUE!"}},{"$f":"IF(VLOOKUP($A49,Analysis!$A:$U,3,FALSE)=1,VLOOKUP($A49,Analysis!$A:$U,18,FALSE),#N/A)","v":{"$error":"#VALUE!"}},{"$f":"IF(ISERROR($D49),VLOOKUP($A49,Analysis!$A:$U,18,FALSE),#N/A)","v":{"$error":"#VALUE!"}},{"$error":"#VALUE!"},{"$error":"#VALUE!"},{"$error":"#VALUE!"},null,{"$f":"VLOOKUP($A49,Analysis!$A:$U,10,FALSE)","v":{"$error":"#VALUE!"}},{"$f":"IF(VLOOKUP($A49,Analysis!$A:$U,3,FALSE)=1,ROUND(VLOOKUP($A49,Analysis!$A:$U,17,FALSE),0),#N/A)","v":{"$error":"#VALUE!"}},{"$f":"IF(ISERROR($K49),ROUND(VLOOKUP($A49,Analysis!$A:$U,17,FALSE),0),#N/A)","v":{"$error":"#VALUE!"}},{"$error":"#VALUE!"},{"$error":"#VALUE!"},{"$error":"#VALUE!"}]
[{"$error":"#VALUE!"},{"$error":"#VALUE!"},{"$f":"VLOOKUP($A50,Analysis!$A:$U,11,FALSE)","v":{"$error":"#VALUE!"}},{"$f":"IF(VLOOKUP($A50,Analysis!$A:$U,3,FALSE)=1,VLOOKUP($A50,Analysis!$A:$U,18,FALSE),#N/A)","v":{"$error":"#VALUE!"}},{"$f":"IF(ISERROR($D50),VLOOKUP($A50,Analysis!$A:$U,18,FALSE),#N/A)","v":{"$error":"#VALUE!"}},{"$error":"#VALUE!"},{"$error":"#VALUE!"},{"$error":"#VALUE!"},null,{"$f":"VLOOKUP($A50,Analysis!$A:$U,10,FALSE)","v":{"$error":"#VALUE!"}},{"$f":"IF(VLOOKUP($A50,Analysis!$A:$U,3,FALSE)=1,ROUND(VLOOKUP($A50,Analysis!$A:$U,17,FALSE),0),#N/A)","v":{"$error":"#VALUE!"}},{"$f":"IF(ISERROR($K50),ROUND(VLOOKUP($A50,Analysis!$A:$U,17,FALSE),0),#N/A)","v":{"$error":"#VALUE!"}},{"$error":"#VALUE!"},{"$error":"#VALUE!"},{"$error":"#VALUE!"}]
[{"$error":"#VALUE!"},{"$error":"#VALUE!"},{"$f":"VLOOKUP($A51,Analysis!$A:$U,11,FALSE)","v":{"$error":"#VALUE!"}},{"$f":"IF(VLOOKUP($A51,Analysis!$A:$U,3,FALSE)=1,VLOOKUP($A51,Analysis!$A:$U,18,FALSE),#N/A)","v":{"$error":"#VALUE!"}},{"$f":"IF(ISERROR($D51),VLOOKUP($A51,Analysis!$A:$U,18,FALSE),#N/A)","v":{"$error":"#VALUE!"}},{"$error":"#VALUE!"},{"$error":"#VALUE!"},{"$error":"#VALUE!"},null,{"$f":"VLOOKUP($A51,Analysis!$A:$U,10,FALSE)","v":{"$error":"#VALUE!"}},{"$f":"IF(VLOOKUP($A51,Analysis!$A:$U,3,FALSE)=1,ROUND(VLOOKUP($A51,Analysis!$A:$U,17,FALSE),0),#N/A)","v":{"$error":"#VALUE!"}},{"$f":"IF(ISERROR($K51),ROUND(VLOOKUP($A51,Analysis!$A:$U,17,FALSE),0),#N/A)","v":{"$error":"#VALUE!"}},{"$error":"#VALUE!"},{"$error":"#VALUE!"},{"$error":"#VALUE!"}]
[{"$error":"#VALUE!"},{"$error":"#VALUE!"},{"$f":"VLOOKUP($A52,Analysis!$A:$U,11,FALSE)","v":{"$error":"#VALUE!"}},{"$f":"IF(VLOOKUP($A52,Analysis!$A:$U,3,FALSE)=1,VLOOKUP($A52,Analysis!$A:$U,18,FALSE),#N/A)","v":{"$error":"#VALUE!"}},{"$f":"IF(ISERROR($D52),VLOOKUP($A52,Analysis!$A:$U,18,FALSE),#N/A)","v":{"$error":"#VALUE!"}},{"$error":"#VALUE!"},{"$error":"#VALUE!"},{"$error":"#VALUE!"},null,{"$f":"VLOOKUP($A52,Analysis!$A:$U,10,FALSE)","v":{"$error":"#VALUE!"}},{"$f":"IF(VLOOKUP($A52,Analysis!$A:$U,3,FALSE)=1,ROUND(VLOOKUP($A52,Analysis!$A:$U,17,FALSE),0),#N/A)","v":{"$error":"#VALUE!"}},{"$f":"IF(ISERROR($K52),ROUND(VLOOKUP($A52,Analysis!$A:$U,17,FALSE),0),#N/A)","v":{"$error":"#VALUE!"}},{"$error":"#VALUE!"},{"$error":"#VALUE!"},{"$error":"#VALUE!"}]
[{"$error":"#VALUE!"},{"$error":"#VALUE!"},{"$f":"VLOOKUP($A53,Analysis!$A:$U,11,FALSE)","v":{"$error":"#VALUE!"}},{"$f":"IF(VLOOKUP($A53,Analysis!$A:$U,3,FALSE)=1,VLOOKUP($A53,Analysis!$A:$U,18,FALSE),#N/A)","v":{"$error":"#VALUE!"}},{"$f":"IF(ISERROR($D53),VLOOKUP($A53,Analysis!$A:$U,18,FALSE),#N/A)","v":{"$error":"#VALUE!"}},{"$error":"#VALUE!"},{"$error":"#VALUE!"},{"$error":"#VALUE!"},null,{"$f":"VLOOKUP($A53,Analysis!$A:$U,10,FALSE)","v":{"$error":"#VALUE!"}},{"$f":"IF(VLOOKUP($A53,Analysis!$A:$U,3,FALSE)=1,ROUND(VLOOKUP($A53,Analysis!$A:$U,17,FALSE),0),#N/A)","v":{"$error":"#VALUE!"}},{"$f":"IF(ISERROR($K53),ROUND(VLOOKUP($A53,Analysis!$A:$U,17,FALSE),0),#N/A)","v":{"$error":"#VALUE!"}},{"$error":"#VALUE!"},{"$error":"#VALUE!"},{"$error":"#VALUE!"}]
[{"$error":"#VALUE!"},{"$error":"#VALUE!"},{"$f":"VLOOKUP($A54,Analysis!$A:$U,11,FALSE)","v":{"$error":"#VALUE!"}},{"$f":"IF(VLOOKUP($A54,Analysis!$A:$U,3,FALSE)=1,VLOOKUP($A54,Analysis!$A:$U,18,FALSE),#N/A)","v":{"$error":"#VALUE!"}},{"$f":"IF(ISERROR($D54),VLOOKUP($A54,Analysis!$A:$U,18,FALSE),#N/A)","v":{"$error":"#VALUE!"}},{"$error":"#VALUE!"},{"$error":"#VALUE!"},{"$error":"#VALUE!"},null,{"$f":"VLOOKUP($A54,Analysis!$A:$U,10,FALSE)","v":{"$error":"#VALUE!"}},{"$f":"IF(VLOOKUP($A54,Analysis!$A:$U,3,FALSE)=1,ROUND(VLOOKUP($A54,Analysis!$A:$U,17,FALSE),0),#N/A)","v":{"$error":"#VALUE!"}},{"$f":"IF(ISERROR($K54),ROUND(VLOOKUP($A54,Analysis!$A:$U,17,FALSE),0),#N/A)","v":{"$error":"#VALUE!"}},{"$error":"#VALUE!"},{"$error":"#VALUE!"},{"$error":"#VALUE!"}]
[{"$error":"#VALUE!"},{"$error":"#VALUE!"},{"$f":"VLOOKUP($A55,Analysis!$A:$U,11,FALSE)","v":{"$error":"#VALUE!"}},{"$f":"IF(VLOOKUP($A55,Analysis!$A:$U,3,FALSE)=1,VLOOKUP($A55,Analysis!$A:$U,18,FALSE),#N/A)","v":{"$error":"#VALUE!"}},{"$f":"IF(ISERROR($D55),VLOOKUP($A55,Analysis!$A:$U,18,FALSE),#N/A)","v":{"$error":"#VALUE!"}},{"$error":"#VALUE!"},{"$error":"#VALUE!"},{"$error":"#VALUE!"},null,{"$f":"VLOOKUP($A55,Analysis!$A:$U,10,FALSE)","v":{"$error":"#VALUE!"}},{"$f":"IF(VLOOKUP($A55,Analysis!$A:$U,3,FALSE)=1,ROUND(VLOOKUP($A55,Analysis!$A:$U,17,FALSE),0),#N/A)","v":{"$error":"#VALUE!"}},{"$f":"IF(ISERROR($K55),ROUND(VLOOKUP($A55,Analysis!$A:$U,17,FALSE),0),#N/A)","v":{"$error":"#VALUE!"}},{"$error":"#VALUE!"},{"$error":"#VALUE!"},{"$error":"#VALUE!"}]
[{"$error":"#VALUE!"},{"$error":"#VALUE!"},{"$f":"VLOOKUP($A56,Analysis!$A:$U,11,FALSE)","v":{"$error":"#VALUE!"}},{"$f":"IF(VLOOKUP($A56,Analysis!$A:$U,3,FALSE)=1,VLOOKUP($A56,Analysis!$A:$U,18,FALSE),#N/A)","v":{"$error":"#VALUE!"}},{"$f":"IF(ISERROR($D56),VLOOKUP($A56,Analysis!$A:$U,18,FALSE),#N/A)","v":{"$error":"#VALUE!"}},{"$error":"#VALUE!"},{"$error":"#VALUE!"},{"$error":"#VALUE!"},null,{"$f":"VLOOKUP($A56,Analysis!$A:$U,10,FALSE)","v":{"$error":"#VALUE!"}},{"$f":"IF(VLOOKUP($A56,Analysis!$A:$U,3,FALSE)=1,ROUND(VLOOKUP($A56,Analysis!$A:$U,17,FALSE),0),#N/A)","v":{"$error":"#VALUE!"}},{"$f":"IF(ISERROR($K56),ROUND(VLOOKUP($A56,Analysis!$A:$U,17,FALSE),0),#N/A)","v":{"$error":"#VALUE!"}},{"$error":"#VALUE!"},{"$error":"#VALUE!"},{"$error":"#VALUE!"}]
[{"$error":"#VALUE!"},{"$error":"#VALUE!"},{"$f":"VLOOKUP($A57,Analysis!$A:$U,11,FALSE)","v":{"$error":"#VALUE!"}},{"$f":"IF(VLOOKUP($A57,Analysis!$A:$U,3,FALSE)=1,VLOOKUP($A57,Analysis!$A:$U,18,FALSE),#N/A)","v":{"$error":"#VALUE!"}},{"$f":"IF(ISERROR($D57),VLOOKUP($A57,Analysis!$A:$U,18,FALSE),#N/A)","v":{"$error":"#VALUE!"}},{"$error":"#VALUE!"},{"$error":"#VALUE!"},{"$error":"#VALUE!"},null,{"$f":"VLOOKUP($A57,Analysis!$A:$U,10,FALSE)","v":{"$error":"#VALUE!"}},{"$f":"IF(VLOOKUP($A57,Analysis!$A:$U,3,FALSE)=1,ROUND(VLOOKUP($A57,Analysis!$A:$U,17,FALSE),0),#N/A)","v":{"$error":"#VALUE!"}},{"$f":"IF(ISERROR($K57),ROUND(VLOOKUP($A57,Analysis!$A:$U,17,FALSE),0),#N/A)","v":{"$error":"#VALUE!"}},{"$error":"#VALUE!"},{"$error":"#VALUE!"},{"$error":"#VALUE!"}]
[{"$error":"#VALUE!"},{"$error":"#VALUE!"},{"$f":"VLOOKUP($A58,Analysis!$A:$U,11,FALSE)","v":{"$error":"#VALUE!"}},{"$f":"IF(VLOOKUP($A58,Analysis!$A:$U,3,FALSE)=1,VLOOKUP($A58,Analysis!$A:$U,18,FALSE),#N/A)","v":{"$error":"#VALUE!"}},{"$f":"IF(ISERROR($D58),VLOOKUP($A58,Analysis!$A:$U,18,FALSE),#N/A)","v":{"$error":"#VALUE!"}},{"$error":"#VALUE!"},{"$error":"#VALUE!"},{"$error":"#VALUE!"},null,{"$f":"VLOOKUP($A58,Analysis!$A:$U,10,FALSE)","v":{"$error":"#VALUE!"}},{"$f":"IF(VLOOKUP($A58,Analysis!$A:$U,3,FALSE)=1,ROUND(VLOOKUP($A58,Analysis!$A:$U,17,FALSE),0),#N/A)","v":{"$error":"#VALUE!"}},{"$f":"IF(ISERROR($K58),ROUND(VLOOKUP($A58,Analysis!$A:$U,17,FALSE),0),#N/A)","v":{"$error":"#VALUE!"}},{"$error":"#VALUE!"},{"$error":"#VALUE!"},{"$error":"#VALUE!"}]
[{"$error":"#VALUE!"},{"$error":"#VALUE!"},{"$f":"VLOOKUP($A59,Analysis!$A:$U,11,FALSE)","v":{"$error":"#VALUE!"}},{"$f":"IF(VLOOKUP($A59,Analysis!$A:$U,3,FALSE)=1,VLOOKUP($A59,Analysis!$A:$U,18,FALSE),#N/A)","v":{"$error":"#VALUE!"}},{"$f":"IF(ISERROR($D59),VLOOKUP($A59,Analysis!$A:$U,18,FALSE),#N/A)","v":{"$error":"#VALUE!"}},{"$error":"#VALUE!"},{"$error":"#VALUE!"},{"$error":"#VALUE!"},null,{"$f":"VLOOKUP($A59,Analysis!$A:$U,10,FALSE)","v":{"$error":"#VALUE!"}},{"$f":"IF(VLOOKUP($A59,Analysis!$A:$U,3,FALSE)=1,ROUND(VLOOKUP($A59,Analysis!$A:$U,17,FALSE),0),#N/A)","v":{"$error":"#VALUE!"}},{"$f":"IF(ISERROR($K59),ROUND(VLOOKUP($A59,Analysis!$A:$U,17,FALSE),0),#N/A)","v":{"$error":"#VALUE!"}},{"$error":"#VALUE!"},{"$error":"#VALUE!"},{"$error":"#VALUE!"}]
[{"$error":"#VALUE!"},{"$error":"#VALUE!"},{"$f":"VLOOKUP($A60,Analysis!$A:$U,11,FALSE)","v":{"$error":"#VALUE!"}},{"$f":"IF(VLOOKUP($A60,Analysis!$A:$U,3,FALSE)=1,VLOOKUP($A60,Analysis!$A:$U,18,FALSE),#N/A)","v":{"$error":"#VALUE!"}},{"$f":"IF(ISERROR($D60),VLOOKUP($A60,Analysis!$A:$U,18,FALSE),#N/A)","v":{"$error":"#VALUE!"}},{"$error":"#VALUE!"},{"$error":"#VALUE!"},{"$error":"#VALUE!"},null,{"$f":"VLOOKUP($A60,Analysis!$A:$U,10,FALSE)","v":{"$error":"#VALUE!"}},{"$f":"IF(VLOOKUP($A60,Analysis!$A:$U,3,FALSE)=1,ROUND(VLOOKUP($A60,Analysis!$A:$U,17,FALSE),0),#N/A)","v":{"$error":"#VALUE!"}},{"$f":"IF(ISERROR($K60),ROUND(VLOOKUP($A60,Analysis!$A:$U,17,FALSE),0),#N/A)","v":{"$error":"#VALUE!"}},{"$error":"#VALUE!"},{"$error":"#VALUE!"},{"$error":"#VALUE!"}]
[{"$error":"#VALUE!"},{"$error":"#VALUE!"},{"$f":"VLOOKUP($A61,Analysis!$A:$U,11,FALSE)","v":{"$error":"#VALUE!"}},{"$f":"IF(VLOOKUP($A61,Analysis!$A:$U,3,FALSE)=1,VLOOKUP($A61,Analysis!$A:$U,18,FALSE),#N/A)","v":{"$error":"#VALUE!"}},{"$f":"IF(ISERROR($D61),VLOOKUP($A61,Analysis!$A:$U,18,FALSE),#N/A)","v":{"$error":"#VALUE!"}},{"$error":"#VALUE!"},{"$error":"#VALUE!"},{"$error":"#VALUE!"},null,{"$f":"VLOOKUP($A61,Analysis!$A:$U,10,FALSE)","v":{"$error":"#VALUE!"}},{"$f":"IF(VLOOKUP($A61,Analysis!$A:$U,3,FALSE)=1,ROUND(VLOOKUP($A61,Analysis!$A:$U,17,FALSE),0),#N/A)","v":{"$error":"#VALUE!"}},{"$f":"IF(ISERROR($K61),ROUND(VLOOKUP($A61,Analysis!$A:$U,17,FALSE),0),#N/A)","v":{"$error":"#VALUE!"}},{"$error":"#VALUE!"},{"$error":"#VALUE!"},{"$error":"#VALUE!"}]
[{"$error":"#VALUE!"},{"$error":"#VALUE!"},{"$f":"VLOOKUP($A62,Analysis!$A:$U,11,FALSE)","v":{"$error":"#VALUE!"}},{"$f":"IF(VLOOKUP($A62,Analysis!$A:$U,3,FALSE)=1,VLOOKUP($A62,Analysis!$A:$U,18,FALSE),#N/A)","v":{"$error":"#VALUE!"}},{"$f":"IF(ISERROR($D62),VLOOKUP($A62,Analysis!$A:$U,18,FALSE),#N/A)","v":{"$error":"#VALUE!"}},{"$error":"#VALUE!"},{"$error":"#VALUE!"},{"$error":"#VALUE!"},null,{"$f":"VLOOKUP($A62,Analysis!$A:$U,10,FALSE)","v":{"$error":"#VALUE!"}},{"$f":"IF(VLOOKUP($A62,Analysis!$A:$U,3,FALSE)=1,ROUND(VLOOKUP($A62,Analysis!$A:$U,17,FALSE),0),#N/A)","v":{"$error":"#VALUE!"}},{"$f":"IF(ISERROR($K62),ROUND(VLOOKUP($A62,Analysis!$A:$U,17,FALSE),0),#N/A)","v":{"$error":"#VALUE!"}},{"$error":"#VALUE!"},{"$error":"#VALUE!"},{"$error":"#VALUE!"}]
[{"$error":"#VALUE!"},{"$error":"#VALUE!"},{"$f":"VLOOKUP($A63,Analysis!$A:$U,11,FALSE)","v":{"$error":"#VALUE!"}},{"$f":"IF(VLOOKUP($A63,Analysis!$A:$U,3,FALSE)=1,VLOOKUP($A63,Analysis!$A:$U,18,FALSE),#N/A)","v":{"$error":"#VALUE!"}},{"$f":"IF(ISERROR($D63),VLOOKUP($A63,Analysis!$A:$U,18,FALSE),#N/A)","v":{"$error":"#VALUE!"}},{"$error":"#VALUE!"},{"$error":"#VALUE!"},{"$error":"#VALUE!"},null,{"$f":"VLOOKUP($A63,Analysis!$A:$U,10,FALSE)","v":{"$error":"#VALUE!"}},{"$f":"IF(VLOOKUP($A63,Analysis!$A:$U,3,FALSE)=1,ROUND(VLOOKUP($A63,Analysis!$A:$U,17,FALSE),0),#N/A)","v":{"$error":"#VALUE!"}},{"$f":"IF(ISERROR($K63),ROUND(VLOOKUP($A63,Analysis!$A:$U,17,FALSE),0),#N/A)","v":{"$error":"#VALUE!"}},{"$error":"#VALUE!"},{"$error":"#VALUE!"},{"$error":"#VALUE!"}]
[{"$error":"#VALUE!"},{"$error":"#VALUE!"},{"$f":"VLOOKUP($A64,Analysis!$A:$U,11,FALSE)","v":{"$error":"#VALUE!"}},{"$f":"IF(VLOOKUP($A64,Analysis!$A:$U,3,FALSE)=1,VLOOKUP($A64,Analysis!$A:$U,18,FALSE),#N/A)","v":{"$error":"#VALUE!"}},{"$f":"IF(ISERROR($D64),VLOOKUP($A64,Analysis!$A:$U,18,FALSE),#N/A)","v":{"$error":"#VALUE!"}},{"$error":"#VALUE!"},{"$error":"#VALUE!"},{"$error":"#VALUE!"},null,{"$f":"VLOOKUP($A64,Analysis!$A:$U,10,FALSE)","v":{"$error":"#VALUE!"}},{"$f":"IF(VLOOKUP($A64,Analysis!$A:$U,3,FALSE)=1,ROUND(VLOOKUP($A64,Analysis!$A:$U,17,FALSE),0),#N/A)","v":{"$error":"#VALUE!"}},{"$f":"IF(ISERROR($K64),ROUND(VLOOKUP($A64,Analysis!$A:$U,17,FALSE),0),#N/A)","v":{"$error":"#VALUE!"}},{"$error":"#VALUE!"},{"$error":"#VALUE!"},{"$error":"#VALUE!"}]
[{"$error":"#VALUE!"},{"$error":"#VALUE!"},{"$f":"VLOOKUP($A65,Analysis!$A:$U,11,FALSE)","v":{"$error":"#VALUE!"}},{"$f":"IF(VLOOKUP($A65,Analysis!$A:$U,3,FALSE)=1,VLOOKUP($A65,Analysis!$A:$U,18,FALSE),#N/A)","v":{"$error":"#VALUE!"}},{"$f":"IF(ISERROR($D65),VLOOKUP($A65,Analysis!$A:$U,18,FALSE),#N/A)","v":{"$error":"#VALUE!"}},{"$error":"#VALUE!"},{"$error":"#VALUE!"},{"$error":"#VALUE!"},null,{"$f":"VLOOKUP($A65,Analysis!$A:$U,10,FALSE)","v":{"$error":"#VALUE!"}},{"$f":"IF(VLOOKUP($A65,Analysis!$A:$U,3,FALSE)=1,ROUND(VLOOKUP($A65,Analysis!$A:$U,17,FALSE),0),#N/A)","v":{"$error":"#VALUE!"}},{"$f":"IF(ISERROR($K65),ROUND(VLOOKUP($A65,Analysis!$A:$U,17,FALSE),0),#N/A)","v":{"$error":"#VALUE!"}},{"$error":"#VALUE!"},{"$error":"#VALUE!"},{"$error":"#VALUE!"}]
[{"$f":"Item_ID","v":{"$error":"#VALUE!"}},{"$f":"Valuation_Method","v":{"$error":"#VALUE!"}},{"$f":"VLOOKUP($A66,Analysis!$A:$U,11,FALSE)","v":{"$error":"#VALUE!"}},{"$f":"IF(VLOOKUP($A66,Analysis!$A:$U,3,FALSE)=1,VLOOKUP($A66,Analysis!$A:$U,18,FALSE),#N/A)","v":{"$error":"#VALUE!"}},{"$f":"IF(ISERROR($D66),VLOOKUP($A66,Analysis!$A:$U,18,FALSE),#N/A)","v":{"$error":"#VALUE!"}},{"$error":"#VALUE!"},{"$error":"#VALUE!"},{"$error":"#VALUE!"},null,{"$f":"VLOOKUP($A66,Analysis!$A:$U,10,FALSE)","v":{"$error":"#VALUE!"}},{"$f":"IF(VLOOKUP($A66,Analysis!$A:$U,3,FALSE)=1,ROUND(VLOOKUP($A66,Analysis!$A:$U,17,FALSE),0),#N/A)","v":{"$error":"#VALUE!"}},{"$f":"IF(ISERROR($K66),ROUND(VLOOKUP($A66,Analysis!$A:$U,17,FALSE),0),#N/A)","v":{"$error":"#VALUE!"}},{"$error":"#VALUE!"},{"$error":"#VALUE!"},{"$error":"#VALUE!"}]
[{"$error":"#VALUE!"},{"$error":"#VALUE!"},{"$f":"VLOOKUP($A67,Analysis!$A:$U,11,FALSE)","v":{"$error":"#VALUE!"}},{"$f":"IF(VLOOKUP($A67,Analysis!$A:$U,3,FALSE)=1,VLOOKUP($A67,Analysis!$A:$U,18,FALSE),#N/A)","v":{"$error":"#VALUE!"}},{"$f":"IF(ISERROR($D67),VLOOKUP($A67,Analysis!$A:$U,18,FALSE),#N/A)","v":{"$error":"#VALUE!"}},{"$f":"IF($B67=\"Vacant\",$D67,#N/A)","v":{"$error":"#VALUE!"}},{"$f":"IF($B67=\"Abstraction\",$D67,#N/A)","v":{"$error":"#VALUE!"}},{"$f":"IF($B67=\"Allocation\",$D67,#N/A)","v":{"$error":"#VALUE!"}},null,{"$f":"VLOOKUP($A67,Analysis!$A:$U,10,FALSE)","v":{"$error":"#VALUE!"}},{"$f":"IF(VLOOKUP($A67,Analysis!$A:$U,3,FALSE)=1,ROUND(VLOOKUP($A67,Analysis!$A:$U,17,FALSE),0),#N/A)","v":{"$error":"#VALUE!"}},{"$f":"IF(ISERROR($K67),ROUND(VLOOKUP($A67,Analysis!$A:$U,17,FALSE),0),#N/A)","v":{"$error":"#VALUE!"}},{"$f":"IF($B67=\"Vacant\",$K67,#N/A)","v":{"$error":"#VALUE!"}},{"$f":"IF($B67=\"Abstraction\",$K67,#N/A)","v":{"$error":"#VALUE!"}},{"$f":"IF($B67=\"Allocation\",$K67,#N/A)","v":{"$error":"#VALUE!"}}]
[{"$error":"#VALUE!"},{"$error":"#VALUE!"},{"$f":"VLOOKUP($A68,Analysis!$A:$U,11,FALSE)","v":{"$error":"#VALUE!"}},{"$f":"IF(VLOOKUP($A68,Analysis!$A:$U,3,FALSE)=1,VLOOKUP($A68,Analysis!$A:$U,18,FALSE),#N/A)","v":{"$error":"#VALUE!"}},{"$f":"IF(ISERROR($D68),VLOOKUP($A68,Analysis!$A:$U,18,FALSE),#N/A)","v":{"$error":"#VALUE!"}},{"$error":"#VALUE!"},{"$error":"#VALUE!"},{"$error":"#VALUE!"},null,{"$f":"VLOOKUP($A68,Analysis!$A:$U,10,FALSE)","v":{"$error":"#VALUE!"}},{"$f":"IF(VLOOKUP($A68,Analysis!$A:$U,3,FALSE)=1,ROUND(VLOOKUP($A68,Analysis!$A:$U,17,FALSE),0),#N/A)","v":{"$error":"#VALUE!"}},{"$f":"IF(ISERROR($K68),ROUND(VLOOKUP($A68,Analysis!$A:$U,17,FALSE),0),#N/A)","v":{"$error":"#VALUE!"}},{"$error":"#VALUE!"},{"$error":"#VALUE!"},{"$error":"#VALUE!"}]
[{"$error":"#VALUE!"},{"$error":"#VALUE!"},{"$f":"VLOOKUP($A69,Analysis!$A:$U,11,FALSE)","v":{"$error":"#VALUE!"}},{"$f":"IF(VLOOKUP($A69,Analysis!$A:$U,3,FALSE)=1,VLOOKUP($A69,Analysis!$A:$U,18,FALSE),#N/A)","v":{"$error":"#VALUE!"}},{"$f":"IF(ISERROR($D69),VLOOKUP($A69,Analysis!$A:$U,18,FALSE),#N/A)","v":{"$error":"#VALUE!"}},{"$error":"#VALUE!"},{"$error":"#VALUE!"},{"$error":"#VALUE!"},null,{"$f":"VLOOKUP($A69,Analysis!$A:$U,10,FALSE)","v":{"$error":"#VALUE!"}},{"$f":"IF(VLOOKUP($A69,Analysis!$A:$U,3,FALSE)=1,ROUND(VLOOKUP($A69,Analysis!$A:$U,17,FALSE),0),#N/A)","v":{"$error":"#VALUE!"}},{"$f":"IF(ISERROR($K69),ROUND(VLOOKUP($A69,Analysis!$A:$U,17,FALSE),0),#N/A)","v":{"$error":"#VALUE!"}},{"$error":"#VALUE!"},{"$error":"#VALUE!"},{"$error":"#VALUE!"}]
[{"$error":"#VALUE!"},{"$error":"#VALUE!"},{"$f":"VLOOKUP($A70,Analysis!$A:$U,11,FALSE)","v":{"$error":"#VALUE!"}},{"$f":"IF(VLOOKUP($A70,Analysis!$A:$U,3,FALSE)=1,VLOOKUP($A70,Analysis!$A:$U,18,FALSE),#N/A)","v":{"$error":"#VALUE!"}},{"$f":"IF(ISERROR($D70),VLOOKUP($A70,Analysis!$A:$U,18,FALSE),#N/A)","v":{"$error":"#VALUE!"}},{"$error":"#VALUE!"},{"$error":"#VALUE!"},{"$error":"#VALUE!"},null,{"$f":"VLOOKUP($A70,Analysis!$A:$U,10,FALSE)","v":{"$error":"#VALUE!"}},{"$f":"IF(VLOOKUP($A70,Analysis!$A:$U,3,FALSE)=1,ROUND(VLOOKUP($A70,Analysis!$A:$U,17,FALSE),0),#N/A)","v":{"$error":"#VALUE!"}},{"$f":"IF(ISERROR($K70),ROUND(VLOOKUP($A70,Analysis!$A:$U,17,FALSE),0),#N/A)","v":{"$error":"#VALUE!"}},{"$error":"#VALUE!"},{"$error":"#VALUE!"},{"$error":"#VALUE!"}]
[{"$error":"#VALUE!"},{"$error":"#VALUE!"},{"$f":"VLOOKUP($A71,Analysis!$A:$U,11,FALSE)","v":{"$error":"#VALUE!"}},{"$f":"IF(VLOOKUP($A71,Analysis!$A:$U,3,FALSE)=1,VLOOKUP($A71,Analysis!$A:$U,18,FALSE),#N/A)","v":{"$error":"#VALUE!"}},{"$f":"IF(ISERROR($D71),VLOOKUP($A71,Analysis!$A:$U,18,FALSE),#N/A)","v":{"$error":"#VALUE!"}},{"$error":"#VALUE!"},{"$error":"#VALUE!"},{"$error":"#VALUE!"},null,{"$f":"VLOOKUP($A71,Analysis!$A:$U,10,FALSE)","v":{"$error":"#VALUE!"}},{"$f":"IF(VLOOKUP($A71,Analysis!$A:$U,3,FALSE)=1,ROUND(VLOOKUP($A71,Analysis!$A:$U,17,FALSE),0),#N/A)","v":{"$error":"#VALUE!"}},{"$f":"IF(ISERROR($K71),ROUND(VLOOKUP($A71,Analysis!$A:$U,17,FALSE),0),#N/A)","v":{"$error":"#VALUE!"}},{"$error":"#VALUE!"},{"$error":"#VALUE!"},{"$error":"#VALUE!"}]
[{"$error":"#VALUE!"},{"$error":"#VALUE!"},{"$f":"VLOOKUP($A72,Analysis!$A:$U,11,FALSE)","v":{"$error":"#VALUE!"}},{"$f":"IF(VLOOKUP($A72,Analysis!$A:$U,3,FALSE)=1,VLOOKUP($A72,Analysis!$A:$U,18,FALSE),#N/A)","v":{"$error":"#VALUE!"}},{"$f":"IF(ISERROR($D72),VLOOKUP($A72,Analysis!$A:$U,18,FALSE),#N/A)","v":{"$error":"#VALUE!"}},{"$error":"#VALUE!"},{"$error":"#VALUE!"},{"$error":"#VALUE!"},null,{"$f":"VLOOKUP($A72,Analysis!$A:$U,10,FALSE)","v":{"$error":"#VALUE!"}},{"$f":"IF(VLOOKUP($A72,Analysis!$A:$U,3,FALSE)=1,ROUND(VLOOKUP($A72,Analysis!$A:$U,17,FALSE),0),#N/A)","v":{"$error":"#VALUE!"}},{"$f":"IF(ISERROR($K72),ROUND(VLOOKUP($A72,Analysis!$A:$U,17,FALSE),0),#N/A)","v":{"$error":"#VALUE!"}},{"$error":"#VALUE!"},{"$error":"#VALUE!"},{"$error":"#VALUE!"}]
[{"$error":"#VALUE!"},{"$error":"#VALUE!"},{"$f":"VLOOKUP($A73,Analysis!$A:$U,11,FALSE)","v":{"$error":"#VALUE!"}},{"$f":"IF(VLOOKUP($A73,Analysis!$A:$U,3,FALSE)=1,VLOOKUP($A73,Analysis!$A:$U,18,FALSE),#N/A)","v":{"$error":"#VALUE!"}},{"$f":"IF(ISERROR($D73),VLOOKUP($A73,Analysis!$A:$U,18,FALSE),#N/A)","v":{"$error":"#VALUE!"}},{"$error":"#VALUE!"},{"$error":"#VALUE!"},{"$error":"#VALUE!"},null,{"$f":"VLOOKUP($A73,Analysis!$A:$U,10,FALSE)","v":{"$error":"#VALUE!"}},{"$f":"IF(VLOOKUP($A73,Analysis!$A:$U,3,FALSE)=1,ROUND(VLOOKUP($A73,Analysis!$A:$U,17,FALSE),0),#N/A)","v":{"$error":"#VALUE!"}},{"$f":"IF(ISERROR($K73),ROUND(VLOOKUP($A73,Analysis!$A:$U,17,FALSE),0),#N/A)","v":{"$error":"#VALUE!"}},{"$error":"#VALUE!"},{"$error":"#VALUE!"},{"$error":"#VALUE!"}]
[{"$error":"#VALUE!"},{"$error":"#VALUE!"},{"$f":"VLOOKUP($A74,Analysis!$A:$U,11,FALSE)","v":{"$error":"#VALUE!"}},{"$f":"IF(VLOOKUP($A74,Analysis!$A:$U,3,FALSE)=1,VLOOKUP($A74,Analysis!$A:$U,18,FALSE),#N/A)","v":{"$error":"#VALUE!"}},{"$f":"IF(ISERROR($D74),VLOOKUP($A74,Analysis!$A:$U,18,FALSE),#N/A)","v":{"$error":"#VALUE!"}},{"$error":"#VALUE!"},{"$error":"#VALUE!"},{"$error":"#VALUE!"},null,{"$f":"VLOOKUP($A74,Analysis!$A:$U,10,FALSE)","v":{"$error":"#VALUE!"}},{"$f":"IF(VLOOKUP($A74,Analysis!$A:$U,3,FALSE)=1,ROUND(VLOOKUP($A74,Analysis!$A:$U,17,FALSE),0),#N/A)","v":{"$error":"#VALUE!"}},{"$f":"IF(ISERROR($K74),ROUND(VLOOKUP($A74,Analysis!$A:$U,17,FALSE),0),#N/A)","v":{"$error":"#VALUE!"}},{"$error":"#VALUE!"},{"$error":"#VALUE!"},{"$error":"#VALUE!"}]
[{"$error":"#VALUE!"},{"$error":"#VALUE!"},{"$f":"VLOOKUP($A75,Analysis!$A:$U,11,FALSE)","v":{"$error":"#VALUE!"}},{"$f":"IF(VLOOKUP($A75,Analysis!$A:$U,3,FALSE)=1,VLOOKUP($A75,Analysis!$A:$U,18,FALSE),#N/A)","v":{"$error":"#VALUE!"}},{"$f":"IF(ISERROR($D75),VLOOKUP($A75,Analysis!$A:$U,18,FALSE),#N/A)","v":{"$error":"#VALUE!"}},{"$error":"#VALUE!"},{"$error":"#VALUE!"},{"$error":"#VALUE!"},null,{"$f":"VLOOKUP($A75,Analysis!$A:$U,10,FALSE)","v":{"$error":"#VALUE!"}},{"$f":"IF(VLOOKUP($A75,Analysis!$A:$U,3,FALSE)=1,ROUND(VLOOKUP($A75,Analysis!$A:$U,17,FALSE),0),#N/A)","v":{"$error":"#VALUE!"}},{"$f":"IF(ISERROR($K75),ROUND(VLOOKUP($A75,Analysis!$A:$U,17,FALSE),0),#N/A)","v":{"$error":"#VALUE!"}},{"$error":"#VALUE!"},{"$error":"#VALUE!"},{"$error":"#VALUE!"}]
[{"$error":"#VALUE!"},{"$error":"#VALUE!"},{"$f":"VLOOKUP($A76,Analysis!$A:$U,11,FALSE)","v":{"$error":"#VALUE!"}},{"$f":"IF(VLOOKUP($A76,Analysis!$A:$U,3,FALSE)=1,VLOOKUP($A76,Analysis!$A:$U,18,FALSE),#N/A)","v":{"$error":"#VALUE!"}},{"$f":"IF(ISERROR($D76),VLOOKUP($A76,Analysis!$A:$U,18,FALSE),#N/A)","v":{"$error":"#VALUE!"}},{"$error":"#VALUE!"},{"$error":"#VALUE!"},{"$error":"#VALUE!"},null,{"$f":"VLOOKUP($A76,Analysis!$A:$U,10,FALSE)","v":{"$error":"#VALUE!"}},{"$f":"IF(VLOOKUP($A76,Analysis!$A:$U,3,FALSE)=1,ROUND(VLOOKUP($A76,Analysis!$A:$U,17,FALSE),0),#N/A)","v":{"$error":"#VALUE!"}},{"$f":"IF(ISERROR($K76),ROUND(VLOOKUP($A76,Analysis!$A:$U,17,FALSE),0),#N/A)","v":{"$error":"#VALUE!"}},{"$error":"#VALUE!"},{"$error":"#VALUE!"},{"$error":"#VALUE!"}]
[{"$error":"#VALUE!"},{"$error":"#VALUE!"},{"$f":"VLOOKUP($A77,Analysis!$A:$U,11,FALSE)","v":{"$error":"#VALUE!"}},{"$f":"IF(VLOOKUP($A77,Analysis!$A:$U,3,FALSE)=1,VLOOKUP($A77,Analysis!$A:$U,18,FALSE),#N/A)","v":{"$error":"#VALUE!"}},{"$f":"IF(ISERROR($D77),VLOOKUP($A77,Analysis!$A:$U,18,FALSE),#N/A)","v":{"$error":"#VALUE!"}},{"$error":"#VALUE!"},{"$error":"#VALUE!"},{"$error":"#VALUE!"},null,{"$f":"VLOOKUP($A77,Analysis!$A:$U,10,FALSE)","v":{"$error":"#VALUE!"}},{"$f":"IF(VLOOKUP($A77,Analysis!$A:$U,3,FALSE)=1,ROUND(VLOOKUP($A77,Analysis!$A:$U,17,FALSE),0),#N/A)","v":{"$error":"#VALUE!"}},{"$f":"IF(ISERROR($K77),ROUND(VLOOKUP($A77,Analysis!$A:$U,17,FALSE),0),#N/A)","v":{"$error":"#VALUE!"}},{"$error":"#VALUE!"},{"$error":"#VALUE!"},{"$error":"#VALUE!"}]
[{"$error":"#VALUE!"},{"$error":"#VALUE!"},{"$f":"VLOOKUP($A78,Analysis!$A:$U,11,FALSE)","v":{"$error":"#VALUE!"}},{"$f":"IF(VLOOKUP($A78,Analysis!$A:$U,3,FALSE)=1,VLOOKUP($A78,Analysis!$A:$U,18,FALSE),#N/A)","v":{"$error":"#VALUE!"}},{"$f":"IF(ISERROR($D78),VLOOKUP($A78,Analysis!$A:$U,18,FALSE),#N/A)","v":{"$error":"#VALUE!"}},{"$error":"#VALUE!"},{"$error":"#VALUE!"},{"$error":"#VALUE!"},null,{"$f":"VLOOKUP($A78,Analysis!$A:$U,10,FALSE)","v":{"$error":"#VALUE!"}},{"$f":"IF(VLOOKUP($A78,Analysis!$A:$U,3,FALSE)=1,ROUND(VLOOKUP($A78,Analysis!$A:$U,17,FALSE),0),#N/A)","v":{"$error":"#VALUE!"}},{"$f":"IF(ISERROR($K78),ROUND(VLOOKUP($A78,Analysis!$A:$U,17,FALSE),0),#N/A)","v":{"$error":"#VALUE!"}},{"$error":"#VALUE!"},{"$error":"#VALUE!"},{"$error":"#VALUE!"}]
[{"$error":"#VALUE!"},{"$error":"#VALUE!"},{"$f":"VLOOKUP($A79,Analysis!$A:$U,11,FALSE)","v":{"$error":"#VALUE!"}},{"$f":"IF(VLOOKUP($A79,Analysis!$A:$U,3,FALSE)=1,VLOOKUP($A79,Analysis!$A:$U,18,FALSE),#N/A)","v":{"$error":"#VALUE!"}},{"$f":"IF(ISERROR($D79),VLOOKUP($A79,Analysis!$A:$U,18,FALSE),#N/A)","v":{"$error":"#VALUE!"}},{"$error":"#VALUE!"},{"$error":"#VALUE!"},{"$error":"#VALUE!"},null,{"$f":"VLOOKUP($A79,Analysis!$A:$U,10,FALSE)","v":{"$error":"#VALUE!"}},{"$f":"IF(VLOOKUP($A79,Analysis!$A:$U,3,FALSE)=1,ROUND(VLOOKUP($A79,Analysis!$A:$U,17,FALSE),0),#N/A)","v":{"$error":"#VALUE!"}},{"$f":"IF(ISERROR($K79),ROUND(VLOOKUP($A79,Analysis!$A:$U,17,FALSE),0),#N/A)","v":{"$error":"#VALUE!"}},{"$error":"#VALUE!"},{"$error":"#VALUE!"},{"$error":"#VALUE!"}]
[{"$error":"#VALUE!"},{"$error":"#VALUE!"},{"$f":"VLOOKUP($A80,Analysis!$A:$U,11,FALSE)","v":{"$error":"#VALUE!"}},{"$f":"IF(VLOOKUP($A80,Analysis!$A:$U,3,FALSE)=1,VLOOKUP($A80,Analysis!$A:$U,18,FALSE),#N/A)","v":{"$error":"#VALUE!"}},{"$f":"IF(ISERROR($D80),VLOOKUP($A80,Analysis!$A:$U,18,FALSE),#N/A)","v":{"$error":"#VALUE!"}},{"$error":"#VALUE!"},{"$error":"#VALUE!"},{"$error":"#VALUE!"},null,{"$f":"VLOOKUP($A80,Analysis!$A:$U,10,FALSE)","v":{"$error":"#VALUE!"}},{"$f":"IF(VLOOKUP($A80,Analysis!$A:$U,3,FALSE)=1,ROUND(VLOOKUP($A80,Analysis!$A:$U,17,FALSE),0),#N/A)","v":{"$error":"#VALUE!"}},{"$f":"IF(ISERROR($K80),ROUND(VLOOKUP($A80,Analysis!$A:$U,17,FALSE),0),#N/A)","v":{"$error":"#VALUE!"}},{"$error":"#VALUE!"},{"$error":"#VALUE!"},{"$error":"#VALUE!"}]
[{"$error":"#VALUE!"},{"$error":"#VALUE!"},{"$f":"VLOOKUP($A81,Analysis!$A:$U,11,FALSE)","v":{"$error":"#VALUE!"}},{"$f":"IF(VLOOKUP($A81,Analysis!$A:$U,3,FALSE)=1,VLOOKUP($A81,Analysis!$A:$U,18,FALSE),#N/A)","v":{"$error":"#VALUE!"}},{"$f":"IF(ISERROR($D81),VLOOKUP($A81,Analysis!$A:$U,18,FALSE),#N/A)","v":{"$error":"#VALUE!"}},{"$error":"#VALUE!"},{"$error":"#VALUE!"},{"$error":"#VALUE!"},null,{"$f":"VLOOKUP($A81,Analysis!$A:$U,10,FALSE)","v":{"$error":"#VALUE!"}},{"$f":"IF(VLOOKUP($A81,Analysis!$A:$U,3,FALSE)=1,ROUND(VLOOKUP($A81,Analysis!$A:$U,17,FALSE),0),#N/A)","v":{"$error":"#VALUE!"}},{"$f":"IF(ISERROR($K81),ROUND(VLOOKUP($A81,Analysis!$A:$U,17,FALSE),0),#N/A)","v":{"$error":"#VALUE!"}},{"$error":"#VALUE!"},{"$error":"#VALUE!"},{"$error":"#VALUE!"}]
[{"$error":"#VALUE!"},{"$error":"#VALUE!"},{"$f":"VLOOKUP($A82,Analysis!$A:$U,11,FALSE)","v":{"$error":"#VALUE!"}},{"$f":"IF(VLOOKUP($A82,Analysis!$A:$U,3,FALSE)=1,VLOOKUP($A82,Analysis!$A:$U,18,FALSE),#N/A)","v":{"$error":"#VALUE!"}},{"$f":"IF(ISERROR($D82),VLOOKUP($A82,Analysis!$A:$U,18,FALSE),#N/A)","v":{"$error":"#VALUE!"}},{"$error":"#VALUE!"},{"$error":"#VALUE!"},{"$error":"#VALUE!"},null,{"$f":"VLOOKUP($A82,Analysis!$A:$U,10,FALSE)","v":{"$error":"#VALUE!"}},{"$f":"IF(VLOOKUP($A82,Analysis!$A:$U,3,FALSE)=1,ROUND(VLOOKUP($A82,Analysis!$A:$U,17,FALSE),0),#N/A)","v":{"$error":"#VALUE!"}},{"$f":"IF(ISERROR($K82),ROUND(VLOOKUP($A82,Analysis!$A:$U,17,FALSE),0),#N/A)","v":{"$error":"#VALUE!"}},{"$error":"#VALUE!"},{"$error":"#VALUE!"},{"$error":"#VALUE!"}]
[{"$error":"#VALUE!"},{"$error":"#VALUE!"},{"$f":"VLOOKUP($A83,Analysis!$A:$U,11,FALSE)","v":{"$error":"#VALUE!"}},{"$f":"IF(VLOOKUP($A83,Analysis!$A:$U,3,FALSE)=1,VLOOKUP($A83,Analysis!$A:$U,18,FALSE),#N/A)","v":{"$error":"#VALUE!"}},{"$f":"IF(ISERROR($D83),VLOOKUP($A83,Analysis!$A:$U,18,FALSE),#N/A)","v":{"$error":"#VALUE!"}},{"$error":"#VALUE!"},{"$error":"#VALUE!"},{"$error":"#VALUE!"},null,{"$f":"VLOOKUP($A83,Analysis!$A:$U,10,FALSE)","v":{"$error":"#VALUE!"}},{"$f":"IF(VLOOKUP($A83,Analysis!$A:$U,3,FALSE)=1,ROUND(VLOOKUP($A83,Analysis!$A:$U,17,FALSE),0),#N/A)","v":{"$error":"#VALUE!"}},{"$f":"IF(ISERROR($K83),ROUND(VLOOKUP($A83,Analysis!$A:$U,17,FALSE),0),#N/A)","v":{"$error":"#VALUE!"}},{"$error":"#VALUE!"},{"$error":"#VALUE!"},{"$error":"#VALUE!"}]
[{"$error":"#VALUE!"},{"$error":"#VALUE!"},{"$f":"VLOOKUP($A84,Analysis!$A:$U,11,FALSE)","v":{"$error":"#VALUE!"}},{"$f":"IF(VLOOKUP($A84,Analysis!$A:$U,3,FALSE)=1,VLOOKUP($A84,Analysis!$A:$U,18,FALSE),#N/A)","v":{"$error":"#VALUE!"}},{"$f":"IF(ISERROR($D84),VLOOKUP($A84,Analysis!$A:$U,18,FALSE),#N/A)","v":{"$error":"#VALUE!"}},{"$error":"#VALUE!"},{"$error":"#VALUE!"},{"$error":"#VALUE!"},null,{"$f":"VLOOKUP($A84,Analysis!$A:$U,10,FALSE)","v":{"$error":"#VALUE!"}},{"$f":"IF(VLOOKUP($A84,Analysis!$A:$U,3,FALSE)=1,ROUND(VLOOKUP($A84,Analysis!$A:$U,17,FALSE),0),#N/A)","v":{"$error":"#VALUE!"}},{"$f":"IF(ISERROR($K84),ROUND(VLOOKUP($A84,Analysis!$A:$U,17,FALSE),0),#N/A)","v":{"$error":"#VALUE!"}},{"$error":"#VALUE!"},{"$error":"#VALUE!"},{"$error":"#VALUE!"}]
[{"$error":"#VALUE!"},{"$error":"#VALUE!"},{"$f":"VLOOKUP($A85,Analysis!$A:$U,11,FALSE)","v":{"$error":"#VALUE!"}},{"$f":"IF(VLOOKUP($A85,Analysis!$A:$U,3,FALSE)=1,VLOOKUP($A85,Analysis!$A:$U,18,FALSE),#N/A)","v":{"$error":"#VALUE!"}},{"$f":"IF(ISERROR($D85),VLOOKUP($A85,Analysis!$A:$U,18,FALSE),#N/A)","v":{"$error":"#VALUE!"}},{"$error":"#VALUE!"},{"$error":"#VALUE!"},{"$error":"#VALUE!"},null,{"$f":"VLOOKUP($A85,Analysis!$A:$U,10,FALSE)","v":{"$error":"#VALUE!"}},{"$f":"IF(VLOOKUP($A85,Analysis!$A:$U,3,FALSE)=1,ROUND(VLOOKUP($A85,Analysis!$A:$U,17,FALSE),0),#N/A)","v":{"$error":"#VALUE!"}},{"$f":"IF(ISERROR($K85),ROUND(VLOOKUP($A85,Analysis!$A:$U,17,FALSE),0),#N/A)","v":{"$error":"#VALUE!"}},{"$error":"#VALUE!"},{"$error":"#VALUE!"},{"$error":"#VALUE!"}]
[{"$error":"#VALUE!"},{"$error":"#VALUE!"},{"$f":"VLOOKUP($A86,Analysis!$A:$U,11,FALSE)","v":{"$error":"#VALUE!"}},{"$f":"IF(VLOOKUP($A86,Analysis!$A:$U,3,FALSE)=1,VLOOKUP($A86,Analysis!$A:$U,18,FALSE),#N/A)","v":{"$error":"#VALUE!"}},{"$f":"IF(ISERROR($D86),VLOOKUP($A86,Analysis!$A:$U,18,FALSE),#N/A)","v":{"$error":"#VALUE!"}},{"$error":"#VALUE!"},{"$error":"#VALUE!"},{"$error":"#VALUE!"},null,{"$f":"VLOOKUP($A86,Analysis!$A:$U,10,FALSE)","v":{"$error":"#VALUE!"}},{"$f":"IF(VLOOKUP($A86,Analysis!$A:$U,3,FALSE)=1,ROUND(VLOOKUP($A86,Analysis!$A:$U,17,FALSE),0),#N/A)","v":{"$error":"#VALUE!"}},{"$f":"IF(ISERROR($K86),ROUND(VLOOKUP($A86,Analysis!$A:$U,17,FALSE),0),#N/A)","v":{"$error":"#VALUE!"}},{"$error":"#VALUE!"},{"$error":"#VALUE!"},{"$error":"#VALUE!"}]
[{"$error":"#VALUE!"},{"$error":"#VALUE!"},{"$f":"VLOOKUP($A87,Analysis!$A:$U,11,FALSE)","v":{"$error":"#VALUE!"}},{"$f":"IF(VLOOKUP($A87,Analysis!$A:$U,3,FALSE)=1,VLOOKUP($A87,Analysis!$A:$U,18,FALSE),#N/A)","v":{"$error":"#VALUE!"}},{"$f":"IF(ISERROR($D87),VLOOKUP($A87,Analysis!$A:$U,18,FALSE),#N/A)","v":{"$error":"#VALUE!"}},{"$error":"#VALUE!"},{"$error":"#VALUE!"},{"$error":"#VALUE!"},null,{"$f":"VLOOKUP($A87,Analysis!$A:$U,10,FALSE)","v":{"$error":"#VALUE!"}},{"$f":"IF(VLOOKUP($A87,Analysis!$A:$U,3,FALSE)=1,ROUND(VLOOKUP($A87,Analysis!$A:$U,17,FALSE),0),#N/A)","v":{"$error":"#VALUE!"}},{"$f":"IF(ISERROR($K87),ROUND(VLOOKUP($A87,Analysis!$A:$U,17,FALSE),0),#N/A)","v":{"$error":"#VALUE!"}},{"$error":"#VALUE!"},{"$error":"#VALUE!"},{"$error":"#VALUE!"}]
[{"$error":"#VALUE!"},{"$error":"#VALUE!"},{"$f":"VLOOKUP($A88,Analysis!$A:$U,11,FALSE)","v":{"$error":"#VALUE!"}},{"$f":"IF(VLOOKUP($A88,Analysis!$A:$U,3,FALSE)=1,VLOOKUP($A88,Analysis!$A:$U,18,FALSE),#N/A)","v":{"$error":"#VALUE!"}},{"$f":"IF(ISERROR($D88),VLOOKUP($A88,Analysis!$A:$U,18,FALSE),#N/A)","v":{"$error":"#VALUE!"}},{"$error":"#VALUE!"},{"$error":"#VALUE!"},{"$error":"#VALUE!"},null,{"$f":"VLOOKUP($A88,Analysis!$A:$U,10,FALSE)","v":{"$error":"#VALUE!"}},{"$f":"IF(VLOOKUP($A88,Analysis!$A:$U,3,FALSE)=1,ROUND(VLOOKUP($A88,Analysis!$A:$U,17,FALSE),0),#N/A)","v":{"$error":"#VALUE!"}},{"$f":"IF(ISERROR($K88),ROUND(VLOOKUP($A88,Analysis!$A:$U,17,FALSE),0),#N/A)","v":{"$error":"#VALUE!"}},{"$error":"#VALUE!"},{"$error":"#VALUE!"},{"$error":"#VALUE!"}]
[{"$error":"#VALUE!"},{"$error":"#VALUE!"},{"$f":"VLOOKUP($A89,Analysis!$A:$U,11,FALSE)","v":{"$error":"#VALUE!"}},{"$f":"IF(VLOOKUP($A89,Analysis!$A:$U,3,FALSE)=1,VLOOKUP($A89,Analysis!$A:$U,18,FALSE),#N/A)","v":{"$error":"#VALUE!"}},{"$f":"IF(ISERROR($D89),VLOOKUP($A89,Analysis!$A:$U,18,FALSE),#N/A)","v":{"$error":"#VALUE!"}},{"$error":"#VALUE!"},{"$error":"#VALUE!"},{"$error":"#VALUE!"},null,{"$f":"VLOOKUP($A89,Analysis!$A:$U,10,FALSE)","v":{"$error":"#VALUE!"}},{"$f":"IF(VLOOKUP($A89,Analysis!$A:$U,3,FALSE)=1,ROUND(VLOOKUP($A89,Analysis!$A:$U,17,FALSE),0),#N/A)","v":{"$error":"#VALUE!"}},{"$f":"IF(ISERROR($K89),ROUND(VLOOKUP($A89,Analysis!$A:$U,17,FALSE),0),#N/A)","v":{"$error":"#VALUE!"}},{"$error":"#VALUE!"},{"$error":"#VALUE!"},{"$error":"#VALUE!"}]
[{"$error":"#VALUE!"},{"$error":"#VALUE!"},{"$f":"VLOOKUP($A90,Analysis!$A:$U,11,FALSE)","v":{"$error":"#VALUE!"}},{"$f":"IF(VLOOKUP($A90,Analysis!$A:$U,3,FALSE)=1,VLOOKUP($A90,Analysis!$A:$U,18,FALSE),#N/A)","v":{"$error":"#VALUE!"}},{"$f":"IF(ISERROR($D90),VLOOKUP($A90,Analysis!$A:$U,18,FALSE),#N/A)","v":{"$error":"#VALUE!"}},{"$error":"#VALUE!"},{"$error":"#VALUE!"},{"$error":"#VALUE!"},null,{"$f":"VLOOKUP($A90,Analysis!$A:$U,10,FALSE)","v":{"$error":"#VALUE!"}},{"$f":"IF(VLOOKUP($A90,Analysis!$A:$U,3,FALSE)=1,ROUND(VLOOKUP($A90,Analysis!$A:$U,17,FALSE),0),#N/A)","v":{"$error":"#VALUE!"}},{"$f":"IF(ISERROR($K90),ROUND(VLOOKUP($A90,Analysis!$A:$U,17,FALSE),0),#N/A)","v":{"$error":"#VALUE!"}},{"$error":"#VALUE!"},{"$error":"#VALUE!"},{"$error":"#VALUE!"}]
[{"$error":"#VALUE!"},{"$error":"#VALUE!"},{"$f":"VLOOKUP($A91,Analysis!$A:$U,11,FALSE)","v":{"$error":"#VALUE!"}},{"$f":"IF(VLOOKUP($A91,Analysis!$A:$U,3,FALSE)=1,VLOOKUP($A91,Analysis!$A:$U,18,FALSE),#N/A)","v":{"$error":"#VALUE!"}},{"$f":"IF(ISERROR($D91),VLOOKUP($A91,Analysis!$A:$U,18,FALSE),#N/A)","v":{"$error":"#VALUE!"}},{"$error":"#VALUE!"},{"$error":"#VALUE!"},{"$error":"#VALUE!"},null,{"$f":"VLOOKUP($A91,Analysis!$A:$U,10,FALSE)","v":{"$error":"#VALUE!"}},{"$f":"IF(VLOOKUP($A91,Analysis!$A:$U,3,FALSE)=1,ROUND(VLOOKUP($A91,Analysis!$A:$U,17,FALSE),0),#N/A)","v":{"$error":"#VALUE!"}},{"$f":"IF(ISERROR($K91),ROUND(VLOOKUP($A91,Analysis!$A:$U,17,FALSE),0),#N/A)","v":{"$error":"#VALUE!"}},{"$error":"#VALUE!"},{"$error":"#VALUE!"},{"$error":"#VALUE!"}]
[{"$error":"#VALUE!"},{"$error":"#VALUE!"},{"$f":"VLOOKUP($A92,Analysis!$A:$U,11,FALSE)","v":{"$error":"#VALUE!"}},{"$f":"IF(VLOOKUP($A92,Analysis!$A:$U,3,FALSE)=1,VLOOKUP($A92,Analysis!$A:$U,18,FALSE),#N/A)","v":{"$error":"#VALUE!"}},{"$f":"IF(ISERROR($D92),VLOOKUP($A92,Analysis!$A:$U,18,FALSE),#N/A)","v":{"$error":"#VALUE!"}},{"$error":"#VALUE!"},{"$error":"#VALUE!"},{"$error":"#VALUE!"},null,{"$f":"VLOOKUP($A92,Analysis!$A:$U,10,FALSE)","v":{"$error":"#VALUE!"}},{"$f":"IF(VLOOKUP($A92,Analysis!$A:$U,3,FALSE)=1,ROUND(VLOOKUP($A92,Analysis!$A:$U,17,FALSE),0),#N/A)","v":{"$error":"#VALUE!"}},{"$f":"IF(ISERROR($K92),ROUND(VLOOKUP($A92,Analysis!$A:$U,17,FALSE),0),#N/A)","v":{"$error":"#VALUE!"}},{"$error":"#VALUE!"},{"$error":"#VALUE!"},{"$error":"#VALUE!"}]
[{"$error":"#VALUE!"},{"$error":"#VALUE!"},{"$f":"VLOOKUP($A93,Analysis!$A:$U,11,FALSE)","v":{"$error":"#VALUE!"}},{"$f":"IF(VLOOKUP($A93,Analysis!$A:$U,3,FALSE)=1,VLOOKUP($A93,Analysis!$A:$U,18,FALSE),#N/A)","v":{"$error":"#VALUE!"}},{"$f":"IF(ISERROR($D93),VLOOKUP($A93,Analysis!$A:$U,18,FALSE),#N/A)","v":{"$error":"#VALUE!"}},{"$error":"#VALUE!"},{"$error":"#VALUE!"},{"$error":"#VALUE!"},null,{"$f":"VLOOKUP($A93,Analysis!$A:$U,10,FALSE)","v":{"$error":"#VALUE!"}},{"$f":"IF(VLOOKUP($A93,Analysis!$A:$U,3,FALSE)=1,ROUND(VLOOKUP($A93,Analysis!$A:$U,17,FALSE),0),#N/A)","v":{"$error":"#VALUE!"}},{"$f":"IF(ISERROR($K93),ROUND(VLOOKUP($A93,Analysis!$A:$U,17,FALSE),0),#N/A)","v":{"$error":"#VALUE!"}},{"$error":"#VALUE!"},{"$error":"#VALUE!"},{"$error":"#VALUE!"}]
[{"$error":"#VALUE!"},{"$error":"#VALUE!"},{"$f":"VLOOKUP($A94,Analysis!$A:$U,11,FALSE)","v":{"$error":"#VALUE!"}},{"$f":"IF(VLOOKUP($A94,Analysis!$A:$U,3,FALSE)=1,VLOOKUP($A94,Analysis!$A:$U,18,FALSE),#N/A)","v":{"$error":"#VALUE!"}},{"$f":"IF(ISERROR($D94),VLOOKUP($A94,Analysis!$A:$U,18,FALSE),#N/A)","v":{"$error":"#VALUE!"}},{"$error":"#VALUE!"},{"$error":"#VALUE!"},{"$error":"#VALUE!"},null,{"$f":"VLOOKUP($A94,Analysis!$A:$U,10,FALSE)","v":{"$error":"#VALUE!"}},{"$f":"IF(VLOOKUP($A94,Analysis!$A:$U,3,FALSE)=1,ROUND(VLOOKUP($A94,Analysis!$A:$U,17,FALSE),0),#N/A)","v":{"$error":"#VALUE!"}},{"$f":"IF(ISERROR($K94),ROUND(VLOOKUP($A94,Analysis!$A:$U,17,FALSE),0),#N/A)","v":{"$error":"#VALUE!"}},{"$error":"#VALUE!"},{"$error":"#VALUE!"},{"$error":"#VALUE!"}]
[{"$error":"#VALUE!"},{"$error":"#VALUE!"},{"$f":"VLOOKUP($A95,Analysis!$A:$U,11,FALSE)","v":{"$error":"#VALUE!"}},{"$f":"IF(VLOOKUP($A95,Analysis!$A:$U,3,FALSE)=1,VLOOKUP($A95,Analysis!$A:$U,18,FALSE),#N/A)","v":{"$error":"#VALUE!"}},{"$f":"IF(ISERROR($D95),VLOOKUP($A95,Analysis!$A:$U,18,FALSE),#N/A)","v":{"$error":"#VALUE!"}},{"$error":"#VALUE!"},{"$error":"#VALUE!"},{"$error":"#VALUE!"},null,{"$f":"VLOOKUP($A95,Analysis!$A:$U,10,FALSE)","v":{"$error":"#VALUE!"}},{"$f":"IF(VLOOKUP($A95,Analysis!$A:$U,3,FALSE)=1,ROUND(VLOOKUP($A95,Analysis!$A:$U,17,FALSE),0),#N/A)","v":{"$error":"#VALUE!"}},{"$f":"IF(ISERROR($K95),ROUND(VLOOKUP($A95,Analysis!$A:$U,17,FALSE),0),#N/A)","v":{"$error":"#VALUE!"}},{"$error":"#VALUE!"},{"$error":"#VALUE!"},{"$error":"#VALUE!"}]
[{"$error":"#VALUE!"},{"$error":"#VALUE!"},{"$f":"VLOOKUP($A96,Analysis!$A:$U,11,FALSE)","v":{"$error":"#VALUE!"}},{"$f":"IF(VLOOKUP($A96,Analysis!$A:$U,3,FALSE)=1,VLOOKUP($A96,Analysis!$A:$U,18,FALSE),#N/A)","v":{"$error":"#VALUE!"}},{"$f":"IF(ISERROR($D96),VLOOKUP($A96,Analysis!$A:$U,18,FALSE),#N/A)","v":{"$error":"#VALUE!"}},{"$error":"#VALUE!"},{"$error":"#VALUE!"},{"$error":"#VALUE!"},null,{"$f":"VLOOKUP($A96,Analysis!$A:$U,10,FALSE)","v":{"$error":"#VALUE!"}},{"$f":"IF(VLOOKUP($A96,Analysis!$A:$U,3,FALSE)=1,ROUND(VLOOKUP($A96,Analysis!$A:$U,17,FALSE),0),#N/A)","v":{"$error":"#VALUE!"}},{"$f":"IF(ISERROR($K96),ROUND(VLOOKUP($A96,Analysis!$A:$U,17,FALSE),0),#N/A)","v":{"$error":"#VALUE!"}},{"$error":"#VALUE!"},{"$error":"#VALUE!"},{"$error":"#VALUE!"}]
[{"$error":"#VALUE!"},{"$error":"#VALUE!"},{"$f":"VLOOKUP($A97,Analysis!$A:$U,11,FALSE)","v":{"$error":"#VALUE!"}},{"$f":"IF(VLOOKUP($A97,Analysis!$A:$U,3,FALSE)=1,VLOOKUP($A97,Analysis!$A:$U,18,FALSE),#N/A)","v":{"$error":"#VALUE!"}},{"$f":"IF(ISERROR($D97),VLOOKUP($A97,Analysis!$A:$U,18,FALSE),#N/A)","v":{"$error":"#VALUE!"}},{"$error":"#VALUE!"},{"$error":"#VALUE!"},{"$error":"#VALUE!"},null,{"$f":"VLOOKUP($A97,Analysis!$A:$U,10,FALSE)","v":{"$error":"#VALUE!"}},{"$f":"IF(VLOOKUP($A97,Analysis!$A:$U,3,FALSE)=1,ROUND(VLOOKUP($A97,Analysis!$A:$U,17,FALSE),0),#N/A)","v":{"$error":"#VALUE!"}},{"$f":"IF(ISERROR($K97),ROUND(VLOOKUP($A97,Analysis!$A:$U,17,FALSE),0),#N/A)","v":{"$error":"#VALUE!"}},{"$error":"#VALUE!"},{"$error":"#VALUE!"},{"$error":"#VALUE!"}]
[{"$error":"#VALUE!"},{"$error":"#VALUE!"},{"$f":"VLOOKUP($A98,Analysis!$A:$U,11,FALSE)","v":{"$error":"#VALUE!"}},{"$f":"IF(VLOOKUP($A98,Analysis!$A:$U,3,FALSE)=1,VLOOKUP($A98,Analysis!$A:$U,18,FALSE),#N/A)","v":{"$error":"#VALUE!"}},{"$f":"IF(ISERROR($D98),VLOOKUP($A98,Analysis!$A:$U,18,FALSE),#N/A)","v":{"$error":"#VALUE!"}},{"$error":"#VALUE!"},{"$error":"#VALUE!"},{"$error":"#VALUE!"},null,{"$f":"VLOOKUP($A98,Analysis!$A:$U,10,FALSE)","v":{"$error":"#VALUE!"}},{"$f":"IF(VLOOKUP($A98,Analysis!$A:$U,3,FALSE)=1,ROUND(VLOOKUP($A98,Analysis!$A:$U,17,FALSE),0),#N/A)","v":{"$error":"#VALUE!"}},{"$f":"IF(ISERROR($K98),ROUND(VLOOKUP($A98,Analysis!$A:$U,17,FALSE),0),#N/A)","v":{"$error":"#VALUE!"}},{"$error":"#VALUE!"},{"$error":"#VALUE!"},{"$error":"#VALUE!"}]
[{"$error":"#VALUE!"},{"$error":"#VALUE!"},{"$f":"VLOOKUP($A99,Analysis!$A:$U,11,FALSE)","v":{"$error":"#VALUE!"}},{"$f":"IF(VLOOKUP($A99,Analysis!$A:$U,3,FALSE)=1,VLOOKUP($A99,Analysis!$A:$U,18,FALSE),#N/A)","v":{"$error":"#VALUE!"}},{"$f":"IF(ISERROR($D99),VLOOKUP($A99,Analysis!$A:$U,18,FALSE),#N/A)","v":{"$error":"#VALUE!"}},{"$error":"#VALUE!"},{"$error":"#VALUE!"},{"$error":"#VALUE!"},null,{"$f":"VLOOKUP($A99,Analysis!$A:$U,10,FALSE)","v":{"$error":"#VALUE!"}},{"$f":"IF(VLOOKUP($A99,Analysis!$A:$U,3,FALSE)=1,ROUND(VLOOKUP($A99,Analysis!$A:$U,17,FALSE),0),#N/A)","v":{"$error":"#VALUE!"}},{"$f":"IF(ISERROR($K99),ROUND(VLOOKUP($A99,Analysis!$A:$U,17,FALSE),0),#N/A)","v":{"$error":"#VALUE!"}},{"$error":"#VALUE!"},{"$error":"#VALUE!"},{"$error":"#VALUE!"}]
[{"$error":"#VALUE!"},{"$error":"#VALUE!"},{"$f":"VLOOKUP($A100,Analysis!$A:$U,11,FALSE)","v":{"$error":"#VALUE!"}},{"$f":"IF(VLOOKUP($A100,Analysis!$A:$U,3,FALSE)=1,VLOOKUP($A100,Analysis!$A:$U,18,FALSE),#N/A)","v":{"$error":"#VALUE!"}},{"$f":"IF(ISERROR($D100),VLOOKUP($A100,Analysis!$A:$U,18,FALSE),#N/A)","v":{"$error":"#VALUE!"}},{"$error":"#VALUE!"},{"$error":"#VALUE!"},{"$error":"#VALUE!"},null,{"$f":"VLOOKUP($A100,Analysis!$A:$U,10,FALSE)","v":{"$error":"#VALUE!"}},{"$f":"IF(VLOOKUP($A100,Analysis!$A:$U,3,FALSE)=1,ROUND(VLOOKUP($A100,Analysis!$A:$U,17,FALSE),0),#N/A)","v":{"$error":"#VALUE!"}},{"$f":"IF(ISERROR($K100),ROUND(VLOOKUP($A100,Analysis!$A:$U,17,FALSE),0),#N/A)","v":{"$error":"#VALUE!"}},{"$error":"#VALUE!"},{"$error":"#VALUE!"},{"$error":"#VALUE!"}]
[{"$error":"#VALUE!"},{"$error":"#VALUE!"},{"$f":"VLOOKUP($A101,Analysis!$A:$U,11,FALSE)","v":{"$error":"#VALUE!"}},{"$f":"IF(VLOOKUP($A101,Analysis!$A:$U,3,FALSE)=1,VLOOKUP($A101,Analysis!$A:$U,18,FALSE),#N/A)","v":{"$error":"#VALUE!"}},{"$f":"IF(ISERROR($D101),VLOOKUP($A101,Analysis!$A:$U,18,FALSE),#N/A)","v":{"$error":"#VALUE!"}},{"$error":"#VALUE!"},{"$error":"#VALUE!"},{"$error":"#VALUE!"},null,{"$f":"VLOOKUP($A101,Analysis!$A:$U,10,FALSE)","v":{"$error":"#VALUE!"}},{"$f":"IF(VLOOKUP($A101,Analysis!$A:$U,3,FALSE)=1,ROUND(VLOOKUP($A101,Analysis!$A:$U,17,FALSE),0),#N/A)","v":{"$error":"#VALUE!"}},{"$f":"IF(ISERROR($K101),ROUND(VLOOKUP($A101,Analysis!$A:$U,17,FALSE),0),#N/A)","v":{"$error":"#VALUE!"}},{"$error":"#VALUE!"},{"$error":"#VALUE!"},{"$error":"#VALUE!"}]
[{"$error":"#VALUE!"},{"$error":"#VALUE!"},{"$f":"VLOOKUP($A102,Analysis!$A:$U,11,FALSE)","v":{"$error":"#VALUE!"}},{"$f":"IF(VLOOKUP($A102,Analysis!$A:$U,3,FALSE)=1,VLOOKUP($A102,Analysis!$A:$U,18,FALSE),#N/A)","v":{"$error":"#VALUE!"}},{"$f":"IF(ISERROR($D102),VLOOKUP($A102,Analysis!$A:$U,18,FALSE),#N/A)","v":{"$error":"#VALUE!"}},{"$error":"#VALUE!"},{"$error":"#VALUE!"},{"$error":"#VALUE!"},null,{"$f":"VLOOKUP($A102,Analysis!$A:$U,10,FALSE)","v":{"$error":"#VALUE!"}},{"$f":"IF(VLOOKUP($A102,Analysis!$A:$U,3,FALSE)=1,ROUND(VLOOKUP($A102,Analysis!$A:$U,17,FALSE),0),#N/A)","v":{"$error":"#VALUE!"}},{"$f":"IF(ISERROR($K102),ROUND(VLOOKUP($A102,Analysis!$A:$U,17,FALSE),0),#N/A)","v":{"$error":"#VALUE!"}},{"$error":"#VALUE!"},{"$error":"#VALUE!"},{"$error":"#VALUE!"}]
[{"$error":"#VALUE!"},{"$error":"#VALUE!"},{"$f":"VLOOKUP($A103,Analysis!$A:$U,11,FALSE)","v":{"$error":"#VALUE!"}},{"$f":"IF(VLOOKUP($A103,Analysis!$A:$U,3,FALSE)=1,VLOOKUP($A103,Analysis!$A:$U,18,FALSE),#N/A)","v":{"$error":"#VALUE!"}},{"$f":"IF(ISERROR($D103),VLOOKUP($A103,Analysis!$A:$U,18,FALSE),#N/A)","v":{"$error":"#VALUE!"}},{"$error":"#VALUE!"},{"$error":"#VALUE!"},{"$error":"#VALUE!"},null,{"$f":"VLOOKUP($A103,Analysis!$A:$U,10,FALSE)","v":{"$error":"#VALUE!"}},{"$f":"IF(VLOOKUP($A103,Analysis!$A:$U,3,FALSE)=1,ROUND(VLOOKUP($A103,Analysis!$A:$U,17,FALSE),0),#N/A)","v":{"$error":"#VALUE!"}},{"$f":"IF(ISERROR($K103),ROUND(VLOOKUP($A103,Analysis!$A:$U,17,FALSE),0),#N/A)","v":{"$error":"#VALUE!"}},{"$error":"#VALUE!"},{"$error":"#VALUE!"},{"$error":"#VALUE!"}]
[{"$error":"#VALUE!"},{"$error":"#VALUE!"},{"$f":"VLOOKUP($A104,Analysis!$A:$U,11,FALSE)","v":{"$error":"#VALUE!"}},{"$f":"IF(VLOOKUP($A104,Analysis!$A:$U,3,FALSE)=1,VLOOKUP($A104,Analysis!$A:$U,18,FALSE),#N/A)","v":{"$error":"#VALUE!"}},{"$f":"IF(ISERROR($D104),VLOOKUP($A104,Analysis!$A:$U,18,FALSE),#N/A)","v":{"$error":"#VALUE!"}},{"$error":"#VALUE!"},{"$error":"#VALUE!"},{"$error":"#VALUE!"},null,{"$f":"VLOOKUP($A104,Analysis!$A:$U,10,FALSE)","v":{"$error":"#VALUE!"}},{"$f":"IF(VLOOKUP($A104,Analysis!$A:$U,3,FALSE)=1,ROUND(VLOOKUP($A104,Analysis!$A:$U,17,FALSE),0),#N/A)","v":{"$error":"#VALUE!"}},{"$f":"IF(ISERROR($K104),ROUND(VLOOKUP($A104,Analysis!$A:$U,17,FALSE),0),#N/A)","v":{"$error":"#VALUE!"}},{"$error":"#VALUE!"},{"$error":"#VALUE!"},{"$error":"#VALUE!"}]
[{"$error":"#VALUE!"},{"$error":"#VALUE!"},{"$f":"VLOOKUP($A105,Analysis!$A:$U,11,FALSE)","v":{"$error":"#VALUE!"}},{"$f":"IF(VLOOKUP($A105,Analysis!$A:$U,3,FALSE)=1,VLOOKUP($A105,Analysis!$A:$U,18,FALSE),#N/A)","v":{"$error":"#VALUE!"}},{"$f":"IF(ISERROR($D105),VLOOKUP($A105,Analysis!$A:$U,18,FALSE),#N/A)","v":{"$error":"#VALUE!"}},{"$error":"#VALUE!"},{"$error":"#VALUE!"},{"$error":"#VALUE!"},null,{"$f":"VLOOKUP($A105,Analysis!$A:$U,10,FALSE)","v":{"$error":"#VALUE!"}},{"$f":"IF(VLOOKUP($A105,Analysis!$A:$U,3,FALSE)=1,ROUND(VLOOKUP($A105,Analysis!$A:$U,17,FALSE),0),#N/A)","v":{"$error":"#VALUE!"}},{"$f":"IF(ISERROR($K105),ROUND(VLOOKUP($A105,Analysis!$A:$U,17,FALSE),0),#N/A)","v":{"$error":"#VALUE!"}},{"$error":"#VALUE!"},{"$error":"#VALUE!"},{"$error":"#VALUE!"}]
[{"$error":"#VALUE!"},{"$error":"#VALUE!"},{"$f":"VLOOKUP($A106,Analysis!$A:$U,11,FALSE)","v":{"$error":"#VALUE!"}},{"$f":"IF(VLOOKUP($A106,Analysis!$A:$U,3,FALSE)=1,VLOOKUP($A106,Analysis!$A:$U,18,FALSE),#N/A)","v":{"$error":"#VALUE!"}},{"$f":"IF(ISERROR($D106),VLOOKUP($A106,Analysis!$A:$U,18,FALSE),#N/A)","v":{"$error":"#VALUE!"}},{"$error":"#VALUE!"},{"$error":"#VALUE!"},{"$error":"#VALUE!"},null,{"$f":"VLOOKUP($A106,Analysis!$A:$U,10,FALSE)","v":{"$error":"#VALUE!"}},{"$f":"IF(VLOOKUP($A106,Analysis!$A:$U,3,FALSE)=1,ROUND(VLOOKUP($A106,Analysis!$A:$U,17,FALSE),0),#N/A)","v":{"$error":"#VALUE!"}},{"$f":"IF(ISERROR($K106),ROUND(VLOOKUP($A106,Analysis!$A:$U,17,FALSE),0),#N/A)","v":{"$error":"#VALUE!"}},{"$error":"#VALUE!"},{"$error":"#VALUE!"},{"$error":"#VALUE!"}]
[{"$error":"#VALUE!"},{"$error":"#VALUE!"},{"$f":"VLOOKUP($A107,Analysis!$A:$U,11,FALSE)","v":{"$error":"#VALUE!"}},{"$f":"IF(VLOOKUP($A107,Analysis!$A:$U,3,FALSE)=1,VLOOKUP($A107,Analysis!$A:$U,18,FALSE),#N/A)","v":{"$error":"#VALUE!"}},{"$f":"IF(ISERROR($D107),VLOOKUP($A107,Analysis!$A:$U,18,FALSE),#N/A)","v":{"$error":"#VALUE!"}},{"$error":"#VALUE!"},{"$error":"#VALUE!"},{"$error":"#VALUE!"},null,{"$f":"VLOOKUP($A107,Analysis!$A:$U,10,FALSE)","v":{"$error":"#VALUE!"}},{"$f":"IF(VLOOKUP($A107,Analysis!$A:$U,3,FALSE)=1,ROUND(VLOOKUP($A107,Analysis!$A:$U,17,FALSE),0),#N/A)","v":{"$error":"#VALUE!"}},{"$f":"IF(ISERROR($K107),ROUND(VLOOKUP($A107,Analysis!$A:$U,17,FALSE),0),#N/A)","v":{"$error":"#VALUE!"}},{"$error":"#VALUE!"},{"$error":"#VALUE!"},{"$error":"#VALUE!"}]
[{"$error":"#VALUE!"},{"$error":"#VALUE!"},{"$f":"VLOOKUP($A108,Analysis!$A:$U,11,FALSE)","v":{"$error":"#VALUE!"}},{"$f":"IF(VLOOKUP($A108,Analysis!$A:$U,3,FALSE)=1,VLOOKUP($A108,Analysis!$A:$U,18,FALSE),#N/A)","v":{"$error":"#VALUE!"}},{"$f":"IF(ISERROR($D108),VLOOKUP($A108,Analysis!$A:$U,18,FALSE),#N/A)","v":{"$error":"#VALUE!"}},{"$error":"#VALUE!"},{"$error":"#VALUE!"},{"$error":"#VALUE!"},null,{"$f":"VLOOKUP($A108,Analysis!$A:$U,10,FALSE)","v":{"$error":"#VALUE!"}},{"$f":"IF(VLOOKUP($A108,Analysis!$A:$U,3,FALSE)=1,ROUND(VLOOKUP($A108,Analysis!$A:$U,17,FALSE),0),#N/A)","v":{"$error":"#VALUE!"}},{"$f":"IF(ISERROR($K108),ROUND(VLOOKUP($A108,Analysis!$A:$U,17,FALSE),0),#N/A)","v":{"$error":"#VALUE!"}},{"$error":"#VALUE!"},{"$error":"#VALUE!"},{"$error":"#VALUE!"}]
[{"$error":"#VALUE!"},{"$error":"#VALUE!"},{"$f":"VLOOKUP($A109,Analysis!$A:$U,11,FALSE)","v":{"$error":"#VALUE!"}},{"$f":"IF(VLOOKUP($A109,Analysis!$A:$U,3,FALSE)=1,VLOOKUP($A109,Analysis!$A:$U,18,FALSE),#N/A)","v":{"$error":"#VALUE!"}},{"$f":"IF(ISERROR($D109),VLOOKUP($A109,Analysis!$A:$U,18,FALSE),#N/A)","v":{"$error":"#VALUE!"}},{"$error":"#VALUE!"},{"$error":"#VALUE!"},{"$error":"#VALUE!"},null,{"$f":"VLOOKUP($A109,Analysis!$A:$U,10,FALSE)","v":{"$error":"#VALUE!"}},{"$f":"IF(VLOOKUP($A109,Analysis!$A:$U,3,FALSE)=1,ROUND(VLOOKUP($A109,Analysis!$A:$U,17,FALSE),0),#N/A)","v":{"$error":"#VALUE!"}},{"$f":"IF(ISERROR($K109),ROUND(VLOOKUP($A109,Analysis!$A:$U,17,FALSE),0),#N/A)","v":{"$error":"#VALUE!"}},{"$error":"#VALUE!"},{"$error":"#VALUE!"},{"$error":"#VALUE!"}]
[{"$error":"#VALUE!"},{"$error":"#VALUE!"},{"$f":"VLOOKUP($A110,Analysis!$A:$U,11,FALSE)","v":{"$error":"#VALUE!"}},{"$f":"IF(VLOOKUP($A110,Analysis!$A:$U,3,FALSE)=1,VLOOKUP($A110,Analysis!$A:$U,18,FALSE),#N/A)","v":{"$error":"#VALUE!"}},{"$f":"IF(ISERROR($D110),VLOOKUP($A110,Analysis!$A:$U,18,FALSE),#N/A)","v":{"$error":"#VALUE!"}},{"$error":"#VALUE!"},{"$error":"#VALUE!"},{"$error":"#VALUE!"},null,{"$f":"VLOOKUP($A110,Analysis!$A:$U,10,FALSE)","v":{"$error":"#VALUE!"}},{"$f":"IF(VLOOKUP($A110,Analysis!$A:$U,3,FALSE)=1,ROUND(VLOOKUP($A110,Analysis!$A:$U,17,FALSE),0),#N/A)","v":{"$error":"#VALUE!"}},{"$f":"IF(ISERROR($K110),ROUND(VLOOKUP($A110,Analysis!$A:$U,17,FALSE),0),#N/A)","v":{"$error":"#VALUE!"}},{"$error":"#VALUE!"},{"$error":"#VALUE!"},{"$error":"#VALUE!"}]
[{"$error":"#VALUE!"},{"$error":"#VALUE!"},{"$f":"VLOOKUP($A111,Analysis!$A:$U,11,FALSE)","v":{"$error":"#VALUE!"}},{"$f":"IF(VLOOKUP($A111,Analysis!$A:$U,3,FALSE)=1,VLOOKUP($A111,Analysis!$A:$U,18,FALSE),#N/A)","v":{"$error":"#VALUE!"}},{"$f":"IF(ISERROR($D111),VLOOKUP($A111,Analysis!$A:$U,18,FALSE),#N/A)","v":{"$error":"#VALUE!"}},{"$error":"#VALUE!"},{"$error":"#VALUE!"},{"$error":"#VALUE!"},null,{"$f":"VLOOKUP($A111,Analysis!$A:$U,10,FALSE)","v":{"$error":"#VALUE!"}},{"$f":"IF(VLOOKUP($A111,Analysis!$A:$U,3,FALSE)=1,ROUND(VLOOKUP($A111,Analysis!$A:$U,17,FALSE),0),#N/A)","v":{"$error":"#VALUE!"}},{"$f":"IF(ISERROR($K111),ROUND(VLOOKUP($A111,Analysis!$A:$U,17,FALSE),0),#N/A)","v":{"$error":"#VALUE!"}},{"$error":"#VALUE!"},{"$error":"#VALUE!"},{"$error":"#VALUE!"}]
[{"$error":"#VALUE!"},{"$error":"#VALUE!"},{"$f":"VLOOKUP($A112,Analysis!$A:$U,11,FALSE)","v":{"$error":"#VALUE!"}},{"$f":"IF(VLOOKUP($A112,Analysis!$A:$U,3,FALSE)=1,VLOOKUP($A112,Analysis!$A:$U,18,FALSE),#N/A)","v":{"$error":"#VALUE!"}},{"$f":"IF(ISERROR($D112),VLOOKUP($A112,Analysis!$A:$U,18,FALSE),#N/A)","v":{"$error":"#VALUE!"}},{"$error":"#VALUE!"},{"$error":"#VALUE!"},{"$error":"#VALUE!"},null,{"$f":"VLOOKUP($A112,Analysis!$A:$U,10,FALSE)","v":{"$error":"#VALUE!"}},{"$f":"IF(VLOOKUP($A112,Analysis!$A:$U,3,FALSE)=1,ROUND(VLOOKUP($A112,Analysis!$A:$U,17,FALSE),0),#N/A)","v":{"$error":"#VALUE!"}},{"$f":"IF(ISERROR($K112),ROUND(VLOOKUP($A112,Analysis!$A:$U,17,FALSE),0),#N/A)","v":{"$error":"#VALUE!"}},{"$error":"#VALUE!"},{"$error":"#VALUE!"},{"$error":"#VALUE!"}]
[{"$error":"#VALUE!"},{"$error":"#VALUE!"},{"$f":"VLOOKUP($A113,Analysis!$A:$U,11,FALSE)","v":{"$error":"#VALUE!"}},{"$f":"IF(VLOOKUP($A113,Analysis!$A:$U,3,FALSE)=1,VLOOKUP($A113,Analysis!$A:$U,18,FALSE),#N/A)","v":{"$error":"#VALUE!"}},{"$f":"IF(ISERROR($D113),VLOOKUP($A113,Analysis!$A:$U,18,FALSE),#N/A)","v":{"$error":"#VALUE!"}},{"$error":"#VALUE!"},{"$error":"#VALUE!"},{"$error":"#VALUE!"},null,{"$f":"VLOOKUP($A113,Analysis!$A:$U,10,FALSE)","v":{"$error":"#VALUE!"}},{"$f":"IF(VLOOKUP($A113,Analysis!$A:$U,3,FALSE)=1,ROUND(VLOOKUP($A113,Analysis!$A:$U,17,FALSE),0),#N/A)","v":{"$error":"#VALUE!"}},{"$f":"IF(ISERROR($K113),ROUND(VLOOKUP($A113,Analysis!$A:$U,17,FALSE),0),#N/A)","v":{"$error":"#VALUE!"}},{"$error":"#VALUE!"},{"$error":"#VALUE!"},{"$error":"#VALUE!"}]
[{"$error":"#VALUE!"},{"$error":"#VALUE!"},{"$f":"VLOOKUP($A114,Analysis!$A:$U,11,FALSE)","v":{"$error":"#VALUE!"}},{"$f":"IF(VLOOKUP($A114,Analysis!$A:$U,3,FALSE)=1,VLOOKUP($A114,Analysis!$A:$U,18,FALSE),#N/A)","v":{"$error":"#VALUE!"}},{"$f":"IF(ISERROR($D114),VLOOKUP($A114,Analysis!$A:$U,18,FALSE),#N/A)","v":{"$error":"#VALUE!"}},{"$error":"#VALUE!"},{"$error":"#VALUE!"},{"$error":"#VALUE!"},null,{"$f":"VLOOKUP($A114,Analysis!$A:$U,10,FALSE)","v":{"$error":"#VALUE!"}},{"$f":"IF(VLOOKUP($A114,Analysis!$A:$U,3,FALSE)=1,ROUND(VLOOKUP($A114,Analysis!$A:$U,17,FALSE),0),#N/A)","v":{"$error":"#VALUE!"}},{"$f":"IF(ISERROR($K114),ROUND(VLOOKUP($A114,Analysis!$A:$U,17,FALSE),0),#N/A)","v":{"$error":"#VALUE!"}},{"$error":"#VALUE!"},{"$error":"#VALUE!"},{"$error":"#VALUE!"}]
[{"$error":"#VALUE!"},{"$error":"#VALUE!"},{"$f":"VLOOKUP($A115,Analysis!$A:$U,11,FALSE)","v":{"$error":"#VALUE!"}},{"$f":"IF(VLOOKUP($A115,Analysis!$A:$U,3,FALSE)=1,VLOOKUP($A115,Analysis!$A:$U,18,FALSE),#N/A)","v":{"$error":"#VALUE!"}},{"$f":"IF(ISERROR($D115),VLOOKUP($A115,Analysis!$A:$U,18,FALSE),#N/A)","v":{"$error":"#VALUE!"}},{"$error":"#VALUE!"},{"$error":"#VALUE!"},{"$error":"#VALUE!"},null,{"$f":"VLOOKUP($A115,Analysis!$A:$U,10,FALSE)","v":{"$error":"#VALUE!"}},{"$f":"IF(VLOOKUP($A115,Analysis!$A:$U,3,FALSE)=1,ROUND(VLOOKUP($A115,Analysis!$A:$U,17,FALSE),0),#N/A)","v":{"$error":"#VALUE!"}},{"$f":"IF(ISERROR($K115),ROUND(VLOOKUP($A115,Analysis!$A:$U,17,FALSE),0),#N/A)","v":{"$error":"#VALUE!"}},{"$error":"#VALUE!"},{"$error":"#VALUE!"},{"$error":"#VALUE!"}]
[{"$error":"#VALUE!"},{"$error":"#VALUE!"},{"$f":"VLOOKUP($A116,Analysis!$A:$U,11,FALSE)","v":{"$error":"#VALUE!"}},{"$f":"IF(VLOOKUP($A116,Analysis!$A:$U,3,FALSE)=1,VLOOKUP($A116,Analysis!$A:$U,18,FALSE),#N/A)","v":{"$error":"#VALUE!"}},{"$f":"IF(ISERROR($D116),VLOOKUP($A116,Analysis!$A:$U,18,FALSE),#N/A)","v":{"$error":"#VALUE!"}},{"$error":"#VALUE!"},{"$error":"#VALUE!"},{"$error":"#VALUE!"},null,{"$f":"VLOOKUP($A116,Analysis!$A:$U,10,FALSE)","v":{"$error":"#VALUE!"}},{"$f":"IF(VLOOKUP($A116,Analysis!$A:$U,3,FALSE)=1,ROUND(VLOOKUP($A116,Analysis!$A:$U,17,FALSE),0),#N/A)","v":{"$error":"#VALUE!"}},{"$f":"IF(ISERROR($K116),ROUND(VLOOKUP($A116,Analysis!$A:$U,17,FALSE),0),#N/A)","v":{"$error":"#VALUE!"}},{"$error":"#VALUE!"},{"$error":"#VALUE!"},{"$error":"#VALUE!"}]
[{"$error":"#VALUE!"},{"$error":"#VALUE!"},{"$f":"VLOOKUP($A117,Analysis!$A:$U,11,FALSE)","v":{"$error":"#VALUE!"}},{"$f":"IF(VLOOKUP($A117,Analysis!$A:$U,3,FALSE)=1,VLOOKUP($A117,Analysis!$A:$U,18,FALSE),#N/A)","v":{"$error":"#VALUE!"}},{"$f":"IF(ISERROR($D117),VLOOKUP($A117,Analysis!$A:$U,18,FALSE),#N/A)","v":{"$error":"#VALUE!"}},{"$error":"#VALUE!"},{"$error":"#VALUE!"},{"$error":"#VALUE!"},null,{"$f":"VLOOKUP($A117,Analysis!$A:$U,10,FALSE)","v":{"$error":"#VALUE!"}},{"$f":"IF(VLOOKUP($A117,Analysis!$A:$U,3,FALSE)=1,ROUND(VLOOKUP($A117,Analysis!$A:$U,17,FALSE),0),#N/A)","v":{"$error":"#VALUE!"}},{"$f":"IF(ISERROR($K117),ROUND(VLOOKUP($A117,Analysis!$A:$U,17,FALSE),0),#N/A)","v":{"$error":"#VALUE!"}},{"$error":"#VALUE!"},{"$error":"#VALUE!"},{"$error":"#VALUE!"}]
[{"$error":"#VALUE!"},{"$error":"#VALUE!"},{"$f":"VLOOKUP($A118,Analysis!$A:$U,11,FALSE)","v":{"$error":"#VALUE!"}},{"$f":"IF(VLOOKUP($A118,Analysis!$A:$U,3,FALSE)=1,VLOOKUP($A118,Analysis!$A:$U,18,FALSE),#N/A)","v":{"$error":"#VALUE!"}},{"$f":"IF(ISERROR($D118),VLOOKUP($A118,Analysis!$A:$U,18,FALSE),#N/A)","v":{"$error":"#VALUE!"}},{"$error":"#VALUE!"},{"$error":"#VALUE!"},{"$error":"#VALUE!"},null,{"$f":"VLOOKUP($A118,Analysis!$A:$U,10,FALSE)","v":{"$error":"#VALUE!"}},{"$f":"IF(VLOOKUP($A118,Analysis!$A:$U,3,FALSE)=1,ROUND(VLOOKUP($A118,Analysis!$A:$U,17,FALSE),0),#N/A)","v":{"$error":"#VALUE!"}},{"$f":"IF(ISERROR($K118),ROUND(VLOOKUP($A118,Analysis!$A:$U,17,FALSE),0),#N/A)","v":{"$error":"#VALUE!"}},{"$error":"#VALUE!"},{"$error":"#VALUE!"},{"$error":"#VALUE!"}]
[{"$error":"#VALUE!"},{"$error":"#VALUE!"},{"$f":"VLOOKUP($A119,Analysis!$A:$U,11,FALSE)","v":{"$error":"#VALUE!"}},{"$f":"IF(VLOOKUP($A119,Analysis!$A:$U,3,FALSE)=1,VLOOKUP($A119,Analysis!$A:$U,18,FALSE),#N/A)","v":{"$error":"#VALUE!"}},{"$f":"IF(ISERROR($D119),VLOOKUP($A119,Analysis!$A:$U,18,FALSE),#N/A)","v":{"$error":"#VALUE!"}},{"$error":"#VALUE!"},{"$error":"#VALUE!"},{"$error":"#VALUE!"},null,{"$f":"VLOOKUP($A119,Analysis!$A:$U,10,FALSE)","v":{"$error":"#VALUE!"}},{"$f":"IF(VLOOKUP($A119,Analysis!$A:$U,3,FALSE)=1,ROUND(VLOOKUP($A119,Analysis!$A:$U,17,FALSE),0),#N/A)","v":{"$error":"#VALUE!"}},{"$f":"IF(ISERROR($K119),ROUND(VLOOKUP($A119,Analysis!$A:$U,17,FALSE),0),#N/A)","v":{"$error":"#VALUE!"}},{"$error":"#VALUE!"},{"$error":"#VALUE!"},{"$error":"#VALUE!"}]
[{"$error":"#VALUE!"},{"$error":"#VALUE!"},{"$f":"VLOOKUP($A120,Analysis!$A:$U,11,FALSE)","v":{"$error":"#VALUE!"}},{"$f":"IF(VLOOKUP($A120,Analysis!$A:$U,3,FALSE)=1,VLOOKUP($A120,Analysis!$A:$U,18,FALSE),#N/A)","v":{"$error":"#VALUE!"}},{"$f":"IF(ISERROR($D120),VLOOKUP($A120,Analysis!$A:$U,18,FALSE),#N/A)","v":{"$error":"#VALUE!"}},{"$error":"#VALUE!"},{"$error":"#VALUE!"},{"$error":"#VALUE!"},null,{"$f":"VLOOKUP($A120,Analysis!$A:$U,10,FALSE)","v":{"$error":"#VALUE!"}},{"$f":"IF(VLOOKUP($A120,Analysis!$A:$U,3,FALSE)=1,ROUND(VLOOKUP($A120,Analysis!$A:$U,17,FALSE),0),#N/A)","v":{"$error":"#VALUE!"}},{"$f":"IF(ISERROR($K120),ROUND(VLOOKUP($A120,Analysis!$A:$U,17,FALSE),0),#N/A)","v":{"$error":"#VALUE!"}},{"$error":"#VALUE!"},{"$error":"#VALUE!"},{"$error":"#VALUE!"}]
[{"$error":"#VALUE!"},{"$error":"#VALUE!"},{"$f":"VLOOKUP($A121,Analysis!$A:$U,11,FALSE)","v":{"$error":"#VALUE!"}},{"$f":"IF(VLOOKUP($A121,Analysis!$A:$U,3,FALSE)=1,VLOOKUP($A121,Analysis!$A:$U,18,FALSE),#N/A)","v":{"$error":"#VALUE!"}},{"$f":"IF(ISERROR($D121),VLOOKUP($A121,Analysis!$A:$U,18,FALSE),#N/A)","v":{"$error":"#VALUE!"}},{"$error":"#VALUE!"},{"$error":"#VALUE!"},{"$error":"#VALUE!"},null,{"$f":"VLOOKUP($A121,Analysis!$A:$U,10,FALSE)","v":{"$error":"#VALUE!"}},{"$f":"IF(VLOOKUP($A121,Analysis!$A:$U,3,FALSE)=1,ROUND(VLOOKUP($A121,Analysis!$A:$U,17,FALSE),0),#N/A)","v":{"$error":"#VALUE!"}},{"$f":"IF(ISERROR($K121),ROUND(VLOOKUP($A121,Analysis!$A:$U,17,FALSE),0),#N/A)","v":{"$error":"#VALUE!"}},{"$error":"#VALUE!"},{"$error":"#VALUE!"},{"$error":"#VALUE!"}]
[{"$error":"#VALUE!"},{"$error":"#VALUE!"},{"$f":"VLOOKUP($A122,Analysis!$A:$U,11,FALSE)","v":{"$error":"#VALUE!"}},{"$f":"IF(VLOOKUP($A122,Analysis!$A:$U,3,FALSE)=1,VLOOKUP($A122,Analysis!$A:$U,18,FALSE),#N/A)","v":{"$error":"#VALUE!"}},{"$f":"IF(ISERROR($D122),VLOOKUP($A122,Analysis!$A:$U,18,FALSE),#N/A)","v":{"$error":"#VALUE!"}},{"$error":"#VALUE!"},{"$error":"#VALUE!"},{"$error":"#VALUE!"},null,{"$f":"VLOOKUP($A122,Analysis!$A:$U,10,FALSE)","v":{"$error":"#VALUE!"}},{"$f":"IF(VLOOKUP($A122,Analysis!$A:$U,3,FALSE)=1,ROUND(VLOOKUP($A122,Analysis!$A:$U,17,FALSE),0),#N/A)","v":{"$error":"#VALUE!"}},{"$f":"IF(ISERROR($K122),ROUND(VLOOKUP($A122,Analysis!$A:$U,17,FALSE),0),#N/A)","v":{"$error":"#VALUE!"}},{"$error":"#VALUE!"},{"$error":"#VALUE!"},{"$error":"#VALUE!"}]
[{"$error":"#VALUE!"},{"$error":"#VALUE!"},{"$f":"VLOOKUP($A123,Analysis!$A:$U,11,FALSE)","v":{"$error":"#VALUE!"}},{"$f":"IF(VLOOKUP($A123,Analysis!$A:$U,3,FALSE)=1,VLOOKUP($A123,Analysis!$A:$U,18,FALSE),#N/A)","v":{"$error":"#VALUE!"}},{"$f":"IF(ISERROR($D123),VLOOKUP($A123,Analysis!$A:$U,18,FALSE),#N/A)","v":{"$error":"#VALUE!"}},{"$error":"#VALUE!"},{"$error":"#VALUE!"},{"$error":"#VALUE!"},null,{"$f":"VLOOKUP($A123,Analysis!$A:$U,10,FALSE)","v":{"$error":"#VALUE!"}},{"$f":"IF(VLOOKUP($A123,Analysis!$A:$U,3,FALSE)=1,ROUND(VLOOKUP($A123,Analysis!$A:$U,17,FALSE),0),#N/A)","v":{"$error":"#VALUE!"}},{"$f":"IF(ISERROR($K123),ROUND(VLOOKUP($A123,Analysis!$A:$U,17,FALSE),0),#N/A)","v":{"$error":"#VALUE!"}},{"$error":"#VALUE!"},{"$error":"#VALUE!"},{"$error":"#VALUE!"}]
[{"$error":"#VALUE!"},{"$error":"#VALUE!"},{"$f":"VLOOKUP($A124,Analysis!$A:$U,11,FALSE)","v":{"$error":"#VALUE!"}},{"$f":"IF(VLOOKUP($A124,Analysis!$A:$U,3,FALSE)=1,VLOOKUP($A124,Analysis!$A:$U,18,FALSE),#N/A)","v":{"$error":"#VALUE!"}},{"$f":"IF(ISERROR($D124),VLOOKUP($A124,Analysis!$A:$U,18,FALSE),#N/A)","v":{"$error":"#VALUE!"}},{"$error":"#VALUE!"},{"$error":"#VALUE!"},{"$error":"#VALUE!"},null,{"$f":"VLOOKUP($A124,Analysis!$A:$U,10,FALSE)","v":{"$error":"#VALUE!"}},{"$f":"IF(VLOOKUP($A124,Analysis!$A:$U,3,FALSE)=1,ROUND(VLOOKUP($A124,Analysis!$A:$U,17,FALSE),0),#N/A)","v":{"$error":"#VALUE!"}},{"$f":"IF(ISERROR($K124),ROUND(VLOOKUP($A124,Analysis!$A:$U,17,FALSE),0),#N/A)","v":{"$error":"#VALUE!"}},{"$error":"#VALUE!"},{"$error":"#VALUE!"},{"$error":"#VALUE!"}]
[{"$error":"#VALUE!"},{"$error":"#VALUE!"},{"$f":"VLOOKUP($A125,Analysis!$A:$U,11,FALSE)","v":{"$error":"#VALUE!"}},{"$f":"IF(VLOOKUP($A125,Analysis!$A:$U,3,FALSE)=1,VLOOKUP($A125,Analysis!$A:$U,18,FALSE),#N/A)","v":{"$error":"#VALUE!"}},{"$f":"IF(ISERROR($D125),VLOOKUP($A125,Analysis!$A:$U,18,FALSE),#N/A)","v":{"$error":"#VALUE!"}},{"$error":"#VALUE!"},{"$error":"#VALUE!"},{"$error":"#VALUE!"},null,{"$f":"VLOOKUP($A125,Analysis!$A:$U,10,FALSE)","v":{"$error":"#VALUE!"}},{"$f":"IF(VLOOKUP($A125,Analysis!$A:$U,3,FALSE)=1,ROUND(VLOOKUP($A125,Analysis!$A:$U,17,FALSE),0),#N/A)","v":{"$error":"#VALUE!"}},{"$f":"IF(ISERROR($K125),ROUND(VLOOKUP($A125,Analysis!$A:$U,17,FALSE),0),#N/A)","v":{"$error":"#VALUE!"}},{"$error":"#VALUE!"},{"$error":"#VALUE!"},{"$error":"#VALUE!"}]
[{"$error":"#VALUE!"},{"$error":"#VALUE!"},{"$f":"VLOOKUP($A126,Analysis!$A:$U,11,FALSE)","v":{"$error":"#VALUE!"}},{"$f":"IF(VLOOKUP($A126,Analysis!$A:$U,3,FALSE)=1,VLOOKUP($A126,Analysis!$A:$U,18,FALSE),#N/A)","v":{"$error":"#VALUE!"}},{"$f":"IF(ISERROR($D126),VLOOKUP($A126,Analysis!$A:$U,18,FALSE),#N/A)","v":{"$error":"#VALUE!"}},{"$error":"#VALUE!"},{"$error":"#VALUE!"},{"$error":"#VALUE!"},null,{"$f":"VLOOKUP($A126,Analysis!$A:$U,10,FALSE)","v":{"$error":"#VALUE!"}},{"$f":"IF(VLOOKUP($A126,Analysis!$A:$U,3,FALSE)=1,ROUND(VLOOKUP($A126,Analysis!$A:$U,17,FALSE),0),#N/A)","v":{"$error":"#VALUE!"}},{"$f":"IF(ISERROR($K126),ROUND(VLOOKUP($A126,Analysis!$A:$U,17,FALSE),0),#N/A)","v":{"$error":"#VALUE!"}},{"$error":"#VALUE!"},{"$error":"#VALUE!"},{"$error":"#VALUE!"}]
[{"$error":"#VALUE!"},{"$error":"#VALUE!"},{"$f":"VLOOKUP($A127,Analysis!$A:$U,11,FALSE)","v":{"$error":"#VALUE!"}},{"$f":"IF(VLOOKUP($A127,Analysis!$A:$U,3,FALSE)=1,VLOOKUP($A127,Analysis!$A:$U,18,FALSE),#N/A)","v":{"$error":"#VALUE!"}},{"$f":"IF(ISERROR($D127),VLOOKUP($A127,Analysis!$A:$U,18,FALSE),#N/A)","v":{"$error":"#VALUE!"}},{"$error":"#VALUE!"},{"$error":"#VALUE!"},{"$error":"#VALUE!"},null,{"$f":"VLOOKUP($A127,Analysis!$A:$U,10,FALSE)","v":{"$error":"#VALUE!"}},{"$f":"IF(VLOOKUP($A127,Analysis!$A:$U,3,FALSE)=1,ROUND(VLOOKUP($A127,Analysis!$A:$U,17,FALSE),0),#N/A)","v":{"$error":"#VALUE!"}},{"$f":"IF(ISERROR($K127),ROUND(VLOOKUP($A127,Analysis!$A:$U,17,FALSE),0),#N/A)","v":{"$error":"#VALUE!"}},{"$error":"#VALUE!"},{"$error":"#VALUE!"},{"$error":"#VALUE!"}]
[{"$error":"#VALUE!"},{"$error":"#VALUE!"},{"$f":"VLOOKUP($A128,Analysis!$A:$U,11,FALSE)","v":{"$error":"#VALUE!"}},{"$f":"IF(VLOOKUP($A128,Analysis!$A:$U,3,FALSE)=1,VLOOKUP($A128,Analysis!$A:$U,18,FALSE),#N/A)","v":{"$error":"#VALUE!"}},{"$f":"IF(ISERROR($D128),VLOOKUP($A128,Analysis!$A:$U,18,FALSE),#N/A)","v":{"$error":"#VALUE!"}},{"$error":"#VALUE!"},{"$error":"#VALUE!"},{"$error":"#VALUE!"},null,{"$f":"VLOOKUP($A128,Analysis!$A:$U,10,FALSE)","v":{"$error":"#VALUE!"}},{"$f":"IF(VLOOKUP($A128,Analysis!$A:$U,3,FALSE)=1,ROUND(VLOOKUP($A128,Analysis!$A:$U,17,FALSE),0),#N/A)","v":{"$error":"#VALUE!"}},{"$f":"IF(ISERROR($K128),ROUND(VLOOKUP($A128,Analysis!$A:$U,17,FALSE),0),#N/A)","v":{"$error":"#VALUE!"}},{"$error":"#VALUE!"},{"$error":"#VALUE!"},{"$error":"#VALUE!"}]
[{"$error":"#VALUE!"},{"$error":"#VALUE!"},{"$f":"VLOOKUP($A129,Analysis!$A:$U,11,FALSE)","v":{"$error":"#VALUE!"}},{"$f":"IF(VLOOKUP($A129,Analysis!$A:$U,3,FALSE)=1,VLOOKUP($A129,Analysis!$A:$U,18,FALSE),#N/A)","v":{"$error":"#VALUE!"}},{"$f":"IF(ISERROR($D129),VLOOKUP($A129,Analysis!$A:$U,18,FALSE),#N/A)","v":{"$error":"#VALUE!"}},{"$error":"#VALUE!"},{"$error":"#VALUE!"},{"$error":"#VALUE!"},null,{"$f":"VLOOKUP($A129,Analysis!$A:$U,10,FALSE)","v":{"$error":"#VALUE!"}},{"$f":"IF(VLOOKUP($A129,Analysis!$A:$U,3,FALSE)=1,ROUND(VLOOKUP($A129,Analysis!$A:$U,17,FALSE),0),#N/A)","v":{"$error":"#VALUE!"}},{"$f":"IF(ISERROR($K129),ROUND(VLOOKUP($A129,Analysis!$A:$U,17,FALSE),0),#N/A)","v":{"$error":"#VALUE!"}},{"$error":"#VALUE!"},{"$error":"#VALUE!"},{"$error":"#VALUE!"}]
[{"$f":"Item_ID","v":{"$error":"#VALUE!"}},{"$f":"Valuation_Method","v":{"$error":"#VALUE!"}},{"$f":"VLOOKUP($A130,Analysis!$A:$U,11,FALSE)","v":{"$error":"#VALUE!"}},{"$f":"IF(VLOOKUP($A130,Analysis!$A:$U,3,FALSE)=1,VLOOKUP($A130,Analysis!$A:$U,18,FALSE),#N/A)","v":{"$error":"#VALUE!"}},{"$f":"IF(ISERROR($D130),VLOOKUP($A130,Analysis!$A:$U,18,FALSE),#N/A)","v":{"$error":"#VALUE!"}},{"$error":"#VALUE!"},{"$error":"#VALUE!"},{"$error":"#VALUE!"},null,{"$f":"VLOOKUP($A130,Analysis!$A:$U,10,FALSE)","v":{"$error":"#VALUE!"}},{"$f":"IF(VLOOKUP($A130,Analysis!$A:$U,3,FALSE)=1,ROUND(VLOOKUP($A130,Analysis!$A:$U,17,FALSE),0),#N/A)","v":{"$error":"#VALUE!"}},{"$f":"IF(ISERROR($K130),ROUND(VLOOKUP($A130,Analysis!$A:$U,17,FALSE),0),#N/A)","v":{"$error":"#VALUE!"}},{"$error":"#VALUE!"},{"$error":"#VALUE!"},{"$error":"#VALUE!"}]
[{"$error":"#VALUE!"},{"$error":"#VALUE!"},{"$f":"VLOOKUP($A131,Analysis!$A:$U,11,FALSE)","v":{"$error":"#VALUE!"}},{"$f":"IF(VLOOKUP($A131,Analysis!$A:$U,3,FALSE)=1,VLOOKUP($A131,Analysis!$A:$U,18,FALSE),#N/A)","v":{"$error":"#VALUE!"}},{"$f":"IF(ISERROR($D131),VLOOKUP($A131,Analysis!$A:$U,18,FALSE),#N/A)","v":{"$error":"#VALUE!"}},{"$f":"IF($B131=\"Vacant\",$D131,#N/A)","v":{"$error":"#VALUE!"}},{"$f":"IF($B131=\"Abstraction\",$D131,#N/A)","v":{"$error":"#VALUE!"}},{"$f":"IF($B131=\"Allocation\",$D131,#N/A)","v":{"$error":"#VALUE!"}},null,{"$f":"VLOOKUP($A131,Analysis!$A:$U,10,FALSE)","v":{"$error":"#VALUE!"}},{"$f":"IF(VLOOKUP($A131,Analysis!$A:$U,3,FALSE)=1,ROUND(VLOOKUP($A131,Analysis!$A:$U,17,FALSE),0),#N/A)","v":{"$error":"#VALUE!"}},{"$f":"IF(ISERROR($K131),ROUND(VLOOKUP($A131,Analysis!$A:$U,17,FALSE),0),#N/A)","v":{"$error":"#VALUE!"}},{"$f":"IF($B131=\"Vacant\",$K131,#N/A)","v":{"$error":"#VALUE!"}},{"$f":"IF($B131=\"Abstraction\",$K131,#N/A)","v":{"$error":"#VALUE!"}},{"$f":"IF($B131=\"Allocation\",$K131,#N/A)","v":{"$error":"#VALUE!"}}]
[{"$error":"#VALUE!"},{"$error":"#VALUE!"},{"$f":"VLOOKUP($A132,Analysis!$A:$U,11,FALSE)","v":{"$error":"#VALUE!"}},{"$f":"IF(VLOOKUP($A132,Analysis!$A:$U,3,FALSE)=1,VLOOKUP($A132,Analysis!$A:$U,18,FALSE),#N/A)","v":{"$error":"#VALUE!"}},{"$f":"IF(ISERROR($D132),VLOOKUP($A132,Analysis!$A:$U,18,FALSE),#N/A)","v":{"$error":"#VALUE!"}},{"$error":"#VALUE!"},{"$error":"#VALUE!"},{"$error":"#VALUE!"},null,{"$f":"VLOOKUP($A132,Analysis!$A:$U,10,FALSE)","v":{"$error":"#VALUE!"}},{"$f":"IF(VLOOKUP($A132,Analysis!$A:$U,3,FALSE)=1,ROUND(VLOOKUP($A132,Analysis!$A:$U,17,FALSE),0),#N/A)","v":{"$error":"#VALUE!"}},{"$f":"IF(ISERROR($K132),ROUND(VLOOKUP($A132,Analysis!$A:$U,17,FALSE),0),#N/A)","v":{"$error":"#VALUE!"}},{"$error":"#VALUE!"},{"$error":"#VALUE!"},{"$error":"#VALUE!"}]
[{"$error":"#VALUE!"},{"$error":"#VALUE!"},{"$f":"VLOOKUP($A133,Analysis!$A:$U,11,FALSE)","v":{"$error":"#VALUE!"}},{"$f":"IF(VLOOKUP($A133,Analysis!$A:$U,3,FALSE)=1,VLOOKUP($A133,Analysis!$A:$U,18,FALSE),#N/A)","v":{"$error":"#VALUE!"}},{"$f":"IF(ISERROR($D133),VLOOKUP($A133,Analysis!$A:$U,18,FALSE),#N/A)","v":{"$error":"#VALUE!"}},{"$error":"#VALUE!"},{"$error":"#VALUE!"},{"$error":"#VALUE!"},null,{"$f":"VLOOKUP($A133,Analysis!$A:$U,10,FALSE)","v":{"$error":"#VALUE!"}},{"$f":"IF(VLOOKUP($A133,Analysis!$A:$U,3,FALSE)=1,ROUND(VLOOKUP($A133,Analysis!$A:$U,17,FALSE),0),#N/A)","v":{"$error":"#VALUE!"}},{"$f":"IF(ISERROR($K133),ROUND(VLOOKUP($A133,Analysis!$A:$U,17,FALSE),0),#N/A)","v":{"$error":"#VALUE!"}},{"$error":"#VALUE!"},{"$error":"#VALUE!"},{"$error":"#VALUE!"}]
[{"$error":"#VALUE!"},{"$error":"#VALUE!"},{"$f":"VLOOKUP($A134,Analysis!$A:$U,11,FALSE)","v":{"$error":"#VALUE!"}},{"$f":"IF(VLOOKUP($A134,Analysis!$A:$U,3,FALSE)=1,VLOOKUP($A134,Analysis!$A:$U,18,FALSE),#N/A)","v":{"$error":"#VALUE!"}},{"$f":"IF(ISERROR($D134),VLOOKUP($A134,Analysis!$A:$U,18,FALSE),#N/A)","v":{"$error":"#VALUE!"}},{"$error":"#VALUE!"},{"$error":"#VALUE!"},{"$error":"#VALUE!"},null,{"$f":"VLOOKUP($A134,Analysis!$A:$U,10,FALSE)","v":{"$error":"#VALUE!"}},{"$f":"IF(VLOOKUP($A134,Analysis!$A:$U,3,FALSE)=1,ROUND(VLOOKUP($A134,Analysis!$A:$U,17,FALSE),0),#N/A)","v":{"$error":"#VALUE!"}},{"$f":"IF(ISERROR($K134),ROUND(VLOOKUP($A134,Analysis!$A:$U,17,FALSE),0),#N/A)","v":{"$error":"#VALUE!"}},{"$error":"#VALUE!"},{"$error":"#VALUE!"},{"$error":"#VALUE!"}]
[{"$error":"#VALUE!"},{"$error":"#VALUE!"},{"$f":"VLOOKUP($A135,Analysis!$A:$U,11,FALSE)","v":{"$error":"#VALUE!"}},{"$f":"IF(VLOOKUP($A135,Analysis!$A:$U,3,FALSE)=1,VLOOKUP($A135,Analysis!$A:$U,18,FALSE),#N/A)","v":{"$error":"#VALUE!"}},{"$f":"IF(ISERROR($D135),VLOOKUP($A135,Analysis!$A:$U,18,FALSE),#N/A)","v":{"$error":"#VALUE!"}},{"$error":"#VALUE!"},{"$error":"#VALUE!"},{"$error":"#VALUE!"},null,{"$f":"VLOOKUP($A135,Analysis!$A:$U,10,FALSE)","v":{"$error":"#VALUE!"}},{"$f":"IF(VLOOKUP($A135,Analysis!$A:$U,3,FALSE)=1,ROUND(VLOOKUP($A135,Analysis!$A:$U,17,FALSE),0),#N/A)","v":{"$error":"#VALUE!"}},{"$f":"IF(ISERROR($K135),ROUND(VLOOKUP($A135,Analysis!$A:$U,17,FALSE),0),#N/A)","v":{"$error":"#VALUE!"}},{"$error":"#VALUE!"},{"$error":"#VALUE!"},{"$error":"#VALUE!"}]
[{"$error":"#VALUE!"},{"$error":"#VALUE!"},{"$f":"VLOOKUP($A136,Analysis!$A:$U,11,FALSE)","v":{"$error":"#VALUE!"}},{"$f":"IF(VLOOKUP($A136,Analysis!$A:$U,3,FALSE)=1,VLOOKUP($A136,Analysis!$A:$U,18,FALSE),#N/A)","v":{"$error":"#VALUE!"}},{"$f":"IF(ISERROR($D136),VLOOKUP($A136,Analysis!$A:$U,18,FALSE),#N/A)","v":{"$error":"#VALUE!"}},{"$error":"#VALUE!"},{"$error":"#VALUE!"},{"$error":"#VALUE!"},null,{"$f":"VLOOKUP($A136,Analysis!$A:$U,10,FALSE)","v":{"$error":"#VALUE!"}},{"$f":"IF(VLOOKUP($A136,Analysis!$A:$U,3,FALSE)=1,ROUND(VLOOKUP($A136,Analysis!$A:$U,17,FALSE),0),#N/A)","v":{"$error":"#VALUE!"}},{"$f":"IF(ISERROR($K136),ROUND(VLOOKUP($A136,Analysis!$A:$U,17,FALSE),0),#N/A)","v":{"$error":"#VALUE!"}},{"$error":"#VALUE!"},{"$error":"#VALUE!"},{"$error":"#VALUE!"}]
[{"$error":"#VALUE!"},{"$error":"#VALUE!"},{"$f":"VLOOKUP($A137,Analysis!$A:$U,11,FALSE)","v":{"$error":"#VALUE!"}},{"$f":"IF(VLOOKUP($A137,Analysis!$A:$U,3,FALSE)=1,VLOOKUP($A137,Analysis!$A:$U,18,FALSE),#N/A)","v":{"$error":"#VALUE!"}},{"$f":"IF(ISERROR($D137),VLOOKUP($A137,Analysis!$A:$U,18,FALSE),#N/A)","v":{"$error":"#VALUE!"}},{"$error":"#VALUE!"},{"$error":"#VALUE!"},{"$error":"#VALUE!"},null,{"$f":"VLOOKUP($A137,Analysis!$A:$U,10,FALSE)","v":{"$error":"#VALUE!"}},{"$f":"IF(VLOOKUP($A137,Analysis!$A:$U,3,FALSE)=1,ROUND(VLOOKUP($A137,Analysis!$A:$U,17,FALSE),0),#N/A)","v":{"$error":"#VALUE!"}},{"$f":"IF(ISERROR($K137),ROUND(VLOOKUP($A137,Analysis!$A:$U,17,FALSE),0),#N/A)","v":{"$error":"#VALUE!"}},{"$error":"#VALUE!"},{"$error":"#VALUE!"},{"$error":"#VALUE!"}]
[{"$error":"#VALUE!"},{"$error":"#VALUE!"},{"$f":"VLOOKUP($A138,Analysis!$A:$U,11,FALSE)","v":{"$error":"#VALUE!"}},{"$f":"IF(VLOOKUP($A138,Analysis!$A:$U,3,FALSE)=1,VLOOKUP($A138,Analysis!$A:$U,18,FALSE),#N/A)","v":{"$error":"#VALUE!"}},{"$f":"IF(ISERROR($D138),VLOOKUP($A138,Analysis!$A:$U,18,FALSE),#N/A)","v":{"$error":"#VALUE!"}},{"$error":"#VALUE!"},{"$error":"#VALUE!"},{"$error":"#VALUE!"},null,{"$f":"VLOOKUP($A138,Analysis!$A:$U,10,FALSE)","v":{"$error":"#VALUE!"}},{"$f":"IF(VLOOKUP($A138,Analysis!$A:$U,3,FALSE)=1,ROUND(VLOOKUP($A138,Analysis!$A:$U,17,FALSE),0),#N/A)","v":{"$error":"#VALUE!"}},{"$f":"IF(ISERROR($K138),ROUND(VLOOKUP($A138,Analysis!$A:$U,17,FALSE),0),#N/A)","v":{"$error":"#VALUE!"}},{"$error":"#VALUE!"},{"$error":"#VALUE!"},{"$error":"#VALUE!"}]
[{"$error":"#VALUE!"},{"$error":"#VALUE!"},{"$f":"VLOOKUP($A139,Analysis!$A:$U,11,FALSE)","v":{"$error":"#VALUE!"}},{"$f":"IF(VLOOKUP($A139,Analysis!$A:$U,3,FALSE)=1,VLOOKUP($A139,Analysis!$A:$U,18,FALSE),#N/A)","v":{"$error":"#VALUE!"}},{"$f":"IF(ISERROR($D139),VLOOKUP($A139,Analysis!$A:$U,18,FALSE),#N/A)","v":{"$error":"#VALUE!"}},{"$error":"#VALUE!"},{"$error":"#VALUE!"},{"$error":"#VALUE!"},null,{"$f":"VLOOKUP($A139,Analysis!$A:$U,10,FALSE)","v":{"$error":"#VALUE!"}},{"$f":"IF(VLOOKUP($A139,Analysis!$A:$U,3,FALSE)=1,ROUND(VLOOKUP($A139,Analysis!$A:$U,17,FALSE),0),#N/A)","v":{"$error":"#VALUE!"}},{"$f":"IF(ISERROR($K139),ROUND(VLOOKUP($A139,Analysis!$A:$U,17,FALSE),0),#N/A)","v":{"$error":"#VALUE!"}},{"$error":"#VALUE!"},{"$error":"#VALUE!"},{"$error":"#VALUE!"}]
[{"$error":"#VALUE!"},{"$error":"#VALUE!"},{"$f":"VLOOKUP($A140,Analysis!$A:$U,11,FALSE)","v":{"$error":"#VALUE!"}},{"$f":"IF(VLOOKUP($A140,Analysis!$A:$U,3,FALSE)=1,VLOOKUP($A140,Analysis!$A:$U,18,FALSE),#N/A)","v":{"$error":"#VALUE!"}},{"$f":"IF(ISERROR($D140),VLOOKUP($A140,Analysis!$A:$U,18,FALSE),#N/A)","v":{"$error":"#VALUE!"}},{"$error":"#VALUE!"},{"$error":"#VALUE!"},{"$error":"#VALUE!"},null,{"$f":"VLOOKUP($A140,Analysis!$A:$U,10,FALSE)","v":{"$error":"#VALUE!"}},{"$f":"IF(VLOOKUP($A140,Analysis!$A:$U,3,FALSE)=1,ROUND(VLOOKUP($A140,Analysis!$A:$U,17,FALSE),0),#N/A)","v":{"$error":"#VALUE!"}},{"$f":"IF(ISERROR($K140),ROUND(VLOOKUP($A140,Analysis!$A:$U,17,FALSE),0),#N/A)","v":{"$error":"#VALUE!"}},{"$error":"#VALUE!"},{"$error":"#VALUE!"},{"$error":"#VALUE!"}]
[{"$error":"#VALUE!"},{"$error":"#VALUE!"},{"$f":"VLOOKUP($A141,Analysis!$A:$U,11,FALSE)","v":{"$error":"#VALUE!"}},{"$f":"IF(VLOOKUP($A141,Analysis!$A:$U,3,FALSE)=1,VLOOKUP($A141,Analysis!$A:$U,18,FALSE),#N/A)","v":{"$error":"#VALUE!"}},{"$f":"IF(ISERROR($D141),VLOOKUP($A141,Analysis!$A:$U,18,FALSE),#N/A)","v":{"$error":"#VALUE!"}},{"$error":"#VALUE!"},{"$error":"#VALUE!"},{"$error":"#VALUE!"},null,{"$f":"VLOOKUP($A141,Analysis!$A:$U,10,FALSE)","v":{"$error":"#VALUE!"}},{"$f":"IF(VLOOKUP($A141,Analysis!$A:$U,3,FALSE)=1,ROUND(VLOOKUP($A141,Analysis!$A:$U,17,FALSE),0),#N/A)","v":{"$error":"#VALUE!"}},{"$f":"IF(ISERROR($K141),ROUND(VLOOKUP($A141,Analysis!$A:$U,17,FALSE),0),#N/A)","v":{"$error":"#VALUE!"}},{"$error":"#VALUE!"},{"$error":"#VALUE!"},{"$error":"#VALUE!"}]
[{"$error":"#VALUE!"},{"$error":"#VALUE!"},{"$f":"VLOOKUP($A142,Analysis!$A:$U,11,FALSE)","v":{"$error":"#VALUE!"}},{"$f":"IF(VLOOKUP($A142,Analysis!$A:$U,3,FALSE)=1,VLOOKUP($A142,Analysis!$A:$U,18,FALSE),#N/A)","v":{"$error":"#VALUE!"}},{"$f":"IF(ISERROR($D142),VLOOKUP($A142,Analysis!$A:$U,18,FALSE),#N/A)","v":{"$error":"#VALUE!"}},{"$error":"#VALUE!"},{"$error":"#VALUE!"},{"$error":"#VALUE!"},null,{"$f":"VLOOKUP($A142,Analysis!$A:$U,10,FALSE)","v":{"$error":"#VALUE!"}},{"$f":"IF(VLOOKUP($A142,Analysis!$A:$U,3,FALSE)=1,ROUND(VLOOKUP($A142,Analysis!$A:$U,17,FALSE),0),#N/A)","v":{"$error":"#VALUE!"}},{"$f":"IF(ISERROR($K142),ROUND(VLOOKUP($A142,Analysis!$A:$U,17,FALSE),0),#N/A)","v":{"$error":"#VALUE!"}},{"$error":"#VALUE!"},{"$error":"#VALUE!"},{"$error":"#VALUE!"}]
[{"$error":"#VALUE!"},{"$error":"#VALUE!"},{"$f":"VLOOKUP($A143,Analysis!$A:$U,11,FALSE)","v":{"$error":"#VALUE!"}},{"$f":"IF(VLOOKUP($A143,Analysis!$A:$U,3,FALSE)=1,VLOOKUP($A143,Analysis!$A:$U,18,FALSE),#N/A)","v":{"$error":"#VALUE!"}},{"$f":"IF(ISERROR($D143),VLOOKUP($A143,Analysis!$A:$U,18,FALSE),#N/A)","v":{"$error":"#VALUE!"}},{"$error":"#VALUE!"},{"$error":"#VALUE!"},{"$error":"#VALUE!"},null,{"$f":"VLOOKUP($A143,Analysis!$A:$U,10,FALSE)","v":{"$error":"#VALUE!"}},{"$f":"IF(VLOOKUP($A143,Analysis!$A:$U,3,FALSE)=1,ROUND(VLOOKUP($A143,Analysis!$A:$U,17,FALSE),0),#N/A)","v":{"$error":"#VALUE!"}},{"$f":"IF(ISERROR($K143),ROUND(VLOOKUP($A143,Analysis!$A:$U,17,FALSE),0),#N/A)","v":{"$error":"#VALUE!"}},{"$error":"#VALUE!"},{"$error":"#VALUE!"},{"$error":"#VALUE!"}]
[{"$error":"#VALUE!"},{"$error":"#VALUE!"},{"$f":"VLOOKUP($A144,Analysis!$A:$U,11,FALSE)","v":{"$error":"#VALUE!"}},{"$f":"IF(VLOOKUP($A144,Analysis!$A:$U,3,FALSE)=1,VLOOKUP($A144,Analysis!$A:$U,18,FALSE),#N/A)","v":{"$error":"#VALUE!"}},{"$f":"IF(ISERROR($D144),VLOOKUP($A144,Analysis!$A:$U,18,FALSE),#N/A)","v":{"$error":"#VALUE!"}},{"$error":"#VALUE!"},{"$error":"#VALUE!"},{"$error":"#VALUE!"},null,{"$f":"VLOOKUP($A144,Analysis!$A:$U,10,FALSE)","v":{"$error":"#VALUE!"}},{"$f":"IF(VLOOKUP($A144,Analysis!$A:$U,3,FALSE)=1,ROUND(VLOOKUP($A144,Analysis!$A:$U,17,FALSE),0),#N/A)","v":{"$error":"#VALUE!"}},{"$f":"IF(ISERROR($K144),ROUND(VLOOKUP($A144,Analysis!$A:$U,17,FALSE),0),#N/A)","v":{"$error":"#VALUE!"}},{"$error":"#VALUE!"},{"$error":"#VALUE!"},{"$error":"#VALUE!"}]
[{"$error":"#VALUE!"},{"$error":"#VALUE!"},{"$f":"VLOOKUP($A145,Analysis!$A:$U,11,FALSE)","v":{"$error":"#VALUE!"}},{"$f":"IF(VLOOKUP($A145,Analysis!$A:$U,3,FALSE)=1,VLOOKUP($A145,Analysis!$A:$U,18,FALSE),#N/A)","v":{"$error":"#VALUE!"}},{"$f":"IF(ISERROR($D145),VLOOKUP($A145,Analysis!$A:$U,18,FALSE),#N/A)","v":{"$error":"#VALUE!"}},{"$error":"#VALUE!"},{"$error":"#VALUE!"},{"$error":"#VALUE!"},null,{"$f":"VLOOKUP($A145,Analysis!$A:$U,10,FALSE)","v":{"$error":"#VALUE!"}},{"$f":"IF(VLOOKUP($A145,Analysis!$A:$U,3,FALSE)=1,ROUND(VLOOKUP($A145,Analysis!$A:$U,17,FALSE),0),#N/A)","v":{"$error":"#VALUE!"}},{"$f":"IF(ISERROR($K145),ROUND(VLOOKUP($A145,Analysis!$A:$U,17,FALSE),0),#N/A)","v":{"$error":"#VALUE!"}},{"$error":"#VALUE!"},{"$error":"#VALUE!"},{"$error":"#VALUE!"}]
[{"$error":"#VALUE!"},{"$error":"#VALUE!"},{"$f":"VLOOKUP($A146,Analysis!$A:$U,11,FALSE)","v":{"$error":"#VALUE!"}},{"$f":"IF(VLOOKUP($A146,Analysis!$A:$U,3,FALSE)=1,VLOOKUP($A146,Analysis!$A:$U,18,FALSE),#N/A)","v":{"$error":"#VALUE!"}},{"$f":"IF(ISERROR($D146),VLOOKUP($A146,Analysis!$A:$U,18,FALSE),#N/A)","v":{"$error":"#VALUE!"}},{"$error":"#VALUE!"},{"$error":"#VALUE!"},{"$error":"#VALUE!"},null,{"$f":"VLOOKUP($A146,Analysis!$A:$U,10,FALSE)","v":{"$error":"#VALUE!"}},{"$f":"IF(VLOOKUP($A146,Analysis!$A:$U,3,FALSE)=1,ROUND(VLOOKUP($A146,Analysis!$A:$U,17,FALSE),0),#N/A)","v":{"$error":"#VALUE!"}},{"$f":"IF(ISERROR($K146),ROUND(VLOOKUP($A146,Analysis!$A:$U,17,FALSE),0),#N/A)","v":{"$error":"#VALUE!"}},{"$error":"#VALUE!"},{"$error":"#VALUE!"},{"$error":"#VALUE!"}]
[{"$error":"#VALUE!"},{"$error":"#VALUE!"},{"$f":"VLOOKUP($A147,Analysis!$A:$U,11,FALSE)","v":{"$error":"#VALUE!"}},{"$f":"IF(VLOOKUP($A147,Analysis!$A:$U,3,FALSE)=1,VLOOKUP($A147,Analysis!$A:$U,18,FALSE),#N/A)","v":{"$error":"#VALUE!"}},{"$f":"IF(ISERROR($D147),VLOOKUP($A147,Analysis!$A:$U,18,FALSE),#N/A)","v":{"$error":"#VALUE!"}},{"$error":"#VALUE!"},{"$error":"#VALUE!"},{"$error":"#VALUE!"},null,{"$f":"VLOOKUP($A147,Analysis!$A:$U,10,FALSE)","v":{"$error":"#VALUE!"}},{"$f":"IF(VLOOKUP($A147,Analysis!$A:$U,3,FALSE)=1,ROUND(VLOOKUP($A147,Analysis!$A:$U,17,FALSE),0),#N/A)","v":{"$error":"#VALUE!"}},{"$f":"IF(ISERROR($K147),ROUND(VLOOKUP($A147,Analysis!$A:$U,17,FALSE),0),#N/A)","v":{"$error":"#VALUE!"}},{"$error":"#VALUE!"},{"$error":"#VALUE!"},{"$error":"#VALUE!"}]
[{"$error":"#VALUE!"},{"$error":"#VALUE!"},{"$f":"VLOOKUP($A148,Analysis!$A:$U,11,FALSE)","v":{"$error":"#VALUE!"}},{"$f":"IF(VLOOKUP($A148,Analysis!$A:$U,3,FALSE)=1,VLOOKUP($A148,Analysis!$A:$U,18,FALSE),#N/A)","v":{"$error":"#VALUE!"}},{"$f":"IF(ISERROR($D148),VLOOKUP($A148,Analysis!$A:$U,18,FALSE),#N/A)","v":{"$error":"#VALUE!"}},{"$error":"#VALUE!"},{"$error":"#VALUE!"},{"$error":"#VALUE!"},null,{"$f":"VLOOKUP($A148,Analysis!$A:$U,10,FALSE)","v":{"$error":"#VALUE!"}},{"$f":"IF(VLOOKUP($A148,Analysis!$A:$U,3,FALSE)=1,ROUND(VLOOKUP($A148,Analysis!$A:$U,17,FALSE),0),#N/A)","v":{"$error":"#VALUE!"}},{"$f":"IF(ISERROR($K148),ROUND(VLOOKUP($A148,Analysis!$A:$U,17,FALSE),0),#N/A)","v":{"$error":"#VALUE!"}},{"$error":"#VALUE!"},{"$error":"#VALUE!"},{"$error":"#VALUE!"}]
[{"$error":"#VALUE!"},{"$error":"#VALUE!"},{"$f":"VLOOKUP($A149,Analysis!$A:$U,11,FALSE)","v":{"$error":"#VALUE!"}},{"$f":"IF(VLOOKUP($A149,Analysis!$A:$U,3,FALSE)=1,VLOOKUP($A149,Analysis!$A:$U,18,FALSE),#N/A)","v":{"$error":"#VALUE!"}},{"$f":"IF(ISERROR($D149),VLOOKUP($A149,Analysis!$A:$U,18,FALSE),#N/A)","v":{"$error":"#VALUE!"}},{"$error":"#VALUE!"},{"$error":"#VALUE!"},{"$error":"#VALUE!"},null,{"$f":"VLOOKUP($A149,Analysis!$A:$U,10,FALSE)","v":{"$error":"#VALUE!"}},{"$f":"IF(VLOOKUP($A149,Analysis!$A:$U,3,FALSE)=1,ROUND(VLOOKUP($A149,Analysis!$A:$U,17,FALSE),0),#N/A)","v":{"$error":"#VALUE!"}},{"$f":"IF(ISERROR($K149),ROUND(VLOOKUP($A149,Analysis!$A:$U,17,FALSE),0),#N/A)","v":{"$error":"#VALUE!"}},{"$error":"#VALUE!"},{"$error":"#VALUE!"},{"$error":"#VALUE!"}]
[{"$error":"#VALUE!"},{"$error":"#VALUE!"},{"$f":"VLOOKUP($A150,Analysis!$A:$U,11,FALSE)","v":{"$error":"#VALUE!"}},{"$f":"IF(VLOOKUP($A150,Analysis!$A:$U,3,FALSE)=1,VLOOKUP($A150,Analysis!$A:$U,18,FALSE),#N/A)","v":{"$error":"#VALUE!"}},{"$f":"IF(ISERROR($D150),VLOOKUP($A150,Analysis!$A:$U,18,FALSE),#N/A)","v":{"$error":"#VALUE!"}},{"$error":"#VALUE!"},{"$error":"#VALUE!"},{"$error":"#VALUE!"},null,{"$f":"VLOOKUP($A150,Analysis!$A:$U,10,FALSE)","v":{"$error":"#VALUE!"}},{"$f":"IF(VLOOKUP($A150,Analysis!$A:$U,3,FALSE)=1,ROUND(VLOOKUP($A150,Analysis!$A:$U,17,FALSE),0),#N/A)","v":{"$error":"#VALUE!"}},{"$f":"IF(ISERROR($K150),ROUND(VLOOKUP($A150,Analysis!$A:$U,17,FALSE),0),#N/A)","v":{"$error":"#VALUE!"}},{"$error":"#VALUE!"},{"$error":"#VALUE!"},{"$error":"#VALUE!"}]
[{"$error":"#VALUE!"},{"$error":"#VALUE!"},{"$f":"VLOOKUP($A151,Analysis!$A:$U,11,FALSE)","v":{"$error":"#VALUE!"}},{"$f":"IF(VLOOKUP($A151,Analysis!$A:$U,3,FALSE)=1,VLOOKUP($A151,Analysis!$A:$U,18,FALSE),#N/A)","v":{"$error":"#VALUE!"}},{"$f":"IF(ISERROR($D151),VLOOKUP($A151,Analysis!$A:$U,18,FALSE),#N/A)","v":{"$error":"#VALUE!"}},{"$error":"#VALUE!"},{"$error":"#VALUE!"},{"$error":"#VALUE!"},null,{"$f":"VLOOKUP($A151,Analysis!$A:$U,10,FALSE)","v":{"$error":"#VALUE!"}},{"$f":"IF(VLOOKUP($A151,Analysis!$A:$U,3,FALSE)=1,ROUND(VLOOKUP($A151,Analysis!$A:$U,17,FALSE),0),#N/A)","v":{"$error":"#VALUE!"}},{"$f":"IF(ISERROR($K151),ROUND(VLOOKUP($A151,Analysis!$A:$U,17,FALSE),0),#N/A)","v":{"$error":"#VALUE!"}},{"$error":"#VALUE!"},{"$error":"#VALUE!"},{"$error":"#VALUE!"}]
[{"$error":"#VALUE!"},{"$error":"#VALUE!"},{"$f":"VLOOKUP($A152,Analysis!$A:$U,11,FALSE)","v":{"$error":"#VALUE!"}},{"$f":"IF(VLOOKUP($A152,Analysis!$A:$U,3,FALSE)=1,VLOOKUP($A152,Analysis!$A:$U,18,FALSE),#N/A)","v":{"$error":"#VALUE!"}},{"$f":"IF(ISERROR($D152),VLOOKUP($A152,Analysis!$A:$U,18,FALSE),#N/A)","v":{"$error":"#VALUE!"}},{"$error":"#VALUE!"},{"$error":"#VALUE!"},{"$error":"#VALUE!"},null,{"$f":"VLOOKUP($A152,Analysis!$A:$U,10,FALSE)","v":{"$error":"#VALUE!"}},{"$f":"IF(VLOOKUP($A152,Analysis!$A:$U,3,FALSE)=1,ROUND(VLOOKUP($A152,Analysis!$A:$U,17,FALSE),0),#N/A)","v":{"$error":"#VALUE!"}},{"$f":"IF(ISERROR($K152),ROUND(VLOOKUP($A152,Analysis!$A:$U,17,FALSE),0),#N/A)","v":{"$error":"#VALUE!"}},{"$error":"#VALUE!"},{"$error":"#VALUE!"},{"$error":"#VALUE!"}]
[{"$error":"#VALUE!"},{"$error":"#VALUE!"},{"$f":"VLOOKUP($A153,Analysis!$A:$U,11,FALSE)","v":{"$error":"#VALUE!"}},{"$f":"IF(VLOOKUP($A153,Analysis!$A:$U,3,FALSE)=1,VLOOKUP($A153,Analysis!$A:$U,18,FALSE),#N/A)","v":{"$error":"#VALUE!"}},{"$f":"IF(ISERROR($D153),VLOOKUP($A153,Analysis!$A:$U,18,FALSE),#N/A)","v":{"$error":"#VALUE!"}},{"$error":"#VALUE!"},{"$error":"#VALUE!"},{"$error":"#VALUE!"},null,{"$f":"VLOOKUP($A153,Analysis!$A:$U,10,FALSE)","v":{"$error":"#VALUE!"}},{"$f":"IF(VLOOKUP($A153,Analysis!$A:$U,3,FALSE)=1,ROUND(VLOOKUP($A153,Analysis!$A:$U,17,FALSE),0),#N/A)","v":{"$error":"#VALUE!"}},{"$f":"IF(ISERROR($K153),ROUND(VLOOKUP($A153,Analysis!$A:$U,17,FALSE),0),#N/A)","v":{"$error":"#VALUE!"}},{"$error":"#VALUE!"},{"$error":"#VALUE!"},{"$error":"#VALUE!"}]
[{"$error":"#VALUE!"},{"$error":"#VALUE!"},{"$f":"VLOOKUP($A154,Analysis!$A:$U,11,FALSE)","v":{"$error":"#VALUE!"}},{"$f":"IF(VLOOKUP($A154,Analysis!$A:$U,3,FALSE)=1,VLOOKUP($A154,Analysis!$A:$U,18,FALSE),#N/A)","v":{"$error":"#VALUE!"}},{"$f":"IF(ISERROR($D154),VLOOKUP($A154,Analysis!$A:$U,18,FALSE),#N/A)","v":{"$error":"#VALUE!"}},{"$error":"#VALUE!"},{"$error":"#VALUE!"},{"$error":"#VALUE!"},null,{"$f":"VLOOKUP($A154,Analysis!$A:$U,10,FALSE)","v":{"$error":"#VALUE!"}},{"$f":"IF(VLOOKUP($A154,Analysis!$A:$U,3,FALSE)=1,ROUND(VLOOKUP($A154,Analysis!$A:$U,17,FALSE),0),#N/A)","v":{"$error":"#VALUE!"}},{"$f":"IF(ISERROR($K154),ROUND(VLOOKUP($A154,Analysis!$A:$U,17,FALSE),0),#N/A)","v":{"$error":"#VALUE!"}},{"$error":"#VALUE!"},{"$error":"#VALUE!"},{"$error":"#VALUE!"}]
[{"$error":"#VALUE!"},{"$error":"#VALUE!"},{"$f":"VLOOKUP($A155,Analysis!$A:$U,11,FALSE)","v":{"$error":"#VALUE!"}},{"$f":"IF(VLOOKUP($A155,Analysis!$A:$U,3,FALSE)=1,VLOOKUP($A155,Analysis!$A:$U,18,FALSE),#N/A)","v":{"$error":"#VALUE!"}},{"$f":"IF(ISERROR($D155),VLOOKUP($A155,Analysis!$A:$U,18,FALSE),#N/A)","v":{"$error":"#VALUE!"}},{"$error":"#VALUE!"},{"$error":"#VALUE!"},{"$error":"#VALUE!"},null,{"$f":"VLOOKUP($A155,Analysis!$A:$U,10,FALSE)","v":{"$error":"#VALUE!"}},{"$f":"IF(VLOOKUP($A155,Analysis!$A:$U,3,FALSE)=1,ROUND(VLOOKUP($A155,Analysis!$A:$U,17,FALSE),0),#N/A)","v":{"$error":"#VALUE!"}},{"$f":"IF(ISERROR($K155),ROUND(VLOOKUP($A155,Analysis!$A:$U,17,FALSE),0),#N/A)","v":{"$error":"#VALUE!"}},{"$error":"#VALUE!"},{"$error":"#VALUE!"},{"$error":"#VALUE!"}]
[{"$error":"#VALUE!"},{"$error":"#VALUE!"},{"$f":"VLOOKUP($A156,Analysis!$A:$U,11,FALSE)","v":{"$error":"#VALUE!"}},{"$f":"IF(VLOOKUP($A156,Analysis!$A:$U,3,FALSE)=1,VLOOKUP($A156,Analysis!$A:$U,18,FALSE),#N/A)","v":{"$error":"#VALUE!"}},{"$f":"IF(ISERROR($D156),VLOOKUP($A156,Analysis!$A:$U,18,FALSE),#N/A)","v":{"$error":"#VALUE!"}},{"$error":"#VALUE!"},{"$error":"#VALUE!"},{"$error":"#VALUE!"},null,{"$f":"VLOOKUP($A156,Analysis!$A:$U,10,FALSE)","v":{"$error":"#VALUE!"}},{"$f":"IF(VLOOKUP($A156,Analysis!$A:$U,3,FALSE)=1,ROUND(VLOOKUP($A156,Analysis!$A:$U,17,FALSE),0),#N/A)","v":{"$error":"#VALUE!"}},{"$f":"IF(ISERROR($K156),ROUND(VLOOKUP($A156,Analysis!$A:$U,17,FALSE),0),#N/A)","v":{"$error":"#VALUE!"}},{"$error":"#VALUE!"},{"$error":"#VALUE!"},{"$error":"#VALUE!"}]
[{"$error":"#VALUE!"},{"$error":"#VALUE!"},{"$f":"VLOOKUP($A157,Analysis!$A:$U,11,FALSE)","v":{"$error":"#VALUE!"}},{"$f":"IF(VLOOKUP($A157,Analysis!$A:$U,3,FALSE)=1,VLOOKUP($A157,Analysis!$A:$U,18,FALSE),#N/A)","v":{"$error":"#VALUE!"}},{"$f":"IF(ISERROR($D157),VLOOKUP($A157,Analysis!$A:$U,18,FALSE),#N/A)","v":{"$error":"#VALUE!"}},{"$error":"#VALUE!"},{"$error":"#VALUE!"},{"$error":"#VALUE!"},null,{"$f":"VLOOKUP($A157,Analysis!$A:$U,10,FALSE)","v":{"$error":"#VALUE!"}},{"$f":"IF(VLOOKUP($A157,Analysis!$A:$U,3,FALSE)=1,ROUND(VLOOKUP($A157,Analysis!$A:$U,17,FALSE),0),#N/A)","v":{"$error":"#VALUE!"}},{"$f":"IF(ISERROR($K157),ROUND(VLOOKUP($A157,Analysis!$A:$U,17,FALSE),0),#N/A)","v":{"$error":"#VALUE!"}},{"$error":"#VALUE!"},{"$error":"#VALUE!"},{"$error":"#VALUE!"}]
[{"$error":"#VALUE!"},{"$error":"#VALUE!"},{"$f":"VLOOKUP($A158,Analysis!$A:$U,11,FALSE)","v":{"$error":"#VALUE!"}},{"$f":"IF(VLOOKUP($A158,Analysis!$A:$U,3,FALSE)=1,VLOOKUP($A158,Analysis!$A:$U,18,FALSE),#N/A)","v":{"$error":"#VALUE!"}},{"$f":"IF(ISERROR($D158),VLOOKUP($A158,Analysis!$A:$U,18,FALSE),#N/A)","v":{"$error":"#VALUE!"}},{"$error":"#VALUE!"},{"$error":"#VALUE!"},{"$error":"#VALUE!"},null,{"$f":"VLOOKUP($A158,Analysis!$A:$U,10,FALSE)","v":{"$error":"#VALUE!"}},{"$f":"IF(VLOOKUP($A158,Analysis!$A:$U,3,FALSE)=1,ROUND(VLOOKUP($A158,Analysis!$A:$U,17,FALSE),0),#N/A)","v":{"$error":"#VALUE!"}},{"$f":"IF(ISERROR($K158),ROUND(VLOOKUP($A158,Analysis!$A:$U,17,FALSE),0),#N/A)","v":{"$error":"#VALUE!"}},{"$error":"#VALUE!"},{"$error":"#VALUE!"},{"$error":"#VALUE!"}]
[{"$error":"#VALUE!"},{"$error":"#VALUE!"},{"$f":"VLOOKUP($A159,Analysis!$A:$U,11,FALSE)","v":{"$error":"#VALUE!"}},{"$f":"IF(VLOOKUP($A159,Analysis!$A:$U,3,FALSE)=1,VLOOKUP($A159,Analysis!$A:$U,18,FALSE),#N/A)","v":{"$error":"#VALUE!"}},{"$f":"IF(ISERROR($D159),VLOOKUP($A159,Analysis!$A:$U,18,FALSE),#N/A)","v":{"$error":"#VALUE!"}},{"$error":"#VALUE!"},{"$error":"#VALUE!"},{"$error":"#VALUE!"},null,{"$f":"VLOOKUP($A159,Analysis!$A:$U,10,FALSE)","v":{"$error":"#VALUE!"}},{"$f":"IF(VLOOKUP($A159,Analysis!$A:$U,3,FALSE)=1,ROUND(VLOOKUP($A159,Analysis!$A:$U,17,FALSE),0),#N/A)","v":{"$error":"#VALUE!"}},{"$f":"IF(ISERROR($K159),ROUND(VLOOKUP($A159,Analysis!$A:$U,17,FALSE),0),#N/A)","v":{"$error":"#VALUE!"}},{"$error":"#VALUE!"},{"$error":"#VALUE!"},{"$error":"#VALUE!"}]
[{"$error":"#VALUE!"},{"$error":"#VALUE!"},{"$f":"VLOOKUP($A160,Analysis!$A:$U,11,FALSE)","v":{"$error":"#VALUE!"}},{"$f":"IF(VLOOKUP($A160,Analysis!$A:$U,3,FALSE)=1,VLOOKUP($A160,Analysis!$A:$U,18,FALSE),#N/A)","v":{"$error":"#VALUE!"}},{"$f":"IF(ISERROR($D160),VLOOKUP($A160,Analysis!$A:$U,18,FALSE),#N/A)","v":{"$error":"#VALUE!"}},{"$error":"#VALUE!"},{"$error":"#VALUE!"},{"$error":"#VALUE!"},null,{"$f":"VLOOKUP($A160,Analysis!$A:$U,10,FALSE)","v":{"$error":"#VALUE!"}},{"$f":"IF(VLOOKUP($A160,Analysis!$A:$U,3,FALSE)=1,ROUND(VLOOKUP($A160,Analysis!$A:$U,17,FALSE),0),#N/A)","v":{"$error":"#VALUE!"}},{"$f":"IF(ISERROR($K160),ROUND(VLOOKUP($A160,Analysis!$A:$U,17,FALSE),0),#N/A)","v":{"$error":"#VALUE!"}},{"$error":"#VALUE!"},{"$error":"#VALUE!"},{"$error":"#VALUE!"}]
[{"$error":"#VALUE!"},{"$error":"#VALUE!"},{"$f":"VLOOKUP($A161,Analysis!$A:$U,11,FALSE)","v":{"$error":"#VALUE!"}},{"$f":"IF(VLOOKUP($A161,Analysis!$A:$U,3,FALSE)=1,VLOOKUP($A161,Analysis!$A:$U,18,FALSE),#N/A)","v":{"$error":"#VALUE!"}},{"$f":"IF(ISERROR($D161),VLOOKUP($A161,Analysis!$A:$U,18,FALSE),#N/A)","v":{"$error":"#VALUE!"}},{"$error":"#VALUE!"},{"$error":"#VALUE!"},{"$error":"#VALUE!"},null,{"$f":"VLOOKUP($A161,Analysis!$A:$U,10,FALSE)","v":{"$error":"#VALUE!"}},{"$f":"IF(VLOOKUP($A161,Analysis!$A:$U,3,FALSE)=1,ROUND(VLOOKUP($A161,Analysis!$A:$U,17,FALSE),0),#N/A)","v":{"$error":"#VALUE!"}},{"$f":"IF(ISERROR($K161),ROUND(VLOOKUP($A161,Analysis!$A:$U,17,FALSE),0),#N/A)","v":{"$error":"#VALUE!"}},{"$error":"#VALUE!"},{"$error":"#VALUE!"},{"$error":"#VALUE!"}]
[{"$error":"#VALUE!"},{"$error":"#VALUE!"},{"$f":"VLOOKUP($A162,Analysis!$A:$U,11,FALSE)","v":{"$error":"#VALUE!"}},{"$f":"IF(VLOOKUP($A162,Analysis!$A:$U,3,FALSE)=1,VLOOKUP($A162,Analysis!$A:$U,18,FALSE),#N/A)","v":{"$error":"#VALUE!"}},{"$f":"IF(ISERROR($D162),VLOOKUP($A162,Analysis!$A:$U,18,FALSE),#N/A)","v":{"$error":"#VALUE!"}},{"$error":"#VALUE!"},{"$error":"#VALUE!"},{"$error":"#VALUE!"},null,{"$f":"VLOOKUP($A162,Analysis!$A:$U,10,FALSE)","v":{"$error":"#VALUE!"}},{"$f":"IF(VLOOKUP($A162,Analysis!$A:$U,3,FALSE)=1,ROUND(VLOOKUP($A162,Analysis!$A:$U,17,FALSE),0),#N/A)","v":{"$error":"#VALUE!"}},{"$f":"IF(ISERROR($K162),ROUND(VLOOKUP($A162,Analysis!$A:$U,17,FALSE),0),#N/A)","v":{"$error":"#VALUE!"}},{"$error":"#VALUE!"},{"$error":"#VALUE!"},{"$error":"#VALUE!"}]
[{"$error":"#VALUE!"},{"$error":"#VALUE!"},{"$f":"VLOOKUP($A163,Analysis!$A:$U,11,FALSE)","v":{"$error":"#VALUE!"}},{"$f":"IF(VLOOKUP($A163,Analysis!$A:$U,3,FALSE)=1,VLOOKUP($A163,Analysis!$A:$U,18,FALSE),#N/A)","v":{"$error":"#VALUE!"}},{"$f":"IF(ISERROR($D163),VLOOKUP($A163,Analysis!$A:$U,18,FALSE),#N/A)","v":{"$error":"#VALUE!"}},{"$error":"#VALUE!"},{"$error":"#VALUE!"},{"$error":"#VALUE!"},null,{"$f":"VLOOKUP($A163,Analysis!$A:$U,10,FALSE)","v":{"$error":"#VALUE!"}},{"$f":"IF(VLOOKUP($A163,Analysis!$A:$U,3,FALSE)=1,ROUND(VLOOKUP($A163,Analysis!$A:$U,17,FALSE),0),#N/A)","v":{"$error":"#VALUE!"}},{"$f":"IF(ISERROR($K163),ROUND(VLOOKUP($A163,Analysis!$A:$U,17,FALSE),0),#N/A)","v":{"$error":"#VALUE!"}},{"$error":"#VALUE!"},{"$error":"#VALUE!"},{"$error":"#VALUE!"}]
[{"$error":"#VALUE!"},{"$error":"#VALUE!"},{"$f":"VLOOKUP($A164,Analysis!$A:$U,11,FALSE)","v":{"$error":"#VALUE!"}},{"$f":"IF(VLOOKUP($A164,Analysis!$A:$U,3,FALSE)=1,VLOOKUP($A164,Analysis!$A:$U,18,FALSE),#N/A)","v":{"$error":"#VALUE!"}},{"$f":"IF(ISERROR($D164),VLOOKUP($A164,Analysis!$A:$U,18,FALSE),#N/A)","v":{"$error":"#VALUE!"}},{"$error":"#VALUE!"},{"$error":"#VALUE!"},{"$error":"#VALUE!"},null,{"$f":"VLOOKUP($A164,Analysis!$A:$U,10,FALSE)","v":{"$error":"#VALUE!"}},{"$f":"IF(VLOOKUP($A164,Analysis!$A:$U,3,FALSE)=1,ROUND(VLOOKUP($A164,Analysis!$A:$U,17,FALSE),0),#N/A)","v":{"$error":"#VALUE!"}},{"$f":"IF(ISERROR($K164),ROUND(VLOOKUP($A164,Analysis!$A:$U,17,FALSE),0),#N/A)","v":{"$error":"#VALUE!"}},{"$error":"#VALUE!"},{"$error":"#VALUE!"},{"$error":"#VALUE!"}]
[{"$error":"#VALUE!"},{"$error":"#VALUE!"},{"$f":"VLOOKUP($A165,Analysis!$A:$U,11,FALSE)","v":{"$error":"#VALUE!"}},{"$f":"IF(VLOOKUP($A165,Analysis!$A:$U,3,FALSE)=1,VLOOKUP($A165,Analysis!$A:$U,18,FALSE),#N/A)","v":{"$error":"#VALUE!"}},{"$f":"IF(ISERROR($D165),VLOOKUP($A165,Analysis!$A:$U,18,FALSE),#N/A)","v":{"$error":"#VALUE!"}},{"$error":"#VALUE!"},{"$error":"#VALUE!"},{"$error":"#VALUE!"},null,{"$f":"VLOOKUP($A165,Analysis!$A:$U,10,FALSE)","v":{"$error":"#VALUE!"}},{"$f":"IF(VLOOKUP($A165,Analysis!$A:$U,3,FALSE)=1,ROUND(VLOOKUP($A165,Analysis!$A:$U,17,FALSE),0),#N/A)","v":{"$error":"#VALUE!"}},{"$f":"IF(ISERROR($K165),ROUND(VLOOKUP($A165,Analysis!$A:$U,17,FALSE),0),#N/A)","v":{"$error":"#VALUE!"}},{"$error":"#VALUE!"},{"$error":"#VALUE!"},{"$error":"#VALUE!"}]
[{"$error":"#VALUE!"},{"$error":"#VALUE!"},{"$f":"VLOOKUP($A166,Analysis!$A:$U,11,FALSE)","v":{"$error":"#VALUE!"}},{"$f":"IF(VLOOKUP($A166,Analysis!$A:$U,3,FALSE)=1,VLOOKUP($A166,Analysis!$A:$U,18,FALSE),#N/A)","v":{"$error":"#VALUE!"}},{"$f":"IF(ISERROR($D166),VLOOKUP($A166,Analysis!$A:$U,18,FALSE),#N/A)","v":{"$error":"#VALUE!"}},{"$error":"#VALUE!"},{"$error":"#VALUE!"},{"$error":"#VALUE!"},null,{"$f":"VLOOKUP($A166,Analysis!$A:$U,10,FALSE)","v":{"$error":"#VALUE!"}},{"$f":"IF(VLOOKUP($A166,Analysis!$A:$U,3,FALSE)=1,ROUND(VLOOKUP($A166,Analysis!$A:$U,17,FALSE),0),#N/A)","v":{"$error":"#VALUE!"}},{"$f":"IF(ISERROR($K166),ROUND(VLOOKUP($A166,Analysis!$A:$U,17,FALSE),0),#N/A)","v":{"$error":"#VALUE!"}},{"$error":"#VALUE!"},{"$error":"#VALUE!"},{"$error":"#VALUE!"}]
[{"$error":"#VALUE!"},{"$error":"#VALUE!"},{"$f":"VLOOKUP($A167,Analysis!$A:$U,11,FALSE)","v":{"$error":"#VALUE!"}},{"$f":"IF(VLOOKUP($A167,Analysis!$A:$U,3,FALSE)=1,VLOOKUP($A167,Analysis!$A:$U,18,FALSE),#N/A)","v":{"$error":"#VALUE!"}},{"$f":"IF(ISERROR($D167),VLOOKUP($A167,Analysis!$A:$U,18,FALSE),#N/A)","v":{"$error":"#VALUE!"}},{"$error":"#VALUE!"},{"$error":"#VALUE!"},{"$error":"#VALUE!"},null,{"$f":"VLOOKUP($A167,Analysis!$A:$U,10,FALSE)","v":{"$error":"#VALUE!"}},{"$f":"IF(VLOOKUP($A167,Analysis!$A:$U,3,FALSE)=1,ROUND(VLOOKUP($A167,Analysis!$A:$U,17,FALSE),0),#N/A)","v":{"$error":"#VALUE!"}},{"$f":"IF(ISERROR($K167),ROUND(VLOOKUP($A167,Analysis!$A:$U,17,FALSE),0),#N/A)","v":{"$error":"#VALUE!"}},{"$error":"#VALUE!"},{"$error":"#VALUE!"},{"$error":"#VALUE!"}]
[{"$error":"#VALUE!"},{"$error":"#VALUE!"},{"$f":"VLOOKUP($A168,Analysis!$A:$U,11,FALSE)","v":{"$error":"#VALUE!"}},{"$f":"IF(VLOOKUP($A168,Analysis!$A:$U,3,FALSE)=1,VLOOKUP($A168,Analysis!$A:$U,18,FALSE),#N/A)","v":{"$error":"#VALUE!"}},{"$f":"IF(ISERROR($D168),VLOOKUP($A168,Analysis!$A:$U,18,FALSE),#N/A)","v":{"$error":"#VALUE!"}},{"$error":"#VALUE!"},{"$error":"#VALUE!"},{"$error":"#VALUE!"},null,{"$f":"VLOOKUP($A168,Analysis!$A:$U,10,FALSE)","v":{"$error":"#VALUE!"}},{"$f":"IF(VLOOKUP($A168,Analysis!$A:$U,3,FALSE)=1,ROUND(VLOOKUP($A168,Analysis!$A:$U,17,FALSE),0),#N/A)","v":{"$error":"#VALUE!"}},{"$f":"IF(ISERROR($K168),ROUND(VLOOKUP($A168,Analysis!$A:$U,17,FALSE),0),#N/A)","v":{"$error":"#VALUE!"}},{"$error":"#VALUE!"},{"$error":"#VALUE!"},{"$error":"#VALUE!"}]
[{"$error":"#VALUE!"},{"$error":"#VALUE!"},{"$f":"VLOOKUP($A169,Analysis!$A:$U,11,FALSE)","v":{"$error":"#VALUE!"}},{"$f":"IF(VLOOKUP($A169,Analysis!$A:$U,3,FALSE)=1,VLOOKUP($A169,Analysis!$A:$U,18,FALSE),#N/A)","v":{"$error":"#VALUE!"}},{"$f":"IF(ISERROR($D169),VLOOKUP($A169,Analysis!$A:$U,18,FALSE),#N/A)","v":{"$error":"#VALUE!"}},{"$error":"#VALUE!"},{"$error":"#VALUE!"},{"$error":"#VALUE!"},null,{"$f":"VLOOKUP($A169,Analysis!$A:$U,10,FALSE)","v":{"$error":"#VALUE!"}},{"$f":"IF(VLOOKUP($A169,Analysis!$A:$U,3,FALSE)=1,ROUND(VLOOKUP($A169,Analysis!$A:$U,17,FALSE),0),#N/A)","v":{"$error":"#VALUE!"}},{"$f":"IF(ISERROR($K169),ROUND(VLOOKUP($A169,Analysis!$A:$U,17,FALSE),0),#N/A)","v":{"$error":"#VALUE!"}},{"$error":"#VALUE!"},{"$error":"#VALUE!"},{"$error":"#VALUE!"}]
[{"$error":"#VALUE!"},{"$error":"#VALUE!"},{"$f":"VLOOKUP($A170,Analysis!$A:$U,11,FALSE)","v":{"$error":"#VALUE!"}},{"$f":"IF(VLOOKUP($A170,Analysis!$A:$U,3,FALSE)=1,VLOOKUP($A170,Analysis!$A:$U,18,FALSE),#N/A)","v":{"$error":"#VALUE!"}},{"$f":"IF(ISERROR($D170),VLOOKUP($A170,Analysis!$A:$U,18,FALSE),#N/A)","v":{"$error":"#VALUE!"}},{"$error":"#VALUE!"},{"$error":"#VALUE!"},{"$error":"#VALUE!"},null,{"$f":"VLOOKUP($A170,Analysis!$A:$U,10,FALSE)","v":{"$error":"#VALUE!"}},{"$f":"IF(VLOOKUP($A170,Analysis!$A:$U,3,FALSE)=1,ROUND(VLOOKUP($A170,Analysis!$A:$U,17,FALSE),0),#N/A)","v":{"$error":"#VALUE!"}},{"$f":"IF(ISERROR($K170),ROUND(VLOOKUP($A170,Analysis!$A:$U,17,FALSE),0),#N/A)","v":{"$error":"#VALUE!"}},{"$error":"#VALUE!"},{"$error":"#VALUE!"},{"$error":"#VALUE!"}]
[{"$error":"#VALUE!"},{"$error":"#VALUE!"},{"$f":"VLOOKUP($A171,Analysis!$A:$U,11,FALSE)","v":{"$error":"#VALUE!"}},{"$f":"IF(VLOOKUP($A171,Analysis!$A:$U,3,FALSE)=1,VLOOKUP($A171,Analysis!$A:$U,18,FALSE),#N/A)","v":{"$error":"#VALUE!"}},{"$f":"IF(ISERROR($D171),VLOOKUP($A171,Analysis!$A:$U,18,FALSE),#N/A)","v":{"$error":"#VALUE!"}},{"$error":"#VALUE!"},{"$error":"#VALUE!"},{"$error":"#VALUE!"},null,{"$f":"VLOOKUP($A171,Analysis!$A:$U,10,FALSE)","v":{"$error":"#VALUE!"}},{"$f":"IF(VLOOKUP($A171,Analysis!$A:$U,3,FALSE)=1,ROUND(VLOOKUP($A171,Analysis!$A:$U,17,FALSE),0),#N/A)","v":{"$error":"#VALUE!"}},{"$f":"IF(ISERROR($K171),ROUND(VLOOKUP($A171,Analysis!$A:$U,17,FALSE),0),#N/A)","v":{"$error":"#VALUE!"}},{"$error":"#VALUE!"},{"$error":"#VALUE!"},{"$error":"#VALUE!"}]
[{"$error":"#VALUE!"},{"$error":"#VALUE!"},{"$f":"VLOOKUP($A172,Analysis!$A:$U,11,FALSE)","v":{"$error":"#VALUE!"}},{"$f":"IF(VLOOKUP($A172,Analysis!$A:$U,3,FALSE)=1,VLOOKUP($A172,Analysis!$A:$U,18,FALSE),#N/A)","v":{"$error":"#VALUE!"}},{"$f":"IF(ISERROR($D172),VLOOKUP($A172,Analysis!$A:$U,18,FALSE),#N/A)","v":{"$error":"#VALUE!"}},{"$error":"#VALUE!"},{"$error":"#VALUE!"},{"$error":"#VALUE!"},null,{"$f":"VLOOKUP($A172,Analysis!$A:$U,10,FALSE)","v":{"$error":"#VALUE!"}},{"$f":"IF(VLOOKUP($A172,Analysis!$A:$U,3,FALSE)=1,ROUND(VLOOKUP($A172,Analysis!$A:$U,17,FALSE),0),#N/A)","v":{"$error":"#VALUE!"}},{"$f":"IF(ISERROR($K172),ROUND(VLOOKUP($A172,Analysis!$A:$U,17,FALSE),0),#N/A)","v":{"$error":"#VALUE!"}},{"$error":"#VALUE!"},{"$error":"#VALUE!"},{"$error":"#VALUE!"}]
[{"$error":"#VALUE!"},{"$error":"#VALUE!"},{"$f":"VLOOKUP($A173,Analysis!$A:$U,11,FALSE)","v":{"$error":"#VALUE!"}},{"$f":"IF(VLOOKUP($A173,Analysis!$A:$U,3,FALSE)=1,VLOOKUP($A173,Analysis!$A:$U,18,FALSE),#N/A)","v":{"$error":"#VALUE!"}},{"$f":"IF(ISERROR($D173),VLOOKUP($A173,Analysis!$A:$U,18,FALSE),#N/A)","v":{"$error":"#VALUE!"}},{"$error":"#VALUE!"},{"$error":"#VALUE!"},{"$error":"#VALUE!"},null,{"$f":"VLOOKUP($A173,Analysis!$A:$U,10,FALSE)","v":{"$error":"#VALUE!"}},{"$f":"IF(VLOOKUP($A173,Analysis!$A:$U,3,FALSE)=1,ROUND(VLOOKUP($A173,Analysis!$A:$U,17,FALSE),0),#N/A)","v":{"$error":"#VALUE!"}},{"$f":"IF(ISERROR($K173),ROUND(VLOOKUP($A173,Analysis!$A:$U,17,FALSE),0),#N/A)","v":{"$error":"#VALUE!"}},{"$error":"#VALUE!"},{"$error":"#VALUE!"},{"$error":"#VALUE!"}]
[{"$error":"#VALUE!"},{"$error":"#VALUE!"},{"$f":"VLOOKUP($A174,Analysis!$A:$U,11,FALSE)","v":{"$error":"#VALUE!"}},{"$f":"IF(VLOOKUP($A174,Analysis!$A:$U,3,FALSE)=1,VLOOKUP($A174,Analysis!$A:$U,18,FALSE),#N/A)","v":{"$error":"#VALUE!"}},{"$f":"IF(ISERROR($D174),VLOOKUP($A174,Analysis!$A:$U,18,FALSE),#N/A)","v":{"$error":"#VALUE!"}},{"$error":"#VALUE!"},{"$error":"#VALUE!"},{"$error":"#VALUE!"},null,{"$f":"VLOOKUP($A174,Analysis!$A:$U,10,FALSE)","v":{"$error":"#VALUE!"}},{"$f":"IF(VLOOKUP($A174,Analysis!$A:$U,3,FALSE)=1,ROUND(VLOOKUP($A174,Analysis!$A:$U,17,FALSE),0),#N/A)","v":{"$error":"#VALUE!"}},{"$f":"IF(ISERROR($K174),ROUND(VLOOKUP($A174,Analysis!$A:$U,17,FALSE),0),#N/A)","v":{"$error":"#VALUE!"}},{"$error":"#VALUE!"},{"$error":"#VALUE!"},{"$error":"#VALUE!"}]
[{"$error":"#VALUE!"},{"$error":"#VALUE!"},{"$f":"VLOOKUP($A175,Analysis!$A:$U,11,FALSE)","v":{"$error":"#VALUE!"}},{"$f":"IF(VLOOKUP($A175,Analysis!$A:$U,3,FALSE)=1,VLOOKUP($A175,Analysis!$A:$U,18,FALSE),#N/A)","v":{"$error":"#VALUE!"}},{"$f":"IF(ISERROR($D175),VLOOKUP($A175,Analysis!$A:$U,18,FALSE),#N/A)","v":{"$error":"#VALUE!"}},{"$error":"#VALUE!"},{"$error":"#VALUE!"},{"$error":"#VALUE!"},null,{"$f":"VLOOKUP($A175,Analysis!$A:$U,10,FALSE)","v":{"$error":"#VALUE!"}},{"$f":"IF(VLOOKUP($A175,Analysis!$A:$U,3,FALSE)=1,ROUND(VLOOKUP($A175,Analysis!$A:$U,17,FALSE),0),#N/A)","v":{"$error":"#VALUE!"}},{"$f":"IF(ISERROR($K175),ROUND(VLOOKUP($A175,Analysis!$A:$U,17,FALSE),0),#N/A)","v":{"$error":"#VALUE!"}},{"$error":"#VALUE!"},{"$error":"#VALUE!"},{"$error":"#VALUE!"}]
[{"$error":"#VALUE!"},{"$error":"#VALUE!"},{"$f":"VLOOKUP($A176,Analysis!$A:$U,11,FALSE)","v":{"$error":"#VALUE!"}},{"$f":"IF(VLOOKUP($A176,Analysis!$A:$U,3,FALSE)=1,VLOOKUP($A176,Analysis!$A:$U,18,FALSE),#N/A)","v":{"$error":"#VALUE!"}},{"$f":"IF(ISERROR($D176),VLOOKUP($A176,Analysis!$A:$U,18,FALSE),#N/A)","v":{"$error":"#VALUE!"}},{"$error":"#VALUE!"},{"$error":"#VALUE!"},{"$error":"#VALUE!"},null,{"$f":"VLOOKUP($A176,Analysis!$A:$U,10,FALSE)","v":{"$error":"#VALUE!"}},{"$f":"IF(VLOOKUP($A176,Analysis!$A:$U,3,FALSE)=1,ROUND(VLOOKUP($A176,Analysis!$A:$U,17,FALSE),0),#N/A)","v":{"$error":"#VALUE!"}},{"$f":"IF(ISERROR($K176),ROUND(VLOOKUP($A176,Analysis!$A:$U,17,FALSE),0),#N/A)","v":{"$error":"#VALUE!"}},{"$error":"#VALUE!"},{"$error":"#VALUE!"},{"$error":"#VALUE!"}]
[{"$error":"#VALUE!"},{"$error":"#VALUE!"},{"$f":"VLOOKUP($A177,Analysis!$A:$U,11,FALSE)","v":{"$error":"#VALUE!"}},{"$f":"IF(VLOOKUP($A177,Analysis!$A:$U,3,FALSE)=1,VLOOKUP($A177,Analysis!$A:$U,18,FALSE),#N/A)","v":{"$error":"#VALUE!"}},{"$f":"IF(ISERROR($D177),VLOOKUP($A177,Analysis!$A:$U,18,FALSE),#N/A)","v":{"$error":"#VALUE!"}},{"$error":"#VALUE!"},{"$error":"#VALUE!"},{"$error":"#VALUE!"},null,{"$f":"VLOOKUP($A177,Analysis!$A:$U,10,FALSE)","v":{"$error":"#VALUE!"}},{"$f":"IF(VLOOKUP($A177,Analysis!$A:$U,3,FALSE)=1,ROUND(VLOOKUP($A177,Analysis!$A:$U,17,FALSE),0),#N/A)","v":{"$error":"#VALUE!"}},{"$f":"IF(ISERROR($K177),ROUND(VLOOKUP($A177,Analysis!$A:$U,17,FALSE),0),#N/A)","v":{"$error":"#VALUE!"}},{"$error":"#VALUE!"},{"$error":"#VALUE!"},{"$error":"#VALUE!"}]
[{"$error":"#VALUE!"},{"$error":"#VALUE!"},{"$f":"VLOOKUP($A178,Analysis!$A:$U,11,FALSE)","v":{"$error":"#VALUE!"}},{"$f":"IF(VLOOKUP($A178,Analysis!$A:$U,3,FALSE)=1,VLOOKUP($A178,Analysis!$A:$U,18,FALSE),#N/A)","v":{"$error":"#VALUE!"}},{"$f":"IF(ISERROR($D178),VLOOKUP($A178,Analysis!$A:$U,18,FALSE),#N/A)","v":{"$error":"#VALUE!"}},{"$error":"#VALUE!"},{"$error":"#VALUE!"},{"$error":"#VALUE!"},null,{"$f":"VLOOKUP($A178,Analysis!$A:$U,10,FALSE)","v":{"$error":"#VALUE!"}},{"$f":"IF(VLOOKUP($A178,Analysis!$A:$U,3,FALSE)=1,ROUND(VLOOKUP($A178,Analysis!$A:$U,17,FALSE),0),#N/A)","v":{"$error":"#VALUE!"}},{"$f":"IF(ISERROR($K178),ROUND(VLOOKUP($A178,Analysis!$A:$U,17,FALSE),0),#N/A)","v":{"$error":"#VALUE!"}},{"$error":"#VALUE!"},{"$error":"#VALUE!"},{"$error":"#VALUE!"}]
[{"$error":"#VALUE!"},{"$error":"#VALUE!"},{"$f":"VLOOKUP($A179,Analysis!$A:$U,11,FALSE)","v":{"$error":"#VALUE!"}},{"$f":"IF(VLOOKUP($A179,Analysis!$A:$U,3,FALSE)=1,VLOOKUP($A179,Analysis!$A:$U,18,FALSE),#N/A)","v":{"$error":"#VALUE!"}},{"$f":"IF(ISERROR($D179),VLOOKUP($A179,Analysis!$A:$U,18,FALSE),#N/A)","v":{"$error":"#VALUE!"}},{"$error":"#VALUE!"},{"$error":"#VALUE!"},{"$error":"#VALUE!"},null,{"$f":"VLOOKUP($A179,Analysis!$A:$U,10,FALSE)","v":{"$error":"#VALUE!"}},{"$f":"IF(VLOOKUP($A179,Analysis!$A:$U,3,FALSE)=1,ROUND(VLOOKUP($A179,Analysis!$A:$U,17,FALSE),0),#N/A)","v":{"$error":"#VALUE!"}},{"$f":"IF(ISERROR($K179),ROUND(VLOOKUP($A179,Analysis!$A:$U,17,FALSE),0),#N/A)","v":{"$error":"#VALUE!"}},{"$error":"#VALUE!"},{"$error":"#VALUE!"},{"$error":"#VALUE!"}]
[{"$error":"#VALUE!"},{"$error":"#VALUE!"},{"$f":"VLOOKUP($A180,Analysis!$A:$U,11,FALSE)","v":{"$error":"#VALUE!"}},{"$f":"IF(VLOOKUP($A180,Analysis!$A:$U,3,FALSE)=1,VLOOKUP($A180,Analysis!$A:$U,18,FALSE),#N/A)","v":{"$error":"#VALUE!"}},{"$f":"IF(ISERROR($D180),VLOOKUP($A180,Analysis!$A:$U,18,FALSE),#N/A)","v":{"$error":"#VALUE!"}},{"$error":"#VALUE!"},{"$error":"#VALUE!"},{"$error":"#VALUE!"},null,{"$f":"VLOOKUP($A180,Analysis!$A:$U,10,FALSE)","v":{"$error":"#VALUE!"}},{"$f":"IF(VLOOKUP($A180,Analysis!$A:$U,3,FALSE)=1,ROUND(VLOOKUP($A180,Analysis!$A:$U,17,FALSE),0),#N/A)","v":{"$error":"#VALUE!"}},{"$f":"IF(ISERROR($K180),ROUND(VLOOKUP($A180,Analysis!$A:$U,17,FALSE),0),#N/A)","v":{"$error":"#VALUE!"}},{"$error":"#VALUE!"},{"$error":"#VALUE!"},{"$error":"#VALUE!"}]
[{"$error":"#VALUE!"},{"$error":"#VALUE!"},{"$f":"VLOOKUP($A181,Analysis!$A:$U,11,FALSE)","v":{"$error":"#VALUE!"}},{"$f":"IF(VLOOKUP($A181,Analysis!$A:$U,3,FALSE)=1,VLOOKUP($A181,Analysis!$A:$U,18,FALSE),#N/A)","v":{"$error":"#VALUE!"}},{"$f":"IF(ISERROR($D181),VLOOKUP($A181,Analysis!$A:$U,18,FALSE),#N/A)","v":{"$error":"#VALUE!"}},{"$error":"#VALUE!"},{"$error":"#VALUE!"},{"$error":"#VALUE!"},null,{"$f":"VLOOKUP($A181,Analysis!$A:$U,10,FALSE)","v":{"$error":"#VALUE!"}},{"$f":"IF(VLOOKUP($A181,Analysis!$A:$U,3,FALSE)=1,ROUND(VLOOKUP($A181,Analysis!$A:$U,17,FALSE),0),#N/A)","v":{"$error":"#VALUE!"}},{"$f":"IF(ISERROR($K181),ROUND(VLOOKUP($A181,Analysis!$A:$U,17,FALSE),0),#N/A)","v":{"$error":"#VALUE!"}},{"$error":"#VALUE!"},{"$error":"#VALUE!"},{"$error":"#VALUE!"}]
[{"$error":"#VALUE!"},{"$error":"#VALUE!"},{"$f":"VLOOKUP($A182,Analysis!$A:$U,11,FALSE)","v":{"$error":"#VALUE!"}},{"$f":"IF(VLOOKUP($A182,Analysis!$A:$U,3,FALSE)=1,VLOOKUP($A182,Analysis!$A:$U,18,FALSE),#N/A)","v":{"$error":"#VALUE!"}},{"$f":"IF(ISERROR($D182),VLOOKUP($A182,Analysis!$A:$U,18,FALSE),#N/A)","v":{"$error":"#VALUE!"}},{"$error":"#VALUE!"},{"$error":"#VALUE!"},{"$error":"#VALUE!"},null,{"$f":"VLOOKUP($A182,Analysis!$A:$U,10,FALSE)","v":{"$error":"#VALUE!"}},{"$f":"IF(VLOOKUP($A182,Analysis!$A:$U,3,FALSE)=1,ROUND(VLOOKUP($A182,Analysis!$A:$U,17,FALSE),0),#N/A)","v":{"$error":"#VALUE!"}},{"$f":"IF(ISERROR($K182),ROUND(VLOOKUP($A182,Analysis!$A:$U,17,FALSE),0),#N/A)","v":{"$error":"#VALUE!"}},{"$error":"#VALUE!"},{"$error":"#VALUE!"},{"$error":"#VALUE!"}]
[{"$error":"#VALUE!"},{"$error":"#VALUE!"},{"$f":"VLOOKUP($A183,Analysis!$A:$U,11,FALSE)","v":{"$error":"#VALUE!"}},{"$f":"IF(VLOOKUP($A183,Analysis!$A:$U,3,FALSE)=1,VLOOKUP($A183,Analysis!$A:$U,18,FALSE),#N/A)","v":{"$error":"#VALUE!"}},{"$f":"IF(ISERROR($D183),VLOOKUP($A183,Analysis!$A:$U,18,FALSE),#N/A)","v":{"$error":"#VALUE!"}},{"$error":"#VALUE!"},{"$error":"#VALUE!"},{"$error":"#VALUE!"},null,{"$f":"VLOOKUP($A183,Analysis!$A:$U,10,FALSE)","v":{"$error":"#VALUE!"}},{"$f":"IF(VLOOKUP($A183,Analysis!$A:$U,3,FALSE)=1,ROUND(VLOOKUP($A183,Analysis!$A:$U,17,FALSE),0),#N/A)","v":{"$error":"#VALUE!"}},{"$f":"IF(ISERROR($K183),ROUND(VLOOKUP($A183,Analysis!$A:$U,17,FALSE),0),#N/A)","v":{"$error":"#VALUE!"}},{"$error":"#VALUE!"},{"$error":"#VALUE!"},{"$error":"#VALUE!"}]
[{"$error":"#VALUE!"},{"$error":"#VALUE!"},{"$f":"VLOOKUP($A184,Analysis!$A:$U,11,FALSE)","v":{"$error":"#VALUE!"}},{"$f":"IF(VLOOKUP($A184,Analysis!$A:$U,3,FALSE)=1,VLOOKUP($A184,Analysis!$A:$U,18,FALSE),#N/A)","v":{"$error":"#VALUE!"}},{"$f":"IF(ISERROR($D184),VLOOKUP($A184,Analysis!$A:$U,18,FALSE),#N/A)","v":{"$error":"#VALUE!"}},{"$error":"#VALUE!"},{"$error":"#VALUE!"},{"$error":"#VALUE!"},null,{"$f":"VLOOKUP($A184,Analysis!$A:$U,10,FALSE)","v":{"$error":"#VALUE!"}},{"$f":"IF(VLOOKUP($A184,Analysis!$A:$U,3,FALSE)=1,ROUND(VLOOKUP($A184,Analysis!$A:$U,17,FALSE),0),#N/A)","v":{"$error":"#VALUE!"}},{"$f":"IF(ISERROR($K184),ROUND(VLOOKUP($A184,Analysis!$A:$U,17,FALSE),0),#N/A)","v":{"$error":"#VALUE!"}},{"$error":"#VALUE!"},{"$error":"#VALUE!"},{"$error":"#VALUE!"}]
[{"$error":"#VALUE!"},{"$error":"#VALUE!"},{"$f":"VLOOKUP($A185,Analysis!$A:$U,11,FALSE)","v":{"$error":"#VALUE!"}},{"$f":"IF(VLOOKUP($A185,Analysis!$A:$U,3,FALSE)=1,VLOOKUP($A185,Analysis!$A:$U,18,FALSE),#N/A)","v":{"$error":"#VALUE!"}},{"$f":"IF(ISERROR($D185),VLOOKUP($A185,Analysis!$A:$U,18,FALSE),#N/A)","v":{"$error":"#VALUE!"}},{"$error":"#VALUE!"},{"$error":"#VALUE!"},{"$error":"#VALUE!"},null,{"$f":"VLOOKUP($A185,Analysis!$A:$U,10,FALSE)","v":{"$error":"#VALUE!"}},{"$f":"IF(VLOOKUP($A185,Analysis!$A:$U,3,FALSE)=1,ROUND(VLOOKUP($A185,Analysis!$A:$U,17,FALSE),0),#N/A)","v":{"$error":"#VALUE!"}},{"$f":"IF(ISERROR($K185),ROUND(VLOOKUP($A185,Analysis!$A:$U,17,FALSE),0),#N/A)","v":{"$error":"#VALUE!"}},{"$error":"#VALUE!"},{"$error":"#VALUE!"},{"$error":"#VALUE!"}]
[{"$error":"#VALUE!"},{"$error":"#VALUE!"},{"$f":"VLOOKUP($A186,Analysis!$A:$U,11,FALSE)","v":{"$error":"#VALUE!"}},{"$f":"IF(VLOOKUP($A186,Analysis!$A:$U,3,FALSE)=1,VLOOKUP($A186,Analysis!$A:$U,18,FALSE),#N/A)","v":{"$error":"#VALUE!"}},{"$f":"IF(ISERROR($D186),VLOOKUP($A186,Analysis!$A:$U,18,FALSE),#N/A)","v":{"$error":"#VALUE!"}},{"$error":"#VALUE!"},{"$error":"#VALUE!"},{"$error":"#VALUE!"},null,{"$f":"VLOOKUP($A186,Analysis!$A:$U,10,FALSE)","v":{"$error":"#VALUE!"}},{"$f":"IF(VLOOKUP($A186,Analysis!$A:$U,3,FALSE)=1,ROUND(VLOOKUP($A186,Analysis!$A:$U,17,FALSE),0),#N/A)","v":{"$error":"#VALUE!"}},{"$f":"IF(ISERROR($K186),ROUND(VLOOKUP($A186,Analysis!$A:$U,17,FALSE),0),#N/A)","v":{"$error":"#VALUE!"}},{"$error":"#VALUE!"},{"$error":"#VALUE!"},{"$error":"#VALUE!"}]
[{"$error":"#VALUE!"},{"$error":"#VALUE!"},{"$f":"VLOOKUP($A187,Analysis!$A:$U,11,FALSE)","v":{"$error":"#VALUE!"}},{"$f":"IF(VLOOKUP($A187,Analysis!$A:$U,3,FALSE)=1,VLOOKUP($A187,Analysis!$A:$U,18,FALSE),#N/A)","v":{"$error":"#VALUE!"}},{"$f":"IF(ISERROR($D187),VLOOKUP($A187,Analysis!$A:$U,18,FALSE),#N/A)","v":{"$error":"#VALUE!"}},{"$error":"#VALUE!"},{"$error":"#VALUE!"},{"$error":"#VALUE!"},null,{"$f":"VLOOKUP($A187,Analysis!$A:$U,10,FALSE)","v":{"$error":"#VALUE!"}},{"$f":"IF(VLOOKUP($A187,Analysis!$A:$U,3,FALSE)=1,ROUND(VLOOKUP($A187,Analysis!$A:$U,17,FALSE),0),#N/A)","v":{"$error":"#VALUE!"}},{"$f":"IF(ISERROR($K187),ROUND(VLOOKUP($A187,Analysis!$A:$U,17,FALSE),0),#N/A)","v":{"$error":"#VALUE!"}},{"$error":"#VALUE!"},{"$error":"#VALUE!"},{"$error":"#VALUE!"}]
[{"$error":"#VALUE!"},{"$error":"#VALUE!"},{"$f":"VLOOKUP($A188,Analysis!$A:$U,11,FALSE)","v":{"$error":"#VALUE!"}},{"$f":"IF(VLOOKUP($A188,Analysis!$A:$U,3,FALSE)=1,VLOOKUP($A188,Analysis!$A:$U,18,FALSE),#N/A)","v":{"$error":"#VALUE!"}},{"$f":"IF(ISERROR($D188),VLOOKUP($A188,Analysis!$A:$U,18,FALSE),#N/A)","v":{"$error":"#VALUE!"}},{"$error":"#VALUE!"},{"$error":"#VALUE!"},{"$error":"#VALUE!"},null,{"$f":"VLOOKUP($A188,Analysis!$A:$U,10,FALSE)","v":{"$error":"#VALUE!"}},{"$f":"IF(VLOOKUP($A188,Analysis!$A:$U,3,FALSE)=1,ROUND(VLOOKUP($A188,Analysis!$A:$U,17,FALSE),0),#N/A)","v":{"$error":"#VALUE!"}},{"$f":"IF(ISERROR($K188),ROUND(VLOOKUP($A188,Analysis!$A:$U,17,FALSE),0),#N/A)","v":{"$error":"#VALUE!"}},{"$error":"#VALUE!"},{"$error":"#VALUE!"},{"$error":"#VALUE!"}]
[{"$error":"#VALUE!"},{"$error":"#VALUE!"},{"$f":"VLOOKUP($A189,Analysis!$A:$U,11,FALSE)","v":{"$error":"#VALUE!"}},{"$f":"IF(VLOOKUP($A189,Analysis!$A:$U,3,FALSE)=1,VLOOKUP($A189,Analysis!$A:$U,18,FALSE),#N/A)","v":{"$error":"#VALUE!"}},{"$f":"IF(ISERROR($D189),VLOOKUP($A189,Analysis!$A:$U,18,FALSE),#N/A)","v":{"$error":"#VALUE!"}},{"$error":"#VALUE!"},{"$error":"#VALUE!"},{"$error":"#VALUE!"},null,{"$f":"VLOOKUP($A189,Analysis!$A:$U,10,FALSE)","v":{"$error":"#VALUE!"}},{"$f":"IF(VLOOKUP($A189,Analysis!$A:$U,3,FALSE)=1,ROUND(VLOOKUP($A189,Analysis!$A:$U,17,FALSE),0),#N/A)","v":{"$error":"#VALUE!"}},{"$f":"IF(ISERROR($K189),ROUND(VLOOKUP($A189,Analysis!$A:$U,17,FALSE),0),#N/A)","v":{"$error":"#VALUE!"}},{"$error":"#VALUE!"},{"$error":"#VALUE!"},{"$error":"#VALUE!"}]
[{"$error":"#VALUE!"},{"$error":"#VALUE!"},{"$f":"VLOOKUP($A190,Analysis!$A:$U,11,FALSE)","v":{"$error":"#VALUE!"}},{"$f":"IF(VLOOKUP($A190,Analysis!$A:$U,3,FALSE)=1,VLOOKUP($A190,Analysis!$A:$U,18,FALSE),#N/A)","v":{"$error":"#VALUE!"}},{"$f":"IF(ISERROR($D190),VLOOKUP($A190,Analysis!$A:$U,18,FALSE),#N/A)","v":{"$error":"#VALUE!"}},{"$error":"#VALUE!"},{"$error":"#VALUE!"},{"$error":"#VALUE!"},null,{"$f":"VLOOKUP($A190,Analysis!$A:$U,10,FALSE)","v":{"$error":"#VALUE!"}},{"$f":"IF(VLOOKUP($A190,Analysis!$A:$U,3,FALSE)=1,ROUND(VLOOKUP($A190,Analysis!$A:$U,17,FALSE),0),#N/A)","v":{"$error":"#VALUE!"}},{"$f":"IF(ISERROR($K190),ROUND(VLOOKUP($A190,Analysis!$A:$U,17,FALSE),0),#N/A)","v":{"$error":"#VALUE!"}},{"$error":"#VALUE!"},{"$error":"#VALUE!"},{"$error":"#VALUE!"}]
[{"$error":"#VALUE!"},{"$error":"#VALUE!"},{"$f":"VLOOKUP($A191,Analysis!$A:$U,11,FALSE)","v":{"$error":"#VALUE!"}},{"$f":"IF(VLOOKUP($A191,Analysis!$A:$U,3,FALSE)=1,VLOOKUP($A191,Analysis!$A:$U,18,FALSE),#N/A)","v":{"$error":"#VALUE!"}},{"$f":"IF(ISERROR($D191),VLOOKUP($A191,Analysis!$A:$U,18,FALSE),#N/A)","v":{"$error":"#VALUE!"}},{"$error":"#VALUE!"},{"$error":"#VALUE!"},{"$error":"#VALUE!"},null,{"$f":"VLOOKUP($A191,Analysis!$A:$U,10,FALSE)","v":{"$error":"#VALUE!"}},{"$f":"IF(VLOOKUP($A191,Analysis!$A:$U,3,FALSE)=1,ROUND(VLOOKUP($A191,Analysis!$A:$U,17,FALSE),0),#N/A)","v":{"$error":"#VALUE!"}},{"$f":"IF(ISERROR($K191),ROUND(VLOOKUP($A191,Analysis!$A:$U,17,FALSE),0),#N/A)","v":{"$error":"#VALUE!"}},{"$error":"#VALUE!"},{"$error":"#VALUE!"},{"$error":"#VALUE!"}]
[{"$error":"#VALUE!"},{"$error":"#VALUE!"},{"$f":"VLOOKUP($A192,Analysis!$A:$U,11,FALSE)","v":{"$error":"#VALUE!"}},{"$f":"IF(VLOOKUP($A192,Analysis!$A:$U,3,FALSE)=1,VLOOKUP($A192,Analysis!$A:$U,18,FALSE),#N/A)","v":{"$error":"#VALUE!"}},{"$f":"IF(ISERROR($D192),VLOOKUP($A192,Analysis!$A:$U,18,FALSE),#N/A)","v":{"$error":"#VALUE!"}},{"$error":"#VALUE!"},{"$error":"#VALUE!"},{"$error":"#VALUE!"},null,{"$f":"VLOOKUP($A192,Analysis!$A:$U,10,FALSE)","v":{"$error":"#VALUE!"}},{"$f":"IF(VLOOKUP($A192,Analysis!$A:$U,3,FALSE)=1,ROUND(VLOOKUP($A192,Analysis!$A:$U,17,FALSE),0),#N/A)","v":{"$error":"#VALUE!"}},{"$f":"IF(ISERROR($K192),ROUND(VLOOKUP($A192,Analysis!$A:$U,17,FALSE),0),#N/A)","v":{"$error":"#VALUE!"}},{"$error":"#VALUE!"},{"$error":"#VALUE!"},{"$error":"#VALUE!"}]
[{"$error":"#VALUE!"},{"$error":"#VALUE!"},{"$f":"VLOOKUP($A193,Analysis!$A:$U,11,FALSE)","v":{"$error":"#VALUE!"}},{"$f":"IF(VLOOKUP($A193,Analysis!$A:$U,3,FALSE)=1,VLOOKUP($A193,Analysis!$A:$U,18,FALSE),#N/A)","v":{"$error":"#VALUE!"}},{"$f":"IF(ISERROR($D193),VLOOKUP($A193,Analysis!$A:$U,18,FALSE),#N/A)","v":{"$error":"#VALUE!"}},{"$error":"#VALUE!"},{"$error":"#VALUE!"},{"$error":"#VALUE!"},null,{"$f":"VLOOKUP($A193,Analysis!$A:$U,10,FALSE)","v":{"$error":"#VALUE!"}},{"$f":"IF(VLOOKUP($A193,Analysis!$A:$U,3,FALSE)=1,ROUND(VLOOKUP($A193,Analysis!$A:$U,17,FALSE),0),#N/A)","v":{"$error":"#VALUE!"}},{"$f":"IF(ISERROR($K193),ROUND(VLOOKUP($A193,Analysis!$A:$U,17,FALSE),0),#N/A)","v":{"$error":"#VALUE!"}},{"$error":"#VALUE!"},{"$error":"#VALUE!"},{"$error":"#VALUE!"}]
[{"$f":"Item_ID","v":{"$error":"#VALUE!"}},{"$f":"Valuation_Method","v":{"$error":"#VALUE!"}},{"$f":"VLOOKUP($A194,Analysis!$A:$U,11,FALSE)","v":{"$error":"#VALUE!"}},{"$f":"IF(VLOOKUP($A194,Analysis!$A:$U,3,FALSE)=1,VLOOKUP($A194,Analysis!$A:$U,18,FALSE),#N/A)","v":{"$error":"#VALUE!"}},{"$f":"IF(ISERROR($D194),VLOOKUP($A194,Analysis!$A:$U,18,FALSE),#N/A)","v":{"$error":"#VALUE!"}},{"$error":"#VALUE!"},{"$error":"#VALUE!"},{"$error":"#VALUE!"},null,{"$f":"VLOOKUP($A194,Analysis!$A:$U,10,FALSE)","v":{"$error":"#VALUE!"}},{"$f":"IF(VLOOKUP($A194,Analysis!$A:$U,3,FALSE)=1,ROUND(VLOOKUP($A194,Analysis!$A:$U,17,FALSE),0),#N/A)","v":{"$error":"#VALUE!"}},{"$f":"IF(ISERROR($K194),ROUND(VLOOKUP($A194,Analysis!$A:$U,17,FALSE),0),#N/A)","v":{"$error":"#VALUE!"}},{"$error":"#VALUE!"},{"$error":"#VALUE!"},{"$error":"#VALUE!"}]
[{"$error":"#VALUE!"},{"$error":"#VALUE!"},{"$f":"VLOOKUP($A195,Analysis!$A:$U,11,FALSE)","v":{"$error":"#VALUE!"}},{"$f":"IF(VLOOKUP($A195,Analysis!$A:$U,3,FALSE)=1,VLOOKUP($A195,Analysis!$A:$U,18,FALSE),#N/A)","v":{"$error":"#VALUE!"}},{"$f":"IF(ISERROR($D195),VLOOKUP($A195,Analysis!$A:$U,18,FALSE),#N/A)","v":{"$error":"#VALUE!"}},{"$f":"IF($B195=\"Vacant\",$D195,#N/A)","v":{"$error":"#VALUE!"}},{"$f":"IF($B195=\"Abstraction\",$D195,#N/A)","v":{"$error":"#VALUE!"}},{"$f":"IF($B195=\"Allocation\",$D195,#N/A)","v":{"$error":"#VALUE!"}},null,{"$f":"VLOOKUP($A195,Analysis!$A:$U,10,FALSE)","v":{"$error":"#VALUE!"}},{"$f":"IF(VLOOKUP($A195,Analysis!$A:$U,3,FALSE)=1,ROUND(VLOOKUP($A195,Analysis!$A:$U,17,FALSE),0),#N/A)","v":{"$error":"#VALUE!"}},{"$f":"IF(ISERROR($K195),ROUND(VLOOKUP($A195,Analysis!$A:$U,17,FALSE),0),#N/A)","v":{"$error":"#VALUE!"}},{"$f":"IF($B195=\"Vacant\",$K195,#N/A)","v":{"$error":"#VALUE!"}},{"$f":"IF($B195=\"Abstraction\",$K195,#N/A)","v":{"$error":"#VALUE!"}},{"$f":"IF($B195=\"Allocation\",$K195,#N/A)","v":{"$error":"#VALUE!"}}]
[{"$error":"#VALUE!"},{"$error":"#VALUE!"},{"$f":"VLOOKUP($A196,Analysis!$A:$U,11,FALSE)","v":{"$error":"#VALUE!"}},{"$f":"IF(VLOOKUP($A196,Analysis!$A:$U,3,FALSE)=1,VLOOKUP($A196,Analysis!$A:$U,18,FALSE),#N/A)","v":{"$error":"#VALUE!"}},{"$f":"IF(ISERROR($D196),VLOOKUP($A196,Analysis!$A:$U,18,FALSE),#N/A)","v":{"$error":"#VALUE!"}},{"$error":"#VALUE!"},{"$error":"#VALUE!"},{"$error":"#VALUE!"},null,{"$f":"VLOOKUP($A196,Analysis!$A:$U,10,FALSE)","v":{"$error":"#VALUE!"}},{"$f":"IF(VLOOKUP($A196,Analysis!$A:$U,3,FALSE)=1,ROUND(VLOOKUP($A196,Analysis!$A:$U,17,FALSE),0),#N/A)","v":{"$error":"#VALUE!"}},{"$f":"IF(ISERROR($K196),ROUND(VLOOKUP($A196,Analysis!$A:$U,17,FALSE),0),#N/A)","v":{"$error":"#VALUE!"}},{"$error":"#VALUE!"},{"$error":"#VALUE!"},{"$error":"#VALUE!"}]
[{"$error":"#VALUE!"},{"$error":"#VALUE!"},{"$f":"VLOOKUP($A197,Analysis!$A:$U,11,FALSE)","v":{"$error":"#VALUE!"}},{"$f":"IF(VLOOKUP($A197,Analysis!$A:$U,3,FALSE)=1,VLOOKUP($A197,Analysis!$A:$U,18,FALSE),#N/A)","v":{"$error":"#VALUE!"}},{"$f":"IF(ISERROR($D197),VLOOKUP($A197,Analysis!$A:$U,18,FALSE),#N/A)","v":{"$error":"#VALUE!"}},{"$error":"#VALUE!"},{"$error":"#VALUE!"},{"$error":"#VALUE!"},null,{"$f":"VLOOKUP($A197,Analysis!$A:$U,10,FALSE)","v":{"$error":"#VALUE!"}},{"$f":"IF(VLOOKUP($A197,Analysis!$A:$U,3,FALSE)=1,ROUND(VLOOKUP($A197,Analysis!$A:$U,17,FALSE),0),#N/A)","v":{"$error":"#VALUE!"}},{"$f":"IF(ISERROR($K197),ROUND(VLOOKUP($A197,Analysis!$A:$U,17,FALSE),0),#N/A)","v":{"$error":"#VALUE!"}},{"$error":"#VALUE!"},{"$error":"#VALUE!"},{"$error":"#VALUE!"}]
[{"$error":"#VALUE!"},{"$error":"#VALUE!"},{"$f":"VLOOKUP($A198,Analysis!$A:$U,11,FALSE)","v":{"$error":"#VALUE!"}},{"$f":"IF(VLOOKUP($A198,Analysis!$A:$U,3,FALSE)=1,VLOOKUP($A198,Analysis!$A:$U,18,FALSE),#N/A)","v":{"$error":"#VALUE!"}},{"$f":"IF(ISERROR($D198),VLOOKUP($A198,Analysis!$A:$U,18,FALSE),#N/A)","v":{"$error":"#VALUE!"}},{"$error":"#VALUE!"},{"$error":"#VALUE!"},{"$error":"#VALUE!"},null,{"$f":"VLOOKUP($A198,Analysis!$A:$U,10,FALSE)","v":{"$error":"#VALUE!"}},{"$f":"IF(VLOOKUP($A198,Analysis!$A:$U,3,FALSE)=1,ROUND(VLOOKUP($A198,Analysis!$A:$U,17,FALSE),0),#N/A)","v":{"$error":"#VALUE!"}},{"$f":"IF(ISERROR($K198),ROUND(VLOOKUP($A198,Analysis!$A:$U,17,FALSE),0),#N/A)","v":{"$error":"#VALUE!"}},{"$error":"#VALUE!"},{"$error":"#VALUE!"},{"$error":"#VALUE!"}]
[{"$error":"#VALUE!"},{"$error":"#VALUE!"},{"$f":"VLOOKUP($A199,Analysis!$A:$U,11,FALSE)","v":{"$error":"#VALUE!"}},{"$f":"IF(VLOOKUP($A199,Analysis!$A:$U,3,FALSE)=1,VLOOKUP($A199,Analysis!$A:$U,18,FALSE),#N/A)","v":{"$error":"#VALUE!"}},{"$f":"IF(ISERROR($D199),VLOOKUP($A199,Analysis!$A:$U,18,FALSE),#N/A)","v":{"$error":"#VALUE!"}},{"$error":"#VALUE!"},{"$error":"#VALUE!"},{"$error":"#VALUE!"},null,{"$f":"VLOOKUP($A199,Analysis!$A:$U,10,FALSE)","v":{"$error":"#VALUE!"}},{"$f":"IF(VLOOKUP($A199,Analysis!$A:$U,3,FALSE)=1,ROUND(VLOOKUP($A199,Analysis!$A:$U,17,FALSE),0),#N/A)","v":{"$error":"#VALUE!"}},{"$f":"IF(ISERROR($K199),ROUND(VLOOKUP($A199,Analysis!$A:$U,17,FALSE),0),#N/A)","v":{"$error":"#VALUE!"}},{"$error":"#VALUE!"},{"$error":"#VALUE!"},{"$error":"#VALUE!"}]
[{"$error":"#VALUE!"},{"$error":"#VALUE!"},{"$f":"VLOOKUP($A200,Analysis!$A:$U,11,FALSE)","v":{"$error":"#VALUE!"}},{"$f":"IF(VLOOKUP($A200,Analysis!$A:$U,3,FALSE)=1,VLOOKUP($A200,Analysis!$A:$U,18,FALSE),#N/A)","v":{"$error":"#VALUE!"}},{"$f":"IF(ISERROR($D200),VLOOKUP($A200,Analysis!$A:$U,18,FALSE),#N/A)","v":{"$error":"#VALUE!"}},{"$error":"#VALUE!"},{"$error":"#VALUE!"},{"$error":"#VALUE!"},null,{"$f":"VLOOKUP($A200,Analysis!$A:$U,10,FALSE)","v":{"$error":"#VALUE!"}},{"$f":"IF(VLOOKUP($A200,Analysis!$A:$U,3,FALSE)=1,ROUND(VLOOKUP($A200,Analysis!$A:$U,17,FALSE),0),#N/A)","v":{"$error":"#VALUE!"}},{"$f":"IF(ISERROR($K200),ROUND(VLOOKUP($A200,Analysis!$A:$U,17,FALSE),0),#N/A)","v":{"$error":"#VALUE!"}},{"$error":"#VALUE!"},{"$error":"#VALUE!"},{"$error":"#VALUE!"}]
[{"$error":"#VALUE!"},{"$error":"#VALUE!"},{"$f":"VLOOKUP($A201,Analysis!$A:$U,11,FALSE)","v":{"$error":"#VALUE!"}},{"$f":"IF(VLOOKUP($A201,Analysis!$A:$U,3,FALSE)=1,VLOOKUP($A201,Analysis!$A:$U,18,FALSE),#N/A)","v":{"$error":"#VALUE!"}},{"$f":"IF(ISERROR($D201),VLOOKUP($A201,Analysis!$A:$U,18,FALSE),#N/A)","v":{"$error":"#VALUE!"}},{"$error":"#VALUE!"},{"$error":"#VALUE!"},{"$error":"#VALUE!"},null,{"$f":"VLOOKUP($A201,Analysis!$A:$U,10,FALSE)","v":{"$error":"#VALUE!"}},{"$f":"IF(VLOOKUP($A201,Analysis!$A:$U,3,FALSE)=1,ROUND(VLOOKUP($A201,Analysis!$A:$U,17,FALSE),0),#N/A)","v":{"$error":"#VALUE!"}},{"$f":"IF(ISERROR($K201),ROUND(VLOOKUP($A201,Analysis!$A:$U,17,FALSE),0),#N/A)","v":{"$error":"#VALUE!"}},{"$error":"#VALUE!"},{"$error":"#VALUE!"},{"$error":"#VALUE!"}]
[{"$error":"#VALUE!"},{"$error":"#VALUE!"},{"$f":"VLOOKUP($A202,Analysis!$A:$U,11,FALSE)","v":{"$error":"#VALUE!"}},{"$f":"IF(VLOOKUP($A202,Analysis!$A:$U,3,FALSE)=1,VLOOKUP($A202,Analysis!$A:$U,18,FALSE),#N/A)","v":{"$error":"#VALUE!"}},{"$f":"IF(ISERROR($D202),VLOOKUP($A202,Analysis!$A:$U,18,FALSE),#N/A)","v":{"$error":"#VALUE!"}},{"$error":"#VALUE!"},{"$error":"#VALUE!"},{"$error":"#VALUE!"},null,{"$f":"VLOOKUP($A202,Analysis!$A:$U,10,FALSE)","v":{"$error":"#VALUE!"}},{"$f":"IF(VLOOKUP($A202,Analysis!$A:$U,3,FALSE)=1,ROUND(VLOOKUP($A202,Analysis!$A:$U,17,FALSE),0),#N/A)","v":{"$error":"#VALUE!"}},{"$f":"IF(ISERROR($K202),ROUND(VLOOKUP($A202,Analysis!$A:$U,17,FALSE),0),#N/A)","v":{"$error":"#VALUE!"}},{"$error":"#VALUE!"},{"$error":"#VALUE!"},{"$error":"#VALUE!"}]
[{"$error":"#VALUE!"},{"$error":"#VALUE!"},{"$f":"VLOOKUP($A203,Analysis!$A:$U,11,FALSE)","v":{"$error":"#VALUE!"}},{"$f":"IF(VLOOKUP($A203,Analysis!$A:$U,3,FALSE)=1,VLOOKUP($A203,Analysis!$A:$U,18,FALSE),#N/A)","v":{"$error":"#VALUE!"}},{"$f":"IF(ISERROR($D203),VLOOKUP($A203,Analysis!$A:$U,18,FALSE),#N/A)","v":{"$error":"#VALUE!"}},{"$error":"#VALUE!"},{"$error":"#VALUE!"},{"$error":"#VALUE!"},null,{"$f":"VLOOKUP($A203,Analysis!$A:$U,10,FALSE)","v":{"$error":"#VALUE!"}},{"$f":"IF(VLOOKUP($A203,Analysis!$A:$U,3,FALSE)=1,ROUND(VLOOKUP($A203,Analysis!$A:$U,17,FALSE),0),#N/A)","v":{"$error":"#VALUE!"}},{"$f":"IF(ISERROR($K203),ROUND(VLOOKUP($A203,Analysis!$A:$U,17,FALSE),0),#N/A)","v":{"$error":"#VALUE!"}},{"$error":"#VALUE!"},{"$error":"#VALUE!"},{"$error":"#VALUE!"}]
[{"$error":"#VALUE!"},{"$error":"#VALUE!"},{"$f":"VLOOKUP($A204,Analysis!$A:$U,11,FALSE)","v":{"$error":"#VALUE!"}},{"$f":"IF(VLOOKUP($A204,Analysis!$A:$U,3,FALSE)=1,VLOOKUP($A204,Analysis!$A:$U,18,FALSE),#N/A)","v":{"$error":"#VALUE!"}},{"$f":"IF(ISERROR($D204),VLOOKUP($A204,Analysis!$A:$U,18,FALSE),#N/A)","v":{"$error":"#VALUE!"}},{"$error":"#VALUE!"},{"$error":"#VALUE!"},{"$error":"#VALUE!"},null,{"$f":"VLOOKUP($A204,Analysis!$A:$U,10,FALSE)","v":{"$error":"#VALUE!"}},{"$f":"IF(VLOOKUP($A204,Analysis!$A:$U,3,FALSE)=1,ROUND(VLOOKUP($A204,Analysis!$A:$U,17,FALSE),0),#N/A)","v":{"$error":"#VALUE!"}},{"$f":"IF(ISERROR($K204),ROUND(VLOOKUP($A204,Analysis!$A:$U,17,FALSE),0),#N/A)","v":{"$error":"#VALUE!"}},{"$error":"#VALUE!"},{"$error":"#VALUE!"},{"$error":"#VALUE!"}]
[{"$error":"#VALUE!"},{"$error":"#VALUE!"},{"$f":"VLOOKUP($A205,Analysis!$A:$U,11,FALSE)","v":{"$error":"#VALUE!"}},{"$f":"IF(VLOOKUP($A205,Analysis!$A:$U,3,FALSE)=1,VLOOKUP($A205,Analysis!$A:$U,18,FALSE),#N/A)","v":{"$error":"#VALUE!"}},{"$f":"IF(ISERROR($D205),VLOOKUP($A205,Analysis!$A:$U,18,FALSE),#N/A)","v":{"$error":"#VALUE!"}},{"$error":"#VALUE!"},{"$error":"#VALUE!"},{"$error":"#VALUE!"},null,{"$f":"VLOOKUP($A205,Analysis!$A:$U,10,FALSE)","v":{"$error":"#VALUE!"}},{"$f":"IF(VLOOKUP($A205,Analysis!$A:$U,3,FALSE)=1,ROUND(VLOOKUP($A205,Analysis!$A:$U,17,FALSE),0),#N/A)","v":{"$error":"#VALUE!"}},{"$f":"IF(ISERROR($K205),ROUND(VLOOKUP($A205,Analysis!$A:$U,17,FALSE),0),#N/A)","v":{"$error":"#VALUE!"}},{"$error":"#VALUE!"},{"$error":"#VALUE!"},{"$error":"#VALUE!"}]
[{"$error":"#VALUE!"},{"$error":"#VALUE!"},{"$f":"VLOOKUP($A206,Analysis!$A:$U,11,FALSE)","v":{"$error":"#VALUE!"}},{"$f":"IF(VLOOKUP($A206,Analysis!$A:$U,3,FALSE)=1,VLOOKUP($A206,Analysis!$A:$U,18,FALSE),#N/A)","v":{"$error":"#VALUE!"}},{"$f":"IF(ISERROR($D206),VLOOKUP($A206,Analysis!$A:$U,18,FALSE),#N/A)","v":{"$error":"#VALUE!"}},{"$error":"#VALUE!"},{"$error":"#VALUE!"},{"$error":"#VALUE!"},null,{"$f":"VLOOKUP($A206,Analysis!$A:$U,10,FALSE)","v":{"$error":"#VALUE!"}},{"$f":"IF(VLOOKUP($A206,Analysis!$A:$U,3,FALSE)=1,ROUND(VLOOKUP($A206,Analysis!$A:$U,17,FALSE),0),#N/A)","v":{"$error":"#VALUE!"}},{"$f":"IF(ISERROR($K206),ROUND(VLOOKUP($A206,Analysis!$A:$U,17,FALSE),0),#N/A)","v":{"$error":"#VALUE!"}},{"$error":"#VALUE!"},{"$error":"#VALUE!"},{"$error":"#VALUE!"}]
[{"$error":"#VALUE!"},{"$error":"#VALUE!"},{"$f":"VLOOKUP($A207,Analysis!$A:$U,11,FALSE)","v":{"$error":"#VALUE!"}},{"$f":"IF(VLOOKUP($A207,Analysis!$A:$U,3,FALSE)=1,VLOOKUP($A207,Analysis!$A:$U,18,FALSE),#N/A)","v":{"$error":"#VALUE!"}},{"$f":"IF(ISERROR($D207),VLOOKUP($A207,Analysis!$A:$U,18,FALSE),#N/A)","v":{"$error":"#VALUE!"}},{"$error":"#VALUE!"},{"$error":"#VALUE!"},{"$error":"#VALUE!"},null,{"$f":"VLOOKUP($A207,Analysis!$A:$U,10,FALSE)","v":{"$error":"#VALUE!"}},{"$f":"IF(VLOOKUP($A207,Analysis!$A:$U,3,FALSE)=1,ROUND(VLOOKUP($A207,Analysis!$A:$U,17,FALSE),0),#N/A)","v":{"$error":"#VALUE!"}},{"$f":"IF(ISERROR($K207),ROUND(VLOOKUP($A207,Analysis!$A:$U,17,FALSE),0),#N/A)","v":{"$error":"#VALUE!"}},{"$error":"#VALUE!"},{"$error":"#VALUE!"},{"$error":"#VALUE!"}]
[{"$error":"#VALUE!"},{"$error":"#VALUE!"},{"$f":"VLOOKUP($A208,Analysis!$A:$U,11,FALSE)","v":{"$error":"#VALUE!"}},{"$f":"IF(VLOOKUP($A208,Analysis!$A:$U,3,FALSE)=1,VLOOKUP($A208,Analysis!$A:$U,18,FALSE),#N/A)","v":{"$error":"#VALUE!"}},{"$f":"IF(ISERROR($D208),VLOOKUP($A208,Analysis!$A:$U,18,FALSE),#N/A)","v":{"$error":"#VALUE!"}},{"$error":"#VALUE!"},{"$error":"#VALUE!"},{"$error":"#VALUE!"},null,{"$f":"VLOOKUP($A208,Analysis!$A:$U,10,FALSE)","v":{"$error":"#VALUE!"}},{"$f":"IF(VLOOKUP($A208,Analysis!$A:$U,3,FALSE)=1,ROUND(VLOOKUP($A208,Analysis!$A:$U,17,FALSE),0),#N/A)","v":{"$error":"#VALUE!"}},{"$f":"IF(ISERROR($K208),ROUND(VLOOKUP($A208,Analysis!$A:$U,17,FALSE),0),#N/A)","v":{"$error":"#VALUE!"}},{"$error":"#VALUE!"},{"$error":"#VALUE!"},{"$error":"#VALUE!"}]
[{"$error":"#VALUE!"},{"$error":"#VALUE!"},{"$f":"VLOOKUP($A209,Analysis!$A:$U,11,FALSE)","v":{"$error":"#VALUE!"}},{"$f":"IF(VLOOKUP($A209,Analysis!$A:$U,3,FALSE)=1,VLOOKUP($A209,Analysis!$A:$U,18,FALSE),#N/A)","v":{"$error":"#VALUE!"}},{"$f":"IF(ISERROR($D209),VLOOKUP($A209,Analysis!$A:$U,18,FALSE),#N/A)","v":{"$error":"#VALUE!"}},{"$error":"#VALUE!"},{"$error":"#VALUE!"},{"$error":"#VALUE!"},null,{"$f":"VLOOKUP($A209,Analysis!$A:$U,10,FALSE)","v":{"$error":"#VALUE!"}},{"$f":"IF(VLOOKUP($A209,Analysis!$A:$U,3,FALSE)=1,ROUND(VLOOKUP($A209,Analysis!$A:$U,17,FALSE),0),#N/A)","v":{"$error":"#VALUE!"}},{"$f":"IF(ISERROR($K209),ROUND(VLOOKUP($A209,Analysis!$A:$U,17,FALSE),0),#N/A)","v":{"$error":"#VALUE!"}},{"$error":"#VALUE!"},{"$error":"#VALUE!"},{"$error":"#VALUE!"}]
[{"$error":"#VALUE!"},{"$error":"#VALUE!"},{"$f":"VLOOKUP($A210,Analysis!$A:$U,11,FALSE)","v":{"$error":"#VALUE!"}},{"$f":"IF(VLOOKUP($A210,Analysis!$A:$U,3,FALSE)=1,VLOOKUP($A210,Analysis!$A:$U,18,FALSE),#N/A)","v":{"$error":"#VALUE!"}},{"$f":"IF(ISERROR($D210),VLOOKUP($A210,Analysis!$A:$U,18,FALSE),#N/A)","v":{"$error":"#VALUE!"}},{"$error":"#VALUE!"},{"$error":"#VALUE!"},{"$error":"#VALUE!"},null,{"$f":"VLOOKUP($A210,Analysis!$A:$U,10,FALSE)","v":{"$error":"#VALUE!"}},{"$f":"IF(VLOOKUP($A210,Analysis!$A:$U,3,FALSE)=1,ROUND(VLOOKUP($A210,Analysis!$A:$U,17,FALSE),0),#N/A)","v":{"$error":"#VALUE!"}},{"$f":"IF(ISERROR($K210),ROUND(VLOOKUP($A210,Analysis!$A:$U,17,FALSE),0),#N/A)","v":{"$error":"#VALUE!"}},{"$error":"#VALUE!"},{"$error":"#VALUE!"},{"$error":"#VALUE!"}]
[{"$error":"#VALUE!"},{"$error":"#VALUE!"},{"$f":"VLOOKUP($A211,Analysis!$A:$U,11,FALSE)","v":{"$error":"#VALUE!"}},{"$f":"IF(VLOOKUP($A211,Analysis!$A:$U,3,FALSE)=1,VLOOKUP($A211,Analysis!$A:$U,18,FALSE),#N/A)","v":{"$error":"#VALUE!"}},{"$f":"IF(ISERROR($D211),VLOOKUP($A211,Analysis!$A:$U,18,FALSE),#N/A)","v":{"$error":"#VALUE!"}},{"$error":"#VALUE!"},{"$error":"#VALUE!"},{"$error":"#VALUE!"},null,{"$f":"VLOOKUP($A211,Analysis!$A:$U,10,FALSE)","v":{"$error":"#VALUE!"}},{"$f":"IF(VLOOKUP($A211,Analysis!$A:$U,3,FALSE)=1,ROUND(VLOOKUP($A211,Analysis!$A:$U,17,FALSE),0),#N/A)","v":{"$error":"#VALUE!"}},{"$f":"IF(ISERROR($K211),ROUND(VLOOKUP($A211,Analysis!$A:$U,17,FALSE),0),#N/A)","v":{"$error":"#VALUE!"}},{"$error":"#VALUE!"},{"$error":"#VALUE!"},{"$error":"#VALUE!"}]
[{"$error":"#VALUE!"},{"$error":"#VALUE!"},{"$f":"VLOOKUP($A212,Analysis!$A:$U,11,FALSE)","v":{"$error":"#VALUE!"}},{"$f":"IF(VLOOKUP($A212,Analysis!$A:$U,3,FALSE)=1,VLOOKUP($A212,Analysis!$A:$U,18,FALSE),#N/A)","v":{"$error":"#VALUE!"}},{"$f":"IF(ISERROR($D212),VLOOKUP($A212,Analysis!$A:$U,18,FALSE),#N/A)","v":{"$error":"#VALUE!"}},{"$error":"#VALUE!"},{"$error":"#VALUE!"},{"$error":"#VALUE!"},null,{"$f":"VLOOKUP($A212,Analysis!$A:$U,10,FALSE)","v":{"$error":"#VALUE!"}},{"$f":"IF(VLOOKUP($A212,Analysis!$A:$U,3,FALSE)=1,ROUND(VLOOKUP($A212,Analysis!$A:$U,17,FALSE),0),#N/A)","v":{"$error":"#VALUE!"}},{"$f":"IF(ISERROR($K212),ROUND(VLOOKUP($A212,Analysis!$A:$U,17,FALSE),0),#N/A)","v":{"$error":"#VALUE!"}},{"$error":"#VALUE!"},{"$error":"#VALUE!"},{"$error":"#VALUE!"}]
[{"$error":"#VALUE!"},{"$error":"#VALUE!"},{"$f":"VLOOKUP($A213,Analysis!$A:$U,11,FALSE)","v":{"$error":"#VALUE!"}},{"$f":"IF(VLOOKUP($A213,Analysis!$A:$U,3,FALSE)=1,VLOOKUP($A213,Analysis!$A:$U,18,FALSE),#N/A)","v":{"$error":"#VALUE!"}},{"$f":"IF(ISERROR($D213),VLOOKUP($A213,Analysis!$A:$U,18,FALSE),#N/A)","v":{"$error":"#VALUE!"}},{"$error":"#VALUE!"},{"$error":"#VALUE!"},{"$error":"#VALUE!"},null,{"$f":"VLOOKUP($A213,Analysis!$A:$U,10,FALSE)","v":{"$error":"#VALUE!"}},{"$f":"IF(VLOOKUP($A213,Analysis!$A:$U,3,FALSE)=1,ROUND(VLOOKUP($A213,Analysis!$A:$U,17,FALSE),0),#N/A)","v":{"$error":"#VALUE!"}},{"$f":"IF(ISERROR($K213),ROUND(VLOOKUP($A213,Analysis!$A:$U,17,FALSE),0),#N/A)","v":{"$error":"#VALUE!"}},{"$error":"#VALUE!"},{"$error":"#VALUE!"},{"$error":"#VALUE!"}]
[{"$error":"#VALUE!"},{"$error":"#VALUE!"},{"$f":"VLOOKUP($A214,Analysis!$A:$U,11,FALSE)","v":{"$error":"#VALUE!"}},{"$f":"IF(VLOOKUP($A214,Analysis!$A:$U,3,FALSE)=1,VLOOKUP($A214,Analysis!$A:$U,18,FALSE),#N/A)","v":{"$error":"#VALUE!"}},{"$f":"IF(ISERROR($D214),VLOOKUP($A214,Analysis!$A:$U,18,FALSE),#N/A)","v":{"$error":"#VALUE!"}},{"$error":"#VALUE!"},{"$error":"#VALUE!"},{"$error":"#VALUE!"},null,{"$f":"VLOOKUP($A214,Analysis!$A:$U,10,FALSE)","v":{"$error":"#VALUE!"}},{"$f":"IF(VLOOKUP($A214,Analysis!$A:$U,3,FALSE)=1,ROUND(VLOOKUP($A214,Analysis!$A:$U,17,FALSE),0),#N/A)","v":{"$error":"#VALUE!"}},{"$f":"IF(ISERROR($K214),ROUND(VLOOKUP($A214,Analysis!$A:$U,17,FALSE),0),#N/A)","v":{"$error":"#VALUE!"}},{"$error":"#VALUE!"},{"$error":"#VALUE!"},{"$error":"#VALUE!"}]
[{"$error":"#VALUE!"},{"$error":"#VALUE!"},{"$f":"VLOOKUP($A215,Analysis!$A:$U,11,FALSE)","v":{"$error":"#VALUE!"}},{"$f":"IF(VLOOKUP($A215,Analysis!$A:$U,3,FALSE)=1,VLOOKUP($A215,Analysis!$A:$U,18,FALSE),#N/A)","v":{"$error":"#VALUE!"}},{"$f":"IF(ISERROR($D215),VLOOKUP($A215,Analysis!$A:$U,18,FALSE),#N/A)","v":{"$error":"#VALUE!"}},{"$error":"#VALUE!"},{"$error":"#VALUE!"},{"$error":"#VALUE!"},null,{"$f":"VLOOKUP($A215,Analysis!$A:$U,10,FALSE)","v":{"$error":"#VALUE!"}},{"$f":"IF(VLOOKUP($A215,Analysis!$A:$U,3,FALSE)=1,ROUND(VLOOKUP($A215,Analysis!$A:$U,17,FALSE),0),#N/A)","v":{"$error":"#VALUE!"}},{"$f":"IF(ISERROR($K215),ROUND(VLOOKUP($A215,Analysis!$A:$U,17,FALSE),0),#N/A)","v":{"$error":"#VALUE!"}},{"$error":"#VALUE!"},{"$error":"#VALUE!"},{"$error":"#VALUE!"}]
[{"$error":"#VALUE!"},{"$error":"#VALUE!"},{"$f":"VLOOKUP($A216,Analysis!$A:$U,11,FALSE)","v":{"$error":"#VALUE!"}},{"$f":"IF(VLOOKUP($A216,Analysis!$A:$U,3,FALSE)=1,VLOOKUP($A216,Analysis!$A:$U,18,FALSE),#N/A)","v":{"$error":"#VALUE!"}},{"$f":"IF(ISERROR($D216),VLOOKUP($A216,Analysis!$A:$U,18,FALSE),#N/A)","v":{"$error":"#VALUE!"}},{"$error":"#VALUE!"},{"$error":"#VALUE!"},{"$error":"#VALUE!"},null,{"$f":"VLOOKUP($A216,Analysis!$A:$U,10,FALSE)","v":{"$error":"#VALUE!"}},{"$f":"IF(VLOOKUP($A216,Analysis!$A:$U,3,FALSE)=1,ROUND(VLOOKUP($A216,Analysis!$A:$U,17,FALSE),0),#N/A)","v":{"$error":"#VALUE!"}},{"$f":"IF(ISERROR($K216),ROUND(VLOOKUP($A216,Analysis!$A:$U,17,FALSE),0),#N/A)","v":{"$error":"#VALUE!"}},{"$error":"#VALUE!"},{"$error":"#VALUE!"},{"$error":"#VALUE!"}]
[{"$error":"#VALUE!"},{"$error":"#VALUE!"},{"$f":"VLOOKUP($A217,Analysis!$A:$U,11,FALSE)","v":{"$error":"#VALUE!"}},{"$f":"IF(VLOOKUP($A217,Analysis!$A:$U,3,FALSE)=1,VLOOKUP($A217,Analysis!$A:$U,18,FALSE),#N/A)","v":{"$error":"#VALUE!"}},{"$f":"IF(ISERROR($D217),VLOOKUP($A217,Analysis!$A:$U,18,FALSE),#N/A)","v":{"$error":"#VALUE!"}},{"$error":"#VALUE!"},{"$error":"#VALUE!"},{"$error":"#VALUE!"},null,{"$f":"VLOOKUP($A217,Analysis!$A:$U,10,FALSE)","v":{"$error":"#VALUE!"}},{"$f":"IF(VLOOKUP($A217,Analysis!$A:$U,3,FALSE)=1,ROUND(VLOOKUP($A217,Analysis!$A:$U,17,FALSE),0),#N/A)","v":{"$error":"#VALUE!"}},{"$f":"IF(ISERROR($K217),ROUND(VLOOKUP($A217,Analysis!$A:$U,17,FALSE),0),#N/A)","v":{"$error":"#VALUE!"}},{"$error":"#VALUE!"},{"$error":"#VALUE!"},{"$error":"#VALUE!"}]
[{"$error":"#VALUE!"},{"$error":"#VALUE!"},{"$f":"VLOOKUP($A218,Analysis!$A:$U,11,FALSE)","v":{"$error":"#VALUE!"}},{"$f":"IF(VLOOKUP($A218,Analysis!$A:$U,3,FALSE)=1,VLOOKUP($A218,Analysis!$A:$U,18,FALSE),#N/A)","v":{"$error":"#VALUE!"}},{"$f":"IF(ISERROR($D218),VLOOKUP($A218,Analysis!$A:$U,18,FALSE),#N/A)","v":{"$error":"#VALUE!"}},{"$error":"#VALUE!"},{"$error":"#VALUE!"},{"$error":"#VALUE!"},null,{"$f":"VLOOKUP($A218,Analysis!$A:$U,10,FALSE)","v":{"$error":"#VALUE!"}},{"$f":"IF(VLOOKUP($A218,Analysis!$A:$U,3,FALSE)=1,ROUND(VLOOKUP($A218,Analysis!$A:$U,17,FALSE),0),#N/A)","v":{"$error":"#VALUE!"}},{"$f":"IF(ISERROR($K218),ROUND(VLOOKUP($A218,Analysis!$A:$U,17,FALSE),0),#N/A)","v":{"$error":"#VALUE!"}},{"$error":"#VALUE!"},{"$error":"#VALUE!"},{"$error":"#VALUE!"}]
[{"$error":"#VALUE!"},{"$error":"#VALUE!"},{"$f":"VLOOKUP($A219,Analysis!$A:$U,11,FALSE)","v":{"$error":"#VALUE!"}},{"$f":"IF(VLOOKUP($A219,Analysis!$A:$U,3,FALSE)=1,VLOOKUP($A219,Analysis!$A:$U,18,FALSE),#N/A)","v":{"$error":"#VALUE!"}},{"$f":"IF(ISERROR($D219),VLOOKUP($A219,Analysis!$A:$U,18,FALSE),#N/A)","v":{"$error":"#VALUE!"}},{"$error":"#VALUE!"},{"$error":"#VALUE!"},{"$error":"#VALUE!"},null,{"$f":"VLOOKUP($A219,Analysis!$A:$U,10,FALSE)","v":{"$error":"#VALUE!"}},{"$f":"IF(VLOOKUP($A219,Analysis!$A:$U,3,FALSE)=1,ROUND(VLOOKUP($A219,Analysis!$A:$U,17,FALSE),0),#N/A)","v":{"$error":"#VALUE!"}},{"$f":"IF(ISERROR($K219),ROUND(VLOOKUP($A219,Analysis!$A:$U,17,FALSE),0),#N/A)","v":{"$error":"#VALUE!"}},{"$error":"#VALUE!"},{"$error":"#VALUE!"},{"$error":"#VALUE!"}]
[{"$error":"#VALUE!"},{"$error":"#VALUE!"},{"$f":"VLOOKUP($A220,Analysis!$A:$U,11,FALSE)","v":{"$error":"#VALUE!"}},{"$f":"IF(VLOOKUP($A220,Analysis!$A:$U,3,FALSE)=1,VLOOKUP($A220,Analysis!$A:$U,18,FALSE),#N/A)","v":{"$error":"#VALUE!"}},{"$f":"IF(ISERROR($D220),VLOOKUP($A220,Analysis!$A:$U,18,FALSE),#N/A)","v":{"$error":"#VALUE!"}},{"$error":"#VALUE!"},{"$error":"#VALUE!"},{"$error":"#VALUE!"},null,{"$f":"VLOOKUP($A220,Analysis!$A:$U,10,FALSE)","v":{"$error":"#VALUE!"}},{"$f":"IF(VLOOKUP($A220,Analysis!$A:$U,3,FALSE)=1,ROUND(VLOOKUP($A220,Analysis!$A:$U,17,FALSE),0),#N/A)","v":{"$error":"#VALUE!"}},{"$f":"IF(ISERROR($K220),ROUND(VLOOKUP($A220,Analysis!$A:$U,17,FALSE),0),#N/A)","v":{"$error":"#VALUE!"}},{"$error":"#VALUE!"},{"$error":"#VALUE!"},{"$error":"#VALUE!"}]
[{"$error":"#VALUE!"},{"$error":"#VALUE!"},{"$f":"VLOOKUP($A221,Analysis!$A:$U,11,FALSE)","v":{"$error":"#VALUE!"}},{"$f":"IF(VLOOKUP($A221,Analysis!$A:$U,3,FALSE)=1,VLOOKUP($A221,Analysis!$A:$U,18,FALSE),#N/A)","v":{"$error":"#VALUE!"}},{"$f":"IF(ISERROR($D221),VLOOKUP($A221,Analysis!$A:$U,18,FALSE),#N/A)","v":{"$error":"#VALUE!"}},{"$error":"#VALUE!"},{"$error":"#VALUE!"},{"$error":"#VALUE!"},null,{"$f":"VLOOKUP($A221,Analysis!$A:$U,10,FALSE)","v":{"$error":"#VALUE!"}},{"$f":"IF(VLOOKUP($A221,Analysis!$A:$U,3,FALSE)=1,ROUND(VLOOKUP($A221,Analysis!$A:$U,17,FALSE),0),#N/A)","v":{"$error":"#VALUE!"}},{"$f":"IF(ISERROR($K221),ROUND(VLOOKUP($A221,Analysis!$A:$U,17,FALSE),0),#N/A)","v":{"$error":"#VALUE!"}},{"$error":"#VALUE!"},{"$error":"#VALUE!"},{"$error":"#VALUE!"}]
[{"$error":"#VALUE!"},{"$error":"#VALUE!"},{"$f":"VLOOKUP($A222,Analysis!$A:$U,11,FALSE)","v":{"$error":"#VALUE!"}},{"$f":"IF(VLOOKUP($A222,Analysis!$A:$U,3,FALSE)=1,VLOOKUP($A222,Analysis!$A:$U,18,FALSE),#N/A)","v":{"$error":"#VALUE!"}},{"$f":"IF(ISERROR($D222),VLOOKUP($A222,Analysis!$A:$U,18,FALSE),#N/A)","v":{"$error":"#VALUE!"}},{"$error":"#VALUE!"},{"$error":"#VALUE!"},{"$error":"#VALUE!"},null,{"$f":"VLOOKUP($A222,Analysis!$A:$U,10,FALSE)","v":{"$error":"#VALUE!"}},{"$f":"IF(VLOOKUP($A222,Analysis!$A:$U,3,FALSE)=1,ROUND(VLOOKUP($A222,Analysis!$A:$U,17,FALSE),0),#N/A)","v":{"$error":"#VALUE!"}},{"$f":"IF(ISERROR($K222),ROUND(VLOOKUP($A222,Analysis!$A:$U,17,FALSE),0),#N/A)","v":{"$error":"#VALUE!"}},{"$error":"#VALUE!"},{"$error":"#VALUE!"},{"$error":"#VALUE!"}]
[{"$error":"#VALUE!"},{"$error":"#VALUE!"},{"$f":"VLOOKUP($A223,Analysis!$A:$U,11,FALSE)","v":{"$error":"#VALUE!"}},{"$f":"IF(VLOOKUP($A223,Analysis!$A:$U,3,FALSE)=1,VLOOKUP($A223,Analysis!$A:$U,18,FALSE),#N/A)","v":{"$error":"#VALUE!"}},{"$f":"IF(ISERROR($D223),VLOOKUP($A223,Analysis!$A:$U,18,FALSE),#N/A)","v":{"$error":"#VALUE!"}},{"$error":"#VALUE!"},{"$error":"#VALUE!"},{"$error":"#VALUE!"},null,{"$f":"VLOOKUP($A223,Analysis!$A:$U,10,FALSE)","v":{"$error":"#VALUE!"}},{"$f":"IF(VLOOKUP($A223,Analysis!$A:$U,3,FALSE)=1,ROUND(VLOOKUP($A223,Analysis!$A:$U,17,FALSE),0),#N/A)","v":{"$error":"#VALUE!"}},{"$f":"IF(ISERROR($K223),ROUND(VLOOKUP($A223,Analysis!$A:$U,17,FALSE),0),#N/A)","v":{"$error":"#VALUE!"}},{"$error":"#VALUE!"},{"$error":"#VALUE!"},{"$error":"#VALUE!"}]
[{"$error":"#VALUE!"},{"$error":"#VALUE!"},{"$f":"VLOOKUP($A224,Analysis!$A:$U,11,FALSE)","v":{"$error":"#VALUE!"}},{"$f":"IF(VLOOKUP($A224,Analysis!$A:$U,3,FALSE)=1,VLOOKUP($A224,Analysis!$A:$U,18,FALSE),#N/A)","v":{"$error":"#VALUE!"}},{"$f":"IF(ISERROR($D224),VLOOKUP($A224,Analysis!$A:$U,18,FALSE),#N/A)","v":{"$error":"#VALUE!"}},{"$error":"#VALUE!"},{"$error":"#VALUE!"},{"$error":"#VALUE!"},null,{"$f":"VLOOKUP($A224,Analysis!$A:$U,10,FALSE)","v":{"$error":"#VALUE!"}},{"$f":"IF(VLOOKUP($A224,Analysis!$A:$U,3,FALSE)=1,ROUND(VLOOKUP($A224,Analysis!$A:$U,17,FALSE),0),#N/A)","v":{"$error":"#VALUE!"}},{"$f":"IF(ISERROR($K224),ROUND(VLOOKUP($A224,Analysis!$A:$U,17,FALSE),0),#N/A)","v":{"$error":"#VALUE!"}},{"$error":"#VALUE!"},{"$error":"#VALUE!"},{"$error":"#VALUE!"}]
[{"$error":"#VALUE!"},{"$error":"#VALUE!"},{"$f":"VLOOKUP($A225,Analysis!$A:$U,11,FALSE)","v":{"$error":"#VALUE!"}},{"$f":"IF(VLOOKUP($A225,Analysis!$A:$U,3,FALSE)=1,VLOOKUP($A225,Analysis!$A:$U,18,FALSE),#N/A)","v":{"$error":"#VALUE!"}},{"$f":"IF(ISERROR($D225),VLOOKUP($A225,Analysis!$A:$U,18,FALSE),#N/A)","v":{"$error":"#VALUE!"}},{"$error":"#VALUE!"},{"$error":"#VALUE!"},{"$error":"#VALUE!"},null,{"$f":"VLOOKUP($A225,Analysis!$A:$U,10,FALSE)","v":{"$error":"#VALUE!"}},{"$f":"IF(VLOOKUP($A225,Analysis!$A:$U,3,FALSE)=1,ROUND(VLOOKUP($A225,Analysis!$A:$U,17,FALSE),0),#N/A)","v":{"$error":"#VALUE!"}},{"$f":"IF(ISERROR($K225),ROUND(VLOOKUP($A225,Analysis!$A:$U,17,FALSE),0),#N/A)","v":{"$error":"#VALUE!"}},{"$error":"#VALUE!"},{"$error":"#VALUE!"},{"$error":"#VALUE!"}]
[{"$error":"#VALUE!"},{"$error":"#VALUE!"},{"$f":"VLOOKUP($A226,Analysis!$A:$U,11,FALSE)","v":{"$error":"#VALUE!"}},{"$f":"IF(VLOOKUP($A226,Analysis!$A:$U,3,FALSE)=1,VLOOKUP($A226,Analysis!$A:$U,18,FALSE),#N/A)","v":{"$error":"#VALUE!"}},{"$f":"IF(ISERROR($D226),VLOOKUP($A226,Analysis!$A:$U,18,FALSE),#N/A)","v":{"$error":"#VALUE!"}},{"$error":"#VALUE!"},{"$error":"#VALUE!"},{"$error":"#VALUE!"},null,{"$f":"VLOOKUP($A226,Analysis!$A:$U,10,FALSE)","v":{"$error":"#VALUE!"}},{"$f":"IF(VLOOKUP($A226,Analysis!$A:$U,3,FALSE)=1,ROUND(VLOOKUP($A226,Analysis!$A:$U,17,FALSE),0),#N/A)","v":{"$error":"#VALUE!"}},{"$f":"IF(ISERROR($K226),ROUND(VLOOKUP($A226,Analysis!$A:$U,17,FALSE),0),#N/A)","v":{"$error":"#VALUE!"}},{"$error":"#VALUE!"},{"$error":"#VALUE!"},{"$error":"#VALUE!"}]
[{"$error":"#VALUE!"},{"$error":"#VALUE!"},{"$f":"VLOOKUP($A227,Analysis!$A:$U,11,FALSE)","v":{"$error":"#VALUE!"}},{"$f":"IF(VLOOKUP($A227,Analysis!$A:$U,3,FALSE)=1,VLOOKUP($A227,Analysis!$A:$U,18,FALSE),#N/A)","v":{"$error":"#VALUE!"}},{"$f":"IF(ISERROR($D227),VLOOKUP($A227,Analysis!$A:$U,18,FALSE),#N/A)","v":{"$error":"#VALUE!"}},{"$error":"#VALUE!"},{"$error":"#VALUE!"},{"$error":"#VALUE!"},null,{"$f":"VLOOKUP($A227,Analysis!$A:$U,10,FALSE)","v":{"$error":"#VALUE!"}},{"$f":"IF(VLOOKUP($A227,Analysis!$A:$U,3,FALSE)=1,ROUND(VLOOKUP($A227,Analysis!$A:$U,17,FALSE),0),#N/A)","v":{"$error":"#VALUE!"}},{"$f":"IF(ISERROR($K227),ROUND(VLOOKUP($A227,Analysis!$A:$U,17,FALSE),0),#N/A)","v":{"$error":"#VALUE!"}},{"$error":"#VALUE!"},{"$error":"#VALUE!"},{"$error":"#VALUE!"}]
[{"$error":"#VALUE!"},{"$error":"#VALUE!"},{"$f":"VLOOKUP($A228,Analysis!$A:$U,11,FALSE)","v":{"$error":"#VALUE!"}},{"$f":"IF(VLOOKUP($A228,Analysis!$A:$U,3,FALSE)=1,VLOOKUP($A228,Analysis!$A:$U,18,FALSE),#N/A)","v":{"$error":"#VALUE!"}},{"$f":"IF(ISERROR($D228),VLOOKUP($A228,Analysis!$A:$U,18,FALSE),#N/A)","v":{"$error":"#VALUE!"}},{"$error":"#VALUE!"},{"$error":"#VALUE!"},{"$error":"#VALUE!"},null,{"$f":"VLOOKUP($A228,Analysis!$A:$U,10,FALSE)","v":{"$error":"#VALUE!"}},{"$f":"IF(VLOOKUP($A228,Analysis!$A:$U,3,FALSE)=1,ROUND(VLOOKUP($A228,Analysis!$A:$U,17,FALSE),0),#N/A)","v":{"$error":"#VALUE!"}},{"$f":"IF(ISERROR($K228),ROUND(VLOOKUP($A228,Analysis!$A:$U,17,FALSE),0),#N/A)","v":{"$error":"#VALUE!"}},{"$error":"#VALUE!"},{"$error":"#VALUE!"},{"$error":"#VALUE!"}]
[{"$error":"#VALUE!"},{"$error":"#VALUE!"},{"$f":"VLOOKUP($A229,Analysis!$A:$U,11,FALSE)","v":{"$error":"#VALUE!"}},{"$f":"IF(VLOOKUP($A229,Analysis!$A:$U,3,FALSE)=1,VLOOKUP($A229,Analysis!$A:$U,18,FALSE),#N/A)","v":{"$error":"#VALUE!"}},{"$f":"IF(ISERROR($D229),VLOOKUP($A229,Analysis!$A:$U,18,FALSE),#N/A)","v":{"$error":"#VALUE!"}},{"$error":"#VALUE!"},{"$error":"#VALUE!"},{"$error":"#VALUE!"},null,{"$f":"VLOOKUP($A229,Analysis!$A:$U,10,FALSE)","v":{"$error":"#VALUE!"}},{"$f":"IF(VLOOKUP($A229,Analysis!$A:$U,3,FALSE)=1,ROUND(VLOOKUP($A229,Analysis!$A:$U,17,FALSE),0),#N/A)","v":{"$error":"#VALUE!"}},{"$f":"IF(ISERROR($K229),ROUND(VLOOKUP($A229,Analysis!$A:$U,17,FALSE),0),#N/A)","v":{"$error":"#VALUE!"}},{"$error":"#VALUE!"},{"$error":"#VALUE!"},{"$error":"#VALUE!"}]
[{"$error":"#VALUE!"},{"$error":"#VALUE!"},{"$f":"VLOOKUP($A230,Analysis!$A:$U,11,FALSE)","v":{"$error":"#VALUE!"}},{"$f":"IF(VLOOKUP($A230,Analysis!$A:$U,3,FALSE)=1,VLOOKUP($A230,Analysis!$A:$U,18,FALSE),#N/A)","v":{"$error":"#VALUE!"}},{"$f":"IF(ISERROR($D230),VLOOKUP($A230,Analysis!$A:$U,18,FALSE),#N/A)","v":{"$error":"#VALUE!"}},{"$error":"#VALUE!"},{"$error":"#VALUE!"},{"$error":"#VALUE!"},null,{"$f":"VLOOKUP($A230,Analysis!$A:$U,10,FALSE)","v":{"$error":"#VALUE!"}},{"$f":"IF(VLOOKUP($A230,Analysis!$A:$U,3,FALSE)=1,ROUND(VLOOKUP($A230,Analysis!$A:$U,17,FALSE),0),#N/A)","v":{"$error":"#VALUE!"}},{"$f":"IF(ISERROR($K230),ROUND(VLOOKUP($A230,Analysis!$A:$U,17,FALSE),0),#N/A)","v":{"$error":"#VALUE!"}},{"$error":"#VALUE!"},{"$error":"#VALUE!"},{"$error":"#VALUE!"}]
[{"$error":"#VALUE!"},{"$error":"#VALUE!"},{"$f":"VLOOKUP($A231,Analysis!$A:$U,11,FALSE)","v":{"$error":"#VALUE!"}},{"$f":"IF(VLOOKUP($A231,Analysis!$A:$U,3,FALSE)=1,VLOOKUP($A231,Analysis!$A:$U,18,FALSE),#N/A)","v":{"$error":"#VALUE!"}},{"$f":"IF(ISERROR($D231),VLOOKUP($A231,Analysis!$A:$U,18,FALSE),#N/A)","v":{"$error":"#VALUE!"}},{"$error":"#VALUE!"},{"$error":"#VALUE!"},{"$error":"#VALUE!"},null,{"$f":"VLOOKUP($A231,Analysis!$A:$U,10,FALSE)","v":{"$error":"#VALUE!"}},{"$f":"IF(VLOOKUP($A231,Analysis!$A:$U,3,FALSE)=1,ROUND(VLOOKUP($A231,Analysis!$A:$U,17,FALSE),0),#N/A)","v":{"$error":"#VALUE!"}},{"$f":"IF(ISERROR($K231),ROUND(VLOOKUP($A231,Analysis!$A:$U,17,FALSE),0),#N/A)","v":{"$error":"#VALUE!"}},{"$error":"#VALUE!"},{"$error":"#VALUE!"},{"$error":"#VALUE!"}]
[{"$error":"#VALUE!"},{"$error":"#VALUE!"},{"$f":"VLOOKUP($A232,Analysis!$A:$U,11,FALSE)","v":{"$error":"#VALUE!"}},{"$f":"IF(VLOOKUP($A232,Analysis!$A:$U,3,FALSE)=1,VLOOKUP($A232,Analysis!$A:$U,18,FALSE),#N/A)","v":{"$error":"#VALUE!"}},{"$f":"IF(ISERROR($D232),VLOOKUP($A232,Analysis!$A:$U,18,FALSE),#N/A)","v":{"$error":"#VALUE!"}},{"$error":"#VALUE!"},{"$error":"#VALUE!"},{"$error":"#VALUE!"},null,{"$f":"VLOOKUP($A232,Analysis!$A:$U,10,FALSE)","v":{"$error":"#VALUE!"}},{"$f":"IF(VLOOKUP($A232,Analysis!$A:$U,3,FALSE)=1,ROUND(VLOOKUP($A232,Analysis!$A:$U,17,FALSE),0),#N/A)","v":{"$error":"#VALUE!"}},{"$f":"IF(ISERROR($K232),ROUND(VLOOKUP($A232,Analysis!$A:$U,17,FALSE),0),#N/A)","v":{"$error":"#VALUE!"}},{"$error":"#VALUE!"},{"$error":"#VALUE!"},{"$error":"#VALUE!"}]
[{"$error":"#VALUE!"},{"$error":"#VALUE!"},{"$f":"VLOOKUP($A233,Analysis!$A:$U,11,FALSE)","v":{"$error":"#VALUE!"}},{"$f":"IF(VLOOKUP($A233,Analysis!$A:$U,3,FALSE)=1,VLOOKUP($A233,Analysis!$A:$U,18,FALSE),#N/A)","v":{"$error":"#VALUE!"}},{"$f":"IF(ISERROR($D233),VLOOKUP($A233,Analysis!$A:$U,18,FALSE),#N/A)","v":{"$error":"#VALUE!"}},{"$error":"#VALUE!"},{"$error":"#VALUE!"},{"$error":"#VALUE!"},null,{"$f":"VLOOKUP($A233,Analysis!$A:$U,10,FALSE)","v":{"$error":"#VALUE!"}},{"$f":"IF(VLOOKUP($A233,Analysis!$A:$U,3,FALSE)=1,ROUND(VLOOKUP($A233,Analysis!$A:$U,17,FALSE),0),#N/A)","v":{"$error":"#VALUE!"}},{"$f":"IF(ISERROR($K233),ROUND(VLOOKUP($A233,Analysis!$A:$U,17,FALSE),0),#N/A)","v":{"$error":"#VALUE!"}},{"$error":"#VALUE!"},{"$error":"#VALUE!"},{"$error":"#VALUE!"}]
[{"$error":"#VALUE!"},{"$error":"#VALUE!"},{"$f":"VLOOKUP($A234,Analysis!$A:$U,11,FALSE)","v":{"$error":"#VALUE!"}},{"$f":"IF(VLOOKUP($A234,Analysis!$A:$U,3,FALSE)=1,VLOOKUP($A234,Analysis!$A:$U,18,FALSE),#N/A)","v":{"$error":"#VALUE!"}},{"$f":"IF(ISERROR($D234),VLOOKUP($A234,Analysis!$A:$U,18,FALSE),#N/A)","v":{"$error":"#VALUE!"}},{"$error":"#VALUE!"},{"$error":"#VALUE!"},{"$error":"#VALUE!"},null,{"$f":"VLOOKUP($A234,Analysis!$A:$U,10,FALSE)","v":{"$error":"#VALUE!"}},{"$f":"IF(VLOOKUP($A234,Analysis!$A:$U,3,FALSE)=1,ROUND(VLOOKUP($A234,Analysis!$A:$U,17,FALSE),0),#N/A)","v":{"$error":"#VALUE!"}},{"$f":"IF(ISERROR($K234),ROUND(VLOOKUP($A234,Analysis!$A:$U,17,FALSE),0),#N/A)","v":{"$error":"#VALUE!"}},{"$error":"#VALUE!"},{"$error":"#VALUE!"},{"$error":"#VALUE!"}]
[{"$error":"#VALUE!"},{"$error":"#VALUE!"},{"$f":"VLOOKUP($A235,Analysis!$A:$U,11,FALSE)","v":{"$error":"#VALUE!"}},{"$f":"IF(VLOOKUP($A235,Analysis!$A:$U,3,FALSE)=1,VLOOKUP($A235,Analysis!$A:$U,18,FALSE),#N/A)","v":{"$error":"#VALUE!"}},{"$f":"IF(ISERROR($D235),VLOOKUP($A235,Analysis!$A:$U,18,FALSE),#N/A)","v":{"$error":"#VALUE!"}},{"$error":"#VALUE!"},{"$error":"#VALUE!"},{"$error":"#VALUE!"},null,{"$f":"VLOOKUP($A235,Analysis!$A:$U,10,FALSE)","v":{"$error":"#VALUE!"}},{"$f":"IF(VLOOKUP($A235,Analysis!$A:$U,3,FALSE)=1,ROUND(VLOOKUP($A235,Analysis!$A:$U,17,FALSE),0),#N/A)","v":{"$error":"#VALUE!"}},{"$f":"IF(ISERROR($K235),ROUND(VLOOKUP($A235,Analysis!$A:$U,17,FALSE),0),#N/A)","v":{"$error":"#VALUE!"}},{"$error":"#VALUE!"},{"$error":"#VALUE!"},{"$error":"#VALUE!"}]
[{"$error":"#VALUE!"},{"$error":"#VALUE!"},{"$f":"VLOOKUP($A236,Analysis!$A:$U,11,FALSE)","v":{"$error":"#VALUE!"}},{"$f":"IF(VLOOKUP($A236,Analysis!$A:$U,3,FALSE)=1,VLOOKUP($A236,Analysis!$A:$U,18,FALSE),#N/A)","v":{"$error":"#VALUE!"}},{"$f":"IF(ISERROR($D236),VLOOKUP($A236,Analysis!$A:$U,18,FALSE),#N/A)","v":{"$error":"#VALUE!"}},{"$error":"#VALUE!"},{"$error":"#VALUE!"},{"$error":"#VALUE!"},null,{"$f":"VLOOKUP($A236,Analysis!$A:$U,10,FALSE)","v":{"$error":"#VALUE!"}},{"$f":"IF(VLOOKUP($A236,Analysis!$A:$U,3,FALSE)=1,ROUND(VLOOKUP($A236,Analysis!$A:$U,17,FALSE),0),#N/A)","v":{"$error":"#VALUE!"}},{"$f":"IF(ISERROR($K236),ROUND(VLOOKUP($A236,Analysis!$A:$U,17,FALSE),0),#N/A)","v":{"$error":"#VALUE!"}},{"$error":"#VALUE!"},{"$error":"#VALUE!"},{"$error":"#VALUE!"}]
[{"$error":"#VALUE!"},{"$error":"#VALUE!"},{"$f":"VLOOKUP($A237,Analysis!$A:$U,11,FALSE)","v":{"$error":"#VALUE!"}},{"$f":"IF(VLOOKUP($A237,Analysis!$A:$U,3,FALSE)=1,VLOOKUP($A237,Analysis!$A:$U,18,FALSE),#N/A)","v":{"$error":"#VALUE!"}},{"$f":"IF(ISERROR($D237),VLOOKUP($A237,Analysis!$A:$U,18,FALSE),#N/A)","v":{"$error":"#VALUE!"}},{"$error":"#VALUE!"},{"$error":"#VALUE!"},{"$error":"#VALUE!"},null,{"$f":"VLOOKUP($A237,Analysis!$A:$U,10,FALSE)","v":{"$error":"#VALUE!"}},{"$f":"IF(VLOOKUP($A237,Analysis!$A:$U,3,FALSE)=1,ROUND(VLOOKUP($A237,Analysis!$A:$U,17,FALSE),0),#N/A)","v":{"$error":"#VALUE!"}},{"$f":"IF(ISERROR($K237),ROUND(VLOOKUP($A237,Analysis!$A:$U,17,FALSE),0),#N/A)","v":{"$error":"#VALUE!"}},{"$error":"#VALUE!"},{"$error":"#VALUE!"},{"$error":"#VALUE!"}]
[{"$error":"#VALUE!"},{"$error":"#VALUE!"},{"$f":"VLOOKUP($A238,Analysis!$A:$U,11,FALSE)","v":{"$error":"#VALUE!"}},{"$f":"IF(VLOOKUP($A238,Analysis!$A:$U,3,FALSE)=1,VLOOKUP($A238,Analysis!$A:$U,18,FALSE),#N/A)","v":{"$error":"#VALUE!"}},{"$f":"IF(ISERROR($D238),VLOOKUP($A238,Analysis!$A:$U,18,FALSE),#N/A)","v":{"$error":"#VALUE!"}},{"$error":"#VALUE!"},{"$error":"#VALUE!"},{"$error":"#VALUE!"},null,{"$f":"VLOOKUP($A238,Analysis!$A:$U,10,FALSE)","v":{"$error":"#VALUE!"}},{"$f":"IF(VLOOKUP($A238,Analysis!$A:$U,3,FALSE)=1,ROUND(VLOOKUP($A238,Analysis!$A:$U,17,FALSE),0),#N/A)","v":{"$error":"#VALUE!"}},{"$f":"IF(ISERROR($K238),ROUND(VLOOKUP($A238,Analysis!$A:$U,17,FALSE),0),#N/A)","v":{"$error":"#VALUE!"}},{"$error":"#VALUE!"},{"$error":"#VALUE!"},{"$error":"#VALUE!"}]
[{"$error":"#VALUE!"},{"$error":"#VALUE!"},{"$f":"VLOOKUP($A239,Analysis!$A:$U,11,FALSE)","v":{"$error":"#VALUE!"}},{"$f":"IF(VLOOKUP($A239,Analysis!$A:$U,3,FALSE)=1,VLOOKUP($A239,Analysis!$A:$U,18,FALSE),#N/A)","v":{"$error":"#VALUE!"}},{"$f":"IF(ISERROR($D239),VLOOKUP($A239,Analysis!$A:$U,18,FALSE),#N/A)","v":{"$error":"#VALUE!"}},{"$error":"#VALUE!"},{"$error":"#VALUE!"},{"$error":"#VALUE!"},null,{"$f":"VLOOKUP($A239,Analysis!$A:$U,10,FALSE)","v":{"$error":"#VALUE!"}},{"$f":"IF(VLOOKUP($A239,Analysis!$A:$U,3,FALSE)=1,ROUND(VLOOKUP($A239,Analysis!$A:$U,17,FALSE),0),#N/A)","v":{"$error":"#VALUE!"}},{"$f":"IF(ISERROR($K239),ROUND(VLOOKUP($A239,Analysis!$A:$U,17,FALSE),0),#N/A)","v":{"$error":"#VALUE!"}},{"$error":"#VALUE!"},{"$error":"#VALUE!"},{"$error":"#VALUE!"}]
[{"$error":"#VALUE!"},{"$error":"#VALUE!"},{"$f":"VLOOKUP($A240,Analysis!$A:$U,11,FALSE)","v":{"$error":"#VALUE!"}},{"$f":"IF(VLOOKUP($A240,Analysis!$A:$U,3,FALSE)=1,VLOOKUP($A240,Analysis!$A:$U,18,FALSE),#N/A)","v":{"$error":"#VALUE!"}},{"$f":"IF(ISERROR($D240),VLOOKUP($A240,Analysis!$A:$U,18,FALSE),#N/A)","v":{"$error":"#VALUE!"}},{"$error":"#VALUE!"},{"$error":"#VALUE!"},{"$error":"#VALUE!"},null,{"$f":"VLOOKUP($A240,Analysis!$A:$U,10,FALSE)","v":{"$error":"#VALUE!"}},{"$f":"IF(VLOOKUP($A240,Analysis!$A:$U,3,FALSE)=1,ROUND(VLOOKUP($A240,Analysis!$A:$U,17,FALSE),0),#N/A)","v":{"$error":"#VALUE!"}},{"$f":"IF(ISERROR($K240),ROUND(VLOOKUP($A240,Analysis!$A:$U,17,FALSE),0),#N/A)","v":{"$error":"#VALUE!"}},{"$error":"#VALUE!"},{"$error":"#VALUE!"},{"$error":"#VALUE!"}]
[{"$error":"#VALUE!"},{"$error":"#VALUE!"},{"$f":"VLOOKUP($A241,Analysis!$A:$U,11,FALSE)","v":{"$error":"#VALUE!"}},{"$f":"IF(VLOOKUP($A241,Analysis!$A:$U,3,FALSE)=1,VLOOKUP($A241,Analysis!$A:$U,18,FALSE),#N/A)","v":{"$error":"#VALUE!"}},{"$f":"IF(ISERROR($D241),VLOOKUP($A241,Analysis!$A:$U,18,FALSE),#N/A)","v":{"$error":"#VALUE!"}},{"$error":"#VALUE!"},{"$error":"#VALUE!"},{"$error":"#VALUE!"},null,{"$f":"VLOOKUP($A241,Analysis!$A:$U,10,FALSE)","v":{"$error":"#VALUE!"}},{"$f":"IF(VLOOKUP($A241,Analysis!$A:$U,3,FALSE)=1,ROUND(VLOOKUP($A241,Analysis!$A:$U,17,FALSE),0),#N/A)","v":{"$error":"#VALUE!"}},{"$f":"IF(ISERROR($K241),ROUND(VLOOKUP($A241,Analysis!$A:$U,17,FALSE),0),#N/A)","v":{"$error":"#VALUE!"}},{"$error":"#VALUE!"},{"$error":"#VALUE!"},{"$error":"#VALUE!"}]
[{"$error":"#VALUE!"},{"$error":"#VALUE!"},{"$f":"VLOOKUP($A242,Analysis!$A:$U,11,FALSE)","v":{"$error":"#VALUE!"}},{"$f":"IF(VLOOKUP($A242,Analysis!$A:$U,3,FALSE)=1,VLOOKUP($A242,Analysis!$A:$U,18,FALSE),#N/A)","v":{"$error":"#VALUE!"}},{"$f":"IF(ISERROR($D242),VLOOKUP($A242,Analysis!$A:$U,18,FALSE),#N/A)","v":{"$error":"#VALUE!"}},{"$error":"#VALUE!"},{"$error":"#VALUE!"},{"$error":"#VALUE!"},null,{"$f":"VLOOKUP($A242,Analysis!$A:$U,10,FALSE)","v":{"$error":"#VALUE!"}},{"$f":"IF(VLOOKUP($A242,Analysis!$A:$U,3,FALSE)=1,ROUND(VLOOKUP($A242,Analysis!$A:$U,17,FALSE),0),#N/A)","v":{"$error":"#VALUE!"}},{"$f":"IF(ISERROR($K242),ROUND(VLOOKUP($A242,Analysis!$A:$U,17,FALSE),0),#N/A)","v":{"$error":"#VALUE!"}},{"$error":"#VALUE!"},{"$error":"#VALUE!"},{"$error":"#VALUE!"}]
[{"$error":"#VALUE!"},{"$error":"#VALUE!"},{"$f":"VLOOKUP($A243,Analysis!$A:$U,11,FALSE)","v":{"$error":"#VALUE!"}},{"$f":"IF(VLOOKUP($A243,Analysis!$A:$U,3,FALSE)=1,VLOOKUP($A243,Analysis!$A:$U,18,FALSE),#N/A)","v":{"$error":"#VALUE!"}},{"$f":"IF(ISERROR($D243),VLOOKUP($A243,Analysis!$A:$U,18,FALSE),#N/A)","v":{"$error":"#VALUE!"}},{"$error":"#VALUE!"},{"$error":"#VALUE!"},{"$error":"#VALUE!"},null,{"$f":"VLOOKUP($A243,Analysis!$A:$U,10,FALSE)","v":{"$error":"#VALUE!"}},{"$f":"IF(VLOOKUP($A243,Analysis!$A:$U,3,FALSE)=1,ROUND(VLOOKUP($A243,Analysis!$A:$U,17,FALSE),0),#N/A)","v":{"$error":"#VALUE!"}},{"$f":"IF(ISERROR($K243),ROUND(VLOOKUP($A243,Analysis!$A:$U,17,FALSE),0),#N/A)","v":{"$error":"#VALUE!"}},{"$error":"#VALUE!"},{"$error":"#VALUE!"},{"$error":"#VALUE!"}]
[{"$error":"#VALUE!"},{"$error":"#VALUE!"},{"$f":"VLOOKUP($A244,Analysis!$A:$U,11,FALSE)","v":{"$error":"#VALUE!"}},{"$f":"IF(VLOOKUP($A244,Analysis!$A:$U,3,FALSE)=1,VLOOKUP($A244,Analysis!$A:$U,18,FALSE),#N/A)","v":{"$error":"#VALUE!"}},{"$f":"IF(ISERROR($D244),VLOOKUP($A244,Analysis!$A:$U,18,FALSE),#N/A)","v":{"$error":"#VALUE!"}},{"$error":"#VALUE!"},{"$error":"#VALUE!"},{"$error":"#VALUE!"},null,{"$f":"VLOOKUP($A244,Analysis!$A:$U,10,FALSE)","v":{"$error":"#VALUE!"}},{"$f":"IF(VLOOKUP($A244,Analysis!$A:$U,3,FALSE)=1,ROUND(VLOOKUP($A244,Analysis!$A:$U,17,FALSE),0),#N/A)","v":{"$error":"#VALUE!"}},{"$f":"IF(ISERROR($K244),ROUND(VLOOKUP($A244,Analysis!$A:$U,17,FALSE),0),#N/A)","v":{"$error":"#VALUE!"}},{"$error":"#VALUE!"},{"$error":"#VALUE!"},{"$error":"#VALUE!"}]
[{"$error":"#VALUE!"},{"$error":"#VALUE!"},{"$f":"VLOOKUP($A245,Analysis!$A:$U,11,FALSE)","v":{"$error":"#VALUE!"}},{"$f":"IF(VLOOKUP($A245,Analysis!$A:$U,3,FALSE)=1,VLOOKUP($A245,Analysis!$A:$U,18,FALSE),#N/A)","v":{"$error":"#VALUE!"}},{"$f":"IF(ISERROR($D245),VLOOKUP($A245,Analysis!$A:$U,18,FALSE),#N/A)","v":{"$error":"#VALUE!"}},{"$error":"#VALUE!"},{"$error":"#VALUE!"},{"$error":"#VALUE!"},null,{"$f":"VLOOKUP($A245,Analysis!$A:$U,10,FALSE)","v":{"$error":"#VALUE!"}},{"$f":"IF(VLOOKUP($A245,Analysis!$A:$U,3,FALSE)=1,ROUND(VLOOKUP($A245,Analysis!$A:$U,17,FALSE),0),#N/A)","v":{"$error":"#VALUE!"}},{"$f":"IF(ISERROR($K245),ROUND(VLOOKUP($A245,Analysis!$A:$U,17,FALSE),0),#N/A)","v":{"$error":"#VALUE!"}},{"$error":"#VALUE!"},{"$error":"#VALUE!"},{"$error":"#VALUE!"}]
[{"$error":"#VALUE!"},{"$error":"#VALUE!"},{"$f":"VLOOKUP($A246,Analysis!$A:$U,11,FALSE)","v":{"$error":"#VALUE!"}},{"$f":"IF(VLOOKUP($A246,Analysis!$A:$U,3,FALSE)=1,VLOOKUP($A246,Analysis!$A:$U,18,FALSE),#N/A)","v":{"$error":"#VALUE!"}},{"$f":"IF(ISERROR($D246),VLOOKUP($A246,Analysis!$A:$U,18,FALSE),#N/A)","v":{"$error":"#VALUE!"}},{"$error":"#VALUE!"},{"$error":"#VALUE!"},{"$error":"#VALUE!"},null,{"$f":"VLOOKUP($A246,Analysis!$A:$U,10,FALSE)","v":{"$error":"#VALUE!"}},{"$f":"IF(VLOOKUP($A246,Analysis!$A:$U,3,FALSE)=1,ROUND(VLOOKUP($A246,Analysis!$A:$U,17,FALSE),0),#N/A)","v":{"$error":"#VALUE!"}},{"$f":"IF(ISERROR($K246),ROUND(VLOOKUP($A246,Analysis!$A:$U,17,FALSE),0),#N/A)","v":{"$error":"#VALUE!"}},{"$error":"#VALUE!"},{"$error":"#VALUE!"},{"$error":"#VALUE!"}]
[{"$error":"#VALUE!"},{"$error":"#VALUE!"},{"$f":"VLOOKUP($A247,Analysis!$A:$U,11,FALSE)","v":{"$error":"#VALUE!"}},{"$f":"IF(VLOOKUP($A247,Analysis!$A:$U,3,FALSE)=1,VLOOKUP($A247,Analysis!$A:$U,18,FALSE),#N/A)","v":{"$error":"#VALUE!"}},{"$f":"IF(ISERROR($D247),VLOOKUP($A247,Analysis!$A:$U,18,FALSE),#N/A)","v":{"$error":"#VALUE!"}},{"$error":"#VALUE!"},{"$error":"#VALUE!"},{"$error":"#VALUE!"},null,{"$f":"VLOOKUP($A247,Analysis!$A:$U,10,FALSE)","v":{"$error":"#VALUE!"}},{"$f":"IF(VLOOKUP($A247,Analysis!$A:$U,3,FALSE)=1,ROUND(VLOOKUP($A247,Analysis!$A:$U,17,FALSE),0),#N/A)","v":{"$error":"#VALUE!"}},{"$f":"IF(ISERROR($K247),ROUND(VLOOKUP($A247,Analysis!$A:$U,17,FALSE),0),#N/A)","v":{"$error":"#VALUE!"}},{"$error":"#VALUE!"},{"$error":"#VALUE!"},{"$error":"#VALUE!"}]
[{"$error":"#VALUE!"},{"$error":"#VALUE!"},{"$f":"VLOOKUP($A248,Analysis!$A:$U,11,FALSE)","v":{"$error":"#VALUE!"}},{"$f":"IF(VLOOKUP($A248,Analysis!$A:$U,3,FALSE)=1,VLOOKUP($A248,Analysis!$A:$U,18,FALSE),#N/A)","v":{"$error":"#VALUE!"}},{"$f":"IF(ISERROR($D248),VLOOKUP($A248,Analysis!$A:$U,18,FALSE),#N/A)","v":{"$error":"#VALUE!"}},{"$error":"#VALUE!"},{"$error":"#VALUE!"},{"$error":"#VALUE!"},null,{"$f":"VLOOKUP($A248,Analysis!$A:$U,10,FALSE)","v":{"$error":"#VALUE!"}},{"$f":"IF(VLOOKUP($A248,Analysis!$A:$U,3,FALSE)=1,ROUND(VLOOKUP($A248,Analysis!$A:$U,17,FALSE),0),#N/A)","v":{"$error":"#VALUE!"}},{"$f":"IF(ISERROR($K248),ROUND(VLOOKUP($A248,Analysis!$A:$U,17,FALSE),0),#N/A)","v":{"$error":"#VALUE!"}},{"$error":"#VALUE!"},{"$error":"#VALUE!"},{"$error":"#VALUE!"}]
[{"$error":"#VALUE!"},{"$error":"#VALUE!"},{"$f":"VLOOKUP($A249,Analysis!$A:$U,11,FALSE)","v":{"$error":"#VALUE!"}},{"$f":"IF(VLOOKUP($A249,Analysis!$A:$U,3,FALSE)=1,VLOOKUP($A249,Analysis!$A:$U,18,FALSE),#N/A)","v":{"$error":"#VALUE!"}},{"$f":"IF(ISERROR($D249),VLOOKUP($A249,Analysis!$A:$U,18,FALSE),#N/A)","v":{"$error":"#VALUE!"}},{"$error":"#VALUE!"},{"$error":"#VALUE!"},{"$error":"#VALUE!"},null,{"$f":"VLOOKUP($A249,Analysis!$A:$U,10,FALSE)","v":{"$error":"#VALUE!"}},{"$f":"IF(VLOOKUP($A249,Analysis!$A:$U,3,FALSE)=1,ROUND(VLOOKUP($A249,Analysis!$A:$U,17,FALSE),0),#N/A)","v":{"$error":"#VALUE!"}},{"$f":"IF(ISERROR($K249),ROUND(VLOOKUP($A249,Analysis!$A:$U,17,FALSE),0),#N/A)","v":{"$error":"#VALUE!"}},{"$error":"#VALUE!"},{"$error":"#VALUE!"},{"$error":"#VALUE!"}]
[{"$error":"#VALUE!"},{"$error":"#VALUE!"},{"$f":"VLOOKUP($A250,Analysis!$A:$U,11,FALSE)","v":{"$error":"#VALUE!"}},{"$f":"IF(VLOOKUP($A250,Analysis!$A:$U,3,FALSE)=1,VLOOKUP($A250,Analysis!$A:$U,18,FALSE),#N/A)","v":{"$error":"#VALUE!"}},{"$f":"IF(ISERROR($D250),VLOOKUP($A250,Analysis!$A:$U,18,FALSE),#N/A)","v":{"$error":"#VALUE!"}},{"$error":"#VALUE!"},{"$error":"#VALUE!"},{"$error":"#VALUE!"},null,{"$f":"VLOOKUP($A250,Analysis!$A:$U,10,FALSE)","v":{"$error":"#VALUE!"}},{"$f":"IF(VLOOKUP($A250,Analysis!$A:$U,3,FALSE)=1,ROUND(VLOOKUP($A250,Analysis!$A:$U,17,FALSE),0),#N/A)","v":{"$error":"#VALUE!"}},{"$f":"IF(ISERROR($K250),ROUND(VLOOKUP($A250,Analysis!$A:$U,17,FALSE),0),#N/A)","v":{"$error":"#VALUE!"}},{"$error":"#VALUE!"},{"$error":"#VALUE!"},{"$error":"#VALUE!"}]
[{"$error":"#VALUE!"},{"$error":"#VALUE!"},{"$f":"VLOOKUP($A251,Analysis!$A:$U,11,FALSE)","v":{"$error":"#VALUE!"}},{"$f":"IF(VLOOKUP($A251,Analysis!$A:$U,3,FALSE)=1,VLOOKUP($A251,Analysis!$A:$U,18,FALSE),#N/A)","v":{"$error":"#VALUE!"}},{"$f":"IF(ISERROR($D251),VLOOKUP($A251,Analysis!$A:$U,18,FALSE),#N/A)","v":{"$error":"#VALUE!"}},{"$error":"#VALUE!"},{"$error":"#VALUE!"},{"$error":"#VALUE!"},null,{"$f":"VLOOKUP($A251,Analysis!$A:$U,10,FALSE)","v":{"$error":"#VALUE!"}},{"$f":"IF(VLOOKUP($A251,Analysis!$A:$U,3,FALSE)=1,ROUND(VLOOKUP($A251,Analysis!$A:$U,17,FALSE),0),#N/A)","v":{"$error":"#VALUE!"}},{"$f":"IF(ISERROR($K251),ROUND(VLOOKUP($A251,Analysis!$A:$U,17,FALSE),0),#N/A)","v":{"$error":"#VALUE!"}},{"$error":"#VALUE!"},{"$error":"#VALUE!"},{"$error":"#VALUE!"}]
[{"$error":"#VALUE!"},{"$error":"#VALUE!"},{"$f":"VLOOKUP($A252,Analysis!$A:$U,11,FALSE)","v":{"$error":"#VALUE!"}},{"$f":"IF(VLOOKUP($A252,Analysis!$A:$U,3,FALSE)=1,VLOOKUP($A252,Analysis!$A:$U,18,FALSE),#N/A)","v":{"$error":"#VALUE!"}},{"$f":"IF(ISERROR($D252),VLOOKUP($A252,Analysis!$A:$U,18,FALSE),#N/A)","v":{"$error":"#VALUE!"}},{"$error":"#VALUE!"},{"$error":"#VALUE!"},{"$error":"#VALUE!"},null,{"$f":"VLOOKUP($A252,Analysis!$A:$U,10,FALSE)","v":{"$error":"#VALUE!"}},{"$f":"IF(VLOOKUP($A252,Analysis!$A:$U,3,FALSE)=1,ROUND(VLOOKUP($A252,Analysis!$A:$U,17,FALSE),0),#N/A)","v":{"$error":"#VALUE!"}},{"$f":"IF(ISERROR($K252),ROUND(VLOOKUP($A252,Analysis!$A:$U,17,FALSE),0),#N/A)","v":{"$error":"#VALUE!"}},{"$error":"#VALUE!"},{"$error":"#VALUE!"},{"$error":"#VALUE!"}]
[{"$error":"#VALUE!"},{"$error":"#VALUE!"},{"$f":"VLOOKUP($A253,Analysis!$A:$U,11,FALSE)","v":{"$error":"#VALUE!"}},{"$f":"IF(VLOOKUP($A253,Analysis!$A:$U,3,FALSE)=1,VLOOKUP($A253,Analysis!$A:$U,18,FALSE),#N/A)","v":{"$error":"#VALUE!"}},{"$f":"IF(ISERROR($D253),VLOOKUP($A253,Analysis!$A:$U,18,FALSE),#N/A)","v":{"$error":"#VALUE!"}},{"$error":"#VALUE!"},{"$error":"#VALUE!"},{"$error":"#VALUE!"},null,{"$f":"VLOOKUP($A253,Analysis!$A:$U,10,FALSE)","v":{"$error":"#VALUE!"}},{"$f":"IF(VLOOKUP($A253,Analysis!$A:$U,3,FALSE)=1,ROUND(VLOOKUP($A253,Analysis!$A:$U,17,FALSE),0),#N/A)","v":{"$error":"#VALUE!"}},{"$f":"IF(ISERROR($K253),ROUND(VLOOKUP($A253,Analysis!$A:$U,17,FALSE),0),#N/A)","v":{"$error":"#VALUE!"}},{"$error":"#VALUE!"},{"$error":"#VALUE!"},{"$error":"#VALUE!"}]
[{"$error":"#VALUE!"},{"$error":"#VALUE!"},{"$f":"VLOOKUP($A254,Analysis!$A:$U,11,FALSE)","v":{"$error":"#VALUE!"}},{"$f":"IF(VLOOKUP($A254,Analysis!$A:$U,3,FALSE)=1,VLOOKUP($A254,Analysis!$A:$U,18,FALSE),#N/A)","v":{"$error":"#VALUE!"}},{"$f":"IF(ISERROR($D254),VLOOKUP($A254,Analysis!$A:$U,18,FALSE),#N/A)","v":{"$error":"#VALUE!"}},{"$error":"#VALUE!"},{"$error":"#VALUE!"},{"$error":"#VALUE!"},null,{"$f":"VLOOKUP($A254,Analysis!$A:$U,10,FALSE)","v":{"$error":"#VALUE!"}},{"$f":"IF(VLOOKUP($A254,Analysis!$A:$U,3,FALSE)=1,ROUND(VLOOKUP($A254,Analysis!$A:$U,17,FALSE),0),#N/A)","v":{"$error":"#VALUE!"}},{"$f":"IF(ISERROR($K254),ROUND(VLOOKUP($A254,Analysis!$A:$U,17,FALSE),0),#N/A)","v":{"$error":"#VALUE!"}},{"$error":"#VALUE!"},{"$error":"#VALUE!"},{"$error":"#VALUE!"}]
[{"$error":"#VALUE!"},{"$error":"#VALUE!"},{"$f":"VLOOKUP($A255,Analysis!$A:$U,11,FALSE)","v":{"$error":"#VALUE!"}},{"$f":"IF(VLOOKUP($A255,Analysis!$A:$U,3,FALSE)=1,VLOOKUP($A255,Analysis!$A:$U,18,FALSE),#N/A)","v":{"$error":"#VALUE!"}},{"$f":"IF(ISERROR($D255),VLOOKUP($A255,Analysis!$A:$U,18,FALSE),#N/A)","v":{"$error":"#VALUE!"}},{"$error":"#VALUE!"},{"$error":"#VALUE!"},{"$error":"#VALUE!"},null,{"$f":"VLOOKUP($A255,Analysis!$A:$U,10,FALSE)","v":{"$error":"#VALUE!"}},{"$f":"IF(VLOOKUP($A255,Analysis!$A:$U,3,FALSE)=1,ROUND(VLOOKUP($A255,Analysis!$A:$U,17,FALSE),0),#N/A)","v":{"$error":"#VALUE!"}},{"$f":"IF(ISERROR($K255),ROUND(VLOOKUP($A255,Analysis!$A:$U,17,FALSE),0),#N/A)","v":{"$error":"#VALUE!"}},{"$error":"#VALUE!"},{"$error":"#VALUE!"},{"$error":"#VALUE!"}]
[{"$error":"#VALUE!"},{"$error":"#VALUE!"},{"$f":"VLOOKUP($A256,Analysis!$A:$U,11,FALSE)","v":{"$error":"#VALUE!"}},{"$f":"IF(VLOOKUP($A256,Analysis!$A:$U,3,FALSE)=1,VLOOKUP($A256,Analysis!$A:$U,18,FALSE),#N/A)","v":{"$error":"#VALUE!"}},{"$f":"IF(ISERROR($D256),VLOOKUP($A256,Analysis!$A:$U,18,FALSE),#N/A)","v":{"$error":"#VALUE!"}},{"$error":"#VALUE!"},{"$error":"#VALUE!"},{"$error":"#VALUE!"},null,{"$f":"VLOOKUP($A256,Analysis!$A:$U,10,FALSE)","v":{"$error":"#VALUE!"}},{"$f":"IF(VLOOKUP($A256,Analysis!$A:$U,3,FALSE)=1,ROUND(VLOOKUP($A256,Analysis!$A:$U,17,FALSE),0),#N/A)","v":{"$error":"#VALUE!"}},{"$f":"IF(ISERROR($K256),ROUND(VLOOKUP($A256,Analysis!$A:$U,17,FALSE),0),#N/A)","v":{"$error":"#VALUE!"}},{"$error":"#VALUE!"},{"$error":"#VALUE!"},{"$error":"#VALUE!"}]
[{"$error":"#VALUE!"},{"$error":"#VALUE!"},{"$f":"VLOOKUP($A257,Analysis!$A:$U,11,FALSE)","v":{"$error":"#VALUE!"}},{"$f":"IF(VLOOKUP($A257,Analysis!$A:$U,3,FALSE)=1,VLOOKUP($A257,Analysis!$A:$U,18,FALSE),#N/A)","v":{"$error":"#VALUE!"}},{"$f":"IF(ISERROR($D257),VLOOKUP($A257,Analysis!$A:$U,18,FALSE),#N/A)","v":{"$error":"#VALUE!"}},{"$error":"#VALUE!"},{"$error":"#VALUE!"},{"$error":"#VALUE!"},null,{"$f":"VLOOKUP($A257,Analysis!$A:$U,10,FALSE)","v":{"$error":"#VALUE!"}},{"$f":"IF(VLOOKUP($A257,Analysis!$A:$U,3,FALSE)=1,ROUND(VLOOKUP($A257,Analysis!$A:$U,17,FALSE),0),#N/A)","v":{"$error":"#VALUE!"}},{"$f":"IF(ISERROR($K257),ROUND(VLOOKUP($A257,Analysis!$A:$U,17,FALSE),0),#N/A)","v":{"$error":"#VALUE!"}},{"$error":"#VALUE!"},{"$error":"#VALUE!"},{"$error":"#VALUE!"}]
[{"$f":"Item_ID","v":{"$error":"#VALUE!"}},{"$f":"Valuation_Method","v":{"$error":"#VALUE!"}},{"$f":"VLOOKUP($A258,Analysis!$A:$U,11,FALSE)","v":{"$error":"#VALUE!"}},{"$f":"IF(VLOOKUP($A258,Analysis!$A:$U,3,FALSE)=1,VLOOKUP($A258,Analysis!$A:$U,18,FALSE),#N/A)","v":{"$error":"#VALUE!"}},{"$f":"IF(ISERROR($D258),VLOOKUP($A258,Analysis!$A:$U,18,FALSE),#N/A)","v":{"$error":"#VALUE!"}},{"$error":"#VALUE!"},{"$error":"#VALUE!"},{"$error":"#VALUE!"},null,{"$f":"VLOOKUP($A258,Analysis!$A:$U,10,FALSE)","v":{"$error":"#VALUE!"}},{"$f":"IF(VLOOKUP($A258,Analysis!$A:$U,3,FALSE)=1,ROUND(VLOOKUP($A258,Analysis!$A:$U,17,FALSE),0),#N/A)","v":{"$error":"#VALUE!"}},{"$f":"IF(ISERROR($K258),ROUND(VLOOKUP($A258,Analysis!$A:$U,17,FALSE),0),#N/A)","v":{"$error":"#VALUE!"}},{"$error":"#VALUE!"},{"$error":"#VALUE!"},{"$error":"#VALUE!"}]
[{"$error":"#VALUE!"},{"$error":"#VALUE!"},{"$f":"VLOOKUP($A259,Analysis!$A:$U,11,FALSE)","v":{"$error":"#VALUE!"}},{"$f":"IF(VLOOKUP($A259,Analysis!$A:$U,3,FALSE)=1,VLOOKUP($A259,Analysis!$A:$U,18,FALSE),#N/A)","v":{"$error":"#VALUE!"}},{"$f":"IF(ISERROR($D259),VLOOKUP($A259,Analysis!$A:$U,18,FALSE),#N/A)","v":{"$error":"#VALUE!"}},{"$f":"IF($B259=\"Vacant\",$D259,#N/A)","v":{"$error":"#VALUE!"}},{"$f":"IF($B259=\"Abstraction\",$D259,#N/A)","v":{"$error":"#VALUE!"}},{"$f":"IF($B259=\"Allocation\",$D259,#N/A)","v":{"$error":"#VALUE!"}},null,{"$f":"VLOOKUP($A259,Analysis!$A:$U,10,FALSE)","v":{"$error":"#VALUE!"}},{"$f":"IF(VLOOKUP($A259,Analysis!$A:$U,3,FALSE)=1,ROUND(VLOOKUP($A259,Analysis!$A:$U,17,FALSE),0),#N/A)","v":{"$error":"#VALUE!"}},{"$f":"IF(ISERROR($K259),ROUND(VLOOKUP($A259,Analysis!$A:$U,17,FALSE),0),#N/A)","v":{"$error":"#VALUE!"}},{"$f":"IF($B259=\"Vacant\",$K259,#N/A)","v":{"$error":"#VALUE!"}},{"$f":"IF($B259=\"Abstraction\",$K259,#N/A)","v":{"$error":"#VALUE!"}},{"$f":"IF($B259=\"Allocation\",$K259,#N/A)","v":{"$error":"#VALUE!"}}]
[{"$error":"#VALUE!"},{"$error":"#VALUE!"},{"$f":"VLOOKUP($A260,Analysis!$A:$U,11,FALSE)","v":{"$error":"#VALUE!"}},{"$f":"IF(VLOOKUP($A260,Analysis!$A:$U,3,FALSE)=1,VLOOKUP($A260,Analysis!$A:$U,18,FALSE),#N/A)","v":{"$error":"#VALUE!"}},{"$f":"IF(ISERROR($D260),VLOOKUP($A260,Analysis!$A:$U,18,FALSE),#N/A)","v":{"$error":"#VALUE!"}},{"$error":"#VALUE!"},{"$error":"#VALUE!"},{"$error":"#VALUE!"},null,{"$f":"VLOOKUP($A260,Analysis!$A:$U,10,FALSE)","v":{"$error":"#VALUE!"}},{"$f":"IF(VLOOKUP($A260,Analysis!$A:$U,3,FALSE)=1,ROUND(VLOOKUP($A260,Analysis!$A:$U,17,FALSE),0),#N/A)","v":{"$error":"#VALUE!"}},{"$f":"IF(ISERROR($K260),ROUND(VLOOKUP($A260,Analysis!$A:$U,17,FALSE),0),#N/A)","v":{"$error":"#VALUE!"}},{"$error":"#VALUE!"},{"$error":"#VALUE!"},{"$error":"#VALUE!"}]
[{"$error":"#VALUE!"},{"$error":"#VALUE!"},{"$f":"VLOOKUP($A261,Analysis!$A:$U,11,FALSE)","v":{"$error":"#VALUE!"}},{"$f":"IF(VLOOKUP($A261,Analysis!$A:$U,3,FALSE)=1,VLOOKUP($A261,Analysis!$A:$U,18,FALSE),#N/A)","v":{"$error":"#VALUE!"}},{"$f":"IF(ISERROR($D261),VLOOKUP($A261,Analysis!$A:$U,18,FALSE),#N/A)","v":{"$error":"#VALUE!"}},{"$error":"#VALUE!"},{"$error":"#VALUE!"},{"$error":"#VALUE!"},null,{"$f":"VLOOKUP($A261,Analysis!$A:$U,10,FALSE)","v":{"$error":"#VALUE!"}},{"$f":"IF(VLOOKUP($A261,Analysis!$A:$U,3,FALSE)=1,ROUND(VLOOKUP($A261,Analysis!$A:$U,17,FALSE),0),#N/A)","v":{"$error":"#VALUE!"}},{"$f":"IF(ISERROR($K261),ROUND(VLOOKUP($A261,Analysis!$A:$U,17,FALSE),0),#N/A)","v":{"$error":"#VALUE!"}},{"$error":"#VALUE!"},{"$error":"#VALUE!"},{"$error":"#VALUE!"}]
[{"$error":"#VALUE!"},{"$error":"#VALUE!"},{"$f":"VLOOKUP($A262,Analysis!$A:$U,11,FALSE)","v":{"$error":"#VALUE!"}},{"$f":"IF(VLOOKUP($A262,Analysis!$A:$U,3,FALSE)=1,VLOOKUP($A262,Analysis!$A:$U,18,FALSE),#N/A)","v":{"$error":"#VALUE!"}},{"$f":"IF(ISERROR($D262),VLOOKUP($A262,Analysis!$A:$U,18,FALSE),#N/A)","v":{"$error":"#VALUE!"}},{"$error":"#VALUE!"},{"$error":"#VALUE!"},{"$error":"#VALUE!"},null,{"$f":"VLOOKUP($A262,Analysis!$A:$U,10,FALSE)","v":{"$error":"#VALUE!"}},{"$f":"IF(VLOOKUP($A262,Analysis!$A:$U,3,FALSE)=1,ROUND(VLOOKUP($A262,Analysis!$A:$U,17,FALSE),0),#N/A)","v":{"$error":"#VALUE!"}},{"$f":"IF(ISERROR($K262),ROUND(VLOOKUP($A262,Analysis!$A:$U,17,FALSE),0),#N/A)","v":{"$error":"#VALUE!"}},{"$error":"#VALUE!"},{"$error":"#VALUE!"},{"$error":"#VALUE!"}]
[{"$error":"#VALUE!"},{"$error":"#VALUE!"},{"$f":"VLOOKUP($A263,Analysis!$A:$U,11,FALSE)","v":{"$error":"#VALUE!"}},{"$f":"IF(VLOOKUP($A263,Analysis!$A:$U,3,FALSE)=1,VLOOKUP($A263,Analysis!$A:$U,18,FALSE),#N/A)","v":{"$error":"#VALUE!"}},{"$f":"IF(ISERROR($D263),VLOOKUP($A263,Analysis!$A:$U,18,FALSE),#N/A)","v":{"$error":"#VALUE!"}},{"$error":"#VALUE!"},{"$error":"#VALUE!"},{"$error":"#VALUE!"},null,{"$f":"VLOOKUP($A263,Analysis!$A:$U,10,FALSE)","v":{"$error":"#VALUE!"}},{"$f":"IF(VLOOKUP($A263,Analysis!$A:$U,3,FALSE)=1,ROUND(VLOOKUP($A263,Analysis!$A:$U,17,FALSE),0),#N/A)","v":{"$error":"#VALUE!"}},{"$f":"IF(ISERROR($K263),ROUND(VLOOKUP($A263,Analysis!$A:$U,17,FALSE),0),#N/A)","v":{"$error":"#VALUE!"}},{"$error":"#VALUE!"},{"$error":"#VALUE!"},{"$error":"#VALUE!"}]
[{"$error":"#VALUE!"},{"$error":"#VALUE!"},{"$f":"VLOOKUP($A264,Analysis!$A:$U,11,FALSE)","v":{"$error":"#VALUE!"}},{"$f":"IF(VLOOKUP($A264,Analysis!$A:$U,3,FALSE)=1,VLOOKUP($A264,Analysis!$A:$U,18,FALSE),#N/A)","v":{"$error":"#VALUE!"}},{"$f":"IF(ISERROR($D264),VLOOKUP($A264,Analysis!$A:$U,18,FALSE),#N/A)","v":{"$error":"#VALUE!"}},{"$error":"#VALUE!"},{"$error":"#VALUE!"},{"$error":"#VALUE!"},null,{"$f":"VLOOKUP($A264,Analysis!$A:$U,10,FALSE)","v":{"$error":"#VALUE!"}},{"$f":"IF(VLOOKUP($A264,Analysis!$A:$U,3,FALSE)=1,ROUND(VLOOKUP($A264,Analysis!$A:$U,17,FALSE),0),#N/A)","v":{"$error":"#VALUE!"}},{"$f":"IF(ISERROR($K264),ROUND(VLOOKUP($A264,Analysis!$A:$U,17,FALSE),0),#N/A)","v":{"$error":"#VALUE!"}},{"$error":"#VALUE!"},{"$error":"#VALUE!"},{"$error":"#VALUE!"}]
[{"$error":"#VALUE!"},{"$error":"#VALUE!"},{"$f":"VLOOKUP($A265,Analysis!$A:$U,11,FALSE)","v":{"$error":"#VALUE!"}},{"$f":"IF(VLOOKUP($A265,Analysis!$A:$U,3,FALSE)=1,VLOOKUP($A265,Analysis!$A:$U,18,FALSE),#N/A)","v":{"$error":"#VALUE!"}},{"$f":"IF(ISERROR($D265),VLOOKUP($A265,Analysis!$A:$U,18,FALSE),#N/A)","v":{"$error":"#VALUE!"}},{"$error":"#VALUE!"},{"$error":"#VALUE!"},{"$error":"#VALUE!"},null,{"$f":"VLOOKUP($A265,Analysis!$A:$U,10,FALSE)","v":{"$error":"#VALUE!"}},{"$f":"IF(VLOOKUP($A265,Analysis!$A:$U,3,FALSE)=1,ROUND(VLOOKUP($A265,Analysis!$A:$U,17,FALSE),0),#N/A)","v":{"$error":"#VALUE!"}},{"$f":"IF(ISERROR($K265),ROUND(VLOOKUP($A265,Analysis!$A:$U,17,FALSE),0),#N/A)","v":{"$error":"#VALUE!"}},{"$error":"#VALUE!"},{"$error":"#VALUE!"},{"$error":"#VALUE!"}]
[{"$error":"#VALUE!"},{"$error":"#VALUE!"},{"$f":"VLOOKUP($A266,Analysis!$A:$U,11,FALSE)","v":{"$error":"#VALUE!"}},{"$f":"IF(VLOOKUP($A266,Analysis!$A:$U,3,FALSE)=1,VLOOKUP($A266,Analysis!$A:$U,18,FALSE),#N/A)","v":{"$error":"#VALUE!"}},{"$f":"IF(ISERROR($D266),VLOOKUP($A266,Analysis!$A:$U,18,FALSE),#N/A)","v":{"$error":"#VALUE!"}},{"$error":"#VALUE!"},{"$error":"#VALUE!"},{"$error":"#VALUE!"},null,{"$f":"VLOOKUP($A266,Analysis!$A:$U,10,FALSE)","v":{"$error":"#VALUE!"}},{"$f":"IF(VLOOKUP($A266,Analysis!$A:$U,3,FALSE)=1,ROUND(VLOOKUP($A266,Analysis!$A:$U,17,FALSE),0),#N/A)","v":{"$error":"#VALUE!"}},{"$f":"IF(ISERROR($K266),ROUND(VLOOKUP($A266,Analysis!$A:$U,17,FALSE),0),#N/A)","v":{"$error":"#VALUE!"}},{"$error":"#VALUE!"},{"$error":"#VALUE!"},{"$error":"#VALUE!"}]
[{"$error":"#VALUE!"},{"$error":"#VALUE!"},{"$f":"VLOOKUP($A267,Analysis!$A:$U,11,FALSE)","v":{"$error":"#VALUE!"}},{"$f":"IF(VLOOKUP($A267,Analysis!$A:$U,3,FALSE)=1,VLOOKUP($A267,Analysis!$A:$U,18,FALSE),#N/A)","v":{"$error":"#VALUE!"}},{"$f":"IF(ISERROR($D267),VLOOKUP($A267,Analysis!$A:$U,18,FALSE),#N/A)","v":{"$error":"#VALUE!"}},{"$error":"#VALUE!"},{"$error":"#VALUE!"},{"$error":"#VALUE!"},null,{"$f":"VLOOKUP($A267,Analysis!$A:$U,10,FALSE)","v":{"$error":"#VALUE!"}},{"$f":"IF(VLOOKUP($A267,Analysis!$A:$U,3,FALSE)=1,ROUND(VLOOKUP($A267,Analysis!$A:$U,17,FALSE),0),#N/A)","v":{"$error":"#VALUE!"}},{"$f":"IF(ISERROR($K267),ROUND(VLOOKUP($A267,Analysis!$A:$U,17,FALSE),0),#N/A)","v":{"$error":"#VALUE!"}},{"$error":"#VALUE!"},{"$error":"#VALUE!"},{"$error":"#VALUE!"}]
[{"$error":"#VALUE!"},{"$error":"#VALUE!"},{"$f":"VLOOKUP($A268,Analysis!$A:$U,11,FALSE)","v":{"$error":"#VALUE!"}},{"$f":"IF(VLOOKUP($A268,Analysis!$A:$U,3,FALSE)=1,VLOOKUP($A268,Analysis!$A:$U,18,FALSE),#N/A)","v":{"$error":"#VALUE!"}},{"$f":"IF(ISERROR($D268),VLOOKUP($A268,Analysis!$A:$U,18,FALSE),#N/A)","v":{"$error":"#VALUE!"}},{"$error":"#VALUE!"},{"$error":"#VALUE!"},{"$error":"#VALUE!"},null,{"$f":"VLOOKUP($A268,Analysis!$A:$U,10,FALSE)","v":{"$error":"#VALUE!"}},{"$f":"IF(VLOOKUP($A268,Analysis!$A:$U,3,FALSE)=1,ROUND(VLOOKUP($A268,Analysis!$A:$U,17,FALSE),0),#N/A)","v":{"$error":"#VALUE!"}},{"$f":"IF(ISERROR($K268),ROUND(VLOOKUP($A268,Analysis!$A:$U,17,FALSE),0),#N/A)","v":{"$error":"#VALUE!"}},{"$error":"#VALUE!"},{"$error":"#VALUE!"},{"$error":"#VALUE!"}]
[{"$error":"#VALUE!"},{"$error":"#VALUE!"},{"$f":"VLOOKUP($A269,Analysis!$A:$U,11,FALSE)","v":{"$error":"#VALUE!"}},{"$f":"IF(VLOOKUP($A269,Analysis!$A:$U,3,FALSE)=1,VLOOKUP($A269,Analysis!$A:$U,18,FALSE),#N/A)","v":{"$error":"#VALUE!"}},{"$f":"IF(ISERROR($D269),VLOOKUP($A269,Analysis!$A:$U,18,FALSE),#N/A)","v":{"$error":"#VALUE!"}},{"$error":"#VALUE!"},{"$error":"#VALUE!"},{"$error":"#VALUE!"},null,{"$f":"VLOOKUP($A269,Analysis!$A:$U,10,FALSE)","v":{"$error":"#VALUE!"}},{"$f":"IF(VLOOKUP($A269,Analysis!$A:$U,3,FALSE)=1,ROUND(VLOOKUP($A269,Analysis!$A:$U,17,FALSE),0),#N/A)","v":{"$error":"#VALUE!"}},{"$f":"IF(ISERROR($K269),ROUND(VLOOKUP($A269,Analysis!$A:$U,17,FALSE),0),#N/A)","v":{"$error":"#VALUE!"}},{"$error":"#VALUE!"},{"$error":"#VALUE!"},{"$error":"#VALUE!"}]
[{"$error":"#VALUE!"},{"$error":"#VALUE!"},{"$f":"VLOOKUP($A270,Analysis!$A:$U,11,FALSE)","v":{"$error":"#VALUE!"}},{"$f":"IF(VLOOKUP($A270,Analysis!$A:$U,3,FALSE)=1,VLOOKUP($A270,Analysis!$A:$U,18,FALSE),#N/A)","v":{"$error":"#VALUE!"}},{"$f":"IF(ISERROR($D270),VLOOKUP($A270,Analysis!$A:$U,18,FALSE),#N/A)","v":{"$error":"#VALUE!"}},{"$error":"#VALUE!"},{"$error":"#VALUE!"},{"$error":"#VALUE!"},null,{"$f":"VLOOKUP($A270,Analysis!$A:$U,10,FALSE)","v":{"$error":"#VALUE!"}},{"$f":"IF(VLOOKUP($A270,Analysis!$A:$U,3,FALSE)=1,ROUND(VLOOKUP($A270,Analysis!$A:$U,17,FALSE),0),#N/A)","v":{"$error":"#VALUE!"}},{"$f":"IF(ISERROR($K270),ROUND(VLOOKUP($A270,Analysis!$A:$U,17,FALSE),0),#N/A)","v":{"$error":"#VALUE!"}},{"$error":"#VALUE!"},{"$error":"#VALUE!"},{"$error":"#VALUE!"}]
[{"$error":"#VALUE!"},{"$error":"#VALUE!"},{"$f":"VLOOKUP($A271,Analysis!$A:$U,11,FALSE)","v":{"$error":"#VALUE!"}},{"$f":"IF(VLOOKUP($A271,Analysis!$A:$U,3,FALSE)=1,VLOOKUP($A271,Analysis!$A:$U,18,FALSE),#N/A)","v":{"$error":"#VALUE!"}},{"$f":"IF(ISERROR($D271),VLOOKUP($A271,Analysis!$A:$U,18,FALSE),#N/A)","v":{"$error":"#VALUE!"}},{"$error":"#VALUE!"},{"$error":"#VALUE!"},{"$error":"#VALUE!"},null,{"$f":"VLOOKUP($A271,Analysis!$A:$U,10,FALSE)","v":{"$error":"#VALUE!"}},{"$f":"IF(VLOOKUP($A271,Analysis!$A:$U,3,FALSE)=1,ROUND(VLOOKUP($A271,Analysis!$A:$U,17,FALSE),0),#N/A)","v":{"$error":"#VALUE!"}},{"$f":"IF(ISERROR($K271),ROUND(VLOOKUP($A271,Analysis!$A:$U,17,FALSE),0),#N/A)","v":{"$error":"#VALUE!"}},{"$error":"#VALUE!"},{"$error":"#VALUE!"},{"$error":"#VALUE!"}]
[{"$error":"#VALUE!"},{"$error":"#VALUE!"},{"$f":"VLOOKUP($A272,Analysis!$A:$U,11,FALSE)","v":{"$error":"#VALUE!"}},{"$f":"IF(VLOOKUP($A272,Analysis!$A:$U,3,FALSE)=1,VLOOKUP($A272,Analysis!$A:$U,18,FALSE),#N/A)","v":{"$error":"#VALUE!"}},{"$f":"IF(ISERROR($D272),VLOOKUP($A272,Analysis!$A:$U,18,FALSE),#N/A)","v":{"$error":"#VALUE!"}},{"$error":"#VALUE!"},{"$error":"#VALUE!"},{"$error":"#VALUE!"},null,{"$f":"VLOOKUP($A272,Analysis!$A:$U,10,FALSE)","v":{"$error":"#VALUE!"}},{"$f":"IF(VLOOKUP($A272,Analysis!$A:$U,3,FALSE)=1,ROUND(VLOOKUP($A272,Analysis!$A:$U,17,FALSE),0),#N/A)","v":{"$error":"#VALUE!"}},{"$f":"IF(ISERROR($K272),ROUND(VLOOKUP($A272,Analysis!$A:$U,17,FALSE),0),#N/A)","v":{"$error":"#VALUE!"}},{"$error":"#VALUE!"},{"$error":"#VALUE!"},{"$error":"#VALUE!"}]
[{"$error":"#VALUE!"},{"$error":"#VALUE!"},{"$f":"VLOOKUP($A273,Analysis!$A:$U,11,FALSE)","v":{"$error":"#VALUE!"}},{"$f":"IF(VLOOKUP($A273,Analysis!$A:$U,3,FALSE)=1,VLOOKUP($A273,Analysis!$A:$U,18,FALSE),#N/A)","v":{"$error":"#VALUE!"}},{"$f":"IF(ISERROR($D273),VLOOKUP($A273,Analysis!$A:$U,18,FALSE),#N/A)","v":{"$error":"#VALUE!"}},{"$error":"#VALUE!"},{"$error":"#VALUE!"},{"$error":"#VALUE!"},null,{"$f":"VLOOKUP($A273,Analysis!$A:$U,10,FALSE)","v":{"$error":"#VALUE!"}},{"$f":"IF(VLOOKUP($A273,Analysis!$A:$U,3,FALSE)=1,ROUND(VLOOKUP($A273,Analysis!$A:$U,17,FALSE),0),#N/A)","v":{"$error":"#VALUE!"}},{"$f":"IF(ISERROR($K273),ROUND(VLOOKUP($A273,Analysis!$A:$U,17,FALSE),0),#N/A)","v":{"$error":"#VALUE!"}},{"$error":"#VALUE!"},{"$error":"#VALUE!"},{"$error":"#VALUE!"}]
[{"$error":"#VALUE!"},{"$error":"#VALUE!"},{"$f":"VLOOKUP($A274,Analysis!$A:$U,11,FALSE)","v":{"$error":"#VALUE!"}},{"$f":"IF(VLOOKUP($A274,Analysis!$A:$U,3,FALSE)=1,VLOOKUP($A274,Analysis!$A:$U,18,FALSE),#N/A)","v":{"$error":"#VALUE!"}},{"$f":"IF(ISERROR($D274),VLOOKUP($A274,Analysis!$A:$U,18,FALSE),#N/A)","v":{"$error":"#VALUE!"}},{"$error":"#VALUE!"},{"$error":"#VALUE!"},{"$error":"#VALUE!"},null,{"$f":"VLOOKUP($A274,Analysis!$A:$U,10,FALSE)","v":{"$error":"#VALUE!"}},{"$f":"IF(VLOOKUP($A274,Analysis!$A:$U,3,FALSE)=1,ROUND(VLOOKUP($A274,Analysis!$A:$U,17,FALSE),0),#N/A)","v":{"$error":"#VALUE!"}},{"$f":"IF(ISERROR($K274),ROUND(VLOOKUP($A274,Analysis!$A:$U,17,FALSE),0),#N/A)","v":{"$error":"#VALUE!"}},{"$error":"#VALUE!"},{"$error":"#VALUE!"},{"$error":"#VALUE!"}]
[{"$error":"#VALUE!"},{"$error":"#VALUE!"},{"$f":"VLOOKUP($A275,Analysis!$A:$U,11,FALSE)","v":{"$error":"#VALUE!"}},{"$f":"IF(VLOOKUP($A275,Analysis!$A:$U,3,FALSE)=1,VLOOKUP($A275,Analysis!$A:$U,18,FALSE),#N/A)","v":{"$error":"#VALUE!"}},{"$f":"IF(ISERROR($D275),VLOOKUP($A275,Analysis!$A:$U,18,FALSE),#N/A)","v":{"$error":"#VALUE!"}},{"$error":"#VALUE!"},{"$error":"#VALUE!"},{"$error":"#VALUE!"},null,{"$f":"VLOOKUP($A275,Analysis!$A:$U,10,FALSE)","v":{"$error":"#VALUE!"}},{"$f":"IF(VLOOKUP($A275,Analysis!$A:$U,3,FALSE)=1,ROUND(VLOOKUP($A275,Analysis!$A:$U,17,FALSE),0),#N/A)","v":{"$error":"#VALUE!"}},{"$f":"IF(ISERROR($K275),ROUND(VLOOKUP($A275,Analysis!$A:$U,17,FALSE),0),#N/A)","v":{"$error":"#VALUE!"}},{"$error":"#VALUE!"},{"$error":"#VALUE!"},{"$error":"#VALUE!"}]
[{"$error":"#VALUE!"},{"$error":"#VALUE!"},{"$f":"VLOOKUP($A276,Analysis!$A:$U,11,FALSE)","v":{"$error":"#VALUE!"}},{"$f":"IF(VLOOKUP($A276,Analysis!$A:$U,3,FALSE)=1,VLOOKUP($A276,Analysis!$A:$U,18,FALSE),#N/A)","v":{"$error":"#VALUE!"}},{"$f":"IF(ISERROR($D276),VLOOKUP($A276,Analysis!$A:$U,18,FALSE),#N/A)","v":{"$error":"#VALUE!"}},{"$error":"#VALUE!"},{"$error":"#VALUE!"},{"$error":"#VALUE!"},null,{"$f":"VLOOKUP($A276,Analysis!$A:$U,10,FALSE)","v":{"$error":"#VALUE!"}},{"$f":"IF(VLOOKUP($A276,Analysis!$A:$U,3,FALSE)=1,ROUND(VLOOKUP($A276,Analysis!$A:$U,17,FALSE),0),#N/A)","v":{"$error":"#VALUE!"}},{"$f":"IF(ISERROR($K276),ROUND(VLOOKUP($A276,Analysis!$A:$U,17,FALSE),0),#N/A)","v":{"$error":"#VALUE!"}},{"$error":"#VALUE!"},{"$error":"#VALUE!"},{"$error":"#VALUE!"}]
[{"$error":"#VALUE!"},{"$error":"#VALUE!"},{"$f":"VLOOKUP($A277,Analysis!$A:$U,11,FALSE)","v":{"$error":"#VALUE!"}},{"$f":"IF(VLOOKUP($A277,Analysis!$A:$U,3,FALSE)=1,VLOOKUP($A277,Analysis!$A:$U,18,FALSE),#N/A)","v":{"$error":"#VALUE!"}},{"$f":"IF(ISERROR($D277),VLOOKUP($A277,Analysis!$A:$U,18,FALSE),#N/A)","v":{"$error":"#VALUE!"}},{"$error":"#VALUE!"},{"$error":"#VALUE!"},{"$error":"#VALUE!"},null,{"$f":"VLOOKUP($A277,Analysis!$A:$U,10,FALSE)","v":{"$error":"#VALUE!"}},{"$f":"IF(VLOOKUP($A277,Analysis!$A:$U,3,FALSE)=1,ROUND(VLOOKUP($A277,Analysis!$A:$U,17,FALSE),0),#N/A)","v":{"$error":"#VALUE!"}},{"$f":"IF(ISERROR($K277),ROUND(VLOOKUP($A277,Analysis!$A:$U,17,FALSE),0),#N/A)","v":{"$error":"#VALUE!"}},{"$error":"#VALUE!"},{"$error":"#VALUE!"},{"$error":"#VALUE!"}]
[{"$error":"#VALUE!"},{"$error":"#VALUE!"},{"$f":"VLOOKUP($A278,Analysis!$A:$U,11,FALSE)","v":{"$error":"#VALUE!"}},{"$f":"IF(VLOOKUP($A278,Analysis!$A:$U,3,FALSE)=1,VLOOKUP($A278,Analysis!$A:$U,18,FALSE),#N/A)","v":{"$error":"#VALUE!"}},{"$f":"IF(ISERROR($D278),VLOOKUP($A278,Analysis!$A:$U,18,FALSE),#N/A)","v":{"$error":"#VALUE!"}},{"$error":"#VALUE!"},{"$error":"#VALUE!"},{"$error":"#VALUE!"},null,{"$f":"VLOOKUP($A278,Analysis!$A:$U,10,FALSE)","v":{"$error":"#VALUE!"}},{"$f":"IF(VLOOKUP($A278,Analysis!$A:$U,3,FALSE)=1,ROUND(VLOOKUP($A278,Analysis!$A:$U,17,FALSE),0),#N/A)","v":{"$error":"#VALUE!"}},{"$f":"IF(ISERROR($K278),ROUND(VLOOKUP($A278,Analysis!$A:$U,17,FALSE),0),#N/A)","v":{"$error":"#VALUE!"}},{"$error":"#VALUE!"},{"$error":"#VALUE!"},{"$error":"#VALUE!"}]
[{"$error":"#VALUE!"},{"$error":"#VALUE!"},{"$f":"VLOOKUP($A279,Analysis!$A:$U,11,FALSE)","v":{"$error":"#VALUE!"}},{"$f":"IF(VLOOKUP($A279,Analysis!$A:$U,3,FALSE)=1,VLOOKUP($A279,Analysis!$A:$U,18,FALSE),#N/A)","v":{"$error":"#VALUE!"}},{"$f":"IF(ISERROR($D279),VLOOKUP($A279,Analysis!$A:$U,18,FALSE),#N/A)","v":{"$error":"#VALUE!"}},{"$error":"#VALUE!"},{"$error":"#VALUE!"},{"$error":"#VALUE!"},null,{"$f":"VLOOKUP($A279,Analysis!$A:$U,10,FALSE)","v":{"$error":"#VALUE!"}},{"$f":"IF(VLOOKUP($A279,Analysis!$A:$U,3,FALSE)=1,ROUND(VLOOKUP($A279,Analysis!$A:$U,17,FALSE),0),#N/A)","v":{"$error":"#VALUE!"}},{"$f":"IF(ISERROR($K279),ROUND(VLOOKUP($A279,Analysis!$A:$U,17,FALSE),0),#N/A)","v":{"$error":"#VALUE!"}},{"$error":"#VALUE!"},{"$error":"#VALUE!"},{"$error":"#VALUE!"}]
[{"$error":"#VALUE!"},{"$error":"#VALUE!"},{"$f":"VLOOKUP($A280,Analysis!$A:$U,11,FALSE)","v":{"$error":"#VALUE!"}},{"$f":"IF(VLOOKUP($A280,Analysis!$A:$U,3,FALSE)=1,VLOOKUP($A280,Analysis!$A:$U,18,FALSE),#N/A)","v":{"$error":"#VALUE!"}},{"$f":"IF(ISERROR($D280),VLOOKUP($A280,Analysis!$A:$U,18,FALSE),#N/A)","v":{"$error":"#VALUE!"}},{"$error":"#VALUE!"},{"$error":"#VALUE!"},{"$error":"#VALUE!"},null,{"$f":"VLOOKUP($A280,Analysis!$A:$U,10,FALSE)","v":{"$error":"#VALUE!"}},{"$f":"IF(VLOOKUP($A280,Analysis!$A:$U,3,FALSE)=1,ROUND(VLOOKUP($A280,Analysis!$A:$U,17,FALSE),0),#N/A)","v":{"$error":"#VALUE!"}},{"$f":"IF(ISERROR($K280),ROUND(VLOOKUP($A280,Analysis!$A:$U,17,FALSE),0),#N/A)","v":{"$error":"#VALUE!"}},{"$error":"#VALUE!"},{"$error":"#VALUE!"},{"$error":"#VALUE!"}]
[{"$error":"#VALUE!"},{"$error":"#VALUE!"},{"$f":"VLOOKUP($A281,Analysis!$A:$U,11,FALSE)","v":{"$error":"#VALUE!"}},{"$f":"IF(VLOOKUP($A281,Analysis!$A:$U,3,FALSE)=1,VLOOKUP($A281,Analysis!$A:$U,18,FALSE),#N/A)","v":{"$error":"#VALUE!"}},{"$f":"IF(ISERROR($D281),VLOOKUP($A281,Analysis!$A:$U,18,FALSE),#N/A)","v":{"$error":"#VALUE!"}},{"$error":"#VALUE!"},{"$error":"#VALUE!"},{"$error":"#VALUE!"},null,{"$f":"VLOOKUP($A281,Analysis!$A:$U,10,FALSE)","v":{"$error":"#VALUE!"}},{"$f":"IF(VLOOKUP($A281,Analysis!$A:$U,3,FALSE)=1,ROUND(VLOOKUP($A281,Analysis!$A:$U,17,FALSE),0),#N/A)","v":{"$error":"#VALUE!"}},{"$f":"IF(ISERROR($K281),ROUND(VLOOKUP($A281,Analysis!$A:$U,17,FALSE),0),#N/A)","v":{"$error":"#VALUE!"}},{"$error":"#VALUE!"},{"$error":"#VALUE!"},{"$error":"#VALUE!"}]
[{"$error":"#VALUE!"},{"$error":"#VALUE!"},{"$f":"VLOOKUP($A282,Analysis!$A:$U,11,FALSE)","v":{"$error":"#VALUE!"}},{"$f":"IF(VLOOKUP($A282,Analysis!$A:$U,3,FALSE)=1,VLOOKUP($A282,Analysis!$A:$U,18,FALSE),#N/A)","v":{"$error":"#VALUE!"}},{"$f":"IF(ISERROR($D282),VLOOKUP($A282,Analysis!$A:$U,18,FALSE),#N/A)","v":{"$error":"#VALUE!"}},{"$error":"#VALUE!"},{"$error":"#VALUE!"},{"$error":"#VALUE!"},null,{"$f":"VLOOKUP($A282,Analysis!$A:$U,10,FALSE)","v":{"$error":"#VALUE!"}},{"$f":"IF(VLOOKUP($A282,Analysis!$A:$U,3,FALSE)=1,ROUND(VLOOKUP($A282,Analysis!$A:$U,17,FALSE),0),#N/A)","v":{"$error":"#VALUE!"}},{"$f":"IF(ISERROR($K282),ROUND(VLOOKUP($A282,Analysis!$A:$U,17,FALSE),0),#N/A)","v":{"$error":"#VALUE!"}},{"$error":"#VALUE!"},{"$error":"#VALUE!"},{"$error":"#VALUE!"}]
[{"$error":"#VALUE!"},{"$error":"#VALUE!"},{"$f":"VLOOKUP($A283,Analysis!$A:$U,11,FALSE)","v":{"$error":"#VALUE!"}},{"$f":"IF(VLOOKUP($A283,Analysis!$A:$U,3,FALSE)=1,VLOOKUP($A283,Analysis!$A:$U,18,FALSE),#N/A)","v":{"$error":"#VALUE!"}},{"$f":"IF(ISERROR($D283),VLOOKUP($A283,Analysis!$A:$U,18,FALSE),#N/A)","v":{"$error":"#VALUE!"}},{"$error":"#VALUE!"},{"$error":"#VALUE!"},{"$error":"#VALUE!"},null,{"$f":"VLOOKUP($A283,Analysis!$A:$U,10,FALSE)","v":{"$error":"#VALUE!"}},{"$f":"IF(VLOOKUP($A283,Analysis!$A:$U,3,FALSE)=1,ROUND(VLOOKUP($A283,Analysis!$A:$U,17,FALSE),0),#N/A)","v":{"$error":"#VALUE!"}},{"$f":"IF(ISERROR($K283),ROUND(VLOOKUP($A283,Analysis!$A:$U,17,FALSE),0),#N/A)","v":{"$error":"#VALUE!"}},{"$error":"#VALUE!"},{"$error":"#VALUE!"},{"$error":"#VALUE!"}]
[{"$error":"#VALUE!"},{"$error":"#VALUE!"},{"$f":"VLOOKUP($A284,Analysis!$A:$U,11,FALSE)","v":{"$error":"#VALUE!"}},{"$f":"IF(VLOOKUP($A284,Analysis!$A:$U,3,FALSE)=1,VLOOKUP($A284,Analysis!$A:$U,18,FALSE),#N/A)","v":{"$error":"#VALUE!"}},{"$f":"IF(ISERROR($D284),VLOOKUP($A284,Analysis!$A:$U,18,FALSE),#N/A)","v":{"$error":"#VALUE!"}},{"$error":"#VALUE!"},{"$error":"#VALUE!"},{"$error":"#VALUE!"},null,{"$f":"VLOOKUP($A284,Analysis!$A:$U,10,FALSE)","v":{"$error":"#VALUE!"}},{"$f":"IF(VLOOKUP($A284,Analysis!$A:$U,3,FALSE)=1,ROUND(VLOOKUP($A284,Analysis!$A:$U,17,FALSE),0),#N/A)","v":{"$error":"#VALUE!"}},{"$f":"IF(ISERROR($K284),ROUND(VLOOKUP($A284,Analysis!$A:$U,17,FALSE),0),#N/A)","v":{"$error":"#VALUE!"}},{"$error":"#VALUE!"},{"$error":"#VALUE!"},{"$error":"#VALUE!"}]
[{"$error":"#VALUE!"},{"$error":"#VALUE!"},{"$f":"VLOOKUP($A285,Analysis!$A:$U,11,FALSE)","v":{"$error":"#VALUE!"}},{"$f":"IF(VLOOKUP($A285,Analysis!$A:$U,3,FALSE)=1,VLOOKUP($A285,Analysis!$A:$U,18,FALSE),#N/A)","v":{"$error":"#VALUE!"}},{"$f":"IF(ISERROR($D285),VLOOKUP($A285,Analysis!$A:$U,18,FALSE),#N/A)","v":{"$error":"#VALUE!"}},{"$error":"#VALUE!"},{"$error":"#VALUE!"},{"$error":"#VALUE!"},null,{"$f":"VLOOKUP($A285,Analysis!$A:$U,10,FALSE)","v":{"$error":"#VALUE!"}},{"$f":"IF(VLOOKUP($A285,Analysis!$A:$U,3,FALSE)=1,ROUND(VLOOKUP($A285,Analysis!$A:$U,17,FALSE),0),#N/A)","v":{"$error":"#VALUE!"}},{"$f":"IF(ISERROR($K285),ROUND(VLOOKUP($A285,Analysis!$A:$U,17,FALSE),0),#N/A)","v":{"$error":"#VALUE!"}},{"$error":"#VALUE!"},{"$error":"#VALUE!"},{"$error":"#VALUE!"}]
[{"$error":"#VALUE!"},{"$error":"#VALUE!"},{"$f":"VLOOKUP($A286,Analysis!$A:$U,11,FALSE)","v":{"$error":"#VALUE!"}},{"$f":"IF(VLOOKUP($A286,Analysis!$A:$U,3,FALSE)=1,VLOOKUP($A286,Analysis!$A:$U,18,FALSE),#N/A)","v":{"$error":"#VALUE!"}},{"$f":"IF(ISERROR($D286),VLOOKUP($A286,Analysis!$A:$U,18,FALSE),#N/A)","v":{"$error":"#VALUE!"}},{"$error":"#VALUE!"},{"$error":"#VALUE!"},{"$error":"#VALUE!"},null,{"$f":"VLOOKUP($A286,Analysis!$A:$U,10,FALSE)","v":{"$error":"#VALUE!"}},{"$f":"IF(VLOOKUP($A286,Analysis!$A:$U,3,FALSE)=1,ROUND(VLOOKUP($A286,Analysis!$A:$U,17,FALSE),0),#N/A)","v":{"$error":"#VALUE!"}},{"$f":"IF(ISERROR($K286),ROUND(VLOOKUP($A286,Analysis!$A:$U,17,FALSE),0),#N/A)","v":{"$error":"#VALUE!"}},{"$error":"#VALUE!"},{"$error":"#VALUE!"},{"$error":"#VALUE!"}]
[{"$error":"#VALUE!"},{"$error":"#VALUE!"},{"$f":"VLOOKUP($A287,Analysis!$A:$U,11,FALSE)","v":{"$error":"#VALUE!"}},{"$f":"IF(VLOOKUP($A287,Analysis!$A:$U,3,FALSE)=1,VLOOKUP($A287,Analysis!$A:$U,18,FALSE),#N/A)","v":{"$error":"#VALUE!"}},{"$f":"IF(ISERROR($D287),VLOOKUP($A287,Analysis!$A:$U,18,FALSE),#N/A)","v":{"$error":"#VALUE!"}},{"$error":"#VALUE!"},{"$error":"#VALUE!"},{"$error":"#VALUE!"},null,{"$f":"VLOOKUP($A287,Analysis!$A:$U,10,FALSE)","v":{"$error":"#VALUE!"}},{"$f":"IF(VLOOKUP($A287,Analysis!$A:$U,3,FALSE)=1,ROUND(VLOOKUP($A287,Analysis!$A:$U,17,FALSE),0),#N/A)","v":{"$error":"#VALUE!"}},{"$f":"IF(ISERROR($K287),ROUND(VLOOKUP($A287,Analysis!$A:$U,17,FALSE),0),#N/A)","v":{"$error":"#VALUE!"}},{"$error":"#VALUE!"},{"$error":"#VALUE!"},{"$error":"#VALUE!"}]
[{"$error":"#VALUE!"},{"$error":"#VALUE!"},{"$f":"VLOOKUP($A288,Analysis!$A:$U,11,FALSE)","v":{"$error":"#VALUE!"}},{"$f":"IF(VLOOKUP($A288,Analysis!$A:$U,3,FALSE)=1,VLOOKUP($A288,Analysis!$A:$U,18,FALSE),#N/A)","v":{"$error":"#VALUE!"}},{"$f":"IF(ISERROR($D288),VLOOKUP($A288,Analysis!$A:$U,18,FALSE),#N/A)","v":{"$error":"#VALUE!"}},{"$error":"#VALUE!"},{"$error":"#VALUE!"},{"$error":"#VALUE!"},null,{"$f":"VLOOKUP($A288,Analysis!$A:$U,10,FALSE)","v":{"$error":"#VALUE!"}},{"$f":"IF(VLOOKUP($A288,Analysis!$A:$U,3,FALSE)=1,ROUND(VLOOKUP($A288,Analysis!$A:$U,17,FALSE),0),#N/A)","v":{"$error":"#VALUE!"}},{"$f":"IF(ISERROR($K288),ROUND(VLOOKUP($A288,Analysis!$A:$U,17,FALSE),0),#N/A)","v":{"$error":"#VALUE!"}},{"$error":"#VALUE!"},{"$error":"#VALUE!"},{"$error":"#VALUE!"}]
[{"$error":"#VALUE!"},{"$error":"#VALUE!"},{"$f":"VLOOKUP($A289,Analysis!$A:$U,11,FALSE)","v":{"$error":"#VALUE!"}},{"$f":"IF(VLOOKUP($A289,Analysis!$A:$U,3,FALSE)=1,VLOOKUP($A289,Analysis!$A:$U,18,FALSE),#N/A)","v":{"$error":"#VALUE!"}},{"$f":"IF(ISERROR($D289),VLOOKUP($A289,Analysis!$A:$U,18,FALSE),#N/A)","v":{"$error":"#VALUE!"}},{"$error":"#VALUE!"},{"$error":"#VALUE!"},{"$error":"#VALUE!"},null,{"$f":"VLOOKUP($A289,Analysis!$A:$U,10,FALSE)","v":{"$error":"#VALUE!"}},{"$f":"IF(VLOOKUP($A289,Analysis!$A:$U,3,FALSE)=1,ROUND(VLOOKUP($A289,Analysis!$A:$U,17,FALSE),0),#N/A)","v":{"$error":"#VALUE!"}},{"$f":"IF(ISERROR($K289),ROUND(VLOOKUP($A289,Analysis!$A:$U,17,FALSE),0),#N/A)","v":{"$error":"#VALUE!"}},{"$error":"#VALUE!"},{"$error":"#VALUE!"},{"$error":"#VALUE!"}]
[{"$error":"#VALUE!"},{"$error":"#VALUE!"},{"$f":"VLOOKUP($A290,Analysis!$A:$U,11,FALSE)","v":{"$error":"#VALUE!"}},{"$f":"IF(VLOOKUP($A290,Analysis!$A:$U,3,FALSE)=1,VLOOKUP($A290,Analysis!$A:$U,18,FALSE),#N/A)","v":{"$error":"#VALUE!"}},{"$f":"IF(ISERROR($D290),VLOOKUP($A290,Analysis!$A:$U,18,FALSE),#N/A)","v":{"$error":"#VALUE!"}},{"$error":"#VALUE!"},{"$error":"#VALUE!"},{"$error":"#VALUE!"},null,{"$f":"VLOOKUP($A290,Analysis!$A:$U,10,FALSE)","v":{"$error":"#VALUE!"}},{"$f":"IF(VLOOKUP($A290,Analysis!$A:$U,3,FALSE)=1,ROUND(VLOOKUP($A290,Analysis!$A:$U,17,FALSE),0),#N/A)","v":{"$error":"#VALUE!"}},{"$f":"IF(ISERROR($K290),ROUND(VLOOKUP($A290,Analysis!$A:$U,17,FALSE),0),#N/A)","v":{"$error":"#VALUE!"}},{"$error":"#VALUE!"},{"$error":"#VALUE!"},{"$error":"#VALUE!"}]
[{"$error":"#VALUE!"},{"$error":"#VALUE!"},{"$f":"VLOOKUP($A291,Analysis!$A:$U,11,FALSE)","v":{"$error":"#VALUE!"}},{"$f":"IF(VLOOKUP($A291,Analysis!$A:$U,3,FALSE)=1,VLOOKUP($A291,Analysis!$A:$U,18,FALSE),#N/A)","v":{"$error":"#VALUE!"}},{"$f":"IF(ISERROR($D291),VLOOKUP($A291,Analysis!$A:$U,18,FALSE),#N/A)","v":{"$error":"#VALUE!"}},{"$error":"#VALUE!"},{"$error":"#VALUE!"},{"$error":"#VALUE!"},null,{"$f":"VLOOKUP($A291,Analysis!$A:$U,10,FALSE)","v":{"$error":"#VALUE!"}},{"$f":"IF(VLOOKUP($A291,Analysis!$A:$U,3,FALSE)=1,ROUND(VLOOKUP($A291,Analysis!$A:$U,17,FALSE),0),#N/A)","v":{"$error":"#VALUE!"}},{"$f":"IF(ISERROR($K291),ROUND(VLOOKUP($A291,Analysis!$A:$U,17,FALSE),0),#N/A)","v":{"$error":"#VALUE!"}},{"$error":"#VALUE!"},{"$error":"#VALUE!"},{"$error":"#VALUE!"}]
[{"$error":"#VALUE!"},{"$error":"#VALUE!"},{"$f":"VLOOKUP($A292,Analysis!$A:$U,11,FALSE)","v":{"$error":"#VALUE!"}},{"$f":"IF(VLOOKUP($A292,Analysis!$A:$U,3,FALSE)=1,VLOOKUP($A292,Analysis!$A:$U,18,FALSE),#N/A)","v":{"$error":"#VALUE!"}},{"$f":"IF(ISERROR($D292),VLOOKUP($A292,Analysis!$A:$U,18,FALSE),#N/A)","v":{"$error":"#VALUE!"}},{"$error":"#VALUE!"},{"$error":"#VALUE!"},{"$error":"#VALUE!"},null,{"$f":"VLOOKUP($A292,Analysis!$A:$U,10,FALSE)","v":{"$error":"#VALUE!"}},{"$f":"IF(VLOOKUP($A292,Analysis!$A:$U,3,FALSE)=1,ROUND(VLOOKUP($A292,Analysis!$A:$U,17,FALSE),0),#N/A)","v":{"$error":"#VALUE!"}},{"$f":"IF(ISERROR($K292),ROUND(VLOOKUP($A292,Analysis!$A:$U,17,FALSE),0),#N/A)","v":{"$error":"#VALUE!"}},{"$error":"#VALUE!"},{"$error":"#VALUE!"},{"$error":"#VALUE!"}]
[{"$error":"#VALUE!"},{"$error":"#VALUE!"},{"$f":"VLOOKUP($A293,Analysis!$A:$U,11,FALSE)","v":{"$error":"#VALUE!"}},{"$f":"IF(VLOOKUP($A293,Analysis!$A:$U,3,FALSE)=1,VLOOKUP($A293,Analysis!$A:$U,18,FALSE),#N/A)","v":{"$error":"#VALUE!"}},{"$f":"IF(ISERROR($D293),VLOOKUP($A293,Analysis!$A:$U,18,FALSE),#N/A)","v":{"$error":"#VALUE!"}},{"$error":"#VALUE!"},{"$error":"#VALUE!"},{"$error":"#VALUE!"},null,{"$f":"VLOOKUP($A293,Analysis!$A:$U,10,FALSE)","v":{"$error":"#VALUE!"}},{"$f":"IF(VLOOKUP($A293,Analysis!$A:$U,3,FALSE)=1,ROUND(VLOOKUP($A293,Analysis!$A:$U,17,FALSE),0),#N/A)","v":{"$error":"#VALUE!"}},{"$f":"IF(ISERROR($K293),ROUND(VLOOKUP($A293,Analysis!$A:$U,17,FALSE),0),#N/A)","v":{"$error":"#VALUE!"}},{"$error":"#VALUE!"},{"$error":"#VALUE!"},{"$error":"#VALUE!"}]
[{"$error":"#VALUE!"},{"$error":"#VALUE!"},{"$f":"VLOOKUP($A294,Analysis!$A:$U,11,FALSE)","v":{"$error":"#VALUE!"}},{"$f":"IF(VLOOKUP($A294,Analysis!$A:$U,3,FALSE)=1,VLOOKUP($A294,Analysis!$A:$U,18,FALSE),#N/A)","v":{"$error":"#VALUE!"}},{"$f":"IF(ISERROR($D294),VLOOKUP($A294,Analysis!$A:$U,18,FALSE),#N/A)","v":{"$error":"#VALUE!"}},{"$error":"#VALUE!"},{"$error":"#VALUE!"},{"$error":"#VALUE!"},null,{"$f":"VLOOKUP($A294,Analysis!$A:$U,10,FALSE)","v":{"$error":"#VALUE!"}},{"$f":"IF(VLOOKUP($A294,Analysis!$A:$U,3,FALSE)=1,ROUND(VLOOKUP($A294,Analysis!$A:$U,17,FALSE),0),#N/A)","v":{"$error":"#VALUE!"}},{"$f":"IF(ISERROR($K294),ROUND(VLOOKUP($A294,Analysis!$A:$U,17,FALSE),0),#N/A)","v":{"$error":"#VALUE!"}},{"$error":"#VALUE!"},{"$error":"#VALUE!"},{"$error":"#VALUE!"}]
[{"$error":"#VALUE!"},{"$error":"#VALUE!"},{"$f":"VLOOKUP($A295,Analysis!$A:$U,11,FALSE)","v":{"$error":"#VALUE!"}},{"$f":"IF(VLOOKUP($A295,Analysis!$A:$U,3,FALSE)=1,VLOOKUP($A295,Analysis!$A:$U,18,FALSE),#N/A)","v":{"$error":"#VALUE!"}},{"$f":"IF(ISERROR($D295),VLOOKUP($A295,Analysis!$A:$U,18,FALSE),#N/A)","v":{"$error":"#VALUE!"}},{"$error":"#VALUE!"},{"$error":"#VALUE!"},{"$error":"#VALUE!"},null,{"$f":"VLOOKUP($A295,Analysis!$A:$U,10,FALSE)","v":{"$error":"#VALUE!"}},{"$f":"IF(VLOOKUP($A295,Analysis!$A:$U,3,FALSE)=1,ROUND(VLOOKUP($A295,Analysis!$A:$U,17,FALSE),0),#N/A)","v":{"$error":"#VALUE!"}},{"$f":"IF(ISERROR($K295),ROUND(VLOOKUP($A295,Analysis!$A:$U,17,FALSE),0),#N/A)","v":{"$error":"#VALUE!"}},{"$error":"#VALUE!"},{"$error":"#VALUE!"},{"$error":"#VALUE!"}]
[{"$error":"#VALUE!"},{"$error":"#VALUE!"},{"$f":"VLOOKUP($A296,Analysis!$A:$U,11,FALSE)","v":{"$error":"#VALUE!"}},{"$f":"IF(VLOOKUP($A296,Analysis!$A:$U,3,FALSE)=1,VLOOKUP($A296,Analysis!$A:$U,18,FALSE),#N/A)","v":{"$error":"#VALUE!"}},{"$f":"IF(ISERROR($D296),VLOOKUP($A296,Analysis!$A:$U,18,FALSE),#N/A)","v":{"$error":"#VALUE!"}},{"$error":"#VALUE!"},{"$error":"#VALUE!"},{"$error":"#VALUE!"},null,{"$f":"VLOOKUP($A296,Analysis!$A:$U,10,FALSE)","v":{"$error":"#VALUE!"}},{"$f":"IF(VLOOKUP($A296,Analysis!$A:$U,3,FALSE)=1,ROUND(VLOOKUP($A296,Analysis!$A:$U,17,FALSE),0),#N/A)","v":{"$error":"#VALUE!"}},{"$f":"IF(ISERROR($K296),ROUND(VLOOKUP($A296,Analysis!$A:$U,17,FALSE),0),#N/A)","v":{"$error":"#VALUE!"}},{"$error":"#VALUE!"},{"$error":"#VALUE!"},{"$error":"#VALUE!"}]
[{"$error":"#VALUE!"},{"$error":"#VALUE!"},{"$f":"VLOOKUP($A297,Analysis!$A:$U,11,FALSE)","v":{"$error":"#VALUE!"}},{"$f":"IF(VLOOKUP($A297,Analysis!$A:$U,3,FALSE)=1,VLOOKUP($A297,Analysis!$A:$U,18,FALSE),#N/A)","v":{"$error":"#VALUE!"}},{"$f":"IF(ISERROR($D297),VLOOKUP($A297,Analysis!$A:$U,18,FALSE),#N/A)","v":{"$error":"#VALUE!"}},{"$error":"#VALUE!"},{"$error":"#VALUE!"},{"$error":"#VALUE!"},null,{"$f":"VLOOKUP($A297,Analysis!$A:$U,10,FALSE)","v":{"$error":"#VALUE!"}},{"$f":"IF(VLOOKUP($A297,Analysis!$A:$U,3,FALSE)=1,ROUND(VLOOKUP($A297,Analysis!$A:$U,17,FALSE),0),#N/A)","v":{"$error":"#VALUE!"}},{"$f":"IF(ISERROR($K297),ROUND(VLOOKUP($A297,Analysis!$A:$U,17,FALSE),0),#N/A)","v":{"$error":"#VALUE!"}},{"$error":"#VALUE!"},{"$error":"#VALUE!"},{"$error":"#VALUE!"}]
[{"$error":"#VALUE!"},{"$error":"#VALUE!"},{"$f":"VLOOKUP($A298,Analysis!$A:$U,11,FALSE)","v":{"$error":"#VALUE!"}},{"$f":"IF(VLOOKUP($A298,Analysis!$A:$U,3,FALSE)=1,VLOOKUP($A298,Analysis!$A:$U,18,FALSE),#N/A)","v":{"$error":"#VALUE!"}},{"$f":"IF(ISERROR($D298),VLOOKUP($A298,Analysis!$A:$U,18,FALSE),#N/A)","v":{"$error":"#VALUE!"}},{"$error":"#VALUE!"},{"$error":"#VALUE!"},{"$error":"#VALUE!"},null,{"$f":"VLOOKUP($A298,Analysis!$A:$U,10,FALSE)","v":{"$error":"#VALUE!"}},{"$f":"IF(VLOOKUP($A298,Analysis!$A:$U,3,FALSE)=1,ROUND(VLOOKUP($A298,Analysis!$A:$U,17,FALSE),0),#N/A)","v":{"$error":"#VALUE!"}},{"$f":"IF(ISERROR($K298),ROUND(VLOOKUP($A298,Analysis!$A:$U,17,FALSE),0),#N/A)","v":{"$error":"#VALUE!"}},{"$error":"#VALUE!"},{"$error":"#VALUE!"},{"$error":"#VALUE!"}]
[{"$error":"#VALUE!"},{"$error":"#VALUE!"},{"$f":"VLOOKUP($A299,Analysis!$A:$U,11,FALSE)","v":{"$error":"#VALUE!"}},{"$f":"IF(VLOOKUP($A299,Analysis!$A:$U,3,FALSE)=1,VLOOKUP($A299,Analysis!$A:$U,18,FALSE),#N/A)","v":{"$error":"#VALUE!"}},{"$f":"IF(ISERROR($D299),VLOOKUP($A299,Analysis!$A:$U,18,FALSE),#N/A)","v":{"$error":"#VALUE!"}},{"$error":"#VALUE!"},{"$error":"#VALUE!"},{"$error":"#VALUE!"},null,{"$f":"VLOOKUP($A299,Analysis!$A:$U,10,FALSE)","v":{"$error":"#VALUE!"}},{"$f":"IF(VLOOKUP($A299,Analysis!$A:$U,3,FALSE)=1,ROUND(VLOOKUP($A299,Analysis!$A:$U,17,FALSE),0),#N/A)","v":{"$error":"#VALUE!"}},{"$f":"IF(ISERROR($K299),ROUND(VLOOKUP($A299,Analysis!$A:$U,17,FALSE),0),#N/A)","v":{"$error":"#VALUE!"}},{"$error":"#VALUE!"},{"$error":"#VALUE!"},{"$error":"#VALUE!"}]
[{"$error":"#VALUE!"},{"$error":"#VALUE!"},{"$f":"VLOOKUP($A300,Analysis!$A:$U,11,FALSE)","v":{"$error":"#VALUE!"}},{"$f":"IF(VLOOKUP($A300,Analysis!$A:$U,3,FALSE)=1,VLOOKUP($A300,Analysis!$A:$U,18,FALSE),#N/A)","v":{"$error":"#VALUE!"}},{"$f":"IF(ISERROR($D300),VLOOKUP($A300,Analysis!$A:$U,18,FALSE),#N/A)","v":{"$error":"#VALUE!"}},{"$error":"#VALUE!"},{"$error":"#VALUE!"},{"$error":"#VALUE!"},null,{"$f":"VLOOKUP($A300,Analysis!$A:$U,10,FALSE)","v":{"$error":"#VALUE!"}},{"$f":"IF(VLOOKUP($A300,Analysis!$A:$U,3,FALSE)=1,ROUND(VLOOKUP($A300,Analysis!$A:$U,17,FALSE),0),#N/A)","v":{"$error":"#VALUE!"}},{"$f":"IF(ISERROR($K300),ROUND(VLOOKUP($A300,Analysis!$A:$U,17,FALSE),0),#N/A)","v":{"$error":"#VALUE!"}},{"$error":"#VALUE!"},{"$error":"#VALUE!"},{"$error":"#VALUE!"}]
[{"$error":"#VALUE!"},{"$error":"#VALUE!"},{"$f":"VLOOKUP($A301,Analysis!$A:$U,11,FALSE)","v":{"$error":"#VALUE!"}},{"$f":"IF(VLOOKUP($A301,Analysis!$A:$U,3,FALSE)=1,VLOOKUP($A301,Analysis!$A:$U,18,FALSE),#N/A)","v":{"$error":"#VALUE!"}},{"$f":"IF(ISERROR($D301),VLOOKUP($A301,Analysis!$A:$U,18,FALSE),#N/A)","v":{"$error":"#VALUE!"}},{"$error":"#VALUE!"},{"$error":"#VALUE!"},{"$error":"#VALUE!"},null,{"$f":"VLOOKUP($A301,Analysis!$A:$U,10,FALSE)","v":{"$error":"#VALUE!"}},{"$f":"IF(VLOOKUP($A301,Analysis!$A:$U,3,FALSE)=1,ROUND(VLOOKUP($A301,Analysis!$A:$U,17,FALSE),0),#N/A)","v":{"$error":"#VALUE!"}},{"$f":"IF(ISERROR($K301),ROUND(VLOOKUP($A301,Analysis!$A:$U,17,FALSE),0),#N/A)","v":{"$error":"#VALUE!"}},{"$error":"#VALUE!"},{"$error":"#VALUE!"},{"$error":"#VALUE!"}]
[{"$error":"#VALUE!"},{"$error":"#VALUE!"},{"$f":"VLOOKUP($A302,Analysis!$A:$U,11,FALSE)","v":{"$error":"#VALUE!"}},{"$f":"IF(VLOOKUP($A302,Analysis!$A:$U,3,FALSE)=1,VLOOKUP($A302,Analysis!$A:$U,18,FALSE),#N/A)","v":{"$error":"#VALUE!"}},{"$f":"IF(ISERROR($D302),VLOOKUP($A302,Analysis!$A:$U,18,FALSE),#N/A)","v":{"$error":"#VALUE!"}},{"$error":"#VALUE!"},{"$error":"#VALUE!"},{"$error":"#VALUE!"},null,{"$f":"VLOOKUP($A302,Analysis!$A:$U,10,FALSE)","v":{"$error":"#VALUE!"}},{"$f":"IF(VLOOKUP($A302,Analysis!$A:$U,3,FALSE)=1,ROUND(VLOOKUP($A302,Analysis!$A:$U,17,FALSE),0),#N/A)","v":{"$error":"#VALUE!"}},{"$f":"IF(ISERROR($K302),ROUND(VLOOKUP($A302,Analysis!$A:$U,17,FALSE),0),#N/A)","v":{"$error":"#VALUE!"}},{"$error":"#VALUE!"},{"$error":"#VALUE!"},{"$error":"#VALUE!"}]
[{"$error":"#VALUE!"},{"$error":"#VALUE!"},{"$f":"VLOOKUP($A303,Analysis!$A:$U,11,FALSE)","v":{"$error":"#VALUE!"}},{"$f":"IF(VLOOKUP($A303,Analysis!$A:$U,3,FALSE)=1,VLOOKUP($A303,Analysis!$A:$U,18,FALSE),#N/A)","v":{"$error":"#VALUE!"}},{"$f":"IF(ISERROR($D303),VLOOKUP($A303,Analysis!$A:$U,18,FALSE),#N/A)","v":{"$error":"#VALUE!"}},{"$error":"#VALUE!"},{"$error":"#VALUE!"},{"$error":"#VALUE!"},null,{"$f":"VLOOKUP($A303,Analysis!$A:$U,10,FALSE)","v":{"$error":"#VALUE!"}},{"$f":"IF(VLOOKUP($A303,Analysis!$A:$U,3,FALSE)=1,ROUND(VLOOKUP($A303,Analysis!$A:$U,17,FALSE),0),#N/A)","v":{"$error":"#VALUE!"}},{"$f":"IF(ISERROR($K303),ROUND(VLOOKUP($A303,Analysis!$A:$U,17,FALSE),0),#N/A)","v":{"$error":"#VALUE!"}},{"$error":"#VALUE!"},{"$error":"#VALUE!"},{"$error":"#VALUE!"}]
[{"$error":"#VALUE!"},{"$error":"#VALUE!"},{"$f":"VLOOKUP($A304,Analysis!$A:$U,11,FALSE)","v":{"$error":"#VALUE!"}},{"$f":"IF(VLOOKUP($A304,Analysis!$A:$U,3,FALSE)=1,VLOOKUP($A304,Analysis!$A:$U,18,FALSE),#N/A)","v":{"$error":"#VALUE!"}},{"$f":"IF(ISERROR($D304),VLOOKUP($A304,Analysis!$A:$U,18,FALSE),#N/A)","v":{"$error":"#VALUE!"}},{"$error":"#VALUE!"},{"$error":"#VALUE!"},{"$error":"#VALUE!"},null,{"$f":"VLOOKUP($A304,Analysis!$A:$U,10,FALSE)","v":{"$error":"#VALUE!"}},{"$f":"IF(VLOOKUP($A304,Analysis!$A:$U,3,FALSE)=1,ROUND(VLOOKUP($A304,Analysis!$A:$U,17,FALSE),0),#N/A)","v":{"$error":"#VALUE!"}},{"$f":"IF(ISERROR($K304),ROUND(VLOOKUP($A304,Analysis!$A:$U,17,FALSE),0),#N/A)","v":{"$error":"#VALUE!"}},{"$error":"#VALUE!"},{"$error":"#VALUE!"},{"$error":"#VALUE!"}]
[{"$error":"#VALUE!"},{"$error":"#VALUE!"},{"$f":"VLOOKUP($A305,Analysis!$A:$U,11,FALSE)","v":{"$error":"#VALUE!"}},{"$f":"IF(VLOOKUP($A305,Analysis!$A:$U,3,FALSE)=1,VLOOKUP($A305,Analysis!$A:$U,18,FALSE),#N/A)","v":{"$error":"#VALUE!"}},{"$f":"IF(ISERROR($D305),VLOOKUP($A305,Analysis!$A:$U,18,FALSE),#N/A)","v":{"$error":"#VALUE!"}},{"$error":"#VALUE!"},{"$error":"#VALUE!"},{"$error":"#VALUE!"},null,{"$f":"VLOOKUP($A305,Analysis!$A:$U,10,FALSE)","v":{"$error":"#VALUE!"}},{"$f":"IF(VLOOKUP($A305,Analysis!$A:$U,3,FALSE)=1,ROUND(VLOOKUP($A305,Analysis!$A:$U,17,FALSE),0),#N/A)","v":{"$error":"#VALUE!"}},{"$f":"IF(ISERROR($K305),ROUND(VLOOKUP($A305,Analysis!$A:$U,17,FALSE),0),#N/A)","v":{"$error":"#VALUE!"}},{"$error":"#VALUE!"},{"$error":"#VALUE!"},{"$error":"#VALUE!"}]
[{"$error":"#VALUE!"},{"$error":"#VALUE!"},{"$f":"VLOOKUP($A306,Analysis!$A:$U,11,FALSE)","v":{"$error":"#VALUE!"}},{"$f":"IF(VLOOKUP($A306,Analysis!$A:$U,3,FALSE)=1,VLOOKUP($A306,Analysis!$A:$U,18,FALSE),#N/A)","v":{"$error":"#VALUE!"}},{"$f":"IF(ISERROR($D306),VLOOKUP($A306,Analysis!$A:$U,18,FALSE),#N/A)","v":{"$error":"#VALUE!"}},{"$error":"#VALUE!"},{"$error":"#VALUE!"},{"$error":"#VALUE!"},null,{"$f":"VLOOKUP($A306,Analysis!$A:$U,10,FALSE)","v":{"$error":"#VALUE!"}},{"$f":"IF(VLOOKUP($A306,Analysis!$A:$U,3,FALSE)=1,ROUND(VLOOKUP($A306,Analysis!$A:$U,17,FALSE),0),#N/A)","v":{"$error":"#VALUE!"}},{"$f":"IF(ISERROR($K306),ROUND(VLOOKUP($A306,Analysis!$A:$U,17,FALSE),0),#N/A)","v":{"$error":"#VALUE!"}},{"$error":"#VALUE!"},{"$error":"#VALUE!"},{"$error":"#VALUE!"}]
[{"$error":"#VALUE!"},{"$error":"#VALUE!"},{"$f":"VLOOKUP($A307,Analysis!$A:$U,11,FALSE)","v":{"$error":"#VALUE!"}},{"$f":"IF(VLOOKUP($A307,Analysis!$A:$U,3,FALSE)=1,VLOOKUP($A307,Analysis!$A:$U,18,FALSE),#N/A)","v":{"$error":"#VALUE!"}},{"$f":"IF(ISERROR($D307),VLOOKUP($A307,Analysis!$A:$U,18,FALSE),#N/A)","v":{"$error":"#VALUE!"}},{"$error":"#VALUE!"},{"$error":"#VALUE!"},{"$error":"#VALUE!"},null,{"$f":"VLOOKUP($A307,Analysis!$A:$U,10,FALSE)","v":{"$error":"#VALUE!"}},{"$f":"IF(VLOOKUP($A307,Analysis!$A:$U,3,FALSE)=1,ROUND(VLOOKUP($A307,Analysis!$A:$U,17,FALSE),0),#N/A)","v":{"$error":"#VALUE!"}},{"$f":"IF(ISERROR($K307),ROUND(VLOOKUP($A307,Analysis!$A:$U,17,FALSE),0),#N/A)","v":{"$error":"#VALUE!"}},{"$error":"#VALUE!"},{"$error":"#VALUE!"},{"$error":"#VALUE!"}]
[{"$error":"#VALUE!"},{"$error":"#VALUE!"},{"$f":"VLOOKUP($A308,Analysis!$A:$U,11,FALSE)","v":{"$error":"#VALUE!"}},{"$f":"IF(VLOOKUP($A308,Analysis!$A:$U,3,FALSE)=1,VLOOKUP($A308,Analysis!$A:$U,18,FALSE),#N/A)","v":{"$error":"#VALUE!"}},{"$f":"IF(ISERROR($D308),VLOOKUP($A308,Analysis!$A:$U,18,FALSE),#N/A)","v":{"$error":"#VALUE!"}},{"$error":"#VALUE!"},{"$error":"#VALUE!"},{"$error":"#VALUE!"},null,{"$f":"VLOOKUP($A308,Analysis!$A:$U,10,FALSE)","v":{"$error":"#VALUE!"}},{"$f":"IF(VLOOKUP($A308,Analysis!$A:$U,3,FALSE)=1,ROUND(VLOOKUP($A308,Analysis!$A:$U,17,FALSE),0),#N/A)","v":{"$error":"#VALUE!"}},{"$f":"IF(ISERROR($K308),ROUND(VLOOKUP($A308,Analysis!$A:$U,17,FALSE),0),#N/A)","v":{"$error":"#VALUE!"}},{"$error":"#VALUE!"},{"$error":"#VALUE!"},{"$error":"#VALUE!"}]
[{"$error":"#VALUE!"},{"$error":"#VALUE!"},{"$f":"VLOOKUP($A309,Analysis!$A:$U,11,FALSE)","v":{"$error":"#VALUE!"}},{"$f":"IF(VLOOKUP($A309,Analysis!$A:$U,3,FALSE)=1,VLOOKUP($A309,Analysis!$A:$U,18,FALSE),#N/A)","v":{"$error":"#VALUE!"}},{"$f":"IF(ISERROR($D309),VLOOKUP($A309,Analysis!$A:$U,18,FALSE),#N/A)","v":{"$error":"#VALUE!"}},{"$error":"#VALUE!"},{"$error":"#VALUE!"},{"$error":"#VALUE!"},null,{"$f":"VLOOKUP($A309,Analysis!$A:$U,10,FALSE)","v":{"$error":"#VALUE!"}},{"$f":"IF(VLOOKUP($A309,Analysis!$A:$U,3,FALSE)=1,ROUND(VLOOKUP($A309,Analysis!$A:$U,17,FALSE),0),#N/A)","v":{"$error":"#VALUE!"}},{"$f":"IF(ISERROR($K309),ROUND(VLOOKUP($A309,Analysis!$A:$U,17,FALSE),0),#N/A)","v":{"$error":"#VALUE!"}},{"$error":"#VALUE!"},{"$error":"#VALUE!"},{"$error":"#VALUE!"}]
[{"$error":"#VALUE!"},{"$error":"#VALUE!"},{"$f":"VLOOKUP($A310,Analysis!$A:$U,11,FALSE)","v":{"$error":"#VALUE!"}},{"$f":"IF(VLOOKUP($A310,Analysis!$A:$U,3,FALSE)=1,VLOOKUP($A310,Analysis!$A:$U,18,FALSE),#N/A)","v":{"$error":"#VALUE!"}},{"$f":"IF(ISERROR($D310),VLOOKUP($A310,Analysis!$A:$U,18,FALSE),#N/A)","v":{"$error":"#VALUE!"}},{"$error":"#VALUE!"},{"$error":"#VALUE!"},{"$error":"#VALUE!"},null,{"$f":"VLOOKUP($A310,Analysis!$A:$U,10,FALSE)","v":{"$error":"#VALUE!"}},{"$f":"IF(VLOOKUP($A310,Analysis!$A:$U,3,FALSE)=1,ROUND(VLOOKUP($A310,Analysis!$A:$U,17,FALSE),0),#N/A)","v":{"$error":"#VALUE!"}},{"$f":"IF(ISERROR($K310),ROUND(VLOOKUP($A310,Analysis!$A:$U,17,FALSE),0),#N/A)","v":{"$error":"#VALUE!"}},{"$error":"#VALUE!"},{"$error":"#VALUE!"},{"$error":"#VALUE!"}]
[{"$error":"#VALUE!"},{"$error":"#VALUE!"},{"$f":"VLOOKUP($A311,Analysis!$A:$U,11,FALSE)","v":{"$error":"#VALUE!"}},{"$f":"IF(VLOOKUP($A311,Analysis!$A:$U,3,FALSE)=1,VLOOKUP($A311,Analysis!$A:$U,18,FALSE),#N/A)","v":{"$error":"#VALUE!"}},{"$f":"IF(ISERROR($D311),VLOOKUP($A311,Analysis!$A:$U,18,FALSE),#N/A)","v":{"$error":"#VALUE!"}},{"$error":"#VALUE!"},{"$error":"#VALUE!"},{"$error":"#VALUE!"},null,{"$f":"VLOOKUP($A311,Analysis!$A:$U,10,FALSE)","v":{"$error":"#VALUE!"}},{"$f":"IF(VLOOKUP($A311,Analysis!$A:$U,3,FALSE)=1,ROUND(VLOOKUP($A311,Analysis!$A:$U,17,FALSE),0),#N/A)","v":{"$error":"#VALUE!"}},{"$f":"IF(ISERROR($K311),ROUND(VLOOKUP($A311,Analysis!$A:$U,17,FALSE),0),#N/A)","v":{"$error":"#VALUE!"}},{"$error":"#VALUE!"},{"$error":"#VALUE!"},{"$error":"#VALUE!"}]
[{"$error":"#VALUE!"},{"$error":"#VALUE!"},{"$f":"VLOOKUP($A312,Analysis!$A:$U,11,FALSE)","v":{"$error":"#VALUE!"}},{"$f":"IF(VLOOKUP($A312,Analysis!$A:$U,3,FALSE)=1,VLOOKUP($A312,Analysis!$A:$U,18,FALSE),#N/A)","v":{"$error":"#VALUE!"}},{"$f":"IF(ISERROR($D312),VLOOKUP($A312,Analysis!$A:$U,18,FALSE),#N/A)","v":{"$error":"#VALUE!"}},{"$error":"#VALUE!"},{"$error":"#VALUE!"},{"$error":"#VALUE!"},null,{"$f":"VLOOKUP($A312,Analysis!$A:$U,10,FALSE)","v":{"$error":"#VALUE!"}},{"$f":"IF(VLOOKUP($A312,Analysis!$A:$U,3,FALSE)=1,ROUND(VLOOKUP($A312,Analysis!$A:$U,17,FALSE),0),#N/A)","v":{"$error":"#VALUE!"}},{"$f":"IF(ISERROR($K312),ROUND(VLOOKUP($A312,Analysis!$A:$U,17,FALSE),0),#N/A)","v":{"$error":"#VALUE!"}},{"$error":"#VALUE!"},{"$error":"#VALUE!"},{"$error":"#VALUE!"}]
[{"$error":"#VALUE!"},{"$error":"#VALUE!"},{"$f":"VLOOKUP($A313,Analysis!$A:$U,11,FALSE)","v":{"$error":"#VALUE!"}},{"$f":"IF(VLOOKUP($A313,Analysis!$A:$U,3,FALSE)=1,VLOOKUP($A313,Analysis!$A:$U,18,FALSE),#N/A)","v":{"$error":"#VALUE!"}},{"$f":"IF(ISERROR($D313),VLOOKUP($A313,Analysis!$A:$U,18,FALSE),#N/A)","v":{"$error":"#VALUE!"}},{"$error":"#VALUE!"},{"$error":"#VALUE!"},{"$error":"#VALUE!"},null,{"$f":"VLOOKUP($A313,Analysis!$A:$U,10,FALSE)","v":{"$error":"#VALUE!"}},{"$f":"IF(VLOOKUP($A313,Analysis!$A:$U,3,FALSE)=1,ROUND(VLOOKUP($A313,Analysis!$A:$U,17,FALSE),0),#N/A)","v":{"$error":"#VALUE!"}},{"$f":"IF(ISERROR($K313),ROUND(VLOOKUP($A313,Analysis!$A:$U,17,FALSE),0),#N/A)","v":{"$error":"#VALUE!"}},{"$error":"#VALUE!"},{"$error":"#VALUE!"},{"$error":"#VALUE!"}]
[{"$error":"#VALUE!"},{"$error":"#VALUE!"},{"$f":"VLOOKUP($A314,Analysis!$A:$U,11,FALSE)","v":{"$error":"#VALUE!"}},{"$f":"IF(VLOOKUP($A314,Analysis!$A:$U,3,FALSE)=1,VLOOKUP($A314,Analysis!$A:$U,18,FALSE),#N/A)","v":{"$error":"#VALUE!"}},{"$f":"IF(ISERROR($D314),VLOOKUP($A314,Analysis!$A:$U,18,FALSE),#N/A)","v":{"$error":"#VALUE!"}},{"$error":"#VALUE!"},{"$error":"#VALUE!"},{"$error":"#VALUE!"},null,{"$f":"VLOOKUP($A314,Analysis!$A:$U,10,FALSE)","v":{"$error":"#VALUE!"}},{"$f":"IF(VLOOKUP($A314,Analysis!$A:$U,3,FALSE)=1,ROUND(VLOOKUP($A314,Analysis!$A:$U,17,FALSE),0),#N/A)","v":{"$error":"#VALUE!"}},{"$f":"IF(ISERROR($K314),ROUND(VLOOKUP($A314,Analysis!$A:$U,17,FALSE),0),#N/A)","v":{"$error":"#VALUE!"}},{"$error":"#VALUE!"},{"$error":"#VALUE!"},{"$error":"#VALUE!"}]
[{"$error":"#VALUE!"},{"$error":"#VALUE!"},{"$f":"VLOOKUP($A315,Analysis!$A:$U,11,FALSE)","v":{"$error":"#VALUE!"}},{"$f":"IF(VLOOKUP($A315,Analysis!$A:$U,3,FALSE)=1,VLOOKUP($A315,Analysis!$A:$U,18,FALSE),#N/A)","v":{"$error":"#VALUE!"}},{"$f":"IF(ISERROR($D315),VLOOKUP($A315,Analysis!$A:$U,18,FALSE),#N/A)","v":{"$error":"#VALUE!"}},{"$error":"#VALUE!"},{"$error":"#VALUE!"},{"$error":"#VALUE!"},null,{"$f":"VLOOKUP($A315,Analysis!$A:$U,10,FALSE)","v":{"$error":"#VALUE!"}},{"$f":"IF(VLOOKUP($A315,Analysis!$A:$U,3,FALSE)=1,ROUND(VLOOKUP($A315,Analysis!$A:$U,17,FALSE),0),#N/A)","v":{"$error":"#VALUE!"}},{"$f":"IF(ISERROR($K315),ROUND(VLOOKUP($A315,Analysis!$A:$U,17,FALSE),0),#N/A)","v":{"$error":"#VALUE!"}},{"$error":"#VALUE!"},{"$error":"#VALUE!"},{"$error":"#VALUE!"}]
[{"$error":"#VALUE!"},{"$error":"#VALUE!"},{"$f":"VLOOKUP($A316,Analysis!$A:$U,11,FALSE)","v":{"$error":"#VALUE!"}},{"$f":"IF(VLOOKUP($A316,Analysis!$A:$U,3,FALSE)=1,VLOOKUP($A316,Analysis!$A:$U,18,FALSE),#N/A)","v":{"$error":"#VALUE!"}},{"$f":"IF(ISERROR($D316),VLOOKUP($A316,Analysis!$A:$U,18,FALSE),#N/A)","v":{"$error":"#VALUE!"}},{"$error":"#VALUE!"},{"$error":"#VALUE!"},{"$error":"#VALUE!"},null,{"$f":"VLOOKUP($A316,Analysis!$A:$U,10,FALSE)","v":{"$error":"#VALUE!"}},{"$f":"IF(VLOOKUP($A316,Analysis!$A:$U,3,FALSE)=1,ROUND(VLOOKUP($A316,Analysis!$A:$U,17,FALSE),0),#N/A)","v":{"$error":"#VALUE!"}},{"$f":"IF(ISERROR($K316),ROUND(VLOOKUP($A316,Analysis!$A:$U,17,FALSE),0),#N/A)","v":{"$error":"#VALUE!"}},{"$error":"#VALUE!"},{"$error":"#VALUE!"},{"$error":"#VALUE!"}]
[{"$error":"#VALUE!"},{"$error":"#VALUE!"},{"$f":"VLOOKUP($A317,Analysis!$A:$U,11,FALSE)","v":{"$error":"#VALUE!"}},{"$f":"IF(VLOOKUP($A317,Analysis!$A:$U,3,FALSE)=1,VLOOKUP($A317,Analysis!$A:$U,18,FALSE),#N/A)","v":{"$error":"#VALUE!"}},{"$f":"IF(ISERROR($D317),VLOOKUP($A317,Analysis!$A:$U,18,FALSE),#N/A)","v":{"$error":"#VALUE!"}},{"$error":"#VALUE!"},{"$error":"#VALUE!"},{"$error":"#VALUE!"},null,{"$f":"VLOOKUP($A317,Analysis!$A:$U,10,FALSE)","v":{"$error":"#VALUE!"}},{"$f":"IF(VLOOKUP($A317,Analysis!$A:$U,3,FALSE)=1,ROUND(VLOOKUP($A317,Analysis!$A:$U,17,FALSE),0),#N/A)","v":{"$error":"#VALUE!"}},{"$f":"IF(ISERROR($K317),ROUND(VLOOKUP($A317,Analysis!$A:$U,17,FALSE),0),#N/A)","v":{"$error":"#VALUE!"}},{"$error":"#VALUE!"},{"$error":"#VALUE!"},{"$error":"#VALUE!"}]
[{"$error":"#VALUE!"},{"$error":"#VALUE!"},{"$f":"VLOOKUP($A318,Analysis!$A:$U,11,FALSE)","v":{"$error":"#VALUE!"}},{"$f":"IF(VLOOKUP($A318,Analysis!$A:$U,3,FALSE)=1,VLOOKUP($A318,Analysis!$A:$U,18,FALSE),#N/A)","v":{"$error":"#VALUE!"}},{"$f":"IF(ISERROR($D318),VLOOKUP($A318,Analysis!$A:$U,18,FALSE),#N/A)","v":{"$error":"#VALUE!"}},{"$error":"#VALUE!"},{"$error":"#VALUE!"},{"$error":"#VALUE!"},null,{"$f":"VLOOKUP($A318,Analysis!$A:$U,10,FALSE)","v":{"$error":"#VALUE!"}},{"$f":"IF(VLOOKUP($A318,Analysis!$A:$U,3,FALSE)=1,ROUND(VLOOKUP($A318,Analysis!$A:$U,17,FALSE),0),#N/A)","v":{"$error":"#VALUE!"}},{"$f":"IF(ISERROR($K318),ROUND(VLOOKUP($A318,Analysis!$A:$U,17,FALSE),0),#N/A)","v":{"$error":"#VALUE!"}},{"$error":"#VALUE!"},{"$error":"#VALUE!"},{"$error":"#VALUE!"}]
[{"$error":"#VALUE!"},{"$error":"#VALUE!"},{"$f":"VLOOKUP($A319,Analysis!$A:$U,11,FALSE)","v":{"$error":"#VALUE!"}},{"$f":"IF(VLOOKUP($A319,Analysis!$A:$U,3,FALSE)=1,VLOOKUP($A319,Analysis!$A:$U,18,FALSE),#N/A)","v":{"$error":"#VALUE!"}},{"$f":"IF(ISERROR($D319),VLOOKUP($A319,Analysis!$A:$U,18,FALSE),#N/A)","v":{"$error":"#VALUE!"}},{"$error":"#VALUE!"},{"$error":"#VALUE!"},{"$error":"#VALUE!"},null,{"$f":"VLOOKUP($A319,Analysis!$A:$U,10,FALSE)","v":{"$error":"#VALUE!"}},{"$f":"IF(VLOOKUP($A319,Analysis!$A:$U,3,FALSE)=1,ROUND(VLOOKUP($A319,Analysis!$A:$U,17,FALSE),0),#N/A)","v":{"$error":"#VALUE!"}},{"$f":"IF(ISERROR($K319),ROUND(VLOOKUP($A319,Analysis!$A:$U,17,FALSE),0),#N/A)","v":{"$error":"#VALUE!"}},{"$error":"#VALUE!"},{"$error":"#VALUE!"},{"$error":"#VALUE!"}]
[{"$error":"#VALUE!"},{"$error":"#VALUE!"},{"$f":"VLOOKUP($A320,Analysis!$A:$U,11,FALSE)","v":{"$error":"#VALUE!"}},{"$f":"IF(VLOOKUP($A320,Analysis!$A:$U,3,FALSE)=1,VLOOKUP($A320,Analysis!$A:$U,18,FALSE),#N/A)","v":{"$error":"#VALUE!"}},{"$f":"IF(ISERROR($D320),VLOOKUP($A320,Analysis!$A:$U,18,FALSE),#N/A)","v":{"$error":"#VALUE!"}},{"$error":"#VALUE!"},{"$error":"#VALUE!"},{"$error":"#VALUE!"},null,{"$f":"VLOOKUP($A320,Analysis!$A:$U,10,FALSE)","v":{"$error":"#VALUE!"}},{"$f":"IF(VLOOKUP($A320,Analysis!$A:$U,3,FALSE)=1,ROUND(VLOOKUP($A320,Analysis!$A:$U,17,FALSE),0),#N/A)","v":{"$error":"#VALUE!"}},{"$f":"IF(ISERROR($K320),ROUND(VLOOKUP($A320,Analysis!$A:$U,17,FALSE),0),#N/A)","v":{"$error":"#VALUE!"}},{"$error":"#VALUE!"},{"$error":"#VALUE!"},{"$error":"#VALUE!"}]
[{"$error":"#VALUE!"},{"$error":"#VALUE!"},{"$f":"VLOOKUP($A321,Analysis!$A:$U,11,FALSE)","v":{"$error":"#VALUE!"}},{"$f":"IF(VLOOKUP($A321,Analysis!$A:$U,3,FALSE)=1,VLOOKUP($A321,Analysis!$A:$U,18,FALSE),#N/A)","v":{"$error":"#VALUE!"}},{"$f":"IF(ISERROR($D321),VLOOKUP($A321,Analysis!$A:$U,18,FALSE),#N/A)","v":{"$error":"#VALUE!"}},{"$error":"#VALUE!"},{"$error":"#VALUE!"},{"$error":"#VALUE!"},null,{"$f":"VLOOKUP($A321,Analysis!$A:$U,10,FALSE)","v":{"$error":"#VALUE!"}},{"$f":"IF(VLOOKUP($A321,Analysis!$A:$U,3,FALSE)=1,ROUND(VLOOKUP($A321,Analysis!$A:$U,17,FALSE),0),#N/A)","v":{"$error":"#VALUE!"}},{"$f":"IF(ISERROR($K321),ROUND(VLOOKUP($A321,Analysis!$A:$U,17,FALSE),0),#N/A)","v":{"$error":"#VALUE!"}},{"$error":"#VALUE!"},{"$error":"#VALUE!"},{"$error":"#VALUE!"}]
[{"$f":"Item_ID","v":{"$error":"#VALUE!"}},{"$f":"Valuation_Method","v":{"$error":"#VALUE!"}},{"$f":"VLOOKUP($A322,Analysis!$A:$U,11,FALSE)","v":{"$error":"#VALUE!"}},{"$f":"IF(VLOOKUP($A322,Analysis!$A:$U,3,FALSE)=1,VLOOKUP($A322,Analysis!$A:$U,18,FALSE),#N/A)","v":{"$error":"#VALUE!"}},{"$f":"IF(ISERROR($D322),VLOOKUP($A322,Analysis!$A:$U,18,FALSE),#N/A)","v":{"$error":"#VALUE!"}},{"$error":"#VALUE!"},{"$error":"#VALUE!"},{"$error":"#VALUE!"},null,{"$f":"VLOOKUP($A322,Analysis!$A:$U,10,FALSE)","v":{"$error":"#VALUE!"}},{"$f":"IF(VLOOKUP($A322,Analysis!$A:$U,3,FALSE)=1,ROUND(VLOOKUP($A322,Analysis!$A:$U,17,FALSE),0),#N/A)","v":{"$error":"#VALUE!"}},{"$f":"IF(ISERROR($K322),ROUND(VLOOKUP($A322,Analysis!$A:$U,17,FALSE),0),#N/A)","v":{"$error":"#VALUE!"}},{"$error":"#VALUE!"},{"$error":"#VALUE!"},{"$error":"#VALUE!"}]
[{"$error":"#VALUE!"},{"$error":"#VALUE!"},{"$f":"VLOOKUP($A323,Analysis!$A:$U,11,FALSE)","v":{"$error":"#VALUE!"}},{"$f":"IF(VLOOKUP($A323,Analysis!$A:$U,3,FALSE)=1,VLOOKUP($A323,Analysis!$A:$U,18,FALSE),#N/A)","v":{"$error":"#VALUE!"}},{"$f":"IF(ISERROR($D323),VLOOKUP($A323,Analysis!$A:$U,18,FALSE),#N/A)","v":{"$error":"#VALUE!"}},{"$f":"IF($B323=\"Vacant\",$D323,#N/A)","v":{"$error":"#VALUE!"}},{"$f":"IF($B323=\"Abstraction\",$D323,#N/A)","v":{"$error":"#VALUE!"}},{"$f":"IF($B323=\"Allocation\",$D323,#N/A)","v":{"$error":"#VALUE!"}},null,{"$f":"VLOOKUP($A323,Analysis!$A:$U,10,FALSE)","v":{"$error":"#VALUE!"}},{"$f":"IF(VLOOKUP($A323,Analysis!$A:$U,3,FALSE)=1,ROUND(VLOOKUP($A323,Analysis!$A:$U,17,FALSE),0),#N/A)","v":{"$error":"#VALUE!"}},{"$f":"IF(ISERROR($K323),ROUND(VLOOKUP($A323,Analysis!$A:$U,17,FALSE),0),#N/A)","v":{"$error":"#VALUE!"}},{"$f":"IF($B323=\"Vacant\",$K323,#N/A)","v":{"$error":"#VALUE!"}},{"$f":"IF($B323=\"Abstraction\",$K323,#N/A)","v":{"$error":"#VALUE!"}},{"$f":"IF($B323=\"Allocation\",$K323,#N/A)","v":{"$error":"#VALUE!"}}]
[{"$error":"#VALUE!"},{"$error":"#VALUE!"},{"$f":"VLOOKUP($A324,Analysis!$A:$U,11,FALSE)","v":{"$error":"#VALUE!"}},{"$f":"IF(VLOOKUP($A324,Analysis!$A:$U,3,FALSE)=1,VLOOKUP($A324,Analysis!$A:$U,18,FALSE),#N/A)","v":{"$error":"#VALUE!"}},{"$f":"IF(ISERROR($D324),VLOOKUP($A324,Analysis!$A:$U,18,FALSE),#N/A)","v":{"$error":"#VALUE!"}},{"$error":"#VALUE!"},{"$error":"#VALUE!"},{"$error":"#VALUE!"},null,{"$f":"VLOOKUP($A324,Analysis!$A:$U,10,FALSE)","v":{"$error":"#VALUE!"}},{"$f":"IF(VLOOKUP($A324,Analysis!$A:$U,3,FALSE)=1,ROUND(VLOOKUP($A324,Analysis!$A:$U,17,FALSE),0),#N/A)","v":{"$error":"#VALUE!"}},{"$f":"IF(ISERROR($K324),ROUND(VLOOKUP($A324,Analysis!$A:$U,17,FALSE),0),#N/A)","v":{"$error":"#VALUE!"}},{"$error":"#VALUE!"},{"$error":"#VALUE!"},{"$error":"#VALUE!"}]
[{"$error":"#VALUE!"},{"$error":"#VALUE!"},{"$f":"VLOOKUP($A325,Analysis!$A:$U,11,FALSE)","v":{"$error":"#VALUE!"}},{"$f":"IF(VLOOKUP($A325,Analysis!$A:$U,3,FALSE)=1,VLOOKUP($A325,Analysis!$A:$U,18,FALSE),#N/A)","v":{"$error":"#VALUE!"}},{"$f":"IF(ISERROR($D325),VLOOKUP($A325,Analysis!$A:$U,18,FALSE),#N/A)","v":{"$error":"#VALUE!"}},{"$error":"#VALUE!"},{"$error":"#VALUE!"},{"$error":"#VALUE!"},null,{"$f":"VLOOKUP($A325,Analysis!$A:$U,10,FALSE)","v":{"$error":"#VALUE!"}},{"$f":"IF(VLOOKUP($A325,Analysis!$A:$U,3,FALSE)=1,ROUND(VLOOKUP($A325,Analysis!$A:$U,17,FALSE),0),#N/A)","v":{"$error":"#VALUE!"}},{"$f":"IF(ISERROR($K325),ROUND(VLOOKUP($A325,Analysis!$A:$U,17,FALSE),0),#N/A)","v":{"$error":"#VALUE!"}},{"$error":"#VALUE!"},{"$error":"#VALUE!"},{"$error":"#VALUE!"}]
[{"$error":"#VALUE!"},{"$error":"#VALUE!"},{"$f":"VLOOKUP($A326,Analysis!$A:$U,11,FALSE)","v":{"$error":"#VALUE!"}},{"$f":"IF(VLOOKUP($A326,Analysis!$A:$U,3,FALSE)=1,VLOOKUP($A326,Analysis!$A:$U,18,FALSE),#N/A)","v":{"$error":"#VALUE!"}},{"$f":"IF(ISERROR($D326),VLOOKUP($A326,Analysis!$A:$U,18,FALSE),#N/A)","v":{"$error":"#VALUE!"}},{"$error":"#VALUE!"},{"$error":"#VALUE!"},{"$error":"#VALUE!"},null,{"$f":"VLOOKUP($A326,Analysis!$A:$U,10,FALSE)","v":{"$error":"#VALUE!"}},{"$f":"IF(VLOOKUP($A326,Analysis!$A:$U,3,FALSE)=1,ROUND(VLOOKUP($A326,Analysis!$A:$U,17,FALSE),0),#N/A)","v":{"$error":"#VALUE!"}},{"$f":"IF(ISERROR($K326),ROUND(VLOOKUP($A326,Analysis!$A:$U,17,FALSE),0),#N/A)","v":{"$error":"#VALUE!"}},{"$error":"#VALUE!"},{"$error":"#VALUE!"},{"$error":"#VALUE!"}]
[{"$error":"#VALUE!"},{"$error":"#VALUE!"},{"$f":"VLOOKUP($A327,Analysis!$A:$U,11,FALSE)","v":{"$error":"#VALUE!"}},{"$f":"IF(VLOOKUP($A327,Analysis!$A:$U,3,FALSE)=1,VLOOKUP($A327,Analysis!$A:$U,18,FALSE),#N/A)","v":{"$error":"#VALUE!"}},{"$f":"IF(ISERROR($D327),VLOOKUP($A327,Analysis!$A:$U,18,FALSE),#N/A)","v":{"$error":"#VALUE!"}},{"$error":"#VALUE!"},{"$error":"#VALUE!"},{"$error":"#VALUE!"},null,{"$f":"VLOOKUP($A327,Analysis!$A:$U,10,FALSE)","v":{"$error":"#VALUE!"}},{"$f":"IF(VLOOKUP($A327,Analysis!$A:$U,3,FALSE)=1,ROUND(VLOOKUP($A327,Analysis!$A:$U,17,FALSE),0),#N/A)","v":{"$error":"#VALUE!"}},{"$f":"IF(ISERROR($K327),ROUND(VLOOKUP($A327,Analysis!$A:$U,17,FALSE),0),#N/A)","v":{"$error":"#VALUE!"}},{"$error":"#VALUE!"},{"$error":"#VALUE!"},{"$error":"#VALUE!"}]
[{"$error":"#VALUE!"},{"$error":"#VALUE!"},{"$f":"VLOOKUP($A328,Analysis!$A:$U,11,FALSE)","v":{"$error":"#VALUE!"}},{"$f":"IF(VLOOKUP($A328,Analysis!$A:$U,3,FALSE)=1,VLOOKUP($A328,Analysis!$A:$U,18,FALSE),#N/A)","v":{"$error":"#VALUE!"}},{"$f":"IF(ISERROR($D328),VLOOKUP($A328,Analysis!$A:$U,18,FALSE),#N/A)","v":{"$error":"#VALUE!"}},{"$error":"#VALUE!"},{"$error":"#VALUE!"},{"$error":"#VALUE!"},null,{"$f":"VLOOKUP($A328,Analysis!$A:$U,10,FALSE)","v":{"$error":"#VALUE!"}},{"$f":"IF(VLOOKUP($A328,Analysis!$A:$U,3,FALSE)=1,ROUND(VLOOKUP($A328,Analysis!$A:$U,17,FALSE),0),#N/A)","v":{"$error":"#VALUE!"}},{"$f":"IF(ISERROR($K328),ROUND(VLOOKUP($A328,Analysis!$A:$U,17,FALSE),0),#N/A)","v":{"$error":"#VALUE!"}},{"$error":"#VALUE!"},{"$error":"#VALUE!"},{"$error":"#VALUE!"}]
[{"$error":"#VALUE!"},{"$error":"#VALUE!"},{"$f":"VLOOKUP($A329,Analysis!$A:$U,11,FALSE)","v":{"$error":"#VALUE!"}},{"$f":"IF(VLOOKUP($A329,Analysis!$A:$U,3,FALSE)=1,VLOOKUP($A329,Analysis!$A:$U,18,FALSE),#N/A)","v":{"$error":"#VALUE!"}},{"$f":"IF(ISERROR($D329),VLOOKUP($A329,Analysis!$A:$U,18,FALSE),#N/A)","v":{"$error":"#VALUE!"}},{"$error":"#VALUE!"},{"$error":"#VALUE!"},{"$error":"#VALUE!"},null,{"$f":"VLOOKUP($A329,Analysis!$A:$U,10,FALSE)","v":{"$error":"#VALUE!"}},{"$f":"IF(VLOOKUP($A329,Analysis!$A:$U,3,FALSE)=1,ROUND(VLOOKUP($A329,Analysis!$A:$U,17,FALSE),0),#N/A)","v":{"$error":"#VALUE!"}},{"$f":"IF(ISERROR($K329),ROUND(VLOOKUP($A329,Analysis!$A:$U,17,FALSE),0),#N/A)","v":{"$error":"#VALUE!"}},{"$error":"#VALUE!"},{"$error":"#VALUE!"},{"$error":"#VALUE!"}]
[{"$error":"#VALUE!"},{"$error":"#VALUE!"},{"$f":"VLOOKUP($A330,Analysis!$A:$U,11,FALSE)","v":{"$error":"#VALUE!"}},{"$f":"IF(VLOOKUP($A330,Analysis!$A:$U,3,FALSE)=1,VLOOKUP($A330,Analysis!$A:$U,18,FALSE),#N/A)","v":{"$error":"#VALUE!"}},{"$f":"IF(ISERROR($D330),VLOOKUP($A330,Analysis!$A:$U,18,FALSE),#N/A)","v":{"$error":"#VALUE!"}},{"$error":"#VALUE!"},{"$error":"#VALUE!"},{"$error":"#VALUE!"},null,{"$f":"VLOOKUP($A330,Analysis!$A:$U,10,FALSE)","v":{"$error":"#VALUE!"}},{"$f":"IF(VLOOKUP($A330,Analysis!$A:$U,3,FALSE)=1,ROUND(VLOOKUP($A330,Analysis!$A:$U,17,FALSE),0),#N/A)","v":{"$error":"#VALUE!"}},{"$f":"IF(ISERROR($K330),ROUND(VLOOKUP($A330,Analysis!$A:$U,17,FALSE),0),#N/A)","v":{"$error":"#VALUE!"}},{"$error":"#VALUE!"},{"$error":"#VALUE!"},{"$error":"#VALUE!"}]
[{"$error":"#VALUE!"},{"$error":"#VALUE!"},{"$f":"VLOOKUP($A331,Analysis!$A:$U,11,FALSE)","v":{"$error":"#VALUE!"}},{"$f":"IF(VLOOKUP($A331,Analysis!$A:$U,3,FALSE)=1,VLOOKUP($A331,Analysis!$A:$U,18,FALSE),#N/A)","v":{"$error":"#VALUE!"}},{"$f":"IF(ISERROR($D331),VLOOKUP($A331,Analysis!$A:$U,18,FALSE),#N/A)","v":{"$error":"#VALUE!"}},{"$error":"#VALUE!"},{"$error":"#VALUE!"},{"$error":"#VALUE!"},null,{"$f":"VLOOKUP($A331,Analysis!$A:$U,10,FALSE)","v":{"$error":"#VALUE!"}},{"$f":"IF(VLOOKUP($A331,Analysis!$A:$U,3,FALSE)=1,ROUND(VLOOKUP($A331,Analysis!$A:$U,17,FALSE),0),#N/A)","v":{"$error":"#VALUE!"}},{"$f":"IF(ISERROR($K331),ROUND(VLOOKUP($A331,Analysis!$A:$U,17,FALSE),0),#N/A)","v":{"$error":"#VALUE!"}},{"$error":"#VALUE!"},{"$error":"#VALUE!"},{"$error":"#VALUE!"}]
[{"$error":"#VALUE!"},{"$error":"#VALUE!"},{"$f":"VLOOKUP($A332,Analysis!$A:$U,11,FALSE)","v":{"$error":"#VALUE!"}},{"$f":"IF(VLOOKUP($A332,Analysis!$A:$U,3,FALSE)=1,VLOOKUP($A332,Analysis!$A:$U,18,FALSE),#N/A)","v":{"$error":"#VALUE!"}},{"$f":"IF(ISERROR($D332),VLOOKUP($A332,Analysis!$A:$U,18,FALSE),#N/A)","v":{"$error":"#VALUE!"}},{"$error":"#VALUE!"},{"$error":"#VALUE!"},{"$error":"#VALUE!"},null,{"$f":"VLOOKUP($A332,Analysis!$A:$U,10,FALSE)","v":{"$error":"#VALUE!"}},{"$f":"IF(VLOOKUP($A332,Analysis!$A:$U,3,FALSE)=1,ROUND(VLOOKUP($A332,Analysis!$A:$U,17,FALSE),0),#N/A)","v":{"$error":"#VALUE!"}},{"$f":"IF(ISERROR($K332),ROUND(VLOOKUP($A332,Analysis!$A:$U,17,FALSE),0),#N/A)","v":{"$error":"#VALUE!"}},{"$error":"#VALUE!"},{"$error":"#VALUE!"},{"$error":"#VALUE!"}]
[{"$error":"#VALUE!"},{"$error":"#VALUE!"},{"$f":"VLOOKUP($A333,Analysis!$A:$U,11,FALSE)","v":{"$error":"#VALUE!"}},{"$f":"IF(VLOOKUP($A333,Analysis!$A:$U,3,FALSE)=1,VLOOKUP($A333,Analysis!$A:$U,18,FALSE),#N/A)","v":{"$error":"#VALUE!"}},{"$f":"IF(ISERROR($D333),VLOOKUP($A333,Analysis!$A:$U,18,FALSE),#N/A)","v":{"$error":"#VALUE!"}},{"$error":"#VALUE!"},{"$error":"#VALUE!"},{"$error":"#VALUE!"},null,{"$f":"VLOOKUP($A333,Analysis!$A:$U,10,FALSE)","v":{"$error":"#VALUE!"}},{"$f":"IF(VLOOKUP($A333,Analysis!$A:$U,3,FALSE)=1,ROUND(VLOOKUP($A333,Analysis!$A:$U,17,FALSE),0),#N/A)","v":{"$error":"#VALUE!"}},{"$f":"IF(ISERROR($K333),ROUND(VLOOKUP($A333,Analysis!$A:$U,17,FALSE),0),#N/A)","v":{"$error":"#VALUE!"}},{"$error":"#VALUE!"},{"$error":"#VALUE!"},{"$error":"#VALUE!"}]
[{"$error":"#VALUE!"},{"$error":"#VALUE!"},{"$f":"VLOOKUP($A334,Analysis!$A:$U,11,FALSE)","v":{"$error":"#VALUE!"}},{"$f":"IF(VLOOKUP($A334,Analysis!$A:$U,3,FALSE)=1,VLOOKUP($A334,Analysis!$A:$U,18,FALSE),#N/A)","v":{"$error":"#VALUE!"}},{"$f":"IF(ISERROR($D334),VLOOKUP($A334,Analysis!$A:$U,18,FALSE),#N/A)","v":{"$error":"#VALUE!"}},{"$error":"#VALUE!"},{"$error":"#VALUE!"},{"$error":"#VALUE!"},null,{"$f":"VLOOKUP($A334,Analysis!$A:$U,10,FALSE)","v":{"$error":"#VALUE!"}},{"$f":"IF(VLOOKUP($A334,Analysis!$A:$U,3,FALSE)=1,ROUND(VLOOKUP($A334,Analysis!$A:$U,17,FALSE),0),#N/A)","v":{"$error":"#VALUE!"}},{"$f":"IF(ISERROR($K334),ROUND(VLOOKUP($A334,Analysis!$A:$U,17,FALSE),0),#N/A)","v":{"$error":"#VALUE!"}},{"$error":"#VALUE!"},{"$error":"#VALUE!"},{"$error":"#VALUE!"}]
[{"$error":"#VALUE!"},{"$error":"#VALUE!"},{"$f":"VLOOKUP($A335,Analysis!$A:$U,11,FALSE)","v":{"$error":"#VALUE!"}},{"$f":"IF(VLOOKUP($A335,Analysis!$A:$U,3,FALSE)=1,VLOOKUP($A335,Analysis!$A:$U,18,FALSE),#N/A)","v":{"$error":"#VALUE!"}},{"$f":"IF(ISERROR($D335),VLOOKUP($A335,Analysis!$A:$U,18,FALSE),#N/A)","v":{"$error":"#VALUE!"}},{"$error":"#VALUE!"},{"$error":"#VALUE!"},{"$error":"#VALUE!"},null,{"$f":"VLOOKUP($A335,Analysis!$A:$U,10,FALSE)","v":{"$error":"#VALUE!"}},{"$f":"IF(VLOOKUP($A335,Analysis!$A:$U,3,FALSE)=1,ROUND(VLOOKUP($A335,Analysis!$A:$U,17,FALSE),0),#N/A)","v":{"$error":"#VALUE!"}},{"$f":"IF(ISERROR($K335),ROUND(VLOOKUP($A335,Analysis!$A:$U,17,FALSE),0),#N/A)","v":{"$error":"#VALUE!"}},{"$error":"#VALUE!"},{"$error":"#VALUE!"},{"$error":"#VALUE!"}]
[{"$error":"#VALUE!"},{"$error":"#VALUE!"},{"$f":"VLOOKUP($A336,Analysis!$A:$U,11,FALSE)","v":{"$error":"#VALUE!"}},{"$f":"IF(VLOOKUP($A336,Analysis!$A:$U,3,FALSE)=1,VLOOKUP($A336,Analysis!$A:$U,18,FALSE),#N/A)","v":{"$error":"#VALUE!"}},{"$f":"IF(ISERROR($D336),VLOOKUP($A336,Analysis!$A:$U,18,FALSE),#N/A)","v":{"$error":"#VALUE!"}},{"$error":"#VALUE!"},{"$error":"#VALUE!"},{"$error":"#VALUE!"},null,{"$f":"VLOOKUP($A336,Analysis!$A:$U,10,FALSE)","v":{"$error":"#VALUE!"}},{"$f":"IF(VLOOKUP($A336,Analysis!$A:$U,3,FALSE)=1,ROUND(VLOOKUP($A336,Analysis!$A:$U,17,FALSE),0),#N/A)","v":{"$error":"#VALUE!"}},{"$f":"IF(ISERROR($K336),ROUND(VLOOKUP($A336,Analysis!$A:$U,17,FALSE),0),#N/A)","v":{"$error":"#VALUE!"}},{"$error":"#VALUE!"},{"$error":"#VALUE!"},{"$error":"#VALUE!"}]
[{"$error":"#VALUE!"},{"$error":"#VALUE!"},{"$f":"VLOOKUP($A337,Analysis!$A:$U,11,FALSE)","v":{"$error":"#VALUE!"}},{"$f":"IF(VLOOKUP($A337,Analysis!$A:$U,3,FALSE)=1,VLOOKUP($A337,Analysis!$A:$U,18,FALSE),#N/A)","v":{"$error":"#VALUE!"}},{"$f":"IF(ISERROR($D337),VLOOKUP($A337,Analysis!$A:$U,18,FALSE),#N/A)","v":{"$error":"#VALUE!"}},{"$error":"#VALUE!"},{"$error":"#VALUE!"},{"$error":"#VALUE!"},null,{"$f":"VLOOKUP($A337,Analysis!$A:$U,10,FALSE)","v":{"$error":"#VALUE!"}},{"$f":"IF(VLOOKUP($A337,Analysis!$A:$U,3,FALSE)=1,ROUND(VLOOKUP($A337,Analysis!$A:$U,17,FALSE),0),#N/A)","v":{"$error":"#VALUE!"}},{"$f":"IF(ISERROR($K337),ROUND(VLOOKUP($A337,Analysis!$A:$U,17,FALSE),0),#N/A)","v":{"$error":"#VALUE!"}},{"$error":"#VALUE!"},{"$error":"#VALUE!"},{"$error":"#VALUE!"}]
[{"$error":"#VALUE!"},{"$error":"#VALUE!"},{"$f":"VLOOKUP($A338,Analysis!$A:$U,11,FALSE)","v":{"$error":"#VALUE!"}},{"$f":"IF(VLOOKUP($A338,Analysis!$A:$U,3,FALSE)=1,VLOOKUP($A338,Analysis!$A:$U,18,FALSE),#N/A)","v":{"$error":"#VALUE!"}},{"$f":"IF(ISERROR($D338),VLOOKUP($A338,Analysis!$A:$U,18,FALSE),#N/A)","v":{"$error":"#VALUE!"}},{"$error":"#VALUE!"},{"$error":"#VALUE!"},{"$error":"#VALUE!"},null,{"$f":"VLOOKUP($A338,Analysis!$A:$U,10,FALSE)","v":{"$error":"#VALUE!"}},{"$f":"IF(VLOOKUP($A338,Analysis!$A:$U,3,FALSE)=1,ROUND(VLOOKUP($A338,Analysis!$A:$U,17,FALSE),0),#N/A)","v":{"$error":"#VALUE!"}},{"$f":"IF(ISERROR($K338),ROUND(VLOOKUP($A338,Analysis!$A:$U,17,FALSE),0),#N/A)","v":{"$error":"#VALUE!"}},{"$error":"#VALUE!"},{"$error":"#VALUE!"},{"$error":"#VALUE!"}]
[{"$error":"#VALUE!"},{"$error":"#VALUE!"},{"$f":"VLOOKUP($A339,Analysis!$A:$U,11,FALSE)","v":{"$error":"#VALUE!"}},{"$f":"IF(VLOOKUP($A339,Analysis!$A:$U,3,FALSE)=1,VLOOKUP($A339,Analysis!$A:$U,18,FALSE),#N/A)","v":{"$error":"#VALUE!"}},{"$f":"IF(ISERROR($D339),VLOOKUP($A339,Analysis!$A:$U,18,FALSE),#N/A)","v":{"$error":"#VALUE!"}},{"$error":"#VALUE!"},{"$error":"#VALUE!"},{"$error":"#VALUE!"},null,{"$f":"VLOOKUP($A339,Analysis!$A:$U,10,FALSE)","v":{"$error":"#VALUE!"}},{"$f":"IF(VLOOKUP($A339,Analysis!$A:$U,3,FALSE)=1,ROUND(VLOOKUP($A339,Analysis!$A:$U,17,FALSE),0),#N/A)","v":{"$error":"#VALUE!"}},{"$f":"IF(ISERROR($K339),ROUND(VLOOKUP($A339,Analysis!$A:$U,17,FALSE),0),#N/A)","v":{"$error":"#VALUE!"}},{"$error":"#VALUE!"},{"$error":"#VALUE!"},{"$error":"#VALUE!"}]
[{"$error":"#VALUE!"},{"$error":"#VALUE!"},{"$f":"VLOOKUP($A340,Analysis!$A:$U,11,FALSE)","v":{"$error":"#VALUE!"}},{"$f":"IF(VLOOKUP($A340,Analysis!$A:$U,3,FALSE)=1,VLOOKUP($A340,Analysis!$A:$U,18,FALSE),#N/A)","v":{"$error":"#VALUE!"}},{"$f":"IF(ISERROR($D340),VLOOKUP($A340,Analysis!$A:$U,18,FALSE),#N/A)","v":{"$error":"#VALUE!"}},{"$error":"#VALUE!"},{"$error":"#VALUE!"},{"$error":"#VALUE!"},null,{"$f":"VLOOKUP($A340,Analysis!$A:$U,10,FALSE)","v":{"$error":"#VALUE!"}},{"$f":"IF(VLOOKUP($A340,Analysis!$A:$U,3,FALSE)=1,ROUND(VLOOKUP($A340,Analysis!$A:$U,17,FALSE),0),#N/A)","v":{"$error":"#VALUE!"}},{"$f":"IF(ISERROR($K340),ROUND(VLOOKUP($A340,Analysis!$A:$U,17,FALSE),0),#N/A)","v":{"$error":"#VALUE!"}},{"$error":"#VALUE!"},{"$error":"#VALUE!"},{"$error":"#VALUE!"}]
[{"$error":"#VALUE!"},{"$error":"#VALUE!"},{"$f":"VLOOKUP($A341,Analysis!$A:$U,11,FALSE)","v":{"$error":"#VALUE!"}},{"$f":"IF(VLOOKUP($A341,Analysis!$A:$U,3,FALSE)=1,VLOOKUP($A341,Analysis!$A:$U,18,FALSE),#N/A)","v":{"$error":"#VALUE!"}},{"$f":"IF(ISERROR($D341),VLOOKUP($A341,Analysis!$A:$U,18,FALSE),#N/A)","v":{"$error":"#VALUE!"}},{"$error":"#VALUE!"},{"$error":"#VALUE!"},{"$error":"#VALUE!"},null,{"$f":"VLOOKUP($A341,Analysis!$A:$U,10,FALSE)","v":{"$error":"#VALUE!"}},{"$f":"IF(VLOOKUP($A341,Analysis!$A:$U,3,FALSE)=1,ROUND(VLOOKUP($A341,Analysis!$A:$U,17,FALSE),0),#N/A)","v":{"$error":"#VALUE!"}},{"$f":"IF(ISERROR($K341),ROUND(VLOOKUP($A341,Analysis!$A:$U,17,FALSE),0),#N/A)","v":{"$error":"#VALUE!"}},{"$error":"#VALUE!"},{"$error":"#VALUE!"},{"$error":"#VALUE!"}]
[{"$error":"#VALUE!"},{"$error":"#VALUE!"},{"$f":"VLOOKUP($A342,Analysis!$A:$U,11,FALSE)","v":{"$error":"#VALUE!"}},{"$f":"IF(VLOOKUP($A342,Analysis!$A:$U,3,FALSE)=1,VLOOKUP($A342,Analysis!$A:$U,18,FALSE),#N/A)","v":{"$error":"#VALUE!"}},{"$f":"IF(ISERROR($D342),VLOOKUP($A342,Analysis!$A:$U,18,FALSE),#N/A)","v":{"$error":"#VALUE!"}},{"$error":"#VALUE!"},{"$error":"#VALUE!"},{"$error":"#VALUE!"},null,{"$f":"VLOOKUP($A342,Analysis!$A:$U,10,FALSE)","v":{"$error":"#VALUE!"}},{"$f":"IF(VLOOKUP($A342,Analysis!$A:$U,3,FALSE)=1,ROUND(VLOOKUP($A342,Analysis!$A:$U,17,FALSE),0),#N/A)","v":{"$error":"#VALUE!"}},{"$f":"IF(ISERROR($K342),ROUND(VLOOKUP($A342,Analysis!$A:$U,17,FALSE),0),#N/A)","v":{"$error":"#VALUE!"}},{"$error":"#VALUE!"},{"$error":"#VALUE!"},{"$error":"#VALUE!"}]
[{"$error":"#VALUE!"},{"$error":"#VALUE!"},{"$f":"VLOOKUP($A343,Analysis!$A:$U,11,FALSE)","v":{"$error":"#VALUE!"}},{"$f":"IF(VLOOKUP($A343,Analysis!$A:$U,3,FALSE)=1,VLOOKUP($A343,Analysis!$A:$U,18,FALSE),#N/A)","v":{"$error":"#VALUE!"}},{"$f":"IF(ISERROR($D343),VLOOKUP($A343,Analysis!$A:$U,18,FALSE),#N/A)","v":{"$error":"#VALUE!"}},{"$error":"#VALUE!"},{"$error":"#VALUE!"},{"$error":"#VALUE!"},null,{"$f":"VLOOKUP($A343,Analysis!$A:$U,10,FALSE)","v":{"$error":"#VALUE!"}},{"$f":"IF(VLOOKUP($A343,Analysis!$A:$U,3,FALSE)=1,ROUND(VLOOKUP($A343,Analysis!$A:$U,17,FALSE),0),#N/A)","v":{"$error":"#VALUE!"}},{"$f":"IF(ISERROR($K343),ROUND(VLOOKUP($A343,Analysis!$A:$U,17,FALSE),0),#N/A)","v":{"$error":"#VALUE!"}},{"$error":"#VALUE!"},{"$error":"#VALUE!"},{"$error":"#VALUE!"}]
[{"$error":"#VALUE!"},{"$error":"#VALUE!"},{"$f":"VLOOKUP($A344,Analysis!$A:$U,11,FALSE)","v":{"$error":"#VALUE!"}},{"$f":"IF(VLOOKUP($A344,Analysis!$A:$U,3,FALSE)=1,VLOOKUP($A344,Analysis!$A:$U,18,FALSE),#N/A)","v":{"$error":"#VALUE!"}},{"$f":"IF(ISERROR($D344),VLOOKUP($A344,Analysis!$A:$U,18,FALSE),#N/A)","v":{"$error":"#VALUE!"}},{"$error":"#VALUE!"},{"$error":"#VALUE!"},{"$error":"#VALUE!"},null,{"$f":"VLOOKUP($A344,Analysis!$A:$U,10,FALSE)","v":{"$error":"#VALUE!"}},{"$f":"IF(VLOOKUP($A344,Analysis!$A:$U,3,FALSE)=1,ROUND(VLOOKUP($A344,Analysis!$A:$U,17,FALSE),0),#N/A)","v":{"$error":"#VALUE!"}},{"$f":"IF(ISERROR($K344),ROUND(VLOOKUP($A344,Analysis!$A:$U,17,FALSE),0),#N/A)","v":{"$error":"#VALUE!"}},{"$error":"#VALUE!"},{"$error":"#VALUE!"},{"$error":"#VALUE!"}]
[{"$error":"#VALUE!"},{"$error":"#VALUE!"},{"$f":"VLOOKUP($A345,Analysis!$A:$U,11,FALSE)","v":{"$error":"#VALUE!"}},{"$f":"IF(VLOOKUP($A345,Analysis!$A:$U,3,FALSE)=1,VLOOKUP($A345,Analysis!$A:$U,18,FALSE),#N/A)","v":{"$error":"#VALUE!"}},{"$f":"IF(ISERROR($D345),VLOOKUP($A345,Analysis!$A:$U,18,FALSE),#N/A)","v":{"$error":"#VALUE!"}},{"$error":"#VALUE!"},{"$error":"#VALUE!"},{"$error":"#VALUE!"},null,{"$f":"VLOOKUP($A345,Analysis!$A:$U,10,FALSE)","v":{"$error":"#VALUE!"}},{"$f":"IF(VLOOKUP($A345,Analysis!$A:$U,3,FALSE)=1,ROUND(VLOOKUP($A345,Analysis!$A:$U,17,FALSE),0),#N/A)","v":{"$error":"#VALUE!"}},{"$f":"IF(ISERROR($K345),ROUND(VLOOKUP($A345,Analysis!$A:$U,17,FALSE),0),#N/A)","v":{"$error":"#VALUE!"}},{"$error":"#VALUE!"},{"$error":"#VALUE!"},{"$error":"#VALUE!"}]
[{"$error":"#VALUE!"},{"$error":"#VALUE!"},{"$f":"VLOOKUP($A346,Analysis!$A:$U,11,FALSE)","v":{"$error":"#VALUE!"}},{"$f":"IF(VLOOKUP($A346,Analysis!$A:$U,3,FALSE)=1,VLOOKUP($A346,Analysis!$A:$U,18,FALSE),#N/A)","v":{"$error":"#VALUE!"}},{"$f":"IF(ISERROR($D346),VLOOKUP($A346,Analysis!$A:$U,18,FALSE),#N/A)","v":{"$error":"#VALUE!"}},{"$error":"#VALUE!"},{"$error":"#VALUE!"},{"$error":"#VALUE!"},null,{"$f":"VLOOKUP($A346,Analysis!$A:$U,10,FALSE)","v":{"$error":"#VALUE!"}},{"$f":"IF(VLOOKUP($A346,Analysis!$A:$U,3,FALSE)=1,ROUND(VLOOKUP($A346,Analysis!$A:$U,17,FALSE),0),#N/A)","v":{"$error":"#VALUE!"}},{"$f":"IF(ISERROR($K346),ROUND(VLOOKUP($A346,Analysis!$A:$U,17,FALSE),0),#N/A)","v":{"$error":"#VALUE!"}},{"$error":"#VALUE!"},{"$error":"#VALUE!"},{"$error":"#VALUE!"}]
[{"$error":"#VALUE!"},{"$error":"#VALUE!"},{"$f":"VLOOKUP($A347,Analysis!$A:$U,11,FALSE)","v":{"$error":"#VALUE!"}},{"$f":"IF(VLOOKUP($A347,Analysis!$A:$U,3,FALSE)=1,VLOOKUP($A347,Analysis!$A:$U,18,FALSE),#N/A)","v":{"$error":"#VALUE!"}},{"$f":"IF(ISERROR($D347),VLOOKUP($A347,Analysis!$A:$U,18,FALSE),#N/A)","v":{"$error":"#VALUE!"}},{"$error":"#VALUE!"},{"$error":"#VALUE!"},{"$error":"#VALUE!"},null,{"$f":"VLOOKUP($A347,Analysis!$A:$U,10,FALSE)","v":{"$error":"#VALUE!"}},{"$f":"IF(VLOOKUP($A347,Analysis!$A:$U,3,FALSE)=1,ROUND(VLOOKUP($A347,Analysis!$A:$U,17,FALSE),0),#N/A)","v":{"$error":"#VALUE!"}},{"$f":"IF(ISERROR($K347),ROUND(VLOOKUP($A347,Analysis!$A:$U,17,FALSE),0),#N/A)","v":{"$error":"#VALUE!"}},{"$error":"#VALUE!"},{"$error":"#VALUE!"},{"$error":"#VALUE!"}]
[{"$error":"#VALUE!"},{"$error":"#VALUE!"},{"$f":"VLOOKUP($A348,Analysis!$A:$U,11,FALSE)","v":{"$error":"#VALUE!"}},{"$f":"IF(VLOOKUP($A348,Analysis!$A:$U,3,FALSE)=1,VLOOKUP($A348,Analysis!$A:$U,18,FALSE),#N/A)","v":{"$error":"#VALUE!"}},{"$f":"IF(ISERROR($D348),VLOOKUP($A348,Analysis!$A:$U,18,FALSE),#N/A)","v":{"$error":"#VALUE!"}},{"$error":"#VALUE!"},{"$error":"#VALUE!"},{"$error":"#VALUE!"},null,{"$f":"VLOOKUP($A348,Analysis!$A:$U,10,FALSE)","v":{"$error":"#VALUE!"}},{"$f":"IF(VLOOKUP($A348,Analysis!$A:$U,3,FALSE)=1,ROUND(VLOOKUP($A348,Analysis!$A:$U,17,FALSE),0),#N/A)","v":{"$error":"#VALUE!"}},{"$f":"IF(ISERROR($K348),ROUND(VLOOKUP($A348,Analysis!$A:$U,17,FALSE),0),#N/A)","v":{"$error":"#VALUE!"}},{"$error":"#VALUE!"},{"$error":"#VALUE!"},{"$error":"#VALUE!"}]
[{"$error":"#VALUE!"},{"$error":"#VALUE!"},{"$f":"VLOOKUP($A349,Analysis!$A:$U,11,FALSE)","v":{"$error":"#VALUE!"}},{"$f":"IF(VLOOKUP($A349,Analysis!$A:$U,3,FALSE)=1,VLOOKUP($A349,Analysis!$A:$U,18,FALSE),#N/A)","v":{"$error":"#VALUE!"}},{"$f":"IF(ISERROR($D349),VLOOKUP($A349,Analysis!$A:$U,18,FALSE),#N/A)","v":{"$error":"#VALUE!"}},{"$error":"#VALUE!"},{"$error":"#VALUE!"},{"$error":"#VALUE!"},null,{"$f":"VLOOKUP($A349,Analysis!$A:$U,10,FALSE)","v":{"$error":"#VALUE!"}},{"$f":"IF(VLOOKUP($A349,Analysis!$A:$U,3,FALSE)=1,ROUND(VLOOKUP($A349,Analysis!$A:$U,17,FALSE),0),#N/A)","v":{"$error":"#VALUE!"}},{"$f":"IF(ISERROR($K349),ROUND(VLOOKUP($A349,Analysis!$A:$U,17,FALSE),0),#N/A)","v":{"$error":"#VALUE!"}},{"$error":"#VALUE!"},{"$error":"#VALUE!"},{"$error":"#VALUE!"}]
[{"$error":"#VALUE!"},{"$error":"#VALUE!"},{"$f":"VLOOKUP($A350,Analysis!$A:$U,11,FALSE)","v":{"$error":"#VALUE!"}},{"$f":"IF(VLOOKUP($A350,Analysis!$A:$U,3,FALSE)=1,VLOOKUP($A350,Analysis!$A:$U,18,FALSE),#N/A)","v":{"$error":"#VALUE!"}},{"$f":"IF(ISERROR($D350),VLOOKUP($A350,Analysis!$A:$U,18,FALSE),#N/A)","v":{"$error":"#VALUE!"}},{"$error":"#VALUE!"},{"$error":"#VALUE!"},{"$error":"#VALUE!"},null,{"$f":"VLOOKUP($A350,Analysis!$A:$U,10,FALSE)","v":{"$error":"#VALUE!"}},{"$f":"IF(VLOOKUP($A350,Analysis!$A:$U,3,FALSE)=1,ROUND(VLOOKUP($A350,Analysis!$A:$U,17,FALSE),0),#N/A)","v":{"$error":"#VALUE!"}},{"$f":"IF(ISERROR($K350),ROUND(VLOOKUP($A350,Analysis!$A:$U,17,FALSE),0),#N/A)","v":{"$error":"#VALUE!"}},{"$error":"#VALUE!"},{"$error":"#VALUE!"},{"$error":"#VALUE!"}]
[{"$error":"#VALUE!"},{"$error":"#VALUE!"},{"$f":"VLOOKUP($A351,Analysis!$A:$U,11,FALSE)","v":{"$error":"#VALUE!"}},{"$f":"IF(VLOOKUP($A351,Analysis!$A:$U,3,FALSE)=1,VLOOKUP($A351,Analysis!$A:$U,18,FALSE),#N/A)","v":{"$error":"#VALUE!"}},{"$f":"IF(ISERROR($D351),VLOOKUP($A351,Analysis!$A:$U,18,FALSE),#N/A)","v":{"$error":"#VALUE!"}},{"$error":"#VALUE!"},{"$error":"#VALUE!"},{"$error":"#VALUE!"},null,{"$f":"VLOOKUP($A351,Analysis!$A:$U,10,FALSE)","v":{"$error":"#VALUE!"}},{"$f":"IF(VLOOKUP($A351,Analysis!$A:$U,3,FALSE)=1,ROUND(VLOOKUP($A351,Analysis!$A:$U,17,FALSE),0),#N/A)","v":{"$error":"#VALUE!"}},{"$f":"IF(ISERROR($K351),ROUND(VLOOKUP($A351,Analysis!$A:$U,17,FALSE),0),#N/A)","v":{"$error":"#VALUE!"}},{"$error":"#VALUE!"},{"$error":"#VALUE!"},{"$error":"#VALUE!"}]
[{"$error":"#VALUE!"},{"$error":"#VALUE!"},{"$f":"VLOOKUP($A352,Analysis!$A:$U,11,FALSE)","v":{"$error":"#VALUE!"}},{"$f":"IF(VLOOKUP($A352,Analysis!$A:$U,3,FALSE)=1,VLOOKUP($A352,Analysis!$A:$U,18,FALSE),#N/A)","v":{"$error":"#VALUE!"}},{"$f":"IF(ISERROR($D352),VLOOKUP($A352,Analysis!$A:$U,18,FALSE),#N/A)","v":{"$error":"#VALUE!"}},{"$error":"#VALUE!"},{"$error":"#VALUE!"},{"$error":"#VALUE!"},null,{"$f":"VLOOKUP($A352,Analysis!$A:$U,10,FALSE)","v":{"$error":"#VALUE!"}},{"$f":"IF(VLOOKUP($A352,Analysis!$A:$U,3,FALSE)=1,ROUND(VLOOKUP($A352,Analysis!$A:$U,17,FALSE),0),#N/A)","v":{"$error":"#VALUE!"}},{"$f":"IF(ISERROR($K352),ROUND(VLOOKUP($A352,Analysis!$A:$U,17,FALSE),0),#N/A)","v":{"$error":"#VALUE!"}},{"$error":"#VALUE!"},{"$error":"#VALUE!"},{"$error":"#VALUE!"}]
[{"$error":"#VALUE!"},{"$error":"#VALUE!"},{"$f":"VLOOKUP($A353,Analysis!$A:$U,11,FALSE)","v":{"$error":"#VALUE!"}},{"$f":"IF(VLOOKUP($A353,Analysis!$A:$U,3,FALSE)=1,VLOOKUP($A353,Analysis!$A:$U,18,FALSE),#N/A)","v":{"$error":"#VALUE!"}},{"$f":"IF(ISERROR($D353),VLOOKUP($A353,Analysis!$A:$U,18,FALSE),#N/A)","v":{"$error":"#VALUE!"}},{"$error":"#VALUE!"},{"$error":"#VALUE!"},{"$error":"#VALUE!"},null,{"$f":"VLOOKUP($A353,Analysis!$A:$U,10,FALSE)","v":{"$error":"#VALUE!"}},{"$f":"IF(VLOOKUP($A353,Analysis!$A:$U,3,FALSE)=1,ROUND(VLOOKUP($A353,Analysis!$A:$U,17,FALSE),0),#N/A)","v":{"$error":"#VALUE!"}},{"$f":"IF(ISERROR($K353),ROUND(VLOOKUP($A353,Analysis!$A:$U,17,FALSE),0),#N/A)","v":{"$error":"#VALUE!"}},{"$error":"#VALUE!"},{"$error":"#VALUE!"},{"$error":"#VALUE!"}]
[{"$error":"#VALUE!"},{"$error":"#VALUE!"},{"$f":"VLOOKUP($A354,Analysis!$A:$U,11,FALSE)","v":{"$error":"#VALUE!"}},{"$f":"IF(VLOOKUP($A354,Analysis!$A:$U,3,FALSE)=1,VLOOKUP($A354,Analysis!$A:$U,18,FALSE),#N/A)","v":{"$error":"#VALUE!"}},{"$f":"IF(ISERROR($D354),VLOOKUP($A354,Analysis!$A:$U,18,FALSE),#N/A)","v":{"$error":"#VALUE!"}},{"$error":"#VALUE!"},{"$error":"#VALUE!"},{"$error":"#VALUE!"},null,{"$f":"VLOOKUP($A354,Analysis!$A:$U,10,FALSE)","v":{"$error":"#VALUE!"}},{"$f":"IF(VLOOKUP($A354,Analysis!$A:$U,3,FALSE)=1,ROUND(VLOOKUP($A354,Analysis!$A:$U,17,FALSE),0),#N/A)","v":{"$error":"#VALUE!"}},{"$f":"IF(ISERROR($K354),ROUND(VLOOKUP($A354,Analysis!$A:$U,17,FALSE),0),#N/A)","v":{"$error":"#VALUE!"}},{"$error":"#VALUE!"},{"$error":"#VALUE!"},{"$error":"#VALUE!"}]
[{"$error":"#VALUE!"},{"$error":"#VALUE!"},{"$f":"VLOOKUP($A355,Analysis!$A:$U,11,FALSE)","v":{"$error":"#VALUE!"}},{"$f":"IF(VLOOKUP($A355,Analysis!$A:$U,3,FALSE)=1,VLOOKUP($A355,Analysis!$A:$U,18,FALSE),#N/A)","v":{"$error":"#VALUE!"}},{"$f":"IF(ISERROR($D355),VLOOKUP($A355,Analysis!$A:$U,18,FALSE),#N/A)","v":{"$error":"#VALUE!"}},{"$error":"#VALUE!"},{"$error":"#VALUE!"},{"$error":"#VALUE!"},null,{"$f":"VLOOKUP($A355,Analysis!$A:$U,10,FALSE)","v":{"$error":"#VALUE!"}},{"$f":"IF(VLOOKUP($A355,Analysis!$A:$U,3,FALSE)=1,ROUND(VLOOKUP($A355,Analysis!$A:$U,17,FALSE),0),#N/A)","v":{"$error":"#VALUE!"}},{"$f":"IF(ISERROR($K355),ROUND(VLOOKUP($A355,Analysis!$A:$U,17,FALSE),0),#N/A)","v":{"$error":"#VALUE!"}},{"$error":"#VALUE!"},{"$error":"#VALUE!"},{"$error":"#VALUE!"}]
[{"$error":"#VALUE!"},{"$error":"#VALUE!"},{"$f":"VLOOKUP($A356,Analysis!$A:$U,11,FALSE)","v":{"$error":"#VALUE!"}},{"$f":"IF(VLOOKUP($A356,Analysis!$A:$U,3,FALSE)=1,VLOOKUP($A356,Analysis!$A:$U,18,FALSE),#N/A)","v":{"$error":"#VALUE!"}},{"$f":"IF(ISERROR($D356),VLOOKUP($A356,Analysis!$A:$U,18,FALSE),#N/A)","v":{"$error":"#VALUE!"}},{"$error":"#VALUE!"},{"$error":"#VALUE!"},{"$error":"#VALUE!"},null,{"$f":"VLOOKUP($A356,Analysis!$A:$U,10,FALSE)","v":{"$error":"#VALUE!"}},{"$f":"IF(VLOOKUP($A356,Analysis!$A:$U,3,FALSE)=1,ROUND(VLOOKUP($A356,Analysis!$A:$U,17,FALSE),0),#N/A)","v":{"$error":"#VALUE!"}},{"$f":"IF(ISERROR($K356),ROUND(VLOOKUP($A356,Analysis!$A:$U,17,FALSE),0),#N/A)","v":{"$error":"#VALUE!"}},{"$error":"#VALUE!"},{"$error":"#VALUE!"},{"$error":"#VALUE!"}]
[{"$error":"#VALUE!"},{"$error":"#VALUE!"},{"$f":"VLOOKUP($A357,Analysis!$A:$U,11,FALSE)","v":{"$error":"#VALUE!"}},{"$f":"IF(VLOOKUP($A357,Analysis!$A:$U,3,FALSE)=1,VLOOKUP($A357,Analysis!$A:$U,18,FALSE),#N/A)","v":{"$error":"#VALUE!"}},{"$f":"IF(ISERROR($D357),VLOOKUP($A357,Analysis!$A:$U,18,FALSE),#N/A)","v":{"$error":"#VALUE!"}},{"$error":"#VALUE!"},{"$error":"#VALUE!"},{"$error":"#VALUE!"},null,{"$f":"VLOOKUP($A357,Analysis!$A:$U,10,FALSE)","v":{"$error":"#VALUE!"}},{"$f":"IF(VLOOKUP($A357,Analysis!$A:$U,3,FALSE)=1,ROUND(VLOOKUP($A357,Analysis!$A:$U,17,FALSE),0),#N/A)","v":{"$error":"#VALUE!"}},{"$f":"IF(ISERROR($K357),ROUND(VLOOKUP($A357,Analysis!$A:$U,17,FALSE),0),#N/A)","v":{"$error":"#VALUE!"}},{"$error":"#VALUE!"},{"$error":"#VALUE!"},{"$error":"#VALUE!"}]
[{"$error":"#VALUE!"},{"$error":"#VALUE!"},{"$f":"VLOOKUP($A358,Analysis!$A:$U,11,FALSE)","v":{"$error":"#VALUE!"}},{"$f":"IF(VLOOKUP($A358,Analysis!$A:$U,3,FALSE)=1,VLOOKUP($A358,Analysis!$A:$U,18,FALSE),#N/A)","v":{"$error":"#VALUE!"}},{"$f":"IF(ISERROR($D358),VLOOKUP($A358,Analysis!$A:$U,18,FALSE),#N/A)","v":{"$error":"#VALUE!"}},{"$error":"#VALUE!"},{"$error":"#VALUE!"},{"$error":"#VALUE!"},null,{"$f":"VLOOKUP($A358,Analysis!$A:$U,10,FALSE)","v":{"$error":"#VALUE!"}},{"$f":"IF(VLOOKUP($A358,Analysis!$A:$U,3,FALSE)=1,ROUND(VLOOKUP($A358,Analysis!$A:$U,17,FALSE),0),#N/A)","v":{"$error":"#VALUE!"}},{"$f":"IF(ISERROR($K358),ROUND(VLOOKUP($A358,Analysis!$A:$U,17,FALSE),0),#N/A)","v":{"$error":"#VALUE!"}},{"$error":"#VALUE!"},{"$error":"#VALUE!"},{"$error":"#VALUE!"}]
[{"$error":"#VALUE!"},{"$error":"#VALUE!"},{"$f":"VLOOKUP($A359,Analysis!$A:$U,11,FALSE)","v":{"$error":"#VALUE!"}},{"$f":"IF(VLOOKUP($A359,Analysis!$A:$U,3,FALSE)=1,VLOOKUP($A359,Analysis!$A:$U,18,FALSE),#N/A)","v":{"$error":"#VALUE!"}},{"$f":"IF(ISERROR($D359),VLOOKUP($A359,Analysis!$A:$U,18,FALSE),#N/A)","v":{"$error":"#VALUE!"}},{"$error":"#VALUE!"},{"$error":"#VALUE!"},{"$error":"#VALUE!"},null,{"$f":"VLOOKUP($A359,Analysis!$A:$U,10,FALSE)","v":{"$error":"#VALUE!"}},{"$f":"IF(VLOOKUP($A359,Analysis!$A:$U,3,FALSE)=1,ROUND(VLOOKUP($A359,Analysis!$A:$U,17,FALSE),0),#N/A)","v":{"$error":"#VALUE!"}},{"$f":"IF(ISERROR($K359),ROUND(VLOOKUP($A359,Analysis!$A:$U,17,FALSE),0),#N/A)","v":{"$error":"#VALUE!"}},{"$error":"#VALUE!"},{"$error":"#VALUE!"},{"$error":"#VALUE!"}]
[{"$error":"#VALUE!"},{"$error":"#VALUE!"},{"$f":"VLOOKUP($A360,Analysis!$A:$U,11,FALSE)","v":{"$error":"#VALUE!"}},{"$f":"IF(VLOOKUP($A360,Analysis!$A:$U,3,FALSE)=1,VLOOKUP($A360,Analysis!$A:$U,18,FALSE),#N/A)","v":{"$error":"#VALUE!"}},{"$f":"IF(ISERROR($D360),VLOOKUP($A360,Analysis!$A:$U,18,FALSE),#N/A)","v":{"$error":"#VALUE!"}},{"$error":"#VALUE!"},{"$error":"#VALUE!"},{"$error":"#VALUE!"},null,{"$f":"VLOOKUP($A360,Analysis!$A:$U,10,FALSE)","v":{"$error":"#VALUE!"}},{"$f":"IF(VLOOKUP($A360,Analysis!$A:$U,3,FALSE)=1,ROUND(VLOOKUP($A360,Analysis!$A:$U,17,FALSE),0),#N/A)","v":{"$error":"#VALUE!"}},{"$f":"IF(ISERROR($K360),ROUND(VLOOKUP($A360,Analysis!$A:$U,17,FALSE),0),#N/A)","v":{"$error":"#VALUE!"}},{"$error":"#VALUE!"},{"$error":"#VALUE!"},{"$error":"#VALUE!"}]
[{"$error":"#VALUE!"},{"$error":"#VALUE!"},{"$f":"VLOOKUP($A361,Analysis!$A:$U,11,FALSE)","v":{"$error":"#VALUE!"}},{"$f":"IF(VLOOKUP($A361,Analysis!$A:$U,3,FALSE)=1,VLOOKUP($A361,Analysis!$A:$U,18,FALSE),#N/A)","v":{"$error":"#VALUE!"}},{"$f":"IF(ISERROR($D361),VLOOKUP($A361,Analysis!$A:$U,18,FALSE),#N/A)","v":{"$error":"#VALUE!"}},{"$error":"#VALUE!"},{"$error":"#VALUE!"},{"$error":"#VALUE!"},null,{"$f":"VLOOKUP($A361,Analysis!$A:$U,10,FALSE)","v":{"$error":"#VALUE!"}},{"$f":"IF(VLOOKUP($A361,Analysis!$A:$U,3,FALSE)=1,ROUND(VLOOKUP($A361,Analysis!$A:$U,17,FALSE),0),#N/A)","v":{"$error":"#VALUE!"}},{"$f":"IF(ISERROR($K361),ROUND(VLOOKUP($A361,Analysis!$A:$U,17,FALSE),0),#N/A)","v":{"$error":"#VALUE!"}},{"$error":"#VALUE!"},{"$error":"#VALUE!"},{"$error":"#VALUE!"}]
[{"$error":"#VALUE!"},{"$error":"#VALUE!"},{"$f":"VLOOKUP($A362,Analysis!$A:$U,11,FALSE)","v":{"$error":"#VALUE!"}},{"$f":"IF(VLOOKUP($A362,Analysis!$A:$U,3,FALSE)=1,VLOOKUP($A362,Analysis!$A:$U,18,FALSE),#N/A)","v":{"$error":"#VALUE!"}},{"$f":"IF(ISERROR($D362),VLOOKUP($A362,Analysis!$A:$U,18,FALSE),#N/A)","v":{"$error":"#VALUE!"}},{"$error":"#VALUE!"},{"$error":"#VALUE!"},{"$error":"#VALUE!"},null,{"$f":"VLOOKUP($A362,Analysis!$A:$U,10,FALSE)","v":{"$error":"#VALUE!"}},{"$f":"IF(VLOOKUP($A362,Analysis!$A:$U,3,FALSE)=1,ROUND(VLOOKUP($A362,Analysis!$A:$U,17,FALSE),0),#N/A)","v":{"$error":"#VALUE!"}},{"$f":"IF(ISERROR($K362),ROUND(VLOOKUP($A362,Analysis!$A:$U,17,FALSE),0),#N/A)","v":{"$error":"#VALUE!"}},{"$error":"#VALUE!"},{"$error":"#VALUE!"},{"$error":"#VALUE!"}]
[{"$error":"#VALUE!"},{"$error":"#VALUE!"},{"$f":"VLOOKUP($A363,Analysis!$A:$U,11,FALSE)","v":{"$error":"#VALUE!"}},{"$f":"IF(VLOOKUP($A363,Analysis!$A:$U,3,FALSE)=1,VLOOKUP($A363,Analysis!$A:$U,18,FALSE),#N/A)","v":{"$error":"#VALUE!"}},{"$f":"IF(ISERROR($D363),VLOOKUP($A363,Analysis!$A:$U,18,FALSE),#N/A)","v":{"$error":"#VALUE!"}},{"$error":"#VALUE!"},{"$error":"#VALUE!"},{"$error":"#VALUE!"},null,{"$f":"VLOOKUP($A363,Analysis!$A:$U,10,FALSE)","v":{"$error":"#VALUE!"}},{"$f":"IF(VLOOKUP($A363,Analysis!$A:$U,3,FALSE)=1,ROUND(VLOOKUP($A363,Analysis!$A:$U,17,FALSE),0),#N/A)","v":{"$error":"#VALUE!"}},{"$f":"IF(ISERROR($K363),ROUND(VLOOKUP($A363,Analysis!$A:$U,17,FALSE),0),#N/A)","v":{"$error":"#VALUE!"}},{"$error":"#VALUE!"},{"$error":"#VALUE!"},{"$error":"#VALUE!"}]
[{"$error":"#VALUE!"},{"$error":"#VALUE!"},{"$f":"VLOOKUP($A364,Analysis!$A:$U,11,FALSE)","v":{"$error":"#VALUE!"}},{"$f":"IF(VLOOKUP($A364,Analysis!$A:$U,3,FALSE)=1,VLOOKUP($A364,Analysis!$A:$U,18,FALSE),#N/A)","v":{"$error":"#VALUE!"}},{"$f":"IF(ISERROR($D364),VLOOKUP($A364,Analysis!$A:$U,18,FALSE),#N/A)","v":{"$error":"#VALUE!"}},{"$error":"#VALUE!"},{"$error":"#VALUE!"},{"$error":"#VALUE!"},null,{"$f":"VLOOKUP($A364,Analysis!$A:$U,10,FALSE)","v":{"$error":"#VALUE!"}},{"$f":"IF(VLOOKUP($A364,Analysis!$A:$U,3,FALSE)=1,ROUND(VLOOKUP($A364,Analysis!$A:$U,17,FALSE),0),#N/A)","v":{"$error":"#VALUE!"}},{"$f":"IF(ISERROR($K364),ROUND(VLOOKUP($A364,Analysis!$A:$U,17,FALSE),0),#N/A)","v":{"$error":"#VALUE!"}},{"$error":"#VALUE!"},{"$error":"#VALUE!"},{"$error":"#VALUE!"}]
[{"$error":"#VALUE!"},{"$error":"#VALUE!"},{"$f":"VLOOKUP($A365,Analysis!$A:$U,11,FALSE)","v":{"$error":"#VALUE!"}},{"$f":"IF(VLOOKUP($A365,Analysis!$A:$U,3,FALSE)=1,VLOOKUP($A365,Analysis!$A:$U,18,FALSE),#N/A)","v":{"$error":"#VALUE!"}},{"$f":"IF(ISERROR($D365),VLOOKUP($A365,Analysis!$A:$U,18,FALSE),#N/A)","v":{"$error":"#VALUE!"}},{"$error":"#VALUE!"},{"$error":"#VALUE!"},{"$error":"#VALUE!"},null,{"$f":"VLOOKUP($A365,Analysis!$A:$U,10,FALSE)","v":{"$error":"#VALUE!"}},{"$f":"IF(VLOOKUP($A365,Analysis!$A:$U,3,FALSE)=1,ROUND(VLOOKUP($A365,Analysis!$A:$U,17,FALSE),0),#N/A)","v":{"$error":"#VALUE!"}},{"$f":"IF(ISERROR($K365),ROUND(VLOOKUP($A365,Analysis!$A:$U,17,FALSE),0),#N/A)","v":{"$error":"#VALUE!"}},{"$error":"#VALUE!"},{"$error":"#VALUE!"},{"$error":"#VALUE!"}]
[{"$error":"#VALUE!"},{"$error":"#VALUE!"},{"$f":"VLOOKUP($A366,Analysis!$A:$U,11,FALSE)","v":{"$error":"#VALUE!"}},{"$f":"IF(VLOOKUP($A366,Analysis!$A:$U,3,FALSE)=1,VLOOKUP($A366,Analysis!$A:$U,18,FALSE),#N/A)","v":{"$error":"#VALUE!"}},{"$f":"IF(ISERROR($D366),VLOOKUP($A366,Analysis!$A:$U,18,FALSE),#N/A)","v":{"$error":"#VALUE!"}},{"$error":"#VALUE!"},{"$error":"#VALUE!"},{"$error":"#VALUE!"},null,{"$f":"VLOOKUP($A366,Analysis!$A:$U,10,FALSE)","v":{"$error":"#VALUE!"}},{"$f":"IF(VLOOKUP($A366,Analysis!$A:$U,3,FALSE)=1,ROUND(VLOOKUP($A366,Analysis!$A:$U,17,FALSE),0),#N/A)","v":{"$error":"#VALUE!"}},{"$f":"IF(ISERROR($K366),ROUND(VLOOKUP($A366,Analysis!$A:$U,17,FALSE),0),#N/A)","v":{"$error":"#VALUE!"}},{"$error":"#VALUE!"},{"$error":"#VALUE!"},{"$error":"#VALUE!"}]
[{"$error":"#VALUE!"},{"$error":"#VALUE!"},{"$f":"VLOOKUP($A367,Analysis!$A:$U,11,FALSE)","v":{"$error":"#VALUE!"}},{"$f":"IF(VLOOKUP($A367,Analysis!$A:$U,3,FALSE)=1,VLOOKUP($A367,Analysis!$A:$U,18,FALSE),#N/A)","v":{"$error":"#VALUE!"}},{"$f":"IF(ISERROR($D367),VLOOKUP($A367,Analysis!$A:$U,18,FALSE),#N/A)","v":{"$error":"#VALUE!"}},{"$error":"#VALUE!"},{"$error":"#VALUE!"},{"$error":"#VALUE!"},null,{"$f":"VLOOKUP($A367,Analysis!$A:$U,10,FALSE)","v":{"$error":"#VALUE!"}},{"$f":"IF(VLOOKUP($A367,Analysis!$A:$U,3,FALSE)=1,ROUND(VLOOKUP($A367,Analysis!$A:$U,17,FALSE),0),#N/A)","v":{"$error":"#VALUE!"}},{"$f":"IF(ISERROR($K367),ROUND(VLOOKUP($A367,Analysis!$A:$U,17,FALSE),0),#N/A)","v":{"$error":"#VALUE!"}},{"$error":"#VALUE!"},{"$error":"#VALUE!"},{"$error":"#VALUE!"}]
[{"$error":"#VALUE!"},{"$error":"#VALUE!"},{"$f":"VLOOKUP($A368,Analysis!$A:$U,11,FALSE)","v":{"$error":"#VALUE!"}},{"$f":"IF(VLOOKUP($A368,Analysis!$A:$U,3,FALSE)=1,VLOOKUP($A368,Analysis!$A:$U,18,FALSE),#N/A)","v":{"$error":"#VALUE!"}},{"$f":"IF(ISERROR($D368),VLOOKUP($A368,Analysis!$A:$U,18,FALSE),#N/A)","v":{"$error":"#VALUE!"}},{"$error":"#VALUE!"},{"$error":"#VALUE!"},{"$error":"#VALUE!"},null,{"$f":"VLOOKUP($A368,Analysis!$A:$U,10,FALSE)","v":{"$error":"#VALUE!"}},{"$f":"IF(VLOOKUP($A368,Analysis!$A:$U,3,FALSE)=1,ROUND(VLOOKUP($A368,Analysis!$A:$U,17,FALSE),0),#N/A)","v":{"$error":"#VALUE!"}},{"$f":"IF(ISERROR($K368),ROUND(VLOOKUP($A368,Analysis!$A:$U,17,FALSE),0),#N/A)","v":{"$error":"#VALUE!"}},{"$error":"#VALUE!"},{"$error":"#VALUE!"},{"$error":"#VALUE!"}]
[{"$error":"#VALUE!"},{"$error":"#VALUE!"},{"$f":"VLOOKUP($A369,Analysis!$A:$U,11,FALSE)","v":{"$error":"#VALUE!"}},{"$f":"IF(VLOOKUP($A369,Analysis!$A:$U,3,FALSE)=1,VLOOKUP($A369,Analysis!$A:$U,18,FALSE),#N/A)","v":{"$error":"#VALUE!"}},{"$f":"IF(ISERROR($D369),VLOOKUP($A369,Analysis!$A:$U,18,FALSE),#N/A)","v":{"$error":"#VALUE!"}},{"$error":"#VALUE!"},{"$error":"#VALUE!"},{"$error":"#VALUE!"},null,{"$f":"VLOOKUP($A369,Analysis!$A:$U,10,FALSE)","v":{"$error":"#VALUE!"}},{"$f":"IF(VLOOKUP($A369,Analysis!$A:$U,3,FALSE)=1,ROUND(VLOOKUP($A369,Analysis!$A:$U,17,FALSE),0),#N/A)","v":{"$error":"#VALUE!"}},{"$f":"IF(ISERROR($K369),ROUND(VLOOKUP($A369,Analysis!$A:$U,17,FALSE),0),#N/A)","v":{"$error":"#VALUE!"}},{"$error":"#VALUE!"},{"$error":"#VALUE!"},{"$error":"#VALUE!"}]
[{"$error":"#VALUE!"},{"$error":"#VALUE!"},{"$f":"VLOOKUP($A370,Analysis!$A:$U,11,FALSE)","v":{"$error":"#VALUE!"}},{"$f":"IF(VLOOKUP($A370,Analysis!$A:$U,3,FALSE)=1,VLOOKUP($A370,Analysis!$A:$U,18,FALSE),#N/A)","v":{"$error":"#VALUE!"}},{"$f":"IF(ISERROR($D370),VLOOKUP($A370,Analysis!$A:$U,18,FALSE),#N/A)","v":{"$error":"#VALUE!"}},{"$error":"#VALUE!"},{"$error":"#VALUE!"},{"$error":"#VALUE!"},null,{"$f":"VLOOKUP($A370,Analysis!$A:$U,10,FALSE)","v":{"$error":"#VALUE!"}},{"$f":"IF(VLOOKUP($A370,Analysis!$A:$U,3,FALSE)=1,ROUND(VLOOKUP($A370,Analysis!$A:$U,17,FALSE),0),#N/A)","v":{"$error":"#VALUE!"}},{"$f":"IF(ISERROR($K370),ROUND(VLOOKUP($A370,Analysis!$A:$U,17,FALSE),0),#N/A)","v":{"$error":"#VALUE!"}},{"$error":"#VALUE!"},{"$error":"#VALUE!"},{"$error":"#VALUE!"}]
[{"$error":"#VALUE!"},{"$error":"#VALUE!"},{"$f":"VLOOKUP($A371,Analysis!$A:$U,11,FALSE)","v":{"$error":"#VALUE!"}},{"$f":"IF(VLOOKUP($A371,Analysis!$A:$U,3,FALSE)=1,VLOOKUP($A371,Analysis!$A:$U,18,FALSE),#N/A)","v":{"$error":"#VALUE!"}},{"$f":"IF(ISERROR($D371),VLOOKUP($A371,Analysis!$A:$U,18,FALSE),#N/A)","v":{"$error":"#VALUE!"}},{"$error":"#VALUE!"},{"$error":"#VALUE!"},{"$error":"#VALUE!"},null,{"$f":"VLOOKUP($A371,Analysis!$A:$U,10,FALSE)","v":{"$error":"#VALUE!"}},{"$f":"IF(VLOOKUP($A371,Analysis!$A:$U,3,FALSE)=1,ROUND(VLOOKUP($A371,Analysis!$A:$U,17,FALSE),0),#N/A)","v":{"$error":"#VALUE!"}},{"$f":"IF(ISERROR($K371),ROUND(VLOOKUP($A371,Analysis!$A:$U,17,FALSE),0),#N/A)","v":{"$error":"#VALUE!"}},{"$error":"#VALUE!"},{"$error":"#VALUE!"},{"$error":"#VALUE!"}]
[{"$error":"#VALUE!"},{"$error":"#VALUE!"},{"$f":"VLOOKUP($A372,Analysis!$A:$U,11,FALSE)","v":{"$error":"#VALUE!"}},{"$f":"IF(VLOOKUP($A372,Analysis!$A:$U,3,FALSE)=1,VLOOKUP($A372,Analysis!$A:$U,18,FALSE),#N/A)","v":{"$error":"#VALUE!"}},{"$f":"IF(ISERROR($D372),VLOOKUP($A372,Analysis!$A:$U,18,FALSE),#N/A)","v":{"$error":"#VALUE!"}},{"$error":"#VALUE!"},{"$error":"#VALUE!"},{"$error":"#VALUE!"},null,{"$f":"VLOOKUP($A372,Analysis!$A:$U,10,FALSE)","v":{"$error":"#VALUE!"}},{"$f":"IF(VLOOKUP($A372,Analysis!$A:$U,3,FALSE)=1,ROUND(VLOOKUP($A372,Analysis!$A:$U,17,FALSE),0),#N/A)","v":{"$error":"#VALUE!"}},{"$f":"IF(ISERROR($K372),ROUND(VLOOKUP($A372,Analysis!$A:$U,17,FALSE),0),#N/A)","v":{"$error":"#VALUE!"}},{"$error":"#VALUE!"},{"$error":"#VALUE!"},{"$error":"#VALUE!"}]
[{"$error":"#VALUE!"},{"$error":"#VALUE!"},{"$f":"VLOOKUP($A373,Analysis!$A:$U,11,FALSE)","v":{"$error":"#VALUE!"}},{"$f":"IF(VLOOKUP($A373,Analysis!$A:$U,3,FALSE)=1,VLOOKUP($A373,Analysis!$A:$U,18,FALSE),#N/A)","v":{"$error":"#VALUE!"}},{"$f":"IF(ISERROR($D373),VLOOKUP($A373,Analysis!$A:$U,18,FALSE),#N/A)","v":{"$error":"#VALUE!"}},{"$error":"#VALUE!"},{"$error":"#VALUE!"},{"$error":"#VALUE!"},null,{"$f":"VLOOKUP($A373,Analysis!$A:$U,10,FALSE)","v":{"$error":"#VALUE!"}},{"$f":"IF(VLOOKUP($A373,Analysis!$A:$U,3,FALSE)=1,ROUND(VLOOKUP($A373,Analysis!$A:$U,17,FALSE),0),#N/A)","v":{"$error":"#VALUE!"}},{"$f":"IF(ISERROR($K373),ROUND(VLOOKUP($A373,Analysis!$A:$U,17,FALSE),0),#N/A)","v":{"$error":"#VALUE!"}},{"$error":"#VALUE!"},{"$error":"#VALUE!"},{"$error":"#VALUE!"}]
[{"$error":"#VALUE!"},{"$error":"#VALUE!"},{"$f":"VLOOKUP($A374,Analysis!$A:$U,11,FALSE)","v":{"$error":"#VALUE!"}},{"$f":"IF(VLOOKUP($A374,Analysis!$A:$U,3,FALSE)=1,VLOOKUP($A374,Analysis!$A:$U,18,FALSE),#N/A)","v":{"$error":"#VALUE!"}},{"$f":"IF(ISERROR($D374),VLOOKUP($A374,Analysis!$A:$U,18,FALSE),#N/A)","v":{"$error":"#VALUE!"}},{"$error":"#VALUE!"},{"$error":"#VALUE!"},{"$error":"#VALUE!"},null,{"$f":"VLOOKUP($A374,Analysis!$A:$U,10,FALSE)","v":{"$error":"#VALUE!"}},{"$f":"IF(VLOOKUP($A374,Analysis!$A:$U,3,FALSE)=1,ROUND(VLOOKUP($A374,Analysis!$A:$U,17,FALSE),0),#N/A)","v":{"$error":"#VALUE!"}},{"$f":"IF(ISERROR($K374),ROUND(VLOOKUP($A374,Analysis!$A:$U,17,FALSE),0),#N/A)","v":{"$error":"#VALUE!"}},{"$error":"#VALUE!"},{"$error":"#VALUE!"},{"$error":"#VALUE!"}]
[{"$error":"#VALUE!"},{"$error":"#VALUE!"},{"$f":"VLOOKUP($A375,Analysis!$A:$U,11,FALSE)","v":{"$error":"#VALUE!"}},{"$f":"IF(VLOOKUP($A375,Analysis!$A:$U,3,FALSE)=1,VLOOKUP($A375,Analysis!$A:$U,18,FALSE),#N/A)","v":{"$error":"#VALUE!"}},{"$f":"IF(ISERROR($D375),VLOOKUP($A375,Analysis!$A:$U,18,FALSE),#N/A)","v":{"$error":"#VALUE!"}},{"$error":"#VALUE!"},{"$error":"#VALUE!"},{"$error":"#VALUE!"},null,{"$f":"VLOOKUP($A375,Analysis!$A:$U,10,FALSE)","v":{"$error":"#VALUE!"}},{"$f":"IF(VLOOKUP($A375,Analysis!$A:$U,3,FALSE)=1,ROUND(VLOOKUP($A375,Analysis!$A:$U,17,FALSE),0),#N/A)","v":{"$error":"#VALUE!"}},{"$f":"IF(ISERROR($K375),ROUND(VLOOKUP($A375,Analysis!$A:$U,17,FALSE),0),#N/A)","v":{"$error":"#VALUE!"}},{"$error":"#VALUE!"},{"$error":"#VALUE!"},{"$error":"#VALUE!"}]
[{"$error":"#VALUE!"},{"$error":"#VALUE!"},{"$f":"VLOOKUP($A376,Analysis!$A:$U,11,FALSE)","v":{"$error":"#VALUE!"}},{"$f":"IF(VLOOKUP($A376,Analysis!$A:$U,3,FALSE)=1,VLOOKUP($A376,Analysis!$A:$U,18,FALSE),#N/A)","v":{"$error":"#VALUE!"}},{"$f":"IF(ISERROR($D376),VLOOKUP($A376,Analysis!$A:$U,18,FALSE),#N/A)","v":{"$error":"#VALUE!"}},{"$error":"#VALUE!"},{"$error":"#VALUE!"},{"$error":"#VALUE!"},null,{"$f":"VLOOKUP($A376,Analysis!$A:$U,10,FALSE)","v":{"$error":"#VALUE!"}},{"$f":"IF(VLOOKUP($A376,Analysis!$A:$U,3,FALSE)=1,ROUND(VLOOKUP($A376,Analysis!$A:$U,17,FALSE),0),#N/A)","v":{"$error":"#VALUE!"}},{"$f":"IF(ISERROR($K376),ROUND(VLOOKUP($A376,Analysis!$A:$U,17,FALSE),0),#N/A)","v":{"$error":"#VALUE!"}},{"$error":"#VALUE!"},{"$error":"#VALUE!"},{"$error":"#VALUE!"}]
[{"$error":"#VALUE!"},{"$error":"#VALUE!"},{"$f":"VLOOKUP($A377,Analysis!$A:$U,11,FALSE)","v":{"$error":"#VALUE!"}},{"$f":"IF(VLOOKUP($A377,Analysis!$A:$U,3,FALSE)=1,VLOOKUP($A377,Analysis!$A:$U,18,FALSE),#N/A)","v":{"$error":"#VALUE!"}},{"$f":"IF(ISERROR($D377),VLOOKUP($A377,Analysis!$A:$U,18,FALSE),#N/A)","v":{"$error":"#VALUE!"}},{"$error":"#VALUE!"},{"$error":"#VALUE!"},{"$error":"#VALUE!"},null,{"$f":"VLOOKUP($A377,Analysis!$A:$U,10,FALSE)","v":{"$error":"#VALUE!"}},{"$f":"IF(VLOOKUP($A377,Analysis!$A:$U,3,FALSE)=1,ROUND(VLOOKUP($A377,Analysis!$A:$U,17,FALSE),0),#N/A)","v":{"$error":"#VALUE!"}},{"$f":"IF(ISERROR($K377),ROUND(VLOOKUP($A377,Analysis!$A:$U,17,FALSE),0),#N/A)","v":{"$error":"#VALUE!"}},{"$error":"#VALUE!"},{"$error":"#VALUE!"},{"$error":"#VALUE!"}]
[{"$error":"#VALUE!"},{"$error":"#VALUE!"},{"$f":"VLOOKUP($A378,Analysis!$A:$U,11,FALSE)","v":{"$error":"#VALUE!"}},{"$f":"IF(VLOOKUP($A378,Analysis!$A:$U,3,FALSE)=1,VLOOKUP($A378,Analysis!$A:$U,18,FALSE),#N/A)","v":{"$error":"#VALUE!"}},{"$f":"IF(ISERROR($D378),VLOOKUP($A378,Analysis!$A:$U,18,FALSE),#N/A)","v":{"$error":"#VALUE!"}},{"$error":"#VALUE!"},{"$error":"#VALUE!"},{"$error":"#VALUE!"},null,{"$f":"VLOOKUP($A378,Analysis!$A:$U,10,FALSE)","v":{"$error":"#VALUE!"}},{"$f":"IF(VLOOKUP($A378,Analysis!$A:$U,3,FALSE)=1,ROUND(VLOOKUP($A378,Analysis!$A:$U,17,FALSE),0),#N/A)","v":{"$error":"#VALUE!"}},{"$f":"IF(ISERROR($K378),ROUND(VLOOKUP($A378,Analysis!$A:$U,17,FALSE),0),#N/A)","v":{"$error":"#VALUE!"}},{"$error":"#VALUE!"},{"$error":"#VALUE!"},{"$error":"#VALUE!"}]
[{"$error":"#VALUE!"},{"$error":"#VALUE!"},{"$f":"VLOOKUP($A379,Analysis!$A:$U,11,FALSE)","v":{"$error":"#VALUE!"}},{"$f":"IF(VLOOKUP($A379,Analysis!$A:$U,3,FALSE)=1,VLOOKUP($A379,Analysis!$A:$U,18,FALSE),#N/A)","v":{"$error":"#VALUE!"}},{"$f":"IF(ISERROR($D379),VLOOKUP($A379,Analysis!$A:$U,18,FALSE),#N/A)","v":{"$error":"#VALUE!"}},{"$error":"#VALUE!"},{"$error":"#VALUE!"},{"$error":"#VALUE!"},null,{"$f":"VLOOKUP($A379,Analysis!$A:$U,10,FALSE)","v":{"$error":"#VALUE!"}},{"$f":"IF(VLOOKUP($A379,Analysis!$A:$U,3,FALSE)=1,ROUND(VLOOKUP($A379,Analysis!$A:$U,17,FALSE),0),#N/A)","v":{"$error":"#VALUE!"}},{"$f":"IF(ISERROR($K379),ROUND(VLOOKUP($A379,Analysis!$A:$U,17,FALSE),0),#N/A)","v":{"$error":"#VALUE!"}},{"$error":"#VALUE!"},{"$error":"#VALUE!"},{"$error":"#VALUE!"}]
[{"$error":"#VALUE!"},{"$error":"#VALUE!"},{"$f":"VLOOKUP($A380,Analysis!$A:$U,11,FALSE)","v":{"$error":"#VALUE!"}},{"$f":"IF(VLOOKUP($A380,Analysis!$A:$U,3,FALSE)=1,VLOOKUP($A380,Analysis!$A:$U,18,FALSE),#N/A)","v":{"$error":"#VALUE!"}},{"$f":"IF(ISERROR($D380),VLOOKUP($A380,Analysis!$A:$U,18,FALSE),#N/A)","v":{"$error":"#VALUE!"}},{"$error":"#VALUE!"},{"$error":"#VALUE!"},{"$error":"#VALUE!"},null,{"$f":"VLOOKUP($A380,Analysis!$A:$U,10,FALSE)","v":{"$error":"#VALUE!"}},{"$f":"IF(VLOOKUP($A380,Analysis!$A:$U,3,FALSE)=1,ROUND(VLOOKUP($A380,Analysis!$A:$U,17,FALSE),0),#N/A)","v":{"$error":"#VALUE!"}},{"$f":"IF(ISERROR($K380),ROUND(VLOOKUP($A380,Analysis!$A:$U,17,FALSE),0),#N/A)","v":{"$error":"#VALUE!"}},{"$error":"#VALUE!"},{"$error":"#VALUE!"},{"$error":"#VALUE!"}]
[{"$error":"#VALUE!"},{"$error":"#VALUE!"},{"$f":"VLOOKUP($A381,Analysis!$A:$U,11,FALSE)","v":{"$error":"#VALUE!"}},{"$f":"IF(VLOOKUP($A381,Analysis!$A:$U,3,FALSE)=1,VLOOKUP($A381,Analysis!$A:$U,18,FALSE),#N/A)","v":{"$error":"#VALUE!"}},{"$f":"IF(ISERROR($D381),VLOOKUP($A381,Analysis!$A:$U,18,FALSE),#N/A)","v":{"$error":"#VALUE!"}},{"$error":"#VALUE!"},{"$error":"#VALUE!"},{"$error":"#VALUE!"},null,{"$f":"VLOOKUP($A381,Analysis!$A:$U,10,FALSE)","v":{"$error":"#VALUE!"}},{"$f":"IF(VLOOKUP($A381,Analysis!$A:$U,3,FALSE)=1,ROUND(VLOOKUP($A381,Analysis!$A:$U,17,FALSE),0),#N/A)","v":{"$error":"#VALUE!"}},{"$f":"IF(ISERROR($K381),ROUND(VLOOKUP($A381,Analysis!$A:$U,17,FALSE),0),#N/A)","v":{"$error":"#VALUE!"}},{"$error":"#VALUE!"},{"$error":"#VALUE!"},{"$error":"#VALUE!"}]
[{"$error":"#VALUE!"},{"$error":"#VALUE!"},{"$f":"VLOOKUP($A382,Analysis!$A:$U,11,FALSE)","v":{"$error":"#VALUE!"}},{"$f":"IF(VLOOKUP($A382,Analysis!$A:$U,3,FALSE)=1,VLOOKUP($A382,Analysis!$A:$U,18,FALSE),#N/A)","v":{"$error":"#VALUE!"}},{"$f":"IF(ISERROR($D382),VLOOKUP($A382,Analysis!$A:$U,18,FALSE),#N/A)","v":{"$error":"#VALUE!"}},{"$error":"#VALUE!"},{"$error":"#VALUE!"},{"$error":"#VALUE!"},null,{"$f":"VLOOKUP($A382,Analysis!$A:$U,10,FALSE)","v":{"$error":"#VALUE!"}},{"$f":"IF(VLOOKUP($A382,Analysis!$A:$U,3,FALSE)=1,ROUND(VLOOKUP($A382,Analysis!$A:$U,17,FALSE),0),#N/A)","v":{"$error":"#VALUE!"}},{"$f":"IF(ISERROR($K382),ROUND(VLOOKUP($A382,Analysis!$A:$U,17,FALSE),0),#N/A)","v":{"$error":"#VALUE!"}},{"$error":"#VALUE!"},{"$error":"#VALUE!"},{"$error":"#VALUE!"}]
[{"$error":"#VALUE!"},{"$error":"#VALUE!"},{"$f":"VLOOKUP($A383,Analysis!$A:$U,11,FALSE)","v":{"$error":"#VALUE!"}},{"$f":"IF(VLOOKUP($A383,Analysis!$A:$U,3,FALSE)=1,VLOOKUP($A383,Analysis!$A:$U,18,FALSE),#N/A)","v":{"$error":"#VALUE!"}},{"$f":"IF(ISERROR($D383),VLOOKUP($A383,Analysis!$A:$U,18,FALSE),#N/A)","v":{"$error":"#VALUE!"}},{"$error":"#VALUE!"},{"$error":"#VALUE!"},{"$error":"#VALUE!"},null,{"$f":"VLOOKUP($A383,Analysis!$A:$U,10,FALSE)","v":{"$error":"#VALUE!"}},{"$f":"IF(VLOOKUP($A383,Analysis!$A:$U,3,FALSE)=1,ROUND(VLOOKUP($A383,Analysis!$A:$U,17,FALSE),0),#N/A)","v":{"$error":"#VALUE!"}},{"$f":"IF(ISERROR($K383),ROUND(VLOOKUP($A383,Analysis!$A:$U,17,FALSE),0),#N/A)","v":{"$error":"#VALUE!"}},{"$error":"#VALUE!"},{"$error":"#VALUE!"},{"$error":"#VALUE!"}]
[{"$error":"#VALUE!"},{"$error":"#VALUE!"},{"$f":"VLOOKUP($A384,Analysis!$A:$U,11,FALSE)","v":{"$error":"#VALUE!"}},{"$f":"IF(VLOOKUP($A384,Analysis!$A:$U,3,FALSE)=1,VLOOKUP($A384,Analysis!$A:$U,18,FALSE),#N/A)","v":{"$error":"#VALUE!"}},{"$f":"IF(ISERROR($D384),VLOOKUP($A384,Analysis!$A:$U,18,FALSE),#N/A)","v":{"$error":"#VALUE!"}},{"$error":"#VALUE!"},{"$error":"#VALUE!"},{"$error":"#VALUE!"},null,{"$f":"VLOOKUP($A384,Analysis!$A:$U,10,FALSE)","v":{"$error":"#VALUE!"}},{"$f":"IF(VLOOKUP($A384,Analysis!$A:$U,3,FALSE)=1,ROUND(VLOOKUP($A384,Analysis!$A:$U,17,FALSE),0),#N/A)","v":{"$error":"#VALUE!"}},{"$f":"IF(ISERROR($K384),ROUND(VLOOKUP($A384,Analysis!$A:$U,17,FALSE),0),#N/A)","v":{"$error":"#VALUE!"}},{"$error":"#VALUE!"},{"$error":"#VALUE!"},{"$error":"#VALUE!"}]
[{"$error":"#VALUE!"},{"$error":"#VALUE!"},{"$f":"VLOOKUP($A385,Analysis!$A:$U,11,FALSE)","v":{"$error":"#VALUE!"}},{"$f":"IF(VLOOKUP($A385,Analysis!$A:$U,3,FALSE)=1,VLOOKUP($A385,Analysis!$A:$U,18,FALSE),#N/A)","v":{"$error":"#VALUE!"}},{"$f":"IF(ISERROR($D385),VLOOKUP($A385,Analysis!$A:$U,18,FALSE),#N/A)","v":{"$error":"#VALUE!"}},{"$error":"#VALUE!"},{"$error":"#VALUE!"},{"$error":"#VALUE!"},null,{"$f":"VLOOKUP($A385,Analysis!$A:$U,10,FALSE)","v":{"$error":"#VALUE!"}},{"$f":"IF(VLOOKUP($A385,Analysis!$A:$U,3,FALSE)=1,ROUND(VLOOKUP($A385,Analysis!$A:$U,17,FALSE),0),#N/A)","v":{"$error":"#VALUE!"}},{"$f":"IF(ISERROR($K385),ROUND(VLOOKUP($A385,Analysis!$A:$U,17,FALSE),0),#N/A)","v":{"$error":"#VALUE!"}},{"$error":"#VALUE!"},{"$error":"#VALUE!"},{"$error":"#VALUE!"}]
[{"$f":"Item_ID","v":{"$error":"#VALUE!"}},{"$f":"Valuation_Method","v":{"$error":"#VALUE!"}},{"$f":"VLOOKUP($A386,Analysis!$A:$U,11,FALSE)","v":{"$error":"#VALUE!"}},{"$f":"IF(VLOOKUP($A386,Analysis!$A:$U,3,FALSE)=1,VLOOKUP($A386,Analysis!$A:$U,18,FALSE),#N/A)","v":{"$error":"#VALUE!"}},{"$f":"IF(ISERROR($D386),VLOOKUP($A386,Analysis!$A:$U,18,FALSE),#N/A)","v":{"$error":"#VALUE!"}},{"$error":"#VALUE!"},{"$error":"#VALUE!"},{"$error":"#VALUE!"},null,{"$f":"VLOOKUP($A386,Analysis!$A:$U,10,FALSE)","v":{"$error":"#VALUE!"}},{"$f":"IF(VLOOKUP($A386,Analysis!$A:$U,3,FALSE)=1,ROUND(VLOOKUP($A386,Analysis!$A:$U,17,FALSE),0),#N/A)","v":{"$error":"#VALUE!"}},{"$f":"IF(ISERROR($K386),ROUND(VLOOKUP($A386,Analysis!$A:$U,17,FALSE),0),#N/A)","v":{"$error":"#VALUE!"}},{"$error":"#VALUE!"},{"$error":"#VALUE!"},{"$error":"#VALUE!"}]
[{"$error":"#VALUE!"},{"$error":"#VALUE!"},{"$f":"VLOOKUP($A387,Analysis!$A:$U,11,FALSE)","v":{"$error":"#VALUE!"}},{"$f":"IF(VLOOKUP($A387,Analysis!$A:$U,3,FALSE)=1,VLOOKUP($A387,Analysis!$A:$U,18,FALSE),#N/A)","v":{"$error":"#VALUE!"}},{"$f":"IF(ISERROR($D387),VLOOKUP($A387,Analysis!$A:$U,18,FALSE),#N/A)","v":{"$error":"#VALUE!"}},{"$f":"IF($B387=\"Vacant\",$D387,#N/A)","v":{"$error":"#VALUE!"}},{"$f":"IF($B387=\"Abstraction\",$D387,#N/A)","v":{"$error":"#VALUE!"}},{"$f":"IF($B387=\"Allocation\",$D387,#N/A)","v":{"$error":"#VALUE!"}},null,{"$f":"VLOOKUP($A387,Analysis!$A:$U,10,FALSE)","v":{"$error":"#VALUE!"}},{"$f":"IF(VLOOKUP($A387,Analysis!$A:$U,3,FALSE)=1,ROUND(VLOOKUP($A387,Analysis!$A:$U,17,FALSE),0),#N/A)","v":{"$error":"#VALUE!"}},{"$f":"IF(ISERROR($K387),ROUND(VLOOKUP($A387,Analysis!$A:$U,17,FALSE),0),#N/A)","v":{"$error":"#VALUE!"}},{"$f":"IF($B387=\"Vacant\",$K387,#N/A)","v":{"$error":"#VALUE!"}},{"$f":"IF($B387=\"Abstraction\",$K387,#N/A)","v":{"$error":"#VALUE!"}},{"$f":"IF($B387=\"Allocation\",$K387,#N/A)","v":{"$error":"#VALUE!"}}]
[{"$error":"#VALUE!"},{"$error":"#VALUE!"},{"$f":"VLOOKUP($A388,Analysis!$A:$U,11,FALSE)","v":{"$error":"#VALUE!"}},{"$f":"IF(VLOOKUP($A388,Analysis!$A:$U,3,FALSE)=1,VLOOKUP($A388,Analysis!$A:$U,18,FALSE),#N/A)","v":{"$error":"#VALUE!"}},{"$f":"IF(ISERROR($D388),VLOOKUP($A388,Analysis!$A:$U,18,FALSE),#N/A)","v":{"$error":"#VALUE!"}},{"$error":"#VALUE!"},{"$error":"#VALUE!"},{"$error":"#VALUE!"},null,{"$f":"VLOOKUP($A388,Analysis!$A:$U,10,FALSE)","v":{"$error":"#VALUE!"}},{"$f":"IF(VLOOKUP($A388,Analysis!$A:$U,3,FALSE)=1,ROUND(VLOOKUP($A388,Analysis!$A:$U,17,FALSE),0),#N/A)","v":{"$error":"#VALUE!"}},{"$f":"IF(ISERROR($K388),ROUND(VLOOKUP($A388,Analysis!$A:$U,17,FALSE),0),#N/A)","v":{"$error":"#VALUE!"}},{"$error":"#VALUE!"},{"$error":"#VALUE!"},{"$error":"#VALUE!"}]
[{"$error":"#VALUE!"},{"$error":"#VALUE!"},{"$f":"VLOOKUP($A389,Analysis!$A:$U,11,FALSE)","v":{"$error":"#VALUE!"}},{"$f":"IF(VLOOKUP($A389,Analysis!$A:$U,3,FALSE)=1,VLOOKUP($A389,Analysis!$A:$U,18,FALSE),#N/A)","v":{"$error":"#VALUE!"}},{"$f":"IF(ISERROR($D389),VLOOKUP($A389,Analysis!$A:$U,18,FALSE),#N/A)","v":{"$error":"#VALUE!"}},{"$error":"#VALUE!"},{"$error":"#VALUE!"},{"$error":"#VALUE!"},null,{"$f":"VLOOKUP($A389,Analysis!$A:$U,10,FALSE)","v":{"$error":"#VALUE!"}},{"$f":"IF(VLOOKUP($A389,Analysis!$A:$U,3,FALSE)=1,ROUND(VLOOKUP($A389,Analysis!$A:$U,17,FALSE),0),#N/A)","v":{"$error":"#VALUE!"}},{"$f":"IF(ISERROR($K389),ROUND(VLOOKUP($A389,Analysis!$A:$U,17,FALSE),0),#N/A)","v":{"$error":"#VALUE!"}},{"$error":"#VALUE!"},{"$error":"#VALUE!"},{"$error":"#VALUE!"}]
[{"$error":"#VALUE!"},{"$error":"#VALUE!"},{"$f":"VLOOKUP($A390,Analysis!$A:$U,11,FALSE)","v":{"$error":"#VALUE!"}},{"$f":"IF(VLOOKUP($A390,Analysis!$A:$U,3,FALSE)=1,VLOOKUP($A390,Analysis!$A:$U,18,FALSE),#N/A)","v":{"$error":"#VALUE!"}},{"$f":"IF(ISERROR($D390),VLOOKUP($A390,Analysis!$A:$U,18,FALSE),#N/A)","v":{"$error":"#VALUE!"}},{"$error":"#VALUE!"},{"$error":"#VALUE!"},{"$error":"#VALUE!"},null,{"$f":"VLOOKUP($A390,Analysis!$A:$U,10,FALSE)","v":{"$error":"#VALUE!"}},{"$f":"IF(VLOOKUP($A390,Analysis!$A:$U,3,FALSE)=1,ROUND(VLOOKUP($A390,Analysis!$A:$U,17,FALSE),0),#N/A)","v":{"$error":"#VALUE!"}},{"$f":"IF(ISERROR($K390),ROUND(VLOOKUP($A390,Analysis!$A:$U,17,FALSE),0),#N/A)","v":{"$error":"#VALUE!"}},{"$error":"#VALUE!"},{"$error":"#VALUE!"},{"$error":"#VALUE!"}]
[{"$error":"#VALUE!"},{"$error":"#VALUE!"},{"$f":"VLOOKUP($A391,Analysis!$A:$U,11,FALSE)","v":{"$error":"#VALUE!"}},{"$f":"IF(VLOOKUP($A391,Analysis!$A:$U,3,FALSE)=1,VLOOKUP($A391,Analysis!$A:$U,18,FALSE),#N/A)","v":{"$error":"#VALUE!"}},{"$f":"IF(ISERROR($D391),VLOOKUP($A391,Analysis!$A:$U,18,FALSE),#N/A)","v":{"$error":"#VALUE!"}},{"$error":"#VALUE!"},{"$error":"#VALUE!"},{"$error":"#VALUE!"},null,{"$f":"VLOOKUP($A391,Analysis!$A:$U,10,FALSE)","v":{"$error":"#VALUE!"}},{"$f":"IF(VLOOKUP($A391,Analysis!$A:$U,3,FALSE)=1,ROUND(VLOOKUP($A391,Analysis!$A:$U,17,FALSE),0),#N/A)","v":{"$error":"#VALUE!"}},{"$f":"IF(ISERROR($K391),ROUND(VLOOKUP($A391,Analysis!$A:$U,17,FALSE),0),#N/A)","v":{"$error":"#VALUE!"}},{"$error":"#VALUE!"},{"$error":"#VALUE!"},{"$error":"#VALUE!"}]
[{"$error":"#VALUE!"},{"$error":"#VALUE!"},{"$f":"VLOOKUP($A392,Analysis!$A:$U,11,FALSE)","v":{"$error":"#VALUE!"}},{"$f":"IF(VLOOKUP($A392,Analysis!$A:$U,3,FALSE)=1,VLOOKUP($A392,Analysis!$A:$U,18,FALSE),#N/A)","v":{"$error":"#VALUE!"}},{"$f":"IF(ISERROR($D392),VLOOKUP($A392,Analysis!$A:$U,18,FALSE),#N/A)","v":{"$error":"#VALUE!"}},{"$error":"#VALUE!"},{"$error":"#VALUE!"},{"$error":"#VALUE!"},null,{"$f":"VLOOKUP($A392,Analysis!$A:$U,10,FALSE)","v":{"$error":"#VALUE!"}},{"$f":"IF(VLOOKUP($A392,Analysis!$A:$U,3,FALSE)=1,ROUND(VLOOKUP($A392,Analysis!$A:$U,17,FALSE),0),#N/A)","v":{"$error":"#VALUE!"}},{"$f":"IF(ISERROR($K392),ROUND(VLOOKUP($A392,Analysis!$A:$U,17,FALSE),0),#N/A)","v":{"$error":"#VALUE!"}},{"$error":"#VALUE!"},{"$error":"#VALUE!"},{"$error":"#VALUE!"}]
[{"$error":"#VALUE!"},{"$error":"#VALUE!"},{"$f":"VLOOKUP($A393,Analysis!$A:$U,11,FALSE)","v":{"$error":"#VALUE!"}},{"$f":"IF(VLOOKUP($A393,Analysis!$A:$U,3,FALSE)=1,VLOOKUP($A393,Analysis!$A:$U,18,FALSE),#N/A)","v":{"$error":"#VALUE!"}},{"$f":"IF(ISERROR($D393),VLOOKUP($A393,Analysis!$A:$U,18,FALSE),#N/A)","v":{"$error":"#VALUE!"}},{"$error":"#VALUE!"},{"$error":"#VALUE!"},{"$error":"#VALUE!"},null,{"$f":"VLOOKUP($A393,Analysis!$A:$U,10,FALSE)","v":{"$error":"#VALUE!"}},{"$f":"IF(VLOOKUP($A393,Analysis!$A:$U,3,FALSE)=1,ROUND(VLOOKUP($A393,Analysis!$A:$U,17,FALSE),0),#N/A)","v":{"$error":"#VALUE!"}},{"$f":"IF(ISERROR($K393),ROUND(VLOOKUP($A393,Analysis!$A:$U,17,FALSE),0),#N/A)","v":{"$error":"#VALUE!"}},{"$error":"#VALUE!"},{"$error":"#VALUE!"},{"$error":"#VALUE!"}]
[{"$error":"#VALUE!"},{"$error":"#VALUE!"},{"$f":"VLOOKUP($A394,Analysis!$A:$U,11,FALSE)","v":{"$error":"#VALUE!"}},{"$f":"IF(VLOOKUP($A394,Analysis!$A:$U,3,FALSE)=1,VLOOKUP($A394,Analysis!$A:$U,18,FALSE),#N/A)","v":{"$error":"#VALUE!"}},{"$f":"IF(ISERROR($D394),VLOOKUP($A394,Analysis!$A:$U,18,FALSE),#N/A)","v":{"$error":"#VALUE!"}},{"$error":"#VALUE!"},{"$error":"#VALUE!"},{"$error":"#VALUE!"},null,{"$f":"VLOOKUP($A394,Analysis!$A:$U,10,FALSE)","v":{"$error":"#VALUE!"}},{"$f":"IF(VLOOKUP($A394,Analysis!$A:$U,3,FALSE)=1,ROUND(VLOOKUP($A394,Analysis!$A:$U,17,FALSE),0),#N/A)","v":{"$error":"#VALUE!"}},{"$f":"IF(ISERROR($K394),ROUND(VLOOKUP($A394,Analysis!$A:$U,17,FALSE),0),#N/A)","v":{"$error":"#VALUE!"}},{"$error":"#VALUE!"},{"$error":"#VALUE!"},{"$error":"#VALUE!"}]
[{"$error":"#VALUE!"},{"$error":"#VALUE!"},{"$f":"VLOOKUP($A395,Analysis!$A:$U,11,FALSE)","v":{"$error":"#VALUE!"}},{"$f":"IF(VLOOKUP($A395,Analysis!$A:$U,3,FALSE)=1,VLOOKUP($A395,Analysis!$A:$U,18,FALSE),#N/A)","v":{"$error":"#VALUE!"}},{"$f":"IF(ISERROR($D395),VLOOKUP($A395,Analysis!$A:$U,18,FALSE),#N/A)","v":{"$error":"#VALUE!"}},{"$error":"#VALUE!"},{"$error":"#VALUE!"},{"$error":"#VALUE!"},null,{"$f":"VLOOKUP($A395,Analysis!$A:$U,10,FALSE)","v":{"$error":"#VALUE!"}},{"$f":"IF(VLOOKUP($A395,Analysis!$A:$U,3,FALSE)=1,ROUND(VLOOKUP($A395,Analysis!$A:$U,17,FALSE),0),#N/A)","v":{"$error":"#VALUE!"}},{"$f":"IF(ISERROR($K395),ROUND(VLOOKUP($A395,Analysis!$A:$U,17,FALSE),0),#N/A)","v":{"$error":"#VALUE!"}},{"$error":"#VALUE!"},{"$error":"#VALUE!"},{"$error":"#VALUE!"}]
[{"$error":"#VALUE!"},{"$error":"#VALUE!"},{"$f":"VLOOKUP($A396,Analysis!$A:$U,11,FALSE)","v":{"$error":"#VALUE!"}},{"$f":"IF(VLOOKUP($A396,Analysis!$A:$U,3,FALSE)=1,VLOOKUP($A396,Analysis!$A:$U,18,FALSE),#N/A)","v":{"$error":"#VALUE!"}},{"$f":"IF(ISERROR($D396),VLOOKUP($A396,Analysis!$A:$U,18,FALSE),#N/A)","v":{"$error":"#VALUE!"}},{"$error":"#VALUE!"},{"$error":"#VALUE!"},{"$error":"#VALUE!"},null,{"$f":"VLOOKUP($A396,Analysis!$A:$U,10,FALSE)","v":{"$error":"#VALUE!"}},{"$f":"IF(VLOOKUP($A396,Analysis!$A:$U,3,FALSE)=1,ROUND(VLOOKUP($A396,Analysis!$A:$U,17,FALSE),0),#N/A)","v":{"$error":"#VALUE!"}},{"$f":"IF(ISERROR($K396),ROUND(VLOOKUP($A396,Analysis!$A:$U,17,FALSE),0),#N/A)","v":{"$error":"#VALUE!"}},{"$error":"#VALUE!"},{"$error":"#VALUE!"},{"$error":"#VALUE!"}]
[{"$error":"#VALUE!"},{"$error":"#VALUE!"},{"$f":"VLOOKUP($A397,Analysis!$A:$U,11,FALSE)","v":{"$error":"#VALUE!"}},{"$f":"IF(VLOOKUP($A397,Analysis!$A:$U,3,FALSE)=1,VLOOKUP($A397,Analysis!$A:$U,18,FALSE),#N/A)","v":{"$error":"#VALUE!"}},{"$f":"IF(ISERROR($D397),VLOOKUP($A397,Analysis!$A:$U,18,FALSE),#N/A)","v":{"$error":"#VALUE!"}},{"$error":"#VALUE!"},{"$error":"#VALUE!"},{"$error":"#VALUE!"},null,{"$f":"VLOOKUP($A397,Analysis!$A:$U,10,FALSE)","v":{"$error":"#VALUE!"}},{"$f":"IF(VLOOKUP($A397,Analysis!$A:$U,3,FALSE)=1,ROUND(VLOOKUP($A397,Analysis!$A:$U,17,FALSE),0),#N/A)","v":{"$error":"#VALUE!"}},{"$f":"IF(ISERROR($K397),ROUND(VLOOKUP($A397,Analysis!$A:$U,17,FALSE),0),#N/A)","v":{"$error":"#VALUE!"}},{"$error":"#VALUE!"},{"$error":"#VALUE!"},{"$error":"#VALUE!"}]
[{"$error":"#VALUE!"},{"$error":"#VALUE!"},{"$f":"VLOOKUP($A398,Analysis!$A:$U,11,FALSE)","v":{"$error":"#VALUE!"}},{"$f":"IF(VLOOKUP($A398,Analysis!$A:$U,3,FALSE)=1,VLOOKUP($A398,Analysis!$A:$U,18,FALSE),#N/A)","v":{"$error":"#VALUE!"}},{"$f":"IF(ISERROR($D398),VLOOKUP($A398,Analysis!$A:$U,18,FALSE),#N/A)","v":{"$error":"#VALUE!"}},{"$error":"#VALUE!"},{"$error":"#VALUE!"},{"$error":"#VALUE!"},null,{"$f":"VLOOKUP($A398,Analysis!$A:$U,10,FALSE)","v":{"$error":"#VALUE!"}},{"$f":"IF(VLOOKUP($A398,Analysis!$A:$U,3,FALSE)=1,ROUND(VLOOKUP($A398,Analysis!$A:$U,17,FALSE),0),#N/A)","v":{"$error":"#VALUE!"}},{"$f":"IF(ISERROR($K398),ROUND(VLOOKUP($A398,Analysis!$A:$U,17,FALSE),0),#N/A)","v":{"$error":"#VALUE!"}},{"$error":"#VALUE!"},{"$error":"#VALUE!"},{"$error":"#VALUE!"}]
[{"$error":"#VALUE!"},{"$error":"#VALUE!"},{"$f":"VLOOKUP($A399,Analysis!$A:$U,11,FALSE)","v":{"$error":"#VALUE!"}},{"$f":"IF(VLOOKUP($A399,Analysis!$A:$U,3,FALSE)=1,VLOOKUP($A399,Analysis!$A:$U,18,FALSE),#N/A)","v":{"$error":"#VALUE!"}},{"$f":"IF(ISERROR($D399),VLOOKUP($A399,Analysis!$A:$U,18,FALSE),#N/A)","v":{"$error":"#VALUE!"}},{"$error":"#VALUE!"},{"$error":"#VALUE!"},{"$error":"#VALUE!"},null,{"$f":"VLOOKUP($A399,Analysis!$A:$U,10,FALSE)","v":{"$error":"#VALUE!"}},{"$f":"IF(VLOOKUP($A399,Analysis!$A:$U,3,FALSE)=1,ROUND(VLOOKUP($A399,Analysis!$A:$U,17,FALSE),0),#N/A)","v":{"$error":"#VALUE!"}},{"$f":"IF(ISERROR($K399),ROUND(VLOOKUP($A399,Analysis!$A:$U,17,FALSE),0),#N/A)","v":{"$error":"#VALUE!"}},{"$error":"#VALUE!"},{"$error":"#VALUE!"},{"$error":"#VALUE!"}]
[{"$error":"#VALUE!"},{"$error":"#VALUE!"},{"$f":"VLOOKUP($A400,Analysis!$A:$U,11,FALSE)","v":{"$error":"#VALUE!"}},{"$f":"IF(VLOOKUP($A400,Analysis!$A:$U,3,FALSE)=1,VLOOKUP($A400,Analysis!$A:$U,18,FALSE),#N/A)","v":{"$error":"#VALUE!"}},{"$f":"IF(ISERROR($D400),VLOOKUP($A400,Analysis!$A:$U,18,FALSE),#N/A)","v":{"$error":"#VALUE!"}},{"$error":"#VALUE!"},{"$error":"#VALUE!"},{"$error":"#VALUE!"},null,{"$f":"VLOOKUP($A400,Analysis!$A:$U,10,FALSE)","v":{"$error":"#VALUE!"}},{"$f":"IF(VLOOKUP($A400,Analysis!$A:$U,3,FALSE)=1,ROUND(VLOOKUP($A400,Analysis!$A:$U,17,FALSE),0),#N/A)","v":{"$error":"#VALUE!"}},{"$f":"IF(ISERROR($K400),ROUND(VLOOKUP($A400,Analysis!$A:$U,17,FALSE),0),#N/A)","v":{"$error":"#VALUE!"}},{"$error":"#VALUE!"},{"$error":"#VALUE!"},{"$error":"#VALUE!"}]
[{"$error":"#VALUE!"},{"$error":"#VALUE!"},{"$f":"VLOOKUP($A401,Analysis!$A:$U,11,FALSE)","v":{"$error":"#VALUE!"}},{"$f":"IF(VLOOKUP($A401,Analysis!$A:$U,3,FALSE)=1,VLOOKUP($A401,Analysis!$A:$U,18,FALSE),#N/A)","v":{"$error":"#VALUE!"}},{"$f":"IF(ISERROR($D401),VLOOKUP($A401,Analysis!$A:$U,18,FALSE),#N/A)","v":{"$error":"#VALUE!"}},{"$error":"#VALUE!"},{"$error":"#VALUE!"},{"$error":"#VALUE!"},null,{"$f":"VLOOKUP($A401,Analysis!$A:$U,10,FALSE)","v":{"$error":"#VALUE!"}},{"$f":"IF(VLOOKUP($A401,Analysis!$A:$U,3,FALSE)=1,ROUND(VLOOKUP($A401,Analysis!$A:$U,17,FALSE),0),#N/A)","v":{"$error":"#VALUE!"}},{"$f":"IF(ISERROR($K401),ROUND(VLOOKUP($A401,Analysis!$A:$U,17,FALSE),0),#N/A)","v":{"$error":"#VALUE!"}},{"$error":"#VALUE!"},{"$error":"#VALUE!"},{"$error":"#VALUE!"}]
[{"$error":"#VALUE!"},{"$error":"#VALUE!"},{"$f":"VLOOKUP($A402,Analysis!$A:$U,11,FALSE)","v":{"$error":"#VALUE!"}},{"$f":"IF(VLOOKUP($A402,Analysis!$A:$U,3,FALSE)=1,VLOOKUP($A402,Analysis!$A:$U,18,FALSE),#N/A)","v":{"$error":"#VALUE!"}},{"$f":"IF(ISERROR($D402),VLOOKUP($A402,Analysis!$A:$U,18,FALSE),#N/A)","v":{"$error":"#VALUE!"}},{"$error":"#VALUE!"},{"$error":"#VALUE!"},{"$error":"#VALUE!"},null,{"$f":"VLOOKUP($A402,Analysis!$A:$U,10,FALSE)","v":{"$error":"#VALUE!"}},{"$f":"IF(VLOOKUP($A402,Analysis!$A:$U,3,FALSE)=1,ROUND(VLOOKUP($A402,Analysis!$A:$U,17,FALSE),0),#N/A)","v":{"$error":"#VALUE!"}},{"$f":"IF(ISERROR($K402),ROUND(VLOOKUP($A402,Analysis!$A:$U,17,FALSE),0),#N/A)","v":{"$error":"#VALUE!"}},{"$error":"#VALUE!"},{"$error":"#VALUE!"},{"$error":"#VALUE!"}]
[{"$error":"#VALUE!"},{"$error":"#VALUE!"},{"$f":"VLOOKUP($A403,Analysis!$A:$U,11,FALSE)","v":{"$error":"#VALUE!"}},{"$f":"IF(VLOOKUP($A403,Analysis!$A:$U,3,FALSE)=1,VLOOKUP($A403,Analysis!$A:$U,18,FALSE),#N/A)","v":{"$error":"#VALUE!"}},{"$f":"IF(ISERROR($D403),VLOOKUP($A403,Analysis!$A:$U,18,FALSE),#N/A)","v":{"$error":"#VALUE!"}},{"$error":"#VALUE!"},{"$error":"#VALUE!"},{"$error":"#VALUE!"},null,{"$f":"VLOOKUP($A403,Analysis!$A:$U,10,FALSE)","v":{"$error":"#VALUE!"}},{"$f":"IF(VLOOKUP($A403,Analysis!$A:$U,3,FALSE)=1,ROUND(VLOOKUP($A403,Analysis!$A:$U,17,FALSE),0),#N/A)","v":{"$error":"#VALUE!"}},{"$f":"IF(ISERROR($K403),ROUND(VLOOKUP($A403,Analysis!$A:$U,17,FALSE),0),#N/A)","v":{"$error":"#VALUE!"}},{"$error":"#VALUE!"},{"$error":"#VALUE!"},{"$error":"#VALUE!"}]
[{"$error":"#VALUE!"},{"$error":"#VALUE!"},{"$f":"VLOOKUP($A404,Analysis!$A:$U,11,FALSE)","v":{"$error":"#VALUE!"}},{"$f":"IF(VLOOKUP($A404,Analysis!$A:$U,3,FALSE)=1,VLOOKUP($A404,Analysis!$A:$U,18,FALSE),#N/A)","v":{"$error":"#VALUE!"}},{"$f":"IF(ISERROR($D404),VLOOKUP($A404,Analysis!$A:$U,18,FALSE),#N/A)","v":{"$error":"#VALUE!"}},{"$error":"#VALUE!"},{"$error":"#VALUE!"},{"$error":"#VALUE!"},null,{"$f":"VLOOKUP($A404,Analysis!$A:$U,10,FALSE)","v":{"$error":"#VALUE!"}},{"$f":"IF(VLOOKUP($A404,Analysis!$A:$U,3,FALSE)=1,ROUND(VLOOKUP($A404,Analysis!$A:$U,17,FALSE),0),#N/A)","v":{"$error":"#VALUE!"}},{"$f":"IF(ISERROR($K404),ROUND(VLOOKUP($A404,Analysis!$A:$U,17,FALSE),0),#N/A)","v":{"$error":"#VALUE!"}},{"$error":"#VALUE!"},{"$error":"#VALUE!"},{"$error":"#VALUE!"}]
[{"$error":"#VALUE!"},{"$error":"#VALUE!"},{"$f":"VLOOKUP($A405,Analysis!$A:$U,11,FALSE)","v":{"$error":"#VALUE!"}},{"$f":"IF(VLOOKUP($A405,Analysis!$A:$U,3,FALSE)=1,VLOOKUP($A405,Analysis!$A:$U,18,FALSE),#N/A)","v":{"$error":"#VALUE!"}},{"$f":"IF(ISERROR($D405),VLOOKUP($A405,Analysis!$A:$U,18,FALSE),#N/A)","v":{"$error":"#VALUE!"}},{"$error":"#VALUE!"},{"$error":"#VALUE!"},{"$error":"#VALUE!"},null,{"$f":"VLOOKUP($A405,Analysis!$A:$U,10,FALSE)","v":{"$error":"#VALUE!"}},{"$f":"IF(VLOOKUP($A405,Analysis!$A:$U,3,FALSE)=1,ROUND(VLOOKUP($A405,Analysis!$A:$U,17,FALSE),0),#N/A)","v":{"$error":"#VALUE!"}},{"$f":"IF(ISERROR($K405),ROUND(VLOOKUP($A405,Analysis!$A:$U,17,FALSE),0),#N/A)","v":{"$error":"#VALUE!"}},{"$error":"#VALUE!"},{"$error":"#VALUE!"},{"$error":"#VALUE!"}]
[{"$error":"#VALUE!"},{"$error":"#VALUE!"},{"$f":"VLOOKUP($A406,Analysis!$A:$U,11,FALSE)","v":{"$error":"#VALUE!"}},{"$f":"IF(VLOOKUP($A406,Analysis!$A:$U,3,FALSE)=1,VLOOKUP($A406,Analysis!$A:$U,18,FALSE),#N/A)","v":{"$error":"#VALUE!"}},{"$f":"IF(ISERROR($D406),VLOOKUP($A406,Analysis!$A:$U,18,FALSE),#N/A)","v":{"$error":"#VALUE!"}},{"$error":"#VALUE!"},{"$error":"#VALUE!"},{"$error":"#VALUE!"},null,{"$f":"VLOOKUP($A406,Analysis!$A:$U,10,FALSE)","v":{"$error":"#VALUE!"}},{"$f":"IF(VLOOKUP($A406,Analysis!$A:$U,3,FALSE)=1,ROUND(VLOOKUP($A406,Analysis!$A:$U,17,FALSE),0),#N/A)","v":{"$error":"#VALUE!"}},{"$f":"IF(ISERROR($K406),ROUND(VLOOKUP($A406,Analysis!$A:$U,17,FALSE),0),#N/A)","v":{"$error":"#VALUE!"}},{"$error":"#VALUE!"},{"$error":"#VALUE!"},{"$error":"#VALUE!"}]
[{"$error":"#VALUE!"},{"$error":"#VALUE!"},{"$f":"VLOOKUP($A407,Analysis!$A:$U,11,FALSE)","v":{"$error":"#VALUE!"}},{"$f":"IF(VLOOKUP($A407,Analysis!$A:$U,3,FALSE)=1,VLOOKUP($A407,Analysis!$A:$U,18,FALSE),#N/A)","v":{"$error":"#VALUE!"}},{"$f":"IF(ISERROR($D407),VLOOKUP($A407,Analysis!$A:$U,18,FALSE),#N/A)","v":{"$error":"#VALUE!"}},{"$error":"#VALUE!"},{"$error":"#VALUE!"},{"$error":"#VALUE!"},null,{"$f":"VLOOKUP($A407,Analysis!$A:$U,10,FALSE)","v":{"$error":"#VALUE!"}},{"$f":"IF(VLOOKUP($A407,Analysis!$A:$U,3,FALSE)=1,ROUND(VLOOKUP($A407,Analysis!$A:$U,17,FALSE),0),#N/A)","v":{"$error":"#VALUE!"}},{"$f":"IF(ISERROR($K407),ROUND(VLOOKUP($A407,Analysis!$A:$U,17,FALSE),0),#N/A)","v":{"$error":"#VALUE!"}},{"$error":"#VALUE!"},{"$error":"#VALUE!"},{"$error":"#VALUE!"}]
[{"$error":"#VALUE!"},{"$error":"#VALUE!"},{"$f":"VLOOKUP($A408,Analysis!$A:$U,11,FALSE)","v":{"$error":"#VALUE!"}},{"$f":"IF(VLOOKUP($A408,Analysis!$A:$U,3,FALSE)=1,VLOOKUP($A408,Analysis!$A:$U,18,FALSE),#N/A)","v":{"$error":"#VALUE!"}},{"$f":"IF(ISERROR($D408),VLOOKUP($A408,Analysis!$A:$U,18,FALSE),#N/A)","v":{"$error":"#VALUE!"}},{"$error":"#VALUE!"},{"$error":"#VALUE!"},{"$error":"#VALUE!"},null,{"$f":"VLOOKUP($A408,Analysis!$A:$U,10,FALSE)","v":{"$error":"#VALUE!"}},{"$f":"IF(VLOOKUP($A408,Analysis!$A:$U,3,FALSE)=1,ROUND(VLOOKUP($A408,Analysis!$A:$U,17,FALSE),0),#N/A)","v":{"$error":"#VALUE!"}},{"$f":"IF(ISERROR($K408),ROUND(VLOOKUP($A408,Analysis!$A:$U,17,FALSE),0),#N/A)","v":{"$error":"#VALUE!"}},{"$error":"#VALUE!"},{"$error":"#VALUE!"},{"$error":"#VALUE!"}]
[{"$error":"#VALUE!"},{"$error":"#VALUE!"},{"$f":"VLOOKUP($A409,Analysis!$A:$U,11,FALSE)","v":{"$error":"#VALUE!"}},{"$f":"IF(VLOOKUP($A409,Analysis!$A:$U,3,FALSE)=1,VLOOKUP($A409,Analysis!$A:$U,18,FALSE),#N/A)","v":{"$error":"#VALUE!"}},{"$f":"IF(ISERROR($D409),VLOOKUP($A409,Analysis!$A:$U,18,FALSE),#N/A)","v":{"$error":"#VALUE!"}},{"$error":"#VALUE!"},{"$error":"#VALUE!"},{"$error":"#VALUE!"},null,{"$f":"VLOOKUP($A409,Analysis!$A:$U,10,FALSE)","v":{"$error":"#VALUE!"}},{"$f":"IF(VLOOKUP($A409,Analysis!$A:$U,3,FALSE)=1,ROUND(VLOOKUP($A409,Analysis!$A:$U,17,FALSE),0),#N/A)","v":{"$error":"#VALUE!"}},{"$f":"IF(ISERROR($K409),ROUND(VLOOKUP($A409,Analysis!$A:$U,17,FALSE),0),#N/A)","v":{"$error":"#VALUE!"}},{"$error":"#VALUE!"},{"$error":"#VALUE!"},{"$error":"#VALUE!"}]
[{"$error":"#VALUE!"},{"$error":"#VALUE!"},{"$f":"VLOOKUP($A410,Analysis!$A:$U,11,FALSE)","v":{"$error":"#VALUE!"}},{"$f":"IF(VLOOKUP($A410,Analysis!$A:$U,3,FALSE)=1,VLOOKUP($A410,Analysis!$A:$U,18,FALSE),#N/A)","v":{"$error":"#VALUE!"}},{"$f":"IF(ISERROR($D410),VLOOKUP($A410,Analysis!$A:$U,18,FALSE),#N/A)","v":{"$error":"#VALUE!"}},{"$error":"#VALUE!"},{"$error":"#VALUE!"},{"$error":"#VALUE!"},null,{"$f":"VLOOKUP($A410,Analysis!$A:$U,10,FALSE)","v":{"$error":"#VALUE!"}},{"$f":"IF(VLOOKUP($A410,Analysis!$A:$U,3,FALSE)=1,ROUND(VLOOKUP($A410,Analysis!$A:$U,17,FALSE),0),#N/A)","v":{"$error":"#VALUE!"}},{"$f":"IF(ISERROR($K410),ROUND(VLOOKUP($A410,Analysis!$A:$U,17,FALSE),0),#N/A)","v":{"$error":"#VALUE!"}},{"$error":"#VALUE!"},{"$error":"#VALUE!"},{"$error":"#VALUE!"}]
[{"$error":"#VALUE!"},{"$error":"#VALUE!"},{"$f":"VLOOKUP($A411,Analysis!$A:$U,11,FALSE)","v":{"$error":"#VALUE!"}},{"$f":"IF(VLOOKUP($A411,Analysis!$A:$U,3,FALSE)=1,VLOOKUP($A411,Analysis!$A:$U,18,FALSE),#N/A)","v":{"$error":"#VALUE!"}},{"$f":"IF(ISERROR($D411),VLOOKUP($A411,Analysis!$A:$U,18,FALSE),#N/A)","v":{"$error":"#VALUE!"}},{"$error":"#VALUE!"},{"$error":"#VALUE!"},{"$error":"#VALUE!"},null,{"$f":"VLOOKUP($A411,Analysis!$A:$U,10,FALSE)","v":{"$error":"#VALUE!"}},{"$f":"IF(VLOOKUP($A411,Analysis!$A:$U,3,FALSE)=1,ROUND(VLOOKUP($A411,Analysis!$A:$U,17,FALSE),0),#N/A)","v":{"$error":"#VALUE!"}},{"$f":"IF(ISERROR($K411),ROUND(VLOOKUP($A411,Analysis!$A:$U,17,FALSE),0),#N/A)","v":{"$error":"#VALUE!"}},{"$error":"#VALUE!"},{"$error":"#VALUE!"},{"$error":"#VALUE!"}]
[{"$error":"#VALUE!"},{"$error":"#VALUE!"},{"$f":"VLOOKUP($A412,Analysis!$A:$U,11,FALSE)","v":{"$error":"#VALUE!"}},{"$f":"IF(VLOOKUP($A412,Analysis!$A:$U,3,FALSE)=1,VLOOKUP($A412,Analysis!$A:$U,18,FALSE),#N/A)","v":{"$error":"#VALUE!"}},{"$f":"IF(ISERROR($D412),VLOOKUP($A412,Analysis!$A:$U,18,FALSE),#N/A)","v":{"$error":"#VALUE!"}},{"$error":"#VALUE!"},{"$error":"#VALUE!"},{"$error":"#VALUE!"},null,{"$f":"VLOOKUP($A412,Analysis!$A:$U,10,FALSE)","v":{"$error":"#VALUE!"}},{"$f":"IF(VLOOKUP($A412,Analysis!$A:$U,3,FALSE)=1,ROUND(VLOOKUP($A412,Analysis!$A:$U,17,FALSE),0),#N/A)","v":{"$error":"#VALUE!"}},{"$f":"IF(ISERROR($K412),ROUND(VLOOKUP($A412,Analysis!$A:$U,17,FALSE),0),#N/A)","v":{"$error":"#VALUE!"}},{"$error":"#VALUE!"},{"$error":"#VALUE!"},{"$error":"#VALUE!"}]
[{"$error":"#VALUE!"},{"$error":"#VALUE!"},{"$f":"VLOOKUP($A413,Analysis!$A:$U,11,FALSE)","v":{"$error":"#VALUE!"}},{"$f":"IF(VLOOKUP($A413,Analysis!$A:$U,3,FALSE)=1,VLOOKUP($A413,Analysis!$A:$U,18,FALSE),#N/A)","v":{"$error":"#VALUE!"}},{"$f":"IF(ISERROR($D413),VLOOKUP($A413,Analysis!$A:$U,18,FALSE),#N/A)","v":{"$error":"#VALUE!"}},{"$error":"#VALUE!"},{"$error":"#VALUE!"},{"$error":"#VALUE!"},null,{"$f":"VLOOKUP($A413,Analysis!$A:$U,10,FALSE)","v":{"$error":"#VALUE!"}},{"$f":"IF(VLOOKUP($A413,Analysis!$A:$U,3,FALSE)=1,ROUND(VLOOKUP($A413,Analysis!$A:$U,17,FALSE),0),#N/A)","v":{"$error":"#VALUE!"}},{"$f":"IF(ISERROR($K413),ROUND(VLOOKUP($A413,Analysis!$A:$U,17,FALSE),0),#N/A)","v":{"$error":"#VALUE!"}},{"$error":"#VALUE!"},{"$error":"#VALUE!"},{"$error":"#VALUE!"}]
[{"$error":"#VALUE!"},{"$error":"#VALUE!"},{"$f":"VLOOKUP($A414,Analysis!$A:$U,11,FALSE)","v":{"$error":"#VALUE!"}},{"$f":"IF(VLOOKUP($A414,Analysis!$A:$U,3,FALSE)=1,VLOOKUP($A414,Analysis!$A:$U,18,FALSE),#N/A)","v":{"$error":"#VALUE!"}},{"$f":"IF(ISERROR($D414),VLOOKUP($A414,Analysis!$A:$U,18,FALSE),#N/A)","v":{"$error":"#VALUE!"}},{"$error":"#VALUE!"},{"$error":"#VALUE!"},{"$error":"#VALUE!"},null,{"$f":"VLOOKUP($A414,Analysis!$A:$U,10,FALSE)","v":{"$error":"#VALUE!"}},{"$f":"IF(VLOOKUP($A414,Analysis!$A:$U,3,FALSE)=1,ROUND(VLOOKUP($A414,Analysis!$A:$U,17,FALSE),0),#N/A)","v":{"$error":"#VALUE!"}},{"$f":"IF(ISERROR($K414),ROUND(VLOOKUP($A414,Analysis!$A:$U,17,FALSE),0),#N/A)","v":{"$error":"#VALUE!"}},{"$error":"#VALUE!"},{"$error":"#VALUE!"},{"$error":"#VALUE!"}]
[{"$error":"#VALUE!"},{"$error":"#VALUE!"},{"$f":"VLOOKUP($A415,Analysis!$A:$U,11,FALSE)","v":{"$error":"#VALUE!"}},{"$f":"IF(VLOOKUP($A415,Analysis!$A:$U,3,FALSE)=1,VLOOKUP($A415,Analysis!$A:$U,18,FALSE),#N/A)","v":{"$error":"#VALUE!"}},{"$f":"IF(ISERROR($D415),VLOOKUP($A415,Analysis!$A:$U,18,FALSE),#N/A)","v":{"$error":"#VALUE!"}},{"$error":"#VALUE!"},{"$error":"#VALUE!"},{"$error":"#VALUE!"},null,{"$f":"VLOOKUP($A415,Analysis!$A:$U,10,FALSE)","v":{"$error":"#VALUE!"}},{"$f":"IF(VLOOKUP($A415,Analysis!$A:$U,3,FALSE)=1,ROUND(VLOOKUP($A415,Analysis!$A:$U,17,FALSE),0),#N/A)","v":{"$error":"#VALUE!"}},{"$f":"IF(ISERROR($K415),ROUND(VLOOKUP($A415,Analysis!$A:$U,17,FALSE),0),#N/A)","v":{"$error":"#VALUE!"}},{"$error":"#VALUE!"},{"$error":"#VALUE!"},{"$error":"#VALUE!"}]
[{"$error":"#VALUE!"},{"$error":"#VALUE!"},{"$f":"VLOOKUP($A416,Analysis!$A:$U,11,FALSE)","v":{"$error":"#VALUE!"}},{"$f":"IF(VLOOKUP($A416,Analysis!$A:$U,3,FALSE)=1,VLOOKUP($A416,Analysis!$A:$U,18,FALSE),#N/A)","v":{"$error":"#VALUE!"}},{"$f":"IF(ISERROR($D416),VLOOKUP($A416,Analysis!$A:$U,18,FALSE),#N/A)","v":{"$error":"#VALUE!"}},{"$error":"#VALUE!"},{"$error":"#VALUE!"},{"$error":"#VALUE!"},null,{"$f":"VLOOKUP($A416,Analysis!$A:$U,10,FALSE)","v":{"$error":"#VALUE!"}},{"$f":"IF(VLOOKUP($A416,Analysis!$A:$U,3,FALSE)=1,ROUND(VLOOKUP($A416,Analysis!$A:$U,17,FALSE),0),#N/A)","v":{"$error":"#VALUE!"}},{"$f":"IF(ISERROR($K416),ROUND(VLOOKUP($A416,Analysis!$A:$U,17,FALSE),0),#N/A)","v":{"$error":"#VALUE!"}},{"$error":"#VALUE!"},{"$error":"#VALUE!"},{"$error":"#VALUE!"}]
[{"$error":"#VALUE!"},{"$error":"#VALUE!"},{"$f":"VLOOKUP($A417,Analysis!$A:$U,11,FALSE)","v":{"$error":"#VALUE!"}},{"$f":"IF(VLOOKUP($A417,Analysis!$A:$U,3,FALSE)=1,VLOOKUP($A417,Analysis!$A:$U,18,FALSE),#N/A)","v":{"$error":"#VALUE!"}},{"$f":"IF(ISERROR($D417),VLOOKUP($A417,Analysis!$A:$U,18,FALSE),#N/A)","v":{"$error":"#VALUE!"}},{"$error":"#VALUE!"},{"$error":"#VALUE!"},{"$error":"#VALUE!"},null,{"$f":"VLOOKUP($A417,Analysis!$A:$U,10,FALSE)","v":{"$error":"#VALUE!"}},{"$f":"IF(VLOOKUP($A417,Analysis!$A:$U,3,FALSE)=1,ROUND(VLOOKUP($A417,Analysis!$A:$U,17,FALSE),0),#N/A)","v":{"$error":"#VALUE!"}},{"$f":"IF(ISERROR($K417),ROUND(VLOOKUP($A417,Analysis!$A:$U,17,FALSE),0),#N/A)","v":{"$error":"#VALUE!"}},{"$error":"#VALUE!"},{"$error":"#VALUE!"},{"$error":"#VALUE!"}]
[{"$error":"#VALUE!"},{"$error":"#VALUE!"},{"$f":"VLOOKUP($A418,Analysis!$A:$U,11,FALSE)","v":{"$error":"#VALUE!"}},{"$f":"IF(VLOOKUP($A418,Analysis!$A:$U,3,FALSE)=1,VLOOKUP($A418,Analysis!$A:$U,18,FALSE),#N/A)","v":{"$error":"#VALUE!"}},{"$f":"IF(ISERROR($D418),VLOOKUP($A418,Analysis!$A:$U,18,FALSE),#N/A)","v":{"$error":"#VALUE!"}},{"$error":"#VALUE!"},{"$error":"#VALUE!"},{"$error":"#VALUE!"},null,{"$f":"VLOOKUP($A418,Analysis!$A:$U,10,FALSE)","v":{"$error":"#VALUE!"}},{"$f":"IF(VLOOKUP($A418,Analysis!$A:$U,3,FALSE)=1,ROUND(VLOOKUP($A418,Analysis!$A:$U,17,FALSE),0),#N/A)","v":{"$error":"#VALUE!"}},{"$f":"IF(ISERROR($K418),ROUND(VLOOKUP($A418,Analysis!$A:$U,17,FALSE),0),#N/A)","v":{"$error":"#VALUE!"}},{"$error":"#VALUE!"},{"$error":"#VALUE!"},{"$error":"#VALUE!"}]
[{"$error":"#VALUE!"},{"$error":"#VALUE!"},{"$f":"VLOOKUP($A419,Analysis!$A:$U,11,FALSE)","v":{"$error":"#VALUE!"}},{"$f":"IF(VLOOKUP($A419,Analysis!$A:$U,3,FALSE)=1,VLOOKUP($A419,Analysis!$A:$U,18,FALSE),#N/A)","v":{"$error":"#VALUE!"}},{"$f":"IF(ISERROR($D419),VLOOKUP($A419,Analysis!$A:$U,18,FALSE),#N/A)","v":{"$error":"#VALUE!"}},{"$error":"#VALUE!"},{"$error":"#VALUE!"},{"$error":"#VALUE!"},null,{"$f":"VLOOKUP($A419,Analysis!$A:$U,10,FALSE)","v":{"$error":"#VALUE!"}},{"$f":"IF(VLOOKUP($A419,Analysis!$A:$U,3,FALSE)=1,ROUND(VLOOKUP($A419,Analysis!$A:$U,17,FALSE),0),#N/A)","v":{"$error":"#VALUE!"}},{"$f":"IF(ISERROR($K419),ROUND(VLOOKUP($A419,Analysis!$A:$U,17,FALSE),0),#N/A)","v":{"$error":"#VALUE!"}},{"$error":"#VALUE!"},{"$error":"#VALUE!"},{"$error":"#VALUE!"}]
[{"$error":"#VALUE!"},{"$error":"#VALUE!"},{"$f":"VLOOKUP($A420,Analysis!$A:$U,11,FALSE)","v":{"$error":"#VALUE!"}},{"$f":"IF(VLOOKUP($A420,Analysis!$A:$U,3,FALSE)=1,VLOOKUP($A420,Analysis!$A:$U,18,FALSE),#N/A)","v":{"$error":"#VALUE!"}},{"$f":"IF(ISERROR($D420),VLOOKUP($A420,Analysis!$A:$U,18,FALSE),#N/A)","v":{"$error":"#VALUE!"}},{"$error":"#VALUE!"},{"$error":"#VALUE!"},{"$error":"#VALUE!"},null,{"$f":"VLOOKUP($A420,Analysis!$A:$U,10,FALSE)","v":{"$error":"#VALUE!"}},{"$f":"IF(VLOOKUP($A420,Analysis!$A:$U,3,FALSE)=1,ROUND(VLOOKUP($A420,Analysis!$A:$U,17,FALSE),0),#N/A)","v":{"$error":"#VALUE!"}},{"$f":"IF(ISERROR($K420),ROUND(VLOOKUP($A420,Analysis!$A:$U,17,FALSE),0),#N/A)","v":{"$error":"#VALUE!"}},{"$error":"#VALUE!"},{"$error":"#VALUE!"},{"$error":"#VALUE!"}]
[{"$error":"#VALUE!"},{"$error":"#VALUE!"},{"$f":"VLOOKUP($A421,Analysis!$A:$U,11,FALSE)","v":{"$error":"#VALUE!"}},{"$f":"IF(VLOOKUP($A421,Analysis!$A:$U,3,FALSE)=1,VLOOKUP($A421,Analysis!$A:$U,18,FALSE),#N/A)","v":{"$error":"#VALUE!"}},{"$f":"IF(ISERROR($D421),VLOOKUP($A421,Analysis!$A:$U,18,FALSE),#N/A)","v":{"$error":"#VALUE!"}},{"$error":"#VALUE!"},{"$error":"#VALUE!"},{"$error":"#VALUE!"},null,{"$f":"VLOOKUP($A421,Analysis!$A:$U,10,FALSE)","v":{"$error":"#VALUE!"}},{"$f":"IF(VLOOKUP($A421,Analysis!$A:$U,3,FALSE)=1,ROUND(VLOOKUP($A421,Analysis!$A:$U,17,FALSE),0),#N/A)","v":{"$error":"#VALUE!"}},{"$f":"IF(ISERROR($K421),ROUND(VLOOKUP($A421,Analysis!$A:$U,17,FALSE),0),#N/A)","v":{"$error":"#VALUE!"}},{"$error":"#VALUE!"},{"$error":"#VALUE!"},{"$error":"#VALUE!"}]
[{"$error":"#VALUE!"},{"$error":"#VALUE!"},{"$f":"VLOOKUP($A422,Analysis!$A:$U,11,FALSE)","v":{"$error":"#VALUE!"}},{"$f":"IF(VLOOKUP($A422,Analysis!$A:$U,3,FALSE)=1,VLOOKUP($A422,Analysis!$A:$U,18,FALSE),#N/A)","v":{"$error":"#VALUE!"}},{"$f":"IF(ISERROR($D422),VLOOKUP($A422,Analysis!$A:$U,18,FALSE),#N/A)","v":{"$error":"#VALUE!"}},{"$error":"#VALUE!"},{"$error":"#VALUE!"},{"$error":"#VALUE!"},null,{"$f":"VLOOKUP($A422,Analysis!$A:$U,10,FALSE)","v":{"$error":"#VALUE!"}},{"$f":"IF(VLOOKUP($A422,Analysis!$A:$U,3,FALSE)=1,ROUND(VLOOKUP($A422,Analysis!$A:$U,17,FALSE),0),#N/A)","v":{"$error":"#VALUE!"}},{"$f":"IF(ISERROR($K422),ROUND(VLOOKUP($A422,Analysis!$A:$U,17,FALSE),0),#N/A)","v":{"$error":"#VALUE!"}},{"$error":"#VALUE!"},{"$error":"#VALUE!"},{"$error":"#VALUE!"}]
[{"$error":"#VALUE!"},{"$error":"#VALUE!"},{"$f":"VLOOKUP($A423,Analysis!$A:$U,11,FALSE)","v":{"$error":"#VALUE!"}},{"$f":"IF(VLOOKUP($A423,Analysis!$A:$U,3,FALSE)=1,VLOOKUP($A423,Analysis!$A:$U,18,FALSE),#N/A)","v":{"$error":"#VALUE!"}},{"$f":"IF(ISERROR($D423),VLOOKUP($A423,Analysis!$A:$U,18,FALSE),#N/A)","v":{"$error":"#VALUE!"}},{"$error":"#VALUE!"},{"$error":"#VALUE!"},{"$error":"#VALUE!"},null,{"$f":"VLOOKUP($A423,Analysis!$A:$U,10,FALSE)","v":{"$error":"#VALUE!"}},{"$f":"IF(VLOOKUP($A423,Analysis!$A:$U,3,FALSE)=1,ROUND(VLOOKUP($A423,Analysis!$A:$U,17,FALSE),0),#N/A)","v":{"$error":"#VALUE!"}},{"$f":"IF(ISERROR($K423),ROUND(VLOOKUP($A423,Analysis!$A:$U,17,FALSE),0),#N/A)","v":{"$error":"#VALUE!"}},{"$error":"#VALUE!"},{"$error":"#VALUE!"},{"$error":"#VALUE!"}]
[{"$error":"#VALUE!"},{"$error":"#VALUE!"},{"$f":"VLOOKUP($A424,Analysis!$A:$U,11,FALSE)","v":{"$error":"#VALUE!"}},{"$f":"IF(VLOOKUP($A424,Analysis!$A:$U,3,FALSE)=1,VLOOKUP($A424,Analysis!$A:$U,18,FALSE),#N/A)","v":{"$error":"#VALUE!"}},{"$f":"IF(ISERROR($D424),VLOOKUP($A424,Analysis!$A:$U,18,FALSE),#N/A)","v":{"$error":"#VALUE!"}},{"$error":"#VALUE!"},{"$error":"#VALUE!"},{"$error":"#VALUE!"},null,{"$f":"VLOOKUP($A424,Analysis!$A:$U,10,FALSE)","v":{"$error":"#VALUE!"}},{"$f":"IF(VLOOKUP($A424,Analysis!$A:$U,3,FALSE)=1,ROUND(VLOOKUP($A424,Analysis!$A:$U,17,FALSE),0),#N/A)","v":{"$error":"#VALUE!"}},{"$f":"IF(ISERROR($K424),ROUND(VLOOKUP($A424,Analysis!$A:$U,17,FALSE),0),#N/A)","v":{"$error":"#VALUE!"}},{"$error":"#VALUE!"},{"$error":"#VALUE!"},{"$error":"#VALUE!"}]
[{"$error":"#VALUE!"},{"$error":"#VALUE!"},{"$f":"VLOOKUP($A425,Analysis!$A:$U,11,FALSE)","v":{"$error":"#VALUE!"}},{"$f":"IF(VLOOKUP($A425,Analysis!$A:$U,3,FALSE)=1,VLOOKUP($A425,Analysis!$A:$U,18,FALSE),#N/A)","v":{"$error":"#VALUE!"}},{"$f":"IF(ISERROR($D425),VLOOKUP($A425,Analysis!$A:$U,18,FALSE),#N/A)","v":{"$error":"#VALUE!"}},{"$error":"#VALUE!"},{"$error":"#VALUE!"},{"$error":"#VALUE!"},null,{"$f":"VLOOKUP($A425,Analysis!$A:$U,10,FALSE)","v":{"$error":"#VALUE!"}},{"$f":"IF(VLOOKUP($A425,Analysis!$A:$U,3,FALSE)=1,ROUND(VLOOKUP($A425,Analysis!$A:$U,17,FALSE),0),#N/A)","v":{"$error":"#VALUE!"}},{"$f":"IF(ISERROR($K425),ROUND(VLOOKUP($A425,Analysis!$A:$U,17,FALSE),0),#N/A)","v":{"$error":"#VALUE!"}},{"$error":"#VALUE!"},{"$error":"#VALUE!"},{"$error":"#VALUE!"}]
[{"$error":"#VALUE!"},{"$error":"#VALUE!"},{"$f":"VLOOKUP($A426,Analysis!$A:$U,11,FALSE)","v":{"$error":"#VALUE!"}},{"$f":"IF(VLOOKUP($A426,Analysis!$A:$U,3,FALSE)=1,VLOOKUP($A426,Analysis!$A:$U,18,FALSE),#N/A)","v":{"$error":"#VALUE!"}},{"$f":"IF(ISERROR($D426),VLOOKUP($A426,Analysis!$A:$U,18,FALSE),#N/A)","v":{"$error":"#VALUE!"}},{"$error":"#VALUE!"},{"$error":"#VALUE!"},{"$error":"#VALUE!"},null,{"$f":"VLOOKUP($A426,Analysis!$A:$U,10,FALSE)","v":{"$error":"#VALUE!"}},{"$f":"IF(VLOOKUP($A426,Analysis!$A:$U,3,FALSE)=1,ROUND(VLOOKUP($A426,Analysis!$A:$U,17,FALSE),0),#N/A)","v":{"$error":"#VALUE!"}},{"$f":"IF(ISERROR($K426),ROUND(VLOOKUP($A426,Analysis!$A:$U,17,FALSE),0),#N/A)","v":{"$error":"#VALUE!"}},{"$error":"#VALUE!"},{"$error":"#VALUE!"},{"$error":"#VALUE!"}]
[{"$error":"#VALUE!"},{"$error":"#VALUE!"},{"$f":"VLOOKUP($A427,Analysis!$A:$U,11,FALSE)","v":{"$error":"#VALUE!"}},{"$f":"IF(VLOOKUP($A427,Analysis!$A:$U,3,FALSE)=1,VLOOKUP($A427,Analysis!$A:$U,18,FALSE),#N/A)","v":{"$error":"#VALUE!"}},{"$f":"IF(ISERROR($D427),VLOOKUP($A427,Analysis!$A:$U,18,FALSE),#N/A)","v":{"$error":"#VALUE!"}},{"$error":"#VALUE!"},{"$error":"#VALUE!"},{"$error":"#VALUE!"},null,{"$f":"VLOOKUP($A427,Analysis!$A:$U,10,FALSE)","v":{"$error":"#VALUE!"}},{"$f":"IF(VLOOKUP($A427,Analysis!$A:$U,3,FALSE)=1,ROUND(VLOOKUP($A427,Analysis!$A:$U,17,FALSE),0),#N/A)","v":{"$error":"#VALUE!"}},{"$f":"IF(ISERROR($K427),ROUND(VLOOKUP($A427,Analysis!$A:$U,17,FALSE),0),#N/A)","v":{"$error":"#VALUE!"}},{"$error":"#VALUE!"},{"$error":"#VALUE!"},{"$error":"#VALUE!"}]
[{"$error":"#VALUE!"},{"$error":"#VALUE!"},{"$f":"VLOOKUP($A428,Analysis!$A:$U,11,FALSE)","v":{"$error":"#VALUE!"}},{"$f":"IF(VLOOKUP($A428,Analysis!$A:$U,3,FALSE)=1,VLOOKUP($A428,Analysis!$A:$U,18,FALSE),#N/A)","v":{"$error":"#VALUE!"}},{"$f":"IF(ISERROR($D428),VLOOKUP($A428,Analysis!$A:$U,18,FALSE),#N/A)","v":{"$error":"#VALUE!"}},{"$error":"#VALUE!"},{"$error":"#VALUE!"},{"$error":"#VALUE!"},null,{"$f":"VLOOKUP($A428,Analysis!$A:$U,10,FALSE)","v":{"$error":"#VALUE!"}},{"$f":"IF(VLOOKUP($A428,Analysis!$A:$U,3,FALSE)=1,ROUND(VLOOKUP($A428,Analysis!$A:$U,17,FALSE),0),#N/A)","v":{"$error":"#VALUE!"}},{"$f":"IF(ISERROR($K428),ROUND(VLOOKUP($A428,Analysis!$A:$U,17,FALSE),0),#N/A)","v":{"$error":"#VALUE!"}},{"$error":"#VALUE!"},{"$error":"#VALUE!"},{"$error":"#VALUE!"}]
[{"$error":"#VALUE!"},{"$error":"#VALUE!"},{"$f":"VLOOKUP($A429,Analysis!$A:$U,11,FALSE)","v":{"$error":"#VALUE!"}},{"$f":"IF(VLOOKUP($A429,Analysis!$A:$U,3,FALSE)=1,VLOOKUP($A429,Analysis!$A:$U,18,FALSE),#N/A)","v":{"$error":"#VALUE!"}},{"$f":"IF(ISERROR($D429),VLOOKUP($A429,Analysis!$A:$U,18,FALSE),#N/A)","v":{"$error":"#VALUE!"}},{"$error":"#VALUE!"},{"$error":"#VALUE!"},{"$error":"#VALUE!"},null,{"$f":"VLOOKUP($A429,Analysis!$A:$U,10,FALSE)","v":{"$error":"#VALUE!"}},{"$f":"IF(VLOOKUP($A429,Analysis!$A:$U,3,FALSE)=1,ROUND(VLOOKUP($A429,Analysis!$A:$U,17,FALSE),0),#N/A)","v":{"$error":"#VALUE!"}},{"$f":"IF(ISERROR($K429),ROUND(VLOOKUP($A429,Analysis!$A:$U,17,FALSE),0),#N/A)","v":{"$error":"#VALUE!"}},{"$error":"#VALUE!"},{"$error":"#VALUE!"},{"$error":"#VALUE!"}]
[{"$error":"#VALUE!"},{"$error":"#VALUE!"},{"$f":"VLOOKUP($A430,Analysis!$A:$U,11,FALSE)","v":{"$error":"#VALUE!"}},{"$f":"IF(VLOOKUP($A430,Analysis!$A:$U,3,FALSE)=1,VLOOKUP($A430,Analysis!$A:$U,18,FALSE),#N/A)","v":{"$error":"#VALUE!"}},{"$f":"IF(ISERROR($D430),VLOOKUP($A430,Analysis!$A:$U,18,FALSE),#N/A)","v":{"$error":"#VALUE!"}},{"$error":"#VALUE!"},{"$error":"#VALUE!"},{"$error":"#VALUE!"},null,{"$f":"VLOOKUP($A430,Analysis!$A:$U,10,FALSE)","v":{"$error":"#VALUE!"}},{"$f":"IF(VLOOKUP($A430,Analysis!$A:$U,3,FALSE)=1,ROUND(VLOOKUP($A430,Analysis!$A:$U,17,FALSE),0),#N/A)","v":{"$error":"#VALUE!"}},{"$f":"IF(ISERROR($K430),ROUND(VLOOKUP($A430,Analysis!$A:$U,17,FALSE),0),#N/A)","v":{"$error":"#VALUE!"}},{"$error":"#VALUE!"},{"$error":"#VALUE!"},{"$error":"#VALUE!"}]
[{"$error":"#VALUE!"},{"$error":"#VALUE!"},{"$f":"VLOOKUP($A431,Analysis!$A:$U,11,FALSE)","v":{"$error":"#VALUE!"}},{"$f":"IF(VLOOKUP($A431,Analysis!$A:$U,3,FALSE)=1,VLOOKUP($A431,Analysis!$A:$U,18,FALSE),#N/A)","v":{"$error":"#VALUE!"}},{"$f":"IF(ISERROR($D431),VLOOKUP($A431,Analysis!$A:$U,18,FALSE),#N/A)","v":{"$error":"#VALUE!"}},{"$error":"#VALUE!"},{"$error":"#VALUE!"},{"$error":"#VALUE!"},null,{"$f":"VLOOKUP($A431,Analysis!$A:$U,10,FALSE)","v":{"$error":"#VALUE!"}},{"$f":"IF(VLOOKUP($A431,Analysis!$A:$U,3,FALSE)=1,ROUND(VLOOKUP($A431,Analysis!$A:$U,17,FALSE),0),#N/A)","v":{"$error":"#VALUE!"}},{"$f":"IF(ISERROR($K431),ROUND(VLOOKUP($A431,Analysis!$A:$U,17,FALSE),0),#N/A)","v":{"$error":"#VALUE!"}},{"$error":"#VALUE!"},{"$error":"#VALUE!"},{"$error":"#VALUE!"}]
[{"$error":"#VALUE!"},{"$error":"#VALUE!"},{"$f":"VLOOKUP($A432,Analysis!$A:$U,11,FALSE)","v":{"$error":"#VALUE!"}},{"$f":"IF(VLOOKUP($A432,Analysis!$A:$U,3,FALSE)=1,VLOOKUP($A432,Analysis!$A:$U,18,FALSE),#N/A)","v":{"$error":"#VALUE!"}},{"$f":"IF(ISERROR($D432),VLOOKUP($A432,Analysis!$A:$U,18,FALSE),#N/A)","v":{"$error":"#VALUE!"}},{"$error":"#VALUE!"},{"$error":"#VALUE!"},{"$error":"#VALUE!"},null,{"$f":"VLOOKUP($A432,Analysis!$A:$U,10,FALSE)","v":{"$error":"#VALUE!"}},{"$f":"IF(VLOOKUP($A432,Analysis!$A:$U,3,FALSE)=1,ROUND(VLOOKUP($A432,Analysis!$A:$U,17,FALSE),0),#N/A)","v":{"$error":"#VALUE!"}},{"$f":"IF(ISERROR($K432),ROUND(VLOOKUP($A432,Analysis!$A:$U,17,FALSE),0),#N/A)","v":{"$error":"#VALUE!"}},{"$error":"#VALUE!"},{"$error":"#VALUE!"},{"$error":"#VALUE!"}]
[{"$error":"#VALUE!"},{"$error":"#VALUE!"},{"$f":"VLOOKUP($A433,Analysis!$A:$U,11,FALSE)","v":{"$error":"#VALUE!"}},{"$f":"IF(VLOOKUP($A433,Analysis!$A:$U,3,FALSE)=1,VLOOKUP($A433,Analysis!$A:$U,18,FALSE),#N/A)","v":{"$error":"#VALUE!"}},{"$f":"IF(ISERROR($D433),VLOOKUP($A433,Analysis!$A:$U,18,FALSE),#N/A)","v":{"$error":"#VALUE!"}},{"$error":"#VALUE!"},{"$error":"#VALUE!"},{"$error":"#VALUE!"},null,{"$f":"VLOOKUP($A433,Analysis!$A:$U,10,FALSE)","v":{"$error":"#VALUE!"}},{"$f":"IF(VLOOKUP($A433,Analysis!$A:$U,3,FALSE)=1,ROUND(VLOOKUP($A433,Analysis!$A:$U,17,FALSE),0),#N/A)","v":{"$error":"#VALUE!"}},{"$f":"IF(ISERROR($K433),ROUND(VLOOKUP($A433,Analysis!$A:$U,17,FALSE),0),#N/A)","v":{"$error":"#VALUE!"}},{"$error":"#VALUE!"},{"$error":"#VALUE!"},{"$error":"#VALUE!"}]
[{"$error":"#VALUE!"},{"$error":"#VALUE!"},{"$f":"VLOOKUP($A434,Analysis!$A:$U,11,FALSE)","v":{"$error":"#VALUE!"}},{"$f":"IF(VLOOKUP($A434,Analysis!$A:$U,3,FALSE)=1,VLOOKUP($A434,Analysis!$A:$U,18,FALSE),#N/A)","v":{"$error":"#VALUE!"}},{"$f":"IF(ISERROR($D434),VLOOKUP($A434,Analysis!$A:$U,18,FALSE),#N/A)","v":{"$error":"#VALUE!"}},{"$error":"#VALUE!"},{"$error":"#VALUE!"},{"$error":"#VALUE!"},null,{"$f":"VLOOKUP($A434,Analysis!$A:$U,10,FALSE)","v":{"$error":"#VALUE!"}},{"$f":"IF(VLOOKUP($A434,Analysis!$A:$U,3,FALSE)=1,ROUND(VLOOKUP($A434,Analysis!$A:$U,17,FALSE),0),#N/A)","v":{"$error":"#VALUE!"}},{"$f":"IF(ISERROR($K434),ROUND(VLOOKUP($A434,Analysis!$A:$U,17,FALSE),0),#N/A)","v":{"$error":"#VALUE!"}},{"$error":"#VALUE!"},{"$error":"#VALUE!"},{"$error":"#VALUE!"}]
[{"$error":"#VALUE!"},{"$error":"#VALUE!"},{"$f":"VLOOKUP($A435,Analysis!$A:$U,11,FALSE)","v":{"$error":"#VALUE!"}},{"$f":"IF(VLOOKUP($A435,Analysis!$A:$U,3,FALSE)=1,VLOOKUP($A435,Analysis!$A:$U,18,FALSE),#N/A)","v":{"$error":"#VALUE!"}},{"$f":"IF(ISERROR($D435),VLOOKUP($A435,Analysis!$A:$U,18,FALSE),#N/A)","v":{"$error":"#VALUE!"}},{"$error":"#VALUE!"},{"$error":"#VALUE!"},{"$error":"#VALUE!"},null,{"$f":"VLOOKUP($A435,Analysis!$A:$U,10,FALSE)","v":{"$error":"#VALUE!"}},{"$f":"IF(VLOOKUP($A435,Analysis!$A:$U,3,FALSE)=1,ROUND(VLOOKUP($A435,Analysis!$A:$U,17,FALSE),0),#N/A)","v":{"$error":"#VALUE!"}},{"$f":"IF(ISERROR($K435),ROUND(VLOOKUP($A435,Analysis!$A:$U,17,FALSE),0),#N/A)","v":{"$error":"#VALUE!"}},{"$error":"#VALUE!"},{"$error":"#VALUE!"},{"$error":"#VALUE!"}]
[{"$error":"#VALUE!"},{"$error":"#VALUE!"},{"$f":"VLOOKUP($A436,Analysis!$A:$U,11,FALSE)","v":{"$error":"#VALUE!"}},{"$f":"IF(VLOOKUP($A436,Analysis!$A:$U,3,FALSE)=1,VLOOKUP($A436,Analysis!$A:$U,18,FALSE),#N/A)","v":{"$error":"#VALUE!"}},{"$f":"IF(ISERROR($D436),VLOOKUP($A436,Analysis!$A:$U,18,FALSE),#N/A)","v":{"$error":"#VALUE!"}},{"$error":"#VALUE!"},{"$error":"#VALUE!"},{"$error":"#VALUE!"},null,{"$f":"VLOOKUP($A436,Analysis!$A:$U,10,FALSE)","v":{"$error":"#VALUE!"}},{"$f":"IF(VLOOKUP($A436,Analysis!$A:$U,3,FALSE)=1,ROUND(VLOOKUP($A436,Analysis!$A:$U,17,FALSE),0),#N/A)","v":{"$error":"#VALUE!"}},{"$f":"IF(ISERROR($K436),ROUND(VLOOKUP($A436,Analysis!$A:$U,17,FALSE),0),#N/A)","v":{"$error":"#VALUE!"}},{"$error":"#VALUE!"},{"$error":"#VALUE!"},{"$error":"#VALUE!"}]
[{"$error":"#VALUE!"},{"$error":"#VALUE!"},{"$f":"VLOOKUP($A437,Analysis!$A:$U,11,FALSE)","v":{"$error":"#VALUE!"}},{"$f":"IF(VLOOKUP($A437,Analysis!$A:$U,3,FALSE)=1,VLOOKUP($A437,Analysis!$A:$U,18,FALSE),#N/A)","v":{"$error":"#VALUE!"}},{"$f":"IF(ISERROR($D437),VLOOKUP($A437,Analysis!$A:$U,18,FALSE),#N/A)","v":{"$error":"#VALUE!"}},{"$error":"#VALUE!"},{"$error":"#VALUE!"},{"$error":"#VALUE!"},null,{"$f":"VLOOKUP($A437,Analysis!$A:$U,10,FALSE)","v":{"$error":"#VALUE!"}},{"$f":"IF(VLOOKUP($A437,Analysis!$A:$U,3,FALSE)=1,ROUND(VLOOKUP($A437,Analysis!$A:$U,17,FALSE),0),#N/A)","v":{"$error":"#VALUE!"}},{"$f":"IF(ISERROR($K437),ROUND(VLOOKUP($A437,Analysis!$A:$U,17,FALSE),0),#N/A)","v":{"$error":"#VALUE!"}},{"$error":"#VALUE!"},{"$error":"#VALUE!"},{"$error":"#VALUE!"}]
[{"$error":"#VALUE!"},{"$error":"#VALUE!"},{"$f":"VLOOKUP($A438,Analysis!$A:$U,11,FALSE)","v":{"$error":"#VALUE!"}},{"$f":"IF(VLOOKUP($A438,Analysis!$A:$U,3,FALSE)=1,VLOOKUP($A438,Analysis!$A:$U,18,FALSE),#N/A)","v":{"$error":"#VALUE!"}},{"$f":"IF(ISERROR($D438),VLOOKUP($A438,Analysis!$A:$U,18,FALSE),#N/A)","v":{"$error":"#VALUE!"}},{"$error":"#VALUE!"},{"$error":"#VALUE!"},{"$error":"#VALUE!"},null,{"$f":"VLOOKUP($A438,Analysis!$A:$U,10,FALSE)","v":{"$error":"#VALUE!"}},{"$f":"IF(VLOOKUP($A438,Analysis!$A:$U,3,FALSE)=1,ROUND(VLOOKUP($A438,Analysis!$A:$U,17,FALSE),0),#N/A)","v":{"$error":"#VALUE!"}},{"$f":"IF(ISERROR($K438),ROUND(VLOOKUP($A438,Analysis!$A:$U,17,FALSE),0),#N/A)","v":{"$error":"#VALUE!"}},{"$error":"#VALUE!"},{"$error":"#VALUE!"},{"$error":"#VALUE!"}]
[{"$error":"#VALUE!"},{"$error":"#VALUE!"},{"$f":"VLOOKUP($A439,Analysis!$A:$U,11,FALSE)","v":{"$error":"#VALUE!"}},{"$f":"IF(VLOOKUP($A439,Analysis!$A:$U,3,FALSE)=1,VLOOKUP($A439,Analysis!$A:$U,18,FALSE),#N/A)","v":{"$error":"#VALUE!"}},{"$f":"IF(ISERROR($D439),VLOOKUP($A439,Analysis!$A:$U,18,FALSE),#N/A)","v":{"$error":"#VALUE!"}},{"$error":"#VALUE!"},{"$error":"#VALUE!"},{"$error":"#VALUE!"},null,{"$f":"VLOOKUP($A439,Analysis!$A:$U,10,FALSE)","v":{"$error":"#VALUE!"}},{"$f":"IF(VLOOKUP($A439,Analysis!$A:$U,3,FALSE)=1,ROUND(VLOOKUP($A439,Analysis!$A:$U,17,FALSE),0),#N/A)","v":{"$error":"#VALUE!"}},{"$f":"IF(ISERROR($K439),ROUND(VLOOKUP($A439,Analysis!$A:$U,17,FALSE),0),#N/A)","v":{"$error":"#VALUE!"}},{"$error":"#VALUE!"},{"$error":"#VALUE!"},{"$error":"#VALUE!"}]
[{"$error":"#VALUE!"},{"$error":"#VALUE!"},{"$f":"VLOOKUP($A440,Analysis!$A:$U,11,FALSE)","v":{"$error":"#VALUE!"}},{"$f":"IF(VLOOKUP($A440,Analysis!$A:$U,3,FALSE)=1,VLOOKUP($A440,Analysis!$A:$U,18,FALSE),#N/A)","v":{"$error":"#VALUE!"}},{"$f":"IF(ISERROR($D440),VLOOKUP($A440,Analysis!$A:$U,18,FALSE),#N/A)","v":{"$error":"#VALUE!"}},{"$error":"#VALUE!"},{"$error":"#VALUE!"},{"$error":"#VALUE!"},null,{"$f":"VLOOKUP($A440,Analysis!$A:$U,10,FALSE)","v":{"$error":"#VALUE!"}},{"$f":"IF(VLOOKUP($A440,Analysis!$A:$U,3,FALSE)=1,ROUND(VLOOKUP($A440,Analysis!$A:$U,17,FALSE),0),#N/A)","v":{"$error":"#VALUE!"}},{"$f":"IF(ISERROR($K440),ROUND(VLOOKUP($A440,Analysis!$A:$U,17,FALSE),0),#N/A)","v":{"$error":"#VALUE!"}},{"$error":"#VALUE!"},{"$error":"#VALUE!"},{"$error":"#VALUE!"}]
[{"$error":"#VALUE!"},{"$error":"#VALUE!"},{"$f":"VLOOKUP($A441,Analysis!$A:$U,11,FALSE)","v":{"$error":"#VALUE!"}},{"$f":"IF(VLOOKUP($A441,Analysis!$A:$U,3,FALSE)=1,VLOOKUP($A441,Analysis!$A:$U,18,FALSE),#N/A)","v":{"$error":"#VALUE!"}},{"$f":"IF(ISERROR($D441),VLOOKUP($A441,Analysis!$A:$U,18,FALSE),#N/A)","v":{"$error":"#VALUE!"}},{"$error":"#VALUE!"},{"$error":"#VALUE!"},{"$error":"#VALUE!"},null,{"$f":"VLOOKUP($A441,Analysis!$A:$U,10,FALSE)","v":{"$error":"#VALUE!"}},{"$f":"IF(VLOOKUP($A441,Analysis!$A:$U,3,FALSE)=1,ROUND(VLOOKUP($A441,Analysis!$A:$U,17,FALSE),0),#N/A)","v":{"$error":"#VALUE!"}},{"$f":"IF(ISERROR($K441),ROUND(VLOOKUP($A441,Analysis!$A:$U,17,FALSE),0),#N/A)","v":{"$error":"#VALUE!"}},{"$error":"#VALUE!"},{"$error":"#VALUE!"},{"$error":"#VALUE!"}]
[{"$error":"#VALUE!"},{"$error":"#VALUE!"},{"$f":"VLOOKUP($A442,Analysis!$A:$U,11,FALSE)","v":{"$error":"#VALUE!"}},{"$f":"IF(VLOOKUP($A442,Analysis!$A:$U,3,FALSE)=1,VLOOKUP($A442,Analysis!$A:$U,18,FALSE),#N/A)","v":{"$error":"#VALUE!"}},{"$f":"IF(ISERROR($D442),VLOOKUP($A442,Analysis!$A:$U,18,FALSE),#N/A)","v":{"$error":"#VALUE!"}},{"$error":"#VALUE!"},{"$error":"#VALUE!"},{"$error":"#VALUE!"},null,{"$f":"VLOOKUP($A442,Analysis!$A:$U,10,FALSE)","v":{"$error":"#VALUE!"}},{"$f":"IF(VLOOKUP($A442,Analysis!$A:$U,3,FALSE)=1,ROUND(VLOOKUP($A442,Analysis!$A:$U,17,FALSE),0),#N/A)","v":{"$error":"#VALUE!"}},{"$f":"IF(ISERROR($K442),ROUND(VLOOKUP($A442,Analysis!$A:$U,17,FALSE),0),#N/A)","v":{"$error":"#VALUE!"}},{"$error":"#VALUE!"},{"$error":"#VALUE!"},{"$error":"#VALUE!"}]
[{"$error":"#VALUE!"},{"$error":"#VALUE!"},{"$f":"VLOOKUP($A443,Analysis!$A:$U,11,FALSE)","v":{"$error":"#VALUE!"}},{"$f":"IF(VLOOKUP($A443,Analysis!$A:$U,3,FALSE)=1,VLOOKUP($A443,Analysis!$A:$U,18,FALSE),#N/A)","v":{"$error":"#VALUE!"}},{"$f":"IF(ISERROR($D443),VLOOKUP($A443,Analysis!$A:$U,18,FALSE),#N/A)","v":{"$error":"#VALUE!"}},{"$error":"#VALUE!"},{"$error":"#VALUE!"},{"$error":"#VALUE!"},null,{"$f":"VLOOKUP($A443,Analysis!$A:$U,10,FALSE)","v":{"$error":"#VALUE!"}},{"$f":"IF(VLOOKUP($A443,Analysis!$A:$U,3,FALSE)=1,ROUND(VLOOKUP($A443,Analysis!$A:$U,17,FALSE),0),#N/A)","v":{"$error":"#VALUE!"}},{"$f":"IF(ISERROR($K443),ROUND(VLOOKUP($A443,Analysis!$A:$U,17,FALSE),0),#N/A)","v":{"$error":"#VALUE!"}},{"$error":"#VALUE!"},{"$error":"#VALUE!"},{"$error":"#VALUE!"}]
[{"$error":"#VALUE!"},{"$error":"#VALUE!"},{"$f":"VLOOKUP($A444,Analysis!$A:$U,11,FALSE)","v":{"$error":"#VALUE!"}},{"$f":"IF(VLOOKUP($A444,Analysis!$A:$U,3,FALSE)=1,VLOOKUP($A444,Analysis!$A:$U,18,FALSE),#N/A)","v":{"$error":"#VALUE!"}},{"$f":"IF(ISERROR($D444),VLOOKUP($A444,Analysis!$A:$U,18,FALSE),#N/A)","v":{"$error":"#VALUE!"}},{"$error":"#VALUE!"},{"$error":"#VALUE!"},{"$error":"#VALUE!"},null,{"$f":"VLOOKUP($A444,Analysis!$A:$U,10,FALSE)","v":{"$error":"#VALUE!"}},{"$f":"IF(VLOOKUP($A444,Analysis!$A:$U,3,FALSE)=1,ROUND(VLOOKUP($A444,Analysis!$A:$U,17,FALSE),0),#N/A)","v":{"$error":"#VALUE!"}},{"$f":"IF(ISERROR($K444),ROUND(VLOOKUP($A444,Analysis!$A:$U,17,FALSE),0),#N/A)","v":{"$error":"#VALUE!"}},{"$error":"#VALUE!"},{"$error":"#VALUE!"},{"$error":"#VALUE!"}]
[{"$error":"#VALUE!"},{"$error":"#VALUE!"},{"$f":"VLOOKUP($A445,Analysis!$A:$U,11,FALSE)","v":{"$error":"#VALUE!"}},{"$f":"IF(VLOOKUP($A445,Analysis!$A:$U,3,FALSE)=1,VLOOKUP($A445,Analysis!$A:$U,18,FALSE),#N/A)","v":{"$error":"#VALUE!"}},{"$f":"IF(ISERROR($D445),VLOOKUP($A445,Analysis!$A:$U,18,FALSE),#N/A)","v":{"$error":"#VALUE!"}},{"$error":"#VALUE!"},{"$error":"#VALUE!"},{"$error":"#VALUE!"},null,{"$f":"VLOOKUP($A445,Analysis!$A:$U,10,FALSE)","v":{"$error":"#VALUE!"}},{"$f":"IF(VLOOKUP($A445,Analysis!$A:$U,3,FALSE)=1,ROUND(VLOOKUP($A445,Analysis!$A:$U,17,FALSE),0),#N/A)","v":{"$error":"#VALUE!"}},{"$f":"IF(ISERROR($K445),ROUND(VLOOKUP($A445,Analysis!$A:$U,17,FALSE),0),#N/A)","v":{"$error":"#VALUE!"}},{"$error":"#VALUE!"},{"$error":"#VALUE!"},{"$error":"#VALUE!"}]
[{"$error":"#VALUE!"},{"$error":"#VALUE!"},{"$f":"VLOOKUP($A446,Analysis!$A:$U,11,FALSE)","v":{"$error":"#VALUE!"}},{"$f":"IF(VLOOKUP($A446,Analysis!$A:$U,3,FALSE)=1,VLOOKUP($A446,Analysis!$A:$U,18,FALSE),#N/A)","v":{"$error":"#VALUE!"}},{"$f":"IF(ISERROR($D446),VLOOKUP($A446,Analysis!$A:$U,18,FALSE),#N/A)","v":{"$error":"#VALUE!"}},{"$error":"#VALUE!"},{"$error":"#VALUE!"},{"$error":"#VALUE!"},null,{"$f":"VLOOKUP($A446,Analysis!$A:$U,10,FALSE)","v":{"$error":"#VALUE!"}},{"$f":"IF(VLOOKUP($A446,Analysis!$A:$U,3,FALSE)=1,ROUND(VLOOKUP($A446,Analysis!$A:$U,17,FALSE),0),#N/A)","v":{"$error":"#VALUE!"}},{"$f":"IF(ISERROR($K446),ROUND(VLOOKUP($A446,Analysis!$A:$U,17,FALSE),0),#N/A)","v":{"$error":"#VALUE!"}},{"$error":"#VALUE!"},{"$error":"#VALUE!"},{"$error":"#VALUE!"}]
[{"$error":"#VALUE!"},{"$error":"#VALUE!"},{"$f":"VLOOKUP($A447,Analysis!$A:$U,11,FALSE)","v":{"$error":"#VALUE!"}},{"$f":"IF(VLOOKUP($A447,Analysis!$A:$U,3,FALSE)=1,VLOOKUP($A447,Analysis!$A:$U,18,FALSE),#N/A)","v":{"$error":"#VALUE!"}},{"$f":"IF(ISERROR($D447),VLOOKUP($A447,Analysis!$A:$U,18,FALSE),#N/A)","v":{"$error":"#VALUE!"}},{"$error":"#VALUE!"},{"$error":"#VALUE!"},{"$error":"#VALUE!"},null,{"$f":"VLOOKUP($A447,Analysis!$A:$U,10,FALSE)","v":{"$error":"#VALUE!"}},{"$f":"IF(VLOOKUP($A447,Analysis!$A:$U,3,FALSE)=1,ROUND(VLOOKUP($A447,Analysis!$A:$U,17,FALSE),0),#N/A)","v":{"$error":"#VALUE!"}},{"$f":"IF(ISERROR($K447),ROUND(VLOOKUP($A447,Analysis!$A:$U,17,FALSE),0),#N/A)","v":{"$error":"#VALUE!"}},{"$error":"#VALUE!"},{"$error":"#VALUE!"},{"$error":"#VALUE!"}]
[{"$error":"#VALUE!"},{"$error":"#VALUE!"},{"$f":"VLOOKUP($A448,Analysis!$A:$U,11,FALSE)","v":{"$error":"#VALUE!"}},{"$f":"IF(VLOOKUP($A448,Analysis!$A:$U,3,FALSE)=1,VLOOKUP($A448,Analysis!$A:$U,18,FALSE),#N/A)","v":{"$error":"#VALUE!"}},{"$f":"IF(ISERROR($D448),VLOOKUP($A448,Analysis!$A:$U,18,FALSE),#N/A)","v":{"$error":"#VALUE!"}},{"$error":"#VALUE!"},{"$error":"#VALUE!"},{"$error":"#VALUE!"},null,{"$f":"VLOOKUP($A448,Analysis!$A:$U,10,FALSE)","v":{"$error":"#VALUE!"}},{"$f":"IF(VLOOKUP($A448,Analysis!$A:$U,3,FALSE)=1,ROUND(VLOOKUP($A448,Analysis!$A:$U,17,FALSE),0),#N/A)","v":{"$error":"#VALUE!"}},{"$f":"IF(ISERROR($K448),ROUND(VLOOKUP($A448,Analysis!$A:$U,17,FALSE),0),#N/A)","v":{"$error":"#VALUE!"}},{"$error":"#VALUE!"},{"$error":"#VALUE!"},{"$error":"#VALUE!"}]
[{"$error":"#VALUE!"},{"$error":"#VALUE!"},{"$f":"VLOOKUP($A449,Analysis!$A:$U,11,FALSE)","v":{"$error":"#VALUE!"}},{"$f":"IF(VLOOKUP($A449,Analysis!$A:$U,3,FALSE)=1,VLOOKUP($A449,Analysis!$A:$U,18,FALSE),#N/A)","v":{"$error":"#VALUE!"}},{"$f":"IF(ISERROR($D449),VLOOKUP($A449,Analysis!$A:$U,18,FALSE),#N/A)","v":{"$error":"#VALUE!"}},{"$error":"#VALUE!"},{"$error":"#VALUE!"},{"$error":"#VALUE!"},null,{"$f":"VLOOKUP($A449,Analysis!$A:$U,10,FALSE)","v":{"$error":"#VALUE!"}},{"$f":"IF(VLOOKUP($A449,Analysis!$A:$U,3,FALSE)=1,ROUND(VLOOKUP($A449,Analysis!$A:$U,17,FALSE),0),#N/A)","v":{"$error":"#VALUE!"}},{"$f":"IF(ISERROR($K449),ROUND(VLOOKUP($A449,Analysis!$A:$U,17,FALSE),0),#N/A)","v":{"$error":"#VALUE!"}},{"$error":"#VALUE!"},{"$error":"#VALUE!"},{"$error":"#VALUE!"}]
[{"$f":"Item_ID","v":{"$error":"#VALUE!"}},{"$f":"Valuation_Method","v":{"$error":"#VALUE!"}},{"$f":"VLOOKUP($A450,Analysis!$A:$U,11,FALSE)","v":{"$error":"#VALUE!"}},{"$f":"IF(VLOOKUP($A450,Analysis!$A:$U,3,FALSE)=1,VLOOKUP($A450,Analysis!$A:$U,18,FALSE),#N/A)","v":{"$error":"#VALUE!"}},{"$f":"IF(ISERROR($D450),VLOOKUP($A450,Analysis!$A:$U,18,FALSE),#N/A)","v":{"$error":"#VALUE!"}},{"$error":"#VALUE!"},{"$error":"#VALUE!"},{"$error":"#VALUE!"},null,{"$f":"VLOOKUP($A450,Analysis!$A:$U,10,FALSE)","v":{"$error":"#VALUE!"}},{"$f":"IF(VLOOKUP($A450,Analysis!$A:$U,3,FALSE)=1,ROUND(VLOOKUP($A450,Analysis!$A:$U,17,FALSE),0),#N/A)","v":{"$error":"#VALUE!"}},{"$f":"IF(ISERROR($K450),ROUND(VLOOKUP($A450,Analysis!$A:$U,17,FALSE),0),#N/A)","v":{"$error":"#VALUE!"}},{"$error":"#VALUE!"},{"$error":"#VALUE!"},{"$error":"#VALUE!"}]
[{"$error":"#VALUE!"},{"$error":"#VALUE!"},{"$f":"VLOOKUP($A451,Analysis!$A:$U,11,FALSE)","v":{"$error":"#VALUE!"}},{"$f":"IF(VLOOKUP($A451,Analysis!$A:$U,3,FALSE)=1,VLOOKUP($A451,Analysis!$A:$U,18,FALSE),#N/A)","v":{"$error":"#VALUE!"}},{"$f":"IF(ISERROR($D451),VLOOKUP($A451,Analysis!$A:$U,18,FALSE),#N/A)","v":{"$error":"#VALUE!"}},{"$f":"IF($B451=\"Vacant\",$D451,#N/A)","v":{"$error":"#VALUE!"}},{"$f":"IF($B451=\"Abstraction\",$D451,#N/A)","v":{"$error":"#VALUE!"}},{"$f":"IF($B451=\"Allocation\",$D451,#N/A)","v":{"$error":"#VALUE!"}},null,{"$f":"VLOOKUP($A451,Analysis!$A:$U,10,FALSE)","v":{"$error":"#VALUE!"}},{"$f":"IF(VLOOKUP($A451,Analysis!$A:$U,3,FALSE)=1,ROUND(VLOOKUP($A451,Analysis!$A:$U,17,FALSE),0),#N/A)","v":{"$error":"#VALUE!"}},{"$f":"IF(ISERROR($K451),ROUND(VLOOKUP($A451,Analysis!$A:$U,17,FALSE),0),#N/A)","v":{"$error":"#VALUE!"}},{"$f":"IF($B451=\"Vacant\",$K451,#N/A)","v":{"$error":"#VALUE!"}},{"$f":"IF($B451=\"Abstraction\",$K451,#N/A)","v":{"$error":"#VALUE!"}},{"$f":"IF($B451=\"Allocation\",$K451,#N/A)","v":{"$error":"#VALUE!"}}]
[{"$error":"#VALUE!"},{"$error":"#VALUE!"},{"$f":"VLOOKUP($A452,Analysis!$A:$U,11,FALSE)","v":{"$error":"#VALUE!"}},{"$f":"IF(VLOOKUP($A452,Analysis!$A:$U,3,FALSE)=1,VLOOKUP($A452,Analysis!$A:$U,18,FALSE),#N/A)","v":{"$error":"#VALUE!"}},{"$f":"IF(ISERROR($D452),VLOOKUP($A452,Analysis!$A:$U,18,FALSE),#N/A)","v":{"$error":"#VALUE!"}},{"$error":"#VALUE!"},{"$error":"#VALUE!"},{"$error":"#VALUE!"},null,{"$f":"VLOOKUP($A452,Analysis!$A:$U,10,FALSE)","v":{"$error":"#VALUE!"}},{"$f":"IF(VLOOKUP($A452,Analysis!$A:$U,3,FALSE)=1,ROUND(VLOOKUP($A452,Analysis!$A:$U,17,FALSE),0),#N/A)","v":{"$error":"#VALUE!"}},{"$f":"IF(ISERROR($K452),ROUND(VLOOKUP($A452,Analysis!$A:$U,17,FALSE),0),#N/A)","v":{"$error":"#VALUE!"}},{"$error":"#VALUE!"},{"$error":"#VALUE!"},{"$error":"#VALUE!"}]
[{"$error":"#VALUE!"},{"$error":"#VALUE!"},{"$f":"VLOOKUP($A453,Analysis!$A:$U,11,FALSE)","v":{"$error":"#VALUE!"}},{"$f":"IF(VLOOKUP($A453,Analysis!$A:$U,3,FALSE)=1,VLOOKUP($A453,Analysis!$A:$U,18,FALSE),#N/A)","v":{"$error":"#VALUE!"}},{"$f":"IF(ISERROR($D453),VLOOKUP($A453,Analysis!$A:$U,18,FALSE),#N/A)","v":{"$error":"#VALUE!"}},{"$error":"#VALUE!"},{"$error":"#VALUE!"},{"$error":"#VALUE!"},null,{"$f":"VLOOKUP($A453,Analysis!$A:$U,10,FALSE)","v":{"$error":"#VALUE!"}},{"$f":"IF(VLOOKUP($A453,Analysis!$A:$U,3,FALSE)=1,ROUND(VLOOKUP($A453,Analysis!$A:$U,17,FALSE),0),#N/A)","v":{"$error":"#VALUE!"}},{"$f":"IF(ISERROR($K453),ROUND(VLOOKUP($A453,Analysis!$A:$U,17,FALSE),0),#N/A)","v":{"$error":"#VALUE!"}},{"$error":"#VALUE!"},{"$error":"#VALUE!"},{"$error":"#VALUE!"}]
[{"$error":"#VALUE!"},{"$error":"#VALUE!"},{"$f":"VLOOKUP($A454,Analysis!$A:$U,11,FALSE)","v":{"$error":"#VALUE!"}},{"$f":"IF(VLOOKUP($A454,Analysis!$A:$U,3,FALSE)=1,VLOOKUP($A454,Analysis!$A:$U,18,FALSE),#N/A)","v":{"$error":"#VALUE!"}},{"$f":"IF(ISERROR($D454),VLOOKUP($A454,Analysis!$A:$U,18,FALSE),#N/A)","v":{"$error":"#VALUE!"}},{"$error":"#VALUE!"},{"$error":"#VALUE!"},{"$error":"#VALUE!"},null,{"$f":"VLOOKUP($A454,Analysis!$A:$U,10,FALSE)","v":{"$error":"#VALUE!"}},{"$f":"IF(VLOOKUP($A454,Analysis!$A:$U,3,FALSE)=1,ROUND(VLOOKUP($A454,Analysis!$A:$U,17,FALSE),0),#N/A)","v":{"$error":"#VALUE!"}},{"$f":"IF(ISERROR($K454),ROUND(VLOOKUP($A454,Analysis!$A:$U,17,FALSE),0),#N/A)","v":{"$error":"#VALUE!"}},{"$error":"#VALUE!"},{"$error":"#VALUE!"},{"$error":"#VALUE!"}]
[{"$error":"#VALUE!"},{"$error":"#VALUE!"},{"$f":"VLOOKUP($A455,Analysis!$A:$U,11,FALSE)","v":{"$error":"#VALUE!"}},{"$f":"IF(VLOOKUP($A455,Analysis!$A:$U,3,FALSE)=1,VLOOKUP($A455,Analysis!$A:$U,18,FALSE),#N/A)","v":{"$error":"#VALUE!"}},{"$f":"IF(ISERROR($D455),VLOOKUP($A455,Analysis!$A:$U,18,FALSE),#N/A)","v":{"$error":"#VALUE!"}},{"$error":"#VALUE!"},{"$error":"#VALUE!"},{"$error":"#VALUE!"},null,{"$f":"VLOOKUP($A455,Analysis!$A:$U,10,FALSE)","v":{"$error":"#VALUE!"}},{"$f":"IF(VLOOKUP($A455,Analysis!$A:$U,3,FALSE)=1,ROUND(VLOOKUP($A455,Analysis!$A:$U,17,FALSE),0),#N/A)","v":{"$error":"#VALUE!"}},{"$f":"IF(ISERROR($K455),ROUND(VLOOKUP($A455,Analysis!$A:$U,17,FALSE),0),#N/A)","v":{"$error":"#VALUE!"}},{"$error":"#VALUE!"},{"$error":"#VALUE!"},{"$error":"#VALUE!"}]
[{"$error":"#VALUE!"},{"$error":"#VALUE!"},{"$f":"VLOOKUP($A456,Analysis!$A:$U,11,FALSE)","v":{"$error":"#VALUE!"}},{"$f":"IF(VLOOKUP($A456,Analysis!$A:$U,3,FALSE)=1,VLOOKUP($A456,Analysis!$A:$U,18,FALSE),#N/A)","v":{"$error":"#VALUE!"}},{"$f":"IF(ISERROR($D456),VLOOKUP($A456,Analysis!$A:$U,18,FALSE),#N/A)","v":{"$error":"#VALUE!"}},{"$error":"#VALUE!"},{"$error":"#VALUE!"},{"$error":"#VALUE!"},null,{"$f":"VLOOKUP($A456,Analysis!$A:$U,10,FALSE)","v":{"$error":"#VALUE!"}},{"$f":"IF(VLOOKUP($A456,Analysis!$A:$U,3,FALSE)=1,ROUND(VLOOKUP($A456,Analysis!$A:$U,17,FALSE),0),#N/A)","v":{"$error":"#VALUE!"}},{"$f":"IF(ISERROR($K456),ROUND(VLOOKUP($A456,Analysis!$A:$U,17,FALSE),0),#N/A)","v":{"$error":"#VALUE!"}},{"$error":"#VALUE!"},{"$error":"#VALUE!"},{"$error":"#VALUE!"}]
[{"$error":"#VALUE!"},{"$error":"#VALUE!"},{"$f":"VLOOKUP($A457,Analysis!$A:$U,11,FALSE)","v":{"$error":"#VALUE!"}},{"$f":"IF(VLOOKUP($A457,Analysis!$A:$U,3,FALSE)=1,VLOOKUP($A457,Analysis!$A:$U,18,FALSE),#N/A)","v":{"$error":"#VALUE!"}},{"$f":"IF(ISERROR($D457),VLOOKUP($A457,Analysis!$A:$U,18,FALSE),#N/A)","v":{"$error":"#VALUE!"}},{"$error":"#VALUE!"},{"$error":"#VALUE!"},{"$error":"#VALUE!"},null,{"$f":"VLOOKUP($A457,Analysis!$A:$U,10,FALSE)","v":{"$error":"#VALUE!"}},{"$f":"IF(VLOOKUP($A457,Analysis!$A:$U,3,FALSE)=1,ROUND(VLOOKUP($A457,Analysis!$A:$U,17,FALSE),0),#N/A)","v":{"$error":"#VALUE!"}},{"$f":"IF(ISERROR($K457),ROUND(VLOOKUP($A457,Analysis!$A:$U,17,FALSE),0),#N/A)","v":{"$error":"#VALUE!"}},{"$error":"#VALUE!"},{"$error":"#VALUE!"},{"$error":"#VALUE!"}]
[{"$error":"#VALUE!"},{"$error":"#VALUE!"},{"$f":"VLOOKUP($A458,Analysis!$A:$U,11,FALSE)","v":{"$error":"#VALUE!"}},{"$f":"IF(VLOOKUP($A458,Analysis!$A:$U,3,FALSE)=1,VLOOKUP($A458,Analysis!$A:$U,18,FALSE),#N/A)","v":{"$error":"#VALUE!"}},{"$f":"IF(ISERROR($D458),VLOOKUP($A458,Analysis!$A:$U,18,FALSE),#N/A)","v":{"$error":"#VALUE!"}},{"$error":"#VALUE!"},{"$error":"#VALUE!"},{"$error":"#VALUE!"},null,{"$f":"VLOOKUP($A458,Analysis!$A:$U,10,FALSE)","v":{"$error":"#VALUE!"}},{"$f":"IF(VLOOKUP($A458,Analysis!$A:$U,3,FALSE)=1,ROUND(VLOOKUP($A458,Analysis!$A:$U,17,FALSE),0),#N/A)","v":{"$error":"#VALUE!"}},{"$f":"IF(ISERROR($K458),ROUND(VLOOKUP($A458,Analysis!$A:$U,17,FALSE),0),#N/A)","v":{"$error":"#VALUE!"}},{"$error":"#VALUE!"},{"$error":"#VALUE!"},{"$error":"#VALUE!"}]
[{"$error":"#VALUE!"},{"$error":"#VALUE!"},{"$f":"VLOOKUP($A459,Analysis!$A:$U,11,FALSE)","v":{"$error":"#VALUE!"}},{"$f":"IF(VLOOKUP($A459,Analysis!$A:$U,3,FALSE)=1,VLOOKUP($A459,Analysis!$A:$U,18,FALSE),#N/A)","v":{"$error":"#VALUE!"}},{"$f":"IF(ISERROR($D459),VLOOKUP($A459,Analysis!$A:$U,18,FALSE),#N/A)","v":{"$error":"#VALUE!"}},{"$error":"#VALUE!"},{"$error":"#VALUE!"},{"$error":"#VALUE!"},null,{"$f":"VLOOKUP($A459,Analysis!$A:$U,10,FALSE)","v":{"$error":"#VALUE!"}},{"$f":"IF(VLOOKUP($A459,Analysis!$A:$U,3,FALSE)=1,ROUND(VLOOKUP($A459,Analysis!$A:$U,17,FALSE),0),#N/A)","v":{"$error":"#VALUE!"}},{"$f":"IF(ISERROR($K459),ROUND(VLOOKUP($A459,Analysis!$A:$U,17,FALSE),0),#N/A)","v":{"$error":"#VALUE!"}},{"$error":"#VALUE!"},{"$error":"#VALUE!"},{"$error":"#VALUE!"}]
[{"$error":"#VALUE!"},{"$error":"#VALUE!"},{"$f":"VLOOKUP($A460,Analysis!$A:$U,11,FALSE)","v":{"$error":"#VALUE!"}},{"$f":"IF(VLOOKUP($A460,Analysis!$A:$U,3,FALSE)=1,VLOOKUP($A460,Analysis!$A:$U,18,FALSE),#N/A)","v":{"$error":"#VALUE!"}},{"$f":"IF(ISERROR($D460),VLOOKUP($A460,Analysis!$A:$U,18,FALSE),#N/A)","v":{"$error":"#VALUE!"}},{"$error":"#VALUE!"},{"$error":"#VALUE!"},{"$error":"#VALUE!"},null,{"$f":"VLOOKUP($A460,Analysis!$A:$U,10,FALSE)","v":{"$error":"#VALUE!"}},{"$f":"IF(VLOOKUP($A460,Analysis!$A:$U,3,FALSE)=1,ROUND(VLOOKUP($A460,Analysis!$A:$U,17,FALSE),0),#N/A)","v":{"$error":"#VALUE!"}},{"$f":"IF(ISERROR($K460),ROUND(VLOOKUP($A460,Analysis!$A:$U,17,FALSE),0),#N/A)","v":{"$error":"#VALUE!"}},{"$error":"#VALUE!"},{"$error":"#VALUE!"},{"$error":"#VALUE!"}]
[{"$error":"#VALUE!"},{"$error":"#VALUE!"},{"$f":"VLOOKUP($A461,Analysis!$A:$U,11,FALSE)","v":{"$error":"#VALUE!"}},{"$f":"IF(VLOOKUP($A461,Analysis!$A:$U,3,FALSE)=1,VLOOKUP($A461,Analysis!$A:$U,18,FALSE),#N/A)","v":{"$error":"#VALUE!"}},{"$f":"IF(ISERROR($D461),VLOOKUP($A461,Analysis!$A:$U,18,FALSE),#N/A)","v":{"$error":"#VALUE!"}},{"$error":"#VALUE!"},{"$error":"#VALUE!"},{"$error":"#VALUE!"},null,{"$f":"VLOOKUP($A461,Analysis!$A:$U,10,FALSE)","v":{"$error":"#VALUE!"}},{"$f":"IF(VLOOKUP($A461,Analysis!$A:$U,3,FALSE)=1,ROUND(VLOOKUP($A461,Analysis!$A:$U,17,FALSE),0),#N/A)","v":{"$error":"#VALUE!"}},{"$f":"IF(ISERROR($K461),ROUND(VLOOKUP($A461,Analysis!$A:$U,17,FALSE),0),#N/A)","v":{"$error":"#VALUE!"}},{"$error":"#VALUE!"},{"$error":"#VALUE!"},{"$error":"#VALUE!"}]
[{"$error":"#VALUE!"},{"$error":"#VALUE!"},{"$f":"VLOOKUP($A462,Analysis!$A:$U,11,FALSE)","v":{"$error":"#VALUE!"}},{"$f":"IF(VLOOKUP($A462,Analysis!$A:$U,3,FALSE)=1,VLOOKUP($A462,Analysis!$A:$U,18,FALSE),#N/A)","v":{"$error":"#VALUE!"}},{"$f":"IF(ISERROR($D462),VLOOKUP($A462,Analysis!$A:$U,18,FALSE),#N/A)","v":{"$error":"#VALUE!"}},{"$error":"#VALUE!"},{"$error":"#VALUE!"},{"$error":"#VALUE!"},null,{"$f":"VLOOKUP($A462,Analysis!$A:$U,10,FALSE)","v":{"$error":"#VALUE!"}},{"$f":"IF(VLOOKUP($A462,Analysis!$A:$U,3,FALSE)=1,ROUND(VLOOKUP($A462,Analysis!$A:$U,17,FALSE),0),#N/A)","v":{"$error":"#VALUE!"}},{"$f":"IF(ISERROR($K462),ROUND(VLOOKUP($A462,Analysis!$A:$U,17,FALSE),0),#N/A)","v":{"$error":"#VALUE!"}},{"$error":"#VALUE!"},{"$error":"#VALUE!"},{"$error":"#VALUE!"}]
[{"$error":"#VALUE!"},{"$error":"#VALUE!"},{"$f":"VLOOKUP($A463,Analysis!$A:$U,11,FALSE)","v":{"$error":"#VALUE!"}},{"$f":"IF(VLOOKUP($A463,Analysis!$A:$U,3,FALSE)=1,VLOOKUP($A463,Analysis!$A:$U,18,FALSE),#N/A)","v":{"$error":"#VALUE!"}},{"$f":"IF(ISERROR($D463),VLOOKUP($A463,Analysis!$A:$U,18,FALSE),#N/A)","v":{"$error":"#VALUE!"}},{"$error":"#VALUE!"},{"$error":"#VALUE!"},{"$error":"#VALUE!"},null,{"$f":"VLOOKUP($A463,Analysis!$A:$U,10,FALSE)","v":{"$error":"#VALUE!"}},{"$f":"IF(VLOOKUP($A463,Analysis!$A:$U,3,FALSE)=1,ROUND(VLOOKUP($A463,Analysis!$A:$U,17,FALSE),0),#N/A)","v":{"$error":"#VALUE!"}},{"$f":"IF(ISERROR($K463),ROUND(VLOOKUP($A463,Analysis!$A:$U,17,FALSE),0),#N/A)","v":{"$error":"#VALUE!"}},{"$error":"#VALUE!"},{"$error":"#VALUE!"},{"$error":"#VALUE!"}]
[{"$error":"#VALUE!"},{"$error":"#VALUE!"},{"$f":"VLOOKUP($A464,Analysis!$A:$U,11,FALSE)","v":{"$error":"#VALUE!"}},{"$f":"IF(VLOOKUP($A464,Analysis!$A:$U,3,FALSE)=1,VLOOKUP($A464,Analysis!$A:$U,18,FALSE),#N/A)","v":{"$error":"#VALUE!"}},{"$f":"IF(ISERROR($D464),VLOOKUP($A464,Analysis!$A:$U,18,FALSE),#N/A)","v":{"$error":"#VALUE!"}},{"$error":"#VALUE!"},{"$error":"#VALUE!"},{"$error":"#VALUE!"},null,{"$f":"VLOOKUP($A464,Analysis!$A:$U,10,FALSE)","v":{"$error":"#VALUE!"}},{"$f":"IF(VLOOKUP($A464,Analysis!$A:$U,3,FALSE)=1,ROUND(VLOOKUP($A464,Analysis!$A:$U,17,FALSE),0),#N/A)","v":{"$error":"#VALUE!"}},{"$f":"IF(ISERROR($K464),ROUND(VLOOKUP($A464,Analysis!$A:$U,17,FALSE),0),#N/A)","v":{"$error":"#VALUE!"}},{"$error":"#VALUE!"},{"$error":"#VALUE!"},{"$error":"#VALUE!"}]
[{"$error":"#VALUE!"},{"$error":"#VALUE!"},{"$f":"VLOOKUP($A465,Analysis!$A:$U,11,FALSE)","v":{"$error":"#VALUE!"}},{"$f":"IF(VLOOKUP($A465,Analysis!$A:$U,3,FALSE)=1,VLOOKUP($A465,Analysis!$A:$U,18,FALSE),#N/A)","v":{"$error":"#VALUE!"}},{"$f":"IF(ISERROR($D465),VLOOKUP($A465,Analysis!$A:$U,18,FALSE),#N/A)","v":{"$error":"#VALUE!"}},{"$error":"#VALUE!"},{"$error":"#VALUE!"},{"$error":"#VALUE!"},null,{"$f":"VLOOKUP($A465,Analysis!$A:$U,10,FALSE)","v":{"$error":"#VALUE!"}},{"$f":"IF(VLOOKUP($A465,Analysis!$A:$U,3,FALSE)=1,ROUND(VLOOKUP($A465,Analysis!$A:$U,17,FALSE),0),#N/A)","v":{"$error":"#VALUE!"}},{"$f":"IF(ISERROR($K465),ROUND(VLOOKUP($A465,Analysis!$A:$U,17,FALSE),0),#N/A)","v":{"$error":"#VALUE!"}},{"$error":"#VALUE!"},{"$error":"#VALUE!"},{"$error":"#VALUE!"}]
[{"$error":"#VALUE!"},{"$error":"#VALUE!"},{"$f":"VLOOKUP($A466,Analysis!$A:$U,11,FALSE)","v":{"$error":"#VALUE!"}},{"$f":"IF(VLOOKUP($A466,Analysis!$A:$U,3,FALSE)=1,VLOOKUP($A466,Analysis!$A:$U,18,FALSE),#N/A)","v":{"$error":"#VALUE!"}},{"$f":"IF(ISERROR($D466),VLOOKUP($A466,Analysis!$A:$U,18,FALSE),#N/A)","v":{"$error":"#VALUE!"}},{"$error":"#VALUE!"},{"$error":"#VALUE!"},{"$error":"#VALUE!"},null,{"$f":"VLOOKUP($A466,Analysis!$A:$U,10,FALSE)","v":{"$error":"#VALUE!"}},{"$f":"IF(VLOOKUP($A466,Analysis!$A:$U,3,FALSE)=1,ROUND(VLOOKUP($A466,Analysis!$A:$U,17,FALSE),0),#N/A)","v":{"$error":"#VALUE!"}},{"$f":"IF(ISERROR($K466),ROUND(VLOOKUP($A466,Analysis!$A:$U,17,FALSE),0),#N/A)","v":{"$error":"#VALUE!"}},{"$error":"#VALUE!"},{"$error":"#VALUE!"},{"$error":"#VALUE!"}]
[{"$error":"#VALUE!"},{"$error":"#VALUE!"},{"$f":"VLOOKUP($A467,Analysis!$A:$U,11,FALSE)","v":{"$error":"#VALUE!"}},{"$f":"IF(VLOOKUP($A467,Analysis!$A:$U,3,FALSE)=1,VLOOKUP($A467,Analysis!$A:$U,18,FALSE),#N/A)","v":{"$error":"#VALUE!"}},{"$f":"IF(ISERROR($D467),VLOOKUP($A467,Analysis!$A:$U,18,FALSE),#N/A)","v":{"$error":"#VALUE!"}},{"$error":"#VALUE!"},{"$error":"#VALUE!"},{"$error":"#VALUE!"},null,{"$f":"VLOOKUP($A467,Analysis!$A:$U,10,FALSE)","v":{"$error":"#VALUE!"}},{"$f":"IF(VLOOKUP($A467,Analysis!$A:$U,3,FALSE)=1,ROUND(VLOOKUP($A467,Analysis!$A:$U,17,FALSE),0),#N/A)","v":{"$error":"#VALUE!"}},{"$f":"IF(ISERROR($K467),ROUND(VLOOKUP($A467,Analysis!$A:$U,17,FALSE),0),#N/A)","v":{"$error":"#VALUE!"}},{"$error":"#VALUE!"},{"$error":"#VALUE!"},{"$error":"#VALUE!"}]
[{"$error":"#VALUE!"},{"$error":"#VALUE!"},{"$f":"VLOOKUP($A468,Analysis!$A:$U,11,FALSE)","v":{"$error":"#VALUE!"}},{"$f":"IF(VLOOKUP($A468,Analysis!$A:$U,3,FALSE)=1,VLOOKUP($A468,Analysis!$A:$U,18,FALSE),#N/A)","v":{"$error":"#VALUE!"}},{"$f":"IF(ISERROR($D468),VLOOKUP($A468,Analysis!$A:$U,18,FALSE),#N/A)","v":{"$error":"#VALUE!"}},{"$error":"#VALUE!"},{"$error":"#VALUE!"},{"$error":"#VALUE!"},null,{"$f":"VLOOKUP($A468,Analysis!$A:$U,10,FALSE)","v":{"$error":"#VALUE!"}},{"$f":"IF(VLOOKUP($A468,Analysis!$A:$U,3,FALSE)=1,ROUND(VLOOKUP($A468,Analysis!$A:$U,17,FALSE),0),#N/A)","v":{"$error":"#VALUE!"}},{"$f":"IF(ISERROR($K468),ROUND(VLOOKUP($A468,Analysis!$A:$U,17,FALSE),0),#N/A)","v":{"$error":"#VALUE!"}},{"$error":"#VALUE!"},{"$error":"#VALUE!"},{"$error":"#VALUE!"}]
[{"$error":"#VALUE!"},{"$error":"#VALUE!"},{"$f":"VLOOKUP($A469,Analysis!$A:$U,11,FALSE)","v":{"$error":"#VALUE!"}},{"$f":"IF(VLOOKUP($A469,Analysis!$A:$U,3,FALSE)=1,VLOOKUP($A469,Analysis!$A:$U,18,FALSE),#N/A)","v":{"$error":"#VALUE!"}},{"$f":"IF(ISERROR($D469),VLOOKUP($A469,Analysis!$A:$U,18,FALSE),#N/A)","v":{"$error":"#VALUE!"}},{"$error":"#VALUE!"},{"$error":"#VALUE!"},{"$error":"#VALUE!"},null,{"$f":"VLOOKUP($A469,Analysis!$A:$U,10,FALSE)","v":{"$error":"#VALUE!"}},{"$f":"IF(VLOOKUP($A469,Analysis!$A:$U,3,FALSE)=1,ROUND(VLOOKUP($A469,Analysis!$A:$U,17,FALSE),0),#N/A)","v":{"$error":"#VALUE!"}},{"$f":"IF(ISERROR($K469),ROUND(VLOOKUP($A469,Analysis!$A:$U,17,FALSE),0),#N/A)","v":{"$error":"#VALUE!"}},{"$error":"#VALUE!"},{"$error":"#VALUE!"},{"$error":"#VALUE!"}]
[{"$error":"#VALUE!"},{"$error":"#VALUE!"},{"$f":"VLOOKUP($A470,Analysis!$A:$U,11,FALSE)","v":{"$error":"#VALUE!"}},{"$f":"IF(VLOOKUP($A470,Analysis!$A:$U,3,FALSE)=1,VLOOKUP($A470,Analysis!$A:$U,18,FALSE),#N/A)","v":{"$error":"#VALUE!"}},{"$f":"IF(ISERROR($D470),VLOOKUP($A470,Analysis!$A:$U,18,FALSE),#N/A)","v":{"$error":"#VALUE!"}},{"$error":"#VALUE!"},{"$error":"#VALUE!"},{"$error":"#VALUE!"},null,{"$f":"VLOOKUP($A470,Analysis!$A:$U,10,FALSE)","v":{"$error":"#VALUE!"}},{"$f":"IF(VLOOKUP($A470,Analysis!$A:$U,3,FALSE)=1,ROUND(VLOOKUP($A470,Analysis!$A:$U,17,FALSE),0),#N/A)","v":{"$error":"#VALUE!"}},{"$f":"IF(ISERROR($K470),ROUND(VLOOKUP($A470,Analysis!$A:$U,17,FALSE),0),#N/A)","v":{"$error":"#VALUE!"}},{"$error":"#VALUE!"},{"$error":"#VALUE!"},{"$error":"#VALUE!"}]
[{"$error":"#VALUE!"},{"$error":"#VALUE!"},{"$f":"VLOOKUP($A471,Analysis!$A:$U,11,FALSE)","v":{"$error":"#VALUE!"}},{"$f":"IF(VLOOKUP($A471,Analysis!$A:$U,3,FALSE)=1,VLOOKUP($A471,Analysis!$A:$U,18,FALSE),#N/A)","v":{"$error":"#VALUE!"}},{"$f":"IF(ISERROR($D471),VLOOKUP($A471,Analysis!$A:$U,18,FALSE),#N/A)","v":{"$error":"#VALUE!"}},{"$error":"#VALUE!"},{"$error":"#VALUE!"},{"$error":"#VALUE!"},null,{"$f":"VLOOKUP($A471,Analysis!$A:$U,10,FALSE)","v":{"$error":"#VALUE!"}},{"$f":"IF(VLOOKUP($A471,Analysis!$A:$U,3,FALSE)=1,ROUND(VLOOKUP($A471,Analysis!$A:$U,17,FALSE),0),#N/A)","v":{"$error":"#VALUE!"}},{"$f":"IF(ISERROR($K471),ROUND(VLOOKUP($A471,Analysis!$A:$U,17,FALSE),0),#N/A)","v":{"$error":"#VALUE!"}},{"$error":"#VALUE!"},{"$error":"#VALUE!"},{"$error":"#VALUE!"}]
[{"$error":"#VALUE!"},{"$error":"#VALUE!"},{"$f":"VLOOKUP($A472,Analysis!$A:$U,11,FALSE)","v":{"$error":"#VALUE!"}},{"$f":"IF(VLOOKUP($A472,Analysis!$A:$U,3,FALSE)=1,VLOOKUP($A472,Analysis!$A:$U,18,FALSE),#N/A)","v":{"$error":"#VALUE!"}},{"$f":"IF(ISERROR($D472),VLOOKUP($A472,Analysis!$A:$U,18,FALSE),#N/A)","v":{"$error":"#VALUE!"}},{"$error":"#VALUE!"},{"$error":"#VALUE!"},{"$error":"#VALUE!"},null,{"$f":"VLOOKUP($A472,Analysis!$A:$U,10,FALSE)","v":{"$error":"#VALUE!"}},{"$f":"IF(VLOOKUP($A472,Analysis!$A:$U,3,FALSE)=1,ROUND(VLOOKUP($A472,Analysis!$A:$U,17,FALSE),0),#N/A)","v":{"$error":"#VALUE!"}},{"$f":"IF(ISERROR($K472),ROUND(VLOOKUP($A472,Analysis!$A:$U,17,FALSE),0),#N/A)","v":{"$error":"#VALUE!"}},{"$error":"#VALUE!"},{"$error":"#VALUE!"},{"$error":"#VALUE!"}]
[{"$error":"#VALUE!"},{"$error":"#VALUE!"},{"$f":"VLOOKUP($A473,Analysis!$A:$U,11,FALSE)","v":{"$error":"#VALUE!"}},{"$f":"IF(VLOOKUP($A473,Analysis!$A:$U,3,FALSE)=1,VLOOKUP($A473,Analysis!$A:$U,18,FALSE),#N/A)","v":{"$error":"#VALUE!"}},{"$f":"IF(ISERROR($D473),VLOOKUP($A473,Analysis!$A:$U,18,FALSE),#N/A)","v":{"$error":"#VALUE!"}},{"$error":"#VALUE!"},{"$error":"#VALUE!"},{"$error":"#VALUE!"},null,{"$f":"VLOOKUP($A473,Analysis!$A:$U,10,FALSE)","v":{"$error":"#VALUE!"}},{"$f":"IF(VLOOKUP($A473,Analysis!$A:$U,3,FALSE)=1,ROUND(VLOOKUP($A473,Analysis!$A:$U,17,FALSE),0),#N/A)","v":{"$error":"#VALUE!"}},{"$f":"IF(ISERROR($K473),ROUND(VLOOKUP($A473,Analysis!$A:$U,17,FALSE),0),#N/A)","v":{"$error":"#VALUE!"}},{"$error":"#VALUE!"},{"$error":"#VALUE!"},{"$error":"#VALUE!"}]
[{"$error":"#VALUE!"},{"$error":"#VALUE!"},{"$f":"VLOOKUP($A474,Analysis!$A:$U,11,FALSE)","v":{"$error":"#VALUE!"}},{"$f":"IF(VLOOKUP($A474,Analysis!$A:$U,3,FALSE)=1,VLOOKUP($A474,Analysis!$A:$U,18,FALSE),#N/A)","v":{"$error":"#VALUE!"}},{"$f":"IF(ISERROR($D474),VLOOKUP($A474,Analysis!$A:$U,18,FALSE),#N/A)","v":{"$error":"#VALUE!"}},{"$error":"#VALUE!"},{"$error":"#VALUE!"},{"$error":"#VALUE!"},null,{"$f":"VLOOKUP($A474,Analysis!$A:$U,10,FALSE)","v":{"$error":"#VALUE!"}},{"$f":"IF(VLOOKUP($A474,Analysis!$A:$U,3,FALSE)=1,ROUND(VLOOKUP($A474,Analysis!$A:$U,17,FALSE),0),#N/A)","v":{"$error":"#VALUE!"}},{"$f":"IF(ISERROR($K474),ROUND(VLOOKUP($A474,Analysis!$A:$U,17,FALSE),0),#N/A)","v":{"$error":"#VALUE!"}},{"$error":"#VALUE!"},{"$error":"#VALUE!"},{"$error":"#VALUE!"}]
[{"$error":"#VALUE!"},{"$error":"#VALUE!"},{"$f":"VLOOKUP($A475,Analysis!$A:$U,11,FALSE)","v":{"$error":"#VALUE!"}},{"$f":"IF(VLOOKUP($A475,Analysis!$A:$U,3,FALSE)=1,VLOOKUP($A475,Analysis!$A:$U,18,FALSE),#N/A)","v":{"$error":"#VALUE!"}},{"$f":"IF(ISERROR($D475),VLOOKUP($A475,Analysis!$A:$U,18,FALSE),#N/A)","v":{"$error":"#VALUE!"}},{"$error":"#VALUE!"},{"$error":"#VALUE!"},{"$error":"#VALUE!"},null,{"$f":"VLOOKUP($A475,Analysis!$A:$U,10,FALSE)","v":{"$error":"#VALUE!"}},{"$f":"IF(VLOOKUP($A475,Analysis!$A:$U,3,FALSE)=1,ROUND(VLOOKUP($A475,Analysis!$A:$U,17,FALSE),0),#N/A)","v":{"$error":"#VALUE!"}},{"$f":"IF(ISERROR($K475),ROUND(VLOOKUP($A475,Analysis!$A:$U,17,FALSE),0),#N/A)","v":{"$error":"#VALUE!"}},{"$error":"#VALUE!"},{"$error":"#VALUE!"},{"$error":"#VALUE!"}]
[{"$error":"#VALUE!"},{"$error":"#VALUE!"},{"$f":"VLOOKUP($A476,Analysis!$A:$U,11,FALSE)","v":{"$error":"#VALUE!"}},{"$f":"IF(VLOOKUP($A476,Analysis!$A:$U,3,FALSE)=1,VLOOKUP($A476,Analysis!$A:$U,18,FALSE),#N/A)","v":{"$error":"#VALUE!"}},{"$f":"IF(ISERROR($D476),VLOOKUP($A476,Analysis!$A:$U,18,FALSE),#N/A)","v":{"$error":"#VALUE!"}},{"$error":"#VALUE!"},{"$error":"#VALUE!"},{"$error":"#VALUE!"},null,{"$f":"VLOOKUP($A476,Analysis!$A:$U,10,FALSE)","v":{"$error":"#VALUE!"}},{"$f":"IF(VLOOKUP($A476,Analysis!$A:$U,3,FALSE)=1,ROUND(VLOOKUP($A476,Analysis!$A:$U,17,FALSE),0),#N/A)","v":{"$error":"#VALUE!"}},{"$f":"IF(ISERROR($K476),ROUND(VLOOKUP($A476,Analysis!$A:$U,17,FALSE),0),#N/A)","v":{"$error":"#VALUE!"}},{"$error":"#VALUE!"},{"$error":"#VALUE!"},{"$error":"#VALUE!"}]
[{"$error":"#VALUE!"},{"$error":"#VALUE!"},{"$f":"VLOOKUP($A477,Analysis!$A:$U,11,FALSE)","v":{"$error":"#VALUE!"}},{"$f":"IF(VLOOKUP($A477,Analysis!$A:$U,3,FALSE)=1,VLOOKUP($A477,Analysis!$A:$U,18,FALSE),#N/A)","v":{"$error":"#VALUE!"}},{"$f":"IF(ISERROR($D477),VLOOKUP($A477,Analysis!$A:$U,18,FALSE),#N/A)","v":{"$error":"#VALUE!"}},{"$error":"#VALUE!"},{"$error":"#VALUE!"},{"$error":"#VALUE!"},null,{"$f":"VLOOKUP($A477,Analysis!$A:$U,10,FALSE)","v":{"$error":"#VALUE!"}},{"$f":"IF(VLOOKUP($A477,Analysis!$A:$U,3,FALSE)=1,ROUND(VLOOKUP($A477,Analysis!$A:$U,17,FALSE),0),#N/A)","v":{"$error":"#VALUE!"}},{"$f":"IF(ISERROR($K477),ROUND(VLOOKUP($A477,Analysis!$A:$U,17,FALSE),0),#N/A)","v":{"$error":"#VALUE!"}},{"$error":"#VALUE!"},{"$error":"#VALUE!"},{"$error":"#VALUE!"}]
[{"$error":"#VALUE!"},{"$error":"#VALUE!"},{"$f":"VLOOKUP($A478,Analysis!$A:$U,11,FALSE)","v":{"$error":"#VALUE!"}},{"$f":"IF(VLOOKUP($A478,Analysis!$A:$U,3,FALSE)=1,VLOOKUP($A478,Analysis!$A:$U,18,FALSE),#N/A)","v":{"$error":"#VALUE!"}},{"$f":"IF(ISERROR($D478),VLOOKUP($A478,Analysis!$A:$U,18,FALSE),#N/A)","v":{"$error":"#VALUE!"}},{"$error":"#VALUE!"},{"$error":"#VALUE!"},{"$error":"#VALUE!"},null,{"$f":"VLOOKUP($A478,Analysis!$A:$U,10,FALSE)","v":{"$error":"#VALUE!"}},{"$f":"IF(VLOOKUP($A478,Analysis!$A:$U,3,FALSE)=1,ROUND(VLOOKUP($A478,Analysis!$A:$U,17,FALSE),0),#N/A)","v":{"$error":"#VALUE!"}},{"$f":"IF(ISERROR($K478),ROUND(VLOOKUP($A478,Analysis!$A:$U,17,FALSE),0),#N/A)","v":{"$error":"#VALUE!"}},{"$error":"#VALUE!"},{"$error":"#VALUE!"},{"$error":"#VALUE!"}]
[{"$error":"#VALUE!"},{"$error":"#VALUE!"},{"$f":"VLOOKUP($A479,Analysis!$A:$U,11,FALSE)","v":{"$error":"#VALUE!"}},{"$f":"IF(VLOOKUP($A479,Analysis!$A:$U,3,FALSE)=1,VLOOKUP($A479,Analysis!$A:$U,18,FALSE),#N/A)","v":{"$error":"#VALUE!"}},{"$f":"IF(ISERROR($D479),VLOOKUP($A479,Analysis!$A:$U,18,FALSE),#N/A)","v":{"$error":"#VALUE!"}},{"$error":"#VALUE!"},{"$error":"#VALUE!"},{"$error":"#VALUE!"},null,{"$f":"VLOOKUP($A479,Analysis!$A:$U,10,FALSE)","v":{"$error":"#VALUE!"}},{"$f":"IF(VLOOKUP($A479,Analysis!$A:$U,3,FALSE)=1,ROUND(VLOOKUP($A479,Analysis!$A:$U,17,FALSE),0),#N/A)","v":{"$error":"#VALUE!"}},{"$f":"IF(ISERROR($K479),ROUND(VLOOKUP($A479,Analysis!$A:$U,17,FALSE),0),#N/A)","v":{"$error":"#VALUE!"}},{"$error":"#VALUE!"},{"$error":"#VALUE!"},{"$error":"#VALUE!"}]
[{"$error":"#VALUE!"},{"$error":"#VALUE!"},{"$f":"VLOOKUP($A480,Analysis!$A:$U,11,FALSE)","v":{"$error":"#VALUE!"}},{"$f":"IF(VLOOKUP($A480,Analysis!$A:$U,3,FALSE)=1,VLOOKUP($A480,Analysis!$A:$U,18,FALSE),#N/A)","v":{"$error":"#VALUE!"}},{"$f":"IF(ISERROR($D480),VLOOKUP($A480,Analysis!$A:$U,18,FALSE),#N/A)","v":{"$error":"#VALUE!"}},{"$error":"#VALUE!"},{"$error":"#VALUE!"},{"$error":"#VALUE!"},null,{"$f":"VLOOKUP($A480,Analysis!$A:$U,10,FALSE)","v":{"$error":"#VALUE!"}},{"$f":"IF(VLOOKUP($A480,Analysis!$A:$U,3,FALSE)=1,ROUND(VLOOKUP($A480,Analysis!$A:$U,17,FALSE),0),#N/A)","v":{"$error":"#VALUE!"}},{"$f":"IF(ISERROR($K480),ROUND(VLOOKUP($A480,Analysis!$A:$U,17,FALSE),0),#N/A)","v":{"$error":"#VALUE!"}},{"$error":"#VALUE!"},{"$error":"#VALUE!"},{"$error":"#VALUE!"}]
[{"$error":"#VALUE!"},{"$error":"#VALUE!"},{"$f":"VLOOKUP($A481,Analysis!$A:$U,11,FALSE)","v":{"$error":"#VALUE!"}},{"$f":"IF(VLOOKUP($A481,Analysis!$A:$U,3,FALSE)=1,VLOOKUP($A481,Analysis!$A:$U,18,FALSE),#N/A)","v":{"$error":"#VALUE!"}},{"$f":"IF(ISERROR($D481),VLOOKUP($A481,Analysis!$A:$U,18,FALSE),#N/A)","v":{"$error":"#VALUE!"}},{"$error":"#VALUE!"},{"$error":"#VALUE!"},{"$error":"#VALUE!"},null,{"$f":"VLOOKUP($A481,Analysis!$A:$U,10,FALSE)","v":{"$error":"#VALUE!"}},{"$f":"IF(VLOOKUP($A481,Analysis!$A:$U,3,FALSE)=1,ROUND(VLOOKUP($A481,Analysis!$A:$U,17,FALSE),0),#N/A)","v":{"$error":"#VALUE!"}},{"$f":"IF(ISERROR($K481),ROUND(VLOOKUP($A481,Analysis!$A:$U,17,FALSE),0),#N/A)","v":{"$error":"#VALUE!"}},{"$error":"#VALUE!"},{"$error":"#VALUE!"},{"$error":"#VALUE!"}]
[{"$error":"#VALUE!"},{"$error":"#VALUE!"},{"$f":"VLOOKUP($A482,Analysis!$A:$U,11,FALSE)","v":{"$error":"#VALUE!"}},{"$f":"IF(VLOOKUP($A482,Analysis!$A:$U,3,FALSE)=1,VLOOKUP($A482,Analysis!$A:$U,18,FALSE),#N/A)","v":{"$error":"#VALUE!"}},{"$f":"IF(ISERROR($D482),VLOOKUP($A482,Analysis!$A:$U,18,FALSE),#N/A)","v":{"$error":"#VALUE!"}},{"$error":"#VALUE!"},{"$error":"#VALUE!"},{"$error":"#VALUE!"},null,{"$f":"VLOOKUP($A482,Analysis!$A:$U,10,FALSE)","v":{"$error":"#VALUE!"}},{"$f":"IF(VLOOKUP($A482,Analysis!$A:$U,3,FALSE)=1,ROUND(VLOOKUP($A482,Analysis!$A:$U,17,FALSE),0),#N/A)","v":{"$error":"#VALUE!"}},{"$f":"IF(ISERROR($K482),ROUND(VLOOKUP($A482,Analysis!$A:$U,17,FALSE),0),#N/A)","v":{"$error":"#VALUE!"}},{"$error":"#VALUE!"},{"$error":"#VALUE!"},{"$error":"#VALUE!"}]
[{"$error":"#VALUE!"},{"$error":"#VALUE!"},{"$f":"VLOOKUP($A483,Analysis!$A:$U,11,FALSE)","v":{"$error":"#VALUE!"}},{"$f":"IF(VLOOKUP($A483,Analysis!$A:$U,3,FALSE)=1,VLOOKUP($A483,Analysis!$A:$U,18,FALSE),#N/A)","v":{"$error":"#VALUE!"}},{"$f":"IF(ISERROR($D483),VLOOKUP($A483,Analysis!$A:$U,18,FALSE),#N/A)","v":{"$error":"#VALUE!"}},{"$error":"#VALUE!"},{"$error":"#VALUE!"},{"$error":"#VALUE!"},null,{"$f":"VLOOKUP($A483,Analysis!$A:$U,10,FALSE)","v":{"$error":"#VALUE!"}},{"$f":"IF(VLOOKUP($A483,Analysis!$A:$U,3,FALSE)=1,ROUND(VLOOKUP($A483,Analysis!$A:$U,17,FALSE),0),#N/A)","v":{"$error":"#VALUE!"}},{"$f":"IF(ISERROR($K483),ROUND(VLOOKUP($A483,Analysis!$A:$U,17,FALSE),0),#N/A)","v":{"$error":"#VALUE!"}},{"$error":"#VALUE!"},{"$error":"#VALUE!"},{"$error":"#VALUE!"}]
[{"$error":"#VALUE!"},{"$error":"#VALUE!"},{"$f":"VLOOKUP($A484,Analysis!$A:$U,11,FALSE)","v":{"$error":"#VALUE!"}},{"$f":"IF(VLOOKUP($A484,Analysis!$A:$U,3,FALSE)=1,VLOOKUP($A484,Analysis!$A:$U,18,FALSE),#N/A)","v":{"$error":"#VALUE!"}},{"$f":"IF(ISERROR($D484),VLOOKUP($A484,Analysis!$A:$U,18,FALSE),#N/A)","v":{"$error":"#VALUE!"}},{"$error":"#VALUE!"},{"$error":"#VALUE!"},{"$error":"#VALUE!"},null,{"$f":"VLOOKUP($A484,Analysis!$A:$U,10,FALSE)","v":{"$error":"#VALUE!"}},{"$f":"IF(VLOOKUP($A484,Analysis!$A:$U,3,FALSE)=1,ROUND(VLOOKUP($A484,Analysis!$A:$U,17,FALSE),0),#N/A)","v":{"$error":"#VALUE!"}},{"$f":"IF(ISERROR($K484),ROUND(VLOOKUP($A484,Analysis!$A:$U,17,FALSE),0),#N/A)","v":{"$error":"#VALUE!"}},{"$error":"#VALUE!"},{"$error":"#VALUE!"},{"$error":"#VALUE!"}]
[{"$error":"#VALUE!"},{"$error":"#VALUE!"},{"$f":"VLOOKUP($A485,Analysis!$A:$U,11,FALSE)","v":{"$error":"#VALUE!"}},{"$f":"IF(VLOOKUP($A485,Analysis!$A:$U,3,FALSE)=1,VLOOKUP($A485,Analysis!$A:$U,18,FALSE),#N/A)","v":{"$error":"#VALUE!"}},{"$f":"IF(ISERROR($D485),VLOOKUP($A485,Analysis!$A:$U,18,FALSE),#N/A)","v":{"$error":"#VALUE!"}},{"$error":"#VALUE!"},{"$error":"#VALUE!"},{"$error":"#VALUE!"},null,{"$f":"VLOOKUP($A485,Analysis!$A:$U,10,FALSE)","v":{"$error":"#VALUE!"}},{"$f":"IF(VLOOKUP($A485,Analysis!$A:$U,3,FALSE)=1,ROUND(VLOOKUP($A485,Analysis!$A:$U,17,FALSE),0),#N/A)","v":{"$error":"#VALUE!"}},{"$f":"IF(ISERROR($K485),ROUND(VLOOKUP($A485,Analysis!$A:$U,17,FALSE),0),#N/A)","v":{"$error":"#VALUE!"}},{"$error":"#VALUE!"},{"$error":"#VALUE!"},{"$error":"#VALUE!"}]
[{"$error":"#VALUE!"},{"$error":"#VALUE!"},{"$f":"VLOOKUP($A486,Analysis!$A:$U,11,FALSE)","v":{"$error":"#VALUE!"}},{"$f":"IF(VLOOKUP($A486,Analysis!$A:$U,3,FALSE)=1,VLOOKUP($A486,Analysis!$A:$U,18,FALSE),#N/A)","v":{"$error":"#VALUE!"}},{"$f":"IF(ISERROR($D486),VLOOKUP($A486,Analysis!$A:$U,18,FALSE),#N/A)","v":{"$error":"#VALUE!"}},{"$error":"#VALUE!"},{"$error":"#VALUE!"},{"$error":"#VALUE!"},null,{"$f":"VLOOKUP($A486,Analysis!$A:$U,10,FALSE)","v":{"$error":"#VALUE!"}},{"$f":"IF(VLOOKUP($A486,Analysis!$A:$U,3,FALSE)=1,ROUND(VLOOKUP($A486,Analysis!$A:$U,17,FALSE),0),#N/A)","v":{"$error":"#VALUE!"}},{"$f":"IF(ISERROR($K486),ROUND(VLOOKUP($A486,Analysis!$A:$U,17,FALSE),0),#N/A)","v":{"$error":"#VALUE!"}},{"$error":"#VALUE!"},{"$error":"#VALUE!"},{"$error":"#VALUE!"}]
[{"$error":"#VALUE!"},{"$error":"#VALUE!"},{"$f":"VLOOKUP($A487,Analysis!$A:$U,11,FALSE)","v":{"$error":"#VALUE!"}},{"$f":"IF(VLOOKUP($A487,Analysis!$A:$U,3,FALSE)=1,VLOOKUP($A487,Analysis!$A:$U,18,FALSE),#N/A)","v":{"$error":"#VALUE!"}},{"$f":"IF(ISERROR($D487),VLOOKUP($A487,Analysis!$A:$U,18,FALSE),#N/A)","v":{"$error":"#VALUE!"}},{"$error":"#VALUE!"},{"$error":"#VALUE!"},{"$error":"#VALUE!"},null,{"$f":"VLOOKUP($A487,Analysis!$A:$U,10,FALSE)","v":{"$error":"#VALUE!"}},{"$f":"IF(VLOOKUP($A487,Analysis!$A:$U,3,FALSE)=1,ROUND(VLOOKUP($A487,Analysis!$A:$U,17,FALSE),0),#N/A)","v":{"$error":"#VALUE!"}},{"$f":"IF(ISERROR($K487),ROUND(VLOOKUP($A487,Analysis!$A:$U,17,FALSE),0),#N/A)","v":{"$error":"#VALUE!"}},{"$error":"#VALUE!"},{"$error":"#VALUE!"},{"$error":"#VALUE!"}]
[{"$error":"#VALUE!"},{"$error":"#VALUE!"},{"$f":"VLOOKUP($A488,Analysis!$A:$U,11,FALSE)","v":{"$error":"#VALUE!"}},{"$f":"IF(VLOOKUP($A488,Analysis!$A:$U,3,FALSE)=1,VLOOKUP($A488,Analysis!$A:$U,18,FALSE),#N/A)","v":{"$error":"#VALUE!"}},{"$f":"IF(ISERROR($D488),VLOOKUP($A488,Analysis!$A:$U,18,FALSE),#N/A)","v":{"$error":"#VALUE!"}},{"$error":"#VALUE!"},{"$error":"#VALUE!"},{"$error":"#VALUE!"},null,{"$f":"VLOOKUP($A488,Analysis!$A:$U,10,FALSE)","v":{"$error":"#VALUE!"}},{"$f":"IF(VLOOKUP($A488,Analysis!$A:$U,3,FALSE)=1,ROUND(VLOOKUP($A488,Analysis!$A:$U,17,FALSE),0),#N/A)","v":{"$error":"#VALUE!"}},{"$f":"IF(ISERROR($K488),ROUND(VLOOKUP($A488,Analysis!$A:$U,17,FALSE),0),#N/A)","v":{"$error":"#VALUE!"}},{"$error":"#VALUE!"},{"$error":"#VALUE!"},{"$error":"#VALUE!"}]
[{"$error":"#VALUE!"},{"$error":"#VALUE!"},{"$f":"VLOOKUP($A489,Analysis!$A:$U,11,FALSE)","v":{"$error":"#VALUE!"}},{"$f":"IF(VLOOKUP($A489,Analysis!$A:$U,3,FALSE)=1,VLOOKUP($A489,Analysis!$A:$U,18,FALSE),#N/A)","v":{"$error":"#VALUE!"}},{"$f":"IF(ISERROR($D489),VLOOKUP($A489,Analysis!$A:$U,18,FALSE),#N/A)","v":{"$error":"#VALUE!"}},{"$error":"#VALUE!"},{"$error":"#VALUE!"},{"$error":"#VALUE!"},null,{"$f":"VLOOKUP($A489,Analysis!$A:$U,10,FALSE)","v":{"$error":"#VALUE!"}},{"$f":"IF(VLOOKUP($A489,Analysis!$A:$U,3,FALSE)=1,ROUND(VLOOKUP($A489,Analysis!$A:$U,17,FALSE),0),#N/A)","v":{"$error":"#VALUE!"}},{"$f":"IF(ISERROR($K489),ROUND(VLOOKUP($A489,Analysis!$A:$U,17,FALSE),0),#N/A)","v":{"$error":"#VALUE!"}},{"$error":"#VALUE!"},{"$error":"#VALUE!"},{"$error":"#VALUE!"}]
[{"$error":"#VALUE!"},{"$error":"#VALUE!"},{"$f":"VLOOKUP($A490,Analysis!$A:$U,11,FALSE)","v":{"$error":"#VALUE!"}},{"$f":"IF(VLOOKUP($A490,Analysis!$A:$U,3,FALSE)=1,VLOOKUP($A490,Analysis!$A:$U,18,FALSE),#N/A)","v":{"$error":"#VALUE!"}},{"$f":"IF(ISERROR($D490),VLOOKUP($A490,Analysis!$A:$U,18,FALSE),#N/A)","v":{"$error":"#VALUE!"}},{"$error":"#VALUE!"},{"$error":"#VALUE!"},{"$error":"#VALUE!"},null,{"$f":"VLOOKUP($A490,Analysis!$A:$U,10,FALSE)","v":{"$error":"#VALUE!"}},{"$f":"IF(VLOOKUP($A490,Analysis!$A:$U,3,FALSE)=1,ROUND(VLOOKUP($A490,Analysis!$A:$U,17,FALSE),0),#N/A)","v":{"$error":"#VALUE!"}},{"$f":"IF(ISERROR($K490),ROUND(VLOOKUP($A490,Analysis!$A:$U,17,FALSE),0),#N/A)","v":{"$error":"#VALUE!"}},{"$error":"#VALUE!"},{"$error":"#VALUE!"},{"$error":"#VALUE!"}]
[{"$error":"#VALUE!"},{"$error":"#VALUE!"},{"$f":"VLOOKUP($A491,Analysis!$A:$U,11,FALSE)","v":{"$error":"#VALUE!"}},{"$f":"IF(VLOOKUP($A491,Analysis!$A:$U,3,FALSE)=1,VLOOKUP($A491,Analysis!$A:$U,18,FALSE),#N/A)","v":{"$error":"#VALUE!"}},{"$f":"IF(ISERROR($D491),VLOOKUP($A491,Analysis!$A:$U,18,FALSE),#N/A)","v":{"$error":"#VALUE!"}},{"$error":"#VALUE!"},{"$error":"#VALUE!"},{"$error":"#VALUE!"},null,{"$f":"VLOOKUP($A491,Analysis!$A:$U,10,FALSE)","v":{"$error":"#VALUE!"}},{"$f":"IF(VLOOKUP($A491,Analysis!$A:$U,3,FALSE)=1,ROUND(VLOOKUP($A491,Analysis!$A:$U,17,FALSE),0),#N/A)","v":{"$error":"#VALUE!"}},{"$f":"IF(ISERROR($K491),ROUND(VLOOKUP($A491,Analysis!$A:$U,17,FALSE),0),#N/A)","v":{"$error":"#VALUE!"}},{"$error":"#VALUE!"},{"$error":"#VALUE!"},{"$error":"#VALUE!"}]
[{"$error":"#VALUE!"},{"$error":"#VALUE!"},{"$f":"VLOOKUP($A492,Analysis!$A:$U,11,FALSE)","v":{"$error":"#VALUE!"}},{"$f":"IF(VLOOKUP($A492,Analysis!$A:$U,3,FALSE)=1,VLOOKUP($A492,Analysis!$A:$U,18,FALSE),#N/A)","v":{"$error":"#VALUE!"}},{"$f":"IF(ISERROR($D492),VLOOKUP($A492,Analysis!$A:$U,18,FALSE),#N/A)","v":{"$error":"#VALUE!"}},{"$error":"#VALUE!"},{"$error":"#VALUE!"},{"$error":"#VALUE!"},null,{"$f":"VLOOKUP($A492,Analysis!$A:$U,10,FALSE)","v":{"$error":"#VALUE!"}},{"$f":"IF(VLOOKUP($A492,Analysis!$A:$U,3,FALSE)=1,ROUND(VLOOKUP($A492,Analysis!$A:$U,17,FALSE),0),#N/A)","v":{"$error":"#VALUE!"}},{"$f":"IF(ISERROR($K492),ROUND(VLOOKUP($A492,Analysis!$A:$U,17,FALSE),0),#N/A)","v":{"$error":"#VALUE!"}},{"$error":"#VALUE!"},{"$error":"#VALUE!"},{"$error":"#VALUE!"}]
[{"$error":"#VALUE!"},{"$error":"#VALUE!"},{"$f":"VLOOKUP($A493,Analysis!$A:$U,11,FALSE)","v":{"$error":"#VALUE!"}},{"$f":"IF(VLOOKUP($A493,Analysis!$A:$U,3,FALSE)=1,VLOOKUP($A493,Analysis!$A:$U,18,FALSE),#N/A)","v":{"$error":"#VALUE!"}},{"$f":"IF(ISERROR($D493),VLOOKUP($A493,Analysis!$A:$U,18,FALSE),#N/A)","v":{"$error":"#VALUE!"}},{"$error":"#VALUE!"},{"$error":"#VALUE!"},{"$error":"#VALUE!"},null,{"$f":"VLOOKUP($A493,Analysis!$A:$U,10,FALSE)","v":{"$error":"#VALUE!"}},{"$f":"IF(VLOOKUP($A493,Analysis!$A:$U,3,FALSE)=1,ROUND(VLOOKUP($A493,Analysis!$A:$U,17,FALSE),0),#N/A)","v":{"$error":"#VALUE!"}},{"$f":"IF(ISERROR($K493),ROUND(VLOOKUP($A493,Analysis!$A:$U,17,FALSE),0),#N/A)","v":{"$error":"#VALUE!"}},{"$error":"#VALUE!"},{"$error":"#VALUE!"},{"$error":"#VALUE!"}]
[{"$error":"#VALUE!"},{"$error":"#VALUE!"},{"$f":"VLOOKUP($A494,Analysis!$A:$U,11,FALSE)","v":{"$error":"#VALUE!"}},{"$f":"IF(VLOOKUP($A494,Analysis!$A:$U,3,FALSE)=1,VLOOKUP($A494,Analysis!$A:$U,18,FALSE),#N/A)","v":{"$error":"#VALUE!"}},{"$f":"IF(ISERROR($D494),VLOOKUP($A494,Analysis!$A:$U,18,FALSE),#N/A)","v":{"$error":"#VALUE!"}},{"$error":"#VALUE!"},{"$error":"#VALUE!"},{"$error":"#VALUE!"},null,{"$f":"VLOOKUP($A494,Analysis!$A:$U,10,FALSE)","v":{"$error":"#VALUE!"}},{"$f":"IF(VLOOKUP($A494,Analysis!$A:$U,3,FALSE)=1,ROUND(VLOOKUP($A494,Analysis!$A:$U,17,FALSE),0),#N/A)","v":{"$error":"#VALUE!"}},{"$f":"IF(ISERROR($K494),ROUND(VLOOKUP($A494,Analysis!$A:$U,17,FALSE),0),#N/A)","v":{"$error":"#VALUE!"}},{"$error":"#VALUE!"},{"$error":"#VALUE!"},{"$error":"#VALUE!"}]
[{"$error":"#VALUE!"},{"$error":"#VALUE!"},{"$f":"VLOOKUP($A495,Analysis!$A:$U,11,FALSE)","v":{"$error":"#VALUE!"}},{"$f":"IF(VLOOKUP($A495,Analysis!$A:$U,3,FALSE)=1,VLOOKUP($A495,Analysis!$A:$U,18,FALSE),#N/A)","v":{"$error":"#VALUE!"}},{"$f":"IF(ISERROR($D495),VLOOKUP($A495,Analysis!$A:$U,18,FALSE),#N/A)","v":{"$error":"#VALUE!"}},{"$error":"#VALUE!"},{"$error":"#VALUE!"},{"$error":"#VALUE!"},null,{"$f":"VLOOKUP($A495,Analysis!$A:$U,10,FALSE)","v":{"$error":"#VALUE!"}},{"$f":"IF(VLOOKUP($A495,Analysis!$A:$U,3,FALSE)=1,ROUND(VLOOKUP($A495,Analysis!$A:$U,17,FALSE),0),#N/A)","v":{"$error":"#VALUE!"}},{"$f":"IF(ISERROR($K495),ROUND(VLOOKUP($A495,Analysis!$A:$U,17,FALSE),0),#N/A)","v":{"$error":"#VALUE!"}},{"$error":"#VALUE!"},{"$error":"#VALUE!"},{"$error":"#VALUE!"}]
[{"$error":"#VALUE!"},{"$error":"#VALUE!"},{"$f":"VLOOKUP($A496,Analysis!$A:$U,11,FALSE)","v":{"$error":"#VALUE!"}},{"$f":"IF(VLOOKUP($A496,Analysis!$A:$U,3,FALSE)=1,VLOOKUP($A496,Analysis!$A:$U,18,FALSE),#N/A)","v":{"$error":"#VALUE!"}},{"$f":"IF(ISERROR($D496),VLOOKUP($A496,Analysis!$A:$U,18,FALSE),#N/A)","v":{"$error":"#VALUE!"}},{"$error":"#VALUE!"},{"$error":"#VALUE!"},{"$error":"#VALUE!"},null,{"$f":"VLOOKUP($A496,Analysis!$A:$U,10,FALSE)","v":{"$error":"#VALUE!"}},{"$f":"IF(VLOOKUP($A496,Analysis!$A:$U,3,FALSE)=1,ROUND(VLOOKUP($A496,Analysis!$A:$U,17,FALSE),0),#N/A)","v":{"$error":"#VALUE!"}},{"$f":"IF(ISERROR($K496),ROUND(VLOOKUP($A496,Analysis!$A:$U,17,FALSE),0),#N/A)","v":{"$error":"#VALUE!"}},{"$error":"#VALUE!"},{"$error":"#VALUE!"},{"$error":"#VALUE!"}]
[{"$error":"#VALUE!"},{"$error":"#VALUE!"},{"$f":"VLOOKUP($A497,Analysis!$A:$U,11,FALSE)","v":{"$error":"#VALUE!"}},{"$f":"IF(VLOOKUP($A497,Analysis!$A:$U,3,FALSE)=1,VLOOKUP($A497,Analysis!$A:$U,18,FALSE),#N/A)","v":{"$error":"#VALUE!"}},{"$f":"IF(ISERROR($D497),VLOOKUP($A497,Analysis!$A:$U,18,FALSE),#N/A)","v":{"$error":"#VALUE!"}},{"$error":"#VALUE!"},{"$error":"#VALUE!"},{"$error":"#VALUE!"},null,{"$f":"VLOOKUP($A497,Analysis!$A:$U,10,FALSE)","v":{"$error":"#VALUE!"}},{"$f":"IF(VLOOKUP($A497,Analysis!$A:$U,3,FALSE)=1,ROUND(VLOOKUP($A497,Analysis!$A:$U,17,FALSE),0),#N/A)","v":{"$error":"#VALUE!"}},{"$f":"IF(ISERROR($K497),ROUND(VLOOKUP($A497,Analysis!$A:$U,17,FALSE),0),#N/A)","v":{"$error":"#VALUE!"}},{"$error":"#VALUE!"},{"$error":"#VALUE!"},{"$error":"#VALUE!"}]
[{"$error":"#VALUE!"},{"$error":"#VALUE!"},{"$f":"VLOOKUP($A498,Analysis!$A:$U,11,FALSE)","v":{"$error":"#VALUE!"}},{"$f":"IF(VLOOKUP($A498,Analysis!$A:$U,3,FALSE)=1,VLOOKUP($A498,Analysis!$A:$U,18,FALSE),#N/A)","v":{"$error":"#VALUE!"}},{"$f":"IF(ISERROR($D498),VLOOKUP($A498,Analysis!$A:$U,18,FALSE),#N/A)","v":{"$error":"#VALUE!"}},{"$error":"#VALUE!"},{"$error":"#VALUE!"},{"$error":"#VALUE!"},null,{"$f":"VLOOKUP($A498,Analysis!$A:$U,10,FALSE)","v":{"$error":"#VALUE!"}},{"$f":"IF(VLOOKUP($A498,Analysis!$A:$U,3,FALSE)=1,ROUND(VLOOKUP($A498,Analysis!$A:$U,17,FALSE),0),#N/A)","v":{"$error":"#VALUE!"}},{"$f":"IF(ISERROR($K498),ROUND(VLOOKUP($A498,Analysis!$A:$U,17,FALSE),0),#N/A)","v":{"$error":"#VALUE!"}},{"$error":"#VALUE!"},{"$error":"#VALUE!"},{"$error":"#VALUE!"}]
[{"$error":"#VALUE!"},{"$error":"#VALUE!"},{"$f":"VLOOKUP($A499,Analysis!$A:$U,11,FALSE)","v":{"$error":"#VALUE!"}},{"$f":"IF(VLOOKUP($A499,Analysis!$A:$U,3,FALSE)=1,VLOOKUP($A499,Analysis!$A:$U,18,FALSE),#N/A)","v":{"$error":"#VALUE!"}},{"$f":"IF(ISERROR($D499),VLOOKUP($A499,Analysis!$A:$U,18,FALSE),#N/A)","v":{"$error":"#VALUE!"}},{"$error":"#VALUE!"},{"$error":"#VALUE!"},{"$error":"#VALUE!"},null,{"$f":"VLOOKUP($A499,Analysis!$A:$U,10,FALSE)","v":{"$error":"#VALUE!"}},{"$f":"IF(VLOOKUP($A499,Analysis!$A:$U,3,FALSE)=1,ROUND(VLOOKUP($A499,Analysis!$A:$U,17,FALSE),0),#N/A)","v":{"$error":"#VALUE!"}},{"$f":"IF(ISERROR($K499),ROUND(VLOOKUP($A499,Analysis!$A:$U,17,FALSE),0),#N/A)","v":{"$error":"#VALUE!"}},{"$error":"#VALUE!"},{"$error":"#VALUE!"},{"$error":"#VALUE!"}]
[{"$error":"#VALUE!"},{"$error":"#VALUE!"},{"$f":"VLOOKUP($A500,Analysis!$A:$U,11,FALSE)","v":{"$error":"#VALUE!"}},{"$f":"IF(VLOOKUP($A500,Analysis!$A:$U,3,FALSE)=1,VLOOKUP($A500,Analysis!$A:$U,18,FALSE),#N/A)","v":{"$error":"#VALUE!"}},{"$f":"IF(ISERROR($D500),VLOOKUP($A500,Analysis!$A:$U,18,FALSE),#N/A)","v":{"$error":"#VALUE!"}},{"$error":"#VALUE!"},{"$error":"#VALUE!"},{"$error":"#VALUE!"},null,{"$f":"VLOOKUP($A500,Analysis!$A:$U,10,FALSE)","v":{"$error":"#VALUE!"}},{"$f":"IF(VLOOKUP($A500,Analysis!$A:$U,3,FALSE)=1,ROUND(VLOOKUP($A500,Analysis!$A:$U,17,FALSE),0),#N/A)","v":{"$error":"#VALUE!"}},{"$f":"IF(ISERROR($K500),ROUND(VLOOKUP($A500,Analysis!$A:$U,17,FALSE),0),#N/A)","v":{"$error":"#VALUE!"}},{"$error":"#VALUE!"},{"$error":"#VALUE!"},{"$error":"#VALUE!"}]
[{"$error":"#VALUE!"},{"$error":"#VALUE!"},{"$f":"VLOOKUP($A501,Analysis!$A:$U,11,FALSE)","v":{"$error":"#VALUE!"}},{"$f":"IF(VLOOKUP($A501,Analysis!$A:$U,3,FALSE)=1,VLOOKUP($A501,Analysis!$A:$U,18,FALSE),#N/A)","v":{"$error":"#VALUE!"}},{"$f":"IF(ISERROR($D501),VLOOKUP($A501,Analysis!$A:$U,18,FALSE),#N/A)","v":{"$error":"#VALUE!"}},{"$error":"#VALUE!"},{"$error":"#VALUE!"},{"$error":"#VALUE!"},null,{"$f":"VLOOKUP($A501,Analysis!$A:$U,10,FALSE)","v":{"$error":"#VALUE!"}},{"$f":"IF(VLOOKUP($A501,Analysis!$A:$U,3,FALSE)=1,ROUND(VLOOKUP($A501,Analysis!$A:$U,17,FALSE),0),#N/A)","v":{"$error":"#VALUE!"}},{"$f":"IF(ISERROR($K501),ROUND(VLOOKUP($A501,Analysis!$A:$U,17,FALSE),0),#N/A)","v":{"$error":"#VALUE!"}},{"$error":"#VALUE!"},{"$error":"#VALUE!"},{"$error":"#VALUE!"}]

{"sheet":"Conclusions","index":8,"n_rows":33,"n_cols":18,"rows_kept":33,"cut":false,"hidden":false,"merged":[[25,14,25,17],[0,2,0,6],[0,13,0,17],[1,0,2,1],[25,0,25,1],[25,2,25,5],[25,6,25,9],[25,10,25,13],[24,2,24,10],[22,7,22,16],[6,0,14,1]]}
[null,null,"If you're using the Square Footage Table in Assessing.net",null,null,null,null,null,null,null,null,null,null,"If you're using the Acreage Table in Assessing.net"]
["Curve Formula\nFrom Chart",null,"SqFt","Acres","$/sf","$/ac","Concluded $",null,null,null,null,null,null,"SqFt","Acres","$/sf","$/ac","Concluded $"]
[null,null,2500,{"$f":"C3/43560","v":5.73921028466483E-2},{"$f":"$B$4*C3^$B$5","v":19.041453582517232},{"$f":"E3*43560","v":829445.71805445058},{"$f":"C3*E3","v":47603.633956293081},null,null,null,null,null,null,43560,{"$f":"N3/43560","v":1},{"$f":"$B$4*N3^$B$5","v":4.4701813355235114},{"$f":"P3*43560","v":194721.09897540417},{"$f":"N3*P3","v":194721.09897540417}]
["Formula Pt 1:",{"$f":"EXP(INDEX(LINEST(LN(ReturnValues_Adj_PPSF()),LN(ReturnValues_Residual_Sq_Ft()),,),1,2))","v":1006.3870123144454},5000,{"$f":"C4/43560","v":0.1147842056932966},{"$f":"$B$4*C4^$B$5","v":13.398324301307595},{"$f":"E4*43560","v":583631.00656495884},{"$f":"C4*E4","v":66991.621506537966},null,null,null,null,null,null,65340,{"$f":"N4/43560","v":1.5},{"$f":"$B$4*N4^$B$5","v":3.6394088063137469},{"$f":"P4*43560","v":158532.64760302682},{"$f":"N4*P4","v":237798.97140454021}]
["Formula Pt 2:",{"$f":"_xlfn.SINGLE(INDEX(LINEST(LN(ReturnValues_Adj_PPSF()),LN(ReturnValues_Residual_Sq_Ft()),,),1))","v":-0.50709103770555808},7500,0.17217630853994489,10.908277716728406,475164.57734068937,81812.082875463049,null,null,null,null,null,null,87120,2,3.1453974329977941,137013.51218138391,274027.02436276781]
[null,null,10000,0.2295684113865932,9.4275940282117059,410665.9958689019,94275.940282117066,null,null,null,null,null,null,108900,2.5,2.808880925771446,122354.85312660418,305887.13281651045]
["If the above formulas\nare not calculating, make\nsure that any sales with\na 0 or less $ per unit\nare set to \"not used\". If\nthey are still not\ncalculating, refresh them\nby double clicking them\nand pressing \"enter\".",null,12500,0.28696051423324148,8.4189644093790488,366730.08967255137,105237.05511723811,null,null,null,null,null,null,130680,3,2.5608328293170239,111549.87804504957,334649.63413514866]
[null,null,15000,0.34435261707988979,7.6754981852668758,334344.70095022512,115132.47277900313,null,null,null,null,null,null,174240,4,2.2132267729023711,96408.158227627282,385632.63291050913]
[null,null,20000,0.4591368227731864,6.6336302333045465,288960.93296274607,132672.60466609092,null,null,null,null,null,null,217800,5,1.9764403701719819,86093.742524691537,430468.71262345766]
[null,null,25000,0.57392102846648296,5.9239183053542526,258045.88138123124,148097.95763385631,null,null,null,null,null,null,304920,7,1.6664162763132055,72589.092996203239,508123.65097342263]
[null,null,30000,0.68870523415977958,5.4007858914050715,235258.23342960491,162023.57674215213,null,null,null,null,null,null,435600,10,1.3907020767613032,60578.982463722365,605789.82463722362]
[null,null,40000,0.91827364554637281,4.6676861498839166,203324.4086889434,186707.44599535665,null,null,null,null,null,null,653400,15,1.1322434159219978,49320.523197562223,739807.84796343336]
[null,null,50000,1.1478420569329659,4.1683046016225553,181571.34844667852,208415.23008112775,null,null,null,null,null,null,871200,20,0.97855331002974211,42625.782184895565,852515.64369791129]
[null,null,60000,1.3774104683195592,3.8002078224432396,165537.05274562753,228012.46934659439,null,null,null,null,null,null,1089000,25,0.87386086685185504,38065.379360066807,951634.48400167015]
[null,null,87120,2,3.1453974329977941,137013.51218138391,274027.02436276781,null,null,null,null,null,null,1306800,30,0.79669151353401013,34703.882329541484,1041116.4698862444]
[null,null,130680,3,2.5608328293170239,111549.87804504957,334649.63413514866,null,null,null,null,null,null,1742400,40,0.6885490404962693,29993.196204017491,1199727.8481606997]
[null,null,174240,4,2.2132267729023711,96408.158227627282,385632.63291050913,null,null,null,null,null,null,2178000,50,0.61488327230715212,26784.315341699545,1339215.7670849774]
[null,null,217800,5,1.9764403701719819,86093.742524691537,430468.71262345766,null,null,null,null,null,null,4356000,100,0.43265633341062204,18846.509883366696,1884650.9883366695]
[null,null,435600,10,1.3907020767613032,60578.982463722365,605789.82463722362]
[null,null,653400,15,1.1322434159219978,49320.523197562223,739807.84796343336]
[null,null,871200,20,0.97855331002974211,42625.782184895565,852515.64369791129]
[null,null,1089000,25,0.87386086685185504,38065.379360066807,951634.48400167015]
[null,null,null,null,null,null,null,"This slope should not be downward facing. A person wouldn't pay less for 5,000 sf than they would for 2,500 sf."]
[]
[null,null,"The Grey fields below can be edited to adjust acreage ranges. Enter acreages to two decimal places."]
["Acre Ranges",null,"Vacant",null,null,null,"Abstraction",null,null,null,"Allocation",null,null,null,"All Methods"]
["Low","High","# of Sales","COD","Mean $/SF","Median $/SF","# of Sales","COD","Mean $/SF","Median $/SF","# of Sales","COD","Mean $/SF","Median $/SF","# of Sales","COD","Mean $/SF","Median $/SF"]
[0,{"$f":"_xlfn.SINGLE(INDEX(LINEST(LN(ReturnValues_Adj_PPSF()),LN(ReturnValues_Residual_Sq_Ft()),,),1))","v":-0.50709103770555808},{"$f":"COUNTIFS(Use,1,Valuation_Method_Analysis,C$26,Residual_Acres,\">=\"&$A28,Residual_Acres,\"<\"&ROUND($B28,2))","v":0},{"$f":"IFERROR((SUM(IF(Valuation_Method_Analysis=C$26,IF(Residual_Acres>=$A28,IF(Residual_Acres<ROUND($B28,2),IF(Use=1,ABS(F28-Adj_PPSF))))))/C28)/F28,0)","v":0},{"$f":"IFERROR(AVERAGEIFS(Adj_PPSF,Use,1,Valuation_Method_Analysis,C$26,Residual_Acres,\">=\"&$A28,Residual_Acres,\"<\"&ROUND($B28,2)),0)","v":0},{"$f":"IFERROR(MEDIAN(IF(Valuation_Method_Analysis=C$26,IF(Residual_Acres>=$A28,IF(Residual_Acres<ROUND($B28,2),IF(Use=1,Adj_PPSF))))),0)","v":0},{"$f":"COUNTIFS(Use,1,Valuation_Method_Analysis,G$26,Residual_Acres,\">=\"&$A28,Residual_Acres,\"<\"&ROUND($B28,2))","v":0},{"$f":"IFERROR((SUM(IF(Valuation_Method_Analysis=G$26,IF(Residual_Acres>=$A28,IF(Residual_Acres<ROUND($B28,2),IF(Use=1,ABS(J28-Adj_PPSF))))))/G28)/J28,0)","v":0},{"$f":"IFERROR(AVERAGEIFS(Adj_PPSF,Use,1,Valuation_Method_Analysis,G$26,Residual_Acres,\">=\"&$A28,Residual_Acres,\"<\"&ROUND($B28,2)),0)","v":0},{"$f":"IFERROR(MEDIAN(IF(Valuation_Method_Analysis=G$26,IF(Residual_Acres>=$A28,IF(Residual_Acres<ROUND($B28,2),IF(Use=1,Adj_PPSF))))),0)","v":0},{"$f":"COUNTIFS(Use,1,Valuation_Method_Analysis,K$26,Residual_Acres,\">=\"&$A28,Residual_Acres,\"<\"&ROUND($B28,2))","v":0},{"$f":"IFERROR((SUM(IF(Valuation_Method_Analysis=K$26,IF(Residual_Acres>=$A28,IF(Residual_Acres<ROUND($B28,2),IF(Use=1,ABS(N28-Adj_PPSF))))))/K28)/N28,0)","v":0},{"$f":"IFERROR(AVERAGEIFS(Adj_PPSF,Use,1,Valuation_Method_Analysis,K$26,Residual_Acres,\">=\"&$A28,Residual_Acres,\"<\"&ROUND($B28,2)),0)","v":0},{"$f":"IFERROR(MEDIAN(IF(Valuation_Method_Analysis=K$26,IF(Residual_Acres>=$A28,IF(Residual_Acres<ROUND($B28,2),IF(Use=1,Adj_PPSF))))),0)","v":0},{"$f":"COUNTIFS(Use,1,Residual_Acres,\">=\"&$A28,Residual_Acres,\"<\"&ROUND($B28,2))","v":0},{"$f":"IFERROR((SUM(IF(Residual_Acres>=$A28,IF(Residual_Acres<ROUND($B28,2),IF(Use=1,ABS(R28-Adj_PPSF)))))/O28)/R28,0)","v":0},{"$f":"IFERROR(AVERAGEIFS(Adj_PPSF,Use,1,Residual_Acres,\">=\"&$A28,Residual_Acres,\"<\"&ROUND($B28,2)),0)","v":0},{"$f":"IFERROR(MEDIAN(IF(Residual_Acres>=$A28,IF(Residual_Acres<ROUND($B28,2),IF(Use=1,Adj_PPSF)))),0)","v":0}]
[{"$f":"B28+0.01","v":-0.49709103770555807},1.99,{"$f":"COUNTIFS(Use,1,Valuation_Method_Analysis,C$26,Residual_Acres,\">=\"&$A29,Residual_Acres,\"<\"&ROUND($B29,0))","v":7},{"$f":"IFERROR((SUM(IF(Valuation_Method_Analysis=C$26,IF(Residual_Acres>=$A29,IF(Residual_Acres<ROUND($B29,0),IF(Use=1,ABS(F29-Adj_PPSF))))))/C29)/F29,0)","v":0.20845714285714287},{"$f":"IFERROR(AVERAGEIFS(Adj_PPSF,Use,1,Valuation_Method_Analysis,C$26,Residual_Acres,\">=\"&$A29,Residual_Acres,\"<\"&ROUND($B29,0)),0)","v":6.2699999999999987},{"$f":"IFERROR(MEDIAN(IF(Valuation_Method_Analysis=C$26,IF(Residual_Acres>=$A29,IF(Residual_Acres<ROUND($B29,0),IF(Use=1,Adj_PPSF))))),0)","v":6.25},{"$f":"COUNTIFS(Use,1,Valuation_Method_Analysis,G$26,Residual_Acres,\">=\"&$A29,Residual_Acres,\"<\"&ROUND($B29,0))","v":9},{"$f":"IFERROR((SUM(IF(Valuation_Method_Analysis=G$26,IF(Residual_Acres>=$A29,IF(Residual_Acres<ROUND($B29,0),IF(Use=1,ABS(J29-Adj_PPSF))))))/G29)/J29,0)","v":0.3795518207282913},{"$f":"IFERROR(AVERAGEIFS(Adj_PPSF,Use,1,Valuation_Method_Analysis,G$26,Residual_Acres,\">=\"&$A29,Residual_Acres,\"<\"&ROUND($B29,0)),0)","v":4.6822222222222223},{"$f":"IFERROR(MEDIAN(IF(Valuation_Method_Analysis=G$26,IF(Residual_Acres>=$A29,IF(Residual_Acres<ROUND($B29,0),IF(Use=1,Adj_PPSF))))),0)","v":4.76},{"$f":"COUNTIFS(Use,1,Valuation_Method_Analysis,K$26,Residual_Acres,\">=\"&$A29,Residual_Acres,\"<\"&ROUND($B29,0))","v":10},{"$f":"IFERROR((SUM(IF(Valuation_Method_Analysis=K$26,IF(Residual_Acres>=$A29,IF(Residual_Acres<ROUND($B29,0),IF(Use=1,ABS(N29-Adj_PPSF))))))/K29)/N29,0)","v":0.32853638593622236},{"$f":"IFERROR(AVERAGEIFS(Adj_PPSF,Use,1,Valuation_Method_Analysis,K$26,Residual_Acres,\">=\"&$A29,Residual_Acres,\"<\"&ROUND($B29,0)),0)","v":5.8490000000000002},{"$f":"IFERROR(MEDIAN(IF(Valuation_Method_Analysis=K$26,IF(Residual_Acres>=$A29,IF(Residual_Acres<ROUND($B29,0),IF(Use=1,Adj_PPSF))))),0)","v":6.1150000000000002},{"$f":"COUNTIFS(Use,1,Residual_Acres,\">=\"&$A29,Residual_Acres,\"<\"&ROUND($B29,0))","v":26},{"$f":"IFERROR((SUM(IF(Residual_Acres>=$A29,IF(Residual_Acres<ROUND($B29,0),IF(Use=1,ABS(R29-Adj_PPSF)))))/O29)/R29,0)","v":0.33378635498776849},{"$f":"IFERROR(AVERAGEIFS(Adj_PPSF,Use,1,Residual_Acres,\">=\"&$A29,Residual_Acres,\"<\"&ROUND($B29,0)),0)","v":5.5584615384615388},{"$f":"IFERROR(MEDIAN(IF(Residual_Acres>=$A29,IF(Residual_Acres<ROUND($B29,0),IF(Use=1,Adj_PPSF)))),0)","v":5.66}]
[{"$f":"B29+0.01","v":2},4.99,{"$f":"COUNTIFS(Use,1,Valuation_Method_Analysis,C$26,Residual_Acres,\">=\"&$A30,Residual_Acres,\"<\"&ROUND($B30,0))","v":1},{"$f":"IFERROR((SUM(IF(Valuation_Method_Analysis=C$26,IF(Residual_Acres>=$A30,IF(Residual_Acres<ROUND($B30,0),IF(Use=1,ABS(F30-Adj_PPSF))))))/C30)/F30,0)","v":0},{"$f":"IFERROR(AVERAGEIFS(Adj_PPSF,Use,1,Valuation_Method_Analysis,C$26,Residual_Acres,\">=\"&$A30,Residual_Acres,\"<\"&ROUND($B30,0)),0)","v":4.07},{"$f":"IFERROR(MEDIAN(IF(Valuation_Method_Analysis=C$26,IF(Residual_Acres>=$A30,IF(Residual_Acres<ROUND($B30,0),IF(Use=1,Adj_PPSF))))),0)","v":4.07},{"$f":"COUNTIFS(Use,1,Valuation_Method_Analysis,G$26,Residual_Acres,\">=\"&$A30,Residual_Acres,\"<\"&ROUND($B30,0))","v":3},{"$f":"IFERROR((SUM(IF(Valuation_Method_Analysis=G$26,IF(Residual_Acres>=$A30,IF(Residual_Acres<ROUND($B30,0),IF(Use=1,ABS(J30-Adj_PPSF))))))/G30)/J30,0)","v":0.36168384879725085},{"$f":"IFERROR(AVERAGEIFS(Adj_PPSF,Use,1,Valuation_Method_Analysis,G$26,Residual_Acres,\">=\"&$A30,Residual_Acres,\"<\"&ROUND($B30,0)),0)","v":3.6966666666666668},{"$f":"IFERROR(MEDIAN(IF(Valuation_Method_Analysis=G$26,IF(Residual_Acres>=$A30,IF(Residual_Acres<ROUND($B30,0),IF(Use=1,Adj_PPSF))))),0)","v":3.88},{"$f":"COUNTIFS(Use,1,Valuation_Method_Analysis,K$26,Residual_Acres,\">=\"&$A30,Residual_Acres,\"<\"&ROUND($B30,0))","v":2},{"$f":"IFERROR((SUM(IF(Valuation_Method_Analysis=K$26,IF(Residual_Acres>=$A30,IF(Residual_Acres<ROUND($B30,0),IF(Use=1,ABS(N30-Adj_PPSF))))))/K30)/N30,0)","v":0.52483801295896326},{"$f":"IFERROR(AVERAGEIFS(Adj_PPSF,Use,1,Valuation_Method_Analysis,K$26,Residual_Acres,\">=\"&$A30,Residual_Acres,\"<\"&ROUND($B30,0)),0)","v":4.63},{"$f":"IFERROR(MEDIAN(IF(Valuation_Method_Analysis=K$26,IF(Residual_Acres>=$A30,IF(Residual_Acres<ROUND($B30,0),IF(Use=1,Adj_PPSF))))),0)","v":4.63},{"$f":"COUNTIFS(Use,1,Residual_Acres,\">=\"&$A30,Residual_Acres,\"<\"&ROUND($B30,0))","v":6},{"$f":"IFERROR((SUM(IF(Residual_Acres>=$A30,IF(Residual_Acres<ROUND($B30,0),IF(Use=1,ABS(R30-Adj_PPSF)))))/O30)/R30,0)","v":0.38825995807127878},{"$f":"IFERROR(AVERAGEIFS(Adj_PPSF,Use,1,Residual_Acres,\">=\"&$A30,Residual_Acres,\"<\"&ROUND($B30,0)),0)","v":4.0699999999999994},{"$f":"IFERROR(MEDIAN(IF(Residual_Acres>=$A30,IF(Residual_Acres<ROUND($B30,0),IF(Use=1,Adj_PPSF)))),0)","v":3.9750000000000001}]
[{"$f":"B30+0.01","v":5},9.99,{"$f":"COUNTIFS(Use,1,Valuation_Method_Analysis,C$26,Residual_Acres,\">=\"&$A31,Residual_Acres,\"<\"&ROUND($B31,0))","v":0},{"$f":"IFERROR((SUM(IF(Valuation_Method_Analysis=C$26,IF(Residual_Acres>=$A31,IF(Residual_Acres<ROUND($B31,0),IF(Use=1,ABS(F31-Adj_PPSF))))))/C31)/F31,0)","v":0},{"$f":"IFERROR(AVERAGEIFS(Adj_PPSF,Use,1,Valuation_Method_Analysis,C$26,Residual_Acres,\">=\"&$A31,Residual_Acres,\"<\"&ROUND($B31,0)),0)","v":0},{"$f":"IFERROR(MEDIAN(IF(Valuation_Method_Analysis=C$26,IF(Residual_Acres>=$A31,IF(Residual_Acres<ROUND($B31,0),IF(Use=1,Adj_PPSF))))),0)","v":0},{"$f":"COUNTIFS(Use,1,Valuation_Method_Analysis,G$26,Residual_Acres,\">=\"&$A31,Residual_Acres,\"<\"&ROUND($B31,0))","v":1},{"$f":"IFERROR((SUM(IF(Valuation_Method_Analysis=G$26,IF(Residual_Acres>=$A31,IF(Residual_Acres<ROUND($B31,0),IF(Use=1,ABS(J31-Adj_PPSF))))))/G31)/J31,0)","v":0},{"$f":"IFERROR(AVERAGEIFS(Adj_PPSF,Use,1,Valuation_Method_Analysis,G$26,Residual_Acres,\">=\"&$A31,Residual_Acres,\"<\"&ROUND($B31,0)),0)","v":4.91},{"$f":"IFERROR(MEDIAN(IF(Valuation_Method_Analysis=G$26,IF(Residual_Acres>=$A31,IF(Residual_Acres<ROUND($B31,0),IF(Use=1,Adj_PPSF))))),0)","v":4.91},{"$f":"COUNTIFS(Use,1,Valuation_Method_Analysis,K$26,Residual_Acres,\">=\"&$A31,Residual_Acres,\"<\"&ROUND($B31,0))","v":1},{"$f":"IFERROR((SUM(IF(Valuation_Method_Analysis=K$26,IF(Residual_Acres>=$A31,IF(Residual_Acres<ROUND($B31,0),IF(Use=1,ABS(N31-Adj_PPSF))))))/K31)/N31,0)","v":0},{"$f":"IFERROR(AVERAGEIFS(Adj_PPSF,Use,1,Valuation_Method_Analysis,K$26,Residual_Acres,\">=\"&$A31,Residual_Acres,\"<\"&ROUND($B31,0)),0)","v":4.04},{"$f":"IFERROR(MEDIAN(IF(Valuation_Method_Analysis=K$26,IF(Residual_Acres>=$A31,IF(Residual_Acres<ROUND($B31,0),IF(Use=1,Adj_PPSF))))),0)","v":4.04},{"$f":"COUNTIFS(Use,1,Residual_Acres,\">=\"&$A31,Residual_Acres,\"<\"&ROUND($B31,0))","v":2},{"$f":"IFERROR((SUM(IF(Residual_Acres>=$A31,IF(Residual_Acres<ROUND($B31,0),IF(Use=1,ABS(R31-Adj_PPSF)))))/O31)/R31,0)","v":9.7206703910614548E-2},{"$f":"IFERROR(AVERAGEIFS(Adj_PPSF,Use,1,Residual_Acres,\">=\"&$A31,Residual_Acres,\"<\"&ROUND($B31,0)),0)","v":4.4749999999999996},{"$f":"IFERROR(MEDIAN(IF(Residual_Acres>=$A31,IF(Residual_Acres<ROUND($B31,0),IF(Use=1,Adj_PPSF)))),0)","v":4.4749999999999996}]
[{"$f":"B31+0.01","v":10},10000,{"$f":"COUNTIFS(Use,1,Valuation_Method_Analysis,C$26,Residual_Acres,\">=\"&$A32,Residual_Acres,\"<\"&ROUND($B32,0))","v":0},{"$f":"IFERROR((SUM(IF(Valuation_Method_Analysis=C$26,IF(Residual_Acres>=$A32,IF(Residual_Acres<ROUND($B32,0),IF(Use=1,ABS(F32-Adj_PPSF))))))/C32)/F32,0)","v":0},{"$f":"IFERROR(AVERAGEIFS(Adj_PPSF,Use,1,Valuation_Method_Analysis,C$26,Residual_Acres,\">=\"&$A32,Residual_Acres,\"<\"&ROUND($B32,0)),0)","v":0},{"$f":"IFERROR(MEDIAN(IF(Valuation_Method_Analysis=C$26,IF(Residual_Acres>=$A32,IF(Residual_Acres<ROUND($B32,0),IF(Use=1,Adj_PPSF))))),0)","v":0},{"$f":"COUNTIFS(Use,1,Valuation_Method_Analysis,G$26,Residual_Acres,\">=\"&$A32,Residual_Acres,\"<\"&ROUND($B32,0))","v":2},{"$f":"IFERROR((SUM(IF(Valuation_Method_Analysis=G$26,IF(Residual_Acres>=$A32,IF(Residual_Acres<ROUND($B32,0),IF(Use=1,ABS(J32-Adj_PPSF))))))/G32)/J32,0)","v":0.29545454545454541},{"$f":"IFERROR(AVERAGEIFS(Adj_PPSF,Use,1,Valuation_Method_Analysis,G$26,Residual_Acres,\">=\"&$A32,Residual_Acres,\"<\"&ROUND($B32,0)),0)","v":0.43999999999999995},{"$f":"IFERROR(MEDIAN(IF(Valuation_Method_Analysis=G$26,IF(Residual_Acres>=$A32,IF(Residual_Acres<ROUND($B32,0),IF(Use=1,Adj_PPSF))))),0)","v":0.43999999999999995},{"$f":"COUNTIFS(Use,1,Valuation_Method_Analysis,K$26,Residual_Acres,\">=\"&$A32,Residual_Acres,\"<\"&ROUND($B32,0))","v":1},{"$f":"IFERROR((SUM(IF(Valuation_Method_Analysis=K$26,IF(Residual_Acres>=$A32,IF(Residual_Acres<ROUND($B32,0),IF(Use=1,ABS(N32-Adj_PPSF))))))/K32)/N32,0)","v":0},{"$f":"IFERROR(AVERAGEIFS(Adj_PPSF,Use,1,Valuation_Method_Analysis,K$26,Residual_Acres,\">=\"&$A32,Residual_Acres,\"<\"&ROUND($B32,0)),0)","v":0.37},{"$f":"IFERROR(MEDIAN(IF(Valuation_Method_Analysis=K$26,IF(Residual_Acres>=$A32,IF(Residual_Acres<ROUND($B32,0),IF(Use=1,Adj_PPSF))))),0)","v":0.37},{"$f":"COUNTIFS(Use,1,Residual_Acres,\">=\"&$A32,Residual_Acres,\"<\"&ROUND($B32,0))","v":3},{"$f":"IFERROR((SUM(IF(Residual_Acres>=$A32,IF(Residual_Acres<ROUND($B32,0),IF(Use=1,ABS(R32-Adj_PPSF)))))/O32)/R32,0)","v":0.2342342342342342},{"$f":"IFERROR(AVERAGEIFS(Adj_PPSF,Use,1,Residual_Acres,\">=\"&$A32,Residual_Acres,\"<\"&ROUND($B32,0)),0)","v":0.41666666666666669},{"$f":"IFERROR(MEDIAN(IF(Residual_Acres>=$A32,IF(Residual_Acres<ROUND($B32,0),IF(Use=1,Adj_PPSF)))),0)","v":0.37}]
[0,10000,{"$f":"COUNTIFS(Use,1,Valuation_Method_Analysis,C$26,Residual_Acres,\">=\"&$A33,Residual_Acres,\"<\"&ROUND($B33,0))","v":8},{"$f":"IFERROR((SUM(IF(Valuation_Method_Analysis=C$26,IF(Residual_Acres>=$A33,IF(Residual_Acres<ROUND($B33,0),IF(Use=1,ABS(F33-Adj_PPSF))))))/C33)/F33,0)","v":0.23779461279461284},{"$f":"IFERROR(AVERAGEIFS(Adj_PPSF,Use,1,Valuation_Method_Analysis,C$26,Residual_Acres,\">=\"&$A33,Residual_Acres,\"<\"&ROUND($B33,0)),0)","v":5.9949999999999992},{"$f":"IFERROR(MEDIAN(IF(Valuation_Method_Analysis=C$26,IF(Residual_Acres>=$A33,IF(Residual_Acres<ROUND($B33,0),IF(Use=1,Adj_PPSF))))),0)","v":5.9399999999999995},{"$f":"COUNTIFS(Use,1,Valuation_Method_Analysis,G$26,Residual_Acres,\">=\"&$A33,Residual_Acres,\"<\"&ROUND($B33,0))","v":15},{"$f":"IFERROR((SUM(IF(Valuation_Method_Analysis=G$26,IF(Residual_Acres>=$A33,IF(Residual_Acres<ROUND($B33,0),IF(Use=1,ABS(J33-Adj_PPSF))))))/G33)/J33,0)","v":0.42820512820512835},{"$f":"IFERROR(AVERAGEIFS(Adj_PPSF,Use,1,Valuation_Method_Analysis,G$26,Residual_Acres,\">=\"&$A33,Residual_Acres,\"<\"&ROUND($B33,0)),0)","v":3.9346666666666668},{"$f":"IFERROR(MEDIAN(IF(Valuation_Method_Analysis=G$26,IF(Residual_Acres>=$A33,IF(Residual_Acres<ROUND($B33,0),IF(Use=1,Adj_PPSF))))),0)","v":4.68},{"$f":"COUNTIFS(Use,1,Valuation_Method_Analysis,K$26,Residual_Acres,\">=\"&$A33,Residual_Acres,\"<\"&ROUND($B33,0))","v":14},{"$f":"IFERROR((SUM(IF(Valuation_Method_Analysis=K$26,IF(Residual_Acres>=$A33,IF(Residual_Acres<ROUND($B33,0),IF(Use=1,ABS(N33-Adj_PPSF))))))/K33)/N33,0)","v":0.39995107632093935},{"$f":"IFERROR(AVERAGEIFS(Adj_PPSF,Use,1,Valuation_Method_Analysis,K$26,Residual_Acres,\">=\"&$A33,Residual_Acres,\"<\"&ROUND($B33,0)),0)","v":5.1542857142857139},{"$f":"IFERROR(MEDIAN(IF(Valuation_Method_Analysis=K$26,IF(Residual_Acres>=$A33,IF(Residual_Acres<ROUND($B33,0),IF(Use=1,Adj_PPSF))))),0)","v":5.84},{"$f":"COUNTIFS(Use,1,Residual_Acres,\">=\"&$A33,Residual_Acres,\"<\"&ROUND($B33,0))","v":37},{"$f":"IFERROR((SUM(IF(Residual_Acres>=$A33,IF(Residual_Acres<ROUND($B33,0),IF(Use=1,ABS(R33-Adj_PPSF)))))/O33)/R33,0)","v":0.42540540540540545},{"$f":"IFERROR(AVERAGEIFS(Adj_PPSF,Use,1,Residual_Acres,\">=\"&$A33,Residual_Acres,\"<\"&ROUND($B33,0)),0)","v":4.8416216216216217},{"$f":"IFERROR(MEDIAN(IF(Residual_Acres>=$A33,IF(Residual_Acres<ROUND($B33,0),IF(Use=1,Adj_PPSF)))),0)","v":5}]

{"sheet":"Used Sales","index":9,"n_rows":501,"n_cols":28,"rows_kept":501,"cut":false,"hidden":false,"merged":[]}
["Item ID","Valuation Method","Parcel Number","Address","Sale Date","Sale Price","Conf.","Liber/ Page","Total Acre","Total Sq Ft","Total Front Ft","ROW (Sq Ft)","Imprvmts Value","Land\nResidual","Indicated\nLB Ratio","Resid\nAcre","Resid\nSq Ft","Unadjust\n$ / acre","Unadjust\n$ / Sq Ft","Months To\nMid-Point","Time\nAdjust","Adjusted\nSale Price","Adjust $\nPer Acre","Adjust $\nPer Sq Ft","Adjust $\nPer Front Ft","Other Parcels in Sale","Comments","Use? 1=Yes, 0=No"]
["5-12Vac-1391-595","Vacant","34-011-001-000-085-12","M-66",38609,595000,"n","591/7047",4.4610000000000003,194321.16,335,0,0,{"$f":"VLOOKUP(Table_Data_Table_13[[#This Row],[Item ID]],Analysis_Table,8,FALSE)","v":595000},{"$f":"VLOOKUP(Table_Data_Table_13[[#This Row],[Item ID]],Analysis_Table,9,FALSE)","v":"N/A"},{"$f":"VLOOKUP(Table_Data_Table_13[[#This Row],[Item ID]],Analysis_Table,10,FALSE)","v":4.4610000000000003},{"$f":"VLOOKUP(Table_Data_Table_13[[#This Row],[Item ID]],Analysis_Table,11,FALSE)","v":194321.16},{"$f":"VLOOKUP(Table_Data_Table_13[[#This Row],[Item ID]],Analysis_Table,12,FALSE)","v":133378.16633041919},{"$f":"VLOOKUP(Table_Data_Table_13[[#This Row],[Item ID]],Analysis_Table,13,FALSE)","v":3.06},{"$f":"VLOOKUP(Table_Data_Table_13[[#This Row],[Item ID]],Analysis_Table,14,FALSE)","v":211},{"$f":"VLOOKUP(Table_Data_Table_13[[#This Row],[Item ID]],Analysis_Table,15,FALSE)","v":0.33076375029158739},{"$f":"VLOOKUP(Table_Data_Table_13[[#This Row],[Item ID]],Analysis_Table,16,FALSE)","v":791804.43142349448},{"$f":"VLOOKUP(Table_Data_Table_13[[#This Row],[Item ID]],Analysis_Table,17,FALSE)","v":177494.82883288377},{"$f":"VLOOKUP(Table_Data_Table_13[[#This Row],[Item ID]],Analysis_Table,18,FALSE)","v":4.07},{"$f":"VLOOKUP(Table_Data_Table_13[[#This Row],[Item ID]],Analysis_Table,19,FALSE)","v":2363.5953176820731},null,null,1]
["5-42Vac-1340-485","Vacant","34-011-001-000-085-42","M-66",38660,485000,"n","592/9829",1.87,81457.200000000012,323.05,0,0,{"$f":"VLOOKUP(Table_Data_Table_13[[#This Row],[Item ID]],Analysis_Table,8,FALSE)","v":485000},{"$f":"VLOOKUP(Table_Data_Table_13[[#This Row],[Item ID]],Analysis_Table,9,FALSE)","v":"N/A"},{"$f":"VLOOKUP(Table_Data_Table_13[[#This Row],[Item ID]],Analysis_Table,10,FALSE)","v":1.87},{"$f":"VLOOKUP(Table_Data_Table_13[[#This Row],[Item ID]],Analysis_Table,11,FALSE)","v":81457.200000000012},{"$f":"VLOOKUP(Table_Data_Table_13[[#This Row],[Item ID]],Analysis_Table,12,FALSE)","v":259358.28877005345},{"$f":"VLOOKUP(Table_Data_Table_13[[#This Row],[Item ID]],Analysis_Table,13,FALSE)","v":5.95},{"$f":"VLOOKUP(Table_Data_Table_13[[#This Row],[Item ID]],Analysis_Table,14,FALSE)","v":209},{"$f":"VLOOKUP(Table_Data_Table_13[[#This Row],[Item ID]],Analysis_Table,15,FALSE)","v":0.32762854886702258},{"$f":"VLOOKUP(Table_Data_Table_13[[#This Row],[Item ID]],Analysis_Table,16,FALSE)","v":643899.84620050597},{"$f":"VLOOKUP(Table_Data_Table_13[[#This Row],[Item ID]],Analysis_Table,17,FALSE)","v":344331.4685564203},{"$f":"VLOOKUP(Table_Data_Table_13[[#This Row],[Item ID]],Analysis_Table,18,FALSE)","v":7.9},{"$f":"VLOOKUP(Table_Data_Table_13[[#This Row],[Item ID]],Analysis_Table,19,FALSE)","v":1993.1894325971396},null,null,1]
["5-10Vac-1032-300","Vacant","34-060-140-000-005-10","M-66",38968,300000,"n","598/8270",1.446,62987.759999999995,300,0,0,{"$f":"VLOOKUP(Table_Data_Table_13[[#This Row],[Item ID]],Analysis_Table,8,FALSE)","v":300000},{"$f":"VLOOKUP(Table_Data_Table_13[[#This Row],[Item ID]],Analysis_Table,9,FALSE)","v":"N/A"},{"$f":"VLOOKUP(Table_Data_Table_13[[#This Row],[Item ID]],Analysis_Table,10,FALSE)","v":1.446},{"$f":"VLOOKUP(Table_Data_Table_13[[#This Row],[Item ID]],Analysis_Table,11,FALSE)","v":62987.759999999995},{"$f":"VLOOKUP(Table_Data_Table_13[[#This Row],[Item ID]],Analysis_Table,12,FALSE)","v":207468.87966804981},{"$f":"VLOOKUP(Table_Data_Table_13[[#This Row],[Item ID]],Analysis_Table,13,FALSE)","v":4.76},{"$f":"VLOOKUP(Table_Data_Table_13[[#This Row],[Item ID]],Analysis_Table,14,FALSE)","v":199},{"$f":"VLOOKUP(Table_Data_Table_13[[#This Row],[Item ID]],Analysis_Table,15,FALSE)","v":0.31195254174419851},{"$f":"VLOOKUP(Table_Data_Table_13[[#This Row],[Item ID]],Analysis_Table,16,FALSE)","v":393585.76252325956},{"$f":"VLOOKUP(Table_Data_Table_13[[#This Row],[Item ID]],Analysis_Table,17,FALSE)","v":272189.32401331922},{"$f":"VLOOKUP(Table_Data_Table_13[[#This Row],[Item ID]],Analysis_Table,18,FALSE)","v":6.25},{"$f":"VLOOKUP(Table_Data_Table_13[[#This Row],[Item ID]],Analysis_Table,19,FALSE)","v":1311.9525417441985},null,null,1]
["6-00Vac-48-150","Vacant","34-201-040-000-076-00","S. Steele St",39952,15000,"n","612/5536",0.85499999999999998,37243.799999999996,108.64,0,0,{"$f":"VLOOKUP(Table_Data_Table_13[[#This Row],[Item ID]],Analysis_Table,8,FALSE)","v":15000},{"$f":"VLOOKUP(Table_Data_Table_13[[#This Row],[Item ID]],Analysis_Table,9,FALSE)","v":"N/A"},{"$f":"VLOOKUP(Table_Data_Table_13[[#This Row],[Item ID]],Analysis_Table,10,FALSE)","v":0.85499999999999998},{"$f":"VLOOKUP(Table_Data_Table_13[[#This Row],[Item ID]],Analysis_Table,11,FALSE)","v":37243.799999999996},{"$f":"VLOOKUP(Table_Data_Table_13[[#This Row],[Item ID]],Analysis_Table,12,FALSE)","v":17543.859649122809},{"$f":"VLOOKUP(Table_Data_Table_13[[#This Row],[Item ID]],Analysis_Table,13,FALSE)","v":0.4},{"$f":"VLOOKUP(Table_Data_Table_13[[#This Row],[Item ID]],Analysis_Table,14,FALSE)","v":166},{"$f":"VLOOKUP(Table_Data_Table_13[[#This Row],[Item ID]],Analysis_Table,15,FALSE)","v":0.26022171823887918},{"$f":"VLOOKUP(Table_Data_Table_13[[#This Row],[Item ID]],Analysis_Table,16,FALSE)","v":18903.325773583187},{"$f":"VLOOKUP(Table_Data_Table_13[[#This Row],[Item ID]],Analysis_Table,17,FALSE)","v":22109.152951559285},{"$f":"VLOOKUP(Table_Data_Table_13[[#This Row],[Item ID]],Analysis_Table,18,FALSE)","v":0.51},{"$f":"VLOOKUP(Table_Data_Table_13[[#This Row],[Item ID]],Analysis_Table,19,FALSE)","v":173.99968495566262},null,null,0]
["5-00Vac333-200","Vacant","34-300-050-000-395-00","Elm St",40333,20000,"n","???",0.60899999999999999,26528.04,333,0,0,{"$f":"VLOOKUP(Table_Data_Table_13[[#This Row],[Item ID]],Analysis_Table,8,FALSE)","v":20000},{"$f":"VLOOKUP(Table_Data_Table_13[[#This Row],[Item ID]],Analysis_Table,9,FALSE)","v":"N/A"},{"$f":"VLOOKUP(Table_Data_Table_13[[#This Row],[Item ID]],Analysis_Table,10,FALSE)","v":0.60899999999999999},{"$f":"VLOOKUP(Table_Data_Table_13[[#This Row],[Item ID]],Analysis_Table,11,FALSE)","v":26528.04},{"$f":"VLOOKUP(Table_Data_Table_13[[#This Row],[Item ID]],Analysis_Table,12,FALSE)","v":32840.722495894908},{"$f":"VLOOKUP(Table_Data_Table_13[[#This Row],[Item ID]],Analysis_Table,13,FALSE)","v":0.75},{"$f":"VLOOKUP(Table_Data_Table_13[[#This Row],[Item ID]],Analysis_Table,14,FALSE)","v":154},{"$f":"VLOOKUP(Table_Data_Table_13[[#This Row],[Item ID]],Analysis_Table,15,FALSE)","v":0.2414105096914903},{"$f":"VLOOKUP(Table_Data_Table_13[[#This Row],[Item ID]],Analysis_Table,16,FALSE)","v":24828.210193829804},{"$f":"VLOOKUP(Table_Data_Table_13[[#This Row],[Item ID]],Analysis_Table,17,FALSE)","v":40768.818052265691},{"$f":"VLOOKUP(Table_Data_Table_13[[#This Row],[Item ID]],Analysis_Table,18,FALSE)","v":0.94},{"$f":"VLOOKUP(Table_Data_Table_13[[#This Row],[Item ID]],Analysis_Table,19,FALSE)","v":74.559189771260677},null,null,0]
["5-00Abs1563-200","Abstraction","34-060-006-000-095-00","2260 M-66",41563,200000,"n","631/8714",1.214,52881.84,235,11750,33808,{"$f":"VLOOKUP(Table_Data_Table_13[[#This Row],[Item ID]],Analysis_Table,8,FALSE)","v":166192},{"$f":"VLOOKUP(Table_Data_Table_13[[#This Row],[Item ID]],Analysis_Table,9,FALSE)","v":0.83096000000000003},{"$f":"VLOOKUP(Table_Data_Table_13[[#This Row],[Item ID]],Analysis_Table,10,FALSE)","v":0.94399999999999995},{"$f":"VLOOKUP(Table_Data_Table_13[[#This Row],[Item ID]],Analysis_Table,11,FALSE)","v":41131.839999999997},{"$f":"VLOOKUP(Table_Data_Table_13[[#This Row],[Item ID]],Analysis_Table,12,FALSE)","v":176050.84745762713},{"$f":"VLOOKUP(Table_Data_Table_13[[#This Row],[Item ID]],Analysis_Table,13,FALSE)","v":4.04},{"$f":"VLOOKUP(Table_Data_Table_13[[#This Row],[Item ID]],Analysis_Table,14,FALSE)","v":114},{"$f":"VLOOKUP(Table_Data_Table_13[[#This Row],[Item ID]],Analysis_Table,15,FALSE)","v":0.17870648120019414},{"$f":"VLOOKUP(Table_Data_Table_13[[#This Row],[Item ID]],Analysis_Table,16,FALSE)","v":195891.58752362267},{"$f":"VLOOKUP(Table_Data_Table_13[[#This Row],[Item ID]],Analysis_Table,17,FALSE)","v":207512.27491909181},{"$f":"VLOOKUP(Table_Data_Table_13[[#This Row],[Item ID]],Analysis_Table,18,FALSE)","v":4.76},{"$f":"VLOOKUP(Table_Data_Table_13[[#This Row],[Item ID]],Analysis_Table,19,FALSE)","v":833.58122350477731},null,null,1]
["5-00All1563-200","Allocation","34-060-006-000-095-00","2260 M-66",41563,200000,"n","631/8714",1.214,52881.84,235,11750,33808,{"$f":"VLOOKUP(Table_Data_Table_13[[#This Row],[Item ID]],Analysis_Table,8,FALSE)","v":80860},{"$f":"VLOOKUP(Table_Data_Table_13[[#This Row],[Item ID]],Analysis_Table,9,FALSE)","v":0.40429999999999999},{"$f":"VLOOKUP(Table_Data_Table_13[[#This Row],[Item ID]],Analysis_Table,10,FALSE)","v":0.94399999999999995},{"$f":"VLOOKUP(Table_Data_Table_13[[#This Row],[Item ID]],Analysis_Table,11,FALSE)","v":41131.839999999997},{"$f":"VLOOKUP(Table_Data_Table_13[[#This Row],[Item ID]],Analysis_Table,12,FALSE)","v":85656.779661016961},{"$f":"VLOOKUP(Table_Data_Table_13[[#This Row],[Item ID]],Analysis_Table,13,FALSE)","v":1.97},{"$f":"VLOOKUP(Table_Data_Table_13[[#This Row],[Item ID]],Analysis_Table,14,FALSE)","v":114},{"$f":"VLOOKUP(Table_Data_Table_13[[#This Row],[Item ID]],Analysis_Table,15,FALSE)","v":0.17870648120019414},{"$f":"VLOOKUP(Table_Data_Table_13[[#This Row],[Item ID]],Analysis_Table,16,FALSE)","v":95310.2060698477},{"$f":"VLOOKUP(Table_Data_Table_13[[#This Row],[Item ID]],Analysis_Table,17,FALSE)","v":100964.20134517766},{"$f":"VLOOKUP(Table_Data_Table_13[[#This Row],[Item ID]],Analysis_Table,18,FALSE)","v":2.3199999999999998},{"$f":"VLOOKUP(Table_Data_Table_13[[#This Row],[Item ID]],Analysis_Table,19,FALSE)","v":405.57534497807529},null,null,1]
["5-10All1677-297","Allocation","34-401-250-000-335-10","1525 W. State Rd",41677,297000,"n","632/9262",0.504,21943.68,249.36,0,0,{"$f":"VLOOKUP(Table_Data_Table_13[[#This Row],[Item ID]],Analysis_Table,8,FALSE)","v":120077.09999999999},{"$f":"VLOOKUP(Table_Data_Table_13[[#This Row],[Item ID]],Analysis_Table,9,FALSE)","v":0.40429999999999999},{"$f":"VLOOKUP(Table_Data_Table_13[[#This Row],[Item ID]],Analysis_Table,10,FALSE)","v":0.504},{"$f":"VLOOKUP(Table_Data_Table_13[[#This Row],[Item ID]],Analysis_Table,11,FALSE)","v":21943.68},{"$f":"VLOOKUP(Table_Data_Table_13[[#This Row],[Item ID]],Analysis_Table,12,FALSE)","v":238248.21428571426},{"$f":"VLOOKUP(Table_Data_Table_13[[#This Row],[Item ID]],Analysis_Table,13,FALSE)","v":5.47},{"$f":"VLOOKUP(Table_Data_Table_13[[#This Row],[Item ID]],Analysis_Table,14,FALSE)","v":110},{"$f":"VLOOKUP(Table_Data_Table_13[[#This Row],[Item ID]],Analysis_Table,15,FALSE)","v":0.1724360783510645},{"$f":"VLOOKUP(Table_Data_Table_13[[#This Row],[Item ID]],Analysis_Table,16,FALSE)","v":140782.7242237686},{"$f":"VLOOKUP(Table_Data_Table_13[[#This Row],[Item ID]],Analysis_Table,17,FALSE)","v":279330.80203128688},{"$f":"VLOOKUP(Table_Data_Table_13[[#This Row],[Item ID]],Analysis_Table,18,FALSE)","v":6.42},{"$f":"VLOOKUP(Table_Data_Table_13[[#This Row],[Item ID]],Analysis_Table,19,FALSE)","v":564.57621199778873},null,null,1]
["0-00Abs1795-800","Abstraction","34-401-250-000-350-00","1439 W. State Rd",41795,80000,"n","634/1902",1.7070000000000001,74356.92,121.5,4009.5,51893,{"$f":"VLOOKUP(Table_Data_Table_13[[#This Row],[Item ID]],Analysis_Table,8,FALSE)","v":28107},{"$f":"VLOOKUP(Table_Data_Table_13[[#This Row],[Item ID]],Analysis_Table,9,FALSE)","v":0.35133750000000002},{"$f":"VLOOKUP(Table_Data_Table_13[[#This Row],[Item ID]],Analysis_Table,10,FALSE)","v":1.615},{"$f":"VLOOKUP(Table_Data_Table_13[[#This Row],[Item ID]],Analysis_Table,11,FALSE)","v":70347.42},{"$f":"VLOOKUP(Table_Data_Table_13[[#This Row],[Item ID]],Analysis_Table,12,FALSE)","v":17403.71517027864},{"$f":"VLOOKUP(Table_Data_Table_13[[#This Row],[Item ID]],Analysis_Table,13,FALSE)","v":0.4},{"$f":"VLOOKUP(Table_Data_Table_13[[#This Row],[Item ID]],Analysis_Table,14,FALSE)","v":106},{"$f":"VLOOKUP(Table_Data_Table_13[[#This Row],[Item ID]],Analysis_Table,15,FALSE)","v":0.1661656755019349},{"$f":"VLOOKUP(Table_Data_Table_13[[#This Row],[Item ID]],Analysis_Table,16,FALSE)","v":32777.418641332886},{"$f":"VLOOKUP(Table_Data_Table_13[[#This Row],[Item ID]],Analysis_Table,17,FALSE)","v":20295.615257791262},{"$f":"VLOOKUP(Table_Data_Table_13[[#This Row],[Item ID]],Analysis_Table,18,FALSE)","v":0.47},{"$f":"VLOOKUP(Table_Data_Table_13[[#This Row],[Item ID]],Analysis_Table,19,FALSE)","v":269.77299293278094},null,null,1]
["0-00All1795-800","Allocation","34-401-250-000-350-00","1439 W. State Rd",41795,80000,"n","634/1902",1.7070000000000001,74356.92,121.5,4009.5,0,{"$f":"VLOOKUP(Table_Data_Table_13[[#This Row],[Item ID]],Analysis_Table,8,FALSE)","v":32344},{"$f":"VLOOKUP(Table_Data_Table_13[[#This Row],[Item ID]],Analysis_Table,9,FALSE)","v":0.40429999999999999},{"$f":"VLOOKUP(Table_Data_Table_13[[#This Row],[Item ID]],Analysis_Table,10,FALSE)","v":1.615},{"$f":"VLOOKUP(Table_Data_Table_13[[#This Row],[Item ID]],Analysis_Table,11,FALSE)","v":70347.42},{"$f":"VLOOKUP(Table_Data_Table_13[[#This Row],[Item ID]],Analysis_Table,12,FALSE)","v":20027.244582043342},{"$f":"VLOOKUP(Table_Data_Table_13[[#This Row],[Item ID]],Analysis_Table,13,FALSE)","v":0.46},{"$f":"VLOOKUP(Table_Data_Table_13[[#This Row],[Item ID]],Analysis_Table,14,FALSE)","v":106},{"$f":"VLOOKUP(Table_Data_Table_13[[#This Row],[Item ID]],Analysis_Table,15,FALSE)","v":0.1661656755019349},{"$f":"VLOOKUP(Table_Data_Table_13[[#This Row],[Item ID]],Analysis_Table,16,FALSE)","v":37718.462608434587},{"$f":"VLOOKUP(Table_Data_Table_13[[#This Row],[Item ID]],Analysis_Table,17,FALSE)","v":23355.085206461044},{"$f":"VLOOKUP(Table_Data_Table_13[[#This Row],[Item ID]],Analysis_Table,18,FALSE)","v":0.54},{"$f":"VLOOKUP(Table_Data_Table_13[[#This Row],[Item ID]],Analysis_Table,19,FALSE)","v":310.44002146859742},null,null,1]
["0-00Abs1829-364","Abstraction","34-300-110-000-070-00","1320 E. Grand River Ave",41829,364600,"n","634/5648",0.64100000000000001,27921.96,275,0,228195,{"$f":"VLOOKUP(Table_Data_Table_13[[#This Row],[Item ID]],Analysis_Table,8,FALSE)","v":136405},{"$f":"VLOOKUP(Table_Data_Table_13[[#This Row],[Item ID]],Analysis_Table,9,FALSE)","v":0.37412232583653321},{"$f":"VLOOKUP(Table_Data_Table_13[[#This Row],[Item ID]],Analysis_Table,10,FALSE)","v":0.64100000000000001},{"$f":"VLOOKUP(Table_Data_Table_13[[#This Row],[Item ID]],Analysis_Table,11,FALSE)","v":27921.96},{"$f":"VLOOKUP(Table_Data_Table_13[[#This Row],[Item ID]],Analysis_Table,12,FALSE)","v":212800.31201248048},{"$f":"VLOOKUP(Table_Data_Table_13[[#This Row],[Item ID]],Analysis_Table,13,FALSE)","v":4.8899999999999997},{"$f":"VLOOKUP(Table_Data_Table_13[[#This Row],[Item ID]],Analysis_Table,14,FALSE)","v":105},{"$f":"VLOOKUP(Table_Data_Table_13[[#This Row],[Item ID]],Analysis_Table,15,FALSE)","v":0.16459807478965249},{"$f":"VLOOKUP(Table_Data_Table_13[[#This Row],[Item ID]],Analysis_Table,16,FALSE)","v":158857.00039168255},{"$f":"VLOOKUP(Table_Data_Table_13[[#This Row],[Item ID]],Analysis_Table,17,FALSE)","v":247826.83368437216},{"$f":"VLOOKUP(Table_Data_Table_13[[#This Row],[Item ID]],Analysis_Table,18,FALSE)","v":5.69},{"$f":"VLOOKUP(Table_Data_Table_13[[#This Row],[Item ID]],Analysis_Table,19,FALSE)","v":577.66181960611834},null,null,1]
["0-00All1829-364","Allocation","34-300-110-000-070-00","1320 E. Grand River Ave",41829,364600,"n","634/5648",0.64100000000000001,27921.96,275,0,0,{"$f":"VLOOKUP(Table_Data_Table_13[[#This Row],[Item ID]],Analysis_Table,8,FALSE)","v":147407.78},{"$f":"VLOOKUP(Table_Data_Table_13[[#This Row],[Item ID]],Analysis_Table,9,FALSE)","v":0.40429999999999999},{"$f":"VLOOKUP(Table_Data_Table_13[[#This Row],[Item ID]],Analysis_Table,10,FALSE)","v":0.64100000000000001},{"$f":"VLOOKUP(Table_Data_Table_13[[#This Row],[Item ID]],Analysis_Table,11,FALSE)","v":27921.96},{"$f":"VLOOKUP(Table_Data_Table_13[[#This Row],[Item ID]],Analysis_Table,12,FALSE)","v":229965.33541341653},{"$f":"VLOOKUP(Table_Data_Table_13[[#This Row],[Item ID]],Analysis_Table,13,FALSE)","v":5.28},{"$f":"VLOOKUP(Table_Data_Table_13[[#This Row],[Item ID]],Analysis_Table,14,FALSE)","v":105},{"$f":"VLOOKUP(Table_Data_Table_13[[#This Row],[Item ID]],Analysis_Table,15,FALSE)","v":0.16459807478965249},{"$f":"VLOOKUP(Table_Data_Table_13[[#This Row],[Item ID]],Analysis_Table,16,FALSE)","v":171670.81679701665},{"$f":"VLOOKUP(Table_Data_Table_13[[#This Row],[Item ID]],Analysis_Table,17,FALSE)","v":267817.18689082161},{"$f":"VLOOKUP(Table_Data_Table_13[[#This Row],[Item ID]],Analysis_Table,18,FALSE)","v":6.15},{"$f":"VLOOKUP(Table_Data_Table_13[[#This Row],[Item ID]],Analysis_Table,19,FALSE)","v":624.25751562551511},null,null,1]
["5-00Abs2003-248","Abstraction","34-204-190-000-005-00","340 Lovel St",42003,248651,"n","636/3324",0.57199999999999995,24916.32,132,0,140849,{"$f":"VLOOKUP(Table_Data_Table_13[[#This Row],[Item ID]],Analysis_Table,8,FALSE)","v":107802},{"$f":"VLOOKUP(Table_Data_Table_13[[#This Row],[Item ID]],Analysis_Table,9,FALSE)","v":0.43354742188851042},{"$f":"VLOOKUP(Table_Data_Table_13[[#This Row],[Item ID]],Analysis_Table,10,FALSE)","v":0.57199999999999995},{"$f":"VLOOKUP(Table_Data_Table_13[[#This Row],[Item ID]],Analysis_Table,11,FALSE)","v":24916.32},{"$f":"VLOOKUP(Table_Data_Table_13[[#This Row],[Item ID]],Analysis_Table,12,FALSE)","v":188465.03496503498},{"$f":"VLOOKUP(Table_Data_Table_13[[#This Row],[Item ID]],Analysis_Table,13,FALSE)","v":4.33},{"$f":"VLOOKUP(Table_Data_Table_13[[#This Row],[Item ID]],Analysis_Table,14,FALSE)","v":99},{"$f":"VLOOKUP(Table_Data_Table_13[[#This Row],[Item ID]],Analysis_Table,15,FALSE)","v":0.15519247051595805},{"$f":"VLOOKUP(Table_Data_Table_13[[#This Row],[Item ID]],Analysis_Table,16,FALSE)","v":124532.05870656131},{"$f":"VLOOKUP(Table_Data_Table_13[[#This Row],[Item ID]],Analysis_Table,17,FALSE)","v":217713.38934713518},{"$f":"VLOOKUP(Table_Data_Table_13[[#This Row],[Item ID]],Analysis_Table,18,FALSE)","v":5},{"$f":"VLOOKUP(Table_Data_Table_13[[#This Row],[Item ID]],Analysis_Table,19,FALSE)","v":943.42468717091901},null,null,1]
["5-00All2003-248","Allocation","34-204-190-000-005-00","340 Lovel St",42003,248651,"n","636/3324",0.57199999999999995,24916.32,132,0,0,{"$f":"VLOOKUP(Table_Data_Table_13[[#This Row],[Item ID]],Analysis_Table,8,FALSE)","v":100529.5993},{"$f":"VLOOKUP(Table_Data_Table_13[[#This Row],[Item ID]],Analysis_Table,9,FALSE)","v":0.40429999999999999},{"$f":"VLOOKUP(Table_Data_Table_13[[#This Row],[Item ID]],Analysis_Table,10,FALSE)","v":0.57199999999999995},{"$f":"VLOOKUP(Table_Data_Table_13[[#This Row],[Item ID]],Analysis_Table,11,FALSE)","v":24916.32},{"$f":"VLOOKUP(Table_Data_Table_13[[#This Row],[Item ID]],Analysis_Table,12,FALSE)","v":175751.04772727276},{"$f":"VLOOKUP(Table_Data_Table_13[[#This Row],[Item ID]],Analysis_Table,13,FALSE)","v":4.03},{"$f":"VLOOKUP(Table_Data_Table_13[[#This Row],[Item ID]],Analysis_Table,14,FALSE)","v":99},{"$f":"VLOOKUP(Table_Data_Table_13[[#This Row],[Item ID]],Analysis_Table,15,FALSE)","v":0.15519247051595805},{"$f":"VLOOKUP(Table_Data_Table_13[[#This Row],[Item ID]],Analysis_Table,16,FALSE)","v":116131.03617534632},{"$f":"VLOOKUP(Table_Data_Table_13[[#This Row],[Item ID]],Analysis_Table,17,FALSE)","v":203026.28701983625},{"$f":"VLOOKUP(Table_Data_Table_13[[#This Row],[Item ID]],Analysis_Table,18,FALSE)","v":4.66},{"$f":"VLOOKUP(Table_Data_Table_13[[#This Row],[Item ID]],Analysis_Table,19,FALSE)","v":879.78057708595702},null,null,1]
["0-70Vac2138-450","Vacant","34-010-036-000-160-70","M-66",42138,450000,"n","637/8662",1.9710000000000001,85856.760000000009,255,7622.9999999999991,0,{"$f":"VLOOKUP(Table_Data_Table_13[[#This Row],[Item ID]],Analysis_Table,8,FALSE)","v":450000},{"$f":"VLOOKUP(Table_Data_Table_13[[#This Row],[Item ID]],Analysis_Table,9,FALSE)","v":"N/A"},{"$f":"VLOOKUP(Table_Data_Table_13[[#This Row],[Item ID]],Analysis_Table,10,FALSE)","v":1.796},{"$f":"VLOOKUP(Table_Data_Table_13[[#This Row],[Item ID]],Analysis_Table,11,FALSE)","v":78233.760000000009},{"$f":"VLOOKUP(Table_Data_Table_13[[#This Row],[Item ID]],Analysis_Table,12,FALSE)","v":250556.79287305122},{"$f":"VLOOKUP(Table_Data_Table_13[[#This Row],[Item ID]],Analysis_Table,13,FALSE)","v":5.75},{"$f":"VLOOKUP(Table_Data_Table_13[[#This Row],[Item ID]],Analysis_Table,14,FALSE)","v":95},{"$f":"VLOOKUP(Table_Data_Table_13[[#This Row],[Item ID]],Analysis_Table,15,FALSE)","v":0.14892206766682844},{"$f":"VLOOKUP(Table_Data_Table_13[[#This Row],[Item ID]],Analysis_Table,16,FALSE)","v":517014.93045007274},{"$f":"VLOOKUP(Table_Data_Table_13[[#This Row],[Item ID]],Analysis_Table,17,FALSE)","v":287870.22853567527},{"$f":"VLOOKUP(Table_Data_Table_13[[#This Row],[Item ID]],Analysis_Table,18,FALSE)","v":6.61},{"$f":"VLOOKUP(Table_Data_Table_13[[#This Row],[Item ID]],Analysis_Table,19,FALSE)","v":2027.5095311767559},null,null,1]
["0-02Abs2403-300","Abstraction","34-110-006-000-040-02","3669 S State Rd / M-66",42403,3000000,"n","640/6775",8.39,365468.4,500,25000,1526059,{"$f":"VLOOKUP(Table_Data_Table_13[[#This Row],[Item ID]],Analysis_Table,8,FALSE)","v":1473941},{"$f":"VLOOKUP(Table_Data_Table_13[[#This Row],[Item ID]],Analysis_Table,9,FALSE)","v":0.49131366666666665},{"$f":"VLOOKUP(Table_Data_Table_13[[#This Row],[Item ID]],Analysis_Table,10,FALSE)","v":7.8159999999999998},{"$f":"VLOOKUP(Table_Data_Table_13[[#This Row],[Item ID]],Analysis_Table,11,FALSE)","v":340468.4},{"$f":"VLOOKUP(Table_Data_Table_13[[#This Row],[Item ID]],Analysis_Table,12,FALSE)","v":188579.96417604914},{"$f":"VLOOKUP(Table_Data_Table_13[[#This Row],[Item ID]],Analysis_Table,13,FALSE)","v":4.33},{"$f":"VLOOKUP(Table_Data_Table_13[[#This Row],[Item ID]],Analysis_Table,14,FALSE)","v":86},{"$f":"VLOOKUP(Table_Data_Table_13[[#This Row],[Item ID]],Analysis_Table,15,FALSE)","v":0.1348136612562868},{"$f":"VLOOKUP(Table_Data_Table_13[[#This Row],[Item ID]],Analysis_Table,16,FALSE)","v":1672648.3826857528},{"$f":"VLOOKUP(Table_Data_Table_13[[#This Row],[Item ID]],Analysis_Table,17,FALSE)","v":214003.11958620173},{"$f":"VLOOKUP(Table_Data_Table_13[[#This Row],[Item ID]],Analysis_Table,18,FALSE)","v":4.91},{"$f":"VLOOKUP(Table_Data_Table_13[[#This Row],[Item ID]],Analysis_Table,19,FALSE)","v":3345.2967653715054},null,null,1]
["0-02All2403-300","Allocation","34-110-006-000-040-02","3669 S State Rd / M-66",42403,3000000,"n","640/6775",8.39,365468.4,500,25000,1526059,{"$f":"VLOOKUP(Table_Data_Table_13[[#This Row],[Item ID]],Analysis_Table,8,FALSE)","v":1212900},{"$f":"VLOOKUP(Table_Data_Table_13[[#This Row],[Item ID]],Analysis_Table,9,FALSE)","v":0.40429999999999999},{"$f":"VLOOKUP(Table_Data_Table_13[[#This Row],[Item ID]],Analysis_Table,10,FALSE)","v":7.8159999999999998},{"$f":"VLOOKUP(Table_Data_Table_13[[#This Row],[Item ID]],Analysis_Table,11,FALSE)","v":340468.4},{"$f":"VLOOKUP(Table_Data_Table_13[[#This Row],[Item ID]],Analysis_Table,12,FALSE)","v":155181.67860798363},{"$f":"VLOOKUP(Table_Data_Table_13[[#This Row],[Item ID]],Analysis_Table,13,FALSE)","v":3.56},{"$f":"VLOOKUP(Table_Data_Table_13[[#This Row],[Item ID]],Analysis_Table,14,FALSE)","v":86},{"$f":"VLOOKUP(Table_Data_Table_13[[#This Row],[Item ID]],Analysis_Table,15,FALSE)","v":0.1348136612562868},{"$f":"VLOOKUP(Table_Data_Table_13[[#This Row],[Item ID]],Analysis_Table,16,FALSE)","v":1376415.4897377505},{"$f":"VLOOKUP(Table_Data_Table_13[[#This Row],[Item ID]],Analysis_Table,17,FALSE)","v":176102.28886102233},{"$f":"VLOOKUP(Table_Data_Table_13[[#This Row],[Item ID]],Analysis_Table,18,FALSE)","v":4.04},{"$f":"VLOOKUP(Table_Data_Table_13[[#This Row],[Item ID]],Analysis_Table,19,FALSE)","v":2752.830979475501},null,null,1]
["5-17Abs2585-650","Abstraction","34-201-030-000-045-17","431 Swartz Ct",42585,650418,"n","642/8611",0.99099999999999999,43167.96,198,0,572709,{"$f":"VLOOKUP(Table_Data_Table_13[[#This Row],[Item ID]],Analysis_Table,8,FALSE)","v":77709},{"$f":"VLOOKUP(Table_Data_Table_13[[#This Row],[Item ID]],Analysis_Table,9,FALSE)","v":0.11947547577096575},{"$f":"VLOOKUP(Table_Data_Table_13[[#This Row],[Item ID]],Analysis_Table,10,FALSE)","v":0.99099999999999999},{"$f":"VLOOKUP(Table_Data_Table_13[[#This Row],[Item ID]],Analysis_Table,11,FALSE)","v":43167.96},{"$f":"VLOOKUP(Table_Data_Table_13[[#This Row],[Item ID]],Analysis_Table,12,FALSE)","v":78414.732593340057},{"$f":"VLOOKUP(Table_Data_Table_13[[#This Row],[Item ID]],Analysis_Table,13,FALSE)","v":1.8},{"$f":"VLOOKUP(Table_Data_Table_13[[#This Row],[Item ID]],Analysis_Table,14,FALSE)","v":80},{"$f":"VLOOKUP(Table_Data_Table_13[[#This Row],[Item ID]],Analysis_Table,15,FALSE)","v":0.12540805698259239},{"$f":"VLOOKUP(Table_Data_Table_13[[#This Row],[Item ID]],Analysis_Table,16,FALSE)","v":87454.334700060266},{"$f":"VLOOKUP(Table_Data_Table_13[[#This Row],[Item ID]],Analysis_Table,17,FALSE)","v":88248.571846680396},{"$f":"VLOOKUP(Table_Data_Table_13[[#This Row],[Item ID]],Analysis_Table,18,FALSE)","v":2.0299999999999998},{"$f":"VLOOKUP(Table_Data_Table_13[[#This Row],[Item ID]],Analysis_Table,19,FALSE)","v":441.68855909121345},null,null,1]
["5-17All2585-650","Allocation","34-201-030-000-045-17","431 Swartz Ct",42585,650418,"n","642/8611",0.99099999999999999,43167.96,198,0,0,{"$f":"VLOOKUP(Table_Data_Table_13[[#This Row],[Item ID]],Analysis_Table,8,FALSE)","v":262963.99739999999},{"$f":"VLOOKUP(Table_Data_Table_13[[#This Row],[Item ID]],Analysis_Table,9,FALSE)","v":0.40429999999999999},{"$f":"VLOOKUP(Table_Data_Table_13[[#This Row],[Item ID]],Analysis_Table,10,FALSE)","v":0.99099999999999999},{"$f":"VLOOKUP(Table_Data_Table_13[[#This Row],[Item ID]],Analysis_Table,11,FALSE)","v":43167.96},{"$f":"VLOOKUP(Table_Data_Table_13[[#This Row],[Item ID]],Analysis_Table,12,FALSE)","v":265352.16690211906},{"$f":"VLOOKUP(Table_Data_Table_13[[#This Row],[Item ID]],Analysis_Table,13,FALSE)","v":6.09},{"$f":"VLOOKUP(Table_Data_Table_13[[#This Row],[Item ID]],Analysis_Table,14,FALSE)","v":80},{"$f":"VLOOKUP(Table_Data_Table_13[[#This Row],[Item ID]],Analysis_Table,15,FALSE)","v":0.12540805698259239},{"$f":"VLOOKUP(Table_Data_Table_13[[#This Row],[Item ID]],Analysis_Table,16,FALSE)","v":295941.80137030949},{"$f":"VLOOKUP(Table_Data_Table_13[[#This Row],[Item ID]],Analysis_Table,17,FALSE)","v":298629.46656943439},{"$f":"VLOOKUP(Table_Data_Table_13[[#This Row],[Item ID]],Analysis_Table,18,FALSE)","v":6.86},{"$f":"VLOOKUP(Table_Data_Table_13[[#This Row],[Item ID]],Analysis_Table,19,FALSE)","v":1494.6555624763105},null,null,1]
["1-10Abs2697-194","Abstraction","34-203-240-000-191-10","1011 E Main St",42697,194500,"n","644/1885",6.08,264844.79999999999,171.43,0,142256,{"$f":"VLOOKUP(Table_Data_Table_13[[#This Row],[Item ID]],Analysis_Table,8,FALSE)","v":52244},{"$f":"VLOOKUP(Table_Data_Table_13[[#This Row],[Item ID]],Analysis_Table,9,FALSE)","v":0.26860668380462727},{"$f":"VLOOKUP(Table_Data_Table_13[[#This Row],[Item ID]],Analysis_Table,10,FALSE)","v":6.08},{"$f":"VLOOKUP(Table_Data_Table_13[[#This Row],[Item ID]],Analysis_Table,11,FALSE)","v":264844.79999999999},{"$f":"VLOOKUP(Table_Data_Table_13[[#This Row],[Item ID]],Analysis_Table,12,FALSE)","v":8592.7631578947367},{"$f":"VLOOKUP(Table_Data_Table_13[[#This Row],[Item ID]],Analysis_Table,13,FALSE)","v":0.2},{"$f":"VLOOKUP(Table_Data_Table_13[[#This Row],[Item ID]],Analysis_Table,14,FALSE)","v":76},{"$f":"VLOOKUP(Table_Data_Table_13[[#This Row],[Item ID]],Analysis_Table,15,FALSE)","v":0.11913765413346275},{"$f":"VLOOKUP(Table_Data_Table_13[[#This Row],[Item ID]],Analysis_Table,16,FALSE)","v":58468.227602548628},{"$f":"VLOOKUP(Table_Data_Table_13[[#This Row],[Item ID]],Analysis_Table,17,FALSE)","v":9616.4848030507619},{"$f":"VLOOKUP(Table_Data_Table_13[[#This Row],[Item ID]],Analysis_Table,18,FALSE)","v":0.22},{"$f":"VLOOKUP(Table_Data_Table_13[[#This Row],[Item ID]],Analysis_Table,19,FALSE)","v":341.06181883304339},null,null,0]
["1-10All2697-194","Allocation","34-203-240-000-191-10","1011 E Main St",42697,194500,"n","644/1885",6.08,264844.79999999999,171.43,0,0,{"$f":"VLOOKUP(Table_Data_Table_13[[#This Row],[Item ID]],Analysis_Table,8,FALSE)","v":78636.350000000006},{"$f":"VLOOKUP(Table_Data_Table_13[[#This Row],[Item ID]],Analysis_Table,9,FALSE)","v":0.40429999999999999},{"$f":"VLOOKUP(Table_Data_Table_13[[#This Row],[Item ID]],Analysis_Table,10,FALSE)","v":6.08},{"$f":"VLOOKUP(Table_Data_Table_13[[#This Row],[Item ID]],Analysis_Table,11,FALSE)","v":264844.79999999999},{"$f":"VLOOKUP(Table_Data_Table_13[[#This Row],[Item ID]],Analysis_Table,12,FALSE)","v":12933.610197368422},{"$f":"VLOOKUP(Table_Data_Table_13[[#This Row],[Item ID]],Analysis_Table,13,FALSE)","v":0.3},{"$f":"VLOOKUP(Table_Data_Table_13[[#This Row],[Item ID]],Analysis_Table,14,FALSE)","v":76},{"$f":"VLOOKUP(Table_Data_Table_13[[#This Row],[Item ID]],Analysis_Table,15,FALSE)","v":0.11913765413346275},{"$f":"VLOOKUP(Table_Data_Table_13[[#This Row],[Item ID]],Analysis_Table,16,FALSE)","v":88004.90026861793},{"$f":"VLOOKUP(Table_Data_Table_13[[#This Row],[Item ID]],Analysis_Table,17,FALSE)","v":14474.490175759527},{"$f":"VLOOKUP(Table_Data_Table_13[[#This Row],[Item ID]],Analysis_Table,18,FALSE)","v":0.33},{"$f":"VLOOKUP(Table_Data_Table_13[[#This Row],[Item ID]],Analysis_Table,19,FALSE)","v":513.3576402532691},null,null,0]
["5-00Abs2741-400","Abstraction","34-204-090-000-075-00","302 S Jackson St",42741,40000,"n","644/6475",0.48699999999999999,21213.72,150,0,14364,{"$f":"VLOOKUP(Table_Data_Table_13[[#This Row],[Item ID]],Analysis_Table,8,FALSE)","v":25636},{"$f":"VLOOKUP(Table_Data_Table_13[[#This Row],[Item ID]],Analysis_Table,9,FALSE)","v":0.64090000000000003},{"$f":"VLOOKUP(Table_Data_Table_13[[#This Row],[Item ID]],Analysis_Table,10,FALSE)","v":0.48699999999999999},{"$f":"VLOOKUP(Table_Data_Table_13[[#This Row],[Item ID]],Analysis_Table,11,FALSE)","v":21213.72},{"$f":"VLOOKUP(Table_Data_Table_13[[#This Row],[Item ID]],Analysis_Table,12,FALSE)","v":52640.657084188912},{"$f":"VLOOKUP(Table_Data_Table_13[[#This Row],[Item ID]],Analysis_Table,13,FALSE)","v":1.21},{"$f":"VLOOKUP(Table_Data_Table_13[[#This Row],[Item ID]],Analysis_Table,14,FALSE)","v":75},{"$f":"VLOOKUP(Table_Data_Table_13[[#This Row],[Item ID]],Analysis_Table,15,FALSE)","v":0.11757005342118035},{"$f":"VLOOKUP(Table_Data_Table_13[[#This Row],[Item ID]],Analysis_Table,16,FALSE)","v":28650.025889505378},{"$f":"VLOOKUP(Table_Data_Table_13[[#This Row],[Item ID]],Analysis_Table,17,FALSE)","v":58829.621949703032},{"$f":"VLOOKUP(Table_Data_Table_13[[#This Row],[Item ID]],Analysis_Table,18,FALSE)","v":1.35},{"$f":"VLOOKUP(Table_Data_Table_13[[#This Row],[Item ID]],Analysis_Table,19,FALSE)","v":191.00017259670253},null,null,0]
["5-00All2741-400","Allocation","34-204-090-000-075-00","302 S Jackson St",42741,40000,"n","644/6475",0.48699999999999999,21213.72,150,0,0,{"$f":"VLOOKUP(Table_Data_Table_13[[#This Row],[Item ID]],Analysis_Table,8,FALSE)","v":16172},{"$f":"VLOOKUP(Table_Data_Table_13[[#This Row],[Item ID]],Analysis_Table,9,FALSE)","v":0.40429999999999999},{"$f":"VLOOKUP(Table_Data_Table_13[[#This Row],[Item ID]],Analysis_Table,10,FALSE)","v":0.48699999999999999},{"$f":"VLOOKUP(Table_Data_Table_13[[#This Row],[Item ID]],Analysis_Table,11,FALSE)","v":21213.72},{"$f":"VLOOKUP(Table_Data_Table_13[[#This Row],[Item ID]],Analysis_Table,12,FALSE)","v":33207.392197125257},{"$f":"VLOOKUP(Table_Data_Table_13[[#This Row],[Item ID]],Analysis_Table,13,FALSE)","v":0.76},{"$f":"VLOOKUP(Table_Data_Table_13[[#This Row],[Item ID]],Analysis_Table,14,FALSE)","v":75},{"$f":"VLOOKUP(Table_Data_Table_13[[#This Row],[Item ID]],Analysis_Table,15,FALSE)","v":0.11757005342118035},{"$f":"VLOOKUP(Table_Data_Table_13[[#This Row],[Item ID]],Analysis_Table,16,FALSE)","v":18073.342903927329},{"$f":"VLOOKUP(Table_Data_Table_13[[#This Row],[Item ID]],Analysis_Table,17,FALSE)","v":37111.587071719361},{"$f":"VLOOKUP(Table_Data_Table_13[[#This Row],[Item ID]],Analysis_Table,18,FALSE)","v":0.85},{"$f":"VLOOKUP(Table_Data_Table_13[[#This Row],[Item ID]],Analysis_Table,19,FALSE)","v":120.48895269284886},null,null,0]
["0-00Vac2754-100","Vacant","34-090-000-110-00","Railroad St",42754,10000,"n","644/7303",0.623,27137.88,133,0,0,{"$f":"VLOOKUP(Table_Data_Table_13[[#This Row],[Item ID]],Analysis_Table,8,FALSE)","v":10000},{"$f":"VLOOKUP(Table_Data_Table_13[[#This Row],[Item ID]],Analysis_Table,9,FALSE)","v":"N/A"},{"$f":"VLOOKUP(Table_Data_Table_13[[#This Row],[Item ID]],Analysis_Table,10,FALSE)","v":0.623},{"$f":"VLOOKUP(Table_Data_Table_13[[#This Row],[Item ID]],Analysis_Table,11,FALSE)","v":27137.88},{"$f":"VLOOKUP(Table_Data_Table_13[[#This Row],[Item ID]],Analysis_Table,12,FALSE)","v":16051.364365971107},{"$f":"VLOOKUP(Table_Data_Table_13[[#This Row],[Item ID]],Analysis_Table,13,FALSE)","v":0.37},{"$f":"VLOOKUP(Table_Data_Table_13[[#This Row],[Item ID]],Analysis_Table,14,FALSE)","v":74},{"$f":"VLOOKUP(Table_Data_Table_13[[#This Row],[Item ID]],Analysis_Table,15,FALSE)","v":0.11600245270889795},{"$f":"VLOOKUP(Table_Data_Table_13[[#This Row],[Item ID]],Analysis_Table,16,FALSE)","v":11160.024527088979},{"$f":"VLOOKUP(Table_Data_Table_13[[#This Row],[Item ID]],Analysis_Table,17,FALSE)","v":17913.362001747959},{"$f":"VLOOKUP(Table_Data_Table_13[[#This Row],[Item ID]],Analysis_Table,18,FALSE)","v":0.41},{"$f":"VLOOKUP(Table_Data_Table_13[[#This Row],[Item ID]],Analysis_Table,19,FALSE)","v":83.90995885029308},null,null,0]
["5-00Abs2789-718","Abstraction","34-204-600-000-405-00","643 Crawford St",42789,718248,"n","645/1404",3.41,148539.6,183.67,1306.8,520238,{"$f":"VLOOKUP(Table_Data_Table_13[[#This Row],[Item ID]],Analysis_Table,8,FALSE)","v":198010},{"$f":"VLOOKUP(Table_Data_Table_13[[#This Row],[Item ID]],Analysis_Table,9,FALSE)","v":0.27568472171172076},{"$f":"VLOOKUP(Table_Data_Table_13[[#This Row],[Item ID]],Analysis_Table,10,FALSE)","v":3.38},{"$f":"VLOOKUP(Table_Data_Table_13[[#This Row],[Item ID]],Analysis_Table,11,FALSE)","v":147232.80000000002},{"$f":"VLOOKUP(Table_Data_Table_13[[#This Row],[Item ID]],Analysis_Table,12,FALSE)","v":58582.840236686396},{"$f":"VLOOKUP(Table_Data_Table_13[[#This Row],[Item ID]],Analysis_Table,13,FALSE)","v":1.34},{"$f":"VLOOKUP(Table_Data_Table_13[[#This Row],[Item ID]],Analysis_Table,14,FALSE)","v":73},{"$f":"VLOOKUP(Table_Data_Table_13[[#This Row],[Item ID]],Analysis_Table,15,FALSE)","v":0.11443485199661554},{"$f":"VLOOKUP(Table_Data_Table_13[[#This Row],[Item ID]],Analysis_Table,16,FALSE)","v":220669.24504384986},{"$f":"VLOOKUP(Table_Data_Table_13[[#This Row],[Item ID]],Analysis_Table,17,FALSE)","v":65286.758888712982},{"$f":"VLOOKUP(Table_Data_Table_13[[#This Row],[Item ID]],Analysis_Table,18,FALSE)","v":1.5},{"$f":"VLOOKUP(Table_Data_Table_13[[#This Row],[Item ID]],Analysis_Table,19,FALSE)","v":1201.4441391835894},null,null,1]
["5-00All2789-718","Allocation","34-204-600-000-405-00","643 Crawford St",42789,718248,"n","645/1404",3.41,148539.6,183.67,1306.8,0,{"$f":"VLOOKUP(Table_Data_Table_13[[#This Row],[Item ID]],Analysis_Table,8,FALSE)","v":290387.66639999999},{"$f":"VLOOKUP(Table_Data_Table_13[[#This Row],[Item ID]],Analysis_Table,9,FALSE)","v":0.40429999999999999},{"$f":"VLOOKUP(Table_Data_Table_13[[#This Row],[Item ID]],Analysis_Table,10,FALSE)","v":3.38},{"$f":"VLOOKUP(Table_Data_Table_13[[#This Row],[Item ID]],Analysis_Table,11,FALSE)","v":147232.80000000002},{"$f":"VLOOKUP(Table_Data_Table_13[[#This Row],[Item ID]],Analysis_Table,12,FALSE)","v":85913.510769230765},{"$f":"VLOOKUP(Table_Data_Table_13[[#This Row],[Item ID]],Analysis_Table,13,FALSE)","v":1.97},{"$f":"VLOOKUP(Table_Data_Table_13[[#This Row],[Item ID]],Analysis_Table,14,FALSE)","v":73},{"$f":"VLOOKUP(Table_Data_Table_13[[#This Row],[Item ID]],Analysis_Table,15,FALSE)","v":0.11443485199661554},{"$f":"VLOOKUP(Table_Data_Table_13[[#This Row],[Item ID]],Analysis_Table,16,FALSE)","v":323618.13602612657},{"$f":"VLOOKUP(Table_Data_Table_13[[#This Row],[Item ID]],Analysis_Table,17,FALSE)","v":95745.010658617335},{"$f":"VLOOKUP(Table_Data_Table_13[[#This Row],[Item ID]],Analysis_Table,18,FALSE)","v":2.2000000000000002},{"$f":"VLOOKUP(Table_Data_Table_13[[#This Row],[Item ID]],Analysis_Table,19,FALSE)","v":1761.9542441668568},null,null,1]
["0-00Vac3038-320","Vacant","34-060-140-000-020-00","2731 State Rd Ionia",43038,320000,"n","648/0772",1.446,62987.759999999995,300,0,0,{"$f":"VLOOKUP(Table_Data_Table_13[[#This Row],[Item ID]],Analysis_Table,8,FALSE)","v":320000},{"$f":"VLOOKUP(Table_Data_Table_13[[#This Row],[Item ID]],Analysis_Table,9,FALSE)","v":"N/A"},{"$f":"VLOOKUP(Table_Data_Table_13[[#This Row],[Item ID]],Analysis_Table,10,FALSE)","v":1.446},{"$f":"VLOOKUP(Table_Data_Table_13[[#This Row],[Item ID]],Analysis_Table,11,FALSE)","v":62987.759999999995},{"$f":"VLOOKUP(Table_Data_Table_13[[#This Row],[Item ID]],Analysis_Table,12,FALSE)","v":221300.13831258647},{"$f":"VLOOKUP(Table_Data_Table_13[[#This Row],[Item ID]],Analysis_Table,13,FALSE)","v":5.08},{"$f":"VLOOKUP(Table_Data_Table_13[[#This Row],[Item ID]],Analysis_Table,14,FALSE)","v":65},{"$f":"VLOOKUP(Table_Data_Table_13[[#This Row],[Item ID]],Analysis_Table,15,FALSE)","v":0.1018940462983563},{"$f":"VLOOKUP(Table_Data_Table_13[[#This Row],[Item ID]],Analysis_Table,16,FALSE)","v":352606.09481547406},{"$f":"VLOOKUP(Table_Data_Table_13[[#This Row],[Item ID]],Analysis_Table,17,FALSE)","v":243849.30485164182},{"$f":"VLOOKUP(Table_Data_Table_13[[#This Row],[Item ID]],Analysis_Table,18,FALSE)","v":5.6},{"$f":"VLOOKUP(Table_Data_Table_13[[#This Row],[Item ID]],Analysis_Table,19,FALSE)","v":1175.3536493849135},"34-060-140-000-025-00",null,1]
["0-10Abs3088-150","Abstraction","34-401-250-000-350-10","1437 W State St",43088,150000,"n","648/7021",0.27300000000000002,11891.880000000001,125,0,113419,{"$f":"VLOOKUP(Table_Data_Table_13[[#This Row],[Item ID]],Analysis_Table,8,FALSE)","v":36581},{"$f":"VLOOKUP(Table_Data_Table_13[[#This Row],[Item ID]],Analysis_Table,9,FALSE)","v":0.24387333333333333},{"$f":"VLOOKUP(Table_Data_Table_13[[#This Row],[Item ID]],Analysis_Table,10,FALSE)","v":0.27300000000000002},{"$f":"VLOOKUP(Table_Data_Table_13[[#This Row],[Item ID]],Analysis_Table,11,FALSE)","v":11891.880000000001},{"$f":"VLOOKUP(Table_Data_Table_13[[#This Row],[Item ID]],Analysis_Table,12,FALSE)","v":133996.33699633699},{"$f":"VLOOKUP(Table_Data_Table_13[[#This Row],[Item ID]],Analysis_Table,13,FALSE)","v":3.08},{"$f":"VLOOKUP(Table_Data_Table_13[[#This Row],[Item ID]],Analysis_Table,14,FALSE)","v":63},{"$f":"VLOOKUP(Table_Data_Table_13[[#This Row],[Item ID]],Analysis_Table,15,FALSE)","v":9.8758844873791496E-2},{"$f":"VLOOKUP(Table_Data_Table_13[[#This Row],[Item ID]],Analysis_Table,16,FALSE)","v":40193.697304328169},{"$f":"VLOOKUP(Table_Data_Table_13[[#This Row],[Item ID]],Analysis_Table,17,FALSE)","v":147229.66045541453},{"$f":"VLOOKUP(Table_Data_Table_13[[#This Row],[Item ID]],Analysis_Table,18,FALSE)","v":3.38},{"$f":"VLOOKUP(Table_Data_Table_13[[#This Row],[Item ID]],Analysis_Table,19,FALSE)","v":321.54957843462535},null,null,1]
["0-10All3088-150","Allocation","34-401-250-000-350-10","1437 W State St",43088,150000,"n","648/7021",0.27300000000000002,11891.880000000001,125,0,0,{"$f":"VLOOKUP(Table_Data_Table_13[[#This Row],[Item ID]],Analysis_Table,8,FALSE)","v":60645},{"$f":"VLOOKUP(Table_Data_Table_13[[#This Row],[Item ID]],Analysis_Table,9,FALSE)","v":0.40429999999999999},{"$f":"VLOOKUP(Table_Data_Table_13[[#This Row],[Item ID]],Analysis_Table,10,FALSE)","v":0.27300000000000002},{"$f":"VLOOKUP(Table_Data_Table_13[[#This Row],[Item ID]],Analysis_Table,11,FALSE)","v":11891.880000000001},{"$f":"VLOOKUP(Table_Data_Table_13[[#This Row],[Item ID]],Analysis_Table,12,FALSE)","v":222142.85714285713},{"$f":"VLOOKUP(Table_Data_Table_13[[#This Row],[Item ID]],Analysis_Table,13,FALSE)","v":5.0999999999999996},{"$f":"VLOOKUP(Table_Data_Table_13[[#This Row],[Item ID]],Analysis_Table,14,FALSE)","v":63},{"$f":"VLOOKUP(Table_Data_Table_13[[#This Row],[Item ID]],Analysis_Table,15,FALSE)","v":9.8758844873791496E-2},{"$f":"VLOOKUP(Table_Data_Table_13[[#This Row],[Item ID]],Analysis_Table,16,FALSE)","v":66634.230147371083},{"$f":"VLOOKUP(Table_Data_Table_13[[#This Row],[Item ID]],Analysis_Table,17,FALSE)","v":244081.42911124937},{"$f":"VLOOKUP(Table_Data_Table_13[[#This Row],[Item ID]],Analysis_Table,18,FALSE)","v":5.6},{"$f":"VLOOKUP(Table_Data_Table_13[[#This Row],[Item ID]],Analysis_Table,19,FALSE)","v":533.07384117896868},null,null,1]
["5-11Abs3250-129","Abstraction","34-060-031-000-045-11","2541 S State Rd",43250,1293750,"n","650/5240",3.76,163785.59999999998,522.08000000000004,25961.759999999998,803414,{"$f":"VLOOKUP(Table_Data_Table_13[[#This Row],[Item ID]],Analysis_Table,8,FALSE)","v":490336},{"$f":"VLOOKUP(Table_Data_Table_13[[#This Row],[Item ID]],Analysis_Table,9,FALSE)","v":0.37900367149758452},{"$f":"VLOOKUP(Table_Data_Table_13[[#This Row],[Item ID]],Analysis_Table,10,FALSE)","v":3.1640000000000001},{"$f":"VLOOKUP(Table_Data_Table_13[[#This Row],[Item ID]],Analysis_Table,11,FALSE)","v":137823.83999999997},{"$f":"VLOOKUP(Table_Data_Table_13[[#This Row],[Item ID]],Analysis_Table,12,FALSE)","v":154973.45132743364},{"$f":"VLOOKUP(Table_Data_Table_13[[#This Row],[Item ID]],Analysis_Table,13,FALSE)","v":3.56},{"$f":"VLOOKUP(Table_Data_Table_13[[#This Row],[Item ID]],Analysis_Table,14,FALSE)","v":58},{"$f":"VLOOKUP(Table_Data_Table_13[[#This Row],[Item ID]],Analysis_Table,15,FALSE)","v":9.0920841312379472E-2},{"$f":"VLOOKUP(Table_Data_Table_13[[#This Row],[Item ID]],Analysis_Table,16,FALSE)","v":534917.76164574688},{"$f":"VLOOKUP(Table_Data_Table_13[[#This Row],[Item ID]],Analysis_Table,17,FALSE)","v":169063.76790320696},{"$f":"VLOOKUP(Table_Data_Table_13[[#This Row],[Item ID]],Analysis_Table,18,FALSE)","v":3.88},{"$f":"VLOOKUP(Table_Data_Table_13[[#This Row],[Item ID]],Analysis_Table,19,FALSE)","v":1024.5896445865515},"34-060-031-000-045-11",null,1]
["5-00Abs3439-338","Abstraction","34-401-250-000-365-00","1331 W State St",43439,338000,"n","652/9992",16.46,716997.60000000009,151,0,129314,{"$f":"VLOOKUP(Table_Data_Table_13[[#This Row],[Item ID]],Analysis_Table,8,FALSE)","v":208686},{"$f":"VLOOKUP(Table_Data_Table_13[[#This Row],[Item ID]],Analysis_Table,9,FALSE)","v":0.61741420118343193},{"$f":"VLOOKUP(Table_Data_Table_13[[#This Row],[Item ID]],Analysis_Table,10,FALSE)","v":16.46},{"$f":"VLOOKUP(Table_Data_Table_13[[#This Row],[Item ID]],Analysis_Table,11,FALSE)","v":716997.60000000009},{"$f":"VLOOKUP(Table_Data_Table_13[[#This Row],[Item ID]],Analysis_Table,12,FALSE)","v":12678.371810449575},{"$f":"VLOOKUP(Table_Data_Table_13[[#This Row],[Item ID]],Analysis_Table,13,FALSE)","v":0.28999999999999998},{"$f":"VLOOKUP(Table_Data_Table_13[[#This Row],[Item ID]],Analysis_Table,14,FALSE)","v":52},{"$f":"VLOOKUP(Table_Data_Table_13[[#This Row],[Item ID]],Analysis_Table,15,FALSE)","v":8.1515237038685046E-2},{"$f":"VLOOKUP(Table_Data_Table_13[[#This Row],[Item ID]],Analysis_Table,16,FALSE)","v":225697.08875665505},{"$f":"VLOOKUP(Table_Data_Table_13[[#This Row],[Item ID]],Analysis_Table,17,FALSE)","v":13711.852293842954},{"$f":"VLOOKUP(Table_Data_Table_13[[#This Row],[Item ID]],Analysis_Table,18,FALSE)","v":0.31},{"$f":"VLOOKUP(Table_Data_Table_13[[#This Row],[Item ID]],Analysis_Table,19,FALSE)","v":1494.6827069977155},null,null,1]
["5-00All3439-338","Allocation","34-401-250-000-365-00","1331 W State St",43439,338000,"n","652/9992",16.46,716997.60000000009,151,0,0,{"$f":"VLOOKUP(Table_Data_Table_13[[#This Row],[Item ID]],Analysis_Table,8,FALSE)","v":136653.4},{"$f":"VLOOKUP(Table_Data_Table_13[[#This Row],[Item ID]],Analysis_Table,9,FALSE)","v":0.40429999999999999},{"$f":"VLOOKUP(Table_Data_Table_13[[#This Row],[Item ID]],Analysis_Table,10,FALSE)","v":16.46},{"$f":"VLOOKUP(Table_Data_Table_13[[#This Row],[Item ID]],Analysis_Table,11,FALSE)","v":716997.60000000009},{"$f":"VLOOKUP(Table_Data_Table_13[[#This Row],[Item ID]],Analysis_Table,12,FALSE)","v":8302.1506682867548},{"$f":"VLOOKUP(Table_Data_Table_13[[#This Row],[Item ID]],Analysis_Table,13,FALSE)","v":0.19},{"$f":"VLOOKUP(Table_Data_Table_13[[#This Row],[Item ID]],Analysis_Table,14,FALSE)","v":52},{"$f":"VLOOKUP(Table_Data_Table_13[[#This Row],[Item ID]],Analysis_Table,15,FALSE)","v":8.1515237038685046E-2},{"$f":"VLOOKUP(Table_Data_Table_13[[#This Row],[Item ID]],Analysis_Table,16,FALSE)","v":147792.73429314225},{"$f":"VLOOKUP(Table_Data_Table_13[[#This Row],[Item ID]],Analysis_Table,17,FALSE)","v":8978.9024479430282},{"$f":"VLOOKUP(Table_Data_Table_13[[#This Row],[Item ID]],Analysis_Table,18,FALSE)","v":0.21},{"$f":"VLOOKUP(Table_Data_Table_13[[#This Row],[Item ID]],Analysis_Table,19,FALSE)","v":978.75982975590887},null,null,0]
["0-00Abs3538-535","Abstraction","34-300-110-000-050-00","1328 E Grand River Ave",43538,535000,"n","653/8847",0.63,27442.799999999999,225,0,298263,{"$f":"VLOOKUP(Table_Data_Table_13[[#This Row],[Item ID]],Analysis_Table,8,FALSE)","v":236737},{"$f":"VLOOKUP(Table_Data_Table_13[[#This Row],[Item ID]],Analysis_Table,9,FALSE)","v":0.44249906542056072},{"$f":"VLOOKUP(Table_Data_Table_13[[#This Row],[Item ID]],Analysis_Table,10,FALSE)","v":0.63},{"$f":"VLOOKUP(Table_Data_Table_13[[#This Row],[Item ID]],Analysis_Table,11,FALSE)","v":27442.799999999999},{"$f":"VLOOKUP(Table_Data_Table_13[[#This Row],[Item ID]],Analysis_Table,12,FALSE)","v":375773.01587301586},{"$f":"VLOOKUP(Table_Data_Table_13[[#This Row],[Item ID]],Analysis_Table,13,FALSE)","v":8.6300000000000008},{"$f":"VLOOKUP(Table_Data_Table_13[[#This Row],[Item ID]],Analysis_Table,14,FALSE)","v":49},{"$f":"VLOOKUP(Table_Data_Table_13[[#This Row],[Item ID]],Analysis_Table,15,FALSE)","v":7.6812434901837826E-2},{"$f":"VLOOKUP(Table_Data_Table_13[[#This Row],[Item ID]],Analysis_Table,16,FALSE)","v":254921.34540135638},{"$f":"VLOOKUP(Table_Data_Table_13[[#This Row],[Item ID]],Analysis_Table,17,FALSE)","v":404637.05619262916},{"$f":"VLOOKUP(Table_Data_Table_13[[#This Row],[Item ID]],Analysis_Table,18,FALSE)","v":9.2899999999999991},{"$f":"VLOOKUP(Table_Data_Table_13[[#This Row],[Item ID]],Analysis_Table,19,FALSE)","v":1132.9837573393618},null,null,1]
["0-00All3538-535","Allocation","34-300-110-000-050-00","1328 E Grand River Ave",43538,535000,"n","653/8847",0.63,27442.799999999999,225,0,0,{"$f":"VLOOKUP(Table_Data_Table_13[[#This Row],[Item ID]],Analysis_Table,8,FALSE)","v":216300.5},{"$f":"VLOOKUP(Table_Data_Table_13[[#This Row],[Item ID]],Analysis_Table,9,FALSE)","v":0.40429999999999999},{"$f":"VLOOKUP(Table_Data_Table_13[[#This Row],[Item ID]],Analysis_Table,10,FALSE)","v":0.63},{"$f":"VLOOKUP(Table_Data_Table_13[[#This Row],[Item ID]],Analysis_Table,11,FALSE)","v":27442.799999999999},{"$f":"VLOOKUP(Table_Data_Table_13[[#This Row],[Item ID]],Analysis_Table,12,FALSE)","v":343334.12698412698},{"$f":"VLOOKUP(Table_Data_Table_13[[#This Row],[Item ID]],Analysis_Table,13,FALSE)","v":7.88},{"$f":"VLOOKUP(Table_Data_Table_13[[#This Row],[Item ID]],Analysis_Table,14,FALSE)","v":49},{"$f":"VLOOKUP(Table_Data_Table_13[[#This Row],[Item ID]],Analysis_Table,15,FALSE)","v":7.6812434901837826E-2},{"$f":"VLOOKUP(Table_Data_Table_13[[#This Row],[Item ID]],Analysis_Table,16,FALSE)","v":232915.06807548495},{"$f":"VLOOKUP(Table_Data_Table_13[[#This Row],[Item ID]],Analysis_Table,17,FALSE)","v":369706.45726267452},{"$f":"VLOOKUP(Table_Data_Table_13[[#This Row],[Item ID]],Analysis_Table,18,FALSE)","v":8.49},{"$f":"VLOOKUP(Table_Data_Table_13[[#This Row],[Item ID]],Analysis_Table,19,FALSE)","v":1035.1780803354886},null,null,1]
["5-00Abs3808-610","Abstraction","34-401-250-000-365-00","1331 W State St",43808,610000,"n","657/4058",16.46,716997.60000000009,151,0,226879,{"$f":"VLOOKUP(Table_Data_Table_13[[#This Row],[Item ID]],Analysis_Table,8,FALSE)","v":383121},{"$f":"VLOOKUP(Table_Data_Table_13[[#This Row],[Item ID]],Analysis_Table,9,FALSE)","v":0.62806721311475411},{"$f":"VLOOKUP(Table_Data_Table_13[[#This Row],[Item ID]],Analysis_Table,10,FALSE)","v":16.46},{"$f":"VLOOKUP(Table_Data_Table_13[[#This Row],[Item ID]],Analysis_Table,11,FALSE)","v":716997.60000000009},{"$f":"VLOOKUP(Table_Data_Table_13[[#This Row],[Item ID]],Analysis_Table,12,FALSE)","v":23275.88092345079},{"$f":"VLOOKUP(Table_Data_Table_13[[#This Row],[Item ID]],Analysis_Table,13,FALSE)","v":0.53},{"$f":"VLOOKUP(Table_Data_Table_13[[#This Row],[Item ID]],Analysis_Table,14,FALSE)","v":40},{"$f":"VLOOKUP(Table_Data_Table_13[[#This Row],[Item ID]],Analysis_Table,15,FALSE)","v":6.2704028491296193E-2},{"$f":"VLOOKUP(Table_Data_Table_13[[#This Row],[Item ID]],Analysis_Table,16,FALSE)","v":407144.23009961384},{"$f":"VLOOKUP(Table_Data_Table_13[[#This Row],[Item ID]],Analysis_Table,17,FALSE)","v":24735.37242403486},{"$f":"VLOOKUP(Table_Data_Table_13[[#This Row],[Item ID]],Analysis_Table,18,FALSE)","v":0.56999999999999995},{"$f":"VLOOKUP(Table_Data_Table_13[[#This Row],[Item ID]],Analysis_Table,19,FALSE)","v":2696.3194046332042},null,null,1]
["5-00All3808-610","Allocation","34-401-250-000-365-00","1331 W State St",43808,610000,"n","657/4058",16.46,716997.60000000009,151,0,0,{"$f":"VLOOKUP(Table_Data_Table_13[[#This Row],[Item ID]],Analysis_Table,8,FALSE)","v":246623},{"$f":"VLOOKUP(Table_Data_Table_13[[#This Row],[Item ID]],Analysis_Table,9,FALSE)","v":0.40429999999999999},{"$f":"VLOOKUP(Table_Data_Table_13[[#This Row],[Item ID]],Analysis_Table,10,FALSE)","v":16.46},{"$f":"VLOOKUP(Table_Data_Table_13[[#This Row],[Item ID]],Analysis_Table,11,FALSE)","v":716997.60000000009},{"$f":"VLOOKUP(Table_Data_Table_13[[#This Row],[Item ID]],Analysis_Table,12,FALSE)","v":14983.171324422843},{"$f":"VLOOKUP(Table_Data_Table_13[[#This Row],[Item ID]],Analysis_Table,13,FALSE)","v":0.34},{"$f":"VLOOKUP(Table_Data_Table_13[[#This Row],[Item ID]],Analysis_Table,14,FALSE)","v":40},{"$f":"VLOOKUP(Table_Data_Table_13[[#This Row],[Item ID]],Analysis_Table,15,FALSE)","v":6.2704028491296193E-2},{"$f":"VLOOKUP(Table_Data_Table_13[[#This Row],[Item ID]],Analysis_Table,16,FALSE)","v":262087.25561860891},{"$f":"VLOOKUP(Table_Data_Table_13[[#This Row],[Item ID]],Analysis_Table,17,FALSE)","v":15922.676526039422},{"$f":"VLOOKUP(Table_Data_Table_13[[#This Row],[Item ID]],Analysis_Table,18,FALSE)","v":0.37},{"$f":"VLOOKUP(Table_Data_Table_13[[#This Row],[Item ID]],Analysis_Table,19,FALSE)","v":1735.6771895272113},null,null,1]
["0-21Vac4006-650","Vacant","34-010-036-000-170-21","2598 S State Rd",44006,650000,"n","660/1614",2.198,95744.88,295,18643.68,0,{"$f":"VLOOKUP(Table_Data_Table_13[[#This Row],[Item ID]],Analysis_Table,8,FALSE)","v":650000},{"$f":"VLOOKUP(Table_Data_Table_13[[#This Row],[Item ID]],Analysis_Table,9,FALSE)","v":"N/A"},{"$f":"VLOOKUP(Table_Data_Table_13[[#This Row],[Item ID]],Analysis_Table,10,FALSE)","v":1.77},{"$f":"VLOOKUP(Table_Data_Table_13[[#This Row],[Item ID]],Analysis_Table,11,FALSE)","v":77101.200000000012},{"$f":"VLOOKUP(Table_Data_Table_13[[#This Row],[Item ID]],Analysis_Table,12,FALSE)","v":367231.63841807912},{"$f":"VLOOKUP(Table_Data_Table_13[[#This Row],[Item ID]],Analysis_Table,13,FALSE)","v":8.43},{"$f":"VLOOKUP(Table_Data_Table_13[[#This Row],[Item ID]],Analysis_Table,14,FALSE)","v":33},{"$f":"VLOOKUP(Table_Data_Table_13[[#This Row],[Item ID]],Analysis_Table,15,FALSE)","v":5.1730823505319351E-2},{"$f":"VLOOKUP(Table_Data_Table_13[[#This Row],[Item ID]],Analysis_Table,16,FALSE)","v":683625.03527845757},{"$f":"VLOOKUP(Table_Data_Table_13[[#This Row],[Item ID]],Analysis_Table,17,FALSE)","v":386228.83349065401},{"$f":"VLOOKUP(Table_Data_Table_13[[#This Row],[Item ID]],Analysis_Table,18,FALSE)","v":8.8699999999999992},{"$f":"VLOOKUP(Table_Data_Table_13[[#This Row],[Item ID]],Analysis_Table,19,FALSE)","v":2317.3730009439241},null,null,1]
["0-01Vac4434-105","Vacant","34-060-031-000-140-01","2983 S State Rd",44434,105000,"n","667/7365",1,43560,120,7927.92,0,{"$f":"VLOOKUP(Table_Data_Table_13[[#This Row],[Item ID]],Analysis_Table,8,FALSE)","v":105000},{"$f":"VLOOKUP(Table_Data_Table_13[[#This Row],[Item ID]],Analysis_Table,9,FALSE)","v":"N/A"},{"$f":"VLOOKUP(Table_Data_Table_13[[#This Row],[Item ID]],Analysis_Table,10,FALSE)","v":0.81799999999999995},{"$f":"VLOOKUP(Table_Data_Table_13[[#This Row],[Item ID]],Analysis_Table,11,FALSE)","v":35632.080000000002},{"$f":"VLOOKUP(Table_Data_Table_13[[#This Row],[Item ID]],Analysis_Table,12,FALSE)","v":128361.85819070906},{"$f":"VLOOKUP(Table_Data_Table_13[[#This Row],[Item ID]],Analysis_Table,13,FALSE)","v":2.95},{"$f":"VLOOKUP(Table_Data_Table_13[[#This Row],[Item ID]],Analysis_Table,14,FALSE)","v":19},{"$f":"VLOOKUP(Table_Data_Table_13[[#This Row],[Item ID]],Analysis_Table,15,FALSE)","v":2.9784413533365688E-2},{"$f":"VLOOKUP(Table_Data_Table_13[[#This Row],[Item ID]],Analysis_Table,16,FALSE)","v":108127.36342100339},{"$f":"VLOOKUP(Table_Data_Table_13[[#This Row],[Item ID]],Analysis_Table,17,FALSE)","v":132185.04085697237},{"$f":"VLOOKUP(Table_Data_Table_13[[#This Row],[Item ID]],Analysis_Table,18,FALSE)","v":3.03},{"$f":"VLOOKUP(Table_Data_Table_13[[#This Row],[Item ID]],Analysis_Table,19,FALSE)","v":901.06136184169497},null,null,1]
["5-20Abs4559-182","Abstraction","34-060-031-000-045-20","2331 S State Rd",44559,1825000,"n","669/1978",2.7149999999999999,118265.4,222.8,11325.6,1228290,{"$f":"VLOOKUP(Table_Data_Table_13[[#This Row],[Item ID]],Analysis_Table,8,FALSE)","v":596710},{"$f":"VLOOKUP(Table_Data_Table_13[[#This Row],[Item ID]],Analysis_Table,9,FALSE)","v":0.32696438356164381},{"$f":"VLOOKUP(Table_Data_Table_13[[#This Row],[Item ID]],Analysis_Table,10,FALSE)","v":2.4550000000000001},{"$f":"VLOOKUP(Table_Data_Table_13[[#This Row],[Item ID]],Analysis_Table,11,FALSE)","v":106939.79999999999},{"$f":"VLOOKUP(Table_Data_Table_13[[#This Row],[Item ID]],Analysis_Table,12,FALSE)","v":243059.06313645621},{"$f":"VLOOKUP(Table_Data_Table_13[[#This Row],[Item ID]],Analysis_Table,13,FALSE)","v":5.58},{"$f":"VLOOKUP(Table_Data_Table_13[[#This Row],[Item ID]],Analysis_Table,14,FALSE)","v":15},{"$f":"VLOOKUP(Table_Data_Table_13[[#This Row],[Item ID]],Analysis_Table,15,FALSE)","v":2.3514010684236069E-2},{"$f":"VLOOKUP(Table_Data_Table_13[[#This Row],[Item ID]],Analysis_Table,16,FALSE)","v":610741.04531539045},{"$f":"VLOOKUP(Table_Data_Table_13[[#This Row],[Item ID]],Analysis_Table,17,FALSE)","v":248774.35654394721},{"$f":"VLOOKUP(Table_Data_Table_13[[#This Row],[Item ID]],Analysis_Table,18,FALSE)","v":5.71},{"$f":"VLOOKUP(Table_Data_Table_13[[#This Row],[Item ID]],Analysis_Table,19,FALSE)","v":2741.2075642522013},null,null,1]
["5-20All4559-182","Allocation","34-060-031-000-045-20","2331 S State Rd",44559,1825000,"n","669/1978",2.7149999999999999,118265.4,222.8,11325.6,1228290,{"$f":"VLOOKUP(Table_Data_Table_13[[#This Row],[Item ID]],Analysis_Table,8,FALSE)","v":737847.5},{"$f":"VLOOKUP(Table_Data_Table_13[[#This Row],[Item ID]],Analysis_Table,9,FALSE)","v":0.40429999999999999},{"$f":"VLOOKUP(Table_Data_Table_13[[#This Row],[Item ID]],Analysis_Table,10,FALSE)","v":2.4550000000000001},{"$f":"VLOOKUP(Table_Data_Table_13[[#This Row],[Item ID]],Analysis_Table,11,FALSE)","v":106939.79999999999},{"$f":"VLOOKUP(Table_Data_Table_13[[#This Row],[Item ID]],Analysis_Table,12,FALSE)","v":300548.87983706722},{"$f":"VLOOKUP(Table_Data_Table_13[[#This Row],[Item ID]],Analysis_Table,13,FALSE)","v":6.9},{"$f":"VLOOKUP(Table_Data_Table_13[[#This Row],[Item ID]],Analysis_Table,14,FALSE)","v":15},{"$f":"VLOOKUP(Table_Data_Table_13[[#This Row],[Item ID]],Analysis_Table,15,FALSE)","v":2.3514010684236069E-2},{"$f":"VLOOKUP(Table_Data_Table_13[[#This Row],[Item ID]],Analysis_Table,16,FALSE)","v":755197.25399833685},{"$f":"VLOOKUP(Table_Data_Table_13[[#This Row],[Item ID]],Analysis_Table,17,FALSE)","v":307615.98940869118},{"$f":"VLOOKUP(Table_Data_Table_13[[#This Row],[Item ID]],Analysis_Table,18,FALSE)","v":7.06},{"$f":"VLOOKUP(Table_Data_Table_13[[#This Row],[Item ID]],Analysis_Table,19,FALSE)","v":3389.5747486460359},null,null,1]
["5-10Abs4841-330","Abstraction","34-401-250-000-335-10","1525 W State St",44841,330000,"n","672/8330",0.504,21954.240000000002,249.36,0,179757,{"$f":"VLOOKUP(Table_Data_Table_13[[#This Row],[Item ID]],Analysis_Table,8,FALSE)","v":150243},{"$f":"VLOOKUP(Table_Data_Table_13[[#This Row],[Item ID]],Analysis_Table,9,FALSE)","v":0.45528181818181818},{"$f":"VLOOKUP(Table_Data_Table_13[[#This Row],[Item ID]],Analysis_Table,10,FALSE)","v":0.504},{"$f":"VLOOKUP(Table_Data_Table_13[[#This Row],[Item ID]],Analysis_Table,11,FALSE)","v":21954.240000000002},{"$f":"VLOOKUP(Table_Data_Table_13[[#This Row],[Item ID]],Analysis_Table,12,FALSE)","v":298101.19047619047},{"$f":"VLOOKUP(Table_Data_Table_13[[#This Row],[Item ID]],Analysis_Table,13,FALSE)","v":6.84},{"$f":"VLOOKUP(Table_Data_Table_13[[#This Row],[Item ID]],Analysis_Table,14,FALSE)","v":6},{"$f":"VLOOKUP(Table_Data_Table_13[[#This Row],[Item ID]],Analysis_Table,15,FALSE)","v":0},{"$f":"VLOOKUP(Table_Data_Table_13[[#This Row],[Item ID]],Analysis_Table,16,FALSE)","v":150243},{"$f":"VLOOKUP(Table_Data_Table_13[[#This Row],[Item ID]],Analysis_Table,17,FALSE)","v":298101.19047619047},{"$f":"VLOOKUP(Table_Data_Table_13[[#This Row],[Item ID]],Analysis_Table,18,FALSE)","v":6.84},{"$f":"VLOOKUP(Table_Data_Table_13[[#This Row],[Item ID]],Analysis_Table,19,FALSE)","v":602.51443695861406},null,null,1]
["5-10All4841-330","Allocation","34-401-250-000-335-10","1525 W State St",44841,330000,"n","672/8330",0.504,21954.240000000002,249.36,0,0,{"$f":"VLOOKUP(Table_Data_Table_13[[#This Row],[Item ID]],Analysis_Table,8,FALSE)","v":133419},{"$f":"VLOOKUP(Table_Data_Table_13[[#This Row],[Item ID]],Analysis_Table,9,FALSE)","v":0.40429999999999999},{"$f":"VLOOKUP(Table_Data_Table_13[[#This Row],[Item ID]],Analysis_Table,10,FALSE)","v":0.504},{"$f":"VLOOKUP(Table_Data_Table_13[[#This Row],[Item ID]],Analysis_Table,11,FALSE)","v":21954.240000000002},{"$f":"VLOOKUP(Table_Data_Table_13[[#This Row],[Item ID]],Analysis_Table,12,FALSE)","v":264720.23809523811},{"$f":"VLOOKUP(Table_Data_Table_13[[#This Row],[Item ID]],Analysis_Table,13,FALSE)","v":6.08},{"$f":"VLOOKUP(Table_Data_Table_13[[#This Row],[Item ID]],Analysis_Table,14,FALSE)","v":6},{"$f":"VLOOKUP(Table_Data_Table_13[[#This Row],[Item ID]],Analysis_Table,15,FALSE)","v":0},{"$f":"VLOOKUP(Table_Data_Table_13[[#This Row],[Item ID]],Analysis_Table,16,FALSE)","v":133419},{"$f":"VLOOKUP(Table_Data_Table_13[[#This Row],[Item ID]],Analysis_Table,17,FALSE)","v":264720.23809523811},{"$f":"VLOOKUP(Table_Data_Table_13[[#This Row],[Item ID]],Analysis_Table,18,FALSE)","v":6.08},{"$f":"VLOOKUP(Table_Data_Table_13[[#This Row],[Item ID]],Analysis_Table,19,FALSE)","v":535.04571703561112},null,null,1]
["5-26Vac4848-325","Vacant","060-031-000-115-26","2615 S State Rd",44848,325000,"n","672/8795",1.5580000000000001,67866.48,202.64,10149.480000000001,0,{"$f":"VLOOKUP(Table_Data_Table_13[[#This Row],[Item ID]],Analysis_Table,8,FALSE)","v":325000},{"$f":"VLOOKUP(Table_Data_Table_13[[#This Row],[Item ID]],Analysis_Table,9,FALSE)","v":"N/A"},{"$f":"VLOOKUP(Table_Data_Table_13[[#This Row],[Item ID]],Analysis_Table,10,FALSE)","v":1.325},{"$f":"VLOOKUP(Table_Data_Table_13[[#This Row],[Item ID]],Analysis_Table,11,FALSE)","v":57716.999999999993},{"$f":"VLOOKUP(Table_Data_Table_13[[#This Row],[Item ID]],Analysis_Table,12,FALSE)","v":245283.01886792455},{"$f":"VLOOKUP(Table_Data_Table_13[[#This Row],[Item ID]],Analysis_Table,13,FALSE)","v":5.63},{"$f":"VLOOKUP(Table_Data_Table_13[[#This Row],[Item ID]],Analysis_Table,14,FALSE)","v":6},{"$f":"VLOOKUP(Table_Data_Table_13[[#This Row],[Item ID]],Analysis_Table,15,FALSE)","v":0},{"$f":"VLOOKUP(Table_Data_Table_13[[#This Row],[Item ID]],Analysis_Table,16,FALSE)","v":325000},{"$f":"VLOOKUP(Table_Data_Table_13[[#This Row],[Item ID]],Analysis_Table,17,FALSE)","v":245283.01886792455},{"$f":"VLOOKUP(Table_Data_Table_13[[#This Row],[Item ID]],Analysis_Table,18,FALSE)","v":5.63},{"$f":"VLOOKUP(Table_Data_Table_13[[#This Row],[Item ID]],Analysis_Table,19,FALSE)","v":1603.8294512435848},null,null,1]
["0-01Abs4861-122","Abstraction","300-110-000-070-01","1320 E Grand River Ave",44861,1225000,"n","672/9977",1,43560,144,0,1021225,{"$f":"VLOOKUP(Table_Data_Table_13[[#This Row],[Item ID]],Analysis_Table,8,FALSE)","v":203775},{"$f":"VLOOKUP(Table_Data_Table_13[[#This Row],[Item ID]],Analysis_Table,9,FALSE)","v":0.16634693877551021},{"$f":"VLOOKUP(Table_Data_Table_13[[#This Row],[Item ID]],Analysis_Table,10,FALSE)","v":1},{"$f":"VLOOKUP(Table_Data_Table_13[[#This Row],[Item ID]],Analysis_Table,11,FALSE)","v":43560},{"$f":"VLOOKUP(Table_Data_Table_13[[#This Row],[Item ID]],Analysis_Table,12,FALSE)","v":203775},{"$f":"VLOOKUP(Table_Data_Table_13[[#This Row],[Item ID]],Analysis_Table,13,FALSE)","v":4.68},{"$f":"VLOOKUP(Table_Data_Table_13[[#This Row],[Item ID]],Analysis_Table,14,FALSE)","v":5},{"$f":"VLOOKUP(Table_Data_Table_13[[#This Row],[Item ID]],Analysis_Table,15,FALSE)","v":0},{"$f":"VLOOKUP(Table_Data_Table_13[[#This Row],[Item ID]],Analysis_Table,16,FALSE)","v":203775},{"$f":"VLOOKUP(Table_Data_Table_13[[#This Row],[Item ID]],Analysis_Table,17,FALSE)","v":203775},{"$f":"VLOOKUP(Table_Data_Table_13[[#This Row],[Item ID]],Analysis_Table,18,FALSE)","v":4.68},{"$f":"VLOOKUP(Table_Data_Table_13[[#This Row],[Item ID]],Analysis_Table,19,FALSE)","v":1415.1041666666667},null,null,1]
["0-01All4861-122","Allocation","300-110-000-070-01","1320 E Grand River Ave",44861,1225000,"n","672/9977",1,43560,144,0,0,{"$f":"VLOOKUP(Table_Data_Table_13[[#This Row],[Item ID]],Analysis_Table,8,FALSE)","v":495267.5},{"$f":"VLOOKUP(Table_Data_Table_13[[#This Row],[Item ID]],Analysis_Table,9,FALSE)","v":0.40429999999999999},{"$f":"VLOOKUP(Table_Data_Table_13[[#This Row],[Item ID]],Analysis_Table,10,FALSE)","v":1},{"$f":"VLOOKUP(Table_Data_Table_13[[#This Row],[Item ID]],Analysis_Table,11,FALSE)","v":43560},{"$f":"VLOOKUP(Table_Data_Table_13[[#This Row],[Item ID]],Analysis_Table,12,FALSE)","v":495267.5},{"$f":"VLOOKUP(Table_Data_Table_13[[#This Row],[Item ID]],Analysis_Table,13,FALSE)","v":11.37},{"$f":"VLOOKUP(Table_Data_Table_13[[#This Row],[Item ID]],Analysis_Table,14,FALSE)","v":5},{"$f":"VLOOKUP(Table_Data_Table_13[[#This Row],[Item ID]],Analysis_Table,15,FALSE)","v":0},{"$f":"VLOOKUP(Table_Data_Table_13[[#This Row],[Item ID]],Analysis_Table,16,FALSE)","v":495267.5},{"$f":"VLOOKUP(Table_Data_Table_13[[#This Row],[Item ID]],Analysis_Table,17,FALSE)","v":495267.5},{"$f":"VLOOKUP(Table_Data_Table_13[[#This Row],[Item ID]],Analysis_Table,18,FALSE)","v":11.37},{"$f":"VLOOKUP(Table_Data_Table_13[[#This Row],[Item ID]],Analysis_Table,19,FALSE)","v":3439.3576388888887},null,null,1]
["",null,null,null,null,null,null,null,null,0,null,null,null,{"$f":"VLOOKUP(Table_Data_Table_13[[#This Row],[Item ID]],Analysis_Table,8,FALSE)","v":{"$error":"#N/A"}},{"$f":"VLOOKUP(Table_Data_Table_13[[#This Row],[Item ID]],Analysis_Table,9,FALSE)","v":{"$error":"#N/A"}},{"$f":"VLOOKUP(Table_Data_Table_13[[#This Row],[Item ID]],Analysis_Table,10,FALSE)","v":{"$error":"#N/A"}},{"$f":"VLOOKUP(Table_Data_Table_13[[#This Row],[Item ID]],Analysis_Table,11,FALSE)","v":{"$error":"#N/A"}},{"$f":"VLOOKUP(Table_Data_Table_13[[#This Row],[Item ID]],Analysis_Table,12,FALSE)","v":{"$error":"#N/A"}},{"$f":"VLOOKUP(Table_Data_Table_13[[#This Row],[Item ID]],Analysis_Table,13,FALSE)","v":{"$error":"#N/A"}},{"$f":"VLOOKUP(Table_Data_Table_13[[#This Row],[Item ID]],Analysis_Table,14,FALSE)","v":{"$error":"#N/A"}},{"$f":"VLOOKUP(Table_Data_Table_13[[#This Row],[Item ID]],Analysis_Table,15,FALSE)","v":{"$error":"#N/A"}},{"$f":"VLOOKUP(Table_Data_Table_13[[#This Row],[Item ID]],Analysis_Table,16,FALSE)","v":{"$error":"#N/A"}},{"$f":"VLOOKUP(Table_Data_Table_13[[#This Row],[Item ID]],Analysis_Table,17,FALSE)","v":{"$error":"#N/A"}},{"$f":"VLOOKUP(Table_Data_Table_13[[#This Row],[Item ID]],Analysis_Table,18,FALSE)","v":{"$error":"#N/A"}},{"$f":"VLOOKUP(Table_Data_Table_13[[#This Row],[Item ID]],Analysis_Table,19,FALSE)","v":{"$error":"#N/A"}},null,null,1]
["",null,null,null,null,null,null,null,null,0,null,null,null,{"$f":"VLOOKUP(Table_Data_Table_13[[#This Row],[Item ID]],Analysis_Table,8,FALSE)","v":{"$error":"#N/A"}},{"$f":"VLOOKUP(Table_Data_Table_13[[#This Row],[Item ID]],Analysis_Table,9,FALSE)","v":{"$error":"#N/A"}},{"$f":"VLOOKUP(Table_Data_Table_13[[#This Row],[Item ID]],Analysis_Table,10,FALSE)","v":{"$error":"#N/A"}},{"$f":"VLOOKUP(Table_Data_Table_13[[#This Row],[Item ID]],Analysis_Table,11,FALSE)","v":{"$error":"#N/A"}},{"$f":"VLOOKUP(Table_Data_Table_13[[#This Row],[Item ID]],Analysis_Table,12,FALSE)","v":{"$error":"#N/A"}},{"$f":"VLOOKUP(Table_Data_Table_13[[#This Row],[Item ID]],Analysis_Table,13,FALSE)","v":{"$error":"#N/A"}},{"$f":"VLOOKUP(Table_Data_Table_13[[#This Row],[Item ID]],Analysis_Table,14,FALSE)","v":{"$error":"#N/A"}},{"$f":"VLOOKUP(Table_Data_Table_13[[#This Row],[Item ID]],Analysis_Table,15,FALSE)","v":{"$error":"#N/A"}},{"$f":"VLOOKUP(Table_Data_Table_13[[#This Row],[Item ID]],Analysis_Table,16,FALSE)","v":{"$error":"#N/A"}},{"$f":"VLOOKUP(Table_Data_Table_13[[#This Row],[Item ID]],Analysis_Table,17,FALSE)","v":{"$error":"#N/A"}},{"$f":"VLOOKUP(Table_Data_Table_13[[#This Row],[Item ID]],Analysis_Table,18,FALSE)","v":{"$error":"#N/A"}},{"$f":"VLOOKUP(Table_Data_Table_13[[#This Row],[Item ID]],Analysis_Table,19,FALSE)","v":{"$error":"#N/A"}},null,null,1]
["",null,null,null,null,null,null,null,null,0,null,null,null,{"$f":"VLOOKUP(Table_Data_Table_13[[#This Row],[Item ID]],Analysis_Table,8,FALSE)","v":{"$error":"#N/A"}},{"$f":"VLOOKUP(Table_Data_Table_13[[#This Row],[Item ID]],Analysis_Table,9,FALSE)","v":{"$error":"#N/A"}},{"$f":"VLOOKUP(Table_Data_Table_13[[#This Row],[Item ID]],Analysis_Table,10,FALSE)","v":{"$error":"#N/A"}},{"$f":"VLOOKUP(Table_Data_Table_13[[#This Row],[Item ID]],Analysis_Table,11,FALSE)","v":{"$error":"#N/A"}},{"$f":"VLOOKUP(Table_Data_Table_13[[#This Row],[Item ID]],Analysis_Table,12,FALSE)","v":{"$error":"#N/A"}},{"$f":"VLOOKUP(Table_Data_Table_13[[#This Row],[Item ID]],Analysis_Table,13,FALSE)","v":{"$error":"#N/A"}},{"$f":"VLOOKUP(Table_Data_Table_13[[#This Row],[Item ID]],Analysis_Table,14,FALSE)","v":{"$error":"#N/A"}},{"$f":"VLOOKUP(Table_Data_Table_13[[#This Row],[Item ID]],Analysis_Table,15,FALSE)","v":{"$error":"#N/A"}},{"$f":"VLOOKUP(Table_Data_Table_13[[#This Row],[Item ID]],Analysis_Table,16,FALSE)","v":{"$error":"#N/A"}},{"$f":"VLOOKUP(Table_Data_Table_13[[#This Row],[Item ID]],Analysis_Table,17,FALSE)","v":{"$error":"#N/A"}},{"$f":"VLOOKUP(Table_Data_Table_13[[#This Row],[Item ID]],Analysis_Table,18,FALSE)","v":{"$error":"#N/A"}},{"$f":"VLOOKUP(Table_Data_Table_13[[#This Row],[Item ID]],Analysis_Table,19,FALSE)","v":{"$error":"#N/A"}},null,null,1]
["",null,null,null,null,null,null,null,null,0,null,null,null,{"$f":"VLOOKUP(Table_Data_Table_13[[#This Row],[Item ID]],Analysis_Table,8,FALSE)","v":{"$error":"#N/A"}},{"$f":"VLOOKUP(Table_Data_Table_13[[#This Row],[Item ID]],Analysis_Table,9,FALSE)","v":{"$error":"#N/A"}},{"$f":"VLOOKUP(Table_Data_Table_13[[#This Row],[Item ID]],Analysis_Table,10,FALSE)","v":{"$error":"#N/A"}},{"$f":"VLOOKUP(Table_Data_Table_13[[#This Row],[Item ID]],Analysis_Table,11,FALSE)","v":{"$error":"#N/A"}},{"$f":"VLOOKUP(Table_Data_Table_13[[#This Row],[Item ID]],Analysis_Table,12,FALSE)","v":{"$error":"#N/A"}},{"$f":"VLOOKUP(Table_Data_Table_13[[#This Row],[Item ID]],Analysis_Table,13,FALSE)","v":{"$error":"#N/A"}},{"$f":"VLOOKUP(Table_Data_Table_13[[#This Row],[Item ID]],Analysis_Table,14,FALSE)","v":{"$error":"#N/A"}},{"$f":"VLOOKUP(Table_Data_Table_13[[#This Row],[Item ID]],Analysis_Table,15,FALSE)","v":{"$error":"#N/A"}},{"$f":"VLOOKUP(Table_Data_Table_13[[#This Row],[Item ID]],Analysis_Table,16,FALSE)","v":{"$error":"#N/A"}},{"$f":"VLOOKUP(Table_Data_Table_13[[#This Row],[Item ID]],Analysis_Table,17,FALSE)","v":{"$error":"#N/A"}},{"$f":"VLOOKUP(Table_Data_Table_13[[#This Row],[Item ID]],Analysis_Table,18,FALSE)","v":{"$error":"#N/A"}},{"$f":"VLOOKUP(Table_Data_Table_13[[#This Row],[Item ID]],Analysis_Table,19,FALSE)","v":{"$error":"#N/A"}},null,null,1]
["",null,null,null,null,null,null,null,null,0,null,null,null,{"$f":"VLOOKUP(Table_Data_Table_13[[#This Row],[Item ID]],Analysis_Table,8,FALSE)","v":{"$error":"#N/A"}},{"$f":"VLOOKUP(Table_Data_Table_13[[#This Row],[Item ID]],Analysis_Table,9,FALSE)","v":{"$error":"#N/A"}},{"$f":"VLOOKUP(Table_Data_Table_13[[#This Row],[Item ID]],Analysis_Table,10,FALSE)","v":{"$error":"#N/A"}},{"$f":"VLOOKUP(Table_Data_Table_13[[#This Row],[Item ID]],Analysis_Table,11,FALSE)","v":{"$error":"#N/A"}},{"$f":"VLOOKUP(Table_Data_Table_13[[#This Row],[Item ID]],Analysis_Table,12,FALSE)","v":{"$error":"#N/A"}},{"$f":"VLOOKUP(Table_Data_Table_13[[#This Row],[Item ID]],Analysis_Table,13,FALSE)","v":{"$error":"#N/A"}},{"$f":"VLOOKUP(Table_Data_Table_13[[#This Row],[Item ID]],Analysis_Table,14,FALSE)","v":{"$error":"#N/A"}},{"$f":"VLOOKUP(Table_Data_Table_13[[#This Row],[Item ID]],Analysis_Table,15,FALSE)","v":{"$error":"#N/A"}},{"$f":"VLOOKUP(Table_Data_Table_13[[#This Row],[Item ID]],Analysis_Table,16,FALSE)","v":{"$error":"#N/A"}},{"$f":"VLOOKUP(Table_Data_Table_13[[#This Row],[Item ID]],Analysis_Table,17,FALSE)","v":{"$error":"#N/A"}},{"$f":"VLOOKUP(Table_Data_Table_13[[#This Row],[Item ID]],Analysis_Table,18,FALSE)","v":{"$error":"#N/A"}},{"$f":"VLOOKUP(Table_Data_Table_13[[#This Row],[Item ID]],Analysis_Table,19,FALSE)","v":{"$error":"#N/A"}},null,null,1]
["",null,null,null,null,null,null,null,null,0,null,null,null,{"$f":"VLOOKUP(Table_Data_Table_13[[#This Row],[Item ID]],Analysis_Table,8,FALSE)","v":{"$error":"#N/A"}},{"$f":"VLOOKUP(Table_Data_Table_13[[#This Row],[Item ID]],Analysis_Table,9,FALSE)","v":{"$error":"#N/A"}},{"$f":"VLOOKUP(Table_Data_Table_13[[#This Row],[Item ID]],Analysis_Table,10,FALSE)","v":{"$error":"#N/A"}},{"$f":"VLOOKUP(Table_Data_Table_13[[#This Row],[Item ID]],Analysis_Table,11,FALSE)","v":{"$error":"#N/A"}},{"$f":"VLOOKUP(Table_Data_Table_13[[#This Row],[Item ID]],Analysis_Table,12,FALSE)","v":{"$error":"#N/A"}},{"$f":"VLOOKUP(Table_Data_Table_13[[#This Row],[Item ID]],Analysis_Table,13,FALSE)","v":{"$error":"#N/A"}},{"$f":"VLOOKUP(Table_Data_Table_13[[#This Row],[Item ID]],Analysis_Table,14,FALSE)","v":{"$error":"#N/A"}},{"$f":"VLOOKUP(Table_Data_Table_13[[#This Row],[Item ID]],Analysis_Table,15,FALSE)","v":{"$error":"#N/A"}},{"$f":"VLOOKUP(Table_Data_Table_13[[#This Row],[Item ID]],Analysis_Table,16,FALSE)","v":{"$error":"#N/A"}},{"$f":"VLOOKUP(Table_Data_Table_13[[#This Row],[Item ID]],Analysis_Table,17,FALSE)","v":{"$error":"#N/A"}},{"$f":"VLOOKUP(Table_Data_Table_13[[#This Row],[Item ID]],Analysis_Table,18,FALSE)","v":{"$error":"#N/A"}},{"$f":"VLOOKUP(Table_Data_Table_13[[#This Row],[Item ID]],Analysis_Table,19,FALSE)","v":{"$error":"#N/A"}},null,null,1]
["",null,null,null,null,null,null,null,null,0,null,null,null,{"$f":"VLOOKUP(Table_Data_Table_13[[#This Row],[Item ID]],Analysis_Table,8,FALSE)","v":{"$error":"#N/A"}},{"$f":"VLOOKUP(Table_Data_Table_13[[#This Row],[Item ID]],Analysis_Table,9,FALSE)","v":{"$error":"#N/A"}},{"$f":"VLOOKUP(Table_Data_Table_13[[#This Row],[Item ID]],Analysis_Table,10,FALSE)","v":{"$error":"#N/A"}},{"$f":"VLOOKUP(Table_Data_Table_13[[#This Row],[Item ID]],Analysis_Table,11,FALSE)","v":{"$error":"#N/A"}},{"$f":"VLOOKUP(Table_Data_Table_13[[#This Row],[Item ID]],Analysis_Table,12,FALSE)","v":{"$error":"#N/A"}},{"$f":"VLOOKUP(Table_Data_Table_13[[#This Row],[Item ID]],Analysis_Table,13,FALSE)","v":{"$error":"#N/A"}},{"$f":"VLOOKUP(Table_Data_Table_13[[#This Row],[Item ID]],Analysis_Table,14,FALSE)","v":{"$error":"#N/A"}},{"$f":"VLOOKUP(Table_Data_Table_13[[#This Row],[Item ID]],Analysis_Table,15,FALSE)","v":{"$error":"#N/A"}},{"$f":"VLOOKUP(Table_Data_Table_13[[#This Row],[Item ID]],Analysis_Table,16,FALSE)","v":{"$error":"#N/A"}},{"$f":"VLOOKUP(Table_Data_Table_13[[#This Row],[Item ID]],Analysis_Table,17,FALSE)","v":{"$error":"#N/A"}},{"$f":"VLOOKUP(Table_Data_Table_13[[#This Row],[Item ID]],Analysis_Table,18,FALSE)","v":{"$error":"#N/A"}},{"$f":"VLOOKUP(Table_Data_Table_13[[#This Row],[Item ID]],Analysis_Table,19,FALSE)","v":{"$error":"#N/A"}},null,null,1]
["",null,null,null,null,null,null,null,null,0,null,null,null,{"$f":"VLOOKUP(Table_Data_Table_13[[#This Row],[Item ID]],Analysis_Table,8,FALSE)","v":{"$error":"#N/A"}},{"$f":"VLOOKUP(Table_Data_Table_13[[#This Row],[Item ID]],Analysis_Table,9,FALSE)","v":{"$error":"#N/A"}},{"$f":"VLOOKUP(Table_Data_Table_13[[#This Row],[Item ID]],Analysis_Table,10,FALSE)","v":{"$error":"#N/A"}},{"$f":"VLOOKUP(Table_Data_Table_13[[#This Row],[Item ID]],Analysis_Table,11,FALSE)","v":{"$error":"#N/A"}},{"$f":"VLOOKUP(Table_Data_Table_13[[#This Row],[Item ID]],Analysis_Table,12,FALSE)","v":{"$error":"#N/A"}},{"$f":"VLOOKUP(Table_Data_Table_13[[#This Row],[Item ID]],Analysis_Table,13,FALSE)","v":{"$error":"#N/A"}},{"$f":"VLOOKUP(Table_Data_Table_13[[#This Row],[Item ID]],Analysis_Table,14,FALSE)","v":{"$error":"#N/A"}},{"$f":"VLOOKUP(Table_Data_Table_13[[#This Row],[Item ID]],Analysis_Table,15,FALSE)","v":{"$error":"#N/A"}},{"$f":"VLOOKUP(Table_Data_Table_13[[#This Row],[Item ID]],Analysis_Table,16,FALSE)","v":{"$error":"#N/A"}},{"$f":"VLOOKUP(Table_Data_Table_13[[#This Row],[Item ID]],Analysis_Table,17,FALSE)","v":{"$error":"#N/A"}},{"$f":"VLOOKUP(Table_Data_Table_13[[#This Row],[Item ID]],Analysis_Table,18,FALSE)","v":{"$error":"#N/A"}},{"$f":"VLOOKUP(Table_Data_Table_13[[#This Row],[Item ID]],Analysis_Table,19,FALSE)","v":{"$error":"#N/A"}},null,null,1]
["",null,null,null,null,null,null,null,null,0,null,null,null,{"$f":"VLOOKUP(Table_Data_Table_13[[#This Row],[Item ID]],Analysis_Table,8,FALSE)","v":{"$error":"#N/A"}},{"$f":"VLOOKUP(Table_Data_Table_13[[#This Row],[Item ID]],Analysis_Table,9,FALSE)","v":{"$error":"#N/A"}},{"$f":"VLOOKUP(Table_Data_Table_13[[#This Row],[Item ID]],Analysis_Table,10,FALSE)","v":{"$error":"#N/A"}},{"$f":"VLOOKUP(Table_Data_Table_13[[#This Row],[Item ID]],Analysis_Table,11,FALSE)","v":{"$error":"#N/A"}},{"$f":"VLOOKUP(Table_Data_Table_13[[#This Row],[Item ID]],Analysis_Table,12,FALSE)","v":{"$error":"#N/A"}},{"$f":"VLOOKUP(Table_Data_Table_13[[#This Row],[Item ID]],Analysis_Table,13,FALSE)","v":{"$error":"#N/A"}},{"$f":"VLOOKUP(Table_Data_Table_13[[#This Row],[Item ID]],Analysis_Table,14,FALSE)","v":{"$error":"#N/A"}},{"$f":"VLOOKUP(Table_Data_Table_13[[#This Row],[Item ID]],Analysis_Table,15,FALSE)","v":{"$error":"#N/A"}},{"$f":"VLOOKUP(Table_Data_Table_13[[#This Row],[Item ID]],Analysis_Table,16,FALSE)","v":{"$error":"#N/A"}},{"$f":"VLOOKUP(Table_Data_Table_13[[#This Row],[Item ID]],Analysis_Table,17,FALSE)","v":{"$error":"#N/A"}},{"$f":"VLOOKUP(Table_Data_Table_13[[#This Row],[Item ID]],Analysis_Table,18,FALSE)","v":{"$error":"#N/A"}},{"$f":"VLOOKUP(Table_Data_Table_13[[#This Row],[Item ID]],Analysis_Table,19,FALSE)","v":{"$error":"#N/A"}},null,null,1]
["",null,null,null,null,null,null,null,null,0,null,null,null,{"$f":"VLOOKUP(Table_Data_Table_13[[#This Row],[Item ID]],Analysis_Table,8,FALSE)","v":{"$error":"#N/A"}},{"$f":"VLOOKUP(Table_Data_Table_13[[#This Row],[Item ID]],Analysis_Table,9,FALSE)","v":{"$error":"#N/A"}},{"$f":"VLOOKUP(Table_Data_Table_13[[#This Row],[Item ID]],Analysis_Table,10,FALSE)","v":{"$error":"#N/A"}},{"$f":"VLOOKUP(Table_Data_Table_13[[#This Row],[Item ID]],Analysis_Table,11,FALSE)","v":{"$error":"#N/A"}},{"$f":"VLOOKUP(Table_Data_Table_13[[#This Row],[Item ID]],Analysis_Table,12,FALSE)","v":{"$error":"#N/A"}},{"$f":"VLOOKUP(Table_Data_Table_13[[#This Row],[Item ID]],Analysis_Table,13,FALSE)","v":{"$error":"#N/A"}},{"$f":"VLOOKUP(Table_Data_Table_13[[#This Row],[Item ID]],Analysis_Table,14,FALSE)","v":{"$error":"#N/A"}},{"$f":"VLOOKUP(Table_Data_Table_13[[#This Row],[Item ID]],Analysis_Table,15,FALSE)","v":{"$error":"#N/A"}},{"$f":"VLOOKUP(Table_Data_Table_13[[#This Row],[Item ID]],Analysis_Table,16,FALSE)","v":{"$error":"#N/A"}},{"$f":"VLOOKUP(Table_Data_Table_13[[#This Row],[Item ID]],Analysis_Table,17,FALSE)","v":{"$error":"#N/A"}},{"$f":"VLOOKUP(Table_Data_Table_13[[#This Row],[Item ID]],Analysis_Table,18,FALSE)","v":{"$error":"#N/A"}},{"$f":"VLOOKUP(Table_Data_Table_13[[#This Row],[Item ID]],Analysis_Table,19,FALSE)","v":{"$error":"#N/A"}},null,null,1]
["",null,null,null,null,null,null,null,null,0,null,null,null,{"$f":"VLOOKUP(Table_Data_Table_13[[#This Row],[Item ID]],Analysis_Table,8,FALSE)","v":{"$error":"#N/A"}},{"$f":"VLOOKUP(Table_Data_Table_13[[#This Row],[Item ID]],Analysis_Table,9,FALSE)","v":{"$error":"#N/A"}},{"$f":"VLOOKUP(Table_Data_Table_13[[#This Row],[Item ID]],Analysis_Table,10,FALSE)","v":{"$error":"#N/A"}},{"$f":"VLOOKUP(Table_Data_Table_13[[#This Row],[Item ID]],Analysis_Table,11,FALSE)","v":{"$error":"#N/A"}},{"$f":"VLOOKUP(Table_Data_Table_13[[#This Row],[Item ID]],Analysis_Table,12,FALSE)","v":{"$error":"#N/A"}},{"$f":"VLOOKUP(Table_Data_Table_13[[#This Row],[Item ID]],Analysis_Table,13,FALSE)","v":{"$error":"#N/A"}},{"$f":"VLOOKUP(Table_Data_Table_13[[#This Row],[Item ID]],Analysis_Table,14,FALSE)","v":{"$error":"#N/A"}},{"$f":"VLOOKUP(Table_Data_Table_13[[#This Row],[Item ID]],Analysis_Table,15,FALSE)","v":{"$error":"#N/A"}},{"$f":"VLOOKUP(Table_Data_Table_13[[#This Row],[Item ID]],Analysis_Table,16,FALSE)","v":{"$error":"#N/A"}},{"$f":"VLOOKUP(Table_Data_Table_13[[#This Row],[Item ID]],Analysis_Table,17,FALSE)","v":{"$error":"#N/A"}},{"$f":"VLOOKUP(Table_Data_Table_13[[#This Row],[Item ID]],Analysis_Table,18,FALSE)","v":{"$error":"#N/A"}},{"$f":"VLOOKUP(Table_Data_Table_13[[#This Row],[Item ID]],Analysis_Table,19,FALSE)","v":{"$error":"#N/A"}},null,null,1]
["",null,null,null,null,null,null,null,null,0,null,null,null,{"$f":"VLOOKUP(Table_Data_Table_13[[#This Row],[Item ID]],Analysis_Table,8,FALSE)","v":{"$error":"#N/A"}},{"$f":"VLOOKUP(Table_Data_Table_13[[#This Row],[Item ID]],Analysis_Table,9,FALSE)","v":{"$error":"#N/A"}},{"$f":"VLOOKUP(Table_Data_Table_13[[#This Row],[Item ID]],Analysis_Table,10,FALSE)","v":{"$error":"#N/A"}},{"$f":"VLOOKUP(Table_Data_Table_13[[#This Row],[Item ID]],Analysis_Table,11,FALSE)","v":{"$error":"#N/A"}},{"$f":"VLOOKUP(Table_Data_Table_13[[#This Row],[Item ID]],Analysis_Table,12,FALSE)","v":{"$error":"#N/A"}},{"$f":"VLOOKUP(Table_Data_Table_13[[#This Row],[Item ID]],Analysis_Table,13,FALSE)","v":{"$error":"#N/A"}},{"$f":"VLOOKUP(Table_Data_Table_13[[#This Row],[Item ID]],Analysis_Table,14,FALSE)","v":{"$error":"#N/A"}},{"$f":"VLOOKUP(Table_Data_Table_13[[#This Row],[Item ID]],Analysis_Table,15,FALSE)","v":{"$error":"#N/A"}},{"$f":"VLOOKUP(Table_Data_Table_13[[#This Row],[Item ID]],Analysis_Table,16,FALSE)","v":{"$error":"#N/A"}},{"$f":"VLOOKUP(Table_Data_Table_13[[#This Row],[Item ID]],Analysis_Table,17,FALSE)","v":{"$error":"#N/A"}},{"$f":"VLOOKUP(Table_Data_Table_13[[#This Row],[Item ID]],Analysis_Table,18,FALSE)","v":{"$error":"#N/A"}},{"$f":"VLOOKUP(Table_Data_Table_13[[#This Row],[Item ID]],Analysis_Table,19,FALSE)","v":{"$error":"#N/A"}},null,null,1]
["",null,null,null,null,null,null,null,null,0,null,null,null,{"$f":"VLOOKUP(Table_Data_Table_13[[#This Row],[Item ID]],Analysis_Table,8,FALSE)","v":{"$error":"#N/A"}},{"$f":"VLOOKUP(Table_Data_Table_13[[#This Row],[Item ID]],Analysis_Table,9,FALSE)","v":{"$error":"#N/A"}},{"$f":"VLOOKUP(Table_Data_Table_13[[#This Row],[Item ID]],Analysis_Table,10,FALSE)","v":{"$error":"#N/A"}},{"$f":"VLOOKUP(Table_Data_Table_13[[#This Row],[Item ID]],Analysis_Table,11,FALSE)","v":{"$error":"#N/A"}},{"$f":"VLOOKUP(Table_Data_Table_13[[#This Row],[Item ID]],Analysis_Table,12,FALSE)","v":{"$error":"#N/A"}},{"$f":"VLOOKUP(Table_Data_Table_13[[#This Row],[Item ID]],Analysis_Table,13,FALSE)","v":{"$error":"#N/A"}},{"$f":"VLOOKUP(Table_Data_Table_13[[#This Row],[Item ID]],Analysis_Table,14,FALSE)","v":{"$error":"#N/A"}},{"$f":"VLOOKUP(Table_Data_Table_13[[#This Row],[Item ID]],Analysis_Table,15,FALSE)","v":{"$error":"#N/A"}},{"$f":"VLOOKUP(Table_Data_Table_13[[#This Row],[Item ID]],Analysis_Table,16,FALSE)","v":{"$error":"#N/A"}},{"$f":"VLOOKUP(Table_Data_Table_13[[#This Row],[Item ID]],Analysis_Table,17,FALSE)","v":{"$error":"#N/A"}},{"$f":"VLOOKUP(Table_Data_Table_13[[#This Row],[Item ID]],Analysis_Table,18,FALSE)","v":{"$error":"#N/A"}},{"$f":"VLOOKUP(Table_Data_Table_13[[#This Row],[Item ID]],Analysis_Table,19,FALSE)","v":{"$error":"#N/A"}},null,null,1]
["",null,null,null,null,null,null,null,null,0,null,null,null,{"$f":"VLOOKUP(Table_Data_Table_13[[#This Row],[Item ID]],Analysis_Table,8,FALSE)","v":{"$error":"#N/A"}},{"$f":"VLOOKUP(Table_Data_Table_13[[#This Row],[Item ID]],Analysis_Table,9,FALSE)","v":{"$error":"#N/A"}},{"$f":"VLOOKUP(Table_Data_Table_13[[#This Row],[Item ID]],Analysis_Table,10,FALSE)","v":{"$error":"#N/A"}},{"$f":"VLOOKUP(Table_Data_Table_13[[#This Row],[Item ID]],Analysis_Table,11,FALSE)","v":{"$error":"#N/A"}},{"$f":"VLOOKUP(Table_Data_Table_13[[#This Row],[Item ID]],Analysis_Table,12,FALSE)","v":{"$error":"#N/A"}},{"$f":"VLOOKUP(Table_Data_Table_13[[#This Row],[Item ID]],Analysis_Table,13,FALSE)","v":{"$error":"#N/A"}},{"$f":"VLOOKUP(Table_Data_Table_13[[#This Row],[Item ID]],Analysis_Table,14,FALSE)","v":{"$error":"#N/A"}},{"$f":"VLOOKUP(Table_Data_Table_13[[#This Row],[Item ID]],Analysis_Table,15,FALSE)","v":{"$error":"#N/A"}},{"$f":"VLOOKUP(Table_Data_Table_13[[#This Row],[Item ID]],Analysis_Table,16,FALSE)","v":{"$error":"#N/A"}},{"$f":"VLOOKUP(Table_Data_Table_13[[#This Row],[Item ID]],Analysis_Table,17,FALSE)","v":{"$error":"#N/A"}},{"$f":"VLOOKUP(Table_Data_Table_13[[#This Row],[Item ID]],Analysis_Table,18,FALSE)","v":{"$error":"#N/A"}},{"$f":"VLOOKUP(Table_Data_Table_13[[#This Row],[Item ID]],Analysis_Table,19,FALSE)","v":{"$error":"#N/A"}},null,null,1]
["",null,null,null,null,null,null,null,null,0,null,null,null,{"$f":"VLOOKUP(Table_Data_Table_13[[#This Row],[Item ID]],Analysis_Table,8,FALSE)","v":{"$error":"#N/A"}},{"$f":"VLOOKUP(Table_Data_Table_13[[#This Row],[Item ID]],Analysis_Table,9,FALSE)","v":{"$error":"#N/A"}},{"$f":"VLOOKUP(Table_Data_Table_13[[#This Row],[Item ID]],Analysis_Table,10,FALSE)","v":{"$error":"#N/A"}},{"$f":"VLOOKUP(Table_Data_Table_13[[#This Row],[Item ID]],Analysis_Table,11,FALSE)","v":{"$error":"#N/A"}},{"$f":"VLOOKUP(Table_Data_Table_13[[#This Row],[Item ID]],Analysis_Table,12,FALSE)","v":{"$error":"#N/A"}},{"$f":"VLOOKUP(Table_Data_Table_13[[#This Row],[Item ID]],Analysis_Table,13,FALSE)","v":{"$error":"#N/A"}},{"$f":"VLOOKUP(Table_Data_Table_13[[#This Row],[Item ID]],Analysis_Table,14,FALSE)","v":{"$error":"#N/A"}},{"$f":"VLOOKUP(Table_Data_Table_13[[#This Row],[Item ID]],Analysis_Table,15,FALSE)","v":{"$error":"#N/A"}},{"$f":"VLOOKUP(Table_Data_Table_13[[#This Row],[Item ID]],Analysis_Table,16,FALSE)","v":{"$error":"#N/A"}},{"$f":"VLOOKUP(Table_Data_Table_13[[#This Row],[Item ID]],Analysis_Table,17,FALSE)","v":{"$error":"#N/A"}},{"$f":"VLOOKUP(Table_Data_Table_13[[#This Row],[Item ID]],Analysis_Table,18,FALSE)","v":{"$error":"#N/A"}},{"$f":"VLOOKUP(Table_Data_Table_13[[#This Row],[Item ID]],Analysis_Table,19,FALSE)","v":{"$error":"#N/A"}},null,null,1]
["",null,null,null,null,null,null,null,null,0,null,null,null,{"$f":"VLOOKUP(Table_Data_Table_13[[#This Row],[Item ID]],Analysis_Table,8,FALSE)","v":{"$error":"#N/A"}},{"$f":"VLOOKUP(Table_Data_Table_13[[#This Row],[Item ID]],Analysis_Table,9,FALSE)","v":{"$error":"#N/A"}},{"$f":"VLOOKUP(Table_Data_Table_13[[#This Row],[Item ID]],Analysis_Table,10,FALSE)","v":{"$error":"#N/A"}},{"$f":"VLOOKUP(Table_Data_Table_13[[#This Row],[Item ID]],Analysis_Table,11,FALSE)","v":{"$error":"#N/A"}},{"$f":"VLOOKUP(Table_Data_Table_13[[#This Row],[Item ID]],Analysis_Table,12,FALSE)","v":{"$error":"#N/A"}},{"$f":"VLOOKUP(Table_Data_Table_13[[#This Row],[Item ID]],Analysis_Table,13,FALSE)","v":{"$error":"#N/A"}},{"$f":"VLOOKUP(Table_Data_Table_13[[#This Row],[Item ID]],Analysis_Table,14,FALSE)","v":{"$error":"#N/A"}},{"$f":"VLOOKUP(Table_Data_Table_13[[#This Row],[Item ID]],Analysis_Table,15,FALSE)","v":{"$error":"#N/A"}},{"$f":"VLOOKUP(Table_Data_Table_13[[#This Row],[Item ID]],Analysis_Table,16,FALSE)","v":{"$error":"#N/A"}},{"$f":"VLOOKUP(Table_Data_Table_13[[#This Row],[Item ID]],Analysis_Table,17,FALSE)","v":{"$error":"#N/A"}},{"$f":"VLOOKUP(Table_Data_Table_13[[#This Row],[Item ID]],Analysis_Table,18,FALSE)","v":{"$error":"#N/A"}},{"$f":"VLOOKUP(Table_Data_Table_13[[#This Row],[Item ID]],Analysis_Table,19,FALSE)","v":{"$error":"#N/A"}},null,null,1]
["",null,null,null,null,null,null,null,null,0,null,null,null,{"$f":"VLOOKUP(Table_Data_Table_13[[#This Row],[Item ID]],Analysis_Table,8,FALSE)","v":{"$error":"#N/A"}},{"$f":"VLOOKUP(Table_Data_Table_13[[#This Row],[Item ID]],Analysis_Table,9,FALSE)","v":{"$error":"#N/A"}},{"$f":"VLOOKUP(Table_Data_Table_13[[#This Row],[Item ID]],Analysis_Table,10,FALSE)","v":{"$error":"#N/A"}},{"$f":"VLOOKUP(Table_Data_Table_13[[#This Row],[Item ID]],Analysis_Table,11,FALSE)","v":{"$error":"#N/A"}},{"$f":"VLOOKUP(Table_Data_Table_13[[#This Row],[Item ID]],Analysis_Table,12,FALSE)","v":{"$error":"#N/A"}},{"$f":"VLOOKUP(Table_Data_Table_13[[#This Row],[Item ID]],Analysis_Table,13,FALSE)","v":{"$error":"#N/A"}},{"$f":"VLOOKUP(Table_Data_Table_13[[#This Row],[Item ID]],Analysis_Table,14,FALSE)","v":{"$error":"#N/A"}},{"$f":"VLOOKUP(Table_Data_Table_13[[#This Row],[Item ID]],Analysis_Table,15,FALSE)","v":{"$error":"#N/A"}},{"$f":"VLOOKUP(Table_Data_Table_13[[#This Row],[Item ID]],Analysis_Table,16,FALSE)","v":{"$error":"#N/A"}},{"$f":"VLOOKUP(Table_Data_Table_13[[#This Row],[Item ID]],Analysis_Table,17,FALSE)","v":{"$error":"#N/A"}},{"$f":"VLOOKUP(Table_Data_Table_13[[#This Row],[Item ID]],Analysis_Table,18,FALSE)","v":{"$error":"#N/A"}},{"$f":"VLOOKUP(Table_Data_Table_13[[#This Row],[Item ID]],Analysis_Table,19,FALSE)","v":{"$error":"#N/A"}},null,null,1]
["",null,null,null,null,null,null,null,null,0,null,null,null,{"$f":"VLOOKUP(Table_Data_Table_13[[#This Row],[Item ID]],Analysis_Table,8,FALSE)","v":{"$error":"#N/A"}},{"$f":"VLOOKUP(Table_Data_Table_13[[#This Row],[Item ID]],Analysis_Table,9,FALSE)","v":{"$error":"#N/A"}},{"$f":"VLOOKUP(Table_Data_Table_13[[#This Row],[Item ID]],Analysis_Table,10,FALSE)","v":{"$error":"#N/A"}},{"$f":"VLOOKUP(Table_Data_Table_13[[#This Row],[Item ID]],Analysis_Table,11,FALSE)","v":{"$error":"#N/A"}},{"$f":"VLOOKUP(Table_Data_Table_13[[#This Row],[Item ID]],Analysis_Table,12,FALSE)","v":{"$error":"#N/A"}},{"$f":"VLOOKUP(Table_Data_Table_13[[#This Row],[Item ID]],Analysis_Table,13,FALSE)","v":{"$error":"#N/A"}},{"$f":"VLOOKUP(Table_Data_Table_13[[#This Row],[Item ID]],Analysis_Table,14,FALSE)","v":{"$error":"#N/A"}},{"$f":"VLOOKUP(Table_Data_Table_13[[#This Row],[Item ID]],Analysis_Table,15,FALSE)","v":{"$error":"#N/A"}},{"$f":"VLOOKUP(Table_Data_Table_13[[#This Row],[Item ID]],Analysis_Table,16,FALSE)","v":{"$error":"#N/A"}},{"$f":"VLOOKUP(Table_Data_Table_13[[#This Row],[Item ID]],Analysis_Table,17,FALSE)","v":{"$error":"#N/A"}},{"$f":"VLOOKUP(Table_Data_Table_13[[#This Row],[Item ID]],Analysis_Table,18,FALSE)","v":{"$error":"#N/A"}},{"$f":"VLOOKUP(Table_Data_Table_13[[#This Row],[Item ID]],Analysis_Table,19,FALSE)","v":{"$error":"#N/A"}},null,null,1]
["",null,null,null,null,null,null,null,null,0,null,null,null,{"$f":"VLOOKUP(Table_Data_Table_13[[#This Row],[Item ID]],Analysis_Table,8,FALSE)","v":{"$error":"#N/A"}},{"$f":"VLOOKUP(Table_Data_Table_13[[#This Row],[Item ID]],Analysis_Table,9,FALSE)","v":{"$error":"#N/A"}},{"$f":"VLOOKUP(Table_Data_Table_13[[#This Row],[Item ID]],Analysis_Table,10,FALSE)","v":{"$error":"#N/A"}},{"$f":"VLOOKUP(Table_Data_Table_13[[#This Row],[Item ID]],Analysis_Table,11,FALSE)","v":{"$error":"#N/A"}},{"$f":"VLOOKUP(Table_Data_Table_13[[#This Row],[Item ID]],Analysis_Table,12,FALSE)","v":{"$error":"#N/A"}},{"$f":"VLOOKUP(Table_Data_Table_13[[#This Row],[Item ID]],Analysis_Table,13,FALSE)","v":{"$error":"#N/A"}},{"$f":"VLOOKUP(Table_Data_Table_13[[#This Row],[Item ID]],Analysis_Table,14,FALSE)","v":{"$error":"#N/A"}},{"$f":"VLOOKUP(Table_Data_Table_13[[#This Row],[Item ID]],Analysis_Table,15,FALSE)","v":{"$error":"#N/A"}},{"$f":"VLOOKUP(Table_Data_Table_13[[#This Row],[Item ID]],Analysis_Table,16,FALSE)","v":{"$error":"#N/A"}},{"$f":"VLOOKUP(Table_Data_Table_13[[#This Row],[Item ID]],Analysis_Table,17,FALSE)","v":{"$error":"#N/A"}},{"$f":"VLOOKUP(Table_Data_Table_13[[#This Row],[Item ID]],Analysis_Table,18,FALSE)","v":{"$error":"#N/A"}},{"$f":"VLOOKUP(Table_Data_Table_13[[#This Row],[Item ID]],Analysis_Table,19,FALSE)","v":{"$error":"#N/A"}},null,null,1]
["",null,null,null,null,null,null,null,null,0,null,null,null,{"$f":"VLOOKUP(Table_Data_Table_13[[#This Row],[Item ID]],Analysis_Table,8,FALSE)","v":{"$error":"#N/A"}},{"$f":"VLOOKUP(Table_Data_Table_13[[#This Row],[Item ID]],Analysis_Table,9,FALSE)","v":{"$error":"#N/A"}},{"$f":"VLOOKUP(Table_Data_Table_13[[#This Row],[Item ID]],Analysis_Table,10,FALSE)","v":{"$error":"#N/A"}},{"$f":"VLOOKUP(Table_Data_Table_13[[#This Row],[Item ID]],Analysis_Table,11,FALSE)","v":{"$error":"#N/A"}},{"$f":"VLOOKUP(Table_Data_Table_13[[#This Row],[Item ID]],Analysis_Table,12,FALSE)","v":{"$error":"#N/A"}},{"$f":"VLOOKUP(Table_Data_Table_13[[#This Row],[Item ID]],Analysis_Table,13,FALSE)","v":{"$error":"#N/A"}},{"$f":"VLOOKUP(Table_Data_Table_13[[#This Row],[Item ID]],Analysis_Table,14,FALSE)","v":{"$error":"#N/A"}},{"$f":"VLOOKUP(Table_Data_Table_13[[#This Row],[Item ID]],Analysis_Table,15,FALSE)","v":{"$error":"#N/A"}},{"$f":"VLOOKUP(Table_Data_Table_13[[#This Row],[Item ID]],Analysis_Table,16,FALSE)","v":{"$error":"#N/A"}},{"$f":"VLOOKUP(Table_Data_Table_13[[#This Row],[Item ID]],Analysis_Table,17,FALSE)","v":{"$error":"#N/A"}},{"$f":"VLOOKUP(Table_Data_Table_13[[#This Row],[Item ID]],Analysis_Table,18,FALSE)","v":{"$error":"#N/A"}},{"$f":"VLOOKUP(Table_Data_Table_13[[#This Row],[Item ID]],Analysis_Table,19,FALSE)","v":{"$error":"#N/A"}},null,null,1]
["",null,null,null,null,null,null,null,null,0,null,null,null,{"$f":"VLOOKUP(Table_Data_Table_13[[#This Row],[Item ID]],Analysis_Table,8,FALSE)","v":{"$error":"#N/A"}},{"$f":"VLOOKUP(Table_Data_Table_13[[#This Row],[Item ID]],Analysis_Table,9,FALSE)","v":{"$error":"#N/A"}},{"$f":"VLOOKUP(Table_Data_Table_13[[#This Row],[Item ID]],Analysis_Table,10,FALSE)","v":{"$error":"#N/A"}},{"$f":"VLOOKUP(Table_Data_Table_13[[#This Row],[Item ID]],Analysis_Table,11,FALSE)","v":{"$error":"#N/A"}},{"$f":"VLOOKUP(Table_Data_Table_13[[#This Row],[Item ID]],Analysis_Table,12,FALSE)","v":{"$error":"#N/A"}},{"$f":"VLOOKUP(Table_Data_Table_13[[#This Row],[Item ID]],Analysis_Table,13,FALSE)","v":{"$error":"#N/A"}},{"$f":"VLOOKUP(Table_Data_Table_13[[#This Row],[Item ID]],Analysis_Table,14,FALSE)","v":{"$error":"#N/A"}},{"$f":"VLOOKUP(Table_Data_Table_13[[#This Row],[Item ID]],Analysis_Table,15,FALSE)","v":{"$error":"#N/A"}},{"$f":"VLOOKUP(Table_Data_Table_13[[#This Row],[Item ID]],Analysis_Table,16,FALSE)","v":{"$error":"#N/A"}},{"$f":"VLOOKUP(Table_Data_Table_13[[#This Row],[Item ID]],Analysis_Table,17,FALSE)","v":{"$error":"#N/A"}},{"$f":"VLOOKUP(Table_Data_Table_13[[#This Row],[Item ID]],Analysis_Table,18,FALSE)","v":{"$error":"#N/A"}},{"$f":"VLOOKUP(Table_Data_Table_13[[#This Row],[Item ID]],Analysis_Table,19,FALSE)","v":{"$error":"#N/A"}},null,null,1]
["",null,null,null,null,null,null,null,null,0,null,null,null,{"$f":"VLOOKUP(Table_Data_Table_13[[#This Row],[Item ID]],Analysis_Table,8,FALSE)","v":{"$error":"#N/A"}},{"$f":"VLOOKUP(Table_Data_Table_13[[#This Row],[Item ID]],Analysis_Table,9,FALSE)","v":{"$error":"#N/A"}},{"$f":"VLOOKUP(Table_Data_Table_13[[#This Row],[Item ID]],Analysis_Table,10,FALSE)","v":{"$error":"#N/A"}},{"$f":"VLOOKUP(Table_Data_Table_13[[#This Row],[Item ID]],Analysis_Table,11,FALSE)","v":{"$error":"#N/A"}},{"$f":"VLOOKUP(Table_Data_Table_13[[#This Row],[Item ID]],Analysis_Table,12,FALSE)","v":{"$error":"#N/A"}},{"$f":"VLOOKUP(Table_Data_Table_13[[#This Row],[Item ID]],Analysis_Table,13,FALSE)","v":{"$error":"#N/A"}},{"$f":"VLOOKUP(Table_Data_Table_13[[#This Row],[Item ID]],Analysis_Table,14,FALSE)","v":{"$error":"#N/A"}},{"$f":"VLOOKUP(Table_Data_Table_13[[#This Row],[Item ID]],Analysis_Table,15,FALSE)","v":{"$error":"#N/A"}},{"$f":"VLOOKUP(Table_Data_Table_13[[#This Row],[Item ID]],Analysis_Table,16,FALSE)","v":{"$error":"#N/A"}},{"$f":"VLOOKUP(Table_Data_Table_13[[#This Row],[Item ID]],Analysis_Table,17,FALSE)","v":{"$error":"#N/A"}},{"$f":"VLOOKUP(Table_Data_Table_13[[#This Row],[Item ID]],Analysis_Table,18,FALSE)","v":{"$error":"#N/A"}},{"$f":"VLOOKUP(Table_Data_Table_13[[#This Row],[Item ID]],Analysis_Table,19,FALSE)","v":{"$error":"#N/A"}},null,null,1]
["",null,null,null,null,null,null,null,null,0,null,null,null,{"$f":"VLOOKUP(Table_Data_Table_13[[#This Row],[Item ID]],Analysis_Table,8,FALSE)","v":{"$error":"#N/A"}},{"$f":"VLOOKUP(Table_Data_Table_13[[#This Row],[Item ID]],Analysis_Table,9,FALSE)","v":{"$error":"#N/A"}},{"$f":"VLOOKUP(Table_Data_Table_13[[#This Row],[Item ID]],Analysis_Table,10,FALSE)","v":{"$error":"#N/A"}},{"$f":"VLOOKUP(Table_Data_Table_13[[#This Row],[Item ID]],Analysis_Table,11,FALSE)","v":{"$error":"#N/A"}},{"$f":"VLOOKUP(Table_Data_Table_13[[#This Row],[Item ID]],Analysis_Table,12,FALSE)","v":{"$error":"#N/A"}},{"$f":"VLOOKUP(Table_Data_Table_13[[#This Row],[Item ID]],Analysis_Table,13,FALSE)","v":{"$error":"#N/A"}},{"$f":"VLOOKUP(Table_Data_Table_13[[#This Row],[Item ID]],Analysis_Table,14,FALSE)","v":{"$error":"#N/A"}},{"$f":"VLOOKUP(Table_Data_Table_13[[#This Row],[Item ID]],Analysis_Table,15,FALSE)","v":{"$error":"#N/A"}},{"$f":"VLOOKUP(Table_Data_Table_13[[#This Row],[Item ID]],Analysis_Table,16,FALSE)","v":{"$error":"#N/A"}},{"$f":"VLOOKUP(Table_Data_Table_13[[#This Row],[Item ID]],Analysis_Table,17,FALSE)","v":{"$error":"#N/A"}},{"$f":"VLOOKUP(Table_Data_Table_13[[#This Row],[Item ID]],Analysis_Table,18,FALSE)","v":{"$error":"#N/A"}},{"$f":"VLOOKUP(Table_Data_Table_13[[#This Row],[Item ID]],Analysis_Table,19,FALSE)","v":{"$error":"#N/A"}},null,null,1]
["",null,null,null,null,null,null,null,null,0,null,null,null,{"$f":"VLOOKUP(Table_Data_Table_13[[#This Row],[Item ID]],Analysis_Table,8,FALSE)","v":{"$error":"#N/A"}},{"$f":"VLOOKUP(Table_Data_Table_13[[#This Row],[Item ID]],Analysis_Table,9,FALSE)","v":{"$error":"#N/A"}},{"$f":"VLOOKUP(Table_Data_Table_13[[#This Row],[Item ID]],Analysis_Table,10,FALSE)","v":{"$error":"#N/A"}},{"$f":"VLOOKUP(Table_Data_Table_13[[#This Row],[Item ID]],Analysis_Table,11,FALSE)","v":{"$error":"#N/A"}},{"$f":"VLOOKUP(Table_Data_Table_13[[#This Row],[Item ID]],Analysis_Table,12,FALSE)","v":{"$error":"#N/A"}},{"$f":"VLOOKUP(Table_Data_Table_13[[#This Row],[Item ID]],Analysis_Table,13,FALSE)","v":{"$error":"#N/A"}},{"$f":"VLOOKUP(Table_Data_Table_13[[#This Row],[Item ID]],Analysis_Table,14,FALSE)","v":{"$error":"#N/A"}},{"$f":"VLOOKUP(Table_Data_Table_13[[#This Row],[Item ID]],Analysis_Table,15,FALSE)","v":{"$error":"#N/A"}},{"$f":"VLOOKUP(Table_Data_Table_13[[#This Row],[Item ID]],Analysis_Table,16,FALSE)","v":{"$error":"#N/A"}},{"$f":"VLOOKUP(Table_Data_Table_13[[#This Row],[Item ID]],Analysis_Table,17,FALSE)","v":{"$error":"#N/A"}},{"$f":"VLOOKUP(Table_Data_Table_13[[#This Row],[Item ID]],Analysis_Table,18,FALSE)","v":{"$error":"#N/A"}},{"$f":"VLOOKUP(Table_Data_Table_13[[#This Row],[Item ID]],Analysis_Table,19,FALSE)","v":{"$error":"#N/A"}},null,null,1]
["",null,null,null,null,null,null,null,null,0,null,null,null,{"$f":"VLOOKUP(Table_Data_Table_13[[#This Row],[Item ID]],Analysis_Table,8,FALSE)","v":{"$error":"#N/A"}},{"$f":"VLOOKUP(Table_Data_Table_13[[#This Row],[Item ID]],Analysis_Table,9,FALSE)","v":{"$error":"#N/A"}},{"$f":"VLOOKUP(Table_Data_Table_13[[#This Row],[Item ID]],Analysis_Table,10,FALSE)","v":{"$error":"#N/A"}},{"$f":"VLOOKUP(Table_Data_Table_13[[#This Row],[Item ID]],Analysis_Table,11,FALSE)","v":{"$error":"#N/A"}},{"$f":"VLOOKUP(Table_Data_Table_13[[#This Row],[Item ID]],Analysis_Table,12,FALSE)","v":{"$error":"#N/A"}},{"$f":"VLOOKUP(Table_Data_Table_13[[#This Row],[Item ID]],Analysis_Table,13,FALSE)","v":{"$error":"#N/A"}},{"$f":"VLOOKUP(Table_Data_Table_13[[#This Row],[Item ID]],Analysis_Table,14,FALSE)","v":{"$error":"#N/A"}},{"$f":"VLOOKUP(Table_Data_Table_13[[#This Row],[Item ID]],Analysis_Table,15,FALSE)","v":{"$error":"#N/A"}},{"$f":"VLOOKUP(Table_Data_Table_13[[#This Row],[Item ID]],Analysis_Table,16,FALSE)","v":{"$error":"#N/A"}},{"$f":"VLOOKUP(Table_Data_Table_13[[#This Row],[Item ID]],Analysis_Table,17,FALSE)","v":{"$error":"#N/A"}},{"$f":"VLOOKUP(Table_Data_Table_13[[#This Row],[Item ID]],Analysis_Table,18,FALSE)","v":{"$error":"#N/A"}},{"$f":"VLOOKUP(Table_Data_Table_13[[#This Row],[Item ID]],Analysis_Table,19,FALSE)","v":{"$error":"#N/A"}},null,null,1]
["",null,null,null,null,null,null,null,null,0,null,null,null,{"$f":"VLOOKUP(Table_Data_Table_13[[#This Row],[Item ID]],Analysis_Table,8,FALSE)","v":{"$error":"#N/A"}},{"$f":"VLOOKUP(Table_Data_Table_13[[#This Row],[Item ID]],Analysis_Table,9,FALSE)","v":{"$error":"#N/A"}},{"$f":"VLOOKUP(Table_Data_Table_13[[#This Row],[Item ID]],Analysis_Table,10,FALSE)","v":{"$error":"#N/A"}},{"$f":"VLOOKUP(Table_Data_Table_13[[#This Row],[Item ID]],Analysis_Table,11,FALSE)","v":{"$error":"#N/A"}},{"$f":"VLOOKUP(Table_Data_Table_13[[#This Row],[Item ID]],Analysis_Table,12,FALSE)","v":{"$error":"#N/A"}},{"$f":"VLOOKUP(Table_Data_Table_13[[#This Row],[Item ID]],Analysis_Table,13,FALSE)","v":{"$error":"#N/A"}},{"$f":"VLOOKUP(Table_Data_Table_13[[#This Row],[Item ID]],Analysis_Table,14,FALSE)","v":{"$error":"#N/A"}},{"$f":"VLOOKUP(Table_Data_Table_13[[#This Row],[Item ID]],Analysis_Table,15,FALSE)","v":{"$error":"#N/A"}},{"$f":"VLOOKUP(Table_Data_Table_13[[#This Row],[Item ID]],Analysis_Table,16,FALSE)","v":{"$error":"#N/A"}},{"$f":"VLOOKUP(Table_Data_Table_13[[#This Row],[Item ID]],Analysis_Table,17,FALSE)","v":{"$error":"#N/A"}},{"$f":"VLOOKUP(Table_Data_Table_13[[#This Row],[Item ID]],Analysis_Table,18,FALSE)","v":{"$error":"#N/A"}},{"$f":"VLOOKUP(Table_Data_Table_13[[#This Row],[Item ID]],Analysis_Table,19,FALSE)","v":{"$error":"#N/A"}},null,null,1]
["",null,null,null,null,null,null,null,null,0,null,null,null,{"$f":"VLOOKUP(Table_Data_Table_13[[#This Row],[Item ID]],Analysis_Table,8,FALSE)","v":{"$error":"#N/A"}},{"$f":"VLOOKUP(Table_Data_Table_13[[#This Row],[Item ID]],Analysis_Table,9,FALSE)","v":{"$error":"#N/A"}},{"$f":"VLOOKUP(Table_Data_Table_13[[#This Row],[Item ID]],Analysis_Table,10,FALSE)","v":{"$error":"#N/A"}},{"$f":"VLOOKUP(Table_Data_Table_13[[#This Row],[Item ID]],Analysis_Table,11,FALSE)","v":{"$error":"#N/A"}},{"$f":"VLOOKUP(Table_Data_Table_13[[#This Row],[Item ID]],Analysis_Table,12,FALSE)","v":{"$error":"#N/A"}},{"$f":"VLOOKUP(Table_Data_Table_13[[#This Row],[Item ID]],Analysis_Table,13,FALSE)","v":{"$error":"#N/A"}},{"$f":"VLOOKUP(Table_Data_Table_13[[#This Row],[Item ID]],Analysis_Table,14,FALSE)","v":{"$error":"#N/A"}},{"$f":"VLOOKUP(Table_Data_Table_13[[#This Row],[Item ID]],Analysis_Table,15,FALSE)","v":{"$error":"#N/A"}},{"$f":"VLOOKUP(Table_Data_Table_13[[#This Row],[Item ID]],Analysis_Table,16,FALSE)","v":{"$error":"#N/A"}},{"$f":"VLOOKUP(Table_Data_Table_13[[#This Row],[Item ID]],Analysis_Table,17,FALSE)","v":{"$error":"#N/A"}},{"$f":"VLOOKUP(Table_Data_Table_13[[#This Row],[Item ID]],Analysis_Table,18,FALSE)","v":{"$error":"#N/A"}},{"$f":"VLOOKUP(Table_Data_Table_13[[#This Row],[Item ID]],Analysis_Table,19,FALSE)","v":{"$error":"#N/A"}},null,null,1]
["",null,null,null,null,null,null,null,null,0,null,null,null,{"$f":"VLOOKUP(Table_Data_Table_13[[#This Row],[Item ID]],Analysis_Table,8,FALSE)","v":{"$error":"#N/A"}},{"$f":"VLOOKUP(Table_Data_Table_13[[#This Row],[Item ID]],Analysis_Table,9,FALSE)","v":{"$error":"#N/A"}},{"$f":"VLOOKUP(Table_Data_Table_13[[#This Row],[Item ID]],Analysis_Table,10,FALSE)","v":{"$error":"#N/A"}},{"$f":"VLOOKUP(Table_Data_Table_13[[#This Row],[Item ID]],Analysis_Table,11,FALSE)","v":{"$error":"#N/A"}},{"$f":"VLOOKUP(Table_Data_Table_13[[#This Row],[Item ID]],Analysis_Table,12,FALSE)","v":{"$error":"#N/A"}},{"$f":"VLOOKUP(Table_Data_Table_13[[#This Row],[Item ID]],Analysis_Table,13,FALSE)","v":{"$error":"#N/A"}},{"$f":"VLOOKUP(Table_Data_Table_13[[#This Row],[Item ID]],Analysis_Table,14,FALSE)","v":{"$error":"#N/A"}},{"$f":"VLOOKUP(Table_Data_Table_13[[#This Row],[Item ID]],Analysis_Table,15,FALSE)","v":{"$error":"#N/A"}},{"$f":"VLOOKUP(Table_Data_Table_13[[#This Row],[Item ID]],Analysis_Table,16,FALSE)","v":{"$error":"#N/A"}},{"$f":"VLOOKUP(Table_Data_Table_13[[#This Row],[Item ID]],Analysis_Table,17,FALSE)","v":{"$error":"#N/A"}},{"$f":"VLOOKUP(Table_Data_Table_13[[#This Row],[Item ID]],Analysis_Table,18,FALSE)","v":{"$error":"#N/A"}},{"$f":"VLOOKUP(Table_Data_Table_13[[#This Row],[Item ID]],Analysis_Table,19,FALSE)","v":{"$error":"#N/A"}},null,null,1]
["",null,null,null,null,null,null,null,null,0,null,null,null,{"$f":"VLOOKUP(Table_Data_Table_13[[#This Row],[Item ID]],Analysis_Table,8,FALSE)","v":{"$error":"#N/A"}},{"$f":"VLOOKUP(Table_Data_Table_13[[#This Row],[Item ID]],Analysis_Table,9,FALSE)","v":{"$error":"#N/A"}},{"$f":"VLOOKUP(Table_Data_Table_13[[#This Row],[Item ID]],Analysis_Table,10,FALSE)","v":{"$error":"#N/A"}},{"$f":"VLOOKUP(Table_Data_Table_13[[#This Row],[Item ID]],Analysis_Table,11,FALSE)","v":{"$error":"#N/A"}},{"$f":"VLOOKUP(Table_Data_Table_13[[#This Row],[Item ID]],Analysis_Table,12,FALSE)","v":{"$error":"#N/A"}},{"$f":"VLOOKUP(Table_Data_Table_13[[#This Row],[Item ID]],Analysis_Table,13,FALSE)","v":{"$error":"#N/A"}},{"$f":"VLOOKUP(Table_Data_Table_13[[#This Row],[Item ID]],Analysis_Table,14,FALSE)","v":{"$error":"#N/A"}},{"$f":"VLOOKUP(Table_Data_Table_13[[#This Row],[Item ID]],Analysis_Table,15,FALSE)","v":{"$error":"#N/A"}},{"$f":"VLOOKUP(Table_Data_Table_13[[#This Row],[Item ID]],Analysis_Table,16,FALSE)","v":{"$error":"#N/A"}},{"$f":"VLOOKUP(Table_Data_Table_13[[#This Row],[Item ID]],Analysis_Table,17,FALSE)","v":{"$error":"#N/A"}},{"$f":"VLOOKUP(Table_Data_Table_13[[#This Row],[Item ID]],Analysis_Table,18,FALSE)","v":{"$error":"#N/A"}},{"$f":"VLOOKUP(Table_Data_Table_13[[#This Row],[Item ID]],Analysis_Table,19,FALSE)","v":{"$error":"#N/A"}},null,null,1]
["",null,null,null,null,null,null,null,null,0,null,null,null,{"$f":"VLOOKUP(Table_Data_Table_13[[#This Row],[Item ID]],Analysis_Table,8,FALSE)","v":{"$error":"#N/A"}},{"$f":"VLOOKUP(Table_Data_Table_13[[#This Row],[Item ID]],Analysis_Table,9,FALSE)","v":{"$error":"#N/A"}},{"$f":"VLOOKUP(Table_Data_Table_13[[#This Row],[Item ID]],Analysis_Table,10,FALSE)","v":{"$error":"#N/A"}},{"$f":"VLOOKUP(Table_Data_Table_13[[#This Row],[Item ID]],Analysis_Table,11,FALSE)","v":{"$error":"#N/A"}},{"$f":"VLOOKUP(Table_Data_Table_13[[#This Row],[Item ID]],Analysis_Table,12,FALSE)","v":{"$error":"#N/A"}},{"$f":"VLOOKUP(Table_Data_Table_13[[#This Row],[Item ID]],Analysis_Table,13,FALSE)","v":{"$error":"#N/A"}},{"$f":"VLOOKUP(Table_Data_Table_13[[#This Row],[Item ID]],Analysis_Table,14,FALSE)","v":{"$error":"#N/A"}},{"$f":"VLOOKUP(Table_Data_Table_13[[#This Row],[Item ID]],Analysis_Table,15,FALSE)","v":{"$error":"#N/A"}},{"$f":"VLOOKUP(Table_Data_Table_13[[#This Row],[Item ID]],Analysis_Table,16,FALSE)","v":{"$error":"#N/A"}},{"$f":"VLOOKUP(Table_Data_Table_13[[#This Row],[Item ID]],Analysis_Table,17,FALSE)","v":{"$error":"#N/A"}},{"$f":"VLOOKUP(Table_Data_Table_13[[#This Row],[Item ID]],Analysis_Table,18,FALSE)","v":{"$error":"#N/A"}},{"$f":"VLOOKUP(Table_Data_Table_13[[#This Row],[Item ID]],Analysis_Table,19,FALSE)","v":{"$error":"#N/A"}},null,null,1]
["",null,null,null,null,null,null,null,null,0,null,null,null,{"$f":"VLOOKUP(Table_Data_Table_13[[#This Row],[Item ID]],Analysis_Table,8,FALSE)","v":{"$error":"#N/A"}},{"$f":"VLOOKUP(Table_Data_Table_13[[#This Row],[Item ID]],Analysis_Table,9,FALSE)","v":{"$error":"#N/A"}},{"$f":"VLOOKUP(Table_Data_Table_13[[#This Row],[Item ID]],Analysis_Table,10,FALSE)","v":{"$error":"#N/A"}},{"$f":"VLOOKUP(Table_Data_Table_13[[#This Row],[Item ID]],Analysis_Table,11,FALSE)","v":{"$error":"#N/A"}},{"$f":"VLOOKUP(Table_Data_Table_13[[#This Row],[Item ID]],Analysis_Table,12,FALSE)","v":{"$error":"#N/A"}},{"$f":"VLOOKUP(Table_Data_Table_13[[#This Row],[Item ID]],Analysis_Table,13,FALSE)","v":{"$error":"#N/A"}},{"$f":"VLOOKUP(Table_Data_Table_13[[#This Row],[Item ID]],Analysis_Table,14,FALSE)","v":{"$error":"#N/A"}},{"$f":"VLOOKUP(Table_Data_Table_13[[#This Row],[Item ID]],Analysis_Table,15,FALSE)","v":{"$error":"#N/A"}},{"$f":"VLOOKUP(Table_Data_Table_13[[#This Row],[Item ID]],Analysis_Table,16,FALSE)","v":{"$error":"#N/A"}},{"$f":"VLOOKUP(Table_Data_Table_13[[#This Row],[Item ID]],Analysis_Table,17,FALSE)","v":{"$error":"#N/A"}},{"$f":"VLOOKUP(Table_Data_Table_13[[#This Row],[Item ID]],Analysis_Table,18,FALSE)","v":{"$error":"#N/A"}},{"$f":"VLOOKUP(Table_Data_Table_13[[#This Row],[Item ID]],Analysis_Table,19,FALSE)","v":{"$error":"#N/A"}},null,null,1]
["",null,null,null,null,null,null,null,null,0,null,null,null,{"$f":"VLOOKUP(Table_Data_Table_13[[#This Row],[Item ID]],Analysis_Table,8,FALSE)","v":{"$error":"#N/A"}},{"$f":"VLOOKUP(Table_Data_Table_13[[#This Row],[Item ID]],Analysis_Table,9,FALSE)","v":{"$error":"#N/A"}},{"$f":"VLOOKUP(Table_Data_Table_13[[#This Row],[Item ID]],Analysis_Table,10,FALSE)","v":{"$error":"#N/A"}},{"$f":"VLOOKUP(Table_Data_Table_13[[#This Row],[Item ID]],Analysis_Table,11,FALSE)","v":{"$error":"#N/A"}},{"$f":"VLOOKUP(Table_Data_Table_13[[#This Row],[Item ID]],Analysis_Table,12,FALSE)","v":{"$error":"#N/A"}},{"$f":"VLOOKUP(Table_Data_Table_13[[#This Row],[Item ID]],Analysis_Table,13,FALSE)","v":{"$error":"#N/A"}},{"$f":"VLOOKUP(Table_Data_Table_13[[#This Row],[Item ID]],Analysis_Table,14,FALSE)","v":{"$error":"#N/A"}},{"$f":"VLOOKUP(Table_Data_Table_13[[#This Row],[Item ID]],Analysis_Table,15,FALSE)","v":{"$error":"#N/A"}},{"$f":"VLOOKUP(Table_Data_Table_13[[#This Row],[Item ID]],Analysis_Table,16,FALSE)","v":{"$error":"#N/A"}},{"$f":"VLOOKUP(Table_Data_Table_13[[#This Row],[Item ID]],Analysis_Table,17,FALSE)","v":{"$error":"#N/A"}},{"$f":"VLOOKUP(Table_Data_Table_13[[#This Row],[Item ID]],Analysis_Table,18,FALSE)","v":{"$error":"#N/A"}},{"$f":"VLOOKUP(Table_Data_Table_13[[#This Row],[Item ID]],Analysis_Table,19,FALSE)","v":{"$error":"#N/A"}},null,null,1]
["",null,null,null,null,null,null,null,null,0,null,null,null,{"$f":"VLOOKUP(Table_Data_Table_13[[#This Row],[Item ID]],Analysis_Table,8,FALSE)","v":{"$error":"#N/A"}},{"$f":"VLOOKUP(Table_Data_Table_13[[#This Row],[Item ID]],Analysis_Table,9,FALSE)","v":{"$error":"#N/A"}},{"$f":"VLOOKUP(Table_Data_Table_13[[#This Row],[Item ID]],Analysis_Table,10,FALSE)","v":{"$error":"#N/A"}},{"$f":"VLOOKUP(Table_Data_Table_13[[#This Row],[Item ID]],Analysis_Table,11,FALSE)","v":{"$error":"#N/A"}},{"$f":"VLOOKUP(Table_Data_Table_13[[#This Row],[Item ID]],Analysis_Table,12,FALSE)","v":{"$error":"#N/A"}},{"$f":"VLOOKUP(Table_Data_Table_13[[#This Row],[Item ID]],Analysis_Table,13,FALSE)","v":{"$error":"#N/A"}},{"$f":"VLOOKUP(Table_Data_Table_13[[#This Row],[Item ID]],Analysis_Table,14,FALSE)","v":{"$error":"#N/A"}},{"$f":"VLOOKUP(Table_Data_Table_13[[#This Row],[Item ID]],Analysis_Table,15,FALSE)","v":{"$error":"#N/A"}},{"$f":"VLOOKUP(Table_Data_Table_13[[#This Row],[Item ID]],Analysis_Table,16,FALSE)","v":{"$error":"#N/A"}},{"$f":"VLOOKUP(Table_Data_Table_13[[#This Row],[Item ID]],Analysis_Table,17,FALSE)","v":{"$error":"#N/A"}},{"$f":"VLOOKUP(Table_Data_Table_13[[#This Row],[Item ID]],Analysis_Table,18,FALSE)","v":{"$error":"#N/A"}},{"$f":"VLOOKUP(Table_Data_Table_13[[#This Row],[Item ID]],Analysis_Table,19,FALSE)","v":{"$error":"#N/A"}},null,null,1]
["",null,null,null,null,null,null,null,null,0,null,null,null,{"$f":"VLOOKUP(Table_Data_Table_13[[#This Row],[Item ID]],Analysis_Table,8,FALSE)","v":{"$error":"#N/A"}},{"$f":"VLOOKUP(Table_Data_Table_13[[#This Row],[Item ID]],Analysis_Table,9,FALSE)","v":{"$error":"#N/A"}},{"$f":"VLOOKUP(Table_Data_Table_13[[#This Row],[Item ID]],Analysis_Table,10,FALSE)","v":{"$error":"#N/A"}},{"$f":"VLOOKUP(Table_Data_Table_13[[#This Row],[Item ID]],Analysis_Table,11,FALSE)","v":{"$error":"#N/A"}},{"$f":"VLOOKUP(Table_Data_Table_13[[#This Row],[Item ID]],Analysis_Table,12,FALSE)","v":{"$error":"#N/A"}},{"$f":"VLOOKUP(Table_Data_Table_13[[#This Row],[Item ID]],Analysis_Table,13,FALSE)","v":{"$error":"#N/A"}},{"$f":"VLOOKUP(Table_Data_Table_13[[#This Row],[Item ID]],Analysis_Table,14,FALSE)","v":{"$error":"#N/A"}},{"$f":"VLOOKUP(Table_Data_Table_13[[#This Row],[Item ID]],Analysis_Table,15,FALSE)","v":{"$error":"#N/A"}},{"$f":"VLOOKUP(Table_Data_Table_13[[#This Row],[Item ID]],Analysis_Table,16,FALSE)","v":{"$error":"#N/A"}},{"$f":"VLOOKUP(Table_Data_Table_13[[#This Row],[Item ID]],Analysis_Table,17,FALSE)","v":{"$error":"#N/A"}},{"$f":"VLOOKUP(Table_Data_Table_13[[#This Row],[Item ID]],Analysis_Table,18,FALSE)","v":{"$error":"#N/A"}},{"$f":"VLOOKUP(Table_Data_Table_13[[#This Row],[Item ID]],Analysis_Table,19,FALSE)","v":{"$error":"#N/A"}},null,null,1]
["",null,null,null,null,null,null,null,null,0,null,null,null,{"$f":"VLOOKUP(Table_Data_Table_13[[#This Row],[Item ID]],Analysis_Table,8,FALSE)","v":{"$error":"#N/A"}},{"$f":"VLOOKUP(Table_Data_Table_13[[#This Row],[Item ID]],Analysis_Table,9,FALSE)","v":{"$error":"#N/A"}},{"$f":"VLOOKUP(Table_Data_Table_13[[#This Row],[Item ID]],Analysis_Table,10,FALSE)","v":{"$error":"#N/A"}},{"$f":"VLOOKUP(Table_Data_Table_13[[#This Row],[Item ID]],Analysis_Table,11,FALSE)","v":{"$error":"#N/A"}},{"$f":"VLOOKUP(Table_Data_Table_13[[#This Row],[Item ID]],Analysis_Table,12,FALSE)","v":{"$error":"#N/A"}},{"$f":"VLOOKUP(Table_Data_Table_13[[#This Row],[Item ID]],Analysis_Table,13,FALSE)","v":{"$error":"#N/A"}},{"$f":"VLOOKUP(Table_Data_Table_13[[#This Row],[Item ID]],Analysis_Table,14,FALSE)","v":{"$error":"#N/A"}},{"$f":"VLOOKUP(Table_Data_Table_13[[#This Row],[Item ID]],Analysis_Table,15,FALSE)","v":{"$error":"#N/A"}},{"$f":"VLOOKUP(Table_Data_Table_13[[#This Row],[Item ID]],Analysis_Table,16,FALSE)","v":{"$error":"#N/A"}},{"$f":"VLOOKUP(Table_Data_Table_13[[#This Row],[Item ID]],Analysis_Table,17,FALSE)","v":{"$error":"#N/A"}},{"$f":"VLOOKUP(Table_Data_Table_13[[#This Row],[Item ID]],Analysis_Table,18,FALSE)","v":{"$error":"#N/A"}},{"$f":"VLOOKUP(Table_Data_Table_13[[#This Row],[Item ID]],Analysis_Table,19,FALSE)","v":{"$error":"#N/A"}},null,null,1]
["",null,null,null,null,null,null,null,null,0,null,null,null,{"$f":"VLOOKUP(Table_Data_Table_13[[#This Row],[Item ID]],Analysis_Table,8,FALSE)","v":{"$error":"#N/A"}},{"$f":"VLOOKUP(Table_Data_Table_13[[#This Row],[Item ID]],Analysis_Table,9,FALSE)","v":{"$error":"#N/A"}},{"$f":"VLOOKUP(Table_Data_Table_13[[#This Row],[Item ID]],Analysis_Table,10,FALSE)","v":{"$error":"#N/A"}},{"$f":"VLOOKUP(Table_Data_Table_13[[#This Row],[Item ID]],Analysis_Table,11,FALSE)","v":{"$error":"#N/A"}},{"$f":"VLOOKUP(Table_Data_Table_13[[#This Row],[Item ID]],Analysis_Table,12,FALSE)","v":{"$error":"#N/A"}},{"$f":"VLOOKUP(Table_Data_Table_13[[#This Row],[Item ID]],Analysis_Table,13,FALSE)","v":{"$error":"#N/A"}},{"$f":"VLOOKUP(Table_Data_Table_13[[#This Row],[Item ID]],Analysis_Table,14,FALSE)","v":{"$error":"#N/A"}},{"$f":"VLOOKUP(Table_Data_Table_13[[#This Row],[Item ID]],Analysis_Table,15,FALSE)","v":{"$error":"#N/A"}},{"$f":"VLOOKUP(Table_Data_Table_13[[#This Row],[Item ID]],Analysis_Table,16,FALSE)","v":{"$error":"#N/A"}},{"$f":"VLOOKUP(Table_Data_Table_13[[#This Row],[Item ID]],Analysis_Table,17,FALSE)","v":{"$error":"#N/A"}},{"$f":"VLOOKUP(Table_Data_Table_13[[#This Row],[Item ID]],Analysis_Table,18,FALSE)","v":{"$error":"#N/A"}},{"$f":"VLOOKUP(Table_Data_Table_13[[#This Row],[Item ID]],Analysis_Table,19,FALSE)","v":{"$error":"#N/A"}},null,null,1]
["",null,null,null,null,null,null,null,null,0,null,null,null,{"$f":"VLOOKUP(Table_Data_Table_13[[#This Row],[Item ID]],Analysis_Table,8,FALSE)","v":{"$error":"#N/A"}},{"$f":"VLOOKUP(Table_Data_Table_13[[#This Row],[Item ID]],Analysis_Table,9,FALSE)","v":{"$error":"#N/A"}},{"$f":"VLOOKUP(Table_Data_Table_13[[#This Row],[Item ID]],Analysis_Table,10,FALSE)","v":{"$error":"#N/A"}},{"$f":"VLOOKUP(Table_Data_Table_13[[#This Row],[Item ID]],Analysis_Table,11,FALSE)","v":{"$error":"#N/A"}},{"$f":"VLOOKUP(Table_Data_Table_13[[#This Row],[Item ID]],Analysis_Table,12,FALSE)","v":{"$error":"#N/A"}},{"$f":"VLOOKUP(Table_Data_Table_13[[#This Row],[Item ID]],Analysis_Table,13,FALSE)","v":{"$error":"#N/A"}},{"$f":"VLOOKUP(Table_Data_Table_13[[#This Row],[Item ID]],Analysis_Table,14,FALSE)","v":{"$error":"#N/A"}},{"$f":"VLOOKUP(Table_Data_Table_13[[#This Row],[Item ID]],Analysis_Table,15,FALSE)","v":{"$error":"#N/A"}},{"$f":"VLOOKUP(Table_Data_Table_13[[#This Row],[Item ID]],Analysis_Table,16,FALSE)","v":{"$error":"#N/A"}},{"$f":"VLOOKUP(Table_Data_Table_13[[#This Row],[Item ID]],Analysis_Table,17,FALSE)","v":{"$error":"#N/A"}},{"$f":"VLOOKUP(Table_Data_Table_13[[#This Row],[Item ID]],Analysis_Table,18,FALSE)","v":{"$error":"#N/A"}},{"$f":"VLOOKUP(Table_Data_Table_13[[#This Row],[Item ID]],Analysis_Table,19,FALSE)","v":{"$error":"#N/A"}},null,null,1]
["",null,null,null,null,null,null,null,null,0,null,null,null,{"$f":"VLOOKUP(Table_Data_Table_13[[#This Row],[Item ID]],Analysis_Table,8,FALSE)","v":{"$error":"#N/A"}},{"$f":"VLOOKUP(Table_Data_Table_13[[#This Row],[Item ID]],Analysis_Table,9,FALSE)","v":{"$error":"#N/A"}},{"$f":"VLOOKUP(Table_Data_Table_13[[#This Row],[Item ID]],Analysis_Table,10,FALSE)","v":{"$error":"#N/A"}},{"$f":"VLOOKUP(Table_Data_Table_13[[#This Row],[Item ID]],Analysis_Table,11,FALSE)","v":{"$error":"#N/A"}},{"$f":"VLOOKUP(Table_Data_Table_13[[#This Row],[Item ID]],Analysis_Table,12,FALSE)","v":{"$error":"#N/A"}},{"$f":"VLOOKUP(Table_Data_Table_13[[#This Row],[Item ID]],Analysis_Table,13,FALSE)","v":{"$error":"#N/A"}},{"$f":"VLOOKUP(Table_Data_Table_13[[#This Row],[Item ID]],Analysis_Table,14,FALSE)","v":{"$error":"#N/A"}},{"$f":"VLOOKUP(Table_Data_Table_13[[#This Row],[Item ID]],Analysis_Table,15,FALSE)","v":{"$error":"#N/A"}},{"$f":"VLOOKUP(Table_Data_Table_13[[#This Row],[Item ID]],Analysis_Table,16,FALSE)","v":{"$error":"#N/A"}},{"$f":"VLOOKUP(Table_Data_Table_13[[#This Row],[Item ID]],Analysis_Table,17,FALSE)","v":{"$error":"#N/A"}},{"$f":"VLOOKUP(Table_Data_Table_13[[#This Row],[Item ID]],Analysis_Table,18,FALSE)","v":{"$error":"#N/A"}},{"$f":"VLOOKUP(Table_Data_Table_13[[#This Row],[Item ID]],Analysis_Table,19,FALSE)","v":{"$error":"#N/A"}},null,null,1]
["",null,null,null,null,null,null,null,null,0,null,null,null,{"$f":"VLOOKUP(Table_Data_Table_13[[#This Row],[Item ID]],Analysis_Table,8,FALSE)","v":{"$error":"#N/A"}},{"$f":"VLOOKUP(Table_Data_Table_13[[#This Row],[Item ID]],Analysis_Table,9,FALSE)","v":{"$error":"#N/A"}},{"$f":"VLOOKUP(Table_Data_Table_13[[#This Row],[Item ID]],Analysis_Table,10,FALSE)","v":{"$error":"#N/A"}},{"$f":"VLOOKUP(Table_Data_Table_13[[#This Row],[Item ID]],Analysis_Table,11,FALSE)","v":{"$error":"#N/A"}},{"$f":"VLOOKUP(Table_Data_Table_13[[#This Row],[Item ID]],Analysis_Table,12,FALSE)","v":{"$error":"#N/A"}},{"$f":"VLOOKUP(Table_Data_Table_13[[#This Row],[Item ID]],Analysis_Table,13,FALSE)","v":{"$error":"#N/A"}},{"$f":"VLOOKUP(Table_Data_Table_13[[#This Row],[Item ID]],Analysis_Table,14,FALSE)","v":{"$error":"#N/A"}},{"$f":"VLOOKUP(Table_Data_Table_13[[#This Row],[Item ID]],Analysis_Table,15,FALSE)","v":{"$error":"#N/A"}},{"$f":"VLOOKUP(Table_Data_Table_13[[#This Row],[Item ID]],Analysis_Table,16,FALSE)","v":{"$error":"#N/A"}},{"$f":"VLOOKUP(Table_Data_Table_13[[#This Row],[Item ID]],Analysis_Table,17,FALSE)","v":{"$error":"#N/A"}},{"$f":"VLOOKUP(Table_Data_Table_13[[#This Row],[Item ID]],Analysis_Table,18,FALSE)","v":{"$error":"#N/A"}},{"$f":"VLOOKUP(Table_Data_Table_13[[#This Row],[Item ID]],Analysis_Table,19,FALSE)","v":{"$error":"#N/A"}},null,null,1]
["",null,null,null,null,null,null,null,null,0,null,null,null,{"$f":"VLOOKUP(Table_Data_Table_13[[#This Row],[Item ID]],Analysis_Table,8,FALSE)","v":{"$error":"#N/A"}},{"$f":"VLOOKUP(Table_Data_Table_13[[#This Row],[Item ID]],Analysis_Table,9,FALSE)","v":{"$error":"#N/A"}},{"$f":"VLOOKUP(Table_Data_Table_13[[#This Row],[Item ID]],Analysis_Table,10,FALSE)","v":{"$error":"#N/A"}},{"$f":"VLOOKUP(Table_Data_Table_13[[#This Row],[Item ID]],Analysis_Table,11,FALSE)","v":{"$error":"#N/A"}},{"$f":"VLOOKUP(Table_Data_Table_13[[#This Row],[Item ID]],Analysis_Table,12,FALSE)","v":{"$error":"#N/A"}},{"$f":"VLOOKUP(Table_Data_Table_13[[#This Row],[Item ID]],Analysis_Table,13,FALSE)","v":{"$error":"#N/A"}},{"$f":"VLOOKUP(Table_Data_Table_13[[#This Row],[Item ID]],Analysis_Table,14,FALSE)","v":{"$error":"#N/A"}},{"$f":"VLOOKUP(Table_Data_Table_13[[#This Row],[Item ID]],Analysis_Table,15,FALSE)","v":{"$error":"#N/A"}},{"$f":"VLOOKUP(Table_Data_Table_13[[#This Row],[Item ID]],Analysis_Table,16,FALSE)","v":{"$error":"#N/A"}},{"$f":"VLOOKUP(Table_Data_Table_13[[#This Row],[Item ID]],Analysis_Table,17,FALSE)","v":{"$error":"#N/A"}},{"$f":"VLOOKUP(Table_Data_Table_13[[#This Row],[Item ID]],Analysis_Table,18,FALSE)","v":{"$error":"#N/A"}},{"$f":"VLOOKUP(Table_Data_Table_13[[#This Row],[Item ID]],Analysis_Table,19,FALSE)","v":{"$error":"#N/A"}},null,null,1]
["",null,null,null,null,null,null,null,null,0,null,null,null,{"$f":"VLOOKUP(Table_Data_Table_13[[#This Row],[Item ID]],Analysis_Table,8,FALSE)","v":{"$error":"#N/A"}},{"$f":"VLOOKUP(Table_Data_Table_13[[#This Row],[Item ID]],Analysis_Table,9,FALSE)","v":{"$error":"#N/A"}},{"$f":"VLOOKUP(Table_Data_Table_13[[#This Row],[Item ID]],Analysis_Table,10,FALSE)","v":{"$error":"#N/A"}},{"$f":"VLOOKUP(Table_Data_Table_13[[#This Row],[Item ID]],Analysis_Table,11,FALSE)","v":{"$error":"#N/A"}},{"$f":"VLOOKUP(Table_Data_Table_13[[#This Row],[Item ID]],Analysis_Table,12,FALSE)","v":{"$error":"#N/A"}},{"$f":"VLOOKUP(Table_Data_Table_13[[#This Row],[Item ID]],Analysis_Table,13,FALSE)","v":{"$error":"#N/A"}},{"$f":"VLOOKUP(Table_Data_Table_13[[#This Row],[Item ID]],Analysis_Table,14,FALSE)","v":{"$error":"#N/A"}},{"$f":"VLOOKUP(Table_Data_Table_13[[#This Row],[Item ID]],Analysis_Table,15,FALSE)","v":{"$error":"#N/A"}},{"$f":"VLOOKUP(Table_Data_Table_13[[#This Row],[Item ID]],Analysis_Table,16,FALSE)","v":{"$error":"#N/A"}},{"$f":"VLOOKUP(Table_Data_Table_13[[#This Row],[Item ID]],Analysis_Table,17,FALSE)","v":{"$error":"#N/A"}},{"$f":"VLOOKUP(Table_Data_Table_13[[#This Row],[Item ID]],Analysis_Table,18,FALSE)","v":{"$error":"#N/A"}},{"$f":"VLOOKUP(Table_Data_Table_13[[#This Row],[Item ID]],Analysis_Table,19,FALSE)","v":{"$error":"#N/A"}},null,null,1]
["",null,null,null,null,null,null,null,null,0,null,null,null,{"$f":"VLOOKUP(Table_Data_Table_13[[#This Row],[Item ID]],Analysis_Table,8,FALSE)","v":{"$error":"#N/A"}},{"$f":"VLOOKUP(Table_Data_Table_13[[#This Row],[Item ID]],Analysis_Table,9,FALSE)","v":{"$error":"#N/A"}},{"$f":"VLOOKUP(Table_Data_Table_13[[#This Row],[Item ID]],Analysis_Table,10,FALSE)","v":{"$error":"#N/A"}},{"$f":"VLOOKUP(Table_Data_Table_13[[#This Row],[Item ID]],Analysis_Table,11,FALSE)","v":{"$error":"#N/A"}},{"$f":"VLOOKUP(Table_Data_Table_13[[#This Row],[Item ID]],Analysis_Table,12,FALSE)","v":{"$error":"#N/A"}},{"$f":"VLOOKUP(Table_Data_Table_13[[#This Row],[Item ID]],Analysis_Table,13,FALSE)","v":{"$error":"#N/A"}},{"$f":"VLOOKUP(Table_Data_Table_13[[#This Row],[Item ID]],Analysis_Table,14,FALSE)","v":{"$error":"#N/A"}},{"$f":"VLOOKUP(Table_Data_Table_13[[#This Row],[Item ID]],Analysis_Table,15,FALSE)","v":{"$error":"#N/A"}},{"$f":"VLOOKUP(Table_Data_Table_13[[#This Row],[Item ID]],Analysis_Table,16,FALSE)","v":{"$error":"#N/A"}},{"$f":"VLOOKUP(Table_Data_Table_13[[#This Row],[Item ID]],Analysis_Table,17,FALSE)","v":{"$error":"#N/A"}},{"$f":"VLOOKUP(Table_Data_Table_13[[#This Row],[Item ID]],Analysis_Table,18,FALSE)","v":{"$error":"#N/A"}},{"$f":"VLOOKUP(Table_Data_Table_13[[#This Row],[Item ID]],Analysis_Table,19,FALSE)","v":{"$error":"#N/A"}},null,null,1]
["",null,null,null,null,null,null,null,null,0,null,null,null,{"$f":"VLOOKUP(Table_Data_Table_13[[#This Row],[Item ID]],Analysis_Table,8,FALSE)","v":{"$error":"#N/A"}},{"$f":"VLOOKUP(Table_Data_Table_13[[#This Row],[Item ID]],Analysis_Table,9,FALSE)","v":{"$error":"#N/A"}},{"$f":"VLOOKUP(Table_Data_Table_13[[#This Row],[Item ID]],Analysis_Table,10,FALSE)","v":{"$error":"#N/A"}},{"$f":"VLOOKUP(Table_Data_Table_13[[#This Row],[Item ID]],Analysis_Table,11,FALSE)","v":{"$error":"#N/A"}},{"$f":"VLOOKUP(Table_Data_Table_13[[#This Row],[Item ID]],Analysis_Table,12,FALSE)","v":{"$error":"#N/A"}},{"$f":"VLOOKUP(Table_Data_Table_13[[#This Row],[Item ID]],Analysis_Table,13,FALSE)","v":{"$error":"#N/A"}},{"$f":"VLOOKUP(Table_Data_Table_13[[#This Row],[Item ID]],Analysis_Table,14,FALSE)","v":{"$error":"#N/A"}},{"$f":"VLOOKUP(Table_Data_Table_13[[#This Row],[Item ID]],Analysis_Table,15,FALSE)","v":{"$error":"#N/A"}},{"$f":"VLOOKUP(Table_Data_Table_13[[#This Row],[Item ID]],Analysis_Table,16,FALSE)","v":{"$error":"#N/A"}},{"$f":"VLOOKUP(Table_Data_Table_13[[#This Row],[Item ID]],Analysis_Table,17,FALSE)","v":{"$error":"#N/A"}},{"$f":"VLOOKUP(Table_Data_Table_13[[#This Row],[Item ID]],Analysis_Table,18,FALSE)","v":{"$error":"#N/A"}},{"$f":"VLOOKUP(Table_Data_Table_13[[#This Row],[Item ID]],Analysis_Table,19,FALSE)","v":{"$error":"#N/A"}},null,null,1]
["",null,null,null,null,null,null,null,null,0,null,null,null,{"$f":"VLOOKUP(Table_Data_Table_13[[#This Row],[Item ID]],Analysis_Table,8,FALSE)","v":{"$error":"#N/A"}},{"$f":"VLOOKUP(Table_Data_Table_13[[#This Row],[Item ID]],Analysis_Table,9,FALSE)","v":{"$error":"#N/A"}},{"$f":"VLOOKUP(Table_Data_Table_13[[#This Row],[Item ID]],Analysis_Table,10,FALSE)","v":{"$error":"#N/A"}},{"$f":"VLOOKUP(Table_Data_Table_13[[#This Row],[Item ID]],Analysis_Table,11,FALSE)","v":{"$error":"#N/A"}},{"$f":"VLOOKUP(Table_Data_Table_13[[#This Row],[Item ID]],Analysis_Table,12,FALSE)","v":{"$error":"#N/A"}},{"$f":"VLOOKUP(Table_Data_Table_13[[#This Row],[Item ID]],Analysis_Table,13,FALSE)","v":{"$error":"#N/A"}},{"$f":"VLOOKUP(Table_Data_Table_13[[#This Row],[Item ID]],Analysis_Table,14,FALSE)","v":{"$error":"#N/A"}},{"$f":"VLOOKUP(Table_Data_Table_13[[#This Row],[Item ID]],Analysis_Table,15,FALSE)","v":{"$error":"#N/A"}},{"$f":"VLOOKUP(Table_Data_Table_13[[#This Row],[Item ID]],Analysis_Table,16,FALSE)","v":{"$error":"#N/A"}},{"$f":"VLOOKUP(Table_Data_Table_13[[#This Row],[Item ID]],Analysis_Table,17,FALSE)","v":{"$error":"#N/A"}},{"$f":"VLOOKUP(Table_Data_Table_13[[#This Row],[Item ID]],Analysis_Table,18,FALSE)","v":{"$error":"#N/A"}},{"$f":"VLOOKUP(Table_Data_Table_13[[#This Row],[Item ID]],Analysis_Table,19,FALSE)","v":{"$error":"#N/A"}},null,null,1]
["",null,null,null,null,null,null,null,null,0,null,null,null,{"$f":"VLOOKUP(Table_Data_Table_13[[#This Row],[Item ID]],Analysis_Table,8,FALSE)","v":{"$error":"#N/A"}},{"$f":"VLOOKUP(Table_Data_Table_13[[#This Row],[Item ID]],Analysis_Table,9,FALSE)","v":{"$error":"#N/A"}},{"$f":"VLOOKUP(Table_Data_Table_13[[#This Row],[Item ID]],Analysis_Table,10,FALSE)","v":{"$error":"#N/A"}},{"$f":"VLOOKUP(Table_Data_Table_13[[#This Row],[Item ID]],Analysis_Table,11,FALSE)","v":{"$error":"#N/A"}},{"$f":"VLOOKUP(Table_Data_Table_13[[#This Row],[Item ID]],Analysis_Table,12,FALSE)","v":{"$error":"#N/A"}},{"$f":"VLOOKUP(Table_Data_Table_13[[#This Row],[Item ID]],Analysis_Table,13,FALSE)","v":{"$error":"#N/A"}},{"$f":"VLOOKUP(Table_Data_Table_13[[#This Row],[Item ID]],Analysis_Table,14,FALSE)","v":{"$error":"#N/A"}},{"$f":"VLOOKUP(Table_Data_Table_13[[#This Row],[Item ID]],Analysis_Table,15,FALSE)","v":{"$error":"#N/A"}},{"$f":"VLOOKUP(Table_Data_Table_13[[#This Row],[Item ID]],Analysis_Table,16,FALSE)","v":{"$error":"#N/A"}},{"$f":"VLOOKUP(Table_Data_Table_13[[#This Row],[Item ID]],Analysis_Table,17,FALSE)","v":{"$error":"#N/A"}},{"$f":"VLOOKUP(Table_Data_Table_13[[#This Row],[Item ID]],Analysis_Table,18,FALSE)","v":{"$error":"#N/A"}},{"$f":"VLOOKUP(Table_Data_Table_13[[#This Row],[Item ID]],Analysis_Table,19,FALSE)","v":{"$error":"#N/A"}},null,null,1]
["",null,null,null,null,null,null,null,null,0,null,null,null,{"$f":"VLOOKUP(Table_Data_Table_13[[#This Row],[Item ID]],Analysis_Table,8,FALSE)","v":{"$error":"#N/A"}},{"$f":"VLOOKUP(Table_Data_Table_13[[#This Row],[Item ID]],Analysis_Table,9,FALSE)","v":{"$error":"#N/A"}},{"$f":"VLOOKUP(Table_Data_Table_13[[#This Row],[Item ID]],Analysis_Table,10,FALSE)","v":{"$error":"#N/A"}},{"$f":"VLOOKUP(Table_Data_Table_13[[#This Row],[Item ID]],Analysis_Table,11,FALSE)","v":{"$error":"#N/A"}},{"$f":"VLOOKUP(Table_Data_Table_13[[#This Row],[Item ID]],Analysis_Table,12,FALSE)","v":{"$error":"#N/A"}},{"$f":"VLOOKUP(Table_Data_Table_13[[#This Row],[Item ID]],Analysis_Table,13,FALSE)","v":{"$error":"#N/A"}},{"$f":"VLOOKUP(Table_Data_Table_13[[#This Row],[Item ID]],Analysis_Table,14,FALSE)","v":{"$error":"#N/A"}},{"$f":"VLOOKUP(Table_Data_Table_13[[#This Row],[Item ID]],Analysis_Table,15,FALSE)","v":{"$error":"#N/A"}},{"$f":"VLOOKUP(Table_Data_Table_13[[#This Row],[Item ID]],Analysis_Table,16,FALSE)","v":{"$error":"#N/A"}},{"$f":"VLOOKUP(Table_Data_Table_13[[#This Row],[Item ID]],Analysis_Table,17,FALSE)","v":{"$error":"#N/A"}},{"$f":"VLOOKUP(Table_Data_Table_13[[#This Row],[Item ID]],Analysis_Table,18,FALSE)","v":{"$error":"#N/A"}},{"$f":"VLOOKUP(Table_Data_Table_13[[#This Row],[Item ID]],Analysis_Table,19,FALSE)","v":{"$error":"#N/A"}},null,null,1]
["",null,null,null,null,null,null,null,null,0,null,null,null,{"$f":"VLOOKUP(Table_Data_Table_13[[#This Row],[Item ID]],Analysis_Table,8,FALSE)","v":{"$error":"#N/A"}},{"$f":"VLOOKUP(Table_Data_Table_13[[#This Row],[Item ID]],Analysis_Table,9,FALSE)","v":{"$error":"#N/A"}},{"$f":"VLOOKUP(Table_Data_Table_13[[#This Row],[Item ID]],Analysis_Table,10,FALSE)","v":{"$error":"#N/A"}},{"$f":"VLOOKUP(Table_Data_Table_13[[#This Row],[Item ID]],Analysis_Table,11,FALSE)","v":{"$error":"#N/A"}},{"$f":"VLOOKUP(Table_Data_Table_13[[#This Row],[Item ID]],Analysis_Table,12,FALSE)","v":{"$error":"#N/A"}},{"$f":"VLOOKUP(Table_Data_Table_13[[#This Row],[Item ID]],Analysis_Table,13,FALSE)","v":{"$error":"#N/A"}},{"$f":"VLOOKUP(Table_Data_Table_13[[#This Row],[Item ID]],Analysis_Table,14,FALSE)","v":{"$error":"#N/A"}},{"$f":"VLOOKUP(Table_Data_Table_13[[#This Row],[Item ID]],Analysis_Table,15,FALSE)","v":{"$error":"#N/A"}},{"$f":"VLOOKUP(Table_Data_Table_13[[#This Row],[Item ID]],Analysis_Table,16,FALSE)","v":{"$error":"#N/A"}},{"$f":"VLOOKUP(Table_Data_Table_13[[#This Row],[Item ID]],Analysis_Table,17,FALSE)","v":{"$error":"#N/A"}},{"$f":"VLOOKUP(Table_Data_Table_13[[#This Row],[Item ID]],Analysis_Table,18,FALSE)","v":{"$error":"#N/A"}},{"$f":"VLOOKUP(Table_Data_Table_13[[#This Row],[Item ID]],Analysis_Table,19,FALSE)","v":{"$error":"#N/A"}},null,null,1]
["",null,null,null,null,null,null,null,null,0,null,null,null,{"$f":"VLOOKUP(Table_Data_Table_13[[#This Row],[Item ID]],Analysis_Table,8,FALSE)","v":{"$error":"#N/A"}},{"$f":"VLOOKUP(Table_Data_Table_13[[#This Row],[Item ID]],Analysis_Table,9,FALSE)","v":{"$error":"#N/A"}},{"$f":"VLOOKUP(Table_Data_Table_13[[#This Row],[Item ID]],Analysis_Table,10,FALSE)","v":{"$error":"#N/A"}},{"$f":"VLOOKUP(Table_Data_Table_13[[#This Row],[Item ID]],Analysis_Table,11,FALSE)","v":{"$error":"#N/A"}},{"$f":"VLOOKUP(Table_Data_Table_13[[#This Row],[Item ID]],Analysis_Table,12,FALSE)","v":{"$error":"#N/A"}},{"$f":"VLOOKUP(Table_Data_Table_13[[#This Row],[Item ID]],Analysis_Table,13,FALSE)","v":{"$error":"#N/A"}},{"$f":"VLOOKUP(Table_Data_Table_13[[#This Row],[Item ID]],Analysis_Table,14,FALSE)","v":{"$error":"#N/A"}},{"$f":"VLOOKUP(Table_Data_Table_13[[#This Row],[Item ID]],Analysis_Table,15,FALSE)","v":{"$error":"#N/A"}},{"$f":"VLOOKUP(Table_Data_Table_13[[#This Row],[Item ID]],Analysis_Table,16,FALSE)","v":{"$error":"#N/A"}},{"$f":"VLOOKUP(Table_Data_Table_13[[#This Row],[Item ID]],Analysis_Table,17,FALSE)","v":{"$error":"#N/A"}},{"$f":"VLOOKUP(Table_Data_Table_13[[#This Row],[Item ID]],Analysis_Table,18,FALSE)","v":{"$error":"#N/A"}},{"$f":"VLOOKUP(Table_Data_Table_13[[#This Row],[Item ID]],Analysis_Table,19,FALSE)","v":{"$error":"#N/A"}},null,null,1]
["",null,null,null,null,null,null,null,null,0,null,null,null,{"$f":"VLOOKUP(Table_Data_Table_13[[#This Row],[Item ID]],Analysis_Table,8,FALSE)","v":{"$error":"#N/A"}},{"$f":"VLOOKUP(Table_Data_Table_13[[#This Row],[Item ID]],Analysis_Table,9,FALSE)","v":{"$error":"#N/A"}},{"$f":"VLOOKUP(Table_Data_Table_13[[#This Row],[Item ID]],Analysis_Table,10,FALSE)","v":{"$error":"#N/A"}},{"$f":"VLOOKUP(Table_Data_Table_13[[#This Row],[Item ID]],Analysis_Table,11,FALSE)","v":{"$error":"#N/A"}},{"$f":"VLOOKUP(Table_Data_Table_13[[#This Row],[Item ID]],Analysis_Table,12,FALSE)","v":{"$error":"#N/A"}},{"$f":"VLOOKUP(Table_Data_Table_13[[#This Row],[Item ID]],Analysis_Table,13,FALSE)","v":{"$error":"#N/A"}},{"$f":"VLOOKUP(Table_Data_Table_13[[#This Row],[Item ID]],Analysis_Table,14,FALSE)","v":{"$error":"#N/A"}},{"$f":"VLOOKUP(Table_Data_Table_13[[#This Row],[Item ID]],Analysis_Table,15,FALSE)","v":{"$error":"#N/A"}},{"$f":"VLOOKUP(Table_Data_Table_13[[#This Row],[Item ID]],Analysis_Table,16,FALSE)","v":{"$error":"#N/A"}},{"$f":"VLOOKUP(Table_Data_Table_13[[#This Row],[Item ID]],Analysis_Table,17,FALSE)","v":{"$error":"#N/A"}},{"$f":"VLOOKUP(Table_Data_Table_13[[#This Row],[Item ID]],Analysis_Table,18,FALSE)","v":{"$error":"#N/A"}},{"$f":"VLOOKUP(Table_Data_Table_13[[#This Row],[Item ID]],Analysis_Table,19,FALSE)","v":{"$error":"#N/A"}},null,null,1]
["",null,null,null,null,null,null,null,null,0,null,null,null,{"$f":"VLOOKUP(Table_Data_Table_13[[#This Row],[Item ID]],Analysis_Table,8,FALSE)","v":{"$error":"#N/A"}},{"$f":"VLOOKUP(Table_Data_Table_13[[#This Row],[Item ID]],Analysis_Table,9,FALSE)","v":{"$error":"#N/A"}},{"$f":"VLOOKUP(Table_Data_Table_13[[#This Row],[Item ID]],Analysis_Table,10,FALSE)","v":{"$error":"#N/A"}},{"$f":"VLOOKUP(Table_Data_Table_13[[#This Row],[Item ID]],Analysis_Table,11,FALSE)","v":{"$error":"#N/A"}},{"$f":"VLOOKUP(Table_Data_Table_13[[#This Row],[Item ID]],Analysis_Table,12,FALSE)","v":{"$error":"#N/A"}},{"$f":"VLOOKUP(Table_Data_Table_13[[#This Row],[Item ID]],Analysis_Table,13,FALSE)","v":{"$error":"#N/A"}},{"$f":"VLOOKUP(Table_Data_Table_13[[#This Row],[Item ID]],Analysis_Table,14,FALSE)","v":{"$error":"#N/A"}},{"$f":"VLOOKUP(Table_Data_Table_13[[#This Row],[Item ID]],Analysis_Table,15,FALSE)","v":{"$error":"#N/A"}},{"$f":"VLOOKUP(Table_Data_Table_13[[#This Row],[Item ID]],Analysis_Table,16,FALSE)","v":{"$error":"#N/A"}},{"$f":"VLOOKUP(Table_Data_Table_13[[#This Row],[Item ID]],Analysis_Table,17,FALSE)","v":{"$error":"#N/A"}},{"$f":"VLOOKUP(Table_Data_Table_13[[#This Row],[Item ID]],Analysis_Table,18,FALSE)","v":{"$error":"#N/A"}},{"$f":"VLOOKUP(Table_Data_Table_13[[#This Row],[Item ID]],Analysis_Table,19,FALSE)","v":{"$error":"#N/A"}},null,null,1]
["",null,null,null,null,null,null,null,null,0,null,null,null,{"$f":"VLOOKUP(Table_Data_Table_13[[#This Row],[Item ID]],Analysis_Table,8,FALSE)","v":{"$error":"#N/A"}},{"$f":"VLOOKUP(Table_Data_Table_13[[#This Row],[Item ID]],Analysis_Table,9,FALSE)","v":{"$error":"#N/A"}},{"$f":"VLOOKUP(Table_Data_Table_13[[#This Row],[Item ID]],Analysis_Table,10,FALSE)","v":{"$error":"#N/A"}},{"$f":"VLOOKUP(Table_Data_Table_13[[#This Row],[Item ID]],Analysis_Table,11,FALSE)","v":{"$error":"#N/A"}},{"$f":"VLOOKUP(Table_Data_Table_13[[#This Row],[Item ID]],Analysis_Table,12,FALSE)","v":{"$error":"#N/A"}},{"$f":"VLOOKUP(Table_Data_Table_13[[#This Row],[Item ID]],Analysis_Table,13,FALSE)","v":{"$error":"#N/A"}},{"$f":"VLOOKUP(Table_Data_Table_13[[#This Row],[Item ID]],Analysis_Table,14,FALSE)","v":{"$error":"#N/A"}},{"$f":"VLOOKUP(Table_Data_Table_13[[#This Row],[Item ID]],Analysis_Table,15,FALSE)","v":{"$error":"#N/A"}},{"$f":"VLOOKUP(Table_Data_Table_13[[#This Row],[Item ID]],Analysis_Table,16,FALSE)","v":{"$error":"#N/A"}},{"$f":"VLOOKUP(Table_Data_Table_13[[#This Row],[Item ID]],Analysis_Table,17,FALSE)","v":{"$error":"#N/A"}},{"$f":"VLOOKUP(Table_Data_Table_13[[#This Row],[Item ID]],Analysis_Table,18,FALSE)","v":{"$error":"#N/A"}},{"$f":"VLOOKUP(Table_Data_Table_13[[#This Row],[Item ID]],Analysis_Table,19,FALSE)","v":{"$error":"#N/A"}},null,null,1]
["",null,null,null,null,null,null,null,null,0,null,null,null,{"$f":"VLOOKUP(Table_Data_Table_13[[#This Row],[Item ID]],Analysis_Table,8,FALSE)","v":{"$error":"#N/A"}},{"$f":"VLOOKUP(Table_Data_Table_13[[#This Row],[Item ID]],Analysis_Table,9,FALSE)","v":{"$error":"#N/A"}},{"$f":"VLOOKUP(Table_Data_Table_13[[#This Row],[Item ID]],Analysis_Table,10,FALSE)","v":{"$error":"#N/A"}},{"$f":"VLOOKUP(Table_Data_Table_13[[#This Row],[Item ID]],Analysis_Table,11,FALSE)","v":{"$error":"#N/A"}},{"$f":"VLOOKUP(Table_Data_Table_13[[#This Row],[Item ID]],Analysis_Table,12,FALSE)","v":{"$error":"#N/A"}},{"$f":"VLOOKUP(Table_Data_Table_13[[#This Row],[Item ID]],Analysis_Table,13,FALSE)","v":{"$error":"#N/A"}},{"$f":"VLOOKUP(Table_Data_Table_13[[#This Row],[Item ID]],Analysis_Table,14,FALSE)","v":{"$error":"#N/A"}},{"$f":"VLOOKUP(Table_Data_Table_13[[#This Row],[Item ID]],Analysis_Table,15,FALSE)","v":{"$error":"#N/A"}},{"$f":"VLOOKUP(Table_Data_Table_13[[#This Row],[Item ID]],Analysis_Table,16,FALSE)","v":{"$error":"#N/A"}},{"$f":"VLOOKUP(Table_Data_Table_13[[#This Row],[Item ID]],Analysis_Table,17,FALSE)","v":{"$error":"#N/A"}},{"$f":"VLOOKUP(Table_Data_Table_13[[#This Row],[Item ID]],Analysis_Table,18,FALSE)","v":{"$error":"#N/A"}},{"$f":"VLOOKUP(Table_Data_Table_13[[#This Row],[Item ID]],Analysis_Table,19,FALSE)","v":{"$error":"#N/A"}},null,null,1]
["",null,null,null,null,null,null,null,null,0,null,null,null,{"$f":"VLOOKUP(Table_Data_Table_13[[#This Row],[Item ID]],Analysis_Table,8,FALSE)","v":{"$error":"#N/A"}},{"$f":"VLOOKUP(Table_Data_Table_13[[#This Row],[Item ID]],Analysis_Table,9,FALSE)","v":{"$error":"#N/A"}},{"$f":"VLOOKUP(Table_Data_Table_13[[#This Row],[Item ID]],Analysis_Table,10,FALSE)","v":{"$error":"#N/A"}},{"$f":"VLOOKUP(Table_Data_Table_13[[#This Row],[Item ID]],Analysis_Table,11,FALSE)","v":{"$error":"#N/A"}},{"$f":"VLOOKUP(Table_Data_Table_13[[#This Row],[Item ID]],Analysis_Table,12,FALSE)","v":{"$error":"#N/A"}},{"$f":"VLOOKUP(Table_Data_Table_13[[#This Row],[Item ID]],Analysis_Table,13,FALSE)","v":{"$error":"#N/A"}},{"$f":"VLOOKUP(Table_Data_Table_13[[#This Row],[Item ID]],Analysis_Table,14,FALSE)","v":{"$error":"#N/A"}},{"$f":"VLOOKUP(Table_Data_Table_13[[#This Row],[Item ID]],Analysis_Table,15,FALSE)","v":{"$error":"#N/A"}},{"$f":"VLOOKUP(Table_Data_Table_13[[#This Row],[Item ID]],Analysis_Table,16,FALSE)","v":{"$error":"#N/A"}},{"$f":"VLOOKUP(Table_Data_Table_13[[#This Row],[Item ID]],Analysis_Table,17,FALSE)","v":{"$error":"#N/A"}},{"$f":"VLOOKUP(Table_Data_Table_13[[#This Row],[Item ID]],Analysis_Table,18,FALSE)","v":{"$error":"#N/A"}},{"$f":"VLOOKUP(Table_Data_Table_13[[#This Row],[Item ID]],Analysis_Table,19,FALSE)","v":{"$error":"#N/A"}},null,null,1]
["",null,null,null,null,null,null,null,null,0,null,null,null,{"$f":"VLOOKUP(Table_Data_Table_13[[#This Row],[Item ID]],Analysis_Table,8,FALSE)","v":{"$error":"#N/A"}},{"$f":"VLOOKUP(Table_Data_Table_13[[#This Row],[Item ID]],Analysis_Table,9,FALSE)","v":{"$error":"#N/A"}},{"$f":"VLOOKUP(Table_Data_Table_13[[#This Row],[Item ID]],Analysis_Table,10,FALSE)","v":{"$error":"#N/A"}},{"$f":"VLOOKUP(Table_Data_Table_13[[#This Row],[Item ID]],Analysis_Table,11,FALSE)","v":{"$error":"#N/A"}},{"$f":"VLOOKUP(Table_Data_Table_13[[#This Row],[Item ID]],Analysis_Table,12,FALSE)","v":{"$error":"#N/A"}},{"$f":"VLOOKUP(Table_Data_Table_13[[#This Row],[Item ID]],Analysis_Table,13,FALSE)","v":{"$error":"#N/A"}},{"$f":"VLOOKUP(Table_Data_Table_13[[#This Row],[Item ID]],Analysis_Table,14,FALSE)","v":{"$error":"#N/A"}},{"$f":"VLOOKUP(Table_Data_Table_13[[#This Row],[Item ID]],Analysis_Table,15,FALSE)","v":{"$error":"#N/A"}},{"$f":"VLOOKUP(Table_Data_Table_13[[#This Row],[Item ID]],Analysis_Table,16,FALSE)","v":{"$error":"#N/A"}},{"$f":"VLOOKUP(Table_Data_Table_13[[#This Row],[Item ID]],Analysis_Table,17,FALSE)","v":{"$error":"#N/A"}},{"$f":"VLOOKUP(Table_Data_Table_13[[#This Row],[Item ID]],Analysis_Table,18,FALSE)","v":{"$error":"#N/A"}},{"$f":"VLOOKUP(Table_Data_Table_13[[#This Row],[Item ID]],Analysis_Table,19,FALSE)","v":{"$error":"#N/A"}},null,null,1]
["",null,null,null,null,null,null,null,null,0,null,null,null,{"$f":"VLOOKUP(Table_Data_Table_13[[#This Row],[Item ID]],Analysis_Table,8,FALSE)","v":{"$error":"#N/A"}},{"$f":"VLOOKUP(Table_Data_Table_13[[#This Row],[Item ID]],Analysis_Table,9,FALSE)","v":{"$error":"#N/A"}},{"$f":"VLOOKUP(Table_Data_Table_13[[#This Row],[Item ID]],Analysis_Table,10,FALSE)","v":{"$error":"#N/A"}},{"$f":"VLOOKUP(Table_Data_Table_13[[#This Row],[Item ID]],Analysis_Table,11,FALSE)","v":{"$error":"#N/A"}},{"$f":"VLOOKUP(Table_Data_Table_13[[#This Row],[Item ID]],Analysis_Table,12,FALSE)","v":{"$error":"#N/A"}},{"$f":"VLOOKUP(Table_Data_Table_13[[#This Row],[Item ID]],Analysis_Table,13,FALSE)","v":{"$error":"#N/A"}},{"$f":"VLOOKUP(Table_Data_Table_13[[#This Row],[Item ID]],Analysis_Table,14,FALSE)","v":{"$error":"#N/A"}},{"$f":"VLOOKUP(Table_Data_Table_13[[#This Row],[Item ID]],Analysis_Table,15,FALSE)","v":{"$error":"#N/A"}},{"$f":"VLOOKUP(Table_Data_Table_13[[#This Row],[Item ID]],Analysis_Table,16,FALSE)","v":{"$error":"#N/A"}},{"$f":"VLOOKUP(Table_Data_Table_13[[#This Row],[Item ID]],Analysis_Table,17,FALSE)","v":{"$error":"#N/A"}},{"$f":"VLOOKUP(Table_Data_Table_13[[#This Row],[Item ID]],Analysis_Table,18,FALSE)","v":{"$error":"#N/A"}},{"$f":"VLOOKUP(Table_Data_Table_13[[#This Row],[Item ID]],Analysis_Table,19,FALSE)","v":{"$error":"#N/A"}},null,null,1]
["",null,null,null,null,null,null,null,null,0,null,null,null,{"$f":"VLOOKUP(Table_Data_Table_13[[#This Row],[Item ID]],Analysis_Table,8,FALSE)","v":{"$error":"#N/A"}},{"$f":"VLOOKUP(Table_Data_Table_13[[#This Row],[Item ID]],Analysis_Table,9,FALSE)","v":{"$error":"#N/A"}},{"$f":"VLOOKUP(Table_Data_Table_13[[#This Row],[Item ID]],Analysis_Table,10,FALSE)","v":{"$error":"#N/A"}},{"$f":"VLOOKUP(Table_Data_Table_13[[#This Row],[Item ID]],Analysis_Table,11,FALSE)","v":{"$error":"#N/A"}},{"$f":"VLOOKUP(Table_Data_Table_13[[#This Row],[Item ID]],Analysis_Table,12,FALSE)","v":{"$error":"#N/A"}},{"$f":"VLOOKUP(Table_Data_Table_13[[#This Row],[Item ID]],Analysis_Table,13,FALSE)","v":{"$error":"#N/A"}},{"$f":"VLOOKUP(Table_Data_Table_13[[#This Row],[Item ID]],Analysis_Table,14,FALSE)","v":{"$error":"#N/A"}},{"$f":"VLOOKUP(Table_Data_Table_13[[#This Row],[Item ID]],Analysis_Table,15,FALSE)","v":{"$error":"#N/A"}},{"$f":"VLOOKUP(Table_Data_Table_13[[#This Row],[Item ID]],Analysis_Table,16,FALSE)","v":{"$error":"#N/A"}},{"$f":"VLOOKUP(Table_Data_Table_13[[#This Row],[Item ID]],Analysis_Table,17,FALSE)","v":{"$error":"#N/A"}},{"$f":"VLOOKUP(Table_Data_Table_13[[#This Row],[Item ID]],Analysis_Table,18,FALSE)","v":{"$error":"#N/A"}},{"$f":"VLOOKUP(Table_Data_Table_13[[#This Row],[Item ID]],Analysis_Table,19,FALSE)","v":{"$error":"#N/A"}},null,null,1]
["",null,null,null,null,null,null,null,null,0,null,null,null,{"$f":"VLOOKUP(Table_Data_Table_13[[#This Row],[Item ID]],Analysis_Table,8,FALSE)","v":{"$error":"#N/A"}},{"$f":"VLOOKUP(Table_Data_Table_13[[#This Row],[Item ID]],Analysis_Table,9,FALSE)","v":{"$error":"#N/A"}},{"$f":"VLOOKUP(Table_Data_Table_13[[#This Row],[Item ID]],Analysis_Table,10,FALSE)","v":{"$error":"#N/A"}},{"$f":"VLOOKUP(Table_Data_Table_13[[#This Row],[Item ID]],Analysis_Table,11,FALSE)","v":{"$error":"#N/A"}},{"$f":"VLOOKUP(Table_Data_Table_13[[#This Row],[Item ID]],Analysis_Table,12,FALSE)","v":{"$error":"#N/A"}},{"$f":"VLOOKUP(Table_Data_Table_13[[#This Row],[Item ID]],Analysis_Table,13,FALSE)","v":{"$error":"#N/A"}},{"$f":"VLOOKUP(Table_Data_Table_13[[#This Row],[Item ID]],Analysis_Table,14,FALSE)","v":{"$error":"#N/A"}},{"$f":"VLOOKUP(Table_Data_Table_13[[#This Row],[Item ID]],Analysis_Table,15,FALSE)","v":{"$error":"#N/A"}},{"$f":"VLOOKUP(Table_Data_Table_13[[#This Row],[Item ID]],Analysis_Table,16,FALSE)","v":{"$error":"#N/A"}},{"$f":"VLOOKUP(Table_Data_Table_13[[#This Row],[Item ID]],Analysis_Table,17,FALSE)","v":{"$error":"#N/A"}},{"$f":"VLOOKUP(Table_Data_Table_13[[#This Row],[Item ID]],Analysis_Table,18,FALSE)","v":{"$error":"#N/A"}},{"$f":"VLOOKUP(Table_Data_Table_13[[#This Row],[Item ID]],Analysis_Table,19,FALSE)","v":{"$error":"#N/A"}},null,null,1]
["",null,null,null,null,null,null,null,null,0,null,null,null,{"$f":"VLOOKUP(Table_Data_Table_13[[#This Row],[Item ID]],Analysis_Table,8,FALSE)","v":{"$error":"#N/A"}},{"$f":"VLOOKUP(Table_Data_Table_13[[#This Row],[Item ID]],Analysis_Table,9,FALSE)","v":{"$error":"#N/A"}},{"$f":"VLOOKUP(Table_Data_Table_13[[#This Row],[Item ID]],Analysis_Table,10,FALSE)","v":{"$error":"#N/A"}},{"$f":"VLOOKUP(Table_Data_Table_13[[#This Row],[Item ID]],Analysis_Table,11,FALSE)","v":{"$error":"#N/A"}},{"$f":"VLOOKUP(Table_Data_Table_13[[#This Row],[Item ID]],Analysis_Table,12,FALSE)","v":{"$error":"#N/A"}},{"$f":"VLOOKUP(Table_Data_Table_13[[#This Row],[Item ID]],Analysis_Table,13,FALSE)","v":{"$error":"#N/A"}},{"$f":"VLOOKUP(Table_Data_Table_13[[#This Row],[Item ID]],Analysis_Table,14,FALSE)","v":{"$error":"#N/A"}},{"$f":"VLOOKUP(Table_Data_Table_13[[#This Row],[Item ID]],Analysis_Table,15,FALSE)","v":{"$error":"#N/A"}},{"$f":"VLOOKUP(Table_Data_Table_13[[#This Row],[Item ID]],Analysis_Table,16,FALSE)","v":{"$error":"#N/A"}},{"$f":"VLOOKUP(Table_Data_Table_13[[#This Row],[Item ID]],Analysis_Table,17,FALSE)","v":{"$error":"#N/A"}},{"$f":"VLOOKUP(Table_Data_Table_13[[#This Row],[Item ID]],Analysis_Table,18,FALSE)","v":{"$error":"#N/A"}},{"$f":"VLOOKUP(Table_Data_Table_13[[#This Row],[Item ID]],Analysis_Table,19,FALSE)","v":{"$error":"#N/A"}},null,null,1]
["",null,null,null,null,null,null,null,null,0,null,null,null,{"$f":"VLOOKUP(Table_Data_Table_13[[#This Row],[Item ID]],Analysis_Table,8,FALSE)","v":{"$error":"#N/A"}},{"$f":"VLOOKUP(Table_Data_Table_13[[#This Row],[Item ID]],Analysis_Table,9,FALSE)","v":{"$error":"#N/A"}},{"$f":"VLOOKUP(Table_Data_Table_13[[#This Row],[Item ID]],Analysis_Table,10,FALSE)","v":{"$error":"#N/A"}},{"$f":"VLOOKUP(Table_Data_Table_13[[#This Row],[Item ID]],Analysis_Table,11,FALSE)","v":{"$error":"#N/A"}},{"$f":"VLOOKUP(Table_Data_Table_13[[#This Row],[Item ID]],Analysis_Table,12,FALSE)","v":{"$error":"#N/A"}},{"$f":"VLOOKUP(Table_Data_Table_13[[#This Row],[Item ID]],Analysis_Table,13,FALSE)","v":{"$error":"#N/A"}},{"$f":"VLOOKUP(Table_Data_Table_13[[#This Row],[Item ID]],Analysis_Table,14,FALSE)","v":{"$error":"#N/A"}},{"$f":"VLOOKUP(Table_Data_Table_13[[#This Row],[Item ID]],Analysis_Table,15,FALSE)","v":{"$error":"#N/A"}},{"$f":"VLOOKUP(Table_Data_Table_13[[#This Row],[Item ID]],Analysis_Table,16,FALSE)","v":{"$error":"#N/A"}},{"$f":"VLOOKUP(Table_Data_Table_13[[#This Row],[Item ID]],Analysis_Table,17,FALSE)","v":{"$error":"#N/A"}},{"$f":"VLOOKUP(Table_Data_Table_13[[#This Row],[Item ID]],Analysis_Table,18,FALSE)","v":{"$error":"#N/A"}},{"$f":"VLOOKUP(Table_Data_Table_13[[#This Row],[Item ID]],Analysis_Table,19,FALSE)","v":{"$error":"#N/A"}},null,null,1]
["",null,null,null,null,null,null,null,null,0,null,null,null,{"$f":"VLOOKUP(Table_Data_Table_13[[#This Row],[Item ID]],Analysis_Table,8,FALSE)","v":{"$error":"#N/A"}},{"$f":"VLOOKUP(Table_Data_Table_13[[#This Row],[Item ID]],Analysis_Table,9,FALSE)","v":{"$error":"#N/A"}},{"$f":"VLOOKUP(Table_Data_Table_13[[#This Row],[Item ID]],Analysis_Table,10,FALSE)","v":{"$error":"#N/A"}},{"$f":"VLOOKUP(Table_Data_Table_13[[#This Row],[Item ID]],Analysis_Table,11,FALSE)","v":{"$error":"#N/A"}},{"$f":"VLOOKUP(Table_Data_Table_13[[#This Row],[Item ID]],Analysis_Table,12,FALSE)","v":{"$error":"#N/A"}},{"$f":"VLOOKUP(Table_Data_Table_13[[#This Row],[Item ID]],Analysis_Table,13,FALSE)","v":{"$error":"#N/A"}},{"$f":"VLOOKUP(Table_Data_Table_13[[#This Row],[Item ID]],Analysis_Table,14,FALSE)","v":{"$error":"#N/A"}},{"$f":"VLOOKUP(Table_Data_Table_13[[#This Row],[Item ID]],Analysis_Table,15,FALSE)","v":{"$error":"#N/A"}},{"$f":"VLOOKUP(Table_Data_Table_13[[#This Row],[Item ID]],Analysis_Table,16,FALSE)","v":{"$error":"#N/A"}},{"$f":"VLOOKUP(Table_Data_Table_13[[#This Row],[Item ID]],Analysis_Table,17,FALSE)","v":{"$error":"#N/A"}},{"$f":"VLOOKUP(Table_Data_Table_13[[#This Row],[Item ID]],Analysis_Table,18,FALSE)","v":{"$error":"#N/A"}},{"$f":"VLOOKUP(Table_Data_Table_13[[#This Row],[Item ID]],Analysis_Table,19,FALSE)","v":{"$error":"#N/A"}},null,null,1]
["",null,null,null,null,null,null,null,null,0,null,null,null,{"$f":"VLOOKUP(Table_Data_Table_13[[#This Row],[Item ID]],Analysis_Table,8,FALSE)","v":{"$error":"#N/A"}},{"$f":"VLOOKUP(Table_Data_Table_13[[#This Row],[Item ID]],Analysis_Table,9,FALSE)","v":{"$error":"#N/A"}},{"$f":"VLOOKUP(Table_Data_Table_13[[#This Row],[Item ID]],Analysis_Table,10,FALSE)","v":{"$error":"#N/A"}},{"$f":"VLOOKUP(Table_Data_Table_13[[#This Row],[Item ID]],Analysis_Table,11,FALSE)","v":{"$error":"#N/A"}},{"$f":"VLOOKUP(Table_Data_Table_13[[#This Row],[Item ID]],Analysis_Table,12,FALSE)","v":{"$error":"#N/A"}},{"$f":"VLOOKUP(Table_Data_Table_13[[#This Row],[Item ID]],Analysis_Table,13,FALSE)","v":{"$error":"#N/A"}},{"$f":"VLOOKUP(Table_Data_Table_13[[#This Row],[Item ID]],Analysis_Table,14,FALSE)","v":{"$error":"#N/A"}},{"$f":"VLOOKUP(Table_Data_Table_13[[#This Row],[Item ID]],Analysis_Table,15,FALSE)","v":{"$error":"#N/A"}},{"$f":"VLOOKUP(Table_Data_Table_13[[#This Row],[Item ID]],Analysis_Table,16,FALSE)","v":{"$error":"#N/A"}},{"$f":"VLOOKUP(Table_Data_Table_13[[#This Row],[Item ID]],Analysis_Table,17,FALSE)","v":{"$error":"#N/A"}},{"$f":"VLOOKUP(Table_Data_Table_13[[#This Row],[Item ID]],Analysis_Table,18,FALSE)","v":{"$error":"#N/A"}},{"$f":"VLOOKUP(Table_Data_Table_13[[#This Row],[Item ID]],Analysis_Table,19,FALSE)","v":{"$error":"#N/A"}},null,null,1]
["",null,null,null,null,null,null,null,null,0,null,null,null,{"$f":"VLOOKUP(Table_Data_Table_13[[#This Row],[Item ID]],Analysis_Table,8,FALSE)","v":{"$error":"#N/A"}},{"$f":"VLOOKUP(Table_Data_Table_13[[#This Row],[Item ID]],Analysis_Table,9,FALSE)","v":{"$error":"#N/A"}},{"$f":"VLOOKUP(Table_Data_Table_13[[#This Row],[Item ID]],Analysis_Table,10,FALSE)","v":{"$error":"#N/A"}},{"$f":"VLOOKUP(Table_Data_Table_13[[#This Row],[Item ID]],Analysis_Table,11,FALSE)","v":{"$error":"#N/A"}},{"$f":"VLOOKUP(Table_Data_Table_13[[#This Row],[Item ID]],Analysis_Table,12,FALSE)","v":{"$error":"#N/A"}},{"$f":"VLOOKUP(Table_Data_Table_13[[#This Row],[Item ID]],Analysis_Table,13,FALSE)","v":{"$error":"#N/A"}},{"$f":"VLOOKUP(Table_Data_Table_13[[#This Row],[Item ID]],Analysis_Table,14,FALSE)","v":{"$error":"#N/A"}},{"$f":"VLOOKUP(Table_Data_Table_13[[#This Row],[Item ID]],Analysis_Table,15,FALSE)","v":{"$error":"#N/A"}},{"$f":"VLOOKUP(Table_Data_Table_13[[#This Row],[Item ID]],Analysis_Table,16,FALSE)","v":{"$error":"#N/A"}},{"$f":"VLOOKUP(Table_Data_Table_13[[#This Row],[Item ID]],Analysis_Table,17,FALSE)","v":{"$error":"#N/A"}},{"$f":"VLOOKUP(Table_Data_Table_13[[#This Row],[Item ID]],Analysis_Table,18,FALSE)","v":{"$error":"#N/A"}},{"$f":"VLOOKUP(Table_Data_Table_13[[#This Row],[Item ID]],Analysis_Table,19,FALSE)","v":{"$error":"#N/A"}},null,null,1]
["",null,null,null,null,null,null,null,null,0,null,null,null,{"$f":"VLOOKUP(Table_Data_Table_13[[#This Row],[Item ID]],Analysis_Table,8,FALSE)","v":{"$error":"#N/A"}},{"$f":"VLOOKUP(Table_Data_Table_13[[#This Row],[Item ID]],Analysis_Table,9,FALSE)","v":{"$error":"#N/A"}},{"$f":"VLOOKUP(Table_Data_Table_13[[#This Row],[Item ID]],Analysis_Table,10,FALSE)","v":{"$error":"#N/A"}},{"$f":"VLOOKUP(Table_Data_Table_13[[#This Row],[Item ID]],Analysis_Table,11,FALSE)","v":{"$error":"#N/A"}},{"$f":"VLOOKUP(Table_Data_Table_13[[#This Row],[Item ID]],Analysis_Table,12,FALSE)","v":{"$error":"#N/A"}},{"$f":"VLOOKUP(Table_Data_Table_13[[#This Row],[Item ID]],Analysis_Table,13,FALSE)","v":{"$error":"#N/A"}},{"$f":"VLOOKUP(Table_Data_Table_13[[#This Row],[Item ID]],Analysis_Table,14,FALSE)","v":{"$error":"#N/A"}},{"$f":"VLOOKUP(Table_Data_Table_13[[#This Row],[Item ID]],Analysis_Table,15,FALSE)","v":{"$error":"#N/A"}},{"$f":"VLOOKUP(Table_Data_Table_13[[#This Row],[Item ID]],Analysis_Table,16,FALSE)","v":{"$error":"#N/A"}},{"$f":"VLOOKUP(Table_Data_Table_13[[#This Row],[Item ID]],Analysis_Table,17,FALSE)","v":{"$error":"#N/A"}},{"$f":"VLOOKUP(Table_Data_Table_13[[#This Row],[Item ID]],Analysis_Table,18,FALSE)","v":{"$error":"#N/A"}},{"$f":"VLOOKUP(Table_Data_Table_13[[#This Row],[Item ID]],Analysis_Table,19,FALSE)","v":{"$error":"#N/A"}},null,null,1]
["",null,null,null,null,null,null,null,null,0,null,null,null,{"$f":"VLOOKUP(Table_Data_Table_13[[#This Row],[Item ID]],Analysis_Table,8,FALSE)","v":{"$error":"#N/A"}},{"$f":"VLOOKUP(Table_Data_Table_13[[#This Row],[Item ID]],Analysis_Table,9,FALSE)","v":{"$error":"#N/A"}},{"$f":"VLOOKUP(Table_Data_Table_13[[#This Row],[Item ID]],Analysis_Table,10,FALSE)","v":{"$error":"#N/A"}},{"$f":"VLOOKUP(Table_Data_Table_13[[#This Row],[Item ID]],Analysis_Table,11,FALSE)","v":{"$error":"#N/A"}},{"$f":"VLOOKUP(Table_Data_Table_13[[#This Row],[Item ID]],Analysis_Table,12,FALSE)","v":{"$error":"#N/A"}},{"$f":"VLOOKUP(Table_Data_Table_13[[#This Row],[Item ID]],Analysis_Table,13,FALSE)","v":{"$error":"#N/A"}},{"$f":"VLOOKUP(Table_Data_Table_13[[#This Row],[Item ID]],Analysis_Table,14,FALSE)","v":{"$error":"#N/A"}},{"$f":"VLOOKUP(Table_Data_Table_13[[#This Row],[Item ID]],Analysis_Table,15,FALSE)","v":{"$error":"#N/A"}},{"$f":"VLOOKUP(Table_Data_Table_13[[#This Row],[Item ID]],Analysis_Table,16,FALSE)","v":{"$error":"#N/A"}},{"$f":"VLOOKUP(Table_Data_Table_13[[#This Row],[Item ID]],Analysis_Table,17,FALSE)","v":{"$error":"#N/A"}},{"$f":"VLOOKUP(Table_Data_Table_13[[#This Row],[Item ID]],Analysis_Table,18,FALSE)","v":{"$error":"#N/A"}},{"$f":"VLOOKUP(Table_Data_Table_13[[#This Row],[Item ID]],Analysis_Table,19,FALSE)","v":{"$error":"#N/A"}},null,null,1]
["",null,null,null,null,null,null,null,null,0,null,null,null,{"$f":"VLOOKUP(Table_Data_Table_13[[#This Row],[Item ID]],Analysis_Table,8,FALSE)","v":{"$error":"#N/A"}},{"$f":"VLOOKUP(Table_Data_Table_13[[#This Row],[Item ID]],Analysis_Table,9,FALSE)","v":{"$error":"#N/A"}},{"$f":"VLOOKUP(Table_Data_Table_13[[#This Row],[Item ID]],Analysis_Table,10,FALSE)","v":{"$error":"#N/A"}},{"$f":"VLOOKUP(Table_Data_Table_13[[#This Row],[Item ID]],Analysis_Table,11,FALSE)","v":{"$error":"#N/A"}},{"$f":"VLOOKUP(Table_Data_Table_13[[#This Row],[Item ID]],Analysis_Table,12,FALSE)","v":{"$error":"#N/A"}},{"$f":"VLOOKUP(Table_Data_Table_13[[#This Row],[Item ID]],Analysis_Table,13,FALSE)","v":{"$error":"#N/A"}},{"$f":"VLOOKUP(Table_Data_Table_13[[#This Row],[Item ID]],Analysis_Table,14,FALSE)","v":{"$error":"#N/A"}},{"$f":"VLOOKUP(Table_Data_Table_13[[#This Row],[Item ID]],Analysis_Table,15,FALSE)","v":{"$error":"#N/A"}},{"$f":"VLOOKUP(Table_Data_Table_13[[#This Row],[Item ID]],Analysis_Table,16,FALSE)","v":{"$error":"#N/A"}},{"$f":"VLOOKUP(Table_Data_Table_13[[#This Row],[Item ID]],Analysis_Table,17,FALSE)","v":{"$error":"#N/A"}},{"$f":"VLOOKUP(Table_Data_Table_13[[#This Row],[Item ID]],Analysis_Table,18,FALSE)","v":{"$error":"#N/A"}},{"$f":"VLOOKUP(Table_Data_Table_13[[#This Row],[Item ID]],Analysis_Table,19,FALSE)","v":{"$error":"#N/A"}},null,null,1]
["",null,null,null,null,null,null,null,null,0,null,null,null,{"$f":"VLOOKUP(Table_Data_Table_13[[#This Row],[Item ID]],Analysis_Table,8,FALSE)","v":{"$error":"#N/A"}},{"$f":"VLOOKUP(Table_Data_Table_13[[#This Row],[Item ID]],Analysis_Table,9,FALSE)","v":{"$error":"#N/A"}},{"$f":"VLOOKUP(Table_Data_Table_13[[#This Row],[Item ID]],Analysis_Table,10,FALSE)","v":{"$error":"#N/A"}},{"$f":"VLOOKUP(Table_Data_Table_13[[#This Row],[Item ID]],Analysis_Table,11,FALSE)","v":{"$error":"#N/A"}},{"$f":"VLOOKUP(Table_Data_Table_13[[#This Row],[Item ID]],Analysis_Table,12,FALSE)","v":{"$error":"#N/A"}},{"$f":"VLOOKUP(Table_Data_Table_13[[#This Row],[Item ID]],Analysis_Table,13,FALSE)","v":{"$error":"#N/A"}},{"$f":"VLOOKUP(Table_Data_Table_13[[#This Row],[Item ID]],Analysis_Table,14,FALSE)","v":{"$error":"#N/A"}},{"$f":"VLOOKUP(Table_Data_Table_13[[#This Row],[Item ID]],Analysis_Table,15,FALSE)","v":{"$error":"#N/A"}},{"$f":"VLOOKUP(Table_Data_Table_13[[#This Row],[Item ID]],Analysis_Table,16,FALSE)","v":{"$error":"#N/A"}},{"$f":"VLOOKUP(Table_Data_Table_13[[#This Row],[Item ID]],Analysis_Table,17,FALSE)","v":{"$error":"#N/A"}},{"$f":"VLOOKUP(Table_Data_Table_13[[#This Row],[Item ID]],Analysis_Table,18,FALSE)","v":{"$error":"#N/A"}},{"$f":"VLOOKUP(Table_Data_Table_13[[#This Row],[Item ID]],Analysis_Table,19,FALSE)","v":{"$error":"#N/A"}},null,null,1]
["",null,null,null,null,null,null,null,null,0,null,null,null,{"$f":"VLOOKUP(Table_Data_Table_13[[#This Row],[Item ID]],Analysis_Table,8,FALSE)","v":{"$error":"#N/A"}},{"$f":"VLOOKUP(Table_Data_Table_13[[#This Row],[Item ID]],Analysis_Table,9,FALSE)","v":{"$error":"#N/A"}},{"$f":"VLOOKUP(Table_Data_Table_13[[#This Row],[Item ID]],Analysis_Table,10,FALSE)","v":{"$error":"#N/A"}},{"$f":"VLOOKUP(Table_Data_Table_13[[#This Row],[Item ID]],Analysis_Table,11,FALSE)","v":{"$error":"#N/A"}},{"$f":"VLOOKUP(Table_Data_Table_13[[#This Row],[Item ID]],Analysis_Table,12,FALSE)","v":{"$error":"#N/A"}},{"$f":"VLOOKUP(Table_Data_Table_13[[#This Row],[Item ID]],Analysis_Table,13,FALSE)","v":{"$error":"#N/A"}},{"$f":"VLOOKUP(Table_Data_Table_13[[#This Row],[Item ID]],Analysis_Table,14,FALSE)","v":{"$error":"#N/A"}},{"$f":"VLOOKUP(Table_Data_Table_13[[#This Row],[Item ID]],Analysis_Table,15,FALSE)","v":{"$error":"#N/A"}},{"$f":"VLOOKUP(Table_Data_Table_13[[#This Row],[Item ID]],Analysis_Table,16,FALSE)","v":{"$error":"#N/A"}},{"$f":"VLOOKUP(Table_Data_Table_13[[#This Row],[Item ID]],Analysis_Table,17,FALSE)","v":{"$error":"#N/A"}},{"$f":"VLOOKUP(Table_Data_Table_13[[#This Row],[Item ID]],Analysis_Table,18,FALSE)","v":{"$error":"#N/A"}},{"$f":"VLOOKUP(Table_Data_Table_13[[#This Row],[Item ID]],Analysis_Table,19,FALSE)","v":{"$error":"#N/A"}},null,null,1]
["",null,null,null,null,null,null,null,null,0,null,null,null,{"$f":"VLOOKUP(Table_Data_Table_13[[#This Row],[Item ID]],Analysis_Table,8,FALSE)","v":{"$error":"#N/A"}},{"$f":"VLOOKUP(Table_Data_Table_13[[#This Row],[Item ID]],Analysis_Table,9,FALSE)","v":{"$error":"#N/A"}},{"$f":"VLOOKUP(Table_Data_Table_13[[#This Row],[Item ID]],Analysis_Table,10,FALSE)","v":{"$error":"#N/A"}},{"$f":"VLOOKUP(Table_Data_Table_13[[#This Row],[Item ID]],Analysis_Table,11,FALSE)","v":{"$error":"#N/A"}},{"$f":"VLOOKUP(Table_Data_Table_13[[#This Row],[Item ID]],Analysis_Table,12,FALSE)","v":{"$error":"#N/A"}},{"$f":"VLOOKUP(Table_Data_Table_13[[#This Row],[Item ID]],Analysis_Table,13,FALSE)","v":{"$error":"#N/A"}},{"$f":"VLOOKUP(Table_Data_Table_13[[#This Row],[Item ID]],Analysis_Table,14,FALSE)","v":{"$error":"#N/A"}},{"$f":"VLOOKUP(Table_Data_Table_13[[#This Row],[Item ID]],Analysis_Table,15,FALSE)","v":{"$error":"#N/A"}},{"$f":"VLOOKUP(Table_Data_Table_13[[#This Row],[Item ID]],Analysis_Table,16,FALSE)","v":{"$error":"#N/A"}},{"$f":"VLOOKUP(Table_Data_Table_13[[#This Row],[Item ID]],Analysis_Table,17,FALSE)","v":{"$error":"#N/A"}},{"$f":"VLOOKUP(Table_Data_Table_13[[#This Row],[Item ID]],Analysis_Table,18,FALSE)","v":{"$error":"#N/A"}},{"$f":"VLOOKUP(Table_Data_Table_13[[#This Row],[Item ID]],Analysis_Table,19,FALSE)","v":{"$error":"#N/A"}},null,null,1]
["",null,null,null,null,null,null,null,null,0,null,null,null,{"$f":"VLOOKUP(Table_Data_Table_13[[#This Row],[Item ID]],Analysis_Table,8,FALSE)","v":{"$error":"#N/A"}},{"$f":"VLOOKUP(Table_Data_Table_13[[#This Row],[Item ID]],Analysis_Table,9,FALSE)","v":{"$error":"#N/A"}},{"$f":"VLOOKUP(Table_Data_Table_13[[#This Row],[Item ID]],Analysis_Table,10,FALSE)","v":{"$error":"#N/A"}},{"$f":"VLOOKUP(Table_Data_Table_13[[#This Row],[Item ID]],Analysis_Table,11,FALSE)","v":{"$error":"#N/A"}},{"$f":"VLOOKUP(Table_Data_Table_13[[#This Row],[Item ID]],Analysis_Table,12,FALSE)","v":{"$error":"#N/A"}},{"$f":"VLOOKUP(Table_Data_Table_13[[#This Row],[Item ID]],Analysis_Table,13,FALSE)","v":{"$error":"#N/A"}},{"$f":"VLOOKUP(Table_Data_Table_13[[#This Row],[Item ID]],Analysis_Table,14,FALSE)","v":{"$error":"#N/A"}},{"$f":"VLOOKUP(Table_Data_Table_13[[#This Row],[Item ID]],Analysis_Table,15,FALSE)","v":{"$error":"#N/A"}},{"$f":"VLOOKUP(Table_Data_Table_13[[#This Row],[Item ID]],Analysis_Table,16,FALSE)","v":{"$error":"#N/A"}},{"$f":"VLOOKUP(Table_Data_Table_13[[#This Row],[Item ID]],Analysis_Table,17,FALSE)","v":{"$error":"#N/A"}},{"$f":"VLOOKUP(Table_Data_Table_13[[#This Row],[Item ID]],Analysis_Table,18,FALSE)","v":{"$error":"#N/A"}},{"$f":"VLOOKUP(Table_Data_Table_13[[#This Row],[Item ID]],Analysis_Table,19,FALSE)","v":{"$error":"#N/A"}},null,null,1]
["",null,null,null,null,null,null,null,null,0,null,null,null,{"$f":"VLOOKUP(Table_Data_Table_13[[#This Row],[Item ID]],Analysis_Table,8,FALSE)","v":{"$error":"#N/A"}},{"$f":"VLOOKUP(Table_Data_Table_13[[#This Row],[Item ID]],Analysis_Table,9,FALSE)","v":{"$error":"#N/A"}},{"$f":"VLOOKUP(Table_Data_Table_13[[#This Row],[Item ID]],Analysis_Table,10,FALSE)","v":{"$error":"#N/A"}},{"$f":"VLOOKUP(Table_Data_Table_13[[#This Row],[Item ID]],Analysis_Table,11,FALSE)","v":{"$error":"#N/A"}},{"$f":"VLOOKUP(Table_Data_Table_13[[#This Row],[Item ID]],Analysis_Table,12,FALSE)","v":{"$error":"#N/A"}},{"$f":"VLOOKUP(Table_Data_Table_13[[#This Row],[Item ID]],Analysis_Table,13,FALSE)","v":{"$error":"#N/A"}},{"$f":"VLOOKUP(Table_Data_Table_13[[#This Row],[Item ID]],Analysis_Table,14,FALSE)","v":{"$error":"#N/A"}},{"$f":"VLOOKUP(Table_Data_Table_13[[#This Row],[Item ID]],Analysis_Table,15,FALSE)","v":{"$error":"#N/A"}},{"$f":"VLOOKUP(Table_Data_Table_13[[#This Row],[Item ID]],Analysis_Table,16,FALSE)","v":{"$error":"#N/A"}},{"$f":"VLOOKUP(Table_Data_Table_13[[#This Row],[Item ID]],Analysis_Table,17,FALSE)","v":{"$error":"#N/A"}},{"$f":"VLOOKUP(Table_Data_Table_13[[#This Row],[Item ID]],Analysis_Table,18,FALSE)","v":{"$error":"#N/A"}},{"$f":"VLOOKUP(Table_Data_Table_13[[#This Row],[Item ID]],Analysis_Table,19,FALSE)","v":{"$error":"#N/A"}},null,null,1]
["",null,null,null,null,null,null,null,null,0,null,null,null,{"$f":"VLOOKUP(Table_Data_Table_13[[#This Row],[Item ID]],Analysis_Table,8,FALSE)","v":{"$error":"#N/A"}},{"$f":"VLOOKUP(Table_Data_Table_13[[#This Row],[Item ID]],Analysis_Table,9,FALSE)","v":{"$error":"#N/A"}},{"$f":"VLOOKUP(Table_Data_Table_13[[#This Row],[Item ID]],Analysis_Table,10,FALSE)","v":{"$error":"#N/A"}},{"$f":"VLOOKUP(Table_Data_Table_13[[#This Row],[Item ID]],Analysis_Table,11,FALSE)","v":{"$error":"#N/A"}},{"$f":"VLOOKUP(Table_Data_Table_13[[#This Row],[Item ID]],Analysis_Table,12,FALSE)","v":{"$error":"#N/A"}},{"$f":"VLOOKUP(Table_Data_Table_13[[#This Row],[Item ID]],Analysis_Table,13,FALSE)","v":{"$error":"#N/A"}},{"$f":"VLOOKUP(Table_Data_Table_13[[#This Row],[Item ID]],Analysis_Table,14,FALSE)","v":{"$error":"#N/A"}},{"$f":"VLOOKUP(Table_Data_Table_13[[#This Row],[Item ID]],Analysis_Table,15,FALSE)","v":{"$error":"#N/A"}},{"$f":"VLOOKUP(Table_Data_Table_13[[#This Row],[Item ID]],Analysis_Table,16,FALSE)","v":{"$error":"#N/A"}},{"$f":"VLOOKUP(Table_Data_Table_13[[#This Row],[Item ID]],Analysis_Table,17,FALSE)","v":{"$error":"#N/A"}},{"$f":"VLOOKUP(Table_Data_Table_13[[#This Row],[Item ID]],Analysis_Table,18,FALSE)","v":{"$error":"#N/A"}},{"$f":"VLOOKUP(Table_Data_Table_13[[#This Row],[Item ID]],Analysis_Table,19,FALSE)","v":{"$error":"#N/A"}},null,null,1]
["",null,null,null,null,null,null,null,null,0,null,null,null,{"$f":"VLOOKUP(Table_Data_Table_13[[#This Row],[Item ID]],Analysis_Table,8,FALSE)","v":{"$error":"#N/A"}},{"$f":"VLOOKUP(Table_Data_Table_13[[#This Row],[Item ID]],Analysis_Table,9,FALSE)","v":{"$error":"#N/A"}},{"$f":"VLOOKUP(Table_Data_Table_13[[#This Row],[Item ID]],Analysis_Table,10,FALSE)","v":{"$error":"#N/A"}},{"$f":"VLOOKUP(Table_Data_Table_13[[#This Row],[Item ID]],Analysis_Table,11,FALSE)","v":{"$error":"#N/A"}},{"$f":"VLOOKUP(Table_Data_Table_13[[#This Row],[Item ID]],Analysis_Table,12,FALSE)","v":{"$error":"#N/A"}},{"$f":"VLOOKUP(Table_Data_Table_13[[#This Row],[Item ID]],Analysis_Table,13,FALSE)","v":{"$error":"#N/A"}},{"$f":"VLOOKUP(Table_Data_Table_13[[#This Row],[Item ID]],Analysis_Table,14,FALSE)","v":{"$error":"#N/A"}},{"$f":"VLOOKUP(Table_Data_Table_13[[#This Row],[Item ID]],Analysis_Table,15,FALSE)","v":{"$error":"#N/A"}},{"$f":"VLOOKUP(Table_Data_Table_13[[#This Row],[Item ID]],Analysis_Table,16,FALSE)","v":{"$error":"#N/A"}},{"$f":"VLOOKUP(Table_Data_Table_13[[#This Row],[Item ID]],Analysis_Table,17,FALSE)","v":{"$error":"#N/A"}},{"$f":"VLOOKUP(Table_Data_Table_13[[#This Row],[Item ID]],Analysis_Table,18,FALSE)","v":{"$error":"#N/A"}},{"$f":"VLOOKUP(Table_Data_Table_13[[#This Row],[Item ID]],Analysis_Table,19,FALSE)","v":{"$error":"#N/A"}},null,null,1]
["",null,null,null,null,null,null,null,null,0,null,null,null,{"$f":"VLOOKUP(Table_Data_Table_13[[#This Row],[Item ID]],Analysis_Table,8,FALSE)","v":{"$error":"#N/A"}},{"$f":"VLOOKUP(Table_Data_Table_13[[#This Row],[Item ID]],Analysis_Table,9,FALSE)","v":{"$error":"#N/A"}},{"$f":"VLOOKUP(Table_Data_Table_13[[#This Row],[Item ID]],Analysis_Table,10,FALSE)","v":{"$error":"#N/A"}},{"$f":"VLOOKUP(Table_Data_Table_13[[#This Row],[Item ID]],Analysis_Table,11,FALSE)","v":{"$error":"#N/A"}},{"$f":"VLOOKUP(Table_Data_Table_13[[#This Row],[Item ID]],Analysis_Table,12,FALSE)","v":{"$error":"#N/A"}},{"$f":"VLOOKUP(Table_Data_Table_13[[#This Row],[Item ID]],Analysis_Table,13,FALSE)","v":{"$error":"#N/A"}},{"$f":"VLOOKUP(Table_Data_Table_13[[#This Row],[Item ID]],Analysis_Table,14,FALSE)","v":{"$error":"#N/A"}},{"$f":"VLOOKUP(Table_Data_Table_13[[#This Row],[Item ID]],Analysis_Table,15,FALSE)","v":{"$error":"#N/A"}},{"$f":"VLOOKUP(Table_Data_Table_13[[#This Row],[Item ID]],Analysis_Table,16,FALSE)","v":{"$error":"#N/A"}},{"$f":"VLOOKUP(Table_Data_Table_13[[#This Row],[Item ID]],Analysis_Table,17,FALSE)","v":{"$error":"#N/A"}},{"$f":"VLOOKUP(Table_Data_Table_13[[#This Row],[Item ID]],Analysis_Table,18,FALSE)","v":{"$error":"#N/A"}},{"$f":"VLOOKUP(Table_Data_Table_13[[#This Row],[Item ID]],Analysis_Table,19,FALSE)","v":{"$error":"#N/A"}},null,null,1]
["",null,null,null,null,null,null,null,null,0,null,null,null,{"$f":"VLOOKUP(Table_Data_Table_13[[#This Row],[Item ID]],Analysis_Table,8,FALSE)","v":{"$error":"#N/A"}},{"$f":"VLOOKUP(Table_Data_Table_13[[#This Row],[Item ID]],Analysis_Table,9,FALSE)","v":{"$error":"#N/A"}},{"$f":"VLOOKUP(Table_Data_Table_13[[#This Row],[Item ID]],Analysis_Table,10,FALSE)","v":{"$error":"#N/A"}},{"$f":"VLOOKUP(Table_Data_Table_13[[#This Row],[Item ID]],Analysis_Table,11,FALSE)","v":{"$error":"#N/A"}},{"$f":"VLOOKUP(Table_Data_Table_13[[#This Row],[Item ID]],Analysis_Table,12,FALSE)","v":{"$error":"#N/A"}},{"$f":"VLOOKUP(Table_Data_Table_13[[#This Row],[Item ID]],Analysis_Table,13,FALSE)","v":{"$error":"#N/A"}},{"$f":"VLOOKUP(Table_Data_Table_13[[#This Row],[Item ID]],Analysis_Table,14,FALSE)","v":{"$error":"#N/A"}},{"$f":"VLOOKUP(Table_Data_Table_13[[#This Row],[Item ID]],Analysis_Table,15,FALSE)","v":{"$error":"#N/A"}},{"$f":"VLOOKUP(Table_Data_Table_13[[#This Row],[Item ID]],Analysis_Table,16,FALSE)","v":{"$error":"#N/A"}},{"$f":"VLOOKUP(Table_Data_Table_13[[#This Row],[Item ID]],Analysis_Table,17,FALSE)","v":{"$error":"#N/A"}},{"$f":"VLOOKUP(Table_Data_Table_13[[#This Row],[Item ID]],Analysis_Table,18,FALSE)","v":{"$error":"#N/A"}},{"$f":"VLOOKUP(Table_Data_Table_13[[#This Row],[Item ID]],Analysis_Table,19,FALSE)","v":{"$error":"#N/A"}},null,null,1]
["",null,null,null,null,null,null,null,null,0,null,null,null,{"$f":"VLOOKUP(Table_Data_Table_13[[#This Row],[Item ID]],Analysis_Table,8,FALSE)","v":{"$error":"#N/A"}},{"$f":"VLOOKUP(Table_Data_Table_13[[#This Row],[Item ID]],Analysis_Table,9,FALSE)","v":{"$error":"#N/A"}},{"$f":"VLOOKUP(Table_Data_Table_13[[#This Row],[Item ID]],Analysis_Table,10,FALSE)","v":{"$error":"#N/A"}},{"$f":"VLOOKUP(Table_Data_Table_13[[#This Row],[Item ID]],Analysis_Table,11,FALSE)","v":{"$error":"#N/A"}},{"$f":"VLOOKUP(Table_Data_Table_13[[#This Row],[Item ID]],Analysis_Table,12,FALSE)","v":{"$error":"#N/A"}},{"$f":"VLOOKUP(Table_Data_Table_13[[#This Row],[Item ID]],Analysis_Table,13,FALSE)","v":{"$error":"#N/A"}},{"$f":"VLOOKUP(Table_Data_Table_13[[#This Row],[Item ID]],Analysis_Table,14,FALSE)","v":{"$error":"#N/A"}},{"$f":"VLOOKUP(Table_Data_Table_13[[#This Row],[Item ID]],Analysis_Table,15,FALSE)","v":{"$error":"#N/A"}},{"$f":"VLOOKUP(Table_Data_Table_13[[#This Row],[Item ID]],Analysis_Table,16,FALSE)","v":{"$error":"#N/A"}},{"$f":"VLOOKUP(Table_Data_Table_13[[#This Row],[Item ID]],Analysis_Table,17,FALSE)","v":{"$error":"#N/A"}},{"$f":"VLOOKUP(Table_Data_Table_13[[#This Row],[Item ID]],Analysis_Table,18,FALSE)","v":{"$error":"#N/A"}},{"$f":"VLOOKUP(Table_Data_Table_13[[#This Row],[Item ID]],Analysis_Table,19,FALSE)","v":{"$error":"#N/A"}},null,null,1]
["",null,null,null,null,null,null,null,null,0,null,null,null,{"$f":"VLOOKUP(Table_Data_Table_13[[#This Row],[Item ID]],Analysis_Table,8,FALSE)","v":{"$error":"#N/A"}},{"$f":"VLOOKUP(Table_Data_Table_13[[#This Row],[Item ID]],Analysis_Table,9,FALSE)","v":{"$error":"#N/A"}},{"$f":"VLOOKUP(Table_Data_Table_13[[#This Row],[Item ID]],Analysis_Table,10,FALSE)","v":{"$error":"#N/A"}},{"$f":"VLOOKUP(Table_Data_Table_13[[#This Row],[Item ID]],Analysis_Table,11,FALSE)","v":{"$error":"#N/A"}},{"$f":"VLOOKUP(Table_Data_Table_13[[#This Row],[Item ID]],Analysis_Table,12,FALSE)","v":{"$error":"#N/A"}},{"$f":"VLOOKUP(Table_Data_Table_13[[#This Row],[Item ID]],Analysis_Table,13,FALSE)","v":{"$error":"#N/A"}},{"$f":"VLOOKUP(Table_Data_Table_13[[#This Row],[Item ID]],Analysis_Table,14,FALSE)","v":{"$error":"#N/A"}},{"$f":"VLOOKUP(Table_Data_Table_13[[#This Row],[Item ID]],Analysis_Table,15,FALSE)","v":{"$error":"#N/A"}},{"$f":"VLOOKUP(Table_Data_Table_13[[#This Row],[Item ID]],Analysis_Table,16,FALSE)","v":{"$error":"#N/A"}},{"$f":"VLOOKUP(Table_Data_Table_13[[#This Row],[Item ID]],Analysis_Table,17,FALSE)","v":{"$error":"#N/A"}},{"$f":"VLOOKUP(Table_Data_Table_13[[#This Row],[Item ID]],Analysis_Table,18,FALSE)","v":{"$error":"#N/A"}},{"$f":"VLOOKUP(Table_Data_Table_13[[#This Row],[Item ID]],Analysis_Table,19,FALSE)","v":{"$error":"#N/A"}},null,null,1]
["",null,null,null,null,null,null,null,null,0,null,null,null,{"$f":"VLOOKUP(Table_Data_Table_13[[#This Row],[Item ID]],Analysis_Table,8,FALSE)","v":{"$error":"#N/A"}},{"$f":"VLOOKUP(Table_Data_Table_13[[#This Row],[Item ID]],Analysis_Table,9,FALSE)","v":{"$error":"#N/A"}},{"$f":"VLOOKUP(Table_Data_Table_13[[#This Row],[Item ID]],Analysis_Table,10,FALSE)","v":{"$error":"#N/A"}},{"$f":"VLOOKUP(Table_Data_Table_13[[#This Row],[Item ID]],Analysis_Table,11,FALSE)","v":{"$error":"#N/A"}},{"$f":"VLOOKUP(Table_Data_Table_13[[#This Row],[Item ID]],Analysis_Table,12,FALSE)","v":{"$error":"#N/A"}},{"$f":"VLOOKUP(Table_Data_Table_13[[#This Row],[Item ID]],Analysis_Table,13,FALSE)","v":{"$error":"#N/A"}},{"$f":"VLOOKUP(Table_Data_Table_13[[#This Row],[Item ID]],Analysis_Table,14,FALSE)","v":{"$error":"#N/A"}},{"$f":"VLOOKUP(Table_Data_Table_13[[#This Row],[Item ID]],Analysis_Table,15,FALSE)","v":{"$error":"#N/A"}},{"$f":"VLOOKUP(Table_Data_Table_13[[#This Row],[Item ID]],Analysis_Table,16,FALSE)","v":{"$error":"#N/A"}},{"$f":"VLOOKUP(Table_Data_Table_13[[#This Row],[Item ID]],Analysis_Table,17,FALSE)","v":{"$error":"#N/A"}},{"$f":"VLOOKUP(Table_Data_Table_13[[#This Row],[Item ID]],Analysis_Table,18,FALSE)","v":{"$error":"#N/A"}},{"$f":"VLOOKUP(Table_Data_Table_13[[#This Row],[Item ID]],Analysis_Table,19,FALSE)","v":{"$error":"#N/A"}},null,null,1]
["",null,null,null,null,null,null,null,null,0,null,null,null,{"$f":"VLOOKUP(Table_Data_Table_13[[#This Row],[Item ID]],Analysis_Table,8,FALSE)","v":{"$error":"#N/A"}},{"$f":"VLOOKUP(Table_Data_Table_13[[#This Row],[Item ID]],Analysis_Table,9,FALSE)","v":{"$error":"#N/A"}},{"$f":"VLOOKUP(Table_Data_Table_13[[#This Row],[Item ID]],Analysis_Table,10,FALSE)","v":{"$error":"#N/A"}},{"$f":"VLOOKUP(Table_Data_Table_13[[#This Row],[Item ID]],Analysis_Table,11,FALSE)","v":{"$error":"#N/A"}},{"$f":"VLOOKUP(Table_Data_Table_13[[#This Row],[Item ID]],Analysis_Table,12,FALSE)","v":{"$error":"#N/A"}},{"$f":"VLOOKUP(Table_Data_Table_13[[#This Row],[Item ID]],Analysis_Table,13,FALSE)","v":{"$error":"#N/A"}},{"$f":"VLOOKUP(Table_Data_Table_13[[#This Row],[Item ID]],Analysis_Table,14,FALSE)","v":{"$error":"#N/A"}},{"$f":"VLOOKUP(Table_Data_Table_13[[#This Row],[Item ID]],Analysis_Table,15,FALSE)","v":{"$error":"#N/A"}},{"$f":"VLOOKUP(Table_Data_Table_13[[#This Row],[Item ID]],Analysis_Table,16,FALSE)","v":{"$error":"#N/A"}},{"$f":"VLOOKUP(Table_Data_Table_13[[#This Row],[Item ID]],Analysis_Table,17,FALSE)","v":{"$error":"#N/A"}},{"$f":"VLOOKUP(Table_Data_Table_13[[#This Row],[Item ID]],Analysis_Table,18,FALSE)","v":{"$error":"#N/A"}},{"$f":"VLOOKUP(Table_Data_Table_13[[#This Row],[Item ID]],Analysis_Table,19,FALSE)","v":{"$error":"#N/A"}},null,null,1]
["",null,null,null,null,null,null,null,null,0,null,null,null,{"$f":"VLOOKUP(Table_Data_Table_13[[#This Row],[Item ID]],Analysis_Table,8,FALSE)","v":{"$error":"#N/A"}},{"$f":"VLOOKUP(Table_Data_Table_13[[#This Row],[Item ID]],Analysis_Table,9,FALSE)","v":{"$error":"#N/A"}},{"$f":"VLOOKUP(Table_Data_Table_13[[#This Row],[Item ID]],Analysis_Table,10,FALSE)","v":{"$error":"#N/A"}},{"$f":"VLOOKUP(Table_Data_Table_13[[#This Row],[Item ID]],Analysis_Table,11,FALSE)","v":{"$error":"#N/A"}},{"$f":"VLOOKUP(Table_Data_Table_13[[#This Row],[Item ID]],Analysis_Table,12,FALSE)","v":{"$error":"#N/A"}},{"$f":"VLOOKUP(Table_Data_Table_13[[#This Row],[Item ID]],Analysis_Table,13,FALSE)","v":{"$error":"#N/A"}},{"$f":"VLOOKUP(Table_Data_Table_13[[#This Row],[Item ID]],Analysis_Table,14,FALSE)","v":{"$error":"#N/A"}},{"$f":"VLOOKUP(Table_Data_Table_13[[#This Row],[Item ID]],Analysis_Table,15,FALSE)","v":{"$error":"#N/A"}},{"$f":"VLOOKUP(Table_Data_Table_13[[#This Row],[Item ID]],Analysis_Table,16,FALSE)","v":{"$error":"#N/A"}},{"$f":"VLOOKUP(Table_Data_Table_13[[#This Row],[Item ID]],Analysis_Table,17,FALSE)","v":{"$error":"#N/A"}},{"$f":"VLOOKUP(Table_Data_Table_13[[#This Row],[Item ID]],Analysis_Table,18,FALSE)","v":{"$error":"#N/A"}},{"$f":"VLOOKUP(Table_Data_Table_13[[#This Row],[Item ID]],Analysis_Table,19,FALSE)","v":{"$error":"#N/A"}},null,null,1]
["",null,null,null,null,null,null,null,null,0,null,null,null,{"$f":"VLOOKUP(Table_Data_Table_13[[#This Row],[Item ID]],Analysis_Table,8,FALSE)","v":{"$error":"#N/A"}},{"$f":"VLOOKUP(Table_Data_Table_13[[#This Row],[Item ID]],Analysis_Table,9,FALSE)","v":{"$error":"#N/A"}},{"$f":"VLOOKUP(Table_Data_Table_13[[#This Row],[Item ID]],Analysis_Table,10,FALSE)","v":{"$error":"#N/A"}},{"$f":"VLOOKUP(Table_Data_Table_13[[#This Row],[Item ID]],Analysis_Table,11,FALSE)","v":{"$error":"#N/A"}},{"$f":"VLOOKUP(Table_Data_Table_13[[#This Row],[Item ID]],Analysis_Table,12,FALSE)","v":{"$error":"#N/A"}},{"$f":"VLOOKUP(Table_Data_Table_13[[#This Row],[Item ID]],Analysis_Table,13,FALSE)","v":{"$error":"#N/A"}},{"$f":"VLOOKUP(Table_Data_Table_13[[#This Row],[Item ID]],Analysis_Table,14,FALSE)","v":{"$error":"#N/A"}},{"$f":"VLOOKUP(Table_Data_Table_13[[#This Row],[Item ID]],Analysis_Table,15,FALSE)","v":{"$error":"#N/A"}},{"$f":"VLOOKUP(Table_Data_Table_13[[#This Row],[Item ID]],Analysis_Table,16,FALSE)","v":{"$error":"#N/A"}},{"$f":"VLOOKUP(Table_Data_Table_13[[#This Row],[Item ID]],Analysis_Table,17,FALSE)","v":{"$error":"#N/A"}},{"$f":"VLOOKUP(Table_Data_Table_13[[#This Row],[Item ID]],Analysis_Table,18,FALSE)","v":{"$error":"#N/A"}},{"$f":"VLOOKUP(Table_Data_Table_13[[#This Row],[Item ID]],Analysis_Table,19,FALSE)","v":{"$error":"#N/A"}},null,null,1]
["",null,null,null,null,null,null,null,null,0,null,null,null,{"$f":"VLOOKUP(Table_Data_Table_13[[#This Row],[Item ID]],Analysis_Table,8,FALSE)","v":{"$error":"#N/A"}},{"$f":"VLOOKUP(Table_Data_Table_13[[#This Row],[Item ID]],Analysis_Table,9,FALSE)","v":{"$error":"#N/A"}},{"$f":"VLOOKUP(Table_Data_Table_13[[#This Row],[Item ID]],Analysis_Table,10,FALSE)","v":{"$error":"#N/A"}},{"$f":"VLOOKUP(Table_Data_Table_13[[#This Row],[Item ID]],Analysis_Table,11,FALSE)","v":{"$error":"#N/A"}},{"$f":"VLOOKUP(Table_Data_Table_13[[#This Row],[Item ID]],Analysis_Table,12,FALSE)","v":{"$error":"#N/A"}},{"$f":"VLOOKUP(Table_Data_Table_13[[#This Row],[Item ID]],Analysis_Table,13,FALSE)","v":{"$error":"#N/A"}},{"$f":"VLOOKUP(Table_Data_Table_13[[#This Row],[Item ID]],Analysis_Table,14,FALSE)","v":{"$error":"#N/A"}},{"$f":"VLOOKUP(Table_Data_Table_13[[#This Row],[Item ID]],Analysis_Table,15,FALSE)","v":{"$error":"#N/A"}},{"$f":"VLOOKUP(Table_Data_Table_13[[#This Row],[Item ID]],Analysis_Table,16,FALSE)","v":{"$error":"#N/A"}},{"$f":"VLOOKUP(Table_Data_Table_13[[#This Row],[Item ID]],Analysis_Table,17,FALSE)","v":{"$error":"#N/A"}},{"$f":"VLOOKUP(Table_Data_Table_13[[#This Row],[Item ID]],Analysis_Table,18,FALSE)","v":{"$error":"#N/A"}},{"$f":"VLOOKUP(Table_Data_Table_13[[#This Row],[Item ID]],Analysis_Table,19,FALSE)","v":{"$error":"#N/A"}},null,null,1]
["",null,null,null,null,null,null,null,null,0,null,null,null,{"$f":"VLOOKUP(Table_Data_Table_13[[#This Row],[Item ID]],Analysis_Table,8,FALSE)","v":{"$error":"#N/A"}},{"$f":"VLOOKUP(Table_Data_Table_13[[#This Row],[Item ID]],Analysis_Table,9,FALSE)","v":{"$error":"#N/A"}},{"$f":"VLOOKUP(Table_Data_Table_13[[#This Row],[Item ID]],Analysis_Table,10,FALSE)","v":{"$error":"#N/A"}},{"$f":"VLOOKUP(Table_Data_Table_13[[#This Row],[Item ID]],Analysis_Table,11,FALSE)","v":{"$error":"#N/A"}},{"$f":"VLOOKUP(Table_Data_Table_13[[#This Row],[Item ID]],Analysis_Table,12,FALSE)","v":{"$error":"#N/A"}},{"$f":"VLOOKUP(Table_Data_Table_13[[#This Row],[Item ID]],Analysis_Table,13,FALSE)","v":{"$error":"#N/A"}},{"$f":"VLOOKUP(Table_Data_Table_13[[#This Row],[Item ID]],Analysis_Table,14,FALSE)","v":{"$error":"#N/A"}},{"$f":"VLOOKUP(Table_Data_Table_13[[#This Row],[Item ID]],Analysis_Table,15,FALSE)","v":{"$error":"#N/A"}},{"$f":"VLOOKUP(Table_Data_Table_13[[#This Row],[Item ID]],Analysis_Table,16,FALSE)","v":{"$error":"#N/A"}},{"$f":"VLOOKUP(Table_Data_Table_13[[#This Row],[Item ID]],Analysis_Table,17,FALSE)","v":{"$error":"#N/A"}},{"$f":"VLOOKUP(Table_Data_Table_13[[#This Row],[Item ID]],Analysis_Table,18,FALSE)","v":{"$error":"#N/A"}},{"$f":"VLOOKUP(Table_Data_Table_13[[#This Row],[Item ID]],Analysis_Table,19,FALSE)","v":{"$error":"#N/A"}},null,null,1]
["",null,null,null,null,null,null,null,null,0,null,null,null,{"$f":"VLOOKUP(Table_Data_Table_13[[#This Row],[Item ID]],Analysis_Table,8,FALSE)","v":{"$error":"#N/A"}},{"$f":"VLOOKUP(Table_Data_Table_13[[#This Row],[Item ID]],Analysis_Table,9,FALSE)","v":{"$error":"#N/A"}},{"$f":"VLOOKUP(Table_Data_Table_13[[#This Row],[Item ID]],Analysis_Table,10,FALSE)","v":{"$error":"#N/A"}},{"$f":"VLOOKUP(Table_Data_Table_13[[#This Row],[Item ID]],Analysis_Table,11,FALSE)","v":{"$error":"#N/A"}},{"$f":"VLOOKUP(Table_Data_Table_13[[#This Row],[Item ID]],Analysis_Table,12,FALSE)","v":{"$error":"#N/A"}},{"$f":"VLOOKUP(Table_Data_Table_13[[#This Row],[Item ID]],Analysis_Table,13,FALSE)","v":{"$error":"#N/A"}},{"$f":"VLOOKUP(Table_Data_Table_13[[#This Row],[Item ID]],Analysis_Table,14,FALSE)","v":{"$error":"#N/A"}},{"$f":"VLOOKUP(Table_Data_Table_13[[#This Row],[Item ID]],Analysis_Table,15,FALSE)","v":{"$error":"#N/A"}},{"$f":"VLOOKUP(Table_Data_Table_13[[#This Row],[Item ID]],Analysis_Table,16,FALSE)","v":{"$error":"#N/A"}},{"$f":"VLOOKUP(Table_Data_Table_13[[#This Row],[Item ID]],Analysis_Table,17,FALSE)","v":{"$error":"#N/A"}},{"$f":"VLOOKUP(Table_Data_Table_13[[#This Row],[Item ID]],Analysis_Table,18,FALSE)","v":{"$error":"#N/A"}},{"$f":"VLOOKUP(Table_Data_Table_13[[#This Row],[Item ID]],Analysis_Table,19,FALSE)","v":{"$error":"#N/A"}},null,null,1]
["",null,null,null,null,null,null,null,null,0,null,null,null,{"$f":"VLOOKUP(Table_Data_Table_13[[#This Row],[Item ID]],Analysis_Table,8,FALSE)","v":{"$error":"#N/A"}},{"$f":"VLOOKUP(Table_Data_Table_13[[#This Row],[Item ID]],Analysis_Table,9,FALSE)","v":{"$error":"#N/A"}},{"$f":"VLOOKUP(Table_Data_Table_13[[#This Row],[Item ID]],Analysis_Table,10,FALSE)","v":{"$error":"#N/A"}},{"$f":"VLOOKUP(Table_Data_Table_13[[#This Row],[Item ID]],Analysis_Table,11,FALSE)","v":{"$error":"#N/A"}},{"$f":"VLOOKUP(Table_Data_Table_13[[#This Row],[Item ID]],Analysis_Table,12,FALSE)","v":{"$error":"#N/A"}},{"$f":"VLOOKUP(Table_Data_Table_13[[#This Row],[Item ID]],Analysis_Table,13,FALSE)","v":{"$error":"#N/A"}},{"$f":"VLOOKUP(Table_Data_Table_13[[#This Row],[Item ID]],Analysis_Table,14,FALSE)","v":{"$error":"#N/A"}},{"$f":"VLOOKUP(Table_Data_Table_13[[#This Row],[Item ID]],Analysis_Table,15,FALSE)","v":{"$error":"#N/A"}},{"$f":"VLOOKUP(Table_Data_Table_13[[#This Row],[Item ID]],Analysis_Table,16,FALSE)","v":{"$error":"#N/A"}},{"$f":"VLOOKUP(Table_Data_Table_13[[#This Row],[Item ID]],Analysis_Table,17,FALSE)","v":{"$error":"#N/A"}},{"$f":"VLOOKUP(Table_Data_Table_13[[#This Row],[Item ID]],Analysis_Table,18,FALSE)","v":{"$error":"#N/A"}},{"$f":"VLOOKUP(Table_Data_Table_13[[#This Row],[Item ID]],Analysis_Table,19,FALSE)","v":{"$error":"#N/A"}},null,null,1]
["",null,null,null,null,null,null,null,null,0,null,null,null,{"$f":"VLOOKUP(Table_Data_Table_13[[#This Row],[Item ID]],Analysis_Table,8,FALSE)","v":{"$error":"#N/A"}},{"$f":"VLOOKUP(Table_Data_Table_13[[#This Row],[Item ID]],Analysis_Table,9,FALSE)","v":{"$error":"#N/A"}},{"$f":"VLOOKUP(Table_Data_Table_13[[#This Row],[Item ID]],Analysis_Table,10,FALSE)","v":{"$error":"#N/A"}},{"$f":"VLOOKUP(Table_Data_Table_13[[#This Row],[Item ID]],Analysis_Table,11,FALSE)","v":{"$error":"#N/A"}},{"$f":"VLOOKUP(Table_Data_Table_13[[#This Row],[Item ID]],Analysis_Table,12,FALSE)","v":{"$error":"#N/A"}},{"$f":"VLOOKUP(Table_Data_Table_13[[#This Row],[Item ID]],Analysis_Table,13,FALSE)","v":{"$error":"#N/A"}},{"$f":"VLOOKUP(Table_Data_Table_13[[#This Row],[Item ID]],Analysis_Table,14,FALSE)","v":{"$error":"#N/A"}},{"$f":"VLOOKUP(Table_Data_Table_13[[#This Row],[Item ID]],Analysis_Table,15,FALSE)","v":{"$error":"#N/A"}},{"$f":"VLOOKUP(Table_Data_Table_13[[#This Row],[Item ID]],Analysis_Table,16,FALSE)","v":{"$error":"#N/A"}},{"$f":"VLOOKUP(Table_Data_Table_13[[#This Row],[Item ID]],Analysis_Table,17,FALSE)","v":{"$error":"#N/A"}},{"$f":"VLOOKUP(Table_Data_Table_13[[#This Row],[Item ID]],Analysis_Table,18,FALSE)","v":{"$error":"#N/A"}},{"$f":"VLOOKUP(Table_Data_Table_13[[#This Row],[Item ID]],Analysis_Table,19,FALSE)","v":{"$error":"#N/A"}},null,null,1]
["",null,null,null,null,null,null,null,null,0,null,null,null,{"$f":"VLOOKUP(Table_Data_Table_13[[#This Row],[Item ID]],Analysis_Table,8,FALSE)","v":{"$error":"#N/A"}},{"$f":"VLOOKUP(Table_Data_Table_13[[#This Row],[Item ID]],Analysis_Table,9,FALSE)","v":{"$error":"#N/A"}},{"$f":"VLOOKUP(Table_Data_Table_13[[#This Row],[Item ID]],Analysis_Table,10,FALSE)","v":{"$error":"#N/A"}},{"$f":"VLOOKUP(Table_Data_Table_13[[#This Row],[Item ID]],Analysis_Table,11,FALSE)","v":{"$error":"#N/A"}},{"$f":"VLOOKUP(Table_Data_Table_13[[#This Row],[Item ID]],Analysis_Table,12,FALSE)","v":{"$error":"#N/A"}},{"$f":"VLOOKUP(Table_Data_Table_13[[#This Row],[Item ID]],Analysis_Table,13,FALSE)","v":{"$error":"#N/A"}},{"$f":"VLOOKUP(Table_Data_Table_13[[#This Row],[Item ID]],Analysis_Table,14,FALSE)","v":{"$error":"#N/A"}},{"$f":"VLOOKUP(Table_Data_Table_13[[#This Row],[Item ID]],Analysis_Table,15,FALSE)","v":{"$error":"#N/A"}},{"$f":"VLOOKUP(Table_Data_Table_13[[#This Row],[Item ID]],Analysis_Table,16,FALSE)","v":{"$error":"#N/A"}},{"$f":"VLOOKUP(Table_Data_Table_13[[#This Row],[Item ID]],Analysis_Table,17,FALSE)","v":{"$error":"#N/A"}},{"$f":"VLOOKUP(Table_Data_Table_13[[#This Row],[Item ID]],Analysis_Table,18,FALSE)","v":{"$error":"#N/A"}},{"$f":"VLOOKUP(Table_Data_Table_13[[#This Row],[Item ID]],Analysis_Table,19,FALSE)","v":{"$error":"#N/A"}},null,null,1]
["",null,null,null,null,null,null,null,null,0,null,null,null,{"$f":"VLOOKUP(Table_Data_Table_13[[#This Row],[Item ID]],Analysis_Table,8,FALSE)","v":{"$error":"#N/A"}},{"$f":"VLOOKUP(Table_Data_Table_13[[#This Row],[Item ID]],Analysis_Table,9,FALSE)","v":{"$error":"#N/A"}},{"$f":"VLOOKUP(Table_Data_Table_13[[#This Row],[Item ID]],Analysis_Table,10,FALSE)","v":{"$error":"#N/A"}},{"$f":"VLOOKUP(Table_Data_Table_13[[#This Row],[Item ID]],Analysis_Table,11,FALSE)","v":{"$error":"#N/A"}},{"$f":"VLOOKUP(Table_Data_Table_13[[#This Row],[Item ID]],Analysis_Table,12,FALSE)","v":{"$error":"#N/A"}},{"$f":"VLOOKUP(Table_Data_Table_13[[#This Row],[Item ID]],Analysis_Table,13,FALSE)","v":{"$error":"#N/A"}},{"$f":"VLOOKUP(Table_Data_Table_13[[#This Row],[Item ID]],Analysis_Table,14,FALSE)","v":{"$error":"#N/A"}},{"$f":"VLOOKUP(Table_Data_Table_13[[#This Row],[Item ID]],Analysis_Table,15,FALSE)","v":{"$error":"#N/A"}},{"$f":"VLOOKUP(Table_Data_Table_13[[#This Row],[Item ID]],Analysis_Table,16,FALSE)","v":{"$error":"#N/A"}},{"$f":"VLOOKUP(Table_Data_Table_13[[#This Row],[Item ID]],Analysis_Table,17,FALSE)","v":{"$error":"#N/A"}},{"$f":"VLOOKUP(Table_Data_Table_13[[#This Row],[Item ID]],Analysis_Table,18,FALSE)","v":{"$error":"#N/A"}},{"$f":"VLOOKUP(Table_Data_Table_13[[#This Row],[Item ID]],Analysis_Table,19,FALSE)","v":{"$error":"#N/A"}},null,null,1]
["",null,null,null,null,null,null,null,null,0,null,null,null,{"$f":"VLOOKUP(Table_Data_Table_13[[#This Row],[Item ID]],Analysis_Table,8,FALSE)","v":{"$error":"#N/A"}},{"$f":"VLOOKUP(Table_Data_Table_13[[#This Row],[Item ID]],Analysis_Table,9,FALSE)","v":{"$error":"#N/A"}},{"$f":"VLOOKUP(Table_Data_Table_13[[#This Row],[Item ID]],Analysis_Table,10,FALSE)","v":{"$error":"#N/A"}},{"$f":"VLOOKUP(Table_Data_Table_13[[#This Row],[Item ID]],Analysis_Table,11,FALSE)","v":{"$error":"#N/A"}},{"$f":"VLOOKUP(Table_Data_Table_13[[#This Row],[Item ID]],Analysis_Table,12,FALSE)","v":{"$error":"#N/A"}},{"$f":"VLOOKUP(Table_Data_Table_13[[#This Row],[Item ID]],Analysis_Table,13,FALSE)","v":{"$error":"#N/A"}},{"$f":"VLOOKUP(Table_Data_Table_13[[#This Row],[Item ID]],Analysis_Table,14,FALSE)","v":{"$error":"#N/A"}},{"$f":"VLOOKUP(Table_Data_Table_13[[#This Row],[Item ID]],Analysis_Table,15,FALSE)","v":{"$error":"#N/A"}},{"$f":"VLOOKUP(Table_Data_Table_13[[#This Row],[Item ID]],Analysis_Table,16,FALSE)","v":{"$error":"#N/A"}},{"$f":"VLOOKUP(Table_Data_Table_13[[#This Row],[Item ID]],Analysis_Table,17,FALSE)","v":{"$error":"#N/A"}},{"$f":"VLOOKUP(Table_Data_Table_13[[#This Row],[Item ID]],Analysis_Table,18,FALSE)","v":{"$error":"#N/A"}},{"$f":"VLOOKUP(Table_Data_Table_13[[#This Row],[Item ID]],Analysis_Table,19,FALSE)","v":{"$error":"#N/A"}},null,null,1]
["",null,null,null,null,null,null,null,null,0,null,null,null,{"$f":"VLOOKUP(Table_Data_Table_13[[#This Row],[Item ID]],Analysis_Table,8,FALSE)","v":{"$error":"#N/A"}},{"$f":"VLOOKUP(Table_Data_Table_13[[#This Row],[Item ID]],Analysis_Table,9,FALSE)","v":{"$error":"#N/A"}},{"$f":"VLOOKUP(Table_Data_Table_13[[#This Row],[Item ID]],Analysis_Table,10,FALSE)","v":{"$error":"#N/A"}},{"$f":"VLOOKUP(Table_Data_Table_13[[#This Row],[Item ID]],Analysis_Table,11,FALSE)","v":{"$error":"#N/A"}},{"$f":"VLOOKUP(Table_Data_Table_13[[#This Row],[Item ID]],Analysis_Table,12,FALSE)","v":{"$error":"#N/A"}},{"$f":"VLOOKUP(Table_Data_Table_13[[#This Row],[Item ID]],Analysis_Table,13,FALSE)","v":{"$error":"#N/A"}},{"$f":"VLOOKUP(Table_Data_Table_13[[#This Row],[Item ID]],Analysis_Table,14,FALSE)","v":{"$error":"#N/A"}},{"$f":"VLOOKUP(Table_Data_Table_13[[#This Row],[Item ID]],Analysis_Table,15,FALSE)","v":{"$error":"#N/A"}},{"$f":"VLOOKUP(Table_Data_Table_13[[#This Row],[Item ID]],Analysis_Table,16,FALSE)","v":{"$error":"#N/A"}},{"$f":"VLOOKUP(Table_Data_Table_13[[#This Row],[Item ID]],Analysis_Table,17,FALSE)","v":{"$error":"#N/A"}},{"$f":"VLOOKUP(Table_Data_Table_13[[#This Row],[Item ID]],Analysis_Table,18,FALSE)","v":{"$error":"#N/A"}},{"$f":"VLOOKUP(Table_Data_Table_13[[#This Row],[Item ID]],Analysis_Table,19,FALSE)","v":{"$error":"#N/A"}},null,null,1]
["",null,null,null,null,null,null,null,null,0,null,null,null,{"$f":"VLOOKUP(Table_Data_Table_13[[#This Row],[Item ID]],Analysis_Table,8,FALSE)","v":{"$error":"#N/A"}},{"$f":"VLOOKUP(Table_Data_Table_13[[#This Row],[Item ID]],Analysis_Table,9,FALSE)","v":{"$error":"#N/A"}},{"$f":"VLOOKUP(Table_Data_Table_13[[#This Row],[Item ID]],Analysis_Table,10,FALSE)","v":{"$error":"#N/A"}},{"$f":"VLOOKUP(Table_Data_Table_13[[#This Row],[Item ID]],Analysis_Table,11,FALSE)","v":{"$error":"#N/A"}},{"$f":"VLOOKUP(Table_Data_Table_13[[#This Row],[Item ID]],Analysis_Table,12,FALSE)","v":{"$error":"#N/A"}},{"$f":"VLOOKUP(Table_Data_Table_13[[#This Row],[Item ID]],Analysis_Table,13,FALSE)","v":{"$error":"#N/A"}},{"$f":"VLOOKUP(Table_Data_Table_13[[#This Row],[Item ID]],Analysis_Table,14,FALSE)","v":{"$error":"#N/A"}},{"$f":"VLOOKUP(Table_Data_Table_13[[#This Row],[Item ID]],Analysis_Table,15,FALSE)","v":{"$error":"#N/A"}},{"$f":"VLOOKUP(Table_Data_Table_13[[#This Row],[Item ID]],Analysis_Table,16,FALSE)","v":{"$error":"#N/A"}},{"$f":"VLOOKUP(Table_Data_Table_13[[#This Row],[Item ID]],Analysis_Table,17,FALSE)","v":{"$error":"#N/A"}},{"$f":"VLOOKUP(Table_Data_Table_13[[#This Row],[Item ID]],Analysis_Table,18,FALSE)","v":{"$error":"#N/A"}},{"$f":"VLOOKUP(Table_Data_Table_13[[#This Row],[Item ID]],Analysis_Table,19,FALSE)","v":{"$error":"#N/A"}},null,null,1]
["",null,null,null,null,null,null,null,null,0,null,null,null,{"$f":"VLOOKUP(Table_Data_Table_13[[#This Row],[Item ID]],Analysis_Table,8,FALSE)","v":{"$error":"#N/A"}},{"$f":"VLOOKUP(Table_Data_Table_13[[#This Row],[Item ID]],Analysis_Table,9,FALSE)","v":{"$error":"#N/A"}},{"$f":"VLOOKUP(Table_Data_Table_13[[#This Row],[Item ID]],Analysis_Table,10,FALSE)","v":{"$error":"#N/A"}},{"$f":"VLOOKUP(Table_Data_Table_13[[#This Row],[Item ID]],Analysis_Table,11,FALSE)","v":{"$error":"#N/A"}},{"$f":"VLOOKUP(Table_Data_Table_13[[#This Row],[Item ID]],Analysis_Table,12,FALSE)","v":{"$error":"#N/A"}},{"$f":"VLOOKUP(Table_Data_Table_13[[#This Row],[Item ID]],Analysis_Table,13,FALSE)","v":{"$error":"#N/A"}},{"$f":"VLOOKUP(Table_Data_Table_13[[#This Row],[Item ID]],Analysis_Table,14,FALSE)","v":{"$error":"#N/A"}},{"$f":"VLOOKUP(Table_Data_Table_13[[#This Row],[Item ID]],Analysis_Table,15,FALSE)","v":{"$error":"#N/A"}},{"$f":"VLOOKUP(Table_Data_Table_13[[#This Row],[Item ID]],Analysis_Table,16,FALSE)","v":{"$error":"#N/A"}},{"$f":"VLOOKUP(Table_Data_Table_13[[#This Row],[Item ID]],Analysis_Table,17,FALSE)","v":{"$error":"#N/A"}},{"$f":"VLOOKUP(Table_Data_Table_13[[#This Row],[Item ID]],Analysis_Table,18,FALSE)","v":{"$error":"#N/A"}},{"$f":"VLOOKUP(Table_Data_Table_13[[#This Row],[Item ID]],Analysis_Table,19,FALSE)","v":{"$error":"#N/A"}},null,null,1]
["",null,null,null,null,null,null,null,null,0,null,null,null,{"$f":"VLOOKUP(Table_Data_Table_13[[#This Row],[Item ID]],Analysis_Table,8,FALSE)","v":{"$error":"#N/A"}},{"$f":"VLOOKUP(Table_Data_Table_13[[#This Row],[Item ID]],Analysis_Table,9,FALSE)","v":{"$error":"#N/A"}},{"$f":"VLOOKUP(Table_Data_Table_13[[#This Row],[Item ID]],Analysis_Table,10,FALSE)","v":{"$error":"#N/A"}},{"$f":"VLOOKUP(Table_Data_Table_13[[#This Row],[Item ID]],Analysis_Table,11,FALSE)","v":{"$error":"#N/A"}},{"$f":"VLOOKUP(Table_Data_Table_13[[#This Row],[Item ID]],Analysis_Table,12,FALSE)","v":{"$error":"#N/A"}},{"$f":"VLOOKUP(Table_Data_Table_13[[#This Row],[Item ID]],Analysis_Table,13,FALSE)","v":{"$error":"#N/A"}},{"$f":"VLOOKUP(Table_Data_Table_13[[#This Row],[Item ID]],Analysis_Table,14,FALSE)","v":{"$error":"#N/A"}},{"$f":"VLOOKUP(Table_Data_Table_13[[#This Row],[Item ID]],Analysis_Table,15,FALSE)","v":{"$error":"#N/A"}},{"$f":"VLOOKUP(Table_Data_Table_13[[#This Row],[Item ID]],Analysis_Table,16,FALSE)","v":{"$error":"#N/A"}},{"$f":"VLOOKUP(Table_Data_Table_13[[#This Row],[Item ID]],Analysis_Table,17,FALSE)","v":{"$error":"#N/A"}},{"$f":"VLOOKUP(Table_Data_Table_13[[#This Row],[Item ID]],Analysis_Table,18,FALSE)","v":{"$error":"#N/A"}},{"$f":"VLOOKUP(Table_Data_Table_13[[#This Row],[Item ID]],Analysis_Table,19,FALSE)","v":{"$error":"#N/A"}},null,null,1]
["",null,null,null,null,null,null,null,null,0,null,null,null,{"$f":"VLOOKUP(Table_Data_Table_13[[#This Row],[Item ID]],Analysis_Table,8,FALSE)","v":{"$error":"#N/A"}},{"$f":"VLOOKUP(Table_Data_Table_13[[#This Row],[Item ID]],Analysis_Table,9,FALSE)","v":{"$error":"#N/A"}},{"$f":"VLOOKUP(Table_Data_Table_13[[#This Row],[Item ID]],Analysis_Table,10,FALSE)","v":{"$error":"#N/A"}},{"$f":"VLOOKUP(Table_Data_Table_13[[#This Row],[Item ID]],Analysis_Table,11,FALSE)","v":{"$error":"#N/A"}},{"$f":"VLOOKUP(Table_Data_Table_13[[#This Row],[Item ID]],Analysis_Table,12,FALSE)","v":{"$error":"#N/A"}},{"$f":"VLOOKUP(Table_Data_Table_13[[#This Row],[Item ID]],Analysis_Table,13,FALSE)","v":{"$error":"#N/A"}},{"$f":"VLOOKUP(Table_Data_Table_13[[#This Row],[Item ID]],Analysis_Table,14,FALSE)","v":{"$error":"#N/A"}},{"$f":"VLOOKUP(Table_Data_Table_13[[#This Row],[Item ID]],Analysis_Table,15,FALSE)","v":{"$error":"#N/A"}},{"$f":"VLOOKUP(Table_Data_Table_13[[#This Row],[Item ID]],Analysis_Table,16,FALSE)","v":{"$error":"#N/A"}},{"$f":"VLOOKUP(Table_Data_Table_13[[#This Row],[Item ID]],Analysis_Table,17,FALSE)","v":{"$error":"#N/A"}},{"$f":"VLOOKUP(Table_Data_Table_13[[#This Row],[Item ID]],Analysis_Table,18,FALSE)","v":{"$error":"#N/A"}},{"$f":"VLOOKUP(Table_Data_Table_13[[#This Row],[Item ID]],Analysis_Table,19,FALSE)","v":{"$error":"#N/A"}},null,null,1]
["",null,null,null,null,null,null,null,null,0,null,null,null,{"$f":"VLOOKUP(Table_Data_Table_13[[#This Row],[Item ID]],Analysis_Table,8,FALSE)","v":{"$error":"#N/A"}},{"$f":"VLOOKUP(Table_Data_Table_13[[#This Row],[Item ID]],Analysis_Table,9,FALSE)","v":{"$error":"#N/A"}},{"$f":"VLOOKUP(Table_Data_Table_13[[#This Row],[Item ID]],Analysis_Table,10,FALSE)","v":{"$error":"#N/A"}},{"$f":"VLOOKUP(Table_Data_Table_13[[#This Row],[Item ID]],Analysis_Table,11,FALSE)","v":{"$error":"#N/A"}},{"$f":"VLOOKUP(Table_Data_Table_13[[#This Row],[Item ID]],Analysis_Table,12,FALSE)","v":{"$error":"#N/A"}},{"$f":"VLOOKUP(Table_Data_Table_13[[#This Row],[Item ID]],Analysis_Table,13,FALSE)","v":{"$error":"#N/A"}},{"$f":"VLOOKUP(Table_Data_Table_13[[#This Row],[Item ID]],Analysis_Table,14,FALSE)","v":{"$error":"#N/A"}},{"$f":"VLOOKUP(Table_Data_Table_13[[#This Row],[Item ID]],Analysis_Table,15,FALSE)","v":{"$error":"#N/A"}},{"$f":"VLOOKUP(Table_Data_Table_13[[#This Row],[Item ID]],Analysis_Table,16,FALSE)","v":{"$error":"#N/A"}},{"$f":"VLOOKUP(Table_Data_Table_13[[#This Row],[Item ID]],Analysis_Table,17,FALSE)","v":{"$error":"#N/A"}},{"$f":"VLOOKUP(Table_Data_Table_13[[#This Row],[Item ID]],Analysis_Table,18,FALSE)","v":{"$error":"#N/A"}},{"$f":"VLOOKUP(Table_Data_Table_13[[#This Row],[Item ID]],Analysis_Table,19,FALSE)","v":{"$error":"#N/A"}},null,null,1]
["",null,null,null,null,null,null,null,null,0,null,null,null,{"$f":"VLOOKUP(Table_Data_Table_13[[#This Row],[Item ID]],Analysis_Table,8,FALSE)","v":{"$error":"#N/A"}},{"$f":"VLOOKUP(Table_Data_Table_13[[#This Row],[Item ID]],Analysis_Table,9,FALSE)","v":{"$error":"#N/A"}},{"$f":"VLOOKUP(Table_Data_Table_13[[#This Row],[Item ID]],Analysis_Table,10,FALSE)","v":{"$error":"#N/A"}},{"$f":"VLOOKUP(Table_Data_Table_13[[#This Row],[Item ID]],Analysis_Table,11,FALSE)","v":{"$error":"#N/A"}},{"$f":"VLOOKUP(Table_Data_Table_13[[#This Row],[Item ID]],Analysis_Table,12,FALSE)","v":{"$error":"#N/A"}},{"$f":"VLOOKUP(Table_Data_Table_13[[#This Row],[Item ID]],Analysis_Table,13,FALSE)","v":{"$error":"#N/A"}},{"$f":"VLOOKUP(Table_Data_Table_13[[#This Row],[Item ID]],Analysis_Table,14,FALSE)","v":{"$error":"#N/A"}},{"$f":"VLOOKUP(Table_Data_Table_13[[#This Row],[Item ID]],Analysis_Table,15,FALSE)","v":{"$error":"#N/A"}},{"$f":"VLOOKUP(Table_Data_Table_13[[#This Row],[Item ID]],Analysis_Table,16,FALSE)","v":{"$error":"#N/A"}},{"$f":"VLOOKUP(Table_Data_Table_13[[#This Row],[Item ID]],Analysis_Table,17,FALSE)","v":{"$error":"#N/A"}},{"$f":"VLOOKUP(Table_Data_Table_13[[#This Row],[Item ID]],Analysis_Table,18,FALSE)","v":{"$error":"#N/A"}},{"$f":"VLOOKUP(Table_Data_Table_13[[#This Row],[Item ID]],Analysis_Table,19,FALSE)","v":{"$error":"#N/A"}},null,null,1]
["",null,null,null,null,null,null,null,null,0,null,null,null,{"$f":"VLOOKUP(Table_Data_Table_13[[#This Row],[Item ID]],Analysis_Table,8,FALSE)","v":{"$error":"#N/A"}},{"$f":"VLOOKUP(Table_Data_Table_13[[#This Row],[Item ID]],Analysis_Table,9,FALSE)","v":{"$error":"#N/A"}},{"$f":"VLOOKUP(Table_Data_Table_13[[#This Row],[Item ID]],Analysis_Table,10,FALSE)","v":{"$error":"#N/A"}},{"$f":"VLOOKUP(Table_Data_Table_13[[#This Row],[Item ID]],Analysis_Table,11,FALSE)","v":{"$error":"#N/A"}},{"$f":"VLOOKUP(Table_Data_Table_13[[#This Row],[Item ID]],Analysis_Table,12,FALSE)","v":{"$error":"#N/A"}},{"$f":"VLOOKUP(Table_Data_Table_13[[#This Row],[Item ID]],Analysis_Table,13,FALSE)","v":{"$error":"#N/A"}},{"$f":"VLOOKUP(Table_Data_Table_13[[#This Row],[Item ID]],Analysis_Table,14,FALSE)","v":{"$error":"#N/A"}},{"$f":"VLOOKUP(Table_Data_Table_13[[#This Row],[Item ID]],Analysis_Table,15,FALSE)","v":{"$error":"#N/A"}},{"$f":"VLOOKUP(Table_Data_Table_13[[#This Row],[Item ID]],Analysis_Table,16,FALSE)","v":{"$error":"#N/A"}},{"$f":"VLOOKUP(Table_Data_Table_13[[#This Row],[Item ID]],Analysis_Table,17,FALSE)","v":{"$error":"#N/A"}},{"$f":"VLOOKUP(Table_Data_Table_13[[#This Row],[Item ID]],Analysis_Table,18,FALSE)","v":{"$error":"#N/A"}},{"$f":"VLOOKUP(Table_Data_Table_13[[#This Row],[Item ID]],Analysis_Table,19,FALSE)","v":{"$error":"#N/A"}},null,null,1]
["",null,null,null,null,null,null,null,null,0,null,null,null,{"$f":"VLOOKUP(Table_Data_Table_13[[#This Row],[Item ID]],Analysis_Table,8,FALSE)","v":{"$error":"#N/A"}},{"$f":"VLOOKUP(Table_Data_Table_13[[#This Row],[Item ID]],Analysis_Table,9,FALSE)","v":{"$error":"#N/A"}},{"$f":"VLOOKUP(Table_Data_Table_13[[#This Row],[Item ID]],Analysis_Table,10,FALSE)","v":{"$error":"#N/A"}},{"$f":"VLOOKUP(Table_Data_Table_13[[#This Row],[Item ID]],Analysis_Table,11,FALSE)","v":{"$error":"#N/A"}},{"$f":"VLOOKUP(Table_Data_Table_13[[#This Row],[Item ID]],Analysis_Table,12,FALSE)","v":{"$error":"#N/A"}},{"$f":"VLOOKUP(Table_Data_Table_13[[#This Row],[Item ID]],Analysis_Table,13,FALSE)","v":{"$error":"#N/A"}},{"$f":"VLOOKUP(Table_Data_Table_13[[#This Row],[Item ID]],Analysis_Table,14,FALSE)","v":{"$error":"#N/A"}},{"$f":"VLOOKUP(Table_Data_Table_13[[#This Row],[Item ID]],Analysis_Table,15,FALSE)","v":{"$error":"#N/A"}},{"$f":"VLOOKUP(Table_Data_Table_13[[#This Row],[Item ID]],Analysis_Table,16,FALSE)","v":{"$error":"#N/A"}},{"$f":"VLOOKUP(Table_Data_Table_13[[#This Row],[Item ID]],Analysis_Table,17,FALSE)","v":{"$error":"#N/A"}},{"$f":"VLOOKUP(Table_Data_Table_13[[#This Row],[Item ID]],Analysis_Table,18,FALSE)","v":{"$error":"#N/A"}},{"$f":"VLOOKUP(Table_Data_Table_13[[#This Row],[Item ID]],Analysis_Table,19,FALSE)","v":{"$error":"#N/A"}},null,null,1]
["",null,null,null,null,null,null,null,null,0,null,null,null,{"$f":"VLOOKUP(Table_Data_Table_13[[#This Row],[Item ID]],Analysis_Table,8,FALSE)","v":{"$error":"#N/A"}},{"$f":"VLOOKUP(Table_Data_Table_13[[#This Row],[Item ID]],Analysis_Table,9,FALSE)","v":{"$error":"#N/A"}},{"$f":"VLOOKUP(Table_Data_Table_13[[#This Row],[Item ID]],Analysis_Table,10,FALSE)","v":{"$error":"#N/A"}},{"$f":"VLOOKUP(Table_Data_Table_13[[#This Row],[Item ID]],Analysis_Table,11,FALSE)","v":{"$error":"#N/A"}},{"$f":"VLOOKUP(Table_Data_Table_13[[#This Row],[Item ID]],Analysis_Table,12,FALSE)","v":{"$error":"#N/A"}},{"$f":"VLOOKUP(Table_Data_Table_13[[#This Row],[Item ID]],Analysis_Table,13,FALSE)","v":{"$error":"#N/A"}},{"$f":"VLOOKUP(Table_Data_Table_13[[#This Row],[Item ID]],Analysis_Table,14,FALSE)","v":{"$error":"#N/A"}},{"$f":"VLOOKUP(Table_Data_Table_13[[#This Row],[Item ID]],Analysis_Table,15,FALSE)","v":{"$error":"#N/A"}},{"$f":"VLOOKUP(Table_Data_Table_13[[#This Row],[Item ID]],Analysis_Table,16,FALSE)","v":{"$error":"#N/A"}},{"$f":"VLOOKUP(Table_Data_Table_13[[#This Row],[Item ID]],Analysis_Table,17,FALSE)","v":{"$error":"#N/A"}},{"$f":"VLOOKUP(Table_Data_Table_13[[#This Row],[Item ID]],Analysis_Table,18,FALSE)","v":{"$error":"#N/A"}},{"$f":"VLOOKUP(Table_Data_Table_13[[#This Row],[Item ID]],Analysis_Table,19,FALSE)","v":{"$error":"#N/A"}},null,null,1]
["",null,null,null,null,null,null,null,null,0,null,null,null,{"$f":"VLOOKUP(Table_Data_Table_13[[#This Row],[Item ID]],Analysis_Table,8,FALSE)","v":{"$error":"#N/A"}},{"$f":"VLOOKUP(Table_Data_Table_13[[#This Row],[Item ID]],Analysis_Table,9,FALSE)","v":{"$error":"#N/A"}},{"$f":"VLOOKUP(Table_Data_Table_13[[#This Row],[Item ID]],Analysis_Table,10,FALSE)","v":{"$error":"#N/A"}},{"$f":"VLOOKUP(Table_Data_Table_13[[#This Row],[Item ID]],Analysis_Table,11,FALSE)","v":{"$error":"#N/A"}},{"$f":"VLOOKUP(Table_Data_Table_13[[#This Row],[Item ID]],Analysis_Table,12,FALSE)","v":{"$error":"#N/A"}},{"$f":"VLOOKUP(Table_Data_Table_13[[#This Row],[Item ID]],Analysis_Table,13,FALSE)","v":{"$error":"#N/A"}},{"$f":"VLOOKUP(Table_Data_Table_13[[#This Row],[Item ID]],Analysis_Table,14,FALSE)","v":{"$error":"#N/A"}},{"$f":"VLOOKUP(Table_Data_Table_13[[#This Row],[Item ID]],Analysis_Table,15,FALSE)","v":{"$error":"#N/A"}},{"$f":"VLOOKUP(Table_Data_Table_13[[#This Row],[Item ID]],Analysis_Table,16,FALSE)","v":{"$error":"#N/A"}},{"$f":"VLOOKUP(Table_Data_Table_13[[#This Row],[Item ID]],Analysis_Table,17,FALSE)","v":{"$error":"#N/A"}},{"$f":"VLOOKUP(Table_Data_Table_13[[#This Row],[Item ID]],Analysis_Table,18,FALSE)","v":{"$error":"#N/A"}},{"$f":"VLOOKUP(Table_Data_Table_13[[#This Row],[Item ID]],Analysis_Table,19,FALSE)","v":{"$error":"#N/A"}},null,null,1]
["",null,null,null,null,null,null,null,null,0,null,null,null,{"$f":"VLOOKUP(Table_Data_Table_13[[#This Row],[Item ID]],Analysis_Table,8,FALSE)","v":{"$error":"#N/A"}},{"$f":"VLOOKUP(Table_Data_Table_13[[#This Row],[Item ID]],Analysis_Table,9,FALSE)","v":{"$error":"#N/A"}},{"$f":"VLOOKUP(Table_Data_Table_13[[#This Row],[Item ID]],Analysis_Table,10,FALSE)","v":{"$error":"#N/A"}},{"$f":"VLOOKUP(Table_Data_Table_13[[#This Row],[Item ID]],Analysis_Table,11,FALSE)","v":{"$error":"#N/A"}},{"$f":"VLOOKUP(Table_Data_Table_13[[#This Row],[Item ID]],Analysis_Table,12,FALSE)","v":{"$error":"#N/A"}},{"$f":"VLOOKUP(Table_Data_Table_13[[#This Row],[Item ID]],Analysis_Table,13,FALSE)","v":{"$error":"#N/A"}},{"$f":"VLOOKUP(Table_Data_Table_13[[#This Row],[Item ID]],Analysis_Table,14,FALSE)","v":{"$error":"#N/A"}},{"$f":"VLOOKUP(Table_Data_Table_13[[#This Row],[Item ID]],Analysis_Table,15,FALSE)","v":{"$error":"#N/A"}},{"$f":"VLOOKUP(Table_Data_Table_13[[#This Row],[Item ID]],Analysis_Table,16,FALSE)","v":{"$error":"#N/A"}},{"$f":"VLOOKUP(Table_Data_Table_13[[#This Row],[Item ID]],Analysis_Table,17,FALSE)","v":{"$error":"#N/A"}},{"$f":"VLOOKUP(Table_Data_Table_13[[#This Row],[Item ID]],Analysis_Table,18,FALSE)","v":{"$error":"#N/A"}},{"$f":"VLOOKUP(Table_Data_Table_13[[#This Row],[Item ID]],Analysis_Table,19,FALSE)","v":{"$error":"#N/A"}},null,null,1]
["",null,null,null,null,null,null,null,null,0,null,null,null,{"$f":"VLOOKUP(Table_Data_Table_13[[#This Row],[Item ID]],Analysis_Table,8,FALSE)","v":{"$error":"#N/A"}},{"$f":"VLOOKUP(Table_Data_Table_13[[#This Row],[Item ID]],Analysis_Table,9,FALSE)","v":{"$error":"#N/A"}},{"$f":"VLOOKUP(Table_Data_Table_13[[#This Row],[Item ID]],Analysis_Table,10,FALSE)","v":{"$error":"#N/A"}},{"$f":"VLOOKUP(Table_Data_Table_13[[#This Row],[Item ID]],Analysis_Table,11,FALSE)","v":{"$error":"#N/A"}},{"$f":"VLOOKUP(Table_Data_Table_13[[#This Row],[Item ID]],Analysis_Table,12,FALSE)","v":{"$error":"#N/A"}},{"$f":"VLOOKUP(Table_Data_Table_13[[#This Row],[Item ID]],Analysis_Table,13,FALSE)","v":{"$error":"#N/A"}},{"$f":"VLOOKUP(Table_Data_Table_13[[#This Row],[Item ID]],Analysis_Table,14,FALSE)","v":{"$error":"#N/A"}},{"$f":"VLOOKUP(Table_Data_Table_13[[#This Row],[Item ID]],Analysis_Table,15,FALSE)","v":{"$error":"#N/A"}},{"$f":"VLOOKUP(Table_Data_Table_13[[#This Row],[Item ID]],Analysis_Table,16,FALSE)","v":{"$error":"#N/A"}},{"$f":"VLOOKUP(Table_Data_Table_13[[#This Row],[Item ID]],Analysis_Table,17,FALSE)","v":{"$error":"#N/A"}},{"$f":"VLOOKUP(Table_Data_Table_13[[#This Row],[Item ID]],Analysis_Table,18,FALSE)","v":{"$error":"#N/A"}},{"$f":"VLOOKUP(Table_Data_Table_13[[#This Row],[Item ID]],Analysis_Table,19,FALSE)","v":{"$error":"#N/A"}},null,null,1]
["",null,null,null,null,null,null,null,null,0,null,null,null,{"$f":"VLOOKUP(Table_Data_Table_13[[#This Row],[Item ID]],Analysis_Table,8,FALSE)","v":{"$error":"#N/A"}},{"$f":"VLOOKUP(Table_Data_Table_13[[#This Row],[Item ID]],Analysis_Table,9,FALSE)","v":{"$error":"#N/A"}},{"$f":"VLOOKUP(Table_Data_Table_13[[#This Row],[Item ID]],Analysis_Table,10,FALSE)","v":{"$error":"#N/A"}},{"$f":"VLOOKUP(Table_Data_Table_13[[#This Row],[Item ID]],Analysis_Table,11,FALSE)","v":{"$error":"#N/A"}},{"$f":"VLOOKUP(Table_Data_Table_13[[#This Row],[Item ID]],Analysis_Table,12,FALSE)","v":{"$error":"#N/A"}},{"$f":"VLOOKUP(Table_Data_Table_13[[#This Row],[Item ID]],Analysis_Table,13,FALSE)","v":{"$error":"#N/A"}},{"$f":"VLOOKUP(Table_Data_Table_13[[#This Row],[Item ID]],Analysis_Table,14,FALSE)","v":{"$error":"#N/A"}},{"$f":"VLOOKUP(Table_Data_Table_13[[#This Row],[Item ID]],Analysis_Table,15,FALSE)","v":{"$error":"#N/A"}},{"$f":"VLOOKUP(Table_Data_Table_13[[#This Row],[Item ID]],Analysis_Table,16,FALSE)","v":{"$error":"#N/A"}},{"$f":"VLOOKUP(Table_Data_Table_13[[#This Row],[Item ID]],Analysis_Table,17,FALSE)","v":{"$error":"#N/A"}},{"$f":"VLOOKUP(Table_Data_Table_13[[#This Row],[Item ID]],Analysis_Table,18,FALSE)","v":{"$error":"#N/A"}},{"$f":"VLOOKUP(Table_Data_Table_13[[#This Row],[Item ID]],Analysis_Table,19,FALSE)","v":{"$error":"#N/A"}},null,null,1]
["",null,null,null,null,null,null,null,null,0,null,null,null,{"$f":"VLOOKUP(Table_Data_Table_13[[#This Row],[Item ID]],Analysis_Table,8,FALSE)","v":{"$error":"#N/A"}},{"$f":"VLOOKUP(Table_Data_Table_13[[#This Row],[Item ID]],Analysis_Table,9,FALSE)","v":{"$error":"#N/A"}},{"$f":"VLOOKUP(Table_Data_Table_13[[#This Row],[Item ID]],Analysis_Table,10,FALSE)","v":{"$error":"#N/A"}},{"$f":"VLOOKUP(Table_Data_Table_13[[#This Row],[Item ID]],Analysis_Table,11,FALSE)","v":{"$error":"#N/A"}},{"$f":"VLOOKUP(Table_Data_Table_13[[#This Row],[Item ID]],Analysis_Table,12,FALSE)","v":{"$error":"#N/A"}},{"$f":"VLOOKUP(Table_Data_Table_13[[#This Row],[Item ID]],Analysis_Table,13,FALSE)","v":{"$error":"#N/A"}},{"$f":"VLOOKUP(Table_Data_Table_13[[#This Row],[Item ID]],Analysis_Table,14,FALSE)","v":{"$error":"#N/A"}},{"$f":"VLOOKUP(Table_Data_Table_13[[#This Row],[Item ID]],Analysis_Table,15,FALSE)","v":{"$error":"#N/A"}},{"$f":"VLOOKUP(Table_Data_Table_13[[#This Row],[Item ID]],Analysis_Table,16,FALSE)","v":{"$error":"#N/A"}},{"$f":"VLOOKUP(Table_Data_Table_13[[#This Row],[Item ID]],Analysis_Table,17,FALSE)","v":{"$error":"#N/A"}},{"$f":"VLOOKUP(Table_Data_Table_13[[#This Row],[Item ID]],Analysis_Table,18,FALSE)","v":{"$error":"#N/A"}},{"$f":"VLOOKUP(Table_Data_Table_13[[#This Row],[Item ID]],Analysis_Table,19,FALSE)","v":{"$error":"#N/A"}},null,null,1]
["",null,null,null,null,null,null,null,null,0,null,null,null,{"$f":"VLOOKUP(Table_Data_Table_13[[#This Row],[Item ID]],Analysis_Table,8,FALSE)","v":{"$error":"#N/A"}},{"$f":"VLOOKUP(Table_Data_Table_13[[#This Row],[Item ID]],Analysis_Table,9,FALSE)","v":{"$error":"#N/A"}},{"$f":"VLOOKUP(Table_Data_Table_13[[#This Row],[Item ID]],Analysis_Table,10,FALSE)","v":{"$error":"#N/A"}},{"$f":"VLOOKUP(Table_Data_Table_13[[#This Row],[Item ID]],Analysis_Table,11,FALSE)","v":{"$error":"#N/A"}},{"$f":"VLOOKUP(Table_Data_Table_13[[#This Row],[Item ID]],Analysis_Table,12,FALSE)","v":{"$error":"#N/A"}},{"$f":"VLOOKUP(Table_Data_Table_13[[#This Row],[Item ID]],Analysis_Table,13,FALSE)","v":{"$error":"#N/A"}},{"$f":"VLOOKUP(Table_Data_Table_13[[#This Row],[Item ID]],Analysis_Table,14,FALSE)","v":{"$error":"#N/A"}},{"$f":"VLOOKUP(Table_Data_Table_13[[#This Row],[Item ID]],Analysis_Table,15,FALSE)","v":{"$error":"#N/A"}},{"$f":"VLOOKUP(Table_Data_Table_13[[#This Row],[Item ID]],Analysis_Table,16,FALSE)","v":{"$error":"#N/A"}},{"$f":"VLOOKUP(Table_Data_Table_13[[#This Row],[Item ID]],Analysis_Table,17,FALSE)","v":{"$error":"#N/A"}},{"$f":"VLOOKUP(Table_Data_Table_13[[#This Row],[Item ID]],Analysis_Table,18,FALSE)","v":{"$error":"#N/A"}},{"$f":"VLOOKUP(Table_Data_Table_13[[#This Row],[Item ID]],Analysis_Table,19,FALSE)","v":{"$error":"#N/A"}},null,null,1]
["",null,null,null,null,null,null,null,null,0,null,null,null,{"$f":"VLOOKUP(Table_Data_Table_13[[#This Row],[Item ID]],Analysis_Table,8,FALSE)","v":{"$error":"#N/A"}},{"$f":"VLOOKUP(Table_Data_Table_13[[#This Row],[Item ID]],Analysis_Table,9,FALSE)","v":{"$error":"#N/A"}},{"$f":"VLOOKUP(Table_Data_Table_13[[#This Row],[Item ID]],Analysis_Table,10,FALSE)","v":{"$error":"#N/A"}},{"$f":"VLOOKUP(Table_Data_Table_13[[#This Row],[Item ID]],Analysis_Table,11,FALSE)","v":{"$error":"#N/A"}},{"$f":"VLOOKUP(Table_Data_Table_13[[#This Row],[Item ID]],Analysis_Table,12,FALSE)","v":{"$error":"#N/A"}},{"$f":"VLOOKUP(Table_Data_Table_13[[#This Row],[Item ID]],Analysis_Table,13,FALSE)","v":{"$error":"#N/A"}},{"$f":"VLOOKUP(Table_Data_Table_13[[#This Row],[Item ID]],Analysis_Table,14,FALSE)","v":{"$error":"#N/A"}},{"$f":"VLOOKUP(Table_Data_Table_13[[#This Row],[Item ID]],Analysis_Table,15,FALSE)","v":{"$error":"#N/A"}},{"$f":"VLOOKUP(Table_Data_Table_13[[#This Row],[Item ID]],Analysis_Table,16,FALSE)","v":{"$error":"#N/A"}},{"$f":"VLOOKUP(Table_Data_Table_13[[#This Row],[Item ID]],Analysis_Table,17,FALSE)","v":{"$error":"#N/A"}},{"$f":"VLOOKUP(Table_Data_Table_13[[#This Row],[Item ID]],Analysis_Table,18,FALSE)","v":{"$error":"#N/A"}},{"$f":"VLOOKUP(Table_Data_Table_13[[#This Row],[Item ID]],Analysis_Table,19,FALSE)","v":{"$error":"#N/A"}},null,null,1]
["",null,null,null,null,null,null,null,null,0,null,null,null,{"$f":"VLOOKUP(Table_Data_Table_13[[#This Row],[Item ID]],Analysis_Table,8,FALSE)","v":{"$error":"#N/A"}},{"$f":"VLOOKUP(Table_Data_Table_13[[#This Row],[Item ID]],Analysis_Table,9,FALSE)","v":{"$error":"#N/A"}},{"$f":"VLOOKUP(Table_Data_Table_13[[#This Row],[Item ID]],Analysis_Table,10,FALSE)","v":{"$error":"#N/A"}},{"$f":"VLOOKUP(Table_Data_Table_13[[#This Row],[Item ID]],Analysis_Table,11,FALSE)","v":{"$error":"#N/A"}},{"$f":"VLOOKUP(Table_Data_Table_13[[#This Row],[Item ID]],Analysis_Table,12,FALSE)","v":{"$error":"#N/A"}},{"$f":"VLOOKUP(Table_Data_Table_13[[#This Row],[Item ID]],Analysis_Table,13,FALSE)","v":{"$error":"#N/A"}},{"$f":"VLOOKUP(Table_Data_Table_13[[#This Row],[Item ID]],Analysis_Table,14,FALSE)","v":{"$error":"#N/A"}},{"$f":"VLOOKUP(Table_Data_Table_13[[#This Row],[Item ID]],Analysis_Table,15,FALSE)","v":{"$error":"#N/A"}},{"$f":"VLOOKUP(Table_Data_Table_13[[#This Row],[Item ID]],Analysis_Table,16,FALSE)","v":{"$error":"#N/A"}},{"$f":"VLOOKUP(Table_Data_Table_13[[#This Row],[Item ID]],Analysis_Table,17,FALSE)","v":{"$error":"#N/A"}},{"$f":"VLOOKUP(Table_Data_Table_13[[#This Row],[Item ID]],Analysis_Table,18,FALSE)","v":{"$error":"#N/A"}},{"$f":"VLOOKUP(Table_Data_Table_13[[#This Row],[Item ID]],Analysis_Table,19,FALSE)","v":{"$error":"#N/A"}},null,null,1]
["",null,null,null,null,null,null,null,null,0,null,null,null,{"$f":"VLOOKUP(Table_Data_Table_13[[#This Row],[Item ID]],Analysis_Table,8,FALSE)","v":{"$error":"#N/A"}},{"$f":"VLOOKUP(Table_Data_Table_13[[#This Row],[Item ID]],Analysis_Table,9,FALSE)","v":{"$error":"#N/A"}},{"$f":"VLOOKUP(Table_Data_Table_13[[#This Row],[Item ID]],Analysis_Table,10,FALSE)","v":{"$error":"#N/A"}},{"$f":"VLOOKUP(Table_Data_Table_13[[#This Row],[Item ID]],Analysis_Table,11,FALSE)","v":{"$error":"#N/A"}},{"$f":"VLOOKUP(Table_Data_Table_13[[#This Row],[Item ID]],Analysis_Table,12,FALSE)","v":{"$error":"#N/A"}},{"$f":"VLOOKUP(Table_Data_Table_13[[#This Row],[Item ID]],Analysis_Table,13,FALSE)","v":{"$error":"#N/A"}},{"$f":"VLOOKUP(Table_Data_Table_13[[#This Row],[Item ID]],Analysis_Table,14,FALSE)","v":{"$error":"#N/A"}},{"$f":"VLOOKUP(Table_Data_Table_13[[#This Row],[Item ID]],Analysis_Table,15,FALSE)","v":{"$error":"#N/A"}},{"$f":"VLOOKUP(Table_Data_Table_13[[#This Row],[Item ID]],Analysis_Table,16,FALSE)","v":{"$error":"#N/A"}},{"$f":"VLOOKUP(Table_Data_Table_13[[#This Row],[Item ID]],Analysis_Table,17,FALSE)","v":{"$error":"#N/A"}},{"$f":"VLOOKUP(Table_Data_Table_13[[#This Row],[Item ID]],Analysis_Table,18,FALSE)","v":{"$error":"#N/A"}},{"$f":"VLOOKUP(Table_Data_Table_13[[#This Row],[Item ID]],Analysis_Table,19,FALSE)","v":{"$error":"#N/A"}},null,null,1]
["",null,null,null,null,null,null,null,null,0,null,null,null,{"$f":"VLOOKUP(Table_Data_Table_13[[#This Row],[Item ID]],Analysis_Table,8,FALSE)","v":{"$error":"#N/A"}},{"$f":"VLOOKUP(Table_Data_Table_13[[#This Row],[Item ID]],Analysis_Table,9,FALSE)","v":{"$error":"#N/A"}},{"$f":"VLOOKUP(Table_Data_Table_13[[#This Row],[Item ID]],Analysis_Table,10,FALSE)","v":{"$error":"#N/A"}},{"$f":"VLOOKUP(Table_Data_Table_13[[#This Row],[Item ID]],Analysis_Table,11,FALSE)","v":{"$error":"#N/A"}},{"$f":"VLOOKUP(Table_Data_Table_13[[#This Row],[Item ID]],Analysis_Table,12,FALSE)","v":{"$error":"#N/A"}},{"$f":"VLOOKUP(Table_Data_Table_13[[#This Row],[Item ID]],Analysis_Table,13,FALSE)","v":{"$error":"#N/A"}},{"$f":"VLOOKUP(Table_Data_Table_13[[#This Row],[Item ID]],Analysis_Table,14,FALSE)","v":{"$error":"#N/A"}},{"$f":"VLOOKUP(Table_Data_Table_13[[#This Row],[Item ID]],Analysis_Table,15,FALSE)","v":{"$error":"#N/A"}},{"$f":"VLOOKUP(Table_Data_Table_13[[#This Row],[Item ID]],Analysis_Table,16,FALSE)","v":{"$error":"#N/A"}},{"$f":"VLOOKUP(Table_Data_Table_13[[#This Row],[Item ID]],Analysis_Table,17,FALSE)","v":{"$error":"#N/A"}},{"$f":"VLOOKUP(Table_Data_Table_13[[#This Row],[Item ID]],Analysis_Table,18,FALSE)","v":{"$error":"#N/A"}},{"$f":"VLOOKUP(Table_Data_Table_13[[#This Row],[Item ID]],Analysis_Table,19,FALSE)","v":{"$error":"#N/A"}},null,null,1]
["",null,null,null,null,null,null,null,null,0,null,null,null,{"$f":"VLOOKUP(Table_Data_Table_13[[#This Row],[Item ID]],Analysis_Table,8,FALSE)","v":{"$error":"#N/A"}},{"$f":"VLOOKUP(Table_Data_Table_13[[#This Row],[Item ID]],Analysis_Table,9,FALSE)","v":{"$error":"#N/A"}},{"$f":"VLOOKUP(Table_Data_Table_13[[#This Row],[Item ID]],Analysis_Table,10,FALSE)","v":{"$error":"#N/A"}},{"$f":"VLOOKUP(Table_Data_Table_13[[#This Row],[Item ID]],Analysis_Table,11,FALSE)","v":{"$error":"#N/A"}},{"$f":"VLOOKUP(Table_Data_Table_13[[#This Row],[Item ID]],Analysis_Table,12,FALSE)","v":{"$error":"#N/A"}},{"$f":"VLOOKUP(Table_Data_Table_13[[#This Row],[Item ID]],Analysis_Table,13,FALSE)","v":{"$error":"#N/A"}},{"$f":"VLOOKUP(Table_Data_Table_13[[#This Row],[Item ID]],Analysis_Table,14,FALSE)","v":{"$error":"#N/A"}},{"$f":"VLOOKUP(Table_Data_Table_13[[#This Row],[Item ID]],Analysis_Table,15,FALSE)","v":{"$error":"#N/A"}},{"$f":"VLOOKUP(Table_Data_Table_13[[#This Row],[Item ID]],Analysis_Table,16,FALSE)","v":{"$error":"#N/A"}},{"$f":"VLOOKUP(Table_Data_Table_13[[#This Row],[Item ID]],Analysis_Table,17,FALSE)","v":{"$error":"#N/A"}},{"$f":"VLOOKUP(Table_Data_Table_13[[#This Row],[Item ID]],Analysis_Table,18,FALSE)","v":{"$error":"#N/A"}},{"$f":"VLOOKUP(Table_Data_Table_13[[#This Row],[Item ID]],Analysis_Table,19,FALSE)","v":{"$error":"#N/A"}},null,null,1]
["",null,null,null,null,null,null,null,null,0,null,null,null,{"$f":"VLOOKUP(Table_Data_Table_13[[#This Row],[Item ID]],Analysis_Table,8,FALSE)","v":{"$error":"#N/A"}},{"$f":"VLOOKUP(Table_Data_Table_13[[#This Row],[Item ID]],Analysis_Table,9,FALSE)","v":{"$error":"#N/A"}},{"$f":"VLOOKUP(Table_Data_Table_13[[#This Row],[Item ID]],Analysis_Table,10,FALSE)","v":{"$error":"#N/A"}},{"$f":"VLOOKUP(Table_Data_Table_13[[#This Row],[Item ID]],Analysis_Table,11,FALSE)","v":{"$error":"#N/A"}},{"$f":"VLOOKUP(Table_Data_Table_13[[#This Row],[Item ID]],Analysis_Table,12,FALSE)","v":{"$error":"#N/A"}},{"$f":"VLOOKUP(Table_Data_Table_13[[#This Row],[Item ID]],Analysis_Table,13,FALSE)","v":{"$error":"#N/A"}},{"$f":"VLOOKUP(Table_Data_Table_13[[#This Row],[Item ID]],Analysis_Table,14,FALSE)","v":{"$error":"#N/A"}},{"$f":"VLOOKUP(Table_Data_Table_13[[#This Row],[Item ID]],Analysis_Table,15,FALSE)","v":{"$error":"#N/A"}},{"$f":"VLOOKUP(Table_Data_Table_13[[#This Row],[Item ID]],Analysis_Table,16,FALSE)","v":{"$error":"#N/A"}},{"$f":"VLOOKUP(Table_Data_Table_13[[#This Row],[Item ID]],Analysis_Table,17,FALSE)","v":{"$error":"#N/A"}},{"$f":"VLOOKUP(Table_Data_Table_13[[#This Row],[Item ID]],Analysis_Table,18,FALSE)","v":{"$error":"#N/A"}},{"$f":"VLOOKUP(Table_Data_Table_13[[#This Row],[Item ID]],Analysis_Table,19,FALSE)","v":{"$error":"#N/A"}},null,null,1]
["",null,null,null,null,null,null,null,null,0,null,null,null,{"$f":"VLOOKUP(Table_Data_Table_13[[#This Row],[Item ID]],Analysis_Table,8,FALSE)","v":{"$error":"#N/A"}},{"$f":"VLOOKUP(Table_Data_Table_13[[#This Row],[Item ID]],Analysis_Table,9,FALSE)","v":{"$error":"#N/A"}},{"$f":"VLOOKUP(Table_Data_Table_13[[#This Row],[Item ID]],Analysis_Table,10,FALSE)","v":{"$error":"#N/A"}},{"$f":"VLOOKUP(Table_Data_Table_13[[#This Row],[Item ID]],Analysis_Table,11,FALSE)","v":{"$error":"#N/A"}},{"$f":"VLOOKUP(Table_Data_Table_13[[#This Row],[Item ID]],Analysis_Table,12,FALSE)","v":{"$error":"#N/A"}},{"$f":"VLOOKUP(Table_Data_Table_13[[#This Row],[Item ID]],Analysis_Table,13,FALSE)","v":{"$error":"#N/A"}},{"$f":"VLOOKUP(Table_Data_Table_13[[#This Row],[Item ID]],Analysis_Table,14,FALSE)","v":{"$error":"#N/A"}},{"$f":"VLOOKUP(Table_Data_Table_13[[#This Row],[Item ID]],Analysis_Table,15,FALSE)","v":{"$error":"#N/A"}},{"$f":"VLOOKUP(Table_Data_Table_13[[#This Row],[Item ID]],Analysis_Table,16,FALSE)","v":{"$error":"#N/A"}},{"$f":"VLOOKUP(Table_Data_Table_13[[#This Row],[Item ID]],Analysis_Table,17,FALSE)","v":{"$error":"#N/A"}},{"$f":"VLOOKUP(Table_Data_Table_13[[#This Row],[Item ID]],Analysis_Table,18,FALSE)","v":{"$error":"#N/A"}},{"$f":"VLOOKUP(Table_Data_Table_13[[#This Row],[Item ID]],Analysis_Table,19,FALSE)","v":{"$error":"#N/A"}},null,null,1]
["",null,null,null,null,null,null,null,null,0,null,null,null,{"$f":"VLOOKUP(Table_Data_Table_13[[#This Row],[Item ID]],Analysis_Table,8,FALSE)","v":{"$error":"#N/A"}},{"$f":"VLOOKUP(Table_Data_Table_13[[#This Row],[Item ID]],Analysis_Table,9,FALSE)","v":{"$error":"#N/A"}},{"$f":"VLOOKUP(Table_Data_Table_13[[#This Row],[Item ID]],Analysis_Table,10,FALSE)","v":{"$error":"#N/A"}},{"$f":"VLOOKUP(Table_Data_Table_13[[#This Row],[Item ID]],Analysis_Table,11,FALSE)","v":{"$error":"#N/A"}},{"$f":"VLOOKUP(Table_Data_Table_13[[#This Row],[Item ID]],Analysis_Table,12,FALSE)","v":{"$error":"#N/A"}},{"$f":"VLOOKUP(Table_Data_Table_13[[#This Row],[Item ID]],Analysis_Table,13,FALSE)","v":{"$error":"#N/A"}},{"$f":"VLOOKUP(Table_Data_Table_13[[#This Row],[Item ID]],Analysis_Table,14,FALSE)","v":{"$error":"#N/A"}},{"$f":"VLOOKUP(Table_Data_Table_13[[#This Row],[Item ID]],Analysis_Table,15,FALSE)","v":{"$error":"#N/A"}},{"$f":"VLOOKUP(Table_Data_Table_13[[#This Row],[Item ID]],Analysis_Table,16,FALSE)","v":{"$error":"#N/A"}},{"$f":"VLOOKUP(Table_Data_Table_13[[#This Row],[Item ID]],Analysis_Table,17,FALSE)","v":{"$error":"#N/A"}},{"$f":"VLOOKUP(Table_Data_Table_13[[#This Row],[Item ID]],Analysis_Table,18,FALSE)","v":{"$error":"#N/A"}},{"$f":"VLOOKUP(Table_Data_Table_13[[#This Row],[Item ID]],Analysis_Table,19,FALSE)","v":{"$error":"#N/A"}},null,null,1]
["",null,null,null,null,null,null,null,null,0,null,null,null,{"$f":"VLOOKUP(Table_Data_Table_13[[#This Row],[Item ID]],Analysis_Table,8,FALSE)","v":{"$error":"#N/A"}},{"$f":"VLOOKUP(Table_Data_Table_13[[#This Row],[Item ID]],Analysis_Table,9,FALSE)","v":{"$error":"#N/A"}},{"$f":"VLOOKUP(Table_Data_Table_13[[#This Row],[Item ID]],Analysis_Table,10,FALSE)","v":{"$error":"#N/A"}},{"$f":"VLOOKUP(Table_Data_Table_13[[#This Row],[Item ID]],Analysis_Table,11,FALSE)","v":{"$error":"#N/A"}},{"$f":"VLOOKUP(Table_Data_Table_13[[#This Row],[Item ID]],Analysis_Table,12,FALSE)","v":{"$error":"#N/A"}},{"$f":"VLOOKUP(Table_Data_Table_13[[#This Row],[Item ID]],Analysis_Table,13,FALSE)","v":{"$error":"#N/A"}},{"$f":"VLOOKUP(Table_Data_Table_13[[#This Row],[Item ID]],Analysis_Table,14,FALSE)","v":{"$error":"#N/A"}},{"$f":"VLOOKUP(Table_Data_Table_13[[#This Row],[Item ID]],Analysis_Table,15,FALSE)","v":{"$error":"#N/A"}},{"$f":"VLOOKUP(Table_Data_Table_13[[#This Row],[Item ID]],Analysis_Table,16,FALSE)","v":{"$error":"#N/A"}},{"$f":"VLOOKUP(Table_Data_Table_13[[#This Row],[Item ID]],Analysis_Table,17,FALSE)","v":{"$error":"#N/A"}},{"$f":"VLOOKUP(Table_Data_Table_13[[#This Row],[Item ID]],Analysis_Table,18,FALSE)","v":{"$error":"#N/A"}},{"$f":"VLOOKUP(Table_Data_Table_13[[#This Row],[Item ID]],Analysis_Table,19,FALSE)","v":{"$error":"#N/A"}},null,null,1]
["",null,null,null,null,null,null,null,null,0,null,null,null,{"$f":"VLOOKUP(Table_Data_Table_13[[#This Row],[Item ID]],Analysis_Table,8,FALSE)","v":{"$error":"#N/A"}},{"$f":"VLOOKUP(Table_Data_Table_13[[#This Row],[Item ID]],Analysis_Table,9,FALSE)","v":{"$error":"#N/A"}},{"$f":"VLOOKUP(Table_Data_Table_13[[#This Row],[Item ID]],Analysis_Table,10,FALSE)","v":{"$error":"#N/A"}},{"$f":"VLOOKUP(Table_Data_Table_13[[#This Row],[Item ID]],Analysis_Table,11,FALSE)","v":{"$error":"#N/A"}},{"$f":"VLOOKUP(Table_Data_Table_13[[#This Row],[Item ID]],Analysis_Table,12,FALSE)","v":{"$error":"#N/A"}},{"$f":"VLOOKUP(Table_Data_Table_13[[#This Row],[Item ID]],Analysis_Table,13,FALSE)","v":{"$error":"#N/A"}},{"$f":"VLOOKUP(Table_Data_Table_13[[#This Row],[Item ID]],Analysis_Table,14,FALSE)","v":{"$error":"#N/A"}},{"$f":"VLOOKUP(Table_Data_Table_13[[#This Row],[Item ID]],Analysis_Table,15,FALSE)","v":{"$error":"#N/A"}},{"$f":"VLOOKUP(Table_Data_Table_13[[#This Row],[Item ID]],Analysis_Table,16,FALSE)","v":{"$error":"#N/A"}},{"$f":"VLOOKUP(Table_Data_Table_13[[#This Row],[Item ID]],Analysis_Table,17,FALSE)","v":{"$error":"#N/A"}},{"$f":"VLOOKUP(Table_Data_Table_13[[#This Row],[Item ID]],Analysis_Table,18,FALSE)","v":{"$error":"#N/A"}},{"$f":"VLOOKUP(Table_Data_Table_13[[#This Row],[Item ID]],Analysis_Table,19,FALSE)","v":{"$error":"#N/A"}},null,null,1]
["",null,null,null,null,null,null,null,null,0,null,null,null,{"$f":"VLOOKUP(Table_Data_Table_13[[#This Row],[Item ID]],Analysis_Table,8,FALSE)","v":{"$error":"#N/A"}},{"$f":"VLOOKUP(Table_Data_Table_13[[#This Row],[Item ID]],Analysis_Table,9,FALSE)","v":{"$error":"#N/A"}},{"$f":"VLOOKUP(Table_Data_Table_13[[#This Row],[Item ID]],Analysis_Table,10,FALSE)","v":{"$error":"#N/A"}},{"$f":"VLOOKUP(Table_Data_Table_13[[#This Row],[Item ID]],Analysis_Table,11,FALSE)","v":{"$error":"#N/A"}},{"$f":"VLOOKUP(Table_Data_Table_13[[#This Row],[Item ID]],Analysis_Table,12,FALSE)","v":{"$error":"#N/A"}},{"$f":"VLOOKUP(Table_Data_Table_13[[#This Row],[Item ID]],Analysis_Table,13,FALSE)","v":{"$error":"#N/A"}},{"$f":"VLOOKUP(Table_Data_Table_13[[#This Row],[Item ID]],Analysis_Table,14,FALSE)","v":{"$error":"#N/A"}},{"$f":"VLOOKUP(Table_Data_Table_13[[#This Row],[Item ID]],Analysis_Table,15,FALSE)","v":{"$error":"#N/A"}},{"$f":"VLOOKUP(Table_Data_Table_13[[#This Row],[Item ID]],Analysis_Table,16,FALSE)","v":{"$error":"#N/A"}},{"$f":"VLOOKUP(Table_Data_Table_13[[#This Row],[Item ID]],Analysis_Table,17,FALSE)","v":{"$error":"#N/A"}},{"$f":"VLOOKUP(Table_Data_Table_13[[#This Row],[Item ID]],Analysis_Table,18,FALSE)","v":{"$error":"#N/A"}},{"$f":"VLOOKUP(Table_Data_Table_13[[#This Row],[Item ID]],Analysis_Table,19,FALSE)","v":{"$error":"#N/A"}},null,null,1]
["",null,null,null,null,null,null,null,null,0,null,null,null,{"$f":"VLOOKUP(Table_Data_Table_13[[#This Row],[Item ID]],Analysis_Table,8,FALSE)","v":{"$error":"#N/A"}},{"$f":"VLOOKUP(Table_Data_Table_13[[#This Row],[Item ID]],Analysis_Table,9,FALSE)","v":{"$error":"#N/A"}},{"$f":"VLOOKUP(Table_Data_Table_13[[#This Row],[Item ID]],Analysis_Table,10,FALSE)","v":{"$error":"#N/A"}},{"$f":"VLOOKUP(Table_Data_Table_13[[#This Row],[Item ID]],Analysis_Table,11,FALSE)","v":{"$error":"#N/A"}},{"$f":"VLOOKUP(Table_Data_Table_13[[#This Row],[Item ID]],Analysis_Table,12,FALSE)","v":{"$error":"#N/A"}},{"$f":"VLOOKUP(Table_Data_Table_13[[#This Row],[Item ID]],Analysis_Table,13,FALSE)","v":{"$error":"#N/A"}},{"$f":"VLOOKUP(Table_Data_Table_13[[#This Row],[Item ID]],Analysis_Table,14,FALSE)","v":{"$error":"#N/A"}},{"$f":"VLOOKUP(Table_Data_Table_13[[#This Row],[Item ID]],Analysis_Table,15,FALSE)","v":{"$error":"#N/A"}},{"$f":"VLOOKUP(Table_Data_Table_13[[#This Row],[Item ID]],Analysis_Table,16,FALSE)","v":{"$error":"#N/A"}},{"$f":"VLOOKUP(Table_Data_Table_13[[#This Row],[Item ID]],Analysis_Table,17,FALSE)","v":{"$error":"#N/A"}},{"$f":"VLOOKUP(Table_Data_Table_13[[#This Row],[Item ID]],Analysis_Table,18,FALSE)","v":{"$error":"#N/A"}},{"$f":"VLOOKUP(Table_Data_Table_13[[#This Row],[Item ID]],Analysis_Table,19,FALSE)","v":{"$error":"#N/A"}},null,null,1]
["",null,null,null,null,null,null,null,null,0,null,null,null,{"$f":"VLOOKUP(Table_Data_Table_13[[#This Row],[Item ID]],Analysis_Table,8,FALSE)","v":{"$error":"#N/A"}},{"$f":"VLOOKUP(Table_Data_Table_13[[#This Row],[Item ID]],Analysis_Table,9,FALSE)","v":{"$error":"#N/A"}},{"$f":"VLOOKUP(Table_Data_Table_13[[#This Row],[Item ID]],Analysis_Table,10,FALSE)","v":{"$error":"#N/A"}},{"$f":"VLOOKUP(Table_Data_Table_13[[#This Row],[Item ID]],Analysis_Table,11,FALSE)","v":{"$error":"#N/A"}},{"$f":"VLOOKUP(Table_Data_Table_13[[#This Row],[Item ID]],Analysis_Table,12,FALSE)","v":{"$error":"#N/A"}},{"$f":"VLOOKUP(Table_Data_Table_13[[#This Row],[Item ID]],Analysis_Table,13,FALSE)","v":{"$error":"#N/A"}},{"$f":"VLOOKUP(Table_Data_Table_13[[#This Row],[Item ID]],Analysis_Table,14,FALSE)","v":{"$error":"#N/A"}},{"$f":"VLOOKUP(Table_Data_Table_13[[#This Row],[Item ID]],Analysis_Table,15,FALSE)","v":{"$error":"#N/A"}},{"$f":"VLOOKUP(Table_Data_Table_13[[#This Row],[Item ID]],Analysis_Table,16,FALSE)","v":{"$error":"#N/A"}},{"$f":"VLOOKUP(Table_Data_Table_13[[#This Row],[Item ID]],Analysis_Table,17,FALSE)","v":{"$error":"#N/A"}},{"$f":"VLOOKUP(Table_Data_Table_13[[#This Row],[Item ID]],Analysis_Table,18,FALSE)","v":{"$error":"#N/A"}},{"$f":"VLOOKUP(Table_Data_Table_13[[#This Row],[Item ID]],Analysis_Table,19,FALSE)","v":{"$error":"#N/A"}},null,null,1]
["",null,null,null,null,null,null,null,null,0,null,null,null,{"$f":"VLOOKUP(Table_Data_Table_13[[#This Row],[Item ID]],Analysis_Table,8,FALSE)","v":{"$error":"#N/A"}},{"$f":"VLOOKUP(Table_Data_Table_13[[#This Row],[Item ID]],Analysis_Table,9,FALSE)","v":{"$error":"#N/A"}},{"$f":"VLOOKUP(Table_Data_Table_13[[#This Row],[Item ID]],Analysis_Table,10,FALSE)","v":{"$error":"#N/A"}},{"$f":"VLOOKUP(Table_Data_Table_13[[#This Row],[Item ID]],Analysis_Table,11,FALSE)","v":{"$error":"#N/A"}},{"$f":"VLOOKUP(Table_Data_Table_13[[#This Row],[Item ID]],Analysis_Table,12,FALSE)","v":{"$error":"#N/A"}},{"$f":"VLOOKUP(Table_Data_Table_13[[#This Row],[Item ID]],Analysis_Table,13,FALSE)","v":{"$error":"#N/A"}},{"$f":"VLOOKUP(Table_Data_Table_13[[#This Row],[Item ID]],Analysis_Table,14,FALSE)","v":{"$error":"#N/A"}},{"$f":"VLOOKUP(Table_Data_Table_13[[#This Row],[Item ID]],Analysis_Table,15,FALSE)","v":{"$error":"#N/A"}},{"$f":"VLOOKUP(Table_Data_Table_13[[#This Row],[Item ID]],Analysis_Table,16,FALSE)","v":{"$error":"#N/A"}},{"$f":"VLOOKUP(Table_Data_Table_13[[#This Row],[Item ID]],Analysis_Table,17,FALSE)","v":{"$error":"#N/A"}},{"$f":"VLOOKUP(Table_Data_Table_13[[#This Row],[Item ID]],Analysis_Table,18,FALSE)","v":{"$error":"#N/A"}},{"$f":"VLOOKUP(Table_Data_Table_13[[#This Row],[Item ID]],Analysis_Table,19,FALSE)","v":{"$error":"#N/A"}},null,null,1]
["",null,null,null,null,null,null,null,null,0,null,null,null,{"$f":"VLOOKUP(Table_Data_Table_13[[#This Row],[Item ID]],Analysis_Table,8,FALSE)","v":{"$error":"#N/A"}},{"$f":"VLOOKUP(Table_Data_Table_13[[#This Row],[Item ID]],Analysis_Table,9,FALSE)","v":{"$error":"#N/A"}},{"$f":"VLOOKUP(Table_Data_Table_13[[#This Row],[Item ID]],Analysis_Table,10,FALSE)","v":{"$error":"#N/A"}},{"$f":"VLOOKUP(Table_Data_Table_13[[#This Row],[Item ID]],Analysis_Table,11,FALSE)","v":{"$error":"#N/A"}},{"$f":"VLOOKUP(Table_Data_Table_13[[#This Row],[Item ID]],Analysis_Table,12,FALSE)","v":{"$error":"#N/A"}},{"$f":"VLOOKUP(Table_Data_Table_13[[#This Row],[Item ID]],Analysis_Table,13,FALSE)","v":{"$error":"#N/A"}},{"$f":"VLOOKUP(Table_Data_Table_13[[#This Row],[Item ID]],Analysis_Table,14,FALSE)","v":{"$error":"#N/A"}},{"$f":"VLOOKUP(Table_Data_Table_13[[#This Row],[Item ID]],Analysis_Table,15,FALSE)","v":{"$error":"#N/A"}},{"$f":"VLOOKUP(Table_Data_Table_13[[#This Row],[Item ID]],Analysis_Table,16,FALSE)","v":{"$error":"#N/A"}},{"$f":"VLOOKUP(Table_Data_Table_13[[#This Row],[Item ID]],Analysis_Table,17,FALSE)","v":{"$error":"#N/A"}},{"$f":"VLOOKUP(Table_Data_Table_13[[#This Row],[Item ID]],Analysis_Table,18,FALSE)","v":{"$error":"#N/A"}},{"$f":"VLOOKUP(Table_Data_Table_13[[#This Row],[Item ID]],Analysis_Table,19,FALSE)","v":{"$error":"#N/A"}},null,null,1]
["",null,null,null,null,null,null,null,null,0,null,null,null,{"$f":"VLOOKUP(Table_Data_Table_13[[#This Row],[Item ID]],Analysis_Table,8,FALSE)","v":{"$error":"#N/A"}},{"$f":"VLOOKUP(Table_Data_Table_13[[#This Row],[Item ID]],Analysis_Table,9,FALSE)","v":{"$error":"#N/A"}},{"$f":"VLOOKUP(Table_Data_Table_13[[#This Row],[Item ID]],Analysis_Table,10,FALSE)","v":{"$error":"#N/A"}},{"$f":"VLOOKUP(Table_Data_Table_13[[#This Row],[Item ID]],Analysis_Table,11,FALSE)","v":{"$error":"#N/A"}},{"$f":"VLOOKUP(Table_Data_Table_13[[#This Row],[Item ID]],Analysis_Table,12,FALSE)","v":{"$error":"#N/A"}},{"$f":"VLOOKUP(Table_Data_Table_13[[#This Row],[Item ID]],Analysis_Table,13,FALSE)","v":{"$error":"#N/A"}},{"$f":"VLOOKUP(Table_Data_Table_13[[#This Row],[Item ID]],Analysis_Table,14,FALSE)","v":{"$error":"#N/A"}},{"$f":"VLOOKUP(Table_Data_Table_13[[#This Row],[Item ID]],Analysis_Table,15,FALSE)","v":{"$error":"#N/A"}},{"$f":"VLOOKUP(Table_Data_Table_13[[#This Row],[Item ID]],Analysis_Table,16,FALSE)","v":{"$error":"#N/A"}},{"$f":"VLOOKUP(Table_Data_Table_13[[#This Row],[Item ID]],Analysis_Table,17,FALSE)","v":{"$error":"#N/A"}},{"$f":"VLOOKUP(Table_Data_Table_13[[#This Row],[Item ID]],Analysis_Table,18,FALSE)","v":{"$error":"#N/A"}},{"$f":"VLOOKUP(Table_Data_Table_13[[#This Row],[Item ID]],Analysis_Table,19,FALSE)","v":{"$error":"#N/A"}},null,null,1]
["",null,null,null,null,null,null,null,null,0,null,null,null,{"$f":"VLOOKUP(Table_Data_Table_13[[#This Row],[Item ID]],Analysis_Table,8,FALSE)","v":{"$error":"#N/A"}},{"$f":"VLOOKUP(Table_Data_Table_13[[#This Row],[Item ID]],Analysis_Table,9,FALSE)","v":{"$error":"#N/A"}},{"$f":"VLOOKUP(Table_Data_Table_13[[#This Row],[Item ID]],Analysis_Table,10,FALSE)","v":{"$error":"#N/A"}},{"$f":"VLOOKUP(Table_Data_Table_13[[#This Row],[Item ID]],Analysis_Table,11,FALSE)","v":{"$error":"#N/A"}},{"$f":"VLOOKUP(Table_Data_Table_13[[#This Row],[Item ID]],Analysis_Table,12,FALSE)","v":{"$error":"#N/A"}},{"$f":"VLOOKUP(Table_Data_Table_13[[#This Row],[Item ID]],Analysis_Table,13,FALSE)","v":{"$error":"#N/A"}},{"$f":"VLOOKUP(Table_Data_Table_13[[#This Row],[Item ID]],Analysis_Table,14,FALSE)","v":{"$error":"#N/A"}},{"$f":"VLOOKUP(Table_Data_Table_13[[#This Row],[Item ID]],Analysis_Table,15,FALSE)","v":{"$error":"#N/A"}},{"$f":"VLOOKUP(Table_Data_Table_13[[#This Row],[Item ID]],Analysis_Table,16,FALSE)","v":{"$error":"#N/A"}},{"$f":"VLOOKUP(Table_Data_Table_13[[#This Row],[Item ID]],Analysis_Table,17,FALSE)","v":{"$error":"#N/A"}},{"$f":"VLOOKUP(Table_Data_Table_13[[#This Row],[Item ID]],Analysis_Table,18,FALSE)","v":{"$error":"#N/A"}},{"$f":"VLOOKUP(Table_Data_Table_13[[#This Row],[Item ID]],Analysis_Table,19,FALSE)","v":{"$error":"#N/A"}},null,null,1]
["",null,null,null,null,null,null,null,null,0,null,null,null,{"$f":"VLOOKUP(Table_Data_Table_13[[#This Row],[Item ID]],Analysis_Table,8,FALSE)","v":{"$error":"#N/A"}},{"$f":"VLOOKUP(Table_Data_Table_13[[#This Row],[Item ID]],Analysis_Table,9,FALSE)","v":{"$error":"#N/A"}},{"$f":"VLOOKUP(Table_Data_Table_13[[#This Row],[Item ID]],Analysis_Table,10,FALSE)","v":{"$error":"#N/A"}},{"$f":"VLOOKUP(Table_Data_Table_13[[#This Row],[Item ID]],Analysis_Table,11,FALSE)","v":{"$error":"#N/A"}},{"$f":"VLOOKUP(Table_Data_Table_13[[#This Row],[Item ID]],Analysis_Table,12,FALSE)","v":{"$error":"#N/A"}},{"$f":"VLOOKUP(Table_Data_Table_13[[#This Row],[Item ID]],Analysis_Table,13,FALSE)","v":{"$error":"#N/A"}},{"$f":"VLOOKUP(Table_Data_Table_13[[#This Row],[Item ID]],Analysis_Table,14,FALSE)","v":{"$error":"#N/A"}},{"$f":"VLOOKUP(Table_Data_Table_13[[#This Row],[Item ID]],Analysis_Table,15,FALSE)","v":{"$error":"#N/A"}},{"$f":"VLOOKUP(Table_Data_Table_13[[#This Row],[Item ID]],Analysis_Table,16,FALSE)","v":{"$error":"#N/A"}},{"$f":"VLOOKUP(Table_Data_Table_13[[#This Row],[Item ID]],Analysis_Table,17,FALSE)","v":{"$error":"#N/A"}},{"$f":"VLOOKUP(Table_Data_Table_13[[#This Row],[Item ID]],Analysis_Table,18,FALSE)","v":{"$error":"#N/A"}},{"$f":"VLOOKUP(Table_Data_Table_13[[#This Row],[Item ID]],Analysis_Table,19,FALSE)","v":{"$error":"#N/A"}},null,null,1]
["",null,null,null,null,null,null,null,null,0,null,null,null,{"$f":"VLOOKUP(Table_Data_Table_13[[#This Row],[Item ID]],Analysis_Table,8,FALSE)","v":{"$error":"#N/A"}},{"$f":"VLOOKUP(Table_Data_Table_13[[#This Row],[Item ID]],Analysis_Table,9,FALSE)","v":{"$error":"#N/A"}},{"$f":"VLOOKUP(Table_Data_Table_13[[#This Row],[Item ID]],Analysis_Table,10,FALSE)","v":{"$error":"#N/A"}},{"$f":"VLOOKUP(Table_Data_Table_13[[#This Row],[Item ID]],Analysis_Table,11,FALSE)","v":{"$error":"#N/A"}},{"$f":"VLOOKUP(Table_Data_Table_13[[#This Row],[Item ID]],Analysis_Table,12,FALSE)","v":{"$error":"#N/A"}},{"$f":"VLOOKUP(Table_Data_Table_13[[#This Row],[Item ID]],Analysis_Table,13,FALSE)","v":{"$error":"#N/A"}},{"$f":"VLOOKUP(Table_Data_Table_13[[#This Row],[Item ID]],Analysis_Table,14,FALSE)","v":{"$error":"#N/A"}},{"$f":"VLOOKUP(Table_Data_Table_13[[#This Row],[Item ID]],Analysis_Table,15,FALSE)","v":{"$error":"#N/A"}},{"$f":"VLOOKUP(Table_Data_Table_13[[#This Row],[Item ID]],Analysis_Table,16,FALSE)","v":{"$error":"#N/A"}},{"$f":"VLOOKUP(Table_Data_Table_13[[#This Row],[Item ID]],Analysis_Table,17,FALSE)","v":{"$error":"#N/A"}},{"$f":"VLOOKUP(Table_Data_Table_13[[#This Row],[Item ID]],Analysis_Table,18,FALSE)","v":{"$error":"#N/A"}},{"$f":"VLOOKUP(Table_Data_Table_13[[#This Row],[Item ID]],Analysis_Table,19,FALSE)","v":{"$error":"#N/A"}},null,null,1]
["",null,null,null,null,null,null,null,null,0,null,null,null,{"$f":"VLOOKUP(Table_Data_Table_13[[#This Row],[Item ID]],Analysis_Table,8,FALSE)","v":{"$error":"#N/A"}},{"$f":"VLOOKUP(Table_Data_Table_13[[#This Row],[Item ID]],Analysis_Table,9,FALSE)","v":{"$error":"#N/A"}},{"$f":"VLOOKUP(Table_Data_Table_13[[#This Row],[Item ID]],Analysis_Table,10,FALSE)","v":{"$error":"#N/A"}},{"$f":"VLOOKUP(Table_Data_Table_13[[#This Row],[Item ID]],Analysis_Table,11,FALSE)","v":{"$error":"#N/A"}},{"$f":"VLOOKUP(Table_Data_Table_13[[#This Row],[Item ID]],Analysis_Table,12,FALSE)","v":{"$error":"#N/A"}},{"$f":"VLOOKUP(Table_Data_Table_13[[#This Row],[Item ID]],Analysis_Table,13,FALSE)","v":{"$error":"#N/A"}},{"$f":"VLOOKUP(Table_Data_Table_13[[#This Row],[Item ID]],Analysis_Table,14,FALSE)","v":{"$error":"#N/A"}},{"$f":"VLOOKUP(Table_Data_Table_13[[#This Row],[Item ID]],Analysis_Table,15,FALSE)","v":{"$error":"#N/A"}},{"$f":"VLOOKUP(Table_Data_Table_13[[#This Row],[Item ID]],Analysis_Table,16,FALSE)","v":{"$error":"#N/A"}},{"$f":"VLOOKUP(Table_Data_Table_13[[#This Row],[Item ID]],Analysis_Table,17,FALSE)","v":{"$error":"#N/A"}},{"$f":"VLOOKUP(Table_Data_Table_13[[#This Row],[Item ID]],Analysis_Table,18,FALSE)","v":{"$error":"#N/A"}},{"$f":"VLOOKUP(Table_Data_Table_13[[#This Row],[Item ID]],Analysis_Table,19,FALSE)","v":{"$error":"#N/A"}},null,null,1]
["",null,null,null,null,null,null,null,null,0,null,null,null,{"$f":"VLOOKUP(Table_Data_Table_13[[#This Row],[Item ID]],Analysis_Table,8,FALSE)","v":{"$error":"#N/A"}},{"$f":"VLOOKUP(Table_Data_Table_13[[#This Row],[Item ID]],Analysis_Table,9,FALSE)","v":{"$error":"#N/A"}},{"$f":"VLOOKUP(Table_Data_Table_13[[#This Row],[Item ID]],Analysis_Table,10,FALSE)","v":{"$error":"#N/A"}},{"$f":"VLOOKUP(Table_Data_Table_13[[#This Row],[Item ID]],Analysis_Table,11,FALSE)","v":{"$error":"#N/A"}},{"$f":"VLOOKUP(Table_Data_Table_13[[#This Row],[Item ID]],Analysis_Table,12,FALSE)","v":{"$error":"#N/A"}},{"$f":"VLOOKUP(Table_Data_Table_13[[#This Row],[Item ID]],Analysis_Table,13,FALSE)","v":{"$error":"#N/A"}},{"$f":"VLOOKUP(Table_Data_Table_13[[#This Row],[Item ID]],Analysis_Table,14,FALSE)","v":{"$error":"#N/A"}},{"$f":"VLOOKUP(Table_Data_Table_13[[#This Row],[Item ID]],Analysis_Table,15,FALSE)","v":{"$error":"#N/A"}},{"$f":"VLOOKUP(Table_Data_Table_13[[#This Row],[Item ID]],Analysis_Table,16,FALSE)","v":{"$error":"#N/A"}},{"$f":"VLOOKUP(Table_Data_Table_13[[#This Row],[Item ID]],Analysis_Table,17,FALSE)","v":{"$error":"#N/A"}},{"$f":"VLOOKUP(Table_Data_Table_13[[#This Row],[Item ID]],Analysis_Table,18,FALSE)","v":{"$error":"#N/A"}},{"$f":"VLOOKUP(Table_Data_Table_13[[#This Row],[Item ID]],Analysis_Table,19,FALSE)","v":{"$error":"#N/A"}},null,null,1]
["",null,null,null,null,null,null,null,null,0,null,null,null,{"$f":"VLOOKUP(Table_Data_Table_13[[#This Row],[Item ID]],Analysis_Table,8,FALSE)","v":{"$error":"#N/A"}},{"$f":"VLOOKUP(Table_Data_Table_13[[#This Row],[Item ID]],Analysis_Table,9,FALSE)","v":{"$error":"#N/A"}},{"$f":"VLOOKUP(Table_Data_Table_13[[#This Row],[Item ID]],Analysis_Table,10,FALSE)","v":{"$error":"#N/A"}},{"$f":"VLOOKUP(Table_Data_Table_13[[#This Row],[Item ID]],Analysis_Table,11,FALSE)","v":{"$error":"#N/A"}},{"$f":"VLOOKUP(Table_Data_Table_13[[#This Row],[Item ID]],Analysis_Table,12,FALSE)","v":{"$error":"#N/A"}},{"$f":"VLOOKUP(Table_Data_Table_13[[#This Row],[Item ID]],Analysis_Table,13,FALSE)","v":{"$error":"#N/A"}},{"$f":"VLOOKUP(Table_Data_Table_13[[#This Row],[Item ID]],Analysis_Table,14,FALSE)","v":{"$error":"#N/A"}},{"$f":"VLOOKUP(Table_Data_Table_13[[#This Row],[Item ID]],Analysis_Table,15,FALSE)","v":{"$error":"#N/A"}},{"$f":"VLOOKUP(Table_Data_Table_13[[#This Row],[Item ID]],Analysis_Table,16,FALSE)","v":{"$error":"#N/A"}},{"$f":"VLOOKUP(Table_Data_Table_13[[#This Row],[Item ID]],Analysis_Table,17,FALSE)","v":{"$error":"#N/A"}},{"$f":"VLOOKUP(Table_Data_Table_13[[#This Row],[Item ID]],Analysis_Table,18,FALSE)","v":{"$error":"#N/A"}},{"$f":"VLOOKUP(Table_Data_Table_13[[#This Row],[Item ID]],Analysis_Table,19,FALSE)","v":{"$error":"#N/A"}},null,null,1]
["",null,null,null,null,null,null,null,null,0,null,null,null,{"$f":"VLOOKUP(Table_Data_Table_13[[#This Row],[Item ID]],Analysis_Table,8,FALSE)","v":{"$error":"#N/A"}},{"$f":"VLOOKUP(Table_Data_Table_13[[#This Row],[Item ID]],Analysis_Table,9,FALSE)","v":{"$error":"#N/A"}},{"$f":"VLOOKUP(Table_Data_Table_13[[#This Row],[Item ID]],Analysis_Table,10,FALSE)","v":{"$error":"#N/A"}},{"$f":"VLOOKUP(Table_Data_Table_13[[#This Row],[Item ID]],Analysis_Table,11,FALSE)","v":{"$error":"#N/A"}},{"$f":"VLOOKUP(Table_Data_Table_13[[#This Row],[Item ID]],Analysis_Table,12,FALSE)","v":{"$error":"#N/A"}},{"$f":"VLOOKUP(Table_Data_Table_13[[#This Row],[Item ID]],Analysis_Table,13,FALSE)","v":{"$error":"#N/A"}},{"$f":"VLOOKUP(Table_Data_Table_13[[#This Row],[Item ID]],Analysis_Table,14,FALSE)","v":{"$error":"#N/A"}},{"$f":"VLOOKUP(Table_Data_Table_13[[#This Row],[Item ID]],Analysis_Table,15,FALSE)","v":{"$error":"#N/A"}},{"$f":"VLOOKUP(Table_Data_Table_13[[#This Row],[Item ID]],Analysis_Table,16,FALSE)","v":{"$error":"#N/A"}},{"$f":"VLOOKUP(Table_Data_Table_13[[#This Row],[Item ID]],Analysis_Table,17,FALSE)","v":{"$error":"#N/A"}},{"$f":"VLOOKUP(Table_Data_Table_13[[#This Row],[Item ID]],Analysis_Table,18,FALSE)","v":{"$error":"#N/A"}},{"$f":"VLOOKUP(Table_Data_Table_13[[#This Row],[Item ID]],Analysis_Table,19,FALSE)","v":{"$error":"#N/A"}},null,null,1]
["",null,null,null,null,null,null,null,null,0,null,null,null,{"$f":"VLOOKUP(Table_Data_Table_13[[#This Row],[Item ID]],Analysis_Table,8,FALSE)","v":{"$error":"#N/A"}},{"$f":"VLOOKUP(Table_Data_Table_13[[#This Row],[Item ID]],Analysis_Table,9,FALSE)","v":{"$error":"#N/A"}},{"$f":"VLOOKUP(Table_Data_Table_13[[#This Row],[Item ID]],Analysis_Table,10,FALSE)","v":{"$error":"#N/A"}},{"$f":"VLOOKUP(Table_Data_Table_13[[#This Row],[Item ID]],Analysis_Table,11,FALSE)","v":{"$error":"#N/A"}},{"$f":"VLOOKUP(Table_Data_Table_13[[#This Row],[Item ID]],Analysis_Table,12,FALSE)","v":{"$error":"#N/A"}},{"$f":"VLOOKUP(Table_Data_Table_13[[#This Row],[Item ID]],Analysis_Table,13,FALSE)","v":{"$error":"#N/A"}},{"$f":"VLOOKUP(Table_Data_Table_13[[#This Row],[Item ID]],Analysis_Table,14,FALSE)","v":{"$error":"#N/A"}},{"$f":"VLOOKUP(Table_Data_Table_13[[#This Row],[Item ID]],Analysis_Table,15,FALSE)","v":{"$error":"#N/A"}},{"$f":"VLOOKUP(Table_Data_Table_13[[#This Row],[Item ID]],Analysis_Table,16,FALSE)","v":{"$error":"#N/A"}},{"$f":"VLOOKUP(Table_Data_Table_13[[#This Row],[Item ID]],Analysis_Table,17,FALSE)","v":{"$error":"#N/A"}},{"$f":"VLOOKUP(Table_Data_Table_13[[#This Row],[Item ID]],Analysis_Table,18,FALSE)","v":{"$error":"#N/A"}},{"$f":"VLOOKUP(Table_Data_Table_13[[#This Row],[Item ID]],Analysis_Table,19,FALSE)","v":{"$error":"#N/A"}},null,null,1]
["",null,null,null,null,null,null,null,null,0,null,null,null,{"$f":"VLOOKUP(Table_Data_Table_13[[#This Row],[Item ID]],Analysis_Table,8,FALSE)","v":{"$error":"#N/A"}},{"$f":"VLOOKUP(Table_Data_Table_13[[#This Row],[Item ID]],Analysis_Table,9,FALSE)","v":{"$error":"#N/A"}},{"$f":"VLOOKUP(Table_Data_Table_13[[#This Row],[Item ID]],Analysis_Table,10,FALSE)","v":{"$error":"#N/A"}},{"$f":"VLOOKUP(Table_Data_Table_13[[#This Row],[Item ID]],Analysis_Table,11,FALSE)","v":{"$error":"#N/A"}},{"$f":"VLOOKUP(Table_Data_Table_13[[#This Row],[Item ID]],Analysis_Table,12,FALSE)","v":{"$error":"#N/A"}},{"$f":"VLOOKUP(Table_Data_Table_13[[#This Row],[Item ID]],Analysis_Table,13,FALSE)","v":{"$error":"#N/A"}},{"$f":"VLOOKUP(Table_Data_Table_13[[#This Row],[Item ID]],Analysis_Table,14,FALSE)","v":{"$error":"#N/A"}},{"$f":"VLOOKUP(Table_Data_Table_13[[#This Row],[Item ID]],Analysis_Table,15,FALSE)","v":{"$error":"#N/A"}},{"$f":"VLOOKUP(Table_Data_Table_13[[#This Row],[Item ID]],Analysis_Table,16,FALSE)","v":{"$error":"#N/A"}},{"$f":"VLOOKUP(Table_Data_Table_13[[#This Row],[Item ID]],Analysis_Table,17,FALSE)","v":{"$error":"#N/A"}},{"$f":"VLOOKUP(Table_Data_Table_13[[#This Row],[Item ID]],Analysis_Table,18,FALSE)","v":{"$error":"#N/A"}},{"$f":"VLOOKUP(Table_Data_Table_13[[#This Row],[Item ID]],Analysis_Table,19,FALSE)","v":{"$error":"#N/A"}},null,null,1]
["",null,null,null,null,null,null,null,null,0,null,null,null,{"$f":"VLOOKUP(Table_Data_Table_13[[#This Row],[Item ID]],Analysis_Table,8,FALSE)","v":{"$error":"#N/A"}},{"$f":"VLOOKUP(Table_Data_Table_13[[#This Row],[Item ID]],Analysis_Table,9,FALSE)","v":{"$error":"#N/A"}},{"$f":"VLOOKUP(Table_Data_Table_13[[#This Row],[Item ID]],Analysis_Table,10,FALSE)","v":{"$error":"#N/A"}},{"$f":"VLOOKUP(Table_Data_Table_13[[#This Row],[Item ID]],Analysis_Table,11,FALSE)","v":{"$error":"#N/A"}},{"$f":"VLOOKUP(Table_Data_Table_13[[#This Row],[Item ID]],Analysis_Table,12,FALSE)","v":{"$error":"#N/A"}},{"$f":"VLOOKUP(Table_Data_Table_13[[#This Row],[Item ID]],Analysis_Table,13,FALSE)","v":{"$error":"#N/A"}},{"$f":"VLOOKUP(Table_Data_Table_13[[#This Row],[Item ID]],Analysis_Table,14,FALSE)","v":{"$error":"#N/A"}},{"$f":"VLOOKUP(Table_Data_Table_13[[#This Row],[Item ID]],Analysis_Table,15,FALSE)","v":{"$error":"#N/A"}},{"$f":"VLOOKUP(Table_Data_Table_13[[#This Row],[Item ID]],Analysis_Table,16,FALSE)","v":{"$error":"#N/A"}},{"$f":"VLOOKUP(Table_Data_Table_13[[#This Row],[Item ID]],Analysis_Table,17,FALSE)","v":{"$error":"#N/A"}},{"$f":"VLOOKUP(Table_Data_Table_13[[#This Row],[Item ID]],Analysis_Table,18,FALSE)","v":{"$error":"#N/A"}},{"$f":"VLOOKUP(Table_Data_Table_13[[#This Row],[Item ID]],Analysis_Table,19,FALSE)","v":{"$error":"#N/A"}},null,null,1]
["",null,null,null,null,null,null,null,null,0,null,null,null,{"$f":"VLOOKUP(Table_Data_Table_13[[#This Row],[Item ID]],Analysis_Table,8,FALSE)","v":{"$error":"#N/A"}},{"$f":"VLOOKUP(Table_Data_Table_13[[#This Row],[Item ID]],Analysis_Table,9,FALSE)","v":{"$error":"#N/A"}},{"$f":"VLOOKUP(Table_Data_Table_13[[#This Row],[Item ID]],Analysis_Table,10,FALSE)","v":{"$error":"#N/A"}},{"$f":"VLOOKUP(Table_Data_Table_13[[#This Row],[Item ID]],Analysis_Table,11,FALSE)","v":{"$error":"#N/A"}},{"$f":"VLOOKUP(Table_Data_Table_13[[#This Row],[Item ID]],Analysis_Table,12,FALSE)","v":{"$error":"#N/A"}},{"$f":"VLOOKUP(Table_Data_Table_13[[#This Row],[Item ID]],Analysis_Table,13,FALSE)","v":{"$error":"#N/A"}},{"$f":"VLOOKUP(Table_Data_Table_13[[#This Row],[Item ID]],Analysis_Table,14,FALSE)","v":{"$error":"#N/A"}},{"$f":"VLOOKUP(Table_Data_Table_13[[#This Row],[Item ID]],Analysis_Table,15,FALSE)","v":{"$error":"#N/A"}},{"$f":"VLOOKUP(Table_Data_Table_13[[#This Row],[Item ID]],Analysis_Table,16,FALSE)","v":{"$error":"#N/A"}},{"$f":"VLOOKUP(Table_Data_Table_13[[#This Row],[Item ID]],Analysis_Table,17,FALSE)","v":{"$error":"#N/A"}},{"$f":"VLOOKUP(Table_Data_Table_13[[#This Row],[Item ID]],Analysis_Table,18,FALSE)","v":{"$error":"#N/A"}},{"$f":"VLOOKUP(Table_Data_Table_13[[#This Row],[Item ID]],Analysis_Table,19,FALSE)","v":{"$error":"#N/A"}},null,null,1]
["",null,null,null,null,null,null,null,null,0,null,null,null,{"$f":"VLOOKUP(Table_Data_Table_13[[#This Row],[Item ID]],Analysis_Table,8,FALSE)","v":{"$error":"#N/A"}},{"$f":"VLOOKUP(Table_Data_Table_13[[#This Row],[Item ID]],Analysis_Table,9,FALSE)","v":{"$error":"#N/A"}},{"$f":"VLOOKUP(Table_Data_Table_13[[#This Row],[Item ID]],Analysis_Table,10,FALSE)","v":{"$error":"#N/A"}},{"$f":"VLOOKUP(Table_Data_Table_13[[#This Row],[Item ID]],Analysis_Table,11,FALSE)","v":{"$error":"#N/A"}},{"$f":"VLOOKUP(Table_Data_Table_13[[#This Row],[Item ID]],Analysis_Table,12,FALSE)","v":{"$error":"#N/A"}},{"$f":"VLOOKUP(Table_Data_Table_13[[#This Row],[Item ID]],Analysis_Table,13,FALSE)","v":{"$error":"#N/A"}},{"$f":"VLOOKUP(Table_Data_Table_13[[#This Row],[Item ID]],Analysis_Table,14,FALSE)","v":{"$error":"#N/A"}},{"$f":"VLOOKUP(Table_Data_Table_13[[#This Row],[Item ID]],Analysis_Table,15,FALSE)","v":{"$error":"#N/A"}},{"$f":"VLOOKUP(Table_Data_Table_13[[#This Row],[Item ID]],Analysis_Table,16,FALSE)","v":{"$error":"#N/A"}},{"$f":"VLOOKUP(Table_Data_Table_13[[#This Row],[Item ID]],Analysis_Table,17,FALSE)","v":{"$error":"#N/A"}},{"$f":"VLOOKUP(Table_Data_Table_13[[#This Row],[Item ID]],Analysis_Table,18,FALSE)","v":{"$error":"#N/A"}},{"$f":"VLOOKUP(Table_Data_Table_13[[#This Row],[Item ID]],Analysis_Table,19,FALSE)","v":{"$error":"#N/A"}},null,null,1]
["",null,null,null,null,null,null,null,null,0,null,null,null,{"$f":"VLOOKUP(Table_Data_Table_13[[#This Row],[Item ID]],Analysis_Table,8,FALSE)","v":{"$error":"#N/A"}},{"$f":"VLOOKUP(Table_Data_Table_13[[#This Row],[Item ID]],Analysis_Table,9,FALSE)","v":{"$error":"#N/A"}},{"$f":"VLOOKUP(Table_Data_Table_13[[#This Row],[Item ID]],Analysis_Table,10,FALSE)","v":{"$error":"#N/A"}},{"$f":"VLOOKUP(Table_Data_Table_13[[#This Row],[Item ID]],Analysis_Table,11,FALSE)","v":{"$error":"#N/A"}},{"$f":"VLOOKUP(Table_Data_Table_13[[#This Row],[Item ID]],Analysis_Table,12,FALSE)","v":{"$error":"#N/A"}},{"$f":"VLOOKUP(Table_Data_Table_13[[#This Row],[Item ID]],Analysis_Table,13,FALSE)","v":{"$error":"#N/A"}},{"$f":"VLOOKUP(Table_Data_Table_13[[#This Row],[Item ID]],Analysis_Table,14,FALSE)","v":{"$error":"#N/A"}},{"$f":"VLOOKUP(Table_Data_Table_13[[#This Row],[Item ID]],Analysis_Table,15,FALSE)","v":{"$error":"#N/A"}},{"$f":"VLOOKUP(Table_Data_Table_13[[#This Row],[Item ID]],Analysis_Table,16,FALSE)","v":{"$error":"#N/A"}},{"$f":"VLOOKUP(Table_Data_Table_13[[#This Row],[Item ID]],Analysis_Table,17,FALSE)","v":{"$error":"#N/A"}},{"$f":"VLOOKUP(Table_Data_Table_13[[#This Row],[Item ID]],Analysis_Table,18,FALSE)","v":{"$error":"#N/A"}},{"$f":"VLOOKUP(Table_Data_Table_13[[#This Row],[Item ID]],Analysis_Table,19,FALSE)","v":{"$error":"#N/A"}},null,null,1]
["",null,null,null,null,null,null,null,null,0,null,null,null,{"$f":"VLOOKUP(Table_Data_Table_13[[#This Row],[Item ID]],Analysis_Table,8,FALSE)","v":{"$error":"#N/A"}},{"$f":"VLOOKUP(Table_Data_Table_13[[#This Row],[Item ID]],Analysis_Table,9,FALSE)","v":{"$error":"#N/A"}},{"$f":"VLOOKUP(Table_Data_Table_13[[#This Row],[Item ID]],Analysis_Table,10,FALSE)","v":{"$error":"#N/A"}},{"$f":"VLOOKUP(Table_Data_Table_13[[#This Row],[Item ID]],Analysis_Table,11,FALSE)","v":{"$error":"#N/A"}},{"$f":"VLOOKUP(Table_Data_Table_13[[#This Row],[Item ID]],Analysis_Table,12,FALSE)","v":{"$error":"#N/A"}},{"$f":"VLOOKUP(Table_Data_Table_13[[#This Row],[Item ID]],Analysis_Table,13,FALSE)","v":{"$error":"#N/A"}},{"$f":"VLOOKUP(Table_Data_Table_13[[#This Row],[Item ID]],Analysis_Table,14,FALSE)","v":{"$error":"#N/A"}},{"$f":"VLOOKUP(Table_Data_Table_13[[#This Row],[Item ID]],Analysis_Table,15,FALSE)","v":{"$error":"#N/A"}},{"$f":"VLOOKUP(Table_Data_Table_13[[#This Row],[Item ID]],Analysis_Table,16,FALSE)","v":{"$error":"#N/A"}},{"$f":"VLOOKUP(Table_Data_Table_13[[#This Row],[Item ID]],Analysis_Table,17,FALSE)","v":{"$error":"#N/A"}},{"$f":"VLOOKUP(Table_Data_Table_13[[#This Row],[Item ID]],Analysis_Table,18,FALSE)","v":{"$error":"#N/A"}},{"$f":"VLOOKUP(Table_Data_Table_13[[#This Row],[Item ID]],Analysis_Table,19,FALSE)","v":{"$error":"#N/A"}},null,null,1]
["",null,null,null,null,null,null,null,null,0,null,null,null,{"$f":"VLOOKUP(Table_Data_Table_13[[#This Row],[Item ID]],Analysis_Table,8,FALSE)","v":{"$error":"#N/A"}},{"$f":"VLOOKUP(Table_Data_Table_13[[#This Row],[Item ID]],Analysis_Table,9,FALSE)","v":{"$error":"#N/A"}},{"$f":"VLOOKUP(Table_Data_Table_13[[#This Row],[Item ID]],Analysis_Table,10,FALSE)","v":{"$error":"#N/A"}},{"$f":"VLOOKUP(Table_Data_Table_13[[#This Row],[Item ID]],Analysis_Table,11,FALSE)","v":{"$error":"#N/A"}},{"$f":"VLOOKUP(Table_Data_Table_13[[#This Row],[Item ID]],Analysis_Table,12,FALSE)","v":{"$error":"#N/A"}},{"$f":"VLOOKUP(Table_Data_Table_13[[#This Row],[Item ID]],Analysis_Table,13,FALSE)","v":{"$error":"#N/A"}},{"$f":"VLOOKUP(Table_Data_Table_13[[#This Row],[Item ID]],Analysis_Table,14,FALSE)","v":{"$error":"#N/A"}},{"$f":"VLOOKUP(Table_Data_Table_13[[#This Row],[Item ID]],Analysis_Table,15,FALSE)","v":{"$error":"#N/A"}},{"$f":"VLOOKUP(Table_Data_Table_13[[#This Row],[Item ID]],Analysis_Table,16,FALSE)","v":{"$error":"#N/A"}},{"$f":"VLOOKUP(Table_Data_Table_13[[#This Row],[Item ID]],Analysis_Table,17,FALSE)","v":{"$error":"#N/A"}},{"$f":"VLOOKUP(Table_Data_Table_13[[#This Row],[Item ID]],Analysis_Table,18,FALSE)","v":{"$error":"#N/A"}},{"$f":"VLOOKUP(Table_Data_Table_13[[#This Row],[Item ID]],Analysis_Table,19,FALSE)","v":{"$error":"#N/A"}},null,null,1]
["",null,null,null,null,null,null,null,null,0,null,null,null,{"$f":"VLOOKUP(Table_Data_Table_13[[#This Row],[Item ID]],Analysis_Table,8,FALSE)","v":{"$error":"#N/A"}},{"$f":"VLOOKUP(Table_Data_Table_13[[#This Row],[Item ID]],Analysis_Table,9,FALSE)","v":{"$error":"#N/A"}},{"$f":"VLOOKUP(Table_Data_Table_13[[#This Row],[Item ID]],Analysis_Table,10,FALSE)","v":{"$error":"#N/A"}},{"$f":"VLOOKUP(Table_Data_Table_13[[#This Row],[Item ID]],Analysis_Table,11,FALSE)","v":{"$error":"#N/A"}},{"$f":"VLOOKUP(Table_Data_Table_13[[#This Row],[Item ID]],Analysis_Table,12,FALSE)","v":{"$error":"#N/A"}},{"$f":"VLOOKUP(Table_Data_Table_13[[#This Row],[Item ID]],Analysis_Table,13,FALSE)","v":{"$error":"#N/A"}},{"$f":"VLOOKUP(Table_Data_Table_13[[#This Row],[Item ID]],Analysis_Table,14,FALSE)","v":{"$error":"#N/A"}},{"$f":"VLOOKUP(Table_Data_Table_13[[#This Row],[Item ID]],Analysis_Table,15,FALSE)","v":{"$error":"#N/A"}},{"$f":"VLOOKUP(Table_Data_Table_13[[#This Row],[Item ID]],Analysis_Table,16,FALSE)","v":{"$error":"#N/A"}},{"$f":"VLOOKUP(Table_Data_Table_13[[#This Row],[Item ID]],Analysis_Table,17,FALSE)","v":{"$error":"#N/A"}},{"$f":"VLOOKUP(Table_Data_Table_13[[#This Row],[Item ID]],Analysis_Table,18,FALSE)","v":{"$error":"#N/A"}},{"$f":"VLOOKUP(Table_Data_Table_13[[#This Row],[Item ID]],Analysis_Table,19,FALSE)","v":{"$error":"#N/A"}},null,null,1]
["",null,null,null,null,null,null,null,null,0,null,null,null,{"$f":"VLOOKUP(Table_Data_Table_13[[#This Row],[Item ID]],Analysis_Table,8,FALSE)","v":{"$error":"#N/A"}},{"$f":"VLOOKUP(Table_Data_Table_13[[#This Row],[Item ID]],Analysis_Table,9,FALSE)","v":{"$error":"#N/A"}},{"$f":"VLOOKUP(Table_Data_Table_13[[#This Row],[Item ID]],Analysis_Table,10,FALSE)","v":{"$error":"#N/A"}},{"$f":"VLOOKUP(Table_Data_Table_13[[#This Row],[Item ID]],Analysis_Table,11,FALSE)","v":{"$error":"#N/A"}},{"$f":"VLOOKUP(Table_Data_Table_13[[#This Row],[Item ID]],Analysis_Table,12,FALSE)","v":{"$error":"#N/A"}},{"$f":"VLOOKUP(Table_Data_Table_13[[#This Row],[Item ID]],Analysis_Table,13,FALSE)","v":{"$error":"#N/A"}},{"$f":"VLOOKUP(Table_Data_Table_13[[#This Row],[Item ID]],Analysis_Table,14,FALSE)","v":{"$error":"#N/A"}},{"$f":"VLOOKUP(Table_Data_Table_13[[#This Row],[Item ID]],Analysis_Table,15,FALSE)","v":{"$error":"#N/A"}},{"$f":"VLOOKUP(Table_Data_Table_13[[#This Row],[Item ID]],Analysis_Table,16,FALSE)","v":{"$error":"#N/A"}},{"$f":"VLOOKUP(Table_Data_Table_13[[#This Row],[Item ID]],Analysis_Table,17,FALSE)","v":{"$error":"#N/A"}},{"$f":"VLOOKUP(Table_Data_Table_13[[#This Row],[Item ID]],Analysis_Table,18,FALSE)","v":{"$error":"#N/A"}},{"$f":"VLOOKUP(Table_Data_Table_13[[#This Row],[Item ID]],Analysis_Table,19,FALSE)","v":{"$error":"#N/A"}},null,null,1]
["",null,null,null,null,null,null,null,null,0,null,null,null,{"$f":"VLOOKUP(Table_Data_Table_13[[#This Row],[Item ID]],Analysis_Table,8,FALSE)","v":{"$error":"#N/A"}},{"$f":"VLOOKUP(Table_Data_Table_13[[#This Row],[Item ID]],Analysis_Table,9,FALSE)","v":{"$error":"#N/A"}},{"$f":"VLOOKUP(Table_Data_Table_13[[#This Row],[Item ID]],Analysis_Table,10,FALSE)","v":{"$error":"#N/A"}},{"$f":"VLOOKUP(Table_Data_Table_13[[#This Row],[Item ID]],Analysis_Table,11,FALSE)","v":{"$error":"#N/A"}},{"$f":"VLOOKUP(Table_Data_Table_13[[#This Row],[Item ID]],Analysis_Table,12,FALSE)","v":{"$error":"#N/A"}},{"$f":"VLOOKUP(Table_Data_Table_13[[#This Row],[Item ID]],Analysis_Table,13,FALSE)","v":{"$error":"#N/A"}},{"$f":"VLOOKUP(Table_Data_Table_13[[#This Row],[Item ID]],Analysis_Table,14,FALSE)","v":{"$error":"#N/A"}},{"$f":"VLOOKUP(Table_Data_Table_13[[#This Row],[Item ID]],Analysis_Table,15,FALSE)","v":{"$error":"#N/A"}},{"$f":"VLOOKUP(Table_Data_Table_13[[#This Row],[Item ID]],Analysis_Table,16,FALSE)","v":{"$error":"#N/A"}},{"$f":"VLOOKUP(Table_Data_Table_13[[#This Row],[Item ID]],Analysis_Table,17,FALSE)","v":{"$error":"#N/A"}},{"$f":"VLOOKUP(Table_Data_Table_13[[#This Row],[Item ID]],Analysis_Table,18,FALSE)","v":{"$error":"#N/A"}},{"$f":"VLOOKUP(Table_Data_Table_13[[#This Row],[Item ID]],Analysis_Table,19,FALSE)","v":{"$error":"#N/A"}},null,null,1]
["",null,null,null,null,null,null,null,null,0,null,null,null,{"$f":"VLOOKUP(Table_Data_Table_13[[#This Row],[Item ID]],Analysis_Table,8,FALSE)","v":{"$error":"#N/A"}},{"$f":"VLOOKUP(Table_Data_Table_13[[#This Row],[Item ID]],Analysis_Table,9,FALSE)","v":{"$error":"#N/A"}},{"$f":"VLOOKUP(Table_Data_Table_13[[#This Row],[Item ID]],Analysis_Table,10,FALSE)","v":{"$error":"#N/A"}},{"$f":"VLOOKUP(Table_Data_Table_13[[#This Row],[Item ID]],Analysis_Table,11,FALSE)","v":{"$error":"#N/A"}},{"$f":"VLOOKUP(Table_Data_Table_13[[#This Row],[Item ID]],Analysis_Table,12,FALSE)","v":{"$error":"#N/A"}},{"$f":"VLOOKUP(Table_Data_Table_13[[#This Row],[Item ID]],Analysis_Table,13,FALSE)","v":{"$error":"#N/A"}},{"$f":"VLOOKUP(Table_Data_Table_13[[#This Row],[Item ID]],Analysis_Table,14,FALSE)","v":{"$error":"#N/A"}},{"$f":"VLOOKUP(Table_Data_Table_13[[#This Row],[Item ID]],Analysis_Table,15,FALSE)","v":{"$error":"#N/A"}},{"$f":"VLOOKUP(Table_Data_Table_13[[#This Row],[Item ID]],Analysis_Table,16,FALSE)","v":{"$error":"#N/A"}},{"$f":"VLOOKUP(Table_Data_Table_13[[#This Row],[Item ID]],Analysis_Table,17,FALSE)","v":{"$error":"#N/A"}},{"$f":"VLOOKUP(Table_Data_Table_13[[#This Row],[Item ID]],Analysis_Table,18,FALSE)","v":{"$error":"#N/A"}},{"$f":"VLOOKUP(Table_Data_Table_13[[#This Row],[Item ID]],Analysis_Table,19,FALSE)","v":{"$error":"#N/A"}},null,null,1]
["",null,null,null,null,null,null,null,null,0,null,null,null,{"$f":"VLOOKUP(Table_Data_Table_13[[#This Row],[Item ID]],Analysis_Table,8,FALSE)","v":{"$error":"#N/A"}},{"$f":"VLOOKUP(Table_Data_Table_13[[#This Row],[Item ID]],Analysis_Table,9,FALSE)","v":{"$error":"#N/A"}},{"$f":"VLOOKUP(Table_Data_Table_13[[#This Row],[Item ID]],Analysis_Table,10,FALSE)","v":{"$error":"#N/A"}},{"$f":"VLOOKUP(Table_Data_Table_13[[#This Row],[Item ID]],Analysis_Table,11,FALSE)","v":{"$error":"#N/A"}},{"$f":"VLOOKUP(Table_Data_Table_13[[#This Row],[Item ID]],Analysis_Table,12,FALSE)","v":{"$error":"#N/A"}},{"$f":"VLOOKUP(Table_Data_Table_13[[#This Row],[Item ID]],Analysis_Table,13,FALSE)","v":{"$error":"#N/A"}},{"$f":"VLOOKUP(Table_Data_Table_13[[#This Row],[Item ID]],Analysis_Table,14,FALSE)","v":{"$error":"#N/A"}},{"$f":"VLOOKUP(Table_Data_Table_13[[#This Row],[Item ID]],Analysis_Table,15,FALSE)","v":{"$error":"#N/A"}},{"$f":"VLOOKUP(Table_Data_Table_13[[#This Row],[Item ID]],Analysis_Table,16,FALSE)","v":{"$error":"#N/A"}},{"$f":"VLOOKUP(Table_Data_Table_13[[#This Row],[Item ID]],Analysis_Table,17,FALSE)","v":{"$error":"#N/A"}},{"$f":"VLOOKUP(Table_Data_Table_13[[#This Row],[Item ID]],Analysis_Table,18,FALSE)","v":{"$error":"#N/A"}},{"$f":"VLOOKUP(Table_Data_Table_13[[#This Row],[Item ID]],Analysis_Table,19,FALSE)","v":{"$error":"#N/A"}},null,null,1]
["",null,null,null,null,null,null,null,null,0,null,null,null,{"$f":"VLOOKUP(Table_Data_Table_13[[#This Row],[Item ID]],Analysis_Table,8,FALSE)","v":{"$error":"#N/A"}},{"$f":"VLOOKUP(Table_Data_Table_13[[#This Row],[Item ID]],Analysis_Table,9,FALSE)","v":{"$error":"#N/A"}},{"$f":"VLOOKUP(Table_Data_Table_13[[#This Row],[Item ID]],Analysis_Table,10,FALSE)","v":{"$error":"#N/A"}},{"$f":"VLOOKUP(Table_Data_Table_13[[#This Row],[Item ID]],Analysis_Table,11,FALSE)","v":{"$error":"#N/A"}},{"$f":"VLOOKUP(Table_Data_Table_13[[#This Row],[Item ID]],Analysis_Table,12,FALSE)","v":{"$error":"#N/A"}},{"$f":"VLOOKUP(Table_Data_Table_13[[#This Row],[Item ID]],Analysis_Table,13,FALSE)","v":{"$error":"#N/A"}},{"$f":"VLOOKUP(Table_Data_Table_13[[#This Row],[Item ID]],Analysis_Table,14,FALSE)","v":{"$error":"#N/A"}},{"$f":"VLOOKUP(Table_Data_Table_13[[#This Row],[Item ID]],Analysis_Table,15,FALSE)","v":{"$error":"#N/A"}},{"$f":"VLOOKUP(Table_Data_Table_13[[#This Row],[Item ID]],Analysis_Table,16,FALSE)","v":{"$error":"#N/A"}},{"$f":"VLOOKUP(Table_Data_Table_13[[#This Row],[Item ID]],Analysis_Table,17,FALSE)","v":{"$error":"#N/A"}},{"$f":"VLOOKUP(Table_Data_Table_13[[#This Row],[Item ID]],Analysis_Table,18,FALSE)","v":{"$error":"#N/A"}},{"$f":"VLOOKUP(Table_Data_Table_13[[#This Row],[Item ID]],Analysis_Table,19,FALSE)","v":{"$error":"#N/A"}},null,null,1]
["",null,null,null,null,null,null,null,null,0,null,null,null,{"$f":"VLOOKUP(Table_Data_Table_13[[#This Row],[Item ID]],Analysis_Table,8,FALSE)","v":{"$error":"#N/A"}},{"$f":"VLOOKUP(Table_Data_Table_13[[#This Row],[Item ID]],Analysis_Table,9,FALSE)","v":{"$error":"#N/A"}},{"$f":"VLOOKUP(Table_Data_Table_13[[#This Row],[Item ID]],Analysis_Table,10,FALSE)","v":{"$error":"#N/A"}},{"$f":"VLOOKUP(Table_Data_Table_13[[#This Row],[Item ID]],Analysis_Table,11,FALSE)","v":{"$error":"#N/A"}},{"$f":"VLOOKUP(Table_Data_Table_13[[#This Row],[Item ID]],Analysis_Table,12,FALSE)","v":{"$error":"#N/A"}},{"$f":"VLOOKUP(Table_Data_Table_13[[#This Row],[Item ID]],Analysis_Table,13,FALSE)","v":{"$error":"#N/A"}},{"$f":"VLOOKUP(Table_Data_Table_13[[#This Row],[Item ID]],Analysis_Table,14,FALSE)","v":{"$error":"#N/A"}},{"$f":"VLOOKUP(Table_Data_Table_13[[#This Row],[Item ID]],Analysis_Table,15,FALSE)","v":{"$error":"#N/A"}},{"$f":"VLOOKUP(Table_Data_Table_13[[#This Row],[Item ID]],Analysis_Table,16,FALSE)","v":{"$error":"#N/A"}},{"$f":"VLOOKUP(Table_Data_Table_13[[#This Row],[Item ID]],Analysis_Table,17,FALSE)","v":{"$error":"#N/A"}},{"$f":"VLOOKUP(Table_Data_Table_13[[#This Row],[Item ID]],Analysis_Table,18,FALSE)","v":{"$error":"#N/A"}},{"$f":"VLOOKUP(Table_Data_Table_13[[#This Row],[Item ID]],Analysis_Table,19,FALSE)","v":{"$error":"#N/A"}},null,null,1]
["",null,null,null,null,null,null,null,null,0,null,null,null,{"$f":"VLOOKUP(Table_Data_Table_13[[#This Row],[Item ID]],Analysis_Table,8,FALSE)","v":{"$error":"#N/A"}},{"$f":"VLOOKUP(Table_Data_Table_13[[#This Row],[Item ID]],Analysis_Table,9,FALSE)","v":{"$error":"#N/A"}},{"$f":"VLOOKUP(Table_Data_Table_13[[#This Row],[Item ID]],Analysis_Table,10,FALSE)","v":{"$error":"#N/A"}},{"$f":"VLOOKUP(Table_Data_Table_13[[#This Row],[Item ID]],Analysis_Table,11,FALSE)","v":{"$error":"#N/A"}},{"$f":"VLOOKUP(Table_Data_Table_13[[#This Row],[Item ID]],Analysis_Table,12,FALSE)","v":{"$error":"#N/A"}},{"$f":"VLOOKUP(Table_Data_Table_13[[#This Row],[Item ID]],Analysis_Table,13,FALSE)","v":{"$error":"#N/A"}},{"$f":"VLOOKUP(Table_Data_Table_13[[#This Row],[Item ID]],Analysis_Table,14,FALSE)","v":{"$error":"#N/A"}},{"$f":"VLOOKUP(Table_Data_Table_13[[#This Row],[Item ID]],Analysis_Table,15,FALSE)","v":{"$error":"#N/A"}},{"$f":"VLOOKUP(Table_Data_Table_13[[#This Row],[Item ID]],Analysis_Table,16,FALSE)","v":{"$error":"#N/A"}},{"$f":"VLOOKUP(Table_Data_Table_13[[#This Row],[Item ID]],Analysis_Table,17,FALSE)","v":{"$error":"#N/A"}},{"$f":"VLOOKUP(Table_Data_Table_13[[#This Row],[Item ID]],Analysis_Table,18,FALSE)","v":{"$error":"#N/A"}},{"$f":"VLOOKUP(Table_Data_Table_13[[#This Row],[Item ID]],Analysis_Table,19,FALSE)","v":{"$error":"#N/A"}},null,null,1]
["",null,null,null,null,null,null,null,null,0,null,null,null,{"$f":"VLOOKUP(Table_Data_Table_13[[#This Row],[Item ID]],Analysis_Table,8,FALSE)","v":{"$error":"#N/A"}},{"$f":"VLOOKUP(Table_Data_Table_13[[#This Row],[Item ID]],Analysis_Table,9,FALSE)","v":{"$error":"#N/A"}},{"$f":"VLOOKUP(Table_Data_Table_13[[#This Row],[Item ID]],Analysis_Table,10,FALSE)","v":{"$error":"#N/A"}},{"$f":"VLOOKUP(Table_Data_Table_13[[#This Row],[Item ID]],Analysis_Table,11,FALSE)","v":{"$error":"#N/A"}},{"$f":"VLOOKUP(Table_Data_Table_13[[#This Row],[Item ID]],Analysis_Table,12,FALSE)","v":{"$error":"#N/A"}},{"$f":"VLOOKUP(Table_Data_Table_13[[#This Row],[Item ID]],Analysis_Table,13,FALSE)","v":{"$error":"#N/A"}},{"$f":"VLOOKUP(Table_Data_Table_13[[#This Row],[Item ID]],Analysis_Table,14,FALSE)","v":{"$error":"#N/A"}},{"$f":"VLOOKUP(Table_Data_Table_13[[#This Row],[Item ID]],Analysis_Table,15,FALSE)","v":{"$error":"#N/A"}},{"$f":"VLOOKUP(Table_Data_Table_13[[#This Row],[Item ID]],Analysis_Table,16,FALSE)","v":{"$error":"#N/A"}},{"$f":"VLOOKUP(Table_Data_Table_13[[#This Row],[Item ID]],Analysis_Table,17,FALSE)","v":{"$error":"#N/A"}},{"$f":"VLOOKUP(Table_Data_Table_13[[#This Row],[Item ID]],Analysis_Table,18,FALSE)","v":{"$error":"#N/A"}},{"$f":"VLOOKUP(Table_Data_Table_13[[#This Row],[Item ID]],Analysis_Table,19,FALSE)","v":{"$error":"#N/A"}},null,null,1]
["",null,null,null,null,null,null,null,null,0,null,null,null,{"$f":"VLOOKUP(Table_Data_Table_13[[#This Row],[Item ID]],Analysis_Table,8,FALSE)","v":{"$error":"#N/A"}},{"$f":"VLOOKUP(Table_Data_Table_13[[#This Row],[Item ID]],Analysis_Table,9,FALSE)","v":{"$error":"#N/A"}},{"$f":"VLOOKUP(Table_Data_Table_13[[#This Row],[Item ID]],Analysis_Table,10,FALSE)","v":{"$error":"#N/A"}},{"$f":"VLOOKUP(Table_Data_Table_13[[#This Row],[Item ID]],Analysis_Table,11,FALSE)","v":{"$error":"#N/A"}},{"$f":"VLOOKUP(Table_Data_Table_13[[#This Row],[Item ID]],Analysis_Table,12,FALSE)","v":{"$error":"#N/A"}},{"$f":"VLOOKUP(Table_Data_Table_13[[#This Row],[Item ID]],Analysis_Table,13,FALSE)","v":{"$error":"#N/A"}},{"$f":"VLOOKUP(Table_Data_Table_13[[#This Row],[Item ID]],Analysis_Table,14,FALSE)","v":{"$error":"#N/A"}},{"$f":"VLOOKUP(Table_Data_Table_13[[#This Row],[Item ID]],Analysis_Table,15,FALSE)","v":{"$error":"#N/A"}},{"$f":"VLOOKUP(Table_Data_Table_13[[#This Row],[Item ID]],Analysis_Table,16,FALSE)","v":{"$error":"#N/A"}},{"$f":"VLOOKUP(Table_Data_Table_13[[#This Row],[Item ID]],Analysis_Table,17,FALSE)","v":{"$error":"#N/A"}},{"$f":"VLOOKUP(Table_Data_Table_13[[#This Row],[Item ID]],Analysis_Table,18,FALSE)","v":{"$error":"#N/A"}},{"$f":"VLOOKUP(Table_Data_Table_13[[#This Row],[Item ID]],Analysis_Table,19,FALSE)","v":{"$error":"#N/A"}},null,null,1]
["",null,null,null,null,null,null,null,null,0,null,null,null,{"$f":"VLOOKUP(Table_Data_Table_13[[#This Row],[Item ID]],Analysis_Table,8,FALSE)","v":{"$error":"#N/A"}},{"$f":"VLOOKUP(Table_Data_Table_13[[#This Row],[Item ID]],Analysis_Table,9,FALSE)","v":{"$error":"#N/A"}},{"$f":"VLOOKUP(Table_Data_Table_13[[#This Row],[Item ID]],Analysis_Table,10,FALSE)","v":{"$error":"#N/A"}},{"$f":"VLOOKUP(Table_Data_Table_13[[#This Row],[Item ID]],Analysis_Table,11,FALSE)","v":{"$error":"#N/A"}},{"$f":"VLOOKUP(Table_Data_Table_13[[#This Row],[Item ID]],Analysis_Table,12,FALSE)","v":{"$error":"#N/A"}},{"$f":"VLOOKUP(Table_Data_Table_13[[#This Row],[Item ID]],Analysis_Table,13,FALSE)","v":{"$error":"#N/A"}},{"$f":"VLOOKUP(Table_Data_Table_13[[#This Row],[Item ID]],Analysis_Table,14,FALSE)","v":{"$error":"#N/A"}},{"$f":"VLOOKUP(Table_Data_Table_13[[#This Row],[Item ID]],Analysis_Table,15,FALSE)","v":{"$error":"#N/A"}},{"$f":"VLOOKUP(Table_Data_Table_13[[#This Row],[Item ID]],Analysis_Table,16,FALSE)","v":{"$error":"#N/A"}},{"$f":"VLOOKUP(Table_Data_Table_13[[#This Row],[Item ID]],Analysis_Table,17,FALSE)","v":{"$error":"#N/A"}},{"$f":"VLOOKUP(Table_Data_Table_13[[#This Row],[Item ID]],Analysis_Table,18,FALSE)","v":{"$error":"#N/A"}},{"$f":"VLOOKUP(Table_Data_Table_13[[#This Row],[Item ID]],Analysis_Table,19,FALSE)","v":{"$error":"#N/A"}},null,null,1]
["",null,null,null,null,null,null,null,null,0,null,null,null,{"$f":"VLOOKUP(Table_Data_Table_13[[#This Row],[Item ID]],Analysis_Table,8,FALSE)","v":{"$error":"#N/A"}},{"$f":"VLOOKUP(Table_Data_Table_13[[#This Row],[Item ID]],Analysis_Table,9,FALSE)","v":{"$error":"#N/A"}},{"$f":"VLOOKUP(Table_Data_Table_13[[#This Row],[Item ID]],Analysis_Table,10,FALSE)","v":{"$error":"#N/A"}},{"$f":"VLOOKUP(Table_Data_Table_13[[#This Row],[Item ID]],Analysis_Table,11,FALSE)","v":{"$error":"#N/A"}},{"$f":"VLOOKUP(Table_Data_Table_13[[#This Row],[Item ID]],Analysis_Table,12,FALSE)","v":{"$error":"#N/A"}},{"$f":"VLOOKUP(Table_Data_Table_13[[#This Row],[Item ID]],Analysis_Table,13,FALSE)","v":{"$error":"#N/A"}},{"$f":"VLOOKUP(Table_Data_Table_13[[#This Row],[Item ID]],Analysis_Table,14,FALSE)","v":{"$error":"#N/A"}},{"$f":"VLOOKUP(Table_Data_Table_13[[#This Row],[Item ID]],Analysis_Table,15,FALSE)","v":{"$error":"#N/A"}},{"$f":"VLOOKUP(Table_Data_Table_13[[#This Row],[Item ID]],Analysis_Table,16,FALSE)","v":{"$error":"#N/A"}},{"$f":"VLOOKUP(Table_Data_Table_13[[#This Row],[Item ID]],Analysis_Table,17,FALSE)","v":{"$error":"#N/A"}},{"$f":"VLOOKUP(Table_Data_Table_13[[#This Row],[Item ID]],Analysis_Table,18,FALSE)","v":{"$error":"#N/A"}},{"$f":"VLOOKUP(Table_Data_Table_13[[#This Row],[Item ID]],Analysis_Table,19,FALSE)","v":{"$error":"#N/A"}},null,null,1]
["",null,null,null,null,null,null,null,null,0,null,null,null,{"$f":"VLOOKUP(Table_Data_Table_13[[#This Row],[Item ID]],Analysis_Table,8,FALSE)","v":{"$error":"#N/A"}},{"$f":"VLOOKUP(Table_Data_Table_13[[#This Row],[Item ID]],Analysis_Table,9,FALSE)","v":{"$error":"#N/A"}},{"$f":"VLOOKUP(Table_Data_Table_13[[#This Row],[Item ID]],Analysis_Table,10,FALSE)","v":{"$error":"#N/A"}},{"$f":"VLOOKUP(Table_Data_Table_13[[#This Row],[Item ID]],Analysis_Table,11,FALSE)","v":{"$error":"#N/A"}},{"$f":"VLOOKUP(Table_Data_Table_13[[#This Row],[Item ID]],Analysis_Table,12,FALSE)","v":{"$error":"#N/A"}},{"$f":"VLOOKUP(Table_Data_Table_13[[#This Row],[Item ID]],Analysis_Table,13,FALSE)","v":{"$error":"#N/A"}},{"$f":"VLOOKUP(Table_Data_Table_13[[#This Row],[Item ID]],Analysis_Table,14,FALSE)","v":{"$error":"#N/A"}},{"$f":"VLOOKUP(Table_Data_Table_13[[#This Row],[Item ID]],Analysis_Table,15,FALSE)","v":{"$error":"#N/A"}},{"$f":"VLOOKUP(Table_Data_Table_13[[#This Row],[Item ID]],Analysis_Table,16,FALSE)","v":{"$error":"#N/A"}},{"$f":"VLOOKUP(Table_Data_Table_13[[#This Row],[Item ID]],Analysis_Table,17,FALSE)","v":{"$error":"#N/A"}},{"$f":"VLOOKUP(Table_Data_Table_13[[#This Row],[Item ID]],Analysis_Table,18,FALSE)","v":{"$error":"#N/A"}},{"$f":"VLOOKUP(Table_Data_Table_13[[#This Row],[Item ID]],Analysis_Table,19,FALSE)","v":{"$error":"#N/A"}},null,null,1]
["",null,null,null,null,null,null,null,null,0,null,null,null,{"$f":"VLOOKUP(Table_Data_Table_13[[#This Row],[Item ID]],Analysis_Table,8,FALSE)","v":{"$error":"#N/A"}},{"$f":"VLOOKUP(Table_Data_Table_13[[#This Row],[Item ID]],Analysis_Table,9,FALSE)","v":{"$error":"#N/A"}},{"$f":"VLOOKUP(Table_Data_Table_13[[#This Row],[Item ID]],Analysis_Table,10,FALSE)","v":{"$error":"#N/A"}},{"$f":"VLOOKUP(Table_Data_Table_13[[#This Row],[Item ID]],Analysis_Table,11,FALSE)","v":{"$error":"#N/A"}},{"$f":"VLOOKUP(Table_Data_Table_13[[#This Row],[Item ID]],Analysis_Table,12,FALSE)","v":{"$error":"#N/A"}},{"$f":"VLOOKUP(Table_Data_Table_13[[#This Row],[Item ID]],Analysis_Table,13,FALSE)","v":{"$error":"#N/A"}},{"$f":"VLOOKUP(Table_Data_Table_13[[#This Row],[Item ID]],Analysis_Table,14,FALSE)","v":{"$error":"#N/A"}},{"$f":"VLOOKUP(Table_Data_Table_13[[#This Row],[Item ID]],Analysis_Table,15,FALSE)","v":{"$error":"#N/A"}},{"$f":"VLOOKUP(Table_Data_Table_13[[#This Row],[Item ID]],Analysis_Table,16,FALSE)","v":{"$error":"#N/A"}},{"$f":"VLOOKUP(Table_Data_Table_13[[#This Row],[Item ID]],Analysis_Table,17,FALSE)","v":{"$error":"#N/A"}},{"$f":"VLOOKUP(Table_Data_Table_13[[#This Row],[Item ID]],Analysis_Table,18,FALSE)","v":{"$error":"#N/A"}},{"$f":"VLOOKUP(Table_Data_Table_13[[#This Row],[Item ID]],Analysis_Table,19,FALSE)","v":{"$error":"#N/A"}},null,null,1]
["",null,null,null,null,null,null,null,null,0,null,null,null,{"$f":"VLOOKUP(Table_Data_Table_13[[#This Row],[Item ID]],Analysis_Table,8,FALSE)","v":{"$error":"#N/A"}},{"$f":"VLOOKUP(Table_Data_Table_13[[#This Row],[Item ID]],Analysis_Table,9,FALSE)","v":{"$error":"#N/A"}},{"$f":"VLOOKUP(Table_Data_Table_13[[#This Row],[Item ID]],Analysis_Table,10,FALSE)","v":{"$error":"#N/A"}},{"$f":"VLOOKUP(Table_Data_Table_13[[#This Row],[Item ID]],Analysis_Table,11,FALSE)","v":{"$error":"#N/A"}},{"$f":"VLOOKUP(Table_Data_Table_13[[#This Row],[Item ID]],Analysis_Table,12,FALSE)","v":{"$error":"#N/A"}},{"$f":"VLOOKUP(Table_Data_Table_13[[#This Row],[Item ID]],Analysis_Table,13,FALSE)","v":{"$error":"#N/A"}},{"$f":"VLOOKUP(Table_Data_Table_13[[#This Row],[Item ID]],Analysis_Table,14,FALSE)","v":{"$error":"#N/A"}},{"$f":"VLOOKUP(Table_Data_Table_13[[#This Row],[Item ID]],Analysis_Table,15,FALSE)","v":{"$error":"#N/A"}},{"$f":"VLOOKUP(Table_Data_Table_13[[#This Row],[Item ID]],Analysis_Table,16,FALSE)","v":{"$error":"#N/A"}},{"$f":"VLOOKUP(Table_Data_Table_13[[#This Row],[Item ID]],Analysis_Table,17,FALSE)","v":{"$error":"#N/A"}},{"$f":"VLOOKUP(Table_Data_Table_13[[#This Row],[Item ID]],Analysis_Table,18,FALSE)","v":{"$error":"#N/A"}},{"$f":"VLOOKUP(Table_Data_Table_13[[#This Row],[Item ID]],Analysis_Table,19,FALSE)","v":{"$error":"#N/A"}},null,null,1]
["",null,null,null,null,null,null,null,null,0,null,null,null,{"$f":"VLOOKUP(Table_Data_Table_13[[#This Row],[Item ID]],Analysis_Table,8,FALSE)","v":{"$error":"#N/A"}},{"$f":"VLOOKUP(Table_Data_Table_13[[#This Row],[Item ID]],Analysis_Table,9,FALSE)","v":{"$error":"#N/A"}},{"$f":"VLOOKUP(Table_Data_Table_13[[#This Row],[Item ID]],Analysis_Table,10,FALSE)","v":{"$error":"#N/A"}},{"$f":"VLOOKUP(Table_Data_Table_13[[#This Row],[Item ID]],Analysis_Table,11,FALSE)","v":{"$error":"#N/A"}},{"$f":"VLOOKUP(Table_Data_Table_13[[#This Row],[Item ID]],Analysis_Table,12,FALSE)","v":{"$error":"#N/A"}},{"$f":"VLOOKUP(Table_Data_Table_13[[#This Row],[Item ID]],Analysis_Table,13,FALSE)","v":{"$error":"#N/A"}},{"$f":"VLOOKUP(Table_Data_Table_13[[#This Row],[Item ID]],Analysis_Table,14,FALSE)","v":{"$error":"#N/A"}},{"$f":"VLOOKUP(Table_Data_Table_13[[#This Row],[Item ID]],Analysis_Table,15,FALSE)","v":{"$error":"#N/A"}},{"$f":"VLOOKUP(Table_Data_Table_13[[#This Row],[Item ID]],Analysis_Table,16,FALSE)","v":{"$error":"#N/A"}},{"$f":"VLOOKUP(Table_Data_Table_13[[#This Row],[Item ID]],Analysis_Table,17,FALSE)","v":{"$error":"#N/A"}},{"$f":"VLOOKUP(Table_Data_Table_13[[#This Row],[Item ID]],Analysis_Table,18,FALSE)","v":{"$error":"#N/A"}},{"$f":"VLOOKUP(Table_Data_Table_13[[#This Row],[Item ID]],Analysis_Table,19,FALSE)","v":{"$error":"#N/A"}},null,null,1]
["",null,null,null,null,null,null,null,null,0,null,null,null,{"$f":"VLOOKUP(Table_Data_Table_13[[#This Row],[Item ID]],Analysis_Table,8,FALSE)","v":{"$error":"#N/A"}},{"$f":"VLOOKUP(Table_Data_Table_13[[#This Row],[Item ID]],Analysis_Table,9,FALSE)","v":{"$error":"#N/A"}},{"$f":"VLOOKUP(Table_Data_Table_13[[#This Row],[Item ID]],Analysis_Table,10,FALSE)","v":{"$error":"#N/A"}},{"$f":"VLOOKUP(Table_Data_Table_13[[#This Row],[Item ID]],Analysis_Table,11,FALSE)","v":{"$error":"#N/A"}},{"$f":"VLOOKUP(Table_Data_Table_13[[#This Row],[Item ID]],Analysis_Table,12,FALSE)","v":{"$error":"#N/A"}},{"$f":"VLOOKUP(Table_Data_Table_13[[#This Row],[Item ID]],Analysis_Table,13,FALSE)","v":{"$error":"#N/A"}},{"$f":"VLOOKUP(Table_Data_Table_13[[#This Row],[Item ID]],Analysis_Table,14,FALSE)","v":{"$error":"#N/A"}},{"$f":"VLOOKUP(Table_Data_Table_13[[#This Row],[Item ID]],Analysis_Table,15,FALSE)","v":{"$error":"#N/A"}},{"$f":"VLOOKUP(Table_Data_Table_13[[#This Row],[Item ID]],Analysis_Table,16,FALSE)","v":{"$error":"#N/A"}},{"$f":"VLOOKUP(Table_Data_Table_13[[#This Row],[Item ID]],Analysis_Table,17,FALSE)","v":{"$error":"#N/A"}},{"$f":"VLOOKUP(Table_Data_Table_13[[#This Row],[Item ID]],Analysis_Table,18,FALSE)","v":{"$error":"#N/A"}},{"$f":"VLOOKUP(Table_Data_Table_13[[#This Row],[Item ID]],Analysis_Table,19,FALSE)","v":{"$error":"#N/A"}},null,null,1]
["",null,null,null,null,null,null,null,null,0,null,null,null,{"$f":"VLOOKUP(Table_Data_Table_13[[#This Row],[Item ID]],Analysis_Table,8,FALSE)","v":{"$error":"#N/A"}},{"$f":"VLOOKUP(Table_Data_Table_13[[#This Row],[Item ID]],Analysis_Table,9,FALSE)","v":{"$error":"#N/A"}},{"$f":"VLOOKUP(Table_Data_Table_13[[#This Row],[Item ID]],Analysis_Table,10,FALSE)","v":{"$error":"#N/A"}},{"$f":"VLOOKUP(Table_Data_Table_13[[#This Row],[Item ID]],Analysis_Table,11,FALSE)","v":{"$error":"#N/A"}},{"$f":"VLOOKUP(Table_Data_Table_13[[#This Row],[Item ID]],Analysis_Table,12,FALSE)","v":{"$error":"#N/A"}},{"$f":"VLOOKUP(Table_Data_Table_13[[#This Row],[Item ID]],Analysis_Table,13,FALSE)","v":{"$error":"#N/A"}},{"$f":"VLOOKUP(Table_Data_Table_13[[#This Row],[Item ID]],Analysis_Table,14,FALSE)","v":{"$error":"#N/A"}},{"$f":"VLOOKUP(Table_Data_Table_13[[#This Row],[Item ID]],Analysis_Table,15,FALSE)","v":{"$error":"#N/A"}},{"$f":"VLOOKUP(Table_Data_Table_13[[#This Row],[Item ID]],Analysis_Table,16,FALSE)","v":{"$error":"#N/A"}},{"$f":"VLOOKUP(Table_Data_Table_13[[#This Row],[Item ID]],Analysis_Table,17,FALSE)","v":{"$error":"#N/A"}},{"$f":"VLOOKUP(Table_Data_Table_13[[#This Row],[Item ID]],Analysis_Table,18,FALSE)","v":{"$error":"#N/A"}},{"$f":"VLOOKUP(Table_Data_Table_13[[#This Row],[Item ID]],Analysis_Table,19,FALSE)","v":{"$error":"#N/A"}},null,null,1]
["",null,null,null,null,null,null,null,null,0,null,null,null,{"$f":"VLOOKUP(Table_Data_Table_13[[#This Row],[Item ID]],Analysis_Table,8,FALSE)","v":{"$error":"#N/A"}},{"$f":"VLOOKUP(Table_Data_Table_13[[#This Row],[Item ID]],Analysis_Table,9,FALSE)","v":{"$error":"#N/A"}},{"$f":"VLOOKUP(Table_Data_Table_13[[#This Row],[Item ID]],Analysis_Table,10,FALSE)","v":{"$error":"#N/A"}},{"$f":"VLOOKUP(Table_Data_Table_13[[#This Row],[Item ID]],Analysis_Table,11,FALSE)","v":{"$error":"#N/A"}},{"$f":"VLOOKUP(Table_Data_Table_13[[#This Row],[Item ID]],Analysis_Table,12,FALSE)","v":{"$error":"#N/A"}},{"$f":"VLOOKUP(Table_Data_Table_13[[#This Row],[Item ID]],Analysis_Table,13,FALSE)","v":{"$error":"#N/A"}},{"$f":"VLOOKUP(Table_Data_Table_13[[#This Row],[Item ID]],Analysis_Table,14,FALSE)","v":{"$error":"#N/A"}},{"$f":"VLOOKUP(Table_Data_Table_13[[#This Row],[Item ID]],Analysis_Table,15,FALSE)","v":{"$error":"#N/A"}},{"$f":"VLOOKUP(Table_Data_Table_13[[#This Row],[Item ID]],Analysis_Table,16,FALSE)","v":{"$error":"#N/A"}},{"$f":"VLOOKUP(Table_Data_Table_13[[#This Row],[Item ID]],Analysis_Table,17,FALSE)","v":{"$error":"#N/A"}},{"$f":"VLOOKUP(Table_Data_Table_13[[#This Row],[Item ID]],Analysis_Table,18,FALSE)","v":{"$error":"#N/A"}},{"$f":"VLOOKUP(Table_Data_Table_13[[#This Row],[Item ID]],Analysis_Table,19,FALSE)","v":{"$error":"#N/A"}},null,null,1]
["",null,null,null,null,null,null,null,null,0,null,null,null,{"$f":"VLOOKUP(Table_Data_Table_13[[#This Row],[Item ID]],Analysis_Table,8,FALSE)","v":{"$error":"#N/A"}},{"$f":"VLOOKUP(Table_Data_Table_13[[#This Row],[Item ID]],Analysis_Table,9,FALSE)","v":{"$error":"#N/A"}},{"$f":"VLOOKUP(Table_Data_Table_13[[#This Row],[Item ID]],Analysis_Table,10,FALSE)","v":{"$error":"#N/A"}},{"$f":"VLOOKUP(Table_Data_Table_13[[#This Row],[Item ID]],Analysis_Table,11,FALSE)","v":{"$error":"#N/A"}},{"$f":"VLOOKUP(Table_Data_Table_13[[#This Row],[Item ID]],Analysis_Table,12,FALSE)","v":{"$error":"#N/A"}},{"$f":"VLOOKUP(Table_Data_Table_13[[#This Row],[Item ID]],Analysis_Table,13,FALSE)","v":{"$error":"#N/A"}},{"$f":"VLOOKUP(Table_Data_Table_13[[#This Row],[Item ID]],Analysis_Table,14,FALSE)","v":{"$error":"#N/A"}},{"$f":"VLOOKUP(Table_Data_Table_13[[#This Row],[Item ID]],Analysis_Table,15,FALSE)","v":{"$error":"#N/A"}},{"$f":"VLOOKUP(Table_Data_Table_13[[#This Row],[Item ID]],Analysis_Table,16,FALSE)","v":{"$error":"#N/A"}},{"$f":"VLOOKUP(Table_Data_Table_13[[#This Row],[Item ID]],Analysis_Table,17,FALSE)","v":{"$error":"#N/A"}},{"$f":"VLOOKUP(Table_Data_Table_13[[#This Row],[Item ID]],Analysis_Table,18,FALSE)","v":{"$error":"#N/A"}},{"$f":"VLOOKUP(Table_Data_Table_13[[#This Row],[Item ID]],Analysis_Table,19,FALSE)","v":{"$error":"#N/A"}},null,null,1]
["",null,null,null,null,null,null,null,null,0,null,null,null,{"$f":"VLOOKUP(Table_Data_Table_13[[#This Row],[Item ID]],Analysis_Table,8,FALSE)","v":{"$error":"#N/A"}},{"$f":"VLOOKUP(Table_Data_Table_13[[#This Row],[Item ID]],Analysis_Table,9,FALSE)","v":{"$error":"#N/A"}},{"$f":"VLOOKUP(Table_Data_Table_13[[#This Row],[Item ID]],Analysis_Table,10,FALSE)","v":{"$error":"#N/A"}},{"$f":"VLOOKUP(Table_Data_Table_13[[#This Row],[Item ID]],Analysis_Table,11,FALSE)","v":{"$error":"#N/A"}},{"$f":"VLOOKUP(Table_Data_Table_13[[#This Row],[Item ID]],Analysis_Table,12,FALSE)","v":{"$error":"#N/A"}},{"$f":"VLOOKUP(Table_Data_Table_13[[#This Row],[Item ID]],Analysis_Table,13,FALSE)","v":{"$error":"#N/A"}},{"$f":"VLOOKUP(Table_Data_Table_13[[#This Row],[Item ID]],Analysis_Table,14,FALSE)","v":{"$error":"#N/A"}},{"$f":"VLOOKUP(Table_Data_Table_13[[#This Row],[Item ID]],Analysis_Table,15,FALSE)","v":{"$error":"#N/A"}},{"$f":"VLOOKUP(Table_Data_Table_13[[#This Row],[Item ID]],Analysis_Table,16,FALSE)","v":{"$error":"#N/A"}},{"$f":"VLOOKUP(Table_Data_Table_13[[#This Row],[Item ID]],Analysis_Table,17,FALSE)","v":{"$error":"#N/A"}},{"$f":"VLOOKUP(Table_Data_Table_13[[#This Row],[Item ID]],Analysis_Table,18,FALSE)","v":{"$error":"#N/A"}},{"$f":"VLOOKUP(Table_Data_Table_13[[#This Row],[Item ID]],Analysis_Table,19,FALSE)","v":{"$error":"#N/A"}},null,null,1]
["",null,null,null,null,null,null,null,null,0,null,null,null,{"$f":"VLOOKUP(Table_Data_Table_13[[#This Row],[Item ID]],Analysis_Table,8,FALSE)","v":{"$error":"#N/A"}},{"$f":"VLOOKUP(Table_Data_Table_13[[#This Row],[Item ID]],Analysis_Table,9,FALSE)","v":{"$error":"#N/A"}},{"$f":"VLOOKUP(Table_Data_Table_13[[#This Row],[Item ID]],Analysis_Table,10,FALSE)","v":{"$error":"#N/A"}},{"$f":"VLOOKUP(Table_Data_Table_13[[#This Row],[Item ID]],Analysis_Table,11,FALSE)","v":{"$error":"#N/A"}},{"$f":"VLOOKUP(Table_Data_Table_13[[#This Row],[Item ID]],Analysis_Table,12,FALSE)","v":{"$error":"#N/A"}},{"$f":"VLOOKUP(Table_Data_Table_13[[#This Row],[Item ID]],Analysis_Table,13,FALSE)","v":{"$error":"#N/A"}},{"$f":"VLOOKUP(Table_Data_Table_13[[#This Row],[Item ID]],Analysis_Table,14,FALSE)","v":{"$error":"#N/A"}},{"$f":"VLOOKUP(Table_Data_Table_13[[#This Row],[Item ID]],Analysis_Table,15,FALSE)","v":{"$error":"#N/A"}},{"$f":"VLOOKUP(Table_Data_Table_13[[#This Row],[Item ID]],Analysis_Table,16,FALSE)","v":{"$error":"#N/A"}},{"$f":"VLOOKUP(Table_Data_Table_13[[#This Row],[Item ID]],Analysis_Table,17,FALSE)","v":{"$error":"#N/A"}},{"$f":"VLOOKUP(Table_Data_Table_13[[#This Row],[Item ID]],Analysis_Table,18,FALSE)","v":{"$error":"#N/A"}},{"$f":"VLOOKUP(Table_Data_Table_13[[#This Row],[Item ID]],Analysis_Table,19,FALSE)","v":{"$error":"#N/A"}},null,null,1]
["",null,null,null,null,null,null,null,null,0,null,null,null,{"$f":"VLOOKUP(Table_Data_Table_13[[#This Row],[Item ID]],Analysis_Table,8,FALSE)","v":{"$error":"#N/A"}},{"$f":"VLOOKUP(Table_Data_Table_13[[#This Row],[Item ID]],Analysis_Table,9,FALSE)","v":{"$error":"#N/A"}},{"$f":"VLOOKUP(Table_Data_Table_13[[#This Row],[Item ID]],Analysis_Table,10,FALSE)","v":{"$error":"#N/A"}},{"$f":"VLOOKUP(Table_Data_Table_13[[#This Row],[Item ID]],Analysis_Table,11,FALSE)","v":{"$error":"#N/A"}},{"$f":"VLOOKUP(Table_Data_Table_13[[#This Row],[Item ID]],Analysis_Table,12,FALSE)","v":{"$error":"#N/A"}},{"$f":"VLOOKUP(Table_Data_Table_13[[#This Row],[Item ID]],Analysis_Table,13,FALSE)","v":{"$error":"#N/A"}},{"$f":"VLOOKUP(Table_Data_Table_13[[#This Row],[Item ID]],Analysis_Table,14,FALSE)","v":{"$error":"#N/A"}},{"$f":"VLOOKUP(Table_Data_Table_13[[#This Row],[Item ID]],Analysis_Table,15,FALSE)","v":{"$error":"#N/A"}},{"$f":"VLOOKUP(Table_Data_Table_13[[#This Row],[Item ID]],Analysis_Table,16,FALSE)","v":{"$error":"#N/A"}},{"$f":"VLOOKUP(Table_Data_Table_13[[#This Row],[Item ID]],Analysis_Table,17,FALSE)","v":{"$error":"#N/A"}},{"$f":"VLOOKUP(Table_Data_Table_13[[#This Row],[Item ID]],Analysis_Table,18,FALSE)","v":{"$error":"#N/A"}},{"$f":"VLOOKUP(Table_Data_Table_13[[#This Row],[Item ID]],Analysis_Table,19,FALSE)","v":{"$error":"#N/A"}},null,null,1]
["",null,null,null,null,null,null,null,null,0,null,null,null,{"$f":"VLOOKUP(Table_Data_Table_13[[#This Row],[Item ID]],Analysis_Table,8,FALSE)","v":{"$error":"#N/A"}},{"$f":"VLOOKUP(Table_Data_Table_13[[#This Row],[Item ID]],Analysis_Table,9,FALSE)","v":{"$error":"#N/A"}},{"$f":"VLOOKUP(Table_Data_Table_13[[#This Row],[Item ID]],Analysis_Table,10,FALSE)","v":{"$error":"#N/A"}},{"$f":"VLOOKUP(Table_Data_Table_13[[#This Row],[Item ID]],Analysis_Table,11,FALSE)","v":{"$error":"#N/A"}},{"$f":"VLOOKUP(Table_Data_Table_13[[#This Row],[Item ID]],Analysis_Table,12,FALSE)","v":{"$error":"#N/A"}},{"$f":"VLOOKUP(Table_Data_Table_13[[#This Row],[Item ID]],Analysis_Table,13,FALSE)","v":{"$error":"#N/A"}},{"$f":"VLOOKUP(Table_Data_Table_13[[#This Row],[Item ID]],Analysis_Table,14,FALSE)","v":{"$error":"#N/A"}},{"$f":"VLOOKUP(Table_Data_Table_13[[#This Row],[Item ID]],Analysis_Table,15,FALSE)","v":{"$error":"#N/A"}},{"$f":"VLOOKUP(Table_Data_Table_13[[#This Row],[Item ID]],Analysis_Table,16,FALSE)","v":{"$error":"#N/A"}},{"$f":"VLOOKUP(Table_Data_Table_13[[#This Row],[Item ID]],Analysis_Table,17,FALSE)","v":{"$error":"#N/A"}},{"$f":"VLOOKUP(Table_Data_Table_13[[#This Row],[Item ID]],Analysis_Table,18,FALSE)","v":{"$error":"#N/A"}},{"$f":"VLOOKUP(Table_Data_Table_13[[#This Row],[Item ID]],Analysis_Table,19,FALSE)","v":{"$error":"#N/A"}},null,null,1]
["",null,null,null,null,null,null,null,null,0,null,null,null,{"$f":"VLOOKUP(Table_Data_Table_13[[#This Row],[Item ID]],Analysis_Table,8,FALSE)","v":{"$error":"#N/A"}},{"$f":"VLOOKUP(Table_Data_Table_13[[#This Row],[Item ID]],Analysis_Table,9,FALSE)","v":{"$error":"#N/A"}},{"$f":"VLOOKUP(Table_Data_Table_13[[#This Row],[Item ID]],Analysis_Table,10,FALSE)","v":{"$error":"#N/A"}},{"$f":"VLOOKUP(Table_Data_Table_13[[#This Row],[Item ID]],Analysis_Table,11,FALSE)","v":{"$error":"#N/A"}},{"$f":"VLOOKUP(Table_Data_Table_13[[#This Row],[Item ID]],Analysis_Table,12,FALSE)","v":{"$error":"#N/A"}},{"$f":"VLOOKUP(Table_Data_Table_13[[#This Row],[Item ID]],Analysis_Table,13,FALSE)","v":{"$error":"#N/A"}},{"$f":"VLOOKUP(Table_Data_Table_13[[#This Row],[Item ID]],Analysis_Table,14,FALSE)","v":{"$error":"#N/A"}},{"$f":"VLOOKUP(Table_Data_Table_13[[#This Row],[Item ID]],Analysis_Table,15,FALSE)","v":{"$error":"#N/A"}},{"$f":"VLOOKUP(Table_Data_Table_13[[#This Row],[Item ID]],Analysis_Table,16,FALSE)","v":{"$error":"#N/A"}},{"$f":"VLOOKUP(Table_Data_Table_13[[#This Row],[Item ID]],Analysis_Table,17,FALSE)","v":{"$error":"#N/A"}},{"$f":"VLOOKUP(Table_Data_Table_13[[#This Row],[Item ID]],Analysis_Table,18,FALSE)","v":{"$error":"#N/A"}},{"$f":"VLOOKUP(Table_Data_Table_13[[#This Row],[Item ID]],Analysis_Table,19,FALSE)","v":{"$error":"#N/A"}},null,null,1]
["",null,null,null,null,null,null,null,null,0,null,null,null,{"$f":"VLOOKUP(Table_Data_Table_13[[#This Row],[Item ID]],Analysis_Table,8,FALSE)","v":{"$error":"#N/A"}},{"$f":"VLOOKUP(Table_Data_Table_13[[#This Row],[Item ID]],Analysis_Table,9,FALSE)","v":{"$error":"#N/A"}},{"$f":"VLOOKUP(Table_Data_Table_13[[#This Row],[Item ID]],Analysis_Table,10,FALSE)","v":{"$error":"#N/A"}},{"$f":"VLOOKUP(Table_Data_Table_13[[#This Row],[Item ID]],Analysis_Table,11,FALSE)","v":{"$error":"#N/A"}},{"$f":"VLOOKUP(Table_Data_Table_13[[#This Row],[Item ID]],Analysis_Table,12,FALSE)","v":{"$error":"#N/A"}},{"$f":"VLOOKUP(Table_Data_Table_13[[#This Row],[Item ID]],Analysis_Table,13,FALSE)","v":{"$error":"#N/A"}},{"$f":"VLOOKUP(Table_Data_Table_13[[#This Row],[Item ID]],Analysis_Table,14,FALSE)","v":{"$error":"#N/A"}},{"$f":"VLOOKUP(Table_Data_Table_13[[#This Row],[Item ID]],Analysis_Table,15,FALSE)","v":{"$error":"#N/A"}},{"$f":"VLOOKUP(Table_Data_Table_13[[#This Row],[Item ID]],Analysis_Table,16,FALSE)","v":{"$error":"#N/A"}},{"$f":"VLOOKUP(Table_Data_Table_13[[#This Row],[Item ID]],Analysis_Table,17,FALSE)","v":{"$error":"#N/A"}},{"$f":"VLOOKUP(Table_Data_Table_13[[#This Row],[Item ID]],Analysis_Table,18,FALSE)","v":{"$error":"#N/A"}},{"$f":"VLOOKUP(Table_Data_Table_13[[#This Row],[Item ID]],Analysis_Table,19,FALSE)","v":{"$error":"#N/A"}},null,null,1]
["",null,null,null,null,null,null,null,null,0,null,null,null,{"$f":"VLOOKUP(Table_Data_Table_13[[#This Row],[Item ID]],Analysis_Table,8,FALSE)","v":{"$error":"#N/A"}},{"$f":"VLOOKUP(Table_Data_Table_13[[#This Row],[Item ID]],Analysis_Table,9,FALSE)","v":{"$error":"#N/A"}},{"$f":"VLOOKUP(Table_Data_Table_13[[#This Row],[Item ID]],Analysis_Table,10,FALSE)","v":{"$error":"#N/A"}},{"$f":"VLOOKUP(Table_Data_Table_13[[#This Row],[Item ID]],Analysis_Table,11,FALSE)","v":{"$error":"#N/A"}},{"$f":"VLOOKUP(Table_Data_Table_13[[#This Row],[Item ID]],Analysis_Table,12,FALSE)","v":{"$error":"#N/A"}},{"$f":"VLOOKUP(Table_Data_Table_13[[#This Row],[Item ID]],Analysis_Table,13,FALSE)","v":{"$error":"#N/A"}},{"$f":"VLOOKUP(Table_Data_Table_13[[#This Row],[Item ID]],Analysis_Table,14,FALSE)","v":{"$error":"#N/A"}},{"$f":"VLOOKUP(Table_Data_Table_13[[#This Row],[Item ID]],Analysis_Table,15,FALSE)","v":{"$error":"#N/A"}},{"$f":"VLOOKUP(Table_Data_Table_13[[#This Row],[Item ID]],Analysis_Table,16,FALSE)","v":{"$error":"#N/A"}},{"$f":"VLOOKUP(Table_Data_Table_13[[#This Row],[Item ID]],Analysis_Table,17,FALSE)","v":{"$error":"#N/A"}},{"$f":"VLOOKUP(Table_Data_Table_13[[#This Row],[Item ID]],Analysis_Table,18,FALSE)","v":{"$error":"#N/A"}},{"$f":"VLOOKUP(Table_Data_Table_13[[#This Row],[Item ID]],Analysis_Table,19,FALSE)","v":{"$error":"#N/A"}},null,null,1]
["",null,null,null,null,null,null,null,null,0,null,null,null,{"$f":"VLOOKUP(Table_Data_Table_13[[#This Row],[Item ID]],Analysis_Table,8,FALSE)","v":{"$error":"#N/A"}},{"$f":"VLOOKUP(Table_Data_Table_13[[#This Row],[Item ID]],Analysis_Table,9,FALSE)","v":{"$error":"#N/A"}},{"$f":"VLOOKUP(Table_Data_Table_13[[#This Row],[Item ID]],Analysis_Table,10,FALSE)","v":{"$error":"#N/A"}},{"$f":"VLOOKUP(Table_Data_Table_13[[#This Row],[Item ID]],Analysis_Table,11,FALSE)","v":{"$error":"#N/A"}},{"$f":"VLOOKUP(Table_Data_Table_13[[#This Row],[Item ID]],Analysis_Table,12,FALSE)","v":{"$error":"#N/A"}},{"$f":"VLOOKUP(Table_Data_Table_13[[#This Row],[Item ID]],Analysis_Table,13,FALSE)","v":{"$error":"#N/A"}},{"$f":"VLOOKUP(Table_Data_Table_13[[#This Row],[Item ID]],Analysis_Table,14,FALSE)","v":{"$error":"#N/A"}},{"$f":"VLOOKUP(Table_Data_Table_13[[#This Row],[Item ID]],Analysis_Table,15,FALSE)","v":{"$error":"#N/A"}},{"$f":"VLOOKUP(Table_Data_Table_13[[#This Row],[Item ID]],Analysis_Table,16,FALSE)","v":{"$error":"#N/A"}},{"$f":"VLOOKUP(Table_Data_Table_13[[#This Row],[Item ID]],Analysis_Table,17,FALSE)","v":{"$error":"#N/A"}},{"$f":"VLOOKUP(Table_Data_Table_13[[#This Row],[Item ID]],Analysis_Table,18,FALSE)","v":{"$error":"#N/A"}},{"$f":"VLOOKUP(Table_Data_Table_13[[#This Row],[Item ID]],Analysis_Table,19,FALSE)","v":{"$error":"#N/A"}},null,null,1]
["",null,null,null,null,null,null,null,null,0,null,null,null,{"$f":"VLOOKUP(Table_Data_Table_13[[#This Row],[Item ID]],Analysis_Table,8,FALSE)","v":{"$error":"#N/A"}},{"$f":"VLOOKUP(Table_Data_Table_13[[#This Row],[Item ID]],Analysis_Table,9,FALSE)","v":{"$error":"#N/A"}},{"$f":"VLOOKUP(Table_Data_Table_13[[#This Row],[Item ID]],Analysis_Table,10,FALSE)","v":{"$error":"#N/A"}},{"$f":"VLOOKUP(Table_Data_Table_13[[#This Row],[Item ID]],Analysis_Table,11,FALSE)","v":{"$error":"#N/A"}},{"$f":"VLOOKUP(Table_Data_Table_13[[#This Row],[Item ID]],Analysis_Table,12,FALSE)","v":{"$error":"#N/A"}},{"$f":"VLOOKUP(Table_Data_Table_13[[#This Row],[Item ID]],Analysis_Table,13,FALSE)","v":{"$error":"#N/A"}},{"$f":"VLOOKUP(Table_Data_Table_13[[#This Row],[Item ID]],Analysis_Table,14,FALSE)","v":{"$error":"#N/A"}},{"$f":"VLOOKUP(Table_Data_Table_13[[#This Row],[Item ID]],Analysis_Table,15,FALSE)","v":{"$error":"#N/A"}},{"$f":"VLOOKUP(Table_Data_Table_13[[#This Row],[Item ID]],Analysis_Table,16,FALSE)","v":{"$error":"#N/A"}},{"$f":"VLOOKUP(Table_Data_Table_13[[#This Row],[Item ID]],Analysis_Table,17,FALSE)","v":{"$error":"#N/A"}},{"$f":"VLOOKUP(Table_Data_Table_13[[#This Row],[Item ID]],Analysis_Table,18,FALSE)","v":{"$error":"#N/A"}},{"$f":"VLOOKUP(Table_Data_Table_13[[#This Row],[Item ID]],Analysis_Table,19,FALSE)","v":{"$error":"#N/A"}},null,null,1]
["",null,null,null,null,null,null,null,null,0,null,null,null,{"$f":"VLOOKUP(Table_Data_Table_13[[#This Row],[Item ID]],Analysis_Table,8,FALSE)","v":{"$error":"#N/A"}},{"$f":"VLOOKUP(Table_Data_Table_13[[#This Row],[Item ID]],Analysis_Table,9,FALSE)","v":{"$error":"#N/A"}},{"$f":"VLOOKUP(Table_Data_Table_13[[#This Row],[Item ID]],Analysis_Table,10,FALSE)","v":{"$error":"#N/A"}},{"$f":"VLOOKUP(Table_Data_Table_13[[#This Row],[Item ID]],Analysis_Table,11,FALSE)","v":{"$error":"#N/A"}},{"$f":"VLOOKUP(Table_Data_Table_13[[#This Row],[Item ID]],Analysis_Table,12,FALSE)","v":{"$error":"#N/A"}},{"$f":"VLOOKUP(Table_Data_Table_13[[#This Row],[Item ID]],Analysis_Table,13,FALSE)","v":{"$error":"#N/A"}},{"$f":"VLOOKUP(Table_Data_Table_13[[#This Row],[Item ID]],Analysis_Table,14,FALSE)","v":{"$error":"#N/A"}},{"$f":"VLOOKUP(Table_Data_Table_13[[#This Row],[Item ID]],Analysis_Table,15,FALSE)","v":{"$error":"#N/A"}},{"$f":"VLOOKUP(Table_Data_Table_13[[#This Row],[Item ID]],Analysis_Table,16,FALSE)","v":{"$error":"#N/A"}},{"$f":"VLOOKUP(Table_Data_Table_13[[#This Row],[Item ID]],Analysis_Table,17,FALSE)","v":{"$error":"#N/A"}},{"$f":"VLOOKUP(Table_Data_Table_13[[#This Row],[Item ID]],Analysis_Table,18,FALSE)","v":{"$error":"#N/A"}},{"$f":"VLOOKUP(Table_Data_Table_13[[#This Row],[Item ID]],Analysis_Table,19,FALSE)","v":{"$error":"#N/A"}},null,null,1]
["",null,null,null,null,null,null,null,null,0,null,null,null,{"$f":"VLOOKUP(Table_Data_Table_13[[#This Row],[Item ID]],Analysis_Table,8,FALSE)","v":{"$error":"#N/A"}},{"$f":"VLOOKUP(Table_Data_Table_13[[#This Row],[Item ID]],Analysis_Table,9,FALSE)","v":{"$error":"#N/A"}},{"$f":"VLOOKUP(Table_Data_Table_13[[#This Row],[Item ID]],Analysis_Table,10,FALSE)","v":{"$error":"#N/A"}},{"$f":"VLOOKUP(Table_Data_Table_13[[#This Row],[Item ID]],Analysis_Table,11,FALSE)","v":{"$error":"#N/A"}},{"$f":"VLOOKUP(Table_Data_Table_13[[#This Row],[Item ID]],Analysis_Table,12,FALSE)","v":{"$error":"#N/A"}},{"$f":"VLOOKUP(Table_Data_Table_13[[#This Row],[Item ID]],Analysis_Table,13,FALSE)","v":{"$error":"#N/A"}},{"$f":"VLOOKUP(Table_Data_Table_13[[#This Row],[Item ID]],Analysis_Table,14,FALSE)","v":{"$error":"#N/A"}},{"$f":"VLOOKUP(Table_Data_Table_13[[#This Row],[Item ID]],Analysis_Table,15,FALSE)","v":{"$error":"#N/A"}},{"$f":"VLOOKUP(Table_Data_Table_13[[#This Row],[Item ID]],Analysis_Table,16,FALSE)","v":{"$error":"#N/A"}},{"$f":"VLOOKUP(Table_Data_Table_13[[#This Row],[Item ID]],Analysis_Table,17,FALSE)","v":{"$error":"#N/A"}},{"$f":"VLOOKUP(Table_Data_Table_13[[#This Row],[Item ID]],Analysis_Table,18,FALSE)","v":{"$error":"#N/A"}},{"$f":"VLOOKUP(Table_Data_Table_13[[#This Row],[Item ID]],Analysis_Table,19,FALSE)","v":{"$error":"#N/A"}},null,null,1]
["",null,null,null,null,null,null,null,null,0,null,null,null,{"$f":"VLOOKUP(Table_Data_Table_13[[#This Row],[Item ID]],Analysis_Table,8,FALSE)","v":{"$error":"#N/A"}},{"$f":"VLOOKUP(Table_Data_Table_13[[#This Row],[Item ID]],Analysis_Table,9,FALSE)","v":{"$error":"#N/A"}},{"$f":"VLOOKUP(Table_Data_Table_13[[#This Row],[Item ID]],Analysis_Table,10,FALSE)","v":{"$error":"#N/A"}},{"$f":"VLOOKUP(Table_Data_Table_13[[#This Row],[Item ID]],Analysis_Table,11,FALSE)","v":{"$error":"#N/A"}},{"$f":"VLOOKUP(Table_Data_Table_13[[#This Row],[Item ID]],Analysis_Table,12,FALSE)","v":{"$error":"#N/A"}},{"$f":"VLOOKUP(Table_Data_Table_13[[#This Row],[Item ID]],Analysis_Table,13,FALSE)","v":{"$error":"#N/A"}},{"$f":"VLOOKUP(Table_Data_Table_13[[#This Row],[Item ID]],Analysis_Table,14,FALSE)","v":{"$error":"#N/A"}},{"$f":"VLOOKUP(Table_Data_Table_13[[#This Row],[Item ID]],Analysis_Table,15,FALSE)","v":{"$error":"#N/A"}},{"$f":"VLOOKUP(Table_Data_Table_13[[#This Row],[Item ID]],Analysis_Table,16,FALSE)","v":{"$error":"#N/A"}},{"$f":"VLOOKUP(Table_Data_Table_13[[#This Row],[Item ID]],Analysis_Table,17,FALSE)","v":{"$error":"#N/A"}},{"$f":"VLOOKUP(Table_Data_Table_13[[#This Row],[Item ID]],Analysis_Table,18,FALSE)","v":{"$error":"#N/A"}},{"$f":"VLOOKUP(Table_Data_Table_13[[#This Row],[Item ID]],Analysis_Table,19,FALSE)","v":{"$error":"#N/A"}},null,null,1]
["",null,null,null,null,null,null,null,null,0,null,null,null,{"$f":"VLOOKUP(Table_Data_Table_13[[#This Row],[Item ID]],Analysis_Table,8,FALSE)","v":{"$error":"#N/A"}},{"$f":"VLOOKUP(Table_Data_Table_13[[#This Row],[Item ID]],Analysis_Table,9,FALSE)","v":{"$error":"#N/A"}},{"$f":"VLOOKUP(Table_Data_Table_13[[#This Row],[Item ID]],Analysis_Table,10,FALSE)","v":{"$error":"#N/A"}},{"$f":"VLOOKUP(Table_Data_Table_13[[#This Row],[Item ID]],Analysis_Table,11,FALSE)","v":{"$error":"#N/A"}},{"$f":"VLOOKUP(Table_Data_Table_13[[#This Row],[Item ID]],Analysis_Table,12,FALSE)","v":{"$error":"#N/A"}},{"$f":"VLOOKUP(Table_Data_Table_13[[#This Row],[Item ID]],Analysis_Table,13,FALSE)","v":{"$error":"#N/A"}},{"$f":"VLOOKUP(Table_Data_Table_13[[#This Row],[Item ID]],Analysis_Table,14,FALSE)","v":{"$error":"#N/A"}},{"$f":"VLOOKUP(Table_Data_Table_13[[#This Row],[Item ID]],Analysis_Table,15,FALSE)","v":{"$error":"#N/A"}},{"$f":"VLOOKUP(Table_Data_Table_13[[#This Row],[Item ID]],Analysis_Table,16,FALSE)","v":{"$error":"#N/A"}},{"$f":"VLOOKUP(Table_Data_Table_13[[#This Row],[Item ID]],Analysis_Table,17,FALSE)","v":{"$error":"#N/A"}},{"$f":"VLOOKUP(Table_Data_Table_13[[#This Row],[Item ID]],Analysis_Table,18,FALSE)","v":{"$error":"#N/A"}},{"$f":"VLOOKUP(Table_Data_Table_13[[#This Row],[Item ID]],Analysis_Table,19,FALSE)","v":{"$error":"#N/A"}},null,null,1]
["",null,null,null,null,null,null,null,null,0,null,null,null,{"$f":"VLOOKUP(Table_Data_Table_13[[#This Row],[Item ID]],Analysis_Table,8,FALSE)","v":{"$error":"#N/A"}},{"$f":"VLOOKUP(Table_Data_Table_13[[#This Row],[Item ID]],Analysis_Table,9,FALSE)","v":{"$error":"#N/A"}},{"$f":"VLOOKUP(Table_Data_Table_13[[#This Row],[Item ID]],Analysis_Table,10,FALSE)","v":{"$error":"#N/A"}},{"$f":"VLOOKUP(Table_Data_Table_13[[#This Row],[Item ID]],Analysis_Table,11,FALSE)","v":{"$error":"#N/A"}},{"$f":"VLOOKUP(Table_Data_Table_13[[#This Row],[Item ID]],Analysis_Table,12,FALSE)","v":{"$error":"#N/A"}},{"$f":"VLOOKUP(Table_Data_Table_13[[#This Row],[Item ID]],Analysis_Table,13,FALSE)","v":{"$error":"#N/A"}},{"$f":"VLOOKUP(Table_Data_Table_13[[#This Row],[Item ID]],Analysis_Table,14,FALSE)","v":{"$error":"#N/A"}},{"$f":"VLOOKUP(Table_Data_Table_13[[#This Row],[Item ID]],Analysis_Table,15,FALSE)","v":{"$error":"#N/A"}},{"$f":"VLOOKUP(Table_Data_Table_13[[#This Row],[Item ID]],Analysis_Table,16,FALSE)","v":{"$error":"#N/A"}},{"$f":"VLOOKUP(Table_Data_Table_13[[#This Row],[Item ID]],Analysis_Table,17,FALSE)","v":{"$error":"#N/A"}},{"$f":"VLOOKUP(Table_Data_Table_13[[#This Row],[Item ID]],Analysis_Table,18,FALSE)","v":{"$error":"#N/A"}},{"$f":"VLOOKUP(Table_Data_Table_13[[#This Row],[Item ID]],Analysis_Table,19,FALSE)","v":{"$error":"#N/A"}},null,null,1]
["",null,null,null,null,null,null,null,null,0,null,null,null,{"$f":"VLOOKUP(Table_Data_Table_13[[#This Row],[Item ID]],Analysis_Table,8,FALSE)","v":{"$error":"#N/A"}},{"$f":"VLOOKUP(Table_Data_Table_13[[#This Row],[Item ID]],Analysis_Table,9,FALSE)","v":{"$error":"#N/A"}},{"$f":"VLOOKUP(Table_Data_Table_13[[#This Row],[Item ID]],Analysis_Table,10,FALSE)","v":{"$error":"#N/A"}},{"$f":"VLOOKUP(Table_Data_Table_13[[#This Row],[Item ID]],Analysis_Table,11,FALSE)","v":{"$error":"#N/A"}},{"$f":"VLOOKUP(Table_Data_Table_13[[#This Row],[Item ID]],Analysis_Table,12,FALSE)","v":{"$error":"#N/A"}},{"$f":"VLOOKUP(Table_Data_Table_13[[#This Row],[Item ID]],Analysis_Table,13,FALSE)","v":{"$error":"#N/A"}},{"$f":"VLOOKUP(Table_Data_Table_13[[#This Row],[Item ID]],Analysis_Table,14,FALSE)","v":{"$error":"#N/A"}},{"$f":"VLOOKUP(Table_Data_Table_13[[#This Row],[Item ID]],Analysis_Table,15,FALSE)","v":{"$error":"#N/A"}},{"$f":"VLOOKUP(Table_Data_Table_13[[#This Row],[Item ID]],Analysis_Table,16,FALSE)","v":{"$error":"#N/A"}},{"$f":"VLOOKUP(Table_Data_Table_13[[#This Row],[Item ID]],Analysis_Table,17,FALSE)","v":{"$error":"#N/A"}},{"$f":"VLOOKUP(Table_Data_Table_13[[#This Row],[Item ID]],Analysis_Table,18,FALSE)","v":{"$error":"#N/A"}},{"$f":"VLOOKUP(Table_Data_Table_13[[#This Row],[Item ID]],Analysis_Table,19,FALSE)","v":{"$error":"#N/A"}},null,null,1]
["",null,null,null,null,null,null,null,null,0,null,null,null,{"$f":"VLOOKUP(Table_Data_Table_13[[#This Row],[Item ID]],Analysis_Table,8,FALSE)","v":{"$error":"#N/A"}},{"$f":"VLOOKUP(Table_Data_Table_13[[#This Row],[Item ID]],Analysis_Table,9,FALSE)","v":{"$error":"#N/A"}},{"$f":"VLOOKUP(Table_Data_Table_13[[#This Row],[Item ID]],Analysis_Table,10,FALSE)","v":{"$error":"#N/A"}},{"$f":"VLOOKUP(Table_Data_Table_13[[#This Row],[Item ID]],Analysis_Table,11,FALSE)","v":{"$error":"#N/A"}},{"$f":"VLOOKUP(Table_Data_Table_13[[#This Row],[Item ID]],Analysis_Table,12,FALSE)","v":{"$error":"#N/A"}},{"$f":"VLOOKUP(Table_Data_Table_13[[#This Row],[Item ID]],Analysis_Table,13,FALSE)","v":{"$error":"#N/A"}},{"$f":"VLOOKUP(Table_Data_Table_13[[#This Row],[Item ID]],Analysis_Table,14,FALSE)","v":{"$error":"#N/A"}},{"$f":"VLOOKUP(Table_Data_Table_13[[#This Row],[Item ID]],Analysis_Table,15,FALSE)","v":{"$error":"#N/A"}},{"$f":"VLOOKUP(Table_Data_Table_13[[#This Row],[Item ID]],Analysis_Table,16,FALSE)","v":{"$error":"#N/A"}},{"$f":"VLOOKUP(Table_Data_Table_13[[#This Row],[Item ID]],Analysis_Table,17,FALSE)","v":{"$error":"#N/A"}},{"$f":"VLOOKUP(Table_Data_Table_13[[#This Row],[Item ID]],Analysis_Table,18,FALSE)","v":{"$error":"#N/A"}},{"$f":"VLOOKUP(Table_Data_Table_13[[#This Row],[Item ID]],Analysis_Table,19,FALSE)","v":{"$error":"#N/A"}},null,null,1]
["",null,null,null,null,null,null,null,null,0,null,null,null,{"$f":"VLOOKUP(Table_Data_Table_13[[#This Row],[Item ID]],Analysis_Table,8,FALSE)","v":{"$error":"#N/A"}},{"$f":"VLOOKUP(Table_Data_Table_13[[#This Row],[Item ID]],Analysis_Table,9,FALSE)","v":{"$error":"#N/A"}},{"$f":"VLOOKUP(Table_Data_Table_13[[#This Row],[Item ID]],Analysis_Table,10,FALSE)","v":{"$error":"#N/A"}},{"$f":"VLOOKUP(Table_Data_Table_13[[#This Row],[Item ID]],Analysis_Table,11,FALSE)","v":{"$error":"#N/A"}},{"$f":"VLOOKUP(Table_Data_Table_13[[#This Row],[Item ID]],Analysis_Table,12,FALSE)","v":{"$error":"#N/A"}},{"$f":"VLOOKUP(Table_Data_Table_13[[#This Row],[Item ID]],Analysis_Table,13,FALSE)","v":{"$error":"#N/A"}},{"$f":"VLOOKUP(Table_Data_Table_13[[#This Row],[Item ID]],Analysis_Table,14,FALSE)","v":{"$error":"#N/A"}},{"$f":"VLOOKUP(Table_Data_Table_13[[#This Row],[Item ID]],Analysis_Table,15,FALSE)","v":{"$error":"#N/A"}},{"$f":"VLOOKUP(Table_Data_Table_13[[#This Row],[Item ID]],Analysis_Table,16,FALSE)","v":{"$error":"#N/A"}},{"$f":"VLOOKUP(Table_Data_Table_13[[#This Row],[Item ID]],Analysis_Table,17,FALSE)","v":{"$error":"#N/A"}},{"$f":"VLOOKUP(Table_Data_Table_13[[#This Row],[Item ID]],Analysis_Table,18,FALSE)","v":{"$error":"#N/A"}},{"$f":"VLOOKUP(Table_Data_Table_13[[#This Row],[Item ID]],Analysis_Table,19,FALSE)","v":{"$error":"#N/A"}},null,null,1]
["",null,null,null,null,null,null,null,null,0,null,null,null,{"$f":"VLOOKUP(Table_Data_Table_13[[#This Row],[Item ID]],Analysis_Table,8,FALSE)","v":{"$error":"#N/A"}},{"$f":"VLOOKUP(Table_Data_Table_13[[#This Row],[Item ID]],Analysis_Table,9,FALSE)","v":{"$error":"#N/A"}},{"$f":"VLOOKUP(Table_Data_Table_13[[#This Row],[Item ID]],Analysis_Table,10,FALSE)","v":{"$error":"#N/A"}},{"$f":"VLOOKUP(Table_Data_Table_13[[#This Row],[Item ID]],Analysis_Table,11,FALSE)","v":{"$error":"#N/A"}},{"$f":"VLOOKUP(Table_Data_Table_13[[#This Row],[Item ID]],Analysis_Table,12,FALSE)","v":{"$error":"#N/A"}},{"$f":"VLOOKUP(Table_Data_Table_13[[#This Row],[Item ID]],Analysis_Table,13,FALSE)","v":{"$error":"#N/A"}},{"$f":"VLOOKUP(Table_Data_Table_13[[#This Row],[Item ID]],Analysis_Table,14,FALSE)","v":{"$error":"#N/A"}},{"$f":"VLOOKUP(Table_Data_Table_13[[#This Row],[Item ID]],Analysis_Table,15,FALSE)","v":{"$error":"#N/A"}},{"$f":"VLOOKUP(Table_Data_Table_13[[#This Row],[Item ID]],Analysis_Table,16,FALSE)","v":{"$error":"#N/A"}},{"$f":"VLOOKUP(Table_Data_Table_13[[#This Row],[Item ID]],Analysis_Table,17,FALSE)","v":{"$error":"#N/A"}},{"$f":"VLOOKUP(Table_Data_Table_13[[#This Row],[Item ID]],Analysis_Table,18,FALSE)","v":{"$error":"#N/A"}},{"$f":"VLOOKUP(Table_Data_Table_13[[#This Row],[Item ID]],Analysis_Table,19,FALSE)","v":{"$error":"#N/A"}},null,null,1]
["",null,null,null,null,null,null,null,null,0,null,null,null,{"$f":"VLOOKUP(Table_Data_Table_13[[#This Row],[Item ID]],Analysis_Table,8,FALSE)","v":{"$error":"#N/A"}},{"$f":"VLOOKUP(Table_Data_Table_13[[#This Row],[Item ID]],Analysis_Table,9,FALSE)","v":{"$error":"#N/A"}},{"$f":"VLOOKUP(Table_Data_Table_13[[#This Row],[Item ID]],Analysis_Table,10,FALSE)","v":{"$error":"#N/A"}},{"$f":"VLOOKUP(Table_Data_Table_13[[#This Row],[Item ID]],Analysis_Table,11,FALSE)","v":{"$error":"#N/A"}},{"$f":"VLOOKUP(Table_Data_Table_13[[#This Row],[Item ID]],Analysis_Table,12,FALSE)","v":{"$error":"#N/A"}},{"$f":"VLOOKUP(Table_Data_Table_13[[#This Row],[Item ID]],Analysis_Table,13,FALSE)","v":{"$error":"#N/A"}},{"$f":"VLOOKUP(Table_Data_Table_13[[#This Row],[Item ID]],Analysis_Table,14,FALSE)","v":{"$error":"#N/A"}},{"$f":"VLOOKUP(Table_Data_Table_13[[#This Row],[Item ID]],Analysis_Table,15,FALSE)","v":{"$error":"#N/A"}},{"$f":"VLOOKUP(Table_Data_Table_13[[#This Row],[Item ID]],Analysis_Table,16,FALSE)","v":{"$error":"#N/A"}},{"$f":"VLOOKUP(Table_Data_Table_13[[#This Row],[Item ID]],Analysis_Table,17,FALSE)","v":{"$error":"#N/A"}},{"$f":"VLOOKUP(Table_Data_Table_13[[#This Row],[Item ID]],Analysis_Table,18,FALSE)","v":{"$error":"#N/A"}},{"$f":"VLOOKUP(Table_Data_Table_13[[#This Row],[Item ID]],Analysis_Table,19,FALSE)","v":{"$error":"#N/A"}},null,null,1]
["",null,null,null,null,null,null,null,null,0,null,null,null,{"$f":"VLOOKUP(Table_Data_Table_13[[#This Row],[Item ID]],Analysis_Table,8,FALSE)","v":{"$error":"#N/A"}},{"$f":"VLOOKUP(Table_Data_Table_13[[#This Row],[Item ID]],Analysis_Table,9,FALSE)","v":{"$error":"#N/A"}},{"$f":"VLOOKUP(Table_Data_Table_13[[#This Row],[Item ID]],Analysis_Table,10,FALSE)","v":{"$error":"#N/A"}},{"$f":"VLOOKUP(Table_Data_Table_13[[#This Row],[Item ID]],Analysis_Table,11,FALSE)","v":{"$error":"#N/A"}},{"$f":"VLOOKUP(Table_Data_Table_13[[#This Row],[Item ID]],Analysis_Table,12,FALSE)","v":{"$error":"#N/A"}},{"$f":"VLOOKUP(Table_Data_Table_13[[#This Row],[Item ID]],Analysis_Table,13,FALSE)","v":{"$error":"#N/A"}},{"$f":"VLOOKUP(Table_Data_Table_13[[#This Row],[Item ID]],Analysis_Table,14,FALSE)","v":{"$error":"#N/A"}},{"$f":"VLOOKUP(Table_Data_Table_13[[#This Row],[Item ID]],Analysis_Table,15,FALSE)","v":{"$error":"#N/A"}},{"$f":"VLOOKUP(Table_Data_Table_13[[#This Row],[Item ID]],Analysis_Table,16,FALSE)","v":{"$error":"#N/A"}},{"$f":"VLOOKUP(Table_Data_Table_13[[#This Row],[Item ID]],Analysis_Table,17,FALSE)","v":{"$error":"#N/A"}},{"$f":"VLOOKUP(Table_Data_Table_13[[#This Row],[Item ID]],Analysis_Table,18,FALSE)","v":{"$error":"#N/A"}},{"$f":"VLOOKUP(Table_Data_Table_13[[#This Row],[Item ID]],Analysis_Table,19,FALSE)","v":{"$error":"#N/A"}},null,null,1]
["",null,null,null,null,null,null,null,null,0,null,null,null,{"$f":"VLOOKUP(Table_Data_Table_13[[#This Row],[Item ID]],Analysis_Table,8,FALSE)","v":{"$error":"#N/A"}},{"$f":"VLOOKUP(Table_Data_Table_13[[#This Row],[Item ID]],Analysis_Table,9,FALSE)","v":{"$error":"#N/A"}},{"$f":"VLOOKUP(Table_Data_Table_13[[#This Row],[Item ID]],Analysis_Table,10,FALSE)","v":{"$error":"#N/A"}},{"$f":"VLOOKUP(Table_Data_Table_13[[#This Row],[Item ID]],Analysis_Table,11,FALSE)","v":{"$error":"#N/A"}},{"$f":"VLOOKUP(Table_Data_Table_13[[#This Row],[Item ID]],Analysis_Table,12,FALSE)","v":{"$error":"#N/A"}},{"$f":"VLOOKUP(Table_Data_Table_13[[#This Row],[Item ID]],Analysis_Table,13,FALSE)","v":{"$error":"#N/A"}},{"$f":"VLOOKUP(Table_Data_Table_13[[#This Row],[Item ID]],Analysis_Table,14,FALSE)","v":{"$error":"#N/A"}},{"$f":"VLOOKUP(Table_Data_Table_13[[#This Row],[Item ID]],Analysis_Table,15,FALSE)","v":{"$error":"#N/A"}},{"$f":"VLOOKUP(Table_Data_Table_13[[#This Row],[Item ID]],Analysis_Table,16,FALSE)","v":{"$error":"#N/A"}},{"$f":"VLOOKUP(Table_Data_Table_13[[#This Row],[Item ID]],Analysis_Table,17,FALSE)","v":{"$error":"#N/A"}},{"$f":"VLOOKUP(Table_Data_Table_13[[#This Row],[Item ID]],Analysis_Table,18,FALSE)","v":{"$error":"#N/A"}},{"$f":"VLOOKUP(Table_Data_Table_13[[#This Row],[Item ID]],Analysis_Table,19,FALSE)","v":{"$error":"#N/A"}},null,null,1]
["",null,null,null,null,null,null,null,null,0,null,null,null,{"$f":"VLOOKUP(Table_Data_Table_13[[#This Row],[Item ID]],Analysis_Table,8,FALSE)","v":{"$error":"#N/A"}},{"$f":"VLOOKUP(Table_Data_Table_13[[#This Row],[Item ID]],Analysis_Table,9,FALSE)","v":{"$error":"#N/A"}},{"$f":"VLOOKUP(Table_Data_Table_13[[#This Row],[Item ID]],Analysis_Table,10,FALSE)","v":{"$error":"#N/A"}},{"$f":"VLOOKUP(Table_Data_Table_13[[#This Row],[Item ID]],Analysis_Table,11,FALSE)","v":{"$error":"#N/A"}},{"$f":"VLOOKUP(Table_Data_Table_13[[#This Row],[Item ID]],Analysis_Table,12,FALSE)","v":{"$error":"#N/A"}},{"$f":"VLOOKUP(Table_Data_Table_13[[#This Row],[Item ID]],Analysis_Table,13,FALSE)","v":{"$error":"#N/A"}},{"$f":"VLOOKUP(Table_Data_Table_13[[#This Row],[Item ID]],Analysis_Table,14,FALSE)","v":{"$error":"#N/A"}},{"$f":"VLOOKUP(Table_Data_Table_13[[#This Row],[Item ID]],Analysis_Table,15,FALSE)","v":{"$error":"#N/A"}},{"$f":"VLOOKUP(Table_Data_Table_13[[#This Row],[Item ID]],Analysis_Table,16,FALSE)","v":{"$error":"#N/A"}},{"$f":"VLOOKUP(Table_Data_Table_13[[#This Row],[Item ID]],Analysis_Table,17,FALSE)","v":{"$error":"#N/A"}},{"$f":"VLOOKUP(Table_Data_Table_13[[#This Row],[Item ID]],Analysis_Table,18,FALSE)","v":{"$error":"#N/A"}},{"$f":"VLOOKUP(Table_Data_Table_13[[#This Row],[Item ID]],Analysis_Table,19,FALSE)","v":{"$error":"#N/A"}},null,null,1]
["",null,null,null,null,null,null,null,null,0,null,null,null,{"$f":"VLOOKUP(Table_Data_Table_13[[#This Row],[Item ID]],Analysis_Table,8,FALSE)","v":{"$error":"#N/A"}},{"$f":"VLOOKUP(Table_Data_Table_13[[#This Row],[Item ID]],Analysis_Table,9,FALSE)","v":{"$error":"#N/A"}},{"$f":"VLOOKUP(Table_Data_Table_13[[#This Row],[Item ID]],Analysis_Table,10,FALSE)","v":{"$error":"#N/A"}},{"$f":"VLOOKUP(Table_Data_Table_13[[#This Row],[Item ID]],Analysis_Table,11,FALSE)","v":{"$error":"#N/A"}},{"$f":"VLOOKUP(Table_Data_Table_13[[#This Row],[Item ID]],Analysis_Table,12,FALSE)","v":{"$error":"#N/A"}},{"$f":"VLOOKUP(Table_Data_Table_13[[#This Row],[Item ID]],Analysis_Table,13,FALSE)","v":{"$error":"#N/A"}},{"$f":"VLOOKUP(Table_Data_Table_13[[#This Row],[Item ID]],Analysis_Table,14,FALSE)","v":{"$error":"#N/A"}},{"$f":"VLOOKUP(Table_Data_Table_13[[#This Row],[Item ID]],Analysis_Table,15,FALSE)","v":{"$error":"#N/A"}},{"$f":"VLOOKUP(Table_Data_Table_13[[#This Row],[Item ID]],Analysis_Table,16,FALSE)","v":{"$error":"#N/A"}},{"$f":"VLOOKUP(Table_Data_Table_13[[#This Row],[Item ID]],Analysis_Table,17,FALSE)","v":{"$error":"#N/A"}},{"$f":"VLOOKUP(Table_Data_Table_13[[#This Row],[Item ID]],Analysis_Table,18,FALSE)","v":{"$error":"#N/A"}},{"$f":"VLOOKUP(Table_Data_Table_13[[#This Row],[Item ID]],Analysis_Table,19,FALSE)","v":{"$error":"#N/A"}},null,null,1]
["",null,null,null,null,null,null,null,null,0,null,null,null,{"$f":"VLOOKUP(Table_Data_Table_13[[#This Row],[Item ID]],Analysis_Table,8,FALSE)","v":{"$error":"#N/A"}},{"$f":"VLOOKUP(Table_Data_Table_13[[#This Row],[Item ID]],Analysis_Table,9,FALSE)","v":{"$error":"#N/A"}},{"$f":"VLOOKUP(Table_Data_Table_13[[#This Row],[Item ID]],Analysis_Table,10,FALSE)","v":{"$error":"#N/A"}},{"$f":"VLOOKUP(Table_Data_Table_13[[#This Row],[Item ID]],Analysis_Table,11,FALSE)","v":{"$error":"#N/A"}},{"$f":"VLOOKUP(Table_Data_Table_13[[#This Row],[Item ID]],Analysis_Table,12,FALSE)","v":{"$error":"#N/A"}},{"$f":"VLOOKUP(Table_Data_Table_13[[#This Row],[Item ID]],Analysis_Table,13,FALSE)","v":{"$error":"#N/A"}},{"$f":"VLOOKUP(Table_Data_Table_13[[#This Row],[Item ID]],Analysis_Table,14,FALSE)","v":{"$error":"#N/A"}},{"$f":"VLOOKUP(Table_Data_Table_13[[#This Row],[Item ID]],Analysis_Table,15,FALSE)","v":{"$error":"#N/A"}},{"$f":"VLOOKUP(Table_Data_Table_13[[#This Row],[Item ID]],Analysis_Table,16,FALSE)","v":{"$error":"#N/A"}},{"$f":"VLOOKUP(Table_Data_Table_13[[#This Row],[Item ID]],Analysis_Table,17,FALSE)","v":{"$error":"#N/A"}},{"$f":"VLOOKUP(Table_Data_Table_13[[#This Row],[Item ID]],Analysis_Table,18,FALSE)","v":{"$error":"#N/A"}},{"$f":"VLOOKUP(Table_Data_Table_13[[#This Row],[Item ID]],Analysis_Table,19,FALSE)","v":{"$error":"#N/A"}},null,null,1]
["",null,null,null,null,null,null,null,null,0,null,null,null,{"$f":"VLOOKUP(Table_Data_Table_13[[#This Row],[Item ID]],Analysis_Table,8,FALSE)","v":{"$error":"#N/A"}},{"$f":"VLOOKUP(Table_Data_Table_13[[#This Row],[Item ID]],Analysis_Table,9,FALSE)","v":{"$error":"#N/A"}},{"$f":"VLOOKUP(Table_Data_Table_13[[#This Row],[Item ID]],Analysis_Table,10,FALSE)","v":{"$error":"#N/A"}},{"$f":"VLOOKUP(Table_Data_Table_13[[#This Row],[Item ID]],Analysis_Table,11,FALSE)","v":{"$error":"#N/A"}},{"$f":"VLOOKUP(Table_Data_Table_13[[#This Row],[Item ID]],Analysis_Table,12,FALSE)","v":{"$error":"#N/A"}},{"$f":"VLOOKUP(Table_Data_Table_13[[#This Row],[Item ID]],Analysis_Table,13,FALSE)","v":{"$error":"#N/A"}},{"$f":"VLOOKUP(Table_Data_Table_13[[#This Row],[Item ID]],Analysis_Table,14,FALSE)","v":{"$error":"#N/A"}},{"$f":"VLOOKUP(Table_Data_Table_13[[#This Row],[Item ID]],Analysis_Table,15,FALSE)","v":{"$error":"#N/A"}},{"$f":"VLOOKUP(Table_Data_Table_13[[#This Row],[Item ID]],Analysis_Table,16,FALSE)","v":{"$error":"#N/A"}},{"$f":"VLOOKUP(Table_Data_Table_13[[#This Row],[Item ID]],Analysis_Table,17,FALSE)","v":{"$error":"#N/A"}},{"$f":"VLOOKUP(Table_Data_Table_13[[#This Row],[Item ID]],Analysis_Table,18,FALSE)","v":{"$error":"#N/A"}},{"$f":"VLOOKUP(Table_Data_Table_13[[#This Row],[Item ID]],Analysis_Table,19,FALSE)","v":{"$error":"#N/A"}},null,null,1]
["",null,null,null,null,null,null,null,null,0,null,null,null,{"$f":"VLOOKUP(Table_Data_Table_13[[#This Row],[Item ID]],Analysis_Table,8,FALSE)","v":{"$error":"#N/A"}},{"$f":"VLOOKUP(Table_Data_Table_13[[#This Row],[Item ID]],Analysis_Table,9,FALSE)","v":{"$error":"#N/A"}},{"$f":"VLOOKUP(Table_Data_Table_13[[#This Row],[Item ID]],Analysis_Table,10,FALSE)","v":{"$error":"#N/A"}},{"$f":"VLOOKUP(Table_Data_Table_13[[#This Row],[Item ID]],Analysis_Table,11,FALSE)","v":{"$error":"#N/A"}},{"$f":"VLOOKUP(Table_Data_Table_13[[#This Row],[Item ID]],Analysis_Table,12,FALSE)","v":{"$error":"#N/A"}},{"$f":"VLOOKUP(Table_Data_Table_13[[#This Row],[Item ID]],Analysis_Table,13,FALSE)","v":{"$error":"#N/A"}},{"$f":"VLOOKUP(Table_Data_Table_13[[#This Row],[Item ID]],Analysis_Table,14,FALSE)","v":{"$error":"#N/A"}},{"$f":"VLOOKUP(Table_Data_Table_13[[#This Row],[Item ID]],Analysis_Table,15,FALSE)","v":{"$error":"#N/A"}},{"$f":"VLOOKUP(Table_Data_Table_13[[#This Row],[Item ID]],Analysis_Table,16,FALSE)","v":{"$error":"#N/A"}},{"$f":"VLOOKUP(Table_Data_Table_13[[#This Row],[Item ID]],Analysis_Table,17,FALSE)","v":{"$error":"#N/A"}},{"$f":"VLOOKUP(Table_Data_Table_13[[#This Row],[Item ID]],Analysis_Table,18,FALSE)","v":{"$error":"#N/A"}},{"$f":"VLOOKUP(Table_Data_Table_13[[#This Row],[Item ID]],Analysis_Table,19,FALSE)","v":{"$error":"#N/A"}},null,null,1]
["",null,null,null,null,null,null,null,null,0,null,null,null,{"$f":"VLOOKUP(Table_Data_Table_13[[#This Row],[Item ID]],Analysis_Table,8,FALSE)","v":{"$error":"#N/A"}},{"$f":"VLOOKUP(Table_Data_Table_13[[#This Row],[Item ID]],Analysis_Table,9,FALSE)","v":{"$error":"#N/A"}},{"$f":"VLOOKUP(Table_Data_Table_13[[#This Row],[Item ID]],Analysis_Table,10,FALSE)","v":{"$error":"#N/A"}},{"$f":"VLOOKUP(Table_Data_Table_13[[#This Row],[Item ID]],Analysis_Table,11,FALSE)","v":{"$error":"#N/A"}},{"$f":"VLOOKUP(Table_Data_Table_13[[#This Row],[Item ID]],Analysis_Table,12,FALSE)","v":{"$error":"#N/A"}},{"$f":"VLOOKUP(Table_Data_Table_13[[#This Row],[Item ID]],Analysis_Table,13,FALSE)","v":{"$error":"#N/A"}},{"$f":"VLOOKUP(Table_Data_Table_13[[#This Row],[Item ID]],Analysis_Table,14,FALSE)","v":{"$error":"#N/A"}},{"$f":"VLOOKUP(Table_Data_Table_13[[#This Row],[Item ID]],Analysis_Table,15,FALSE)","v":{"$error":"#N/A"}},{"$f":"VLOOKUP(Table_Data_Table_13[[#This Row],[Item ID]],Analysis_Table,16,FALSE)","v":{"$error":"#N/A"}},{"$f":"VLOOKUP(Table_Data_Table_13[[#This Row],[Item ID]],Analysis_Table,17,FALSE)","v":{"$error":"#N/A"}},{"$f":"VLOOKUP(Table_Data_Table_13[[#This Row],[Item ID]],Analysis_Table,18,FALSE)","v":{"$error":"#N/A"}},{"$f":"VLOOKUP(Table_Data_Table_13[[#This Row],[Item ID]],Analysis_Table,19,FALSE)","v":{"$error":"#N/A"}},null,null,1]
["",null,null,null,null,null,null,null,null,0,null,null,null,{"$f":"VLOOKUP(Table_Data_Table_13[[#This Row],[Item ID]],Analysis_Table,8,FALSE)","v":{"$error":"#N/A"}},{"$f":"VLOOKUP(Table_Data_Table_13[[#This Row],[Item ID]],Analysis_Table,9,FALSE)","v":{"$error":"#N/A"}},{"$f":"VLOOKUP(Table_Data_Table_13[[#This Row],[Item ID]],Analysis_Table,10,FALSE)","v":{"$error":"#N/A"}},{"$f":"VLOOKUP(Table_Data_Table_13[[#This Row],[Item ID]],Analysis_Table,11,FALSE)","v":{"$error":"#N/A"}},{"$f":"VLOOKUP(Table_Data_Table_13[[#This Row],[Item ID]],Analysis_Table,12,FALSE)","v":{"$error":"#N/A"}},{"$f":"VLOOKUP(Table_Data_Table_13[[#This Row],[Item ID]],Analysis_Table,13,FALSE)","v":{"$error":"#N/A"}},{"$f":"VLOOKUP(Table_Data_Table_13[[#This Row],[Item ID]],Analysis_Table,14,FALSE)","v":{"$error":"#N/A"}},{"$f":"VLOOKUP(Table_Data_Table_13[[#This Row],[Item ID]],Analysis_Table,15,FALSE)","v":{"$error":"#N/A"}},{"$f":"VLOOKUP(Table_Data_Table_13[[#This Row],[Item ID]],Analysis_Table,16,FALSE)","v":{"$error":"#N/A"}},{"$f":"VLOOKUP(Table_Data_Table_13[[#This Row],[Item ID]],Analysis_Table,17,FALSE)","v":{"$error":"#N/A"}},{"$f":"VLOOKUP(Table_Data_Table_13[[#This Row],[Item ID]],Analysis_Table,18,FALSE)","v":{"$error":"#N/A"}},{"$f":"VLOOKUP(Table_Data_Table_13[[#This Row],[Item ID]],Analysis_Table,19,FALSE)","v":{"$error":"#N/A"}},null,null,1]
["",null,null,null,null,null,null,null,null,0,null,null,null,{"$f":"VLOOKUP(Table_Data_Table_13[[#This Row],[Item ID]],Analysis_Table,8,FALSE)","v":{"$error":"#N/A"}},{"$f":"VLOOKUP(Table_Data_Table_13[[#This Row],[Item ID]],Analysis_Table,9,FALSE)","v":{"$error":"#N/A"}},{"$f":"VLOOKUP(Table_Data_Table_13[[#This Row],[Item ID]],Analysis_Table,10,FALSE)","v":{"$error":"#N/A"}},{"$f":"VLOOKUP(Table_Data_Table_13[[#This Row],[Item ID]],Analysis_Table,11,FALSE)","v":{"$error":"#N/A"}},{"$f":"VLOOKUP(Table_Data_Table_13[[#This Row],[Item ID]],Analysis_Table,12,FALSE)","v":{"$error":"#N/A"}},{"$f":"VLOOKUP(Table_Data_Table_13[[#This Row],[Item ID]],Analysis_Table,13,FALSE)","v":{"$error":"#N/A"}},{"$f":"VLOOKUP(Table_Data_Table_13[[#This Row],[Item ID]],Analysis_Table,14,FALSE)","v":{"$error":"#N/A"}},{"$f":"VLOOKUP(Table_Data_Table_13[[#This Row],[Item ID]],Analysis_Table,15,FALSE)","v":{"$error":"#N/A"}},{"$f":"VLOOKUP(Table_Data_Table_13[[#This Row],[Item ID]],Analysis_Table,16,FALSE)","v":{"$error":"#N/A"}},{"$f":"VLOOKUP(Table_Data_Table_13[[#This Row],[Item ID]],Analysis_Table,17,FALSE)","v":{"$error":"#N/A"}},{"$f":"VLOOKUP(Table_Data_Table_13[[#This Row],[Item ID]],Analysis_Table,18,FALSE)","v":{"$error":"#N/A"}},{"$f":"VLOOKUP(Table_Data_Table_13[[#This Row],[Item ID]],Analysis_Table,19,FALSE)","v":{"$error":"#N/A"}},null,null,1]
["",null,null,null,null,null,null,null,null,0,null,null,null,{"$f":"VLOOKUP(Table_Data_Table_13[[#This Row],[Item ID]],Analysis_Table,8,FALSE)","v":{"$error":"#N/A"}},{"$f":"VLOOKUP(Table_Data_Table_13[[#This Row],[Item ID]],Analysis_Table,9,FALSE)","v":{"$error":"#N/A"}},{"$f":"VLOOKUP(Table_Data_Table_13[[#This Row],[Item ID]],Analysis_Table,10,FALSE)","v":{"$error":"#N/A"}},{"$f":"VLOOKUP(Table_Data_Table_13[[#This Row],[Item ID]],Analysis_Table,11,FALSE)","v":{"$error":"#N/A"}},{"$f":"VLOOKUP(Table_Data_Table_13[[#This Row],[Item ID]],Analysis_Table,12,FALSE)","v":{"$error":"#N/A"}},{"$f":"VLOOKUP(Table_Data_Table_13[[#This Row],[Item ID]],Analysis_Table,13,FALSE)","v":{"$error":"#N/A"}},{"$f":"VLOOKUP(Table_Data_Table_13[[#This Row],[Item ID]],Analysis_Table,14,FALSE)","v":{"$error":"#N/A"}},{"$f":"VLOOKUP(Table_Data_Table_13[[#This Row],[Item ID]],Analysis_Table,15,FALSE)","v":{"$error":"#N/A"}},{"$f":"VLOOKUP(Table_Data_Table_13[[#This Row],[Item ID]],Analysis_Table,16,FALSE)","v":{"$error":"#N/A"}},{"$f":"VLOOKUP(Table_Data_Table_13[[#This Row],[Item ID]],Analysis_Table,17,FALSE)","v":{"$error":"#N/A"}},{"$f":"VLOOKUP(Table_Data_Table_13[[#This Row],[Item ID]],Analysis_Table,18,FALSE)","v":{"$error":"#N/A"}},{"$f":"VLOOKUP(Table_Data_Table_13[[#This Row],[Item ID]],Analysis_Table,19,FALSE)","v":{"$error":"#N/A"}},null,null,1]
["",null,null,null,null,null,null,null,null,0,null,null,null,{"$f":"VLOOKUP(Table_Data_Table_13[[#This Row],[Item ID]],Analysis_Table,8,FALSE)","v":{"$error":"#N/A"}},{"$f":"VLOOKUP(Table_Data_Table_13[[#This Row],[Item ID]],Analysis_Table,9,FALSE)","v":{"$error":"#N/A"}},{"$f":"VLOOKUP(Table_Data_Table_13[[#This Row],[Item ID]],Analysis_Table,10,FALSE)","v":{"$error":"#N/A"}},{"$f":"VLOOKUP(Table_Data_Table_13[[#This Row],[Item ID]],Analysis_Table,11,FALSE)","v":{"$error":"#N/A"}},{"$f":"VLOOKUP(Table_Data_Table_13[[#This Row],[Item ID]],Analysis_Table,12,FALSE)","v":{"$error":"#N/A"}},{"$f":"VLOOKUP(Table_Data_Table_13[[#This Row],[Item ID]],Analysis_Table,13,FALSE)","v":{"$error":"#N/A"}},{"$f":"VLOOKUP(Table_Data_Table_13[[#This Row],[Item ID]],Analysis_Table,14,FALSE)","v":{"$error":"#N/A"}},{"$f":"VLOOKUP(Table_Data_Table_13[[#This Row],[Item ID]],Analysis_Table,15,FALSE)","v":{"$error":"#N/A"}},{"$f":"VLOOKUP(Table_Data_Table_13[[#This Row],[Item ID]],Analysis_Table,16,FALSE)","v":{"$error":"#N/A"}},{"$f":"VLOOKUP(Table_Data_Table_13[[#This Row],[Item ID]],Analysis_Table,17,FALSE)","v":{"$error":"#N/A"}},{"$f":"VLOOKUP(Table_Data_Table_13[[#This Row],[Item ID]],Analysis_Table,18,FALSE)","v":{"$error":"#N/A"}},{"$f":"VLOOKUP(Table_Data_Table_13[[#This Row],[Item ID]],Analysis_Table,19,FALSE)","v":{"$error":"#N/A"}},null,null,1]
["",null,null,null,null,null,null,null,null,0,null,null,null,{"$f":"VLOOKUP(Table_Data_Table_13[[#This Row],[Item ID]],Analysis_Table,8,FALSE)","v":{"$error":"#N/A"}},{"$f":"VLOOKUP(Table_Data_Table_13[[#This Row],[Item ID]],Analysis_Table,9,FALSE)","v":{"$error":"#N/A"}},{"$f":"VLOOKUP(Table_Data_Table_13[[#This Row],[Item ID]],Analysis_Table,10,FALSE)","v":{"$error":"#N/A"}},{"$f":"VLOOKUP(Table_Data_Table_13[[#This Row],[Item ID]],Analysis_Table,11,FALSE)","v":{"$error":"#N/A"}},{"$f":"VLOOKUP(Table_Data_Table_13[[#This Row],[Item ID]],Analysis_Table,12,FALSE)","v":{"$error":"#N/A"}},{"$f":"VLOOKUP(Table_Data_Table_13[[#This Row],[Item ID]],Analysis_Table,13,FALSE)","v":{"$error":"#N/A"}},{"$f":"VLOOKUP(Table_Data_Table_13[[#This Row],[Item ID]],Analysis_Table,14,FALSE)","v":{"$error":"#N/A"}},{"$f":"VLOOKUP(Table_Data_Table_13[[#This Row],[Item ID]],Analysis_Table,15,FALSE)","v":{"$error":"#N/A"}},{"$f":"VLOOKUP(Table_Data_Table_13[[#This Row],[Item ID]],Analysis_Table,16,FALSE)","v":{"$error":"#N/A"}},{"$f":"VLOOKUP(Table_Data_Table_13[[#This Row],[Item ID]],Analysis_Table,17,FALSE)","v":{"$error":"#N/A"}},{"$f":"VLOOKUP(Table_Data_Table_13[[#This Row],[Item ID]],Analysis_Table,18,FALSE)","v":{"$error":"#N/A"}},{"$f":"VLOOKUP(Table_Data_Table_13[[#This Row],[Item ID]],Analysis_Table,19,FALSE)","v":{"$error":"#N/A"}},null,null,1]
["",null,null,null,null,null,null,null,null,0,null,null,null,{"$f":"VLOOKUP(Table_Data_Table_13[[#This Row],[Item ID]],Analysis_Table,8,FALSE)","v":{"$error":"#N/A"}},{"$f":"VLOOKUP(Table_Data_Table_13[[#This Row],[Item ID]],Analysis_Table,9,FALSE)","v":{"$error":"#N/A"}},{"$f":"VLOOKUP(Table_Data_Table_13[[#This Row],[Item ID]],Analysis_Table,10,FALSE)","v":{"$error":"#N/A"}},{"$f":"VLOOKUP(Table_Data_Table_13[[#This Row],[Item ID]],Analysis_Table,11,FALSE)","v":{"$error":"#N/A"}},{"$f":"VLOOKUP(Table_Data_Table_13[[#This Row],[Item ID]],Analysis_Table,12,FALSE)","v":{"$error":"#N/A"}},{"$f":"VLOOKUP(Table_Data_Table_13[[#This Row],[Item ID]],Analysis_Table,13,FALSE)","v":{"$error":"#N/A"}},{"$f":"VLOOKUP(Table_Data_Table_13[[#This Row],[Item ID]],Analysis_Table,14,FALSE)","v":{"$error":"#N/A"}},{"$f":"VLOOKUP(Table_Data_Table_13[[#This Row],[Item ID]],Analysis_Table,15,FALSE)","v":{"$error":"#N/A"}},{"$f":"VLOOKUP(Table_Data_Table_13[[#This Row],[Item ID]],Analysis_Table,16,FALSE)","v":{"$error":"#N/A"}},{"$f":"VLOOKUP(Table_Data_Table_13[[#This Row],[Item ID]],Analysis_Table,17,FALSE)","v":{"$error":"#N/A"}},{"$f":"VLOOKUP(Table_Data_Table_13[[#This Row],[Item ID]],Analysis_Table,18,FALSE)","v":{"$error":"#N/A"}},{"$f":"VLOOKUP(Table_Data_Table_13[[#This Row],[Item ID]],Analysis_Table,19,FALSE)","v":{"$error":"#N/A"}},null,null,1]
["",null,null,null,null,null,null,null,null,0,null,null,null,{"$f":"VLOOKUP(Table_Data_Table_13[[#This Row],[Item ID]],Analysis_Table,8,FALSE)","v":{"$error":"#N/A"}},{"$f":"VLOOKUP(Table_Data_Table_13[[#This Row],[Item ID]],Analysis_Table,9,FALSE)","v":{"$error":"#N/A"}},{"$f":"VLOOKUP(Table_Data_Table_13[[#This Row],[Item ID]],Analysis_Table,10,FALSE)","v":{"$error":"#N/A"}},{"$f":"VLOOKUP(Table_Data_Table_13[[#This Row],[Item ID]],Analysis_Table,11,FALSE)","v":{"$error":"#N/A"}},{"$f":"VLOOKUP(Table_Data_Table_13[[#This Row],[Item ID]],Analysis_Table,12,FALSE)","v":{"$error":"#N/A"}},{"$f":"VLOOKUP(Table_Data_Table_13[[#This Row],[Item ID]],Analysis_Table,13,FALSE)","v":{"$error":"#N/A"}},{"$f":"VLOOKUP(Table_Data_Table_13[[#This Row],[Item ID]],Analysis_Table,14,FALSE)","v":{"$error":"#N/A"}},{"$f":"VLOOKUP(Table_Data_Table_13[[#This Row],[Item ID]],Analysis_Table,15,FALSE)","v":{"$error":"#N/A"}},{"$f":"VLOOKUP(Table_Data_Table_13[[#This Row],[Item ID]],Analysis_Table,16,FALSE)","v":{"$error":"#N/A"}},{"$f":"VLOOKUP(Table_Data_Table_13[[#This Row],[Item ID]],Analysis_Table,17,FALSE)","v":{"$error":"#N/A"}},{"$f":"VLOOKUP(Table_Data_Table_13[[#This Row],[Item ID]],Analysis_Table,18,FALSE)","v":{"$error":"#N/A"}},{"$f":"VLOOKUP(Table_Data_Table_13[[#This Row],[Item ID]],Analysis_Table,19,FALSE)","v":{"$error":"#N/A"}},null,null,1]
["",null,null,null,null,null,null,null,null,0,null,null,null,{"$f":"VLOOKUP(Table_Data_Table_13[[#This Row],[Item ID]],Analysis_Table,8,FALSE)","v":{"$error":"#N/A"}},{"$f":"VLOOKUP(Table_Data_Table_13[[#This Row],[Item ID]],Analysis_Table,9,FALSE)","v":{"$error":"#N/A"}},{"$f":"VLOOKUP(Table_Data_Table_13[[#This Row],[Item ID]],Analysis_Table,10,FALSE)","v":{"$error":"#N/A"}},{"$f":"VLOOKUP(Table_Data_Table_13[[#This Row],[Item ID]],Analysis_Table,11,FALSE)","v":{"$error":"#N/A"}},{"$f":"VLOOKUP(Table_Data_Table_13[[#This Row],[Item ID]],Analysis_Table,12,FALSE)","v":{"$error":"#N/A"}},{"$f":"VLOOKUP(Table_Data_Table_13[[#This Row],[Item ID]],Analysis_Table,13,FALSE)","v":{"$error":"#N/A"}},{"$f":"VLOOKUP(Table_Data_Table_13[[#This Row],[Item ID]],Analysis_Table,14,FALSE)","v":{"$error":"#N/A"}},{"$f":"VLOOKUP(Table_Data_Table_13[[#This Row],[Item ID]],Analysis_Table,15,FALSE)","v":{"$error":"#N/A"}},{"$f":"VLOOKUP(Table_Data_Table_13[[#This Row],[Item ID]],Analysis_Table,16,FALSE)","v":{"$error":"#N/A"}},{"$f":"VLOOKUP(Table_Data_Table_13[[#This Row],[Item ID]],Analysis_Table,17,FALSE)","v":{"$error":"#N/A"}},{"$f":"VLOOKUP(Table_Data_Table_13[[#This Row],[Item ID]],Analysis_Table,18,FALSE)","v":{"$error":"#N/A"}},{"$f":"VLOOKUP(Table_Data_Table_13[[#This Row],[Item ID]],Analysis_Table,19,FALSE)","v":{"$error":"#N/A"}},null,null,1]
["",null,null,null,null,null,null,null,null,0,null,null,null,{"$f":"VLOOKUP(Table_Data_Table_13[[#This Row],[Item ID]],Analysis_Table,8,FALSE)","v":{"$error":"#N/A"}},{"$f":"VLOOKUP(Table_Data_Table_13[[#This Row],[Item ID]],Analysis_Table,9,FALSE)","v":{"$error":"#N/A"}},{"$f":"VLOOKUP(Table_Data_Table_13[[#This Row],[Item ID]],Analysis_Table,10,FALSE)","v":{"$error":"#N/A"}},{"$f":"VLOOKUP(Table_Data_Table_13[[#This Row],[Item ID]],Analysis_Table,11,FALSE)","v":{"$error":"#N/A"}},{"$f":"VLOOKUP(Table_Data_Table_13[[#This Row],[Item ID]],Analysis_Table,12,FALSE)","v":{"$error":"#N/A"}},{"$f":"VLOOKUP(Table_Data_Table_13[[#This Row],[Item ID]],Analysis_Table,13,FALSE)","v":{"$error":"#N/A"}},{"$f":"VLOOKUP(Table_Data_Table_13[[#This Row],[Item ID]],Analysis_Table,14,FALSE)","v":{"$error":"#N/A"}},{"$f":"VLOOKUP(Table_Data_Table_13[[#This Row],[Item ID]],Analysis_Table,15,FALSE)","v":{"$error":"#N/A"}},{"$f":"VLOOKUP(Table_Data_Table_13[[#This Row],[Item ID]],Analysis_Table,16,FALSE)","v":{"$error":"#N/A"}},{"$f":"VLOOKUP(Table_Data_Table_13[[#This Row],[Item ID]],Analysis_Table,17,FALSE)","v":{"$error":"#N/A"}},{"$f":"VLOOKUP(Table_Data_Table_13[[#This Row],[Item ID]],Analysis_Table,18,FALSE)","v":{"$error":"#N/A"}},{"$f":"VLOOKUP(Table_Data_Table_13[[#This Row],[Item ID]],Analysis_Table,19,FALSE)","v":{"$error":"#N/A"}},null,null,1]
["",null,null,null,null,null,null,null,null,0,null,null,null,{"$f":"VLOOKUP(Table_Data_Table_13[[#This Row],[Item ID]],Analysis_Table,8,FALSE)","v":{"$error":"#N/A"}},{"$f":"VLOOKUP(Table_Data_Table_13[[#This Row],[Item ID]],Analysis_Table,9,FALSE)","v":{"$error":"#N/A"}},{"$f":"VLOOKUP(Table_Data_Table_13[[#This Row],[Item ID]],Analysis_Table,10,FALSE)","v":{"$error":"#N/A"}},{"$f":"VLOOKUP(Table_Data_Table_13[[#This Row],[Item ID]],Analysis_Table,11,FALSE)","v":{"$error":"#N/A"}},{"$f":"VLOOKUP(Table_Data_Table_13[[#This Row],[Item ID]],Analysis_Table,12,FALSE)","v":{"$error":"#N/A"}},{"$f":"VLOOKUP(Table_Data_Table_13[[#This Row],[Item ID]],Analysis_Table,13,FALSE)","v":{"$error":"#N/A"}},{"$f":"VLOOKUP(Table_Data_Table_13[[#This Row],[Item ID]],Analysis_Table,14,FALSE)","v":{"$error":"#N/A"}},{"$f":"VLOOKUP(Table_Data_Table_13[[#This Row],[Item ID]],Analysis_Table,15,FALSE)","v":{"$error":"#N/A"}},{"$f":"VLOOKUP(Table_Data_Table_13[[#This Row],[Item ID]],Analysis_Table,16,FALSE)","v":{"$error":"#N/A"}},{"$f":"VLOOKUP(Table_Data_Table_13[[#This Row],[Item ID]],Analysis_Table,17,FALSE)","v":{"$error":"#N/A"}},{"$f":"VLOOKUP(Table_Data_Table_13[[#This Row],[Item ID]],Analysis_Table,18,FALSE)","v":{"$error":"#N/A"}},{"$f":"VLOOKUP(Table_Data_Table_13[[#This Row],[Item ID]],Analysis_Table,19,FALSE)","v":{"$error":"#N/A"}},null,null,1]
["",null,null,null,null,null,null,null,null,0,null,null,null,{"$f":"VLOOKUP(Table_Data_Table_13[[#This Row],[Item ID]],Analysis_Table,8,FALSE)","v":{"$error":"#N/A"}},{"$f":"VLOOKUP(Table_Data_Table_13[[#This Row],[Item ID]],Analysis_Table,9,FALSE)","v":{"$error":"#N/A"}},{"$f":"VLOOKUP(Table_Data_Table_13[[#This Row],[Item ID]],Analysis_Table,10,FALSE)","v":{"$error":"#N/A"}},{"$f":"VLOOKUP(Table_Data_Table_13[[#This Row],[Item ID]],Analysis_Table,11,FALSE)","v":{"$error":"#N/A"}},{"$f":"VLOOKUP(Table_Data_Table_13[[#This Row],[Item ID]],Analysis_Table,12,FALSE)","v":{"$error":"#N/A"}},{"$f":"VLOOKUP(Table_Data_Table_13[[#This Row],[Item ID]],Analysis_Table,13,FALSE)","v":{"$error":"#N/A"}},{"$f":"VLOOKUP(Table_Data_Table_13[[#This Row],[Item ID]],Analysis_Table,14,FALSE)","v":{"$error":"#N/A"}},{"$f":"VLOOKUP(Table_Data_Table_13[[#This Row],[Item ID]],Analysis_Table,15,FALSE)","v":{"$error":"#N/A"}},{"$f":"VLOOKUP(Table_Data_Table_13[[#This Row],[Item ID]],Analysis_Table,16,FALSE)","v":{"$error":"#N/A"}},{"$f":"VLOOKUP(Table_Data_Table_13[[#This Row],[Item ID]],Analysis_Table,17,FALSE)","v":{"$error":"#N/A"}},{"$f":"VLOOKUP(Table_Data_Table_13[[#This Row],[Item ID]],Analysis_Table,18,FALSE)","v":{"$error":"#N/A"}},{"$f":"VLOOKUP(Table_Data_Table_13[[#This Row],[Item ID]],Analysis_Table,19,FALSE)","v":{"$error":"#N/A"}},null,null,1]
["",null,null,null,null,null,null,null,null,0,null,null,null,{"$f":"VLOOKUP(Table_Data_Table_13[[#This Row],[Item ID]],Analysis_Table,8,FALSE)","v":{"$error":"#N/A"}},{"$f":"VLOOKUP(Table_Data_Table_13[[#This Row],[Item ID]],Analysis_Table,9,FALSE)","v":{"$error":"#N/A"}},{"$f":"VLOOKUP(Table_Data_Table_13[[#This Row],[Item ID]],Analysis_Table,10,FALSE)","v":{"$error":"#N/A"}},{"$f":"VLOOKUP(Table_Data_Table_13[[#This Row],[Item ID]],Analysis_Table,11,FALSE)","v":{"$error":"#N/A"}},{"$f":"VLOOKUP(Table_Data_Table_13[[#This Row],[Item ID]],Analysis_Table,12,FALSE)","v":{"$error":"#N/A"}},{"$f":"VLOOKUP(Table_Data_Table_13[[#This Row],[Item ID]],Analysis_Table,13,FALSE)","v":{"$error":"#N/A"}},{"$f":"VLOOKUP(Table_Data_Table_13[[#This Row],[Item ID]],Analysis_Table,14,FALSE)","v":{"$error":"#N/A"}},{"$f":"VLOOKUP(Table_Data_Table_13[[#This Row],[Item ID]],Analysis_Table,15,FALSE)","v":{"$error":"#N/A"}},{"$f":"VLOOKUP(Table_Data_Table_13[[#This Row],[Item ID]],Analysis_Table,16,FALSE)","v":{"$error":"#N/A"}},{"$f":"VLOOKUP(Table_Data_Table_13[[#This Row],[Item ID]],Analysis_Table,17,FALSE)","v":{"$error":"#N/A"}},{"$f":"VLOOKUP(Table_Data_Table_13[[#This Row],[Item ID]],Analysis_Table,18,FALSE)","v":{"$error":"#N/A"}},{"$f":"VLOOKUP(Table_Data_Table_13[[#This Row],[Item ID]],Analysis_Table,19,FALSE)","v":{"$error":"#N/A"}},null,null,1]
["",null,null,null,null,null,null,null,null,0,null,null,null,{"$f":"VLOOKUP(Table_Data_Table_13[[#This Row],[Item ID]],Analysis_Table,8,FALSE)","v":{"$error":"#N/A"}},{"$f":"VLOOKUP(Table_Data_Table_13[[#This Row],[Item ID]],Analysis_Table,9,FALSE)","v":{"$error":"#N/A"}},{"$f":"VLOOKUP(Table_Data_Table_13[[#This Row],[Item ID]],Analysis_Table,10,FALSE)","v":{"$error":"#N/A"}},{"$f":"VLOOKUP(Table_Data_Table_13[[#This Row],[Item ID]],Analysis_Table,11,FALSE)","v":{"$error":"#N/A"}},{"$f":"VLOOKUP(Table_Data_Table_13[[#This Row],[Item ID]],Analysis_Table,12,FALSE)","v":{"$error":"#N/A"}},{"$f":"VLOOKUP(Table_Data_Table_13[[#This Row],[Item ID]],Analysis_Table,13,FALSE)","v":{"$error":"#N/A"}},{"$f":"VLOOKUP(Table_Data_Table_13[[#This Row],[Item ID]],Analysis_Table,14,FALSE)","v":{"$error":"#N/A"}},{"$f":"VLOOKUP(Table_Data_Table_13[[#This Row],[Item ID]],Analysis_Table,15,FALSE)","v":{"$error":"#N/A"}},{"$f":"VLOOKUP(Table_Data_Table_13[[#This Row],[Item ID]],Analysis_Table,16,FALSE)","v":{"$error":"#N/A"}},{"$f":"VLOOKUP(Table_Data_Table_13[[#This Row],[Item ID]],Analysis_Table,17,FALSE)","v":{"$error":"#N/A"}},{"$f":"VLOOKUP(Table_Data_Table_13[[#This Row],[Item ID]],Analysis_Table,18,FALSE)","v":{"$error":"#N/A"}},{"$f":"VLOOKUP(Table_Data_Table_13[[#This Row],[Item ID]],Analysis_Table,19,FALSE)","v":{"$error":"#N/A"}},null,null,1]
["",null,null,null,null,null,null,null,null,0,null,null,null,{"$f":"VLOOKUP(Table_Data_Table_13[[#This Row],[Item ID]],Analysis_Table,8,FALSE)","v":{"$error":"#N/A"}},{"$f":"VLOOKUP(Table_Data_Table_13[[#This Row],[Item ID]],Analysis_Table,9,FALSE)","v":{"$error":"#N/A"}},{"$f":"VLOOKUP(Table_Data_Table_13[[#This Row],[Item ID]],Analysis_Table,10,FALSE)","v":{"$error":"#N/A"}},{"$f":"VLOOKUP(Table_Data_Table_13[[#This Row],[Item ID]],Analysis_Table,11,FALSE)","v":{"$error":"#N/A"}},{"$f":"VLOOKUP(Table_Data_Table_13[[#This Row],[Item ID]],Analysis_Table,12,FALSE)","v":{"$error":"#N/A"}},{"$f":"VLOOKUP(Table_Data_Table_13[[#This Row],[Item ID]],Analysis_Table,13,FALSE)","v":{"$error":"#N/A"}},{"$f":"VLOOKUP(Table_Data_Table_13[[#This Row],[Item ID]],Analysis_Table,14,FALSE)","v":{"$error":"#N/A"}},{"$f":"VLOOKUP(Table_Data_Table_13[[#This Row],[Item ID]],Analysis_Table,15,FALSE)","v":{"$error":"#N/A"}},{"$f":"VLOOKUP(Table_Data_Table_13[[#This Row],[Item ID]],Analysis_Table,16,FALSE)","v":{"$error":"#N/A"}},{"$f":"VLOOKUP(Table_Data_Table_13[[#This Row],[Item ID]],Analysis_Table,17,FALSE)","v":{"$error":"#N/A"}},{"$f":"VLOOKUP(Table_Data_Table_13[[#This Row],[Item ID]],Analysis_Table,18,FALSE)","v":{"$error":"#N/A"}},{"$f":"VLOOKUP(Table_Data_Table_13[[#This Row],[Item ID]],Analysis_Table,19,FALSE)","v":{"$error":"#N/A"}},null,null,1]
["",null,null,null,null,null,null,null,null,0,null,null,null,{"$f":"VLOOKUP(Table_Data_Table_13[[#This Row],[Item ID]],Analysis_Table,8,FALSE)","v":{"$error":"#N/A"}},{"$f":"VLOOKUP(Table_Data_Table_13[[#This Row],[Item ID]],Analysis_Table,9,FALSE)","v":{"$error":"#N/A"}},{"$f":"VLOOKUP(Table_Data_Table_13[[#This Row],[Item ID]],Analysis_Table,10,FALSE)","v":{"$error":"#N/A"}},{"$f":"VLOOKUP(Table_Data_Table_13[[#This Row],[Item ID]],Analysis_Table,11,FALSE)","v":{"$error":"#N/A"}},{"$f":"VLOOKUP(Table_Data_Table_13[[#This Row],[Item ID]],Analysis_Table,12,FALSE)","v":{"$error":"#N/A"}},{"$f":"VLOOKUP(Table_Data_Table_13[[#This Row],[Item ID]],Analysis_Table,13,FALSE)","v":{"$error":"#N/A"}},{"$f":"VLOOKUP(Table_Data_Table_13[[#This Row],[Item ID]],Analysis_Table,14,FALSE)","v":{"$error":"#N/A"}},{"$f":"VLOOKUP(Table_Data_Table_13[[#This Row],[Item ID]],Analysis_Table,15,FALSE)","v":{"$error":"#N/A"}},{"$f":"VLOOKUP(Table_Data_Table_13[[#This Row],[Item ID]],Analysis_Table,16,FALSE)","v":{"$error":"#N/A"}},{"$f":"VLOOKUP(Table_Data_Table_13[[#This Row],[Item ID]],Analysis_Table,17,FALSE)","v":{"$error":"#N/A"}},{"$f":"VLOOKUP(Table_Data_Table_13[[#This Row],[Item ID]],Analysis_Table,18,FALSE)","v":{"$error":"#N/A"}},{"$f":"VLOOKUP(Table_Data_Table_13[[#This Row],[Item ID]],Analysis_Table,19,FALSE)","v":{"$error":"#N/A"}},null,null,1]
["",null,null,null,null,null,null,null,null,0,null,null,null,{"$f":"VLOOKUP(Table_Data_Table_13[[#This Row],[Item ID]],Analysis_Table,8,FALSE)","v":{"$error":"#N/A"}},{"$f":"VLOOKUP(Table_Data_Table_13[[#This Row],[Item ID]],Analysis_Table,9,FALSE)","v":{"$error":"#N/A"}},{"$f":"VLOOKUP(Table_Data_Table_13[[#This Row],[Item ID]],Analysis_Table,10,FALSE)","v":{"$error":"#N/A"}},{"$f":"VLOOKUP(Table_Data_Table_13[[#This Row],[Item ID]],Analysis_Table,11,FALSE)","v":{"$error":"#N/A"}},{"$f":"VLOOKUP(Table_Data_Table_13[[#This Row],[Item ID]],Analysis_Table,12,FALSE)","v":{"$error":"#N/A"}},{"$f":"VLOOKUP(Table_Data_Table_13[[#This Row],[Item ID]],Analysis_Table,13,FALSE)","v":{"$error":"#N/A"}},{"$f":"VLOOKUP(Table_Data_Table_13[[#This Row],[Item ID]],Analysis_Table,14,FALSE)","v":{"$error":"#N/A"}},{"$f":"VLOOKUP(Table_Data_Table_13[[#This Row],[Item ID]],Analysis_Table,15,FALSE)","v":{"$error":"#N/A"}},{"$f":"VLOOKUP(Table_Data_Table_13[[#This Row],[Item ID]],Analysis_Table,16,FALSE)","v":{"$error":"#N/A"}},{"$f":"VLOOKUP(Table_Data_Table_13[[#This Row],[Item ID]],Analysis_Table,17,FALSE)","v":{"$error":"#N/A"}},{"$f":"VLOOKUP(Table_Data_Table_13[[#This Row],[Item ID]],Analysis_Table,18,FALSE)","v":{"$error":"#N/A"}},{"$f":"VLOOKUP(Table_Data_Table_13[[#This Row],[Item ID]],Analysis_Table,19,FALSE)","v":{"$error":"#N/A"}},null,null,1]
["",null,null,null,null,null,null,null,null,0,null,null,null,{"$f":"VLOOKUP(Table_Data_Table_13[[#This Row],[Item ID]],Analysis_Table,8,FALSE)","v":{"$error":"#N/A"}},{"$f":"VLOOKUP(Table_Data_Table_13[[#This Row],[Item ID]],Analysis_Table,9,FALSE)","v":{"$error":"#N/A"}},{"$f":"VLOOKUP(Table_Data_Table_13[[#This Row],[Item ID]],Analysis_Table,10,FALSE)","v":{"$error":"#N/A"}},{"$f":"VLOOKUP(Table_Data_Table_13[[#This Row],[Item ID]],Analysis_Table,11,FALSE)","v":{"$error":"#N/A"}},{"$f":"VLOOKUP(Table_Data_Table_13[[#This Row],[Item ID]],Analysis_Table,12,FALSE)","v":{"$error":"#N/A"}},{"$f":"VLOOKUP(Table_Data_Table_13[[#This Row],[Item ID]],Analysis_Table,13,FALSE)","v":{"$error":"#N/A"}},{"$f":"VLOOKUP(Table_Data_Table_13[[#This Row],[Item ID]],Analysis_Table,14,FALSE)","v":{"$error":"#N/A"}},{"$f":"VLOOKUP(Table_Data_Table_13[[#This Row],[Item ID]],Analysis_Table,15,FALSE)","v":{"$error":"#N/A"}},{"$f":"VLOOKUP(Table_Data_Table_13[[#This Row],[Item ID]],Analysis_Table,16,FALSE)","v":{"$error":"#N/A"}},{"$f":"VLOOKUP(Table_Data_Table_13[[#This Row],[Item ID]],Analysis_Table,17,FALSE)","v":{"$error":"#N/A"}},{"$f":"VLOOKUP(Table_Data_Table_13[[#This Row],[Item ID]],Analysis_Table,18,FALSE)","v":{"$error":"#N/A"}},{"$f":"VLOOKUP(Table_Data_Table_13[[#This Row],[Item ID]],Analysis_Table,19,FALSE)","v":{"$error":"#N/A"}},null,null,1]
["",null,null,null,null,null,null,null,null,0,null,null,null,{"$f":"VLOOKUP(Table_Data_Table_13[[#This Row],[Item ID]],Analysis_Table,8,FALSE)","v":{"$error":"#N/A"}},{"$f":"VLOOKUP(Table_Data_Table_13[[#This Row],[Item ID]],Analysis_Table,9,FALSE)","v":{"$error":"#N/A"}},{"$f":"VLOOKUP(Table_Data_Table_13[[#This Row],[Item ID]],Analysis_Table,10,FALSE)","v":{"$error":"#N/A"}},{"$f":"VLOOKUP(Table_Data_Table_13[[#This Row],[Item ID]],Analysis_Table,11,FALSE)","v":{"$error":"#N/A"}},{"$f":"VLOOKUP(Table_Data_Table_13[[#This Row],[Item ID]],Analysis_Table,12,FALSE)","v":{"$error":"#N/A"}},{"$f":"VLOOKUP(Table_Data_Table_13[[#This Row],[Item ID]],Analysis_Table,13,FALSE)","v":{"$error":"#N/A"}},{"$f":"VLOOKUP(Table_Data_Table_13[[#This Row],[Item ID]],Analysis_Table,14,FALSE)","v":{"$error":"#N/A"}},{"$f":"VLOOKUP(Table_Data_Table_13[[#This Row],[Item ID]],Analysis_Table,15,FALSE)","v":{"$error":"#N/A"}},{"$f":"VLOOKUP(Table_Data_Table_13[[#This Row],[Item ID]],Analysis_Table,16,FALSE)","v":{"$error":"#N/A"}},{"$f":"VLOOKUP(Table_Data_Table_13[[#This Row],[Item ID]],Analysis_Table,17,FALSE)","v":{"$error":"#N/A"}},{"$f":"VLOOKUP(Table_Data_Table_13[[#This Row],[Item ID]],Analysis_Table,18,FALSE)","v":{"$error":"#N/A"}},{"$f":"VLOOKUP(Table_Data_Table_13[[#This Row],[Item ID]],Analysis_Table,19,FALSE)","v":{"$error":"#N/A"}},null,null,1]
["",null,null,null,null,null,null,null,null,0,null,null,null,{"$f":"VLOOKUP(Table_Data_Table_13[[#This Row],[Item ID]],Analysis_Table,8,FALSE)","v":{"$error":"#N/A"}},{"$f":"VLOOKUP(Table_Data_Table_13[[#This Row],[Item ID]],Analysis_Table,9,FALSE)","v":{"$error":"#N/A"}},{"$f":"VLOOKUP(Table_Data_Table_13[[#This Row],[Item ID]],Analysis_Table,10,FALSE)","v":{"$error":"#N/A"}},{"$f":"VLOOKUP(Table_Data_Table_13[[#This Row],[Item ID]],Analysis_Table,11,FALSE)","v":{"$error":"#N/A"}},{"$f":"VLOOKUP(Table_Data_Table_13[[#This Row],[Item ID]],Analysis_Table,12,FALSE)","v":{"$error":"#N/A"}},{"$f":"VLOOKUP(Table_Data_Table_13[[#This Row],[Item ID]],Analysis_Table,13,FALSE)","v":{"$error":"#N/A"}},{"$f":"VLOOKUP(Table_Data_Table_13[[#This Row],[Item ID]],Analysis_Table,14,FALSE)","v":{"$error":"#N/A"}},{"$f":"VLOOKUP(Table_Data_Table_13[[#This Row],[Item ID]],Analysis_Table,15,FALSE)","v":{"$error":"#N/A"}},{"$f":"VLOOKUP(Table_Data_Table_13[[#This Row],[Item ID]],Analysis_Table,16,FALSE)","v":{"$error":"#N/A"}},{"$f":"VLOOKUP(Table_Data_Table_13[[#This Row],[Item ID]],Analysis_Table,17,FALSE)","v":{"$error":"#N/A"}},{"$f":"VLOOKUP(Table_Data_Table_13[[#This Row],[Item ID]],Analysis_Table,18,FALSE)","v":{"$error":"#N/A"}},{"$f":"VLOOKUP(Table_Data_Table_13[[#This Row],[Item ID]],Analysis_Table,19,FALSE)","v":{"$error":"#N/A"}},null,null,1]
["",null,null,null,null,null,null,null,null,0,null,null,null,{"$f":"VLOOKUP(Table_Data_Table_13[[#This Row],[Item ID]],Analysis_Table,8,FALSE)","v":{"$error":"#N/A"}},{"$f":"VLOOKUP(Table_Data_Table_13[[#This Row],[Item ID]],Analysis_Table,9,FALSE)","v":{"$error":"#N/A"}},{"$f":"VLOOKUP(Table_Data_Table_13[[#This Row],[Item ID]],Analysis_Table,10,FALSE)","v":{"$error":"#N/A"}},{"$f":"VLOOKUP(Table_Data_Table_13[[#This Row],[Item ID]],Analysis_Table,11,FALSE)","v":{"$error":"#N/A"}},{"$f":"VLOOKUP(Table_Data_Table_13[[#This Row],[Item ID]],Analysis_Table,12,FALSE)","v":{"$error":"#N/A"}},{"$f":"VLOOKUP(Table_Data_Table_13[[#This Row],[Item ID]],Analysis_Table,13,FALSE)","v":{"$error":"#N/A"}},{"$f":"VLOOKUP(Table_Data_Table_13[[#This Row],[Item ID]],Analysis_Table,14,FALSE)","v":{"$error":"#N/A"}},{"$f":"VLOOKUP(Table_Data_Table_13[[#This Row],[Item ID]],Analysis_Table,15,FALSE)","v":{"$error":"#N/A"}},{"$f":"VLOOKUP(Table_Data_Table_13[[#This Row],[Item ID]],Analysis_Table,16,FALSE)","v":{"$error":"#N/A"}},{"$f":"VLOOKUP(Table_Data_Table_13[[#This Row],[Item ID]],Analysis_Table,17,FALSE)","v":{"$error":"#N/A"}},{"$f":"VLOOKUP(Table_Data_Table_13[[#This Row],[Item ID]],Analysis_Table,18,FALSE)","v":{"$error":"#N/A"}},{"$f":"VLOOKUP(Table_Data_Table_13[[#This Row],[Item ID]],Analysis_Table,19,FALSE)","v":{"$error":"#N/A"}},null,null,1]
["",null,null,null,null,null,null,null,null,0,null,null,null,{"$f":"VLOOKUP(Table_Data_Table_13[[#This Row],[Item ID]],Analysis_Table,8,FALSE)","v":{"$error":"#N/A"}},{"$f":"VLOOKUP(Table_Data_Table_13[[#This Row],[Item ID]],Analysis_Table,9,FALSE)","v":{"$error":"#N/A"}},{"$f":"VLOOKUP(Table_Data_Table_13[[#This Row],[Item ID]],Analysis_Table,10,FALSE)","v":{"$error":"#N/A"}},{"$f":"VLOOKUP(Table_Data_Table_13[[#This Row],[Item ID]],Analysis_Table,11,FALSE)","v":{"$error":"#N/A"}},{"$f":"VLOOKUP(Table_Data_Table_13[[#This Row],[Item ID]],Analysis_Table,12,FALSE)","v":{"$error":"#N/A"}},{"$f":"VLOOKUP(Table_Data_Table_13[[#This Row],[Item ID]],Analysis_Table,13,FALSE)","v":{"$error":"#N/A"}},{"$f":"VLOOKUP(Table_Data_Table_13[[#This Row],[Item ID]],Analysis_Table,14,FALSE)","v":{"$error":"#N/A"}},{"$f":"VLOOKUP(Table_Data_Table_13[[#This Row],[Item ID]],Analysis_Table,15,FALSE)","v":{"$error":"#N/A"}},{"$f":"VLOOKUP(Table_Data_Table_13[[#This Row],[Item ID]],Analysis_Table,16,FALSE)","v":{"$error":"#N/A"}},{"$f":"VLOOKUP(Table_Data_Table_13[[#This Row],[Item ID]],Analysis_Table,17,FALSE)","v":{"$error":"#N/A"}},{"$f":"VLOOKUP(Table_Data_Table_13[[#This Row],[Item ID]],Analysis_Table,18,FALSE)","v":{"$error":"#N/A"}},{"$f":"VLOOKUP(Table_Data_Table_13[[#This Row],[Item ID]],Analysis_Table,19,FALSE)","v":{"$error":"#N/A"}},null,null,1]
["",null,null,null,null,null,null,null,null,0,null,null,null,{"$f":"VLOOKUP(Table_Data_Table_13[[#This Row],[Item ID]],Analysis_Table,8,FALSE)","v":{"$error":"#N/A"}},{"$f":"VLOOKUP(Table_Data_Table_13[[#This Row],[Item ID]],Analysis_Table,9,FALSE)","v":{"$error":"#N/A"}},{"$f":"VLOOKUP(Table_Data_Table_13[[#This Row],[Item ID]],Analysis_Table,10,FALSE)","v":{"$error":"#N/A"}},{"$f":"VLOOKUP(Table_Data_Table_13[[#This Row],[Item ID]],Analysis_Table,11,FALSE)","v":{"$error":"#N/A"}},{"$f":"VLOOKUP(Table_Data_Table_13[[#This Row],[Item ID]],Analysis_Table,12,FALSE)","v":{"$error":"#N/A"}},{"$f":"VLOOKUP(Table_Data_Table_13[[#This Row],[Item ID]],Analysis_Table,13,FALSE)","v":{"$error":"#N/A"}},{"$f":"VLOOKUP(Table_Data_Table_13[[#This Row],[Item ID]],Analysis_Table,14,FALSE)","v":{"$error":"#N/A"}},{"$f":"VLOOKUP(Table_Data_Table_13[[#This Row],[Item ID]],Analysis_Table,15,FALSE)","v":{"$error":"#N/A"}},{"$f":"VLOOKUP(Table_Data_Table_13[[#This Row],[Item ID]],Analysis_Table,16,FALSE)","v":{"$error":"#N/A"}},{"$f":"VLOOKUP(Table_Data_Table_13[[#This Row],[Item ID]],Analysis_Table,17,FALSE)","v":{"$error":"#N/A"}},{"$f":"VLOOKUP(Table_Data_Table_13[[#This Row],[Item ID]],Analysis_Table,18,FALSE)","v":{"$error":"#N/A"}},{"$f":"VLOOKUP(Table_Data_Table_13[[#This Row],[Item ID]],Analysis_Table,19,FALSE)","v":{"$error":"#N/A"}},null,null,1]
["",null,null,null,null,null,null,null,null,0,null,null,null,{"$f":"VLOOKUP(Table_Data_Table_13[[#This Row],[Item ID]],Analysis_Table,8,FALSE)","v":{"$error":"#N/A"}},{"$f":"VLOOKUP(Table_Data_Table_13[[#This Row],[Item ID]],Analysis_Table,9,FALSE)","v":{"$error":"#N/A"}},{"$f":"VLOOKUP(Table_Data_Table_13[[#This Row],[Item ID]],Analysis_Table,10,FALSE)","v":{"$error":"#N/A"}},{"$f":"VLOOKUP(Table_Data_Table_13[[#This Row],[Item ID]],Analysis_Table,11,FALSE)","v":{"$error":"#N/A"}},{"$f":"VLOOKUP(Table_Data_Table_13[[#This Row],[Item ID]],Analysis_Table,12,FALSE)","v":{"$error":"#N/A"}},{"$f":"VLOOKUP(Table_Data_Table_13[[#This Row],[Item ID]],Analysis_Table,13,FALSE)","v":{"$error":"#N/A"}},{"$f":"VLOOKUP(Table_Data_Table_13[[#This Row],[Item ID]],Analysis_Table,14,FALSE)","v":{"$error":"#N/A"}},{"$f":"VLOOKUP(Table_Data_Table_13[[#This Row],[Item ID]],Analysis_Table,15,FALSE)","v":{"$error":"#N/A"}},{"$f":"VLOOKUP(Table_Data_Table_13[[#This Row],[Item ID]],Analysis_Table,16,FALSE)","v":{"$error":"#N/A"}},{"$f":"VLOOKUP(Table_Data_Table_13[[#This Row],[Item ID]],Analysis_Table,17,FALSE)","v":{"$error":"#N/A"}},{"$f":"VLOOKUP(Table_Data_Table_13[[#This Row],[Item ID]],Analysis_Table,18,FALSE)","v":{"$error":"#N/A"}},{"$f":"VLOOKUP(Table_Data_Table_13[[#This Row],[Item ID]],Analysis_Table,19,FALSE)","v":{"$error":"#N/A"}},null,null,1]
["",null,null,null,null,null,null,null,null,0,null,null,null,{"$f":"VLOOKUP(Table_Data_Table_13[[#This Row],[Item ID]],Analysis_Table,8,FALSE)","v":{"$error":"#N/A"}},{"$f":"VLOOKUP(Table_Data_Table_13[[#This Row],[Item ID]],Analysis_Table,9,FALSE)","v":{"$error":"#N/A"}},{"$f":"VLOOKUP(Table_Data_Table_13[[#This Row],[Item ID]],Analysis_Table,10,FALSE)","v":{"$error":"#N/A"}},{"$f":"VLOOKUP(Table_Data_Table_13[[#This Row],[Item ID]],Analysis_Table,11,FALSE)","v":{"$error":"#N/A"}},{"$f":"VLOOKUP(Table_Data_Table_13[[#This Row],[Item ID]],Analysis_Table,12,FALSE)","v":{"$error":"#N/A"}},{"$f":"VLOOKUP(Table_Data_Table_13[[#This Row],[Item ID]],Analysis_Table,13,FALSE)","v":{"$error":"#N/A"}},{"$f":"VLOOKUP(Table_Data_Table_13[[#This Row],[Item ID]],Analysis_Table,14,FALSE)","v":{"$error":"#N/A"}},{"$f":"VLOOKUP(Table_Data_Table_13[[#This Row],[Item ID]],Analysis_Table,15,FALSE)","v":{"$error":"#N/A"}},{"$f":"VLOOKUP(Table_Data_Table_13[[#This Row],[Item ID]],Analysis_Table,16,FALSE)","v":{"$error":"#N/A"}},{"$f":"VLOOKUP(Table_Data_Table_13[[#This Row],[Item ID]],Analysis_Table,17,FALSE)","v":{"$error":"#N/A"}},{"$f":"VLOOKUP(Table_Data_Table_13[[#This Row],[Item ID]],Analysis_Table,18,FALSE)","v":{"$error":"#N/A"}},{"$f":"VLOOKUP(Table_Data_Table_13[[#This Row],[Item ID]],Analysis_Table,19,FALSE)","v":{"$error":"#N/A"}},null,null,1]
["",null,null,null,null,null,null,null,null,0,null,null,null,{"$f":"VLOOKUP(Table_Data_Table_13[[#This Row],[Item ID]],Analysis_Table,8,FALSE)","v":{"$error":"#N/A"}},{"$f":"VLOOKUP(Table_Data_Table_13[[#This Row],[Item ID]],Analysis_Table,9,FALSE)","v":{"$error":"#N/A"}},{"$f":"VLOOKUP(Table_Data_Table_13[[#This Row],[Item ID]],Analysis_Table,10,FALSE)","v":{"$error":"#N/A"}},{"$f":"VLOOKUP(Table_Data_Table_13[[#This Row],[Item ID]],Analysis_Table,11,FALSE)","v":{"$error":"#N/A"}},{"$f":"VLOOKUP(Table_Data_Table_13[[#This Row],[Item ID]],Analysis_Table,12,FALSE)","v":{"$error":"#N/A"}},{"$f":"VLOOKUP(Table_Data_Table_13[[#This Row],[Item ID]],Analysis_Table,13,FALSE)","v":{"$error":"#N/A"}},{"$f":"VLOOKUP(Table_Data_Table_13[[#This Row],[Item ID]],Analysis_Table,14,FALSE)","v":{"$error":"#N/A"}},{"$f":"VLOOKUP(Table_Data_Table_13[[#This Row],[Item ID]],Analysis_Table,15,FALSE)","v":{"$error":"#N/A"}},{"$f":"VLOOKUP(Table_Data_Table_13[[#This Row],[Item ID]],Analysis_Table,16,FALSE)","v":{"$error":"#N/A"}},{"$f":"VLOOKUP(Table_Data_Table_13[[#This Row],[Item ID]],Analysis_Table,17,FALSE)","v":{"$error":"#N/A"}},{"$f":"VLOOKUP(Table_Data_Table_13[[#This Row],[Item ID]],Analysis_Table,18,FALSE)","v":{"$error":"#N/A"}},{"$f":"VLOOKUP(Table_Data_Table_13[[#This Row],[Item ID]],Analysis_Table,19,FALSE)","v":{"$error":"#N/A"}},null,null,1]
["",null,null,null,null,null,null,null,null,0,null,null,null,{"$f":"VLOOKUP(Table_Data_Table_13[[#This Row],[Item ID]],Analysis_Table,8,FALSE)","v":{"$error":"#N/A"}},{"$f":"VLOOKUP(Table_Data_Table_13[[#This Row],[Item ID]],Analysis_Table,9,FALSE)","v":{"$error":"#N/A"}},{"$f":"VLOOKUP(Table_Data_Table_13[[#This Row],[Item ID]],Analysis_Table,10,FALSE)","v":{"$error":"#N/A"}},{"$f":"VLOOKUP(Table_Data_Table_13[[#This Row],[Item ID]],Analysis_Table,11,FALSE)","v":{"$error":"#N/A"}},{"$f":"VLOOKUP(Table_Data_Table_13[[#This Row],[Item ID]],Analysis_Table,12,FALSE)","v":{"$error":"#N/A"}},{"$f":"VLOOKUP(Table_Data_Table_13[[#This Row],[Item ID]],Analysis_Table,13,FALSE)","v":{"$error":"#N/A"}},{"$f":"VLOOKUP(Table_Data_Table_13[[#This Row],[Item ID]],Analysis_Table,14,FALSE)","v":{"$error":"#N/A"}},{"$f":"VLOOKUP(Table_Data_Table_13[[#This Row],[Item ID]],Analysis_Table,15,FALSE)","v":{"$error":"#N/A"}},{"$f":"VLOOKUP(Table_Data_Table_13[[#This Row],[Item ID]],Analysis_Table,16,FALSE)","v":{"$error":"#N/A"}},{"$f":"VLOOKUP(Table_Data_Table_13[[#This Row],[Item ID]],Analysis_Table,17,FALSE)","v":{"$error":"#N/A"}},{"$f":"VLOOKUP(Table_Data_Table_13[[#This Row],[Item ID]],Analysis_Table,18,FALSE)","v":{"$error":"#N/A"}},{"$f":"VLOOKUP(Table_Data_Table_13[[#This Row],[Item ID]],Analysis_Table,19,FALSE)","v":{"$error":"#N/A"}},null,null,1]
["",null,null,null,null,null,null,null,null,0,null,null,null,{"$f":"VLOOKUP(Table_Data_Table_13[[#This Row],[Item ID]],Analysis_Table,8,FALSE)","v":{"$error":"#N/A"}},{"$f":"VLOOKUP(Table_Data_Table_13[[#This Row],[Item ID]],Analysis_Table,9,FALSE)","v":{"$error":"#N/A"}},{"$f":"VLOOKUP(Table_Data_Table_13[[#This Row],[Item ID]],Analysis_Table,10,FALSE)","v":{"$error":"#N/A"}},{"$f":"VLOOKUP(Table_Data_Table_13[[#This Row],[Item ID]],Analysis_Table,11,FALSE)","v":{"$error":"#N/A"}},{"$f":"VLOOKUP(Table_Data_Table_13[[#This Row],[Item ID]],Analysis_Table,12,FALSE)","v":{"$error":"#N/A"}},{"$f":"VLOOKUP(Table_Data_Table_13[[#This Row],[Item ID]],Analysis_Table,13,FALSE)","v":{"$error":"#N/A"}},{"$f":"VLOOKUP(Table_Data_Table_13[[#This Row],[Item ID]],Analysis_Table,14,FALSE)","v":{"$error":"#N/A"}},{"$f":"VLOOKUP(Table_Data_Table_13[[#This Row],[Item ID]],Analysis_Table,15,FALSE)","v":{"$error":"#N/A"}},{"$f":"VLOOKUP(Table_Data_Table_13[[#This Row],[Item ID]],Analysis_Table,16,FALSE)","v":{"$error":"#N/A"}},{"$f":"VLOOKUP(Table_Data_Table_13[[#This Row],[Item ID]],Analysis_Table,17,FALSE)","v":{"$error":"#N/A"}},{"$f":"VLOOKUP(Table_Data_Table_13[[#This Row],[Item ID]],Analysis_Table,18,FALSE)","v":{"$error":"#N/A"}},{"$f":"VLOOKUP(Table_Data_Table_13[[#This Row],[Item ID]],Analysis_Table,19,FALSE)","v":{"$error":"#N/A"}},null,null,1]
["",null,null,null,null,null,null,null,null,0,null,null,null,{"$f":"VLOOKUP(Table_Data_Table_13[[#This Row],[Item ID]],Analysis_Table,8,FALSE)","v":{"$error":"#N/A"}},{"$f":"VLOOKUP(Table_Data_Table_13[[#This Row],[Item ID]],Analysis_Table,9,FALSE)","v":{"$error":"#N/A"}},{"$f":"VLOOKUP(Table_Data_Table_13[[#This Row],[Item ID]],Analysis_Table,10,FALSE)","v":{"$error":"#N/A"}},{"$f":"VLOOKUP(Table_Data_Table_13[[#This Row],[Item ID]],Analysis_Table,11,FALSE)","v":{"$error":"#N/A"}},{"$f":"VLOOKUP(Table_Data_Table_13[[#This Row],[Item ID]],Analysis_Table,12,FALSE)","v":{"$error":"#N/A"}},{"$f":"VLOOKUP(Table_Data_Table_13[[#This Row],[Item ID]],Analysis_Table,13,FALSE)","v":{"$error":"#N/A"}},{"$f":"VLOOKUP(Table_Data_Table_13[[#This Row],[Item ID]],Analysis_Table,14,FALSE)","v":{"$error":"#N/A"}},{"$f":"VLOOKUP(Table_Data_Table_13[[#This Row],[Item ID]],Analysis_Table,15,FALSE)","v":{"$error":"#N/A"}},{"$f":"VLOOKUP(Table_Data_Table_13[[#This Row],[Item ID]],Analysis_Table,16,FALSE)","v":{"$error":"#N/A"}},{"$f":"VLOOKUP(Table_Data_Table_13[[#This Row],[Item ID]],Analysis_Table,17,FALSE)","v":{"$error":"#N/A"}},{"$f":"VLOOKUP(Table_Data_Table_13[[#This Row],[Item ID]],Analysis_Table,18,FALSE)","v":{"$error":"#N/A"}},{"$f":"VLOOKUP(Table_Data_Table_13[[#This Row],[Item ID]],Analysis_Table,19,FALSE)","v":{"$error":"#N/A"}},null,null,1]
["",null,null,null,null,null,null,null,null,0,null,null,null,{"$f":"VLOOKUP(Table_Data_Table_13[[#This Row],[Item ID]],Analysis_Table,8,FALSE)","v":{"$error":"#N/A"}},{"$f":"VLOOKUP(Table_Data_Table_13[[#This Row],[Item ID]],Analysis_Table,9,FALSE)","v":{"$error":"#N/A"}},{"$f":"VLOOKUP(Table_Data_Table_13[[#This Row],[Item ID]],Analysis_Table,10,FALSE)","v":{"$error":"#N/A"}},{"$f":"VLOOKUP(Table_Data_Table_13[[#This Row],[Item ID]],Analysis_Table,11,FALSE)","v":{"$error":"#N/A"}},{"$f":"VLOOKUP(Table_Data_Table_13[[#This Row],[Item ID]],Analysis_Table,12,FALSE)","v":{"$error":"#N/A"}},{"$f":"VLOOKUP(Table_Data_Table_13[[#This Row],[Item ID]],Analysis_Table,13,FALSE)","v":{"$error":"#N/A"}},{"$f":"VLOOKUP(Table_Data_Table_13[[#This Row],[Item ID]],Analysis_Table,14,FALSE)","v":{"$error":"#N/A"}},{"$f":"VLOOKUP(Table_Data_Table_13[[#This Row],[Item ID]],Analysis_Table,15,FALSE)","v":{"$error":"#N/A"}},{"$f":"VLOOKUP(Table_Data_Table_13[[#This Row],[Item ID]],Analysis_Table,16,FALSE)","v":{"$error":"#N/A"}},{"$f":"VLOOKUP(Table_Data_Table_13[[#This Row],[Item ID]],Analysis_Table,17,FALSE)","v":{"$error":"#N/A"}},{"$f":"VLOOKUP(Table_Data_Table_13[[#This Row],[Item ID]],Analysis_Table,18,FALSE)","v":{"$error":"#N/A"}},{"$f":"VLOOKUP(Table_Data_Table_13[[#This Row],[Item ID]],Analysis_Table,19,FALSE)","v":{"$error":"#N/A"}},null,null,1]
["",null,null,null,null,null,null,null,null,0,null,null,null,{"$f":"VLOOKUP(Table_Data_Table_13[[#This Row],[Item ID]],Analysis_Table,8,FALSE)","v":{"$error":"#N/A"}},{"$f":"VLOOKUP(Table_Data_Table_13[[#This Row],[Item ID]],Analysis_Table,9,FALSE)","v":{"$error":"#N/A"}},{"$f":"VLOOKUP(Table_Data_Table_13[[#This Row],[Item ID]],Analysis_Table,10,FALSE)","v":{"$error":"#N/A"}},{"$f":"VLOOKUP(Table_Data_Table_13[[#This Row],[Item ID]],Analysis_Table,11,FALSE)","v":{"$error":"#N/A"}},{"$f":"VLOOKUP(Table_Data_Table_13[[#This Row],[Item ID]],Analysis_Table,12,FALSE)","v":{"$error":"#N/A"}},{"$f":"VLOOKUP(Table_Data_Table_13[[#This Row],[Item ID]],Analysis_Table,13,FALSE)","v":{"$error":"#N/A"}},{"$f":"VLOOKUP(Table_Data_Table_13[[#This Row],[Item ID]],Analysis_Table,14,FALSE)","v":{"$error":"#N/A"}},{"$f":"VLOOKUP(Table_Data_Table_13[[#This Row],[Item ID]],Analysis_Table,15,FALSE)","v":{"$error":"#N/A"}},{"$f":"VLOOKUP(Table_Data_Table_13[[#This Row],[Item ID]],Analysis_Table,16,FALSE)","v":{"$error":"#N/A"}},{"$f":"VLOOKUP(Table_Data_Table_13[[#This Row],[Item ID]],Analysis_Table,17,FALSE)","v":{"$error":"#N/A"}},{"$f":"VLOOKUP(Table_Data_Table_13[[#This Row],[Item ID]],Analysis_Table,18,FALSE)","v":{"$error":"#N/A"}},{"$f":"VLOOKUP(Table_Data_Table_13[[#This Row],[Item ID]],Analysis_Table,19,FALSE)","v":{"$error":"#N/A"}},null,null,1]
["",null,null,null,null,null,null,null,null,0,null,null,null,{"$f":"VLOOKUP(Table_Data_Table_13[[#This Row],[Item ID]],Analysis_Table,8,FALSE)","v":{"$error":"#N/A"}},{"$f":"VLOOKUP(Table_Data_Table_13[[#This Row],[Item ID]],Analysis_Table,9,FALSE)","v":{"$error":"#N/A"}},{"$f":"VLOOKUP(Table_Data_Table_13[[#This Row],[Item ID]],Analysis_Table,10,FALSE)","v":{"$error":"#N/A"}},{"$f":"VLOOKUP(Table_Data_Table_13[[#This Row],[Item ID]],Analysis_Table,11,FALSE)","v":{"$error":"#N/A"}},{"$f":"VLOOKUP(Table_Data_Table_13[[#This Row],[Item ID]],Analysis_Table,12,FALSE)","v":{"$error":"#N/A"}},{"$f":"VLOOKUP(Table_Data_Table_13[[#This Row],[Item ID]],Analysis_Table,13,FALSE)","v":{"$error":"#N/A"}},{"$f":"VLOOKUP(Table_Data_Table_13[[#This Row],[Item ID]],Analysis_Table,14,FALSE)","v":{"$error":"#N/A"}},{"$f":"VLOOKUP(Table_Data_Table_13[[#This Row],[Item ID]],Analysis_Table,15,FALSE)","v":{"$error":"#N/A"}},{"$f":"VLOOKUP(Table_Data_Table_13[[#This Row],[Item ID]],Analysis_Table,16,FALSE)","v":{"$error":"#N/A"}},{"$f":"VLOOKUP(Table_Data_Table_13[[#This Row],[Item ID]],Analysis_Table,17,FALSE)","v":{"$error":"#N/A"}},{"$f":"VLOOKUP(Table_Data_Table_13[[#This Row],[Item ID]],Analysis_Table,18,FALSE)","v":{"$error":"#N/A"}},{"$f":"VLOOKUP(Table_Data_Table_13[[#This Row],[Item ID]],Analysis_Table,19,FALSE)","v":{"$error":"#N/A"}},null,null,1]
["",null,null,null,null,null,null,null,null,0,null,null,null,{"$f":"VLOOKUP(Table_Data_Table_13[[#This Row],[Item ID]],Analysis_Table,8,FALSE)","v":{"$error":"#N/A"}},{"$f":"VLOOKUP(Table_Data_Table_13[[#This Row],[Item ID]],Analysis_Table,9,FALSE)","v":{"$error":"#N/A"}},{"$f":"VLOOKUP(Table_Data_Table_13[[#This Row],[Item ID]],Analysis_Table,10,FALSE)","v":{"$error":"#N/A"}},{"$f":"VLOOKUP(Table_Data_Table_13[[#This Row],[Item ID]],Analysis_Table,11,FALSE)","v":{"$error":"#N/A"}},{"$f":"VLOOKUP(Table_Data_Table_13[[#This Row],[Item ID]],Analysis_Table,12,FALSE)","v":{"$error":"#N/A"}},{"$f":"VLOOKUP(Table_Data_Table_13[[#This Row],[Item ID]],Analysis_Table,13,FALSE)","v":{"$error":"#N/A"}},{"$f":"VLOOKUP(Table_Data_Table_13[[#This Row],[Item ID]],Analysis_Table,14,FALSE)","v":{"$error":"#N/A"}},{"$f":"VLOOKUP(Table_Data_Table_13[[#This Row],[Item ID]],Analysis_Table,15,FALSE)","v":{"$error":"#N/A"}},{"$f":"VLOOKUP(Table_Data_Table_13[[#This Row],[Item ID]],Analysis_Table,16,FALSE)","v":{"$error":"#N/A"}},{"$f":"VLOOKUP(Table_Data_Table_13[[#This Row],[Item ID]],Analysis_Table,17,FALSE)","v":{"$error":"#N/A"}},{"$f":"VLOOKUP(Table_Data_Table_13[[#This Row],[Item ID]],Analysis_Table,18,FALSE)","v":{"$error":"#N/A"}},{"$f":"VLOOKUP(Table_Data_Table_13[[#This Row],[Item ID]],Analysis_Table,19,FALSE)","v":{"$error":"#N/A"}},null,null,1]
["",null,null,null,null,null,null,null,null,0,null,null,null,{"$f":"VLOOKUP(Table_Data_Table_13[[#This Row],[Item ID]],Analysis_Table,8,FALSE)","v":{"$error":"#N/A"}},{"$f":"VLOOKUP(Table_Data_Table_13[[#This Row],[Item ID]],Analysis_Table,9,FALSE)","v":{"$error":"#N/A"}},{"$f":"VLOOKUP(Table_Data_Table_13[[#This Row],[Item ID]],Analysis_Table,10,FALSE)","v":{"$error":"#N/A"}},{"$f":"VLOOKUP(Table_Data_Table_13[[#This Row],[Item ID]],Analysis_Table,11,FALSE)","v":{"$error":"#N/A"}},{"$f":"VLOOKUP(Table_Data_Table_13[[#This Row],[Item ID]],Analysis_Table,12,FALSE)","v":{"$error":"#N/A"}},{"$f":"VLOOKUP(Table_Data_Table_13[[#This Row],[Item ID]],Analysis_Table,13,FALSE)","v":{"$error":"#N/A"}},{"$f":"VLOOKUP(Table_Data_Table_13[[#This Row],[Item ID]],Analysis_Table,14,FALSE)","v":{"$error":"#N/A"}},{"$f":"VLOOKUP(Table_Data_Table_13[[#This Row],[Item ID]],Analysis_Table,15,FALSE)","v":{"$error":"#N/A"}},{"$f":"VLOOKUP(Table_Data_Table_13[[#This Row],[Item ID]],Analysis_Table,16,FALSE)","v":{"$error":"#N/A"}},{"$f":"VLOOKUP(Table_Data_Table_13[[#This Row],[Item ID]],Analysis_Table,17,FALSE)","v":{"$error":"#N/A"}},{"$f":"VLOOKUP(Table_Data_Table_13[[#This Row],[Item ID]],Analysis_Table,18,FALSE)","v":{"$error":"#N/A"}},{"$f":"VLOOKUP(Table_Data_Table_13[[#This Row],[Item ID]],Analysis_Table,19,FALSE)","v":{"$error":"#N/A"}},null,null,1]
["",null,null,null,null,null,null,null,null,0,null,null,null,{"$f":"VLOOKUP(Table_Data_Table_13[[#This Row],[Item ID]],Analysis_Table,8,FALSE)","v":{"$error":"#N/A"}},{"$f":"VLOOKUP(Table_Data_Table_13[[#This Row],[Item ID]],Analysis_Table,9,FALSE)","v":{"$error":"#N/A"}},{"$f":"VLOOKUP(Table_Data_Table_13[[#This Row],[Item ID]],Analysis_Table,10,FALSE)","v":{"$error":"#N/A"}},{"$f":"VLOOKUP(Table_Data_Table_13[[#This Row],[Item ID]],Analysis_Table,11,FALSE)","v":{"$error":"#N/A"}},{"$f":"VLOOKUP(Table_Data_Table_13[[#This Row],[Item ID]],Analysis_Table,12,FALSE)","v":{"$error":"#N/A"}},{"$f":"VLOOKUP(Table_Data_Table_13[[#This Row],[Item ID]],Analysis_Table,13,FALSE)","v":{"$error":"#N/A"}},{"$f":"VLOOKUP(Table_Data_Table_13[[#This Row],[Item ID]],Analysis_Table,14,FALSE)","v":{"$error":"#N/A"}},{"$f":"VLOOKUP(Table_Data_Table_13[[#This Row],[Item ID]],Analysis_Table,15,FALSE)","v":{"$error":"#N/A"}},{"$f":"VLOOKUP(Table_Data_Table_13[[#This Row],[Item ID]],Analysis_Table,16,FALSE)","v":{"$error":"#N/A"}},{"$f":"VLOOKUP(Table_Data_Table_13[[#This Row],[Item ID]],Analysis_Table,17,FALSE)","v":{"$error":"#N/A"}},{"$f":"VLOOKUP(Table_Data_Table_13[[#This Row],[Item ID]],Analysis_Table,18,FALSE)","v":{"$error":"#N/A"}},{"$f":"VLOOKUP(Table_Data_Table_13[[#This Row],[Item ID]],Analysis_Table,19,FALSE)","v":{"$error":"#N/A"}},null,null,1]
["",null,null,null,null,null,null,null,null,0,null,null,null,{"$f":"VLOOKUP(Table_Data_Table_13[[#This Row],[Item ID]],Analysis_Table,8,FALSE)","v":{"$error":"#N/A"}},{"$f":"VLOOKUP(Table_Data_Table_13[[#This Row],[Item ID]],Analysis_Table,9,FALSE)","v":{"$error":"#N/A"}},{"$f":"VLOOKUP(Table_Data_Table_13[[#This Row],[Item ID]],Analysis_Table,10,FALSE)","v":{"$error":"#N/A"}},{"$f":"VLOOKUP(Table_Data_Table_13[[#This Row],[Item ID]],Analysis_Table,11,FALSE)","v":{"$error":"#N/A"}},{"$f":"VLOOKUP(Table_Data_Table_13[[#This Row],[Item ID]],Analysis_Table,12,FALSE)","v":{"$error":"#N/A"}},{"$f":"VLOOKUP(Table_Data_Table_13[[#This Row],[Item ID]],Analysis_Table,13,FALSE)","v":{"$error":"#N/A"}},{"$f":"VLOOKUP(Table_Data_Table_13[[#This Row],[Item ID]],Analysis_Table,14,FALSE)","v":{"$error":"#N/A"}},{"$f":"VLOOKUP(Table_Data_Table_13[[#This Row],[Item ID]],Analysis_Table,15,FALSE)","v":{"$error":"#N/A"}},{"$f":"VLOOKUP(Table_Data_Table_13[[#This Row],[Item ID]],Analysis_Table,16,FALSE)","v":{"$error":"#N/A"}},{"$f":"VLOOKUP(Table_Data_Table_13[[#This Row],[Item ID]],Analysis_Table,17,FALSE)","v":{"$error":"#N/A"}},{"$f":"VLOOKUP(Table_Data_Table_13[[#This Row],[Item ID]],Analysis_Table,18,FALSE)","v":{"$error":"#N/A"}},{"$f":"VLOOKUP(Table_Data_Table_13[[#This Row],[Item ID]],Analysis_Table,19,FALSE)","v":{"$error":"#N/A"}},null,null,1]
["",null,null,null,null,null,null,null,null,0,null,null,null,{"$f":"VLOOKUP(Table_Data_Table_13[[#This Row],[Item ID]],Analysis_Table,8,FALSE)","v":{"$error":"#N/A"}},{"$f":"VLOOKUP(Table_Data_Table_13[[#This Row],[Item ID]],Analysis_Table,9,FALSE)","v":{"$error":"#N/A"}},{"$f":"VLOOKUP(Table_Data_Table_13[[#This Row],[Item ID]],Analysis_Table,10,FALSE)","v":{"$error":"#N/A"}},{"$f":"VLOOKUP(Table_Data_Table_13[[#This Row],[Item ID]],Analysis_Table,11,FALSE)","v":{"$error":"#N/A"}},{"$f":"VLOOKUP(Table_Data_Table_13[[#This Row],[Item ID]],Analysis_Table,12,FALSE)","v":{"$error":"#N/A"}},{"$f":"VLOOKUP(Table_Data_Table_13[[#This Row],[Item ID]],Analysis_Table,13,FALSE)","v":{"$error":"#N/A"}},{"$f":"VLOOKUP(Table_Data_Table_13[[#This Row],[Item ID]],Analysis_Table,14,FALSE)","v":{"$error":"#N/A"}},{"$f":"VLOOKUP(Table_Data_Table_13[[#This Row],[Item ID]],Analysis_Table,15,FALSE)","v":{"$error":"#N/A"}},{"$f":"VLOOKUP(Table_Data_Table_13[[#This Row],[Item ID]],Analysis_Table,16,FALSE)","v":{"$error":"#N/A"}},{"$f":"VLOOKUP(Table_Data_Table_13[[#This Row],[Item ID]],Analysis_Table,17,FALSE)","v":{"$error":"#N/A"}},{"$f":"VLOOKUP(Table_Data_Table_13[[#This Row],[Item ID]],Analysis_Table,18,FALSE)","v":{"$error":"#N/A"}},{"$f":"VLOOKUP(Table_Data_Table_13[[#This Row],[Item ID]],Analysis_Table,19,FALSE)","v":{"$error":"#N/A"}},null,null,1]
["",null,null,null,null,null,null,null,null,0,null,null,null,{"$f":"VLOOKUP(Table_Data_Table_13[[#This Row],[Item ID]],Analysis_Table,8,FALSE)","v":{"$error":"#N/A"}},{"$f":"VLOOKUP(Table_Data_Table_13[[#This Row],[Item ID]],Analysis_Table,9,FALSE)","v":{"$error":"#N/A"}},{"$f":"VLOOKUP(Table_Data_Table_13[[#This Row],[Item ID]],Analysis_Table,10,FALSE)","v":{"$error":"#N/A"}},{"$f":"VLOOKUP(Table_Data_Table_13[[#This Row],[Item ID]],Analysis_Table,11,FALSE)","v":{"$error":"#N/A"}},{"$f":"VLOOKUP(Table_Data_Table_13[[#This Row],[Item ID]],Analysis_Table,12,FALSE)","v":{"$error":"#N/A"}},{"$f":"VLOOKUP(Table_Data_Table_13[[#This Row],[Item ID]],Analysis_Table,13,FALSE)","v":{"$error":"#N/A"}},{"$f":"VLOOKUP(Table_Data_Table_13[[#This Row],[Item ID]],Analysis_Table,14,FALSE)","v":{"$error":"#N/A"}},{"$f":"VLOOKUP(Table_Data_Table_13[[#This Row],[Item ID]],Analysis_Table,15,FALSE)","v":{"$error":"#N/A"}},{"$f":"VLOOKUP(Table_Data_Table_13[[#This Row],[Item ID]],Analysis_Table,16,FALSE)","v":{"$error":"#N/A"}},{"$f":"VLOOKUP(Table_Data_Table_13[[#This Row],[Item ID]],Analysis_Table,17,FALSE)","v":{"$error":"#N/A"}},{"$f":"VLOOKUP(Table_Data_Table_13[[#This Row],[Item ID]],Analysis_Table,18,FALSE)","v":{"$error":"#N/A"}},{"$f":"VLOOKUP(Table_Data_Table_13[[#This Row],[Item ID]],Analysis_Table,19,FALSE)","v":{"$error":"#N/A"}},null,null,1]
["",null,null,null,null,null,null,null,null,0,null,null,null,{"$f":"VLOOKUP(Table_Data_Table_13[[#This Row],[Item ID]],Analysis_Table,8,FALSE)","v":{"$error":"#N/A"}},{"$f":"VLOOKUP(Table_Data_Table_13[[#This Row],[Item ID]],Analysis_Table,9,FALSE)","v":{"$error":"#N/A"}},{"$f":"VLOOKUP(Table_Data_Table_13[[#This Row],[Item ID]],Analysis_Table,10,FALSE)","v":{"$error":"#N/A"}},{"$f":"VLOOKUP(Table_Data_Table_13[[#This Row],[Item ID]],Analysis_Table,11,FALSE)","v":{"$error":"#N/A"}},{"$f":"VLOOKUP(Table_Data_Table_13[[#This Row],[Item ID]],Analysis_Table,12,FALSE)","v":{"$error":"#N/A"}},{"$f":"VLOOKUP(Table_Data_Table_13[[#This Row],[Item ID]],Analysis_Table,13,FALSE)","v":{"$error":"#N/A"}},{"$f":"VLOOKUP(Table_Data_Table_13[[#This Row],[Item ID]],Analysis_Table,14,FALSE)","v":{"$error":"#N/A"}},{"$f":"VLOOKUP(Table_Data_Table_13[[#This Row],[Item ID]],Analysis_Table,15,FALSE)","v":{"$error":"#N/A"}},{"$f":"VLOOKUP(Table_Data_Table_13[[#This Row],[Item ID]],Analysis_Table,16,FALSE)","v":{"$error":"#N/A"}},{"$f":"VLOOKUP(Table_Data_Table_13[[#This Row],[Item ID]],Analysis_Table,17,FALSE)","v":{"$error":"#N/A"}},{"$f":"VLOOKUP(Table_Data_Table_13[[#This Row],[Item ID]],Analysis_Table,18,FALSE)","v":{"$error":"#N/A"}},{"$f":"VLOOKUP(Table_Data_Table_13[[#This Row],[Item ID]],Analysis_Table,19,FALSE)","v":{"$error":"#N/A"}},null,null,1]
["",null,null,null,null,null,null,null,null,0,null,null,null,{"$f":"VLOOKUP(Table_Data_Table_13[[#This Row],[Item ID]],Analysis_Table,8,FALSE)","v":{"$error":"#N/A"}},{"$f":"VLOOKUP(Table_Data_Table_13[[#This Row],[Item ID]],Analysis_Table,9,FALSE)","v":{"$error":"#N/A"}},{"$f":"VLOOKUP(Table_Data_Table_13[[#This Row],[Item ID]],Analysis_Table,10,FALSE)","v":{"$error":"#N/A"}},{"$f":"VLOOKUP(Table_Data_Table_13[[#This Row],[Item ID]],Analysis_Table,11,FALSE)","v":{"$error":"#N/A"}},{"$f":"VLOOKUP(Table_Data_Table_13[[#This Row],[Item ID]],Analysis_Table,12,FALSE)","v":{"$error":"#N/A"}},{"$f":"VLOOKUP(Table_Data_Table_13[[#This Row],[Item ID]],Analysis_Table,13,FALSE)","v":{"$error":"#N/A"}},{"$f":"VLOOKUP(Table_Data_Table_13[[#This Row],[Item ID]],Analysis_Table,14,FALSE)","v":{"$error":"#N/A"}},{"$f":"VLOOKUP(Table_Data_Table_13[[#This Row],[Item ID]],Analysis_Table,15,FALSE)","v":{"$error":"#N/A"}},{"$f":"VLOOKUP(Table_Data_Table_13[[#This Row],[Item ID]],Analysis_Table,16,FALSE)","v":{"$error":"#N/A"}},{"$f":"VLOOKUP(Table_Data_Table_13[[#This Row],[Item ID]],Analysis_Table,17,FALSE)","v":{"$error":"#N/A"}},{"$f":"VLOOKUP(Table_Data_Table_13[[#This Row],[Item ID]],Analysis_Table,18,FALSE)","v":{"$error":"#N/A"}},{"$f":"VLOOKUP(Table_Data_Table_13[[#This Row],[Item ID]],Analysis_Table,19,FALSE)","v":{"$error":"#N/A"}},null,null,1]
["",null,null,null,null,null,null,null,null,0,null,null,null,{"$f":"VLOOKUP(Table_Data_Table_13[[#This Row],[Item ID]],Analysis_Table,8,FALSE)","v":{"$error":"#N/A"}},{"$f":"VLOOKUP(Table_Data_Table_13[[#This Row],[Item ID]],Analysis_Table,9,FALSE)","v":{"$error":"#N/A"}},{"$f":"VLOOKUP(Table_Data_Table_13[[#This Row],[Item ID]],Analysis_Table,10,FALSE)","v":{"$error":"#N/A"}},{"$f":"VLOOKUP(Table_Data_Table_13[[#This Row],[Item ID]],Analysis_Table,11,FALSE)","v":{"$error":"#N/A"}},{"$f":"VLOOKUP(Table_Data_Table_13[[#This Row],[Item ID]],Analysis_Table,12,FALSE)","v":{"$error":"#N/A"}},{"$f":"VLOOKUP(Table_Data_Table_13[[#This Row],[Item ID]],Analysis_Table,13,FALSE)","v":{"$error":"#N/A"}},{"$f":"VLOOKUP(Table_Data_Table_13[[#This Row],[Item ID]],Analysis_Table,14,FALSE)","v":{"$error":"#N/A"}},{"$f":"VLOOKUP(Table_Data_Table_13[[#This Row],[Item ID]],Analysis_Table,15,FALSE)","v":{"$error":"#N/A"}},{"$f":"VLOOKUP(Table_Data_Table_13[[#This Row],[Item ID]],Analysis_Table,16,FALSE)","v":{"$error":"#N/A"}},{"$f":"VLOOKUP(Table_Data_Table_13[[#This Row],[Item ID]],Analysis_Table,17,FALSE)","v":{"$error":"#N/A"}},{"$f":"VLOOKUP(Table_Data_Table_13[[#This Row],[Item ID]],Analysis_Table,18,FALSE)","v":{"$error":"#N/A"}},{"$f":"VLOOKUP(Table_Data_Table_13[[#This Row],[Item ID]],Analysis_Table,19,FALSE)","v":{"$error":"#N/A"}},null,null,1]
["",null,null,null,null,null,null,null,null,0,null,null,null,{"$f":"VLOOKUP(Table_Data_Table_13[[#This Row],[Item ID]],Analysis_Table,8,FALSE)","v":{"$error":"#N/A"}},{"$f":"VLOOKUP(Table_Data_Table_13[[#This Row],[Item ID]],Analysis_Table,9,FALSE)","v":{"$error":"#N/A"}},{"$f":"VLOOKUP(Table_Data_Table_13[[#This Row],[Item ID]],Analysis_Table,10,FALSE)","v":{"$error":"#N/A"}},{"$f":"VLOOKUP(Table_Data_Table_13[[#This Row],[Item ID]],Analysis_Table,11,FALSE)","v":{"$error":"#N/A"}},{"$f":"VLOOKUP(Table_Data_Table_13[[#This Row],[Item ID]],Analysis_Table,12,FALSE)","v":{"$error":"#N/A"}},{"$f":"VLOOKUP(Table_Data_Table_13[[#This Row],[Item ID]],Analysis_Table,13,FALSE)","v":{"$error":"#N/A"}},{"$f":"VLOOKUP(Table_Data_Table_13[[#This Row],[Item ID]],Analysis_Table,14,FALSE)","v":{"$error":"#N/A"}},{"$f":"VLOOKUP(Table_Data_Table_13[[#This Row],[Item ID]],Analysis_Table,15,FALSE)","v":{"$error":"#N/A"}},{"$f":"VLOOKUP(Table_Data_Table_13[[#This Row],[Item ID]],Analysis_Table,16,FALSE)","v":{"$error":"#N/A"}},{"$f":"VLOOKUP(Table_Data_Table_13[[#This Row],[Item ID]],Analysis_Table,17,FALSE)","v":{"$error":"#N/A"}},{"$f":"VLOOKUP(Table_Data_Table_13[[#This Row],[Item ID]],Analysis_Table,18,FALSE)","v":{"$error":"#N/A"}},{"$f":"VLOOKUP(Table_Data_Table_13[[#This Row],[Item ID]],Analysis_Table,19,FALSE)","v":{"$error":"#N/A"}},null,null,1]
["",null,null,null,null,null,null,null,null,0,null,null,null,{"$f":"VLOOKUP(Table_Data_Table_13[[#This Row],[Item ID]],Analysis_Table,8,FALSE)","v":{"$error":"#N/A"}},{"$f":"VLOOKUP(Table_Data_Table_13[[#This Row],[Item ID]],Analysis_Table,9,FALSE)","v":{"$error":"#N/A"}},{"$f":"VLOOKUP(Table_Data_Table_13[[#This Row],[Item ID]],Analysis_Table,10,FALSE)","v":{"$error":"#N/A"}},{"$f":"VLOOKUP(Table_Data_Table_13[[#This Row],[Item ID]],Analysis_Table,11,FALSE)","v":{"$error":"#N/A"}},{"$f":"VLOOKUP(Table_Data_Table_13[[#This Row],[Item ID]],Analysis_Table,12,FALSE)","v":{"$error":"#N/A"}},{"$f":"VLOOKUP(Table_Data_Table_13[[#This Row],[Item ID]],Analysis_Table,13,FALSE)","v":{"$error":"#N/A"}},{"$f":"VLOOKUP(Table_Data_Table_13[[#This Row],[Item ID]],Analysis_Table,14,FALSE)","v":{"$error":"#N/A"}},{"$f":"VLOOKUP(Table_Data_Table_13[[#This Row],[Item ID]],Analysis_Table,15,FALSE)","v":{"$error":"#N/A"}},{"$f":"VLOOKUP(Table_Data_Table_13[[#This Row],[Item ID]],Analysis_Table,16,FALSE)","v":{"$error":"#N/A"}},{"$f":"VLOOKUP(Table_Data_Table_13[[#This Row],[Item ID]],Analysis_Table,17,FALSE)","v":{"$error":"#N/A"}},{"$f":"VLOOKUP(Table_Data_Table_13[[#This Row],[Item ID]],Analysis_Table,18,FALSE)","v":{"$error":"#N/A"}},{"$f":"VLOOKUP(Table_Data_Table_13[[#This Row],[Item ID]],Analysis_Table,19,FALSE)","v":{"$error":"#N/A"}},null,null,1]
["",null,null,null,null,null,null,null,null,0,null,null,null,{"$f":"VLOOKUP(Table_Data_Table_13[[#This Row],[Item ID]],Analysis_Table,8,FALSE)","v":{"$error":"#N/A"}},{"$f":"VLOOKUP(Table_Data_Table_13[[#This Row],[Item ID]],Analysis_Table,9,FALSE)","v":{"$error":"#N/A"}},{"$f":"VLOOKUP(Table_Data_Table_13[[#This Row],[Item ID]],Analysis_Table,10,FALSE)","v":{"$error":"#N/A"}},{"$f":"VLOOKUP(Table_Data_Table_13[[#This Row],[Item ID]],Analysis_Table,11,FALSE)","v":{"$error":"#N/A"}},{"$f":"VLOOKUP(Table_Data_Table_13[[#This Row],[Item ID]],Analysis_Table,12,FALSE)","v":{"$error":"#N/A"}},{"$f":"VLOOKUP(Table_Data_Table_13[[#This Row],[Item ID]],Analysis_Table,13,FALSE)","v":{"$error":"#N/A"}},{"$f":"VLOOKUP(Table_Data_Table_13[[#This Row],[Item ID]],Analysis_Table,14,FALSE)","v":{"$error":"#N/A"}},{"$f":"VLOOKUP(Table_Data_Table_13[[#This Row],[Item ID]],Analysis_Table,15,FALSE)","v":{"$error":"#N/A"}},{"$f":"VLOOKUP(Table_Data_Table_13[[#This Row],[Item ID]],Analysis_Table,16,FALSE)","v":{"$error":"#N/A"}},{"$f":"VLOOKUP(Table_Data_Table_13[[#This Row],[Item ID]],Analysis_Table,17,FALSE)","v":{"$error":"#N/A"}},{"$f":"VLOOKUP(Table_Data_Table_13[[#This Row],[Item ID]],Analysis_Table,18,FALSE)","v":{"$error":"#N/A"}},{"$f":"VLOOKUP(Table_Data_Table_13[[#This Row],[Item ID]],Analysis_Table,19,FALSE)","v":{"$error":"#N/A"}},null,null,1]
["",null,null,null,null,null,null,null,null,0,null,null,null,{"$f":"VLOOKUP(Table_Data_Table_13[[#This Row],[Item ID]],Analysis_Table,8,FALSE)","v":{"$error":"#N/A"}},{"$f":"VLOOKUP(Table_Data_Table_13[[#This Row],[Item ID]],Analysis_Table,9,FALSE)","v":{"$error":"#N/A"}},{"$f":"VLOOKUP(Table_Data_Table_13[[#This Row],[Item ID]],Analysis_Table,10,FALSE)","v":{"$error":"#N/A"}},{"$f":"VLOOKUP(Table_Data_Table_13[[#This Row],[Item ID]],Analysis_Table,11,FALSE)","v":{"$error":"#N/A"}},{"$f":"VLOOKUP(Table_Data_Table_13[[#This Row],[Item ID]],Analysis_Table,12,FALSE)","v":{"$error":"#N/A"}},{"$f":"VLOOKUP(Table_Data_Table_13[[#This Row],[Item ID]],Analysis_Table,13,FALSE)","v":{"$error":"#N/A"}},{"$f":"VLOOKUP(Table_Data_Table_13[[#This Row],[Item ID]],Analysis_Table,14,FALSE)","v":{"$error":"#N/A"}},{"$f":"VLOOKUP(Table_Data_Table_13[[#This Row],[Item ID]],Analysis_Table,15,FALSE)","v":{"$error":"#N/A"}},{"$f":"VLOOKUP(Table_Data_Table_13[[#This Row],[Item ID]],Analysis_Table,16,FALSE)","v":{"$error":"#N/A"}},{"$f":"VLOOKUP(Table_Data_Table_13[[#This Row],[Item ID]],Analysis_Table,17,FALSE)","v":{"$error":"#N/A"}},{"$f":"VLOOKUP(Table_Data_Table_13[[#This Row],[Item ID]],Analysis_Table,18,FALSE)","v":{"$error":"#N/A"}},{"$f":"VLOOKUP(Table_Data_Table_13[[#This Row],[Item ID]],Analysis_Table,19,FALSE)","v":{"$error":"#N/A"}},null,null,1]
["",null,null,null,null,null,null,null,null,0,null,null,null,{"$f":"VLOOKUP(Table_Data_Table_13[[#This Row],[Item ID]],Analysis_Table,8,FALSE)","v":{"$error":"#N/A"}},{"$f":"VLOOKUP(Table_Data_Table_13[[#This Row],[Item ID]],Analysis_Table,9,FALSE)","v":{"$error":"#N/A"}},{"$f":"VLOOKUP(Table_Data_Table_13[[#This Row],[Item ID]],Analysis_Table,10,FALSE)","v":{"$error":"#N/A"}},{"$f":"VLOOKUP(Table_Data_Table_13[[#This Row],[Item ID]],Analysis_Table,11,FALSE)","v":{"$error":"#N/A"}},{"$f":"VLOOKUP(Table_Data_Table_13[[#This Row],[Item ID]],Analysis_Table,12,FALSE)","v":{"$error":"#N/A"}},{"$f":"VLOOKUP(Table_Data_Table_13[[#This Row],[Item ID]],Analysis_Table,13,FALSE)","v":{"$error":"#N/A"}},{"$f":"VLOOKUP(Table_Data_Table_13[[#This Row],[Item ID]],Analysis_Table,14,FALSE)","v":{"$error":"#N/A"}},{"$f":"VLOOKUP(Table_Data_Table_13[[#This Row],[Item ID]],Analysis_Table,15,FALSE)","v":{"$error":"#N/A"}},{"$f":"VLOOKUP(Table_Data_Table_13[[#This Row],[Item ID]],Analysis_Table,16,FALSE)","v":{"$error":"#N/A"}},{"$f":"VLOOKUP(Table_Data_Table_13[[#This Row],[Item ID]],Analysis_Table,17,FALSE)","v":{"$error":"#N/A"}},{"$f":"VLOOKUP(Table_Data_Table_13[[#This Row],[Item ID]],Analysis_Table,18,FALSE)","v":{"$error":"#N/A"}},{"$f":"VLOOKUP(Table_Data_Table_13[[#This Row],[Item ID]],Analysis_Table,19,FALSE)","v":{"$error":"#N/A"}},null,null,1]
["",null,null,null,null,null,null,null,null,0,null,null,null,{"$f":"VLOOKUP(Table_Data_Table_13[[#This Row],[Item ID]],Analysis_Table,8,FALSE)","v":{"$error":"#N/A"}},{"$f":"VLOOKUP(Table_Data_Table_13[[#This Row],[Item ID]],Analysis_Table,9,FALSE)","v":{"$error":"#N/A"}},{"$f":"VLOOKUP(Table_Data_Table_13[[#This Row],[Item ID]],Analysis_Table,10,FALSE)","v":{"$error":"#N/A"}},{"$f":"VLOOKUP(Table_Data_Table_13[[#This Row],[Item ID]],Analysis_Table,11,FALSE)","v":{"$error":"#N/A"}},{"$f":"VLOOKUP(Table_Data_Table_13[[#This Row],[Item ID]],Analysis_Table,12,FALSE)","v":{"$error":"#N/A"}},{"$f":"VLOOKUP(Table_Data_Table_13[[#This Row],[Item ID]],Analysis_Table,13,FALSE)","v":{"$error":"#N/A"}},{"$f":"VLOOKUP(Table_Data_Table_13[[#This Row],[Item ID]],Analysis_Table,14,FALSE)","v":{"$error":"#N/A"}},{"$f":"VLOOKUP(Table_Data_Table_13[[#This Row],[Item ID]],Analysis_Table,15,FALSE)","v":{"$error":"#N/A"}},{"$f":"VLOOKUP(Table_Data_Table_13[[#This Row],[Item ID]],Analysis_Table,16,FALSE)","v":{"$error":"#N/A"}},{"$f":"VLOOKUP(Table_Data_Table_13[[#This Row],[Item ID]],Analysis_Table,17,FALSE)","v":{"$error":"#N/A"}},{"$f":"VLOOKUP(Table_Data_Table_13[[#This Row],[Item ID]],Analysis_Table,18,FALSE)","v":{"$error":"#N/A"}},{"$f":"VLOOKUP(Table_Data_Table_13[[#This Row],[Item ID]],Analysis_Table,19,FALSE)","v":{"$error":"#N/A"}},null,null,1]
["",null,null,null,null,null,null,null,null,0,null,null,null,{"$f":"VLOOKUP(Table_Data_Table_13[[#This Row],[Item ID]],Analysis_Table,8,FALSE)","v":{"$error":"#N/A"}},{"$f":"VLOOKUP(Table_Data_Table_13[[#This Row],[Item ID]],Analysis_Table,9,FALSE)","v":{"$error":"#N/A"}},{"$f":"VLOOKUP(Table_Data_Table_13[[#This Row],[Item ID]],Analysis_Table,10,FALSE)","v":{"$error":"#N/A"}},{"$f":"VLOOKUP(Table_Data_Table_13[[#This Row],[Item ID]],Analysis_Table,11,FALSE)","v":{"$error":"#N/A"}},{"$f":"VLOOKUP(Table_Data_Table_13[[#This Row],[Item ID]],Analysis_Table,12,FALSE)","v":{"$error":"#N/A"}},{"$f":"VLOOKUP(Table_Data_Table_13[[#This Row],[Item ID]],Analysis_Table,13,FALSE)","v":{"$error":"#N/A"}},{"$f":"VLOOKUP(Table_Data_Table_13[[#This Row],[Item ID]],Analysis_Table,14,FALSE)","v":{"$error":"#N/A"}},{"$f":"VLOOKUP(Table_Data_Table_13[[#This Row],[Item ID]],Analysis_Table,15,FALSE)","v":{"$error":"#N/A"}},{"$f":"VLOOKUP(Table_Data_Table_13[[#This Row],[Item ID]],Analysis_Table,16,FALSE)","v":{"$error":"#N/A"}},{"$f":"VLOOKUP(Table_Data_Table_13[[#This Row],[Item ID]],Analysis_Table,17,FALSE)","v":{"$error":"#N/A"}},{"$f":"VLOOKUP(Table_Data_Table_13[[#This Row],[Item ID]],Analysis_Table,18,FALSE)","v":{"$error":"#N/A"}},{"$f":"VLOOKUP(Table_Data_Table_13[[#This Row],[Item ID]],Analysis_Table,19,FALSE)","v":{"$error":"#N/A"}},null,null,1]
["",null,null,null,null,null,null,null,null,0,null,null,null,{"$f":"VLOOKUP(Table_Data_Table_13[[#This Row],[Item ID]],Analysis_Table,8,FALSE)","v":{"$error":"#N/A"}},{"$f":"VLOOKUP(Table_Data_Table_13[[#This Row],[Item ID]],Analysis_Table,9,FALSE)","v":{"$error":"#N/A"}},{"$f":"VLOOKUP(Table_Data_Table_13[[#This Row],[Item ID]],Analysis_Table,10,FALSE)","v":{"$error":"#N/A"}},{"$f":"VLOOKUP(Table_Data_Table_13[[#This Row],[Item ID]],Analysis_Table,11,FALSE)","v":{"$error":"#N/A"}},{"$f":"VLOOKUP(Table_Data_Table_13[[#This Row],[Item ID]],Analysis_Table,12,FALSE)","v":{"$error":"#N/A"}},{"$f":"VLOOKUP(Table_Data_Table_13[[#This Row],[Item ID]],Analysis_Table,13,FALSE)","v":{"$error":"#N/A"}},{"$f":"VLOOKUP(Table_Data_Table_13[[#This Row],[Item ID]],Analysis_Table,14,FALSE)","v":{"$error":"#N/A"}},{"$f":"VLOOKUP(Table_Data_Table_13[[#This Row],[Item ID]],Analysis_Table,15,FALSE)","v":{"$error":"#N/A"}},{"$f":"VLOOKUP(Table_Data_Table_13[[#This Row],[Item ID]],Analysis_Table,16,FALSE)","v":{"$error":"#N/A"}},{"$f":"VLOOKUP(Table_Data_Table_13[[#This Row],[Item ID]],Analysis_Table,17,FALSE)","v":{"$error":"#N/A"}},{"$f":"VLOOKUP(Table_Data_Table_13[[#This Row],[Item ID]],Analysis_Table,18,FALSE)","v":{"$error":"#N/A"}},{"$f":"VLOOKUP(Table_Data_Table_13[[#This Row],[Item ID]],Analysis_Table,19,FALSE)","v":{"$error":"#N/A"}},null,null,1]
["",null,null,null,null,null,null,null,null,0,null,null,null,{"$f":"VLOOKUP(Table_Data_Table_13[[#This Row],[Item ID]],Analysis_Table,8,FALSE)","v":{"$error":"#N/A"}},{"$f":"VLOOKUP(Table_Data_Table_13[[#This Row],[Item ID]],Analysis_Table,9,FALSE)","v":{"$error":"#N/A"}},{"$f":"VLOOKUP(Table_Data_Table_13[[#This Row],[Item ID]],Analysis_Table,10,FALSE)","v":{"$error":"#N/A"}},{"$f":"VLOOKUP(Table_Data_Table_13[[#This Row],[Item ID]],Analysis_Table,11,FALSE)","v":{"$error":"#N/A"}},{"$f":"VLOOKUP(Table_Data_Table_13[[#This Row],[Item ID]],Analysis_Table,12,FALSE)","v":{"$error":"#N/A"}},{"$f":"VLOOKUP(Table_Data_Table_13[[#This Row],[Item ID]],Analysis_Table,13,FALSE)","v":{"$error":"#N/A"}},{"$f":"VLOOKUP(Table_Data_Table_13[[#This Row],[Item ID]],Analysis_Table,14,FALSE)","v":{"$error":"#N/A"}},{"$f":"VLOOKUP(Table_Data_Table_13[[#This Row],[Item ID]],Analysis_Table,15,FALSE)","v":{"$error":"#N/A"}},{"$f":"VLOOKUP(Table_Data_Table_13[[#This Row],[Item ID]],Analysis_Table,16,FALSE)","v":{"$error":"#N/A"}},{"$f":"VLOOKUP(Table_Data_Table_13[[#This Row],[Item ID]],Analysis_Table,17,FALSE)","v":{"$error":"#N/A"}},{"$f":"VLOOKUP(Table_Data_Table_13[[#This Row],[Item ID]],Analysis_Table,18,FALSE)","v":{"$error":"#N/A"}},{"$f":"VLOOKUP(Table_Data_Table_13[[#This Row],[Item ID]],Analysis_Table,19,FALSE)","v":{"$error":"#N/A"}},null,null,1]
["",null,null,null,null,null,null,null,null,0,null,null,null,{"$f":"VLOOKUP(Table_Data_Table_13[[#This Row],[Item ID]],Analysis_Table,8,FALSE)","v":{"$error":"#N/A"}},{"$f":"VLOOKUP(Table_Data_Table_13[[#This Row],[Item ID]],Analysis_Table,9,FALSE)","v":{"$error":"#N/A"}},{"$f":"VLOOKUP(Table_Data_Table_13[[#This Row],[Item ID]],Analysis_Table,10,FALSE)","v":{"$error":"#N/A"}},{"$f":"VLOOKUP(Table_Data_Table_13[[#This Row],[Item ID]],Analysis_Table,11,FALSE)","v":{"$error":"#N/A"}},{"$f":"VLOOKUP(Table_Data_Table_13[[#This Row],[Item ID]],Analysis_Table,12,FALSE)","v":{"$error":"#N/A"}},{"$f":"VLOOKUP(Table_Data_Table_13[[#This Row],[Item ID]],Analysis_Table,13,FALSE)","v":{"$error":"#N/A"}},{"$f":"VLOOKUP(Table_Data_Table_13[[#This Row],[Item ID]],Analysis_Table,14,FALSE)","v":{"$error":"#N/A"}},{"$f":"VLOOKUP(Table_Data_Table_13[[#This Row],[Item ID]],Analysis_Table,15,FALSE)","v":{"$error":"#N/A"}},{"$f":"VLOOKUP(Table_Data_Table_13[[#This Row],[Item ID]],Analysis_Table,16,FALSE)","v":{"$error":"#N/A"}},{"$f":"VLOOKUP(Table_Data_Table_13[[#This Row],[Item ID]],Analysis_Table,17,FALSE)","v":{"$error":"#N/A"}},{"$f":"VLOOKUP(Table_Data_Table_13[[#This Row],[Item ID]],Analysis_Table,18,FALSE)","v":{"$error":"#N/A"}},{"$f":"VLOOKUP(Table_Data_Table_13[[#This Row],[Item ID]],Analysis_Table,19,FALSE)","v":{"$error":"#N/A"}},null,null,1]
["",null,null,null,null,null,null,null,null,0,null,null,null,{"$f":"VLOOKUP(Table_Data_Table_13[[#This Row],[Item ID]],Analysis_Table,8,FALSE)","v":{"$error":"#N/A"}},{"$f":"VLOOKUP(Table_Data_Table_13[[#This Row],[Item ID]],Analysis_Table,9,FALSE)","v":{"$error":"#N/A"}},{"$f":"VLOOKUP(Table_Data_Table_13[[#This Row],[Item ID]],Analysis_Table,10,FALSE)","v":{"$error":"#N/A"}},{"$f":"VLOOKUP(Table_Data_Table_13[[#This Row],[Item ID]],Analysis_Table,11,FALSE)","v":{"$error":"#N/A"}},{"$f":"VLOOKUP(Table_Data_Table_13[[#This Row],[Item ID]],Analysis_Table,12,FALSE)","v":{"$error":"#N/A"}},{"$f":"VLOOKUP(Table_Data_Table_13[[#This Row],[Item ID]],Analysis_Table,13,FALSE)","v":{"$error":"#N/A"}},{"$f":"VLOOKUP(Table_Data_Table_13[[#This Row],[Item ID]],Analysis_Table,14,FALSE)","v":{"$error":"#N/A"}},{"$f":"VLOOKUP(Table_Data_Table_13[[#This Row],[Item ID]],Analysis_Table,15,FALSE)","v":{"$error":"#N/A"}},{"$f":"VLOOKUP(Table_Data_Table_13[[#This Row],[Item ID]],Analysis_Table,16,FALSE)","v":{"$error":"#N/A"}},{"$f":"VLOOKUP(Table_Data_Table_13[[#This Row],[Item ID]],Analysis_Table,17,FALSE)","v":{"$error":"#N/A"}},{"$f":"VLOOKUP(Table_Data_Table_13[[#This Row],[Item ID]],Analysis_Table,18,FALSE)","v":{"$error":"#N/A"}},{"$f":"VLOOKUP(Table_Data_Table_13[[#This Row],[Item ID]],Analysis_Table,19,FALSE)","v":{"$error":"#N/A"}},null,null,1]
["",null,null,null,null,null,null,null,null,0,null,null,null,{"$f":"VLOOKUP(Table_Data_Table_13[[#This Row],[Item ID]],Analysis_Table,8,FALSE)","v":{"$error":"#N/A"}},{"$f":"VLOOKUP(Table_Data_Table_13[[#This Row],[Item ID]],Analysis_Table,9,FALSE)","v":{"$error":"#N/A"}},{"$f":"VLOOKUP(Table_Data_Table_13[[#This Row],[Item ID]],Analysis_Table,10,FALSE)","v":{"$error":"#N/A"}},{"$f":"VLOOKUP(Table_Data_Table_13[[#This Row],[Item ID]],Analysis_Table,11,FALSE)","v":{"$error":"#N/A"}},{"$f":"VLOOKUP(Table_Data_Table_13[[#This Row],[Item ID]],Analysis_Table,12,FALSE)","v":{"$error":"#N/A"}},{"$f":"VLOOKUP(Table_Data_Table_13[[#This Row],[Item ID]],Analysis_Table,13,FALSE)","v":{"$error":"#N/A"}},{"$f":"VLOOKUP(Table_Data_Table_13[[#This Row],[Item ID]],Analysis_Table,14,FALSE)","v":{"$error":"#N/A"}},{"$f":"VLOOKUP(Table_Data_Table_13[[#This Row],[Item ID]],Analysis_Table,15,FALSE)","v":{"$error":"#N/A"}},{"$f":"VLOOKUP(Table_Data_Table_13[[#This Row],[Item ID]],Analysis_Table,16,FALSE)","v":{"$error":"#N/A"}},{"$f":"VLOOKUP(Table_Data_Table_13[[#This Row],[Item ID]],Analysis_Table,17,FALSE)","v":{"$error":"#N/A"}},{"$f":"VLOOKUP(Table_Data_Table_13[[#This Row],[Item ID]],Analysis_Table,18,FALSE)","v":{"$error":"#N/A"}},{"$f":"VLOOKUP(Table_Data_Table_13[[#This Row],[Item ID]],Analysis_Table,19,FALSE)","v":{"$error":"#N/A"}},null,null,1]
["",null,null,null,null,null,null,null,null,0,null,null,null,{"$f":"VLOOKUP(Table_Data_Table_13[[#This Row],[Item ID]],Analysis_Table,8,FALSE)","v":{"$error":"#N/A"}},{"$f":"VLOOKUP(Table_Data_Table_13[[#This Row],[Item ID]],Analysis_Table,9,FALSE)","v":{"$error":"#N/A"}},{"$f":"VLOOKUP(Table_Data_Table_13[[#This Row],[Item ID]],Analysis_Table,10,FALSE)","v":{"$error":"#N/A"}},{"$f":"VLOOKUP(Table_Data_Table_13[[#This Row],[Item ID]],Analysis_Table,11,FALSE)","v":{"$error":"#N/A"}},{"$f":"VLOOKUP(Table_Data_Table_13[[#This Row],[Item ID]],Analysis_Table,12,FALSE)","v":{"$error":"#N/A"}},{"$f":"VLOOKUP(Table_Data_Table_13[[#This Row],[Item ID]],Analysis_Table,13,FALSE)","v":{"$error":"#N/A"}},{"$f":"VLOOKUP(Table_Data_Table_13[[#This Row],[Item ID]],Analysis_Table,14,FALSE)","v":{"$error":"#N/A"}},{"$f":"VLOOKUP(Table_Data_Table_13[[#This Row],[Item ID]],Analysis_Table,15,FALSE)","v":{"$error":"#N/A"}},{"$f":"VLOOKUP(Table_Data_Table_13[[#This Row],[Item ID]],Analysis_Table,16,FALSE)","v":{"$error":"#N/A"}},{"$f":"VLOOKUP(Table_Data_Table_13[[#This Row],[Item ID]],Analysis_Table,17,FALSE)","v":{"$error":"#N/A"}},{"$f":"VLOOKUP(Table_Data_Table_13[[#This Row],[Item ID]],Analysis_Table,18,FALSE)","v":{"$error":"#N/A"}},{"$f":"VLOOKUP(Table_Data_Table_13[[#This Row],[Item ID]],Analysis_Table,19,FALSE)","v":{"$error":"#N/A"}},null,null,1]
["",null,null,null,null,null,null,null,null,0,null,null,null,{"$f":"VLOOKUP(Table_Data_Table_13[[#This Row],[Item ID]],Analysis_Table,8,FALSE)","v":{"$error":"#N/A"}},{"$f":"VLOOKUP(Table_Data_Table_13[[#This Row],[Item ID]],Analysis_Table,9,FALSE)","v":{"$error":"#N/A"}},{"$f":"VLOOKUP(Table_Data_Table_13[[#This Row],[Item ID]],Analysis_Table,10,FALSE)","v":{"$error":"#N/A"}},{"$f":"VLOOKUP(Table_Data_Table_13[[#This Row],[Item ID]],Analysis_Table,11,FALSE)","v":{"$error":"#N/A"}},{"$f":"VLOOKUP(Table_Data_Table_13[[#This Row],[Item ID]],Analysis_Table,12,FALSE)","v":{"$error":"#N/A"}},{"$f":"VLOOKUP(Table_Data_Table_13[[#This Row],[Item ID]],Analysis_Table,13,FALSE)","v":{"$error":"#N/A"}},{"$f":"VLOOKUP(Table_Data_Table_13[[#This Row],[Item ID]],Analysis_Table,14,FALSE)","v":{"$error":"#N/A"}},{"$f":"VLOOKUP(Table_Data_Table_13[[#This Row],[Item ID]],Analysis_Table,15,FALSE)","v":{"$error":"#N/A"}},{"$f":"VLOOKUP(Table_Data_Table_13[[#This Row],[Item ID]],Analysis_Table,16,FALSE)","v":{"$error":"#N/A"}},{"$f":"VLOOKUP(Table_Data_Table_13[[#This Row],[Item ID]],Analysis_Table,17,FALSE)","v":{"$error":"#N/A"}},{"$f":"VLOOKUP(Table_Data_Table_13[[#This Row],[Item ID]],Analysis_Table,18,FALSE)","v":{"$error":"#N/A"}},{"$f":"VLOOKUP(Table_Data_Table_13[[#This Row],[Item ID]],Analysis_Table,19,FALSE)","v":{"$error":"#N/A"}},null,null,1]
["",null,null,null,null,null,null,null,null,0,null,null,null,{"$f":"VLOOKUP(Table_Data_Table_13[[#This Row],[Item ID]],Analysis_Table,8,FALSE)","v":{"$error":"#N/A"}},{"$f":"VLOOKUP(Table_Data_Table_13[[#This Row],[Item ID]],Analysis_Table,9,FALSE)","v":{"$error":"#N/A"}},{"$f":"VLOOKUP(Table_Data_Table_13[[#This Row],[Item ID]],Analysis_Table,10,FALSE)","v":{"$error":"#N/A"}},{"$f":"VLOOKUP(Table_Data_Table_13[[#This Row],[Item ID]],Analysis_Table,11,FALSE)","v":{"$error":"#N/A"}},{"$f":"VLOOKUP(Table_Data_Table_13[[#This Row],[Item ID]],Analysis_Table,12,FALSE)","v":{"$error":"#N/A"}},{"$f":"VLOOKUP(Table_Data_Table_13[[#This Row],[Item ID]],Analysis_Table,13,FALSE)","v":{"$error":"#N/A"}},{"$f":"VLOOKUP(Table_Data_Table_13[[#This Row],[Item ID]],Analysis_Table,14,FALSE)","v":{"$error":"#N/A"}},{"$f":"VLOOKUP(Table_Data_Table_13[[#This Row],[Item ID]],Analysis_Table,15,FALSE)","v":{"$error":"#N/A"}},{"$f":"VLOOKUP(Table_Data_Table_13[[#This Row],[Item ID]],Analysis_Table,16,FALSE)","v":{"$error":"#N/A"}},{"$f":"VLOOKUP(Table_Data_Table_13[[#This Row],[Item ID]],Analysis_Table,17,FALSE)","v":{"$error":"#N/A"}},{"$f":"VLOOKUP(Table_Data_Table_13[[#This Row],[Item ID]],Analysis_Table,18,FALSE)","v":{"$error":"#N/A"}},{"$f":"VLOOKUP(Table_Data_Table_13[[#This Row],[Item ID]],Analysis_Table,19,FALSE)","v":{"$error":"#N/A"}},null,null,1]
["",null,null,null,null,null,null,null,null,0,null,null,null,{"$f":"VLOOKUP(Table_Data_Table_13[[#This Row],[Item ID]],Analysis_Table,8,FALSE)","v":{"$error":"#N/A"}},{"$f":"VLOOKUP(Table_Data_Table_13[[#This Row],[Item ID]],Analysis_Table,9,FALSE)","v":{"$error":"#N/A"}},{"$f":"VLOOKUP(Table_Data_Table_13[[#This Row],[Item ID]],Analysis_Table,10,FALSE)","v":{"$error":"#N/A"}},{"$f":"VLOOKUP(Table_Data_Table_13[[#This Row],[Item ID]],Analysis_Table,11,FALSE)","v":{"$error":"#N/A"}},{"$f":"VLOOKUP(Table_Data_Table_13[[#This Row],[Item ID]],Analysis_Table,12,FALSE)","v":{"$error":"#N/A"}},{"$f":"VLOOKUP(Table_Data_Table_13[[#This Row],[Item ID]],Analysis_Table,13,FALSE)","v":{"$error":"#N/A"}},{"$f":"VLOOKUP(Table_Data_Table_13[[#This Row],[Item ID]],Analysis_Table,14,FALSE)","v":{"$error":"#N/A"}},{"$f":"VLOOKUP(Table_Data_Table_13[[#This Row],[Item ID]],Analysis_Table,15,FALSE)","v":{"$error":"#N/A"}},{"$f":"VLOOKUP(Table_Data_Table_13[[#This Row],[Item ID]],Analysis_Table,16,FALSE)","v":{"$error":"#N/A"}},{"$f":"VLOOKUP(Table_Data_Table_13[[#This Row],[Item ID]],Analysis_Table,17,FALSE)","v":{"$error":"#N/A"}},{"$f":"VLOOKUP(Table_Data_Table_13[[#This Row],[Item ID]],Analysis_Table,18,FALSE)","v":{"$error":"#N/A"}},{"$f":"VLOOKUP(Table_Data_Table_13[[#This Row],[Item ID]],Analysis_Table,19,FALSE)","v":{"$error":"#N/A"}},null,null,1]
["",null,null,null,null,null,null,null,null,0,null,null,null,{"$f":"VLOOKUP(Table_Data_Table_13[[#This Row],[Item ID]],Analysis_Table,8,FALSE)","v":{"$error":"#N/A"}},{"$f":"VLOOKUP(Table_Data_Table_13[[#This Row],[Item ID]],Analysis_Table,9,FALSE)","v":{"$error":"#N/A"}},{"$f":"VLOOKUP(Table_Data_Table_13[[#This Row],[Item ID]],Analysis_Table,10,FALSE)","v":{"$error":"#N/A"}},{"$f":"VLOOKUP(Table_Data_Table_13[[#This Row],[Item ID]],Analysis_Table,11,FALSE)","v":{"$error":"#N/A"}},{"$f":"VLOOKUP(Table_Data_Table_13[[#This Row],[Item ID]],Analysis_Table,12,FALSE)","v":{"$error":"#N/A"}},{"$f":"VLOOKUP(Table_Data_Table_13[[#This Row],[Item ID]],Analysis_Table,13,FALSE)","v":{"$error":"#N/A"}},{"$f":"VLOOKUP(Table_Data_Table_13[[#This Row],[Item ID]],Analysis_Table,14,FALSE)","v":{"$error":"#N/A"}},{"$f":"VLOOKUP(Table_Data_Table_13[[#This Row],[Item ID]],Analysis_Table,15,FALSE)","v":{"$error":"#N/A"}},{"$f":"VLOOKUP(Table_Data_Table_13[[#This Row],[Item ID]],Analysis_Table,16,FALSE)","v":{"$error":"#N/A"}},{"$f":"VLOOKUP(Table_Data_Table_13[[#This Row],[Item ID]],Analysis_Table,17,FALSE)","v":{"$error":"#N/A"}},{"$f":"VLOOKUP(Table_Data_Table_13[[#This Row],[Item ID]],Analysis_Table,18,FALSE)","v":{"$error":"#N/A"}},{"$f":"VLOOKUP(Table_Data_Table_13[[#This Row],[Item ID]],Analysis_Table,19,FALSE)","v":{"$error":"#N/A"}},null,null,1]
["",null,null,null,null,null,null,null,null,0,null,null,null,{"$f":"VLOOKUP(Table_Data_Table_13[[#This Row],[Item ID]],Analysis_Table,8,FALSE)","v":{"$error":"#N/A"}},{"$f":"VLOOKUP(Table_Data_Table_13[[#This Row],[Item ID]],Analysis_Table,9,FALSE)","v":{"$error":"#N/A"}},{"$f":"VLOOKUP(Table_Data_Table_13[[#This Row],[Item ID]],Analysis_Table,10,FALSE)","v":{"$error":"#N/A"}},{"$f":"VLOOKUP(Table_Data_Table_13[[#This Row],[Item ID]],Analysis_Table,11,FALSE)","v":{"$error":"#N/A"}},{"$f":"VLOOKUP(Table_Data_Table_13[[#This Row],[Item ID]],Analysis_Table,12,FALSE)","v":{"$error":"#N/A"}},{"$f":"VLOOKUP(Table_Data_Table_13[[#This Row],[Item ID]],Analysis_Table,13,FALSE)","v":{"$error":"#N/A"}},{"$f":"VLOOKUP(Table_Data_Table_13[[#This Row],[Item ID]],Analysis_Table,14,FALSE)","v":{"$error":"#N/A"}},{"$f":"VLOOKUP(Table_Data_Table_13[[#This Row],[Item ID]],Analysis_Table,15,FALSE)","v":{"$error":"#N/A"}},{"$f":"VLOOKUP(Table_Data_Table_13[[#This Row],[Item ID]],Analysis_Table,16,FALSE)","v":{"$error":"#N/A"}},{"$f":"VLOOKUP(Table_Data_Table_13[[#This Row],[Item ID]],Analysis_Table,17,FALSE)","v":{"$error":"#N/A"}},{"$f":"VLOOKUP(Table_Data_Table_13[[#This Row],[Item ID]],Analysis_Table,18,FALSE)","v":{"$error":"#N/A"}},{"$f":"VLOOKUP(Table_Data_Table_13[[#This Row],[Item ID]],Analysis_Table,19,FALSE)","v":{"$error":"#N/A"}},null,null,1]
["",null,null,null,null,null,null,null,null,0,null,null,null,{"$f":"VLOOKUP(Table_Data_Table_13[[#This Row],[Item ID]],Analysis_Table,8,FALSE)","v":{"$error":"#N/A"}},{"$f":"VLOOKUP(Table_Data_Table_13[[#This Row],[Item ID]],Analysis_Table,9,FALSE)","v":{"$error":"#N/A"}},{"$f":"VLOOKUP(Table_Data_Table_13[[#This Row],[Item ID]],Analysis_Table,10,FALSE)","v":{"$error":"#N/A"}},{"$f":"VLOOKUP(Table_Data_Table_13[[#This Row],[Item ID]],Analysis_Table,11,FALSE)","v":{"$error":"#N/A"}},{"$f":"VLOOKUP(Table_Data_Table_13[[#This Row],[Item ID]],Analysis_Table,12,FALSE)","v":{"$error":"#N/A"}},{"$f":"VLOOKUP(Table_Data_Table_13[[#This Row],[Item ID]],Analysis_Table,13,FALSE)","v":{"$error":"#N/A"}},{"$f":"VLOOKUP(Table_Data_Table_13[[#This Row],[Item ID]],Analysis_Table,14,FALSE)","v":{"$error":"#N/A"}},{"$f":"VLOOKUP(Table_Data_Table_13[[#This Row],[Item ID]],Analysis_Table,15,FALSE)","v":{"$error":"#N/A"}},{"$f":"VLOOKUP(Table_Data_Table_13[[#This Row],[Item ID]],Analysis_Table,16,FALSE)","v":{"$error":"#N/A"}},{"$f":"VLOOKUP(Table_Data_Table_13[[#This Row],[Item ID]],Analysis_Table,17,FALSE)","v":{"$error":"#N/A"}},{"$f":"VLOOKUP(Table_Data_Table_13[[#This Row],[Item ID]],Analysis_Table,18,FALSE)","v":{"$error":"#N/A"}},{"$f":"VLOOKUP(Table_Data_Table_13[[#This Row],[Item ID]],Analysis_Table,19,FALSE)","v":{"$error":"#N/A"}},null,null,1]
["",null,null,null,null,null,null,null,null,0,null,null,null,{"$f":"VLOOKUP(Table_Data_Table_13[[#This Row],[Item ID]],Analysis_Table,8,FALSE)","v":{"$error":"#N/A"}},{"$f":"VLOOKUP(Table_Data_Table_13[[#This Row],[Item ID]],Analysis_Table,9,FALSE)","v":{"$error":"#N/A"}},{"$f":"VLOOKUP(Table_Data_Table_13[[#This Row],[Item ID]],Analysis_Table,10,FALSE)","v":{"$error":"#N/A"}},{"$f":"VLOOKUP(Table_Data_Table_13[[#This Row],[Item ID]],Analysis_Table,11,FALSE)","v":{"$error":"#N/A"}},{"$f":"VLOOKUP(Table_Data_Table_13[[#This Row],[Item ID]],Analysis_Table,12,FALSE)","v":{"$error":"#N/A"}},{"$f":"VLOOKUP(Table_Data_Table_13[[#This Row],[Item ID]],Analysis_Table,13,FALSE)","v":{"$error":"#N/A"}},{"$f":"VLOOKUP(Table_Data_Table_13[[#This Row],[Item ID]],Analysis_Table,14,FALSE)","v":{"$error":"#N/A"}},{"$f":"VLOOKUP(Table_Data_Table_13[[#This Row],[Item ID]],Analysis_Table,15,FALSE)","v":{"$error":"#N/A"}},{"$f":"VLOOKUP(Table_Data_Table_13[[#This Row],[Item ID]],Analysis_Table,16,FALSE)","v":{"$error":"#N/A"}},{"$f":"VLOOKUP(Table_Data_Table_13[[#This Row],[Item ID]],Analysis_Table,17,FALSE)","v":{"$error":"#N/A"}},{"$f":"VLOOKUP(Table_Data_Table_13[[#This Row],[Item ID]],Analysis_Table,18,FALSE)","v":{"$error":"#N/A"}},{"$f":"VLOOKUP(Table_Data_Table_13[[#This Row],[Item ID]],Analysis_Table,19,FALSE)","v":{"$error":"#N/A"}},null,null,1]
["",null,null,null,null,null,null,null,null,0,null,null,null,{"$f":"VLOOKUP(Table_Data_Table_13[[#This Row],[Item ID]],Analysis_Table,8,FALSE)","v":{"$error":"#N/A"}},{"$f":"VLOOKUP(Table_Data_Table_13[[#This Row],[Item ID]],Analysis_Table,9,FALSE)","v":{"$error":"#N/A"}},{"$f":"VLOOKUP(Table_Data_Table_13[[#This Row],[Item ID]],Analysis_Table,10,FALSE)","v":{"$error":"#N/A"}},{"$f":"VLOOKUP(Table_Data_Table_13[[#This Row],[Item ID]],Analysis_Table,11,FALSE)","v":{"$error":"#N/A"}},{"$f":"VLOOKUP(Table_Data_Table_13[[#This Row],[Item ID]],Analysis_Table,12,FALSE)","v":{"$error":"#N/A"}},{"$f":"VLOOKUP(Table_Data_Table_13[[#This Row],[Item ID]],Analysis_Table,13,FALSE)","v":{"$error":"#N/A"}},{"$f":"VLOOKUP(Table_Data_Table_13[[#This Row],[Item ID]],Analysis_Table,14,FALSE)","v":{"$error":"#N/A"}},{"$f":"VLOOKUP(Table_Data_Table_13[[#This Row],[Item ID]],Analysis_Table,15,FALSE)","v":{"$error":"#N/A"}},{"$f":"VLOOKUP(Table_Data_Table_13[[#This Row],[Item ID]],Analysis_Table,16,FALSE)","v":{"$error":"#N/A"}},{"$f":"VLOOKUP(Table_Data_Table_13[[#This Row],[Item ID]],Analysis_Table,17,FALSE)","v":{"$error":"#N/A"}},{"$f":"VLOOKUP(Table_Data_Table_13[[#This Row],[Item ID]],Analysis_Table,18,FALSE)","v":{"$error":"#N/A"}},{"$f":"VLOOKUP(Table_Data_Table_13[[#This Row],[Item ID]],Analysis_Table,19,FALSE)","v":{"$error":"#N/A"}},null,null,1]
["",null,null,null,null,null,null,null,null,0,null,null,null,{"$f":"VLOOKUP(Table_Data_Table_13[[#This Row],[Item ID]],Analysis_Table,8,FALSE)","v":{"$error":"#N/A"}},{"$f":"VLOOKUP(Table_Data_Table_13[[#This Row],[Item ID]],Analysis_Table,9,FALSE)","v":{"$error":"#N/A"}},{"$f":"VLOOKUP(Table_Data_Table_13[[#This Row],[Item ID]],Analysis_Table,10,FALSE)","v":{"$error":"#N/A"}},{"$f":"VLOOKUP(Table_Data_Table_13[[#This Row],[Item ID]],Analysis_Table,11,FALSE)","v":{"$error":"#N/A"}},{"$f":"VLOOKUP(Table_Data_Table_13[[#This Row],[Item ID]],Analysis_Table,12,FALSE)","v":{"$error":"#N/A"}},{"$f":"VLOOKUP(Table_Data_Table_13[[#This Row],[Item ID]],Analysis_Table,13,FALSE)","v":{"$error":"#N/A"}},{"$f":"VLOOKUP(Table_Data_Table_13[[#This Row],[Item ID]],Analysis_Table,14,FALSE)","v":{"$error":"#N/A"}},{"$f":"VLOOKUP(Table_Data_Table_13[[#This Row],[Item ID]],Analysis_Table,15,FALSE)","v":{"$error":"#N/A"}},{"$f":"VLOOKUP(Table_Data_Table_13[[#This Row],[Item ID]],Analysis_Table,16,FALSE)","v":{"$error":"#N/A"}},{"$f":"VLOOKUP(Table_Data_Table_13[[#This Row],[Item ID]],Analysis_Table,17,FALSE)","v":{"$error":"#N/A"}},{"$f":"VLOOKUP(Table_Data_Table_13[[#This Row],[Item ID]],Analysis_Table,18,FALSE)","v":{"$error":"#N/A"}},{"$f":"VLOOKUP(Table_Data_Table_13[[#This Row],[Item ID]],Analysis_Table,19,FALSE)","v":{"$error":"#N/A"}},null,null,1]
["",null,null,null,null,null,null,null,null,0,null,null,null,{"$f":"VLOOKUP(Table_Data_Table_13[[#This Row],[Item ID]],Analysis_Table,8,FALSE)","v":{"$error":"#N/A"}},{"$f":"VLOOKUP(Table_Data_Table_13[[#This Row],[Item ID]],Analysis_Table,9,FALSE)","v":{"$error":"#N/A"}},{"$f":"VLOOKUP(Table_Data_Table_13[[#This Row],[Item ID]],Analysis_Table,10,FALSE)","v":{"$error":"#N/A"}},{"$f":"VLOOKUP(Table_Data_Table_13[[#This Row],[Item ID]],Analysis_Table,11,FALSE)","v":{"$error":"#N/A"}},{"$f":"VLOOKUP(Table_Data_Table_13[[#This Row],[Item ID]],Analysis_Table,12,FALSE)","v":{"$error":"#N/A"}},{"$f":"VLOOKUP(Table_Data_Table_13[[#This Row],[Item ID]],Analysis_Table,13,FALSE)","v":{"$error":"#N/A"}},{"$f":"VLOOKUP(Table_Data_Table_13[[#This Row],[Item ID]],Analysis_Table,14,FALSE)","v":{"$error":"#N/A"}},{"$f":"VLOOKUP(Table_Data_Table_13[[#This Row],[Item ID]],Analysis_Table,15,FALSE)","v":{"$error":"#N/A"}},{"$f":"VLOOKUP(Table_Data_Table_13[[#This Row],[Item ID]],Analysis_Table,16,FALSE)","v":{"$error":"#N/A"}},{"$f":"VLOOKUP(Table_Data_Table_13[[#This Row],[Item ID]],Analysis_Table,17,FALSE)","v":{"$error":"#N/A"}},{"$f":"VLOOKUP(Table_Data_Table_13[[#This Row],[Item ID]],Analysis_Table,18,FALSE)","v":{"$error":"#N/A"}},{"$f":"VLOOKUP(Table_Data_Table_13[[#This Row],[Item ID]],Analysis_Table,19,FALSE)","v":{"$error":"#N/A"}},null,null,1]
["",null,null,null,null,null,null,null,null,0,null,null,null,{"$f":"VLOOKUP(Table_Data_Table_13[[#This Row],[Item ID]],Analysis_Table,8,FALSE)","v":{"$error":"#N/A"}},{"$f":"VLOOKUP(Table_Data_Table_13[[#This Row],[Item ID]],Analysis_Table,9,FALSE)","v":{"$error":"#N/A"}},{"$f":"VLOOKUP(Table_Data_Table_13[[#This Row],[Item ID]],Analysis_Table,10,FALSE)","v":{"$error":"#N/A"}},{"$f":"VLOOKUP(Table_Data_Table_13[[#This Row],[Item ID]],Analysis_Table,11,FALSE)","v":{"$error":"#N/A"}},{"$f":"VLOOKUP(Table_Data_Table_13[[#This Row],[Item ID]],Analysis_Table,12,FALSE)","v":{"$error":"#N/A"}},{"$f":"VLOOKUP(Table_Data_Table_13[[#This Row],[Item ID]],Analysis_Table,13,FALSE)","v":{"$error":"#N/A"}},{"$f":"VLOOKUP(Table_Data_Table_13[[#This Row],[Item ID]],Analysis_Table,14,FALSE)","v":{"$error":"#N/A"}},{"$f":"VLOOKUP(Table_Data_Table_13[[#This Row],[Item ID]],Analysis_Table,15,FALSE)","v":{"$error":"#N/A"}},{"$f":"VLOOKUP(Table_Data_Table_13[[#This Row],[Item ID]],Analysis_Table,16,FALSE)","v":{"$error":"#N/A"}},{"$f":"VLOOKUP(Table_Data_Table_13[[#This Row],[Item ID]],Analysis_Table,17,FALSE)","v":{"$error":"#N/A"}},{"$f":"VLOOKUP(Table_Data_Table_13[[#This Row],[Item ID]],Analysis_Table,18,FALSE)","v":{"$error":"#N/A"}},{"$f":"VLOOKUP(Table_Data_Table_13[[#This Row],[Item ID]],Analysis_Table,19,FALSE)","v":{"$error":"#N/A"}},null,null,1]
["",null,null,null,null,null,null,null,null,0,null,null,null,{"$f":"VLOOKUP(Table_Data_Table_13[[#This Row],[Item ID]],Analysis_Table,8,FALSE)","v":{"$error":"#N/A"}},{"$f":"VLOOKUP(Table_Data_Table_13[[#This Row],[Item ID]],Analysis_Table,9,FALSE)","v":{"$error":"#N/A"}},{"$f":"VLOOKUP(Table_Data_Table_13[[#This Row],[Item ID]],Analysis_Table,10,FALSE)","v":{"$error":"#N/A"}},{"$f":"VLOOKUP(Table_Data_Table_13[[#This Row],[Item ID]],Analysis_Table,11,FALSE)","v":{"$error":"#N/A"}},{"$f":"VLOOKUP(Table_Data_Table_13[[#This Row],[Item ID]],Analysis_Table,12,FALSE)","v":{"$error":"#N/A"}},{"$f":"VLOOKUP(Table_Data_Table_13[[#This Row],[Item ID]],Analysis_Table,13,FALSE)","v":{"$error":"#N/A"}},{"$f":"VLOOKUP(Table_Data_Table_13[[#This Row],[Item ID]],Analysis_Table,14,FALSE)","v":{"$error":"#N/A"}},{"$f":"VLOOKUP(Table_Data_Table_13[[#This Row],[Item ID]],Analysis_Table,15,FALSE)","v":{"$error":"#N/A"}},{"$f":"VLOOKUP(Table_Data_Table_13[[#This Row],[Item ID]],Analysis_Table,16,FALSE)","v":{"$error":"#N/A"}},{"$f":"VLOOKUP(Table_Data_Table_13[[#This Row],[Item ID]],Analysis_Table,17,FALSE)","v":{"$error":"#N/A"}},{"$f":"VLOOKUP(Table_Data_Table_13[[#This Row],[Item ID]],Analysis_Table,18,FALSE)","v":{"$error":"#N/A"}},{"$f":"VLOOKUP(Table_Data_Table_13[[#This Row],[Item ID]],Analysis_Table,19,FALSE)","v":{"$error":"#N/A"}},null,null,1]
["",null,null,null,null,null,null,null,null,0,null,null,null,{"$f":"VLOOKUP(Table_Data_Table_13[[#This Row],[Item ID]],Analysis_Table,8,FALSE)","v":{"$error":"#N/A"}},{"$f":"VLOOKUP(Table_Data_Table_13[[#This Row],[Item ID]],Analysis_Table,9,FALSE)","v":{"$error":"#N/A"}},{"$f":"VLOOKUP(Table_Data_Table_13[[#This Row],[Item ID]],Analysis_Table,10,FALSE)","v":{"$error":"#N/A"}},{"$f":"VLOOKUP(Table_Data_Table_13[[#This Row],[Item ID]],Analysis_Table,11,FALSE)","v":{"$error":"#N/A"}},{"$f":"VLOOKUP(Table_Data_Table_13[[#This Row],[Item ID]],Analysis_Table,12,FALSE)","v":{"$error":"#N/A"}},{"$f":"VLOOKUP(Table_Data_Table_13[[#This Row],[Item ID]],Analysis_Table,13,FALSE)","v":{"$error":"#N/A"}},{"$f":"VLOOKUP(Table_Data_Table_13[[#This Row],[Item ID]],Analysis_Table,14,FALSE)","v":{"$error":"#N/A"}},{"$f":"VLOOKUP(Table_Data_Table_13[[#This Row],[Item ID]],Analysis_Table,15,FALSE)","v":{"$error":"#N/A"}},{"$f":"VLOOKUP(Table_Data_Table_13[[#This Row],[Item ID]],Analysis_Table,16,FALSE)","v":{"$error":"#N/A"}},{"$f":"VLOOKUP(Table_Data_Table_13[[#This Row],[Item ID]],Analysis_Table,17,FALSE)","v":{"$error":"#N/A"}},{"$f":"VLOOKUP(Table_Data_Table_13[[#This Row],[Item ID]],Analysis_Table,18,FALSE)","v":{"$error":"#N/A"}},{"$f":"VLOOKUP(Table_Data_Table_13[[#This Row],[Item ID]],Analysis_Table,19,FALSE)","v":{"$error":"#N/A"}},null,null,1]
["",null,null,null,null,null,null,null,null,0,null,null,null,{"$f":"VLOOKUP(Table_Data_Table_13[[#This Row],[Item ID]],Analysis_Table,8,FALSE)","v":{"$error":"#N/A"}},{"$f":"VLOOKUP(Table_Data_Table_13[[#This Row],[Item ID]],Analysis_Table,9,FALSE)","v":{"$error":"#N/A"}},{"$f":"VLOOKUP(Table_Data_Table_13[[#This Row],[Item ID]],Analysis_Table,10,FALSE)","v":{"$error":"#N/A"}},{"$f":"VLOOKUP(Table_Data_Table_13[[#This Row],[Item ID]],Analysis_Table,11,FALSE)","v":{"$error":"#N/A"}},{"$f":"VLOOKUP(Table_Data_Table_13[[#This Row],[Item ID]],Analysis_Table,12,FALSE)","v":{"$error":"#N/A"}},{"$f":"VLOOKUP(Table_Data_Table_13[[#This Row],[Item ID]],Analysis_Table,13,FALSE)","v":{"$error":"#N/A"}},{"$f":"VLOOKUP(Table_Data_Table_13[[#This Row],[Item ID]],Analysis_Table,14,FALSE)","v":{"$error":"#N/A"}},{"$f":"VLOOKUP(Table_Data_Table_13[[#This Row],[Item ID]],Analysis_Table,15,FALSE)","v":{"$error":"#N/A"}},{"$f":"VLOOKUP(Table_Data_Table_13[[#This Row],[Item ID]],Analysis_Table,16,FALSE)","v":{"$error":"#N/A"}},{"$f":"VLOOKUP(Table_Data_Table_13[[#This Row],[Item ID]],Analysis_Table,17,FALSE)","v":{"$error":"#N/A"}},{"$f":"VLOOKUP(Table_Data_Table_13[[#This Row],[Item ID]],Analysis_Table,18,FALSE)","v":{"$error":"#N/A"}},{"$f":"VLOOKUP(Table_Data_Table_13[[#This Row],[Item ID]],Analysis_Table,19,FALSE)","v":{"$error":"#N/A"}},null,null,1]
["",null,null,null,null,null,null,null,null,0,null,null,null,{"$f":"VLOOKUP(Table_Data_Table_13[[#This Row],[Item ID]],Analysis_Table,8,FALSE)","v":{"$error":"#N/A"}},{"$f":"VLOOKUP(Table_Data_Table_13[[#This Row],[Item ID]],Analysis_Table,9,FALSE)","v":{"$error":"#N/A"}},{"$f":"VLOOKUP(Table_Data_Table_13[[#This Row],[Item ID]],Analysis_Table,10,FALSE)","v":{"$error":"#N/A"}},{"$f":"VLOOKUP(Table_Data_Table_13[[#This Row],[Item ID]],Analysis_Table,11,FALSE)","v":{"$error":"#N/A"}},{"$f":"VLOOKUP(Table_Data_Table_13[[#This Row],[Item ID]],Analysis_Table,12,FALSE)","v":{"$error":"#N/A"}},{"$f":"VLOOKUP(Table_Data_Table_13[[#This Row],[Item ID]],Analysis_Table,13,FALSE)","v":{"$error":"#N/A"}},{"$f":"VLOOKUP(Table_Data_Table_13[[#This Row],[Item ID]],Analysis_Table,14,FALSE)","v":{"$error":"#N/A"}},{"$f":"VLOOKUP(Table_Data_Table_13[[#This Row],[Item ID]],Analysis_Table,15,FALSE)","v":{"$error":"#N/A"}},{"$f":"VLOOKUP(Table_Data_Table_13[[#This Row],[Item ID]],Analysis_Table,16,FALSE)","v":{"$error":"#N/A"}},{"$f":"VLOOKUP(Table_Data_Table_13[[#This Row],[Item ID]],Analysis_Table,17,FALSE)","v":{"$error":"#N/A"}},{"$f":"VLOOKUP(Table_Data_Table_13[[#This Row],[Item ID]],Analysis_Table,18,FALSE)","v":{"$error":"#N/A"}},{"$f":"VLOOKUP(Table_Data_Table_13[[#This Row],[Item ID]],Analysis_Table,19,FALSE)","v":{"$error":"#N/A"}},null,null,1]
["",null,null,null,null,null,null,null,null,0,null,null,null,{"$f":"VLOOKUP(Table_Data_Table_13[[#This Row],[Item ID]],Analysis_Table,8,FALSE)","v":{"$error":"#N/A"}},{"$f":"VLOOKUP(Table_Data_Table_13[[#This Row],[Item ID]],Analysis_Table,9,FALSE)","v":{"$error":"#N/A"}},{"$f":"VLOOKUP(Table_Data_Table_13[[#This Row],[Item ID]],Analysis_Table,10,FALSE)","v":{"$error":"#N/A"}},{"$f":"VLOOKUP(Table_Data_Table_13[[#This Row],[Item ID]],Analysis_Table,11,FALSE)","v":{"$error":"#N/A"}},{"$f":"VLOOKUP(Table_Data_Table_13[[#This Row],[Item ID]],Analysis_Table,12,FALSE)","v":{"$error":"#N/A"}},{"$f":"VLOOKUP(Table_Data_Table_13[[#This Row],[Item ID]],Analysis_Table,13,FALSE)","v":{"$error":"#N/A"}},{"$f":"VLOOKUP(Table_Data_Table_13[[#This Row],[Item ID]],Analysis_Table,14,FALSE)","v":{"$error":"#N/A"}},{"$f":"VLOOKUP(Table_Data_Table_13[[#This Row],[Item ID]],Analysis_Table,15,FALSE)","v":{"$error":"#N/A"}},{"$f":"VLOOKUP(Table_Data_Table_13[[#This Row],[Item ID]],Analysis_Table,16,FALSE)","v":{"$error":"#N/A"}},{"$f":"VLOOKUP(Table_Data_Table_13[[#This Row],[Item ID]],Analysis_Table,17,FALSE)","v":{"$error":"#N/A"}},{"$f":"VLOOKUP(Table_Data_Table_13[[#This Row],[Item ID]],Analysis_Table,18,FALSE)","v":{"$error":"#N/A"}},{"$f":"VLOOKUP(Table_Data_Table_13[[#This Row],[Item ID]],Analysis_Table,19,FALSE)","v":{"$error":"#N/A"}},null,null,1]
["",null,null,null,null,null,null,null,null,0,null,null,null,{"$f":"VLOOKUP(Table_Data_Table_13[[#This Row],[Item ID]],Analysis_Table,8,FALSE)","v":{"$error":"#N/A"}},{"$f":"VLOOKUP(Table_Data_Table_13[[#This Row],[Item ID]],Analysis_Table,9,FALSE)","v":{"$error":"#N/A"}},{"$f":"VLOOKUP(Table_Data_Table_13[[#This Row],[Item ID]],Analysis_Table,10,FALSE)","v":{"$error":"#N/A"}},{"$f":"VLOOKUP(Table_Data_Table_13[[#This Row],[Item ID]],Analysis_Table,11,FALSE)","v":{"$error":"#N/A"}},{"$f":"VLOOKUP(Table_Data_Table_13[[#This Row],[Item ID]],Analysis_Table,12,FALSE)","v":{"$error":"#N/A"}},{"$f":"VLOOKUP(Table_Data_Table_13[[#This Row],[Item ID]],Analysis_Table,13,FALSE)","v":{"$error":"#N/A"}},{"$f":"VLOOKUP(Table_Data_Table_13[[#This Row],[Item ID]],Analysis_Table,14,FALSE)","v":{"$error":"#N/A"}},{"$f":"VLOOKUP(Table_Data_Table_13[[#This Row],[Item ID]],Analysis_Table,15,FALSE)","v":{"$error":"#N/A"}},{"$f":"VLOOKUP(Table_Data_Table_13[[#This Row],[Item ID]],Analysis_Table,16,FALSE)","v":{"$error":"#N/A"}},{"$f":"VLOOKUP(Table_Data_Table_13[[#This Row],[Item ID]],Analysis_Table,17,FALSE)","v":{"$error":"#N/A"}},{"$f":"VLOOKUP(Table_Data_Table_13[[#This Row],[Item ID]],Analysis_Table,18,FALSE)","v":{"$error":"#N/A"}},{"$f":"VLOOKUP(Table_Data_Table_13[[#This Row],[Item ID]],Analysis_Table,19,FALSE)","v":{"$error":"#N/A"}},null,null,1]
["",null,null,null,null,null,null,null,null,0,null,null,null,{"$f":"VLOOKUP(Table_Data_Table_13[[#This Row],[Item ID]],Analysis_Table,8,FALSE)","v":{"$error":"#N/A"}},{"$f":"VLOOKUP(Table_Data_Table_13[[#This Row],[Item ID]],Analysis_Table,9,FALSE)","v":{"$error":"#N/A"}},{"$f":"VLOOKUP(Table_Data_Table_13[[#This Row],[Item ID]],Analysis_Table,10,FALSE)","v":{"$error":"#N/A"}},{"$f":"VLOOKUP(Table_Data_Table_13[[#This Row],[Item ID]],Analysis_Table,11,FALSE)","v":{"$error":"#N/A"}},{"$f":"VLOOKUP(Table_Data_Table_13[[#This Row],[Item ID]],Analysis_Table,12,FALSE)","v":{"$error":"#N/A"}},{"$f":"VLOOKUP(Table_Data_Table_13[[#This Row],[Item ID]],Analysis_Table,13,FALSE)","v":{"$error":"#N/A"}},{"$f":"VLOOKUP(Table_Data_Table_13[[#This Row],[Item ID]],Analysis_Table,14,FALSE)","v":{"$error":"#N/A"}},{"$f":"VLOOKUP(Table_Data_Table_13[[#This Row],[Item ID]],Analysis_Table,15,FALSE)","v":{"$error":"#N/A"}},{"$f":"VLOOKUP(Table_Data_Table_13[[#This Row],[Item ID]],Analysis_Table,16,FALSE)","v":{"$error":"#N/A"}},{"$f":"VLOOKUP(Table_Data_Table_13[[#This Row],[Item ID]],Analysis_Table,17,FALSE)","v":{"$error":"#N/A"}},{"$f":"VLOOKUP(Table_Data_Table_13[[#This Row],[Item ID]],Analysis_Table,18,FALSE)","v":{"$error":"#N/A"}},{"$f":"VLOOKUP(Table_Data_Table_13[[#This Row],[Item ID]],Analysis_Table,19,FALSE)","v":{"$error":"#N/A"}},null,null,1]
["",null,null,null,null,null,null,null,null,0,null,null,null,{"$f":"VLOOKUP(Table_Data_Table_13[[#This Row],[Item ID]],Analysis_Table,8,FALSE)","v":{"$error":"#N/A"}},{"$f":"VLOOKUP(Table_Data_Table_13[[#This Row],[Item ID]],Analysis_Table,9,FALSE)","v":{"$error":"#N/A"}},{"$f":"VLOOKUP(Table_Data_Table_13[[#This Row],[Item ID]],Analysis_Table,10,FALSE)","v":{"$error":"#N/A"}},{"$f":"VLOOKUP(Table_Data_Table_13[[#This Row],[Item ID]],Analysis_Table,11,FALSE)","v":{"$error":"#N/A"}},{"$f":"VLOOKUP(Table_Data_Table_13[[#This Row],[Item ID]],Analysis_Table,12,FALSE)","v":{"$error":"#N/A"}},{"$f":"VLOOKUP(Table_Data_Table_13[[#This Row],[Item ID]],Analysis_Table,13,FALSE)","v":{"$error":"#N/A"}},{"$f":"VLOOKUP(Table_Data_Table_13[[#This Row],[Item ID]],Analysis_Table,14,FALSE)","v":{"$error":"#N/A"}},{"$f":"VLOOKUP(Table_Data_Table_13[[#This Row],[Item ID]],Analysis_Table,15,FALSE)","v":{"$error":"#N/A"}},{"$f":"VLOOKUP(Table_Data_Table_13[[#This Row],[Item ID]],Analysis_Table,16,FALSE)","v":{"$error":"#N/A"}},{"$f":"VLOOKUP(Table_Data_Table_13[[#This Row],[Item ID]],Analysis_Table,17,FALSE)","v":{"$error":"#N/A"}},{"$f":"VLOOKUP(Table_Data_Table_13[[#This Row],[Item ID]],Analysis_Table,18,FALSE)","v":{"$error":"#N/A"}},{"$f":"VLOOKUP(Table_Data_Table_13[[#This Row],[Item ID]],Analysis_Table,19,FALSE)","v":{"$error":"#N/A"}},null,null,1]
["",null,null,null,null,null,null,null,null,0,null,null,null,{"$f":"VLOOKUP(Table_Data_Table_13[[#This Row],[Item ID]],Analysis_Table,8,FALSE)","v":{"$error":"#N/A"}},{"$f":"VLOOKUP(Table_Data_Table_13[[#This Row],[Item ID]],Analysis_Table,9,FALSE)","v":{"$error":"#N/A"}},{"$f":"VLOOKUP(Table_Data_Table_13[[#This Row],[Item ID]],Analysis_Table,10,FALSE)","v":{"$error":"#N/A"}},{"$f":"VLOOKUP(Table_Data_Table_13[[#This Row],[Item ID]],Analysis_Table,11,FALSE)","v":{"$error":"#N/A"}},{"$f":"VLOOKUP(Table_Data_Table_13[[#This Row],[Item ID]],Analysis_Table,12,FALSE)","v":{"$error":"#N/A"}},{"$f":"VLOOKUP(Table_Data_Table_13[[#This Row],[Item ID]],Analysis_Table,13,FALSE)","v":{"$error":"#N/A"}},{"$f":"VLOOKUP(Table_Data_Table_13[[#This Row],[Item ID]],Analysis_Table,14,FALSE)","v":{"$error":"#N/A"}},{"$f":"VLOOKUP(Table_Data_Table_13[[#This Row],[Item ID]],Analysis_Table,15,FALSE)","v":{"$error":"#N/A"}},{"$f":"VLOOKUP(Table_Data_Table_13[[#This Row],[Item ID]],Analysis_Table,16,FALSE)","v":{"$error":"#N/A"}},{"$f":"VLOOKUP(Table_Data_Table_13[[#This Row],[Item ID]],Analysis_Table,17,FALSE)","v":{"$error":"#N/A"}},{"$f":"VLOOKUP(Table_Data_Table_13[[#This Row],[Item ID]],Analysis_Table,18,FALSE)","v":{"$error":"#N/A"}},{"$f":"VLOOKUP(Table_Data_Table_13[[#This Row],[Item ID]],Analysis_Table,19,FALSE)","v":{"$error":"#N/A"}},null,null,1]
["",null,null,null,null,null,null,null,null,0,null,null,null,{"$f":"VLOOKUP(Table_Data_Table_13[[#This Row],[Item ID]],Analysis_Table,8,FALSE)","v":{"$error":"#N/A"}},{"$f":"VLOOKUP(Table_Data_Table_13[[#This Row],[Item ID]],Analysis_Table,9,FALSE)","v":{"$error":"#N/A"}},{"$f":"VLOOKUP(Table_Data_Table_13[[#This Row],[Item ID]],Analysis_Table,10,FALSE)","v":{"$error":"#N/A"}},{"$f":"VLOOKUP(Table_Data_Table_13[[#This Row],[Item ID]],Analysis_Table,11,FALSE)","v":{"$error":"#N/A"}},{"$f":"VLOOKUP(Table_Data_Table_13[[#This Row],[Item ID]],Analysis_Table,12,FALSE)","v":{"$error":"#N/A"}},{"$f":"VLOOKUP(Table_Data_Table_13[[#This Row],[Item ID]],Analysis_Table,13,FALSE)","v":{"$error":"#N/A"}},{"$f":"VLOOKUP(Table_Data_Table_13[[#This Row],[Item ID]],Analysis_Table,14,FALSE)","v":{"$error":"#N/A"}},{"$f":"VLOOKUP(Table_Data_Table_13[[#This Row],[Item ID]],Analysis_Table,15,FALSE)","v":{"$error":"#N/A"}},{"$f":"VLOOKUP(Table_Data_Table_13[[#This Row],[Item ID]],Analysis_Table,16,FALSE)","v":{"$error":"#N/A"}},{"$f":"VLOOKUP(Table_Data_Table_13[[#This Row],[Item ID]],Analysis_Table,17,FALSE)","v":{"$error":"#N/A"}},{"$f":"VLOOKUP(Table_Data_Table_13[[#This Row],[Item ID]],Analysis_Table,18,FALSE)","v":{"$error":"#N/A"}},{"$f":"VLOOKUP(Table_Data_Table_13[[#This Row],[Item ID]],Analysis_Table,19,FALSE)","v":{"$error":"#N/A"}},null,null,1]
["",null,null,null,null,null,null,null,null,0,null,null,null,{"$f":"VLOOKUP(Table_Data_Table_13[[#This Row],[Item ID]],Analysis_Table,8,FALSE)","v":{"$error":"#N/A"}},{"$f":"VLOOKUP(Table_Data_Table_13[[#This Row],[Item ID]],Analysis_Table,9,FALSE)","v":{"$error":"#N/A"}},{"$f":"VLOOKUP(Table_Data_Table_13[[#This Row],[Item ID]],Analysis_Table,10,FALSE)","v":{"$error":"#N/A"}},{"$f":"VLOOKUP(Table_Data_Table_13[[#This Row],[Item ID]],Analysis_Table,11,FALSE)","v":{"$error":"#N/A"}},{"$f":"VLOOKUP(Table_Data_Table_13[[#This Row],[Item ID]],Analysis_Table,12,FALSE)","v":{"$error":"#N/A"}},{"$f":"VLOOKUP(Table_Data_Table_13[[#This Row],[Item ID]],Analysis_Table,13,FALSE)","v":{"$error":"#N/A"}},{"$f":"VLOOKUP(Table_Data_Table_13[[#This Row],[Item ID]],Analysis_Table,14,FALSE)","v":{"$error":"#N/A"}},{"$f":"VLOOKUP(Table_Data_Table_13[[#This Row],[Item ID]],Analysis_Table,15,FALSE)","v":{"$error":"#N/A"}},{"$f":"VLOOKUP(Table_Data_Table_13[[#This Row],[Item ID]],Analysis_Table,16,FALSE)","v":{"$error":"#N/A"}},{"$f":"VLOOKUP(Table_Data_Table_13[[#This Row],[Item ID]],Analysis_Table,17,FALSE)","v":{"$error":"#N/A"}},{"$f":"VLOOKUP(Table_Data_Table_13[[#This Row],[Item ID]],Analysis_Table,18,FALSE)","v":{"$error":"#N/A"}},{"$f":"VLOOKUP(Table_Data_Table_13[[#This Row],[Item ID]],Analysis_Table,19,FALSE)","v":{"$error":"#N/A"}},null,null,1]
["",null,null,null,null,null,null,null,null,0,null,null,null,{"$f":"VLOOKUP(Table_Data_Table_13[[#This Row],[Item ID]],Analysis_Table,8,FALSE)","v":{"$error":"#N/A"}},{"$f":"VLOOKUP(Table_Data_Table_13[[#This Row],[Item ID]],Analysis_Table,9,FALSE)","v":{"$error":"#N/A"}},{"$f":"VLOOKUP(Table_Data_Table_13[[#This Row],[Item ID]],Analysis_Table,10,FALSE)","v":{"$error":"#N/A"}},{"$f":"VLOOKUP(Table_Data_Table_13[[#This Row],[Item ID]],Analysis_Table,11,FALSE)","v":{"$error":"#N/A"}},{"$f":"VLOOKUP(Table_Data_Table_13[[#This Row],[Item ID]],Analysis_Table,12,FALSE)","v":{"$error":"#N/A"}},{"$f":"VLOOKUP(Table_Data_Table_13[[#This Row],[Item ID]],Analysis_Table,13,FALSE)","v":{"$error":"#N/A"}},{"$f":"VLOOKUP(Table_Data_Table_13[[#This Row],[Item ID]],Analysis_Table,14,FALSE)","v":{"$error":"#N/A"}},{"$f":"VLOOKUP(Table_Data_Table_13[[#This Row],[Item ID]],Analysis_Table,15,FALSE)","v":{"$error":"#N/A"}},{"$f":"VLOOKUP(Table_Data_Table_13[[#This Row],[Item ID]],Analysis_Table,16,FALSE)","v":{"$error":"#N/A"}},{"$f":"VLOOKUP(Table_Data_Table_13[[#This Row],[Item ID]],Analysis_Table,17,FALSE)","v":{"$error":"#N/A"}},{"$f":"VLOOKUP(Table_Data_Table_13[[#This Row],[Item ID]],Analysis_Table,18,FALSE)","v":{"$error":"#N/A"}},{"$f":"VLOOKUP(Table_Data_Table_13[[#This Row],[Item ID]],Analysis_Table,19,FALSE)","v":{"$error":"#N/A"}},null,null,1]
["",null,null,null,null,null,null,null,null,0,null,null,null,{"$f":"VLOOKUP(Table_Data_Table_13[[#This Row],[Item ID]],Analysis_Table,8,FALSE)","v":{"$error":"#N/A"}},{"$f":"VLOOKUP(Table_Data_Table_13[[#This Row],[Item ID]],Analysis_Table,9,FALSE)","v":{"$error":"#N/A"}},{"$f":"VLOOKUP(Table_Data_Table_13[[#This Row],[Item ID]],Analysis_Table,10,FALSE)","v":{"$error":"#N/A"}},{"$f":"VLOOKUP(Table_Data_Table_13[[#This Row],[Item ID]],Analysis_Table,11,FALSE)","v":{"$error":"#N/A"}},{"$f":"VLOOKUP(Table_Data_Table_13[[#This Row],[Item ID]],Analysis_Table,12,FALSE)","v":{"$error":"#N/A"}},{"$f":"VLOOKUP(Table_Data_Table_13[[#This Row],[Item ID]],Analysis_Table,13,FALSE)","v":{"$error":"#N/A"}},{"$f":"VLOOKUP(Table_Data_Table_13[[#This Row],[Item ID]],Analysis_Table,14,FALSE)","v":{"$error":"#N/A"}},{"$f":"VLOOKUP(Table_Data_Table_13[[#This Row],[Item ID]],Analysis_Table,15,FALSE)","v":{"$error":"#N/A"}},{"$f":"VLOOKUP(Table_Data_Table_13[[#This Row],[Item ID]],Analysis_Table,16,FALSE)","v":{"$error":"#N/A"}},{"$f":"VLOOKUP(Table_Data_Table_13[[#This Row],[Item ID]],Analysis_Table,17,FALSE)","v":{"$error":"#N/A"}},{"$f":"VLOOKUP(Table_Data_Table_13[[#This Row],[Item ID]],Analysis_Table,18,FALSE)","v":{"$error":"#N/A"}},{"$f":"VLOOKUP(Table_Data_Table_13[[#This Row],[Item ID]],Analysis_Table,19,FALSE)","v":{"$error":"#N/A"}},null,null,1]
["",null,null,null,null,null,null,null,null,0,null,null,null,{"$f":"VLOOKUP(Table_Data_Table_13[[#This Row],[Item ID]],Analysis_Table,8,FALSE)","v":{"$error":"#N/A"}},{"$f":"VLOOKUP(Table_Data_Table_13[[#This Row],[Item ID]],Analysis_Table,9,FALSE)","v":{"$error":"#N/A"}},{"$f":"VLOOKUP(Table_Data_Table_13[[#This Row],[Item ID]],Analysis_Table,10,FALSE)","v":{"$error":"#N/A"}},{"$f":"VLOOKUP(Table_Data_Table_13[[#This Row],[Item ID]],Analysis_Table,11,FALSE)","v":{"$error":"#N/A"}},{"$f":"VLOOKUP(Table_Data_Table_13[[#This Row],[Item ID]],Analysis_Table,12,FALSE)","v":{"$error":"#N/A"}},{"$f":"VLOOKUP(Table_Data_Table_13[[#This Row],[Item ID]],Analysis_Table,13,FALSE)","v":{"$error":"#N/A"}},{"$f":"VLOOKUP(Table_Data_Table_13[[#This Row],[Item ID]],Analysis_Table,14,FALSE)","v":{"$error":"#N/A"}},{"$f":"VLOOKUP(Table_Data_Table_13[[#This Row],[Item ID]],Analysis_Table,15,FALSE)","v":{"$error":"#N/A"}},{"$f":"VLOOKUP(Table_Data_Table_13[[#This Row],[Item ID]],Analysis_Table,16,FALSE)","v":{"$error":"#N/A"}},{"$f":"VLOOKUP(Table_Data_Table_13[[#This Row],[Item ID]],Analysis_Table,17,FALSE)","v":{"$error":"#N/A"}},{"$f":"VLOOKUP(Table_Data_Table_13[[#This Row],[Item ID]],Analysis_Table,18,FALSE)","v":{"$error":"#N/A"}},{"$f":"VLOOKUP(Table_Data_Table_13[[#This Row],[Item ID]],Analysis_Table,19,FALSE)","v":{"$error":"#N/A"}},null,null,1]
["",null,null,null,null,null,null,null,null,0,null,null,null,{"$f":"VLOOKUP(Table_Data_Table_13[[#This Row],[Item ID]],Analysis_Table,8,FALSE)","v":{"$error":"#N/A"}},{"$f":"VLOOKUP(Table_Data_Table_13[[#This Row],[Item ID]],Analysis_Table,9,FALSE)","v":{"$error":"#N/A"}},{"$f":"VLOOKUP(Table_Data_Table_13[[#This Row],[Item ID]],Analysis_Table,10,FALSE)","v":{"$error":"#N/A"}},{"$f":"VLOOKUP(Table_Data_Table_13[[#This Row],[Item ID]],Analysis_Table,11,FALSE)","v":{"$error":"#N/A"}},{"$f":"VLOOKUP(Table_Data_Table_13[[#This Row],[Item ID]],Analysis_Table,12,FALSE)","v":{"$error":"#N/A"}},{"$f":"VLOOKUP(Table_Data_Table_13[[#This Row],[Item ID]],Analysis_Table,13,FALSE)","v":{"$error":"#N/A"}},{"$f":"VLOOKUP(Table_Data_Table_13[[#This Row],[Item ID]],Analysis_Table,14,FALSE)","v":{"$error":"#N/A"}},{"$f":"VLOOKUP(Table_Data_Table_13[[#This Row],[Item ID]],Analysis_Table,15,FALSE)","v":{"$error":"#N/A"}},{"$f":"VLOOKUP(Table_Data_Table_13[[#This Row],[Item ID]],Analysis_Table,16,FALSE)","v":{"$error":"#N/A"}},{"$f":"VLOOKUP(Table_Data_Table_13[[#This Row],[Item ID]],Analysis_Table,17,FALSE)","v":{"$error":"#N/A"}},{"$f":"VLOOKUP(Table_Data_Table_13[[#This Row],[Item ID]],Analysis_Table,18,FALSE)","v":{"$error":"#N/A"}},{"$f":"VLOOKUP(Table_Data_Table_13[[#This Row],[Item ID]],Analysis_Table,19,FALSE)","v":{"$error":"#N/A"}},null,null,1]
["",null,null,null,null,null,null,null,null,0,null,null,null,{"$f":"VLOOKUP(Table_Data_Table_13[[#This Row],[Item ID]],Analysis_Table,8,FALSE)","v":{"$error":"#N/A"}},{"$f":"VLOOKUP(Table_Data_Table_13[[#This Row],[Item ID]],Analysis_Table,9,FALSE)","v":{"$error":"#N/A"}},{"$f":"VLOOKUP(Table_Data_Table_13[[#This Row],[Item ID]],Analysis_Table,10,FALSE)","v":{"$error":"#N/A"}},{"$f":"VLOOKUP(Table_Data_Table_13[[#This Row],[Item ID]],Analysis_Table,11,FALSE)","v":{"$error":"#N/A"}},{"$f":"VLOOKUP(Table_Data_Table_13[[#This Row],[Item ID]],Analysis_Table,12,FALSE)","v":{"$error":"#N/A"}},{"$f":"VLOOKUP(Table_Data_Table_13[[#This Row],[Item ID]],Analysis_Table,13,FALSE)","v":{"$error":"#N/A"}},{"$f":"VLOOKUP(Table_Data_Table_13[[#This Row],[Item ID]],Analysis_Table,14,FALSE)","v":{"$error":"#N/A"}},{"$f":"VLOOKUP(Table_Data_Table_13[[#This Row],[Item ID]],Analysis_Table,15,FALSE)","v":{"$error":"#N/A"}},{"$f":"VLOOKUP(Table_Data_Table_13[[#This Row],[Item ID]],Analysis_Table,16,FALSE)","v":{"$error":"#N/A"}},{"$f":"VLOOKUP(Table_Data_Table_13[[#This Row],[Item ID]],Analysis_Table,17,FALSE)","v":{"$error":"#N/A"}},{"$f":"VLOOKUP(Table_Data_Table_13[[#This Row],[Item ID]],Analysis_Table,18,FALSE)","v":{"$error":"#N/A"}},{"$f":"VLOOKUP(Table_Data_Table_13[[#This Row],[Item ID]],Analysis_Table,19,FALSE)","v":{"$error":"#N/A"}},null,null,1]
["",null,null,null,null,null,null,null,null,0,null,null,null,{"$f":"VLOOKUP(Table_Data_Table_13[[#This Row],[Item ID]],Analysis_Table,8,FALSE)","v":{"$error":"#N/A"}},{"$f":"VLOOKUP(Table_Data_Table_13[[#This Row],[Item ID]],Analysis_Table,9,FALSE)","v":{"$error":"#N/A"}},{"$f":"VLOOKUP(Table_Data_Table_13[[#This Row],[Item ID]],Analysis_Table,10,FALSE)","v":{"$error":"#N/A"}},{"$f":"VLOOKUP(Table_Data_Table_13[[#This Row],[Item ID]],Analysis_Table,11,FALSE)","v":{"$error":"#N/A"}},{"$f":"VLOOKUP(Table_Data_Table_13[[#This Row],[Item ID]],Analysis_Table,12,FALSE)","v":{"$error":"#N/A"}},{"$f":"VLOOKUP(Table_Data_Table_13[[#This Row],[Item ID]],Analysis_Table,13,FALSE)","v":{"$error":"#N/A"}},{"$f":"VLOOKUP(Table_Data_Table_13[[#This Row],[Item ID]],Analysis_Table,14,FALSE)","v":{"$error":"#N/A"}},{"$f":"VLOOKUP(Table_Data_Table_13[[#This Row],[Item ID]],Analysis_Table,15,FALSE)","v":{"$error":"#N/A"}},{"$f":"VLOOKUP(Table_Data_Table_13[[#This Row],[Item ID]],Analysis_Table,16,FALSE)","v":{"$error":"#N/A"}},{"$f":"VLOOKUP(Table_Data_Table_13[[#This Row],[Item ID]],Analysis_Table,17,FALSE)","v":{"$error":"#N/A"}},{"$f":"VLOOKUP(Table_Data_Table_13[[#This Row],[Item ID]],Analysis_Table,18,FALSE)","v":{"$error":"#N/A"}},{"$f":"VLOOKUP(Table_Data_Table_13[[#This Row],[Item ID]],Analysis_Table,19,FALSE)","v":{"$error":"#N/A"}},null,null,1]
["",null,null,null,null,null,null,null,null,0,null,null,null,{"$f":"VLOOKUP(Table_Data_Table_13[[#This Row],[Item ID]],Analysis_Table,8,FALSE)","v":{"$error":"#N/A"}},{"$f":"VLOOKUP(Table_Data_Table_13[[#This Row],[Item ID]],Analysis_Table,9,FALSE)","v":{"$error":"#N/A"}},{"$f":"VLOOKUP(Table_Data_Table_13[[#This Row],[Item ID]],Analysis_Table,10,FALSE)","v":{"$error":"#N/A"}},{"$f":"VLOOKUP(Table_Data_Table_13[[#This Row],[Item ID]],Analysis_Table,11,FALSE)","v":{"$error":"#N/A"}},{"$f":"VLOOKUP(Table_Data_Table_13[[#This Row],[Item ID]],Analysis_Table,12,FALSE)","v":{"$error":"#N/A"}},{"$f":"VLOOKUP(Table_Data_Table_13[[#This Row],[Item ID]],Analysis_Table,13,FALSE)","v":{"$error":"#N/A"}},{"$f":"VLOOKUP(Table_Data_Table_13[[#This Row],[Item ID]],Analysis_Table,14,FALSE)","v":{"$error":"#N/A"}},{"$f":"VLOOKUP(Table_Data_Table_13[[#This Row],[Item ID]],Analysis_Table,15,FALSE)","v":{"$error":"#N/A"}},{"$f":"VLOOKUP(Table_Data_Table_13[[#This Row],[Item ID]],Analysis_Table,16,FALSE)","v":{"$error":"#N/A"}},{"$f":"VLOOKUP(Table_Data_Table_13[[#This Row],[Item ID]],Analysis_Table,17,FALSE)","v":{"$error":"#N/A"}},{"$f":"VLOOKUP(Table_Data_Table_13[[#This Row],[Item ID]],Analysis_Table,18,FALSE)","v":{"$error":"#N/A"}},{"$f":"VLOOKUP(Table_Data_Table_13[[#This Row],[Item ID]],Analysis_Table,19,FALSE)","v":{"$error":"#N/A"}},null,null,1]
["",null,null,null,null,null,null,null,null,0,null,null,null,{"$f":"VLOOKUP(Table_Data_Table_13[[#This Row],[Item ID]],Analysis_Table,8,FALSE)","v":{"$error":"#N/A"}},{"$f":"VLOOKUP(Table_Data_Table_13[[#This Row],[Item ID]],Analysis_Table,9,FALSE)","v":{"$error":"#N/A"}},{"$f":"VLOOKUP(Table_Data_Table_13[[#This Row],[Item ID]],Analysis_Table,10,FALSE)","v":{"$error":"#N/A"}},{"$f":"VLOOKUP(Table_Data_Table_13[[#This Row],[Item ID]],Analysis_Table,11,FALSE)","v":{"$error":"#N/A"}},{"$f":"VLOOKUP(Table_Data_Table_13[[#This Row],[Item ID]],Analysis_Table,12,FALSE)","v":{"$error":"#N/A"}},{"$f":"VLOOKUP(Table_Data_Table_13[[#This Row],[Item ID]],Analysis_Table,13,FALSE)","v":{"$error":"#N/A"}},{"$f":"VLOOKUP(Table_Data_Table_13[[#This Row],[Item ID]],Analysis_Table,14,FALSE)","v":{"$error":"#N/A"}},{"$f":"VLOOKUP(Table_Data_Table_13[[#This Row],[Item ID]],Analysis_Table,15,FALSE)","v":{"$error":"#N/A"}},{"$f":"VLOOKUP(Table_Data_Table_13[[#This Row],[Item ID]],Analysis_Table,16,FALSE)","v":{"$error":"#N/A"}},{"$f":"VLOOKUP(Table_Data_Table_13[[#This Row],[Item ID]],Analysis_Table,17,FALSE)","v":{"$error":"#N/A"}},{"$f":"VLOOKUP(Table_Data_Table_13[[#This Row],[Item ID]],Analysis_Table,18,FALSE)","v":{"$error":"#N/A"}},{"$f":"VLOOKUP(Table_Data_Table_13[[#This Row],[Item ID]],Analysis_Table,19,FALSE)","v":{"$error":"#N/A"}},null,null,1]
["",null,null,null,null,null,null,null,null,0,null,null,null,{"$f":"VLOOKUP(Table_Data_Table_13[[#This Row],[Item ID]],Analysis_Table,8,FALSE)","v":{"$error":"#N/A"}},{"$f":"VLOOKUP(Table_Data_Table_13[[#This Row],[Item ID]],Analysis_Table,9,FALSE)","v":{"$error":"#N/A"}},{"$f":"VLOOKUP(Table_Data_Table_13[[#This Row],[Item ID]],Analysis_Table,10,FALSE)","v":{"$error":"#N/A"}},{"$f":"VLOOKUP(Table_Data_Table_13[[#This Row],[Item ID]],Analysis_Table,11,FALSE)","v":{"$error":"#N/A"}},{"$f":"VLOOKUP(Table_Data_Table_13[[#This Row],[Item ID]],Analysis_Table,12,FALSE)","v":{"$error":"#N/A"}},{"$f":"VLOOKUP(Table_Data_Table_13[[#This Row],[Item ID]],Analysis_Table,13,FALSE)","v":{"$error":"#N/A"}},{"$f":"VLOOKUP(Table_Data_Table_13[[#This Row],[Item ID]],Analysis_Table,14,FALSE)","v":{"$error":"#N/A"}},{"$f":"VLOOKUP(Table_Data_Table_13[[#This Row],[Item ID]],Analysis_Table,15,FALSE)","v":{"$error":"#N/A"}},{"$f":"VLOOKUP(Table_Data_Table_13[[#This Row],[Item ID]],Analysis_Table,16,FALSE)","v":{"$error":"#N/A"}},{"$f":"VLOOKUP(Table_Data_Table_13[[#This Row],[Item ID]],Analysis_Table,17,FALSE)","v":{"$error":"#N/A"}},{"$f":"VLOOKUP(Table_Data_Table_13[[#This Row],[Item ID]],Analysis_Table,18,FALSE)","v":{"$error":"#N/A"}},{"$f":"VLOOKUP(Table_Data_Table_13[[#This Row],[Item ID]],Analysis_Table,19,FALSE)","v":{"$error":"#N/A"}},null,null,1]
["",null,null,null,null,null,null,null,null,0,null,null,null,{"$f":"VLOOKUP(Table_Data_Table_13[[#This Row],[Item ID]],Analysis_Table,8,FALSE)","v":{"$error":"#N/A"}},{"$f":"VLOOKUP(Table_Data_Table_13[[#This Row],[Item ID]],Analysis_Table,9,FALSE)","v":{"$error":"#N/A"}},{"$f":"VLOOKUP(Table_Data_Table_13[[#This Row],[Item ID]],Analysis_Table,10,FALSE)","v":{"$error":"#N/A"}},{"$f":"VLOOKUP(Table_Data_Table_13[[#This Row],[Item ID]],Analysis_Table,11,FALSE)","v":{"$error":"#N/A"}},{"$f":"VLOOKUP(Table_Data_Table_13[[#This Row],[Item ID]],Analysis_Table,12,FALSE)","v":{"$error":"#N/A"}},{"$f":"VLOOKUP(Table_Data_Table_13[[#This Row],[Item ID]],Analysis_Table,13,FALSE)","v":{"$error":"#N/A"}},{"$f":"VLOOKUP(Table_Data_Table_13[[#This Row],[Item ID]],Analysis_Table,14,FALSE)","v":{"$error":"#N/A"}},{"$f":"VLOOKUP(Table_Data_Table_13[[#This Row],[Item ID]],Analysis_Table,15,FALSE)","v":{"$error":"#N/A"}},{"$f":"VLOOKUP(Table_Data_Table_13[[#This Row],[Item ID]],Analysis_Table,16,FALSE)","v":{"$error":"#N/A"}},{"$f":"VLOOKUP(Table_Data_Table_13[[#This Row],[Item ID]],Analysis_Table,17,FALSE)","v":{"$error":"#N/A"}},{"$f":"VLOOKUP(Table_Data_Table_13[[#This Row],[Item ID]],Analysis_Table,18,FALSE)","v":{"$error":"#N/A"}},{"$f":"VLOOKUP(Table_Data_Table_13[[#This Row],[Item ID]],Analysis_Table,19,FALSE)","v":{"$error":"#N/A"}},null,null,1]
["",null,null,null,null,null,null,null,null,0,null,null,null,{"$f":"VLOOKUP(Table_Data_Table_13[[#This Row],[Item ID]],Analysis_Table,8,FALSE)","v":{"$error":"#N/A"}},{"$f":"VLOOKUP(Table_Data_Table_13[[#This Row],[Item ID]],Analysis_Table,9,FALSE)","v":{"$error":"#N/A"}},{"$f":"VLOOKUP(Table_Data_Table_13[[#This Row],[Item ID]],Analysis_Table,10,FALSE)","v":{"$error":"#N/A"}},{"$f":"VLOOKUP(Table_Data_Table_13[[#This Row],[Item ID]],Analysis_Table,11,FALSE)","v":{"$error":"#N/A"}},{"$f":"VLOOKUP(Table_Data_Table_13[[#This Row],[Item ID]],Analysis_Table,12,FALSE)","v":{"$error":"#N/A"}},{"$f":"VLOOKUP(Table_Data_Table_13[[#This Row],[Item ID]],Analysis_Table,13,FALSE)","v":{"$error":"#N/A"}},{"$f":"VLOOKUP(Table_Data_Table_13[[#This Row],[Item ID]],Analysis_Table,14,FALSE)","v":{"$error":"#N/A"}},{"$f":"VLOOKUP(Table_Data_Table_13[[#This Row],[Item ID]],Analysis_Table,15,FALSE)","v":{"$error":"#N/A"}},{"$f":"VLOOKUP(Table_Data_Table_13[[#This Row],[Item ID]],Analysis_Table,16,FALSE)","v":{"$error":"#N/A"}},{"$f":"VLOOKUP(Table_Data_Table_13[[#This Row],[Item ID]],Analysis_Table,17,FALSE)","v":{"$error":"#N/A"}},{"$f":"VLOOKUP(Table_Data_Table_13[[#This Row],[Item ID]],Analysis_Table,18,FALSE)","v":{"$error":"#N/A"}},{"$f":"VLOOKUP(Table_Data_Table_13[[#This Row],[Item ID]],Analysis_Table,19,FALSE)","v":{"$error":"#N/A"}},null,null,1]
["",null,null,null,null,null,null,null,null,0,null,null,null,{"$f":"VLOOKUP(Table_Data_Table_13[[#This Row],[Item ID]],Analysis_Table,8,FALSE)","v":{"$error":"#N/A"}},{"$f":"VLOOKUP(Table_Data_Table_13[[#This Row],[Item ID]],Analysis_Table,9,FALSE)","v":{"$error":"#N/A"}},{"$f":"VLOOKUP(Table_Data_Table_13[[#This Row],[Item ID]],Analysis_Table,10,FALSE)","v":{"$error":"#N/A"}},{"$f":"VLOOKUP(Table_Data_Table_13[[#This Row],[Item ID]],Analysis_Table,11,FALSE)","v":{"$error":"#N/A"}},{"$f":"VLOOKUP(Table_Data_Table_13[[#This Row],[Item ID]],Analysis_Table,12,FALSE)","v":{"$error":"#N/A"}},{"$f":"VLOOKUP(Table_Data_Table_13[[#This Row],[Item ID]],Analysis_Table,13,FALSE)","v":{"$error":"#N/A"}},{"$f":"VLOOKUP(Table_Data_Table_13[[#This Row],[Item ID]],Analysis_Table,14,FALSE)","v":{"$error":"#N/A"}},{"$f":"VLOOKUP(Table_Data_Table_13[[#This Row],[Item ID]],Analysis_Table,15,FALSE)","v":{"$error":"#N/A"}},{"$f":"VLOOKUP(Table_Data_Table_13[[#This Row],[Item ID]],Analysis_Table,16,FALSE)","v":{"$error":"#N/A"}},{"$f":"VLOOKUP(Table_Data_Table_13[[#This Row],[Item ID]],Analysis_Table,17,FALSE)","v":{"$error":"#N/A"}},{"$f":"VLOOKUP(Table_Data_Table_13[[#This Row],[Item ID]],Analysis_Table,18,FALSE)","v":{"$error":"#N/A"}},{"$f":"VLOOKUP(Table_Data_Table_13[[#This Row],[Item ID]],Analysis_Table,19,FALSE)","v":{"$error":"#N/A"}},null,null,1]
["",null,null,null,null,null,null,null,null,0,null,null,null,{"$f":"VLOOKUP(Table_Data_Table_13[[#This Row],[Item ID]],Analysis_Table,8,FALSE)","v":{"$error":"#N/A"}},{"$f":"VLOOKUP(Table_Data_Table_13[[#This Row],[Item ID]],Analysis_Table,9,FALSE)","v":{"$error":"#N/A"}},{"$f":"VLOOKUP(Table_Data_Table_13[[#This Row],[Item ID]],Analysis_Table,10,FALSE)","v":{"$error":"#N/A"}},{"$f":"VLOOKUP(Table_Data_Table_13[[#This Row],[Item ID]],Analysis_Table,11,FALSE)","v":{"$error":"#N/A"}},{"$f":"VLOOKUP(Table_Data_Table_13[[#This Row],[Item ID]],Analysis_Table,12,FALSE)","v":{"$error":"#N/A"}},{"$f":"VLOOKUP(Table_Data_Table_13[[#This Row],[Item ID]],Analysis_Table,13,FALSE)","v":{"$error":"#N/A"}},{"$f":"VLOOKUP(Table_Data_Table_13[[#This Row],[Item ID]],Analysis_Table,14,FALSE)","v":{"$error":"#N/A"}},{"$f":"VLOOKUP(Table_Data_Table_13[[#This Row],[Item ID]],Analysis_Table,15,FALSE)","v":{"$error":"#N/A"}},{"$f":"VLOOKUP(Table_Data_Table_13[[#This Row],[Item ID]],Analysis_Table,16,FALSE)","v":{"$error":"#N/A"}},{"$f":"VLOOKUP(Table_Data_Table_13[[#This Row],[Item ID]],Analysis_Table,17,FALSE)","v":{"$error":"#N/A"}},{"$f":"VLOOKUP(Table_Data_Table_13[[#This Row],[Item ID]],Analysis_Table,18,FALSE)","v":{"$error":"#N/A"}},{"$f":"VLOOKUP(Table_Data_Table_13[[#This Row],[Item ID]],Analysis_Table,19,FALSE)","v":{"$error":"#N/A"}},null,null,1]
["",null,null,null,null,null,null,null,null,0,null,null,null,{"$f":"VLOOKUP(Table_Data_Table_13[[#This Row],[Item ID]],Analysis_Table,8,FALSE)","v":{"$error":"#N/A"}},{"$f":"VLOOKUP(Table_Data_Table_13[[#This Row],[Item ID]],Analysis_Table,9,FALSE)","v":{"$error":"#N/A"}},{"$f":"VLOOKUP(Table_Data_Table_13[[#This Row],[Item ID]],Analysis_Table,10,FALSE)","v":{"$error":"#N/A"}},{"$f":"VLOOKUP(Table_Data_Table_13[[#This Row],[Item ID]],Analysis_Table,11,FALSE)","v":{"$error":"#N/A"}},{"$f":"VLOOKUP(Table_Data_Table_13[[#This Row],[Item ID]],Analysis_Table,12,FALSE)","v":{"$error":"#N/A"}},{"$f":"VLOOKUP(Table_Data_Table_13[[#This Row],[Item ID]],Analysis_Table,13,FALSE)","v":{"$error":"#N/A"}},{"$f":"VLOOKUP(Table_Data_Table_13[[#This Row],[Item ID]],Analysis_Table,14,FALSE)","v":{"$error":"#N/A"}},{"$f":"VLOOKUP(Table_Data_Table_13[[#This Row],[Item ID]],Analysis_Table,15,FALSE)","v":{"$error":"#N/A"}},{"$f":"VLOOKUP(Table_Data_Table_13[[#This Row],[Item ID]],Analysis_Table,16,FALSE)","v":{"$error":"#N/A"}},{"$f":"VLOOKUP(Table_Data_Table_13[[#This Row],[Item ID]],Analysis_Table,17,FALSE)","v":{"$error":"#N/A"}},{"$f":"VLOOKUP(Table_Data_Table_13[[#This Row],[Item ID]],Analysis_Table,18,FALSE)","v":{"$error":"#N/A"}},{"$f":"VLOOKUP(Table_Data_Table_13[[#This Row],[Item ID]],Analysis_Table,19,FALSE)","v":{"$error":"#N/A"}},null,null,1]
["",null,null,null,null,null,null,null,null,0,null,null,null,{"$f":"VLOOKUP(Table_Data_Table_13[[#This Row],[Item ID]],Analysis_Table,8,FALSE)","v":{"$error":"#N/A"}},{"$f":"VLOOKUP(Table_Data_Table_13[[#This Row],[Item ID]],Analysis_Table,9,FALSE)","v":{"$error":"#N/A"}},{"$f":"VLOOKUP(Table_Data_Table_13[[#This Row],[Item ID]],Analysis_Table,10,FALSE)","v":{"$error":"#N/A"}},{"$f":"VLOOKUP(Table_Data_Table_13[[#This Row],[Item ID]],Analysis_Table,11,FALSE)","v":{"$error":"#N/A"}},{"$f":"VLOOKUP(Table_Data_Table_13[[#This Row],[Item ID]],Analysis_Table,12,FALSE)","v":{"$error":"#N/A"}},{"$f":"VLOOKUP(Table_Data_Table_13[[#This Row],[Item ID]],Analysis_Table,13,FALSE)","v":{"$error":"#N/A"}},{"$f":"VLOOKUP(Table_Data_Table_13[[#This Row],[Item ID]],Analysis_Table,14,FALSE)","v":{"$error":"#N/A"}},{"$f":"VLOOKUP(Table_Data_Table_13[[#This Row],[Item ID]],Analysis_Table,15,FALSE)","v":{"$error":"#N/A"}},{"$f":"VLOOKUP(Table_Data_Table_13[[#This Row],[Item ID]],Analysis_Table,16,FALSE)","v":{"$error":"#N/A"}},{"$f":"VLOOKUP(Table_Data_Table_13[[#This Row],[Item ID]],Analysis_Table,17,FALSE)","v":{"$error":"#N/A"}},{"$f":"VLOOKUP(Table_Data_Table_13[[#This Row],[Item ID]],Analysis_Table,18,FALSE)","v":{"$error":"#N/A"}},{"$f":"VLOOKUP(Table_Data_Table_13[[#This Row],[Item ID]],Analysis_Table,19,FALSE)","v":{"$error":"#N/A"}},null,null,1]
["",null,null,null,null,null,null,null,null,0,null,null,null,{"$f":"VLOOKUP(Table_Data_Table_13[[#This Row],[Item ID]],Analysis_Table,8,FALSE)","v":{"$error":"#N/A"}},{"$f":"VLOOKUP(Table_Data_Table_13[[#This Row],[Item ID]],Analysis_Table,9,FALSE)","v":{"$error":"#N/A"}},{"$f":"VLOOKUP(Table_Data_Table_13[[#This Row],[Item ID]],Analysis_Table,10,FALSE)","v":{"$error":"#N/A"}},{"$f":"VLOOKUP(Table_Data_Table_13[[#This Row],[Item ID]],Analysis_Table,11,FALSE)","v":{"$error":"#N/A"}},{"$f":"VLOOKUP(Table_Data_Table_13[[#This Row],[Item ID]],Analysis_Table,12,FALSE)","v":{"$error":"#N/A"}},{"$f":"VLOOKUP(Table_Data_Table_13[[#This Row],[Item ID]],Analysis_Table,13,FALSE)","v":{"$error":"#N/A"}},{"$f":"VLOOKUP(Table_Data_Table_13[[#This Row],[Item ID]],Analysis_Table,14,FALSE)","v":{"$error":"#N/A"}},{"$f":"VLOOKUP(Table_Data_Table_13[[#This Row],[Item ID]],Analysis_Table,15,FALSE)","v":{"$error":"#N/A"}},{"$f":"VLOOKUP(Table_Data_Table_13[[#This Row],[Item ID]],Analysis_Table,16,FALSE)","v":{"$error":"#N/A"}},{"$f":"VLOOKUP(Table_Data_Table_13[[#This Row],[Item ID]],Analysis_Table,17,FALSE)","v":{"$error":"#N/A"}},{"$f":"VLOOKUP(Table_Data_Table_13[[#This Row],[Item ID]],Analysis_Table,18,FALSE)","v":{"$error":"#N/A"}},{"$f":"VLOOKUP(Table_Data_Table_13[[#This Row],[Item ID]],Analysis_Table,19,FALSE)","v":{"$error":"#N/A"}},null,null,1]
["",null,null,null,null,null,null,null,null,0,null,null,null,{"$f":"VLOOKUP(Table_Data_Table_13[[#This Row],[Item ID]],Analysis_Table,8,FALSE)","v":{"$error":"#N/A"}},{"$f":"VLOOKUP(Table_Data_Table_13[[#This Row],[Item ID]],Analysis_Table,9,FALSE)","v":{"$error":"#N/A"}},{"$f":"VLOOKUP(Table_Data_Table_13[[#This Row],[Item ID]],Analysis_Table,10,FALSE)","v":{"$error":"#N/A"}},{"$f":"VLOOKUP(Table_Data_Table_13[[#This Row],[Item ID]],Analysis_Table,11,FALSE)","v":{"$error":"#N/A"}},{"$f":"VLOOKUP(Table_Data_Table_13[[#This Row],[Item ID]],Analysis_Table,12,FALSE)","v":{"$error":"#N/A"}},{"$f":"VLOOKUP(Table_Data_Table_13[[#This Row],[Item ID]],Analysis_Table,13,FALSE)","v":{"$error":"#N/A"}},{"$f":"VLOOKUP(Table_Data_Table_13[[#This Row],[Item ID]],Analysis_Table,14,FALSE)","v":{"$error":"#N/A"}},{"$f":"VLOOKUP(Table_Data_Table_13[[#This Row],[Item ID]],Analysis_Table,15,FALSE)","v":{"$error":"#N/A"}},{"$f":"VLOOKUP(Table_Data_Table_13[[#This Row],[Item ID]],Analysis_Table,16,FALSE)","v":{"$error":"#N/A"}},{"$f":"VLOOKUP(Table_Data_Table_13[[#This Row],[Item ID]],Analysis_Table,17,FALSE)","v":{"$error":"#N/A"}},{"$f":"VLOOKUP(Table_Data_Table_13[[#This Row],[Item ID]],Analysis_Table,18,FALSE)","v":{"$error":"#N/A"}},{"$f":"VLOOKUP(Table_Data_Table_13[[#This Row],[Item ID]],Analysis_Table,19,FALSE)","v":{"$error":"#N/A"}},null,null,1]
["",null,null,null,null,null,null,null,null,0,null,null,null,{"$f":"VLOOKUP(Table_Data_Table_13[[#This Row],[Item ID]],Analysis_Table,8,FALSE)","v":{"$error":"#N/A"}},{"$f":"VLOOKUP(Table_Data_Table_13[[#This Row],[Item ID]],Analysis_Table,9,FALSE)","v":{"$error":"#N/A"}},{"$f":"VLOOKUP(Table_Data_Table_13[[#This Row],[Item ID]],Analysis_Table,10,FALSE)","v":{"$error":"#N/A"}},{"$f":"VLOOKUP(Table_Data_Table_13[[#This Row],[Item ID]],Analysis_Table,11,FALSE)","v":{"$error":"#N/A"}},{"$f":"VLOOKUP(Table_Data_Table_13[[#This Row],[Item ID]],Analysis_Table,12,FALSE)","v":{"$error":"#N/A"}},{"$f":"VLOOKUP(Table_Data_Table_13[[#This Row],[Item ID]],Analysis_Table,13,FALSE)","v":{"$error":"#N/A"}},{"$f":"VLOOKUP(Table_Data_Table_13[[#This Row],[Item ID]],Analysis_Table,14,FALSE)","v":{"$error":"#N/A"}},{"$f":"VLOOKUP(Table_Data_Table_13[[#This Row],[Item ID]],Analysis_Table,15,FALSE)","v":{"$error":"#N/A"}},{"$f":"VLOOKUP(Table_Data_Table_13[[#This Row],[Item ID]],Analysis_Table,16,FALSE)","v":{"$error":"#N/A"}},{"$f":"VLOOKUP(Table_Data_Table_13[[#This Row],[Item ID]],Analysis_Table,17,FALSE)","v":{"$error":"#N/A"}},{"$f":"VLOOKUP(Table_Data_Table_13[[#This Row],[Item ID]],Analysis_Table,18,FALSE)","v":{"$error":"#N/A"}},{"$f":"VLOOKUP(Table_Data_Table_13[[#This Row],[Item ID]],Analysis_Table,19,FALSE)","v":{"$error":"#N/A"}},null,null,1]
["",null,null,null,null,null,null,null,null,0,null,null,null,{"$f":"VLOOKUP(Table_Data_Table_13[[#This Row],[Item ID]],Analysis_Table,8,FALSE)","v":{"$error":"#N/A"}},{"$f":"VLOOKUP(Table_Data_Table_13[[#This Row],[Item ID]],Analysis_Table,9,FALSE)","v":{"$error":"#N/A"}},{"$f":"VLOOKUP(Table_Data_Table_13[[#This Row],[Item ID]],Analysis_Table,10,FALSE)","v":{"$error":"#N/A"}},{"$f":"VLOOKUP(Table_Data_Table_13[[#This Row],[Item ID]],Analysis_Table,11,FALSE)","v":{"$error":"#N/A"}},{"$f":"VLOOKUP(Table_Data_Table_13[[#This Row],[Item ID]],Analysis_Table,12,FALSE)","v":{"$error":"#N/A"}},{"$f":"VLOOKUP(Table_Data_Table_13[[#This Row],[Item ID]],Analysis_Table,13,FALSE)","v":{"$error":"#N/A"}},{"$f":"VLOOKUP(Table_Data_Table_13[[#This Row],[Item ID]],Analysis_Table,14,FALSE)","v":{"$error":"#N/A"}},{"$f":"VLOOKUP(Table_Data_Table_13[[#This Row],[Item ID]],Analysis_Table,15,FALSE)","v":{"$error":"#N/A"}},{"$f":"VLOOKUP(Table_Data_Table_13[[#This Row],[Item ID]],Analysis_Table,16,FALSE)","v":{"$error":"#N/A"}},{"$f":"VLOOKUP(Table_Data_Table_13[[#This Row],[Item ID]],Analysis_Table,17,FALSE)","v":{"$error":"#N/A"}},{"$f":"VLOOKUP(Table_Data_Table_13[[#This Row],[Item ID]],Analysis_Table,18,FALSE)","v":{"$error":"#N/A"}},{"$f":"VLOOKUP(Table_Data_Table_13[[#This Row],[Item ID]],Analysis_Table,19,FALSE)","v":{"$error":"#N/A"}},null,null,1]
["",null,null,null,null,null,null,null,null,0,null,null,null,{"$f":"VLOOKUP(Table_Data_Table_13[[#This Row],[Item ID]],Analysis_Table,8,FALSE)","v":{"$error":"#N/A"}},{"$f":"VLOOKUP(Table_Data_Table_13[[#This Row],[Item ID]],Analysis_Table,9,FALSE)","v":{"$error":"#N/A"}},{"$f":"VLOOKUP(Table_Data_Table_13[[#This Row],[Item ID]],Analysis_Table,10,FALSE)","v":{"$error":"#N/A"}},{"$f":"VLOOKUP(Table_Data_Table_13[[#This Row],[Item ID]],Analysis_Table,11,FALSE)","v":{"$error":"#N/A"}},{"$f":"VLOOKUP(Table_Data_Table_13[[#This Row],[Item ID]],Analysis_Table,12,FALSE)","v":{"$error":"#N/A"}},{"$f":"VLOOKUP(Table_Data_Table_13[[#This Row],[Item ID]],Analysis_Table,13,FALSE)","v":{"$error":"#N/A"}},{"$f":"VLOOKUP(Table_Data_Table_13[[#This Row],[Item ID]],Analysis_Table,14,FALSE)","v":{"$error":"#N/A"}},{"$f":"VLOOKUP(Table_Data_Table_13[[#This Row],[Item ID]],Analysis_Table,15,FALSE)","v":{"$error":"#N/A"}},{"$f":"VLOOKUP(Table_Data_Table_13[[#This Row],[Item ID]],Analysis_Table,16,FALSE)","v":{"$error":"#N/A"}},{"$f":"VLOOKUP(Table_Data_Table_13[[#This Row],[Item ID]],Analysis_Table,17,FALSE)","v":{"$error":"#N/A"}},{"$f":"VLOOKUP(Table_Data_Table_13[[#This Row],[Item ID]],Analysis_Table,18,FALSE)","v":{"$error":"#N/A"}},{"$f":"VLOOKUP(Table_Data_Table_13[[#This Row],[Item ID]],Analysis_Table,19,FALSE)","v":{"$error":"#N/A"}},null,null,1]
["",null,null,null,null,null,null,null,null,0,null,null,null,{"$f":"VLOOKUP(Table_Data_Table_13[[#This Row],[Item ID]],Analysis_Table,8,FALSE)","v":{"$error":"#N/A"}},{"$f":"VLOOKUP(Table_Data_Table_13[[#This Row],[Item ID]],Analysis_Table,9,FALSE)","v":{"$error":"#N/A"}},{"$f":"VLOOKUP(Table_Data_Table_13[[#This Row],[Item ID]],Analysis_Table,10,FALSE)","v":{"$error":"#N/A"}},{"$f":"VLOOKUP(Table_Data_Table_13[[#This Row],[Item ID]],Analysis_Table,11,FALSE)","v":{"$error":"#N/A"}},{"$f":"VLOOKUP(Table_Data_Table_13[[#This Row],[Item ID]],Analysis_Table,12,FALSE)","v":{"$error":"#N/A"}},{"$f":"VLOOKUP(Table_Data_Table_13[[#This Row],[Item ID]],Analysis_Table,13,FALSE)","v":{"$error":"#N/A"}},{"$f":"VLOOKUP(Table_Data_Table_13[[#This Row],[Item ID]],Analysis_Table,14,FALSE)","v":{"$error":"#N/A"}},{"$f":"VLOOKUP(Table_Data_Table_13[[#This Row],[Item ID]],Analysis_Table,15,FALSE)","v":{"$error":"#N/A"}},{"$f":"VLOOKUP(Table_Data_Table_13[[#This Row],[Item ID]],Analysis_Table,16,FALSE)","v":{"$error":"#N/A"}},{"$f":"VLOOKUP(Table_Data_Table_13[[#This Row],[Item ID]],Analysis_Table,17,FALSE)","v":{"$error":"#N/A"}},{"$f":"VLOOKUP(Table_Data_Table_13[[#This Row],[Item ID]],Analysis_Table,18,FALSE)","v":{"$error":"#N/A"}},{"$f":"VLOOKUP(Table_Data_Table_13[[#This Row],[Item ID]],Analysis_Table,19,FALSE)","v":{"$error":"#N/A"}},null,null,1]
["",null,null,null,null,null,null,null,null,0,null,null,null,{"$f":"VLOOKUP(Table_Data_Table_13[[#This Row],[Item ID]],Analysis_Table,8,FALSE)","v":{"$error":"#N/A"}},{"$f":"VLOOKUP(Table_Data_Table_13[[#This Row],[Item ID]],Analysis_Table,9,FALSE)","v":{"$error":"#N/A"}},{"$f":"VLOOKUP(Table_Data_Table_13[[#This Row],[Item ID]],Analysis_Table,10,FALSE)","v":{"$error":"#N/A"}},{"$f":"VLOOKUP(Table_Data_Table_13[[#This Row],[Item ID]],Analysis_Table,11,FALSE)","v":{"$error":"#N/A"}},{"$f":"VLOOKUP(Table_Data_Table_13[[#This Row],[Item ID]],Analysis_Table,12,FALSE)","v":{"$error":"#N/A"}},{"$f":"VLOOKUP(Table_Data_Table_13[[#This Row],[Item ID]],Analysis_Table,13,FALSE)","v":{"$error":"#N/A"}},{"$f":"VLOOKUP(Table_Data_Table_13[[#This Row],[Item ID]],Analysis_Table,14,FALSE)","v":{"$error":"#N/A"}},{"$f":"VLOOKUP(Table_Data_Table_13[[#This Row],[Item ID]],Analysis_Table,15,FALSE)","v":{"$error":"#N/A"}},{"$f":"VLOOKUP(Table_Data_Table_13[[#This Row],[Item ID]],Analysis_Table,16,FALSE)","v":{"$error":"#N/A"}},{"$f":"VLOOKUP(Table_Data_Table_13[[#This Row],[Item ID]],Analysis_Table,17,FALSE)","v":{"$error":"#N/A"}},{"$f":"VLOOKUP(Table_Data_Table_13[[#This Row],[Item ID]],Analysis_Table,18,FALSE)","v":{"$error":"#N/A"}},{"$f":"VLOOKUP(Table_Data_Table_13[[#This Row],[Item ID]],Analysis_Table,19,FALSE)","v":{"$error":"#N/A"}},null,null,1]
["",null,null,null,null,null,null,null,null,0,null,null,null,{"$f":"VLOOKUP(Table_Data_Table_13[[#This Row],[Item ID]],Analysis_Table,8,FALSE)","v":{"$error":"#N/A"}},{"$f":"VLOOKUP(Table_Data_Table_13[[#This Row],[Item ID]],Analysis_Table,9,FALSE)","v":{"$error":"#N/A"}},{"$f":"VLOOKUP(Table_Data_Table_13[[#This Row],[Item ID]],Analysis_Table,10,FALSE)","v":{"$error":"#N/A"}},{"$f":"VLOOKUP(Table_Data_Table_13[[#This Row],[Item ID]],Analysis_Table,11,FALSE)","v":{"$error":"#N/A"}},{"$f":"VLOOKUP(Table_Data_Table_13[[#This Row],[Item ID]],Analysis_Table,12,FALSE)","v":{"$error":"#N/A"}},{"$f":"VLOOKUP(Table_Data_Table_13[[#This Row],[Item ID]],Analysis_Table,13,FALSE)","v":{"$error":"#N/A"}},{"$f":"VLOOKUP(Table_Data_Table_13[[#This Row],[Item ID]],Analysis_Table,14,FALSE)","v":{"$error":"#N/A"}},{"$f":"VLOOKUP(Table_Data_Table_13[[#This Row],[Item ID]],Analysis_Table,15,FALSE)","v":{"$error":"#N/A"}},{"$f":"VLOOKUP(Table_Data_Table_13[[#This Row],[Item ID]],Analysis_Table,16,FALSE)","v":{"$error":"#N/A"}},{"$f":"VLOOKUP(Table_Data_Table_13[[#This Row],[Item ID]],Analysis_Table,17,FALSE)","v":{"$error":"#N/A"}},{"$f":"VLOOKUP(Table_Data_Table_13[[#This Row],[Item ID]],Analysis_Table,18,FALSE)","v":{"$error":"#N/A"}},{"$f":"VLOOKUP(Table_Data_Table_13[[#This Row],[Item ID]],Analysis_Table,19,FALSE)","v":{"$error":"#N/A"}},null,null,1]
["",null,null,null,null,null,null,null,null,0,null,null,null,{"$f":"VLOOKUP(Table_Data_Table_13[[#This Row],[Item ID]],Analysis_Table,8,FALSE)","v":{"$error":"#N/A"}},{"$f":"VLOOKUP(Table_Data_Table_13[[#This Row],[Item ID]],Analysis_Table,9,FALSE)","v":{"$error":"#N/A"}},{"$f":"VLOOKUP(Table_Data_Table_13[[#This Row],[Item ID]],Analysis_Table,10,FALSE)","v":{"$error":"#N/A"}},{"$f":"VLOOKUP(Table_Data_Table_13[[#This Row],[Item ID]],Analysis_Table,11,FALSE)","v":{"$error":"#N/A"}},{"$f":"VLOOKUP(Table_Data_Table_13[[#This Row],[Item ID]],Analysis_Table,12,FALSE)","v":{"$error":"#N/A"}},{"$f":"VLOOKUP(Table_Data_Table_13[[#This Row],[Item ID]],Analysis_Table,13,FALSE)","v":{"$error":"#N/A"}},{"$f":"VLOOKUP(Table_Data_Table_13[[#This Row],[Item ID]],Analysis_Table,14,FALSE)","v":{"$error":"#N/A"}},{"$f":"VLOOKUP(Table_Data_Table_13[[#This Row],[Item ID]],Analysis_Table,15,FALSE)","v":{"$error":"#N/A"}},{"$f":"VLOOKUP(Table_Data_Table_13[[#This Row],[Item ID]],Analysis_Table,16,FALSE)","v":{"$error":"#N/A"}},{"$f":"VLOOKUP(Table_Data_Table_13[[#This Row],[Item ID]],Analysis_Table,17,FALSE)","v":{"$error":"#N/A"}},{"$f":"VLOOKUP(Table_Data_Table_13[[#This Row],[Item ID]],Analysis_Table,18,FALSE)","v":{"$error":"#N/A"}},{"$f":"VLOOKUP(Table_Data_Table_13[[#This Row],[Item ID]],Analysis_Table,19,FALSE)","v":{"$error":"#N/A"}},null,null,1]
["",null,null,null,null,null,null,null,null,0,null,null,null,{"$f":"VLOOKUP(Table_Data_Table_13[[#This Row],[Item ID]],Analysis_Table,8,FALSE)","v":{"$error":"#N/A"}},{"$f":"VLOOKUP(Table_Data_Table_13[[#This Row],[Item ID]],Analysis_Table,9,FALSE)","v":{"$error":"#N/A"}},{"$f":"VLOOKUP(Table_Data_Table_13[[#This Row],[Item ID]],Analysis_Table,10,FALSE)","v":{"$error":"#N/A"}},{"$f":"VLOOKUP(Table_Data_Table_13[[#This Row],[Item ID]],Analysis_Table,11,FALSE)","v":{"$error":"#N/A"}},{"$f":"VLOOKUP(Table_Data_Table_13[[#This Row],[Item ID]],Analysis_Table,12,FALSE)","v":{"$error":"#N/A"}},{"$f":"VLOOKUP(Table_Data_Table_13[[#This Row],[Item ID]],Analysis_Table,13,FALSE)","v":{"$error":"#N/A"}},{"$f":"VLOOKUP(Table_Data_Table_13[[#This Row],[Item ID]],Analysis_Table,14,FALSE)","v":{"$error":"#N/A"}},{"$f":"VLOOKUP(Table_Data_Table_13[[#This Row],[Item ID]],Analysis_Table,15,FALSE)","v":{"$error":"#N/A"}},{"$f":"VLOOKUP(Table_Data_Table_13[[#This Row],[Item ID]],Analysis_Table,16,FALSE)","v":{"$error":"#N/A"}},{"$f":"VLOOKUP(Table_Data_Table_13[[#This Row],[Item ID]],Analysis_Table,17,FALSE)","v":{"$error":"#N/A"}},{"$f":"VLOOKUP(Table_Data_Table_13[[#This Row],[Item ID]],Analysis_Table,18,FALSE)","v":{"$error":"#N/A"}},{"$f":"VLOOKUP(Table_Data_Table_13[[#This Row],[Item ID]],Analysis_Table,19,FALSE)","v":{"$error":"#N/A"}},null,null,1]
["",null,null,null,null,null,null,null,null,0,null,null,null,{"$f":"VLOOKUP(Table_Data_Table_13[[#This Row],[Item ID]],Analysis_Table,8,FALSE)","v":{"$error":"#N/A"}},{"$f":"VLOOKUP(Table_Data_Table_13[[#This Row],[Item ID]],Analysis_Table,9,FALSE)","v":{"$error":"#N/A"}},{"$f":"VLOOKUP(Table_Data_Table_13[[#This Row],[Item ID]],Analysis_Table,10,FALSE)","v":{"$error":"#N/A"}},{"$f":"VLOOKUP(Table_Data_Table_13[[#This Row],[Item ID]],Analysis_Table,11,FALSE)","v":{"$error":"#N/A"}},{"$f":"VLOOKUP(Table_Data_Table_13[[#This Row],[Item ID]],Analysis_Table,12,FALSE)","v":{"$error":"#N/A"}},{"$f":"VLOOKUP(Table_Data_Table_13[[#This Row],[Item ID]],Analysis_Table,13,FALSE)","v":{"$error":"#N/A"}},{"$f":"VLOOKUP(Table_Data_Table_13[[#This Row],[Item ID]],Analysis_Table,14,FALSE)","v":{"$error":"#N/A"}},{"$f":"VLOOKUP(Table_Data_Table_13[[#This Row],[Item ID]],Analysis_Table,15,FALSE)","v":{"$error":"#N/A"}},{"$f":"VLOOKUP(Table_Data_Table_13[[#This Row],[Item ID]],Analysis_Table,16,FALSE)","v":{"$error":"#N/A"}},{"$f":"VLOOKUP(Table_Data_Table_13[[#This Row],[Item ID]],Analysis_Table,17,FALSE)","v":{"$error":"#N/A"}},{"$f":"VLOOKUP(Table_Data_Table_13[[#This Row],[Item ID]],Analysis_Table,18,FALSE)","v":{"$error":"#N/A"}},{"$f":"VLOOKUP(Table_Data_Table_13[[#This Row],[Item ID]],Analysis_Table,19,FALSE)","v":{"$error":"#N/A"}},null,null,1]
["",null,null,null,null,null,null,null,null,0,null,null,null,{"$f":"VLOOKUP(Table_Data_Table_13[[#This Row],[Item ID]],Analysis_Table,8,FALSE)","v":{"$error":"#N/A"}},{"$f":"VLOOKUP(Table_Data_Table_13[[#This Row],[Item ID]],Analysis_Table,9,FALSE)","v":{"$error":"#N/A"}},{"$f":"VLOOKUP(Table_Data_Table_13[[#This Row],[Item ID]],Analysis_Table,10,FALSE)","v":{"$error":"#N/A"}},{"$f":"VLOOKUP(Table_Data_Table_13[[#This Row],[Item ID]],Analysis_Table,11,FALSE)","v":{"$error":"#N/A"}},{"$f":"VLOOKUP(Table_Data_Table_13[[#This Row],[Item ID]],Analysis_Table,12,FALSE)","v":{"$error":"#N/A"}},{"$f":"VLOOKUP(Table_Data_Table_13[[#This Row],[Item ID]],Analysis_Table,13,FALSE)","v":{"$error":"#N/A"}},{"$f":"VLOOKUP(Table_Data_Table_13[[#This Row],[Item ID]],Analysis_Table,14,FALSE)","v":{"$error":"#N/A"}},{"$f":"VLOOKUP(Table_Data_Table_13[[#This Row],[Item ID]],Analysis_Table,15,FALSE)","v":{"$error":"#N/A"}},{"$f":"VLOOKUP(Table_Data_Table_13[[#This Row],[Item ID]],Analysis_Table,16,FALSE)","v":{"$error":"#N/A"}},{"$f":"VLOOKUP(Table_Data_Table_13[[#This Row],[Item ID]],Analysis_Table,17,FALSE)","v":{"$error":"#N/A"}},{"$f":"VLOOKUP(Table_Data_Table_13[[#This Row],[Item ID]],Analysis_Table,18,FALSE)","v":{"$error":"#N/A"}},{"$f":"VLOOKUP(Table_Data_Table_13[[#This Row],[Item ID]],Analysis_Table,19,FALSE)","v":{"$error":"#N/A"}},null,null,1]
["",null,null,null,null,null,null,null,null,0,null,null,null,{"$f":"VLOOKUP(Table_Data_Table_13[[#This Row],[Item ID]],Analysis_Table,8,FALSE)","v":{"$error":"#N/A"}},{"$f":"VLOOKUP(Table_Data_Table_13[[#This Row],[Item ID]],Analysis_Table,9,FALSE)","v":{"$error":"#N/A"}},{"$f":"VLOOKUP(Table_Data_Table_13[[#This Row],[Item ID]],Analysis_Table,10,FALSE)","v":{"$error":"#N/A"}},{"$f":"VLOOKUP(Table_Data_Table_13[[#This Row],[Item ID]],Analysis_Table,11,FALSE)","v":{"$error":"#N/A"}},{"$f":"VLOOKUP(Table_Data_Table_13[[#This Row],[Item ID]],Analysis_Table,12,FALSE)","v":{"$error":"#N/A"}},{"$f":"VLOOKUP(Table_Data_Table_13[[#This Row],[Item ID]],Analysis_Table,13,FALSE)","v":{"$error":"#N/A"}},{"$f":"VLOOKUP(Table_Data_Table_13[[#This Row],[Item ID]],Analysis_Table,14,FALSE)","v":{"$error":"#N/A"}},{"$f":"VLOOKUP(Table_Data_Table_13[[#This Row],[Item ID]],Analysis_Table,15,FALSE)","v":{"$error":"#N/A"}},{"$f":"VLOOKUP(Table_Data_Table_13[[#This Row],[Item ID]],Analysis_Table,16,FALSE)","v":{"$error":"#N/A"}},{"$f":"VLOOKUP(Table_Data_Table_13[[#This Row],[Item ID]],Analysis_Table,17,FALSE)","v":{"$error":"#N/A"}},{"$f":"VLOOKUP(Table_Data_Table_13[[#This Row],[Item ID]],Analysis_Table,18,FALSE)","v":{"$error":"#N/A"}},{"$f":"VLOOKUP(Table_Data_Table_13[[#This Row],[Item ID]],Analysis_Table,19,FALSE)","v":{"$error":"#N/A"}},null,null,1]
["",null,null,null,null,null,null,null,null,0,null,null,null,{"$f":"VLOOKUP(Table_Data_Table_13[[#This Row],[Item ID]],Analysis_Table,8,FALSE)","v":{"$error":"#N/A"}},{"$f":"VLOOKUP(Table_Data_Table_13[[#This Row],[Item ID]],Analysis_Table,9,FALSE)","v":{"$error":"#N/A"}},{"$f":"VLOOKUP(Table_Data_Table_13[[#This Row],[Item ID]],Analysis_Table,10,FALSE)","v":{"$error":"#N/A"}},{"$f":"VLOOKUP(Table_Data_Table_13[[#This Row],[Item ID]],Analysis_Table,11,FALSE)","v":{"$error":"#N/A"}},{"$f":"VLOOKUP(Table_Data_Table_13[[#This Row],[Item ID]],Analysis_Table,12,FALSE)","v":{"$error":"#N/A"}},{"$f":"VLOOKUP(Table_Data_Table_13[[#This Row],[Item ID]],Analysis_Table,13,FALSE)","v":{"$error":"#N/A"}},{"$f":"VLOOKUP(Table_Data_Table_13[[#This Row],[Item ID]],Analysis_Table,14,FALSE)","v":{"$error":"#N/A"}},{"$f":"VLOOKUP(Table_Data_Table_13[[#This Row],[Item ID]],Analysis_Table,15,FALSE)","v":{"$error":"#N/A"}},{"$f":"VLOOKUP(Table_Data_Table_13[[#This Row],[Item ID]],Analysis_Table,16,FALSE)","v":{"$error":"#N/A"}},{"$f":"VLOOKUP(Table_Data_Table_13[[#This Row],[Item ID]],Analysis_Table,17,FALSE)","v":{"$error":"#N/A"}},{"$f":"VLOOKUP(Table_Data_Table_13[[#This Row],[Item ID]],Analysis_Table,18,FALSE)","v":{"$error":"#N/A"}},{"$f":"VLOOKUP(Table_Data_Table_13[[#This Row],[Item ID]],Analysis_Table,19,FALSE)","v":{"$error":"#N/A"}},null,null,1]
["",null,null,null,null,null,null,null,null,0,null,null,null,{"$f":"VLOOKUP(Table_Data_Table_13[[#This Row],[Item ID]],Analysis_Table,8,FALSE)","v":{"$error":"#N/A"}},{"$f":"VLOOKUP(Table_Data_Table_13[[#This Row],[Item ID]],Analysis_Table,9,FALSE)","v":{"$error":"#N/A"}},{"$f":"VLOOKUP(Table_Data_Table_13[[#This Row],[Item ID]],Analysis_Table,10,FALSE)","v":{"$error":"#N/A"}},{"$f":"VLOOKUP(Table_Data_Table_13[[#This Row],[Item ID]],Analysis_Table,11,FALSE)","v":{"$error":"#N/A"}},{"$f":"VLOOKUP(Table_Data_Table_13[[#This Row],[Item ID]],Analysis_Table,12,FALSE)","v":{"$error":"#N/A"}},{"$f":"VLOOKUP(Table_Data_Table_13[[#This Row],[Item ID]],Analysis_Table,13,FALSE)","v":{"$error":"#N/A"}},{"$f":"VLOOKUP(Table_Data_Table_13[[#This Row],[Item ID]],Analysis_Table,14,FALSE)","v":{"$error":"#N/A"}},{"$f":"VLOOKUP(Table_Data_Table_13[[#This Row],[Item ID]],Analysis_Table,15,FALSE)","v":{"$error":"#N/A"}},{"$f":"VLOOKUP(Table_Data_Table_13[[#This Row],[Item ID]],Analysis_Table,16,FALSE)","v":{"$error":"#N/A"}},{"$f":"VLOOKUP(Table_Data_Table_13[[#This Row],[Item ID]],Analysis_Table,17,FALSE)","v":{"$error":"#N/A"}},{"$f":"VLOOKUP(Table_Data_Table_13[[#This Row],[Item ID]],Analysis_Table,18,FALSE)","v":{"$error":"#N/A"}},{"$f":"VLOOKUP(Table_Data_Table_13[[#This Row],[Item ID]],Analysis_Table,19,FALSE)","v":{"$error":"#N/A"}},null,null,1]
["",null,null,null,null,null,null,null,null,0,null,null,null,{"$f":"VLOOKUP(Table_Data_Table_13[[#This Row],[Item ID]],Analysis_Table,8,FALSE)","v":{"$error":"#N/A"}},{"$f":"VLOOKUP(Table_Data_Table_13[[#This Row],[Item ID]],Analysis_Table,9,FALSE)","v":{"$error":"#N/A"}},{"$f":"VLOOKUP(Table_Data_Table_13[[#This Row],[Item ID]],Analysis_Table,10,FALSE)","v":{"$error":"#N/A"}},{"$f":"VLOOKUP(Table_Data_Table_13[[#This Row],[Item ID]],Analysis_Table,11,FALSE)","v":{"$error":"#N/A"}},{"$f":"VLOOKUP(Table_Data_Table_13[[#This Row],[Item ID]],Analysis_Table,12,FALSE)","v":{"$error":"#N/A"}},{"$f":"VLOOKUP(Table_Data_Table_13[[#This Row],[Item ID]],Analysis_Table,13,FALSE)","v":{"$error":"#N/A"}},{"$f":"VLOOKUP(Table_Data_Table_13[[#This Row],[Item ID]],Analysis_Table,14,FALSE)","v":{"$error":"#N/A"}},{"$f":"VLOOKUP(Table_Data_Table_13[[#This Row],[Item ID]],Analysis_Table,15,FALSE)","v":{"$error":"#N/A"}},{"$f":"VLOOKUP(Table_Data_Table_13[[#This Row],[Item ID]],Analysis_Table,16,FALSE)","v":{"$error":"#N/A"}},{"$f":"VLOOKUP(Table_Data_Table_13[[#This Row],[Item ID]],Analysis_Table,17,FALSE)","v":{"$error":"#N/A"}},{"$f":"VLOOKUP(Table_Data_Table_13[[#This Row],[Item ID]],Analysis_Table,18,FALSE)","v":{"$error":"#N/A"}},{"$f":"VLOOKUP(Table_Data_Table_13[[#This Row],[Item ID]],Analysis_Table,19,FALSE)","v":{"$error":"#N/A"}},null,null,1]
["",null,null,null,null,null,null,null,null,0,null,null,null,{"$f":"VLOOKUP(Table_Data_Table_13[[#This Row],[Item ID]],Analysis_Table,8,FALSE)","v":{"$error":"#N/A"}},{"$f":"VLOOKUP(Table_Data_Table_13[[#This Row],[Item ID]],Analysis_Table,9,FALSE)","v":{"$error":"#N/A"}},{"$f":"VLOOKUP(Table_Data_Table_13[[#This Row],[Item ID]],Analysis_Table,10,FALSE)","v":{"$error":"#N/A"}},{"$f":"VLOOKUP(Table_Data_Table_13[[#This Row],[Item ID]],Analysis_Table,11,FALSE)","v":{"$error":"#N/A"}},{"$f":"VLOOKUP(Table_Data_Table_13[[#This Row],[Item ID]],Analysis_Table,12,FALSE)","v":{"$error":"#N/A"}},{"$f":"VLOOKUP(Table_Data_Table_13[[#This Row],[Item ID]],Analysis_Table,13,FALSE)","v":{"$error":"#N/A"}},{"$f":"VLOOKUP(Table_Data_Table_13[[#This Row],[Item ID]],Analysis_Table,14,FALSE)","v":{"$error":"#N/A"}},{"$f":"VLOOKUP(Table_Data_Table_13[[#This Row],[Item ID]],Analysis_Table,15,FALSE)","v":{"$error":"#N/A"}},{"$f":"VLOOKUP(Table_Data_Table_13[[#This Row],[Item ID]],Analysis_Table,16,FALSE)","v":{"$error":"#N/A"}},{"$f":"VLOOKUP(Table_Data_Table_13[[#This Row],[Item ID]],Analysis_Table,17,FALSE)","v":{"$error":"#N/A"}},{"$f":"VLOOKUP(Table_Data_Table_13[[#This Row],[Item ID]],Analysis_Table,18,FALSE)","v":{"$error":"#N/A"}},{"$f":"VLOOKUP(Table_Data_Table_13[[#This Row],[Item ID]],Analysis_Table,19,FALSE)","v":{"$error":"#N/A"}},null,null,1]
["",null,null,null,null,null,null,null,null,0,null,null,null,{"$f":"VLOOKUP(Table_Data_Table_13[[#This Row],[Item ID]],Analysis_Table,8,FALSE)","v":{"$error":"#N/A"}},{"$f":"VLOOKUP(Table_Data_Table_13[[#This Row],[Item ID]],Analysis_Table,9,FALSE)","v":{"$error":"#N/A"}},{"$f":"VLOOKUP(Table_Data_Table_13[[#This Row],[Item ID]],Analysis_Table,10,FALSE)","v":{"$error":"#N/A"}},{"$f":"VLOOKUP(Table_Data_Table_13[[#This Row],[Item ID]],Analysis_Table,11,FALSE)","v":{"$error":"#N/A"}},{"$f":"VLOOKUP(Table_Data_Table_13[[#This Row],[Item ID]],Analysis_Table,12,FALSE)","v":{"$error":"#N/A"}},{"$f":"VLOOKUP(Table_Data_Table_13[[#This Row],[Item ID]],Analysis_Table,13,FALSE)","v":{"$error":"#N/A"}},{"$f":"VLOOKUP(Table_Data_Table_13[[#This Row],[Item ID]],Analysis_Table,14,FALSE)","v":{"$error":"#N/A"}},{"$f":"VLOOKUP(Table_Data_Table_13[[#This Row],[Item ID]],Analysis_Table,15,FALSE)","v":{"$error":"#N/A"}},{"$f":"VLOOKUP(Table_Data_Table_13[[#This Row],[Item ID]],Analysis_Table,16,FALSE)","v":{"$error":"#N/A"}},{"$f":"VLOOKUP(Table_Data_Table_13[[#This Row],[Item ID]],Analysis_Table,17,FALSE)","v":{"$error":"#N/A"}},{"$f":"VLOOKUP(Table_Data_Table_13[[#This Row],[Item ID]],Analysis_Table,18,FALSE)","v":{"$error":"#N/A"}},{"$f":"VLOOKUP(Table_Data_Table_13[[#This Row],[Item ID]],Analysis_Table,19,FALSE)","v":{"$error":"#N/A"}},null,null,1]
["",null,null,null,null,null,null,null,null,0,null,null,null,{"$f":"VLOOKUP(Table_Data_Table_13[[#This Row],[Item ID]],Analysis_Table,8,FALSE)","v":{"$error":"#N/A"}},{"$f":"VLOOKUP(Table_Data_Table_13[[#This Row],[Item ID]],Analysis_Table,9,FALSE)","v":{"$error":"#N/A"}},{"$f":"VLOOKUP(Table_Data_Table_13[[#This Row],[Item ID]],Analysis_Table,10,FALSE)","v":{"$error":"#N/A"}},{"$f":"VLOOKUP(Table_Data_Table_13[[#This Row],[Item ID]],Analysis_Table,11,FALSE)","v":{"$error":"#N/A"}},{"$f":"VLOOKUP(Table_Data_Table_13[[#This Row],[Item ID]],Analysis_Table,12,FALSE)","v":{"$error":"#N/A"}},{"$f":"VLOOKUP(Table_Data_Table_13[[#This Row],[Item ID]],Analysis_Table,13,FALSE)","v":{"$error":"#N/A"}},{"$f":"VLOOKUP(Table_Data_Table_13[[#This Row],[Item ID]],Analysis_Table,14,FALSE)","v":{"$error":"#N/A"}},{"$f":"VLOOKUP(Table_Data_Table_13[[#This Row],[Item ID]],Analysis_Table,15,FALSE)","v":{"$error":"#N/A"}},{"$f":"VLOOKUP(Table_Data_Table_13[[#This Row],[Item ID]],Analysis_Table,16,FALSE)","v":{"$error":"#N/A"}},{"$f":"VLOOKUP(Table_Data_Table_13[[#This Row],[Item ID]],Analysis_Table,17,FALSE)","v":{"$error":"#N/A"}},{"$f":"VLOOKUP(Table_Data_Table_13[[#This Row],[Item ID]],Analysis_Table,18,FALSE)","v":{"$error":"#N/A"}},{"$f":"VLOOKUP(Table_Data_Table_13[[#This Row],[Item ID]],Analysis_Table,19,FALSE)","v":{"$error":"#N/A"}},null,null,1]
["",null,null,null,null,null,null,null,null,0,null,null,null,{"$f":"VLOOKUP(Table_Data_Table_13[[#This Row],[Item ID]],Analysis_Table,8,FALSE)","v":{"$error":"#N/A"}},{"$f":"VLOOKUP(Table_Data_Table_13[[#This Row],[Item ID]],Analysis_Table,9,FALSE)","v":{"$error":"#N/A"}},{"$f":"VLOOKUP(Table_Data_Table_13[[#This Row],[Item ID]],Analysis_Table,10,FALSE)","v":{"$error":"#N/A"}},{"$f":"VLOOKUP(Table_Data_Table_13[[#This Row],[Item ID]],Analysis_Table,11,FALSE)","v":{"$error":"#N/A"}},{"$f":"VLOOKUP(Table_Data_Table_13[[#This Row],[Item ID]],Analysis_Table,12,FALSE)","v":{"$error":"#N/A"}},{"$f":"VLOOKUP(Table_Data_Table_13[[#This Row],[Item ID]],Analysis_Table,13,FALSE)","v":{"$error":"#N/A"}},{"$f":"VLOOKUP(Table_Data_Table_13[[#This Row],[Item ID]],Analysis_Table,14,FALSE)","v":{"$error":"#N/A"}},{"$f":"VLOOKUP(Table_Data_Table_13[[#This Row],[Item ID]],Analysis_Table,15,FALSE)","v":{"$error":"#N/A"}},{"$f":"VLOOKUP(Table_Data_Table_13[[#This Row],[Item ID]],Analysis_Table,16,FALSE)","v":{"$error":"#N/A"}},{"$f":"VLOOKUP(Table_Data_Table_13[[#This Row],[Item ID]],Analysis_Table,17,FALSE)","v":{"$error":"#N/A"}},{"$f":"VLOOKUP(Table_Data_Table_13[[#This Row],[Item ID]],Analysis_Table,18,FALSE)","v":{"$error":"#N/A"}},{"$f":"VLOOKUP(Table_Data_Table_13[[#This Row],[Item ID]],Analysis_Table,19,FALSE)","v":{"$error":"#N/A"}},null,null,1]
["",null,null,null,null,null,null,null,null,0,null,null,null,{"$f":"VLOOKUP(Table_Data_Table_13[[#This Row],[Item ID]],Analysis_Table,8,FALSE)","v":{"$error":"#N/A"}},{"$f":"VLOOKUP(Table_Data_Table_13[[#This Row],[Item ID]],Analysis_Table,9,FALSE)","v":{"$error":"#N/A"}},{"$f":"VLOOKUP(Table_Data_Table_13[[#This Row],[Item ID]],Analysis_Table,10,FALSE)","v":{"$error":"#N/A"}},{"$f":"VLOOKUP(Table_Data_Table_13[[#This Row],[Item ID]],Analysis_Table,11,FALSE)","v":{"$error":"#N/A"}},{"$f":"VLOOKUP(Table_Data_Table_13[[#This Row],[Item ID]],Analysis_Table,12,FALSE)","v":{"$error":"#N/A"}},{"$f":"VLOOKUP(Table_Data_Table_13[[#This Row],[Item ID]],Analysis_Table,13,FALSE)","v":{"$error":"#N/A"}},{"$f":"VLOOKUP(Table_Data_Table_13[[#This Row],[Item ID]],Analysis_Table,14,FALSE)","v":{"$error":"#N/A"}},{"$f":"VLOOKUP(Table_Data_Table_13[[#This Row],[Item ID]],Analysis_Table,15,FALSE)","v":{"$error":"#N/A"}},{"$f":"VLOOKUP(Table_Data_Table_13[[#This Row],[Item ID]],Analysis_Table,16,FALSE)","v":{"$error":"#N/A"}},{"$f":"VLOOKUP(Table_Data_Table_13[[#This Row],[Item ID]],Analysis_Table,17,FALSE)","v":{"$error":"#N/A"}},{"$f":"VLOOKUP(Table_Data_Table_13[[#This Row],[Item ID]],Analysis_Table,18,FALSE)","v":{"$error":"#N/A"}},{"$f":"VLOOKUP(Table_Data_Table_13[[#This Row],[Item ID]],Analysis_Table,19,FALSE)","v":{"$error":"#N/A"}},null,null,1]
["",null,null,null,null,null,null,null,null,0,null,null,null,{"$f":"VLOOKUP(Table_Data_Table_13[[#This Row],[Item ID]],Analysis_Table,8,FALSE)","v":{"$error":"#N/A"}},{"$f":"VLOOKUP(Table_Data_Table_13[[#This Row],[Item ID]],Analysis_Table,9,FALSE)","v":{"$error":"#N/A"}},{"$f":"VLOOKUP(Table_Data_Table_13[[#This Row],[Item ID]],Analysis_Table,10,FALSE)","v":{"$error":"#N/A"}},{"$f":"VLOOKUP(Table_Data_Table_13[[#This Row],[Item ID]],Analysis_Table,11,FALSE)","v":{"$error":"#N/A"}},{"$f":"VLOOKUP(Table_Data_Table_13[[#This Row],[Item ID]],Analysis_Table,12,FALSE)","v":{"$error":"#N/A"}},{"$f":"VLOOKUP(Table_Data_Table_13[[#This Row],[Item ID]],Analysis_Table,13,FALSE)","v":{"$error":"#N/A"}},{"$f":"VLOOKUP(Table_Data_Table_13[[#This Row],[Item ID]],Analysis_Table,14,FALSE)","v":{"$error":"#N/A"}},{"$f":"VLOOKUP(Table_Data_Table_13[[#This Row],[Item ID]],Analysis_Table,15,FALSE)","v":{"$error":"#N/A"}},{"$f":"VLOOKUP(Table_Data_Table_13[[#This Row],[Item ID]],Analysis_Table,16,FALSE)","v":{"$error":"#N/A"}},{"$f":"VLOOKUP(Table_Data_Table_13[[#This Row],[Item ID]],Analysis_Table,17,FALSE)","v":{"$error":"#N/A"}},{"$f":"VLOOKUP(Table_Data_Table_13[[#This Row],[Item ID]],Analysis_Table,18,FALSE)","v":{"$error":"#N/A"}},{"$f":"VLOOKUP(Table_Data_Table_13[[#This Row],[Item ID]],Analysis_Table,19,FALSE)","v":{"$error":"#N/A"}},null,null,1]
["",null,null,null,null,null,null,null,null,0,null,null,null,{"$f":"VLOOKUP(Table_Data_Table_13[[#This Row],[Item ID]],Analysis_Table,8,FALSE)","v":{"$error":"#N/A"}},{"$f":"VLOOKUP(Table_Data_Table_13[[#This Row],[Item ID]],Analysis_Table,9,FALSE)","v":{"$error":"#N/A"}},{"$f":"VLOOKUP(Table_Data_Table_13[[#This Row],[Item ID]],Analysis_Table,10,FALSE)","v":{"$error":"#N/A"}},{"$f":"VLOOKUP(Table_Data_Table_13[[#This Row],[Item ID]],Analysis_Table,11,FALSE)","v":{"$error":"#N/A"}},{"$f":"VLOOKUP(Table_Data_Table_13[[#This Row],[Item ID]],Analysis_Table,12,FALSE)","v":{"$error":"#N/A"}},{"$f":"VLOOKUP(Table_Data_Table_13[[#This Row],[Item ID]],Analysis_Table,13,FALSE)","v":{"$error":"#N/A"}},{"$f":"VLOOKUP(Table_Data_Table_13[[#This Row],[Item ID]],Analysis_Table,14,FALSE)","v":{"$error":"#N/A"}},{"$f":"VLOOKUP(Table_Data_Table_13[[#This Row],[Item ID]],Analysis_Table,15,FALSE)","v":{"$error":"#N/A"}},{"$f":"VLOOKUP(Table_Data_Table_13[[#This Row],[Item ID]],Analysis_Table,16,FALSE)","v":{"$error":"#N/A"}},{"$f":"VLOOKUP(Table_Data_Table_13[[#This Row],[Item ID]],Analysis_Table,17,FALSE)","v":{"$error":"#N/A"}},{"$f":"VLOOKUP(Table_Data_Table_13[[#This Row],[Item ID]],Analysis_Table,18,FALSE)","v":{"$error":"#N/A"}},{"$f":"VLOOKUP(Table_Data_Table_13[[#This Row],[Item ID]],Analysis_Table,19,FALSE)","v":{"$error":"#N/A"}},null,null,1]
["",null,null,null,null,null,null,null,null,0,null,null,null,{"$f":"VLOOKUP(Table_Data_Table_13[[#This Row],[Item ID]],Analysis_Table,8,FALSE)","v":{"$error":"#N/A"}},{"$f":"VLOOKUP(Table_Data_Table_13[[#This Row],[Item ID]],Analysis_Table,9,FALSE)","v":{"$error":"#N/A"}},{"$f":"VLOOKUP(Table_Data_Table_13[[#This Row],[Item ID]],Analysis_Table,10,FALSE)","v":{"$error":"#N/A"}},{"$f":"VLOOKUP(Table_Data_Table_13[[#This Row],[Item ID]],Analysis_Table,11,FALSE)","v":{"$error":"#N/A"}},{"$f":"VLOOKUP(Table_Data_Table_13[[#This Row],[Item ID]],Analysis_Table,12,FALSE)","v":{"$error":"#N/A"}},{"$f":"VLOOKUP(Table_Data_Table_13[[#This Row],[Item ID]],Analysis_Table,13,FALSE)","v":{"$error":"#N/A"}},{"$f":"VLOOKUP(Table_Data_Table_13[[#This Row],[Item ID]],Analysis_Table,14,FALSE)","v":{"$error":"#N/A"}},{"$f":"VLOOKUP(Table_Data_Table_13[[#This Row],[Item ID]],Analysis_Table,15,FALSE)","v":{"$error":"#N/A"}},{"$f":"VLOOKUP(Table_Data_Table_13[[#This Row],[Item ID]],Analysis_Table,16,FALSE)","v":{"$error":"#N/A"}},{"$f":"VLOOKUP(Table_Data_Table_13[[#This Row],[Item ID]],Analysis_Table,17,FALSE)","v":{"$error":"#N/A"}},{"$f":"VLOOKUP(Table_Data_Table_13[[#This Row],[Item ID]],Analysis_Table,18,FALSE)","v":{"$error":"#N/A"}},{"$f":"VLOOKUP(Table_Data_Table_13[[#This Row],[Item ID]],Analysis_Table,19,FALSE)","v":{"$error":"#N/A"}},null,null,1]
["",null,null,null,null,null,null,null,null,0,null,null,null,{"$f":"VLOOKUP(Table_Data_Table_13[[#This Row],[Item ID]],Analysis_Table,8,FALSE)","v":{"$error":"#N/A"}},{"$f":"VLOOKUP(Table_Data_Table_13[[#This Row],[Item ID]],Analysis_Table,9,FALSE)","v":{"$error":"#N/A"}},{"$f":"VLOOKUP(Table_Data_Table_13[[#This Row],[Item ID]],Analysis_Table,10,FALSE)","v":{"$error":"#N/A"}},{"$f":"VLOOKUP(Table_Data_Table_13[[#This Row],[Item ID]],Analysis_Table,11,FALSE)","v":{"$error":"#N/A"}},{"$f":"VLOOKUP(Table_Data_Table_13[[#This Row],[Item ID]],Analysis_Table,12,FALSE)","v":{"$error":"#N/A"}},{"$f":"VLOOKUP(Table_Data_Table_13[[#This Row],[Item ID]],Analysis_Table,13,FALSE)","v":{"$error":"#N/A"}},{"$f":"VLOOKUP(Table_Data_Table_13[[#This Row],[Item ID]],Analysis_Table,14,FALSE)","v":{"$error":"#N/A"}},{"$f":"VLOOKUP(Table_Data_Table_13[[#This Row],[Item ID]],Analysis_Table,15,FALSE)","v":{"$error":"#N/A"}},{"$f":"VLOOKUP(Table_Data_Table_13[[#This Row],[Item ID]],Analysis_Table,16,FALSE)","v":{"$error":"#N/A"}},{"$f":"VLOOKUP(Table_Data_Table_13[[#This Row],[Item ID]],Analysis_Table,17,FALSE)","v":{"$error":"#N/A"}},{"$f":"VLOOKUP(Table_Data_Table_13[[#This Row],[Item ID]],Analysis_Table,18,FALSE)","v":{"$error":"#N/A"}},{"$f":"VLOOKUP(Table_Data_Table_13[[#This Row],[Item ID]],Analysis_Table,19,FALSE)","v":{"$error":"#N/A"}},null,null,1]
["",null,null,null,null,null,null,null,null,0,null,null,null,{"$f":"VLOOKUP(Table_Data_Table_13[[#This Row],[Item ID]],Analysis_Table,8,FALSE)","v":{"$error":"#N/A"}},{"$f":"VLOOKUP(Table_Data_Table_13[[#This Row],[Item ID]],Analysis_Table,9,FALSE)","v":{"$error":"#N/A"}},{"$f":"VLOOKUP(Table_Data_Table_13[[#This Row],[Item ID]],Analysis_Table,10,FALSE)","v":{"$error":"#N/A"}},{"$f":"VLOOKUP(Table_Data_Table_13[[#This Row],[Item ID]],Analysis_Table,11,FALSE)","v":{"$error":"#N/A"}},{"$f":"VLOOKUP(Table_Data_Table_13[[#This Row],[Item ID]],Analysis_Table,12,FALSE)","v":{"$error":"#N/A"}},{"$f":"VLOOKUP(Table_Data_Table_13[[#This Row],[Item ID]],Analysis_Table,13,FALSE)","v":{"$error":"#N/A"}},{"$f":"VLOOKUP(Table_Data_Table_13[[#This Row],[Item ID]],Analysis_Table,14,FALSE)","v":{"$error":"#N/A"}},{"$f":"VLOOKUP(Table_Data_Table_13[[#This Row],[Item ID]],Analysis_Table,15,FALSE)","v":{"$error":"#N/A"}},{"$f":"VLOOKUP(Table_Data_Table_13[[#This Row],[Item ID]],Analysis_Table,16,FALSE)","v":{"$error":"#N/A"}},{"$f":"VLOOKUP(Table_Data_Table_13[[#This Row],[Item ID]],Analysis_Table,17,FALSE)","v":{"$error":"#N/A"}},{"$f":"VLOOKUP(Table_Data_Table_13[[#This Row],[Item ID]],Analysis_Table,18,FALSE)","v":{"$error":"#N/A"}},{"$f":"VLOOKUP(Table_Data_Table_13[[#This Row],[Item ID]],Analysis_Table,19,FALSE)","v":{"$error":"#N/A"}},null,null,1]
["",null,null,null,null,null,null,null,null,0,null,null,null,{"$f":"VLOOKUP(Table_Data_Table_13[[#This Row],[Item ID]],Analysis_Table,8,FALSE)","v":{"$error":"#N/A"}},{"$f":"VLOOKUP(Table_Data_Table_13[[#This Row],[Item ID]],Analysis_Table,9,FALSE)","v":{"$error":"#N/A"}},{"$f":"VLOOKUP(Table_Data_Table_13[[#This Row],[Item ID]],Analysis_Table,10,FALSE)","v":{"$error":"#N/A"}},{"$f":"VLOOKUP(Table_Data_Table_13[[#This Row],[Item ID]],Analysis_Table,11,FALSE)","v":{"$error":"#N/A"}},{"$f":"VLOOKUP(Table_Data_Table_13[[#This Row],[Item ID]],Analysis_Table,12,FALSE)","v":{"$error":"#N/A"}},{"$f":"VLOOKUP(Table_Data_Table_13[[#This Row],[Item ID]],Analysis_Table,13,FALSE)","v":{"$error":"#N/A"}},{"$f":"VLOOKUP(Table_Data_Table_13[[#This Row],[Item ID]],Analysis_Table,14,FALSE)","v":{"$error":"#N/A"}},{"$f":"VLOOKUP(Table_Data_Table_13[[#This Row],[Item ID]],Analysis_Table,15,FALSE)","v":{"$error":"#N/A"}},{"$f":"VLOOKUP(Table_Data_Table_13[[#This Row],[Item ID]],Analysis_Table,16,FALSE)","v":{"$error":"#N/A"}},{"$f":"VLOOKUP(Table_Data_Table_13[[#This Row],[Item ID]],Analysis_Table,17,FALSE)","v":{"$error":"#N/A"}},{"$f":"VLOOKUP(Table_Data_Table_13[[#This Row],[Item ID]],Analysis_Table,18,FALSE)","v":{"$error":"#N/A"}},{"$f":"VLOOKUP(Table_Data_Table_13[[#This Row],[Item ID]],Analysis_Table,19,FALSE)","v":{"$error":"#N/A"}},null,null,1]
["",null,null,null,null,null,null,null,null,0,null,null,null,{"$f":"VLOOKUP(Table_Data_Table_13[[#This Row],[Item ID]],Analysis_Table,8,FALSE)","v":{"$error":"#N/A"}},{"$f":"VLOOKUP(Table_Data_Table_13[[#This Row],[Item ID]],Analysis_Table,9,FALSE)","v":{"$error":"#N/A"}},{"$f":"VLOOKUP(Table_Data_Table_13[[#This Row],[Item ID]],Analysis_Table,10,FALSE)","v":{"$error":"#N/A"}},{"$f":"VLOOKUP(Table_Data_Table_13[[#This Row],[Item ID]],Analysis_Table,11,FALSE)","v":{"$error":"#N/A"}},{"$f":"VLOOKUP(Table_Data_Table_13[[#This Row],[Item ID]],Analysis_Table,12,FALSE)","v":{"$error":"#N/A"}},{"$f":"VLOOKUP(Table_Data_Table_13[[#This Row],[Item ID]],Analysis_Table,13,FALSE)","v":{"$error":"#N/A"}},{"$f":"VLOOKUP(Table_Data_Table_13[[#This Row],[Item ID]],Analysis_Table,14,FALSE)","v":{"$error":"#N/A"}},{"$f":"VLOOKUP(Table_Data_Table_13[[#This Row],[Item ID]],Analysis_Table,15,FALSE)","v":{"$error":"#N/A"}},{"$f":"VLOOKUP(Table_Data_Table_13[[#This Row],[Item ID]],Analysis_Table,16,FALSE)","v":{"$error":"#N/A"}},{"$f":"VLOOKUP(Table_Data_Table_13[[#This Row],[Item ID]],Analysis_Table,17,FALSE)","v":{"$error":"#N/A"}},{"$f":"VLOOKUP(Table_Data_Table_13[[#This Row],[Item ID]],Analysis_Table,18,FALSE)","v":{"$error":"#N/A"}},{"$f":"VLOOKUP(Table_Data_Table_13[[#This Row],[Item ID]],Analysis_Table,19,FALSE)","v":{"$error":"#N/A"}},null,null,1]
["",null,null,null,null,null,null,null,null,0,null,null,null,{"$f":"VLOOKUP(Table_Data_Table_13[[#This Row],[Item ID]],Analysis_Table,8,FALSE)","v":{"$error":"#N/A"}},{"$f":"VLOOKUP(Table_Data_Table_13[[#This Row],[Item ID]],Analysis_Table,9,FALSE)","v":{"$error":"#N/A"}},{"$f":"VLOOKUP(Table_Data_Table_13[[#This Row],[Item ID]],Analysis_Table,10,FALSE)","v":{"$error":"#N/A"}},{"$f":"VLOOKUP(Table_Data_Table_13[[#This Row],[Item ID]],Analysis_Table,11,FALSE)","v":{"$error":"#N/A"}},{"$f":"VLOOKUP(Table_Data_Table_13[[#This Row],[Item ID]],Analysis_Table,12,FALSE)","v":{"$error":"#N/A"}},{"$f":"VLOOKUP(Table_Data_Table_13[[#This Row],[Item ID]],Analysis_Table,13,FALSE)","v":{"$error":"#N/A"}},{"$f":"VLOOKUP(Table_Data_Table_13[[#This Row],[Item ID]],Analysis_Table,14,FALSE)","v":{"$error":"#N/A"}},{"$f":"VLOOKUP(Table_Data_Table_13[[#This Row],[Item ID]],Analysis_Table,15,FALSE)","v":{"$error":"#N/A"}},{"$f":"VLOOKUP(Table_Data_Table_13[[#This Row],[Item ID]],Analysis_Table,16,FALSE)","v":{"$error":"#N/A"}},{"$f":"VLOOKUP(Table_Data_Table_13[[#This Row],[Item ID]],Analysis_Table,17,FALSE)","v":{"$error":"#N/A"}},{"$f":"VLOOKUP(Table_Data_Table_13[[#This Row],[Item ID]],Analysis_Table,18,FALSE)","v":{"$error":"#N/A"}},{"$f":"VLOOKUP(Table_Data_Table_13[[#This Row],[Item ID]],Analysis_Table,19,FALSE)","v":{"$error":"#N/A"}},null,null,1]
["",null,null,null,null,null,null,null,null,0,null,null,null,{"$f":"VLOOKUP(Table_Data_Table_13[[#This Row],[Item ID]],Analysis_Table,8,FALSE)","v":{"$error":"#N/A"}},{"$f":"VLOOKUP(Table_Data_Table_13[[#This Row],[Item ID]],Analysis_Table,9,FALSE)","v":{"$error":"#N/A"}},{"$f":"VLOOKUP(Table_Data_Table_13[[#This Row],[Item ID]],Analysis_Table,10,FALSE)","v":{"$error":"#N/A"}},{"$f":"VLOOKUP(Table_Data_Table_13[[#This Row],[Item ID]],Analysis_Table,11,FALSE)","v":{"$error":"#N/A"}},{"$f":"VLOOKUP(Table_Data_Table_13[[#This Row],[Item ID]],Analysis_Table,12,FALSE)","v":{"$error":"#N/A"}},{"$f":"VLOOKUP(Table_Data_Table_13[[#This Row],[Item ID]],Analysis_Table,13,FALSE)","v":{"$error":"#N/A"}},{"$f":"VLOOKUP(Table_Data_Table_13[[#This Row],[Item ID]],Analysis_Table,14,FALSE)","v":{"$error":"#N/A"}},{"$f":"VLOOKUP(Table_Data_Table_13[[#This Row],[Item ID]],Analysis_Table,15,FALSE)","v":{"$error":"#N/A"}},{"$f":"VLOOKUP(Table_Data_Table_13[[#This Row],[Item ID]],Analysis_Table,16,FALSE)","v":{"$error":"#N/A"}},{"$f":"VLOOKUP(Table_Data_Table_13[[#This Row],[Item ID]],Analysis_Table,17,FALSE)","v":{"$error":"#N/A"}},{"$f":"VLOOKUP(Table_Data_Table_13[[#This Row],[Item ID]],Analysis_Table,18,FALSE)","v":{"$error":"#N/A"}},{"$f":"VLOOKUP(Table_Data_Table_13[[#This Row],[Item ID]],Analysis_Table,19,FALSE)","v":{"$error":"#N/A"}},null,null,1]
["",null,null,null,null,null,null,null,null,0,null,null,null,{"$f":"VLOOKUP(Table_Data_Table_13[[#This Row],[Item ID]],Analysis_Table,8,FALSE)","v":{"$error":"#N/A"}},{"$f":"VLOOKUP(Table_Data_Table_13[[#This Row],[Item ID]],Analysis_Table,9,FALSE)","v":{"$error":"#N/A"}},{"$f":"VLOOKUP(Table_Data_Table_13[[#This Row],[Item ID]],Analysis_Table,10,FALSE)","v":{"$error":"#N/A"}},{"$f":"VLOOKUP(Table_Data_Table_13[[#This Row],[Item ID]],Analysis_Table,11,FALSE)","v":{"$error":"#N/A"}},{"$f":"VLOOKUP(Table_Data_Table_13[[#This Row],[Item ID]],Analysis_Table,12,FALSE)","v":{"$error":"#N/A"}},{"$f":"VLOOKUP(Table_Data_Table_13[[#This Row],[Item ID]],Analysis_Table,13,FALSE)","v":{"$error":"#N/A"}},{"$f":"VLOOKUP(Table_Data_Table_13[[#This Row],[Item ID]],Analysis_Table,14,FALSE)","v":{"$error":"#N/A"}},{"$f":"VLOOKUP(Table_Data_Table_13[[#This Row],[Item ID]],Analysis_Table,15,FALSE)","v":{"$error":"#N/A"}},{"$f":"VLOOKUP(Table_Data_Table_13[[#This Row],[Item ID]],Analysis_Table,16,FALSE)","v":{"$error":"#N/A"}},{"$f":"VLOOKUP(Table_Data_Table_13[[#This Row],[Item ID]],Analysis_Table,17,FALSE)","v":{"$error":"#N/A"}},{"$f":"VLOOKUP(Table_Data_Table_13[[#This Row],[Item ID]],Analysis_Table,18,FALSE)","v":{"$error":"#N/A"}},{"$f":"VLOOKUP(Table_Data_Table_13[[#This Row],[Item ID]],Analysis_Table,19,FALSE)","v":{"$error":"#N/A"}},null,null,1]
["",null,null,null,null,null,null,null,null,0,null,null,null,{"$f":"VLOOKUP(Table_Data_Table_13[[#This Row],[Item ID]],Analysis_Table,8,FALSE)","v":{"$error":"#N/A"}},{"$f":"VLOOKUP(Table_Data_Table_13[[#This Row],[Item ID]],Analysis_Table,9,FALSE)","v":{"$error":"#N/A"}},{"$f":"VLOOKUP(Table_Data_Table_13[[#This Row],[Item ID]],Analysis_Table,10,FALSE)","v":{"$error":"#N/A"}},{"$f":"VLOOKUP(Table_Data_Table_13[[#This Row],[Item ID]],Analysis_Table,11,FALSE)","v":{"$error":"#N/A"}},{"$f":"VLOOKUP(Table_Data_Table_13[[#This Row],[Item ID]],Analysis_Table,12,FALSE)","v":{"$error":"#N/A"}},{"$f":"VLOOKUP(Table_Data_Table_13[[#This Row],[Item ID]],Analysis_Table,13,FALSE)","v":{"$error":"#N/A"}},{"$f":"VLOOKUP(Table_Data_Table_13[[#This Row],[Item ID]],Analysis_Table,14,FALSE)","v":{"$error":"#N/A"}},{"$f":"VLOOKUP(Table_Data_Table_13[[#This Row],[Item ID]],Analysis_Table,15,FALSE)","v":{"$error":"#N/A"}},{"$f":"VLOOKUP(Table_Data_Table_13[[#This Row],[Item ID]],Analysis_Table,16,FALSE)","v":{"$error":"#N/A"}},{"$f":"VLOOKUP(Table_Data_Table_13[[#This Row],[Item ID]],Analysis_Table,17,FALSE)","v":{"$error":"#N/A"}},{"$f":"VLOOKUP(Table_Data_Table_13[[#This Row],[Item ID]],Analysis_Table,18,FALSE)","v":{"$error":"#N/A"}},{"$f":"VLOOKUP(Table_Data_Table_13[[#This Row],[Item ID]],Analysis_Table,19,FALSE)","v":{"$error":"#N/A"}},null,null,1]
["",null,null,null,null,null,null,null,null,0,null,null,null,{"$f":"VLOOKUP(Table_Data_Table_13[[#This Row],[Item ID]],Analysis_Table,8,FALSE)","v":{"$error":"#N/A"}},{"$f":"VLOOKUP(Table_Data_Table_13[[#This Row],[Item ID]],Analysis_Table,9,FALSE)","v":{"$error":"#N/A"}},{"$f":"VLOOKUP(Table_Data_Table_13[[#This Row],[Item ID]],Analysis_Table,10,FALSE)","v":{"$error":"#N/A"}},{"$f":"VLOOKUP(Table_Data_Table_13[[#This Row],[Item ID]],Analysis_Table,11,FALSE)","v":{"$error":"#N/A"}},{"$f":"VLOOKUP(Table_Data_Table_13[[#This Row],[Item ID]],Analysis_Table,12,FALSE)","v":{"$error":"#N/A"}},{"$f":"VLOOKUP(Table_Data_Table_13[[#This Row],[Item ID]],Analysis_Table,13,FALSE)","v":{"$error":"#N/A"}},{"$f":"VLOOKUP(Table_Data_Table_13[[#This Row],[Item ID]],Analysis_Table,14,FALSE)","v":{"$error":"#N/A"}},{"$f":"VLOOKUP(Table_Data_Table_13[[#This Row],[Item ID]],Analysis_Table,15,FALSE)","v":{"$error":"#N/A"}},{"$f":"VLOOKUP(Table_Data_Table_13[[#This Row],[Item ID]],Analysis_Table,16,FALSE)","v":{"$error":"#N/A"}},{"$f":"VLOOKUP(Table_Data_Table_13[[#This Row],[Item ID]],Analysis_Table,17,FALSE)","v":{"$error":"#N/A"}},{"$f":"VLOOKUP(Table_Data_Table_13[[#This Row],[Item ID]],Analysis_Table,18,FALSE)","v":{"$error":"#N/A"}},{"$f":"VLOOKUP(Table_Data_Table_13[[#This Row],[Item ID]],Analysis_Table,19,FALSE)","v":{"$error":"#N/A"}},null,null,1]
["",null,null,null,null,null,null,null,null,0,null,null,null,{"$f":"VLOOKUP(Table_Data_Table_13[[#This Row],[Item ID]],Analysis_Table,8,FALSE)","v":{"$error":"#N/A"}},{"$f":"VLOOKUP(Table_Data_Table_13[[#This Row],[Item ID]],Analysis_Table,9,FALSE)","v":{"$error":"#N/A"}},{"$f":"VLOOKUP(Table_Data_Table_13[[#This Row],[Item ID]],Analysis_Table,10,FALSE)","v":{"$error":"#N/A"}},{"$f":"VLOOKUP(Table_Data_Table_13[[#This Row],[Item ID]],Analysis_Table,11,FALSE)","v":{"$error":"#N/A"}},{"$f":"VLOOKUP(Table_Data_Table_13[[#This Row],[Item ID]],Analysis_Table,12,FALSE)","v":{"$error":"#N/A"}},{"$f":"VLOOKUP(Table_Data_Table_13[[#This Row],[Item ID]],Analysis_Table,13,FALSE)","v":{"$error":"#N/A"}},{"$f":"VLOOKUP(Table_Data_Table_13[[#This Row],[Item ID]],Analysis_Table,14,FALSE)","v":{"$error":"#N/A"}},{"$f":"VLOOKUP(Table_Data_Table_13[[#This Row],[Item ID]],Analysis_Table,15,FALSE)","v":{"$error":"#N/A"}},{"$f":"VLOOKUP(Table_Data_Table_13[[#This Row],[Item ID]],Analysis_Table,16,FALSE)","v":{"$error":"#N/A"}},{"$f":"VLOOKUP(Table_Data_Table_13[[#This Row],[Item ID]],Analysis_Table,17,FALSE)","v":{"$error":"#N/A"}},{"$f":"VLOOKUP(Table_Data_Table_13[[#This Row],[Item ID]],Analysis_Table,18,FALSE)","v":{"$error":"#N/A"}},{"$f":"VLOOKUP(Table_Data_Table_13[[#This Row],[Item ID]],Analysis_Table,19,FALSE)","v":{"$error":"#N/A"}},null,null,1]
["",null,null,null,null,null,null,null,null,0,null,null,null,{"$f":"VLOOKUP(Table_Data_Table_13[[#This Row],[Item ID]],Analysis_Table,8,FALSE)","v":{"$error":"#N/A"}},{"$f":"VLOOKUP(Table_Data_Table_13[[#This Row],[Item ID]],Analysis_Table,9,FALSE)","v":{"$error":"#N/A"}},{"$f":"VLOOKUP(Table_Data_Table_13[[#This Row],[Item ID]],Analysis_Table,10,FALSE)","v":{"$error":"#N/A"}},{"$f":"VLOOKUP(Table_Data_Table_13[[#This Row],[Item ID]],Analysis_Table,11,FALSE)","v":{"$error":"#N/A"}},{"$f":"VLOOKUP(Table_Data_Table_13[[#This Row],[Item ID]],Analysis_Table,12,FALSE)","v":{"$error":"#N/A"}},{"$f":"VLOOKUP(Table_Data_Table_13[[#This Row],[Item ID]],Analysis_Table,13,FALSE)","v":{"$error":"#N/A"}},{"$f":"VLOOKUP(Table_Data_Table_13[[#This Row],[Item ID]],Analysis_Table,14,FALSE)","v":{"$error":"#N/A"}},{"$f":"VLOOKUP(Table_Data_Table_13[[#This Row],[Item ID]],Analysis_Table,15,FALSE)","v":{"$error":"#N/A"}},{"$f":"VLOOKUP(Table_Data_Table_13[[#This Row],[Item ID]],Analysis_Table,16,FALSE)","v":{"$error":"#N/A"}},{"$f":"VLOOKUP(Table_Data_Table_13[[#This Row],[Item ID]],Analysis_Table,17,FALSE)","v":{"$error":"#N/A"}},{"$f":"VLOOKUP(Table_Data_Table_13[[#This Row],[Item ID]],Analysis_Table,18,FALSE)","v":{"$error":"#N/A"}},{"$f":"VLOOKUP(Table_Data_Table_13[[#This Row],[Item ID]],Analysis_Table,19,FALSE)","v":{"$error":"#N/A"}},null,null,1]
["",null,null,null,null,null,null,null,null,0,null,null,null,{"$f":"VLOOKUP(Table_Data_Table_13[[#This Row],[Item ID]],Analysis_Table,8,FALSE)","v":{"$error":"#N/A"}},{"$f":"VLOOKUP(Table_Data_Table_13[[#This Row],[Item ID]],Analysis_Table,9,FALSE)","v":{"$error":"#N/A"}},{"$f":"VLOOKUP(Table_Data_Table_13[[#This Row],[Item ID]],Analysis_Table,10,FALSE)","v":{"$error":"#N/A"}},{"$f":"VLOOKUP(Table_Data_Table_13[[#This Row],[Item ID]],Analysis_Table,11,FALSE)","v":{"$error":"#N/A"}},{"$f":"VLOOKUP(Table_Data_Table_13[[#This Row],[Item ID]],Analysis_Table,12,FALSE)","v":{"$error":"#N/A"}},{"$f":"VLOOKUP(Table_Data_Table_13[[#This Row],[Item ID]],Analysis_Table,13,FALSE)","v":{"$error":"#N/A"}},{"$f":"VLOOKUP(Table_Data_Table_13[[#This Row],[Item ID]],Analysis_Table,14,FALSE)","v":{"$error":"#N/A"}},{"$f":"VLOOKUP(Table_Data_Table_13[[#This Row],[Item ID]],Analysis_Table,15,FALSE)","v":{"$error":"#N/A"}},{"$f":"VLOOKUP(Table_Data_Table_13[[#This Row],[Item ID]],Analysis_Table,16,FALSE)","v":{"$error":"#N/A"}},{"$f":"VLOOKUP(Table_Data_Table_13[[#This Row],[Item ID]],Analysis_Table,17,FALSE)","v":{"$error":"#N/A"}},{"$f":"VLOOKUP(Table_Data_Table_13[[#This Row],[Item ID]],Analysis_Table,18,FALSE)","v":{"$error":"#N/A"}},{"$f":"VLOOKUP(Table_Data_Table_13[[#This Row],[Item ID]],Analysis_Table,19,FALSE)","v":{"$error":"#N/A"}},null,null,1]
["",null,null,null,null,null,null,null,null,0,null,null,null,{"$f":"VLOOKUP(Table_Data_Table_13[[#This Row],[Item ID]],Analysis_Table,8,FALSE)","v":{"$error":"#N/A"}},{"$f":"VLOOKUP(Table_Data_Table_13[[#This Row],[Item ID]],Analysis_Table,9,FALSE)","v":{"$error":"#N/A"}},{"$f":"VLOOKUP(Table_Data_Table_13[[#This Row],[Item ID]],Analysis_Table,10,FALSE)","v":{"$error":"#N/A"}},{"$f":"VLOOKUP(Table_Data_Table_13[[#This Row],[Item ID]],Analysis_Table,11,FALSE)","v":{"$error":"#N/A"}},{"$f":"VLOOKUP(Table_Data_Table_13[[#This Row],[Item ID]],Analysis_Table,12,FALSE)","v":{"$error":"#N/A"}},{"$f":"VLOOKUP(Table_Data_Table_13[[#This Row],[Item ID]],Analysis_Table,13,FALSE)","v":{"$error":"#N/A"}},{"$f":"VLOOKUP(Table_Data_Table_13[[#This Row],[Item ID]],Analysis_Table,14,FALSE)","v":{"$error":"#N/A"}},{"$f":"VLOOKUP(Table_Data_Table_13[[#This Row],[Item ID]],Analysis_Table,15,FALSE)","v":{"$error":"#N/A"}},{"$f":"VLOOKUP(Table_Data_Table_13[[#This Row],[Item ID]],Analysis_Table,16,FALSE)","v":{"$error":"#N/A"}},{"$f":"VLOOKUP(Table_Data_Table_13[[#This Row],[Item ID]],Analysis_Table,17,FALSE)","v":{"$error":"#N/A"}},{"$f":"VLOOKUP(Table_Data_Table_13[[#This Row],[Item ID]],Analysis_Table,18,FALSE)","v":{"$error":"#N/A"}},{"$f":"VLOOKUP(Table_Data_Table_13[[#This Row],[Item ID]],Analysis_Table,19,FALSE)","v":{"$error":"#N/A"}},null,null,1]
["",null,null,null,null,null,null,null,null,0,null,null,null,{"$f":"VLOOKUP(Table_Data_Table_13[[#This Row],[Item ID]],Analysis_Table,8,FALSE)","v":{"$error":"#N/A"}},{"$f":"VLOOKUP(Table_Data_Table_13[[#This Row],[Item ID]],Analysis_Table,9,FALSE)","v":{"$error":"#N/A"}},{"$f":"VLOOKUP(Table_Data_Table_13[[#This Row],[Item ID]],Analysis_Table,10,FALSE)","v":{"$error":"#N/A"}},{"$f":"VLOOKUP(Table_Data_Table_13[[#This Row],[Item ID]],Analysis_Table,11,FALSE)","v":{"$error":"#N/A"}},{"$f":"VLOOKUP(Table_Data_Table_13[[#This Row],[Item ID]],Analysis_Table,12,FALSE)","v":{"$error":"#N/A"}},{"$f":"VLOOKUP(Table_Data_Table_13[[#This Row],[Item ID]],Analysis_Table,13,FALSE)","v":{"$error":"#N/A"}},{"$f":"VLOOKUP(Table_Data_Table_13[[#This Row],[Item ID]],Analysis_Table,14,FALSE)","v":{"$error":"#N/A"}},{"$f":"VLOOKUP(Table_Data_Table_13[[#This Row],[Item ID]],Analysis_Table,15,FALSE)","v":{"$error":"#N/A"}},{"$f":"VLOOKUP(Table_Data_Table_13[[#This Row],[Item ID]],Analysis_Table,16,FALSE)","v":{"$error":"#N/A"}},{"$f":"VLOOKUP(Table_Data_Table_13[[#This Row],[Item ID]],Analysis_Table,17,FALSE)","v":{"$error":"#N/A"}},{"$f":"VLOOKUP(Table_Data_Table_13[[#This Row],[Item ID]],Analysis_Table,18,FALSE)","v":{"$error":"#N/A"}},{"$f":"VLOOKUP(Table_Data_Table_13[[#This Row],[Item ID]],Analysis_Table,19,FALSE)","v":{"$error":"#N/A"}},null,null,1]
["",null,null,null,null,null,null,null,null,0,null,null,null,{"$f":"VLOOKUP(Table_Data_Table_13[[#This Row],[Item ID]],Analysis_Table,8,FALSE)","v":{"$error":"#N/A"}},{"$f":"VLOOKUP(Table_Data_Table_13[[#This Row],[Item ID]],Analysis_Table,9,FALSE)","v":{"$error":"#N/A"}},{"$f":"VLOOKUP(Table_Data_Table_13[[#This Row],[Item ID]],Analysis_Table,10,FALSE)","v":{"$error":"#N/A"}},{"$f":"VLOOKUP(Table_Data_Table_13[[#This Row],[Item ID]],Analysis_Table,11,FALSE)","v":{"$error":"#N/A"}},{"$f":"VLOOKUP(Table_Data_Table_13[[#This Row],[Item ID]],Analysis_Table,12,FALSE)","v":{"$error":"#N/A"}},{"$f":"VLOOKUP(Table_Data_Table_13[[#This Row],[Item ID]],Analysis_Table,13,FALSE)","v":{"$error":"#N/A"}},{"$f":"VLOOKUP(Table_Data_Table_13[[#This Row],[Item ID]],Analysis_Table,14,FALSE)","v":{"$error":"#N/A"}},{"$f":"VLOOKUP(Table_Data_Table_13[[#This Row],[Item ID]],Analysis_Table,15,FALSE)","v":{"$error":"#N/A"}},{"$f":"VLOOKUP(Table_Data_Table_13[[#This Row],[Item ID]],Analysis_Table,16,FALSE)","v":{"$error":"#N/A"}},{"$f":"VLOOKUP(Table_Data_Table_13[[#This Row],[Item ID]],Analysis_Table,17,FALSE)","v":{"$error":"#N/A"}},{"$f":"VLOOKUP(Table_Data_Table_13[[#This Row],[Item ID]],Analysis_Table,18,FALSE)","v":{"$error":"#N/A"}},{"$f":"VLOOKUP(Table_Data_Table_13[[#This Row],[Item ID]],Analysis_Table,19,FALSE)","v":{"$error":"#N/A"}},null,null,1]
["",null,null,null,null,null,null,null,null,0,null,null,null,{"$f":"VLOOKUP(Table_Data_Table_13[[#This Row],[Item ID]],Analysis_Table,8,FALSE)","v":{"$error":"#N/A"}},{"$f":"VLOOKUP(Table_Data_Table_13[[#This Row],[Item ID]],Analysis_Table,9,FALSE)","v":{"$error":"#N/A"}},{"$f":"VLOOKUP(Table_Data_Table_13[[#This Row],[Item ID]],Analysis_Table,10,FALSE)","v":{"$error":"#N/A"}},{"$f":"VLOOKUP(Table_Data_Table_13[[#This Row],[Item ID]],Analysis_Table,11,FALSE)","v":{"$error":"#N/A"}},{"$f":"VLOOKUP(Table_Data_Table_13[[#This Row],[Item ID]],Analysis_Table,12,FALSE)","v":{"$error":"#N/A"}},{"$f":"VLOOKUP(Table_Data_Table_13[[#This Row],[Item ID]],Analysis_Table,13,FALSE)","v":{"$error":"#N/A"}},{"$f":"VLOOKUP(Table_Data_Table_13[[#This Row],[Item ID]],Analysis_Table,14,FALSE)","v":{"$error":"#N/A"}},{"$f":"VLOOKUP(Table_Data_Table_13[[#This Row],[Item ID]],Analysis_Table,15,FALSE)","v":{"$error":"#N/A"}},{"$f":"VLOOKUP(Table_Data_Table_13[[#This Row],[Item ID]],Analysis_Table,16,FALSE)","v":{"$error":"#N/A"}},{"$f":"VLOOKUP(Table_Data_Table_13[[#This Row],[Item ID]],Analysis_Table,17,FALSE)","v":{"$error":"#N/A"}},{"$f":"VLOOKUP(Table_Data_Table_13[[#This Row],[Item ID]],Analysis_Table,18,FALSE)","v":{"$error":"#N/A"}},{"$f":"VLOOKUP(Table_Data_Table_13[[#This Row],[Item ID]],Analysis_Table,19,FALSE)","v":{"$error":"#N/A"}},null,null,1]
["",null,null,null,null,null,null,null,null,0,null,null,null,{"$f":"VLOOKUP(Table_Data_Table_13[[#This Row],[Item ID]],Analysis_Table,8,FALSE)","v":{"$error":"#N/A"}},{"$f":"VLOOKUP(Table_Data_Table_13[[#This Row],[Item ID]],Analysis_Table,9,FALSE)","v":{"$error":"#N/A"}},{"$f":"VLOOKUP(Table_Data_Table_13[[#This Row],[Item ID]],Analysis_Table,10,FALSE)","v":{"$error":"#N/A"}},{"$f":"VLOOKUP(Table_Data_Table_13[[#This Row],[Item ID]],Analysis_Table,11,FALSE)","v":{"$error":"#N/A"}},{"$f":"VLOOKUP(Table_Data_Table_13[[#This Row],[Item ID]],Analysis_Table,12,FALSE)","v":{"$error":"#N/A"}},{"$f":"VLOOKUP(Table_Data_Table_13[[#This Row],[Item ID]],Analysis_Table,13,FALSE)","v":{"$error":"#N/A"}},{"$f":"VLOOKUP(Table_Data_Table_13[[#This Row],[Item ID]],Analysis_Table,14,FALSE)","v":{"$error":"#N/A"}},{"$f":"VLOOKUP(Table_Data_Table_13[[#This Row],[Item ID]],Analysis_Table,15,FALSE)","v":{"$error":"#N/A"}},{"$f":"VLOOKUP(Table_Data_Table_13[[#This Row],[Item ID]],Analysis_Table,16,FALSE)","v":{"$error":"#N/A"}},{"$f":"VLOOKUP(Table_Data_Table_13[[#This Row],[Item ID]],Analysis_Table,17,FALSE)","v":{"$error":"#N/A"}},{"$f":"VLOOKUP(Table_Data_Table_13[[#This Row],[Item ID]],Analysis_Table,18,FALSE)","v":{"$error":"#N/A"}},{"$f":"VLOOKUP(Table_Data_Table_13[[#This Row],[Item ID]],Analysis_Table,19,FALSE)","v":{"$error":"#N/A"}},null,null,1]
["",null,null,null,null,null,null,null,null,0,null,null,null,{"$f":"VLOOKUP(Table_Data_Table_13[[#This Row],[Item ID]],Analysis_Table,8,FALSE)","v":{"$error":"#N/A"}},{"$f":"VLOOKUP(Table_Data_Table_13[[#This Row],[Item ID]],Analysis_Table,9,FALSE)","v":{"$error":"#N/A"}},{"$f":"VLOOKUP(Table_Data_Table_13[[#This Row],[Item ID]],Analysis_Table,10,FALSE)","v":{"$error":"#N/A"}},{"$f":"VLOOKUP(Table_Data_Table_13[[#This Row],[Item ID]],Analysis_Table,11,FALSE)","v":{"$error":"#N/A"}},{"$f":"VLOOKUP(Table_Data_Table_13[[#This Row],[Item ID]],Analysis_Table,12,FALSE)","v":{"$error":"#N/A"}},{"$f":"VLOOKUP(Table_Data_Table_13[[#This Row],[Item ID]],Analysis_Table,13,FALSE)","v":{"$error":"#N/A"}},{"$f":"VLOOKUP(Table_Data_Table_13[[#This Row],[Item ID]],Analysis_Table,14,FALSE)","v":{"$error":"#N/A"}},{"$f":"VLOOKUP(Table_Data_Table_13[[#This Row],[Item ID]],Analysis_Table,15,FALSE)","v":{"$error":"#N/A"}},{"$f":"VLOOKUP(Table_Data_Table_13[[#This Row],[Item ID]],Analysis_Table,16,FALSE)","v":{"$error":"#N/A"}},{"$f":"VLOOKUP(Table_Data_Table_13[[#This Row],[Item ID]],Analysis_Table,17,FALSE)","v":{"$error":"#N/A"}},{"$f":"VLOOKUP(Table_Data_Table_13[[#This Row],[Item ID]],Analysis_Table,18,FALSE)","v":{"$error":"#N/A"}},{"$f":"VLOOKUP(Table_Data_Table_13[[#This Row],[Item ID]],Analysis_Table,19,FALSE)","v":{"$error":"#N/A"}},null,null,1]
["",null,null,null,null,null,null,null,null,0,null,null,null,{"$f":"VLOOKUP(Table_Data_Table_13[[#This Row],[Item ID]],Analysis_Table,8,FALSE)","v":{"$error":"#N/A"}},{"$f":"VLOOKUP(Table_Data_Table_13[[#This Row],[Item ID]],Analysis_Table,9,FALSE)","v":{"$error":"#N/A"}},{"$f":"VLOOKUP(Table_Data_Table_13[[#This Row],[Item ID]],Analysis_Table,10,FALSE)","v":{"$error":"#N/A"}},{"$f":"VLOOKUP(Table_Data_Table_13[[#This Row],[Item ID]],Analysis_Table,11,FALSE)","v":{"$error":"#N/A"}},{"$f":"VLOOKUP(Table_Data_Table_13[[#This Row],[Item ID]],Analysis_Table,12,FALSE)","v":{"$error":"#N/A"}},{"$f":"VLOOKUP(Table_Data_Table_13[[#This Row],[Item ID]],Analysis_Table,13,FALSE)","v":{"$error":"#N/A"}},{"$f":"VLOOKUP(Table_Data_Table_13[[#This Row],[Item ID]],Analysis_Table,14,FALSE)","v":{"$error":"#N/A"}},{"$f":"VLOOKUP(Table_Data_Table_13[[#This Row],[Item ID]],Analysis_Table,15,FALSE)","v":{"$error":"#N/A"}},{"$f":"VLOOKUP(Table_Data_Table_13[[#This Row],[Item ID]],Analysis_Table,16,FALSE)","v":{"$error":"#N/A"}},{"$f":"VLOOKUP(Table_Data_Table_13[[#This Row],[Item ID]],Analysis_Table,17,FALSE)","v":{"$error":"#N/A"}},{"$f":"VLOOKUP(Table_Data_Table_13[[#This Row],[Item ID]],Analysis_Table,18,FALSE)","v":{"$error":"#N/A"}},{"$f":"VLOOKUP(Table_Data_Table_13[[#This Row],[Item ID]],Analysis_Table,19,FALSE)","v":{"$error":"#N/A"}},null,null,1]
["",null,null,null,null,null,null,null,null,0,null,null,null,{"$f":"VLOOKUP(Table_Data_Table_13[[#This Row],[Item ID]],Analysis_Table,8,FALSE)","v":{"$error":"#N/A"}},{"$f":"VLOOKUP(Table_Data_Table_13[[#This Row],[Item ID]],Analysis_Table,9,FALSE)","v":{"$error":"#N/A"}},{"$f":"VLOOKUP(Table_Data_Table_13[[#This Row],[Item ID]],Analysis_Table,10,FALSE)","v":{"$error":"#N/A"}},{"$f":"VLOOKUP(Table_Data_Table_13[[#This Row],[Item ID]],Analysis_Table,11,FALSE)","v":{"$error":"#N/A"}},{"$f":"VLOOKUP(Table_Data_Table_13[[#This Row],[Item ID]],Analysis_Table,12,FALSE)","v":{"$error":"#N/A"}},{"$f":"VLOOKUP(Table_Data_Table_13[[#This Row],[Item ID]],Analysis_Table,13,FALSE)","v":{"$error":"#N/A"}},{"$f":"VLOOKUP(Table_Data_Table_13[[#This Row],[Item ID]],Analysis_Table,14,FALSE)","v":{"$error":"#N/A"}},{"$f":"VLOOKUP(Table_Data_Table_13[[#This Row],[Item ID]],Analysis_Table,15,FALSE)","v":{"$error":"#N/A"}},{"$f":"VLOOKUP(Table_Data_Table_13[[#This Row],[Item ID]],Analysis_Table,16,FALSE)","v":{"$error":"#N/A"}},{"$f":"VLOOKUP(Table_Data_Table_13[[#This Row],[Item ID]],Analysis_Table,17,FALSE)","v":{"$error":"#N/A"}},{"$f":"VLOOKUP(Table_Data_Table_13[[#This Row],[Item ID]],Analysis_Table,18,FALSE)","v":{"$error":"#N/A"}},{"$f":"VLOOKUP(Table_Data_Table_13[[#This Row],[Item ID]],Analysis_Table,19,FALSE)","v":{"$error":"#N/A"}},null,null,1]
["",null,null,null,null,null,null,null,null,0,null,null,null,{"$f":"VLOOKUP(Table_Data_Table_13[[#This Row],[Item ID]],Analysis_Table,8,FALSE)","v":{"$error":"#N/A"}},{"$f":"VLOOKUP(Table_Data_Table_13[[#This Row],[Item ID]],Analysis_Table,9,FALSE)","v":{"$error":"#N/A"}},{"$f":"VLOOKUP(Table_Data_Table_13[[#This Row],[Item ID]],Analysis_Table,10,FALSE)","v":{"$error":"#N/A"}},{"$f":"VLOOKUP(Table_Data_Table_13[[#This Row],[Item ID]],Analysis_Table,11,FALSE)","v":{"$error":"#N/A"}},{"$f":"VLOOKUP(Table_Data_Table_13[[#This Row],[Item ID]],Analysis_Table,12,FALSE)","v":{"$error":"#N/A"}},{"$f":"VLOOKUP(Table_Data_Table_13[[#This Row],[Item ID]],Analysis_Table,13,FALSE)","v":{"$error":"#N/A"}},{"$f":"VLOOKUP(Table_Data_Table_13[[#This Row],[Item ID]],Analysis_Table,14,FALSE)","v":{"$error":"#N/A"}},{"$f":"VLOOKUP(Table_Data_Table_13[[#This Row],[Item ID]],Analysis_Table,15,FALSE)","v":{"$error":"#N/A"}},{"$f":"VLOOKUP(Table_Data_Table_13[[#This Row],[Item ID]],Analysis_Table,16,FALSE)","v":{"$error":"#N/A"}},{"$f":"VLOOKUP(Table_Data_Table_13[[#This Row],[Item ID]],Analysis_Table,17,FALSE)","v":{"$error":"#N/A"}},{"$f":"VLOOKUP(Table_Data_Table_13[[#This Row],[Item ID]],Analysis_Table,18,FALSE)","v":{"$error":"#N/A"}},{"$f":"VLOOKUP(Table_Data_Table_13[[#This Row],[Item ID]],Analysis_Table,19,FALSE)","v":{"$error":"#N/A"}},null,null,1]
["",null,null,null,null,null,null,null,null,0,null,null,null,{"$f":"VLOOKUP(Table_Data_Table_13[[#This Row],[Item ID]],Analysis_Table,8,FALSE)","v":{"$error":"#N/A"}},{"$f":"VLOOKUP(Table_Data_Table_13[[#This Row],[Item ID]],Analysis_Table,9,FALSE)","v":{"$error":"#N/A"}},{"$f":"VLOOKUP(Table_Data_Table_13[[#This Row],[Item ID]],Analysis_Table,10,FALSE)","v":{"$error":"#N/A"}},{"$f":"VLOOKUP(Table_Data_Table_13[[#This Row],[Item ID]],Analysis_Table,11,FALSE)","v":{"$error":"#N/A"}},{"$f":"VLOOKUP(Table_Data_Table_13[[#This Row],[Item ID]],Analysis_Table,12,FALSE)","v":{"$error":"#N/A"}},{"$f":"VLOOKUP(Table_Data_Table_13[[#This Row],[Item ID]],Analysis_Table,13,FALSE)","v":{"$error":"#N/A"}},{"$f":"VLOOKUP(Table_Data_Table_13[[#This Row],[Item ID]],Analysis_Table,14,FALSE)","v":{"$error":"#N/A"}},{"$f":"VLOOKUP(Table_Data_Table_13[[#This Row],[Item ID]],Analysis_Table,15,FALSE)","v":{"$error":"#N/A"}},{"$f":"VLOOKUP(Table_Data_Table_13[[#This Row],[Item ID]],Analysis_Table,16,FALSE)","v":{"$error":"#N/A"}},{"$f":"VLOOKUP(Table_Data_Table_13[[#This Row],[Item ID]],Analysis_Table,17,FALSE)","v":{"$error":"#N/A"}},{"$f":"VLOOKUP(Table_Data_Table_13[[#This Row],[Item ID]],Analysis_Table,18,FALSE)","v":{"$error":"#N/A"}},{"$f":"VLOOKUP(Table_Data_Table_13[[#This Row],[Item ID]],Analysis_Table,19,FALSE)","v":{"$error":"#N/A"}},null,null,1]
["",null,null,null,null,null,null,null,null,0,null,null,null,{"$f":"VLOOKUP(Table_Data_Table_13[[#This Row],[Item ID]],Analysis_Table,8,FALSE)","v":{"$error":"#N/A"}},{"$f":"VLOOKUP(Table_Data_Table_13[[#This Row],[Item ID]],Analysis_Table,9,FALSE)","v":{"$error":"#N/A"}},{"$f":"VLOOKUP(Table_Data_Table_13[[#This Row],[Item ID]],Analysis_Table,10,FALSE)","v":{"$error":"#N/A"}},{"$f":"VLOOKUP(Table_Data_Table_13[[#This Row],[Item ID]],Analysis_Table,11,FALSE)","v":{"$error":"#N/A"}},{"$f":"VLOOKUP(Table_Data_Table_13[[#This Row],[Item ID]],Analysis_Table,12,FALSE)","v":{"$error":"#N/A"}},{"$f":"VLOOKUP(Table_Data_Table_13[[#This Row],[Item ID]],Analysis_Table,13,FALSE)","v":{"$error":"#N/A"}},{"$f":"VLOOKUP(Table_Data_Table_13[[#This Row],[Item ID]],Analysis_Table,14,FALSE)","v":{"$error":"#N/A"}},{"$f":"VLOOKUP(Table_Data_Table_13[[#This Row],[Item ID]],Analysis_Table,15,FALSE)","v":{"$error":"#N/A"}},{"$f":"VLOOKUP(Table_Data_Table_13[[#This Row],[Item ID]],Analysis_Table,16,FALSE)","v":{"$error":"#N/A"}},{"$f":"VLOOKUP(Table_Data_Table_13[[#This Row],[Item ID]],Analysis_Table,17,FALSE)","v":{"$error":"#N/A"}},{"$f":"VLOOKUP(Table_Data_Table_13[[#This Row],[Item ID]],Analysis_Table,18,FALSE)","v":{"$error":"#N/A"}},{"$f":"VLOOKUP(Table_Data_Table_13[[#This Row],[Item ID]],Analysis_Table,19,FALSE)","v":{"$error":"#N/A"}},null,null,1]
["",null,null,null,null,null,null,null,null,0,null,null,null,{"$f":"VLOOKUP(Table_Data_Table_13[[#This Row],[Item ID]],Analysis_Table,8,FALSE)","v":{"$error":"#N/A"}},{"$f":"VLOOKUP(Table_Data_Table_13[[#This Row],[Item ID]],Analysis_Table,9,FALSE)","v":{"$error":"#N/A"}},{"$f":"VLOOKUP(Table_Data_Table_13[[#This Row],[Item ID]],Analysis_Table,10,FALSE)","v":{"$error":"#N/A"}},{"$f":"VLOOKUP(Table_Data_Table_13[[#This Row],[Item ID]],Analysis_Table,11,FALSE)","v":{"$error":"#N/A"}},{"$f":"VLOOKUP(Table_Data_Table_13[[#This Row],[Item ID]],Analysis_Table,12,FALSE)","v":{"$error":"#N/A"}},{"$f":"VLOOKUP(Table_Data_Table_13[[#This Row],[Item ID]],Analysis_Table,13,FALSE)","v":{"$error":"#N/A"}},{"$f":"VLOOKUP(Table_Data_Table_13[[#This Row],[Item ID]],Analysis_Table,14,FALSE)","v":{"$error":"#N/A"}},{"$f":"VLOOKUP(Table_Data_Table_13[[#This Row],[Item ID]],Analysis_Table,15,FALSE)","v":{"$error":"#N/A"}},{"$f":"VLOOKUP(Table_Data_Table_13[[#This Row],[Item ID]],Analysis_Table,16,FALSE)","v":{"$error":"#N/A"}},{"$f":"VLOOKUP(Table_Data_Table_13[[#This Row],[Item ID]],Analysis_Table,17,FALSE)","v":{"$error":"#N/A"}},{"$f":"VLOOKUP(Table_Data_Table_13[[#This Row],[Item ID]],Analysis_Table,18,FALSE)","v":{"$error":"#N/A"}},{"$f":"VLOOKUP(Table_Data_Table_13[[#This Row],[Item ID]],Analysis_Table,19,FALSE)","v":{"$error":"#N/A"}},null,null,1]
["",null,null,null,null,null,null,null,null,0,null,null,null,{"$f":"VLOOKUP(Table_Data_Table_13[[#This Row],[Item ID]],Analysis_Table,8,FALSE)","v":{"$error":"#N/A"}},{"$f":"VLOOKUP(Table_Data_Table_13[[#This Row],[Item ID]],Analysis_Table,9,FALSE)","v":{"$error":"#N/A"}},{"$f":"VLOOKUP(Table_Data_Table_13[[#This Row],[Item ID]],Analysis_Table,10,FALSE)","v":{"$error":"#N/A"}},{"$f":"VLOOKUP(Table_Data_Table_13[[#This Row],[Item ID]],Analysis_Table,11,FALSE)","v":{"$error":"#N/A"}},{"$f":"VLOOKUP(Table_Data_Table_13[[#This Row],[Item ID]],Analysis_Table,12,FALSE)","v":{"$error":"#N/A"}},{"$f":"VLOOKUP(Table_Data_Table_13[[#This Row],[Item ID]],Analysis_Table,13,FALSE)","v":{"$error":"#N/A"}},{"$f":"VLOOKUP(Table_Data_Table_13[[#This Row],[Item ID]],Analysis_Table,14,FALSE)","v":{"$error":"#N/A"}},{"$f":"VLOOKUP(Table_Data_Table_13[[#This Row],[Item ID]],Analysis_Table,15,FALSE)","v":{"$error":"#N/A"}},{"$f":"VLOOKUP(Table_Data_Table_13[[#This Row],[Item ID]],Analysis_Table,16,FALSE)","v":{"$error":"#N/A"}},{"$f":"VLOOKUP(Table_Data_Table_13[[#This Row],[Item ID]],Analysis_Table,17,FALSE)","v":{"$error":"#N/A"}},{"$f":"VLOOKUP(Table_Data_Table_13[[#This Row],[Item ID]],Analysis_Table,18,FALSE)","v":{"$error":"#N/A"}},{"$f":"VLOOKUP(Table_Data_Table_13[[#This Row],[Item ID]],Analysis_Table,19,FALSE)","v":{"$error":"#N/A"}},null,null,1]
["",null,null,null,null,null,null,null,null,0,null,null,null,{"$f":"VLOOKUP(Table_Data_Table_13[[#This Row],[Item ID]],Analysis_Table,8,FALSE)","v":{"$error":"#N/A"}},{"$f":"VLOOKUP(Table_Data_Table_13[[#This Row],[Item ID]],Analysis_Table,9,FALSE)","v":{"$error":"#N/A"}},{"$f":"VLOOKUP(Table_Data_Table_13[[#This Row],[Item ID]],Analysis_Table,10,FALSE)","v":{"$error":"#N/A"}},{"$f":"VLOOKUP(Table_Data_Table_13[[#This Row],[Item ID]],Analysis_Table,11,FALSE)","v":{"$error":"#N/A"}},{"$f":"VLOOKUP(Table_Data_Table_13[[#This Row],[Item ID]],Analysis_Table,12,FALSE)","v":{"$error":"#N/A"}},{"$f":"VLOOKUP(Table_Data_Table_13[[#This Row],[Item ID]],Analysis_Table,13,FALSE)","v":{"$error":"#N/A"}},{"$f":"VLOOKUP(Table_Data_Table_13[[#This Row],[Item ID]],Analysis_Table,14,FALSE)","v":{"$error":"#N/A"}},{"$f":"VLOOKUP(Table_Data_Table_13[[#This Row],[Item ID]],Analysis_Table,15,FALSE)","v":{"$error":"#N/A"}},{"$f":"VLOOKUP(Table_Data_Table_13[[#This Row],[Item ID]],Analysis_Table,16,FALSE)","v":{"$error":"#N/A"}},{"$f":"VLOOKUP(Table_Data_Table_13[[#This Row],[Item ID]],Analysis_Table,17,FALSE)","v":{"$error":"#N/A"}},{"$f":"VLOOKUP(Table_Data_Table_13[[#This Row],[Item ID]],Analysis_Table,18,FALSE)","v":{"$error":"#N/A"}},{"$f":"VLOOKUP(Table_Data_Table_13[[#This Row],[Item ID]],Analysis_Table,19,FALSE)","v":{"$error":"#N/A"}},null,null,1]
["",null,null,null,null,null,null,null,null,0,null,null,null,{"$f":"VLOOKUP(Table_Data_Table_13[[#This Row],[Item ID]],Analysis_Table,8,FALSE)","v":{"$error":"#N/A"}},{"$f":"VLOOKUP(Table_Data_Table_13[[#This Row],[Item ID]],Analysis_Table,9,FALSE)","v":{"$error":"#N/A"}},{"$f":"VLOOKUP(Table_Data_Table_13[[#This Row],[Item ID]],Analysis_Table,10,FALSE)","v":{"$error":"#N/A"}},{"$f":"VLOOKUP(Table_Data_Table_13[[#This Row],[Item ID]],Analysis_Table,11,FALSE)","v":{"$error":"#N/A"}},{"$f":"VLOOKUP(Table_Data_Table_13[[#This Row],[Item ID]],Analysis_Table,12,FALSE)","v":{"$error":"#N/A"}},{"$f":"VLOOKUP(Table_Data_Table_13[[#This Row],[Item ID]],Analysis_Table,13,FALSE)","v":{"$error":"#N/A"}},{"$f":"VLOOKUP(Table_Data_Table_13[[#This Row],[Item ID]],Analysis_Table,14,FALSE)","v":{"$error":"#N/A"}},{"$f":"VLOOKUP(Table_Data_Table_13[[#This Row],[Item ID]],Analysis_Table,15,FALSE)","v":{"$error":"#N/A"}},{"$f":"VLOOKUP(Table_Data_Table_13[[#This Row],[Item ID]],Analysis_Table,16,FALSE)","v":{"$error":"#N/A"}},{"$f":"VLOOKUP(Table_Data_Table_13[[#This Row],[Item ID]],Analysis_Table,17,FALSE)","v":{"$error":"#N/A"}},{"$f":"VLOOKUP(Table_Data_Table_13[[#This Row],[Item ID]],Analysis_Table,18,FALSE)","v":{"$error":"#N/A"}},{"$f":"VLOOKUP(Table_Data_Table_13[[#This Row],[Item ID]],Analysis_Table,19,FALSE)","v":{"$error":"#N/A"}},null,null,1]
["",null,null,null,null,null,null,null,null,0,null,null,null,{"$f":"VLOOKUP(Table_Data_Table_13[[#This Row],[Item ID]],Analysis_Table,8,FALSE)","v":{"$error":"#N/A"}},{"$f":"VLOOKUP(Table_Data_Table_13[[#This Row],[Item ID]],Analysis_Table,9,FALSE)","v":{"$error":"#N/A"}},{"$f":"VLOOKUP(Table_Data_Table_13[[#This Row],[Item ID]],Analysis_Table,10,FALSE)","v":{"$error":"#N/A"}},{"$f":"VLOOKUP(Table_Data_Table_13[[#This Row],[Item ID]],Analysis_Table,11,FALSE)","v":{"$error":"#N/A"}},{"$f":"VLOOKUP(Table_Data_Table_13[[#This Row],[Item ID]],Analysis_Table,12,FALSE)","v":{"$error":"#N/A"}},{"$f":"VLOOKUP(Table_Data_Table_13[[#This Row],[Item ID]],Analysis_Table,13,FALSE)","v":{"$error":"#N/A"}},{"$f":"VLOOKUP(Table_Data_Table_13[[#This Row],[Item ID]],Analysis_Table,14,FALSE)","v":{"$error":"#N/A"}},{"$f":"VLOOKUP(Table_Data_Table_13[[#This Row],[Item ID]],Analysis_Table,15,FALSE)","v":{"$error":"#N/A"}},{"$f":"VLOOKUP(Table_Data_Table_13[[#This Row],[Item ID]],Analysis_Table,16,FALSE)","v":{"$error":"#N/A"}},{"$f":"VLOOKUP(Table_Data_Table_13[[#This Row],[Item ID]],Analysis_Table,17,FALSE)","v":{"$error":"#N/A"}},{"$f":"VLOOKUP(Table_Data_Table_13[[#This Row],[Item ID]],Analysis_Table,18,FALSE)","v":{"$error":"#N/A"}},{"$f":"VLOOKUP(Table_Data_Table_13[[#This Row],[Item ID]],Analysis_Table,19,FALSE)","v":{"$error":"#N/A"}},null,null,1]
["",null,null,null,null,null,null,null,null,0,null,null,null,{"$f":"VLOOKUP(Table_Data_Table_13[[#This Row],[Item ID]],Analysis_Table,8,FALSE)","v":{"$error":"#N/A"}},{"$f":"VLOOKUP(Table_Data_Table_13[[#This Row],[Item ID]],Analysis_Table,9,FALSE)","v":{"$error":"#N/A"}},{"$f":"VLOOKUP(Table_Data_Table_13[[#This Row],[Item ID]],Analysis_Table,10,FALSE)","v":{"$error":"#N/A"}},{"$f":"VLOOKUP(Table_Data_Table_13[[#This Row],[Item ID]],Analysis_Table,11,FALSE)","v":{"$error":"#N/A"}},{"$f":"VLOOKUP(Table_Data_Table_13[[#This Row],[Item ID]],Analysis_Table,12,FALSE)","v":{"$error":"#N/A"}},{"$f":"VLOOKUP(Table_Data_Table_13[[#This Row],[Item ID]],Analysis_Table,13,FALSE)","v":{"$error":"#N/A"}},{"$f":"VLOOKUP(Table_Data_Table_13[[#This Row],[Item ID]],Analysis_Table,14,FALSE)","v":{"$error":"#N/A"}},{"$f":"VLOOKUP(Table_Data_Table_13[[#This Row],[Item ID]],Analysis_Table,15,FALSE)","v":{"$error":"#N/A"}},{"$f":"VLOOKUP(Table_Data_Table_13[[#This Row],[Item ID]],Analysis_Table,16,FALSE)","v":{"$error":"#N/A"}},{"$f":"VLOOKUP(Table_Data_Table_13[[#This Row],[Item ID]],Analysis_Table,17,FALSE)","v":{"$error":"#N/A"}},{"$f":"VLOOKUP(Table_Data_Table_13[[#This Row],[Item ID]],Analysis_Table,18,FALSE)","v":{"$error":"#N/A"}},{"$f":"VLOOKUP(Table_Data_Table_13[[#This Row],[Item ID]],Analysis_Table,19,FALSE)","v":{"$error":"#N/A"}},null,null,1]
["",null,null,null,null,null,null,null,null,0,null,null,null,{"$f":"VLOOKUP(Table_Data_Table_13[[#This Row],[Item ID]],Analysis_Table,8,FALSE)","v":{"$error":"#N/A"}},{"$f":"VLOOKUP(Table_Data_Table_13[[#This Row],[Item ID]],Analysis_Table,9,FALSE)","v":{"$error":"#N/A"}},{"$f":"VLOOKUP(Table_Data_Table_13[[#This Row],[Item ID]],Analysis_Table,10,FALSE)","v":{"$error":"#N/A"}},{"$f":"VLOOKUP(Table_Data_Table_13[[#This Row],[Item ID]],Analysis_Table,11,FALSE)","v":{"$error":"#N/A"}},{"$f":"VLOOKUP(Table_Data_Table_13[[#This Row],[Item ID]],Analysis_Table,12,FALSE)","v":{"$error":"#N/A"}},{"$f":"VLOOKUP(Table_Data_Table_13[[#This Row],[Item ID]],Analysis_Table,13,FALSE)","v":{"$error":"#N/A"}},{"$f":"VLOOKUP(Table_Data_Table_13[[#This Row],[Item ID]],Analysis_Table,14,FALSE)","v":{"$error":"#N/A"}},{"$f":"VLOOKUP(Table_Data_Table_13[[#This Row],[Item ID]],Analysis_Table,15,FALSE)","v":{"$error":"#N/A"}},{"$f":"VLOOKUP(Table_Data_Table_13[[#This Row],[Item ID]],Analysis_Table,16,FALSE)","v":{"$error":"#N/A"}},{"$f":"VLOOKUP(Table_Data_Table_13[[#This Row],[Item ID]],Analysis_Table,17,FALSE)","v":{"$error":"#N/A"}},{"$f":"VLOOKUP(Table_Data_Table_13[[#This Row],[Item ID]],Analysis_Table,18,FALSE)","v":{"$error":"#N/A"}},{"$f":"VLOOKUP(Table_Data_Table_13[[#This Row],[Item ID]],Analysis_Table,19,FALSE)","v":{"$error":"#N/A"}},null,null,1]
["",null,null,null,null,null,null,null,null,0,null,null,null,{"$f":"VLOOKUP(Table_Data_Table_13[[#This Row],[Item ID]],Analysis_Table,8,FALSE)","v":{"$error":"#N/A"}},{"$f":"VLOOKUP(Table_Data_Table_13[[#This Row],[Item ID]],Analysis_Table,9,FALSE)","v":{"$error":"#N/A"}},{"$f":"VLOOKUP(Table_Data_Table_13[[#This Row],[Item ID]],Analysis_Table,10,FALSE)","v":{"$error":"#N/A"}},{"$f":"VLOOKUP(Table_Data_Table_13[[#This Row],[Item ID]],Analysis_Table,11,FALSE)","v":{"$error":"#N/A"}},{"$f":"VLOOKUP(Table_Data_Table_13[[#This Row],[Item ID]],Analysis_Table,12,FALSE)","v":{"$error":"#N/A"}},{"$f":"VLOOKUP(Table_Data_Table_13[[#This Row],[Item ID]],Analysis_Table,13,FALSE)","v":{"$error":"#N/A"}},{"$f":"VLOOKUP(Table_Data_Table_13[[#This Row],[Item ID]],Analysis_Table,14,FALSE)","v":{"$error":"#N/A"}},{"$f":"VLOOKUP(Table_Data_Table_13[[#This Row],[Item ID]],Analysis_Table,15,FALSE)","v":{"$error":"#N/A"}},{"$f":"VLOOKUP(Table_Data_Table_13[[#This Row],[Item ID]],Analysis_Table,16,FALSE)","v":{"$error":"#N/A"}},{"$f":"VLOOKUP(Table_Data_Table_13[[#This Row],[Item ID]],Analysis_Table,17,FALSE)","v":{"$error":"#N/A"}},{"$f":"VLOOKUP(Table_Data_Table_13[[#This Row],[Item ID]],Analysis_Table,18,FALSE)","v":{"$error":"#N/A"}},{"$f":"VLOOKUP(Table_Data_Table_13[[#This Row],[Item ID]],Analysis_Table,19,FALSE)","v":{"$error":"#N/A"}},null,null,1]
["",null,null,null,null,null,null,null,null,0,null,null,null,{"$f":"VLOOKUP(Table_Data_Table_13[[#This Row],[Item ID]],Analysis_Table,8,FALSE)","v":{"$error":"#N/A"}},{"$f":"VLOOKUP(Table_Data_Table_13[[#This Row],[Item ID]],Analysis_Table,9,FALSE)","v":{"$error":"#N/A"}},{"$f":"VLOOKUP(Table_Data_Table_13[[#This Row],[Item ID]],Analysis_Table,10,FALSE)","v":{"$error":"#N/A"}},{"$f":"VLOOKUP(Table_Data_Table_13[[#This Row],[Item ID]],Analysis_Table,11,FALSE)","v":{"$error":"#N/A"}},{"$f":"VLOOKUP(Table_Data_Table_13[[#This Row],[Item ID]],Analysis_Table,12,FALSE)","v":{"$error":"#N/A"}},{"$f":"VLOOKUP(Table_Data_Table_13[[#This Row],[Item ID]],Analysis_Table,13,FALSE)","v":{"$error":"#N/A"}},{"$f":"VLOOKUP(Table_Data_Table_13[[#This Row],[Item ID]],Analysis_Table,14,FALSE)","v":{"$error":"#N/A"}},{"$f":"VLOOKUP(Table_Data_Table_13[[#This Row],[Item ID]],Analysis_Table,15,FALSE)","v":{"$error":"#N/A"}},{"$f":"VLOOKUP(Table_Data_Table_13[[#This Row],[Item ID]],Analysis_Table,16,FALSE)","v":{"$error":"#N/A"}},{"$f":"VLOOKUP(Table_Data_Table_13[[#This Row],[Item ID]],Analysis_Table,17,FALSE)","v":{"$error":"#N/A"}},{"$f":"VLOOKUP(Table_Data_Table_13[[#This Row],[Item ID]],Analysis_Table,18,FALSE)","v":{"$error":"#N/A"}},{"$f":"VLOOKUP(Table_Data_Table_13[[#This Row],[Item ID]],Analysis_Table,19,FALSE)","v":{"$error":"#N/A"}},null,null,1]
["",null,null,null,null,null,null,null,null,0,null,null,null,{"$f":"VLOOKUP(Table_Data_Table_13[[#This Row],[Item ID]],Analysis_Table,8,FALSE)","v":{"$error":"#N/A"}},{"$f":"VLOOKUP(Table_Data_Table_13[[#This Row],[Item ID]],Analysis_Table,9,FALSE)","v":{"$error":"#N/A"}},{"$f":"VLOOKUP(Table_Data_Table_13[[#This Row],[Item ID]],Analysis_Table,10,FALSE)","v":{"$error":"#N/A"}},{"$f":"VLOOKUP(Table_Data_Table_13[[#This Row],[Item ID]],Analysis_Table,11,FALSE)","v":{"$error":"#N/A"}},{"$f":"VLOOKUP(Table_Data_Table_13[[#This Row],[Item ID]],Analysis_Table,12,FALSE)","v":{"$error":"#N/A"}},{"$f":"VLOOKUP(Table_Data_Table_13[[#This Row],[Item ID]],Analysis_Table,13,FALSE)","v":{"$error":"#N/A"}},{"$f":"VLOOKUP(Table_Data_Table_13[[#This Row],[Item ID]],Analysis_Table,14,FALSE)","v":{"$error":"#N/A"}},{"$f":"VLOOKUP(Table_Data_Table_13[[#This Row],[Item ID]],Analysis_Table,15,FALSE)","v":{"$error":"#N/A"}},{"$f":"VLOOKUP(Table_Data_Table_13[[#This Row],[Item ID]],Analysis_Table,16,FALSE)","v":{"$error":"#N/A"}},{"$f":"VLOOKUP(Table_Data_Table_13[[#This Row],[Item ID]],Analysis_Table,17,FALSE)","v":{"$error":"#N/A"}},{"$f":"VLOOKUP(Table_Data_Table_13[[#This Row],[Item ID]],Analysis_Table,18,FALSE)","v":{"$error":"#N/A"}},{"$f":"VLOOKUP(Table_Data_Table_13[[#This Row],[Item ID]],Analysis_Table,19,FALSE)","v":{"$error":"#N/A"}},null,null,1]
["",null,null,null,null,null,null,null,null,0,null,null,null,{"$f":"VLOOKUP(Table_Data_Table_13[[#This Row],[Item ID]],Analysis_Table,8,FALSE)","v":{"$error":"#N/A"}},{"$f":"VLOOKUP(Table_Data_Table_13[[#This Row],[Item ID]],Analysis_Table,9,FALSE)","v":{"$error":"#N/A"}},{"$f":"VLOOKUP(Table_Data_Table_13[[#This Row],[Item ID]],Analysis_Table,10,FALSE)","v":{"$error":"#N/A"}},{"$f":"VLOOKUP(Table_Data_Table_13[[#This Row],[Item ID]],Analysis_Table,11,FALSE)","v":{"$error":"#N/A"}},{"$f":"VLOOKUP(Table_Data_Table_13[[#This Row],[Item ID]],Analysis_Table,12,FALSE)","v":{"$error":"#N/A"}},{"$f":"VLOOKUP(Table_Data_Table_13[[#This Row],[Item ID]],Analysis_Table,13,FALSE)","v":{"$error":"#N/A"}},{"$f":"VLOOKUP(Table_Data_Table_13[[#This Row],[Item ID]],Analysis_Table,14,FALSE)","v":{"$error":"#N/A"}},{"$f":"VLOOKUP(Table_Data_Table_13[[#This Row],[Item ID]],Analysis_Table,15,FALSE)","v":{"$error":"#N/A"}},{"$f":"VLOOKUP(Table_Data_Table_13[[#This Row],[Item ID]],Analysis_Table,16,FALSE)","v":{"$error":"#N/A"}},{"$f":"VLOOKUP(Table_Data_Table_13[[#This Row],[Item ID]],Analysis_Table,17,FALSE)","v":{"$error":"#N/A"}},{"$f":"VLOOKUP(Table_Data_Table_13[[#This Row],[Item ID]],Analysis_Table,18,FALSE)","v":{"$error":"#N/A"}},{"$f":"VLOOKUP(Table_Data_Table_13[[#This Row],[Item ID]],Analysis_Table,19,FALSE)","v":{"$error":"#N/A"}},null,null,1]
["",null,null,null,null,null,null,null,null,0,null,null,null,{"$f":"VLOOKUP(Table_Data_Table_13[[#This Row],[Item ID]],Analysis_Table,8,FALSE)","v":{"$error":"#N/A"}},{"$f":"VLOOKUP(Table_Data_Table_13[[#This Row],[Item ID]],Analysis_Table,9,FALSE)","v":{"$error":"#N/A"}},{"$f":"VLOOKUP(Table_Data_Table_13[[#This Row],[Item ID]],Analysis_Table,10,FALSE)","v":{"$error":"#N/A"}},{"$f":"VLOOKUP(Table_Data_Table_13[[#This Row],[Item ID]],Analysis_Table,11,FALSE)","v":{"$error":"#N/A"}},{"$f":"VLOOKUP(Table_Data_Table_13[[#This Row],[Item ID]],Analysis_Table,12,FALSE)","v":{"$error":"#N/A"}},{"$f":"VLOOKUP(Table_Data_Table_13[[#This Row],[Item ID]],Analysis_Table,13,FALSE)","v":{"$error":"#N/A"}},{"$f":"VLOOKUP(Table_Data_Table_13[[#This Row],[Item ID]],Analysis_Table,14,FALSE)","v":{"$error":"#N/A"}},{"$f":"VLOOKUP(Table_Data_Table_13[[#This Row],[Item ID]],Analysis_Table,15,FALSE)","v":{"$error":"#N/A"}},{"$f":"VLOOKUP(Table_Data_Table_13[[#This Row],[Item ID]],Analysis_Table,16,FALSE)","v":{"$error":"#N/A"}},{"$f":"VLOOKUP(Table_Data_Table_13[[#This Row],[Item ID]],Analysis_Table,17,FALSE)","v":{"$error":"#N/A"}},{"$f":"VLOOKUP(Table_Data_Table_13[[#This Row],[Item ID]],Analysis_Table,18,FALSE)","v":{"$error":"#N/A"}},{"$f":"VLOOKUP(Table_Data_Table_13[[#This Row],[Item ID]],Analysis_Table,19,FALSE)","v":{"$error":"#N/A"}},null,null,1]
["",null,null,null,null,null,null,null,null,0,null,null,null,{"$f":"VLOOKUP(Table_Data_Table_13[[#This Row],[Item ID]],Analysis_Table,8,FALSE)","v":{"$error":"#N/A"}},{"$f":"VLOOKUP(Table_Data_Table_13[[#This Row],[Item ID]],Analysis_Table,9,FALSE)","v":{"$error":"#N/A"}},{"$f":"VLOOKUP(Table_Data_Table_13[[#This Row],[Item ID]],Analysis_Table,10,FALSE)","v":{"$error":"#N/A"}},{"$f":"VLOOKUP(Table_Data_Table_13[[#This Row],[Item ID]],Analysis_Table,11,FALSE)","v":{"$error":"#N/A"}},{"$f":"VLOOKUP(Table_Data_Table_13[[#This Row],[Item ID]],Analysis_Table,12,FALSE)","v":{"$error":"#N/A"}},{"$f":"VLOOKUP(Table_Data_Table_13[[#This Row],[Item ID]],Analysis_Table,13,FALSE)","v":{"$error":"#N/A"}},{"$f":"VLOOKUP(Table_Data_Table_13[[#This Row],[Item ID]],Analysis_Table,14,FALSE)","v":{"$error":"#N/A"}},{"$f":"VLOOKUP(Table_Data_Table_13[[#This Row],[Item ID]],Analysis_Table,15,FALSE)","v":{"$error":"#N/A"}},{"$f":"VLOOKUP(Table_Data_Table_13[[#This Row],[Item ID]],Analysis_Table,16,FALSE)","v":{"$error":"#N/A"}},{"$f":"VLOOKUP(Table_Data_Table_13[[#This Row],[Item ID]],Analysis_Table,17,FALSE)","v":{"$error":"#N/A"}},{"$f":"VLOOKUP(Table_Data_Table_13[[#This Row],[Item ID]],Analysis_Table,18,FALSE)","v":{"$error":"#N/A"}},{"$f":"VLOOKUP(Table_Data_Table_13[[#This Row],[Item ID]],Analysis_Table,19,FALSE)","v":{"$error":"#N/A"}},null,null,1]
["",null,null,null,null,null,null,null,null,0,null,null,null,{"$f":"VLOOKUP(Table_Data_Table_13[[#This Row],[Item ID]],Analysis_Table,8,FALSE)","v":{"$error":"#N/A"}},{"$f":"VLOOKUP(Table_Data_Table_13[[#This Row],[Item ID]],Analysis_Table,9,FALSE)","v":{"$error":"#N/A"}},{"$f":"VLOOKUP(Table_Data_Table_13[[#This Row],[Item ID]],Analysis_Table,10,FALSE)","v":{"$error":"#N/A"}},{"$f":"VLOOKUP(Table_Data_Table_13[[#This Row],[Item ID]],Analysis_Table,11,FALSE)","v":{"$error":"#N/A"}},{"$f":"VLOOKUP(Table_Data_Table_13[[#This Row],[Item ID]],Analysis_Table,12,FALSE)","v":{"$error":"#N/A"}},{"$f":"VLOOKUP(Table_Data_Table_13[[#This Row],[Item ID]],Analysis_Table,13,FALSE)","v":{"$error":"#N/A"}},{"$f":"VLOOKUP(Table_Data_Table_13[[#This Row],[Item ID]],Analysis_Table,14,FALSE)","v":{"$error":"#N/A"}},{"$f":"VLOOKUP(Table_Data_Table_13[[#This Row],[Item ID]],Analysis_Table,15,FALSE)","v":{"$error":"#N/A"}},{"$f":"VLOOKUP(Table_Data_Table_13[[#This Row],[Item ID]],Analysis_Table,16,FALSE)","v":{"$error":"#N/A"}},{"$f":"VLOOKUP(Table_Data_Table_13[[#This Row],[Item ID]],Analysis_Table,17,FALSE)","v":{"$error":"#N/A"}},{"$f":"VLOOKUP(Table_Data_Table_13[[#This Row],[Item ID]],Analysis_Table,18,FALSE)","v":{"$error":"#N/A"}},{"$f":"VLOOKUP(Table_Data_Table_13[[#This Row],[Item ID]],Analysis_Table,19,FALSE)","v":{"$error":"#N/A"}},null,null,1]
["",null,null,null,null,null,null,null,null,0,null,null,null,{"$f":"VLOOKUP(Table_Data_Table_13[[#This Row],[Item ID]],Analysis_Table,8,FALSE)","v":{"$error":"#N/A"}},{"$f":"VLOOKUP(Table_Data_Table_13[[#This Row],[Item ID]],Analysis_Table,9,FALSE)","v":{"$error":"#N/A"}},{"$f":"VLOOKUP(Table_Data_Table_13[[#This Row],[Item ID]],Analysis_Table,10,FALSE)","v":{"$error":"#N/A"}},{"$f":"VLOOKUP(Table_Data_Table_13[[#This Row],[Item ID]],Analysis_Table,11,FALSE)","v":{"$error":"#N/A"}},{"$f":"VLOOKUP(Table_Data_Table_13[[#This Row],[Item ID]],Analysis_Table,12,FALSE)","v":{"$error":"#N/A"}},{"$f":"VLOOKUP(Table_Data_Table_13[[#This Row],[Item ID]],Analysis_Table,13,FALSE)","v":{"$error":"#N/A"}},{"$f":"VLOOKUP(Table_Data_Table_13[[#This Row],[Item ID]],Analysis_Table,14,FALSE)","v":{"$error":"#N/A"}},{"$f":"VLOOKUP(Table_Data_Table_13[[#This Row],[Item ID]],Analysis_Table,15,FALSE)","v":{"$error":"#N/A"}},{"$f":"VLOOKUP(Table_Data_Table_13[[#This Row],[Item ID]],Analysis_Table,16,FALSE)","v":{"$error":"#N/A"}},{"$f":"VLOOKUP(Table_Data_Table_13[[#This Row],[Item ID]],Analysis_Table,17,FALSE)","v":{"$error":"#N/A"}},{"$f":"VLOOKUP(Table_Data_Table_13[[#This Row],[Item ID]],Analysis_Table,18,FALSE)","v":{"$error":"#N/A"}},{"$f":"VLOOKUP(Table_Data_Table_13[[#This Row],[Item ID]],Analysis_Table,19,FALSE)","v":{"$error":"#N/A"}},null,null,1]
["",null,null,null,null,null,null,null,null,0,null,null,null,{"$f":"VLOOKUP(Table_Data_Table_13[[#This Row],[Item ID]],Analysis_Table,8,FALSE)","v":{"$error":"#N/A"}},{"$f":"VLOOKUP(Table_Data_Table_13[[#This Row],[Item ID]],Analysis_Table,9,FALSE)","v":{"$error":"#N/A"}},{"$f":"VLOOKUP(Table_Data_Table_13[[#This Row],[Item ID]],Analysis_Table,10,FALSE)","v":{"$error":"#N/A"}},{"$f":"VLOOKUP(Table_Data_Table_13[[#This Row],[Item ID]],Analysis_Table,11,FALSE)","v":{"$error":"#N/A"}},{"$f":"VLOOKUP(Table_Data_Table_13[[#This Row],[Item ID]],Analysis_Table,12,FALSE)","v":{"$error":"#N/A"}},{"$f":"VLOOKUP(Table_Data_Table_13[[#This Row],[Item ID]],Analysis_Table,13,FALSE)","v":{"$error":"#N/A"}},{"$f":"VLOOKUP(Table_Data_Table_13[[#This Row],[Item ID]],Analysis_Table,14,FALSE)","v":{"$error":"#N/A"}},{"$f":"VLOOKUP(Table_Data_Table_13[[#This Row],[Item ID]],Analysis_Table,15,FALSE)","v":{"$error":"#N/A"}},{"$f":"VLOOKUP(Table_Data_Table_13[[#This Row],[Item ID]],Analysis_Table,16,FALSE)","v":{"$error":"#N/A"}},{"$f":"VLOOKUP(Table_Data_Table_13[[#This Row],[Item ID]],Analysis_Table,17,FALSE)","v":{"$error":"#N/A"}},{"$f":"VLOOKUP(Table_Data_Table_13[[#This Row],[Item ID]],Analysis_Table,18,FALSE)","v":{"$error":"#N/A"}},{"$f":"VLOOKUP(Table_Data_Table_13[[#This Row],[Item ID]],Analysis_Table,19,FALSE)","v":{"$error":"#N/A"}},null,null,1]
["",null,null,null,null,null,null,null,null,0,null,null,null,{"$f":"VLOOKUP(Table_Data_Table_13[[#This Row],[Item ID]],Analysis_Table,8,FALSE)","v":{"$error":"#N/A"}},{"$f":"VLOOKUP(Table_Data_Table_13[[#This Row],[Item ID]],Analysis_Table,9,FALSE)","v":{"$error":"#N/A"}},{"$f":"VLOOKUP(Table_Data_Table_13[[#This Row],[Item ID]],Analysis_Table,10,FALSE)","v":{"$error":"#N/A"}},{"$f":"VLOOKUP(Table_Data_Table_13[[#This Row],[Item ID]],Analysis_Table,11,FALSE)","v":{"$error":"#N/A"}},{"$f":"VLOOKUP(Table_Data_Table_13[[#This Row],[Item ID]],Analysis_Table,12,FALSE)","v":{"$error":"#N/A"}},{"$f":"VLOOKUP(Table_Data_Table_13[[#This Row],[Item ID]],Analysis_Table,13,FALSE)","v":{"$error":"#N/A"}},{"$f":"VLOOKUP(Table_Data_Table_13[[#This Row],[Item ID]],Analysis_Table,14,FALSE)","v":{"$error":"#N/A"}},{"$f":"VLOOKUP(Table_Data_Table_13[[#This Row],[Item ID]],Analysis_Table,15,FALSE)","v":{"$error":"#N/A"}},{"$f":"VLOOKUP(Table_Data_Table_13[[#This Row],[Item ID]],Analysis_Table,16,FALSE)","v":{"$error":"#N/A"}},{"$f":"VLOOKUP(Table_Data_Table_13[[#This Row],[Item ID]],Analysis_Table,17,FALSE)","v":{"$error":"#N/A"}},{"$f":"VLOOKUP(Table_Data_Table_13[[#This Row],[Item ID]],Analysis_Table,18,FALSE)","v":{"$error":"#N/A"}},{"$f":"VLOOKUP(Table_Data_Table_13[[#This Row],[Item ID]],Analysis_Table,19,FALSE)","v":{"$error":"#N/A"}},null,null,1]
["",null,null,null,null,null,null,null,null,0,null,null,null,{"$f":"VLOOKUP(Table_Data_Table_13[[#This Row],[Item ID]],Analysis_Table,8,FALSE)","v":{"$error":"#N/A"}},{"$f":"VLOOKUP(Table_Data_Table_13[[#This Row],[Item ID]],Analysis_Table,9,FALSE)","v":{"$error":"#N/A"}},{"$f":"VLOOKUP(Table_Data_Table_13[[#This Row],[Item ID]],Analysis_Table,10,FALSE)","v":{"$error":"#N/A"}},{"$f":"VLOOKUP(Table_Data_Table_13[[#This Row],[Item ID]],Analysis_Table,11,FALSE)","v":{"$error":"#N/A"}},{"$f":"VLOOKUP(Table_Data_Table_13[[#This Row],[Item ID]],Analysis_Table,12,FALSE)","v":{"$error":"#N/A"}},{"$f":"VLOOKUP(Table_Data_Table_13[[#This Row],[Item ID]],Analysis_Table,13,FALSE)","v":{"$error":"#N/A"}},{"$f":"VLOOKUP(Table_Data_Table_13[[#This Row],[Item ID]],Analysis_Table,14,FALSE)","v":{"$error":"#N/A"}},{"$f":"VLOOKUP(Table_Data_Table_13[[#This Row],[Item ID]],Analysis_Table,15,FALSE)","v":{"$error":"#N/A"}},{"$f":"VLOOKUP(Table_Data_Table_13[[#This Row],[Item ID]],Analysis_Table,16,FALSE)","v":{"$error":"#N/A"}},{"$f":"VLOOKUP(Table_Data_Table_13[[#This Row],[Item ID]],Analysis_Table,17,FALSE)","v":{"$error":"#N/A"}},{"$f":"VLOOKUP(Table_Data_Table_13[[#This Row],[Item ID]],Analysis_Table,18,FALSE)","v":{"$error":"#N/A"}},{"$f":"VLOOKUP(Table_Data_Table_13[[#This Row],[Item ID]],Analysis_Table,19,FALSE)","v":{"$error":"#N/A"}},null,null,1]
["",null,null,null,null,null,null,null,null,0,null,null,null,{"$f":"VLOOKUP(Table_Data_Table_13[[#This Row],[Item ID]],Analysis_Table,8,FALSE)","v":{"$error":"#N/A"}},{"$f":"VLOOKUP(Table_Data_Table_13[[#This Row],[Item ID]],Analysis_Table,9,FALSE)","v":{"$error":"#N/A"}},{"$f":"VLOOKUP(Table_Data_Table_13[[#This Row],[Item ID]],Analysis_Table,10,FALSE)","v":{"$error":"#N/A"}},{"$f":"VLOOKUP(Table_Data_Table_13[[#This Row],[Item ID]],Analysis_Table,11,FALSE)","v":{"$error":"#N/A"}},{"$f":"VLOOKUP(Table_Data_Table_13[[#This Row],[Item ID]],Analysis_Table,12,FALSE)","v":{"$error":"#N/A"}},{"$f":"VLOOKUP(Table_Data_Table_13[[#This Row],[Item ID]],Analysis_Table,13,FALSE)","v":{"$error":"#N/A"}},{"$f":"VLOOKUP(Table_Data_Table_13[[#This Row],[Item ID]],Analysis_Table,14,FALSE)","v":{"$error":"#N/A"}},{"$f":"VLOOKUP(Table_Data_Table_13[[#This Row],[Item ID]],Analysis_Table,15,FALSE)","v":{"$error":"#N/A"}},{"$f":"VLOOKUP(Table_Data_Table_13[[#This Row],[Item ID]],Analysis_Table,16,FALSE)","v":{"$error":"#N/A"}},{"$f":"VLOOKUP(Table_Data_Table_13[[#This Row],[Item ID]],Analysis_Table,17,FALSE)","v":{"$error":"#N/A"}},{"$f":"VLOOKUP(Table_Data_Table_13[[#This Row],[Item ID]],Analysis_Table,18,FALSE)","v":{"$error":"#N/A"}},{"$f":"VLOOKUP(Table_Data_Table_13[[#This Row],[Item ID]],Analysis_Table,19,FALSE)","v":{"$error":"#N/A"}},null,null,1]
["",null,null,null,null,null,null,null,null,0,null,null,null,{"$f":"VLOOKUP(Table_Data_Table_13[[#This Row],[Item ID]],Analysis_Table,8,FALSE)","v":{"$error":"#N/A"}},{"$f":"VLOOKUP(Table_Data_Table_13[[#This Row],[Item ID]],Analysis_Table,9,FALSE)","v":{"$error":"#N/A"}},{"$f":"VLOOKUP(Table_Data_Table_13[[#This Row],[Item ID]],Analysis_Table,10,FALSE)","v":{"$error":"#N/A"}},{"$f":"VLOOKUP(Table_Data_Table_13[[#This Row],[Item ID]],Analysis_Table,11,FALSE)","v":{"$error":"#N/A"}},{"$f":"VLOOKUP(Table_Data_Table_13[[#This Row],[Item ID]],Analysis_Table,12,FALSE)","v":{"$error":"#N/A"}},{"$f":"VLOOKUP(Table_Data_Table_13[[#This Row],[Item ID]],Analysis_Table,13,FALSE)","v":{"$error":"#N/A"}},{"$f":"VLOOKUP(Table_Data_Table_13[[#This Row],[Item ID]],Analysis_Table,14,FALSE)","v":{"$error":"#N/A"}},{"$f":"VLOOKUP(Table_Data_Table_13[[#This Row],[Item ID]],Analysis_Table,15,FALSE)","v":{"$error":"#N/A"}},{"$f":"VLOOKUP(Table_Data_Table_13[[#This Row],[Item ID]],Analysis_Table,16,FALSE)","v":{"$error":"#N/A"}},{"$f":"VLOOKUP(Table_Data_Table_13[[#This Row],[Item ID]],Analysis_Table,17,FALSE)","v":{"$error":"#N/A"}},{"$f":"VLOOKUP(Table_Data_Table_13[[#This Row],[Item ID]],Analysis_Table,18,FALSE)","v":{"$error":"#N/A"}},{"$f":"VLOOKUP(Table_Data_Table_13[[#This Row],[Item ID]],Analysis_Table,19,FALSE)","v":{"$error":"#N/A"}},null,null,1]
["",null,null,null,null,null,null,null,null,0,null,null,null,{"$f":"VLOOKUP(Table_Data_Table_13[[#This Row],[Item ID]],Analysis_Table,8,FALSE)","v":{"$error":"#N/A"}},{"$f":"VLOOKUP(Table_Data_Table_13[[#This Row],[Item ID]],Analysis_Table,9,FALSE)","v":{"$error":"#N/A"}},{"$f":"VLOOKUP(Table_Data_Table_13[[#This Row],[Item ID]],Analysis_Table,10,FALSE)","v":{"$error":"#N/A"}},{"$f":"VLOOKUP(Table_Data_Table_13[[#This Row],[Item ID]],Analysis_Table,11,FALSE)","v":{"$error":"#N/A"}},{"$f":"VLOOKUP(Table_Data_Table_13[[#This Row],[Item ID]],Analysis_Table,12,FALSE)","v":{"$error":"#N/A"}},{"$f":"VLOOKUP(Table_Data_Table_13[[#This Row],[Item ID]],Analysis_Table,13,FALSE)","v":{"$error":"#N/A"}},{"$f":"VLOOKUP(Table_Data_Table_13[[#This Row],[Item ID]],Analysis_Table,14,FALSE)","v":{"$error":"#N/A"}},{"$f":"VLOOKUP(Table_Data_Table_13[[#This Row],[Item ID]],Analysis_Table,15,FALSE)","v":{"$error":"#N/A"}},{"$f":"VLOOKUP(Table_Data_Table_13[[#This Row],[Item ID]],Analysis_Table,16,FALSE)","v":{"$error":"#N/A"}},{"$f":"VLOOKUP(Table_Data_Table_13[[#This Row],[Item ID]],Analysis_Table,17,FALSE)","v":{"$error":"#N/A"}},{"$f":"VLOOKUP(Table_Data_Table_13[[#This Row],[Item ID]],Analysis_Table,18,FALSE)","v":{"$error":"#N/A"}},{"$f":"VLOOKUP(Table_Data_Table_13[[#This Row],[Item ID]],Analysis_Table,19,FALSE)","v":{"$error":"#N/A"}},null,null,1]
["",null,null,null,null,null,null,null,null,0,null,null,null,{"$f":"VLOOKUP(Table_Data_Table_13[[#This Row],[Item ID]],Analysis_Table,8,FALSE)","v":{"$error":"#N/A"}},{"$f":"VLOOKUP(Table_Data_Table_13[[#This Row],[Item ID]],Analysis_Table,9,FALSE)","v":{"$error":"#N/A"}},{"$f":"VLOOKUP(Table_Data_Table_13[[#This Row],[Item ID]],Analysis_Table,10,FALSE)","v":{"$error":"#N/A"}},{"$f":"VLOOKUP(Table_Data_Table_13[[#This Row],[Item ID]],Analysis_Table,11,FALSE)","v":{"$error":"#N/A"}},{"$f":"VLOOKUP(Table_Data_Table_13[[#This Row],[Item ID]],Analysis_Table,12,FALSE)","v":{"$error":"#N/A"}},{"$f":"VLOOKUP(Table_Data_Table_13[[#This Row],[Item ID]],Analysis_Table,13,FALSE)","v":{"$error":"#N/A"}},{"$f":"VLOOKUP(Table_Data_Table_13[[#This Row],[Item ID]],Analysis_Table,14,FALSE)","v":{"$error":"#N/A"}},{"$f":"VLOOKUP(Table_Data_Table_13[[#This Row],[Item ID]],Analysis_Table,15,FALSE)","v":{"$error":"#N/A"}},{"$f":"VLOOKUP(Table_Data_Table_13[[#This Row],[Item ID]],Analysis_Table,16,FALSE)","v":{"$error":"#N/A"}},{"$f":"VLOOKUP(Table_Data_Table_13[[#This Row],[Item ID]],Analysis_Table,17,FALSE)","v":{"$error":"#N/A"}},{"$f":"VLOOKUP(Table_Data_Table_13[[#This Row],[Item ID]],Analysis_Table,18,FALSE)","v":{"$error":"#N/A"}},{"$f":"VLOOKUP(Table_Data_Table_13[[#This Row],[Item ID]],Analysis_Table,19,FALSE)","v":{"$error":"#N/A"}},null,null,1]
["",null,null,null,null,null,null,null,null,0,null,null,null,{"$f":"VLOOKUP(Table_Data_Table_13[[#This Row],[Item ID]],Analysis_Table,8,FALSE)","v":{"$error":"#N/A"}},{"$f":"VLOOKUP(Table_Data_Table_13[[#This Row],[Item ID]],Analysis_Table,9,FALSE)","v":{"$error":"#N/A"}},{"$f":"VLOOKUP(Table_Data_Table_13[[#This Row],[Item ID]],Analysis_Table,10,FALSE)","v":{"$error":"#N/A"}},{"$f":"VLOOKUP(Table_Data_Table_13[[#This Row],[Item ID]],Analysis_Table,11,FALSE)","v":{"$error":"#N/A"}},{"$f":"VLOOKUP(Table_Data_Table_13[[#This Row],[Item ID]],Analysis_Table,12,FALSE)","v":{"$error":"#N/A"}},{"$f":"VLOOKUP(Table_Data_Table_13[[#This Row],[Item ID]],Analysis_Table,13,FALSE)","v":{"$error":"#N/A"}},{"$f":"VLOOKUP(Table_Data_Table_13[[#This Row],[Item ID]],Analysis_Table,14,FALSE)","v":{"$error":"#N/A"}},{"$f":"VLOOKUP(Table_Data_Table_13[[#This Row],[Item ID]],Analysis_Table,15,FALSE)","v":{"$error":"#N/A"}},{"$f":"VLOOKUP(Table_Data_Table_13[[#This Row],[Item ID]],Analysis_Table,16,FALSE)","v":{"$error":"#N/A"}},{"$f":"VLOOKUP(Table_Data_Table_13[[#This Row],[Item ID]],Analysis_Table,17,FALSE)","v":{"$error":"#N/A"}},{"$f":"VLOOKUP(Table_Data_Table_13[[#This Row],[Item ID]],Analysis_Table,18,FALSE)","v":{"$error":"#N/A"}},{"$f":"VLOOKUP(Table_Data_Table_13[[#This Row],[Item ID]],Analysis_Table,19,FALSE)","v":{"$error":"#N/A"}},null,null,1]
["",null,null,null,null,null,null,null,null,0,null,null,null,{"$f":"VLOOKUP(Table_Data_Table_13[[#This Row],[Item ID]],Analysis_Table,8,FALSE)","v":{"$error":"#N/A"}},{"$f":"VLOOKUP(Table_Data_Table_13[[#This Row],[Item ID]],Analysis_Table,9,FALSE)","v":{"$error":"#N/A"}},{"$f":"VLOOKUP(Table_Data_Table_13[[#This Row],[Item ID]],Analysis_Table,10,FALSE)","v":{"$error":"#N/A"}},{"$f":"VLOOKUP(Table_Data_Table_13[[#This Row],[Item ID]],Analysis_Table,11,FALSE)","v":{"$error":"#N/A"}},{"$f":"VLOOKUP(Table_Data_Table_13[[#This Row],[Item ID]],Analysis_Table,12,FALSE)","v":{"$error":"#N/A"}},{"$f":"VLOOKUP(Table_Data_Table_13[[#This Row],[Item ID]],Analysis_Table,13,FALSE)","v":{"$error":"#N/A"}},{"$f":"VLOOKUP(Table_Data_Table_13[[#This Row],[Item ID]],Analysis_Table,14,FALSE)","v":{"$error":"#N/A"}},{"$f":"VLOOKUP(Table_Data_Table_13[[#This Row],[Item ID]],Analysis_Table,15,FALSE)","v":{"$error":"#N/A"}},{"$f":"VLOOKUP(Table_Data_Table_13[[#This Row],[Item ID]],Analysis_Table,16,FALSE)","v":{"$error":"#N/A"}},{"$f":"VLOOKUP(Table_Data_Table_13[[#This Row],[Item ID]],Analysis_Table,17,FALSE)","v":{"$error":"#N/A"}},{"$f":"VLOOKUP(Table_Data_Table_13[[#This Row],[Item ID]],Analysis_Table,18,FALSE)","v":{"$error":"#N/A"}},{"$f":"VLOOKUP(Table_Data_Table_13[[#This Row],[Item ID]],Analysis_Table,19,FALSE)","v":{"$error":"#N/A"}},null,null,1]
["",null,null,null,null,null,null,null,null,0,null,null,null,{"$f":"VLOOKUP(Table_Data_Table_13[[#This Row],[Item ID]],Analysis_Table,8,FALSE)","v":{"$error":"#N/A"}},{"$f":"VLOOKUP(Table_Data_Table_13[[#This Row],[Item ID]],Analysis_Table,9,FALSE)","v":{"$error":"#N/A"}},{"$f":"VLOOKUP(Table_Data_Table_13[[#This Row],[Item ID]],Analysis_Table,10,FALSE)","v":{"$error":"#N/A"}},{"$f":"VLOOKUP(Table_Data_Table_13[[#This Row],[Item ID]],Analysis_Table,11,FALSE)","v":{"$error":"#N/A"}},{"$f":"VLOOKUP(Table_Data_Table_13[[#This Row],[Item ID]],Analysis_Table,12,FALSE)","v":{"$error":"#N/A"}},{"$f":"VLOOKUP(Table_Data_Table_13[[#This Row],[Item ID]],Analysis_Table,13,FALSE)","v":{"$error":"#N/A"}},{"$f":"VLOOKUP(Table_Data_Table_13[[#This Row],[Item ID]],Analysis_Table,14,FALSE)","v":{"$error":"#N/A"}},{"$f":"VLOOKUP(Table_Data_Table_13[[#This Row],[Item ID]],Analysis_Table,15,FALSE)","v":{"$error":"#N/A"}},{"$f":"VLOOKUP(Table_Data_Table_13[[#This Row],[Item ID]],Analysis_Table,16,FALSE)","v":{"$error":"#N/A"}},{"$f":"VLOOKUP(Table_Data_Table_13[[#This Row],[Item ID]],Analysis_Table,17,FALSE)","v":{"$error":"#N/A"}},{"$f":"VLOOKUP(Table_Data_Table_13[[#This Row],[Item ID]],Analysis_Table,18,FALSE)","v":{"$error":"#N/A"}},{"$f":"VLOOKUP(Table_Data_Table_13[[#This Row],[Item ID]],Analysis_Table,19,FALSE)","v":{"$error":"#N/A"}},null,null,1]
["",null,null,null,null,null,null,null,null,0,null,null,null,{"$f":"VLOOKUP(Table_Data_Table_13[[#This Row],[Item ID]],Analysis_Table,8,FALSE)","v":{"$error":"#N/A"}},{"$f":"VLOOKUP(Table_Data_Table_13[[#This Row],[Item ID]],Analysis_Table,9,FALSE)","v":{"$error":"#N/A"}},{"$f":"VLOOKUP(Table_Data_Table_13[[#This Row],[Item ID]],Analysis_Table,10,FALSE)","v":{"$error":"#N/A"}},{"$f":"VLOOKUP(Table_Data_Table_13[[#This Row],[Item ID]],Analysis_Table,11,FALSE)","v":{"$error":"#N/A"}},{"$f":"VLOOKUP(Table_Data_Table_13[[#This Row],[Item ID]],Analysis_Table,12,FALSE)","v":{"$error":"#N/A"}},{"$f":"VLOOKUP(Table_Data_Table_13[[#This Row],[Item ID]],Analysis_Table,13,FALSE)","v":{"$error":"#N/A"}},{"$f":"VLOOKUP(Table_Data_Table_13[[#This Row],[Item ID]],Analysis_Table,14,FALSE)","v":{"$error":"#N/A"}},{"$f":"VLOOKUP(Table_Data_Table_13[[#This Row],[Item ID]],Analysis_Table,15,FALSE)","v":{"$error":"#N/A"}},{"$f":"VLOOKUP(Table_Data_Table_13[[#This Row],[Item ID]],Analysis_Table,16,FALSE)","v":{"$error":"#N/A"}},{"$f":"VLOOKUP(Table_Data_Table_13[[#This Row],[Item ID]],Analysis_Table,17,FALSE)","v":{"$error":"#N/A"}},{"$f":"VLOOKUP(Table_Data_Table_13[[#This Row],[Item ID]],Analysis_Table,18,FALSE)","v":{"$error":"#N/A"}},{"$f":"VLOOKUP(Table_Data_Table_13[[#This Row],[Item ID]],Analysis_Table,19,FALSE)","v":{"$error":"#N/A"}},null,null,1]
["",null,null,null,null,null,null,null,null,0,null,null,null,{"$f":"VLOOKUP(Table_Data_Table_13[[#This Row],[Item ID]],Analysis_Table,8,FALSE)","v":{"$error":"#N/A"}},{"$f":"VLOOKUP(Table_Data_Table_13[[#This Row],[Item ID]],Analysis_Table,9,FALSE)","v":{"$error":"#N/A"}},{"$f":"VLOOKUP(Table_Data_Table_13[[#This Row],[Item ID]],Analysis_Table,10,FALSE)","v":{"$error":"#N/A"}},{"$f":"VLOOKUP(Table_Data_Table_13[[#This Row],[Item ID]],Analysis_Table,11,FALSE)","v":{"$error":"#N/A"}},{"$f":"VLOOKUP(Table_Data_Table_13[[#This Row],[Item ID]],Analysis_Table,12,FALSE)","v":{"$error":"#N/A"}},{"$f":"VLOOKUP(Table_Data_Table_13[[#This Row],[Item ID]],Analysis_Table,13,FALSE)","v":{"$error":"#N/A"}},{"$f":"VLOOKUP(Table_Data_Table_13[[#This Row],[Item ID]],Analysis_Table,14,FALSE)","v":{"$error":"#N/A"}},{"$f":"VLOOKUP(Table_Data_Table_13[[#This Row],[Item ID]],Analysis_Table,15,FALSE)","v":{"$error":"#N/A"}},{"$f":"VLOOKUP(Table_Data_Table_13[[#This Row],[Item ID]],Analysis_Table,16,FALSE)","v":{"$error":"#N/A"}},{"$f":"VLOOKUP(Table_Data_Table_13[[#This Row],[Item ID]],Analysis_Table,17,FALSE)","v":{"$error":"#N/A"}},{"$f":"VLOOKUP(Table_Data_Table_13[[#This Row],[Item ID]],Analysis_Table,18,FALSE)","v":{"$error":"#N/A"}},{"$f":"VLOOKUP(Table_Data_Table_13[[#This Row],[Item ID]],Analysis_Table,19,FALSE)","v":{"$error":"#N/A"}},null,null,1]
["",null,null,null,null,null,null,null,null,0,null,null,null,{"$f":"VLOOKUP(Table_Data_Table_13[[#This Row],[Item ID]],Analysis_Table,8,FALSE)","v":{"$error":"#N/A"}},{"$f":"VLOOKUP(Table_Data_Table_13[[#This Row],[Item ID]],Analysis_Table,9,FALSE)","v":{"$error":"#N/A"}},{"$f":"VLOOKUP(Table_Data_Table_13[[#This Row],[Item ID]],Analysis_Table,10,FALSE)","v":{"$error":"#N/A"}},{"$f":"VLOOKUP(Table_Data_Table_13[[#This Row],[Item ID]],Analysis_Table,11,FALSE)","v":{"$error":"#N/A"}},{"$f":"VLOOKUP(Table_Data_Table_13[[#This Row],[Item ID]],Analysis_Table,12,FALSE)","v":{"$error":"#N/A"}},{"$f":"VLOOKUP(Table_Data_Table_13[[#This Row],[Item ID]],Analysis_Table,13,FALSE)","v":{"$error":"#N/A"}},{"$f":"VLOOKUP(Table_Data_Table_13[[#This Row],[Item ID]],Analysis_Table,14,FALSE)","v":{"$error":"#N/A"}},{"$f":"VLOOKUP(Table_Data_Table_13[[#This Row],[Item ID]],Analysis_Table,15,FALSE)","v":{"$error":"#N/A"}},{"$f":"VLOOKUP(Table_Data_Table_13[[#This Row],[Item ID]],Analysis_Table,16,FALSE)","v":{"$error":"#N/A"}},{"$f":"VLOOKUP(Table_Data_Table_13[[#This Row],[Item ID]],Analysis_Table,17,FALSE)","v":{"$error":"#N/A"}},{"$f":"VLOOKUP(Table_Data_Table_13[[#This Row],[Item ID]],Analysis_Table,18,FALSE)","v":{"$error":"#N/A"}},{"$f":"VLOOKUP(Table_Data_Table_13[[#This Row],[Item ID]],Analysis_Table,19,FALSE)","v":{"$error":"#N/A"}},null,null,1]
["",null,null,null,null,null,null,null,null,0,null,null,null,{"$f":"VLOOKUP(Table_Data_Table_13[[#This Row],[Item ID]],Analysis_Table,8,FALSE)","v":{"$error":"#N/A"}},{"$f":"VLOOKUP(Table_Data_Table_13[[#This Row],[Item ID]],Analysis_Table,9,FALSE)","v":{"$error":"#N/A"}},{"$f":"VLOOKUP(Table_Data_Table_13[[#This Row],[Item ID]],Analysis_Table,10,FALSE)","v":{"$error":"#N/A"}},{"$f":"VLOOKUP(Table_Data_Table_13[[#This Row],[Item ID]],Analysis_Table,11,FALSE)","v":{"$error":"#N/A"}},{"$f":"VLOOKUP(Table_Data_Table_13[[#This Row],[Item ID]],Analysis_Table,12,FALSE)","v":{"$error":"#N/A"}},{"$f":"VLOOKUP(Table_Data_Table_13[[#This Row],[Item ID]],Analysis_Table,13,FALSE)","v":{"$error":"#N/A"}},{"$f":"VLOOKUP(Table_Data_Table_13[[#This Row],[Item ID]],Analysis_Table,14,FALSE)","v":{"$error":"#N/A"}},{"$f":"VLOOKUP(Table_Data_Table_13[[#This Row],[Item ID]],Analysis_Table,15,FALSE)","v":{"$error":"#N/A"}},{"$f":"VLOOKUP(Table_Data_Table_13[[#This Row],[Item ID]],Analysis_Table,16,FALSE)","v":{"$error":"#N/A"}},{"$f":"VLOOKUP(Table_Data_Table_13[[#This Row],[Item ID]],Analysis_Table,17,FALSE)","v":{"$error":"#N/A"}},{"$f":"VLOOKUP(Table_Data_Table_13[[#This Row],[Item ID]],Analysis_Table,18,FALSE)","v":{"$error":"#N/A"}},{"$f":"VLOOKUP(Table_Data_Table_13[[#This Row],[Item ID]],Analysis_Table,19,FALSE)","v":{"$error":"#N/A"}},null,null,1]
["",null,null,null,null,null,null,null,null,0,null,null,null,{"$f":"VLOOKUP(Table_Data_Table_13[[#This Row],[Item ID]],Analysis_Table,8,FALSE)","v":{"$error":"#N/A"}},{"$f":"VLOOKUP(Table_Data_Table_13[[#This Row],[Item ID]],Analysis_Table,9,FALSE)","v":{"$error":"#N/A"}},{"$f":"VLOOKUP(Table_Data_Table_13[[#This Row],[Item ID]],Analysis_Table,10,FALSE)","v":{"$error":"#N/A"}},{"$f":"VLOOKUP(Table_Data_Table_13[[#This Row],[Item ID]],Analysis_Table,11,FALSE)","v":{"$error":"#N/A"}},{"$f":"VLOOKUP(Table_Data_Table_13[[#This Row],[Item ID]],Analysis_Table,12,FALSE)","v":{"$error":"#N/A"}},{"$f":"VLOOKUP(Table_Data_Table_13[[#This Row],[Item ID]],Analysis_Table,13,FALSE)","v":{"$error":"#N/A"}},{"$f":"VLOOKUP(Table_Data_Table_13[[#This Row],[Item ID]],Analysis_Table,14,FALSE)","v":{"$error":"#N/A"}},{"$f":"VLOOKUP(Table_Data_Table_13[[#This Row],[Item ID]],Analysis_Table,15,FALSE)","v":{"$error":"#N/A"}},{"$f":"VLOOKUP(Table_Data_Table_13[[#This Row],[Item ID]],Analysis_Table,16,FALSE)","v":{"$error":"#N/A"}},{"$f":"VLOOKUP(Table_Data_Table_13[[#This Row],[Item ID]],Analysis_Table,17,FALSE)","v":{"$error":"#N/A"}},{"$f":"VLOOKUP(Table_Data_Table_13[[#This Row],[Item ID]],Analysis_Table,18,FALSE)","v":{"$error":"#N/A"}},{"$f":"VLOOKUP(Table_Data_Table_13[[#This Row],[Item ID]],Analysis_Table,19,FALSE)","v":{"$error":"#N/A"}},null,null,1]
["",null,null,null,null,null,null,null,null,0,null,null,null,{"$f":"VLOOKUP(Table_Data_Table_13[[#This Row],[Item ID]],Analysis_Table,8,FALSE)","v":{"$error":"#N/A"}},{"$f":"VLOOKUP(Table_Data_Table_13[[#This Row],[Item ID]],Analysis_Table,9,FALSE)","v":{"$error":"#N/A"}},{"$f":"VLOOKUP(Table_Data_Table_13[[#This Row],[Item ID]],Analysis_Table,10,FALSE)","v":{"$error":"#N/A"}},{"$f":"VLOOKUP(Table_Data_Table_13[[#This Row],[Item ID]],Analysis_Table,11,FALSE)","v":{"$error":"#N/A"}},{"$f":"VLOOKUP(Table_Data_Table_13[[#This Row],[Item ID]],Analysis_Table,12,FALSE)","v":{"$error":"#N/A"}},{"$f":"VLOOKUP(Table_Data_Table_13[[#This Row],[Item ID]],Analysis_Table,13,FALSE)","v":{"$error":"#N/A"}},{"$f":"VLOOKUP(Table_Data_Table_13[[#This Row],[Item ID]],Analysis_Table,14,FALSE)","v":{"$error":"#N/A"}},{"$f":"VLOOKUP(Table_Data_Table_13[[#This Row],[Item ID]],Analysis_Table,15,FALSE)","v":{"$error":"#N/A"}},{"$f":"VLOOKUP(Table_Data_Table_13[[#This Row],[Item ID]],Analysis_Table,16,FALSE)","v":{"$error":"#N/A"}},{"$f":"VLOOKUP(Table_Data_Table_13[[#This Row],[Item ID]],Analysis_Table,17,FALSE)","v":{"$error":"#N/A"}},{"$f":"VLOOKUP(Table_Data_Table_13[[#This Row],[Item ID]],Analysis_Table,18,FALSE)","v":{"$error":"#N/A"}},{"$f":"VLOOKUP(Table_Data_Table_13[[#This Row],[Item ID]],Analysis_Table,19,FALSE)","v":{"$error":"#N/A"}},null,null,1]
["",null,null,null,null,null,null,null,null,0,null,null,null,{"$f":"VLOOKUP(Table_Data_Table_13[[#This Row],[Item ID]],Analysis_Table,8,FALSE)","v":{"$error":"#N/A"}},{"$f":"VLOOKUP(Table_Data_Table_13[[#This Row],[Item ID]],Analysis_Table,9,FALSE)","v":{"$error":"#N/A"}},{"$f":"VLOOKUP(Table_Data_Table_13[[#This Row],[Item ID]],Analysis_Table,10,FALSE)","v":{"$error":"#N/A"}},{"$f":"VLOOKUP(Table_Data_Table_13[[#This Row],[Item ID]],Analysis_Table,11,FALSE)","v":{"$error":"#N/A"}},{"$f":"VLOOKUP(Table_Data_Table_13[[#This Row],[Item ID]],Analysis_Table,12,FALSE)","v":{"$error":"#N/A"}},{"$f":"VLOOKUP(Table_Data_Table_13[[#This Row],[Item ID]],Analysis_Table,13,FALSE)","v":{"$error":"#N/A"}},{"$f":"VLOOKUP(Table_Data_Table_13[[#This Row],[Item ID]],Analysis_Table,14,FALSE)","v":{"$error":"#N/A"}},{"$f":"VLOOKUP(Table_Data_Table_13[[#This Row],[Item ID]],Analysis_Table,15,FALSE)","v":{"$error":"#N/A"}},{"$f":"VLOOKUP(Table_Data_Table_13[[#This Row],[Item ID]],Analysis_Table,16,FALSE)","v":{"$error":"#N/A"}},{"$f":"VLOOKUP(Table_Data_Table_13[[#This Row],[Item ID]],Analysis_Table,17,FALSE)","v":{"$error":"#N/A"}},{"$f":"VLOOKUP(Table_Data_Table_13[[#This Row],[Item ID]],Analysis_Table,18,FALSE)","v":{"$error":"#N/A"}},{"$f":"VLOOKUP(Table_Data_Table_13[[#This Row],[Item ID]],Analysis_Table,19,FALSE)","v":{"$error":"#N/A"}},null,null,1]
["",null,null,null,null,null,null,null,null,0,null,null,null,{"$f":"VLOOKUP(Table_Data_Table_13[[#This Row],[Item ID]],Analysis_Table,8,FALSE)","v":{"$error":"#N/A"}},{"$f":"VLOOKUP(Table_Data_Table_13[[#This Row],[Item ID]],Analysis_Table,9,FALSE)","v":{"$error":"#N/A"}},{"$f":"VLOOKUP(Table_Data_Table_13[[#This Row],[Item ID]],Analysis_Table,10,FALSE)","v":{"$error":"#N/A"}},{"$f":"VLOOKUP(Table_Data_Table_13[[#This Row],[Item ID]],Analysis_Table,11,FALSE)","v":{"$error":"#N/A"}},{"$f":"VLOOKUP(Table_Data_Table_13[[#This Row],[Item ID]],Analysis_Table,12,FALSE)","v":{"$error":"#N/A"}},{"$f":"VLOOKUP(Table_Data_Table_13[[#This Row],[Item ID]],Analysis_Table,13,FALSE)","v":{"$error":"#N/A"}},{"$f":"VLOOKUP(Table_Data_Table_13[[#This Row],[Item ID]],Analysis_Table,14,FALSE)","v":{"$error":"#N/A"}},{"$f":"VLOOKUP(Table_Data_Table_13[[#This Row],[Item ID]],Analysis_Table,15,FALSE)","v":{"$error":"#N/A"}},{"$f":"VLOOKUP(Table_Data_Table_13[[#This Row],[Item ID]],Analysis_Table,16,FALSE)","v":{"$error":"#N/A"}},{"$f":"VLOOKUP(Table_Data_Table_13[[#This Row],[Item ID]],Analysis_Table,17,FALSE)","v":{"$error":"#N/A"}},{"$f":"VLOOKUP(Table_Data_Table_13[[#This Row],[Item ID]],Analysis_Table,18,FALSE)","v":{"$error":"#N/A"}},{"$f":"VLOOKUP(Table_Data_Table_13[[#This Row],[Item ID]],Analysis_Table,19,FALSE)","v":{"$error":"#N/A"}},null,null,1]
["",null,null,null,null,null,null,null,null,0,null,null,null,{"$f":"VLOOKUP(Table_Data_Table_13[[#This Row],[Item ID]],Analysis_Table,8,FALSE)","v":{"$error":"#N/A"}},{"$f":"VLOOKUP(Table_Data_Table_13[[#This Row],[Item ID]],Analysis_Table,9,FALSE)","v":{"$error":"#N/A"}},{"$f":"VLOOKUP(Table_Data_Table_13[[#This Row],[Item ID]],Analysis_Table,10,FALSE)","v":{"$error":"#N/A"}},{"$f":"VLOOKUP(Table_Data_Table_13[[#This Row],[Item ID]],Analysis_Table,11,FALSE)","v":{"$error":"#N/A"}},{"$f":"VLOOKUP(Table_Data_Table_13[[#This Row],[Item ID]],Analysis_Table,12,FALSE)","v":{"$error":"#N/A"}},{"$f":"VLOOKUP(Table_Data_Table_13[[#This Row],[Item ID]],Analysis_Table,13,FALSE)","v":{"$error":"#N/A"}},{"$f":"VLOOKUP(Table_Data_Table_13[[#This Row],[Item ID]],Analysis_Table,14,FALSE)","v":{"$error":"#N/A"}},{"$f":"VLOOKUP(Table_Data_Table_13[[#This Row],[Item ID]],Analysis_Table,15,FALSE)","v":{"$error":"#N/A"}},{"$f":"VLOOKUP(Table_Data_Table_13[[#This Row],[Item ID]],Analysis_Table,16,FALSE)","v":{"$error":"#N/A"}},{"$f":"VLOOKUP(Table_Data_Table_13[[#This Row],[Item ID]],Analysis_Table,17,FALSE)","v":{"$error":"#N/A"}},{"$f":"VLOOKUP(Table_Data_Table_13[[#This Row],[Item ID]],Analysis_Table,18,FALSE)","v":{"$error":"#N/A"}},{"$f":"VLOOKUP(Table_Data_Table_13[[#This Row],[Item ID]],Analysis_Table,19,FALSE)","v":{"$error":"#N/A"}},null,null,1]
["",null,null,null,null,null,null,null,null,0,null,null,null,{"$f":"VLOOKUP(Table_Data_Table_13[[#This Row],[Item ID]],Analysis_Table,8,FALSE)","v":{"$error":"#N/A"}},{"$f":"VLOOKUP(Table_Data_Table_13[[#This Row],[Item ID]],Analysis_Table,9,FALSE)","v":{"$error":"#N/A"}},{"$f":"VLOOKUP(Table_Data_Table_13[[#This Row],[Item ID]],Analysis_Table,10,FALSE)","v":{"$error":"#N/A"}},{"$f":"VLOOKUP(Table_Data_Table_13[[#This Row],[Item ID]],Analysis_Table,11,FALSE)","v":{"$error":"#N/A"}},{"$f":"VLOOKUP(Table_Data_Table_13[[#This Row],[Item ID]],Analysis_Table,12,FALSE)","v":{"$error":"#N/A"}},{"$f":"VLOOKUP(Table_Data_Table_13[[#This Row],[Item ID]],Analysis_Table,13,FALSE)","v":{"$error":"#N/A"}},{"$f":"VLOOKUP(Table_Data_Table_13[[#This Row],[Item ID]],Analysis_Table,14,FALSE)","v":{"$error":"#N/A"}},{"$f":"VLOOKUP(Table_Data_Table_13[[#This Row],[Item ID]],Analysis_Table,15,FALSE)","v":{"$error":"#N/A"}},{"$f":"VLOOKUP(Table_Data_Table_13[[#This Row],[Item ID]],Analysis_Table,16,FALSE)","v":{"$error":"#N/A"}},{"$f":"VLOOKUP(Table_Data_Table_13[[#This Row],[Item ID]],Analysis_Table,17,FALSE)","v":{"$error":"#N/A"}},{"$f":"VLOOKUP(Table_Data_Table_13[[#This Row],[Item ID]],Analysis_Table,18,FALSE)","v":{"$error":"#N/A"}},{"$f":"VLOOKUP(Table_Data_Table_13[[#This Row],[Item ID]],Analysis_Table,19,FALSE)","v":{"$error":"#N/A"}},null,null,1]
["",null,null,null,null,null,null,null,null,0,null,null,null,{"$f":"VLOOKUP(Table_Data_Table_13[[#This Row],[Item ID]],Analysis_Table,8,FALSE)","v":{"$error":"#N/A"}},{"$f":"VLOOKUP(Table_Data_Table_13[[#This Row],[Item ID]],Analysis_Table,9,FALSE)","v":{"$error":"#N/A"}},{"$f":"VLOOKUP(Table_Data_Table_13[[#This Row],[Item ID]],Analysis_Table,10,FALSE)","v":{"$error":"#N/A"}},{"$f":"VLOOKUP(Table_Data_Table_13[[#This Row],[Item ID]],Analysis_Table,11,FALSE)","v":{"$error":"#N/A"}},{"$f":"VLOOKUP(Table_Data_Table_13[[#This Row],[Item ID]],Analysis_Table,12,FALSE)","v":{"$error":"#N/A"}},{"$f":"VLOOKUP(Table_Data_Table_13[[#This Row],[Item ID]],Analysis_Table,13,FALSE)","v":{"$error":"#N/A"}},{"$f":"VLOOKUP(Table_Data_Table_13[[#This Row],[Item ID]],Analysis_Table,14,FALSE)","v":{"$error":"#N/A"}},{"$f":"VLOOKUP(Table_Data_Table_13[[#This Row],[Item ID]],Analysis_Table,15,FALSE)","v":{"$error":"#N/A"}},{"$f":"VLOOKUP(Table_Data_Table_13[[#This Row],[Item ID]],Analysis_Table,16,FALSE)","v":{"$error":"#N/A"}},{"$f":"VLOOKUP(Table_Data_Table_13[[#This Row],[Item ID]],Analysis_Table,17,FALSE)","v":{"$error":"#N/A"}},{"$f":"VLOOKUP(Table_Data_Table_13[[#This Row],[Item ID]],Analysis_Table,18,FALSE)","v":{"$error":"#N/A"}},{"$f":"VLOOKUP(Table_Data_Table_13[[#This Row],[Item ID]],Analysis_Table,19,FALSE)","v":{"$error":"#N/A"}},null,null,1]
["",null,null,null,null,null,null,null,null,0,null,null,null,{"$f":"VLOOKUP(Table_Data_Table_13[[#This Row],[Item ID]],Analysis_Table,8,FALSE)","v":{"$error":"#N/A"}},{"$f":"VLOOKUP(Table_Data_Table_13[[#This Row],[Item ID]],Analysis_Table,9,FALSE)","v":{"$error":"#N/A"}},{"$f":"VLOOKUP(Table_Data_Table_13[[#This Row],[Item ID]],Analysis_Table,10,FALSE)","v":{"$error":"#N/A"}},{"$f":"VLOOKUP(Table_Data_Table_13[[#This Row],[Item ID]],Analysis_Table,11,FALSE)","v":{"$error":"#N/A"}},{"$f":"VLOOKUP(Table_Data_Table_13[[#This Row],[Item ID]],Analysis_Table,12,FALSE)","v":{"$error":"#N/A"}},{"$f":"VLOOKUP(Table_Data_Table_13[[#This Row],[Item ID]],Analysis_Table,13,FALSE)","v":{"$error":"#N/A"}},{"$f":"VLOOKUP(Table_Data_Table_13[[#This Row],[Item ID]],Analysis_Table,14,FALSE)","v":{"$error":"#N/A"}},{"$f":"VLOOKUP(Table_Data_Table_13[[#This Row],[Item ID]],Analysis_Table,15,FALSE)","v":{"$error":"#N/A"}},{"$f":"VLOOKUP(Table_Data_Table_13[[#This Row],[Item ID]],Analysis_Table,16,FALSE)","v":{"$error":"#N/A"}},{"$f":"VLOOKUP(Table_Data_Table_13[[#This Row],[Item ID]],Analysis_Table,17,FALSE)","v":{"$error":"#N/A"}},{"$f":"VLOOKUP(Table_Data_Table_13[[#This Row],[Item ID]],Analysis_Table,18,FALSE)","v":{"$error":"#N/A"}},{"$f":"VLOOKUP(Table_Data_Table_13[[#This Row],[Item ID]],Analysis_Table,19,FALSE)","v":{"$error":"#N/A"}},null,null,1]
["",null,null,null,null,null,null,null,null,0,null,null,null,{"$f":"VLOOKUP(Table_Data_Table_13[[#This Row],[Item ID]],Analysis_Table,8,FALSE)","v":{"$error":"#N/A"}},{"$f":"VLOOKUP(Table_Data_Table_13[[#This Row],[Item ID]],Analysis_Table,9,FALSE)","v":{"$error":"#N/A"}},{"$f":"VLOOKUP(Table_Data_Table_13[[#This Row],[Item ID]],Analysis_Table,10,FALSE)","v":{"$error":"#N/A"}},{"$f":"VLOOKUP(Table_Data_Table_13[[#This Row],[Item ID]],Analysis_Table,11,FALSE)","v":{"$error":"#N/A"}},{"$f":"VLOOKUP(Table_Data_Table_13[[#This Row],[Item ID]],Analysis_Table,12,FALSE)","v":{"$error":"#N/A"}},{"$f":"VLOOKUP(Table_Data_Table_13[[#This Row],[Item ID]],Analysis_Table,13,FALSE)","v":{"$error":"#N/A"}},{"$f":"VLOOKUP(Table_Data_Table_13[[#This Row],[Item ID]],Analysis_Table,14,FALSE)","v":{"$error":"#N/A"}},{"$f":"VLOOKUP(Table_Data_Table_13[[#This Row],[Item ID]],Analysis_Table,15,FALSE)","v":{"$error":"#N/A"}},{"$f":"VLOOKUP(Table_Data_Table_13[[#This Row],[Item ID]],Analysis_Table,16,FALSE)","v":{"$error":"#N/A"}},{"$f":"VLOOKUP(Table_Data_Table_13[[#This Row],[Item ID]],Analysis_Table,17,FALSE)","v":{"$error":"#N/A"}},{"$f":"VLOOKUP(Table_Data_Table_13[[#This Row],[Item ID]],Analysis_Table,18,FALSE)","v":{"$error":"#N/A"}},{"$f":"VLOOKUP(Table_Data_Table_13[[#This Row],[Item ID]],Analysis_Table,19,FALSE)","v":{"$error":"#N/A"}},null,null,1]
["",null,null,null,null,null,null,null,null,0,null,null,null,{"$f":"VLOOKUP(Table_Data_Table_13[[#This Row],[Item ID]],Analysis_Table,8,FALSE)","v":{"$error":"#N/A"}},{"$f":"VLOOKUP(Table_Data_Table_13[[#This Row],[Item ID]],Analysis_Table,9,FALSE)","v":{"$error":"#N/A"}},{"$f":"VLOOKUP(Table_Data_Table_13[[#This Row],[Item ID]],Analysis_Table,10,FALSE)","v":{"$error":"#N/A"}},{"$f":"VLOOKUP(Table_Data_Table_13[[#This Row],[Item ID]],Analysis_Table,11,FALSE)","v":{"$error":"#N/A"}},{"$f":"VLOOKUP(Table_Data_Table_13[[#This Row],[Item ID]],Analysis_Table,12,FALSE)","v":{"$error":"#N/A"}},{"$f":"VLOOKUP(Table_Data_Table_13[[#This Row],[Item ID]],Analysis_Table,13,FALSE)","v":{"$error":"#N/A"}},{"$f":"VLOOKUP(Table_Data_Table_13[[#This Row],[Item ID]],Analysis_Table,14,FALSE)","v":{"$error":"#N/A"}},{"$f":"VLOOKUP(Table_Data_Table_13[[#This Row],[Item ID]],Analysis_Table,15,FALSE)","v":{"$error":"#N/A"}},{"$f":"VLOOKUP(Table_Data_Table_13[[#This Row],[Item ID]],Analysis_Table,16,FALSE)","v":{"$error":"#N/A"}},{"$f":"VLOOKUP(Table_Data_Table_13[[#This Row],[Item ID]],Analysis_Table,17,FALSE)","v":{"$error":"#N/A"}},{"$f":"VLOOKUP(Table_Data_Table_13[[#This Row],[Item ID]],Analysis_Table,18,FALSE)","v":{"$error":"#N/A"}},{"$f":"VLOOKUP(Table_Data_Table_13[[#This Row],[Item ID]],Analysis_Table,19,FALSE)","v":{"$error":"#N/A"}},null,null,1]
["",null,null,null,null,null,null,null,null,0,null,null,null,{"$f":"VLOOKUP(Table_Data_Table_13[[#This Row],[Item ID]],Analysis_Table,8,FALSE)","v":{"$error":"#N/A"}},{"$f":"VLOOKUP(Table_Data_Table_13[[#This Row],[Item ID]],Analysis_Table,9,FALSE)","v":{"$error":"#N/A"}},{"$f":"VLOOKUP(Table_Data_Table_13[[#This Row],[Item ID]],Analysis_Table,10,FALSE)","v":{"$error":"#N/A"}},{"$f":"VLOOKUP(Table_Data_Table_13[[#This Row],[Item ID]],Analysis_Table,11,FALSE)","v":{"$error":"#N/A"}},{"$f":"VLOOKUP(Table_Data_Table_13[[#This Row],[Item ID]],Analysis_Table,12,FALSE)","v":{"$error":"#N/A"}},{"$f":"VLOOKUP(Table_Data_Table_13[[#This Row],[Item ID]],Analysis_Table,13,FALSE)","v":{"$error":"#N/A"}},{"$f":"VLOOKUP(Table_Data_Table_13[[#This Row],[Item ID]],Analysis_Table,14,FALSE)","v":{"$error":"#N/A"}},{"$f":"VLOOKUP(Table_Data_Table_13[[#This Row],[Item ID]],Analysis_Table,15,FALSE)","v":{"$error":"#N/A"}},{"$f":"VLOOKUP(Table_Data_Table_13[[#This Row],[Item ID]],Analysis_Table,16,FALSE)","v":{"$error":"#N/A"}},{"$f":"VLOOKUP(Table_Data_Table_13[[#This Row],[Item ID]],Analysis_Table,17,FALSE)","v":{"$error":"#N/A"}},{"$f":"VLOOKUP(Table_Data_Table_13[[#This Row],[Item ID]],Analysis_Table,18,FALSE)","v":{"$error":"#N/A"}},{"$f":"VLOOKUP(Table_Data_Table_13[[#This Row],[Item ID]],Analysis_Table,19,FALSE)","v":{"$error":"#N/A"}},null,null,1]
["",null,null,null,null,null,null,null,null,0,null,null,null,{"$f":"VLOOKUP(Table_Data_Table_13[[#This Row],[Item ID]],Analysis_Table,8,FALSE)","v":{"$error":"#N/A"}},{"$f":"VLOOKUP(Table_Data_Table_13[[#This Row],[Item ID]],Analysis_Table,9,FALSE)","v":{"$error":"#N/A"}},{"$f":"VLOOKUP(Table_Data_Table_13[[#This Row],[Item ID]],Analysis_Table,10,FALSE)","v":{"$error":"#N/A"}},{"$f":"VLOOKUP(Table_Data_Table_13[[#This Row],[Item ID]],Analysis_Table,11,FALSE)","v":{"$error":"#N/A"}},{"$f":"VLOOKUP(Table_Data_Table_13[[#This Row],[Item ID]],Analysis_Table,12,FALSE)","v":{"$error":"#N/A"}},{"$f":"VLOOKUP(Table_Data_Table_13[[#This Row],[Item ID]],Analysis_Table,13,FALSE)","v":{"$error":"#N/A"}},{"$f":"VLOOKUP(Table_Data_Table_13[[#This Row],[Item ID]],Analysis_Table,14,FALSE)","v":{"$error":"#N/A"}},{"$f":"VLOOKUP(Table_Data_Table_13[[#This Row],[Item ID]],Analysis_Table,15,FALSE)","v":{"$error":"#N/A"}},{"$f":"VLOOKUP(Table_Data_Table_13[[#This Row],[Item ID]],Analysis_Table,16,FALSE)","v":{"$error":"#N/A"}},{"$f":"VLOOKUP(Table_Data_Table_13[[#This Row],[Item ID]],Analysis_Table,17,FALSE)","v":{"$error":"#N/A"}},{"$f":"VLOOKUP(Table_Data_Table_13[[#This Row],[Item ID]],Analysis_Table,18,FALSE)","v":{"$error":"#N/A"}},{"$f":"VLOOKUP(Table_Data_Table_13[[#This Row],[Item ID]],Analysis_Table,19,FALSE)","v":{"$error":"#N/A"}},null,null,1]
["",null,null,null,null,null,null,null,null,0,null,null,null,{"$f":"VLOOKUP(Table_Data_Table_13[[#This Row],[Item ID]],Analysis_Table,8,FALSE)","v":{"$error":"#N/A"}},{"$f":"VLOOKUP(Table_Data_Table_13[[#This Row],[Item ID]],Analysis_Table,9,FALSE)","v":{"$error":"#N/A"}},{"$f":"VLOOKUP(Table_Data_Table_13[[#This Row],[Item ID]],Analysis_Table,10,FALSE)","v":{"$error":"#N/A"}},{"$f":"VLOOKUP(Table_Data_Table_13[[#This Row],[Item ID]],Analysis_Table,11,FALSE)","v":{"$error":"#N/A"}},{"$f":"VLOOKUP(Table_Data_Table_13[[#This Row],[Item ID]],Analysis_Table,12,FALSE)","v":{"$error":"#N/A"}},{"$f":"VLOOKUP(Table_Data_Table_13[[#This Row],[Item ID]],Analysis_Table,13,FALSE)","v":{"$error":"#N/A"}},{"$f":"VLOOKUP(Table_Data_Table_13[[#This Row],[Item ID]],Analysis_Table,14,FALSE)","v":{"$error":"#N/A"}},{"$f":"VLOOKUP(Table_Data_Table_13[[#This Row],[Item ID]],Analysis_Table,15,FALSE)","v":{"$error":"#N/A"}},{"$f":"VLOOKUP(Table_Data_Table_13[[#This Row],[Item ID]],Analysis_Table,16,FALSE)","v":{"$error":"#N/A"}},{"$f":"VLOOKUP(Table_Data_Table_13[[#This Row],[Item ID]],Analysis_Table,17,FALSE)","v":{"$error":"#N/A"}},{"$f":"VLOOKUP(Table_Data_Table_13[[#This Row],[Item ID]],Analysis_Table,18,FALSE)","v":{"$error":"#N/A"}},{"$f":"VLOOKUP(Table_Data_Table_13[[#This Row],[Item ID]],Analysis_Table,19,FALSE)","v":{"$error":"#N/A"}},null,null,1]
["",null,null,null,null,null,null,null,null,0,null,null,null,{"$f":"VLOOKUP(Table_Data_Table_13[[#This Row],[Item ID]],Analysis_Table,8,FALSE)","v":{"$error":"#N/A"}},{"$f":"VLOOKUP(Table_Data_Table_13[[#This Row],[Item ID]],Analysis_Table,9,FALSE)","v":{"$error":"#N/A"}},{"$f":"VLOOKUP(Table_Data_Table_13[[#This Row],[Item ID]],Analysis_Table,10,FALSE)","v":{"$error":"#N/A"}},{"$f":"VLOOKUP(Table_Data_Table_13[[#This Row],[Item ID]],Analysis_Table,11,FALSE)","v":{"$error":"#N/A"}},{"$f":"VLOOKUP(Table_Data_Table_13[[#This Row],[Item ID]],Analysis_Table,12,FALSE)","v":{"$error":"#N/A"}},{"$f":"VLOOKUP(Table_Data_Table_13[[#This Row],[Item ID]],Analysis_Table,13,FALSE)","v":{"$error":"#N/A"}},{"$f":"VLOOKUP(Table_Data_Table_13[[#This Row],[Item ID]],Analysis_Table,14,FALSE)","v":{"$error":"#N/A"}},{"$f":"VLOOKUP(Table_Data_Table_13[[#This Row],[Item ID]],Analysis_Table,15,FALSE)","v":{"$error":"#N/A"}},{"$f":"VLOOKUP(Table_Data_Table_13[[#This Row],[Item ID]],Analysis_Table,16,FALSE)","v":{"$error":"#N/A"}},{"$f":"VLOOKUP(Table_Data_Table_13[[#This Row],[Item ID]],Analysis_Table,17,FALSE)","v":{"$error":"#N/A"}},{"$f":"VLOOKUP(Table_Data_Table_13[[#This Row],[Item ID]],Analysis_Table,18,FALSE)","v":{"$error":"#N/A"}},{"$f":"VLOOKUP(Table_Data_Table_13[[#This Row],[Item ID]],Analysis_Table,19,FALSE)","v":{"$error":"#N/A"}},null,null,1]
["",null,null,null,null,null,null,null,null,0,null,null,null,{"$f":"VLOOKUP(Table_Data_Table_13[[#This Row],[Item ID]],Analysis_Table,8,FALSE)","v":{"$error":"#N/A"}},{"$f":"VLOOKUP(Table_Data_Table_13[[#This Row],[Item ID]],Analysis_Table,9,FALSE)","v":{"$error":"#N/A"}},{"$f":"VLOOKUP(Table_Data_Table_13[[#This Row],[Item ID]],Analysis_Table,10,FALSE)","v":{"$error":"#N/A"}},{"$f":"VLOOKUP(Table_Data_Table_13[[#This Row],[Item ID]],Analysis_Table,11,FALSE)","v":{"$error":"#N/A"}},{"$f":"VLOOKUP(Table_Data_Table_13[[#This Row],[Item ID]],Analysis_Table,12,FALSE)","v":{"$error":"#N/A"}},{"$f":"VLOOKUP(Table_Data_Table_13[[#This Row],[Item ID]],Analysis_Table,13,FALSE)","v":{"$error":"#N/A"}},{"$f":"VLOOKUP(Table_Data_Table_13[[#This Row],[Item ID]],Analysis_Table,14,FALSE)","v":{"$error":"#N/A"}},{"$f":"VLOOKUP(Table_Data_Table_13[[#This Row],[Item ID]],Analysis_Table,15,FALSE)","v":{"$error":"#N/A"}},{"$f":"VLOOKUP(Table_Data_Table_13[[#This Row],[Item ID]],Analysis_Table,16,FALSE)","v":{"$error":"#N/A"}},{"$f":"VLOOKUP(Table_Data_Table_13[[#This Row],[Item ID]],Analysis_Table,17,FALSE)","v":{"$error":"#N/A"}},{"$f":"VLOOKUP(Table_Data_Table_13[[#This Row],[Item ID]],Analysis_Table,18,FALSE)","v":{"$error":"#N/A"}},{"$f":"VLOOKUP(Table_Data_Table_13[[#This Row],[Item ID]],Analysis_Table,19,FALSE)","v":{"$error":"#N/A"}},null,null,1]
["",null,null,null,null,null,null,null,null,0,null,null,null,{"$f":"VLOOKUP(Table_Data_Table_13[[#This Row],[Item ID]],Analysis_Table,8,FALSE)","v":{"$error":"#N/A"}},{"$f":"VLOOKUP(Table_Data_Table_13[[#This Row],[Item ID]],Analysis_Table,9,FALSE)","v":{"$error":"#N/A"}},{"$f":"VLOOKUP(Table_Data_Table_13[[#This Row],[Item ID]],Analysis_Table,10,FALSE)","v":{"$error":"#N/A"}},{"$f":"VLOOKUP(Table_Data_Table_13[[#This Row],[Item ID]],Analysis_Table,11,FALSE)","v":{"$error":"#N/A"}},{"$f":"VLOOKUP(Table_Data_Table_13[[#This Row],[Item ID]],Analysis_Table,12,FALSE)","v":{"$error":"#N/A"}},{"$f":"VLOOKUP(Table_Data_Table_13[[#This Row],[Item ID]],Analysis_Table,13,FALSE)","v":{"$error":"#N/A"}},{"$f":"VLOOKUP(Table_Data_Table_13[[#This Row],[Item ID]],Analysis_Table,14,FALSE)","v":{"$error":"#N/A"}},{"$f":"VLOOKUP(Table_Data_Table_13[[#This Row],[Item ID]],Analysis_Table,15,FALSE)","v":{"$error":"#N/A"}},{"$f":"VLOOKUP(Table_Data_Table_13[[#This Row],[Item ID]],Analysis_Table,16,FALSE)","v":{"$error":"#N/A"}},{"$f":"VLOOKUP(Table_Data_Table_13[[#This Row],[Item ID]],Analysis_Table,17,FALSE)","v":{"$error":"#N/A"}},{"$f":"VLOOKUP(Table_Data_Table_13[[#This Row],[Item ID]],Analysis_Table,18,FALSE)","v":{"$error":"#N/A"}},{"$f":"VLOOKUP(Table_Data_Table_13[[#This Row],[Item ID]],Analysis_Table,19,FALSE)","v":{"$error":"#N/A"}},null,null,1]
["",null,null,null,null,null,null,null,null,0,null,null,null,{"$f":"VLOOKUP(Table_Data_Table_13[[#This Row],[Item ID]],Analysis_Table,8,FALSE)","v":{"$error":"#N/A"}},{"$f":"VLOOKUP(Table_Data_Table_13[[#This Row],[Item ID]],Analysis_Table,9,FALSE)","v":{"$error":"#N/A"}},{"$f":"VLOOKUP(Table_Data_Table_13[[#This Row],[Item ID]],Analysis_Table,10,FALSE)","v":{"$error":"#N/A"}},{"$f":"VLOOKUP(Table_Data_Table_13[[#This Row],[Item ID]],Analysis_Table,11,FALSE)","v":{"$error":"#N/A"}},{"$f":"VLOOKUP(Table_Data_Table_13[[#This Row],[Item ID]],Analysis_Table,12,FALSE)","v":{"$error":"#N/A"}},{"$f":"VLOOKUP(Table_Data_Table_13[[#This Row],[Item ID]],Analysis_Table,13,FALSE)","v":{"$error":"#N/A"}},{"$f":"VLOOKUP(Table_Data_Table_13[[#This Row],[Item ID]],Analysis_Table,14,FALSE)","v":{"$error":"#N/A"}},{"$f":"VLOOKUP(Table_Data_Table_13[[#This Row],[Item ID]],Analysis_Table,15,FALSE)","v":{"$error":"#N/A"}},{"$f":"VLOOKUP(Table_Data_Table_13[[#This Row],[Item ID]],Analysis_Table,16,FALSE)","v":{"$error":"#N/A"}},{"$f":"VLOOKUP(Table_Data_Table_13[[#This Row],[Item ID]],Analysis_Table,17,FALSE)","v":{"$error":"#N/A"}},{"$f":"VLOOKUP(Table_Data_Table_13[[#This Row],[Item ID]],Analysis_Table,18,FALSE)","v":{"$error":"#N/A"}},{"$f":"VLOOKUP(Table_Data_Table_13[[#This Row],[Item ID]],Analysis_Table,19,FALSE)","v":{"$error":"#N/A"}},null,null,1]
["",null,null,null,null,null,null,null,null,0,null,null,null,{"$f":"VLOOKUP(Table_Data_Table_13[[#This Row],[Item ID]],Analysis_Table,8,FALSE)","v":{"$error":"#N/A"}},{"$f":"VLOOKUP(Table_Data_Table_13[[#This Row],[Item ID]],Analysis_Table,9,FALSE)","v":{"$error":"#N/A"}},{"$f":"VLOOKUP(Table_Data_Table_13[[#This Row],[Item ID]],Analysis_Table,10,FALSE)","v":{"$error":"#N/A"}},{"$f":"VLOOKUP(Table_Data_Table_13[[#This Row],[Item ID]],Analysis_Table,11,FALSE)","v":{"$error":"#N/A"}},{"$f":"VLOOKUP(Table_Data_Table_13[[#This Row],[Item ID]],Analysis_Table,12,FALSE)","v":{"$error":"#N/A"}},{"$f":"VLOOKUP(Table_Data_Table_13[[#This Row],[Item ID]],Analysis_Table,13,FALSE)","v":{"$error":"#N/A"}},{"$f":"VLOOKUP(Table_Data_Table_13[[#This Row],[Item ID]],Analysis_Table,14,FALSE)","v":{"$error":"#N/A"}},{"$f":"VLOOKUP(Table_Data_Table_13[[#This Row],[Item ID]],Analysis_Table,15,FALSE)","v":{"$error":"#N/A"}},{"$f":"VLOOKUP(Table_Data_Table_13[[#This Row],[Item ID]],Analysis_Table,16,FALSE)","v":{"$error":"#N/A"}},{"$f":"VLOOKUP(Table_Data_Table_13[[#This Row],[Item ID]],Analysis_Table,17,FALSE)","v":{"$error":"#N/A"}},{"$f":"VLOOKUP(Table_Data_Table_13[[#This Row],[Item ID]],Analysis_Table,18,FALSE)","v":{"$error":"#N/A"}},{"$f":"VLOOKUP(Table_Data_Table_13[[#This Row],[Item ID]],Analysis_Table,19,FALSE)","v":{"$error":"#N/A"}},null,null,1]
["",null,null,null,null,null,null,null,null,0,null,null,null,{"$f":"VLOOKUP(Table_Data_Table_13[[#This Row],[Item ID]],Analysis_Table,8,FALSE)","v":{"$error":"#N/A"}},{"$f":"VLOOKUP(Table_Data_Table_13[[#This Row],[Item ID]],Analysis_Table,9,FALSE)","v":{"$error":"#N/A"}},{"$f":"VLOOKUP(Table_Data_Table_13[[#This Row],[Item ID]],Analysis_Table,10,FALSE)","v":{"$error":"#N/A"}},{"$f":"VLOOKUP(Table_Data_Table_13[[#This Row],[Item ID]],Analysis_Table,11,FALSE)","v":{"$error":"#N/A"}},{"$f":"VLOOKUP(Table_Data_Table_13[[#This Row],[Item ID]],Analysis_Table,12,FALSE)","v":{"$error":"#N/A"}},{"$f":"VLOOKUP(Table_Data_Table_13[[#This Row],[Item ID]],Analysis_Table,13,FALSE)","v":{"$error":"#N/A"}},{"$f":"VLOOKUP(Table_Data_Table_13[[#This Row],[Item ID]],Analysis_Table,14,FALSE)","v":{"$error":"#N/A"}},{"$f":"VLOOKUP(Table_Data_Table_13[[#This Row],[Item ID]],Analysis_Table,15,FALSE)","v":{"$error":"#N/A"}},{"$f":"VLOOKUP(Table_Data_Table_13[[#This Row],[Item ID]],Analysis_Table,16,FALSE)","v":{"$error":"#N/A"}},{"$f":"VLOOKUP(Table_Data_Table_13[[#This Row],[Item ID]],Analysis_Table,17,FALSE)","v":{"$error":"#N/A"}},{"$f":"VLOOKUP(Table_Data_Table_13[[#This Row],[Item ID]],Analysis_Table,18,FALSE)","v":{"$error":"#N/A"}},{"$f":"VLOOKUP(Table_Data_Table_13[[#This Row],[Item ID]],Analysis_Table,19,FALSE)","v":{"$error":"#N/A"}},null,null,1]
["",null,null,null,null,null,null,null,null,0,null,null,null,{"$f":"VLOOKUP(Table_Data_Table_13[[#This Row],[Item ID]],Analysis_Table,8,FALSE)","v":{"$error":"#N/A"}},{"$f":"VLOOKUP(Table_Data_Table_13[[#This Row],[Item ID]],Analysis_Table,9,FALSE)","v":{"$error":"#N/A"}},{"$f":"VLOOKUP(Table_Data_Table_13[[#This Row],[Item ID]],Analysis_Table,10,FALSE)","v":{"$error":"#N/A"}},{"$f":"VLOOKUP(Table_Data_Table_13[[#This Row],[Item ID]],Analysis_Table,11,FALSE)","v":{"$error":"#N/A"}},{"$f":"VLOOKUP(Table_Data_Table_13[[#This Row],[Item ID]],Analysis_Table,12,FALSE)","v":{"$error":"#N/A"}},{"$f":"VLOOKUP(Table_Data_Table_13[[#This Row],[Item ID]],Analysis_Table,13,FALSE)","v":{"$error":"#N/A"}},{"$f":"VLOOKUP(Table_Data_Table_13[[#This Row],[Item ID]],Analysis_Table,14,FALSE)","v":{"$error":"#N/A"}},{"$f":"VLOOKUP(Table_Data_Table_13[[#This Row],[Item ID]],Analysis_Table,15,FALSE)","v":{"$error":"#N/A"}},{"$f":"VLOOKUP(Table_Data_Table_13[[#This Row],[Item ID]],Analysis_Table,16,FALSE)","v":{"$error":"#N/A"}},{"$f":"VLOOKUP(Table_Data_Table_13[[#This Row],[Item ID]],Analysis_Table,17,FALSE)","v":{"$error":"#N/A"}},{"$f":"VLOOKUP(Table_Data_Table_13[[#This Row],[Item ID]],Analysis_Table,18,FALSE)","v":{"$error":"#N/A"}},{"$f":"VLOOKUP(Table_Data_Table_13[[#This Row],[Item ID]],Analysis_Table,19,FALSE)","v":{"$error":"#N/A"}},null,null,1]
["",null,null,null,null,null,null,null,null,0,null,null,null,{"$f":"VLOOKUP(Table_Data_Table_13[[#This Row],[Item ID]],Analysis_Table,8,FALSE)","v":{"$error":"#N/A"}},{"$f":"VLOOKUP(Table_Data_Table_13[[#This Row],[Item ID]],Analysis_Table,9,FALSE)","v":{"$error":"#N/A"}},{"$f":"VLOOKUP(Table_Data_Table_13[[#This Row],[Item ID]],Analysis_Table,10,FALSE)","v":{"$error":"#N/A"}},{"$f":"VLOOKUP(Table_Data_Table_13[[#This Row],[Item ID]],Analysis_Table,11,FALSE)","v":{"$error":"#N/A"}},{"$f":"VLOOKUP(Table_Data_Table_13[[#This Row],[Item ID]],Analysis_Table,12,FALSE)","v":{"$error":"#N/A"}},{"$f":"VLOOKUP(Table_Data_Table_13[[#This Row],[Item ID]],Analysis_Table,13,FALSE)","v":{"$error":"#N/A"}},{"$f":"VLOOKUP(Table_Data_Table_13[[#This Row],[Item ID]],Analysis_Table,14,FALSE)","v":{"$error":"#N/A"}},{"$f":"VLOOKUP(Table_Data_Table_13[[#This Row],[Item ID]],Analysis_Table,15,FALSE)","v":{"$error":"#N/A"}},{"$f":"VLOOKUP(Table_Data_Table_13[[#This Row],[Item ID]],Analysis_Table,16,FALSE)","v":{"$error":"#N/A"}},{"$f":"VLOOKUP(Table_Data_Table_13[[#This Row],[Item ID]],Analysis_Table,17,FALSE)","v":{"$error":"#N/A"}},{"$f":"VLOOKUP(Table_Data_Table_13[[#This Row],[Item ID]],Analysis_Table,18,FALSE)","v":{"$error":"#N/A"}},{"$f":"VLOOKUP(Table_Data_Table_13[[#This Row],[Item ID]],Analysis_Table,19,FALSE)","v":{"$error":"#N/A"}},null,null,1]
["",null,null,null,null,null,null,null,null,0,null,null,null,{"$f":"VLOOKUP(Table_Data_Table_13[[#This Row],[Item ID]],Analysis_Table,8,FALSE)","v":{"$error":"#N/A"}},{"$f":"VLOOKUP(Table_Data_Table_13[[#This Row],[Item ID]],Analysis_Table,9,FALSE)","v":{"$error":"#N/A"}},{"$f":"VLOOKUP(Table_Data_Table_13[[#This Row],[Item ID]],Analysis_Table,10,FALSE)","v":{"$error":"#N/A"}},{"$f":"VLOOKUP(Table_Data_Table_13[[#This Row],[Item ID]],Analysis_Table,11,FALSE)","v":{"$error":"#N/A"}},{"$f":"VLOOKUP(Table_Data_Table_13[[#This Row],[Item ID]],Analysis_Table,12,FALSE)","v":{"$error":"#N/A"}},{"$f":"VLOOKUP(Table_Data_Table_13[[#This Row],[Item ID]],Analysis_Table,13,FALSE)","v":{"$error":"#N/A"}},{"$f":"VLOOKUP(Table_Data_Table_13[[#This Row],[Item ID]],Analysis_Table,14,FALSE)","v":{"$error":"#N/A"}},{"$f":"VLOOKUP(Table_Data_Table_13[[#This Row],[Item ID]],Analysis_Table,15,FALSE)","v":{"$error":"#N/A"}},{"$f":"VLOOKUP(Table_Data_Table_13[[#This Row],[Item ID]],Analysis_Table,16,FALSE)","v":{"$error":"#N/A"}},{"$f":"VLOOKUP(Table_Data_Table_13[[#This Row],[Item ID]],Analysis_Table,17,FALSE)","v":{"$error":"#N/A"}},{"$f":"VLOOKUP(Table_Data_Table_13[[#This Row],[Item ID]],Analysis_Table,18,FALSE)","v":{"$error":"#N/A"}},{"$f":"VLOOKUP(Table_Data_Table_13[[#This Row],[Item ID]],Analysis_Table,19,FALSE)","v":{"$error":"#N/A"}},null,null,1]
["",null,null,null,null,null,null,null,null,0,null,null,null,{"$f":"VLOOKUP(Table_Data_Table_13[[#This Row],[Item ID]],Analysis_Table,8,FALSE)","v":{"$error":"#N/A"}},{"$f":"VLOOKUP(Table_Data_Table_13[[#This Row],[Item ID]],Analysis_Table,9,FALSE)","v":{"$error":"#N/A"}},{"$f":"VLOOKUP(Table_Data_Table_13[[#This Row],[Item ID]],Analysis_Table,10,FALSE)","v":{"$error":"#N/A"}},{"$f":"VLOOKUP(Table_Data_Table_13[[#This Row],[Item ID]],Analysis_Table,11,FALSE)","v":{"$error":"#N/A"}},{"$f":"VLOOKUP(Table_Data_Table_13[[#This Row],[Item ID]],Analysis_Table,12,FALSE)","v":{"$error":"#N/A"}},{"$f":"VLOOKUP(Table_Data_Table_13[[#This Row],[Item ID]],Analysis_Table,13,FALSE)","v":{"$error":"#N/A"}},{"$f":"VLOOKUP(Table_Data_Table_13[[#This Row],[Item ID]],Analysis_Table,14,FALSE)","v":{"$error":"#N/A"}},{"$f":"VLOOKUP(Table_Data_Table_13[[#This Row],[Item ID]],Analysis_Table,15,FALSE)","v":{"$error":"#N/A"}},{"$f":"VLOOKUP(Table_Data_Table_13[[#This Row],[Item ID]],Analysis_Table,16,FALSE)","v":{"$error":"#N/A"}},{"$f":"VLOOKUP(Table_Data_Table_13[[#This Row],[Item ID]],Analysis_Table,17,FALSE)","v":{"$error":"#N/A"}},{"$f":"VLOOKUP(Table_Data_Table_13[[#This Row],[Item ID]],Analysis_Table,18,FALSE)","v":{"$error":"#N/A"}},{"$f":"VLOOKUP(Table_Data_Table_13[[#This Row],[Item ID]],Analysis_Table,19,FALSE)","v":{"$error":"#N/A"}},null,null,1]
["",null,null,null,null,null,null,null,null,0,null,null,null,{"$f":"VLOOKUP(Table_Data_Table_13[[#This Row],[Item ID]],Analysis_Table,8,FALSE)","v":{"$error":"#N/A"}},{"$f":"VLOOKUP(Table_Data_Table_13[[#This Row],[Item ID]],Analysis_Table,9,FALSE)","v":{"$error":"#N/A"}},{"$f":"VLOOKUP(Table_Data_Table_13[[#This Row],[Item ID]],Analysis_Table,10,FALSE)","v":{"$error":"#N/A"}},{"$f":"VLOOKUP(Table_Data_Table_13[[#This Row],[Item ID]],Analysis_Table,11,FALSE)","v":{"$error":"#N/A"}},{"$f":"VLOOKUP(Table_Data_Table_13[[#This Row],[Item ID]],Analysis_Table,12,FALSE)","v":{"$error":"#N/A"}},{"$f":"VLOOKUP(Table_Data_Table_13[[#This Row],[Item ID]],Analysis_Table,13,FALSE)","v":{"$error":"#N/A"}},{"$f":"VLOOKUP(Table_Data_Table_13[[#This Row],[Item ID]],Analysis_Table,14,FALSE)","v":{"$error":"#N/A"}},{"$f":"VLOOKUP(Table_Data_Table_13[[#This Row],[Item ID]],Analysis_Table,15,FALSE)","v":{"$error":"#N/A"}},{"$f":"VLOOKUP(Table_Data_Table_13[[#This Row],[Item ID]],Analysis_Table,16,FALSE)","v":{"$error":"#N/A"}},{"$f":"VLOOKUP(Table_Data_Table_13[[#This Row],[Item ID]],Analysis_Table,17,FALSE)","v":{"$error":"#N/A"}},{"$f":"VLOOKUP(Table_Data_Table_13[[#This Row],[Item ID]],Analysis_Table,18,FALSE)","v":{"$error":"#N/A"}},{"$f":"VLOOKUP(Table_Data_Table_13[[#This Row],[Item ID]],Analysis_Table,19,FALSE)","v":{"$error":"#N/A"}},null,null,1]
["",null,null,null,null,null,null,null,null,0,null,null,null,{"$f":"VLOOKUP(Table_Data_Table_13[[#This Row],[Item ID]],Analysis_Table,8,FALSE)","v":{"$error":"#N/A"}},{"$f":"VLOOKUP(Table_Data_Table_13[[#This Row],[Item ID]],Analysis_Table,9,FALSE)","v":{"$error":"#N/A"}},{"$f":"VLOOKUP(Table_Data_Table_13[[#This Row],[Item ID]],Analysis_Table,10,FALSE)","v":{"$error":"#N/A"}},{"$f":"VLOOKUP(Table_Data_Table_13[[#This Row],[Item ID]],Analysis_Table,11,FALSE)","v":{"$error":"#N/A"}},{"$f":"VLOOKUP(Table_Data_Table_13[[#This Row],[Item ID]],Analysis_Table,12,FALSE)","v":{"$error":"#N/A"}},{"$f":"VLOOKUP(Table_Data_Table_13[[#This Row],[Item ID]],Analysis_Table,13,FALSE)","v":{"$error":"#N/A"}},{"$f":"VLOOKUP(Table_Data_Table_13[[#This Row],[Item ID]],Analysis_Table,14,FALSE)","v":{"$error":"#N/A"}},{"$f":"VLOOKUP(Table_Data_Table_13[[#This Row],[Item ID]],Analysis_Table,15,FALSE)","v":{"$error":"#N/A"}},{"$f":"VLOOKUP(Table_Data_Table_13[[#This Row],[Item ID]],Analysis_Table,16,FALSE)","v":{"$error":"#N/A"}},{"$f":"VLOOKUP(Table_Data_Table_13[[#This Row],[Item ID]],Analysis_Table,17,FALSE)","v":{"$error":"#N/A"}},{"$f":"VLOOKUP(Table_Data_Table_13[[#This Row],[Item ID]],Analysis_Table,18,FALSE)","v":{"$error":"#N/A"}},{"$f":"VLOOKUP(Table_Data_Table_13[[#This Row],[Item ID]],Analysis_Table,19,FALSE)","v":{"$error":"#N/A"}},null,null,1]
["",null,null,null,null,null,null,null,null,0,null,null,null,{"$f":"VLOOKUP(Table_Data_Table_13[[#This Row],[Item ID]],Analysis_Table,8,FALSE)","v":{"$error":"#N/A"}},{"$f":"VLOOKUP(Table_Data_Table_13[[#This Row],[Item ID]],Analysis_Table,9,FALSE)","v":{"$error":"#N/A"}},{"$f":"VLOOKUP(Table_Data_Table_13[[#This Row],[Item ID]],Analysis_Table,10,FALSE)","v":{"$error":"#N/A"}},{"$f":"VLOOKUP(Table_Data_Table_13[[#This Row],[Item ID]],Analysis_Table,11,FALSE)","v":{"$error":"#N/A"}},{"$f":"VLOOKUP(Table_Data_Table_13[[#This Row],[Item ID]],Analysis_Table,12,FALSE)","v":{"$error":"#N/A"}},{"$f":"VLOOKUP(Table_Data_Table_13[[#This Row],[Item ID]],Analysis_Table,13,FALSE)","v":{"$error":"#N/A"}},{"$f":"VLOOKUP(Table_Data_Table_13[[#This Row],[Item ID]],Analysis_Table,14,FALSE)","v":{"$error":"#N/A"}},{"$f":"VLOOKUP(Table_Data_Table_13[[#This Row],[Item ID]],Analysis_Table,15,FALSE)","v":{"$error":"#N/A"}},{"$f":"VLOOKUP(Table_Data_Table_13[[#This Row],[Item ID]],Analysis_Table,16,FALSE)","v":{"$error":"#N/A"}},{"$f":"VLOOKUP(Table_Data_Table_13[[#This Row],[Item ID]],Analysis_Table,17,FALSE)","v":{"$error":"#N/A"}},{"$f":"VLOOKUP(Table_Data_Table_13[[#This Row],[Item ID]],Analysis_Table,18,FALSE)","v":{"$error":"#N/A"}},{"$f":"VLOOKUP(Table_Data_Table_13[[#This Row],[Item ID]],Analysis_Table,19,FALSE)","v":{"$error":"#N/A"}},null,null,1]
["",null,null,null,null,null,null,null,null,0,null,null,null,{"$f":"VLOOKUP(Table_Data_Table_13[[#This Row],[Item ID]],Analysis_Table,8,FALSE)","v":{"$error":"#N/A"}},{"$f":"VLOOKUP(Table_Data_Table_13[[#This Row],[Item ID]],Analysis_Table,9,FALSE)","v":{"$error":"#N/A"}},{"$f":"VLOOKUP(Table_Data_Table_13[[#This Row],[Item ID]],Analysis_Table,10,FALSE)","v":{"$error":"#N/A"}},{"$f":"VLOOKUP(Table_Data_Table_13[[#This Row],[Item ID]],Analysis_Table,11,FALSE)","v":{"$error":"#N/A"}},{"$f":"VLOOKUP(Table_Data_Table_13[[#This Row],[Item ID]],Analysis_Table,12,FALSE)","v":{"$error":"#N/A"}},{"$f":"VLOOKUP(Table_Data_Table_13[[#This Row],[Item ID]],Analysis_Table,13,FALSE)","v":{"$error":"#N/A"}},{"$f":"VLOOKUP(Table_Data_Table_13[[#This Row],[Item ID]],Analysis_Table,14,FALSE)","v":{"$error":"#N/A"}},{"$f":"VLOOKUP(Table_Data_Table_13[[#This Row],[Item ID]],Analysis_Table,15,FALSE)","v":{"$error":"#N/A"}},{"$f":"VLOOKUP(Table_Data_Table_13[[#This Row],[Item ID]],Analysis_Table,16,FALSE)","v":{"$error":"#N/A"}},{"$f":"VLOOKUP(Table_Data_Table_13[[#This Row],[Item ID]],Analysis_Table,17,FALSE)","v":{"$error":"#N/A"}},{"$f":"VLOOKUP(Table_Data_Table_13[[#This Row],[Item ID]],Analysis_Table,18,FALSE)","v":{"$error":"#N/A"}},{"$f":"VLOOKUP(Table_Data_Table_13[[#This Row],[Item ID]],Analysis_Table,19,FALSE)","v":{"$error":"#N/A"}},null,null,1]
["",null,null,null,null,null,null,null,null,0,null,null,null,{"$f":"VLOOKUP(Table_Data_Table_13[[#This Row],[Item ID]],Analysis_Table,8,FALSE)","v":{"$error":"#N/A"}},{"$f":"VLOOKUP(Table_Data_Table_13[[#This Row],[Item ID]],Analysis_Table,9,FALSE)","v":{"$error":"#N/A"}},{"$f":"VLOOKUP(Table_Data_Table_13[[#This Row],[Item ID]],Analysis_Table,10,FALSE)","v":{"$error":"#N/A"}},{"$f":"VLOOKUP(Table_Data_Table_13[[#This Row],[Item ID]],Analysis_Table,11,FALSE)","v":{"$error":"#N/A"}},{"$f":"VLOOKUP(Table_Data_Table_13[[#This Row],[Item ID]],Analysis_Table,12,FALSE)","v":{"$error":"#N/A"}},{"$f":"VLOOKUP(Table_Data_Table_13[[#This Row],[Item ID]],Analysis_Table,13,FALSE)","v":{"$error":"#N/A"}},{"$f":"VLOOKUP(Table_Data_Table_13[[#This Row],[Item ID]],Analysis_Table,14,FALSE)","v":{"$error":"#N/A"}},{"$f":"VLOOKUP(Table_Data_Table_13[[#This Row],[Item ID]],Analysis_Table,15,FALSE)","v":{"$error":"#N/A"}},{"$f":"VLOOKUP(Table_Data_Table_13[[#This Row],[Item ID]],Analysis_Table,16,FALSE)","v":{"$error":"#N/A"}},{"$f":"VLOOKUP(Table_Data_Table_13[[#This Row],[Item ID]],Analysis_Table,17,FALSE)","v":{"$error":"#N/A"}},{"$f":"VLOOKUP(Table_Data_Table_13[[#This Row],[Item ID]],Analysis_Table,18,FALSE)","v":{"$error":"#N/A"}},{"$f":"VLOOKUP(Table_Data_Table_13[[#This Row],[Item ID]],Analysis_Table,19,FALSE)","v":{"$error":"#N/A"}},null,null,1]
["",null,null,null,null,null,null,null,null,0,null,null,null,{"$f":"VLOOKUP(Table_Data_Table_13[[#This Row],[Item ID]],Analysis_Table,8,FALSE)","v":{"$error":"#N/A"}},{"$f":"VLOOKUP(Table_Data_Table_13[[#This Row],[Item ID]],Analysis_Table,9,FALSE)","v":{"$error":"#N/A"}},{"$f":"VLOOKUP(Table_Data_Table_13[[#This Row],[Item ID]],Analysis_Table,10,FALSE)","v":{"$error":"#N/A"}},{"$f":"VLOOKUP(Table_Data_Table_13[[#This Row],[Item ID]],Analysis_Table,11,FALSE)","v":{"$error":"#N/A"}},{"$f":"VLOOKUP(Table_Data_Table_13[[#This Row],[Item ID]],Analysis_Table,12,FALSE)","v":{"$error":"#N/A"}},{"$f":"VLOOKUP(Table_Data_Table_13[[#This Row],[Item ID]],Analysis_Table,13,FALSE)","v":{"$error":"#N/A"}},{"$f":"VLOOKUP(Table_Data_Table_13[[#This Row],[Item ID]],Analysis_Table,14,FALSE)","v":{"$error":"#N/A"}},{"$f":"VLOOKUP(Table_Data_Table_13[[#This Row],[Item ID]],Analysis_Table,15,FALSE)","v":{"$error":"#N/A"}},{"$f":"VLOOKUP(Table_Data_Table_13[[#This Row],[Item ID]],Analysis_Table,16,FALSE)","v":{"$error":"#N/A"}},{"$f":"VLOOKUP(Table_Data_Table_13[[#This Row],[Item ID]],Analysis_Table,17,FALSE)","v":{"$error":"#N/A"}},{"$f":"VLOOKUP(Table_Data_Table_13[[#This Row],[Item ID]],Analysis_Table,18,FALSE)","v":{"$error":"#N/A"}},{"$f":"VLOOKUP(Table_Data_Table_13[[#This Row],[Item ID]],Analysis_Table,19,FALSE)","v":{"$error":"#N/A"}},null,null,1]
["",null,null,null,null,null,null,null,null,0,null,null,null,{"$f":"VLOOKUP(Table_Data_Table_13[[#This Row],[Item ID]],Analysis_Table,8,FALSE)","v":{"$error":"#N/A"}},{"$f":"VLOOKUP(Table_Data_Table_13[[#This Row],[Item ID]],Analysis_Table,9,FALSE)","v":{"$error":"#N/A"}},{"$f":"VLOOKUP(Table_Data_Table_13[[#This Row],[Item ID]],Analysis_Table,10,FALSE)","v":{"$error":"#N/A"}},{"$f":"VLOOKUP(Table_Data_Table_13[[#This Row],[Item ID]],Analysis_Table,11,FALSE)","v":{"$error":"#N/A"}},{"$f":"VLOOKUP(Table_Data_Table_13[[#This Row],[Item ID]],Analysis_Table,12,FALSE)","v":{"$error":"#N/A"}},{"$f":"VLOOKUP(Table_Data_Table_13[[#This Row],[Item ID]],Analysis_Table,13,FALSE)","v":{"$error":"#N/A"}},{"$f":"VLOOKUP(Table_Data_Table_13[[#This Row],[Item ID]],Analysis_Table,14,FALSE)","v":{"$error":"#N/A"}},{"$f":"VLOOKUP(Table_Data_Table_13[[#This Row],[Item ID]],Analysis_Table,15,FALSE)","v":{"$error":"#N/A"}},{"$f":"VLOOKUP(Table_Data_Table_13[[#This Row],[Item ID]],Analysis_Table,16,FALSE)","v":{"$error":"#N/A"}},{"$f":"VLOOKUP(Table_Data_Table_13[[#This Row],[Item ID]],Analysis_Table,17,FALSE)","v":{"$error":"#N/A"}},{"$f":"VLOOKUP(Table_Data_Table_13[[#This Row],[Item ID]],Analysis_Table,18,FALSE)","v":{"$error":"#N/A"}},{"$f":"VLOOKUP(Table_Data_Table_13[[#This Row],[Item ID]],Analysis_Table,19,FALSE)","v":{"$error":"#N/A"}},null,null,1]
["",null,null,null,null,null,null,null,null,0,null,null,null,{"$f":"VLOOKUP(Table_Data_Table_13[[#This Row],[Item ID]],Analysis_Table,8,FALSE)","v":{"$error":"#N/A"}},{"$f":"VLOOKUP(Table_Data_Table_13[[#This Row],[Item ID]],Analysis_Table,9,FALSE)","v":{"$error":"#N/A"}},{"$f":"VLOOKUP(Table_Data_Table_13[[#This Row],[Item ID]],Analysis_Table,10,FALSE)","v":{"$error":"#N/A"}},{"$f":"VLOOKUP(Table_Data_Table_13[[#This Row],[Item ID]],Analysis_Table,11,FALSE)","v":{"$error":"#N/A"}},{"$f":"VLOOKUP(Table_Data_Table_13[[#This Row],[Item ID]],Analysis_Table,12,FALSE)","v":{"$error":"#N/A"}},{"$f":"VLOOKUP(Table_Data_Table_13[[#This Row],[Item ID]],Analysis_Table,13,FALSE)","v":{"$error":"#N/A"}},{"$f":"VLOOKUP(Table_Data_Table_13[[#This Row],[Item ID]],Analysis_Table,14,FALSE)","v":{"$error":"#N/A"}},{"$f":"VLOOKUP(Table_Data_Table_13[[#This Row],[Item ID]],Analysis_Table,15,FALSE)","v":{"$error":"#N/A"}},{"$f":"VLOOKUP(Table_Data_Table_13[[#This Row],[Item ID]],Analysis_Table,16,FALSE)","v":{"$error":"#N/A"}},{"$f":"VLOOKUP(Table_Data_Table_13[[#This Row],[Item ID]],Analysis_Table,17,FALSE)","v":{"$error":"#N/A"}},{"$f":"VLOOKUP(Table_Data_Table_13[[#This Row],[Item ID]],Analysis_Table,18,FALSE)","v":{"$error":"#N/A"}},{"$f":"VLOOKUP(Table_Data_Table_13[[#This Row],[Item ID]],Analysis_Table,19,FALSE)","v":{"$error":"#N/A"}},null,null,1]
["",null,null,null,null,null,null,null,null,0,null,null,null,{"$f":"VLOOKUP(Table_Data_Table_13[[#This Row],[Item ID]],Analysis_Table,8,FALSE)","v":{"$error":"#N/A"}},{"$f":"VLOOKUP(Table_Data_Table_13[[#This Row],[Item ID]],Analysis_Table,9,FALSE)","v":{"$error":"#N/A"}},{"$f":"VLOOKUP(Table_Data_Table_13[[#This Row],[Item ID]],Analysis_Table,10,FALSE)","v":{"$error":"#N/A"}},{"$f":"VLOOKUP(Table_Data_Table_13[[#This Row],[Item ID]],Analysis_Table,11,FALSE)","v":{"$error":"#N/A"}},{"$f":"VLOOKUP(Table_Data_Table_13[[#This Row],[Item ID]],Analysis_Table,12,FALSE)","v":{"$error":"#N/A"}},{"$f":"VLOOKUP(Table_Data_Table_13[[#This Row],[Item ID]],Analysis_Table,13,FALSE)","v":{"$error":"#N/A"}},{"$f":"VLOOKUP(Table_Data_Table_13[[#This Row],[Item ID]],Analysis_Table,14,FALSE)","v":{"$error":"#N/A"}},{"$f":"VLOOKUP(Table_Data_Table_13[[#This Row],[Item ID]],Analysis_Table,15,FALSE)","v":{"$error":"#N/A"}},{"$f":"VLOOKUP(Table_Data_Table_13[[#This Row],[Item ID]],Analysis_Table,16,FALSE)","v":{"$error":"#N/A"}},{"$f":"VLOOKUP(Table_Data_Table_13[[#This Row],[Item ID]],Analysis_Table,17,FALSE)","v":{"$error":"#N/A"}},{"$f":"VLOOKUP(Table_Data_Table_13[[#This Row],[Item ID]],Analysis_Table,18,FALSE)","v":{"$error":"#N/A"}},{"$f":"VLOOKUP(Table_Data_Table_13[[#This Row],[Item ID]],Analysis_Table,19,FALSE)","v":{"$error":"#N/A"}},null,null,1]
["",null,null,null,null,null,null,null,null,0,null,null,null,{"$f":"VLOOKUP(Table_Data_Table_13[[#This Row],[Item ID]],Analysis_Table,8,FALSE)","v":{"$error":"#N/A"}},{"$f":"VLOOKUP(Table_Data_Table_13[[#This Row],[Item ID]],Analysis_Table,9,FALSE)","v":{"$error":"#N/A"}},{"$f":"VLOOKUP(Table_Data_Table_13[[#This Row],[Item ID]],Analysis_Table,10,FALSE)","v":{"$error":"#N/A"}},{"$f":"VLOOKUP(Table_Data_Table_13[[#This Row],[Item ID]],Analysis_Table,11,FALSE)","v":{"$error":"#N/A"}},{"$f":"VLOOKUP(Table_Data_Table_13[[#This Row],[Item ID]],Analysis_Table,12,FALSE)","v":{"$error":"#N/A"}},{"$f":"VLOOKUP(Table_Data_Table_13[[#This Row],[Item ID]],Analysis_Table,13,FALSE)","v":{"$error":"#N/A"}},{"$f":"VLOOKUP(Table_Data_Table_13[[#This Row],[Item ID]],Analysis_Table,14,FALSE)","v":{"$error":"#N/A"}},{"$f":"VLOOKUP(Table_Data_Table_13[[#This Row],[Item ID]],Analysis_Table,15,FALSE)","v":{"$error":"#N/A"}},{"$f":"VLOOKUP(Table_Data_Table_13[[#This Row],[Item ID]],Analysis_Table,16,FALSE)","v":{"$error":"#N/A"}},{"$f":"VLOOKUP(Table_Data_Table_13[[#This Row],[Item ID]],Analysis_Table,17,FALSE)","v":{"$error":"#N/A"}},{"$f":"VLOOKUP(Table_Data_Table_13[[#This Row],[Item ID]],Analysis_Table,18,FALSE)","v":{"$error":"#N/A"}},{"$f":"VLOOKUP(Table_Data_Table_13[[#This Row],[Item ID]],Analysis_Table,19,FALSE)","v":{"$error":"#N/A"}},null,null,1]
["",null,null,null,null,null,null,null,null,0,null,null,null,{"$f":"VLOOKUP(Table_Data_Table_13[[#This Row],[Item ID]],Analysis_Table,8,FALSE)","v":{"$error":"#N/A"}},{"$f":"VLOOKUP(Table_Data_Table_13[[#This Row],[Item ID]],Analysis_Table,9,FALSE)","v":{"$error":"#N/A"}},{"$f":"VLOOKUP(Table_Data_Table_13[[#This Row],[Item ID]],Analysis_Table,10,FALSE)","v":{"$error":"#N/A"}},{"$f":"VLOOKUP(Table_Data_Table_13[[#This Row],[Item ID]],Analysis_Table,11,FALSE)","v":{"$error":"#N/A"}},{"$f":"VLOOKUP(Table_Data_Table_13[[#This Row],[Item ID]],Analysis_Table,12,FALSE)","v":{"$error":"#N/A"}},{"$f":"VLOOKUP(Table_Data_Table_13[[#This Row],[Item ID]],Analysis_Table,13,FALSE)","v":{"$error":"#N/A"}},{"$f":"VLOOKUP(Table_Data_Table_13[[#This Row],[Item ID]],Analysis_Table,14,FALSE)","v":{"$error":"#N/A"}},{"$f":"VLOOKUP(Table_Data_Table_13[[#This Row],[Item ID]],Analysis_Table,15,FALSE)","v":{"$error":"#N/A"}},{"$f":"VLOOKUP(Table_Data_Table_13[[#This Row],[Item ID]],Analysis_Table,16,FALSE)","v":{"$error":"#N/A"}},{"$f":"VLOOKUP(Table_Data_Table_13[[#This Row],[Item ID]],Analysis_Table,17,FALSE)","v":{"$error":"#N/A"}},{"$f":"VLOOKUP(Table_Data_Table_13[[#This Row],[Item ID]],Analysis_Table,18,FALSE)","v":{"$error":"#N/A"}},{"$f":"VLOOKUP(Table_Data_Table_13[[#This Row],[Item ID]],Analysis_Table,19,FALSE)","v":{"$error":"#N/A"}},null,null,1]
["",null,null,null,null,null,null,null,null,0,null,null,null,{"$f":"VLOOKUP(Table_Data_Table_13[[#This Row],[Item ID]],Analysis_Table,8,FALSE)","v":{"$error":"#N/A"}},{"$f":"VLOOKUP(Table_Data_Table_13[[#This Row],[Item ID]],Analysis_Table,9,FALSE)","v":{"$error":"#N/A"}},{"$f":"VLOOKUP(Table_Data_Table_13[[#This Row],[Item ID]],Analysis_Table,10,FALSE)","v":{"$error":"#N/A"}},{"$f":"VLOOKUP(Table_Data_Table_13[[#This Row],[Item ID]],Analysis_Table,11,FALSE)","v":{"$error":"#N/A"}},{"$f":"VLOOKUP(Table_Data_Table_13[[#This Row],[Item ID]],Analysis_Table,12,FALSE)","v":{"$error":"#N/A"}},{"$f":"VLOOKUP(Table_Data_Table_13[[#This Row],[Item ID]],Analysis_Table,13,FALSE)","v":{"$error":"#N/A"}},{"$f":"VLOOKUP(Table_Data_Table_13[[#This Row],[Item ID]],Analysis_Table,14,FALSE)","v":{"$error":"#N/A"}},{"$f":"VLOOKUP(Table_Data_Table_13[[#This Row],[Item ID]],Analysis_Table,15,FALSE)","v":{"$error":"#N/A"}},{"$f":"VLOOKUP(Table_Data_Table_13[[#This Row],[Item ID]],Analysis_Table,16,FALSE)","v":{"$error":"#N/A"}},{"$f":"VLOOKUP(Table_Data_Table_13[[#This Row],[Item ID]],Analysis_Table,17,FALSE)","v":{"$error":"#N/A"}},{"$f":"VLOOKUP(Table_Data_Table_13[[#This Row],[Item ID]],Analysis_Table,18,FALSE)","v":{"$error":"#N/A"}},{"$f":"VLOOKUP(Table_Data_Table_13[[#This Row],[Item ID]],Analysis_Table,19,FALSE)","v":{"$error":"#N/A"}},null,null,1]
["",null,null,null,null,null,null,null,null,0,null,null,null,{"$f":"VLOOKUP(Table_Data_Table_13[[#This Row],[Item ID]],Analysis_Table,8,FALSE)","v":{"$error":"#N/A"}},{"$f":"VLOOKUP(Table_Data_Table_13[[#This Row],[Item ID]],Analysis_Table,9,FALSE)","v":{"$error":"#N/A"}},{"$f":"VLOOKUP(Table_Data_Table_13[[#This Row],[Item ID]],Analysis_Table,10,FALSE)","v":{"$error":"#N/A"}},{"$f":"VLOOKUP(Table_Data_Table_13[[#This Row],[Item ID]],Analysis_Table,11,FALSE)","v":{"$error":"#N/A"}},{"$f":"VLOOKUP(Table_Data_Table_13[[#This Row],[Item ID]],Analysis_Table,12,FALSE)","v":{"$error":"#N/A"}},{"$f":"VLOOKUP(Table_Data_Table_13[[#This Row],[Item ID]],Analysis_Table,13,FALSE)","v":{"$error":"#N/A"}},{"$f":"VLOOKUP(Table_Data_Table_13[[#This Row],[Item ID]],Analysis_Table,14,FALSE)","v":{"$error":"#N/A"}},{"$f":"VLOOKUP(Table_Data_Table_13[[#This Row],[Item ID]],Analysis_Table,15,FALSE)","v":{"$error":"#N/A"}},{"$f":"VLOOKUP(Table_Data_Table_13[[#This Row],[Item ID]],Analysis_Table,16,FALSE)","v":{"$error":"#N/A"}},{"$f":"VLOOKUP(Table_Data_Table_13[[#This Row],[Item ID]],Analysis_Table,17,FALSE)","v":{"$error":"#N/A"}},{"$f":"VLOOKUP(Table_Data_Table_13[[#This Row],[Item ID]],Analysis_Table,18,FALSE)","v":{"$error":"#N/A"}},{"$f":"VLOOKUP(Table_Data_Table_13[[#This Row],[Item ID]],Analysis_Table,19,FALSE)","v":{"$error":"#N/A"}},null,null,1]
["",null,null,null,null,null,null,null,null,0,null,null,null,{"$f":"VLOOKUP(Table_Data_Table_13[[#This Row],[Item ID]],Analysis_Table,8,FALSE)","v":{"$error":"#N/A"}},{"$f":"VLOOKUP(Table_Data_Table_13[[#This Row],[Item ID]],Analysis_Table,9,FALSE)","v":{"$error":"#N/A"}},{"$f":"VLOOKUP(Table_Data_Table_13[[#This Row],[Item ID]],Analysis_Table,10,FALSE)","v":{"$error":"#N/A"}},{"$f":"VLOOKUP(Table_Data_Table_13[[#This Row],[Item ID]],Analysis_Table,11,FALSE)","v":{"$error":"#N/A"}},{"$f":"VLOOKUP(Table_Data_Table_13[[#This Row],[Item ID]],Analysis_Table,12,FALSE)","v":{"$error":"#N/A"}},{"$f":"VLOOKUP(Table_Data_Table_13[[#This Row],[Item ID]],Analysis_Table,13,FALSE)","v":{"$error":"#N/A"}},{"$f":"VLOOKUP(Table_Data_Table_13[[#This Row],[Item ID]],Analysis_Table,14,FALSE)","v":{"$error":"#N/A"}},{"$f":"VLOOKUP(Table_Data_Table_13[[#This Row],[Item ID]],Analysis_Table,15,FALSE)","v":{"$error":"#N/A"}},{"$f":"VLOOKUP(Table_Data_Table_13[[#This Row],[Item ID]],Analysis_Table,16,FALSE)","v":{"$error":"#N/A"}},{"$f":"VLOOKUP(Table_Data_Table_13[[#This Row],[Item ID]],Analysis_Table,17,FALSE)","v":{"$error":"#N/A"}},{"$f":"VLOOKUP(Table_Data_Table_13[[#This Row],[Item ID]],Analysis_Table,18,FALSE)","v":{"$error":"#N/A"}},{"$f":"VLOOKUP(Table_Data_Table_13[[#This Row],[Item ID]],Analysis_Table,19,FALSE)","v":{"$error":"#N/A"}},null,null,1]
["",null,null,null,null,null,null,null,null,0,null,null,null,{"$f":"VLOOKUP(Table_Data_Table_13[[#This Row],[Item ID]],Analysis_Table,8,FALSE)","v":{"$error":"#N/A"}},{"$f":"VLOOKUP(Table_Data_Table_13[[#This Row],[Item ID]],Analysis_Table,9,FALSE)","v":{"$error":"#N/A"}},{"$f":"VLOOKUP(Table_Data_Table_13[[#This Row],[Item ID]],Analysis_Table,10,FALSE)","v":{"$error":"#N/A"}},{"$f":"VLOOKUP(Table_Data_Table_13[[#This Row],[Item ID]],Analysis_Table,11,FALSE)","v":{"$error":"#N/A"}},{"$f":"VLOOKUP(Table_Data_Table_13[[#This Row],[Item ID]],Analysis_Table,12,FALSE)","v":{"$error":"#N/A"}},{"$f":"VLOOKUP(Table_Data_Table_13[[#This Row],[Item ID]],Analysis_Table,13,FALSE)","v":{"$error":"#N/A"}},{"$f":"VLOOKUP(Table_Data_Table_13[[#This Row],[Item ID]],Analysis_Table,14,FALSE)","v":{"$error":"#N/A"}},{"$f":"VLOOKUP(Table_Data_Table_13[[#This Row],[Item ID]],Analysis_Table,15,FALSE)","v":{"$error":"#N/A"}},{"$f":"VLOOKUP(Table_Data_Table_13[[#This Row],[Item ID]],Analysis_Table,16,FALSE)","v":{"$error":"#N/A"}},{"$f":"VLOOKUP(Table_Data_Table_13[[#This Row],[Item ID]],Analysis_Table,17,FALSE)","v":{"$error":"#N/A"}},{"$f":"VLOOKUP(Table_Data_Table_13[[#This Row],[Item ID]],Analysis_Table,18,FALSE)","v":{"$error":"#N/A"}},{"$f":"VLOOKUP(Table_Data_Table_13[[#This Row],[Item ID]],Analysis_Table,19,FALSE)","v":{"$error":"#N/A"}},null,null,1]
["",null,null,null,null,null,null,null,null,0,null,null,null,{"$f":"VLOOKUP(Table_Data_Table_13[[#This Row],[Item ID]],Analysis_Table,8,FALSE)","v":{"$error":"#N/A"}},{"$f":"VLOOKUP(Table_Data_Table_13[[#This Row],[Item ID]],Analysis_Table,9,FALSE)","v":{"$error":"#N/A"}},{"$f":"VLOOKUP(Table_Data_Table_13[[#This Row],[Item ID]],Analysis_Table,10,FALSE)","v":{"$error":"#N/A"}},{"$f":"VLOOKUP(Table_Data_Table_13[[#This Row],[Item ID]],Analysis_Table,11,FALSE)","v":{"$error":"#N/A"}},{"$f":"VLOOKUP(Table_Data_Table_13[[#This Row],[Item ID]],Analysis_Table,12,FALSE)","v":{"$error":"#N/A"}},{"$f":"VLOOKUP(Table_Data_Table_13[[#This Row],[Item ID]],Analysis_Table,13,FALSE)","v":{"$error":"#N/A"}},{"$f":"VLOOKUP(Table_Data_Table_13[[#This Row],[Item ID]],Analysis_Table,14,FALSE)","v":{"$error":"#N/A"}},{"$f":"VLOOKUP(Table_Data_Table_13[[#This Row],[Item ID]],Analysis_Table,15,FALSE)","v":{"$error":"#N/A"}},{"$f":"VLOOKUP(Table_Data_Table_13[[#This Row],[Item ID]],Analysis_Table,16,FALSE)","v":{"$error":"#N/A"}},{"$f":"VLOOKUP(Table_Data_Table_13[[#This Row],[Item ID]],Analysis_Table,17,FALSE)","v":{"$error":"#N/A"}},{"$f":"VLOOKUP(Table_Data_Table_13[[#This Row],[Item ID]],Analysis_Table,18,FALSE)","v":{"$error":"#N/A"}},{"$f":"VLOOKUP(Table_Data_Table_13[[#This Row],[Item ID]],Analysis_Table,19,FALSE)","v":{"$error":"#N/A"}},null,null,1]
["",null,null,null,null,null,null,null,null,0,null,null,null,{"$f":"VLOOKUP(Table_Data_Table_13[[#This Row],[Item ID]],Analysis_Table,8,FALSE)","v":{"$error":"#N/A"}},{"$f":"VLOOKUP(Table_Data_Table_13[[#This Row],[Item ID]],Analysis_Table,9,FALSE)","v":{"$error":"#N/A"}},{"$f":"VLOOKUP(Table_Data_Table_13[[#This Row],[Item ID]],Analysis_Table,10,FALSE)","v":{"$error":"#N/A"}},{"$f":"VLOOKUP(Table_Data_Table_13[[#This Row],[Item ID]],Analysis_Table,11,FALSE)","v":{"$error":"#N/A"}},{"$f":"VLOOKUP(Table_Data_Table_13[[#This Row],[Item ID]],Analysis_Table,12,FALSE)","v":{"$error":"#N/A"}},{"$f":"VLOOKUP(Table_Data_Table_13[[#This Row],[Item ID]],Analysis_Table,13,FALSE)","v":{"$error":"#N/A"}},{"$f":"VLOOKUP(Table_Data_Table_13[[#This Row],[Item ID]],Analysis_Table,14,FALSE)","v":{"$error":"#N/A"}},{"$f":"VLOOKUP(Table_Data_Table_13[[#This Row],[Item ID]],Analysis_Table,15,FALSE)","v":{"$error":"#N/A"}},{"$f":"VLOOKUP(Table_Data_Table_13[[#This Row],[Item ID]],Analysis_Table,16,FALSE)","v":{"$error":"#N/A"}},{"$f":"VLOOKUP(Table_Data_Table_13[[#This Row],[Item ID]],Analysis_Table,17,FALSE)","v":{"$error":"#N/A"}},{"$f":"VLOOKUP(Table_Data_Table_13[[#This Row],[Item ID]],Analysis_Table,18,FALSE)","v":{"$error":"#N/A"}},{"$f":"VLOOKUP(Table_Data_Table_13[[#This Row],[Item ID]],Analysis_Table,19,FALSE)","v":{"$error":"#N/A"}},null,null,1]
["",null,null,null,null,null,null,null,null,0,null,null,null,{"$f":"VLOOKUP(Table_Data_Table_13[[#This Row],[Item ID]],Analysis_Table,8,FALSE)","v":{"$error":"#N/A"}},{"$f":"VLOOKUP(Table_Data_Table_13[[#This Row],[Item ID]],Analysis_Table,9,FALSE)","v":{"$error":"#N/A"}},{"$f":"VLOOKUP(Table_Data_Table_13[[#This Row],[Item ID]],Analysis_Table,10,FALSE)","v":{"$error":"#N/A"}},{"$f":"VLOOKUP(Table_Data_Table_13[[#This Row],[Item ID]],Analysis_Table,11,FALSE)","v":{"$error":"#N/A"}},{"$f":"VLOOKUP(Table_Data_Table_13[[#This Row],[Item ID]],Analysis_Table,12,FALSE)","v":{"$error":"#N/A"}},{"$f":"VLOOKUP(Table_Data_Table_13[[#This Row],[Item ID]],Analysis_Table,13,FALSE)","v":{"$error":"#N/A"}},{"$f":"VLOOKUP(Table_Data_Table_13[[#This Row],[Item ID]],Analysis_Table,14,FALSE)","v":{"$error":"#N/A"}},{"$f":"VLOOKUP(Table_Data_Table_13[[#This Row],[Item ID]],Analysis_Table,15,FALSE)","v":{"$error":"#N/A"}},{"$f":"VLOOKUP(Table_Data_Table_13[[#This Row],[Item ID]],Analysis_Table,16,FALSE)","v":{"$error":"#N/A"}},{"$f":"VLOOKUP(Table_Data_Table_13[[#This Row],[Item ID]],Analysis_Table,17,FALSE)","v":{"$error":"#N/A"}},{"$f":"VLOOKUP(Table_Data_Table_13[[#This Row],[Item ID]],Analysis_Table,18,FALSE)","v":{"$error":"#N/A"}},{"$f":"VLOOKUP(Table_Data_Table_13[[#This Row],[Item ID]],Analysis_Table,19,FALSE)","v":{"$error":"#N/A"}},null,null,1]
["",null,null,null,null,null,null,null,null,0,null,null,null,{"$f":"VLOOKUP(Table_Data_Table_13[[#This Row],[Item ID]],Analysis_Table,8,FALSE)","v":{"$error":"#N/A"}},{"$f":"VLOOKUP(Table_Data_Table_13[[#This Row],[Item ID]],Analysis_Table,9,FALSE)","v":{"$error":"#N/A"}},{"$f":"VLOOKUP(Table_Data_Table_13[[#This Row],[Item ID]],Analysis_Table,10,FALSE)","v":{"$error":"#N/A"}},{"$f":"VLOOKUP(Table_Data_Table_13[[#This Row],[Item ID]],Analysis_Table,11,FALSE)","v":{"$error":"#N/A"}},{"$f":"VLOOKUP(Table_Data_Table_13[[#This Row],[Item ID]],Analysis_Table,12,FALSE)","v":{"$error":"#N/A"}},{"$f":"VLOOKUP(Table_Data_Table_13[[#This Row],[Item ID]],Analysis_Table,13,FALSE)","v":{"$error":"#N/A"}},{"$f":"VLOOKUP(Table_Data_Table_13[[#This Row],[Item ID]],Analysis_Table,14,FALSE)","v":{"$error":"#N/A"}},{"$f":"VLOOKUP(Table_Data_Table_13[[#This Row],[Item ID]],Analysis_Table,15,FALSE)","v":{"$error":"#N/A"}},{"$f":"VLOOKUP(Table_Data_Table_13[[#This Row],[Item ID]],Analysis_Table,16,FALSE)","v":{"$error":"#N/A"}},{"$f":"VLOOKUP(Table_Data_Table_13[[#This Row],[Item ID]],Analysis_Table,17,FALSE)","v":{"$error":"#N/A"}},{"$f":"VLOOKUP(Table_Data_Table_13[[#This Row],[Item ID]],Analysis_Table,18,FALSE)","v":{"$error":"#N/A"}},{"$f":"VLOOKUP(Table_Data_Table_13[[#This Row],[Item ID]],Analysis_Table,19,FALSE)","v":{"$error":"#N/A"}},null,null,1]
["",null,null,null,null,null,null,null,null,0,null,null,null,{"$f":"VLOOKUP(Table_Data_Table_13[[#This Row],[Item ID]],Analysis_Table,8,FALSE)","v":{"$error":"#N/A"}},{"$f":"VLOOKUP(Table_Data_Table_13[[#This Row],[Item ID]],Analysis_Table,9,FALSE)","v":{"$error":"#N/A"}},{"$f":"VLOOKUP(Table_Data_Table_13[[#This Row],[Item ID]],Analysis_Table,10,FALSE)","v":{"$error":"#N/A"}},{"$f":"VLOOKUP(Table_Data_Table_13[[#This Row],[Item ID]],Analysis_Table,11,FALSE)","v":{"$error":"#N/A"}},{"$f":"VLOOKUP(Table_Data_Table_13[[#This Row],[Item ID]],Analysis_Table,12,FALSE)","v":{"$error":"#N/A"}},{"$f":"VLOOKUP(Table_Data_Table_13[[#This Row],[Item ID]],Analysis_Table,13,FALSE)","v":{"$error":"#N/A"}},{"$f":"VLOOKUP(Table_Data_Table_13[[#This Row],[Item ID]],Analysis_Table,14,FALSE)","v":{"$error":"#N/A"}},{"$f":"VLOOKUP(Table_Data_Table_13[[#This Row],[Item ID]],Analysis_Table,15,FALSE)","v":{"$error":"#N/A"}},{"$f":"VLOOKUP(Table_Data_Table_13[[#This Row],[Item ID]],Analysis_Table,16,FALSE)","v":{"$error":"#N/A"}},{"$f":"VLOOKUP(Table_Data_Table_13[[#This Row],[Item ID]],Analysis_Table,17,FALSE)","v":{"$error":"#N/A"}},{"$f":"VLOOKUP(Table_Data_Table_13[[#This Row],[Item ID]],Analysis_Table,18,FALSE)","v":{"$error":"#N/A"}},{"$f":"VLOOKUP(Table_Data_Table_13[[#This Row],[Item ID]],Analysis_Table,19,FALSE)","v":{"$error":"#N/A"}},null,null,1]
["",null,null,null,null,null,null,null,null,0,null,null,null,{"$f":"VLOOKUP(Table_Data_Table_13[[#This Row],[Item ID]],Analysis_Table,8,FALSE)","v":{"$error":"#N/A"}},{"$f":"VLOOKUP(Table_Data_Table_13[[#This Row],[Item ID]],Analysis_Table,9,FALSE)","v":{"$error":"#N/A"}},{"$f":"VLOOKUP(Table_Data_Table_13[[#This Row],[Item ID]],Analysis_Table,10,FALSE)","v":{"$error":"#N/A"}},{"$f":"VLOOKUP(Table_Data_Table_13[[#This Row],[Item ID]],Analysis_Table,11,FALSE)","v":{"$error":"#N/A"}},{"$f":"VLOOKUP(Table_Data_Table_13[[#This Row],[Item ID]],Analysis_Table,12,FALSE)","v":{"$error":"#N/A"}},{"$f":"VLOOKUP(Table_Data_Table_13[[#This Row],[Item ID]],Analysis_Table,13,FALSE)","v":{"$error":"#N/A"}},{"$f":"VLOOKUP(Table_Data_Table_13[[#This Row],[Item ID]],Analysis_Table,14,FALSE)","v":{"$error":"#N/A"}},{"$f":"VLOOKUP(Table_Data_Table_13[[#This Row],[Item ID]],Analysis_Table,15,FALSE)","v":{"$error":"#N/A"}},{"$f":"VLOOKUP(Table_Data_Table_13[[#This Row],[Item ID]],Analysis_Table,16,FALSE)","v":{"$error":"#N/A"}},{"$f":"VLOOKUP(Table_Data_Table_13[[#This Row],[Item ID]],Analysis_Table,17,FALSE)","v":{"$error":"#N/A"}},{"$f":"VLOOKUP(Table_Data_Table_13[[#This Row],[Item ID]],Analysis_Table,18,FALSE)","v":{"$error":"#N/A"}},{"$f":"VLOOKUP(Table_Data_Table_13[[#This Row],[Item ID]],Analysis_Table,19,FALSE)","v":{"$error":"#N/A"}},null,null,1]
["",null,null,null,null,null,null,null,null,0,null,null,null,{"$f":"VLOOKUP(Table_Data_Table_13[[#This Row],[Item ID]],Analysis_Table,8,FALSE)","v":{"$error":"#N/A"}},{"$f":"VLOOKUP(Table_Data_Table_13[[#This Row],[Item ID]],Analysis_Table,9,FALSE)","v":{"$error":"#N/A"}},{"$f":"VLOOKUP(Table_Data_Table_13[[#This Row],[Item ID]],Analysis_Table,10,FALSE)","v":{"$error":"#N/A"}},{"$f":"VLOOKUP(Table_Data_Table_13[[#This Row],[Item ID]],Analysis_Table,11,FALSE)","v":{"$error":"#N/A"}},{"$f":"VLOOKUP(Table_Data_Table_13[[#This Row],[Item ID]],Analysis_Table,12,FALSE)","v":{"$error":"#N/A"}},{"$f":"VLOOKUP(Table_Data_Table_13[[#This Row],[Item ID]],Analysis_Table,13,FALSE)","v":{"$error":"#N/A"}},{"$f":"VLOOKUP(Table_Data_Table_13[[#This Row],[Item ID]],Analysis_Table,14,FALSE)","v":{"$error":"#N/A"}},{"$f":"VLOOKUP(Table_Data_Table_13[[#This Row],[Item ID]],Analysis_Table,15,FALSE)","v":{"$error":"#N/A"}},{"$f":"VLOOKUP(Table_Data_Table_13[[#This Row],[Item ID]],Analysis_Table,16,FALSE)","v":{"$error":"#N/A"}},{"$f":"VLOOKUP(Table_Data_Table_13[[#This Row],[Item ID]],Analysis_Table,17,FALSE)","v":{"$error":"#N/A"}},{"$f":"VLOOKUP(Table_Data_Table_13[[#This Row],[Item ID]],Analysis_Table,18,FALSE)","v":{"$error":"#N/A"}},{"$f":"VLOOKUP(Table_Data_Table_13[[#This Row],[Item ID]],Analysis_Table,19,FALSE)","v":{"$error":"#N/A"}},null,null,1]
["",null,null,null,null,null,null,null,null,0,null,null,null,{"$f":"VLOOKUP(Table_Data_Table_13[[#This Row],[Item ID]],Analysis_Table,8,FALSE)","v":{"$error":"#N/A"}},{"$f":"VLOOKUP(Table_Data_Table_13[[#This Row],[Item ID]],Analysis_Table,9,FALSE)","v":{"$error":"#N/A"}},{"$f":"VLOOKUP(Table_Data_Table_13[[#This Row],[Item ID]],Analysis_Table,10,FALSE)","v":{"$error":"#N/A"}},{"$f":"VLOOKUP(Table_Data_Table_13[[#This Row],[Item ID]],Analysis_Table,11,FALSE)","v":{"$error":"#N/A"}},{"$f":"VLOOKUP(Table_Data_Table_13[[#This Row],[Item ID]],Analysis_Table,12,FALSE)","v":{"$error":"#N/A"}},{"$f":"VLOOKUP(Table_Data_Table_13[[#This Row],[Item ID]],Analysis_Table,13,FALSE)","v":{"$error":"#N/A"}},{"$f":"VLOOKUP(Table_Data_Table_13[[#This Row],[Item ID]],Analysis_Table,14,FALSE)","v":{"$error":"#N/A"}},{"$f":"VLOOKUP(Table_Data_Table_13[[#This Row],[Item ID]],Analysis_Table,15,FALSE)","v":{"$error":"#N/A"}},{"$f":"VLOOKUP(Table_Data_Table_13[[#This Row],[Item ID]],Analysis_Table,16,FALSE)","v":{"$error":"#N/A"}},{"$f":"VLOOKUP(Table_Data_Table_13[[#This Row],[Item ID]],Analysis_Table,17,FALSE)","v":{"$error":"#N/A"}},{"$f":"VLOOKUP(Table_Data_Table_13[[#This Row],[Item ID]],Analysis_Table,18,FALSE)","v":{"$error":"#N/A"}},{"$f":"VLOOKUP(Table_Data_Table_13[[#This Row],[Item ID]],Analysis_Table,19,FALSE)","v":{"$error":"#N/A"}},null,null,1]
["",null,null,null,null,null,null,null,null,0,null,null,null,{"$f":"VLOOKUP(Table_Data_Table_13[[#This Row],[Item ID]],Analysis_Table,8,FALSE)","v":{"$error":"#N/A"}},{"$f":"VLOOKUP(Table_Data_Table_13[[#This Row],[Item ID]],Analysis_Table,9,FALSE)","v":{"$error":"#N/A"}},{"$f":"VLOOKUP(Table_Data_Table_13[[#This Row],[Item ID]],Analysis_Table,10,FALSE)","v":{"$error":"#N/A"}},{"$f":"VLOOKUP(Table_Data_Table_13[[#This Row],[Item ID]],Analysis_Table,11,FALSE)","v":{"$error":"#N/A"}},{"$f":"VLOOKUP(Table_Data_Table_13[[#This Row],[Item ID]],Analysis_Table,12,FALSE)","v":{"$error":"#N/A"}},{"$f":"VLOOKUP(Table_Data_Table_13[[#This Row],[Item ID]],Analysis_Table,13,FALSE)","v":{"$error":"#N/A"}},{"$f":"VLOOKUP(Table_Data_Table_13[[#This Row],[Item ID]],Analysis_Table,14,FALSE)","v":{"$error":"#N/A"}},{"$f":"VLOOKUP(Table_Data_Table_13[[#This Row],[Item ID]],Analysis_Table,15,FALSE)","v":{"$error":"#N/A"}},{"$f":"VLOOKUP(Table_Data_Table_13[[#This Row],[Item ID]],Analysis_Table,16,FALSE)","v":{"$error":"#N/A"}},{"$f":"VLOOKUP(Table_Data_Table_13[[#This Row],[Item ID]],Analysis_Table,17,FALSE)","v":{"$error":"#N/A"}},{"$f":"VLOOKUP(Table_Data_Table_13[[#This Row],[Item ID]],Analysis_Table,18,FALSE)","v":{"$error":"#N/A"}},{"$f":"VLOOKUP(Table_Data_Table_13[[#This Row],[Item ID]],Analysis_Table,19,FALSE)","v":{"$error":"#N/A"}},null,null,1]
["",null,null,null,null,null,null,null,null,0,null,null,null,{"$f":"VLOOKUP(Table_Data_Table_13[[#This Row],[Item ID]],Analysis_Table,8,FALSE)","v":{"$error":"#N/A"}},{"$f":"VLOOKUP(Table_Data_Table_13[[#This Row],[Item ID]],Analysis_Table,9,FALSE)","v":{"$error":"#N/A"}},{"$f":"VLOOKUP(Table_Data_Table_13[[#This Row],[Item ID]],Analysis_Table,10,FALSE)","v":{"$error":"#N/A"}},{"$f":"VLOOKUP(Table_Data_Table_13[[#This Row],[Item ID]],Analysis_Table,11,FALSE)","v":{"$error":"#N/A"}},{"$f":"VLOOKUP(Table_Data_Table_13[[#This Row],[Item ID]],Analysis_Table,12,FALSE)","v":{"$error":"#N/A"}},{"$f":"VLOOKUP(Table_Data_Table_13[[#This Row],[Item ID]],Analysis_Table,13,FALSE)","v":{"$error":"#N/A"}},{"$f":"VLOOKUP(Table_Data_Table_13[[#This Row],[Item ID]],Analysis_Table,14,FALSE)","v":{"$error":"#N/A"}},{"$f":"VLOOKUP(Table_Data_Table_13[[#This Row],[Item ID]],Analysis_Table,15,FALSE)","v":{"$error":"#N/A"}},{"$f":"VLOOKUP(Table_Data_Table_13[[#This Row],[Item ID]],Analysis_Table,16,FALSE)","v":{"$error":"#N/A"}},{"$f":"VLOOKUP(Table_Data_Table_13[[#This Row],[Item ID]],Analysis_Table,17,FALSE)","v":{"$error":"#N/A"}},{"$f":"VLOOKUP(Table_Data_Table_13[[#This Row],[Item ID]],Analysis_Table,18,FALSE)","v":{"$error":"#N/A"}},{"$f":"VLOOKUP(Table_Data_Table_13[[#This Row],[Item ID]],Analysis_Table,19,FALSE)","v":{"$error":"#N/A"}},null,null,1]
["",null,null,null,null,null,null,null,null,0,null,null,null,{"$f":"VLOOKUP(Table_Data_Table_13[[#This Row],[Item ID]],Analysis_Table,8,FALSE)","v":{"$error":"#N/A"}},{"$f":"VLOOKUP(Table_Data_Table_13[[#This Row],[Item ID]],Analysis_Table,9,FALSE)","v":{"$error":"#N/A"}},{"$f":"VLOOKUP(Table_Data_Table_13[[#This Row],[Item ID]],Analysis_Table,10,FALSE)","v":{"$error":"#N/A"}},{"$f":"VLOOKUP(Table_Data_Table_13[[#This Row],[Item ID]],Analysis_Table,11,FALSE)","v":{"$error":"#N/A"}},{"$f":"VLOOKUP(Table_Data_Table_13[[#This Row],[Item ID]],Analysis_Table,12,FALSE)","v":{"$error":"#N/A"}},{"$f":"VLOOKUP(Table_Data_Table_13[[#This Row],[Item ID]],Analysis_Table,13,FALSE)","v":{"$error":"#N/A"}},{"$f":"VLOOKUP(Table_Data_Table_13[[#This Row],[Item ID]],Analysis_Table,14,FALSE)","v":{"$error":"#N/A"}},{"$f":"VLOOKUP(Table_Data_Table_13[[#This Row],[Item ID]],Analysis_Table,15,FALSE)","v":{"$error":"#N/A"}},{"$f":"VLOOKUP(Table_Data_Table_13[[#This Row],[Item ID]],Analysis_Table,16,FALSE)","v":{"$error":"#N/A"}},{"$f":"VLOOKUP(Table_Data_Table_13[[#This Row],[Item ID]],Analysis_Table,17,FALSE)","v":{"$error":"#N/A"}},{"$f":"VLOOKUP(Table_Data_Table_13[[#This Row],[Item ID]],Analysis_Table,18,FALSE)","v":{"$error":"#N/A"}},{"$f":"VLOOKUP(Table_Data_Table_13[[#This Row],[Item ID]],Analysis_Table,19,FALSE)","v":{"$error":"#N/A"}},null,null,1]
["",null,null,null,null,null,null,null,null,0,null,null,null,{"$f":"VLOOKUP(Table_Data_Table_13[[#This Row],[Item ID]],Analysis_Table,8,FALSE)","v":{"$error":"#N/A"}},{"$f":"VLOOKUP(Table_Data_Table_13[[#This Row],[Item ID]],Analysis_Table,9,FALSE)","v":{"$error":"#N/A"}},{"$f":"VLOOKUP(Table_Data_Table_13[[#This Row],[Item ID]],Analysis_Table,10,FALSE)","v":{"$error":"#N/A"}},{"$f":"VLOOKUP(Table_Data_Table_13[[#This Row],[Item ID]],Analysis_Table,11,FALSE)","v":{"$error":"#N/A"}},{"$f":"VLOOKUP(Table_Data_Table_13[[#This Row],[Item ID]],Analysis_Table,12,FALSE)","v":{"$error":"#N/A"}},{"$f":"VLOOKUP(Table_Data_Table_13[[#This Row],[Item ID]],Analysis_Table,13,FALSE)","v":{"$error":"#N/A"}},{"$f":"VLOOKUP(Table_Data_Table_13[[#This Row],[Item ID]],Analysis_Table,14,FALSE)","v":{"$error":"#N/A"}},{"$f":"VLOOKUP(Table_Data_Table_13[[#This Row],[Item ID]],Analysis_Table,15,FALSE)","v":{"$error":"#N/A"}},{"$f":"VLOOKUP(Table_Data_Table_13[[#This Row],[Item ID]],Analysis_Table,16,FALSE)","v":{"$error":"#N/A"}},{"$f":"VLOOKUP(Table_Data_Table_13[[#This Row],[Item ID]],Analysis_Table,17,FALSE)","v":{"$error":"#N/A"}},{"$f":"VLOOKUP(Table_Data_Table_13[[#This Row],[Item ID]],Analysis_Table,18,FALSE)","v":{"$error":"#N/A"}},{"$f":"VLOOKUP(Table_Data_Table_13[[#This Row],[Item ID]],Analysis_Table,19,FALSE)","v":{"$error":"#N/A"}},null,null,1]
["",null,null,null,null,null,null,null,null,0,null,null,null,{"$f":"VLOOKUP(Table_Data_Table_13[[#This Row],[Item ID]],Analysis_Table,8,FALSE)","v":{"$error":"#N/A"}},{"$f":"VLOOKUP(Table_Data_Table_13[[#This Row],[Item ID]],Analysis_Table,9,FALSE)","v":{"$error":"#N/A"}},{"$f":"VLOOKUP(Table_Data_Table_13[[#This Row],[Item ID]],Analysis_Table,10,FALSE)","v":{"$error":"#N/A"}},{"$f":"VLOOKUP(Table_Data_Table_13[[#This Row],[Item ID]],Analysis_Table,11,FALSE)","v":{"$error":"#N/A"}},{"$f":"VLOOKUP(Table_Data_Table_13[[#This Row],[Item ID]],Analysis_Table,12,FALSE)","v":{"$error":"#N/A"}},{"$f":"VLOOKUP(Table_Data_Table_13[[#This Row],[Item ID]],Analysis_Table,13,FALSE)","v":{"$error":"#N/A"}},{"$f":"VLOOKUP(Table_Data_Table_13[[#This Row],[Item ID]],Analysis_Table,14,FALSE)","v":{"$error":"#N/A"}},{"$f":"VLOOKUP(Table_Data_Table_13[[#This Row],[Item ID]],Analysis_Table,15,FALSE)","v":{"$error":"#N/A"}},{"$f":"VLOOKUP(Table_Data_Table_13[[#This Row],[Item ID]],Analysis_Table,16,FALSE)","v":{"$error":"#N/A"}},{"$f":"VLOOKUP(Table_Data_Table_13[[#This Row],[Item ID]],Analysis_Table,17,FALSE)","v":{"$error":"#N/A"}},{"$f":"VLOOKUP(Table_Data_Table_13[[#This Row],[Item ID]],Analysis_Table,18,FALSE)","v":{"$error":"#N/A"}},{"$f":"VLOOKUP(Table_Data_Table_13[[#This Row],[Item ID]],Analysis_Table,19,FALSE)","v":{"$error":"#N/A"}},null,null,1]
["",null,null,null,null,null,null,null,null,0,null,null,null,{"$f":"VLOOKUP(Table_Data_Table_13[[#This Row],[Item ID]],Analysis_Table,8,FALSE)","v":{"$error":"#N/A"}},{"$f":"VLOOKUP(Table_Data_Table_13[[#This Row],[Item ID]],Analysis_Table,9,FALSE)","v":{"$error":"#N/A"}},{"$f":"VLOOKUP(Table_Data_Table_13[[#This Row],[Item ID]],Analysis_Table,10,FALSE)","v":{"$error":"#N/A"}},{"$f":"VLOOKUP(Table_Data_Table_13[[#This Row],[Item ID]],Analysis_Table,11,FALSE)","v":{"$error":"#N/A"}},{"$f":"VLOOKUP(Table_Data_Table_13[[#This Row],[Item ID]],Analysis_Table,12,FALSE)","v":{"$error":"#N/A"}},{"$f":"VLOOKUP(Table_Data_Table_13[[#This Row],[Item ID]],Analysis_Table,13,FALSE)","v":{"$error":"#N/A"}},{"$f":"VLOOKUP(Table_Data_Table_13[[#This Row],[Item ID]],Analysis_Table,14,FALSE)","v":{"$error":"#N/A"}},{"$f":"VLOOKUP(Table_Data_Table_13[[#This Row],[Item ID]],Analysis_Table,15,FALSE)","v":{"$error":"#N/A"}},{"$f":"VLOOKUP(Table_Data_Table_13[[#This Row],[Item ID]],Analysis_Table,16,FALSE)","v":{"$error":"#N/A"}},{"$f":"VLOOKUP(Table_Data_Table_13[[#This Row],[Item ID]],Analysis_Table,17,FALSE)","v":{"$error":"#N/A"}},{"$f":"VLOOKUP(Table_Data_Table_13[[#This Row],[Item ID]],Analysis_Table,18,FALSE)","v":{"$error":"#N/A"}},{"$f":"VLOOKUP(Table_Data_Table_13[[#This Row],[Item ID]],Analysis_Table,19,FALSE)","v":{"$error":"#N/A"}},null,null,1]
["",null,null,null,null,null,null,null,null,0,null,null,null,{"$f":"VLOOKUP(Table_Data_Table_13[[#This Row],[Item ID]],Analysis_Table,8,FALSE)","v":{"$error":"#N/A"}},{"$f":"VLOOKUP(Table_Data_Table_13[[#This Row],[Item ID]],Analysis_Table,9,FALSE)","v":{"$error":"#N/A"}},{"$f":"VLOOKUP(Table_Data_Table_13[[#This Row],[Item ID]],Analysis_Table,10,FALSE)","v":{"$error":"#N/A"}},{"$f":"VLOOKUP(Table_Data_Table_13[[#This Row],[Item ID]],Analysis_Table,11,FALSE)","v":{"$error":"#N/A"}},{"$f":"VLOOKUP(Table_Data_Table_13[[#This Row],[Item ID]],Analysis_Table,12,FALSE)","v":{"$error":"#N/A"}},{"$f":"VLOOKUP(Table_Data_Table_13[[#This Row],[Item ID]],Analysis_Table,13,FALSE)","v":{"$error":"#N/A"}},{"$f":"VLOOKUP(Table_Data_Table_13[[#This Row],[Item ID]],Analysis_Table,14,FALSE)","v":{"$error":"#N/A"}},{"$f":"VLOOKUP(Table_Data_Table_13[[#This Row],[Item ID]],Analysis_Table,15,FALSE)","v":{"$error":"#N/A"}},{"$f":"VLOOKUP(Table_Data_Table_13[[#This Row],[Item ID]],Analysis_Table,16,FALSE)","v":{"$error":"#N/A"}},{"$f":"VLOOKUP(Table_Data_Table_13[[#This Row],[Item ID]],Analysis_Table,17,FALSE)","v":{"$error":"#N/A"}},{"$f":"VLOOKUP(Table_Data_Table_13[[#This Row],[Item ID]],Analysis_Table,18,FALSE)","v":{"$error":"#N/A"}},{"$f":"VLOOKUP(Table_Data_Table_13[[#This Row],[Item ID]],Analysis_Table,19,FALSE)","v":{"$error":"#N/A"}},null,null,1]
["",null,null,null,null,null,null,null,null,0,null,null,null,{"$f":"VLOOKUP(Table_Data_Table_13[[#This Row],[Item ID]],Analysis_Table,8,FALSE)","v":{"$error":"#N/A"}},{"$f":"VLOOKUP(Table_Data_Table_13[[#This Row],[Item ID]],Analysis_Table,9,FALSE)","v":{"$error":"#N/A"}},{"$f":"VLOOKUP(Table_Data_Table_13[[#This Row],[Item ID]],Analysis_Table,10,FALSE)","v":{"$error":"#N/A"}},{"$f":"VLOOKUP(Table_Data_Table_13[[#This Row],[Item ID]],Analysis_Table,11,FALSE)","v":{"$error":"#N/A"}},{"$f":"VLOOKUP(Table_Data_Table_13[[#This Row],[Item ID]],Analysis_Table,12,FALSE)","v":{"$error":"#N/A"}},{"$f":"VLOOKUP(Table_Data_Table_13[[#This Row],[Item ID]],Analysis_Table,13,FALSE)","v":{"$error":"#N/A"}},{"$f":"VLOOKUP(Table_Data_Table_13[[#This Row],[Item ID]],Analysis_Table,14,FALSE)","v":{"$error":"#N/A"}},{"$f":"VLOOKUP(Table_Data_Table_13[[#This Row],[Item ID]],Analysis_Table,15,FALSE)","v":{"$error":"#N/A"}},{"$f":"VLOOKUP(Table_Data_Table_13[[#This Row],[Item ID]],Analysis_Table,16,FALSE)","v":{"$error":"#N/A"}},{"$f":"VLOOKUP(Table_Data_Table_13[[#This Row],[Item ID]],Analysis_Table,17,FALSE)","v":{"$error":"#N/A"}},{"$f":"VLOOKUP(Table_Data_Table_13[[#This Row],[Item ID]],Analysis_Table,18,FALSE)","v":{"$error":"#N/A"}},{"$f":"VLOOKUP(Table_Data_Table_13[[#This Row],[Item ID]],Analysis_Table,19,FALSE)","v":{"$error":"#N/A"}},null,null,1]
["",null,null,null,null,null,null,null,null,0,null,null,null,{"$f":"VLOOKUP(Table_Data_Table_13[[#This Row],[Item ID]],Analysis_Table,8,FALSE)","v":{"$error":"#N/A"}},{"$f":"VLOOKUP(Table_Data_Table_13[[#This Row],[Item ID]],Analysis_Table,9,FALSE)","v":{"$error":"#N/A"}},{"$f":"VLOOKUP(Table_Data_Table_13[[#This Row],[Item ID]],Analysis_Table,10,FALSE)","v":{"$error":"#N/A"}},{"$f":"VLOOKUP(Table_Data_Table_13[[#This Row],[Item ID]],Analysis_Table,11,FALSE)","v":{"$error":"#N/A"}},{"$f":"VLOOKUP(Table_Data_Table_13[[#This Row],[Item ID]],Analysis_Table,12,FALSE)","v":{"$error":"#N/A"}},{"$f":"VLOOKUP(Table_Data_Table_13[[#This Row],[Item ID]],Analysis_Table,13,FALSE)","v":{"$error":"#N/A"}},{"$f":"VLOOKUP(Table_Data_Table_13[[#This Row],[Item ID]],Analysis_Table,14,FALSE)","v":{"$error":"#N/A"}},{"$f":"VLOOKUP(Table_Data_Table_13[[#This Row],[Item ID]],Analysis_Table,15,FALSE)","v":{"$error":"#N/A"}},{"$f":"VLOOKUP(Table_Data_Table_13[[#This Row],[Item ID]],Analysis_Table,16,FALSE)","v":{"$error":"#N/A"}},{"$f":"VLOOKUP(Table_Data_Table_13[[#This Row],[Item ID]],Analysis_Table,17,FALSE)","v":{"$error":"#N/A"}},{"$f":"VLOOKUP(Table_Data_Table_13[[#This Row],[Item ID]],Analysis_Table,18,FALSE)","v":{"$error":"#N/A"}},{"$f":"VLOOKUP(Table_Data_Table_13[[#This Row],[Item ID]],Analysis_Table,19,FALSE)","v":{"$error":"#N/A"}},null,null,1]
["",null,null,null,null,null,null,null,null,0,null,null,null,{"$f":"VLOOKUP(Table_Data_Table_13[[#This Row],[Item ID]],Analysis_Table,8,FALSE)","v":{"$error":"#N/A"}},{"$f":"VLOOKUP(Table_Data_Table_13[[#This Row],[Item ID]],Analysis_Table,9,FALSE)","v":{"$error":"#N/A"}},{"$f":"VLOOKUP(Table_Data_Table_13[[#This Row],[Item ID]],Analysis_Table,10,FALSE)","v":{"$error":"#N/A"}},{"$f":"VLOOKUP(Table_Data_Table_13[[#This Row],[Item ID]],Analysis_Table,11,FALSE)","v":{"$error":"#N/A"}},{"$f":"VLOOKUP(Table_Data_Table_13[[#This Row],[Item ID]],Analysis_Table,12,FALSE)","v":{"$error":"#N/A"}},{"$f":"VLOOKUP(Table_Data_Table_13[[#This Row],[Item ID]],Analysis_Table,13,FALSE)","v":{"$error":"#N/A"}},{"$f":"VLOOKUP(Table_Data_Table_13[[#This Row],[Item ID]],Analysis_Table,14,FALSE)","v":{"$error":"#N/A"}},{"$f":"VLOOKUP(Table_Data_Table_13[[#This Row],[Item ID]],Analysis_Table,15,FALSE)","v":{"$error":"#N/A"}},{"$f":"VLOOKUP(Table_Data_Table_13[[#This Row],[Item ID]],Analysis_Table,16,FALSE)","v":{"$error":"#N/A"}},{"$f":"VLOOKUP(Table_Data_Table_13[[#This Row],[Item ID]],Analysis_Table,17,FALSE)","v":{"$error":"#N/A"}},{"$f":"VLOOKUP(Table_Data_Table_13[[#This Row],[Item ID]],Analysis_Table,18,FALSE)","v":{"$error":"#N/A"}},{"$f":"VLOOKUP(Table_Data_Table_13[[#This Row],[Item ID]],Analysis_Table,19,FALSE)","v":{"$error":"#N/A"}},null,null,1]
["",null,null,null,null,null,null,null,null,0,null,null,null,{"$f":"VLOOKUP(Table_Data_Table_13[[#This Row],[Item ID]],Analysis_Table,8,FALSE)","v":{"$error":"#N/A"}},{"$f":"VLOOKUP(Table_Data_Table_13[[#This Row],[Item ID]],Analysis_Table,9,FALSE)","v":{"$error":"#N/A"}},{"$f":"VLOOKUP(Table_Data_Table_13[[#This Row],[Item ID]],Analysis_Table,10,FALSE)","v":{"$error":"#N/A"}},{"$f":"VLOOKUP(Table_Data_Table_13[[#This Row],[Item ID]],Analysis_Table,11,FALSE)","v":{"$error":"#N/A"}},{"$f":"VLOOKUP(Table_Data_Table_13[[#This Row],[Item ID]],Analysis_Table,12,FALSE)","v":{"$error":"#N/A"}},{"$f":"VLOOKUP(Table_Data_Table_13[[#This Row],[Item ID]],Analysis_Table,13,FALSE)","v":{"$error":"#N/A"}},{"$f":"VLOOKUP(Table_Data_Table_13[[#This Row],[Item ID]],Analysis_Table,14,FALSE)","v":{"$error":"#N/A"}},{"$f":"VLOOKUP(Table_Data_Table_13[[#This Row],[Item ID]],Analysis_Table,15,FALSE)","v":{"$error":"#N/A"}},{"$f":"VLOOKUP(Table_Data_Table_13[[#This Row],[Item ID]],Analysis_Table,16,FALSE)","v":{"$error":"#N/A"}},{"$f":"VLOOKUP(Table_Data_Table_13[[#This Row],[Item ID]],Analysis_Table,17,FALSE)","v":{"$error":"#N/A"}},{"$f":"VLOOKUP(Table_Data_Table_13[[#This Row],[Item ID]],Analysis_Table,18,FALSE)","v":{"$error":"#N/A"}},{"$f":"VLOOKUP(Table_Data_Table_13[[#This Row],[Item ID]],Analysis_Table,19,FALSE)","v":{"$error":"#N/A"}},null,null,1]
["",null,null,null,null,null,null,null,null,0,null,null,null,{"$f":"VLOOKUP(Table_Data_Table_13[[#This Row],[Item ID]],Analysis_Table,8,FALSE)","v":{"$error":"#N/A"}},{"$f":"VLOOKUP(Table_Data_Table_13[[#This Row],[Item ID]],Analysis_Table,9,FALSE)","v":{"$error":"#N/A"}},{"$f":"VLOOKUP(Table_Data_Table_13[[#This Row],[Item ID]],Analysis_Table,10,FALSE)","v":{"$error":"#N/A"}},{"$f":"VLOOKUP(Table_Data_Table_13[[#This Row],[Item ID]],Analysis_Table,11,FALSE)","v":{"$error":"#N/A"}},{"$f":"VLOOKUP(Table_Data_Table_13[[#This Row],[Item ID]],Analysis_Table,12,FALSE)","v":{"$error":"#N/A"}},{"$f":"VLOOKUP(Table_Data_Table_13[[#This Row],[Item ID]],Analysis_Table,13,FALSE)","v":{"$error":"#N/A"}},{"$f":"VLOOKUP(Table_Data_Table_13[[#This Row],[Item ID]],Analysis_Table,14,FALSE)","v":{"$error":"#N/A"}},{"$f":"VLOOKUP(Table_Data_Table_13[[#This Row],[Item ID]],Analysis_Table,15,FALSE)","v":{"$error":"#N/A"}},{"$f":"VLOOKUP(Table_Data_Table_13[[#This Row],[Item ID]],Analysis_Table,16,FALSE)","v":{"$error":"#N/A"}},{"$f":"VLOOKUP(Table_Data_Table_13[[#This Row],[Item ID]],Analysis_Table,17,FALSE)","v":{"$error":"#N/A"}},{"$f":"VLOOKUP(Table_Data_Table_13[[#This Row],[Item ID]],Analysis_Table,18,FALSE)","v":{"$error":"#N/A"}},{"$f":"VLOOKUP(Table_Data_Table_13[[#This Row],[Item ID]],Analysis_Table,19,FALSE)","v":{"$error":"#N/A"}},null,null,1]
["",null,null,null,null,null,null,null,null,0,null,null,null,{"$f":"VLOOKUP(Table_Data_Table_13[[#This Row],[Item ID]],Analysis_Table,8,FALSE)","v":{"$error":"#N/A"}},{"$f":"VLOOKUP(Table_Data_Table_13[[#This Row],[Item ID]],Analysis_Table,9,FALSE)","v":{"$error":"#N/A"}},{"$f":"VLOOKUP(Table_Data_Table_13[[#This Row],[Item ID]],Analysis_Table,10,FALSE)","v":{"$error":"#N/A"}},{"$f":"VLOOKUP(Table_Data_Table_13[[#This Row],[Item ID]],Analysis_Table,11,FALSE)","v":{"$error":"#N/A"}},{"$f":"VLOOKUP(Table_Data_Table_13[[#This Row],[Item ID]],Analysis_Table,12,FALSE)","v":{"$error":"#N/A"}},{"$f":"VLOOKUP(Table_Data_Table_13[[#This Row],[Item ID]],Analysis_Table,13,FALSE)","v":{"$error":"#N/A"}},{"$f":"VLOOKUP(Table_Data_Table_13[[#This Row],[Item ID]],Analysis_Table,14,FALSE)","v":{"$error":"#N/A"}},{"$f":"VLOOKUP(Table_Data_Table_13[[#This Row],[Item ID]],Analysis_Table,15,FALSE)","v":{"$error":"#N/A"}},{"$f":"VLOOKUP(Table_Data_Table_13[[#This Row],[Item ID]],Analysis_Table,16,FALSE)","v":{"$error":"#N/A"}},{"$f":"VLOOKUP(Table_Data_Table_13[[#This Row],[Item ID]],Analysis_Table,17,FALSE)","v":{"$error":"#N/A"}},{"$f":"VLOOKUP(Table_Data_Table_13[[#This Row],[Item ID]],Analysis_Table,18,FALSE)","v":{"$error":"#N/A"}},{"$f":"VLOOKUP(Table_Data_Table_13[[#This Row],[Item ID]],Analysis_Table,19,FALSE)","v":{"$error":"#N/A"}},null,null,1]
["",null,null,null,null,null,null,null,null,0,null,null,null,{"$f":"VLOOKUP(Table_Data_Table_13[[#This Row],[Item ID]],Analysis_Table,8,FALSE)","v":{"$error":"#N/A"}},{"$f":"VLOOKUP(Table_Data_Table_13[[#This Row],[Item ID]],Analysis_Table,9,FALSE)","v":{"$error":"#N/A"}},{"$f":"VLOOKUP(Table_Data_Table_13[[#This Row],[Item ID]],Analysis_Table,10,FALSE)","v":{"$error":"#N/A"}},{"$f":"VLOOKUP(Table_Data_Table_13[[#This Row],[Item ID]],Analysis_Table,11,FALSE)","v":{"$error":"#N/A"}},{"$f":"VLOOKUP(Table_Data_Table_13[[#This Row],[Item ID]],Analysis_Table,12,FALSE)","v":{"$error":"#N/A"}},{"$f":"VLOOKUP(Table_Data_Table_13[[#This Row],[Item ID]],Analysis_Table,13,FALSE)","v":{"$error":"#N/A"}},{"$f":"VLOOKUP(Table_Data_Table_13[[#This Row],[Item ID]],Analysis_Table,14,FALSE)","v":{"$error":"#N/A"}},{"$f":"VLOOKUP(Table_Data_Table_13[[#This Row],[Item ID]],Analysis_Table,15,FALSE)","v":{"$error":"#N/A"}},{"$f":"VLOOKUP(Table_Data_Table_13[[#This Row],[Item ID]],Analysis_Table,16,FALSE)","v":{"$error":"#N/A"}},{"$f":"VLOOKUP(Table_Data_Table_13[[#This Row],[Item ID]],Analysis_Table,17,FALSE)","v":{"$error":"#N/A"}},{"$f":"VLOOKUP(Table_Data_Table_13[[#This Row],[Item ID]],Analysis_Table,18,FALSE)","v":{"$error":"#N/A"}},{"$f":"VLOOKUP(Table_Data_Table_13[[#This Row],[Item ID]],Analysis_Table,19,FALSE)","v":{"$error":"#N/A"}},null,null,1]
["",null,null,null,null,null,null,null,null,0,null,null,null,{"$f":"VLOOKUP(Table_Data_Table_13[[#This Row],[Item ID]],Analysis_Table,8,FALSE)","v":{"$error":"#N/A"}},{"$f":"VLOOKUP(Table_Data_Table_13[[#This Row],[Item ID]],Analysis_Table,9,FALSE)","v":{"$error":"#N/A"}},{"$f":"VLOOKUP(Table_Data_Table_13[[#This Row],[Item ID]],Analysis_Table,10,FALSE)","v":{"$error":"#N/A"}},{"$f":"VLOOKUP(Table_Data_Table_13[[#This Row],[Item ID]],Analysis_Table,11,FALSE)","v":{"$error":"#N/A"}},{"$f":"VLOOKUP(Table_Data_Table_13[[#This Row],[Item ID]],Analysis_Table,12,FALSE)","v":{"$error":"#N/A"}},{"$f":"VLOOKUP(Table_Data_Table_13[[#This Row],[Item ID]],Analysis_Table,13,FALSE)","v":{"$error":"#N/A"}},{"$f":"VLOOKUP(Table_Data_Table_13[[#This Row],[Item ID]],Analysis_Table,14,FALSE)","v":{"$error":"#N/A"}},{"$f":"VLOOKUP(Table_Data_Table_13[[#This Row],[Item ID]],Analysis_Table,15,FALSE)","v":{"$error":"#N/A"}},{"$f":"VLOOKUP(Table_Data_Table_13[[#This Row],[Item ID]],Analysis_Table,16,FALSE)","v":{"$error":"#N/A"}},{"$f":"VLOOKUP(Table_Data_Table_13[[#This Row],[Item ID]],Analysis_Table,17,FALSE)","v":{"$error":"#N/A"}},{"$f":"VLOOKUP(Table_Data_Table_13[[#This Row],[Item ID]],Analysis_Table,18,FALSE)","v":{"$error":"#N/A"}},{"$f":"VLOOKUP(Table_Data_Table_13[[#This Row],[Item ID]],Analysis_Table,19,FALSE)","v":{"$error":"#N/A"}},null,null,1]
["",null,null,null,null,null,null,null,null,0,null,null,null,{"$f":"VLOOKUP(Table_Data_Table_13[[#This Row],[Item ID]],Analysis_Table,8,FALSE)","v":{"$error":"#N/A"}},{"$f":"VLOOKUP(Table_Data_Table_13[[#This Row],[Item ID]],Analysis_Table,9,FALSE)","v":{"$error":"#N/A"}},{"$f":"VLOOKUP(Table_Data_Table_13[[#This Row],[Item ID]],Analysis_Table,10,FALSE)","v":{"$error":"#N/A"}},{"$f":"VLOOKUP(Table_Data_Table_13[[#This Row],[Item ID]],Analysis_Table,11,FALSE)","v":{"$error":"#N/A"}},{"$f":"VLOOKUP(Table_Data_Table_13[[#This Row],[Item ID]],Analysis_Table,12,FALSE)","v":{"$error":"#N/A"}},{"$f":"VLOOKUP(Table_Data_Table_13[[#This Row],[Item ID]],Analysis_Table,13,FALSE)","v":{"$error":"#N/A"}},{"$f":"VLOOKUP(Table_Data_Table_13[[#This Row],[Item ID]],Analysis_Table,14,FALSE)","v":{"$error":"#N/A"}},{"$f":"VLOOKUP(Table_Data_Table_13[[#This Row],[Item ID]],Analysis_Table,15,FALSE)","v":{"$error":"#N/A"}},{"$f":"VLOOKUP(Table_Data_Table_13[[#This Row],[Item ID]],Analysis_Table,16,FALSE)","v":{"$error":"#N/A"}},{"$f":"VLOOKUP(Table_Data_Table_13[[#This Row],[Item ID]],Analysis_Table,17,FALSE)","v":{"$error":"#N/A"}},{"$f":"VLOOKUP(Table_Data_Table_13[[#This Row],[Item ID]],Analysis_Table,18,FALSE)","v":{"$error":"#N/A"}},{"$f":"VLOOKUP(Table_Data_Table_13[[#This Row],[Item ID]],Analysis_Table,19,FALSE)","v":{"$error":"#N/A"}},null,null,1]
["",null,null,null,null,null,null,null,null,0,null,null,null,{"$f":"VLOOKUP(Table_Data_Table_13[[#This Row],[Item ID]],Analysis_Table,8,FALSE)","v":{"$error":"#N/A"}},{"$f":"VLOOKUP(Table_Data_Table_13[[#This Row],[Item ID]],Analysis_Table,9,FALSE)","v":{"$error":"#N/A"}},{"$f":"VLOOKUP(Table_Data_Table_13[[#This Row],[Item ID]],Analysis_Table,10,FALSE)","v":{"$error":"#N/A"}},{"$f":"VLOOKUP(Table_Data_Table_13[[#This Row],[Item ID]],Analysis_Table,11,FALSE)","v":{"$error":"#N/A"}},{"$f":"VLOOKUP(Table_Data_Table_13[[#This Row],[Item ID]],Analysis_Table,12,FALSE)","v":{"$error":"#N/A"}},{"$f":"VLOOKUP(Table_Data_Table_13[[#This Row],[Item ID]],Analysis_Table,13,FALSE)","v":{"$error":"#N/A"}},{"$f":"VLOOKUP(Table_Data_Table_13[[#This Row],[Item ID]],Analysis_Table,14,FALSE)","v":{"$error":"#N/A"}},{"$f":"VLOOKUP(Table_Data_Table_13[[#This Row],[Item ID]],Analysis_Table,15,FALSE)","v":{"$error":"#N/A"}},{"$f":"VLOOKUP(Table_Data_Table_13[[#This Row],[Item ID]],Analysis_Table,16,FALSE)","v":{"$error":"#N/A"}},{"$f":"VLOOKUP(Table_Data_Table_13[[#This Row],[Item ID]],Analysis_Table,17,FALSE)","v":{"$error":"#N/A"}},{"$f":"VLOOKUP(Table_Data_Table_13[[#This Row],[Item ID]],Analysis_Table,18,FALSE)","v":{"$error":"#N/A"}},{"$f":"VLOOKUP(Table_Data_Table_13[[#This Row],[Item ID]],Analysis_Table,19,FALSE)","v":{"$error":"#N/A"}},null,null,1]
["",null,null,null,null,null,null,null,null,0,null,null,null,{"$f":"VLOOKUP(Table_Data_Table_13[[#This Row],[Item ID]],Analysis_Table,8,FALSE)","v":{"$error":"#N/A"}},{"$f":"VLOOKUP(Table_Data_Table_13[[#This Row],[Item ID]],Analysis_Table,9,FALSE)","v":{"$error":"#N/A"}},{"$f":"VLOOKUP(Table_Data_Table_13[[#This Row],[Item ID]],Analysis_Table,10,FALSE)","v":{"$error":"#N/A"}},{"$f":"VLOOKUP(Table_Data_Table_13[[#This Row],[Item ID]],Analysis_Table,11,FALSE)","v":{"$error":"#N/A"}},{"$f":"VLOOKUP(Table_Data_Table_13[[#This Row],[Item ID]],Analysis_Table,12,FALSE)","v":{"$error":"#N/A"}},{"$f":"VLOOKUP(Table_Data_Table_13[[#This Row],[Item ID]],Analysis_Table,13,FALSE)","v":{"$error":"#N/A"}},{"$f":"VLOOKUP(Table_Data_Table_13[[#This Row],[Item ID]],Analysis_Table,14,FALSE)","v":{"$error":"#N/A"}},{"$f":"VLOOKUP(Table_Data_Table_13[[#This Row],[Item ID]],Analysis_Table,15,FALSE)","v":{"$error":"#N/A"}},{"$f":"VLOOKUP(Table_Data_Table_13[[#This Row],[Item ID]],Analysis_Table,16,FALSE)","v":{"$error":"#N/A"}},{"$f":"VLOOKUP(Table_Data_Table_13[[#This Row],[Item ID]],Analysis_Table,17,FALSE)","v":{"$error":"#N/A"}},{"$f":"VLOOKUP(Table_Data_Table_13[[#This Row],[Item ID]],Analysis_Table,18,FALSE)","v":{"$error":"#N/A"}},{"$f":"VLOOKUP(Table_Data_Table_13[[#This Row],[Item ID]],Analysis_Table,19,FALSE)","v":{"$error":"#N/A"}},null,null,1]
["",null,null,null,null,null,null,null,null,0,null,null,null,{"$f":"VLOOKUP(Table_Data_Table_13[[#This Row],[Item ID]],Analysis_Table,8,FALSE)","v":{"$error":"#N/A"}},{"$f":"VLOOKUP(Table_Data_Table_13[[#This Row],[Item ID]],Analysis_Table,9,FALSE)","v":{"$error":"#N/A"}},{"$f":"VLOOKUP(Table_Data_Table_13[[#This Row],[Item ID]],Analysis_Table,10,FALSE)","v":{"$error":"#N/A"}},{"$f":"VLOOKUP(Table_Data_Table_13[[#This Row],[Item ID]],Analysis_Table,11,FALSE)","v":{"$error":"#N/A"}},{"$f":"VLOOKUP(Table_Data_Table_13[[#This Row],[Item ID]],Analysis_Table,12,FALSE)","v":{"$error":"#N/A"}},{"$f":"VLOOKUP(Table_Data_Table_13[[#This Row],[Item ID]],Analysis_Table,13,FALSE)","v":{"$error":"#N/A"}},{"$f":"VLOOKUP(Table_Data_Table_13[[#This Row],[Item ID]],Analysis_Table,14,FALSE)","v":{"$error":"#N/A"}},{"$f":"VLOOKUP(Table_Data_Table_13[[#This Row],[Item ID]],Analysis_Table,15,FALSE)","v":{"$error":"#N/A"}},{"$f":"VLOOKUP(Table_Data_Table_13[[#This Row],[Item ID]],Analysis_Table,16,FALSE)","v":{"$error":"#N/A"}},{"$f":"VLOOKUP(Table_Data_Table_13[[#This Row],[Item ID]],Analysis_Table,17,FALSE)","v":{"$error":"#N/A"}},{"$f":"VLOOKUP(Table_Data_Table_13[[#This Row],[Item ID]],Analysis_Table,18,FALSE)","v":{"$error":"#N/A"}},{"$f":"VLOOKUP(Table_Data_Table_13[[#This Row],[Item ID]],Analysis_Table,19,FALSE)","v":{"$error":"#N/A"}},null,null,1]
["",null,null,null,null,null,null,null,null,0,null,null,null,{"$f":"VLOOKUP(Table_Data_Table_13[[#This Row],[Item ID]],Analysis_Table,8,FALSE)","v":{"$error":"#N/A"}},{"$f":"VLOOKUP(Table_Data_Table_13[[#This Row],[Item ID]],Analysis_Table,9,FALSE)","v":{"$error":"#N/A"}},{"$f":"VLOOKUP(Table_Data_Table_13[[#This Row],[Item ID]],Analysis_Table,10,FALSE)","v":{"$error":"#N/A"}},{"$f":"VLOOKUP(Table_Data_Table_13[[#This Row],[Item ID]],Analysis_Table,11,FALSE)","v":{"$error":"#N/A"}},{"$f":"VLOOKUP(Table_Data_Table_13[[#This Row],[Item ID]],Analysis_Table,12,FALSE)","v":{"$error":"#N/A"}},{"$f":"VLOOKUP(Table_Data_Table_13[[#This Row],[Item ID]],Analysis_Table,13,FALSE)","v":{"$error":"#N/A"}},{"$f":"VLOOKUP(Table_Data_Table_13[[#This Row],[Item ID]],Analysis_Table,14,FALSE)","v":{"$error":"#N/A"}},{"$f":"VLOOKUP(Table_Data_Table_13[[#This Row],[Item ID]],Analysis_Table,15,FALSE)","v":{"$error":"#N/A"}},{"$f":"VLOOKUP(Table_Data_Table_13[[#This Row],[Item ID]],Analysis_Table,16,FALSE)","v":{"$error":"#N/A"}},{"$f":"VLOOKUP(Table_Data_Table_13[[#This Row],[Item ID]],Analysis_Table,17,FALSE)","v":{"$error":"#N/A"}},{"$f":"VLOOKUP(Table_Data_Table_13[[#This Row],[Item ID]],Analysis_Table,18,FALSE)","v":{"$error":"#N/A"}},{"$f":"VLOOKUP(Table_Data_Table_13[[#This Row],[Item ID]],Analysis_Table,19,FALSE)","v":{"$error":"#N/A"}},null,null,1]
["",null,null,null,null,null,null,null,null,0,null,null,null,{"$f":"VLOOKUP(Table_Data_Table_13[[#This Row],[Item ID]],Analysis_Table,8,FALSE)","v":{"$error":"#N/A"}},{"$f":"VLOOKUP(Table_Data_Table_13[[#This Row],[Item ID]],Analysis_Table,9,FALSE)","v":{"$error":"#N/A"}},{"$f":"VLOOKUP(Table_Data_Table_13[[#This Row],[Item ID]],Analysis_Table,10,FALSE)","v":{"$error":"#N/A"}},{"$f":"VLOOKUP(Table_Data_Table_13[[#This Row],[Item ID]],Analysis_Table,11,FALSE)","v":{"$error":"#N/A"}},{"$f":"VLOOKUP(Table_Data_Table_13[[#This Row],[Item ID]],Analysis_Table,12,FALSE)","v":{"$error":"#N/A"}},{"$f":"VLOOKUP(Table_Data_Table_13[[#This Row],[Item ID]],Analysis_Table,13,FALSE)","v":{"$error":"#N/A"}},{"$f":"VLOOKUP(Table_Data_Table_13[[#This Row],[Item ID]],Analysis_Table,14,FALSE)","v":{"$error":"#N/A"}},{"$f":"VLOOKUP(Table_Data_Table_13[[#This Row],[Item ID]],Analysis_Table,15,FALSE)","v":{"$error":"#N/A"}},{"$f":"VLOOKUP(Table_Data_Table_13[[#This Row],[Item ID]],Analysis_Table,16,FALSE)","v":{"$error":"#N/A"}},{"$f":"VLOOKUP(Table_Data_Table_13[[#This Row],[Item ID]],Analysis_Table,17,FALSE)","v":{"$error":"#N/A"}},{"$f":"VLOOKUP(Table_Data_Table_13[[#This Row],[Item ID]],Analysis_Table,18,FALSE)","v":{"$error":"#N/A"}},{"$f":"VLOOKUP(Table_Data_Table_13[[#This Row],[Item ID]],Analysis_Table,19,FALSE)","v":{"$error":"#N/A"}},null,null,1]
["",null,null,null,null,null,null,null,null,0,null,null,null,{"$f":"VLOOKUP(Table_Data_Table_13[[#This Row],[Item ID]],Analysis_Table,8,FALSE)","v":{"$error":"#N/A"}},{"$f":"VLOOKUP(Table_Data_Table_13[[#This Row],[Item ID]],Analysis_Table,9,FALSE)","v":{"$error":"#N/A"}},{"$f":"VLOOKUP(Table_Data_Table_13[[#This Row],[Item ID]],Analysis_Table,10,FALSE)","v":{"$error":"#N/A"}},{"$f":"VLOOKUP(Table_Data_Table_13[[#This Row],[Item ID]],Analysis_Table,11,FALSE)","v":{"$error":"#N/A"}},{"$f":"VLOOKUP(Table_Data_Table_13[[#This Row],[Item ID]],Analysis_Table,12,FALSE)","v":{"$error":"#N/A"}},{"$f":"VLOOKUP(Table_Data_Table_13[[#This Row],[Item ID]],Analysis_Table,13,FALSE)","v":{"$error":"#N/A"}},{"$f":"VLOOKUP(Table_Data_Table_13[[#This Row],[Item ID]],Analysis_Table,14,FALSE)","v":{"$error":"#N/A"}},{"$f":"VLOOKUP(Table_Data_Table_13[[#This Row],[Item ID]],Analysis_Table,15,FALSE)","v":{"$error":"#N/A"}},{"$f":"VLOOKUP(Table_Data_Table_13[[#This Row],[Item ID]],Analysis_Table,16,FALSE)","v":{"$error":"#N/A"}},{"$f":"VLOOKUP(Table_Data_Table_13[[#This Row],[Item ID]],Analysis_Table,17,FALSE)","v":{"$error":"#N/A"}},{"$f":"VLOOKUP(Table_Data_Table_13[[#This Row],[Item ID]],Analysis_Table,18,FALSE)","v":{"$error":"#N/A"}},{"$f":"VLOOKUP(Table_Data_Table_13[[#This Row],[Item ID]],Analysis_Table,19,FALSE)","v":{"$error":"#N/A"}},null,null,1]
["",null,null,null,null,null,null,null,null,0,null,null,null,{"$f":"VLOOKUP(Table_Data_Table_13[[#This Row],[Item ID]],Analysis_Table,8,FALSE)","v":{"$error":"#N/A"}},{"$f":"VLOOKUP(Table_Data_Table_13[[#This Row],[Item ID]],Analysis_Table,9,FALSE)","v":{"$error":"#N/A"}},{"$f":"VLOOKUP(Table_Data_Table_13[[#This Row],[Item ID]],Analysis_Table,10,FALSE)","v":{"$error":"#N/A"}},{"$f":"VLOOKUP(Table_Data_Table_13[[#This Row],[Item ID]],Analysis_Table,11,FALSE)","v":{"$error":"#N/A"}},{"$f":"VLOOKUP(Table_Data_Table_13[[#This Row],[Item ID]],Analysis_Table,12,FALSE)","v":{"$error":"#N/A"}},{"$f":"VLOOKUP(Table_Data_Table_13[[#This Row],[Item ID]],Analysis_Table,13,FALSE)","v":{"$error":"#N/A"}},{"$f":"VLOOKUP(Table_Data_Table_13[[#This Row],[Item ID]],Analysis_Table,14,FALSE)","v":{"$error":"#N/A"}},{"$f":"VLOOKUP(Table_Data_Table_13[[#This Row],[Item ID]],Analysis_Table,15,FALSE)","v":{"$error":"#N/A"}},{"$f":"VLOOKUP(Table_Data_Table_13[[#This Row],[Item ID]],Analysis_Table,16,FALSE)","v":{"$error":"#N/A"}},{"$f":"VLOOKUP(Table_Data_Table_13[[#This Row],[Item ID]],Analysis_Table,17,FALSE)","v":{"$error":"#N/A"}},{"$f":"VLOOKUP(Table_Data_Table_13[[#This Row],[Item ID]],Analysis_Table,18,FALSE)","v":{"$error":"#N/A"}},{"$f":"VLOOKUP(Table_Data_Table_13[[#This Row],[Item ID]],Analysis_Table,19,FALSE)","v":{"$error":"#N/A"}},null,null,1]
["",null,null,null,null,null,null,null,null,0,null,null,null,{"$f":"VLOOKUP(Table_Data_Table_13[[#This Row],[Item ID]],Analysis_Table,8,FALSE)","v":{"$error":"#N/A"}},{"$f":"VLOOKUP(Table_Data_Table_13[[#This Row],[Item ID]],Analysis_Table,9,FALSE)","v":{"$error":"#N/A"}},{"$f":"VLOOKUP(Table_Data_Table_13[[#This Row],[Item ID]],Analysis_Table,10,FALSE)","v":{"$error":"#N/A"}},{"$f":"VLOOKUP(Table_Data_Table_13[[#This Row],[Item ID]],Analysis_Table,11,FALSE)","v":{"$error":"#N/A"}},{"$f":"VLOOKUP(Table_Data_Table_13[[#This Row],[Item ID]],Analysis_Table,12,FALSE)","v":{"$error":"#N/A"}},{"$f":"VLOOKUP(Table_Data_Table_13[[#This Row],[Item ID]],Analysis_Table,13,FALSE)","v":{"$error":"#N/A"}},{"$f":"VLOOKUP(Table_Data_Table_13[[#This Row],[Item ID]],Analysis_Table,14,FALSE)","v":{"$error":"#N/A"}},{"$f":"VLOOKUP(Table_Data_Table_13[[#This Row],[Item ID]],Analysis_Table,15,FALSE)","v":{"$error":"#N/A"}},{"$f":"VLOOKUP(Table_Data_Table_13[[#This Row],[Item ID]],Analysis_Table,16,FALSE)","v":{"$error":"#N/A"}},{"$f":"VLOOKUP(Table_Data_Table_13[[#This Row],[Item ID]],Analysis_Table,17,FALSE)","v":{"$error":"#N/A"}},{"$f":"VLOOKUP(Table_Data_Table_13[[#This Row],[Item ID]],Analysis_Table,18,FALSE)","v":{"$error":"#N/A"}},{"$f":"VLOOKUP(Table_Data_Table_13[[#This Row],[Item ID]],Analysis_Table,19,FALSE)","v":{"$error":"#N/A"}},null,null,1]
["",null,null,null,null,null,null,null,null,0,null,null,null,{"$f":"VLOOKUP(Table_Data_Table_13[[#This Row],[Item ID]],Analysis_Table,8,FALSE)","v":{"$error":"#N/A"}},{"$f":"VLOOKUP(Table_Data_Table_13[[#This Row],[Item ID]],Analysis_Table,9,FALSE)","v":{"$error":"#N/A"}},{"$f":"VLOOKUP(Table_Data_Table_13[[#This Row],[Item ID]],Analysis_Table,10,FALSE)","v":{"$error":"#N/A"}},{"$f":"VLOOKUP(Table_Data_Table_13[[#This Row],[Item ID]],Analysis_Table,11,FALSE)","v":{"$error":"#N/A"}},{"$f":"VLOOKUP(Table_Data_Table_13[[#This Row],[Item ID]],Analysis_Table,12,FALSE)","v":{"$error":"#N/A"}},{"$f":"VLOOKUP(Table_Data_Table_13[[#This Row],[Item ID]],Analysis_Table,13,FALSE)","v":{"$error":"#N/A"}},{"$f":"VLOOKUP(Table_Data_Table_13[[#This Row],[Item ID]],Analysis_Table,14,FALSE)","v":{"$error":"#N/A"}},{"$f":"VLOOKUP(Table_Data_Table_13[[#This Row],[Item ID]],Analysis_Table,15,FALSE)","v":{"$error":"#N/A"}},{"$f":"VLOOKUP(Table_Data_Table_13[[#This Row],[Item ID]],Analysis_Table,16,FALSE)","v":{"$error":"#N/A"}},{"$f":"VLOOKUP(Table_Data_Table_13[[#This Row],[Item ID]],Analysis_Table,17,FALSE)","v":{"$error":"#N/A"}},{"$f":"VLOOKUP(Table_Data_Table_13[[#This Row],[Item ID]],Analysis_Table,18,FALSE)","v":{"$error":"#N/A"}},{"$f":"VLOOKUP(Table_Data_Table_13[[#This Row],[Item ID]],Analysis_Table,19,FALSE)","v":{"$error":"#N/A"}},null,null,1]
["",null,null,null,null,null,null,null,null,0,null,null,null,{"$f":"VLOOKUP(Table_Data_Table_13[[#This Row],[Item ID]],Analysis_Table,8,FALSE)","v":{"$error":"#N/A"}},{"$f":"VLOOKUP(Table_Data_Table_13[[#This Row],[Item ID]],Analysis_Table,9,FALSE)","v":{"$error":"#N/A"}},{"$f":"VLOOKUP(Table_Data_Table_13[[#This Row],[Item ID]],Analysis_Table,10,FALSE)","v":{"$error":"#N/A"}},{"$f":"VLOOKUP(Table_Data_Table_13[[#This Row],[Item ID]],Analysis_Table,11,FALSE)","v":{"$error":"#N/A"}},{"$f":"VLOOKUP(Table_Data_Table_13[[#This Row],[Item ID]],Analysis_Table,12,FALSE)","v":{"$error":"#N/A"}},{"$f":"VLOOKUP(Table_Data_Table_13[[#This Row],[Item ID]],Analysis_Table,13,FALSE)","v":{"$error":"#N/A"}},{"$f":"VLOOKUP(Table_Data_Table_13[[#This Row],[Item ID]],Analysis_Table,14,FALSE)","v":{"$error":"#N/A"}},{"$f":"VLOOKUP(Table_Data_Table_13[[#This Row],[Item ID]],Analysis_Table,15,FALSE)","v":{"$error":"#N/A"}},{"$f":"VLOOKUP(Table_Data_Table_13[[#This Row],[Item ID]],Analysis_Table,16,FALSE)","v":{"$error":"#N/A"}},{"$f":"VLOOKUP(Table_Data_Table_13[[#This Row],[Item ID]],Analysis_Table,17,FALSE)","v":{"$error":"#N/A"}},{"$f":"VLOOKUP(Table_Data_Table_13[[#This Row],[Item ID]],Analysis_Table,18,FALSE)","v":{"$error":"#N/A"}},{"$f":"VLOOKUP(Table_Data_Table_13[[#This Row],[Item ID]],Analysis_Table,19,FALSE)","v":{"$error":"#N/A"}},null,null,1]
["",null,null,null,null,null,null,null,null,0,null,null,null,{"$f":"VLOOKUP(Table_Data_Table_13[[#This Row],[Item ID]],Analysis_Table,8,FALSE)","v":{"$error":"#N/A"}},{"$f":"VLOOKUP(Table_Data_Table_13[[#This Row],[Item ID]],Analysis_Table,9,FALSE)","v":{"$error":"#N/A"}},{"$f":"VLOOKUP(Table_Data_Table_13[[#This Row],[Item ID]],Analysis_Table,10,FALSE)","v":{"$error":"#N/A"}},{"$f":"VLOOKUP(Table_Data_Table_13[[#This Row],[Item ID]],Analysis_Table,11,FALSE)","v":{"$error":"#N/A"}},{"$f":"VLOOKUP(Table_Data_Table_13[[#This Row],[Item ID]],Analysis_Table,12,FALSE)","v":{"$error":"#N/A"}},{"$f":"VLOOKUP(Table_Data_Table_13[[#This Row],[Item ID]],Analysis_Table,13,FALSE)","v":{"$error":"#N/A"}},{"$f":"VLOOKUP(Table_Data_Table_13[[#This Row],[Item ID]],Analysis_Table,14,FALSE)","v":{"$error":"#N/A"}},{"$f":"VLOOKUP(Table_Data_Table_13[[#This Row],[Item ID]],Analysis_Table,15,FALSE)","v":{"$error":"#N/A"}},{"$f":"VLOOKUP(Table_Data_Table_13[[#This Row],[Item ID]],Analysis_Table,16,FALSE)","v":{"$error":"#N/A"}},{"$f":"VLOOKUP(Table_Data_Table_13[[#This Row],[Item ID]],Analysis_Table,17,FALSE)","v":{"$error":"#N/A"}},{"$f":"VLOOKUP(Table_Data_Table_13[[#This Row],[Item ID]],Analysis_Table,18,FALSE)","v":{"$error":"#N/A"}},{"$f":"VLOOKUP(Table_Data_Table_13[[#This Row],[Item ID]],Analysis_Table,19,FALSE)","v":{"$error":"#N/A"}},null,null,1]
["",null,null,null,null,null,null,null,null,0,null,null,null,{"$f":"VLOOKUP(Table_Data_Table_13[[#This Row],[Item ID]],Analysis_Table,8,FALSE)","v":{"$error":"#N/A"}},{"$f":"VLOOKUP(Table_Data_Table_13[[#This Row],[Item ID]],Analysis_Table,9,FALSE)","v":{"$error":"#N/A"}},{"$f":"VLOOKUP(Table_Data_Table_13[[#This Row],[Item ID]],Analysis_Table,10,FALSE)","v":{"$error":"#N/A"}},{"$f":"VLOOKUP(Table_Data_Table_13[[#This Row],[Item ID]],Analysis_Table,11,FALSE)","v":{"$error":"#N/A"}},{"$f":"VLOOKUP(Table_Data_Table_13[[#This Row],[Item ID]],Analysis_Table,12,FALSE)","v":{"$error":"#N/A"}},{"$f":"VLOOKUP(Table_Data_Table_13[[#This Row],[Item ID]],Analysis_Table,13,FALSE)","v":{"$error":"#N/A"}},{"$f":"VLOOKUP(Table_Data_Table_13[[#This Row],[Item ID]],Analysis_Table,14,FALSE)","v":{"$error":"#N/A"}},{"$f":"VLOOKUP(Table_Data_Table_13[[#This Row],[Item ID]],Analysis_Table,15,FALSE)","v":{"$error":"#N/A"}},{"$f":"VLOOKUP(Table_Data_Table_13[[#This Row],[Item ID]],Analysis_Table,16,FALSE)","v":{"$error":"#N/A"}},{"$f":"VLOOKUP(Table_Data_Table_13[[#This Row],[Item ID]],Analysis_Table,17,FALSE)","v":{"$error":"#N/A"}},{"$f":"VLOOKUP(Table_Data_Table_13[[#This Row],[Item ID]],Analysis_Table,18,FALSE)","v":{"$error":"#N/A"}},{"$f":"VLOOKUP(Table_Data_Table_13[[#This Row],[Item ID]],Analysis_Table,19,FALSE)","v":{"$error":"#N/A"}},null,null,1]
["",null,null,null,null,null,null,null,null,0,null,null,null,{"$f":"VLOOKUP(Table_Data_Table_13[[#This Row],[Item ID]],Analysis_Table,8,FALSE)","v":{"$error":"#N/A"}},{"$f":"VLOOKUP(Table_Data_Table_13[[#This Row],[Item ID]],Analysis_Table,9,FALSE)","v":{"$error":"#N/A"}},{"$f":"VLOOKUP(Table_Data_Table_13[[#This Row],[Item ID]],Analysis_Table,10,FALSE)","v":{"$error":"#N/A"}},{"$f":"VLOOKUP(Table_Data_Table_13[[#This Row],[Item ID]],Analysis_Table,11,FALSE)","v":{"$error":"#N/A"}},{"$f":"VLOOKUP(Table_Data_Table_13[[#This Row],[Item ID]],Analysis_Table,12,FALSE)","v":{"$error":"#N/A"}},{"$f":"VLOOKUP(Table_Data_Table_13[[#This Row],[Item ID]],Analysis_Table,13,FALSE)","v":{"$error":"#N/A"}},{"$f":"VLOOKUP(Table_Data_Table_13[[#This Row],[Item ID]],Analysis_Table,14,FALSE)","v":{"$error":"#N/A"}},{"$f":"VLOOKUP(Table_Data_Table_13[[#This Row],[Item ID]],Analysis_Table,15,FALSE)","v":{"$error":"#N/A"}},{"$f":"VLOOKUP(Table_Data_Table_13[[#This Row],[Item ID]],Analysis_Table,16,FALSE)","v":{"$error":"#N/A"}},{"$f":"VLOOKUP(Table_Data_Table_13[[#This Row],[Item ID]],Analysis_Table,17,FALSE)","v":{"$error":"#N/A"}},{"$f":"VLOOKUP(Table_Data_Table_13[[#This Row],[Item ID]],Analysis_Table,18,FALSE)","v":{"$error":"#N/A"}},{"$f":"VLOOKUP(Table_Data_Table_13[[#This Row],[Item ID]],Analysis_Table,19,FALSE)","v":{"$error":"#N/A"}},null,null,1]
["",null,null,null,null,null,null,null,null,0,null,null,null,{"$f":"VLOOKUP(Table_Data_Table_13[[#This Row],[Item ID]],Analysis_Table,8,FALSE)","v":{"$error":"#N/A"}},{"$f":"VLOOKUP(Table_Data_Table_13[[#This Row],[Item ID]],Analysis_Table,9,FALSE)","v":{"$error":"#N/A"}},{"$f":"VLOOKUP(Table_Data_Table_13[[#This Row],[Item ID]],Analysis_Table,10,FALSE)","v":{"$error":"#N/A"}},{"$f":"VLOOKUP(Table_Data_Table_13[[#This Row],[Item ID]],Analysis_Table,11,FALSE)","v":{"$error":"#N/A"}},{"$f":"VLOOKUP(Table_Data_Table_13[[#This Row],[Item ID]],Analysis_Table,12,FALSE)","v":{"$error":"#N/A"}},{"$f":"VLOOKUP(Table_Data_Table_13[[#This Row],[Item ID]],Analysis_Table,13,FALSE)","v":{"$error":"#N/A"}},{"$f":"VLOOKUP(Table_Data_Table_13[[#This Row],[Item ID]],Analysis_Table,14,FALSE)","v":{"$error":"#N/A"}},{"$f":"VLOOKUP(Table_Data_Table_13[[#This Row],[Item ID]],Analysis_Table,15,FALSE)","v":{"$error":"#N/A"}},{"$f":"VLOOKUP(Table_Data_Table_13[[#This Row],[Item ID]],Analysis_Table,16,FALSE)","v":{"$error":"#N/A"}},{"$f":"VLOOKUP(Table_Data_Table_13[[#This Row],[Item ID]],Analysis_Table,17,FALSE)","v":{"$error":"#N/A"}},{"$f":"VLOOKUP(Table_Data_Table_13[[#This Row],[Item ID]],Analysis_Table,18,FALSE)","v":{"$error":"#N/A"}},{"$f":"VLOOKUP(Table_Data_Table_13[[#This Row],[Item ID]],Analysis_Table,19,FALSE)","v":{"$error":"#N/A"}},null,null,1]
["",null,null,null,null,null,null,null,null,0,null,null,null,{"$f":"VLOOKUP(Table_Data_Table_13[[#This Row],[Item ID]],Analysis_Table,8,FALSE)","v":{"$error":"#N/A"}},{"$f":"VLOOKUP(Table_Data_Table_13[[#This Row],[Item ID]],Analysis_Table,9,FALSE)","v":{"$error":"#N/A"}},{"$f":"VLOOKUP(Table_Data_Table_13[[#This Row],[Item ID]],Analysis_Table,10,FALSE)","v":{"$error":"#N/A"}},{"$f":"VLOOKUP(Table_Data_Table_13[[#This Row],[Item ID]],Analysis_Table,11,FALSE)","v":{"$error":"#N/A"}},{"$f":"VLOOKUP(Table_Data_Table_13[[#This Row],[Item ID]],Analysis_Table,12,FALSE)","v":{"$error":"#N/A"}},{"$f":"VLOOKUP(Table_Data_Table_13[[#This Row],[Item ID]],Analysis_Table,13,FALSE)","v":{"$error":"#N/A"}},{"$f":"VLOOKUP(Table_Data_Table_13[[#This Row],[Item ID]],Analysis_Table,14,FALSE)","v":{"$error":"#N/A"}},{"$f":"VLOOKUP(Table_Data_Table_13[[#This Row],[Item ID]],Analysis_Table,15,FALSE)","v":{"$error":"#N/A"}},{"$f":"VLOOKUP(Table_Data_Table_13[[#This Row],[Item ID]],Analysis_Table,16,FALSE)","v":{"$error":"#N/A"}},{"$f":"VLOOKUP(Table_Data_Table_13[[#This Row],[Item ID]],Analysis_Table,17,FALSE)","v":{"$error":"#N/A"}},{"$f":"VLOOKUP(Table_Data_Table_13[[#This Row],[Item ID]],Analysis_Table,18,FALSE)","v":{"$error":"#N/A"}},{"$f":"VLOOKUP(Table_Data_Table_13[[#This Row],[Item ID]],Analysis_Table,19,FALSE)","v":{"$error":"#N/A"}},null,null,1]
["",null,null,null,null,null,null,null,null,0,null,null,null,{"$f":"VLOOKUP(Table_Data_Table_13[[#This Row],[Item ID]],Analysis_Table,8,FALSE)","v":{"$error":"#N/A"}},{"$f":"VLOOKUP(Table_Data_Table_13[[#This Row],[Item ID]],Analysis_Table,9,FALSE)","v":{"$error":"#N/A"}},{"$f":"VLOOKUP(Table_Data_Table_13[[#This Row],[Item ID]],Analysis_Table,10,FALSE)","v":{"$error":"#N/A"}},{"$f":"VLOOKUP(Table_Data_Table_13[[#This Row],[Item ID]],Analysis_Table,11,FALSE)","v":{"$error":"#N/A"}},{"$f":"VLOOKUP(Table_Data_Table_13[[#This Row],[Item ID]],Analysis_Table,12,FALSE)","v":{"$error":"#N/A"}},{"$f":"VLOOKUP(Table_Data_Table_13[[#This Row],[Item ID]],Analysis_Table,13,FALSE)","v":{"$error":"#N/A"}},{"$f":"VLOOKUP(Table_Data_Table_13[[#This Row],[Item ID]],Analysis_Table,14,FALSE)","v":{"$error":"#N/A"}},{"$f":"VLOOKUP(Table_Data_Table_13[[#This Row],[Item ID]],Analysis_Table,15,FALSE)","v":{"$error":"#N/A"}},{"$f":"VLOOKUP(Table_Data_Table_13[[#This Row],[Item ID]],Analysis_Table,16,FALSE)","v":{"$error":"#N/A"}},{"$f":"VLOOKUP(Table_Data_Table_13[[#This Row],[Item ID]],Analysis_Table,17,FALSE)","v":{"$error":"#N/A"}},{"$f":"VLOOKUP(Table_Data_Table_13[[#This Row],[Item ID]],Analysis_Table,18,FALSE)","v":{"$error":"#N/A"}},{"$f":"VLOOKUP(Table_Data_Table_13[[#This Row],[Item ID]],Analysis_Table,19,FALSE)","v":{"$error":"#N/A"}},null,null,1]
["",null,null,null,null,null,null,null,null,0,null,null,null,{"$f":"VLOOKUP(Table_Data_Table_13[[#This Row],[Item ID]],Analysis_Table,8,FALSE)","v":{"$error":"#N/A"}},{"$f":"VLOOKUP(Table_Data_Table_13[[#This Row],[Item ID]],Analysis_Table,9,FALSE)","v":{"$error":"#N/A"}},{"$f":"VLOOKUP(Table_Data_Table_13[[#This Row],[Item ID]],Analysis_Table,10,FALSE)","v":{"$error":"#N/A"}},{"$f":"VLOOKUP(Table_Data_Table_13[[#This Row],[Item ID]],Analysis_Table,11,FALSE)","v":{"$error":"#N/A"}},{"$f":"VLOOKUP(Table_Data_Table_13[[#This Row],[Item ID]],Analysis_Table,12,FALSE)","v":{"$error":"#N/A"}},{"$f":"VLOOKUP(Table_Data_Table_13[[#This Row],[Item ID]],Analysis_Table,13,FALSE)","v":{"$error":"#N/A"}},{"$f":"VLOOKUP(Table_Data_Table_13[[#This Row],[Item ID]],Analysis_Table,14,FALSE)","v":{"$error":"#N/A"}},{"$f":"VLOOKUP(Table_Data_Table_13[[#This Row],[Item ID]],Analysis_Table,15,FALSE)","v":{"$error":"#N/A"}},{"$f":"VLOOKUP(Table_Data_Table_13[[#This Row],[Item ID]],Analysis_Table,16,FALSE)","v":{"$error":"#N/A"}},{"$f":"VLOOKUP(Table_Data_Table_13[[#This Row],[Item ID]],Analysis_Table,17,FALSE)","v":{"$error":"#N/A"}},{"$f":"VLOOKUP(Table_Data_Table_13[[#This Row],[Item ID]],Analysis_Table,18,FALSE)","v":{"$error":"#N/A"}},{"$f":"VLOOKUP(Table_Data_Table_13[[#This Row],[Item ID]],Analysis_Table,19,FALSE)","v":{"$error":"#N/A"}},null,null,1]
["",null,null,null,null,null,null,null,null,0,null,null,null,{"$f":"VLOOKUP(Table_Data_Table_13[[#This Row],[Item ID]],Analysis_Table,8,FALSE)","v":{"$error":"#N/A"}},{"$f":"VLOOKUP(Table_Data_Table_13[[#This Row],[Item ID]],Analysis_Table,9,FALSE)","v":{"$error":"#N/A"}},{"$f":"VLOOKUP(Table_Data_Table_13[[#This Row],[Item ID]],Analysis_Table,10,FALSE)","v":{"$error":"#N/A"}},{"$f":"VLOOKUP(Table_Data_Table_13[[#This Row],[Item ID]],Analysis_Table,11,FALSE)","v":{"$error":"#N/A"}},{"$f":"VLOOKUP(Table_Data_Table_13[[#This Row],[Item ID]],Analysis_Table,12,FALSE)","v":{"$error":"#N/A"}},{"$f":"VLOOKUP(Table_Data_Table_13[[#This Row],[Item ID]],Analysis_Table,13,FALSE)","v":{"$error":"#N/A"}},{"$f":"VLOOKUP(Table_Data_Table_13[[#This Row],[Item ID]],Analysis_Table,14,FALSE)","v":{"$error":"#N/A"}},{"$f":"VLOOKUP(Table_Data_Table_13[[#This Row],[Item ID]],Analysis_Table,15,FALSE)","v":{"$error":"#N/A"}},{"$f":"VLOOKUP(Table_Data_Table_13[[#This Row],[Item ID]],Analysis_Table,16,FALSE)","v":{"$error":"#N/A"}},{"$f":"VLOOKUP(Table_Data_Table_13[[#This Row],[Item ID]],Analysis_Table,17,FALSE)","v":{"$error":"#N/A"}},{"$f":"VLOOKUP(Table_Data_Table_13[[#This Row],[Item ID]],Analysis_Table,18,FALSE)","v":{"$error":"#N/A"}},{"$f":"VLOOKUP(Table_Data_Table_13[[#This Row],[Item ID]],Analysis_Table,19,FALSE)","v":{"$error":"#N/A"}},null,null,1]
["",null,null,null,null,null,null,null,null,0,null,null,null,{"$f":"VLOOKUP(Table_Data_Table_13[[#This Row],[Item ID]],Analysis_Table,8,FALSE)","v":{"$error":"#N/A"}},{"$f":"VLOOKUP(Table_Data_Table_13[[#This Row],[Item ID]],Analysis_Table,9,FALSE)","v":{"$error":"#N/A"}},{"$f":"VLOOKUP(Table_Data_Table_13[[#This Row],[Item ID]],Analysis_Table,10,FALSE)","v":{"$error":"#N/A"}},{"$f":"VLOOKUP(Table_Data_Table_13[[#This Row],[Item ID]],Analysis_Table,11,FALSE)","v":{"$error":"#N/A"}},{"$f":"VLOOKUP(Table_Data_Table_13[[#This Row],[Item ID]],Analysis_Table,12,FALSE)","v":{"$error":"#N/A"}},{"$f":"VLOOKUP(Table_Data_Table_13[[#This Row],[Item ID]],Analysis_Table,13,FALSE)","v":{"$error":"#N/A"}},{"$f":"VLOOKUP(Table_Data_Table_13[[#This Row],[Item ID]],Analysis_Table,14,FALSE)","v":{"$error":"#N/A"}},{"$f":"VLOOKUP(Table_Data_Table_13[[#This Row],[Item ID]],Analysis_Table,15,FALSE)","v":{"$error":"#N/A"}},{"$f":"VLOOKUP(Table_Data_Table_13[[#This Row],[Item ID]],Analysis_Table,16,FALSE)","v":{"$error":"#N/A"}},{"$f":"VLOOKUP(Table_Data_Table_13[[#This Row],[Item ID]],Analysis_Table,17,FALSE)","v":{"$error":"#N/A"}},{"$f":"VLOOKUP(Table_Data_Table_13[[#This Row],[Item ID]],Analysis_Table,18,FALSE)","v":{"$error":"#N/A"}},{"$f":"VLOOKUP(Table_Data_Table_13[[#This Row],[Item ID]],Analysis_Table,19,FALSE)","v":{"$error":"#N/A"}},null,null,1]
["",null,null,null,null,null,null,null,null,0,null,null,null,{"$f":"VLOOKUP(Table_Data_Table_13[[#This Row],[Item ID]],Analysis_Table,8,FALSE)","v":{"$error":"#N/A"}},{"$f":"VLOOKUP(Table_Data_Table_13[[#This Row],[Item ID]],Analysis_Table,9,FALSE)","v":{"$error":"#N/A"}},{"$f":"VLOOKUP(Table_Data_Table_13[[#This Row],[Item ID]],Analysis_Table,10,FALSE)","v":{"$error":"#N/A"}},{"$f":"VLOOKUP(Table_Data_Table_13[[#This Row],[Item ID]],Analysis_Table,11,FALSE)","v":{"$error":"#N/A"}},{"$f":"VLOOKUP(Table_Data_Table_13[[#This Row],[Item ID]],Analysis_Table,12,FALSE)","v":{"$error":"#N/A"}},{"$f":"VLOOKUP(Table_Data_Table_13[[#This Row],[Item ID]],Analysis_Table,13,FALSE)","v":{"$error":"#N/A"}},{"$f":"VLOOKUP(Table_Data_Table_13[[#This Row],[Item ID]],Analysis_Table,14,FALSE)","v":{"$error":"#N/A"}},{"$f":"VLOOKUP(Table_Data_Table_13[[#This Row],[Item ID]],Analysis_Table,15,FALSE)","v":{"$error":"#N/A"}},{"$f":"VLOOKUP(Table_Data_Table_13[[#This Row],[Item ID]],Analysis_Table,16,FALSE)","v":{"$error":"#N/A"}},{"$f":"VLOOKUP(Table_Data_Table_13[[#This Row],[Item ID]],Analysis_Table,17,FALSE)","v":{"$error":"#N/A"}},{"$f":"VLOOKUP(Table_Data_Table_13[[#This Row],[Item ID]],Analysis_Table,18,FALSE)","v":{"$error":"#N/A"}},{"$f":"VLOOKUP(Table_Data_Table_13[[#This Row],[Item ID]],Analysis_Table,19,FALSE)","v":{"$error":"#N/A"}},null,null,1]
["",null,null,null,null,null,null,null,null,0,null,null,null,{"$f":"VLOOKUP(Table_Data_Table_13[[#This Row],[Item ID]],Analysis_Table,8,FALSE)","v":{"$error":"#N/A"}},{"$f":"VLOOKUP(Table_Data_Table_13[[#This Row],[Item ID]],Analysis_Table,9,FALSE)","v":{"$error":"#N/A"}},{"$f":"VLOOKUP(Table_Data_Table_13[[#This Row],[Item ID]],Analysis_Table,10,FALSE)","v":{"$error":"#N/A"}},{"$f":"VLOOKUP(Table_Data_Table_13[[#This Row],[Item ID]],Analysis_Table,11,FALSE)","v":{"$error":"#N/A"}},{"$f":"VLOOKUP(Table_Data_Table_13[[#This Row],[Item ID]],Analysis_Table,12,FALSE)","v":{"$error":"#N/A"}},{"$f":"VLOOKUP(Table_Data_Table_13[[#This Row],[Item ID]],Analysis_Table,13,FALSE)","v":{"$error":"#N/A"}},{"$f":"VLOOKUP(Table_Data_Table_13[[#This Row],[Item ID]],Analysis_Table,14,FALSE)","v":{"$error":"#N/A"}},{"$f":"VLOOKUP(Table_Data_Table_13[[#This Row],[Item ID]],Analysis_Table,15,FALSE)","v":{"$error":"#N/A"}},{"$f":"VLOOKUP(Table_Data_Table_13[[#This Row],[Item ID]],Analysis_Table,16,FALSE)","v":{"$error":"#N/A"}},{"$f":"VLOOKUP(Table_Data_Table_13[[#This Row],[Item ID]],Analysis_Table,17,FALSE)","v":{"$error":"#N/A"}},{"$f":"VLOOKUP(Table_Data_Table_13[[#This Row],[Item ID]],Analysis_Table,18,FALSE)","v":{"$error":"#N/A"}},{"$f":"VLOOKUP(Table_Data_Table_13[[#This Row],[Item ID]],Analysis_Table,19,FALSE)","v":{"$error":"#N/A"}},null,null,1]
["",null,null,null,null,null,null,null,null,0,null,null,null,{"$f":"VLOOKUP(Table_Data_Table_13[[#This Row],[Item ID]],Analysis_Table,8,FALSE)","v":{"$error":"#N/A"}},{"$f":"VLOOKUP(Table_Data_Table_13[[#This Row],[Item ID]],Analysis_Table,9,FALSE)","v":{"$error":"#N/A"}},{"$f":"VLOOKUP(Table_Data_Table_13[[#This Row],[Item ID]],Analysis_Table,10,FALSE)","v":{"$error":"#N/A"}},{"$f":"VLOOKUP(Table_Data_Table_13[[#This Row],[Item ID]],Analysis_Table,11,FALSE)","v":{"$error":"#N/A"}},{"$f":"VLOOKUP(Table_Data_Table_13[[#This Row],[Item ID]],Analysis_Table,12,FALSE)","v":{"$error":"#N/A"}},{"$f":"VLOOKUP(Table_Data_Table_13[[#This Row],[Item ID]],Analysis_Table,13,FALSE)","v":{"$error":"#N/A"}},{"$f":"VLOOKUP(Table_Data_Table_13[[#This Row],[Item ID]],Analysis_Table,14,FALSE)","v":{"$error":"#N/A"}},{"$f":"VLOOKUP(Table_Data_Table_13[[#This Row],[Item ID]],Analysis_Table,15,FALSE)","v":{"$error":"#N/A"}},{"$f":"VLOOKUP(Table_Data_Table_13[[#This Row],[Item ID]],Analysis_Table,16,FALSE)","v":{"$error":"#N/A"}},{"$f":"VLOOKUP(Table_Data_Table_13[[#This Row],[Item ID]],Analysis_Table,17,FALSE)","v":{"$error":"#N/A"}},{"$f":"VLOOKUP(Table_Data_Table_13[[#This Row],[Item ID]],Analysis_Table,18,FALSE)","v":{"$error":"#N/A"}},{"$f":"VLOOKUP(Table_Data_Table_13[[#This Row],[Item ID]],Analysis_Table,19,FALSE)","v":{"$error":"#N/A"}},null,null,1]
["",null,null,null,null,null,null,null,null,0,null,null,null,{"$f":"VLOOKUP(Table_Data_Table_13[[#This Row],[Item ID]],Analysis_Table,8,FALSE)","v":{"$error":"#N/A"}},{"$f":"VLOOKUP(Table_Data_Table_13[[#This Row],[Item ID]],Analysis_Table,9,FALSE)","v":{"$error":"#N/A"}},{"$f":"VLOOKUP(Table_Data_Table_13[[#This Row],[Item ID]],Analysis_Table,10,FALSE)","v":{"$error":"#N/A"}},{"$f":"VLOOKUP(Table_Data_Table_13[[#This Row],[Item ID]],Analysis_Table,11,FALSE)","v":{"$error":"#N/A"}},{"$f":"VLOOKUP(Table_Data_Table_13[[#This Row],[Item ID]],Analysis_Table,12,FALSE)","v":{"$error":"#N/A"}},{"$f":"VLOOKUP(Table_Data_Table_13[[#This Row],[Item ID]],Analysis_Table,13,FALSE)","v":{"$error":"#N/A"}},{"$f":"VLOOKUP(Table_Data_Table_13[[#This Row],[Item ID]],Analysis_Table,14,FALSE)","v":{"$error":"#N/A"}},{"$f":"VLOOKUP(Table_Data_Table_13[[#This Row],[Item ID]],Analysis_Table,15,FALSE)","v":{"$error":"#N/A"}},{"$f":"VLOOKUP(Table_Data_Table_13[[#This Row],[Item ID]],Analysis_Table,16,FALSE)","v":{"$error":"#N/A"}},{"$f":"VLOOKUP(Table_Data_Table_13[[#This Row],[Item ID]],Analysis_Table,17,FALSE)","v":{"$error":"#N/A"}},{"$f":"VLOOKUP(Table_Data_Table_13[[#This Row],[Item ID]],Analysis_Table,18,FALSE)","v":{"$error":"#N/A"}},{"$f":"VLOOKUP(Table_Data_Table_13[[#This Row],[Item ID]],Analysis_Table,19,FALSE)","v":{"$error":"#N/A"}},null,null,1]
["",null,null,null,null,null,null,null,null,0,null,null,null,{"$f":"VLOOKUP(Table_Data_Table_13[[#This Row],[Item ID]],Analysis_Table,8,FALSE)","v":{"$error":"#N/A"}},{"$f":"VLOOKUP(Table_Data_Table_13[[#This Row],[Item ID]],Analysis_Table,9,FALSE)","v":{"$error":"#N/A"}},{"$f":"VLOOKUP(Table_Data_Table_13[[#This Row],[Item ID]],Analysis_Table,10,FALSE)","v":{"$error":"#N/A"}},{"$f":"VLOOKUP(Table_Data_Table_13[[#This Row],[Item ID]],Analysis_Table,11,FALSE)","v":{"$error":"#N/A"}},{"$f":"VLOOKUP(Table_Data_Table_13[[#This Row],[Item ID]],Analysis_Table,12,FALSE)","v":{"$error":"#N/A"}},{"$f":"VLOOKUP(Table_Data_Table_13[[#This Row],[Item ID]],Analysis_Table,13,FALSE)","v":{"$error":"#N/A"}},{"$f":"VLOOKUP(Table_Data_Table_13[[#This Row],[Item ID]],Analysis_Table,14,FALSE)","v":{"$error":"#N/A"}},{"$f":"VLOOKUP(Table_Data_Table_13[[#This Row],[Item ID]],Analysis_Table,15,FALSE)","v":{"$error":"#N/A"}},{"$f":"VLOOKUP(Table_Data_Table_13[[#This Row],[Item ID]],Analysis_Table,16,FALSE)","v":{"$error":"#N/A"}},{"$f":"VLOOKUP(Table_Data_Table_13[[#This Row],[Item ID]],Analysis_Table,17,FALSE)","v":{"$error":"#N/A"}},{"$f":"VLOOKUP(Table_Data_Table_13[[#This Row],[Item ID]],Analysis_Table,18,FALSE)","v":{"$error":"#N/A"}},{"$f":"VLOOKUP(Table_Data_Table_13[[#This Row],[Item ID]],Analysis_Table,19,FALSE)","v":{"$error":"#N/A"}},null,null,1]
["",null,null,null,null,null,null,null,null,0,null,null,null,{"$f":"VLOOKUP(Table_Data_Table_13[[#This Row],[Item ID]],Analysis_Table,8,FALSE)","v":{"$error":"#N/A"}},{"$f":"VLOOKUP(Table_Data_Table_13[[#This Row],[Item ID]],Analysis_Table,9,FALSE)","v":{"$error":"#N/A"}},{"$f":"VLOOKUP(Table_Data_Table_13[[#This Row],[Item ID]],Analysis_Table,10,FALSE)","v":{"$error":"#N/A"}},{"$f":"VLOOKUP(Table_Data_Table_13[[#This Row],[Item ID]],Analysis_Table,11,FALSE)","v":{"$error":"#N/A"}},{"$f":"VLOOKUP(Table_Data_Table_13[[#This Row],[Item ID]],Analysis_Table,12,FALSE)","v":{"$error":"#N/A"}},{"$f":"VLOOKUP(Table_Data_Table_13[[#This Row],[Item ID]],Analysis_Table,13,FALSE)","v":{"$error":"#N/A"}},{"$f":"VLOOKUP(Table_Data_Table_13[[#This Row],[Item ID]],Analysis_Table,14,FALSE)","v":{"$error":"#N/A"}},{"$f":"VLOOKUP(Table_Data_Table_13[[#This Row],[Item ID]],Analysis_Table,15,FALSE)","v":{"$error":"#N/A"}},{"$f":"VLOOKUP(Table_Data_Table_13[[#This Row],[Item ID]],Analysis_Table,16,FALSE)","v":{"$error":"#N/A"}},{"$f":"VLOOKUP(Table_Data_Table_13[[#This Row],[Item ID]],Analysis_Table,17,FALSE)","v":{"$error":"#N/A"}},{"$f":"VLOOKUP(Table_Data_Table_13[[#This Row],[Item ID]],Analysis_Table,18,FALSE)","v":{"$error":"#N/A"}},{"$f":"VLOOKUP(Table_Data_Table_13[[#This Row],[Item ID]],Analysis_Table,19,FALSE)","v":{"$error":"#N/A"}},null,null,1]
["",null,null,null,null,null,null,null,null,0,null,null,null,{"$f":"VLOOKUP(Table_Data_Table_13[[#This Row],[Item ID]],Analysis_Table,8,FALSE)","v":{"$error":"#N/A"}},{"$f":"VLOOKUP(Table_Data_Table_13[[#This Row],[Item ID]],Analysis_Table,9,FALSE)","v":{"$error":"#N/A"}},{"$f":"VLOOKUP(Table_Data_Table_13[[#This Row],[Item ID]],Analysis_Table,10,FALSE)","v":{"$error":"#N/A"}},{"$f":"VLOOKUP(Table_Data_Table_13[[#This Row],[Item ID]],Analysis_Table,11,FALSE)","v":{"$error":"#N/A"}},{"$f":"VLOOKUP(Table_Data_Table_13[[#This Row],[Item ID]],Analysis_Table,12,FALSE)","v":{"$error":"#N/A"}},{"$f":"VLOOKUP(Table_Data_Table_13[[#This Row],[Item ID]],Analysis_Table,13,FALSE)","v":{"$error":"#N/A"}},{"$f":"VLOOKUP(Table_Data_Table_13[[#This Row],[Item ID]],Analysis_Table,14,FALSE)","v":{"$error":"#N/A"}},{"$f":"VLOOKUP(Table_Data_Table_13[[#This Row],[Item ID]],Analysis_Table,15,FALSE)","v":{"$error":"#N/A"}},{"$f":"VLOOKUP(Table_Data_Table_13[[#This Row],[Item ID]],Analysis_Table,16,FALSE)","v":{"$error":"#N/A"}},{"$f":"VLOOKUP(Table_Data_Table_13[[#This Row],[Item ID]],Analysis_Table,17,FALSE)","v":{"$error":"#N/A"}},{"$f":"VLOOKUP(Table_Data_Table_13[[#This Row],[Item ID]],Analysis_Table,18,FALSE)","v":{"$error":"#N/A"}},{"$f":"VLOOKUP(Table_Data_Table_13[[#This Row],[Item ID]],Analysis_Table,19,FALSE)","v":{"$error":"#N/A"}},null,null,1]
["",null,null,null,null,null,null,null,null,0,null,null,null,{"$f":"VLOOKUP(Table_Data_Table_13[[#This Row],[Item ID]],Analysis_Table,8,FALSE)","v":{"$error":"#N/A"}},{"$f":"VLOOKUP(Table_Data_Table_13[[#This Row],[Item ID]],Analysis_Table,9,FALSE)","v":{"$error":"#N/A"}},{"$f":"VLOOKUP(Table_Data_Table_13[[#This Row],[Item ID]],Analysis_Table,10,FALSE)","v":{"$error":"#N/A"}},{"$f":"VLOOKUP(Table_Data_Table_13[[#This Row],[Item ID]],Analysis_Table,11,FALSE)","v":{"$error":"#N/A"}},{"$f":"VLOOKUP(Table_Data_Table_13[[#This Row],[Item ID]],Analysis_Table,12,FALSE)","v":{"$error":"#N/A"}},{"$f":"VLOOKUP(Table_Data_Table_13[[#This Row],[Item ID]],Analysis_Table,13,FALSE)","v":{"$error":"#N/A"}},{"$f":"VLOOKUP(Table_Data_Table_13[[#This Row],[Item ID]],Analysis_Table,14,FALSE)","v":{"$error":"#N/A"}},{"$f":"VLOOKUP(Table_Data_Table_13[[#This Row],[Item ID]],Analysis_Table,15,FALSE)","v":{"$error":"#N/A"}},{"$f":"VLOOKUP(Table_Data_Table_13[[#This Row],[Item ID]],Analysis_Table,16,FALSE)","v":{"$error":"#N/A"}},{"$f":"VLOOKUP(Table_Data_Table_13[[#This Row],[Item ID]],Analysis_Table,17,FALSE)","v":{"$error":"#N/A"}},{"$f":"VLOOKUP(Table_Data_Table_13[[#This Row],[Item ID]],Analysis_Table,18,FALSE)","v":{"$error":"#N/A"}},{"$f":"VLOOKUP(Table_Data_Table_13[[#This Row],[Item ID]],Analysis_Table,19,FALSE)","v":{"$error":"#N/A"}},null,null,1]
["",null,null,null,null,null,null,null,null,0,null,null,null,{"$f":"VLOOKUP(Table_Data_Table_13[[#This Row],[Item ID]],Analysis_Table,8,FALSE)","v":{"$error":"#N/A"}},{"$f":"VLOOKUP(Table_Data_Table_13[[#This Row],[Item ID]],Analysis_Table,9,FALSE)","v":{"$error":"#N/A"}},{"$f":"VLOOKUP(Table_Data_Table_13[[#This Row],[Item ID]],Analysis_Table,10,FALSE)","v":{"$error":"#N/A"}},{"$f":"VLOOKUP(Table_Data_Table_13[[#This Row],[Item ID]],Analysis_Table,11,FALSE)","v":{"$error":"#N/A"}},{"$f":"VLOOKUP(Table_Data_Table_13[[#This Row],[Item ID]],Analysis_Table,12,FALSE)","v":{"$error":"#N/A"}},{"$f":"VLOOKUP(Table_Data_Table_13[[#This Row],[Item ID]],Analysis_Table,13,FALSE)","v":{"$error":"#N/A"}},{"$f":"VLOOKUP(Table_Data_Table_13[[#This Row],[Item ID]],Analysis_Table,14,FALSE)","v":{"$error":"#N/A"}},{"$f":"VLOOKUP(Table_Data_Table_13[[#This Row],[Item ID]],Analysis_Table,15,FALSE)","v":{"$error":"#N/A"}},{"$f":"VLOOKUP(Table_Data_Table_13[[#This Row],[Item ID]],Analysis_Table,16,FALSE)","v":{"$error":"#N/A"}},{"$f":"VLOOKUP(Table_Data_Table_13[[#This Row],[Item ID]],Analysis_Table,17,FALSE)","v":{"$error":"#N/A"}},{"$f":"VLOOKUP(Table_Data_Table_13[[#This Row],[Item ID]],Analysis_Table,18,FALSE)","v":{"$error":"#N/A"}},{"$f":"VLOOKUP(Table_Data_Table_13[[#This Row],[Item ID]],Analysis_Table,19,FALSE)","v":{"$error":"#N/A"}},null,null,1]
["",null,null,null,null,null,null,null,null,0,null,null,null,{"$f":"VLOOKUP(Table_Data_Table_13[[#This Row],[Item ID]],Analysis_Table,8,FALSE)","v":{"$error":"#N/A"}},{"$f":"VLOOKUP(Table_Data_Table_13[[#This Row],[Item ID]],Analysis_Table,9,FALSE)","v":{"$error":"#N/A"}},{"$f":"VLOOKUP(Table_Data_Table_13[[#This Row],[Item ID]],Analysis_Table,10,FALSE)","v":{"$error":"#N/A"}},{"$f":"VLOOKUP(Table_Data_Table_13[[#This Row],[Item ID]],Analysis_Table,11,FALSE)","v":{"$error":"#N/A"}},{"$f":"VLOOKUP(Table_Data_Table_13[[#This Row],[Item ID]],Analysis_Table,12,FALSE)","v":{"$error":"#N/A"}},{"$f":"VLOOKUP(Table_Data_Table_13[[#This Row],[Item ID]],Analysis_Table,13,FALSE)","v":{"$error":"#N/A"}},{"$f":"VLOOKUP(Table_Data_Table_13[[#This Row],[Item ID]],Analysis_Table,14,FALSE)","v":{"$error":"#N/A"}},{"$f":"VLOOKUP(Table_Data_Table_13[[#This Row],[Item ID]],Analysis_Table,15,FALSE)","v":{"$error":"#N/A"}},{"$f":"VLOOKUP(Table_Data_Table_13[[#This Row],[Item ID]],Analysis_Table,16,FALSE)","v":{"$error":"#N/A"}},{"$f":"VLOOKUP(Table_Data_Table_13[[#This Row],[Item ID]],Analysis_Table,17,FALSE)","v":{"$error":"#N/A"}},{"$f":"VLOOKUP(Table_Data_Table_13[[#This Row],[Item ID]],Analysis_Table,18,FALSE)","v":{"$error":"#N/A"}},{"$f":"VLOOKUP(Table_Data_Table_13[[#This Row],[Item ID]],Analysis_Table,19,FALSE)","v":{"$error":"#N/A"}},null,null,1]
["",null,null,null,null,null,null,null,null,0,null,null,null,{"$f":"VLOOKUP(Table_Data_Table_13[[#This Row],[Item ID]],Analysis_Table,8,FALSE)","v":{"$error":"#N/A"}},{"$f":"VLOOKUP(Table_Data_Table_13[[#This Row],[Item ID]],Analysis_Table,9,FALSE)","v":{"$error":"#N/A"}},{"$f":"VLOOKUP(Table_Data_Table_13[[#This Row],[Item ID]],Analysis_Table,10,FALSE)","v":{"$error":"#N/A"}},{"$f":"VLOOKUP(Table_Data_Table_13[[#This Row],[Item ID]],Analysis_Table,11,FALSE)","v":{"$error":"#N/A"}},{"$f":"VLOOKUP(Table_Data_Table_13[[#This Row],[Item ID]],Analysis_Table,12,FALSE)","v":{"$error":"#N/A"}},{"$f":"VLOOKUP(Table_Data_Table_13[[#This Row],[Item ID]],Analysis_Table,13,FALSE)","v":{"$error":"#N/A"}},{"$f":"VLOOKUP(Table_Data_Table_13[[#This Row],[Item ID]],Analysis_Table,14,FALSE)","v":{"$error":"#N/A"}},{"$f":"VLOOKUP(Table_Data_Table_13[[#This Row],[Item ID]],Analysis_Table,15,FALSE)","v":{"$error":"#N/A"}},{"$f":"VLOOKUP(Table_Data_Table_13[[#This Row],[Item ID]],Analysis_Table,16,FALSE)","v":{"$error":"#N/A"}},{"$f":"VLOOKUP(Table_Data_Table_13[[#This Row],[Item ID]],Analysis_Table,17,FALSE)","v":{"$error":"#N/A"}},{"$f":"VLOOKUP(Table_Data_Table_13[[#This Row],[Item ID]],Analysis_Table,18,FALSE)","v":{"$error":"#N/A"}},{"$f":"VLOOKUP(Table_Data_Table_13[[#This Row],[Item ID]],Analysis_Table,19,FALSE)","v":{"$error":"#N/A"}},null,null,1]
["",null,null,null,null,null,null,null,null,0,null,null,null,{"$f":"VLOOKUP(Table_Data_Table_13[[#This Row],[Item ID]],Analysis_Table,8,FALSE)","v":{"$error":"#N/A"}},{"$f":"VLOOKUP(Table_Data_Table_13[[#This Row],[Item ID]],Analysis_Table,9,FALSE)","v":{"$error":"#N/A"}},{"$f":"VLOOKUP(Table_Data_Table_13[[#This Row],[Item ID]],Analysis_Table,10,FALSE)","v":{"$error":"#N/A"}},{"$f":"VLOOKUP(Table_Data_Table_13[[#This Row],[Item ID]],Analysis_Table,11,FALSE)","v":{"$error":"#N/A"}},{"$f":"VLOOKUP(Table_Data_Table_13[[#This Row],[Item ID]],Analysis_Table,12,FALSE)","v":{"$error":"#N/A"}},{"$f":"VLOOKUP(Table_Data_Table_13[[#This Row],[Item ID]],Analysis_Table,13,FALSE)","v":{"$error":"#N/A"}},{"$f":"VLOOKUP(Table_Data_Table_13[[#This Row],[Item ID]],Analysis_Table,14,FALSE)","v":{"$error":"#N/A"}},{"$f":"VLOOKUP(Table_Data_Table_13[[#This Row],[Item ID]],Analysis_Table,15,FALSE)","v":{"$error":"#N/A"}},{"$f":"VLOOKUP(Table_Data_Table_13[[#This Row],[Item ID]],Analysis_Table,16,FALSE)","v":{"$error":"#N/A"}},{"$f":"VLOOKUP(Table_Data_Table_13[[#This Row],[Item ID]],Analysis_Table,17,FALSE)","v":{"$error":"#N/A"}},{"$f":"VLOOKUP(Table_Data_Table_13[[#This Row],[Item ID]],Analysis_Table,18,FALSE)","v":{"$error":"#N/A"}},{"$f":"VLOOKUP(Table_Data_Table_13[[#This Row],[Item ID]],Analysis_Table,19,FALSE)","v":{"$error":"#N/A"}},null,null,1]
["",null,null,null,null,null,null,null,null,0,null,null,null,{"$f":"VLOOKUP(Table_Data_Table_13[[#This Row],[Item ID]],Analysis_Table,8,FALSE)","v":{"$error":"#N/A"}},{"$f":"VLOOKUP(Table_Data_Table_13[[#This Row],[Item ID]],Analysis_Table,9,FALSE)","v":{"$error":"#N/A"}},{"$f":"VLOOKUP(Table_Data_Table_13[[#This Row],[Item ID]],Analysis_Table,10,FALSE)","v":{"$error":"#N/A"}},{"$f":"VLOOKUP(Table_Data_Table_13[[#This Row],[Item ID]],Analysis_Table,11,FALSE)","v":{"$error":"#N/A"}},{"$f":"VLOOKUP(Table_Data_Table_13[[#This Row],[Item ID]],Analysis_Table,12,FALSE)","v":{"$error":"#N/A"}},{"$f":"VLOOKUP(Table_Data_Table_13[[#This Row],[Item ID]],Analysis_Table,13,FALSE)","v":{"$error":"#N/A"}},{"$f":"VLOOKUP(Table_Data_Table_13[[#This Row],[Item ID]],Analysis_Table,14,FALSE)","v":{"$error":"#N/A"}},{"$f":"VLOOKUP(Table_Data_Table_13[[#This Row],[Item ID]],Analysis_Table,15,FALSE)","v":{"$error":"#N/A"}},{"$f":"VLOOKUP(Table_Data_Table_13[[#This Row],[Item ID]],Analysis_Table,16,FALSE)","v":{"$error":"#N/A"}},{"$f":"VLOOKUP(Table_Data_Table_13[[#This Row],[Item ID]],Analysis_Table,17,FALSE)","v":{"$error":"#N/A"}},{"$f":"VLOOKUP(Table_Data_Table_13[[#This Row],[Item ID]],Analysis_Table,18,FALSE)","v":{"$error":"#N/A"}},{"$f":"VLOOKUP(Table_Data_Table_13[[#This Row],[Item ID]],Analysis_Table,19,FALSE)","v":{"$error":"#N/A"}},null,null,1]
["",null,null,null,null,null,null,null,null,0,null,null,null,{"$f":"VLOOKUP(Table_Data_Table_13[[#This Row],[Item ID]],Analysis_Table,8,FALSE)","v":{"$error":"#N/A"}},{"$f":"VLOOKUP(Table_Data_Table_13[[#This Row],[Item ID]],Analysis_Table,9,FALSE)","v":{"$error":"#N/A"}},{"$f":"VLOOKUP(Table_Data_Table_13[[#This Row],[Item ID]],Analysis_Table,10,FALSE)","v":{"$error":"#N/A"}},{"$f":"VLOOKUP(Table_Data_Table_13[[#This Row],[Item ID]],Analysis_Table,11,FALSE)","v":{"$error":"#N/A"}},{"$f":"VLOOKUP(Table_Data_Table_13[[#This Row],[Item ID]],Analysis_Table,12,FALSE)","v":{"$error":"#N/A"}},{"$f":"VLOOKUP(Table_Data_Table_13[[#This Row],[Item ID]],Analysis_Table,13,FALSE)","v":{"$error":"#N/A"}},{"$f":"VLOOKUP(Table_Data_Table_13[[#This Row],[Item ID]],Analysis_Table,14,FALSE)","v":{"$error":"#N/A"}},{"$f":"VLOOKUP(Table_Data_Table_13[[#This Row],[Item ID]],Analysis_Table,15,FALSE)","v":{"$error":"#N/A"}},{"$f":"VLOOKUP(Table_Data_Table_13[[#This Row],[Item ID]],Analysis_Table,16,FALSE)","v":{"$error":"#N/A"}},{"$f":"VLOOKUP(Table_Data_Table_13[[#This Row],[Item ID]],Analysis_Table,17,FALSE)","v":{"$error":"#N/A"}},{"$f":"VLOOKUP(Table_Data_Table_13[[#This Row],[Item ID]],Analysis_Table,18,FALSE)","v":{"$error":"#N/A"}},{"$f":"VLOOKUP(Table_Data_Table_13[[#This Row],[Item ID]],Analysis_Table,19,FALSE)","v":{"$error":"#N/A"}},null,null,1]
["",null,null,null,null,null,null,null,null,0,null,null,null,{"$f":"VLOOKUP(Table_Data_Table_13[[#This Row],[Item ID]],Analysis_Table,8,FALSE)","v":{"$error":"#N/A"}},{"$f":"VLOOKUP(Table_Data_Table_13[[#This Row],[Item ID]],Analysis_Table,9,FALSE)","v":{"$error":"#N/A"}},{"$f":"VLOOKUP(Table_Data_Table_13[[#This Row],[Item ID]],Analysis_Table,10,FALSE)","v":{"$error":"#N/A"}},{"$f":"VLOOKUP(Table_Data_Table_13[[#This Row],[Item ID]],Analysis_Table,11,FALSE)","v":{"$error":"#N/A"}},{"$f":"VLOOKUP(Table_Data_Table_13[[#This Row],[Item ID]],Analysis_Table,12,FALSE)","v":{"$error":"#N/A"}},{"$f":"VLOOKUP(Table_Data_Table_13[[#This Row],[Item ID]],Analysis_Table,13,FALSE)","v":{"$error":"#N/A"}},{"$f":"VLOOKUP(Table_Data_Table_13[[#This Row],[Item ID]],Analysis_Table,14,FALSE)","v":{"$error":"#N/A"}},{"$f":"VLOOKUP(Table_Data_Table_13[[#This Row],[Item ID]],Analysis_Table,15,FALSE)","v":{"$error":"#N/A"}},{"$f":"VLOOKUP(Table_Data_Table_13[[#This Row],[Item ID]],Analysis_Table,16,FALSE)","v":{"$error":"#N/A"}},{"$f":"VLOOKUP(Table_Data_Table_13[[#This Row],[Item ID]],Analysis_Table,17,FALSE)","v":{"$error":"#N/A"}},{"$f":"VLOOKUP(Table_Data_Table_13[[#This Row],[Item ID]],Analysis_Table,18,FALSE)","v":{"$error":"#N/A"}},{"$f":"VLOOKUP(Table_Data_Table_13[[#This Row],[Item ID]],Analysis_Table,19,FALSE)","v":{"$error":"#N/A"}},null,null,1]
["",null,null,null,null,null,null,null,null,0,null,null,null,{"$f":"VLOOKUP(Table_Data_Table_13[[#This Row],[Item ID]],Analysis_Table,8,FALSE)","v":{"$error":"#N/A"}},{"$f":"VLOOKUP(Table_Data_Table_13[[#This Row],[Item ID]],Analysis_Table,9,FALSE)","v":{"$error":"#N/A"}},{"$f":"VLOOKUP(Table_Data_Table_13[[#This Row],[Item ID]],Analysis_Table,10,FALSE)","v":{"$error":"#N/A"}},{"$f":"VLOOKUP(Table_Data_Table_13[[#This Row],[Item ID]],Analysis_Table,11,FALSE)","v":{"$error":"#N/A"}},{"$f":"VLOOKUP(Table_Data_Table_13[[#This Row],[Item ID]],Analysis_Table,12,FALSE)","v":{"$error":"#N/A"}},{"$f":"VLOOKUP(Table_Data_Table_13[[#This Row],[Item ID]],Analysis_Table,13,FALSE)","v":{"$error":"#N/A"}},{"$f":"VLOOKUP(Table_Data_Table_13[[#This Row],[Item ID]],Analysis_Table,14,FALSE)","v":{"$error":"#N/A"}},{"$f":"VLOOKUP(Table_Data_Table_13[[#This Row],[Item ID]],Analysis_Table,15,FALSE)","v":{"$error":"#N/A"}},{"$f":"VLOOKUP(Table_Data_Table_13[[#This Row],[Item ID]],Analysis_Table,16,FALSE)","v":{"$error":"#N/A"}},{"$f":"VLOOKUP(Table_Data_Table_13[[#This Row],[Item ID]],Analysis_Table,17,FALSE)","v":{"$error":"#N/A"}},{"$f":"VLOOKUP(Table_Data_Table_13[[#This Row],[Item ID]],Analysis_Table,18,FALSE)","v":{"$error":"#N/A"}},{"$f":"VLOOKUP(Table_Data_Table_13[[#This Row],[Item ID]],Analysis_Table,19,FALSE)","v":{"$error":"#N/A"}},null,null,1]
["",null,null,null,null,null,null,null,null,0,null,null,null,{"$f":"VLOOKUP(Table_Data_Table_13[[#This Row],[Item ID]],Analysis_Table,8,FALSE)","v":{"$error":"#N/A"}},{"$f":"VLOOKUP(Table_Data_Table_13[[#This Row],[Item ID]],Analysis_Table,9,FALSE)","v":{"$error":"#N/A"}},{"$f":"VLOOKUP(Table_Data_Table_13[[#This Row],[Item ID]],Analysis_Table,10,FALSE)","v":{"$error":"#N/A"}},{"$f":"VLOOKUP(Table_Data_Table_13[[#This Row],[Item ID]],Analysis_Table,11,FALSE)","v":{"$error":"#N/A"}},{"$f":"VLOOKUP(Table_Data_Table_13[[#This Row],[Item ID]],Analysis_Table,12,FALSE)","v":{"$error":"#N/A"}},{"$f":"VLOOKUP(Table_Data_Table_13[[#This Row],[Item ID]],Analysis_Table,13,FALSE)","v":{"$error":"#N/A"}},{"$f":"VLOOKUP(Table_Data_Table_13[[#This Row],[Item ID]],Analysis_Table,14,FALSE)","v":{"$error":"#N/A"}},{"$f":"VLOOKUP(Table_Data_Table_13[[#This Row],[Item ID]],Analysis_Table,15,FALSE)","v":{"$error":"#N/A"}},{"$f":"VLOOKUP(Table_Data_Table_13[[#This Row],[Item ID]],Analysis_Table,16,FALSE)","v":{"$error":"#N/A"}},{"$f":"VLOOKUP(Table_Data_Table_13[[#This Row],[Item ID]],Analysis_Table,17,FALSE)","v":{"$error":"#N/A"}},{"$f":"VLOOKUP(Table_Data_Table_13[[#This Row],[Item ID]],Analysis_Table,18,FALSE)","v":{"$error":"#N/A"}},{"$f":"VLOOKUP(Table_Data_Table_13[[#This Row],[Item ID]],Analysis_Table,19,FALSE)","v":{"$error":"#N/A"}},null,null,1]
["",null,null,null,null,null,null,null,null,0,null,null,null,{"$f":"VLOOKUP(Table_Data_Table_13[[#This Row],[Item ID]],Analysis_Table,8,FALSE)","v":{"$error":"#N/A"}},{"$f":"VLOOKUP(Table_Data_Table_13[[#This Row],[Item ID]],Analysis_Table,9,FALSE)","v":{"$error":"#N/A"}},{"$f":"VLOOKUP(Table_Data_Table_13[[#This Row],[Item ID]],Analysis_Table,10,FALSE)","v":{"$error":"#N/A"}},{"$f":"VLOOKUP(Table_Data_Table_13[[#This Row],[Item ID]],Analysis_Table,11,FALSE)","v":{"$error":"#N/A"}},{"$f":"VLOOKUP(Table_Data_Table_13[[#This Row],[Item ID]],Analysis_Table,12,FALSE)","v":{"$error":"#N/A"}},{"$f":"VLOOKUP(Table_Data_Table_13[[#This Row],[Item ID]],Analysis_Table,13,FALSE)","v":{"$error":"#N/A"}},{"$f":"VLOOKUP(Table_Data_Table_13[[#This Row],[Item ID]],Analysis_Table,14,FALSE)","v":{"$error":"#N/A"}},{"$f":"VLOOKUP(Table_Data_Table_13[[#This Row],[Item ID]],Analysis_Table,15,FALSE)","v":{"$error":"#N/A"}},{"$f":"VLOOKUP(Table_Data_Table_13[[#This Row],[Item ID]],Analysis_Table,16,FALSE)","v":{"$error":"#N/A"}},{"$f":"VLOOKUP(Table_Data_Table_13[[#This Row],[Item ID]],Analysis_Table,17,FALSE)","v":{"$error":"#N/A"}},{"$f":"VLOOKUP(Table_Data_Table_13[[#This Row],[Item ID]],Analysis_Table,18,FALSE)","v":{"$error":"#N/A"}},{"$f":"VLOOKUP(Table_Data_Table_13[[#This Row],[Item ID]],Analysis_Table,19,FALSE)","v":{"$error":"#N/A"}},null,null,1]
["",null,null,null,null,null,null,null,null,0,null,null,null,{"$f":"VLOOKUP(Table_Data_Table_13[[#This Row],[Item ID]],Analysis_Table,8,FALSE)","v":{"$error":"#N/A"}},{"$f":"VLOOKUP(Table_Data_Table_13[[#This Row],[Item ID]],Analysis_Table,9,FALSE)","v":{"$error":"#N/A"}},{"$f":"VLOOKUP(Table_Data_Table_13[[#This Row],[Item ID]],Analysis_Table,10,FALSE)","v":{"$error":"#N/A"}},{"$f":"VLOOKUP(Table_Data_Table_13[[#This Row],[Item ID]],Analysis_Table,11,FALSE)","v":{"$error":"#N/A"}},{"$f":"VLOOKUP(Table_Data_Table_13[[#This Row],[Item ID]],Analysis_Table,12,FALSE)","v":{"$error":"#N/A"}},{"$f":"VLOOKUP(Table_Data_Table_13[[#This Row],[Item ID]],Analysis_Table,13,FALSE)","v":{"$error":"#N/A"}},{"$f":"VLOOKUP(Table_Data_Table_13[[#This Row],[Item ID]],Analysis_Table,14,FALSE)","v":{"$error":"#N/A"}},{"$f":"VLOOKUP(Table_Data_Table_13[[#This Row],[Item ID]],Analysis_Table,15,FALSE)","v":{"$error":"#N/A"}},{"$f":"VLOOKUP(Table_Data_Table_13[[#This Row],[Item ID]],Analysis_Table,16,FALSE)","v":{"$error":"#N/A"}},{"$f":"VLOOKUP(Table_Data_Table_13[[#This Row],[Item ID]],Analysis_Table,17,FALSE)","v":{"$error":"#N/A"}},{"$f":"VLOOKUP(Table_Data_Table_13[[#This Row],[Item ID]],Analysis_Table,18,FALSE)","v":{"$error":"#N/A"}},{"$f":"VLOOKUP(Table_Data_Table_13[[#This Row],[Item ID]],Analysis_Table,19,FALSE)","v":{"$error":"#N/A"}},null,null,1]
["",null,null,null,null,null,null,null,null,0,null,null,null,{"$f":"VLOOKUP(Table_Data_Table_13[[#This Row],[Item ID]],Analysis_Table,8,FALSE)","v":{"$error":"#N/A"}},{"$f":"VLOOKUP(Table_Data_Table_13[[#This Row],[Item ID]],Analysis_Table,9,FALSE)","v":{"$error":"#N/A"}},{"$f":"VLOOKUP(Table_Data_Table_13[[#This Row],[Item ID]],Analysis_Table,10,FALSE)","v":{"$error":"#N/A"}},{"$f":"VLOOKUP(Table_Data_Table_13[[#This Row],[Item ID]],Analysis_Table,11,FALSE)","v":{"$error":"#N/A"}},{"$f":"VLOOKUP(Table_Data_Table_13[[#This Row],[Item ID]],Analysis_Table,12,FALSE)","v":{"$error":"#N/A"}},{"$f":"VLOOKUP(Table_Data_Table_13[[#This Row],[Item ID]],Analysis_Table,13,FALSE)","v":{"$error":"#N/A"}},{"$f":"VLOOKUP(Table_Data_Table_13[[#This Row],[Item ID]],Analysis_Table,14,FALSE)","v":{"$error":"#N/A"}},{"$f":"VLOOKUP(Table_Data_Table_13[[#This Row],[Item ID]],Analysis_Table,15,FALSE)","v":{"$error":"#N/A"}},{"$f":"VLOOKUP(Table_Data_Table_13[[#This Row],[Item ID]],Analysis_Table,16,FALSE)","v":{"$error":"#N/A"}},{"$f":"VLOOKUP(Table_Data_Table_13[[#This Row],[Item ID]],Analysis_Table,17,FALSE)","v":{"$error":"#N/A"}},{"$f":"VLOOKUP(Table_Data_Table_13[[#This Row],[Item ID]],Analysis_Table,18,FALSE)","v":{"$error":"#N/A"}},{"$f":"VLOOKUP(Table_Data_Table_13[[#This Row],[Item ID]],Analysis_Table,19,FALSE)","v":{"$error":"#N/A"}},null,null,1]
["",null,null,null,null,null,null,null,null,0,null,null,null,{"$f":"VLOOKUP(Table_Data_Table_13[[#This Row],[Item ID]],Analysis_Table,8,FALSE)","v":{"$error":"#N/A"}},{"$f":"VLOOKUP(Table_Data_Table_13[[#This Row],[Item ID]],Analysis_Table,9,FALSE)","v":{"$error":"#N/A"}},{"$f":"VLOOKUP(Table_Data_Table_13[[#This Row],[Item ID]],Analysis_Table,10,FALSE)","v":{"$error":"#N/A"}},{"$f":"VLOOKUP(Table_Data_Table_13[[#This Row],[Item ID]],Analysis_Table,11,FALSE)","v":{"$error":"#N/A"}},{"$f":"VLOOKUP(Table_Data_Table_13[[#This Row],[Item ID]],Analysis_Table,12,FALSE)","v":{"$error":"#N/A"}},{"$f":"VLOOKUP(Table_Data_Table_13[[#This Row],[Item ID]],Analysis_Table,13,FALSE)","v":{"$error":"#N/A"}},{"$f":"VLOOKUP(Table_Data_Table_13[[#This Row],[Item ID]],Analysis_Table,14,FALSE)","v":{"$error":"#N/A"}},{"$f":"VLOOKUP(Table_Data_Table_13[[#This Row],[Item ID]],Analysis_Table,15,FALSE)","v":{"$error":"#N/A"}},{"$f":"VLOOKUP(Table_Data_Table_13[[#This Row],[Item ID]],Analysis_Table,16,FALSE)","v":{"$error":"#N/A"}},{"$f":"VLOOKUP(Table_Data_Table_13[[#This Row],[Item ID]],Analysis_Table,17,FALSE)","v":{"$error":"#N/A"}},{"$f":"VLOOKUP(Table_Data_Table_13[[#This Row],[Item ID]],Analysis_Table,18,FALSE)","v":{"$error":"#N/A"}},{"$f":"VLOOKUP(Table_Data_Table_13[[#This Row],[Item ID]],Analysis_Table,19,FALSE)","v":{"$error":"#N/A"}},null,null,1]
["",null,null,null,null,null,null,null,null,0,null,null,null,{"$f":"VLOOKUP(Table_Data_Table_13[[#This Row],[Item ID]],Analysis_Table,8,FALSE)","v":{"$error":"#N/A"}},{"$f":"VLOOKUP(Table_Data_Table_13[[#This Row],[Item ID]],Analysis_Table,9,FALSE)","v":{"$error":"#N/A"}},{"$f":"VLOOKUP(Table_Data_Table_13[[#This Row],[Item ID]],Analysis_Table,10,FALSE)","v":{"$error":"#N/A"}},{"$f":"VLOOKUP(Table_Data_Table_13[[#This Row],[Item ID]],Analysis_Table,11,FALSE)","v":{"$error":"#N/A"}},{"$f":"VLOOKUP(Table_Data_Table_13[[#This Row],[Item ID]],Analysis_Table,12,FALSE)","v":{"$error":"#N/A"}},{"$f":"VLOOKUP(Table_Data_Table_13[[#This Row],[Item ID]],Analysis_Table,13,FALSE)","v":{"$error":"#N/A"}},{"$f":"VLOOKUP(Table_Data_Table_13[[#This Row],[Item ID]],Analysis_Table,14,FALSE)","v":{"$error":"#N/A"}},{"$f":"VLOOKUP(Table_Data_Table_13[[#This Row],[Item ID]],Analysis_Table,15,FALSE)","v":{"$error":"#N/A"}},{"$f":"VLOOKUP(Table_Data_Table_13[[#This Row],[Item ID]],Analysis_Table,16,FALSE)","v":{"$error":"#N/A"}},{"$f":"VLOOKUP(Table_Data_Table_13[[#This Row],[Item ID]],Analysis_Table,17,FALSE)","v":{"$error":"#N/A"}},{"$f":"VLOOKUP(Table_Data_Table_13[[#This Row],[Item ID]],Analysis_Table,18,FALSE)","v":{"$error":"#N/A"}},{"$f":"VLOOKUP(Table_Data_Table_13[[#This Row],[Item ID]],Analysis_Table,19,FALSE)","v":{"$error":"#N/A"}},null,null,1]
["",null,null,null,null,null,null,null,null,0,null,null,null,{"$f":"VLOOKUP(Table_Data_Table_13[[#This Row],[Item ID]],Analysis_Table,8,FALSE)","v":{"$error":"#N/A"}},{"$f":"VLOOKUP(Table_Data_Table_13[[#This Row],[Item ID]],Analysis_Table,9,FALSE)","v":{"$error":"#N/A"}},{"$f":"VLOOKUP(Table_Data_Table_13[[#This Row],[Item ID]],Analysis_Table,10,FALSE)","v":{"$error":"#N/A"}},{"$f":"VLOOKUP(Table_Data_Table_13[[#This Row],[Item ID]],Analysis_Table,11,FALSE)","v":{"$error":"#N/A"}},{"$f":"VLOOKUP(Table_Data_Table_13[[#This Row],[Item ID]],Analysis_Table,12,FALSE)","v":{"$error":"#N/A"}},{"$f":"VLOOKUP(Table_Data_Table_13[[#This Row],[Item ID]],Analysis_Table,13,FALSE)","v":{"$error":"#N/A"}},{"$f":"VLOOKUP(Table_Data_Table_13[[#This Row],[Item ID]],Analysis_Table,14,FALSE)","v":{"$error":"#N/A"}},{"$f":"VLOOKUP(Table_Data_Table_13[[#This Row],[Item ID]],Analysis_Table,15,FALSE)","v":{"$error":"#N/A"}},{"$f":"VLOOKUP(Table_Data_Table_13[[#This Row],[Item ID]],Analysis_Table,16,FALSE)","v":{"$error":"#N/A"}},{"$f":"VLOOKUP(Table_Data_Table_13[[#This Row],[Item ID]],Analysis_Table,17,FALSE)","v":{"$error":"#N/A"}},{"$f":"VLOOKUP(Table_Data_Table_13[[#This Row],[Item ID]],Analysis_Table,18,FALSE)","v":{"$error":"#N/A"}},{"$f":"VLOOKUP(Table_Data_Table_13[[#This Row],[Item ID]],Analysis_Table,19,FALSE)","v":{"$error":"#N/A"}},null,null,1]
["",null,null,null,null,null,null,null,null,0,null,null,null,{"$f":"VLOOKUP(Table_Data_Table_13[[#This Row],[Item ID]],Analysis_Table,8,FALSE)","v":{"$error":"#N/A"}},{"$f":"VLOOKUP(Table_Data_Table_13[[#This Row],[Item ID]],Analysis_Table,9,FALSE)","v":{"$error":"#N/A"}},{"$f":"VLOOKUP(Table_Data_Table_13[[#This Row],[Item ID]],Analysis_Table,10,FALSE)","v":{"$error":"#N/A"}},{"$f":"VLOOKUP(Table_Data_Table_13[[#This Row],[Item ID]],Analysis_Table,11,FALSE)","v":{"$error":"#N/A"}},{"$f":"VLOOKUP(Table_Data_Table_13[[#This Row],[Item ID]],Analysis_Table,12,FALSE)","v":{"$error":"#N/A"}},{"$f":"VLOOKUP(Table_Data_Table_13[[#This Row],[Item ID]],Analysis_Table,13,FALSE)","v":{"$error":"#N/A"}},{"$f":"VLOOKUP(Table_Data_Table_13[[#This Row],[Item ID]],Analysis_Table,14,FALSE)","v":{"$error":"#N/A"}},{"$f":"VLOOKUP(Table_Data_Table_13[[#This Row],[Item ID]],Analysis_Table,15,FALSE)","v":{"$error":"#N/A"}},{"$f":"VLOOKUP(Table_Data_Table_13[[#This Row],[Item ID]],Analysis_Table,16,FALSE)","v":{"$error":"#N/A"}},{"$f":"VLOOKUP(Table_Data_Table_13[[#This Row],[Item ID]],Analysis_Table,17,FALSE)","v":{"$error":"#N/A"}},{"$f":"VLOOKUP(Table_Data_Table_13[[#This Row],[Item ID]],Analysis_Table,18,FALSE)","v":{"$error":"#N/A"}},{"$f":"VLOOKUP(Table_Data_Table_13[[#This Row],[Item ID]],Analysis_Table,19,FALSE)","v":{"$error":"#N/A"}},null,null,1]
["",null,null,null,null,null,null,null,null,0,null,null,null,{"$f":"VLOOKUP(Table_Data_Table_13[[#This Row],[Item ID]],Analysis_Table,8,FALSE)","v":{"$error":"#N/A"}},{"$f":"VLOOKUP(Table_Data_Table_13[[#This Row],[Item ID]],Analysis_Table,9,FALSE)","v":{"$error":"#N/A"}},{"$f":"VLOOKUP(Table_Data_Table_13[[#This Row],[Item ID]],Analysis_Table,10,FALSE)","v":{"$error":"#N/A"}},{"$f":"VLOOKUP(Table_Data_Table_13[[#This Row],[Item ID]],Analysis_Table,11,FALSE)","v":{"$error":"#N/A"}},{"$f":"VLOOKUP(Table_Data_Table_13[[#This Row],[Item ID]],Analysis_Table,12,FALSE)","v":{"$error":"#N/A"}},{"$f":"VLOOKUP(Table_Data_Table_13[[#This Row],[Item ID]],Analysis_Table,13,FALSE)","v":{"$error":"#N/A"}},{"$f":"VLOOKUP(Table_Data_Table_13[[#This Row],[Item ID]],Analysis_Table,14,FALSE)","v":{"$error":"#N/A"}},{"$f":"VLOOKUP(Table_Data_Table_13[[#This Row],[Item ID]],Analysis_Table,15,FALSE)","v":{"$error":"#N/A"}},{"$f":"VLOOKUP(Table_Data_Table_13[[#This Row],[Item ID]],Analysis_Table,16,FALSE)","v":{"$error":"#N/A"}},{"$f":"VLOOKUP(Table_Data_Table_13[[#This Row],[Item ID]],Analysis_Table,17,FALSE)","v":{"$error":"#N/A"}},{"$f":"VLOOKUP(Table_Data_Table_13[[#This Row],[Item ID]],Analysis_Table,18,FALSE)","v":{"$error":"#N/A"}},{"$f":"VLOOKUP(Table_Data_Table_13[[#This Row],[Item ID]],Analysis_Table,19,FALSE)","v":{"$error":"#N/A"}},null,null,1]
["",null,null,null,null,null,null,null,null,0,null,null,null,{"$f":"VLOOKUP(Table_Data_Table_13[[#This Row],[Item ID]],Analysis_Table,8,FALSE)","v":{"$error":"#N/A"}},{"$f":"VLOOKUP(Table_Data_Table_13[[#This Row],[Item ID]],Analysis_Table,9,FALSE)","v":{"$error":"#N/A"}},{"$f":"VLOOKUP(Table_Data_Table_13[[#This Row],[Item ID]],Analysis_Table,10,FALSE)","v":{"$error":"#N/A"}},{"$f":"VLOOKUP(Table_Data_Table_13[[#This Row],[Item ID]],Analysis_Table,11,FALSE)","v":{"$error":"#N/A"}},{"$f":"VLOOKUP(Table_Data_Table_13[[#This Row],[Item ID]],Analysis_Table,12,FALSE)","v":{"$error":"#N/A"}},{"$f":"VLOOKUP(Table_Data_Table_13[[#This Row],[Item ID]],Analysis_Table,13,FALSE)","v":{"$error":"#N/A"}},{"$f":"VLOOKUP(Table_Data_Table_13[[#This Row],[Item ID]],Analysis_Table,14,FALSE)","v":{"$error":"#N/A"}},{"$f":"VLOOKUP(Table_Data_Table_13[[#This Row],[Item ID]],Analysis_Table,15,FALSE)","v":{"$error":"#N/A"}},{"$f":"VLOOKUP(Table_Data_Table_13[[#This Row],[Item ID]],Analysis_Table,16,FALSE)","v":{"$error":"#N/A"}},{"$f":"VLOOKUP(Table_Data_Table_13[[#This Row],[Item ID]],Analysis_Table,17,FALSE)","v":{"$error":"#N/A"}},{"$f":"VLOOKUP(Table_Data_Table_13[[#This Row],[Item ID]],Analysis_Table,18,FALSE)","v":{"$error":"#N/A"}},{"$f":"VLOOKUP(Table_Data_Table_13[[#This Row],[Item ID]],Analysis_Table,19,FALSE)","v":{"$error":"#N/A"}},null,null,1]

{"sheet":"Not Used Sales","index":10,"n_rows":501,"n_cols":29,"rows_kept":501,"cut":false,"hidden":false,"merged":[]}
["Item ID","Valuation Method","Exclusion\nComment","Parcel Number","Address","Sale Date","Sale Price","Conf.","Liber/ Page","Total Acre","Total Sq Ft","Total Front Ft","ROW (Sq Ft)","Imprvmts Value","Land\nResidual","Indicated\nLB Ratio","Resid\nAcre","Resid\nSq Ft","Unadjust\n$ / acre","Unadjust\n$ / Sq Ft","Months To\nMid-Point","Time\nAdjust","Adjusted\nSale Price","Adjust $\nPer Acre","Adjust $\nPer Sq Ft","Adjust $\nPer Front Ft","Other Parcels in Sale","Comments","Use? 1=Yes, 0=No"]
["5-26Vac4848-325","Vacant",{"$f":"VLOOKUP(Table_Data_Table_135[[#This Row],[Item ID]],Analysis_Table,20,FALSE)","v":""},"060-031-000-115-26","2615 S State Rd",44848,325000,"n","672/8795",1.5580000000000001,67866.48,202.64,10149.480000000001,0,{"$f":"VLOOKUP(Table_Data_Table_135[[#This Row],[Item ID]],Analysis_Table,8,FALSE)","v":325000},{"$f":"VLOOKUP(Table_Data_Table_135[[#This Row],[Item ID]],Analysis_Table,9,FALSE)","v":"N/A"},{"$f":"VLOOKUP(Table_Data_Table_135[[#This Row],[Item ID]],Analysis_Table,10,FALSE)","v":1.325},{"$f":"VLOOKUP(Table_Data_Table_135[[#This Row],[Item ID]],Analysis_Table,11,FALSE)","v":57716.999999999993},{"$f":"VLOOKUP(Table_Data_Table_135[[#This Row],[Item ID]],Analysis_Table,12,FALSE)","v":245283.01886792455},{"$f":"VLOOKUP(Table_Data_Table_135[[#This Row],[Item ID]],Analysis_Table,13,FALSE)","v":5.63},{"$f":"VLOOKUP(Table_Data_Table_135[[#This Row],[Item ID]],Analysis_Table,14,FALSE)","v":6},{"$f":"VLOOKUP(Table_Data_Table_135[[#This Row],[Item ID]],Analysis_Table,15,FALSE)","v":0},{"$f":"VLOOKUP(Table_Data_Table_135[[#This Row],[Item ID]],Analysis_Table,16,FALSE)","v":325000},{"$f":"VLOOKUP(Table_Data_Table_135[[#This Row],[Item ID]],Analysis_Table,17,FALSE)","v":245283.01886792455},{"$f":"VLOOKUP(Table_Data_Table_135[[#This Row],[Item ID]],Analysis_Table,18,FALSE)","v":5.63},{"$f":"VLOOKUP(Table_Data_Table_135[[#This Row],[Item ID]],Analysis_Table,19,FALSE)","v":1603.8294512435848},null,null,1]
["0-01Abs4861-122","Abstraction",{"$f":"VLOOKUP(Table_Data_Table_135[[#This Row],[Item ID]],Analysis_Table,20,FALSE)","v":""},"300-110-000-070-01","1320 E Grand River Ave",44861,1225000,"n","672/9977",1,43560,144,0,1021225,{"$f":"VLOOKUP(Table_Data_Table_135[[#This Row],[Item ID]],Analysis_Table,8,FALSE)","v":203775},{"$f":"VLOOKUP(Table_Data_Table_135[[#This Row],[Item ID]],Analysis_Table,9,FALSE)","v":0.16634693877551021},{"$f":"VLOOKUP(Table_Data_Table_135[[#This Row],[Item ID]],Analysis_Table,10,FALSE)","v":1},{"$f":"VLOOKUP(Table_Data_Table_135[[#This Row],[Item ID]],Analysis_Table,11,FALSE)","v":43560},{"$f":"VLOOKUP(Table_Data_Table_135[[#This Row],[Item ID]],Analysis_Table,12,FALSE)","v":203775},{"$f":"VLOOKUP(Table_Data_Table_135[[#This Row],[Item ID]],Analysis_Table,13,FALSE)","v":4.68},{"$f":"VLOOKUP(Table_Data_Table_135[[#This Row],[Item ID]],Analysis_Table,14,FALSE)","v":5},{"$f":"VLOOKUP(Table_Data_Table_135[[#This Row],[Item ID]],Analysis_Table,15,FALSE)","v":0},{"$f":"VLOOKUP(Table_Data_Table_135[[#This Row],[Item ID]],Analysis_Table,16,FALSE)","v":203775},{"$f":"VLOOKUP(Table_Data_Table_135[[#This Row],[Item ID]],Analysis_Table,17,FALSE)","v":203775},{"$f":"VLOOKUP(Table_Data_Table_135[[#This Row],[Item ID]],Analysis_Table,18,FALSE)","v":4.68},{"$f":"VLOOKUP(Table_Data_Table_135[[#This Row],[Item ID]],Analysis_Table,19,FALSE)","v":1415.1041666666667},null,null,1]
["0-01All4861-122","Allocation",{"$f":"VLOOKUP(Table_Data_Table_135[[#This Row],[Item ID]],Analysis_Table,20,FALSE)","v":""},"300-110-000-070-01","1320 E Grand River Ave",44861,1225000,"n","672/9977",1,43560,144,0,0,{"$f":"VLOOKUP(Table_Data_Table_135[[#This Row],[Item ID]],Analysis_Table,8,FALSE)","v":495267.5},{"$f":"VLOOKUP(Table_Data_Table_135[[#This Row],[Item ID]],Analysis_Table,9,FALSE)","v":0.40429999999999999},{"$f":"VLOOKUP(Table_Data_Table_135[[#This Row],[Item ID]],Analysis_Table,10,FALSE)","v":1},{"$f":"VLOOKUP(Table_Data_Table_135[[#This Row],[Item ID]],Analysis_Table,11,FALSE)","v":43560},{"$f":"VLOOKUP(Table_Data_Table_135[[#This Row],[Item ID]],Analysis_Table,12,FALSE)","v":495267.5},{"$f":"VLOOKUP(Table_Data_Table_135[[#This Row],[Item ID]],Analysis_Table,13,FALSE)","v":11.37},{"$f":"VLOOKUP(Table_Data_Table_135[[#This Row],[Item ID]],Analysis_Table,14,FALSE)","v":5},{"$f":"VLOOKUP(Table_Data_Table_135[[#This Row],[Item ID]],Analysis_Table,15,FALSE)","v":0},{"$f":"VLOOKUP(Table_Data_Table_135[[#This Row],[Item ID]],Analysis_Table,16,FALSE)","v":495267.5},{"$f":"VLOOKUP(Table_Data_Table_135[[#This Row],[Item ID]],Analysis_Table,17,FALSE)","v":495267.5},{"$f":"VLOOKUP(Table_Data_Table_135[[#This Row],[Item ID]],Analysis_Table,18,FALSE)","v":11.37},{"$f":"VLOOKUP(Table_Data_Table_135[[#This Row],[Item ID]],Analysis_Table,19,FALSE)","v":3439.3576388888887},null,null,1]
["0-70Vac2138-450","Vacant",{"$f":"VLOOKUP(Table_Data_Table_135[[#This Row],[Item ID]],Analysis_Table,20,FALSE)","v":""},"34-010-036-000-160-70","M-66",42138,450000,"n","637/8662",1.9710000000000001,85856.760000000009,255,7622.9999999999991,0,{"$f":"VLOOKUP(Table_Data_Table_135[[#This Row],[Item ID]],Analysis_Table,8,FALSE)","v":450000},{"$f":"VLOOKUP(Table_Data_Table_135[[#This Row],[Item ID]],Analysis_Table,9,FALSE)","v":"N/A"},{"$f":"VLOOKUP(Table_Data_Table_135[[#This Row],[Item ID]],Analysis_Table,10,FALSE)","v":1.796},{"$f":"VLOOKUP(Table_Data_Table_135[[#This Row],[Item ID]],Analysis_Table,11,FALSE)","v":78233.760000000009},{"$f":"VLOOKUP(Table_Data_Table_135[[#This Row],[Item ID]],Analysis_Table,12,FALSE)","v":250556.79287305122},{"$f":"VLOOKUP(Table_Data_Table_135[[#This Row],[Item ID]],Analysis_Table,13,FALSE)","v":5.75},{"$f":"VLOOKUP(Table_Data_Table_135[[#This Row],[Item ID]],Analysis_Table,14,FALSE)","v":95},{"$f":"VLOOKUP(Table_Data_Table_135[[#This Row],[Item ID]],Analysis_Table,15,FALSE)","v":0.14892206766682844},{"$f":"VLOOKUP(Table_Data_Table_135[[#This Row],[Item ID]],Analysis_Table,16,FALSE)","v":517014.93045007274},{"$f":"VLOOKUP(Table_Data_Table_135[[#This Row],[Item ID]],Analysis_Table,17,FALSE)","v":287870.22853567527},{"$f":"VLOOKUP(Table_Data_Table_135[[#This Row],[Item ID]],Analysis_Table,18,FALSE)","v":6.61},{"$f":"VLOOKUP(Table_Data_Table_135[[#This Row],[Item ID]],Analysis_Table,19,FALSE)","v":2027.5095311767559},null,null,1]
["0-21Vac4006-650","Vacant",{"$f":"VLOOKUP(Table_Data_Table_135[[#This Row],[Item ID]],Analysis_Table,20,FALSE)","v":""},"34-010-036-000-170-21","2598 S State Rd",44006,650000,"n","660/1614",2.198,95744.88,295,18643.68,0,{"$f":"VLOOKUP(Table_Data_Table_135[[#This Row],[Item ID]],Analysis_Table,8,FALSE)","v":650000},{"$f":"VLOOKUP(Table_Data_Table_135[[#This Row],[Item ID]],Analysis_Table,9,FALSE)","v":"N/A"},{"$f":"VLOOKUP(Table_Data_Table_135[[#This Row],[Item ID]],Analysis_Table,10,FALSE)","v":1.77},{"$f":"VLOOKUP(Table_Data_Table_135[[#This Row],[Item ID]],Analysis_Table,11,FALSE)","v":77101.200000000012},{"$f":"VLOOKUP(Table_Data_Table_135[[#This Row],[Item ID]],Analysis_Table,12,FALSE)","v":367231.63841807912},{"$f":"VLOOKUP(Table_Data_Table_135[[#This Row],[Item ID]],Analysis_Table,13,FALSE)","v":8.43},{"$f":"VLOOKUP(Table_Data_Table_135[[#This Row],[Item ID]],Analysis_Table,14,FALSE)","v":33},{"$f":"VLOOKUP(Table_Data_Table_135[[#This Row],[Item ID]],Analysis_Table,15,FALSE)","v":5.1730823505319351E-2},{"$f":"VLOOKUP(Table_Data_Table_135[[#This Row],[Item ID]],Analysis_Table,16,FALSE)","v":683625.03527845757},{"$f":"VLOOKUP(Table_Data_Table_135[[#This Row],[Item ID]],Analysis_Table,17,FALSE)","v":386228.83349065401},{"$f":"VLOOKUP(Table_Data_Table_135[[#This Row],[Item ID]],Analysis_Table,18,FALSE)","v":8.8699999999999992},{"$f":"VLOOKUP(Table_Data_Table_135[[#This Row],[Item ID]],Analysis_Table,19,FALSE)","v":2317.3730009439241},null,null,1]
["5-12Vac-1391-595","Vacant",{"$f":"VLOOKUP(Table_Data_Table_135[[#This Row],[Item ID]],Analysis_Table,20,FALSE)","v":""},"34-011-001-000-085-12","M-66",38609,595000,"n","591/7047",4.4610000000000003,194321.16,335,0,0,{"$f":"VLOOKUP(Table_Data_Table_135[[#This Row],[Item ID]],Analysis_Table,8,FALSE)","v":595000},{"$f":"VLOOKUP(Table_Data_Table_135[[#This Row],[Item ID]],Analysis_Table,9,FALSE)","v":"N/A"},{"$f":"VLOOKUP(Table_Data_Table_135[[#This Row],[Item ID]],Analysis_Table,10,FALSE)","v":4.4610000000000003},{"$f":"VLOOKUP(Table_Data_Table_135[[#This Row],[Item ID]],Analysis_Table,11,FALSE)","v":194321.16},{"$f":"VLOOKUP(Table_Data_Table_135[[#This Row],[Item ID]],Analysis_Table,12,FALSE)","v":133378.16633041919},{"$f":"VLOOKUP(Table_Data_Table_135[[#This Row],[Item ID]],Analysis_Table,13,FALSE)","v":3.06},{"$f":"VLOOKUP(Table_Data_Table_135[[#This Row],[Item ID]],Analysis_Table,14,FALSE)","v":211},{"$f":"VLOOKUP(Table_Data_Table_135[[#This Row],[Item ID]],Analysis_Table,15,FALSE)","v":0.33076375029158739},{"$f":"VLOOKUP(Table_Data_Table_135[[#This Row],[Item ID]],Analysis_Table,16,FALSE)","v":791804.43142349448},{"$f":"VLOOKUP(Table_Data_Table_135[[#This Row],[Item ID]],Analysis_Table,17,FALSE)","v":177494.82883288377},{"$f":"VLOOKUP(Table_Data_Table_135[[#This Row],[Item ID]],Analysis_Table,18,FALSE)","v":4.07},{"$f":"VLOOKUP(Table_Data_Table_135[[#This Row],[Item ID]],Analysis_Table,19,FALSE)","v":2363.5953176820731},null,null,1]
["5-42Vac-1340-485","Vacant",{"$f":"VLOOKUP(Table_Data_Table_135[[#This Row],[Item ID]],Analysis_Table,20,FALSE)","v":""},"34-011-001-000-085-42","M-66",38660,485000,"n","592/9829",1.87,81457.200000000012,323.05,0,0,{"$f":"VLOOKUP(Table_Data_Table_135[[#This Row],[Item ID]],Analysis_Table,8,FALSE)","v":485000},{"$f":"VLOOKUP(Table_Data_Table_135[[#This Row],[Item ID]],Analysis_Table,9,FALSE)","v":"N/A"},{"$f":"VLOOKUP(Table_Data_Table_135[[#This Row],[Item ID]],Analysis_Table,10,FALSE)","v":1.87},{"$f":"VLOOKUP(Table_Data_Table_135[[#This Row],[Item ID]],Analysis_Table,11,FALSE)","v":81457.200000000012},{"$f":"VLOOKUP(Table_Data_Table_135[[#This Row],[Item ID]],Analysis_Table,12,FALSE)","v":259358.28877005345},{"$f":"VLOOKUP(Table_Data_Table_135[[#This Row],[Item ID]],Analysis_Table,13,FALSE)","v":5.95},{"$f":"VLOOKUP(Table_Data_Table_135[[#This Row],[Item ID]],Analysis_Table,14,FALSE)","v":209},{"$f":"VLOOKUP(Table_Data_Table_135[[#This Row],[Item ID]],Analysis_Table,15,FALSE)","v":0.32762854886702258},{"$f":"VLOOKUP(Table_Data_Table_135[[#This Row],[Item ID]],Analysis_Table,16,FALSE)","v":643899.84620050597},{"$f":"VLOOKUP(Table_Data_Table_135[[#This Row],[Item ID]],Analysis_Table,17,FALSE)","v":344331.4685564203},{"$f":"VLOOKUP(Table_Data_Table_135[[#This Row],[Item ID]],Analysis_Table,18,FALSE)","v":7.9},{"$f":"VLOOKUP(Table_Data_Table_135[[#This Row],[Item ID]],Analysis_Table,19,FALSE)","v":1993.1894325971396},null,null,1]
["5-00Abs1563-200","Abstraction",{"$f":"VLOOKUP(Table_Data_Table_135[[#This Row],[Item ID]],Analysis_Table,20,FALSE)","v":""},"34-060-006-000-095-00","2260 M-66",41563,200000,"n","631/8714",1.214,52881.84,235,11750,33808,{"$f":"VLOOKUP(Table_Data_Table_135[[#This Row],[Item ID]],Analysis_Table,8,FALSE)","v":166192},{"$f":"VLOOKUP(Table_Data_Table_135[[#This Row],[Item ID]],Analysis_Table,9,FALSE)","v":0.83096000000000003},{"$f":"VLOOKUP(Table_Data_Table_135[[#This Row],[Item ID]],Analysis_Table,10,FALSE)","v":0.94399999999999995},{"$f":"VLOOKUP(Table_Data_Table_135[[#This Row],[Item ID]],Analysis_Table,11,FALSE)","v":41131.839999999997},{"$f":"VLOOKUP(Table_Data_Table_135[[#This Row],[Item ID]],Analysis_Table,12,FALSE)","v":176050.84745762713},{"$f":"VLOOKUP(Table_Data_Table_135[[#This Row],[Item ID]],Analysis_Table,13,FALSE)","v":4.04},{"$f":"VLOOKUP(Table_Data_Table_135[[#This Row],[Item ID]],Analysis_Table,14,FALSE)","v":114},{"$f":"VLOOKUP(Table_Data_Table_135[[#This Row],[Item ID]],Analysis_Table,15,FALSE)","v":0.17870648120019414},{"$f":"VLOOKUP(Table_Data_Table_135[[#This Row],[Item ID]],Analysis_Table,16,FALSE)","v":195891.58752362267},{"$f":"VLOOKUP(Table_Data_Table_135[[#This Row],[Item ID]],Analysis_Table,17,FALSE)","v":207512.27491909181},{"$f":"VLOOKUP(Table_Data_Table_135[[#This Row],[Item ID]],Analysis_Table,18,FALSE)","v":4.76},{"$f":"VLOOKUP(Table_Data_Table_135[[#This Row],[Item ID]],Analysis_Table,19,FALSE)","v":833.58122350477731},null,null,1]
["5-00All1563-200","Allocation",{"$f":"VLOOKUP(Table_Data_Table_135[[#This Row],[Item ID]],Analysis_Table,20,FALSE)","v":""},"34-060-006-000-095-00","2260 M-66",41563,200000,"n","631/8714",1.214,52881.84,235,11750,33808,{"$f":"VLOOKUP(Table_Data_Table_135[[#This Row],[Item ID]],Analysis_Table,8,FALSE)","v":80860},{"$f":"VLOOKUP(Table_Data_Table_135[[#This Row],[Item ID]],Analysis_Table,9,FALSE)","v":0.40429999999999999},{"$f":"VLOOKUP(Table_Data_Table_135[[#This Row],[Item ID]],Analysis_Table,10,FALSE)","v":0.94399999999999995},{"$f":"VLOOKUP(Table_Data_Table_135[[#This Row],[Item ID]],Analysis_Table,11,FALSE)","v":41131.839999999997},{"$f":"VLOOKUP(Table_Data_Table_135[[#This Row],[Item ID]],Analysis_Table,12,FALSE)","v":85656.779661016961},{"$f":"VLOOKUP(Table_Data_Table_135[[#This Row],[Item ID]],Analysis_Table,13,FALSE)","v":1.97},{"$f":"VLOOKUP(Table_Data_Table_135[[#This Row],[Item ID]],Analysis_Table,14,FALSE)","v":114},{"$f":"VLOOKUP(Table_Data_Table_135[[#This Row],[Item ID]],Analysis_Table,15,FALSE)","v":0.17870648120019414},{"$f":"VLOOKUP(Table_Data_Table_135[[#This Row],[Item ID]],Analysis_Table,16,FALSE)","v":95310.2060698477},{"$f":"VLOOKUP(Table_Data_Table_135[[#This Row],[Item ID]],Analysis_Table,17,FALSE)","v":100964.20134517766},{"$f":"VLOOKUP(Table_Data_Table_135[[#This Row],[Item ID]],Analysis_Table,18,FALSE)","v":2.3199999999999998},{"$f":"VLOOKUP(Table_Data_Table_135[[#This Row],[Item ID]],Analysis_Table,19,FALSE)","v":405.57534497807529},null,null,1]
["5-11Abs3250-129","Abstraction",{"$f":"VLOOKUP(Table_Data_Table_135[[#This Row],[Item ID]],Analysis_Table,20,FALSE)","v":""},"34-060-031-000-045-11","2541 S State Rd",43250,1293750,"n","650/5240",3.76,163785.59999999998,522.08000000000004,25961.759999999998,803414,{"$f":"VLOOKUP(Table_Data_Table_135[[#This Row],[Item ID]],Analysis_Table,8,FALSE)","v":490336},{"$f":"VLOOKUP(Table_Data_Table_135[[#This Row],[Item ID]],Analysis_Table,9,FALSE)","v":0.37900367149758452},{"$f":"VLOOKUP(Table_Data_Table_135[[#This Row],[Item ID]],Analysis_Table,10,FALSE)","v":3.1640000000000001},{"$f":"VLOOKUP(Table_Data_Table_135[[#This Row],[Item ID]],Analysis_Table,11,FALSE)","v":137823.83999999997},{"$f":"VLOOKUP(Table_Data_Table_135[[#This Row],[Item ID]],Analysis_Table,12,FALSE)","v":154973.45132743364},{"$f":"VLOOKUP(Table_Data_Table_135[[#This Row],[Item ID]],Analysis_Table,13,FALSE)","v":3.56},{"$f":"VLOOKUP(Table_Data_Table_135[[#This Row],[Item ID]],Analysis_Table,14,FALSE)","v":58},{"$f":"VLOOKUP(Table_Data_Table_135[[#This Row],[Item ID]],Analysis_Table,15,FALSE)","v":9.0920841312379472E-2},{"$f":"VLOOKUP(Table_Data_Table_135[[#This Row],[Item ID]],Analysis_Table,16,FALSE)","v":534917.76164574688},{"$f":"VLOOKUP(Table_Data_Table_135[[#This Row],[Item ID]],Analysis_Table,17,FALSE)","v":169063.76790320696},{"$f":"VLOOKUP(Table_Data_Table_135[[#This Row],[Item ID]],Analysis_Table,18,FALSE)","v":3.88},{"$f":"VLOOKUP(Table_Data_Table_135[[#This Row],[Item ID]],Analysis_Table,19,FALSE)","v":1024.5896445865515},"34-060-031-000-045-11",null,1]
["5-20Abs4559-182","Abstraction",{"$f":"VLOOKUP(Table_Data_Table_135[[#This Row],[Item ID]],Analysis_Table,20,FALSE)","v":""},"34-060-031-000-045-20","2331 S State Rd",44559,1825000,"n","669/1978",2.7149999999999999,118265.4,222.8,11325.6,1228290,{"$f":"VLOOKUP(Table_Data_Table_135[[#This Row],[Item ID]],Analysis_Table,8,FALSE)","v":596710},{"$f":"VLOOKUP(Table_Data_Table_135[[#This Row],[Item ID]],Analysis_Table,9,FALSE)","v":0.32696438356164381},{"$f":"VLOOKUP(Table_Data_Table_135[[#This Row],[Item ID]],Analysis_Table,10,FALSE)","v":2.4550000000000001},{"$f":"VLOOKUP(Table_Data_Table_135[[#This Row],[Item ID]],Analysis_Table,11,FALSE)","v":106939.79999999999},{"$f":"VLOOKUP(Table_Data_Table_135[[#This Row],[Item ID]],Analysis_Table,12,FALSE)","v":243059.06313645621},{"$f":"VLOOKUP(Table_Data_Table_135[[#This Row],[Item ID]],Analysis_Table,13,FALSE)","v":5.58},{"$f":"VLOOKUP(Table_Data_Table_135[[#This Row],[Item ID]],Analysis_Table,14,FALSE)","v":15},{"$f":"VLOOKUP(Table_Data_Table_135[[#This Row],[Item ID]],Analysis_Table,15,FALSE)","v":2.3514010684236069E-2},{"$f":"VLOOKUP(Table_Data_Table_135[[#This Row],[Item ID]],Analysis_Table,16,FALSE)","v":610741.04531539045},{"$f":"VLOOKUP(Table_Data_Table_135[[#This Row],[Item ID]],Analysis_Table,17,FALSE)","v":248774.35654394721},{"$f":"VLOOKUP(Table_Data_Table_135[[#This Row],[Item ID]],Analysis_Table,18,FALSE)","v":5.71},{"$f":"VLOOKUP(Table_Data_Table_135[[#This Row],[Item ID]],Analysis_Table,19,FALSE)","v":2741.2075642522013},null,null,1]
["5-20All4559-182","Allocation",{"$f":"VLOOKUP(Table_Data_Table_135[[#This Row],[Item ID]],Analysis_Table,20,FALSE)","v":""},"34-060-031-000-045-20","2331 S State Rd",44559,1825000,"n","669/1978",2.7149999999999999,118265.4,222.8,11325.6,1228290,{"$f":"VLOOKUP(Table_Data_Table_135[[#This Row],[Item ID]],Analysis_Table,8,FALSE)","v":737847.5},{"$f":"VLOOKUP(Table_Data_Table_135[[#This Row],[Item ID]],Analysis_Table,9,FALSE)","v":0.40429999999999999},{"$f":"VLOOKUP(Table_Data_Table_135[[#This Row],[Item ID]],Analysis_Table,10,FALSE)","v":2.4550000000000001},{"$f":"VLOOKUP(Table_Data_Table_135[[#This Row],[Item ID]],Analysis_Table,11,FALSE)","v":106939.79999999999},{"$f":"VLOOKUP(Table_Data_Table_135[[#This Row],[Item ID]],Analysis_Table,12,FALSE)","v":300548.87983706722},{"$f":"VLOOKUP(Table_Data_Table_135[[#This Row],[Item ID]],Analysis_Table,13,FALSE)","v":6.9},{"$f":"VLOOKUP(Table_Data_Table_135[[#This Row],[Item ID]],Analysis_Table,14,FALSE)","v":15},{"$f":"VLOOKUP(Table_Data_Table_135[[#This Row],[Item ID]],Analysis_Table,15,FALSE)","v":2.3514010684236069E-2},{"$f":"VLOOKUP(Table_Data_Table_135[[#This Row],[Item ID]],Analysis_Table,16,FALSE)","v":755197.25399833685},{"$f":"VLOOKUP(Table_Data_Table_135[[#This Row],[Item ID]],Analysis_Table,17,FALSE)","v":307615.98940869118},{"$f":"VLOOKUP(Table_Data_Table_135[[#This Row],[Item ID]],Analysis_Table,18,FALSE)","v":7.06},{"$f":"VLOOKUP(Table_Data_Table_135[[#This Row],[Item ID]],Analysis_Table,19,FALSE)","v":3389.5747486460359},null,null,1]
["0-01Vac4434-105","Vacant",{"$f":"VLOOKUP(Table_Data_Table_135[[#This Row],[Item ID]],Analysis_Table,20,FALSE)","v":""},"34-060-031-000-140-01","2983 S State Rd",44434,105000,"n","667/7365",1,43560,120,7927.92,0,{"$f":"VLOOKUP(Table_Data_Table_135[[#This Row],[Item ID]],Analysis_Table,8,FALSE)","v":105000},{"$f":"VLOOKUP(Table_Data_Table_135[[#This Row],[Item ID]],Analysis_Table,9,FALSE)","v":"N/A"},{"$f":"VLOOKUP(Table_Data_Table_135[[#This Row],[Item ID]],Analysis_Table,10,FALSE)","v":0.81799999999999995},{"$f":"VLOOKUP(Table_Data_Table_135[[#This Row],[Item ID]],Analysis_Table,11,FALSE)","v":35632.080000000002},{"$f":"VLOOKUP(Table_Data_Table_135[[#This Row],[Item ID]],Analysis_Table,12,FALSE)","v":128361.85819070906},{"$f":"VLOOKUP(Table_Data_Table_135[[#This Row],[Item ID]],Analysis_Table,13,FALSE)","v":2.95},{"$f":"VLOOKUP(Table_Data_Table_135[[#This Row],[Item ID]],Analysis_Table,14,FALSE)","v":19},{"$f":"VLOOKUP(Table_Data_Table_135[[#This Row],[Item ID]],Analysis_Table,15,FALSE)","v":2.9784413533365688E-2},{"$f":"VLOOKUP(Table_Data_Table_135[[#This Row],[Item ID]],Analysis_Table,16,FALSE)","v":108127.36342100339},{"$f":"VLOOKUP(Table_Data_Table_135[[#This Row],[Item ID]],Analysis_Table,17,FALSE)","v":132185.04085697237},{"$f":"VLOOKUP(Table_Data_Table_135[[#This Row],[Item ID]],Analysis_Table,18,FALSE)","v":3.03},{"$f":"VLOOKUP(Table_Data_Table_135[[#This Row],[Item ID]],Analysis_Table,19,FALSE)","v":901.06136184169497},null,null,1]
["5-10Vac-1032-300","Vacant",{"$f":"VLOOKUP(Table_Data_Table_135[[#This Row],[Item ID]],Analysis_Table,20,FALSE)","v":""},"34-060-140-000-005-10","M-66",38968,300000,"n","598/8270",1.446,62987.759999999995,300,0,0,{"$f":"VLOOKUP(Table_Data_Table_135[[#This Row],[Item ID]],Analysis_Table,8,FALSE)","v":300000},{"$f":"VLOOKUP(Table_Data_Table_135[[#This Row],[Item ID]],Analysis_Table,9,FALSE)","v":"N/A"},{"$f":"VLOOKUP(Table_Data_Table_135[[#This Row],[Item ID]],Analysis_Table,10,FALSE)","v":1.446},{"$f":"VLOOKUP(Table_Data_Table_135[[#This Row],[Item ID]],Analysis_Table,11,FALSE)","v":62987.759999999995},{"$f":"VLOOKUP(Table_Data_Table_135[[#This Row],[Item ID]],Analysis_Table,12,FALSE)","v":207468.87966804981},{"$f":"VLOOKUP(Table_Data_Table_135[[#This Row],[Item ID]],Analysis_Table,13,FALSE)","v":4.76},{"$f":"VLOOKUP(Table_Data_Table_135[[#This Row],[Item ID]],Analysis_Table,14,FALSE)","v":199},{"$f":"VLOOKUP(Table_Data_Table_135[[#This Row],[Item ID]],Analysis_Table,15,FALSE)","v":0.31195254174419851},{"$f":"VLOOKUP(Table_Data_Table_135[[#This Row],[Item ID]],Analysis_Table,16,FALSE)","v":393585.76252325956},{"$f":"VLOOKUP(Table_Data_Table_135[[#This Row],[Item ID]],Analysis_Table,17,FALSE)","v":272189.32401331922},{"$f":"VLOOKUP(Table_Data_Table_135[[#This Row],[Item ID]],Analysis_Table,18,FALSE)","v":6.25},{"$f":"VLOOKUP(Table_Data_Table_135[[#This Row],[Item ID]],Analysis_Table,19,FALSE)","v":1311.9525417441985},null,null,1]
["0-00Vac3038-320","Vacant",{"$f":"VLOOKUP(Table_Data_Table_135[[#This Row],[Item ID]],Analysis_Table,20,FALSE)","v":""},"34-060-140-000-020-00","2731 State Rd Ionia",43038,320000,"n","648/0772",1.446,62987.759999999995,300,0,0,{"$f":"VLOOKUP(Table_Data_Table_135[[#This Row],[Item ID]],Analysis_Table,8,FALSE)","v":320000},{"$f":"VLOOKUP(Table_Data_Table_135[[#This Row],[Item ID]],Analysis_Table,9,FALSE)","v":"N/A"},{"$f":"VLOOKUP(Table_Data_Table_135[[#This Row],[Item ID]],Analysis_Table,10,FALSE)","v":1.446},{"$f":"VLOOKUP(Table_Data_Table_135[[#This Row],[Item ID]],Analysis_Table,11,FALSE)","v":62987.759999999995},{"$f":"VLOOKUP(Table_Data_Table_135[[#This Row],[Item ID]],Analysis_Table,12,FALSE)","v":221300.13831258647},{"$f":"VLOOKUP(Table_Data_Table_135[[#This Row],[Item ID]],Analysis_Table,13,FALSE)","v":5.08},{"$f":"VLOOKUP(Table_Data_Table_135[[#This Row],[Item ID]],Analysis_Table,14,FALSE)","v":65},{"$f":"VLOOKUP(Table_Data_Table_135[[#This Row],[Item ID]],Analysis_Table,15,FALSE)","v":0.1018940462983563},{"$f":"VLOOKUP(Table_Data_Table_135[[#This Row],[Item ID]],Analysis_Table,16,FALSE)","v":352606.09481547406},{"$f":"VLOOKUP(Table_Data_Table_135[[#This Row],[Item ID]],Analysis_Table,17,FALSE)","v":243849.30485164182},{"$f":"VLOOKUP(Table_Data_Table_135[[#This Row],[Item ID]],Analysis_Table,18,FALSE)","v":5.6},{"$f":"VLOOKUP(Table_Data_Table_135[[#This Row],[Item ID]],Analysis_Table,19,FALSE)","v":1175.3536493849135},"34-060-140-000-025-00",null,1]
["0-00Vac2754-100","Vacant",{"$f":"VLOOKUP(Table_Data_Table_135[[#This Row],[Item ID]],Analysis_Table,20,FALSE)","v":""},"34-090-000-110-00","Railroad St",42754,10000,"n","644/7303",0.623,27137.88,133,0,0,{"$f":"VLOOKUP(Table_Data_Table_135[[#This Row],[Item ID]],Analysis_Table,8,FALSE)","v":10000},{"$f":"VLOOKUP(Table_Data_Table_135[[#This Row],[Item ID]],Analysis_Table,9,FALSE)","v":"N/A"},{"$f":"VLOOKUP(Table_Data_Table_135[[#This Row],[Item ID]],Analysis_Table,10,FALSE)","v":0.623},{"$f":"VLOOKUP(Table_Data_Table_135[[#This Row],[Item ID]],Analysis_Table,11,FALSE)","v":27137.88},{"$f":"VLOOKUP(Table_Data_Table_135[[#This Row],[Item ID]],Analysis_Table,12,FALSE)","v":16051.364365971107},{"$f":"VLOOKUP(Table_Data_Table_135[[#This Row],[Item ID]],Analysis_Table,13,FALSE)","v":0.37},{"$f":"VLOOKUP(Table_Data_Table_135[[#This Row],[Item ID]],Analysis_Table,14,FALSE)","v":74},{"$f":"VLOOKUP(Table_Data_Table_135[[#This Row],[Item ID]],Analysis_Table,15,FALSE)","v":0.11600245270889795},{"$f":"VLOOKUP(Table_Data_Table_135[[#This Row],[Item ID]],Analysis_Table,16,FALSE)","v":11160.024527088979},{"$f":"VLOOKUP(Table_Data_Table_135[[#This Row],[Item ID]],Analysis_Table,17,FALSE)","v":17913.362001747959},{"$f":"VLOOKUP(Table_Data_Table_135[[#This Row],[Item ID]],Analysis_Table,18,FALSE)","v":0.41},{"$f":"VLOOKUP(Table_Data_Table_135[[#This Row],[Item ID]],Analysis_Table,19,FALSE)","v":83.90995885029308},null,null,0]
["0-02Abs2403-300","Abstraction",{"$f":"VLOOKUP(Table_Data_Table_135[[#This Row],[Item ID]],Analysis_Table,20,FALSE)","v":""},"34-110-006-000-040-02","3669 S State Rd / M-66",42403,3000000,"n","640/6775",8.39,365468.4,500,25000,1526059,{"$f":"VLOOKUP(Table_Data_Table_135[[#This Row],[Item ID]],Analysis_Table,8,FALSE)","v":1473941},{"$f":"VLOOKUP(Table_Data_Table_135[[#This Row],[Item ID]],Analysis_Table,9,FALSE)","v":0.49131366666666665},{"$f":"VLOOKUP(Table_Data_Table_135[[#This Row],[Item ID]],Analysis_Table,10,FALSE)","v":7.8159999999999998},{"$f":"VLOOKUP(Table_Data_Table_135[[#This Row],[Item ID]],Analysis_Table,11,FALSE)","v":340468.4},{"$f":"VLOOKUP(Table_Data_Table_135[[#This Row],[Item ID]],Analysis_Table,12,FALSE)","v":188579.96417604914},{"$f":"VLOOKUP(Table_Data_Table_135[[#This Row],[Item ID]],Analysis_Table,13,FALSE)","v":4.33},{"$f":"VLOOKUP(Table_Data_Table_135[[#This Row],[Item ID]],Analysis_Table,14,FALSE)","v":86},{"$f":"VLOOKUP(Table_Data_Table_135[[#This Row],[Item ID]],Analysis_Table,15,FALSE)","v":0.1348136612562868},{"$f":"VLOOKUP(Table_Data_Table_135[[#This Row],[Item ID]],Analysis_Table,16,FALSE)","v":1672648.3826857528},{"$f":"VLOOKUP(Table_Data_Table_135[[#This Row],[Item ID]],Analysis_Table,17,FALSE)","v":214003.11958620173},{"$f":"VLOOKUP(Table_Data_Table_135[[#This Row],[Item ID]],Analysis_Table,18,FALSE)","v":4.91},{"$f":"VLOOKUP(Table_Data_Table_135[[#This Row],[Item ID]],Analysis_Table,19,FALSE)","v":3345.2967653715054},null,null,1]
["0-02All2403-300","Allocation",{"$f":"VLOOKUP(Table_Data_Table_135[[#This Row],[Item ID]],Analysis_Table,20,FALSE)","v":""},"34-110-006-000-040-02","3669 S State Rd / M-66",42403,3000000,"n","640/6775",8.39,365468.4,500,25000,1526059,{"$f":"VLOOKUP(Table_Data_Table_135[[#This Row],[Item ID]],Analysis_Table,8,FALSE)","v":1212900},{"$f":"VLOOKUP(Table_Data_Table_135[[#This Row],[Item ID]],Analysis_Table,9,FALSE)","v":0.40429999999999999},{"$f":"VLOOKUP(Table_Data_Table_135[[#This Row],[Item ID]],Analysis_Table,10,FALSE)","v":7.8159999999999998},{"$f":"VLOOKUP(Table_Data_Table_135[[#This Row],[Item ID]],Analysis_Table,11,FALSE)","v":340468.4},{"$f":"VLOOKUP(Table_Data_Table_135[[#This Row],[Item ID]],Analysis_Table,12,FALSE)","v":155181.67860798363},{"$f":"VLOOKUP(Table_Data_Table_135[[#This Row],[Item ID]],Analysis_Table,13,FALSE)","v":3.56},{"$f":"VLOOKUP(Table_Data_Table_135[[#This Row],[Item ID]],Analysis_Table,14,FALSE)","v":86},{"$f":"VLOOKUP(Table_Data_Table_135[[#This Row],[Item ID]],Analysis_Table,15,FALSE)","v":0.1348136612562868},{"$f":"VLOOKUP(Table_Data_Table_135[[#This Row],[Item ID]],Analysis_Table,16,FALSE)","v":1376415.4897377505},{"$f":"VLOOKUP(Table_Data_Table_135[[#This Row],[Item ID]],Analysis_Table,17,FALSE)","v":176102.28886102233},{"$f":"VLOOKUP(Table_Data_Table_135[[#This Row],[Item ID]],Analysis_Table,18,FALSE)","v":4.04},{"$f":"VLOOKUP(Table_Data_Table_135[[#This Row],[Item ID]],Analysis_Table,19,FALSE)","v":2752.830979475501},null,null,1]
["5-17Abs2585-650","Abstraction",{"$f":"VLOOKUP(Table_Data_Table_135[[#This Row],[Item ID]],Analysis_Table,20,FALSE)","v":""},"34-201-030-000-045-17","431 Swartz Ct",42585,650418,"n","642/8611",0.99099999999999999,43167.96,198,0,572709,{"$f":"VLOOKUP(Table_Data_Table_135[[#This Row],[Item ID]],Analysis_Table,8,FALSE)","v":77709},{"$f":"VLOOKUP(Table_Data_Table_135[[#This Row],[Item ID]],Analysis_Table,9,FALSE)","v":0.11947547577096575},{"$f":"VLOOKUP(Table_Data_Table_135[[#This Row],[Item ID]],Analysis_Table,10,FALSE)","v":0.99099999999999999},{"$f":"VLOOKUP(Table_Data_Table_135[[#This Row],[Item ID]],Analysis_Table,11,FALSE)","v":43167.96},{"$f":"VLOOKUP(Table_Data_Table_135[[#This Row],[Item ID]],Analysis_Table,12,FALSE)","v":78414.732593340057},{"$f":"VLOOKUP(Table_Data_Table_135[[#This Row],[Item ID]],Analysis_Table,13,FALSE)","v":1.8},{"$f":"VLOOKUP(Table_Data_Table_135[[#This Row],[Item ID]],Analysis_Table,14,FALSE)","v":80},{"$f":"VLOOKUP(Table_Data_Table_135[[#This Row],[Item ID]],Analysis_Table,15,FALSE)","v":0.12540805698259239},{"$f":"VLOOKUP(Table_Data_Table_135[[#This Row],[Item ID]],Analysis_Table,16,FALSE)","v":87454.334700060266},{"$f":"VLOOKUP(Table_Data_Table_135[[#This Row],[Item ID]],Analysis_Table,17,FALSE)","v":88248.571846680396},{"$f":"VLOOKUP(Table_Data_Table_135[[#This Row],[Item ID]],Analysis_Table,18,FALSE)","v":2.0299999999999998},{"$f":"VLOOKUP(Table_Data_Table_135[[#This Row],[Item ID]],Analysis_Table,19,FALSE)","v":441.68855909121345},null,null,1]
["5-17All2585-650","Allocation",{"$f":"VLOOKUP(Table_Data_Table_135[[#This Row],[Item ID]],Analysis_Table,20,FALSE)","v":""},"34-201-030-000-045-17","431 Swartz Ct",42585,650418,"n","642/8611",0.99099999999999999,43167.96,198,0,0,{"$f":"VLOOKUP(Table_Data_Table_135[[#This Row],[Item ID]],Analysis_Table,8,FALSE)","v":262963.99739999999},{"$f":"VLOOKUP(Table_Data_Table_135[[#This Row],[Item ID]],Analysis_Table,9,FALSE)","v":0.40429999999999999},{"$f":"VLOOKUP(Table_Data_Table_135[[#This Row],[Item ID]],Analysis_Table,10,FALSE)","v":0.99099999999999999},{"$f":"VLOOKUP(Table_Data_Table_135[[#This Row],[Item ID]],Analysis_Table,11,FALSE)","v":43167.96},{"$f":"VLOOKUP(Table_Data_Table_135[[#This Row],[Item ID]],Analysis_Table,12,FALSE)","v":265352.16690211906},{"$f":"VLOOKUP(Table_Data_Table_135[[#This Row],[Item ID]],Analysis_Table,13,FALSE)","v":6.09},{"$f":"VLOOKUP(Table_Data_Table_135[[#This Row],[Item ID]],Analysis_Table,14,FALSE)","v":80},{"$f":"VLOOKUP(Table_Data_Table_135[[#This Row],[Item ID]],Analysis_Table,15,FALSE)","v":0.12540805698259239},{"$f":"VLOOKUP(Table_Data_Table_135[[#This Row],[Item ID]],Analysis_Table,16,FALSE)","v":295941.80137030949},{"$f":"VLOOKUP(Table_Data_Table_135[[#This Row],[Item ID]],Analysis_Table,17,FALSE)","v":298629.46656943439},{"$f":"VLOOKUP(Table_Data_Table_135[[#This Row],[Item ID]],Analysis_Table,18,FALSE)","v":6.86},{"$f":"VLOOKUP(Table_Data_Table_135[[#This Row],[Item ID]],Analysis_Table,19,FALSE)","v":1494.6555624763105},null,null,1]
["6-00Vac-48-150","Vacant",{"$f":"VLOOKUP(Table_Data_Table_135[[#This Row],[Item ID]],Analysis_Table,20,FALSE)","v":""},"34-201-040-000-076-00","S. Steele St",39952,15000,"n","612/5536",0.85499999999999998,37243.799999999996,108.64,0,0,{"$f":"VLOOKUP(Table_Data_Table_135[[#This Row],[Item ID]],Analysis_Table,8,FALSE)","v":15000},{"$f":"VLOOKUP(Table_Data_Table_135[[#This Row],[Item ID]],Analysis_Table,9,FALSE)","v":"N/A"},{"$f":"VLOOKUP(Table_Data_Table_135[[#This Row],[Item ID]],Analysis_Table,10,FALSE)","v":0.85499999999999998},{"$f":"VLOOKUP(Table_Data_Table_135[[#This Row],[Item ID]],Analysis_Table,11,FALSE)","v":37243.799999999996},{"$f":"VLOOKUP(Table_Data_Table_135[[#This Row],[Item ID]],Analysis_Table,12,FALSE)","v":17543.859649122809},{"$f":"VLOOKUP(Table_Data_Table_135[[#This Row],[Item ID]],Analysis_Table,13,FALSE)","v":0.4},{"$f":"VLOOKUP(Table_Data_Table_135[[#This Row],[Item ID]],Analysis_Table,14,FALSE)","v":166},{"$f":"VLOOKUP(Table_Data_Table_135[[#This Row],[Item ID]],Analysis_Table,15,FALSE)","v":0.26022171823887918},{"$f":"VLOOKUP(Table_Data_Table_135[[#This Row],[Item ID]],Analysis_Table,16,FALSE)","v":18903.325773583187},{"$f":"VLOOKUP(Table_Data_Table_135[[#This Row],[Item ID]],Analysis_Table,17,FALSE)","v":22109.152951559285},{"$f":"VLOOKUP(Table_Data_Table_135[[#This Row],[Item ID]],Analysis_Table,18,FALSE)","v":0.51},{"$f":"VLOOKUP(Table_Data_Table_135[[#This Row],[Item ID]],Analysis_Table,19,FALSE)","v":173.99968495566262},null,null,0]
["1-10Abs2697-194","Abstraction",{"$f":"VLOOKUP(Table_Data_Table_135[[#This Row],[Item ID]],Analysis_Table,20,FALSE)","v":""},"34-203-240-000-191-10","1011 E Main St",42697,194500,"n","644/1885",6.08,264844.79999999999,171.43,0,142256,{"$f":"VLOOKUP(Table_Data_Table_135[[#This Row],[Item ID]],Analysis_Table,8,FALSE)","v":52244},{"$f":"VLOOKUP(Table_Data_Table_135[[#This Row],[Item ID]],Analysis_Table,9,FALSE)","v":0.26860668380462727},{"$f":"VLOOKUP(Table_Data_Table_135[[#This Row],[Item ID]],Analysis_Table,10,FALSE)","v":6.08},{"$f":"VLOOKUP(Table_Data_Table_135[[#This Row],[Item ID]],Analysis_Table,11,FALSE)","v":264844.79999999999},{"$f":"VLOOKUP(Table_Data_Table_135[[#This Row],[Item ID]],Analysis_Table,12,FALSE)","v":8592.7631578947367},{"$f":"VLOOKUP(Table_Data_Table_135[[#This Row],[Item ID]],Analysis_Table,13,FALSE)","v":0.2},{"$f":"VLOOKUP(Table_Data_Table_135[[#This Row],[Item ID]],Analysis_Table,14,FALSE)","v":76},{"$f":"VLOOKUP(Table_Data_Table_135[[#This Row],[Item ID]],Analysis_Table,15,FALSE)","v":0.11913765413346275},{"$f":"VLOOKUP(Table_Data_Table_135[[#This Row],[Item ID]],Analysis_Table,16,FALSE)","v":58468.227602548628},{"$f":"VLOOKUP(Table_Data_Table_135[[#This Row],[Item ID]],Analysis_Table,17,FALSE)","v":9616.4848030507619},{"$f":"VLOOKUP(Table_Data_Table_135[[#This Row],[Item ID]],Analysis_Table,18,FALSE)","v":0.22},{"$f":"VLOOKUP(Table_Data_Table_135[[#This Row],[Item ID]],Analysis_Table,19,FALSE)","v":341.06181883304339},null,null,0]
["1-10All2697-194","Allocation",{"$f":"VLOOKUP(Table_Data_Table_135[[#This Row],[Item ID]],Analysis_Table,20,FALSE)","v":""},"34-203-240-000-191-10","1011 E Main St",42697,194500,"n","644/1885",6.08,264844.79999999999,171.43,0,0,{"$f":"VLOOKUP(Table_Data_Table_135[[#This Row],[Item ID]],Analysis_Table,8,FALSE)","v":78636.350000000006},{"$f":"VLOOKUP(Table_Data_Table_135[[#This Row],[Item ID]],Analysis_Table,9,FALSE)","v":0.40429999999999999},{"$f":"VLOOKUP(Table_Data_Table_135[[#This Row],[Item ID]],Analysis_Table,10,FALSE)","v":6.08},{"$f":"VLOOKUP(Table_Data_Table_135[[#This Row],[Item ID]],Analysis_Table,11,FALSE)","v":264844.79999999999},{"$f":"VLOOKUP(Table_Data_Table_135[[#This Row],[Item ID]],Analysis_Table,12,FALSE)","v":12933.610197368422},{"$f":"VLOOKUP(Table_Data_Table_135[[#This Row],[Item ID]],Analysis_Table,13,FALSE)","v":0.3},{"$f":"VLOOKUP(Table_Data_Table_135[[#This Row],[Item ID]],Analysis_Table,14,FALSE)","v":76},{"$f":"VLOOKUP(Table_Data_Table_135[[#This Row],[Item ID]],Analysis_Table,15,FALSE)","v":0.11913765413346275},{"$f":"VLOOKUP(Table_Data_Table_135[[#This Row],[Item ID]],Analysis_Table,16,FALSE)","v":88004.90026861793},{"$f":"VLOOKUP(Table_Data_Table_135[[#This Row],[Item ID]],Analysis_Table,17,FALSE)","v":14474.490175759527},{"$f":"VLOOKUP(Table_Data_Table_135[[#This Row],[Item ID]],Analysis_Table,18,FALSE)","v":0.33},{"$f":"VLOOKUP(Table_Data_Table_135[[#This Row],[Item ID]],Analysis_Table,19,FALSE)","v":513.3576402532691},null,null,0]
["5-00Abs2741-400","Abstraction",{"$f":"VLOOKUP(Table_Data_Table_135[[#This Row],[Item ID]],Analysis_Table,20,FALSE)","v":""},"34-204-090-000-075-00","302 S Jackson St",42741,40000,"n","644/6475",0.48699999999999999,21213.72,150,0,14364,{"$f":"VLOOKUP(Table_Data_Table_135[[#This Row],[Item ID]],Analysis_Table,8,FALSE)","v":25636},{"$f":"VLOOKUP(Table_Data_Table_135[[#This Row],[Item ID]],Analysis_Table,9,FALSE)","v":0.64090000000000003},{"$f":"VLOOKUP(Table_Data_Table_135[[#This Row],[Item ID]],Analysis_Table,10,FALSE)","v":0.48699999999999999},{"$f":"VLOOKUP(Table_Data_Table_135[[#This Row],[Item ID]],Analysis_Table,11,FALSE)","v":21213.72},{"$f":"VLOOKUP(Table_Data_Table_135[[#This Row],[Item ID]],Analysis_Table,12,FALSE)","v":52640.657084188912},{"$f":"VLOOKUP(Table_Data_Table_135[[#This Row],[Item ID]],Analysis_Table,13,FALSE)","v":1.21},{"$f":"VLOOKUP(Table_Data_Table_135[[#This Row],[Item ID]],Analysis_Table,14,FALSE)","v":75},{"$f":"VLOOKUP(Table_Data_Table_135[[#This Row],[Item ID]],Analysis_Table,15,FALSE)","v":0.11757005342118035},{"$f":"VLOOKUP(Table_Data_Table_135[[#This Row],[Item ID]],Analysis_Table,16,FALSE)","v":28650.025889505378},{"$f":"VLOOKUP(Table_Data_Table_135[[#This Row],[Item ID]],Analysis_Table,17,FALSE)","v":58829.621949703032},{"$f":"VLOOKUP(Table_Data_Table_135[[#This Row],[Item ID]],Analysis_Table,18,FALSE)","v":1.35},{"$f":"VLOOKUP(Table_Data_Table_135[[#This Row],[Item ID]],Analysis_Table,19,FALSE)","v":191.00017259670253},null,null,0]
["5-00All2741-400","Allocation",{"$f":"VLOOKUP(Table_Data_Table_135[[#This Row],[Item ID]],Analysis_Table,20,FALSE)","v":""},"34-204-090-000-075-00","302 S Jackson St",42741,40000,"n","644/6475",0.48699999999999999,21213.72,150,0,0,{"$f":"VLOOKUP(Table_Data_Table_135[[#This Row],[Item ID]],Analysis_Table,8,FALSE)","v":16172},{"$f":"VLOOKUP(Table_Data_Table_135[[#This Row],[Item ID]],Analysis_Table,9,FALSE)","v":0.40429999999999999},{"$f":"VLOOKUP(Table_Data_Table_135[[#This Row],[Item ID]],Analysis_Table,10,FALSE)","v":0.48699999999999999},{"$f":"VLOOKUP(Table_Data_Table_135[[#This Row],[Item ID]],Analysis_Table,11,FALSE)","v":21213.72},{"$f":"VLOOKUP(Table_Data_Table_135[[#This Row],[Item ID]],Analysis_Table,12,FALSE)","v":33207.392197125257},{"$f":"VLOOKUP(Table_Data_Table_135[[#This Row],[Item ID]],Analysis_Table,13,FALSE)","v":0.76},{"$f":"VLOOKUP(Table_Data_Table_135[[#This Row],[Item ID]],Analysis_Table,14,FALSE)","v":75},{"$f":"VLOOKUP(Table_Data_Table_135[[#This Row],[Item ID]],Analysis_Table,15,FALSE)","v":0.11757005342118035},{"$f":"VLOOKUP(Table_Data_Table_135[[#This Row],[Item ID]],Analysis_Table,16,FALSE)","v":18073.342903927329},{"$f":"VLOOKUP(Table_Data_Table_135[[#This Row],[Item ID]],Analysis_Table,17,FALSE)","v":37111.587071719361},{"$f":"VLOOKUP(Table_Data_Table_135[[#This Row],[Item ID]],Analysis_Table,18,FALSE)","v":0.85},{"$f":"VLOOKUP(Table_Data_Table_135[[#This Row],[Item ID]],Analysis_Table,19,FALSE)","v":120.48895269284886},null,null,0]
["5-00Abs2003-248","Abstraction",{"$f":"VLOOKUP(Table_Data_Table_135[[#This Row],[Item ID]],Analysis_Table,20,FALSE)","v":""},"34-204-190-000-005-00","340 Lovel St",42003,248651,"n","636/3324",0.57199999999999995,24916.32,132,0,140849,{"$f":"VLOOKUP(Table_Data_Table_135[[#This Row],[Item ID]],Analysis_Table,8,FALSE)","v":107802},{"$f":"VLOOKUP(Table_Data_Table_135[[#This Row],[Item ID]],Analysis_Table,9,FALSE)","v":0.43354742188851042},{"$f":"VLOOKUP(Table_Data_Table_135[[#This Row],[Item ID]],Analysis_Table,10,FALSE)","v":0.57199999999999995},{"$f":"VLOOKUP(Table_Data_Table_135[[#This Row],[Item ID]],Analysis_Table,11,FALSE)","v":24916.32},{"$f":"VLOOKUP(Table_Data_Table_135[[#This Row],[Item ID]],Analysis_Table,12,FALSE)","v":188465.03496503498},{"$f":"VLOOKUP(Table_Data_Table_135[[#This Row],[Item ID]],Analysis_Table,13,FALSE)","v":4.33},{"$f":"VLOOKUP(Table_Data_Table_135[[#This Row],[Item ID]],Analysis_Table,14,FALSE)","v":99},{"$f":"VLOOKUP(Table_Data_Table_135[[#This Row],[Item ID]],Analysis_Table,15,FALSE)","v":0.15519247051595805},{"$f":"VLOOKUP(Table_Data_Table_135[[#This Row],[Item ID]],Analysis_Table,16,FALSE)","v":124532.05870656131},{"$f":"VLOOKUP(Table_Data_Table_135[[#This Row],[Item ID]],Analysis_Table,17,FALSE)","v":217713.38934713518},{"$f":"VLOOKUP(Table_Data_Table_135[[#This Row],[Item ID]],Analysis_Table,18,FALSE)","v":5},{"$f":"VLOOKUP(Table_Data_Table_135[[#This Row],[Item ID]],Analysis_Table,19,FALSE)","v":943.42468717091901},null,null,1]
["5-00All2003-248","Allocation",{"$f":"VLOOKUP(Table_Data_Table_135[[#This Row],[Item ID]],Analysis_Table,20,FALSE)","v":""},"34-204-190-000-005-00","340 Lovel St",42003,248651,"n","636/3324",0.57199999999999995,24916.32,132,0,0,{"$f":"VLOOKUP(Table_Data_Table_135[[#This Row],[Item ID]],Analysis_Table,8,FALSE)","v":100529.5993},{"$f":"VLOOKUP(Table_Data_Table_135[[#This Row],[Item ID]],Analysis_Table,9,FALSE)","v":0.40429999999999999},{"$f":"VLOOKUP(Table_Data_Table_135[[#This Row],[Item ID]],Analysis_Table,10,FALSE)","v":0.57199999999999995},{"$f":"VLOOKUP(Table_Data_Table_135[[#This Row],[Item ID]],Analysis_Table,11,FALSE)","v":24916.32},{"$f":"VLOOKUP(Table_Data_Table_135[[#This Row],[Item ID]],Analysis_Table,12,FALSE)","v":175751.04772727276},{"$f":"VLOOKUP(Table_Data_Table_135[[#This Row],[Item ID]],Analysis_Table,13,FALSE)","v":4.03},{"$f":"VLOOKUP(Table_Data_Table_135[[#This Row],[Item ID]],Analysis_Table,14,FALSE)","v":99},{"$f":"VLOOKUP(Table_Data_Table_135[[#This Row],[Item ID]],Analysis_Table,15,FALSE)","v":0.15519247051595805},{"$f":"VLOOKUP(Table_Data_Table_135[[#This Row],[Item ID]],Analysis_Table,16,FALSE)","v":116131.03617534632},{"$f":"VLOOKUP(Table_Data_Table_135[[#This Row],[Item ID]],Analysis_Table,17,FALSE)","v":203026.28701983625},{"$f":"VLOOKUP(Table_Data_Table_135[[#This Row],[Item ID]],Analysis_Table,18,FALSE)","v":4.66},{"$f":"VLOOKUP(Table_Data_Table_135[[#This Row],[Item ID]],Analysis_Table,19,FALSE)","v":879.78057708595702},null,null,1]
["5-00Abs2789-718","Abstraction",{"$f":"VLOOKUP(Table_Data_Table_135[[#This Row],[Item ID]],Analysis_Table,20,FALSE)","v":""},"34-204-600-000-405-00","643 Crawford St",42789,718248,"n","645/1404",3.41,148539.6,183.67,1306.8,520238,{"$f":"VLOOKUP(Table_Data_Table_135[[#This Row],[Item ID]],Analysis_Table,8,FALSE)","v":198010},{"$f":"VLOOKUP(Table_Data_Table_135[[#This Row],[Item ID]],Analysis_Table,9,FALSE)","v":0.27568472171172076},{"$f":"VLOOKUP(Table_Data_Table_135[[#This Row],[Item ID]],Analysis_Table,10,FALSE)","v":3.38},{"$f":"VLOOKUP(Table_Data_Table_135[[#This Row],[Item ID]],Analysis_Table,11,FALSE)","v":147232.80000000002},{"$f":"VLOOKUP(Table_Data_Table_135[[#This Row],[Item ID]],Analysis_Table,12,FALSE)","v":58582.840236686396},{"$f":"VLOOKUP(Table_Data_Table_135[[#This Row],[Item ID]],Analysis_Table,13,FALSE)","v":1.34},{"$f":"VLOOKUP(Table_Data_Table_135[[#This Row],[Item ID]],Analysis_Table,14,FALSE)","v":73},{"$f":"VLOOKUP(Table_Data_Table_135[[#This Row],[Item ID]],Analysis_Table,15,FALSE)","v":0.11443485199661554},{"$f":"VLOOKUP(Table_Data_Table_135[[#This Row],[Item ID]],Analysis_Table,16,FALSE)","v":220669.24504384986},{"$f":"VLOOKUP(Table_Data_Table_135[[#This Row],[Item ID]],Analysis_Table,17,FALSE)","v":65286.758888712982},{"$f":"VLOOKUP(Table_Data_Table_135[[#This Row],[Item ID]],Analysis_Table,18,FALSE)","v":1.5},{"$f":"VLOOKUP(Table_Data_Table_135[[#This Row],[Item ID]],Analysis_Table,19,FALSE)","v":1201.4441391835894},null,null,1]
["5-00All2789-718","Allocation",{"$f":"VLOOKUP(Table_Data_Table_135[[#This Row],[Item ID]],Analysis_Table,20,FALSE)","v":""},"34-204-600-000-405-00","643 Crawford St",42789,718248,"n","645/1404",3.41,148539.6,183.67,1306.8,0,{"$f":"VLOOKUP(Table_Data_Table_135[[#This Row],[Item ID]],Analysis_Table,8,FALSE)","v":290387.66639999999},{"$f":"VLOOKUP(Table_Data_Table_135[[#This Row],[Item ID]],Analysis_Table,9,FALSE)","v":0.40429999999999999},{"$f":"VLOOKUP(Table_Data_Table_135[[#This Row],[Item ID]],Analysis_Table,10,FALSE)","v":3.38},{"$f":"VLOOKUP(Table_Data_Table_135[[#This Row],[Item ID]],Analysis_Table,11,FALSE)","v":147232.80000000002},{"$f":"VLOOKUP(Table_Data_Table_135[[#This Row],[Item ID]],Analysis_Table,12,FALSE)","v":85913.510769230765},{"$f":"VLOOKUP(Table_Data_Table_135[[#This Row],[Item ID]],Analysis_Table,13,FALSE)","v":1.97},{"$f":"VLOOKUP(Table_Data_Table_135[[#This Row],[Item ID]],Analysis_Table,14,FALSE)","v":73},{"$f":"VLOOKUP(Table_Data_Table_135[[#This Row],[Item ID]],Analysis_Table,15,FALSE)","v":0.11443485199661554},{"$f":"VLOOKUP(Table_Data_Table_135[[#This Row],[Item ID]],Analysis_Table,16,FALSE)","v":323618.13602612657},{"$f":"VLOOKUP(Table_Data_Table_135[[#This Row],[Item ID]],Analysis_Table,17,FALSE)","v":95745.010658617335},{"$f":"VLOOKUP(Table_Data_Table_135[[#This Row],[Item ID]],Analysis_Table,18,FALSE)","v":2.2000000000000002},{"$f":"VLOOKUP(Table_Data_Table_135[[#This Row],[Item ID]],Analysis_Table,19,FALSE)","v":1761.9542441668568},null,null,1]
["5-00Vac333-200","Vacant",{"$f":"VLOOKUP(Table_Data_Table_135[[#This Row],[Item ID]],Analysis_Table,20,FALSE)","v":""},"34-300-050-000-395-00","Elm St",40333,20000,"n","???",0.60899999999999999,26528.04,333,0,0,{"$f":"VLOOKUP(Table_Data_Table_135[[#This Row],[Item ID]],Analysis_Table,8,FALSE)","v":20000},{"$f":"VLOOKUP(Table_Data_Table_135[[#This Row],[Item ID]],Analysis_Table,9,FALSE)","v":"N/A"},{"$f":"VLOOKUP(Table_Data_Table_135[[#This Row],[Item ID]],Analysis_Table,10,FALSE)","v":0.60899999999999999},{"$f":"VLOOKUP(Table_Data_Table_135[[#This Row],[Item ID]],Analysis_Table,11,FALSE)","v":26528.04},{"$f":"VLOOKUP(Table_Data_Table_135[[#This Row],[Item ID]],Analysis_Table,12,FALSE)","v":32840.722495894908},{"$f":"VLOOKUP(Table_Data_Table_135[[#This Row],[Item ID]],Analysis_Table,13,FALSE)","v":0.75},{"$f":"VLOOKUP(Table_Data_Table_135[[#This Row],[Item ID]],Analysis_Table,14,FALSE)","v":154},{"$f":"VLOOKUP(Table_Data_Table_135[[#This Row],[Item ID]],Analysis_Table,15,FALSE)","v":0.2414105096914903},{"$f":"VLOOKUP(Table_Data_Table_135[[#This Row],[Item ID]],Analysis_Table,16,FALSE)","v":24828.210193829804},{"$f":"VLOOKUP(Table_Data_Table_135[[#This Row],[Item ID]],Analysis_Table,17,FALSE)","v":40768.818052265691},{"$f":"VLOOKUP(Table_Data_Table_135[[#This Row],[Item ID]],Analysis_Table,18,FALSE)","v":0.94},{"$f":"VLOOKUP(Table_Data_Table_135[[#This Row],[Item ID]],Analysis_Table,19,FALSE)","v":74.559189771260677},null,null,0]
["0-00Abs1829-364","Abstraction",{"$f":"VLOOKUP(Table_Data_Table_135[[#This Row],[Item ID]],Analysis_Table,20,FALSE)","v":""},"34-300-110-000-070-00","1320 E. Grand River Ave",41829,364600,"n","634/5648",0.64100000000000001,27921.96,275,0,228195,{"$f":"VLOOKUP(Table_Data_Table_135[[#This Row],[Item ID]],Analysis_Table,8,FALSE)","v":136405},{"$f":"VLOOKUP(Table_Data_Table_135[[#This Row],[Item ID]],Analysis_Table,9,FALSE)","v":0.37412232583653321},{"$f":"VLOOKUP(Table_Data_Table_135[[#This Row],[Item ID]],Analysis_Table,10,FALSE)","v":0.64100000000000001},{"$f":"VLOOKUP(Table_Data_Table_135[[#This Row],[Item ID]],Analysis_Table,11,FALSE)","v":27921.96},{"$f":"VLOOKUP(Table_Data_Table_135[[#This Row],[Item ID]],Analysis_Table,12,FALSE)","v":212800.31201248048},{"$f":"VLOOKUP(Table_Data_Table_135[[#This Row],[Item ID]],Analysis_Table,13,FALSE)","v":4.8899999999999997},{"$f":"VLOOKUP(Table_Data_Table_135[[#This Row],[Item ID]],Analysis_Table,14,FALSE)","v":105},{"$f":"VLOOKUP(Table_Data_Table_135[[#This Row],[Item ID]],Analysis_Table,15,FALSE)","v":0.16459807478965249},{"$f":"VLOOKUP(Table_Data_Table_135[[#This Row],[Item ID]],Analysis_Table,16,FALSE)","v":158857.00039168255},{"$f":"VLOOKUP(Table_Data_Table_135[[#This Row],[Item ID]],Analysis_Table,17,FALSE)","v":247826.83368437216},{"$f":"VLOOKUP(Table_Data_Table_135[[#This Row],[Item ID]],Analysis_Table,18,FALSE)","v":5.69},{"$f":"VLOOKUP(Table_Data_Table_135[[#This Row],[Item ID]],Analysis_Table,19,FALSE)","v":577.66181960611834},null,null,1]
["0-00All1829-364","Allocation",{"$f":"VLOOKUP(Table_Data_Table_135[[#This Row],[Item ID]],Analysis_Table,20,FALSE)","v":""},"34-300-110-000-070-00","1320 E. Grand River Ave",41829,364600,"n","634/5648",0.64100000000000001,27921.96,275,0,0,{"$f":"VLOOKUP(Table_Data_Table_135[[#This Row],[Item ID]],Analysis_Table,8,FALSE)","v":147407.78},{"$f":"VLOOKUP(Table_Data_Table_135[[#This Row],[Item ID]],Analysis_Table,9,FALSE)","v":0.40429999999999999},{"$f":"VLOOKUP(Table_Data_Table_135[[#This Row],[Item ID]],Analysis_Table,10,FALSE)","v":0.64100000000000001},{"$f":"VLOOKUP(Table_Data_Table_135[[#This Row],[Item ID]],Analysis_Table,11,FALSE)","v":27921.96},{"$f":"VLOOKUP(Table_Data_Table_135[[#This Row],[Item ID]],Analysis_Table,12,FALSE)","v":229965.33541341653},{"$f":"VLOOKUP(Table_Data_Table_135[[#This Row],[Item ID]],Analysis_Table,13,FALSE)","v":5.28},{"$f":"VLOOKUP(Table_Data_Table_135[[#This Row],[Item ID]],Analysis_Table,14,FALSE)","v":105},{"$f":"VLOOKUP(Table_Data_Table_135[[#This Row],[Item ID]],Analysis_Table,15,FALSE)","v":0.16459807478965249},{"$f":"VLOOKUP(Table_Data_Table_135[[#This Row],[Item ID]],Analysis_Table,16,FALSE)","v":171670.81679701665},{"$f":"VLOOKUP(Table_Data_Table_135[[#This Row],[Item ID]],Analysis_Table,17,FALSE)","v":267817.18689082161},{"$f":"VLOOKUP(Table_Data_Table_135[[#This Row],[Item ID]],Analysis_Table,18,FALSE)","v":6.15},{"$f":"VLOOKUP(Table_Data_Table_135[[#This Row],[Item ID]],Analysis_Table,19,FALSE)","v":624.25751562551511},null,null,1]
["5-10All1677-297","Allocation",{"$f":"VLOOKUP(Table_Data_Table_135[[#This Row],[Item ID]],Analysis_Table,20,FALSE)","v":""},"34-401-250-000-335-10","1525 W. State Rd",41677,297000,"n","632/9262",0.504,21943.68,249.36,0,0,{"$f":"VLOOKUP(Table_Data_Table_135[[#This Row],[Item ID]],Analysis_Table,8,FALSE)","v":120077.09999999999},{"$f":"VLOOKUP(Table_Data_Table_135[[#This Row],[Item ID]],Analysis_Table,9,FALSE)","v":0.40429999999999999},{"$f":"VLOOKUP(Table_Data_Table_135[[#This Row],[Item ID]],Analysis_Table,10,FALSE)","v":0.504},{"$f":"VLOOKUP(Table_Data_Table_135[[#This Row],[Item ID]],Analysis_Table,11,FALSE)","v":21943.68},{"$f":"VLOOKUP(Table_Data_Table_135[[#This Row],[Item ID]],Analysis_Table,12,FALSE)","v":238248.21428571426},{"$f":"VLOOKUP(Table_Data_Table_135[[#This Row],[Item ID]],Analysis_Table,13,FALSE)","v":5.47},{"$f":"VLOOKUP(Table_Data_Table_135[[#This Row],[Item ID]],Analysis_Table,14,FALSE)","v":110},{"$f":"VLOOKUP(Table_Data_Table_135[[#This Row],[Item ID]],Analysis_Table,15,FALSE)","v":0.1724360783510645},{"$f":"VLOOKUP(Table_Data_Table_135[[#This Row],[Item ID]],Analysis_Table,16,FALSE)","v":140782.7242237686},{"$f":"VLOOKUP(Table_Data_Table_135[[#This Row],[Item ID]],Analysis_Table,17,FALSE)","v":279330.80203128688},{"$f":"VLOOKUP(Table_Data_Table_135[[#This Row],[Item ID]],Analysis_Table,18,FALSE)","v":6.42},{"$f":"VLOOKUP(Table_Data_Table_135[[#This Row],[Item ID]],Analysis_Table,19,FALSE)","v":564.57621199778873},null,null,1]
["0-00Abs1795-800","Abstraction",{"$f":"VLOOKUP(Table_Data_Table_135[[#This Row],[Item ID]],Analysis_Table,20,FALSE)","v":""},"34-401-250-000-350-00","1439 W. State Rd",41795,80000,"n","634/1902",1.7070000000000001,74356.92,121.5,4009.5,51893,{"$f":"VLOOKUP(Table_Data_Table_135[[#This Row],[Item ID]],Analysis_Table,8,FALSE)","v":28107},{"$f":"VLOOKUP(Table_Data_Table_135[[#This Row],[Item ID]],Analysis_Table,9,FALSE)","v":0.35133750000000002},{"$f":"VLOOKUP(Table_Data_Table_135[[#This Row],[Item ID]],Analysis_Table,10,FALSE)","v":1.615},{"$f":"VLOOKUP(Table_Data_Table_135[[#This Row],[Item ID]],Analysis_Table,11,FALSE)","v":70347.42},{"$f":"VLOOKUP(Table_Data_Table_135[[#This Row],[Item ID]],Analysis_Table,12,FALSE)","v":17403.71517027864},{"$f":"VLOOKUP(Table_Data_Table_135[[#This Row],[Item ID]],Analysis_Table,13,FALSE)","v":0.4},{"$f":"VLOOKUP(Table_Data_Table_135[[#This Row],[Item ID]],Analysis_Table,14,FALSE)","v":106},{"$f":"VLOOKUP(Table_Data_Table_135[[#This Row],[Item ID]],Analysis_Table,15,FALSE)","v":0.1661656755019349},{"$f":"VLOOKUP(Table_Data_Table_135[[#This Row],[Item ID]],Analysis_Table,16,FALSE)","v":32777.418641332886},{"$f":"VLOOKUP(Table_Data_Table_135[[#This Row],[Item ID]],Analysis_Table,17,FALSE)","v":20295.615257791262},{"$f":"VLOOKUP(Table_Data_Table_135[[#This Row],[Item ID]],Analysis_Table,18,FALSE)","v":0.47},{"$f":"VLOOKUP(Table_Data_Table_135[[#This Row],[Item ID]],Analysis_Table,19,FALSE)","v":269.77299293278094},null,null,1]
["0-00All1795-800","Allocation",{"$f":"VLOOKUP(Table_Data_Table_135[[#This Row],[Item ID]],Analysis_Table,20,FALSE)","v":""},"34-401-250-000-350-00","1439 W. State Rd",41795,80000,"n","634/1902",1.7070000000000001,74356.92,121.5,4009.5,0,{"$f":"VLOOKUP(Table_Data_Table_135[[#This Row],[Item ID]],Analysis_Table,8,FALSE)","v":32344},{"$f":"VLOOKUP(Table_Data_Table_135[[#This Row],[Item ID]],Analysis_Table,9,FALSE)","v":0.40429999999999999},{"$f":"VLOOKUP(Table_Data_Table_135[[#This Row],[Item ID]],Analysis_Table,10,FALSE)","v":1.615},{"$f":"VLOOKUP(Table_Data_Table_135[[#This Row],[Item ID]],Analysis_Table,11,FALSE)","v":70347.42},{"$f":"VLOOKUP(Table_Data_Table_135[[#This Row],[Item ID]],Analysis_Table,12,FALSE)","v":20027.244582043342},{"$f":"VLOOKUP(Table_Data_Table_135[[#This Row],[Item ID]],Analysis_Table,13,FALSE)","v":0.46},{"$f":"VLOOKUP(Table_Data_Table_135[[#This Row],[Item ID]],Analysis_Table,14,FALSE)","v":106},{"$f":"VLOOKUP(Table_Data_Table_135[[#This Row],[Item ID]],Analysis_Table,15,FALSE)","v":0.1661656755019349},{"$f":"VLOOKUP(Table_Data_Table_135[[#This Row],[Item ID]],Analysis_Table,16,FALSE)","v":37718.462608434587},{"$f":"VLOOKUP(Table_Data_Table_135[[#This Row],[Item ID]],Analysis_Table,17,FALSE)","v":23355.085206461044},{"$f":"VLOOKUP(Table_Data_Table_135[[#This Row],[Item ID]],Analysis_Table,18,FALSE)","v":0.54},{"$f":"VLOOKUP(Table_Data_Table_135[[#This Row],[Item ID]],Analysis_Table,19,FALSE)","v":310.44002146859742},null,null,1]
["0-00Abs3538-535","Abstraction",{"$f":"VLOOKUP(Table_Data_Table_135[[#This Row],[Item ID]],Analysis_Table,20,FALSE)","v":""},"34-300-110-000-050-00","1328 E Grand River Ave",43538,535000,"n","653/8847",0.63,27442.799999999999,225,0,298263,{"$f":"VLOOKUP(Table_Data_Table_135[[#This Row],[Item ID]],Analysis_Table,8,FALSE)","v":236737},{"$f":"VLOOKUP(Table_Data_Table_135[[#This Row],[Item ID]],Analysis_Table,9,FALSE)","v":0.44249906542056072},{"$f":"VLOOKUP(Table_Data_Table_135[[#This Row],[Item ID]],Analysis_Table,10,FALSE)","v":0.63},{"$f":"VLOOKUP(Table_Data_Table_135[[#This Row],[Item ID]],Analysis_Table,11,FALSE)","v":27442.799999999999},{"$f":"VLOOKUP(Table_Data_Table_135[[#This Row],[Item ID]],Analysis_Table,12,FALSE)","v":375773.01587301586},{"$f":"VLOOKUP(Table_Data_Table_135[[#This Row],[Item ID]],Analysis_Table,13,FALSE)","v":8.6300000000000008},{"$f":"VLOOKUP(Table_Data_Table_135[[#This Row],[Item ID]],Analysis_Table,14,FALSE)","v":49},{"$f":"VLOOKUP(Table_Data_Table_135[[#This Row],[Item ID]],Analysis_Table,15,FALSE)","v":7.6812434901837826E-2},{"$f":"VLOOKUP(Table_Data_Table_135[[#This Row],[Item ID]],Analysis_Table,16,FALSE)","v":254921.34540135638},{"$f":"VLOOKUP(Table_Data_Table_135[[#This Row],[Item ID]],Analysis_Table,17,FALSE)","v":404637.05619262916},{"$f":"VLOOKUP(Table_Data_Table_135[[#This Row],[Item ID]],Analysis_Table,18,FALSE)","v":9.2899999999999991},{"$f":"VLOOKUP(Table_Data_Table_135[[#This Row],[Item ID]],Analysis_Table,19,FALSE)","v":1132.9837573393618},null,null,1]
["0-00All3538-535","Allocation",{"$f":"VLOOKUP(Table_Data_Table_135[[#This Row],[Item ID]],Analysis_Table,20,FALSE)","v":""},"34-300-110-000-050-00","1328 E Grand River Ave",43538,535000,"n","653/8847",0.63,27442.799999999999,225,0,0,{"$f":"VLOOKUP(Table_Data_Table_135[[#This Row],[Item ID]],Analysis_Table,8,FALSE)","v":216300.5},{"$f":"VLOOKUP(Table_Data_Table_135[[#This Row],[Item ID]],Analysis_Table,9,FALSE)","v":0.40429999999999999},{"$f":"VLOOKUP(Table_Data_Table_135[[#This Row],[Item ID]],Analysis_Table,10,FALSE)","v":0.63},{"$f":"VLOOKUP(Table_Data_Table_135[[#This Row],[Item ID]],Analysis_Table,11,FALSE)","v":27442.799999999999},{"$f":"VLOOKUP(Table_Data_Table_135[[#This Row],[Item ID]],Analysis_Table,12,FALSE)","v":343334.12698412698},{"$f":"VLOOKUP(Table_Data_Table_135[[#This Row],[Item ID]],Analysis_Table,13,FALSE)","v":7.88},{"$f":"VLOOKUP(Table_Data_Table_135[[#This Row],[Item ID]],Analysis_Table,14,FALSE)","v":49},{"$f":"VLOOKUP(Table_Data_Table_135[[#This Row],[Item ID]],Analysis_Table,15,FALSE)","v":7.6812434901837826E-2},{"$f":"VLOOKUP(Table_Data_Table_135[[#This Row],[Item ID]],Analysis_Table,16,FALSE)","v":232915.06807548495},{"$f":"VLOOKUP(Table_Data_Table_135[[#This Row],[Item ID]],Analysis_Table,17,FALSE)","v":369706.45726267452},{"$f":"VLOOKUP(Table_Data_Table_135[[#This Row],[Item ID]],Analysis_Table,18,FALSE)","v":8.49},{"$f":"VLOOKUP(Table_Data_Table_135[[#This Row],[Item ID]],Analysis_Table,19,FALSE)","v":1035.1780803354886},null,null,1]
["0-10Abs3088-150","Abstraction",{"$f":"VLOOKUP(Table_Data_Table_135[[#This Row],[Item ID]],Analysis_Table,20,FALSE)","v":""},"34-401-250-000-350-10","1437 W State St",43088,150000,"n","648/7021",0.27300000000000002,11891.880000000001,125,0,113419,{"$f":"VLOOKUP(Table_Data_Table_135[[#This Row],[Item ID]],Analysis_Table,8,FALSE)","v":36581},{"$f":"VLOOKUP(Table_Data_Table_135[[#This Row],[Item ID]],Analysis_Table,9,FALSE)","v":0.24387333333333333},{"$f":"VLOOKUP(Table_Data_Table_135[[#This Row],[Item ID]],Analysis_Table,10,FALSE)","v":0.27300000000000002},{"$f":"VLOOKUP(Table_Data_Table_135[[#This Row],[Item ID]],Analysis_Table,11,FALSE)","v":11891.880000000001},{"$f":"VLOOKUP(Table_Data_Table_135[[#This Row],[Item ID]],Analysis_Table,12,FALSE)","v":133996.33699633699},{"$f":"VLOOKUP(Table_Data_Table_135[[#This Row],[Item ID]],Analysis_Table,13,FALSE)","v":3.08},{"$f":"VLOOKUP(Table_Data_Table_135[[#This Row],[Item ID]],Analysis_Table,14,FALSE)","v":63},{"$f":"VLOOKUP(Table_Data_Table_135[[#This Row],[Item ID]],Analysis_Table,15,FALSE)","v":9.8758844873791496E-2},{"$f":"VLOOKUP(Table_Data_Table_135[[#This Row],[Item ID]],Analysis_Table,16,FALSE)","v":40193.697304328169},{"$f":"VLOOKUP(Table_Data_Table_135[[#This Row],[Item ID]],Analysis_Table,17,FALSE)","v":147229.66045541453},{"$f":"VLOOKUP(Table_Data_Table_135[[#This Row],[Item ID]],Analysis_Table,18,FALSE)","v":3.38},{"$f":"VLOOKUP(Table_Data_Table_135[[#This Row],[Item ID]],Analysis_Table,19,FALSE)","v":321.54957843462535},null,null,1]
["0-10All3088-150","Allocation",{"$f":"VLOOKUP(Table_Data_Table_135[[#This Row],[Item ID]],Analysis_Table,20,FALSE)","v":""},"34-401-250-000-350-10","1437 W State St",43088,150000,"n","648/7021",0.27300000000000002,11891.880000000001,125,0,0,{"$f":"VLOOKUP(Table_Data_Table_135[[#This Row],[Item ID]],Analysis_Table,8,FALSE)","v":60645},{"$f":"VLOOKUP(Table_Data_Table_135[[#This Row],[Item ID]],Analysis_Table,9,FALSE)","v":0.40429999999999999},{"$f":"VLOOKUP(Table_Data_Table_135[[#This Row],[Item ID]],Analysis_Table,10,FALSE)","v":0.27300000000000002},{"$f":"VLOOKUP(Table_Data_Table_135[[#This Row],[Item ID]],Analysis_Table,11,FALSE)","v":11891.880000000001},{"$f":"VLOOKUP(Table_Data_Table_135[[#This Row],[Item ID]],Analysis_Table,12,FALSE)","v":222142.85714285713},{"$f":"VLOOKUP(Table_Data_Table_135[[#This Row],[Item ID]],Analysis_Table,13,FALSE)","v":5.0999999999999996},{"$f":"VLOOKUP(Table_Data_Table_135[[#This Row],[Item ID]],Analysis_Table,14,FALSE)","v":63},{"$f":"VLOOKUP(Table_Data_Table_135[[#This Row],[Item ID]],Analysis_Table,15,FALSE)","v":9.8758844873791496E-2},{"$f":"VLOOKUP(Table_Data_Table_135[[#This Row],[Item ID]],Analysis_Table,16,FALSE)","v":66634.230147371083},{"$f":"VLOOKUP(Table_Data_Table_135[[#This Row],[Item ID]],Analysis_Table,17,FALSE)","v":244081.42911124937},{"$f":"VLOOKUP(Table_Data_Table_135[[#This Row],[Item ID]],Analysis_Table,18,FALSE)","v":5.6},{"$f":"VLOOKUP(Table_Data_Table_135[[#This Row],[Item ID]],Analysis_Table,19,FALSE)","v":533.07384117896868},null,null,1]
["5-00Abs3808-610","Abstraction",{"$f":"VLOOKUP(Table_Data_Table_135[[#This Row],[Item ID]],Analysis_Table,20,FALSE)","v":""},"34-401-250-000-365-00","1331 W State St",43808,610000,"n","657/4058",16.46,716997.60000000009,151,0,226879,{"$f":"VLOOKUP(Table_Data_Table_135[[#This Row],[Item ID]],Analysis_Table,8,FALSE)","v":383121},{"$f":"VLOOKUP(Table_Data_Table_135[[#This Row],[Item ID]],Analysis_Table,9,FALSE)","v":0.62806721311475411},{"$f":"VLOOKUP(Table_Data_Table_135[[#This Row],[Item ID]],Analysis_Table,10,FALSE)","v":16.46},{"$f":"VLOOKUP(Table_Data_Table_135[[#This Row],[Item ID]],Analysis_Table,11,FALSE)","v":716997.60000000009},{"$f":"VLOOKUP(Table_Data_Table_135[[#This Row],[Item ID]],Analysis_Table,12,FALSE)","v":23275.88092345079},{"$f":"VLOOKUP(Table_Data_Table_135[[#This Row],[Item ID]],Analysis_Table,13,FALSE)","v":0.53},{"$f":"VLOOKUP(Table_Data_Table_135[[#This Row],[Item ID]],Analysis_Table,14,FALSE)","v":40},{"$f":"VLOOKUP(Table_Data_Table_135[[#This Row],[Item ID]],Analysis_Table,15,FALSE)","v":6.2704028491296193E-2},{"$f":"VLOOKUP(Table_Data_Table_135[[#This Row],[Item ID]],Analysis_Table,16,FALSE)","v":407144.23009961384},{"$f":"VLOOKUP(Table_Data_Table_135[[#This Row],[Item ID]],Analysis_Table,17,FALSE)","v":24735.37242403486},{"$f":"VLOOKUP(Table_Data_Table_135[[#This Row],[Item ID]],Analysis_Table,18,FALSE)","v":0.56999999999999995},{"$f":"VLOOKUP(Table_Data_Table_135[[#This Row],[Item ID]],Analysis_Table,19,FALSE)","v":2696.3194046332042},null,null,1]
["5-00All3808-610","Allocation",{"$f":"VLOOKUP(Table_Data_Table_135[[#This Row],[Item ID]],Analysis_Table,20,FALSE)","v":""},"34-401-250-000-365-00","1331 W State St",43808,610000,"n","657/4058",16.46,716997.60000000009,151,0,0,{"$f":"VLOOKUP(Table_Data_Table_135[[#This Row],[Item ID]],Analysis_Table,8,FALSE)","v":246623},{"$f":"VLOOKUP(Table_Data_Table_135[[#This Row],[Item ID]],Analysis_Table,9,FALSE)","v":0.40429999999999999},{"$f":"VLOOKUP(Table_Data_Table_135[[#This Row],[Item ID]],Analysis_Table,10,FALSE)","v":16.46},{"$f":"VLOOKUP(Table_Data_Table_135[[#This Row],[Item ID]],Analysis_Table,11,FALSE)","v":716997.60000000009},{"$f":"VLOOKUP(Table_Data_Table_135[[#This Row],[Item ID]],Analysis_Table,12,FALSE)","v":14983.171324422843},{"$f":"VLOOKUP(Table_Data_Table_135[[#This Row],[Item ID]],Analysis_Table,13,FALSE)","v":0.34},{"$f":"VLOOKUP(Table_Data_Table_135[[#This Row],[Item ID]],Analysis_Table,14,FALSE)","v":40},{"$f":"VLOOKUP(Table_Data_Table_135[[#This Row],[Item ID]],Analysis_Table,15,FALSE)","v":6.2704028491296193E-2},{"$f":"VLOOKUP(Table_Data_Table_135[[#This Row],[Item ID]],Analysis_Table,16,FALSE)","v":262087.25561860891},{"$f":"VLOOKUP(Table_Data_Table_135[[#This Row],[Item ID]],Analysis_Table,17,FALSE)","v":15922.676526039422},{"$f":"VLOOKUP(Table_Data_Table_135[[#This Row],[Item ID]],Analysis_Table,18,FALSE)","v":0.37},{"$f":"VLOOKUP(Table_Data_Table_135[[#This Row],[Item ID]],Analysis_Table,19,FALSE)","v":1735.6771895272113},null,null,1]
["5-00Abs3439-338","Abstraction",{"$f":"VLOOKUP(Table_Data_Table_135[[#This Row],[Item ID]],Analysis_Table,20,FALSE)","v":""},"34-401-250-000-365-00","1331 W State St",43439,338000,"n","652/9992",16.46,716997.60000000009,151,0,129314,{"$f":"VLOOKUP(Table_Data_Table_135[[#This Row],[Item ID]],Analysis_Table,8,FALSE)","v":208686},{"$f":"VLOOKUP(Table_Data_Table_135[[#This Row],[Item ID]],Analysis_Table,9,FALSE)","v":0.61741420118343193},{"$f":"VLOOKUP(Table_Data_Table_135[[#This Row],[Item ID]],Analysis_Table,10,FALSE)","v":16.46},{"$f":"VLOOKUP(Table_Data_Table_135[[#This Row],[Item ID]],Analysis_Table,11,FALSE)","v":716997.60000000009},{"$f":"VLOOKUP(Table_Data_Table_135[[#This Row],[Item ID]],Analysis_Table,12,FALSE)","v":12678.371810449575},{"$f":"VLOOKUP(Table_Data_Table_135[[#This Row],[Item ID]],Analysis_Table,13,FALSE)","v":0.28999999999999998},{"$f":"VLOOKUP(Table_Data_Table_135[[#This Row],[Item ID]],Analysis_Table,14,FALSE)","v":52},{"$f":"VLOOKUP(Table_Data_Table_135[[#This Row],[Item ID]],Analysis_Table,15,FALSE)","v":8.1515237038685046E-2},{"$f":"VLOOKUP(Table_Data_Table_135[[#This Row],[Item ID]],Analysis_Table,16,FALSE)","v":225697.08875665505},{"$f":"VLOOKUP(Table_Data_Table_135[[#This Row],[Item ID]],Analysis_Table,17,FALSE)","v":13711.852293842954},{"$f":"VLOOKUP(Table_Data_Table_135[[#This Row],[Item ID]],Analysis_Table,18,FALSE)","v":0.31},{"$f":"VLOOKUP(Table_Data_Table_135[[#This Row],[Item ID]],Analysis_Table,19,FALSE)","v":1494.6827069977155},null,null,1]
["5-00All3439-338","Allocation",{"$f":"VLOOKUP(Table_Data_Table_135[[#This Row],[Item ID]],Analysis_Table,20,FALSE)","v":""},"34-401-250-000-365-00","1331 W State St",43439,338000,"n","652/9992",16.46,716997.60000000009,151,0,0,{"$f":"VLOOKUP(Table_Data_Table_135[[#This Row],[Item ID]],Analysis_Table,8,FALSE)","v":136653.4},{"$f":"VLOOKUP(Table_Data_Table_135[[#This Row],[Item ID]],Analysis_Table,9,FALSE)","v":0.40429999999999999},{"$f":"VLOOKUP(Table_Data_Table_135[[#This Row],[Item ID]],Analysis_Table,10,FALSE)","v":16.46},{"$f":"VLOOKUP(Table_Data_Table_135[[#This Row],[Item ID]],Analysis_Table,11,FALSE)","v":716997.60000000009},{"$f":"VLOOKUP(Table_Data_Table_135[[#This Row],[Item ID]],Analysis_Table,12,FALSE)","v":8302.1506682867548},{"$f":"VLOOKUP(Table_Data_Table_135[[#This Row],[Item ID]],Analysis_Table,13,FALSE)","v":0.19},{"$f":"VLOOKUP(Table_Data_Table_135[[#This Row],[Item ID]],Analysis_Table,14,FALSE)","v":52},{"$f":"VLOOKUP(Table_Data_Table_135[[#This Row],[Item ID]],Analysis_Table,15,FALSE)","v":8.1515237038685046E-2},{"$f":"VLOOKUP(Table_Data_Table_135[[#This Row],[Item ID]],Analysis_Table,16,FALSE)","v":147792.73429314225},{"$f":"VLOOKUP(Table_Data_Table_135[[#This Row],[Item ID]],Analysis_Table,17,FALSE)","v":8978.9024479430282},{"$f":"VLOOKUP(Table_Data_Table_135[[#This Row],[Item ID]],Analysis_Table,18,FALSE)","v":0.21},{"$f":"VLOOKUP(Table_Data_Table_135[[#This Row],[Item ID]],Analysis_Table,19,FALSE)","v":978.75982975590887},null,null,0]
["5-10Abs4841-330","Abstraction",{"$f":"VLOOKUP(Table_Data_Table_135[[#This Row],[Item ID]],Analysis_Table,20,FALSE)","v":""},"34-401-250-000-335-10","1525 W State St",44841,330000,"n","672/8330",0.504,21954.240000000002,249.36,0,179757,{"$f":"VLOOKUP(Table_Data_Table_135[[#This Row],[Item ID]],Analysis_Table,8,FALSE)","v":150243},{"$f":"VLOOKUP(Table_Data_Table_135[[#This Row],[Item ID]],Analysis_Table,9,FALSE)","v":0.45528181818181818},{"$f":"VLOOKUP(Table_Data_Table_135[[#This Row],[Item ID]],Analysis_Table,10,FALSE)","v":0.504},{"$f":"VLOOKUP(Table_Data_Table_135[[#This Row],[Item ID]],Analysis_Table,11,FALSE)","v":21954.240000000002},{"$f":"VLOOKUP(Table_Data_Table_135[[#This Row],[Item ID]],Analysis_Table,12,FALSE)","v":298101.19047619047},{"$f":"VLOOKUP(Table_Data_Table_135[[#This Row],[Item ID]],Analysis_Table,13,FALSE)","v":6.84},{"$f":"VLOOKUP(Table_Data_Table_135[[#This Row],[Item ID]],Analysis_Table,14,FALSE)","v":6},{"$f":"VLOOKUP(Table_Data_Table_135[[#This Row],[Item ID]],Analysis_Table,15,FALSE)","v":0},{"$f":"VLOOKUP(Table_Data_Table_135[[#This Row],[Item ID]],Analysis_Table,16,FALSE)","v":150243},{"$f":"VLOOKUP(Table_Data_Table_135[[#This Row],[Item ID]],Analysis_Table,17,FALSE)","v":298101.19047619047},{"$f":"VLOOKUP(Table_Data_Table_135[[#This Row],[Item ID]],Analysis_Table,18,FALSE)","v":6.84},{"$f":"VLOOKUP(Table_Data_Table_135[[#This Row],[Item ID]],Analysis_Table,19,FALSE)","v":602.51443695861406},null,null,1]
["5-10All4841-330","Allocation",{"$f":"VLOOKUP(Table_Data_Table_135[[#This Row],[Item ID]],Analysis_Table,20,FALSE)","v":""},"34-401-250-000-335-10","1525 W State St",44841,330000,"n","672/8330",0.504,21954.240000000002,249.36,0,0,{"$f":"VLOOKUP(Table_Data_Table_135[[#This Row],[Item ID]],Analysis_Table,8,FALSE)","v":133419},{"$f":"VLOOKUP(Table_Data_Table_135[[#This Row],[Item ID]],Analysis_Table,9,FALSE)","v":0.40429999999999999},{"$f":"VLOOKUP(Table_Data_Table_135[[#This Row],[Item ID]],Analysis_Table,10,FALSE)","v":0.504},{"$f":"VLOOKUP(Table_Data_Table_135[[#This Row],[Item ID]],Analysis_Table,11,FALSE)","v":21954.240000000002},{"$f":"VLOOKUP(Table_Data_Table_135[[#This Row],[Item ID]],Analysis_Table,12,FALSE)","v":264720.23809523811},{"$f":"VLOOKUP(Table_Data_Table_135[[#This Row],[Item ID]],Analysis_Table,13,FALSE)","v":6.08},{"$f":"VLOOKUP(Table_Data_Table_135[[#This Row],[Item ID]],Analysis_Table,14,FALSE)","v":6},{"$f":"VLOOKUP(Table_Data_Table_135[[#This Row],[Item ID]],Analysis_Table,15,FALSE)","v":0},{"$f":"VLOOKUP(Table_Data_Table_135[[#This Row],[Item ID]],Analysis_Table,16,FALSE)","v":133419},{"$f":"VLOOKUP(Table_Data_Table_135[[#This Row],[Item ID]],Analysis_Table,17,FALSE)","v":264720.23809523811},{"$f":"VLOOKUP(Table_Data_Table_135[[#This Row],[Item ID]],Analysis_Table,18,FALSE)","v":6.08},{"$f":"VLOOKUP(Table_Data_Table_135[[#This Row],[Item ID]],Analysis_Table,19,FALSE)","v":535.04571703561112},null,null,1]
["",null,{"$f":"VLOOKUP(Table_Data_Table_135[[#This Row],[Item ID]],Analysis_Table,20,FALSE)","v":{"$error":"#N/A"}},null,null,null,null,null,null,null,0,null,null,null,{"$f":"VLOOKUP(Table_Data_Table_135[[#This Row],[Item ID]],Analysis_Table,8,FALSE)","v":{"$error":"#N/A"}},{"$f":"VLOOKUP(Table_Data_Table_135[[#This Row],[Item ID]],Analysis_Table,9,FALSE)","v":{"$error":"#N/A"}},{"$f":"VLOOKUP(Table_Data_Table_135[[#This Row],[Item ID]],Analysis_Table,10,FALSE)","v":{"$error":"#N/A"}},{"$f":"VLOOKUP(Table_Data_Table_135[[#This Row],[Item ID]],Analysis_Table,11,FALSE)","v":{"$error":"#N/A"}},{"$f":"VLOOKUP(Table_Data_Table_135[[#This Row],[Item ID]],Analysis_Table,12,FALSE)","v":{"$error":"#N/A"}},{"$f":"VLOOKUP(Table_Data_Table_135[[#This Row],[Item ID]],Analysis_Table,13,FALSE)","v":{"$error":"#N/A"}},{"$f":"VLOOKUP(Table_Data_Table_135[[#This Row],[Item ID]],Analysis_Table,14,FALSE)","v":{"$error":"#N/A"}},{"$f":"VLOOKUP(Table_Data_Table_135[[#This Row],[Item ID]],Analysis_Table,15,FALSE)","v":{"$error":"#N/A"}},{"$f":"VLOOKUP(Table_Data_Table_135[[#This Row],[Item ID]],Analysis_Table,16,FALSE)","v":{"$error":"#N/A"}},{"$f":"VLOOKUP(Table_Data_Table_135[[#This Row],[Item ID]],Analysis_Table,17,FALSE)","v":{"$error":"#N/A"}},{"$f":"VLOOKUP(Table_Data_Table_135[[#This Row],[Item ID]],Analysis_Table,18,FALSE)","v":{"$error":"#N/A"}},{"$f":"VLOOKUP(Table_Data_Table_135[[#This Row],[Item ID]],Analysis_Table,19,FALSE)","v":{"$error":"#N/A"}},null,null,1]
["",null,{"$f":"VLOOKUP(Table_Data_Table_135[[#This Row],[Item ID]],Analysis_Table,20,FALSE)","v":{"$error":"#N/A"}},null,null,null,null,null,null,null,0,null,null,null,{"$f":"VLOOKUP(Table_Data_Table_135[[#This Row],[Item ID]],Analysis_Table,8,FALSE)","v":{"$error":"#N/A"}},{"$f":"VLOOKUP(Table_Data_Table_135[[#This Row],[Item ID]],Analysis_Table,9,FALSE)","v":{"$error":"#N/A"}},{"$f":"VLOOKUP(Table_Data_Table_135[[#This Row],[Item ID]],Analysis_Table,10,FALSE)","v":{"$error":"#N/A"}},{"$f":"VLOOKUP(Table_Data_Table_135[[#This Row],[Item ID]],Analysis_Table,11,FALSE)","v":{"$error":"#N/A"}},{"$f":"VLOOKUP(Table_Data_Table_135[[#This Row],[Item ID]],Analysis_Table,12,FALSE)","v":{"$error":"#N/A"}},{"$f":"VLOOKUP(Table_Data_Table_135[[#This Row],[Item ID]],Analysis_Table,13,FALSE)","v":{"$error":"#N/A"}},{"$f":"VLOOKUP(Table_Data_Table_135[[#This Row],[Item ID]],Analysis_Table,14,FALSE)","v":{"$error":"#N/A"}},{"$f":"VLOOKUP(Table_Data_Table_135[[#This Row],[Item ID]],Analysis_Table,15,FALSE)","v":{"$error":"#N/A"}},{"$f":"VLOOKUP(Table_Data_Table_135[[#This Row],[Item ID]],Analysis_Table,16,FALSE)","v":{"$error":"#N/A"}},{"$f":"VLOOKUP(Table_Data_Table_135[[#This Row],[Item ID]],Analysis_Table,17,FALSE)","v":{"$error":"#N/A"}},{"$f":"VLOOKUP(Table_Data_Table_135[[#This Row],[Item ID]],Analysis_Table,18,FALSE)","v":{"$error":"#N/A"}},{"$f":"VLOOKUP(Table_Data_Table_135[[#This Row],[Item ID]],Analysis_Table,19,FALSE)","v":{"$error":"#N/A"}},null,null,1]
["",null,{"$f":"VLOOKUP(Table_Data_Table_135[[#This Row],[Item ID]],Analysis_Table,20,FALSE)","v":{"$error":"#N/A"}},null,null,null,null,null,null,null,0,null,null,null,{"$f":"VLOOKUP(Table_Data_Table_135[[#This Row],[Item ID]],Analysis_Table,8,FALSE)","v":{"$error":"#N/A"}},{"$f":"VLOOKUP(Table_Data_Table_135[[#This Row],[Item ID]],Analysis_Table,9,FALSE)","v":{"$error":"#N/A"}},{"$f":"VLOOKUP(Table_Data_Table_135[[#This Row],[Item ID]],Analysis_Table,10,FALSE)","v":{"$error":"#N/A"}},{"$f":"VLOOKUP(Table_Data_Table_135[[#This Row],[Item ID]],Analysis_Table,11,FALSE)","v":{"$error":"#N/A"}},{"$f":"VLOOKUP(Table_Data_Table_135[[#This Row],[Item ID]],Analysis_Table,12,FALSE)","v":{"$error":"#N/A"}},{"$f":"VLOOKUP(Table_Data_Table_135[[#This Row],[Item ID]],Analysis_Table,13,FALSE)","v":{"$error":"#N/A"}},{"$f":"VLOOKUP(Table_Data_Table_135[[#This Row],[Item ID]],Analysis_Table,14,FALSE)","v":{"$error":"#N/A"}},{"$f":"VLOOKUP(Table_Data_Table_135[[#This Row],[Item ID]],Analysis_Table,15,FALSE)","v":{"$error":"#N/A"}},{"$f":"VLOOKUP(Table_Data_Table_135[[#This Row],[Item ID]],Analysis_Table,16,FALSE)","v":{"$error":"#N/A"}},{"$f":"VLOOKUP(Table_Data_Table_135[[#This Row],[Item ID]],Analysis_Table,17,FALSE)","v":{"$error":"#N/A"}},{"$f":"VLOOKUP(Table_Data_Table_135[[#This Row],[Item ID]],Analysis_Table,18,FALSE)","v":{"$error":"#N/A"}},{"$f":"VLOOKUP(Table_Data_Table_135[[#This Row],[Item ID]],Analysis_Table,19,FALSE)","v":{"$error":"#N/A"}},null,null,1]
["",null,{"$f":"VLOOKUP(Table_Data_Table_135[[#This Row],[Item ID]],Analysis_Table,20,FALSE)","v":{"$error":"#N/A"}},null,null,null,null,null,null,null,0,null,null,null,{"$f":"VLOOKUP(Table_Data_Table_135[[#This Row],[Item ID]],Analysis_Table,8,FALSE)","v":{"$error":"#N/A"}},{"$f":"VLOOKUP(Table_Data_Table_135[[#This Row],[Item ID]],Analysis_Table,9,FALSE)","v":{"$error":"#N/A"}},{"$f":"VLOOKUP(Table_Data_Table_135[[#This Row],[Item ID]],Analysis_Table,10,FALSE)","v":{"$error":"#N/A"}},{"$f":"VLOOKUP(Table_Data_Table_135[[#This Row],[Item ID]],Analysis_Table,11,FALSE)","v":{"$error":"#N/A"}},{"$f":"VLOOKUP(Table_Data_Table_135[[#This Row],[Item ID]],Analysis_Table,12,FALSE)","v":{"$error":"#N/A"}},{"$f":"VLOOKUP(Table_Data_Table_135[[#This Row],[Item ID]],Analysis_Table,13,FALSE)","v":{"$error":"#N/A"}},{"$f":"VLOOKUP(Table_Data_Table_135[[#This Row],[Item ID]],Analysis_Table,14,FALSE)","v":{"$error":"#N/A"}},{"$f":"VLOOKUP(Table_Data_Table_135[[#This Row],[Item ID]],Analysis_Table,15,FALSE)","v":{"$error":"#N/A"}},{"$f":"VLOOKUP(Table_Data_Table_135[[#This Row],[Item ID]],Analysis_Table,16,FALSE)","v":{"$error":"#N/A"}},{"$f":"VLOOKUP(Table_Data_Table_135[[#This Row],[Item ID]],Analysis_Table,17,FALSE)","v":{"$error":"#N/A"}},{"$f":"VLOOKUP(Table_Data_Table_135[[#This Row],[Item ID]],Analysis_Table,18,FALSE)","v":{"$error":"#N/A"}},{"$f":"VLOOKUP(Table_Data_Table_135[[#This Row],[Item ID]],Analysis_Table,19,FALSE)","v":{"$error":"#N/A"}},null,null,1]
["",null,{"$f":"VLOOKUP(Table_Data_Table_135[[#This Row],[Item ID]],Analysis_Table,20,FALSE)","v":{"$error":"#N/A"}},null,null,null,null,null,null,null,0,null,null,null,{"$f":"VLOOKUP(Table_Data_Table_135[[#This Row],[Item ID]],Analysis_Table,8,FALSE)","v":{"$error":"#N/A"}},{"$f":"VLOOKUP(Table_Data_Table_135[[#This Row],[Item ID]],Analysis_Table,9,FALSE)","v":{"$error":"#N/A"}},{"$f":"VLOOKUP(Table_Data_Table_135[[#This Row],[Item ID]],Analysis_Table,10,FALSE)","v":{"$error":"#N/A"}},{"$f":"VLOOKUP(Table_Data_Table_135[[#This Row],[Item ID]],Analysis_Table,11,FALSE)","v":{"$error":"#N/A"}},{"$f":"VLOOKUP(Table_Data_Table_135[[#This Row],[Item ID]],Analysis_Table,12,FALSE)","v":{"$error":"#N/A"}},{"$f":"VLOOKUP(Table_Data_Table_135[[#This Row],[Item ID]],Analysis_Table,13,FALSE)","v":{"$error":"#N/A"}},{"$f":"VLOOKUP(Table_Data_Table_135[[#This Row],[Item ID]],Analysis_Table,14,FALSE)","v":{"$error":"#N/A"}},{"$f":"VLOOKUP(Table_Data_Table_135[[#This Row],[Item ID]],Analysis_Table,15,FALSE)","v":{"$error":"#N/A"}},{"$f":"VLOOKUP(Table_Data_Table_135[[#This Row],[Item ID]],Analysis_Table,16,FALSE)","v":{"$error":"#N/A"}},{"$f":"VLOOKUP(Table_Data_Table_135[[#This Row],[Item ID]],Analysis_Table,17,FALSE)","v":{"$error":"#N/A"}},{"$f":"VLOOKUP(Table_Data_Table_135[[#This Row],[Item ID]],Analysis_Table,18,FALSE)","v":{"$error":"#N/A"}},{"$f":"VLOOKUP(Table_Data_Table_135[[#This Row],[Item ID]],Analysis_Table,19,FALSE)","v":{"$error":"#N/A"}},null,null,1]
["",null,{"$f":"VLOOKUP(Table_Data_Table_135[[#This Row],[Item ID]],Analysis_Table,20,FALSE)","v":{"$error":"#N/A"}},null,null,null,null,null,null,null,0,null,null,null,{"$f":"VLOOKUP(Table_Data_Table_135[[#This Row],[Item ID]],Analysis_Table,8,FALSE)","v":{"$error":"#N/A"}},{"$f":"VLOOKUP(Table_Data_Table_135[[#This Row],[Item ID]],Analysis_Table,9,FALSE)","v":{"$error":"#N/A"}},{"$f":"VLOOKUP(Table_Data_Table_135[[#This Row],[Item ID]],Analysis_Table,10,FALSE)","v":{"$error":"#N/A"}},{"$f":"VLOOKUP(Table_Data_Table_135[[#This Row],[Item ID]],Analysis_Table,11,FALSE)","v":{"$error":"#N/A"}},{"$f":"VLOOKUP(Table_Data_Table_135[[#This Row],[Item ID]],Analysis_Table,12,FALSE)","v":{"$error":"#N/A"}},{"$f":"VLOOKUP(Table_Data_Table_135[[#This Row],[Item ID]],Analysis_Table,13,FALSE)","v":{"$error":"#N/A"}},{"$f":"VLOOKUP(Table_Data_Table_135[[#This Row],[Item ID]],Analysis_Table,14,FALSE)","v":{"$error":"#N/A"}},{"$f":"VLOOKUP(Table_Data_Table_135[[#This Row],[Item ID]],Analysis_Table,15,FALSE)","v":{"$error":"#N/A"}},{"$f":"VLOOKUP(Table_Data_Table_135[[#This Row],[Item ID]],Analysis_Table,16,FALSE)","v":{"$error":"#N/A"}},{"$f":"VLOOKUP(Table_Data_Table_135[[#This Row],[Item ID]],Analysis_Table,17,FALSE)","v":{"$error":"#N/A"}},{"$f":"VLOOKUP(Table_Data_Table_135[[#This Row],[Item ID]],Analysis_Table,18,FALSE)","v":{"$error":"#N/A"}},{"$f":"VLOOKUP(Table_Data_Table_135[[#This Row],[Item ID]],Analysis_Table,19,FALSE)","v":{"$error":"#N/A"}},null,null,1]
["",null,{"$f":"VLOOKUP(Table_Data_Table_135[[#This Row],[Item ID]],Analysis_Table,20,FALSE)","v":{"$error":"#N/A"}},null,null,null,null,null,null,null,0,null,null,null,{"$f":"VLOOKUP(Table_Data_Table_135[[#This Row],[Item ID]],Analysis_Table,8,FALSE)","v":{"$error":"#N/A"}},{"$f":"VLOOKUP(Table_Data_Table_135[[#This Row],[Item ID]],Analysis_Table,9,FALSE)","v":{"$error":"#N/A"}},{"$f":"VLOOKUP(Table_Data_Table_135[[#This Row],[Item ID]],Analysis_Table,10,FALSE)","v":{"$error":"#N/A"}},{"$f":"VLOOKUP(Table_Data_Table_135[[#This Row],[Item ID]],Analysis_Table,11,FALSE)","v":{"$error":"#N/A"}},{"$f":"VLOOKUP(Table_Data_Table_135[[#This Row],[Item ID]],Analysis_Table,12,FALSE)","v":{"$error":"#N/A"}},{"$f":"VLOOKUP(Table_Data_Table_135[[#This Row],[Item ID]],Analysis_Table,13,FALSE)","v":{"$error":"#N/A"}},{"$f":"VLOOKUP(Table_Data_Table_135[[#This Row],[Item ID]],Analysis_Table,14,FALSE)","v":{"$error":"#N/A"}},{"$f":"VLOOKUP(Table_Data_Table_135[[#This Row],[Item ID]],Analysis_Table,15,FALSE)","v":{"$error":"#N/A"}},{"$f":"VLOOKUP(Table_Data_Table_135[[#This Row],[Item ID]],Analysis_Table,16,FALSE)","v":{"$error":"#N/A"}},{"$f":"VLOOKUP(Table_Data_Table_135[[#This Row],[Item ID]],Analysis_Table,17,FALSE)","v":{"$error":"#N/A"}},{"$f":"VLOOKUP(Table_Data_Table_135[[#This Row],[Item ID]],Analysis_Table,18,FALSE)","v":{"$error":"#N/A"}},{"$f":"VLOOKUP(Table_Data_Table_135[[#This Row],[Item ID]],Analysis_Table,19,FALSE)","v":{"$error":"#N/A"}},null,null,1]
["",null,{"$f":"VLOOKUP(Table_Data_Table_135[[#This Row],[Item ID]],Analysis_Table,20,FALSE)","v":{"$error":"#N/A"}},null,null,null,null,null,null,null,0,null,null,null,{"$f":"VLOOKUP(Table_Data_Table_135[[#This Row],[Item ID]],Analysis_Table,8,FALSE)","v":{"$error":"#N/A"}},{"$f":"VLOOKUP(Table_Data_Table_135[[#This Row],[Item ID]],Analysis_Table,9,FALSE)","v":{"$error":"#N/A"}},{"$f":"VLOOKUP(Table_Data_Table_135[[#This Row],[Item ID]],Analysis_Table,10,FALSE)","v":{"$error":"#N/A"}},{"$f":"VLOOKUP(Table_Data_Table_135[[#This Row],[Item ID]],Analysis_Table,11,FALSE)","v":{"$error":"#N/A"}},{"$f":"VLOOKUP(Table_Data_Table_135[[#This Row],[Item ID]],Analysis_Table,12,FALSE)","v":{"$error":"#N/A"}},{"$f":"VLOOKUP(Table_Data_Table_135[[#This Row],[Item ID]],Analysis_Table,13,FALSE)","v":{"$error":"#N/A"}},{"$f":"VLOOKUP(Table_Data_Table_135[[#This Row],[Item ID]],Analysis_Table,14,FALSE)","v":{"$error":"#N/A"}},{"$f":"VLOOKUP(Table_Data_Table_135[[#This Row],[Item ID]],Analysis_Table,15,FALSE)","v":{"$error":"#N/A"}},{"$f":"VLOOKUP(Table_Data_Table_135[[#This Row],[Item ID]],Analysis_Table,16,FALSE)","v":{"$error":"#N/A"}},{"$f":"VLOOKUP(Table_Data_Table_135[[#This Row],[Item ID]],Analysis_Table,17,FALSE)","v":{"$error":"#N/A"}},{"$f":"VLOOKUP(Table_Data_Table_135[[#This Row],[Item ID]],Analysis_Table,18,FALSE)","v":{"$error":"#N/A"}},{"$f":"VLOOKUP(Table_Data_Table_135[[#This Row],[Item ID]],Analysis_Table,19,FALSE)","v":{"$error":"#N/A"}},null,null,1]
["",null,{"$f":"VLOOKUP(Table_Data_Table_135[[#This Row],[Item ID]],Analysis_Table,20,FALSE)","v":{"$error":"#N/A"}},null,null,null,null,null,null,null,0,null,null,null,{"$f":"VLOOKUP(Table_Data_Table_135[[#This Row],[Item ID]],Analysis_Table,8,FALSE)","v":{"$error":"#N/A"}},{"$f":"VLOOKUP(Table_Data_Table_135[[#This Row],[Item ID]],Analysis_Table,9,FALSE)","v":{"$error":"#N/A"}},{"$f":"VLOOKUP(Table_Data_Table_135[[#This Row],[Item ID]],Analysis_Table,10,FALSE)","v":{"$error":"#N/A"}},{"$f":"VLOOKUP(Table_Data_Table_135[[#This Row],[Item ID]],Analysis_Table,11,FALSE)","v":{"$error":"#N/A"}},{"$f":"VLOOKUP(Table_Data_Table_135[[#This Row],[Item ID]],Analysis_Table,12,FALSE)","v":{"$error":"#N/A"}},{"$f":"VLOOKUP(Table_Data_Table_135[[#This Row],[Item ID]],Analysis_Table,13,FALSE)","v":{"$error":"#N/A"}},{"$f":"VLOOKUP(Table_Data_Table_135[[#This Row],[Item ID]],Analysis_Table,14,FALSE)","v":{"$error":"#N/A"}},{"$f":"VLOOKUP(Table_Data_Table_135[[#This Row],[Item ID]],Analysis_Table,15,FALSE)","v":{"$error":"#N/A"}},{"$f":"VLOOKUP(Table_Data_Table_135[[#This Row],[Item ID]],Analysis_Table,16,FALSE)","v":{"$error":"#N/A"}},{"$f":"VLOOKUP(Table_Data_Table_135[[#This Row],[Item ID]],Analysis_Table,17,FALSE)","v":{"$error":"#N/A"}},{"$f":"VLOOKUP(Table_Data_Table_135[[#This Row],[Item ID]],Analysis_Table,18,FALSE)","v":{"$error":"#N/A"}},{"$f":"VLOOKUP(Table_Data_Table_135[[#This Row],[Item ID]],Analysis_Table,19,FALSE)","v":{"$error":"#N/A"}},null,null,1]
["",null,{"$f":"VLOOKUP(Table_Data_Table_135[[#This Row],[Item ID]],Analysis_Table,20,FALSE)","v":{"$error":"#N/A"}},null,null,null,null,null,null,null,0,null,null,null,{"$f":"VLOOKUP(Table_Data_Table_135[[#This Row],[Item ID]],Analysis_Table,8,FALSE)","v":{"$error":"#N/A"}},{"$f":"VLOOKUP(Table_Data_Table_135[[#This Row],[Item ID]],Analysis_Table,9,FALSE)","v":{"$error":"#N/A"}},{"$f":"VLOOKUP(Table_Data_Table_135[[#This Row],[Item ID]],Analysis_Table,10,FALSE)","v":{"$error":"#N/A"}},{"$f":"VLOOKUP(Table_Data_Table_135[[#This Row],[Item ID]],Analysis_Table,11,FALSE)","v":{"$error":"#N/A"}},{"$f":"VLOOKUP(Table_Data_Table_135[[#This Row],[Item ID]],Analysis_Table,12,FALSE)","v":{"$error":"#N/A"}},{"$f":"VLOOKUP(Table_Data_Table_135[[#This Row],[Item ID]],Analysis_Table,13,FALSE)","v":{"$error":"#N/A"}},{"$f":"VLOOKUP(Table_Data_Table_135[[#This Row],[Item ID]],Analysis_Table,14,FALSE)","v":{"$error":"#N/A"}},{"$f":"VLOOKUP(Table_Data_Table_135[[#This Row],[Item ID]],Analysis_Table,15,FALSE)","v":{"$error":"#N/A"}},{"$f":"VLOOKUP(Table_Data_Table_135[[#This Row],[Item ID]],Analysis_Table,16,FALSE)","v":{"$error":"#N/A"}},{"$f":"VLOOKUP(Table_Data_Table_135[[#This Row],[Item ID]],Analysis_Table,17,FALSE)","v":{"$error":"#N/A"}},{"$f":"VLOOKUP(Table_Data_Table_135[[#This Row],[Item ID]],Analysis_Table,18,FALSE)","v":{"$error":"#N/A"}},{"$f":"VLOOKUP(Table_Data_Table_135[[#This Row],[Item ID]],Analysis_Table,19,FALSE)","v":{"$error":"#N/A"}},null,null,1]
["",null,{"$f":"VLOOKUP(Table_Data_Table_135[[#This Row],[Item ID]],Analysis_Table,20,FALSE)","v":{"$error":"#N/A"}},null,null,null,null,null,null,null,0,null,null,null,{"$f":"VLOOKUP(Table_Data_Table_135[[#This Row],[Item ID]],Analysis_Table,8,FALSE)","v":{"$error":"#N/A"}},{"$f":"VLOOKUP(Table_Data_Table_135[[#This Row],[Item ID]],Analysis_Table,9,FALSE)","v":{"$error":"#N/A"}},{"$f":"VLOOKUP(Table_Data_Table_135[[#This Row],[Item ID]],Analysis_Table,10,FALSE)","v":{"$error":"#N/A"}},{"$f":"VLOOKUP(Table_Data_Table_135[[#This Row],[Item ID]],Analysis_Table,11,FALSE)","v":{"$error":"#N/A"}},{"$f":"VLOOKUP(Table_Data_Table_135[[#This Row],[Item ID]],Analysis_Table,12,FALSE)","v":{"$error":"#N/A"}},{"$f":"VLOOKUP(Table_Data_Table_135[[#This Row],[Item ID]],Analysis_Table,13,FALSE)","v":{"$error":"#N/A"}},{"$f":"VLOOKUP(Table_Data_Table_135[[#This Row],[Item ID]],Analysis_Table,14,FALSE)","v":{"$error":"#N/A"}},{"$f":"VLOOKUP(Table_Data_Table_135[[#This Row],[Item ID]],Analysis_Table,15,FALSE)","v":{"$error":"#N/A"}},{"$f":"VLOOKUP(Table_Data_Table_135[[#This Row],[Item ID]],Analysis_Table,16,FALSE)","v":{"$error":"#N/A"}},{"$f":"VLOOKUP(Table_Data_Table_135[[#This Row],[Item ID]],Analysis_Table,17,FALSE)","v":{"$error":"#N/A"}},{"$f":"VLOOKUP(Table_Data_Table_135[[#This Row],[Item ID]],Analysis_Table,18,FALSE)","v":{"$error":"#N/A"}},{"$f":"VLOOKUP(Table_Data_Table_135[[#This Row],[Item ID]],Analysis_Table,19,FALSE)","v":{"$error":"#N/A"}},null,null,1]
["",null,{"$f":"VLOOKUP(Table_Data_Table_135[[#This Row],[Item ID]],Analysis_Table,20,FALSE)","v":{"$error":"#N/A"}},null,null,null,null,null,null,null,0,null,null,null,{"$f":"VLOOKUP(Table_Data_Table_135[[#This Row],[Item ID]],Analysis_Table,8,FALSE)","v":{"$error":"#N/A"}},{"$f":"VLOOKUP(Table_Data_Table_135[[#This Row],[Item ID]],Analysis_Table,9,FALSE)","v":{"$error":"#N/A"}},{"$f":"VLOOKUP(Table_Data_Table_135[[#This Row],[Item ID]],Analysis_Table,10,FALSE)","v":{"$error":"#N/A"}},{"$f":"VLOOKUP(Table_Data_Table_135[[#This Row],[Item ID]],Analysis_Table,11,FALSE)","v":{"$error":"#N/A"}},{"$f":"VLOOKUP(Table_Data_Table_135[[#This Row],[Item ID]],Analysis_Table,12,FALSE)","v":{"$error":"#N/A"}},{"$f":"VLOOKUP(Table_Data_Table_135[[#This Row],[Item ID]],Analysis_Table,13,FALSE)","v":{"$error":"#N/A"}},{"$f":"VLOOKUP(Table_Data_Table_135[[#This Row],[Item ID]],Analysis_Table,14,FALSE)","v":{"$error":"#N/A"}},{"$f":"VLOOKUP(Table_Data_Table_135[[#This Row],[Item ID]],Analysis_Table,15,FALSE)","v":{"$error":"#N/A"}},{"$f":"VLOOKUP(Table_Data_Table_135[[#This Row],[Item ID]],Analysis_Table,16,FALSE)","v":{"$error":"#N/A"}},{"$f":"VLOOKUP(Table_Data_Table_135[[#This Row],[Item ID]],Analysis_Table,17,FALSE)","v":{"$error":"#N/A"}},{"$f":"VLOOKUP(Table_Data_Table_135[[#This Row],[Item ID]],Analysis_Table,18,FALSE)","v":{"$error":"#N/A"}},{"$f":"VLOOKUP(Table_Data_Table_135[[#This Row],[Item ID]],Analysis_Table,19,FALSE)","v":{"$error":"#N/A"}},null,null,1]
["",null,{"$f":"VLOOKUP(Table_Data_Table_135[[#This Row],[Item ID]],Analysis_Table,20,FALSE)","v":{"$error":"#N/A"}},null,null,null,null,null,null,null,0,null,null,null,{"$f":"VLOOKUP(Table_Data_Table_135[[#This Row],[Item ID]],Analysis_Table,8,FALSE)","v":{"$error":"#N/A"}},{"$f":"VLOOKUP(Table_Data_Table_135[[#This Row],[Item ID]],Analysis_Table,9,FALSE)","v":{"$error":"#N/A"}},{"$f":"VLOOKUP(Table_Data_Table_135[[#This Row],[Item ID]],Analysis_Table,10,FALSE)","v":{"$error":"#N/A"}},{"$f":"VLOOKUP(Table_Data_Table_135[[#This Row],[Item ID]],Analysis_Table,11,FALSE)","v":{"$error":"#N/A"}},{"$f":"VLOOKUP(Table_Data_Table_135[[#This Row],[Item ID]],Analysis_Table,12,FALSE)","v":{"$error":"#N/A"}},{"$f":"VLOOKUP(Table_Data_Table_135[[#This Row],[Item ID]],Analysis_Table,13,FALSE)","v":{"$error":"#N/A"}},{"$f":"VLOOKUP(Table_Data_Table_135[[#This Row],[Item ID]],Analysis_Table,14,FALSE)","v":{"$error":"#N/A"}},{"$f":"VLOOKUP(Table_Data_Table_135[[#This Row],[Item ID]],Analysis_Table,15,FALSE)","v":{"$error":"#N/A"}},{"$f":"VLOOKUP(Table_Data_Table_135[[#This Row],[Item ID]],Analysis_Table,16,FALSE)","v":{"$error":"#N/A"}},{"$f":"VLOOKUP(Table_Data_Table_135[[#This Row],[Item ID]],Analysis_Table,17,FALSE)","v":{"$error":"#N/A"}},{"$f":"VLOOKUP(Table_Data_Table_135[[#This Row],[Item ID]],Analysis_Table,18,FALSE)","v":{"$error":"#N/A"}},{"$f":"VLOOKUP(Table_Data_Table_135[[#This Row],[Item ID]],Analysis_Table,19,FALSE)","v":{"$error":"#N/A"}},null,null,1]
["",null,{"$f":"VLOOKUP(Table_Data_Table_135[[#This Row],[Item ID]],Analysis_Table,20,FALSE)","v":{"$error":"#N/A"}},null,null,null,null,null,null,null,0,null,null,null,{"$f":"VLOOKUP(Table_Data_Table_135[[#This Row],[Item ID]],Analysis_Table,8,FALSE)","v":{"$error":"#N/A"}},{"$f":"VLOOKUP(Table_Data_Table_135[[#This Row],[Item ID]],Analysis_Table,9,FALSE)","v":{"$error":"#N/A"}},{"$f":"VLOOKUP(Table_Data_Table_135[[#This Row],[Item ID]],Analysis_Table,10,FALSE)","v":{"$error":"#N/A"}},{"$f":"VLOOKUP(Table_Data_Table_135[[#This Row],[Item ID]],Analysis_Table,11,FALSE)","v":{"$error":"#N/A"}},{"$f":"VLOOKUP(Table_Data_Table_135[[#This Row],[Item ID]],Analysis_Table,12,FALSE)","v":{"$error":"#N/A"}},{"$f":"VLOOKUP(Table_Data_Table_135[[#This Row],[Item ID]],Analysis_Table,13,FALSE)","v":{"$error":"#N/A"}},{"$f":"VLOOKUP(Table_Data_Table_135[[#This Row],[Item ID]],Analysis_Table,14,FALSE)","v":{"$error":"#N/A"}},{"$f":"VLOOKUP(Table_Data_Table_135[[#This Row],[Item ID]],Analysis_Table,15,FALSE)","v":{"$error":"#N/A"}},{"$f":"VLOOKUP(Table_Data_Table_135[[#This Row],[Item ID]],Analysis_Table,16,FALSE)","v":{"$error":"#N/A"}},{"$f":"VLOOKUP(Table_Data_Table_135[[#This Row],[Item ID]],Analysis_Table,17,FALSE)","v":{"$error":"#N/A"}},{"$f":"VLOOKUP(Table_Data_Table_135[[#This Row],[Item ID]],Analysis_Table,18,FALSE)","v":{"$error":"#N/A"}},{"$f":"VLOOKUP(Table_Data_Table_135[[#This Row],[Item ID]],Analysis_Table,19,FALSE)","v":{"$error":"#N/A"}},null,null,1]
["",null,{"$f":"VLOOKUP(Table_Data_Table_135[[#This Row],[Item ID]],Analysis_Table,20,FALSE)","v":{"$error":"#N/A"}},null,null,null,null,null,null,null,0,null,null,null,{"$f":"VLOOKUP(Table_Data_Table_135[[#This Row],[Item ID]],Analysis_Table,8,FALSE)","v":{"$error":"#N/A"}},{"$f":"VLOOKUP(Table_Data_Table_135[[#This Row],[Item ID]],Analysis_Table,9,FALSE)","v":{"$error":"#N/A"}},{"$f":"VLOOKUP(Table_Data_Table_135[[#This Row],[Item ID]],Analysis_Table,10,FALSE)","v":{"$error":"#N/A"}},{"$f":"VLOOKUP(Table_Data_Table_135[[#This Row],[Item ID]],Analysis_Table,11,FALSE)","v":{"$error":"#N/A"}},{"$f":"VLOOKUP(Table_Data_Table_135[[#This Row],[Item ID]],Analysis_Table,12,FALSE)","v":{"$error":"#N/A"}},{"$f":"VLOOKUP(Table_Data_Table_135[[#This Row],[Item ID]],Analysis_Table,13,FALSE)","v":{"$error":"#N/A"}},{"$f":"VLOOKUP(Table_Data_Table_135[[#This Row],[Item ID]],Analysis_Table,14,FALSE)","v":{"$error":"#N/A"}},{"$f":"VLOOKUP(Table_Data_Table_135[[#This Row],[Item ID]],Analysis_Table,15,FALSE)","v":{"$error":"#N/A"}},{"$f":"VLOOKUP(Table_Data_Table_135[[#This Row],[Item ID]],Analysis_Table,16,FALSE)","v":{"$error":"#N/A"}},{"$f":"VLOOKUP(Table_Data_Table_135[[#This Row],[Item ID]],Analysis_Table,17,FALSE)","v":{"$error":"#N/A"}},{"$f":"VLOOKUP(Table_Data_Table_135[[#This Row],[Item ID]],Analysis_Table,18,FALSE)","v":{"$error":"#N/A"}},{"$f":"VLOOKUP(Table_Data_Table_135[[#This Row],[Item ID]],Analysis_Table,19,FALSE)","v":{"$error":"#N/A"}},null,null,1]
["",null,{"$f":"VLOOKUP(Table_Data_Table_135[[#This Row],[Item ID]],Analysis_Table,20,FALSE)","v":{"$error":"#N/A"}},null,null,null,null,null,null,null,0,null,null,null,{"$f":"VLOOKUP(Table_Data_Table_135[[#This Row],[Item ID]],Analysis_Table,8,FALSE)","v":{"$error":"#N/A"}},{"$f":"VLOOKUP(Table_Data_Table_135[[#This Row],[Item ID]],Analysis_Table,9,FALSE)","v":{"$error":"#N/A"}},{"$f":"VLOOKUP(Table_Data_Table_135[[#This Row],[Item ID]],Analysis_Table,10,FALSE)","v":{"$error":"#N/A"}},{"$f":"VLOOKUP(Table_Data_Table_135[[#This Row],[Item ID]],Analysis_Table,11,FALSE)","v":{"$error":"#N/A"}},{"$f":"VLOOKUP(Table_Data_Table_135[[#This Row],[Item ID]],Analysis_Table,12,FALSE)","v":{"$error":"#N/A"}},{"$f":"VLOOKUP(Table_Data_Table_135[[#This Row],[Item ID]],Analysis_Table,13,FALSE)","v":{"$error":"#N/A"}},{"$f":"VLOOKUP(Table_Data_Table_135[[#This Row],[Item ID]],Analysis_Table,14,FALSE)","v":{"$error":"#N/A"}},{"$f":"VLOOKUP(Table_Data_Table_135[[#This Row],[Item ID]],Analysis_Table,15,FALSE)","v":{"$error":"#N/A"}},{"$f":"VLOOKUP(Table_Data_Table_135[[#This Row],[Item ID]],Analysis_Table,16,FALSE)","v":{"$error":"#N/A"}},{"$f":"VLOOKUP(Table_Data_Table_135[[#This Row],[Item ID]],Analysis_Table,17,FALSE)","v":{"$error":"#N/A"}},{"$f":"VLOOKUP(Table_Data_Table_135[[#This Row],[Item ID]],Analysis_Table,18,FALSE)","v":{"$error":"#N/A"}},{"$f":"VLOOKUP(Table_Data_Table_135[[#This Row],[Item ID]],Analysis_Table,19,FALSE)","v":{"$error":"#N/A"}},null,null,1]
["",null,{"$f":"VLOOKUP(Table_Data_Table_135[[#This Row],[Item ID]],Analysis_Table,20,FALSE)","v":{"$error":"#N/A"}},null,null,null,null,null,null,null,0,null,null,null,{"$f":"VLOOKUP(Table_Data_Table_135[[#This Row],[Item ID]],Analysis_Table,8,FALSE)","v":{"$error":"#N/A"}},{"$f":"VLOOKUP(Table_Data_Table_135[[#This Row],[Item ID]],Analysis_Table,9,FALSE)","v":{"$error":"#N/A"}},{"$f":"VLOOKUP(Table_Data_Table_135[[#This Row],[Item ID]],Analysis_Table,10,FALSE)","v":{"$error":"#N/A"}},{"$f":"VLOOKUP(Table_Data_Table_135[[#This Row],[Item ID]],Analysis_Table,11,FALSE)","v":{"$error":"#N/A"}},{"$f":"VLOOKUP(Table_Data_Table_135[[#This Row],[Item ID]],Analysis_Table,12,FALSE)","v":{"$error":"#N/A"}},{"$f":"VLOOKUP(Table_Data_Table_135[[#This Row],[Item ID]],Analysis_Table,13,FALSE)","v":{"$error":"#N/A"}},{"$f":"VLOOKUP(Table_Data_Table_135[[#This Row],[Item ID]],Analysis_Table,14,FALSE)","v":{"$error":"#N/A"}},{"$f":"VLOOKUP(Table_Data_Table_135[[#This Row],[Item ID]],Analysis_Table,15,FALSE)","v":{"$error":"#N/A"}},{"$f":"VLOOKUP(Table_Data_Table_135[[#This Row],[Item ID]],Analysis_Table,16,FALSE)","v":{"$error":"#N/A"}},{"$f":"VLOOKUP(Table_Data_Table_135[[#This Row],[Item ID]],Analysis_Table,17,FALSE)","v":{"$error":"#N/A"}},{"$f":"VLOOKUP(Table_Data_Table_135[[#This Row],[Item ID]],Analysis_Table,18,FALSE)","v":{"$error":"#N/A"}},{"$f":"VLOOKUP(Table_Data_Table_135[[#This Row],[Item ID]],Analysis_Table,19,FALSE)","v":{"$error":"#N/A"}},null,null,1]
["",null,{"$f":"VLOOKUP(Table_Data_Table_135[[#This Row],[Item ID]],Analysis_Table,20,FALSE)","v":{"$error":"#N/A"}},null,null,null,null,null,null,null,0,null,null,null,{"$f":"VLOOKUP(Table_Data_Table_135[[#This Row],[Item ID]],Analysis_Table,8,FALSE)","v":{"$error":"#N/A"}},{"$f":"VLOOKUP(Table_Data_Table_135[[#This Row],[Item ID]],Analysis_Table,9,FALSE)","v":{"$error":"#N/A"}},{"$f":"VLOOKUP(Table_Data_Table_135[[#This Row],[Item ID]],Analysis_Table,10,FALSE)","v":{"$error":"#N/A"}},{"$f":"VLOOKUP(Table_Data_Table_135[[#This Row],[Item ID]],Analysis_Table,11,FALSE)","v":{"$error":"#N/A"}},{"$f":"VLOOKUP(Table_Data_Table_135[[#This Row],[Item ID]],Analysis_Table,12,FALSE)","v":{"$error":"#N/A"}},{"$f":"VLOOKUP(Table_Data_Table_135[[#This Row],[Item ID]],Analysis_Table,13,FALSE)","v":{"$error":"#N/A"}},{"$f":"VLOOKUP(Table_Data_Table_135[[#This Row],[Item ID]],Analysis_Table,14,FALSE)","v":{"$error":"#N/A"}},{"$f":"VLOOKUP(Table_Data_Table_135[[#This Row],[Item ID]],Analysis_Table,15,FALSE)","v":{"$error":"#N/A"}},{"$f":"VLOOKUP(Table_Data_Table_135[[#This Row],[Item ID]],Analysis_Table,16,FALSE)","v":{"$error":"#N/A"}},{"$f":"VLOOKUP(Table_Data_Table_135[[#This Row],[Item ID]],Analysis_Table,17,FALSE)","v":{"$error":"#N/A"}},{"$f":"VLOOKUP(Table_Data_Table_135[[#This Row],[Item ID]],Analysis_Table,18,FALSE)","v":{"$error":"#N/A"}},{"$f":"VLOOKUP(Table_Data_Table_135[[#This Row],[Item ID]],Analysis_Table,19,FALSE)","v":{"$error":"#N/A"}},null,null,1]
["",null,{"$f":"VLOOKUP(Table_Data_Table_135[[#This Row],[Item ID]],Analysis_Table,20,FALSE)","v":{"$error":"#N/A"}},null,null,null,null,null,null,null,0,null,null,null,{"$f":"VLOOKUP(Table_Data_Table_135[[#This Row],[Item ID]],Analysis_Table,8,FALSE)","v":{"$error":"#N/A"}},{"$f":"VLOOKUP(Table_Data_Table_135[[#This Row],[Item ID]],Analysis_Table,9,FALSE)","v":{"$error":"#N/A"}},{"$f":"VLOOKUP(Table_Data_Table_135[[#This Row],[Item ID]],Analysis_Table,10,FALSE)","v":{"$error":"#N/A"}},{"$f":"VLOOKUP(Table_Data_Table_135[[#This Row],[Item ID]],Analysis_Table,11,FALSE)","v":{"$error":"#N/A"}},{"$f":"VLOOKUP(Table_Data_Table_135[[#This Row],[Item ID]],Analysis_Table,12,FALSE)","v":{"$error":"#N/A"}},{"$f":"VLOOKUP(Table_Data_Table_135[[#This Row],[Item ID]],Analysis_Table,13,FALSE)","v":{"$error":"#N/A"}},{"$f":"VLOOKUP(Table_Data_Table_135[[#This Row],[Item ID]],Analysis_Table,14,FALSE)","v":{"$error":"#N/A"}},{"$f":"VLOOKUP(Table_Data_Table_135[[#This Row],[Item ID]],Analysis_Table,15,FALSE)","v":{"$error":"#N/A"}},{"$f":"VLOOKUP(Table_Data_Table_135[[#This Row],[Item ID]],Analysis_Table,16,FALSE)","v":{"$error":"#N/A"}},{"$f":"VLOOKUP(Table_Data_Table_135[[#This Row],[Item ID]],Analysis_Table,17,FALSE)","v":{"$error":"#N/A"}},{"$f":"VLOOKUP(Table_Data_Table_135[[#This Row],[Item ID]],Analysis_Table,18,FALSE)","v":{"$error":"#N/A"}},{"$f":"VLOOKUP(Table_Data_Table_135[[#This Row],[Item ID]],Analysis_Table,19,FALSE)","v":{"$error":"#N/A"}},null,null,1]
["",null,{"$f":"VLOOKUP(Table_Data_Table_135[[#This Row],[Item ID]],Analysis_Table,20,FALSE)","v":{"$error":"#N/A"}},null,null,null,null,null,null,null,0,null,null,null,{"$f":"VLOOKUP(Table_Data_Table_135[[#This Row],[Item ID]],Analysis_Table,8,FALSE)","v":{"$error":"#N/A"}},{"$f":"VLOOKUP(Table_Data_Table_135[[#This Row],[Item ID]],Analysis_Table,9,FALSE)","v":{"$error":"#N/A"}},{"$f":"VLOOKUP(Table_Data_Table_135[[#This Row],[Item ID]],Analysis_Table,10,FALSE)","v":{"$error":"#N/A"}},{"$f":"VLOOKUP(Table_Data_Table_135[[#This Row],[Item ID]],Analysis_Table,11,FALSE)","v":{"$error":"#N/A"}},{"$f":"VLOOKUP(Table_Data_Table_135[[#This Row],[Item ID]],Analysis_Table,12,FALSE)","v":{"$error":"#N/A"}},{"$f":"VLOOKUP(Table_Data_Table_135[[#This Row],[Item ID]],Analysis_Table,13,FALSE)","v":{"$error":"#N/A"}},{"$f":"VLOOKUP(Table_Data_Table_135[[#This Row],[Item ID]],Analysis_Table,14,FALSE)","v":{"$error":"#N/A"}},{"$f":"VLOOKUP(Table_Data_Table_135[[#This Row],[Item ID]],Analysis_Table,15,FALSE)","v":{"$error":"#N/A"}},{"$f":"VLOOKUP(Table_Data_Table_135[[#This Row],[Item ID]],Analysis_Table,16,FALSE)","v":{"$error":"#N/A"}},{"$f":"VLOOKUP(Table_Data_Table_135[[#This Row],[Item ID]],Analysis_Table,17,FALSE)","v":{"$error":"#N/A"}},{"$f":"VLOOKUP(Table_Data_Table_135[[#This Row],[Item ID]],Analysis_Table,18,FALSE)","v":{"$error":"#N/A"}},{"$f":"VLOOKUP(Table_Data_Table_135[[#This Row],[Item ID]],Analysis_Table,19,FALSE)","v":{"$error":"#N/A"}},null,null,1]
["",null,{"$f":"VLOOKUP(Table_Data_Table_135[[#This Row],[Item ID]],Analysis_Table,20,FALSE)","v":{"$error":"#N/A"}},null,null,null,null,null,null,null,0,null,null,null,{"$f":"VLOOKUP(Table_Data_Table_135[[#This Row],[Item ID]],Analysis_Table,8,FALSE)","v":{"$error":"#N/A"}},{"$f":"VLOOKUP(Table_Data_Table_135[[#This Row],[Item ID]],Analysis_Table,9,FALSE)","v":{"$error":"#N/A"}},{"$f":"VLOOKUP(Table_Data_Table_135[[#This Row],[Item ID]],Analysis_Table,10,FALSE)","v":{"$error":"#N/A"}},{"$f":"VLOOKUP(Table_Data_Table_135[[#This Row],[Item ID]],Analysis_Table,11,FALSE)","v":{"$error":"#N/A"}},{"$f":"VLOOKUP(Table_Data_Table_135[[#This Row],[Item ID]],Analysis_Table,12,FALSE)","v":{"$error":"#N/A"}},{"$f":"VLOOKUP(Table_Data_Table_135[[#This Row],[Item ID]],Analysis_Table,13,FALSE)","v":{"$error":"#N/A"}},{"$f":"VLOOKUP(Table_Data_Table_135[[#This Row],[Item ID]],Analysis_Table,14,FALSE)","v":{"$error":"#N/A"}},{"$f":"VLOOKUP(Table_Data_Table_135[[#This Row],[Item ID]],Analysis_Table,15,FALSE)","v":{"$error":"#N/A"}},{"$f":"VLOOKUP(Table_Data_Table_135[[#This Row],[Item ID]],Analysis_Table,16,FALSE)","v":{"$error":"#N/A"}},{"$f":"VLOOKUP(Table_Data_Table_135[[#This Row],[Item ID]],Analysis_Table,17,FALSE)","v":{"$error":"#N/A"}},{"$f":"VLOOKUP(Table_Data_Table_135[[#This Row],[Item ID]],Analysis_Table,18,FALSE)","v":{"$error":"#N/A"}},{"$f":"VLOOKUP(Table_Data_Table_135[[#This Row],[Item ID]],Analysis_Table,19,FALSE)","v":{"$error":"#N/A"}},null,null,1]
["",null,{"$f":"VLOOKUP(Table_Data_Table_135[[#This Row],[Item ID]],Analysis_Table,20,FALSE)","v":{"$error":"#N/A"}},null,null,null,null,null,null,null,0,null,null,null,{"$f":"VLOOKUP(Table_Data_Table_135[[#This Row],[Item ID]],Analysis_Table,8,FALSE)","v":{"$error":"#N/A"}},{"$f":"VLOOKUP(Table_Data_Table_135[[#This Row],[Item ID]],Analysis_Table,9,FALSE)","v":{"$error":"#N/A"}},{"$f":"VLOOKUP(Table_Data_Table_135[[#This Row],[Item ID]],Analysis_Table,10,FALSE)","v":{"$error":"#N/A"}},{"$f":"VLOOKUP(Table_Data_Table_135[[#This Row],[Item ID]],Analysis_Table,11,FALSE)","v":{"$error":"#N/A"}},{"$f":"VLOOKUP(Table_Data_Table_135[[#This Row],[Item ID]],Analysis_Table,12,FALSE)","v":{"$error":"#N/A"}},{"$f":"VLOOKUP(Table_Data_Table_135[[#This Row],[Item ID]],Analysis_Table,13,FALSE)","v":{"$error":"#N/A"}},{"$f":"VLOOKUP(Table_Data_Table_135[[#This Row],[Item ID]],Analysis_Table,14,FALSE)","v":{"$error":"#N/A"}},{"$f":"VLOOKUP(Table_Data_Table_135[[#This Row],[Item ID]],Analysis_Table,15,FALSE)","v":{"$error":"#N/A"}},{"$f":"VLOOKUP(Table_Data_Table_135[[#This Row],[Item ID]],Analysis_Table,16,FALSE)","v":{"$error":"#N/A"}},{"$f":"VLOOKUP(Table_Data_Table_135[[#This Row],[Item ID]],Analysis_Table,17,FALSE)","v":{"$error":"#N/A"}},{"$f":"VLOOKUP(Table_Data_Table_135[[#This Row],[Item ID]],Analysis_Table,18,FALSE)","v":{"$error":"#N/A"}},{"$f":"VLOOKUP(Table_Data_Table_135[[#This Row],[Item ID]],Analysis_Table,19,FALSE)","v":{"$error":"#N/A"}},null,null,1]
["",null,{"$f":"VLOOKUP(Table_Data_Table_135[[#This Row],[Item ID]],Analysis_Table,20,FALSE)","v":{"$error":"#N/A"}},null,null,null,null,null,null,null,0,null,null,null,{"$f":"VLOOKUP(Table_Data_Table_135[[#This Row],[Item ID]],Analysis_Table,8,FALSE)","v":{"$error":"#N/A"}},{"$f":"VLOOKUP(Table_Data_Table_135[[#This Row],[Item ID]],Analysis_Table,9,FALSE)","v":{"$error":"#N/A"}},{"$f":"VLOOKUP(Table_Data_Table_135[[#This Row],[Item ID]],Analysis_Table,10,FALSE)","v":{"$error":"#N/A"}},{"$f":"VLOOKUP(Table_Data_Table_135[[#This Row],[Item ID]],Analysis_Table,11,FALSE)","v":{"$error":"#N/A"}},{"$f":"VLOOKUP(Table_Data_Table_135[[#This Row],[Item ID]],Analysis_Table,12,FALSE)","v":{"$error":"#N/A"}},{"$f":"VLOOKUP(Table_Data_Table_135[[#This Row],[Item ID]],Analysis_Table,13,FALSE)","v":{"$error":"#N/A"}},{"$f":"VLOOKUP(Table_Data_Table_135[[#This Row],[Item ID]],Analysis_Table,14,FALSE)","v":{"$error":"#N/A"}},{"$f":"VLOOKUP(Table_Data_Table_135[[#This Row],[Item ID]],Analysis_Table,15,FALSE)","v":{"$error":"#N/A"}},{"$f":"VLOOKUP(Table_Data_Table_135[[#This Row],[Item ID]],Analysis_Table,16,FALSE)","v":{"$error":"#N/A"}},{"$f":"VLOOKUP(Table_Data_Table_135[[#This Row],[Item ID]],Analysis_Table,17,FALSE)","v":{"$error":"#N/A"}},{"$f":"VLOOKUP(Table_Data_Table_135[[#This Row],[Item ID]],Analysis_Table,18,FALSE)","v":{"$error":"#N/A"}},{"$f":"VLOOKUP(Table_Data_Table_135[[#This Row],[Item ID]],Analysis_Table,19,FALSE)","v":{"$error":"#N/A"}},null,null,1]
["",null,{"$f":"VLOOKUP(Table_Data_Table_135[[#This Row],[Item ID]],Analysis_Table,20,FALSE)","v":{"$error":"#N/A"}},null,null,null,null,null,null,null,0,null,null,null,{"$f":"VLOOKUP(Table_Data_Table_135[[#This Row],[Item ID]],Analysis_Table,8,FALSE)","v":{"$error":"#N/A"}},{"$f":"VLOOKUP(Table_Data_Table_135[[#This Row],[Item ID]],Analysis_Table,9,FALSE)","v":{"$error":"#N/A"}},{"$f":"VLOOKUP(Table_Data_Table_135[[#This Row],[Item ID]],Analysis_Table,10,FALSE)","v":{"$error":"#N/A"}},{"$f":"VLOOKUP(Table_Data_Table_135[[#This Row],[Item ID]],Analysis_Table,11,FALSE)","v":{"$error":"#N/A"}},{"$f":"VLOOKUP(Table_Data_Table_135[[#This Row],[Item ID]],Analysis_Table,12,FALSE)","v":{"$error":"#N/A"}},{"$f":"VLOOKUP(Table_Data_Table_135[[#This Row],[Item ID]],Analysis_Table,13,FALSE)","v":{"$error":"#N/A"}},{"$f":"VLOOKUP(Table_Data_Table_135[[#This Row],[Item ID]],Analysis_Table,14,FALSE)","v":{"$error":"#N/A"}},{"$f":"VLOOKUP(Table_Data_Table_135[[#This Row],[Item ID]],Analysis_Table,15,FALSE)","v":{"$error":"#N/A"}},{"$f":"VLOOKUP(Table_Data_Table_135[[#This Row],[Item ID]],Analysis_Table,16,FALSE)","v":{"$error":"#N/A"}},{"$f":"VLOOKUP(Table_Data_Table_135[[#This Row],[Item ID]],Analysis_Table,17,FALSE)","v":{"$error":"#N/A"}},{"$f":"VLOOKUP(Table_Data_Table_135[[#This Row],[Item ID]],Analysis_Table,18,FALSE)","v":{"$error":"#N/A"}},{"$f":"VLOOKUP(Table_Data_Table_135[[#This Row],[Item ID]],Analysis_Table,19,FALSE)","v":{"$error":"#N/A"}},null,null,1]
["",null,{"$f":"VLOOKUP(Table_Data_Table_135[[#This Row],[Item ID]],Analysis_Table,20,FALSE)","v":{"$error":"#N/A"}},null,null,null,null,null,null,null,0,null,null,null,{"$f":"VLOOKUP(Table_Data_Table_135[[#This Row],[Item ID]],Analysis_Table,8,FALSE)","v":{"$error":"#N/A"}},{"$f":"VLOOKUP(Table_Data_Table_135[[#This Row],[Item ID]],Analysis_Table,9,FALSE)","v":{"$error":"#N/A"}},{"$f":"VLOOKUP(Table_Data_Table_135[[#This Row],[Item ID]],Analysis_Table,10,FALSE)","v":{"$error":"#N/A"}},{"$f":"VLOOKUP(Table_Data_Table_135[[#This Row],[Item ID]],Analysis_Table,11,FALSE)","v":{"$error":"#N/A"}},{"$f":"VLOOKUP(Table_Data_Table_135[[#This Row],[Item ID]],Analysis_Table,12,FALSE)","v":{"$error":"#N/A"}},{"$f":"VLOOKUP(Table_Data_Table_135[[#This Row],[Item ID]],Analysis_Table,13,FALSE)","v":{"$error":"#N/A"}},{"$f":"VLOOKUP(Table_Data_Table_135[[#This Row],[Item ID]],Analysis_Table,14,FALSE)","v":{"$error":"#N/A"}},{"$f":"VLOOKUP(Table_Data_Table_135[[#This Row],[Item ID]],Analysis_Table,15,FALSE)","v":{"$error":"#N/A"}},{"$f":"VLOOKUP(Table_Data_Table_135[[#This Row],[Item ID]],Analysis_Table,16,FALSE)","v":{"$error":"#N/A"}},{"$f":"VLOOKUP(Table_Data_Table_135[[#This Row],[Item ID]],Analysis_Table,17,FALSE)","v":{"$error":"#N/A"}},{"$f":"VLOOKUP(Table_Data_Table_135[[#This Row],[Item ID]],Analysis_Table,18,FALSE)","v":{"$error":"#N/A"}},{"$f":"VLOOKUP(Table_Data_Table_135[[#This Row],[Item ID]],Analysis_Table,19,FALSE)","v":{"$error":"#N/A"}},null,null,1]
["",null,{"$f":"VLOOKUP(Table_Data_Table_135[[#This Row],[Item ID]],Analysis_Table,20,FALSE)","v":{"$error":"#N/A"}},null,null,null,null,null,null,null,0,null,null,null,{"$f":"VLOOKUP(Table_Data_Table_135[[#This Row],[Item ID]],Analysis_Table,8,FALSE)","v":{"$error":"#N/A"}},{"$f":"VLOOKUP(Table_Data_Table_135[[#This Row],[Item ID]],Analysis_Table,9,FALSE)","v":{"$error":"#N/A"}},{"$f":"VLOOKUP(Table_Data_Table_135[[#This Row],[Item ID]],Analysis_Table,10,FALSE)","v":{"$error":"#N/A"}},{"$f":"VLOOKUP(Table_Data_Table_135[[#This Row],[Item ID]],Analysis_Table,11,FALSE)","v":{"$error":"#N/A"}},{"$f":"VLOOKUP(Table_Data_Table_135[[#This Row],[Item ID]],Analysis_Table,12,FALSE)","v":{"$error":"#N/A"}},{"$f":"VLOOKUP(Table_Data_Table_135[[#This Row],[Item ID]],Analysis_Table,13,FALSE)","v":{"$error":"#N/A"}},{"$f":"VLOOKUP(Table_Data_Table_135[[#This Row],[Item ID]],Analysis_Table,14,FALSE)","v":{"$error":"#N/A"}},{"$f":"VLOOKUP(Table_Data_Table_135[[#This Row],[Item ID]],Analysis_Table,15,FALSE)","v":{"$error":"#N/A"}},{"$f":"VLOOKUP(Table_Data_Table_135[[#This Row],[Item ID]],Analysis_Table,16,FALSE)","v":{"$error":"#N/A"}},{"$f":"VLOOKUP(Table_Data_Table_135[[#This Row],[Item ID]],Analysis_Table,17,FALSE)","v":{"$error":"#N/A"}},{"$f":"VLOOKUP(Table_Data_Table_135[[#This Row],[Item ID]],Analysis_Table,18,FALSE)","v":{"$error":"#N/A"}},{"$f":"VLOOKUP(Table_Data_Table_135[[#This Row],[Item ID]],Analysis_Table,19,FALSE)","v":{"$error":"#N/A"}},null,null,1]
["",null,{"$f":"VLOOKUP(Table_Data_Table_135[[#This Row],[Item ID]],Analysis_Table,20,FALSE)","v":{"$error":"#N/A"}},null,null,null,null,null,null,null,0,null,null,null,{"$f":"VLOOKUP(Table_Data_Table_135[[#This Row],[Item ID]],Analysis_Table,8,FALSE)","v":{"$error":"#N/A"}},{"$f":"VLOOKUP(Table_Data_Table_135[[#This Row],[Item ID]],Analysis_Table,9,FALSE)","v":{"$error":"#N/A"}},{"$f":"VLOOKUP(Table_Data_Table_135[[#This Row],[Item ID]],Analysis_Table,10,FALSE)","v":{"$error":"#N/A"}},{"$f":"VLOOKUP(Table_Data_Table_135[[#This Row],[Item ID]],Analysis_Table,11,FALSE)","v":{"$error":"#N/A"}},{"$f":"VLOOKUP(Table_Data_Table_135[[#This Row],[Item ID]],Analysis_Table,12,FALSE)","v":{"$error":"#N/A"}},{"$f":"VLOOKUP(Table_Data_Table_135[[#This Row],[Item ID]],Analysis_Table,13,FALSE)","v":{"$error":"#N/A"}},{"$f":"VLOOKUP(Table_Data_Table_135[[#This Row],[Item ID]],Analysis_Table,14,FALSE)","v":{"$error":"#N/A"}},{"$f":"VLOOKUP(Table_Data_Table_135[[#This Row],[Item ID]],Analysis_Table,15,FALSE)","v":{"$error":"#N/A"}},{"$f":"VLOOKUP(Table_Data_Table_135[[#This Row],[Item ID]],Analysis_Table,16,FALSE)","v":{"$error":"#N/A"}},{"$f":"VLOOKUP(Table_Data_Table_135[[#This Row],[Item ID]],Analysis_Table,17,FALSE)","v":{"$error":"#N/A"}},{"$f":"VLOOKUP(Table_Data_Table_135[[#This Row],[Item ID]],Analysis_Table,18,FALSE)","v":{"$error":"#N/A"}},{"$f":"VLOOKUP(Table_Data_Table_135[[#This Row],[Item ID]],Analysis_Table,19,FALSE)","v":{"$error":"#N/A"}},null,null,1]
["",null,{"$f":"VLOOKUP(Table_Data_Table_135[[#This Row],[Item ID]],Analysis_Table,20,FALSE)","v":{"$error":"#N/A"}},null,null,null,null,null,null,null,0,null,null,null,{"$f":"VLOOKUP(Table_Data_Table_135[[#This Row],[Item ID]],Analysis_Table,8,FALSE)","v":{"$error":"#N/A"}},{"$f":"VLOOKUP(Table_Data_Table_135[[#This Row],[Item ID]],Analysis_Table,9,FALSE)","v":{"$error":"#N/A"}},{"$f":"VLOOKUP(Table_Data_Table_135[[#This Row],[Item ID]],Analysis_Table,10,FALSE)","v":{"$error":"#N/A"}},{"$f":"VLOOKUP(Table_Data_Table_135[[#This Row],[Item ID]],Analysis_Table,11,FALSE)","v":{"$error":"#N/A"}},{"$f":"VLOOKUP(Table_Data_Table_135[[#This Row],[Item ID]],Analysis_Table,12,FALSE)","v":{"$error":"#N/A"}},{"$f":"VLOOKUP(Table_Data_Table_135[[#This Row],[Item ID]],Analysis_Table,13,FALSE)","v":{"$error":"#N/A"}},{"$f":"VLOOKUP(Table_Data_Table_135[[#This Row],[Item ID]],Analysis_Table,14,FALSE)","v":{"$error":"#N/A"}},{"$f":"VLOOKUP(Table_Data_Table_135[[#This Row],[Item ID]],Analysis_Table,15,FALSE)","v":{"$error":"#N/A"}},{"$f":"VLOOKUP(Table_Data_Table_135[[#This Row],[Item ID]],Analysis_Table,16,FALSE)","v":{"$error":"#N/A"}},{"$f":"VLOOKUP(Table_Data_Table_135[[#This Row],[Item ID]],Analysis_Table,17,FALSE)","v":{"$error":"#N/A"}},{"$f":"VLOOKUP(Table_Data_Table_135[[#This Row],[Item ID]],Analysis_Table,18,FALSE)","v":{"$error":"#N/A"}},{"$f":"VLOOKUP(Table_Data_Table_135[[#This Row],[Item ID]],Analysis_Table,19,FALSE)","v":{"$error":"#N/A"}},null,null,1]
["",null,{"$f":"VLOOKUP(Table_Data_Table_135[[#This Row],[Item ID]],Analysis_Table,20,FALSE)","v":{"$error":"#N/A"}},null,null,null,null,null,null,null,0,null,null,null,{"$f":"VLOOKUP(Table_Data_Table_135[[#This Row],[Item ID]],Analysis_Table,8,FALSE)","v":{"$error":"#N/A"}},{"$f":"VLOOKUP(Table_Data_Table_135[[#This Row],[Item ID]],Analysis_Table,9,FALSE)","v":{"$error":"#N/A"}},{"$f":"VLOOKUP(Table_Data_Table_135[[#This Row],[Item ID]],Analysis_Table,10,FALSE)","v":{"$error":"#N/A"}},{"$f":"VLOOKUP(Table_Data_Table_135[[#This Row],[Item ID]],Analysis_Table,11,FALSE)","v":{"$error":"#N/A"}},{"$f":"VLOOKUP(Table_Data_Table_135[[#This Row],[Item ID]],Analysis_Table,12,FALSE)","v":{"$error":"#N/A"}},{"$f":"VLOOKUP(Table_Data_Table_135[[#This Row],[Item ID]],Analysis_Table,13,FALSE)","v":{"$error":"#N/A"}},{"$f":"VLOOKUP(Table_Data_Table_135[[#This Row],[Item ID]],Analysis_Table,14,FALSE)","v":{"$error":"#N/A"}},{"$f":"VLOOKUP(Table_Data_Table_135[[#This Row],[Item ID]],Analysis_Table,15,FALSE)","v":{"$error":"#N/A"}},{"$f":"VLOOKUP(Table_Data_Table_135[[#This Row],[Item ID]],Analysis_Table,16,FALSE)","v":{"$error":"#N/A"}},{"$f":"VLOOKUP(Table_Data_Table_135[[#This Row],[Item ID]],Analysis_Table,17,FALSE)","v":{"$error":"#N/A"}},{"$f":"VLOOKUP(Table_Data_Table_135[[#This Row],[Item ID]],Analysis_Table,18,FALSE)","v":{"$error":"#N/A"}},{"$f":"VLOOKUP(Table_Data_Table_135[[#This Row],[Item ID]],Analysis_Table,19,FALSE)","v":{"$error":"#N/A"}},null,null,1]
["",null,{"$f":"VLOOKUP(Table_Data_Table_135[[#This Row],[Item ID]],Analysis_Table,20,FALSE)","v":{"$error":"#N/A"}},null,null,null,null,null,null,null,0,null,null,null,{"$f":"VLOOKUP(Table_Data_Table_135[[#This Row],[Item ID]],Analysis_Table,8,FALSE)","v":{"$error":"#N/A"}},{"$f":"VLOOKUP(Table_Data_Table_135[[#This Row],[Item ID]],Analysis_Table,9,FALSE)","v":{"$error":"#N/A"}},{"$f":"VLOOKUP(Table_Data_Table_135[[#This Row],[Item ID]],Analysis_Table,10,FALSE)","v":{"$error":"#N/A"}},{"$f":"VLOOKUP(Table_Data_Table_135[[#This Row],[Item ID]],Analysis_Table,11,FALSE)","v":{"$error":"#N/A"}},{"$f":"VLOOKUP(Table_Data_Table_135[[#This Row],[Item ID]],Analysis_Table,12,FALSE)","v":{"$error":"#N/A"}},{"$f":"VLOOKUP(Table_Data_Table_135[[#This Row],[Item ID]],Analysis_Table,13,FALSE)","v":{"$error":"#N/A"}},{"$f":"VLOOKUP(Table_Data_Table_135[[#This Row],[Item ID]],Analysis_Table,14,FALSE)","v":{"$error":"#N/A"}},{"$f":"VLOOKUP(Table_Data_Table_135[[#This Row],[Item ID]],Analysis_Table,15,FALSE)","v":{"$error":"#N/A"}},{"$f":"VLOOKUP(Table_Data_Table_135[[#This Row],[Item ID]],Analysis_Table,16,FALSE)","v":{"$error":"#N/A"}},{"$f":"VLOOKUP(Table_Data_Table_135[[#This Row],[Item ID]],Analysis_Table,17,FALSE)","v":{"$error":"#N/A"}},{"$f":"VLOOKUP(Table_Data_Table_135[[#This Row],[Item ID]],Analysis_Table,18,FALSE)","v":{"$error":"#N/A"}},{"$f":"VLOOKUP(Table_Data_Table_135[[#This Row],[Item ID]],Analysis_Table,19,FALSE)","v":{"$error":"#N/A"}},null,null,1]
["",null,{"$f":"VLOOKUP(Table_Data_Table_135[[#This Row],[Item ID]],Analysis_Table,20,FALSE)","v":{"$error":"#N/A"}},null,null,null,null,null,null,null,0,null,null,null,{"$f":"VLOOKUP(Table_Data_Table_135[[#This Row],[Item ID]],Analysis_Table,8,FALSE)","v":{"$error":"#N/A"}},{"$f":"VLOOKUP(Table_Data_Table_135[[#This Row],[Item ID]],Analysis_Table,9,FALSE)","v":{"$error":"#N/A"}},{"$f":"VLOOKUP(Table_Data_Table_135[[#This Row],[Item ID]],Analysis_Table,10,FALSE)","v":{"$error":"#N/A"}},{"$f":"VLOOKUP(Table_Data_Table_135[[#This Row],[Item ID]],Analysis_Table,11,FALSE)","v":{"$error":"#N/A"}},{"$f":"VLOOKUP(Table_Data_Table_135[[#This Row],[Item ID]],Analysis_Table,12,FALSE)","v":{"$error":"#N/A"}},{"$f":"VLOOKUP(Table_Data_Table_135[[#This Row],[Item ID]],Analysis_Table,13,FALSE)","v":{"$error":"#N/A"}},{"$f":"VLOOKUP(Table_Data_Table_135[[#This Row],[Item ID]],Analysis_Table,14,FALSE)","v":{"$error":"#N/A"}},{"$f":"VLOOKUP(Table_Data_Table_135[[#This Row],[Item ID]],Analysis_Table,15,FALSE)","v":{"$error":"#N/A"}},{"$f":"VLOOKUP(Table_Data_Table_135[[#This Row],[Item ID]],Analysis_Table,16,FALSE)","v":{"$error":"#N/A"}},{"$f":"VLOOKUP(Table_Data_Table_135[[#This Row],[Item ID]],Analysis_Table,17,FALSE)","v":{"$error":"#N/A"}},{"$f":"VLOOKUP(Table_Data_Table_135[[#This Row],[Item ID]],Analysis_Table,18,FALSE)","v":{"$error":"#N/A"}},{"$f":"VLOOKUP(Table_Data_Table_135[[#This Row],[Item ID]],Analysis_Table,19,FALSE)","v":{"$error":"#N/A"}},null,null,1]
["",null,{"$f":"VLOOKUP(Table_Data_Table_135[[#This Row],[Item ID]],Analysis_Table,20,FALSE)","v":{"$error":"#N/A"}},null,null,null,null,null,null,null,0,null,null,null,{"$f":"VLOOKUP(Table_Data_Table_135[[#This Row],[Item ID]],Analysis_Table,8,FALSE)","v":{"$error":"#N/A"}},{"$f":"VLOOKUP(Table_Data_Table_135[[#This Row],[Item ID]],Analysis_Table,9,FALSE)","v":{"$error":"#N/A"}},{"$f":"VLOOKUP(Table_Data_Table_135[[#This Row],[Item ID]],Analysis_Table,10,FALSE)","v":{"$error":"#N/A"}},{"$f":"VLOOKUP(Table_Data_Table_135[[#This Row],[Item ID]],Analysis_Table,11,FALSE)","v":{"$error":"#N/A"}},{"$f":"VLOOKUP(Table_Data_Table_135[[#This Row],[Item ID]],Analysis_Table,12,FALSE)","v":{"$error":"#N/A"}},{"$f":"VLOOKUP(Table_Data_Table_135[[#This Row],[Item ID]],Analysis_Table,13,FALSE)","v":{"$error":"#N/A"}},{"$f":"VLOOKUP(Table_Data_Table_135[[#This Row],[Item ID]],Analysis_Table,14,FALSE)","v":{"$error":"#N/A"}},{"$f":"VLOOKUP(Table_Data_Table_135[[#This Row],[Item ID]],Analysis_Table,15,FALSE)","v":{"$error":"#N/A"}},{"$f":"VLOOKUP(Table_Data_Table_135[[#This Row],[Item ID]],Analysis_Table,16,FALSE)","v":{"$error":"#N/A"}},{"$f":"VLOOKUP(Table_Data_Table_135[[#This Row],[Item ID]],Analysis_Table,17,FALSE)","v":{"$error":"#N/A"}},{"$f":"VLOOKUP(Table_Data_Table_135[[#This Row],[Item ID]],Analysis_Table,18,FALSE)","v":{"$error":"#N/A"}},{"$f":"VLOOKUP(Table_Data_Table_135[[#This Row],[Item ID]],Analysis_Table,19,FALSE)","v":{"$error":"#N/A"}},null,null,1]
["",null,{"$f":"VLOOKUP(Table_Data_Table_135[[#This Row],[Item ID]],Analysis_Table,20,FALSE)","v":{"$error":"#N/A"}},null,null,null,null,null,null,null,0,null,null,null,{"$f":"VLOOKUP(Table_Data_Table_135[[#This Row],[Item ID]],Analysis_Table,8,FALSE)","v":{"$error":"#N/A"}},{"$f":"VLOOKUP(Table_Data_Table_135[[#This Row],[Item ID]],Analysis_Table,9,FALSE)","v":{"$error":"#N/A"}},{"$f":"VLOOKUP(Table_Data_Table_135[[#This Row],[Item ID]],Analysis_Table,10,FALSE)","v":{"$error":"#N/A"}},{"$f":"VLOOKUP(Table_Data_Table_135[[#This Row],[Item ID]],Analysis_Table,11,FALSE)","v":{"$error":"#N/A"}},{"$f":"VLOOKUP(Table_Data_Table_135[[#This Row],[Item ID]],Analysis_Table,12,FALSE)","v":{"$error":"#N/A"}},{"$f":"VLOOKUP(Table_Data_Table_135[[#This Row],[Item ID]],Analysis_Table,13,FALSE)","v":{"$error":"#N/A"}},{"$f":"VLOOKUP(Table_Data_Table_135[[#This Row],[Item ID]],Analysis_Table,14,FALSE)","v":{"$error":"#N/A"}},{"$f":"VLOOKUP(Table_Data_Table_135[[#This Row],[Item ID]],Analysis_Table,15,FALSE)","v":{"$error":"#N/A"}},{"$f":"VLOOKUP(Table_Data_Table_135[[#This Row],[Item ID]],Analysis_Table,16,FALSE)","v":{"$error":"#N/A"}},{"$f":"VLOOKUP(Table_Data_Table_135[[#This Row],[Item ID]],Analysis_Table,17,FALSE)","v":{"$error":"#N/A"}},{"$f":"VLOOKUP(Table_Data_Table_135[[#This Row],[Item ID]],Analysis_Table,18,FALSE)","v":{"$error":"#N/A"}},{"$f":"VLOOKUP(Table_Data_Table_135[[#This Row],[Item ID]],Analysis_Table,19,FALSE)","v":{"$error":"#N/A"}},null,null,1]
["",null,{"$f":"VLOOKUP(Table_Data_Table_135[[#This Row],[Item ID]],Analysis_Table,20,FALSE)","v":{"$error":"#N/A"}},null,null,null,null,null,null,null,0,null,null,null,{"$f":"VLOOKUP(Table_Data_Table_135[[#This Row],[Item ID]],Analysis_Table,8,FALSE)","v":{"$error":"#N/A"}},{"$f":"VLOOKUP(Table_Data_Table_135[[#This Row],[Item ID]],Analysis_Table,9,FALSE)","v":{"$error":"#N/A"}},{"$f":"VLOOKUP(Table_Data_Table_135[[#This Row],[Item ID]],Analysis_Table,10,FALSE)","v":{"$error":"#N/A"}},{"$f":"VLOOKUP(Table_Data_Table_135[[#This Row],[Item ID]],Analysis_Table,11,FALSE)","v":{"$error":"#N/A"}},{"$f":"VLOOKUP(Table_Data_Table_135[[#This Row],[Item ID]],Analysis_Table,12,FALSE)","v":{"$error":"#N/A"}},{"$f":"VLOOKUP(Table_Data_Table_135[[#This Row],[Item ID]],Analysis_Table,13,FALSE)","v":{"$error":"#N/A"}},{"$f":"VLOOKUP(Table_Data_Table_135[[#This Row],[Item ID]],Analysis_Table,14,FALSE)","v":{"$error":"#N/A"}},{"$f":"VLOOKUP(Table_Data_Table_135[[#This Row],[Item ID]],Analysis_Table,15,FALSE)","v":{"$error":"#N/A"}},{"$f":"VLOOKUP(Table_Data_Table_135[[#This Row],[Item ID]],Analysis_Table,16,FALSE)","v":{"$error":"#N/A"}},{"$f":"VLOOKUP(Table_Data_Table_135[[#This Row],[Item ID]],Analysis_Table,17,FALSE)","v":{"$error":"#N/A"}},{"$f":"VLOOKUP(Table_Data_Table_135[[#This Row],[Item ID]],Analysis_Table,18,FALSE)","v":{"$error":"#N/A"}},{"$f":"VLOOKUP(Table_Data_Table_135[[#This Row],[Item ID]],Analysis_Table,19,FALSE)","v":{"$error":"#N/A"}},null,null,1]
["",null,{"$f":"VLOOKUP(Table_Data_Table_135[[#This Row],[Item ID]],Analysis_Table,20,FALSE)","v":{"$error":"#N/A"}},null,null,null,null,null,null,null,0,null,null,null,{"$f":"VLOOKUP(Table_Data_Table_135[[#This Row],[Item ID]],Analysis_Table,8,FALSE)","v":{"$error":"#N/A"}},{"$f":"VLOOKUP(Table_Data_Table_135[[#This Row],[Item ID]],Analysis_Table,9,FALSE)","v":{"$error":"#N/A"}},{"$f":"VLOOKUP(Table_Data_Table_135[[#This Row],[Item ID]],Analysis_Table,10,FALSE)","v":{"$error":"#N/A"}},{"$f":"VLOOKUP(Table_Data_Table_135[[#This Row],[Item ID]],Analysis_Table,11,FALSE)","v":{"$error":"#N/A"}},{"$f":"VLOOKUP(Table_Data_Table_135[[#This Row],[Item ID]],Analysis_Table,12,FALSE)","v":{"$error":"#N/A"}},{"$f":"VLOOKUP(Table_Data_Table_135[[#This Row],[Item ID]],Analysis_Table,13,FALSE)","v":{"$error":"#N/A"}},{"$f":"VLOOKUP(Table_Data_Table_135[[#This Row],[Item ID]],Analysis_Table,14,FALSE)","v":{"$error":"#N/A"}},{"$f":"VLOOKUP(Table_Data_Table_135[[#This Row],[Item ID]],Analysis_Table,15,FALSE)","v":{"$error":"#N/A"}},{"$f":"VLOOKUP(Table_Data_Table_135[[#This Row],[Item ID]],Analysis_Table,16,FALSE)","v":{"$error":"#N/A"}},{"$f":"VLOOKUP(Table_Data_Table_135[[#This Row],[Item ID]],Analysis_Table,17,FALSE)","v":{"$error":"#N/A"}},{"$f":"VLOOKUP(Table_Data_Table_135[[#This Row],[Item ID]],Analysis_Table,18,FALSE)","v":{"$error":"#N/A"}},{"$f":"VLOOKUP(Table_Data_Table_135[[#This Row],[Item ID]],Analysis_Table,19,FALSE)","v":{"$error":"#N/A"}},null,null,1]
["",null,{"$f":"VLOOKUP(Table_Data_Table_135[[#This Row],[Item ID]],Analysis_Table,20,FALSE)","v":{"$error":"#N/A"}},null,null,null,null,null,null,null,0,null,null,null,{"$f":"VLOOKUP(Table_Data_Table_135[[#This Row],[Item ID]],Analysis_Table,8,FALSE)","v":{"$error":"#N/A"}},{"$f":"VLOOKUP(Table_Data_Table_135[[#This Row],[Item ID]],Analysis_Table,9,FALSE)","v":{"$error":"#N/A"}},{"$f":"VLOOKUP(Table_Data_Table_135[[#This Row],[Item ID]],Analysis_Table,10,FALSE)","v":{"$error":"#N/A"}},{"$f":"VLOOKUP(Table_Data_Table_135[[#This Row],[Item ID]],Analysis_Table,11,FALSE)","v":{"$error":"#N/A"}},{"$f":"VLOOKUP(Table_Data_Table_135[[#This Row],[Item ID]],Analysis_Table,12,FALSE)","v":{"$error":"#N/A"}},{"$f":"VLOOKUP(Table_Data_Table_135[[#This Row],[Item ID]],Analysis_Table,13,FALSE)","v":{"$error":"#N/A"}},{"$f":"VLOOKUP(Table_Data_Table_135[[#This Row],[Item ID]],Analysis_Table,14,FALSE)","v":{"$error":"#N/A"}},{"$f":"VLOOKUP(Table_Data_Table_135[[#This Row],[Item ID]],Analysis_Table,15,FALSE)","v":{"$error":"#N/A"}},{"$f":"VLOOKUP(Table_Data_Table_135[[#This Row],[Item ID]],Analysis_Table,16,FALSE)","v":{"$error":"#N/A"}},{"$f":"VLOOKUP(Table_Data_Table_135[[#This Row],[Item ID]],Analysis_Table,17,FALSE)","v":{"$error":"#N/A"}},{"$f":"VLOOKUP(Table_Data_Table_135[[#This Row],[Item ID]],Analysis_Table,18,FALSE)","v":{"$error":"#N/A"}},{"$f":"VLOOKUP(Table_Data_Table_135[[#This Row],[Item ID]],Analysis_Table,19,FALSE)","v":{"$error":"#N/A"}},null,null,1]
["",null,{"$f":"VLOOKUP(Table_Data_Table_135[[#This Row],[Item ID]],Analysis_Table,20,FALSE)","v":{"$error":"#N/A"}},null,null,null,null,null,null,null,0,null,null,null,{"$f":"VLOOKUP(Table_Data_Table_135[[#This Row],[Item ID]],Analysis_Table,8,FALSE)","v":{"$error":"#N/A"}},{"$f":"VLOOKUP(Table_Data_Table_135[[#This Row],[Item ID]],Analysis_Table,9,FALSE)","v":{"$error":"#N/A"}},{"$f":"VLOOKUP(Table_Data_Table_135[[#This Row],[Item ID]],Analysis_Table,10,FALSE)","v":{"$error":"#N/A"}},{"$f":"VLOOKUP(Table_Data_Table_135[[#This Row],[Item ID]],Analysis_Table,11,FALSE)","v":{"$error":"#N/A"}},{"$f":"VLOOKUP(Table_Data_Table_135[[#This Row],[Item ID]],Analysis_Table,12,FALSE)","v":{"$error":"#N/A"}},{"$f":"VLOOKUP(Table_Data_Table_135[[#This Row],[Item ID]],Analysis_Table,13,FALSE)","v":{"$error":"#N/A"}},{"$f":"VLOOKUP(Table_Data_Table_135[[#This Row],[Item ID]],Analysis_Table,14,FALSE)","v":{"$error":"#N/A"}},{"$f":"VLOOKUP(Table_Data_Table_135[[#This Row],[Item ID]],Analysis_Table,15,FALSE)","v":{"$error":"#N/A"}},{"$f":"VLOOKUP(Table_Data_Table_135[[#This Row],[Item ID]],Analysis_Table,16,FALSE)","v":{"$error":"#N/A"}},{"$f":"VLOOKUP(Table_Data_Table_135[[#This Row],[Item ID]],Analysis_Table,17,FALSE)","v":{"$error":"#N/A"}},{"$f":"VLOOKUP(Table_Data_Table_135[[#This Row],[Item ID]],Analysis_Table,18,FALSE)","v":{"$error":"#N/A"}},{"$f":"VLOOKUP(Table_Data_Table_135[[#This Row],[Item ID]],Analysis_Table,19,FALSE)","v":{"$error":"#N/A"}},null,null,1]
["",null,{"$f":"VLOOKUP(Table_Data_Table_135[[#This Row],[Item ID]],Analysis_Table,20,FALSE)","v":{"$error":"#N/A"}},null,null,null,null,null,null,null,0,null,null,null,{"$f":"VLOOKUP(Table_Data_Table_135[[#This Row],[Item ID]],Analysis_Table,8,FALSE)","v":{"$error":"#N/A"}},{"$f":"VLOOKUP(Table_Data_Table_135[[#This Row],[Item ID]],Analysis_Table,9,FALSE)","v":{"$error":"#N/A"}},{"$f":"VLOOKUP(Table_Data_Table_135[[#This Row],[Item ID]],Analysis_Table,10,FALSE)","v":{"$error":"#N/A"}},{"$f":"VLOOKUP(Table_Data_Table_135[[#This Row],[Item ID]],Analysis_Table,11,FALSE)","v":{"$error":"#N/A"}},{"$f":"VLOOKUP(Table_Data_Table_135[[#This Row],[Item ID]],Analysis_Table,12,FALSE)","v":{"$error":"#N/A"}},{"$f":"VLOOKUP(Table_Data_Table_135[[#This Row],[Item ID]],Analysis_Table,13,FALSE)","v":{"$error":"#N/A"}},{"$f":"VLOOKUP(Table_Data_Table_135[[#This Row],[Item ID]],Analysis_Table,14,FALSE)","v":{"$error":"#N/A"}},{"$f":"VLOOKUP(Table_Data_Table_135[[#This Row],[Item ID]],Analysis_Table,15,FALSE)","v":{"$error":"#N/A"}},{"$f":"VLOOKUP(Table_Data_Table_135[[#This Row],[Item ID]],Analysis_Table,16,FALSE)","v":{"$error":"#N/A"}},{"$f":"VLOOKUP(Table_Data_Table_135[[#This Row],[Item ID]],Analysis_Table,17,FALSE)","v":{"$error":"#N/A"}},{"$f":"VLOOKUP(Table_Data_Table_135[[#This Row],[Item ID]],Analysis_Table,18,FALSE)","v":{"$error":"#N/A"}},{"$f":"VLOOKUP(Table_Data_Table_135[[#This Row],[Item ID]],Analysis_Table,19,FALSE)","v":{"$error":"#N/A"}},null,null,1]
["",null,{"$f":"VLOOKUP(Table_Data_Table_135[[#This Row],[Item ID]],Analysis_Table,20,FALSE)","v":{"$error":"#N/A"}},null,null,null,null,null,null,null,0,null,null,null,{"$f":"VLOOKUP(Table_Data_Table_135[[#This Row],[Item ID]],Analysis_Table,8,FALSE)","v":{"$error":"#N/A"}},{"$f":"VLOOKUP(Table_Data_Table_135[[#This Row],[Item ID]],Analysis_Table,9,FALSE)","v":{"$error":"#N/A"}},{"$f":"VLOOKUP(Table_Data_Table_135[[#This Row],[Item ID]],Analysis_Table,10,FALSE)","v":{"$error":"#N/A"}},{"$f":"VLOOKUP(Table_Data_Table_135[[#This Row],[Item ID]],Analysis_Table,11,FALSE)","v":{"$error":"#N/A"}},{"$f":"VLOOKUP(Table_Data_Table_135[[#This Row],[Item ID]],Analysis_Table,12,FALSE)","v":{"$error":"#N/A"}},{"$f":"VLOOKUP(Table_Data_Table_135[[#This Row],[Item ID]],Analysis_Table,13,FALSE)","v":{"$error":"#N/A"}},{"$f":"VLOOKUP(Table_Data_Table_135[[#This Row],[Item ID]],Analysis_Table,14,FALSE)","v":{"$error":"#N/A"}},{"$f":"VLOOKUP(Table_Data_Table_135[[#This Row],[Item ID]],Analysis_Table,15,FALSE)","v":{"$error":"#N/A"}},{"$f":"VLOOKUP(Table_Data_Table_135[[#This Row],[Item ID]],Analysis_Table,16,FALSE)","v":{"$error":"#N/A"}},{"$f":"VLOOKUP(Table_Data_Table_135[[#This Row],[Item ID]],Analysis_Table,17,FALSE)","v":{"$error":"#N/A"}},{"$f":"VLOOKUP(Table_Data_Table_135[[#This Row],[Item ID]],Analysis_Table,18,FALSE)","v":{"$error":"#N/A"}},{"$f":"VLOOKUP(Table_Data_Table_135[[#This Row],[Item ID]],Analysis_Table,19,FALSE)","v":{"$error":"#N/A"}},null,null,1]
["",null,{"$f":"VLOOKUP(Table_Data_Table_135[[#This Row],[Item ID]],Analysis_Table,20,FALSE)","v":{"$error":"#N/A"}},null,null,null,null,null,null,null,0,null,null,null,{"$f":"VLOOKUP(Table_Data_Table_135[[#This Row],[Item ID]],Analysis_Table,8,FALSE)","v":{"$error":"#N/A"}},{"$f":"VLOOKUP(Table_Data_Table_135[[#This Row],[Item ID]],Analysis_Table,9,FALSE)","v":{"$error":"#N/A"}},{"$f":"VLOOKUP(Table_Data_Table_135[[#This Row],[Item ID]],Analysis_Table,10,FALSE)","v":{"$error":"#N/A"}},{"$f":"VLOOKUP(Table_Data_Table_135[[#This Row],[Item ID]],Analysis_Table,11,FALSE)","v":{"$error":"#N/A"}},{"$f":"VLOOKUP(Table_Data_Table_135[[#This Row],[Item ID]],Analysis_Table,12,FALSE)","v":{"$error":"#N/A"}},{"$f":"VLOOKUP(Table_Data_Table_135[[#This Row],[Item ID]],Analysis_Table,13,FALSE)","v":{"$error":"#N/A"}},{"$f":"VLOOKUP(Table_Data_Table_135[[#This Row],[Item ID]],Analysis_Table,14,FALSE)","v":{"$error":"#N/A"}},{"$f":"VLOOKUP(Table_Data_Table_135[[#This Row],[Item ID]],Analysis_Table,15,FALSE)","v":{"$error":"#N/A"}},{"$f":"VLOOKUP(Table_Data_Table_135[[#This Row],[Item ID]],Analysis_Table,16,FALSE)","v":{"$error":"#N/A"}},{"$f":"VLOOKUP(Table_Data_Table_135[[#This Row],[Item ID]],Analysis_Table,17,FALSE)","v":{"$error":"#N/A"}},{"$f":"VLOOKUP(Table_Data_Table_135[[#This Row],[Item ID]],Analysis_Table,18,FALSE)","v":{"$error":"#N/A"}},{"$f":"VLOOKUP(Table_Data_Table_135[[#This Row],[Item ID]],Analysis_Table,19,FALSE)","v":{"$error":"#N/A"}},null,null,1]
["",null,{"$f":"VLOOKUP(Table_Data_Table_135[[#This Row],[Item ID]],Analysis_Table,20,FALSE)","v":{"$error":"#N/A"}},null,null,null,null,null,null,null,0,null,null,null,{"$f":"VLOOKUP(Table_Data_Table_135[[#This Row],[Item ID]],Analysis_Table,8,FALSE)","v":{"$error":"#N/A"}},{"$f":"VLOOKUP(Table_Data_Table_135[[#This Row],[Item ID]],Analysis_Table,9,FALSE)","v":{"$error":"#N/A"}},{"$f":"VLOOKUP(Table_Data_Table_135[[#This Row],[Item ID]],Analysis_Table,10,FALSE)","v":{"$error":"#N/A"}},{"$f":"VLOOKUP(Table_Data_Table_135[[#This Row],[Item ID]],Analysis_Table,11,FALSE)","v":{"$error":"#N/A"}},{"$f":"VLOOKUP(Table_Data_Table_135[[#This Row],[Item ID]],Analysis_Table,12,FALSE)","v":{"$error":"#N/A"}},{"$f":"VLOOKUP(Table_Data_Table_135[[#This Row],[Item ID]],Analysis_Table,13,FALSE)","v":{"$error":"#N/A"}},{"$f":"VLOOKUP(Table_Data_Table_135[[#This Row],[Item ID]],Analysis_Table,14,FALSE)","v":{"$error":"#N/A"}},{"$f":"VLOOKUP(Table_Data_Table_135[[#This Row],[Item ID]],Analysis_Table,15,FALSE)","v":{"$error":"#N/A"}},{"$f":"VLOOKUP(Table_Data_Table_135[[#This Row],[Item ID]],Analysis_Table,16,FALSE)","v":{"$error":"#N/A"}},{"$f":"VLOOKUP(Table_Data_Table_135[[#This Row],[Item ID]],Analysis_Table,17,FALSE)","v":{"$error":"#N/A"}},{"$f":"VLOOKUP(Table_Data_Table_135[[#This Row],[Item ID]],Analysis_Table,18,FALSE)","v":{"$error":"#N/A"}},{"$f":"VLOOKUP(Table_Data_Table_135[[#This Row],[Item ID]],Analysis_Table,19,FALSE)","v":{"$error":"#N/A"}},null,null,1]
["",null,{"$f":"VLOOKUP(Table_Data_Table_135[[#This Row],[Item ID]],Analysis_Table,20,FALSE)","v":{"$error":"#N/A"}},null,null,null,null,null,null,null,0,null,null,null,{"$f":"VLOOKUP(Table_Data_Table_135[[#This Row],[Item ID]],Analysis_Table,8,FALSE)","v":{"$error":"#N/A"}},{"$f":"VLOOKUP(Table_Data_Table_135[[#This Row],[Item ID]],Analysis_Table,9,FALSE)","v":{"$error":"#N/A"}},{"$f":"VLOOKUP(Table_Data_Table_135[[#This Row],[Item ID]],Analysis_Table,10,FALSE)","v":{"$error":"#N/A"}},{"$f":"VLOOKUP(Table_Data_Table_135[[#This Row],[Item ID]],Analysis_Table,11,FALSE)","v":{"$error":"#N/A"}},{"$f":"VLOOKUP(Table_Data_Table_135[[#This Row],[Item ID]],Analysis_Table,12,FALSE)","v":{"$error":"#N/A"}},{"$f":"VLOOKUP(Table_Data_Table_135[[#This Row],[Item ID]],Analysis_Table,13,FALSE)","v":{"$error":"#N/A"}},{"$f":"VLOOKUP(Table_Data_Table_135[[#This Row],[Item ID]],Analysis_Table,14,FALSE)","v":{"$error":"#N/A"}},{"$f":"VLOOKUP(Table_Data_Table_135[[#This Row],[Item ID]],Analysis_Table,15,FALSE)","v":{"$error":"#N/A"}},{"$f":"VLOOKUP(Table_Data_Table_135[[#This Row],[Item ID]],Analysis_Table,16,FALSE)","v":{"$error":"#N/A"}},{"$f":"VLOOKUP(Table_Data_Table_135[[#This Row],[Item ID]],Analysis_Table,17,FALSE)","v":{"$error":"#N/A"}},{"$f":"VLOOKUP(Table_Data_Table_135[[#This Row],[Item ID]],Analysis_Table,18,FALSE)","v":{"$error":"#N/A"}},{"$f":"VLOOKUP(Table_Data_Table_135[[#This Row],[Item ID]],Analysis_Table,19,FALSE)","v":{"$error":"#N/A"}},null,null,1]
["",null,{"$f":"VLOOKUP(Table_Data_Table_135[[#This Row],[Item ID]],Analysis_Table,20,FALSE)","v":{"$error":"#N/A"}},null,null,null,null,null,null,null,0,null,null,null,{"$f":"VLOOKUP(Table_Data_Table_135[[#This Row],[Item ID]],Analysis_Table,8,FALSE)","v":{"$error":"#N/A"}},{"$f":"VLOOKUP(Table_Data_Table_135[[#This Row],[Item ID]],Analysis_Table,9,FALSE)","v":{"$error":"#N/A"}},{"$f":"VLOOKUP(Table_Data_Table_135[[#This Row],[Item ID]],Analysis_Table,10,FALSE)","v":{"$error":"#N/A"}},{"$f":"VLOOKUP(Table_Data_Table_135[[#This Row],[Item ID]],Analysis_Table,11,FALSE)","v":{"$error":"#N/A"}},{"$f":"VLOOKUP(Table_Data_Table_135[[#This Row],[Item ID]],Analysis_Table,12,FALSE)","v":{"$error":"#N/A"}},{"$f":"VLOOKUP(Table_Data_Table_135[[#This Row],[Item ID]],Analysis_Table,13,FALSE)","v":{"$error":"#N/A"}},{"$f":"VLOOKUP(Table_Data_Table_135[[#This Row],[Item ID]],Analysis_Table,14,FALSE)","v":{"$error":"#N/A"}},{"$f":"VLOOKUP(Table_Data_Table_135[[#This Row],[Item ID]],Analysis_Table,15,FALSE)","v":{"$error":"#N/A"}},{"$f":"VLOOKUP(Table_Data_Table_135[[#This Row],[Item ID]],Analysis_Table,16,FALSE)","v":{"$error":"#N/A"}},{"$f":"VLOOKUP(Table_Data_Table_135[[#This Row],[Item ID]],Analysis_Table,17,FALSE)","v":{"$error":"#N/A"}},{"$f":"VLOOKUP(Table_Data_Table_135[[#This Row],[Item ID]],Analysis_Table,18,FALSE)","v":{"$error":"#N/A"}},{"$f":"VLOOKUP(Table_Data_Table_135[[#This Row],[Item ID]],Analysis_Table,19,FALSE)","v":{"$error":"#N/A"}},null,null,1]
["",null,{"$f":"VLOOKUP(Table_Data_Table_135[[#This Row],[Item ID]],Analysis_Table,20,FALSE)","v":{"$error":"#N/A"}},null,null,null,null,null,null,null,0,null,null,null,{"$f":"VLOOKUP(Table_Data_Table_135[[#This Row],[Item ID]],Analysis_Table,8,FALSE)","v":{"$error":"#N/A"}},{"$f":"VLOOKUP(Table_Data_Table_135[[#This Row],[Item ID]],Analysis_Table,9,FALSE)","v":{"$error":"#N/A"}},{"$f":"VLOOKUP(Table_Data_Table_135[[#This Row],[Item ID]],Analysis_Table,10,FALSE)","v":{"$error":"#N/A"}},{"$f":"VLOOKUP(Table_Data_Table_135[[#This Row],[Item ID]],Analysis_Table,11,FALSE)","v":{"$error":"#N/A"}},{"$f":"VLOOKUP(Table_Data_Table_135[[#This Row],[Item ID]],Analysis_Table,12,FALSE)","v":{"$error":"#N/A"}},{"$f":"VLOOKUP(Table_Data_Table_135[[#This Row],[Item ID]],Analysis_Table,13,FALSE)","v":{"$error":"#N/A"}},{"$f":"VLOOKUP(Table_Data_Table_135[[#This Row],[Item ID]],Analysis_Table,14,FALSE)","v":{"$error":"#N/A"}},{"$f":"VLOOKUP(Table_Data_Table_135[[#This Row],[Item ID]],Analysis_Table,15,FALSE)","v":{"$error":"#N/A"}},{"$f":"VLOOKUP(Table_Data_Table_135[[#This Row],[Item ID]],Analysis_Table,16,FALSE)","v":{"$error":"#N/A"}},{"$f":"VLOOKUP(Table_Data_Table_135[[#This Row],[Item ID]],Analysis_Table,17,FALSE)","v":{"$error":"#N/A"}},{"$f":"VLOOKUP(Table_Data_Table_135[[#This Row],[Item ID]],Analysis_Table,18,FALSE)","v":{"$error":"#N/A"}},{"$f":"VLOOKUP(Table_Data_Table_135[[#This Row],[Item ID]],Analysis_Table,19,FALSE)","v":{"$error":"#N/A"}},null,null,1]
["",null,{"$f":"VLOOKUP(Table_Data_Table_135[[#This Row],[Item ID]],Analysis_Table,20,FALSE)","v":{"$error":"#N/A"}},null,null,null,null,null,null,null,0,null,null,null,{"$f":"VLOOKUP(Table_Data_Table_135[[#This Row],[Item ID]],Analysis_Table,8,FALSE)","v":{"$error":"#N/A"}},{"$f":"VLOOKUP(Table_Data_Table_135[[#This Row],[Item ID]],Analysis_Table,9,FALSE)","v":{"$error":"#N/A"}},{"$f":"VLOOKUP(Table_Data_Table_135[[#This Row],[Item ID]],Analysis_Table,10,FALSE)","v":{"$error":"#N/A"}},{"$f":"VLOOKUP(Table_Data_Table_135[[#This Row],[Item ID]],Analysis_Table,11,FALSE)","v":{"$error":"#N/A"}},{"$f":"VLOOKUP(Table_Data_Table_135[[#This Row],[Item ID]],Analysis_Table,12,FALSE)","v":{"$error":"#N/A"}},{"$f":"VLOOKUP(Table_Data_Table_135[[#This Row],[Item ID]],Analysis_Table,13,FALSE)","v":{"$error":"#N/A"}},{"$f":"VLOOKUP(Table_Data_Table_135[[#This Row],[Item ID]],Analysis_Table,14,FALSE)","v":{"$error":"#N/A"}},{"$f":"VLOOKUP(Table_Data_Table_135[[#This Row],[Item ID]],Analysis_Table,15,FALSE)","v":{"$error":"#N/A"}},{"$f":"VLOOKUP(Table_Data_Table_135[[#This Row],[Item ID]],Analysis_Table,16,FALSE)","v":{"$error":"#N/A"}},{"$f":"VLOOKUP(Table_Data_Table_135[[#This Row],[Item ID]],Analysis_Table,17,FALSE)","v":{"$error":"#N/A"}},{"$f":"VLOOKUP(Table_Data_Table_135[[#This Row],[Item ID]],Analysis_Table,18,FALSE)","v":{"$error":"#N/A"}},{"$f":"VLOOKUP(Table_Data_Table_135[[#This Row],[Item ID]],Analysis_Table,19,FALSE)","v":{"$error":"#N/A"}},null,null,1]
["",null,{"$f":"VLOOKUP(Table_Data_Table_135[[#This Row],[Item ID]],Analysis_Table,20,FALSE)","v":{"$error":"#N/A"}},null,null,null,null,null,null,null,0,null,null,null,{"$f":"VLOOKUP(Table_Data_Table_135[[#This Row],[Item ID]],Analysis_Table,8,FALSE)","v":{"$error":"#N/A"}},{"$f":"VLOOKUP(Table_Data_Table_135[[#This Row],[Item ID]],Analysis_Table,9,FALSE)","v":{"$error":"#N/A"}},{"$f":"VLOOKUP(Table_Data_Table_135[[#This Row],[Item ID]],Analysis_Table,10,FALSE)","v":{"$error":"#N/A"}},{"$f":"VLOOKUP(Table_Data_Table_135[[#This Row],[Item ID]],Analysis_Table,11,FALSE)","v":{"$error":"#N/A"}},{"$f":"VLOOKUP(Table_Data_Table_135[[#This Row],[Item ID]],Analysis_Table,12,FALSE)","v":{"$error":"#N/A"}},{"$f":"VLOOKUP(Table_Data_Table_135[[#This Row],[Item ID]],Analysis_Table,13,FALSE)","v":{"$error":"#N/A"}},{"$f":"VLOOKUP(Table_Data_Table_135[[#This Row],[Item ID]],Analysis_Table,14,FALSE)","v":{"$error":"#N/A"}},{"$f":"VLOOKUP(Table_Data_Table_135[[#This Row],[Item ID]],Analysis_Table,15,FALSE)","v":{"$error":"#N/A"}},{"$f":"VLOOKUP(Table_Data_Table_135[[#This Row],[Item ID]],Analysis_Table,16,FALSE)","v":{"$error":"#N/A"}},{"$f":"VLOOKUP(Table_Data_Table_135[[#This Row],[Item ID]],Analysis_Table,17,FALSE)","v":{"$error":"#N/A"}},{"$f":"VLOOKUP(Table_Data_Table_135[[#This Row],[Item ID]],Analysis_Table,18,FALSE)","v":{"$error":"#N/A"}},{"$f":"VLOOKUP(Table_Data_Table_135[[#This Row],[Item ID]],Analysis_Table,19,FALSE)","v":{"$error":"#N/A"}},null,null,1]
["",null,{"$f":"VLOOKUP(Table_Data_Table_135[[#This Row],[Item ID]],Analysis_Table,20,FALSE)","v":{"$error":"#N/A"}},null,null,null,null,null,null,null,0,null,null,null,{"$f":"VLOOKUP(Table_Data_Table_135[[#This Row],[Item ID]],Analysis_Table,8,FALSE)","v":{"$error":"#N/A"}},{"$f":"VLOOKUP(Table_Data_Table_135[[#This Row],[Item ID]],Analysis_Table,9,FALSE)","v":{"$error":"#N/A"}},{"$f":"VLOOKUP(Table_Data_Table_135[[#This Row],[Item ID]],Analysis_Table,10,FALSE)","v":{"$error":"#N/A"}},{"$f":"VLOOKUP(Table_Data_Table_135[[#This Row],[Item ID]],Analysis_Table,11,FALSE)","v":{"$error":"#N/A"}},{"$f":"VLOOKUP(Table_Data_Table_135[[#This Row],[Item ID]],Analysis_Table,12,FALSE)","v":{"$error":"#N/A"}},{"$f":"VLOOKUP(Table_Data_Table_135[[#This Row],[Item ID]],Analysis_Table,13,FALSE)","v":{"$error":"#N/A"}},{"$f":"VLOOKUP(Table_Data_Table_135[[#This Row],[Item ID]],Analysis_Table,14,FALSE)","v":{"$error":"#N/A"}},{"$f":"VLOOKUP(Table_Data_Table_135[[#This Row],[Item ID]],Analysis_Table,15,FALSE)","v":{"$error":"#N/A"}},{"$f":"VLOOKUP(Table_Data_Table_135[[#This Row],[Item ID]],Analysis_Table,16,FALSE)","v":{"$error":"#N/A"}},{"$f":"VLOOKUP(Table_Data_Table_135[[#This Row],[Item ID]],Analysis_Table,17,FALSE)","v":{"$error":"#N/A"}},{"$f":"VLOOKUP(Table_Data_Table_135[[#This Row],[Item ID]],Analysis_Table,18,FALSE)","v":{"$error":"#N/A"}},{"$f":"VLOOKUP(Table_Data_Table_135[[#This Row],[Item ID]],Analysis_Table,19,FALSE)","v":{"$error":"#N/A"}},null,null,1]
["",null,{"$f":"VLOOKUP(Table_Data_Table_135[[#This Row],[Item ID]],Analysis_Table,20,FALSE)","v":{"$error":"#N/A"}},null,null,null,null,null,null,null,0,null,null,null,{"$f":"VLOOKUP(Table_Data_Table_135[[#This Row],[Item ID]],Analysis_Table,8,FALSE)","v":{"$error":"#N/A"}},{"$f":"VLOOKUP(Table_Data_Table_135[[#This Row],[Item ID]],Analysis_Table,9,FALSE)","v":{"$error":"#N/A"}},{"$f":"VLOOKUP(Table_Data_Table_135[[#This Row],[Item ID]],Analysis_Table,10,FALSE)","v":{"$error":"#N/A"}},{"$f":"VLOOKUP(Table_Data_Table_135[[#This Row],[Item ID]],Analysis_Table,11,FALSE)","v":{"$error":"#N/A"}},{"$f":"VLOOKUP(Table_Data_Table_135[[#This Row],[Item ID]],Analysis_Table,12,FALSE)","v":{"$error":"#N/A"}},{"$f":"VLOOKUP(Table_Data_Table_135[[#This Row],[Item ID]],Analysis_Table,13,FALSE)","v":{"$error":"#N/A"}},{"$f":"VLOOKUP(Table_Data_Table_135[[#This Row],[Item ID]],Analysis_Table,14,FALSE)","v":{"$error":"#N/A"}},{"$f":"VLOOKUP(Table_Data_Table_135[[#This Row],[Item ID]],Analysis_Table,15,FALSE)","v":{"$error":"#N/A"}},{"$f":"VLOOKUP(Table_Data_Table_135[[#This Row],[Item ID]],Analysis_Table,16,FALSE)","v":{"$error":"#N/A"}},{"$f":"VLOOKUP(Table_Data_Table_135[[#This Row],[Item ID]],Analysis_Table,17,FALSE)","v":{"$error":"#N/A"}},{"$f":"VLOOKUP(Table_Data_Table_135[[#This Row],[Item ID]],Analysis_Table,18,FALSE)","v":{"$error":"#N/A"}},{"$f":"VLOOKUP(Table_Data_Table_135[[#This Row],[Item ID]],Analysis_Table,19,FALSE)","v":{"$error":"#N/A"}},null,null,1]
["",null,{"$f":"VLOOKUP(Table_Data_Table_135[[#This Row],[Item ID]],Analysis_Table,20,FALSE)","v":{"$error":"#N/A"}},null,null,null,null,null,null,null,0,null,null,null,{"$f":"VLOOKUP(Table_Data_Table_135[[#This Row],[Item ID]],Analysis_Table,8,FALSE)","v":{"$error":"#N/A"}},{"$f":"VLOOKUP(Table_Data_Table_135[[#This Row],[Item ID]],Analysis_Table,9,FALSE)","v":{"$error":"#N/A"}},{"$f":"VLOOKUP(Table_Data_Table_135[[#This Row],[Item ID]],Analysis_Table,10,FALSE)","v":{"$error":"#N/A"}},{"$f":"VLOOKUP(Table_Data_Table_135[[#This Row],[Item ID]],Analysis_Table,11,FALSE)","v":{"$error":"#N/A"}},{"$f":"VLOOKUP(Table_Data_Table_135[[#This Row],[Item ID]],Analysis_Table,12,FALSE)","v":{"$error":"#N/A"}},{"$f":"VLOOKUP(Table_Data_Table_135[[#This Row],[Item ID]],Analysis_Table,13,FALSE)","v":{"$error":"#N/A"}},{"$f":"VLOOKUP(Table_Data_Table_135[[#This Row],[Item ID]],Analysis_Table,14,FALSE)","v":{"$error":"#N/A"}},{"$f":"VLOOKUP(Table_Data_Table_135[[#This Row],[Item ID]],Analysis_Table,15,FALSE)","v":{"$error":"#N/A"}},{"$f":"VLOOKUP(Table_Data_Table_135[[#This Row],[Item ID]],Analysis_Table,16,FALSE)","v":{"$error":"#N/A"}},{"$f":"VLOOKUP(Table_Data_Table_135[[#This Row],[Item ID]],Analysis_Table,17,FALSE)","v":{"$error":"#N/A"}},{"$f":"VLOOKUP(Table_Data_Table_135[[#This Row],[Item ID]],Analysis_Table,18,FALSE)","v":{"$error":"#N/A"}},{"$f":"VLOOKUP(Table_Data_Table_135[[#This Row],[Item ID]],Analysis_Table,19,FALSE)","v":{"$error":"#N/A"}},null,null,1]
["",null,{"$f":"VLOOKUP(Table_Data_Table_135[[#This Row],[Item ID]],Analysis_Table,20,FALSE)","v":{"$error":"#N/A"}},null,null,null,null,null,null,null,0,null,null,null,{"$f":"VLOOKUP(Table_Data_Table_135[[#This Row],[Item ID]],Analysis_Table,8,FALSE)","v":{"$error":"#N/A"}},{"$f":"VLOOKUP(Table_Data_Table_135[[#This Row],[Item ID]],Analysis_Table,9,FALSE)","v":{"$error":"#N/A"}},{"$f":"VLOOKUP(Table_Data_Table_135[[#This Row],[Item ID]],Analysis_Table,10,FALSE)","v":{"$error":"#N/A"}},{"$f":"VLOOKUP(Table_Data_Table_135[[#This Row],[Item ID]],Analysis_Table,11,FALSE)","v":{"$error":"#N/A"}},{"$f":"VLOOKUP(Table_Data_Table_135[[#This Row],[Item ID]],Analysis_Table,12,FALSE)","v":{"$error":"#N/A"}},{"$f":"VLOOKUP(Table_Data_Table_135[[#This Row],[Item ID]],Analysis_Table,13,FALSE)","v":{"$error":"#N/A"}},{"$f":"VLOOKUP(Table_Data_Table_135[[#This Row],[Item ID]],Analysis_Table,14,FALSE)","v":{"$error":"#N/A"}},{"$f":"VLOOKUP(Table_Data_Table_135[[#This Row],[Item ID]],Analysis_Table,15,FALSE)","v":{"$error":"#N/A"}},{"$f":"VLOOKUP(Table_Data_Table_135[[#This Row],[Item ID]],Analysis_Table,16,FALSE)","v":{"$error":"#N/A"}},{"$f":"VLOOKUP(Table_Data_Table_135[[#This Row],[Item ID]],Analysis_Table,17,FALSE)","v":{"$error":"#N/A"}},{"$f":"VLOOKUP(Table_Data_Table_135[[#This Row],[Item ID]],Analysis_Table,18,FALSE)","v":{"$error":"#N/A"}},{"$f":"VLOOKUP(Table_Data_Table_135[[#This Row],[Item ID]],Analysis_Table,19,FALSE)","v":{"$error":"#N/A"}},null,null,1]
["",null,{"$f":"VLOOKUP(Table_Data_Table_135[[#This Row],[Item ID]],Analysis_Table,20,FALSE)","v":{"$error":"#N/A"}},null,null,null,null,null,null,null,0,null,null,null,{"$f":"VLOOKUP(Table_Data_Table_135[[#This Row],[Item ID]],Analysis_Table,8,FALSE)","v":{"$error":"#N/A"}},{"$f":"VLOOKUP(Table_Data_Table_135[[#This Row],[Item ID]],Analysis_Table,9,FALSE)","v":{"$error":"#N/A"}},{"$f":"VLOOKUP(Table_Data_Table_135[[#This Row],[Item ID]],Analysis_Table,10,FALSE)","v":{"$error":"#N/A"}},{"$f":"VLOOKUP(Table_Data_Table_135[[#This Row],[Item ID]],Analysis_Table,11,FALSE)","v":{"$error":"#N/A"}},{"$f":"VLOOKUP(Table_Data_Table_135[[#This Row],[Item ID]],Analysis_Table,12,FALSE)","v":{"$error":"#N/A"}},{"$f":"VLOOKUP(Table_Data_Table_135[[#This Row],[Item ID]],Analysis_Table,13,FALSE)","v":{"$error":"#N/A"}},{"$f":"VLOOKUP(Table_Data_Table_135[[#This Row],[Item ID]],Analysis_Table,14,FALSE)","v":{"$error":"#N/A"}},{"$f":"VLOOKUP(Table_Data_Table_135[[#This Row],[Item ID]],Analysis_Table,15,FALSE)","v":{"$error":"#N/A"}},{"$f":"VLOOKUP(Table_Data_Table_135[[#This Row],[Item ID]],Analysis_Table,16,FALSE)","v":{"$error":"#N/A"}},{"$f":"VLOOKUP(Table_Data_Table_135[[#This Row],[Item ID]],Analysis_Table,17,FALSE)","v":{"$error":"#N/A"}},{"$f":"VLOOKUP(Table_Data_Table_135[[#This Row],[Item ID]],Analysis_Table,18,FALSE)","v":{"$error":"#N/A"}},{"$f":"VLOOKUP(Table_Data_Table_135[[#This Row],[Item ID]],Analysis_Table,19,FALSE)","v":{"$error":"#N/A"}},null,null,1]
["",null,{"$f":"VLOOKUP(Table_Data_Table_135[[#This Row],[Item ID]],Analysis_Table,20,FALSE)","v":{"$error":"#N/A"}},null,null,null,null,null,null,null,0,null,null,null,{"$f":"VLOOKUP(Table_Data_Table_135[[#This Row],[Item ID]],Analysis_Table,8,FALSE)","v":{"$error":"#N/A"}},{"$f":"VLOOKUP(Table_Data_Table_135[[#This Row],[Item ID]],Analysis_Table,9,FALSE)","v":{"$error":"#N/A"}},{"$f":"VLOOKUP(Table_Data_Table_135[[#This Row],[Item ID]],Analysis_Table,10,FALSE)","v":{"$error":"#N/A"}},{"$f":"VLOOKUP(Table_Data_Table_135[[#This Row],[Item ID]],Analysis_Table,11,FALSE)","v":{"$error":"#N/A"}},{"$f":"VLOOKUP(Table_Data_Table_135[[#This Row],[Item ID]],Analysis_Table,12,FALSE)","v":{"$error":"#N/A"}},{"$f":"VLOOKUP(Table_Data_Table_135[[#This Row],[Item ID]],Analysis_Table,13,FALSE)","v":{"$error":"#N/A"}},{"$f":"VLOOKUP(Table_Data_Table_135[[#This Row],[Item ID]],Analysis_Table,14,FALSE)","v":{"$error":"#N/A"}},{"$f":"VLOOKUP(Table_Data_Table_135[[#This Row],[Item ID]],Analysis_Table,15,FALSE)","v":{"$error":"#N/A"}},{"$f":"VLOOKUP(Table_Data_Table_135[[#This Row],[Item ID]],Analysis_Table,16,FALSE)","v":{"$error":"#N/A"}},{"$f":"VLOOKUP(Table_Data_Table_135[[#This Row],[Item ID]],Analysis_Table,17,FALSE)","v":{"$error":"#N/A"}},{"$f":"VLOOKUP(Table_Data_Table_135[[#This Row],[Item ID]],Analysis_Table,18,FALSE)","v":{"$error":"#N/A"}},{"$f":"VLOOKUP(Table_Data_Table_135[[#This Row],[Item ID]],Analysis_Table,19,FALSE)","v":{"$error":"#N/A"}},null,null,1]
["",null,{"$f":"VLOOKUP(Table_Data_Table_135[[#This Row],[Item ID]],Analysis_Table,20,FALSE)","v":{"$error":"#N/A"}},null,null,null,null,null,null,null,0,null,null,null,{"$f":"VLOOKUP(Table_Data_Table_135[[#This Row],[Item ID]],Analysis_Table,8,FALSE)","v":{"$error":"#N/A"}},{"$f":"VLOOKUP(Table_Data_Table_135[[#This Row],[Item ID]],Analysis_Table,9,FALSE)","v":{"$error":"#N/A"}},{"$f":"VLOOKUP(Table_Data_Table_135[[#This Row],[Item ID]],Analysis_Table,10,FALSE)","v":{"$error":"#N/A"}},{"$f":"VLOOKUP(Table_Data_Table_135[[#This Row],[Item ID]],Analysis_Table,11,FALSE)","v":{"$error":"#N/A"}},{"$f":"VLOOKUP(Table_Data_Table_135[[#This Row],[Item ID]],Analysis_Table,12,FALSE)","v":{"$error":"#N/A"}},{"$f":"VLOOKUP(Table_Data_Table_135[[#This Row],[Item ID]],Analysis_Table,13,FALSE)","v":{"$error":"#N/A"}},{"$f":"VLOOKUP(Table_Data_Table_135[[#This Row],[Item ID]],Analysis_Table,14,FALSE)","v":{"$error":"#N/A"}},{"$f":"VLOOKUP(Table_Data_Table_135[[#This Row],[Item ID]],Analysis_Table,15,FALSE)","v":{"$error":"#N/A"}},{"$f":"VLOOKUP(Table_Data_Table_135[[#This Row],[Item ID]],Analysis_Table,16,FALSE)","v":{"$error":"#N/A"}},{"$f":"VLOOKUP(Table_Data_Table_135[[#This Row],[Item ID]],Analysis_Table,17,FALSE)","v":{"$error":"#N/A"}},{"$f":"VLOOKUP(Table_Data_Table_135[[#This Row],[Item ID]],Analysis_Table,18,FALSE)","v":{"$error":"#N/A"}},{"$f":"VLOOKUP(Table_Data_Table_135[[#This Row],[Item ID]],Analysis_Table,19,FALSE)","v":{"$error":"#N/A"}},null,null,1]
["",null,{"$f":"VLOOKUP(Table_Data_Table_135[[#This Row],[Item ID]],Analysis_Table,20,FALSE)","v":{"$error":"#N/A"}},null,null,null,null,null,null,null,0,null,null,null,{"$f":"VLOOKUP(Table_Data_Table_135[[#This Row],[Item ID]],Analysis_Table,8,FALSE)","v":{"$error":"#N/A"}},{"$f":"VLOOKUP(Table_Data_Table_135[[#This Row],[Item ID]],Analysis_Table,9,FALSE)","v":{"$error":"#N/A"}},{"$f":"VLOOKUP(Table_Data_Table_135[[#This Row],[Item ID]],Analysis_Table,10,FALSE)","v":{"$error":"#N/A"}},{"$f":"VLOOKUP(Table_Data_Table_135[[#This Row],[Item ID]],Analysis_Table,11,FALSE)","v":{"$error":"#N/A"}},{"$f":"VLOOKUP(Table_Data_Table_135[[#This Row],[Item ID]],Analysis_Table,12,FALSE)","v":{"$error":"#N/A"}},{"$f":"VLOOKUP(Table_Data_Table_135[[#This Row],[Item ID]],Analysis_Table,13,FALSE)","v":{"$error":"#N/A"}},{"$f":"VLOOKUP(Table_Data_Table_135[[#This Row],[Item ID]],Analysis_Table,14,FALSE)","v":{"$error":"#N/A"}},{"$f":"VLOOKUP(Table_Data_Table_135[[#This Row],[Item ID]],Analysis_Table,15,FALSE)","v":{"$error":"#N/A"}},{"$f":"VLOOKUP(Table_Data_Table_135[[#This Row],[Item ID]],Analysis_Table,16,FALSE)","v":{"$error":"#N/A"}},{"$f":"VLOOKUP(Table_Data_Table_135[[#This Row],[Item ID]],Analysis_Table,17,FALSE)","v":{"$error":"#N/A"}},{"$f":"VLOOKUP(Table_Data_Table_135[[#This Row],[Item ID]],Analysis_Table,18,FALSE)","v":{"$error":"#N/A"}},{"$f":"VLOOKUP(Table_Data_Table_135[[#This Row],[Item ID]],Analysis_Table,19,FALSE)","v":{"$error":"#N/A"}},null,null,1]
["",null,{"$f":"VLOOKUP(Table_Data_Table_135[[#This Row],[Item ID]],Analysis_Table,20,FALSE)","v":{"$error":"#N/A"}},null,null,null,null,null,null,null,0,null,null,null,{"$f":"VLOOKUP(Table_Data_Table_135[[#This Row],[Item ID]],Analysis_Table,8,FALSE)","v":{"$error":"#N/A"}},{"$f":"VLOOKUP(Table_Data_Table_135[[#This Row],[Item ID]],Analysis_Table,9,FALSE)","v":{"$error":"#N/A"}},{"$f":"VLOOKUP(Table_Data_Table_135[[#This Row],[Item ID]],Analysis_Table,10,FALSE)","v":{"$error":"#N/A"}},{"$f":"VLOOKUP(Table_Data_Table_135[[#This Row],[Item ID]],Analysis_Table,11,FALSE)","v":{"$error":"#N/A"}},{"$f":"VLOOKUP(Table_Data_Table_135[[#This Row],[Item ID]],Analysis_Table,12,FALSE)","v":{"$error":"#N/A"}},{"$f":"VLOOKUP(Table_Data_Table_135[[#This Row],[Item ID]],Analysis_Table,13,FALSE)","v":{"$error":"#N/A"}},{"$f":"VLOOKUP(Table_Data_Table_135[[#This Row],[Item ID]],Analysis_Table,14,FALSE)","v":{"$error":"#N/A"}},{"$f":"VLOOKUP(Table_Data_Table_135[[#This Row],[Item ID]],Analysis_Table,15,FALSE)","v":{"$error":"#N/A"}},{"$f":"VLOOKUP(Table_Data_Table_135[[#This Row],[Item ID]],Analysis_Table,16,FALSE)","v":{"$error":"#N/A"}},{"$f":"VLOOKUP(Table_Data_Table_135[[#This Row],[Item ID]],Analysis_Table,17,FALSE)","v":{"$error":"#N/A"}},{"$f":"VLOOKUP(Table_Data_Table_135[[#This Row],[Item ID]],Analysis_Table,18,FALSE)","v":{"$error":"#N/A"}},{"$f":"VLOOKUP(Table_Data_Table_135[[#This Row],[Item ID]],Analysis_Table,19,FALSE)","v":{"$error":"#N/A"}},null,null,1]
["",null,{"$f":"VLOOKUP(Table_Data_Table_135[[#This Row],[Item ID]],Analysis_Table,20,FALSE)","v":{"$error":"#N/A"}},null,null,null,null,null,null,null,0,null,null,null,{"$f":"VLOOKUP(Table_Data_Table_135[[#This Row],[Item ID]],Analysis_Table,8,FALSE)","v":{"$error":"#N/A"}},{"$f":"VLOOKUP(Table_Data_Table_135[[#This Row],[Item ID]],Analysis_Table,9,FALSE)","v":{"$error":"#N/A"}},{"$f":"VLOOKUP(Table_Data_Table_135[[#This Row],[Item ID]],Analysis_Table,10,FALSE)","v":{"$error":"#N/A"}},{"$f":"VLOOKUP(Table_Data_Table_135[[#This Row],[Item ID]],Analysis_Table,11,FALSE)","v":{"$error":"#N/A"}},{"$f":"VLOOKUP(Table_Data_Table_135[[#This Row],[Item ID]],Analysis_Table,12,FALSE)","v":{"$error":"#N/A"}},{"$f":"VLOOKUP(Table_Data_Table_135[[#This Row],[Item ID]],Analysis_Table,13,FALSE)","v":{"$error":"#N/A"}},{"$f":"VLOOKUP(Table_Data_Table_135[[#This Row],[Item ID]],Analysis_Table,14,FALSE)","v":{"$error":"#N/A"}},{"$f":"VLOOKUP(Table_Data_Table_135[[#This Row],[Item ID]],Analysis_Table,15,FALSE)","v":{"$error":"#N/A"}},{"$f":"VLOOKUP(Table_Data_Table_135[[#This Row],[Item ID]],Analysis_Table,16,FALSE)","v":{"$error":"#N/A"}},{"$f":"VLOOKUP(Table_Data_Table_135[[#This Row],[Item ID]],Analysis_Table,17,FALSE)","v":{"$error":"#N/A"}},{"$f":"VLOOKUP(Table_Data_Table_135[[#This Row],[Item ID]],Analysis_Table,18,FALSE)","v":{"$error":"#N/A"}},{"$f":"VLOOKUP(Table_Data_Table_135[[#This Row],[Item ID]],Analysis_Table,19,FALSE)","v":{"$error":"#N/A"}},null,null,1]
["",null,{"$f":"VLOOKUP(Table_Data_Table_135[[#This Row],[Item ID]],Analysis_Table,20,FALSE)","v":{"$error":"#N/A"}},null,null,null,null,null,null,null,0,null,null,null,{"$f":"VLOOKUP(Table_Data_Table_135[[#This Row],[Item ID]],Analysis_Table,8,FALSE)","v":{"$error":"#N/A"}},{"$f":"VLOOKUP(Table_Data_Table_135[[#This Row],[Item ID]],Analysis_Table,9,FALSE)","v":{"$error":"#N/A"}},{"$f":"VLOOKUP(Table_Data_Table_135[[#This Row],[Item ID]],Analysis_Table,10,FALSE)","v":{"$error":"#N/A"}},{"$f":"VLOOKUP(Table_Data_Table_135[[#This Row],[Item ID]],Analysis_Table,11,FALSE)","v":{"$error":"#N/A"}},{"$f":"VLOOKUP(Table_Data_Table_135[[#This Row],[Item ID]],Analysis_Table,12,FALSE)","v":{"$error":"#N/A"}},{"$f":"VLOOKUP(Table_Data_Table_135[[#This Row],[Item ID]],Analysis_Table,13,FALSE)","v":{"$error":"#N/A"}},{"$f":"VLOOKUP(Table_Data_Table_135[[#This Row],[Item ID]],Analysis_Table,14,FALSE)","v":{"$error":"#N/A"}},{"$f":"VLOOKUP(Table_Data_Table_135[[#This Row],[Item ID]],Analysis_Table,15,FALSE)","v":{"$error":"#N/A"}},{"$f":"VLOOKUP(Table_Data_Table_135[[#This Row],[Item ID]],Analysis_Table,16,FALSE)","v":{"$error":"#N/A"}},{"$f":"VLOOKUP(Table_Data_Table_135[[#This Row],[Item ID]],Analysis_Table,17,FALSE)","v":{"$error":"#N/A"}},{"$f":"VLOOKUP(Table_Data_Table_135[[#This Row],[Item ID]],Analysis_Table,18,FALSE)","v":{"$error":"#N/A"}},{"$f":"VLOOKUP(Table_Data_Table_135[[#This Row],[Item ID]],Analysis_Table,19,FALSE)","v":{"$error":"#N/A"}},null,null,1]
["",null,{"$f":"VLOOKUP(Table_Data_Table_135[[#This Row],[Item ID]],Analysis_Table,20,FALSE)","v":{"$error":"#N/A"}},null,null,null,null,null,null,null,0,null,null,null,{"$f":"VLOOKUP(Table_Data_Table_135[[#This Row],[Item ID]],Analysis_Table,8,FALSE)","v":{"$error":"#N/A"}},{"$f":"VLOOKUP(Table_Data_Table_135[[#This Row],[Item ID]],Analysis_Table,9,FALSE)","v":{"$error":"#N/A"}},{"$f":"VLOOKUP(Table_Data_Table_135[[#This Row],[Item ID]],Analysis_Table,10,FALSE)","v":{"$error":"#N/A"}},{"$f":"VLOOKUP(Table_Data_Table_135[[#This Row],[Item ID]],Analysis_Table,11,FALSE)","v":{"$error":"#N/A"}},{"$f":"VLOOKUP(Table_Data_Table_135[[#This Row],[Item ID]],Analysis_Table,12,FALSE)","v":{"$error":"#N/A"}},{"$f":"VLOOKUP(Table_Data_Table_135[[#This Row],[Item ID]],Analysis_Table,13,FALSE)","v":{"$error":"#N/A"}},{"$f":"VLOOKUP(Table_Data_Table_135[[#This Row],[Item ID]],Analysis_Table,14,FALSE)","v":{"$error":"#N/A"}},{"$f":"VLOOKUP(Table_Data_Table_135[[#This Row],[Item ID]],Analysis_Table,15,FALSE)","v":{"$error":"#N/A"}},{"$f":"VLOOKUP(Table_Data_Table_135[[#This Row],[Item ID]],Analysis_Table,16,FALSE)","v":{"$error":"#N/A"}},{"$f":"VLOOKUP(Table_Data_Table_135[[#This Row],[Item ID]],Analysis_Table,17,FALSE)","v":{"$error":"#N/A"}},{"$f":"VLOOKUP(Table_Data_Table_135[[#This Row],[Item ID]],Analysis_Table,18,FALSE)","v":{"$error":"#N/A"}},{"$f":"VLOOKUP(Table_Data_Table_135[[#This Row],[Item ID]],Analysis_Table,19,FALSE)","v":{"$error":"#N/A"}},null,null,1]
["",null,{"$f":"VLOOKUP(Table_Data_Table_135[[#This Row],[Item ID]],Analysis_Table,20,FALSE)","v":{"$error":"#N/A"}},null,null,null,null,null,null,null,0,null,null,null,{"$f":"VLOOKUP(Table_Data_Table_135[[#This Row],[Item ID]],Analysis_Table,8,FALSE)","v":{"$error":"#N/A"}},{"$f":"VLOOKUP(Table_Data_Table_135[[#This Row],[Item ID]],Analysis_Table,9,FALSE)","v":{"$error":"#N/A"}},{"$f":"VLOOKUP(Table_Data_Table_135[[#This Row],[Item ID]],Analysis_Table,10,FALSE)","v":{"$error":"#N/A"}},{"$f":"VLOOKUP(Table_Data_Table_135[[#This Row],[Item ID]],Analysis_Table,11,FALSE)","v":{"$error":"#N/A"}},{"$f":"VLOOKUP(Table_Data_Table_135[[#This Row],[Item ID]],Analysis_Table,12,FALSE)","v":{"$error":"#N/A"}},{"$f":"VLOOKUP(Table_Data_Table_135[[#This Row],[Item ID]],Analysis_Table,13,FALSE)","v":{"$error":"#N/A"}},{"$f":"VLOOKUP(Table_Data_Table_135[[#This Row],[Item ID]],Analysis_Table,14,FALSE)","v":{"$error":"#N/A"}},{"$f":"VLOOKUP(Table_Data_Table_135[[#This Row],[Item ID]],Analysis_Table,15,FALSE)","v":{"$error":"#N/A"}},{"$f":"VLOOKUP(Table_Data_Table_135[[#This Row],[Item ID]],Analysis_Table,16,FALSE)","v":{"$error":"#N/A"}},{"$f":"VLOOKUP(Table_Data_Table_135[[#This Row],[Item ID]],Analysis_Table,17,FALSE)","v":{"$error":"#N/A"}},{"$f":"VLOOKUP(Table_Data_Table_135[[#This Row],[Item ID]],Analysis_Table,18,FALSE)","v":{"$error":"#N/A"}},{"$f":"VLOOKUP(Table_Data_Table_135[[#This Row],[Item ID]],Analysis_Table,19,FALSE)","v":{"$error":"#N/A"}},null,null,1]
["",null,{"$f":"VLOOKUP(Table_Data_Table_135[[#This Row],[Item ID]],Analysis_Table,20,FALSE)","v":{"$error":"#N/A"}},null,null,null,null,null,null,null,0,null,null,null,{"$f":"VLOOKUP(Table_Data_Table_135[[#This Row],[Item ID]],Analysis_Table,8,FALSE)","v":{"$error":"#N/A"}},{"$f":"VLOOKUP(Table_Data_Table_135[[#This Row],[Item ID]],Analysis_Table,9,FALSE)","v":{"$error":"#N/A"}},{"$f":"VLOOKUP(Table_Data_Table_135[[#This Row],[Item ID]],Analysis_Table,10,FALSE)","v":{"$error":"#N/A"}},{"$f":"VLOOKUP(Table_Data_Table_135[[#This Row],[Item ID]],Analysis_Table,11,FALSE)","v":{"$error":"#N/A"}},{"$f":"VLOOKUP(Table_Data_Table_135[[#This Row],[Item ID]],Analysis_Table,12,FALSE)","v":{"$error":"#N/A"}},{"$f":"VLOOKUP(Table_Data_Table_135[[#This Row],[Item ID]],Analysis_Table,13,FALSE)","v":{"$error":"#N/A"}},{"$f":"VLOOKUP(Table_Data_Table_135[[#This Row],[Item ID]],Analysis_Table,14,FALSE)","v":{"$error":"#N/A"}},{"$f":"VLOOKUP(Table_Data_Table_135[[#This Row],[Item ID]],Analysis_Table,15,FALSE)","v":{"$error":"#N/A"}},{"$f":"VLOOKUP(Table_Data_Table_135[[#This Row],[Item ID]],Analysis_Table,16,FALSE)","v":{"$error":"#N/A"}},{"$f":"VLOOKUP(Table_Data_Table_135[[#This Row],[Item ID]],Analysis_Table,17,FALSE)","v":{"$error":"#N/A"}},{"$f":"VLOOKUP(Table_Data_Table_135[[#This Row],[Item ID]],Analysis_Table,18,FALSE)","v":{"$error":"#N/A"}},{"$f":"VLOOKUP(Table_Data_Table_135[[#This Row],[Item ID]],Analysis_Table,19,FALSE)","v":{"$error":"#N/A"}},null,null,1]
["",null,{"$f":"VLOOKUP(Table_Data_Table_135[[#This Row],[Item ID]],Analysis_Table,20,FALSE)","v":{"$error":"#N/A"}},null,null,null,null,null,null,null,0,null,null,null,{"$f":"VLOOKUP(Table_Data_Table_135[[#This Row],[Item ID]],Analysis_Table,8,FALSE)","v":{"$error":"#N/A"}},{"$f":"VLOOKUP(Table_Data_Table_135[[#This Row],[Item ID]],Analysis_Table,9,FALSE)","v":{"$error":"#N/A"}},{"$f":"VLOOKUP(Table_Data_Table_135[[#This Row],[Item ID]],Analysis_Table,10,FALSE)","v":{"$error":"#N/A"}},{"$f":"VLOOKUP(Table_Data_Table_135[[#This Row],[Item ID]],Analysis_Table,11,FALSE)","v":{"$error":"#N/A"}},{"$f":"VLOOKUP(Table_Data_Table_135[[#This Row],[Item ID]],Analysis_Table,12,FALSE)","v":{"$error":"#N/A"}},{"$f":"VLOOKUP(Table_Data_Table_135[[#This Row],[Item ID]],Analysis_Table,13,FALSE)","v":{"$error":"#N/A"}},{"$f":"VLOOKUP(Table_Data_Table_135[[#This Row],[Item ID]],Analysis_Table,14,FALSE)","v":{"$error":"#N/A"}},{"$f":"VLOOKUP(Table_Data_Table_135[[#This Row],[Item ID]],Analysis_Table,15,FALSE)","v":{"$error":"#N/A"}},{"$f":"VLOOKUP(Table_Data_Table_135[[#This Row],[Item ID]],Analysis_Table,16,FALSE)","v":{"$error":"#N/A"}},{"$f":"VLOOKUP(Table_Data_Table_135[[#This Row],[Item ID]],Analysis_Table,17,FALSE)","v":{"$error":"#N/A"}},{"$f":"VLOOKUP(Table_Data_Table_135[[#This Row],[Item ID]],Analysis_Table,18,FALSE)","v":{"$error":"#N/A"}},{"$f":"VLOOKUP(Table_Data_Table_135[[#This Row],[Item ID]],Analysis_Table,19,FALSE)","v":{"$error":"#N/A"}},null,null,1]
["",null,{"$f":"VLOOKUP(Table_Data_Table_135[[#This Row],[Item ID]],Analysis_Table,20,FALSE)","v":{"$error":"#N/A"}},null,null,null,null,null,null,null,0,null,null,null,{"$f":"VLOOKUP(Table_Data_Table_135[[#This Row],[Item ID]],Analysis_Table,8,FALSE)","v":{"$error":"#N/A"}},{"$f":"VLOOKUP(Table_Data_Table_135[[#This Row],[Item ID]],Analysis_Table,9,FALSE)","v":{"$error":"#N/A"}},{"$f":"VLOOKUP(Table_Data_Table_135[[#This Row],[Item ID]],Analysis_Table,10,FALSE)","v":{"$error":"#N/A"}},{"$f":"VLOOKUP(Table_Data_Table_135[[#This Row],[Item ID]],Analysis_Table,11,FALSE)","v":{"$error":"#N/A"}},{"$f":"VLOOKUP(Table_Data_Table_135[[#This Row],[Item ID]],Analysis_Table,12,FALSE)","v":{"$error":"#N/A"}},{"$f":"VLOOKUP(Table_Data_Table_135[[#This Row],[Item ID]],Analysis_Table,13,FALSE)","v":{"$error":"#N/A"}},{"$f":"VLOOKUP(Table_Data_Table_135[[#This Row],[Item ID]],Analysis_Table,14,FALSE)","v":{"$error":"#N/A"}},{"$f":"VLOOKUP(Table_Data_Table_135[[#This Row],[Item ID]],Analysis_Table,15,FALSE)","v":{"$error":"#N/A"}},{"$f":"VLOOKUP(Table_Data_Table_135[[#This Row],[Item ID]],Analysis_Table,16,FALSE)","v":{"$error":"#N/A"}},{"$f":"VLOOKUP(Table_Data_Table_135[[#This Row],[Item ID]],Analysis_Table,17,FALSE)","v":{"$error":"#N/A"}},{"$f":"VLOOKUP(Table_Data_Table_135[[#This Row],[Item ID]],Analysis_Table,18,FALSE)","v":{"$error":"#N/A"}},{"$f":"VLOOKUP(Table_Data_Table_135[[#This Row],[Item ID]],Analysis_Table,19,FALSE)","v":{"$error":"#N/A"}},null,null,1]
["",null,{"$f":"VLOOKUP(Table_Data_Table_135[[#This Row],[Item ID]],Analysis_Table,20,FALSE)","v":{"$error":"#N/A"}},null,null,null,null,null,null,null,0,null,null,null,{"$f":"VLOOKUP(Table_Data_Table_135[[#This Row],[Item ID]],Analysis_Table,8,FALSE)","v":{"$error":"#N/A"}},{"$f":"VLOOKUP(Table_Data_Table_135[[#This Row],[Item ID]],Analysis_Table,9,FALSE)","v":{"$error":"#N/A"}},{"$f":"VLOOKUP(Table_Data_Table_135[[#This Row],[Item ID]],Analysis_Table,10,FALSE)","v":{"$error":"#N/A"}},{"$f":"VLOOKUP(Table_Data_Table_135[[#This Row],[Item ID]],Analysis_Table,11,FALSE)","v":{"$error":"#N/A"}},{"$f":"VLOOKUP(Table_Data_Table_135[[#This Row],[Item ID]],Analysis_Table,12,FALSE)","v":{"$error":"#N/A"}},{"$f":"VLOOKUP(Table_Data_Table_135[[#This Row],[Item ID]],Analysis_Table,13,FALSE)","v":{"$error":"#N/A"}},{"$f":"VLOOKUP(Table_Data_Table_135[[#This Row],[Item ID]],Analysis_Table,14,FALSE)","v":{"$error":"#N/A"}},{"$f":"VLOOKUP(Table_Data_Table_135[[#This Row],[Item ID]],Analysis_Table,15,FALSE)","v":{"$error":"#N/A"}},{"$f":"VLOOKUP(Table_Data_Table_135[[#This Row],[Item ID]],Analysis_Table,16,FALSE)","v":{"$error":"#N/A"}},{"$f":"VLOOKUP(Table_Data_Table_135[[#This Row],[Item ID]],Analysis_Table,17,FALSE)","v":{"$error":"#N/A"}},{"$f":"VLOOKUP(Table_Data_Table_135[[#This Row],[Item ID]],Analysis_Table,18,FALSE)","v":{"$error":"#N/A"}},{"$f":"VLOOKUP(Table_Data_Table_135[[#This Row],[Item ID]],Analysis_Table,19,FALSE)","v":{"$error":"#N/A"}},null,null,1]
["",null,{"$f":"VLOOKUP(Table_Data_Table_135[[#This Row],[Item ID]],Analysis_Table,20,FALSE)","v":{"$error":"#N/A"}},null,null,null,null,null,null,null,0,null,null,null,{"$f":"VLOOKUP(Table_Data_Table_135[[#This Row],[Item ID]],Analysis_Table,8,FALSE)","v":{"$error":"#N/A"}},{"$f":"VLOOKUP(Table_Data_Table_135[[#This Row],[Item ID]],Analysis_Table,9,FALSE)","v":{"$error":"#N/A"}},{"$f":"VLOOKUP(Table_Data_Table_135[[#This Row],[Item ID]],Analysis_Table,10,FALSE)","v":{"$error":"#N/A"}},{"$f":"VLOOKUP(Table_Data_Table_135[[#This Row],[Item ID]],Analysis_Table,11,FALSE)","v":{"$error":"#N/A"}},{"$f":"VLOOKUP(Table_Data_Table_135[[#This Row],[Item ID]],Analysis_Table,12,FALSE)","v":{"$error":"#N/A"}},{"$f":"VLOOKUP(Table_Data_Table_135[[#This Row],[Item ID]],Analysis_Table,13,FALSE)","v":{"$error":"#N/A"}},{"$f":"VLOOKUP(Table_Data_Table_135[[#This Row],[Item ID]],Analysis_Table,14,FALSE)","v":{"$error":"#N/A"}},{"$f":"VLOOKUP(Table_Data_Table_135[[#This Row],[Item ID]],Analysis_Table,15,FALSE)","v":{"$error":"#N/A"}},{"$f":"VLOOKUP(Table_Data_Table_135[[#This Row],[Item ID]],Analysis_Table,16,FALSE)","v":{"$error":"#N/A"}},{"$f":"VLOOKUP(Table_Data_Table_135[[#This Row],[Item ID]],Analysis_Table,17,FALSE)","v":{"$error":"#N/A"}},{"$f":"VLOOKUP(Table_Data_Table_135[[#This Row],[Item ID]],Analysis_Table,18,FALSE)","v":{"$error":"#N/A"}},{"$f":"VLOOKUP(Table_Data_Table_135[[#This Row],[Item ID]],Analysis_Table,19,FALSE)","v":{"$error":"#N/A"}},null,null,1]
["",null,{"$f":"VLOOKUP(Table_Data_Table_135[[#This Row],[Item ID]],Analysis_Table,20,FALSE)","v":{"$error":"#N/A"}},null,null,null,null,null,null,null,0,null,null,null,{"$f":"VLOOKUP(Table_Data_Table_135[[#This Row],[Item ID]],Analysis_Table,8,FALSE)","v":{"$error":"#N/A"}},{"$f":"VLOOKUP(Table_Data_Table_135[[#This Row],[Item ID]],Analysis_Table,9,FALSE)","v":{"$error":"#N/A"}},{"$f":"VLOOKUP(Table_Data_Table_135[[#This Row],[Item ID]],Analysis_Table,10,FALSE)","v":{"$error":"#N/A"}},{"$f":"VLOOKUP(Table_Data_Table_135[[#This Row],[Item ID]],Analysis_Table,11,FALSE)","v":{"$error":"#N/A"}},{"$f":"VLOOKUP(Table_Data_Table_135[[#This Row],[Item ID]],Analysis_Table,12,FALSE)","v":{"$error":"#N/A"}},{"$f":"VLOOKUP(Table_Data_Table_135[[#This Row],[Item ID]],Analysis_Table,13,FALSE)","v":{"$error":"#N/A"}},{"$f":"VLOOKUP(Table_Data_Table_135[[#This Row],[Item ID]],Analysis_Table,14,FALSE)","v":{"$error":"#N/A"}},{"$f":"VLOOKUP(Table_Data_Table_135[[#This Row],[Item ID]],Analysis_Table,15,FALSE)","v":{"$error":"#N/A"}},{"$f":"VLOOKUP(Table_Data_Table_135[[#This Row],[Item ID]],Analysis_Table,16,FALSE)","v":{"$error":"#N/A"}},{"$f":"VLOOKUP(Table_Data_Table_135[[#This Row],[Item ID]],Analysis_Table,17,FALSE)","v":{"$error":"#N/A"}},{"$f":"VLOOKUP(Table_Data_Table_135[[#This Row],[Item ID]],Analysis_Table,18,FALSE)","v":{"$error":"#N/A"}},{"$f":"VLOOKUP(Table_Data_Table_135[[#This Row],[Item ID]],Analysis_Table,19,FALSE)","v":{"$error":"#N/A"}},null,null,1]
["",null,{"$f":"VLOOKUP(Table_Data_Table_135[[#This Row],[Item ID]],Analysis_Table,20,FALSE)","v":{"$error":"#N/A"}},null,null,null,null,null,null,null,0,null,null,null,{"$f":"VLOOKUP(Table_Data_Table_135[[#This Row],[Item ID]],Analysis_Table,8,FALSE)","v":{"$error":"#N/A"}},{"$f":"VLOOKUP(Table_Data_Table_135[[#This Row],[Item ID]],Analysis_Table,9,FALSE)","v":{"$error":"#N/A"}},{"$f":"VLOOKUP(Table_Data_Table_135[[#This Row],[Item ID]],Analysis_Table,10,FALSE)","v":{"$error":"#N/A"}},{"$f":"VLOOKUP(Table_Data_Table_135[[#This Row],[Item ID]],Analysis_Table,11,FALSE)","v":{"$error":"#N/A"}},{"$f":"VLOOKUP(Table_Data_Table_135[[#This Row],[Item ID]],Analysis_Table,12,FALSE)","v":{"$error":"#N/A"}},{"$f":"VLOOKUP(Table_Data_Table_135[[#This Row],[Item ID]],Analysis_Table,13,FALSE)","v":{"$error":"#N/A"}},{"$f":"VLOOKUP(Table_Data_Table_135[[#This Row],[Item ID]],Analysis_Table,14,FALSE)","v":{"$error":"#N/A"}},{"$f":"VLOOKUP(Table_Data_Table_135[[#This Row],[Item ID]],Analysis_Table,15,FALSE)","v":{"$error":"#N/A"}},{"$f":"VLOOKUP(Table_Data_Table_135[[#This Row],[Item ID]],Analysis_Table,16,FALSE)","v":{"$error":"#N/A"}},{"$f":"VLOOKUP(Table_Data_Table_135[[#This Row],[Item ID]],Analysis_Table,17,FALSE)","v":{"$error":"#N/A"}},{"$f":"VLOOKUP(Table_Data_Table_135[[#This Row],[Item ID]],Analysis_Table,18,FALSE)","v":{"$error":"#N/A"}},{"$f":"VLOOKUP(Table_Data_Table_135[[#This Row],[Item ID]],Analysis_Table,19,FALSE)","v":{"$error":"#N/A"}},null,null,1]
["",null,{"$f":"VLOOKUP(Table_Data_Table_135[[#This Row],[Item ID]],Analysis_Table,20,FALSE)","v":{"$error":"#N/A"}},null,null,null,null,null,null,null,0,null,null,null,{"$f":"VLOOKUP(Table_Data_Table_135[[#This Row],[Item ID]],Analysis_Table,8,FALSE)","v":{"$error":"#N/A"}},{"$f":"VLOOKUP(Table_Data_Table_135[[#This Row],[Item ID]],Analysis_Table,9,FALSE)","v":{"$error":"#N/A"}},{"$f":"VLOOKUP(Table_Data_Table_135[[#This Row],[Item ID]],Analysis_Table,10,FALSE)","v":{"$error":"#N/A"}},{"$f":"VLOOKUP(Table_Data_Table_135[[#This Row],[Item ID]],Analysis_Table,11,FALSE)","v":{"$error":"#N/A"}},{"$f":"VLOOKUP(Table_Data_Table_135[[#This Row],[Item ID]],Analysis_Table,12,FALSE)","v":{"$error":"#N/A"}},{"$f":"VLOOKUP(Table_Data_Table_135[[#This Row],[Item ID]],Analysis_Table,13,FALSE)","v":{"$error":"#N/A"}},{"$f":"VLOOKUP(Table_Data_Table_135[[#This Row],[Item ID]],Analysis_Table,14,FALSE)","v":{"$error":"#N/A"}},{"$f":"VLOOKUP(Table_Data_Table_135[[#This Row],[Item ID]],Analysis_Table,15,FALSE)","v":{"$error":"#N/A"}},{"$f":"VLOOKUP(Table_Data_Table_135[[#This Row],[Item ID]],Analysis_Table,16,FALSE)","v":{"$error":"#N/A"}},{"$f":"VLOOKUP(Table_Data_Table_135[[#This Row],[Item ID]],Analysis_Table,17,FALSE)","v":{"$error":"#N/A"}},{"$f":"VLOOKUP(Table_Data_Table_135[[#This Row],[Item ID]],Analysis_Table,18,FALSE)","v":{"$error":"#N/A"}},{"$f":"VLOOKUP(Table_Data_Table_135[[#This Row],[Item ID]],Analysis_Table,19,FALSE)","v":{"$error":"#N/A"}},null,null,1]
["",null,{"$f":"VLOOKUP(Table_Data_Table_135[[#This Row],[Item ID]],Analysis_Table,20,FALSE)","v":{"$error":"#N/A"}},null,null,null,null,null,null,null,0,null,null,null,{"$f":"VLOOKUP(Table_Data_Table_135[[#This Row],[Item ID]],Analysis_Table,8,FALSE)","v":{"$error":"#N/A"}},{"$f":"VLOOKUP(Table_Data_Table_135[[#This Row],[Item ID]],Analysis_Table,9,FALSE)","v":{"$error":"#N/A"}},{"$f":"VLOOKUP(Table_Data_Table_135[[#This Row],[Item ID]],Analysis_Table,10,FALSE)","v":{"$error":"#N/A"}},{"$f":"VLOOKUP(Table_Data_Table_135[[#This Row],[Item ID]],Analysis_Table,11,FALSE)","v":{"$error":"#N/A"}},{"$f":"VLOOKUP(Table_Data_Table_135[[#This Row],[Item ID]],Analysis_Table,12,FALSE)","v":{"$error":"#N/A"}},{"$f":"VLOOKUP(Table_Data_Table_135[[#This Row],[Item ID]],Analysis_Table,13,FALSE)","v":{"$error":"#N/A"}},{"$f":"VLOOKUP(Table_Data_Table_135[[#This Row],[Item ID]],Analysis_Table,14,FALSE)","v":{"$error":"#N/A"}},{"$f":"VLOOKUP(Table_Data_Table_135[[#This Row],[Item ID]],Analysis_Table,15,FALSE)","v":{"$error":"#N/A"}},{"$f":"VLOOKUP(Table_Data_Table_135[[#This Row],[Item ID]],Analysis_Table,16,FALSE)","v":{"$error":"#N/A"}},{"$f":"VLOOKUP(Table_Data_Table_135[[#This Row],[Item ID]],Analysis_Table,17,FALSE)","v":{"$error":"#N/A"}},{"$f":"VLOOKUP(Table_Data_Table_135[[#This Row],[Item ID]],Analysis_Table,18,FALSE)","v":{"$error":"#N/A"}},{"$f":"VLOOKUP(Table_Data_Table_135[[#This Row],[Item ID]],Analysis_Table,19,FALSE)","v":{"$error":"#N/A"}},null,null,1]
["",null,{"$f":"VLOOKUP(Table_Data_Table_135[[#This Row],[Item ID]],Analysis_Table,20,FALSE)","v":{"$error":"#N/A"}},null,null,null,null,null,null,null,0,null,null,null,{"$f":"VLOOKUP(Table_Data_Table_135[[#This Row],[Item ID]],Analysis_Table,8,FALSE)","v":{"$error":"#N/A"}},{"$f":"VLOOKUP(Table_Data_Table_135[[#This Row],[Item ID]],Analysis_Table,9,FALSE)","v":{"$error":"#N/A"}},{"$f":"VLOOKUP(Table_Data_Table_135[[#This Row],[Item ID]],Analysis_Table,10,FALSE)","v":{"$error":"#N/A"}},{"$f":"VLOOKUP(Table_Data_Table_135[[#This Row],[Item ID]],Analysis_Table,11,FALSE)","v":{"$error":"#N/A"}},{"$f":"VLOOKUP(Table_Data_Table_135[[#This Row],[Item ID]],Analysis_Table,12,FALSE)","v":{"$error":"#N/A"}},{"$f":"VLOOKUP(Table_Data_Table_135[[#This Row],[Item ID]],Analysis_Table,13,FALSE)","v":{"$error":"#N/A"}},{"$f":"VLOOKUP(Table_Data_Table_135[[#This Row],[Item ID]],Analysis_Table,14,FALSE)","v":{"$error":"#N/A"}},{"$f":"VLOOKUP(Table_Data_Table_135[[#This Row],[Item ID]],Analysis_Table,15,FALSE)","v":{"$error":"#N/A"}},{"$f":"VLOOKUP(Table_Data_Table_135[[#This Row],[Item ID]],Analysis_Table,16,FALSE)","v":{"$error":"#N/A"}},{"$f":"VLOOKUP(Table_Data_Table_135[[#This Row],[Item ID]],Analysis_Table,17,FALSE)","v":{"$error":"#N/A"}},{"$f":"VLOOKUP(Table_Data_Table_135[[#This Row],[Item ID]],Analysis_Table,18,FALSE)","v":{"$error":"#N/A"}},{"$f":"VLOOKUP(Table_Data_Table_135[[#This Row],[Item ID]],Analysis_Table,19,FALSE)","v":{"$error":"#N/A"}},null,null,1]
["",null,{"$f":"VLOOKUP(Table_Data_Table_135[[#This Row],[Item ID]],Analysis_Table,20,FALSE)","v":{"$error":"#N/A"}},null,null,null,null,null,null,null,0,null,null,null,{"$f":"VLOOKUP(Table_Data_Table_135[[#This Row],[Item ID]],Analysis_Table,8,FALSE)","v":{"$error":"#N/A"}},{"$f":"VLOOKUP(Table_Data_Table_135[[#This Row],[Item ID]],Analysis_Table,9,FALSE)","v":{"$error":"#N/A"}},{"$f":"VLOOKUP(Table_Data_Table_135[[#This Row],[Item ID]],Analysis_Table,10,FALSE)","v":{"$error":"#N/A"}},{"$f":"VLOOKUP(Table_Data_Table_135[[#This Row],[Item ID]],Analysis_Table,11,FALSE)","v":{"$error":"#N/A"}},{"$f":"VLOOKUP(Table_Data_Table_135[[#This Row],[Item ID]],Analysis_Table,12,FALSE)","v":{"$error":"#N/A"}},{"$f":"VLOOKUP(Table_Data_Table_135[[#This Row],[Item ID]],Analysis_Table,13,FALSE)","v":{"$error":"#N/A"}},{"$f":"VLOOKUP(Table_Data_Table_135[[#This Row],[Item ID]],Analysis_Table,14,FALSE)","v":{"$error":"#N/A"}},{"$f":"VLOOKUP(Table_Data_Table_135[[#This Row],[Item ID]],Analysis_Table,15,FALSE)","v":{"$error":"#N/A"}},{"$f":"VLOOKUP(Table_Data_Table_135[[#This Row],[Item ID]],Analysis_Table,16,FALSE)","v":{"$error":"#N/A"}},{"$f":"VLOOKUP(Table_Data_Table_135[[#This Row],[Item ID]],Analysis_Table,17,FALSE)","v":{"$error":"#N/A"}},{"$f":"VLOOKUP(Table_Data_Table_135[[#This Row],[Item ID]],Analysis_Table,18,FALSE)","v":{"$error":"#N/A"}},{"$f":"VLOOKUP(Table_Data_Table_135[[#This Row],[Item ID]],Analysis_Table,19,FALSE)","v":{"$error":"#N/A"}},null,null,1]
["",null,{"$f":"VLOOKUP(Table_Data_Table_135[[#This Row],[Item ID]],Analysis_Table,20,FALSE)","v":{"$error":"#N/A"}},null,null,null,null,null,null,null,0,null,null,null,{"$f":"VLOOKUP(Table_Data_Table_135[[#This Row],[Item ID]],Analysis_Table,8,FALSE)","v":{"$error":"#N/A"}},{"$f":"VLOOKUP(Table_Data_Table_135[[#This Row],[Item ID]],Analysis_Table,9,FALSE)","v":{"$error":"#N/A"}},{"$f":"VLOOKUP(Table_Data_Table_135[[#This Row],[Item ID]],Analysis_Table,10,FALSE)","v":{"$error":"#N/A"}},{"$f":"VLOOKUP(Table_Data_Table_135[[#This Row],[Item ID]],Analysis_Table,11,FALSE)","v":{"$error":"#N/A"}},{"$f":"VLOOKUP(Table_Data_Table_135[[#This Row],[Item ID]],Analysis_Table,12,FALSE)","v":{"$error":"#N/A"}},{"$f":"VLOOKUP(Table_Data_Table_135[[#This Row],[Item ID]],Analysis_Table,13,FALSE)","v":{"$error":"#N/A"}},{"$f":"VLOOKUP(Table_Data_Table_135[[#This Row],[Item ID]],Analysis_Table,14,FALSE)","v":{"$error":"#N/A"}},{"$f":"VLOOKUP(Table_Data_Table_135[[#This Row],[Item ID]],Analysis_Table,15,FALSE)","v":{"$error":"#N/A"}},{"$f":"VLOOKUP(Table_Data_Table_135[[#This Row],[Item ID]],Analysis_Table,16,FALSE)","v":{"$error":"#N/A"}},{"$f":"VLOOKUP(Table_Data_Table_135[[#This Row],[Item ID]],Analysis_Table,17,FALSE)","v":{"$error":"#N/A"}},{"$f":"VLOOKUP(Table_Data_Table_135[[#This Row],[Item ID]],Analysis_Table,18,FALSE)","v":{"$error":"#N/A"}},{"$f":"VLOOKUP(Table_Data_Table_135[[#This Row],[Item ID]],Analysis_Table,19,FALSE)","v":{"$error":"#N/A"}},null,null,1]
["",null,{"$f":"VLOOKUP(Table_Data_Table_135[[#This Row],[Item ID]],Analysis_Table,20,FALSE)","v":{"$error":"#N/A"}},null,null,null,null,null,null,null,0,null,null,null,{"$f":"VLOOKUP(Table_Data_Table_135[[#This Row],[Item ID]],Analysis_Table,8,FALSE)","v":{"$error":"#N/A"}},{"$f":"VLOOKUP(Table_Data_Table_135[[#This Row],[Item ID]],Analysis_Table,9,FALSE)","v":{"$error":"#N/A"}},{"$f":"VLOOKUP(Table_Data_Table_135[[#This Row],[Item ID]],Analysis_Table,10,FALSE)","v":{"$error":"#N/A"}},{"$f":"VLOOKUP(Table_Data_Table_135[[#This Row],[Item ID]],Analysis_Table,11,FALSE)","v":{"$error":"#N/A"}},{"$f":"VLOOKUP(Table_Data_Table_135[[#This Row],[Item ID]],Analysis_Table,12,FALSE)","v":{"$error":"#N/A"}},{"$f":"VLOOKUP(Table_Data_Table_135[[#This Row],[Item ID]],Analysis_Table,13,FALSE)","v":{"$error":"#N/A"}},{"$f":"VLOOKUP(Table_Data_Table_135[[#This Row],[Item ID]],Analysis_Table,14,FALSE)","v":{"$error":"#N/A"}},{"$f":"VLOOKUP(Table_Data_Table_135[[#This Row],[Item ID]],Analysis_Table,15,FALSE)","v":{"$error":"#N/A"}},{"$f":"VLOOKUP(Table_Data_Table_135[[#This Row],[Item ID]],Analysis_Table,16,FALSE)","v":{"$error":"#N/A"}},{"$f":"VLOOKUP(Table_Data_Table_135[[#This Row],[Item ID]],Analysis_Table,17,FALSE)","v":{"$error":"#N/A"}},{"$f":"VLOOKUP(Table_Data_Table_135[[#This Row],[Item ID]],Analysis_Table,18,FALSE)","v":{"$error":"#N/A"}},{"$f":"VLOOKUP(Table_Data_Table_135[[#This Row],[Item ID]],Analysis_Table,19,FALSE)","v":{"$error":"#N/A"}},null,null,1]
["",null,{"$f":"VLOOKUP(Table_Data_Table_135[[#This Row],[Item ID]],Analysis_Table,20,FALSE)","v":{"$error":"#N/A"}},null,null,null,null,null,null,null,0,null,null,null,{"$f":"VLOOKUP(Table_Data_Table_135[[#This Row],[Item ID]],Analysis_Table,8,FALSE)","v":{"$error":"#N/A"}},{"$f":"VLOOKUP(Table_Data_Table_135[[#This Row],[Item ID]],Analysis_Table,9,FALSE)","v":{"$error":"#N/A"}},{"$f":"VLOOKUP(Table_Data_Table_135[[#This Row],[Item ID]],Analysis_Table,10,FALSE)","v":{"$error":"#N/A"}},{"$f":"VLOOKUP(Table_Data_Table_135[[#This Row],[Item ID]],Analysis_Table,11,FALSE)","v":{"$error":"#N/A"}},{"$f":"VLOOKUP(Table_Data_Table_135[[#This Row],[Item ID]],Analysis_Table,12,FALSE)","v":{"$error":"#N/A"}},{"$f":"VLOOKUP(Table_Data_Table_135[[#This Row],[Item ID]],Analysis_Table,13,FALSE)","v":{"$error":"#N/A"}},{"$f":"VLOOKUP(Table_Data_Table_135[[#This Row],[Item ID]],Analysis_Table,14,FALSE)","v":{"$error":"#N/A"}},{"$f":"VLOOKUP(Table_Data_Table_135[[#This Row],[Item ID]],Analysis_Table,15,FALSE)","v":{"$error":"#N/A"}},{"$f":"VLOOKUP(Table_Data_Table_135[[#This Row],[Item ID]],Analysis_Table,16,FALSE)","v":{"$error":"#N/A"}},{"$f":"VLOOKUP(Table_Data_Table_135[[#This Row],[Item ID]],Analysis_Table,17,FALSE)","v":{"$error":"#N/A"}},{"$f":"VLOOKUP(Table_Data_Table_135[[#This Row],[Item ID]],Analysis_Table,18,FALSE)","v":{"$error":"#N/A"}},{"$f":"VLOOKUP(Table_Data_Table_135[[#This Row],[Item ID]],Analysis_Table,19,FALSE)","v":{"$error":"#N/A"}},null,null,1]
["",null,{"$f":"VLOOKUP(Table_Data_Table_135[[#This Row],[Item ID]],Analysis_Table,20,FALSE)","v":{"$error":"#N/A"}},null,null,null,null,null,null,null,0,null,null,null,{"$f":"VLOOKUP(Table_Data_Table_135[[#This Row],[Item ID]],Analysis_Table,8,FALSE)","v":{"$error":"#N/A"}},{"$f":"VLOOKUP(Table_Data_Table_135[[#This Row],[Item ID]],Analysis_Table,9,FALSE)","v":{"$error":"#N/A"}},{"$f":"VLOOKUP(Table_Data_Table_135[[#This Row],[Item ID]],Analysis_Table,10,FALSE)","v":{"$error":"#N/A"}},{"$f":"VLOOKUP(Table_Data_Table_135[[#This Row],[Item ID]],Analysis_Table,11,FALSE)","v":{"$error":"#N/A"}},{"$f":"VLOOKUP(Table_Data_Table_135[[#This Row],[Item ID]],Analysis_Table,12,FALSE)","v":{"$error":"#N/A"}},{"$f":"VLOOKUP(Table_Data_Table_135[[#This Row],[Item ID]],Analysis_Table,13,FALSE)","v":{"$error":"#N/A"}},{"$f":"VLOOKUP(Table_Data_Table_135[[#This Row],[Item ID]],Analysis_Table,14,FALSE)","v":{"$error":"#N/A"}},{"$f":"VLOOKUP(Table_Data_Table_135[[#This Row],[Item ID]],Analysis_Table,15,FALSE)","v":{"$error":"#N/A"}},{"$f":"VLOOKUP(Table_Data_Table_135[[#This Row],[Item ID]],Analysis_Table,16,FALSE)","v":{"$error":"#N/A"}},{"$f":"VLOOKUP(Table_Data_Table_135[[#This Row],[Item ID]],Analysis_Table,17,FALSE)","v":{"$error":"#N/A"}},{"$f":"VLOOKUP(Table_Data_Table_135[[#This Row],[Item ID]],Analysis_Table,18,FALSE)","v":{"$error":"#N/A"}},{"$f":"VLOOKUP(Table_Data_Table_135[[#This Row],[Item ID]],Analysis_Table,19,FALSE)","v":{"$error":"#N/A"}},null,null,1]
["",null,{"$f":"VLOOKUP(Table_Data_Table_135[[#This Row],[Item ID]],Analysis_Table,20,FALSE)","v":{"$error":"#N/A"}},null,null,null,null,null,null,null,0,null,null,null,{"$f":"VLOOKUP(Table_Data_Table_135[[#This Row],[Item ID]],Analysis_Table,8,FALSE)","v":{"$error":"#N/A"}},{"$f":"VLOOKUP(Table_Data_Table_135[[#This Row],[Item ID]],Analysis_Table,9,FALSE)","v":{"$error":"#N/A"}},{"$f":"VLOOKUP(Table_Data_Table_135[[#This Row],[Item ID]],Analysis_Table,10,FALSE)","v":{"$error":"#N/A"}},{"$f":"VLOOKUP(Table_Data_Table_135[[#This Row],[Item ID]],Analysis_Table,11,FALSE)","v":{"$error":"#N/A"}},{"$f":"VLOOKUP(Table_Data_Table_135[[#This Row],[Item ID]],Analysis_Table,12,FALSE)","v":{"$error":"#N/A"}},{"$f":"VLOOKUP(Table_Data_Table_135[[#This Row],[Item ID]],Analysis_Table,13,FALSE)","v":{"$error":"#N/A"}},{"$f":"VLOOKUP(Table_Data_Table_135[[#This Row],[Item ID]],Analysis_Table,14,FALSE)","v":{"$error":"#N/A"}},{"$f":"VLOOKUP(Table_Data_Table_135[[#This Row],[Item ID]],Analysis_Table,15,FALSE)","v":{"$error":"#N/A"}},{"$f":"VLOOKUP(Table_Data_Table_135[[#This Row],[Item ID]],Analysis_Table,16,FALSE)","v":{"$error":"#N/A"}},{"$f":"VLOOKUP(Table_Data_Table_135[[#This Row],[Item ID]],Analysis_Table,17,FALSE)","v":{"$error":"#N/A"}},{"$f":"VLOOKUP(Table_Data_Table_135[[#This Row],[Item ID]],Analysis_Table,18,FALSE)","v":{"$error":"#N/A"}},{"$f":"VLOOKUP(Table_Data_Table_135[[#This Row],[Item ID]],Analysis_Table,19,FALSE)","v":{"$error":"#N/A"}},null,null,1]
["",null,{"$f":"VLOOKUP(Table_Data_Table_135[[#This Row],[Item ID]],Analysis_Table,20,FALSE)","v":{"$error":"#N/A"}},null,null,null,null,null,null,null,0,null,null,null,{"$f":"VLOOKUP(Table_Data_Table_135[[#This Row],[Item ID]],Analysis_Table,8,FALSE)","v":{"$error":"#N/A"}},{"$f":"VLOOKUP(Table_Data_Table_135[[#This Row],[Item ID]],Analysis_Table,9,FALSE)","v":{"$error":"#N/A"}},{"$f":"VLOOKUP(Table_Data_Table_135[[#This Row],[Item ID]],Analysis_Table,10,FALSE)","v":{"$error":"#N/A"}},{"$f":"VLOOKUP(Table_Data_Table_135[[#This Row],[Item ID]],Analysis_Table,11,FALSE)","v":{"$error":"#N/A"}},{"$f":"VLOOKUP(Table_Data_Table_135[[#This Row],[Item ID]],Analysis_Table,12,FALSE)","v":{"$error":"#N/A"}},{"$f":"VLOOKUP(Table_Data_Table_135[[#This Row],[Item ID]],Analysis_Table,13,FALSE)","v":{"$error":"#N/A"}},{"$f":"VLOOKUP(Table_Data_Table_135[[#This Row],[Item ID]],Analysis_Table,14,FALSE)","v":{"$error":"#N/A"}},{"$f":"VLOOKUP(Table_Data_Table_135[[#This Row],[Item ID]],Analysis_Table,15,FALSE)","v":{"$error":"#N/A"}},{"$f":"VLOOKUP(Table_Data_Table_135[[#This Row],[Item ID]],Analysis_Table,16,FALSE)","v":{"$error":"#N/A"}},{"$f":"VLOOKUP(Table_Data_Table_135[[#This Row],[Item ID]],Analysis_Table,17,FALSE)","v":{"$error":"#N/A"}},{"$f":"VLOOKUP(Table_Data_Table_135[[#This Row],[Item ID]],Analysis_Table,18,FALSE)","v":{"$error":"#N/A"}},{"$f":"VLOOKUP(Table_Data_Table_135[[#This Row],[Item ID]],Analysis_Table,19,FALSE)","v":{"$error":"#N/A"}},null,null,1]
["",null,{"$f":"VLOOKUP(Table_Data_Table_135[[#This Row],[Item ID]],Analysis_Table,20,FALSE)","v":{"$error":"#N/A"}},null,null,null,null,null,null,null,0,null,null,null,{"$f":"VLOOKUP(Table_Data_Table_135[[#This Row],[Item ID]],Analysis_Table,8,FALSE)","v":{"$error":"#N/A"}},{"$f":"VLOOKUP(Table_Data_Table_135[[#This Row],[Item ID]],Analysis_Table,9,FALSE)","v":{"$error":"#N/A"}},{"$f":"VLOOKUP(Table_Data_Table_135[[#This Row],[Item ID]],Analysis_Table,10,FALSE)","v":{"$error":"#N/A"}},{"$f":"VLOOKUP(Table_Data_Table_135[[#This Row],[Item ID]],Analysis_Table,11,FALSE)","v":{"$error":"#N/A"}},{"$f":"VLOOKUP(Table_Data_Table_135[[#This Row],[Item ID]],Analysis_Table,12,FALSE)","v":{"$error":"#N/A"}},{"$f":"VLOOKUP(Table_Data_Table_135[[#This Row],[Item ID]],Analysis_Table,13,FALSE)","v":{"$error":"#N/A"}},{"$f":"VLOOKUP(Table_Data_Table_135[[#This Row],[Item ID]],Analysis_Table,14,FALSE)","v":{"$error":"#N/A"}},{"$f":"VLOOKUP(Table_Data_Table_135[[#This Row],[Item ID]],Analysis_Table,15,FALSE)","v":{"$error":"#N/A"}},{"$f":"VLOOKUP(Table_Data_Table_135[[#This Row],[Item ID]],Analysis_Table,16,FALSE)","v":{"$error":"#N/A"}},{"$f":"VLOOKUP(Table_Data_Table_135[[#This Row],[Item ID]],Analysis_Table,17,FALSE)","v":{"$error":"#N/A"}},{"$f":"VLOOKUP(Table_Data_Table_135[[#This Row],[Item ID]],Analysis_Table,18,FALSE)","v":{"$error":"#N/A"}},{"$f":"VLOOKUP(Table_Data_Table_135[[#This Row],[Item ID]],Analysis_Table,19,FALSE)","v":{"$error":"#N/A"}},null,null,1]
["",null,{"$f":"VLOOKUP(Table_Data_Table_135[[#This Row],[Item ID]],Analysis_Table,20,FALSE)","v":{"$error":"#N/A"}},null,null,null,null,null,null,null,0,null,null,null,{"$f":"VLOOKUP(Table_Data_Table_135[[#This Row],[Item ID]],Analysis_Table,8,FALSE)","v":{"$error":"#N/A"}},{"$f":"VLOOKUP(Table_Data_Table_135[[#This Row],[Item ID]],Analysis_Table,9,FALSE)","v":{"$error":"#N/A"}},{"$f":"VLOOKUP(Table_Data_Table_135[[#This Row],[Item ID]],Analysis_Table,10,FALSE)","v":{"$error":"#N/A"}},{"$f":"VLOOKUP(Table_Data_Table_135[[#This Row],[Item ID]],Analysis_Table,11,FALSE)","v":{"$error":"#N/A"}},{"$f":"VLOOKUP(Table_Data_Table_135[[#This Row],[Item ID]],Analysis_Table,12,FALSE)","v":{"$error":"#N/A"}},{"$f":"VLOOKUP(Table_Data_Table_135[[#This Row],[Item ID]],Analysis_Table,13,FALSE)","v":{"$error":"#N/A"}},{"$f":"VLOOKUP(Table_Data_Table_135[[#This Row],[Item ID]],Analysis_Table,14,FALSE)","v":{"$error":"#N/A"}},{"$f":"VLOOKUP(Table_Data_Table_135[[#This Row],[Item ID]],Analysis_Table,15,FALSE)","v":{"$error":"#N/A"}},{"$f":"VLOOKUP(Table_Data_Table_135[[#This Row],[Item ID]],Analysis_Table,16,FALSE)","v":{"$error":"#N/A"}},{"$f":"VLOOKUP(Table_Data_Table_135[[#This Row],[Item ID]],Analysis_Table,17,FALSE)","v":{"$error":"#N/A"}},{"$f":"VLOOKUP(Table_Data_Table_135[[#This Row],[Item ID]],Analysis_Table,18,FALSE)","v":{"$error":"#N/A"}},{"$f":"VLOOKUP(Table_Data_Table_135[[#This Row],[Item ID]],Analysis_Table,19,FALSE)","v":{"$error":"#N/A"}},null,null,1]
["",null,{"$f":"VLOOKUP(Table_Data_Table_135[[#This Row],[Item ID]],Analysis_Table,20,FALSE)","v":{"$error":"#N/A"}},null,null,null,null,null,null,null,0,null,null,null,{"$f":"VLOOKUP(Table_Data_Table_135[[#This Row],[Item ID]],Analysis_Table,8,FALSE)","v":{"$error":"#N/A"}},{"$f":"VLOOKUP(Table_Data_Table_135[[#This Row],[Item ID]],Analysis_Table,9,FALSE)","v":{"$error":"#N/A"}},{"$f":"VLOOKUP(Table_Data_Table_135[[#This Row],[Item ID]],Analysis_Table,10,FALSE)","v":{"$error":"#N/A"}},{"$f":"VLOOKUP(Table_Data_Table_135[[#This Row],[Item ID]],Analysis_Table,11,FALSE)","v":{"$error":"#N/A"}},{"$f":"VLOOKUP(Table_Data_Table_135[[#This Row],[Item ID]],Analysis_Table,12,FALSE)","v":{"$error":"#N/A"}},{"$f":"VLOOKUP(Table_Data_Table_135[[#This Row],[Item ID]],Analysis_Table,13,FALSE)","v":{"$error":"#N/A"}},{"$f":"VLOOKUP(Table_Data_Table_135[[#This Row],[Item ID]],Analysis_Table,14,FALSE)","v":{"$error":"#N/A"}},{"$f":"VLOOKUP(Table_Data_Table_135[[#This Row],[Item ID]],Analysis_Table,15,FALSE)","v":{"$error":"#N/A"}},{"$f":"VLOOKUP(Table_Data_Table_135[[#This Row],[Item ID]],Analysis_Table,16,FALSE)","v":{"$error":"#N/A"}},{"$f":"VLOOKUP(Table_Data_Table_135[[#This Row],[Item ID]],Analysis_Table,17,FALSE)","v":{"$error":"#N/A"}},{"$f":"VLOOKUP(Table_Data_Table_135[[#This Row],[Item ID]],Analysis_Table,18,FALSE)","v":{"$error":"#N/A"}},{"$f":"VLOOKUP(Table_Data_Table_135[[#This Row],[Item ID]],Analysis_Table,19,FALSE)","v":{"$error":"#N/A"}},null,null,1]
["",null,{"$f":"VLOOKUP(Table_Data_Table_135[[#This Row],[Item ID]],Analysis_Table,20,FALSE)","v":{"$error":"#N/A"}},null,null,null,null,null,null,null,0,null,null,null,{"$f":"VLOOKUP(Table_Data_Table_135[[#This Row],[Item ID]],Analysis_Table,8,FALSE)","v":{"$error":"#N/A"}},{"$f":"VLOOKUP(Table_Data_Table_135[[#This Row],[Item ID]],Analysis_Table,9,FALSE)","v":{"$error":"#N/A"}},{"$f":"VLOOKUP(Table_Data_Table_135[[#This Row],[Item ID]],Analysis_Table,10,FALSE)","v":{"$error":"#N/A"}},{"$f":"VLOOKUP(Table_Data_Table_135[[#This Row],[Item ID]],Analysis_Table,11,FALSE)","v":{"$error":"#N/A"}},{"$f":"VLOOKUP(Table_Data_Table_135[[#This Row],[Item ID]],Analysis_Table,12,FALSE)","v":{"$error":"#N/A"}},{"$f":"VLOOKUP(Table_Data_Table_135[[#This Row],[Item ID]],Analysis_Table,13,FALSE)","v":{"$error":"#N/A"}},{"$f":"VLOOKUP(Table_Data_Table_135[[#This Row],[Item ID]],Analysis_Table,14,FALSE)","v":{"$error":"#N/A"}},{"$f":"VLOOKUP(Table_Data_Table_135[[#This Row],[Item ID]],Analysis_Table,15,FALSE)","v":{"$error":"#N/A"}},{"$f":"VLOOKUP(Table_Data_Table_135[[#This Row],[Item ID]],Analysis_Table,16,FALSE)","v":{"$error":"#N/A"}},{"$f":"VLOOKUP(Table_Data_Table_135[[#This Row],[Item ID]],Analysis_Table,17,FALSE)","v":{"$error":"#N/A"}},{"$f":"VLOOKUP(Table_Data_Table_135[[#This Row],[Item ID]],Analysis_Table,18,FALSE)","v":{"$error":"#N/A"}},{"$f":"VLOOKUP(Table_Data_Table_135[[#This Row],[Item ID]],Analysis_Table,19,FALSE)","v":{"$error":"#N/A"}},null,null,1]
["",null,{"$f":"VLOOKUP(Table_Data_Table_135[[#This Row],[Item ID]],Analysis_Table,20,FALSE)","v":{"$error":"#N/A"}},null,null,null,null,null,null,null,0,null,null,null,{"$f":"VLOOKUP(Table_Data_Table_135[[#This Row],[Item ID]],Analysis_Table,8,FALSE)","v":{"$error":"#N/A"}},{"$f":"VLOOKUP(Table_Data_Table_135[[#This Row],[Item ID]],Analysis_Table,9,FALSE)","v":{"$error":"#N/A"}},{"$f":"VLOOKUP(Table_Data_Table_135[[#This Row],[Item ID]],Analysis_Table,10,FALSE)","v":{"$error":"#N/A"}},{"$f":"VLOOKUP(Table_Data_Table_135[[#This Row],[Item ID]],Analysis_Table,11,FALSE)","v":{"$error":"#N/A"}},{"$f":"VLOOKUP(Table_Data_Table_135[[#This Row],[Item ID]],Analysis_Table,12,FALSE)","v":{"$error":"#N/A"}},{"$f":"VLOOKUP(Table_Data_Table_135[[#This Row],[Item ID]],Analysis_Table,13,FALSE)","v":{"$error":"#N/A"}},{"$f":"VLOOKUP(Table_Data_Table_135[[#This Row],[Item ID]],Analysis_Table,14,FALSE)","v":{"$error":"#N/A"}},{"$f":"VLOOKUP(Table_Data_Table_135[[#This Row],[Item ID]],Analysis_Table,15,FALSE)","v":{"$error":"#N/A"}},{"$f":"VLOOKUP(Table_Data_Table_135[[#This Row],[Item ID]],Analysis_Table,16,FALSE)","v":{"$error":"#N/A"}},{"$f":"VLOOKUP(Table_Data_Table_135[[#This Row],[Item ID]],Analysis_Table,17,FALSE)","v":{"$error":"#N/A"}},{"$f":"VLOOKUP(Table_Data_Table_135[[#This Row],[Item ID]],Analysis_Table,18,FALSE)","v":{"$error":"#N/A"}},{"$f":"VLOOKUP(Table_Data_Table_135[[#This Row],[Item ID]],Analysis_Table,19,FALSE)","v":{"$error":"#N/A"}},null,null,1]
["",null,{"$f":"VLOOKUP(Table_Data_Table_135[[#This Row],[Item ID]],Analysis_Table,20,FALSE)","v":{"$error":"#N/A"}},null,null,null,null,null,null,null,0,null,null,null,{"$f":"VLOOKUP(Table_Data_Table_135[[#This Row],[Item ID]],Analysis_Table,8,FALSE)","v":{"$error":"#N/A"}},{"$f":"VLOOKUP(Table_Data_Table_135[[#This Row],[Item ID]],Analysis_Table,9,FALSE)","v":{"$error":"#N/A"}},{"$f":"VLOOKUP(Table_Data_Table_135[[#This Row],[Item ID]],Analysis_Table,10,FALSE)","v":{"$error":"#N/A"}},{"$f":"VLOOKUP(Table_Data_Table_135[[#This Row],[Item ID]],Analysis_Table,11,FALSE)","v":{"$error":"#N/A"}},{"$f":"VLOOKUP(Table_Data_Table_135[[#This Row],[Item ID]],Analysis_Table,12,FALSE)","v":{"$error":"#N/A"}},{"$f":"VLOOKUP(Table_Data_Table_135[[#This Row],[Item ID]],Analysis_Table,13,FALSE)","v":{"$error":"#N/A"}},{"$f":"VLOOKUP(Table_Data_Table_135[[#This Row],[Item ID]],Analysis_Table,14,FALSE)","v":{"$error":"#N/A"}},{"$f":"VLOOKUP(Table_Data_Table_135[[#This Row],[Item ID]],Analysis_Table,15,FALSE)","v":{"$error":"#N/A"}},{"$f":"VLOOKUP(Table_Data_Table_135[[#This Row],[Item ID]],Analysis_Table,16,FALSE)","v":{"$error":"#N/A"}},{"$f":"VLOOKUP(Table_Data_Table_135[[#This Row],[Item ID]],Analysis_Table,17,FALSE)","v":{"$error":"#N/A"}},{"$f":"VLOOKUP(Table_Data_Table_135[[#This Row],[Item ID]],Analysis_Table,18,FALSE)","v":{"$error":"#N/A"}},{"$f":"VLOOKUP(Table_Data_Table_135[[#This Row],[Item ID]],Analysis_Table,19,FALSE)","v":{"$error":"#N/A"}},null,null,1]
["",null,{"$f":"VLOOKUP(Table_Data_Table_135[[#This Row],[Item ID]],Analysis_Table,20,FALSE)","v":{"$error":"#N/A"}},null,null,null,null,null,null,null,0,null,null,null,{"$f":"VLOOKUP(Table_Data_Table_135[[#This Row],[Item ID]],Analysis_Table,8,FALSE)","v":{"$error":"#N/A"}},{"$f":"VLOOKUP(Table_Data_Table_135[[#This Row],[Item ID]],Analysis_Table,9,FALSE)","v":{"$error":"#N/A"}},{"$f":"VLOOKUP(Table_Data_Table_135[[#This Row],[Item ID]],Analysis_Table,10,FALSE)","v":{"$error":"#N/A"}},{"$f":"VLOOKUP(Table_Data_Table_135[[#This Row],[Item ID]],Analysis_Table,11,FALSE)","v":{"$error":"#N/A"}},{"$f":"VLOOKUP(Table_Data_Table_135[[#This Row],[Item ID]],Analysis_Table,12,FALSE)","v":{"$error":"#N/A"}},{"$f":"VLOOKUP(Table_Data_Table_135[[#This Row],[Item ID]],Analysis_Table,13,FALSE)","v":{"$error":"#N/A"}},{"$f":"VLOOKUP(Table_Data_Table_135[[#This Row],[Item ID]],Analysis_Table,14,FALSE)","v":{"$error":"#N/A"}},{"$f":"VLOOKUP(Table_Data_Table_135[[#This Row],[Item ID]],Analysis_Table,15,FALSE)","v":{"$error":"#N/A"}},{"$f":"VLOOKUP(Table_Data_Table_135[[#This Row],[Item ID]],Analysis_Table,16,FALSE)","v":{"$error":"#N/A"}},{"$f":"VLOOKUP(Table_Data_Table_135[[#This Row],[Item ID]],Analysis_Table,17,FALSE)","v":{"$error":"#N/A"}},{"$f":"VLOOKUP(Table_Data_Table_135[[#This Row],[Item ID]],Analysis_Table,18,FALSE)","v":{"$error":"#N/A"}},{"$f":"VLOOKUP(Table_Data_Table_135[[#This Row],[Item ID]],Analysis_Table,19,FALSE)","v":{"$error":"#N/A"}},null,null,1]
["",null,{"$f":"VLOOKUP(Table_Data_Table_135[[#This Row],[Item ID]],Analysis_Table,20,FALSE)","v":{"$error":"#N/A"}},null,null,null,null,null,null,null,0,null,null,null,{"$f":"VLOOKUP(Table_Data_Table_135[[#This Row],[Item ID]],Analysis_Table,8,FALSE)","v":{"$error":"#N/A"}},{"$f":"VLOOKUP(Table_Data_Table_135[[#This Row],[Item ID]],Analysis_Table,9,FALSE)","v":{"$error":"#N/A"}},{"$f":"VLOOKUP(Table_Data_Table_135[[#This Row],[Item ID]],Analysis_Table,10,FALSE)","v":{"$error":"#N/A"}},{"$f":"VLOOKUP(Table_Data_Table_135[[#This Row],[Item ID]],Analysis_Table,11,FALSE)","v":{"$error":"#N/A"}},{"$f":"VLOOKUP(Table_Data_Table_135[[#This Row],[Item ID]],Analysis_Table,12,FALSE)","v":{"$error":"#N/A"}},{"$f":"VLOOKUP(Table_Data_Table_135[[#This Row],[Item ID]],Analysis_Table,13,FALSE)","v":{"$error":"#N/A"}},{"$f":"VLOOKUP(Table_Data_Table_135[[#This Row],[Item ID]],Analysis_Table,14,FALSE)","v":{"$error":"#N/A"}},{"$f":"VLOOKUP(Table_Data_Table_135[[#This Row],[Item ID]],Analysis_Table,15,FALSE)","v":{"$error":"#N/A"}},{"$f":"VLOOKUP(Table_Data_Table_135[[#This Row],[Item ID]],Analysis_Table,16,FALSE)","v":{"$error":"#N/A"}},{"$f":"VLOOKUP(Table_Data_Table_135[[#This Row],[Item ID]],Analysis_Table,17,FALSE)","v":{"$error":"#N/A"}},{"$f":"VLOOKUP(Table_Data_Table_135[[#This Row],[Item ID]],Analysis_Table,18,FALSE)","v":{"$error":"#N/A"}},{"$f":"VLOOKUP(Table_Data_Table_135[[#This Row],[Item ID]],Analysis_Table,19,FALSE)","v":{"$error":"#N/A"}},null,null,1]
["",null,{"$f":"VLOOKUP(Table_Data_Table_135[[#This Row],[Item ID]],Analysis_Table,20,FALSE)","v":{"$error":"#N/A"}},null,null,null,null,null,null,null,0,null,null,null,{"$f":"VLOOKUP(Table_Data_Table_135[[#This Row],[Item ID]],Analysis_Table,8,FALSE)","v":{"$error":"#N/A"}},{"$f":"VLOOKUP(Table_Data_Table_135[[#This Row],[Item ID]],Analysis_Table,9,FALSE)","v":{"$error":"#N/A"}},{"$f":"VLOOKUP(Table_Data_Table_135[[#This Row],[Item ID]],Analysis_Table,10,FALSE)","v":{"$error":"#N/A"}},{"$f":"VLOOKUP(Table_Data_Table_135[[#This Row],[Item ID]],Analysis_Table,11,FALSE)","v":{"$error":"#N/A"}},{"$f":"VLOOKUP(Table_Data_Table_135[[#This Row],[Item ID]],Analysis_Table,12,FALSE)","v":{"$error":"#N/A"}},{"$f":"VLOOKUP(Table_Data_Table_135[[#This Row],[Item ID]],Analysis_Table,13,FALSE)","v":{"$error":"#N/A"}},{"$f":"VLOOKUP(Table_Data_Table_135[[#This Row],[Item ID]],Analysis_Table,14,FALSE)","v":{"$error":"#N/A"}},{"$f":"VLOOKUP(Table_Data_Table_135[[#This Row],[Item ID]],Analysis_Table,15,FALSE)","v":{"$error":"#N/A"}},{"$f":"VLOOKUP(Table_Data_Table_135[[#This Row],[Item ID]],Analysis_Table,16,FALSE)","v":{"$error":"#N/A"}},{"$f":"VLOOKUP(Table_Data_Table_135[[#This Row],[Item ID]],Analysis_Table,17,FALSE)","v":{"$error":"#N/A"}},{"$f":"VLOOKUP(Table_Data_Table_135[[#This Row],[Item ID]],Analysis_Table,18,FALSE)","v":{"$error":"#N/A"}},{"$f":"VLOOKUP(Table_Data_Table_135[[#This Row],[Item ID]],Analysis_Table,19,FALSE)","v":{"$error":"#N/A"}},null,null,1]
["",null,{"$f":"VLOOKUP(Table_Data_Table_135[[#This Row],[Item ID]],Analysis_Table,20,FALSE)","v":{"$error":"#N/A"}},null,null,null,null,null,null,null,0,null,null,null,{"$f":"VLOOKUP(Table_Data_Table_135[[#This Row],[Item ID]],Analysis_Table,8,FALSE)","v":{"$error":"#N/A"}},{"$f":"VLOOKUP(Table_Data_Table_135[[#This Row],[Item ID]],Analysis_Table,9,FALSE)","v":{"$error":"#N/A"}},{"$f":"VLOOKUP(Table_Data_Table_135[[#This Row],[Item ID]],Analysis_Table,10,FALSE)","v":{"$error":"#N/A"}},{"$f":"VLOOKUP(Table_Data_Table_135[[#This Row],[Item ID]],Analysis_Table,11,FALSE)","v":{"$error":"#N/A"}},{"$f":"VLOOKUP(Table_Data_Table_135[[#This Row],[Item ID]],Analysis_Table,12,FALSE)","v":{"$error":"#N/A"}},{"$f":"VLOOKUP(Table_Data_Table_135[[#This Row],[Item ID]],Analysis_Table,13,FALSE)","v":{"$error":"#N/A"}},{"$f":"VLOOKUP(Table_Data_Table_135[[#This Row],[Item ID]],Analysis_Table,14,FALSE)","v":{"$error":"#N/A"}},{"$f":"VLOOKUP(Table_Data_Table_135[[#This Row],[Item ID]],Analysis_Table,15,FALSE)","v":{"$error":"#N/A"}},{"$f":"VLOOKUP(Table_Data_Table_135[[#This Row],[Item ID]],Analysis_Table,16,FALSE)","v":{"$error":"#N/A"}},{"$f":"VLOOKUP(Table_Data_Table_135[[#This Row],[Item ID]],Analysis_Table,17,FALSE)","v":{"$error":"#N/A"}},{"$f":"VLOOKUP(Table_Data_Table_135[[#This Row],[Item ID]],Analysis_Table,18,FALSE)","v":{"$error":"#N/A"}},{"$f":"VLOOKUP(Table_Data_Table_135[[#This Row],[Item ID]],Analysis_Table,19,FALSE)","v":{"$error":"#N/A"}},null,null,1]
["",null,{"$f":"VLOOKUP(Table_Data_Table_135[[#This Row],[Item ID]],Analysis_Table,20,FALSE)","v":{"$error":"#N/A"}},null,null,null,null,null,null,null,0,null,null,null,{"$f":"VLOOKUP(Table_Data_Table_135[[#This Row],[Item ID]],Analysis_Table,8,FALSE)","v":{"$error":"#N/A"}},{"$f":"VLOOKUP(Table_Data_Table_135[[#This Row],[Item ID]],Analysis_Table,9,FALSE)","v":{"$error":"#N/A"}},{"$f":"VLOOKUP(Table_Data_Table_135[[#This Row],[Item ID]],Analysis_Table,10,FALSE)","v":{"$error":"#N/A"}},{"$f":"VLOOKUP(Table_Data_Table_135[[#This Row],[Item ID]],Analysis_Table,11,FALSE)","v":{"$error":"#N/A"}},{"$f":"VLOOKUP(Table_Data_Table_135[[#This Row],[Item ID]],Analysis_Table,12,FALSE)","v":{"$error":"#N/A"}},{"$f":"VLOOKUP(Table_Data_Table_135[[#This Row],[Item ID]],Analysis_Table,13,FALSE)","v":{"$error":"#N/A"}},{"$f":"VLOOKUP(Table_Data_Table_135[[#This Row],[Item ID]],Analysis_Table,14,FALSE)","v":{"$error":"#N/A"}},{"$f":"VLOOKUP(Table_Data_Table_135[[#This Row],[Item ID]],Analysis_Table,15,FALSE)","v":{"$error":"#N/A"}},{"$f":"VLOOKUP(Table_Data_Table_135[[#This Row],[Item ID]],Analysis_Table,16,FALSE)","v":{"$error":"#N/A"}},{"$f":"VLOOKUP(Table_Data_Table_135[[#This Row],[Item ID]],Analysis_Table,17,FALSE)","v":{"$error":"#N/A"}},{"$f":"VLOOKUP(Table_Data_Table_135[[#This Row],[Item ID]],Analysis_Table,18,FALSE)","v":{"$error":"#N/A"}},{"$f":"VLOOKUP(Table_Data_Table_135[[#This Row],[Item ID]],Analysis_Table,19,FALSE)","v":{"$error":"#N/A"}},null,null,1]
["",null,{"$f":"VLOOKUP(Table_Data_Table_135[[#This Row],[Item ID]],Analysis_Table,20,FALSE)","v":{"$error":"#N/A"}},null,null,null,null,null,null,null,0,null,null,null,{"$f":"VLOOKUP(Table_Data_Table_135[[#This Row],[Item ID]],Analysis_Table,8,FALSE)","v":{"$error":"#N/A"}},{"$f":"VLOOKUP(Table_Data_Table_135[[#This Row],[Item ID]],Analysis_Table,9,FALSE)","v":{"$error":"#N/A"}},{"$f":"VLOOKUP(Table_Data_Table_135[[#This Row],[Item ID]],Analysis_Table,10,FALSE)","v":{"$error":"#N/A"}},{"$f":"VLOOKUP(Table_Data_Table_135[[#This Row],[Item ID]],Analysis_Table,11,FALSE)","v":{"$error":"#N/A"}},{"$f":"VLOOKUP(Table_Data_Table_135[[#This Row],[Item ID]],Analysis_Table,12,FALSE)","v":{"$error":"#N/A"}},{"$f":"VLOOKUP(Table_Data_Table_135[[#This Row],[Item ID]],Analysis_Table,13,FALSE)","v":{"$error":"#N/A"}},{"$f":"VLOOKUP(Table_Data_Table_135[[#This Row],[Item ID]],Analysis_Table,14,FALSE)","v":{"$error":"#N/A"}},{"$f":"VLOOKUP(Table_Data_Table_135[[#This Row],[Item ID]],Analysis_Table,15,FALSE)","v":{"$error":"#N/A"}},{"$f":"VLOOKUP(Table_Data_Table_135[[#This Row],[Item ID]],Analysis_Table,16,FALSE)","v":{"$error":"#N/A"}},{"$f":"VLOOKUP(Table_Data_Table_135[[#This Row],[Item ID]],Analysis_Table,17,FALSE)","v":{"$error":"#N/A"}},{"$f":"VLOOKUP(Table_Data_Table_135[[#This Row],[Item ID]],Analysis_Table,18,FALSE)","v":{"$error":"#N/A"}},{"$f":"VLOOKUP(Table_Data_Table_135[[#This Row],[Item ID]],Analysis_Table,19,FALSE)","v":{"$error":"#N/A"}},null,null,1]
["",null,{"$f":"VLOOKUP(Table_Data_Table_135[[#This Row],[Item ID]],Analysis_Table,20,FALSE)","v":{"$error":"#N/A"}},null,null,null,null,null,null,null,0,null,null,null,{"$f":"VLOOKUP(Table_Data_Table_135[[#This Row],[Item ID]],Analysis_Table,8,FALSE)","v":{"$error":"#N/A"}},{"$f":"VLOOKUP(Table_Data_Table_135[[#This Row],[Item ID]],Analysis_Table,9,FALSE)","v":{"$error":"#N/A"}},{"$f":"VLOOKUP(Table_Data_Table_135[[#This Row],[Item ID]],Analysis_Table,10,FALSE)","v":{"$error":"#N/A"}},{"$f":"VLOOKUP(Table_Data_Table_135[[#This Row],[Item ID]],Analysis_Table,11,FALSE)","v":{"$error":"#N/A"}},{"$f":"VLOOKUP(Table_Data_Table_135[[#This Row],[Item ID]],Analysis_Table,12,FALSE)","v":{"$error":"#N/A"}},{"$f":"VLOOKUP(Table_Data_Table_135[[#This Row],[Item ID]],Analysis_Table,13,FALSE)","v":{"$error":"#N/A"}},{"$f":"VLOOKUP(Table_Data_Table_135[[#This Row],[Item ID]],Analysis_Table,14,FALSE)","v":{"$error":"#N/A"}},{"$f":"VLOOKUP(Table_Data_Table_135[[#This Row],[Item ID]],Analysis_Table,15,FALSE)","v":{"$error":"#N/A"}},{"$f":"VLOOKUP(Table_Data_Table_135[[#This Row],[Item ID]],Analysis_Table,16,FALSE)","v":{"$error":"#N/A"}},{"$f":"VLOOKUP(Table_Data_Table_135[[#This Row],[Item ID]],Analysis_Table,17,FALSE)","v":{"$error":"#N/A"}},{"$f":"VLOOKUP(Table_Data_Table_135[[#This Row],[Item ID]],Analysis_Table,18,FALSE)","v":{"$error":"#N/A"}},{"$f":"VLOOKUP(Table_Data_Table_135[[#This Row],[Item ID]],Analysis_Table,19,FALSE)","v":{"$error":"#N/A"}},null,null,1]
["",null,{"$f":"VLOOKUP(Table_Data_Table_135[[#This Row],[Item ID]],Analysis_Table,20,FALSE)","v":{"$error":"#N/A"}},null,null,null,null,null,null,null,0,null,null,null,{"$f":"VLOOKUP(Table_Data_Table_135[[#This Row],[Item ID]],Analysis_Table,8,FALSE)","v":{"$error":"#N/A"}},{"$f":"VLOOKUP(Table_Data_Table_135[[#This Row],[Item ID]],Analysis_Table,9,FALSE)","v":{"$error":"#N/A"}},{"$f":"VLOOKUP(Table_Data_Table_135[[#This Row],[Item ID]],Analysis_Table,10,FALSE)","v":{"$error":"#N/A"}},{"$f":"VLOOKUP(Table_Data_Table_135[[#This Row],[Item ID]],Analysis_Table,11,FALSE)","v":{"$error":"#N/A"}},{"$f":"VLOOKUP(Table_Data_Table_135[[#This Row],[Item ID]],Analysis_Table,12,FALSE)","v":{"$error":"#N/A"}},{"$f":"VLOOKUP(Table_Data_Table_135[[#This Row],[Item ID]],Analysis_Table,13,FALSE)","v":{"$error":"#N/A"}},{"$f":"VLOOKUP(Table_Data_Table_135[[#This Row],[Item ID]],Analysis_Table,14,FALSE)","v":{"$error":"#N/A"}},{"$f":"VLOOKUP(Table_Data_Table_135[[#This Row],[Item ID]],Analysis_Table,15,FALSE)","v":{"$error":"#N/A"}},{"$f":"VLOOKUP(Table_Data_Table_135[[#This Row],[Item ID]],Analysis_Table,16,FALSE)","v":{"$error":"#N/A"}},{"$f":"VLOOKUP(Table_Data_Table_135[[#This Row],[Item ID]],Analysis_Table,17,FALSE)","v":{"$error":"#N/A"}},{"$f":"VLOOKUP(Table_Data_Table_135[[#This Row],[Item ID]],Analysis_Table,18,FALSE)","v":{"$error":"#N/A"}},{"$f":"VLOOKUP(Table_Data_Table_135[[#This Row],[Item ID]],Analysis_Table,19,FALSE)","v":{"$error":"#N/A"}},null,null,1]
["",null,{"$f":"VLOOKUP(Table_Data_Table_135[[#This Row],[Item ID]],Analysis_Table,20,FALSE)","v":{"$error":"#N/A"}},null,null,null,null,null,null,null,0,null,null,null,{"$f":"VLOOKUP(Table_Data_Table_135[[#This Row],[Item ID]],Analysis_Table,8,FALSE)","v":{"$error":"#N/A"}},{"$f":"VLOOKUP(Table_Data_Table_135[[#This Row],[Item ID]],Analysis_Table,9,FALSE)","v":{"$error":"#N/A"}},{"$f":"VLOOKUP(Table_Data_Table_135[[#This Row],[Item ID]],Analysis_Table,10,FALSE)","v":{"$error":"#N/A"}},{"$f":"VLOOKUP(Table_Data_Table_135[[#This Row],[Item ID]],Analysis_Table,11,FALSE)","v":{"$error":"#N/A"}},{"$f":"VLOOKUP(Table_Data_Table_135[[#This Row],[Item ID]],Analysis_Table,12,FALSE)","v":{"$error":"#N/A"}},{"$f":"VLOOKUP(Table_Data_Table_135[[#This Row],[Item ID]],Analysis_Table,13,FALSE)","v":{"$error":"#N/A"}},{"$f":"VLOOKUP(Table_Data_Table_135[[#This Row],[Item ID]],Analysis_Table,14,FALSE)","v":{"$error":"#N/A"}},{"$f":"VLOOKUP(Table_Data_Table_135[[#This Row],[Item ID]],Analysis_Table,15,FALSE)","v":{"$error":"#N/A"}},{"$f":"VLOOKUP(Table_Data_Table_135[[#This Row],[Item ID]],Analysis_Table,16,FALSE)","v":{"$error":"#N/A"}},{"$f":"VLOOKUP(Table_Data_Table_135[[#This Row],[Item ID]],Analysis_Table,17,FALSE)","v":{"$error":"#N/A"}},{"$f":"VLOOKUP(Table_Data_Table_135[[#This Row],[Item ID]],Analysis_Table,18,FALSE)","v":{"$error":"#N/A"}},{"$f":"VLOOKUP(Table_Data_Table_135[[#This Row],[Item ID]],Analysis_Table,19,FALSE)","v":{"$error":"#N/A"}},null,null,1]
["",null,{"$f":"VLOOKUP(Table_Data_Table_135[[#This Row],[Item ID]],Analysis_Table,20,FALSE)","v":{"$error":"#N/A"}},null,null,null,null,null,null,null,0,null,null,null,{"$f":"VLOOKUP(Table_Data_Table_135[[#This Row],[Item ID]],Analysis_Table,8,FALSE)","v":{"$error":"#N/A"}},{"$f":"VLOOKUP(Table_Data_Table_135[[#This Row],[Item ID]],Analysis_Table,9,FALSE)","v":{"$error":"#N/A"}},{"$f":"VLOOKUP(Table_Data_Table_135[[#This Row],[Item ID]],Analysis_Table,10,FALSE)","v":{"$error":"#N/A"}},{"$f":"VLOOKUP(Table_Data_Table_135[[#This Row],[Item ID]],Analysis_Table,11,FALSE)","v":{"$error":"#N/A"}},{"$f":"VLOOKUP(Table_Data_Table_135[[#This Row],[Item ID]],Analysis_Table,12,FALSE)","v":{"$error":"#N/A"}},{"$f":"VLOOKUP(Table_Data_Table_135[[#This Row],[Item ID]],Analysis_Table,13,FALSE)","v":{"$error":"#N/A"}},{"$f":"VLOOKUP(Table_Data_Table_135[[#This Row],[Item ID]],Analysis_Table,14,FALSE)","v":{"$error":"#N/A"}},{"$f":"VLOOKUP(Table_Data_Table_135[[#This Row],[Item ID]],Analysis_Table,15,FALSE)","v":{"$error":"#N/A"}},{"$f":"VLOOKUP(Table_Data_Table_135[[#This Row],[Item ID]],Analysis_Table,16,FALSE)","v":{"$error":"#N/A"}},{"$f":"VLOOKUP(Table_Data_Table_135[[#This Row],[Item ID]],Analysis_Table,17,FALSE)","v":{"$error":"#N/A"}},{"$f":"VLOOKUP(Table_Data_Table_135[[#This Row],[Item ID]],Analysis_Table,18,FALSE)","v":{"$error":"#N/A"}},{"$f":"VLOOKUP(Table_Data_Table_135[[#This Row],[Item ID]],Analysis_Table,19,FALSE)","v":{"$error":"#N/A"}},null,null,1]
["",null,{"$f":"VLOOKUP(Table_Data_Table_135[[#This Row],[Item ID]],Analysis_Table,20,FALSE)","v":{"$error":"#N/A"}},null,null,null,null,null,null,null,0,null,null,null,{"$f":"VLOOKUP(Table_Data_Table_135[[#This Row],[Item ID]],Analysis_Table,8,FALSE)","v":{"$error":"#N/A"}},{"$f":"VLOOKUP(Table_Data_Table_135[[#This Row],[Item ID]],Analysis_Table,9,FALSE)","v":{"$error":"#N/A"}},{"$f":"VLOOKUP(Table_Data_Table_135[[#This Row],[Item ID]],Analysis_Table,10,FALSE)","v":{"$error":"#N/A"}},{"$f":"VLOOKUP(Table_Data_Table_135[[#This Row],[Item ID]],Analysis_Table,11,FALSE)","v":{"$error":"#N/A"}},{"$f":"VLOOKUP(Table_Data_Table_135[[#This Row],[Item ID]],Analysis_Table,12,FALSE)","v":{"$error":"#N/A"}},{"$f":"VLOOKUP(Table_Data_Table_135[[#This Row],[Item ID]],Analysis_Table,13,FALSE)","v":{"$error":"#N/A"}},{"$f":"VLOOKUP(Table_Data_Table_135[[#This Row],[Item ID]],Analysis_Table,14,FALSE)","v":{"$error":"#N/A"}},{"$f":"VLOOKUP(Table_Data_Table_135[[#This Row],[Item ID]],Analysis_Table,15,FALSE)","v":{"$error":"#N/A"}},{"$f":"VLOOKUP(Table_Data_Table_135[[#This Row],[Item ID]],Analysis_Table,16,FALSE)","v":{"$error":"#N/A"}},{"$f":"VLOOKUP(Table_Data_Table_135[[#This Row],[Item ID]],Analysis_Table,17,FALSE)","v":{"$error":"#N/A"}},{"$f":"VLOOKUP(Table_Data_Table_135[[#This Row],[Item ID]],Analysis_Table,18,FALSE)","v":{"$error":"#N/A"}},{"$f":"VLOOKUP(Table_Data_Table_135[[#This Row],[Item ID]],Analysis_Table,19,FALSE)","v":{"$error":"#N/A"}},null,null,1]
["",null,{"$f":"VLOOKUP(Table_Data_Table_135[[#This Row],[Item ID]],Analysis_Table,20,FALSE)","v":{"$error":"#N/A"}},null,null,null,null,null,null,null,0,null,null,null,{"$f":"VLOOKUP(Table_Data_Table_135[[#This Row],[Item ID]],Analysis_Table,8,FALSE)","v":{"$error":"#N/A"}},{"$f":"VLOOKUP(Table_Data_Table_135[[#This Row],[Item ID]],Analysis_Table,9,FALSE)","v":{"$error":"#N/A"}},{"$f":"VLOOKUP(Table_Data_Table_135[[#This Row],[Item ID]],Analysis_Table,10,FALSE)","v":{"$error":"#N/A"}},{"$f":"VLOOKUP(Table_Data_Table_135[[#This Row],[Item ID]],Analysis_Table,11,FALSE)","v":{"$error":"#N/A"}},{"$f":"VLOOKUP(Table_Data_Table_135[[#This Row],[Item ID]],Analysis_Table,12,FALSE)","v":{"$error":"#N/A"}},{"$f":"VLOOKUP(Table_Data_Table_135[[#This Row],[Item ID]],Analysis_Table,13,FALSE)","v":{"$error":"#N/A"}},{"$f":"VLOOKUP(Table_Data_Table_135[[#This Row],[Item ID]],Analysis_Table,14,FALSE)","v":{"$error":"#N/A"}},{"$f":"VLOOKUP(Table_Data_Table_135[[#This Row],[Item ID]],Analysis_Table,15,FALSE)","v":{"$error":"#N/A"}},{"$f":"VLOOKUP(Table_Data_Table_135[[#This Row],[Item ID]],Analysis_Table,16,FALSE)","v":{"$error":"#N/A"}},{"$f":"VLOOKUP(Table_Data_Table_135[[#This Row],[Item ID]],Analysis_Table,17,FALSE)","v":{"$error":"#N/A"}},{"$f":"VLOOKUP(Table_Data_Table_135[[#This Row],[Item ID]],Analysis_Table,18,FALSE)","v":{"$error":"#N/A"}},{"$f":"VLOOKUP(Table_Data_Table_135[[#This Row],[Item ID]],Analysis_Table,19,FALSE)","v":{"$error":"#N/A"}},null,null,1]
["",null,{"$f":"VLOOKUP(Table_Data_Table_135[[#This Row],[Item ID]],Analysis_Table,20,FALSE)","v":{"$error":"#N/A"}},null,null,null,null,null,null,null,0,null,null,null,{"$f":"VLOOKUP(Table_Data_Table_135[[#This Row],[Item ID]],Analysis_Table,8,FALSE)","v":{"$error":"#N/A"}},{"$f":"VLOOKUP(Table_Data_Table_135[[#This Row],[Item ID]],Analysis_Table,9,FALSE)","v":{"$error":"#N/A"}},{"$f":"VLOOKUP(Table_Data_Table_135[[#This Row],[Item ID]],Analysis_Table,10,FALSE)","v":{"$error":"#N/A"}},{"$f":"VLOOKUP(Table_Data_Table_135[[#This Row],[Item ID]],Analysis_Table,11,FALSE)","v":{"$error":"#N/A"}},{"$f":"VLOOKUP(Table_Data_Table_135[[#This Row],[Item ID]],Analysis_Table,12,FALSE)","v":{"$error":"#N/A"}},{"$f":"VLOOKUP(Table_Data_Table_135[[#This Row],[Item ID]],Analysis_Table,13,FALSE)","v":{"$error":"#N/A"}},{"$f":"VLOOKUP(Table_Data_Table_135[[#This Row],[Item ID]],Analysis_Table,14,FALSE)","v":{"$error":"#N/A"}},{"$f":"VLOOKUP(Table_Data_Table_135[[#This Row],[Item ID]],Analysis_Table,15,FALSE)","v":{"$error":"#N/A"}},{"$f":"VLOOKUP(Table_Data_Table_135[[#This Row],[Item ID]],Analysis_Table,16,FALSE)","v":{"$error":"#N/A"}},{"$f":"VLOOKUP(Table_Data_Table_135[[#This Row],[Item ID]],Analysis_Table,17,FALSE)","v":{"$error":"#N/A"}},{"$f":"VLOOKUP(Table_Data_Table_135[[#This Row],[Item ID]],Analysis_Table,18,FALSE)","v":{"$error":"#N/A"}},{"$f":"VLOOKUP(Table_Data_Table_135[[#This Row],[Item ID]],Analysis_Table,19,FALSE)","v":{"$error":"#N/A"}},null,null,1]
["",null,{"$f":"VLOOKUP(Table_Data_Table_135[[#This Row],[Item ID]],Analysis_Table,20,FALSE)","v":{"$error":"#N/A"}},null,null,null,null,null,null,null,0,null,null,null,{"$f":"VLOOKUP(Table_Data_Table_135[[#This Row],[Item ID]],Analysis_Table,8,FALSE)","v":{"$error":"#N/A"}},{"$f":"VLOOKUP(Table_Data_Table_135[[#This Row],[Item ID]],Analysis_Table,9,FALSE)","v":{"$error":"#N/A"}},{"$f":"VLOOKUP(Table_Data_Table_135[[#This Row],[Item ID]],Analysis_Table,10,FALSE)","v":{"$error":"#N/A"}},{"$f":"VLOOKUP(Table_Data_Table_135[[#This Row],[Item ID]],Analysis_Table,11,FALSE)","v":{"$error":"#N/A"}},{"$f":"VLOOKUP(Table_Data_Table_135[[#This Row],[Item ID]],Analysis_Table,12,FALSE)","v":{"$error":"#N/A"}},{"$f":"VLOOKUP(Table_Data_Table_135[[#This Row],[Item ID]],Analysis_Table,13,FALSE)","v":{"$error":"#N/A"}},{"$f":"VLOOKUP(Table_Data_Table_135[[#This Row],[Item ID]],Analysis_Table,14,FALSE)","v":{"$error":"#N/A"}},{"$f":"VLOOKUP(Table_Data_Table_135[[#This Row],[Item ID]],Analysis_Table,15,FALSE)","v":{"$error":"#N/A"}},{"$f":"VLOOKUP(Table_Data_Table_135[[#This Row],[Item ID]],Analysis_Table,16,FALSE)","v":{"$error":"#N/A"}},{"$f":"VLOOKUP(Table_Data_Table_135[[#This Row],[Item ID]],Analysis_Table,17,FALSE)","v":{"$error":"#N/A"}},{"$f":"VLOOKUP(Table_Data_Table_135[[#This Row],[Item ID]],Analysis_Table,18,FALSE)","v":{"$error":"#N/A"}},{"$f":"VLOOKUP(Table_Data_Table_135[[#This Row],[Item ID]],Analysis_Table,19,FALSE)","v":{"$error":"#N/A"}},null,null,1]
["",null,{"$f":"VLOOKUP(Table_Data_Table_135[[#This Row],[Item ID]],Analysis_Table,20,FALSE)","v":{"$error":"#N/A"}},null,null,null,null,null,null,null,0,null,null,null,{"$f":"VLOOKUP(Table_Data_Table_135[[#This Row],[Item ID]],Analysis_Table,8,FALSE)","v":{"$error":"#N/A"}},{"$f":"VLOOKUP(Table_Data_Table_135[[#This Row],[Item ID]],Analysis_Table,9,FALSE)","v":{"$error":"#N/A"}},{"$f":"VLOOKUP(Table_Data_Table_135[[#This Row],[Item ID]],Analysis_Table,10,FALSE)","v":{"$error":"#N/A"}},{"$f":"VLOOKUP(Table_Data_Table_135[[#This Row],[Item ID]],Analysis_Table,11,FALSE)","v":{"$error":"#N/A"}},{"$f":"VLOOKUP(Table_Data_Table_135[[#This Row],[Item ID]],Analysis_Table,12,FALSE)","v":{"$error":"#N/A"}},{"$f":"VLOOKUP(Table_Data_Table_135[[#This Row],[Item ID]],Analysis_Table,13,FALSE)","v":{"$error":"#N/A"}},{"$f":"VLOOKUP(Table_Data_Table_135[[#This Row],[Item ID]],Analysis_Table,14,FALSE)","v":{"$error":"#N/A"}},{"$f":"VLOOKUP(Table_Data_Table_135[[#This Row],[Item ID]],Analysis_Table,15,FALSE)","v":{"$error":"#N/A"}},{"$f":"VLOOKUP(Table_Data_Table_135[[#This Row],[Item ID]],Analysis_Table,16,FALSE)","v":{"$error":"#N/A"}},{"$f":"VLOOKUP(Table_Data_Table_135[[#This Row],[Item ID]],Analysis_Table,17,FALSE)","v":{"$error":"#N/A"}},{"$f":"VLOOKUP(Table_Data_Table_135[[#This Row],[Item ID]],Analysis_Table,18,FALSE)","v":{"$error":"#N/A"}},{"$f":"VLOOKUP(Table_Data_Table_135[[#This Row],[Item ID]],Analysis_Table,19,FALSE)","v":{"$error":"#N/A"}},null,null,1]
["",null,{"$f":"VLOOKUP(Table_Data_Table_135[[#This Row],[Item ID]],Analysis_Table,20,FALSE)","v":{"$error":"#N/A"}},null,null,null,null,null,null,null,0,null,null,null,{"$f":"VLOOKUP(Table_Data_Table_135[[#This Row],[Item ID]],Analysis_Table,8,FALSE)","v":{"$error":"#N/A"}},{"$f":"VLOOKUP(Table_Data_Table_135[[#This Row],[Item ID]],Analysis_Table,9,FALSE)","v":{"$error":"#N/A"}},{"$f":"VLOOKUP(Table_Data_Table_135[[#This Row],[Item ID]],Analysis_Table,10,FALSE)","v":{"$error":"#N/A"}},{"$f":"VLOOKUP(Table_Data_Table_135[[#This Row],[Item ID]],Analysis_Table,11,FALSE)","v":{"$error":"#N/A"}},{"$f":"VLOOKUP(Table_Data_Table_135[[#This Row],[Item ID]],Analysis_Table,12,FALSE)","v":{"$error":"#N/A"}},{"$f":"VLOOKUP(Table_Data_Table_135[[#This Row],[Item ID]],Analysis_Table,13,FALSE)","v":{"$error":"#N/A"}},{"$f":"VLOOKUP(Table_Data_Table_135[[#This Row],[Item ID]],Analysis_Table,14,FALSE)","v":{"$error":"#N/A"}},{"$f":"VLOOKUP(Table_Data_Table_135[[#This Row],[Item ID]],Analysis_Table,15,FALSE)","v":{"$error":"#N/A"}},{"$f":"VLOOKUP(Table_Data_Table_135[[#This Row],[Item ID]],Analysis_Table,16,FALSE)","v":{"$error":"#N/A"}},{"$f":"VLOOKUP(Table_Data_Table_135[[#This Row],[Item ID]],Analysis_Table,17,FALSE)","v":{"$error":"#N/A"}},{"$f":"VLOOKUP(Table_Data_Table_135[[#This Row],[Item ID]],Analysis_Table,18,FALSE)","v":{"$error":"#N/A"}},{"$f":"VLOOKUP(Table_Data_Table_135[[#This Row],[Item ID]],Analysis_Table,19,FALSE)","v":{"$error":"#N/A"}},null,null,1]
["",null,{"$f":"VLOOKUP(Table_Data_Table_135[[#This Row],[Item ID]],Analysis_Table,20,FALSE)","v":{"$error":"#N/A"}},null,null,null,null,null,null,null,0,null,null,null,{"$f":"VLOOKUP(Table_Data_Table_135[[#This Row],[Item ID]],Analysis_Table,8,FALSE)","v":{"$error":"#N/A"}},{"$f":"VLOOKUP(Table_Data_Table_135[[#This Row],[Item ID]],Analysis_Table,9,FALSE)","v":{"$error":"#N/A"}},{"$f":"VLOOKUP(Table_Data_Table_135[[#This Row],[Item ID]],Analysis_Table,10,FALSE)","v":{"$error":"#N/A"}},{"$f":"VLOOKUP(Table_Data_Table_135[[#This Row],[Item ID]],Analysis_Table,11,FALSE)","v":{"$error":"#N/A"}},{"$f":"VLOOKUP(Table_Data_Table_135[[#This Row],[Item ID]],Analysis_Table,12,FALSE)","v":{"$error":"#N/A"}},{"$f":"VLOOKUP(Table_Data_Table_135[[#This Row],[Item ID]],Analysis_Table,13,FALSE)","v":{"$error":"#N/A"}},{"$f":"VLOOKUP(Table_Data_Table_135[[#This Row],[Item ID]],Analysis_Table,14,FALSE)","v":{"$error":"#N/A"}},{"$f":"VLOOKUP(Table_Data_Table_135[[#This Row],[Item ID]],Analysis_Table,15,FALSE)","v":{"$error":"#N/A"}},{"$f":"VLOOKUP(Table_Data_Table_135[[#This Row],[Item ID]],Analysis_Table,16,FALSE)","v":{"$error":"#N/A"}},{"$f":"VLOOKUP(Table_Data_Table_135[[#This Row],[Item ID]],Analysis_Table,17,FALSE)","v":{"$error":"#N/A"}},{"$f":"VLOOKUP(Table_Data_Table_135[[#This Row],[Item ID]],Analysis_Table,18,FALSE)","v":{"$error":"#N/A"}},{"$f":"VLOOKUP(Table_Data_Table_135[[#This Row],[Item ID]],Analysis_Table,19,FALSE)","v":{"$error":"#N/A"}},null,null,1]
["",null,{"$f":"VLOOKUP(Table_Data_Table_135[[#This Row],[Item ID]],Analysis_Table,20,FALSE)","v":{"$error":"#N/A"}},null,null,null,null,null,null,null,0,null,null,null,{"$f":"VLOOKUP(Table_Data_Table_135[[#This Row],[Item ID]],Analysis_Table,8,FALSE)","v":{"$error":"#N/A"}},{"$f":"VLOOKUP(Table_Data_Table_135[[#This Row],[Item ID]],Analysis_Table,9,FALSE)","v":{"$error":"#N/A"}},{"$f":"VLOOKUP(Table_Data_Table_135[[#This Row],[Item ID]],Analysis_Table,10,FALSE)","v":{"$error":"#N/A"}},{"$f":"VLOOKUP(Table_Data_Table_135[[#This Row],[Item ID]],Analysis_Table,11,FALSE)","v":{"$error":"#N/A"}},{"$f":"VLOOKUP(Table_Data_Table_135[[#This Row],[Item ID]],Analysis_Table,12,FALSE)","v":{"$error":"#N/A"}},{"$f":"VLOOKUP(Table_Data_Table_135[[#This Row],[Item ID]],Analysis_Table,13,FALSE)","v":{"$error":"#N/A"}},{"$f":"VLOOKUP(Table_Data_Table_135[[#This Row],[Item ID]],Analysis_Table,14,FALSE)","v":{"$error":"#N/A"}},{"$f":"VLOOKUP(Table_Data_Table_135[[#This Row],[Item ID]],Analysis_Table,15,FALSE)","v":{"$error":"#N/A"}},{"$f":"VLOOKUP(Table_Data_Table_135[[#This Row],[Item ID]],Analysis_Table,16,FALSE)","v":{"$error":"#N/A"}},{"$f":"VLOOKUP(Table_Data_Table_135[[#This Row],[Item ID]],Analysis_Table,17,FALSE)","v":{"$error":"#N/A"}},{"$f":"VLOOKUP(Table_Data_Table_135[[#This Row],[Item ID]],Analysis_Table,18,FALSE)","v":{"$error":"#N/A"}},{"$f":"VLOOKUP(Table_Data_Table_135[[#This Row],[Item ID]],Analysis_Table,19,FALSE)","v":{"$error":"#N/A"}},null,null,1]
["",null,{"$f":"VLOOKUP(Table_Data_Table_135[[#This Row],[Item ID]],Analysis_Table,20,FALSE)","v":{"$error":"#N/A"}},null,null,null,null,null,null,null,0,null,null,null,{"$f":"VLOOKUP(Table_Data_Table_135[[#This Row],[Item ID]],Analysis_Table,8,FALSE)","v":{"$error":"#N/A"}},{"$f":"VLOOKUP(Table_Data_Table_135[[#This Row],[Item ID]],Analysis_Table,9,FALSE)","v":{"$error":"#N/A"}},{"$f":"VLOOKUP(Table_Data_Table_135[[#This Row],[Item ID]],Analysis_Table,10,FALSE)","v":{"$error":"#N/A"}},{"$f":"VLOOKUP(Table_Data_Table_135[[#This Row],[Item ID]],Analysis_Table,11,FALSE)","v":{"$error":"#N/A"}},{"$f":"VLOOKUP(Table_Data_Table_135[[#This Row],[Item ID]],Analysis_Table,12,FALSE)","v":{"$error":"#N/A"}},{"$f":"VLOOKUP(Table_Data_Table_135[[#This Row],[Item ID]],Analysis_Table,13,FALSE)","v":{"$error":"#N/A"}},{"$f":"VLOOKUP(Table_Data_Table_135[[#This Row],[Item ID]],Analysis_Table,14,FALSE)","v":{"$error":"#N/A"}},{"$f":"VLOOKUP(Table_Data_Table_135[[#This Row],[Item ID]],Analysis_Table,15,FALSE)","v":{"$error":"#N/A"}},{"$f":"VLOOKUP(Table_Data_Table_135[[#This Row],[Item ID]],Analysis_Table,16,FALSE)","v":{"$error":"#N/A"}},{"$f":"VLOOKUP(Table_Data_Table_135[[#This Row],[Item ID]],Analysis_Table,17,FALSE)","v":{"$error":"#N/A"}},{"$f":"VLOOKUP(Table_Data_Table_135[[#This Row],[Item ID]],Analysis_Table,18,FALSE)","v":{"$error":"#N/A"}},{"$f":"VLOOKUP(Table_Data_Table_135[[#This Row],[Item ID]],Analysis_Table,19,FALSE)","v":{"$error":"#N/A"}},null,null,1]
["",null,{"$f":"VLOOKUP(Table_Data_Table_135[[#This Row],[Item ID]],Analysis_Table,20,FALSE)","v":{"$error":"#N/A"}},null,null,null,null,null,null,null,0,null,null,null,{"$f":"VLOOKUP(Table_Data_Table_135[[#This Row],[Item ID]],Analysis_Table,8,FALSE)","v":{"$error":"#N/A"}},{"$f":"VLOOKUP(Table_Data_Table_135[[#This Row],[Item ID]],Analysis_Table,9,FALSE)","v":{"$error":"#N/A"}},{"$f":"VLOOKUP(Table_Data_Table_135[[#This Row],[Item ID]],Analysis_Table,10,FALSE)","v":{"$error":"#N/A"}},{"$f":"VLOOKUP(Table_Data_Table_135[[#This Row],[Item ID]],Analysis_Table,11,FALSE)","v":{"$error":"#N/A"}},{"$f":"VLOOKUP(Table_Data_Table_135[[#This Row],[Item ID]],Analysis_Table,12,FALSE)","v":{"$error":"#N/A"}},{"$f":"VLOOKUP(Table_Data_Table_135[[#This Row],[Item ID]],Analysis_Table,13,FALSE)","v":{"$error":"#N/A"}},{"$f":"VLOOKUP(Table_Data_Table_135[[#This Row],[Item ID]],Analysis_Table,14,FALSE)","v":{"$error":"#N/A"}},{"$f":"VLOOKUP(Table_Data_Table_135[[#This Row],[Item ID]],Analysis_Table,15,FALSE)","v":{"$error":"#N/A"}},{"$f":"VLOOKUP(Table_Data_Table_135[[#This Row],[Item ID]],Analysis_Table,16,FALSE)","v":{"$error":"#N/A"}},{"$f":"VLOOKUP(Table_Data_Table_135[[#This Row],[Item ID]],Analysis_Table,17,FALSE)","v":{"$error":"#N/A"}},{"$f":"VLOOKUP(Table_Data_Table_135[[#This Row],[Item ID]],Analysis_Table,18,FALSE)","v":{"$error":"#N/A"}},{"$f":"VLOOKUP(Table_Data_Table_135[[#This Row],[Item ID]],Analysis_Table,19,FALSE)","v":{"$error":"#N/A"}},null,null,1]
["",null,{"$f":"VLOOKUP(Table_Data_Table_135[[#This Row],[Item ID]],Analysis_Table,20,FALSE)","v":{"$error":"#N/A"}},null,null,null,null,null,null,null,0,null,null,null,{"$f":"VLOOKUP(Table_Data_Table_135[[#This Row],[Item ID]],Analysis_Table,8,FALSE)","v":{"$error":"#N/A"}},{"$f":"VLOOKUP(Table_Data_Table_135[[#This Row],[Item ID]],Analysis_Table,9,FALSE)","v":{"$error":"#N/A"}},{"$f":"VLOOKUP(Table_Data_Table_135[[#This Row],[Item ID]],Analysis_Table,10,FALSE)","v":{"$error":"#N/A"}},{"$f":"VLOOKUP(Table_Data_Table_135[[#This Row],[Item ID]],Analysis_Table,11,FALSE)","v":{"$error":"#N/A"}},{"$f":"VLOOKUP(Table_Data_Table_135[[#This Row],[Item ID]],Analysis_Table,12,FALSE)","v":{"$error":"#N/A"}},{"$f":"VLOOKUP(Table_Data_Table_135[[#This Row],[Item ID]],Analysis_Table,13,FALSE)","v":{"$error":"#N/A"}},{"$f":"VLOOKUP(Table_Data_Table_135[[#This Row],[Item ID]],Analysis_Table,14,FALSE)","v":{"$error":"#N/A"}},{"$f":"VLOOKUP(Table_Data_Table_135[[#This Row],[Item ID]],Analysis_Table,15,FALSE)","v":{"$error":"#N/A"}},{"$f":"VLOOKUP(Table_Data_Table_135[[#This Row],[Item ID]],Analysis_Table,16,FALSE)","v":{"$error":"#N/A"}},{"$f":"VLOOKUP(Table_Data_Table_135[[#This Row],[Item ID]],Analysis_Table,17,FALSE)","v":{"$error":"#N/A"}},{"$f":"VLOOKUP(Table_Data_Table_135[[#This Row],[Item ID]],Analysis_Table,18,FALSE)","v":{"$error":"#N/A"}},{"$f":"VLOOKUP(Table_Data_Table_135[[#This Row],[Item ID]],Analysis_Table,19,FALSE)","v":{"$error":"#N/A"}},null,null,1]
["",null,{"$f":"VLOOKUP(Table_Data_Table_135[[#This Row],[Item ID]],Analysis_Table,20,FALSE)","v":{"$error":"#N/A"}},null,null,null,null,null,null,null,0,null,null,null,{"$f":"VLOOKUP(Table_Data_Table_135[[#This Row],[Item ID]],Analysis_Table,8,FALSE)","v":{"$error":"#N/A"}},{"$f":"VLOOKUP(Table_Data_Table_135[[#This Row],[Item ID]],Analysis_Table,9,FALSE)","v":{"$error":"#N/A"}},{"$f":"VLOOKUP(Table_Data_Table_135[[#This Row],[Item ID]],Analysis_Table,10,FALSE)","v":{"$error":"#N/A"}},{"$f":"VLOOKUP(Table_Data_Table_135[[#This Row],[Item ID]],Analysis_Table,11,FALSE)","v":{"$error":"#N/A"}},{"$f":"VLOOKUP(Table_Data_Table_135[[#This Row],[Item ID]],Analysis_Table,12,FALSE)","v":{"$error":"#N/A"}},{"$f":"VLOOKUP(Table_Data_Table_135[[#This Row],[Item ID]],Analysis_Table,13,FALSE)","v":{"$error":"#N/A"}},{"$f":"VLOOKUP(Table_Data_Table_135[[#This Row],[Item ID]],Analysis_Table,14,FALSE)","v":{"$error":"#N/A"}},{"$f":"VLOOKUP(Table_Data_Table_135[[#This Row],[Item ID]],Analysis_Table,15,FALSE)","v":{"$error":"#N/A"}},{"$f":"VLOOKUP(Table_Data_Table_135[[#This Row],[Item ID]],Analysis_Table,16,FALSE)","v":{"$error":"#N/A"}},{"$f":"VLOOKUP(Table_Data_Table_135[[#This Row],[Item ID]],Analysis_Table,17,FALSE)","v":{"$error":"#N/A"}},{"$f":"VLOOKUP(Table_Data_Table_135[[#This Row],[Item ID]],Analysis_Table,18,FALSE)","v":{"$error":"#N/A"}},{"$f":"VLOOKUP(Table_Data_Table_135[[#This Row],[Item ID]],Analysis_Table,19,FALSE)","v":{"$error":"#N/A"}},null,null,1]
["",null,{"$f":"VLOOKUP(Table_Data_Table_135[[#This Row],[Item ID]],Analysis_Table,20,FALSE)","v":{"$error":"#N/A"}},null,null,null,null,null,null,null,0,null,null,null,{"$f":"VLOOKUP(Table_Data_Table_135[[#This Row],[Item ID]],Analysis_Table,8,FALSE)","v":{"$error":"#N/A"}},{"$f":"VLOOKUP(Table_Data_Table_135[[#This Row],[Item ID]],Analysis_Table,9,FALSE)","v":{"$error":"#N/A"}},{"$f":"VLOOKUP(Table_Data_Table_135[[#This Row],[Item ID]],Analysis_Table,10,FALSE)","v":{"$error":"#N/A"}},{"$f":"VLOOKUP(Table_Data_Table_135[[#This Row],[Item ID]],Analysis_Table,11,FALSE)","v":{"$error":"#N/A"}},{"$f":"VLOOKUP(Table_Data_Table_135[[#This Row],[Item ID]],Analysis_Table,12,FALSE)","v":{"$error":"#N/A"}},{"$f":"VLOOKUP(Table_Data_Table_135[[#This Row],[Item ID]],Analysis_Table,13,FALSE)","v":{"$error":"#N/A"}},{"$f":"VLOOKUP(Table_Data_Table_135[[#This Row],[Item ID]],Analysis_Table,14,FALSE)","v":{"$error":"#N/A"}},{"$f":"VLOOKUP(Table_Data_Table_135[[#This Row],[Item ID]],Analysis_Table,15,FALSE)","v":{"$error":"#N/A"}},{"$f":"VLOOKUP(Table_Data_Table_135[[#This Row],[Item ID]],Analysis_Table,16,FALSE)","v":{"$error":"#N/A"}},{"$f":"VLOOKUP(Table_Data_Table_135[[#This Row],[Item ID]],Analysis_Table,17,FALSE)","v":{"$error":"#N/A"}},{"$f":"VLOOKUP(Table_Data_Table_135[[#This Row],[Item ID]],Analysis_Table,18,FALSE)","v":{"$error":"#N/A"}},{"$f":"VLOOKUP(Table_Data_Table_135[[#This Row],[Item ID]],Analysis_Table,19,FALSE)","v":{"$error":"#N/A"}},null,null,1]
["",null,{"$f":"VLOOKUP(Table_Data_Table_135[[#This Row],[Item ID]],Analysis_Table,20,FALSE)","v":{"$error":"#N/A"}},null,null,null,null,null,null,null,0,null,null,null,{"$f":"VLOOKUP(Table_Data_Table_135[[#This Row],[Item ID]],Analysis_Table,8,FALSE)","v":{"$error":"#N/A"}},{"$f":"VLOOKUP(Table_Data_Table_135[[#This Row],[Item ID]],Analysis_Table,9,FALSE)","v":{"$error":"#N/A"}},{"$f":"VLOOKUP(Table_Data_Table_135[[#This Row],[Item ID]],Analysis_Table,10,FALSE)","v":{"$error":"#N/A"}},{"$f":"VLOOKUP(Table_Data_Table_135[[#This Row],[Item ID]],Analysis_Table,11,FALSE)","v":{"$error":"#N/A"}},{"$f":"VLOOKUP(Table_Data_Table_135[[#This Row],[Item ID]],Analysis_Table,12,FALSE)","v":{"$error":"#N/A"}},{"$f":"VLOOKUP(Table_Data_Table_135[[#This Row],[Item ID]],Analysis_Table,13,FALSE)","v":{"$error":"#N/A"}},{"$f":"VLOOKUP(Table_Data_Table_135[[#This Row],[Item ID]],Analysis_Table,14,FALSE)","v":{"$error":"#N/A"}},{"$f":"VLOOKUP(Table_Data_Table_135[[#This Row],[Item ID]],Analysis_Table,15,FALSE)","v":{"$error":"#N/A"}},{"$f":"VLOOKUP(Table_Data_Table_135[[#This Row],[Item ID]],Analysis_Table,16,FALSE)","v":{"$error":"#N/A"}},{"$f":"VLOOKUP(Table_Data_Table_135[[#This Row],[Item ID]],Analysis_Table,17,FALSE)","v":{"$error":"#N/A"}},{"$f":"VLOOKUP(Table_Data_Table_135[[#This Row],[Item ID]],Analysis_Table,18,FALSE)","v":{"$error":"#N/A"}},{"$f":"VLOOKUP(Table_Data_Table_135[[#This Row],[Item ID]],Analysis_Table,19,FALSE)","v":{"$error":"#N/A"}},null,null,1]
["",null,{"$f":"VLOOKUP(Table_Data_Table_135[[#This Row],[Item ID]],Analysis_Table,20,FALSE)","v":{"$error":"#N/A"}},null,null,null,null,null,null,null,0,null,null,null,{"$f":"VLOOKUP(Table_Data_Table_135[[#This Row],[Item ID]],Analysis_Table,8,FALSE)","v":{"$error":"#N/A"}},{"$f":"VLOOKUP(Table_Data_Table_135[[#This Row],[Item ID]],Analysis_Table,9,FALSE)","v":{"$error":"#N/A"}},{"$f":"VLOOKUP(Table_Data_Table_135[[#This Row],[Item ID]],Analysis_Table,10,FALSE)","v":{"$error":"#N/A"}},{"$f":"VLOOKUP(Table_Data_Table_135[[#This Row],[Item ID]],Analysis_Table,11,FALSE)","v":{"$error":"#N/A"}},{"$f":"VLOOKUP(Table_Data_Table_135[[#This Row],[Item ID]],Analysis_Table,12,FALSE)","v":{"$error":"#N/A"}},{"$f":"VLOOKUP(Table_Data_Table_135[[#This Row],[Item ID]],Analysis_Table,13,FALSE)","v":{"$error":"#N/A"}},{"$f":"VLOOKUP(Table_Data_Table_135[[#This Row],[Item ID]],Analysis_Table,14,FALSE)","v":{"$error":"#N/A"}},{"$f":"VLOOKUP(Table_Data_Table_135[[#This Row],[Item ID]],Analysis_Table,15,FALSE)","v":{"$error":"#N/A"}},{"$f":"VLOOKUP(Table_Data_Table_135[[#This Row],[Item ID]],Analysis_Table,16,FALSE)","v":{"$error":"#N/A"}},{"$f":"VLOOKUP(Table_Data_Table_135[[#This Row],[Item ID]],Analysis_Table,17,FALSE)","v":{"$error":"#N/A"}},{"$f":"VLOOKUP(Table_Data_Table_135[[#This Row],[Item ID]],Analysis_Table,18,FALSE)","v":{"$error":"#N/A"}},{"$f":"VLOOKUP(Table_Data_Table_135[[#This Row],[Item ID]],Analysis_Table,19,FALSE)","v":{"$error":"#N/A"}},null,null,1]
["",null,{"$f":"VLOOKUP(Table_Data_Table_135[[#This Row],[Item ID]],Analysis_Table,20,FALSE)","v":{"$error":"#N/A"}},null,null,null,null,null,null,null,0,null,null,null,{"$f":"VLOOKUP(Table_Data_Table_135[[#This Row],[Item ID]],Analysis_Table,8,FALSE)","v":{"$error":"#N/A"}},{"$f":"VLOOKUP(Table_Data_Table_135[[#This Row],[Item ID]],Analysis_Table,9,FALSE)","v":{"$error":"#N/A"}},{"$f":"VLOOKUP(Table_Data_Table_135[[#This Row],[Item ID]],Analysis_Table,10,FALSE)","v":{"$error":"#N/A"}},{"$f":"VLOOKUP(Table_Data_Table_135[[#This Row],[Item ID]],Analysis_Table,11,FALSE)","v":{"$error":"#N/A"}},{"$f":"VLOOKUP(Table_Data_Table_135[[#This Row],[Item ID]],Analysis_Table,12,FALSE)","v":{"$error":"#N/A"}},{"$f":"VLOOKUP(Table_Data_Table_135[[#This Row],[Item ID]],Analysis_Table,13,FALSE)","v":{"$error":"#N/A"}},{"$f":"VLOOKUP(Table_Data_Table_135[[#This Row],[Item ID]],Analysis_Table,14,FALSE)","v":{"$error":"#N/A"}},{"$f":"VLOOKUP(Table_Data_Table_135[[#This Row],[Item ID]],Analysis_Table,15,FALSE)","v":{"$error":"#N/A"}},{"$f":"VLOOKUP(Table_Data_Table_135[[#This Row],[Item ID]],Analysis_Table,16,FALSE)","v":{"$error":"#N/A"}},{"$f":"VLOOKUP(Table_Data_Table_135[[#This Row],[Item ID]],Analysis_Table,17,FALSE)","v":{"$error":"#N/A"}},{"$f":"VLOOKUP(Table_Data_Table_135[[#This Row],[Item ID]],Analysis_Table,18,FALSE)","v":{"$error":"#N/A"}},{"$f":"VLOOKUP(Table_Data_Table_135[[#This Row],[Item ID]],Analysis_Table,19,FALSE)","v":{"$error":"#N/A"}},null,null,1]
["",null,{"$f":"VLOOKUP(Table_Data_Table_135[[#This Row],[Item ID]],Analysis_Table,20,FALSE)","v":{"$error":"#N/A"}},null,null,null,null,null,null,null,0,null,null,null,{"$f":"VLOOKUP(Table_Data_Table_135[[#This Row],[Item ID]],Analysis_Table,8,FALSE)","v":{"$error":"#N/A"}},{"$f":"VLOOKUP(Table_Data_Table_135[[#This Row],[Item ID]],Analysis_Table,9,FALSE)","v":{"$error":"#N/A"}},{"$f":"VLOOKUP(Table_Data_Table_135[[#This Row],[Item ID]],Analysis_Table,10,FALSE)","v":{"$error":"#N/A"}},{"$f":"VLOOKUP(Table_Data_Table_135[[#This Row],[Item ID]],Analysis_Table,11,FALSE)","v":{"$error":"#N/A"}},{"$f":"VLOOKUP(Table_Data_Table_135[[#This Row],[Item ID]],Analysis_Table,12,FALSE)","v":{"$error":"#N/A"}},{"$f":"VLOOKUP(Table_Data_Table_135[[#This Row],[Item ID]],Analysis_Table,13,FALSE)","v":{"$error":"#N/A"}},{"$f":"VLOOKUP(Table_Data_Table_135[[#This Row],[Item ID]],Analysis_Table,14,FALSE)","v":{"$error":"#N/A"}},{"$f":"VLOOKUP(Table_Data_Table_135[[#This Row],[Item ID]],Analysis_Table,15,FALSE)","v":{"$error":"#N/A"}},{"$f":"VLOOKUP(Table_Data_Table_135[[#This Row],[Item ID]],Analysis_Table,16,FALSE)","v":{"$error":"#N/A"}},{"$f":"VLOOKUP(Table_Data_Table_135[[#This Row],[Item ID]],Analysis_Table,17,FALSE)","v":{"$error":"#N/A"}},{"$f":"VLOOKUP(Table_Data_Table_135[[#This Row],[Item ID]],Analysis_Table,18,FALSE)","v":{"$error":"#N/A"}},{"$f":"VLOOKUP(Table_Data_Table_135[[#This Row],[Item ID]],Analysis_Table,19,FALSE)","v":{"$error":"#N/A"}},null,null,1]
["",null,{"$f":"VLOOKUP(Table_Data_Table_135[[#This Row],[Item ID]],Analysis_Table,20,FALSE)","v":{"$error":"#N/A"}},null,null,null,null,null,null,null,0,null,null,null,{"$f":"VLOOKUP(Table_Data_Table_135[[#This Row],[Item ID]],Analysis_Table,8,FALSE)","v":{"$error":"#N/A"}},{"$f":"VLOOKUP(Table_Data_Table_135[[#This Row],[Item ID]],Analysis_Table,9,FALSE)","v":{"$error":"#N/A"}},{"$f":"VLOOKUP(Table_Data_Table_135[[#This Row],[Item ID]],Analysis_Table,10,FALSE)","v":{"$error":"#N/A"}},{"$f":"VLOOKUP(Table_Data_Table_135[[#This Row],[Item ID]],Analysis_Table,11,FALSE)","v":{"$error":"#N/A"}},{"$f":"VLOOKUP(Table_Data_Table_135[[#This Row],[Item ID]],Analysis_Table,12,FALSE)","v":{"$error":"#N/A"}},{"$f":"VLOOKUP(Table_Data_Table_135[[#This Row],[Item ID]],Analysis_Table,13,FALSE)","v":{"$error":"#N/A"}},{"$f":"VLOOKUP(Table_Data_Table_135[[#This Row],[Item ID]],Analysis_Table,14,FALSE)","v":{"$error":"#N/A"}},{"$f":"VLOOKUP(Table_Data_Table_135[[#This Row],[Item ID]],Analysis_Table,15,FALSE)","v":{"$error":"#N/A"}},{"$f":"VLOOKUP(Table_Data_Table_135[[#This Row],[Item ID]],Analysis_Table,16,FALSE)","v":{"$error":"#N/A"}},{"$f":"VLOOKUP(Table_Data_Table_135[[#This Row],[Item ID]],Analysis_Table,17,FALSE)","v":{"$error":"#N/A"}},{"$f":"VLOOKUP(Table_Data_Table_135[[#This Row],[Item ID]],Analysis_Table,18,FALSE)","v":{"$error":"#N/A"}},{"$f":"VLOOKUP(Table_Data_Table_135[[#This Row],[Item ID]],Analysis_Table,19,FALSE)","v":{"$error":"#N/A"}},null,null,1]
["",null,{"$f":"VLOOKUP(Table_Data_Table_135[[#This Row],[Item ID]],Analysis_Table,20,FALSE)","v":{"$error":"#N/A"}},null,null,null,null,null,null,null,0,null,null,null,{"$f":"VLOOKUP(Table_Data_Table_135[[#This Row],[Item ID]],Analysis_Table,8,FALSE)","v":{"$error":"#N/A"}},{"$f":"VLOOKUP(Table_Data_Table_135[[#This Row],[Item ID]],Analysis_Table,9,FALSE)","v":{"$error":"#N/A"}},{"$f":"VLOOKUP(Table_Data_Table_135[[#This Row],[Item ID]],Analysis_Table,10,FALSE)","v":{"$error":"#N/A"}},{"$f":"VLOOKUP(Table_Data_Table_135[[#This Row],[Item ID]],Analysis_Table,11,FALSE)","v":{"$error":"#N/A"}},{"$f":"VLOOKUP(Table_Data_Table_135[[#This Row],[Item ID]],Analysis_Table,12,FALSE)","v":{"$error":"#N/A"}},{"$f":"VLOOKUP(Table_Data_Table_135[[#This Row],[Item ID]],Analysis_Table,13,FALSE)","v":{"$error":"#N/A"}},{"$f":"VLOOKUP(Table_Data_Table_135[[#This Row],[Item ID]],Analysis_Table,14,FALSE)","v":{"$error":"#N/A"}},{"$f":"VLOOKUP(Table_Data_Table_135[[#This Row],[Item ID]],Analysis_Table,15,FALSE)","v":{"$error":"#N/A"}},{"$f":"VLOOKUP(Table_Data_Table_135[[#This Row],[Item ID]],Analysis_Table,16,FALSE)","v":{"$error":"#N/A"}},{"$f":"VLOOKUP(Table_Data_Table_135[[#This Row],[Item ID]],Analysis_Table,17,FALSE)","v":{"$error":"#N/A"}},{"$f":"VLOOKUP(Table_Data_Table_135[[#This Row],[Item ID]],Analysis_Table,18,FALSE)","v":{"$error":"#N/A"}},{"$f":"VLOOKUP(Table_Data_Table_135[[#This Row],[Item ID]],Analysis_Table,19,FALSE)","v":{"$error":"#N/A"}},null,null,1]
["",null,{"$f":"VLOOKUP(Table_Data_Table_135[[#This Row],[Item ID]],Analysis_Table,20,FALSE)","v":{"$error":"#N/A"}},null,null,null,null,null,null,null,0,null,null,null,{"$f":"VLOOKUP(Table_Data_Table_135[[#This Row],[Item ID]],Analysis_Table,8,FALSE)","v":{"$error":"#N/A"}},{"$f":"VLOOKUP(Table_Data_Table_135[[#This Row],[Item ID]],Analysis_Table,9,FALSE)","v":{"$error":"#N/A"}},{"$f":"VLOOKUP(Table_Data_Table_135[[#This Row],[Item ID]],Analysis_Table,10,FALSE)","v":{"$error":"#N/A"}},{"$f":"VLOOKUP(Table_Data_Table_135[[#This Row],[Item ID]],Analysis_Table,11,FALSE)","v":{"$error":"#N/A"}},{"$f":"VLOOKUP(Table_Data_Table_135[[#This Row],[Item ID]],Analysis_Table,12,FALSE)","v":{"$error":"#N/A"}},{"$f":"VLOOKUP(Table_Data_Table_135[[#This Row],[Item ID]],Analysis_Table,13,FALSE)","v":{"$error":"#N/A"}},{"$f":"VLOOKUP(Table_Data_Table_135[[#This Row],[Item ID]],Analysis_Table,14,FALSE)","v":{"$error":"#N/A"}},{"$f":"VLOOKUP(Table_Data_Table_135[[#This Row],[Item ID]],Analysis_Table,15,FALSE)","v":{"$error":"#N/A"}},{"$f":"VLOOKUP(Table_Data_Table_135[[#This Row],[Item ID]],Analysis_Table,16,FALSE)","v":{"$error":"#N/A"}},{"$f":"VLOOKUP(Table_Data_Table_135[[#This Row],[Item ID]],Analysis_Table,17,FALSE)","v":{"$error":"#N/A"}},{"$f":"VLOOKUP(Table_Data_Table_135[[#This Row],[Item ID]],Analysis_Table,18,FALSE)","v":{"$error":"#N/A"}},{"$f":"VLOOKUP(Table_Data_Table_135[[#This Row],[Item ID]],Analysis_Table,19,FALSE)","v":{"$error":"#N/A"}},null,null,1]
["",null,{"$f":"VLOOKUP(Table_Data_Table_135[[#This Row],[Item ID]],Analysis_Table,20,FALSE)","v":{"$error":"#N/A"}},null,null,null,null,null,null,null,0,null,null,null,{"$f":"VLOOKUP(Table_Data_Table_135[[#This Row],[Item ID]],Analysis_Table,8,FALSE)","v":{"$error":"#N/A"}},{"$f":"VLOOKUP(Table_Data_Table_135[[#This Row],[Item ID]],Analysis_Table,9,FALSE)","v":{"$error":"#N/A"}},{"$f":"VLOOKUP(Table_Data_Table_135[[#This Row],[Item ID]],Analysis_Table,10,FALSE)","v":{"$error":"#N/A"}},{"$f":"VLOOKUP(Table_Data_Table_135[[#This Row],[Item ID]],Analysis_Table,11,FALSE)","v":{"$error":"#N/A"}},{"$f":"VLOOKUP(Table_Data_Table_135[[#This Row],[Item ID]],Analysis_Table,12,FALSE)","v":{"$error":"#N/A"}},{"$f":"VLOOKUP(Table_Data_Table_135[[#This Row],[Item ID]],Analysis_Table,13,FALSE)","v":{"$error":"#N/A"}},{"$f":"VLOOKUP(Table_Data_Table_135[[#This Row],[Item ID]],Analysis_Table,14,FALSE)","v":{"$error":"#N/A"}},{"$f":"VLOOKUP(Table_Data_Table_135[[#This Row],[Item ID]],Analysis_Table,15,FALSE)","v":{"$error":"#N/A"}},{"$f":"VLOOKUP(Table_Data_Table_135[[#This Row],[Item ID]],Analysis_Table,16,FALSE)","v":{"$error":"#N/A"}},{"$f":"VLOOKUP(Table_Data_Table_135[[#This Row],[Item ID]],Analysis_Table,17,FALSE)","v":{"$error":"#N/A"}},{"$f":"VLOOKUP(Table_Data_Table_135[[#This Row],[Item ID]],Analysis_Table,18,FALSE)","v":{"$error":"#N/A"}},{"$f":"VLOOKUP(Table_Data_Table_135[[#This Row],[Item ID]],Analysis_Table,19,FALSE)","v":{"$error":"#N/A"}},null,null,1]
["",null,{"$f":"VLOOKUP(Table_Data_Table_135[[#This Row],[Item ID]],Analysis_Table,20,FALSE)","v":{"$error":"#N/A"}},null,null,null,null,null,null,null,0,null,null,null,{"$f":"VLOOKUP(Table_Data_Table_135[[#This Row],[Item ID]],Analysis_Table,8,FALSE)","v":{"$error":"#N/A"}},{"$f":"VLOOKUP(Table_Data_Table_135[[#This Row],[Item ID]],Analysis_Table,9,FALSE)","v":{"$error":"#N/A"}},{"$f":"VLOOKUP(Table_Data_Table_135[[#This Row],[Item ID]],Analysis_Table,10,FALSE)","v":{"$error":"#N/A"}},{"$f":"VLOOKUP(Table_Data_Table_135[[#This Row],[Item ID]],Analysis_Table,11,FALSE)","v":{"$error":"#N/A"}},{"$f":"VLOOKUP(Table_Data_Table_135[[#This Row],[Item ID]],Analysis_Table,12,FALSE)","v":{"$error":"#N/A"}},{"$f":"VLOOKUP(Table_Data_Table_135[[#This Row],[Item ID]],Analysis_Table,13,FALSE)","v":{"$error":"#N/A"}},{"$f":"VLOOKUP(Table_Data_Table_135[[#This Row],[Item ID]],Analysis_Table,14,FALSE)","v":{"$error":"#N/A"}},{"$f":"VLOOKUP(Table_Data_Table_135[[#This Row],[Item ID]],Analysis_Table,15,FALSE)","v":{"$error":"#N/A"}},{"$f":"VLOOKUP(Table_Data_Table_135[[#This Row],[Item ID]],Analysis_Table,16,FALSE)","v":{"$error":"#N/A"}},{"$f":"VLOOKUP(Table_Data_Table_135[[#This Row],[Item ID]],Analysis_Table,17,FALSE)","v":{"$error":"#N/A"}},{"$f":"VLOOKUP(Table_Data_Table_135[[#This Row],[Item ID]],Analysis_Table,18,FALSE)","v":{"$error":"#N/A"}},{"$f":"VLOOKUP(Table_Data_Table_135[[#This Row],[Item ID]],Analysis_Table,19,FALSE)","v":{"$error":"#N/A"}},null,null,1]
["",null,{"$f":"VLOOKUP(Table_Data_Table_135[[#This Row],[Item ID]],Analysis_Table,20,FALSE)","v":{"$error":"#N/A"}},null,null,null,null,null,null,null,0,null,null,null,{"$f":"VLOOKUP(Table_Data_Table_135[[#This Row],[Item ID]],Analysis_Table,8,FALSE)","v":{"$error":"#N/A"}},{"$f":"VLOOKUP(Table_Data_Table_135[[#This Row],[Item ID]],Analysis_Table,9,FALSE)","v":{"$error":"#N/A"}},{"$f":"VLOOKUP(Table_Data_Table_135[[#This Row],[Item ID]],Analysis_Table,10,FALSE)","v":{"$error":"#N/A"}},{"$f":"VLOOKUP(Table_Data_Table_135[[#This Row],[Item ID]],Analysis_Table,11,FALSE)","v":{"$error":"#N/A"}},{"$f":"VLOOKUP(Table_Data_Table_135[[#This Row],[Item ID]],Analysis_Table,12,FALSE)","v":{"$error":"#N/A"}},{"$f":"VLOOKUP(Table_Data_Table_135[[#This Row],[Item ID]],Analysis_Table,13,FALSE)","v":{"$error":"#N/A"}},{"$f":"VLOOKUP(Table_Data_Table_135[[#This Row],[Item ID]],Analysis_Table,14,FALSE)","v":{"$error":"#N/A"}},{"$f":"VLOOKUP(Table_Data_Table_135[[#This Row],[Item ID]],Analysis_Table,15,FALSE)","v":{"$error":"#N/A"}},{"$f":"VLOOKUP(Table_Data_Table_135[[#This Row],[Item ID]],Analysis_Table,16,FALSE)","v":{"$error":"#N/A"}},{"$f":"VLOOKUP(Table_Data_Table_135[[#This Row],[Item ID]],Analysis_Table,17,FALSE)","v":{"$error":"#N/A"}},{"$f":"VLOOKUP(Table_Data_Table_135[[#This Row],[Item ID]],Analysis_Table,18,FALSE)","v":{"$error":"#N/A"}},{"$f":"VLOOKUP(Table_Data_Table_135[[#This Row],[Item ID]],Analysis_Table,19,FALSE)","v":{"$error":"#N/A"}},null,null,1]
["",null,{"$f":"VLOOKUP(Table_Data_Table_135[[#This Row],[Item ID]],Analysis_Table,20,FALSE)","v":{"$error":"#N/A"}},null,null,null,null,null,null,null,0,null,null,null,{"$f":"VLOOKUP(Table_Data_Table_135[[#This Row],[Item ID]],Analysis_Table,8,FALSE)","v":{"$error":"#N/A"}},{"$f":"VLOOKUP(Table_Data_Table_135[[#This Row],[Item ID]],Analysis_Table,9,FALSE)","v":{"$error":"#N/A"}},{"$f":"VLOOKUP(Table_Data_Table_135[[#This Row],[Item ID]],Analysis_Table,10,FALSE)","v":{"$error":"#N/A"}},{"$f":"VLOOKUP(Table_Data_Table_135[[#This Row],[Item ID]],Analysis_Table,11,FALSE)","v":{"$error":"#N/A"}},{"$f":"VLOOKUP(Table_Data_Table_135[[#This Row],[Item ID]],Analysis_Table,12,FALSE)","v":{"$error":"#N/A"}},{"$f":"VLOOKUP(Table_Data_Table_135[[#This Row],[Item ID]],Analysis_Table,13,FALSE)","v":{"$error":"#N/A"}},{"$f":"VLOOKUP(Table_Data_Table_135[[#This Row],[Item ID]],Analysis_Table,14,FALSE)","v":{"$error":"#N/A"}},{"$f":"VLOOKUP(Table_Data_Table_135[[#This Row],[Item ID]],Analysis_Table,15,FALSE)","v":{"$error":"#N/A"}},{"$f":"VLOOKUP(Table_Data_Table_135[[#This Row],[Item ID]],Analysis_Table,16,FALSE)","v":{"$error":"#N/A"}},{"$f":"VLOOKUP(Table_Data_Table_135[[#This Row],[Item ID]],Analysis_Table,17,FALSE)","v":{"$error":"#N/A"}},{"$f":"VLOOKUP(Table_Data_Table_135[[#This Row],[Item ID]],Analysis_Table,18,FALSE)","v":{"$error":"#N/A"}},{"$f":"VLOOKUP(Table_Data_Table_135[[#This Row],[Item ID]],Analysis_Table,19,FALSE)","v":{"$error":"#N/A"}},null,null,1]
["",null,{"$f":"VLOOKUP(Table_Data_Table_135[[#This Row],[Item ID]],Analysis_Table,20,FALSE)","v":{"$error":"#N/A"}},null,null,null,null,null,null,null,0,null,null,null,{"$f":"VLOOKUP(Table_Data_Table_135[[#This Row],[Item ID]],Analysis_Table,8,FALSE)","v":{"$error":"#N/A"}},{"$f":"VLOOKUP(Table_Data_Table_135[[#This Row],[Item ID]],Analysis_Table,9,FALSE)","v":{"$error":"#N/A"}},{"$f":"VLOOKUP(Table_Data_Table_135[[#This Row],[Item ID]],Analysis_Table,10,FALSE)","v":{"$error":"#N/A"}},{"$f":"VLOOKUP(Table_Data_Table_135[[#This Row],[Item ID]],Analysis_Table,11,FALSE)","v":{"$error":"#N/A"}},{"$f":"VLOOKUP(Table_Data_Table_135[[#This Row],[Item ID]],Analysis_Table,12,FALSE)","v":{"$error":"#N/A"}},{"$f":"VLOOKUP(Table_Data_Table_135[[#This Row],[Item ID]],Analysis_Table,13,FALSE)","v":{"$error":"#N/A"}},{"$f":"VLOOKUP(Table_Data_Table_135[[#This Row],[Item ID]],Analysis_Table,14,FALSE)","v":{"$error":"#N/A"}},{"$f":"VLOOKUP(Table_Data_Table_135[[#This Row],[Item ID]],Analysis_Table,15,FALSE)","v":{"$error":"#N/A"}},{"$f":"VLOOKUP(Table_Data_Table_135[[#This Row],[Item ID]],Analysis_Table,16,FALSE)","v":{"$error":"#N/A"}},{"$f":"VLOOKUP(Table_Data_Table_135[[#This Row],[Item ID]],Analysis_Table,17,FALSE)","v":{"$error":"#N/A"}},{"$f":"VLOOKUP(Table_Data_Table_135[[#This Row],[Item ID]],Analysis_Table,18,FALSE)","v":{"$error":"#N/A"}},{"$f":"VLOOKUP(Table_Data_Table_135[[#This Row],[Item ID]],Analysis_Table,19,FALSE)","v":{"$error":"#N/A"}},null,null,1]
["",null,{"$f":"VLOOKUP(Table_Data_Table_135[[#This Row],[Item ID]],Analysis_Table,20,FALSE)","v":{"$error":"#N/A"}},null,null,null,null,null,null,null,0,null,null,null,{"$f":"VLOOKUP(Table_Data_Table_135[[#This Row],[Item ID]],Analysis_Table,8,FALSE)","v":{"$error":"#N/A"}},{"$f":"VLOOKUP(Table_Data_Table_135[[#This Row],[Item ID]],Analysis_Table,9,FALSE)","v":{"$error":"#N/A"}},{"$f":"VLOOKUP(Table_Data_Table_135[[#This Row],[Item ID]],Analysis_Table,10,FALSE)","v":{"$error":"#N/A"}},{"$f":"VLOOKUP(Table_Data_Table_135[[#This Row],[Item ID]],Analysis_Table,11,FALSE)","v":{"$error":"#N/A"}},{"$f":"VLOOKUP(Table_Data_Table_135[[#This Row],[Item ID]],Analysis_Table,12,FALSE)","v":{"$error":"#N/A"}},{"$f":"VLOOKUP(Table_Data_Table_135[[#This Row],[Item ID]],Analysis_Table,13,FALSE)","v":{"$error":"#N/A"}},{"$f":"VLOOKUP(Table_Data_Table_135[[#This Row],[Item ID]],Analysis_Table,14,FALSE)","v":{"$error":"#N/A"}},{"$f":"VLOOKUP(Table_Data_Table_135[[#This Row],[Item ID]],Analysis_Table,15,FALSE)","v":{"$error":"#N/A"}},{"$f":"VLOOKUP(Table_Data_Table_135[[#This Row],[Item ID]],Analysis_Table,16,FALSE)","v":{"$error":"#N/A"}},{"$f":"VLOOKUP(Table_Data_Table_135[[#This Row],[Item ID]],Analysis_Table,17,FALSE)","v":{"$error":"#N/A"}},{"$f":"VLOOKUP(Table_Data_Table_135[[#This Row],[Item ID]],Analysis_Table,18,FALSE)","v":{"$error":"#N/A"}},{"$f":"VLOOKUP(Table_Data_Table_135[[#This Row],[Item ID]],Analysis_Table,19,FALSE)","v":{"$error":"#N/A"}},null,null,1]
["",null,{"$f":"VLOOKUP(Table_Data_Table_135[[#This Row],[Item ID]],Analysis_Table,20,FALSE)","v":{"$error":"#N/A"}},null,null,null,null,null,null,null,0,null,null,null,{"$f":"VLOOKUP(Table_Data_Table_135[[#This Row],[Item ID]],Analysis_Table,8,FALSE)","v":{"$error":"#N/A"}},{"$f":"VLOOKUP(Table_Data_Table_135[[#This Row],[Item ID]],Analysis_Table,9,FALSE)","v":{"$error":"#N/A"}},{"$f":"VLOOKUP(Table_Data_Table_135[[#This Row],[Item ID]],Analysis_Table,10,FALSE)","v":{"$error":"#N/A"}},{"$f":"VLOOKUP(Table_Data_Table_135[[#This Row],[Item ID]],Analysis_Table,11,FALSE)","v":{"$error":"#N/A"}},{"$f":"VLOOKUP(Table_Data_Table_135[[#This Row],[Item ID]],Analysis_Table,12,FALSE)","v":{"$error":"#N/A"}},{"$f":"VLOOKUP(Table_Data_Table_135[[#This Row],[Item ID]],Analysis_Table,13,FALSE)","v":{"$error":"#N/A"}},{"$f":"VLOOKUP(Table_Data_Table_135[[#This Row],[Item ID]],Analysis_Table,14,FALSE)","v":{"$error":"#N/A"}},{"$f":"VLOOKUP(Table_Data_Table_135[[#This Row],[Item ID]],Analysis_Table,15,FALSE)","v":{"$error":"#N/A"}},{"$f":"VLOOKUP(Table_Data_Table_135[[#This Row],[Item ID]],Analysis_Table,16,FALSE)","v":{"$error":"#N/A"}},{"$f":"VLOOKUP(Table_Data_Table_135[[#This Row],[Item ID]],Analysis_Table,17,FALSE)","v":{"$error":"#N/A"}},{"$f":"VLOOKUP(Table_Data_Table_135[[#This Row],[Item ID]],Analysis_Table,18,FALSE)","v":{"$error":"#N/A"}},{"$f":"VLOOKUP(Table_Data_Table_135[[#This Row],[Item ID]],Analysis_Table,19,FALSE)","v":{"$error":"#N/A"}},null,null,1]
["",null,{"$f":"VLOOKUP(Table_Data_Table_135[[#This Row],[Item ID]],Analysis_Table,20,FALSE)","v":{"$error":"#N/A"}},null,null,null,null,null,null,null,0,null,null,null,{"$f":"VLOOKUP(Table_Data_Table_135[[#This Row],[Item ID]],Analysis_Table,8,FALSE)","v":{"$error":"#N/A"}},{"$f":"VLOOKUP(Table_Data_Table_135[[#This Row],[Item ID]],Analysis_Table,9,FALSE)","v":{"$error":"#N/A"}},{"$f":"VLOOKUP(Table_Data_Table_135[[#This Row],[Item ID]],Analysis_Table,10,FALSE)","v":{"$error":"#N/A"}},{"$f":"VLOOKUP(Table_Data_Table_135[[#This Row],[Item ID]],Analysis_Table,11,FALSE)","v":{"$error":"#N/A"}},{"$f":"VLOOKUP(Table_Data_Table_135[[#This Row],[Item ID]],Analysis_Table,12,FALSE)","v":{"$error":"#N/A"}},{"$f":"VLOOKUP(Table_Data_Table_135[[#This Row],[Item ID]],Analysis_Table,13,FALSE)","v":{"$error":"#N/A"}},{"$f":"VLOOKUP(Table_Data_Table_135[[#This Row],[Item ID]],Analysis_Table,14,FALSE)","v":{"$error":"#N/A"}},{"$f":"VLOOKUP(Table_Data_Table_135[[#This Row],[Item ID]],Analysis_Table,15,FALSE)","v":{"$error":"#N/A"}},{"$f":"VLOOKUP(Table_Data_Table_135[[#This Row],[Item ID]],Analysis_Table,16,FALSE)","v":{"$error":"#N/A"}},{"$f":"VLOOKUP(Table_Data_Table_135[[#This Row],[Item ID]],Analysis_Table,17,FALSE)","v":{"$error":"#N/A"}},{"$f":"VLOOKUP(Table_Data_Table_135[[#This Row],[Item ID]],Analysis_Table,18,FALSE)","v":{"$error":"#N/A"}},{"$f":"VLOOKUP(Table_Data_Table_135[[#This Row],[Item ID]],Analysis_Table,19,FALSE)","v":{"$error":"#N/A"}},null,null,1]
["",null,{"$f":"VLOOKUP(Table_Data_Table_135[[#This Row],[Item ID]],Analysis_Table,20,FALSE)","v":{"$error":"#N/A"}},null,null,null,null,null,null,null,0,null,null,null,{"$f":"VLOOKUP(Table_Data_Table_135[[#This Row],[Item ID]],Analysis_Table,8,FALSE)","v":{"$error":"#N/A"}},{"$f":"VLOOKUP(Table_Data_Table_135[[#This Row],[Item ID]],Analysis_Table,9,FALSE)","v":{"$error":"#N/A"}},{"$f":"VLOOKUP(Table_Data_Table_135[[#This Row],[Item ID]],Analysis_Table,10,FALSE)","v":{"$error":"#N/A"}},{"$f":"VLOOKUP(Table_Data_Table_135[[#This Row],[Item ID]],Analysis_Table,11,FALSE)","v":{"$error":"#N/A"}},{"$f":"VLOOKUP(Table_Data_Table_135[[#This Row],[Item ID]],Analysis_Table,12,FALSE)","v":{"$error":"#N/A"}},{"$f":"VLOOKUP(Table_Data_Table_135[[#This Row],[Item ID]],Analysis_Table,13,FALSE)","v":{"$error":"#N/A"}},{"$f":"VLOOKUP(Table_Data_Table_135[[#This Row],[Item ID]],Analysis_Table,14,FALSE)","v":{"$error":"#N/A"}},{"$f":"VLOOKUP(Table_Data_Table_135[[#This Row],[Item ID]],Analysis_Table,15,FALSE)","v":{"$error":"#N/A"}},{"$f":"VLOOKUP(Table_Data_Table_135[[#This Row],[Item ID]],Analysis_Table,16,FALSE)","v":{"$error":"#N/A"}},{"$f":"VLOOKUP(Table_Data_Table_135[[#This Row],[Item ID]],Analysis_Table,17,FALSE)","v":{"$error":"#N/A"}},{"$f":"VLOOKUP(Table_Data_Table_135[[#This Row],[Item ID]],Analysis_Table,18,FALSE)","v":{"$error":"#N/A"}},{"$f":"VLOOKUP(Table_Data_Table_135[[#This Row],[Item ID]],Analysis_Table,19,FALSE)","v":{"$error":"#N/A"}},null,null,1]
["",null,{"$f":"VLOOKUP(Table_Data_Table_135[[#This Row],[Item ID]],Analysis_Table,20,FALSE)","v":{"$error":"#N/A"}},null,null,null,null,null,null,null,0,null,null,null,{"$f":"VLOOKUP(Table_Data_Table_135[[#This Row],[Item ID]],Analysis_Table,8,FALSE)","v":{"$error":"#N/A"}},{"$f":"VLOOKUP(Table_Data_Table_135[[#This Row],[Item ID]],Analysis_Table,9,FALSE)","v":{"$error":"#N/A"}},{"$f":"VLOOKUP(Table_Data_Table_135[[#This Row],[Item ID]],Analysis_Table,10,FALSE)","v":{"$error":"#N/A"}},{"$f":"VLOOKUP(Table_Data_Table_135[[#This Row],[Item ID]],Analysis_Table,11,FALSE)","v":{"$error":"#N/A"}},{"$f":"VLOOKUP(Table_Data_Table_135[[#This Row],[Item ID]],Analysis_Table,12,FALSE)","v":{"$error":"#N/A"}},{"$f":"VLOOKUP(Table_Data_Table_135[[#This Row],[Item ID]],Analysis_Table,13,FALSE)","v":{"$error":"#N/A"}},{"$f":"VLOOKUP(Table_Data_Table_135[[#This Row],[Item ID]],Analysis_Table,14,FALSE)","v":{"$error":"#N/A"}},{"$f":"VLOOKUP(Table_Data_Table_135[[#This Row],[Item ID]],Analysis_Table,15,FALSE)","v":{"$error":"#N/A"}},{"$f":"VLOOKUP(Table_Data_Table_135[[#This Row],[Item ID]],Analysis_Table,16,FALSE)","v":{"$error":"#N/A"}},{"$f":"VLOOKUP(Table_Data_Table_135[[#This Row],[Item ID]],Analysis_Table,17,FALSE)","v":{"$error":"#N/A"}},{"$f":"VLOOKUP(Table_Data_Table_135[[#This Row],[Item ID]],Analysis_Table,18,FALSE)","v":{"$error":"#N/A"}},{"$f":"VLOOKUP(Table_Data_Table_135[[#This Row],[Item ID]],Analysis_Table,19,FALSE)","v":{"$error":"#N/A"}},null,null,1]
["",null,{"$f":"VLOOKUP(Table_Data_Table_135[[#This Row],[Item ID]],Analysis_Table,20,FALSE)","v":{"$error":"#N/A"}},null,null,null,null,null,null,null,0,null,null,null,{"$f":"VLOOKUP(Table_Data_Table_135[[#This Row],[Item ID]],Analysis_Table,8,FALSE)","v":{"$error":"#N/A"}},{"$f":"VLOOKUP(Table_Data_Table_135[[#This Row],[Item ID]],Analysis_Table,9,FALSE)","v":{"$error":"#N/A"}},{"$f":"VLOOKUP(Table_Data_Table_135[[#This Row],[Item ID]],Analysis_Table,10,FALSE)","v":{"$error":"#N/A"}},{"$f":"VLOOKUP(Table_Data_Table_135[[#This Row],[Item ID]],Analysis_Table,11,FALSE)","v":{"$error":"#N/A"}},{"$f":"VLOOKUP(Table_Data_Table_135[[#This Row],[Item ID]],Analysis_Table,12,FALSE)","v":{"$error":"#N/A"}},{"$f":"VLOOKUP(Table_Data_Table_135[[#This Row],[Item ID]],Analysis_Table,13,FALSE)","v":{"$error":"#N/A"}},{"$f":"VLOOKUP(Table_Data_Table_135[[#This Row],[Item ID]],Analysis_Table,14,FALSE)","v":{"$error":"#N/A"}},{"$f":"VLOOKUP(Table_Data_Table_135[[#This Row],[Item ID]],Analysis_Table,15,FALSE)","v":{"$error":"#N/A"}},{"$f":"VLOOKUP(Table_Data_Table_135[[#This Row],[Item ID]],Analysis_Table,16,FALSE)","v":{"$error":"#N/A"}},{"$f":"VLOOKUP(Table_Data_Table_135[[#This Row],[Item ID]],Analysis_Table,17,FALSE)","v":{"$error":"#N/A"}},{"$f":"VLOOKUP(Table_Data_Table_135[[#This Row],[Item ID]],Analysis_Table,18,FALSE)","v":{"$error":"#N/A"}},{"$f":"VLOOKUP(Table_Data_Table_135[[#This Row],[Item ID]],Analysis_Table,19,FALSE)","v":{"$error":"#N/A"}},null,null,1]
["",null,{"$f":"VLOOKUP(Table_Data_Table_135[[#This Row],[Item ID]],Analysis_Table,20,FALSE)","v":{"$error":"#N/A"}},null,null,null,null,null,null,null,0,null,null,null,{"$f":"VLOOKUP(Table_Data_Table_135[[#This Row],[Item ID]],Analysis_Table,8,FALSE)","v":{"$error":"#N/A"}},{"$f":"VLOOKUP(Table_Data_Table_135[[#This Row],[Item ID]],Analysis_Table,9,FALSE)","v":{"$error":"#N/A"}},{"$f":"VLOOKUP(Table_Data_Table_135[[#This Row],[Item ID]],Analysis_Table,10,FALSE)","v":{"$error":"#N/A"}},{"$f":"VLOOKUP(Table_Data_Table_135[[#This Row],[Item ID]],Analysis_Table,11,FALSE)","v":{"$error":"#N/A"}},{"$f":"VLOOKUP(Table_Data_Table_135[[#This Row],[Item ID]],Analysis_Table,12,FALSE)","v":{"$error":"#N/A"}},{"$f":"VLOOKUP(Table_Data_Table_135[[#This Row],[Item ID]],Analysis_Table,13,FALSE)","v":{"$error":"#N/A"}},{"$f":"VLOOKUP(Table_Data_Table_135[[#This Row],[Item ID]],Analysis_Table,14,FALSE)","v":{"$error":"#N/A"}},{"$f":"VLOOKUP(Table_Data_Table_135[[#This Row],[Item ID]],Analysis_Table,15,FALSE)","v":{"$error":"#N/A"}},{"$f":"VLOOKUP(Table_Data_Table_135[[#This Row],[Item ID]],Analysis_Table,16,FALSE)","v":{"$error":"#N/A"}},{"$f":"VLOOKUP(Table_Data_Table_135[[#This Row],[Item ID]],Analysis_Table,17,FALSE)","v":{"$error":"#N/A"}},{"$f":"VLOOKUP(Table_Data_Table_135[[#This Row],[Item ID]],Analysis_Table,18,FALSE)","v":{"$error":"#N/A"}},{"$f":"VLOOKUP(Table_Data_Table_135[[#This Row],[Item ID]],Analysis_Table,19,FALSE)","v":{"$error":"#N/A"}},null,null,1]
["",null,{"$f":"VLOOKUP(Table_Data_Table_135[[#This Row],[Item ID]],Analysis_Table,20,FALSE)","v":{"$error":"#N/A"}},null,null,null,null,null,null,null,0,null,null,null,{"$f":"VLOOKUP(Table_Data_Table_135[[#This Row],[Item ID]],Analysis_Table,8,FALSE)","v":{"$error":"#N/A"}},{"$f":"VLOOKUP(Table_Data_Table_135[[#This Row],[Item ID]],Analysis_Table,9,FALSE)","v":{"$error":"#N/A"}},{"$f":"VLOOKUP(Table_Data_Table_135[[#This Row],[Item ID]],Analysis_Table,10,FALSE)","v":{"$error":"#N/A"}},{"$f":"VLOOKUP(Table_Data_Table_135[[#This Row],[Item ID]],Analysis_Table,11,FALSE)","v":{"$error":"#N/A"}},{"$f":"VLOOKUP(Table_Data_Table_135[[#This Row],[Item ID]],Analysis_Table,12,FALSE)","v":{"$error":"#N/A"}},{"$f":"VLOOKUP(Table_Data_Table_135[[#This Row],[Item ID]],Analysis_Table,13,FALSE)","v":{"$error":"#N/A"}},{"$f":"VLOOKUP(Table_Data_Table_135[[#This Row],[Item ID]],Analysis_Table,14,FALSE)","v":{"$error":"#N/A"}},{"$f":"VLOOKUP(Table_Data_Table_135[[#This Row],[Item ID]],Analysis_Table,15,FALSE)","v":{"$error":"#N/A"}},{"$f":"VLOOKUP(Table_Data_Table_135[[#This Row],[Item ID]],Analysis_Table,16,FALSE)","v":{"$error":"#N/A"}},{"$f":"VLOOKUP(Table_Data_Table_135[[#This Row],[Item ID]],Analysis_Table,17,FALSE)","v":{"$error":"#N/A"}},{"$f":"VLOOKUP(Table_Data_Table_135[[#This Row],[Item ID]],Analysis_Table,18,FALSE)","v":{"$error":"#N/A"}},{"$f":"VLOOKUP(Table_Data_Table_135[[#This Row],[Item ID]],Analysis_Table,19,FALSE)","v":{"$error":"#N/A"}},null,null,1]
["",null,{"$f":"VLOOKUP(Table_Data_Table_135[[#This Row],[Item ID]],Analysis_Table,20,FALSE)","v":{"$error":"#N/A"}},null,null,null,null,null,null,null,0,null,null,null,{"$f":"VLOOKUP(Table_Data_Table_135[[#This Row],[Item ID]],Analysis_Table,8,FALSE)","v":{"$error":"#N/A"}},{"$f":"VLOOKUP(Table_Data_Table_135[[#This Row],[Item ID]],Analysis_Table,9,FALSE)","v":{"$error":"#N/A"}},{"$f":"VLOOKUP(Table_Data_Table_135[[#This Row],[Item ID]],Analysis_Table,10,FALSE)","v":{"$error":"#N/A"}},{"$f":"VLOOKUP(Table_Data_Table_135[[#This Row],[Item ID]],Analysis_Table,11,FALSE)","v":{"$error":"#N/A"}},{"$f":"VLOOKUP(Table_Data_Table_135[[#This Row],[Item ID]],Analysis_Table,12,FALSE)","v":{"$error":"#N/A"}},{"$f":"VLOOKUP(Table_Data_Table_135[[#This Row],[Item ID]],Analysis_Table,13,FALSE)","v":{"$error":"#N/A"}},{"$f":"VLOOKUP(Table_Data_Table_135[[#This Row],[Item ID]],Analysis_Table,14,FALSE)","v":{"$error":"#N/A"}},{"$f":"VLOOKUP(Table_Data_Table_135[[#This Row],[Item ID]],Analysis_Table,15,FALSE)","v":{"$error":"#N/A"}},{"$f":"VLOOKUP(Table_Data_Table_135[[#This Row],[Item ID]],Analysis_Table,16,FALSE)","v":{"$error":"#N/A"}},{"$f":"VLOOKUP(Table_Data_Table_135[[#This Row],[Item ID]],Analysis_Table,17,FALSE)","v":{"$error":"#N/A"}},{"$f":"VLOOKUP(Table_Data_Table_135[[#This Row],[Item ID]],Analysis_Table,18,FALSE)","v":{"$error":"#N/A"}},{"$f":"VLOOKUP(Table_Data_Table_135[[#This Row],[Item ID]],Analysis_Table,19,FALSE)","v":{"$error":"#N/A"}},null,null,1]
["",null,{"$f":"VLOOKUP(Table_Data_Table_135[[#This Row],[Item ID]],Analysis_Table,20,FALSE)","v":{"$error":"#N/A"}},null,null,null,null,null,null,null,0,null,null,null,{"$f":"VLOOKUP(Table_Data_Table_135[[#This Row],[Item ID]],Analysis_Table,8,FALSE)","v":{"$error":"#N/A"}},{"$f":"VLOOKUP(Table_Data_Table_135[[#This Row],[Item ID]],Analysis_Table,9,FALSE)","v":{"$error":"#N/A"}},{"$f":"VLOOKUP(Table_Data_Table_135[[#This Row],[Item ID]],Analysis_Table,10,FALSE)","v":{"$error":"#N/A"}},{"$f":"VLOOKUP(Table_Data_Table_135[[#This Row],[Item ID]],Analysis_Table,11,FALSE)","v":{"$error":"#N/A"}},{"$f":"VLOOKUP(Table_Data_Table_135[[#This Row],[Item ID]],Analysis_Table,12,FALSE)","v":{"$error":"#N/A"}},{"$f":"VLOOKUP(Table_Data_Table_135[[#This Row],[Item ID]],Analysis_Table,13,FALSE)","v":{"$error":"#N/A"}},{"$f":"VLOOKUP(Table_Data_Table_135[[#This Row],[Item ID]],Analysis_Table,14,FALSE)","v":{"$error":"#N/A"}},{"$f":"VLOOKUP(Table_Data_Table_135[[#This Row],[Item ID]],Analysis_Table,15,FALSE)","v":{"$error":"#N/A"}},{"$f":"VLOOKUP(Table_Data_Table_135[[#This Row],[Item ID]],Analysis_Table,16,FALSE)","v":{"$error":"#N/A"}},{"$f":"VLOOKUP(Table_Data_Table_135[[#This Row],[Item ID]],Analysis_Table,17,FALSE)","v":{"$error":"#N/A"}},{"$f":"VLOOKUP(Table_Data_Table_135[[#This Row],[Item ID]],Analysis_Table,18,FALSE)","v":{"$error":"#N/A"}},{"$f":"VLOOKUP(Table_Data_Table_135[[#This Row],[Item ID]],Analysis_Table,19,FALSE)","v":{"$error":"#N/A"}},null,null,1]
["",null,{"$f":"VLOOKUP(Table_Data_Table_135[[#This Row],[Item ID]],Analysis_Table,20,FALSE)","v":{"$error":"#N/A"}},null,null,null,null,null,null,null,0,null,null,null,{"$f":"VLOOKUP(Table_Data_Table_135[[#This Row],[Item ID]],Analysis_Table,8,FALSE)","v":{"$error":"#N/A"}},{"$f":"VLOOKUP(Table_Data_Table_135[[#This Row],[Item ID]],Analysis_Table,9,FALSE)","v":{"$error":"#N/A"}},{"$f":"VLOOKUP(Table_Data_Table_135[[#This Row],[Item ID]],Analysis_Table,10,FALSE)","v":{"$error":"#N/A"}},{"$f":"VLOOKUP(Table_Data_Table_135[[#This Row],[Item ID]],Analysis_Table,11,FALSE)","v":{"$error":"#N/A"}},{"$f":"VLOOKUP(Table_Data_Table_135[[#This Row],[Item ID]],Analysis_Table,12,FALSE)","v":{"$error":"#N/A"}},{"$f":"VLOOKUP(Table_Data_Table_135[[#This Row],[Item ID]],Analysis_Table,13,FALSE)","v":{"$error":"#N/A"}},{"$f":"VLOOKUP(Table_Data_Table_135[[#This Row],[Item ID]],Analysis_Table,14,FALSE)","v":{"$error":"#N/A"}},{"$f":"VLOOKUP(Table_Data_Table_135[[#This Row],[Item ID]],Analysis_Table,15,FALSE)","v":{"$error":"#N/A"}},{"$f":"VLOOKUP(Table_Data_Table_135[[#This Row],[Item ID]],Analysis_Table,16,FALSE)","v":{"$error":"#N/A"}},{"$f":"VLOOKUP(Table_Data_Table_135[[#This Row],[Item ID]],Analysis_Table,17,FALSE)","v":{"$error":"#N/A"}},{"$f":"VLOOKUP(Table_Data_Table_135[[#This Row],[Item ID]],Analysis_Table,18,FALSE)","v":{"$error":"#N/A"}},{"$f":"VLOOKUP(Table_Data_Table_135[[#This Row],[Item ID]],Analysis_Table,19,FALSE)","v":{"$error":"#N/A"}},null,null,1]
["",null,{"$f":"VLOOKUP(Table_Data_Table_135[[#This Row],[Item ID]],Analysis_Table,20,FALSE)","v":{"$error":"#N/A"}},null,null,null,null,null,null,null,0,null,null,null,{"$f":"VLOOKUP(Table_Data_Table_135[[#This Row],[Item ID]],Analysis_Table,8,FALSE)","v":{"$error":"#N/A"}},{"$f":"VLOOKUP(Table_Data_Table_135[[#This Row],[Item ID]],Analysis_Table,9,FALSE)","v":{"$error":"#N/A"}},{"$f":"VLOOKUP(Table_Data_Table_135[[#This Row],[Item ID]],Analysis_Table,10,FALSE)","v":{"$error":"#N/A"}},{"$f":"VLOOKUP(Table_Data_Table_135[[#This Row],[Item ID]],Analysis_Table,11,FALSE)","v":{"$error":"#N/A"}},{"$f":"VLOOKUP(Table_Data_Table_135[[#This Row],[Item ID]],Analysis_Table,12,FALSE)","v":{"$error":"#N/A"}},{"$f":"VLOOKUP(Table_Data_Table_135[[#This Row],[Item ID]],Analysis_Table,13,FALSE)","v":{"$error":"#N/A"}},{"$f":"VLOOKUP(Table_Data_Table_135[[#This Row],[Item ID]],Analysis_Table,14,FALSE)","v":{"$error":"#N/A"}},{"$f":"VLOOKUP(Table_Data_Table_135[[#This Row],[Item ID]],Analysis_Table,15,FALSE)","v":{"$error":"#N/A"}},{"$f":"VLOOKUP(Table_Data_Table_135[[#This Row],[Item ID]],Analysis_Table,16,FALSE)","v":{"$error":"#N/A"}},{"$f":"VLOOKUP(Table_Data_Table_135[[#This Row],[Item ID]],Analysis_Table,17,FALSE)","v":{"$error":"#N/A"}},{"$f":"VLOOKUP(Table_Data_Table_135[[#This Row],[Item ID]],Analysis_Table,18,FALSE)","v":{"$error":"#N/A"}},{"$f":"VLOOKUP(Table_Data_Table_135[[#This Row],[Item ID]],Analysis_Table,19,FALSE)","v":{"$error":"#N/A"}},null,null,1]
["",null,{"$f":"VLOOKUP(Table_Data_Table_135[[#This Row],[Item ID]],Analysis_Table,20,FALSE)","v":{"$error":"#N/A"}},null,null,null,null,null,null,null,0,null,null,null,{"$f":"VLOOKUP(Table_Data_Table_135[[#This Row],[Item ID]],Analysis_Table,8,FALSE)","v":{"$error":"#N/A"}},{"$f":"VLOOKUP(Table_Data_Table_135[[#This Row],[Item ID]],Analysis_Table,9,FALSE)","v":{"$error":"#N/A"}},{"$f":"VLOOKUP(Table_Data_Table_135[[#This Row],[Item ID]],Analysis_Table,10,FALSE)","v":{"$error":"#N/A"}},{"$f":"VLOOKUP(Table_Data_Table_135[[#This Row],[Item ID]],Analysis_Table,11,FALSE)","v":{"$error":"#N/A"}},{"$f":"VLOOKUP(Table_Data_Table_135[[#This Row],[Item ID]],Analysis_Table,12,FALSE)","v":{"$error":"#N/A"}},{"$f":"VLOOKUP(Table_Data_Table_135[[#This Row],[Item ID]],Analysis_Table,13,FALSE)","v":{"$error":"#N/A"}},{"$f":"VLOOKUP(Table_Data_Table_135[[#This Row],[Item ID]],Analysis_Table,14,FALSE)","v":{"$error":"#N/A"}},{"$f":"VLOOKUP(Table_Data_Table_135[[#This Row],[Item ID]],Analysis_Table,15,FALSE)","v":{"$error":"#N/A"}},{"$f":"VLOOKUP(Table_Data_Table_135[[#This Row],[Item ID]],Analysis_Table,16,FALSE)","v":{"$error":"#N/A"}},{"$f":"VLOOKUP(Table_Data_Table_135[[#This Row],[Item ID]],Analysis_Table,17,FALSE)","v":{"$error":"#N/A"}},{"$f":"VLOOKUP(Table_Data_Table_135[[#This Row],[Item ID]],Analysis_Table,18,FALSE)","v":{"$error":"#N/A"}},{"$f":"VLOOKUP(Table_Data_Table_135[[#This Row],[Item ID]],Analysis_Table,19,FALSE)","v":{"$error":"#N/A"}},null,null,1]
["",null,{"$f":"VLOOKUP(Table_Data_Table_135[[#This Row],[Item ID]],Analysis_Table,20,FALSE)","v":{"$error":"#N/A"}},null,null,null,null,null,null,null,0,null,null,null,{"$f":"VLOOKUP(Table_Data_Table_135[[#This Row],[Item ID]],Analysis_Table,8,FALSE)","v":{"$error":"#N/A"}},{"$f":"VLOOKUP(Table_Data_Table_135[[#This Row],[Item ID]],Analysis_Table,9,FALSE)","v":{"$error":"#N/A"}},{"$f":"VLOOKUP(Table_Data_Table_135[[#This Row],[Item ID]],Analysis_Table,10,FALSE)","v":{"$error":"#N/A"}},{"$f":"VLOOKUP(Table_Data_Table_135[[#This Row],[Item ID]],Analysis_Table,11,FALSE)","v":{"$error":"#N/A"}},{"$f":"VLOOKUP(Table_Data_Table_135[[#This Row],[Item ID]],Analysis_Table,12,FALSE)","v":{"$error":"#N/A"}},{"$f":"VLOOKUP(Table_Data_Table_135[[#This Row],[Item ID]],Analysis_Table,13,FALSE)","v":{"$error":"#N/A"}},{"$f":"VLOOKUP(Table_Data_Table_135[[#This Row],[Item ID]],Analysis_Table,14,FALSE)","v":{"$error":"#N/A"}},{"$f":"VLOOKUP(Table_Data_Table_135[[#This Row],[Item ID]],Analysis_Table,15,FALSE)","v":{"$error":"#N/A"}},{"$f":"VLOOKUP(Table_Data_Table_135[[#This Row],[Item ID]],Analysis_Table,16,FALSE)","v":{"$error":"#N/A"}},{"$f":"VLOOKUP(Table_Data_Table_135[[#This Row],[Item ID]],Analysis_Table,17,FALSE)","v":{"$error":"#N/A"}},{"$f":"VLOOKUP(Table_Data_Table_135[[#This Row],[Item ID]],Analysis_Table,18,FALSE)","v":{"$error":"#N/A"}},{"$f":"VLOOKUP(Table_Data_Table_135[[#This Row],[Item ID]],Analysis_Table,19,FALSE)","v":{"$error":"#N/A"}},null,null,1]
["",null,{"$f":"VLOOKUP(Table_Data_Table_135[[#This Row],[Item ID]],Analysis_Table,20,FALSE)","v":{"$error":"#N/A"}},null,null,null,null,null,null,null,0,null,null,null,{"$f":"VLOOKUP(Table_Data_Table_135[[#This Row],[Item ID]],Analysis_Table,8,FALSE)","v":{"$error":"#N/A"}},{"$f":"VLOOKUP(Table_Data_Table_135[[#This Row],[Item ID]],Analysis_Table,9,FALSE)","v":{"$error":"#N/A"}},{"$f":"VLOOKUP(Table_Data_Table_135[[#This Row],[Item ID]],Analysis_Table,10,FALSE)","v":{"$error":"#N/A"}},{"$f":"VLOOKUP(Table_Data_Table_135[[#This Row],[Item ID]],Analysis_Table,11,FALSE)","v":{"$error":"#N/A"}},{"$f":"VLOOKUP(Table_Data_Table_135[[#This Row],[Item ID]],Analysis_Table,12,FALSE)","v":{"$error":"#N/A"}},{"$f":"VLOOKUP(Table_Data_Table_135[[#This Row],[Item ID]],Analysis_Table,13,FALSE)","v":{"$error":"#N/A"}},{"$f":"VLOOKUP(Table_Data_Table_135[[#This Row],[Item ID]],Analysis_Table,14,FALSE)","v":{"$error":"#N/A"}},{"$f":"VLOOKUP(Table_Data_Table_135[[#This Row],[Item ID]],Analysis_Table,15,FALSE)","v":{"$error":"#N/A"}},{"$f":"VLOOKUP(Table_Data_Table_135[[#This Row],[Item ID]],Analysis_Table,16,FALSE)","v":{"$error":"#N/A"}},{"$f":"VLOOKUP(Table_Data_Table_135[[#This Row],[Item ID]],Analysis_Table,17,FALSE)","v":{"$error":"#N/A"}},{"$f":"VLOOKUP(Table_Data_Table_135[[#This Row],[Item ID]],Analysis_Table,18,FALSE)","v":{"$error":"#N/A"}},{"$f":"VLOOKUP(Table_Data_Table_135[[#This Row],[Item ID]],Analysis_Table,19,FALSE)","v":{"$error":"#N/A"}},null,null,1]
["",null,{"$f":"VLOOKUP(Table_Data_Table_135[[#This Row],[Item ID]],Analysis_Table,20,FALSE)","v":{"$error":"#N/A"}},null,null,null,null,null,null,null,0,null,null,null,{"$f":"VLOOKUP(Table_Data_Table_135[[#This Row],[Item ID]],Analysis_Table,8,FALSE)","v":{"$error":"#N/A"}},{"$f":"VLOOKUP(Table_Data_Table_135[[#This Row],[Item ID]],Analysis_Table,9,FALSE)","v":{"$error":"#N/A"}},{"$f":"VLOOKUP(Table_Data_Table_135[[#This Row],[Item ID]],Analysis_Table,10,FALSE)","v":{"$error":"#N/A"}},{"$f":"VLOOKUP(Table_Data_Table_135[[#This Row],[Item ID]],Analysis_Table,11,FALSE)","v":{"$error":"#N/A"}},{"$f":"VLOOKUP(Table_Data_Table_135[[#This Row],[Item ID]],Analysis_Table,12,FALSE)","v":{"$error":"#N/A"}},{"$f":"VLOOKUP(Table_Data_Table_135[[#This Row],[Item ID]],Analysis_Table,13,FALSE)","v":{"$error":"#N/A"}},{"$f":"VLOOKUP(Table_Data_Table_135[[#This Row],[Item ID]],Analysis_Table,14,FALSE)","v":{"$error":"#N/A"}},{"$f":"VLOOKUP(Table_Data_Table_135[[#This Row],[Item ID]],Analysis_Table,15,FALSE)","v":{"$error":"#N/A"}},{"$f":"VLOOKUP(Table_Data_Table_135[[#This Row],[Item ID]],Analysis_Table,16,FALSE)","v":{"$error":"#N/A"}},{"$f":"VLOOKUP(Table_Data_Table_135[[#This Row],[Item ID]],Analysis_Table,17,FALSE)","v":{"$error":"#N/A"}},{"$f":"VLOOKUP(Table_Data_Table_135[[#This Row],[Item ID]],Analysis_Table,18,FALSE)","v":{"$error":"#N/A"}},{"$f":"VLOOKUP(Table_Data_Table_135[[#This Row],[Item ID]],Analysis_Table,19,FALSE)","v":{"$error":"#N/A"}},null,null,1]
["",null,{"$f":"VLOOKUP(Table_Data_Table_135[[#This Row],[Item ID]],Analysis_Table,20,FALSE)","v":{"$error":"#N/A"}},null,null,null,null,null,null,null,0,null,null,null,{"$f":"VLOOKUP(Table_Data_Table_135[[#This Row],[Item ID]],Analysis_Table,8,FALSE)","v":{"$error":"#N/A"}},{"$f":"VLOOKUP(Table_Data_Table_135[[#This Row],[Item ID]],Analysis_Table,9,FALSE)","v":{"$error":"#N/A"}},{"$f":"VLOOKUP(Table_Data_Table_135[[#This Row],[Item ID]],Analysis_Table,10,FALSE)","v":{"$error":"#N/A"}},{"$f":"VLOOKUP(Table_Data_Table_135[[#This Row],[Item ID]],Analysis_Table,11,FALSE)","v":{"$error":"#N/A"}},{"$f":"VLOOKUP(Table_Data_Table_135[[#This Row],[Item ID]],Analysis_Table,12,FALSE)","v":{"$error":"#N/A"}},{"$f":"VLOOKUP(Table_Data_Table_135[[#This Row],[Item ID]],Analysis_Table,13,FALSE)","v":{"$error":"#N/A"}},{"$f":"VLOOKUP(Table_Data_Table_135[[#This Row],[Item ID]],Analysis_Table,14,FALSE)","v":{"$error":"#N/A"}},{"$f":"VLOOKUP(Table_Data_Table_135[[#This Row],[Item ID]],Analysis_Table,15,FALSE)","v":{"$error":"#N/A"}},{"$f":"VLOOKUP(Table_Data_Table_135[[#This Row],[Item ID]],Analysis_Table,16,FALSE)","v":{"$error":"#N/A"}},{"$f":"VLOOKUP(Table_Data_Table_135[[#This Row],[Item ID]],Analysis_Table,17,FALSE)","v":{"$error":"#N/A"}},{"$f":"VLOOKUP(Table_Data_Table_135[[#This Row],[Item ID]],Analysis_Table,18,FALSE)","v":{"$error":"#N/A"}},{"$f":"VLOOKUP(Table_Data_Table_135[[#This Row],[Item ID]],Analysis_Table,19,FALSE)","v":{"$error":"#N/A"}},null,null,1]
["",null,{"$f":"VLOOKUP(Table_Data_Table_135[[#This Row],[Item ID]],Analysis_Table,20,FALSE)","v":{"$error":"#N/A"}},null,null,null,null,null,null,null,0,null,null,null,{"$f":"VLOOKUP(Table_Data_Table_135[[#This Row],[Item ID]],Analysis_Table,8,FALSE)","v":{"$error":"#N/A"}},{"$f":"VLOOKUP(Table_Data_Table_135[[#This Row],[Item ID]],Analysis_Table,9,FALSE)","v":{"$error":"#N/A"}},{"$f":"VLOOKUP(Table_Data_Table_135[[#This Row],[Item ID]],Analysis_Table,10,FALSE)","v":{"$error":"#N/A"}},{"$f":"VLOOKUP(Table_Data_Table_135[[#This Row],[Item ID]],Analysis_Table,11,FALSE)","v":{"$error":"#N/A"}},{"$f":"VLOOKUP(Table_Data_Table_135[[#This Row],[Item ID]],Analysis_Table,12,FALSE)","v":{"$error":"#N/A"}},{"$f":"VLOOKUP(Table_Data_Table_135[[#This Row],[Item ID]],Analysis_Table,13,FALSE)","v":{"$error":"#N/A"}},{"$f":"VLOOKUP(Table_Data_Table_135[[#This Row],[Item ID]],Analysis_Table,14,FALSE)","v":{"$error":"#N/A"}},{"$f":"VLOOKUP(Table_Data_Table_135[[#This Row],[Item ID]],Analysis_Table,15,FALSE)","v":{"$error":"#N/A"}},{"$f":"VLOOKUP(Table_Data_Table_135[[#This Row],[Item ID]],Analysis_Table,16,FALSE)","v":{"$error":"#N/A"}},{"$f":"VLOOKUP(Table_Data_Table_135[[#This Row],[Item ID]],Analysis_Table,17,FALSE)","v":{"$error":"#N/A"}},{"$f":"VLOOKUP(Table_Data_Table_135[[#This Row],[Item ID]],Analysis_Table,18,FALSE)","v":{"$error":"#N/A"}},{"$f":"VLOOKUP(Table_Data_Table_135[[#This Row],[Item ID]],Analysis_Table,19,FALSE)","v":{"$error":"#N/A"}},null,null,1]
["",null,{"$f":"VLOOKUP(Table_Data_Table_135[[#This Row],[Item ID]],Analysis_Table,20,FALSE)","v":{"$error":"#N/A"}},null,null,null,null,null,null,null,0,null,null,null,{"$f":"VLOOKUP(Table_Data_Table_135[[#This Row],[Item ID]],Analysis_Table,8,FALSE)","v":{"$error":"#N/A"}},{"$f":"VLOOKUP(Table_Data_Table_135[[#This Row],[Item ID]],Analysis_Table,9,FALSE)","v":{"$error":"#N/A"}},{"$f":"VLOOKUP(Table_Data_Table_135[[#This Row],[Item ID]],Analysis_Table,10,FALSE)","v":{"$error":"#N/A"}},{"$f":"VLOOKUP(Table_Data_Table_135[[#This Row],[Item ID]],Analysis_Table,11,FALSE)","v":{"$error":"#N/A"}},{"$f":"VLOOKUP(Table_Data_Table_135[[#This Row],[Item ID]],Analysis_Table,12,FALSE)","v":{"$error":"#N/A"}},{"$f":"VLOOKUP(Table_Data_Table_135[[#This Row],[Item ID]],Analysis_Table,13,FALSE)","v":{"$error":"#N/A"}},{"$f":"VLOOKUP(Table_Data_Table_135[[#This Row],[Item ID]],Analysis_Table,14,FALSE)","v":{"$error":"#N/A"}},{"$f":"VLOOKUP(Table_Data_Table_135[[#This Row],[Item ID]],Analysis_Table,15,FALSE)","v":{"$error":"#N/A"}},{"$f":"VLOOKUP(Table_Data_Table_135[[#This Row],[Item ID]],Analysis_Table,16,FALSE)","v":{"$error":"#N/A"}},{"$f":"VLOOKUP(Table_Data_Table_135[[#This Row],[Item ID]],Analysis_Table,17,FALSE)","v":{"$error":"#N/A"}},{"$f":"VLOOKUP(Table_Data_Table_135[[#This Row],[Item ID]],Analysis_Table,18,FALSE)","v":{"$error":"#N/A"}},{"$f":"VLOOKUP(Table_Data_Table_135[[#This Row],[Item ID]],Analysis_Table,19,FALSE)","v":{"$error":"#N/A"}},null,null,1]
["",null,{"$f":"VLOOKUP(Table_Data_Table_135[[#This Row],[Item ID]],Analysis_Table,20,FALSE)","v":{"$error":"#N/A"}},null,null,null,null,null,null,null,0,null,null,null,{"$f":"VLOOKUP(Table_Data_Table_135[[#This Row],[Item ID]],Analysis_Table,8,FALSE)","v":{"$error":"#N/A"}},{"$f":"VLOOKUP(Table_Data_Table_135[[#This Row],[Item ID]],Analysis_Table,9,FALSE)","v":{"$error":"#N/A"}},{"$f":"VLOOKUP(Table_Data_Table_135[[#This Row],[Item ID]],Analysis_Table,10,FALSE)","v":{"$error":"#N/A"}},{"$f":"VLOOKUP(Table_Data_Table_135[[#This Row],[Item ID]],Analysis_Table,11,FALSE)","v":{"$error":"#N/A"}},{"$f":"VLOOKUP(Table_Data_Table_135[[#This Row],[Item ID]],Analysis_Table,12,FALSE)","v":{"$error":"#N/A"}},{"$f":"VLOOKUP(Table_Data_Table_135[[#This Row],[Item ID]],Analysis_Table,13,FALSE)","v":{"$error":"#N/A"}},{"$f":"VLOOKUP(Table_Data_Table_135[[#This Row],[Item ID]],Analysis_Table,14,FALSE)","v":{"$error":"#N/A"}},{"$f":"VLOOKUP(Table_Data_Table_135[[#This Row],[Item ID]],Analysis_Table,15,FALSE)","v":{"$error":"#N/A"}},{"$f":"VLOOKUP(Table_Data_Table_135[[#This Row],[Item ID]],Analysis_Table,16,FALSE)","v":{"$error":"#N/A"}},{"$f":"VLOOKUP(Table_Data_Table_135[[#This Row],[Item ID]],Analysis_Table,17,FALSE)","v":{"$error":"#N/A"}},{"$f":"VLOOKUP(Table_Data_Table_135[[#This Row],[Item ID]],Analysis_Table,18,FALSE)","v":{"$error":"#N/A"}},{"$f":"VLOOKUP(Table_Data_Table_135[[#This Row],[Item ID]],Analysis_Table,19,FALSE)","v":{"$error":"#N/A"}},null,null,1]
["",null,{"$f":"VLOOKUP(Table_Data_Table_135[[#This Row],[Item ID]],Analysis_Table,20,FALSE)","v":{"$error":"#N/A"}},null,null,null,null,null,null,null,0,null,null,null,{"$f":"VLOOKUP(Table_Data_Table_135[[#This Row],[Item ID]],Analysis_Table,8,FALSE)","v":{"$error":"#N/A"}},{"$f":"VLOOKUP(Table_Data_Table_135[[#This Row],[Item ID]],Analysis_Table,9,FALSE)","v":{"$error":"#N/A"}},{"$f":"VLOOKUP(Table_Data_Table_135[[#This Row],[Item ID]],Analysis_Table,10,FALSE)","v":{"$error":"#N/A"}},{"$f":"VLOOKUP(Table_Data_Table_135[[#This Row],[Item ID]],Analysis_Table,11,FALSE)","v":{"$error":"#N/A"}},{"$f":"VLOOKUP(Table_Data_Table_135[[#This Row],[Item ID]],Analysis_Table,12,FALSE)","v":{"$error":"#N/A"}},{"$f":"VLOOKUP(Table_Data_Table_135[[#This Row],[Item ID]],Analysis_Table,13,FALSE)","v":{"$error":"#N/A"}},{"$f":"VLOOKUP(Table_Data_Table_135[[#This Row],[Item ID]],Analysis_Table,14,FALSE)","v":{"$error":"#N/A"}},{"$f":"VLOOKUP(Table_Data_Table_135[[#This Row],[Item ID]],Analysis_Table,15,FALSE)","v":{"$error":"#N/A"}},{"$f":"VLOOKUP(Table_Data_Table_135[[#This Row],[Item ID]],Analysis_Table,16,FALSE)","v":{"$error":"#N/A"}},{"$f":"VLOOKUP(Table_Data_Table_135[[#This Row],[Item ID]],Analysis_Table,17,FALSE)","v":{"$error":"#N/A"}},{"$f":"VLOOKUP(Table_Data_Table_135[[#This Row],[Item ID]],Analysis_Table,18,FALSE)","v":{"$error":"#N/A"}},{"$f":"VLOOKUP(Table_Data_Table_135[[#This Row],[Item ID]],Analysis_Table,19,FALSE)","v":{"$error":"#N/A"}},null,null,1]
["",null,{"$f":"VLOOKUP(Table_Data_Table_135[[#This Row],[Item ID]],Analysis_Table,20,FALSE)","v":{"$error":"#N/A"}},null,null,null,null,null,null,null,0,null,null,null,{"$f":"VLOOKUP(Table_Data_Table_135[[#This Row],[Item ID]],Analysis_Table,8,FALSE)","v":{"$error":"#N/A"}},{"$f":"VLOOKUP(Table_Data_Table_135[[#This Row],[Item ID]],Analysis_Table,9,FALSE)","v":{"$error":"#N/A"}},{"$f":"VLOOKUP(Table_Data_Table_135[[#This Row],[Item ID]],Analysis_Table,10,FALSE)","v":{"$error":"#N/A"}},{"$f":"VLOOKUP(Table_Data_Table_135[[#This Row],[Item ID]],Analysis_Table,11,FALSE)","v":{"$error":"#N/A"}},{"$f":"VLOOKUP(Table_Data_Table_135[[#This Row],[Item ID]],Analysis_Table,12,FALSE)","v":{"$error":"#N/A"}},{"$f":"VLOOKUP(Table_Data_Table_135[[#This Row],[Item ID]],Analysis_Table,13,FALSE)","v":{"$error":"#N/A"}},{"$f":"VLOOKUP(Table_Data_Table_135[[#This Row],[Item ID]],Analysis_Table,14,FALSE)","v":{"$error":"#N/A"}},{"$f":"VLOOKUP(Table_Data_Table_135[[#This Row],[Item ID]],Analysis_Table,15,FALSE)","v":{"$error":"#N/A"}},{"$f":"VLOOKUP(Table_Data_Table_135[[#This Row],[Item ID]],Analysis_Table,16,FALSE)","v":{"$error":"#N/A"}},{"$f":"VLOOKUP(Table_Data_Table_135[[#This Row],[Item ID]],Analysis_Table,17,FALSE)","v":{"$error":"#N/A"}},{"$f":"VLOOKUP(Table_Data_Table_135[[#This Row],[Item ID]],Analysis_Table,18,FALSE)","v":{"$error":"#N/A"}},{"$f":"VLOOKUP(Table_Data_Table_135[[#This Row],[Item ID]],Analysis_Table,19,FALSE)","v":{"$error":"#N/A"}},null,null,1]
["",null,{"$f":"VLOOKUP(Table_Data_Table_135[[#This Row],[Item ID]],Analysis_Table,20,FALSE)","v":{"$error":"#N/A"}},null,null,null,null,null,null,null,0,null,null,null,{"$f":"VLOOKUP(Table_Data_Table_135[[#This Row],[Item ID]],Analysis_Table,8,FALSE)","v":{"$error":"#N/A"}},{"$f":"VLOOKUP(Table_Data_Table_135[[#This Row],[Item ID]],Analysis_Table,9,FALSE)","v":{"$error":"#N/A"}},{"$f":"VLOOKUP(Table_Data_Table_135[[#This Row],[Item ID]],Analysis_Table,10,FALSE)","v":{"$error":"#N/A"}},{"$f":"VLOOKUP(Table_Data_Table_135[[#This Row],[Item ID]],Analysis_Table,11,FALSE)","v":{"$error":"#N/A"}},{"$f":"VLOOKUP(Table_Data_Table_135[[#This Row],[Item ID]],Analysis_Table,12,FALSE)","v":{"$error":"#N/A"}},{"$f":"VLOOKUP(Table_Data_Table_135[[#This Row],[Item ID]],Analysis_Table,13,FALSE)","v":{"$error":"#N/A"}},{"$f":"VLOOKUP(Table_Data_Table_135[[#This Row],[Item ID]],Analysis_Table,14,FALSE)","v":{"$error":"#N/A"}},{"$f":"VLOOKUP(Table_Data_Table_135[[#This Row],[Item ID]],Analysis_Table,15,FALSE)","v":{"$error":"#N/A"}},{"$f":"VLOOKUP(Table_Data_Table_135[[#This Row],[Item ID]],Analysis_Table,16,FALSE)","v":{"$error":"#N/A"}},{"$f":"VLOOKUP(Table_Data_Table_135[[#This Row],[Item ID]],Analysis_Table,17,FALSE)","v":{"$error":"#N/A"}},{"$f":"VLOOKUP(Table_Data_Table_135[[#This Row],[Item ID]],Analysis_Table,18,FALSE)","v":{"$error":"#N/A"}},{"$f":"VLOOKUP(Table_Data_Table_135[[#This Row],[Item ID]],Analysis_Table,19,FALSE)","v":{"$error":"#N/A"}},null,null,1]
["",null,{"$f":"VLOOKUP(Table_Data_Table_135[[#This Row],[Item ID]],Analysis_Table,20,FALSE)","v":{"$error":"#N/A"}},null,null,null,null,null,null,null,0,null,null,null,{"$f":"VLOOKUP(Table_Data_Table_135[[#This Row],[Item ID]],Analysis_Table,8,FALSE)","v":{"$error":"#N/A"}},{"$f":"VLOOKUP(Table_Data_Table_135[[#This Row],[Item ID]],Analysis_Table,9,FALSE)","v":{"$error":"#N/A"}},{"$f":"VLOOKUP(Table_Data_Table_135[[#This Row],[Item ID]],Analysis_Table,10,FALSE)","v":{"$error":"#N/A"}},{"$f":"VLOOKUP(Table_Data_Table_135[[#This Row],[Item ID]],Analysis_Table,11,FALSE)","v":{"$error":"#N/A"}},{"$f":"VLOOKUP(Table_Data_Table_135[[#This Row],[Item ID]],Analysis_Table,12,FALSE)","v":{"$error":"#N/A"}},{"$f":"VLOOKUP(Table_Data_Table_135[[#This Row],[Item ID]],Analysis_Table,13,FALSE)","v":{"$error":"#N/A"}},{"$f":"VLOOKUP(Table_Data_Table_135[[#This Row],[Item ID]],Analysis_Table,14,FALSE)","v":{"$error":"#N/A"}},{"$f":"VLOOKUP(Table_Data_Table_135[[#This Row],[Item ID]],Analysis_Table,15,FALSE)","v":{"$error":"#N/A"}},{"$f":"VLOOKUP(Table_Data_Table_135[[#This Row],[Item ID]],Analysis_Table,16,FALSE)","v":{"$error":"#N/A"}},{"$f":"VLOOKUP(Table_Data_Table_135[[#This Row],[Item ID]],Analysis_Table,17,FALSE)","v":{"$error":"#N/A"}},{"$f":"VLOOKUP(Table_Data_Table_135[[#This Row],[Item ID]],Analysis_Table,18,FALSE)","v":{"$error":"#N/A"}},{"$f":"VLOOKUP(Table_Data_Table_135[[#This Row],[Item ID]],Analysis_Table,19,FALSE)","v":{"$error":"#N/A"}},null,null,1]
["",null,{"$f":"VLOOKUP(Table_Data_Table_135[[#This Row],[Item ID]],Analysis_Table,20,FALSE)","v":{"$error":"#N/A"}},null,null,null,null,null,null,null,0,null,null,null,{"$f":"VLOOKUP(Table_Data_Table_135[[#This Row],[Item ID]],Analysis_Table,8,FALSE)","v":{"$error":"#N/A"}},{"$f":"VLOOKUP(Table_Data_Table_135[[#This Row],[Item ID]],Analysis_Table,9,FALSE)","v":{"$error":"#N/A"}},{"$f":"VLOOKUP(Table_Data_Table_135[[#This Row],[Item ID]],Analysis_Table,10,FALSE)","v":{"$error":"#N/A"}},{"$f":"VLOOKUP(Table_Data_Table_135[[#This Row],[Item ID]],Analysis_Table,11,FALSE)","v":{"$error":"#N/A"}},{"$f":"VLOOKUP(Table_Data_Table_135[[#This Row],[Item ID]],Analysis_Table,12,FALSE)","v":{"$error":"#N/A"}},{"$f":"VLOOKUP(Table_Data_Table_135[[#This Row],[Item ID]],Analysis_Table,13,FALSE)","v":{"$error":"#N/A"}},{"$f":"VLOOKUP(Table_Data_Table_135[[#This Row],[Item ID]],Analysis_Table,14,FALSE)","v":{"$error":"#N/A"}},{"$f":"VLOOKUP(Table_Data_Table_135[[#This Row],[Item ID]],Analysis_Table,15,FALSE)","v":{"$error":"#N/A"}},{"$f":"VLOOKUP(Table_Data_Table_135[[#This Row],[Item ID]],Analysis_Table,16,FALSE)","v":{"$error":"#N/A"}},{"$f":"VLOOKUP(Table_Data_Table_135[[#This Row],[Item ID]],Analysis_Table,17,FALSE)","v":{"$error":"#N/A"}},{"$f":"VLOOKUP(Table_Data_Table_135[[#This Row],[Item ID]],Analysis_Table,18,FALSE)","v":{"$error":"#N/A"}},{"$f":"VLOOKUP(Table_Data_Table_135[[#This Row],[Item ID]],Analysis_Table,19,FALSE)","v":{"$error":"#N/A"}},null,null,1]
["",null,{"$f":"VLOOKUP(Table_Data_Table_135[[#This Row],[Item ID]],Analysis_Table,20,FALSE)","v":{"$error":"#N/A"}},null,null,null,null,null,null,null,0,null,null,null,{"$f":"VLOOKUP(Table_Data_Table_135[[#This Row],[Item ID]],Analysis_Table,8,FALSE)","v":{"$error":"#N/A"}},{"$f":"VLOOKUP(Table_Data_Table_135[[#This Row],[Item ID]],Analysis_Table,9,FALSE)","v":{"$error":"#N/A"}},{"$f":"VLOOKUP(Table_Data_Table_135[[#This Row],[Item ID]],Analysis_Table,10,FALSE)","v":{"$error":"#N/A"}},{"$f":"VLOOKUP(Table_Data_Table_135[[#This Row],[Item ID]],Analysis_Table,11,FALSE)","v":{"$error":"#N/A"}},{"$f":"VLOOKUP(Table_Data_Table_135[[#This Row],[Item ID]],Analysis_Table,12,FALSE)","v":{"$error":"#N/A"}},{"$f":"VLOOKUP(Table_Data_Table_135[[#This Row],[Item ID]],Analysis_Table,13,FALSE)","v":{"$error":"#N/A"}},{"$f":"VLOOKUP(Table_Data_Table_135[[#This Row],[Item ID]],Analysis_Table,14,FALSE)","v":{"$error":"#N/A"}},{"$f":"VLOOKUP(Table_Data_Table_135[[#This Row],[Item ID]],Analysis_Table,15,FALSE)","v":{"$error":"#N/A"}},{"$f":"VLOOKUP(Table_Data_Table_135[[#This Row],[Item ID]],Analysis_Table,16,FALSE)","v":{"$error":"#N/A"}},{"$f":"VLOOKUP(Table_Data_Table_135[[#This Row],[Item ID]],Analysis_Table,17,FALSE)","v":{"$error":"#N/A"}},{"$f":"VLOOKUP(Table_Data_Table_135[[#This Row],[Item ID]],Analysis_Table,18,FALSE)","v":{"$error":"#N/A"}},{"$f":"VLOOKUP(Table_Data_Table_135[[#This Row],[Item ID]],Analysis_Table,19,FALSE)","v":{"$error":"#N/A"}},null,null,1]
["",null,{"$f":"VLOOKUP(Table_Data_Table_135[[#This Row],[Item ID]],Analysis_Table,20,FALSE)","v":{"$error":"#N/A"}},null,null,null,null,null,null,null,0,null,null,null,{"$f":"VLOOKUP(Table_Data_Table_135[[#This Row],[Item ID]],Analysis_Table,8,FALSE)","v":{"$error":"#N/A"}},{"$f":"VLOOKUP(Table_Data_Table_135[[#This Row],[Item ID]],Analysis_Table,9,FALSE)","v":{"$error":"#N/A"}},{"$f":"VLOOKUP(Table_Data_Table_135[[#This Row],[Item ID]],Analysis_Table,10,FALSE)","v":{"$error":"#N/A"}},{"$f":"VLOOKUP(Table_Data_Table_135[[#This Row],[Item ID]],Analysis_Table,11,FALSE)","v":{"$error":"#N/A"}},{"$f":"VLOOKUP(Table_Data_Table_135[[#This Row],[Item ID]],Analysis_Table,12,FALSE)","v":{"$error":"#N/A"}},{"$f":"VLOOKUP(Table_Data_Table_135[[#This Row],[Item ID]],Analysis_Table,13,FALSE)","v":{"$error":"#N/A"}},{"$f":"VLOOKUP(Table_Data_Table_135[[#This Row],[Item ID]],Analysis_Table,14,FALSE)","v":{"$error":"#N/A"}},{"$f":"VLOOKUP(Table_Data_Table_135[[#This Row],[Item ID]],Analysis_Table,15,FALSE)","v":{"$error":"#N/A"}},{"$f":"VLOOKUP(Table_Data_Table_135[[#This Row],[Item ID]],Analysis_Table,16,FALSE)","v":{"$error":"#N/A"}},{"$f":"VLOOKUP(Table_Data_Table_135[[#This Row],[Item ID]],Analysis_Table,17,FALSE)","v":{"$error":"#N/A"}},{"$f":"VLOOKUP(Table_Data_Table_135[[#This Row],[Item ID]],Analysis_Table,18,FALSE)","v":{"$error":"#N/A"}},{"$f":"VLOOKUP(Table_Data_Table_135[[#This Row],[Item ID]],Analysis_Table,19,FALSE)","v":{"$error":"#N/A"}},null,null,1]
["",null,{"$f":"VLOOKUP(Table_Data_Table_135[[#This Row],[Item ID]],Analysis_Table,20,FALSE)","v":{"$error":"#N/A"}},null,null,null,null,null,null,null,0,null,null,null,{"$f":"VLOOKUP(Table_Data_Table_135[[#This Row],[Item ID]],Analysis_Table,8,FALSE)","v":{"$error":"#N/A"}},{"$f":"VLOOKUP(Table_Data_Table_135[[#This Row],[Item ID]],Analysis_Table,9,FALSE)","v":{"$error":"#N/A"}},{"$f":"VLOOKUP(Table_Data_Table_135[[#This Row],[Item ID]],Analysis_Table,10,FALSE)","v":{"$error":"#N/A"}},{"$f":"VLOOKUP(Table_Data_Table_135[[#This Row],[Item ID]],Analysis_Table,11,FALSE)","v":{"$error":"#N/A"}},{"$f":"VLOOKUP(Table_Data_Table_135[[#This Row],[Item ID]],Analysis_Table,12,FALSE)","v":{"$error":"#N/A"}},{"$f":"VLOOKUP(Table_Data_Table_135[[#This Row],[Item ID]],Analysis_Table,13,FALSE)","v":{"$error":"#N/A"}},{"$f":"VLOOKUP(Table_Data_Table_135[[#This Row],[Item ID]],Analysis_Table,14,FALSE)","v":{"$error":"#N/A"}},{"$f":"VLOOKUP(Table_Data_Table_135[[#This Row],[Item ID]],Analysis_Table,15,FALSE)","v":{"$error":"#N/A"}},{"$f":"VLOOKUP(Table_Data_Table_135[[#This Row],[Item ID]],Analysis_Table,16,FALSE)","v":{"$error":"#N/A"}},{"$f":"VLOOKUP(Table_Data_Table_135[[#This Row],[Item ID]],Analysis_Table,17,FALSE)","v":{"$error":"#N/A"}},{"$f":"VLOOKUP(Table_Data_Table_135[[#This Row],[Item ID]],Analysis_Table,18,FALSE)","v":{"$error":"#N/A"}},{"$f":"VLOOKUP(Table_Data_Table_135[[#This Row],[Item ID]],Analysis_Table,19,FALSE)","v":{"$error":"#N/A"}},null,null,1]
["",null,{"$f":"VLOOKUP(Table_Data_Table_135[[#This Row],[Item ID]],Analysis_Table,20,FALSE)","v":{"$error":"#N/A"}},null,null,null,null,null,null,null,0,null,null,null,{"$f":"VLOOKUP(Table_Data_Table_135[[#This Row],[Item ID]],Analysis_Table,8,FALSE)","v":{"$error":"#N/A"}},{"$f":"VLOOKUP(Table_Data_Table_135[[#This Row],[Item ID]],Analysis_Table,9,FALSE)","v":{"$error":"#N/A"}},{"$f":"VLOOKUP(Table_Data_Table_135[[#This Row],[Item ID]],Analysis_Table,10,FALSE)","v":{"$error":"#N/A"}},{"$f":"VLOOKUP(Table_Data_Table_135[[#This Row],[Item ID]],Analysis_Table,11,FALSE)","v":{"$error":"#N/A"}},{"$f":"VLOOKUP(Table_Data_Table_135[[#This Row],[Item ID]],Analysis_Table,12,FALSE)","v":{"$error":"#N/A"}},{"$f":"VLOOKUP(Table_Data_Table_135[[#This Row],[Item ID]],Analysis_Table,13,FALSE)","v":{"$error":"#N/A"}},{"$f":"VLOOKUP(Table_Data_Table_135[[#This Row],[Item ID]],Analysis_Table,14,FALSE)","v":{"$error":"#N/A"}},{"$f":"VLOOKUP(Table_Data_Table_135[[#This Row],[Item ID]],Analysis_Table,15,FALSE)","v":{"$error":"#N/A"}},{"$f":"VLOOKUP(Table_Data_Table_135[[#This Row],[Item ID]],Analysis_Table,16,FALSE)","v":{"$error":"#N/A"}},{"$f":"VLOOKUP(Table_Data_Table_135[[#This Row],[Item ID]],Analysis_Table,17,FALSE)","v":{"$error":"#N/A"}},{"$f":"VLOOKUP(Table_Data_Table_135[[#This Row],[Item ID]],Analysis_Table,18,FALSE)","v":{"$error":"#N/A"}},{"$f":"VLOOKUP(Table_Data_Table_135[[#This Row],[Item ID]],Analysis_Table,19,FALSE)","v":{"$error":"#N/A"}},null,null,1]
["",null,{"$f":"VLOOKUP(Table_Data_Table_135[[#This Row],[Item ID]],Analysis_Table,20,FALSE)","v":{"$error":"#N/A"}},null,null,null,null,null,null,null,0,null,null,null,{"$f":"VLOOKUP(Table_Data_Table_135[[#This Row],[Item ID]],Analysis_Table,8,FALSE)","v":{"$error":"#N/A"}},{"$f":"VLOOKUP(Table_Data_Table_135[[#This Row],[Item ID]],Analysis_Table,9,FALSE)","v":{"$error":"#N/A"}},{"$f":"VLOOKUP(Table_Data_Table_135[[#This Row],[Item ID]],Analysis_Table,10,FALSE)","v":{"$error":"#N/A"}},{"$f":"VLOOKUP(Table_Data_Table_135[[#This Row],[Item ID]],Analysis_Table,11,FALSE)","v":{"$error":"#N/A"}},{"$f":"VLOOKUP(Table_Data_Table_135[[#This Row],[Item ID]],Analysis_Table,12,FALSE)","v":{"$error":"#N/A"}},{"$f":"VLOOKUP(Table_Data_Table_135[[#This Row],[Item ID]],Analysis_Table,13,FALSE)","v":{"$error":"#N/A"}},{"$f":"VLOOKUP(Table_Data_Table_135[[#This Row],[Item ID]],Analysis_Table,14,FALSE)","v":{"$error":"#N/A"}},{"$f":"VLOOKUP(Table_Data_Table_135[[#This Row],[Item ID]],Analysis_Table,15,FALSE)","v":{"$error":"#N/A"}},{"$f":"VLOOKUP(Table_Data_Table_135[[#This Row],[Item ID]],Analysis_Table,16,FALSE)","v":{"$error":"#N/A"}},{"$f":"VLOOKUP(Table_Data_Table_135[[#This Row],[Item ID]],Analysis_Table,17,FALSE)","v":{"$error":"#N/A"}},{"$f":"VLOOKUP(Table_Data_Table_135[[#This Row],[Item ID]],Analysis_Table,18,FALSE)","v":{"$error":"#N/A"}},{"$f":"VLOOKUP(Table_Data_Table_135[[#This Row],[Item ID]],Analysis_Table,19,FALSE)","v":{"$error":"#N/A"}},null,null,1]
["",null,{"$f":"VLOOKUP(Table_Data_Table_135[[#This Row],[Item ID]],Analysis_Table,20,FALSE)","v":{"$error":"#N/A"}},null,null,null,null,null,null,null,0,null,null,null,{"$f":"VLOOKUP(Table_Data_Table_135[[#This Row],[Item ID]],Analysis_Table,8,FALSE)","v":{"$error":"#N/A"}},{"$f":"VLOOKUP(Table_Data_Table_135[[#This Row],[Item ID]],Analysis_Table,9,FALSE)","v":{"$error":"#N/A"}},{"$f":"VLOOKUP(Table_Data_Table_135[[#This Row],[Item ID]],Analysis_Table,10,FALSE)","v":{"$error":"#N/A"}},{"$f":"VLOOKUP(Table_Data_Table_135[[#This Row],[Item ID]],Analysis_Table,11,FALSE)","v":{"$error":"#N/A"}},{"$f":"VLOOKUP(Table_Data_Table_135[[#This Row],[Item ID]],Analysis_Table,12,FALSE)","v":{"$error":"#N/A"}},{"$f":"VLOOKUP(Table_Data_Table_135[[#This Row],[Item ID]],Analysis_Table,13,FALSE)","v":{"$error":"#N/A"}},{"$f":"VLOOKUP(Table_Data_Table_135[[#This Row],[Item ID]],Analysis_Table,14,FALSE)","v":{"$error":"#N/A"}},{"$f":"VLOOKUP(Table_Data_Table_135[[#This Row],[Item ID]],Analysis_Table,15,FALSE)","v":{"$error":"#N/A"}},{"$f":"VLOOKUP(Table_Data_Table_135[[#This Row],[Item ID]],Analysis_Table,16,FALSE)","v":{"$error":"#N/A"}},{"$f":"VLOOKUP(Table_Data_Table_135[[#This Row],[Item ID]],Analysis_Table,17,FALSE)","v":{"$error":"#N/A"}},{"$f":"VLOOKUP(Table_Data_Table_135[[#This Row],[Item ID]],Analysis_Table,18,FALSE)","v":{"$error":"#N/A"}},{"$f":"VLOOKUP(Table_Data_Table_135[[#This Row],[Item ID]],Analysis_Table,19,FALSE)","v":{"$error":"#N/A"}},null,null,1]
["",null,{"$f":"VLOOKUP(Table_Data_Table_135[[#This Row],[Item ID]],Analysis_Table,20,FALSE)","v":{"$error":"#N/A"}},null,null,null,null,null,null,null,0,null,null,null,{"$f":"VLOOKUP(Table_Data_Table_135[[#This Row],[Item ID]],Analysis_Table,8,FALSE)","v":{"$error":"#N/A"}},{"$f":"VLOOKUP(Table_Data_Table_135[[#This Row],[Item ID]],Analysis_Table,9,FALSE)","v":{"$error":"#N/A"}},{"$f":"VLOOKUP(Table_Data_Table_135[[#This Row],[Item ID]],Analysis_Table,10,FALSE)","v":{"$error":"#N/A"}},{"$f":"VLOOKUP(Table_Data_Table_135[[#This Row],[Item ID]],Analysis_Table,11,FALSE)","v":{"$error":"#N/A"}},{"$f":"VLOOKUP(Table_Data_Table_135[[#This Row],[Item ID]],Analysis_Table,12,FALSE)","v":{"$error":"#N/A"}},{"$f":"VLOOKUP(Table_Data_Table_135[[#This Row],[Item ID]],Analysis_Table,13,FALSE)","v":{"$error":"#N/A"}},{"$f":"VLOOKUP(Table_Data_Table_135[[#This Row],[Item ID]],Analysis_Table,14,FALSE)","v":{"$error":"#N/A"}},{"$f":"VLOOKUP(Table_Data_Table_135[[#This Row],[Item ID]],Analysis_Table,15,FALSE)","v":{"$error":"#N/A"}},{"$f":"VLOOKUP(Table_Data_Table_135[[#This Row],[Item ID]],Analysis_Table,16,FALSE)","v":{"$error":"#N/A"}},{"$f":"VLOOKUP(Table_Data_Table_135[[#This Row],[Item ID]],Analysis_Table,17,FALSE)","v":{"$error":"#N/A"}},{"$f":"VLOOKUP(Table_Data_Table_135[[#This Row],[Item ID]],Analysis_Table,18,FALSE)","v":{"$error":"#N/A"}},{"$f":"VLOOKUP(Table_Data_Table_135[[#This Row],[Item ID]],Analysis_Table,19,FALSE)","v":{"$error":"#N/A"}},null,null,1]
["",null,{"$f":"VLOOKUP(Table_Data_Table_135[[#This Row],[Item ID]],Analysis_Table,20,FALSE)","v":{"$error":"#N/A"}},null,null,null,null,null,null,null,0,null,null,null,{"$f":"VLOOKUP(Table_Data_Table_135[[#This Row],[Item ID]],Analysis_Table,8,FALSE)","v":{"$error":"#N/A"}},{"$f":"VLOOKUP(Table_Data_Table_135[[#This Row],[Item ID]],Analysis_Table,9,FALSE)","v":{"$error":"#N/A"}},{"$f":"VLOOKUP(Table_Data_Table_135[[#This Row],[Item ID]],Analysis_Table,10,FALSE)","v":{"$error":"#N/A"}},{"$f":"VLOOKUP(Table_Data_Table_135[[#This Row],[Item ID]],Analysis_Table,11,FALSE)","v":{"$error":"#N/A"}},{"$f":"VLOOKUP(Table_Data_Table_135[[#This Row],[Item ID]],Analysis_Table,12,FALSE)","v":{"$error":"#N/A"}},{"$f":"VLOOKUP(Table_Data_Table_135[[#This Row],[Item ID]],Analysis_Table,13,FALSE)","v":{"$error":"#N/A"}},{"$f":"VLOOKUP(Table_Data_Table_135[[#This Row],[Item ID]],Analysis_Table,14,FALSE)","v":{"$error":"#N/A"}},{"$f":"VLOOKUP(Table_Data_Table_135[[#This Row],[Item ID]],Analysis_Table,15,FALSE)","v":{"$error":"#N/A"}},{"$f":"VLOOKUP(Table_Data_Table_135[[#This Row],[Item ID]],Analysis_Table,16,FALSE)","v":{"$error":"#N/A"}},{"$f":"VLOOKUP(Table_Data_Table_135[[#This Row],[Item ID]],Analysis_Table,17,FALSE)","v":{"$error":"#N/A"}},{"$f":"VLOOKUP(Table_Data_Table_135[[#This Row],[Item ID]],Analysis_Table,18,FALSE)","v":{"$error":"#N/A"}},{"$f":"VLOOKUP(Table_Data_Table_135[[#This Row],[Item ID]],Analysis_Table,19,FALSE)","v":{"$error":"#N/A"}},null,null,1]
["",null,{"$f":"VLOOKUP(Table_Data_Table_135[[#This Row],[Item ID]],Analysis_Table,20,FALSE)","v":{"$error":"#N/A"}},null,null,null,null,null,null,null,0,null,null,null,{"$f":"VLOOKUP(Table_Data_Table_135[[#This Row],[Item ID]],Analysis_Table,8,FALSE)","v":{"$error":"#N/A"}},{"$f":"VLOOKUP(Table_Data_Table_135[[#This Row],[Item ID]],Analysis_Table,9,FALSE)","v":{"$error":"#N/A"}},{"$f":"VLOOKUP(Table_Data_Table_135[[#This Row],[Item ID]],Analysis_Table,10,FALSE)","v":{"$error":"#N/A"}},{"$f":"VLOOKUP(Table_Data_Table_135[[#This Row],[Item ID]],Analysis_Table,11,FALSE)","v":{"$error":"#N/A"}},{"$f":"VLOOKUP(Table_Data_Table_135[[#This Row],[Item ID]],Analysis_Table,12,FALSE)","v":{"$error":"#N/A"}},{"$f":"VLOOKUP(Table_Data_Table_135[[#This Row],[Item ID]],Analysis_Table,13,FALSE)","v":{"$error":"#N/A"}},{"$f":"VLOOKUP(Table_Data_Table_135[[#This Row],[Item ID]],Analysis_Table,14,FALSE)","v":{"$error":"#N/A"}},{"$f":"VLOOKUP(Table_Data_Table_135[[#This Row],[Item ID]],Analysis_Table,15,FALSE)","v":{"$error":"#N/A"}},{"$f":"VLOOKUP(Table_Data_Table_135[[#This Row],[Item ID]],Analysis_Table,16,FALSE)","v":{"$error":"#N/A"}},{"$f":"VLOOKUP(Table_Data_Table_135[[#This Row],[Item ID]],Analysis_Table,17,FALSE)","v":{"$error":"#N/A"}},{"$f":"VLOOKUP(Table_Data_Table_135[[#This Row],[Item ID]],Analysis_Table,18,FALSE)","v":{"$error":"#N/A"}},{"$f":"VLOOKUP(Table_Data_Table_135[[#This Row],[Item ID]],Analysis_Table,19,FALSE)","v":{"$error":"#N/A"}},null,null,1]
["",null,{"$f":"VLOOKUP(Table_Data_Table_135[[#This Row],[Item ID]],Analysis_Table,20,FALSE)","v":{"$error":"#N/A"}},null,null,null,null,null,null,null,0,null,null,null,{"$f":"VLOOKUP(Table_Data_Table_135[[#This Row],[Item ID]],Analysis_Table,8,FALSE)","v":{"$error":"#N/A"}},{"$f":"VLOOKUP(Table_Data_Table_135[[#This Row],[Item ID]],Analysis_Table,9,FALSE)","v":{"$error":"#N/A"}},{"$f":"VLOOKUP(Table_Data_Table_135[[#This Row],[Item ID]],Analysis_Table,10,FALSE)","v":{"$error":"#N/A"}},{"$f":"VLOOKUP(Table_Data_Table_135[[#This Row],[Item ID]],Analysis_Table,11,FALSE)","v":{"$error":"#N/A"}},{"$f":"VLOOKUP(Table_Data_Table_135[[#This Row],[Item ID]],Analysis_Table,12,FALSE)","v":{"$error":"#N/A"}},{"$f":"VLOOKUP(Table_Data_Table_135[[#This Row],[Item ID]],Analysis_Table,13,FALSE)","v":{"$error":"#N/A"}},{"$f":"VLOOKUP(Table_Data_Table_135[[#This Row],[Item ID]],Analysis_Table,14,FALSE)","v":{"$error":"#N/A"}},{"$f":"VLOOKUP(Table_Data_Table_135[[#This Row],[Item ID]],Analysis_Table,15,FALSE)","v":{"$error":"#N/A"}},{"$f":"VLOOKUP(Table_Data_Table_135[[#This Row],[Item ID]],Analysis_Table,16,FALSE)","v":{"$error":"#N/A"}},{"$f":"VLOOKUP(Table_Data_Table_135[[#This Row],[Item ID]],Analysis_Table,17,FALSE)","v":{"$error":"#N/A"}},{"$f":"VLOOKUP(Table_Data_Table_135[[#This Row],[Item ID]],Analysis_Table,18,FALSE)","v":{"$error":"#N/A"}},{"$f":"VLOOKUP(Table_Data_Table_135[[#This Row],[Item ID]],Analysis_Table,19,FALSE)","v":{"$error":"#N/A"}},null,null,1]
["",null,{"$f":"VLOOKUP(Table_Data_Table_135[[#This Row],[Item ID]],Analysis_Table,20,FALSE)","v":{"$error":"#N/A"}},null,null,null,null,null,null,null,0,null,null,null,{"$f":"VLOOKUP(Table_Data_Table_135[[#This Row],[Item ID]],Analysis_Table,8,FALSE)","v":{"$error":"#N/A"}},{"$f":"VLOOKUP(Table_Data_Table_135[[#This Row],[Item ID]],Analysis_Table,9,FALSE)","v":{"$error":"#N/A"}},{"$f":"VLOOKUP(Table_Data_Table_135[[#This Row],[Item ID]],Analysis_Table,10,FALSE)","v":{"$error":"#N/A"}},{"$f":"VLOOKUP(Table_Data_Table_135[[#This Row],[Item ID]],Analysis_Table,11,FALSE)","v":{"$error":"#N/A"}},{"$f":"VLOOKUP(Table_Data_Table_135[[#This Row],[Item ID]],Analysis_Table,12,FALSE)","v":{"$error":"#N/A"}},{"$f":"VLOOKUP(Table_Data_Table_135[[#This Row],[Item ID]],Analysis_Table,13,FALSE)","v":{"$error":"#N/A"}},{"$f":"VLOOKUP(Table_Data_Table_135[[#This Row],[Item ID]],Analysis_Table,14,FALSE)","v":{"$error":"#N/A"}},{"$f":"VLOOKUP(Table_Data_Table_135[[#This Row],[Item ID]],Analysis_Table,15,FALSE)","v":{"$error":"#N/A"}},{"$f":"VLOOKUP(Table_Data_Table_135[[#This Row],[Item ID]],Analysis_Table,16,FALSE)","v":{"$error":"#N/A"}},{"$f":"VLOOKUP(Table_Data_Table_135[[#This Row],[Item ID]],Analysis_Table,17,FALSE)","v":{"$error":"#N/A"}},{"$f":"VLOOKUP(Table_Data_Table_135[[#This Row],[Item ID]],Analysis_Table,18,FALSE)","v":{"$error":"#N/A"}},{"$f":"VLOOKUP(Table_Data_Table_135[[#This Row],[Item ID]],Analysis_Table,19,FALSE)","v":{"$error":"#N/A"}},null,null,1]
["",null,{"$f":"VLOOKUP(Table_Data_Table_135[[#This Row],[Item ID]],Analysis_Table,20,FALSE)","v":{"$error":"#N/A"}},null,null,null,null,null,null,null,0,null,null,null,{"$f":"VLOOKUP(Table_Data_Table_135[[#This Row],[Item ID]],Analysis_Table,8,FALSE)","v":{"$error":"#N/A"}},{"$f":"VLOOKUP(Table_Data_Table_135[[#This Row],[Item ID]],Analysis_Table,9,FALSE)","v":{"$error":"#N/A"}},{"$f":"VLOOKUP(Table_Data_Table_135[[#This Row],[Item ID]],Analysis_Table,10,FALSE)","v":{"$error":"#N/A"}},{"$f":"VLOOKUP(Table_Data_Table_135[[#This Row],[Item ID]],Analysis_Table,11,FALSE)","v":{"$error":"#N/A"}},{"$f":"VLOOKUP(Table_Data_Table_135[[#This Row],[Item ID]],Analysis_Table,12,FALSE)","v":{"$error":"#N/A"}},{"$f":"VLOOKUP(Table_Data_Table_135[[#This Row],[Item ID]],Analysis_Table,13,FALSE)","v":{"$error":"#N/A"}},{"$f":"VLOOKUP(Table_Data_Table_135[[#This Row],[Item ID]],Analysis_Table,14,FALSE)","v":{"$error":"#N/A"}},{"$f":"VLOOKUP(Table_Data_Table_135[[#This Row],[Item ID]],Analysis_Table,15,FALSE)","v":{"$error":"#N/A"}},{"$f":"VLOOKUP(Table_Data_Table_135[[#This Row],[Item ID]],Analysis_Table,16,FALSE)","v":{"$error":"#N/A"}},{"$f":"VLOOKUP(Table_Data_Table_135[[#This Row],[Item ID]],Analysis_Table,17,FALSE)","v":{"$error":"#N/A"}},{"$f":"VLOOKUP(Table_Data_Table_135[[#This Row],[Item ID]],Analysis_Table,18,FALSE)","v":{"$error":"#N/A"}},{"$f":"VLOOKUP(Table_Data_Table_135[[#This Row],[Item ID]],Analysis_Table,19,FALSE)","v":{"$error":"#N/A"}},null,null,1]
["",null,{"$f":"VLOOKUP(Table_Data_Table_135[[#This Row],[Item ID]],Analysis_Table,20,FALSE)","v":{"$error":"#N/A"}},null,null,null,null,null,null,null,0,null,null,null,{"$f":"VLOOKUP(Table_Data_Table_135[[#This Row],[Item ID]],Analysis_Table,8,FALSE)","v":{"$error":"#N/A"}},{"$f":"VLOOKUP(Table_Data_Table_135[[#This Row],[Item ID]],Analysis_Table,9,FALSE)","v":{"$error":"#N/A"}},{"$f":"VLOOKUP(Table_Data_Table_135[[#This Row],[Item ID]],Analysis_Table,10,FALSE)","v":{"$error":"#N/A"}},{"$f":"VLOOKUP(Table_Data_Table_135[[#This Row],[Item ID]],Analysis_Table,11,FALSE)","v":{"$error":"#N/A"}},{"$f":"VLOOKUP(Table_Data_Table_135[[#This Row],[Item ID]],Analysis_Table,12,FALSE)","v":{"$error":"#N/A"}},{"$f":"VLOOKUP(Table_Data_Table_135[[#This Row],[Item ID]],Analysis_Table,13,FALSE)","v":{"$error":"#N/A"}},{"$f":"VLOOKUP(Table_Data_Table_135[[#This Row],[Item ID]],Analysis_Table,14,FALSE)","v":{"$error":"#N/A"}},{"$f":"VLOOKUP(Table_Data_Table_135[[#This Row],[Item ID]],Analysis_Table,15,FALSE)","v":{"$error":"#N/A"}},{"$f":"VLOOKUP(Table_Data_Table_135[[#This Row],[Item ID]],Analysis_Table,16,FALSE)","v":{"$error":"#N/A"}},{"$f":"VLOOKUP(Table_Data_Table_135[[#This Row],[Item ID]],Analysis_Table,17,FALSE)","v":{"$error":"#N/A"}},{"$f":"VLOOKUP(Table_Data_Table_135[[#This Row],[Item ID]],Analysis_Table,18,FALSE)","v":{"$error":"#N/A"}},{"$f":"VLOOKUP(Table_Data_Table_135[[#This Row],[Item ID]],Analysis_Table,19,FALSE)","v":{"$error":"#N/A"}},null,null,1]
["",null,{"$f":"VLOOKUP(Table_Data_Table_135[[#This Row],[Item ID]],Analysis_Table,20,FALSE)","v":{"$error":"#N/A"}},null,null,null,null,null,null,null,0,null,null,null,{"$f":"VLOOKUP(Table_Data_Table_135[[#This Row],[Item ID]],Analysis_Table,8,FALSE)","v":{"$error":"#N/A"}},{"$f":"VLOOKUP(Table_Data_Table_135[[#This Row],[Item ID]],Analysis_Table,9,FALSE)","v":{"$error":"#N/A"}},{"$f":"VLOOKUP(Table_Data_Table_135[[#This Row],[Item ID]],Analysis_Table,10,FALSE)","v":{"$error":"#N/A"}},{"$f":"VLOOKUP(Table_Data_Table_135[[#This Row],[Item ID]],Analysis_Table,11,FALSE)","v":{"$error":"#N/A"}},{"$f":"VLOOKUP(Table_Data_Table_135[[#This Row],[Item ID]],Analysis_Table,12,FALSE)","v":{"$error":"#N/A"}},{"$f":"VLOOKUP(Table_Data_Table_135[[#This Row],[Item ID]],Analysis_Table,13,FALSE)","v":{"$error":"#N/A"}},{"$f":"VLOOKUP(Table_Data_Table_135[[#This Row],[Item ID]],Analysis_Table,14,FALSE)","v":{"$error":"#N/A"}},{"$f":"VLOOKUP(Table_Data_Table_135[[#This Row],[Item ID]],Analysis_Table,15,FALSE)","v":{"$error":"#N/A"}},{"$f":"VLOOKUP(Table_Data_Table_135[[#This Row],[Item ID]],Analysis_Table,16,FALSE)","v":{"$error":"#N/A"}},{"$f":"VLOOKUP(Table_Data_Table_135[[#This Row],[Item ID]],Analysis_Table,17,FALSE)","v":{"$error":"#N/A"}},{"$f":"VLOOKUP(Table_Data_Table_135[[#This Row],[Item ID]],Analysis_Table,18,FALSE)","v":{"$error":"#N/A"}},{"$f":"VLOOKUP(Table_Data_Table_135[[#This Row],[Item ID]],Analysis_Table,19,FALSE)","v":{"$error":"#N/A"}},null,null,1]
["",null,{"$f":"VLOOKUP(Table_Data_Table_135[[#This Row],[Item ID]],Analysis_Table,20,FALSE)","v":{"$error":"#N/A"}},null,null,null,null,null,null,null,0,null,null,null,{"$f":"VLOOKUP(Table_Data_Table_135[[#This Row],[Item ID]],Analysis_Table,8,FALSE)","v":{"$error":"#N/A"}},{"$f":"VLOOKUP(Table_Data_Table_135[[#This Row],[Item ID]],Analysis_Table,9,FALSE)","v":{"$error":"#N/A"}},{"$f":"VLOOKUP(Table_Data_Table_135[[#This Row],[Item ID]],Analysis_Table,10,FALSE)","v":{"$error":"#N/A"}},{"$f":"VLOOKUP(Table_Data_Table_135[[#This Row],[Item ID]],Analysis_Table,11,FALSE)","v":{"$error":"#N/A"}},{"$f":"VLOOKUP(Table_Data_Table_135[[#This Row],[Item ID]],Analysis_Table,12,FALSE)","v":{"$error":"#N/A"}},{"$f":"VLOOKUP(Table_Data_Table_135[[#This Row],[Item ID]],Analysis_Table,13,FALSE)","v":{"$error":"#N/A"}},{"$f":"VLOOKUP(Table_Data_Table_135[[#This Row],[Item ID]],Analysis_Table,14,FALSE)","v":{"$error":"#N/A"}},{"$f":"VLOOKUP(Table_Data_Table_135[[#This Row],[Item ID]],Analysis_Table,15,FALSE)","v":{"$error":"#N/A"}},{"$f":"VLOOKUP(Table_Data_Table_135[[#This Row],[Item ID]],Analysis_Table,16,FALSE)","v":{"$error":"#N/A"}},{"$f":"VLOOKUP(Table_Data_Table_135[[#This Row],[Item ID]],Analysis_Table,17,FALSE)","v":{"$error":"#N/A"}},{"$f":"VLOOKUP(Table_Data_Table_135[[#This Row],[Item ID]],Analysis_Table,18,FALSE)","v":{"$error":"#N/A"}},{"$f":"VLOOKUP(Table_Data_Table_135[[#This Row],[Item ID]],Analysis_Table,19,FALSE)","v":{"$error":"#N/A"}},null,null,1]
["",null,{"$f":"VLOOKUP(Table_Data_Table_135[[#This Row],[Item ID]],Analysis_Table,20,FALSE)","v":{"$error":"#N/A"}},null,null,null,null,null,null,null,0,null,null,null,{"$f":"VLOOKUP(Table_Data_Table_135[[#This Row],[Item ID]],Analysis_Table,8,FALSE)","v":{"$error":"#N/A"}},{"$f":"VLOOKUP(Table_Data_Table_135[[#This Row],[Item ID]],Analysis_Table,9,FALSE)","v":{"$error":"#N/A"}},{"$f":"VLOOKUP(Table_Data_Table_135[[#This Row],[Item ID]],Analysis_Table,10,FALSE)","v":{"$error":"#N/A"}},{"$f":"VLOOKUP(Table_Data_Table_135[[#This Row],[Item ID]],Analysis_Table,11,FALSE)","v":{"$error":"#N/A"}},{"$f":"VLOOKUP(Table_Data_Table_135[[#This Row],[Item ID]],Analysis_Table,12,FALSE)","v":{"$error":"#N/A"}},{"$f":"VLOOKUP(Table_Data_Table_135[[#This Row],[Item ID]],Analysis_Table,13,FALSE)","v":{"$error":"#N/A"}},{"$f":"VLOOKUP(Table_Data_Table_135[[#This Row],[Item ID]],Analysis_Table,14,FALSE)","v":{"$error":"#N/A"}},{"$f":"VLOOKUP(Table_Data_Table_135[[#This Row],[Item ID]],Analysis_Table,15,FALSE)","v":{"$error":"#N/A"}},{"$f":"VLOOKUP(Table_Data_Table_135[[#This Row],[Item ID]],Analysis_Table,16,FALSE)","v":{"$error":"#N/A"}},{"$f":"VLOOKUP(Table_Data_Table_135[[#This Row],[Item ID]],Analysis_Table,17,FALSE)","v":{"$error":"#N/A"}},{"$f":"VLOOKUP(Table_Data_Table_135[[#This Row],[Item ID]],Analysis_Table,18,FALSE)","v":{"$error":"#N/A"}},{"$f":"VLOOKUP(Table_Data_Table_135[[#This Row],[Item ID]],Analysis_Table,19,FALSE)","v":{"$error":"#N/A"}},null,null,1]
["",null,{"$f":"VLOOKUP(Table_Data_Table_135[[#This Row],[Item ID]],Analysis_Table,20,FALSE)","v":{"$error":"#N/A"}},null,null,null,null,null,null,null,0,null,null,null,{"$f":"VLOOKUP(Table_Data_Table_135[[#This Row],[Item ID]],Analysis_Table,8,FALSE)","v":{"$error":"#N/A"}},{"$f":"VLOOKUP(Table_Data_Table_135[[#This Row],[Item ID]],Analysis_Table,9,FALSE)","v":{"$error":"#N/A"}},{"$f":"VLOOKUP(Table_Data_Table_135[[#This Row],[Item ID]],Analysis_Table,10,FALSE)","v":{"$error":"#N/A"}},{"$f":"VLOOKUP(Table_Data_Table_135[[#This Row],[Item ID]],Analysis_Table,11,FALSE)","v":{"$error":"#N/A"}},{"$f":"VLOOKUP(Table_Data_Table_135[[#This Row],[Item ID]],Analysis_Table,12,FALSE)","v":{"$error":"#N/A"}},{"$f":"VLOOKUP(Table_Data_Table_135[[#This Row],[Item ID]],Analysis_Table,13,FALSE)","v":{"$error":"#N/A"}},{"$f":"VLOOKUP(Table_Data_Table_135[[#This Row],[Item ID]],Analysis_Table,14,FALSE)","v":{"$error":"#N/A"}},{"$f":"VLOOKUP(Table_Data_Table_135[[#This Row],[Item ID]],Analysis_Table,15,FALSE)","v":{"$error":"#N/A"}},{"$f":"VLOOKUP(Table_Data_Table_135[[#This Row],[Item ID]],Analysis_Table,16,FALSE)","v":{"$error":"#N/A"}},{"$f":"VLOOKUP(Table_Data_Table_135[[#This Row],[Item ID]],Analysis_Table,17,FALSE)","v":{"$error":"#N/A"}},{"$f":"VLOOKUP(Table_Data_Table_135[[#This Row],[Item ID]],Analysis_Table,18,FALSE)","v":{"$error":"#N/A"}},{"$f":"VLOOKUP(Table_Data_Table_135[[#This Row],[Item ID]],Analysis_Table,19,FALSE)","v":{"$error":"#N/A"}},null,null,1]
["",null,{"$f":"VLOOKUP(Table_Data_Table_135[[#This Row],[Item ID]],Analysis_Table,20,FALSE)","v":{"$error":"#N/A"}},null,null,null,null,null,null,null,0,null,null,null,{"$f":"VLOOKUP(Table_Data_Table_135[[#This Row],[Item ID]],Analysis_Table,8,FALSE)","v":{"$error":"#N/A"}},{"$f":"VLOOKUP(Table_Data_Table_135[[#This Row],[Item ID]],Analysis_Table,9,FALSE)","v":{"$error":"#N/A"}},{"$f":"VLOOKUP(Table_Data_Table_135[[#This Row],[Item ID]],Analysis_Table,10,FALSE)","v":{"$error":"#N/A"}},{"$f":"VLOOKUP(Table_Data_Table_135[[#This Row],[Item ID]],Analysis_Table,11,FALSE)","v":{"$error":"#N/A"}},{"$f":"VLOOKUP(Table_Data_Table_135[[#This Row],[Item ID]],Analysis_Table,12,FALSE)","v":{"$error":"#N/A"}},{"$f":"VLOOKUP(Table_Data_Table_135[[#This Row],[Item ID]],Analysis_Table,13,FALSE)","v":{"$error":"#N/A"}},{"$f":"VLOOKUP(Table_Data_Table_135[[#This Row],[Item ID]],Analysis_Table,14,FALSE)","v":{"$error":"#N/A"}},{"$f":"VLOOKUP(Table_Data_Table_135[[#This Row],[Item ID]],Analysis_Table,15,FALSE)","v":{"$error":"#N/A"}},{"$f":"VLOOKUP(Table_Data_Table_135[[#This Row],[Item ID]],Analysis_Table,16,FALSE)","v":{"$error":"#N/A"}},{"$f":"VLOOKUP(Table_Data_Table_135[[#This Row],[Item ID]],Analysis_Table,17,FALSE)","v":{"$error":"#N/A"}},{"$f":"VLOOKUP(Table_Data_Table_135[[#This Row],[Item ID]],Analysis_Table,18,FALSE)","v":{"$error":"#N/A"}},{"$f":"VLOOKUP(Table_Data_Table_135[[#This Row],[Item ID]],Analysis_Table,19,FALSE)","v":{"$error":"#N/A"}},null,null,1]
["",null,{"$f":"VLOOKUP(Table_Data_Table_135[[#This Row],[Item ID]],Analysis_Table,20,FALSE)","v":{"$error":"#N/A"}},null,null,null,null,null,null,null,0,null,null,null,{"$f":"VLOOKUP(Table_Data_Table_135[[#This Row],[Item ID]],Analysis_Table,8,FALSE)","v":{"$error":"#N/A"}},{"$f":"VLOOKUP(Table_Data_Table_135[[#This Row],[Item ID]],Analysis_Table,9,FALSE)","v":{"$error":"#N/A"}},{"$f":"VLOOKUP(Table_Data_Table_135[[#This Row],[Item ID]],Analysis_Table,10,FALSE)","v":{"$error":"#N/A"}},{"$f":"VLOOKUP(Table_Data_Table_135[[#This Row],[Item ID]],Analysis_Table,11,FALSE)","v":{"$error":"#N/A"}},{"$f":"VLOOKUP(Table_Data_Table_135[[#This Row],[Item ID]],Analysis_Table,12,FALSE)","v":{"$error":"#N/A"}},{"$f":"VLOOKUP(Table_Data_Table_135[[#This Row],[Item ID]],Analysis_Table,13,FALSE)","v":{"$error":"#N/A"}},{"$f":"VLOOKUP(Table_Data_Table_135[[#This Row],[Item ID]],Analysis_Table,14,FALSE)","v":{"$error":"#N/A"}},{"$f":"VLOOKUP(Table_Data_Table_135[[#This Row],[Item ID]],Analysis_Table,15,FALSE)","v":{"$error":"#N/A"}},{"$f":"VLOOKUP(Table_Data_Table_135[[#This Row],[Item ID]],Analysis_Table,16,FALSE)","v":{"$error":"#N/A"}},{"$f":"VLOOKUP(Table_Data_Table_135[[#This Row],[Item ID]],Analysis_Table,17,FALSE)","v":{"$error":"#N/A"}},{"$f":"VLOOKUP(Table_Data_Table_135[[#This Row],[Item ID]],Analysis_Table,18,FALSE)","v":{"$error":"#N/A"}},{"$f":"VLOOKUP(Table_Data_Table_135[[#This Row],[Item ID]],Analysis_Table,19,FALSE)","v":{"$error":"#N/A"}},null,null,1]
["",null,{"$f":"VLOOKUP(Table_Data_Table_135[[#This Row],[Item ID]],Analysis_Table,20,FALSE)","v":{"$error":"#N/A"}},null,null,null,null,null,null,null,0,null,null,null,{"$f":"VLOOKUP(Table_Data_Table_135[[#This Row],[Item ID]],Analysis_Table,8,FALSE)","v":{"$error":"#N/A"}},{"$f":"VLOOKUP(Table_Data_Table_135[[#This Row],[Item ID]],Analysis_Table,9,FALSE)","v":{"$error":"#N/A"}},{"$f":"VLOOKUP(Table_Data_Table_135[[#This Row],[Item ID]],Analysis_Table,10,FALSE)","v":{"$error":"#N/A"}},{"$f":"VLOOKUP(Table_Data_Table_135[[#This Row],[Item ID]],Analysis_Table,11,FALSE)","v":{"$error":"#N/A"}},{"$f":"VLOOKUP(Table_Data_Table_135[[#This Row],[Item ID]],Analysis_Table,12,FALSE)","v":{"$error":"#N/A"}},{"$f":"VLOOKUP(Table_Data_Table_135[[#This Row],[Item ID]],Analysis_Table,13,FALSE)","v":{"$error":"#N/A"}},{"$f":"VLOOKUP(Table_Data_Table_135[[#This Row],[Item ID]],Analysis_Table,14,FALSE)","v":{"$error":"#N/A"}},{"$f":"VLOOKUP(Table_Data_Table_135[[#This Row],[Item ID]],Analysis_Table,15,FALSE)","v":{"$error":"#N/A"}},{"$f":"VLOOKUP(Table_Data_Table_135[[#This Row],[Item ID]],Analysis_Table,16,FALSE)","v":{"$error":"#N/A"}},{"$f":"VLOOKUP(Table_Data_Table_135[[#This Row],[Item ID]],Analysis_Table,17,FALSE)","v":{"$error":"#N/A"}},{"$f":"VLOOKUP(Table_Data_Table_135[[#This Row],[Item ID]],Analysis_Table,18,FALSE)","v":{"$error":"#N/A"}},{"$f":"VLOOKUP(Table_Data_Table_135[[#This Row],[Item ID]],Analysis_Table,19,FALSE)","v":{"$error":"#N/A"}},null,null,1]
["",null,{"$f":"VLOOKUP(Table_Data_Table_135[[#This Row],[Item ID]],Analysis_Table,20,FALSE)","v":{"$error":"#N/A"}},null,null,null,null,null,null,null,0,null,null,null,{"$f":"VLOOKUP(Table_Data_Table_135[[#This Row],[Item ID]],Analysis_Table,8,FALSE)","v":{"$error":"#N/A"}},{"$f":"VLOOKUP(Table_Data_Table_135[[#This Row],[Item ID]],Analysis_Table,9,FALSE)","v":{"$error":"#N/A"}},{"$f":"VLOOKUP(Table_Data_Table_135[[#This Row],[Item ID]],Analysis_Table,10,FALSE)","v":{"$error":"#N/A"}},{"$f":"VLOOKUP(Table_Data_Table_135[[#This Row],[Item ID]],Analysis_Table,11,FALSE)","v":{"$error":"#N/A"}},{"$f":"VLOOKUP(Table_Data_Table_135[[#This Row],[Item ID]],Analysis_Table,12,FALSE)","v":{"$error":"#N/A"}},{"$f":"VLOOKUP(Table_Data_Table_135[[#This Row],[Item ID]],Analysis_Table,13,FALSE)","v":{"$error":"#N/A"}},{"$f":"VLOOKUP(Table_Data_Table_135[[#This Row],[Item ID]],Analysis_Table,14,FALSE)","v":{"$error":"#N/A"}},{"$f":"VLOOKUP(Table_Data_Table_135[[#This Row],[Item ID]],Analysis_Table,15,FALSE)","v":{"$error":"#N/A"}},{"$f":"VLOOKUP(Table_Data_Table_135[[#This Row],[Item ID]],Analysis_Table,16,FALSE)","v":{"$error":"#N/A"}},{"$f":"VLOOKUP(Table_Data_Table_135[[#This Row],[Item ID]],Analysis_Table,17,FALSE)","v":{"$error":"#N/A"}},{"$f":"VLOOKUP(Table_Data_Table_135[[#This Row],[Item ID]],Analysis_Table,18,FALSE)","v":{"$error":"#N/A"}},{"$f":"VLOOKUP(Table_Data_Table_135[[#This Row],[Item ID]],Analysis_Table,19,FALSE)","v":{"$error":"#N/A"}},null,null,1]
["",null,{"$f":"VLOOKUP(Table_Data_Table_135[[#This Row],[Item ID]],Analysis_Table,20,FALSE)","v":{"$error":"#N/A"}},null,null,null,null,null,null,null,0,null,null,null,{"$f":"VLOOKUP(Table_Data_Table_135[[#This Row],[Item ID]],Analysis_Table,8,FALSE)","v":{"$error":"#N/A"}},{"$f":"VLOOKUP(Table_Data_Table_135[[#This Row],[Item ID]],Analysis_Table,9,FALSE)","v":{"$error":"#N/A"}},{"$f":"VLOOKUP(Table_Data_Table_135[[#This Row],[Item ID]],Analysis_Table,10,FALSE)","v":{"$error":"#N/A"}},{"$f":"VLOOKUP(Table_Data_Table_135[[#This Row],[Item ID]],Analysis_Table,11,FALSE)","v":{"$error":"#N/A"}},{"$f":"VLOOKUP(Table_Data_Table_135[[#This Row],[Item ID]],Analysis_Table,12,FALSE)","v":{"$error":"#N/A"}},{"$f":"VLOOKUP(Table_Data_Table_135[[#This Row],[Item ID]],Analysis_Table,13,FALSE)","v":{"$error":"#N/A"}},{"$f":"VLOOKUP(Table_Data_Table_135[[#This Row],[Item ID]],Analysis_Table,14,FALSE)","v":{"$error":"#N/A"}},{"$f":"VLOOKUP(Table_Data_Table_135[[#This Row],[Item ID]],Analysis_Table,15,FALSE)","v":{"$error":"#N/A"}},{"$f":"VLOOKUP(Table_Data_Table_135[[#This Row],[Item ID]],Analysis_Table,16,FALSE)","v":{"$error":"#N/A"}},{"$f":"VLOOKUP(Table_Data_Table_135[[#This Row],[Item ID]],Analysis_Table,17,FALSE)","v":{"$error":"#N/A"}},{"$f":"VLOOKUP(Table_Data_Table_135[[#This Row],[Item ID]],Analysis_Table,18,FALSE)","v":{"$error":"#N/A"}},{"$f":"VLOOKUP(Table_Data_Table_135[[#This Row],[Item ID]],Analysis_Table,19,FALSE)","v":{"$error":"#N/A"}},null,null,1]
["",null,{"$f":"VLOOKUP(Table_Data_Table_135[[#This Row],[Item ID]],Analysis_Table,20,FALSE)","v":{"$error":"#N/A"}},null,null,null,null,null,null,null,0,null,null,null,{"$f":"VLOOKUP(Table_Data_Table_135[[#This Row],[Item ID]],Analysis_Table,8,FALSE)","v":{"$error":"#N/A"}},{"$f":"VLOOKUP(Table_Data_Table_135[[#This Row],[Item ID]],Analysis_Table,9,FALSE)","v":{"$error":"#N/A"}},{"$f":"VLOOKUP(Table_Data_Table_135[[#This Row],[Item ID]],Analysis_Table,10,FALSE)","v":{"$error":"#N/A"}},{"$f":"VLOOKUP(Table_Data_Table_135[[#This Row],[Item ID]],Analysis_Table,11,FALSE)","v":{"$error":"#N/A"}},{"$f":"VLOOKUP(Table_Data_Table_135[[#This Row],[Item ID]],Analysis_Table,12,FALSE)","v":{"$error":"#N/A"}},{"$f":"VLOOKUP(Table_Data_Table_135[[#This Row],[Item ID]],Analysis_Table,13,FALSE)","v":{"$error":"#N/A"}},{"$f":"VLOOKUP(Table_Data_Table_135[[#This Row],[Item ID]],Analysis_Table,14,FALSE)","v":{"$error":"#N/A"}},{"$f":"VLOOKUP(Table_Data_Table_135[[#This Row],[Item ID]],Analysis_Table,15,FALSE)","v":{"$error":"#N/A"}},{"$f":"VLOOKUP(Table_Data_Table_135[[#This Row],[Item ID]],Analysis_Table,16,FALSE)","v":{"$error":"#N/A"}},{"$f":"VLOOKUP(Table_Data_Table_135[[#This Row],[Item ID]],Analysis_Table,17,FALSE)","v":{"$error":"#N/A"}},{"$f":"VLOOKUP(Table_Data_Table_135[[#This Row],[Item ID]],Analysis_Table,18,FALSE)","v":{"$error":"#N/A"}},{"$f":"VLOOKUP(Table_Data_Table_135[[#This Row],[Item ID]],Analysis_Table,19,FALSE)","v":{"$error":"#N/A"}},null,null,1]
["",null,{"$f":"VLOOKUP(Table_Data_Table_135[[#This Row],[Item ID]],Analysis_Table,20,FALSE)","v":{"$error":"#N/A"}},null,null,null,null,null,null,null,0,null,null,null,{"$f":"VLOOKUP(Table_Data_Table_135[[#This Row],[Item ID]],Analysis_Table,8,FALSE)","v":{"$error":"#N/A"}},{"$f":"VLOOKUP(Table_Data_Table_135[[#This Row],[Item ID]],Analysis_Table,9,FALSE)","v":{"$error":"#N/A"}},{"$f":"VLOOKUP(Table_Data_Table_135[[#This Row],[Item ID]],Analysis_Table,10,FALSE)","v":{"$error":"#N/A"}},{"$f":"VLOOKUP(Table_Data_Table_135[[#This Row],[Item ID]],Analysis_Table,11,FALSE)","v":{"$error":"#N/A"}},{"$f":"VLOOKUP(Table_Data_Table_135[[#This Row],[Item ID]],Analysis_Table,12,FALSE)","v":{"$error":"#N/A"}},{"$f":"VLOOKUP(Table_Data_Table_135[[#This Row],[Item ID]],Analysis_Table,13,FALSE)","v":{"$error":"#N/A"}},{"$f":"VLOOKUP(Table_Data_Table_135[[#This Row],[Item ID]],Analysis_Table,14,FALSE)","v":{"$error":"#N/A"}},{"$f":"VLOOKUP(Table_Data_Table_135[[#This Row],[Item ID]],Analysis_Table,15,FALSE)","v":{"$error":"#N/A"}},{"$f":"VLOOKUP(Table_Data_Table_135[[#This Row],[Item ID]],Analysis_Table,16,FALSE)","v":{"$error":"#N/A"}},{"$f":"VLOOKUP(Table_Data_Table_135[[#This Row],[Item ID]],Analysis_Table,17,FALSE)","v":{"$error":"#N/A"}},{"$f":"VLOOKUP(Table_Data_Table_135[[#This Row],[Item ID]],Analysis_Table,18,FALSE)","v":{"$error":"#N/A"}},{"$f":"VLOOKUP(Table_Data_Table_135[[#This Row],[Item ID]],Analysis_Table,19,FALSE)","v":{"$error":"#N/A"}},null,null,1]
["",null,{"$f":"VLOOKUP(Table_Data_Table_135[[#This Row],[Item ID]],Analysis_Table,20,FALSE)","v":{"$error":"#N/A"}},null,null,null,null,null,null,null,0,null,null,null,{"$f":"VLOOKUP(Table_Data_Table_135[[#This Row],[Item ID]],Analysis_Table,8,FALSE)","v":{"$error":"#N/A"}},{"$f":"VLOOKUP(Table_Data_Table_135[[#This Row],[Item ID]],Analysis_Table,9,FALSE)","v":{"$error":"#N/A"}},{"$f":"VLOOKUP(Table_Data_Table_135[[#This Row],[Item ID]],Analysis_Table,10,FALSE)","v":{"$error":"#N/A"}},{"$f":"VLOOKUP(Table_Data_Table_135[[#This Row],[Item ID]],Analysis_Table,11,FALSE)","v":{"$error":"#N/A"}},{"$f":"VLOOKUP(Table_Data_Table_135[[#This Row],[Item ID]],Analysis_Table,12,FALSE)","v":{"$error":"#N/A"}},{"$f":"VLOOKUP(Table_Data_Table_135[[#This Row],[Item ID]],Analysis_Table,13,FALSE)","v":{"$error":"#N/A"}},{"$f":"VLOOKUP(Table_Data_Table_135[[#This Row],[Item ID]],Analysis_Table,14,FALSE)","v":{"$error":"#N/A"}},{"$f":"VLOOKUP(Table_Data_Table_135[[#This Row],[Item ID]],Analysis_Table,15,FALSE)","v":{"$error":"#N/A"}},{"$f":"VLOOKUP(Table_Data_Table_135[[#This Row],[Item ID]],Analysis_Table,16,FALSE)","v":{"$error":"#N/A"}},{"$f":"VLOOKUP(Table_Data_Table_135[[#This Row],[Item ID]],Analysis_Table,17,FALSE)","v":{"$error":"#N/A"}},{"$f":"VLOOKUP(Table_Data_Table_135[[#This Row],[Item ID]],Analysis_Table,18,FALSE)","v":{"$error":"#N/A"}},{"$f":"VLOOKUP(Table_Data_Table_135[[#This Row],[Item ID]],Analysis_Table,19,FALSE)","v":{"$error":"#N/A"}},null,null,1]
["",null,{"$f":"VLOOKUP(Table_Data_Table_135[[#This Row],[Item ID]],Analysis_Table,20,FALSE)","v":{"$error":"#N/A"}},null,null,null,null,null,null,null,0,null,null,null,{"$f":"VLOOKUP(Table_Data_Table_135[[#This Row],[Item ID]],Analysis_Table,8,FALSE)","v":{"$error":"#N/A"}},{"$f":"VLOOKUP(Table_Data_Table_135[[#This Row],[Item ID]],Analysis_Table,9,FALSE)","v":{"$error":"#N/A"}},{"$f":"VLOOKUP(Table_Data_Table_135[[#This Row],[Item ID]],Analysis_Table,10,FALSE)","v":{"$error":"#N/A"}},{"$f":"VLOOKUP(Table_Data_Table_135[[#This Row],[Item ID]],Analysis_Table,11,FALSE)","v":{"$error":"#N/A"}},{"$f":"VLOOKUP(Table_Data_Table_135[[#This Row],[Item ID]],Analysis_Table,12,FALSE)","v":{"$error":"#N/A"}},{"$f":"VLOOKUP(Table_Data_Table_135[[#This Row],[Item ID]],Analysis_Table,13,FALSE)","v":{"$error":"#N/A"}},{"$f":"VLOOKUP(Table_Data_Table_135[[#This Row],[Item ID]],Analysis_Table,14,FALSE)","v":{"$error":"#N/A"}},{"$f":"VLOOKUP(Table_Data_Table_135[[#This Row],[Item ID]],Analysis_Table,15,FALSE)","v":{"$error":"#N/A"}},{"$f":"VLOOKUP(Table_Data_Table_135[[#This Row],[Item ID]],Analysis_Table,16,FALSE)","v":{"$error":"#N/A"}},{"$f":"VLOOKUP(Table_Data_Table_135[[#This Row],[Item ID]],Analysis_Table,17,FALSE)","v":{"$error":"#N/A"}},{"$f":"VLOOKUP(Table_Data_Table_135[[#This Row],[Item ID]],Analysis_Table,18,FALSE)","v":{"$error":"#N/A"}},{"$f":"VLOOKUP(Table_Data_Table_135[[#This Row],[Item ID]],Analysis_Table,19,FALSE)","v":{"$error":"#N/A"}},null,null,1]
["",null,{"$f":"VLOOKUP(Table_Data_Table_135[[#This Row],[Item ID]],Analysis_Table,20,FALSE)","v":{"$error":"#N/A"}},null,null,null,null,null,null,null,0,null,null,null,{"$f":"VLOOKUP(Table_Data_Table_135[[#This Row],[Item ID]],Analysis_Table,8,FALSE)","v":{"$error":"#N/A"}},{"$f":"VLOOKUP(Table_Data_Table_135[[#This Row],[Item ID]],Analysis_Table,9,FALSE)","v":{"$error":"#N/A"}},{"$f":"VLOOKUP(Table_Data_Table_135[[#This Row],[Item ID]],Analysis_Table,10,FALSE)","v":{"$error":"#N/A"}},{"$f":"VLOOKUP(Table_Data_Table_135[[#This Row],[Item ID]],Analysis_Table,11,FALSE)","v":{"$error":"#N/A"}},{"$f":"VLOOKUP(Table_Data_Table_135[[#This Row],[Item ID]],Analysis_Table,12,FALSE)","v":{"$error":"#N/A"}},{"$f":"VLOOKUP(Table_Data_Table_135[[#This Row],[Item ID]],Analysis_Table,13,FALSE)","v":{"$error":"#N/A"}},{"$f":"VLOOKUP(Table_Data_Table_135[[#This Row],[Item ID]],Analysis_Table,14,FALSE)","v":{"$error":"#N/A"}},{"$f":"VLOOKUP(Table_Data_Table_135[[#This Row],[Item ID]],Analysis_Table,15,FALSE)","v":{"$error":"#N/A"}},{"$f":"VLOOKUP(Table_Data_Table_135[[#This Row],[Item ID]],Analysis_Table,16,FALSE)","v":{"$error":"#N/A"}},{"$f":"VLOOKUP(Table_Data_Table_135[[#This Row],[Item ID]],Analysis_Table,17,FALSE)","v":{"$error":"#N/A"}},{"$f":"VLOOKUP(Table_Data_Table_135[[#This Row],[Item ID]],Analysis_Table,18,FALSE)","v":{"$error":"#N/A"}},{"$f":"VLOOKUP(Table_Data_Table_135[[#This Row],[Item ID]],Analysis_Table,19,FALSE)","v":{"$error":"#N/A"}},null,null,1]
["",null,{"$f":"VLOOKUP(Table_Data_Table_135[[#This Row],[Item ID]],Analysis_Table,20,FALSE)","v":{"$error":"#N/A"}},null,null,null,null,null,null,null,0,null,null,null,{"$f":"VLOOKUP(Table_Data_Table_135[[#This Row],[Item ID]],Analysis_Table,8,FALSE)","v":{"$error":"#N/A"}},{"$f":"VLOOKUP(Table_Data_Table_135[[#This Row],[Item ID]],Analysis_Table,9,FALSE)","v":{"$error":"#N/A"}},{"$f":"VLOOKUP(Table_Data_Table_135[[#This Row],[Item ID]],Analysis_Table,10,FALSE)","v":{"$error":"#N/A"}},{"$f":"VLOOKUP(Table_Data_Table_135[[#This Row],[Item ID]],Analysis_Table,11,FALSE)","v":{"$error":"#N/A"}},{"$f":"VLOOKUP(Table_Data_Table_135[[#This Row],[Item ID]],Analysis_Table,12,FALSE)","v":{"$error":"#N/A"}},{"$f":"VLOOKUP(Table_Data_Table_135[[#This Row],[Item ID]],Analysis_Table,13,FALSE)","v":{"$error":"#N/A"}},{"$f":"VLOOKUP(Table_Data_Table_135[[#This Row],[Item ID]],Analysis_Table,14,FALSE)","v":{"$error":"#N/A"}},{"$f":"VLOOKUP(Table_Data_Table_135[[#This Row],[Item ID]],Analysis_Table,15,FALSE)","v":{"$error":"#N/A"}},{"$f":"VLOOKUP(Table_Data_Table_135[[#This Row],[Item ID]],Analysis_Table,16,FALSE)","v":{"$error":"#N/A"}},{"$f":"VLOOKUP(Table_Data_Table_135[[#This Row],[Item ID]],Analysis_Table,17,FALSE)","v":{"$error":"#N/A"}},{"$f":"VLOOKUP(Table_Data_Table_135[[#This Row],[Item ID]],Analysis_Table,18,FALSE)","v":{"$error":"#N/A"}},{"$f":"VLOOKUP(Table_Data_Table_135[[#This Row],[Item ID]],Analysis_Table,19,FALSE)","v":{"$error":"#N/A"}},null,null,1]
["",null,{"$f":"VLOOKUP(Table_Data_Table_135[[#This Row],[Item ID]],Analysis_Table,20,FALSE)","v":{"$error":"#N/A"}},null,null,null,null,null,null,null,0,null,null,null,{"$f":"VLOOKUP(Table_Data_Table_135[[#This Row],[Item ID]],Analysis_Table,8,FALSE)","v":{"$error":"#N/A"}},{"$f":"VLOOKUP(Table_Data_Table_135[[#This Row],[Item ID]],Analysis_Table,9,FALSE)","v":{"$error":"#N/A"}},{"$f":"VLOOKUP(Table_Data_Table_135[[#This Row],[Item ID]],Analysis_Table,10,FALSE)","v":{"$error":"#N/A"}},{"$f":"VLOOKUP(Table_Data_Table_135[[#This Row],[Item ID]],Analysis_Table,11,FALSE)","v":{"$error":"#N/A"}},{"$f":"VLOOKUP(Table_Data_Table_135[[#This Row],[Item ID]],Analysis_Table,12,FALSE)","v":{"$error":"#N/A"}},{"$f":"VLOOKUP(Table_Data_Table_135[[#This Row],[Item ID]],Analysis_Table,13,FALSE)","v":{"$error":"#N/A"}},{"$f":"VLOOKUP(Table_Data_Table_135[[#This Row],[Item ID]],Analysis_Table,14,FALSE)","v":{"$error":"#N/A"}},{"$f":"VLOOKUP(Table_Data_Table_135[[#This Row],[Item ID]],Analysis_Table,15,FALSE)","v":{"$error":"#N/A"}},{"$f":"VLOOKUP(Table_Data_Table_135[[#This Row],[Item ID]],Analysis_Table,16,FALSE)","v":{"$error":"#N/A"}},{"$f":"VLOOKUP(Table_Data_Table_135[[#This Row],[Item ID]],Analysis_Table,17,FALSE)","v":{"$error":"#N/A"}},{"$f":"VLOOKUP(Table_Data_Table_135[[#This Row],[Item ID]],Analysis_Table,18,FALSE)","v":{"$error":"#N/A"}},{"$f":"VLOOKUP(Table_Data_Table_135[[#This Row],[Item ID]],Analysis_Table,19,FALSE)","v":{"$error":"#N/A"}},null,null,1]
["",null,{"$f":"VLOOKUP(Table_Data_Table_135[[#This Row],[Item ID]],Analysis_Table,20,FALSE)","v":{"$error":"#N/A"}},null,null,null,null,null,null,null,0,null,null,null,{"$f":"VLOOKUP(Table_Data_Table_135[[#This Row],[Item ID]],Analysis_Table,8,FALSE)","v":{"$error":"#N/A"}},{"$f":"VLOOKUP(Table_Data_Table_135[[#This Row],[Item ID]],Analysis_Table,9,FALSE)","v":{"$error":"#N/A"}},{"$f":"VLOOKUP(Table_Data_Table_135[[#This Row],[Item ID]],Analysis_Table,10,FALSE)","v":{"$error":"#N/A"}},{"$f":"VLOOKUP(Table_Data_Table_135[[#This Row],[Item ID]],Analysis_Table,11,FALSE)","v":{"$error":"#N/A"}},{"$f":"VLOOKUP(Table_Data_Table_135[[#This Row],[Item ID]],Analysis_Table,12,FALSE)","v":{"$error":"#N/A"}},{"$f":"VLOOKUP(Table_Data_Table_135[[#This Row],[Item ID]],Analysis_Table,13,FALSE)","v":{"$error":"#N/A"}},{"$f":"VLOOKUP(Table_Data_Table_135[[#This Row],[Item ID]],Analysis_Table,14,FALSE)","v":{"$error":"#N/A"}},{"$f":"VLOOKUP(Table_Data_Table_135[[#This Row],[Item ID]],Analysis_Table,15,FALSE)","v":{"$error":"#N/A"}},{"$f":"VLOOKUP(Table_Data_Table_135[[#This Row],[Item ID]],Analysis_Table,16,FALSE)","v":{"$error":"#N/A"}},{"$f":"VLOOKUP(Table_Data_Table_135[[#This Row],[Item ID]],Analysis_Table,17,FALSE)","v":{"$error":"#N/A"}},{"$f":"VLOOKUP(Table_Data_Table_135[[#This Row],[Item ID]],Analysis_Table,18,FALSE)","v":{"$error":"#N/A"}},{"$f":"VLOOKUP(Table_Data_Table_135[[#This Row],[Item ID]],Analysis_Table,19,FALSE)","v":{"$error":"#N/A"}},null,null,1]
["",null,{"$f":"VLOOKUP(Table_Data_Table_135[[#This Row],[Item ID]],Analysis_Table,20,FALSE)","v":{"$error":"#N/A"}},null,null,null,null,null,null,null,0,null,null,null,{"$f":"VLOOKUP(Table_Data_Table_135[[#This Row],[Item ID]],Analysis_Table,8,FALSE)","v":{"$error":"#N/A"}},{"$f":"VLOOKUP(Table_Data_Table_135[[#This Row],[Item ID]],Analysis_Table,9,FALSE)","v":{"$error":"#N/A"}},{"$f":"VLOOKUP(Table_Data_Table_135[[#This Row],[Item ID]],Analysis_Table,10,FALSE)","v":{"$error":"#N/A"}},{"$f":"VLOOKUP(Table_Data_Table_135[[#This Row],[Item ID]],Analysis_Table,11,FALSE)","v":{"$error":"#N/A"}},{"$f":"VLOOKUP(Table_Data_Table_135[[#This Row],[Item ID]],Analysis_Table,12,FALSE)","v":{"$error":"#N/A"}},{"$f":"VLOOKUP(Table_Data_Table_135[[#This Row],[Item ID]],Analysis_Table,13,FALSE)","v":{"$error":"#N/A"}},{"$f":"VLOOKUP(Table_Data_Table_135[[#This Row],[Item ID]],Analysis_Table,14,FALSE)","v":{"$error":"#N/A"}},{"$f":"VLOOKUP(Table_Data_Table_135[[#This Row],[Item ID]],Analysis_Table,15,FALSE)","v":{"$error":"#N/A"}},{"$f":"VLOOKUP(Table_Data_Table_135[[#This Row],[Item ID]],Analysis_Table,16,FALSE)","v":{"$error":"#N/A"}},{"$f":"VLOOKUP(Table_Data_Table_135[[#This Row],[Item ID]],Analysis_Table,17,FALSE)","v":{"$error":"#N/A"}},{"$f":"VLOOKUP(Table_Data_Table_135[[#This Row],[Item ID]],Analysis_Table,18,FALSE)","v":{"$error":"#N/A"}},{"$f":"VLOOKUP(Table_Data_Table_135[[#This Row],[Item ID]],Analysis_Table,19,FALSE)","v":{"$error":"#N/A"}},null,null,1]
["",null,{"$f":"VLOOKUP(Table_Data_Table_135[[#This Row],[Item ID]],Analysis_Table,20,FALSE)","v":{"$error":"#N/A"}},null,null,null,null,null,null,null,0,null,null,null,{"$f":"VLOOKUP(Table_Data_Table_135[[#This Row],[Item ID]],Analysis_Table,8,FALSE)","v":{"$error":"#N/A"}},{"$f":"VLOOKUP(Table_Data_Table_135[[#This Row],[Item ID]],Analysis_Table,9,FALSE)","v":{"$error":"#N/A"}},{"$f":"VLOOKUP(Table_Data_Table_135[[#This Row],[Item ID]],Analysis_Table,10,FALSE)","v":{"$error":"#N/A"}},{"$f":"VLOOKUP(Table_Data_Table_135[[#This Row],[Item ID]],Analysis_Table,11,FALSE)","v":{"$error":"#N/A"}},{"$f":"VLOOKUP(Table_Data_Table_135[[#This Row],[Item ID]],Analysis_Table,12,FALSE)","v":{"$error":"#N/A"}},{"$f":"VLOOKUP(Table_Data_Table_135[[#This Row],[Item ID]],Analysis_Table,13,FALSE)","v":{"$error":"#N/A"}},{"$f":"VLOOKUP(Table_Data_Table_135[[#This Row],[Item ID]],Analysis_Table,14,FALSE)","v":{"$error":"#N/A"}},{"$f":"VLOOKUP(Table_Data_Table_135[[#This Row],[Item ID]],Analysis_Table,15,FALSE)","v":{"$error":"#N/A"}},{"$f":"VLOOKUP(Table_Data_Table_135[[#This Row],[Item ID]],Analysis_Table,16,FALSE)","v":{"$error":"#N/A"}},{"$f":"VLOOKUP(Table_Data_Table_135[[#This Row],[Item ID]],Analysis_Table,17,FALSE)","v":{"$error":"#N/A"}},{"$f":"VLOOKUP(Table_Data_Table_135[[#This Row],[Item ID]],Analysis_Table,18,FALSE)","v":{"$error":"#N/A"}},{"$f":"VLOOKUP(Table_Data_Table_135[[#This Row],[Item ID]],Analysis_Table,19,FALSE)","v":{"$error":"#N/A"}},null,null,1]
["",null,{"$f":"VLOOKUP(Table_Data_Table_135[[#This Row],[Item ID]],Analysis_Table,20,FALSE)","v":{"$error":"#N/A"}},null,null,null,null,null,null,null,0,null,null,null,{"$f":"VLOOKUP(Table_Data_Table_135[[#This Row],[Item ID]],Analysis_Table,8,FALSE)","v":{"$error":"#N/A"}},{"$f":"VLOOKUP(Table_Data_Table_135[[#This Row],[Item ID]],Analysis_Table,9,FALSE)","v":{"$error":"#N/A"}},{"$f":"VLOOKUP(Table_Data_Table_135[[#This Row],[Item ID]],Analysis_Table,10,FALSE)","v":{"$error":"#N/A"}},{"$f":"VLOOKUP(Table_Data_Table_135[[#This Row],[Item ID]],Analysis_Table,11,FALSE)","v":{"$error":"#N/A"}},{"$f":"VLOOKUP(Table_Data_Table_135[[#This Row],[Item ID]],Analysis_Table,12,FALSE)","v":{"$error":"#N/A"}},{"$f":"VLOOKUP(Table_Data_Table_135[[#This Row],[Item ID]],Analysis_Table,13,FALSE)","v":{"$error":"#N/A"}},{"$f":"VLOOKUP(Table_Data_Table_135[[#This Row],[Item ID]],Analysis_Table,14,FALSE)","v":{"$error":"#N/A"}},{"$f":"VLOOKUP(Table_Data_Table_135[[#This Row],[Item ID]],Analysis_Table,15,FALSE)","v":{"$error":"#N/A"}},{"$f":"VLOOKUP(Table_Data_Table_135[[#This Row],[Item ID]],Analysis_Table,16,FALSE)","v":{"$error":"#N/A"}},{"$f":"VLOOKUP(Table_Data_Table_135[[#This Row],[Item ID]],Analysis_Table,17,FALSE)","v":{"$error":"#N/A"}},{"$f":"VLOOKUP(Table_Data_Table_135[[#This Row],[Item ID]],Analysis_Table,18,FALSE)","v":{"$error":"#N/A"}},{"$f":"VLOOKUP(Table_Data_Table_135[[#This Row],[Item ID]],Analysis_Table,19,FALSE)","v":{"$error":"#N/A"}},null,null,1]
["",null,{"$f":"VLOOKUP(Table_Data_Table_135[[#This Row],[Item ID]],Analysis_Table,20,FALSE)","v":{"$error":"#N/A"}},null,null,null,null,null,null,null,0,null,null,null,{"$f":"VLOOKUP(Table_Data_Table_135[[#This Row],[Item ID]],Analysis_Table,8,FALSE)","v":{"$error":"#N/A"}},{"$f":"VLOOKUP(Table_Data_Table_135[[#This Row],[Item ID]],Analysis_Table,9,FALSE)","v":{"$error":"#N/A"}},{"$f":"VLOOKUP(Table_Data_Table_135[[#This Row],[Item ID]],Analysis_Table,10,FALSE)","v":{"$error":"#N/A"}},{"$f":"VLOOKUP(Table_Data_Table_135[[#This Row],[Item ID]],Analysis_Table,11,FALSE)","v":{"$error":"#N/A"}},{"$f":"VLOOKUP(Table_Data_Table_135[[#This Row],[Item ID]],Analysis_Table,12,FALSE)","v":{"$error":"#N/A"}},{"$f":"VLOOKUP(Table_Data_Table_135[[#This Row],[Item ID]],Analysis_Table,13,FALSE)","v":{"$error":"#N/A"}},{"$f":"VLOOKUP(Table_Data_Table_135[[#This Row],[Item ID]],Analysis_Table,14,FALSE)","v":{"$error":"#N/A"}},{"$f":"VLOOKUP(Table_Data_Table_135[[#This Row],[Item ID]],Analysis_Table,15,FALSE)","v":{"$error":"#N/A"}},{"$f":"VLOOKUP(Table_Data_Table_135[[#This Row],[Item ID]],Analysis_Table,16,FALSE)","v":{"$error":"#N/A"}},{"$f":"VLOOKUP(Table_Data_Table_135[[#This Row],[Item ID]],Analysis_Table,17,FALSE)","v":{"$error":"#N/A"}},{"$f":"VLOOKUP(Table_Data_Table_135[[#This Row],[Item ID]],Analysis_Table,18,FALSE)","v":{"$error":"#N/A"}},{"$f":"VLOOKUP(Table_Data_Table_135[[#This Row],[Item ID]],Analysis_Table,19,FALSE)","v":{"$error":"#N/A"}},null,null,1]
["",null,{"$f":"VLOOKUP(Table_Data_Table_135[[#This Row],[Item ID]],Analysis_Table,20,FALSE)","v":{"$error":"#N/A"}},null,null,null,null,null,null,null,0,null,null,null,{"$f":"VLOOKUP(Table_Data_Table_135[[#This Row],[Item ID]],Analysis_Table,8,FALSE)","v":{"$error":"#N/A"}},{"$f":"VLOOKUP(Table_Data_Table_135[[#This Row],[Item ID]],Analysis_Table,9,FALSE)","v":{"$error":"#N/A"}},{"$f":"VLOOKUP(Table_Data_Table_135[[#This Row],[Item ID]],Analysis_Table,10,FALSE)","v":{"$error":"#N/A"}},{"$f":"VLOOKUP(Table_Data_Table_135[[#This Row],[Item ID]],Analysis_Table,11,FALSE)","v":{"$error":"#N/A"}},{"$f":"VLOOKUP(Table_Data_Table_135[[#This Row],[Item ID]],Analysis_Table,12,FALSE)","v":{"$error":"#N/A"}},{"$f":"VLOOKUP(Table_Data_Table_135[[#This Row],[Item ID]],Analysis_Table,13,FALSE)","v":{"$error":"#N/A"}},{"$f":"VLOOKUP(Table_Data_Table_135[[#This Row],[Item ID]],Analysis_Table,14,FALSE)","v":{"$error":"#N/A"}},{"$f":"VLOOKUP(Table_Data_Table_135[[#This Row],[Item ID]],Analysis_Table,15,FALSE)","v":{"$error":"#N/A"}},{"$f":"VLOOKUP(Table_Data_Table_135[[#This Row],[Item ID]],Analysis_Table,16,FALSE)","v":{"$error":"#N/A"}},{"$f":"VLOOKUP(Table_Data_Table_135[[#This Row],[Item ID]],Analysis_Table,17,FALSE)","v":{"$error":"#N/A"}},{"$f":"VLOOKUP(Table_Data_Table_135[[#This Row],[Item ID]],Analysis_Table,18,FALSE)","v":{"$error":"#N/A"}},{"$f":"VLOOKUP(Table_Data_Table_135[[#This Row],[Item ID]],Analysis_Table,19,FALSE)","v":{"$error":"#N/A"}},null,null,1]
["",null,{"$f":"VLOOKUP(Table_Data_Table_135[[#This Row],[Item ID]],Analysis_Table,20,FALSE)","v":{"$error":"#N/A"}},null,null,null,null,null,null,null,0,null,null,null,{"$f":"VLOOKUP(Table_Data_Table_135[[#This Row],[Item ID]],Analysis_Table,8,FALSE)","v":{"$error":"#N/A"}},{"$f":"VLOOKUP(Table_Data_Table_135[[#This Row],[Item ID]],Analysis_Table,9,FALSE)","v":{"$error":"#N/A"}},{"$f":"VLOOKUP(Table_Data_Table_135[[#This Row],[Item ID]],Analysis_Table,10,FALSE)","v":{"$error":"#N/A"}},{"$f":"VLOOKUP(Table_Data_Table_135[[#This Row],[Item ID]],Analysis_Table,11,FALSE)","v":{"$error":"#N/A"}},{"$f":"VLOOKUP(Table_Data_Table_135[[#This Row],[Item ID]],Analysis_Table,12,FALSE)","v":{"$error":"#N/A"}},{"$f":"VLOOKUP(Table_Data_Table_135[[#This Row],[Item ID]],Analysis_Table,13,FALSE)","v":{"$error":"#N/A"}},{"$f":"VLOOKUP(Table_Data_Table_135[[#This Row],[Item ID]],Analysis_Table,14,FALSE)","v":{"$error":"#N/A"}},{"$f":"VLOOKUP(Table_Data_Table_135[[#This Row],[Item ID]],Analysis_Table,15,FALSE)","v":{"$error":"#N/A"}},{"$f":"VLOOKUP(Table_Data_Table_135[[#This Row],[Item ID]],Analysis_Table,16,FALSE)","v":{"$error":"#N/A"}},{"$f":"VLOOKUP(Table_Data_Table_135[[#This Row],[Item ID]],Analysis_Table,17,FALSE)","v":{"$error":"#N/A"}},{"$f":"VLOOKUP(Table_Data_Table_135[[#This Row],[Item ID]],Analysis_Table,18,FALSE)","v":{"$error":"#N/A"}},{"$f":"VLOOKUP(Table_Data_Table_135[[#This Row],[Item ID]],Analysis_Table,19,FALSE)","v":{"$error":"#N/A"}},null,null,1]
["",null,{"$f":"VLOOKUP(Table_Data_Table_135[[#This Row],[Item ID]],Analysis_Table,20,FALSE)","v":{"$error":"#N/A"}},null,null,null,null,null,null,null,0,null,null,null,{"$f":"VLOOKUP(Table_Data_Table_135[[#This Row],[Item ID]],Analysis_Table,8,FALSE)","v":{"$error":"#N/A"}},{"$f":"VLOOKUP(Table_Data_Table_135[[#This Row],[Item ID]],Analysis_Table,9,FALSE)","v":{"$error":"#N/A"}},{"$f":"VLOOKUP(Table_Data_Table_135[[#This Row],[Item ID]],Analysis_Table,10,FALSE)","v":{"$error":"#N/A"}},{"$f":"VLOOKUP(Table_Data_Table_135[[#This Row],[Item ID]],Analysis_Table,11,FALSE)","v":{"$error":"#N/A"}},{"$f":"VLOOKUP(Table_Data_Table_135[[#This Row],[Item ID]],Analysis_Table,12,FALSE)","v":{"$error":"#N/A"}},{"$f":"VLOOKUP(Table_Data_Table_135[[#This Row],[Item ID]],Analysis_Table,13,FALSE)","v":{"$error":"#N/A"}},{"$f":"VLOOKUP(Table_Data_Table_135[[#This Row],[Item ID]],Analysis_Table,14,FALSE)","v":{"$error":"#N/A"}},{"$f":"VLOOKUP(Table_Data_Table_135[[#This Row],[Item ID]],Analysis_Table,15,FALSE)","v":{"$error":"#N/A"}},{"$f":"VLOOKUP(Table_Data_Table_135[[#This Row],[Item ID]],Analysis_Table,16,FALSE)","v":{"$error":"#N/A"}},{"$f":"VLOOKUP(Table_Data_Table_135[[#This Row],[Item ID]],Analysis_Table,17,FALSE)","v":{"$error":"#N/A"}},{"$f":"VLOOKUP(Table_Data_Table_135[[#This Row],[Item ID]],Analysis_Table,18,FALSE)","v":{"$error":"#N/A"}},{"$f":"VLOOKUP(Table_Data_Table_135[[#This Row],[Item ID]],Analysis_Table,19,FALSE)","v":{"$error":"#N/A"}},null,null,1]
["",null,{"$f":"VLOOKUP(Table_Data_Table_135[[#This Row],[Item ID]],Analysis_Table,20,FALSE)","v":{"$error":"#N/A"}},null,null,null,null,null,null,null,0,null,null,null,{"$f":"VLOOKUP(Table_Data_Table_135[[#This Row],[Item ID]],Analysis_Table,8,FALSE)","v":{"$error":"#N/A"}},{"$f":"VLOOKUP(Table_Data_Table_135[[#This Row],[Item ID]],Analysis_Table,9,FALSE)","v":{"$error":"#N/A"}},{"$f":"VLOOKUP(Table_Data_Table_135[[#This Row],[Item ID]],Analysis_Table,10,FALSE)","v":{"$error":"#N/A"}},{"$f":"VLOOKUP(Table_Data_Table_135[[#This Row],[Item ID]],Analysis_Table,11,FALSE)","v":{"$error":"#N/A"}},{"$f":"VLOOKUP(Table_Data_Table_135[[#This Row],[Item ID]],Analysis_Table,12,FALSE)","v":{"$error":"#N/A"}},{"$f":"VLOOKUP(Table_Data_Table_135[[#This Row],[Item ID]],Analysis_Table,13,FALSE)","v":{"$error":"#N/A"}},{"$f":"VLOOKUP(Table_Data_Table_135[[#This Row],[Item ID]],Analysis_Table,14,FALSE)","v":{"$error":"#N/A"}},{"$f":"VLOOKUP(Table_Data_Table_135[[#This Row],[Item ID]],Analysis_Table,15,FALSE)","v":{"$error":"#N/A"}},{"$f":"VLOOKUP(Table_Data_Table_135[[#This Row],[Item ID]],Analysis_Table,16,FALSE)","v":{"$error":"#N/A"}},{"$f":"VLOOKUP(Table_Data_Table_135[[#This Row],[Item ID]],Analysis_Table,17,FALSE)","v":{"$error":"#N/A"}},{"$f":"VLOOKUP(Table_Data_Table_135[[#This Row],[Item ID]],Analysis_Table,18,FALSE)","v":{"$error":"#N/A"}},{"$f":"VLOOKUP(Table_Data_Table_135[[#This Row],[Item ID]],Analysis_Table,19,FALSE)","v":{"$error":"#N/A"}},null,null,1]
["",null,{"$f":"VLOOKUP(Table_Data_Table_135[[#This Row],[Item ID]],Analysis_Table,20,FALSE)","v":{"$error":"#N/A"}},null,null,null,null,null,null,null,0,null,null,null,{"$f":"VLOOKUP(Table_Data_Table_135[[#This Row],[Item ID]],Analysis_Table,8,FALSE)","v":{"$error":"#N/A"}},{"$f":"VLOOKUP(Table_Data_Table_135[[#This Row],[Item ID]],Analysis_Table,9,FALSE)","v":{"$error":"#N/A"}},{"$f":"VLOOKUP(Table_Data_Table_135[[#This Row],[Item ID]],Analysis_Table,10,FALSE)","v":{"$error":"#N/A"}},{"$f":"VLOOKUP(Table_Data_Table_135[[#This Row],[Item ID]],Analysis_Table,11,FALSE)","v":{"$error":"#N/A"}},{"$f":"VLOOKUP(Table_Data_Table_135[[#This Row],[Item ID]],Analysis_Table,12,FALSE)","v":{"$error":"#N/A"}},{"$f":"VLOOKUP(Table_Data_Table_135[[#This Row],[Item ID]],Analysis_Table,13,FALSE)","v":{"$error":"#N/A"}},{"$f":"VLOOKUP(Table_Data_Table_135[[#This Row],[Item ID]],Analysis_Table,14,FALSE)","v":{"$error":"#N/A"}},{"$f":"VLOOKUP(Table_Data_Table_135[[#This Row],[Item ID]],Analysis_Table,15,FALSE)","v":{"$error":"#N/A"}},{"$f":"VLOOKUP(Table_Data_Table_135[[#This Row],[Item ID]],Analysis_Table,16,FALSE)","v":{"$error":"#N/A"}},{"$f":"VLOOKUP(Table_Data_Table_135[[#This Row],[Item ID]],Analysis_Table,17,FALSE)","v":{"$error":"#N/A"}},{"$f":"VLOOKUP(Table_Data_Table_135[[#This Row],[Item ID]],Analysis_Table,18,FALSE)","v":{"$error":"#N/A"}},{"$f":"VLOOKUP(Table_Data_Table_135[[#This Row],[Item ID]],Analysis_Table,19,FALSE)","v":{"$error":"#N/A"}},null,null,1]
["",null,{"$f":"VLOOKUP(Table_Data_Table_135[[#This Row],[Item ID]],Analysis_Table,20,FALSE)","v":{"$error":"#N/A"}},null,null,null,null,null,null,null,0,null,null,null,{"$f":"VLOOKUP(Table_Data_Table_135[[#This Row],[Item ID]],Analysis_Table,8,FALSE)","v":{"$error":"#N/A"}},{"$f":"VLOOKUP(Table_Data_Table_135[[#This Row],[Item ID]],Analysis_Table,9,FALSE)","v":{"$error":"#N/A"}},{"$f":"VLOOKUP(Table_Data_Table_135[[#This Row],[Item ID]],Analysis_Table,10,FALSE)","v":{"$error":"#N/A"}},{"$f":"VLOOKUP(Table_Data_Table_135[[#This Row],[Item ID]],Analysis_Table,11,FALSE)","v":{"$error":"#N/A"}},{"$f":"VLOOKUP(Table_Data_Table_135[[#This Row],[Item ID]],Analysis_Table,12,FALSE)","v":{"$error":"#N/A"}},{"$f":"VLOOKUP(Table_Data_Table_135[[#This Row],[Item ID]],Analysis_Table,13,FALSE)","v":{"$error":"#N/A"}},{"$f":"VLOOKUP(Table_Data_Table_135[[#This Row],[Item ID]],Analysis_Table,14,FALSE)","v":{"$error":"#N/A"}},{"$f":"VLOOKUP(Table_Data_Table_135[[#This Row],[Item ID]],Analysis_Table,15,FALSE)","v":{"$error":"#N/A"}},{"$f":"VLOOKUP(Table_Data_Table_135[[#This Row],[Item ID]],Analysis_Table,16,FALSE)","v":{"$error":"#N/A"}},{"$f":"VLOOKUP(Table_Data_Table_135[[#This Row],[Item ID]],Analysis_Table,17,FALSE)","v":{"$error":"#N/A"}},{"$f":"VLOOKUP(Table_Data_Table_135[[#This Row],[Item ID]],Analysis_Table,18,FALSE)","v":{"$error":"#N/A"}},{"$f":"VLOOKUP(Table_Data_Table_135[[#This Row],[Item ID]],Analysis_Table,19,FALSE)","v":{"$error":"#N/A"}},null,null,1]
["",null,{"$f":"VLOOKUP(Table_Data_Table_135[[#This Row],[Item ID]],Analysis_Table,20,FALSE)","v":{"$error":"#N/A"}},null,null,null,null,null,null,null,0,null,null,null,{"$f":"VLOOKUP(Table_Data_Table_135[[#This Row],[Item ID]],Analysis_Table,8,FALSE)","v":{"$error":"#N/A"}},{"$f":"VLOOKUP(Table_Data_Table_135[[#This Row],[Item ID]],Analysis_Table,9,FALSE)","v":{"$error":"#N/A"}},{"$f":"VLOOKUP(Table_Data_Table_135[[#This Row],[Item ID]],Analysis_Table,10,FALSE)","v":{"$error":"#N/A"}},{"$f":"VLOOKUP(Table_Data_Table_135[[#This Row],[Item ID]],Analysis_Table,11,FALSE)","v":{"$error":"#N/A"}},{"$f":"VLOOKUP(Table_Data_Table_135[[#This Row],[Item ID]],Analysis_Table,12,FALSE)","v":{"$error":"#N/A"}},{"$f":"VLOOKUP(Table_Data_Table_135[[#This Row],[Item ID]],Analysis_Table,13,FALSE)","v":{"$error":"#N/A"}},{"$f":"VLOOKUP(Table_Data_Table_135[[#This Row],[Item ID]],Analysis_Table,14,FALSE)","v":{"$error":"#N/A"}},{"$f":"VLOOKUP(Table_Data_Table_135[[#This Row],[Item ID]],Analysis_Table,15,FALSE)","v":{"$error":"#N/A"}},{"$f":"VLOOKUP(Table_Data_Table_135[[#This Row],[Item ID]],Analysis_Table,16,FALSE)","v":{"$error":"#N/A"}},{"$f":"VLOOKUP(Table_Data_Table_135[[#This Row],[Item ID]],Analysis_Table,17,FALSE)","v":{"$error":"#N/A"}},{"$f":"VLOOKUP(Table_Data_Table_135[[#This Row],[Item ID]],Analysis_Table,18,FALSE)","v":{"$error":"#N/A"}},{"$f":"VLOOKUP(Table_Data_Table_135[[#This Row],[Item ID]],Analysis_Table,19,FALSE)","v":{"$error":"#N/A"}},null,null,1]
["",null,{"$f":"VLOOKUP(Table_Data_Table_135[[#This Row],[Item ID]],Analysis_Table,20,FALSE)","v":{"$error":"#N/A"}},null,null,null,null,null,null,null,0,null,null,null,{"$f":"VLOOKUP(Table_Data_Table_135[[#This Row],[Item ID]],Analysis_Table,8,FALSE)","v":{"$error":"#N/A"}},{"$f":"VLOOKUP(Table_Data_Table_135[[#This Row],[Item ID]],Analysis_Table,9,FALSE)","v":{"$error":"#N/A"}},{"$f":"VLOOKUP(Table_Data_Table_135[[#This Row],[Item ID]],Analysis_Table,10,FALSE)","v":{"$error":"#N/A"}},{"$f":"VLOOKUP(Table_Data_Table_135[[#This Row],[Item ID]],Analysis_Table,11,FALSE)","v":{"$error":"#N/A"}},{"$f":"VLOOKUP(Table_Data_Table_135[[#This Row],[Item ID]],Analysis_Table,12,FALSE)","v":{"$error":"#N/A"}},{"$f":"VLOOKUP(Table_Data_Table_135[[#This Row],[Item ID]],Analysis_Table,13,FALSE)","v":{"$error":"#N/A"}},{"$f":"VLOOKUP(Table_Data_Table_135[[#This Row],[Item ID]],Analysis_Table,14,FALSE)","v":{"$error":"#N/A"}},{"$f":"VLOOKUP(Table_Data_Table_135[[#This Row],[Item ID]],Analysis_Table,15,FALSE)","v":{"$error":"#N/A"}},{"$f":"VLOOKUP(Table_Data_Table_135[[#This Row],[Item ID]],Analysis_Table,16,FALSE)","v":{"$error":"#N/A"}},{"$f":"VLOOKUP(Table_Data_Table_135[[#This Row],[Item ID]],Analysis_Table,17,FALSE)","v":{"$error":"#N/A"}},{"$f":"VLOOKUP(Table_Data_Table_135[[#This Row],[Item ID]],Analysis_Table,18,FALSE)","v":{"$error":"#N/A"}},{"$f":"VLOOKUP(Table_Data_Table_135[[#This Row],[Item ID]],Analysis_Table,19,FALSE)","v":{"$error":"#N/A"}},null,null,1]
["",null,{"$f":"VLOOKUP(Table_Data_Table_135[[#This Row],[Item ID]],Analysis_Table,20,FALSE)","v":{"$error":"#N/A"}},null,null,null,null,null,null,null,0,null,null,null,{"$f":"VLOOKUP(Table_Data_Table_135[[#This Row],[Item ID]],Analysis_Table,8,FALSE)","v":{"$error":"#N/A"}},{"$f":"VLOOKUP(Table_Data_Table_135[[#This Row],[Item ID]],Analysis_Table,9,FALSE)","v":{"$error":"#N/A"}},{"$f":"VLOOKUP(Table_Data_Table_135[[#This Row],[Item ID]],Analysis_Table,10,FALSE)","v":{"$error":"#N/A"}},{"$f":"VLOOKUP(Table_Data_Table_135[[#This Row],[Item ID]],Analysis_Table,11,FALSE)","v":{"$error":"#N/A"}},{"$f":"VLOOKUP(Table_Data_Table_135[[#This Row],[Item ID]],Analysis_Table,12,FALSE)","v":{"$error":"#N/A"}},{"$f":"VLOOKUP(Table_Data_Table_135[[#This Row],[Item ID]],Analysis_Table,13,FALSE)","v":{"$error":"#N/A"}},{"$f":"VLOOKUP(Table_Data_Table_135[[#This Row],[Item ID]],Analysis_Table,14,FALSE)","v":{"$error":"#N/A"}},{"$f":"VLOOKUP(Table_Data_Table_135[[#This Row],[Item ID]],Analysis_Table,15,FALSE)","v":{"$error":"#N/A"}},{"$f":"VLOOKUP(Table_Data_Table_135[[#This Row],[Item ID]],Analysis_Table,16,FALSE)","v":{"$error":"#N/A"}},{"$f":"VLOOKUP(Table_Data_Table_135[[#This Row],[Item ID]],Analysis_Table,17,FALSE)","v":{"$error":"#N/A"}},{"$f":"VLOOKUP(Table_Data_Table_135[[#This Row],[Item ID]],Analysis_Table,18,FALSE)","v":{"$error":"#N/A"}},{"$f":"VLOOKUP(Table_Data_Table_135[[#This Row],[Item ID]],Analysis_Table,19,FALSE)","v":{"$error":"#N/A"}},null,null,1]
["",null,{"$f":"VLOOKUP(Table_Data_Table_135[[#This Row],[Item ID]],Analysis_Table,20,FALSE)","v":{"$error":"#N/A"}},null,null,null,null,null,null,null,0,null,null,null,{"$f":"VLOOKUP(Table_Data_Table_135[[#This Row],[Item ID]],Analysis_Table,8,FALSE)","v":{"$error":"#N/A"}},{"$f":"VLOOKUP(Table_Data_Table_135[[#This Row],[Item ID]],Analysis_Table,9,FALSE)","v":{"$error":"#N/A"}},{"$f":"VLOOKUP(Table_Data_Table_135[[#This Row],[Item ID]],Analysis_Table,10,FALSE)","v":{"$error":"#N/A"}},{"$f":"VLOOKUP(Table_Data_Table_135[[#This Row],[Item ID]],Analysis_Table,11,FALSE)","v":{"$error":"#N/A"}},{"$f":"VLOOKUP(Table_Data_Table_135[[#This Row],[Item ID]],Analysis_Table,12,FALSE)","v":{"$error":"#N/A"}},{"$f":"VLOOKUP(Table_Data_Table_135[[#This Row],[Item ID]],Analysis_Table,13,FALSE)","v":{"$error":"#N/A"}},{"$f":"VLOOKUP(Table_Data_Table_135[[#This Row],[Item ID]],Analysis_Table,14,FALSE)","v":{"$error":"#N/A"}},{"$f":"VLOOKUP(Table_Data_Table_135[[#This Row],[Item ID]],Analysis_Table,15,FALSE)","v":{"$error":"#N/A"}},{"$f":"VLOOKUP(Table_Data_Table_135[[#This Row],[Item ID]],Analysis_Table,16,FALSE)","v":{"$error":"#N/A"}},{"$f":"VLOOKUP(Table_Data_Table_135[[#This Row],[Item ID]],Analysis_Table,17,FALSE)","v":{"$error":"#N/A"}},{"$f":"VLOOKUP(Table_Data_Table_135[[#This Row],[Item ID]],Analysis_Table,18,FALSE)","v":{"$error":"#N/A"}},{"$f":"VLOOKUP(Table_Data_Table_135[[#This Row],[Item ID]],Analysis_Table,19,FALSE)","v":{"$error":"#N/A"}},null,null,1]
["",null,{"$f":"VLOOKUP(Table_Data_Table_135[[#This Row],[Item ID]],Analysis_Table,20,FALSE)","v":{"$error":"#N/A"}},null,null,null,null,null,null,null,0,null,null,null,{"$f":"VLOOKUP(Table_Data_Table_135[[#This Row],[Item ID]],Analysis_Table,8,FALSE)","v":{"$error":"#N/A"}},{"$f":"VLOOKUP(Table_Data_Table_135[[#This Row],[Item ID]],Analysis_Table,9,FALSE)","v":{"$error":"#N/A"}},{"$f":"VLOOKUP(Table_Data_Table_135[[#This Row],[Item ID]],Analysis_Table,10,FALSE)","v":{"$error":"#N/A"}},{"$f":"VLOOKUP(Table_Data_Table_135[[#This Row],[Item ID]],Analysis_Table,11,FALSE)","v":{"$error":"#N/A"}},{"$f":"VLOOKUP(Table_Data_Table_135[[#This Row],[Item ID]],Analysis_Table,12,FALSE)","v":{"$error":"#N/A"}},{"$f":"VLOOKUP(Table_Data_Table_135[[#This Row],[Item ID]],Analysis_Table,13,FALSE)","v":{"$error":"#N/A"}},{"$f":"VLOOKUP(Table_Data_Table_135[[#This Row],[Item ID]],Analysis_Table,14,FALSE)","v":{"$error":"#N/A"}},{"$f":"VLOOKUP(Table_Data_Table_135[[#This Row],[Item ID]],Analysis_Table,15,FALSE)","v":{"$error":"#N/A"}},{"$f":"VLOOKUP(Table_Data_Table_135[[#This Row],[Item ID]],Analysis_Table,16,FALSE)","v":{"$error":"#N/A"}},{"$f":"VLOOKUP(Table_Data_Table_135[[#This Row],[Item ID]],Analysis_Table,17,FALSE)","v":{"$error":"#N/A"}},{"$f":"VLOOKUP(Table_Data_Table_135[[#This Row],[Item ID]],Analysis_Table,18,FALSE)","v":{"$error":"#N/A"}},{"$f":"VLOOKUP(Table_Data_Table_135[[#This Row],[Item ID]],Analysis_Table,19,FALSE)","v":{"$error":"#N/A"}},null,null,1]
["",null,{"$f":"VLOOKUP(Table_Data_Table_135[[#This Row],[Item ID]],Analysis_Table,20,FALSE)","v":{"$error":"#N/A"}},null,null,null,null,null,null,null,0,null,null,null,{"$f":"VLOOKUP(Table_Data_Table_135[[#This Row],[Item ID]],Analysis_Table,8,FALSE)","v":{"$error":"#N/A"}},{"$f":"VLOOKUP(Table_Data_Table_135[[#This Row],[Item ID]],Analysis_Table,9,FALSE)","v":{"$error":"#N/A"}},{"$f":"VLOOKUP(Table_Data_Table_135[[#This Row],[Item ID]],Analysis_Table,10,FALSE)","v":{"$error":"#N/A"}},{"$f":"VLOOKUP(Table_Data_Table_135[[#This Row],[Item ID]],Analysis_Table,11,FALSE)","v":{"$error":"#N/A"}},{"$f":"VLOOKUP(Table_Data_Table_135[[#This Row],[Item ID]],Analysis_Table,12,FALSE)","v":{"$error":"#N/A"}},{"$f":"VLOOKUP(Table_Data_Table_135[[#This Row],[Item ID]],Analysis_Table,13,FALSE)","v":{"$error":"#N/A"}},{"$f":"VLOOKUP(Table_Data_Table_135[[#This Row],[Item ID]],Analysis_Table,14,FALSE)","v":{"$error":"#N/A"}},{"$f":"VLOOKUP(Table_Data_Table_135[[#This Row],[Item ID]],Analysis_Table,15,FALSE)","v":{"$error":"#N/A"}},{"$f":"VLOOKUP(Table_Data_Table_135[[#This Row],[Item ID]],Analysis_Table,16,FALSE)","v":{"$error":"#N/A"}},{"$f":"VLOOKUP(Table_Data_Table_135[[#This Row],[Item ID]],Analysis_Table,17,FALSE)","v":{"$error":"#N/A"}},{"$f":"VLOOKUP(Table_Data_Table_135[[#This Row],[Item ID]],Analysis_Table,18,FALSE)","v":{"$error":"#N/A"}},{"$f":"VLOOKUP(Table_Data_Table_135[[#This Row],[Item ID]],Analysis_Table,19,FALSE)","v":{"$error":"#N/A"}},null,null,1]
["",null,{"$f":"VLOOKUP(Table_Data_Table_135[[#This Row],[Item ID]],Analysis_Table,20,FALSE)","v":{"$error":"#N/A"}},null,null,null,null,null,null,null,0,null,null,null,{"$f":"VLOOKUP(Table_Data_Table_135[[#This Row],[Item ID]],Analysis_Table,8,FALSE)","v":{"$error":"#N/A"}},{"$f":"VLOOKUP(Table_Data_Table_135[[#This Row],[Item ID]],Analysis_Table,9,FALSE)","v":{"$error":"#N/A"}},{"$f":"VLOOKUP(Table_Data_Table_135[[#This Row],[Item ID]],Analysis_Table,10,FALSE)","v":{"$error":"#N/A"}},{"$f":"VLOOKUP(Table_Data_Table_135[[#This Row],[Item ID]],Analysis_Table,11,FALSE)","v":{"$error":"#N/A"}},{"$f":"VLOOKUP(Table_Data_Table_135[[#This Row],[Item ID]],Analysis_Table,12,FALSE)","v":{"$error":"#N/A"}},{"$f":"VLOOKUP(Table_Data_Table_135[[#This Row],[Item ID]],Analysis_Table,13,FALSE)","v":{"$error":"#N/A"}},{"$f":"VLOOKUP(Table_Data_Table_135[[#This Row],[Item ID]],Analysis_Table,14,FALSE)","v":{"$error":"#N/A"}},{"$f":"VLOOKUP(Table_Data_Table_135[[#This Row],[Item ID]],Analysis_Table,15,FALSE)","v":{"$error":"#N/A"}},{"$f":"VLOOKUP(Table_Data_Table_135[[#This Row],[Item ID]],Analysis_Table,16,FALSE)","v":{"$error":"#N/A"}},{"$f":"VLOOKUP(Table_Data_Table_135[[#This Row],[Item ID]],Analysis_Table,17,FALSE)","v":{"$error":"#N/A"}},{"$f":"VLOOKUP(Table_Data_Table_135[[#This Row],[Item ID]],Analysis_Table,18,FALSE)","v":{"$error":"#N/A"}},{"$f":"VLOOKUP(Table_Data_Table_135[[#This Row],[Item ID]],Analysis_Table,19,FALSE)","v":{"$error":"#N/A"}},null,null,1]
["",null,{"$f":"VLOOKUP(Table_Data_Table_135[[#This Row],[Item ID]],Analysis_Table,20,FALSE)","v":{"$error":"#N/A"}},null,null,null,null,null,null,null,0,null,null,null,{"$f":"VLOOKUP(Table_Data_Table_135[[#This Row],[Item ID]],Analysis_Table,8,FALSE)","v":{"$error":"#N/A"}},{"$f":"VLOOKUP(Table_Data_Table_135[[#This Row],[Item ID]],Analysis_Table,9,FALSE)","v":{"$error":"#N/A"}},{"$f":"VLOOKUP(Table_Data_Table_135[[#This Row],[Item ID]],Analysis_Table,10,FALSE)","v":{"$error":"#N/A"}},{"$f":"VLOOKUP(Table_Data_Table_135[[#This Row],[Item ID]],Analysis_Table,11,FALSE)","v":{"$error":"#N/A"}},{"$f":"VLOOKUP(Table_Data_Table_135[[#This Row],[Item ID]],Analysis_Table,12,FALSE)","v":{"$error":"#N/A"}},{"$f":"VLOOKUP(Table_Data_Table_135[[#This Row],[Item ID]],Analysis_Table,13,FALSE)","v":{"$error":"#N/A"}},{"$f":"VLOOKUP(Table_Data_Table_135[[#This Row],[Item ID]],Analysis_Table,14,FALSE)","v":{"$error":"#N/A"}},{"$f":"VLOOKUP(Table_Data_Table_135[[#This Row],[Item ID]],Analysis_Table,15,FALSE)","v":{"$error":"#N/A"}},{"$f":"VLOOKUP(Table_Data_Table_135[[#This Row],[Item ID]],Analysis_Table,16,FALSE)","v":{"$error":"#N/A"}},{"$f":"VLOOKUP(Table_Data_Table_135[[#This Row],[Item ID]],Analysis_Table,17,FALSE)","v":{"$error":"#N/A"}},{"$f":"VLOOKUP(Table_Data_Table_135[[#This Row],[Item ID]],Analysis_Table,18,FALSE)","v":{"$error":"#N/A"}},{"$f":"VLOOKUP(Table_Data_Table_135[[#This Row],[Item ID]],Analysis_Table,19,FALSE)","v":{"$error":"#N/A"}},null,null,1]
["",null,{"$f":"VLOOKUP(Table_Data_Table_135[[#This Row],[Item ID]],Analysis_Table,20,FALSE)","v":{"$error":"#N/A"}},null,null,null,null,null,null,null,0,null,null,null,{"$f":"VLOOKUP(Table_Data_Table_135[[#This Row],[Item ID]],Analysis_Table,8,FALSE)","v":{"$error":"#N/A"}},{"$f":"VLOOKUP(Table_Data_Table_135[[#This Row],[Item ID]],Analysis_Table,9,FALSE)","v":{"$error":"#N/A"}},{"$f":"VLOOKUP(Table_Data_Table_135[[#This Row],[Item ID]],Analysis_Table,10,FALSE)","v":{"$error":"#N/A"}},{"$f":"VLOOKUP(Table_Data_Table_135[[#This Row],[Item ID]],Analysis_Table,11,FALSE)","v":{"$error":"#N/A"}},{"$f":"VLOOKUP(Table_Data_Table_135[[#This Row],[Item ID]],Analysis_Table,12,FALSE)","v":{"$error":"#N/A"}},{"$f":"VLOOKUP(Table_Data_Table_135[[#This Row],[Item ID]],Analysis_Table,13,FALSE)","v":{"$error":"#N/A"}},{"$f":"VLOOKUP(Table_Data_Table_135[[#This Row],[Item ID]],Analysis_Table,14,FALSE)","v":{"$error":"#N/A"}},{"$f":"VLOOKUP(Table_Data_Table_135[[#This Row],[Item ID]],Analysis_Table,15,FALSE)","v":{"$error":"#N/A"}},{"$f":"VLOOKUP(Table_Data_Table_135[[#This Row],[Item ID]],Analysis_Table,16,FALSE)","v":{"$error":"#N/A"}},{"$f":"VLOOKUP(Table_Data_Table_135[[#This Row],[Item ID]],Analysis_Table,17,FALSE)","v":{"$error":"#N/A"}},{"$f":"VLOOKUP(Table_Data_Table_135[[#This Row],[Item ID]],Analysis_Table,18,FALSE)","v":{"$error":"#N/A"}},{"$f":"VLOOKUP(Table_Data_Table_135[[#This Row],[Item ID]],Analysis_Table,19,FALSE)","v":{"$error":"#N/A"}},null,null,1]
["",null,{"$f":"VLOOKUP(Table_Data_Table_135[[#This Row],[Item ID]],Analysis_Table,20,FALSE)","v":{"$error":"#N/A"}},null,null,null,null,null,null,null,0,null,null,null,{"$f":"VLOOKUP(Table_Data_Table_135[[#This Row],[Item ID]],Analysis_Table,8,FALSE)","v":{"$error":"#N/A"}},{"$f":"VLOOKUP(Table_Data_Table_135[[#This Row],[Item ID]],Analysis_Table,9,FALSE)","v":{"$error":"#N/A"}},{"$f":"VLOOKUP(Table_Data_Table_135[[#This Row],[Item ID]],Analysis_Table,10,FALSE)","v":{"$error":"#N/A"}},{"$f":"VLOOKUP(Table_Data_Table_135[[#This Row],[Item ID]],Analysis_Table,11,FALSE)","v":{"$error":"#N/A"}},{"$f":"VLOOKUP(Table_Data_Table_135[[#This Row],[Item ID]],Analysis_Table,12,FALSE)","v":{"$error":"#N/A"}},{"$f":"VLOOKUP(Table_Data_Table_135[[#This Row],[Item ID]],Analysis_Table,13,FALSE)","v":{"$error":"#N/A"}},{"$f":"VLOOKUP(Table_Data_Table_135[[#This Row],[Item ID]],Analysis_Table,14,FALSE)","v":{"$error":"#N/A"}},{"$f":"VLOOKUP(Table_Data_Table_135[[#This Row],[Item ID]],Analysis_Table,15,FALSE)","v":{"$error":"#N/A"}},{"$f":"VLOOKUP(Table_Data_Table_135[[#This Row],[Item ID]],Analysis_Table,16,FALSE)","v":{"$error":"#N/A"}},{"$f":"VLOOKUP(Table_Data_Table_135[[#This Row],[Item ID]],Analysis_Table,17,FALSE)","v":{"$error":"#N/A"}},{"$f":"VLOOKUP(Table_Data_Table_135[[#This Row],[Item ID]],Analysis_Table,18,FALSE)","v":{"$error":"#N/A"}},{"$f":"VLOOKUP(Table_Data_Table_135[[#This Row],[Item ID]],Analysis_Table,19,FALSE)","v":{"$error":"#N/A"}},null,null,1]
["",null,{"$f":"VLOOKUP(Table_Data_Table_135[[#This Row],[Item ID]],Analysis_Table,20,FALSE)","v":{"$error":"#N/A"}},null,null,null,null,null,null,null,0,null,null,null,{"$f":"VLOOKUP(Table_Data_Table_135[[#This Row],[Item ID]],Analysis_Table,8,FALSE)","v":{"$error":"#N/A"}},{"$f":"VLOOKUP(Table_Data_Table_135[[#This Row],[Item ID]],Analysis_Table,9,FALSE)","v":{"$error":"#N/A"}},{"$f":"VLOOKUP(Table_Data_Table_135[[#This Row],[Item ID]],Analysis_Table,10,FALSE)","v":{"$error":"#N/A"}},{"$f":"VLOOKUP(Table_Data_Table_135[[#This Row],[Item ID]],Analysis_Table,11,FALSE)","v":{"$error":"#N/A"}},{"$f":"VLOOKUP(Table_Data_Table_135[[#This Row],[Item ID]],Analysis_Table,12,FALSE)","v":{"$error":"#N/A"}},{"$f":"VLOOKUP(Table_Data_Table_135[[#This Row],[Item ID]],Analysis_Table,13,FALSE)","v":{"$error":"#N/A"}},{"$f":"VLOOKUP(Table_Data_Table_135[[#This Row],[Item ID]],Analysis_Table,14,FALSE)","v":{"$error":"#N/A"}},{"$f":"VLOOKUP(Table_Data_Table_135[[#This Row],[Item ID]],Analysis_Table,15,FALSE)","v":{"$error":"#N/A"}},{"$f":"VLOOKUP(Table_Data_Table_135[[#This Row],[Item ID]],Analysis_Table,16,FALSE)","v":{"$error":"#N/A"}},{"$f":"VLOOKUP(Table_Data_Table_135[[#This Row],[Item ID]],Analysis_Table,17,FALSE)","v":{"$error":"#N/A"}},{"$f":"VLOOKUP(Table_Data_Table_135[[#This Row],[Item ID]],Analysis_Table,18,FALSE)","v":{"$error":"#N/A"}},{"$f":"VLOOKUP(Table_Data_Table_135[[#This Row],[Item ID]],Analysis_Table,19,FALSE)","v":{"$error":"#N/A"}},null,null,1]
["",null,{"$f":"VLOOKUP(Table_Data_Table_135[[#This Row],[Item ID]],Analysis_Table,20,FALSE)","v":{"$error":"#N/A"}},null,null,null,null,null,null,null,0,null,null,null,{"$f":"VLOOKUP(Table_Data_Table_135[[#This Row],[Item ID]],Analysis_Table,8,FALSE)","v":{"$error":"#N/A"}},{"$f":"VLOOKUP(Table_Data_Table_135[[#This Row],[Item ID]],Analysis_Table,9,FALSE)","v":{"$error":"#N/A"}},{"$f":"VLOOKUP(Table_Data_Table_135[[#This Row],[Item ID]],Analysis_Table,10,FALSE)","v":{"$error":"#N/A"}},{"$f":"VLOOKUP(Table_Data_Table_135[[#This Row],[Item ID]],Analysis_Table,11,FALSE)","v":{"$error":"#N/A"}},{"$f":"VLOOKUP(Table_Data_Table_135[[#This Row],[Item ID]],Analysis_Table,12,FALSE)","v":{"$error":"#N/A"}},{"$f":"VLOOKUP(Table_Data_Table_135[[#This Row],[Item ID]],Analysis_Table,13,FALSE)","v":{"$error":"#N/A"}},{"$f":"VLOOKUP(Table_Data_Table_135[[#This Row],[Item ID]],Analysis_Table,14,FALSE)","v":{"$error":"#N/A"}},{"$f":"VLOOKUP(Table_Data_Table_135[[#This Row],[Item ID]],Analysis_Table,15,FALSE)","v":{"$error":"#N/A"}},{"$f":"VLOOKUP(Table_Data_Table_135[[#This Row],[Item ID]],Analysis_Table,16,FALSE)","v":{"$error":"#N/A"}},{"$f":"VLOOKUP(Table_Data_Table_135[[#This Row],[Item ID]],Analysis_Table,17,FALSE)","v":{"$error":"#N/A"}},{"$f":"VLOOKUP(Table_Data_Table_135[[#This Row],[Item ID]],Analysis_Table,18,FALSE)","v":{"$error":"#N/A"}},{"$f":"VLOOKUP(Table_Data_Table_135[[#This Row],[Item ID]],Analysis_Table,19,FALSE)","v":{"$error":"#N/A"}},null,null,1]
["",null,{"$f":"VLOOKUP(Table_Data_Table_135[[#This Row],[Item ID]],Analysis_Table,20,FALSE)","v":{"$error":"#N/A"}},null,null,null,null,null,null,null,0,null,null,null,{"$f":"VLOOKUP(Table_Data_Table_135[[#This Row],[Item ID]],Analysis_Table,8,FALSE)","v":{"$error":"#N/A"}},{"$f":"VLOOKUP(Table_Data_Table_135[[#This Row],[Item ID]],Analysis_Table,9,FALSE)","v":{"$error":"#N/A"}},{"$f":"VLOOKUP(Table_Data_Table_135[[#This Row],[Item ID]],Analysis_Table,10,FALSE)","v":{"$error":"#N/A"}},{"$f":"VLOOKUP(Table_Data_Table_135[[#This Row],[Item ID]],Analysis_Table,11,FALSE)","v":{"$error":"#N/A"}},{"$f":"VLOOKUP(Table_Data_Table_135[[#This Row],[Item ID]],Analysis_Table,12,FALSE)","v":{"$error":"#N/A"}},{"$f":"VLOOKUP(Table_Data_Table_135[[#This Row],[Item ID]],Analysis_Table,13,FALSE)","v":{"$error":"#N/A"}},{"$f":"VLOOKUP(Table_Data_Table_135[[#This Row],[Item ID]],Analysis_Table,14,FALSE)","v":{"$error":"#N/A"}},{"$f":"VLOOKUP(Table_Data_Table_135[[#This Row],[Item ID]],Analysis_Table,15,FALSE)","v":{"$error":"#N/A"}},{"$f":"VLOOKUP(Table_Data_Table_135[[#This Row],[Item ID]],Analysis_Table,16,FALSE)","v":{"$error":"#N/A"}},{"$f":"VLOOKUP(Table_Data_Table_135[[#This Row],[Item ID]],Analysis_Table,17,FALSE)","v":{"$error":"#N/A"}},{"$f":"VLOOKUP(Table_Data_Table_135[[#This Row],[Item ID]],Analysis_Table,18,FALSE)","v":{"$error":"#N/A"}},{"$f":"VLOOKUP(Table_Data_Table_135[[#This Row],[Item ID]],Analysis_Table,19,FALSE)","v":{"$error":"#N/A"}},null,null,1]
["",null,{"$f":"VLOOKUP(Table_Data_Table_135[[#This Row],[Item ID]],Analysis_Table,20,FALSE)","v":{"$error":"#N/A"}},null,null,null,null,null,null,null,0,null,null,null,{"$f":"VLOOKUP(Table_Data_Table_135[[#This Row],[Item ID]],Analysis_Table,8,FALSE)","v":{"$error":"#N/A"}},{"$f":"VLOOKUP(Table_Data_Table_135[[#This Row],[Item ID]],Analysis_Table,9,FALSE)","v":{"$error":"#N/A"}},{"$f":"VLOOKUP(Table_Data_Table_135[[#This Row],[Item ID]],Analysis_Table,10,FALSE)","v":{"$error":"#N/A"}},{"$f":"VLOOKUP(Table_Data_Table_135[[#This Row],[Item ID]],Analysis_Table,11,FALSE)","v":{"$error":"#N/A"}},{"$f":"VLOOKUP(Table_Data_Table_135[[#This Row],[Item ID]],Analysis_Table,12,FALSE)","v":{"$error":"#N/A"}},{"$f":"VLOOKUP(Table_Data_Table_135[[#This Row],[Item ID]],Analysis_Table,13,FALSE)","v":{"$error":"#N/A"}},{"$f":"VLOOKUP(Table_Data_Table_135[[#This Row],[Item ID]],Analysis_Table,14,FALSE)","v":{"$error":"#N/A"}},{"$f":"VLOOKUP(Table_Data_Table_135[[#This Row],[Item ID]],Analysis_Table,15,FALSE)","v":{"$error":"#N/A"}},{"$f":"VLOOKUP(Table_Data_Table_135[[#This Row],[Item ID]],Analysis_Table,16,FALSE)","v":{"$error":"#N/A"}},{"$f":"VLOOKUP(Table_Data_Table_135[[#This Row],[Item ID]],Analysis_Table,17,FALSE)","v":{"$error":"#N/A"}},{"$f":"VLOOKUP(Table_Data_Table_135[[#This Row],[Item ID]],Analysis_Table,18,FALSE)","v":{"$error":"#N/A"}},{"$f":"VLOOKUP(Table_Data_Table_135[[#This Row],[Item ID]],Analysis_Table,19,FALSE)","v":{"$error":"#N/A"}},null,null,1]
["",null,{"$f":"VLOOKUP(Table_Data_Table_135[[#This Row],[Item ID]],Analysis_Table,20,FALSE)","v":{"$error":"#N/A"}},null,null,null,null,null,null,null,0,null,null,null,{"$f":"VLOOKUP(Table_Data_Table_135[[#This Row],[Item ID]],Analysis_Table,8,FALSE)","v":{"$error":"#N/A"}},{"$f":"VLOOKUP(Table_Data_Table_135[[#This Row],[Item ID]],Analysis_Table,9,FALSE)","v":{"$error":"#N/A"}},{"$f":"VLOOKUP(Table_Data_Table_135[[#This Row],[Item ID]],Analysis_Table,10,FALSE)","v":{"$error":"#N/A"}},{"$f":"VLOOKUP(Table_Data_Table_135[[#This Row],[Item ID]],Analysis_Table,11,FALSE)","v":{"$error":"#N/A"}},{"$f":"VLOOKUP(Table_Data_Table_135[[#This Row],[Item ID]],Analysis_Table,12,FALSE)","v":{"$error":"#N/A"}},{"$f":"VLOOKUP(Table_Data_Table_135[[#This Row],[Item ID]],Analysis_Table,13,FALSE)","v":{"$error":"#N/A"}},{"$f":"VLOOKUP(Table_Data_Table_135[[#This Row],[Item ID]],Analysis_Table,14,FALSE)","v":{"$error":"#N/A"}},{"$f":"VLOOKUP(Table_Data_Table_135[[#This Row],[Item ID]],Analysis_Table,15,FALSE)","v":{"$error":"#N/A"}},{"$f":"VLOOKUP(Table_Data_Table_135[[#This Row],[Item ID]],Analysis_Table,16,FALSE)","v":{"$error":"#N/A"}},{"$f":"VLOOKUP(Table_Data_Table_135[[#This Row],[Item ID]],Analysis_Table,17,FALSE)","v":{"$error":"#N/A"}},{"$f":"VLOOKUP(Table_Data_Table_135[[#This Row],[Item ID]],Analysis_Table,18,FALSE)","v":{"$error":"#N/A"}},{"$f":"VLOOKUP(Table_Data_Table_135[[#This Row],[Item ID]],Analysis_Table,19,FALSE)","v":{"$error":"#N/A"}},null,null,1]
["",null,{"$f":"VLOOKUP(Table_Data_Table_135[[#This Row],[Item ID]],Analysis_Table,20,FALSE)","v":{"$error":"#N/A"}},null,null,null,null,null,null,null,0,null,null,null,{"$f":"VLOOKUP(Table_Data_Table_135[[#This Row],[Item ID]],Analysis_Table,8,FALSE)","v":{"$error":"#N/A"}},{"$f":"VLOOKUP(Table_Data_Table_135[[#This Row],[Item ID]],Analysis_Table,9,FALSE)","v":{"$error":"#N/A"}},{"$f":"VLOOKUP(Table_Data_Table_135[[#This Row],[Item ID]],Analysis_Table,10,FALSE)","v":{"$error":"#N/A"}},{"$f":"VLOOKUP(Table_Data_Table_135[[#This Row],[Item ID]],Analysis_Table,11,FALSE)","v":{"$error":"#N/A"}},{"$f":"VLOOKUP(Table_Data_Table_135[[#This Row],[Item ID]],Analysis_Table,12,FALSE)","v":{"$error":"#N/A"}},{"$f":"VLOOKUP(Table_Data_Table_135[[#This Row],[Item ID]],Analysis_Table,13,FALSE)","v":{"$error":"#N/A"}},{"$f":"VLOOKUP(Table_Data_Table_135[[#This Row],[Item ID]],Analysis_Table,14,FALSE)","v":{"$error":"#N/A"}},{"$f":"VLOOKUP(Table_Data_Table_135[[#This Row],[Item ID]],Analysis_Table,15,FALSE)","v":{"$error":"#N/A"}},{"$f":"VLOOKUP(Table_Data_Table_135[[#This Row],[Item ID]],Analysis_Table,16,FALSE)","v":{"$error":"#N/A"}},{"$f":"VLOOKUP(Table_Data_Table_135[[#This Row],[Item ID]],Analysis_Table,17,FALSE)","v":{"$error":"#N/A"}},{"$f":"VLOOKUP(Table_Data_Table_135[[#This Row],[Item ID]],Analysis_Table,18,FALSE)","v":{"$error":"#N/A"}},{"$f":"VLOOKUP(Table_Data_Table_135[[#This Row],[Item ID]],Analysis_Table,19,FALSE)","v":{"$error":"#N/A"}},null,null,1]
["",null,{"$f":"VLOOKUP(Table_Data_Table_135[[#This Row],[Item ID]],Analysis_Table,20,FALSE)","v":{"$error":"#N/A"}},null,null,null,null,null,null,null,0,null,null,null,{"$f":"VLOOKUP(Table_Data_Table_135[[#This Row],[Item ID]],Analysis_Table,8,FALSE)","v":{"$error":"#N/A"}},{"$f":"VLOOKUP(Table_Data_Table_135[[#This Row],[Item ID]],Analysis_Table,9,FALSE)","v":{"$error":"#N/A"}},{"$f":"VLOOKUP(Table_Data_Table_135[[#This Row],[Item ID]],Analysis_Table,10,FALSE)","v":{"$error":"#N/A"}},{"$f":"VLOOKUP(Table_Data_Table_135[[#This Row],[Item ID]],Analysis_Table,11,FALSE)","v":{"$error":"#N/A"}},{"$f":"VLOOKUP(Table_Data_Table_135[[#This Row],[Item ID]],Analysis_Table,12,FALSE)","v":{"$error":"#N/A"}},{"$f":"VLOOKUP(Table_Data_Table_135[[#This Row],[Item ID]],Analysis_Table,13,FALSE)","v":{"$error":"#N/A"}},{"$f":"VLOOKUP(Table_Data_Table_135[[#This Row],[Item ID]],Analysis_Table,14,FALSE)","v":{"$error":"#N/A"}},{"$f":"VLOOKUP(Table_Data_Table_135[[#This Row],[Item ID]],Analysis_Table,15,FALSE)","v":{"$error":"#N/A"}},{"$f":"VLOOKUP(Table_Data_Table_135[[#This Row],[Item ID]],Analysis_Table,16,FALSE)","v":{"$error":"#N/A"}},{"$f":"VLOOKUP(Table_Data_Table_135[[#This Row],[Item ID]],Analysis_Table,17,FALSE)","v":{"$error":"#N/A"}},{"$f":"VLOOKUP(Table_Data_Table_135[[#This Row],[Item ID]],Analysis_Table,18,FALSE)","v":{"$error":"#N/A"}},{"$f":"VLOOKUP(Table_Data_Table_135[[#This Row],[Item ID]],Analysis_Table,19,FALSE)","v":{"$error":"#N/A"}},null,null,1]
["",null,{"$f":"VLOOKUP(Table_Data_Table_135[[#This Row],[Item ID]],Analysis_Table,20,FALSE)","v":{"$error":"#N/A"}},null,null,null,null,null,null,null,0,null,null,null,{"$f":"VLOOKUP(Table_Data_Table_135[[#This Row],[Item ID]],Analysis_Table,8,FALSE)","v":{"$error":"#N/A"}},{"$f":"VLOOKUP(Table_Data_Table_135[[#This Row],[Item ID]],Analysis_Table,9,FALSE)","v":{"$error":"#N/A"}},{"$f":"VLOOKUP(Table_Data_Table_135[[#This Row],[Item ID]],Analysis_Table,10,FALSE)","v":{"$error":"#N/A"}},{"$f":"VLOOKUP(Table_Data_Table_135[[#This Row],[Item ID]],Analysis_Table,11,FALSE)","v":{"$error":"#N/A"}},{"$f":"VLOOKUP(Table_Data_Table_135[[#This Row],[Item ID]],Analysis_Table,12,FALSE)","v":{"$error":"#N/A"}},{"$f":"VLOOKUP(Table_Data_Table_135[[#This Row],[Item ID]],Analysis_Table,13,FALSE)","v":{"$error":"#N/A"}},{"$f":"VLOOKUP(Table_Data_Table_135[[#This Row],[Item ID]],Analysis_Table,14,FALSE)","v":{"$error":"#N/A"}},{"$f":"VLOOKUP(Table_Data_Table_135[[#This Row],[Item ID]],Analysis_Table,15,FALSE)","v":{"$error":"#N/A"}},{"$f":"VLOOKUP(Table_Data_Table_135[[#This Row],[Item ID]],Analysis_Table,16,FALSE)","v":{"$error":"#N/A"}},{"$f":"VLOOKUP(Table_Data_Table_135[[#This Row],[Item ID]],Analysis_Table,17,FALSE)","v":{"$error":"#N/A"}},{"$f":"VLOOKUP(Table_Data_Table_135[[#This Row],[Item ID]],Analysis_Table,18,FALSE)","v":{"$error":"#N/A"}},{"$f":"VLOOKUP(Table_Data_Table_135[[#This Row],[Item ID]],Analysis_Table,19,FALSE)","v":{"$error":"#N/A"}},null,null,1]
["",null,{"$f":"VLOOKUP(Table_Data_Table_135[[#This Row],[Item ID]],Analysis_Table,20,FALSE)","v":{"$error":"#N/A"}},null,null,null,null,null,null,null,0,null,null,null,{"$f":"VLOOKUP(Table_Data_Table_135[[#This Row],[Item ID]],Analysis_Table,8,FALSE)","v":{"$error":"#N/A"}},{"$f":"VLOOKUP(Table_Data_Table_135[[#This Row],[Item ID]],Analysis_Table,9,FALSE)","v":{"$error":"#N/A"}},{"$f":"VLOOKUP(Table_Data_Table_135[[#This Row],[Item ID]],Analysis_Table,10,FALSE)","v":{"$error":"#N/A"}},{"$f":"VLOOKUP(Table_Data_Table_135[[#This Row],[Item ID]],Analysis_Table,11,FALSE)","v":{"$error":"#N/A"}},{"$f":"VLOOKUP(Table_Data_Table_135[[#This Row],[Item ID]],Analysis_Table,12,FALSE)","v":{"$error":"#N/A"}},{"$f":"VLOOKUP(Table_Data_Table_135[[#This Row],[Item ID]],Analysis_Table,13,FALSE)","v":{"$error":"#N/A"}},{"$f":"VLOOKUP(Table_Data_Table_135[[#This Row],[Item ID]],Analysis_Table,14,FALSE)","v":{"$error":"#N/A"}},{"$f":"VLOOKUP(Table_Data_Table_135[[#This Row],[Item ID]],Analysis_Table,15,FALSE)","v":{"$error":"#N/A"}},{"$f":"VLOOKUP(Table_Data_Table_135[[#This Row],[Item ID]],Analysis_Table,16,FALSE)","v":{"$error":"#N/A"}},{"$f":"VLOOKUP(Table_Data_Table_135[[#This Row],[Item ID]],Analysis_Table,17,FALSE)","v":{"$error":"#N/A"}},{"$f":"VLOOKUP(Table_Data_Table_135[[#This Row],[Item ID]],Analysis_Table,18,FALSE)","v":{"$error":"#N/A"}},{"$f":"VLOOKUP(Table_Data_Table_135[[#This Row],[Item ID]],Analysis_Table,19,FALSE)","v":{"$error":"#N/A"}},null,null,1]
["",null,{"$f":"VLOOKUP(Table_Data_Table_135[[#This Row],[Item ID]],Analysis_Table,20,FALSE)","v":{"$error":"#N/A"}},null,null,null,null,null,null,null,0,null,null,null,{"$f":"VLOOKUP(Table_Data_Table_135[[#This Row],[Item ID]],Analysis_Table,8,FALSE)","v":{"$error":"#N/A"}},{"$f":"VLOOKUP(Table_Data_Table_135[[#This Row],[Item ID]],Analysis_Table,9,FALSE)","v":{"$error":"#N/A"}},{"$f":"VLOOKUP(Table_Data_Table_135[[#This Row],[Item ID]],Analysis_Table,10,FALSE)","v":{"$error":"#N/A"}},{"$f":"VLOOKUP(Table_Data_Table_135[[#This Row],[Item ID]],Analysis_Table,11,FALSE)","v":{"$error":"#N/A"}},{"$f":"VLOOKUP(Table_Data_Table_135[[#This Row],[Item ID]],Analysis_Table,12,FALSE)","v":{"$error":"#N/A"}},{"$f":"VLOOKUP(Table_Data_Table_135[[#This Row],[Item ID]],Analysis_Table,13,FALSE)","v":{"$error":"#N/A"}},{"$f":"VLOOKUP(Table_Data_Table_135[[#This Row],[Item ID]],Analysis_Table,14,FALSE)","v":{"$error":"#N/A"}},{"$f":"VLOOKUP(Table_Data_Table_135[[#This Row],[Item ID]],Analysis_Table,15,FALSE)","v":{"$error":"#N/A"}},{"$f":"VLOOKUP(Table_Data_Table_135[[#This Row],[Item ID]],Analysis_Table,16,FALSE)","v":{"$error":"#N/A"}},{"$f":"VLOOKUP(Table_Data_Table_135[[#This Row],[Item ID]],Analysis_Table,17,FALSE)","v":{"$error":"#N/A"}},{"$f":"VLOOKUP(Table_Data_Table_135[[#This Row],[Item ID]],Analysis_Table,18,FALSE)","v":{"$error":"#N/A"}},{"$f":"VLOOKUP(Table_Data_Table_135[[#This Row],[Item ID]],Analysis_Table,19,FALSE)","v":{"$error":"#N/A"}},null,null,1]
["",null,{"$f":"VLOOKUP(Table_Data_Table_135[[#This Row],[Item ID]],Analysis_Table,20,FALSE)","v":{"$error":"#N/A"}},null,null,null,null,null,null,null,0,null,null,null,{"$f":"VLOOKUP(Table_Data_Table_135[[#This Row],[Item ID]],Analysis_Table,8,FALSE)","v":{"$error":"#N/A"}},{"$f":"VLOOKUP(Table_Data_Table_135[[#This Row],[Item ID]],Analysis_Table,9,FALSE)","v":{"$error":"#N/A"}},{"$f":"VLOOKUP(Table_Data_Table_135[[#This Row],[Item ID]],Analysis_Table,10,FALSE)","v":{"$error":"#N/A"}},{"$f":"VLOOKUP(Table_Data_Table_135[[#This Row],[Item ID]],Analysis_Table,11,FALSE)","v":{"$error":"#N/A"}},{"$f":"VLOOKUP(Table_Data_Table_135[[#This Row],[Item ID]],Analysis_Table,12,FALSE)","v":{"$error":"#N/A"}},{"$f":"VLOOKUP(Table_Data_Table_135[[#This Row],[Item ID]],Analysis_Table,13,FALSE)","v":{"$error":"#N/A"}},{"$f":"VLOOKUP(Table_Data_Table_135[[#This Row],[Item ID]],Analysis_Table,14,FALSE)","v":{"$error":"#N/A"}},{"$f":"VLOOKUP(Table_Data_Table_135[[#This Row],[Item ID]],Analysis_Table,15,FALSE)","v":{"$error":"#N/A"}},{"$f":"VLOOKUP(Table_Data_Table_135[[#This Row],[Item ID]],Analysis_Table,16,FALSE)","v":{"$error":"#N/A"}},{"$f":"VLOOKUP(Table_Data_Table_135[[#This Row],[Item ID]],Analysis_Table,17,FALSE)","v":{"$error":"#N/A"}},{"$f":"VLOOKUP(Table_Data_Table_135[[#This Row],[Item ID]],Analysis_Table,18,FALSE)","v":{"$error":"#N/A"}},{"$f":"VLOOKUP(Table_Data_Table_135[[#This Row],[Item ID]],Analysis_Table,19,FALSE)","v":{"$error":"#N/A"}},null,null,1]
["",null,{"$f":"VLOOKUP(Table_Data_Table_135[[#This Row],[Item ID]],Analysis_Table,20,FALSE)","v":{"$error":"#N/A"}},null,null,null,null,null,null,null,0,null,null,null,{"$f":"VLOOKUP(Table_Data_Table_135[[#This Row],[Item ID]],Analysis_Table,8,FALSE)","v":{"$error":"#N/A"}},{"$f":"VLOOKUP(Table_Data_Table_135[[#This Row],[Item ID]],Analysis_Table,9,FALSE)","v":{"$error":"#N/A"}},{"$f":"VLOOKUP(Table_Data_Table_135[[#This Row],[Item ID]],Analysis_Table,10,FALSE)","v":{"$error":"#N/A"}},{"$f":"VLOOKUP(Table_Data_Table_135[[#This Row],[Item ID]],Analysis_Table,11,FALSE)","v":{"$error":"#N/A"}},{"$f":"VLOOKUP(Table_Data_Table_135[[#This Row],[Item ID]],Analysis_Table,12,FALSE)","v":{"$error":"#N/A"}},{"$f":"VLOOKUP(Table_Data_Table_135[[#This Row],[Item ID]],Analysis_Table,13,FALSE)","v":{"$error":"#N/A"}},{"$f":"VLOOKUP(Table_Data_Table_135[[#This Row],[Item ID]],Analysis_Table,14,FALSE)","v":{"$error":"#N/A"}},{"$f":"VLOOKUP(Table_Data_Table_135[[#This Row],[Item ID]],Analysis_Table,15,FALSE)","v":{"$error":"#N/A"}},{"$f":"VLOOKUP(Table_Data_Table_135[[#This Row],[Item ID]],Analysis_Table,16,FALSE)","v":{"$error":"#N/A"}},{"$f":"VLOOKUP(Table_Data_Table_135[[#This Row],[Item ID]],Analysis_Table,17,FALSE)","v":{"$error":"#N/A"}},{"$f":"VLOOKUP(Table_Data_Table_135[[#This Row],[Item ID]],Analysis_Table,18,FALSE)","v":{"$error":"#N/A"}},{"$f":"VLOOKUP(Table_Data_Table_135[[#This Row],[Item ID]],Analysis_Table,19,FALSE)","v":{"$error":"#N/A"}},null,null,1]
["",null,{"$f":"VLOOKUP(Table_Data_Table_135[[#This Row],[Item ID]],Analysis_Table,20,FALSE)","v":{"$error":"#N/A"}},null,null,null,null,null,null,null,0,null,null,null,{"$f":"VLOOKUP(Table_Data_Table_135[[#This Row],[Item ID]],Analysis_Table,8,FALSE)","v":{"$error":"#N/A"}},{"$f":"VLOOKUP(Table_Data_Table_135[[#This Row],[Item ID]],Analysis_Table,9,FALSE)","v":{"$error":"#N/A"}},{"$f":"VLOOKUP(Table_Data_Table_135[[#This Row],[Item ID]],Analysis_Table,10,FALSE)","v":{"$error":"#N/A"}},{"$f":"VLOOKUP(Table_Data_Table_135[[#This Row],[Item ID]],Analysis_Table,11,FALSE)","v":{"$error":"#N/A"}},{"$f":"VLOOKUP(Table_Data_Table_135[[#This Row],[Item ID]],Analysis_Table,12,FALSE)","v":{"$error":"#N/A"}},{"$f":"VLOOKUP(Table_Data_Table_135[[#This Row],[Item ID]],Analysis_Table,13,FALSE)","v":{"$error":"#N/A"}},{"$f":"VLOOKUP(Table_Data_Table_135[[#This Row],[Item ID]],Analysis_Table,14,FALSE)","v":{"$error":"#N/A"}},{"$f":"VLOOKUP(Table_Data_Table_135[[#This Row],[Item ID]],Analysis_Table,15,FALSE)","v":{"$error":"#N/A"}},{"$f":"VLOOKUP(Table_Data_Table_135[[#This Row],[Item ID]],Analysis_Table,16,FALSE)","v":{"$error":"#N/A"}},{"$f":"VLOOKUP(Table_Data_Table_135[[#This Row],[Item ID]],Analysis_Table,17,FALSE)","v":{"$error":"#N/A"}},{"$f":"VLOOKUP(Table_Data_Table_135[[#This Row],[Item ID]],Analysis_Table,18,FALSE)","v":{"$error":"#N/A"}},{"$f":"VLOOKUP(Table_Data_Table_135[[#This Row],[Item ID]],Analysis_Table,19,FALSE)","v":{"$error":"#N/A"}},null,null,1]
["",null,{"$f":"VLOOKUP(Table_Data_Table_135[[#This Row],[Item ID]],Analysis_Table,20,FALSE)","v":{"$error":"#N/A"}},null,null,null,null,null,null,null,0,null,null,null,{"$f":"VLOOKUP(Table_Data_Table_135[[#This Row],[Item ID]],Analysis_Table,8,FALSE)","v":{"$error":"#N/A"}},{"$f":"VLOOKUP(Table_Data_Table_135[[#This Row],[Item ID]],Analysis_Table,9,FALSE)","v":{"$error":"#N/A"}},{"$f":"VLOOKUP(Table_Data_Table_135[[#This Row],[Item ID]],Analysis_Table,10,FALSE)","v":{"$error":"#N/A"}},{"$f":"VLOOKUP(Table_Data_Table_135[[#This Row],[Item ID]],Analysis_Table,11,FALSE)","v":{"$error":"#N/A"}},{"$f":"VLOOKUP(Table_Data_Table_135[[#This Row],[Item ID]],Analysis_Table,12,FALSE)","v":{"$error":"#N/A"}},{"$f":"VLOOKUP(Table_Data_Table_135[[#This Row],[Item ID]],Analysis_Table,13,FALSE)","v":{"$error":"#N/A"}},{"$f":"VLOOKUP(Table_Data_Table_135[[#This Row],[Item ID]],Analysis_Table,14,FALSE)","v":{"$error":"#N/A"}},{"$f":"VLOOKUP(Table_Data_Table_135[[#This Row],[Item ID]],Analysis_Table,15,FALSE)","v":{"$error":"#N/A"}},{"$f":"VLOOKUP(Table_Data_Table_135[[#This Row],[Item ID]],Analysis_Table,16,FALSE)","v":{"$error":"#N/A"}},{"$f":"VLOOKUP(Table_Data_Table_135[[#This Row],[Item ID]],Analysis_Table,17,FALSE)","v":{"$error":"#N/A"}},{"$f":"VLOOKUP(Table_Data_Table_135[[#This Row],[Item ID]],Analysis_Table,18,FALSE)","v":{"$error":"#N/A"}},{"$f":"VLOOKUP(Table_Data_Table_135[[#This Row],[Item ID]],Analysis_Table,19,FALSE)","v":{"$error":"#N/A"}},null,null,1]
["",null,{"$f":"VLOOKUP(Table_Data_Table_135[[#This Row],[Item ID]],Analysis_Table,20,FALSE)","v":{"$error":"#N/A"}},null,null,null,null,null,null,null,0,null,null,null,{"$f":"VLOOKUP(Table_Data_Table_135[[#This Row],[Item ID]],Analysis_Table,8,FALSE)","v":{"$error":"#N/A"}},{"$f":"VLOOKUP(Table_Data_Table_135[[#This Row],[Item ID]],Analysis_Table,9,FALSE)","v":{"$error":"#N/A"}},{"$f":"VLOOKUP(Table_Data_Table_135[[#This Row],[Item ID]],Analysis_Table,10,FALSE)","v":{"$error":"#N/A"}},{"$f":"VLOOKUP(Table_Data_Table_135[[#This Row],[Item ID]],Analysis_Table,11,FALSE)","v":{"$error":"#N/A"}},{"$f":"VLOOKUP(Table_Data_Table_135[[#This Row],[Item ID]],Analysis_Table,12,FALSE)","v":{"$error":"#N/A"}},{"$f":"VLOOKUP(Table_Data_Table_135[[#This Row],[Item ID]],Analysis_Table,13,FALSE)","v":{"$error":"#N/A"}},{"$f":"VLOOKUP(Table_Data_Table_135[[#This Row],[Item ID]],Analysis_Table,14,FALSE)","v":{"$error":"#N/A"}},{"$f":"VLOOKUP(Table_Data_Table_135[[#This Row],[Item ID]],Analysis_Table,15,FALSE)","v":{"$error":"#N/A"}},{"$f":"VLOOKUP(Table_Data_Table_135[[#This Row],[Item ID]],Analysis_Table,16,FALSE)","v":{"$error":"#N/A"}},{"$f":"VLOOKUP(Table_Data_Table_135[[#This Row],[Item ID]],Analysis_Table,17,FALSE)","v":{"$error":"#N/A"}},{"$f":"VLOOKUP(Table_Data_Table_135[[#This Row],[Item ID]],Analysis_Table,18,FALSE)","v":{"$error":"#N/A"}},{"$f":"VLOOKUP(Table_Data_Table_135[[#This Row],[Item ID]],Analysis_Table,19,FALSE)","v":{"$error":"#N/A"}},null,null,1]
["",null,{"$f":"VLOOKUP(Table_Data_Table_135[[#This Row],[Item ID]],Analysis_Table,20,FALSE)","v":{"$error":"#N/A"}},null,null,null,null,null,null,null,0,null,null,null,{"$f":"VLOOKUP(Table_Data_Table_135[[#This Row],[Item ID]],Analysis_Table,8,FALSE)","v":{"$error":"#N/A"}},{"$f":"VLOOKUP(Table_Data_Table_135[[#This Row],[Item ID]],Analysis_Table,9,FALSE)","v":{"$error":"#N/A"}},{"$f":"VLOOKUP(Table_Data_Table_135[[#This Row],[Item ID]],Analysis_Table,10,FALSE)","v":{"$error":"#N/A"}},{"$f":"VLOOKUP(Table_Data_Table_135[[#This Row],[Item ID]],Analysis_Table,11,FALSE)","v":{"$error":"#N/A"}},{"$f":"VLOOKUP(Table_Data_Table_135[[#This Row],[Item ID]],Analysis_Table,12,FALSE)","v":{"$error":"#N/A"}},{"$f":"VLOOKUP(Table_Data_Table_135[[#This Row],[Item ID]],Analysis_Table,13,FALSE)","v":{"$error":"#N/A"}},{"$f":"VLOOKUP(Table_Data_Table_135[[#This Row],[Item ID]],Analysis_Table,14,FALSE)","v":{"$error":"#N/A"}},{"$f":"VLOOKUP(Table_Data_Table_135[[#This Row],[Item ID]],Analysis_Table,15,FALSE)","v":{"$error":"#N/A"}},{"$f":"VLOOKUP(Table_Data_Table_135[[#This Row],[Item ID]],Analysis_Table,16,FALSE)","v":{"$error":"#N/A"}},{"$f":"VLOOKUP(Table_Data_Table_135[[#This Row],[Item ID]],Analysis_Table,17,FALSE)","v":{"$error":"#N/A"}},{"$f":"VLOOKUP(Table_Data_Table_135[[#This Row],[Item ID]],Analysis_Table,18,FALSE)","v":{"$error":"#N/A"}},{"$f":"VLOOKUP(Table_Data_Table_135[[#This Row],[Item ID]],Analysis_Table,19,FALSE)","v":{"$error":"#N/A"}},null,null,1]
["",null,{"$f":"VLOOKUP(Table_Data_Table_135[[#This Row],[Item ID]],Analysis_Table,20,FALSE)","v":{"$error":"#N/A"}},null,null,null,null,null,null,null,0,null,null,null,{"$f":"VLOOKUP(Table_Data_Table_135[[#This Row],[Item ID]],Analysis_Table,8,FALSE)","v":{"$error":"#N/A"}},{"$f":"VLOOKUP(Table_Data_Table_135[[#This Row],[Item ID]],Analysis_Table,9,FALSE)","v":{"$error":"#N/A"}},{"$f":"VLOOKUP(Table_Data_Table_135[[#This Row],[Item ID]],Analysis_Table,10,FALSE)","v":{"$error":"#N/A"}},{"$f":"VLOOKUP(Table_Data_Table_135[[#This Row],[Item ID]],Analysis_Table,11,FALSE)","v":{"$error":"#N/A"}},{"$f":"VLOOKUP(Table_Data_Table_135[[#This Row],[Item ID]],Analysis_Table,12,FALSE)","v":{"$error":"#N/A"}},{"$f":"VLOOKUP(Table_Data_Table_135[[#This Row],[Item ID]],Analysis_Table,13,FALSE)","v":{"$error":"#N/A"}},{"$f":"VLOOKUP(Table_Data_Table_135[[#This Row],[Item ID]],Analysis_Table,14,FALSE)","v":{"$error":"#N/A"}},{"$f":"VLOOKUP(Table_Data_Table_135[[#This Row],[Item ID]],Analysis_Table,15,FALSE)","v":{"$error":"#N/A"}},{"$f":"VLOOKUP(Table_Data_Table_135[[#This Row],[Item ID]],Analysis_Table,16,FALSE)","v":{"$error":"#N/A"}},{"$f":"VLOOKUP(Table_Data_Table_135[[#This Row],[Item ID]],Analysis_Table,17,FALSE)","v":{"$error":"#N/A"}},{"$f":"VLOOKUP(Table_Data_Table_135[[#This Row],[Item ID]],Analysis_Table,18,FALSE)","v":{"$error":"#N/A"}},{"$f":"VLOOKUP(Table_Data_Table_135[[#This Row],[Item ID]],Analysis_Table,19,FALSE)","v":{"$error":"#N/A"}},null,null,1]
["",null,{"$f":"VLOOKUP(Table_Data_Table_135[[#This Row],[Item ID]],Analysis_Table,20,FALSE)","v":{"$error":"#N/A"}},null,null,null,null,null,null,null,0,null,null,null,{"$f":"VLOOKUP(Table_Data_Table_135[[#This Row],[Item ID]],Analysis_Table,8,FALSE)","v":{"$error":"#N/A"}},{"$f":"VLOOKUP(Table_Data_Table_135[[#This Row],[Item ID]],Analysis_Table,9,FALSE)","v":{"$error":"#N/A"}},{"$f":"VLOOKUP(Table_Data_Table_135[[#This Row],[Item ID]],Analysis_Table,10,FALSE)","v":{"$error":"#N/A"}},{"$f":"VLOOKUP(Table_Data_Table_135[[#This Row],[Item ID]],Analysis_Table,11,FALSE)","v":{"$error":"#N/A"}},{"$f":"VLOOKUP(Table_Data_Table_135[[#This Row],[Item ID]],Analysis_Table,12,FALSE)","v":{"$error":"#N/A"}},{"$f":"VLOOKUP(Table_Data_Table_135[[#This Row],[Item ID]],Analysis_Table,13,FALSE)","v":{"$error":"#N/A"}},{"$f":"VLOOKUP(Table_Data_Table_135[[#This Row],[Item ID]],Analysis_Table,14,FALSE)","v":{"$error":"#N/A"}},{"$f":"VLOOKUP(Table_Data_Table_135[[#This Row],[Item ID]],Analysis_Table,15,FALSE)","v":{"$error":"#N/A"}},{"$f":"VLOOKUP(Table_Data_Table_135[[#This Row],[Item ID]],Analysis_Table,16,FALSE)","v":{"$error":"#N/A"}},{"$f":"VLOOKUP(Table_Data_Table_135[[#This Row],[Item ID]],Analysis_Table,17,FALSE)","v":{"$error":"#N/A"}},{"$f":"VLOOKUP(Table_Data_Table_135[[#This Row],[Item ID]],Analysis_Table,18,FALSE)","v":{"$error":"#N/A"}},{"$f":"VLOOKUP(Table_Data_Table_135[[#This Row],[Item ID]],Analysis_Table,19,FALSE)","v":{"$error":"#N/A"}},null,null,1]
["",null,{"$f":"VLOOKUP(Table_Data_Table_135[[#This Row],[Item ID]],Analysis_Table,20,FALSE)","v":{"$error":"#N/A"}},null,null,null,null,null,null,null,0,null,null,null,{"$f":"VLOOKUP(Table_Data_Table_135[[#This Row],[Item ID]],Analysis_Table,8,FALSE)","v":{"$error":"#N/A"}},{"$f":"VLOOKUP(Table_Data_Table_135[[#This Row],[Item ID]],Analysis_Table,9,FALSE)","v":{"$error":"#N/A"}},{"$f":"VLOOKUP(Table_Data_Table_135[[#This Row],[Item ID]],Analysis_Table,10,FALSE)","v":{"$error":"#N/A"}},{"$f":"VLOOKUP(Table_Data_Table_135[[#This Row],[Item ID]],Analysis_Table,11,FALSE)","v":{"$error":"#N/A"}},{"$f":"VLOOKUP(Table_Data_Table_135[[#This Row],[Item ID]],Analysis_Table,12,FALSE)","v":{"$error":"#N/A"}},{"$f":"VLOOKUP(Table_Data_Table_135[[#This Row],[Item ID]],Analysis_Table,13,FALSE)","v":{"$error":"#N/A"}},{"$f":"VLOOKUP(Table_Data_Table_135[[#This Row],[Item ID]],Analysis_Table,14,FALSE)","v":{"$error":"#N/A"}},{"$f":"VLOOKUP(Table_Data_Table_135[[#This Row],[Item ID]],Analysis_Table,15,FALSE)","v":{"$error":"#N/A"}},{"$f":"VLOOKUP(Table_Data_Table_135[[#This Row],[Item ID]],Analysis_Table,16,FALSE)","v":{"$error":"#N/A"}},{"$f":"VLOOKUP(Table_Data_Table_135[[#This Row],[Item ID]],Analysis_Table,17,FALSE)","v":{"$error":"#N/A"}},{"$f":"VLOOKUP(Table_Data_Table_135[[#This Row],[Item ID]],Analysis_Table,18,FALSE)","v":{"$error":"#N/A"}},{"$f":"VLOOKUP(Table_Data_Table_135[[#This Row],[Item ID]],Analysis_Table,19,FALSE)","v":{"$error":"#N/A"}},null,null,1]
["",null,{"$f":"VLOOKUP(Table_Data_Table_135[[#This Row],[Item ID]],Analysis_Table,20,FALSE)","v":{"$error":"#N/A"}},null,null,null,null,null,null,null,0,null,null,null,{"$f":"VLOOKUP(Table_Data_Table_135[[#This Row],[Item ID]],Analysis_Table,8,FALSE)","v":{"$error":"#N/A"}},{"$f":"VLOOKUP(Table_Data_Table_135[[#This Row],[Item ID]],Analysis_Table,9,FALSE)","v":{"$error":"#N/A"}},{"$f":"VLOOKUP(Table_Data_Table_135[[#This Row],[Item ID]],Analysis_Table,10,FALSE)","v":{"$error":"#N/A"}},{"$f":"VLOOKUP(Table_Data_Table_135[[#This Row],[Item ID]],Analysis_Table,11,FALSE)","v":{"$error":"#N/A"}},{"$f":"VLOOKUP(Table_Data_Table_135[[#This Row],[Item ID]],Analysis_Table,12,FALSE)","v":{"$error":"#N/A"}},{"$f":"VLOOKUP(Table_Data_Table_135[[#This Row],[Item ID]],Analysis_Table,13,FALSE)","v":{"$error":"#N/A"}},{"$f":"VLOOKUP(Table_Data_Table_135[[#This Row],[Item ID]],Analysis_Table,14,FALSE)","v":{"$error":"#N/A"}},{"$f":"VLOOKUP(Table_Data_Table_135[[#This Row],[Item ID]],Analysis_Table,15,FALSE)","v":{"$error":"#N/A"}},{"$f":"VLOOKUP(Table_Data_Table_135[[#This Row],[Item ID]],Analysis_Table,16,FALSE)","v":{"$error":"#N/A"}},{"$f":"VLOOKUP(Table_Data_Table_135[[#This Row],[Item ID]],Analysis_Table,17,FALSE)","v":{"$error":"#N/A"}},{"$f":"VLOOKUP(Table_Data_Table_135[[#This Row],[Item ID]],Analysis_Table,18,FALSE)","v":{"$error":"#N/A"}},{"$f":"VLOOKUP(Table_Data_Table_135[[#This Row],[Item ID]],Analysis_Table,19,FALSE)","v":{"$error":"#N/A"}},null,null,1]
["",null,{"$f":"VLOOKUP(Table_Data_Table_135[[#This Row],[Item ID]],Analysis_Table,20,FALSE)","v":{"$error":"#N/A"}},null,null,null,null,null,null,null,0,null,null,null,{"$f":"VLOOKUP(Table_Data_Table_135[[#This Row],[Item ID]],Analysis_Table,8,FALSE)","v":{"$error":"#N/A"}},{"$f":"VLOOKUP(Table_Data_Table_135[[#This Row],[Item ID]],Analysis_Table,9,FALSE)","v":{"$error":"#N/A"}},{"$f":"VLOOKUP(Table_Data_Table_135[[#This Row],[Item ID]],Analysis_Table,10,FALSE)","v":{"$error":"#N/A"}},{"$f":"VLOOKUP(Table_Data_Table_135[[#This Row],[Item ID]],Analysis_Table,11,FALSE)","v":{"$error":"#N/A"}},{"$f":"VLOOKUP(Table_Data_Table_135[[#This Row],[Item ID]],Analysis_Table,12,FALSE)","v":{"$error":"#N/A"}},{"$f":"VLOOKUP(Table_Data_Table_135[[#This Row],[Item ID]],Analysis_Table,13,FALSE)","v":{"$error":"#N/A"}},{"$f":"VLOOKUP(Table_Data_Table_135[[#This Row],[Item ID]],Analysis_Table,14,FALSE)","v":{"$error":"#N/A"}},{"$f":"VLOOKUP(Table_Data_Table_135[[#This Row],[Item ID]],Analysis_Table,15,FALSE)","v":{"$error":"#N/A"}},{"$f":"VLOOKUP(Table_Data_Table_135[[#This Row],[Item ID]],Analysis_Table,16,FALSE)","v":{"$error":"#N/A"}},{"$f":"VLOOKUP(Table_Data_Table_135[[#This Row],[Item ID]],Analysis_Table,17,FALSE)","v":{"$error":"#N/A"}},{"$f":"VLOOKUP(Table_Data_Table_135[[#This Row],[Item ID]],Analysis_Table,18,FALSE)","v":{"$error":"#N/A"}},{"$f":"VLOOKUP(Table_Data_Table_135[[#This Row],[Item ID]],Analysis_Table,19,FALSE)","v":{"$error":"#N/A"}},null,null,1]
["",null,{"$f":"VLOOKUP(Table_Data_Table_135[[#This Row],[Item ID]],Analysis_Table,20,FALSE)","v":{"$error":"#N/A"}},null,null,null,null,null,null,null,0,null,null,null,{"$f":"VLOOKUP(Table_Data_Table_135[[#This Row],[Item ID]],Analysis_Table,8,FALSE)","v":{"$error":"#N/A"}},{"$f":"VLOOKUP(Table_Data_Table_135[[#This Row],[Item ID]],Analysis_Table,9,FALSE)","v":{"$error":"#N/A"}},{"$f":"VLOOKUP(Table_Data_Table_135[[#This Row],[Item ID]],Analysis_Table,10,FALSE)","v":{"$error":"#N/A"}},{"$f":"VLOOKUP(Table_Data_Table_135[[#This Row],[Item ID]],Analysis_Table,11,FALSE)","v":{"$error":"#N/A"}},{"$f":"VLOOKUP(Table_Data_Table_135[[#This Row],[Item ID]],Analysis_Table,12,FALSE)","v":{"$error":"#N/A"}},{"$f":"VLOOKUP(Table_Data_Table_135[[#This Row],[Item ID]],Analysis_Table,13,FALSE)","v":{"$error":"#N/A"}},{"$f":"VLOOKUP(Table_Data_Table_135[[#This Row],[Item ID]],Analysis_Table,14,FALSE)","v":{"$error":"#N/A"}},{"$f":"VLOOKUP(Table_Data_Table_135[[#This Row],[Item ID]],Analysis_Table,15,FALSE)","v":{"$error":"#N/A"}},{"$f":"VLOOKUP(Table_Data_Table_135[[#This Row],[Item ID]],Analysis_Table,16,FALSE)","v":{"$error":"#N/A"}},{"$f":"VLOOKUP(Table_Data_Table_135[[#This Row],[Item ID]],Analysis_Table,17,FALSE)","v":{"$error":"#N/A"}},{"$f":"VLOOKUP(Table_Data_Table_135[[#This Row],[Item ID]],Analysis_Table,18,FALSE)","v":{"$error":"#N/A"}},{"$f":"VLOOKUP(Table_Data_Table_135[[#This Row],[Item ID]],Analysis_Table,19,FALSE)","v":{"$error":"#N/A"}},null,null,1]
["",null,{"$f":"VLOOKUP(Table_Data_Table_135[[#This Row],[Item ID]],Analysis_Table,20,FALSE)","v":{"$error":"#N/A"}},null,null,null,null,null,null,null,0,null,null,null,{"$f":"VLOOKUP(Table_Data_Table_135[[#This Row],[Item ID]],Analysis_Table,8,FALSE)","v":{"$error":"#N/A"}},{"$f":"VLOOKUP(Table_Data_Table_135[[#This Row],[Item ID]],Analysis_Table,9,FALSE)","v":{"$error":"#N/A"}},{"$f":"VLOOKUP(Table_Data_Table_135[[#This Row],[Item ID]],Analysis_Table,10,FALSE)","v":{"$error":"#N/A"}},{"$f":"VLOOKUP(Table_Data_Table_135[[#This Row],[Item ID]],Analysis_Table,11,FALSE)","v":{"$error":"#N/A"}},{"$f":"VLOOKUP(Table_Data_Table_135[[#This Row],[Item ID]],Analysis_Table,12,FALSE)","v":{"$error":"#N/A"}},{"$f":"VLOOKUP(Table_Data_Table_135[[#This Row],[Item ID]],Analysis_Table,13,FALSE)","v":{"$error":"#N/A"}},{"$f":"VLOOKUP(Table_Data_Table_135[[#This Row],[Item ID]],Analysis_Table,14,FALSE)","v":{"$error":"#N/A"}},{"$f":"VLOOKUP(Table_Data_Table_135[[#This Row],[Item ID]],Analysis_Table,15,FALSE)","v":{"$error":"#N/A"}},{"$f":"VLOOKUP(Table_Data_Table_135[[#This Row],[Item ID]],Analysis_Table,16,FALSE)","v":{"$error":"#N/A"}},{"$f":"VLOOKUP(Table_Data_Table_135[[#This Row],[Item ID]],Analysis_Table,17,FALSE)","v":{"$error":"#N/A"}},{"$f":"VLOOKUP(Table_Data_Table_135[[#This Row],[Item ID]],Analysis_Table,18,FALSE)","v":{"$error":"#N/A"}},{"$f":"VLOOKUP(Table_Data_Table_135[[#This Row],[Item ID]],Analysis_Table,19,FALSE)","v":{"$error":"#N/A"}},null,null,1]
["",null,{"$f":"VLOOKUP(Table_Data_Table_135[[#This Row],[Item ID]],Analysis_Table,20,FALSE)","v":{"$error":"#N/A"}},null,null,null,null,null,null,null,0,null,null,null,{"$f":"VLOOKUP(Table_Data_Table_135[[#This Row],[Item ID]],Analysis_Table,8,FALSE)","v":{"$error":"#N/A"}},{"$f":"VLOOKUP(Table_Data_Table_135[[#This Row],[Item ID]],Analysis_Table,9,FALSE)","v":{"$error":"#N/A"}},{"$f":"VLOOKUP(Table_Data_Table_135[[#This Row],[Item ID]],Analysis_Table,10,FALSE)","v":{"$error":"#N/A"}},{"$f":"VLOOKUP(Table_Data_Table_135[[#This Row],[Item ID]],Analysis_Table,11,FALSE)","v":{"$error":"#N/A"}},{"$f":"VLOOKUP(Table_Data_Table_135[[#This Row],[Item ID]],Analysis_Table,12,FALSE)","v":{"$error":"#N/A"}},{"$f":"VLOOKUP(Table_Data_Table_135[[#This Row],[Item ID]],Analysis_Table,13,FALSE)","v":{"$error":"#N/A"}},{"$f":"VLOOKUP(Table_Data_Table_135[[#This Row],[Item ID]],Analysis_Table,14,FALSE)","v":{"$error":"#N/A"}},{"$f":"VLOOKUP(Table_Data_Table_135[[#This Row],[Item ID]],Analysis_Table,15,FALSE)","v":{"$error":"#N/A"}},{"$f":"VLOOKUP(Table_Data_Table_135[[#This Row],[Item ID]],Analysis_Table,16,FALSE)","v":{"$error":"#N/A"}},{"$f":"VLOOKUP(Table_Data_Table_135[[#This Row],[Item ID]],Analysis_Table,17,FALSE)","v":{"$error":"#N/A"}},{"$f":"VLOOKUP(Table_Data_Table_135[[#This Row],[Item ID]],Analysis_Table,18,FALSE)","v":{"$error":"#N/A"}},{"$f":"VLOOKUP(Table_Data_Table_135[[#This Row],[Item ID]],Analysis_Table,19,FALSE)","v":{"$error":"#N/A"}},null,null,1]
["",null,{"$f":"VLOOKUP(Table_Data_Table_135[[#This Row],[Item ID]],Analysis_Table,20,FALSE)","v":{"$error":"#N/A"}},null,null,null,null,null,null,null,0,null,null,null,{"$f":"VLOOKUP(Table_Data_Table_135[[#This Row],[Item ID]],Analysis_Table,8,FALSE)","v":{"$error":"#N/A"}},{"$f":"VLOOKUP(Table_Data_Table_135[[#This Row],[Item ID]],Analysis_Table,9,FALSE)","v":{"$error":"#N/A"}},{"$f":"VLOOKUP(Table_Data_Table_135[[#This Row],[Item ID]],Analysis_Table,10,FALSE)","v":{"$error":"#N/A"}},{"$f":"VLOOKUP(Table_Data_Table_135[[#This Row],[Item ID]],Analysis_Table,11,FALSE)","v":{"$error":"#N/A"}},{"$f":"VLOOKUP(Table_Data_Table_135[[#This Row],[Item ID]],Analysis_Table,12,FALSE)","v":{"$error":"#N/A"}},{"$f":"VLOOKUP(Table_Data_Table_135[[#This Row],[Item ID]],Analysis_Table,13,FALSE)","v":{"$error":"#N/A"}},{"$f":"VLOOKUP(Table_Data_Table_135[[#This Row],[Item ID]],Analysis_Table,14,FALSE)","v":{"$error":"#N/A"}},{"$f":"VLOOKUP(Table_Data_Table_135[[#This Row],[Item ID]],Analysis_Table,15,FALSE)","v":{"$error":"#N/A"}},{"$f":"VLOOKUP(Table_Data_Table_135[[#This Row],[Item ID]],Analysis_Table,16,FALSE)","v":{"$error":"#N/A"}},{"$f":"VLOOKUP(Table_Data_Table_135[[#This Row],[Item ID]],Analysis_Table,17,FALSE)","v":{"$error":"#N/A"}},{"$f":"VLOOKUP(Table_Data_Table_135[[#This Row],[Item ID]],Analysis_Table,18,FALSE)","v":{"$error":"#N/A"}},{"$f":"VLOOKUP(Table_Data_Table_135[[#This Row],[Item ID]],Analysis_Table,19,FALSE)","v":{"$error":"#N/A"}},null,null,1]
["",null,{"$f":"VLOOKUP(Table_Data_Table_135[[#This Row],[Item ID]],Analysis_Table,20,FALSE)","v":{"$error":"#N/A"}},null,null,null,null,null,null,null,0,null,null,null,{"$f":"VLOOKUP(Table_Data_Table_135[[#This Row],[Item ID]],Analysis_Table,8,FALSE)","v":{"$error":"#N/A"}},{"$f":"VLOOKUP(Table_Data_Table_135[[#This Row],[Item ID]],Analysis_Table,9,FALSE)","v":{"$error":"#N/A"}},{"$f":"VLOOKUP(Table_Data_Table_135[[#This Row],[Item ID]],Analysis_Table,10,FALSE)","v":{"$error":"#N/A"}},{"$f":"VLOOKUP(Table_Data_Table_135[[#This Row],[Item ID]],Analysis_Table,11,FALSE)","v":{"$error":"#N/A"}},{"$f":"VLOOKUP(Table_Data_Table_135[[#This Row],[Item ID]],Analysis_Table,12,FALSE)","v":{"$error":"#N/A"}},{"$f":"VLOOKUP(Table_Data_Table_135[[#This Row],[Item ID]],Analysis_Table,13,FALSE)","v":{"$error":"#N/A"}},{"$f":"VLOOKUP(Table_Data_Table_135[[#This Row],[Item ID]],Analysis_Table,14,FALSE)","v":{"$error":"#N/A"}},{"$f":"VLOOKUP(Table_Data_Table_135[[#This Row],[Item ID]],Analysis_Table,15,FALSE)","v":{"$error":"#N/A"}},{"$f":"VLOOKUP(Table_Data_Table_135[[#This Row],[Item ID]],Analysis_Table,16,FALSE)","v":{"$error":"#N/A"}},{"$f":"VLOOKUP(Table_Data_Table_135[[#This Row],[Item ID]],Analysis_Table,17,FALSE)","v":{"$error":"#N/A"}},{"$f":"VLOOKUP(Table_Data_Table_135[[#This Row],[Item ID]],Analysis_Table,18,FALSE)","v":{"$error":"#N/A"}},{"$f":"VLOOKUP(Table_Data_Table_135[[#This Row],[Item ID]],Analysis_Table,19,FALSE)","v":{"$error":"#N/A"}},null,null,1]
["",null,{"$f":"VLOOKUP(Table_Data_Table_135[[#This Row],[Item ID]],Analysis_Table,20,FALSE)","v":{"$error":"#N/A"}},null,null,null,null,null,null,null,0,null,null,null,{"$f":"VLOOKUP(Table_Data_Table_135[[#This Row],[Item ID]],Analysis_Table,8,FALSE)","v":{"$error":"#N/A"}},{"$f":"VLOOKUP(Table_Data_Table_135[[#This Row],[Item ID]],Analysis_Table,9,FALSE)","v":{"$error":"#N/A"}},{"$f":"VLOOKUP(Table_Data_Table_135[[#This Row],[Item ID]],Analysis_Table,10,FALSE)","v":{"$error":"#N/A"}},{"$f":"VLOOKUP(Table_Data_Table_135[[#This Row],[Item ID]],Analysis_Table,11,FALSE)","v":{"$error":"#N/A"}},{"$f":"VLOOKUP(Table_Data_Table_135[[#This Row],[Item ID]],Analysis_Table,12,FALSE)","v":{"$error":"#N/A"}},{"$f":"VLOOKUP(Table_Data_Table_135[[#This Row],[Item ID]],Analysis_Table,13,FALSE)","v":{"$error":"#N/A"}},{"$f":"VLOOKUP(Table_Data_Table_135[[#This Row],[Item ID]],Analysis_Table,14,FALSE)","v":{"$error":"#N/A"}},{"$f":"VLOOKUP(Table_Data_Table_135[[#This Row],[Item ID]],Analysis_Table,15,FALSE)","v":{"$error":"#N/A"}},{"$f":"VLOOKUP(Table_Data_Table_135[[#This Row],[Item ID]],Analysis_Table,16,FALSE)","v":{"$error":"#N/A"}},{"$f":"VLOOKUP(Table_Data_Table_135[[#This Row],[Item ID]],Analysis_Table,17,FALSE)","v":{"$error":"#N/A"}},{"$f":"VLOOKUP(Table_Data_Table_135[[#This Row],[Item ID]],Analysis_Table,18,FALSE)","v":{"$error":"#N/A"}},{"$f":"VLOOKUP(Table_Data_Table_135[[#This Row],[Item ID]],Analysis_Table,19,FALSE)","v":{"$error":"#N/A"}},null,null,1]
["",null,{"$f":"VLOOKUP(Table_Data_Table_135[[#This Row],[Item ID]],Analysis_Table,20,FALSE)","v":{"$error":"#N/A"}},null,null,null,null,null,null,null,0,null,null,null,{"$f":"VLOOKUP(Table_Data_Table_135[[#This Row],[Item ID]],Analysis_Table,8,FALSE)","v":{"$error":"#N/A"}},{"$f":"VLOOKUP(Table_Data_Table_135[[#This Row],[Item ID]],Analysis_Table,9,FALSE)","v":{"$error":"#N/A"}},{"$f":"VLOOKUP(Table_Data_Table_135[[#This Row],[Item ID]],Analysis_Table,10,FALSE)","v":{"$error":"#N/A"}},{"$f":"VLOOKUP(Table_Data_Table_135[[#This Row],[Item ID]],Analysis_Table,11,FALSE)","v":{"$error":"#N/A"}},{"$f":"VLOOKUP(Table_Data_Table_135[[#This Row],[Item ID]],Analysis_Table,12,FALSE)","v":{"$error":"#N/A"}},{"$f":"VLOOKUP(Table_Data_Table_135[[#This Row],[Item ID]],Analysis_Table,13,FALSE)","v":{"$error":"#N/A"}},{"$f":"VLOOKUP(Table_Data_Table_135[[#This Row],[Item ID]],Analysis_Table,14,FALSE)","v":{"$error":"#N/A"}},{"$f":"VLOOKUP(Table_Data_Table_135[[#This Row],[Item ID]],Analysis_Table,15,FALSE)","v":{"$error":"#N/A"}},{"$f":"VLOOKUP(Table_Data_Table_135[[#This Row],[Item ID]],Analysis_Table,16,FALSE)","v":{"$error":"#N/A"}},{"$f":"VLOOKUP(Table_Data_Table_135[[#This Row],[Item ID]],Analysis_Table,17,FALSE)","v":{"$error":"#N/A"}},{"$f":"VLOOKUP(Table_Data_Table_135[[#This Row],[Item ID]],Analysis_Table,18,FALSE)","v":{"$error":"#N/A"}},{"$f":"VLOOKUP(Table_Data_Table_135[[#This Row],[Item ID]],Analysis_Table,19,FALSE)","v":{"$error":"#N/A"}},null,null,1]
["",null,{"$f":"VLOOKUP(Table_Data_Table_135[[#This Row],[Item ID]],Analysis_Table,20,FALSE)","v":{"$error":"#N/A"}},null,null,null,null,null,null,null,0,null,null,null,{"$f":"VLOOKUP(Table_Data_Table_135[[#This Row],[Item ID]],Analysis_Table,8,FALSE)","v":{"$error":"#N/A"}},{"$f":"VLOOKUP(Table_Data_Table_135[[#This Row],[Item ID]],Analysis_Table,9,FALSE)","v":{"$error":"#N/A"}},{"$f":"VLOOKUP(Table_Data_Table_135[[#This Row],[Item ID]],Analysis_Table,10,FALSE)","v":{"$error":"#N/A"}},{"$f":"VLOOKUP(Table_Data_Table_135[[#This Row],[Item ID]],Analysis_Table,11,FALSE)","v":{"$error":"#N/A"}},{"$f":"VLOOKUP(Table_Data_Table_135[[#This Row],[Item ID]],Analysis_Table,12,FALSE)","v":{"$error":"#N/A"}},{"$f":"VLOOKUP(Table_Data_Table_135[[#This Row],[Item ID]],Analysis_Table,13,FALSE)","v":{"$error":"#N/A"}},{"$f":"VLOOKUP(Table_Data_Table_135[[#This Row],[Item ID]],Analysis_Table,14,FALSE)","v":{"$error":"#N/A"}},{"$f":"VLOOKUP(Table_Data_Table_135[[#This Row],[Item ID]],Analysis_Table,15,FALSE)","v":{"$error":"#N/A"}},{"$f":"VLOOKUP(Table_Data_Table_135[[#This Row],[Item ID]],Analysis_Table,16,FALSE)","v":{"$error":"#N/A"}},{"$f":"VLOOKUP(Table_Data_Table_135[[#This Row],[Item ID]],Analysis_Table,17,FALSE)","v":{"$error":"#N/A"}},{"$f":"VLOOKUP(Table_Data_Table_135[[#This Row],[Item ID]],Analysis_Table,18,FALSE)","v":{"$error":"#N/A"}},{"$f":"VLOOKUP(Table_Data_Table_135[[#This Row],[Item ID]],Analysis_Table,19,FALSE)","v":{"$error":"#N/A"}},null,null,1]
["",null,{"$f":"VLOOKUP(Table_Data_Table_135[[#This Row],[Item ID]],Analysis_Table,20,FALSE)","v":{"$error":"#N/A"}},null,null,null,null,null,null,null,0,null,null,null,{"$f":"VLOOKUP(Table_Data_Table_135[[#This Row],[Item ID]],Analysis_Table,8,FALSE)","v":{"$error":"#N/A"}},{"$f":"VLOOKUP(Table_Data_Table_135[[#This Row],[Item ID]],Analysis_Table,9,FALSE)","v":{"$error":"#N/A"}},{"$f":"VLOOKUP(Table_Data_Table_135[[#This Row],[Item ID]],Analysis_Table,10,FALSE)","v":{"$error":"#N/A"}},{"$f":"VLOOKUP(Table_Data_Table_135[[#This Row],[Item ID]],Analysis_Table,11,FALSE)","v":{"$error":"#N/A"}},{"$f":"VLOOKUP(Table_Data_Table_135[[#This Row],[Item ID]],Analysis_Table,12,FALSE)","v":{"$error":"#N/A"}},{"$f":"VLOOKUP(Table_Data_Table_135[[#This Row],[Item ID]],Analysis_Table,13,FALSE)","v":{"$error":"#N/A"}},{"$f":"VLOOKUP(Table_Data_Table_135[[#This Row],[Item ID]],Analysis_Table,14,FALSE)","v":{"$error":"#N/A"}},{"$f":"VLOOKUP(Table_Data_Table_135[[#This Row],[Item ID]],Analysis_Table,15,FALSE)","v":{"$error":"#N/A"}},{"$f":"VLOOKUP(Table_Data_Table_135[[#This Row],[Item ID]],Analysis_Table,16,FALSE)","v":{"$error":"#N/A"}},{"$f":"VLOOKUP(Table_Data_Table_135[[#This Row],[Item ID]],Analysis_Table,17,FALSE)","v":{"$error":"#N/A"}},{"$f":"VLOOKUP(Table_Data_Table_135[[#This Row],[Item ID]],Analysis_Table,18,FALSE)","v":{"$error":"#N/A"}},{"$f":"VLOOKUP(Table_Data_Table_135[[#This Row],[Item ID]],Analysis_Table,19,FALSE)","v":{"$error":"#N/A"}},null,null,1]
["",null,{"$f":"VLOOKUP(Table_Data_Table_135[[#This Row],[Item ID]],Analysis_Table,20,FALSE)","v":{"$error":"#N/A"}},null,null,null,null,null,null,null,0,null,null,null,{"$f":"VLOOKUP(Table_Data_Table_135[[#This Row],[Item ID]],Analysis_Table,8,FALSE)","v":{"$error":"#N/A"}},{"$f":"VLOOKUP(Table_Data_Table_135[[#This Row],[Item ID]],Analysis_Table,9,FALSE)","v":{"$error":"#N/A"}},{"$f":"VLOOKUP(Table_Data_Table_135[[#This Row],[Item ID]],Analysis_Table,10,FALSE)","v":{"$error":"#N/A"}},{"$f":"VLOOKUP(Table_Data_Table_135[[#This Row],[Item ID]],Analysis_Table,11,FALSE)","v":{"$error":"#N/A"}},{"$f":"VLOOKUP(Table_Data_Table_135[[#This Row],[Item ID]],Analysis_Table,12,FALSE)","v":{"$error":"#N/A"}},{"$f":"VLOOKUP(Table_Data_Table_135[[#This Row],[Item ID]],Analysis_Table,13,FALSE)","v":{"$error":"#N/A"}},{"$f":"VLOOKUP(Table_Data_Table_135[[#This Row],[Item ID]],Analysis_Table,14,FALSE)","v":{"$error":"#N/A"}},{"$f":"VLOOKUP(Table_Data_Table_135[[#This Row],[Item ID]],Analysis_Table,15,FALSE)","v":{"$error":"#N/A"}},{"$f":"VLOOKUP(Table_Data_Table_135[[#This Row],[Item ID]],Analysis_Table,16,FALSE)","v":{"$error":"#N/A"}},{"$f":"VLOOKUP(Table_Data_Table_135[[#This Row],[Item ID]],Analysis_Table,17,FALSE)","v":{"$error":"#N/A"}},{"$f":"VLOOKUP(Table_Data_Table_135[[#This Row],[Item ID]],Analysis_Table,18,FALSE)","v":{"$error":"#N/A"}},{"$f":"VLOOKUP(Table_Data_Table_135[[#This Row],[Item ID]],Analysis_Table,19,FALSE)","v":{"$error":"#N/A"}},null,null,1]
["",null,{"$f":"VLOOKUP(Table_Data_Table_135[[#This Row],[Item ID]],Analysis_Table,20,FALSE)","v":{"$error":"#N/A"}},null,null,null,null,null,null,null,0,null,null,null,{"$f":"VLOOKUP(Table_Data_Table_135[[#This Row],[Item ID]],Analysis_Table,8,FALSE)","v":{"$error":"#N/A"}},{"$f":"VLOOKUP(Table_Data_Table_135[[#This Row],[Item ID]],Analysis_Table,9,FALSE)","v":{"$error":"#N/A"}},{"$f":"VLOOKUP(Table_Data_Table_135[[#This Row],[Item ID]],Analysis_Table,10,FALSE)","v":{"$error":"#N/A"}},{"$f":"VLOOKUP(Table_Data_Table_135[[#This Row],[Item ID]],Analysis_Table,11,FALSE)","v":{"$error":"#N/A"}},{"$f":"VLOOKUP(Table_Data_Table_135[[#This Row],[Item ID]],Analysis_Table,12,FALSE)","v":{"$error":"#N/A"}},{"$f":"VLOOKUP(Table_Data_Table_135[[#This Row],[Item ID]],Analysis_Table,13,FALSE)","v":{"$error":"#N/A"}},{"$f":"VLOOKUP(Table_Data_Table_135[[#This Row],[Item ID]],Analysis_Table,14,FALSE)","v":{"$error":"#N/A"}},{"$f":"VLOOKUP(Table_Data_Table_135[[#This Row],[Item ID]],Analysis_Table,15,FALSE)","v":{"$error":"#N/A"}},{"$f":"VLOOKUP(Table_Data_Table_135[[#This Row],[Item ID]],Analysis_Table,16,FALSE)","v":{"$error":"#N/A"}},{"$f":"VLOOKUP(Table_Data_Table_135[[#This Row],[Item ID]],Analysis_Table,17,FALSE)","v":{"$error":"#N/A"}},{"$f":"VLOOKUP(Table_Data_Table_135[[#This Row],[Item ID]],Analysis_Table,18,FALSE)","v":{"$error":"#N/A"}},{"$f":"VLOOKUP(Table_Data_Table_135[[#This Row],[Item ID]],Analysis_Table,19,FALSE)","v":{"$error":"#N/A"}},null,null,1]
["",null,{"$f":"VLOOKUP(Table_Data_Table_135[[#This Row],[Item ID]],Analysis_Table,20,FALSE)","v":{"$error":"#N/A"}},null,null,null,null,null,null,null,0,null,null,null,{"$f":"VLOOKUP(Table_Data_Table_135[[#This Row],[Item ID]],Analysis_Table,8,FALSE)","v":{"$error":"#N/A"}},{"$f":"VLOOKUP(Table_Data_Table_135[[#This Row],[Item ID]],Analysis_Table,9,FALSE)","v":{"$error":"#N/A"}},{"$f":"VLOOKUP(Table_Data_Table_135[[#This Row],[Item ID]],Analysis_Table,10,FALSE)","v":{"$error":"#N/A"}},{"$f":"VLOOKUP(Table_Data_Table_135[[#This Row],[Item ID]],Analysis_Table,11,FALSE)","v":{"$error":"#N/A"}},{"$f":"VLOOKUP(Table_Data_Table_135[[#This Row],[Item ID]],Analysis_Table,12,FALSE)","v":{"$error":"#N/A"}},{"$f":"VLOOKUP(Table_Data_Table_135[[#This Row],[Item ID]],Analysis_Table,13,FALSE)","v":{"$error":"#N/A"}},{"$f":"VLOOKUP(Table_Data_Table_135[[#This Row],[Item ID]],Analysis_Table,14,FALSE)","v":{"$error":"#N/A"}},{"$f":"VLOOKUP(Table_Data_Table_135[[#This Row],[Item ID]],Analysis_Table,15,FALSE)","v":{"$error":"#N/A"}},{"$f":"VLOOKUP(Table_Data_Table_135[[#This Row],[Item ID]],Analysis_Table,16,FALSE)","v":{"$error":"#N/A"}},{"$f":"VLOOKUP(Table_Data_Table_135[[#This Row],[Item ID]],Analysis_Table,17,FALSE)","v":{"$error":"#N/A"}},{"$f":"VLOOKUP(Table_Data_Table_135[[#This Row],[Item ID]],Analysis_Table,18,FALSE)","v":{"$error":"#N/A"}},{"$f":"VLOOKUP(Table_Data_Table_135[[#This Row],[Item ID]],Analysis_Table,19,FALSE)","v":{"$error":"#N/A"}},null,null,1]
["",null,{"$f":"VLOOKUP(Table_Data_Table_135[[#This Row],[Item ID]],Analysis_Table,20,FALSE)","v":{"$error":"#N/A"}},null,null,null,null,null,null,null,0,null,null,null,{"$f":"VLOOKUP(Table_Data_Table_135[[#This Row],[Item ID]],Analysis_Table,8,FALSE)","v":{"$error":"#N/A"}},{"$f":"VLOOKUP(Table_Data_Table_135[[#This Row],[Item ID]],Analysis_Table,9,FALSE)","v":{"$error":"#N/A"}},{"$f":"VLOOKUP(Table_Data_Table_135[[#This Row],[Item ID]],Analysis_Table,10,FALSE)","v":{"$error":"#N/A"}},{"$f":"VLOOKUP(Table_Data_Table_135[[#This Row],[Item ID]],Analysis_Table,11,FALSE)","v":{"$error":"#N/A"}},{"$f":"VLOOKUP(Table_Data_Table_135[[#This Row],[Item ID]],Analysis_Table,12,FALSE)","v":{"$error":"#N/A"}},{"$f":"VLOOKUP(Table_Data_Table_135[[#This Row],[Item ID]],Analysis_Table,13,FALSE)","v":{"$error":"#N/A"}},{"$f":"VLOOKUP(Table_Data_Table_135[[#This Row],[Item ID]],Analysis_Table,14,FALSE)","v":{"$error":"#N/A"}},{"$f":"VLOOKUP(Table_Data_Table_135[[#This Row],[Item ID]],Analysis_Table,15,FALSE)","v":{"$error":"#N/A"}},{"$f":"VLOOKUP(Table_Data_Table_135[[#This Row],[Item ID]],Analysis_Table,16,FALSE)","v":{"$error":"#N/A"}},{"$f":"VLOOKUP(Table_Data_Table_135[[#This Row],[Item ID]],Analysis_Table,17,FALSE)","v":{"$error":"#N/A"}},{"$f":"VLOOKUP(Table_Data_Table_135[[#This Row],[Item ID]],Analysis_Table,18,FALSE)","v":{"$error":"#N/A"}},{"$f":"VLOOKUP(Table_Data_Table_135[[#This Row],[Item ID]],Analysis_Table,19,FALSE)","v":{"$error":"#N/A"}},null,null,1]
["",null,{"$f":"VLOOKUP(Table_Data_Table_135[[#This Row],[Item ID]],Analysis_Table,20,FALSE)","v":{"$error":"#N/A"}},null,null,null,null,null,null,null,0,null,null,null,{"$f":"VLOOKUP(Table_Data_Table_135[[#This Row],[Item ID]],Analysis_Table,8,FALSE)","v":{"$error":"#N/A"}},{"$f":"VLOOKUP(Table_Data_Table_135[[#This Row],[Item ID]],Analysis_Table,9,FALSE)","v":{"$error":"#N/A"}},{"$f":"VLOOKUP(Table_Data_Table_135[[#This Row],[Item ID]],Analysis_Table,10,FALSE)","v":{"$error":"#N/A"}},{"$f":"VLOOKUP(Table_Data_Table_135[[#This Row],[Item ID]],Analysis_Table,11,FALSE)","v":{"$error":"#N/A"}},{"$f":"VLOOKUP(Table_Data_Table_135[[#This Row],[Item ID]],Analysis_Table,12,FALSE)","v":{"$error":"#N/A"}},{"$f":"VLOOKUP(Table_Data_Table_135[[#This Row],[Item ID]],Analysis_Table,13,FALSE)","v":{"$error":"#N/A"}},{"$f":"VLOOKUP(Table_Data_Table_135[[#This Row],[Item ID]],Analysis_Table,14,FALSE)","v":{"$error":"#N/A"}},{"$f":"VLOOKUP(Table_Data_Table_135[[#This Row],[Item ID]],Analysis_Table,15,FALSE)","v":{"$error":"#N/A"}},{"$f":"VLOOKUP(Table_Data_Table_135[[#This Row],[Item ID]],Analysis_Table,16,FALSE)","v":{"$error":"#N/A"}},{"$f":"VLOOKUP(Table_Data_Table_135[[#This Row],[Item ID]],Analysis_Table,17,FALSE)","v":{"$error":"#N/A"}},{"$f":"VLOOKUP(Table_Data_Table_135[[#This Row],[Item ID]],Analysis_Table,18,FALSE)","v":{"$error":"#N/A"}},{"$f":"VLOOKUP(Table_Data_Table_135[[#This Row],[Item ID]],Analysis_Table,19,FALSE)","v":{"$error":"#N/A"}},null,null,1]
["",null,{"$f":"VLOOKUP(Table_Data_Table_135[[#This Row],[Item ID]],Analysis_Table,20,FALSE)","v":{"$error":"#N/A"}},null,null,null,null,null,null,null,0,null,null,null,{"$f":"VLOOKUP(Table_Data_Table_135[[#This Row],[Item ID]],Analysis_Table,8,FALSE)","v":{"$error":"#N/A"}},{"$f":"VLOOKUP(Table_Data_Table_135[[#This Row],[Item ID]],Analysis_Table,9,FALSE)","v":{"$error":"#N/A"}},{"$f":"VLOOKUP(Table_Data_Table_135[[#This Row],[Item ID]],Analysis_Table,10,FALSE)","v":{"$error":"#N/A"}},{"$f":"VLOOKUP(Table_Data_Table_135[[#This Row],[Item ID]],Analysis_Table,11,FALSE)","v":{"$error":"#N/A"}},{"$f":"VLOOKUP(Table_Data_Table_135[[#This Row],[Item ID]],Analysis_Table,12,FALSE)","v":{"$error":"#N/A"}},{"$f":"VLOOKUP(Table_Data_Table_135[[#This Row],[Item ID]],Analysis_Table,13,FALSE)","v":{"$error":"#N/A"}},{"$f":"VLOOKUP(Table_Data_Table_135[[#This Row],[Item ID]],Analysis_Table,14,FALSE)","v":{"$error":"#N/A"}},{"$f":"VLOOKUP(Table_Data_Table_135[[#This Row],[Item ID]],Analysis_Table,15,FALSE)","v":{"$error":"#N/A"}},{"$f":"VLOOKUP(Table_Data_Table_135[[#This Row],[Item ID]],Analysis_Table,16,FALSE)","v":{"$error":"#N/A"}},{"$f":"VLOOKUP(Table_Data_Table_135[[#This Row],[Item ID]],Analysis_Table,17,FALSE)","v":{"$error":"#N/A"}},{"$f":"VLOOKUP(Table_Data_Table_135[[#This Row],[Item ID]],Analysis_Table,18,FALSE)","v":{"$error":"#N/A"}},{"$f":"VLOOKUP(Table_Data_Table_135[[#This Row],[Item ID]],Analysis_Table,19,FALSE)","v":{"$error":"#N/A"}},null,null,1]
["",null,{"$f":"VLOOKUP(Table_Data_Table_135[[#This Row],[Item ID]],Analysis_Table,20,FALSE)","v":{"$error":"#N/A"}},null,null,null,null,null,null,null,0,null,null,null,{"$f":"VLOOKUP(Table_Data_Table_135[[#This Row],[Item ID]],Analysis_Table,8,FALSE)","v":{"$error":"#N/A"}},{"$f":"VLOOKUP(Table_Data_Table_135[[#This Row],[Item ID]],Analysis_Table,9,FALSE)","v":{"$error":"#N/A"}},{"$f":"VLOOKUP(Table_Data_Table_135[[#This Row],[Item ID]],Analysis_Table,10,FALSE)","v":{"$error":"#N/A"}},{"$f":"VLOOKUP(Table_Data_Table_135[[#This Row],[Item ID]],Analysis_Table,11,FALSE)","v":{"$error":"#N/A"}},{"$f":"VLOOKUP(Table_Data_Table_135[[#This Row],[Item ID]],Analysis_Table,12,FALSE)","v":{"$error":"#N/A"}},{"$f":"VLOOKUP(Table_Data_Table_135[[#This Row],[Item ID]],Analysis_Table,13,FALSE)","v":{"$error":"#N/A"}},{"$f":"VLOOKUP(Table_Data_Table_135[[#This Row],[Item ID]],Analysis_Table,14,FALSE)","v":{"$error":"#N/A"}},{"$f":"VLOOKUP(Table_Data_Table_135[[#This Row],[Item ID]],Analysis_Table,15,FALSE)","v":{"$error":"#N/A"}},{"$f":"VLOOKUP(Table_Data_Table_135[[#This Row],[Item ID]],Analysis_Table,16,FALSE)","v":{"$error":"#N/A"}},{"$f":"VLOOKUP(Table_Data_Table_135[[#This Row],[Item ID]],Analysis_Table,17,FALSE)","v":{"$error":"#N/A"}},{"$f":"VLOOKUP(Table_Data_Table_135[[#This Row],[Item ID]],Analysis_Table,18,FALSE)","v":{"$error":"#N/A"}},{"$f":"VLOOKUP(Table_Data_Table_135[[#This Row],[Item ID]],Analysis_Table,19,FALSE)","v":{"$error":"#N/A"}},null,null,1]
["",null,{"$f":"VLOOKUP(Table_Data_Table_135[[#This Row],[Item ID]],Analysis_Table,20,FALSE)","v":{"$error":"#N/A"}},null,null,null,null,null,null,null,0,null,null,null,{"$f":"VLOOKUP(Table_Data_Table_135[[#This Row],[Item ID]],Analysis_Table,8,FALSE)","v":{"$error":"#N/A"}},{"$f":"VLOOKUP(Table_Data_Table_135[[#This Row],[Item ID]],Analysis_Table,9,FALSE)","v":{"$error":"#N/A"}},{"$f":"VLOOKUP(Table_Data_Table_135[[#This Row],[Item ID]],Analysis_Table,10,FALSE)","v":{"$error":"#N/A"}},{"$f":"VLOOKUP(Table_Data_Table_135[[#This Row],[Item ID]],Analysis_Table,11,FALSE)","v":{"$error":"#N/A"}},{"$f":"VLOOKUP(Table_Data_Table_135[[#This Row],[Item ID]],Analysis_Table,12,FALSE)","v":{"$error":"#N/A"}},{"$f":"VLOOKUP(Table_Data_Table_135[[#This Row],[Item ID]],Analysis_Table,13,FALSE)","v":{"$error":"#N/A"}},{"$f":"VLOOKUP(Table_Data_Table_135[[#This Row],[Item ID]],Analysis_Table,14,FALSE)","v":{"$error":"#N/A"}},{"$f":"VLOOKUP(Table_Data_Table_135[[#This Row],[Item ID]],Analysis_Table,15,FALSE)","v":{"$error":"#N/A"}},{"$f":"VLOOKUP(Table_Data_Table_135[[#This Row],[Item ID]],Analysis_Table,16,FALSE)","v":{"$error":"#N/A"}},{"$f":"VLOOKUP(Table_Data_Table_135[[#This Row],[Item ID]],Analysis_Table,17,FALSE)","v":{"$error":"#N/A"}},{"$f":"VLOOKUP(Table_Data_Table_135[[#This Row],[Item ID]],Analysis_Table,18,FALSE)","v":{"$error":"#N/A"}},{"$f":"VLOOKUP(Table_Data_Table_135[[#This Row],[Item ID]],Analysis_Table,19,FALSE)","v":{"$error":"#N/A"}},null,null,1]
["",null,{"$f":"VLOOKUP(Table_Data_Table_135[[#This Row],[Item ID]],Analysis_Table,20,FALSE)","v":{"$error":"#N/A"}},null,null,null,null,null,null,null,0,null,null,null,{"$f":"VLOOKUP(Table_Data_Table_135[[#This Row],[Item ID]],Analysis_Table,8,FALSE)","v":{"$error":"#N/A"}},{"$f":"VLOOKUP(Table_Data_Table_135[[#This Row],[Item ID]],Analysis_Table,9,FALSE)","v":{"$error":"#N/A"}},{"$f":"VLOOKUP(Table_Data_Table_135[[#This Row],[Item ID]],Analysis_Table,10,FALSE)","v":{"$error":"#N/A"}},{"$f":"VLOOKUP(Table_Data_Table_135[[#This Row],[Item ID]],Analysis_Table,11,FALSE)","v":{"$error":"#N/A"}},{"$f":"VLOOKUP(Table_Data_Table_135[[#This Row],[Item ID]],Analysis_Table,12,FALSE)","v":{"$error":"#N/A"}},{"$f":"VLOOKUP(Table_Data_Table_135[[#This Row],[Item ID]],Analysis_Table,13,FALSE)","v":{"$error":"#N/A"}},{"$f":"VLOOKUP(Table_Data_Table_135[[#This Row],[Item ID]],Analysis_Table,14,FALSE)","v":{"$error":"#N/A"}},{"$f":"VLOOKUP(Table_Data_Table_135[[#This Row],[Item ID]],Analysis_Table,15,FALSE)","v":{"$error":"#N/A"}},{"$f":"VLOOKUP(Table_Data_Table_135[[#This Row],[Item ID]],Analysis_Table,16,FALSE)","v":{"$error":"#N/A"}},{"$f":"VLOOKUP(Table_Data_Table_135[[#This Row],[Item ID]],Analysis_Table,17,FALSE)","v":{"$error":"#N/A"}},{"$f":"VLOOKUP(Table_Data_Table_135[[#This Row],[Item ID]],Analysis_Table,18,FALSE)","v":{"$error":"#N/A"}},{"$f":"VLOOKUP(Table_Data_Table_135[[#This Row],[Item ID]],Analysis_Table,19,FALSE)","v":{"$error":"#N/A"}},null,null,1]
["",null,{"$f":"VLOOKUP(Table_Data_Table_135[[#This Row],[Item ID]],Analysis_Table,20,FALSE)","v":{"$error":"#N/A"}},null,null,null,null,null,null,null,0,null,null,null,{"$f":"VLOOKUP(Table_Data_Table_135[[#This Row],[Item ID]],Analysis_Table,8,FALSE)","v":{"$error":"#N/A"}},{"$f":"VLOOKUP(Table_Data_Table_135[[#This Row],[Item ID]],Analysis_Table,9,FALSE)","v":{"$error":"#N/A"}},{"$f":"VLOOKUP(Table_Data_Table_135[[#This Row],[Item ID]],Analysis_Table,10,FALSE)","v":{"$error":"#N/A"}},{"$f":"VLOOKUP(Table_Data_Table_135[[#This Row],[Item ID]],Analysis_Table,11,FALSE)","v":{"$error":"#N/A"}},{"$f":"VLOOKUP(Table_Data_Table_135[[#This Row],[Item ID]],Analysis_Table,12,FALSE)","v":{"$error":"#N/A"}},{"$f":"VLOOKUP(Table_Data_Table_135[[#This Row],[Item ID]],Analysis_Table,13,FALSE)","v":{"$error":"#N/A"}},{"$f":"VLOOKUP(Table_Data_Table_135[[#This Row],[Item ID]],Analysis_Table,14,FALSE)","v":{"$error":"#N/A"}},{"$f":"VLOOKUP(Table_Data_Table_135[[#This Row],[Item ID]],Analysis_Table,15,FALSE)","v":{"$error":"#N/A"}},{"$f":"VLOOKUP(Table_Data_Table_135[[#This Row],[Item ID]],Analysis_Table,16,FALSE)","v":{"$error":"#N/A"}},{"$f":"VLOOKUP(Table_Data_Table_135[[#This Row],[Item ID]],Analysis_Table,17,FALSE)","v":{"$error":"#N/A"}},{"$f":"VLOOKUP(Table_Data_Table_135[[#This Row],[Item ID]],Analysis_Table,18,FALSE)","v":{"$error":"#N/A"}},{"$f":"VLOOKUP(Table_Data_Table_135[[#This Row],[Item ID]],Analysis_Table,19,FALSE)","v":{"$error":"#N/A"}},null,null,1]
["",null,{"$f":"VLOOKUP(Table_Data_Table_135[[#This Row],[Item ID]],Analysis_Table,20,FALSE)","v":{"$error":"#N/A"}},null,null,null,null,null,null,null,0,null,null,null,{"$f":"VLOOKUP(Table_Data_Table_135[[#This Row],[Item ID]],Analysis_Table,8,FALSE)","v":{"$error":"#N/A"}},{"$f":"VLOOKUP(Table_Data_Table_135[[#This Row],[Item ID]],Analysis_Table,9,FALSE)","v":{"$error":"#N/A"}},{"$f":"VLOOKUP(Table_Data_Table_135[[#This Row],[Item ID]],Analysis_Table,10,FALSE)","v":{"$error":"#N/A"}},{"$f":"VLOOKUP(Table_Data_Table_135[[#This Row],[Item ID]],Analysis_Table,11,FALSE)","v":{"$error":"#N/A"}},{"$f":"VLOOKUP(Table_Data_Table_135[[#This Row],[Item ID]],Analysis_Table,12,FALSE)","v":{"$error":"#N/A"}},{"$f":"VLOOKUP(Table_Data_Table_135[[#This Row],[Item ID]],Analysis_Table,13,FALSE)","v":{"$error":"#N/A"}},{"$f":"VLOOKUP(Table_Data_Table_135[[#This Row],[Item ID]],Analysis_Table,14,FALSE)","v":{"$error":"#N/A"}},{"$f":"VLOOKUP(Table_Data_Table_135[[#This Row],[Item ID]],Analysis_Table,15,FALSE)","v":{"$error":"#N/A"}},{"$f":"VLOOKUP(Table_Data_Table_135[[#This Row],[Item ID]],Analysis_Table,16,FALSE)","v":{"$error":"#N/A"}},{"$f":"VLOOKUP(Table_Data_Table_135[[#This Row],[Item ID]],Analysis_Table,17,FALSE)","v":{"$error":"#N/A"}},{"$f":"VLOOKUP(Table_Data_Table_135[[#This Row],[Item ID]],Analysis_Table,18,FALSE)","v":{"$error":"#N/A"}},{"$f":"VLOOKUP(Table_Data_Table_135[[#This Row],[Item ID]],Analysis_Table,19,FALSE)","v":{"$error":"#N/A"}},null,null,1]
["",null,{"$f":"VLOOKUP(Table_Data_Table_135[[#This Row],[Item ID]],Analysis_Table,20,FALSE)","v":{"$error":"#N/A"}},null,null,null,null,null,null,null,0,null,null,null,{"$f":"VLOOKUP(Table_Data_Table_135[[#This Row],[Item ID]],Analysis_Table,8,FALSE)","v":{"$error":"#N/A"}},{"$f":"VLOOKUP(Table_Data_Table_135[[#This Row],[Item ID]],Analysis_Table,9,FALSE)","v":{"$error":"#N/A"}},{"$f":"VLOOKUP(Table_Data_Table_135[[#This Row],[Item ID]],Analysis_Table,10,FALSE)","v":{"$error":"#N/A"}},{"$f":"VLOOKUP(Table_Data_Table_135[[#This Row],[Item ID]],Analysis_Table,11,FALSE)","v":{"$error":"#N/A"}},{"$f":"VLOOKUP(Table_Data_Table_135[[#This Row],[Item ID]],Analysis_Table,12,FALSE)","v":{"$error":"#N/A"}},{"$f":"VLOOKUP(Table_Data_Table_135[[#This Row],[Item ID]],Analysis_Table,13,FALSE)","v":{"$error":"#N/A"}},{"$f":"VLOOKUP(Table_Data_Table_135[[#This Row],[Item ID]],Analysis_Table,14,FALSE)","v":{"$error":"#N/A"}},{"$f":"VLOOKUP(Table_Data_Table_135[[#This Row],[Item ID]],Analysis_Table,15,FALSE)","v":{"$error":"#N/A"}},{"$f":"VLOOKUP(Table_Data_Table_135[[#This Row],[Item ID]],Analysis_Table,16,FALSE)","v":{"$error":"#N/A"}},{"$f":"VLOOKUP(Table_Data_Table_135[[#This Row],[Item ID]],Analysis_Table,17,FALSE)","v":{"$error":"#N/A"}},{"$f":"VLOOKUP(Table_Data_Table_135[[#This Row],[Item ID]],Analysis_Table,18,FALSE)","v":{"$error":"#N/A"}},{"$f":"VLOOKUP(Table_Data_Table_135[[#This Row],[Item ID]],Analysis_Table,19,FALSE)","v":{"$error":"#N/A"}},null,null,1]
["",null,{"$f":"VLOOKUP(Table_Data_Table_135[[#This Row],[Item ID]],Analysis_Table,20,FALSE)","v":{"$error":"#N/A"}},null,null,null,null,null,null,null,0,null,null,null,{"$f":"VLOOKUP(Table_Data_Table_135[[#This Row],[Item ID]],Analysis_Table,8,FALSE)","v":{"$error":"#N/A"}},{"$f":"VLOOKUP(Table_Data_Table_135[[#This Row],[Item ID]],Analysis_Table,9,FALSE)","v":{"$error":"#N/A"}},{"$f":"VLOOKUP(Table_Data_Table_135[[#This Row],[Item ID]],Analysis_Table,10,FALSE)","v":{"$error":"#N/A"}},{"$f":"VLOOKUP(Table_Data_Table_135[[#This Row],[Item ID]],Analysis_Table,11,FALSE)","v":{"$error":"#N/A"}},{"$f":"VLOOKUP(Table_Data_Table_135[[#This Row],[Item ID]],Analysis_Table,12,FALSE)","v":{"$error":"#N/A"}},{"$f":"VLOOKUP(Table_Data_Table_135[[#This Row],[Item ID]],Analysis_Table,13,FALSE)","v":{"$error":"#N/A"}},{"$f":"VLOOKUP(Table_Data_Table_135[[#This Row],[Item ID]],Analysis_Table,14,FALSE)","v":{"$error":"#N/A"}},{"$f":"VLOOKUP(Table_Data_Table_135[[#This Row],[Item ID]],Analysis_Table,15,FALSE)","v":{"$error":"#N/A"}},{"$f":"VLOOKUP(Table_Data_Table_135[[#This Row],[Item ID]],Analysis_Table,16,FALSE)","v":{"$error":"#N/A"}},{"$f":"VLOOKUP(Table_Data_Table_135[[#This Row],[Item ID]],Analysis_Table,17,FALSE)","v":{"$error":"#N/A"}},{"$f":"VLOOKUP(Table_Data_Table_135[[#This Row],[Item ID]],Analysis_Table,18,FALSE)","v":{"$error":"#N/A"}},{"$f":"VLOOKUP(Table_Data_Table_135[[#This Row],[Item ID]],Analysis_Table,19,FALSE)","v":{"$error":"#N/A"}},null,null,1]
["",null,{"$f":"VLOOKUP(Table_Data_Table_135[[#This Row],[Item ID]],Analysis_Table,20,FALSE)","v":{"$error":"#N/A"}},null,null,null,null,null,null,null,0,null,null,null,{"$f":"VLOOKUP(Table_Data_Table_135[[#This Row],[Item ID]],Analysis_Table,8,FALSE)","v":{"$error":"#N/A"}},{"$f":"VLOOKUP(Table_Data_Table_135[[#This Row],[Item ID]],Analysis_Table,9,FALSE)","v":{"$error":"#N/A"}},{"$f":"VLOOKUP(Table_Data_Table_135[[#This Row],[Item ID]],Analysis_Table,10,FALSE)","v":{"$error":"#N/A"}},{"$f":"VLOOKUP(Table_Data_Table_135[[#This Row],[Item ID]],Analysis_Table,11,FALSE)","v":{"$error":"#N/A"}},{"$f":"VLOOKUP(Table_Data_Table_135[[#This Row],[Item ID]],Analysis_Table,12,FALSE)","v":{"$error":"#N/A"}},{"$f":"VLOOKUP(Table_Data_Table_135[[#This Row],[Item ID]],Analysis_Table,13,FALSE)","v":{"$error":"#N/A"}},{"$f":"VLOOKUP(Table_Data_Table_135[[#This Row],[Item ID]],Analysis_Table,14,FALSE)","v":{"$error":"#N/A"}},{"$f":"VLOOKUP(Table_Data_Table_135[[#This Row],[Item ID]],Analysis_Table,15,FALSE)","v":{"$error":"#N/A"}},{"$f":"VLOOKUP(Table_Data_Table_135[[#This Row],[Item ID]],Analysis_Table,16,FALSE)","v":{"$error":"#N/A"}},{"$f":"VLOOKUP(Table_Data_Table_135[[#This Row],[Item ID]],Analysis_Table,17,FALSE)","v":{"$error":"#N/A"}},{"$f":"VLOOKUP(Table_Data_Table_135[[#This Row],[Item ID]],Analysis_Table,18,FALSE)","v":{"$error":"#N/A"}},{"$f":"VLOOKUP(Table_Data_Table_135[[#This Row],[Item ID]],Analysis_Table,19,FALSE)","v":{"$error":"#N/A"}},null,null,1]
["",null,{"$f":"VLOOKUP(Table_Data_Table_135[[#This Row],[Item ID]],Analysis_Table,20,FALSE)","v":{"$error":"#N/A"}},null,null,null,null,null,null,null,0,null,null,null,{"$f":"VLOOKUP(Table_Data_Table_135[[#This Row],[Item ID]],Analysis_Table,8,FALSE)","v":{"$error":"#N/A"}},{"$f":"VLOOKUP(Table_Data_Table_135[[#This Row],[Item ID]],Analysis_Table,9,FALSE)","v":{"$error":"#N/A"}},{"$f":"VLOOKUP(Table_Data_Table_135[[#This Row],[Item ID]],Analysis_Table,10,FALSE)","v":{"$error":"#N/A"}},{"$f":"VLOOKUP(Table_Data_Table_135[[#This Row],[Item ID]],Analysis_Table,11,FALSE)","v":{"$error":"#N/A"}},{"$f":"VLOOKUP(Table_Data_Table_135[[#This Row],[Item ID]],Analysis_Table,12,FALSE)","v":{"$error":"#N/A"}},{"$f":"VLOOKUP(Table_Data_Table_135[[#This Row],[Item ID]],Analysis_Table,13,FALSE)","v":{"$error":"#N/A"}},{"$f":"VLOOKUP(Table_Data_Table_135[[#This Row],[Item ID]],Analysis_Table,14,FALSE)","v":{"$error":"#N/A"}},{"$f":"VLOOKUP(Table_Data_Table_135[[#This Row],[Item ID]],Analysis_Table,15,FALSE)","v":{"$error":"#N/A"}},{"$f":"VLOOKUP(Table_Data_Table_135[[#This Row],[Item ID]],Analysis_Table,16,FALSE)","v":{"$error":"#N/A"}},{"$f":"VLOOKUP(Table_Data_Table_135[[#This Row],[Item ID]],Analysis_Table,17,FALSE)","v":{"$error":"#N/A"}},{"$f":"VLOOKUP(Table_Data_Table_135[[#This Row],[Item ID]],Analysis_Table,18,FALSE)","v":{"$error":"#N/A"}},{"$f":"VLOOKUP(Table_Data_Table_135[[#This Row],[Item ID]],Analysis_Table,19,FALSE)","v":{"$error":"#N/A"}},null,null,1]
["",null,{"$f":"VLOOKUP(Table_Data_Table_135[[#This Row],[Item ID]],Analysis_Table,20,FALSE)","v":{"$error":"#N/A"}},null,null,null,null,null,null,null,0,null,null,null,{"$f":"VLOOKUP(Table_Data_Table_135[[#This Row],[Item ID]],Analysis_Table,8,FALSE)","v":{"$error":"#N/A"}},{"$f":"VLOOKUP(Table_Data_Table_135[[#This Row],[Item ID]],Analysis_Table,9,FALSE)","v":{"$error":"#N/A"}},{"$f":"VLOOKUP(Table_Data_Table_135[[#This Row],[Item ID]],Analysis_Table,10,FALSE)","v":{"$error":"#N/A"}},{"$f":"VLOOKUP(Table_Data_Table_135[[#This Row],[Item ID]],Analysis_Table,11,FALSE)","v":{"$error":"#N/A"}},{"$f":"VLOOKUP(Table_Data_Table_135[[#This Row],[Item ID]],Analysis_Table,12,FALSE)","v":{"$error":"#N/A"}},{"$f":"VLOOKUP(Table_Data_Table_135[[#This Row],[Item ID]],Analysis_Table,13,FALSE)","v":{"$error":"#N/A"}},{"$f":"VLOOKUP(Table_Data_Table_135[[#This Row],[Item ID]],Analysis_Table,14,FALSE)","v":{"$error":"#N/A"}},{"$f":"VLOOKUP(Table_Data_Table_135[[#This Row],[Item ID]],Analysis_Table,15,FALSE)","v":{"$error":"#N/A"}},{"$f":"VLOOKUP(Table_Data_Table_135[[#This Row],[Item ID]],Analysis_Table,16,FALSE)","v":{"$error":"#N/A"}},{"$f":"VLOOKUP(Table_Data_Table_135[[#This Row],[Item ID]],Analysis_Table,17,FALSE)","v":{"$error":"#N/A"}},{"$f":"VLOOKUP(Table_Data_Table_135[[#This Row],[Item ID]],Analysis_Table,18,FALSE)","v":{"$error":"#N/A"}},{"$f":"VLOOKUP(Table_Data_Table_135[[#This Row],[Item ID]],Analysis_Table,19,FALSE)","v":{"$error":"#N/A"}},null,null,1]
["",null,{"$f":"VLOOKUP(Table_Data_Table_135[[#This Row],[Item ID]],Analysis_Table,20,FALSE)","v":{"$error":"#N/A"}},null,null,null,null,null,null,null,0,null,null,null,{"$f":"VLOOKUP(Table_Data_Table_135[[#This Row],[Item ID]],Analysis_Table,8,FALSE)","v":{"$error":"#N/A"}},{"$f":"VLOOKUP(Table_Data_Table_135[[#This Row],[Item ID]],Analysis_Table,9,FALSE)","v":{"$error":"#N/A"}},{"$f":"VLOOKUP(Table_Data_Table_135[[#This Row],[Item ID]],Analysis_Table,10,FALSE)","v":{"$error":"#N/A"}},{"$f":"VLOOKUP(Table_Data_Table_135[[#This Row],[Item ID]],Analysis_Table,11,FALSE)","v":{"$error":"#N/A"}},{"$f":"VLOOKUP(Table_Data_Table_135[[#This Row],[Item ID]],Analysis_Table,12,FALSE)","v":{"$error":"#N/A"}},{"$f":"VLOOKUP(Table_Data_Table_135[[#This Row],[Item ID]],Analysis_Table,13,FALSE)","v":{"$error":"#N/A"}},{"$f":"VLOOKUP(Table_Data_Table_135[[#This Row],[Item ID]],Analysis_Table,14,FALSE)","v":{"$error":"#N/A"}},{"$f":"VLOOKUP(Table_Data_Table_135[[#This Row],[Item ID]],Analysis_Table,15,FALSE)","v":{"$error":"#N/A"}},{"$f":"VLOOKUP(Table_Data_Table_135[[#This Row],[Item ID]],Analysis_Table,16,FALSE)","v":{"$error":"#N/A"}},{"$f":"VLOOKUP(Table_Data_Table_135[[#This Row],[Item ID]],Analysis_Table,17,FALSE)","v":{"$error":"#N/A"}},{"$f":"VLOOKUP(Table_Data_Table_135[[#This Row],[Item ID]],Analysis_Table,18,FALSE)","v":{"$error":"#N/A"}},{"$f":"VLOOKUP(Table_Data_Table_135[[#This Row],[Item ID]],Analysis_Table,19,FALSE)","v":{"$error":"#N/A"}},null,null,1]
["",null,{"$f":"VLOOKUP(Table_Data_Table_135[[#This Row],[Item ID]],Analysis_Table,20,FALSE)","v":{"$error":"#N/A"}},null,null,null,null,null,null,null,0,null,null,null,{"$f":"VLOOKUP(Table_Data_Table_135[[#This Row],[Item ID]],Analysis_Table,8,FALSE)","v":{"$error":"#N/A"}},{"$f":"VLOOKUP(Table_Data_Table_135[[#This Row],[Item ID]],Analysis_Table,9,FALSE)","v":{"$error":"#N/A"}},{"$f":"VLOOKUP(Table_Data_Table_135[[#This Row],[Item ID]],Analysis_Table,10,FALSE)","v":{"$error":"#N/A"}},{"$f":"VLOOKUP(Table_Data_Table_135[[#This Row],[Item ID]],Analysis_Table,11,FALSE)","v":{"$error":"#N/A"}},{"$f":"VLOOKUP(Table_Data_Table_135[[#This Row],[Item ID]],Analysis_Table,12,FALSE)","v":{"$error":"#N/A"}},{"$f":"VLOOKUP(Table_Data_Table_135[[#This Row],[Item ID]],Analysis_Table,13,FALSE)","v":{"$error":"#N/A"}},{"$f":"VLOOKUP(Table_Data_Table_135[[#This Row],[Item ID]],Analysis_Table,14,FALSE)","v":{"$error":"#N/A"}},{"$f":"VLOOKUP(Table_Data_Table_135[[#This Row],[Item ID]],Analysis_Table,15,FALSE)","v":{"$error":"#N/A"}},{"$f":"VLOOKUP(Table_Data_Table_135[[#This Row],[Item ID]],Analysis_Table,16,FALSE)","v":{"$error":"#N/A"}},{"$f":"VLOOKUP(Table_Data_Table_135[[#This Row],[Item ID]],Analysis_Table,17,FALSE)","v":{"$error":"#N/A"}},{"$f":"VLOOKUP(Table_Data_Table_135[[#This Row],[Item ID]],Analysis_Table,18,FALSE)","v":{"$error":"#N/A"}},{"$f":"VLOOKUP(Table_Data_Table_135[[#This Row],[Item ID]],Analysis_Table,19,FALSE)","v":{"$error":"#N/A"}},null,null,1]
["",null,{"$f":"VLOOKUP(Table_Data_Table_135[[#This Row],[Item ID]],Analysis_Table,20,FALSE)","v":{"$error":"#N/A"}},null,null,null,null,null,null,null,0,null,null,null,{"$f":"VLOOKUP(Table_Data_Table_135[[#This Row],[Item ID]],Analysis_Table,8,FALSE)","v":{"$error":"#N/A"}},{"$f":"VLOOKUP(Table_Data_Table_135[[#This Row],[Item ID]],Analysis_Table,9,FALSE)","v":{"$error":"#N/A"}},{"$f":"VLOOKUP(Table_Data_Table_135[[#This Row],[Item ID]],Analysis_Table,10,FALSE)","v":{"$error":"#N/A"}},{"$f":"VLOOKUP(Table_Data_Table_135[[#This Row],[Item ID]],Analysis_Table,11,FALSE)","v":{"$error":"#N/A"}},{"$f":"VLOOKUP(Table_Data_Table_135[[#This Row],[Item ID]],Analysis_Table,12,FALSE)","v":{"$error":"#N/A"}},{"$f":"VLOOKUP(Table_Data_Table_135[[#This Row],[Item ID]],Analysis_Table,13,FALSE)","v":{"$error":"#N/A"}},{"$f":"VLOOKUP(Table_Data_Table_135[[#This Row],[Item ID]],Analysis_Table,14,FALSE)","v":{"$error":"#N/A"}},{"$f":"VLOOKUP(Table_Data_Table_135[[#This Row],[Item ID]],Analysis_Table,15,FALSE)","v":{"$error":"#N/A"}},{"$f":"VLOOKUP(Table_Data_Table_135[[#This Row],[Item ID]],Analysis_Table,16,FALSE)","v":{"$error":"#N/A"}},{"$f":"VLOOKUP(Table_Data_Table_135[[#This Row],[Item ID]],Analysis_Table,17,FALSE)","v":{"$error":"#N/A"}},{"$f":"VLOOKUP(Table_Data_Table_135[[#This Row],[Item ID]],Analysis_Table,18,FALSE)","v":{"$error":"#N/A"}},{"$f":"VLOOKUP(Table_Data_Table_135[[#This Row],[Item ID]],Analysis_Table,19,FALSE)","v":{"$error":"#N/A"}},null,null,1]
["",null,{"$f":"VLOOKUP(Table_Data_Table_135[[#This Row],[Item ID]],Analysis_Table,20,FALSE)","v":{"$error":"#N/A"}},null,null,null,null,null,null,null,0,null,null,null,{"$f":"VLOOKUP(Table_Data_Table_135[[#This Row],[Item ID]],Analysis_Table,8,FALSE)","v":{"$error":"#N/A"}},{"$f":"VLOOKUP(Table_Data_Table_135[[#This Row],[Item ID]],Analysis_Table,9,FALSE)","v":{"$error":"#N/A"}},{"$f":"VLOOKUP(Table_Data_Table_135[[#This Row],[Item ID]],Analysis_Table,10,FALSE)","v":{"$error":"#N/A"}},{"$f":"VLOOKUP(Table_Data_Table_135[[#This Row],[Item ID]],Analysis_Table,11,FALSE)","v":{"$error":"#N/A"}},{"$f":"VLOOKUP(Table_Data_Table_135[[#This Row],[Item ID]],Analysis_Table,12,FALSE)","v":{"$error":"#N/A"}},{"$f":"VLOOKUP(Table_Data_Table_135[[#This Row],[Item ID]],Analysis_Table,13,FALSE)","v":{"$error":"#N/A"}},{"$f":"VLOOKUP(Table_Data_Table_135[[#This Row],[Item ID]],Analysis_Table,14,FALSE)","v":{"$error":"#N/A"}},{"$f":"VLOOKUP(Table_Data_Table_135[[#This Row],[Item ID]],Analysis_Table,15,FALSE)","v":{"$error":"#N/A"}},{"$f":"VLOOKUP(Table_Data_Table_135[[#This Row],[Item ID]],Analysis_Table,16,FALSE)","v":{"$error":"#N/A"}},{"$f":"VLOOKUP(Table_Data_Table_135[[#This Row],[Item ID]],Analysis_Table,17,FALSE)","v":{"$error":"#N/A"}},{"$f":"VLOOKUP(Table_Data_Table_135[[#This Row],[Item ID]],Analysis_Table,18,FALSE)","v":{"$error":"#N/A"}},{"$f":"VLOOKUP(Table_Data_Table_135[[#This Row],[Item ID]],Analysis_Table,19,FALSE)","v":{"$error":"#N/A"}},null,null,1]
["",null,{"$f":"VLOOKUP(Table_Data_Table_135[[#This Row],[Item ID]],Analysis_Table,20,FALSE)","v":{"$error":"#N/A"}},null,null,null,null,null,null,null,0,null,null,null,{"$f":"VLOOKUP(Table_Data_Table_135[[#This Row],[Item ID]],Analysis_Table,8,FALSE)","v":{"$error":"#N/A"}},{"$f":"VLOOKUP(Table_Data_Table_135[[#This Row],[Item ID]],Analysis_Table,9,FALSE)","v":{"$error":"#N/A"}},{"$f":"VLOOKUP(Table_Data_Table_135[[#This Row],[Item ID]],Analysis_Table,10,FALSE)","v":{"$error":"#N/A"}},{"$f":"VLOOKUP(Table_Data_Table_135[[#This Row],[Item ID]],Analysis_Table,11,FALSE)","v":{"$error":"#N/A"}},{"$f":"VLOOKUP(Table_Data_Table_135[[#This Row],[Item ID]],Analysis_Table,12,FALSE)","v":{"$error":"#N/A"}},{"$f":"VLOOKUP(Table_Data_Table_135[[#This Row],[Item ID]],Analysis_Table,13,FALSE)","v":{"$error":"#N/A"}},{"$f":"VLOOKUP(Table_Data_Table_135[[#This Row],[Item ID]],Analysis_Table,14,FALSE)","v":{"$error":"#N/A"}},{"$f":"VLOOKUP(Table_Data_Table_135[[#This Row],[Item ID]],Analysis_Table,15,FALSE)","v":{"$error":"#N/A"}},{"$f":"VLOOKUP(Table_Data_Table_135[[#This Row],[Item ID]],Analysis_Table,16,FALSE)","v":{"$error":"#N/A"}},{"$f":"VLOOKUP(Table_Data_Table_135[[#This Row],[Item ID]],Analysis_Table,17,FALSE)","v":{"$error":"#N/A"}},{"$f":"VLOOKUP(Table_Data_Table_135[[#This Row],[Item ID]],Analysis_Table,18,FALSE)","v":{"$error":"#N/A"}},{"$f":"VLOOKUP(Table_Data_Table_135[[#This Row],[Item ID]],Analysis_Table,19,FALSE)","v":{"$error":"#N/A"}},null,null,1]
["",null,{"$f":"VLOOKUP(Table_Data_Table_135[[#This Row],[Item ID]],Analysis_Table,20,FALSE)","v":{"$error":"#N/A"}},null,null,null,null,null,null,null,0,null,null,null,{"$f":"VLOOKUP(Table_Data_Table_135[[#This Row],[Item ID]],Analysis_Table,8,FALSE)","v":{"$error":"#N/A"}},{"$f":"VLOOKUP(Table_Data_Table_135[[#This Row],[Item ID]],Analysis_Table,9,FALSE)","v":{"$error":"#N/A"}},{"$f":"VLOOKUP(Table_Data_Table_135[[#This Row],[Item ID]],Analysis_Table,10,FALSE)","v":{"$error":"#N/A"}},{"$f":"VLOOKUP(Table_Data_Table_135[[#This Row],[Item ID]],Analysis_Table,11,FALSE)","v":{"$error":"#N/A"}},{"$f":"VLOOKUP(Table_Data_Table_135[[#This Row],[Item ID]],Analysis_Table,12,FALSE)","v":{"$error":"#N/A"}},{"$f":"VLOOKUP(Table_Data_Table_135[[#This Row],[Item ID]],Analysis_Table,13,FALSE)","v":{"$error":"#N/A"}},{"$f":"VLOOKUP(Table_Data_Table_135[[#This Row],[Item ID]],Analysis_Table,14,FALSE)","v":{"$error":"#N/A"}},{"$f":"VLOOKUP(Table_Data_Table_135[[#This Row],[Item ID]],Analysis_Table,15,FALSE)","v":{"$error":"#N/A"}},{"$f":"VLOOKUP(Table_Data_Table_135[[#This Row],[Item ID]],Analysis_Table,16,FALSE)","v":{"$error":"#N/A"}},{"$f":"VLOOKUP(Table_Data_Table_135[[#This Row],[Item ID]],Analysis_Table,17,FALSE)","v":{"$error":"#N/A"}},{"$f":"VLOOKUP(Table_Data_Table_135[[#This Row],[Item ID]],Analysis_Table,18,FALSE)","v":{"$error":"#N/A"}},{"$f":"VLOOKUP(Table_Data_Table_135[[#This Row],[Item ID]],Analysis_Table,19,FALSE)","v":{"$error":"#N/A"}},null,null,1]
["",null,{"$f":"VLOOKUP(Table_Data_Table_135[[#This Row],[Item ID]],Analysis_Table,20,FALSE)","v":{"$error":"#N/A"}},null,null,null,null,null,null,null,0,null,null,null,{"$f":"VLOOKUP(Table_Data_Table_135[[#This Row],[Item ID]],Analysis_Table,8,FALSE)","v":{"$error":"#N/A"}},{"$f":"VLOOKUP(Table_Data_Table_135[[#This Row],[Item ID]],Analysis_Table,9,FALSE)","v":{"$error":"#N/A"}},{"$f":"VLOOKUP(Table_Data_Table_135[[#This Row],[Item ID]],Analysis_Table,10,FALSE)","v":{"$error":"#N/A"}},{"$f":"VLOOKUP(Table_Data_Table_135[[#This Row],[Item ID]],Analysis_Table,11,FALSE)","v":{"$error":"#N/A"}},{"$f":"VLOOKUP(Table_Data_Table_135[[#This Row],[Item ID]],Analysis_Table,12,FALSE)","v":{"$error":"#N/A"}},{"$f":"VLOOKUP(Table_Data_Table_135[[#This Row],[Item ID]],Analysis_Table,13,FALSE)","v":{"$error":"#N/A"}},{"$f":"VLOOKUP(Table_Data_Table_135[[#This Row],[Item ID]],Analysis_Table,14,FALSE)","v":{"$error":"#N/A"}},{"$f":"VLOOKUP(Table_Data_Table_135[[#This Row],[Item ID]],Analysis_Table,15,FALSE)","v":{"$error":"#N/A"}},{"$f":"VLOOKUP(Table_Data_Table_135[[#This Row],[Item ID]],Analysis_Table,16,FALSE)","v":{"$error":"#N/A"}},{"$f":"VLOOKUP(Table_Data_Table_135[[#This Row],[Item ID]],Analysis_Table,17,FALSE)","v":{"$error":"#N/A"}},{"$f":"VLOOKUP(Table_Data_Table_135[[#This Row],[Item ID]],Analysis_Table,18,FALSE)","v":{"$error":"#N/A"}},{"$f":"VLOOKUP(Table_Data_Table_135[[#This Row],[Item ID]],Analysis_Table,19,FALSE)","v":{"$error":"#N/A"}},null,null,1]
["",null,{"$f":"VLOOKUP(Table_Data_Table_135[[#This Row],[Item ID]],Analysis_Table,20,FALSE)","v":{"$error":"#N/A"}},null,null,null,null,null,null,null,0,null,null,null,{"$f":"VLOOKUP(Table_Data_Table_135[[#This Row],[Item ID]],Analysis_Table,8,FALSE)","v":{"$error":"#N/A"}},{"$f":"VLOOKUP(Table_Data_Table_135[[#This Row],[Item ID]],Analysis_Table,9,FALSE)","v":{"$error":"#N/A"}},{"$f":"VLOOKUP(Table_Data_Table_135[[#This Row],[Item ID]],Analysis_Table,10,FALSE)","v":{"$error":"#N/A"}},{"$f":"VLOOKUP(Table_Data_Table_135[[#This Row],[Item ID]],Analysis_Table,11,FALSE)","v":{"$error":"#N/A"}},{"$f":"VLOOKUP(Table_Data_Table_135[[#This Row],[Item ID]],Analysis_Table,12,FALSE)","v":{"$error":"#N/A"}},{"$f":"VLOOKUP(Table_Data_Table_135[[#This Row],[Item ID]],Analysis_Table,13,FALSE)","v":{"$error":"#N/A"}},{"$f":"VLOOKUP(Table_Data_Table_135[[#This Row],[Item ID]],Analysis_Table,14,FALSE)","v":{"$error":"#N/A"}},{"$f":"VLOOKUP(Table_Data_Table_135[[#This Row],[Item ID]],Analysis_Table,15,FALSE)","v":{"$error":"#N/A"}},{"$f":"VLOOKUP(Table_Data_Table_135[[#This Row],[Item ID]],Analysis_Table,16,FALSE)","v":{"$error":"#N/A"}},{"$f":"VLOOKUP(Table_Data_Table_135[[#This Row],[Item ID]],Analysis_Table,17,FALSE)","v":{"$error":"#N/A"}},{"$f":"VLOOKUP(Table_Data_Table_135[[#This Row],[Item ID]],Analysis_Table,18,FALSE)","v":{"$error":"#N/A"}},{"$f":"VLOOKUP(Table_Data_Table_135[[#This Row],[Item ID]],Analysis_Table,19,FALSE)","v":{"$error":"#N/A"}},null,null,1]
["",null,{"$f":"VLOOKUP(Table_Data_Table_135[[#This Row],[Item ID]],Analysis_Table,20,FALSE)","v":{"$error":"#N/A"}},null,null,null,null,null,null,null,0,null,null,null,{"$f":"VLOOKUP(Table_Data_Table_135[[#This Row],[Item ID]],Analysis_Table,8,FALSE)","v":{"$error":"#N/A"}},{"$f":"VLOOKUP(Table_Data_Table_135[[#This Row],[Item ID]],Analysis_Table,9,FALSE)","v":{"$error":"#N/A"}},{"$f":"VLOOKUP(Table_Data_Table_135[[#This Row],[Item ID]],Analysis_Table,10,FALSE)","v":{"$error":"#N/A"}},{"$f":"VLOOKUP(Table_Data_Table_135[[#This Row],[Item ID]],Analysis_Table,11,FALSE)","v":{"$error":"#N/A"}},{"$f":"VLOOKUP(Table_Data_Table_135[[#This Row],[Item ID]],Analysis_Table,12,FALSE)","v":{"$error":"#N/A"}},{"$f":"VLOOKUP(Table_Data_Table_135[[#This Row],[Item ID]],Analysis_Table,13,FALSE)","v":{"$error":"#N/A"}},{"$f":"VLOOKUP(Table_Data_Table_135[[#This Row],[Item ID]],Analysis_Table,14,FALSE)","v":{"$error":"#N/A"}},{"$f":"VLOOKUP(Table_Data_Table_135[[#This Row],[Item ID]],Analysis_Table,15,FALSE)","v":{"$error":"#N/A"}},{"$f":"VLOOKUP(Table_Data_Table_135[[#This Row],[Item ID]],Analysis_Table,16,FALSE)","v":{"$error":"#N/A"}},{"$f":"VLOOKUP(Table_Data_Table_135[[#This Row],[Item ID]],Analysis_Table,17,FALSE)","v":{"$error":"#N/A"}},{"$f":"VLOOKUP(Table_Data_Table_135[[#This Row],[Item ID]],Analysis_Table,18,FALSE)","v":{"$error":"#N/A"}},{"$f":"VLOOKUP(Table_Data_Table_135[[#This Row],[Item ID]],Analysis_Table,19,FALSE)","v":{"$error":"#N/A"}},null,null,1]
["",null,{"$f":"VLOOKUP(Table_Data_Table_135[[#This Row],[Item ID]],Analysis_Table,20,FALSE)","v":{"$error":"#N/A"}},null,null,null,null,null,null,null,0,null,null,null,{"$f":"VLOOKUP(Table_Data_Table_135[[#This Row],[Item ID]],Analysis_Table,8,FALSE)","v":{"$error":"#N/A"}},{"$f":"VLOOKUP(Table_Data_Table_135[[#This Row],[Item ID]],Analysis_Table,9,FALSE)","v":{"$error":"#N/A"}},{"$f":"VLOOKUP(Table_Data_Table_135[[#This Row],[Item ID]],Analysis_Table,10,FALSE)","v":{"$error":"#N/A"}},{"$f":"VLOOKUP(Table_Data_Table_135[[#This Row],[Item ID]],Analysis_Table,11,FALSE)","v":{"$error":"#N/A"}},{"$f":"VLOOKUP(Table_Data_Table_135[[#This Row],[Item ID]],Analysis_Table,12,FALSE)","v":{"$error":"#N/A"}},{"$f":"VLOOKUP(Table_Data_Table_135[[#This Row],[Item ID]],Analysis_Table,13,FALSE)","v":{"$error":"#N/A"}},{"$f":"VLOOKUP(Table_Data_Table_135[[#This Row],[Item ID]],Analysis_Table,14,FALSE)","v":{"$error":"#N/A"}},{"$f":"VLOOKUP(Table_Data_Table_135[[#This Row],[Item ID]],Analysis_Table,15,FALSE)","v":{"$error":"#N/A"}},{"$f":"VLOOKUP(Table_Data_Table_135[[#This Row],[Item ID]],Analysis_Table,16,FALSE)","v":{"$error":"#N/A"}},{"$f":"VLOOKUP(Table_Data_Table_135[[#This Row],[Item ID]],Analysis_Table,17,FALSE)","v":{"$error":"#N/A"}},{"$f":"VLOOKUP(Table_Data_Table_135[[#This Row],[Item ID]],Analysis_Table,18,FALSE)","v":{"$error":"#N/A"}},{"$f":"VLOOKUP(Table_Data_Table_135[[#This Row],[Item ID]],Analysis_Table,19,FALSE)","v":{"$error":"#N/A"}},null,null,1]
["",null,{"$f":"VLOOKUP(Table_Data_Table_135[[#This Row],[Item ID]],Analysis_Table,20,FALSE)","v":{"$error":"#N/A"}},null,null,null,null,null,null,null,0,null,null,null,{"$f":"VLOOKUP(Table_Data_Table_135[[#This Row],[Item ID]],Analysis_Table,8,FALSE)","v":{"$error":"#N/A"}},{"$f":"VLOOKUP(Table_Data_Table_135[[#This Row],[Item ID]],Analysis_Table,9,FALSE)","v":{"$error":"#N/A"}},{"$f":"VLOOKUP(Table_Data_Table_135[[#This Row],[Item ID]],Analysis_Table,10,FALSE)","v":{"$error":"#N/A"}},{"$f":"VLOOKUP(Table_Data_Table_135[[#This Row],[Item ID]],Analysis_Table,11,FALSE)","v":{"$error":"#N/A"}},{"$f":"VLOOKUP(Table_Data_Table_135[[#This Row],[Item ID]],Analysis_Table,12,FALSE)","v":{"$error":"#N/A"}},{"$f":"VLOOKUP(Table_Data_Table_135[[#This Row],[Item ID]],Analysis_Table,13,FALSE)","v":{"$error":"#N/A"}},{"$f":"VLOOKUP(Table_Data_Table_135[[#This Row],[Item ID]],Analysis_Table,14,FALSE)","v":{"$error":"#N/A"}},{"$f":"VLOOKUP(Table_Data_Table_135[[#This Row],[Item ID]],Analysis_Table,15,FALSE)","v":{"$error":"#N/A"}},{"$f":"VLOOKUP(Table_Data_Table_135[[#This Row],[Item ID]],Analysis_Table,16,FALSE)","v":{"$error":"#N/A"}},{"$f":"VLOOKUP(Table_Data_Table_135[[#This Row],[Item ID]],Analysis_Table,17,FALSE)","v":{"$error":"#N/A"}},{"$f":"VLOOKUP(Table_Data_Table_135[[#This Row],[Item ID]],Analysis_Table,18,FALSE)","v":{"$error":"#N/A"}},{"$f":"VLOOKUP(Table_Data_Table_135[[#This Row],[Item ID]],Analysis_Table,19,FALSE)","v":{"$error":"#N/A"}},null,null,1]
["",null,{"$f":"VLOOKUP(Table_Data_Table_135[[#This Row],[Item ID]],Analysis_Table,20,FALSE)","v":{"$error":"#N/A"}},null,null,null,null,null,null,null,0,null,null,null,{"$f":"VLOOKUP(Table_Data_Table_135[[#This Row],[Item ID]],Analysis_Table,8,FALSE)","v":{"$error":"#N/A"}},{"$f":"VLOOKUP(Table_Data_Table_135[[#This Row],[Item ID]],Analysis_Table,9,FALSE)","v":{"$error":"#N/A"}},{"$f":"VLOOKUP(Table_Data_Table_135[[#This Row],[Item ID]],Analysis_Table,10,FALSE)","v":{"$error":"#N/A"}},{"$f":"VLOOKUP(Table_Data_Table_135[[#This Row],[Item ID]],Analysis_Table,11,FALSE)","v":{"$error":"#N/A"}},{"$f":"VLOOKUP(Table_Data_Table_135[[#This Row],[Item ID]],Analysis_Table,12,FALSE)","v":{"$error":"#N/A"}},{"$f":"VLOOKUP(Table_Data_Table_135[[#This Row],[Item ID]],Analysis_Table,13,FALSE)","v":{"$error":"#N/A"}},{"$f":"VLOOKUP(Table_Data_Table_135[[#This Row],[Item ID]],Analysis_Table,14,FALSE)","v":{"$error":"#N/A"}},{"$f":"VLOOKUP(Table_Data_Table_135[[#This Row],[Item ID]],Analysis_Table,15,FALSE)","v":{"$error":"#N/A"}},{"$f":"VLOOKUP(Table_Data_Table_135[[#This Row],[Item ID]],Analysis_Table,16,FALSE)","v":{"$error":"#N/A"}},{"$f":"VLOOKUP(Table_Data_Table_135[[#This Row],[Item ID]],Analysis_Table,17,FALSE)","v":{"$error":"#N/A"}},{"$f":"VLOOKUP(Table_Data_Table_135[[#This Row],[Item ID]],Analysis_Table,18,FALSE)","v":{"$error":"#N/A"}},{"$f":"VLOOKUP(Table_Data_Table_135[[#This Row],[Item ID]],Analysis_Table,19,FALSE)","v":{"$error":"#N/A"}},null,null,1]
["",null,{"$f":"VLOOKUP(Table_Data_Table_135[[#This Row],[Item ID]],Analysis_Table,20,FALSE)","v":{"$error":"#N/A"}},null,null,null,null,null,null,null,0,null,null,null,{"$f":"VLOOKUP(Table_Data_Table_135[[#This Row],[Item ID]],Analysis_Table,8,FALSE)","v":{"$error":"#N/A"}},{"$f":"VLOOKUP(Table_Data_Table_135[[#This Row],[Item ID]],Analysis_Table,9,FALSE)","v":{"$error":"#N/A"}},{"$f":"VLOOKUP(Table_Data_Table_135[[#This Row],[Item ID]],Analysis_Table,10,FALSE)","v":{"$error":"#N/A"}},{"$f":"VLOOKUP(Table_Data_Table_135[[#This Row],[Item ID]],Analysis_Table,11,FALSE)","v":{"$error":"#N/A"}},{"$f":"VLOOKUP(Table_Data_Table_135[[#This Row],[Item ID]],Analysis_Table,12,FALSE)","v":{"$error":"#N/A"}},{"$f":"VLOOKUP(Table_Data_Table_135[[#This Row],[Item ID]],Analysis_Table,13,FALSE)","v":{"$error":"#N/A"}},{"$f":"VLOOKUP(Table_Data_Table_135[[#This Row],[Item ID]],Analysis_Table,14,FALSE)","v":{"$error":"#N/A"}},{"$f":"VLOOKUP(Table_Data_Table_135[[#This Row],[Item ID]],Analysis_Table,15,FALSE)","v":{"$error":"#N/A"}},{"$f":"VLOOKUP(Table_Data_Table_135[[#This Row],[Item ID]],Analysis_Table,16,FALSE)","v":{"$error":"#N/A"}},{"$f":"VLOOKUP(Table_Data_Table_135[[#This Row],[Item ID]],Analysis_Table,17,FALSE)","v":{"$error":"#N/A"}},{"$f":"VLOOKUP(Table_Data_Table_135[[#This Row],[Item ID]],Analysis_Table,18,FALSE)","v":{"$error":"#N/A"}},{"$f":"VLOOKUP(Table_Data_Table_135[[#This Row],[Item ID]],Analysis_Table,19,FALSE)","v":{"$error":"#N/A"}},null,null,1]
["",null,{"$f":"VLOOKUP(Table_Data_Table_135[[#This Row],[Item ID]],Analysis_Table,20,FALSE)","v":{"$error":"#N/A"}},null,null,null,null,null,null,null,0,null,null,null,{"$f":"VLOOKUP(Table_Data_Table_135[[#This Row],[Item ID]],Analysis_Table,8,FALSE)","v":{"$error":"#N/A"}},{"$f":"VLOOKUP(Table_Data_Table_135[[#This Row],[Item ID]],Analysis_Table,9,FALSE)","v":{"$error":"#N/A"}},{"$f":"VLOOKUP(Table_Data_Table_135[[#This Row],[Item ID]],Analysis_Table,10,FALSE)","v":{"$error":"#N/A"}},{"$f":"VLOOKUP(Table_Data_Table_135[[#This Row],[Item ID]],Analysis_Table,11,FALSE)","v":{"$error":"#N/A"}},{"$f":"VLOOKUP(Table_Data_Table_135[[#This Row],[Item ID]],Analysis_Table,12,FALSE)","v":{"$error":"#N/A"}},{"$f":"VLOOKUP(Table_Data_Table_135[[#This Row],[Item ID]],Analysis_Table,13,FALSE)","v":{"$error":"#N/A"}},{"$f":"VLOOKUP(Table_Data_Table_135[[#This Row],[Item ID]],Analysis_Table,14,FALSE)","v":{"$error":"#N/A"}},{"$f":"VLOOKUP(Table_Data_Table_135[[#This Row],[Item ID]],Analysis_Table,15,FALSE)","v":{"$error":"#N/A"}},{"$f":"VLOOKUP(Table_Data_Table_135[[#This Row],[Item ID]],Analysis_Table,16,FALSE)","v":{"$error":"#N/A"}},{"$f":"VLOOKUP(Table_Data_Table_135[[#This Row],[Item ID]],Analysis_Table,17,FALSE)","v":{"$error":"#N/A"}},{"$f":"VLOOKUP(Table_Data_Table_135[[#This Row],[Item ID]],Analysis_Table,18,FALSE)","v":{"$error":"#N/A"}},{"$f":"VLOOKUP(Table_Data_Table_135[[#This Row],[Item ID]],Analysis_Table,19,FALSE)","v":{"$error":"#N/A"}},null,null,1]
["",null,{"$f":"VLOOKUP(Table_Data_Table_135[[#This Row],[Item ID]],Analysis_Table,20,FALSE)","v":{"$error":"#N/A"}},null,null,null,null,null,null,null,0,null,null,null,{"$f":"VLOOKUP(Table_Data_Table_135[[#This Row],[Item ID]],Analysis_Table,8,FALSE)","v":{"$error":"#N/A"}},{"$f":"VLOOKUP(Table_Data_Table_135[[#This Row],[Item ID]],Analysis_Table,9,FALSE)","v":{"$error":"#N/A"}},{"$f":"VLOOKUP(Table_Data_Table_135[[#This Row],[Item ID]],Analysis_Table,10,FALSE)","v":{"$error":"#N/A"}},{"$f":"VLOOKUP(Table_Data_Table_135[[#This Row],[Item ID]],Analysis_Table,11,FALSE)","v":{"$error":"#N/A"}},{"$f":"VLOOKUP(Table_Data_Table_135[[#This Row],[Item ID]],Analysis_Table,12,FALSE)","v":{"$error":"#N/A"}},{"$f":"VLOOKUP(Table_Data_Table_135[[#This Row],[Item ID]],Analysis_Table,13,FALSE)","v":{"$error":"#N/A"}},{"$f":"VLOOKUP(Table_Data_Table_135[[#This Row],[Item ID]],Analysis_Table,14,FALSE)","v":{"$error":"#N/A"}},{"$f":"VLOOKUP(Table_Data_Table_135[[#This Row],[Item ID]],Analysis_Table,15,FALSE)","v":{"$error":"#N/A"}},{"$f":"VLOOKUP(Table_Data_Table_135[[#This Row],[Item ID]],Analysis_Table,16,FALSE)","v":{"$error":"#N/A"}},{"$f":"VLOOKUP(Table_Data_Table_135[[#This Row],[Item ID]],Analysis_Table,17,FALSE)","v":{"$error":"#N/A"}},{"$f":"VLOOKUP(Table_Data_Table_135[[#This Row],[Item ID]],Analysis_Table,18,FALSE)","v":{"$error":"#N/A"}},{"$f":"VLOOKUP(Table_Data_Table_135[[#This Row],[Item ID]],Analysis_Table,19,FALSE)","v":{"$error":"#N/A"}},null,null,1]
["",null,{"$f":"VLOOKUP(Table_Data_Table_135[[#This Row],[Item ID]],Analysis_Table,20,FALSE)","v":{"$error":"#N/A"}},null,null,null,null,null,null,null,0,null,null,null,{"$f":"VLOOKUP(Table_Data_Table_135[[#This Row],[Item ID]],Analysis_Table,8,FALSE)","v":{"$error":"#N/A"}},{"$f":"VLOOKUP(Table_Data_Table_135[[#This Row],[Item ID]],Analysis_Table,9,FALSE)","v":{"$error":"#N/A"}},{"$f":"VLOOKUP(Table_Data_Table_135[[#This Row],[Item ID]],Analysis_Table,10,FALSE)","v":{"$error":"#N/A"}},{"$f":"VLOOKUP(Table_Data_Table_135[[#This Row],[Item ID]],Analysis_Table,11,FALSE)","v":{"$error":"#N/A"}},{"$f":"VLOOKUP(Table_Data_Table_135[[#This Row],[Item ID]],Analysis_Table,12,FALSE)","v":{"$error":"#N/A"}},{"$f":"VLOOKUP(Table_Data_Table_135[[#This Row],[Item ID]],Analysis_Table,13,FALSE)","v":{"$error":"#N/A"}},{"$f":"VLOOKUP(Table_Data_Table_135[[#This Row],[Item ID]],Analysis_Table,14,FALSE)","v":{"$error":"#N/A"}},{"$f":"VLOOKUP(Table_Data_Table_135[[#This Row],[Item ID]],Analysis_Table,15,FALSE)","v":{"$error":"#N/A"}},{"$f":"VLOOKUP(Table_Data_Table_135[[#This Row],[Item ID]],Analysis_Table,16,FALSE)","v":{"$error":"#N/A"}},{"$f":"VLOOKUP(Table_Data_Table_135[[#This Row],[Item ID]],Analysis_Table,17,FALSE)","v":{"$error":"#N/A"}},{"$f":"VLOOKUP(Table_Data_Table_135[[#This Row],[Item ID]],Analysis_Table,18,FALSE)","v":{"$error":"#N/A"}},{"$f":"VLOOKUP(Table_Data_Table_135[[#This Row],[Item ID]],Analysis_Table,19,FALSE)","v":{"$error":"#N/A"}},null,null,1]
["",null,{"$f":"VLOOKUP(Table_Data_Table_135[[#This Row],[Item ID]],Analysis_Table,20,FALSE)","v":{"$error":"#N/A"}},null,null,null,null,null,null,null,0,null,null,null,{"$f":"VLOOKUP(Table_Data_Table_135[[#This Row],[Item ID]],Analysis_Table,8,FALSE)","v":{"$error":"#N/A"}},{"$f":"VLOOKUP(Table_Data_Table_135[[#This Row],[Item ID]],Analysis_Table,9,FALSE)","v":{"$error":"#N/A"}},{"$f":"VLOOKUP(Table_Data_Table_135[[#This Row],[Item ID]],Analysis_Table,10,FALSE)","v":{"$error":"#N/A"}},{"$f":"VLOOKUP(Table_Data_Table_135[[#This Row],[Item ID]],Analysis_Table,11,FALSE)","v":{"$error":"#N/A"}},{"$f":"VLOOKUP(Table_Data_Table_135[[#This Row],[Item ID]],Analysis_Table,12,FALSE)","v":{"$error":"#N/A"}},{"$f":"VLOOKUP(Table_Data_Table_135[[#This Row],[Item ID]],Analysis_Table,13,FALSE)","v":{"$error":"#N/A"}},{"$f":"VLOOKUP(Table_Data_Table_135[[#This Row],[Item ID]],Analysis_Table,14,FALSE)","v":{"$error":"#N/A"}},{"$f":"VLOOKUP(Table_Data_Table_135[[#This Row],[Item ID]],Analysis_Table,15,FALSE)","v":{"$error":"#N/A"}},{"$f":"VLOOKUP(Table_Data_Table_135[[#This Row],[Item ID]],Analysis_Table,16,FALSE)","v":{"$error":"#N/A"}},{"$f":"VLOOKUP(Table_Data_Table_135[[#This Row],[Item ID]],Analysis_Table,17,FALSE)","v":{"$error":"#N/A"}},{"$f":"VLOOKUP(Table_Data_Table_135[[#This Row],[Item ID]],Analysis_Table,18,FALSE)","v":{"$error":"#N/A"}},{"$f":"VLOOKUP(Table_Data_Table_135[[#This Row],[Item ID]],Analysis_Table,19,FALSE)","v":{"$error":"#N/A"}},null,null,1]
["",null,{"$f":"VLOOKUP(Table_Data_Table_135[[#This Row],[Item ID]],Analysis_Table,20,FALSE)","v":{"$error":"#N/A"}},null,null,null,null,null,null,null,0,null,null,null,{"$f":"VLOOKUP(Table_Data_Table_135[[#This Row],[Item ID]],Analysis_Table,8,FALSE)","v":{"$error":"#N/A"}},{"$f":"VLOOKUP(Table_Data_Table_135[[#This Row],[Item ID]],Analysis_Table,9,FALSE)","v":{"$error":"#N/A"}},{"$f":"VLOOKUP(Table_Data_Table_135[[#This Row],[Item ID]],Analysis_Table,10,FALSE)","v":{"$error":"#N/A"}},{"$f":"VLOOKUP(Table_Data_Table_135[[#This Row],[Item ID]],Analysis_Table,11,FALSE)","v":{"$error":"#N/A"}},{"$f":"VLOOKUP(Table_Data_Table_135[[#This Row],[Item ID]],Analysis_Table,12,FALSE)","v":{"$error":"#N/A"}},{"$f":"VLOOKUP(Table_Data_Table_135[[#This Row],[Item ID]],Analysis_Table,13,FALSE)","v":{"$error":"#N/A"}},{"$f":"VLOOKUP(Table_Data_Table_135[[#This Row],[Item ID]],Analysis_Table,14,FALSE)","v":{"$error":"#N/A"}},{"$f":"VLOOKUP(Table_Data_Table_135[[#This Row],[Item ID]],Analysis_Table,15,FALSE)","v":{"$error":"#N/A"}},{"$f":"VLOOKUP(Table_Data_Table_135[[#This Row],[Item ID]],Analysis_Table,16,FALSE)","v":{"$error":"#N/A"}},{"$f":"VLOOKUP(Table_Data_Table_135[[#This Row],[Item ID]],Analysis_Table,17,FALSE)","v":{"$error":"#N/A"}},{"$f":"VLOOKUP(Table_Data_Table_135[[#This Row],[Item ID]],Analysis_Table,18,FALSE)","v":{"$error":"#N/A"}},{"$f":"VLOOKUP(Table_Data_Table_135[[#This Row],[Item ID]],Analysis_Table,19,FALSE)","v":{"$error":"#N/A"}},null,null,1]
["",null,{"$f":"VLOOKUP(Table_Data_Table_135[[#This Row],[Item ID]],Analysis_Table,20,FALSE)","v":{"$error":"#N/A"}},null,null,null,null,null,null,null,0,null,null,null,{"$f":"VLOOKUP(Table_Data_Table_135[[#This Row],[Item ID]],Analysis_Table,8,FALSE)","v":{"$error":"#N/A"}},{"$f":"VLOOKUP(Table_Data_Table_135[[#This Row],[Item ID]],Analysis_Table,9,FALSE)","v":{"$error":"#N/A"}},{"$f":"VLOOKUP(Table_Data_Table_135[[#This Row],[Item ID]],Analysis_Table,10,FALSE)","v":{"$error":"#N/A"}},{"$f":"VLOOKUP(Table_Data_Table_135[[#This Row],[Item ID]],Analysis_Table,11,FALSE)","v":{"$error":"#N/A"}},{"$f":"VLOOKUP(Table_Data_Table_135[[#This Row],[Item ID]],Analysis_Table,12,FALSE)","v":{"$error":"#N/A"}},{"$f":"VLOOKUP(Table_Data_Table_135[[#This Row],[Item ID]],Analysis_Table,13,FALSE)","v":{"$error":"#N/A"}},{"$f":"VLOOKUP(Table_Data_Table_135[[#This Row],[Item ID]],Analysis_Table,14,FALSE)","v":{"$error":"#N/A"}},{"$f":"VLOOKUP(Table_Data_Table_135[[#This Row],[Item ID]],Analysis_Table,15,FALSE)","v":{"$error":"#N/A"}},{"$f":"VLOOKUP(Table_Data_Table_135[[#This Row],[Item ID]],Analysis_Table,16,FALSE)","v":{"$error":"#N/A"}},{"$f":"VLOOKUP(Table_Data_Table_135[[#This Row],[Item ID]],Analysis_Table,17,FALSE)","v":{"$error":"#N/A"}},{"$f":"VLOOKUP(Table_Data_Table_135[[#This Row],[Item ID]],Analysis_Table,18,FALSE)","v":{"$error":"#N/A"}},{"$f":"VLOOKUP(Table_Data_Table_135[[#This Row],[Item ID]],Analysis_Table,19,FALSE)","v":{"$error":"#N/A"}},null,null,1]
["",null,{"$f":"VLOOKUP(Table_Data_Table_135[[#This Row],[Item ID]],Analysis_Table,20,FALSE)","v":{"$error":"#N/A"}},null,null,null,null,null,null,null,0,null,null,null,{"$f":"VLOOKUP(Table_Data_Table_135[[#This Row],[Item ID]],Analysis_Table,8,FALSE)","v":{"$error":"#N/A"}},{"$f":"VLOOKUP(Table_Data_Table_135[[#This Row],[Item ID]],Analysis_Table,9,FALSE)","v":{"$error":"#N/A"}},{"$f":"VLOOKUP(Table_Data_Table_135[[#This Row],[Item ID]],Analysis_Table,10,FALSE)","v":{"$error":"#N/A"}},{"$f":"VLOOKUP(Table_Data_Table_135[[#This Row],[Item ID]],Analysis_Table,11,FALSE)","v":{"$error":"#N/A"}},{"$f":"VLOOKUP(Table_Data_Table_135[[#This Row],[Item ID]],Analysis_Table,12,FALSE)","v":{"$error":"#N/A"}},{"$f":"VLOOKUP(Table_Data_Table_135[[#This Row],[Item ID]],Analysis_Table,13,FALSE)","v":{"$error":"#N/A"}},{"$f":"VLOOKUP(Table_Data_Table_135[[#This Row],[Item ID]],Analysis_Table,14,FALSE)","v":{"$error":"#N/A"}},{"$f":"VLOOKUP(Table_Data_Table_135[[#This Row],[Item ID]],Analysis_Table,15,FALSE)","v":{"$error":"#N/A"}},{"$f":"VLOOKUP(Table_Data_Table_135[[#This Row],[Item ID]],Analysis_Table,16,FALSE)","v":{"$error":"#N/A"}},{"$f":"VLOOKUP(Table_Data_Table_135[[#This Row],[Item ID]],Analysis_Table,17,FALSE)","v":{"$error":"#N/A"}},{"$f":"VLOOKUP(Table_Data_Table_135[[#This Row],[Item ID]],Analysis_Table,18,FALSE)","v":{"$error":"#N/A"}},{"$f":"VLOOKUP(Table_Data_Table_135[[#This Row],[Item ID]],Analysis_Table,19,FALSE)","v":{"$error":"#N/A"}},null,null,1]
["",null,{"$f":"VLOOKUP(Table_Data_Table_135[[#This Row],[Item ID]],Analysis_Table,20,FALSE)","v":{"$error":"#N/A"}},null,null,null,null,null,null,null,0,null,null,null,{"$f":"VLOOKUP(Table_Data_Table_135[[#This Row],[Item ID]],Analysis_Table,8,FALSE)","v":{"$error":"#N/A"}},{"$f":"VLOOKUP(Table_Data_Table_135[[#This Row],[Item ID]],Analysis_Table,9,FALSE)","v":{"$error":"#N/A"}},{"$f":"VLOOKUP(Table_Data_Table_135[[#This Row],[Item ID]],Analysis_Table,10,FALSE)","v":{"$error":"#N/A"}},{"$f":"VLOOKUP(Table_Data_Table_135[[#This Row],[Item ID]],Analysis_Table,11,FALSE)","v":{"$error":"#N/A"}},{"$f":"VLOOKUP(Table_Data_Table_135[[#This Row],[Item ID]],Analysis_Table,12,FALSE)","v":{"$error":"#N/A"}},{"$f":"VLOOKUP(Table_Data_Table_135[[#This Row],[Item ID]],Analysis_Table,13,FALSE)","v":{"$error":"#N/A"}},{"$f":"VLOOKUP(Table_Data_Table_135[[#This Row],[Item ID]],Analysis_Table,14,FALSE)","v":{"$error":"#N/A"}},{"$f":"VLOOKUP(Table_Data_Table_135[[#This Row],[Item ID]],Analysis_Table,15,FALSE)","v":{"$error":"#N/A"}},{"$f":"VLOOKUP(Table_Data_Table_135[[#This Row],[Item ID]],Analysis_Table,16,FALSE)","v":{"$error":"#N/A"}},{"$f":"VLOOKUP(Table_Data_Table_135[[#This Row],[Item ID]],Analysis_Table,17,FALSE)","v":{"$error":"#N/A"}},{"$f":"VLOOKUP(Table_Data_Table_135[[#This Row],[Item ID]],Analysis_Table,18,FALSE)","v":{"$error":"#N/A"}},{"$f":"VLOOKUP(Table_Data_Table_135[[#This Row],[Item ID]],Analysis_Table,19,FALSE)","v":{"$error":"#N/A"}},null,null,1]
["",null,{"$f":"VLOOKUP(Table_Data_Table_135[[#This Row],[Item ID]],Analysis_Table,20,FALSE)","v":{"$error":"#N/A"}},null,null,null,null,null,null,null,0,null,null,null,{"$f":"VLOOKUP(Table_Data_Table_135[[#This Row],[Item ID]],Analysis_Table,8,FALSE)","v":{"$error":"#N/A"}},{"$f":"VLOOKUP(Table_Data_Table_135[[#This Row],[Item ID]],Analysis_Table,9,FALSE)","v":{"$error":"#N/A"}},{"$f":"VLOOKUP(Table_Data_Table_135[[#This Row],[Item ID]],Analysis_Table,10,FALSE)","v":{"$error":"#N/A"}},{"$f":"VLOOKUP(Table_Data_Table_135[[#This Row],[Item ID]],Analysis_Table,11,FALSE)","v":{"$error":"#N/A"}},{"$f":"VLOOKUP(Table_Data_Table_135[[#This Row],[Item ID]],Analysis_Table,12,FALSE)","v":{"$error":"#N/A"}},{"$f":"VLOOKUP(Table_Data_Table_135[[#This Row],[Item ID]],Analysis_Table,13,FALSE)","v":{"$error":"#N/A"}},{"$f":"VLOOKUP(Table_Data_Table_135[[#This Row],[Item ID]],Analysis_Table,14,FALSE)","v":{"$error":"#N/A"}},{"$f":"VLOOKUP(Table_Data_Table_135[[#This Row],[Item ID]],Analysis_Table,15,FALSE)","v":{"$error":"#N/A"}},{"$f":"VLOOKUP(Table_Data_Table_135[[#This Row],[Item ID]],Analysis_Table,16,FALSE)","v":{"$error":"#N/A"}},{"$f":"VLOOKUP(Table_Data_Table_135[[#This Row],[Item ID]],Analysis_Table,17,FALSE)","v":{"$error":"#N/A"}},{"$f":"VLOOKUP(Table_Data_Table_135[[#This Row],[Item ID]],Analysis_Table,18,FALSE)","v":{"$error":"#N/A"}},{"$f":"VLOOKUP(Table_Data_Table_135[[#This Row],[Item ID]],Analysis_Table,19,FALSE)","v":{"$error":"#N/A"}},null,null,1]
["",null,{"$f":"VLOOKUP(Table_Data_Table_135[[#This Row],[Item ID]],Analysis_Table,20,FALSE)","v":{"$error":"#N/A"}},null,null,null,null,null,null,null,0,null,null,null,{"$f":"VLOOKUP(Table_Data_Table_135[[#This Row],[Item ID]],Analysis_Table,8,FALSE)","v":{"$error":"#N/A"}},{"$f":"VLOOKUP(Table_Data_Table_135[[#This Row],[Item ID]],Analysis_Table,9,FALSE)","v":{"$error":"#N/A"}},{"$f":"VLOOKUP(Table_Data_Table_135[[#This Row],[Item ID]],Analysis_Table,10,FALSE)","v":{"$error":"#N/A"}},{"$f":"VLOOKUP(Table_Data_Table_135[[#This Row],[Item ID]],Analysis_Table,11,FALSE)","v":{"$error":"#N/A"}},{"$f":"VLOOKUP(Table_Data_Table_135[[#This Row],[Item ID]],Analysis_Table,12,FALSE)","v":{"$error":"#N/A"}},{"$f":"VLOOKUP(Table_Data_Table_135[[#This Row],[Item ID]],Analysis_Table,13,FALSE)","v":{"$error":"#N/A"}},{"$f":"VLOOKUP(Table_Data_Table_135[[#This Row],[Item ID]],Analysis_Table,14,FALSE)","v":{"$error":"#N/A"}},{"$f":"VLOOKUP(Table_Data_Table_135[[#This Row],[Item ID]],Analysis_Table,15,FALSE)","v":{"$error":"#N/A"}},{"$f":"VLOOKUP(Table_Data_Table_135[[#This Row],[Item ID]],Analysis_Table,16,FALSE)","v":{"$error":"#N/A"}},{"$f":"VLOOKUP(Table_Data_Table_135[[#This Row],[Item ID]],Analysis_Table,17,FALSE)","v":{"$error":"#N/A"}},{"$f":"VLOOKUP(Table_Data_Table_135[[#This Row],[Item ID]],Analysis_Table,18,FALSE)","v":{"$error":"#N/A"}},{"$f":"VLOOKUP(Table_Data_Table_135[[#This Row],[Item ID]],Analysis_Table,19,FALSE)","v":{"$error":"#N/A"}},null,null,1]
["",null,{"$f":"VLOOKUP(Table_Data_Table_135[[#This Row],[Item ID]],Analysis_Table,20,FALSE)","v":{"$error":"#N/A"}},null,null,null,null,null,null,null,0,null,null,null,{"$f":"VLOOKUP(Table_Data_Table_135[[#This Row],[Item ID]],Analysis_Table,8,FALSE)","v":{"$error":"#N/A"}},{"$f":"VLOOKUP(Table_Data_Table_135[[#This Row],[Item ID]],Analysis_Table,9,FALSE)","v":{"$error":"#N/A"}},{"$f":"VLOOKUP(Table_Data_Table_135[[#This Row],[Item ID]],Analysis_Table,10,FALSE)","v":{"$error":"#N/A"}},{"$f":"VLOOKUP(Table_Data_Table_135[[#This Row],[Item ID]],Analysis_Table,11,FALSE)","v":{"$error":"#N/A"}},{"$f":"VLOOKUP(Table_Data_Table_135[[#This Row],[Item ID]],Analysis_Table,12,FALSE)","v":{"$error":"#N/A"}},{"$f":"VLOOKUP(Table_Data_Table_135[[#This Row],[Item ID]],Analysis_Table,13,FALSE)","v":{"$error":"#N/A"}},{"$f":"VLOOKUP(Table_Data_Table_135[[#This Row],[Item ID]],Analysis_Table,14,FALSE)","v":{"$error":"#N/A"}},{"$f":"VLOOKUP(Table_Data_Table_135[[#This Row],[Item ID]],Analysis_Table,15,FALSE)","v":{"$error":"#N/A"}},{"$f":"VLOOKUP(Table_Data_Table_135[[#This Row],[Item ID]],Analysis_Table,16,FALSE)","v":{"$error":"#N/A"}},{"$f":"VLOOKUP(Table_Data_Table_135[[#This Row],[Item ID]],Analysis_Table,17,FALSE)","v":{"$error":"#N/A"}},{"$f":"VLOOKUP(Table_Data_Table_135[[#This Row],[Item ID]],Analysis_Table,18,FALSE)","v":{"$error":"#N/A"}},{"$f":"VLOOKUP(Table_Data_Table_135[[#This Row],[Item ID]],Analysis_Table,19,FALSE)","v":{"$error":"#N/A"}},null,null,1]
["",null,{"$f":"VLOOKUP(Table_Data_Table_135[[#This Row],[Item ID]],Analysis_Table,20,FALSE)","v":{"$error":"#N/A"}},null,null,null,null,null,null,null,0,null,null,null,{"$f":"VLOOKUP(Table_Data_Table_135[[#This Row],[Item ID]],Analysis_Table,8,FALSE)","v":{"$error":"#N/A"}},{"$f":"VLOOKUP(Table_Data_Table_135[[#This Row],[Item ID]],Analysis_Table,9,FALSE)","v":{"$error":"#N/A"}},{"$f":"VLOOKUP(Table_Data_Table_135[[#This Row],[Item ID]],Analysis_Table,10,FALSE)","v":{"$error":"#N/A"}},{"$f":"VLOOKUP(Table_Data_Table_135[[#This Row],[Item ID]],Analysis_Table,11,FALSE)","v":{"$error":"#N/A"}},{"$f":"VLOOKUP(Table_Data_Table_135[[#This Row],[Item ID]],Analysis_Table,12,FALSE)","v":{"$error":"#N/A"}},{"$f":"VLOOKUP(Table_Data_Table_135[[#This Row],[Item ID]],Analysis_Table,13,FALSE)","v":{"$error":"#N/A"}},{"$f":"VLOOKUP(Table_Data_Table_135[[#This Row],[Item ID]],Analysis_Table,14,FALSE)","v":{"$error":"#N/A"}},{"$f":"VLOOKUP(Table_Data_Table_135[[#This Row],[Item ID]],Analysis_Table,15,FALSE)","v":{"$error":"#N/A"}},{"$f":"VLOOKUP(Table_Data_Table_135[[#This Row],[Item ID]],Analysis_Table,16,FALSE)","v":{"$error":"#N/A"}},{"$f":"VLOOKUP(Table_Data_Table_135[[#This Row],[Item ID]],Analysis_Table,17,FALSE)","v":{"$error":"#N/A"}},{"$f":"VLOOKUP(Table_Data_Table_135[[#This Row],[Item ID]],Analysis_Table,18,FALSE)","v":{"$error":"#N/A"}},{"$f":"VLOOKUP(Table_Data_Table_135[[#This Row],[Item ID]],Analysis_Table,19,FALSE)","v":{"$error":"#N/A"}},null,null,1]
["",null,{"$f":"VLOOKUP(Table_Data_Table_135[[#This Row],[Item ID]],Analysis_Table,20,FALSE)","v":{"$error":"#N/A"}},null,null,null,null,null,null,null,0,null,null,null,{"$f":"VLOOKUP(Table_Data_Table_135[[#This Row],[Item ID]],Analysis_Table,8,FALSE)","v":{"$error":"#N/A"}},{"$f":"VLOOKUP(Table_Data_Table_135[[#This Row],[Item ID]],Analysis_Table,9,FALSE)","v":{"$error":"#N/A"}},{"$f":"VLOOKUP(Table_Data_Table_135[[#This Row],[Item ID]],Analysis_Table,10,FALSE)","v":{"$error":"#N/A"}},{"$f":"VLOOKUP(Table_Data_Table_135[[#This Row],[Item ID]],Analysis_Table,11,FALSE)","v":{"$error":"#N/A"}},{"$f":"VLOOKUP(Table_Data_Table_135[[#This Row],[Item ID]],Analysis_Table,12,FALSE)","v":{"$error":"#N/A"}},{"$f":"VLOOKUP(Table_Data_Table_135[[#This Row],[Item ID]],Analysis_Table,13,FALSE)","v":{"$error":"#N/A"}},{"$f":"VLOOKUP(Table_Data_Table_135[[#This Row],[Item ID]],Analysis_Table,14,FALSE)","v":{"$error":"#N/A"}},{"$f":"VLOOKUP(Table_Data_Table_135[[#This Row],[Item ID]],Analysis_Table,15,FALSE)","v":{"$error":"#N/A"}},{"$f":"VLOOKUP(Table_Data_Table_135[[#This Row],[Item ID]],Analysis_Table,16,FALSE)","v":{"$error":"#N/A"}},{"$f":"VLOOKUP(Table_Data_Table_135[[#This Row],[Item ID]],Analysis_Table,17,FALSE)","v":{"$error":"#N/A"}},{"$f":"VLOOKUP(Table_Data_Table_135[[#This Row],[Item ID]],Analysis_Table,18,FALSE)","v":{"$error":"#N/A"}},{"$f":"VLOOKUP(Table_Data_Table_135[[#This Row],[Item ID]],Analysis_Table,19,FALSE)","v":{"$error":"#N/A"}},null,null,1]
["",null,{"$f":"VLOOKUP(Table_Data_Table_135[[#This Row],[Item ID]],Analysis_Table,20,FALSE)","v":{"$error":"#N/A"}},null,null,null,null,null,null,null,0,null,null,null,{"$f":"VLOOKUP(Table_Data_Table_135[[#This Row],[Item ID]],Analysis_Table,8,FALSE)","v":{"$error":"#N/A"}},{"$f":"VLOOKUP(Table_Data_Table_135[[#This Row],[Item ID]],Analysis_Table,9,FALSE)","v":{"$error":"#N/A"}},{"$f":"VLOOKUP(Table_Data_Table_135[[#This Row],[Item ID]],Analysis_Table,10,FALSE)","v":{"$error":"#N/A"}},{"$f":"VLOOKUP(Table_Data_Table_135[[#This Row],[Item ID]],Analysis_Table,11,FALSE)","v":{"$error":"#N/A"}},{"$f":"VLOOKUP(Table_Data_Table_135[[#This Row],[Item ID]],Analysis_Table,12,FALSE)","v":{"$error":"#N/A"}},{"$f":"VLOOKUP(Table_Data_Table_135[[#This Row],[Item ID]],Analysis_Table,13,FALSE)","v":{"$error":"#N/A"}},{"$f":"VLOOKUP(Table_Data_Table_135[[#This Row],[Item ID]],Analysis_Table,14,FALSE)","v":{"$error":"#N/A"}},{"$f":"VLOOKUP(Table_Data_Table_135[[#This Row],[Item ID]],Analysis_Table,15,FALSE)","v":{"$error":"#N/A"}},{"$f":"VLOOKUP(Table_Data_Table_135[[#This Row],[Item ID]],Analysis_Table,16,FALSE)","v":{"$error":"#N/A"}},{"$f":"VLOOKUP(Table_Data_Table_135[[#This Row],[Item ID]],Analysis_Table,17,FALSE)","v":{"$error":"#N/A"}},{"$f":"VLOOKUP(Table_Data_Table_135[[#This Row],[Item ID]],Analysis_Table,18,FALSE)","v":{"$error":"#N/A"}},{"$f":"VLOOKUP(Table_Data_Table_135[[#This Row],[Item ID]],Analysis_Table,19,FALSE)","v":{"$error":"#N/A"}},null,null,1]
["",null,{"$f":"VLOOKUP(Table_Data_Table_135[[#This Row],[Item ID]],Analysis_Table,20,FALSE)","v":{"$error":"#N/A"}},null,null,null,null,null,null,null,0,null,null,null,{"$f":"VLOOKUP(Table_Data_Table_135[[#This Row],[Item ID]],Analysis_Table,8,FALSE)","v":{"$error":"#N/A"}},{"$f":"VLOOKUP(Table_Data_Table_135[[#This Row],[Item ID]],Analysis_Table,9,FALSE)","v":{"$error":"#N/A"}},{"$f":"VLOOKUP(Table_Data_Table_135[[#This Row],[Item ID]],Analysis_Table,10,FALSE)","v":{"$error":"#N/A"}},{"$f":"VLOOKUP(Table_Data_Table_135[[#This Row],[Item ID]],Analysis_Table,11,FALSE)","v":{"$error":"#N/A"}},{"$f":"VLOOKUP(Table_Data_Table_135[[#This Row],[Item ID]],Analysis_Table,12,FALSE)","v":{"$error":"#N/A"}},{"$f":"VLOOKUP(Table_Data_Table_135[[#This Row],[Item ID]],Analysis_Table,13,FALSE)","v":{"$error":"#N/A"}},{"$f":"VLOOKUP(Table_Data_Table_135[[#This Row],[Item ID]],Analysis_Table,14,FALSE)","v":{"$error":"#N/A"}},{"$f":"VLOOKUP(Table_Data_Table_135[[#This Row],[Item ID]],Analysis_Table,15,FALSE)","v":{"$error":"#N/A"}},{"$f":"VLOOKUP(Table_Data_Table_135[[#This Row],[Item ID]],Analysis_Table,16,FALSE)","v":{"$error":"#N/A"}},{"$f":"VLOOKUP(Table_Data_Table_135[[#This Row],[Item ID]],Analysis_Table,17,FALSE)","v":{"$error":"#N/A"}},{"$f":"VLOOKUP(Table_Data_Table_135[[#This Row],[Item ID]],Analysis_Table,18,FALSE)","v":{"$error":"#N/A"}},{"$f":"VLOOKUP(Table_Data_Table_135[[#This Row],[Item ID]],Analysis_Table,19,FALSE)","v":{"$error":"#N/A"}},null,null,1]
["",null,{"$f":"VLOOKUP(Table_Data_Table_135[[#This Row],[Item ID]],Analysis_Table,20,FALSE)","v":{"$error":"#N/A"}},null,null,null,null,null,null,null,0,null,null,null,{"$f":"VLOOKUP(Table_Data_Table_135[[#This Row],[Item ID]],Analysis_Table,8,FALSE)","v":{"$error":"#N/A"}},{"$f":"VLOOKUP(Table_Data_Table_135[[#This Row],[Item ID]],Analysis_Table,9,FALSE)","v":{"$error":"#N/A"}},{"$f":"VLOOKUP(Table_Data_Table_135[[#This Row],[Item ID]],Analysis_Table,10,FALSE)","v":{"$error":"#N/A"}},{"$f":"VLOOKUP(Table_Data_Table_135[[#This Row],[Item ID]],Analysis_Table,11,FALSE)","v":{"$error":"#N/A"}},{"$f":"VLOOKUP(Table_Data_Table_135[[#This Row],[Item ID]],Analysis_Table,12,FALSE)","v":{"$error":"#N/A"}},{"$f":"VLOOKUP(Table_Data_Table_135[[#This Row],[Item ID]],Analysis_Table,13,FALSE)","v":{"$error":"#N/A"}},{"$f":"VLOOKUP(Table_Data_Table_135[[#This Row],[Item ID]],Analysis_Table,14,FALSE)","v":{"$error":"#N/A"}},{"$f":"VLOOKUP(Table_Data_Table_135[[#This Row],[Item ID]],Analysis_Table,15,FALSE)","v":{"$error":"#N/A"}},{"$f":"VLOOKUP(Table_Data_Table_135[[#This Row],[Item ID]],Analysis_Table,16,FALSE)","v":{"$error":"#N/A"}},{"$f":"VLOOKUP(Table_Data_Table_135[[#This Row],[Item ID]],Analysis_Table,17,FALSE)","v":{"$error":"#N/A"}},{"$f":"VLOOKUP(Table_Data_Table_135[[#This Row],[Item ID]],Analysis_Table,18,FALSE)","v":{"$error":"#N/A"}},{"$f":"VLOOKUP(Table_Data_Table_135[[#This Row],[Item ID]],Analysis_Table,19,FALSE)","v":{"$error":"#N/A"}},null,null,1]
["",null,{"$f":"VLOOKUP(Table_Data_Table_135[[#This Row],[Item ID]],Analysis_Table,20,FALSE)","v":{"$error":"#N/A"}},null,null,null,null,null,null,null,0,null,null,null,{"$f":"VLOOKUP(Table_Data_Table_135[[#This Row],[Item ID]],Analysis_Table,8,FALSE)","v":{"$error":"#N/A"}},{"$f":"VLOOKUP(Table_Data_Table_135[[#This Row],[Item ID]],Analysis_Table,9,FALSE)","v":{"$error":"#N/A"}},{"$f":"VLOOKUP(Table_Data_Table_135[[#This Row],[Item ID]],Analysis_Table,10,FALSE)","v":{"$error":"#N/A"}},{"$f":"VLOOKUP(Table_Data_Table_135[[#This Row],[Item ID]],Analysis_Table,11,FALSE)","v":{"$error":"#N/A"}},{"$f":"VLOOKUP(Table_Data_Table_135[[#This Row],[Item ID]],Analysis_Table,12,FALSE)","v":{"$error":"#N/A"}},{"$f":"VLOOKUP(Table_Data_Table_135[[#This Row],[Item ID]],Analysis_Table,13,FALSE)","v":{"$error":"#N/A"}},{"$f":"VLOOKUP(Table_Data_Table_135[[#This Row],[Item ID]],Analysis_Table,14,FALSE)","v":{"$error":"#N/A"}},{"$f":"VLOOKUP(Table_Data_Table_135[[#This Row],[Item ID]],Analysis_Table,15,FALSE)","v":{"$error":"#N/A"}},{"$f":"VLOOKUP(Table_Data_Table_135[[#This Row],[Item ID]],Analysis_Table,16,FALSE)","v":{"$error":"#N/A"}},{"$f":"VLOOKUP(Table_Data_Table_135[[#This Row],[Item ID]],Analysis_Table,17,FALSE)","v":{"$error":"#N/A"}},{"$f":"VLOOKUP(Table_Data_Table_135[[#This Row],[Item ID]],Analysis_Table,18,FALSE)","v":{"$error":"#N/A"}},{"$f":"VLOOKUP(Table_Data_Table_135[[#This Row],[Item ID]],Analysis_Table,19,FALSE)","v":{"$error":"#N/A"}},null,null,1]
["",null,{"$f":"VLOOKUP(Table_Data_Table_135[[#This Row],[Item ID]],Analysis_Table,20,FALSE)","v":{"$error":"#N/A"}},null,null,null,null,null,null,null,0,null,null,null,{"$f":"VLOOKUP(Table_Data_Table_135[[#This Row],[Item ID]],Analysis_Table,8,FALSE)","v":{"$error":"#N/A"}},{"$f":"VLOOKUP(Table_Data_Table_135[[#This Row],[Item ID]],Analysis_Table,9,FALSE)","v":{"$error":"#N/A"}},{"$f":"VLOOKUP(Table_Data_Table_135[[#This Row],[Item ID]],Analysis_Table,10,FALSE)","v":{"$error":"#N/A"}},{"$f":"VLOOKUP(Table_Data_Table_135[[#This Row],[Item ID]],Analysis_Table,11,FALSE)","v":{"$error":"#N/A"}},{"$f":"VLOOKUP(Table_Data_Table_135[[#This Row],[Item ID]],Analysis_Table,12,FALSE)","v":{"$error":"#N/A"}},{"$f":"VLOOKUP(Table_Data_Table_135[[#This Row],[Item ID]],Analysis_Table,13,FALSE)","v":{"$error":"#N/A"}},{"$f":"VLOOKUP(Table_Data_Table_135[[#This Row],[Item ID]],Analysis_Table,14,FALSE)","v":{"$error":"#N/A"}},{"$f":"VLOOKUP(Table_Data_Table_135[[#This Row],[Item ID]],Analysis_Table,15,FALSE)","v":{"$error":"#N/A"}},{"$f":"VLOOKUP(Table_Data_Table_135[[#This Row],[Item ID]],Analysis_Table,16,FALSE)","v":{"$error":"#N/A"}},{"$f":"VLOOKUP(Table_Data_Table_135[[#This Row],[Item ID]],Analysis_Table,17,FALSE)","v":{"$error":"#N/A"}},{"$f":"VLOOKUP(Table_Data_Table_135[[#This Row],[Item ID]],Analysis_Table,18,FALSE)","v":{"$error":"#N/A"}},{"$f":"VLOOKUP(Table_Data_Table_135[[#This Row],[Item ID]],Analysis_Table,19,FALSE)","v":{"$error":"#N/A"}},null,null,1]
["",null,{"$f":"VLOOKUP(Table_Data_Table_135[[#This Row],[Item ID]],Analysis_Table,20,FALSE)","v":{"$error":"#N/A"}},null,null,null,null,null,null,null,0,null,null,null,{"$f":"VLOOKUP(Table_Data_Table_135[[#This Row],[Item ID]],Analysis_Table,8,FALSE)","v":{"$error":"#N/A"}},{"$f":"VLOOKUP(Table_Data_Table_135[[#This Row],[Item ID]],Analysis_Table,9,FALSE)","v":{"$error":"#N/A"}},{"$f":"VLOOKUP(Table_Data_Table_135[[#This Row],[Item ID]],Analysis_Table,10,FALSE)","v":{"$error":"#N/A"}},{"$f":"VLOOKUP(Table_Data_Table_135[[#This Row],[Item ID]],Analysis_Table,11,FALSE)","v":{"$error":"#N/A"}},{"$f":"VLOOKUP(Table_Data_Table_135[[#This Row],[Item ID]],Analysis_Table,12,FALSE)","v":{"$error":"#N/A"}},{"$f":"VLOOKUP(Table_Data_Table_135[[#This Row],[Item ID]],Analysis_Table,13,FALSE)","v":{"$error":"#N/A"}},{"$f":"VLOOKUP(Table_Data_Table_135[[#This Row],[Item ID]],Analysis_Table,14,FALSE)","v":{"$error":"#N/A"}},{"$f":"VLOOKUP(Table_Data_Table_135[[#This Row],[Item ID]],Analysis_Table,15,FALSE)","v":{"$error":"#N/A"}},{"$f":"VLOOKUP(Table_Data_Table_135[[#This Row],[Item ID]],Analysis_Table,16,FALSE)","v":{"$error":"#N/A"}},{"$f":"VLOOKUP(Table_Data_Table_135[[#This Row],[Item ID]],Analysis_Table,17,FALSE)","v":{"$error":"#N/A"}},{"$f":"VLOOKUP(Table_Data_Table_135[[#This Row],[Item ID]],Analysis_Table,18,FALSE)","v":{"$error":"#N/A"}},{"$f":"VLOOKUP(Table_Data_Table_135[[#This Row],[Item ID]],Analysis_Table,19,FALSE)","v":{"$error":"#N/A"}},null,null,1]
["",null,{"$f":"VLOOKUP(Table_Data_Table_135[[#This Row],[Item ID]],Analysis_Table,20,FALSE)","v":{"$error":"#N/A"}},null,null,null,null,null,null,null,0,null,null,null,{"$f":"VLOOKUP(Table_Data_Table_135[[#This Row],[Item ID]],Analysis_Table,8,FALSE)","v":{"$error":"#N/A"}},{"$f":"VLOOKUP(Table_Data_Table_135[[#This Row],[Item ID]],Analysis_Table,9,FALSE)","v":{"$error":"#N/A"}},{"$f":"VLOOKUP(Table_Data_Table_135[[#This Row],[Item ID]],Analysis_Table,10,FALSE)","v":{"$error":"#N/A"}},{"$f":"VLOOKUP(Table_Data_Table_135[[#This Row],[Item ID]],Analysis_Table,11,FALSE)","v":{"$error":"#N/A"}},{"$f":"VLOOKUP(Table_Data_Table_135[[#This Row],[Item ID]],Analysis_Table,12,FALSE)","v":{"$error":"#N/A"}},{"$f":"VLOOKUP(Table_Data_Table_135[[#This Row],[Item ID]],Analysis_Table,13,FALSE)","v":{"$error":"#N/A"}},{"$f":"VLOOKUP(Table_Data_Table_135[[#This Row],[Item ID]],Analysis_Table,14,FALSE)","v":{"$error":"#N/A"}},{"$f":"VLOOKUP(Table_Data_Table_135[[#This Row],[Item ID]],Analysis_Table,15,FALSE)","v":{"$error":"#N/A"}},{"$f":"VLOOKUP(Table_Data_Table_135[[#This Row],[Item ID]],Analysis_Table,16,FALSE)","v":{"$error":"#N/A"}},{"$f":"VLOOKUP(Table_Data_Table_135[[#This Row],[Item ID]],Analysis_Table,17,FALSE)","v":{"$error":"#N/A"}},{"$f":"VLOOKUP(Table_Data_Table_135[[#This Row],[Item ID]],Analysis_Table,18,FALSE)","v":{"$error":"#N/A"}},{"$f":"VLOOKUP(Table_Data_Table_135[[#This Row],[Item ID]],Analysis_Table,19,FALSE)","v":{"$error":"#N/A"}},null,null,1]
["",null,{"$f":"VLOOKUP(Table_Data_Table_135[[#This Row],[Item ID]],Analysis_Table,20,FALSE)","v":{"$error":"#N/A"}},null,null,null,null,null,null,null,0,null,null,null,{"$f":"VLOOKUP(Table_Data_Table_135[[#This Row],[Item ID]],Analysis_Table,8,FALSE)","v":{"$error":"#N/A"}},{"$f":"VLOOKUP(Table_Data_Table_135[[#This Row],[Item ID]],Analysis_Table,9,FALSE)","v":{"$error":"#N/A"}},{"$f":"VLOOKUP(Table_Data_Table_135[[#This Row],[Item ID]],Analysis_Table,10,FALSE)","v":{"$error":"#N/A"}},{"$f":"VLOOKUP(Table_Data_Table_135[[#This Row],[Item ID]],Analysis_Table,11,FALSE)","v":{"$error":"#N/A"}},{"$f":"VLOOKUP(Table_Data_Table_135[[#This Row],[Item ID]],Analysis_Table,12,FALSE)","v":{"$error":"#N/A"}},{"$f":"VLOOKUP(Table_Data_Table_135[[#This Row],[Item ID]],Analysis_Table,13,FALSE)","v":{"$error":"#N/A"}},{"$f":"VLOOKUP(Table_Data_Table_135[[#This Row],[Item ID]],Analysis_Table,14,FALSE)","v":{"$error":"#N/A"}},{"$f":"VLOOKUP(Table_Data_Table_135[[#This Row],[Item ID]],Analysis_Table,15,FALSE)","v":{"$error":"#N/A"}},{"$f":"VLOOKUP(Table_Data_Table_135[[#This Row],[Item ID]],Analysis_Table,16,FALSE)","v":{"$error":"#N/A"}},{"$f":"VLOOKUP(Table_Data_Table_135[[#This Row],[Item ID]],Analysis_Table,17,FALSE)","v":{"$error":"#N/A"}},{"$f":"VLOOKUP(Table_Data_Table_135[[#This Row],[Item ID]],Analysis_Table,18,FALSE)","v":{"$error":"#N/A"}},{"$f":"VLOOKUP(Table_Data_Table_135[[#This Row],[Item ID]],Analysis_Table,19,FALSE)","v":{"$error":"#N/A"}},null,null,1]
["",null,{"$f":"VLOOKUP(Table_Data_Table_135[[#This Row],[Item ID]],Analysis_Table,20,FALSE)","v":{"$error":"#N/A"}},null,null,null,null,null,null,null,0,null,null,null,{"$f":"VLOOKUP(Table_Data_Table_135[[#This Row],[Item ID]],Analysis_Table,8,FALSE)","v":{"$error":"#N/A"}},{"$f":"VLOOKUP(Table_Data_Table_135[[#This Row],[Item ID]],Analysis_Table,9,FALSE)","v":{"$error":"#N/A"}},{"$f":"VLOOKUP(Table_Data_Table_135[[#This Row],[Item ID]],Analysis_Table,10,FALSE)","v":{"$error":"#N/A"}},{"$f":"VLOOKUP(Table_Data_Table_135[[#This Row],[Item ID]],Analysis_Table,11,FALSE)","v":{"$error":"#N/A"}},{"$f":"VLOOKUP(Table_Data_Table_135[[#This Row],[Item ID]],Analysis_Table,12,FALSE)","v":{"$error":"#N/A"}},{"$f":"VLOOKUP(Table_Data_Table_135[[#This Row],[Item ID]],Analysis_Table,13,FALSE)","v":{"$error":"#N/A"}},{"$f":"VLOOKUP(Table_Data_Table_135[[#This Row],[Item ID]],Analysis_Table,14,FALSE)","v":{"$error":"#N/A"}},{"$f":"VLOOKUP(Table_Data_Table_135[[#This Row],[Item ID]],Analysis_Table,15,FALSE)","v":{"$error":"#N/A"}},{"$f":"VLOOKUP(Table_Data_Table_135[[#This Row],[Item ID]],Analysis_Table,16,FALSE)","v":{"$error":"#N/A"}},{"$f":"VLOOKUP(Table_Data_Table_135[[#This Row],[Item ID]],Analysis_Table,17,FALSE)","v":{"$error":"#N/A"}},{"$f":"VLOOKUP(Table_Data_Table_135[[#This Row],[Item ID]],Analysis_Table,18,FALSE)","v":{"$error":"#N/A"}},{"$f":"VLOOKUP(Table_Data_Table_135[[#This Row],[Item ID]],Analysis_Table,19,FALSE)","v":{"$error":"#N/A"}},null,null,1]
["",null,{"$f":"VLOOKUP(Table_Data_Table_135[[#This Row],[Item ID]],Analysis_Table,20,FALSE)","v":{"$error":"#N/A"}},null,null,null,null,null,null,null,0,null,null,null,{"$f":"VLOOKUP(Table_Data_Table_135[[#This Row],[Item ID]],Analysis_Table,8,FALSE)","v":{"$error":"#N/A"}},{"$f":"VLOOKUP(Table_Data_Table_135[[#This Row],[Item ID]],Analysis_Table,9,FALSE)","v":{"$error":"#N/A"}},{"$f":"VLOOKUP(Table_Data_Table_135[[#This Row],[Item ID]],Analysis_Table,10,FALSE)","v":{"$error":"#N/A"}},{"$f":"VLOOKUP(Table_Data_Table_135[[#This Row],[Item ID]],Analysis_Table,11,FALSE)","v":{"$error":"#N/A"}},{"$f":"VLOOKUP(Table_Data_Table_135[[#This Row],[Item ID]],Analysis_Table,12,FALSE)","v":{"$error":"#N/A"}},{"$f":"VLOOKUP(Table_Data_Table_135[[#This Row],[Item ID]],Analysis_Table,13,FALSE)","v":{"$error":"#N/A"}},{"$f":"VLOOKUP(Table_Data_Table_135[[#This Row],[Item ID]],Analysis_Table,14,FALSE)","v":{"$error":"#N/A"}},{"$f":"VLOOKUP(Table_Data_Table_135[[#This Row],[Item ID]],Analysis_Table,15,FALSE)","v":{"$error":"#N/A"}},{"$f":"VLOOKUP(Table_Data_Table_135[[#This Row],[Item ID]],Analysis_Table,16,FALSE)","v":{"$error":"#N/A"}},{"$f":"VLOOKUP(Table_Data_Table_135[[#This Row],[Item ID]],Analysis_Table,17,FALSE)","v":{"$error":"#N/A"}},{"$f":"VLOOKUP(Table_Data_Table_135[[#This Row],[Item ID]],Analysis_Table,18,FALSE)","v":{"$error":"#N/A"}},{"$f":"VLOOKUP(Table_Data_Table_135[[#This Row],[Item ID]],Analysis_Table,19,FALSE)","v":{"$error":"#N/A"}},null,null,1]
["",null,{"$f":"VLOOKUP(Table_Data_Table_135[[#This Row],[Item ID]],Analysis_Table,20,FALSE)","v":{"$error":"#N/A"}},null,null,null,null,null,null,null,0,null,null,null,{"$f":"VLOOKUP(Table_Data_Table_135[[#This Row],[Item ID]],Analysis_Table,8,FALSE)","v":{"$error":"#N/A"}},{"$f":"VLOOKUP(Table_Data_Table_135[[#This Row],[Item ID]],Analysis_Table,9,FALSE)","v":{"$error":"#N/A"}},{"$f":"VLOOKUP(Table_Data_Table_135[[#This Row],[Item ID]],Analysis_Table,10,FALSE)","v":{"$error":"#N/A"}},{"$f":"VLOOKUP(Table_Data_Table_135[[#This Row],[Item ID]],Analysis_Table,11,FALSE)","v":{"$error":"#N/A"}},{"$f":"VLOOKUP(Table_Data_Table_135[[#This Row],[Item ID]],Analysis_Table,12,FALSE)","v":{"$error":"#N/A"}},{"$f":"VLOOKUP(Table_Data_Table_135[[#This Row],[Item ID]],Analysis_Table,13,FALSE)","v":{"$error":"#N/A"}},{"$f":"VLOOKUP(Table_Data_Table_135[[#This Row],[Item ID]],Analysis_Table,14,FALSE)","v":{"$error":"#N/A"}},{"$f":"VLOOKUP(Table_Data_Table_135[[#This Row],[Item ID]],Analysis_Table,15,FALSE)","v":{"$error":"#N/A"}},{"$f":"VLOOKUP(Table_Data_Table_135[[#This Row],[Item ID]],Analysis_Table,16,FALSE)","v":{"$error":"#N/A"}},{"$f":"VLOOKUP(Table_Data_Table_135[[#This Row],[Item ID]],Analysis_Table,17,FALSE)","v":{"$error":"#N/A"}},{"$f":"VLOOKUP(Table_Data_Table_135[[#This Row],[Item ID]],Analysis_Table,18,FALSE)","v":{"$error":"#N/A"}},{"$f":"VLOOKUP(Table_Data_Table_135[[#This Row],[Item ID]],Analysis_Table,19,FALSE)","v":{"$error":"#N/A"}},null,null,1]
["",null,{"$f":"VLOOKUP(Table_Data_Table_135[[#This Row],[Item ID]],Analysis_Table,20,FALSE)","v":{"$error":"#N/A"}},null,null,null,null,null,null,null,0,null,null,null,{"$f":"VLOOKUP(Table_Data_Table_135[[#This Row],[Item ID]],Analysis_Table,8,FALSE)","v":{"$error":"#N/A"}},{"$f":"VLOOKUP(Table_Data_Table_135[[#This Row],[Item ID]],Analysis_Table,9,FALSE)","v":{"$error":"#N/A"}},{"$f":"VLOOKUP(Table_Data_Table_135[[#This Row],[Item ID]],Analysis_Table,10,FALSE)","v":{"$error":"#N/A"}},{"$f":"VLOOKUP(Table_Data_Table_135[[#This Row],[Item ID]],Analysis_Table,11,FALSE)","v":{"$error":"#N/A"}},{"$f":"VLOOKUP(Table_Data_Table_135[[#This Row],[Item ID]],Analysis_Table,12,FALSE)","v":{"$error":"#N/A"}},{"$f":"VLOOKUP(Table_Data_Table_135[[#This Row],[Item ID]],Analysis_Table,13,FALSE)","v":{"$error":"#N/A"}},{"$f":"VLOOKUP(Table_Data_Table_135[[#This Row],[Item ID]],Analysis_Table,14,FALSE)","v":{"$error":"#N/A"}},{"$f":"VLOOKUP(Table_Data_Table_135[[#This Row],[Item ID]],Analysis_Table,15,FALSE)","v":{"$error":"#N/A"}},{"$f":"VLOOKUP(Table_Data_Table_135[[#This Row],[Item ID]],Analysis_Table,16,FALSE)","v":{"$error":"#N/A"}},{"$f":"VLOOKUP(Table_Data_Table_135[[#This Row],[Item ID]],Analysis_Table,17,FALSE)","v":{"$error":"#N/A"}},{"$f":"VLOOKUP(Table_Data_Table_135[[#This Row],[Item ID]],Analysis_Table,18,FALSE)","v":{"$error":"#N/A"}},{"$f":"VLOOKUP(Table_Data_Table_135[[#This Row],[Item ID]],Analysis_Table,19,FALSE)","v":{"$error":"#N/A"}},null,null,1]
["",null,{"$f":"VLOOKUP(Table_Data_Table_135[[#This Row],[Item ID]],Analysis_Table,20,FALSE)","v":{"$error":"#N/A"}},null,null,null,null,null,null,null,0,null,null,null,{"$f":"VLOOKUP(Table_Data_Table_135[[#This Row],[Item ID]],Analysis_Table,8,FALSE)","v":{"$error":"#N/A"}},{"$f":"VLOOKUP(Table_Data_Table_135[[#This Row],[Item ID]],Analysis_Table,9,FALSE)","v":{"$error":"#N/A"}},{"$f":"VLOOKUP(Table_Data_Table_135[[#This Row],[Item ID]],Analysis_Table,10,FALSE)","v":{"$error":"#N/A"}},{"$f":"VLOOKUP(Table_Data_Table_135[[#This Row],[Item ID]],Analysis_Table,11,FALSE)","v":{"$error":"#N/A"}},{"$f":"VLOOKUP(Table_Data_Table_135[[#This Row],[Item ID]],Analysis_Table,12,FALSE)","v":{"$error":"#N/A"}},{"$f":"VLOOKUP(Table_Data_Table_135[[#This Row],[Item ID]],Analysis_Table,13,FALSE)","v":{"$error":"#N/A"}},{"$f":"VLOOKUP(Table_Data_Table_135[[#This Row],[Item ID]],Analysis_Table,14,FALSE)","v":{"$error":"#N/A"}},{"$f":"VLOOKUP(Table_Data_Table_135[[#This Row],[Item ID]],Analysis_Table,15,FALSE)","v":{"$error":"#N/A"}},{"$f":"VLOOKUP(Table_Data_Table_135[[#This Row],[Item ID]],Analysis_Table,16,FALSE)","v":{"$error":"#N/A"}},{"$f":"VLOOKUP(Table_Data_Table_135[[#This Row],[Item ID]],Analysis_Table,17,FALSE)","v":{"$error":"#N/A"}},{"$f":"VLOOKUP(Table_Data_Table_135[[#This Row],[Item ID]],Analysis_Table,18,FALSE)","v":{"$error":"#N/A"}},{"$f":"VLOOKUP(Table_Data_Table_135[[#This Row],[Item ID]],Analysis_Table,19,FALSE)","v":{"$error":"#N/A"}},null,null,1]
["",null,{"$f":"VLOOKUP(Table_Data_Table_135[[#This Row],[Item ID]],Analysis_Table,20,FALSE)","v":{"$error":"#N/A"}},null,null,null,null,null,null,null,0,null,null,null,{"$f":"VLOOKUP(Table_Data_Table_135[[#This Row],[Item ID]],Analysis_Table,8,FALSE)","v":{"$error":"#N/A"}},{"$f":"VLOOKUP(Table_Data_Table_135[[#This Row],[Item ID]],Analysis_Table,9,FALSE)","v":{"$error":"#N/A"}},{"$f":"VLOOKUP(Table_Data_Table_135[[#This Row],[Item ID]],Analysis_Table,10,FALSE)","v":{"$error":"#N/A"}},{"$f":"VLOOKUP(Table_Data_Table_135[[#This Row],[Item ID]],Analysis_Table,11,FALSE)","v":{"$error":"#N/A"}},{"$f":"VLOOKUP(Table_Data_Table_135[[#This Row],[Item ID]],Analysis_Table,12,FALSE)","v":{"$error":"#N/A"}},{"$f":"VLOOKUP(Table_Data_Table_135[[#This Row],[Item ID]],Analysis_Table,13,FALSE)","v":{"$error":"#N/A"}},{"$f":"VLOOKUP(Table_Data_Table_135[[#This Row],[Item ID]],Analysis_Table,14,FALSE)","v":{"$error":"#N/A"}},{"$f":"VLOOKUP(Table_Data_Table_135[[#This Row],[Item ID]],Analysis_Table,15,FALSE)","v":{"$error":"#N/A"}},{"$f":"VLOOKUP(Table_Data_Table_135[[#This Row],[Item ID]],Analysis_Table,16,FALSE)","v":{"$error":"#N/A"}},{"$f":"VLOOKUP(Table_Data_Table_135[[#This Row],[Item ID]],Analysis_Table,17,FALSE)","v":{"$error":"#N/A"}},{"$f":"VLOOKUP(Table_Data_Table_135[[#This Row],[Item ID]],Analysis_Table,18,FALSE)","v":{"$error":"#N/A"}},{"$f":"VLOOKUP(Table_Data_Table_135[[#This Row],[Item ID]],Analysis_Table,19,FALSE)","v":{"$error":"#N/A"}},null,null,1]
["",null,{"$f":"VLOOKUP(Table_Data_Table_135[[#This Row],[Item ID]],Analysis_Table,20,FALSE)","v":{"$error":"#N/A"}},null,null,null,null,null,null,null,0,null,null,null,{"$f":"VLOOKUP(Table_Data_Table_135[[#This Row],[Item ID]],Analysis_Table,8,FALSE)","v":{"$error":"#N/A"}},{"$f":"VLOOKUP(Table_Data_Table_135[[#This Row],[Item ID]],Analysis_Table,9,FALSE)","v":{"$error":"#N/A"}},{"$f":"VLOOKUP(Table_Data_Table_135[[#This Row],[Item ID]],Analysis_Table,10,FALSE)","v":{"$error":"#N/A"}},{"$f":"VLOOKUP(Table_Data_Table_135[[#This Row],[Item ID]],Analysis_Table,11,FALSE)","v":{"$error":"#N/A"}},{"$f":"VLOOKUP(Table_Data_Table_135[[#This Row],[Item ID]],Analysis_Table,12,FALSE)","v":{"$error":"#N/A"}},{"$f":"VLOOKUP(Table_Data_Table_135[[#This Row],[Item ID]],Analysis_Table,13,FALSE)","v":{"$error":"#N/A"}},{"$f":"VLOOKUP(Table_Data_Table_135[[#This Row],[Item ID]],Analysis_Table,14,FALSE)","v":{"$error":"#N/A"}},{"$f":"VLOOKUP(Table_Data_Table_135[[#This Row],[Item ID]],Analysis_Table,15,FALSE)","v":{"$error":"#N/A"}},{"$f":"VLOOKUP(Table_Data_Table_135[[#This Row],[Item ID]],Analysis_Table,16,FALSE)","v":{"$error":"#N/A"}},{"$f":"VLOOKUP(Table_Data_Table_135[[#This Row],[Item ID]],Analysis_Table,17,FALSE)","v":{"$error":"#N/A"}},{"$f":"VLOOKUP(Table_Data_Table_135[[#This Row],[Item ID]],Analysis_Table,18,FALSE)","v":{"$error":"#N/A"}},{"$f":"VLOOKUP(Table_Data_Table_135[[#This Row],[Item ID]],Analysis_Table,19,FALSE)","v":{"$error":"#N/A"}},null,null,1]
["",null,{"$f":"VLOOKUP(Table_Data_Table_135[[#This Row],[Item ID]],Analysis_Table,20,FALSE)","v":{"$error":"#N/A"}},null,null,null,null,null,null,null,0,null,null,null,{"$f":"VLOOKUP(Table_Data_Table_135[[#This Row],[Item ID]],Analysis_Table,8,FALSE)","v":{"$error":"#N/A"}},{"$f":"VLOOKUP(Table_Data_Table_135[[#This Row],[Item ID]],Analysis_Table,9,FALSE)","v":{"$error":"#N/A"}},{"$f":"VLOOKUP(Table_Data_Table_135[[#This Row],[Item ID]],Analysis_Table,10,FALSE)","v":{"$error":"#N/A"}},{"$f":"VLOOKUP(Table_Data_Table_135[[#This Row],[Item ID]],Analysis_Table,11,FALSE)","v":{"$error":"#N/A"}},{"$f":"VLOOKUP(Table_Data_Table_135[[#This Row],[Item ID]],Analysis_Table,12,FALSE)","v":{"$error":"#N/A"}},{"$f":"VLOOKUP(Table_Data_Table_135[[#This Row],[Item ID]],Analysis_Table,13,FALSE)","v":{"$error":"#N/A"}},{"$f":"VLOOKUP(Table_Data_Table_135[[#This Row],[Item ID]],Analysis_Table,14,FALSE)","v":{"$error":"#N/A"}},{"$f":"VLOOKUP(Table_Data_Table_135[[#This Row],[Item ID]],Analysis_Table,15,FALSE)","v":{"$error":"#N/A"}},{"$f":"VLOOKUP(Table_Data_Table_135[[#This Row],[Item ID]],Analysis_Table,16,FALSE)","v":{"$error":"#N/A"}},{"$f":"VLOOKUP(Table_Data_Table_135[[#This Row],[Item ID]],Analysis_Table,17,FALSE)","v":{"$error":"#N/A"}},{"$f":"VLOOKUP(Table_Data_Table_135[[#This Row],[Item ID]],Analysis_Table,18,FALSE)","v":{"$error":"#N/A"}},{"$f":"VLOOKUP(Table_Data_Table_135[[#This Row],[Item ID]],Analysis_Table,19,FALSE)","v":{"$error":"#N/A"}},null,null,1]
["",null,{"$f":"VLOOKUP(Table_Data_Table_135[[#This Row],[Item ID]],Analysis_Table,20,FALSE)","v":{"$error":"#N/A"}},null,null,null,null,null,null,null,0,null,null,null,{"$f":"VLOOKUP(Table_Data_Table_135[[#This Row],[Item ID]],Analysis_Table,8,FALSE)","v":{"$error":"#N/A"}},{"$f":"VLOOKUP(Table_Data_Table_135[[#This Row],[Item ID]],Analysis_Table,9,FALSE)","v":{"$error":"#N/A"}},{"$f":"VLOOKUP(Table_Data_Table_135[[#This Row],[Item ID]],Analysis_Table,10,FALSE)","v":{"$error":"#N/A"}},{"$f":"VLOOKUP(Table_Data_Table_135[[#This Row],[Item ID]],Analysis_Table,11,FALSE)","v":{"$error":"#N/A"}},{"$f":"VLOOKUP(Table_Data_Table_135[[#This Row],[Item ID]],Analysis_Table,12,FALSE)","v":{"$error":"#N/A"}},{"$f":"VLOOKUP(Table_Data_Table_135[[#This Row],[Item ID]],Analysis_Table,13,FALSE)","v":{"$error":"#N/A"}},{"$f":"VLOOKUP(Table_Data_Table_135[[#This Row],[Item ID]],Analysis_Table,14,FALSE)","v":{"$error":"#N/A"}},{"$f":"VLOOKUP(Table_Data_Table_135[[#This Row],[Item ID]],Analysis_Table,15,FALSE)","v":{"$error":"#N/A"}},{"$f":"VLOOKUP(Table_Data_Table_135[[#This Row],[Item ID]],Analysis_Table,16,FALSE)","v":{"$error":"#N/A"}},{"$f":"VLOOKUP(Table_Data_Table_135[[#This Row],[Item ID]],Analysis_Table,17,FALSE)","v":{"$error":"#N/A"}},{"$f":"VLOOKUP(Table_Data_Table_135[[#This Row],[Item ID]],Analysis_Table,18,FALSE)","v":{"$error":"#N/A"}},{"$f":"VLOOKUP(Table_Data_Table_135[[#This Row],[Item ID]],Analysis_Table,19,FALSE)","v":{"$error":"#N/A"}},null,null,1]
["",null,{"$f":"VLOOKUP(Table_Data_Table_135[[#This Row],[Item ID]],Analysis_Table,20,FALSE)","v":{"$error":"#N/A"}},null,null,null,null,null,null,null,0,null,null,null,{"$f":"VLOOKUP(Table_Data_Table_135[[#This Row],[Item ID]],Analysis_Table,8,FALSE)","v":{"$error":"#N/A"}},{"$f":"VLOOKUP(Table_Data_Table_135[[#This Row],[Item ID]],Analysis_Table,9,FALSE)","v":{"$error":"#N/A"}},{"$f":"VLOOKUP(Table_Data_Table_135[[#This Row],[Item ID]],Analysis_Table,10,FALSE)","v":{"$error":"#N/A"}},{"$f":"VLOOKUP(Table_Data_Table_135[[#This Row],[Item ID]],Analysis_Table,11,FALSE)","v":{"$error":"#N/A"}},{"$f":"VLOOKUP(Table_Data_Table_135[[#This Row],[Item ID]],Analysis_Table,12,FALSE)","v":{"$error":"#N/A"}},{"$f":"VLOOKUP(Table_Data_Table_135[[#This Row],[Item ID]],Analysis_Table,13,FALSE)","v":{"$error":"#N/A"}},{"$f":"VLOOKUP(Table_Data_Table_135[[#This Row],[Item ID]],Analysis_Table,14,FALSE)","v":{"$error":"#N/A"}},{"$f":"VLOOKUP(Table_Data_Table_135[[#This Row],[Item ID]],Analysis_Table,15,FALSE)","v":{"$error":"#N/A"}},{"$f":"VLOOKUP(Table_Data_Table_135[[#This Row],[Item ID]],Analysis_Table,16,FALSE)","v":{"$error":"#N/A"}},{"$f":"VLOOKUP(Table_Data_Table_135[[#This Row],[Item ID]],Analysis_Table,17,FALSE)","v":{"$error":"#N/A"}},{"$f":"VLOOKUP(Table_Data_Table_135[[#This Row],[Item ID]],Analysis_Table,18,FALSE)","v":{"$error":"#N/A"}},{"$f":"VLOOKUP(Table_Data_Table_135[[#This Row],[Item ID]],Analysis_Table,19,FALSE)","v":{"$error":"#N/A"}},null,null,1]
["",null,{"$f":"VLOOKUP(Table_Data_Table_135[[#This Row],[Item ID]],Analysis_Table,20,FALSE)","v":{"$error":"#N/A"}},null,null,null,null,null,null,null,0,null,null,null,{"$f":"VLOOKUP(Table_Data_Table_135[[#This Row],[Item ID]],Analysis_Table,8,FALSE)","v":{"$error":"#N/A"}},{"$f":"VLOOKUP(Table_Data_Table_135[[#This Row],[Item ID]],Analysis_Table,9,FALSE)","v":{"$error":"#N/A"}},{"$f":"VLOOKUP(Table_Data_Table_135[[#This Row],[Item ID]],Analysis_Table,10,FALSE)","v":{"$error":"#N/A"}},{"$f":"VLOOKUP(Table_Data_Table_135[[#This Row],[Item ID]],Analysis_Table,11,FALSE)","v":{"$error":"#N/A"}},{"$f":"VLOOKUP(Table_Data_Table_135[[#This Row],[Item ID]],Analysis_Table,12,FALSE)","v":{"$error":"#N/A"}},{"$f":"VLOOKUP(Table_Data_Table_135[[#This Row],[Item ID]],Analysis_Table,13,FALSE)","v":{"$error":"#N/A"}},{"$f":"VLOOKUP(Table_Data_Table_135[[#This Row],[Item ID]],Analysis_Table,14,FALSE)","v":{"$error":"#N/A"}},{"$f":"VLOOKUP(Table_Data_Table_135[[#This Row],[Item ID]],Analysis_Table,15,FALSE)","v":{"$error":"#N/A"}},{"$f":"VLOOKUP(Table_Data_Table_135[[#This Row],[Item ID]],Analysis_Table,16,FALSE)","v":{"$error":"#N/A"}},{"$f":"VLOOKUP(Table_Data_Table_135[[#This Row],[Item ID]],Analysis_Table,17,FALSE)","v":{"$error":"#N/A"}},{"$f":"VLOOKUP(Table_Data_Table_135[[#This Row],[Item ID]],Analysis_Table,18,FALSE)","v":{"$error":"#N/A"}},{"$f":"VLOOKUP(Table_Data_Table_135[[#This Row],[Item ID]],Analysis_Table,19,FALSE)","v":{"$error":"#N/A"}},null,null,1]
["",null,{"$f":"VLOOKUP(Table_Data_Table_135[[#This Row],[Item ID]],Analysis_Table,20,FALSE)","v":{"$error":"#N/A"}},null,null,null,null,null,null,null,0,null,null,null,{"$f":"VLOOKUP(Table_Data_Table_135[[#This Row],[Item ID]],Analysis_Table,8,FALSE)","v":{"$error":"#N/A"}},{"$f":"VLOOKUP(Table_Data_Table_135[[#This Row],[Item ID]],Analysis_Table,9,FALSE)","v":{"$error":"#N/A"}},{"$f":"VLOOKUP(Table_Data_Table_135[[#This Row],[Item ID]],Analysis_Table,10,FALSE)","v":{"$error":"#N/A"}},{"$f":"VLOOKUP(Table_Data_Table_135[[#This Row],[Item ID]],Analysis_Table,11,FALSE)","v":{"$error":"#N/A"}},{"$f":"VLOOKUP(Table_Data_Table_135[[#This Row],[Item ID]],Analysis_Table,12,FALSE)","v":{"$error":"#N/A"}},{"$f":"VLOOKUP(Table_Data_Table_135[[#This Row],[Item ID]],Analysis_Table,13,FALSE)","v":{"$error":"#N/A"}},{"$f":"VLOOKUP(Table_Data_Table_135[[#This Row],[Item ID]],Analysis_Table,14,FALSE)","v":{"$error":"#N/A"}},{"$f":"VLOOKUP(Table_Data_Table_135[[#This Row],[Item ID]],Analysis_Table,15,FALSE)","v":{"$error":"#N/A"}},{"$f":"VLOOKUP(Table_Data_Table_135[[#This Row],[Item ID]],Analysis_Table,16,FALSE)","v":{"$error":"#N/A"}},{"$f":"VLOOKUP(Table_Data_Table_135[[#This Row],[Item ID]],Analysis_Table,17,FALSE)","v":{"$error":"#N/A"}},{"$f":"VLOOKUP(Table_Data_Table_135[[#This Row],[Item ID]],Analysis_Table,18,FALSE)","v":{"$error":"#N/A"}},{"$f":"VLOOKUP(Table_Data_Table_135[[#This Row],[Item ID]],Analysis_Table,19,FALSE)","v":{"$error":"#N/A"}},null,null,1]
["",null,{"$f":"VLOOKUP(Table_Data_Table_135[[#This Row],[Item ID]],Analysis_Table,20,FALSE)","v":{"$error":"#N/A"}},null,null,null,null,null,null,null,0,null,null,null,{"$f":"VLOOKUP(Table_Data_Table_135[[#This Row],[Item ID]],Analysis_Table,8,FALSE)","v":{"$error":"#N/A"}},{"$f":"VLOOKUP(Table_Data_Table_135[[#This Row],[Item ID]],Analysis_Table,9,FALSE)","v":{"$error":"#N/A"}},{"$f":"VLOOKUP(Table_Data_Table_135[[#This Row],[Item ID]],Analysis_Table,10,FALSE)","v":{"$error":"#N/A"}},{"$f":"VLOOKUP(Table_Data_Table_135[[#This Row],[Item ID]],Analysis_Table,11,FALSE)","v":{"$error":"#N/A"}},{"$f":"VLOOKUP(Table_Data_Table_135[[#This Row],[Item ID]],Analysis_Table,12,FALSE)","v":{"$error":"#N/A"}},{"$f":"VLOOKUP(Table_Data_Table_135[[#This Row],[Item ID]],Analysis_Table,13,FALSE)","v":{"$error":"#N/A"}},{"$f":"VLOOKUP(Table_Data_Table_135[[#This Row],[Item ID]],Analysis_Table,14,FALSE)","v":{"$error":"#N/A"}},{"$f":"VLOOKUP(Table_Data_Table_135[[#This Row],[Item ID]],Analysis_Table,15,FALSE)","v":{"$error":"#N/A"}},{"$f":"VLOOKUP(Table_Data_Table_135[[#This Row],[Item ID]],Analysis_Table,16,FALSE)","v":{"$error":"#N/A"}},{"$f":"VLOOKUP(Table_Data_Table_135[[#This Row],[Item ID]],Analysis_Table,17,FALSE)","v":{"$error":"#N/A"}},{"$f":"VLOOKUP(Table_Data_Table_135[[#This Row],[Item ID]],Analysis_Table,18,FALSE)","v":{"$error":"#N/A"}},{"$f":"VLOOKUP(Table_Data_Table_135[[#This Row],[Item ID]],Analysis_Table,19,FALSE)","v":{"$error":"#N/A"}},null,null,1]
["",null,{"$f":"VLOOKUP(Table_Data_Table_135[[#This Row],[Item ID]],Analysis_Table,20,FALSE)","v":{"$error":"#N/A"}},null,null,null,null,null,null,null,0,null,null,null,{"$f":"VLOOKUP(Table_Data_Table_135[[#This Row],[Item ID]],Analysis_Table,8,FALSE)","v":{"$error":"#N/A"}},{"$f":"VLOOKUP(Table_Data_Table_135[[#This Row],[Item ID]],Analysis_Table,9,FALSE)","v":{"$error":"#N/A"}},{"$f":"VLOOKUP(Table_Data_Table_135[[#This Row],[Item ID]],Analysis_Table,10,FALSE)","v":{"$error":"#N/A"}},{"$f":"VLOOKUP(Table_Data_Table_135[[#This Row],[Item ID]],Analysis_Table,11,FALSE)","v":{"$error":"#N/A"}},{"$f":"VLOOKUP(Table_Data_Table_135[[#This Row],[Item ID]],Analysis_Table,12,FALSE)","v":{"$error":"#N/A"}},{"$f":"VLOOKUP(Table_Data_Table_135[[#This Row],[Item ID]],Analysis_Table,13,FALSE)","v":{"$error":"#N/A"}},{"$f":"VLOOKUP(Table_Data_Table_135[[#This Row],[Item ID]],Analysis_Table,14,FALSE)","v":{"$error":"#N/A"}},{"$f":"VLOOKUP(Table_Data_Table_135[[#This Row],[Item ID]],Analysis_Table,15,FALSE)","v":{"$error":"#N/A"}},{"$f":"VLOOKUP(Table_Data_Table_135[[#This Row],[Item ID]],Analysis_Table,16,FALSE)","v":{"$error":"#N/A"}},{"$f":"VLOOKUP(Table_Data_Table_135[[#This Row],[Item ID]],Analysis_Table,17,FALSE)","v":{"$error":"#N/A"}},{"$f":"VLOOKUP(Table_Data_Table_135[[#This Row],[Item ID]],Analysis_Table,18,FALSE)","v":{"$error":"#N/A"}},{"$f":"VLOOKUP(Table_Data_Table_135[[#This Row],[Item ID]],Analysis_Table,19,FALSE)","v":{"$error":"#N/A"}},null,null,1]
["",null,{"$f":"VLOOKUP(Table_Data_Table_135[[#This Row],[Item ID]],Analysis_Table,20,FALSE)","v":{"$error":"#N/A"}},null,null,null,null,null,null,null,0,null,null,null,{"$f":"VLOOKUP(Table_Data_Table_135[[#This Row],[Item ID]],Analysis_Table,8,FALSE)","v":{"$error":"#N/A"}},{"$f":"VLOOKUP(Table_Data_Table_135[[#This Row],[Item ID]],Analysis_Table,9,FALSE)","v":{"$error":"#N/A"}},{"$f":"VLOOKUP(Table_Data_Table_135[[#This Row],[Item ID]],Analysis_Table,10,FALSE)","v":{"$error":"#N/A"}},{"$f":"VLOOKUP(Table_Data_Table_135[[#This Row],[Item ID]],Analysis_Table,11,FALSE)","v":{"$error":"#N/A"}},{"$f":"VLOOKUP(Table_Data_Table_135[[#This Row],[Item ID]],Analysis_Table,12,FALSE)","v":{"$error":"#N/A"}},{"$f":"VLOOKUP(Table_Data_Table_135[[#This Row],[Item ID]],Analysis_Table,13,FALSE)","v":{"$error":"#N/A"}},{"$f":"VLOOKUP(Table_Data_Table_135[[#This Row],[Item ID]],Analysis_Table,14,FALSE)","v":{"$error":"#N/A"}},{"$f":"VLOOKUP(Table_Data_Table_135[[#This Row],[Item ID]],Analysis_Table,15,FALSE)","v":{"$error":"#N/A"}},{"$f":"VLOOKUP(Table_Data_Table_135[[#This Row],[Item ID]],Analysis_Table,16,FALSE)","v":{"$error":"#N/A"}},{"$f":"VLOOKUP(Table_Data_Table_135[[#This Row],[Item ID]],Analysis_Table,17,FALSE)","v":{"$error":"#N/A"}},{"$f":"VLOOKUP(Table_Data_Table_135[[#This Row],[Item ID]],Analysis_Table,18,FALSE)","v":{"$error":"#N/A"}},{"$f":"VLOOKUP(Table_Data_Table_135[[#This Row],[Item ID]],Analysis_Table,19,FALSE)","v":{"$error":"#N/A"}},null,null,1]
["",null,{"$f":"VLOOKUP(Table_Data_Table_135[[#This Row],[Item ID]],Analysis_Table,20,FALSE)","v":{"$error":"#N/A"}},null,null,null,null,null,null,null,0,null,null,null,{"$f":"VLOOKUP(Table_Data_Table_135[[#This Row],[Item ID]],Analysis_Table,8,FALSE)","v":{"$error":"#N/A"}},{"$f":"VLOOKUP(Table_Data_Table_135[[#This Row],[Item ID]],Analysis_Table,9,FALSE)","v":{"$error":"#N/A"}},{"$f":"VLOOKUP(Table_Data_Table_135[[#This Row],[Item ID]],Analysis_Table,10,FALSE)","v":{"$error":"#N/A"}},{"$f":"VLOOKUP(Table_Data_Table_135[[#This Row],[Item ID]],Analysis_Table,11,FALSE)","v":{"$error":"#N/A"}},{"$f":"VLOOKUP(Table_Data_Table_135[[#This Row],[Item ID]],Analysis_Table,12,FALSE)","v":{"$error":"#N/A"}},{"$f":"VLOOKUP(Table_Data_Table_135[[#This Row],[Item ID]],Analysis_Table,13,FALSE)","v":{"$error":"#N/A"}},{"$f":"VLOOKUP(Table_Data_Table_135[[#This Row],[Item ID]],Analysis_Table,14,FALSE)","v":{"$error":"#N/A"}},{"$f":"VLOOKUP(Table_Data_Table_135[[#This Row],[Item ID]],Analysis_Table,15,FALSE)","v":{"$error":"#N/A"}},{"$f":"VLOOKUP(Table_Data_Table_135[[#This Row],[Item ID]],Analysis_Table,16,FALSE)","v":{"$error":"#N/A"}},{"$f":"VLOOKUP(Table_Data_Table_135[[#This Row],[Item ID]],Analysis_Table,17,FALSE)","v":{"$error":"#N/A"}},{"$f":"VLOOKUP(Table_Data_Table_135[[#This Row],[Item ID]],Analysis_Table,18,FALSE)","v":{"$error":"#N/A"}},{"$f":"VLOOKUP(Table_Data_Table_135[[#This Row],[Item ID]],Analysis_Table,19,FALSE)","v":{"$error":"#N/A"}},null,null,1]
["",null,{"$f":"VLOOKUP(Table_Data_Table_135[[#This Row],[Item ID]],Analysis_Table,20,FALSE)","v":{"$error":"#N/A"}},null,null,null,null,null,null,null,0,null,null,null,{"$f":"VLOOKUP(Table_Data_Table_135[[#This Row],[Item ID]],Analysis_Table,8,FALSE)","v":{"$error":"#N/A"}},{"$f":"VLOOKUP(Table_Data_Table_135[[#This Row],[Item ID]],Analysis_Table,9,FALSE)","v":{"$error":"#N/A"}},{"$f":"VLOOKUP(Table_Data_Table_135[[#This Row],[Item ID]],Analysis_Table,10,FALSE)","v":{"$error":"#N/A"}},{"$f":"VLOOKUP(Table_Data_Table_135[[#This Row],[Item ID]],Analysis_Table,11,FALSE)","v":{"$error":"#N/A"}},{"$f":"VLOOKUP(Table_Data_Table_135[[#This Row],[Item ID]],Analysis_Table,12,FALSE)","v":{"$error":"#N/A"}},{"$f":"VLOOKUP(Table_Data_Table_135[[#This Row],[Item ID]],Analysis_Table,13,FALSE)","v":{"$error":"#N/A"}},{"$f":"VLOOKUP(Table_Data_Table_135[[#This Row],[Item ID]],Analysis_Table,14,FALSE)","v":{"$error":"#N/A"}},{"$f":"VLOOKUP(Table_Data_Table_135[[#This Row],[Item ID]],Analysis_Table,15,FALSE)","v":{"$error":"#N/A"}},{"$f":"VLOOKUP(Table_Data_Table_135[[#This Row],[Item ID]],Analysis_Table,16,FALSE)","v":{"$error":"#N/A"}},{"$f":"VLOOKUP(Table_Data_Table_135[[#This Row],[Item ID]],Analysis_Table,17,FALSE)","v":{"$error":"#N/A"}},{"$f":"VLOOKUP(Table_Data_Table_135[[#This Row],[Item ID]],Analysis_Table,18,FALSE)","v":{"$error":"#N/A"}},{"$f":"VLOOKUP(Table_Data_Table_135[[#This Row],[Item ID]],Analysis_Table,19,FALSE)","v":{"$error":"#N/A"}},null,null,1]
["",null,{"$f":"VLOOKUP(Table_Data_Table_135[[#This Row],[Item ID]],Analysis_Table,20,FALSE)","v":{"$error":"#N/A"}},null,null,null,null,null,null,null,0,null,null,null,{"$f":"VLOOKUP(Table_Data_Table_135[[#This Row],[Item ID]],Analysis_Table,8,FALSE)","v":{"$error":"#N/A"}},{"$f":"VLOOKUP(Table_Data_Table_135[[#This Row],[Item ID]],Analysis_Table,9,FALSE)","v":{"$error":"#N/A"}},{"$f":"VLOOKUP(Table_Data_Table_135[[#This Row],[Item ID]],Analysis_Table,10,FALSE)","v":{"$error":"#N/A"}},{"$f":"VLOOKUP(Table_Data_Table_135[[#This Row],[Item ID]],Analysis_Table,11,FALSE)","v":{"$error":"#N/A"}},{"$f":"VLOOKUP(Table_Data_Table_135[[#This Row],[Item ID]],Analysis_Table,12,FALSE)","v":{"$error":"#N/A"}},{"$f":"VLOOKUP(Table_Data_Table_135[[#This Row],[Item ID]],Analysis_Table,13,FALSE)","v":{"$error":"#N/A"}},{"$f":"VLOOKUP(Table_Data_Table_135[[#This Row],[Item ID]],Analysis_Table,14,FALSE)","v":{"$error":"#N/A"}},{"$f":"VLOOKUP(Table_Data_Table_135[[#This Row],[Item ID]],Analysis_Table,15,FALSE)","v":{"$error":"#N/A"}},{"$f":"VLOOKUP(Table_Data_Table_135[[#This Row],[Item ID]],Analysis_Table,16,FALSE)","v":{"$error":"#N/A"}},{"$f":"VLOOKUP(Table_Data_Table_135[[#This Row],[Item ID]],Analysis_Table,17,FALSE)","v":{"$error":"#N/A"}},{"$f":"VLOOKUP(Table_Data_Table_135[[#This Row],[Item ID]],Analysis_Table,18,FALSE)","v":{"$error":"#N/A"}},{"$f":"VLOOKUP(Table_Data_Table_135[[#This Row],[Item ID]],Analysis_Table,19,FALSE)","v":{"$error":"#N/A"}},null,null,1]
["",null,{"$f":"VLOOKUP(Table_Data_Table_135[[#This Row],[Item ID]],Analysis_Table,20,FALSE)","v":{"$error":"#N/A"}},null,null,null,null,null,null,null,0,null,null,null,{"$f":"VLOOKUP(Table_Data_Table_135[[#This Row],[Item ID]],Analysis_Table,8,FALSE)","v":{"$error":"#N/A"}},{"$f":"VLOOKUP(Table_Data_Table_135[[#This Row],[Item ID]],Analysis_Table,9,FALSE)","v":{"$error":"#N/A"}},{"$f":"VLOOKUP(Table_Data_Table_135[[#This Row],[Item ID]],Analysis_Table,10,FALSE)","v":{"$error":"#N/A"}},{"$f":"VLOOKUP(Table_Data_Table_135[[#This Row],[Item ID]],Analysis_Table,11,FALSE)","v":{"$error":"#N/A"}},{"$f":"VLOOKUP(Table_Data_Table_135[[#This Row],[Item ID]],Analysis_Table,12,FALSE)","v":{"$error":"#N/A"}},{"$f":"VLOOKUP(Table_Data_Table_135[[#This Row],[Item ID]],Analysis_Table,13,FALSE)","v":{"$error":"#N/A"}},{"$f":"VLOOKUP(Table_Data_Table_135[[#This Row],[Item ID]],Analysis_Table,14,FALSE)","v":{"$error":"#N/A"}},{"$f":"VLOOKUP(Table_Data_Table_135[[#This Row],[Item ID]],Analysis_Table,15,FALSE)","v":{"$error":"#N/A"}},{"$f":"VLOOKUP(Table_Data_Table_135[[#This Row],[Item ID]],Analysis_Table,16,FALSE)","v":{"$error":"#N/A"}},{"$f":"VLOOKUP(Table_Data_Table_135[[#This Row],[Item ID]],Analysis_Table,17,FALSE)","v":{"$error":"#N/A"}},{"$f":"VLOOKUP(Table_Data_Table_135[[#This Row],[Item ID]],Analysis_Table,18,FALSE)","v":{"$error":"#N/A"}},{"$f":"VLOOKUP(Table_Data_Table_135[[#This Row],[Item ID]],Analysis_Table,19,FALSE)","v":{"$error":"#N/A"}},null,null,1]
["",null,{"$f":"VLOOKUP(Table_Data_Table_135[[#This Row],[Item ID]],Analysis_Table,20,FALSE)","v":{"$error":"#N/A"}},null,null,null,null,null,null,null,0,null,null,null,{"$f":"VLOOKUP(Table_Data_Table_135[[#This Row],[Item ID]],Analysis_Table,8,FALSE)","v":{"$error":"#N/A"}},{"$f":"VLOOKUP(Table_Data_Table_135[[#This Row],[Item ID]],Analysis_Table,9,FALSE)","v":{"$error":"#N/A"}},{"$f":"VLOOKUP(Table_Data_Table_135[[#This Row],[Item ID]],Analysis_Table,10,FALSE)","v":{"$error":"#N/A"}},{"$f":"VLOOKUP(Table_Data_Table_135[[#This Row],[Item ID]],Analysis_Table,11,FALSE)","v":{"$error":"#N/A"}},{"$f":"VLOOKUP(Table_Data_Table_135[[#This Row],[Item ID]],Analysis_Table,12,FALSE)","v":{"$error":"#N/A"}},{"$f":"VLOOKUP(Table_Data_Table_135[[#This Row],[Item ID]],Analysis_Table,13,FALSE)","v":{"$error":"#N/A"}},{"$f":"VLOOKUP(Table_Data_Table_135[[#This Row],[Item ID]],Analysis_Table,14,FALSE)","v":{"$error":"#N/A"}},{"$f":"VLOOKUP(Table_Data_Table_135[[#This Row],[Item ID]],Analysis_Table,15,FALSE)","v":{"$error":"#N/A"}},{"$f":"VLOOKUP(Table_Data_Table_135[[#This Row],[Item ID]],Analysis_Table,16,FALSE)","v":{"$error":"#N/A"}},{"$f":"VLOOKUP(Table_Data_Table_135[[#This Row],[Item ID]],Analysis_Table,17,FALSE)","v":{"$error":"#N/A"}},{"$f":"VLOOKUP(Table_Data_Table_135[[#This Row],[Item ID]],Analysis_Table,18,FALSE)","v":{"$error":"#N/A"}},{"$f":"VLOOKUP(Table_Data_Table_135[[#This Row],[Item ID]],Analysis_Table,19,FALSE)","v":{"$error":"#N/A"}},null,null,1]
["",null,{"$f":"VLOOKUP(Table_Data_Table_135[[#This Row],[Item ID]],Analysis_Table,20,FALSE)","v":{"$error":"#N/A"}},null,null,null,null,null,null,null,0,null,null,null,{"$f":"VLOOKUP(Table_Data_Table_135[[#This Row],[Item ID]],Analysis_Table,8,FALSE)","v":{"$error":"#N/A"}},{"$f":"VLOOKUP(Table_Data_Table_135[[#This Row],[Item ID]],Analysis_Table,9,FALSE)","v":{"$error":"#N/A"}},{"$f":"VLOOKUP(Table_Data_Table_135[[#This Row],[Item ID]],Analysis_Table,10,FALSE)","v":{"$error":"#N/A"}},{"$f":"VLOOKUP(Table_Data_Table_135[[#This Row],[Item ID]],Analysis_Table,11,FALSE)","v":{"$error":"#N/A"}},{"$f":"VLOOKUP(Table_Data_Table_135[[#This Row],[Item ID]],Analysis_Table,12,FALSE)","v":{"$error":"#N/A"}},{"$f":"VLOOKUP(Table_Data_Table_135[[#This Row],[Item ID]],Analysis_Table,13,FALSE)","v":{"$error":"#N/A"}},{"$f":"VLOOKUP(Table_Data_Table_135[[#This Row],[Item ID]],Analysis_Table,14,FALSE)","v":{"$error":"#N/A"}},{"$f":"VLOOKUP(Table_Data_Table_135[[#This Row],[Item ID]],Analysis_Table,15,FALSE)","v":{"$error":"#N/A"}},{"$f":"VLOOKUP(Table_Data_Table_135[[#This Row],[Item ID]],Analysis_Table,16,FALSE)","v":{"$error":"#N/A"}},{"$f":"VLOOKUP(Table_Data_Table_135[[#This Row],[Item ID]],Analysis_Table,17,FALSE)","v":{"$error":"#N/A"}},{"$f":"VLOOKUP(Table_Data_Table_135[[#This Row],[Item ID]],Analysis_Table,18,FALSE)","v":{"$error":"#N/A"}},{"$f":"VLOOKUP(Table_Data_Table_135[[#This Row],[Item ID]],Analysis_Table,19,FALSE)","v":{"$error":"#N/A"}},null,null,1]
["",null,{"$f":"VLOOKUP(Table_Data_Table_135[[#This Row],[Item ID]],Analysis_Table,20,FALSE)","v":{"$error":"#N/A"}},null,null,null,null,null,null,null,0,null,null,null,{"$f":"VLOOKUP(Table_Data_Table_135[[#This Row],[Item ID]],Analysis_Table,8,FALSE)","v":{"$error":"#N/A"}},{"$f":"VLOOKUP(Table_Data_Table_135[[#This Row],[Item ID]],Analysis_Table,9,FALSE)","v":{"$error":"#N/A"}},{"$f":"VLOOKUP(Table_Data_Table_135[[#This Row],[Item ID]],Analysis_Table,10,FALSE)","v":{"$error":"#N/A"}},{"$f":"VLOOKUP(Table_Data_Table_135[[#This Row],[Item ID]],Analysis_Table,11,FALSE)","v":{"$error":"#N/A"}},{"$f":"VLOOKUP(Table_Data_Table_135[[#This Row],[Item ID]],Analysis_Table,12,FALSE)","v":{"$error":"#N/A"}},{"$f":"VLOOKUP(Table_Data_Table_135[[#This Row],[Item ID]],Analysis_Table,13,FALSE)","v":{"$error":"#N/A"}},{"$f":"VLOOKUP(Table_Data_Table_135[[#This Row],[Item ID]],Analysis_Table,14,FALSE)","v":{"$error":"#N/A"}},{"$f":"VLOOKUP(Table_Data_Table_135[[#This Row],[Item ID]],Analysis_Table,15,FALSE)","v":{"$error":"#N/A"}},{"$f":"VLOOKUP(Table_Data_Table_135[[#This Row],[Item ID]],Analysis_Table,16,FALSE)","v":{"$error":"#N/A"}},{"$f":"VLOOKUP(Table_Data_Table_135[[#This Row],[Item ID]],Analysis_Table,17,FALSE)","v":{"$error":"#N/A"}},{"$f":"VLOOKUP(Table_Data_Table_135[[#This Row],[Item ID]],Analysis_Table,18,FALSE)","v":{"$error":"#N/A"}},{"$f":"VLOOKUP(Table_Data_Table_135[[#This Row],[Item ID]],Analysis_Table,19,FALSE)","v":{"$error":"#N/A"}},null,null,1]
["",null,{"$f":"VLOOKUP(Table_Data_Table_135[[#This Row],[Item ID]],Analysis_Table,20,FALSE)","v":{"$error":"#N/A"}},null,null,null,null,null,null,null,0,null,null,null,{"$f":"VLOOKUP(Table_Data_Table_135[[#This Row],[Item ID]],Analysis_Table,8,FALSE)","v":{"$error":"#N/A"}},{"$f":"VLOOKUP(Table_Data_Table_135[[#This Row],[Item ID]],Analysis_Table,9,FALSE)","v":{"$error":"#N/A"}},{"$f":"VLOOKUP(Table_Data_Table_135[[#This Row],[Item ID]],Analysis_Table,10,FALSE)","v":{"$error":"#N/A"}},{"$f":"VLOOKUP(Table_Data_Table_135[[#This Row],[Item ID]],Analysis_Table,11,FALSE)","v":{"$error":"#N/A"}},{"$f":"VLOOKUP(Table_Data_Table_135[[#This Row],[Item ID]],Analysis_Table,12,FALSE)","v":{"$error":"#N/A"}},{"$f":"VLOOKUP(Table_Data_Table_135[[#This Row],[Item ID]],Analysis_Table,13,FALSE)","v":{"$error":"#N/A"}},{"$f":"VLOOKUP(Table_Data_Table_135[[#This Row],[Item ID]],Analysis_Table,14,FALSE)","v":{"$error":"#N/A"}},{"$f":"VLOOKUP(Table_Data_Table_135[[#This Row],[Item ID]],Analysis_Table,15,FALSE)","v":{"$error":"#N/A"}},{"$f":"VLOOKUP(Table_Data_Table_135[[#This Row],[Item ID]],Analysis_Table,16,FALSE)","v":{"$error":"#N/A"}},{"$f":"VLOOKUP(Table_Data_Table_135[[#This Row],[Item ID]],Analysis_Table,17,FALSE)","v":{"$error":"#N/A"}},{"$f":"VLOOKUP(Table_Data_Table_135[[#This Row],[Item ID]],Analysis_Table,18,FALSE)","v":{"$error":"#N/A"}},{"$f":"VLOOKUP(Table_Data_Table_135[[#This Row],[Item ID]],Analysis_Table,19,FALSE)","v":{"$error":"#N/A"}},null,null,1]
["",null,{"$f":"VLOOKUP(Table_Data_Table_135[[#This Row],[Item ID]],Analysis_Table,20,FALSE)","v":{"$error":"#N/A"}},null,null,null,null,null,null,null,0,null,null,null,{"$f":"VLOOKUP(Table_Data_Table_135[[#This Row],[Item ID]],Analysis_Table,8,FALSE)","v":{"$error":"#N/A"}},{"$f":"VLOOKUP(Table_Data_Table_135[[#This Row],[Item ID]],Analysis_Table,9,FALSE)","v":{"$error":"#N/A"}},{"$f":"VLOOKUP(Table_Data_Table_135[[#This Row],[Item ID]],Analysis_Table,10,FALSE)","v":{"$error":"#N/A"}},{"$f":"VLOOKUP(Table_Data_Table_135[[#This Row],[Item ID]],Analysis_Table,11,FALSE)","v":{"$error":"#N/A"}},{"$f":"VLOOKUP(Table_Data_Table_135[[#This Row],[Item ID]],Analysis_Table,12,FALSE)","v":{"$error":"#N/A"}},{"$f":"VLOOKUP(Table_Data_Table_135[[#This Row],[Item ID]],Analysis_Table,13,FALSE)","v":{"$error":"#N/A"}},{"$f":"VLOOKUP(Table_Data_Table_135[[#This Row],[Item ID]],Analysis_Table,14,FALSE)","v":{"$error":"#N/A"}},{"$f":"VLOOKUP(Table_Data_Table_135[[#This Row],[Item ID]],Analysis_Table,15,FALSE)","v":{"$error":"#N/A"}},{"$f":"VLOOKUP(Table_Data_Table_135[[#This Row],[Item ID]],Analysis_Table,16,FALSE)","v":{"$error":"#N/A"}},{"$f":"VLOOKUP(Table_Data_Table_135[[#This Row],[Item ID]],Analysis_Table,17,FALSE)","v":{"$error":"#N/A"}},{"$f":"VLOOKUP(Table_Data_Table_135[[#This Row],[Item ID]],Analysis_Table,18,FALSE)","v":{"$error":"#N/A"}},{"$f":"VLOOKUP(Table_Data_Table_135[[#This Row],[Item ID]],Analysis_Table,19,FALSE)","v":{"$error":"#N/A"}},null,null,1]
["",null,{"$f":"VLOOKUP(Table_Data_Table_135[[#This Row],[Item ID]],Analysis_Table,20,FALSE)","v":{"$error":"#N/A"}},null,null,null,null,null,null,null,0,null,null,null,{"$f":"VLOOKUP(Table_Data_Table_135[[#This Row],[Item ID]],Analysis_Table,8,FALSE)","v":{"$error":"#N/A"}},{"$f":"VLOOKUP(Table_Data_Table_135[[#This Row],[Item ID]],Analysis_Table,9,FALSE)","v":{"$error":"#N/A"}},{"$f":"VLOOKUP(Table_Data_Table_135[[#This Row],[Item ID]],Analysis_Table,10,FALSE)","v":{"$error":"#N/A"}},{"$f":"VLOOKUP(Table_Data_Table_135[[#This Row],[Item ID]],Analysis_Table,11,FALSE)","v":{"$error":"#N/A"}},{"$f":"VLOOKUP(Table_Data_Table_135[[#This Row],[Item ID]],Analysis_Table,12,FALSE)","v":{"$error":"#N/A"}},{"$f":"VLOOKUP(Table_Data_Table_135[[#This Row],[Item ID]],Analysis_Table,13,FALSE)","v":{"$error":"#N/A"}},{"$f":"VLOOKUP(Table_Data_Table_135[[#This Row],[Item ID]],Analysis_Table,14,FALSE)","v":{"$error":"#N/A"}},{"$f":"VLOOKUP(Table_Data_Table_135[[#This Row],[Item ID]],Analysis_Table,15,FALSE)","v":{"$error":"#N/A"}},{"$f":"VLOOKUP(Table_Data_Table_135[[#This Row],[Item ID]],Analysis_Table,16,FALSE)","v":{"$error":"#N/A"}},{"$f":"VLOOKUP(Table_Data_Table_135[[#This Row],[Item ID]],Analysis_Table,17,FALSE)","v":{"$error":"#N/A"}},{"$f":"VLOOKUP(Table_Data_Table_135[[#This Row],[Item ID]],Analysis_Table,18,FALSE)","v":{"$error":"#N/A"}},{"$f":"VLOOKUP(Table_Data_Table_135[[#This Row],[Item ID]],Analysis_Table,19,FALSE)","v":{"$error":"#N/A"}},null,null,1]
["",null,{"$f":"VLOOKUP(Table_Data_Table_135[[#This Row],[Item ID]],Analysis_Table,20,FALSE)","v":{"$error":"#N/A"}},null,null,null,null,null,null,null,0,null,null,null,{"$f":"VLOOKUP(Table_Data_Table_135[[#This Row],[Item ID]],Analysis_Table,8,FALSE)","v":{"$error":"#N/A"}},{"$f":"VLOOKUP(Table_Data_Table_135[[#This Row],[Item ID]],Analysis_Table,9,FALSE)","v":{"$error":"#N/A"}},{"$f":"VLOOKUP(Table_Data_Table_135[[#This Row],[Item ID]],Analysis_Table,10,FALSE)","v":{"$error":"#N/A"}},{"$f":"VLOOKUP(Table_Data_Table_135[[#This Row],[Item ID]],Analysis_Table,11,FALSE)","v":{"$error":"#N/A"}},{"$f":"VLOOKUP(Table_Data_Table_135[[#This Row],[Item ID]],Analysis_Table,12,FALSE)","v":{"$error":"#N/A"}},{"$f":"VLOOKUP(Table_Data_Table_135[[#This Row],[Item ID]],Analysis_Table,13,FALSE)","v":{"$error":"#N/A"}},{"$f":"VLOOKUP(Table_Data_Table_135[[#This Row],[Item ID]],Analysis_Table,14,FALSE)","v":{"$error":"#N/A"}},{"$f":"VLOOKUP(Table_Data_Table_135[[#This Row],[Item ID]],Analysis_Table,15,FALSE)","v":{"$error":"#N/A"}},{"$f":"VLOOKUP(Table_Data_Table_135[[#This Row],[Item ID]],Analysis_Table,16,FALSE)","v":{"$error":"#N/A"}},{"$f":"VLOOKUP(Table_Data_Table_135[[#This Row],[Item ID]],Analysis_Table,17,FALSE)","v":{"$error":"#N/A"}},{"$f":"VLOOKUP(Table_Data_Table_135[[#This Row],[Item ID]],Analysis_Table,18,FALSE)","v":{"$error":"#N/A"}},{"$f":"VLOOKUP(Table_Data_Table_135[[#This Row],[Item ID]],Analysis_Table,19,FALSE)","v":{"$error":"#N/A"}},null,null,1]
["",null,{"$f":"VLOOKUP(Table_Data_Table_135[[#This Row],[Item ID]],Analysis_Table,20,FALSE)","v":{"$error":"#N/A"}},null,null,null,null,null,null,null,0,null,null,null,{"$f":"VLOOKUP(Table_Data_Table_135[[#This Row],[Item ID]],Analysis_Table,8,FALSE)","v":{"$error":"#N/A"}},{"$f":"VLOOKUP(Table_Data_Table_135[[#This Row],[Item ID]],Analysis_Table,9,FALSE)","v":{"$error":"#N/A"}},{"$f":"VLOOKUP(Table_Data_Table_135[[#This Row],[Item ID]],Analysis_Table,10,FALSE)","v":{"$error":"#N/A"}},{"$f":"VLOOKUP(Table_Data_Table_135[[#This Row],[Item ID]],Analysis_Table,11,FALSE)","v":{"$error":"#N/A"}},{"$f":"VLOOKUP(Table_Data_Table_135[[#This Row],[Item ID]],Analysis_Table,12,FALSE)","v":{"$error":"#N/A"}},{"$f":"VLOOKUP(Table_Data_Table_135[[#This Row],[Item ID]],Analysis_Table,13,FALSE)","v":{"$error":"#N/A"}},{"$f":"VLOOKUP(Table_Data_Table_135[[#This Row],[Item ID]],Analysis_Table,14,FALSE)","v":{"$error":"#N/A"}},{"$f":"VLOOKUP(Table_Data_Table_135[[#This Row],[Item ID]],Analysis_Table,15,FALSE)","v":{"$error":"#N/A"}},{"$f":"VLOOKUP(Table_Data_Table_135[[#This Row],[Item ID]],Analysis_Table,16,FALSE)","v":{"$error":"#N/A"}},{"$f":"VLOOKUP(Table_Data_Table_135[[#This Row],[Item ID]],Analysis_Table,17,FALSE)","v":{"$error":"#N/A"}},{"$f":"VLOOKUP(Table_Data_Table_135[[#This Row],[Item ID]],Analysis_Table,18,FALSE)","v":{"$error":"#N/A"}},{"$f":"VLOOKUP(Table_Data_Table_135[[#This Row],[Item ID]],Analysis_Table,19,FALSE)","v":{"$error":"#N/A"}},null,null,1]
["",null,{"$f":"VLOOKUP(Table_Data_Table_135[[#This Row],[Item ID]],Analysis_Table,20,FALSE)","v":{"$error":"#N/A"}},null,null,null,null,null,null,null,0,null,null,null,{"$f":"VLOOKUP(Table_Data_Table_135[[#This Row],[Item ID]],Analysis_Table,8,FALSE)","v":{"$error":"#N/A"}},{"$f":"VLOOKUP(Table_Data_Table_135[[#This Row],[Item ID]],Analysis_Table,9,FALSE)","v":{"$error":"#N/A"}},{"$f":"VLOOKUP(Table_Data_Table_135[[#This Row],[Item ID]],Analysis_Table,10,FALSE)","v":{"$error":"#N/A"}},{"$f":"VLOOKUP(Table_Data_Table_135[[#This Row],[Item ID]],Analysis_Table,11,FALSE)","v":{"$error":"#N/A"}},{"$f":"VLOOKUP(Table_Data_Table_135[[#This Row],[Item ID]],Analysis_Table,12,FALSE)","v":{"$error":"#N/A"}},{"$f":"VLOOKUP(Table_Data_Table_135[[#This Row],[Item ID]],Analysis_Table,13,FALSE)","v":{"$error":"#N/A"}},{"$f":"VLOOKUP(Table_Data_Table_135[[#This Row],[Item ID]],Analysis_Table,14,FALSE)","v":{"$error":"#N/A"}},{"$f":"VLOOKUP(Table_Data_Table_135[[#This Row],[Item ID]],Analysis_Table,15,FALSE)","v":{"$error":"#N/A"}},{"$f":"VLOOKUP(Table_Data_Table_135[[#This Row],[Item ID]],Analysis_Table,16,FALSE)","v":{"$error":"#N/A"}},{"$f":"VLOOKUP(Table_Data_Table_135[[#This Row],[Item ID]],Analysis_Table,17,FALSE)","v":{"$error":"#N/A"}},{"$f":"VLOOKUP(Table_Data_Table_135[[#This Row],[Item ID]],Analysis_Table,18,FALSE)","v":{"$error":"#N/A"}},{"$f":"VLOOKUP(Table_Data_Table_135[[#This Row],[Item ID]],Analysis_Table,19,FALSE)","v":{"$error":"#N/A"}},null,null,1]
["",null,{"$f":"VLOOKUP(Table_Data_Table_135[[#This Row],[Item ID]],Analysis_Table,20,FALSE)","v":{"$error":"#N/A"}},null,null,null,null,null,null,null,0,null,null,null,{"$f":"VLOOKUP(Table_Data_Table_135[[#This Row],[Item ID]],Analysis_Table,8,FALSE)","v":{"$error":"#N/A"}},{"$f":"VLOOKUP(Table_Data_Table_135[[#This Row],[Item ID]],Analysis_Table,9,FALSE)","v":{"$error":"#N/A"}},{"$f":"VLOOKUP(Table_Data_Table_135[[#This Row],[Item ID]],Analysis_Table,10,FALSE)","v":{"$error":"#N/A"}},{"$f":"VLOOKUP(Table_Data_Table_135[[#This Row],[Item ID]],Analysis_Table,11,FALSE)","v":{"$error":"#N/A"}},{"$f":"VLOOKUP(Table_Data_Table_135[[#This Row],[Item ID]],Analysis_Table,12,FALSE)","v":{"$error":"#N/A"}},{"$f":"VLOOKUP(Table_Data_Table_135[[#This Row],[Item ID]],Analysis_Table,13,FALSE)","v":{"$error":"#N/A"}},{"$f":"VLOOKUP(Table_Data_Table_135[[#This Row],[Item ID]],Analysis_Table,14,FALSE)","v":{"$error":"#N/A"}},{"$f":"VLOOKUP(Table_Data_Table_135[[#This Row],[Item ID]],Analysis_Table,15,FALSE)","v":{"$error":"#N/A"}},{"$f":"VLOOKUP(Table_Data_Table_135[[#This Row],[Item ID]],Analysis_Table,16,FALSE)","v":{"$error":"#N/A"}},{"$f":"VLOOKUP(Table_Data_Table_135[[#This Row],[Item ID]],Analysis_Table,17,FALSE)","v":{"$error":"#N/A"}},{"$f":"VLOOKUP(Table_Data_Table_135[[#This Row],[Item ID]],Analysis_Table,18,FALSE)","v":{"$error":"#N/A"}},{"$f":"VLOOKUP(Table_Data_Table_135[[#This Row],[Item ID]],Analysis_Table,19,FALSE)","v":{"$error":"#N/A"}},null,null,1]
["",null,{"$f":"VLOOKUP(Table_Data_Table_135[[#This Row],[Item ID]],Analysis_Table,20,FALSE)","v":{"$error":"#N/A"}},null,null,null,null,null,null,null,0,null,null,null,{"$f":"VLOOKUP(Table_Data_Table_135[[#This Row],[Item ID]],Analysis_Table,8,FALSE)","v":{"$error":"#N/A"}},{"$f":"VLOOKUP(Table_Data_Table_135[[#This Row],[Item ID]],Analysis_Table,9,FALSE)","v":{"$error":"#N/A"}},{"$f":"VLOOKUP(Table_Data_Table_135[[#This Row],[Item ID]],Analysis_Table,10,FALSE)","v":{"$error":"#N/A"}},{"$f":"VLOOKUP(Table_Data_Table_135[[#This Row],[Item ID]],Analysis_Table,11,FALSE)","v":{"$error":"#N/A"}},{"$f":"VLOOKUP(Table_Data_Table_135[[#This Row],[Item ID]],Analysis_Table,12,FALSE)","v":{"$error":"#N/A"}},{"$f":"VLOOKUP(Table_Data_Table_135[[#This Row],[Item ID]],Analysis_Table,13,FALSE)","v":{"$error":"#N/A"}},{"$f":"VLOOKUP(Table_Data_Table_135[[#This Row],[Item ID]],Analysis_Table,14,FALSE)","v":{"$error":"#N/A"}},{"$f":"VLOOKUP(Table_Data_Table_135[[#This Row],[Item ID]],Analysis_Table,15,FALSE)","v":{"$error":"#N/A"}},{"$f":"VLOOKUP(Table_Data_Table_135[[#This Row],[Item ID]],Analysis_Table,16,FALSE)","v":{"$error":"#N/A"}},{"$f":"VLOOKUP(Table_Data_Table_135[[#This Row],[Item ID]],Analysis_Table,17,FALSE)","v":{"$error":"#N/A"}},{"$f":"VLOOKUP(Table_Data_Table_135[[#This Row],[Item ID]],Analysis_Table,18,FALSE)","v":{"$error":"#N/A"}},{"$f":"VLOOKUP(Table_Data_Table_135[[#This Row],[Item ID]],Analysis_Table,19,FALSE)","v":{"$error":"#N/A"}},null,null,1]
["",null,{"$f":"VLOOKUP(Table_Data_Table_135[[#This Row],[Item ID]],Analysis_Table,20,FALSE)","v":{"$error":"#N/A"}},null,null,null,null,null,null,null,0,null,null,null,{"$f":"VLOOKUP(Table_Data_Table_135[[#This Row],[Item ID]],Analysis_Table,8,FALSE)","v":{"$error":"#N/A"}},{"$f":"VLOOKUP(Table_Data_Table_135[[#This Row],[Item ID]],Analysis_Table,9,FALSE)","v":{"$error":"#N/A"}},{"$f":"VLOOKUP(Table_Data_Table_135[[#This Row],[Item ID]],Analysis_Table,10,FALSE)","v":{"$error":"#N/A"}},{"$f":"VLOOKUP(Table_Data_Table_135[[#This Row],[Item ID]],Analysis_Table,11,FALSE)","v":{"$error":"#N/A"}},{"$f":"VLOOKUP(Table_Data_Table_135[[#This Row],[Item ID]],Analysis_Table,12,FALSE)","v":{"$error":"#N/A"}},{"$f":"VLOOKUP(Table_Data_Table_135[[#This Row],[Item ID]],Analysis_Table,13,FALSE)","v":{"$error":"#N/A"}},{"$f":"VLOOKUP(Table_Data_Table_135[[#This Row],[Item ID]],Analysis_Table,14,FALSE)","v":{"$error":"#N/A"}},{"$f":"VLOOKUP(Table_Data_Table_135[[#This Row],[Item ID]],Analysis_Table,15,FALSE)","v":{"$error":"#N/A"}},{"$f":"VLOOKUP(Table_Data_Table_135[[#This Row],[Item ID]],Analysis_Table,16,FALSE)","v":{"$error":"#N/A"}},{"$f":"VLOOKUP(Table_Data_Table_135[[#This Row],[Item ID]],Analysis_Table,17,FALSE)","v":{"$error":"#N/A"}},{"$f":"VLOOKUP(Table_Data_Table_135[[#This Row],[Item ID]],Analysis_Table,18,FALSE)","v":{"$error":"#N/A"}},{"$f":"VLOOKUP(Table_Data_Table_135[[#This Row],[Item ID]],Analysis_Table,19,FALSE)","v":{"$error":"#N/A"}},null,null,1]
["",null,{"$f":"VLOOKUP(Table_Data_Table_135[[#This Row],[Item ID]],Analysis_Table,20,FALSE)","v":{"$error":"#N/A"}},null,null,null,null,null,null,null,0,null,null,null,{"$f":"VLOOKUP(Table_Data_Table_135[[#This Row],[Item ID]],Analysis_Table,8,FALSE)","v":{"$error":"#N/A"}},{"$f":"VLOOKUP(Table_Data_Table_135[[#This Row],[Item ID]],Analysis_Table,9,FALSE)","v":{"$error":"#N/A"}},{"$f":"VLOOKUP(Table_Data_Table_135[[#This Row],[Item ID]],Analysis_Table,10,FALSE)","v":{"$error":"#N/A"}},{"$f":"VLOOKUP(Table_Data_Table_135[[#This Row],[Item ID]],Analysis_Table,11,FALSE)","v":{"$error":"#N/A"}},{"$f":"VLOOKUP(Table_Data_Table_135[[#This Row],[Item ID]],Analysis_Table,12,FALSE)","v":{"$error":"#N/A"}},{"$f":"VLOOKUP(Table_Data_Table_135[[#This Row],[Item ID]],Analysis_Table,13,FALSE)","v":{"$error":"#N/A"}},{"$f":"VLOOKUP(Table_Data_Table_135[[#This Row],[Item ID]],Analysis_Table,14,FALSE)","v":{"$error":"#N/A"}},{"$f":"VLOOKUP(Table_Data_Table_135[[#This Row],[Item ID]],Analysis_Table,15,FALSE)","v":{"$error":"#N/A"}},{"$f":"VLOOKUP(Table_Data_Table_135[[#This Row],[Item ID]],Analysis_Table,16,FALSE)","v":{"$error":"#N/A"}},{"$f":"VLOOKUP(Table_Data_Table_135[[#This Row],[Item ID]],Analysis_Table,17,FALSE)","v":{"$error":"#N/A"}},{"$f":"VLOOKUP(Table_Data_Table_135[[#This Row],[Item ID]],Analysis_Table,18,FALSE)","v":{"$error":"#N/A"}},{"$f":"VLOOKUP(Table_Data_Table_135[[#This Row],[Item ID]],Analysis_Table,19,FALSE)","v":{"$error":"#N/A"}},null,null,1]
["",null,{"$f":"VLOOKUP(Table_Data_Table_135[[#This Row],[Item ID]],Analysis_Table,20,FALSE)","v":{"$error":"#N/A"}},null,null,null,null,null,null,null,0,null,null,null,{"$f":"VLOOKUP(Table_Data_Table_135[[#This Row],[Item ID]],Analysis_Table,8,FALSE)","v":{"$error":"#N/A"}},{"$f":"VLOOKUP(Table_Data_Table_135[[#This Row],[Item ID]],Analysis_Table,9,FALSE)","v":{"$error":"#N/A"}},{"$f":"VLOOKUP(Table_Data_Table_135[[#This Row],[Item ID]],Analysis_Table,10,FALSE)","v":{"$error":"#N/A"}},{"$f":"VLOOKUP(Table_Data_Table_135[[#This Row],[Item ID]],Analysis_Table,11,FALSE)","v":{"$error":"#N/A"}},{"$f":"VLOOKUP(Table_Data_Table_135[[#This Row],[Item ID]],Analysis_Table,12,FALSE)","v":{"$error":"#N/A"}},{"$f":"VLOOKUP(Table_Data_Table_135[[#This Row],[Item ID]],Analysis_Table,13,FALSE)","v":{"$error":"#N/A"}},{"$f":"VLOOKUP(Table_Data_Table_135[[#This Row],[Item ID]],Analysis_Table,14,FALSE)","v":{"$error":"#N/A"}},{"$f":"VLOOKUP(Table_Data_Table_135[[#This Row],[Item ID]],Analysis_Table,15,FALSE)","v":{"$error":"#N/A"}},{"$f":"VLOOKUP(Table_Data_Table_135[[#This Row],[Item ID]],Analysis_Table,16,FALSE)","v":{"$error":"#N/A"}},{"$f":"VLOOKUP(Table_Data_Table_135[[#This Row],[Item ID]],Analysis_Table,17,FALSE)","v":{"$error":"#N/A"}},{"$f":"VLOOKUP(Table_Data_Table_135[[#This Row],[Item ID]],Analysis_Table,18,FALSE)","v":{"$error":"#N/A"}},{"$f":"VLOOKUP(Table_Data_Table_135[[#This Row],[Item ID]],Analysis_Table,19,FALSE)","v":{"$error":"#N/A"}},null,null,1]
["",null,{"$f":"VLOOKUP(Table_Data_Table_135[[#This Row],[Item ID]],Analysis_Table,20,FALSE)","v":{"$error":"#N/A"}},null,null,null,null,null,null,null,0,null,null,null,{"$f":"VLOOKUP(Table_Data_Table_135[[#This Row],[Item ID]],Analysis_Table,8,FALSE)","v":{"$error":"#N/A"}},{"$f":"VLOOKUP(Table_Data_Table_135[[#This Row],[Item ID]],Analysis_Table,9,FALSE)","v":{"$error":"#N/A"}},{"$f":"VLOOKUP(Table_Data_Table_135[[#This Row],[Item ID]],Analysis_Table,10,FALSE)","v":{"$error":"#N/A"}},{"$f":"VLOOKUP(Table_Data_Table_135[[#This Row],[Item ID]],Analysis_Table,11,FALSE)","v":{"$error":"#N/A"}},{"$f":"VLOOKUP(Table_Data_Table_135[[#This Row],[Item ID]],Analysis_Table,12,FALSE)","v":{"$error":"#N/A"}},{"$f":"VLOOKUP(Table_Data_Table_135[[#This Row],[Item ID]],Analysis_Table,13,FALSE)","v":{"$error":"#N/A"}},{"$f":"VLOOKUP(Table_Data_Table_135[[#This Row],[Item ID]],Analysis_Table,14,FALSE)","v":{"$error":"#N/A"}},{"$f":"VLOOKUP(Table_Data_Table_135[[#This Row],[Item ID]],Analysis_Table,15,FALSE)","v":{"$error":"#N/A"}},{"$f":"VLOOKUP(Table_Data_Table_135[[#This Row],[Item ID]],Analysis_Table,16,FALSE)","v":{"$error":"#N/A"}},{"$f":"VLOOKUP(Table_Data_Table_135[[#This Row],[Item ID]],Analysis_Table,17,FALSE)","v":{"$error":"#N/A"}},{"$f":"VLOOKUP(Table_Data_Table_135[[#This Row],[Item ID]],Analysis_Table,18,FALSE)","v":{"$error":"#N/A"}},{"$f":"VLOOKUP(Table_Data_Table_135[[#This Row],[Item ID]],Analysis_Table,19,FALSE)","v":{"$error":"#N/A"}},null,null,1]
["",null,{"$f":"VLOOKUP(Table_Data_Table_135[[#This Row],[Item ID]],Analysis_Table,20,FALSE)","v":{"$error":"#N/A"}},null,null,null,null,null,null,null,0,null,null,null,{"$f":"VLOOKUP(Table_Data_Table_135[[#This Row],[Item ID]],Analysis_Table,8,FALSE)","v":{"$error":"#N/A"}},{"$f":"VLOOKUP(Table_Data_Table_135[[#This Row],[Item ID]],Analysis_Table,9,FALSE)","v":{"$error":"#N/A"}},{"$f":"VLOOKUP(Table_Data_Table_135[[#This Row],[Item ID]],Analysis_Table,10,FALSE)","v":{"$error":"#N/A"}},{"$f":"VLOOKUP(Table_Data_Table_135[[#This Row],[Item ID]],Analysis_Table,11,FALSE)","v":{"$error":"#N/A"}},{"$f":"VLOOKUP(Table_Data_Table_135[[#This Row],[Item ID]],Analysis_Table,12,FALSE)","v":{"$error":"#N/A"}},{"$f":"VLOOKUP(Table_Data_Table_135[[#This Row],[Item ID]],Analysis_Table,13,FALSE)","v":{"$error":"#N/A"}},{"$f":"VLOOKUP(Table_Data_Table_135[[#This Row],[Item ID]],Analysis_Table,14,FALSE)","v":{"$error":"#N/A"}},{"$f":"VLOOKUP(Table_Data_Table_135[[#This Row],[Item ID]],Analysis_Table,15,FALSE)","v":{"$error":"#N/A"}},{"$f":"VLOOKUP(Table_Data_Table_135[[#This Row],[Item ID]],Analysis_Table,16,FALSE)","v":{"$error":"#N/A"}},{"$f":"VLOOKUP(Table_Data_Table_135[[#This Row],[Item ID]],Analysis_Table,17,FALSE)","v":{"$error":"#N/A"}},{"$f":"VLOOKUP(Table_Data_Table_135[[#This Row],[Item ID]],Analysis_Table,18,FALSE)","v":{"$error":"#N/A"}},{"$f":"VLOOKUP(Table_Data_Table_135[[#This Row],[Item ID]],Analysis_Table,19,FALSE)","v":{"$error":"#N/A"}},null,null,1]
["",null,{"$f":"VLOOKUP(Table_Data_Table_135[[#This Row],[Item ID]],Analysis_Table,20,FALSE)","v":{"$error":"#N/A"}},null,null,null,null,null,null,null,0,null,null,null,{"$f":"VLOOKUP(Table_Data_Table_135[[#This Row],[Item ID]],Analysis_Table,8,FALSE)","v":{"$error":"#N/A"}},{"$f":"VLOOKUP(Table_Data_Table_135[[#This Row],[Item ID]],Analysis_Table,9,FALSE)","v":{"$error":"#N/A"}},{"$f":"VLOOKUP(Table_Data_Table_135[[#This Row],[Item ID]],Analysis_Table,10,FALSE)","v":{"$error":"#N/A"}},{"$f":"VLOOKUP(Table_Data_Table_135[[#This Row],[Item ID]],Analysis_Table,11,FALSE)","v":{"$error":"#N/A"}},{"$f":"VLOOKUP(Table_Data_Table_135[[#This Row],[Item ID]],Analysis_Table,12,FALSE)","v":{"$error":"#N/A"}},{"$f":"VLOOKUP(Table_Data_Table_135[[#This Row],[Item ID]],Analysis_Table,13,FALSE)","v":{"$error":"#N/A"}},{"$f":"VLOOKUP(Table_Data_Table_135[[#This Row],[Item ID]],Analysis_Table,14,FALSE)","v":{"$error":"#N/A"}},{"$f":"VLOOKUP(Table_Data_Table_135[[#This Row],[Item ID]],Analysis_Table,15,FALSE)","v":{"$error":"#N/A"}},{"$f":"VLOOKUP(Table_Data_Table_135[[#This Row],[Item ID]],Analysis_Table,16,FALSE)","v":{"$error":"#N/A"}},{"$f":"VLOOKUP(Table_Data_Table_135[[#This Row],[Item ID]],Analysis_Table,17,FALSE)","v":{"$error":"#N/A"}},{"$f":"VLOOKUP(Table_Data_Table_135[[#This Row],[Item ID]],Analysis_Table,18,FALSE)","v":{"$error":"#N/A"}},{"$f":"VLOOKUP(Table_Data_Table_135[[#This Row],[Item ID]],Analysis_Table,19,FALSE)","v":{"$error":"#N/A"}},null,null,1]
["",null,{"$f":"VLOOKUP(Table_Data_Table_135[[#This Row],[Item ID]],Analysis_Table,20,FALSE)","v":{"$error":"#N/A"}},null,null,null,null,null,null,null,0,null,null,null,{"$f":"VLOOKUP(Table_Data_Table_135[[#This Row],[Item ID]],Analysis_Table,8,FALSE)","v":{"$error":"#N/A"}},{"$f":"VLOOKUP(Table_Data_Table_135[[#This Row],[Item ID]],Analysis_Table,9,FALSE)","v":{"$error":"#N/A"}},{"$f":"VLOOKUP(Table_Data_Table_135[[#This Row],[Item ID]],Analysis_Table,10,FALSE)","v":{"$error":"#N/A"}},{"$f":"VLOOKUP(Table_Data_Table_135[[#This Row],[Item ID]],Analysis_Table,11,FALSE)","v":{"$error":"#N/A"}},{"$f":"VLOOKUP(Table_Data_Table_135[[#This Row],[Item ID]],Analysis_Table,12,FALSE)","v":{"$error":"#N/A"}},{"$f":"VLOOKUP(Table_Data_Table_135[[#This Row],[Item ID]],Analysis_Table,13,FALSE)","v":{"$error":"#N/A"}},{"$f":"VLOOKUP(Table_Data_Table_135[[#This Row],[Item ID]],Analysis_Table,14,FALSE)","v":{"$error":"#N/A"}},{"$f":"VLOOKUP(Table_Data_Table_135[[#This Row],[Item ID]],Analysis_Table,15,FALSE)","v":{"$error":"#N/A"}},{"$f":"VLOOKUP(Table_Data_Table_135[[#This Row],[Item ID]],Analysis_Table,16,FALSE)","v":{"$error":"#N/A"}},{"$f":"VLOOKUP(Table_Data_Table_135[[#This Row],[Item ID]],Analysis_Table,17,FALSE)","v":{"$error":"#N/A"}},{"$f":"VLOOKUP(Table_Data_Table_135[[#This Row],[Item ID]],Analysis_Table,18,FALSE)","v":{"$error":"#N/A"}},{"$f":"VLOOKUP(Table_Data_Table_135[[#This Row],[Item ID]],Analysis_Table,19,FALSE)","v":{"$error":"#N/A"}},null,null,1]
["",null,{"$f":"VLOOKUP(Table_Data_Table_135[[#This Row],[Item ID]],Analysis_Table,20,FALSE)","v":{"$error":"#N/A"}},null,null,null,null,null,null,null,0,null,null,null,{"$f":"VLOOKUP(Table_Data_Table_135[[#This Row],[Item ID]],Analysis_Table,8,FALSE)","v":{"$error":"#N/A"}},{"$f":"VLOOKUP(Table_Data_Table_135[[#This Row],[Item ID]],Analysis_Table,9,FALSE)","v":{"$error":"#N/A"}},{"$f":"VLOOKUP(Table_Data_Table_135[[#This Row],[Item ID]],Analysis_Table,10,FALSE)","v":{"$error":"#N/A"}},{"$f":"VLOOKUP(Table_Data_Table_135[[#This Row],[Item ID]],Analysis_Table,11,FALSE)","v":{"$error":"#N/A"}},{"$f":"VLOOKUP(Table_Data_Table_135[[#This Row],[Item ID]],Analysis_Table,12,FALSE)","v":{"$error":"#N/A"}},{"$f":"VLOOKUP(Table_Data_Table_135[[#This Row],[Item ID]],Analysis_Table,13,FALSE)","v":{"$error":"#N/A"}},{"$f":"VLOOKUP(Table_Data_Table_135[[#This Row],[Item ID]],Analysis_Table,14,FALSE)","v":{"$error":"#N/A"}},{"$f":"VLOOKUP(Table_Data_Table_135[[#This Row],[Item ID]],Analysis_Table,15,FALSE)","v":{"$error":"#N/A"}},{"$f":"VLOOKUP(Table_Data_Table_135[[#This Row],[Item ID]],Analysis_Table,16,FALSE)","v":{"$error":"#N/A"}},{"$f":"VLOOKUP(Table_Data_Table_135[[#This Row],[Item ID]],Analysis_Table,17,FALSE)","v":{"$error":"#N/A"}},{"$f":"VLOOKUP(Table_Data_Table_135[[#This Row],[Item ID]],Analysis_Table,18,FALSE)","v":{"$error":"#N/A"}},{"$f":"VLOOKUP(Table_Data_Table_135[[#This Row],[Item ID]],Analysis_Table,19,FALSE)","v":{"$error":"#N/A"}},null,null,1]
["",null,{"$f":"VLOOKUP(Table_Data_Table_135[[#This Row],[Item ID]],Analysis_Table,20,FALSE)","v":{"$error":"#N/A"}},null,null,null,null,null,null,null,0,null,null,null,{"$f":"VLOOKUP(Table_Data_Table_135[[#This Row],[Item ID]],Analysis_Table,8,FALSE)","v":{"$error":"#N/A"}},{"$f":"VLOOKUP(Table_Data_Table_135[[#This Row],[Item ID]],Analysis_Table,9,FALSE)","v":{"$error":"#N/A"}},{"$f":"VLOOKUP(Table_Data_Table_135[[#This Row],[Item ID]],Analysis_Table,10,FALSE)","v":{"$error":"#N/A"}},{"$f":"VLOOKUP(Table_Data_Table_135[[#This Row],[Item ID]],Analysis_Table,11,FALSE)","v":{"$error":"#N/A"}},{"$f":"VLOOKUP(Table_Data_Table_135[[#This Row],[Item ID]],Analysis_Table,12,FALSE)","v":{"$error":"#N/A"}},{"$f":"VLOOKUP(Table_Data_Table_135[[#This Row],[Item ID]],Analysis_Table,13,FALSE)","v":{"$error":"#N/A"}},{"$f":"VLOOKUP(Table_Data_Table_135[[#This Row],[Item ID]],Analysis_Table,14,FALSE)","v":{"$error":"#N/A"}},{"$f":"VLOOKUP(Table_Data_Table_135[[#This Row],[Item ID]],Analysis_Table,15,FALSE)","v":{"$error":"#N/A"}},{"$f":"VLOOKUP(Table_Data_Table_135[[#This Row],[Item ID]],Analysis_Table,16,FALSE)","v":{"$error":"#N/A"}},{"$f":"VLOOKUP(Table_Data_Table_135[[#This Row],[Item ID]],Analysis_Table,17,FALSE)","v":{"$error":"#N/A"}},{"$f":"VLOOKUP(Table_Data_Table_135[[#This Row],[Item ID]],Analysis_Table,18,FALSE)","v":{"$error":"#N/A"}},{"$f":"VLOOKUP(Table_Data_Table_135[[#This Row],[Item ID]],Analysis_Table,19,FALSE)","v":{"$error":"#N/A"}},null,null,1]
["",null,{"$f":"VLOOKUP(Table_Data_Table_135[[#This Row],[Item ID]],Analysis_Table,20,FALSE)","v":{"$error":"#N/A"}},null,null,null,null,null,null,null,0,null,null,null,{"$f":"VLOOKUP(Table_Data_Table_135[[#This Row],[Item ID]],Analysis_Table,8,FALSE)","v":{"$error":"#N/A"}},{"$f":"VLOOKUP(Table_Data_Table_135[[#This Row],[Item ID]],Analysis_Table,9,FALSE)","v":{"$error":"#N/A"}},{"$f":"VLOOKUP(Table_Data_Table_135[[#This Row],[Item ID]],Analysis_Table,10,FALSE)","v":{"$error":"#N/A"}},{"$f":"VLOOKUP(Table_Data_Table_135[[#This Row],[Item ID]],Analysis_Table,11,FALSE)","v":{"$error":"#N/A"}},{"$f":"VLOOKUP(Table_Data_Table_135[[#This Row],[Item ID]],Analysis_Table,12,FALSE)","v":{"$error":"#N/A"}},{"$f":"VLOOKUP(Table_Data_Table_135[[#This Row],[Item ID]],Analysis_Table,13,FALSE)","v":{"$error":"#N/A"}},{"$f":"VLOOKUP(Table_Data_Table_135[[#This Row],[Item ID]],Analysis_Table,14,FALSE)","v":{"$error":"#N/A"}},{"$f":"VLOOKUP(Table_Data_Table_135[[#This Row],[Item ID]],Analysis_Table,15,FALSE)","v":{"$error":"#N/A"}},{"$f":"VLOOKUP(Table_Data_Table_135[[#This Row],[Item ID]],Analysis_Table,16,FALSE)","v":{"$error":"#N/A"}},{"$f":"VLOOKUP(Table_Data_Table_135[[#This Row],[Item ID]],Analysis_Table,17,FALSE)","v":{"$error":"#N/A"}},{"$f":"VLOOKUP(Table_Data_Table_135[[#This Row],[Item ID]],Analysis_Table,18,FALSE)","v":{"$error":"#N/A"}},{"$f":"VLOOKUP(Table_Data_Table_135[[#This Row],[Item ID]],Analysis_Table,19,FALSE)","v":{"$error":"#N/A"}},null,null,1]
["",null,{"$f":"VLOOKUP(Table_Data_Table_135[[#This Row],[Item ID]],Analysis_Table,20,FALSE)","v":{"$error":"#N/A"}},null,null,null,null,null,null,null,0,null,null,null,{"$f":"VLOOKUP(Table_Data_Table_135[[#This Row],[Item ID]],Analysis_Table,8,FALSE)","v":{"$error":"#N/A"}},{"$f":"VLOOKUP(Table_Data_Table_135[[#This Row],[Item ID]],Analysis_Table,9,FALSE)","v":{"$error":"#N/A"}},{"$f":"VLOOKUP(Table_Data_Table_135[[#This Row],[Item ID]],Analysis_Table,10,FALSE)","v":{"$error":"#N/A"}},{"$f":"VLOOKUP(Table_Data_Table_135[[#This Row],[Item ID]],Analysis_Table,11,FALSE)","v":{"$error":"#N/A"}},{"$f":"VLOOKUP(Table_Data_Table_135[[#This Row],[Item ID]],Analysis_Table,12,FALSE)","v":{"$error":"#N/A"}},{"$f":"VLOOKUP(Table_Data_Table_135[[#This Row],[Item ID]],Analysis_Table,13,FALSE)","v":{"$error":"#N/A"}},{"$f":"VLOOKUP(Table_Data_Table_135[[#This Row],[Item ID]],Analysis_Table,14,FALSE)","v":{"$error":"#N/A"}},{"$f":"VLOOKUP(Table_Data_Table_135[[#This Row],[Item ID]],Analysis_Table,15,FALSE)","v":{"$error":"#N/A"}},{"$f":"VLOOKUP(Table_Data_Table_135[[#This Row],[Item ID]],Analysis_Table,16,FALSE)","v":{"$error":"#N/A"}},{"$f":"VLOOKUP(Table_Data_Table_135[[#This Row],[Item ID]],Analysis_Table,17,FALSE)","v":{"$error":"#N/A"}},{"$f":"VLOOKUP(Table_Data_Table_135[[#This Row],[Item ID]],Analysis_Table,18,FALSE)","v":{"$error":"#N/A"}},{"$f":"VLOOKUP(Table_Data_Table_135[[#This Row],[Item ID]],Analysis_Table,19,FALSE)","v":{"$error":"#N/A"}},null,null,1]
["",null,{"$f":"VLOOKUP(Table_Data_Table_135[[#This Row],[Item ID]],Analysis_Table,20,FALSE)","v":{"$error":"#N/A"}},null,null,null,null,null,null,null,0,null,null,null,{"$f":"VLOOKUP(Table_Data_Table_135[[#This Row],[Item ID]],Analysis_Table,8,FALSE)","v":{"$error":"#N/A"}},{"$f":"VLOOKUP(Table_Data_Table_135[[#This Row],[Item ID]],Analysis_Table,9,FALSE)","v":{"$error":"#N/A"}},{"$f":"VLOOKUP(Table_Data_Table_135[[#This Row],[Item ID]],Analysis_Table,10,FALSE)","v":{"$error":"#N/A"}},{"$f":"VLOOKUP(Table_Data_Table_135[[#This Row],[Item ID]],Analysis_Table,11,FALSE)","v":{"$error":"#N/A"}},{"$f":"VLOOKUP(Table_Data_Table_135[[#This Row],[Item ID]],Analysis_Table,12,FALSE)","v":{"$error":"#N/A"}},{"$f":"VLOOKUP(Table_Data_Table_135[[#This Row],[Item ID]],Analysis_Table,13,FALSE)","v":{"$error":"#N/A"}},{"$f":"VLOOKUP(Table_Data_Table_135[[#This Row],[Item ID]],Analysis_Table,14,FALSE)","v":{"$error":"#N/A"}},{"$f":"VLOOKUP(Table_Data_Table_135[[#This Row],[Item ID]],Analysis_Table,15,FALSE)","v":{"$error":"#N/A"}},{"$f":"VLOOKUP(Table_Data_Table_135[[#This Row],[Item ID]],Analysis_Table,16,FALSE)","v":{"$error":"#N/A"}},{"$f":"VLOOKUP(Table_Data_Table_135[[#This Row],[Item ID]],Analysis_Table,17,FALSE)","v":{"$error":"#N/A"}},{"$f":"VLOOKUP(Table_Data_Table_135[[#This Row],[Item ID]],Analysis_Table,18,FALSE)","v":{"$error":"#N/A"}},{"$f":"VLOOKUP(Table_Data_Table_135[[#This Row],[Item ID]],Analysis_Table,19,FALSE)","v":{"$error":"#N/A"}},null,null,1]
["",null,{"$f":"VLOOKUP(Table_Data_Table_135[[#This Row],[Item ID]],Analysis_Table,20,FALSE)","v":{"$error":"#N/A"}},null,null,null,null,null,null,null,0,null,null,null,{"$f":"VLOOKUP(Table_Data_Table_135[[#This Row],[Item ID]],Analysis_Table,8,FALSE)","v":{"$error":"#N/A"}},{"$f":"VLOOKUP(Table_Data_Table_135[[#This Row],[Item ID]],Analysis_Table,9,FALSE)","v":{"$error":"#N/A"}},{"$f":"VLOOKUP(Table_Data_Table_135[[#This Row],[Item ID]],Analysis_Table,10,FALSE)","v":{"$error":"#N/A"}},{"$f":"VLOOKUP(Table_Data_Table_135[[#This Row],[Item ID]],Analysis_Table,11,FALSE)","v":{"$error":"#N/A"}},{"$f":"VLOOKUP(Table_Data_Table_135[[#This Row],[Item ID]],Analysis_Table,12,FALSE)","v":{"$error":"#N/A"}},{"$f":"VLOOKUP(Table_Data_Table_135[[#This Row],[Item ID]],Analysis_Table,13,FALSE)","v":{"$error":"#N/A"}},{"$f":"VLOOKUP(Table_Data_Table_135[[#This Row],[Item ID]],Analysis_Table,14,FALSE)","v":{"$error":"#N/A"}},{"$f":"VLOOKUP(Table_Data_Table_135[[#This Row],[Item ID]],Analysis_Table,15,FALSE)","v":{"$error":"#N/A"}},{"$f":"VLOOKUP(Table_Data_Table_135[[#This Row],[Item ID]],Analysis_Table,16,FALSE)","v":{"$error":"#N/A"}},{"$f":"VLOOKUP(Table_Data_Table_135[[#This Row],[Item ID]],Analysis_Table,17,FALSE)","v":{"$error":"#N/A"}},{"$f":"VLOOKUP(Table_Data_Table_135[[#This Row],[Item ID]],Analysis_Table,18,FALSE)","v":{"$error":"#N/A"}},{"$f":"VLOOKUP(Table_Data_Table_135[[#This Row],[Item ID]],Analysis_Table,19,FALSE)","v":{"$error":"#N/A"}},null,null,1]
["",null,{"$f":"VLOOKUP(Table_Data_Table_135[[#This Row],[Item ID]],Analysis_Table,20,FALSE)","v":{"$error":"#N/A"}},null,null,null,null,null,null,null,0,null,null,null,{"$f":"VLOOKUP(Table_Data_Table_135[[#This Row],[Item ID]],Analysis_Table,8,FALSE)","v":{"$error":"#N/A"}},{"$f":"VLOOKUP(Table_Data_Table_135[[#This Row],[Item ID]],Analysis_Table,9,FALSE)","v":{"$error":"#N/A"}},{"$f":"VLOOKUP(Table_Data_Table_135[[#This Row],[Item ID]],Analysis_Table,10,FALSE)","v":{"$error":"#N/A"}},{"$f":"VLOOKUP(Table_Data_Table_135[[#This Row],[Item ID]],Analysis_Table,11,FALSE)","v":{"$error":"#N/A"}},{"$f":"VLOOKUP(Table_Data_Table_135[[#This Row],[Item ID]],Analysis_Table,12,FALSE)","v":{"$error":"#N/A"}},{"$f":"VLOOKUP(Table_Data_Table_135[[#This Row],[Item ID]],Analysis_Table,13,FALSE)","v":{"$error":"#N/A"}},{"$f":"VLOOKUP(Table_Data_Table_135[[#This Row],[Item ID]],Analysis_Table,14,FALSE)","v":{"$error":"#N/A"}},{"$f":"VLOOKUP(Table_Data_Table_135[[#This Row],[Item ID]],Analysis_Table,15,FALSE)","v":{"$error":"#N/A"}},{"$f":"VLOOKUP(Table_Data_Table_135[[#This Row],[Item ID]],Analysis_Table,16,FALSE)","v":{"$error":"#N/A"}},{"$f":"VLOOKUP(Table_Data_Table_135[[#This Row],[Item ID]],Analysis_Table,17,FALSE)","v":{"$error":"#N/A"}},{"$f":"VLOOKUP(Table_Data_Table_135[[#This Row],[Item ID]],Analysis_Table,18,FALSE)","v":{"$error":"#N/A"}},{"$f":"VLOOKUP(Table_Data_Table_135[[#This Row],[Item ID]],Analysis_Table,19,FALSE)","v":{"$error":"#N/A"}},null,null,1]
["",null,{"$f":"VLOOKUP(Table_Data_Table_135[[#This Row],[Item ID]],Analysis_Table,20,FALSE)","v":{"$error":"#N/A"}},null,null,null,null,null,null,null,0,null,null,null,{"$f":"VLOOKUP(Table_Data_Table_135[[#This Row],[Item ID]],Analysis_Table,8,FALSE)","v":{"$error":"#N/A"}},{"$f":"VLOOKUP(Table_Data_Table_135[[#This Row],[Item ID]],Analysis_Table,9,FALSE)","v":{"$error":"#N/A"}},{"$f":"VLOOKUP(Table_Data_Table_135[[#This Row],[Item ID]],Analysis_Table,10,FALSE)","v":{"$error":"#N/A"}},{"$f":"VLOOKUP(Table_Data_Table_135[[#This Row],[Item ID]],Analysis_Table,11,FALSE)","v":{"$error":"#N/A"}},{"$f":"VLOOKUP(Table_Data_Table_135[[#This Row],[Item ID]],Analysis_Table,12,FALSE)","v":{"$error":"#N/A"}},{"$f":"VLOOKUP(Table_Data_Table_135[[#This Row],[Item ID]],Analysis_Table,13,FALSE)","v":{"$error":"#N/A"}},{"$f":"VLOOKUP(Table_Data_Table_135[[#This Row],[Item ID]],Analysis_Table,14,FALSE)","v":{"$error":"#N/A"}},{"$f":"VLOOKUP(Table_Data_Table_135[[#This Row],[Item ID]],Analysis_Table,15,FALSE)","v":{"$error":"#N/A"}},{"$f":"VLOOKUP(Table_Data_Table_135[[#This Row],[Item ID]],Analysis_Table,16,FALSE)","v":{"$error":"#N/A"}},{"$f":"VLOOKUP(Table_Data_Table_135[[#This Row],[Item ID]],Analysis_Table,17,FALSE)","v":{"$error":"#N/A"}},{"$f":"VLOOKUP(Table_Data_Table_135[[#This Row],[Item ID]],Analysis_Table,18,FALSE)","v":{"$error":"#N/A"}},{"$f":"VLOOKUP(Table_Data_Table_135[[#This Row],[Item ID]],Analysis_Table,19,FALSE)","v":{"$error":"#N/A"}},null,null,1]
["",null,{"$f":"VLOOKUP(Table_Data_Table_135[[#This Row],[Item ID]],Analysis_Table,20,FALSE)","v":{"$error":"#N/A"}},null,null,null,null,null,null,null,0,null,null,null,{"$f":"VLOOKUP(Table_Data_Table_135[[#This Row],[Item ID]],Analysis_Table,8,FALSE)","v":{"$error":"#N/A"}},{"$f":"VLOOKUP(Table_Data_Table_135[[#This Row],[Item ID]],Analysis_Table,9,FALSE)","v":{"$error":"#N/A"}},{"$f":"VLOOKUP(Table_Data_Table_135[[#This Row],[Item ID]],Analysis_Table,10,FALSE)","v":{"$error":"#N/A"}},{"$f":"VLOOKUP(Table_Data_Table_135[[#This Row],[Item ID]],Analysis_Table,11,FALSE)","v":{"$error":"#N/A"}},{"$f":"VLOOKUP(Table_Data_Table_135[[#This Row],[Item ID]],Analysis_Table,12,FALSE)","v":{"$error":"#N/A"}},{"$f":"VLOOKUP(Table_Data_Table_135[[#This Row],[Item ID]],Analysis_Table,13,FALSE)","v":{"$error":"#N/A"}},{"$f":"VLOOKUP(Table_Data_Table_135[[#This Row],[Item ID]],Analysis_Table,14,FALSE)","v":{"$error":"#N/A"}},{"$f":"VLOOKUP(Table_Data_Table_135[[#This Row],[Item ID]],Analysis_Table,15,FALSE)","v":{"$error":"#N/A"}},{"$f":"VLOOKUP(Table_Data_Table_135[[#This Row],[Item ID]],Analysis_Table,16,FALSE)","v":{"$error":"#N/A"}},{"$f":"VLOOKUP(Table_Data_Table_135[[#This Row],[Item ID]],Analysis_Table,17,FALSE)","v":{"$error":"#N/A"}},{"$f":"VLOOKUP(Table_Data_Table_135[[#This Row],[Item ID]],Analysis_Table,18,FALSE)","v":{"$error":"#N/A"}},{"$f":"VLOOKUP(Table_Data_Table_135[[#This Row],[Item ID]],Analysis_Table,19,FALSE)","v":{"$error":"#N/A"}},null,null,1]
["",null,{"$f":"VLOOKUP(Table_Data_Table_135[[#This Row],[Item ID]],Analysis_Table,20,FALSE)","v":{"$error":"#N/A"}},null,null,null,null,null,null,null,0,null,null,null,{"$f":"VLOOKUP(Table_Data_Table_135[[#This Row],[Item ID]],Analysis_Table,8,FALSE)","v":{"$error":"#N/A"}},{"$f":"VLOOKUP(Table_Data_Table_135[[#This Row],[Item ID]],Analysis_Table,9,FALSE)","v":{"$error":"#N/A"}},{"$f":"VLOOKUP(Table_Data_Table_135[[#This Row],[Item ID]],Analysis_Table,10,FALSE)","v":{"$error":"#N/A"}},{"$f":"VLOOKUP(Table_Data_Table_135[[#This Row],[Item ID]],Analysis_Table,11,FALSE)","v":{"$error":"#N/A"}},{"$f":"VLOOKUP(Table_Data_Table_135[[#This Row],[Item ID]],Analysis_Table,12,FALSE)","v":{"$error":"#N/A"}},{"$f":"VLOOKUP(Table_Data_Table_135[[#This Row],[Item ID]],Analysis_Table,13,FALSE)","v":{"$error":"#N/A"}},{"$f":"VLOOKUP(Table_Data_Table_135[[#This Row],[Item ID]],Analysis_Table,14,FALSE)","v":{"$error":"#N/A"}},{"$f":"VLOOKUP(Table_Data_Table_135[[#This Row],[Item ID]],Analysis_Table,15,FALSE)","v":{"$error":"#N/A"}},{"$f":"VLOOKUP(Table_Data_Table_135[[#This Row],[Item ID]],Analysis_Table,16,FALSE)","v":{"$error":"#N/A"}},{"$f":"VLOOKUP(Table_Data_Table_135[[#This Row],[Item ID]],Analysis_Table,17,FALSE)","v":{"$error":"#N/A"}},{"$f":"VLOOKUP(Table_Data_Table_135[[#This Row],[Item ID]],Analysis_Table,18,FALSE)","v":{"$error":"#N/A"}},{"$f":"VLOOKUP(Table_Data_Table_135[[#This Row],[Item ID]],Analysis_Table,19,FALSE)","v":{"$error":"#N/A"}},null,null,1]
["",null,{"$f":"VLOOKUP(Table_Data_Table_135[[#This Row],[Item ID]],Analysis_Table,20,FALSE)","v":{"$error":"#N/A"}},null,null,null,null,null,null,null,0,null,null,null,{"$f":"VLOOKUP(Table_Data_Table_135[[#This Row],[Item ID]],Analysis_Table,8,FALSE)","v":{"$error":"#N/A"}},{"$f":"VLOOKUP(Table_Data_Table_135[[#This Row],[Item ID]],Analysis_Table,9,FALSE)","v":{"$error":"#N/A"}},{"$f":"VLOOKUP(Table_Data_Table_135[[#This Row],[Item ID]],Analysis_Table,10,FALSE)","v":{"$error":"#N/A"}},{"$f":"VLOOKUP(Table_Data_Table_135[[#This Row],[Item ID]],Analysis_Table,11,FALSE)","v":{"$error":"#N/A"}},{"$f":"VLOOKUP(Table_Data_Table_135[[#This Row],[Item ID]],Analysis_Table,12,FALSE)","v":{"$error":"#N/A"}},{"$f":"VLOOKUP(Table_Data_Table_135[[#This Row],[Item ID]],Analysis_Table,13,FALSE)","v":{"$error":"#N/A"}},{"$f":"VLOOKUP(Table_Data_Table_135[[#This Row],[Item ID]],Analysis_Table,14,FALSE)","v":{"$error":"#N/A"}},{"$f":"VLOOKUP(Table_Data_Table_135[[#This Row],[Item ID]],Analysis_Table,15,FALSE)","v":{"$error":"#N/A"}},{"$f":"VLOOKUP(Table_Data_Table_135[[#This Row],[Item ID]],Analysis_Table,16,FALSE)","v":{"$error":"#N/A"}},{"$f":"VLOOKUP(Table_Data_Table_135[[#This Row],[Item ID]],Analysis_Table,17,FALSE)","v":{"$error":"#N/A"}},{"$f":"VLOOKUP(Table_Data_Table_135[[#This Row],[Item ID]],Analysis_Table,18,FALSE)","v":{"$error":"#N/A"}},{"$f":"VLOOKUP(Table_Data_Table_135[[#This Row],[Item ID]],Analysis_Table,19,FALSE)","v":{"$error":"#N/A"}},null,null,1]
["",null,{"$f":"VLOOKUP(Table_Data_Table_135[[#This Row],[Item ID]],Analysis_Table,20,FALSE)","v":{"$error":"#N/A"}},null,null,null,null,null,null,null,0,null,null,null,{"$f":"VLOOKUP(Table_Data_Table_135[[#This Row],[Item ID]],Analysis_Table,8,FALSE)","v":{"$error":"#N/A"}},{"$f":"VLOOKUP(Table_Data_Table_135[[#This Row],[Item ID]],Analysis_Table,9,FALSE)","v":{"$error":"#N/A"}},{"$f":"VLOOKUP(Table_Data_Table_135[[#This Row],[Item ID]],Analysis_Table,10,FALSE)","v":{"$error":"#N/A"}},{"$f":"VLOOKUP(Table_Data_Table_135[[#This Row],[Item ID]],Analysis_Table,11,FALSE)","v":{"$error":"#N/A"}},{"$f":"VLOOKUP(Table_Data_Table_135[[#This Row],[Item ID]],Analysis_Table,12,FALSE)","v":{"$error":"#N/A"}},{"$f":"VLOOKUP(Table_Data_Table_135[[#This Row],[Item ID]],Analysis_Table,13,FALSE)","v":{"$error":"#N/A"}},{"$f":"VLOOKUP(Table_Data_Table_135[[#This Row],[Item ID]],Analysis_Table,14,FALSE)","v":{"$error":"#N/A"}},{"$f":"VLOOKUP(Table_Data_Table_135[[#This Row],[Item ID]],Analysis_Table,15,FALSE)","v":{"$error":"#N/A"}},{"$f":"VLOOKUP(Table_Data_Table_135[[#This Row],[Item ID]],Analysis_Table,16,FALSE)","v":{"$error":"#N/A"}},{"$f":"VLOOKUP(Table_Data_Table_135[[#This Row],[Item ID]],Analysis_Table,17,FALSE)","v":{"$error":"#N/A"}},{"$f":"VLOOKUP(Table_Data_Table_135[[#This Row],[Item ID]],Analysis_Table,18,FALSE)","v":{"$error":"#N/A"}},{"$f":"VLOOKUP(Table_Data_Table_135[[#This Row],[Item ID]],Analysis_Table,19,FALSE)","v":{"$error":"#N/A"}},null,null,1]
["",null,{"$f":"VLOOKUP(Table_Data_Table_135[[#This Row],[Item ID]],Analysis_Table,20,FALSE)","v":{"$error":"#N/A"}},null,null,null,null,null,null,null,0,null,null,null,{"$f":"VLOOKUP(Table_Data_Table_135[[#This Row],[Item ID]],Analysis_Table,8,FALSE)","v":{"$error":"#N/A"}},{"$f":"VLOOKUP(Table_Data_Table_135[[#This Row],[Item ID]],Analysis_Table,9,FALSE)","v":{"$error":"#N/A"}},{"$f":"VLOOKUP(Table_Data_Table_135[[#This Row],[Item ID]],Analysis_Table,10,FALSE)","v":{"$error":"#N/A"}},{"$f":"VLOOKUP(Table_Data_Table_135[[#This Row],[Item ID]],Analysis_Table,11,FALSE)","v":{"$error":"#N/A"}},{"$f":"VLOOKUP(Table_Data_Table_135[[#This Row],[Item ID]],Analysis_Table,12,FALSE)","v":{"$error":"#N/A"}},{"$f":"VLOOKUP(Table_Data_Table_135[[#This Row],[Item ID]],Analysis_Table,13,FALSE)","v":{"$error":"#N/A"}},{"$f":"VLOOKUP(Table_Data_Table_135[[#This Row],[Item ID]],Analysis_Table,14,FALSE)","v":{"$error":"#N/A"}},{"$f":"VLOOKUP(Table_Data_Table_135[[#This Row],[Item ID]],Analysis_Table,15,FALSE)","v":{"$error":"#N/A"}},{"$f":"VLOOKUP(Table_Data_Table_135[[#This Row],[Item ID]],Analysis_Table,16,FALSE)","v":{"$error":"#N/A"}},{"$f":"VLOOKUP(Table_Data_Table_135[[#This Row],[Item ID]],Analysis_Table,17,FALSE)","v":{"$error":"#N/A"}},{"$f":"VLOOKUP(Table_Data_Table_135[[#This Row],[Item ID]],Analysis_Table,18,FALSE)","v":{"$error":"#N/A"}},{"$f":"VLOOKUP(Table_Data_Table_135[[#This Row],[Item ID]],Analysis_Table,19,FALSE)","v":{"$error":"#N/A"}},null,null,1]
["",null,{"$f":"VLOOKUP(Table_Data_Table_135[[#This Row],[Item ID]],Analysis_Table,20,FALSE)","v":{"$error":"#N/A"}},null,null,null,null,null,null,null,0,null,null,null,{"$f":"VLOOKUP(Table_Data_Table_135[[#This Row],[Item ID]],Analysis_Table,8,FALSE)","v":{"$error":"#N/A"}},{"$f":"VLOOKUP(Table_Data_Table_135[[#This Row],[Item ID]],Analysis_Table,9,FALSE)","v":{"$error":"#N/A"}},{"$f":"VLOOKUP(Table_Data_Table_135[[#This Row],[Item ID]],Analysis_Table,10,FALSE)","v":{"$error":"#N/A"}},{"$f":"VLOOKUP(Table_Data_Table_135[[#This Row],[Item ID]],Analysis_Table,11,FALSE)","v":{"$error":"#N/A"}},{"$f":"VLOOKUP(Table_Data_Table_135[[#This Row],[Item ID]],Analysis_Table,12,FALSE)","v":{"$error":"#N/A"}},{"$f":"VLOOKUP(Table_Data_Table_135[[#This Row],[Item ID]],Analysis_Table,13,FALSE)","v":{"$error":"#N/A"}},{"$f":"VLOOKUP(Table_Data_Table_135[[#This Row],[Item ID]],Analysis_Table,14,FALSE)","v":{"$error":"#N/A"}},{"$f":"VLOOKUP(Table_Data_Table_135[[#This Row],[Item ID]],Analysis_Table,15,FALSE)","v":{"$error":"#N/A"}},{"$f":"VLOOKUP(Table_Data_Table_135[[#This Row],[Item ID]],Analysis_Table,16,FALSE)","v":{"$error":"#N/A"}},{"$f":"VLOOKUP(Table_Data_Table_135[[#This Row],[Item ID]],Analysis_Table,17,FALSE)","v":{"$error":"#N/A"}},{"$f":"VLOOKUP(Table_Data_Table_135[[#This Row],[Item ID]],Analysis_Table,18,FALSE)","v":{"$error":"#N/A"}},{"$f":"VLOOKUP(Table_Data_Table_135[[#This Row],[Item ID]],Analysis_Table,19,FALSE)","v":{"$error":"#N/A"}},null,null,1]
["",null,{"$f":"VLOOKUP(Table_Data_Table_135[[#This Row],[Item ID]],Analysis_Table,20,FALSE)","v":{"$error":"#N/A"}},null,null,null,null,null,null,null,0,null,null,null,{"$f":"VLOOKUP(Table_Data_Table_135[[#This Row],[Item ID]],Analysis_Table,8,FALSE)","v":{"$error":"#N/A"}},{"$f":"VLOOKUP(Table_Data_Table_135[[#This Row],[Item ID]],Analysis_Table,9,FALSE)","v":{"$error":"#N/A"}},{"$f":"VLOOKUP(Table_Data_Table_135[[#This Row],[Item ID]],Analysis_Table,10,FALSE)","v":{"$error":"#N/A"}},{"$f":"VLOOKUP(Table_Data_Table_135[[#This Row],[Item ID]],Analysis_Table,11,FALSE)","v":{"$error":"#N/A"}},{"$f":"VLOOKUP(Table_Data_Table_135[[#This Row],[Item ID]],Analysis_Table,12,FALSE)","v":{"$error":"#N/A"}},{"$f":"VLOOKUP(Table_Data_Table_135[[#This Row],[Item ID]],Analysis_Table,13,FALSE)","v":{"$error":"#N/A"}},{"$f":"VLOOKUP(Table_Data_Table_135[[#This Row],[Item ID]],Analysis_Table,14,FALSE)","v":{"$error":"#N/A"}},{"$f":"VLOOKUP(Table_Data_Table_135[[#This Row],[Item ID]],Analysis_Table,15,FALSE)","v":{"$error":"#N/A"}},{"$f":"VLOOKUP(Table_Data_Table_135[[#This Row],[Item ID]],Analysis_Table,16,FALSE)","v":{"$error":"#N/A"}},{"$f":"VLOOKUP(Table_Data_Table_135[[#This Row],[Item ID]],Analysis_Table,17,FALSE)","v":{"$error":"#N/A"}},{"$f":"VLOOKUP(Table_Data_Table_135[[#This Row],[Item ID]],Analysis_Table,18,FALSE)","v":{"$error":"#N/A"}},{"$f":"VLOOKUP(Table_Data_Table_135[[#This Row],[Item ID]],Analysis_Table,19,FALSE)","v":{"$error":"#N/A"}},null,null,1]
["",null,{"$f":"VLOOKUP(Table_Data_Table_135[[#This Row],[Item ID]],Analysis_Table,20,FALSE)","v":{"$error":"#N/A"}},null,null,null,null,null,null,null,0,null,null,null,{"$f":"VLOOKUP(Table_Data_Table_135[[#This Row],[Item ID]],Analysis_Table,8,FALSE)","v":{"$error":"#N/A"}},{"$f":"VLOOKUP(Table_Data_Table_135[[#This Row],[Item ID]],Analysis_Table,9,FALSE)","v":{"$error":"#N/A"}},{"$f":"VLOOKUP(Table_Data_Table_135[[#This Row],[Item ID]],Analysis_Table,10,FALSE)","v":{"$error":"#N/A"}},{"$f":"VLOOKUP(Table_Data_Table_135[[#This Row],[Item ID]],Analysis_Table,11,FALSE)","v":{"$error":"#N/A"}},{"$f":"VLOOKUP(Table_Data_Table_135[[#This Row],[Item ID]],Analysis_Table,12,FALSE)","v":{"$error":"#N/A"}},{"$f":"VLOOKUP(Table_Data_Table_135[[#This Row],[Item ID]],Analysis_Table,13,FALSE)","v":{"$error":"#N/A"}},{"$f":"VLOOKUP(Table_Data_Table_135[[#This Row],[Item ID]],Analysis_Table,14,FALSE)","v":{"$error":"#N/A"}},{"$f":"VLOOKUP(Table_Data_Table_135[[#This Row],[Item ID]],Analysis_Table,15,FALSE)","v":{"$error":"#N/A"}},{"$f":"VLOOKUP(Table_Data_Table_135[[#This Row],[Item ID]],Analysis_Table,16,FALSE)","v":{"$error":"#N/A"}},{"$f":"VLOOKUP(Table_Data_Table_135[[#This Row],[Item ID]],Analysis_Table,17,FALSE)","v":{"$error":"#N/A"}},{"$f":"VLOOKUP(Table_Data_Table_135[[#This Row],[Item ID]],Analysis_Table,18,FALSE)","v":{"$error":"#N/A"}},{"$f":"VLOOKUP(Table_Data_Table_135[[#This Row],[Item ID]],Analysis_Table,19,FALSE)","v":{"$error":"#N/A"}},null,null,1]
["",null,{"$f":"VLOOKUP(Table_Data_Table_135[[#This Row],[Item ID]],Analysis_Table,20,FALSE)","v":{"$error":"#N/A"}},null,null,null,null,null,null,null,0,null,null,null,{"$f":"VLOOKUP(Table_Data_Table_135[[#This Row],[Item ID]],Analysis_Table,8,FALSE)","v":{"$error":"#N/A"}},{"$f":"VLOOKUP(Table_Data_Table_135[[#This Row],[Item ID]],Analysis_Table,9,FALSE)","v":{"$error":"#N/A"}},{"$f":"VLOOKUP(Table_Data_Table_135[[#This Row],[Item ID]],Analysis_Table,10,FALSE)","v":{"$error":"#N/A"}},{"$f":"VLOOKUP(Table_Data_Table_135[[#This Row],[Item ID]],Analysis_Table,11,FALSE)","v":{"$error":"#N/A"}},{"$f":"VLOOKUP(Table_Data_Table_135[[#This Row],[Item ID]],Analysis_Table,12,FALSE)","v":{"$error":"#N/A"}},{"$f":"VLOOKUP(Table_Data_Table_135[[#This Row],[Item ID]],Analysis_Table,13,FALSE)","v":{"$error":"#N/A"}},{"$f":"VLOOKUP(Table_Data_Table_135[[#This Row],[Item ID]],Analysis_Table,14,FALSE)","v":{"$error":"#N/A"}},{"$f":"VLOOKUP(Table_Data_Table_135[[#This Row],[Item ID]],Analysis_Table,15,FALSE)","v":{"$error":"#N/A"}},{"$f":"VLOOKUP(Table_Data_Table_135[[#This Row],[Item ID]],Analysis_Table,16,FALSE)","v":{"$error":"#N/A"}},{"$f":"VLOOKUP(Table_Data_Table_135[[#This Row],[Item ID]],Analysis_Table,17,FALSE)","v":{"$error":"#N/A"}},{"$f":"VLOOKUP(Table_Data_Table_135[[#This Row],[Item ID]],Analysis_Table,18,FALSE)","v":{"$error":"#N/A"}},{"$f":"VLOOKUP(Table_Data_Table_135[[#This Row],[Item ID]],Analysis_Table,19,FALSE)","v":{"$error":"#N/A"}},null,null,1]
["",null,{"$f":"VLOOKUP(Table_Data_Table_135[[#This Row],[Item ID]],Analysis_Table,20,FALSE)","v":{"$error":"#N/A"}},null,null,null,null,null,null,null,0,null,null,null,{"$f":"VLOOKUP(Table_Data_Table_135[[#This Row],[Item ID]],Analysis_Table,8,FALSE)","v":{"$error":"#N/A"}},{"$f":"VLOOKUP(Table_Data_Table_135[[#This Row],[Item ID]],Analysis_Table,9,FALSE)","v":{"$error":"#N/A"}},{"$f":"VLOOKUP(Table_Data_Table_135[[#This Row],[Item ID]],Analysis_Table,10,FALSE)","v":{"$error":"#N/A"}},{"$f":"VLOOKUP(Table_Data_Table_135[[#This Row],[Item ID]],Analysis_Table,11,FALSE)","v":{"$error":"#N/A"}},{"$f":"VLOOKUP(Table_Data_Table_135[[#This Row],[Item ID]],Analysis_Table,12,FALSE)","v":{"$error":"#N/A"}},{"$f":"VLOOKUP(Table_Data_Table_135[[#This Row],[Item ID]],Analysis_Table,13,FALSE)","v":{"$error":"#N/A"}},{"$f":"VLOOKUP(Table_Data_Table_135[[#This Row],[Item ID]],Analysis_Table,14,FALSE)","v":{"$error":"#N/A"}},{"$f":"VLOOKUP(Table_Data_Table_135[[#This Row],[Item ID]],Analysis_Table,15,FALSE)","v":{"$error":"#N/A"}},{"$f":"VLOOKUP(Table_Data_Table_135[[#This Row],[Item ID]],Analysis_Table,16,FALSE)","v":{"$error":"#N/A"}},{"$f":"VLOOKUP(Table_Data_Table_135[[#This Row],[Item ID]],Analysis_Table,17,FALSE)","v":{"$error":"#N/A"}},{"$f":"VLOOKUP(Table_Data_Table_135[[#This Row],[Item ID]],Analysis_Table,18,FALSE)","v":{"$error":"#N/A"}},{"$f":"VLOOKUP(Table_Data_Table_135[[#This Row],[Item ID]],Analysis_Table,19,FALSE)","v":{"$error":"#N/A"}},null,null,1]
["",null,{"$f":"VLOOKUP(Table_Data_Table_135[[#This Row],[Item ID]],Analysis_Table,20,FALSE)","v":{"$error":"#N/A"}},null,null,null,null,null,null,null,0,null,null,null,{"$f":"VLOOKUP(Table_Data_Table_135[[#This Row],[Item ID]],Analysis_Table,8,FALSE)","v":{"$error":"#N/A"}},{"$f":"VLOOKUP(Table_Data_Table_135[[#This Row],[Item ID]],Analysis_Table,9,FALSE)","v":{"$error":"#N/A"}},{"$f":"VLOOKUP(Table_Data_Table_135[[#This Row],[Item ID]],Analysis_Table,10,FALSE)","v":{"$error":"#N/A"}},{"$f":"VLOOKUP(Table_Data_Table_135[[#This Row],[Item ID]],Analysis_Table,11,FALSE)","v":{"$error":"#N/A"}},{"$f":"VLOOKUP(Table_Data_Table_135[[#This Row],[Item ID]],Analysis_Table,12,FALSE)","v":{"$error":"#N/A"}},{"$f":"VLOOKUP(Table_Data_Table_135[[#This Row],[Item ID]],Analysis_Table,13,FALSE)","v":{"$error":"#N/A"}},{"$f":"VLOOKUP(Table_Data_Table_135[[#This Row],[Item ID]],Analysis_Table,14,FALSE)","v":{"$error":"#N/A"}},{"$f":"VLOOKUP(Table_Data_Table_135[[#This Row],[Item ID]],Analysis_Table,15,FALSE)","v":{"$error":"#N/A"}},{"$f":"VLOOKUP(Table_Data_Table_135[[#This Row],[Item ID]],Analysis_Table,16,FALSE)","v":{"$error":"#N/A"}},{"$f":"VLOOKUP(Table_Data_Table_135[[#This Row],[Item ID]],Analysis_Table,17,FALSE)","v":{"$error":"#N/A"}},{"$f":"VLOOKUP(Table_Data_Table_135[[#This Row],[Item ID]],Analysis_Table,18,FALSE)","v":{"$error":"#N/A"}},{"$f":"VLOOKUP(Table_Data_Table_135[[#This Row],[Item ID]],Analysis_Table,19,FALSE)","v":{"$error":"#N/A"}},null,null,1]
["",null,{"$f":"VLOOKUP(Table_Data_Table_135[[#This Row],[Item ID]],Analysis_Table,20,FALSE)","v":{"$error":"#N/A"}},null,null,null,null,null,null,null,0,null,null,null,{"$f":"VLOOKUP(Table_Data_Table_135[[#This Row],[Item ID]],Analysis_Table,8,FALSE)","v":{"$error":"#N/A"}},{"$f":"VLOOKUP(Table_Data_Table_135[[#This Row],[Item ID]],Analysis_Table,9,FALSE)","v":{"$error":"#N/A"}},{"$f":"VLOOKUP(Table_Data_Table_135[[#This Row],[Item ID]],Analysis_Table,10,FALSE)","v":{"$error":"#N/A"}},{"$f":"VLOOKUP(Table_Data_Table_135[[#This Row],[Item ID]],Analysis_Table,11,FALSE)","v":{"$error":"#N/A"}},{"$f":"VLOOKUP(Table_Data_Table_135[[#This Row],[Item ID]],Analysis_Table,12,FALSE)","v":{"$error":"#N/A"}},{"$f":"VLOOKUP(Table_Data_Table_135[[#This Row],[Item ID]],Analysis_Table,13,FALSE)","v":{"$error":"#N/A"}},{"$f":"VLOOKUP(Table_Data_Table_135[[#This Row],[Item ID]],Analysis_Table,14,FALSE)","v":{"$error":"#N/A"}},{"$f":"VLOOKUP(Table_Data_Table_135[[#This Row],[Item ID]],Analysis_Table,15,FALSE)","v":{"$error":"#N/A"}},{"$f":"VLOOKUP(Table_Data_Table_135[[#This Row],[Item ID]],Analysis_Table,16,FALSE)","v":{"$error":"#N/A"}},{"$f":"VLOOKUP(Table_Data_Table_135[[#This Row],[Item ID]],Analysis_Table,17,FALSE)","v":{"$error":"#N/A"}},{"$f":"VLOOKUP(Table_Data_Table_135[[#This Row],[Item ID]],Analysis_Table,18,FALSE)","v":{"$error":"#N/A"}},{"$f":"VLOOKUP(Table_Data_Table_135[[#This Row],[Item ID]],Analysis_Table,19,FALSE)","v":{"$error":"#N/A"}},null,null,1]
["",null,{"$f":"VLOOKUP(Table_Data_Table_135[[#This Row],[Item ID]],Analysis_Table,20,FALSE)","v":{"$error":"#N/A"}},null,null,null,null,null,null,null,0,null,null,null,{"$f":"VLOOKUP(Table_Data_Table_135[[#This Row],[Item ID]],Analysis_Table,8,FALSE)","v":{"$error":"#N/A"}},{"$f":"VLOOKUP(Table_Data_Table_135[[#This Row],[Item ID]],Analysis_Table,9,FALSE)","v":{"$error":"#N/A"}},{"$f":"VLOOKUP(Table_Data_Table_135[[#This Row],[Item ID]],Analysis_Table,10,FALSE)","v":{"$error":"#N/A"}},{"$f":"VLOOKUP(Table_Data_Table_135[[#This Row],[Item ID]],Analysis_Table,11,FALSE)","v":{"$error":"#N/A"}},{"$f":"VLOOKUP(Table_Data_Table_135[[#This Row],[Item ID]],Analysis_Table,12,FALSE)","v":{"$error":"#N/A"}},{"$f":"VLOOKUP(Table_Data_Table_135[[#This Row],[Item ID]],Analysis_Table,13,FALSE)","v":{"$error":"#N/A"}},{"$f":"VLOOKUP(Table_Data_Table_135[[#This Row],[Item ID]],Analysis_Table,14,FALSE)","v":{"$error":"#N/A"}},{"$f":"VLOOKUP(Table_Data_Table_135[[#This Row],[Item ID]],Analysis_Table,15,FALSE)","v":{"$error":"#N/A"}},{"$f":"VLOOKUP(Table_Data_Table_135[[#This Row],[Item ID]],Analysis_Table,16,FALSE)","v":{"$error":"#N/A"}},{"$f":"VLOOKUP(Table_Data_Table_135[[#This Row],[Item ID]],Analysis_Table,17,FALSE)","v":{"$error":"#N/A"}},{"$f":"VLOOKUP(Table_Data_Table_135[[#This Row],[Item ID]],Analysis_Table,18,FALSE)","v":{"$error":"#N/A"}},{"$f":"VLOOKUP(Table_Data_Table_135[[#This Row],[Item ID]],Analysis_Table,19,FALSE)","v":{"$error":"#N/A"}},null,null,1]
["",null,{"$f":"VLOOKUP(Table_Data_Table_135[[#This Row],[Item ID]],Analysis_Table,20,FALSE)","v":{"$error":"#N/A"}},null,null,null,null,null,null,null,0,null,null,null,{"$f":"VLOOKUP(Table_Data_Table_135[[#This Row],[Item ID]],Analysis_Table,8,FALSE)","v":{"$error":"#N/A"}},{"$f":"VLOOKUP(Table_Data_Table_135[[#This Row],[Item ID]],Analysis_Table,9,FALSE)","v":{"$error":"#N/A"}},{"$f":"VLOOKUP(Table_Data_Table_135[[#This Row],[Item ID]],Analysis_Table,10,FALSE)","v":{"$error":"#N/A"}},{"$f":"VLOOKUP(Table_Data_Table_135[[#This Row],[Item ID]],Analysis_Table,11,FALSE)","v":{"$error":"#N/A"}},{"$f":"VLOOKUP(Table_Data_Table_135[[#This Row],[Item ID]],Analysis_Table,12,FALSE)","v":{"$error":"#N/A"}},{"$f":"VLOOKUP(Table_Data_Table_135[[#This Row],[Item ID]],Analysis_Table,13,FALSE)","v":{"$error":"#N/A"}},{"$f":"VLOOKUP(Table_Data_Table_135[[#This Row],[Item ID]],Analysis_Table,14,FALSE)","v":{"$error":"#N/A"}},{"$f":"VLOOKUP(Table_Data_Table_135[[#This Row],[Item ID]],Analysis_Table,15,FALSE)","v":{"$error":"#N/A"}},{"$f":"VLOOKUP(Table_Data_Table_135[[#This Row],[Item ID]],Analysis_Table,16,FALSE)","v":{"$error":"#N/A"}},{"$f":"VLOOKUP(Table_Data_Table_135[[#This Row],[Item ID]],Analysis_Table,17,FALSE)","v":{"$error":"#N/A"}},{"$f":"VLOOKUP(Table_Data_Table_135[[#This Row],[Item ID]],Analysis_Table,18,FALSE)","v":{"$error":"#N/A"}},{"$f":"VLOOKUP(Table_Data_Table_135[[#This Row],[Item ID]],Analysis_Table,19,FALSE)","v":{"$error":"#N/A"}},null,null,1]
["",null,{"$f":"VLOOKUP(Table_Data_Table_135[[#This Row],[Item ID]],Analysis_Table,20,FALSE)","v":{"$error":"#N/A"}},null,null,null,null,null,null,null,0,null,null,null,{"$f":"VLOOKUP(Table_Data_Table_135[[#This Row],[Item ID]],Analysis_Table,8,FALSE)","v":{"$error":"#N/A"}},{"$f":"VLOOKUP(Table_Data_Table_135[[#This Row],[Item ID]],Analysis_Table,9,FALSE)","v":{"$error":"#N/A"}},{"$f":"VLOOKUP(Table_Data_Table_135[[#This Row],[Item ID]],Analysis_Table,10,FALSE)","v":{"$error":"#N/A"}},{"$f":"VLOOKUP(Table_Data_Table_135[[#This Row],[Item ID]],Analysis_Table,11,FALSE)","v":{"$error":"#N/A"}},{"$f":"VLOOKUP(Table_Data_Table_135[[#This Row],[Item ID]],Analysis_Table,12,FALSE)","v":{"$error":"#N/A"}},{"$f":"VLOOKUP(Table_Data_Table_135[[#This Row],[Item ID]],Analysis_Table,13,FALSE)","v":{"$error":"#N/A"}},{"$f":"VLOOKUP(Table_Data_Table_135[[#This Row],[Item ID]],Analysis_Table,14,FALSE)","v":{"$error":"#N/A"}},{"$f":"VLOOKUP(Table_Data_Table_135[[#This Row],[Item ID]],Analysis_Table,15,FALSE)","v":{"$error":"#N/A"}},{"$f":"VLOOKUP(Table_Data_Table_135[[#This Row],[Item ID]],Analysis_Table,16,FALSE)","v":{"$error":"#N/A"}},{"$f":"VLOOKUP(Table_Data_Table_135[[#This Row],[Item ID]],Analysis_Table,17,FALSE)","v":{"$error":"#N/A"}},{"$f":"VLOOKUP(Table_Data_Table_135[[#This Row],[Item ID]],Analysis_Table,18,FALSE)","v":{"$error":"#N/A"}},{"$f":"VLOOKUP(Table_Data_Table_135[[#This Row],[Item ID]],Analysis_Table,19,FALSE)","v":{"$error":"#N/A"}},null,null,1]
["",null,{"$f":"VLOOKUP(Table_Data_Table_135[[#This Row],[Item ID]],Analysis_Table,20,FALSE)","v":{"$error":"#N/A"}},null,null,null,null,null,null,null,0,null,null,null,{"$f":"VLOOKUP(Table_Data_Table_135[[#This Row],[Item ID]],Analysis_Table,8,FALSE)","v":{"$error":"#N/A"}},{"$f":"VLOOKUP(Table_Data_Table_135[[#This Row],[Item ID]],Analysis_Table,9,FALSE)","v":{"$error":"#N/A"}},{"$f":"VLOOKUP(Table_Data_Table_135[[#This Row],[Item ID]],Analysis_Table,10,FALSE)","v":{"$error":"#N/A"}},{"$f":"VLOOKUP(Table_Data_Table_135[[#This Row],[Item ID]],Analysis_Table,11,FALSE)","v":{"$error":"#N/A"}},{"$f":"VLOOKUP(Table_Data_Table_135[[#This Row],[Item ID]],Analysis_Table,12,FALSE)","v":{"$error":"#N/A"}},{"$f":"VLOOKUP(Table_Data_Table_135[[#This Row],[Item ID]],Analysis_Table,13,FALSE)","v":{"$error":"#N/A"}},{"$f":"VLOOKUP(Table_Data_Table_135[[#This Row],[Item ID]],Analysis_Table,14,FALSE)","v":{"$error":"#N/A"}},{"$f":"VLOOKUP(Table_Data_Table_135[[#This Row],[Item ID]],Analysis_Table,15,FALSE)","v":{"$error":"#N/A"}},{"$f":"VLOOKUP(Table_Data_Table_135[[#This Row],[Item ID]],Analysis_Table,16,FALSE)","v":{"$error":"#N/A"}},{"$f":"VLOOKUP(Table_Data_Table_135[[#This Row],[Item ID]],Analysis_Table,17,FALSE)","v":{"$error":"#N/A"}},{"$f":"VLOOKUP(Table_Data_Table_135[[#This Row],[Item ID]],Analysis_Table,18,FALSE)","v":{"$error":"#N/A"}},{"$f":"VLOOKUP(Table_Data_Table_135[[#This Row],[Item ID]],Analysis_Table,19,FALSE)","v":{"$error":"#N/A"}},null,null,1]
["",null,{"$f":"VLOOKUP(Table_Data_Table_135[[#This Row],[Item ID]],Analysis_Table,20,FALSE)","v":{"$error":"#N/A"}},null,null,null,null,null,null,null,0,null,null,null,{"$f":"VLOOKUP(Table_Data_Table_135[[#This Row],[Item ID]],Analysis_Table,8,FALSE)","v":{"$error":"#N/A"}},{"$f":"VLOOKUP(Table_Data_Table_135[[#This Row],[Item ID]],Analysis_Table,9,FALSE)","v":{"$error":"#N/A"}},{"$f":"VLOOKUP(Table_Data_Table_135[[#This Row],[Item ID]],Analysis_Table,10,FALSE)","v":{"$error":"#N/A"}},{"$f":"VLOOKUP(Table_Data_Table_135[[#This Row],[Item ID]],Analysis_Table,11,FALSE)","v":{"$error":"#N/A"}},{"$f":"VLOOKUP(Table_Data_Table_135[[#This Row],[Item ID]],Analysis_Table,12,FALSE)","v":{"$error":"#N/A"}},{"$f":"VLOOKUP(Table_Data_Table_135[[#This Row],[Item ID]],Analysis_Table,13,FALSE)","v":{"$error":"#N/A"}},{"$f":"VLOOKUP(Table_Data_Table_135[[#This Row],[Item ID]],Analysis_Table,14,FALSE)","v":{"$error":"#N/A"}},{"$f":"VLOOKUP(Table_Data_Table_135[[#This Row],[Item ID]],Analysis_Table,15,FALSE)","v":{"$error":"#N/A"}},{"$f":"VLOOKUP(Table_Data_Table_135[[#This Row],[Item ID]],Analysis_Table,16,FALSE)","v":{"$error":"#N/A"}},{"$f":"VLOOKUP(Table_Data_Table_135[[#This Row],[Item ID]],Analysis_Table,17,FALSE)","v":{"$error":"#N/A"}},{"$f":"VLOOKUP(Table_Data_Table_135[[#This Row],[Item ID]],Analysis_Table,18,FALSE)","v":{"$error":"#N/A"}},{"$f":"VLOOKUP(Table_Data_Table_135[[#This Row],[Item ID]],Analysis_Table,19,FALSE)","v":{"$error":"#N/A"}},null,null,1]
["",null,{"$f":"VLOOKUP(Table_Data_Table_135[[#This Row],[Item ID]],Analysis_Table,20,FALSE)","v":{"$error":"#N/A"}},null,null,null,null,null,null,null,0,null,null,null,{"$f":"VLOOKUP(Table_Data_Table_135[[#This Row],[Item ID]],Analysis_Table,8,FALSE)","v":{"$error":"#N/A"}},{"$f":"VLOOKUP(Table_Data_Table_135[[#This Row],[Item ID]],Analysis_Table,9,FALSE)","v":{"$error":"#N/A"}},{"$f":"VLOOKUP(Table_Data_Table_135[[#This Row],[Item ID]],Analysis_Table,10,FALSE)","v":{"$error":"#N/A"}},{"$f":"VLOOKUP(Table_Data_Table_135[[#This Row],[Item ID]],Analysis_Table,11,FALSE)","v":{"$error":"#N/A"}},{"$f":"VLOOKUP(Table_Data_Table_135[[#This Row],[Item ID]],Analysis_Table,12,FALSE)","v":{"$error":"#N/A"}},{"$f":"VLOOKUP(Table_Data_Table_135[[#This Row],[Item ID]],Analysis_Table,13,FALSE)","v":{"$error":"#N/A"}},{"$f":"VLOOKUP(Table_Data_Table_135[[#This Row],[Item ID]],Analysis_Table,14,FALSE)","v":{"$error":"#N/A"}},{"$f":"VLOOKUP(Table_Data_Table_135[[#This Row],[Item ID]],Analysis_Table,15,FALSE)","v":{"$error":"#N/A"}},{"$f":"VLOOKUP(Table_Data_Table_135[[#This Row],[Item ID]],Analysis_Table,16,FALSE)","v":{"$error":"#N/A"}},{"$f":"VLOOKUP(Table_Data_Table_135[[#This Row],[Item ID]],Analysis_Table,17,FALSE)","v":{"$error":"#N/A"}},{"$f":"VLOOKUP(Table_Data_Table_135[[#This Row],[Item ID]],Analysis_Table,18,FALSE)","v":{"$error":"#N/A"}},{"$f":"VLOOKUP(Table_Data_Table_135[[#This Row],[Item ID]],Analysis_Table,19,FALSE)","v":{"$error":"#N/A"}},null,null,1]
["",null,{"$f":"VLOOKUP(Table_Data_Table_135[[#This Row],[Item ID]],Analysis_Table,20,FALSE)","v":{"$error":"#N/A"}},null,null,null,null,null,null,null,0,null,null,null,{"$f":"VLOOKUP(Table_Data_Table_135[[#This Row],[Item ID]],Analysis_Table,8,FALSE)","v":{"$error":"#N/A"}},{"$f":"VLOOKUP(Table_Data_Table_135[[#This Row],[Item ID]],Analysis_Table,9,FALSE)","v":{"$error":"#N/A"}},{"$f":"VLOOKUP(Table_Data_Table_135[[#This Row],[Item ID]],Analysis_Table,10,FALSE)","v":{"$error":"#N/A"}},{"$f":"VLOOKUP(Table_Data_Table_135[[#This Row],[Item ID]],Analysis_Table,11,FALSE)","v":{"$error":"#N/A"}},{"$f":"VLOOKUP(Table_Data_Table_135[[#This Row],[Item ID]],Analysis_Table,12,FALSE)","v":{"$error":"#N/A"}},{"$f":"VLOOKUP(Table_Data_Table_135[[#This Row],[Item ID]],Analysis_Table,13,FALSE)","v":{"$error":"#N/A"}},{"$f":"VLOOKUP(Table_Data_Table_135[[#This Row],[Item ID]],Analysis_Table,14,FALSE)","v":{"$error":"#N/A"}},{"$f":"VLOOKUP(Table_Data_Table_135[[#This Row],[Item ID]],Analysis_Table,15,FALSE)","v":{"$error":"#N/A"}},{"$f":"VLOOKUP(Table_Data_Table_135[[#This Row],[Item ID]],Analysis_Table,16,FALSE)","v":{"$error":"#N/A"}},{"$f":"VLOOKUP(Table_Data_Table_135[[#This Row],[Item ID]],Analysis_Table,17,FALSE)","v":{"$error":"#N/A"}},{"$f":"VLOOKUP(Table_Data_Table_135[[#This Row],[Item ID]],Analysis_Table,18,FALSE)","v":{"$error":"#N/A"}},{"$f":"VLOOKUP(Table_Data_Table_135[[#This Row],[Item ID]],Analysis_Table,19,FALSE)","v":{"$error":"#N/A"}},null,null,1]
["",null,{"$f":"VLOOKUP(Table_Data_Table_135[[#This Row],[Item ID]],Analysis_Table,20,FALSE)","v":{"$error":"#N/A"}},null,null,null,null,null,null,null,0,null,null,null,{"$f":"VLOOKUP(Table_Data_Table_135[[#This Row],[Item ID]],Analysis_Table,8,FALSE)","v":{"$error":"#N/A"}},{"$f":"VLOOKUP(Table_Data_Table_135[[#This Row],[Item ID]],Analysis_Table,9,FALSE)","v":{"$error":"#N/A"}},{"$f":"VLOOKUP(Table_Data_Table_135[[#This Row],[Item ID]],Analysis_Table,10,FALSE)","v":{"$error":"#N/A"}},{"$f":"VLOOKUP(Table_Data_Table_135[[#This Row],[Item ID]],Analysis_Table,11,FALSE)","v":{"$error":"#N/A"}},{"$f":"VLOOKUP(Table_Data_Table_135[[#This Row],[Item ID]],Analysis_Table,12,FALSE)","v":{"$error":"#N/A"}},{"$f":"VLOOKUP(Table_Data_Table_135[[#This Row],[Item ID]],Analysis_Table,13,FALSE)","v":{"$error":"#N/A"}},{"$f":"VLOOKUP(Table_Data_Table_135[[#This Row],[Item ID]],Analysis_Table,14,FALSE)","v":{"$error":"#N/A"}},{"$f":"VLOOKUP(Table_Data_Table_135[[#This Row],[Item ID]],Analysis_Table,15,FALSE)","v":{"$error":"#N/A"}},{"$f":"VLOOKUP(Table_Data_Table_135[[#This Row],[Item ID]],Analysis_Table,16,FALSE)","v":{"$error":"#N/A"}},{"$f":"VLOOKUP(Table_Data_Table_135[[#This Row],[Item ID]],Analysis_Table,17,FALSE)","v":{"$error":"#N/A"}},{"$f":"VLOOKUP(Table_Data_Table_135[[#This Row],[Item ID]],Analysis_Table,18,FALSE)","v":{"$error":"#N/A"}},{"$f":"VLOOKUP(Table_Data_Table_135[[#This Row],[Item ID]],Analysis_Table,19,FALSE)","v":{"$error":"#N/A"}},null,null,1]
["",null,{"$f":"VLOOKUP(Table_Data_Table_135[[#This Row],[Item ID]],Analysis_Table,20,FALSE)","v":{"$error":"#N/A"}},null,null,null,null,null,null,null,0,null,null,null,{"$f":"VLOOKUP(Table_Data_Table_135[[#This Row],[Item ID]],Analysis_Table,8,FALSE)","v":{"$error":"#N/A"}},{"$f":"VLOOKUP(Table_Data_Table_135[[#This Row],[Item ID]],Analysis_Table,9,FALSE)","v":{"$error":"#N/A"}},{"$f":"VLOOKUP(Table_Data_Table_135[[#This Row],[Item ID]],Analysis_Table,10,FALSE)","v":{"$error":"#N/A"}},{"$f":"VLOOKUP(Table_Data_Table_135[[#This Row],[Item ID]],Analysis_Table,11,FALSE)","v":{"$error":"#N/A"}},{"$f":"VLOOKUP(Table_Data_Table_135[[#This Row],[Item ID]],Analysis_Table,12,FALSE)","v":{"$error":"#N/A"}},{"$f":"VLOOKUP(Table_Data_Table_135[[#This Row],[Item ID]],Analysis_Table,13,FALSE)","v":{"$error":"#N/A"}},{"$f":"VLOOKUP(Table_Data_Table_135[[#This Row],[Item ID]],Analysis_Table,14,FALSE)","v":{"$error":"#N/A"}},{"$f":"VLOOKUP(Table_Data_Table_135[[#This Row],[Item ID]],Analysis_Table,15,FALSE)","v":{"$error":"#N/A"}},{"$f":"VLOOKUP(Table_Data_Table_135[[#This Row],[Item ID]],Analysis_Table,16,FALSE)","v":{"$error":"#N/A"}},{"$f":"VLOOKUP(Table_Data_Table_135[[#This Row],[Item ID]],Analysis_Table,17,FALSE)","v":{"$error":"#N/A"}},{"$f":"VLOOKUP(Table_Data_Table_135[[#This Row],[Item ID]],Analysis_Table,18,FALSE)","v":{"$error":"#N/A"}},{"$f":"VLOOKUP(Table_Data_Table_135[[#This Row],[Item ID]],Analysis_Table,19,FALSE)","v":{"$error":"#N/A"}},null,null,1]
["",null,{"$f":"VLOOKUP(Table_Data_Table_135[[#This Row],[Item ID]],Analysis_Table,20,FALSE)","v":{"$error":"#N/A"}},null,null,null,null,null,null,null,0,null,null,null,{"$f":"VLOOKUP(Table_Data_Table_135[[#This Row],[Item ID]],Analysis_Table,8,FALSE)","v":{"$error":"#N/A"}},{"$f":"VLOOKUP(Table_Data_Table_135[[#This Row],[Item ID]],Analysis_Table,9,FALSE)","v":{"$error":"#N/A"}},{"$f":"VLOOKUP(Table_Data_Table_135[[#This Row],[Item ID]],Analysis_Table,10,FALSE)","v":{"$error":"#N/A"}},{"$f":"VLOOKUP(Table_Data_Table_135[[#This Row],[Item ID]],Analysis_Table,11,FALSE)","v":{"$error":"#N/A"}},{"$f":"VLOOKUP(Table_Data_Table_135[[#This Row],[Item ID]],Analysis_Table,12,FALSE)","v":{"$error":"#N/A"}},{"$f":"VLOOKUP(Table_Data_Table_135[[#This Row],[Item ID]],Analysis_Table,13,FALSE)","v":{"$error":"#N/A"}},{"$f":"VLOOKUP(Table_Data_Table_135[[#This Row],[Item ID]],Analysis_Table,14,FALSE)","v":{"$error":"#N/A"}},{"$f":"VLOOKUP(Table_Data_Table_135[[#This Row],[Item ID]],Analysis_Table,15,FALSE)","v":{"$error":"#N/A"}},{"$f":"VLOOKUP(Table_Data_Table_135[[#This Row],[Item ID]],Analysis_Table,16,FALSE)","v":{"$error":"#N/A"}},{"$f":"VLOOKUP(Table_Data_Table_135[[#This Row],[Item ID]],Analysis_Table,17,FALSE)","v":{"$error":"#N/A"}},{"$f":"VLOOKUP(Table_Data_Table_135[[#This Row],[Item ID]],Analysis_Table,18,FALSE)","v":{"$error":"#N/A"}},{"$f":"VLOOKUP(Table_Data_Table_135[[#This Row],[Item ID]],Analysis_Table,19,FALSE)","v":{"$error":"#N/A"}},null,null,1]
["",null,{"$f":"VLOOKUP(Table_Data_Table_135[[#This Row],[Item ID]],Analysis_Table,20,FALSE)","v":{"$error":"#N/A"}},null,null,null,null,null,null,null,0,null,null,null,{"$f":"VLOOKUP(Table_Data_Table_135[[#This Row],[Item ID]],Analysis_Table,8,FALSE)","v":{"$error":"#N/A"}},{"$f":"VLOOKUP(Table_Data_Table_135[[#This Row],[Item ID]],Analysis_Table,9,FALSE)","v":{"$error":"#N/A"}},{"$f":"VLOOKUP(Table_Data_Table_135[[#This Row],[Item ID]],Analysis_Table,10,FALSE)","v":{"$error":"#N/A"}},{"$f":"VLOOKUP(Table_Data_Table_135[[#This Row],[Item ID]],Analysis_Table,11,FALSE)","v":{"$error":"#N/A"}},{"$f":"VLOOKUP(Table_Data_Table_135[[#This Row],[Item ID]],Analysis_Table,12,FALSE)","v":{"$error":"#N/A"}},{"$f":"VLOOKUP(Table_Data_Table_135[[#This Row],[Item ID]],Analysis_Table,13,FALSE)","v":{"$error":"#N/A"}},{"$f":"VLOOKUP(Table_Data_Table_135[[#This Row],[Item ID]],Analysis_Table,14,FALSE)","v":{"$error":"#N/A"}},{"$f":"VLOOKUP(Table_Data_Table_135[[#This Row],[Item ID]],Analysis_Table,15,FALSE)","v":{"$error":"#N/A"}},{"$f":"VLOOKUP(Table_Data_Table_135[[#This Row],[Item ID]],Analysis_Table,16,FALSE)","v":{"$error":"#N/A"}},{"$f":"VLOOKUP(Table_Data_Table_135[[#This Row],[Item ID]],Analysis_Table,17,FALSE)","v":{"$error":"#N/A"}},{"$f":"VLOOKUP(Table_Data_Table_135[[#This Row],[Item ID]],Analysis_Table,18,FALSE)","v":{"$error":"#N/A"}},{"$f":"VLOOKUP(Table_Data_Table_135[[#This Row],[Item ID]],Analysis_Table,19,FALSE)","v":{"$error":"#N/A"}},null,null,1]
["",null,{"$f":"VLOOKUP(Table_Data_Table_135[[#This Row],[Item ID]],Analysis_Table,20,FALSE)","v":{"$error":"#N/A"}},null,null,null,null,null,null,null,0,null,null,null,{"$f":"VLOOKUP(Table_Data_Table_135[[#This Row],[Item ID]],Analysis_Table,8,FALSE)","v":{"$error":"#N/A"}},{"$f":"VLOOKUP(Table_Data_Table_135[[#This Row],[Item ID]],Analysis_Table,9,FALSE)","v":{"$error":"#N/A"}},{"$f":"VLOOKUP(Table_Data_Table_135[[#This Row],[Item ID]],Analysis_Table,10,FALSE)","v":{"$error":"#N/A"}},{"$f":"VLOOKUP(Table_Data_Table_135[[#This Row],[Item ID]],Analysis_Table,11,FALSE)","v":{"$error":"#N/A"}},{"$f":"VLOOKUP(Table_Data_Table_135[[#This Row],[Item ID]],Analysis_Table,12,FALSE)","v":{"$error":"#N/A"}},{"$f":"VLOOKUP(Table_Data_Table_135[[#This Row],[Item ID]],Analysis_Table,13,FALSE)","v":{"$error":"#N/A"}},{"$f":"VLOOKUP(Table_Data_Table_135[[#This Row],[Item ID]],Analysis_Table,14,FALSE)","v":{"$error":"#N/A"}},{"$f":"VLOOKUP(Table_Data_Table_135[[#This Row],[Item ID]],Analysis_Table,15,FALSE)","v":{"$error":"#N/A"}},{"$f":"VLOOKUP(Table_Data_Table_135[[#This Row],[Item ID]],Analysis_Table,16,FALSE)","v":{"$error":"#N/A"}},{"$f":"VLOOKUP(Table_Data_Table_135[[#This Row],[Item ID]],Analysis_Table,17,FALSE)","v":{"$error":"#N/A"}},{"$f":"VLOOKUP(Table_Data_Table_135[[#This Row],[Item ID]],Analysis_Table,18,FALSE)","v":{"$error":"#N/A"}},{"$f":"VLOOKUP(Table_Data_Table_135[[#This Row],[Item ID]],Analysis_Table,19,FALSE)","v":{"$error":"#N/A"}},null,null,1]
["",null,{"$f":"VLOOKUP(Table_Data_Table_135[[#This Row],[Item ID]],Analysis_Table,20,FALSE)","v":{"$error":"#N/A"}},null,null,null,null,null,null,null,0,null,null,null,{"$f":"VLOOKUP(Table_Data_Table_135[[#This Row],[Item ID]],Analysis_Table,8,FALSE)","v":{"$error":"#N/A"}},{"$f":"VLOOKUP(Table_Data_Table_135[[#This Row],[Item ID]],Analysis_Table,9,FALSE)","v":{"$error":"#N/A"}},{"$f":"VLOOKUP(Table_Data_Table_135[[#This Row],[Item ID]],Analysis_Table,10,FALSE)","v":{"$error":"#N/A"}},{"$f":"VLOOKUP(Table_Data_Table_135[[#This Row],[Item ID]],Analysis_Table,11,FALSE)","v":{"$error":"#N/A"}},{"$f":"VLOOKUP(Table_Data_Table_135[[#This Row],[Item ID]],Analysis_Table,12,FALSE)","v":{"$error":"#N/A"}},{"$f":"VLOOKUP(Table_Data_Table_135[[#This Row],[Item ID]],Analysis_Table,13,FALSE)","v":{"$error":"#N/A"}},{"$f":"VLOOKUP(Table_Data_Table_135[[#This Row],[Item ID]],Analysis_Table,14,FALSE)","v":{"$error":"#N/A"}},{"$f":"VLOOKUP(Table_Data_Table_135[[#This Row],[Item ID]],Analysis_Table,15,FALSE)","v":{"$error":"#N/A"}},{"$f":"VLOOKUP(Table_Data_Table_135[[#This Row],[Item ID]],Analysis_Table,16,FALSE)","v":{"$error":"#N/A"}},{"$f":"VLOOKUP(Table_Data_Table_135[[#This Row],[Item ID]],Analysis_Table,17,FALSE)","v":{"$error":"#N/A"}},{"$f":"VLOOKUP(Table_Data_Table_135[[#This Row],[Item ID]],Analysis_Table,18,FALSE)","v":{"$error":"#N/A"}},{"$f":"VLOOKUP(Table_Data_Table_135[[#This Row],[Item ID]],Analysis_Table,19,FALSE)","v":{"$error":"#N/A"}},null,null,1]
["",null,{"$f":"VLOOKUP(Table_Data_Table_135[[#This Row],[Item ID]],Analysis_Table,20,FALSE)","v":{"$error":"#N/A"}},null,null,null,null,null,null,null,0,null,null,null,{"$f":"VLOOKUP(Table_Data_Table_135[[#This Row],[Item ID]],Analysis_Table,8,FALSE)","v":{"$error":"#N/A"}},{"$f":"VLOOKUP(Table_Data_Table_135[[#This Row],[Item ID]],Analysis_Table,9,FALSE)","v":{"$error":"#N/A"}},{"$f":"VLOOKUP(Table_Data_Table_135[[#This Row],[Item ID]],Analysis_Table,10,FALSE)","v":{"$error":"#N/A"}},{"$f":"VLOOKUP(Table_Data_Table_135[[#This Row],[Item ID]],Analysis_Table,11,FALSE)","v":{"$error":"#N/A"}},{"$f":"VLOOKUP(Table_Data_Table_135[[#This Row],[Item ID]],Analysis_Table,12,FALSE)","v":{"$error":"#N/A"}},{"$f":"VLOOKUP(Table_Data_Table_135[[#This Row],[Item ID]],Analysis_Table,13,FALSE)","v":{"$error":"#N/A"}},{"$f":"VLOOKUP(Table_Data_Table_135[[#This Row],[Item ID]],Analysis_Table,14,FALSE)","v":{"$error":"#N/A"}},{"$f":"VLOOKUP(Table_Data_Table_135[[#This Row],[Item ID]],Analysis_Table,15,FALSE)","v":{"$error":"#N/A"}},{"$f":"VLOOKUP(Table_Data_Table_135[[#This Row],[Item ID]],Analysis_Table,16,FALSE)","v":{"$error":"#N/A"}},{"$f":"VLOOKUP(Table_Data_Table_135[[#This Row],[Item ID]],Analysis_Table,17,FALSE)","v":{"$error":"#N/A"}},{"$f":"VLOOKUP(Table_Data_Table_135[[#This Row],[Item ID]],Analysis_Table,18,FALSE)","v":{"$error":"#N/A"}},{"$f":"VLOOKUP(Table_Data_Table_135[[#This Row],[Item ID]],Analysis_Table,19,FALSE)","v":{"$error":"#N/A"}},null,null,1]
["",null,{"$f":"VLOOKUP(Table_Data_Table_135[[#This Row],[Item ID]],Analysis_Table,20,FALSE)","v":{"$error":"#N/A"}},null,null,null,null,null,null,null,0,null,null,null,{"$f":"VLOOKUP(Table_Data_Table_135[[#This Row],[Item ID]],Analysis_Table,8,FALSE)","v":{"$error":"#N/A"}},{"$f":"VLOOKUP(Table_Data_Table_135[[#This Row],[Item ID]],Analysis_Table,9,FALSE)","v":{"$error":"#N/A"}},{"$f":"VLOOKUP(Table_Data_Table_135[[#This Row],[Item ID]],Analysis_Table,10,FALSE)","v":{"$error":"#N/A"}},{"$f":"VLOOKUP(Table_Data_Table_135[[#This Row],[Item ID]],Analysis_Table,11,FALSE)","v":{"$error":"#N/A"}},{"$f":"VLOOKUP(Table_Data_Table_135[[#This Row],[Item ID]],Analysis_Table,12,FALSE)","v":{"$error":"#N/A"}},{"$f":"VLOOKUP(Table_Data_Table_135[[#This Row],[Item ID]],Analysis_Table,13,FALSE)","v":{"$error":"#N/A"}},{"$f":"VLOOKUP(Table_Data_Table_135[[#This Row],[Item ID]],Analysis_Table,14,FALSE)","v":{"$error":"#N/A"}},{"$f":"VLOOKUP(Table_Data_Table_135[[#This Row],[Item ID]],Analysis_Table,15,FALSE)","v":{"$error":"#N/A"}},{"$f":"VLOOKUP(Table_Data_Table_135[[#This Row],[Item ID]],Analysis_Table,16,FALSE)","v":{"$error":"#N/A"}},{"$f":"VLOOKUP(Table_Data_Table_135[[#This Row],[Item ID]],Analysis_Table,17,FALSE)","v":{"$error":"#N/A"}},{"$f":"VLOOKUP(Table_Data_Table_135[[#This Row],[Item ID]],Analysis_Table,18,FALSE)","v":{"$error":"#N/A"}},{"$f":"VLOOKUP(Table_Data_Table_135[[#This Row],[Item ID]],Analysis_Table,19,FALSE)","v":{"$error":"#N/A"}},null,null,1]
["",null,{"$f":"VLOOKUP(Table_Data_Table_135[[#This Row],[Item ID]],Analysis_Table,20,FALSE)","v":{"$error":"#N/A"}},null,null,null,null,null,null,null,0,null,null,null,{"$f":"VLOOKUP(Table_Data_Table_135[[#This Row],[Item ID]],Analysis_Table,8,FALSE)","v":{"$error":"#N/A"}},{"$f":"VLOOKUP(Table_Data_Table_135[[#This Row],[Item ID]],Analysis_Table,9,FALSE)","v":{"$error":"#N/A"}},{"$f":"VLOOKUP(Table_Data_Table_135[[#This Row],[Item ID]],Analysis_Table,10,FALSE)","v":{"$error":"#N/A"}},{"$f":"VLOOKUP(Table_Data_Table_135[[#This Row],[Item ID]],Analysis_Table,11,FALSE)","v":{"$error":"#N/A"}},{"$f":"VLOOKUP(Table_Data_Table_135[[#This Row],[Item ID]],Analysis_Table,12,FALSE)","v":{"$error":"#N/A"}},{"$f":"VLOOKUP(Table_Data_Table_135[[#This Row],[Item ID]],Analysis_Table,13,FALSE)","v":{"$error":"#N/A"}},{"$f":"VLOOKUP(Table_Data_Table_135[[#This Row],[Item ID]],Analysis_Table,14,FALSE)","v":{"$error":"#N/A"}},{"$f":"VLOOKUP(Table_Data_Table_135[[#This Row],[Item ID]],Analysis_Table,15,FALSE)","v":{"$error":"#N/A"}},{"$f":"VLOOKUP(Table_Data_Table_135[[#This Row],[Item ID]],Analysis_Table,16,FALSE)","v":{"$error":"#N/A"}},{"$f":"VLOOKUP(Table_Data_Table_135[[#This Row],[Item ID]],Analysis_Table,17,FALSE)","v":{"$error":"#N/A"}},{"$f":"VLOOKUP(Table_Data_Table_135[[#This Row],[Item ID]],Analysis_Table,18,FALSE)","v":{"$error":"#N/A"}},{"$f":"VLOOKUP(Table_Data_Table_135[[#This Row],[Item ID]],Analysis_Table,19,FALSE)","v":{"$error":"#N/A"}},null,null,1]
["",null,{"$f":"VLOOKUP(Table_Data_Table_135[[#This Row],[Item ID]],Analysis_Table,20,FALSE)","v":{"$error":"#N/A"}},null,null,null,null,null,null,null,0,null,null,null,{"$f":"VLOOKUP(Table_Data_Table_135[[#This Row],[Item ID]],Analysis_Table,8,FALSE)","v":{"$error":"#N/A"}},{"$f":"VLOOKUP(Table_Data_Table_135[[#This Row],[Item ID]],Analysis_Table,9,FALSE)","v":{"$error":"#N/A"}},{"$f":"VLOOKUP(Table_Data_Table_135[[#This Row],[Item ID]],Analysis_Table,10,FALSE)","v":{"$error":"#N/A"}},{"$f":"VLOOKUP(Table_Data_Table_135[[#This Row],[Item ID]],Analysis_Table,11,FALSE)","v":{"$error":"#N/A"}},{"$f":"VLOOKUP(Table_Data_Table_135[[#This Row],[Item ID]],Analysis_Table,12,FALSE)","v":{"$error":"#N/A"}},{"$f":"VLOOKUP(Table_Data_Table_135[[#This Row],[Item ID]],Analysis_Table,13,FALSE)","v":{"$error":"#N/A"}},{"$f":"VLOOKUP(Table_Data_Table_135[[#This Row],[Item ID]],Analysis_Table,14,FALSE)","v":{"$error":"#N/A"}},{"$f":"VLOOKUP(Table_Data_Table_135[[#This Row],[Item ID]],Analysis_Table,15,FALSE)","v":{"$error":"#N/A"}},{"$f":"VLOOKUP(Table_Data_Table_135[[#This Row],[Item ID]],Analysis_Table,16,FALSE)","v":{"$error":"#N/A"}},{"$f":"VLOOKUP(Table_Data_Table_135[[#This Row],[Item ID]],Analysis_Table,17,FALSE)","v":{"$error":"#N/A"}},{"$f":"VLOOKUP(Table_Data_Table_135[[#This Row],[Item ID]],Analysis_Table,18,FALSE)","v":{"$error":"#N/A"}},{"$f":"VLOOKUP(Table_Data_Table_135[[#This Row],[Item ID]],Analysis_Table,19,FALSE)","v":{"$error":"#N/A"}},null,null,1]
["",null,{"$f":"VLOOKUP(Table_Data_Table_135[[#This Row],[Item ID]],Analysis_Table,20,FALSE)","v":{"$error":"#N/A"}},null,null,null,null,null,null,null,0,null,null,null,{"$f":"VLOOKUP(Table_Data_Table_135[[#This Row],[Item ID]],Analysis_Table,8,FALSE)","v":{"$error":"#N/A"}},{"$f":"VLOOKUP(Table_Data_Table_135[[#This Row],[Item ID]],Analysis_Table,9,FALSE)","v":{"$error":"#N/A"}},{"$f":"VLOOKUP(Table_Data_Table_135[[#This Row],[Item ID]],Analysis_Table,10,FALSE)","v":{"$error":"#N/A"}},{"$f":"VLOOKUP(Table_Data_Table_135[[#This Row],[Item ID]],Analysis_Table,11,FALSE)","v":{"$error":"#N/A"}},{"$f":"VLOOKUP(Table_Data_Table_135[[#This Row],[Item ID]],Analysis_Table,12,FALSE)","v":{"$error":"#N/A"}},{"$f":"VLOOKUP(Table_Data_Table_135[[#This Row],[Item ID]],Analysis_Table,13,FALSE)","v":{"$error":"#N/A"}},{"$f":"VLOOKUP(Table_Data_Table_135[[#This Row],[Item ID]],Analysis_Table,14,FALSE)","v":{"$error":"#N/A"}},{"$f":"VLOOKUP(Table_Data_Table_135[[#This Row],[Item ID]],Analysis_Table,15,FALSE)","v":{"$error":"#N/A"}},{"$f":"VLOOKUP(Table_Data_Table_135[[#This Row],[Item ID]],Analysis_Table,16,FALSE)","v":{"$error":"#N/A"}},{"$f":"VLOOKUP(Table_Data_Table_135[[#This Row],[Item ID]],Analysis_Table,17,FALSE)","v":{"$error":"#N/A"}},{"$f":"VLOOKUP(Table_Data_Table_135[[#This Row],[Item ID]],Analysis_Table,18,FALSE)","v":{"$error":"#N/A"}},{"$f":"VLOOKUP(Table_Data_Table_135[[#This Row],[Item ID]],Analysis_Table,19,FALSE)","v":{"$error":"#N/A"}},null,null,1]
["",null,{"$f":"VLOOKUP(Table_Data_Table_135[[#This Row],[Item ID]],Analysis_Table,20,FALSE)","v":{"$error":"#N/A"}},null,null,null,null,null,null,null,0,null,null,null,{"$f":"VLOOKUP(Table_Data_Table_135[[#This Row],[Item ID]],Analysis_Table,8,FALSE)","v":{"$error":"#N/A"}},{"$f":"VLOOKUP(Table_Data_Table_135[[#This Row],[Item ID]],Analysis_Table,9,FALSE)","v":{"$error":"#N/A"}},{"$f":"VLOOKUP(Table_Data_Table_135[[#This Row],[Item ID]],Analysis_Table,10,FALSE)","v":{"$error":"#N/A"}},{"$f":"VLOOKUP(Table_Data_Table_135[[#This Row],[Item ID]],Analysis_Table,11,FALSE)","v":{"$error":"#N/A"}},{"$f":"VLOOKUP(Table_Data_Table_135[[#This Row],[Item ID]],Analysis_Table,12,FALSE)","v":{"$error":"#N/A"}},{"$f":"VLOOKUP(Table_Data_Table_135[[#This Row],[Item ID]],Analysis_Table,13,FALSE)","v":{"$error":"#N/A"}},{"$f":"VLOOKUP(Table_Data_Table_135[[#This Row],[Item ID]],Analysis_Table,14,FALSE)","v":{"$error":"#N/A"}},{"$f":"VLOOKUP(Table_Data_Table_135[[#This Row],[Item ID]],Analysis_Table,15,FALSE)","v":{"$error":"#N/A"}},{"$f":"VLOOKUP(Table_Data_Table_135[[#This Row],[Item ID]],Analysis_Table,16,FALSE)","v":{"$error":"#N/A"}},{"$f":"VLOOKUP(Table_Data_Table_135[[#This Row],[Item ID]],Analysis_Table,17,FALSE)","v":{"$error":"#N/A"}},{"$f":"VLOOKUP(Table_Data_Table_135[[#This Row],[Item ID]],Analysis_Table,18,FALSE)","v":{"$error":"#N/A"}},{"$f":"VLOOKUP(Table_Data_Table_135[[#This Row],[Item ID]],Analysis_Table,19,FALSE)","v":{"$error":"#N/A"}},null,null,1]
["",null,{"$f":"VLOOKUP(Table_Data_Table_135[[#This Row],[Item ID]],Analysis_Table,20,FALSE)","v":{"$error":"#N/A"}},null,null,null,null,null,null,null,0,null,null,null,{"$f":"VLOOKUP(Table_Data_Table_135[[#This Row],[Item ID]],Analysis_Table,8,FALSE)","v":{"$error":"#N/A"}},{"$f":"VLOOKUP(Table_Data_Table_135[[#This Row],[Item ID]],Analysis_Table,9,FALSE)","v":{"$error":"#N/A"}},{"$f":"VLOOKUP(Table_Data_Table_135[[#This Row],[Item ID]],Analysis_Table,10,FALSE)","v":{"$error":"#N/A"}},{"$f":"VLOOKUP(Table_Data_Table_135[[#This Row],[Item ID]],Analysis_Table,11,FALSE)","v":{"$error":"#N/A"}},{"$f":"VLOOKUP(Table_Data_Table_135[[#This Row],[Item ID]],Analysis_Table,12,FALSE)","v":{"$error":"#N/A"}},{"$f":"VLOOKUP(Table_Data_Table_135[[#This Row],[Item ID]],Analysis_Table,13,FALSE)","v":{"$error":"#N/A"}},{"$f":"VLOOKUP(Table_Data_Table_135[[#This Row],[Item ID]],Analysis_Table,14,FALSE)","v":{"$error":"#N/A"}},{"$f":"VLOOKUP(Table_Data_Table_135[[#This Row],[Item ID]],Analysis_Table,15,FALSE)","v":{"$error":"#N/A"}},{"$f":"VLOOKUP(Table_Data_Table_135[[#This Row],[Item ID]],Analysis_Table,16,FALSE)","v":{"$error":"#N/A"}},{"$f":"VLOOKUP(Table_Data_Table_135[[#This Row],[Item ID]],Analysis_Table,17,FALSE)","v":{"$error":"#N/A"}},{"$f":"VLOOKUP(Table_Data_Table_135[[#This Row],[Item ID]],Analysis_Table,18,FALSE)","v":{"$error":"#N/A"}},{"$f":"VLOOKUP(Table_Data_Table_135[[#This Row],[Item ID]],Analysis_Table,19,FALSE)","v":{"$error":"#N/A"}},null,null,1]
["",null,{"$f":"VLOOKUP(Table_Data_Table_135[[#This Row],[Item ID]],Analysis_Table,20,FALSE)","v":{"$error":"#N/A"}},null,null,null,null,null,null,null,0,null,null,null,{"$f":"VLOOKUP(Table_Data_Table_135[[#This Row],[Item ID]],Analysis_Table,8,FALSE)","v":{"$error":"#N/A"}},{"$f":"VLOOKUP(Table_Data_Table_135[[#This Row],[Item ID]],Analysis_Table,9,FALSE)","v":{"$error":"#N/A"}},{"$f":"VLOOKUP(Table_Data_Table_135[[#This Row],[Item ID]],Analysis_Table,10,FALSE)","v":{"$error":"#N/A"}},{"$f":"VLOOKUP(Table_Data_Table_135[[#This Row],[Item ID]],Analysis_Table,11,FALSE)","v":{"$error":"#N/A"}},{"$f":"VLOOKUP(Table_Data_Table_135[[#This Row],[Item ID]],Analysis_Table,12,FALSE)","v":{"$error":"#N/A"}},{"$f":"VLOOKUP(Table_Data_Table_135[[#This Row],[Item ID]],Analysis_Table,13,FALSE)","v":{"$error":"#N/A"}},{"$f":"VLOOKUP(Table_Data_Table_135[[#This Row],[Item ID]],Analysis_Table,14,FALSE)","v":{"$error":"#N/A"}},{"$f":"VLOOKUP(Table_Data_Table_135[[#This Row],[Item ID]],Analysis_Table,15,FALSE)","v":{"$error":"#N/A"}},{"$f":"VLOOKUP(Table_Data_Table_135[[#This Row],[Item ID]],Analysis_Table,16,FALSE)","v":{"$error":"#N/A"}},{"$f":"VLOOKUP(Table_Data_Table_135[[#This Row],[Item ID]],Analysis_Table,17,FALSE)","v":{"$error":"#N/A"}},{"$f":"VLOOKUP(Table_Data_Table_135[[#This Row],[Item ID]],Analysis_Table,18,FALSE)","v":{"$error":"#N/A"}},{"$f":"VLOOKUP(Table_Data_Table_135[[#This Row],[Item ID]],Analysis_Table,19,FALSE)","v":{"$error":"#N/A"}},null,null,1]
["",null,{"$f":"VLOOKUP(Table_Data_Table_135[[#This Row],[Item ID]],Analysis_Table,20,FALSE)","v":{"$error":"#N/A"}},null,null,null,null,null,null,null,0,null,null,null,{"$f":"VLOOKUP(Table_Data_Table_135[[#This Row],[Item ID]],Analysis_Table,8,FALSE)","v":{"$error":"#N/A"}},{"$f":"VLOOKUP(Table_Data_Table_135[[#This Row],[Item ID]],Analysis_Table,9,FALSE)","v":{"$error":"#N/A"}},{"$f":"VLOOKUP(Table_Data_Table_135[[#This Row],[Item ID]],Analysis_Table,10,FALSE)","v":{"$error":"#N/A"}},{"$f":"VLOOKUP(Table_Data_Table_135[[#This Row],[Item ID]],Analysis_Table,11,FALSE)","v":{"$error":"#N/A"}},{"$f":"VLOOKUP(Table_Data_Table_135[[#This Row],[Item ID]],Analysis_Table,12,FALSE)","v":{"$error":"#N/A"}},{"$f":"VLOOKUP(Table_Data_Table_135[[#This Row],[Item ID]],Analysis_Table,13,FALSE)","v":{"$error":"#N/A"}},{"$f":"VLOOKUP(Table_Data_Table_135[[#This Row],[Item ID]],Analysis_Table,14,FALSE)","v":{"$error":"#N/A"}},{"$f":"VLOOKUP(Table_Data_Table_135[[#This Row],[Item ID]],Analysis_Table,15,FALSE)","v":{"$error":"#N/A"}},{"$f":"VLOOKUP(Table_Data_Table_135[[#This Row],[Item ID]],Analysis_Table,16,FALSE)","v":{"$error":"#N/A"}},{"$f":"VLOOKUP(Table_Data_Table_135[[#This Row],[Item ID]],Analysis_Table,17,FALSE)","v":{"$error":"#N/A"}},{"$f":"VLOOKUP(Table_Data_Table_135[[#This Row],[Item ID]],Analysis_Table,18,FALSE)","v":{"$error":"#N/A"}},{"$f":"VLOOKUP(Table_Data_Table_135[[#This Row],[Item ID]],Analysis_Table,19,FALSE)","v":{"$error":"#N/A"}},null,null,1]
["",null,{"$f":"VLOOKUP(Table_Data_Table_135[[#This Row],[Item ID]],Analysis_Table,20,FALSE)","v":{"$error":"#N/A"}},null,null,null,null,null,null,null,0,null,null,null,{"$f":"VLOOKUP(Table_Data_Table_135[[#This Row],[Item ID]],Analysis_Table,8,FALSE)","v":{"$error":"#N/A"}},{"$f":"VLOOKUP(Table_Data_Table_135[[#This Row],[Item ID]],Analysis_Table,9,FALSE)","v":{"$error":"#N/A"}},{"$f":"VLOOKUP(Table_Data_Table_135[[#This Row],[Item ID]],Analysis_Table,10,FALSE)","v":{"$error":"#N/A"}},{"$f":"VLOOKUP(Table_Data_Table_135[[#This Row],[Item ID]],Analysis_Table,11,FALSE)","v":{"$error":"#N/A"}},{"$f":"VLOOKUP(Table_Data_Table_135[[#This Row],[Item ID]],Analysis_Table,12,FALSE)","v":{"$error":"#N/A"}},{"$f":"VLOOKUP(Table_Data_Table_135[[#This Row],[Item ID]],Analysis_Table,13,FALSE)","v":{"$error":"#N/A"}},{"$f":"VLOOKUP(Table_Data_Table_135[[#This Row],[Item ID]],Analysis_Table,14,FALSE)","v":{"$error":"#N/A"}},{"$f":"VLOOKUP(Table_Data_Table_135[[#This Row],[Item ID]],Analysis_Table,15,FALSE)","v":{"$error":"#N/A"}},{"$f":"VLOOKUP(Table_Data_Table_135[[#This Row],[Item ID]],Analysis_Table,16,FALSE)","v":{"$error":"#N/A"}},{"$f":"VLOOKUP(Table_Data_Table_135[[#This Row],[Item ID]],Analysis_Table,17,FALSE)","v":{"$error":"#N/A"}},{"$f":"VLOOKUP(Table_Data_Table_135[[#This Row],[Item ID]],Analysis_Table,18,FALSE)","v":{"$error":"#N/A"}},{"$f":"VLOOKUP(Table_Data_Table_135[[#This Row],[Item ID]],Analysis_Table,19,FALSE)","v":{"$error":"#N/A"}},null,null,1]
["",null,{"$f":"VLOOKUP(Table_Data_Table_135[[#This Row],[Item ID]],Analysis_Table,20,FALSE)","v":{"$error":"#N/A"}},null,null,null,null,null,null,null,0,null,null,null,{"$f":"VLOOKUP(Table_Data_Table_135[[#This Row],[Item ID]],Analysis_Table,8,FALSE)","v":{"$error":"#N/A"}},{"$f":"VLOOKUP(Table_Data_Table_135[[#This Row],[Item ID]],Analysis_Table,9,FALSE)","v":{"$error":"#N/A"}},{"$f":"VLOOKUP(Table_Data_Table_135[[#This Row],[Item ID]],Analysis_Table,10,FALSE)","v":{"$error":"#N/A"}},{"$f":"VLOOKUP(Table_Data_Table_135[[#This Row],[Item ID]],Analysis_Table,11,FALSE)","v":{"$error":"#N/A"}},{"$f":"VLOOKUP(Table_Data_Table_135[[#This Row],[Item ID]],Analysis_Table,12,FALSE)","v":{"$error":"#N/A"}},{"$f":"VLOOKUP(Table_Data_Table_135[[#This Row],[Item ID]],Analysis_Table,13,FALSE)","v":{"$error":"#N/A"}},{"$f":"VLOOKUP(Table_Data_Table_135[[#This Row],[Item ID]],Analysis_Table,14,FALSE)","v":{"$error":"#N/A"}},{"$f":"VLOOKUP(Table_Data_Table_135[[#This Row],[Item ID]],Analysis_Table,15,FALSE)","v":{"$error":"#N/A"}},{"$f":"VLOOKUP(Table_Data_Table_135[[#This Row],[Item ID]],Analysis_Table,16,FALSE)","v":{"$error":"#N/A"}},{"$f":"VLOOKUP(Table_Data_Table_135[[#This Row],[Item ID]],Analysis_Table,17,FALSE)","v":{"$error":"#N/A"}},{"$f":"VLOOKUP(Table_Data_Table_135[[#This Row],[Item ID]],Analysis_Table,18,FALSE)","v":{"$error":"#N/A"}},{"$f":"VLOOKUP(Table_Data_Table_135[[#This Row],[Item ID]],Analysis_Table,19,FALSE)","v":{"$error":"#N/A"}},null,null,1]
["",null,{"$f":"VLOOKUP(Table_Data_Table_135[[#This Row],[Item ID]],Analysis_Table,20,FALSE)","v":{"$error":"#N/A"}},null,null,null,null,null,null,null,0,null,null,null,{"$f":"VLOOKUP(Table_Data_Table_135[[#This Row],[Item ID]],Analysis_Table,8,FALSE)","v":{"$error":"#N/A"}},{"$f":"VLOOKUP(Table_Data_Table_135[[#This Row],[Item ID]],Analysis_Table,9,FALSE)","v":{"$error":"#N/A"}},{"$f":"VLOOKUP(Table_Data_Table_135[[#This Row],[Item ID]],Analysis_Table,10,FALSE)","v":{"$error":"#N/A"}},{"$f":"VLOOKUP(Table_Data_Table_135[[#This Row],[Item ID]],Analysis_Table,11,FALSE)","v":{"$error":"#N/A"}},{"$f":"VLOOKUP(Table_Data_Table_135[[#This Row],[Item ID]],Analysis_Table,12,FALSE)","v":{"$error":"#N/A"}},{"$f":"VLOOKUP(Table_Data_Table_135[[#This Row],[Item ID]],Analysis_Table,13,FALSE)","v":{"$error":"#N/A"}},{"$f":"VLOOKUP(Table_Data_Table_135[[#This Row],[Item ID]],Analysis_Table,14,FALSE)","v":{"$error":"#N/A"}},{"$f":"VLOOKUP(Table_Data_Table_135[[#This Row],[Item ID]],Analysis_Table,15,FALSE)","v":{"$error":"#N/A"}},{"$f":"VLOOKUP(Table_Data_Table_135[[#This Row],[Item ID]],Analysis_Table,16,FALSE)","v":{"$error":"#N/A"}},{"$f":"VLOOKUP(Table_Data_Table_135[[#This Row],[Item ID]],Analysis_Table,17,FALSE)","v":{"$error":"#N/A"}},{"$f":"VLOOKUP(Table_Data_Table_135[[#This Row],[Item ID]],Analysis_Table,18,FALSE)","v":{"$error":"#N/A"}},{"$f":"VLOOKUP(Table_Data_Table_135[[#This Row],[Item ID]],Analysis_Table,19,FALSE)","v":{"$error":"#N/A"}},null,null,1]
["",null,{"$f":"VLOOKUP(Table_Data_Table_135[[#This Row],[Item ID]],Analysis_Table,20,FALSE)","v":{"$error":"#N/A"}},null,null,null,null,null,null,null,0,null,null,null,{"$f":"VLOOKUP(Table_Data_Table_135[[#This Row],[Item ID]],Analysis_Table,8,FALSE)","v":{"$error":"#N/A"}},{"$f":"VLOOKUP(Table_Data_Table_135[[#This Row],[Item ID]],Analysis_Table,9,FALSE)","v":{"$error":"#N/A"}},{"$f":"VLOOKUP(Table_Data_Table_135[[#This Row],[Item ID]],Analysis_Table,10,FALSE)","v":{"$error":"#N/A"}},{"$f":"VLOOKUP(Table_Data_Table_135[[#This Row],[Item ID]],Analysis_Table,11,FALSE)","v":{"$error":"#N/A"}},{"$f":"VLOOKUP(Table_Data_Table_135[[#This Row],[Item ID]],Analysis_Table,12,FALSE)","v":{"$error":"#N/A"}},{"$f":"VLOOKUP(Table_Data_Table_135[[#This Row],[Item ID]],Analysis_Table,13,FALSE)","v":{"$error":"#N/A"}},{"$f":"VLOOKUP(Table_Data_Table_135[[#This Row],[Item ID]],Analysis_Table,14,FALSE)","v":{"$error":"#N/A"}},{"$f":"VLOOKUP(Table_Data_Table_135[[#This Row],[Item ID]],Analysis_Table,15,FALSE)","v":{"$error":"#N/A"}},{"$f":"VLOOKUP(Table_Data_Table_135[[#This Row],[Item ID]],Analysis_Table,16,FALSE)","v":{"$error":"#N/A"}},{"$f":"VLOOKUP(Table_Data_Table_135[[#This Row],[Item ID]],Analysis_Table,17,FALSE)","v":{"$error":"#N/A"}},{"$f":"VLOOKUP(Table_Data_Table_135[[#This Row],[Item ID]],Analysis_Table,18,FALSE)","v":{"$error":"#N/A"}},{"$f":"VLOOKUP(Table_Data_Table_135[[#This Row],[Item ID]],Analysis_Table,19,FALSE)","v":{"$error":"#N/A"}},null,null,1]
["",null,{"$f":"VLOOKUP(Table_Data_Table_135[[#This Row],[Item ID]],Analysis_Table,20,FALSE)","v":{"$error":"#N/A"}},null,null,null,null,null,null,null,0,null,null,null,{"$f":"VLOOKUP(Table_Data_Table_135[[#This Row],[Item ID]],Analysis_Table,8,FALSE)","v":{"$error":"#N/A"}},{"$f":"VLOOKUP(Table_Data_Table_135[[#This Row],[Item ID]],Analysis_Table,9,FALSE)","v":{"$error":"#N/A"}},{"$f":"VLOOKUP(Table_Data_Table_135[[#This Row],[Item ID]],Analysis_Table,10,FALSE)","v":{"$error":"#N/A"}},{"$f":"VLOOKUP(Table_Data_Table_135[[#This Row],[Item ID]],Analysis_Table,11,FALSE)","v":{"$error":"#N/A"}},{"$f":"VLOOKUP(Table_Data_Table_135[[#This Row],[Item ID]],Analysis_Table,12,FALSE)","v":{"$error":"#N/A"}},{"$f":"VLOOKUP(Table_Data_Table_135[[#This Row],[Item ID]],Analysis_Table,13,FALSE)","v":{"$error":"#N/A"}},{"$f":"VLOOKUP(Table_Data_Table_135[[#This Row],[Item ID]],Analysis_Table,14,FALSE)","v":{"$error":"#N/A"}},{"$f":"VLOOKUP(Table_Data_Table_135[[#This Row],[Item ID]],Analysis_Table,15,FALSE)","v":{"$error":"#N/A"}},{"$f":"VLOOKUP(Table_Data_Table_135[[#This Row],[Item ID]],Analysis_Table,16,FALSE)","v":{"$error":"#N/A"}},{"$f":"VLOOKUP(Table_Data_Table_135[[#This Row],[Item ID]],Analysis_Table,17,FALSE)","v":{"$error":"#N/A"}},{"$f":"VLOOKUP(Table_Data_Table_135[[#This Row],[Item ID]],Analysis_Table,18,FALSE)","v":{"$error":"#N/A"}},{"$f":"VLOOKUP(Table_Data_Table_135[[#This Row],[Item ID]],Analysis_Table,19,FALSE)","v":{"$error":"#N/A"}},null,null,1]
["",null,{"$f":"VLOOKUP(Table_Data_Table_135[[#This Row],[Item ID]],Analysis_Table,20,FALSE)","v":{"$error":"#N/A"}},null,null,null,null,null,null,null,0,null,null,null,{"$f":"VLOOKUP(Table_Data_Table_135[[#This Row],[Item ID]],Analysis_Table,8,FALSE)","v":{"$error":"#N/A"}},{"$f":"VLOOKUP(Table_Data_Table_135[[#This Row],[Item ID]],Analysis_Table,9,FALSE)","v":{"$error":"#N/A"}},{"$f":"VLOOKUP(Table_Data_Table_135[[#This Row],[Item ID]],Analysis_Table,10,FALSE)","v":{"$error":"#N/A"}},{"$f":"VLOOKUP(Table_Data_Table_135[[#This Row],[Item ID]],Analysis_Table,11,FALSE)","v":{"$error":"#N/A"}},{"$f":"VLOOKUP(Table_Data_Table_135[[#This Row],[Item ID]],Analysis_Table,12,FALSE)","v":{"$error":"#N/A"}},{"$f":"VLOOKUP(Table_Data_Table_135[[#This Row],[Item ID]],Analysis_Table,13,FALSE)","v":{"$error":"#N/A"}},{"$f":"VLOOKUP(Table_Data_Table_135[[#This Row],[Item ID]],Analysis_Table,14,FALSE)","v":{"$error":"#N/A"}},{"$f":"VLOOKUP(Table_Data_Table_135[[#This Row],[Item ID]],Analysis_Table,15,FALSE)","v":{"$error":"#N/A"}},{"$f":"VLOOKUP(Table_Data_Table_135[[#This Row],[Item ID]],Analysis_Table,16,FALSE)","v":{"$error":"#N/A"}},{"$f":"VLOOKUP(Table_Data_Table_135[[#This Row],[Item ID]],Analysis_Table,17,FALSE)","v":{"$error":"#N/A"}},{"$f":"VLOOKUP(Table_Data_Table_135[[#This Row],[Item ID]],Analysis_Table,18,FALSE)","v":{"$error":"#N/A"}},{"$f":"VLOOKUP(Table_Data_Table_135[[#This Row],[Item ID]],Analysis_Table,19,FALSE)","v":{"$error":"#N/A"}},null,null,1]
["",null,{"$f":"VLOOKUP(Table_Data_Table_135[[#This Row],[Item ID]],Analysis_Table,20,FALSE)","v":{"$error":"#N/A"}},null,null,null,null,null,null,null,0,null,null,null,{"$f":"VLOOKUP(Table_Data_Table_135[[#This Row],[Item ID]],Analysis_Table,8,FALSE)","v":{"$error":"#N/A"}},{"$f":"VLOOKUP(Table_Data_Table_135[[#This Row],[Item ID]],Analysis_Table,9,FALSE)","v":{"$error":"#N/A"}},{"$f":"VLOOKUP(Table_Data_Table_135[[#This Row],[Item ID]],Analysis_Table,10,FALSE)","v":{"$error":"#N/A"}},{"$f":"VLOOKUP(Table_Data_Table_135[[#This Row],[Item ID]],Analysis_Table,11,FALSE)","v":{"$error":"#N/A"}},{"$f":"VLOOKUP(Table_Data_Table_135[[#This Row],[Item ID]],Analysis_Table,12,FALSE)","v":{"$error":"#N/A"}},{"$f":"VLOOKUP(Table_Data_Table_135[[#This Row],[Item ID]],Analysis_Table,13,FALSE)","v":{"$error":"#N/A"}},{"$f":"VLOOKUP(Table_Data_Table_135[[#This Row],[Item ID]],Analysis_Table,14,FALSE)","v":{"$error":"#N/A"}},{"$f":"VLOOKUP(Table_Data_Table_135[[#This Row],[Item ID]],Analysis_Table,15,FALSE)","v":{"$error":"#N/A"}},{"$f":"VLOOKUP(Table_Data_Table_135[[#This Row],[Item ID]],Analysis_Table,16,FALSE)","v":{"$error":"#N/A"}},{"$f":"VLOOKUP(Table_Data_Table_135[[#This Row],[Item ID]],Analysis_Table,17,FALSE)","v":{"$error":"#N/A"}},{"$f":"VLOOKUP(Table_Data_Table_135[[#This Row],[Item ID]],Analysis_Table,18,FALSE)","v":{"$error":"#N/A"}},{"$f":"VLOOKUP(Table_Data_Table_135[[#This Row],[Item ID]],Analysis_Table,19,FALSE)","v":{"$error":"#N/A"}},null,null,1]
["",null,{"$f":"VLOOKUP(Table_Data_Table_135[[#This Row],[Item ID]],Analysis_Table,20,FALSE)","v":{"$error":"#N/A"}},null,null,null,null,null,null,null,0,null,null,null,{"$f":"VLOOKUP(Table_Data_Table_135[[#This Row],[Item ID]],Analysis_Table,8,FALSE)","v":{"$error":"#N/A"}},{"$f":"VLOOKUP(Table_Data_Table_135[[#This Row],[Item ID]],Analysis_Table,9,FALSE)","v":{"$error":"#N/A"}},{"$f":"VLOOKUP(Table_Data_Table_135[[#This Row],[Item ID]],Analysis_Table,10,FALSE)","v":{"$error":"#N/A"}},{"$f":"VLOOKUP(Table_Data_Table_135[[#This Row],[Item ID]],Analysis_Table,11,FALSE)","v":{"$error":"#N/A"}},{"$f":"VLOOKUP(Table_Data_Table_135[[#This Row],[Item ID]],Analysis_Table,12,FALSE)","v":{"$error":"#N/A"}},{"$f":"VLOOKUP(Table_Data_Table_135[[#This Row],[Item ID]],Analysis_Table,13,FALSE)","v":{"$error":"#N/A"}},{"$f":"VLOOKUP(Table_Data_Table_135[[#This Row],[Item ID]],Analysis_Table,14,FALSE)","v":{"$error":"#N/A"}},{"$f":"VLOOKUP(Table_Data_Table_135[[#This Row],[Item ID]],Analysis_Table,15,FALSE)","v":{"$error":"#N/A"}},{"$f":"VLOOKUP(Table_Data_Table_135[[#This Row],[Item ID]],Analysis_Table,16,FALSE)","v":{"$error":"#N/A"}},{"$f":"VLOOKUP(Table_Data_Table_135[[#This Row],[Item ID]],Analysis_Table,17,FALSE)","v":{"$error":"#N/A"}},{"$f":"VLOOKUP(Table_Data_Table_135[[#This Row],[Item ID]],Analysis_Table,18,FALSE)","v":{"$error":"#N/A"}},{"$f":"VLOOKUP(Table_Data_Table_135[[#This Row],[Item ID]],Analysis_Table,19,FALSE)","v":{"$error":"#N/A"}},null,null,1]
["",null,{"$f":"VLOOKUP(Table_Data_Table_135[[#This Row],[Item ID]],Analysis_Table,20,FALSE)","v":{"$error":"#N/A"}},null,null,null,null,null,null,null,0,null,null,null,{"$f":"VLOOKUP(Table_Data_Table_135[[#This Row],[Item ID]],Analysis_Table,8,FALSE)","v":{"$error":"#N/A"}},{"$f":"VLOOKUP(Table_Data_Table_135[[#This Row],[Item ID]],Analysis_Table,9,FALSE)","v":{"$error":"#N/A"}},{"$f":"VLOOKUP(Table_Data_Table_135[[#This Row],[Item ID]],Analysis_Table,10,FALSE)","v":{"$error":"#N/A"}},{"$f":"VLOOKUP(Table_Data_Table_135[[#This Row],[Item ID]],Analysis_Table,11,FALSE)","v":{"$error":"#N/A"}},{"$f":"VLOOKUP(Table_Data_Table_135[[#This Row],[Item ID]],Analysis_Table,12,FALSE)","v":{"$error":"#N/A"}},{"$f":"VLOOKUP(Table_Data_Table_135[[#This Row],[Item ID]],Analysis_Table,13,FALSE)","v":{"$error":"#N/A"}},{"$f":"VLOOKUP(Table_Data_Table_135[[#This Row],[Item ID]],Analysis_Table,14,FALSE)","v":{"$error":"#N/A"}},{"$f":"VLOOKUP(Table_Data_Table_135[[#This Row],[Item ID]],Analysis_Table,15,FALSE)","v":{"$error":"#N/A"}},{"$f":"VLOOKUP(Table_Data_Table_135[[#This Row],[Item ID]],Analysis_Table,16,FALSE)","v":{"$error":"#N/A"}},{"$f":"VLOOKUP(Table_Data_Table_135[[#This Row],[Item ID]],Analysis_Table,17,FALSE)","v":{"$error":"#N/A"}},{"$f":"VLOOKUP(Table_Data_Table_135[[#This Row],[Item ID]],Analysis_Table,18,FALSE)","v":{"$error":"#N/A"}},{"$f":"VLOOKUP(Table_Data_Table_135[[#This Row],[Item ID]],Analysis_Table,19,FALSE)","v":{"$error":"#N/A"}},null,null,1]
["",null,{"$f":"VLOOKUP(Table_Data_Table_135[[#This Row],[Item ID]],Analysis_Table,20,FALSE)","v":{"$error":"#N/A"}},null,null,null,null,null,null,null,0,null,null,null,{"$f":"VLOOKUP(Table_Data_Table_135[[#This Row],[Item ID]],Analysis_Table,8,FALSE)","v":{"$error":"#N/A"}},{"$f":"VLOOKUP(Table_Data_Table_135[[#This Row],[Item ID]],Analysis_Table,9,FALSE)","v":{"$error":"#N/A"}},{"$f":"VLOOKUP(Table_Data_Table_135[[#This Row],[Item ID]],Analysis_Table,10,FALSE)","v":{"$error":"#N/A"}},{"$f":"VLOOKUP(Table_Data_Table_135[[#This Row],[Item ID]],Analysis_Table,11,FALSE)","v":{"$error":"#N/A"}},{"$f":"VLOOKUP(Table_Data_Table_135[[#This Row],[Item ID]],Analysis_Table,12,FALSE)","v":{"$error":"#N/A"}},{"$f":"VLOOKUP(Table_Data_Table_135[[#This Row],[Item ID]],Analysis_Table,13,FALSE)","v":{"$error":"#N/A"}},{"$f":"VLOOKUP(Table_Data_Table_135[[#This Row],[Item ID]],Analysis_Table,14,FALSE)","v":{"$error":"#N/A"}},{"$f":"VLOOKUP(Table_Data_Table_135[[#This Row],[Item ID]],Analysis_Table,15,FALSE)","v":{"$error":"#N/A"}},{"$f":"VLOOKUP(Table_Data_Table_135[[#This Row],[Item ID]],Analysis_Table,16,FALSE)","v":{"$error":"#N/A"}},{"$f":"VLOOKUP(Table_Data_Table_135[[#This Row],[Item ID]],Analysis_Table,17,FALSE)","v":{"$error":"#N/A"}},{"$f":"VLOOKUP(Table_Data_Table_135[[#This Row],[Item ID]],Analysis_Table,18,FALSE)","v":{"$error":"#N/A"}},{"$f":"VLOOKUP(Table_Data_Table_135[[#This Row],[Item ID]],Analysis_Table,19,FALSE)","v":{"$error":"#N/A"}},null,null,1]
["",null,{"$f":"VLOOKUP(Table_Data_Table_135[[#This Row],[Item ID]],Analysis_Table,20,FALSE)","v":{"$error":"#N/A"}},null,null,null,null,null,null,null,0,null,null,null,{"$f":"VLOOKUP(Table_Data_Table_135[[#This Row],[Item ID]],Analysis_Table,8,FALSE)","v":{"$error":"#N/A"}},{"$f":"VLOOKUP(Table_Data_Table_135[[#This Row],[Item ID]],Analysis_Table,9,FALSE)","v":{"$error":"#N/A"}},{"$f":"VLOOKUP(Table_Data_Table_135[[#This Row],[Item ID]],Analysis_Table,10,FALSE)","v":{"$error":"#N/A"}},{"$f":"VLOOKUP(Table_Data_Table_135[[#This Row],[Item ID]],Analysis_Table,11,FALSE)","v":{"$error":"#N/A"}},{"$f":"VLOOKUP(Table_Data_Table_135[[#This Row],[Item ID]],Analysis_Table,12,FALSE)","v":{"$error":"#N/A"}},{"$f":"VLOOKUP(Table_Data_Table_135[[#This Row],[Item ID]],Analysis_Table,13,FALSE)","v":{"$error":"#N/A"}},{"$f":"VLOOKUP(Table_Data_Table_135[[#This Row],[Item ID]],Analysis_Table,14,FALSE)","v":{"$error":"#N/A"}},{"$f":"VLOOKUP(Table_Data_Table_135[[#This Row],[Item ID]],Analysis_Table,15,FALSE)","v":{"$error":"#N/A"}},{"$f":"VLOOKUP(Table_Data_Table_135[[#This Row],[Item ID]],Analysis_Table,16,FALSE)","v":{"$error":"#N/A"}},{"$f":"VLOOKUP(Table_Data_Table_135[[#This Row],[Item ID]],Analysis_Table,17,FALSE)","v":{"$error":"#N/A"}},{"$f":"VLOOKUP(Table_Data_Table_135[[#This Row],[Item ID]],Analysis_Table,18,FALSE)","v":{"$error":"#N/A"}},{"$f":"VLOOKUP(Table_Data_Table_135[[#This Row],[Item ID]],Analysis_Table,19,FALSE)","v":{"$error":"#N/A"}},null,null,1]
["",null,{"$f":"VLOOKUP(Table_Data_Table_135[[#This Row],[Item ID]],Analysis_Table,20,FALSE)","v":{"$error":"#N/A"}},null,null,null,null,null,null,null,0,null,null,null,{"$f":"VLOOKUP(Table_Data_Table_135[[#This Row],[Item ID]],Analysis_Table,8,FALSE)","v":{"$error":"#N/A"}},{"$f":"VLOOKUP(Table_Data_Table_135[[#This Row],[Item ID]],Analysis_Table,9,FALSE)","v":{"$error":"#N/A"}},{"$f":"VLOOKUP(Table_Data_Table_135[[#This Row],[Item ID]],Analysis_Table,10,FALSE)","v":{"$error":"#N/A"}},{"$f":"VLOOKUP(Table_Data_Table_135[[#This Row],[Item ID]],Analysis_Table,11,FALSE)","v":{"$error":"#N/A"}},{"$f":"VLOOKUP(Table_Data_Table_135[[#This Row],[Item ID]],Analysis_Table,12,FALSE)","v":{"$error":"#N/A"}},{"$f":"VLOOKUP(Table_Data_Table_135[[#This Row],[Item ID]],Analysis_Table,13,FALSE)","v":{"$error":"#N/A"}},{"$f":"VLOOKUP(Table_Data_Table_135[[#This Row],[Item ID]],Analysis_Table,14,FALSE)","v":{"$error":"#N/A"}},{"$f":"VLOOKUP(Table_Data_Table_135[[#This Row],[Item ID]],Analysis_Table,15,FALSE)","v":{"$error":"#N/A"}},{"$f":"VLOOKUP(Table_Data_Table_135[[#This Row],[Item ID]],Analysis_Table,16,FALSE)","v":{"$error":"#N/A"}},{"$f":"VLOOKUP(Table_Data_Table_135[[#This Row],[Item ID]],Analysis_Table,17,FALSE)","v":{"$error":"#N/A"}},{"$f":"VLOOKUP(Table_Data_Table_135[[#This Row],[Item ID]],Analysis_Table,18,FALSE)","v":{"$error":"#N/A"}},{"$f":"VLOOKUP(Table_Data_Table_135[[#This Row],[Item ID]],Analysis_Table,19,FALSE)","v":{"$error":"#N/A"}},null,null,1]
["",null,{"$f":"VLOOKUP(Table_Data_Table_135[[#This Row],[Item ID]],Analysis_Table,20,FALSE)","v":{"$error":"#N/A"}},null,null,null,null,null,null,null,0,null,null,null,{"$f":"VLOOKUP(Table_Data_Table_135[[#This Row],[Item ID]],Analysis_Table,8,FALSE)","v":{"$error":"#N/A"}},{"$f":"VLOOKUP(Table_Data_Table_135[[#This Row],[Item ID]],Analysis_Table,9,FALSE)","v":{"$error":"#N/A"}},{"$f":"VLOOKUP(Table_Data_Table_135[[#This Row],[Item ID]],Analysis_Table,10,FALSE)","v":{"$error":"#N/A"}},{"$f":"VLOOKUP(Table_Data_Table_135[[#This Row],[Item ID]],Analysis_Table,11,FALSE)","v":{"$error":"#N/A"}},{"$f":"VLOOKUP(Table_Data_Table_135[[#This Row],[Item ID]],Analysis_Table,12,FALSE)","v":{"$error":"#N/A"}},{"$f":"VLOOKUP(Table_Data_Table_135[[#This Row],[Item ID]],Analysis_Table,13,FALSE)","v":{"$error":"#N/A"}},{"$f":"VLOOKUP(Table_Data_Table_135[[#This Row],[Item ID]],Analysis_Table,14,FALSE)","v":{"$error":"#N/A"}},{"$f":"VLOOKUP(Table_Data_Table_135[[#This Row],[Item ID]],Analysis_Table,15,FALSE)","v":{"$error":"#N/A"}},{"$f":"VLOOKUP(Table_Data_Table_135[[#This Row],[Item ID]],Analysis_Table,16,FALSE)","v":{"$error":"#N/A"}},{"$f":"VLOOKUP(Table_Data_Table_135[[#This Row],[Item ID]],Analysis_Table,17,FALSE)","v":{"$error":"#N/A"}},{"$f":"VLOOKUP(Table_Data_Table_135[[#This Row],[Item ID]],Analysis_Table,18,FALSE)","v":{"$error":"#N/A"}},{"$f":"VLOOKUP(Table_Data_Table_135[[#This Row],[Item ID]],Analysis_Table,19,FALSE)","v":{"$error":"#N/A"}},null,null,1]
["",null,{"$f":"VLOOKUP(Table_Data_Table_135[[#This Row],[Item ID]],Analysis_Table,20,FALSE)","v":{"$error":"#N/A"}},null,null,null,null,null,null,null,0,null,null,null,{"$f":"VLOOKUP(Table_Data_Table_135[[#This Row],[Item ID]],Analysis_Table,8,FALSE)","v":{"$error":"#N/A"}},{"$f":"VLOOKUP(Table_Data_Table_135[[#This Row],[Item ID]],Analysis_Table,9,FALSE)","v":{"$error":"#N/A"}},{"$f":"VLOOKUP(Table_Data_Table_135[[#This Row],[Item ID]],Analysis_Table,10,FALSE)","v":{"$error":"#N/A"}},{"$f":"VLOOKUP(Table_Data_Table_135[[#This Row],[Item ID]],Analysis_Table,11,FALSE)","v":{"$error":"#N/A"}},{"$f":"VLOOKUP(Table_Data_Table_135[[#This Row],[Item ID]],Analysis_Table,12,FALSE)","v":{"$error":"#N/A"}},{"$f":"VLOOKUP(Table_Data_Table_135[[#This Row],[Item ID]],Analysis_Table,13,FALSE)","v":{"$error":"#N/A"}},{"$f":"VLOOKUP(Table_Data_Table_135[[#This Row],[Item ID]],Analysis_Table,14,FALSE)","v":{"$error":"#N/A"}},{"$f":"VLOOKUP(Table_Data_Table_135[[#This Row],[Item ID]],Analysis_Table,15,FALSE)","v":{"$error":"#N/A"}},{"$f":"VLOOKUP(Table_Data_Table_135[[#This Row],[Item ID]],Analysis_Table,16,FALSE)","v":{"$error":"#N/A"}},{"$f":"VLOOKUP(Table_Data_Table_135[[#This Row],[Item ID]],Analysis_Table,17,FALSE)","v":{"$error":"#N/A"}},{"$f":"VLOOKUP(Table_Data_Table_135[[#This Row],[Item ID]],Analysis_Table,18,FALSE)","v":{"$error":"#N/A"}},{"$f":"VLOOKUP(Table_Data_Table_135[[#This Row],[Item ID]],Analysis_Table,19,FALSE)","v":{"$error":"#N/A"}},null,null,1]
["",null,{"$f":"VLOOKUP(Table_Data_Table_135[[#This Row],[Item ID]],Analysis_Table,20,FALSE)","v":{"$error":"#N/A"}},null,null,null,null,null,null,null,0,null,null,null,{"$f":"VLOOKUP(Table_Data_Table_135[[#This Row],[Item ID]],Analysis_Table,8,FALSE)","v":{"$error":"#N/A"}},{"$f":"VLOOKUP(Table_Data_Table_135[[#This Row],[Item ID]],Analysis_Table,9,FALSE)","v":{"$error":"#N/A"}},{"$f":"VLOOKUP(Table_Data_Table_135[[#This Row],[Item ID]],Analysis_Table,10,FALSE)","v":{"$error":"#N/A"}},{"$f":"VLOOKUP(Table_Data_Table_135[[#This Row],[Item ID]],Analysis_Table,11,FALSE)","v":{"$error":"#N/A"}},{"$f":"VLOOKUP(Table_Data_Table_135[[#This Row],[Item ID]],Analysis_Table,12,FALSE)","v":{"$error":"#N/A"}},{"$f":"VLOOKUP(Table_Data_Table_135[[#This Row],[Item ID]],Analysis_Table,13,FALSE)","v":{"$error":"#N/A"}},{"$f":"VLOOKUP(Table_Data_Table_135[[#This Row],[Item ID]],Analysis_Table,14,FALSE)","v":{"$error":"#N/A"}},{"$f":"VLOOKUP(Table_Data_Table_135[[#This Row],[Item ID]],Analysis_Table,15,FALSE)","v":{"$error":"#N/A"}},{"$f":"VLOOKUP(Table_Data_Table_135[[#This Row],[Item ID]],Analysis_Table,16,FALSE)","v":{"$error":"#N/A"}},{"$f":"VLOOKUP(Table_Data_Table_135[[#This Row],[Item ID]],Analysis_Table,17,FALSE)","v":{"$error":"#N/A"}},{"$f":"VLOOKUP(Table_Data_Table_135[[#This Row],[Item ID]],Analysis_Table,18,FALSE)","v":{"$error":"#N/A"}},{"$f":"VLOOKUP(Table_Data_Table_135[[#This Row],[Item ID]],Analysis_Table,19,FALSE)","v":{"$error":"#N/A"}},null,null,1]
["",null,{"$f":"VLOOKUP(Table_Data_Table_135[[#This Row],[Item ID]],Analysis_Table,20,FALSE)","v":{"$error":"#N/A"}},null,null,null,null,null,null,null,0,null,null,null,{"$f":"VLOOKUP(Table_Data_Table_135[[#This Row],[Item ID]],Analysis_Table,8,FALSE)","v":{"$error":"#N/A"}},{"$f":"VLOOKUP(Table_Data_Table_135[[#This Row],[Item ID]],Analysis_Table,9,FALSE)","v":{"$error":"#N/A"}},{"$f":"VLOOKUP(Table_Data_Table_135[[#This Row],[Item ID]],Analysis_Table,10,FALSE)","v":{"$error":"#N/A"}},{"$f":"VLOOKUP(Table_Data_Table_135[[#This Row],[Item ID]],Analysis_Table,11,FALSE)","v":{"$error":"#N/A"}},{"$f":"VLOOKUP(Table_Data_Table_135[[#This Row],[Item ID]],Analysis_Table,12,FALSE)","v":{"$error":"#N/A"}},{"$f":"VLOOKUP(Table_Data_Table_135[[#This Row],[Item ID]],Analysis_Table,13,FALSE)","v":{"$error":"#N/A"}},{"$f":"VLOOKUP(Table_Data_Table_135[[#This Row],[Item ID]],Analysis_Table,14,FALSE)","v":{"$error":"#N/A"}},{"$f":"VLOOKUP(Table_Data_Table_135[[#This Row],[Item ID]],Analysis_Table,15,FALSE)","v":{"$error":"#N/A"}},{"$f":"VLOOKUP(Table_Data_Table_135[[#This Row],[Item ID]],Analysis_Table,16,FALSE)","v":{"$error":"#N/A"}},{"$f":"VLOOKUP(Table_Data_Table_135[[#This Row],[Item ID]],Analysis_Table,17,FALSE)","v":{"$error":"#N/A"}},{"$f":"VLOOKUP(Table_Data_Table_135[[#This Row],[Item ID]],Analysis_Table,18,FALSE)","v":{"$error":"#N/A"}},{"$f":"VLOOKUP(Table_Data_Table_135[[#This Row],[Item ID]],Analysis_Table,19,FALSE)","v":{"$error":"#N/A"}},null,null,1]
["",null,{"$f":"VLOOKUP(Table_Data_Table_135[[#This Row],[Item ID]],Analysis_Table,20,FALSE)","v":{"$error":"#N/A"}},null,null,null,null,null,null,null,0,null,null,null,{"$f":"VLOOKUP(Table_Data_Table_135[[#This Row],[Item ID]],Analysis_Table,8,FALSE)","v":{"$error":"#N/A"}},{"$f":"VLOOKUP(Table_Data_Table_135[[#This Row],[Item ID]],Analysis_Table,9,FALSE)","v":{"$error":"#N/A"}},{"$f":"VLOOKUP(Table_Data_Table_135[[#This Row],[Item ID]],Analysis_Table,10,FALSE)","v":{"$error":"#N/A"}},{"$f":"VLOOKUP(Table_Data_Table_135[[#This Row],[Item ID]],Analysis_Table,11,FALSE)","v":{"$error":"#N/A"}},{"$f":"VLOOKUP(Table_Data_Table_135[[#This Row],[Item ID]],Analysis_Table,12,FALSE)","v":{"$error":"#N/A"}},{"$f":"VLOOKUP(Table_Data_Table_135[[#This Row],[Item ID]],Analysis_Table,13,FALSE)","v":{"$error":"#N/A"}},{"$f":"VLOOKUP(Table_Data_Table_135[[#This Row],[Item ID]],Analysis_Table,14,FALSE)","v":{"$error":"#N/A"}},{"$f":"VLOOKUP(Table_Data_Table_135[[#This Row],[Item ID]],Analysis_Table,15,FALSE)","v":{"$error":"#N/A"}},{"$f":"VLOOKUP(Table_Data_Table_135[[#This Row],[Item ID]],Analysis_Table,16,FALSE)","v":{"$error":"#N/A"}},{"$f":"VLOOKUP(Table_Data_Table_135[[#This Row],[Item ID]],Analysis_Table,17,FALSE)","v":{"$error":"#N/A"}},{"$f":"VLOOKUP(Table_Data_Table_135[[#This Row],[Item ID]],Analysis_Table,18,FALSE)","v":{"$error":"#N/A"}},{"$f":"VLOOKUP(Table_Data_Table_135[[#This Row],[Item ID]],Analysis_Table,19,FALSE)","v":{"$error":"#N/A"}},null,null,1]
["",null,{"$f":"VLOOKUP(Table_Data_Table_135[[#This Row],[Item ID]],Analysis_Table,20,FALSE)","v":{"$error":"#N/A"}},null,null,null,null,null,null,null,0,null,null,null,{"$f":"VLOOKUP(Table_Data_Table_135[[#This Row],[Item ID]],Analysis_Table,8,FALSE)","v":{"$error":"#N/A"}},{"$f":"VLOOKUP(Table_Data_Table_135[[#This Row],[Item ID]],Analysis_Table,9,FALSE)","v":{"$error":"#N/A"}},{"$f":"VLOOKUP(Table_Data_Table_135[[#This Row],[Item ID]],Analysis_Table,10,FALSE)","v":{"$error":"#N/A"}},{"$f":"VLOOKUP(Table_Data_Table_135[[#This Row],[Item ID]],Analysis_Table,11,FALSE)","v":{"$error":"#N/A"}},{"$f":"VLOOKUP(Table_Data_Table_135[[#This Row],[Item ID]],Analysis_Table,12,FALSE)","v":{"$error":"#N/A"}},{"$f":"VLOOKUP(Table_Data_Table_135[[#This Row],[Item ID]],Analysis_Table,13,FALSE)","v":{"$error":"#N/A"}},{"$f":"VLOOKUP(Table_Data_Table_135[[#This Row],[Item ID]],Analysis_Table,14,FALSE)","v":{"$error":"#N/A"}},{"$f":"VLOOKUP(Table_Data_Table_135[[#This Row],[Item ID]],Analysis_Table,15,FALSE)","v":{"$error":"#N/A"}},{"$f":"VLOOKUP(Table_Data_Table_135[[#This Row],[Item ID]],Analysis_Table,16,FALSE)","v":{"$error":"#N/A"}},{"$f":"VLOOKUP(Table_Data_Table_135[[#This Row],[Item ID]],Analysis_Table,17,FALSE)","v":{"$error":"#N/A"}},{"$f":"VLOOKUP(Table_Data_Table_135[[#This Row],[Item ID]],Analysis_Table,18,FALSE)","v":{"$error":"#N/A"}},{"$f":"VLOOKUP(Table_Data_Table_135[[#This Row],[Item ID]],Analysis_Table,19,FALSE)","v":{"$error":"#N/A"}},null,null,1]
["",null,{"$f":"VLOOKUP(Table_Data_Table_135[[#This Row],[Item ID]],Analysis_Table,20,FALSE)","v":{"$error":"#N/A"}},null,null,null,null,null,null,null,0,null,null,null,{"$f":"VLOOKUP(Table_Data_Table_135[[#This Row],[Item ID]],Analysis_Table,8,FALSE)","v":{"$error":"#N/A"}},{"$f":"VLOOKUP(Table_Data_Table_135[[#This Row],[Item ID]],Analysis_Table,9,FALSE)","v":{"$error":"#N/A"}},{"$f":"VLOOKUP(Table_Data_Table_135[[#This Row],[Item ID]],Analysis_Table,10,FALSE)","v":{"$error":"#N/A"}},{"$f":"VLOOKUP(Table_Data_Table_135[[#This Row],[Item ID]],Analysis_Table,11,FALSE)","v":{"$error":"#N/A"}},{"$f":"VLOOKUP(Table_Data_Table_135[[#This Row],[Item ID]],Analysis_Table,12,FALSE)","v":{"$error":"#N/A"}},{"$f":"VLOOKUP(Table_Data_Table_135[[#This Row],[Item ID]],Analysis_Table,13,FALSE)","v":{"$error":"#N/A"}},{"$f":"VLOOKUP(Table_Data_Table_135[[#This Row],[Item ID]],Analysis_Table,14,FALSE)","v":{"$error":"#N/A"}},{"$f":"VLOOKUP(Table_Data_Table_135[[#This Row],[Item ID]],Analysis_Table,15,FALSE)","v":{"$error":"#N/A"}},{"$f":"VLOOKUP(Table_Data_Table_135[[#This Row],[Item ID]],Analysis_Table,16,FALSE)","v":{"$error":"#N/A"}},{"$f":"VLOOKUP(Table_Data_Table_135[[#This Row],[Item ID]],Analysis_Table,17,FALSE)","v":{"$error":"#N/A"}},{"$f":"VLOOKUP(Table_Data_Table_135[[#This Row],[Item ID]],Analysis_Table,18,FALSE)","v":{"$error":"#N/A"}},{"$f":"VLOOKUP(Table_Data_Table_135[[#This Row],[Item ID]],Analysis_Table,19,FALSE)","v":{"$error":"#N/A"}},null,null,1]
["",null,{"$f":"VLOOKUP(Table_Data_Table_135[[#This Row],[Item ID]],Analysis_Table,20,FALSE)","v":{"$error":"#N/A"}},null,null,null,null,null,null,null,0,null,null,null,{"$f":"VLOOKUP(Table_Data_Table_135[[#This Row],[Item ID]],Analysis_Table,8,FALSE)","v":{"$error":"#N/A"}},{"$f":"VLOOKUP(Table_Data_Table_135[[#This Row],[Item ID]],Analysis_Table,9,FALSE)","v":{"$error":"#N/A"}},{"$f":"VLOOKUP(Table_Data_Table_135[[#This Row],[Item ID]],Analysis_Table,10,FALSE)","v":{"$error":"#N/A"}},{"$f":"VLOOKUP(Table_Data_Table_135[[#This Row],[Item ID]],Analysis_Table,11,FALSE)","v":{"$error":"#N/A"}},{"$f":"VLOOKUP(Table_Data_Table_135[[#This Row],[Item ID]],Analysis_Table,12,FALSE)","v":{"$error":"#N/A"}},{"$f":"VLOOKUP(Table_Data_Table_135[[#This Row],[Item ID]],Analysis_Table,13,FALSE)","v":{"$error":"#N/A"}},{"$f":"VLOOKUP(Table_Data_Table_135[[#This Row],[Item ID]],Analysis_Table,14,FALSE)","v":{"$error":"#N/A"}},{"$f":"VLOOKUP(Table_Data_Table_135[[#This Row],[Item ID]],Analysis_Table,15,FALSE)","v":{"$error":"#N/A"}},{"$f":"VLOOKUP(Table_Data_Table_135[[#This Row],[Item ID]],Analysis_Table,16,FALSE)","v":{"$error":"#N/A"}},{"$f":"VLOOKUP(Table_Data_Table_135[[#This Row],[Item ID]],Analysis_Table,17,FALSE)","v":{"$error":"#N/A"}},{"$f":"VLOOKUP(Table_Data_Table_135[[#This Row],[Item ID]],Analysis_Table,18,FALSE)","v":{"$error":"#N/A"}},{"$f":"VLOOKUP(Table_Data_Table_135[[#This Row],[Item ID]],Analysis_Table,19,FALSE)","v":{"$error":"#N/A"}},null,null,1]
["",null,{"$f":"VLOOKUP(Table_Data_Table_135[[#This Row],[Item ID]],Analysis_Table,20,FALSE)","v":{"$error":"#N/A"}},null,null,null,null,null,null,null,0,null,null,null,{"$f":"VLOOKUP(Table_Data_Table_135[[#This Row],[Item ID]],Analysis_Table,8,FALSE)","v":{"$error":"#N/A"}},{"$f":"VLOOKUP(Table_Data_Table_135[[#This Row],[Item ID]],Analysis_Table,9,FALSE)","v":{"$error":"#N/A"}},{"$f":"VLOOKUP(Table_Data_Table_135[[#This Row],[Item ID]],Analysis_Table,10,FALSE)","v":{"$error":"#N/A"}},{"$f":"VLOOKUP(Table_Data_Table_135[[#This Row],[Item ID]],Analysis_Table,11,FALSE)","v":{"$error":"#N/A"}},{"$f":"VLOOKUP(Table_Data_Table_135[[#This Row],[Item ID]],Analysis_Table,12,FALSE)","v":{"$error":"#N/A"}},{"$f":"VLOOKUP(Table_Data_Table_135[[#This Row],[Item ID]],Analysis_Table,13,FALSE)","v":{"$error":"#N/A"}},{"$f":"VLOOKUP(Table_Data_Table_135[[#This Row],[Item ID]],Analysis_Table,14,FALSE)","v":{"$error":"#N/A"}},{"$f":"VLOOKUP(Table_Data_Table_135[[#This Row],[Item ID]],Analysis_Table,15,FALSE)","v":{"$error":"#N/A"}},{"$f":"VLOOKUP(Table_Data_Table_135[[#This Row],[Item ID]],Analysis_Table,16,FALSE)","v":{"$error":"#N/A"}},{"$f":"VLOOKUP(Table_Data_Table_135[[#This Row],[Item ID]],Analysis_Table,17,FALSE)","v":{"$error":"#N/A"}},{"$f":"VLOOKUP(Table_Data_Table_135[[#This Row],[Item ID]],Analysis_Table,18,FALSE)","v":{"$error":"#N/A"}},{"$f":"VLOOKUP(Table_Data_Table_135[[#This Row],[Item ID]],Analysis_Table,19,FALSE)","v":{"$error":"#N/A"}},null,null,1]
["",null,{"$f":"VLOOKUP(Table_Data_Table_135[[#This Row],[Item ID]],Analysis_Table,20,FALSE)","v":{"$error":"#N/A"}},null,null,null,null,null,null,null,0,null,null,null,{"$f":"VLOOKUP(Table_Data_Table_135[[#This Row],[Item ID]],Analysis_Table,8,FALSE)","v":{"$error":"#N/A"}},{"$f":"VLOOKUP(Table_Data_Table_135[[#This Row],[Item ID]],Analysis_Table,9,FALSE)","v":{"$error":"#N/A"}},{"$f":"VLOOKUP(Table_Data_Table_135[[#This Row],[Item ID]],Analysis_Table,10,FALSE)","v":{"$error":"#N/A"}},{"$f":"VLOOKUP(Table_Data_Table_135[[#This Row],[Item ID]],Analysis_Table,11,FALSE)","v":{"$error":"#N/A"}},{"$f":"VLOOKUP(Table_Data_Table_135[[#This Row],[Item ID]],Analysis_Table,12,FALSE)","v":{"$error":"#N/A"}},{"$f":"VLOOKUP(Table_Data_Table_135[[#This Row],[Item ID]],Analysis_Table,13,FALSE)","v":{"$error":"#N/A"}},{"$f":"VLOOKUP(Table_Data_Table_135[[#This Row],[Item ID]],Analysis_Table,14,FALSE)","v":{"$error":"#N/A"}},{"$f":"VLOOKUP(Table_Data_Table_135[[#This Row],[Item ID]],Analysis_Table,15,FALSE)","v":{"$error":"#N/A"}},{"$f":"VLOOKUP(Table_Data_Table_135[[#This Row],[Item ID]],Analysis_Table,16,FALSE)","v":{"$error":"#N/A"}},{"$f":"VLOOKUP(Table_Data_Table_135[[#This Row],[Item ID]],Analysis_Table,17,FALSE)","v":{"$error":"#N/A"}},{"$f":"VLOOKUP(Table_Data_Table_135[[#This Row],[Item ID]],Analysis_Table,18,FALSE)","v":{"$error":"#N/A"}},{"$f":"VLOOKUP(Table_Data_Table_135[[#This Row],[Item ID]],Analysis_Table,19,FALSE)","v":{"$error":"#N/A"}},null,null,1]
["",null,{"$f":"VLOOKUP(Table_Data_Table_135[[#This Row],[Item ID]],Analysis_Table,20,FALSE)","v":{"$error":"#N/A"}},null,null,null,null,null,null,null,0,null,null,null,{"$f":"VLOOKUP(Table_Data_Table_135[[#This Row],[Item ID]],Analysis_Table,8,FALSE)","v":{"$error":"#N/A"}},{"$f":"VLOOKUP(Table_Data_Table_135[[#This Row],[Item ID]],Analysis_Table,9,FALSE)","v":{"$error":"#N/A"}},{"$f":"VLOOKUP(Table_Data_Table_135[[#This Row],[Item ID]],Analysis_Table,10,FALSE)","v":{"$error":"#N/A"}},{"$f":"VLOOKUP(Table_Data_Table_135[[#This Row],[Item ID]],Analysis_Table,11,FALSE)","v":{"$error":"#N/A"}},{"$f":"VLOOKUP(Table_Data_Table_135[[#This Row],[Item ID]],Analysis_Table,12,FALSE)","v":{"$error":"#N/A"}},{"$f":"VLOOKUP(Table_Data_Table_135[[#This Row],[Item ID]],Analysis_Table,13,FALSE)","v":{"$error":"#N/A"}},{"$f":"VLOOKUP(Table_Data_Table_135[[#This Row],[Item ID]],Analysis_Table,14,FALSE)","v":{"$error":"#N/A"}},{"$f":"VLOOKUP(Table_Data_Table_135[[#This Row],[Item ID]],Analysis_Table,15,FALSE)","v":{"$error":"#N/A"}},{"$f":"VLOOKUP(Table_Data_Table_135[[#This Row],[Item ID]],Analysis_Table,16,FALSE)","v":{"$error":"#N/A"}},{"$f":"VLOOKUP(Table_Data_Table_135[[#This Row],[Item ID]],Analysis_Table,17,FALSE)","v":{"$error":"#N/A"}},{"$f":"VLOOKUP(Table_Data_Table_135[[#This Row],[Item ID]],Analysis_Table,18,FALSE)","v":{"$error":"#N/A"}},{"$f":"VLOOKUP(Table_Data_Table_135[[#This Row],[Item ID]],Analysis_Table,19,FALSE)","v":{"$error":"#N/A"}},null,null,1]
["",null,{"$f":"VLOOKUP(Table_Data_Table_135[[#This Row],[Item ID]],Analysis_Table,20,FALSE)","v":{"$error":"#N/A"}},null,null,null,null,null,null,null,0,null,null,null,{"$f":"VLOOKUP(Table_Data_Table_135[[#This Row],[Item ID]],Analysis_Table,8,FALSE)","v":{"$error":"#N/A"}},{"$f":"VLOOKUP(Table_Data_Table_135[[#This Row],[Item ID]],Analysis_Table,9,FALSE)","v":{"$error":"#N/A"}},{"$f":"VLOOKUP(Table_Data_Table_135[[#This Row],[Item ID]],Analysis_Table,10,FALSE)","v":{"$error":"#N/A"}},{"$f":"VLOOKUP(Table_Data_Table_135[[#This Row],[Item ID]],Analysis_Table,11,FALSE)","v":{"$error":"#N/A"}},{"$f":"VLOOKUP(Table_Data_Table_135[[#This Row],[Item ID]],Analysis_Table,12,FALSE)","v":{"$error":"#N/A"}},{"$f":"VLOOKUP(Table_Data_Table_135[[#This Row],[Item ID]],Analysis_Table,13,FALSE)","v":{"$error":"#N/A"}},{"$f":"VLOOKUP(Table_Data_Table_135[[#This Row],[Item ID]],Analysis_Table,14,FALSE)","v":{"$error":"#N/A"}},{"$f":"VLOOKUP(Table_Data_Table_135[[#This Row],[Item ID]],Analysis_Table,15,FALSE)","v":{"$error":"#N/A"}},{"$f":"VLOOKUP(Table_Data_Table_135[[#This Row],[Item ID]],Analysis_Table,16,FALSE)","v":{"$error":"#N/A"}},{"$f":"VLOOKUP(Table_Data_Table_135[[#This Row],[Item ID]],Analysis_Table,17,FALSE)","v":{"$error":"#N/A"}},{"$f":"VLOOKUP(Table_Data_Table_135[[#This Row],[Item ID]],Analysis_Table,18,FALSE)","v":{"$error":"#N/A"}},{"$f":"VLOOKUP(Table_Data_Table_135[[#This Row],[Item ID]],Analysis_Table,19,FALSE)","v":{"$error":"#N/A"}},null,null,1]
["",null,{"$f":"VLOOKUP(Table_Data_Table_135[[#This Row],[Item ID]],Analysis_Table,20,FALSE)","v":{"$error":"#N/A"}},null,null,null,null,null,null,null,0,null,null,null,{"$f":"VLOOKUP(Table_Data_Table_135[[#This Row],[Item ID]],Analysis_Table,8,FALSE)","v":{"$error":"#N/A"}},{"$f":"VLOOKUP(Table_Data_Table_135[[#This Row],[Item ID]],Analysis_Table,9,FALSE)","v":{"$error":"#N/A"}},{"$f":"VLOOKUP(Table_Data_Table_135[[#This Row],[Item ID]],Analysis_Table,10,FALSE)","v":{"$error":"#N/A"}},{"$f":"VLOOKUP(Table_Data_Table_135[[#This Row],[Item ID]],Analysis_Table,11,FALSE)","v":{"$error":"#N/A"}},{"$f":"VLOOKUP(Table_Data_Table_135[[#This Row],[Item ID]],Analysis_Table,12,FALSE)","v":{"$error":"#N/A"}},{"$f":"VLOOKUP(Table_Data_Table_135[[#This Row],[Item ID]],Analysis_Table,13,FALSE)","v":{"$error":"#N/A"}},{"$f":"VLOOKUP(Table_Data_Table_135[[#This Row],[Item ID]],Analysis_Table,14,FALSE)","v":{"$error":"#N/A"}},{"$f":"VLOOKUP(Table_Data_Table_135[[#This Row],[Item ID]],Analysis_Table,15,FALSE)","v":{"$error":"#N/A"}},{"$f":"VLOOKUP(Table_Data_Table_135[[#This Row],[Item ID]],Analysis_Table,16,FALSE)","v":{"$error":"#N/A"}},{"$f":"VLOOKUP(Table_Data_Table_135[[#This Row],[Item ID]],Analysis_Table,17,FALSE)","v":{"$error":"#N/A"}},{"$f":"VLOOKUP(Table_Data_Table_135[[#This Row],[Item ID]],Analysis_Table,18,FALSE)","v":{"$error":"#N/A"}},{"$f":"VLOOKUP(Table_Data_Table_135[[#This Row],[Item ID]],Analysis_Table,19,FALSE)","v":{"$error":"#N/A"}},null,null,1]
["",null,{"$f":"VLOOKUP(Table_Data_Table_135[[#This Row],[Item ID]],Analysis_Table,20,FALSE)","v":{"$error":"#N/A"}},null,null,null,null,null,null,null,0,null,null,null,{"$f":"VLOOKUP(Table_Data_Table_135[[#This Row],[Item ID]],Analysis_Table,8,FALSE)","v":{"$error":"#N/A"}},{"$f":"VLOOKUP(Table_Data_Table_135[[#This Row],[Item ID]],Analysis_Table,9,FALSE)","v":{"$error":"#N/A"}},{"$f":"VLOOKUP(Table_Data_Table_135[[#This Row],[Item ID]],Analysis_Table,10,FALSE)","v":{"$error":"#N/A"}},{"$f":"VLOOKUP(Table_Data_Table_135[[#This Row],[Item ID]],Analysis_Table,11,FALSE)","v":{"$error":"#N/A"}},{"$f":"VLOOKUP(Table_Data_Table_135[[#This Row],[Item ID]],Analysis_Table,12,FALSE)","v":{"$error":"#N/A"}},{"$f":"VLOOKUP(Table_Data_Table_135[[#This Row],[Item ID]],Analysis_Table,13,FALSE)","v":{"$error":"#N/A"}},{"$f":"VLOOKUP(Table_Data_Table_135[[#This Row],[Item ID]],Analysis_Table,14,FALSE)","v":{"$error":"#N/A"}},{"$f":"VLOOKUP(Table_Data_Table_135[[#This Row],[Item ID]],Analysis_Table,15,FALSE)","v":{"$error":"#N/A"}},{"$f":"VLOOKUP(Table_Data_Table_135[[#This Row],[Item ID]],Analysis_Table,16,FALSE)","v":{"$error":"#N/A"}},{"$f":"VLOOKUP(Table_Data_Table_135[[#This Row],[Item ID]],Analysis_Table,17,FALSE)","v":{"$error":"#N/A"}},{"$f":"VLOOKUP(Table_Data_Table_135[[#This Row],[Item ID]],Analysis_Table,18,FALSE)","v":{"$error":"#N/A"}},{"$f":"VLOOKUP(Table_Data_Table_135[[#This Row],[Item ID]],Analysis_Table,19,FALSE)","v":{"$error":"#N/A"}},null,null,1]
["",null,{"$f":"VLOOKUP(Table_Data_Table_135[[#This Row],[Item ID]],Analysis_Table,20,FALSE)","v":{"$error":"#N/A"}},null,null,null,null,null,null,null,0,null,null,null,{"$f":"VLOOKUP(Table_Data_Table_135[[#This Row],[Item ID]],Analysis_Table,8,FALSE)","v":{"$error":"#N/A"}},{"$f":"VLOOKUP(Table_Data_Table_135[[#This Row],[Item ID]],Analysis_Table,9,FALSE)","v":{"$error":"#N/A"}},{"$f":"VLOOKUP(Table_Data_Table_135[[#This Row],[Item ID]],Analysis_Table,10,FALSE)","v":{"$error":"#N/A"}},{"$f":"VLOOKUP(Table_Data_Table_135[[#This Row],[Item ID]],Analysis_Table,11,FALSE)","v":{"$error":"#N/A"}},{"$f":"VLOOKUP(Table_Data_Table_135[[#This Row],[Item ID]],Analysis_Table,12,FALSE)","v":{"$error":"#N/A"}},{"$f":"VLOOKUP(Table_Data_Table_135[[#This Row],[Item ID]],Analysis_Table,13,FALSE)","v":{"$error":"#N/A"}},{"$f":"VLOOKUP(Table_Data_Table_135[[#This Row],[Item ID]],Analysis_Table,14,FALSE)","v":{"$error":"#N/A"}},{"$f":"VLOOKUP(Table_Data_Table_135[[#This Row],[Item ID]],Analysis_Table,15,FALSE)","v":{"$error":"#N/A"}},{"$f":"VLOOKUP(Table_Data_Table_135[[#This Row],[Item ID]],Analysis_Table,16,FALSE)","v":{"$error":"#N/A"}},{"$f":"VLOOKUP(Table_Data_Table_135[[#This Row],[Item ID]],Analysis_Table,17,FALSE)","v":{"$error":"#N/A"}},{"$f":"VLOOKUP(Table_Data_Table_135[[#This Row],[Item ID]],Analysis_Table,18,FALSE)","v":{"$error":"#N/A"}},{"$f":"VLOOKUP(Table_Data_Table_135[[#This Row],[Item ID]],Analysis_Table,19,FALSE)","v":{"$error":"#N/A"}},null,null,1]
["",null,{"$f":"VLOOKUP(Table_Data_Table_135[[#This Row],[Item ID]],Analysis_Table,20,FALSE)","v":{"$error":"#N/A"}},null,null,null,null,null,null,null,0,null,null,null,{"$f":"VLOOKUP(Table_Data_Table_135[[#This Row],[Item ID]],Analysis_Table,8,FALSE)","v":{"$error":"#N/A"}},{"$f":"VLOOKUP(Table_Data_Table_135[[#This Row],[Item ID]],Analysis_Table,9,FALSE)","v":{"$error":"#N/A"}},{"$f":"VLOOKUP(Table_Data_Table_135[[#This Row],[Item ID]],Analysis_Table,10,FALSE)","v":{"$error":"#N/A"}},{"$f":"VLOOKUP(Table_Data_Table_135[[#This Row],[Item ID]],Analysis_Table,11,FALSE)","v":{"$error":"#N/A"}},{"$f":"VLOOKUP(Table_Data_Table_135[[#This Row],[Item ID]],Analysis_Table,12,FALSE)","v":{"$error":"#N/A"}},{"$f":"VLOOKUP(Table_Data_Table_135[[#This Row],[Item ID]],Analysis_Table,13,FALSE)","v":{"$error":"#N/A"}},{"$f":"VLOOKUP(Table_Data_Table_135[[#This Row],[Item ID]],Analysis_Table,14,FALSE)","v":{"$error":"#N/A"}},{"$f":"VLOOKUP(Table_Data_Table_135[[#This Row],[Item ID]],Analysis_Table,15,FALSE)","v":{"$error":"#N/A"}},{"$f":"VLOOKUP(Table_Data_Table_135[[#This Row],[Item ID]],Analysis_Table,16,FALSE)","v":{"$error":"#N/A"}},{"$f":"VLOOKUP(Table_Data_Table_135[[#This Row],[Item ID]],Analysis_Table,17,FALSE)","v":{"$error":"#N/A"}},{"$f":"VLOOKUP(Table_Data_Table_135[[#This Row],[Item ID]],Analysis_Table,18,FALSE)","v":{"$error":"#N/A"}},{"$f":"VLOOKUP(Table_Data_Table_135[[#This Row],[Item ID]],Analysis_Table,19,FALSE)","v":{"$error":"#N/A"}},null,null,1]
["",null,{"$f":"VLOOKUP(Table_Data_Table_135[[#This Row],[Item ID]],Analysis_Table,20,FALSE)","v":{"$error":"#N/A"}},null,null,null,null,null,null,null,0,null,null,null,{"$f":"VLOOKUP(Table_Data_Table_135[[#This Row],[Item ID]],Analysis_Table,8,FALSE)","v":{"$error":"#N/A"}},{"$f":"VLOOKUP(Table_Data_Table_135[[#This Row],[Item ID]],Analysis_Table,9,FALSE)","v":{"$error":"#N/A"}},{"$f":"VLOOKUP(Table_Data_Table_135[[#This Row],[Item ID]],Analysis_Table,10,FALSE)","v":{"$error":"#N/A"}},{"$f":"VLOOKUP(Table_Data_Table_135[[#This Row],[Item ID]],Analysis_Table,11,FALSE)","v":{"$error":"#N/A"}},{"$f":"VLOOKUP(Table_Data_Table_135[[#This Row],[Item ID]],Analysis_Table,12,FALSE)","v":{"$error":"#N/A"}},{"$f":"VLOOKUP(Table_Data_Table_135[[#This Row],[Item ID]],Analysis_Table,13,FALSE)","v":{"$error":"#N/A"}},{"$f":"VLOOKUP(Table_Data_Table_135[[#This Row],[Item ID]],Analysis_Table,14,FALSE)","v":{"$error":"#N/A"}},{"$f":"VLOOKUP(Table_Data_Table_135[[#This Row],[Item ID]],Analysis_Table,15,FALSE)","v":{"$error":"#N/A"}},{"$f":"VLOOKUP(Table_Data_Table_135[[#This Row],[Item ID]],Analysis_Table,16,FALSE)","v":{"$error":"#N/A"}},{"$f":"VLOOKUP(Table_Data_Table_135[[#This Row],[Item ID]],Analysis_Table,17,FALSE)","v":{"$error":"#N/A"}},{"$f":"VLOOKUP(Table_Data_Table_135[[#This Row],[Item ID]],Analysis_Table,18,FALSE)","v":{"$error":"#N/A"}},{"$f":"VLOOKUP(Table_Data_Table_135[[#This Row],[Item ID]],Analysis_Table,19,FALSE)","v":{"$error":"#N/A"}},null,null,1]
["",null,{"$f":"VLOOKUP(Table_Data_Table_135[[#This Row],[Item ID]],Analysis_Table,20,FALSE)","v":{"$error":"#N/A"}},null,null,null,null,null,null,null,0,null,null,null,{"$f":"VLOOKUP(Table_Data_Table_135[[#This Row],[Item ID]],Analysis_Table,8,FALSE)","v":{"$error":"#N/A"}},{"$f":"VLOOKUP(Table_Data_Table_135[[#This Row],[Item ID]],Analysis_Table,9,FALSE)","v":{"$error":"#N/A"}},{"$f":"VLOOKUP(Table_Data_Table_135[[#This Row],[Item ID]],Analysis_Table,10,FALSE)","v":{"$error":"#N/A"}},{"$f":"VLOOKUP(Table_Data_Table_135[[#This Row],[Item ID]],Analysis_Table,11,FALSE)","v":{"$error":"#N/A"}},{"$f":"VLOOKUP(Table_Data_Table_135[[#This Row],[Item ID]],Analysis_Table,12,FALSE)","v":{"$error":"#N/A"}},{"$f":"VLOOKUP(Table_Data_Table_135[[#This Row],[Item ID]],Analysis_Table,13,FALSE)","v":{"$error":"#N/A"}},{"$f":"VLOOKUP(Table_Data_Table_135[[#This Row],[Item ID]],Analysis_Table,14,FALSE)","v":{"$error":"#N/A"}},{"$f":"VLOOKUP(Table_Data_Table_135[[#This Row],[Item ID]],Analysis_Table,15,FALSE)","v":{"$error":"#N/A"}},{"$f":"VLOOKUP(Table_Data_Table_135[[#This Row],[Item ID]],Analysis_Table,16,FALSE)","v":{"$error":"#N/A"}},{"$f":"VLOOKUP(Table_Data_Table_135[[#This Row],[Item ID]],Analysis_Table,17,FALSE)","v":{"$error":"#N/A"}},{"$f":"VLOOKUP(Table_Data_Table_135[[#This Row],[Item ID]],Analysis_Table,18,FALSE)","v":{"$error":"#N/A"}},{"$f":"VLOOKUP(Table_Data_Table_135[[#This Row],[Item ID]],Analysis_Table,19,FALSE)","v":{"$error":"#N/A"}},null,null,1]
["",null,{"$f":"VLOOKUP(Table_Data_Table_135[[#This Row],[Item ID]],Analysis_Table,20,FALSE)","v":{"$error":"#N/A"}},null,null,null,null,null,null,null,0,null,null,null,{"$f":"VLOOKUP(Table_Data_Table_135[[#This Row],[Item ID]],Analysis_Table,8,FALSE)","v":{"$error":"#N/A"}},{"$f":"VLOOKUP(Table_Data_Table_135[[#This Row],[Item ID]],Analysis_Table,9,FALSE)","v":{"$error":"#N/A"}},{"$f":"VLOOKUP(Table_Data_Table_135[[#This Row],[Item ID]],Analysis_Table,10,FALSE)","v":{"$error":"#N/A"}},{"$f":"VLOOKUP(Table_Data_Table_135[[#This Row],[Item ID]],Analysis_Table,11,FALSE)","v":{"$error":"#N/A"}},{"$f":"VLOOKUP(Table_Data_Table_135[[#This Row],[Item ID]],Analysis_Table,12,FALSE)","v":{"$error":"#N/A"}},{"$f":"VLOOKUP(Table_Data_Table_135[[#This Row],[Item ID]],Analysis_Table,13,FALSE)","v":{"$error":"#N/A"}},{"$f":"VLOOKUP(Table_Data_Table_135[[#This Row],[Item ID]],Analysis_Table,14,FALSE)","v":{"$error":"#N/A"}},{"$f":"VLOOKUP(Table_Data_Table_135[[#This Row],[Item ID]],Analysis_Table,15,FALSE)","v":{"$error":"#N/A"}},{"$f":"VLOOKUP(Table_Data_Table_135[[#This Row],[Item ID]],Analysis_Table,16,FALSE)","v":{"$error":"#N/A"}},{"$f":"VLOOKUP(Table_Data_Table_135[[#This Row],[Item ID]],Analysis_Table,17,FALSE)","v":{"$error":"#N/A"}},{"$f":"VLOOKUP(Table_Data_Table_135[[#This Row],[Item ID]],Analysis_Table,18,FALSE)","v":{"$error":"#N/A"}},{"$f":"VLOOKUP(Table_Data_Table_135[[#This Row],[Item ID]],Analysis_Table,19,FALSE)","v":{"$error":"#N/A"}},null,null,1]
["",null,{"$f":"VLOOKUP(Table_Data_Table_135[[#This Row],[Item ID]],Analysis_Table,20,FALSE)","v":{"$error":"#N/A"}},null,null,null,null,null,null,null,0,null,null,null,{"$f":"VLOOKUP(Table_Data_Table_135[[#This Row],[Item ID]],Analysis_Table,8,FALSE)","v":{"$error":"#N/A"}},{"$f":"VLOOKUP(Table_Data_Table_135[[#This Row],[Item ID]],Analysis_Table,9,FALSE)","v":{"$error":"#N/A"}},{"$f":"VLOOKUP(Table_Data_Table_135[[#This Row],[Item ID]],Analysis_Table,10,FALSE)","v":{"$error":"#N/A"}},{"$f":"VLOOKUP(Table_Data_Table_135[[#This Row],[Item ID]],Analysis_Table,11,FALSE)","v":{"$error":"#N/A"}},{"$f":"VLOOKUP(Table_Data_Table_135[[#This Row],[Item ID]],Analysis_Table,12,FALSE)","v":{"$error":"#N/A"}},{"$f":"VLOOKUP(Table_Data_Table_135[[#This Row],[Item ID]],Analysis_Table,13,FALSE)","v":{"$error":"#N/A"}},{"$f":"VLOOKUP(Table_Data_Table_135[[#This Row],[Item ID]],Analysis_Table,14,FALSE)","v":{"$error":"#N/A"}},{"$f":"VLOOKUP(Table_Data_Table_135[[#This Row],[Item ID]],Analysis_Table,15,FALSE)","v":{"$error":"#N/A"}},{"$f":"VLOOKUP(Table_Data_Table_135[[#This Row],[Item ID]],Analysis_Table,16,FALSE)","v":{"$error":"#N/A"}},{"$f":"VLOOKUP(Table_Data_Table_135[[#This Row],[Item ID]],Analysis_Table,17,FALSE)","v":{"$error":"#N/A"}},{"$f":"VLOOKUP(Table_Data_Table_135[[#This Row],[Item ID]],Analysis_Table,18,FALSE)","v":{"$error":"#N/A"}},{"$f":"VLOOKUP(Table_Data_Table_135[[#This Row],[Item ID]],Analysis_Table,19,FALSE)","v":{"$error":"#N/A"}},null,null,1]
["",null,{"$f":"VLOOKUP(Table_Data_Table_135[[#This Row],[Item ID]],Analysis_Table,20,FALSE)","v":{"$error":"#N/A"}},null,null,null,null,null,null,null,0,null,null,null,{"$f":"VLOOKUP(Table_Data_Table_135[[#This Row],[Item ID]],Analysis_Table,8,FALSE)","v":{"$error":"#N/A"}},{"$f":"VLOOKUP(Table_Data_Table_135[[#This Row],[Item ID]],Analysis_Table,9,FALSE)","v":{"$error":"#N/A"}},{"$f":"VLOOKUP(Table_Data_Table_135[[#This Row],[Item ID]],Analysis_Table,10,FALSE)","v":{"$error":"#N/A"}},{"$f":"VLOOKUP(Table_Data_Table_135[[#This Row],[Item ID]],Analysis_Table,11,FALSE)","v":{"$error":"#N/A"}},{"$f":"VLOOKUP(Table_Data_Table_135[[#This Row],[Item ID]],Analysis_Table,12,FALSE)","v":{"$error":"#N/A"}},{"$f":"VLOOKUP(Table_Data_Table_135[[#This Row],[Item ID]],Analysis_Table,13,FALSE)","v":{"$error":"#N/A"}},{"$f":"VLOOKUP(Table_Data_Table_135[[#This Row],[Item ID]],Analysis_Table,14,FALSE)","v":{"$error":"#N/A"}},{"$f":"VLOOKUP(Table_Data_Table_135[[#This Row],[Item ID]],Analysis_Table,15,FALSE)","v":{"$error":"#N/A"}},{"$f":"VLOOKUP(Table_Data_Table_135[[#This Row],[Item ID]],Analysis_Table,16,FALSE)","v":{"$error":"#N/A"}},{"$f":"VLOOKUP(Table_Data_Table_135[[#This Row],[Item ID]],Analysis_Table,17,FALSE)","v":{"$error":"#N/A"}},{"$f":"VLOOKUP(Table_Data_Table_135[[#This Row],[Item ID]],Analysis_Table,18,FALSE)","v":{"$error":"#N/A"}},{"$f":"VLOOKUP(Table_Data_Table_135[[#This Row],[Item ID]],Analysis_Table,19,FALSE)","v":{"$error":"#N/A"}},null,null,1]
["",null,{"$f":"VLOOKUP(Table_Data_Table_135[[#This Row],[Item ID]],Analysis_Table,20,FALSE)","v":{"$error":"#N/A"}},null,null,null,null,null,null,null,0,null,null,null,{"$f":"VLOOKUP(Table_Data_Table_135[[#This Row],[Item ID]],Analysis_Table,8,FALSE)","v":{"$error":"#N/A"}},{"$f":"VLOOKUP(Table_Data_Table_135[[#This Row],[Item ID]],Analysis_Table,9,FALSE)","v":{"$error":"#N/A"}},{"$f":"VLOOKUP(Table_Data_Table_135[[#This Row],[Item ID]],Analysis_Table,10,FALSE)","v":{"$error":"#N/A"}},{"$f":"VLOOKUP(Table_Data_Table_135[[#This Row],[Item ID]],Analysis_Table,11,FALSE)","v":{"$error":"#N/A"}},{"$f":"VLOOKUP(Table_Data_Table_135[[#This Row],[Item ID]],Analysis_Table,12,FALSE)","v":{"$error":"#N/A"}},{"$f":"VLOOKUP(Table_Data_Table_135[[#This Row],[Item ID]],Analysis_Table,13,FALSE)","v":{"$error":"#N/A"}},{"$f":"VLOOKUP(Table_Data_Table_135[[#This Row],[Item ID]],Analysis_Table,14,FALSE)","v":{"$error":"#N/A"}},{"$f":"VLOOKUP(Table_Data_Table_135[[#This Row],[Item ID]],Analysis_Table,15,FALSE)","v":{"$error":"#N/A"}},{"$f":"VLOOKUP(Table_Data_Table_135[[#This Row],[Item ID]],Analysis_Table,16,FALSE)","v":{"$error":"#N/A"}},{"$f":"VLOOKUP(Table_Data_Table_135[[#This Row],[Item ID]],Analysis_Table,17,FALSE)","v":{"$error":"#N/A"}},{"$f":"VLOOKUP(Table_Data_Table_135[[#This Row],[Item ID]],Analysis_Table,18,FALSE)","v":{"$error":"#N/A"}},{"$f":"VLOOKUP(Table_Data_Table_135[[#This Row],[Item ID]],Analysis_Table,19,FALSE)","v":{"$error":"#N/A"}},null,null,1]
["",null,{"$f":"VLOOKUP(Table_Data_Table_135[[#This Row],[Item ID]],Analysis_Table,20,FALSE)","v":{"$error":"#N/A"}},null,null,null,null,null,null,null,0,null,null,null,{"$f":"VLOOKUP(Table_Data_Table_135[[#This Row],[Item ID]],Analysis_Table,8,FALSE)","v":{"$error":"#N/A"}},{"$f":"VLOOKUP(Table_Data_Table_135[[#This Row],[Item ID]],Analysis_Table,9,FALSE)","v":{"$error":"#N/A"}},{"$f":"VLOOKUP(Table_Data_Table_135[[#This Row],[Item ID]],Analysis_Table,10,FALSE)","v":{"$error":"#N/A"}},{"$f":"VLOOKUP(Table_Data_Table_135[[#This Row],[Item ID]],Analysis_Table,11,FALSE)","v":{"$error":"#N/A"}},{"$f":"VLOOKUP(Table_Data_Table_135[[#This Row],[Item ID]],Analysis_Table,12,FALSE)","v":{"$error":"#N/A"}},{"$f":"VLOOKUP(Table_Data_Table_135[[#This Row],[Item ID]],Analysis_Table,13,FALSE)","v":{"$error":"#N/A"}},{"$f":"VLOOKUP(Table_Data_Table_135[[#This Row],[Item ID]],Analysis_Table,14,FALSE)","v":{"$error":"#N/A"}},{"$f":"VLOOKUP(Table_Data_Table_135[[#This Row],[Item ID]],Analysis_Table,15,FALSE)","v":{"$error":"#N/A"}},{"$f":"VLOOKUP(Table_Data_Table_135[[#This Row],[Item ID]],Analysis_Table,16,FALSE)","v":{"$error":"#N/A"}},{"$f":"VLOOKUP(Table_Data_Table_135[[#This Row],[Item ID]],Analysis_Table,17,FALSE)","v":{"$error":"#N/A"}},{"$f":"VLOOKUP(Table_Data_Table_135[[#This Row],[Item ID]],Analysis_Table,18,FALSE)","v":{"$error":"#N/A"}},{"$f":"VLOOKUP(Table_Data_Table_135[[#This Row],[Item ID]],Analysis_Table,19,FALSE)","v":{"$error":"#N/A"}},null,null,1]
["",null,{"$f":"VLOOKUP(Table_Data_Table_135[[#This Row],[Item ID]],Analysis_Table,20,FALSE)","v":{"$error":"#N/A"}},null,null,null,null,null,null,null,0,null,null,null,{"$f":"VLOOKUP(Table_Data_Table_135[[#This Row],[Item ID]],Analysis_Table,8,FALSE)","v":{"$error":"#N/A"}},{"$f":"VLOOKUP(Table_Data_Table_135[[#This Row],[Item ID]],Analysis_Table,9,FALSE)","v":{"$error":"#N/A"}},{"$f":"VLOOKUP(Table_Data_Table_135[[#This Row],[Item ID]],Analysis_Table,10,FALSE)","v":{"$error":"#N/A"}},{"$f":"VLOOKUP(Table_Data_Table_135[[#This Row],[Item ID]],Analysis_Table,11,FALSE)","v":{"$error":"#N/A"}},{"$f":"VLOOKUP(Table_Data_Table_135[[#This Row],[Item ID]],Analysis_Table,12,FALSE)","v":{"$error":"#N/A"}},{"$f":"VLOOKUP(Table_Data_Table_135[[#This Row],[Item ID]],Analysis_Table,13,FALSE)","v":{"$error":"#N/A"}},{"$f":"VLOOKUP(Table_Data_Table_135[[#This Row],[Item ID]],Analysis_Table,14,FALSE)","v":{"$error":"#N/A"}},{"$f":"VLOOKUP(Table_Data_Table_135[[#This Row],[Item ID]],Analysis_Table,15,FALSE)","v":{"$error":"#N/A"}},{"$f":"VLOOKUP(Table_Data_Table_135[[#This Row],[Item ID]],Analysis_Table,16,FALSE)","v":{"$error":"#N/A"}},{"$f":"VLOOKUP(Table_Data_Table_135[[#This Row],[Item ID]],Analysis_Table,17,FALSE)","v":{"$error":"#N/A"}},{"$f":"VLOOKUP(Table_Data_Table_135[[#This Row],[Item ID]],Analysis_Table,18,FALSE)","v":{"$error":"#N/A"}},{"$f":"VLOOKUP(Table_Data_Table_135[[#This Row],[Item ID]],Analysis_Table,19,FALSE)","v":{"$error":"#N/A"}},null,null,1]
["",null,{"$f":"VLOOKUP(Table_Data_Table_135[[#This Row],[Item ID]],Analysis_Table,20,FALSE)","v":{"$error":"#N/A"}},null,null,null,null,null,null,null,0,null,null,null,{"$f":"VLOOKUP(Table_Data_Table_135[[#This Row],[Item ID]],Analysis_Table,8,FALSE)","v":{"$error":"#N/A"}},{"$f":"VLOOKUP(Table_Data_Table_135[[#This Row],[Item ID]],Analysis_Table,9,FALSE)","v":{"$error":"#N/A"}},{"$f":"VLOOKUP(Table_Data_Table_135[[#This Row],[Item ID]],Analysis_Table,10,FALSE)","v":{"$error":"#N/A"}},{"$f":"VLOOKUP(Table_Data_Table_135[[#This Row],[Item ID]],Analysis_Table,11,FALSE)","v":{"$error":"#N/A"}},{"$f":"VLOOKUP(Table_Data_Table_135[[#This Row],[Item ID]],Analysis_Table,12,FALSE)","v":{"$error":"#N/A"}},{"$f":"VLOOKUP(Table_Data_Table_135[[#This Row],[Item ID]],Analysis_Table,13,FALSE)","v":{"$error":"#N/A"}},{"$f":"VLOOKUP(Table_Data_Table_135[[#This Row],[Item ID]],Analysis_Table,14,FALSE)","v":{"$error":"#N/A"}},{"$f":"VLOOKUP(Table_Data_Table_135[[#This Row],[Item ID]],Analysis_Table,15,FALSE)","v":{"$error":"#N/A"}},{"$f":"VLOOKUP(Table_Data_Table_135[[#This Row],[Item ID]],Analysis_Table,16,FALSE)","v":{"$error":"#N/A"}},{"$f":"VLOOKUP(Table_Data_Table_135[[#This Row],[Item ID]],Analysis_Table,17,FALSE)","v":{"$error":"#N/A"}},{"$f":"VLOOKUP(Table_Data_Table_135[[#This Row],[Item ID]],Analysis_Table,18,FALSE)","v":{"$error":"#N/A"}},{"$f":"VLOOKUP(Table_Data_Table_135[[#This Row],[Item ID]],Analysis_Table,19,FALSE)","v":{"$error":"#N/A"}},null,null,1]
["",null,{"$f":"VLOOKUP(Table_Data_Table_135[[#This Row],[Item ID]],Analysis_Table,20,FALSE)","v":{"$error":"#N/A"}},null,null,null,null,null,null,null,0,null,null,null,{"$f":"VLOOKUP(Table_Data_Table_135[[#This Row],[Item ID]],Analysis_Table,8,FALSE)","v":{"$error":"#N/A"}},{"$f":"VLOOKUP(Table_Data_Table_135[[#This Row],[Item ID]],Analysis_Table,9,FALSE)","v":{"$error":"#N/A"}},{"$f":"VLOOKUP(Table_Data_Table_135[[#This Row],[Item ID]],Analysis_Table,10,FALSE)","v":{"$error":"#N/A"}},{"$f":"VLOOKUP(Table_Data_Table_135[[#This Row],[Item ID]],Analysis_Table,11,FALSE)","v":{"$error":"#N/A"}},{"$f":"VLOOKUP(Table_Data_Table_135[[#This Row],[Item ID]],Analysis_Table,12,FALSE)","v":{"$error":"#N/A"}},{"$f":"VLOOKUP(Table_Data_Table_135[[#This Row],[Item ID]],Analysis_Table,13,FALSE)","v":{"$error":"#N/A"}},{"$f":"VLOOKUP(Table_Data_Table_135[[#This Row],[Item ID]],Analysis_Table,14,FALSE)","v":{"$error":"#N/A"}},{"$f":"VLOOKUP(Table_Data_Table_135[[#This Row],[Item ID]],Analysis_Table,15,FALSE)","v":{"$error":"#N/A"}},{"$f":"VLOOKUP(Table_Data_Table_135[[#This Row],[Item ID]],Analysis_Table,16,FALSE)","v":{"$error":"#N/A"}},{"$f":"VLOOKUP(Table_Data_Table_135[[#This Row],[Item ID]],Analysis_Table,17,FALSE)","v":{"$error":"#N/A"}},{"$f":"VLOOKUP(Table_Data_Table_135[[#This Row],[Item ID]],Analysis_Table,18,FALSE)","v":{"$error":"#N/A"}},{"$f":"VLOOKUP(Table_Data_Table_135[[#This Row],[Item ID]],Analysis_Table,19,FALSE)","v":{"$error":"#N/A"}},null,null,1]
["",null,{"$f":"VLOOKUP(Table_Data_Table_135[[#This Row],[Item ID]],Analysis_Table,20,FALSE)","v":{"$error":"#N/A"}},null,null,null,null,null,null,null,0,null,null,null,{"$f":"VLOOKUP(Table_Data_Table_135[[#This Row],[Item ID]],Analysis_Table,8,FALSE)","v":{"$error":"#N/A"}},{"$f":"VLOOKUP(Table_Data_Table_135[[#This Row],[Item ID]],Analysis_Table,9,FALSE)","v":{"$error":"#N/A"}},{"$f":"VLOOKUP(Table_Data_Table_135[[#This Row],[Item ID]],Analysis_Table,10,FALSE)","v":{"$error":"#N/A"}},{"$f":"VLOOKUP(Table_Data_Table_135[[#This Row],[Item ID]],Analysis_Table,11,FALSE)","v":{"$error":"#N/A"}},{"$f":"VLOOKUP(Table_Data_Table_135[[#This Row],[Item ID]],Analysis_Table,12,FALSE)","v":{"$error":"#N/A"}},{"$f":"VLOOKUP(Table_Data_Table_135[[#This Row],[Item ID]],Analysis_Table,13,FALSE)","v":{"$error":"#N/A"}},{"$f":"VLOOKUP(Table_Data_Table_135[[#This Row],[Item ID]],Analysis_Table,14,FALSE)","v":{"$error":"#N/A"}},{"$f":"VLOOKUP(Table_Data_Table_135[[#This Row],[Item ID]],Analysis_Table,15,FALSE)","v":{"$error":"#N/A"}},{"$f":"VLOOKUP(Table_Data_Table_135[[#This Row],[Item ID]],Analysis_Table,16,FALSE)","v":{"$error":"#N/A"}},{"$f":"VLOOKUP(Table_Data_Table_135[[#This Row],[Item ID]],Analysis_Table,17,FALSE)","v":{"$error":"#N/A"}},{"$f":"VLOOKUP(Table_Data_Table_135[[#This Row],[Item ID]],Analysis_Table,18,FALSE)","v":{"$error":"#N/A"}},{"$f":"VLOOKUP(Table_Data_Table_135[[#This Row],[Item ID]],Analysis_Table,19,FALSE)","v":{"$error":"#N/A"}},null,null,1]
["",null,{"$f":"VLOOKUP(Table_Data_Table_135[[#This Row],[Item ID]],Analysis_Table,20,FALSE)","v":{"$error":"#N/A"}},null,null,null,null,null,null,null,0,null,null,null,{"$f":"VLOOKUP(Table_Data_Table_135[[#This Row],[Item ID]],Analysis_Table,8,FALSE)","v":{"$error":"#N/A"}},{"$f":"VLOOKUP(Table_Data_Table_135[[#This Row],[Item ID]],Analysis_Table,9,FALSE)","v":{"$error":"#N/A"}},{"$f":"VLOOKUP(Table_Data_Table_135[[#This Row],[Item ID]],Analysis_Table,10,FALSE)","v":{"$error":"#N/A"}},{"$f":"VLOOKUP(Table_Data_Table_135[[#This Row],[Item ID]],Analysis_Table,11,FALSE)","v":{"$error":"#N/A"}},{"$f":"VLOOKUP(Table_Data_Table_135[[#This Row],[Item ID]],Analysis_Table,12,FALSE)","v":{"$error":"#N/A"}},{"$f":"VLOOKUP(Table_Data_Table_135[[#This Row],[Item ID]],Analysis_Table,13,FALSE)","v":{"$error":"#N/A"}},{"$f":"VLOOKUP(Table_Data_Table_135[[#This Row],[Item ID]],Analysis_Table,14,FALSE)","v":{"$error":"#N/A"}},{"$f":"VLOOKUP(Table_Data_Table_135[[#This Row],[Item ID]],Analysis_Table,15,FALSE)","v":{"$error":"#N/A"}},{"$f":"VLOOKUP(Table_Data_Table_135[[#This Row],[Item ID]],Analysis_Table,16,FALSE)","v":{"$error":"#N/A"}},{"$f":"VLOOKUP(Table_Data_Table_135[[#This Row],[Item ID]],Analysis_Table,17,FALSE)","v":{"$error":"#N/A"}},{"$f":"VLOOKUP(Table_Data_Table_135[[#This Row],[Item ID]],Analysis_Table,18,FALSE)","v":{"$error":"#N/A"}},{"$f":"VLOOKUP(Table_Data_Table_135[[#This Row],[Item ID]],Analysis_Table,19,FALSE)","v":{"$error":"#N/A"}},null,null,1]
["",null,{"$f":"VLOOKUP(Table_Data_Table_135[[#This Row],[Item ID]],Analysis_Table,20,FALSE)","v":{"$error":"#N/A"}},null,null,null,null,null,null,null,0,null,null,null,{"$f":"VLOOKUP(Table_Data_Table_135[[#This Row],[Item ID]],Analysis_Table,8,FALSE)","v":{"$error":"#N/A"}},{"$f":"VLOOKUP(Table_Data_Table_135[[#This Row],[Item ID]],Analysis_Table,9,FALSE)","v":{"$error":"#N/A"}},{"$f":"VLOOKUP(Table_Data_Table_135[[#This Row],[Item ID]],Analysis_Table,10,FALSE)","v":{"$error":"#N/A"}},{"$f":"VLOOKUP(Table_Data_Table_135[[#This Row],[Item ID]],Analysis_Table,11,FALSE)","v":{"$error":"#N/A"}},{"$f":"VLOOKUP(Table_Data_Table_135[[#This Row],[Item ID]],Analysis_Table,12,FALSE)","v":{"$error":"#N/A"}},{"$f":"VLOOKUP(Table_Data_Table_135[[#This Row],[Item ID]],Analysis_Table,13,FALSE)","v":{"$error":"#N/A"}},{"$f":"VLOOKUP(Table_Data_Table_135[[#This Row],[Item ID]],Analysis_Table,14,FALSE)","v":{"$error":"#N/A"}},{"$f":"VLOOKUP(Table_Data_Table_135[[#This Row],[Item ID]],Analysis_Table,15,FALSE)","v":{"$error":"#N/A"}},{"$f":"VLOOKUP(Table_Data_Table_135[[#This Row],[Item ID]],Analysis_Table,16,FALSE)","v":{"$error":"#N/A"}},{"$f":"VLOOKUP(Table_Data_Table_135[[#This Row],[Item ID]],Analysis_Table,17,FALSE)","v":{"$error":"#N/A"}},{"$f":"VLOOKUP(Table_Data_Table_135[[#This Row],[Item ID]],Analysis_Table,18,FALSE)","v":{"$error":"#N/A"}},{"$f":"VLOOKUP(Table_Data_Table_135[[#This Row],[Item ID]],Analysis_Table,19,FALSE)","v":{"$error":"#N/A"}},null,null,1]
["",null,{"$f":"VLOOKUP(Table_Data_Table_135[[#This Row],[Item ID]],Analysis_Table,20,FALSE)","v":{"$error":"#N/A"}},null,null,null,null,null,null,null,0,null,null,null,{"$f":"VLOOKUP(Table_Data_Table_135[[#This Row],[Item ID]],Analysis_Table,8,FALSE)","v":{"$error":"#N/A"}},{"$f":"VLOOKUP(Table_Data_Table_135[[#This Row],[Item ID]],Analysis_Table,9,FALSE)","v":{"$error":"#N/A"}},{"$f":"VLOOKUP(Table_Data_Table_135[[#This Row],[Item ID]],Analysis_Table,10,FALSE)","v":{"$error":"#N/A"}},{"$f":"VLOOKUP(Table_Data_Table_135[[#This Row],[Item ID]],Analysis_Table,11,FALSE)","v":{"$error":"#N/A"}},{"$f":"VLOOKUP(Table_Data_Table_135[[#This Row],[Item ID]],Analysis_Table,12,FALSE)","v":{"$error":"#N/A"}},{"$f":"VLOOKUP(Table_Data_Table_135[[#This Row],[Item ID]],Analysis_Table,13,FALSE)","v":{"$error":"#N/A"}},{"$f":"VLOOKUP(Table_Data_Table_135[[#This Row],[Item ID]],Analysis_Table,14,FALSE)","v":{"$error":"#N/A"}},{"$f":"VLOOKUP(Table_Data_Table_135[[#This Row],[Item ID]],Analysis_Table,15,FALSE)","v":{"$error":"#N/A"}},{"$f":"VLOOKUP(Table_Data_Table_135[[#This Row],[Item ID]],Analysis_Table,16,FALSE)","v":{"$error":"#N/A"}},{"$f":"VLOOKUP(Table_Data_Table_135[[#This Row],[Item ID]],Analysis_Table,17,FALSE)","v":{"$error":"#N/A"}},{"$f":"VLOOKUP(Table_Data_Table_135[[#This Row],[Item ID]],Analysis_Table,18,FALSE)","v":{"$error":"#N/A"}},{"$f":"VLOOKUP(Table_Data_Table_135[[#This Row],[Item ID]],Analysis_Table,19,FALSE)","v":{"$error":"#N/A"}},null,null,1]
["",null,{"$f":"VLOOKUP(Table_Data_Table_135[[#This Row],[Item ID]],Analysis_Table,20,FALSE)","v":{"$error":"#N/A"}},null,null,null,null,null,null,null,0,null,null,null,{"$f":"VLOOKUP(Table_Data_Table_135[[#This Row],[Item ID]],Analysis_Table,8,FALSE)","v":{"$error":"#N/A"}},{"$f":"VLOOKUP(Table_Data_Table_135[[#This Row],[Item ID]],Analysis_Table,9,FALSE)","v":{"$error":"#N/A"}},{"$f":"VLOOKUP(Table_Data_Table_135[[#This Row],[Item ID]],Analysis_Table,10,FALSE)","v":{"$error":"#N/A"}},{"$f":"VLOOKUP(Table_Data_Table_135[[#This Row],[Item ID]],Analysis_Table,11,FALSE)","v":{"$error":"#N/A"}},{"$f":"VLOOKUP(Table_Data_Table_135[[#This Row],[Item ID]],Analysis_Table,12,FALSE)","v":{"$error":"#N/A"}},{"$f":"VLOOKUP(Table_Data_Table_135[[#This Row],[Item ID]],Analysis_Table,13,FALSE)","v":{"$error":"#N/A"}},{"$f":"VLOOKUP(Table_Data_Table_135[[#This Row],[Item ID]],Analysis_Table,14,FALSE)","v":{"$error":"#N/A"}},{"$f":"VLOOKUP(Table_Data_Table_135[[#This Row],[Item ID]],Analysis_Table,15,FALSE)","v":{"$error":"#N/A"}},{"$f":"VLOOKUP(Table_Data_Table_135[[#This Row],[Item ID]],Analysis_Table,16,FALSE)","v":{"$error":"#N/A"}},{"$f":"VLOOKUP(Table_Data_Table_135[[#This Row],[Item ID]],Analysis_Table,17,FALSE)","v":{"$error":"#N/A"}},{"$f":"VLOOKUP(Table_Data_Table_135[[#This Row],[Item ID]],Analysis_Table,18,FALSE)","v":{"$error":"#N/A"}},{"$f":"VLOOKUP(Table_Data_Table_135[[#This Row],[Item ID]],Analysis_Table,19,FALSE)","v":{"$error":"#N/A"}},null,null,1]
["",null,{"$f":"VLOOKUP(Table_Data_Table_135[[#This Row],[Item ID]],Analysis_Table,20,FALSE)","v":{"$error":"#N/A"}},null,null,null,null,null,null,null,0,null,null,null,{"$f":"VLOOKUP(Table_Data_Table_135[[#This Row],[Item ID]],Analysis_Table,8,FALSE)","v":{"$error":"#N/A"}},{"$f":"VLOOKUP(Table_Data_Table_135[[#This Row],[Item ID]],Analysis_Table,9,FALSE)","v":{"$error":"#N/A"}},{"$f":"VLOOKUP(Table_Data_Table_135[[#This Row],[Item ID]],Analysis_Table,10,FALSE)","v":{"$error":"#N/A"}},{"$f":"VLOOKUP(Table_Data_Table_135[[#This Row],[Item ID]],Analysis_Table,11,FALSE)","v":{"$error":"#N/A"}},{"$f":"VLOOKUP(Table_Data_Table_135[[#This Row],[Item ID]],Analysis_Table,12,FALSE)","v":{"$error":"#N/A"}},{"$f":"VLOOKUP(Table_Data_Table_135[[#This Row],[Item ID]],Analysis_Table,13,FALSE)","v":{"$error":"#N/A"}},{"$f":"VLOOKUP(Table_Data_Table_135[[#This Row],[Item ID]],Analysis_Table,14,FALSE)","v":{"$error":"#N/A"}},{"$f":"VLOOKUP(Table_Data_Table_135[[#This Row],[Item ID]],Analysis_Table,15,FALSE)","v":{"$error":"#N/A"}},{"$f":"VLOOKUP(Table_Data_Table_135[[#This Row],[Item ID]],Analysis_Table,16,FALSE)","v":{"$error":"#N/A"}},{"$f":"VLOOKUP(Table_Data_Table_135[[#This Row],[Item ID]],Analysis_Table,17,FALSE)","v":{"$error":"#N/A"}},{"$f":"VLOOKUP(Table_Data_Table_135[[#This Row],[Item ID]],Analysis_Table,18,FALSE)","v":{"$error":"#N/A"}},{"$f":"VLOOKUP(Table_Data_Table_135[[#This Row],[Item ID]],Analysis_Table,19,FALSE)","v":{"$error":"#N/A"}},null,null,1]
["",null,{"$f":"VLOOKUP(Table_Data_Table_135[[#This Row],[Item ID]],Analysis_Table,20,FALSE)","v":{"$error":"#N/A"}},null,null,null,null,null,null,null,0,null,null,null,{"$f":"VLOOKUP(Table_Data_Table_135[[#This Row],[Item ID]],Analysis_Table,8,FALSE)","v":{"$error":"#N/A"}},{"$f":"VLOOKUP(Table_Data_Table_135[[#This Row],[Item ID]],Analysis_Table,9,FALSE)","v":{"$error":"#N/A"}},{"$f":"VLOOKUP(Table_Data_Table_135[[#This Row],[Item ID]],Analysis_Table,10,FALSE)","v":{"$error":"#N/A"}},{"$f":"VLOOKUP(Table_Data_Table_135[[#This Row],[Item ID]],Analysis_Table,11,FALSE)","v":{"$error":"#N/A"}},{"$f":"VLOOKUP(Table_Data_Table_135[[#This Row],[Item ID]],Analysis_Table,12,FALSE)","v":{"$error":"#N/A"}},{"$f":"VLOOKUP(Table_Data_Table_135[[#This Row],[Item ID]],Analysis_Table,13,FALSE)","v":{"$error":"#N/A"}},{"$f":"VLOOKUP(Table_Data_Table_135[[#This Row],[Item ID]],Analysis_Table,14,FALSE)","v":{"$error":"#N/A"}},{"$f":"VLOOKUP(Table_Data_Table_135[[#This Row],[Item ID]],Analysis_Table,15,FALSE)","v":{"$error":"#N/A"}},{"$f":"VLOOKUP(Table_Data_Table_135[[#This Row],[Item ID]],Analysis_Table,16,FALSE)","v":{"$error":"#N/A"}},{"$f":"VLOOKUP(Table_Data_Table_135[[#This Row],[Item ID]],Analysis_Table,17,FALSE)","v":{"$error":"#N/A"}},{"$f":"VLOOKUP(Table_Data_Table_135[[#This Row],[Item ID]],Analysis_Table,18,FALSE)","v":{"$error":"#N/A"}},{"$f":"VLOOKUP(Table_Data_Table_135[[#This Row],[Item ID]],Analysis_Table,19,FALSE)","v":{"$error":"#N/A"}},null,null,1]
["",null,{"$f":"VLOOKUP(Table_Data_Table_135[[#This Row],[Item ID]],Analysis_Table,20,FALSE)","v":{"$error":"#N/A"}},null,null,null,null,null,null,null,0,null,null,null,{"$f":"VLOOKUP(Table_Data_Table_135[[#This Row],[Item ID]],Analysis_Table,8,FALSE)","v":{"$error":"#N/A"}},{"$f":"VLOOKUP(Table_Data_Table_135[[#This Row],[Item ID]],Analysis_Table,9,FALSE)","v":{"$error":"#N/A"}},{"$f":"VLOOKUP(Table_Data_Table_135[[#This Row],[Item ID]],Analysis_Table,10,FALSE)","v":{"$error":"#N/A"}},{"$f":"VLOOKUP(Table_Data_Table_135[[#This Row],[Item ID]],Analysis_Table,11,FALSE)","v":{"$error":"#N/A"}},{"$f":"VLOOKUP(Table_Data_Table_135[[#This Row],[Item ID]],Analysis_Table,12,FALSE)","v":{"$error":"#N/A"}},{"$f":"VLOOKUP(Table_Data_Table_135[[#This Row],[Item ID]],Analysis_Table,13,FALSE)","v":{"$error":"#N/A"}},{"$f":"VLOOKUP(Table_Data_Table_135[[#This Row],[Item ID]],Analysis_Table,14,FALSE)","v":{"$error":"#N/A"}},{"$f":"VLOOKUP(Table_Data_Table_135[[#This Row],[Item ID]],Analysis_Table,15,FALSE)","v":{"$error":"#N/A"}},{"$f":"VLOOKUP(Table_Data_Table_135[[#This Row],[Item ID]],Analysis_Table,16,FALSE)","v":{"$error":"#N/A"}},{"$f":"VLOOKUP(Table_Data_Table_135[[#This Row],[Item ID]],Analysis_Table,17,FALSE)","v":{"$error":"#N/A"}},{"$f":"VLOOKUP(Table_Data_Table_135[[#This Row],[Item ID]],Analysis_Table,18,FALSE)","v":{"$error":"#N/A"}},{"$f":"VLOOKUP(Table_Data_Table_135[[#This Row],[Item ID]],Analysis_Table,19,FALSE)","v":{"$error":"#N/A"}},null,null,1]
["",null,{"$f":"VLOOKUP(Table_Data_Table_135[[#This Row],[Item ID]],Analysis_Table,20,FALSE)","v":{"$error":"#N/A"}},null,null,null,null,null,null,null,0,null,null,null,{"$f":"VLOOKUP(Table_Data_Table_135[[#This Row],[Item ID]],Analysis_Table,8,FALSE)","v":{"$error":"#N/A"}},{"$f":"VLOOKUP(Table_Data_Table_135[[#This Row],[Item ID]],Analysis_Table,9,FALSE)","v":{"$error":"#N/A"}},{"$f":"VLOOKUP(Table_Data_Table_135[[#This Row],[Item ID]],Analysis_Table,10,FALSE)","v":{"$error":"#N/A"}},{"$f":"VLOOKUP(Table_Data_Table_135[[#This Row],[Item ID]],Analysis_Table,11,FALSE)","v":{"$error":"#N/A"}},{"$f":"VLOOKUP(Table_Data_Table_135[[#This Row],[Item ID]],Analysis_Table,12,FALSE)","v":{"$error":"#N/A"}},{"$f":"VLOOKUP(Table_Data_Table_135[[#This Row],[Item ID]],Analysis_Table,13,FALSE)","v":{"$error":"#N/A"}},{"$f":"VLOOKUP(Table_Data_Table_135[[#This Row],[Item ID]],Analysis_Table,14,FALSE)","v":{"$error":"#N/A"}},{"$f":"VLOOKUP(Table_Data_Table_135[[#This Row],[Item ID]],Analysis_Table,15,FALSE)","v":{"$error":"#N/A"}},{"$f":"VLOOKUP(Table_Data_Table_135[[#This Row],[Item ID]],Analysis_Table,16,FALSE)","v":{"$error":"#N/A"}},{"$f":"VLOOKUP(Table_Data_Table_135[[#This Row],[Item ID]],Analysis_Table,17,FALSE)","v":{"$error":"#N/A"}},{"$f":"VLOOKUP(Table_Data_Table_135[[#This Row],[Item ID]],Analysis_Table,18,FALSE)","v":{"$error":"#N/A"}},{"$f":"VLOOKUP(Table_Data_Table_135[[#This Row],[Item ID]],Analysis_Table,19,FALSE)","v":{"$error":"#N/A"}},null,null,1]
["",null,{"$f":"VLOOKUP(Table_Data_Table_135[[#This Row],[Item ID]],Analysis_Table,20,FALSE)","v":{"$error":"#N/A"}},null,null,null,null,null,null,null,0,null,null,null,{"$f":"VLOOKUP(Table_Data_Table_135[[#This Row],[Item ID]],Analysis_Table,8,FALSE)","v":{"$error":"#N/A"}},{"$f":"VLOOKUP(Table_Data_Table_135[[#This Row],[Item ID]],Analysis_Table,9,FALSE)","v":{"$error":"#N/A"}},{"$f":"VLOOKUP(Table_Data_Table_135[[#This Row],[Item ID]],Analysis_Table,10,FALSE)","v":{"$error":"#N/A"}},{"$f":"VLOOKUP(Table_Data_Table_135[[#This Row],[Item ID]],Analysis_Table,11,FALSE)","v":{"$error":"#N/A"}},{"$f":"VLOOKUP(Table_Data_Table_135[[#This Row],[Item ID]],Analysis_Table,12,FALSE)","v":{"$error":"#N/A"}},{"$f":"VLOOKUP(Table_Data_Table_135[[#This Row],[Item ID]],Analysis_Table,13,FALSE)","v":{"$error":"#N/A"}},{"$f":"VLOOKUP(Table_Data_Table_135[[#This Row],[Item ID]],Analysis_Table,14,FALSE)","v":{"$error":"#N/A"}},{"$f":"VLOOKUP(Table_Data_Table_135[[#This Row],[Item ID]],Analysis_Table,15,FALSE)","v":{"$error":"#N/A"}},{"$f":"VLOOKUP(Table_Data_Table_135[[#This Row],[Item ID]],Analysis_Table,16,FALSE)","v":{"$error":"#N/A"}},{"$f":"VLOOKUP(Table_Data_Table_135[[#This Row],[Item ID]],Analysis_Table,17,FALSE)","v":{"$error":"#N/A"}},{"$f":"VLOOKUP(Table_Data_Table_135[[#This Row],[Item ID]],Analysis_Table,18,FALSE)","v":{"$error":"#N/A"}},{"$f":"VLOOKUP(Table_Data_Table_135[[#This Row],[Item ID]],Analysis_Table,19,FALSE)","v":{"$error":"#N/A"}},null,null,1]
["",null,{"$f":"VLOOKUP(Table_Data_Table_135[[#This Row],[Item ID]],Analysis_Table,20,FALSE)","v":{"$error":"#N/A"}},null,null,null,null,null,null,null,0,null,null,null,{"$f":"VLOOKUP(Table_Data_Table_135[[#This Row],[Item ID]],Analysis_Table,8,FALSE)","v":{"$error":"#N/A"}},{"$f":"VLOOKUP(Table_Data_Table_135[[#This Row],[Item ID]],Analysis_Table,9,FALSE)","v":{"$error":"#N/A"}},{"$f":"VLOOKUP(Table_Data_Table_135[[#This Row],[Item ID]],Analysis_Table,10,FALSE)","v":{"$error":"#N/A"}},{"$f":"VLOOKUP(Table_Data_Table_135[[#This Row],[Item ID]],Analysis_Table,11,FALSE)","v":{"$error":"#N/A"}},{"$f":"VLOOKUP(Table_Data_Table_135[[#This Row],[Item ID]],Analysis_Table,12,FALSE)","v":{"$error":"#N/A"}},{"$f":"VLOOKUP(Table_Data_Table_135[[#This Row],[Item ID]],Analysis_Table,13,FALSE)","v":{"$error":"#N/A"}},{"$f":"VLOOKUP(Table_Data_Table_135[[#This Row],[Item ID]],Analysis_Table,14,FALSE)","v":{"$error":"#N/A"}},{"$f":"VLOOKUP(Table_Data_Table_135[[#This Row],[Item ID]],Analysis_Table,15,FALSE)","v":{"$error":"#N/A"}},{"$f":"VLOOKUP(Table_Data_Table_135[[#This Row],[Item ID]],Analysis_Table,16,FALSE)","v":{"$error":"#N/A"}},{"$f":"VLOOKUP(Table_Data_Table_135[[#This Row],[Item ID]],Analysis_Table,17,FALSE)","v":{"$error":"#N/A"}},{"$f":"VLOOKUP(Table_Data_Table_135[[#This Row],[Item ID]],Analysis_Table,18,FALSE)","v":{"$error":"#N/A"}},{"$f":"VLOOKUP(Table_Data_Table_135[[#This Row],[Item ID]],Analysis_Table,19,FALSE)","v":{"$error":"#N/A"}},null,null,1]
["",null,{"$f":"VLOOKUP(Table_Data_Table_135[[#This Row],[Item ID]],Analysis_Table,20,FALSE)","v":{"$error":"#N/A"}},null,null,null,null,null,null,null,0,null,null,null,{"$f":"VLOOKUP(Table_Data_Table_135[[#This Row],[Item ID]],Analysis_Table,8,FALSE)","v":{"$error":"#N/A"}},{"$f":"VLOOKUP(Table_Data_Table_135[[#This Row],[Item ID]],Analysis_Table,9,FALSE)","v":{"$error":"#N/A"}},{"$f":"VLOOKUP(Table_Data_Table_135[[#This Row],[Item ID]],Analysis_Table,10,FALSE)","v":{"$error":"#N/A"}},{"$f":"VLOOKUP(Table_Data_Table_135[[#This Row],[Item ID]],Analysis_Table,11,FALSE)","v":{"$error":"#N/A"}},{"$f":"VLOOKUP(Table_Data_Table_135[[#This Row],[Item ID]],Analysis_Table,12,FALSE)","v":{"$error":"#N/A"}},{"$f":"VLOOKUP(Table_Data_Table_135[[#This Row],[Item ID]],Analysis_Table,13,FALSE)","v":{"$error":"#N/A"}},{"$f":"VLOOKUP(Table_Data_Table_135[[#This Row],[Item ID]],Analysis_Table,14,FALSE)","v":{"$error":"#N/A"}},{"$f":"VLOOKUP(Table_Data_Table_135[[#This Row],[Item ID]],Analysis_Table,15,FALSE)","v":{"$error":"#N/A"}},{"$f":"VLOOKUP(Table_Data_Table_135[[#This Row],[Item ID]],Analysis_Table,16,FALSE)","v":{"$error":"#N/A"}},{"$f":"VLOOKUP(Table_Data_Table_135[[#This Row],[Item ID]],Analysis_Table,17,FALSE)","v":{"$error":"#N/A"}},{"$f":"VLOOKUP(Table_Data_Table_135[[#This Row],[Item ID]],Analysis_Table,18,FALSE)","v":{"$error":"#N/A"}},{"$f":"VLOOKUP(Table_Data_Table_135[[#This Row],[Item ID]],Analysis_Table,19,FALSE)","v":{"$error":"#N/A"}},null,null,1]
["",null,{"$f":"VLOOKUP(Table_Data_Table_135[[#This Row],[Item ID]],Analysis_Table,20,FALSE)","v":{"$error":"#N/A"}},null,null,null,null,null,null,null,0,null,null,null,{"$f":"VLOOKUP(Table_Data_Table_135[[#This Row],[Item ID]],Analysis_Table,8,FALSE)","v":{"$error":"#N/A"}},{"$f":"VLOOKUP(Table_Data_Table_135[[#This Row],[Item ID]],Analysis_Table,9,FALSE)","v":{"$error":"#N/A"}},{"$f":"VLOOKUP(Table_Data_Table_135[[#This Row],[Item ID]],Analysis_Table,10,FALSE)","v":{"$error":"#N/A"}},{"$f":"VLOOKUP(Table_Data_Table_135[[#This Row],[Item ID]],Analysis_Table,11,FALSE)","v":{"$error":"#N/A"}},{"$f":"VLOOKUP(Table_Data_Table_135[[#This Row],[Item ID]],Analysis_Table,12,FALSE)","v":{"$error":"#N/A"}},{"$f":"VLOOKUP(Table_Data_Table_135[[#This Row],[Item ID]],Analysis_Table,13,FALSE)","v":{"$error":"#N/A"}},{"$f":"VLOOKUP(Table_Data_Table_135[[#This Row],[Item ID]],Analysis_Table,14,FALSE)","v":{"$error":"#N/A"}},{"$f":"VLOOKUP(Table_Data_Table_135[[#This Row],[Item ID]],Analysis_Table,15,FALSE)","v":{"$error":"#N/A"}},{"$f":"VLOOKUP(Table_Data_Table_135[[#This Row],[Item ID]],Analysis_Table,16,FALSE)","v":{"$error":"#N/A"}},{"$f":"VLOOKUP(Table_Data_Table_135[[#This Row],[Item ID]],Analysis_Table,17,FALSE)","v":{"$error":"#N/A"}},{"$f":"VLOOKUP(Table_Data_Table_135[[#This Row],[Item ID]],Analysis_Table,18,FALSE)","v":{"$error":"#N/A"}},{"$f":"VLOOKUP(Table_Data_Table_135[[#This Row],[Item ID]],Analysis_Table,19,FALSE)","v":{"$error":"#N/A"}},null,null,1]
["",null,{"$f":"VLOOKUP(Table_Data_Table_135[[#This Row],[Item ID]],Analysis_Table,20,FALSE)","v":{"$error":"#N/A"}},null,null,null,null,null,null,null,0,null,null,null,{"$f":"VLOOKUP(Table_Data_Table_135[[#This Row],[Item ID]],Analysis_Table,8,FALSE)","v":{"$error":"#N/A"}},{"$f":"VLOOKUP(Table_Data_Table_135[[#This Row],[Item ID]],Analysis_Table,9,FALSE)","v":{"$error":"#N/A"}},{"$f":"VLOOKUP(Table_Data_Table_135[[#This Row],[Item ID]],Analysis_Table,10,FALSE)","v":{"$error":"#N/A"}},{"$f":"VLOOKUP(Table_Data_Table_135[[#This Row],[Item ID]],Analysis_Table,11,FALSE)","v":{"$error":"#N/A"}},{"$f":"VLOOKUP(Table_Data_Table_135[[#This Row],[Item ID]],Analysis_Table,12,FALSE)","v":{"$error":"#N/A"}},{"$f":"VLOOKUP(Table_Data_Table_135[[#This Row],[Item ID]],Analysis_Table,13,FALSE)","v":{"$error":"#N/A"}},{"$f":"VLOOKUP(Table_Data_Table_135[[#This Row],[Item ID]],Analysis_Table,14,FALSE)","v":{"$error":"#N/A"}},{"$f":"VLOOKUP(Table_Data_Table_135[[#This Row],[Item ID]],Analysis_Table,15,FALSE)","v":{"$error":"#N/A"}},{"$f":"VLOOKUP(Table_Data_Table_135[[#This Row],[Item ID]],Analysis_Table,16,FALSE)","v":{"$error":"#N/A"}},{"$f":"VLOOKUP(Table_Data_Table_135[[#This Row],[Item ID]],Analysis_Table,17,FALSE)","v":{"$error":"#N/A"}},{"$f":"VLOOKUP(Table_Data_Table_135[[#This Row],[Item ID]],Analysis_Table,18,FALSE)","v":{"$error":"#N/A"}},{"$f":"VLOOKUP(Table_Data_Table_135[[#This Row],[Item ID]],Analysis_Table,19,FALSE)","v":{"$error":"#N/A"}},null,null,1]
["",null,{"$f":"VLOOKUP(Table_Data_Table_135[[#This Row],[Item ID]],Analysis_Table,20,FALSE)","v":{"$error":"#N/A"}},null,null,null,null,null,null,null,0,null,null,null,{"$f":"VLOOKUP(Table_Data_Table_135[[#This Row],[Item ID]],Analysis_Table,8,FALSE)","v":{"$error":"#N/A"}},{"$f":"VLOOKUP(Table_Data_Table_135[[#This Row],[Item ID]],Analysis_Table,9,FALSE)","v":{"$error":"#N/A"}},{"$f":"VLOOKUP(Table_Data_Table_135[[#This Row],[Item ID]],Analysis_Table,10,FALSE)","v":{"$error":"#N/A"}},{"$f":"VLOOKUP(Table_Data_Table_135[[#This Row],[Item ID]],Analysis_Table,11,FALSE)","v":{"$error":"#N/A"}},{"$f":"VLOOKUP(Table_Data_Table_135[[#This Row],[Item ID]],Analysis_Table,12,FALSE)","v":{"$error":"#N/A"}},{"$f":"VLOOKUP(Table_Data_Table_135[[#This Row],[Item ID]],Analysis_Table,13,FALSE)","v":{"$error":"#N/A"}},{"$f":"VLOOKUP(Table_Data_Table_135[[#This Row],[Item ID]],Analysis_Table,14,FALSE)","v":{"$error":"#N/A"}},{"$f":"VLOOKUP(Table_Data_Table_135[[#This Row],[Item ID]],Analysis_Table,15,FALSE)","v":{"$error":"#N/A"}},{"$f":"VLOOKUP(Table_Data_Table_135[[#This Row],[Item ID]],Analysis_Table,16,FALSE)","v":{"$error":"#N/A"}},{"$f":"VLOOKUP(Table_Data_Table_135[[#This Row],[Item ID]],Analysis_Table,17,FALSE)","v":{"$error":"#N/A"}},{"$f":"VLOOKUP(Table_Data_Table_135[[#This Row],[Item ID]],Analysis_Table,18,FALSE)","v":{"$error":"#N/A"}},{"$f":"VLOOKUP(Table_Data_Table_135[[#This Row],[Item ID]],Analysis_Table,19,FALSE)","v":{"$error":"#N/A"}},null,null,1]
["",null,{"$f":"VLOOKUP(Table_Data_Table_135[[#This Row],[Item ID]],Analysis_Table,20,FALSE)","v":{"$error":"#N/A"}},null,null,null,null,null,null,null,0,null,null,null,{"$f":"VLOOKUP(Table_Data_Table_135[[#This Row],[Item ID]],Analysis_Table,8,FALSE)","v":{"$error":"#N/A"}},{"$f":"VLOOKUP(Table_Data_Table_135[[#This Row],[Item ID]],Analysis_Table,9,FALSE)","v":{"$error":"#N/A"}},{"$f":"VLOOKUP(Table_Data_Table_135[[#This Row],[Item ID]],Analysis_Table,10,FALSE)","v":{"$error":"#N/A"}},{"$f":"VLOOKUP(Table_Data_Table_135[[#This Row],[Item ID]],Analysis_Table,11,FALSE)","v":{"$error":"#N/A"}},{"$f":"VLOOKUP(Table_Data_Table_135[[#This Row],[Item ID]],Analysis_Table,12,FALSE)","v":{"$error":"#N/A"}},{"$f":"VLOOKUP(Table_Data_Table_135[[#This Row],[Item ID]],Analysis_Table,13,FALSE)","v":{"$error":"#N/A"}},{"$f":"VLOOKUP(Table_Data_Table_135[[#This Row],[Item ID]],Analysis_Table,14,FALSE)","v":{"$error":"#N/A"}},{"$f":"VLOOKUP(Table_Data_Table_135[[#This Row],[Item ID]],Analysis_Table,15,FALSE)","v":{"$error":"#N/A"}},{"$f":"VLOOKUP(Table_Data_Table_135[[#This Row],[Item ID]],Analysis_Table,16,FALSE)","v":{"$error":"#N/A"}},{"$f":"VLOOKUP(Table_Data_Table_135[[#This Row],[Item ID]],Analysis_Table,17,FALSE)","v":{"$error":"#N/A"}},{"$f":"VLOOKUP(Table_Data_Table_135[[#This Row],[Item ID]],Analysis_Table,18,FALSE)","v":{"$error":"#N/A"}},{"$f":"VLOOKUP(Table_Data_Table_135[[#This Row],[Item ID]],Analysis_Table,19,FALSE)","v":{"$error":"#N/A"}},null,null,1]
["",null,{"$f":"VLOOKUP(Table_Data_Table_135[[#This Row],[Item ID]],Analysis_Table,20,FALSE)","v":{"$error":"#N/A"}},null,null,null,null,null,null,null,0,null,null,null,{"$f":"VLOOKUP(Table_Data_Table_135[[#This Row],[Item ID]],Analysis_Table,8,FALSE)","v":{"$error":"#N/A"}},{"$f":"VLOOKUP(Table_Data_Table_135[[#This Row],[Item ID]],Analysis_Table,9,FALSE)","v":{"$error":"#N/A"}},{"$f":"VLOOKUP(Table_Data_Table_135[[#This Row],[Item ID]],Analysis_Table,10,FALSE)","v":{"$error":"#N/A"}},{"$f":"VLOOKUP(Table_Data_Table_135[[#This Row],[Item ID]],Analysis_Table,11,FALSE)","v":{"$error":"#N/A"}},{"$f":"VLOOKUP(Table_Data_Table_135[[#This Row],[Item ID]],Analysis_Table,12,FALSE)","v":{"$error":"#N/A"}},{"$f":"VLOOKUP(Table_Data_Table_135[[#This Row],[Item ID]],Analysis_Table,13,FALSE)","v":{"$error":"#N/A"}},{"$f":"VLOOKUP(Table_Data_Table_135[[#This Row],[Item ID]],Analysis_Table,14,FALSE)","v":{"$error":"#N/A"}},{"$f":"VLOOKUP(Table_Data_Table_135[[#This Row],[Item ID]],Analysis_Table,15,FALSE)","v":{"$error":"#N/A"}},{"$f":"VLOOKUP(Table_Data_Table_135[[#This Row],[Item ID]],Analysis_Table,16,FALSE)","v":{"$error":"#N/A"}},{"$f":"VLOOKUP(Table_Data_Table_135[[#This Row],[Item ID]],Analysis_Table,17,FALSE)","v":{"$error":"#N/A"}},{"$f":"VLOOKUP(Table_Data_Table_135[[#This Row],[Item ID]],Analysis_Table,18,FALSE)","v":{"$error":"#N/A"}},{"$f":"VLOOKUP(Table_Data_Table_135[[#This Row],[Item ID]],Analysis_Table,19,FALSE)","v":{"$error":"#N/A"}},null,null,1]
["",null,{"$f":"VLOOKUP(Table_Data_Table_135[[#This Row],[Item ID]],Analysis_Table,20,FALSE)","v":{"$error":"#N/A"}},null,null,null,null,null,null,null,0,null,null,null,{"$f":"VLOOKUP(Table_Data_Table_135[[#This Row],[Item ID]],Analysis_Table,8,FALSE)","v":{"$error":"#N/A"}},{"$f":"VLOOKUP(Table_Data_Table_135[[#This Row],[Item ID]],Analysis_Table,9,FALSE)","v":{"$error":"#N/A"}},{"$f":"VLOOKUP(Table_Data_Table_135[[#This Row],[Item ID]],Analysis_Table,10,FALSE)","v":{"$error":"#N/A"}},{"$f":"VLOOKUP(Table_Data_Table_135[[#This Row],[Item ID]],Analysis_Table,11,FALSE)","v":{"$error":"#N/A"}},{"$f":"VLOOKUP(Table_Data_Table_135[[#This Row],[Item ID]],Analysis_Table,12,FALSE)","v":{"$error":"#N/A"}},{"$f":"VLOOKUP(Table_Data_Table_135[[#This Row],[Item ID]],Analysis_Table,13,FALSE)","v":{"$error":"#N/A"}},{"$f":"VLOOKUP(Table_Data_Table_135[[#This Row],[Item ID]],Analysis_Table,14,FALSE)","v":{"$error":"#N/A"}},{"$f":"VLOOKUP(Table_Data_Table_135[[#This Row],[Item ID]],Analysis_Table,15,FALSE)","v":{"$error":"#N/A"}},{"$f":"VLOOKUP(Table_Data_Table_135[[#This Row],[Item ID]],Analysis_Table,16,FALSE)","v":{"$error":"#N/A"}},{"$f":"VLOOKUP(Table_Data_Table_135[[#This Row],[Item ID]],Analysis_Table,17,FALSE)","v":{"$error":"#N/A"}},{"$f":"VLOOKUP(Table_Data_Table_135[[#This Row],[Item ID]],Analysis_Table,18,FALSE)","v":{"$error":"#N/A"}},{"$f":"VLOOKUP(Table_Data_Table_135[[#This Row],[Item ID]],Analysis_Table,19,FALSE)","v":{"$error":"#N/A"}},null,null,1]
["",null,{"$f":"VLOOKUP(Table_Data_Table_135[[#This Row],[Item ID]],Analysis_Table,20,FALSE)","v":{"$error":"#N/A"}},null,null,null,null,null,null,null,0,null,null,null,{"$f":"VLOOKUP(Table_Data_Table_135[[#This Row],[Item ID]],Analysis_Table,8,FALSE)","v":{"$error":"#N/A"}},{"$f":"VLOOKUP(Table_Data_Table_135[[#This Row],[Item ID]],Analysis_Table,9,FALSE)","v":{"$error":"#N/A"}},{"$f":"VLOOKUP(Table_Data_Table_135[[#This Row],[Item ID]],Analysis_Table,10,FALSE)","v":{"$error":"#N/A"}},{"$f":"VLOOKUP(Table_Data_Table_135[[#This Row],[Item ID]],Analysis_Table,11,FALSE)","v":{"$error":"#N/A"}},{"$f":"VLOOKUP(Table_Data_Table_135[[#This Row],[Item ID]],Analysis_Table,12,FALSE)","v":{"$error":"#N/A"}},{"$f":"VLOOKUP(Table_Data_Table_135[[#This Row],[Item ID]],Analysis_Table,13,FALSE)","v":{"$error":"#N/A"}},{"$f":"VLOOKUP(Table_Data_Table_135[[#This Row],[Item ID]],Analysis_Table,14,FALSE)","v":{"$error":"#N/A"}},{"$f":"VLOOKUP(Table_Data_Table_135[[#This Row],[Item ID]],Analysis_Table,15,FALSE)","v":{"$error":"#N/A"}},{"$f":"VLOOKUP(Table_Data_Table_135[[#This Row],[Item ID]],Analysis_Table,16,FALSE)","v":{"$error":"#N/A"}},{"$f":"VLOOKUP(Table_Data_Table_135[[#This Row],[Item ID]],Analysis_Table,17,FALSE)","v":{"$error":"#N/A"}},{"$f":"VLOOKUP(Table_Data_Table_135[[#This Row],[Item ID]],Analysis_Table,18,FALSE)","v":{"$error":"#N/A"}},{"$f":"VLOOKUP(Table_Data_Table_135[[#This Row],[Item ID]],Analysis_Table,19,FALSE)","v":{"$error":"#N/A"}},null,null,1]
["",null,{"$f":"VLOOKUP(Table_Data_Table_135[[#This Row],[Item ID]],Analysis_Table,20,FALSE)","v":{"$error":"#N/A"}},null,null,null,null,null,null,null,0,null,null,null,{"$f":"VLOOKUP(Table_Data_Table_135[[#This Row],[Item ID]],Analysis_Table,8,FALSE)","v":{"$error":"#N/A"}},{"$f":"VLOOKUP(Table_Data_Table_135[[#This Row],[Item ID]],Analysis_Table,9,FALSE)","v":{"$error":"#N/A"}},{"$f":"VLOOKUP(Table_Data_Table_135[[#This Row],[Item ID]],Analysis_Table,10,FALSE)","v":{"$error":"#N/A"}},{"$f":"VLOOKUP(Table_Data_Table_135[[#This Row],[Item ID]],Analysis_Table,11,FALSE)","v":{"$error":"#N/A"}},{"$f":"VLOOKUP(Table_Data_Table_135[[#This Row],[Item ID]],Analysis_Table,12,FALSE)","v":{"$error":"#N/A"}},{"$f":"VLOOKUP(Table_Data_Table_135[[#This Row],[Item ID]],Analysis_Table,13,FALSE)","v":{"$error":"#N/A"}},{"$f":"VLOOKUP(Table_Data_Table_135[[#This Row],[Item ID]],Analysis_Table,14,FALSE)","v":{"$error":"#N/A"}},{"$f":"VLOOKUP(Table_Data_Table_135[[#This Row],[Item ID]],Analysis_Table,15,FALSE)","v":{"$error":"#N/A"}},{"$f":"VLOOKUP(Table_Data_Table_135[[#This Row],[Item ID]],Analysis_Table,16,FALSE)","v":{"$error":"#N/A"}},{"$f":"VLOOKUP(Table_Data_Table_135[[#This Row],[Item ID]],Analysis_Table,17,FALSE)","v":{"$error":"#N/A"}},{"$f":"VLOOKUP(Table_Data_Table_135[[#This Row],[Item ID]],Analysis_Table,18,FALSE)","v":{"$error":"#N/A"}},{"$f":"VLOOKUP(Table_Data_Table_135[[#This Row],[Item ID]],Analysis_Table,19,FALSE)","v":{"$error":"#N/A"}},null,null,1]
["",null,{"$f":"VLOOKUP(Table_Data_Table_135[[#This Row],[Item ID]],Analysis_Table,20,FALSE)","v":{"$error":"#N/A"}},null,null,null,null,null,null,null,0,null,null,null,{"$f":"VLOOKUP(Table_Data_Table_135[[#This Row],[Item ID]],Analysis_Table,8,FALSE)","v":{"$error":"#N/A"}},{"$f":"VLOOKUP(Table_Data_Table_135[[#This Row],[Item ID]],Analysis_Table,9,FALSE)","v":{"$error":"#N/A"}},{"$f":"VLOOKUP(Table_Data_Table_135[[#This Row],[Item ID]],Analysis_Table,10,FALSE)","v":{"$error":"#N/A"}},{"$f":"VLOOKUP(Table_Data_Table_135[[#This Row],[Item ID]],Analysis_Table,11,FALSE)","v":{"$error":"#N/A"}},{"$f":"VLOOKUP(Table_Data_Table_135[[#This Row],[Item ID]],Analysis_Table,12,FALSE)","v":{"$error":"#N/A"}},{"$f":"VLOOKUP(Table_Data_Table_135[[#This Row],[Item ID]],Analysis_Table,13,FALSE)","v":{"$error":"#N/A"}},{"$f":"VLOOKUP(Table_Data_Table_135[[#This Row],[Item ID]],Analysis_Table,14,FALSE)","v":{"$error":"#N/A"}},{"$f":"VLOOKUP(Table_Data_Table_135[[#This Row],[Item ID]],Analysis_Table,15,FALSE)","v":{"$error":"#N/A"}},{"$f":"VLOOKUP(Table_Data_Table_135[[#This Row],[Item ID]],Analysis_Table,16,FALSE)","v":{"$error":"#N/A"}},{"$f":"VLOOKUP(Table_Data_Table_135[[#This Row],[Item ID]],Analysis_Table,17,FALSE)","v":{"$error":"#N/A"}},{"$f":"VLOOKUP(Table_Data_Table_135[[#This Row],[Item ID]],Analysis_Table,18,FALSE)","v":{"$error":"#N/A"}},{"$f":"VLOOKUP(Table_Data_Table_135[[#This Row],[Item ID]],Analysis_Table,19,FALSE)","v":{"$error":"#N/A"}},null,null,1]
["",null,{"$f":"VLOOKUP(Table_Data_Table_135[[#This Row],[Item ID]],Analysis_Table,20,FALSE)","v":{"$error":"#N/A"}},null,null,null,null,null,null,null,0,null,null,null,{"$f":"VLOOKUP(Table_Data_Table_135[[#This Row],[Item ID]],Analysis_Table,8,FALSE)","v":{"$error":"#N/A"}},{"$f":"VLOOKUP(Table_Data_Table_135[[#This Row],[Item ID]],Analysis_Table,9,FALSE)","v":{"$error":"#N/A"}},{"$f":"VLOOKUP(Table_Data_Table_135[[#This Row],[Item ID]],Analysis_Table,10,FALSE)","v":{"$error":"#N/A"}},{"$f":"VLOOKUP(Table_Data_Table_135[[#This Row],[Item ID]],Analysis_Table,11,FALSE)","v":{"$error":"#N/A"}},{"$f":"VLOOKUP(Table_Data_Table_135[[#This Row],[Item ID]],Analysis_Table,12,FALSE)","v":{"$error":"#N/A"}},{"$f":"VLOOKUP(Table_Data_Table_135[[#This Row],[Item ID]],Analysis_Table,13,FALSE)","v":{"$error":"#N/A"}},{"$f":"VLOOKUP(Table_Data_Table_135[[#This Row],[Item ID]],Analysis_Table,14,FALSE)","v":{"$error":"#N/A"}},{"$f":"VLOOKUP(Table_Data_Table_135[[#This Row],[Item ID]],Analysis_Table,15,FALSE)","v":{"$error":"#N/A"}},{"$f":"VLOOKUP(Table_Data_Table_135[[#This Row],[Item ID]],Analysis_Table,16,FALSE)","v":{"$error":"#N/A"}},{"$f":"VLOOKUP(Table_Data_Table_135[[#This Row],[Item ID]],Analysis_Table,17,FALSE)","v":{"$error":"#N/A"}},{"$f":"VLOOKUP(Table_Data_Table_135[[#This Row],[Item ID]],Analysis_Table,18,FALSE)","v":{"$error":"#N/A"}},{"$f":"VLOOKUP(Table_Data_Table_135[[#This Row],[Item ID]],Analysis_Table,19,FALSE)","v":{"$error":"#N/A"}},null,null,1]
["",null,{"$f":"VLOOKUP(Table_Data_Table_135[[#This Row],[Item ID]],Analysis_Table,20,FALSE)","v":{"$error":"#N/A"}},null,null,null,null,null,null,null,0,null,null,null,{"$f":"VLOOKUP(Table_Data_Table_135[[#This Row],[Item ID]],Analysis_Table,8,FALSE)","v":{"$error":"#N/A"}},{"$f":"VLOOKUP(Table_Data_Table_135[[#This Row],[Item ID]],Analysis_Table,9,FALSE)","v":{"$error":"#N/A"}},{"$f":"VLOOKUP(Table_Data_Table_135[[#This Row],[Item ID]],Analysis_Table,10,FALSE)","v":{"$error":"#N/A"}},{"$f":"VLOOKUP(Table_Data_Table_135[[#This Row],[Item ID]],Analysis_Table,11,FALSE)","v":{"$error":"#N/A"}},{"$f":"VLOOKUP(Table_Data_Table_135[[#This Row],[Item ID]],Analysis_Table,12,FALSE)","v":{"$error":"#N/A"}},{"$f":"VLOOKUP(Table_Data_Table_135[[#This Row],[Item ID]],Analysis_Table,13,FALSE)","v":{"$error":"#N/A"}},{"$f":"VLOOKUP(Table_Data_Table_135[[#This Row],[Item ID]],Analysis_Table,14,FALSE)","v":{"$error":"#N/A"}},{"$f":"VLOOKUP(Table_Data_Table_135[[#This Row],[Item ID]],Analysis_Table,15,FALSE)","v":{"$error":"#N/A"}},{"$f":"VLOOKUP(Table_Data_Table_135[[#This Row],[Item ID]],Analysis_Table,16,FALSE)","v":{"$error":"#N/A"}},{"$f":"VLOOKUP(Table_Data_Table_135[[#This Row],[Item ID]],Analysis_Table,17,FALSE)","v":{"$error":"#N/A"}},{"$f":"VLOOKUP(Table_Data_Table_135[[#This Row],[Item ID]],Analysis_Table,18,FALSE)","v":{"$error":"#N/A"}},{"$f":"VLOOKUP(Table_Data_Table_135[[#This Row],[Item ID]],Analysis_Table,19,FALSE)","v":{"$error":"#N/A"}},null,null,1]
["",null,{"$f":"VLOOKUP(Table_Data_Table_135[[#This Row],[Item ID]],Analysis_Table,20,FALSE)","v":{"$error":"#N/A"}},null,null,null,null,null,null,null,0,null,null,null,{"$f":"VLOOKUP(Table_Data_Table_135[[#This Row],[Item ID]],Analysis_Table,8,FALSE)","v":{"$error":"#N/A"}},{"$f":"VLOOKUP(Table_Data_Table_135[[#This Row],[Item ID]],Analysis_Table,9,FALSE)","v":{"$error":"#N/A"}},{"$f":"VLOOKUP(Table_Data_Table_135[[#This Row],[Item ID]],Analysis_Table,10,FALSE)","v":{"$error":"#N/A"}},{"$f":"VLOOKUP(Table_Data_Table_135[[#This Row],[Item ID]],Analysis_Table,11,FALSE)","v":{"$error":"#N/A"}},{"$f":"VLOOKUP(Table_Data_Table_135[[#This Row],[Item ID]],Analysis_Table,12,FALSE)","v":{"$error":"#N/A"}},{"$f":"VLOOKUP(Table_Data_Table_135[[#This Row],[Item ID]],Analysis_Table,13,FALSE)","v":{"$error":"#N/A"}},{"$f":"VLOOKUP(Table_Data_Table_135[[#This Row],[Item ID]],Analysis_Table,14,FALSE)","v":{"$error":"#N/A"}},{"$f":"VLOOKUP(Table_Data_Table_135[[#This Row],[Item ID]],Analysis_Table,15,FALSE)","v":{"$error":"#N/A"}},{"$f":"VLOOKUP(Table_Data_Table_135[[#This Row],[Item ID]],Analysis_Table,16,FALSE)","v":{"$error":"#N/A"}},{"$f":"VLOOKUP(Table_Data_Table_135[[#This Row],[Item ID]],Analysis_Table,17,FALSE)","v":{"$error":"#N/A"}},{"$f":"VLOOKUP(Table_Data_Table_135[[#This Row],[Item ID]],Analysis_Table,18,FALSE)","v":{"$error":"#N/A"}},{"$f":"VLOOKUP(Table_Data_Table_135[[#This Row],[Item ID]],Analysis_Table,19,FALSE)","v":{"$error":"#N/A"}},null,null,1]
["",null,{"$f":"VLOOKUP(Table_Data_Table_135[[#This Row],[Item ID]],Analysis_Table,20,FALSE)","v":{"$error":"#N/A"}},null,null,null,null,null,null,null,0,null,null,null,{"$f":"VLOOKUP(Table_Data_Table_135[[#This Row],[Item ID]],Analysis_Table,8,FALSE)","v":{"$error":"#N/A"}},{"$f":"VLOOKUP(Table_Data_Table_135[[#This Row],[Item ID]],Analysis_Table,9,FALSE)","v":{"$error":"#N/A"}},{"$f":"VLOOKUP(Table_Data_Table_135[[#This Row],[Item ID]],Analysis_Table,10,FALSE)","v":{"$error":"#N/A"}},{"$f":"VLOOKUP(Table_Data_Table_135[[#This Row],[Item ID]],Analysis_Table,11,FALSE)","v":{"$error":"#N/A"}},{"$f":"VLOOKUP(Table_Data_Table_135[[#This Row],[Item ID]],Analysis_Table,12,FALSE)","v":{"$error":"#N/A"}},{"$f":"VLOOKUP(Table_Data_Table_135[[#This Row],[Item ID]],Analysis_Table,13,FALSE)","v":{"$error":"#N/A"}},{"$f":"VLOOKUP(Table_Data_Table_135[[#This Row],[Item ID]],Analysis_Table,14,FALSE)","v":{"$error":"#N/A"}},{"$f":"VLOOKUP(Table_Data_Table_135[[#This Row],[Item ID]],Analysis_Table,15,FALSE)","v":{"$error":"#N/A"}},{"$f":"VLOOKUP(Table_Data_Table_135[[#This Row],[Item ID]],Analysis_Table,16,FALSE)","v":{"$error":"#N/A"}},{"$f":"VLOOKUP(Table_Data_Table_135[[#This Row],[Item ID]],Analysis_Table,17,FALSE)","v":{"$error":"#N/A"}},{"$f":"VLOOKUP(Table_Data_Table_135[[#This Row],[Item ID]],Analysis_Table,18,FALSE)","v":{"$error":"#N/A"}},{"$f":"VLOOKUP(Table_Data_Table_135[[#This Row],[Item ID]],Analysis_Table,19,FALSE)","v":{"$error":"#N/A"}},null,null,1]
["",null,{"$f":"VLOOKUP(Table_Data_Table_135[[#This Row],[Item ID]],Analysis_Table,20,FALSE)","v":{"$error":"#N/A"}},null,null,null,null,null,null,null,0,null,null,null,{"$f":"VLOOKUP(Table_Data_Table_135[[#This Row],[Item ID]],Analysis_Table,8,FALSE)","v":{"$error":"#N/A"}},{"$f":"VLOOKUP(Table_Data_Table_135[[#This Row],[Item ID]],Analysis_Table,9,FALSE)","v":{"$error":"#N/A"}},{"$f":"VLOOKUP(Table_Data_Table_135[[#This Row],[Item ID]],Analysis_Table,10,FALSE)","v":{"$error":"#N/A"}},{"$f":"VLOOKUP(Table_Data_Table_135[[#This Row],[Item ID]],Analysis_Table,11,FALSE)","v":{"$error":"#N/A"}},{"$f":"VLOOKUP(Table_Data_Table_135[[#This Row],[Item ID]],Analysis_Table,12,FALSE)","v":{"$error":"#N/A"}},{"$f":"VLOOKUP(Table_Data_Table_135[[#This Row],[Item ID]],Analysis_Table,13,FALSE)","v":{"$error":"#N/A"}},{"$f":"VLOOKUP(Table_Data_Table_135[[#This Row],[Item ID]],Analysis_Table,14,FALSE)","v":{"$error":"#N/A"}},{"$f":"VLOOKUP(Table_Data_Table_135[[#This Row],[Item ID]],Analysis_Table,15,FALSE)","v":{"$error":"#N/A"}},{"$f":"VLOOKUP(Table_Data_Table_135[[#This Row],[Item ID]],Analysis_Table,16,FALSE)","v":{"$error":"#N/A"}},{"$f":"VLOOKUP(Table_Data_Table_135[[#This Row],[Item ID]],Analysis_Table,17,FALSE)","v":{"$error":"#N/A"}},{"$f":"VLOOKUP(Table_Data_Table_135[[#This Row],[Item ID]],Analysis_Table,18,FALSE)","v":{"$error":"#N/A"}},{"$f":"VLOOKUP(Table_Data_Table_135[[#This Row],[Item ID]],Analysis_Table,19,FALSE)","v":{"$error":"#N/A"}},null,null,1]
["",null,{"$f":"VLOOKUP(Table_Data_Table_135[[#This Row],[Item ID]],Analysis_Table,20,FALSE)","v":{"$error":"#N/A"}},null,null,null,null,null,null,null,0,null,null,null,{"$f":"VLOOKUP(Table_Data_Table_135[[#This Row],[Item ID]],Analysis_Table,8,FALSE)","v":{"$error":"#N/A"}},{"$f":"VLOOKUP(Table_Data_Table_135[[#This Row],[Item ID]],Analysis_Table,9,FALSE)","v":{"$error":"#N/A"}},{"$f":"VLOOKUP(Table_Data_Table_135[[#This Row],[Item ID]],Analysis_Table,10,FALSE)","v":{"$error":"#N/A"}},{"$f":"VLOOKUP(Table_Data_Table_135[[#This Row],[Item ID]],Analysis_Table,11,FALSE)","v":{"$error":"#N/A"}},{"$f":"VLOOKUP(Table_Data_Table_135[[#This Row],[Item ID]],Analysis_Table,12,FALSE)","v":{"$error":"#N/A"}},{"$f":"VLOOKUP(Table_Data_Table_135[[#This Row],[Item ID]],Analysis_Table,13,FALSE)","v":{"$error":"#N/A"}},{"$f":"VLOOKUP(Table_Data_Table_135[[#This Row],[Item ID]],Analysis_Table,14,FALSE)","v":{"$error":"#N/A"}},{"$f":"VLOOKUP(Table_Data_Table_135[[#This Row],[Item ID]],Analysis_Table,15,FALSE)","v":{"$error":"#N/A"}},{"$f":"VLOOKUP(Table_Data_Table_135[[#This Row],[Item ID]],Analysis_Table,16,FALSE)","v":{"$error":"#N/A"}},{"$f":"VLOOKUP(Table_Data_Table_135[[#This Row],[Item ID]],Analysis_Table,17,FALSE)","v":{"$error":"#N/A"}},{"$f":"VLOOKUP(Table_Data_Table_135[[#This Row],[Item ID]],Analysis_Table,18,FALSE)","v":{"$error":"#N/A"}},{"$f":"VLOOKUP(Table_Data_Table_135[[#This Row],[Item ID]],Analysis_Table,19,FALSE)","v":{"$error":"#N/A"}},null,null,1]
["",null,{"$f":"VLOOKUP(Table_Data_Table_135[[#This Row],[Item ID]],Analysis_Table,20,FALSE)","v":{"$error":"#N/A"}},null,null,null,null,null,null,null,0,null,null,null,{"$f":"VLOOKUP(Table_Data_Table_135[[#This Row],[Item ID]],Analysis_Table,8,FALSE)","v":{"$error":"#N/A"}},{"$f":"VLOOKUP(Table_Data_Table_135[[#This Row],[Item ID]],Analysis_Table,9,FALSE)","v":{"$error":"#N/A"}},{"$f":"VLOOKUP(Table_Data_Table_135[[#This Row],[Item ID]],Analysis_Table,10,FALSE)","v":{"$error":"#N/A"}},{"$f":"VLOOKUP(Table_Data_Table_135[[#This Row],[Item ID]],Analysis_Table,11,FALSE)","v":{"$error":"#N/A"}},{"$f":"VLOOKUP(Table_Data_Table_135[[#This Row],[Item ID]],Analysis_Table,12,FALSE)","v":{"$error":"#N/A"}},{"$f":"VLOOKUP(Table_Data_Table_135[[#This Row],[Item ID]],Analysis_Table,13,FALSE)","v":{"$error":"#N/A"}},{"$f":"VLOOKUP(Table_Data_Table_135[[#This Row],[Item ID]],Analysis_Table,14,FALSE)","v":{"$error":"#N/A"}},{"$f":"VLOOKUP(Table_Data_Table_135[[#This Row],[Item ID]],Analysis_Table,15,FALSE)","v":{"$error":"#N/A"}},{"$f":"VLOOKUP(Table_Data_Table_135[[#This Row],[Item ID]],Analysis_Table,16,FALSE)","v":{"$error":"#N/A"}},{"$f":"VLOOKUP(Table_Data_Table_135[[#This Row],[Item ID]],Analysis_Table,17,FALSE)","v":{"$error":"#N/A"}},{"$f":"VLOOKUP(Table_Data_Table_135[[#This Row],[Item ID]],Analysis_Table,18,FALSE)","v":{"$error":"#N/A"}},{"$f":"VLOOKUP(Table_Data_Table_135[[#This Row],[Item ID]],Analysis_Table,19,FALSE)","v":{"$error":"#N/A"}},null,null,1]
["",null,{"$f":"VLOOKUP(Table_Data_Table_135[[#This Row],[Item ID]],Analysis_Table,20,FALSE)","v":{"$error":"#N/A"}},null,null,null,null,null,null,null,0,null,null,null,{"$f":"VLOOKUP(Table_Data_Table_135[[#This Row],[Item ID]],Analysis_Table,8,FALSE)","v":{"$error":"#N/A"}},{"$f":"VLOOKUP(Table_Data_Table_135[[#This Row],[Item ID]],Analysis_Table,9,FALSE)","v":{"$error":"#N/A"}},{"$f":"VLOOKUP(Table_Data_Table_135[[#This Row],[Item ID]],Analysis_Table,10,FALSE)","v":{"$error":"#N/A"}},{"$f":"VLOOKUP(Table_Data_Table_135[[#This Row],[Item ID]],Analysis_Table,11,FALSE)","v":{"$error":"#N/A"}},{"$f":"VLOOKUP(Table_Data_Table_135[[#This Row],[Item ID]],Analysis_Table,12,FALSE)","v":{"$error":"#N/A"}},{"$f":"VLOOKUP(Table_Data_Table_135[[#This Row],[Item ID]],Analysis_Table,13,FALSE)","v":{"$error":"#N/A"}},{"$f":"VLOOKUP(Table_Data_Table_135[[#This Row],[Item ID]],Analysis_Table,14,FALSE)","v":{"$error":"#N/A"}},{"$f":"VLOOKUP(Table_Data_Table_135[[#This Row],[Item ID]],Analysis_Table,15,FALSE)","v":{"$error":"#N/A"}},{"$f":"VLOOKUP(Table_Data_Table_135[[#This Row],[Item ID]],Analysis_Table,16,FALSE)","v":{"$error":"#N/A"}},{"$f":"VLOOKUP(Table_Data_Table_135[[#This Row],[Item ID]],Analysis_Table,17,FALSE)","v":{"$error":"#N/A"}},{"$f":"VLOOKUP(Table_Data_Table_135[[#This Row],[Item ID]],Analysis_Table,18,FALSE)","v":{"$error":"#N/A"}},{"$f":"VLOOKUP(Table_Data_Table_135[[#This Row],[Item ID]],Analysis_Table,19,FALSE)","v":{"$error":"#N/A"}},null,null,1]
["",null,{"$f":"VLOOKUP(Table_Data_Table_135[[#This Row],[Item ID]],Analysis_Table,20,FALSE)","v":{"$error":"#N/A"}},null,null,null,null,null,null,null,0,null,null,null,{"$f":"VLOOKUP(Table_Data_Table_135[[#This Row],[Item ID]],Analysis_Table,8,FALSE)","v":{"$error":"#N/A"}},{"$f":"VLOOKUP(Table_Data_Table_135[[#This Row],[Item ID]],Analysis_Table,9,FALSE)","v":{"$error":"#N/A"}},{"$f":"VLOOKUP(Table_Data_Table_135[[#This Row],[Item ID]],Analysis_Table,10,FALSE)","v":{"$error":"#N/A"}},{"$f":"VLOOKUP(Table_Data_Table_135[[#This Row],[Item ID]],Analysis_Table,11,FALSE)","v":{"$error":"#N/A"}},{"$f":"VLOOKUP(Table_Data_Table_135[[#This Row],[Item ID]],Analysis_Table,12,FALSE)","v":{"$error":"#N/A"}},{"$f":"VLOOKUP(Table_Data_Table_135[[#This Row],[Item ID]],Analysis_Table,13,FALSE)","v":{"$error":"#N/A"}},{"$f":"VLOOKUP(Table_Data_Table_135[[#This Row],[Item ID]],Analysis_Table,14,FALSE)","v":{"$error":"#N/A"}},{"$f":"VLOOKUP(Table_Data_Table_135[[#This Row],[Item ID]],Analysis_Table,15,FALSE)","v":{"$error":"#N/A"}},{"$f":"VLOOKUP(Table_Data_Table_135[[#This Row],[Item ID]],Analysis_Table,16,FALSE)","v":{"$error":"#N/A"}},{"$f":"VLOOKUP(Table_Data_Table_135[[#This Row],[Item ID]],Analysis_Table,17,FALSE)","v":{"$error":"#N/A"}},{"$f":"VLOOKUP(Table_Data_Table_135[[#This Row],[Item ID]],Analysis_Table,18,FALSE)","v":{"$error":"#N/A"}},{"$f":"VLOOKUP(Table_Data_Table_135[[#This Row],[Item ID]],Analysis_Table,19,FALSE)","v":{"$error":"#N/A"}},null,null,1]
["",null,{"$f":"VLOOKUP(Table_Data_Table_135[[#This Row],[Item ID]],Analysis_Table,20,FALSE)","v":{"$error":"#N/A"}},null,null,null,null,null,null,null,0,null,null,null,{"$f":"VLOOKUP(Table_Data_Table_135[[#This Row],[Item ID]],Analysis_Table,8,FALSE)","v":{"$error":"#N/A"}},{"$f":"VLOOKUP(Table_Data_Table_135[[#This Row],[Item ID]],Analysis_Table,9,FALSE)","v":{"$error":"#N/A"}},{"$f":"VLOOKUP(Table_Data_Table_135[[#This Row],[Item ID]],Analysis_Table,10,FALSE)","v":{"$error":"#N/A"}},{"$f":"VLOOKUP(Table_Data_Table_135[[#This Row],[Item ID]],Analysis_Table,11,FALSE)","v":{"$error":"#N/A"}},{"$f":"VLOOKUP(Table_Data_Table_135[[#This Row],[Item ID]],Analysis_Table,12,FALSE)","v":{"$error":"#N/A"}},{"$f":"VLOOKUP(Table_Data_Table_135[[#This Row],[Item ID]],Analysis_Table,13,FALSE)","v":{"$error":"#N/A"}},{"$f":"VLOOKUP(Table_Data_Table_135[[#This Row],[Item ID]],Analysis_Table,14,FALSE)","v":{"$error":"#N/A"}},{"$f":"VLOOKUP(Table_Data_Table_135[[#This Row],[Item ID]],Analysis_Table,15,FALSE)","v":{"$error":"#N/A"}},{"$f":"VLOOKUP(Table_Data_Table_135[[#This Row],[Item ID]],Analysis_Table,16,FALSE)","v":{"$error":"#N/A"}},{"$f":"VLOOKUP(Table_Data_Table_135[[#This Row],[Item ID]],Analysis_Table,17,FALSE)","v":{"$error":"#N/A"}},{"$f":"VLOOKUP(Table_Data_Table_135[[#This Row],[Item ID]],Analysis_Table,18,FALSE)","v":{"$error":"#N/A"}},{"$f":"VLOOKUP(Table_Data_Table_135[[#This Row],[Item ID]],Analysis_Table,19,FALSE)","v":{"$error":"#N/A"}},null,null,1]
["",null,{"$f":"VLOOKUP(Table_Data_Table_135[[#This Row],[Item ID]],Analysis_Table,20,FALSE)","v":{"$error":"#N/A"}},null,null,null,null,null,null,null,0,null,null,null,{"$f":"VLOOKUP(Table_Data_Table_135[[#This Row],[Item ID]],Analysis_Table,8,FALSE)","v":{"$error":"#N/A"}},{"$f":"VLOOKUP(Table_Data_Table_135[[#This Row],[Item ID]],Analysis_Table,9,FALSE)","v":{"$error":"#N/A"}},{"$f":"VLOOKUP(Table_Data_Table_135[[#This Row],[Item ID]],Analysis_Table,10,FALSE)","v":{"$error":"#N/A"}},{"$f":"VLOOKUP(Table_Data_Table_135[[#This Row],[Item ID]],Analysis_Table,11,FALSE)","v":{"$error":"#N/A"}},{"$f":"VLOOKUP(Table_Data_Table_135[[#This Row],[Item ID]],Analysis_Table,12,FALSE)","v":{"$error":"#N/A"}},{"$f":"VLOOKUP(Table_Data_Table_135[[#This Row],[Item ID]],Analysis_Table,13,FALSE)","v":{"$error":"#N/A"}},{"$f":"VLOOKUP(Table_Data_Table_135[[#This Row],[Item ID]],Analysis_Table,14,FALSE)","v":{"$error":"#N/A"}},{"$f":"VLOOKUP(Table_Data_Table_135[[#This Row],[Item ID]],Analysis_Table,15,FALSE)","v":{"$error":"#N/A"}},{"$f":"VLOOKUP(Table_Data_Table_135[[#This Row],[Item ID]],Analysis_Table,16,FALSE)","v":{"$error":"#N/A"}},{"$f":"VLOOKUP(Table_Data_Table_135[[#This Row],[Item ID]],Analysis_Table,17,FALSE)","v":{"$error":"#N/A"}},{"$f":"VLOOKUP(Table_Data_Table_135[[#This Row],[Item ID]],Analysis_Table,18,FALSE)","v":{"$error":"#N/A"}},{"$f":"VLOOKUP(Table_Data_Table_135[[#This Row],[Item ID]],Analysis_Table,19,FALSE)","v":{"$error":"#N/A"}},null,null,1]
["",null,{"$f":"VLOOKUP(Table_Data_Table_135[[#This Row],[Item ID]],Analysis_Table,20,FALSE)","v":{"$error":"#N/A"}},null,null,null,null,null,null,null,0,null,null,null,{"$f":"VLOOKUP(Table_Data_Table_135[[#This Row],[Item ID]],Analysis_Table,8,FALSE)","v":{"$error":"#N/A"}},{"$f":"VLOOKUP(Table_Data_Table_135[[#This Row],[Item ID]],Analysis_Table,9,FALSE)","v":{"$error":"#N/A"}},{"$f":"VLOOKUP(Table_Data_Table_135[[#This Row],[Item ID]],Analysis_Table,10,FALSE)","v":{"$error":"#N/A"}},{"$f":"VLOOKUP(Table_Data_Table_135[[#This Row],[Item ID]],Analysis_Table,11,FALSE)","v":{"$error":"#N/A"}},{"$f":"VLOOKUP(Table_Data_Table_135[[#This Row],[Item ID]],Analysis_Table,12,FALSE)","v":{"$error":"#N/A"}},{"$f":"VLOOKUP(Table_Data_Table_135[[#This Row],[Item ID]],Analysis_Table,13,FALSE)","v":{"$error":"#N/A"}},{"$f":"VLOOKUP(Table_Data_Table_135[[#This Row],[Item ID]],Analysis_Table,14,FALSE)","v":{"$error":"#N/A"}},{"$f":"VLOOKUP(Table_Data_Table_135[[#This Row],[Item ID]],Analysis_Table,15,FALSE)","v":{"$error":"#N/A"}},{"$f":"VLOOKUP(Table_Data_Table_135[[#This Row],[Item ID]],Analysis_Table,16,FALSE)","v":{"$error":"#N/A"}},{"$f":"VLOOKUP(Table_Data_Table_135[[#This Row],[Item ID]],Analysis_Table,17,FALSE)","v":{"$error":"#N/A"}},{"$f":"VLOOKUP(Table_Data_Table_135[[#This Row],[Item ID]],Analysis_Table,18,FALSE)","v":{"$error":"#N/A"}},{"$f":"VLOOKUP(Table_Data_Table_135[[#This Row],[Item ID]],Analysis_Table,19,FALSE)","v":{"$error":"#N/A"}},null,null,1]
["",null,{"$f":"VLOOKUP(Table_Data_Table_135[[#This Row],[Item ID]],Analysis_Table,20,FALSE)","v":{"$error":"#N/A"}},null,null,null,null,null,null,null,0,null,null,null,{"$f":"VLOOKUP(Table_Data_Table_135[[#This Row],[Item ID]],Analysis_Table,8,FALSE)","v":{"$error":"#N/A"}},{"$f":"VLOOKUP(Table_Data_Table_135[[#This Row],[Item ID]],Analysis_Table,9,FALSE)","v":{"$error":"#N/A"}},{"$f":"VLOOKUP(Table_Data_Table_135[[#This Row],[Item ID]],Analysis_Table,10,FALSE)","v":{"$error":"#N/A"}},{"$f":"VLOOKUP(Table_Data_Table_135[[#This Row],[Item ID]],Analysis_Table,11,FALSE)","v":{"$error":"#N/A"}},{"$f":"VLOOKUP(Table_Data_Table_135[[#This Row],[Item ID]],Analysis_Table,12,FALSE)","v":{"$error":"#N/A"}},{"$f":"VLOOKUP(Table_Data_Table_135[[#This Row],[Item ID]],Analysis_Table,13,FALSE)","v":{"$error":"#N/A"}},{"$f":"VLOOKUP(Table_Data_Table_135[[#This Row],[Item ID]],Analysis_Table,14,FALSE)","v":{"$error":"#N/A"}},{"$f":"VLOOKUP(Table_Data_Table_135[[#This Row],[Item ID]],Analysis_Table,15,FALSE)","v":{"$error":"#N/A"}},{"$f":"VLOOKUP(Table_Data_Table_135[[#This Row],[Item ID]],Analysis_Table,16,FALSE)","v":{"$error":"#N/A"}},{"$f":"VLOOKUP(Table_Data_Table_135[[#This Row],[Item ID]],Analysis_Table,17,FALSE)","v":{"$error":"#N/A"}},{"$f":"VLOOKUP(Table_Data_Table_135[[#This Row],[Item ID]],Analysis_Table,18,FALSE)","v":{"$error":"#N/A"}},{"$f":"VLOOKUP(Table_Data_Table_135[[#This Row],[Item ID]],Analysis_Table,19,FALSE)","v":{"$error":"#N/A"}},null,null,1]
["",null,{"$f":"VLOOKUP(Table_Data_Table_135[[#This Row],[Item ID]],Analysis_Table,20,FALSE)","v":{"$error":"#N/A"}},null,null,null,null,null,null,null,0,null,null,null,{"$f":"VLOOKUP(Table_Data_Table_135[[#This Row],[Item ID]],Analysis_Table,8,FALSE)","v":{"$error":"#N/A"}},{"$f":"VLOOKUP(Table_Data_Table_135[[#This Row],[Item ID]],Analysis_Table,9,FALSE)","v":{"$error":"#N/A"}},{"$f":"VLOOKUP(Table_Data_Table_135[[#This Row],[Item ID]],Analysis_Table,10,FALSE)","v":{"$error":"#N/A"}},{"$f":"VLOOKUP(Table_Data_Table_135[[#This Row],[Item ID]],Analysis_Table,11,FALSE)","v":{"$error":"#N/A"}},{"$f":"VLOOKUP(Table_Data_Table_135[[#This Row],[Item ID]],Analysis_Table,12,FALSE)","v":{"$error":"#N/A"}},{"$f":"VLOOKUP(Table_Data_Table_135[[#This Row],[Item ID]],Analysis_Table,13,FALSE)","v":{"$error":"#N/A"}},{"$f":"VLOOKUP(Table_Data_Table_135[[#This Row],[Item ID]],Analysis_Table,14,FALSE)","v":{"$error":"#N/A"}},{"$f":"VLOOKUP(Table_Data_Table_135[[#This Row],[Item ID]],Analysis_Table,15,FALSE)","v":{"$error":"#N/A"}},{"$f":"VLOOKUP(Table_Data_Table_135[[#This Row],[Item ID]],Analysis_Table,16,FALSE)","v":{"$error":"#N/A"}},{"$f":"VLOOKUP(Table_Data_Table_135[[#This Row],[Item ID]],Analysis_Table,17,FALSE)","v":{"$error":"#N/A"}},{"$f":"VLOOKUP(Table_Data_Table_135[[#This Row],[Item ID]],Analysis_Table,18,FALSE)","v":{"$error":"#N/A"}},{"$f":"VLOOKUP(Table_Data_Table_135[[#This Row],[Item ID]],Analysis_Table,19,FALSE)","v":{"$error":"#N/A"}},null,null,1]
["",null,{"$f":"VLOOKUP(Table_Data_Table_135[[#This Row],[Item ID]],Analysis_Table,20,FALSE)","v":{"$error":"#N/A"}},null,null,null,null,null,null,null,0,null,null,null,{"$f":"VLOOKUP(Table_Data_Table_135[[#This Row],[Item ID]],Analysis_Table,8,FALSE)","v":{"$error":"#N/A"}},{"$f":"VLOOKUP(Table_Data_Table_135[[#This Row],[Item ID]],Analysis_Table,9,FALSE)","v":{"$error":"#N/A"}},{"$f":"VLOOKUP(Table_Data_Table_135[[#This Row],[Item ID]],Analysis_Table,10,FALSE)","v":{"$error":"#N/A"}},{"$f":"VLOOKUP(Table_Data_Table_135[[#This Row],[Item ID]],Analysis_Table,11,FALSE)","v":{"$error":"#N/A"}},{"$f":"VLOOKUP(Table_Data_Table_135[[#This Row],[Item ID]],Analysis_Table,12,FALSE)","v":{"$error":"#N/A"}},{"$f":"VLOOKUP(Table_Data_Table_135[[#This Row],[Item ID]],Analysis_Table,13,FALSE)","v":{"$error":"#N/A"}},{"$f":"VLOOKUP(Table_Data_Table_135[[#This Row],[Item ID]],Analysis_Table,14,FALSE)","v":{"$error":"#N/A"}},{"$f":"VLOOKUP(Table_Data_Table_135[[#This Row],[Item ID]],Analysis_Table,15,FALSE)","v":{"$error":"#N/A"}},{"$f":"VLOOKUP(Table_Data_Table_135[[#This Row],[Item ID]],Analysis_Table,16,FALSE)","v":{"$error":"#N/A"}},{"$f":"VLOOKUP(Table_Data_Table_135[[#This Row],[Item ID]],Analysis_Table,17,FALSE)","v":{"$error":"#N/A"}},{"$f":"VLOOKUP(Table_Data_Table_135[[#This Row],[Item ID]],Analysis_Table,18,FALSE)","v":{"$error":"#N/A"}},{"$f":"VLOOKUP(Table_Data_Table_135[[#This Row],[Item ID]],Analysis_Table,19,FALSE)","v":{"$error":"#N/A"}},null,null,1]
["",null,{"$f":"VLOOKUP(Table_Data_Table_135[[#This Row],[Item ID]],Analysis_Table,20,FALSE)","v":{"$error":"#N/A"}},null,null,null,null,null,null,null,0,null,null,null,{"$f":"VLOOKUP(Table_Data_Table_135[[#This Row],[Item ID]],Analysis_Table,8,FALSE)","v":{"$error":"#N/A"}},{"$f":"VLOOKUP(Table_Data_Table_135[[#This Row],[Item ID]],Analysis_Table,9,FALSE)","v":{"$error":"#N/A"}},{"$f":"VLOOKUP(Table_Data_Table_135[[#This Row],[Item ID]],Analysis_Table,10,FALSE)","v":{"$error":"#N/A"}},{"$f":"VLOOKUP(Table_Data_Table_135[[#This Row],[Item ID]],Analysis_Table,11,FALSE)","v":{"$error":"#N/A"}},{"$f":"VLOOKUP(Table_Data_Table_135[[#This Row],[Item ID]],Analysis_Table,12,FALSE)","v":{"$error":"#N/A"}},{"$f":"VLOOKUP(Table_Data_Table_135[[#This Row],[Item ID]],Analysis_Table,13,FALSE)","v":{"$error":"#N/A"}},{"$f":"VLOOKUP(Table_Data_Table_135[[#This Row],[Item ID]],Analysis_Table,14,FALSE)","v":{"$error":"#N/A"}},{"$f":"VLOOKUP(Table_Data_Table_135[[#This Row],[Item ID]],Analysis_Table,15,FALSE)","v":{"$error":"#N/A"}},{"$f":"VLOOKUP(Table_Data_Table_135[[#This Row],[Item ID]],Analysis_Table,16,FALSE)","v":{"$error":"#N/A"}},{"$f":"VLOOKUP(Table_Data_Table_135[[#This Row],[Item ID]],Analysis_Table,17,FALSE)","v":{"$error":"#N/A"}},{"$f":"VLOOKUP(Table_Data_Table_135[[#This Row],[Item ID]],Analysis_Table,18,FALSE)","v":{"$error":"#N/A"}},{"$f":"VLOOKUP(Table_Data_Table_135[[#This Row],[Item ID]],Analysis_Table,19,FALSE)","v":{"$error":"#N/A"}},null,null,1]
["",null,{"$f":"VLOOKUP(Table_Data_Table_135[[#This Row],[Item ID]],Analysis_Table,20,FALSE)","v":{"$error":"#N/A"}},null,null,null,null,null,null,null,0,null,null,null,{"$f":"VLOOKUP(Table_Data_Table_135[[#This Row],[Item ID]],Analysis_Table,8,FALSE)","v":{"$error":"#N/A"}},{"$f":"VLOOKUP(Table_Data_Table_135[[#This Row],[Item ID]],Analysis_Table,9,FALSE)","v":{"$error":"#N/A"}},{"$f":"VLOOKUP(Table_Data_Table_135[[#This Row],[Item ID]],Analysis_Table,10,FALSE)","v":{"$error":"#N/A"}},{"$f":"VLOOKUP(Table_Data_Table_135[[#This Row],[Item ID]],Analysis_Table,11,FALSE)","v":{"$error":"#N/A"}},{"$f":"VLOOKUP(Table_Data_Table_135[[#This Row],[Item ID]],Analysis_Table,12,FALSE)","v":{"$error":"#N/A"}},{"$f":"VLOOKUP(Table_Data_Table_135[[#This Row],[Item ID]],Analysis_Table,13,FALSE)","v":{"$error":"#N/A"}},{"$f":"VLOOKUP(Table_Data_Table_135[[#This Row],[Item ID]],Analysis_Table,14,FALSE)","v":{"$error":"#N/A"}},{"$f":"VLOOKUP(Table_Data_Table_135[[#This Row],[Item ID]],Analysis_Table,15,FALSE)","v":{"$error":"#N/A"}},{"$f":"VLOOKUP(Table_Data_Table_135[[#This Row],[Item ID]],Analysis_Table,16,FALSE)","v":{"$error":"#N/A"}},{"$f":"VLOOKUP(Table_Data_Table_135[[#This Row],[Item ID]],Analysis_Table,17,FALSE)","v":{"$error":"#N/A"}},{"$f":"VLOOKUP(Table_Data_Table_135[[#This Row],[Item ID]],Analysis_Table,18,FALSE)","v":{"$error":"#N/A"}},{"$f":"VLOOKUP(Table_Data_Table_135[[#This Row],[Item ID]],Analysis_Table,19,FALSE)","v":{"$error":"#N/A"}},null,null,1]
["",null,{"$f":"VLOOKUP(Table_Data_Table_135[[#This Row],[Item ID]],Analysis_Table,20,FALSE)","v":{"$error":"#N/A"}},null,null,null,null,null,null,null,0,null,null,null,{"$f":"VLOOKUP(Table_Data_Table_135[[#This Row],[Item ID]],Analysis_Table,8,FALSE)","v":{"$error":"#N/A"}},{"$f":"VLOOKUP(Table_Data_Table_135[[#This Row],[Item ID]],Analysis_Table,9,FALSE)","v":{"$error":"#N/A"}},{"$f":"VLOOKUP(Table_Data_Table_135[[#This Row],[Item ID]],Analysis_Table,10,FALSE)","v":{"$error":"#N/A"}},{"$f":"VLOOKUP(Table_Data_Table_135[[#This Row],[Item ID]],Analysis_Table,11,FALSE)","v":{"$error":"#N/A"}},{"$f":"VLOOKUP(Table_Data_Table_135[[#This Row],[Item ID]],Analysis_Table,12,FALSE)","v":{"$error":"#N/A"}},{"$f":"VLOOKUP(Table_Data_Table_135[[#This Row],[Item ID]],Analysis_Table,13,FALSE)","v":{"$error":"#N/A"}},{"$f":"VLOOKUP(Table_Data_Table_135[[#This Row],[Item ID]],Analysis_Table,14,FALSE)","v":{"$error":"#N/A"}},{"$f":"VLOOKUP(Table_Data_Table_135[[#This Row],[Item ID]],Analysis_Table,15,FALSE)","v":{"$error":"#N/A"}},{"$f":"VLOOKUP(Table_Data_Table_135[[#This Row],[Item ID]],Analysis_Table,16,FALSE)","v":{"$error":"#N/A"}},{"$f":"VLOOKUP(Table_Data_Table_135[[#This Row],[Item ID]],Analysis_Table,17,FALSE)","v":{"$error":"#N/A"}},{"$f":"VLOOKUP(Table_Data_Table_135[[#This Row],[Item ID]],Analysis_Table,18,FALSE)","v":{"$error":"#N/A"}},{"$f":"VLOOKUP(Table_Data_Table_135[[#This Row],[Item ID]],Analysis_Table,19,FALSE)","v":{"$error":"#N/A"}},null,null,1]
["",null,{"$f":"VLOOKUP(Table_Data_Table_135[[#This Row],[Item ID]],Analysis_Table,20,FALSE)","v":{"$error":"#N/A"}},null,null,null,null,null,null,null,0,null,null,null,{"$f":"VLOOKUP(Table_Data_Table_135[[#This Row],[Item ID]],Analysis_Table,8,FALSE)","v":{"$error":"#N/A"}},{"$f":"VLOOKUP(Table_Data_Table_135[[#This Row],[Item ID]],Analysis_Table,9,FALSE)","v":{"$error":"#N/A"}},{"$f":"VLOOKUP(Table_Data_Table_135[[#This Row],[Item ID]],Analysis_Table,10,FALSE)","v":{"$error":"#N/A"}},{"$f":"VLOOKUP(Table_Data_Table_135[[#This Row],[Item ID]],Analysis_Table,11,FALSE)","v":{"$error":"#N/A"}},{"$f":"VLOOKUP(Table_Data_Table_135[[#This Row],[Item ID]],Analysis_Table,12,FALSE)","v":{"$error":"#N/A"}},{"$f":"VLOOKUP(Table_Data_Table_135[[#This Row],[Item ID]],Analysis_Table,13,FALSE)","v":{"$error":"#N/A"}},{"$f":"VLOOKUP(Table_Data_Table_135[[#This Row],[Item ID]],Analysis_Table,14,FALSE)","v":{"$error":"#N/A"}},{"$f":"VLOOKUP(Table_Data_Table_135[[#This Row],[Item ID]],Analysis_Table,15,FALSE)","v":{"$error":"#N/A"}},{"$f":"VLOOKUP(Table_Data_Table_135[[#This Row],[Item ID]],Analysis_Table,16,FALSE)","v":{"$error":"#N/A"}},{"$f":"VLOOKUP(Table_Data_Table_135[[#This Row],[Item ID]],Analysis_Table,17,FALSE)","v":{"$error":"#N/A"}},{"$f":"VLOOKUP(Table_Data_Table_135[[#This Row],[Item ID]],Analysis_Table,18,FALSE)","v":{"$error":"#N/A"}},{"$f":"VLOOKUP(Table_Data_Table_135[[#This Row],[Item ID]],Analysis_Table,19,FALSE)","v":{"$error":"#N/A"}},null,null,1]
["",null,{"$f":"VLOOKUP(Table_Data_Table_135[[#This Row],[Item ID]],Analysis_Table,20,FALSE)","v":{"$error":"#N/A"}},null,null,null,null,null,null,null,0,null,null,null,{"$f":"VLOOKUP(Table_Data_Table_135[[#This Row],[Item ID]],Analysis_Table,8,FALSE)","v":{"$error":"#N/A"}},{"$f":"VLOOKUP(Table_Data_Table_135[[#This Row],[Item ID]],Analysis_Table,9,FALSE)","v":{"$error":"#N/A"}},{"$f":"VLOOKUP(Table_Data_Table_135[[#This Row],[Item ID]],Analysis_Table,10,FALSE)","v":{"$error":"#N/A"}},{"$f":"VLOOKUP(Table_Data_Table_135[[#This Row],[Item ID]],Analysis_Table,11,FALSE)","v":{"$error":"#N/A"}},{"$f":"VLOOKUP(Table_Data_Table_135[[#This Row],[Item ID]],Analysis_Table,12,FALSE)","v":{"$error":"#N/A"}},{"$f":"VLOOKUP(Table_Data_Table_135[[#This Row],[Item ID]],Analysis_Table,13,FALSE)","v":{"$error":"#N/A"}},{"$f":"VLOOKUP(Table_Data_Table_135[[#This Row],[Item ID]],Analysis_Table,14,FALSE)","v":{"$error":"#N/A"}},{"$f":"VLOOKUP(Table_Data_Table_135[[#This Row],[Item ID]],Analysis_Table,15,FALSE)","v":{"$error":"#N/A"}},{"$f":"VLOOKUP(Table_Data_Table_135[[#This Row],[Item ID]],Analysis_Table,16,FALSE)","v":{"$error":"#N/A"}},{"$f":"VLOOKUP(Table_Data_Table_135[[#This Row],[Item ID]],Analysis_Table,17,FALSE)","v":{"$error":"#N/A"}},{"$f":"VLOOKUP(Table_Data_Table_135[[#This Row],[Item ID]],Analysis_Table,18,FALSE)","v":{"$error":"#N/A"}},{"$f":"VLOOKUP(Table_Data_Table_135[[#This Row],[Item ID]],Analysis_Table,19,FALSE)","v":{"$error":"#N/A"}},null,null,1]
["",null,{"$f":"VLOOKUP(Table_Data_Table_135[[#This Row],[Item ID]],Analysis_Table,20,FALSE)","v":{"$error":"#N/A"}},null,null,null,null,null,null,null,0,null,null,null,{"$f":"VLOOKUP(Table_Data_Table_135[[#This Row],[Item ID]],Analysis_Table,8,FALSE)","v":{"$error":"#N/A"}},{"$f":"VLOOKUP(Table_Data_Table_135[[#This Row],[Item ID]],Analysis_Table,9,FALSE)","v":{"$error":"#N/A"}},{"$f":"VLOOKUP(Table_Data_Table_135[[#This Row],[Item ID]],Analysis_Table,10,FALSE)","v":{"$error":"#N/A"}},{"$f":"VLOOKUP(Table_Data_Table_135[[#This Row],[Item ID]],Analysis_Table,11,FALSE)","v":{"$error":"#N/A"}},{"$f":"VLOOKUP(Table_Data_Table_135[[#This Row],[Item ID]],Analysis_Table,12,FALSE)","v":{"$error":"#N/A"}},{"$f":"VLOOKUP(Table_Data_Table_135[[#This Row],[Item ID]],Analysis_Table,13,FALSE)","v":{"$error":"#N/A"}},{"$f":"VLOOKUP(Table_Data_Table_135[[#This Row],[Item ID]],Analysis_Table,14,FALSE)","v":{"$error":"#N/A"}},{"$f":"VLOOKUP(Table_Data_Table_135[[#This Row],[Item ID]],Analysis_Table,15,FALSE)","v":{"$error":"#N/A"}},{"$f":"VLOOKUP(Table_Data_Table_135[[#This Row],[Item ID]],Analysis_Table,16,FALSE)","v":{"$error":"#N/A"}},{"$f":"VLOOKUP(Table_Data_Table_135[[#This Row],[Item ID]],Analysis_Table,17,FALSE)","v":{"$error":"#N/A"}},{"$f":"VLOOKUP(Table_Data_Table_135[[#This Row],[Item ID]],Analysis_Table,18,FALSE)","v":{"$error":"#N/A"}},{"$f":"VLOOKUP(Table_Data_Table_135[[#This Row],[Item ID]],Analysis_Table,19,FALSE)","v":{"$error":"#N/A"}},null,null,1]
["",null,{"$f":"VLOOKUP(Table_Data_Table_135[[#This Row],[Item ID]],Analysis_Table,20,FALSE)","v":{"$error":"#N/A"}},null,null,null,null,null,null,null,0,null,null,null,{"$f":"VLOOKUP(Table_Data_Table_135[[#This Row],[Item ID]],Analysis_Table,8,FALSE)","v":{"$error":"#N/A"}},{"$f":"VLOOKUP(Table_Data_Table_135[[#This Row],[Item ID]],Analysis_Table,9,FALSE)","v":{"$error":"#N/A"}},{"$f":"VLOOKUP(Table_Data_Table_135[[#This Row],[Item ID]],Analysis_Table,10,FALSE)","v":{"$error":"#N/A"}},{"$f":"VLOOKUP(Table_Data_Table_135[[#This Row],[Item ID]],Analysis_Table,11,FALSE)","v":{"$error":"#N/A"}},{"$f":"VLOOKUP(Table_Data_Table_135[[#This Row],[Item ID]],Analysis_Table,12,FALSE)","v":{"$error":"#N/A"}},{"$f":"VLOOKUP(Table_Data_Table_135[[#This Row],[Item ID]],Analysis_Table,13,FALSE)","v":{"$error":"#N/A"}},{"$f":"VLOOKUP(Table_Data_Table_135[[#This Row],[Item ID]],Analysis_Table,14,FALSE)","v":{"$error":"#N/A"}},{"$f":"VLOOKUP(Table_Data_Table_135[[#This Row],[Item ID]],Analysis_Table,15,FALSE)","v":{"$error":"#N/A"}},{"$f":"VLOOKUP(Table_Data_Table_135[[#This Row],[Item ID]],Analysis_Table,16,FALSE)","v":{"$error":"#N/A"}},{"$f":"VLOOKUP(Table_Data_Table_135[[#This Row],[Item ID]],Analysis_Table,17,FALSE)","v":{"$error":"#N/A"}},{"$f":"VLOOKUP(Table_Data_Table_135[[#This Row],[Item ID]],Analysis_Table,18,FALSE)","v":{"$error":"#N/A"}},{"$f":"VLOOKUP(Table_Data_Table_135[[#This Row],[Item ID]],Analysis_Table,19,FALSE)","v":{"$error":"#N/A"}},null,null,1]
["",null,{"$f":"VLOOKUP(Table_Data_Table_135[[#This Row],[Item ID]],Analysis_Table,20,FALSE)","v":{"$error":"#N/A"}},null,null,null,null,null,null,null,0,null,null,null,{"$f":"VLOOKUP(Table_Data_Table_135[[#This Row],[Item ID]],Analysis_Table,8,FALSE)","v":{"$error":"#N/A"}},{"$f":"VLOOKUP(Table_Data_Table_135[[#This Row],[Item ID]],Analysis_Table,9,FALSE)","v":{"$error":"#N/A"}},{"$f":"VLOOKUP(Table_Data_Table_135[[#This Row],[Item ID]],Analysis_Table,10,FALSE)","v":{"$error":"#N/A"}},{"$f":"VLOOKUP(Table_Data_Table_135[[#This Row],[Item ID]],Analysis_Table,11,FALSE)","v":{"$error":"#N/A"}},{"$f":"VLOOKUP(Table_Data_Table_135[[#This Row],[Item ID]],Analysis_Table,12,FALSE)","v":{"$error":"#N/A"}},{"$f":"VLOOKUP(Table_Data_Table_135[[#This Row],[Item ID]],Analysis_Table,13,FALSE)","v":{"$error":"#N/A"}},{"$f":"VLOOKUP(Table_Data_Table_135[[#This Row],[Item ID]],Analysis_Table,14,FALSE)","v":{"$error":"#N/A"}},{"$f":"VLOOKUP(Table_Data_Table_135[[#This Row],[Item ID]],Analysis_Table,15,FALSE)","v":{"$error":"#N/A"}},{"$f":"VLOOKUP(Table_Data_Table_135[[#This Row],[Item ID]],Analysis_Table,16,FALSE)","v":{"$error":"#N/A"}},{"$f":"VLOOKUP(Table_Data_Table_135[[#This Row],[Item ID]],Analysis_Table,17,FALSE)","v":{"$error":"#N/A"}},{"$f":"VLOOKUP(Table_Data_Table_135[[#This Row],[Item ID]],Analysis_Table,18,FALSE)","v":{"$error":"#N/A"}},{"$f":"VLOOKUP(Table_Data_Table_135[[#This Row],[Item ID]],Analysis_Table,19,FALSE)","v":{"$error":"#N/A"}},null,null,1]
["",null,{"$f":"VLOOKUP(Table_Data_Table_135[[#This Row],[Item ID]],Analysis_Table,20,FALSE)","v":{"$error":"#N/A"}},null,null,null,null,null,null,null,0,null,null,null,{"$f":"VLOOKUP(Table_Data_Table_135[[#This Row],[Item ID]],Analysis_Table,8,FALSE)","v":{"$error":"#N/A"}},{"$f":"VLOOKUP(Table_Data_Table_135[[#This Row],[Item ID]],Analysis_Table,9,FALSE)","v":{"$error":"#N/A"}},{"$f":"VLOOKUP(Table_Data_Table_135[[#This Row],[Item ID]],Analysis_Table,10,FALSE)","v":{"$error":"#N/A"}},{"$f":"VLOOKUP(Table_Data_Table_135[[#This Row],[Item ID]],Analysis_Table,11,FALSE)","v":{"$error":"#N/A"}},{"$f":"VLOOKUP(Table_Data_Table_135[[#This Row],[Item ID]],Analysis_Table,12,FALSE)","v":{"$error":"#N/A"}},{"$f":"VLOOKUP(Table_Data_Table_135[[#This Row],[Item ID]],Analysis_Table,13,FALSE)","v":{"$error":"#N/A"}},{"$f":"VLOOKUP(Table_Data_Table_135[[#This Row],[Item ID]],Analysis_Table,14,FALSE)","v":{"$error":"#N/A"}},{"$f":"VLOOKUP(Table_Data_Table_135[[#This Row],[Item ID]],Analysis_Table,15,FALSE)","v":{"$error":"#N/A"}},{"$f":"VLOOKUP(Table_Data_Table_135[[#This Row],[Item ID]],Analysis_Table,16,FALSE)","v":{"$error":"#N/A"}},{"$f":"VLOOKUP(Table_Data_Table_135[[#This Row],[Item ID]],Analysis_Table,17,FALSE)","v":{"$error":"#N/A"}},{"$f":"VLOOKUP(Table_Data_Table_135[[#This Row],[Item ID]],Analysis_Table,18,FALSE)","v":{"$error":"#N/A"}},{"$f":"VLOOKUP(Table_Data_Table_135[[#This Row],[Item ID]],Analysis_Table,19,FALSE)","v":{"$error":"#N/A"}},null,null,1]
["",null,{"$f":"VLOOKUP(Table_Data_Table_135[[#This Row],[Item ID]],Analysis_Table,20,FALSE)","v":{"$error":"#N/A"}},null,null,null,null,null,null,null,0,null,null,null,{"$f":"VLOOKUP(Table_Data_Table_135[[#This Row],[Item ID]],Analysis_Table,8,FALSE)","v":{"$error":"#N/A"}},{"$f":"VLOOKUP(Table_Data_Table_135[[#This Row],[Item ID]],Analysis_Table,9,FALSE)","v":{"$error":"#N/A"}},{"$f":"VLOOKUP(Table_Data_Table_135[[#This Row],[Item ID]],Analysis_Table,10,FALSE)","v":{"$error":"#N/A"}},{"$f":"VLOOKUP(Table_Data_Table_135[[#This Row],[Item ID]],Analysis_Table,11,FALSE)","v":{"$error":"#N/A"}},{"$f":"VLOOKUP(Table_Data_Table_135[[#This Row],[Item ID]],Analysis_Table,12,FALSE)","v":{"$error":"#N/A"}},{"$f":"VLOOKUP(Table_Data_Table_135[[#This Row],[Item ID]],Analysis_Table,13,FALSE)","v":{"$error":"#N/A"}},{"$f":"VLOOKUP(Table_Data_Table_135[[#This Row],[Item ID]],Analysis_Table,14,FALSE)","v":{"$error":"#N/A"}},{"$f":"VLOOKUP(Table_Data_Table_135[[#This Row],[Item ID]],Analysis_Table,15,FALSE)","v":{"$error":"#N/A"}},{"$f":"VLOOKUP(Table_Data_Table_135[[#This Row],[Item ID]],Analysis_Table,16,FALSE)","v":{"$error":"#N/A"}},{"$f":"VLOOKUP(Table_Data_Table_135[[#This Row],[Item ID]],Analysis_Table,17,FALSE)","v":{"$error":"#N/A"}},{"$f":"VLOOKUP(Table_Data_Table_135[[#This Row],[Item ID]],Analysis_Table,18,FALSE)","v":{"$error":"#N/A"}},{"$f":"VLOOKUP(Table_Data_Table_135[[#This Row],[Item ID]],Analysis_Table,19,FALSE)","v":{"$error":"#N/A"}},null,null,1]
["",null,{"$f":"VLOOKUP(Table_Data_Table_135[[#This Row],[Item ID]],Analysis_Table,20,FALSE)","v":{"$error":"#N/A"}},null,null,null,null,null,null,null,0,null,null,null,{"$f":"VLOOKUP(Table_Data_Table_135[[#This Row],[Item ID]],Analysis_Table,8,FALSE)","v":{"$error":"#N/A"}},{"$f":"VLOOKUP(Table_Data_Table_135[[#This Row],[Item ID]],Analysis_Table,9,FALSE)","v":{"$error":"#N/A"}},{"$f":"VLOOKUP(Table_Data_Table_135[[#This Row],[Item ID]],Analysis_Table,10,FALSE)","v":{"$error":"#N/A"}},{"$f":"VLOOKUP(Table_Data_Table_135[[#This Row],[Item ID]],Analysis_Table,11,FALSE)","v":{"$error":"#N/A"}},{"$f":"VLOOKUP(Table_Data_Table_135[[#This Row],[Item ID]],Analysis_Table,12,FALSE)","v":{"$error":"#N/A"}},{"$f":"VLOOKUP(Table_Data_Table_135[[#This Row],[Item ID]],Analysis_Table,13,FALSE)","v":{"$error":"#N/A"}},{"$f":"VLOOKUP(Table_Data_Table_135[[#This Row],[Item ID]],Analysis_Table,14,FALSE)","v":{"$error":"#N/A"}},{"$f":"VLOOKUP(Table_Data_Table_135[[#This Row],[Item ID]],Analysis_Table,15,FALSE)","v":{"$error":"#N/A"}},{"$f":"VLOOKUP(Table_Data_Table_135[[#This Row],[Item ID]],Analysis_Table,16,FALSE)","v":{"$error":"#N/A"}},{"$f":"VLOOKUP(Table_Data_Table_135[[#This Row],[Item ID]],Analysis_Table,17,FALSE)","v":{"$error":"#N/A"}},{"$f":"VLOOKUP(Table_Data_Table_135[[#This Row],[Item ID]],Analysis_Table,18,FALSE)","v":{"$error":"#N/A"}},{"$f":"VLOOKUP(Table_Data_Table_135[[#This Row],[Item ID]],Analysis_Table,19,FALSE)","v":{"$error":"#N/A"}},null,null,1]
["",null,{"$f":"VLOOKUP(Table_Data_Table_135[[#This Row],[Item ID]],Analysis_Table,20,FALSE)","v":{"$error":"#N/A"}},null,null,null,null,null,null,null,0,null,null,null,{"$f":"VLOOKUP(Table_Data_Table_135[[#This Row],[Item ID]],Analysis_Table,8,FALSE)","v":{"$error":"#N/A"}},{"$f":"VLOOKUP(Table_Data_Table_135[[#This Row],[Item ID]],Analysis_Table,9,FALSE)","v":{"$error":"#N/A"}},{"$f":"VLOOKUP(Table_Data_Table_135[[#This Row],[Item ID]],Analysis_Table,10,FALSE)","v":{"$error":"#N/A"}},{"$f":"VLOOKUP(Table_Data_Table_135[[#This Row],[Item ID]],Analysis_Table,11,FALSE)","v":{"$error":"#N/A"}},{"$f":"VLOOKUP(Table_Data_Table_135[[#This Row],[Item ID]],Analysis_Table,12,FALSE)","v":{"$error":"#N/A"}},{"$f":"VLOOKUP(Table_Data_Table_135[[#This Row],[Item ID]],Analysis_Table,13,FALSE)","v":{"$error":"#N/A"}},{"$f":"VLOOKUP(Table_Data_Table_135[[#This Row],[Item ID]],Analysis_Table,14,FALSE)","v":{"$error":"#N/A"}},{"$f":"VLOOKUP(Table_Data_Table_135[[#This Row],[Item ID]],Analysis_Table,15,FALSE)","v":{"$error":"#N/A"}},{"$f":"VLOOKUP(Table_Data_Table_135[[#This Row],[Item ID]],Analysis_Table,16,FALSE)","v":{"$error":"#N/A"}},{"$f":"VLOOKUP(Table_Data_Table_135[[#This Row],[Item ID]],Analysis_Table,17,FALSE)","v":{"$error":"#N/A"}},{"$f":"VLOOKUP(Table_Data_Table_135[[#This Row],[Item ID]],Analysis_Table,18,FALSE)","v":{"$error":"#N/A"}},{"$f":"VLOOKUP(Table_Data_Table_135[[#This Row],[Item ID]],Analysis_Table,19,FALSE)","v":{"$error":"#N/A"}},null,null,1]
["",null,{"$f":"VLOOKUP(Table_Data_Table_135[[#This Row],[Item ID]],Analysis_Table,20,FALSE)","v":{"$error":"#N/A"}},null,null,null,null,null,null,null,0,null,null,null,{"$f":"VLOOKUP(Table_Data_Table_135[[#This Row],[Item ID]],Analysis_Table,8,FALSE)","v":{"$error":"#N/A"}},{"$f":"VLOOKUP(Table_Data_Table_135[[#This Row],[Item ID]],Analysis_Table,9,FALSE)","v":{"$error":"#N/A"}},{"$f":"VLOOKUP(Table_Data_Table_135[[#This Row],[Item ID]],Analysis_Table,10,FALSE)","v":{"$error":"#N/A"}},{"$f":"VLOOKUP(Table_Data_Table_135[[#This Row],[Item ID]],Analysis_Table,11,FALSE)","v":{"$error":"#N/A"}},{"$f":"VLOOKUP(Table_Data_Table_135[[#This Row],[Item ID]],Analysis_Table,12,FALSE)","v":{"$error":"#N/A"}},{"$f":"VLOOKUP(Table_Data_Table_135[[#This Row],[Item ID]],Analysis_Table,13,FALSE)","v":{"$error":"#N/A"}},{"$f":"VLOOKUP(Table_Data_Table_135[[#This Row],[Item ID]],Analysis_Table,14,FALSE)","v":{"$error":"#N/A"}},{"$f":"VLOOKUP(Table_Data_Table_135[[#This Row],[Item ID]],Analysis_Table,15,FALSE)","v":{"$error":"#N/A"}},{"$f":"VLOOKUP(Table_Data_Table_135[[#This Row],[Item ID]],Analysis_Table,16,FALSE)","v":{"$error":"#N/A"}},{"$f":"VLOOKUP(Table_Data_Table_135[[#This Row],[Item ID]],Analysis_Table,17,FALSE)","v":{"$error":"#N/A"}},{"$f":"VLOOKUP(Table_Data_Table_135[[#This Row],[Item ID]],Analysis_Table,18,FALSE)","v":{"$error":"#N/A"}},{"$f":"VLOOKUP(Table_Data_Table_135[[#This Row],[Item ID]],Analysis_Table,19,FALSE)","v":{"$error":"#N/A"}},null,null,1]
["",null,{"$f":"VLOOKUP(Table_Data_Table_135[[#This Row],[Item ID]],Analysis_Table,20,FALSE)","v":{"$error":"#N/A"}},null,null,null,null,null,null,null,0,null,null,null,{"$f":"VLOOKUP(Table_Data_Table_135[[#This Row],[Item ID]],Analysis_Table,8,FALSE)","v":{"$error":"#N/A"}},{"$f":"VLOOKUP(Table_Data_Table_135[[#This Row],[Item ID]],Analysis_Table,9,FALSE)","v":{"$error":"#N/A"}},{"$f":"VLOOKUP(Table_Data_Table_135[[#This Row],[Item ID]],Analysis_Table,10,FALSE)","v":{"$error":"#N/A"}},{"$f":"VLOOKUP(Table_Data_Table_135[[#This Row],[Item ID]],Analysis_Table,11,FALSE)","v":{"$error":"#N/A"}},{"$f":"VLOOKUP(Table_Data_Table_135[[#This Row],[Item ID]],Analysis_Table,12,FALSE)","v":{"$error":"#N/A"}},{"$f":"VLOOKUP(Table_Data_Table_135[[#This Row],[Item ID]],Analysis_Table,13,FALSE)","v":{"$error":"#N/A"}},{"$f":"VLOOKUP(Table_Data_Table_135[[#This Row],[Item ID]],Analysis_Table,14,FALSE)","v":{"$error":"#N/A"}},{"$f":"VLOOKUP(Table_Data_Table_135[[#This Row],[Item ID]],Analysis_Table,15,FALSE)","v":{"$error":"#N/A"}},{"$f":"VLOOKUP(Table_Data_Table_135[[#This Row],[Item ID]],Analysis_Table,16,FALSE)","v":{"$error":"#N/A"}},{"$f":"VLOOKUP(Table_Data_Table_135[[#This Row],[Item ID]],Analysis_Table,17,FALSE)","v":{"$error":"#N/A"}},{"$f":"VLOOKUP(Table_Data_Table_135[[#This Row],[Item ID]],Analysis_Table,18,FALSE)","v":{"$error":"#N/A"}},{"$f":"VLOOKUP(Table_Data_Table_135[[#This Row],[Item ID]],Analysis_Table,19,FALSE)","v":{"$error":"#N/A"}},null,null,1]
["",null,{"$f":"VLOOKUP(Table_Data_Table_135[[#This Row],[Item ID]],Analysis_Table,20,FALSE)","v":{"$error":"#N/A"}},null,null,null,null,null,null,null,0,null,null,null,{"$f":"VLOOKUP(Table_Data_Table_135[[#This Row],[Item ID]],Analysis_Table,8,FALSE)","v":{"$error":"#N/A"}},{"$f":"VLOOKUP(Table_Data_Table_135[[#This Row],[Item ID]],Analysis_Table,9,FALSE)","v":{"$error":"#N/A"}},{"$f":"VLOOKUP(Table_Data_Table_135[[#This Row],[Item ID]],Analysis_Table,10,FALSE)","v":{"$error":"#N/A"}},{"$f":"VLOOKUP(Table_Data_Table_135[[#This Row],[Item ID]],Analysis_Table,11,FALSE)","v":{"$error":"#N/A"}},{"$f":"VLOOKUP(Table_Data_Table_135[[#This Row],[Item ID]],Analysis_Table,12,FALSE)","v":{"$error":"#N/A"}},{"$f":"VLOOKUP(Table_Data_Table_135[[#This Row],[Item ID]],Analysis_Table,13,FALSE)","v":{"$error":"#N/A"}},{"$f":"VLOOKUP(Table_Data_Table_135[[#This Row],[Item ID]],Analysis_Table,14,FALSE)","v":{"$error":"#N/A"}},{"$f":"VLOOKUP(Table_Data_Table_135[[#This Row],[Item ID]],Analysis_Table,15,FALSE)","v":{"$error":"#N/A"}},{"$f":"VLOOKUP(Table_Data_Table_135[[#This Row],[Item ID]],Analysis_Table,16,FALSE)","v":{"$error":"#N/A"}},{"$f":"VLOOKUP(Table_Data_Table_135[[#This Row],[Item ID]],Analysis_Table,17,FALSE)","v":{"$error":"#N/A"}},{"$f":"VLOOKUP(Table_Data_Table_135[[#This Row],[Item ID]],Analysis_Table,18,FALSE)","v":{"$error":"#N/A"}},{"$f":"VLOOKUP(Table_Data_Table_135[[#This Row],[Item ID]],Analysis_Table,19,FALSE)","v":{"$error":"#N/A"}},null,null,1]
["",null,{"$f":"VLOOKUP(Table_Data_Table_135[[#This Row],[Item ID]],Analysis_Table,20,FALSE)","v":{"$error":"#N/A"}},null,null,null,null,null,null,null,0,null,null,null,{"$f":"VLOOKUP(Table_Data_Table_135[[#This Row],[Item ID]],Analysis_Table,8,FALSE)","v":{"$error":"#N/A"}},{"$f":"VLOOKUP(Table_Data_Table_135[[#This Row],[Item ID]],Analysis_Table,9,FALSE)","v":{"$error":"#N/A"}},{"$f":"VLOOKUP(Table_Data_Table_135[[#This Row],[Item ID]],Analysis_Table,10,FALSE)","v":{"$error":"#N/A"}},{"$f":"VLOOKUP(Table_Data_Table_135[[#This Row],[Item ID]],Analysis_Table,11,FALSE)","v":{"$error":"#N/A"}},{"$f":"VLOOKUP(Table_Data_Table_135[[#This Row],[Item ID]],Analysis_Table,12,FALSE)","v":{"$error":"#N/A"}},{"$f":"VLOOKUP(Table_Data_Table_135[[#This Row],[Item ID]],Analysis_Table,13,FALSE)","v":{"$error":"#N/A"}},{"$f":"VLOOKUP(Table_Data_Table_135[[#This Row],[Item ID]],Analysis_Table,14,FALSE)","v":{"$error":"#N/A"}},{"$f":"VLOOKUP(Table_Data_Table_135[[#This Row],[Item ID]],Analysis_Table,15,FALSE)","v":{"$error":"#N/A"}},{"$f":"VLOOKUP(Table_Data_Table_135[[#This Row],[Item ID]],Analysis_Table,16,FALSE)","v":{"$error":"#N/A"}},{"$f":"VLOOKUP(Table_Data_Table_135[[#This Row],[Item ID]],Analysis_Table,17,FALSE)","v":{"$error":"#N/A"}},{"$f":"VLOOKUP(Table_Data_Table_135[[#This Row],[Item ID]],Analysis_Table,18,FALSE)","v":{"$error":"#N/A"}},{"$f":"VLOOKUP(Table_Data_Table_135[[#This Row],[Item ID]],Analysis_Table,19,FALSE)","v":{"$error":"#N/A"}},null,null,1]
["",null,{"$f":"VLOOKUP(Table_Data_Table_135[[#This Row],[Item ID]],Analysis_Table,20,FALSE)","v":{"$error":"#N/A"}},null,null,null,null,null,null,null,0,null,null,null,{"$f":"VLOOKUP(Table_Data_Table_135[[#This Row],[Item ID]],Analysis_Table,8,FALSE)","v":{"$error":"#N/A"}},{"$f":"VLOOKUP(Table_Data_Table_135[[#This Row],[Item ID]],Analysis_Table,9,FALSE)","v":{"$error":"#N/A"}},{"$f":"VLOOKUP(Table_Data_Table_135[[#This Row],[Item ID]],Analysis_Table,10,FALSE)","v":{"$error":"#N/A"}},{"$f":"VLOOKUP(Table_Data_Table_135[[#This Row],[Item ID]],Analysis_Table,11,FALSE)","v":{"$error":"#N/A"}},{"$f":"VLOOKUP(Table_Data_Table_135[[#This Row],[Item ID]],Analysis_Table,12,FALSE)","v":{"$error":"#N/A"}},{"$f":"VLOOKUP(Table_Data_Table_135[[#This Row],[Item ID]],Analysis_Table,13,FALSE)","v":{"$error":"#N/A"}},{"$f":"VLOOKUP(Table_Data_Table_135[[#This Row],[Item ID]],Analysis_Table,14,FALSE)","v":{"$error":"#N/A"}},{"$f":"VLOOKUP(Table_Data_Table_135[[#This Row],[Item ID]],Analysis_Table,15,FALSE)","v":{"$error":"#N/A"}},{"$f":"VLOOKUP(Table_Data_Table_135[[#This Row],[Item ID]],Analysis_Table,16,FALSE)","v":{"$error":"#N/A"}},{"$f":"VLOOKUP(Table_Data_Table_135[[#This Row],[Item ID]],Analysis_Table,17,FALSE)","v":{"$error":"#N/A"}},{"$f":"VLOOKUP(Table_Data_Table_135[[#This Row],[Item ID]],Analysis_Table,18,FALSE)","v":{"$error":"#N/A"}},{"$f":"VLOOKUP(Table_Data_Table_135[[#This Row],[Item ID]],Analysis_Table,19,FALSE)","v":{"$error":"#N/A"}},null,null,1]
["",null,{"$f":"VLOOKUP(Table_Data_Table_135[[#This Row],[Item ID]],Analysis_Table,20,FALSE)","v":{"$error":"#N/A"}},null,null,null,null,null,null,null,0,null,null,null,{"$f":"VLOOKUP(Table_Data_Table_135[[#This Row],[Item ID]],Analysis_Table,8,FALSE)","v":{"$error":"#N/A"}},{"$f":"VLOOKUP(Table_Data_Table_135[[#This Row],[Item ID]],Analysis_Table,9,FALSE)","v":{"$error":"#N/A"}},{"$f":"VLOOKUP(Table_Data_Table_135[[#This Row],[Item ID]],Analysis_Table,10,FALSE)","v":{"$error":"#N/A"}},{"$f":"VLOOKUP(Table_Data_Table_135[[#This Row],[Item ID]],Analysis_Table,11,FALSE)","v":{"$error":"#N/A"}},{"$f":"VLOOKUP(Table_Data_Table_135[[#This Row],[Item ID]],Analysis_Table,12,FALSE)","v":{"$error":"#N/A"}},{"$f":"VLOOKUP(Table_Data_Table_135[[#This Row],[Item ID]],Analysis_Table,13,FALSE)","v":{"$error":"#N/A"}},{"$f":"VLOOKUP(Table_Data_Table_135[[#This Row],[Item ID]],Analysis_Table,14,FALSE)","v":{"$error":"#N/A"}},{"$f":"VLOOKUP(Table_Data_Table_135[[#This Row],[Item ID]],Analysis_Table,15,FALSE)","v":{"$error":"#N/A"}},{"$f":"VLOOKUP(Table_Data_Table_135[[#This Row],[Item ID]],Analysis_Table,16,FALSE)","v":{"$error":"#N/A"}},{"$f":"VLOOKUP(Table_Data_Table_135[[#This Row],[Item ID]],Analysis_Table,17,FALSE)","v":{"$error":"#N/A"}},{"$f":"VLOOKUP(Table_Data_Table_135[[#This Row],[Item ID]],Analysis_Table,18,FALSE)","v":{"$error":"#N/A"}},{"$f":"VLOOKUP(Table_Data_Table_135[[#This Row],[Item ID]],Analysis_Table,19,FALSE)","v":{"$error":"#N/A"}},null,null,1]
["",null,{"$f":"VLOOKUP(Table_Data_Table_135[[#This Row],[Item ID]],Analysis_Table,20,FALSE)","v":{"$error":"#N/A"}},null,null,null,null,null,null,null,0,null,null,null,{"$f":"VLOOKUP(Table_Data_Table_135[[#This Row],[Item ID]],Analysis_Table,8,FALSE)","v":{"$error":"#N/A"}},{"$f":"VLOOKUP(Table_Data_Table_135[[#This Row],[Item ID]],Analysis_Table,9,FALSE)","v":{"$error":"#N/A"}},{"$f":"VLOOKUP(Table_Data_Table_135[[#This Row],[Item ID]],Analysis_Table,10,FALSE)","v":{"$error":"#N/A"}},{"$f":"VLOOKUP(Table_Data_Table_135[[#This Row],[Item ID]],Analysis_Table,11,FALSE)","v":{"$error":"#N/A"}},{"$f":"VLOOKUP(Table_Data_Table_135[[#This Row],[Item ID]],Analysis_Table,12,FALSE)","v":{"$error":"#N/A"}},{"$f":"VLOOKUP(Table_Data_Table_135[[#This Row],[Item ID]],Analysis_Table,13,FALSE)","v":{"$error":"#N/A"}},{"$f":"VLOOKUP(Table_Data_Table_135[[#This Row],[Item ID]],Analysis_Table,14,FALSE)","v":{"$error":"#N/A"}},{"$f":"VLOOKUP(Table_Data_Table_135[[#This Row],[Item ID]],Analysis_Table,15,FALSE)","v":{"$error":"#N/A"}},{"$f":"VLOOKUP(Table_Data_Table_135[[#This Row],[Item ID]],Analysis_Table,16,FALSE)","v":{"$error":"#N/A"}},{"$f":"VLOOKUP(Table_Data_Table_135[[#This Row],[Item ID]],Analysis_Table,17,FALSE)","v":{"$error":"#N/A"}},{"$f":"VLOOKUP(Table_Data_Table_135[[#This Row],[Item ID]],Analysis_Table,18,FALSE)","v":{"$error":"#N/A"}},{"$f":"VLOOKUP(Table_Data_Table_135[[#This Row],[Item ID]],Analysis_Table,19,FALSE)","v":{"$error":"#N/A"}},null,null,1]
["",null,{"$f":"VLOOKUP(Table_Data_Table_135[[#This Row],[Item ID]],Analysis_Table,20,FALSE)","v":{"$error":"#N/A"}},null,null,null,null,null,null,null,0,null,null,null,{"$f":"VLOOKUP(Table_Data_Table_135[[#This Row],[Item ID]],Analysis_Table,8,FALSE)","v":{"$error":"#N/A"}},{"$f":"VLOOKUP(Table_Data_Table_135[[#This Row],[Item ID]],Analysis_Table,9,FALSE)","v":{"$error":"#N/A"}},{"$f":"VLOOKUP(Table_Data_Table_135[[#This Row],[Item ID]],Analysis_Table,10,FALSE)","v":{"$error":"#N/A"}},{"$f":"VLOOKUP(Table_Data_Table_135[[#This Row],[Item ID]],Analysis_Table,11,FALSE)","v":{"$error":"#N/A"}},{"$f":"VLOOKUP(Table_Data_Table_135[[#This Row],[Item ID]],Analysis_Table,12,FALSE)","v":{"$error":"#N/A"}},{"$f":"VLOOKUP(Table_Data_Table_135[[#This Row],[Item ID]],Analysis_Table,13,FALSE)","v":{"$error":"#N/A"}},{"$f":"VLOOKUP(Table_Data_Table_135[[#This Row],[Item ID]],Analysis_Table,14,FALSE)","v":{"$error":"#N/A"}},{"$f":"VLOOKUP(Table_Data_Table_135[[#This Row],[Item ID]],Analysis_Table,15,FALSE)","v":{"$error":"#N/A"}},{"$f":"VLOOKUP(Table_Data_Table_135[[#This Row],[Item ID]],Analysis_Table,16,FALSE)","v":{"$error":"#N/A"}},{"$f":"VLOOKUP(Table_Data_Table_135[[#This Row],[Item ID]],Analysis_Table,17,FALSE)","v":{"$error":"#N/A"}},{"$f":"VLOOKUP(Table_Data_Table_135[[#This Row],[Item ID]],Analysis_Table,18,FALSE)","v":{"$error":"#N/A"}},{"$f":"VLOOKUP(Table_Data_Table_135[[#This Row],[Item ID]],Analysis_Table,19,FALSE)","v":{"$error":"#N/A"}},null,null,1]
["",null,{"$f":"VLOOKUP(Table_Data_Table_135[[#This Row],[Item ID]],Analysis_Table,20,FALSE)","v":{"$error":"#N/A"}},null,null,null,null,null,null,null,0,null,null,null,{"$f":"VLOOKUP(Table_Data_Table_135[[#This Row],[Item ID]],Analysis_Table,8,FALSE)","v":{"$error":"#N/A"}},{"$f":"VLOOKUP(Table_Data_Table_135[[#This Row],[Item ID]],Analysis_Table,9,FALSE)","v":{"$error":"#N/A"}},{"$f":"VLOOKUP(Table_Data_Table_135[[#This Row],[Item ID]],Analysis_Table,10,FALSE)","v":{"$error":"#N/A"}},{"$f":"VLOOKUP(Table_Data_Table_135[[#This Row],[Item ID]],Analysis_Table,11,FALSE)","v":{"$error":"#N/A"}},{"$f":"VLOOKUP(Table_Data_Table_135[[#This Row],[Item ID]],Analysis_Table,12,FALSE)","v":{"$error":"#N/A"}},{"$f":"VLOOKUP(Table_Data_Table_135[[#This Row],[Item ID]],Analysis_Table,13,FALSE)","v":{"$error":"#N/A"}},{"$f":"VLOOKUP(Table_Data_Table_135[[#This Row],[Item ID]],Analysis_Table,14,FALSE)","v":{"$error":"#N/A"}},{"$f":"VLOOKUP(Table_Data_Table_135[[#This Row],[Item ID]],Analysis_Table,15,FALSE)","v":{"$error":"#N/A"}},{"$f":"VLOOKUP(Table_Data_Table_135[[#This Row],[Item ID]],Analysis_Table,16,FALSE)","v":{"$error":"#N/A"}},{"$f":"VLOOKUP(Table_Data_Table_135[[#This Row],[Item ID]],Analysis_Table,17,FALSE)","v":{"$error":"#N/A"}},{"$f":"VLOOKUP(Table_Data_Table_135[[#This Row],[Item ID]],Analysis_Table,18,FALSE)","v":{"$error":"#N/A"}},{"$f":"VLOOKUP(Table_Data_Table_135[[#This Row],[Item ID]],Analysis_Table,19,FALSE)","v":{"$error":"#N/A"}},null,null,1]
["",null,{"$f":"VLOOKUP(Table_Data_Table_135[[#This Row],[Item ID]],Analysis_Table,20,FALSE)","v":{"$error":"#N/A"}},null,null,null,null,null,null,null,0,null,null,null,{"$f":"VLOOKUP(Table_Data_Table_135[[#This Row],[Item ID]],Analysis_Table,8,FALSE)","v":{"$error":"#N/A"}},{"$f":"VLOOKUP(Table_Data_Table_135[[#This Row],[Item ID]],Analysis_Table,9,FALSE)","v":{"$error":"#N/A"}},{"$f":"VLOOKUP(Table_Data_Table_135[[#This Row],[Item ID]],Analysis_Table,10,FALSE)","v":{"$error":"#N/A"}},{"$f":"VLOOKUP(Table_Data_Table_135[[#This Row],[Item ID]],Analysis_Table,11,FALSE)","v":{"$error":"#N/A"}},{"$f":"VLOOKUP(Table_Data_Table_135[[#This Row],[Item ID]],Analysis_Table,12,FALSE)","v":{"$error":"#N/A"}},{"$f":"VLOOKUP(Table_Data_Table_135[[#This Row],[Item ID]],Analysis_Table,13,FALSE)","v":{"$error":"#N/A"}},{"$f":"VLOOKUP(Table_Data_Table_135[[#This Row],[Item ID]],Analysis_Table,14,FALSE)","v":{"$error":"#N/A"}},{"$f":"VLOOKUP(Table_Data_Table_135[[#This Row],[Item ID]],Analysis_Table,15,FALSE)","v":{"$error":"#N/A"}},{"$f":"VLOOKUP(Table_Data_Table_135[[#This Row],[Item ID]],Analysis_Table,16,FALSE)","v":{"$error":"#N/A"}},{"$f":"VLOOKUP(Table_Data_Table_135[[#This Row],[Item ID]],Analysis_Table,17,FALSE)","v":{"$error":"#N/A"}},{"$f":"VLOOKUP(Table_Data_Table_135[[#This Row],[Item ID]],Analysis_Table,18,FALSE)","v":{"$error":"#N/A"}},{"$f":"VLOOKUP(Table_Data_Table_135[[#This Row],[Item ID]],Analysis_Table,19,FALSE)","v":{"$error":"#N/A"}},null,null,1]
["",null,{"$f":"VLOOKUP(Table_Data_Table_135[[#This Row],[Item ID]],Analysis_Table,20,FALSE)","v":{"$error":"#N/A"}},null,null,null,null,null,null,null,0,null,null,null,{"$f":"VLOOKUP(Table_Data_Table_135[[#This Row],[Item ID]],Analysis_Table,8,FALSE)","v":{"$error":"#N/A"}},{"$f":"VLOOKUP(Table_Data_Table_135[[#This Row],[Item ID]],Analysis_Table,9,FALSE)","v":{"$error":"#N/A"}},{"$f":"VLOOKUP(Table_Data_Table_135[[#This Row],[Item ID]],Analysis_Table,10,FALSE)","v":{"$error":"#N/A"}},{"$f":"VLOOKUP(Table_Data_Table_135[[#This Row],[Item ID]],Analysis_Table,11,FALSE)","v":{"$error":"#N/A"}},{"$f":"VLOOKUP(Table_Data_Table_135[[#This Row],[Item ID]],Analysis_Table,12,FALSE)","v":{"$error":"#N/A"}},{"$f":"VLOOKUP(Table_Data_Table_135[[#This Row],[Item ID]],Analysis_Table,13,FALSE)","v":{"$error":"#N/A"}},{"$f":"VLOOKUP(Table_Data_Table_135[[#This Row],[Item ID]],Analysis_Table,14,FALSE)","v":{"$error":"#N/A"}},{"$f":"VLOOKUP(Table_Data_Table_135[[#This Row],[Item ID]],Analysis_Table,15,FALSE)","v":{"$error":"#N/A"}},{"$f":"VLOOKUP(Table_Data_Table_135[[#This Row],[Item ID]],Analysis_Table,16,FALSE)","v":{"$error":"#N/A"}},{"$f":"VLOOKUP(Table_Data_Table_135[[#This Row],[Item ID]],Analysis_Table,17,FALSE)","v":{"$error":"#N/A"}},{"$f":"VLOOKUP(Table_Data_Table_135[[#This Row],[Item ID]],Analysis_Table,18,FALSE)","v":{"$error":"#N/A"}},{"$f":"VLOOKUP(Table_Data_Table_135[[#This Row],[Item ID]],Analysis_Table,19,FALSE)","v":{"$error":"#N/A"}},null,null,1]
["",null,{"$f":"VLOOKUP(Table_Data_Table_135[[#This Row],[Item ID]],Analysis_Table,20,FALSE)","v":{"$error":"#N/A"}},null,null,null,null,null,null,null,0,null,null,null,{"$f":"VLOOKUP(Table_Data_Table_135[[#This Row],[Item ID]],Analysis_Table,8,FALSE)","v":{"$error":"#N/A"}},{"$f":"VLOOKUP(Table_Data_Table_135[[#This Row],[Item ID]],Analysis_Table,9,FALSE)","v":{"$error":"#N/A"}},{"$f":"VLOOKUP(Table_Data_Table_135[[#This Row],[Item ID]],Analysis_Table,10,FALSE)","v":{"$error":"#N/A"}},{"$f":"VLOOKUP(Table_Data_Table_135[[#This Row],[Item ID]],Analysis_Table,11,FALSE)","v":{"$error":"#N/A"}},{"$f":"VLOOKUP(Table_Data_Table_135[[#This Row],[Item ID]],Analysis_Table,12,FALSE)","v":{"$error":"#N/A"}},{"$f":"VLOOKUP(Table_Data_Table_135[[#This Row],[Item ID]],Analysis_Table,13,FALSE)","v":{"$error":"#N/A"}},{"$f":"VLOOKUP(Table_Data_Table_135[[#This Row],[Item ID]],Analysis_Table,14,FALSE)","v":{"$error":"#N/A"}},{"$f":"VLOOKUP(Table_Data_Table_135[[#This Row],[Item ID]],Analysis_Table,15,FALSE)","v":{"$error":"#N/A"}},{"$f":"VLOOKUP(Table_Data_Table_135[[#This Row],[Item ID]],Analysis_Table,16,FALSE)","v":{"$error":"#N/A"}},{"$f":"VLOOKUP(Table_Data_Table_135[[#This Row],[Item ID]],Analysis_Table,17,FALSE)","v":{"$error":"#N/A"}},{"$f":"VLOOKUP(Table_Data_Table_135[[#This Row],[Item ID]],Analysis_Table,18,FALSE)","v":{"$error":"#N/A"}},{"$f":"VLOOKUP(Table_Data_Table_135[[#This Row],[Item ID]],Analysis_Table,19,FALSE)","v":{"$error":"#N/A"}},null,null,1]
["",null,{"$f":"VLOOKUP(Table_Data_Table_135[[#This Row],[Item ID]],Analysis_Table,20,FALSE)","v":{"$error":"#N/A"}},null,null,null,null,null,null,null,0,null,null,null,{"$f":"VLOOKUP(Table_Data_Table_135[[#This Row],[Item ID]],Analysis_Table,8,FALSE)","v":{"$error":"#N/A"}},{"$f":"VLOOKUP(Table_Data_Table_135[[#This Row],[Item ID]],Analysis_Table,9,FALSE)","v":{"$error":"#N/A"}},{"$f":"VLOOKUP(Table_Data_Table_135[[#This Row],[Item ID]],Analysis_Table,10,FALSE)","v":{"$error":"#N/A"}},{"$f":"VLOOKUP(Table_Data_Table_135[[#This Row],[Item ID]],Analysis_Table,11,FALSE)","v":{"$error":"#N/A"}},{"$f":"VLOOKUP(Table_Data_Table_135[[#This Row],[Item ID]],Analysis_Table,12,FALSE)","v":{"$error":"#N/A"}},{"$f":"VLOOKUP(Table_Data_Table_135[[#This Row],[Item ID]],Analysis_Table,13,FALSE)","v":{"$error":"#N/A"}},{"$f":"VLOOKUP(Table_Data_Table_135[[#This Row],[Item ID]],Analysis_Table,14,FALSE)","v":{"$error":"#N/A"}},{"$f":"VLOOKUP(Table_Data_Table_135[[#This Row],[Item ID]],Analysis_Table,15,FALSE)","v":{"$error":"#N/A"}},{"$f":"VLOOKUP(Table_Data_Table_135[[#This Row],[Item ID]],Analysis_Table,16,FALSE)","v":{"$error":"#N/A"}},{"$f":"VLOOKUP(Table_Data_Table_135[[#This Row],[Item ID]],Analysis_Table,17,FALSE)","v":{"$error":"#N/A"}},{"$f":"VLOOKUP(Table_Data_Table_135[[#This Row],[Item ID]],Analysis_Table,18,FALSE)","v":{"$error":"#N/A"}},{"$f":"VLOOKUP(Table_Data_Table_135[[#This Row],[Item ID]],Analysis_Table,19,FALSE)","v":{"$error":"#N/A"}},null,null,1]
["",null,{"$f":"VLOOKUP(Table_Data_Table_135[[#This Row],[Item ID]],Analysis_Table,20,FALSE)","v":{"$error":"#N/A"}},null,null,null,null,null,null,null,0,null,null,null,{"$f":"VLOOKUP(Table_Data_Table_135[[#This Row],[Item ID]],Analysis_Table,8,FALSE)","v":{"$error":"#N/A"}},{"$f":"VLOOKUP(Table_Data_Table_135[[#This Row],[Item ID]],Analysis_Table,9,FALSE)","v":{"$error":"#N/A"}},{"$f":"VLOOKUP(Table_Data_Table_135[[#This Row],[Item ID]],Analysis_Table,10,FALSE)","v":{"$error":"#N/A"}},{"$f":"VLOOKUP(Table_Data_Table_135[[#This Row],[Item ID]],Analysis_Table,11,FALSE)","v":{"$error":"#N/A"}},{"$f":"VLOOKUP(Table_Data_Table_135[[#This Row],[Item ID]],Analysis_Table,12,FALSE)","v":{"$error":"#N/A"}},{"$f":"VLOOKUP(Table_Data_Table_135[[#This Row],[Item ID]],Analysis_Table,13,FALSE)","v":{"$error":"#N/A"}},{"$f":"VLOOKUP(Table_Data_Table_135[[#This Row],[Item ID]],Analysis_Table,14,FALSE)","v":{"$error":"#N/A"}},{"$f":"VLOOKUP(Table_Data_Table_135[[#This Row],[Item ID]],Analysis_Table,15,FALSE)","v":{"$error":"#N/A"}},{"$f":"VLOOKUP(Table_Data_Table_135[[#This Row],[Item ID]],Analysis_Table,16,FALSE)","v":{"$error":"#N/A"}},{"$f":"VLOOKUP(Table_Data_Table_135[[#This Row],[Item ID]],Analysis_Table,17,FALSE)","v":{"$error":"#N/A"}},{"$f":"VLOOKUP(Table_Data_Table_135[[#This Row],[Item ID]],Analysis_Table,18,FALSE)","v":{"$error":"#N/A"}},{"$f":"VLOOKUP(Table_Data_Table_135[[#This Row],[Item ID]],Analysis_Table,19,FALSE)","v":{"$error":"#N/A"}},null,null,1]
["",null,{"$f":"VLOOKUP(Table_Data_Table_135[[#This Row],[Item ID]],Analysis_Table,20,FALSE)","v":{"$error":"#N/A"}},null,null,null,null,null,null,null,0,null,null,null,{"$f":"VLOOKUP(Table_Data_Table_135[[#This Row],[Item ID]],Analysis_Table,8,FALSE)","v":{"$error":"#N/A"}},{"$f":"VLOOKUP(Table_Data_Table_135[[#This Row],[Item ID]],Analysis_Table,9,FALSE)","v":{"$error":"#N/A"}},{"$f":"VLOOKUP(Table_Data_Table_135[[#This Row],[Item ID]],Analysis_Table,10,FALSE)","v":{"$error":"#N/A"}},{"$f":"VLOOKUP(Table_Data_Table_135[[#This Row],[Item ID]],Analysis_Table,11,FALSE)","v":{"$error":"#N/A"}},{"$f":"VLOOKUP(Table_Data_Table_135[[#This Row],[Item ID]],Analysis_Table,12,FALSE)","v":{"$error":"#N/A"}},{"$f":"VLOOKUP(Table_Data_Table_135[[#This Row],[Item ID]],Analysis_Table,13,FALSE)","v":{"$error":"#N/A"}},{"$f":"VLOOKUP(Table_Data_Table_135[[#This Row],[Item ID]],Analysis_Table,14,FALSE)","v":{"$error":"#N/A"}},{"$f":"VLOOKUP(Table_Data_Table_135[[#This Row],[Item ID]],Analysis_Table,15,FALSE)","v":{"$error":"#N/A"}},{"$f":"VLOOKUP(Table_Data_Table_135[[#This Row],[Item ID]],Analysis_Table,16,FALSE)","v":{"$error":"#N/A"}},{"$f":"VLOOKUP(Table_Data_Table_135[[#This Row],[Item ID]],Analysis_Table,17,FALSE)","v":{"$error":"#N/A"}},{"$f":"VLOOKUP(Table_Data_Table_135[[#This Row],[Item ID]],Analysis_Table,18,FALSE)","v":{"$error":"#N/A"}},{"$f":"VLOOKUP(Table_Data_Table_135[[#This Row],[Item ID]],Analysis_Table,19,FALSE)","v":{"$error":"#N/A"}},null,null,1]
["",null,{"$f":"VLOOKUP(Table_Data_Table_135[[#This Row],[Item ID]],Analysis_Table,20,FALSE)","v":{"$error":"#N/A"}},null,null,null,null,null,null,null,0,null,null,null,{"$f":"VLOOKUP(Table_Data_Table_135[[#This Row],[Item ID]],Analysis_Table,8,FALSE)","v":{"$error":"#N/A"}},{"$f":"VLOOKUP(Table_Data_Table_135[[#This Row],[Item ID]],Analysis_Table,9,FALSE)","v":{"$error":"#N/A"}},{"$f":"VLOOKUP(Table_Data_Table_135[[#This Row],[Item ID]],Analysis_Table,10,FALSE)","v":{"$error":"#N/A"}},{"$f":"VLOOKUP(Table_Data_Table_135[[#This Row],[Item ID]],Analysis_Table,11,FALSE)","v":{"$error":"#N/A"}},{"$f":"VLOOKUP(Table_Data_Table_135[[#This Row],[Item ID]],Analysis_Table,12,FALSE)","v":{"$error":"#N/A"}},{"$f":"VLOOKUP(Table_Data_Table_135[[#This Row],[Item ID]],Analysis_Table,13,FALSE)","v":{"$error":"#N/A"}},{"$f":"VLOOKUP(Table_Data_Table_135[[#This Row],[Item ID]],Analysis_Table,14,FALSE)","v":{"$error":"#N/A"}},{"$f":"VLOOKUP(Table_Data_Table_135[[#This Row],[Item ID]],Analysis_Table,15,FALSE)","v":{"$error":"#N/A"}},{"$f":"VLOOKUP(Table_Data_Table_135[[#This Row],[Item ID]],Analysis_Table,16,FALSE)","v":{"$error":"#N/A"}},{"$f":"VLOOKUP(Table_Data_Table_135[[#This Row],[Item ID]],Analysis_Table,17,FALSE)","v":{"$error":"#N/A"}},{"$f":"VLOOKUP(Table_Data_Table_135[[#This Row],[Item ID]],Analysis_Table,18,FALSE)","v":{"$error":"#N/A"}},{"$f":"VLOOKUP(Table_Data_Table_135[[#This Row],[Item ID]],Analysis_Table,19,FALSE)","v":{"$error":"#N/A"}},null,null,1]
["",null,{"$f":"VLOOKUP(Table_Data_Table_135[[#This Row],[Item ID]],Analysis_Table,20,FALSE)","v":{"$error":"#N/A"}},null,null,null,null,null,null,null,0,null,null,null,{"$f":"VLOOKUP(Table_Data_Table_135[[#This Row],[Item ID]],Analysis_Table,8,FALSE)","v":{"$error":"#N/A"}},{"$f":"VLOOKUP(Table_Data_Table_135[[#This Row],[Item ID]],Analysis_Table,9,FALSE)","v":{"$error":"#N/A"}},{"$f":"VLOOKUP(Table_Data_Table_135[[#This Row],[Item ID]],Analysis_Table,10,FALSE)","v":{"$error":"#N/A"}},{"$f":"VLOOKUP(Table_Data_Table_135[[#This Row],[Item ID]],Analysis_Table,11,FALSE)","v":{"$error":"#N/A"}},{"$f":"VLOOKUP(Table_Data_Table_135[[#This Row],[Item ID]],Analysis_Table,12,FALSE)","v":{"$error":"#N/A"}},{"$f":"VLOOKUP(Table_Data_Table_135[[#This Row],[Item ID]],Analysis_Table,13,FALSE)","v":{"$error":"#N/A"}},{"$f":"VLOOKUP(Table_Data_Table_135[[#This Row],[Item ID]],Analysis_Table,14,FALSE)","v":{"$error":"#N/A"}},{"$f":"VLOOKUP(Table_Data_Table_135[[#This Row],[Item ID]],Analysis_Table,15,FALSE)","v":{"$error":"#N/A"}},{"$f":"VLOOKUP(Table_Data_Table_135[[#This Row],[Item ID]],Analysis_Table,16,FALSE)","v":{"$error":"#N/A"}},{"$f":"VLOOKUP(Table_Data_Table_135[[#This Row],[Item ID]],Analysis_Table,17,FALSE)","v":{"$error":"#N/A"}},{"$f":"VLOOKUP(Table_Data_Table_135[[#This Row],[Item ID]],Analysis_Table,18,FALSE)","v":{"$error":"#N/A"}},{"$f":"VLOOKUP(Table_Data_Table_135[[#This Row],[Item ID]],Analysis_Table,19,FALSE)","v":{"$error":"#N/A"}},null,null,1]
["",null,{"$f":"VLOOKUP(Table_Data_Table_135[[#This Row],[Item ID]],Analysis_Table,20,FALSE)","v":{"$error":"#N/A"}},null,null,null,null,null,null,null,0,null,null,null,{"$f":"VLOOKUP(Table_Data_Table_135[[#This Row],[Item ID]],Analysis_Table,8,FALSE)","v":{"$error":"#N/A"}},{"$f":"VLOOKUP(Table_Data_Table_135[[#This Row],[Item ID]],Analysis_Table,9,FALSE)","v":{"$error":"#N/A"}},{"$f":"VLOOKUP(Table_Data_Table_135[[#This Row],[Item ID]],Analysis_Table,10,FALSE)","v":{"$error":"#N/A"}},{"$f":"VLOOKUP(Table_Data_Table_135[[#This Row],[Item ID]],Analysis_Table,11,FALSE)","v":{"$error":"#N/A"}},{"$f":"VLOOKUP(Table_Data_Table_135[[#This Row],[Item ID]],Analysis_Table,12,FALSE)","v":{"$error":"#N/A"}},{"$f":"VLOOKUP(Table_Data_Table_135[[#This Row],[Item ID]],Analysis_Table,13,FALSE)","v":{"$error":"#N/A"}},{"$f":"VLOOKUP(Table_Data_Table_135[[#This Row],[Item ID]],Analysis_Table,14,FALSE)","v":{"$error":"#N/A"}},{"$f":"VLOOKUP(Table_Data_Table_135[[#This Row],[Item ID]],Analysis_Table,15,FALSE)","v":{"$error":"#N/A"}},{"$f":"VLOOKUP(Table_Data_Table_135[[#This Row],[Item ID]],Analysis_Table,16,FALSE)","v":{"$error":"#N/A"}},{"$f":"VLOOKUP(Table_Data_Table_135[[#This Row],[Item ID]],Analysis_Table,17,FALSE)","v":{"$error":"#N/A"}},{"$f":"VLOOKUP(Table_Data_Table_135[[#This Row],[Item ID]],Analysis_Table,18,FALSE)","v":{"$error":"#N/A"}},{"$f":"VLOOKUP(Table_Data_Table_135[[#This Row],[Item ID]],Analysis_Table,19,FALSE)","v":{"$error":"#N/A"}},null,null,1]

{"sheet":"Timeout","index":11,"n_rows":5,"n_cols":3,"rows_kept":5,"cut":false,"hidden":true,"merged":[]}
["W-Date:",43801]
["Today:",{"$f":"TODAY()","v":45810}]
["Timeout",182.5,"days"]
["Deadline",43983]
["Expired","No"]